{"text_format":"1","workbook":"xlsx","n_sheets":141,"sheets":["CONFIGURATION","Currency Table","Submission","Company Information","Content","Index","Import","Export","Import Differences","Attachments","FileStorage","Declaration","Zones","Information Sheet","Financial Condition","SAR & Sanc. (All)","Form 1SFS","Form 2SFS","Form 8SFS","Form 1ASFS","Form 2ASFS","Form 8ASFS","Form 1EBS","Schedule II","Schedule II (EBS)","Schedule IIA","Schedule IIA (EBS)","Investment Reconciliation","Schedule IIB (EBS)","Schedule IIC (EBS)","Schedule IID (EBS)","Schedule IIE (EBS)","Schedule IIF (EBS)","Schedule III","Schedule III (EBS)","Schedule IIIA (EBS)","Schedule IV","Schedule IVA (EBS)","Schedule IVC (EBS)","Schedule IVD (EBS)","Schedule IVE (EBS)","Schedule IVF","Schedule V","Schedule V(a)","Schedule V(c)","Schedule V(e)","Schedule V(g)","Schedule V(k)","Schedule V(l)","Schedule V(m)","Dropdowns for Schedule VI","Schedule VI","Schedule VIA","Schedule VI (EBS)","Schedule VIA (EBS)","Schedule VI.","Schedule VI (EBS).","Schedule VIA.","Schedule VIA (EBS).","Schedule IX(a)","Schedule IX(b)","Schedule IX(c)","Schedule X(a)","Schedule X(b)","Schedule X(c)","Schedule X(d)","Schedule X(e)","Schedule X(f)","Schedule X(g)","Schedule X(h)","Schedule X(i)","Schedule X(j)","Schedule XI","Schedule XI(a)","Sch XI(a)(i)","Sch XI(a)(ii)","Sch XI(a)(iii)","Sch XI(a)(iv)","Sch XI(a)(v)","Sch XI(a)(vi)","Sch XI(a)(vii)","Sch XI(a)(viii)","Schedule XI(b)","Sch XI(b)(i)","Sch XI(b)(ii)","Sch XI(b)(iii)","Sch XI(b)(iv)","Sch XI(b)(v)","Sch XI(b)(vi)","Sch XI(b)(vii)","Sch XI(b)(viii)","Schedule XII(a)","Schedule XII(b)","Schedule XVI","Schedule XVII","Schedule XVIII","Schedule XVIII (EBS)","Schedule XIX","Schedule XIXA","Schedule XX","Schedule XXA","Schedule XXI","Schedule XXIA","Schedule XXIII","Corp Gov","Risk Man","Identification","Measurement","Response","Monitoring & Reporting","Op Risk (Original)","Op Risk","Summary","Fixed Income Investments (Prior","Fixed Income Investments","Equity Investments (Prior)","Equity Investments","Interest Rate-Liquidity Risk","Interest Rate-Liquidity (Rev.)","Currency Risk (old)","Currency Risk","Concentration Risk (Old)","Concentration Risk","Geographic (old)","Geographic Diversification","Premium Risk (old)","Premium Risk","Reserve Risk (old)","Reserve Risk","Credit Risk (old)","Credit Risk","Catastrophe Risk (old)","Catastrophe Risk","CSP (old)","Correlation Matrix","Company Specific Parameters","Crosscheck - SFS","Crosscheck-Model","Crosscheck - Op Risk","prt_res","HiddenFormulas"],"not_rendered":{"charts":2,"images":3,"macros":1,"external_links":0,"defined_names":290,"comments":54,"pivot_tables":0},"unopened":[],"bounds":{"document_bytes":16777216,"sheet_cells":100000,"rows_first":2000,"rows_last":500,"rows_between":2000,"halvings":0,"cell_chars":16384,"cell_head_chars":4096},"cells_cut":0,"cells_raw":0,"read":"whole","date_system":"1900"}

{"sheet":"CONFIGURATION","index":0,"n_rows":22,"n_cols":4,"rows_kept":22,"cut":false,"hidden":true,"merged":[]}
["ENTITY_ID",{"$f":"'Company Information'!$F$9","v":0}]
["ENTITY_NAME",{"$f":"'Company Information'!C7","v":"Enter Company Name"}]
["FILING_TYPE",{"$f":"\"BSCR\" & B11","v":"BSCR3A"}]
["FILING_YEAR",{"$f":"YEAR('Company Information'!C3)","v":2023}]
["CONTACT_PERSON_NAME",{"$f":"'Company Information'!C15&\" \"&'Company Information'!F15","v":" "}]
["CONTACT_PERSON_EMAIL",{"$f":"'Company Information'!C29","v":0}]
["CONTACT_PERSON_PHONE",{"$f":"IF('Company Information'!E27=\"\",'Company Information'!C27,'Company Information'!C27&\" Extension:\"&'Company Information'!E27)","v":0}]
["OPTION"]
["COMMENT",{"$f":"IF(Submission!B14=\"\",\"\",Submission!B14)","v":0}]
["CURRENCY_CODE",{"$f":"VLOOKUP('Form 1EBS'!C4,'Currency Table'!A:B,2,FALSE)","v":"USD"}]
["CLASS",{"$f":"IF('Company Information'!F11=\"Class 3A\",\"3A\",IF('Company Information'!F11=\"Class 3B\",\"3B\",\"4\"))","v":"3A"}]
["DECIMALS",{"$f":"IF(C12=\"Units\",1,IF(C12=\"Thousand Units\",1000,\"\"))","v":1000},"Thousand Units",{"$f":"IF(CONFIGURATION!$B$12=\"\",\"\",IF(CONFIGURATION!$B$12>1,\" ('\"&MID(CONFIGURATION!$B$12,2,LEN(CONFIGURATION!$B$12))&\"s)\",\"\"))","v":" ('000s)"}]
["FILINGWEBSERVICE","https://xbrl.bma.bm/ExternalWebPH3-1/filing.ashx",null,"https://xbrl.bma.bm/ExternalWebPH3-1/filing.ashx"]
["VALIDATIONWEBSERVICE","https://xbrl.bma.bm/ExternalWebPH3-1/validator.ashx",null,"https://xbrl.bma.bm/ExternalWebPH3-1/validator.ashx"]
["FILINGCOUNTERWEBSERVICE","https://xbrl.bma.bm/ExternalWebPH3-1/FilingCounter.ashx",null,"https://xbrl.bma.bm/ExternalWebPH3-1/FilingCounter.ashx"]
["DUMMYWEBSERVICE","https://xbrl.bma.bm/ExternalWebPH3-1/dummy.ashx",null,"https://xbrl.bma.bm/ExternalWebPH3-1/dummy.ashx"]
["XBRLCONVERSIONWEBSERVICE","https://xbrl.bma.bm/ExternalWebPH3-1/XBRLConv.ashx",null,"https://xbrl.bma.bm/ExternalWebPH3-1/XBRLConv.ashx"]
["PREPOPULATEWEBSERVICE","https://xbrl.bma.bm/ExternalWebPH3-1/GetEntityDataByFilingYear.ashx"]
["PREYEARSTARTDATE"]
["PREYEARENDDATE"]
["SAVEDDATAPOPULATEWEBSERVICE"]
["FORMVERSION","2023 Year-end Model"]

{"sheet":"Currency Table","index":1,"n_rows":170,"n_cols":4,"rows_kept":170,"cut":false,"hidden":true,"merged":[]}
["United States Dollars","USD",null,"Units"]
["Euro","EUR",null,"Thousand Units"]
["Afghanistan Afghanis","AFN"]
["Albania Leke","ALL"]
["Armenia Drams","AMD"]
["Netherlands Antilles Guilders","ANG"]
["Angola Kwanza","AOA"]
["Argentina Pesos","ARS"]
["Australia Dollars","AUD"]
["Aruba Guilders","AWG"]
["Azerbaijan New Manats","AZN"]
["Bosnia and Herzegovina Convertible Marka","BAM"]
["Barbados Dollars","BBD"]
["Bangladesh Taka","BDT"]
["Bulgaria Leva","BGN"]
["Bahrain Dinars","BHD"]
["Burundi Francs","BIF"]
["Bermuda Dollars","BMD"]
["Brunei Dollars","BND"]
["Bolivia Bolivianos","BOB"]
["Brazil Reais","BRL"]
["Bahamas Dollars","BSD"]
["Bhutan Ngultrum","BTN"]
["Botswana Pulas","BWP"]
["Belarus Rubles","BYR"]
["Belize Dollars","BZD"]
["Canada Dollars","CAD"]
["Congo/Kinshasa Francs","CDF"]
["Switzerland Francs","CHF"]
["Chile Pesos","CLP"]
["China Yuan Renminbi","CNY"]
["Colombia Pesos","COP"]
["Costa Rica Colones","CRC"]
["Cuba Convertible Pesos","CUC"]
["Cuba Pesos","CUP"]
["Cape Verde Escudos","CVE"]
["Czech Republic Koruny","CZK"]
["Djibouti Francs","DJF"]
["Denmark Kroner","DKK"]
["Dominican Republic Pesos","DOP"]
["Algeria Dinars","DZD"]
["Estonia Krooni","EEK"]
["Egypt Pounds","EGP"]
["Eritrea Nakfa","ERN"]
["Ethiopia Birr","ETB"]
["Fiji Dollars","FJD"]
["Falkland Islands Pounds","FKP"]
["United Kingdom Pounds","GBP"]
["Georgia Lari","GEL"]
["Guernsey Pounds","GGP"]
["Ghana Cedis","GHS"]
["Gibraltar Pounds","GIP"]
["Gambia Dalasi","GMD"]
["Guinea Francs","GNF"]
["Guatemala Quetzales","GTQ"]
["Guyana Dollars","GYD"]
["Hong Kong Dollars","HKD"]
["Honduras Lempiras","HNL"]
["Croatia Kuna","HRK"]
["Haiti Gourdes","HTG"]
["Hungary Forint","HUF"]
["Indonesia Rupiahs","IDR"]
["Israel New Shekels","ILS"]
["Isle of Man Pounds","IMP"]
["India Rupees","INR"]
["Iraq Dinars","IQD"]
["Iran Rials","IRR"]
["Iceland Kronur","ISK"]
["Jersey Pounds","JEP"]
["Jamaica Dollars","JMD"]
["Jordan Dinars","JOD"]
["Japan Yen","JPY"]
["Kenya Shillings","KES"]
["Kyrgyzstan Soms","KGS"]
["Cambodia Riels","KHR"]
["Comoros Francs","KMF"]
["North Korea Won","KPW"]
["South Korea Won","KRW"]
["Kuwait Dinars","KWD"]
["Cayman Islands Dollars","KYD"]
["Kazakhstan Tenge","KZT"]
["Laos Kips","LAK"]
["Lebanon Pounds","LBP"]
["Sri Lanka Rupees","LKR"]
["Liberia Dollars","LRD"]
["Lesotho Maloti","LSL"]
["Lithuania Litai","LTL"]
["Latvia Lati","LVL"]
["Libya Dinars","LYD"]
["Morocco Dirhams","MAD"]
["Moldova Lei","MDL"]
["Madagascar Ariary","MGA"]
["Macedonia Denars","MKD"]
["Myanmar Kyats","MMK"]
["Mongolia Tugriks","MNT"]
["Macau Patacas","MOP"]
["Mauritania Ouguiyas","MRO"]
["Mauritius Rupees","MUR"]
["Maldives Rufiyaa","MVR"]
["Malawi Kwachas","MWK"]
["Mexico Pesos","MXN"]
["Malaysia Ringgits","MYR"]
["Mozambique Meticais","MZN"]
["Namibia Dollars","NAD"]
["Nigeria Nairas","NGN"]
["Nicaragua Cordobas","NIO"]
["Norway Kroner","NOK"]
["Nepal Rupees","NPR"]
["New Zealand Dollars","NZD"]
["Oman Rials","OMR"]
["Panama Balboas","PAB"]
["Peru Nuevos Soles","PEN"]
["Papua New Guinea Kina","PGK"]
["Philippines Pesos","PHP"]
["Pakistan Rupees","PKR"]
["Poland Zlotych","PLN"]
["Paraguay Guarani","PYG"]
["Qatar Riyals","QAR"]
["Romania New Lei","RON"]
["Serbia Dinars","RSD"]
["Russia Rubles","RUB"]
["Rwanda Francs","RWF"]
["Saudi Arabia Riyals","SAR"]
["Solomon Islands Dollars","SBD"]
["Seychelles Rupees","SCR"]
["Sudan Pounds","SDG"]
["Sweden Kronor","SEK"]
["Singapore Dollars","SGD"]
["Saint Helena Pounds","SHP"]
["Slovakia Koruny","SKK"]
["Sierra Leone Leones","SLL"]
["Somalia Shillings","SOS"]
["Seborga Luigini","SPL"]
["Suriname Dollars","SRD"]
["São Tome and Principe Dobras","STD"]
["El Salvador Colones","SVC"]
["Syria Pounds","SYP"]
["Swaziland Emalangeni","SZL"]
["Thailand Baht","THB"]
["Tajikistan Somoni","TJS"]
["Turkmenistan Manats","TMM"]
["Tunisia Dinars","TND"]
["Tonga Pa'anga","TOP"]
["Turkey New Lira","TRY"]
["Trinidad and Tobago Dollars","TTD"]
["Tuvalu Dollars","TVD"]
["Taiwan New Dollars","TWD"]
["Tanzania Shillings","TZS"]
["Ukraine Hryvnia","UAH"]
["Uganda Shillings","UGX"]
["Uruguay Pesos","UYU"]
["Uzbekistan Sums","UZS"]
["Venezuela Bolivares","VEB"]
["Venezuela Bolivares Fuertes","VEF"]
["Vietnam Dong","VND"]
["Vanuatu Vatu","VUV"]
["Samoa Tala","WST"]
["Communauté Financière Africaine Francs BEAC","XAF"]
["Silver Ounces","XAG"]
["Gold Ounces","XAU"]
["East Caribbean Dollars","XCD"]
["International Monetary Fund Special Drawing Rights","XDR"]
["Communauté Financière Africaine Francs BCEAO","XOF"]
["Palladium Ounces","XPD"]
["Comptoirs Français du Pacifique Francs","XPF"]
["Platinum Ounces","XPT"]
["Yemen Rials","YER"]
["South Africa Rand","ZAR"]
["Zambia Kwacha","ZMK"]
["Zimbabwe Dollars","ZWD"]

{"sheet":"Submission","index":2,"n_rows":35,"n_cols":3,"rows_kept":35,"cut":false,"hidden":false,"merged":[[1,1,1,2],[32,1,32,2],[4,1,4,2],[2,1,2,2],[13,1,13,2]]}
[]
[null,{"$f":"IF('Company Information'!F11=\"\",\"BSCR Model for General Business\",IF('Company Information'!F11=\"Class 3A\",\"BSCR Model for Class 3A\",IF('Company Information'!F11=\"Class 3B\",\"BSCR Model for Class 3B\",IF('Company Information'!F11=\"Class 4\",\"BSCR Model for Class 4\",\"Error\"))))","v":"BSCR Model for Class 3A"}]
[null,"IMPORTANT: Completion of this submission requires an internet connection. \n\nQuestions and comments can be directed to: riskanalytics@bma.bm\n"]
[]
[null,"Submission Process:"]
[null,{"$f":"IF(CONFIGURATION!$C$12=\"Units\",\"Units\",\"Thousands\")","v":"Thousands"},"Select Unit: Prior to inputting BSCR form, select units which the monetary values are reported in."]
[null,null,"Get last saved data: Prefill form with last saved data from unfinished submission."]
[null,null,"Prepopulate previous data: Prefill form with previously submitted data."]
[null,null,"Input BSCR data"]
[null," ","Validate data: Prior to submitting to BMA validation of the data is required. To complete this step click the \"VALIDATE RETURN\" button. Users must acknowledge all failed validations and provide comments in the 'Comments' box below. Once the validation is complete click the location link to go to the error location."]
[null,null,"Save Data: Data can be saved prior to submission. Click the \"SAVE\" button to save the unfinished submission. "]
[null,null,"Submit Data: Once data has been completed, please submit for review. To complete this step click the \"SUBMIT\" button. If data is submitted more than twice, the latest data will be accepted. You will be required to select a reason for re-submissions. The time to submit will vary depending on the speed of the internet connection. A white status bar will appear when the data is transmitting. Please wait for the submission acknowledgement and record your submission number for later reference.\n\nIf there are issues submitting the BSCR model, contact RiskAnalytics@bma.bm for assistance."]
[null,"Comments:"]
[null,{"$f":"Import!E3","v":0}]
[null,"Validation results:"]
[null,"MSM requirement met",{"$f":"Summary!L33","v":"NO"}]
[null,"ECR requirement met",{"$f":"Summary!N128","v":"n/a"}]
[null,"MSM Eligible Capital requirement met",{"$f":"Summary!K140","v":"NO"}]
[null,"ECR Eligible Capital requirement met",{"$f":"Summary!M140","v":"NO"}]
[null,"Liquidity test met",{"$f":"Summary!R36","v":"YES"}]
[null,"Capital Reduction requirement met",{"$f":"Summary!R49","v":"NO"}]
[null,"C&S Reduction requirement met",{"$f":"Summary!L49","v":"YES"}]
[null,"Unqualified Opinion issued",{"$f":"'Information Sheet'!H41","v":"Select Yes/No"}]
[null,"CISSA document attached",{"$f":"IF(Attachments!F35=\"<Attach file>\",\"Outstanding\",\"File Attached\")","v":"Outstanding"}]
[null,"FCR document attached",{"$f":"IF(Attachments!F15=\"<Attach file>\",\"Outstanding\",\"File Attached\")","v":"Outstanding"}]
[null,"DOC document attached",{"$f":"IF(Attachments!F25=\"<Attach file>\",\"Outstanding\",\"File Attached\")","v":"Outstanding"}]
[null,"Blank Schedules",{"$f":"Content!H4","v":51}]
[null,"Acknowledged",{"$f":"Content!I4","v":0}]
[null,"Failed Validation Checks",{"$f":"Content!K4","v":0}]
[null,"Acknowledged",{"$f":"Content!L4","v":0}]
[]
[null,"Comments from BMA:"]
[]
[]
[null,"Validation results:"]

{"sheet":"Company Information","index":3,"n_rows":40,"n_cols":7,"rows_kept":40,"cut":false,"hidden":false,"merged":[[6,2,6,5],[18,2,18,5],[0,0,0,1],[14,5,14,6]]}
["COMPANY INFORMATION PAGE",null,null,null,null,null,{"$f":"HYPERLINK(\"#'Index'!A1\",\"Return to Index\")","v":"Return to Index"}]
[null,"Accounting Basis","Select"]
[null,"For the Year Ending ","2023-12-31",{"$f":"IF(C3=\"\",\"\",TEXT(C3,\"yyyy-mm-dd\"))","v":"2023-12-31"},null,"Class 3A Model"]
[]
[null,"COMPANY INFORMATION"]
[]
[null,"Company Name","Enter Company Name"]
[]
[null,"Date Incorporated/Organized",null,null,"Registration No."]
[]
[null,"Date Commenced Business",null,null,"Class of Business","Class 3A"]
[]
[null,"CONTACT PERSON FOR RISK BASED CAPITAL"]
[]
[null,"First Name",null,null,"Last Name"]
[]
[null,"CONTACT PERSON INFORMATION"]
[]
[null,"Street and Number of P.O. Box"]
[]
[null,"City"]
[]
[null,"Country"]
[]
[null,"Postal Code"]
[]
[null,"Phone Number",null,"Extension"]
[]
[null,"Email"]
[]
[null,"Date Prepared"]
[]
[]
[]
[]
[]
[]
[null,null,null,null,"Class 4"]
[null,null,null,null,"Class 3B"]
[null,null,null,null,"Class 3A"]

{"sheet":"Content","index":4,"n_rows":248,"n_cols":23,"rows_kept":248,"cut":false,"hidden":false,"merged":[[3,0,3,3],[4,7,4,8],[4,10,4,11],[130,1,130,2],[132,1,132,2],[4,0,4,2],[28,2,29,2],[30,2,31,2],[19,2,20,2],[23,2,24,2],[21,2,22,2],[35,2,36,2],[6,1,6,2],[7,1,7,2],[8,1,8,2],[9,1,9,2],[10,1,10,2],[11,1,11,2],[15,1,15,2],[34,1,34,2],[92,3,92,4],[93,3,93,4],[94,3,94,4],[99,3,99,4],[102,3,102,4],[39,1,39,2],[49,1,49,2],[52,1,52,2],[58,1,58,2],[76,2,77,2],[89,3,89,4],[90,3,90,4],[91,3,91,4],[40,1,40,2],[43,1,43,2],[46,1,46,2],[47,1,47,2],[48,1,48,2],[50,2,51,2],[61,2,62,2],[18,1,18,2],[25,1,25,2],[26,1,26,2],[27,1,27,2],[86,3,86,4],[112,1,112,3],[116,1,116,2],[118,1,118,2],[98,1,98,2],[95,3,95,4],[103,1,103,2],[88,3,88,4],[53,2,54,2],[55,2,56,2],[63,2,64,2],[57,1,57,3],[60,1,60,2],[65,1,65,3],[72,1,72,2],[85,1,85,2],[87,3,87,4],[68,1,68,2],[66,1,66,2],[67,1,67,3],[155,1,155,2],[166,1,166,2],[168,1,168,2],[170,1,170,2],[173,1,173,2],[140,1,140,2],[149,1,149,2],[152,1,152,2],[120,1,120,2],[123,1,123,2],[126,1,126,2],[128,1,128,2],[135,1,135,2],[244,1,244,2],[234,1,234,2],[235,1,235,2],[236,1,236,2],[237,1,237,2],[240,1,240,2],[216,1,216,2],[224,1,224,2],[228,1,228,2],[232,1,232,2],[233,1,233,2],[221,1,221,2],[210,1,210,2],[211,1,211,2],[212,1,212,2],[213,1,213,2],[204,1,204,2],[206,1,206,2],[207,1,207,2],[208,1,208,2],[209,1,209,2],[201,1,201,2],[202,1,202,2],[194,1,194,2],[195,1,195,2],[196,1,196,2],[197,1,197,2],[198,1,198,2],[175,1,175,2],[183,1,183,2],[185,1,185,2],[188,1,188,2],[191,1,191,2],[199,1,199,2],[200,1,200,2]]}
["CONTENTS OF THE BSCR MODEL",null,null,null,null,null,null,null,null,null,null,null,null,{"$f":"HYPERLINK(\"#'Index'!A1\",\"Return to Index\")","v":"Return to Index"},null,null,null,null,null,null,null,null,{"$f":"IF(C3=\"\",\"\",TEXT(DATE(YEAR(C3+1)-1,MONTH(C3+1),DAY(C3+1)),\"mm/dd/yyyy\"))","v":"01/01/2023"}]
[{"$f":"'Company Information'!C7","v":"Enter Company Name"},null,null,null,null,null,null,null,null,null,""]
["As At:",null,{"$f":" TEXT('Company Information'!C3,\"d mmmm yyyy\")","v":"31 December 2023"}]
[{"$f":"HYPERLINK(\"#'Submission'!B14\",\"If Confirm Message Check Box is Selected, include comments in Submission Tab Cell B14\")","v":"If Confirm Message Check Box is Selected, include comments in Submission Tab Cell B14"},null,null,null,null,null,null,{"$f":"COUNTIF(H13:H247,H6)","v":51},{"$f":"COUNTIF(I13:I247,\"Yes\")","v":0},null,{"$f":"COUNTIF(K13:K247,\"False.\")","v":0},{"$f":"COUNTIF(L13:L247,\"Yes\")","v":0}]
["Text in Column C Have Been Hyperlinked for Ease",null,null,null,null,null,null,"Form / Schedule ",null,null,"Validation Check"]
[null,"Company Information / Reference Schedules",null,"True / False","Difference $","Difference %",null,"Blank","Blank Confirm",null,false,"Unbal. Confirm",null,"Message"]
[1,{"$f":"HYPERLINK(\"#'Submission'!A1\",\"Submission Tab\")","v":"Submission Tab"}]
[{"$f":"A7+1","v":2},{"$f":"HYPERLINK(\"#'Index'!A1\",\"Index\")","v":"Index"}]
[3,{"$f":"HYPERLINK(\"#'Attachments'!A1\",\"Attachments\")","v":"Attachments"}]
[4,{"$f":"HYPERLINK(\"#'Company Information'!A1\",\"Company Information\")","v":"Company Information"}]
[5,{"$f":"HYPERLINK(\"#'Declaration'!A1\",\"Declaration\")","v":"Declaration"}]
[6,{"$f":"HYPERLINK(\"#'Information Sheet'!A1\",\"Information Sheet\")","v":"Information Sheet"}]
[null,"i)",{"$f":"HYPERLINK(\"#'Information Sheet'!H13\",\"Section (e)Filing Period Start Date check\")","v":"Section (e)Filing Period Start Date check"},{"$f":"IF('Information Sheet'!H13=0,\"Filing Period Start Date is Blank\",\"TRUE\")","v":"Filing Period Start Date is Blank"},null,null,null,{"$f":"IF(D13=\"Filing Period Start Date is Blank\",\"Blank\",\"\")","v":"Blank"},{"$f":"IF(H13=\"Blank\",IF(P13=TRUE,\"Yes\",\"\"),\"\")","v":""},null,{"$f":"IF(D13=\"False\",\"False.\",\"\")","v":""},{"$f":"IF(K13=\"\",\"\",IF(P13=TRUE,\"Yes\",\"\"))","v":""},null,null,null,false]
[null,"ii)",{"$f":"HYPERLINK(\"#'Information Sheet'!H18\",\"Section (h)Exchange Rate check\")","v":"Section (h)Exchange Rate check"},{"$f":"IF('Information Sheet'!H18=0,\"Exchange Rate is Blank\",\"TRUE\")","v":"TRUE"},null,null,null,{"$f":"IF(D14=\"Exchange Rate is Blank\",\"Blank\",\"\")","v":""},{"$f":"IF(H14=\"Blank\",IF(P14=TRUE,\"Yes\",\"\"),\"\")","v":""},null,{"$f":"IF(D14=\"False\",\"False.\",\"\")","v":""},{"$f":"IF(K14=\"\",\"\",IF(P14=TRUE,\"Yes\",\"\"))","v":""}]
[{"$f":"A12+1","v":7},{"$f":"HYPERLINK(\"#'SAR & Sanc. (All)'!A1\",\"SARS and Sanctions for All Insurers\")","v":"SARS and Sanctions for All Insurers"}]
[8,{"$f":"HYPERLINK(\"#'Zones'!A1\",\"Zones\")","v":"Zones"}]
[]
[null,"Statutory Forms & Economic Balance Sheet"]
[{"$f":"A16+1","v":9},{"$f":"HYPERLINK(\"#'Form 1SFS'!A1\",\"Form 1SFS - Statutory Balance Sheet\")","v":"Form 1SFS - Statutory Balance Sheet"}]
[null,"i)",{"$f":"HYPERLINK(\"#'Form 1SFS'!A1\",\"Unconsolidated Assets equals Total General Business Insurance Reserves & Other Liabilities and Statutory Capital & Surplus\")","v":"Unconsolidated Assets equals Total General Business Insurance Reserves & Other Liabilities and Statutory Capital & Surplus"},{"$f":"IF('Company Information'!$B$2=\"Unconsolidated BSCR Model\",\"N/A\",IF(+'Form 1SFS'!E100=0,\"Form 1SFS Unconsolidated is Blank\",'Form 1SFS'!E202))","v":"Form 1SFS Unconsolidated is Blank"},{"$f":"+'Form 1SFS'!E204","v":0},{"$f":"IF('Form 1SFS'!E100=0,0,('Form 1SFS'!E204)/'Form 1SFS'!E100)","v":0},null,{"$f":"IF(D20=\"Form 1SFS Unconsolidated is Blank\",\"Blank\",\"\")","v":"Blank"},{"$f":"IF(H20=\"Blank\",IF(P20=TRUE,\"Yes\",\"\"),\"\")","v":""},null,{"$f":"IF(D20=\"False\",\"False.\",\"\")","v":""},{"$f":"IF(K20=\"\",\"\",IF(P20=TRUE,\"Yes\",\"\"))","v":""},null,null,null,false]
[]
[null,"ii)",{"$f":"HYPERLINK(\"#'Form 1SFS'!A1\",\"Consolidated Assets equals Total General Business Insurance Reserves & Other Liabilities and Statutory Capital & Surplus\")","v":"Consolidated Assets equals Total General Business Insurance Reserves & Other Liabilities and Statutory Capital & Surplus"},{"$f":"IF('Company Information'!$B$2=\"Unconsolidated BSCR Model\",\"N/A\",IF(+'Form 1SFS'!M100=0,\"Form 1SFS Consolidated is Blank\",'Form 1SFS'!M202))","v":"Form 1SFS Consolidated is Blank"},{"$f":"+'Form 1SFS'!I204","v":0},{"$f":"IF('Form 1SFS'!I100=0,0,('Form 1SFS'!I204)/'Form 1SFS'!I100)","v":0},null,{"$f":"IF(D22=\"Form 1SFS Consolidated is Blank\",\"Blank\",\"\")","v":"Blank"},{"$f":"IF(H22=\"Blank\",IF(P22=TRUE,\"Yes\",\"\"),\"\")","v":""},null,{"$f":"IF(D22=\"False\",\"False.\",\"\")","v":""},{"$f":"IF(K22=\"\",\"\",IF(P22=TRUE,\"Yes\",\"\"))","v":""},null,null,null,false]
[]
[null,"iii)",{"$f":"HYPERLINK(\"#'Form 1SFS'!B237:O265\",\"Reconcilation of Gross Loss and Loss Expense Provision at End of Year equals Statutory Balance Sheet Total\")","v":"Reconcilation of Gross Loss and Loss Expense Provision at End of Year equals Statutory Balance Sheet Total"},{"$f":"IF('Company Information'!$B$2=\"Unconsolidated BSCR Model\",\"N/A\",IF(+'Form 1SFS'!M279=0,\"Reconciliation is Blank\",'Form 1SFS'!M281))","v":"Reconciliation is Blank"},{"$f":"+'Form 1SFS'!M283","v":0},{"$f":"IF(+'Form 1SFS'!E117=0,0,('Form 1SFS'!M283)/+'Form 1SFS'!E117)","v":0},null,{"$f":"IF(D24=\"Reconciliation is Blank\",\"Blank\",\"\")","v":"Blank"},{"$f":"IF(H24=\"Blank\",IF(P24=TRUE,\"Yes\",\"\"),\"\")","v":""},null,{"$f":"IF(D24=\"False\",\"False.\",\"\")","v":""},{"$f":"IF(K24=\"\",\"\",IF(P24=TRUE,\"Yes\",\"\"))","v":""},null,null,null,false]
[]
[{"$f":"A19+1","v":10},{"$f":"HYPERLINK(\"#'Form 2SFS'!A1\",\"Form 2SFS - Statutory Statement of Income\")","v":"Form 2SFS - Statutory Statement of Income"}]
[{"$f":"A26+1","v":11},{"$f":"HYPERLINK(\"#'Form 8SFS'!A1\",\"Form 8SFS - Statutory Statement of Capital and Surplus\")","v":"Form 8SFS - Statutory Statement of Capital and Surplus"}]
[{"$f":"A27+1","v":12},{"$f":"HYPERLINK(\"#'Form 1EBS'!A1\",\"Form 1EBS - Economic Balance Sheet\")","v":"Form 1EBS - Economic Balance Sheet"}]
[null,"i)",{"$f":"HYPERLINK(\"#'Form 1EBS'!A1\",\"Assets equals Total General Business Insurance Reserves & Other Liabilities and Statutory Capital & Surplus\")","v":"Assets equals Total General Business Insurance Reserves & Other Liabilities and Statutory Capital & Surplus"},{"$f":"IF(+'Form 1EBS'!F90=0,\"Form 1EBS is Blank\",'Form 1EBS'!F171)","v":"Form 1EBS is Blank"},{"$f":"'Form 1EBS'!F173","v":0},{"$f":"IF(+'Form 1EBS'!F90=0,0,('Form 1EBS'!F173/+'Form 1EBS'!F90))","v":0},null,{"$f":"IF(D29=\"Form 1EBS is Blank\",\"Blank\",\"\")","v":"Blank"},{"$f":"IF(H29=\"Blank\",IF(P29=TRUE,\"Yes\",\"\"),\"\")","v":""},null,{"$f":"IF(D29=\"False\",\"False.\",\"\")","v":""},{"$f":"IF(K29=\"\",\"\",IF(P29=TRUE,\"Yes\",\"\"))","v":""},null,null,null,false]
[]
[null,"ii)",{"$f":"HYPERLINK(\"#'Form 1EBS'!B222:H237\",\"Reconcilation of Gross Loss and Loss Expense Provision at End of Year equals Statutory Balance Sheet Total\")","v":"Reconcilation of Gross Loss and Loss Expense Provision at End of Year equals Statutory Balance Sheet Total"},{"$f":"IF(+'Form 1EBS'!F232=0,\"Reconciliation is Blank\",'Form 1EBS'!F234)","v":"Reconciliation is Blank"},{"$f":"'Form 1EBS'!F236","v":0},{"$f":"IF(+'Form 1EBS'!F115=0,0,IF('Form 1EBS'!F232=0,0,('Form 1EBS'!F236)/+'Form 1EBS'!F115))","v":0},null,{"$f":"IF(OR(D31=\"False\",D31=\"Reconciliation is Blank\"),\"Blank\",\"\")","v":"Blank"},{"$f":"IF(H31=\"Blank\",IF(P31=TRUE,\"Yes\",\"\"),\"\")","v":""},null,{"$f":"IF(D31=\"False\",\"False.\",\"\")","v":""},{"$f":"IF(K31=\"\",\"\",IF(P31=TRUE,\"Yes\",\"\"))","v":""}]
[]
[]
[null,"BSCR Capital Schedules"]
[{"$f":"A28+1","v":13},{"$f":"HYPERLINK(\"#'Schedule II'!A1\",\"Schedule II - Schedule of Fixed Income & Equity Investments By BSCR Rating\")","v":"Schedule II - Schedule of Fixed Income & Equity Investments By BSCR Rating"}]
[null,"i)",{"$f":"HYPERLINK(\"#'Schedule II'!A1\",\"Quoted & Unquoted Bond Debentures as reported on Schedule II equals Form 1SFS\")","v":"Quoted & Unquoted Bond Debentures as reported on Schedule II equals Form 1SFS"},{"$f":"IF((('Form 1SFS'!E18+'Form 1SFS'!I18+'Form 1SFS'!E31+'Form 1SFS'!I31))=0,\"N/A\",IF('Schedule II'!T22=0,\"Schedule is Blank\",'Schedule II'!T24))","v":"N/A"},{"$f":"+'Schedule II'!T26","v":0},{"$f":"IF(('Form 1SFS'!E18+'Form 1SFS'!E31)=0,0,'Schedule II'!T26/('Form 1SFS'!E18+'Form 1SFS'!E31))","v":0},null,{"$f":"IF(D36=\"Schedule is Blank\",\"Blank\",\"\")","v":""},{"$f":"IF(H36=\"Blank\",IF(P36=TRUE,\"Yes\",\"\"),\"\")","v":""},null,{"$f":"IF(D36=\"False\",\"False.\",\"\")","v":""},{"$f":"IF(K36=\"\",\"\",IF(P36=TRUE,\"Yes\",\"\"))","v":""}]
[]
[null,"ii)",{"$f":"HYPERLINK(\"#'Schedule II'!A32\",\"Quoted & Unquoted Equities as reported on Schedule II equals Form 1SFS\")","v":"Quoted & Unquoted Equities as reported on Schedule II equals Form 1SFS"},{"$f":"IF((('Form 1SFS'!E23+'Form 1SFS'!I23+'Form 1SFS'!E36+'Form 1SFS'!I36))=0,\"N/A\",IF('Schedule II'!T44=0,\"Schedule is Blank\",'Schedule II'!T46))","v":"N/A"},{"$f":"+'Schedule II'!T48","v":0},{"$f":"IF(('Form 1SFS'!E23+'Form 1SFS'!E36)=0,0,('Schedule II'!T48)/('Form 1SFS'!E23+'Form 1SFS'!E36))","v":0},null,{"$f":"IF(D38=\"Schedule is Blank\",\"Blank\",\"\")","v":""},{"$f":"IF(H38=\"Blank\",IF(P38=TRUE,\"Yes\",\"\"),\"\")","v":""},null,{"$f":"IF(D38=\"False\",\"False.\",\"\")","v":""},{"$f":"IF(K38=\"\",\"\",IF(P38=TRUE,\"Yes\",\"\"))","v":""}]
[null,"iii)",{"$f":"HYPERLINK(\"#'Schedule II'!A55\",\"Mortgage Loans as reported on Schedule II equals Form 1SFS\")","v":"Mortgage Loans as reported on Schedule II equals Form 1SFS"},{"$f":"IF('Form 1SFS'!E53=0,\"N/A\",IF('Schedule II'!D62=0,\"Schedule is Blank\",'Schedule II'!D64))","v":"N/A"},{"$f":"'Schedule II'!D66","v":0},{"$f":"IF('Form 1SFS'!E53=0,0,('Schedule II'!D66)/'Form 1SFS'!E53)","v":0},null,{"$f":"IF(D39=\"Schedule is Blank\",\"Blank\",\"\")","v":""},{"$f":"IF(H39=\"Blank\",IF(P39=TRUE,\"Yes\",\"\"),\"\")","v":""},null,{"$f":"IF(D39=\"False\",\"False.\",\"\")","v":""},{"$f":"IF(K39=\"\",\"\",IF(P39=TRUE,\"Yes\",\"\"))","v":""}]
[{"$f":"A35+1","v":14},{"$f":"HYPERLINK(\"#'Schedule IIA'!A1\",\"Schedule IIA - Schedule of Funds Held By Ceding Reinsurers in Segregated Accounts\")","v":"Schedule IIA - Schedule of Funds Held By Ceding Reinsurers in Segregated Accounts"}]
[{"$f":"A40+1","v":15},{"$f":"HYPERLINK(\"#'Schedule IIB (EBS)'!A1\",\"Schedule IIB (EBS)- Schedule of Fixed Income & Equity Investments By BSCR Rating\")","v":"Schedule IIB (EBS)- Schedule of Fixed Income & Equity Investments By BSCR Rating"}]
[null,"Interest rate-sensitive investments",null,{"$f":"IF('Investment Reconciliation'!G10=0,\"N/A\",IF('Investment Reconciliation'!G28=0,\"Schedule is Blank\",'Investment Reconciliation'!G30))","v":"N/A"},{"$f":"'Investment Reconciliation'!G32","v":0},{"$f":"IF('Investment Reconciliation'!G28=0,0,('Investment Reconciliation'!G32)/'Investment Reconciliation'!G28)","v":0},null,{"$f":"IF(D42=\"Schedule is Blank\",\"Blank\",\"\")","v":""},{"$f":"IF(H42=\"Blank\",IF(P42=TRUE,\"Yes\",\"\"),\"\")","v":""},null,{"$f":"IF(D42=\"False\",\"False.\",\"\")","v":""},{"$f":"IF(K42=\"\",\"\",IF(P42=TRUE,\"Yes\",\"\"))","v":""}]
[null,"Investments sensitive to equity prices",null,{"$f":"IF('Investment Reconciliation'!H10=0,\"N/A\",IF('Investment Reconciliation'!H28=0,\"Schedule is Blank\",'Investment Reconciliation'!H30))","v":"N/A"},{"$f":"'Investment Reconciliation'!H32","v":0},{"$f":"IF('Investment Reconciliation'!H28=0,0,('Investment Reconciliation'!H32)/'Investment Reconciliation'!H28)","v":0},null,{"$f":"IF(D43=\"Schedule is Blank\",\"Blank\",\"\")","v":""},{"$f":"IF(H43=\"Blank\",IF(P43=TRUE,\"Yes\",\"\"),\"\")","v":""},null,{"$f":"IF(D43=\"False\",\"False.\",\"\")","v":""},{"$f":"IF(K43=\"\",\"\",IF(P43=TRUE,\"Yes\",\"\"))","v":""}]
[{"$f":"A41+1","v":16},{"$f":"HYPERLINK(\"#'Schedule IIC (EBS)'!A1\",\"Schedule IIC (EBS) - Schedule of Funds Held By Ceding Reinsurers in Segregated Accounts\")","v":"Schedule IIC (EBS) - Schedule of Funds Held By Ceding Reinsurers in Segregated Accounts"}]
[null,"Interest rate-sensitive investments",null,{"$f":"IF('Investment Reconciliation'!I10=0,\"N/A\",IF('Investment Reconciliation'!I28=0,\"Schedule is Blank\",'Investment Reconciliation'!I30))","v":"N/A"},{"$f":"'Investment Reconciliation'!I32","v":0},{"$f":"IF('Investment Reconciliation'!I28=0,0,('Investment Reconciliation'!I32)/'Investment Reconciliation'!I28)","v":0},null,{"$f":"IF(D45=\"Schedule is Blank\",\"Blank\",\"\")","v":""},{"$f":"IF(H45=\"Blank\",IF(P45=TRUE,\"Yes\",\"\"),\"\")","v":""},null,{"$f":"IF(D45=\"False\",\"False.\",\"\")","v":""},{"$f":"IF(K45=\"\",\"\",IF(P45=TRUE,\"Yes\",\"\"))","v":""}]
[null,"Investments sensitive to equity prices",null,{"$f":"IF('Investment Reconciliation'!J10=0,\"N/A\",IF('Investment Reconciliation'!J28=0,\"Schedule is Blank\",'Investment Reconciliation'!J30))","v":"N/A"},{"$f":"'Investment Reconciliation'!J32","v":0},{"$f":"IF('Investment Reconciliation'!J28=0,0,('Investment Reconciliation'!J32)/'Investment Reconciliation'!J28)","v":0},null,{"$f":"IF(D46=\"Schedule is Blank\",\"Blank\",\"\")","v":""},{"$f":"IF(H46=\"Blank\",IF(P46=TRUE,\"Yes\",\"\"),\"\")","v":""},null,{"$f":"IF(D46=\"False\",\"False.\",\"\")","v":""},{"$f":"IF(K46=\"\",\"\",IF(P46=TRUE,\"Yes\",\"\"))","v":""}]
[{"$f":"A44+1","v":17},{"$f":"HYPERLINK(\"#'Schedule IID (EBS)'!A1\",\"Schedule IID (EBS) - Schedule of Segregated Accounts\")","v":"Schedule IID (EBS) - Schedule of Segregated Accounts"},null,{"$f":"IF(('Form 1EBS'!F75)=0,\"N/A\",IF('Schedule IID (EBS)'!D97=0,\"Schedule is Blank\",'Investment Reconciliation'!K30))","v":"N/A"},{"$f":"'Investment Reconciliation'!K32","v":0},{"$f":"IF('Investment Reconciliation'!K28=0,0,('Investment Reconciliation'!K32)/'Investment Reconciliation'!K28)","v":0},null,{"$f":"IF(D47=\"Schedule is Blank\",\"Blank\",\"\")","v":""},{"$f":"IF(H47=\"Blank\",IF(P47=TRUE,\"Yes\",\"\"),\"\")","v":""},null,{"$f":"IF(D47=\"False\",\"False.\",\"\")","v":""},{"$f":"IF(K47=\"\",\"\",IF(P47=TRUE,\"Yes\",\"\"))","v":""}]
[{"$f":"A47+1","v":18},{"$f":"HYPERLINK(\"#'Schedule IIE (EBS)'!A1\",\"Schedule IIE (EBS) - Schedule of Deposit Assets & Liabilities\")","v":"Schedule IIE (EBS) - Schedule of Deposit Assets & Liabilities"},null,{"$f":"IF('Form 1EBS'!F76=0,\"N/A\",IF('Schedule IIE (EBS)'!D97=0,\"Schedule is Blank\",'Investment Reconciliation'!M30))","v":"N/A"},{"$f":"'Investment Reconciliation'!M32","v":0},{"$f":"IF('Investment Reconciliation'!M28=0,0,('Investment Reconciliation'!M32)/'Investment Reconciliation'!M28)","v":0},null,{"$f":"IF(D48=\"Schedule is Blank\",\"Blank\",\"\")","v":""},{"$f":"IF(H48=\"Blank\",IF(P48=TRUE,\"Yes\",\"\"),\"\")","v":""},null,{"$f":"IF(D48=\"False\",\"False.\",\"\")","v":""},{"$f":"IF(K48=\"\",\"\",IF(P48=TRUE,\"Yes\",\"\"))","v":""}]
[{"$f":"A48+1","v":19},{"$f":"HYPERLINK(\"#'Schedule IIF (EBS)'!A1\",\"Schedule IIF (EBS) - Schedule of Sundry Assets\")","v":"Schedule IIF (EBS) - Schedule of Sundry Assets"},null,{"$f":"IF(('Form 1EBS'!F78+'Form 1EBS'!F80+'Form 1EBS'!F81)=0,\"N/A\",IF('Schedule IIF (EBS)'!D97=0,\"Schedule is Blank\",'Investment Reconciliation'!O30))","v":"N/A"},{"$f":"'Investment Reconciliation'!O32","v":0},{"$f":"IF('Investment Reconciliation'!O28=0,0,('Investment Reconciliation'!O32)/'Investment Reconciliation'!O28)","v":0},null,{"$f":"IF(D49=\"Schedule is Blank\",\"Blank\",\"\")","v":""},{"$f":"IF(H49=\"Blank\",IF(P49=TRUE,\"Yes\",\"\"),\"\")","v":""},null,{"$f":"IF(D49=\"False\",\"False.\",\"\")","v":""},{"$f":"IF(K49=\"\",\"\",IF(P49=TRUE,\"Yes\",\"\"))","v":""}]
[{"$f":"A49+1","v":20},{"$f":"HYPERLINK(\"#'Schedule III'!A1\",\"Schedule III - Schedule of Net Loss and Loss Expense Provisions By Line of Business\")","v":"Schedule III - Schedule of Net Loss and Loss Expense Provisions By Line of Business"}]
[null,"i)",{"$f":"HYPERLINK(\"#'Schedule III'!A1\",\"Net Loss & Loss Expense Provision as reported on Schedule III equals Form 1SFS\")","v":"Net Loss & Loss Expense Provision as reported on Schedule III equals Form 1SFS"},{"$f":"IF('Form 1SFS'!E124=0,\"N/A\",IF('Schedule III'!E33=0,\"Schedule is Blank\",'Schedule III'!E35))","v":"N/A"},{"$f":"'Schedule III'!E37","v":0},{"$f":"IF('Form 1SFS'!E124=0,0,('Schedule III'!E37)/'Form 1SFS'!E124)","v":0},null,{"$f":"IF(D51=\"Schedule is Blank\",\"Blank\",\"\")","v":""},{"$f":"IF(H51=\"Blank\",IF(P51=TRUE,\"Yes\",\"\"),\"\")","v":""},null,{"$f":"IF(D51=\"False\",\"False.\",\"\")","v":""},{"$f":"IF(K51=\"\",\"\",IF(P51=TRUE,\"Yes\",\"\"))","v":""},null,null,null,false]
[]
[{"$f":"A50+1","v":21},{"$f":"HYPERLINK(\"#'Schedule III (EBS)'!A1\",\"Schedule III (EBS) - Schedule of Net Loss and Loss Expense Provisions By Line of Business\")","v":"Schedule III (EBS) - Schedule of Net Loss and Loss Expense Provisions By Line of Business"}]
[null,"i)",{"$f":"HYPERLINK(\"#'Schedule III (EBS)'!A1\",\"Net Loss & Loss Expense Provision as reported on Schedule III (EBS) equals Form 1EBS\")","v":"Net Loss & Loss Expense Provision as reported on Schedule III (EBS) equals Form 1EBS"},{"$f":"IF('Form 1EBS'!F115=0,\"N/A\",IF('Schedule III (EBS)'!F34=0,\"Schedule is Blank\",'Schedule III (EBS)'!F38))","v":"N/A"},{"$f":"'Schedule III (EBS)'!F40","v":0},{"$f":"IF('Form 1EBS'!F115=0,0,('Schedule III (EBS)'!F40)/'Form 1EBS'!F115)","v":0},null,{"$f":"IF(D54=\"Schedule is Blank\",\"Blank\",\"\")","v":""},{"$f":"IF(H54=\"Blank\",IF(P54=TRUE,\"Yes\",\"\"),\"\")","v":""},null,{"$f":"IF(D54=\"False\",\"False.\",\"\")","v":""},{"$f":"IF(K54=\"\",\"\",IF(P54=TRUE,\"Yes\",\"\"))","v":""}]
[]
[null,"ii)",{"$f":"HYPERLINK(\"#'Schedule IIIA (EBS)'!A1\",\"Insurer has taken advantage of Net Loss & Loss Expense Provision Geographic Diversification\")","v":"Insurer has taken advantage of Net Loss & Loss Expense Provision Geographic Diversification"},{"$f":"IF('Schedule IIIA (EBS)'!X34=0,\"No\",\"Yes\")","v":"No"}]
[]
[{"$f":"A53+1","v":22},{"$f":"HYPERLINK(\"#'Schedule IIIA (EBS)'!A1\",\"Schedule IIIA (EBS) - Schedule of Geographic Diversification of Net Loss and Loss Expense Provisions\")","v":"Schedule IIIA (EBS) - Schedule of Geographic Diversification of Net Loss and Loss Expense Provisions"}]
[{"$f":"A58+1","v":23},{"$f":"HYPERLINK(\"#'Schedule IV'!A1\",\"Schedule IV - Schedule of Premiums Written By Line of Business\")","v":"Schedule IV - Schedule of Premiums Written By Line of Business"}]
[null,"i)",{"$f":"HYPERLINK(\"#'Schedule IV'!A1\",\"Net Premium Written as reported on Schedule IV equals Form 2SFS\")","v":"Net Premium Written as reported on Schedule IV equals Form 2SFS"},{"$f":"IF('Company Information'!$B$2=\"Unconsolidated BSCR Model\",\"N/A\",IF('Form 2SFS'!E18=0,\"N/A\",IF('Schedule IV'!Q35=0,\"Schedule is Blank\",'Schedule IV'!Q37)))","v":"N/A"},{"$f":"+'Schedule IV'!Q39","v":0},{"$f":"IF('Form 2SFS'!E18=0,0,('Schedule IV'!Q39)/'Form 2SFS'!E18)","v":0},null,{"$f":"IF(OR(D60=\"False\",D60=\"Schedule is Blank\"),\"Blank\",\"\")","v":""},{"$f":"IF(H60=\"Blank\",IF(P60=TRUE,\"Yes\",\"\"),\"\")","v":""},null,{"$f":"IF(D60=\"False\",\"False.\",\"\")","v":""},{"$f":"IF(K60=\"\",\"\",IF(P60=TRUE,\"Yes\",\"\"))","v":""},null,null,null,false]
[{"$f":"A59+1","v":24},{"$f":"HYPERLINK(\"#'Schedule IVA (EBS)'!A1\",\"Schedule IVA (EBS) - Schedule of Premiums Written By Line of Business\")","v":"Schedule IVA (EBS) - Schedule of Premiums Written By Line of Business"}]
[null,"i)",{"$f":"HYPERLINK(\"#'Schedule IVA (EBS)'!A1\",\"Net Premium Written as reported on Schedule IVA (EBS) equals Consolidated Form 2SFS\")","v":"Net Premium Written as reported on Schedule IVA (EBS) equals Consolidated Form 2SFS"},{"$f":"IF('Form 2SFS'!M18=0,\"N/A\",IF('Schedule IVA (EBS)'!Q35=0,\"Schedule is Blank\",'Schedule IVA (EBS)'!Q37))","v":"N/A"},{"$f":"+'Schedule IVA (EBS)'!Q39","v":0},{"$f":"IF('Form 2SFS'!M18=0,0,('Schedule IVA (EBS)'!Q39)/'Form 2SFS'!M18)","v":0},null,{"$f":"IF(D62=\"Schedule is Blank\",\"Blank\",\"\")","v":""},{"$f":"IF(H62=\"Blank\",IF(P62=TRUE,\"Yes\",\"\"),\"\")","v":""},null,{"$f":"IF(D62=\"False\",\"False.\",\"\")","v":""},{"$f":"IF(K62=\"\",\"\",IF(P62=TRUE,\"Yes\",\"\"))","v":""},null,null,null,false]
[]
[null,"ii)",{"$f":"HYPERLINK(\"#'Schedule IVC (EBS)'!A1\",\"Insurer has taken advantage of Net Premium Written Geographic Diversification\")","v":"Insurer has taken advantage of Net Premium Written Geographic Diversification"},{"$f":"IF('Schedule IVC (EBS)'!X33=0,\"No\",\"Yes\")","v":"No"}]
[]
[{"$f":"A61+1","v":25},{"$f":"HYPERLINK(\"#'Schedule IVC (EBS)'!A1\",\"Schedule IVC (EBS) - Schedule of Geographic Diversification of Premiums Written\")","v":"Schedule IVC (EBS) - Schedule of Geographic Diversification of Premiums Written"}]
[{"$f":"A66+1","v":26},{"$f":"HYPERLINK(\"#'Schedule IVD'!A1\",\"Schedule IVD - Exposure Measure By Line of Business\")","v":"Schedule IVD - Exposure Measure By Line of Business"},null,{"$f":"IF('Form 2SFS'!M18=0,\"N/A\",IF(('Schedule IVD (EBS)'!G33+'Schedule IVD (EBS)'!K33+'Schedule IVD (EBS)'!M33)=0,\"Schedule is Blank\",\"True\"))","v":"N/A"},null,null,null,{"$f":"IF(D67=\"Schedule is Blank\",\"Blank\",\"\")","v":""},{"$f":"IF(H67=\"Blank\",IF(P67=TRUE,\"Yes\",\"\"),\"\")","v":""},null,{"$f":"IF(D67=\"False\",\"False.\",\"\")","v":""},{"$f":"IF(K67=\"\",\"\",IF(P67=TRUE,\"Yes\",\"\"))","v":""},null,null,null,false]
[{"$f":"A67+1","v":27},{"$f":"HYPERLINK(\"#'Schedule IVE (EBS)'!A1\",\"Schedule IVE (EBS) - Schedule of Geographic Diversification of Exposure Measure\")","v":"Schedule IVE (EBS) - Schedule of Geographic Diversification of Exposure Measure"}]
[{"$f":"A68+1","v":28},{"$f":"HYPERLINK(\"#'Schedule IVF'!A1\",\"Schedule IVF - Exposure Of Risk\")","v":"Schedule IVF - Exposure Of Risk"}]
[null,"i)",{"$f":"HYPERLINK(\"#'Schedule IVF'!F53\",\"General Business Gross Premium Written\")","v":"General Business Gross Premium Written"},{"$f":"IF(('Form 1SFS'!$E$100+'Form 1SFS'!$I$100)=0,IF('Form 2SFS'!$M$14=0,\"N/A\",IF(('Schedule IVF'!$E$52+'Schedule IVF'!$F$52)=0,\"Schedule is Blank\",'Schedule IVF'!$F$53)), IF('Form 2SFS'!$E$14=0,\"N/A\",IF(('Schedule IVF'!$E$52+'Schedule IVF'!$F$52)=0,\"Schedule is Blank\",'Schedule IVF'!$F$53)))","v":"N/A"},{"$f":"'Schedule IVF'!$F$55","v":0},{"$f":"IF(('Form 1SFS'!$E$100+'Form 1SFS'!$I$100)=0,IF('Form 2SFS'!$M$14=0,0,'Schedule IVF'!$F$55/'Form 2SFS'!$M$14),IF('Form 2SFS'!$E$14=0,0,'Schedule IVF'!$F$55/'Form 2SFS'!$E$14))","v":0},null,{"$f":"IF(OR(D70=\"False\",D70=\"Schedule is Blank\"),\"Blank\",\"\")","v":""},{"$f":"IF(H70=\"Blank\",IF(P70=TRUE,\"Yes\",\"\"),\"\")","v":""},null,{"$f":"IF(D70=\"False\",\"False.\",\"\")","v":""},{"$f":"IF(K70=\"\",\"\",IF(P70=TRUE,\"Yes\",\"\"))","v":""}]
[null,"ii)",{"$f":"HYPERLINK(\"#'Schedule IVF'!I53\",\"General Business Net Premium Written\")","v":"General Business Net Premium Written"},{"$f":"IF(('Form 1SFS'!$E$100+'Form 1SFS'!$I$100)=0,IF('Form 2SFS'!$M$18=0,\"N/A\",IF(('Schedule IVF'!$I$52)=0,\"Schedule is Blank\",'Schedule IVF'!$I$53)), IF('Form 2SFS'!$E$18=0,\"N/A\",IF(('Schedule IVF'!$I$52)=0,\"Schedule is Blank\",'Schedule IVF'!$I$53)))","v":"N/A"},{"$f":"'Schedule IVF'!$I$55","v":0},{"$f":"IF(('Form 1SFS'!$E$100+'Form 1SFS'!$I$100)=0,IF('Form 2SFS'!$M$18=0,0,'Schedule IVF'!$I$55/'Form 2SFS'!$M$18),IF('Form 2SFS'!$E$18=0,0,'Schedule IVF'!$I$55/'Form 2SFS'!$E$18))","v":0},null,{"$f":"IF(OR(D71=\"False\",D71=\"Schedule is Blank\"),\"Blank\",\"\")","v":""},{"$f":"IF(H71=\"Blank\",IF(P71=TRUE,\"Yes\",\"\"),\"\")","v":""},null,{"$f":"IF(D71=\"False\",\"False.\",\"\")","v":""},{"$f":"IF(K71=\"\",\"\",IF(P71=TRUE,\"Yes\",\"\"))","v":""}]
[null,"iii)",{"$f":"HYPERLINK(\"#'Schedule IVF'!L53\",\"General Business Gross Reserves\")","v":"General Business Gross Reserves"},{"$f":"IF(('Form 1SFS'!$E$100+'Form 1SFS'!$I$100)=0,IF('Form 1SFS'!$M$117=0,\"N/A\",IF(('Schedule IVF'!$L$52)=0,\"Schedule is Blank\",'Schedule IVF'!$L$53)), IF('Form 1SFS'!$E$117=0,\"N/A\",IF(('Schedule IVF'!$L$52)=0,\"Schedule is Blank\",'Schedule IVF'!$L$53)))","v":"N/A"},{"$f":"'Schedule IVF'!$L$55","v":0},{"$f":"IF(('Form 1SFS'!$E$100+'Form 1SFS'!$I$100)=0,IF('Form 1SFS'!$M$117=0,0,'Schedule IVF'!$L$55/'Form 1SFS'!$M$117),IF('Form 1SFS'!$E$117=0,0,'Schedule IVF'!$L$55/'Form 1SFS'!$E$117))","v":0},null,{"$f":"IF(OR(D72=\"False\",D72=\"Schedule is Blank\"),\"Blank\",\"\")","v":""},{"$f":"IF(H72=\"Blank\",IF(P72=TRUE,\"Yes\",\"\"),\"\")","v":""},null,{"$f":"IF(D72=\"False\",\"False.\",\"\")","v":""},{"$f":"IF(K72=\"\",\"\",IF(P72=TRUE,\"Yes\",\"\"))","v":""}]
[{"$f":"A69+1","v":29},{"$f":"HYPERLINK(\"#'Schedule V'!A1\",\"Schedule V - Schedule of Risk Management\")","v":"Schedule V - Schedule of Risk Management"}]
[null,"i)",{"$f":"HYPERLINK(\"#'Schedule V'!H10\",\"Effective Duration of Assets\")","v":"Effective Duration of Assets"},{"$f":"IF('Schedule V'!H10=0,\"Asset Duration is not Reported\",\"True\")","v":"Asset Duration is not Reported"},null,null,null,{"$f":"IF(D74=\"Asset Duration is not Reported\",\"Blank\",\"\")","v":"Blank"},{"$f":"IF(H74=\"Blank\",IF(P74=TRUE,\"Yes\",\"\"),\"\")","v":""}]
[null,"ii)",{"$f":"HYPERLINK(\"#'Schedule V'!H12\",\"Effective Duration of Liabilities\")","v":"Effective Duration of Liabilities"},{"$f":"IF('Schedule V'!H12=0,\"Liability Duration is not Reported\",\"True\")","v":"Liability Duration is not Reported"},null,null,null,{"$f":"IF(D75=\"Liability Duration is not Reported\",\"Blank\",\"\")","v":"Blank"},{"$f":"IF(H75=\"Blank\",IF(P75=TRUE,\"Yes\",\"\"),\"\")","v":""}]
[null,"iii)",{"$f":"HYPERLINK(\"#'Schedule V'!H16\",\"Gross Probable Maximum Loss\")","v":"Gross Probable Maximum Loss"},{"$f":"IF('Schedule V'!H16=0,\"Gross PML is not Reported\",\"True\")","v":"Gross PML is not Reported"}]
[null,"iv)",{"$f":"HYPERLINK(\"#'Schedule X(a)'!F11\",\"Gross Probable Maximum Loss to Catastrophe Risk Return 100 Year Aggregate\")","v":"Gross Probable Maximum Loss to Catastrophe Risk Return 100 Year Aggregate"},{"$f":"IF('Schedule V'!H16=0,\"Gross PML is not Reported\",IF('Schedule X(a)'!F10=0,\"Schedule X(a) is Blank\",IF(ROUND('Schedule V'!H16-(IF(CONFIGURATION!$C$12=\"Units\",1000000*'Schedule X(a)'!F10,1000*'Schedule X(a)'!F10)),0)=0,\"True\",\"False\")))","v":"Gross PML is not Reported"},{"$f":"(IF(CONFIGURATION!$C$12=\"Units\",'Schedule X(a)'!F10*1000000,'Schedule X(a)'!F10*1000))-'Schedule V'!H16","v":0},{"$f":"IF('Schedule X(a)'!F10=0,0,((IF(CONFIGURATION!$C$12=\"Units\",'Schedule X(a)'!F10*1000000,'Schedule X(a)'!F10*1000))-'Schedule V'!H16)/(IF(CONFIGURATION!$C$12=\"Units\",'Schedule X(a)'!F10*1000000,'Schedule X(a)'!F10*1000)))","v":0}]
[]
[null,"v)",{"$f":"HYPERLINK(\"#'Schedule V'!H18\",\"Net Probable Maximum Loss\")","v":"Net Probable Maximum Loss"},{"$f":"IF('Schedule V'!H18=0,\"Net PML is not Reported\",\"True\")","v":"Net PML is not Reported"}]
[null,"vi)",{"$f":"HYPERLINK(\"#'Schedule X(a)'!H11\",\"Net Probable Maximum Loss to Catastrophe Risk Return 100 Year Aggregate\")","v":"Net Probable Maximum Loss to Catastrophe Risk Return 100 Year Aggregate"},{"$f":"IF('Schedule V'!H18=0,\"Net PML is not Reported\",IF('Schedule X(a)'!H10=0,\"Schedule X(a) is Blank\",IF(ROUND(((IF(CONFIGURATION!$C$12=\"Units\",'Schedule X(a)'!H10*1000000,'Schedule X(a)'!H10*1000))-'Schedule V'!H18),0)=0,\"True\",\"False\")))","v":"Net PML is not Reported"},{"$f":"(IF(CONFIGURATION!$C$12=\"Units\",'Schedule X(a)'!H10*1000000,'Schedule X(a)'!H10*1000))-'Schedule V'!H18","v":0},{"$f":"IF('Schedule X(a)'!H10=0,0,(IF(CONFIGURATION!$C$12=\"Units\",'Schedule X(a)'!H10*1000000,'Schedule X(a)'!H10*1000)-'Schedule V'!H18)/(IF(CONFIGURATION!$C$12=\"Units\",'Schedule X(a)'!H10*1000000,'Schedule X(a)'!H10*1000)))","v":0}]
[null,"vii)",{"$f":"HYPERLINK(\"#'Schedule V'!H20\",\"Average Annual Loss\")","v":"Average Annual Loss"},{"$f":"IF('Schedule V'!H20=0,\"Avg Annual Loss is not Reported\",\"True\")","v":"Avg Annual Loss is not Reported"}]
[null,"viii)",{"$f":"HYPERLINK(\"#'Schedule X(a)'!J17\",\"Average Annual Loss (Sch X(a)) Net is greater than Sch V\")","v":"Average Annual Loss (Sch X(a)) Net is greater than Sch V"},{"$f":"IF('Schedule V'!H20=0,\"Average Annual Loss is not Reported\",IF('Schedule X(a)'!J16=0,\"Schedule X(a) is Blank\",IF((('Schedule X(a)'!J16*1000)>'Schedule V'!H20),\"True\",\"False\")))","v":"Average Annual Loss is not Reported"}]
[null,"ix)",{"$f":"HYPERLINK(\"#'Schedule V'!H22\",\"Actual attritional Losses and Large Claims Losses - Relevant Year\")","v":"Actual attritional Losses and Large Claims Losses - Relevant Year"},{"$f":"IF('Schedule V'!H22=0,\"Attritional Loss is not Reported\",\"True\")","v":"Attritional Loss is not Reported"}]
[null,"x)",{"$f":"HYPERLINK(\"#'Schedule V'!H25:H29\",\"Property Catastrophe Recoverables\")","v":"Property Catastrophe Recoverables"},{"$f":"IF('Schedule V'!H29=0,\"Property Cat Rec. is not Reported\",\"True\")","v":"Property Cat Rec. is not Reported"}]
[null,"xi)",{"$f":"HYPERLINK(\"#'Schedule V'!H34:H38\",\"Summary of Projected Performance\")","v":"Summary of Projected Performance"},{"$f":"IF(COUNTIF('Schedule V'!H34:H36,0)>0,\"Projected Performance is not Reported\",\"True\")","v":"Projected Performance is not Reported"},null,null,null,{"$f":"IF(D85=\"Projected Performance is not Reported\",\"Blank\",\"\")","v":"Blank"},{"$f":"IF(H85=\"Blank\",IF(P85=TRUE,\"Yes\",\"\"),\"\")","v":""}]
[{"$f":"A73+1","v":30},{"$f":"HYPERLINK(\"#'Schedule V(a)'!A1\",\"Schedule V(a) Schedule of Risk Management - Governance and Group Structure\")","v":"Schedule V(a) Schedule of Risk Management - Governance and Group Structure"}]
[null,"i)",{"$f":"HYPERLINK(\"#'Schedule V(a)'!E11\",\"Directors - Country of Residence\")","v":"Directors - Country of Residence"},{"$f":"IF('Schedule V(a)'!E12=0,\"Directors- Country of Residence is not Reported\",\"True\")","v":"Directors- Country of Residence is not Reported"},null,null,null,{"$f":"IF(D87=\"Directors- Country of Residence is not Reported\",\"Blank\",\"\")","v":"Blank"},{"$f":"IF(H87=\"Blank\",IF(P87=TRUE,\"Yes\",\"\"),\"\")","v":""},null,null,null,null,null,null,false]
[null,"ii)",{"$f":"HYPERLINK(\"#'Schedule V(a)'!H11\",\"Directors - Status\")","v":"Directors - Status"},{"$f":"IF('Schedule V(a)'!H12=0,\"Directors- Status is not Reported\",\"True\")","v":"True"},null,null,null,{"$f":"IF(D88=\"Directors- Status is not Reported\",\"Blank\",\"\")","v":""},"",null,null,null,null,null,null,false]
[null,"iii)",{"$f":"HYPERLINK(\"#'Schedule V(a)'!E36\",\"Chief & Senior Executives - Residence\")","v":"Chief & Senior Executives - Residence"},{"$f":"IF('Schedule V(a)'!E37=0,\"Chief & Senior Executives - Country of Residence is not Reported\",\"True\")","v":"Chief & Senior Executives - Country of Residence is not Reported"},null,null,null,{"$f":"IF(D89=\"Chief & Senior Executives - Country of Residence is not Reported\",\"Blank\",\"\")","v":"Blank"},"",null,null,null,null,null,null,false]
[null,"iv)",{"$f":"HYPERLINK(\"#'Schedule V(a)'!H36\",\"Chief & Senior Executives - Employee Arrangement\")","v":"Chief & Senior Executives - Employee Arrangement"},{"$f":"IF('Schedule V(a)'!H37=0,\"Chief & Senior Executives - Employee Arrangement is not Reported\",\"True\")","v":"True"},null,null,null,{"$f":"IF(D90=\"Chief & Senior Executives - Employee Arrangement is not Reported\",\"Blank\",\"\")","v":""},"",null,null,null,null,null,null,false]
[null,"v)",{"$f":"HYPERLINK(\"#'Schedule V(a)'!I36\",\"Chief & Senior Executives - Description of Responsibilities\")","v":"Chief & Senior Executives - Description of Responsibilities"},{"$f":"IF('Schedule V(a)'!I37=0,\"Chief & Senior Executives - Description of Responsibilities is not Reported\",\"True\")","v":"True"},null,null,null,{"$f":"IF(D91=\"Chief & Senior Executives - Description of Responsibilities is not Reported\",\"Blank\",\"\")","v":""},"",null,null,null,null,null,null,false]
[null,"vi)",{"$f":"HYPERLINK(\"#'Schedule V(a)'!C60:G65\",\"Jurisdiction of Activities\")","v":"Jurisdiction of Activities"},{"$f":"IF(COUNTIF('Schedule V(a)'!E65:E68,0)=0,\"True\",\"Jurisdiction of Activities is not Reported\")","v":"True"},null,null,null,{"$f":"IF(D92=\"Jurisdiction of Activities is not Reported\",\"Blank\",\"\")","v":""},""]
[null,"vii)",{"$f":"HYPERLINK(\"#'Schedule V(a)'!C67:G74\",\"Jurisdiction of Operations\")","v":"Jurisdiction of Operations"},{"$f":"IF(COUNTIF('Schedule V(a)'!E72:E77,0)=0,\"True\",\"Jurisdiction of Operations is not Reported\")","v":"True"},null,null,null,{"$f":"IF(D93=\"Jurisdiction of Operations is not Reported\",\"Blank\",\"\")","v":""},""]
[null,"viii)",{"$f":"HYPERLINK(\"#'Schedule V(a)'!h67:h74\",\"Services Outsourced\")","v":"Services Outsourced"},{"$f":"IF(COUNTIF('Schedule V(a)'!H72:H77,0)=0,\"True\",\"Services Outsourced is not Reported\")","v":"True"},null,null,null,{"$f":"IF(D94=\"Services Outsourced is not Reported\",\"Blank\",\"\")","v":""},"",null,null,null,null,null,null,false]
[null,"ix)",{"$f":"HYPERLINK(\"#'Schedule V(a)'!G76\",\"Number of Employees in Bermuda\")","v":"Number of Employees in Bermuda"},{"$f":"IF('Schedule V(a)'!G98=0,\"Numbers of Employees in Bermuda is not Reported\",\"True\")","v":"Numbers of Employees in Bermuda is not Reported"},null,null,null,{"$f":"IF(D95=\"Numbers of Employees in Bermuda is not Reported\",\"Blank\",\"\")","v":"Blank"},"",null,null,null,null,null,null,false]
[null,"x)",{"$f":"HYPERLINK(\"#'Schedule V(a)'!G92:G94\",\"Group Financial Position\")","v":"Group Financial Position"},{"$f":"IF(COUNTIF('Schedule V(a)'!G123:G125,0)=0,\"True\",\"Group Financial Position is not Reported\")","v":"Group Financial Position is not Reported"},null,null,null,{"$f":"IF(D96=\"Group Financial Position is not Reported\",\"Blank\",\"\")","v":"Blank"},""]
[null,"xi)",{"$f":"HYPERLINK(\"#'Schedule V(a)'!C99:G107\",\"Largest Balance Sheet Values\")","v":"Largest Balance Sheet Values"},{"$f":"IF(COUNTIF('Schedule V(a)'!C130:G138,0)=45,\"Largest Values is not Reported\",\"True\")","v":"Largest Values is not Reported"},null,null,null,{"$f":"IF(D97=\"Largest Values is not Reported\",\"Blank\",\"\")","v":"Blank"},""]
[null,"xii)",{"$f":"HYPERLINK(\"#'Schedule V(a)'!C111\",\"Subsequent Events\")","v":"Subsequent Events"},{"$f":"IF('Schedule V(a)'!C142=0,\"Subsequent Events is not Reported\",\"True\")","v":"Subsequent Events is not Reported"},null,null,null,{"$f":"IF(D98=\"Subsequent Events is not Reported\",\"Blank\",\"\")","v":"Blank"},"",null,null,null,null,null,null,false]
[{"$f":"A86+1","v":31},{"$f":"HYPERLINK(\"#'Schedule V(c)'!A1\",\"Schedule V(c) Schedule of Risk Management - Intra-Group Exposures\")","v":"Schedule V(c) Schedule of Risk Management - Intra-Group Exposures"}]
[null,"i)",{"$f":"HYPERLINK(\"#'Schedule V(c)'!E9\",\"Intra-Group Transactions\")","v":"Intra-Group Transactions"},{"$f":"IF('Schedule V(c)'!C15=0,\"Intra-Group Transactions is not Reported\",\"True\")","v":"Intra-Group Transactions is not Reported"},null,null,null,{"$f":"IF(D100=\"Intra-Group Transactions is not Reported\",\"Blank\",\"\")","v":"Blank"},{"$f":"IF(H100=\"Blank\",IF(P100=TRUE,\"Yes\",\"\"),\"\")","v":""},null,null,null,null,null,null,false]
[null,"ii)",{"$f":"HYPERLINK(\"#'Schedule V(c)'!E43\",\"Intra-Group Reinsurance & Retrocession\")","v":"Intra-Group Reinsurance & Retrocession"},{"$f":"IF('Schedule V(c)'!C48=0,\"Intra-Group R/I is not Reported\",\"True\")","v":"Intra-Group R/I is not Reported"},null,null,null,{"$f":"IF(D101=\"Intra-Group R/I is not Reported\",\"Blank\",\"\")","v":"Blank"},{"$f":"IF(H101=\"Blank\",IF(P101=TRUE,\"Yes\",\"\"),\"\")","v":""}]
[null,"iii)",{"$f":"HYPERLINK(\"#'Schedule V(c)'!J74\",\"Proportion of Internal Reinsurance\")","v":"Proportion of Internal Reinsurance"},{"$f":"IF('Schedule V(c)'!L74=0,\"Proportion R/I is not Reported\",\"True\")","v":"Proportion R/I is not Reported"},null,null,null,{"$f":"IF(D102=\"Proportion R/I is not Reported\",\"Blank\",\"\")","v":"Blank"},{"$f":"IF(H102=\"Blank\",IF(P102=TRUE,\"Yes\",\"\"),\"\")","v":""}]
[null,"iv)",{"$f":"HYPERLINK(\"#'Schedule V(c)'!E79\",\"10 Largest Counterparty Exposures\")","v":"10 Largest Counterparty Exposures"},{"$f":"IF('Schedule V(c)'!C83=0,\"Counterparty Exposure is not Completed\",\"True\")","v":"Counterparty Exposure is not Completed"},null,null,null,{"$f":"IF(D103=\"Counterparty Exposure is not Completed\",\"Blank\",\"\")","v":"Blank"},{"$f":"IF(H103=\"Blank\",IF(P103=TRUE,\"Yes\",\"\"),\"\")","v":""}]
[{"$f":"A99+1","v":32},{"$f":"HYPERLINK(\"#'Schedule V(e)'!A1\",\"Schedule V(e) Schedule of Risk Management - Stress & Scenario Tests\")","v":"Schedule V(e) Schedule of Risk Management - Stress & Scenario Tests"}]
[null,"i)",{"$f":"HYPERLINK(\"#'Schedule V(e)'!F13:G18\",\"Financial Market Scenarios\")","v":"Financial Market Scenarios"},{"$f":"IF('Schedule V(e)'!I8=\"\",IF(COUNTIF('Schedule V(e)'!F12:G19,0)>0,\"Financial Market Scenario is not Reported\",\"True\"),\"True\")","v":"Financial Market Scenario is not Reported"},null,null,null,{"$f":"IF(D105=\"Financial Market Scenario is not Reported\",\"Blank\",\"\")","v":"Blank"},{"$f":"IF(H105=\"Blank\",IF(P105=TRUE,\"Yes\",\"\"),\"\")","v":""}]
[null,"ii)",{"$f":"HYPERLINK(\"#'Schedule V(e)'!I34:J52\",\"Underwriting Loss Scenarios Completed\")","v":"Underwriting Loss Scenarios Completed"},{"$f":"IF('Company Information'!F11=\"Class 3A\",\"N/A\",IF(COUNTIF('Schedule V(e)'!H53:H71,0)=19,\"Underwriting Loss Scenarios is not Reported\",\"True\"))","v":"N/A"},null,null,null,{"$f":"IF(D106=\"Underwriting Loss Scenarios is not Reported\",\"Blank\",\"\")","v":""},{"$f":"IF(H106=\"Blank\",IF(P106=TRUE,\"Yes\",\"\"),\"\")","v":""}]
[null,"iii)",{"$f":"HYPERLINK(\"#'Schedule V(e)'!G34:G52\",\"Underwriting Loss Scenarios - Gross Loss Negative Surplus\")","v":"Underwriting Loss Scenarios - Gross Loss Negative Surplus"},{"$f":"IF('Company Information'!F11=\"Class 3A\",\"N/A\",'Schedule V(e)'!S72)","v":"N/A"},null,null,null,null,null,null,{"$f":"IF(D107=\"False\",\"False.\",\"\")","v":""},{"$f":"IF(K107=\"\",\"\",IF(P107=TRUE,\"Yes\",\"\"))","v":""}]
[null,"iv)",{"$f":"HYPERLINK(\"#'Schedule V(e)'!k34:k52\",\"Underwriting Loss Scenarios - Net Loss Negative Surplus\")","v":"Underwriting Loss Scenarios - Net Loss Negative Surplus"},{"$f":"IF('Company Information'!F11=\"Class 3A\",\"N/A\",'Schedule V(e)'!T72)","v":"N/A"},null,null,null,null,null,null,{"$f":"IF(D108=\"False\",\"False.\",\"\")","v":""},{"$f":"IF(K108=\"\",\"\",IF(P108=TRUE,\"Yes\",\"\"))","v":""}]
[null,"v)",{"$f":"HYPERLINK(\"#'Schedule V(e)'!D28:N46\",\"Underwriting Loss Scenarios - Gross Loss Less than Net Loss Impact\")","v":"Underwriting Loss Scenarios - Gross Loss Less than Net Loss Impact"},{"$f":"IF('Company Information'!F11=\"Class 3A\",\"N/A\",'Schedule V(e)'!U72)","v":"N/A"},null,null,null,null,null,null,{"$f":"IF(D109=\"False\",\"False.\",\"\")","v":""},{"$f":"IF(K109=\"\",\"\",IF(P109=TRUE,\"Yes\",\"\"))","v":""}]
[null,"vi)",{"$f":"HYPERLINK(\"#'Schedule V(e)'!J62:K64\",\"Other Underwriting Loss Scenarios\")","v":"Other Underwriting Loss Scenarios"},{"$f":"IF('Schedule V(e)'!I8=\"\",IF(COUNTIF('Schedule V(e)'!K81:K83,0)=0,\"True\",\"Other Underwriting Loss Scenarios is not Reported\"),\"True\")","v":"Other Underwriting Loss Scenarios is not Reported"},null,null,null,null,null,null,{"$f":"IF(D110=\"False\",\"False.\",\"\")","v":""},{"$f":"IF(K110=\"\",\"\",IF(P110=TRUE,\"Yes\",\"\"))","v":""}]
[null,"vii)",{"$f":"HYPERLINK(\"#'Schedule V(e)'!A100:J116\",\"Series of Loss Simulations or R/I Specific Worst Case Scenario\")","v":"Series of Loss Simulations or R/I Specific Worst Case Scenario"},{"$f":"IF('Company Information'!F11=\"Class 3A\",(IF(COUNTIF('Schedule V(e)'!D201:E202,0)>2,\"Loss Simulations is not Reported\",\"True\")),IF((COUNTIF('Schedule V(e)'!D188:E189,0)+COUNTIF('Schedule V(e)'!D201:E202,0))>2,\"Loss Simulations is not Reported\",\"True\"))","v":"True"},null,null,null,{"$f":"IF(D111=\"Loss Simulations is not Reported\",\"Blank\",\"\")","v":""},{"$f":"IF(H111=\"Blank\",IF(P111=TRUE,\"Yes\",\"\"),\"\")","v":""},null,null,null,null,null,null,false]
[null,"viii)",{"$f":"HYPERLINK(\"#'Schedule V(e)'!D121:M127\",\"Terrorism to a 2-tonne bomb\")","v":"Terrorism to a 2-tonne bomb"},{"$f":"IF('Company Information'!F11=\"Class 3A\",\"N/A\",IF(COUNTIF('Schedule V(e)'!D220:M226,0)=70,\"Terrorism is not Reported\",\"True\"))","v":"N/A"},null,null,null,{"$f":"IF(D112=\"Terrorism is not Reported\",\"Blank\",\"\")","v":""},{"$f":"IF(H112=\"Blank\",IF(P112=TRUE,\"Yes\",\"\"),\"\")","v":""}]
[{"$f":"A104+1","v":33},{"$f":"HYPERLINK(\"#'Schedule V(g)'!A1\",\"Schedule V(g) Schedule of Risk Management - Reconciliation from Form 1SFS to Form 1EBS\")","v":"Schedule V(g) Schedule of Risk Management - Reconciliation from Form 1SFS to Form 1EBS"}]
[null,"i)",{"$f":"HYPERLINK(\"#'Schedule V(g)'!A1\",\"SFS Assets equals Form 1EBS\")","v":"SFS Assets equals Form 1EBS"},{"$f":"IF('Schedule V(g)'!D51=0,\"Schedule is Blank\",'Schedule V(g)'!D53)","v":"Schedule is Blank"},{"$f":"'Schedule V(g)'!D55","v":0},{"$f":"IF('Schedule V(g)'!D51=0,0,'Schedule V(g)'!D55/'Form 1EBS'!F90)","v":0},null,{"$f":"IF(OR(D114=\"False\",D114=\"Schedule is Blank\"),\"Blank\",\"\")","v":"Blank"},{"$f":"IF(H114=\"Blank\",IF(P114=TRUE,\"Yes\",\"\"),\"\")","v":""},null,{"$f":"IF(D114=\"False\",\"False.\",\"\")","v":""},{"$f":"IF(K114=\"\",\"\",IF(P114=TRUE,\"Yes\",\"\"))","v":""}]
[null,"ii)",{"$f":"HYPERLINK(\"#'Schedule V(g)'!A1\",\"SFS Liabilities equals Form 1EBS\")","v":"SFS Liabilities equals Form 1EBS"},{"$f":"IF('Schedule V(g)'!E51=0,\"Schedule is Blank\",'Schedule V(g)'!E53)","v":"Schedule is Blank"},{"$f":"'Schedule V(g)'!E55","v":0},{"$f":"IF('Schedule V(g)'!E51=0,0,'Schedule V(g)'!E55/'Form 1EBS'!F163)","v":0},null,{"$f":"IF(OR(D115=\"False\",D115=\"Schedule is Blank\"),\"Blank\",\"\")","v":"Blank"},{"$f":"IF(H115=\"Blank\",IF(P115=TRUE,\"Yes\",\"\"),\"\")","v":""},null,{"$f":"IF(D115=\"False\",\"False.\",\"\")","v":""},{"$f":"IF(K115=\"\",\"\",IF(P115=TRUE,\"Yes\",\"\"))","v":""}]
[null,"iii)",{"$f":"HYPERLINK(\"#'Schedule V(g)'!A1\",\"SFS Capital & Surplus equals Form 1EBS\")","v":"SFS Capital & Surplus equals Form 1EBS"},{"$f":"IF('Schedule V(g)'!G51=0,\"Schedule is Blank\",'Schedule V(g)'!G53)","v":"Schedule is Blank"},{"$f":"'Schedule V(g)'!G55","v":0},{"$f":"IF('Schedule V(g)'!G51=0,0,'Schedule V(g)'!G55/'Form 1EBS'!F167)","v":0},null,{"$f":"IF(OR(D116=\"False\",D116=\"Schedule is Blank\"),\"Blank\",\"\")","v":"Blank"},{"$f":"IF(H116=\"Blank\",IF(P116=TRUE,\"Yes\",\"\"),\"\")","v":""},null,{"$f":"IF(D116=\"False\",\"False.\",\"\")","v":""},{"$f":"IF(K116=\"\",\"\",IF(P116=TRUE,\"Yes\",\"\"))","v":""}]
[{"$f":"A113+1","v":34},{"$f":"HYPERLINK(\"#'Schedule V(k)'!A1\",\"Schedule V(k) Schedule of Risk Management - Details of Deposit Assets and Liabilities\")","v":"Schedule V(k) Schedule of Risk Management - Details of Deposit Assets and Liabilities"}]
[null,"i)",{"$f":"HYPERLINK(\"#'Schedule V(k)'!A1\",\"Details of Deposit Assets and Liabilities\")","v":"Details of Deposit Assets and Liabilities"},{"$f":"IF(('Form 1SFS'!E86+'Form 1SFS'!I86+'Form 1SFS'!M86)=0,\"N/A\",IF('Schedule V(k)'!F58=0,\"Schedule is Blank\",\"True\"))","v":"N/A"},null,null,null,{"$f":"IF(D118=\"Schedule is Blank\",\"Blank\",\"\")","v":""},{"$f":"IF(H118=\"Blank\",IF(P118=TRUE,\"Yes\",\"\"),\"\")","v":""},null,null,null,null,null,null,false]
[{"$f":"A117+1","v":35},{"$f":"HYPERLINK(\"#'Schedule V(l)'!A1\",\"Schedule V(l) Schedule of Risk Management - Schedule of Segregated Accounts\")","v":"Schedule V(l) Schedule of Risk Management - Schedule of Segregated Accounts"}]
[null,"i)",{"$f":"HYPERLINK(\"#'Schedule V(l)'!A1\",\"Schedule of Segregated Accounts\")","v":"Schedule of Segregated Accounts"},{"$f":"IF(('Form 1SFS'!E85+'Form 1SFS'!M85+'Form 1SFS'!M83+'Form 1SFS'!M84)=0,\"N/A\",IF('Schedule V(l)'!BC21=0,\"Schedule is Blank\",\"True\"))","v":"N/A"},null,null,null,{"$f":"IF(D120=\"Schedule is Blank\",\"Blank\",\"\")","v":""},{"$f":"IF(H120=\"Blank\",IF(P120=TRUE,\"Yes\",\"\"),\"\")","v":""},null,null,null,null,null,null,false]
[{"$f":"A119+1","v":36},{"$f":"HYPERLINK(\"#'Schedule VI'!A1\",\"Schedule VI - Schedule of Assets\")","v":"Schedule VI - Schedule of Assets"}]
[null,"i)",{"$f":"HYPERLINK(\"#'Schedule VI'!A2000\",\"Assets equals Form 1SFS\")","v":"Assets equals Form 1SFS"},{"$f":"IF('Schedule VI'!F2000=0,\"Schedule is Blank\",'Schedule VI'!F2004)","v":"Schedule is Blank"},{"$f":"'Schedule VI'!F2006","v":0},{"$f":"IFERROR(('Schedule VI'!F2000-'Schedule VI'!F2002)/'Schedule VI'!F2002,0)","v":0},null,{"$f":"IF(D122=\"Schedule is Blank\",\"Blank\",\"\")","v":"Blank"},{"$f":"IF(H122=\"Blank\",IF(P122=TRUE,\"Yes\",\"\"),\"\")","v":""},null,{"$f":"IF(D122=\"False\",\"False.\",\"\")","v":""},{"$f":"IF(K122=\"\",\"\",IF(P122=TRUE,\"Yes\",\"\"))","v":""}]
[null,"ii)",{"$f":"HYPERLINK(\"#'Schedule VI'!A2029\",\"Level 1-3 Asset Reconcilation\")","v":"Level 1-3 Asset Reconcilation"},{"$f":"IF('Schedule VI'!E2025=0,\"Schedule is Blank\",'Schedule VI'!F2029)","v":"Schedule is Blank"},{"$f":"'Schedule VI'!E2029","v":0},{"$f":"IFERROR(('Schedule VI'!E2025-'Schedule VI'!E2027)/'Schedule VI'!E2027,0)","v":0},null,{"$f":"IF(D123=\"Schedule is Blank\",\"Blank\",\"\")","v":"Blank"},{"$f":"IF(H123=\"Blank\",IF(P123=TRUE,\"Yes\",\"\"),\"\")","v":""},null,{"$f":"IF(D123=\"False\",\"False.\",\"\")","v":""},{"$f":"IF(K123=\"\",\"\",IF(P123=TRUE,\"Yes\",\"\"))","v":""}]
[{"$f":"A121+1","v":37},{"$f":"HYPERLINK(\"#'Schedule VI (EBS)'!A1\",\"Schedule VI (EBS) - Schedule of Assets\")","v":"Schedule VI (EBS) - Schedule of Assets"}]
[null,"i)",{"$f":"HYPERLINK(\"#'Schedule VI (EBS)'!A2000\",\"Assets equals Form 1EBS\")","v":"Assets equals Form 1EBS"},{"$f":"IF('Schedule VI (EBS)'!F2000=0,\"Schedule is Blank\",'Schedule VI (EBS)'!F2004)","v":"Schedule is Blank"},{"$f":"'Schedule VI (EBS)'!F2006","v":0},{"$f":"IFERROR(('Schedule VI (EBS)'!F2000-'Schedule VI (EBS)'!F2002)/'Schedule VI (EBS)'!F2002,0)","v":0},null,{"$f":"IF(D125=\"Schedule is Blank\",\"Blank\",\"\")","v":"Blank"},{"$f":"IF(H125=\"Blank\",IF(P125=TRUE,\"Yes\",\"\"),\"\")","v":""},null,{"$f":"IF(D125=\"False\",\"False.\",\"\")","v":""},{"$f":"IF(K125=\"\",\"\",IF(P125=TRUE,\"Yes\",\"\"))","v":""}]
[null,"ii)",{"$f":"HYPERLINK(\"#'Schedule VIA'!A2029\",\"Level 1-3 Asset Reconcilation\")","v":"Level 1-3 Asset Reconcilation"},{"$f":"IF('Schedule VI (EBS)'!E2025=0,\"Schedule is Blank\",'Schedule VI (EBS)'!F2029)","v":"Schedule is Blank"},{"$f":"'Schedule VI (EBS)'!E2029","v":0},{"$f":"IFERROR(('Schedule VI (EBS)'!E2025-'Schedule VI (EBS)'!E2027)/'Schedule VI (EBS)'!E2027,0)","v":0},null,{"$f":"IF(D126=\"Schedule is Blank\",\"Blank\",\"\")","v":"Blank"},{"$f":"IF(H126=\"Blank\",IF(P126=TRUE,\"Yes\",\"\"),\"\")","v":""},null,{"$f":"IF(D126=\"False\",\"False.\",\"\")","v":""},{"$f":"IF(K126=\"\",\"\",IF(P126=TRUE,\"Yes\",\"\"))","v":""}]
[{"$f":"A124+1","v":38},{"$f":"HYPERLINK(\"#'Schedule XVIII'!A1\",\"Schedule XVIII Schedule of Risk Management - Particulars of Reinsurance Balances\")","v":"Schedule XVIII Schedule of Risk Management - Particulars of Reinsurance Balances"}]
[null,"i)",{"$f":"HYPERLINK(\"#'Schedule XVIII'!A1\",\"R/I Balances as reported on Schedules XVIII & II equals Form 1SFS\")","v":"R/I Balances as reported on Schedules XVIII & II equals Form 1SFS"},{"$f":"IF('Company Information'!$B$2=\"Unconsolidated BSCR Model\",\"N/A\",IF('Schedule XVIII'!G72=0,\"N/A\",IF('Schedule XVIII'!G55=0,\"Schedule is Blank\",'Schedule XVIII'!G76)))","v":"N/A"},{"$f":"'Schedule XVIII'!G78","v":0},{"$f":"IF('Schedule XVIII'!G72=0,0,('Schedule XVIII'!G78)/'Schedule XVIII'!G72)","v":0},null,{"$f":"IF(D128=\"Schedule is Blank\",\"Blank\",\"\")","v":""},{"$f":"IF(H128=\"Blank\",IF(P128=TRUE,\"Yes\",\"\"),\"\")","v":""},null,{"$f":"IF(D128=\"False\",\"False.\",\"\")","v":""},{"$f":"IF(K128=\"\",\"\",IF(P128=TRUE,\"Yes\",\"\"))","v":""}]
[{"$f":"A127+1","v":39},{"$f":"HYPERLINK(\"#'Schedule XVIII (EBS)'!A1\",\"Schedule XVIII (EBS) Schedule of Risk Management - Particulars of Reinsurance Balances\")","v":"Schedule XVIII (EBS) Schedule of Risk Management - Particulars of Reinsurance Balances"}]
[null,"i)",{"$f":"HYPERLINK(\"#'Schedule XVIII (EBS)'!A1\",\"R/I Balances as reported on Schs XVIII(d) (EBS) & II (EBS) equals Form 1EBS\")","v":"R/I Balances as reported on Schs XVIII(d) (EBS) & II (EBS) equals Form 1EBS"},{"$f":"IF('Schedule XVIII (EBS)'!G72=0,\"N/A\",IF('Schedule XVIII (EBS)'!G55=0,\"Schedule is Blank\",'Schedule XVIII (EBS)'!G76))","v":"N/A"},{"$f":"'Schedule XVIII (EBS)'!G78","v":0},{"$f":"IF('Schedule XVIII (EBS)'!G72=0,0,('Schedule XVIII (EBS)'!G78)/'Schedule XVIII (EBS)'!G72)","v":0},null,{"$f":"IF(D130=\"Schedule is Blank\",\"Blank\",\"\")","v":""},{"$f":"IF(H130=\"Blank\",IF(P130=TRUE,\"Yes\",\"\"),\"\")","v":""},null,{"$f":"IF(D130=\"False\",\"False.\",\"\")","v":""},{"$f":"IF(K130=\"\",\"\",IF(P130=TRUE,\"Yes\",\"\"))","v":""},null,null,null,false]
[{"$f":"A129+1","v":40},{"$f":"HYPERLINK(\"#'Schedule XIXA'!A1\",\"Schedule XIXA Particulars of Cash and Cash Equivalents\")","v":"Schedule XIXA Particulars of Cash and Cash Equivalents"}]
[null,"i)",{"$f":"HYPERLINK(\"#'Schedule XIXA'!A1\",\"Particulars of Cash and Cash Equivalents equals Form 1EBS\")","v":"Particulars of Cash and Cash Equivalents equals Form 1EBS"},{"$f":"IF('Schedule XIXA'!F54=0,\"Schedule is Blank\",'Schedule XIXA'!F74)","v":"Schedule is Blank"},{"$f":"'Schedule XIXA'!F76","v":0},{"$f":"IF('Schedule XIXA'!F72=0,0,('Schedule XIXA'!F76)/'Schedule XIXA'!F72)","v":0},null,{"$f":"IF(D132=\"Schedule is Blank\",\"Blank\",\"\")","v":"Blank"},{"$f":"IF(H132=\"Blank\",IF(P132=TRUE,\"Yes\",\"\"),\"\")","v":""},null,{"$f":"IF(D132=\"False\",\"False.\",\"\")","v":""},{"$f":"IF(K132=\"\",\"\",IF(P132=TRUE,\"Yes\",\"\"))","v":""}]
[{"$f":"A131+1","v":41},{"$f":"HYPERLINK(\"#'Schedule XXA'!A1\",\"Schedule XXA Schedule of Currency Risk\")","v":"Schedule XXA Schedule of Currency Risk"}]
[null,"i)",{"$f":"HYPERLINK(\"#'Schedule XXA'!A1\",\"Currency Test of Minimum of 95% Has Been Met\")","v":"Currency Test of Minimum of 95% Has Been Met"},{"$f":"IF('Schedule XXA'!D33=0,\"Schedule is Blank\",'Schedule XXA'!D39)","v":"Schedule is Blank"},{"$f":"'Schedule XXA'!D36-'Schedule XXA'!D33-'Schedule XXA'!F33-'Schedule XXA'!H33-'Schedule XXA'!J33-'Schedule XXA'!L33","v":0},{"$f":"IF('Schedule XXA'!D33=0,0,('Schedule XXA'!D36-'Schedule XXA'!D33-'Schedule XXA'!F33-'Schedule XXA'!H33-'Schedule XXA'!J33-'Schedule XXA'!L33)/'Schedule XXA'!D36)","v":0},null,{"$f":"IF(D134=\"Schedule is Blank\",\"Blank\",\"\")","v":"Blank"},{"$f":"IF(H134=\"Blank\",IF(P134=TRUE,\"Yes\",\"\"),\"\")","v":""},null,{"$f":"IF(D134=\"False\",\"False.\",\"\")","v":""},{"$f":"IF(K134=\"\",\"\",IF(P134=TRUE,\"Yes\",\"\"))","v":""}]
[null,"ii)",{"$f":"HYPERLINK(\"#'Schedule XXA'!P45\",\"Liabilities and ECR Charge has been completed\")","v":"Liabilities and ECR Charge has been completed"},{"$f":"IF(COUNTIF('Schedule XXA'!D43:H45,0)>0,\"Schedule is not Complete\",\"True\")","v":"Schedule is not Complete"},null,null,null,{"$f":"IF(D135=\"Schedule is not complete\",\"Blank\",\"\")","v":"Blank"},{"$f":"IF(H135=\"Blank\",IF(P135=TRUE,\"Yes\",\"\"),\"\")","v":""}]
[{"$f":"A133+1","v":42},{"$f":"HYPERLINK(\"#'Schedule XXIA'!A1\",\"Schedule XXIA Schedule of Concentration Risk\")","v":"Schedule XXIA Schedule of Concentration Risk"}]
[null,"i)",{"$f":"HYPERLINK(\"#'Schedule XXIA'!A1\",\"Particulars of Concentration Risk\")","v":"Particulars of Concentration Risk"},{"$f":"IF('Schedule XXIA'!M58=0,\"Schedule is Blank\",\"True\")","v":"Schedule is Blank"},null,null,null,{"$f":"IF(D137=\"Schedule is Blank\",\"Blank\",\"\")","v":"Blank"},{"$f":"IF(H137=\"Blank\",IF(P137=TRUE,\"Yes\",\"\"),\"\")","v":""},null,{"$f":"IF(D137=\"False\",\"False.\",\"\")","v":""},{"$f":"IF(K137=\"\",\"\",IF(P137=TRUE,\"Yes\",\"\"))","v":""}]
[null,"ii)",{"$f":"HYPERLINK(\"#'Schedule XXIA'!A1\",\"Particulars of Concentration Risk - Bond Type and BSCR Rating Complete\")","v":"Particulars of Concentration Risk - Bond Type and BSCR Rating Complete"},{"$f":"IF('Schedule XXIA'!M58=0,\"Schedule is Blank\",IF(ROUND('Schedule XXIA'!M58-'Concentration Risk'!D110,0)=0,\"True\",\"Schedule is not Complete\"))","v":"Schedule is Blank"},{"$f":"'Schedule XXIA'!M58-'Concentration Risk'!D110","v":0},{"$f":"IF('Schedule XXIA'!M58=0,0,('Schedule XXIA'!M58-'Concentration Risk'!D110)/'Schedule XXIA'!M58)","v":0},null,{"$f":"IF(D138=\"Schedule is Blank\",\"Blank\",\"\")","v":"Blank"},{"$f":"IF(H138=\"Blank\",IF(P138=TRUE,\"Yes\",\"\"),\"\")","v":""}]
[]
[null,"CISSA Schedules"]
[{"$f":"A136+1","v":43},{"$f":"HYPERLINK(\"#'Schedule IX(a)'!A1\",\"Schedule IX(a) - CISSA Capital Summary\")","v":"Schedule IX(a) - CISSA Capital Summary"}]
[null,"i)",{"$f":"HYPERLINK(\"#'Schedule IX(a)'!A1\",\"CISSA Capital Summary\")","v":"CISSA Capital Summary"},{"$f":"IF('Schedule IX(a)'!E27=0,\"CISSA Capital Summary is Blank\",\"True\")","v":"CISSA Capital Summary is Blank"},null,null,null,{"$f":"IF(D142=\"CISSA Capital Summary is Blank\",\"Blank\",\"\")","v":"Blank"},{"$f":"IF(H142=\"Blank\",IF(P142=TRUE,\"Yes\",\"\"),\"\")","v":""}]
[null,"ii)",{"$f":"HYPERLINK(\"#'Schedule IX(a)'!B41:C47\",\"Insurer's Reason for Maintaining CISSA Capital Amount\")","v":"Insurer's Reason for Maintaining CISSA Capital Amount"},{"$f":"IF(COUNTIF('Schedule IX(a)'!B40:B46,\"Select\")=7,\"CISSA Section is Blank\",\"True\")","v":"True"},null,null,null,{"$f":"IF(D143=\"CISSA Section is Blank\",\"Blank\",\"\")","v":""},""]
[null,"iii)",{"$f":"HYPERLINK(\"#'Schedule IX(a)'!B51:C57\",\"Insurer's Method of Aggregating CISSA Capital\")","v":"Insurer's Method of Aggregating CISSA Capital"},{"$f":"IF(COUNTIF('Schedule IX(a)'!B50:B56,\"Select\")=7,\"CISSA Section is Blank\",\"True\")","v":"True"},null,null,null,"","",null,null,null,null,null,null,false]
[null,"iv)",{"$f":"HYPERLINK(\"#'Schedule IX(a)'!B61:C69\",\"Insurer's Contingency Plan\")","v":"Insurer's Contingency Plan"},{"$f":"IF(COUNTIF('Schedule IX(a)'!B60:B68,\"Select\")=9,\"CISSA Section is Blank\",\"True\")","v":"True"},null,null,null,"",""]
[null,"v)",{"$f":"HYPERLINK(\"#'Schedule IX(a)'!B71:G74\",\"Insurer's Confirmation of Contractual Commits under Stressed Situations\")","v":"Insurer's Confirmation of Contractual Commits under Stressed Situations"},{"$f":"IF('Schedule IX(a)'!G70=\"Select\",\"CISSA Section is Blank\",\"True\")","v":"True"},null,null,null,"",""]
[null,"vi)",{"$f":"HYPERLINK(\"#'Schedule IX(a)'!B76:G78\",\"Insurer's Confirmation of Issurance of Downstream of Debt\")","v":"Insurer's Confirmation of Issurance of Downstream of Debt"},{"$f":"IF('Schedule IX(a)'!G75=\"Select\",\"CISSA Section is Blank\",\"True\")","v":"True"},null,null,null,"",""]
[null,"vii)",{"$f":"HYPERLINK(\"#'Schedule IX(a)'!B80:G82\",\"Insurer's Confirmation of Receipt of Downstream of Debt\")","v":"Insurer's Confirmation of Receipt of Downstream of Debt"},{"$f":"IF('Schedule IX(a)'!G79=\"Select\",\"CISSA Section is Blank\",\"True\")","v":"True"},null,null,null,"",""]
[null,"viii)",{"$f":"HYPERLINK(\"#'Schedule IX(a)'!B84:G90\",\"Insurer's Confirmation of Transferrability of Assets\")","v":"Insurer's Confirmation of Transferrability of Assets"},{"$f":"IF('Schedule IX(a)'!G83=\"Select\",\"CISSA Section is Blank\",\"True\")","v":"True"},null,null,null,"",""]
[{"$f":"A141+1","v":44},{"$f":"HYPERLINK(\"#'Schedule IX(b)'!A1\",\"Schedule IX(b) - CISSA General Questions\")","v":"Schedule IX(b) - CISSA General Questions"}]
[null,"i)",{"$f":"HYPERLINK(\"#'Schedule IX(b)'!B8:F28\",\"CISSA Integration\")","v":"CISSA Integration"},{"$f":"IF('Schedule IX(b)'!F7=\"Select\",\"CISSA Section is Blank\",\"True\")","v":"True"},null,null,null,{"$f":"IF(D151=\"CISSA Section is Blank\",\"Blank\",\"\")","v":""},{"$f":"IF(H151=\"Blank\",IF(P151=TRUE,\"Yes\",\"\"),\"\")","v":""}]
[null,"ii)",{"$f":"HYPERLINK(\"#'Schedule IX(b)'!B60:F70\",\"CISSA General Questions\")","v":"CISSA General Questions"},{"$f":"IF(COUNTIF('Schedule IX(b)'!F59:F65,\"Select\")>=2,\"CISSA Section is Blank\",\"True\")","v":"True"},null,null,null,{"$f":"IF(D152=\"CISSA Section is Blank\",\"Blank\",\"\")","v":""},{"$f":"IF(H152=\"Blank\",IF(P152=TRUE,\"Yes\",\"\"),\"\")","v":""}]
[{"$f":"A150+1","v":45},{"$f":"HYPERLINK(\"#'Schedule IX(c)'!A1\",\"Schedule IX(c) - CISSA Assessment of Material Risks\")","v":"Schedule IX(c) - CISSA Assessment of Material Risks"}]
[]
[null,"Catastrophe Risk Schedules"]
[{"$f":"A153+1","v":46},{"$f":"HYPERLINK(\"#'Schedule X(a)'!A1\",\"Schedule X(a) Catastrophe Risk Return - EP Curve Total\")","v":"Schedule X(a) Catastrophe Risk Return - EP Curve Total"}]
[null,"i)",{"$f":"HYPERLINK(\"#'Schedule X(a)'!D10:H14\",\"Total Exceedance Probability Details\")","v":"Total Exceedance Probability Details"},{"$f":"IF(COUNTIF('Schedule X(a)'!E9:H13,0)>0,\"Section is Blank/Field Omitted\",\"True\")","v":"Section is Blank/Field Omitted"},null,null,null,{"$f":"IF(D157=\"Section is Blank/Field Omitted\",\"Blank\",\"\")","v":"Blank"},{"$f":"IF(H157=\"Blank\",IF(P157=TRUE,\"Yes\",\"\"),\"\")","v":""}]
[null,null,null,"Gross Occur","Gross Agg","Net Occ.",null,null,null,null,null,null,null,"Net Agg."]
[null,null,"50 Loss Return Period Reported in Millions",{"$f":"IF(SUM('Schedule X(a)'!$E$9:$H$13)=0,0,IF(Submission!$B$6=\"Units\",('Schedule X(a)'!E9*1000000)/'Form 1SFS'!$M$198,('Schedule X(a)'!E9*1000)/'Form 1SFS'!$M$198))","v":0},{"$f":"IF(SUM('Schedule X(a)'!$E$9:$H$13)=0,0,IF(Submission!$B$6=\"Units\",('Schedule X(a)'!F9*1000000)/'Form 1SFS'!$M$198,('Schedule X(a)'!F9*1000)/'Form 1SFS'!$M$198))","v":0},{"$f":"IF(SUM('Schedule X(a)'!$E$9:$H$13)=0,0,IF(Submission!$B$6=\"Units\",('Schedule X(a)'!G9*1000000)/'Form 1SFS'!$M$198,('Schedule X(a)'!G9*1000)/'Form 1SFS'!$M$198))","v":0},null,null,null,null,null,null,null,{"$f":"IF(SUM('Schedule X(a)'!$E$9:$H$13)=0,0,IF(Submission!$B$6=\"Units\",('Schedule X(a)'!H9*1000000)/'Form 1SFS'!$M$198,('Schedule X(a)'!H9*1000)/'Form 1SFS'!$M$198))","v":0}]
[null,null,"100 Loss Return Period Reported in Millions",{"$f":"IF(SUM('Schedule X(a)'!$E$9:$H$13)=0,0,IF(Submission!$B$6=\"Units\",('Schedule X(a)'!E10*1000000)/'Form 1SFS'!$M$198,('Schedule X(a)'!E10*1000)/'Form 1SFS'!$M$198))","v":0},{"$f":"IF(SUM('Schedule X(a)'!$E$9:$H$13)=0,0,IF(Submission!$B$6=\"Units\",('Schedule X(a)'!F10*1000000)/'Form 1SFS'!$M$198,('Schedule X(a)'!F10*1000)/'Form 1SFS'!$M$198))","v":0},{"$f":"IF(SUM('Schedule X(a)'!$E$9:$H$13)=0,0,IF(Submission!$B$6=\"Units\",('Schedule X(a)'!G10*1000000)/'Form 1SFS'!$M$198,('Schedule X(a)'!G10*1000)/'Form 1SFS'!$M$198))","v":0},null,null,null,null,null,null,null,{"$f":"IF(SUM('Schedule X(a)'!$E$9:$H$13)=0,0,IF(Submission!$B$6=\"Units\",('Schedule X(a)'!H10*1000000)/'Form 1SFS'!$M$198,('Schedule X(a)'!H10*1000)/'Form 1SFS'!$M$198))","v":0}]
[null,null,"250 Loss Return Period Reported in Millions",{"$f":"IF(SUM('Schedule X(a)'!$E$9:$H$13)=0,0,IF(Submission!$B$6=\"Units\",('Schedule X(a)'!E11*1000000)/'Form 1SFS'!$M$198,('Schedule X(a)'!E11*1000)/'Form 1SFS'!$M$198))","v":0},{"$f":"IF(SUM('Schedule X(a)'!$E$9:$H$13)=0,0,IF(Submission!$B$6=\"Units\",('Schedule X(a)'!F11*1000000)/'Form 1SFS'!$M$198,('Schedule X(a)'!F11*1000)/'Form 1SFS'!$M$198))","v":0},{"$f":"IF(SUM('Schedule X(a)'!$E$9:$H$13)=0,0,IF(Submission!$B$6=\"Units\",('Schedule X(a)'!G11*1000000)/'Form 1SFS'!$M$198,('Schedule X(a)'!G11*1000)/'Form 1SFS'!$M$198))","v":0},null,null,null,null,null,null,null,{"$f":"IF(SUM('Schedule X(a)'!$E$9:$H$13)=0,0,IF(Submission!$B$6=\"Units\",('Schedule X(a)'!H11*1000000)/'Form 1SFS'!$M$198,('Schedule X(a)'!H11*1000)/'Form 1SFS'!$M$198))","v":0}]
[null,null,"500 Loss Return Period Reported in Millions",{"$f":"IF(SUM('Schedule X(a)'!$E$9:$H$13)=0,0,IF(Submission!$B$6=\"Units\",('Schedule X(a)'!E12*1000000)/'Form 1SFS'!$M$198,('Schedule X(a)'!E12*1000)/'Form 1SFS'!$M$198))","v":0},{"$f":"IF(SUM('Schedule X(a)'!$E$9:$H$13)=0,0,IF(Submission!$B$6=\"Units\",('Schedule X(a)'!F12*1000000)/'Form 1SFS'!$M$198,('Schedule X(a)'!F12*1000)/'Form 1SFS'!$M$198))","v":0},{"$f":"IF(SUM('Schedule X(a)'!$E$9:$H$13)=0,0,IF(Submission!$B$6=\"Units\",('Schedule X(a)'!G12*1000000)/'Form 1SFS'!$M$198,('Schedule X(a)'!G12*1000)/'Form 1SFS'!$M$198))","v":0},null,null,null,null,null,null,null,{"$f":"IF(SUM('Schedule X(a)'!$E$9:$H$13)=0,0,IF(Submission!$B$6=\"Units\",('Schedule X(a)'!H12*1000000)/'Form 1SFS'!$M$198,('Schedule X(a)'!H12*1000)/'Form 1SFS'!$M$198))","v":0}]
[null,null,"1,000 Loss Return Period Reported in Millions",{"$f":"IF(SUM('Schedule X(a)'!$E$9:$H$13)=0,0,IF(Submission!$B$6=\"Units\",('Schedule X(a)'!E13*1000000)/'Form 1SFS'!$M$198,('Schedule X(a)'!E13*1000)/'Form 1SFS'!$M$198))","v":0},{"$f":"IF(SUM('Schedule X(a)'!$E$9:$H$13)=0,0,IF(Submission!$B$6=\"Units\",('Schedule X(a)'!F13*1000000)/'Form 1SFS'!$M$198,('Schedule X(a)'!F13*1000)/'Form 1SFS'!$M$198))","v":0},{"$f":"IF(SUM('Schedule X(a)'!$E$9:$H$13)=0,0,IF(Submission!$B$6=\"Units\",('Schedule X(a)'!G13*1000000)/'Form 1SFS'!$M$198,('Schedule X(a)'!G13*1000)/'Form 1SFS'!$M$198))","v":0},null,null,null,null,null,null,null,{"$f":"IF(SUM('Schedule X(a)'!$E$9:$H$13)=0,0,IF(Submission!$B$6=\"Units\",('Schedule X(a)'!H13*1000000)/'Form 1SFS'!$M$198,('Schedule X(a)'!H13*1000)/'Form 1SFS'!$M$198))","v":0}]
[null,null,"If ratios are highlighted in yellow, confirm if the figures are correctly reported in millions"]
[null,"ii)",{"$f":"HYPERLINK(\"#'Schedule X(a)'!D20:d26\",\"Gross Premium Modelled to Gross Catastrophe Limits\")","v":"Gross Premium Modelled to Gross Catastrophe Limits"},{"$f":"IF(AND((SUM('Schedule X(a)'!$E$20:$E$21))=0,(SUM('Schedule X(a)'!$E$23:$E$26))=0),\"Section is Blank/Field Omitted\",\"True\")","v":"Section is Blank/Field Omitted"},null,null,null,{"$f":"IF(D165=\"Section is Blank/Field Omitted\",\"Blank\",\"\")","v":"Blank"}]
[null,"iii)",{"$f":"HYPERLINK(\"#'Schedule X(a)'!J20:J26\",\"Net Premium Modelled to Net Catastrophe Limits\")","v":"Net Premium Modelled to Net Catastrophe Limits"},{"$f":"IF(AND((SUM('Schedule X(a)'!$J$20:$J$21))=0,(SUM('Schedule X(a)'!$J$23:$J$26))=0),\"Section is Blank/Field Omitted\",\"True\")","v":"Section is Blank/Field Omitted"},null,null,null,"Blank"]
[{"$f":"A156+1","v":47},{"$f":"HYPERLINK(\"#'Schedule X(b)'!A1\",\"Schedule X(b) Catastrophe Risk Return - EP Curve Insurance\")","v":"Schedule X(b) Catastrophe Risk Return - EP Curve Insurance"}]
[null,"i)",{"$f":"HYPERLINK(\"#'Schedule X(b)'!D12:H16\",\"Insurance Exceedance Probability Details\")","v":"Insurance Exceedance Probability Details"},{"$f":"IF(COUNTIF('Schedule X(b)'!E11:H15,0)=20,\"Section is Blank/Field Omitted\",\"True\")","v":"Section is Blank/Field Omitted"},null,null,null,{"$f":"IF(D168=\"Section is Blank/Field Omitted\",\"Blank\",\"\")","v":"Blank"},{"$f":"IF(H168=\"Blank\",IF(P168=TRUE,\"Yes\",\"\"),\"\")","v":""}]
[{"$f":"A167+1","v":48},{"$f":"HYPERLINK(\"#'Schedule X(c)'!A1\",\"Schedule X(c) Catastrophe Risk Return - EP Curve Region Perils\")","v":"Schedule X(c) Catastrophe Risk Return - EP Curve Region Perils"}]
[null,"i)",{"$f":"HYPERLINK(\"#'Schedule X(c)'!A1\",\"Region Peril Exceedance Probability Details\")","v":"Region Peril Exceedance Probability Details"},{"$f":"IF((COUNTIF('Schedule X(c)'!D16:G20,0)+COUNTIF('Schedule X(c)'!D38:G42,0)+COUNTIF('Schedule X(c)'!D60:G64,0)+COUNTIF('Schedule X(c)'!D82:G86,0)+COUNTIF('Schedule X(c)'!D104:G108,0))>0,\"Section is Blank/Field Omitted\",\"True\")","v":"Section is Blank/Field Omitted"},null,null,null,{"$f":"IF(D170=\"Section is Blank/Field Omitted\",\"Blank\",\"\")","v":"Blank"},{"$f":"IF(H170=\"Blank\",IF(P170=TRUE,\"Yes\",\"\"),\"\")","v":""}]
[{"$f":"A169+1","v":49},{"$f":"HYPERLINK(\"#'Schedule X(d)'!A1\",\"Schedule X(d) Catastrophe Risk Return - Region Perils Exposure to Zones and Lines of Business\")","v":"Schedule X(d) Catastrophe Risk Return - Region Perils Exposure to Zones and Lines of Business"}]
[null,"i)",{"$f":"HYPERLINK(\"#'Schedule X(d)'!B10:H22\",\"Region Peril Zone Exposures\")","v":"Region Peril Zone Exposures"},{"$f":"IF((COUNTIF('Schedule X(d)'!C9:H21,0))=78,\"Section is Blank/Field Omitted\",\"True\")","v":"True"},null,null,null,{"$f":"IF(D172=\"Section is Blank/Field Omitted\",\"Blank\",\"\")","v":""},{"$f":"IF(H172=\"Blank\",IF(P172=TRUE,\"Yes\",\"\"),\"\")","v":""}]
[null,"ii)",{"$f":"HYPERLINK(\"#'Schedule X(d)'!B25:H49\",\"Region Peril Lines of Business Exposures\")","v":"Region Peril Lines of Business Exposures"},{"$f":"IF((COUNTIF('Schedule X(d)'!C25:H48,0))=144,\"Section is Blank/Field Omitted\",\"True\")","v":"True"},null,null,null,{"$f":"IF(D173=\"Section is Blank/Field Omitted\",\"Blank\",\"\")","v":""},{"$f":"IF(H173=\"Blank\",IF(P173=TRUE,\"Yes\",\"\"),\"\")","v":""}]
[{"$f":"A171+1","v":50},{"$f":"HYPERLINK(\"#'Schedule X(e)'!A1\",\"Schedule X(e) Catastrophe Risk Return - Accumulations Overview\")","v":"Schedule X(e) Catastrophe Risk Return - Accumulations Overview"}]
[null,"i)",{"$f":"HYPERLINK(\"#'Schedule X(e)'!A1\",\"Accumulations Overview Questions\")","v":"Accumulations Overview Questions"},{"$f":"IF((COUNTIF('Schedule X(e)'!C6,0)+COUNTIF('Schedule X(e)'!L8,0)+COUNTIF('Schedule X(e)'!C13,0)+COUNTIF('Schedule X(e)'!C16,0)+COUNTIF('Schedule X(e)'!C19,0)+COUNTIF('Schedule X(e)'!C22,0)+COUNTIF('Schedule X(e)'!C29,0)+COUNTIF('Schedule X(e)'!C32,0)+COUNTIF('Schedule X(e)'!C35,0)+COUNTIF('Schedule X(e)'!C43,0))>0,\"Section is Blank/Field Omitted\",\"True\")","v":"True"},null,null,null,{"$f":"IF(D175=\"Section is Blank/Field Omitted\",\"Blank\",\"\")","v":""},{"$f":"IF(H175=\"Blank\",IF(P175=TRUE,\"Yes\",\"\"),\"\")","v":""}]
[{"$f":"A174+1","v":51},{"$f":"HYPERLINK(\"#'Schedule X(f)'!A1\",\"Schedule X(f) Catastrophe Risk Return - Data Analysis\")","v":"Schedule X(f) Catastrophe Risk Return - Data Analysis"}]
[null,"i)",{"$f":"HYPERLINK(\"#'Schedule X(f)'!L13\",\"X(f) Total Gross Limits to X(a) Gross Limits Exposed\")","v":"X(f) Total Gross Limits to X(a) Gross Limits Exposed"},{"$f":"IF('Schedule X(f)'!L12=0,\"Schedule is Blank\",IF(ROUND(('Schedule X(f)'!L12-SUM('Schedule X(a)'!E23:E26)),0)=0,\"True\",\"False\"))","v":"Schedule is Blank"},{"$f":"('Schedule X(f)'!L12-SUM('Schedule X(a)'!E23:E26))","v":0},{"$f":"IF(SUM('Schedule X(a)'!E23:E26)=0,0,('Schedule X(f)'!L12-SUM('Schedule X(a)'!E23:E26))/SUM('Schedule X(a)'!E23:E26))","v":0},null,{"$f":"IF(D177=\"Schedule is Blank\",\"Blank\",\"\")","v":"Blank"},{"$f":"IF(H177=\"Blank\",IF(P177=TRUE,\"Yes\",\"\"),\"\")","v":""},null,{"$f":"IF(D177=\"False\",\"False.\",\"\")","v":""},{"$f":"IF(K177=\"\",\"\",IF(P177=TRUE,\"Yes\",\"\"))","v":""}]
[null,"ii)",{"$f":"HYPERLINK(\"#'Schedule X(f)'!M13\",\"X(f) Total Net Limits to X(a) Net Limits Exposed\")","v":"X(f) Total Net Limits to X(a) Net Limits Exposed"},{"$f":"IF('Schedule X(f)'!M12=0,\"Schedule is Blank\",IF(ROUND(('Schedule X(f)'!M12-SUM('Schedule X(a)'!J23:J26)),0)=0,\"True\",\"False\"))","v":"Schedule is Blank"},{"$f":"('Schedule X(f)'!M12-SUM('Schedule X(a)'!J23:J26))","v":0},{"$f":"IF(SUM('Schedule X(a)'!J23:J26)=0,0,('Schedule X(f)'!M12-SUM('Schedule X(a)'!J23:J26))/SUM('Schedule X(a)'!J23:J26))","v":0},null,{"$f":"IF(D178=\"Schedule is Blank\",\"Blank\",\"\")","v":"Blank"},""]
[null,"iii)",{"$f":"HYPERLINK(\"#'Schedule X(f)'!C6:M13\",\"All Contracts Written\")","v":"All Contracts Written"},{"$f":"IF(OR('Schedule X(f)'!K12=0,'Schedule X(f)'!L12=0,'Schedule X(f)'!M12=0),\"Schedule is Blank\",\"True\")","v":"Schedule is Blank"},null,null,null,{"$f":"IF(D179=\"Schedule is Blank\",\"Blank\",\"\")","v":"Blank"},""]
[null,"iv)",{"$f":"HYPERLINK(\"#'Schedule X(f)'!C15:M22\",\"Contracts that May Be Modeled to Contracts that are Modelable\")","v":"Contracts that May Be Modeled to Contracts that are Modelable"},{"$f":"IF('Schedule X(f)'!K10=0,\"True\",IF('Schedule X(f)'!K21=0,\"Section is Blank\",IF(ROUND('Schedule X(f)'!K21,0)=ROUND('Schedule X(f)'!K10,0),\"True\",\"May Be Modeled not Reconciled\")))","v":"True"},{"$f":"'Schedule X(f)'!K21-'Schedule X(f)'!K10","v":0},{"$f":"IF('Schedule X(f)'!K10=0,0,('Schedule X(f)'!K21-'Schedule X(f)'!K10)/'Schedule X(f)'!K10)","v":0},null,{"$f":"IF(D180=\"Section is Blank\",\"Blank\",\"\")","v":""},""]
[null,"v)",{"$f":"HYPERLINK(\"#'Schedule X(f)'!C24:M34\",\"Contracts Modeled to Contracts that May Be Modeled\")","v":"Contracts Modeled to Contracts that May Be Modeled"},{"$f":"IF('Schedule X(f)'!K19=0,\"True\",IF('Schedule X(f)'!K33=0,\"Section is Blank\",IF(ROUND('Schedule X(f)'!K33,0)=ROUND('Schedule X(f)'!K19,0),\"True\",\"Modeled not Reconciled\")))","v":"True"},{"$f":"'Schedule X(f)'!K33-'Schedule X(f)'!K19","v":0},{"$f":"IF('Schedule X(f)'!K33=0,0,('Schedule X(f)'!K33-'Schedule X(f)'!K19)/'Schedule X(f)'!K19)","v":0},null,{"$f":"IF(D181=\"Section is Blank\",\"Blank\",\"\")","v":""},""]
[null,"vi)",{"$f":"HYPERLINK(\"#'Schedule X(f)'!C39:M47\",\"Contracts Not Modeled to Contracts that May Be Modeled\")","v":"Contracts Not Modeled to Contracts that May Be Modeled"},{"$f":"IF('Schedule X(f)'!K20=0,\"True\",IF('Schedule X(f)'!K46=0,\"Section is Blank\",IF(ROUND('Schedule X(f)'!K46,0)=ROUND('Schedule X(f)'!K20,0),\"True\",\"Not Modeled not Reconciled\")))","v":"True"},{"$f":"'Schedule X(f)'!K46-'Schedule X(f)'!K20","v":0},{"$f":"IF('Schedule X(f)'!K46=0,0,('Schedule X(f)'!K46-'Schedule X(f)'!K20)/'Schedule X(f)'!K20)","v":0},null,{"$f":"IF(D182=\"Section is Blank\",\"Blank\",\"\")","v":""},""]
[null,"vii)",{"$f":"HYPERLINK(\"#'Schedule X(f)'!C56:M65\",\"Contracts Not Able to Model to Contracts that are Not Modelable\")","v":"Contracts Not Able to Model to Contracts that are Not Modelable"},{"$f":"IF('Schedule X(f)'!K11=0,\"True\",IF('Schedule X(f)'!K64=0,\"Section is Blank\",IF(ROUND('Schedule X(f)'!K64,0)=ROUND('Schedule X(f)'!K11,0),\"True\",\"Unable to Model not Reconciled\")))","v":"True"},{"$f":"'Schedule X(f)'!K64-'Schedule X(f)'!K11","v":0},{"$f":"IF('Schedule X(f)'!K64=0,0,('Schedule X(f)'!K64-'Schedule X(f)'!K11)/'Schedule X(f)'!K11)","v":0},null,{"$f":"IF(D183=\"Section is Blank\",\"Blank\",\"\")","v":""},""]
[{"$f":"A176+1","v":52},{"$f":"HYPERLINK(\"#'Schedule X(g)'!A1\",\"Schedule X(g) Catastrophe Risk Return - Reinsurance Disclosures\")","v":"Schedule X(g) Catastrophe Risk Return - Reinsurance Disclosures"}]
[null,"i)",{"$f":"HYPERLINK(\"#'Schedule X(g)'!A1\",\"Catastrophe Risk Reinsurance Disclosures\")","v":"Catastrophe Risk Reinsurance Disclosures"},{"$f":"IF((COUNTIF('Schedule X(g)'!D10:I18,0))=54,\"Schedule is Blank\",\"True\")","v":"Schedule is Blank"},null,null,null,{"$f":"IF(D185=\"Schedule is Blank\",\"Blank\",\"\")","v":"Blank"},{"$f":"IF(H185=\"Blank\",IF(P185=TRUE,\"Yes\",\"\"),\"\")","v":""}]
[{"$f":"A184+1","v":53},{"$f":"HYPERLINK(\"#'Schedule X(h)'!A1\",\"Schedule X(h) Catastrophe Risk Return - Insurance Terrorism Exposure\")","v":"Schedule X(h) Catastrophe Risk Return - Insurance Terrorism Exposure"}]
[null,"i)",{"$f":"HYPERLINK(\"#'Schedule X(h)'!A6:K19\",\"Insurance Terrorism Exposure to Conventional Terrorism\")","v":"Insurance Terrorism Exposure to Conventional Terrorism"},{"$f":"IF((COUNTIF('Schedule X(h)'!D9:I18,0))=60,\"Schedule is Blank\",\"True\")","v":"Schedule is Blank"},null,null,null,{"$f":"IF(D187=\"Schedule is Blank\",\"Blank\",\"\")","v":"Blank"},{"$f":"IF(H187=\"Blank\",IF(P187=TRUE,\"Yes\",\"\"),\"\")","v":""}]
[null,"ii)",{"$f":"HYPERLINK(\"#'Schedule X(h)'!A22:K35\",\"Insurance Terrorism Exposure to NBCR Terrorism\")","v":"Insurance Terrorism Exposure to NBCR Terrorism"},{"$f":"IF((COUNTIF('Schedule X(h)'!D24:I33,0))=60,\"Schedule is Blank\",\"True\")","v":"Schedule is Blank"},null,null,null,{"$f":"IF(D188=\"Schedule is Blank\",\"Blank\",\"\")","v":"Blank"},{"$f":"IF(H188=\"Blank\",IF(P188=TRUE,\"Yes\",\"\"),\"\")","v":""}]
[{"$f":"A186+1","v":54},{"$f":"HYPERLINK(\"#'Schedule X(i)'!A1\",\"Schedule X(i) Catastrophe Risk Return - Reinsurance Terrorism Exposure\")","v":"Schedule X(i) Catastrophe Risk Return - Reinsurance Terrorism Exposure"}]
[null,"i)",{"$f":"HYPERLINK(\"#'Schedule X(i)'!A7:K18\",\"Reinsurance Terrorism Exposure to Conventional Terrorism\")","v":"Reinsurance Terrorism Exposure to Conventional Terrorism"},{"$f":"IF((COUNTIF('Schedule X(i)'!E9:J18,0))=60,\"Schedule is Blank\",\"True\")","v":"Schedule is Blank"},null,null,null,{"$f":"IF(D190=\"Schedule is Blank\",\"Blank\",\"\")","v":"Blank"},{"$f":"IF(H190=\"Blank\",IF(P190=TRUE,\"Yes\",\"\"),\"\")","v":""}]
[null,"ii)",{"$f":"HYPERLINK(\"#'Schedule X(h)'!A21:K32\",\"Reinsurance Terrorism Exposure to NBCR Terrorism\")","v":"Reinsurance Terrorism Exposure to NBCR Terrorism"},{"$f":"IF((COUNTIF('Schedule X(i)'!E24:J33,0))=60,\"Schedule is Blank\",\"True\")","v":"Schedule is Blank"},null,null,null,{"$f":"IF(D191=\"Schedule is Blank\",\"Blank\",\"\")","v":"Blank"},{"$f":"IF(H191=\"Blank\",IF(P191=TRUE,\"Yes\",\"\"),\"\")","v":""},null,null,null,null,null,null,false]
[{"$f":"A189+1","v":55},{"$f":"HYPERLINK(\"#'Schedule X(j)'!A1\",\"Schedule X(j) Catastrophe Risk Return - Assumed Exchange Rates\")","v":"Schedule X(j) Catastrophe Risk Return - Assumed Exchange Rates"}]
[]
[null,"Loss Triangles/Loss Reserve Reconciliation (Class 4 and 3B Insurers Only)"]
[{"$f":"A192+1","v":56},{"$f":"HYPERLINK(\"#'Schedule XI(a)'!A1\",\"Schedule XI(a) Schedule of Loss Triangles - Summary\")","v":"Schedule XI(a) Schedule of Loss Triangles - Summary"}]
[{"$f":"A195+1","v":57},{"$f":"HYPERLINK(\"#'Sch XI(a)(i)'!A1\",\"Schedule XI(a)(i) Schedule of Loss Triangles - Property Castarophe\")","v":"Schedule XI(a)(i) Schedule of Loss Triangles - Property Castarophe"}]
[58,{"$f":"HYPERLINK(\"#'Sch XI(a)(ii)'!A1\",\"Schedule XI(a)(ii) Schedule of Loss Triangles - Property\")","v":"Schedule XI(a)(ii) Schedule of Loss Triangles - Property"}]
[59,{"$f":"HYPERLINK(\"#'Sch XI(a)(iii)'!A1\",\"Schedule XI(a)(iii) Schedule of Loss Triangles - Property Non-Proportional\")","v":"Schedule XI(a)(iii) Schedule of Loss Triangles - Property Non-Proportional"}]
[60,{"$f":"HYPERLINK(\"#'Sch XI(a)(iv)'!A1\",\"Schedule XI(a)(iv) Schedule of Loss Triangles - Casualty\")","v":"Schedule XI(a)(iv) Schedule of Loss Triangles - Casualty"}]
[61,{"$f":"HYPERLINK(\"#'Sch XI(a)(v)'!A1\",\"Schedule XI(a)(v) Schedule of Loss Triangles - Casualty Non-Proportional\")","v":"Schedule XI(a)(v) Schedule of Loss Triangles - Casualty Non-Proportional"}]
[62,{"$f":"HYPERLINK(\"#'Sch XI(a)(vi)'!A1\",\"Schedule XI(a)(vi) Schedule of Loss Triangles - Financial Lines\")","v":"Schedule XI(a)(vi) Schedule of Loss Triangles - Financial Lines"}]
[63,{"$f":"HYPERLINK(\"#'Sch XI(a)(vii)'!A1\",\"Schedule XI(a)(vii) Schedule of Loss Triangles - Other Specialty Lines\")","v":"Schedule XI(a)(vii) Schedule of Loss Triangles - Other Specialty Lines"}]
[64,{"$f":"HYPERLINK(\"#'Sch XI(a)(viii)'!A1\",\"Schedule XI(a)(viii) Schedule of Loss Triangles - Structured/Finite Lines\")","v":"Schedule XI(a)(viii) Schedule of Loss Triangles - Structured/Finite Lines"}]
[]
[{"$f":"A203+1","v":65},{"$f":"HYPERLINK(\"#'Schedule XI(b) (EBS)'!A1\",\"Schedule XI(b) Schedule of Reconciliation - Summary\")","v":"Schedule XI(b) Schedule of Reconciliation - Summary"}]
[null,"i)",{"$f":"HYPERLINK(\"#'Schedule XI(b) (EBS)'!A1\",\"Schedule of Loss Reserve Reconciliation (EBS)\")","v":"Schedule of Loss Reserve Reconciliation (EBS)"},{"$f":"IF('Company Information'!F11=\"Class 3A\",\"N/A\",IF('Schedule XI(b)'!D24=0,\"Schedule is Blank\",'Schedule XI(b)'!D26))","v":"N/A"},{"$f":"'Form 1EBS'!F115-'Schedule XI(b)'!D24","v":0},{"$f":"IF('Schedule XI(b)'!D24=0,0,('Form 1EBS'!F115-'Schedule XI(b)'!D24)/'Form 1EBS'!F115)","v":0},null,{"$f":"IF(D206=\"Schedule is Blank\",\"Blank\",\"\")","v":""},{"$f":"IF(H206=\"Blank\",IF(P206=TRUE,\"Yes\",\"\"),\"\")","v":""},null,{"$f":"IF(D206=\"False\",\"False.\",\"\")","v":""},{"$f":"IF(K206=\"\",\"\",IF(P206=TRUE,\"Yes\",\"\"))","v":""}]
[{"$f":"A205+1","v":66},{"$f":"HYPERLINK(\"#'Sch XI(b)(i) (EBS)'!A1\",\"Schedule XI(b)(i) Schedule of Reserve Reconciliation - Property Castarophe\")","v":"Schedule XI(b)(i) Schedule of Reserve Reconciliation - Property Castarophe"}]
[{"$f":"A207+1","v":67},{"$f":"HYPERLINK(\"#'Sch XI(b)(ii) (EBS)'!A1\",\"Schedule XI(b)(ii) Schedule of Reserve Reconciliation - Property\")","v":"Schedule XI(b)(ii) Schedule of Reserve Reconciliation - Property"}]
[68,{"$f":"HYPERLINK(\"#'Sch XI(b)(iii) (EBS)'!A1\",\"Schedule XI(b)(iii) Schedule of Reserve Reconciliation - Property Non-Proportional\")","v":"Schedule XI(b)(iii) Schedule of Reserve Reconciliation - Property Non-Proportional"}]
[69,{"$f":"HYPERLINK(\"#'Sch XI(b)(iv) (EBS)'!A1\",\"Schedule XI(b)(iv) Schedule of Reserve Reconciliation - Casualty\")","v":"Schedule XI(b)(iv) Schedule of Reserve Reconciliation - Casualty"}]
[70,{"$f":"HYPERLINK(\"#'Sch XI(b)(v) (EBS)'!A1\",\"Schedule XI(b)(v) Schedule of Reserve Reconciliation - Casualty Non-Proportional\")","v":"Schedule XI(b)(v) Schedule of Reserve Reconciliation - Casualty Non-Proportional"}]
[71,{"$f":"HYPERLINK(\"#'Sch XI(b)(vi) (EBS)'!A1\",\"Schedule XI(b)(vi) Schedule of Reserve Reconciliation - Financial Lines\")","v":"Schedule XI(b)(vi) Schedule of Reserve Reconciliation - Financial Lines"}]
[72,{"$f":"HYPERLINK(\"#'Sch XI(b)(vii) (EBS)'!A1\",\"Schedule XI(b)(vii) Schedule of Reserve Reconciliation - Other Specialty Lines\")","v":"Schedule XI(b)(vii) Schedule of Reserve Reconciliation - Other Specialty Lines"}]
[73,{"$f":"HYPERLINK(\"#'Sch XI(b)(viii) (EBS)'!A1\",\"Schedule XI(b)(viii) Schedule of Reserve Reconciliation - Structured/Finite Lines\")","v":"Schedule XI(b)(viii) Schedule of Reserve Reconciliation - Structured/Finite Lines"}]
[]
[null,"Eligible Capital"]
[{"$f":"A214+1","v":74},{"$f":"HYPERLINK(\"#'Schedule XII(a)'!A1\",\"Schedule XII(a) - Schedule of Eligible Capital\")","v":"Schedule XII(a) - Schedule of Eligible Capital"}]
[null,"i)",{"$f":"HYPERLINK(\"#'Schedule XII(a)'!G26:G30\",\"Policyholder Obligations equals Form 1EBS\")","v":"Policyholder Obligations equals Form 1EBS"},{"$f":"IF('Schedule XII(a)'!H30=0,\"N/A\",IF('Schedule XII(a)'!G28=0,\"Schedule Not Completed\",IF(ROUND('Schedule XII(a)'!H32=0,0),\"True\",\"False\")))","v":"N/A"},{"$f":"'Schedule XII(a)'!G28-('Form 1EBS'!F98+'Form 1EBS'!F108)","v":0},{"$f":"IF('Schedule XII(a)'!G28=0,0,('Schedule XII(a)'!G28-('Form 1EBS'!F98+'Form 1EBS'!F108))/('Form 1EBS'!F98+'Form 1EBS'!F108))","v":0},null,{"$f":"IF(D218=\"Schedule Not Completed\",\"Blank\",\"\")","v":""},{"$f":"IF(H218=\"Blank\",IF(P218=TRUE,\"Yes\",\"\"),\"\")","v":""}]
[]
[null,"ii)",{"$f":"HYPERLINK(\"#'Schedule XII(a) (EBS)'!H26:H30\",\"Encumbered Assets equals Form 1EBS\")","v":"Encumbered Assets equals Form 1EBS"},{"$f":"IF('Schedule XII(a)'!H34=0,\"N/A\",IF('Schedule XII(a)'!H28=0,\"Schedule Not Completed\",IF('Form 1EBS'!F193='Schedule XII(a)'!H28,\"True\",\"False\")))","v":"N/A"},{"$f":"'Schedule XII(a)'!H28-'Form 1EBS'!F193","v":0},{"$f":"IF('Schedule XII(a)'!H28=0,0,('Schedule XII(a)'!H28-'Form 1EBS'!F193)/'Form 1EBS'!F193)","v":0},null,{"$f":"IF(D220=\"Schedule Not Completed\",\"Blank\",\"\")","v":""},{"$f":"IF(H220=\"Blank\",IF(P220=TRUE,\"Yes\",\"\"),\"\")","v":""}]
[null,"iii)",{"$f":"HYPERLINK(\"#'Schedule XII(a)'!J79:J81\",\"Eligible Capital equals Economic Available Capital & Surplus\")","v":"Eligible Capital equals Economic Available Capital & Surplus"},{"$f":"IF('Schedule XII(a)'!J79=0,\"N/A\",'Schedule XII(a)'!J81)","v":"N/A"},{"$f":"'Schedule XII(a)'!J83","v":0},{"$f":"IF('Schedule XII(a)'!J79=0,0,('Schedule XII(a)'!J83/'Schedule XII(a)'!J9))","v":0},null,{"$f":"IF(D221=\"N/A\",\"Blank\",\"\")","v":"Blank"},{"$f":"IF(H221=\"Blank\",IF(P221=TRUE,\"Yes\",\"\"),\"\")","v":""},null,{"$f":"IF(D221=\"False\",\"False.\",\"\")","v":""},{"$f":"IF(K221=\"\",\"\",IF(P221=TRUE,\"Yes\",\"\"))","v":""}]
[{"$f":"A217+1","v":75},{"$f":"HYPERLINK(\"#'Schedule XII(b)'!A1\",\"Schedule XII(b) - Schedule of Eligible Capital - Additional Details\")","v":"Schedule XII(b) - Schedule of Eligible Capital - Additional Details"}]
[]
[null,"Schedule XVI - Schedule of Regulated Non-Insurance Financial Operating Entities"]
[{"$f":"A217+1","v":75},{"$f":"HYPERLINK(\"#'Schedule XVI'!A1\",\"Schedule XVI - Schedule of Regulated Non-Insurance Financial Operating Entities\")","v":"Schedule XVI - Schedule of Regulated Non-Insurance Financial Operating Entities"}]
[null,"i)",{"$f":"HYPERLINK(\"#'Schedule XVI'!A1\",\"Schedule of Regulated Non-Insurance Financial Operating Entities\")","v":"Schedule of Regulated Non-Insurance Financial Operating Entities"},{"$f":"IF('Schedule XVI'!B11=0,\"Schedule is Blank\",\"True\")","v":"Schedule is Blank"},null,null,null,{"$f":"IF(D226=\"Schedule is Blank\",\"Blank\",\"\")","v":"Blank"},{"$f":"IF(H226=\"Blank\",IF(P226=TRUE,\"Yes\",\"\"),\"\")","v":""}]
[]
[null,"Schedule XVII - Schedule of Solvency"]
[{"$f":"A225+1","v":76},{"$f":"HYPERLINK(\"#'Schedule XVII'!A1\",\"Schedule XVII - Schedule of Solvency\")","v":"Schedule XVII - Schedule of Solvency"}]
[null,"i)",{"$f":"HYPERLINK(\"#'Schedule XVII'!A1\",\"Schedule of Solvency\")","v":"Schedule of Solvency"},{"$f":"IF('Schedule XVII'!J211=0,\"Schedule is Blank\",\"True\")","v":"Schedule is Blank"},null,null,null,{"$f":"IF(D230=\"Schedule is Blank\",\"Blank\",\"\")","v":"Blank"},{"$f":"IF(H230=\"Blank\",IF(P230=TRUE,\"Yes\",\"\"),\"\")","v":""},null,null,null,null,null,null,false]
[]
[null,"Commercial Insurers Risk Assessment (CIRA)"]
[{"$f":"A229+1","v":77},{"$f":"HYPERLINK(\"#'Corp Gov'!A1\",\"Corporate Goverance\")","v":"Corporate Goverance"},null,{"$f":"IF('Corp Gov'!D17=0,\"Schedule is Blank\",\"True\")","v":"Schedule is Blank"},null,null,null,{"$f":"IF(D233=\"Schedule is Blank\",\"Blank\",\"\")","v":"Blank"},{"$f":"IF(H233=\"Blank\",IF(P233=TRUE,\"Yes\",\"\"),\"\")","v":""}]
[{"$f":"A233+1","v":78},{"$f":"HYPERLINK(\"#'Risk Man'!A1\",\"Risk Management\")","v":"Risk Management"},null,{"$f":"IF('Risk Man'!D18=0,\"Schedule is Blank\",\"True\")","v":"Schedule is Blank"},null,null,null,"Blank",""]
[{"$f":"A234+1","v":79},{"$f":"HYPERLINK(\"#'Identification'!A1\",\"Identification (Class 4 & 3B Insurers Only)\")","v":"Identification (Class 4 & 3B Insurers Only)"},null,{"$f":"IF('Company Information'!$F$11=\"Class 3A\",\"N/A\",IF(Identification!M19=0,\"Schedule is Blank\",\"True\"))","v":"N/A"},null,null,null,"",""]
[{"$f":"A235+1","v":80},{"$f":"HYPERLINK(\"#'Measurement'!A1\",\"Measurement (Class 4 & 3B Insurers Only)\")","v":"Measurement (Class 4 & 3B Insurers Only)"},null,{"$f":"IF('Company Information'!$F$11=\"Class 3A\",\"N/A\",IF(Measurement!M19=0,\"Schedule is Blank\",\"True\"))","v":"N/A"},null,null,null,"",""]
[{"$f":"A236+1","v":81},{"$f":"HYPERLINK(\"#'Response'!A1\",\"Response (Class 4 & 3B Insurers Only)\")","v":"Response (Class 4 & 3B Insurers Only)"},null,{"$f":"IF('Company Information'!$F$11=\"Class 3A\",\"N/A\",IF(Response!M19=0,\"Schedule is Blank\",\"True\"))","v":"N/A"},null,null,null,"",""]
[{"$f":"A237+1","v":82},{"$f":"HYPERLINK(\"#'Monitoring & Reporting'!A1\",\"Monitoring & Reporting (Class 4 & 3B Insurers Only)\")","v":"Monitoring & Reporting (Class 4 & 3B Insurers Only)"},null,{"$f":"IF('Company Information'!$F$11=\"Class 3A\",\"N/A\",IF('Monitoring & Reporting'!M19=0,\"Schedule is Blank\",\"True\"))","v":"N/A"},null,null,null,"",""]
[]
[null,"Summary"]
[{"$f":"A238+1","v":83},{"$f":"HYPERLINK(\"#'Summary'!A1\",\"Summary Tab\")","v":"Summary Tab"}]
[null,"i)",{"$f":"HYPERLINK(\"#'Summary'!B60:F60\",\"ECR Ratio Met\")","v":"ECR Ratio Met"},{"$f":"IF(Summary!N90=0,\"EBS is Blank\",IF(Summary!N126>100%,\"ECR Ratio of \"&ROUND(Summary!N126,2)*100&\"% Met\",\"ECR of \"&ROUND(Summary!N126,2)*100&\"% is not Met\"))","v":"EBS is Blank"}]
[]
[null,"Company Specific Parameters"]
[{"$f":"A241+1","v":84},{"$f":"HYPERLINK(\"#'Company Specific Parameters'!A1\",\"Company Specific Parameters\")","v":"Company Specific Parameters"}]
[null,"i)",{"$f":"HYPERLINK(\"#'Company Specific Parameters'!A1\",\"Capital Charge has been amended\")","v":"Capital Charge has been amended"},{"$f":"IF(Summary!N86=0,\"No\",\"Adjustment made to a BSCR Capital Charge\")","v":"No"},{"$f":"Summary!N86","v":0},{"$f":"IF(Summary!N86=0,0,(Summary!N86-Summary!N74)/Summary!N74)","v":0}]
[]
[null,null,null,null,null,null,null,null,null,null,""]

{"sheet":"Index","index":5,"n_rows":86,"n_cols":40,"rows_kept":86,"cut":false,"hidden":false,"merged":[[79,2,80,7],[79,32,80,37],[82,2,83,7],[82,9,83,14],[70,39,71,44],[79,25,80,30],[73,2,74,7],[82,39,83,44],[43,2,44,7],[49,16,50,21],[43,9,44,14],[49,2,50,7],[70,16,71,21],[70,2,71,7],[64,32,65,37],[55,25,56,30],[79,9,80,14],[79,16,80,21],[40,16,41,21],[31,9,32,14],[64,25,65,30],[70,9,71,14],[31,39,32,44],[28,2,29,7],[28,9,29,14],[40,2,41,7],[22,32,23,37],[25,25,26,30],[25,2,26,7],[28,25,29,30],[28,32,29,37],[31,2,32,7],[43,32,44,37],[43,39,44,44],[49,32,50,37],[52,39,53,44],[28,16,29,21],[25,32,26,37],[22,16,23,21],[22,25,23,30],[85,9,86,14],[40,39,41,44],[25,9,26,14],[25,16,26,21],[40,32,41,37],[28,39,29,44],[34,2,35,7],[34,16,35,21],[49,25,50,30],[52,25,53,30],[40,25,41,30],[34,9,35,14],[55,39,56,44],[52,32,53,37],[55,32,56,37],[49,39,50,44],[58,9,59,14],[52,16,53,21],[49,9,50,14],[40,9,41,14],[79,39,80,44],[70,25,71,30],[70,32,71,37],[25,39,26,44],[16,16,17,21],[4,9,5,14],[22,2,23,7],[4,39,5,44],[4,32,5,37],[16,39,17,44],[19,2,20,7],[16,9,17,14],[13,25,14,30],[19,9,20,14],[19,16,20,21],[7,2,8,7],[19,25,20,30],[19,39,20,44],[16,2,17,7],[13,39,14,44],[13,32,14,37],[19,32,20,37],[22,9,23,14],[85,2,86,7],[31,16,32,21],[31,25,32,30],[31,32,32,37],[4,16,5,21],[4,25,5,30],[16,32,17,37],[22,39,23,44],[4,2,5,7],[55,16,56,21],[52,9,53,14],[55,9,56,14],[52,2,53,7],[55,2,56,7],[64,2,65,7],[64,9,65,14],[64,16,65,21],[82,32,83,37],[82,16,83,21],[82,25,83,30],[16,25,17,30],[13,2,14,7],[13,9,14,14],[13,16,14,21]]}
[null,"INDEX"]
[null,{"$f":"'Company Information'!C7","v":"Enter Company Name"}]
[null,"CLICK BUTTON TO NAVIGATE"]
[]
[null,null,{"$f":"HYPERLINK(\"#'Submission'!A1\",\"Submission\")","v":"Submission"},null,null,null,null,null,null,{"$f":"HYPERLINK(\"#'Content'!A1\",\"Content\")","v":"Content"},null,null,null,null,null,null,{"$f":"HYPERLINK(\"#'Attachments'!A1\",\"Attachments\")","v":"Attachments"},null,null,null,null,null,null,null,null,{"$f":"HYPERLINK(\"#'Zones'!A1\",\"Zones\")","v":"Zones"},null,null,null,null,null,null,{"$f":"HYPERLINK(\"#'Company Information'!A1\",\"Company Information\")","v":"Company Information"},null,null,null,null,null,null,{"$f":"HYPERLINK(\"#'Declaration'!A1\",\"Declaration Sheet\")","v":"Declaration Sheet"}]
[]
[]
[null,null,{"$f":"HYPERLINK(\"#'SAR & Sanc. (All)'!A1\",\"SAR & Sanctions (All insurers)\")","v":"SAR & Sanctions (All insurers)"}]
[]
[]
[]
[null,"STATUTORY AND BSCR SCHEDULES"]
[]
[null,null,{"$f":"HYPERLINK(\"#'Information Sheet'!A1\",\"Information Sheet\")","v":"Information Sheet"},null,null,null,null,null,null,{"$f":"HYPERLINK(\"#'Form 1SFS'!A1\",\"Form 1SFS \nBalance Sheet\")","v":"Form 1SFS \nBalance Sheet"},null,null,null,null,null,null,{"$f":"HYPERLINK(\"#'Form 2SFS'!A1\",\"Form 2SFS \nIncome Stmt\")","v":"Form 2SFS \nIncome Stmt"},null,null,null,null,null,null,null,null,{"$f":"HYPERLINK(\"#'Form 8SFS'!A1\",\"Form 8SFS \nCapital & Surplus\")","v":"Form 8SFS \nCapital & Surplus"},null,null,null,null,null,null,{"$f":"HYPERLINK(\"#'Form 1ASFS'!A1\",\"Form 1ASFS \nIFRS Bal. Sheet\")","v":"Form 1ASFS \nIFRS Bal. Sheet"},null,null,null,null,null,null,{"$f":"HYPERLINK(\"#'Form 2ASFS'!A1\",\"Form 2ASFS \nIFRS Inc. Stmt\")","v":"Form 2ASFS \nIFRS Inc. Stmt"}]
[]
[]
[null,null,{"$f":"HYPERLINK(\"#'Form 8ASFS'!A1\",\"Form 8ASFS \nIFRS C&S\")","v":"Form 8ASFS \nIFRS C&S"},null,null,null,null,null,null,{"$f":"HYPERLINK(\"#'Form 1EBS'!A1\",\"Form 1EBS \nBalance Sheet\")","v":"Form 1EBS \nBalance Sheet"},null,null,null,null,null,null,{"$f":"HYPERLINK(\"#'Schedule II'!A1\",\"Sch II     Investments\")","v":"Sch II     Investments"},null,null,null,null,null,null,null,null,{"$f":"HYPERLINK(\"#'Schedule IIA'!A1\",\"Sch IIA          Funds Held\")","v":"Sch IIA          Funds Held"},null,null,null,null,null,null,{"$f":"HYPERLINK(\"#'Investment Reconciliation'!A1\",\"Investment Reconciliation\")","v":"Investment Reconciliation"},null,null,null,null,null,null,{"$f":"HYPERLINK(\"#'Schedule IIB (EBS)'!A1\",\"Sch IIB (EBS)   Investments\")","v":"Sch IIB (EBS)   Investments"}]
[]
[]
[null,null,{"$f":"HYPERLINK(\"#'Schedule IIC (EBS)'!A1\",\"Sch IIC (EBS)         Funds Held\")","v":"Sch IIC (EBS)         Funds Held"},null,null,null,null,null,null,{"$f":"HYPERLINK(\"#'SCHEDULE IID (EBS)'!A1\",\"Sch IID (EBS) Segregated Acc\")","v":"Sch IID (EBS) Segregated Acc"},null,null,null,null,null,null,{"$f":"HYPERLINK(\"#'SCHEDULE IIE (EBS)'!A1\",\"Sch IIE (EBS) Deposits\")","v":"Sch IIE (EBS) Deposits"},null,null,null,null,null,null,null,null,{"$f":"HYPERLINK(\"#'SCHEDULE IIF (EBS)'!A1\",\"Sch IIF (EBS) \nOther Sundry\")","v":"Sch IIF (EBS) \nOther Sundry"},null,null,null,null,null,null,{"$f":"HYPERLINK(\"#'SCHEDULE III'!A1\",\"Sch III \nReserves By LOB\")","v":"Sch III \nReserves By LOB"},null,null,null,null,null,null,{"$f":"HYPERLINK(\"#'SCHEDULE III (EBS)'!A1\",\"Sch III (EBS)\nReserves by LOB\")","v":"Sch III (EBS)\nReserves by LOB"}]
[]
[]
[null,null,{"$f":"HYPERLINK(\"#'SCHEDULE IIIA (EBS)'!A1\",\"Sch IIIA (EBS)\nReserves by Zone\")","v":"Sch IIIA (EBS)\nReserves by Zone"},null,null,null,null,null,null,{"$f":"HYPERLINK(\"#'SCHEDULE IV'!A1\",\"Sch IV\nPremium by LOB\")","v":"Sch IV\nPremium by LOB"},null,null,null,null,null,null,{"$f":"HYPERLINK(\"#'SCHEDULE IVA (EBS)'!A1\",\"Sch IVA (EBS)\nPremium by LOB\")","v":"Sch IVA (EBS)\nPremium by LOB"},null,null,null,null,null,null,null,null,{"$f":"HYPERLINK(\"#'SCHEDULE IVC (EBS)'!A1\",\"Sch IVC (EBS) Premium by Zone\")","v":"Sch IVC (EBS) Premium by Zone"},null,null,null,null,null,null,{"$f":"HYPERLINK(\"#'SCHEDULE IVD (EBS)'!A1\",\"Sch IVD (EBS) Exposure by LOB\")","v":"Sch IVD (EBS) Exposure by LOB"},null,null,null,null,null,null,{"$f":"HYPERLINK(\"#'SCHEDULE IVE (EBS)'!A1\",\"Sch IVE (EBS) Exposure by Zone\")","v":"Sch IVE (EBS) Exposure by Zone"}]
[]
[]
[null,null,{"$f":"HYPERLINK(\"#'SCHEDULE IVF'!A1\",\"Sch IVF\nRisk Exposure\")","v":"Sch IVF\nRisk Exposure"},null,null,null,null,null,null,{"$f":"HYPERLINK(\"#'SCHEDULE V'!A1\",\"Sch V \nRisk Mgmt\")","v":"Sch V \nRisk Mgmt"},null,null,null,null,null,null,{"$f":"HYPERLINK(\"#'SCHEDULE V(a)'!A1\",\"Sch V(a) Governance\")","v":"Sch V(a) Governance"},null,null,null,null,null,null,null,null,{"$f":"HYPERLINK(\"#'SCHEDULE V(c)'!A1\",\"Sch V(c) \nIntra-Group\")","v":"Sch V(c) \nIntra-Group"},null,null,null,null,null,null,{"$f":"HYPERLINK(\"#'SCHEDULE V(e)'!A1\",\"Sch V(e) \nStress Scenario\")","v":"Sch V(e) \nStress Scenario"},null,null,null,null,null,null,{"$f":"HYPERLINK(\"#'SCHEDULE V(g)'!A1\",\"Sch V(g) \nGAAP-BSCR Rec\")","v":"Sch V(g) \nGAAP-BSCR Rec"}]
[]
[]
[null,null,{"$f":"HYPERLINK(\"#'SCHEDULE V(k)'!A1\",\"Sch V(k) \nDeposit Assets\")","v":"Sch V(k) \nDeposit Assets"},null,null,null,null,null,null,{"$f":"HYPERLINK(\"#'SCHEDULE V(l)'!A1\",\"Sch V(l) \nSegregated Acc\")","v":"Sch V(l) \nSegregated Acc"},null,null,null,null,null,null,{"$f":"HYPERLINK(\"#'SCHEDULE V(m)'!A1\",\"Sch V(m) \nAlt. Capital\")","v":"Sch V(m) \nAlt. Capital"},null,null,null,null,null,null,null,null,{"$f":"HYPERLINK(\"#'SCHEDULE VI'!A1\",\"Sch VI\nAssets\")","v":"Sch VI\nAssets"},null,null,null,null,null,null,{"$f":"HYPERLINK(\"#'SCHEDULE VIA'!A1\",\"Sch VIA\nFunds Held\")","v":"Sch VIA\nFunds Held"},null,null,null,null,null,null,{"$f":"HYPERLINK(\"#'SCHEDULE VI (EBS)'!A1\",\"Sch VI (EBS)\nAssets\")","v":"Sch VI (EBS)\nAssets"}]
[]
[]
[null,null,{"$f":"HYPERLINK(\"#'SCHEDULE VIA (EBS)'!A1\",\"Sch VIA (EBS)\nFunds Held\")","v":"Sch VIA (EBS)\nFunds Held"},null,null,null,null,null,null,{"$f":"HYPERLINK(\"#'SCHEDULE XVI'!A1\",\"Sch XVI \nNon-Insurance\")","v":"Sch XVI \nNon-Insurance"},null,null,null,null,null,null,{"$f":"HYPERLINK(\"#'SCHEDULE XVII'!A1\",\"Sch XVII \nSolvency Analysis\")","v":"Sch XVII \nSolvency Analysis"},null,null,null,null,null,null,null,null,{"$f":"HYPERLINK(\"#'SCHEDULE XVIII'!A1\",\"Sch XVIII \nCeded Reins\")","v":"Sch XVIII \nCeded Reins"},null,null,null,null,null,null,{"$f":"HYPERLINK(\"#'SCHEDULE XVIII (EBS)'!A1\",\"Sch XVIII (EBS)\nCeded Reins\")","v":"Sch XVIII (EBS)\nCeded Reins"},null,null,null,null,null,null,{"$f":"HYPERLINK(\"#'SCHEDULE XXIA'!A1\",\"Sch XXIA\nCash Counterpart\")","v":"Sch XXIA\nCash Counterpart"}]
[]
[]
[null,null,{"$f":"HYPERLINK(\"#'SCHEDULE XXA'!A1\",\"Sch XXA\nCurrency Analysis\")","v":"Sch XXA\nCurrency Analysis"},null,null,null,null,null,null,{"$f":"HYPERLINK(\"#'SCHEDULE XXIA'!A1\",\"Sch XXIA \nCon Risk\")","v":"Sch XXIA \nCon Risk"},null,null,null,null,null,null,{"$f":"HYPERLINK(\"#'SCHEDULE XXIII'!A1\",\"Sch XXIII \nInterest Rates\")","v":"Sch XXIII \nInterest Rates"}]
[]
[]
[]
[null,"CATASTROPHE RISK RETURN"]
[]
[null,null,{"$f":"HYPERLINK(\"#'Schedule X(a)'!A1\",\"Schedule X(a)\")","v":"Schedule X(a)"},null,null,null,null,null,null,{"$f":"HYPERLINK(\"#'Schedule X(b)'!A1\",\"Schedule X(b)\")","v":"Schedule X(b)"},null,null,null,null,null,null,{"$f":"HYPERLINK(\"#'Schedule X(c)'!A1\",\"Schedule X(c)\")","v":"Schedule X(c)"},null,null,null,null,null,null,null,null,{"$f":"HYPERLINK(\"#'Schedule X(d)'!A1\",\"Schedule X(d)\")","v":"Schedule X(d)"},null,null,null,null,null,null,{"$f":"HYPERLINK(\"#'Schedule X(e)'!A1\",\"Schedule X(e)\")","v":"Schedule X(e)"},null,null,null,null,null,null,{"$f":"HYPERLINK(\"#'Schedule X(f)'!A1\",\"Schedule X(f)\")","v":"Schedule X(f)"}]
[]
[]
[null,null,{"$f":"HYPERLINK(\"#'Schedule X(g)'!A1\",\"Schedule X(g)\")","v":"Schedule X(g)"},null,null,null,null,null,null,{"$f":"HYPERLINK(\"#'Schedule X(h)'!A1\",\"Schedule X(h)\")","v":"Schedule X(h)"},null,null,null,null,null,null,null,null,null,null,null,null,null,null,null,null,null,null,null,null,null,null,{"$f":"HYPERLINK(\"#'Schedule X(i)'!A1\",\"Schedule X(i)\")","v":"Schedule X(i)"},null,null,null,null,null,null,{"$f":"HYPERLINK(\"#'Schedule X(j)'!A1\",\"Schedule X(j)\")","v":"Schedule X(j)"}]
[]
[]
[]
[null,"SCHEDULE OF LOSS TRIANGLES (Class 4/3B Only)",null,null,null,null,null,null,null,null,null,null,null,null,null,null,null,null,null,null,null,null,null,null,"RECONCILIATION OF NET LOSS RESERVES (Class 4/3B Only)"]
[]
[null,null,{"$f":"HYPERLINK(\"#'Schedule XI'!A1\",\"Schedule XI\")","v":"Schedule XI"},null,null,null,null,null,null,{"$f":"HYPERLINK(\"#'Schedule XI(a)'!A1\",\"Schedule XI(a)\")","v":"Schedule XI(a)"},null,null,null,null,null,null,{"$f":"HYPERLINK(\"#'Sch XI(a)(i)'!A1\",\"Sch XI(a)(i)\")","v":"Sch XI(a)(i)"},null,null,null,null,null,null,null,null,{"$f":"HYPERLINK(\"#'Schedule XI(b)'!A1\",\"Schedule XI(b)\")","v":"Schedule XI(b)"},null,null,null,null,null,null,{"$f":"HYPERLINK(\"#'Sch XI(b)(i)'!A1\",\"Sch XI(b)(i)\")","v":"Sch XI(b)(i)"},null,null,null,null,null,null,{"$f":"HYPERLINK(\"#'Sch XI(b)(ii)'!A1\",\"Sch XI(b)(ii)\")","v":"Sch XI(b)(ii)"}]
[]
[]
[null,null,{"$f":"HYPERLINK(\"#'Sch XI(a)(ii)'!A1\",\"Sch XI(a)(ii)\")","v":"Sch XI(a)(ii)"},null,null,null,null,null,null,{"$f":"HYPERLINK(\"#'Sch XI(a)(iii)'!A1\",\"Sch XI(a)(iii)\")","v":"Sch XI(a)(iii)"},null,null,null,null,null,null,{"$f":"HYPERLINK(\"#'Sch XI(a)(iv)'!A1\",\"Sch XI(a)(iv)\")","v":"Sch XI(a)(iv)"},null,null,null,null,null,null,null,null,{"$f":"HYPERLINK(\"#'Sch XI(b)(iii)'!A1\",\"Sch XI(b)(iii)\")","v":"Sch XI(b)(iii)"},null,null,null,null,null,null,{"$f":"HYPERLINK(\"#'Sch XI(b)(iv)'!A1\",\"Sch XI(b)(iv)\")","v":"Sch XI(b)(iv)"},null,null,null,null,null,null,{"$f":"HYPERLINK(\"#'Sch XI(b)(v)'!A1\",\"Sch XI(b)(v)\")","v":"Sch XI(b)(v)"}]
[]
[]
[null,null,{"$f":"HYPERLINK(\"#'Sch XI(a)(v)'!A1\",\"Sch XI(a)(v)\")","v":"Sch XI(a)(v)"},null,null,null,null,null,null,{"$f":"HYPERLINK(\"#'Sch XI(a)(vi)'!A1\",\"Sch XI(a)(vi)\")","v":"Sch XI(a)(vi)"},null,null,null,null,null,null,{"$f":"HYPERLINK(\"#'Sch XI(a)(vii)'!A1\",\"Sch XI(a)(vii)\")","v":"Sch XI(a)(vii)"},null,null,null,null,null,null,null,null,{"$f":"HYPERLINK(\"#'Sch XI(b)(vi)'!A1\",\"Sch XI(b)(vi)\")","v":"Sch XI(b)(vi)"},null,null,null,null,null,null,{"$f":"HYPERLINK(\"#'Sch XI(b)(vii)'!A1\",\"Sch XI(b)(vii)\")","v":"Sch XI(b)(vii)"},null,null,null,null,null,null,{"$f":"HYPERLINK(\"#'Sch XI(b)(viii)'!A1\",\"Sch XI(b)(viii)\")","v":"Sch XI(b)(viii)"}]
[]
[]
[null,null,null,null,null,null,null,null,null,{"$f":"HYPERLINK(\"#'Sch XI(a)(viii)'!A1\",\"Sch XI(a)(viii)\")","v":"Sch XI(a)(viii)"}]
[]
[]
[]
[null,"CISSA",null,null,null,null,null,null,null,null,null,null,null,null,null,null,null,null,null,null,null,null,null,null,"ELIGIBLE CAPITAL"]
[]
[null,null,{"$f":"HYPERLINK(\"#'Schedule IX(a)'!A1\",\"Sch IX(a) \nCapital Summary\")","v":"Sch IX(a) \nCapital Summary"},null,null,null,null,null,null,{"$f":"HYPERLINK(\"#'Schedule IX(b)'!A1\",\"Sch IX(b)\nGen. Questions\")","v":"Sch IX(b)\nGen. Questions"},null,null,null,null,null,null,{"$f":"HYPERLINK(\"#'Schedule IX(c)'!A1\",\"Sch IX(c)\nRisk Assessment\")","v":"Sch IX(c)\nRisk Assessment"},null,null,null,null,null,null,null,null,{"$f":"HYPERLINK(\"#'Schedule XII(a)'!A1\",\"Schedule XII(a)\")","v":"Schedule XII(a)"},null,null,null,null,null,null,{"$f":"HYPERLINK(\"#'Schedule XII(b)'!A1\",\"Schedule XII(b)\")","v":"Schedule XII(b)"}]
[]
[]
[]
[null,"OPERATIONAL RISK CHARGE"]
[]
[null,null,{"$f":"HYPERLINK(\"#'Corp Gov'!A1\",\"Corporate Governance\")","v":"Corporate Governance"},null,null,null,null,null,null,{"$f":"HYPERLINK(\"#'Risk Man'!A1\",\"Risk Management\")","v":"Risk Management"},null,null,null,null,null,null,{"$f":"HYPERLINK(\"#'Identification'!A1\",\"Risk Identification (Class 4/3B Only)\")","v":"Risk Identification (Class 4/3B Only)"},null,null,null,null,null,null,null,null,{"$f":"HYPERLINK(\"#'Measurement'!A1\",\"Risk Measurement (Class 4/3B Only)\")","v":"Risk Measurement (Class 4/3B Only)"},null,null,null,null,null,null,{"$f":"HYPERLINK(\"#'Response'!A1\",\"Risk Response (Class 4/3B Only)\")","v":"Risk Response (Class 4/3B Only)"},null,null,null,null,null,null,{"$f":"HYPERLINK(\"#'Monitoring & Reporting'!A1\",\"Risk Monitoring & Reporting\")","v":"Risk Monitoring & Reporting"}]
[]
[]
[null,null,{"$f":"HYPERLINK(\"#'Op Risk'!A1\",\"Operational Risk Charge\")","v":"Operational Risk Charge"}]
[]
[]
[]
[null,"BSCR"]
[]
[null,null,{"$f":"HYPERLINK(\"#'Summary'!A1\",\"Summary\")","v":"Summary"},null,null,null,null,null,null,{"$f":"HYPERLINK(\"#'Fixed Income Investments'!A1\",\"Fixed Income Investments\")","v":"Fixed Income Investments"},null,null,null,null,null,null,{"$f":"HYPERLINK(\"#'Equity Investments'!A1\",\"Equity Investments\")","v":"Equity Investments"},null,null,null,null,null,null,null,null,{"$f":"HYPERLINK(\"#'Interest Rate-Liquidity Risk'!A1\",\"Interest Rate-Liquidity Risk\")","v":"Interest Rate-Liquidity Risk"},null,null,null,null,null,null,{"$f":"HYPERLINK(\"#'Interest Rate-Liquidity (Rev.)'!A1\",\"Interest-Liquidity Risk (Revised)\")","v":"Interest-Liquidity Risk (Revised)"},null,null,null,null,null,null,{"$f":"HYPERLINK(\"#'Currency Risk'!A1\",\"Currency Risk\")","v":"Currency Risk"}]
[]
[]
[null,null,{"$f":"HYPERLINK(\"#'Concentration Risk'!A1\",\"Concentration Risk\")","v":"Concentration Risk"},null,null,null,null,null,null,{"$f":"HYPERLINK(\"#'Geographic Diversification'!A1\",\"Geographic Diversification\")","v":"Geographic Diversification"},null,null,null,null,null,null,{"$f":"HYPERLINK(\"#'Premium Risk'!A1\",\"Premium Risk\")","v":"Premium Risk"},null,null,null,null,null,null,null,null,{"$f":"HYPERLINK(\"#'Reserve Risk'!A1\",\"Reserve Risk\")","v":"Reserve Risk"},null,null,null,null,null,null,{"$f":"HYPERLINK(\"#'Credit Risk'!A1\",\"Credit Risk\")","v":"Credit Risk"},null,null,null,null,null,null,{"$f":"HYPERLINK(\"#'Catastrophe Risk'!A1\",\"Catastrophe Risk\")","v":"Catastrophe Risk"}]
[]
[]
[null,null,{"$f":"HYPERLINK(\"#'Correlation Matrix'!A1\",\"Correlation Matrix\")","v":"Correlation Matrix"},null,null,null,null,null,null,{"$f":"HYPERLINK(\"#'Company Specific Parameters'!A1\",\"Company Specific Parameters\")","v":"Company Specific Parameters"}]

{"sheet":"Import","index":6,"n_rows":45538,"n_cols":16,"rows_kept":4500,"cut":true,"hidden":false,"merged":[[0,4,0,6],[0,8,0,10],[0,12,0,14]],"bounds":{"rows_first":2000,"rows_last":500,"rows_between":2000,"halvings":0}}
[null,null,null,null,"Unconsolidated",null,null,null,"Consolidated",null,null,null,"EBS"]
["Sheet Name","Sheet Short Description","Field Code","Field Description",{"$f":"YEAR('Company Information'!$C$3)","v":2023},null,{"$f":"E2-1","v":2022},null,{"$f":"YEAR('Company Information'!$C$3)","v":2023},null,{"$f":"I2-1","v":2022},null,{"$f":"YEAR('Company Information'!$C$3)","v":2023},null,{"$f":"M2-1","v":2022}]
["Summary",null,null,"Comments",0]
[]
["Declaration",null,null,"Authorised Signing Authority 1",0]
["Declaration",null,null,"Date","00:00:00"]
["Declaration",null,null,"Authorised Signing Authority 2",0]
["Declaration",null,null,"Date","00:00:00"]
["Declaration",null,null,"Authorised Signing Authority 3",0]
["Declaration",null,null,"Date","00:00:00"]
[]
["Info Sheet",null,null,"(d) Statements Held at Registered Office","Select Yes/No"]
["Info Sheet",null,null,"(e) Filing Period - Period Start Date","00:00:00"]
["Info Sheet",null,null,"(g) Figures Translated at:",1]
["Info Sheet",null,null,"(h) Ultimate Parent",0]
["Info Sheet",null,null,"(i) Insurer's Parent Company",0]
["Info Sheet",null,null,"(j) Industry Sector of Insurer's Parent","Select from Drop-Down"]
["Info Sheet",null,null,"(k) Insurer's Ownership Structure","Select from Drop-Down"]
["Info Sheet",null,null,"(l) Insurer's Company Structure","Select from Drop-Down"]
["Info Sheet",null,null,"(l).1 Confirm if Company writes LT Insurance","Select Yes/No"]
["Info Sheet",null,null,"(l).2 LT Insurance written during the period","Select Yes/No"]
["Info Sheet",null,null,"(l).3 Subsidiares wrote Long-Term insurance","Select Yes/No"]
["Info Sheet",null,null,"(l).4 Subsidiares wrote LT Ins. Outside of BDA","Select Yes/No"]
["Info Sheet",null,null,"(l).5 Subsidiares Ins. Outside of BDA jurisdiction 1",0]
["Info Sheet",null,null,"(l).5 Subsidiares Ins. Outside of BDA jurisdiction 2",0]
["Info Sheet",null,null,"(l).5 Subsidiares Ins. Outside of BDA jurisdiction 3",0]
["Info Sheet",null,null,"(m)(i) Is the Insurer a Member of Ins. Group?","Select Yes/No"]
["Info Sheet",null,null,"(m)(ii) Are there Segregated Accounts?","Select Yes/No"]
["Info Sheet",null,null,"(m)(iii) Is the Insurer in Run-Off?","Select Yes/No"]
["Info Sheet",null,null,"(m)(iv) Statements have a Qualified Opinion?","Select Yes/No"]
["Info Sheet",null,null,"(m)(iv) Details of Qualified Opinion",0]
["Info Sheet",null,null,"(m)(v) Minimum Solvency Margin Met","Select Yes/No"]
["Info Sheet",null,null,"(m)(vi) Liquidity Ratio Met","Select Yes/No"]
["Info Sheet",null,null,"(n)(1) Certificate of Registration Date",""]
["Info Sheet",null,null,"(n)(2) # of Conditions",0]
["Info Sheet",null,null,"Effective Start Date of Condition - 1","00:00:00"]
["Info Sheet",null,null,"Effective Start Date of Condition - 2","00:00:00"]
["Info Sheet",null,null,"Effective Start Date of Condition - 3","00:00:00"]
["Info Sheet",null,null,"Effective Start Date of Condition - 4","00:00:00"]
["Info Sheet",null,null,"Effective Start Date of Condition - 5","00:00:00"]
["Info Sheet",null,null,"Effective Start Date of Condition - 6","00:00:00"]
["Info Sheet",null,null,"Effective Start Date of Condition - 7","00:00:00"]
["Info Sheet",null,null,"Effective Start Date of Condition - 8","00:00:00"]
["Info Sheet",null,null,"Effective Start Date of Condition - 9","00:00:00"]
["Info Sheet",null,null,"Effective Start Date of Condition - 10","00:00:00"]
["Info Sheet",null,null,"Effective End Date of Condition - 1","00:00:00"]
["Info Sheet",null,null,"Effective End Date of Condition - 2","00:00:00"]
["Info Sheet",null,null,"Effective End Date of Condition - 3","00:00:00"]
["Info Sheet",null,null,"Effective End Date of Condition - 4","00:00:00"]
["Info Sheet",null,null,"Effective End Date of Condition - 5","00:00:00"]
["Info Sheet",null,null,"Effective End Date of Condition - 6","00:00:00"]
["Info Sheet",null,null,"Effective End Date of Condition - 7","00:00:00"]
["Info Sheet",null,null,"Effective End Date of Condition - 8","00:00:00"]
["Info Sheet",null,null,"Effective End Date of Condition - 9","00:00:00"]
["Info Sheet",null,null,"Effective End Date of Condition - 10","00:00:00"]
["Info Sheet",null,null,"Description of Condition - 1",0]
["Info Sheet",null,null,"Description of Condition - 2",0]
["Info Sheet",null,null,"Description of Condition - 3",0]
["Info Sheet",null,null,"Description of Condition - 4",0]
["Info Sheet",null,null,"Description of Condition - 5",0]
["Info Sheet",null,null,"Description of Condition - 6",0]
["Info Sheet",null,null,"Description of Condition - 7",0]
["Info Sheet",null,null,"Description of Condition - 8",0]
["Info Sheet",null,null,"Description of Condition - 9",0]
["Info Sheet",null,null,"Description of Condition - 10",0]
["Info Sheet",null,null,"Insurer Complied with All Conditions?","Select Yes/No"]
["Info Sheet",null,null,"(p) # of Directions",0]
["Info Sheet",null,null,"Effective Start Date of Direction - 1","00:00:00"]
["Info Sheet",null,null,"Effective Start Date of Direction - 2","00:00:00"]
["Info Sheet",null,null,"Effective Start Date of Direction - 3","00:00:00"]
["Info Sheet",null,null,"Effective Start Date of Direction - 4","00:00:00"]
["Info Sheet",null,null,"Effective Start Date of Direction - 5","00:00:00"]
["Info Sheet",null,null,"Effective Start Date of Direction - 6","00:00:00"]
["Info Sheet",null,null,"Effective Start Date of Direction - 7","00:00:00"]
["Info Sheet",null,null,"Effective Start Date of Direction - 8","00:00:00"]
["Info Sheet",null,null,"Effective Start Date of Direction - 9","00:00:00"]
["Info Sheet",null,null,"Effective Start Date of Direction - 10","00:00:00"]
["Info Sheet",null,null,"Effective End Date of Direction - 1","00:00:00"]
["Info Sheet",null,null,"Effective End Date of Direction - 2","00:00:00"]
["Info Sheet",null,null,"Effective End Date of Direction - 3","00:00:00"]
["Info Sheet",null,null,"Effective End Date of Direction - 4","00:00:00"]
["Info Sheet",null,null,"Effective End Date of Direction - 5","00:00:00"]
["Info Sheet",null,null,"Effective End Date of Direction - 6","00:00:00"]
["Info Sheet",null,null,"Effective End Date of Direction - 7","00:00:00"]
["Info Sheet",null,null,"Effective End Date of Direction - 8","00:00:00"]
["Info Sheet",null,null,"Effective End Date of Direction - 9","00:00:00"]
["Info Sheet",null,null,"Effective End Date of Direction - 10","00:00:00"]
["Info Sheet",null,null,"Description of Direction - 1",0]
["Info Sheet",null,null,"Description of Direction - 2",0]
["Info Sheet",null,null,"Description of Direction - 3",0]
["Info Sheet",null,null,"Description of Direction - 4",0]
["Info Sheet",null,null,"Description of Direction - 5",0]
["Info Sheet",null,null,"Description of Direction - 6",0]
["Info Sheet",null,null,"Description of Direction - 7",0]
["Info Sheet",null,null,"Description of Direction - 8",0]
["Info Sheet",null,null,"Description of Direction - 9",0]
["Info Sheet",null,null,"Description of Direction - 10",0]
["Info Sheet",null,null,"(q) Confirm If Any Negative Responses?","Select Yes/No"]
["Info Sheet",null,null,"Details of Negative Responses",0]
[]
[null,null,null,"Balance Sheet"]
["Form 1SFS/1EBS","Balance Sheet GEN/CON/EBS","1SFS1","Cash and Cash Equivalents",0,null,0,null,0,null,0,null,0,null,0]
["Form 1SFS/1EBS","Balance Sheet GEN/CON/EBS","1SFS2ai","Quoted - Bonds - Held to Maturity",0,null,0,null,0,null,0]
["Form 1SFS/1EBS","Balance Sheet GEN/CON/EBS","1SFS2aii","Quoted - Bonds - Other",0,null,0,null,0,null,0]
["Form 1SFS/1EBS","Balance Sheet GEN/CON/EBS","1EBS2b","Quoted - Bonds - Total",null,null,null,null,null,null,null,null,0,null,0]
["Form 1SFS/1EBS","Balance Sheet GEN/CON/EBS","1SFS2ci","Quoted - Equities - Common Stocks",0,null,0,null,0,null,0,null,0,null,0]
["Form 1SFS/1EBS","Balance Sheet GEN/CON/EBS","1SFS2cii","Quoted - Equities - Preferred Stocks",0,null,0,null,0,null,0,null,0,null,0]
["Form 1SFS/1EBS","Balance Sheet GEN/CON/EBS","1SFS2ciii","Quoted - Equities - Mutual Funds",0,null,0,null,0,null,0,null,0,null,0]
["Form 1SFS/1EBS","Balance Sheet GEN/CON/EBS","1SFS2e","Quoted - Other Investments",0,null,0,null,0,null,0,null,0,null,0]
["Form 1SFS/1EBS","Balance Sheet GEN/CON/EBS","1SFS3ai","Unquoted - Bonds - Held to Maturity",0,null,0,null,0,null,0]
["Form 1SFS/1EBS","Balance Sheet GEN/CON/EBS","1SFS3aii","Unquoted - Bonds - Other",0,null,0,null,0,null,0]
["Form 1SFS/1EBS","Balance Sheet GEN/CON/EBS","1EBS3b","Unquoted - Bonds - Total",null,null,null,null,null,null,null,null,0,null,0]
["Form 1SFS/1EBS","Balance Sheet GEN/CON/EBS","1SFS3ci","Unquoted - Equities - Common Stocks",0,null,0,null,0,null,0,null,0,null,0]
["Form 1SFS/1EBS","Balance Sheet GEN/CON/EBS","1SFS3cii","Unquoted - Equities - Preferred Stocks",0,null,0,null,0,null,0,null,0,null,0]
["Form 1SFS/1EBS","Balance Sheet GEN/CON/EBS","1SFS3ciii","Unquoted - Equities - Mutual Funds",0,null,0,null,0,null,0,null,0,null,0]
["Form 1SFS/1EBS","Balance Sheet GEN/CON/EBS","1SFS3e","Unquoted - Other Investments",0,null,0,null,0,null,0,null,0,null,0]
["Form 1SFS/1EBS","Balance Sheet GEN/CON/EBS","1SFS4a","Inv. In Affiliates - Unregulated Ancillary",0,null,0,null,0,null,0,null,0,null,0]
["Form 1SFS/1EBS","Balance Sheet GEN/CON/EBS","1SFS4b","Inv. In Affiliates - Unregulated Non-Fin. Oper.",0,null,0,null,0,null,0,null,0,null,0]
["Form 1SFS/1EBS","Balance Sheet GEN/CON/EBS","1SFS4c","Inv. In Affiliates - Unregulated Fin. Operating",0,null,0,null,0,null,0,null,0,null,0]
["Form 1SFS/1EBS","Balance Sheet GEN/CON/EBS","1SFS4d","Inv. In Affiliates - Regulated Non-Insurance",0,null,0,null,0,null,0,null,0,null,0]
["Form 1SFS/1EBS","Balance Sheet GEN/CON/EBS","1SFS4e","Inv. In Affiliates - Regulated Insurance",0,null,0,null,0,null,0,null,0,null,0]
["Form 1SFS/1EBS","Balance Sheet GEN/CON/EBS","1SFS4g","Advances To Affiliates",0,null,0,null,0,null,0,null,0,null,0]
["Form 1SFS/1EBS","Balance Sheet GEN/CON/EBS","1SFS5a","Inv. In Mortg. Loans on Real Estate - 1st Lien",0,null,0,null,0,null,0,null,0,null,0]
["Form 1SFS/1EBS","Balance Sheet GEN/CON/EBS","1SFS5b","Inv. In Mortg. Loans on Real Estate - Other",0,null,0,null,0,null,0,null,0,null,0]
["Form 1SFS/1EBS","Balance Sheet GEN/CON/EBS","1SFS6","Policy Loans",null,null,null,null,0,null,0]
["Form 1SFS/1EBS","Balance Sheet GEN/CON/EBS","1SFS7a","Real Estate - Occupied by Company",0,null,0,null,0,null,0,null,0,null,0]
["Form 1SFS/1EBS","Balance Sheet GEN/CON/EBS","1SFS7b","Real Estate - Other",0,null,0,null,0,null,0,null,0,null,0]
["Form 1SFS/1EBS","Balance Sheet GEN/CON/EBS","1SFS8","Collateral Loans",0,null,0,null,0,null,0,null,0,null,0]
["Form 1SFS/1EBS","Balance Sheet GEN/CON/EBS","1SFS9","Investment Income Due and Accrued",0,null,0,null,0,null,0,null,0,null,0]
["Form 1SFS/1EBS","Balance Sheet GEN/CON/EBS","1SFS10a","Accounts & Premium Rec. - In Collection",0,null,0,null,0,null,0,null,0,null,0]
["Form 1SFS/1EBS","Balance Sheet GEN/CON/EBS","1SFS10b","Accounts & Premium Rec. - Not Yet Due ",0,null,0,null,0,null,0]
["Form 1SFS/1EBS","Balance Sheet GEN/CON/EBS","1SFS10c","Accounts & Premium Rec. - Retro. Contracts",0,null,0,null,0,null,0,null,0,null,0]
["Form 1SFS/1EBS","Balance Sheet GEN/CON/EBS","1SFS11a","R/I Balances Receivable - Foreign Affiliates",0,null,0,null,0,null,0,null,0,null,0]
["Form 1SFS/1EBS","Balance Sheet GEN/CON/EBS","1SFS11b","R/I Balances Receivable - Domestic Affiliates",0,null,0,null,0,null,0,null,0,null,0]
["Form 1SFS/1EBS","Balance Sheet GEN/CON/EBS","1SFS11c","R/I Balances Receivable - Pools & Assoc.",0,null,0,null,0,null,0,null,0,null,0]
["Form 1SFS/1EBS","Balance Sheet GEN/CON/EBS","1SFS11d","R/I Balances Receivable - All Other",0,null,0,null,0,null,0,null,0,null,0]
["Form 1SFS/1EBS","Balance Sheet GEN/CON/EBS","1EBS12a","Funds Held by Ceding Companies - Affiliates",null,null,null,null,null,null,null,null,0,null,0]
["Form 1SFS/1EBS","Balance Sheet GEN/CON/EBS","1EBS12b","Funds Held by Ceding Companies - Non-Aff.",null,null,null,null,null,null,null,null,0,null,0]
["Form 1SFS/1EBS","Balance Sheet GEN/CON/EBS","1SFS12","Funds Held by Ceding Companies ",0,null,0,null,0,null,0]
["Form 1SFS/1EBS","Balance Sheet GEN/CON/EBS","1SFS13a","Sundry Assets - Derivatives",0,null,0,null,0,null,0,null,0,null,0]
["Form 1SFS/1EBS","Balance Sheet GEN/CON/EBS","1SFS13b","Sundry Assets - SAC - LT- Variable Annuities",null,null,null,null,0,null,0]
["Form 1SFS/1EBS","Balance Sheet GEN/CON/EBS","1SFS13c","Sundry Assets - SAC - LT- Others",null,null,null,null,0,null,0]
["Form 1SFS/1EBS","Balance Sheet GEN/CON/EBS","1SFS13d","Sundry Assets - SAC - General Business",0,null,0,null,0,null,0,null,0,null,0]
["Form 1SFS/1EBS","Balance Sheet GEN/CON/EBS","1SFS13e","Sundry Assets - Deposit Assets",0,null,0,null,0,null,0,null,0,null,0]
["Form 1SFS/1EBS","Balance Sheet GEN/CON/EBS","1SFS13f","Sundry Assets - Deferred Acquisition Costs",0,null,0,null,0,null,0]
["Form 1SFS/1EBS","Balance Sheet GEN/CON/EBS","1SFS13g","Sundry Assets - Net Rec. for Investments",0,null,0,null,0,null,0,null,0,null,0]
["Form 1SFS/1EBS","Balance Sheet GEN/CON/EBS","1EBS13g","Sundry Assets - Intangible Assets",null,null,null,null,null,null,null,null,0,null,0]
["Form 1SFS/1EBS","Balance Sheet GEN/CON/EBS","1EBS13h","Sundry Assets - Deferred Tax Assets",null,null,null,null,null,null,null,null,0,null,0]
["Form 1SFS/1EBS","Balance Sheet GEN/CON/EBS","1EBS13i","Sundry Assets - Pension Benefit Surplus",null,null,null,null,null,null,null,null,0,null,0]
["Form 1SFS/1EBS","Balance Sheet GEN/CON/EBS","1SFS13h","Sundry Assets - Other 1",0,null,0,null,0,null,0,null,0,null,0]
["Form 1SFS/1EBS","Balance Sheet GEN/CON/EBS","1SFS13i","Sundry Assets - Other 2",0,null,0,null,0,null,0]
["Form 1SFS/1EBS","Balance Sheet GEN/CON/EBS","1SFS13j","Sundry Assets - Other 3",0,null,0,null,0,null,0]
["Form 1SFS/1EBS","Balance Sheet GEN/CON/EBS","1SFS14a","Letters of Credit",0,null,0,null,0,null,0,null,0,null,0]
["Form 1SFS/1EBS","Balance Sheet GEN/CON/EBS","1SFS14b","Guarantees",0,null,0,null,0,null,0,null,0,null,0]
["Form 1SFS/1EBS","Balance Sheet GEN/CON/EBS","1SFS14c","Other Instruments",0,null,0,null,0,null,0,null,0,null,0]
["Form 1SFS/1EBS","Balance Sheet GEN/CON/EBS","1SFS15","Total Assets",0,null,0]
["Form 1SFS/1EBS","Balance Sheet GEN/CON/EBS","1SFS16a","Unearned Premium Reserve - Gross",0,null,0,null,0,null,0,null,0,null,0]
["Form 1SFS/1EBS","Balance Sheet GEN/CON/EBS","1SFS16bi","UPR - Ceded - Foreign Affiliates",0,null,0,null,0,null,0,null,0,null,0]
["Form 1SFS/1EBS","Balance Sheet GEN/CON/EBS","1SFS16bii","UPR - Ceded - Domestic Affiliates",0,null,0,null,0,null,0,null,0,null,0]
["Form 1SFS/1EBS","Balance Sheet GEN/CON/EBS","1SFS16biii","UPR - Ceded - Pools & Assoc.",0,null,0,null,0,null,0,null,0,null,0]
["Form 1SFS/1EBS","Balance Sheet GEN/CON/EBS","1SFS16biv","UPR - Ceded - All Other",0,null,0,null,0,null,0,null,0,null,0]
["Form 1SFS/1EBS","Balance Sheet GEN/CON/EBS","1SFS17a","Loss Provision - Gross",0,null,0,null,0,null,0,null,0,null,0]
["Form 1SFS/1EBS","Balance Sheet GEN/CON/EBS","1SFS17bi","R/I Recoverable - Foreign Affiliates",0,null,0,null,0,null,0,null,0,null,0]
["Form 1SFS/1EBS","Balance Sheet GEN/CON/EBS","1SFS17bii","R/I Recoverable - Domestic Affiliates",0,null,0,null,0,null,0,null,0,null,0]
["Form 1SFS/1EBS","Balance Sheet GEN/CON/EBS","1SFS17biii","R/I Recoverable - Pools & Assoc.",0,null,0,null,0,null,0,null,0,null,0]
["Form 1SFS/1EBS","Balance Sheet GEN/CON/EBS","1SFS17biv","R/I Recoverable - All Other",0,null,0,null,0,null,0,null,0,null,0]
["Form 1SFS/1EBS","Balance Sheet GEN/CON/EBS","1SFS18","Risk Margin",0,null,0,null,0,null,0,null,0,null,0]
["Form 1SFS/1EBS","Balance Sheet GEN/CON/EBS","1SFS20","Net - Reserves for Reported Claims",null,null,null,null,0,null,0]
["Form 1SFS/1EBS","Balance Sheet GEN/CON/EBS","1SFS21","Net - Reserves for Unreported Claims",null,null,null,null,0,null,0]
["Form 1SFS/1EBS","Balance Sheet GEN/CON/EBS","1SFS22","Net - Policy Reserves - Life",null,null,null,null,0,null,0]
["Form 1SFS/1EBS","Balance Sheet GEN/CON/EBS","1SFS23","Net - Policy Reserves - Accident & Health",null,null,null,null,0,null,0]
["Form 1SFS/1EBS","Balance Sheet GEN/CON/EBS","1SFS24","Net - Policyholder's Funds on Deposit",null,null,null,null,0,null,0]
["Form 1SFS/1EBS","Balance Sheet GEN/CON/EBS","1SFS25","Net - Liability for Future Policyholder Dividends",null,null,null,null,0,null,0]
["Form 1SFS/1EBS","Balance Sheet GEN/CON/EBS","1SFS26","Net - Other LT Insurance Reserves",null,null,null,null,0,null,0]
["Form 1SFS/1EBS","Balance Sheet GEN/CON/EBS","1SFS27bi","R/I Recoverable - Foreign Affiliates",null,null,null,null,0,null,0]
["Form 1SFS/1EBS","Balance Sheet GEN/CON/EBS","1SFS27bii","R/I Recoverable - Domestic Affiliates",null,null,null,null,0,null,0]
["Form 1SFS/1EBS","Balance Sheet GEN/CON/EBS","1SFS27biii","R/I Recoverable - Pools & Assoc.",null,null,null,null,0,null,0]
["Form 1SFS/1EBS","Balance Sheet GEN/CON/EBS","1SFS27biv","R/I Recoverable - All Other",null,null,null,null,0,null,0]
["Form 1SFS/1EBS","Balance Sheet GEN/CON/EBS","1EBS27A","Risk Margin"]
["Form 1SFS/1EBS","Balance Sheet GEN/CON/EBS","1EBS27Ba","Gross Provision - Tech. Prov. Calc. on Whole"]
["Form 1SFS/1EBS","Balance Sheet GEN/CON/EBS","1EBS27Bbi","R/I Recoverable - Foreign Affiliates"]
["Form 1SFS/1EBS","Balance Sheet GEN/CON/EBS","1EBS27Bbii","R/I Recoverable - Domestic Affiliates"]
["Form 1SFS/1EBS","Balance Sheet GEN/CON/EBS","1EBS27Bbiii","R/I Recoverable - Pools & Assoc."]
["Form 1SFS/1EBS","Balance Sheet GEN/CON/EBS","1EBS27Bbiv","R/I Recoverable - All Other"]
["Form 1SFS/1EBS","Balance Sheet GEN/CON/EBS","1EBS27C","Total Long-Term Tech Provisions"]
["Form 1SFS/1EBS","Balance Sheet GEN/CON/EBS","1SFS28","Insurance & R/I Balances Payable",0,null,0,null,0,null,0,null,0,null,0]
["Form 1SFS/1EBS","Balance Sheet GEN/CON/EBS","1SFS29","Commissions, Expenses and Taxes Payable",0,null,0,null,0,null,0,null,0,null,0]
["Form 1SFS/1EBS","Balance Sheet GEN/CON/EBS","1SFS30","Loans and Notes Payable",0,null,0,null,0,null,0,null,0,null,0]
["Form 1SFS/1EBS","Balance Sheet GEN/CON/EBS","1SFS31a","Income Taxes Payable",0,null,0,null,0,null,0,null,0,null,0]
["Form 1SFS/1EBS","Balance Sheet GEN/CON/EBS","1SFS31b","Deferred Taxes Payable",0,null,0,null,0,null,0,null,0,null,0]
["Form 1SFS/1EBS","Balance Sheet GEN/CON/EBS","1SFS32","Amounts Due to Affiliates",0,null,0,null,0,null,0,null,0,null,0]
["Form 1SFS/1EBS","Balance Sheet GEN/CON/EBS","1SFS33","Accounts Payable and Accrued Liabilities",0,null,0,null,0,null,0,null,0,null,0]
["Form 1SFS/1EBS","Balance Sheet GEN/CON/EBS","1EBS34a","Funds Held under R/I Contracts - Affiliates",null,null,null,null,null,null,null,null,0,null,0]
["Form 1SFS/1EBS","Balance Sheet GEN/CON/EBS","1EBS34b","Funds Held under R/I Contracts - Non-Aff.",null,null,null,null,null,null,null,null,0,null,0]
["Form 1SFS/1EBS","Balance Sheet GEN/CON/EBS","1SFS34","Funds Held under R/I Contracts",0,null,0,null,0,null,0]
["Form 1SFS/1EBS","Balance Sheet GEN/CON/EBS","1SFS35","Dividends Payable",0,null,0,null,0,null,0,null,0,null,0]
["Form 1SFS/1EBS","Balance Sheet GEN/CON/EBS","1SFS36a","Sundry Liabilities - Derivative Instruments",0,null,0,null,0,null,0,null,0,null,0]
["Form 1SFS/1EBS","Balance Sheet GEN/CON/EBS","1EBS36b","Sundry Liabilities - Der. Instr. - Non-Hedge Purp.",null,null,null,null,null,null,null,null,0,null,0]
["Form 1SFS/1EBS","Balance Sheet GEN/CON/EBS","1SFS36b","Sundry Liabilities - Seg. Accounts - GB",0,null,0,null,0,null,0,null,0,null,0]
["Form 1SFS/1EBS","Balance Sheet GEN/CON/EBS","1SFS36c","Sundry Liabilities - Deposit Liabilities",0,null,0,null,0,null,0,null,0,null,0]
["Form 1SFS/1EBS","Balance Sheet GEN/CON/EBS","1EBS36g","Sundry Liabilities - Pension Benefit Oblig.",null,null,null,null,null,null,null,null,0,null,0]
["Form 1SFS/1EBS","Balance Sheet GEN/CON/EBS","1SFS36d","Sundry Liabilities - Investments Purchased",0,null,0,null,0,null,0,null,0,null,0]
["Form 1SFS/1EBS","Balance Sheet GEN/CON/EBS","1SFS36e","Sundry Liabilities - Other 1",0,null,0,null,0,null,0,null,0,null,0]
["Form 1SFS/1EBS","Balance Sheet GEN/CON/EBS","1SFS36f","Sundry Liabilities - Other 2",0,null,0,null,0,null,0]
["Form 1SFS/1EBS","Balance Sheet GEN/CON/EBS","1SFS36g","Sundry Liabilities - Other 3",0,null,0,null,0,null,0]
["Form 1SFS/1EBS","Balance Sheet GEN/CON/EBS","1SFS37a","Letters of Credit",0,null,0,null,0,null,0,null,0,null,0]
["Form 1SFS/1EBS","Balance Sheet GEN/CON/EBS","1SFS37b","Guarantees",0,null,0,null,0,null,0,null,0,null,0]
["Form 1SFS/1EBS","Balance Sheet GEN/CON/EBS","1SFS37c","Other Instruments",0,null,0,null,0,null,0,null,0,null,0]
["Form 1SFS/1EBS","Balance Sheet GEN/CON/EBS","1EBS40","Economic Capital & Surplus",null,null,null,null,null,null,null,null,0,null,0]
[]
["Form 1SFS","Balance Sheet LT","1SFS1","Cash and Cash Equivalents",0,null,0]
["Form 1SFS","Balance Sheet LT","1SFS2ai","Quoted - Bonds - Held to Maturity",0,null,0]
["Form 1SFS","Balance Sheet LT","1SFS2aii","Quoted - Bonds - Other",0,null,0]
["Form 1SFS","Balance Sheet LT","1SFS2ci","Quoted - Equities - Common Stocks",0,null,0]
["Form 1SFS","Balance Sheet LT","1SFS2cii","Quoted - Equities - Preferred Stocks",0,null,0]
["Form 1SFS","Balance Sheet LT","1SFS2ciii","Quoted - Equities - Mutual Funds",0,null,0]
["Form 1SFS","Balance Sheet LT","1SFS2e","Quoted - Other Investments",0,null,0]
["Form 1SFS","Balance Sheet LT","1SFS3ai","Unquoted - Bonds - Held to Maturity",0,null,0]
["Form 1SFS","Balance Sheet LT","1SFS3aii","Unquoted - Bonds - Other",0,null,0]
["Form 1SFS","Balance Sheet LT","1SFS3ci","Unquoted - Equities - Common Stocks",0,null,0]
["Form 1SFS","Balance Sheet LT","1SFS3cii","Unquoted - Equities - Preferred Stocks",0,null,0]
["Form 1SFS","Balance Sheet LT","1SFS3ciii","Unquoted - Equities - Mutual Funds",0,null,0]
["Form 1SFS","Balance Sheet LT","1SFS3e","Unquoted - Other Investments",0,null,0]
["Form 1SFS","Balance Sheet LT","1SFS4a","Inv. In Affiliates - Unregulated Ancillary",0,null,0]
["Form 1SFS","Balance Sheet LT","1SFS4b","Inv. In Affiliates - Unregulated Non-Fin. Oper.",0,null,0]
["Form 1SFS","Balance Sheet LT","1SFS4c","Inv. In Affiliates - Unregulated Fin. Operating",0,null,0]
["Form 1SFS","Balance Sheet LT","1SFS4d","Inv. In Affiliates - Regulated Non-Insurance",0,null,0]
["Form 1SFS","Balance Sheet LT","1SFS4e","Inv. In Affiliates - Regulated Insurance",0,null,0]
["Form 1SFS","Balance Sheet LT","1SFS4g","Advances To Affiliates",0,null,0]
["Form 1SFS","Balance Sheet LT","1SFS5a","Inv. In Mortg. Loans on Real Estate - 1st Lien",0,null,0]
["Form 1SFS","Balance Sheet LT","1SFS5b","Inv. In Mortg. Loans on Real Estate - Other",0,null,0]
["Form 1SFS","Balance Sheet LT","1SFS6","Policy Loans",0,null,0]
["Form 1SFS","Balance Sheet LT","1SFS7a","Real Estate - Occupied by Company",0,null,0]
["Form 1SFS","Balance Sheet LT","1SFS7b","Real Estate - Other",0,null,0]
["Form 1SFS","Balance Sheet LT","1SFS8","Collateral Loans",0,null,0]
["Form 1SFS","Balance Sheet LT","1SFS9","Investment Income Due and Accrued",0,null,0]
["Form 1SFS","Balance Sheet LT","1SFS10a","Accounts & Premium Rec. - In Collection",0,null,0]
["Form 1SFS","Balance Sheet LT","1SFS10b","Accounts & Premium Rec. - Not Yet Due ",0,null,0]
["Form 1SFS","Balance Sheet LT","1SFS10c","Accounts & Premium Rec. - Retro. Contracts",0,null,0]
["Form 1SFS","Balance Sheet LT","1SFS11a","R/I Balances Receivable - Foreign Affiliates",0,null,0]
["Form 1SFS","Balance Sheet LT","1SFS11b","R/I Balances Receivable - Domestic Affiliates",0,null,0]
["Form 1SFS","Balance Sheet LT","1SFS11c","R/I Balances Receivable - Pools & Assoc.",0,null,0]
["Form 1SFS","Balance Sheet LT","1SFS11d","R/I Balances Receivable - All Other",0,null,0]
["Form 1SFS","Balance Sheet LT","1SFS12","Funds Held by Ceding Companies ",0,null,0]
["Form 1SFS","Balance Sheet LT","1SFS13a","Sundry Assets - Derivatives",0,null,0]
["Form 1SFS","Balance Sheet LT","1SFS13b","Sundry Assets - SAC - LT- Variable Annuities",0,null,0]
["Form 1SFS","Balance Sheet LT","1SFS13c","Sundry Assets - SAC - LT- Others",0,null,0]
["Form 1SFS","Balance Sheet LT","1SFS13e","Sundry Assets - Deposit Assets"]
["Form 1SFS","Balance Sheet LT","1SFS13f","Sundry Assets - Deferred Acquisition Costs",0,null,0]
["Form 1SFS","Balance Sheet LT","1SFS13g","Sundry Assets - Net Rec. for Investments",0,null,0]
["Form 1SFS","Balance Sheet LT","1SFS13h","Sundry Assets - Other 1",0,null,0]
["Form 1SFS","Balance Sheet LT","1SFS13i","Sundry Assets - Other 2",0,null,0]
["Form 1SFS","Balance Sheet LT","1SFS13j","Sundry Assets - Other 3",0,null,0]
["Form 1SFS","Balance Sheet LT","1SFS14a","Letters of Credit",0,null,0]
["Form 1SFS","Balance Sheet LT","1SFS14b","Guarantees",0,null,0]
["Form 1SFS","Balance Sheet LT","1SFS14c","Other Instruments",0,null,0]
["Form 1SFS","Balance Sheet LT","1SFS15","Total Assets",0,null,0]
["Form 1SFS","Balance Sheet LT","1SFS20","Net - Reserves for Reported Claims",0,null,0]
["Form 1SFS","Balance Sheet LT","1SFS21","Net - Reserves for Unreported Claims",0,null,0]
["Form 1SFS","Balance Sheet LT","1SFS22","Net - Policy Reserves - Life",0,null,0]
["Form 1SFS","Balance Sheet LT","1SFS23","Net - Policy Reserves - Accident & Health",0,null,0]
["Form 1SFS","Balance Sheet LT","1SFS24","Net - Policyholder's Funds on Deposit",0,null,0]
["Form 1SFS","Balance Sheet LT","1SFS25","Net - Liability for Future Policyholder Dividends",0,null,0]
["Form 1SFS","Balance Sheet LT","1SFS26","Net - Other LT Insurance Reserves",0,null,0]
["Form 1SFS","Balance Sheet LT","1SFS27bi","R/I Recoverable - Foreign Affiliates",0,null,0]
["Form 1SFS","Balance Sheet LT","1SFS27bii","R/I Recoverable - Domestic Affiliates",0,null,0]
["Form 1SFS","Balance Sheet LT","1SFS27biii","R/I Recoverable - Pools & Assoc.",0,null,0]
["Form 1SFS","Balance Sheet LT","1SFS27biv","R/I Recoverable - All Other",0,null,0]
["Form 1SFS","Balance Sheet LT","1SFS28","Insurance & R/I Balances Payable",0,null,0]
["Form 1SFS","Balance Sheet LT","1SFS29","Commissions, Expenses and Taxes Payable",0,null,0]
["Form 1SFS","Balance Sheet LT","1SFS30","Loans and Notes Payable",0,null,0]
["Form 1SFS","Balance Sheet LT","1SFS31a","Income Taxes Payable",0,null,0]
["Form 1SFS","Balance Sheet LT","1SFS31b","Deferred Taxes Payable",0,null,0]
["Form 1SFS","Balance Sheet LT","1SFS32","Amounts Due to Affiliates",0,null,0]
["Form 1SFS","Balance Sheet LT","1SFS33","Accounts Payable and Accrued Liabilities",0,null,0]
["Form 1SFS","Balance Sheet LT","1SFS34","Funds Held under R/I Contracts",0,null,0]
["Form 1SFS","Balance Sheet LT","1SFS35","Dividends Payable",0,null,0]
["Form 1SFS","Balance Sheet LT","1SFS36a","Sundry Liabilities - Derivative Instruments",0,null,0]
["Form 1SFS","Balance Sheet LT","1SFS36b","Sundry Liabilities - Segregated Accounts",0,null,0]
["Form 1SFS","Balance Sheet LT","1SFS36c","Sundry Liabilities - Deposit Liabilities",0,null,0]
["Form 1SFS","Balance Sheet LT","1SFS36d","Sundry Liabilities - Investments Purchased",0,null,0]
["Form 1SFS","Balance Sheet LT","1SFS36e","Sundry Liabilities - Other 1",0,null,0]
["Form 1SFS","Balance Sheet LT","1SFS36f","Sundry Liabilities - Other 2",0,null,0]
["Form 1SFS","Balance Sheet LT","1SFS36g","Sundry Liabilities - Other 3",0,null,0]
["Form 1SFS","Balance Sheet LT","1SFS37a","Letters of Credit",0,null,0]
["Form 1SFS","Balance Sheet LT","1SFS37b","Guarantees",0,null,0]
["Form 1SFS","Balance Sheet LT","1SFS37c","Other Instruments",0,null,0]
[]
["Form 1SFS","Notes","Form 1SFS","Line 10 - Collaterized Balances",0,null,0,null,null,null,null,null,0,null,0]
["Form 1SFS","Notes","Form 1SFS","Line 11(e) - Collaterized Balances",0,null,0,null,null,null,null,null,0,null,0]
["Form 1SFS","Notes","Form 1SFS","Line 17cii - Collat. in Favor of Insurer",0,null,0,null,null,null,null,null,0,null,0]
["Form 1SFS","Notes","Form 1SFS","Line 13 - Sundry Assets",0,null,0,null,null,null,null,null,0,null,0]
["Form 1SFS","Notes","Form 1SFS","Line 15 - Policy. Oblig. - Cash",0,null,0,null,null,null,null,null,0,null,0]
["Form 1SFS","Notes","Form 1SFS","Line 15 - Policy. Oblig. - Quoted. Inv.",0,null,0,null,null,null,null,null,0,null,0]
["Form 1SFS","Notes","Form 1SFS","Line 15 - Policy. Oblig. - Unquoted. Inv.",0,null,0,null,null,null,null,null,0,null,0]
["Form 1SFS","Notes","Form 1SFS","Line 15 - Policy. Oblig. - Funds Held",0,null,0,null,null,null,null,null,0,null,0]
["Form 1SFS","Notes","Form 1SFS","Line 15 - Policy. Oblig. - Other Assets",0,null,0,null,null,null,null,null,0,null,0]
["Form 1SFS","Notes","Form 1SFS","Line 15 - Policy. Oblig. - Total",0,null,0,null,null,null,null,null,0,null,0]
["Form 1SFS","Notes","Form 1SFS","Line 15 - Other - Cash",0,null,0,null,null,null,null,null,0,null,0]
["Form 1SFS","Notes","Form 1SFS","Line 15 - Other - Quoted. Inv.",0,null,0,null,null,null,null,null,0,null,0]
["Form 1SFS","Notes","Form 1SFS","Line 15 - Other - Unquoted. Inv.",0,null,0,null,null,null,null,null,0,null,0]
["Form 1SFS","Notes","Form 1SFS","Line 15 - Other - Other Assets",0,null,0,null,null,null,null,null,0,null,0]
["Form 1SFS","Notes","Form 1SFS","Line 15 - Other - Total",0,null,0,null,null,null,null,null,0,null,0]
["Form 1SFS","Notes","Form 1SFS","Line 36 - Sundry Liabilities",0,null,0,null,null,null,null,null,0,null,0]
["Form 1SFS","Notes","Form 1SFS","Line 37 - LOC's & Guarantees",0,null,0,null,null,null,null,null,0,null,0]
["Form 1SFS","Notes","Form 1SFS","Line 17 - Prior year note disclosure",0]
["Form 1SFS","Notes","Form 1SFS","Gross Provision - Beg. Of Year",0,null,0]
["Form 1SFS","Notes","Form 1SFS","R/I Recoverable - Beg. Of Year",0,null,0]
["Form 1SFS","Notes","Form 1SFS","Net Provision - Beg. Of Year",0,null,0]
["Form 1SFS","Notes","Form 1SFS","Acquisition / Sale of loss reserves (net):",0,null,0]
["Form 1SFS","Notes","Form 1SFS","Net Losses Incurred - Current Year",0,null,0]
["Form 1SFS","Notes","Form 1SFS","Net Losses Incurred - Prior Years",0,null,0]
["Form 1SFS","Notes","Form 1SFS","Net Losses Incurred - Total",0,null,0]
["Form 1SFS","Notes","Form 1SFS","Losses Paid - Current Year",0,null,0]
["Form 1SFS","Notes","Form 1SFS","Losses Paid - Prior Years",0,null,0]
["Form 1SFS","Notes","Form 1SFS","Losses Paid - Total",0,null,0]
["Form 1SFS","Notes","Form 1SFS","Foreign Exchange and Other",0,null,0]
["Form 1SFS","Notes","Form 1SFS","Net Provision - End Of Year",0,null,0]
["Form 1SFS","Notes","Form 1SFS","R/I Recoverable - End Of Year",0,null,0]
["Form 1SFS","Notes","Form 1SFS","Gross Provision - End Of Year",0,null,0]
["Form 1SFS","Notes","Form 1SFS","Insurance - Gross - Open Balance",0,null,0]
["Form 1SFS","Notes","Form 1SFS","Insurance - Gross - Terminations",0,null,0]
["Form 1SFS","Notes","Form 1SFS","Insurance - Gross - New Business",0,null,0]
["Form 1SFS","Notes","Form 1SFS","Insurance - Gross - Chg.In Force",0,null,0]
["Form 1SFS","Notes","Form 1SFS","Insurance - Gross - Mgmt Actions",0,null,0]
["Form 1SFS","Notes","Form 1SFS","Insurance - Gross - FX",0,null,0]
["Form 1SFS","Notes","Form 1SFS","Insurance - Gross - Closing Balance",0,null,0]
["Form 1SFS","Notes","Form 1SFS","Insurance - R/I - Open Balance",0,null,0]
["Form 1SFS","Notes","Form 1SFS","Insurance - R/I - Terminations",0,null,0]
["Form 1SFS","Notes","Form 1SFS","Insurance - R/I - New Business",0,null,0]
["Form 1SFS","Notes","Form 1SFS","Insurance - R/I - Chg.In Force",0,null,0]
["Form 1SFS","Notes","Form 1SFS","Insurance - R/I - Mgmt Actions",0,null,0]
["Form 1SFS","Notes","Form 1SFS","Insurance - R/I - FX",0,null,0]
["Form 1SFS","Notes","Form 1SFS","Insurance - R/I - Closing Balance",0,null,0]
["Form 1SFS","Notes","Form 1SFS","Insurance - Net - Open Balance",0,null,0]
["Form 1SFS","Notes","Form 1SFS","Insurance - Net - Terminations",0,null,0]
["Form 1SFS","Notes","Form 1SFS","Insurance - Net - New Business",0,null,0]
["Form 1SFS","Notes","Form 1SFS","Insurance - Net - Chg.In Force",0,null,0]
["Form 1SFS","Notes","Form 1SFS","Insurance - Net - Mgmt Actions",0,null,0]
["Form 1SFS","Notes","Form 1SFS","Insurance - Net - FX",0,null,0]
["Form 1SFS","Notes","Form 1SFS","Insurance - Net - Closing Balance",0,null,0]
["Form 1SFS","Notes","Form 1SFS","Invmnt - Gross - Open Balance",0,null,0]
["Form 1SFS","Notes","Form 1SFS","Invmnt - Gross - Terminations",0,null,0]
["Form 1SFS","Notes","Form 1SFS","Invmnt - Gross - New Business",0,null,0]
["Form 1SFS","Notes","Form 1SFS","Invmnt - Gross - Chg.In Force",0,null,0]
["Form 1SFS","Notes","Form 1SFS","Invmnt - Gross - Mgmt Actions",0,null,0]
["Form 1SFS","Notes","Form 1SFS","Invmnt - Gross - FX",0,null,0]
["Form 1SFS","Notes","Form 1SFS","Invmnt - Gross - Closing Balance",0,null,0]
["Form 1SFS","Notes","Form 1SFS","Invmnt - R/I - Open Balance",0,null,0]
["Form 1SFS","Notes","Form 1SFS","Invmnt - R/I - Terminations",0,null,0]
["Form 1SFS","Notes","Form 1SFS","Invmnt - R/I - New Business",0,null,0]
["Form 1SFS","Notes","Form 1SFS","Invmnt - R/I - Chg.In Force",0,null,0]
["Form 1SFS","Notes","Form 1SFS","Invmnt - R/I - Mgmt Actions",0,null,0]
["Form 1SFS","Notes","Form 1SFS","Invmnt - R/I - FX",0,null,0]
["Form 1SFS","Notes","Form 1SFS","Invmnt - R/I - Closing Balance",0,null,0]
["Form 1SFS","Notes","Form 1SFS","Invmnt - Net - Open Balance",0,null,0]
["Form 1SFS","Notes","Form 1SFS","Invmnt - Net - Terminations",0,null,0]
["Form 1SFS","Notes","Form 1SFS","Invmnt - Net - New Business",0,null,0]
["Form 1SFS","Notes","Form 1SFS","Invmnt - Net - Chg.In Force",0,null,0]
["Form 1SFS","Notes","Form 1SFS","Invmnt - Net - Mgmt Actions",0,null,0]
["Form 1SFS","Notes","Form 1SFS","Invmnt - Net - FX",0,null,0]
["Form 1SFS","Notes","Form 1SFS","Invmnt - Net - Closing Balance",0,null,0]
[]
["1EBS","Notes","1EBS","Line 36(i) - Any Other Liabilities",null,null,null,null,null,null,null,null,0,null,0]
["1EBS","Notes","1EBS","Line 36(f) - Details of Deposit Liab.",null,null,null,null,null,null,null,null,0,null,0]
["1EBS","Notes","1EBS","Line 40 - Recon. 1SFS 40 to EBS 40",null,null,null,null,null,null,null,null,0,null,0]
["1EBS","Notes","1EBS","Line 16c - Adj. Counterparty Default",null,null,null,null,null,null,null,null,0,null,0]
["1EBS","Notes","1EBS","Line 17ci - Adj. Counterparty Default",null,null,null,null,null,null,null,null,0,null,0]
["1EBS","Notes","1EBS","Line 16di - BBNI Premium",null,null,null,null,null,null,null,null,0,null,0]
["1EBS","Notes","1EBS","Line 16dii - BBNI Best Est. Prem",null,null,null,null,null,null,null,null,0,null,0]
["1EBS","Notes","1EBS","Line 17di - Loss Provision Discount",null,null,null,null,null,null,null,null,0,null,0]
["1EBS","Notes","1EBS","Line 17dii - Scenario Based Approach",null,null,null,null,null,null,null,null,0,null,0]
["1EBS","Notes","1EBS","Best Estimate Provision - Beg. Of Year",null,null,null,null,null,null,null,null,0,null,0]
["1EBS","Notes","1EBS","Unwind of Discount",null,null,null,null,null,null,null,null,0,null,0]
["1EBS","Notes","1EBS","Net Loss Paid - Prior Years",null,null,null,null,null,null,null,null,0,null,0]
["1EBS","Notes","1EBS","Net Losses Incurred - Prior Years",null,null,null,null,null,null,null,null,0,null,0]
["1EBS","Notes","1EBS","Best Estimate Provision - From PY",null,null,null,null,null,null,null,null,0,null,0]
["1EBS","Notes","1EBS","Net Losses Incurred - Current Year",null,null,null,null,null,null,null,null,0,null,0]
["1EBS","Notes","1EBS","Net Loss Paid - Current Year",null,null,null,null,null,null,null,null,0,null,0]
["1EBS","Notes","1EBS","Foreign Exchange and Other",null,null,null,null,null,null,null,null,0,null,0]
["1EBS","Notes","1EBS","Best Estimate Provision - From CY",null,null,null,null,null,null,null,null,0,null,0]
["1EBS","Notes","1EBS","Impact of Change in Discount Curve",null,null,null,null,null,null,null,null,0,null,0]
["1EBS","Notes","1EBS","Best Estimate Provision - End Of Year",null,null,null,null,null,null,null,null,0,null,0]
[]
[null,null,null,"Income Statement"]
["Form 2SFS","Income Stmt Uncon GEN / CON","2SFS1a","Gross Premium Written - Direct",0,null,0,null,0,null,0]
["Form 2SFS","Income Stmt Uncon GEN / CON","2SFS1b","Gross Premium Written - Assumed",0,null,0,null,0,null,0]
["Form 2SFS","Income Stmt Uncon GEN / CON","2SFS2","R/I Premiums Ceded",0,null,0,null,0,null,0]
["Form 2SFS","Income Stmt Uncon GEN / CON","2SFS4","Change in Unearned Premiums",0,null,0,null,0,null,0]
["Form 2SFS","Income Stmt Uncon GEN / CON","2SFS6","Other Insurance Income",0,null,0,null,0,null,0]
["Form 2SFS","Income Stmt Uncon GEN / CON","2SFS8","Net Losses Incurred",0,null,0,null,0,null,0]
["Form 2SFS","Income Stmt Uncon GEN / CON","2SFS9","Commissions & Brokerage",0,null,0,null,0,null,0]
["Form 2SFS","Income Stmt Uncon GEN / CON","2SFS12a","Gross Premium Written - Direct",null,null,null,null,0,null,0]
["Form 2SFS","Income Stmt Uncon GEN / CON","2SFS12b","Gross Premium Written - Assumed",null,null,null,null,0,null,0]
["Form 2SFS","Income Stmt Uncon GEN / CON","2SFS13","R/I Premiums Ceded",null,null,null,null,0,null,0]
["Form 2SFS","Income Stmt Uncon GEN / CON","2SFS14a","NPW - Life",null,null,null,null,0,null,0]
["Form 2SFS","Income Stmt Uncon GEN / CON","2SFS14b","NPW - Annuities",null,null,null,null,0,null,0]
["Form 2SFS","Income Stmt Uncon GEN / CON","2SFS14c","NPW - Accident & Health",null,null,null,null,0,null,0]
["Form 2SFS","Income Stmt Uncon GEN / CON","2SFS15","Other Insurance Income",null,null,null,null,0,null,0]
["Form 2SFS","Income Stmt Uncon GEN / CON","2SFS17","Claims - Life",null,null,null,null,0,null,0]
["Form 2SFS","Income Stmt Uncon GEN / CON","2SFS18","Policyholders' Dividends",null,null,null,null,0,null,0]
["Form 2SFS","Income Stmt Uncon GEN / CON","2SFS19","Surrenders",null,null,null,null,0,null,0]
["Form 2SFS","Income Stmt Uncon GEN / CON","2SFS20","Maturities",null,null,null,null,0,null,0]
["Form 2SFS","Income Stmt Uncon GEN / CON","2SFS21","Annuities",null,null,null,null,0,null,0]
["Form 2SFS","Income Stmt Uncon GEN / CON","2SFS22","Accident & Health Benefits",null,null,null,null,0,null,0]
["Form 2SFS","Income Stmt Uncon GEN / CON","2SFS23","Commissions",null,null,null,null,0,null,0]
["Form 2SFS","Income Stmt Uncon GEN / CON","2SFS24","Other",null,null,null,null,0,null,0]
["Form 2SFS","Income Stmt Uncon GEN / CON","2SFS26a","Change in Policy Reserves - Life",null,null,null,null,0,null,0]
["Form 2SFS","Income Stmt Uncon GEN / CON","2SFS26b","Change in Policy Reserves - Annuities",null,null,null,null,0,null,0]
["Form 2SFS","Income Stmt Uncon GEN / CON","2SFS26c","Change in Policy Reserves - Accid. & Health",null,null,null,null,0,null,0]
["Form 2SFS","Income Stmt Uncon GEN / CON","2SFS30a","Operating Expense - G&A",0,null,0,null,0,null,0]
["Form 2SFS","Income Stmt Uncon GEN / CON","2SFS30b","Operating Expense - Personnel Costs",0,null,0,null,0,null,0]
["Form 2SFS","Income Stmt Uncon GEN / CON","2SFS30c","Operating Expense - Other",0,null,0,null,0,null,0]
["Form 2SFS","Income Stmt Uncon GEN / CON","2SFS31","Investment Income",0,null,0,null,0,null,0]
["Form 2SFS","Income Stmt Uncon GEN / CON","2SFS32","Other Income",0,null,0,null,0,null,0]
["Form 2SFS","Income Stmt Uncon GEN / CON","2SFS34a","Income Tax - Current",0,null,0,null,0,null,0]
["Form 2SFS","Income Stmt Uncon GEN / CON","2SFS34b","Income Tax - Deferred",0,null,0,null,0,null,0]
["Form 2SFS","Income Stmt Uncon GEN / CON","2SFS36","Realized Gains/Losses",0,null,0,null,0,null,0]
["Form 2SFS","Income Stmt Uncon GEN / CON","2SFS37","Interest Charges",0,null,0,null,0,null,0]
[]
["Form 2SFS","Income Stmt Uncon LT","2SFS12a","Gross Premium Written - Direct",0,null,0]
["Form 2SFS","Income Stmt Uncon LT","2SFS12b","Gross Premium Written - Assumed",0,null,0]
["Form 2SFS","Income Stmt Uncon LT","2SFS13","R/I Premiums Ceded",0,null,0]
["Form 2SFS","Income Stmt Uncon LT","2SFS14a","NPW - Life",0,null,0]
["Form 2SFS","Income Stmt Uncon LT","2SFS14b","NPW - Annuities",0,null,0]
["Form 2SFS","Income Stmt Uncon LT","2SFS14c","NPW - Accident & Health",0,null,0]
["Form 2SFS","Income Stmt Uncon LT","2SFS15","Other Insurance Income",0,null,0]
["Form 2SFS","Income Stmt Uncon LT","2SFS17","Claims - Life",0,null,0]
["Form 2SFS","Income Stmt Uncon LT","2SFS18","Policyholders' Dividends",0,null,0]
["Form 2SFS","Income Stmt Uncon LT","2SFS19","Surrenders",0,null,0]
["Form 2SFS","Income Stmt Uncon LT","2SFS20","Maturities",0,null,0]
["Form 2SFS","Income Stmt Uncon LT","2SFS21","Annuities",0,null,0]
["Form 2SFS","Income Stmt Uncon LT","2SFS22","Accident & Health Benefits",0,null,0]
["Form 2SFS","Income Stmt Uncon LT","2SFS23","Commissions",0,null,0]
["Form 2SFS","Income Stmt Uncon LT","2SFS24","Other",0,null,0]
["Form 2SFS","Income Stmt Uncon LT","2SFS26a","Change in Policy Reserves - Life",0,null,0]
["Form 2SFS","Income Stmt Uncon LT","2SFS26b","Change in Policy Reserves - Annuities",0,null,0]
["Form 2SFS","Income Stmt Uncon LT","2SFS26c","Change in Policy Reserves - Accid. & Health",0,null,0]
["Form 2SFS","Income Stmt Uncon LT","2SFS30a","Operating Expense - G&A",0,null,0]
["Form 2SFS","Income Stmt Uncon LT","2SFS30b","Operating Expense - Personnel Costs",0,null,0]
["Form 2SFS","Income Stmt Uncon LT","2SFS30c","Operating Expense - Other",0,null,0]
["Form 2SFS","Income Stmt Uncon LT","2SFS31","Investment Income",0,null,0]
["Form 2SFS","Income Stmt Uncon LT","2SFS32","Other Income",0,null,0]
["Form 2SFS","Income Stmt Uncon LT","2SFS34a","Income Tax - Current",0,null,0]
["Form 2SFS","Income Stmt Uncon LT","2SFS34b","Income Tax - Deferred",0,null,0]
["Form 2SFS","Income Stmt Uncon LT","2SFS36","Realized Gains/Losses",0,null,0]
["Form 2SFS","Income Stmt Uncon LT","2SFS37","Interest Charges",0,null,0]
[]
[null,null,null,"Statement of Capital & Surplus"]
["Form 8SFS","Stmt of C&S Uncon GEN / CON","8SFS1ai","Capital Stock",0,null,0]
["Form 8SFS","Stmt of C&S Uncon GEN / CON",null,"Common Stock",null,null,null,null,0,null,0]
["Form 8SFS","Stmt of C&S Uncon GEN / CON","8SFS1aii","Preferred Shares",null,null,null,null,0,null,0]
["Form 8SFS","Stmt of C&S Uncon GEN / CON","8SFS1aiii","Treasury Shares",null,null,null,null,0,null,0]
["Form 8SFS","Stmt of C&S Uncon GEN / CON","8SFS1b","Contributed Surplus",0,null,0,null,0,null,0]
["Form 8SFS","Stmt of C&S Uncon GEN / CON","8SFS1ci","Other Fixed Capital - Hybrid Instruments",0,null,0,null,0,null,0]
["Form 8SFS","Stmt of C&S Uncon GEN / CON","8SFS1cii","Other Fixed Capital - Guarantees & Others",0,null,0,null,0,null,0]
["Form 8SFS","Stmt of C&S Uncon GEN / CON","8SFS2a","Statutory Surplus - Beginning of Year",0,null,0,null,0,null,0]
["Form 8SFS","Stmt of C&S Uncon GEN / CON","8SFS2c","Dividends",0,null,0,null,0,null,0]
["Form 8SFS","Stmt of C&S Uncon GEN / CON","8SFS2d","Unrealized Change in Investments",0,null,0,null,0,null,0]
["Form 8SFS","Stmt of C&S Uncon GEN / CON","8SFS2e","Change in Non-Admitted Assets",0,null,0,null,0,null,0]
["Form 8SFS","Stmt of C&S Uncon GEN / CON","8SFS2f","Change in Real Estate",0,null,0,null,0,null,0]
["Form 8SFS","Stmt of C&S Uncon GEN / CON","8SFS2g","Change in Other Statutory Capital",0,null,0,null,0,null,0]
["Form 8SFS","Stmt of C&S Uncon GEN / CON","8SFS3","Minority Interest",0,null,0,null,0,null,0]
[]
["Form 8SFS","Stmt of C&S Uncon LT","8SFS1a","Common Stock",0,null,0]
["Form 8SFS","Stmt of C&S Uncon LT","8SFS1b","Contributed Surplus",0,null,0]
["Form 8SFS","Stmt of C&S Uncon LT","8SFS1ci","Other Fixed Capital - Hybrid Instruments",0,null,0]
["Form 8SFS","Stmt of C&S Uncon LT","8SFS1cii","Other Fixed Capital - Guarantees & Others",0,null,0]
["Form 8SFS","Stmt of C&S Uncon LT","8SFS2a","Statutory Surplus - Beginning of Year",0,null,0]
["Form 8SFS","Stmt of C&S Uncon LT","8SFS2c","Dividends",0,null,0]
["Form 8SFS","Stmt of C&S Uncon LT","8SFS2d","Unrealized Change in Investments",0,null,0]
["Form 8SFS","Stmt of C&S Uncon LT","8SFS2e","Change in Non-Admitted Assets",0,null,0]
["Form 8SFS","Stmt of C&S Uncon LT","8SFS2f","Change in Real Estate",0,null,0]
["Form 8SFS","Stmt of C&S Uncon LT","8SFS2g","Change in Other Statutory Capital",0,null,0]
["Form 8SFS","Stmt of C&S Uncon LT","8SFS3","Minority Interest",0,null,0]
[]
[null,null,null,"IFRS Balance Sheet"]
["Form 1ASFS","Balance Sheet GEN/CON","1ASFS1","Cash and Cash Equivalents",{"$f":"'Form 1SFS'!E12","v":0},null,{"$f":"'Form 1SFS'!G12","v":0},null,{"$f":"'Form 1SFS'!M12","v":0},null,{"$f":"'Form 1SFS'!O12","v":0}]
["Form 1ASFS","Balance Sheet GEN/CON","1ASFS2ai","Quoted - Bonds - Held to Maturity",{"$f":"'Form 1SFS'!E16","v":0},null,{"$f":"'Form 1SFS'!G16","v":0},null,{"$f":"'Form 1SFS'!M16","v":0},null,{"$f":"'Form 1SFS'!O16","v":0}]
["Form 1ASFS","Balance Sheet GEN/CON","1ASFS2aii","Quoted - Bonds - Other",{"$f":"'Form 1SFS'!E17","v":0},null,{"$f":"'Form 1SFS'!G17","v":0},null,{"$f":"'Form 1SFS'!M17","v":0},null,{"$f":"'Form 1SFS'!O17","v":0}]
["Form 1ASFS","Balance Sheet GEN/CON","1ASFS2ci","Quoted - Equities - Common Stocks",{"$f":"'Form 1SFS'!E20","v":0},null,{"$f":"'Form 1SFS'!G20","v":0},null,{"$f":"'Form 1SFS'!M20","v":0},null,{"$f":"'Form 1SFS'!O20","v":0}]
["Form 1ASFS","Balance Sheet GEN/CON","1ASFS2cii","Quoted - Equities - Preferred Stocks",{"$f":"'Form 1SFS'!E21","v":0},null,{"$f":"'Form 1SFS'!G21","v":0},null,{"$f":"'Form 1SFS'!M21","v":0},null,{"$f":"'Form 1SFS'!O21","v":0}]
["Form 1ASFS","Balance Sheet GEN/CON","1ASFS2ciii","Quoted - Equities - Mutual Funds",{"$f":"'Form 1SFS'!E22","v":0},null,{"$f":"'Form 1SFS'!G22","v":0},null,{"$f":"'Form 1SFS'!M22","v":0},null,{"$f":"'Form 1SFS'!O22","v":0}]
["Form 1ASFS","Balance Sheet GEN/CON","1ASFS2e","Quoted - Other Investments",{"$f":"'Form 1SFS'!E24","v":0},null,{"$f":"'Form 1SFS'!G24","v":0},null,{"$f":"'Form 1SFS'!M24","v":0},null,{"$f":"'Form 1SFS'!O24","v":0}]
["Form 1ASFS","Balance Sheet GEN/CON","1ASFS3ai","Unquoted - Bonds - Held to Maturity",{"$f":"'Form 1SFS'!E29","v":0},null,{"$f":"'Form 1SFS'!G29","v":0},null,{"$f":"'Form 1SFS'!M29","v":0},null,{"$f":"'Form 1SFS'!O29","v":0}]
["Form 1ASFS","Balance Sheet GEN/CON","1ASFS3aii","Unquoted - Bonds - Other",{"$f":"'Form 1SFS'!E30","v":0},null,{"$f":"'Form 1SFS'!G30","v":0},null,{"$f":"'Form 1SFS'!M30","v":0},null,{"$f":"'Form 1SFS'!O30","v":0}]
["Form 1ASFS","Balance Sheet GEN/CON","1ASFS3ci","Unquoted - Equities - Common Stocks",{"$f":"'Form 1SFS'!E33","v":0},null,{"$f":"'Form 1SFS'!G33","v":0},null,{"$f":"'Form 1SFS'!M33","v":0},null,{"$f":"'Form 1SFS'!O33","v":0}]
["Form 1ASFS","Balance Sheet GEN/CON","1ASFS3cii","Unquoted - Equities - Preferred Stocks",{"$f":"'Form 1SFS'!E34","v":0},null,{"$f":"'Form 1SFS'!G34","v":0},null,{"$f":"'Form 1SFS'!M34","v":0},null,{"$f":"'Form 1SFS'!O34","v":0}]
["Form 1ASFS","Balance Sheet GEN/CON","1ASFS3ciii","Unquoted - Equities - Mutual Funds",{"$f":"'Form 1SFS'!E35","v":0},null,{"$f":"'Form 1SFS'!G35","v":0},null,{"$f":"'Form 1SFS'!M35","v":0},null,{"$f":"'Form 1SFS'!O35","v":0}]
["Form 1ASFS","Balance Sheet GEN/CON","1ASFS3e","Unquoted - Other Investments",{"$f":"'Form 1SFS'!E37","v":0},null,{"$f":"'Form 1SFS'!G37","v":0},null,{"$f":"'Form 1SFS'!M37","v":0},null,{"$f":"'Form 1SFS'!O37","v":0}]
["Form 1ASFS","Balance Sheet GEN/CON","1ASFS4a","Inv. In Affiliates - Unregulated Ancillary",{"$f":"'Form 1SFS'!E41","v":0},null,{"$f":"'Form 1SFS'!G41","v":0},null,{"$f":"'Form 1SFS'!M41","v":0},null,{"$f":"'Form 1SFS'!O41","v":0}]
["Form 1ASFS","Balance Sheet GEN/CON","1ASFS4b","Inv. In Affiliates - Unregulated Non-Fin. Oper.",{"$f":"'Form 1SFS'!E42","v":0},null,{"$f":"'Form 1SFS'!G42","v":0},null,{"$f":"'Form 1SFS'!M42","v":0},null,{"$f":"'Form 1SFS'!O42","v":0}]
["Form 1ASFS","Balance Sheet GEN/CON","1ASFS4c","Inv. In Affiliates - Unregulated Fin. Operating",{"$f":"'Form 1SFS'!E43","v":0},null,{"$f":"'Form 1SFS'!G43","v":0},null,{"$f":"'Form 1SFS'!M43","v":0},null,{"$f":"'Form 1SFS'!O43","v":0}]
["Form 1ASFS","Balance Sheet GEN/CON","1ASFS4d","Inv. In Affiliates - Regulated Non-Insurance",{"$f":"'Form 1SFS'!E44","v":0},null,{"$f":"'Form 1SFS'!G44","v":0},null,{"$f":"'Form 1SFS'!M44","v":0},null,{"$f":"'Form 1SFS'!O44","v":0}]
["Form 1ASFS","Balance Sheet GEN/CON","1ASFS4e","Inv. In Affiliates - Regulated Insurance",{"$f":"'Form 1SFS'!E45","v":0},null,{"$f":"'Form 1SFS'!G45","v":0},null,{"$f":"'Form 1SFS'!M45","v":0},null,{"$f":"'Form 1SFS'!O45","v":0}]
["Form 1ASFS","Balance Sheet GEN/CON","1ASFS4g","Advances To Affiliates",{"$f":"'Form 1SFS'!E47","v":0},null,{"$f":"'Form 1SFS'!G47","v":0},null,{"$f":"'Form 1SFS'!M47","v":0},null,{"$f":"'Form 1SFS'!O47","v":0}]
["Form 1ASFS","Balance Sheet GEN/CON","1ASFS5a","Inv. In Mortg. Loans on Real Estate - 1st Lien",{"$f":"'Form 1SFS'!E51","v":0},null,{"$f":"'Form 1SFS'!G51","v":0},null,{"$f":"'Form 1SFS'!M51","v":0},null,{"$f":"'Form 1SFS'!O51","v":0}]
["Form 1ASFS","Balance Sheet GEN/CON","1ASFS5b","Inv. In Mortg. Loans on Real Estate - Other",{"$f":"'Form 1SFS'!E52","v":0},null,{"$f":"'Form 1SFS'!G52","v":0},null,{"$f":"'Form 1SFS'!M52","v":0},null,{"$f":"'Form 1SFS'!O52","v":0}]
["Form 1ASFS","Balance Sheet GEN/CON","1ASFS7a","Real Estate - Occupied by Company",{"$f":"'Form 1SFS'!E58","v":0},null,{"$f":"'Form 1SFS'!G58","v":0},null,{"$f":"'Form 1SFS'!M58","v":0},null,{"$f":"'Form 1SFS'!O58","v":0}]
["Form 1ASFS","Balance Sheet GEN/CON","1ASFS7b","Real Estate - Other",{"$f":"'Form 1SFS'!E59","v":0},null,{"$f":"'Form 1SFS'!G59","v":0},null,{"$f":"'Form 1SFS'!M59","v":0},null,{"$f":"'Form 1SFS'!O59","v":0}]
["Form 1ASFS","Balance Sheet GEN/CON","1ASFS8","Collateral Loans",{"$f":"'Form 1SFS'!E62","v":0},null,{"$f":"'Form 1SFS'!G62","v":0},null,{"$f":"'Form 1SFS'!M62","v":0},null,{"$f":"'Form 1SFS'!O62","v":0}]
["Form 1ASFS","Balance Sheet GEN/CON","1ASFS9","Investment Income Due and Accrued",{"$f":"'Form 1SFS'!E64","v":0},null,{"$f":"'Form 1SFS'!G64","v":0},null,{"$f":"'Form 1SFS'!M64","v":0},null,{"$f":"'Form 1SFS'!O64","v":0}]
["Form 1ASFS","Balance Sheet GEN/CON","1ASFS10","Accounts Receivable",0,null,0,null,0,null,0]
["Form 1ASFS","Balance Sheet GEN/CON","1ASFS11a","Insurance Contract Assets",0,null,0,null,0,null,0]
["Form 1ASFS","Balance Sheet GEN/CON","1ASFS11b","Reinsurance Contract Assets",0,null,0,null,0,null,0]
["Form 1ASFS","Balance Sheet GEN/CON","1ASFS11c","Investment Contracts with DPF Assets",0,null,0,null,0,null,0]
["Form 1ASFS","Balance Sheet GEN/CON","1ASFS13a","Sundry Assets - Derivatives",{"$f":"'Form 1SFS'!E82","v":0},null,{"$f":"'Form 1SFS'!G82","v":0},null,{"$f":"'Form 1SFS'!M82","v":0},null,{"$f":"'Form 1SFS'!O82","v":0}]
["Form 1ASFS","Balance Sheet GEN/CON","1ASFS13b","Sundry Assets - SAC - LT- Variable Annuities",null,null,null,null,{"$f":"'Form 1SFS'!M83","v":0},null,{"$f":"'Form 1SFS'!O83","v":0}]
["Form 1ASFS","Balance Sheet GEN/CON","1ASFS13c","Sundry Assets - SAC - LT- Others",null,null,null,null,{"$f":"'Form 1SFS'!M84","v":0},null,{"$f":"'Form 1SFS'!O84","v":0}]
["Form 1ASFS","Balance Sheet GEN/CON","1ASFS13d","Sundry Assets - SAC - General Business",{"$f":"'Form 1SFS'!E85","v":0},null,{"$f":"'Form 1SFS'!G85","v":0},null,{"$f":"'Form 1SFS'!M85","v":0},null,{"$f":"'Form 1SFS'!O85","v":0}]
["Form 1ASFS","Balance Sheet GEN/CON","1ASFS13e","Sundry Assets - Deposit Assets",{"$f":"'Form 1SFS'!E86","v":0},null,{"$f":"'Form 1SFS'!G86","v":0},null,{"$f":"'Form 1SFS'!M86","v":0},null,{"$f":"'Form 1SFS'!O86","v":0}]
["Form 1ASFS","Balance Sheet GEN/CON","1ASFS13f","Sundry Assets - Net Rec. for Investments",{"$f":"'Form 1SFS'!E88","v":0},null,{"$f":"'Form 1SFS'!G88","v":0},null,{"$f":"'Form 1SFS'!M88","v":0},null,{"$f":"'Form 1SFS'!O88","v":0}]
["Form 1ASFS","Balance Sheet GEN/CON","1ASFS13g","Sundry Assets - Other 1",{"$f":"'Form 1SFS'!E89","v":0},null,{"$f":"'Form 1SFS'!G89","v":0},null,{"$f":"'Form 1SFS'!M89","v":0},null,{"$f":"'Form 1SFS'!O89","v":0}]
["Form 1ASFS","Balance Sheet GEN/CON","1ASFS13h","Sundry Assets - Other 2",{"$f":"'Form 1SFS'!E90","v":0},null,{"$f":"'Form 1SFS'!G90","v":0},null,{"$f":"'Form 1SFS'!M90","v":0},null,{"$f":"'Form 1SFS'!O90","v":0}]
["Form 1ASFS","Balance Sheet GEN/CON","1ASFS13i","Sundry Assets - Other 3",{"$f":"'Form 1SFS'!E91","v":0},null,{"$f":"'Form 1SFS'!G91","v":0},null,{"$f":"'Form 1SFS'!M91","v":0},null,{"$f":"'Form 1SFS'!O91","v":0}]
["Form 1ASFS","Balance Sheet GEN/CON","1ASFS14a","Letters of Credit",{"$f":"'Form 1SFS'!E95","v":0},null,{"$f":"'Form 1SFS'!G95","v":0},null,{"$f":"'Form 1SFS'!M95","v":0},null,{"$f":"'Form 1SFS'!O95","v":0}]
["Form 1ASFS","Balance Sheet GEN/CON","1ASFS14b","Guarantees",{"$f":"'Form 1SFS'!E96","v":0},null,{"$f":"'Form 1SFS'!G96","v":0},null,{"$f":"'Form 1SFS'!M96","v":0},null,{"$f":"'Form 1SFS'!O96","v":0}]
["Form 1ASFS","Balance Sheet GEN/CON","1ASFS14c","Other Instruments",{"$f":"'Form 1SFS'!E97","v":0},null,{"$f":"'Form 1SFS'!G97","v":0},null,{"$f":"'Form 1SFS'!M97","v":0},null,{"$f":"'Form 1SFS'!O97","v":0}]
["Form 1ASFS","Balance Sheet GEN/CON","1ASFS15","Total Assets",{"$f":"'Form 1SFS'!E100","v":0},null,{"$f":"'Form 1SFS'!G100","v":0},null,{"$f":"'Form 1SFS'!M100","v":0},null,{"$f":"'Form 1SFS'!O100","v":0}]
["Form 1ASFS","Balance Sheet GEN/CON","1ASFS17","General Business Insurance Contract Liabilities",0,null,0,null,0,null,0]
["Form 1ASFS","Balance Sheet GEN/CON","1ASFS17A","General Business Reinsurance Contract Liabilities",0,null,0,null,0,null,0]
["Form 1ASFS","Balance Sheet GEN/CON","1ASFS18","Investment Contracts with DPF Liabilities",0,null,0,null,0,null,0]
["Form 1ASFS","Balance Sheet GEN/CON","1ASFS27","Long-Term Business Insurance Contract Liabilities",null,null,null,null,0,null,0]
["Form 1ASFS","Balance Sheet GEN/CON","1ASFS27A","Long-Term Business Reinsurance Contract Liabilities",null,null,null,null,0,null,0]
["Form 1ASFS","Balance Sheet GEN/CON","1ASFS29","Commissions, Expenses and Taxes Payable",{"$f":"'Form 1SFS'!E160","v":0},null,{"$f":"'Form 1SFS'!G160","v":0},null,{"$f":"'Form 1SFS'!M160","v":0},null,{"$f":"'Form 1SFS'!O160","v":0}]
["Form 1ASFS","Balance Sheet GEN/CON","1ASFS30","Loans and Notes Payable",{"$f":"'Form 1SFS'!E162","v":0},null,{"$f":"'Form 1SFS'!G162","v":0},null,{"$f":"'Form 1SFS'!M162","v":0},null,{"$f":"'Form 1SFS'!O162","v":0}]
["Form 1ASFS","Balance Sheet GEN/CON","1ASFS31a","Income Taxes Payable",{"$f":"'Form 1SFS'!E164","v":0},null,{"$f":"'Form 1SFS'!G164","v":0},null,{"$f":"'Form 1SFS'!M164","v":0},null,{"$f":"'Form 1SFS'!O164","v":0}]
["Form 1ASFS","Balance Sheet GEN/CON","1ASFS31b","Deferred Taxes Payable",{"$f":"'Form 1SFS'!E166","v":0},null,{"$f":"'Form 1SFS'!G166","v":0},null,{"$f":"'Form 1SFS'!M166","v":0},null,{"$f":"'Form 1SFS'!O166","v":0}]
["Form 1ASFS","Balance Sheet GEN/CON","1ASFS32","Amounts Due to Affiliates",{"$f":"'Form 1SFS'!E168","v":0},null,{"$f":"'Form 1SFS'!G168","v":0},null,{"$f":"'Form 1SFS'!M168","v":0},null,{"$f":"'Form 1SFS'!O168","v":0}]
["Form 1ASFS","Balance Sheet GEN/CON","1ASFS33","Accounts Payable and Accrued Liabilities",{"$f":"'Form 1SFS'!E170","v":0},null,{"$f":"'Form 1SFS'!G170","v":0},null,{"$f":"'Form 1SFS'!M170","v":0},null,{"$f":"'Form 1SFS'!O170","v":0}]
["Form 1ASFS","Balance Sheet GEN/CON","1ASFS35","Dividends Payable",{"$f":"'Form 1SFS'!E174","v":0},null,{"$f":"'Form 1SFS'!G174","v":0},null,{"$f":"'Form 1SFS'!M174","v":0},null,{"$f":"'Form 1SFS'!O174","v":0}]
["Form 1ASFS","Balance Sheet GEN/CON","1ASFS36a","Sundry Liabilities - Derivative Instruments",{"$f":"'Form 1SFS'!E177","v":0},null,{"$f":"'Form 1SFS'!G177","v":0},null,{"$f":"'Form 1SFS'!M177","v":0},null,{"$f":"'Form 1SFS'!O177","v":0}]
["Form 1ASFS","Balance Sheet GEN/CON","1ASFS36b","Sundry Liabilities - Seg. Accounts",{"$f":"'Form 1SFS'!E178","v":0},null,{"$f":"'Form 1SFS'!G178","v":0},null,{"$f":"'Form 1SFS'!M178","v":0},null,{"$f":"'Form 1SFS'!O178","v":0}]
["Form 1ASFS","Balance Sheet GEN/CON","1ASFS36c","Sundry Liabilities - Deposit Liabilities",{"$f":"'Form 1SFS'!E179","v":0},null,{"$f":"'Form 1SFS'!G179","v":0},null,{"$f":"'Form 1SFS'!M179","v":0},null,{"$f":"'Form 1SFS'!O179","v":0}]
["Form 1ASFS","Balance Sheet GEN/CON","1ASFS36d","Sundry Liabilities - Investments Purchased",{"$f":"'Form 1SFS'!E180","v":0},null,{"$f":"'Form 1SFS'!G180","v":0},null,{"$f":"'Form 1SFS'!M180","v":0},null,{"$f":"'Form 1SFS'!O180","v":0}]
["Form 1ASFS","Balance Sheet GEN/CON","1ASFS36e","Sundry Liabilities - Other 1",{"$f":"'Form 1SFS'!E181","v":0},null,{"$f":"'Form 1SFS'!G181","v":0},null,{"$f":"'Form 1SFS'!M181","v":0},null,{"$f":"'Form 1SFS'!O181","v":0}]
["Form 1ASFS","Balance Sheet GEN/CON","1ASFS36f","Sundry Liabilities - Other 2",{"$f":"'Form 1SFS'!E182","v":0},null,{"$f":"'Form 1SFS'!G182","v":0},null,{"$f":"'Form 1SFS'!M182","v":0},null,{"$f":"'Form 1SFS'!O182","v":0}]
["Form 1ASFS","Balance Sheet GEN/CON","1ASFS36g","Sundry Liabilities - Other 3",{"$f":"'Form 1SFS'!E183","v":0},null,{"$f":"'Form 1SFS'!G183","v":0},null,{"$f":"'Form 1SFS'!M183","v":0},null,{"$f":"'Form 1SFS'!O183","v":0}]
["Form 1ASFS","Balance Sheet GEN/CON","1ASFS37a","Letters of Credit",{"$f":"'Form 1SFS'!E187","v":0},null,{"$f":"'Form 1SFS'!G187","v":0},null,{"$f":"'Form 1SFS'!M187","v":0},null,{"$f":"'Form 1SFS'!O187","v":0}]
["Form 1ASFS","Balance Sheet GEN/CON","1ASFS37b","Guarantees",{"$f":"'Form 1SFS'!E188","v":0},null,{"$f":"'Form 1SFS'!G188","v":0},null,{"$f":"'Form 1SFS'!M188","v":0},null,{"$f":"'Form 1SFS'!O188","v":0}]
["Form 1ASFS","Balance Sheet GEN/CON","1ASFS37c","Other Instruments",{"$f":"'Form 1SFS'!E189","v":0},null,{"$f":"'Form 1SFS'!G189","v":0},null,{"$f":"'Form 1SFS'!M189","v":0},null,{"$f":"'Form 1SFS'!O189","v":0}]
[]
["Form 1ASFS","Balance Sheet LT","1ASFS1","Cash and Cash Equivalents",{"$f":"'Form 1SFS'!I12","v":0},null,{"$f":"'Form 1SFS'!K12","v":0}]
["Form 1ASFS","Balance Sheet LT","1ASFS2ai","Quoted - Bonds - Held to Maturity",{"$f":"'Form 1SFS'!I16","v":0},null,{"$f":"'Form 1SFS'!K16","v":0}]
["Form 1ASFS","Balance Sheet LT","1ASFS2aii","Quoted - Bonds - Other",{"$f":"'Form 1SFS'!I17","v":0},null,{"$f":"'Form 1SFS'!K17","v":0}]
["Form 1ASFS","Balance Sheet LT","1ASFS2ci","Quoted - Equities - Common Stocks",{"$f":"'Form 1SFS'!I20","v":0},null,{"$f":"'Form 1SFS'!K20","v":0}]
["Form 1ASFS","Balance Sheet LT","1ASFS2cii","Quoted - Equities - Preferred Stocks",{"$f":"'Form 1SFS'!I21","v":0},null,{"$f":"'Form 1SFS'!K21","v":0}]
["Form 1ASFS","Balance Sheet LT","1ASFS2ciii","Quoted - Equities - Mutual Funds",{"$f":"'Form 1SFS'!I22","v":0},null,{"$f":"'Form 1SFS'!K22","v":0}]
["Form 1ASFS","Balance Sheet LT","1ASFS2e","Quoted - Other Investments",{"$f":"'Form 1SFS'!I24","v":0},null,{"$f":"'Form 1SFS'!K24","v":0}]
["Form 1ASFS","Balance Sheet LT","1ASFS3ai","Unquoted - Bonds - Held to Maturity",{"$f":"'Form 1SFS'!I29","v":0},null,{"$f":"'Form 1SFS'!K29","v":0}]
["Form 1ASFS","Balance Sheet LT","1ASFS3aii","Unquoted - Bonds - Other",{"$f":"'Form 1SFS'!I30","v":0},null,{"$f":"'Form 1SFS'!K30","v":0}]
["Form 1ASFS","Balance Sheet LT","1ASFS3ci","Unquoted - Equities - Common Stocks",{"$f":"'Form 1SFS'!I33","v":0},null,{"$f":"'Form 1SFS'!K33","v":0}]
["Form 1ASFS","Balance Sheet LT","1ASFS3cii","Unquoted - Equities - Preferred Stocks",{"$f":"'Form 1SFS'!I34","v":0},null,{"$f":"'Form 1SFS'!K34","v":0}]
["Form 1ASFS","Balance Sheet LT","1ASFS3ciii","Unquoted - Equities - Mutual Funds",{"$f":"'Form 1SFS'!I35","v":0},null,{"$f":"'Form 1SFS'!K35","v":0}]
["Form 1ASFS","Balance Sheet LT","1ASFS3e","Unquoted - Other Investments",{"$f":"'Form 1SFS'!I37","v":0},null,{"$f":"'Form 1SFS'!K37","v":0}]
["Form 1ASFS","Balance Sheet LT","1ASFS4a","Inv. In Affiliates - Unregulated Ancillary",{"$f":"'Form 1SFS'!I41","v":0},null,{"$f":"'Form 1SFS'!K41","v":0}]
["Form 1ASFS","Balance Sheet LT","1ASFS4b","Inv. In Affiliates - Unregulated Non-Fin. Oper.",{"$f":"'Form 1SFS'!I42","v":0},null,{"$f":"'Form 1SFS'!K42","v":0}]
["Form 1ASFS","Balance Sheet LT","1ASFS4c","Inv. In Affiliates - Unregulated Fin. Operating",{"$f":"'Form 1SFS'!I43","v":0},null,{"$f":"'Form 1SFS'!K43","v":0}]
["Form 1ASFS","Balance Sheet LT","1ASFS4d","Inv. In Affiliates - Regulated Non-Insurance",{"$f":"'Form 1SFS'!I44","v":0},null,{"$f":"'Form 1SFS'!K44","v":0}]
["Form 1ASFS","Balance Sheet LT","1ASFS4e","Inv. In Affiliates - Regulated Insurance",{"$f":"'Form 1SFS'!I45","v":0},null,{"$f":"'Form 1SFS'!K45","v":0}]
["Form 1ASFS","Balance Sheet LT","1ASFS4g","Advances To Affiliates",{"$f":"'Form 1SFS'!I47","v":0},null,{"$f":"'Form 1SFS'!K47","v":0}]
["Form 1ASFS","Balance Sheet LT","1ASFS5a","Inv. In Mortg. Loans on Real Estate - 1st Lien",{"$f":"'Form 1SFS'!I51","v":0},null,{"$f":"'Form 1SFS'!K51","v":0}]
["Form 1ASFS","Balance Sheet LT","1ASFS5b","Inv. In Mortg. Loans on Real Estate - Other",{"$f":"'Form 1SFS'!I52","v":0},null,{"$f":"'Form 1SFS'!K52","v":0}]
["Form 1ASFS","Balance Sheet LT","1ASFS7a","Real Estate - Occupied by Company",{"$f":"'Form 1SFS'!I58","v":0},null,{"$f":"'Form 1SFS'!K58","v":0}]
["Form 1ASFS","Balance Sheet LT","1ASFS7b","Real Estate - Other",{"$f":"'Form 1SFS'!I59","v":0},null,{"$f":"'Form 1SFS'!K59","v":0}]
["Form 1ASFS","Balance Sheet LT","1ASFS8","Collateral Loans",{"$f":"'Form 1SFS'!I62","v":0},null,{"$f":"'Form 1SFS'!K62","v":0}]
["Form 1ASFS","Balance Sheet LT","1ASFS9","Investment Income Due and Accrued",{"$f":"'Form 1SFS'!I64","v":0},null,{"$f":"'Form 1SFS'!K64","v":0}]
["Form 1ASFS","Balance Sheet LT","1ASFS10","Accounts Receivable",0,null,0]
["Form 1ASFS","Balance Sheet LT","1ASFS11a","Insurance Contract Assets",0,null,0]
["Form 1ASFS","Balance Sheet LT","1ASFS11b","Reinsurance Contract Assets",0,null,0]
["Form 1ASFS","Balance Sheet LT","1ASFS11c","Investment Contracts with DPF Assets",0,null,0]
["Form 1ASFS","Balance Sheet LT","1ASFS13a","Sundry Assets - Derivatives",{"$f":"'Form 1SFS'!I82","v":0},null,{"$f":"'Form 1SFS'!K82","v":0}]
["Form 1ASFS","Balance Sheet LT","1ASFS13b","Sundry Assets - SAC - LT- Variable Annuities",{"$f":"'Form 1SFS'!I83","v":0},null,{"$f":"'Form 1SFS'!K83","v":0}]
["Form 1ASFS","Balance Sheet LT","1ASFS13c","Sundry Assets - SAC - LT- Others",{"$f":"'Form 1SFS'!I84","v":0},null,{"$f":"'Form 1SFS'!K84","v":0}]
["Form 1ASFS","Balance Sheet LT","1ASFS13e","Sundry Assets - Deposit Assets",{"$f":"'Form 1SFS'!I86","v":0},null,{"$f":"'Form 1SFS'!K86","v":0}]
["Form 1ASFS","Balance Sheet LT","1ASFS13f","Sundry Assets - Net Rec. for Investments",{"$f":"'Form 1SFS'!I88","v":0},null,{"$f":"'Form 1SFS'!K88","v":0}]
["Form 1ASFS","Balance Sheet LT","1ASFS13g","Sundry Assets - Other 1",{"$f":"'Form 1SFS'!I89","v":0},null,{"$f":"'Form 1SFS'!K89","v":0}]
["Form 1ASFS","Balance Sheet LT","1ASFS13h","Sundry Assets - Other 2",{"$f":"'Form 1SFS'!I90","v":0},null,{"$f":"'Form 1SFS'!K90","v":0}]
["Form 1ASFS","Balance Sheet LT","1ASFS13i","Sundry Assets - Other 3",{"$f":"'Form 1SFS'!I91","v":0},null,{"$f":"'Form 1SFS'!K91","v":0}]
["Form 1ASFS","Balance Sheet LT","1ASFS14a","Letters of Credit",{"$f":"'Form 1SFS'!I95","v":0},null,{"$f":"'Form 1SFS'!K95","v":0}]
["Form 1ASFS","Balance Sheet LT","1ASFS14b","Guarantees",{"$f":"'Form 1SFS'!I96","v":0},null,{"$f":"'Form 1SFS'!K96","v":0}]
["Form 1ASFS","Balance Sheet LT","1ASFS14c","Other Instruments",{"$f":"'Form 1SFS'!I97","v":0},null,{"$f":"'Form 1SFS'!K97","v":0}]
["Form 1ASFS","Balance Sheet LT","1ASFS15","Total Assets",{"$f":"'Form 1SFS'!I100","v":0},null,{"$f":"'Form 1SFS'!K100","v":0}]
["Form 1ASFS","Balance Sheet LT","1ASFS18","Investment Contracts with DPF Liabilities",0,null,0]
["Form 1ASFS","Balance Sheet LT","1ASFS27","Long-Term Business Insurance Contract Liabilities",0,null,0]
["Form 1ASFS","Balance Sheet LT","1ASFS27A","Long-Term Business Reinsurance Contract Liabilities",0,null,0]
["Form 1ASFS","Balance Sheet LT","1ASFS29","Commissions, Expenses and Taxes Payable",{"$f":"'Form 1SFS'!I160","v":0},null,{"$f":"'Form 1SFS'!K160","v":0}]
["Form 1ASFS","Balance Sheet LT","1ASFS30","Loans and Notes Payable",{"$f":"'Form 1SFS'!I162","v":0},null,{"$f":"'Form 1SFS'!K162","v":0}]
["Form 1ASFS","Balance Sheet LT","1ASFS31a","Income Taxes Payable",{"$f":"'Form 1SFS'!I164","v":0},null,{"$f":"'Form 1SFS'!K164","v":0}]
["Form 1ASFS","Balance Sheet LT","1ASFS31b","Deferred Taxes Payable",{"$f":"'Form 1SFS'!I166","v":0},null,{"$f":"'Form 1SFS'!K166","v":0}]
["Form 1ASFS","Balance Sheet LT","1ASFS32","Amounts Due to Affiliates",{"$f":"'Form 1SFS'!I168","v":0},null,{"$f":"'Form 1SFS'!K168","v":0}]
["Form 1ASFS","Balance Sheet LT","1ASFS33","Accounts Payable and Accrued Liabilities",{"$f":"'Form 1SFS'!I170","v":0},null,{"$f":"'Form 1SFS'!K170","v":0}]
["Form 1ASFS","Balance Sheet LT","1ASFS35","Dividends Payable",{"$f":"'Form 1SFS'!I174","v":0},null,{"$f":"'Form 1SFS'!K174","v":0}]
["Form 1ASFS","Balance Sheet LT","1ASFS36a","Sundry Liabilities - Derivative Instruments",{"$f":"'Form 1SFS'!I177","v":0},null,{"$f":"'Form 1SFS'!K177","v":0}]
["Form 1ASFS","Balance Sheet LT","1ASFS36b","Sundry Liabilities - Segregated Accounts",{"$f":"'Form 1SFS'!I178","v":0},null,{"$f":"'Form 1SFS'!K178","v":0}]
["Form 1ASFS","Balance Sheet LT","1ASFS36c","Sundry Liabilities - Deposit Liabilities",{"$f":"'Form 1SFS'!I179","v":0},null,{"$f":"'Form 1SFS'!K179","v":0}]
["Form 1ASFS","Balance Sheet LT","1ASFS36d","Sundry Liabilities - Investments Purchased",{"$f":"'Form 1SFS'!I180","v":0},null,{"$f":"'Form 1SFS'!K180","v":0}]
["Form 1ASFS","Balance Sheet LT","1ASFS36e","Sundry Liabilities - Other 1",{"$f":"'Form 1SFS'!I181","v":0},null,{"$f":"'Form 1SFS'!K181","v":0}]
["Form 1ASFS","Balance Sheet LT","1ASFS36f","Sundry Liabilities - Other 2",{"$f":"'Form 1SFS'!I182","v":0},null,{"$f":"'Form 1SFS'!K182","v":0}]
["Form 1ASFS","Balance Sheet LT","1ASFS36g","Sundry Liabilities - Other 3",{"$f":"'Form 1SFS'!I183","v":0},null,{"$f":"'Form 1SFS'!K183","v":0}]
["Form 1ASFS","Balance Sheet LT","1ASFS37a","Letters of Credit",{"$f":"'Form 1SFS'!I187","v":0},null,{"$f":"'Form 1SFS'!K187","v":0}]
["Form 1ASFS","Balance Sheet LT","1ASFS37b","Guarantees",{"$f":"'Form 1SFS'!I188","v":0},null,{"$f":"'Form 1SFS'!K188","v":0}]
["Form 1ASFS","Balance Sheet LT","1ASFS37c","Other Instruments",{"$f":"'Form 1SFS'!I189","v":0},null,{"$f":"'Form 1SFS'!K189","v":0}]
[]
["Form 1ASFS","Notes","Form 1ASFS","Premium Receivable - in course of collection",null,null,null,null,0,null,0]
["Form 1ASFS","Notes","Form 1ASFS","Premium Receivable - Deferred not yet due",null,null,null,null,0,null,0]
["Form 1ASFS","Notes","Form 1ASFS","Premium Receivable - receivable from retrocessional contracts",null,null,null,null,0,null,0]
["Form 1ASFS","Notes","Form 1ASFS","Premium Receivable - Total",null,null,null,null,0,null,0]
["Form 1ASFS","Notes","Form 1ASFS","Reinsurance Balances Receivable",null,null,null,null,0,null,0]
["Form 1ASFS","Notes","Form 1ASFS","Funds Held by Ceding Reinsurers",null,null,null,null,0,null,0]
["Form 1ASFS","Notes","Form 1ASFS","Line 10 - Collaterized Balances",null,null,null,null,0,null,0]
["Form 1ASFS","Notes","Form 1ASFS","Line 13(a) Natue of Sundry Assets",null,null,null,null,0]
["Form 1ASFS","Notes","Form 1ASFS","Line 13(b)(i) Description of Derivatives policies",null,null,null,null,0]
["Form 1ASFS","Notes","Form 1ASFS","Line 13(b)(ii) MV and Nominal Exposure of derivatives",null,null,null,null,0]
["Form 1ASFS","Notes","Form 1ASFS","Line 15 - Policy. Oblig. - Cash",null,null,null,null,0,null,0]
["Form 1ASFS","Notes","Form 1ASFS","Line 15 - Policy. Oblig. - Quoted. Inv.",null,null,null,null,0,null,0]
["Form 1ASFS","Notes","Form 1ASFS","Line 15 - Policy. Oblig. - Unquoted. Inv.",null,null,null,null,0,null,0]
["Form 1ASFS","Notes","Form 1ASFS","Line 15 - Policy. Oblig. - Other Assets",null,null,null,null,0,null,0]
["Form 1ASFS","Notes","Form 1ASFS","Line 15 - Policy. Oblig. - Total",null,null,null,null,0,null,0]
["Form 1ASFS","Notes","Form 1ASFS","Line 15 - Other - Cash",null,null,null,null,0,null,0]
["Form 1ASFS","Notes","Form 1ASFS","Line 15 - Other - Quoted. Inv.",null,null,null,null,0,null,0]
["Form 1ASFS","Notes","Form 1ASFS","Line 15 - Other - Unquoted. Inv.",null,null,null,null,0,null,0]
["Form 1ASFS","Notes","Form 1ASFS","Line 15 - Other - Other Assets",null,null,null,null,0,null,0]
["Form 1ASFS","Notes","Form 1ASFS","Line 15 - Other - Total",null,null,null,null,0,null,0]
["Form 1ASFS","Notes","Form 1ASFS","Line 36(a) Natue of Sundry Liabilities",null,null,null,null,0]
["Form 1ASFS","Notes","Form 1ASFS","Line 13(b)(i) Description of Derivatives policies",null,null,null,null,0]
["Form 1ASFS","Notes","Form 1ASFS","Line 13(b)(ii) MV and Nominal Exposure of derivatives",null,null,null,null,0]
["Form 1ASFS","Notes","Form 1ASFS","Line 37 - LOC's & Guarantees",null,null,null,null,0,null,0]
["Form 1ASFS","Notes","Form 1ASFS","L17 - PAA Exc. Loss Comp - Open Assets",null,null,null,null,0]
["Form 1ASFS","Notes","Form 1ASFS","L17 - PAA Exc. Loss Comp - Open Liabilities",null,null,null,null,0]
["Form 1ASFS","Notes","Form 1ASFS","L17 - PAA Exc. Loss Comp - Net Open",null,null,null,null,0]
["Form 1ASFS","Notes","Form 1ASFS","L17 - PAA Exc. Loss Comp - Insurance Revenue",null,null,null,null,0]
["Form 1ASFS","Notes","Form 1ASFS","L17 - PAA Exc. Loss Comp - Amort. Cash Flows",null,null,null,null,0]
["Form 1ASFS","Notes","Form 1ASFS","L17 - PAA Exc. Loss Comp - Incurred Claims",null,null,null,null,0]
["Form 1ASFS","Notes","Form 1ASFS","L17 - PAA Exc. Loss Comp - Losses on enerous contracts",null,null,null,null,0]
["Form 1ASFS","Notes","Form 1ASFS","L17 - PAA Exc. Loss Comp - Adj to Liabilities for Incurred Claims",null,null,null,null,0]
["Form 1ASFS","Notes","Form 1ASFS","L17 - PAA Exc. Loss Comp - Total Insurance Service Expenses",null,null,null,null,0]
["Form 1ASFS","Notes","Form 1ASFS","L17 - PAA Exc. Loss Comp - Investment Components",null,null,null,null,0]
["Form 1ASFS","Notes","Form 1ASFS","L17 - PAA Exc. Loss Comp - Insurance Service Results",null,null,null,null,0]
["Form 1ASFS","Notes","Form 1ASFS","L17 - PAA Exc. Loss Comp - Net finance expenses",null,null,null,null,0]
["Form 1ASFS","Notes","Form 1ASFS","L17 - PAA Exc. Loss Comp - Foreign Exchange",null,null,null,null,0]
["Form 1ASFS","Notes","Form 1ASFS","L17 - PAA Exc. Loss Comp - Change in Profit or Loss",null,null,null,null,0]
["Form 1ASFS","Notes","Form 1ASFS","L17 - PAA Exc. Loss Comp - CF Premium Received",null,null,null,null,0]
["Form 1ASFS","Notes","Form 1ASFS","L17 - PAA Exc. Loss Comp - CF Insurance Acquisition",null,null,null,null,0]
["Form 1ASFS","Notes","Form 1ASFS","L17 - PAA Exc. Loss Comp - CF Claims Paid",null,null,null,null,0]
["Form 1ASFS","Notes","Form 1ASFS","L17 - PAA Exc. Loss Comp - Total CF",null,null,null,null,0]
["Form 1ASFS","Notes","Form 1ASFS","L17 - PAA Exc. Loss Comp - Contracts Trans. Acquisition Sub.",null,null,null,null,0]
["Form 1ASFS","Notes","Form 1ASFS","L17 - PAA Exc. Loss Comp - Contracts Trans. Disposal Sub.",null,null,null,null,0]
["Form 1ASFS","Notes","Form 1ASFS","L17 - PAA Exc. Loss Comp - Net Closing Balance",null,null,null,null,0]
["Form 1ASFS","Notes","Form 1ASFS","L17 - PAA Exc. Loss Comp - Closing Assets",null,null,null,null,0]
["Form 1ASFS","Notes","Form 1ASFS","L17 - PAA Exc. Loss Comp - Closing Liabilities",null,null,null,null,0]
["Form 1ASFS","Notes","Form 1ASFS","L17 - PAA Exc. Loss Comp - Net Closing Balance",null,null,null,null,0]
["Form 1ASFS","Notes","Form 1ASFS","L17 - PAA Loss Comp - Open Assets",null,null,null,null,0]
["Form 1ASFS","Notes","Form 1ASFS","L17 - PAA Loss Comp - Open Liabilities",null,null,null,null,0]
["Form 1ASFS","Notes","Form 1ASFS","L17 - PAA Loss Comp - Net Open",null,null,null,null,0]
["Form 1ASFS","Notes","Form 1ASFS","L17 - PAA Loss Comp - Insurance Revenue",null,null,null,null,0]
["Form 1ASFS","Notes","Form 1ASFS","L17 - PAA Loss Comp - Amort. Cash Flows",null,null,null,null,0]
["Form 1ASFS","Notes","Form 1ASFS","L17 - PAA Loss Comp - Incurred Claims",null,null,null,null,0]
["Form 1ASFS","Notes","Form 1ASFS","L17 - PAA Loss Comp - Losses on enerous contracts",null,null,null,null,0]
["Form 1ASFS","Notes","Form 1ASFS","L17 - PAA Loss Comp - Adj to Liabilities for Incurred Claims",null,null,null,null,0]
["Form 1ASFS","Notes","Form 1ASFS","L17 - PAA Loss Comp - Total Insurance Service Expenses",null,null,null,null,0]
["Form 1ASFS","Notes","Form 1ASFS","L17 - PAA Loss Comp - Investment Components",null,null,null,null,0]
["Form 1ASFS","Notes","Form 1ASFS","L17 - PAA Loss Comp - Insurance Service Results",null,null,null,null,0]
["Form 1ASFS","Notes","Form 1ASFS","L17 - PAA Loss Comp - Net finance expenses",null,null,null,null,0]
["Form 1ASFS","Notes","Form 1ASFS","L17 - PAA Loss Comp - Foreign Exchange",null,null,null,null,0]
["Form 1ASFS","Notes","Form 1ASFS","L17 - PAA Loss Comp - Change in Profit or Loss",null,null,null,null,0]
["Form 1ASFS","Notes","Form 1ASFS","L17 - PAA Loss Comp - CF Premium Received",null,null,null,null,0]
["Form 1ASFS","Notes","Form 1ASFS","L17 - PAA Loss Comp - CF Insurance Acquisition",null,null,null,null,0]
["Form 1ASFS","Notes","Form 1ASFS","L17 - PAA Loss Comp - CF Claims Paid",null,null,null,null,0]
["Form 1ASFS","Notes","Form 1ASFS","L17 - PAA Loss Comp - Total CF",null,null,null,null,0]
["Form 1ASFS","Notes","Form 1ASFS","L17 - PAA Loss Comp - Contracts Trans. Acquisition Sub.",null,null,null,null,0]
["Form 1ASFS","Notes","Form 1ASFS","L17 - PAA Loss Comp - Contracts Trans. Disposal Sub.",null,null,null,null,0]
["Form 1ASFS","Notes","Form 1ASFS","L17 - PAA Loss Comp - Net Closing Balance",null,null,null,null,0]
["Form 1ASFS","Notes","Form 1ASFS","L17 - PAA Loss Comp - Closing Assets",null,null,null,null,0]
["Form 1ASFS","Notes","Form 1ASFS","L17 - PAA Loss Comp - Closing Liabilities",null,null,null,null,0]
["Form 1ASFS","Notes","Form 1ASFS","L17 - PAA Loss Comp - Net Closing Balance",null,null,null,null,0]
["Form 1ASFS","Notes","Form 1ASFS","L17 - GMM Liab. for Incurred - Open Assets",null,null,null,null,0]
["Form 1ASFS","Notes","Form 1ASFS","L17 - GMM Liab. for Incurred - Open Liabilities",null,null,null,null,0]
["Form 1ASFS","Notes","Form 1ASFS","L17 - GMM Liab. for Incurred - Net Open",null,null,null,null,0]
["Form 1ASFS","Notes","Form 1ASFS","L17 - GMM Liab. for Incurred - Insurance Revenue",null,null,null,null,0]
["Form 1ASFS","Notes","Form 1ASFS","L17 - GMM Liab. for Incurred - Amort. Cash Flows",null,null,null,null,0]
["Form 1ASFS","Notes","Form 1ASFS","L17 - GMM Liab. for Incurred - Incurred Claims",null,null,null,null,0]
["Form 1ASFS","Notes","Form 1ASFS","L17 - GMM Liab. for Incurred - Losses on enerous contracts",null,null,null,null,0]
["Form 1ASFS","Notes","Form 1ASFS","L17 - GMM Liab. for Incurred - Adj to Liabilities for Incurred Claims",null,null,null,null,0]
["Form 1ASFS","Notes","Form 1ASFS","L17 - GMM Liab. for Incurred - Total Insurance Service Expenses",null,null,null,null,0]
["Form 1ASFS","Notes","Form 1ASFS","L17 - GMM Liab. for Incurred - Investment Components",null,null,null,null,0]
["Form 1ASFS","Notes","Form 1ASFS","L17 - GMM Liab. for Incurred - Insurance Service Results",null,null,null,null,0]
["Form 1ASFS","Notes","Form 1ASFS","L17 - GMM Liab. for Incurred - Net finance expenses",null,null,null,null,0]
["Form 1ASFS","Notes","Form 1ASFS","L17 - GMM Liab. for Incurred - Foreign Exchange",null,null,null,null,0]
["Form 1ASFS","Notes","Form 1ASFS","L17 - GMM Liab. for Incurred - Change in Profit or Loss",null,null,null,null,0]
["Form 1ASFS","Notes","Form 1ASFS","L17 - GMM Liab. for Incurred - CF Premium Received",null,null,null,null,0]
["Form 1ASFS","Notes","Form 1ASFS","L17 - GMM Liab. for Incurred - CF Insurance Acquisition",null,null,null,null,0]
["Form 1ASFS","Notes","Form 1ASFS","L17 - GMM Liab. for Incurred - CF Claims Paid",null,null,null,null,0]
["Form 1ASFS","Notes","Form 1ASFS","L17 - GMM Liab. for Incurred - Total CF",null,null,null,null,0]
["Form 1ASFS","Notes","Form 1ASFS","L17 - GMM Liab. for Incurred - Contracts Trans. Acquisition Sub.",null,null,null,null,0]
["Form 1ASFS","Notes","Form 1ASFS","L17 - GMM Liab. for Incurred - Contracts Trans. Disposal Sub.",null,null,null,null,0]
["Form 1ASFS","Notes","Form 1ASFS","L17 - GMM Liab. for Incurred - Net Closing Balance",null,null,null,null,0]
["Form 1ASFS","Notes","Form 1ASFS","L17 - GMM Liab. for Incurred - Closing Assets",null,null,null,null,0]
["Form 1ASFS","Notes","Form 1ASFS","L17 - GMM Liab. for Incurred - Closing Liabilities",null,null,null,null,0]
["Form 1ASFS","Notes","Form 1ASFS","L17 - GMM Liab. for Incurred - Net Closing Balance",null,null,null,null,0]
["Form 1ASFS","Notes","Form 1ASFS","L17 - GMM PV Cash Flow - Open Assets",null,null,null,null,0]
["Form 1ASFS","Notes","Form 1ASFS","L17 - GMM PV Cash Flow - Open Liabilities",null,null,null,null,0]
["Form 1ASFS","Notes","Form 1ASFS","L17 - GMM PV Cash Flow - Net Open",null,null,null,null,0]
["Form 1ASFS","Notes","Form 1ASFS","L17 - GMM PV Cash Flow - Insurance Revenue",null,null,null,null,0]
["Form 1ASFS","Notes","Form 1ASFS","L17 - GMM PV Cash Flow - Amort. Cash Flows",null,null,null,null,0]
["Form 1ASFS","Notes","Form 1ASFS","L17 - GMM PV Cash Flow - Incurred Claims",null,null,null,null,0]
["Form 1ASFS","Notes","Form 1ASFS","L17 - GMM PV Cash Flow - Losses on enerous contracts",null,null,null,null,0]
["Form 1ASFS","Notes","Form 1ASFS","L17 - GMM PV Cash Flow - Adj to Liabilities for Incurred Claims",null,null,null,null,0]
["Form 1ASFS","Notes","Form 1ASFS","L17 - GMM PV Cash Flow - Total Insurance Service Expenses",null,null,null,null,0]
["Form 1ASFS","Notes","Form 1ASFS","L17 - GMM PV Cash Flow - Investment Components",null,null,null,null,0]
["Form 1ASFS","Notes","Form 1ASFS","L17 - GMM PV Cash Flow - Insurance Service Results",null,null,null,null,0]
["Form 1ASFS","Notes","Form 1ASFS","L17 - GMM PV Cash Flow - Net finance expenses",null,null,null,null,0]
["Form 1ASFS","Notes","Form 1ASFS","L17 - GMM PV Cash Flow - Foreign Exchange",null,null,null,null,0]
["Form 1ASFS","Notes","Form 1ASFS","L17 - GMM PV Cash Flow - Change in Profit or Loss",null,null,null,null,0]
["Form 1ASFS","Notes","Form 1ASFS","L17 - GMM PV Cash Flow - CF Premium Received",null,null,null,null,0]
["Form 1ASFS","Notes","Form 1ASFS","L17 - GMM PV Cash Flow - CF Insurance Acquisition",null,null,null,null,0]
["Form 1ASFS","Notes","Form 1ASFS","L17 - GMM PV Cash Flow - CF Claims Paid",null,null,null,null,0]
["Form 1ASFS","Notes","Form 1ASFS","L17 - GMM PV Cash Flow - Total CF",null,null,null,null,0]
["Form 1ASFS","Notes","Form 1ASFS","L17 - GMM PV Cash Flow - Contracts Trans. Acquisition Sub.",null,null,null,null,0]
["Form 1ASFS","Notes","Form 1ASFS","L17 - GMM PV Cash Flow - Contracts Trans. Disposal Sub.",null,null,null,null,0]
["Form 1ASFS","Notes","Form 1ASFS","L17 - GMM PV Cash Flow - Net Closing Balance",null,null,null,null,0]
["Form 1ASFS","Notes","Form 1ASFS","L17 - GMM PV Cash Flow - Closing Assets",null,null,null,null,0]
["Form 1ASFS","Notes","Form 1ASFS","L17 - GMM PV Cash Flow - Closing Liabilities",null,null,null,null,0]
["Form 1ASFS","Notes","Form 1ASFS","L17 - GMM PV Cash Flow - Net Closing Balance",null,null,null,null,0]
["Form 1ASFS","Notes","Form 1ASFS","L17 - GMM Risk Adj - Open Assets",null,null,null,null,0]
["Form 1ASFS","Notes","Form 1ASFS","L17 - GMM Risk Adj - Open Liabilities",null,null,null,null,0]
["Form 1ASFS","Notes","Form 1ASFS","L17 - GMM Risk Adj - Net Open",null,null,null,null,0]
["Form 1ASFS","Notes","Form 1ASFS","L17 - GMM Risk Adj - Insurance Revenue",null,null,null,null,0]
["Form 1ASFS","Notes","Form 1ASFS","L17 - GMM Risk Adj - Amort. Cash Flows",null,null,null,null,0]
["Form 1ASFS","Notes","Form 1ASFS","L17 - GMM Risk Adj - Incurred Claims",null,null,null,null,0]
["Form 1ASFS","Notes","Form 1ASFS","L17 - GMM Risk Adj - Losses on enerous contracts",null,null,null,null,0]
["Form 1ASFS","Notes","Form 1ASFS","L17 - GMM Risk Adj - Adj to Liabilities for Incurred Claims",null,null,null,null,0]
["Form 1ASFS","Notes","Form 1ASFS","L17 - GMM Risk Adj - Total Insurance Service Expenses",null,null,null,null,0]
["Form 1ASFS","Notes","Form 1ASFS","L17 - GMM Risk Adj - Investment Components",null,null,null,null,0]
["Form 1ASFS","Notes","Form 1ASFS","L17 - GMM Risk Adj - Insurance Service Results",null,null,null,null,0]
["Form 1ASFS","Notes","Form 1ASFS","L17 - GMM Risk Adj - Net finance expenses",null,null,null,null,0]
["Form 1ASFS","Notes","Form 1ASFS","L17 - GMM Risk Adj - Foreign Exchange",null,null,null,null,0]
["Form 1ASFS","Notes","Form 1ASFS","L17 - GMM Risk Adj - Change in Profit or Loss",null,null,null,null,0]
["Form 1ASFS","Notes","Form 1ASFS","L17 - GMM Risk Adj - CF Premium Received",null,null,null,null,0]
["Form 1ASFS","Notes","Form 1ASFS","L17 - GMM Risk Adj - CF Insurance Acquisition",null,null,null,null,0]
["Form 1ASFS","Notes","Form 1ASFS","L17 - GMM Risk Adj - CF Claims Paid",null,null,null,null,0]
["Form 1ASFS","Notes","Form 1ASFS","L17 - GMM Risk Adj - Total CF",null,null,null,null,0]
["Form 1ASFS","Notes","Form 1ASFS","L17 - GMM Risk Adj - Contracts Trans. Acquisition Sub.",null,null,null,null,0]
["Form 1ASFS","Notes","Form 1ASFS","L17 - GMM Risk Adj - Contracts Trans. Disposal Sub.",null,null,null,null,0]
["Form 1ASFS","Notes","Form 1ASFS","L17 - GMM Risk Adj - Net Closing Balance",null,null,null,null,0]
["Form 1ASFS","Notes","Form 1ASFS","L17 - GMM Risk Adj - Closing Assets",null,null,null,null,0]
["Form 1ASFS","Notes","Form 1ASFS","L17 - GMM Risk Adj - Closing Liabilities",null,null,null,null,0]
["Form 1ASFS","Notes","Form 1ASFS","L17 - GMM Risk Adj - Net Closing Balance",null,null,null,null,0]
["Form 1ASFS","Notes","Form 1ASFS","L27 - PAA Exc. Loss Comp - Open Assets",null,null,null,null,0]
["Form 1ASFS","Notes","Form 1ASFS","L27 - PAA Exc. Loss Comp - Open Liabilities",null,null,null,null,0]
["Form 1ASFS","Notes","Form 1ASFS","L27 - PAA Exc. Loss Comp - Net Open",null,null,null,null,0]
["Form 1ASFS","Notes","Form 1ASFS","L27 - PAA Exc. Loss Comp - Insurance Revenue",null,null,null,null,0]
["Form 1ASFS","Notes","Form 1ASFS","L27 - PAA Exc. Loss Comp - Amort. Cash Flows",null,null,null,null,0]
["Form 1ASFS","Notes","Form 1ASFS","L27 - PAA Exc. Loss Comp - Incurred Claims",null,null,null,null,0]
["Form 1ASFS","Notes","Form 1ASFS","L27 - PAA Exc. Loss Comp - Losses on enerous contracts",null,null,null,null,0]
["Form 1ASFS","Notes","Form 1ASFS","L27 - PAA Exc. Loss Comp - Adj to Liabilities for Incurred Claims",null,null,null,null,0]
["Form 1ASFS","Notes","Form 1ASFS","L27 - PAA Exc. Loss Comp - Total Insurance Service Expenses",null,null,null,null,0]
["Form 1ASFS","Notes","Form 1ASFS","L27 - PAA Exc. Loss Comp - Investment Components",null,null,null,null,0]
["Form 1ASFS","Notes","Form 1ASFS","L27 - PAA Exc. Loss Comp - Insurance Service Results",null,null,null,null,0]
["Form 1ASFS","Notes","Form 1ASFS","L27 - PAA Exc. Loss Comp - Net finance expenses",null,null,null,null,0]
["Form 1ASFS","Notes","Form 1ASFS","L27 - PAA Exc. Loss Comp - Foreign Exchange",null,null,null,null,0]
["Form 1ASFS","Notes","Form 1ASFS","L27 - PAA Exc. Loss Comp - Change in Profit or Loss",null,null,null,null,0]
["Form 1ASFS","Notes","Form 1ASFS","L27 - PAA Exc. Loss Comp - CF Premium Received",null,null,null,null,0]
["Form 1ASFS","Notes","Form 1ASFS","L27 - PAA Exc. Loss Comp - CF Insurance Acquisition",null,null,null,null,0]
["Form 1ASFS","Notes","Form 1ASFS","L27 - PAA Exc. Loss Comp - CF Claims Paid",null,null,null,null,0]
["Form 1ASFS","Notes","Form 1ASFS","L27 - PAA Exc. Loss Comp - Total CF",null,null,null,null,0]
["Form 1ASFS","Notes","Form 1ASFS","L27 - PAA Exc. Loss Comp - Contracts Trans. Acquisition Sub.",null,null,null,null,0]
["Form 1ASFS","Notes","Form 1ASFS","L27 - PAA Exc. Loss Comp - Contracts Trans. Disposal Sub.",null,null,null,null,0]
["Form 1ASFS","Notes","Form 1ASFS","L27 - PAA Exc. Loss Comp - Net Closing Balance",null,null,null,null,0]
["Form 1ASFS","Notes","Form 1ASFS","L27 - PAA Exc. Loss Comp - Closing Assets",null,null,null,null,0]
["Form 1ASFS","Notes","Form 1ASFS","L27 - PAA Exc. Loss Comp - Closing Liabilities",null,null,null,null,0]
["Form 1ASFS","Notes","Form 1ASFS","L27 - PAA Exc. Loss Comp - Net Closing Balance",null,null,null,null,0]
["Form 1ASFS","Notes","Form 1ASFS","L27 - PAA Loss Comp - Open Assets",null,null,null,null,0]
["Form 1ASFS","Notes","Form 1ASFS","L27 - PAA Loss Comp - Open Liabilities",null,null,null,null,0]
["Form 1ASFS","Notes","Form 1ASFS","L27 - PAA Loss Comp - Net Open",null,null,null,null,0]
["Form 1ASFS","Notes","Form 1ASFS","L27 - PAA Loss Comp - Insurance Revenue",null,null,null,null,0]
["Form 1ASFS","Notes","Form 1ASFS","L27 - PAA Loss Comp - Amort. Cash Flows",null,null,null,null,0]
["Form 1ASFS","Notes","Form 1ASFS","L27 - PAA Loss Comp - Incurred Claims",null,null,null,null,0]
["Form 1ASFS","Notes","Form 1ASFS","L27 - PAA Loss Comp - Losses on enerous contracts",null,null,null,null,0]
["Form 1ASFS","Notes","Form 1ASFS","L27 - PAA Loss Comp - Adj to Liabilities for Incurred Claims",null,null,null,null,0]
["Form 1ASFS","Notes","Form 1ASFS","L27 - PAA Loss Comp - Total Insurance Service Expenses",null,null,null,null,0]
["Form 1ASFS","Notes","Form 1ASFS","L27 - PAA Loss Comp - Investment Components",null,null,null,null,0]
["Form 1ASFS","Notes","Form 1ASFS","L27 - PAA Loss Comp - Insurance Service Results",null,null,null,null,0]
["Form 1ASFS","Notes","Form 1ASFS","L27 - PAA Loss Comp - Net finance expenses",null,null,null,null,0]
["Form 1ASFS","Notes","Form 1ASFS","L27 - PAA Loss Comp - Foreign Exchange",null,null,null,null,0]
["Form 1ASFS","Notes","Form 1ASFS","L27 - PAA Loss Comp - Change in Profit or Loss",null,null,null,null,0]
["Form 1ASFS","Notes","Form 1ASFS","L27 - PAA Loss Comp - CF Premium Received",null,null,null,null,0]
["Form 1ASFS","Notes","Form 1ASFS","L27 - PAA Loss Comp - CF Insurance Acquisition",null,null,null,null,0]
["Form 1ASFS","Notes","Form 1ASFS","L27 - PAA Loss Comp - CF Claims Paid",null,null,null,null,0]
["Form 1ASFS","Notes","Form 1ASFS","L27 - PAA Loss Comp - Total CF",null,null,null,null,0]
["Form 1ASFS","Notes","Form 1ASFS","L27 - PAA Loss Comp - Contracts Trans. Acquisition Sub.",null,null,null,null,0]
["Form 1ASFS","Notes","Form 1ASFS","L27 - PAA Loss Comp - Contracts Trans. Disposal Sub.",null,null,null,null,0]
["Form 1ASFS","Notes","Form 1ASFS","L27 - PAA Loss Comp - Net Closing Balance",null,null,null,null,0]
["Form 1ASFS","Notes","Form 1ASFS","L27 - PAA Loss Comp - Closing Assets",null,null,null,null,0]
["Form 1ASFS","Notes","Form 1ASFS","L27 - PAA Loss Comp - Closing Liabilities",null,null,null,null,0]
["Form 1ASFS","Notes","Form 1ASFS","L27 - PAA Loss Comp - Net Closing Balance",null,null,null,null,0]
["Form 1ASFS","Notes","Form 1ASFS","L27 - GMM Liab. for Incurred - Open Assets",null,null,null,null,0]
["Form 1ASFS","Notes","Form 1ASFS","L27 - GMM Liab. for Incurred - Open Liabilities",null,null,null,null,0]
["Form 1ASFS","Notes","Form 1ASFS","L27 - GMM Liab. for Incurred - Net Open",null,null,null,null,0]
["Form 1ASFS","Notes","Form 1ASFS","L27 - GMM Liab. for Incurred - Insurance Revenue",null,null,null,null,0]
["Form 1ASFS","Notes","Form 1ASFS","L27 - GMM Liab. for Incurred - Amort. Cash Flows",null,null,null,null,0]
["Form 1ASFS","Notes","Form 1ASFS","L27 - GMM Liab. for Incurred - Incurred Claims",null,null,null,null,0]
["Form 1ASFS","Notes","Form 1ASFS","L27 - GMM Liab. for Incurred - Losses on enerous contracts",null,null,null,null,0]
["Form 1ASFS","Notes","Form 1ASFS","L27 - GMM Liab. for Incurred - Adj to Liabilities for Incurred Claims",null,null,null,null,0]
["Form 1ASFS","Notes","Form 1ASFS","L27 - GMM Liab. for Incurred - Total Insurance Service Expenses",null,null,null,null,0]
["Form 1ASFS","Notes","Form 1ASFS","L27 - GMM Liab. for Incurred - Investment Components",null,null,null,null,0]
["Form 1ASFS","Notes","Form 1ASFS","L27 - GMM Liab. for Incurred - Insurance Service Results",null,null,null,null,0]
["Form 1ASFS","Notes","Form 1ASFS","L27 - GMM Liab. for Incurred - Net finance expenses",null,null,null,null,0]
["Form 1ASFS","Notes","Form 1ASFS","L27 - GMM Liab. for Incurred - Foreign Exchange",null,null,null,null,0]
["Form 1ASFS","Notes","Form 1ASFS","L27 - GMM Liab. for Incurred - Change in Profit or Loss",null,null,null,null,0]
["Form 1ASFS","Notes","Form 1ASFS","L27 - GMM Liab. for Incurred - CF Premium Received",null,null,null,null,0]
["Form 1ASFS","Notes","Form 1ASFS","L27 - GMM Liab. for Incurred - CF Insurance Acquisition",null,null,null,null,0]
["Form 1ASFS","Notes","Form 1ASFS","L27 - GMM Liab. for Incurred - CF Claims Paid",null,null,null,null,0]
["Form 1ASFS","Notes","Form 1ASFS","L27 - GMM Liab. for Incurred - Total CF",null,null,null,null,0]
["Form 1ASFS","Notes","Form 1ASFS","L27 - GMM Liab. for Incurred - Contracts Trans. Acquisition Sub.",null,null,null,null,0]
["Form 1ASFS","Notes","Form 1ASFS","L27 - GMM Liab. for Incurred - Contracts Trans. Disposal Sub.",null,null,null,null,0]
["Form 1ASFS","Notes","Form 1ASFS","L27 - GMM Liab. for Incurred - Net Closing Balance",null,null,null,null,0]
["Form 1ASFS","Notes","Form 1ASFS","L27 - GMM Liab. for Incurred - Closing Assets",null,null,null,null,0]
["Form 1ASFS","Notes","Form 1ASFS","L27 - GMM Liab. for Incurred - Closing Liabilities",null,null,null,null,0]
["Form 1ASFS","Notes","Form 1ASFS","L27 - GMM Liab. for Incurred - Net Closing Balance",null,null,null,null,0]
["Form 1ASFS","Notes","Form 1ASFS","L27 - GMM PV Cash Flow - Open Assets",null,null,null,null,0]
["Form 1ASFS","Notes","Form 1ASFS","L27 - GMM PV Cash Flow - Open Liabilities",null,null,null,null,0]
["Form 1ASFS","Notes","Form 1ASFS","L27 - GMM PV Cash Flow - Net Open",null,null,null,null,0]
["Form 1ASFS","Notes","Form 1ASFS","L27 - GMM PV Cash Flow - Insurance Revenue",null,null,null,null,0]
["Form 1ASFS","Notes","Form 1ASFS","L27 - GMM PV Cash Flow - Amort. Cash Flows",null,null,null,null,0]
["Form 1ASFS","Notes","Form 1ASFS","L27 - GMM PV Cash Flow - Incurred Claims",null,null,null,null,0]
["Form 1ASFS","Notes","Form 1ASFS","L27 - GMM PV Cash Flow - Losses on enerous contracts",null,null,null,null,0]
["Form 1ASFS","Notes","Form 1ASFS","L27 - GMM PV Cash Flow - Adj to Liabilities for Incurred Claims",null,null,null,null,0]
["Form 1ASFS","Notes","Form 1ASFS","L27 - GMM PV Cash Flow - Total Insurance Service Expenses",null,null,null,null,0]
["Form 1ASFS","Notes","Form 1ASFS","L27 - GMM PV Cash Flow - Investment Components",null,null,null,null,0]
["Form 1ASFS","Notes","Form 1ASFS","L27 - GMM PV Cash Flow - Insurance Service Results",null,null,null,null,0]
["Form 1ASFS","Notes","Form 1ASFS","L27 - GMM PV Cash Flow - Net finance expenses",null,null,null,null,0]
["Form 1ASFS","Notes","Form 1ASFS","L27 - GMM PV Cash Flow - Foreign Exchange",null,null,null,null,0]
["Form 1ASFS","Notes","Form 1ASFS","L27 - GMM PV Cash Flow - Change in Profit or Loss",null,null,null,null,0]
["Form 1ASFS","Notes","Form 1ASFS","L27 - GMM PV Cash Flow - CF Premium Received",null,null,null,null,0]
["Form 1ASFS","Notes","Form 1ASFS","L27 - GMM PV Cash Flow - CF Insurance Acquisition",null,null,null,null,0]
["Form 1ASFS","Notes","Form 1ASFS","L27 - GMM PV Cash Flow - CF Claims Paid",null,null,null,null,0]
["Form 1ASFS","Notes","Form 1ASFS","L27 - GMM PV Cash Flow - Total CF",null,null,null,null,0]
["Form 1ASFS","Notes","Form 1ASFS","L27 - GMM PV Cash Flow - Contracts Trans. Acquisition Sub.",null,null,null,null,0]
["Form 1ASFS","Notes","Form 1ASFS","L27 - GMM PV Cash Flow - Contracts Trans. Disposal Sub.",null,null,null,null,0]
["Form 1ASFS","Notes","Form 1ASFS","L27 - GMM PV Cash Flow - Net Closing Balance",null,null,null,null,0]
["Form 1ASFS","Notes","Form 1ASFS","L27 - GMM PV Cash Flow - Closing Assets",null,null,null,null,0]
["Form 1ASFS","Notes","Form 1ASFS","L27 - GMM PV Cash Flow - Closing Liabilities",null,null,null,null,0]
["Form 1ASFS","Notes","Form 1ASFS","L27 - GMM PV Cash Flow - Net Closing Balance",null,null,null,null,0]
["Form 1ASFS","Notes","Form 1ASFS","L27 - GMM Risk Adj - Open Assets",null,null,null,null,0]
["Form 1ASFS","Notes","Form 1ASFS","L27 - GMM Risk Adj - Open Liabilities",null,null,null,null,0]
["Form 1ASFS","Notes","Form 1ASFS","L27 - GMM Risk Adj - Net Open",null,null,null,null,0]
["Form 1ASFS","Notes","Form 1ASFS","L27 - GMM Risk Adj - Insurance Revenue",null,null,null,null,0]
["Form 1ASFS","Notes","Form 1ASFS","L27 - GMM Risk Adj - Amort. Cash Flows",null,null,null,null,0]
["Form 1ASFS","Notes","Form 1ASFS","L27 - GMM Risk Adj - Incurred Claims",null,null,null,null,0]
["Form 1ASFS","Notes","Form 1ASFS","L27 - GMM Risk Adj - Losses on enerous contracts",null,null,null,null,0]
["Form 1ASFS","Notes","Form 1ASFS","L27 - GMM Risk Adj - Adj to Liabilities for Incurred Claims",null,null,null,null,0]
["Form 1ASFS","Notes","Form 1ASFS","L27 - GMM Risk Adj - Total Insurance Service Expenses",null,null,null,null,0]
["Form 1ASFS","Notes","Form 1ASFS","L27 - GMM Risk Adj - Investment Components",null,null,null,null,0]
["Form 1ASFS","Notes","Form 1ASFS","L27 - GMM Risk Adj - Insurance Service Results",null,null,null,null,0]
["Form 1ASFS","Notes","Form 1ASFS","L27 - GMM Risk Adj - Net finance expenses",null,null,null,null,0]
["Form 1ASFS","Notes","Form 1ASFS","L27 - GMM Risk Adj - Foreign Exchange",null,null,null,null,0]
["Form 1ASFS","Notes","Form 1ASFS","L27 - GMM Risk Adj - Change in Profit or Loss",null,null,null,null,0]
["Form 1ASFS","Notes","Form 1ASFS","L27 - GMM Risk Adj - CF Premium Received",null,null,null,null,0]
["Form 1ASFS","Notes","Form 1ASFS","L27 - GMM Risk Adj - CF Insurance Acquisition",null,null,null,null,0]
["Form 1ASFS","Notes","Form 1ASFS","L27 - GMM Risk Adj - CF Claims Paid",null,null,null,null,0]
["Form 1ASFS","Notes","Form 1ASFS","L27 - GMM Risk Adj - Total CF",null,null,null,null,0]
["Form 1ASFS","Notes","Form 1ASFS","L27 - GMM Risk Adj - Contracts Trans. Acquisition Sub.",null,null,null,null,0]
["Form 1ASFS","Notes","Form 1ASFS","L27 - GMM Risk Adj - Contracts Trans. Disposal Sub.",null,null,null,null,0]
["Form 1ASFS","Notes","Form 1ASFS","L27 - GMM Risk Adj - Net Closing Balance",null,null,null,null,0]
["Form 1ASFS","Notes","Form 1ASFS","L27 - GMM Risk Adj - Closing Assets",null,null,null,null,0]
["Form 1ASFS","Notes","Form 1ASFS","L27 - GMM Risk Adj - Closing Liabilities",null,null,null,null,0]
["Form 1ASFS","Notes","Form 1ASFS","L27 - GMM Risk Adj - Net Closing Balance",null,null,null,null,0]
["Form 1A","Notes","Form 1A","L17A - Coverage Exc. Loss Comp - Open Assets",null,null,null,null,0]
["Form 1A","Notes","Form 1A","L17A - Coverage Exc. Loss Comp - Open Liabilities",null,null,null,null,0]
["Form 1A","Notes","Form 1A","L17A - Coverage Exc. Loss Comp - Net Open",null,null,null,null,0]
["Form 1A","Notes","Form 1A","L17A - Coverage Exc. Loss Comp - Premiums Paid",null,null,null,null,0]
["Form 1A","Notes","Form 1A","L17A - Coverage Exc. Loss Comp - Recov. Incurred Claims",null,null,null,null,0]
["Form 1A","Notes","Form 1A","L17A - Coverage Exc. Loss Comp - Recov. on Reversals",null,null,null,null,0]
["Form 1A","Notes","Form 1A","L17A - Coverage Exc. Loss Comp - Adj to Assets for Incurred Claims",null,null,null,null,0]
["Form 1A","Notes","Form 1A","L17A - Coverage Exc. Loss Comp - Total Recov. From Reinsurers",null,null,null,null,0]
["Form 1A","Notes","Form 1A","L17A - Coverage Exc. Loss Comp - Investment Components",null,null,null,null,0]
["Form 1A","Notes","Form 1A","L17A - Coverage Exc. Loss Comp - Changes in Non-Performance Risk",null,null,null,null,0]
["Form 1A","Notes","Form 1A","L17A - Coverage Exc. Loss Comp - Net Expenses from R/I Contracts",null,null,null,null,0]
["Form 1A","Notes","Form 1A","L17A - Coverage Exc. Loss Comp - Net Finance profit",null,null,null,null,0]
["Form 1A","Notes","Form 1A","L17A - Coverage Exc. Loss Comp - Foreign Exchange",null,null,null,null,0]
["Form 1A","Notes","Form 1A","L17A - Coverage Exc. Loss Comp - Change in Profit or Loss",null,null,null,null,0]
["Form 1A","Notes","Form 1A","L17A - Coverage Exc. Loss Comp - CF Premium Received",null,null,null,null,0]
["Form 1A","Notes","Form 1A","L17A - Coverage Exc. Loss Comp - CF Incurred Claims",null,null,null,null,0]
["Form 1A","Notes","Form 1A","L17A - Coverage Exc. Loss Comp - Total CF",null,null,null,null,0]
["Form 1A","Notes","Form 1A","L17A - Coverage Exc. Loss Comp - Net Closing Balance",null,null,null,null,0]
["Form 1A","Notes","Form 1A","L17A - Coverage Exc. Loss Comp - Closing Assets",null,null,null,null,0]
["Form 1A","Notes","Form 1A","L17A - Coverage Exc. Loss Comp - Closing Liabilities",null,null,null,null,0]
["Form 1A","Notes","Form 1A","L17A - Coverage Exc. Loss Comp - Net Closing Balance",null,null,null,null,0]
["Form 1A","Notes","Form 1A","L17A - Coverage Inc. Loss Comp - Open Assets",null,null,null,null,0]
["Form 1A","Notes","Form 1A","L17A - Coverage Inc. Loss Comp - Open Liabilities",null,null,null,null,0]
["Form 1A","Notes","Form 1A","L17A - Coverage Inc. Loss Comp - Net Open",null,null,null,null,0]
["Form 1A","Notes","Form 1A","L17A - Coverage Inc. Loss Comp - Premiums Paid",null,null,null,null,0]
["Form 1A","Notes","Form 1A","L17A - Coverage Inc. Loss Comp - Recov. Incurred Claims",null,null,null,null,0]
["Form 1A","Notes","Form 1A","L17A - Coverage Inc. Loss Comp - Recov. on Reversals",null,null,null,null,0]
["Form 1A","Notes","Form 1A","L17A - Coverage Inc. Loss Comp - Adj to Assets for Incurred Claims",null,null,null,null,0]
["Form 1A","Notes","Form 1A","L17A - Coverage Inc. Loss Comp - Total Recov. From Reinsurers",null,null,null,null,0]
["Form 1A","Notes","Form 1A","L17A - Coverage Inc. Loss Comp - Investment Components",null,null,null,null,0]
["Form 1A","Notes","Form 1A","L17A - Coverage Inc. Loss Comp - Changes in Non-Performance Risk",null,null,null,null,0]
["Form 1A","Notes","Form 1A","L17A - Coverage Inc. Loss Comp - Net Expenses from R/I Contracts",null,null,null,null,0]
["Form 1A","Notes","Form 1A","L17A - Coverage Inc. Loss Comp - Net Finance profit",null,null,null,null,0]
["Form 1A","Notes","Form 1A","L17A - Coverage Inc. Loss Comp - Foreign Exchange",null,null,null,null,0]
["Form 1A","Notes","Form 1A","L17A - Coverage Inc. Loss Comp - Change in Profit or Loss",null,null,null,null,0]
["Form 1A","Notes","Form 1A","L17A - Coverage Inc. Loss Comp - CF Premium Received",null,null,null,null,0]
["Form 1A","Notes","Form 1A","L17A - Coverage Inc. Loss Comp - CF Incurred Claims",null,null,null,null,0]
["Form 1A","Notes","Form 1A","L17A - Coverage Inc. Loss Comp - Total CF",null,null,null,null,0]
["Form 1A","Notes","Form 1A","L17A - Coverage Inc. Loss Comp - Net Closing Balance",null,null,null,null,0]
["Form 1A","Notes","Form 1A","L17A - Coverage Inc. Loss Comp - Closing Assets",null,null,null,null,0]
["Form 1A","Notes","Form 1A","L17A - Coverage Inc. Loss Comp - Closing Liabilities",null,null,null,null,0]
["Form 1A","Notes","Form 1A","L17A - Coverage Inc. Loss Comp - Net Closing Balance",null,null,null,null,0]
["Form 1A","Notes","Form 1A","L17A - Inc. Claims Products Not PAA - Open Assets",null,null,null,null,0]
["Form 1A","Notes","Form 1A","L17A - Inc. Claims Products Not PAA - Open Liabilities",null,null,null,null,0]
["Form 1A","Notes","Form 1A","L17A - Inc. Claims Products Not PAA - Net Open",null,null,null,null,0]
["Form 1A","Notes","Form 1A","L17A - Inc. Claims Products Not PAA - Premiums Paid",null,null,null,null,0]
["Form 1A","Notes","Form 1A","L17A - Inc. Claims Products Not PAA - Recov. Incurred Claims",null,null,null,null,0]
["Form 1A","Notes","Form 1A","L17A - Inc. Claims Products Not PAA - Recov. on Reversals",null,null,null,null,0]
["Form 1A","Notes","Form 1A","L17A - Inc. Claims Products Not PAA - Adj to Assets for Incurred Claims",null,null,null,null,0]
["Form 1A","Notes","Form 1A","L17A - Inc. Claims Products Not PAA - Total Recov. From Reinsurers",null,null,null,null,0]
["Form 1A","Notes","Form 1A","L17A - Inc. Claims Products Not PAA - Investment Components",null,null,null,null,0]
["Form 1A","Notes","Form 1A","L17A - Inc. Claims Products Not PAA - Changes in Non-Performance Risk",null,null,null,null,0]
["Form 1A","Notes","Form 1A","L17A - Inc. Claims Products Not PAA - Net Expenses from R/I Contracts",null,null,null,null,0]
["Form 1A","Notes","Form 1A","L17A - Inc. Claims Products Not PAA - Net Finance profit",null,null,null,null,0]
["Form 1A","Notes","Form 1A","L17A - Inc. Claims Products Not PAA - Foreign Exchange",null,null,null,null,0]
["Form 1A","Notes","Form 1A","L17A - Inc. Claims Products Not PAA - Change in Profit or Loss",null,null,null,null,0]
["Form 1A","Notes","Form 1A","L17A - Inc. Claims Products Not PAA - CF Premium Received",null,null,null,null,0]
["Form 1A","Notes","Form 1A","L17A - Inc. Claims Products Not PAA - CF Incurred Claims",null,null,null,null,0]
["Form 1A","Notes","Form 1A","L17A - Inc. Claims Products Not PAA - Total CF",null,null,null,null,0]
["Form 1A","Notes","Form 1A","L17A - Inc. Claims Products Not PAA - Net Closing Balance",null,null,null,null,0]
["Form 1A","Notes","Form 1A","L17A - Inc. Claims Products Not PAA - Closing Assets",null,null,null,null,0]
["Form 1A","Notes","Form 1A","L17A - Inc. Claims Products Not PAA - Closing Liabilities",null,null,null,null,0]
["Form 1A","Notes","Form 1A","L17A - Inc. Claims Products Not PAA - Net Closing Balance",null,null,null,null,0]
["Form 1A","Notes","Form 1A","L17A - Inc. Claims PAA PV Cash Flow - Open Assets",null,null,null,null,0]
["Form 1A","Notes","Form 1A","L17A - Inc. Claims PAA PV Cash Flow - Open Liabilities",null,null,null,null,0]
["Form 1A","Notes","Form 1A","L17A - Inc. Claims PAA PV Cash Flow - Net Open",null,null,null,null,0]
["Form 1A","Notes","Form 1A","L17A - Inc. Claims PAA PV Cash Flow - Premiums Paid",null,null,null,null,0]
["Form 1A","Notes","Form 1A","L17A - Inc. Claims PAA PV Cash Flow - Recov. Incurred Claims",null,null,null,null,0]
["Form 1A","Notes","Form 1A","L17A - Inc. Claims PAA PV Cash Flow - Recov. on Reversals",null,null,null,null,0]
["Form 1A","Notes","Form 1A","L17A - Inc. Claims PAA PV Cash Flow - Adj to Assets for Incurred Claims",null,null,null,null,0]
["Form 1A","Notes","Form 1A","L17A - Inc. Claims PAA PV Cash Flow - Total Recov. From Reinsurers",null,null,null,null,0]
["Form 1A","Notes","Form 1A","L17A - Inc. Claims PAA PV Cash Flow - Investment Components",null,null,null,null,0]
["Form 1A","Notes","Form 1A","L17A - Inc. Claims PAA PV Cash Flow - Changes in Non-Performance Risk",null,null,null,null,0]
["Form 1A","Notes","Form 1A","L17A - Inc. Claims PAA PV Cash Flow - Net Expenses from R/I Contracts",null,null,null,null,0]
["Form 1A","Notes","Form 1A","L17A - Inc. Claims PAA PV Cash Flow - Net Finance profit",null,null,null,null,0]
["Form 1A","Notes","Form 1A","L17A - Inc. Claims PAA PV Cash Flow - Foreign Exchange",null,null,null,null,0]
["Form 1A","Notes","Form 1A","L17A - Inc. Claims PAA PV Cash Flow - Change in Profit or Loss",null,null,null,null,0]
["Form 1A","Notes","Form 1A","L17A - Inc. Claims PAA PV Cash Flow - CF Premium Received",null,null,null,null,0]
["Form 1A","Notes","Form 1A","L17A - Inc. Claims PAA PV Cash Flow - CF Incurred Claims",null,null,null,null,0]
["Form 1A","Notes","Form 1A","L17A - Inc. Claims PAA PV Cash Flow - Total CF",null,null,null,null,0]
["Form 1A","Notes","Form 1A","L17A - Inc. Claims PAA PV Cash Flow - Net Closing Balance",null,null,null,null,0]
["Form 1A","Notes","Form 1A","L17A - Inc. Claims PAA PV Cash Flow - Closing Assets",null,null,null,null,0]
["Form 1A","Notes","Form 1A","L17A - Inc. Claims PAA PV Cash Flow - Closing Liabilities",null,null,null,null,0]
["Form 1A","Notes","Form 1A","L17A - Inc. Claims PAA PV Cash Flow - Net Closing Balance",null,null,null,null,0]
["Form 1A","Notes","Form 1A","L17A - Inc. Claims PAA Adj Non Fin. - Open Assets",null,null,null,null,0]
["Form 1A","Notes","Form 1A","L17A - Inc. Claims PAA Adj Non Fin. - Open Liabilities",null,null,null,null,0]
["Form 1A","Notes","Form 1A","L17A - Inc. Claims PAA Adj Non Fin. - Net Open",null,null,null,null,0]
["Form 1A","Notes","Form 1A","L17A - Inc. Claims PAA Adj Non Fin. - Premiums Paid",null,null,null,null,0]
["Form 1A","Notes","Form 1A","L17A - Inc. Claims PAA Adj Non Fin. - Recov. Incurred Claims",null,null,null,null,0]
["Form 1A","Notes","Form 1A","L17A - Inc. Claims PAA Adj Non Fin. - Recov. on Reversals",null,null,null,null,0]
["Form 1A","Notes","Form 1A","L17A - Inc. Claims PAA Adj Non Fin. - Adj to Assets for Incurred Claims",null,null,null,null,0]
["Form 1A","Notes","Form 1A","L17A - Inc. Claims PAA Adj Non Fin. - Total Recov. From Reinsurers",null,null,null,null,0]
["Form 1A","Notes","Form 1A","L17A - Inc. Claims PAA Adj Non Fin. - Investment Components",null,null,null,null,0]
["Form 1A","Notes","Form 1A","L17A - Inc. Claims PAA Adj Non Fin. - Changes in Non-Performance Risk",null,null,null,null,0]
["Form 1A","Notes","Form 1A","L17A - Inc. Claims PAA Adj Non Fin. - Net Expenses from R/I Contracts",null,null,null,null,0]
["Form 1A","Notes","Form 1A","L17A - Inc. Claims PAA Adj Non Fin. - Net Finance profit",null,null,null,null,0]
["Form 1A","Notes","Form 1A","L17A - Inc. Claims PAA Adj Non Fin. - Foreign Exchange",null,null,null,null,0]
["Form 1A","Notes","Form 1A","L17A - Inc. Claims PAA Adj Non Fin. - Change in Profit or Loss",null,null,null,null,0]
["Form 1A","Notes","Form 1A","L17A - Inc. Claims PAA Adj Non Fin. - CF Premium Received",null,null,null,null,0]
["Form 1A","Notes","Form 1A","L17A - Inc. Claims PAA Adj Non Fin. - CF Incurred Claims",null,null,null,null,0]
["Form 1A","Notes","Form 1A","L17A - Inc. Claims PAA Adj Non Fin. - Total CF",null,null,null,null,0]
["Form 1A","Notes","Form 1A","L17A - Inc. Claims PAA Adj Non Fin. - Net Closing Balance",null,null,null,null,0]
["Form 1A","Notes","Form 1A","L17A - Inc. Claims PAA Adj Non Fin. - Closing Assets",null,null,null,null,0]
["Form 1A","Notes","Form 1A","L17A - Inc. Claims PAA Adj Non Fin. - Closing Liabilities",null,null,null,null,0]
["Form 1A","Notes","Form 1A","L17A - Inc. Claims PAA Adj Non Fin. - Net Closing Balance",null,null,null,null,0]
["Form 1A","Notes","Form 1A","L27A - Coverage Exc. Loss Comp - Open Assets",null,null,null,null,0]
["Form 1A","Notes","Form 1A","L27A - Coverage Exc. Loss Comp - Open Liabilities",null,null,null,null,0]
["Form 1A","Notes","Form 1A","L27A - Coverage Exc. Loss Comp - Net Open",null,null,null,null,0]
["Form 1A","Notes","Form 1A","L27A - Coverage Exc. Loss Comp - Premiums Paid",null,null,null,null,0]
["Form 1A","Notes","Form 1A","L27A - Coverage Exc. Loss Comp - Recov. Incurred Claims",null,null,null,null,0]
["Form 1A","Notes","Form 1A","L27A - Coverage Exc. Loss Comp - Recov. on Reversals",null,null,null,null,0]
["Form 1A","Notes","Form 1A","L27A - Coverage Exc. Loss Comp - Adj to Assets for Incurred Claims",null,null,null,null,0]
["Form 1A","Notes","Form 1A","L27A - Coverage Exc. Loss Comp - Total Recov. From Reinsurers",null,null,null,null,0]
["Form 1A","Notes","Form 1A","L27A - Coverage Exc. Loss Comp - Investment Components",null,null,null,null,0]
["Form 1A","Notes","Form 1A","L27A - Coverage Exc. Loss Comp - Changes in Non-Performance Risk",null,null,null,null,0]
["Form 1A","Notes","Form 1A","L27A - Coverage Exc. Loss Comp - Net Expenses from R/I Contracts",null,null,null,null,0]
["Form 1A","Notes","Form 1A","L27A - Coverage Exc. Loss Comp - Net Finance profit",null,null,null,null,0]
["Form 1A","Notes","Form 1A","L27A - Coverage Exc. Loss Comp - Foreign Exchange",null,null,null,null,0]
["Form 1A","Notes","Form 1A","L27A - Coverage Exc. Loss Comp - Change in Profit or Loss",null,null,null,null,0]
["Form 1A","Notes","Form 1A","L27A - Coverage Exc. Loss Comp - CF Premium Received",null,null,null,null,0]
["Form 1A","Notes","Form 1A","L27A - Coverage Exc. Loss Comp - CF Incurred Claims",null,null,null,null,0]
["Form 1A","Notes","Form 1A","L27A - Coverage Exc. Loss Comp - Total CF",null,null,null,null,0]
["Form 1A","Notes","Form 1A","L27A - Coverage Exc. Loss Comp - Net Closing Balance",null,null,null,null,0]
["Form 1A","Notes","Form 1A","L27A - Coverage Exc. Loss Comp - Closing Assets",null,null,null,null,0]
["Form 1A","Notes","Form 1A","L27A - Coverage Exc. Loss Comp - Closing Liabilities",null,null,null,null,0]
["Form 1A","Notes","Form 1A","L27A - Coverage Exc. Loss Comp - Net Closing Balance",null,null,null,null,0]
["Form 1A","Notes","Form 1A","L27A - Coverage Inc. Loss Comp - Open Assets",null,null,null,null,0]
["Form 1A","Notes","Form 1A","L27A - Coverage Inc. Loss Comp - Open Liabilities",null,null,null,null,0]
["Form 1A","Notes","Form 1A","L27A - Coverage Inc. Loss Comp - Net Open",null,null,null,null,0]
["Form 1A","Notes","Form 1A","L27A - Coverage Inc. Loss Comp - Premiums Paid",null,null,null,null,0]
["Form 1A","Notes","Form 1A","L27A - Coverage Inc. Loss Comp - Recov. Incurred Claims",null,null,null,null,0]
["Form 1A","Notes","Form 1A","L27A - Coverage Inc. Loss Comp - Recov. on Reversals",null,null,null,null,0]
["Form 1A","Notes","Form 1A","L27A - Coverage Inc. Loss Comp - Adj to Assets for Incurred Claims",null,null,null,null,0]
["Form 1A","Notes","Form 1A","L27A - Coverage Inc. Loss Comp - Total Recov. From Reinsurers",null,null,null,null,0]
["Form 1A","Notes","Form 1A","L27A - Coverage Inc. Loss Comp - Investment Components",null,null,null,null,0]
["Form 1A","Notes","Form 1A","L27A - Coverage Inc. Loss Comp - Changes in Non-Performance Risk",null,null,null,null,0]
["Form 1A","Notes","Form 1A","L27A - Coverage Inc. Loss Comp - Net Expenses from R/I Contracts",null,null,null,null,0]
["Form 1A","Notes","Form 1A","L27A - Coverage Inc. Loss Comp - Net Finance profit",null,null,null,null,0]
["Form 1A","Notes","Form 1A","L27A - Coverage Inc. Loss Comp - Foreign Exchange",null,null,null,null,0]
["Form 1A","Notes","Form 1A","L27A - Coverage Inc. Loss Comp - Change in Profit or Loss",null,null,null,null,0]
["Form 1A","Notes","Form 1A","L27A - Coverage Inc. Loss Comp - CF Premium Received",null,null,null,null,0]
["Form 1A","Notes","Form 1A","L27A - Coverage Inc. Loss Comp - CF Incurred Claims",null,null,null,null,0]
["Form 1A","Notes","Form 1A","L27A - Coverage Inc. Loss Comp - Total CF",null,null,null,null,0]
["Form 1A","Notes","Form 1A","L27A - Coverage Inc. Loss Comp - Net Closing Balance",null,null,null,null,0]
["Form 1A","Notes","Form 1A","L27A - Coverage Inc. Loss Comp - Closing Assets",null,null,null,null,0]
["Form 1A","Notes","Form 1A","L27A - Coverage Inc. Loss Comp - Closing Liabilities",null,null,null,null,0]
["Form 1A","Notes","Form 1A","L27A - Coverage Inc. Loss Comp - Net Closing Balance",null,null,null,null,0]
["Form 1A","Notes","Form 1A","L27A - Inc. Claims - Open Assets",null,null,null,null,0]
["Form 1A","Notes","Form 1A","L27A - Inc. Claims - Open Liabilities",null,null,null,null,0]
["Form 1A","Notes","Form 1A","L27A - Inc. Claims - Net Open",null,null,null,null,0]
["Form 1A","Notes","Form 1A","L27A - Inc. Claims - Premiums Paid",null,null,null,null,0]
["Form 1A","Notes","Form 1A","L27A - Inc. Claims - Recov. Incurred Claims",null,null,null,null,0]
["Form 1A","Notes","Form 1A","L27A - Inc. Claims - Recov. on Reversals",null,null,null,null,0]
["Form 1A","Notes","Form 1A","L27A - Inc. Claims - Adj to Assets for Incurred Claims",null,null,null,null,0]
["Form 1A","Notes","Form 1A","L27A - Inc. Claims - Total Recov. From Reinsurers",null,null,null,null,0]
["Form 1A","Notes","Form 1A","L27A - Inc. Claims - Investment Components",null,null,null,null,0]
["Form 1A","Notes","Form 1A","L27A - Inc. Claims - Changes in Non-Performance Risk",null,null,null,null,0]
["Form 1A","Notes","Form 1A","L27A - Inc. Claims - Net Expenses from R/I Contracts",null,null,null,null,0]
["Form 1A","Notes","Form 1A","L27A - Inc. Claims - Net Finance profit",null,null,null,null,0]
["Form 1A","Notes","Form 1A","L27A - Inc. Claims - Foreign Exchange",null,null,null,null,0]
["Form 1A","Notes","Form 1A","L27A - Inc. Claims - Change in Profit or Loss",null,null,null,null,0]
["Form 1A","Notes","Form 1A","L27A - Inc. Claims - CF Premium Received",null,null,null,null,0]
["Form 1A","Notes","Form 1A","L27A - Inc. Claims - CF Incurred Claims",null,null,null,null,0]
["Form 1A","Notes","Form 1A","L27A - Inc. Claims - Total CF",null,null,null,null,0]
["Form 1A","Notes","Form 1A","L27A - Inc. Claims - Net Closing Balance",null,null,null,null,0]
["Form 1A","Notes","Form 1A","L27A - Inc. Claims - Closing Assets",null,null,null,null,0]
["Form 1A","Notes","Form 1A","L27A - Inc. Claims - Closing Liabilities",null,null,null,null,0]
["Form 1A","Notes","Form 1A","L27A - Inc. Claims - Net Closing Balance",null,null,null,null,0]
[]
[null,null,null,"IFRS Income Statement"]
["Form 2ASFS","Income Stmt Uncon GEN / CON","2ASFS1","Insurance Contract Revenue",0,null,0,null,0,null,0]
["Form 2ASFS","Income Stmt Uncon GEN / CON","2ASFS2a","Incurred Claims",0,null,0,null,0,null,0]
["Form 2ASFS","Income Stmt Uncon GEN / CON","2ASFS2b","Acquisition Cash Flows",0,null,0,null,0,null,0]
["Form 2ASFS","Income Stmt Uncon GEN / CON","2ASFS2c","Adj for Liability Incurred Claims",0,null,0,null,0,null,0]
["Form 2ASFS","Income Stmt Uncon GEN / CON","2ASFS2d","Losses on Onerous Contracts",0,null,0,null,0,null,0]
["Form 2ASFS","Income Stmt Uncon GEN / CON","2ASFS2e","Other Service Expenses",0,null,0,null,0,null,0]
["Form 2ASFS","Income Stmt Uncon GEN / CON","2ASFS2f","Total Insurance Service Expense",0,null,0,null,0,null,0]
["Form 2ASFS","Income Stmt Uncon GEN / CON","2ASFS3","Insurance Service Results Before R/I",0,null,0,null,0,null,0]
["Form 2ASFS","Income Stmt Uncon GEN / CON","2ASFS4a","R/I Recoveries and Other Income",0,null,0,null,0,null,0]
["Form 2ASFS","Income Stmt Uncon GEN / CON","2ASFS4b","R/I Expenses",0,null,0,null,0,null,0]
["Form 2ASFS","Income Stmt Uncon GEN / CON","2ASFS4c","Net Expenses R/I Contracts Held",0,null,0,null,0,null,0]
["Form 2ASFS","Income Stmt Uncon GEN / CON","2ASFS5","Insurance Service Results",0,null,0,null,0,null,0]
["Form 2ASFS","Income Stmt Uncon GEN / CON","2ASFS6a","Net Interest Income",0,null,0,null,0,null,0]
["Form 2ASFS","Income Stmt Uncon GEN / CON","2ASFS6b","Net Realized",0,null,0,null,0,null,0]
["Form 2ASFS","Income Stmt Uncon GEN / CON","2ASFS6c","Net Foreign Exchange",0,null,0,null,0,null,0]
["Form 2ASFS","Income Stmt Uncon GEN / CON","2ASFS6d","Credit Impairment Losses",0,null,0,null,0,null,0]
["Form 2ASFS","Income Stmt Uncon GEN / CON","2ASFS6e","Other Investment Returns",0,null,0,null,0,null,0]
["Form 2ASFS","Income Stmt Uncon GEN / CON","2ASFS6f","Total Investment Returns",0,null,0,null,0,null,0]
["Form 2ASFS","Income Stmt Uncon GEN / CON","2ASFS7a","Net Finance Expense from Insurance",0,null,0,null,0,null,0]
["Form 2ASFS","Income Stmt Uncon GEN / CON","2ASFS7b","Net Finance Expense from Reinsurance",0,null,0,null,0,null,0]
["Form 2ASFS","Income Stmt Uncon GEN / CON","2ASFS7c","Insurance Finance Results",0,null,0,null,0,null,0]
["Form 2ASFS","Income Stmt Uncon GEN / CON","2ASFS8","Net Insurance Financial and Investment Results",0,null,0,null,0,null,0]
["Form 2ASFS","Income Stmt Uncon GEN / CON","2ASFS9","Other Income",0,null,0,null,0,null,0]
["Form 2ASFS","Income Stmt Uncon GEN / CON","2ASFS10","Profit Before Tax",0,null,0,null,0,null,0]
["Form 2ASFS","Income Stmt Uncon GEN / CON","2ASFS11","Income Tax",0,null,0,null,0,null,0]
["Form 2ASFS","Income Stmt Uncon GEN / CON","2ASFS12","Net Income",0,null,0,null,0,null,0]
[]
["Form 2ASFS","Income Stmt Uncon LT","2ASFS1","Insurance Contract Revenue",0,null,0]
["Form 2ASFS","Income Stmt Uncon LT","2ASFS2a","Incurred Claims",0,null,0]
["Form 2ASFS","Income Stmt Uncon LT","2ASFS2b","Acquisition Cash Flows",0,null,0]
["Form 2ASFS","Income Stmt Uncon LT","2ASFS2c","Adj for Liability Incurred Claims",0,null,0]
["Form 2ASFS","Income Stmt Uncon LT","2ASFS2d","Losses on Onerous Contracts",0,null,0]
["Form 2ASFS","Income Stmt Uncon LT","2ASFS2e","Other Service Expenses",0,null,0]
["Form 2ASFS","Income Stmt Uncon LT","2ASFS2f","Total Insurance Service Expense",0,null,0]
["Form 2ASFS","Income Stmt Uncon LT","2ASFS3","Insurance Service Results Before R/I",0,null,0]
["Form 2ASFS","Income Stmt Uncon LT","2ASFS4a","R/I Recoveries and Other Income",0,null,0]
["Form 2ASFS","Income Stmt Uncon LT","2ASFS4b","R/I Expenses",0,null,0]
["Form 2ASFS","Income Stmt Uncon LT","2ASFS4c","Net Expenses R/I Contracts Held",0,null,0]
["Form 2ASFS","Income Stmt Uncon LT","2ASFS5","Insurance Service Results",0,null,0]
["Form 2ASFS","Income Stmt Uncon LT","2ASFS6a","Net Interest Income",0,null,0]
["Form 2ASFS","Income Stmt Uncon LT","2ASFS6b","Net Realized",0,null,0]
["Form 2ASFS","Income Stmt Uncon LT","2ASFS6c","Net Foreign Exchange",0,null,0]
["Form 2ASFS","Income Stmt Uncon LT","2ASFS6d","Credit Impairment Losses",0,null,0]
["Form 2ASFS","Income Stmt Uncon LT","2ASFS6e","Other Investment Returns",0,null,0]
["Form 2ASFS","Income Stmt Uncon LT","2ASFS6f","Total Investment Returns",0,null,0]
["Form 2ASFS","Income Stmt Uncon LT","2ASFS7a","Net Finance Expense from Insurance",0,null,0]
["Form 2ASFS","Income Stmt Uncon LT","2ASFS7b","Net Finance Expense from Reinsurance",0,null,0]
["Form 2ASFS","Income Stmt Uncon LT","2ASFS7c","Insurance Finance Results",0,null,0]
["Form 2ASFS","Income Stmt Uncon LT","2ASFS8","Net Insurance Financial and Investment Results",0,null,0]
["Form 2ASFS","Income Stmt Uncon LT","2ASFS9","Other Income",0,null,0]
["Form 2ASFS","Income Stmt Uncon LT","2ASFS10","Profit Before Tax",0,null,0]
["Form 2ASFS","Income Stmt Uncon LT","2ASFS11","Income Tax",0,null,0]
["Form 2ASFS","Income Stmt Uncon LT","2ASFS12","Net Income",0,null,0]
[]
["Form 2ASFS","Notes","Revenue","Expected Incurred Claims",0]
["Form 2ASFS","Notes","Revenue","CSM for Services Provided",0]
["Form 2ASFS","Notes","Revenue","Change in Risk Adjustment",0]
["Form 2ASFS","Notes","Revenue","Recovery of Insurance Acqusition",0]
["Form 2ASFS","Notes","Revenue","Contracts Measured under the General Model",0]
["Form 2ASFS","Notes","Revenue","Contracts Measured under PAA",0]
["Form 2ASFS","Notes","Revenue","Total Insurance Revenue",0]
["Form 2ASFS","Notes","Premium","General Business GPW",{"$f":"'Form 2SFS'!E14","v":0},null,null,null,{"$f":"'Form 2SFS'!M14","v":0}]
["Form 2ASFS","Notes","Premium","General Business Premiums Ceded",{"$f":"'Form 2SFS'!E16","v":0},null,null,null,{"$f":"'Form 2SFS'!M16","v":0}]
["Form 2ASFS","Notes","Premium","General Business NPW",{"$f":"'Form 2SFS'!E18","v":0},null,null,null,{"$f":"'Form 2SFS'!M18","v":0}]
["Form 2ASFS","Notes","Premium","General Business Net Losses Incurred",{"$f":"'Form 2SFS'!E30","v":0},null,null,null,{"$f":"'Form 2SFS'!M30","v":0}]
["Form 2ASFS","Notes","Premium","Long-Term GPW",{"$f":"'Form 2SFS'!I43","v":0},null,null,null,{"$f":"'Form 2SFS'!M43","v":0}]
["Form 2ASFS","Notes","Premium","Long-Term Premiums Ceded",{"$f":"'Form 2SFS'!I45","v":0},null,null,null,{"$f":"'Form 2SFS'!M45","v":0}]
["Form 2ASFS","Notes","Premium","Long-Term NPW",{"$f":"'Form 2SFS'!I51","v":0},null,null,null,{"$f":"'Form 2SFS'!M51","v":0}]
["Form 2ASFS","Notes","Oper. Exp.","General and Administrative Expense",{"$f":"'Form 2SFS'!E93+'Form 2SFS'!I93","v":0},null,null,null,{"$f":"'Form 2SFS'!M93","v":0}]
["Form 2ASFS","Notes","Oper. Exp.","Personnel Costs",{"$f":"'Form 2SFS'!E94+'Form 2SFS'!I94","v":0},null,null,null,{"$f":"'Form 2SFS'!M94","v":0}]
["Form 2ASFS","Notes","Oper. Exp.","Other Expenses",{"$f":"'Form 2SFS'!E95+'Form 2SFS'!I95","v":0},null,null,null,{"$f":"'Form 2SFS'!M95","v":0}]
["Form 2ASFS","Notes","Oper. Exp.","Total Combined Operating Expense",{"$f":"'Form 2SFS'!E96+'Form 2SFS'!I96","v":0},null,null,null,{"$f":"'Form 2SFS'!M96","v":0}]
[]
[null,null,null,"Statement of Capital & Surplus"]
["Form 8ASFS","Stmt of C&S Uncon GEN / CON","8ASFS1ai","Capital Stock",{"$f":"'Form 8SFS'!G11","v":0},null,{"$f":"'Form 8SFS'!I11","v":0}]
["Form 8ASFS","Stmt of C&S Uncon GEN / CON",null,"Common Stock",null,null,null,null,{"$f":"'Form 8SFS'!O12","v":0},null,{"$f":"'Form 8SFS'!Q12","v":0}]
["Form 8ASFS","Stmt of C&S Uncon GEN / CON","8ASFS1aii","Preferred Shares",null,null,null,null,{"$f":"'Form 8SFS'!O17","v":0},null,{"$f":"'Form 8SFS'!Q17","v":0}]
["Form 8ASFS","Stmt of C&S Uncon GEN / CON","8ASFS1aiii","Treasury Shares",null,null,null,null,{"$f":"'Form 8SFS'!O25","v":0},null,{"$f":"'Form 8SFS'!Q25","v":0}]
["Form 8ASFS","Stmt of C&S Uncon GEN / CON","8ASFS1b","Contributed Surplus",{"$f":"'Form 8SFS'!G29","v":0},null,{"$f":"'Form 8SFS'!I29","v":0},null,{"$f":"'Form 8SFS'!O29","v":0},null,{"$f":"'Form 8SFS'!Q29","v":0}]
["Form 8ASFS","Stmt of C&S Uncon GEN / CON","8ASFS1ci","Other Fixed Capital - Hybrid Instruments",{"$f":"'Form 8SFS'!G32","v":0},null,{"$f":"'Form 8SFS'!I32","v":0},null,{"$f":"'Form 8SFS'!O32","v":0},null,{"$f":"'Form 8SFS'!Q32","v":0}]
["Form 8ASFS","Stmt of C&S Uncon GEN / CON","8ASFS1cii","Other Fixed Capital - Guarantees & Others",{"$f":"'Form 8SFS'!G33","v":0},null,{"$f":"'Form 8SFS'!I33","v":0},null,{"$f":"'Form 8SFS'!O33","v":0},null,{"$f":"'Form 8SFS'!Q33","v":0}]
["Form 8ASFS","Stmt of C&S Uncon GEN / CON","8ASFS2a","Statutory Surplus - Beginning of Year",{"$f":"'Form 8SFS'!G40","v":0},null,{"$f":"'Form 8SFS'!I40","v":0},null,{"$f":"'Form 8SFS'!O40","v":0},null,{"$f":"'Form 8SFS'!Q40","v":0}]
["Form 8ASFS","Stmt of C&S Uncon GEN / CON","8ASFS2c","Dividends",{"$f":"'Form 8SFS'!G44","v":0},null,{"$f":"'Form 8SFS'!I44","v":0},null,{"$f":"'Form 8SFS'!O44","v":0},null,{"$f":"'Form 8SFS'!Q44","v":0}]
["Form 8ASFS","Stmt of C&S Uncon GEN / CON","8ASFS2d","Unrealized Change in Investments",{"$f":"'Form 8SFS'!G46","v":0},null,{"$f":"'Form 8SFS'!I46","v":0},null,{"$f":"'Form 8SFS'!O46","v":0},null,{"$f":"'Form 8SFS'!Q46","v":0}]
["Form 8ASFS","Stmt of C&S Uncon GEN / CON","8ASFS2e","Change in Non-Admitted Assets",{"$f":"'Form 8SFS'!G48","v":0},null,{"$f":"'Form 8SFS'!I48","v":0},null,{"$f":"'Form 8SFS'!O48","v":0},null,{"$f":"'Form 8SFS'!Q48","v":0}]
["Form 8ASFS","Stmt of C&S Uncon GEN / CON","8ASFS2f","Change in Real Estate",{"$f":"'Form 8SFS'!G50","v":0},null,{"$f":"'Form 8SFS'!I50","v":0},null,{"$f":"'Form 8SFS'!O50","v":0},null,{"$f":"'Form 8SFS'!Q50","v":0}]
["Form 8ASFS","Stmt of C&S Uncon GEN / CON","8ASFS2g","Change in Other Statutory Capital",{"$f":"'Form 8SFS'!G52","v":0},null,{"$f":"'Form 8SFS'!I52","v":0},null,{"$f":"'Form 8SFS'!O52","v":0},null,{"$f":"'Form 8SFS'!Q52","v":0}]
["Form 8ASFS","Stmt of C&S Uncon GEN / CON","8ASFS3","Minority Interest",{"$f":"'Form 8SFS'!G56","v":0},null,{"$f":"'Form 8SFS'!I56","v":0},null,{"$f":"'Form 8SFS'!O56","v":0},null,{"$f":"'Form 8SFS'!Q56","v":0}]
[]
["Form 8ASFS","Stmt of C&S Uncon LT","8ASFS1a","Common Stock",{"$f":"'Form 8SFS'!K11","v":0},null,{"$f":"'Form 8SFS'!M11","v":0}]
["Form 8ASFS","Stmt of C&S Uncon LT","8ASFS1b","Contributed Surplus",{"$f":"'Form 8SFS'!K29","v":0},null,{"$f":"'Form 8SFS'!M29","v":0}]
["Form 8ASFS","Stmt of C&S Uncon LT","8ASFS1ci","Other Fixed Capital - Hybrid Instruments",{"$f":"'Form 8SFS'!K32","v":0},null,{"$f":"'Form 8SFS'!M32","v":0}]
["Form 8ASFS","Stmt of C&S Uncon LT","8ASFS1cii","Other Fixed Capital - Guarantees & Others",{"$f":"'Form 8SFS'!K33","v":0},null,{"$f":"'Form 8SFS'!M33","v":0}]
["Form 8ASFS","Stmt of C&S Uncon LT","8ASFS2a","Statutory Surplus - Beginning of Year",{"$f":"'Form 8SFS'!K40","v":0},null,{"$f":"'Form 8SFS'!M40","v":0}]
["Form 8ASFS","Stmt of C&S Uncon LT","8ASFS2c","Dividends",{"$f":"'Form 8SFS'!K44","v":0},null,{"$f":"'Form 8SFS'!M44","v":0}]
["Form 8ASFS","Stmt of C&S Uncon LT","8ASFS2d","Unrealized Change in Investments",{"$f":"'Form 8SFS'!K46","v":0},null,{"$f":"'Form 8SFS'!M46","v":0}]
["Form 8ASFS","Stmt of C&S Uncon LT","8ASFS2e","Change in Non-Admitted Assets",{"$f":"'Form 8SFS'!K48","v":0},null,{"$f":"'Form 8SFS'!M48","v":0}]
["Form 8ASFS","Stmt of C&S Uncon LT","8ASFS2f","Change in Real Estate",{"$f":"'Form 8SFS'!K50","v":0},null,{"$f":"'Form 8SFS'!M50","v":0}]
["Form 8ASFS","Stmt of C&S Uncon LT","8ASFS2g","Change in Other Statutory Capital",{"$f":"'Form 8SFS'!K52","v":0},null,{"$f":"'Form 8SFS'!M52","v":0}]
["Form 8ASFS","Stmt of C&S Uncon LT","8ASFS3","Minority Interest",{"$f":"'Form 8SFS'!K56","v":0},null,{"$f":"'Form 8SFS'!M56","v":0}]
[]
["Form 8ASFS","Notes","2g","Description 1",0]
["Form 8ASFS","Notes","2g","Description 2",0]
["Form 8ASFS","Notes","2g","Description 3",0]
["Form 8ASFS","Notes","2g","Description 4",0]
["Form 8ASFS","Notes","2g","IFRS 4 to 17 Adj",0,null,null,null,0]
["Form 8ASFS","Notes","2g","Other Adj 1",0,null,null,null,0]
["Form 8ASFS","Notes","2g","Other Adj 2",0,null,null,null,0]
["Form 8ASFS","Notes","2g","Other Adj 3",0,null,null,null,0]
["Form 8ASFS","Notes","2g","Other Adj 4",0,null,null,null,0]
[]
[null,null,null,"BSCR Schedules "]
["Sch II","Investments",null,"Corp. Bonds - BSCR Rate 0",0,null,0]
["Sch II","Investments",null,"Corp. Bonds - BSCR Rate 1",0,null,0]
["Sch II","Investments",null,"Corp. Bonds - BSCR Rate 2",0,null,0]
["Sch II","Investments",null,"Corp. Bonds - BSCR Rate 3",0,null,0]
["Sch II","Investments",null,"Corp. Bonds - BSCR Rate 4",0,null,0]
["Sch II","Investments",null,"Corp. Bonds - BSCR Rate 5",0,null,0]
["Sch II","Investments",null,"Corp. Bonds - BSCR Rate 6",0,null,0]
["Sch II","Investments",null,"Corp. Bonds - BSCR Rate 7",0,null,0]
["Sch II","Investments",null,"Corp. Bonds - BSCR Rate 8",0,null,0]
["Sch II","Investments",null,"Residential MBS - BSCR Rate 1",0,null,0]
["Sch II","Investments",null,"Residential MBS - BSCR Rate 2",0,null,0]
["Sch II","Investments",null,"Residential MBS - BSCR Rate 3",0,null,0]
["Sch II","Investments",null,"Residential MBS - BSCR Rate 4",0,null,0]
["Sch II","Investments",null,"Residential MBS - BSCR Rate 5",0,null,0]
["Sch II","Investments",null,"Residential MBS - BSCR Rate 6",0,null,0]
["Sch II","Investments",null,"Residential MBS - BSCR Rate 7",0,null,0]
["Sch II","Investments",null,"Residential MBS - BSCR Rate 8",0,null,0]
["Sch II","Investments",null,"Commercial MBS - BSCR Rate 1",0,null,0]
["Sch II","Investments",null,"Commercial MBS - BSCR Rate 2",0,null,0]
["Sch II","Investments",null,"Commercial MBS - BSCR Rate 3",0,null,0]
["Sch II","Investments",null,"Commercial MBS - BSCR Rate 4",0,null,0]
["Sch II","Investments",null,"Commercial MBS - BSCR Rate 5",0,null,0]
["Sch II","Investments",null,"Commercial MBS - BSCR Rate 6",0,null,0]
["Sch II","Investments",null,"Commercial MBS - BSCR Rate 7",0,null,0]
["Sch II","Investments",null,"Commercial MBS - BSCR Rate 8",0,null,0]
["Sch II","Investments",null,"Bonds Mutual Fund - BSCR Rate 0",0,null,0]
["Sch II","Investments",null,"Bonds Mutual Fund - BSCR Rate 1",0,null,0]
["Sch II","Investments",null,"Bonds Mutual Fund - BSCR Rate 2",0,null,0]
["Sch II","Investments",null,"Bonds Mutual Fund - BSCR Rate 3",0,null,0]
["Sch II","Investments",null,"Bonds Mutual Fund - BSCR Rate 4",0,null,0]
["Sch II","Investments",null,"Bonds Mutual Fund - BSCR Rate 5",0,null,0]
["Sch II","Investments",null,"Bonds Mutual Fund - BSCR Rate 6",0,null,0]
["Sch II","Investments",null,"Bonds Mutual Fund - BSCR Rate 7",0,null,0]
["Sch II","Investments",null,"Bonds Mutual Fund - BSCR Rate 8",0,null,0]
["Sch II","Investments",null,"Common Shares - Quoted",0,null,0]
["Sch II","Investments",null,"Common Shares - Unquoted",0,null,0]
["Sch II","Investments",null,"Preferred Shares - BSCR Rate 1",0,null,0]
["Sch II","Investments",null,"Preferred Shares - BSCR Rate 2",0,null,0]
["Sch II","Investments",null,"Preferred Shares - BSCR Rate 3",0,null,0]
["Sch II","Investments",null,"Preferred Shares - BSCR Rate 4",0,null,0]
["Sch II","Investments",null,"Preferred Shares - BSCR Rate 5",0,null,0]
["Sch II","Investments",null,"Preferred Shares - BSCR Rate 6",0,null,0]
["Sch II","Investments",null,"Preferred Shares - BSCR Rate 7",0,null,0]
["Sch II","Investments",null,"Preferred Shares - BSCR Rate 8",0,null,0]
["Sch II","Investments",null,"Equity Mutual Funds -  Quoted",0,null,0]
["Sch II","Investments",null,"Equity Mutual Funds -  Unquoted",0,null,0]
["Sch II","Investments",null,"Mortgage Loans - Insured",0,null,0]
["Sch II","Investments",null,"Mortgage Loans - Other Commercial",0,null,0]
["Sch II","Investments",null,"Mortgage Loans - Other Residential",0,null,0]
["Sch II","Investments",null,"Mortgage Loans - Not Good Stand.",0,null,0]
["Sch II","Investments",null,"NAIC Resid. MBS - Orig. Class 1",0]
["Sch II","Investments",null,"NAIC Resid. MBS - Orig. Class 2",0]
["Sch II","Investments",null,"NAIC Resid. MBS - Orig. Class 3",0]
["Sch II","Investments",null,"NAIC Resid. MBS - Orig. Class 4",0]
["Sch II","Investments",null,"NAIC Resid. MBS - Orig. Class 5",0]
["Sch II","Investments",null,"NAIC Resid. MBS - Orig. Class 6",0]
["Sch II","Investments",null,"NAIC Resid. MBS - Orig. Total",0]
["Sch II","Investments",null,"NAIC Resid. MBS - Rev. Class 1",0]
["Sch II","Investments",null,"NAIC Resid. MBS - Rev. Class 2",0]
["Sch II","Investments",null,"NAIC Resid. MBS - Rev. Class 3",0]
["Sch II","Investments",null,"NAIC Resid. MBS - Rev. Class 4",0]
["Sch II","Investments",null,"NAIC Resid. MBS - Rev. Class 5",0]
["Sch II","Investments",null,"NAIC Resid. MBS - Rev. Class 6",0]
["Sch II","Investments",null,"NAIC Resid. MBS - Rev. Total",0]
["Sch II","Investments",null,"NAIC Comm. MBS - Orig. Class 1",0]
["Sch II","Investments",null,"NAIC Comm. MBS - Orig. Class 2",0]
["Sch II","Investments",null,"NAIC Comm. MBS - Orig. Class 3",0]
["Sch II","Investments",null,"NAIC Comm. MBS - Orig. Class 4",0]
["Sch II","Investments",null,"NAIC Comm. MBS - Orig. Class 5",0]
["Sch II","Investments",null,"NAIC Comm. MBS - Orig. Class 6",0]
["Sch II","Investments",null,"NAIC Comm. MBS - Orig. Total",0]
["Sch II","Investments",null,"NAIC Comm. MBS - Rev. Class 1",0]
["Sch II","Investments",null,"NAIC Comm. MBS - Rev. Class 2",0]
["Sch II","Investments",null,"NAIC Comm. MBS - Rev. Class 3",0]
["Sch II","Investments",null,"NAIC Comm. MBS - Rev. Class 4",0]
["Sch II","Investments",null,"NAIC Comm. MBS - Rev. Class 5",0]
["Sch II","Investments",null,"NAIC Comm. MBS - Rev. Class 6",0]
["Sch II","Investments",null,"NAIC Comm. MBS - Rev. Total",0]
["Sch II","Investments",null,"NAIC Rating Corp & Sov. Bond - Class 1",0]
["Sch II","Investments",null,"NAIC Rating Corp & Sov. Bond - Class 2",0]
["Sch II","Investments",null,"NAIC Rating Corp & Sov. Bond - Class 3",0]
["Sch II","Investments",null,"NAIC Rating Corp & Sov. Bond - Class 4",0]
["Sch II","Investments",null,"NAIC Rating Corp & Sov. Bond - Class 5",0]
["Sch II","Investments",null,"NAIC Rating Corp & Sov. Bond - Class 6",0]
["Sch II","Investments",null,"NAIC Rating Corp & Sov. Bond - Total",0]
["Sch II","Investments",null,"NAIC Rating Resid. MBS - Class 1",0]
["Sch II","Investments",null,"NAIC Rating Resid. MBS - Class 2",0]
["Sch II","Investments",null,"NAIC Rating Resid. MBS - Class 3",0]
["Sch II","Investments",null,"NAIC Rating Resid. MBS - Class 4",0]
["Sch II","Investments",null,"NAIC Rating Resid. MBS - Class 5",0]
["Sch II","Investments",null,"NAIC Rating Resid. MBS - Class 6",0]
["Sch II","Investments",null,"NAIC Rating Resid. MBS - Total",0]
["Sch II","Investments",null,"NAIC Rating Comm. MBS - Class 1",0]
["Sch II","Investments",null,"NAIC Rating Comm. MBS - Class 2",0]
["Sch II","Investments",null,"NAIC Rating Comm. MBS - Class 3",0]
["Sch II","Investments",null,"NAIC Rating Comm. MBS - Class 4",0]
["Sch II","Investments",null,"NAIC Rating Comm. MBS - Class 5",0]
["Sch II","Investments",null,"NAIC Rating Comm. MBS - Class 6",0]
["Sch II","Investments",null,"NAIC Rating Comm. MBS - Total",0]
["Sch II","Investments",null,"NAIC Rating Bond Mutual - Class 1",0]
["Sch II","Investments",null,"NAIC Rating Bond Mutual - Class 2",0]
["Sch II","Investments",null,"NAIC Rating Bond Mutual - Class 3",0]
["Sch II","Investments",null,"NAIC Rating Bond Mutual - Class 4",0]
["Sch II","Investments",null,"NAIC Rating Bond Mutual - Class 5",0]
["Sch II","Investments",null,"NAIC Rating Bond Mutual - Class 6",0]
["Sch II","Investments",null,"NAIC Rating Bond Mutual - Total",0]
["Sch II","Investments",null,"NAIC Rating Mort. Loan - Class 1",0]
["Sch II","Investments",null,"NAIC Rating Mort. Loan - Class 2",0]
["Sch II","Investments",null,"NAIC Rating Mort. Loan - Class 3",0]
["Sch II","Investments",null,"NAIC Rating Mort. Loan - Class 4",0]
["Sch II","Investments",null,"NAIC Rating Mort. Loan - Class 5",0]
["Sch II","Investments",null,"NAIC Rating Mort. Loan - Class 6",0]
["Sch II","Investments",null,"NAIC Rating Mort. Loan - Total",0]
["Sch II","Investments",null,"NAIC Rating Pref. Stock - Class 1",0]
["Sch II","Investments",null,"NAIC Rating Pref. Stock - Class 2",0]
["Sch II","Investments",null,"NAIC Rating Pref. Stock - Class 3",0]
["Sch II","Investments",null,"NAIC Rating Pref. Stock - Class 4",0]
["Sch II","Investments",null,"NAIC Rating Pref. Stock - Class 5",0]
["Sch II","Investments",null,"NAIC Rating Pref. Stock - Class 6",0]
["Sch II","Investments",null,"NAIC Rating Pref. Stock - Total",0]
["Sch II","Investments",null,"NAIC Rating Other Assets - Class 1",0]
["Sch II","Investments",null,"NAIC Rating Other Assets - Class 2",0]
["Sch II","Investments",null,"NAIC Rating Other Assets - Class 3",0]
["Sch II","Investments",null,"NAIC Rating Other Assets - Class 4",0]
["Sch II","Investments",null,"NAIC Rating Other Assets - Class 5",0]
["Sch II","Investments",null,"NAIC Rating Other Assets - Class 6",0]
["Sch II","Investments",null,"NAIC Rating Other Assets - Total",0]
[]
["Sch IIA","Funds Held",null,"Corp. Bonds - BSCR Rate 0",0,null,0]
["Sch IIA","Funds Held",null,"Corp. Bonds - BSCR Rate 1",0,null,0]
["Sch IIA","Funds Held",null,"Corp. Bonds - BSCR Rate 2",0,null,0]
["Sch IIA","Funds Held",null,"Corp. Bonds - BSCR Rate 3",0,null,0]
["Sch IIA","Funds Held",null,"Corp. Bonds - BSCR Rate 4",0,null,0]
["Sch IIA","Funds Held",null,"Corp. Bonds - BSCR Rate 5",0,null,0]
["Sch IIA","Funds Held",null,"Corp. Bonds - BSCR Rate 6",0,null,0]
["Sch IIA","Funds Held",null,"Corp. Bonds - BSCR Rate 7",0,null,0]
["Sch IIA","Funds Held",null,"Corp. Bonds - BSCR Rate 8",0,null,0]
["Sch IIA","Funds Held",null,"Residential MBS - BSCR Rate 1",0,null,0]
["Sch IIA","Funds Held",null,"Residential MBS - BSCR Rate 2",0,null,0]
["Sch IIA","Funds Held",null,"Residential MBS - BSCR Rate 3",0,null,0]
["Sch IIA","Funds Held",null,"Residential MBS - BSCR Rate 4",0,null,0]
["Sch IIA","Funds Held",null,"Residential MBS - BSCR Rate 5",0,null,0]
["Sch IIA","Funds Held",null,"Residential MBS - BSCR Rate 6",0,null,0]
["Sch IIA","Funds Held",null,"Residential MBS - BSCR Rate 7",0,null,0]
["Sch IIA","Funds Held",null,"Residential MBS - BSCR Rate 8",0,null,0]
["Sch IIA","Funds Held",null,"Commercial MBS - BSCR Rate 1",0,null,0]
["Sch IIA","Funds Held",null,"Commercial MBS - BSCR Rate 2",0,null,0]
["Sch IIA","Funds Held",null,"Commercial MBS - BSCR Rate 3",0,null,0]
["Sch IIA","Funds Held",null,"Commercial MBS - BSCR Rate 4",0,null,0]
["Sch IIA","Funds Held",null,"Commercial MBS - BSCR Rate 5",0,null,0]
["Sch IIA","Funds Held",null,"Commercial MBS - BSCR Rate 6",0,null,0]
["Sch IIA","Funds Held",null,"Commercial MBS - BSCR Rate 7",0,null,0]
["Sch IIA","Funds Held",null,"Commercial MBS - BSCR Rate 8",0,null,0]
["Sch IIA","Funds Held",null,"Bonds Mutual Fund - BSCR Rate 0",0,null,0]
["Sch IIA","Funds Held",null,"Bonds Mutual Fund - BSCR Rate 1",0,null,0]
["Sch IIA","Funds Held",null,"Bonds Mutual Fund - BSCR Rate 2",0,null,0]
["Sch IIA","Funds Held",null,"Bonds Mutual Fund - BSCR Rate 3",0,null,0]
["Sch IIA","Funds Held",null,"Bonds Mutual Fund - BSCR Rate 4",0,null,0]
["Sch IIA","Funds Held",null,"Bonds Mutual Fund - BSCR Rate 5",0,null,0]
["Sch IIA","Funds Held",null,"Bonds Mutual Fund - BSCR Rate 6",0,null,0]
["Sch IIA","Funds Held",null,"Bonds Mutual Fund - BSCR Rate 7",0,null,0]
["Sch IIA","Funds Held",null,"Bonds Mutual Fund - BSCR Rate 8",0,null,0]
["Sch IIA","Funds Held",null,"Common Shares - Quoted",0,null,0]
["Sch IIA","Funds Held",null,"Common Shares - Unquoted",0,null,0]
["Sch IIA","Funds Held",null,"Preferred Shares - BSCR Rate 1",0,null,0]
["Sch IIA","Funds Held",null,"Preferred Shares - BSCR Rate 2",0,null,0]
["Sch IIA","Funds Held",null,"Preferred Shares - BSCR Rate 3",0,null,0]
["Sch IIA","Funds Held",null,"Preferred Shares - BSCR Rate 4",0,null,0]
["Sch IIA","Funds Held",null,"Preferred Shares - BSCR Rate 5",0,null,0]
["Sch IIA","Funds Held",null,"Preferred Shares - BSCR Rate 6",0,null,0]
["Sch IIA","Funds Held",null,"Preferred Shares - BSCR Rate 7",0,null,0]
["Sch IIA","Funds Held",null,"Preferred Shares - BSCR Rate 8",0,null,0]
["Sch IIA","Funds Held",null,"Equity Mutual Funds -  Quoted",0,null,0]
["Sch IIA","Funds Held",null,"Equity Mutual Funds -  Unquoted",0,null,0]
["Sch IIA","Funds Held",null,"Other Investments -  Quoted",0,null,0]
["Sch IIA","Funds Held",null,"Other Investments -  Unquoted",0,null,0]
["Sch IIA","Funds Held",null,"Mortgage Loans - Insured",0,null,0]
["Sch IIA","Funds Held",null,"Mortgage Loans - Other Commercial",0,null,0]
["Sch IIA","Funds Held",null,"Mortgage Loans - Other Residential",0,null,0]
["Sch IIA","Funds Held",null,"Mortgage Loans - Not Good Stand.",0,null,0]
["Sch IIA","Funds Held",null,"Cash and Cash Equivalents",0,null,0]
["Sch IIA","Funds Held",null,"NAIC Resid. MBS - Orig. Class 1",0]
["Sch IIA","Funds Held",null,"NAIC Resid. MBS - Orig. Class 2",0]
["Sch IIA","Funds Held",null,"NAIC Resid. MBS - Orig. Class 3",0]
["Sch IIA","Funds Held",null,"NAIC Resid. MBS - Orig. Class 4",0]
["Sch IIA","Funds Held",null,"NAIC Resid. MBS - Orig. Class 5",0]
["Sch IIA","Funds Held",null,"NAIC Resid. MBS - Orig. Class 6",0]
["Sch IIA","Funds Held",null,"NAIC Resid. MBS - Orig. Total",0]
["Sch IIA","Funds Held",null,"NAIC Resid. MBS - Rev. Class 1",0]
["Sch IIA","Funds Held",null,"NAIC Resid. MBS - Rev. Class 2",0]
["Sch IIA","Funds Held",null,"NAIC Resid. MBS - Rev. Class 3",0]
["Sch IIA","Funds Held",null,"NAIC Resid. MBS - Rev. Class 4",0]
["Sch IIA","Funds Held",null,"NAIC Resid. MBS - Rev. Class 5",0]
["Sch IIA","Funds Held",null,"NAIC Resid. MBS - Rev. Class 6",0]
["Sch IIA","Funds Held",null,"NAIC Resid. MBS - Rev. Total",0]
["Sch IIA","Funds Held",null,"NAIC Comm. MBS - Orig. Class 1",0]
["Sch IIA","Funds Held",null,"NAIC Comm. MBS - Orig. Class 2",0]
["Sch IIA","Funds Held",null,"NAIC Comm. MBS - Orig. Class 3",0]
["Sch IIA","Funds Held",null,"NAIC Comm. MBS - Orig. Class 4",0]
["Sch IIA","Funds Held",null,"NAIC Comm. MBS - Orig. Class 5",0]
["Sch IIA","Funds Held",null,"NAIC Comm. MBS - Orig. Class 6",0]
["Sch IIA","Funds Held",null,"NAIC Comm. MBS - Orig. Total",0]
["Sch IIA","Funds Held",null,"NAIC Comm. MBS - Rev. Class 1",0]
["Sch IIA","Funds Held",null,"NAIC Comm. MBS - Rev. Class 2",0]
["Sch IIA","Funds Held",null,"NAIC Comm. MBS - Rev. Class 3",0]
["Sch IIA","Funds Held",null,"NAIC Comm. MBS - Rev. Class 4",0]
["Sch IIA","Funds Held",null,"NAIC Comm. MBS - Rev. Class 5",0]
["Sch IIA","Funds Held",null,"NAIC Comm. MBS - Rev. Class 6",0]
["Sch IIA","Funds Held",null,"NAIC Comm. MBS - Rev. Total",0]
["Sch IIA","Funds Held",null,"NAIC Rating Corp & Sov. Bond - Class 1",0]
["Sch IIA","Funds Held",null,"NAIC Rating Corp & Sov. Bond - Class 2",0]
["Sch IIA","Funds Held",null,"NAIC Rating Corp & Sov. Bond - Class 3",0]
["Sch IIA","Funds Held",null,"NAIC Rating Corp & Sov. Bond - Class 4",0]
["Sch IIA","Funds Held",null,"NAIC Rating Corp & Sov. Bond - Class 5",0]
["Sch IIA","Funds Held",null,"NAIC Rating Corp & Sov. Bond - Class 6",0]
["Sch IIA","Funds Held",null,"NAIC Rating Corp & Sov. Bond - Total",0]
["Sch IIA","Funds Held",null,"NAIC Rating Resid. MBS - Class 1",0]
["Sch IIA","Funds Held",null,"NAIC Rating Resid. MBS - Class 2",0]
["Sch IIA","Funds Held",null,"NAIC Rating Resid. MBS - Class 3",0]
["Sch IIA","Funds Held",null,"NAIC Rating Resid. MBS - Class 4",0]
["Sch IIA","Funds Held",null,"NAIC Rating Resid. MBS - Class 5",0]
["Sch IIA","Funds Held",null,"NAIC Rating Resid. MBS - Class 6",0]
["Sch IIA","Funds Held",null,"NAIC Rating Resid. MBS - Total",0]
["Sch IIA","Funds Held",null,"NAIC Rating Comm. MBS - Class 1",0]
["Sch IIA","Funds Held",null,"NAIC Rating Comm. MBS - Class 2",0]
["Sch IIA","Funds Held",null,"NAIC Rating Comm. MBS - Class 3",0]
["Sch IIA","Funds Held",null,"NAIC Rating Comm. MBS - Class 4",0]
["Sch IIA","Funds Held",null,"NAIC Rating Comm. MBS - Class 5",0]
["Sch IIA","Funds Held",null,"NAIC Rating Comm. MBS - Class 6",0]
["Sch IIA","Funds Held",null,"NAIC Rating Comm. MBS - Total",0]
["Sch IIA","Funds Held",null,"NAIC Rating Bond Mutual - Class 1",0]
["Sch IIA","Funds Held",null,"NAIC Rating Bond Mutual - Class 2",0]
["Sch IIA","Funds Held",null,"NAIC Rating Bond Mutual - Class 3",0]
["Sch IIA","Funds Held",null,"NAIC Rating Bond Mutual - Class 4",0]
["Sch IIA","Funds Held",null,"NAIC Rating Bond Mutual - Class 5",0]
["Sch IIA","Funds Held",null,"NAIC Rating Bond Mutual - Class 6",0]
["Sch IIA","Funds Held",null,"NAIC Rating Bond Mutual - Total",0]
["Sch IIA","Funds Held",null,"NAIC Rating Mort. Loan - Class 1",0]
["Sch IIA","Funds Held",null,"NAIC Rating Mort. Loan - Class 2",0]
["Sch IIA","Funds Held",null,"NAIC Rating Mort. Loan - Class 3",0]
["Sch IIA","Funds Held",null,"NAIC Rating Mort. Loan - Class 4",0]
["Sch IIA","Funds Held",null,"NAIC Rating Mort. Loan - Class 5",0]
["Sch IIA","Funds Held",null,"NAIC Rating Mort. Loan - Class 6",0]
["Sch IIA","Funds Held",null,"NAIC Rating Mort. Loan - Total",0]
["Sch IIA","Funds Held",null,"NAIC Rating Pref. Stock - Class 1",0]
["Sch IIA","Funds Held",null,"NAIC Rating Pref. Stock - Class 2",0]
["Sch IIA","Funds Held",null,"NAIC Rating Pref. Stock - Class 3",0]
["Sch IIA","Funds Held",null,"NAIC Rating Pref. Stock - Class 4",0]
["Sch IIA","Funds Held",null,"NAIC Rating Pref. Stock - Class 5",0]
["Sch IIA","Funds Held",null,"NAIC Rating Pref. Stock - Class 6",0]
["Sch IIA","Funds Held",null,"NAIC Rating Pref. Stock - Total",0]
["Sch IIA","Funds Held",null,"NAIC Rating Other Assets - Class 1",0]
["Sch IIA","Funds Held",null,"NAIC Rating Other Assets - Class 2",0]
["Sch IIA","Funds Held",null,"NAIC Rating Other Assets - Class 3",0]
["Sch IIA","Funds Held",null,"NAIC Rating Other Assets - Class 4",0]
["Sch IIA","Funds Held",null,"NAIC Rating Other Assets - Class 5",0]
["Sch IIA","Funds Held",null,"NAIC Rating Other Assets - Class 6",0]
["Sch IIA","Funds Held",null,"NAIC Rating Other Assets - Total",0]
[]
["Sch IIB","Investments",null,"Corp. Bonds - BSCR Rate 0",null,null,null,null,null,null,null,null,0,null,0]
["Sch IIB","Investments",null,"Corp. Bonds - BSCR Rate 1",null,null,null,null,null,null,null,null,0,null,0]
["Sch IIB","Investments",null,"Corp. Bonds - BSCR Rate 2",null,null,null,null,null,null,null,null,0,null,0]
["Sch IIB","Investments",null,"Corp. Bonds - BSCR Rate 3",null,null,null,null,null,null,null,null,0,null,0]
["Sch IIB","Investments",null,"Corp. Bonds - BSCR Rate 4",null,null,null,null,null,null,null,null,0,null,0]
["Sch IIB","Investments",null,"Corp. Bonds - BSCR Rate 5",null,null,null,null,null,null,null,null,0,null,0]
["Sch IIB","Investments",null,"Corp. Bonds - BSCR Rate 6",null,null,null,null,null,null,null,null,0,null,0]
["Sch IIB","Investments",null,"Corp. Bonds - BSCR Rate 7",null,null,null,null,null,null,null,null,0,null,0]
["Sch IIB","Investments",null,"Corp. Bonds - BSCR Rate 8",null,null,null,null,null,null,null,null,0,null,0]
["Sch IIB","Investments",null,"Residential MBS - BSCR Rate 1",null,null,null,null,null,null,null,null,0,null,0]
["Sch IIB","Investments",null,"Residential MBS - BSCR Rate 2",null,null,null,null,null,null,null,null,0,null,0]
["Sch IIB","Investments",null,"Residential MBS - BSCR Rate 3",null,null,null,null,null,null,null,null,0,null,0]
["Sch IIB","Investments",null,"Residential MBS - BSCR Rate 4",null,null,null,null,null,null,null,null,0,null,0]
["Sch IIB","Investments",null,"Residential MBS - BSCR Rate 5",null,null,null,null,null,null,null,null,0,null,0]
["Sch IIB","Investments",null,"Residential MBS - BSCR Rate 6",null,null,null,null,null,null,null,null,0,null,0]
["Sch IIB","Investments",null,"Residential MBS - BSCR Rate 7",null,null,null,null,null,null,null,null,0,null,0]
["Sch IIB","Investments",null,"Residential MBS - BSCR Rate 8",null,null,null,null,null,null,null,null,0,null,0]
["Sch IIB","Investments",null,"Commercial MBS - BSCR Rate 1",null,null,null,null,null,null,null,null,0,null,0]
["Sch IIB","Investments",null,"Commercial MBS - BSCR Rate 2",null,null,null,null,null,null,null,null,0,null,0]
["Sch IIB","Investments",null,"Commercial MBS - BSCR Rate 3",null,null,null,null,null,null,null,null,0,null,0]
["Sch IIB","Investments",null,"Commercial MBS - BSCR Rate 4",null,null,null,null,null,null,null,null,0,null,0]
["Sch IIB","Investments",null,"Commercial MBS - BSCR Rate 5",null,null,null,null,null,null,null,null,0,null,0]
["Sch IIB","Investments",null,"Commercial MBS - BSCR Rate 6",null,null,null,null,null,null,null,null,0,null,0]
["Sch IIB","Investments",null,"Commercial MBS - BSCR Rate 7",null,null,null,null,null,null,null,null,0,null,0]
["Sch IIB","Investments",null,"Commercial MBS - BSCR Rate 8",null,null,null,null,null,null,null,null,0,null,0]
["Sch IIB","Investments",null,"Bonds Mutual Fund - BSCR Rate 0",null,null,null,null,null,null,null,null,0,null,0]
["Sch IIB","Investments",null,"Bonds Mutual Fund - BSCR Rate 1",null,null,null,null,null,null,null,null,0,null,0]
["Sch IIB","Investments",null,"Bonds Mutual Fund - BSCR Rate 2",null,null,null,null,null,null,null,null,0,null,0]
["Sch IIB","Investments",null,"Bonds Mutual Fund - BSCR Rate 3",null,null,null,null,null,null,null,null,0,null,0]
["Sch IIB","Investments",null,"Bonds Mutual Fund - BSCR Rate 4",null,null,null,null,null,null,null,null,0,null,0]
["Sch IIB","Investments",null,"Bonds Mutual Fund - BSCR Rate 5",null,null,null,null,null,null,null,null,0,null,0]
["Sch IIB","Investments",null,"Bonds Mutual Fund - BSCR Rate 6",null,null,null,null,null,null,null,null,0,null,0]
["Sch IIB","Investments",null,"Bonds Mutual Fund - BSCR Rate 7",null,null,null,null,null,null,null,null,0,null,0]
["Sch IIB","Investments",null,"Bonds Mutual Fund - BSCR Rate 8",null,null,null,null,null,null,null,null,0,null,0]
["Sch IIB","Investments",null,"Mortgage Loans - Insured",null,null,null,null,null,null,null,null,0,null,0]
["Sch IIB","Investments",null,"Mortgage Loans - Other Commercial",null,null,null,null,null,null,null,null,0,null,0]
["Sch IIB","Investments",null,"Mortgage Loans - Other Residential",null,null,null,null,null,null,null,null,0,null,0]
["Sch IIB","Investments",null,"Mortgage Loans - Not Good Stand.",null,null,null,null,null,null,null,null,0,null,0]
["Sch IIB","Investments",null,"Long Positions - Before - Strategic Holdings - Listed",null,null,null,null,null,null,null,null,0]
["Sch IIB","Investments",null,"Long Positions - Before - Duration Based",null,null,null,null,null,null,null,null,0]
["Sch IIB","Investments",null,"Long Positions - Before - Listed Equity Securities in Developed Markets",null,null,null,null,null,null,null,null,0]
["Sch IIB","Investments",null,"Long Positions - Before - Preferred Stocks, BSCR Rating 1",null,null,null,null,null,null,null,null,0]
["Sch IIB","Investments",null,"Long Positions - Before - Preferred Stocks, BSCR Rating 2",null,null,null,null,null,null,null,null,0]
["Sch IIB","Investments",null,"Long Positions - Before - Preferred Stocks, BSCR Rating 3",null,null,null,null,null,null,null,null,0]
["Sch IIB","Investments",null,"Long Positions - Before - Preferred Stocks, BSCR Rating 4",null,null,null,null,null,null,null,null,0]
["Sch IIB","Investments",null,"Long Positions - Before - Preferred Stocks, BSCR Rating 5",null,null,null,null,null,null,null,null,0]
["Sch IIB","Investments",null,"Long Positions - Before - Preferred Stocks, BSCR Rating 6",null,null,null,null,null,null,null,null,0]
["Sch IIB","Investments",null,"Long Positions - Before - Preferred Stocks, BSCR Rating 7",null,null,null,null,null,null,null,null,0]
["Sch IIB","Investments",null,"Long Positions - Before - Preferred Stocks, BSCR Rating 8",null,null,null,null,null,null,null,null,0]
["Sch IIB","Investments",null,"Long Positions - Before - Equity Derivatives on Type 1 Equities",null,null,null,null,null,null,null,null,0]
["Sch IIB","Investments",null,"Long Positions - Before - Strategic Holdings - Unlisted",null,null,null,null,null,null,null,null,0]
["Sch IIB","Investments",null,"Long Positions - Before - Other Equities",null,null,null,null,null,null,null,null,0]
["Sch IIB","Investments",null,"Long Positions - Before - Letters of Credit",null,null,null,null,null,null,null,null,0]
["Sch IIB","Investments",null,"Long Positions - Before - Intangible assets",null,null,null,null,null,null,null,null,0]
["Sch IIB","Investments",null,"Long Positions - Before - Pension Benefit Surplus",null,null,null,null,null,null,null,null,0]
["Sch IIB","Investments",null,"Long Positions - Before - Equity Derivatives on Type 2 Equities",null,null,null,null,null,null,null,null,0]
["Sch IIB","Investments",null,"Long Positions - Before - Infrastructure",null,null,null,null,null,null,null,null,0]
["Sch IIB","Investments",null,"Long Positions - Before - Derivatives on Infrastructure",null,null,null,null,null,null,null,null,0]
["Sch IIB","Investments",null,"Long Positions - Before - Equity Real Estate 1",null,null,null,null,null,null,null,null,0]
["Sch IIB","Investments",null,"Long Positions - Before - Equity Real Estate 2",null,null,null,null,null,null,null,null,0]
["Sch IIB","Investments",null,"Long Positions - After - Strategic Holdings - Listed",null,null,null,null,null,null,null,null,0]
["Sch IIB","Investments",null,"Long Positions - After - Duration Based",null,null,null,null,null,null,null,null,0]
["Sch IIB","Investments",null,"Long Positions - After - Listed Equity Securities in Developed Markets",null,null,null,null,null,null,null,null,0]
["Sch IIB","Investments",null,"Long Positions - After - Preferred Stocks, BSCR Rating 1",null,null,null,null,null,null,null,null,0]
["Sch IIB","Investments",null,"Long Positions - After - Preferred Stocks, BSCR Rating 2",null,null,null,null,null,null,null,null,0]
["Sch IIB","Investments",null,"Long Positions - After - Preferred Stocks, BSCR Rating 3",null,null,null,null,null,null,null,null,0]
["Sch IIB","Investments",null,"Long Positions - After - Preferred Stocks, BSCR Rating 4",null,null,null,null,null,null,null,null,0]
["Sch IIB","Investments",null,"Long Positions - After - Preferred Stocks, BSCR Rating 5",null,null,null,null,null,null,null,null,0]
["Sch IIB","Investments",null,"Long Positions - After - Preferred Stocks, BSCR Rating 6",null,null,null,null,null,null,null,null,0]
["Sch IIB","Investments",null,"Long Positions - After - Preferred Stocks, BSCR Rating 7",null,null,null,null,null,null,null,null,0]
["Sch IIB","Investments",null,"Long Positions - After - Preferred Stocks, BSCR Rating 8",null,null,null,null,null,null,null,null,0]
["Sch IIB","Investments",null,"Long Positions - After - Equity Derivatives on Type 1 Equities",null,null,null,null,null,null,null,null,0]
["Sch IIB","Investments",null,"Long Positions - After - Strategic Holdings - Unlisted",null,null,null,null,null,null,null,null,0]
["Sch IIB","Investments",null,"Long Positions - After - Other Equities",null,null,null,null,null,null,null,null,0]
["Sch IIB","Investments",null,"Long Positions - After - Letters of Credit",null,null,null,null,null,null,null,null,0]
["Sch IIB","Investments",null,"Long Positions - After - Intangible assets",null,null,null,null,null,null,null,null,0]
["Sch IIB","Investments",null,"Long Positions - After - Pension Benefit Surplus",null,null,null,null,null,null,null,null,0]
["Sch IIB","Investments",null,"Long Positions - After - Equity Derivatives on Type 2 Equities",null,null,null,null,null,null,null,null,0]
["Sch IIB","Investments",null,"Long Positions - After - Infrastructure",null,null,null,null,null,null,null,null,0]
["Sch IIB","Investments",null,"Long Positions - After - Derivatives on Infrastructure",null,null,null,null,null,null,null,null,0]
["Sch IIB","Investments",null,"Long Positions - After - Equity Real Estate 1",null,null,null,null,null,null,null,null,0]
["Sch IIB","Investments",null,"Long Positions - After - Equity Real Estate 2",null,null,null,null,null,null,null,null,0]
["Sch IIB","Investments",null,"Short - Before - Qualified Assets - Strategic Holdings - Listed",null,null,null,null,null,null,null,null,0]
["Sch IIB","Investments",null,"Short - Before - Qualified Assets - Duration Based",null,null,null,null,null,null,null,null,0]
["Sch IIB","Investments",null,"Short - Before - Qualified Assets - Listed Equity Securities in Developed Markets",null,null,null,null,null,null,null,null,0]
["Sch IIB","Investments",null,"Short - Before - Qualified Assets - Preferred Stocks, BSCR Rating 1",null,null,null,null,null,null,null,null,0]
["Sch IIB","Investments",null,"Short - Before - Qualified Assets - Preferred Stocks, BSCR Rating 2",null,null,null,null,null,null,null,null,0]
["Sch IIB","Investments",null,"Short - Before - Qualified Assets - Preferred Stocks, BSCR Rating 3",null,null,null,null,null,null,null,null,0]
["Sch IIB","Investments",null,"Short - Before - Qualified Assets - Preferred Stocks, BSCR Rating 4",null,null,null,null,null,null,null,null,0]
["Sch IIB","Investments",null,"Short - Before - Qualified Assets - Preferred Stocks, BSCR Rating 5",null,null,null,null,null,null,null,null,0]
["Sch IIB","Investments",null,"Short - Before - Qualified Assets - Preferred Stocks, BSCR Rating 6",null,null,null,null,null,null,null,null,0]
["Sch IIB","Investments",null,"Short - Before - Qualified Assets - Preferred Stocks, BSCR Rating 7",null,null,null,null,null,null,null,null,0]
["Sch IIB","Investments",null,"Short - Before - Qualified Assets - Preferred Stocks, BSCR Rating 8",null,null,null,null,null,null,null,null,0]
["Sch IIB","Investments",null,"Short - Before - Qualified Assets - Equity Derivatives on Type 1 Equities",null,null,null,null,null,null,null,null,0]
["Sch IIB","Investments",null,"Short - Before - Qualified Assets - Strategic Holdings - Unlisted",null,null,null,null,null,null,null,null,0]
["Sch IIB","Investments",null,"Short - Before - Qualified Assets - Other Equities",null,null,null,null,null,null,null,null,0]
["Sch IIB","Investments",null,"Short - Before - Qualified Assets - Letters of Credit",null,null,null,null,null,null,null,null,0]
["Sch IIB","Investments",null,"Short - Before - Qualified Assets - Intangible assets",null,null,null,null,null,null,null,null,0]
["Sch IIB","Investments",null,"Short - Before - Qualified Assets - Pension Benefit Surplus",null,null,null,null,null,null,null,null,0]
["Sch IIB","Investments",null,"Short - Before - Qualified Assets - Equity Derivatives on Type 2 Equities",null,null,null,null,null,null,null,null,0]
["Sch IIB","Investments",null,"Short - Before - Qualified Assets - Infrastructure",null,null,null,null,null,null,null,null,0]
["Sch IIB","Investments",null,"Short - Before - Qualified Assets - Derivatives on Infrastructure",null,null,null,null,null,null,null,null,0]
["Sch IIB","Investments",null,"Short - Before - Qualified Assets - Equity Real Estate 1",null,null,null,null,null,null,null,null,0]
["Sch IIB","Investments",null,"Short - Before - Qualified Assets - Equity Real Estate 2",null,null,null,null,null,null,null,null,0]
["Sch IIB","Investments",null,"Short - After - Qualified Assets - Strategic Holdings - Listed",null,null,null,null,null,null,null,null,0]
["Sch IIB","Investments",null,"Short - After - Qualified Assets - Duration Based",null,null,null,null,null,null,null,null,0]
["Sch IIB","Investments",null,"Short - After - Qualified Assets - Listed Equity Securities in Developed Markets",null,null,null,null,null,null,null,null,0]
["Sch IIB","Investments",null,"Short - After - Qualified Assets - Preferred Stocks, BSCR Rating 1",null,null,null,null,null,null,null,null,0]
["Sch IIB","Investments",null,"Short - After - Qualified Assets - Preferred Stocks, BSCR Rating 2",null,null,null,null,null,null,null,null,0]
["Sch IIB","Investments",null,"Short - After - Qualified Assets - Preferred Stocks, BSCR Rating 3",null,null,null,null,null,null,null,null,0]
["Sch IIB","Investments",null,"Short - After - Qualified Assets - Preferred Stocks, BSCR Rating 4",null,null,null,null,null,null,null,null,0]
["Sch IIB","Investments",null,"Short - After - Qualified Assets - Preferred Stocks, BSCR Rating 5",null,null,null,null,null,null,null,null,0]
["Sch IIB","Investments",null,"Short - After - Qualified Assets - Preferred Stocks, BSCR Rating 6",null,null,null,null,null,null,null,null,0]
["Sch IIB","Investments",null,"Short - After - Qualified Assets - Preferred Stocks, BSCR Rating 7",null,null,null,null,null,null,null,null,0]
["Sch IIB","Investments",null,"Short - After - Qualified Assets - Preferred Stocks, BSCR Rating 8",null,null,null,null,null,null,null,null,0]
["Sch IIB","Investments",null,"Short - After - Qualified Assets - Equity Derivatives on Type 1 Equities",null,null,null,null,null,null,null,null,0]
["Sch IIB","Investments",null,"Short - After - Qualified Assets - Strategic Holdings - Unlisted",null,null,null,null,null,null,null,null,0]
["Sch IIB","Investments",null,"Short - After - Qualified Assets - Other Equities",null,null,null,null,null,null,null,null,0]
["Sch IIB","Investments",null,"Short - After - Qualified Assets - Letters of Credit",null,null,null,null,null,null,null,null,0]
["Sch IIB","Investments",null,"Short - After - Qualified Assets - Intangible assets",null,null,null,null,null,null,null,null,0]
["Sch IIB","Investments",null,"Short - After - Qualified Assets - Pension Benefit Surplus",null,null,null,null,null,null,null,null,0]
["Sch IIB","Investments",null,"Short - After - Qualified Assets - Equity Derivatives on Type 2 Equities",null,null,null,null,null,null,null,null,0]
["Sch IIB","Investments",null,"Short - After - Qualified Assets - Infrastructure",null,null,null,null,null,null,null,null,0]
["Sch IIB","Investments",null,"Short - After - Qualified Assets - Derivatives on Infrastructure",null,null,null,null,null,null,null,null,0]
["Sch IIB","Investments",null,"Short - After - Qualified Assets - Equity Real Estate 1",null,null,null,null,null,null,null,null,0]
["Sch IIB","Investments",null,"Short - After - Qualified Assets - Equity Real Estate 2",null,null,null,null,null,null,null,null,0]
["Sch IIB","Investments",null,"Short - Before - UnQualified Assets - Strategic Holdings - Listed",null,null,null,null,null,null,null,null,0]
["Sch IIB","Investments",null,"Short - Before - UnQualified Assets - Duration Based",null,null,null,null,null,null,null,null,0]
["Sch IIB","Investments",null,"Short - Before - UnQualified Assets - Listed Equity Securities in Developed Markets",null,null,null,null,null,null,null,null,0]
["Sch IIB","Investments",null,"Short - Before - UnQualified Assets - Preferred Stocks, BSCR Rating 1",null,null,null,null,null,null,null,null,0]
["Sch IIB","Investments",null,"Short - Before - UnQualified Assets - Preferred Stocks, BSCR Rating 2",null,null,null,null,null,null,null,null,0]
["Sch IIB","Investments",null,"Short - Before - UnQualified Assets - Preferred Stocks, BSCR Rating 3",null,null,null,null,null,null,null,null,0]
["Sch IIB","Investments",null,"Short - Before - UnQualified Assets - Preferred Stocks, BSCR Rating 4",null,null,null,null,null,null,null,null,0]
["Sch IIB","Investments",null,"Short - Before - UnQualified Assets - Preferred Stocks, BSCR Rating 5",null,null,null,null,null,null,null,null,0]
["Sch IIB","Investments",null,"Short - Before - UnQualified Assets - Preferred Stocks, BSCR Rating 6",null,null,null,null,null,null,null,null,0]
["Sch IIB","Investments",null,"Short - Before - UnQualified Assets - Preferred Stocks, BSCR Rating 7",null,null,null,null,null,null,null,null,0]
["Sch IIB","Investments",null,"Short - Before - UnQualified Assets - Preferred Stocks, BSCR Rating 8",null,null,null,null,null,null,null,null,0]
["Sch IIB","Investments",null,"Short - Before - UnQualified Assets - Equity Derivatives on Type 1 Equities",null,null,null,null,null,null,null,null,0]
["Sch IIB","Investments",null,"Short - Before - UnQualified Assets - Strategic Holdings - Unlisted",null,null,null,null,null,null,null,null,0]
["Sch IIB","Investments",null,"Short - Before - UnQualified Assets - Other Equities",null,null,null,null,null,null,null,null,0]
["Sch IIB","Investments",null,"Short - Before - UnQualified Assets - Letters of Credit",null,null,null,null,null,null,null,null,0]
["Sch IIB","Investments",null,"Short - Before - UnQualified Assets - Intangible assets",null,null,null,null,null,null,null,null,0]
["Sch IIB","Investments",null,"Short - Before - UnQualified Assets - Pension Benefit Surplus",null,null,null,null,null,null,null,null,0]
["Sch IIB","Investments",null,"Short - Before - UnQualified Assets - Equity Derivatives on Type 2 Equities",null,null,null,null,null,null,null,null,0]
["Sch IIB","Investments",null,"Short - Before - UnQualified Assets - Infrastructure",null,null,null,null,null,null,null,null,0]
["Sch IIB","Investments",null,"Short - Before - UnQualified Assets - Derivatives on Infrastructure",null,null,null,null,null,null,null,null,0]
["Sch IIB","Investments",null,"Short - Before - UnQualified Assets - Equity Real Estate 1",null,null,null,null,null,null,null,null,0]
["Sch IIB","Investments",null,"Short - Before - UnQualified Assets - Equity Real Estate 2",null,null,null,null,null,null,null,null,0]
["Sch IIB","Investments",null,"Short - After - UnQualified Assets - Strategic Holdings - Listed",null,null,null,null,null,null,null,null,0]
["Sch IIB","Investments",null,"Short - After - UnQualified Assets - Duration Based",null,null,null,null,null,null,null,null,0]
["Sch IIB","Investments",null,"Short - After - UnQualified Assets - Listed Equity Securities in Developed Markets",null,null,null,null,null,null,null,null,0]
["Sch IIB","Investments",null,"Short - After - UnQualified Assets - Preferred Stocks, BSCR Rating 1",null,null,null,null,null,null,null,null,0]
["Sch IIB","Investments",null,"Short - After - UnQualified Assets - Preferred Stocks, BSCR Rating 2",null,null,null,null,null,null,null,null,0]
["Sch IIB","Investments",null,"Short - After - UnQualified Assets - Preferred Stocks, BSCR Rating 3",null,null,null,null,null,null,null,null,0]
["Sch IIB","Investments",null,"Short - After - UnQualified Assets - Preferred Stocks, BSCR Rating 4",null,null,null,null,null,null,null,null,0]
["Sch IIB","Investments",null,"Short - After - UnQualified Assets - Preferred Stocks, BSCR Rating 5",null,null,null,null,null,null,null,null,0]
["Sch IIB","Investments",null,"Short - After - UnQualified Assets - Preferred Stocks, BSCR Rating 6",null,null,null,null,null,null,null,null,0]
["Sch IIB","Investments",null,"Short - After - UnQualified Assets - Preferred Stocks, BSCR Rating 7",null,null,null,null,null,null,null,null,0]
["Sch IIB","Investments",null,"Short - After - UnQualified Assets - Preferred Stocks, BSCR Rating 8",null,null,null,null,null,null,null,null,0]
["Sch IIB","Investments",null,"Short - After - UnQualified Assets - Equity Derivatives on Type 1 Equities",null,null,null,null,null,null,null,null,0]
["Sch IIB","Investments",null,"Short - After - UnQualified Assets - Strategic Holdings - Unlisted",null,null,null,null,null,null,null,null,0]
["Sch IIB","Investments",null,"Short - After - UnQualified Assets - Other Equities",null,null,null,null,null,null,null,null,0]
["Sch IIB","Investments",null,"Short - After - UnQualified Assets - Letters of Credit",null,null,null,null,null,null,null,null,0]
["Sch IIB","Investments",null,"Short - After - UnQualified Assets - Intangible assets",null,null,null,null,null,null,null,null,0]
["Sch IIB","Investments",null,"Short - After - UnQualified Assets - Pension Benefit Surplus",null,null,null,null,null,null,null,null,0]
["Sch IIB","Investments",null,"Short - After - UnQualified Assets - Equity Derivatives on Type 2 Equities",null,null,null,null,null,null,null,null,0]
["Sch IIB","Investments",null,"Short - After - UnQualified Assets - Infrastructure",null,null,null,null,null,null,null,null,0]
["Sch IIB","Investments",null,"Short - After - UnQualified Assets - Derivatives on Infrastructure",null,null,null,null,null,null,null,null,0]
["Sch IIB","Investments",null,"Short - After - UnQualified Assets - Equity Real Estate 1",null,null,null,null,null,null,null,null,0]
["Sch IIB","Investments",null,"Short - After - UnQualified Assets - Equity Real Estate 2",null,null,null,null,null,null,null,null,0]
["Sch IIB","Investments",null,"Liabilities - Before - W/O Mgmt Actions - Strategic Holdings - Listed",null,null,null,null,null,null,null,null,0]
["Sch IIB","Investments",null,"Liabilities - Before - W/O Mgmt Actions - Duration Based",null,null,null,null,null,null,null,null,0]
["Sch IIB","Investments",null,"Liabilities - Before - W/O Mgmt Actions - Listed Equity Securities in Developed Markets",null,null,null,null,null,null,null,null,0]
["Sch IIB","Investments",null,"Liabilities - Before - W/O Mgmt Actions - Preferred Stocks, BSCR Rating 1",null,null,null,null,null,null,null,null,0]
["Sch IIB","Investments",null,"Liabilities - Before - W/O Mgmt Actions - Preferred Stocks, BSCR Rating 2",null,null,null,null,null,null,null,null,0]
["Sch IIB","Investments",null,"Liabilities - Before - W/O Mgmt Actions - Preferred Stocks, BSCR Rating 3",null,null,null,null,null,null,null,null,0]
["Sch IIB","Investments",null,"Liabilities - Before - W/O Mgmt Actions - Preferred Stocks, BSCR Rating 4",null,null,null,null,null,null,null,null,0]
["Sch IIB","Investments",null,"Liabilities - Before - W/O Mgmt Actions - Preferred Stocks, BSCR Rating 5",null,null,null,null,null,null,null,null,0]
["Sch IIB","Investments",null,"Liabilities - Before - W/O Mgmt Actions - Preferred Stocks, BSCR Rating 6",null,null,null,null,null,null,null,null,0]
["Sch IIB","Investments",null,"Liabilities - Before - W/O Mgmt Actions - Preferred Stocks, BSCR Rating 7",null,null,null,null,null,null,null,null,0]
["Sch IIB","Investments",null,"Liabilities - Before - W/O Mgmt Actions - Preferred Stocks, BSCR Rating 8",null,null,null,null,null,null,null,null,0]
["Sch IIB","Investments",null,"Liabilities - Before - W/O Mgmt Actions - Equity Derivatives on Type 1 Equities",null,null,null,null,null,null,null,null,0]
["Sch IIB","Investments",null,"Liabilities - Before - W/O Mgmt Actions - Strategic Holdings - Unlisted",null,null,null,null,null,null,null,null,0]
["Sch IIB","Investments",null,"Liabilities - Before - W/O Mgmt Actions - Other Equities",null,null,null,null,null,null,null,null,0]
["Sch IIB","Investments",null,"Liabilities - Before - W/O Mgmt Actions - Letters of Credit",null,null,null,null,null,null,null,null,0]
["Sch IIB","Investments",null,"Liabilities - Before - W/O Mgmt Actions - Intangible assets",null,null,null,null,null,null,null,null,0]
["Sch IIB","Investments",null,"Liabilities - Before - W/O Mgmt Actions - Pension Benefit Surplus",null,null,null,null,null,null,null,null,0]
["Sch IIB","Investments",null,"Liabilities - Before - W/O Mgmt Actions - Equity Derivatives on Type 2 Equities",null,null,null,null,null,null,null,null,0]
["Sch IIB","Investments",null,"Liabilities - Before - W/O Mgmt Actions - Infrastructure",null,null,null,null,null,null,null,null,0]
["Sch IIB","Investments",null,"Liabilities - Before - W/O Mgmt Actions - Derivatives on Infrastructure",null,null,null,null,null,null,null,null,0]
["Sch IIB","Investments",null,"Liabilities - Before - W/O Mgmt Actions - Equity Real Estate 1",null,null,null,null,null,null,null,null,0]
["Sch IIB","Investments",null,"Liabilities - Before - W/O Mgmt Actions - Equity Real Estate 2",null,null,null,null,null,null,null,null,0]
["Sch IIB","Investments",null,"Liabilities - After - W/O Mgmt Actions - Strategic Holdings - Listed",null,null,null,null,null,null,null,null,0]
["Sch IIB","Investments",null,"Liabilities - After - W/O Mgmt Actions - Duration Based",null,null,null,null,null,null,null,null,0]
["Sch IIB","Investments",null,"Liabilities - After - W/O Mgmt Actions - Listed Equity Securities in Developed Markets",null,null,null,null,null,null,null,null,0]
["Sch IIB","Investments",null,"Liabilities - After - W/O Mgmt Actions - Preferred Stocks, BSCR Rating 1",null,null,null,null,null,null,null,null,0]
["Sch IIB","Investments",null,"Liabilities - After - W/O Mgmt Actions - Preferred Stocks, BSCR Rating 2",null,null,null,null,null,null,null,null,0]
["Sch IIB","Investments",null,"Liabilities - After - W/O Mgmt Actions - Preferred Stocks, BSCR Rating 3",null,null,null,null,null,null,null,null,0]
["Sch IIB","Investments",null,"Liabilities - After - W/O Mgmt Actions - Preferred Stocks, BSCR Rating 4",null,null,null,null,null,null,null,null,0]
["Sch IIB","Investments",null,"Liabilities - After - W/O Mgmt Actions - Preferred Stocks, BSCR Rating 5",null,null,null,null,null,null,null,null,0]
["Sch IIB","Investments",null,"Liabilities - After - W/O Mgmt Actions - Preferred Stocks, BSCR Rating 6",null,null,null,null,null,null,null,null,0]
["Sch IIB","Investments",null,"Liabilities - After - W/O Mgmt Actions - Preferred Stocks, BSCR Rating 7",null,null,null,null,null,null,null,null,0]
["Sch IIB","Investments",null,"Liabilities - After - W/O Mgmt Actions - Preferred Stocks, BSCR Rating 8",null,null,null,null,null,null,null,null,0]
["Sch IIB","Investments",null,"Liabilities - After - W/O Mgmt Actions - Equity Derivatives on Type 1 Equities",null,null,null,null,null,null,null,null,0]
["Sch IIB","Investments",null,"Liabilities - After - W/O Mgmt Actions - Strategic Holdings - Unlisted",null,null,null,null,null,null,null,null,0]
["Sch IIB","Investments",null,"Liabilities - After - W/O Mgmt Actions - Other Equities",null,null,null,null,null,null,null,null,0]
["Sch IIB","Investments",null,"Liabilities - After - W/O Mgmt Actions - Letters of Credit",null,null,null,null,null,null,null,null,0]
["Sch IIB","Investments",null,"Liabilities - After - W/O Mgmt Actions - Intangible assets",null,null,null,null,null,null,null,null,0]
["Sch IIB","Investments",null,"Liabilities - After - W/O Mgmt Actions - Pension Benefit Surplus",null,null,null,null,null,null,null,null,0]
["Sch IIB","Investments",null,"Liabilities - After - W/O Mgmt Actions - Equity Derivatives on Type 2 Equities",null,null,null,null,null,null,null,null,0]
["Sch IIB","Investments",null,"Liabilities - After - W/O Mgmt Actions - Infrastructure",null,null,null,null,null,null,null,null,0]
["Sch IIB","Investments",null,"Liabilities - After - W/O Mgmt Actions - Derivatives on Infrastructure",null,null,null,null,null,null,null,null,0]
["Sch IIB","Investments",null,"Liabilities - After - W/O Mgmt Actions - Equity Real Estate 1",null,null,null,null,null,null,null,null,0]
["Sch IIB","Investments",null,"Liabilities - After - W/O Mgmt Actions - Equity Real Estate 2",null,null,null,null,null,null,null,null,0]
["Sch IIB","Investments",null,"Liabilities - After - With Mgmt Actions - Strategic Holdings - Listed",null,null,null,null,null,null,null,null,0]
["Sch IIB","Investments",null,"Liabilities - After - With Mgmt Actions - Duration Based",null,null,null,null,null,null,null,null,0]
["Sch IIB","Investments",null,"Liabilities - After - With Mgmt Actions - Listed Equity Securities in Developed Markets",null,null,null,null,null,null,null,null,0]
["Sch IIB","Investments",null,"Liabilities - After - With Mgmt Actions - Preferred Stocks, BSCR Rating 1",null,null,null,null,null,null,null,null,0]
["Sch IIB","Investments",null,"Liabilities - After - With Mgmt Actions - Preferred Stocks, BSCR Rating 2",null,null,null,null,null,null,null,null,0]
["Sch IIB","Investments",null,"Liabilities - After - With Mgmt Actions - Preferred Stocks, BSCR Rating 3",null,null,null,null,null,null,null,null,0]
["Sch IIB","Investments",null,"Liabilities - After - With Mgmt Actions - Preferred Stocks, BSCR Rating 4",null,null,null,null,null,null,null,null,0]
["Sch IIB","Investments",null,"Liabilities - After - With Mgmt Actions - Preferred Stocks, BSCR Rating 5",null,null,null,null,null,null,null,null,0]
["Sch IIB","Investments",null,"Liabilities - After - With Mgmt Actions - Preferred Stocks, BSCR Rating 6",null,null,null,null,null,null,null,null,0]
["Sch IIB","Investments",null,"Liabilities - After - With Mgmt Actions - Preferred Stocks, BSCR Rating 7",null,null,null,null,null,null,null,null,0]
["Sch IIB","Investments",null,"Liabilities - After - With Mgmt Actions - Preferred Stocks, BSCR Rating 8",null,null,null,null,null,null,null,null,0]
["Sch IIB","Investments",null,"Liabilities - After - With Mgmt Actions - Equity Derivatives on Type 1 Equities",null,null,null,null,null,null,null,null,0]
["Sch IIB","Investments",null,"Liabilities - After - With Mgmt Actions - Strategic Holdings - Unlisted",null,null,null,null,null,null,null,null,0]
["Sch IIB","Investments",null,"Liabilities - After - With Mgmt Actions - Other Equities",null,null,null,null,null,null,null,null,0]
["Sch IIB","Investments",null,"Liabilities - After - With Mgmt Actions - Letters of Credit",null,null,null,null,null,null,null,null,0]
["Sch IIB","Investments",null,"Liabilities - After - With Mgmt Actions - Intangible assets",null,null,null,null,null,null,null,null,0]
["Sch IIB","Investments",null,"Liabilities - After - With Mgmt Actions - Pension Benefit Surplus",null,null,null,null,null,null,null,null,0]
["Sch IIB","Investments",null,"Liabilities - After - With Mgmt Actions - Equity Derivatives on Type 2 Equities",null,null,null,null,null,null,null,null,0]
["Sch IIB","Investments",null,"Liabilities - After - With Mgmt Actions - Infrastructure",null,null,null,null,null,null,null,null,0]
["Sch IIB","Investments",null,"Liabilities - After - With Mgmt Actions - Derivatives on Infrastructure",null,null,null,null,null,null,null,null,0]
["Sch IIB","Investments",null,"Liabilities - After - With Mgmt Actions - Equity Real Estate 1",null,null,null,null,null,null,null,null,0]
["Sch IIB","Investments",null,"Liabilities - After - With Mgmt Actions - Equity Real Estate 2",null,null,null,null,null,null,null,null,0]
["Sch IIB","Investments",null,"Credit Derivatives - Up - Before - Long-Rating 0",null,null,null,null,null,null,null,null,0]
["Sch IIB","Investments",null,"Credit Derivatives - Up - Before - Long-Rating 1",null,null,null,null,null,null,null,null,0]
["Sch IIB","Investments",null,"Credit Derivatives - Up - Before - Long-Rating 2",null,null,null,null,null,null,null,null,0]
["Sch IIB","Investments",null,"Credit Derivatives - Up - Before - Long-Rating 3",null,null,null,null,null,null,null,null,0]
["Sch IIB","Investments",null,"Credit Derivatives - Up - Before - Long-Rating 4",null,null,null,null,null,null,null,null,0]
["Sch IIB","Investments",null,"Credit Derivatives - Up - Before - Long-Rating 5",null,null,null,null,null,null,null,null,0]
["Sch IIB","Investments",null,"Credit Derivatives - Up - Before - Long-Rating 6",null,null,null,null,null,null,null,null,0]
["Sch IIB","Investments",null,"Credit Derivatives - Up - Before - Long-Rating 7",null,null,null,null,null,null,null,null,0]
["Sch IIB","Investments",null,"Credit Derivatives - Up - Before - Long-Rating 8",null,null,null,null,null,null,null,null,0]
["Sch IIB","Investments",null,"Credit Derivatives - Up - After - Long- Rating 0",null,null,null,null,null,null,null,null,0]
["Sch IIB","Investments",null,"Credit Derivatives - Up - After - Long- Rating 1",null,null,null,null,null,null,null,null,0]
["Sch IIB","Investments",null,"Credit Derivatives - Up - After - Long- Rating 2",null,null,null,null,null,null,null,null,0]
["Sch IIB","Investments",null,"Credit Derivatives - Up - After - Long- Rating 3",null,null,null,null,null,null,null,null,0]
["Sch IIB","Investments",null,"Credit Derivatives - Up - After - Long- Rating 4",null,null,null,null,null,null,null,null,0]
["Sch IIB","Investments",null,"Credit Derivatives - Up - After - Long- Rating 5",null,null,null,null,null,null,null,null,0]
["Sch IIB","Investments",null,"Credit Derivatives - Up - After - Long- Rating 6",null,null,null,null,null,null,null,null,0]
["Sch IIB","Investments",null,"Credit Derivatives - Up - After - Long- Rating 7",null,null,null,null,null,null,null,null,0]
["Sch IIB","Investments",null,"Credit Derivatives - Up - After - Long- Rating 8",null,null,null,null,null,null,null,null,0]
["Sch IIB","Investments",null,"Credit Derivatives - Up - Before - Short- Rating 0",null,null,null,null,null,null,null,null,0]
["Sch IIB","Investments",null,"Credit Derivatives - Up - Before - Short- Rating 1",null,null,null,null,null,null,null,null,0]
["Sch IIB","Investments",null,"Credit Derivatives - Up - Before - Short- Rating 2",null,null,null,null,null,null,null,null,0]
["Sch IIB","Investments",null,"Credit Derivatives - Up - Before - Short- Rating 3",null,null,null,null,null,null,null,null,0]
["Sch IIB","Investments",null,"Credit Derivatives - Up - Before - Short- Rating 4",null,null,null,null,null,null,null,null,0]
["Sch IIB","Investments",null,"Credit Derivatives - Up - Before - Short- Rating 5",null,null,null,null,null,null,null,null,0]
["Sch IIB","Investments",null,"Credit Derivatives - Up - Before - Short- Rating 6",null,null,null,null,null,null,null,null,0]
["Sch IIB","Investments",null,"Credit Derivatives - Up - Before - Short- Rating 7",null,null,null,null,null,null,null,null,0]
["Sch IIB","Investments",null,"Credit Derivatives - Up - Before - Short- Rating 8",null,null,null,null,null,null,null,null,0]
["Sch IIB","Investments",null,"Credit Derivatives - Up - After - Short- Rating 0",null,null,null,null,null,null,null,null,0]
["Sch IIB","Investments",null,"Credit Derivatives - Up - After - Short- Rating 1",null,null,null,null,null,null,null,null,0]
["Sch IIB","Investments",null,"Credit Derivatives - Up - After - Short- Rating 2",null,null,null,null,null,null,null,null,0]
["Sch IIB","Investments",null,"Credit Derivatives - Up - After - Short- Rating 3",null,null,null,null,null,null,null,null,0]
["Sch IIB","Investments",null,"Credit Derivatives - Up - After - Short- Rating 4",null,null,null,null,null,null,null,null,0]
["Sch IIB","Investments",null,"Credit Derivatives - Up - After - Short- Rating 5",null,null,null,null,null,null,null,null,0]
["Sch IIB","Investments",null,"Credit Derivatives - Up - After - Short- Rating 6",null,null,null,null,null,null,null,null,0]
["Sch IIB","Investments",null,"Credit Derivatives - Up - After - Short- Rating 7",null,null,null,null,null,null,null,null,0]
["Sch IIB","Investments",null,"Credit Derivatives - Up - After - Short- Rating 8",null,null,null,null,null,null,null,null,0]
["Sch IIB","Investments",null,"Credit Derivatives - Down - Before - Long-Rating 0",null,null,null,null,null,null,null,null,0]
["Sch IIB","Investments",null,"Credit Derivatives - Down - Before - Long-Rating 1",null,null,null,null,null,null,null,null,0]
["Sch IIB","Investments",null,"Credit Derivatives - Down - Before - Long-Rating 2",null,null,null,null,null,null,null,null,0]
["Sch IIB","Investments",null,"Credit Derivatives - Down - Before - Long-Rating 3",null,null,null,null,null,null,null,null,0]
["Sch IIB","Investments",null,"Credit Derivatives - Down - Before - Long-Rating 4",null,null,null,null,null,null,null,null,0]
["Sch IIB","Investments",null,"Credit Derivatives - Down - Before - Long-Rating 5",null,null,null,null,null,null,null,null,0]
["Sch IIB","Investments",null,"Credit Derivatives - Down - Before - Long-Rating 6",null,null,null,null,null,null,null,null,0]
["Sch IIB","Investments",null,"Credit Derivatives - Down - Before - Long-Rating 7",null,null,null,null,null,null,null,null,0]
["Sch IIB","Investments",null,"Credit Derivatives - Down - Before - Long-Rating 8",null,null,null,null,null,null,null,null,0]
["Sch IIB","Investments",null,"Credit Derivatives - Down - After - Long- Rating 0",null,null,null,null,null,null,null,null,0]
["Sch IIB","Investments",null,"Credit Derivatives - Down - After - Long- Rating 1",null,null,null,null,null,null,null,null,0]
["Sch IIB","Investments",null,"Credit Derivatives - Down - After - Long- Rating 2",null,null,null,null,null,null,null,null,0]
["Sch IIB","Investments",null,"Credit Derivatives - Down - After - Long- Rating 3",null,null,null,null,null,null,null,null,0]
["Sch IIB","Investments",null,"Credit Derivatives - Down - After - Long- Rating 4",null,null,null,null,null,null,null,null,0]
["Sch IIB","Investments",null,"Credit Derivatives - Down - After - Long- Rating 5",null,null,null,null,null,null,null,null,0]
["Sch IIB","Investments",null,"Credit Derivatives - Down - After - Long- Rating 6",null,null,null,null,null,null,null,null,0]
["Sch IIB","Investments",null,"Credit Derivatives - Down - After - Long- Rating 7",null,null,null,null,null,null,null,null,0]
["Sch IIB","Investments",null,"Credit Derivatives - Down - After - Long- Rating 8",null,null,null,null,null,null,null,null,0]
["Sch IIB","Investments",null,"Credit Derivatives - Down - Before - Short- Rating 0",null,null,null,null,null,null,null,null,0]
["Sch IIB","Investments",null,"Credit Derivatives - Down - Before - Short- Rating 1",null,null,null,null,null,null,null,null,0]
["Sch IIB","Investments",null,"Credit Derivatives - Down - Before - Short- Rating 2",null,null,null,null,null,null,null,null,0]
["Sch IIB","Investments",null,"Credit Derivatives - Down - Before - Short- Rating 3",null,null,null,null,null,null,null,null,0]
["Sch IIB","Investments",null,"Credit Derivatives - Down - Before - Short- Rating 4",null,null,null,null,null,null,null,null,0]
["Sch IIB","Investments",null,"Credit Derivatives - Down - Before - Short- Rating 5",null,null,null,null,null,null,null,null,0]
["Sch IIB","Investments",null,"Credit Derivatives - Down - Before - Short- Rating 6",null,null,null,null,null,null,null,null,0]
["Sch IIB","Investments",null,"Credit Derivatives - Down - Before - Short- Rating 7",null,null,null,null,null,null,null,null,0]
["Sch IIB","Investments",null,"Credit Derivatives - Down - Before - Short- Rating 8",null,null,null,null,null,null,null,null,0]
["Sch IIB","Investments",null,"Credit Derivatives - Down - After - Short- Rating 0",null,null,null,null,null,null,null,null,0]
["Sch IIB","Investments",null,"Credit Derivatives - Down - After - Short- Rating 1",null,null,null,null,null,null,null,null,0]
["Sch IIB","Investments",null,"Credit Derivatives - Down - After - Short- Rating 2",null,null,null,null,null,null,null,null,0]
["Sch IIB","Investments",null,"Credit Derivatives - Down - After - Short- Rating 3",null,null,null,null,null,null,null,null,0]
["Sch IIB","Investments",null,"Credit Derivatives - Down - After - Short- Rating 4",null,null,null,null,null,null,null,null,0]
["Sch IIB","Investments",null,"Credit Derivatives - Down - After - Short- Rating 5",null,null,null,null,null,null,null,null,0]
["Sch IIB","Investments",null,"Credit Derivatives - Down - After - Short- Rating 6",null,null,null,null,null,null,null,null,0]
["Sch IIB","Investments",null,"Credit Derivatives - Down - After - Short- Rating 7",null,null,null,null,null,null,null,null,0]
["Sch IIB","Investments",null,"Credit Derivatives - Down - After - Short- Rating 8",null,null,null,null,null,null,null,null,0]
["Sch IIB","Investments",null,"Counterparty Default Risk - MV of Derivatives - MV Positive - Rating 0",null,null,null,null,null,null,null,null,0]
["Sch IIB","Investments",null,"Counterparty Default Risk - MV of Derivatives - MV Positive - Rating 1",null,null,null,null,null,null,null,null,0]
["Sch IIB","Investments",null,"Counterparty Default Risk - MV of Derivatives - MV Positive - Rating 2",null,null,null,null,null,null,null,null,0]
["Sch IIB","Investments",null,"Counterparty Default Risk - MV of Derivatives - MV Positive - Rating 3",null,null,null,null,null,null,null,null,0]
["Sch IIB","Investments",null,"Counterparty Default Risk - MV of Derivatives - MV Positive - Rating 4",null,null,null,null,null,null,null,null,0]
["Sch IIB","Investments",null,"Counterparty Default Risk - MV of Derivatives - MV Positive - Rating 5",null,null,null,null,null,null,null,null,0]
["Sch IIB","Investments",null,"Counterparty Default Risk - MV of Derivatives - MV Positive - Rating 6",null,null,null,null,null,null,null,null,0]
["Sch IIB","Investments",null,"Counterparty Default Risk - MV of Derivatives - MV Positive - Rating 7",null,null,null,null,null,null,null,null,0]
["Sch IIB","Investments",null,"Counterparty Default Risk - MV of Derivatives - MV Positive - Rating 8",null,null,null,null,null,null,null,null,0]
["Sch IIB","Investments",null,"Counterparty Default Risk - MV of Derivatives - MV Negative - Rating 0",null,null,null,null,null,null,null,null,0]
["Sch IIB","Investments",null,"Counterparty Default Risk - MV of Derivatives - MV Negative - Rating 1",null,null,null,null,null,null,null,null,0]
["Sch IIB","Investments",null,"Counterparty Default Risk - MV of Derivatives - MV Negative - Rating 2",null,null,null,null,null,null,null,null,0]
["Sch IIB","Investments",null,"Counterparty Default Risk - MV of Derivatives - MV Negative - Rating 3",null,null,null,null,null,null,null,null,0]
["Sch IIB","Investments",null,"Counterparty Default Risk - MV of Derivatives - MV Negative - Rating 4",null,null,null,null,null,null,null,null,0]
["Sch IIB","Investments",null,"Counterparty Default Risk - MV of Derivatives - MV Negative - Rating 5",null,null,null,null,null,null,null,null,0]
["Sch IIB","Investments",null,"Counterparty Default Risk - MV of Derivatives - MV Negative - Rating 6",null,null,null,null,null,null,null,null,0]
["Sch IIB","Investments",null,"Counterparty Default Risk - MV of Derivatives - MV Negative - Rating 7",null,null,null,null,null,null,null,null,0]
["Sch IIB","Investments",null,"Counterparty Default Risk - MV of Derivatives - MV Negative - Rating 8",null,null,null,null,null,null,null,null,0]
["Sch IIB","Investments",null,"Counterparty Default Risk - MV of Collateral - Rating 0",null,null,null,null,null,null,null,null,0]
["Sch IIB","Investments",null,"Counterparty Default Risk - MV of Collateral - Rating 1",null,null,null,null,null,null,null,null,0]
["Sch IIB","Investments",null,"Counterparty Default Risk - MV of Collateral - Rating 2",null,null,null,null,null,null,null,null,0]
["Sch IIB","Investments",null,"Counterparty Default Risk - MV of Collateral - Rating 3",null,null,null,null,null,null,null,null,0]
["Sch IIB","Investments",null,"Counterparty Default Risk - MV of Collateral - Rating 4",null,null,null,null,null,null,null,null,0]
["Sch IIB","Investments",null,"Counterparty Default Risk - MV of Collateral - Rating 5",null,null,null,null,null,null,null,null,0]
["Sch IIB","Investments",null,"Counterparty Default Risk - MV of Collateral - Rating 6",null,null,null,null,null,null,null,null,0]
["Sch IIB","Investments",null,"Counterparty Default Risk - MV of Collateral - Rating 7",null,null,null,null,null,null,null,null,0]
["Sch IIB","Investments",null,"Counterparty Default Risk - MV of Collateral - Rating 8",null,null,null,null,null,null,null,null,0]
["Sch IIB","Investments",null,"Cash and Cash Equivalents",null,null,null,null,null,null,null,null,0]
["Sch IIB","Investments",null,"NAIC Resid. MBS - Orig. Class 1",null,null,null,null,null,null,null,null,0]
["Sch IIB","Investments",null,"NAIC Resid. MBS - Orig. Class 2",null,null,null,null,null,null,null,null,0]
["Sch IIB","Investments",null,"NAIC Resid. MBS - Orig. Class 3",null,null,null,null,null,null,null,null,0]
["Sch IIB","Investments",null,"NAIC Resid. MBS - Orig. Class 4",null,null,null,null,null,null,null,null,0]
["Sch IIB","Investments",null,"NAIC Resid. MBS - Orig. Class 5",null,null,null,null,null,null,null,null,0]
["Sch IIB","Investments",null,"NAIC Resid. MBS - Orig. Class 6",null,null,null,null,null,null,null,null,0]
["Sch IIB","Investments",null,"NAIC Resid. MBS - Orig. Total",null,null,null,null,null,null,null,null,0]
["Sch IIB","Investments",null,"NAIC Resid. MBS - Rev. Class 1",null,null,null,null,null,null,null,null,0]
["Sch IIB","Investments",null,"NAIC Resid. MBS - Rev. Class 2",null,null,null,null,null,null,null,null,0]
["Sch IIB","Investments",null,"NAIC Resid. MBS - Rev. Class 3",null,null,null,null,null,null,null,null,0]
["Sch IIB","Investments",null,"NAIC Resid. MBS - Rev. Class 4",null,null,null,null,null,null,null,null,0]
["Sch IIB","Investments",null,"NAIC Resid. MBS - Rev. Class 5",null,null,null,null,null,null,null,null,0]
["Sch IIB","Investments",null,"NAIC Resid. MBS - Rev. Class 6",null,null,null,null,null,null,null,null,0]
["Sch IIB","Investments",null,"NAIC Resid. MBS - Rev. Total",null,null,null,null,null,null,null,null,0]
["Sch IIB","Investments",null,"NAIC Comm. MBS - Orig. Class 1",null,null,null,null,null,null,null,null,0]
["Sch IIB","Investments",null,"NAIC Comm. MBS - Orig. Class 2",null,null,null,null,null,null,null,null,0]
["Sch IIB","Investments",null,"NAIC Comm. MBS - Orig. Class 3",null,null,null,null,null,null,null,null,0]
["Sch IIB","Investments",null,"NAIC Comm. MBS - Orig. Class 4",null,null,null,null,null,null,null,null,0]
["Sch IIB","Investments",null,"NAIC Comm. MBS - Orig. Class 5",null,null,null,null,null,null,null,null,0]
["Sch IIB","Investments",null,"NAIC Comm. MBS - Orig. Class 6",null,null,null,null,null,null,null,null,0]
["Sch IIB","Investments",null,"NAIC Comm. MBS - Orig. Total",null,null,null,null,null,null,null,null,0]
["Sch IIB","Investments",null,"NAIC Comm. MBS - Rev. Class 1",null,null,null,null,null,null,null,null,0]
["Sch IIB","Investments",null,"NAIC Comm. MBS - Rev. Class 2",null,null,null,null,null,null,null,null,0]
["Sch IIB","Investments",null,"NAIC Comm. MBS - Rev. Class 3",null,null,null,null,null,null,null,null,0]
["Sch IIB","Investments",null,"NAIC Comm. MBS - Rev. Class 4",null,null,null,null,null,null,null,null,0]
["Sch IIB","Investments",null,"NAIC Comm. MBS - Rev. Class 5",null,null,null,null,null,null,null,null,0]
["Sch IIB","Investments",null,"NAIC Comm. MBS - Rev. Class 6",null,null,null,null,null,null,null,null,0]
["Sch IIB","Investments",null,"NAIC Comm. MBS - Rev. Total",null,null,null,null,null,null,null,null,0]
["Sch IIB","Investments",null,"NAIC Rating Corp & Sov. Bond - Class 1",null,null,null,null,null,null,null,null,0]
["Sch IIB","Investments",null,"NAIC Rating Corp & Sov. Bond - Class 2",null,null,null,null,null,null,null,null,0]
["Sch IIB","Investments",null,"NAIC Rating Corp & Sov. Bond - Class 3",null,null,null,null,null,null,null,null,0]
["Sch IIB","Investments",null,"NAIC Rating Corp & Sov. Bond - Class 4",null,null,null,null,null,null,null,null,0]
["Sch IIB","Investments",null,"NAIC Rating Corp & Sov. Bond - Class 5",null,null,null,null,null,null,null,null,0]
["Sch IIB","Investments",null,"NAIC Rating Corp & Sov. Bond - Class 6",null,null,null,null,null,null,null,null,0]
["Sch IIB","Investments",null,"NAIC Rating Corp & Sov. Bond - Total",null,null,null,null,null,null,null,null,0]
["Sch IIB","Investments",null,"NAIC Rating Resid. MBS - Class 1",null,null,null,null,null,null,null,null,0]
["Sch IIB","Investments",null,"NAIC Rating Resid. MBS - Class 2",null,null,null,null,null,null,null,null,0]
["Sch IIB","Investments",null,"NAIC Rating Resid. MBS - Class 3",null,null,null,null,null,null,null,null,0]
["Sch IIB","Investments",null,"NAIC Rating Resid. MBS - Class 4",null,null,null,null,null,null,null,null,0]
["Sch IIB","Investments",null,"NAIC Rating Resid. MBS - Class 5",null,null,null,null,null,null,null,null,0]
["Sch IIB","Investments",null,"NAIC Rating Resid. MBS - Class 6",null,null,null,null,null,null,null,null,0]
["Sch IIB","Investments",null,"NAIC Rating Resid. MBS - Total",null,null,null,null,null,null,null,null,0]
["Sch IIB","Investments",null,"NAIC Rating Comm. MBS - Class 1",null,null,null,null,null,null,null,null,0]
["Sch IIB","Investments",null,"NAIC Rating Comm. MBS - Class 2",null,null,null,null,null,null,null,null,0]
["Sch IIB","Investments",null,"NAIC Rating Comm. MBS - Class 3",null,null,null,null,null,null,null,null,0]
["Sch IIB","Investments",null,"NAIC Rating Comm. MBS - Class 4",null,null,null,null,null,null,null,null,0]
["Sch IIB","Investments",null,"NAIC Rating Comm. MBS - Class 5",null,null,null,null,null,null,null,null,0]
["Sch IIB","Investments",null,"NAIC Rating Comm. MBS - Class 6",null,null,null,null,null,null,null,null,0]
["Sch IIB","Investments",null,"NAIC Rating Comm. MBS - Total",null,null,null,null,null,null,null,null,0]
["Sch IIB","Investments",null,"NAIC Rating Bond Mutual - Class 1",null,null,null,null,null,null,null,null,0]
["Sch IIB","Investments",null,"NAIC Rating Bond Mutual - Class 2",null,null,null,null,null,null,null,null,0]
["Sch IIB","Investments",null,"NAIC Rating Bond Mutual - Class 3",null,null,null,null,null,null,null,null,0]
["Sch IIB","Investments",null,"NAIC Rating Bond Mutual - Class 4",null,null,null,null,null,null,null,null,0]
["Sch IIB","Investments",null,"NAIC Rating Bond Mutual - Class 5",null,null,null,null,null,null,null,null,0]
["Sch IIB","Investments",null,"NAIC Rating Bond Mutual - Class 6",null,null,null,null,null,null,null,null,0]
["Sch IIB","Investments",null,"NAIC Rating Bond Mutual - Total",null,null,null,null,null,null,null,null,0]
["Sch IIB","Investments",null,"NAIC Rating Mort. Loan - Class 1",null,null,null,null,null,null,null,null,0]
["Sch IIB","Investments",null,"NAIC Rating Mort. Loan - Class 2",null,null,null,null,null,null,null,null,0]
["Sch IIB","Investments",null,"NAIC Rating Mort. Loan - Class 3",null,null,null,null,null,null,null,null,0]
["Sch IIB","Investments",null,"NAIC Rating Mort. Loan - Class 4",null,null,null,null,null,null,null,null,0]
["Sch IIB","Investments",null,"NAIC Rating Mort. Loan - Class 5",null,null,null,null,null,null,null,null,0]
["Sch IIB","Investments",null,"NAIC Rating Mort. Loan - Class 6",null,null,null,null,null,null,null,null,0]
["Sch IIB","Investments",null,"NAIC Rating Mort. Loan - Total",null,null,null,null,null,null,null,null,0]
["Sch IIB","Investments",null,"NAIC Rating Pref. Stock - Class 1",null,null,null,null,null,null,null,null,0]
["Sch IIB","Investments",null,"NAIC Rating Pref. Stock - Class 2",null,null,null,null,null,null,null,null,0]
["Sch IIB","Investments",null,"NAIC Rating Pref. Stock - Class 3",null,null,null,null,null,null,null,null,0]
["Sch IIB","Investments",null,"NAIC Rating Pref. Stock - Class 4",null,null,null,null,null,null,null,null,0]
["Sch IIB","Investments",null,"NAIC Rating Pref. Stock - Class 5",null,null,null,null,null,null,null,null,0]
["Sch IIB","Investments",null,"NAIC Rating Pref. Stock - Class 6",null,null,null,null,null,null,null,null,0]
["Sch IIB","Investments",null,"NAIC Rating Pref. Stock - Total",null,null,null,null,null,null,null,null,0]
["Sch IIB","Investments",null,"NAIC Rating Other Assets - Class 1",null,null,null,null,null,null,null,null,0]
["Sch IIB","Investments",null,"NAIC Rating Other Assets - Class 2",null,null,null,null,null,null,null,null,0]
["Sch IIB","Investments",null,"NAIC Rating Other Assets - Class 3",null,null,null,null,null,null,null,null,0]
["Sch IIB","Investments",null,"NAIC Rating Other Assets - Class 4",null,null,null,null,null,null,null,null,0]
["Sch IIB","Investments",null,"NAIC Rating Other Assets - Class 5",null,null,null,null,null,null,null,null,0]
["Sch IIB","Investments",null,"NAIC Rating Other Assets - Class 6",null,null,null,null,null,null,null,null,0]
["Sch IIB","Investments",null,"NAIC Rating Other Assets - Total",null,null,null,null,null,null,null,null,0]
[]
["Sch IIC","Funds Held",null,"Corp. Bonds - BSCR Rate 0",null,null,null,null,null,null,null,null,0,null,0]
["Sch IIC","Funds Held",null,"Corp. Bonds - BSCR Rate 1",null,null,null,null,null,null,null,null,0,null,0]
["Sch IIC","Funds Held",null,"Corp. Bonds - BSCR Rate 2",null,null,null,null,null,null,null,null,0,null,0]
["Sch IIC","Funds Held",null,"Corp. Bonds - BSCR Rate 3",null,null,null,null,null,null,null,null,0,null,0]
["Sch IIC","Funds Held",null,"Corp. Bonds - BSCR Rate 4",null,null,null,null,null,null,null,null,0,null,0]
["Sch IIC","Funds Held",null,"Corp. Bonds - BSCR Rate 5",null,null,null,null,null,null,null,null,0,null,0]
["Sch IIC","Funds Held",null,"Corp. Bonds - BSCR Rate 6",null,null,null,null,null,null,null,null,0,null,0]
["Sch IIC","Funds Held",null,"Corp. Bonds - BSCR Rate 7",null,null,null,null,null,null,null,null,0,null,0]
["Sch IIC","Funds Held",null,"Corp. Bonds - BSCR Rate 8",null,null,null,null,null,null,null,null,0,null,0]
["Sch IIC","Funds Held",null,"Residential MBS - BSCR Rate 1",null,null,null,null,null,null,null,null,0,null,0]
["Sch IIC","Funds Held",null,"Residential MBS - BSCR Rate 2",null,null,null,null,null,null,null,null,0,null,0]
["Sch IIC","Funds Held",null,"Residential MBS - BSCR Rate 3",null,null,null,null,null,null,null,null,0,null,0]
["Sch IIC","Funds Held",null,"Residential MBS - BSCR Rate 4",null,null,null,null,null,null,null,null,0,null,0]
["Sch IIC","Funds Held",null,"Residential MBS - BSCR Rate 5",null,null,null,null,null,null,null,null,0,null,0]
["Sch IIC","Funds Held",null,"Residential MBS - BSCR Rate 6",null,null,null,null,null,null,null,null,0,null,0]
["Sch IIC","Funds Held",null,"Residential MBS - BSCR Rate 7",null,null,null,null,null,null,null,null,0,null,0]
["Sch IIC","Funds Held",null,"Residential MBS - BSCR Rate 8",null,null,null,null,null,null,null,null,0,null,0]
["Sch IIC","Funds Held",null,"Commercial MBS - BSCR Rate 1",null,null,null,null,null,null,null,null,0,null,0]
["Sch IIC","Funds Held",null,"Commercial MBS - BSCR Rate 2",null,null,null,null,null,null,null,null,0,null,0]
["Sch IIC","Funds Held",null,"Commercial MBS - BSCR Rate 3",null,null,null,null,null,null,null,null,0,null,0]
["Sch IIC","Funds Held",null,"Commercial MBS - BSCR Rate 4",null,null,null,null,null,null,null,null,0,null,0]
["Sch IIC","Funds Held",null,"Commercial MBS - BSCR Rate 5",null,null,null,null,null,null,null,null,0,null,0]
["Sch IIC","Funds Held",null,"Commercial MBS - BSCR Rate 6",null,null,null,null,null,null,null,null,0,null,0]
["Sch IIC","Funds Held",null,"Commercial MBS - BSCR Rate 7",null,null,null,null,null,null,null,null,0,null,0]
["Sch IIC","Funds Held",null,"Commercial MBS - BSCR Rate 8",null,null,null,null,null,null,null,null,0,null,0]
["Sch IIC","Funds Held",null,"Bonds Mutual Fund - BSCR Rate 0",null,null,null,null,null,null,null,null,0,null,0]
["Sch IIC","Funds Held",null,"Bonds Mutual Fund - BSCR Rate 1",null,null,null,null,null,null,null,null,0,null,0]
["Sch IIC","Funds Held",null,"Bonds Mutual Fund - BSCR Rate 2",null,null,null,null,null,null,null,null,0,null,0]
["Sch IIC","Funds Held",null,"Bonds Mutual Fund - BSCR Rate 3",null,null,null,null,null,null,null,null,0,null,0]
["Sch IIC","Funds Held",null,"Bonds Mutual Fund - BSCR Rate 4",null,null,null,null,null,null,null,null,0,null,0]
["Sch IIC","Funds Held",null,"Bonds Mutual Fund - BSCR Rate 5",null,null,null,null,null,null,null,null,0,null,0]
["Sch IIC","Funds Held",null,"Bonds Mutual Fund - BSCR Rate 6",null,null,null,null,null,null,null,null,0,null,0]
["Sch IIC","Funds Held",null,"Bonds Mutual Fund - BSCR Rate 7",null,null,null,null,null,null,null,null,0,null,0]
["Sch IIC","Funds Held",null,"Bonds Mutual Fund - BSCR Rate 8",null,null,null,null,null,null,null,null,0,null,0]
["Sch IIC","Funds Held",null,"Mortgage Loans - Insured",null,null,null,null,null,null,null,null,0,null,0]
["Sch IIC","Funds Held",null,"Mortgage Loans - Other Commercial",null,null,null,null,null,null,null,null,0,null,0]
["Sch IIC","Funds Held",null,"Mortgage Loans - Other Residential",null,null,null,null,null,null,null,null,0,null,0]
["Sch IIC","Funds Held",null,"Mortgage Loans - Not Good Stand.",null,null,null,null,null,null,null,null,0,null,0]
["Sch IIC","Funds Held",null,"Long Positions - Before - Strategic Holdings - Listed",null,null,null,null,null,null,null,null,0]
["Sch IIC","Funds Held",null,"Long Positions - Before - Duration Based",null,null,null,null,null,null,null,null,0]
["Sch IIC","Funds Held",null,"Long Positions - Before - Listed Equity Securities in Developed Markets",null,null,null,null,null,null,null,null,0]
["Sch IIC","Funds Held",null,"Long Positions - Before - Preferred Stocks, BSCR Rating 1",null,null,null,null,null,null,null,null,0]
["Sch IIC","Funds Held",null,"Long Positions - Before - Preferred Stocks, BSCR Rating 2",null,null,null,null,null,null,null,null,0]
["Sch IIC","Funds Held",null,"Long Positions - Before - Preferred Stocks, BSCR Rating 3",null,null,null,null,null,null,null,null,0]
["Sch IIC","Funds Held",null,"Long Positions - Before - Preferred Stocks, BSCR Rating 4",null,null,null,null,null,null,null,null,0]
["Sch IIC","Funds Held",null,"Long Positions - Before - Preferred Stocks, BSCR Rating 5",null,null,null,null,null,null,null,null,0]
["Sch IIC","Funds Held",null,"Long Positions - Before - Preferred Stocks, BSCR Rating 6",null,null,null,null,null,null,null,null,0]
["Sch IIC","Funds Held",null,"Long Positions - Before - Preferred Stocks, BSCR Rating 7",null,null,null,null,null,null,null,null,0]
["Sch IIC","Funds Held",null,"Long Positions - Before - Preferred Stocks, BSCR Rating 8",null,null,null,null,null,null,null,null,0]
["Sch IIC","Funds Held",null,"Long Positions - Before - Equity Derivatives on Type 1 Equities",null,null,null,null,null,null,null,null,0]
["Sch IIC","Funds Held",null,"Long Positions - Before - Strategic Holdings - Unlisted",null,null,null,null,null,null,null,null,0]
["Sch IIC","Funds Held",null,"Long Positions - Before - Other Equities",null,null,null,null,null,null,null,null,0]
["Sch IIC","Funds Held",null,"Long Positions - Before - Letters of Credit",null,null,null,null,null,null,null,null,0]
["Sch IIC","Funds Held",null,"Long Positions - Before - Intangible assets",null,null,null,null,null,null,null,null,0]
["Sch IIC","Funds Held",null,"Long Positions - Before - Pension Benefit Surplus",null,null,null,null,null,null,null,null,0]
["Sch IIC","Funds Held",null,"Long Positions - Before - Equity Derivatives on Type 2 Equities",null,null,null,null,null,null,null,null,0]
["Sch IIC","Funds Held",null,"Long Positions - Before - Infrastructure",null,null,null,null,null,null,null,null,0]
["Sch IIC","Funds Held",null,"Long Positions - Before - Derivatives on Infrastructure",null,null,null,null,null,null,null,null,0]
["Sch IIC","Funds Held",null,"Long Positions - Before - Equity Real Estate 1",null,null,null,null,null,null,null,null,0]
["Sch IIC","Funds Held",null,"Long Positions - Before - Equity Real Estate 2",null,null,null,null,null,null,null,null,0]
["Sch IIC","Funds Held",null,"Long Positions - After - Strategic Holdings - Listed",null,null,null,null,null,null,null,null,0]
["Sch IIC","Funds Held",null,"Long Positions - After - Duration Based",null,null,null,null,null,null,null,null,0]
["Sch IIC","Funds Held",null,"Long Positions - After - Listed Equity Securities in Developed Markets",null,null,null,null,null,null,null,null,0]
["Sch IIC","Funds Held",null,"Long Positions - After - Preferred Stocks, BSCR Rating 1",null,null,null,null,null,null,null,null,0]
["Sch IIC","Funds Held",null,"Long Positions - After - Preferred Stocks, BSCR Rating 2",null,null,null,null,null,null,null,null,0]
["Sch IIC","Funds Held",null,"Long Positions - After - Preferred Stocks, BSCR Rating 3",null,null,null,null,null,null,null,null,0]
["Sch IIC","Funds Held",null,"Long Positions - After - Preferred Stocks, BSCR Rating 4",null,null,null,null,null,null,null,null,0]
["Sch IIC","Funds Held",null,"Long Positions - After - Preferred Stocks, BSCR Rating 5",null,null,null,null,null,null,null,null,0]
["Sch IIC","Funds Held",null,"Long Positions - After - Preferred Stocks, BSCR Rating 6",null,null,null,null,null,null,null,null,0]
["Sch IIC","Funds Held",null,"Long Positions - After - Preferred Stocks, BSCR Rating 7",null,null,null,null,null,null,null,null,0]
["Sch IIC","Funds Held",null,"Long Positions - After - Preferred Stocks, BSCR Rating 8",null,null,null,null,null,null,null,null,0]
["Sch IIC","Funds Held",null,"Long Positions - After - Equity Derivatives on Type 1 Equities",null,null,null,null,null,null,null,null,0]
["Sch IIC","Funds Held",null,"Long Positions - After - Strategic Holdings - Unlisted",null,null,null,null,null,null,null,null,0]
["Sch IIC","Funds Held",null,"Long Positions - After - Other Equities",null,null,null,null,null,null,null,null,0]
["Sch IIC","Funds Held",null,"Long Positions - After - Letters of Credit",null,null,null,null,null,null,null,null,0]
["Sch IIC","Funds Held",null,"Long Positions - After - Intangible assets",null,null,null,null,null,null,null,null,0]
["Sch IIC","Funds Held",null,"Long Positions - After - Pension Benefit Surplus",null,null,null,null,null,null,null,null,0]
["Sch IIC","Funds Held",null,"Long Positions - After - Equity Derivatives on Type 2 Equities",null,null,null,null,null,null,null,null,0]
["Sch IIC","Funds Held",null,"Long Positions - After - Infrastructure",null,null,null,null,null,null,null,null,0]
["Sch IIC","Funds Held",null,"Long Positions - After - Derivatives on Infrastructure",null,null,null,null,null,null,null,null,0]
["Sch IIC","Funds Held",null,"Long Positions - After - Equity Real Estate 1",null,null,null,null,null,null,null,null,0]
["Sch IIC","Funds Held",null,"Long Positions - After - Equity Real Estate 2",null,null,null,null,null,null,null,null,0]
["Sch IIC","Funds Held",null,"Short - Before - Qualified Assets - Strategic Holdings - Listed",null,null,null,null,null,null,null,null,0]
["Sch IIC","Funds Held",null,"Short - Before - Qualified Assets - Duration Based",null,null,null,null,null,null,null,null,0]
["Sch IIC","Funds Held",null,"Short - Before - Qualified Assets - Listed Equity Securities in Developed Markets",null,null,null,null,null,null,null,null,0]
["Sch IIC","Funds Held",null,"Short - Before - Qualified Assets - Preferred Stocks, BSCR Rating 1",null,null,null,null,null,null,null,null,0]
["Sch IIC","Funds Held",null,"Short - Before - Qualified Assets - Preferred Stocks, BSCR Rating 2",null,null,null,null,null,null,null,null,0]
["Sch IIC","Funds Held",null,"Short - Before - Qualified Assets - Preferred Stocks, BSCR Rating 3",null,null,null,null,null,null,null,null,0]
["Sch IIC","Funds Held",null,"Short - Before - Qualified Assets - Preferred Stocks, BSCR Rating 4",null,null,null,null,null,null,null,null,0]
["Sch IIC","Funds Held",null,"Short - Before - Qualified Assets - Preferred Stocks, BSCR Rating 5",null,null,null,null,null,null,null,null,0]
["Sch IIC","Funds Held",null,"Short - Before - Qualified Assets - Preferred Stocks, BSCR Rating 6",null,null,null,null,null,null,null,null,0]
["Sch IIC","Funds Held",null,"Short - Before - Qualified Assets - Preferred Stocks, BSCR Rating 7",null,null,null,null,null,null,null,null,0]
["Sch IIC","Funds Held",null,"Short - Before - Qualified Assets - Preferred Stocks, BSCR Rating 8",null,null,null,null,null,null,null,null,0]
["Sch IIC","Funds Held",null,"Short - Before - Qualified Assets - Equity Derivatives on Type 1 Equities",null,null,null,null,null,null,null,null,0]
["Sch IIC","Funds Held",null,"Short - Before - Qualified Assets - Strategic Holdings - Unlisted",null,null,null,null,null,null,null,null,0]
["Sch IIC","Funds Held",null,"Short - Before - Qualified Assets - Other Equities",null,null,null,null,null,null,null,null,0]
["Sch IIC","Funds Held",null,"Short - Before - Qualified Assets - Letters of Credit",null,null,null,null,null,null,null,null,0]
["Sch IIC","Funds Held",null,"Short - Before - Qualified Assets - Intangible assets",null,null,null,null,null,null,null,null,0]
["Sch IIC","Funds Held",null,"Short - Before - Qualified Assets - Pension Benefit Surplus",null,null,null,null,null,null,null,null,0]
["Sch IIC","Funds Held",null,"Short - Before - Qualified Assets - Equity Derivatives on Type 2 Equities",null,null,null,null,null,null,null,null,0]
["Sch IIC","Funds Held",null,"Short - Before - Qualified Assets - Infrastructure",null,null,null,null,null,null,null,null,0]
["Sch IIC","Funds Held",null,"Short - Before - Qualified Assets - Derivatives on Infrastructure",null,null,null,null,null,null,null,null,0]
["Sch IIC","Funds Held",null,"Short - Before - Qualified Assets - Equity Real Estate 1",null,null,null,null,null,null,null,null,0]
["Sch IIC","Funds Held",null,"Short - Before - Qualified Assets - Equity Real Estate 2",null,null,null,null,null,null,null,null,0]
["Sch IIC","Funds Held",null,"Short - After - Qualified Assets - Strategic Holdings - Listed",null,null,null,null,null,null,null,null,0]
["Sch IIC","Funds Held",null,"Short - After - Qualified Assets - Duration Based",null,null,null,null,null,null,null,null,0]
["Sch IIC","Funds Held",null,"Short - After - Qualified Assets - Listed Equity Securities in Developed Markets",null,null,null,null,null,null,null,null,0]
["Sch IIC","Funds Held",null,"Short - After - Qualified Assets - Preferred Stocks, BSCR Rating 1",null,null,null,null,null,null,null,null,0]
["Sch IIC","Funds Held",null,"Short - After - Qualified Assets - Preferred Stocks, BSCR Rating 2",null,null,null,null,null,null,null,null,0]
["Sch IIC","Funds Held",null,"Short - After - Qualified Assets - Preferred Stocks, BSCR Rating 3",null,null,null,null,null,null,null,null,0]
["Sch IIC","Funds Held",null,"Short - After - Qualified Assets - Preferred Stocks, BSCR Rating 4",null,null,null,null,null,null,null,null,0]
["Sch IIC","Funds Held",null,"Short - After - Qualified Assets - Preferred Stocks, BSCR Rating 5",null,null,null,null,null,null,null,null,0]
["Sch IIC","Funds Held",null,"Short - After - Qualified Assets - Preferred Stocks, BSCR Rating 6",null,null,null,null,null,null,null,null,0]
["Sch IIC","Funds Held",null,"Short - After - Qualified Assets - Preferred Stocks, BSCR Rating 7",null,null,null,null,null,null,null,null,0]
["Sch IIC","Funds Held",null,"Short - After - Qualified Assets - Preferred Stocks, BSCR Rating 8",null,null,null,null,null,null,null,null,0]
["Sch IIC","Funds Held",null,"Short - After - Qualified Assets - Equity Derivatives on Type 1 Equities",null,null,null,null,null,null,null,null,0]
["Sch IIC","Funds Held",null,"Short - After - Qualified Assets - Strategic Holdings - Unlisted",null,null,null,null,null,null,null,null,0]
["Sch IIC","Funds Held",null,"Short - After - Qualified Assets - Other Equities",null,null,null,null,null,null,null,null,0]
["Sch IIC","Funds Held",null,"Short - After - Qualified Assets - Letters of Credit",null,null,null,null,null,null,null,null,0]
["Sch IIC","Funds Held",null,"Short - After - Qualified Assets - Intangible assets",null,null,null,null,null,null,null,null,0]
["Sch IIC","Funds Held",null,"Short - After - Qualified Assets - Pension Benefit Surplus",null,null,null,null,null,null,null,null,0]
["Sch IIC","Funds Held",null,"Short - After - Qualified Assets - Equity Derivatives on Type 2 Equities",null,null,null,null,null,null,null,null,0]
["Sch IIC","Funds Held",null,"Short - After - Qualified Assets - Infrastructure",null,null,null,null,null,null,null,null,0]
["Sch IIC","Funds Held",null,"Short - After - Qualified Assets - Derivatives on Infrastructure",null,null,null,null,null,null,null,null,0]
["Sch IIC","Funds Held",null,"Short - After - Qualified Assets - Equity Real Estate 1",null,null,null,null,null,null,null,null,0]
["Sch IIC","Funds Held",null,"Short - After - Qualified Assets - Equity Real Estate 2",null,null,null,null,null,null,null,null,0]
["Sch IIC","Funds Held",null,"Short - Before - UnQualified Assets - Strategic Holdings - Listed",null,null,null,null,null,null,null,null,0]
["Sch IIC","Funds Held",null,"Short - Before - UnQualified Assets - Duration Based",null,null,null,null,null,null,null,null,0]
["Sch IIC","Funds Held",null,"Short - Before - UnQualified Assets - Listed Equity Securities in Developed Markets",null,null,null,null,null,null,null,null,0]
["Sch IIC","Funds Held",null,"Short - Before - UnQualified Assets - Preferred Stocks, BSCR Rating 1",null,null,null,null,null,null,null,null,0]
["Sch IIC","Funds Held",null,"Short - Before - UnQualified Assets - Preferred Stocks, BSCR Rating 2",null,null,null,null,null,null,null,null,0]
["Sch IIC","Funds Held",null,"Short - Before - UnQualified Assets - Preferred Stocks, BSCR Rating 3",null,null,null,null,null,null,null,null,0]
["Sch IIC","Funds Held",null,"Short - Before - UnQualified Assets - Preferred Stocks, BSCR Rating 4",null,null,null,null,null,null,null,null,0]
["Sch IIC","Funds Held",null,"Short - Before - UnQualified Assets - Preferred Stocks, BSCR Rating 5",null,null,null,null,null,null,null,null,0]
["Sch IIC","Funds Held",null,"Short - Before - UnQualified Assets - Preferred Stocks, BSCR Rating 6",null,null,null,null,null,null,null,null,0]
["Sch IIC","Funds Held",null,"Short - Before - UnQualified Assets - Preferred Stocks, BSCR Rating 7",null,null,null,null,null,null,null,null,0]
["Sch IIC","Funds Held",null,"Short - Before - UnQualified Assets - Preferred Stocks, BSCR Rating 8",null,null,null,null,null,null,null,null,0]
["Sch IIC","Funds Held",null,"Short - Before - UnQualified Assets - Equity Derivatives on Type 1 Equities",null,null,null,null,null,null,null,null,0]
["Sch IIC","Funds Held",null,"Short - Before - UnQualified Assets - Strategic Holdings - Unlisted",null,null,null,null,null,null,null,null,0]
["Sch IIC","Funds Held",null,"Short - Before - UnQualified Assets - Other Equities",null,null,null,null,null,null,null,null,0]
["Sch IIC","Funds Held",null,"Short - Before - UnQualified Assets - Letters of Credit",null,null,null,null,null,null,null,null,0]
["Sch IIC","Funds Held",null,"Short - Before - UnQualified Assets - Intangible assets",null,null,null,null,null,null,null,null,0]
["Sch IIC","Funds Held",null,"Short - Before - UnQualified Assets - Pension Benefit Surplus",null,null,null,null,null,null,null,null,0]
["Sch IIC","Funds Held",null,"Short - Before - UnQualified Assets - Equity Derivatives on Type 2 Equities",null,null,null,null,null,null,null,null,0]
["Sch IIC","Funds Held",null,"Short - Before - UnQualified Assets - Infrastructure",null,null,null,null,null,null,null,null,0]
["Sch IIC","Funds Held",null,"Short - Before - UnQualified Assets - Derivatives on Infrastructure",null,null,null,null,null,null,null,null,0]
["Sch IIC","Funds Held",null,"Short - Before - UnQualified Assets - Equity Real Estate 1",null,null,null,null,null,null,null,null,0]
["Sch IIC","Funds Held",null,"Short - Before - UnQualified Assets - Equity Real Estate 2",null,null,null,null,null,null,null,null,0]
["Sch IIC","Funds Held",null,"Short - After - UnQualified Assets - Strategic Holdings - Listed",null,null,null,null,null,null,null,null,0]
["Sch IIC","Funds Held",null,"Short - After - UnQualified Assets - Duration Based",null,null,null,null,null,null,null,null,0]
["Sch IIC","Funds Held",null,"Short - After - UnQualified Assets - Listed Equity Securities in Developed Markets",null,null,null,null,null,null,null,null,0]
["Sch IIC","Funds Held",null,"Short - After - UnQualified Assets - Preferred Stocks, BSCR Rating 1",null,null,null,null,null,null,null,null,0]
["Sch IIC","Funds Held",null,"Short - After - UnQualified Assets - Preferred Stocks, BSCR Rating 2",null,null,null,null,null,null,null,null,0]
["Sch IIC","Funds Held",null,"Short - After - UnQualified Assets - Preferred Stocks, BSCR Rating 3",null,null,null,null,null,null,null,null,0]
["Sch IIC","Funds Held",null,"Short - After - UnQualified Assets - Preferred Stocks, BSCR Rating 4",null,null,null,null,null,null,null,null,0]
["Sch IIC","Funds Held",null,"Short - After - UnQualified Assets - Preferred Stocks, BSCR Rating 5",null,null,null,null,null,null,null,null,0]
["Sch IIC","Funds Held",null,"Short - After - UnQualified Assets - Preferred Stocks, BSCR Rating 6",null,null,null,null,null,null,null,null,0]
["Sch IIC","Funds Held",null,"Short - After - UnQualified Assets - Preferred Stocks, BSCR Rating 7",null,null,null,null,null,null,null,null,0]
["Sch IIC","Funds Held",null,"Short - After - UnQualified Assets - Preferred Stocks, BSCR Rating 8",null,null,null,null,null,null,null,null,0]
["Sch IIC","Funds Held",null,"Short - After - UnQualified Assets - Equity Derivatives on Type 1 Equities",null,null,null,null,null,null,null,null,0]
["Sch IIC","Funds Held",null,"Short - After - UnQualified Assets - Strategic Holdings - Unlisted",null,null,null,null,null,null,null,null,0]
["Sch IIC","Funds Held",null,"Short - After - UnQualified Assets - Other Equities",null,null,null,null,null,null,null,null,0]
["Sch IIC","Funds Held",null,"Short - After - UnQualified Assets - Letters of Credit",null,null,null,null,null,null,null,null,0]
["Sch IIC","Funds Held",null,"Short - After - UnQualified Assets - Intangible assets",null,null,null,null,null,null,null,null,0]
["Sch IIC","Funds Held",null,"Short - After - UnQualified Assets - Pension Benefit Surplus",null,null,null,null,null,null,null,null,0]
["Sch IIC","Funds Held",null,"Short - After - UnQualified Assets - Equity Derivatives on Type 2 Equities",null,null,null,null,null,null,null,null,0]
["Sch IIC","Funds Held",null,"Short - After - UnQualified Assets - Infrastructure",null,null,null,null,null,null,null,null,0]
["Sch IIC","Funds Held",null,"Short - After - UnQualified Assets - Derivatives on Infrastructure",null,null,null,null,null,null,null,null,0]
["Sch IIC","Funds Held",null,"Short - After - UnQualified Assets - Equity Real Estate 1",null,null,null,null,null,null,null,null,0]
["Sch IIC","Funds Held",null,"Short - After - UnQualified Assets - Equity Real Estate 2",null,null,null,null,null,null,null,null,0]
["Sch IIC","Funds Held",null,"Liabilities - Before - W/O Mgmt Actions - Strategic Holdings - Listed",null,null,null,null,null,null,null,null,0]
["Sch IIC","Funds Held",null,"Liabilities - Before - W/O Mgmt Actions - Duration Based",null,null,null,null,null,null,null,null,0]
["Sch IIC","Funds Held",null,"Liabilities - Before - W/O Mgmt Actions - Listed Equity Securities in Developed Markets",null,null,null,null,null,null,null,null,0]
["Sch IIC","Funds Held",null,"Liabilities - Before - W/O Mgmt Actions - Preferred Stocks, BSCR Rating 1",null,null,null,null,null,null,null,null,0]
["Sch IIC","Funds Held",null,"Liabilities - Before - W/O Mgmt Actions - Preferred Stocks, BSCR Rating 2",null,null,null,null,null,null,null,null,0]
["Sch IIC","Funds Held",null,"Liabilities - Before - W/O Mgmt Actions - Preferred Stocks, BSCR Rating 3",null,null,null,null,null,null,null,null,0]
["Sch IIC","Funds Held",null,"Liabilities - Before - W/O Mgmt Actions - Preferred Stocks, BSCR Rating 4",null,null,null,null,null,null,null,null,0]
["Sch IIC","Funds Held",null,"Liabilities - After - W/O Mgmt Actions - Preferred Stocks, BSCR Rating 1",null,null,null,null,null,null,null,null,0]
["Sch IIC","Funds Held",null,"Liabilities - After - W/O Mgmt Actions - Preferred Stocks, BSCR Rating 6",null,null,null,null,null,null,null,null,0]
["Sch IIC","Funds Held",null,"Liabilities - After - With Mgmt Actions - Pension Benefit Surplus",null,null,null,null,null,null,null,null,0]
["Sch IIC","Funds Held",null,"Credit Derivatives - Up - Before - Short- Rating 5",null,null,null,null,null,null,null,null,0]
["Sch IIC","Funds Held",null,"Credit Derivatives - Up - After - Short- Rating 2",null,null,null,null,null,null,null,null,0]
["Sch IIC","Funds Held",null,"Credit Derivatives - Down - Before - Short- Rating 2",null,null,null,null,null,null,null,null,0]
["Sch IIC","Funds Held",null,"Counterparty Default Risk - MV of Derivatives - MV Negative - Rating 4",null,null,null,null,null,null,null,null,0]
["Sch IIC","Funds Held",null,"Counterparty Default Risk - MV of Collateral - Rating 3",null,null,null,null,null,null,null,null,0]
["Sch IIC","Funds Held",null,"NAIC Rating Comm. MBS - Total",null,null,null,null,null,null,null,null,0]
["Sch IID","Segregated Acc",null,"Corp. Bonds - BSCR Rate 2",null,null,null,null,null,null,null,null,0]
["Sch IID","Segregated Acc",null,"Residential MBS - BSCR Rate 5",null,null,null,null,null,null,null,null,0]
["Sch IID","Segregated Acc",null,"Commercial MBS - BSCR Rate 6",null,null,null,null,null,null,null,null,0]
["Sch IID","Segregated Acc",null,"Bonds Mutual Fund - BSCR Rate 7",null,null,null,null,null,null,null,null,0]
["Sch IID","Segregated Acc",null,"Liabilities Supported by Mortgage Loans - Insured",null,null,null,null,null,null,null,null,0]
["Sch IID","Segregated Acc",null,"Long Positions - Before - Pension Benefit Surplus",null,null,null,null,null,null,null,null,0]
["Sch IID","Segregated Acc",null,"Short - Before - Qualified Assets - Equity Derivatives on Type 1 Equities",null,null,null,null,null,null,null,null,0]
["Sch IID","Segregated Acc",null,"Short - After - Qualified Assets - Preferred Stocks, BSCR Rating 4",null,null,null,null,null,null,null,null,0]
["Sch IID","Segregated Acc",null,"Short - Before - UnQualified Assets - Preferred Stocks, BSCR Rating 2",null,null,null,null,null,null,null,null,0]
["Sch IID","Segregated Acc",null,"Short - Before - UnQualified Assets - Intangible assets",null,null,null,null,null,null,null,null,0]
["Sch IID","Segregated Acc",null,"Short - After - UnQualified Assets - Derivatives on Infrastructure",null,null,null,null,null,null,null,null,0]
["Sch IID","Segregated Acc",null,"Liabilities - After - W/O Mgmt Actions - Preferred Stocks, BSCR Rating 3",null,null,null,null,null,null,null,null,0]
["Sch IID","Segregated Acc",null,"Liabilities - After - W/O Mgmt Actions - Strategic Holdings - Unlisted",null,null,null,null,null,null,null,null,0]
["Sch IID","Segregated Acc",null,"Liabilities - After - With Mgmt Actions - Infrastructure",null,null,null,null,null,null,null,null,0]
["Sch IID","Segregated Acc",null,"Credit Derivatives - Up - Before - Short- Rating 5",null,null,null,null,null,null,null,null,0]
["Sch IID","Segregated Acc",null,"Credit Derivatives - Down - After - Long- Rating 7",null,null,null,null,null,null,null,null,0]
["Sch IID","Segregated Acc",null,"Credit Derivatives - Down - Before - Short- Rating 6",null,null,null,null,null,null,null,null,0]
["Sch IID","Segregated Acc",null,"Counterparty Default Risk - MV of Derivatives - MV Positive - Rating 5",null,null,null,null,null,null,null,null,0]
["Sch IID","Segregated Acc",null,"NAIC Rating Corp & Sov. Bond - Class 4",null,null,null,null,null,null,null,null,0]
["Sch IID","Segregated Acc",null,"NAIC Rating Pref. Stock - Class 2",null,null,null,null,null,null,null,null,0]
["Sch IIE","Deposits",null,"Residential MBS - BSCR Rate 1",null,null,null,null,null,null,null,null,0,null,0]
["Sch IIE","Deposits",null,"Commercial MBS - BSCR Rate 7",null,null,null,null,null,null,null,null,0,null,0]
["Sch IIE","Deposits",null,"Long Positions - Before - Listed Equity Securities in Developed Markets",null,null,null,null,null,null,null,null,0]
["Sch IIE","Deposits",null,"Long Positions - After - Strategic Holdings - Listed",null,null,null,null,null,null,null,null,0]
["Sch IIE","Deposits",null,"Short - Before - Qualified Assets - Letters of Credit",null,null,null,null,null,null,null,null,0]
["Sch IIE","Deposits",null,"Short - After - Qualified Assets - Equity Derivatives on Type 1 Equities",null,null,null,null,null,null,null,null,0]
["Sch IIE","Deposits",null,"Short - Before - UnQualified Assets - Preferred Stocks, BSCR Rating 3",null,null,null,null,null,null,null,null,0]
["Sch IIE","Deposits",null,"Short - After - UnQualified Assets - Preferred Stocks, BSCR Rating 2",null,null,null,null,null,null,null,null,0]
["Sch IIE","Deposits",null,"Short - After - UnQualified Assets - Infrastructure",null,null,null,null,null,null,null,null,0]
["Sch IIE","Deposits",null,"Liabilities - Before - W/O Mgmt Actions - Derivatives on Infrastructure",null,null,null,null,null,null,null,null,0]
["Sch IIE","Deposits",null,"Liabilities - After - With Mgmt Actions - Preferred Stocks, BSCR Rating 2",null,null,null,null,null,null,null,null,0]
["Sch IIE","Deposits",null,"Credit Derivatives - Up - After - Long- Rating 3",null,null,null,null,null,null,null,null,0]
["Sch IIE","Deposits",null,"Credit Derivatives - Up - After - Long- Rating 8",null,null,null,null,null,null,null,null,0]
["Sch IIE","Deposits",null,"Credit Derivatives - Down - After - Long- Rating 4",null,null,null,null,null,null,null,null,0]
["Sch IIE","Deposits",null,"Counterparty Default Risk - MV of Derivatives - MV Positive - Rating 1",null,null,null,null,null,null,null,null,0]
["Sch IIE","Deposits",null,"Counterparty Default Risk - MV of Derivatives - MV Negative - Rating 1",null,null,null,null,null,null,null,null,0]
["Sch IIE","Deposits",null,"NAIC Rating Resid. MBS - Class 2",null,null,null,null,null,null,null,null,0]
["Sch IIE","Deposits",null,"NAIC Rating Pref. Stock - Total",null,null,null,null,null,null,null,null,0]
["Sch IIF","Other Sundry",null,"Residential MBS - BSCR Rate 2",null,null,null,null,null,null,null,null,0,null,0]
["Sch IIF","Other Sundry",null,"Bonds Mutual Fund - BSCR Rate 3",null,null,null,null,null,null,null,null,0,null,0]
["Sch IIF","Other Sundry",null,"Long Positions - Before - Preferred Stocks, BSCR Rating 5",null,null,null,null,null,null,null,null,0]
["Sch IIF","Other Sundry",null,"Long Positions - After - Preferred Stocks, BSCR Rating 3",null,null,null,null,null,null,null,null,0]
["Sch IIF","Other Sundry",null,"Long Positions - After - Equity Real Estate 1",null,null,null,null,null,null,null,null,0]
["Sch IIF","Other Sundry",null,"Short - After - Qualified Assets - Pension Benefit Surplus",null,null,null,null,null,null,null,null,0]
["Sch IIF","Other Sundry",null,"Short - Before - UnQualified Assets - Intangible assets",null,null,null,null,null,null,null,null,0]
["Sch IIF","Other Sundry",null,"Short - After - UnQualified Assets - Preferred Stocks, BSCR Rating 2",null,null,null,null,null,null,null,null,0]
["Sch IIF","Other Sundry",null,"Liabilities - Before - W/O Mgmt Actions - Preferred Stocks, BSCR Rating 6",null,null,null,null,null,null,null,null,0]
["Sch IIF","Other Sundry",null,"Liabilities - Before - W/O Mgmt Actions - Equity Derivatives on Type 2 Equities",null,null,null,null,null,null,null,null,0]
["Sch IIF","Other Sundry",null,"Liabilities - After - W/O Mgmt Actions - Derivatives on Infrastructure",null,null,null,null,null,null,null,null,0]
["Sch IIF","Other Sundry",null,"Credit Derivatives - Up - Before - Long-Rating 7",null,null,null,null,null,null,null,null,0]
["Sch IIF","Other Sundry",null,"Credit Derivatives - Up - After - Short- Rating 7",null,null,null,null,null,null,null,null,0]
["Sch IIF","Other Sundry",null,"Credit Derivatives - Down - Before - Long-Rating 2",null,null,null,null,null,null,null,null,0]
["Sch IIF","Other Sundry",null,"Credit Derivatives - Down - After - Short- Rating 8",null,null,null,null,null,null,null,null,0]
["Sch IIF","Other Sundry",null,"Counterparty Default Risk - MV of Collateral - Rating 4",null,null,null,null,null,null,null,null,0]
["Sch IIF","Other Sundry",null,"NAIC Rating Resid. MBS - Class 2",null,null,null,null,null,null,null,null,0]
["Sch IIF","Other Sundry",null,"NAIC Rating Mort. Loan - Class 2",null,null,null,null,null,null,null,null,0]
["Sch III","Losses by Line",null,"Reserve - US Professional",0,null,0]
["Sch III","Losses by Line",null,"Res. Gross - Energy Non-Proportional",null,null,null,null,null,null,null,null,0]
["Sch III","Losses by Line",null,"Res. Net - Property",null,null,null,null,null,null,null,null,0]
["Sch III","Losses by Line",null,"Res. Net - Int'l Motor",null,null,null,null,null,null,null,null,0]
["Sch III","Losses by Line",null,"Note 16di - US Professional Non-Prop.",null,null,null,null,null,null,null,null,0]
["Sch III","Losses by Line",null,"Note 16dii - Personal Acc. Non Prop.",null,null,null,null,null,null,null,null,0]
["Sch III","Losses by Line",null,"Note 17d - Personal Accident",null,null,null,null,null,null,null,null,0]
["Sch IIIA","Losses by Zone",null,"Res. Zn 1 - US Casualty",null,null,null,null,null,null,null,null,0]
["Sch IIIA","Losses by Zone",null,"Res. Zn 2 - Credit Surety Non-Prop.",null,null,null,null,null,null,null,null,0]
["Sch IIIA","Losses by Zone",null,"Res. Zn 2 - Retro Property",null,null,null,null,null,null,null,null,0]
["Sch IIIA","Losses by Zone",null,"Res. Zn 3 - Int'l Casualty Non-Prop.",null,null,null,null,null,null,null,null,0]
["Sch IIIA","Losses by Zone",null,"Res. Zn 5 - Property Non-Proportion",null,null,null,null,null,null,null,null,0]
["Sch IIIA","Losses by Zone",null,"Res. Zn 5 - Credit Surety",null,null,null,null,null,null,null,null,0]
["Sch IIIA","Losses by Zone",null,"Res. Zn 6 - Retro Property",null,null,null,null,null,null,null,null,0]
["Sch IIIA","Losses by Zone",null,"Res. Zn 7 - Personal Accident",null,null,null,null,null,null,null,null,0]
["Sch IIIA","Losses by Zone",null,"Res. Zn 8 - Credit Surety Non-Prop.",null,null,null,null,null,null,null,null,0]
["Sch IIIA","Losses by Zone",null,"Res. Zn 9 - Aviation",null,null,null,null,null,null,null,null,0]
["Sch IIIA","Losses by Zone",null,"Res. Zn 9 - Int'l Casualty Non-Prop.",null,null,null,null,null,null,null,null,0]
["Sch IIIA","Losses by Zone",null,"Res. Zn 10 - US Specialty",null,null,null,null,null,null,null,null,0]
["Sch IIIA","Losses by Zone",null,"Res. Zn 11 - Credit Surety",null,null,null,null,null,null,null,null,0]
["Sch IIIA","Losses by Zone",null,"Res. Zn 12 - Retro Property",null,null,null,null,null,null,null,null,0]
["Sch IIIA","Losses by Zone",null,"Res. Zn 13 - US Casualty Non-Prop.",null,null,null,null,null,null,null,null,0]
["Sch IIIA","Losses by Zone",null,"Res. Zn 14 - Aviation Non-Proportional",null,null,null,null,null,null,null,null,0]
["Sch IIIA","Losses by Zone",null,"Res. Zn 14 - Total",null,null,null,null,null,null,null,null,0]
["Sch IIIA","Losses by Zone",null,"Res. Zn 16 - Credit Surety Non-Prop.",null,null,null,null,null,null,null,null,0]
["Sch IIIA","Losses by Zone",null,"Res. Zn 16 - US Casualty",null,null,null,null,null,null,null,null,0]
["Sch IIIA","Losses by Zone",null,"Res. Zn 17 - Int'l Motor Non-Prop.",null,null,null,null,null,null,null,null,0]
["Sch IIIA","Losses by Zone",null,"Res. Zn 18 - Int'l Casualty Non-Prop.",null,null,null,null,null,null,null,null,0]
["Sch IIIA","Losses by Zone",null,"Res. Total - Personal Accident",null,null,null,null,null,null,null,null,0]
["Sch IV","Premium by Line",null,"Unrelated - Property Non-Proportion",0,null,0,null,0,null,0]
["Sch IV","Premium by Line",null,"Related - Energy",0,null,0,null,0,null,0]
["Sch IV","Premium by Line",null,"Related - US Specialty",0,null,0,null,0,null,0]
["Sch IV","Premium by Line",null,"NPW - Int'l Casualty Non-Prop.",0,null,0,null,0,null,0]
["Sch IVC","Premium by Zone",null,"NPW Zn 1 - Total",null,null,null,null,0]
["Sch IVC","Premium by Zone",null,"NPW Zn 2 - Retro Property",null,null,null,null,0]
["Sch IVC","Premium by Zone",null,"NPW Zn 3 - US Casualty",null,null,null,null,0]
["Sch IVC","Premium by Zone",null,"NPW Zn 4 - Aviation Non-Proportional",null,null,null,null,0]
["Sch IVC","Premium by Zone",null,"NPW Zn 4 - Int'l Casualty",null,null,null,null,0]
["Sch IVC","Premium by Zone",null,"NPW Zn 5 - US Specialty Non-Prop.",null,null,null,null,0]
["Sch IVC","Premium by Zone",null,"NPW Zn 7 - Personal Accident",null,null,null,null,0]
["Sch IVC","Premium by Zone",null,"NPW Zn 7 - Total",null,null,null,null,0]
["Sch IVC","Premium by Zone",null,"NPW Zn 8 - US Professional",null,null,null,null,0]
["Sch IVC","Premium by Zone",null,"NPW Zn 9 - Credit Surety",null,null,null,null,0]
["Sch IVC","Premium by Zone",null,"NPW Zn 9 - Health",null,null,null,null,0]
["Sch IVC","Premium by Zone",null,"NPW Zn 10 - Int'l Casualty",null,null,null,null,0]
["Sch IVC","Premium by Zone",null,"NPW Zn 12 - Personal Acc. Non Prop.",null,null,null,null,0]
["Sch IVC","Premium by Zone",null,"NPW Zn 13 - Personal Accident",null,null,null,null,0]
["Sch IVC","Premium by Zone",null,"NPW Zn 13 - Energy Non-Proportional",null,null,null,null,0]
["Sch IVC","Premium by Zone",null,"NPW Zn 14 - US Specialty",null,null,null,null,0]
["Sch IVC","Premium by Zone",null,"NPW Zn 15 - US Specialty Non-Prop.",null,null,null,null,0]
["Sch IVC","Premium by Zone",null,"NPW Zn 15 - Health",null,null,null,null,0]
["Sch IVC","Premium by Zone",null,"NPW Zn 17 - Property",null,null,null,null,0]
["Sch IVC","Premium by Zone",null,"NPW Zn 18 - Credit Surety",null,null,null,null,0]
["Sch IVD","Exposure by Line",null,"NPE - Est. Next 12 Month - Aviation Non-Proportional",null,null,null,null,0]
["Sch IVD","Exposure by Line",null,"NPE - Est. Next 12 Month - Int'l Motor Non-Prop.",null,null,null,null,0]
["Sch IVD","Exposure by Line",null,"NPE FP Existing - US Casualty Non-Prop.",null,null,null,null,0]
["Sch IVD","Exposure by Line",null,"NPE FP Future - Aviation",null,null,null,null,0]
["Sch IVD","Exposure by Line",null,"Gross Premium Exposure - Int'l Motor Non-Prop.",null,null,null,null,0]
["Sch IVE","Net Prem by Zone",null,"NPE Zn 1 - Energy",null,null,null,null,0]
["Sch IVE","Net Prem by Zone",null,"NPE Zn 2 - Property Non-Proportion",null,null,null,null,0]
["Sch IVE","Net Prem by Zone",null,"NPE Zn 2 - Retro Property",null,null,null,null,0]
["Sch IVE","Net Prem by Zone",null,"NPE Zn 3 - US Casualty Non-Prop.",null,null,null,null,0]
["Sch IVE","Net Prem by Zone",null,"NPE Zn 4 - Credit Surety Non-Prop.",null,null,null,null,0]
["Sch IVE","Net Prem by Zone",null,"NPE Zn 5 - US Professional Non-Prop.",null,null,null,null,0]
["Sch IVE","Net Prem by Zone",null,"NPE Zn 6 - Int'l Motor",null,null,null,null,0]
["Sch IVE","Net Prem by Zone",null,"NPE Zn 6 - Total",null,null,null,null,0]
["Sch IVE","Net Prem by Zone",null,"NPE Zn 8 - Personal Acc. Non Prop.",null,null,null,null,0]
["Sch IVE","Net Prem by Zone",null,"NPE Zn 8 - Retro Property",null,null,null,null,0]
["Sch IVE","Net Prem by Zone",null,"NPE Zn 9 - Retro Property",null,null,null,null,0]
["Sch IVE","Net Prem by Zone",null,"NPE Zn 10 - Credit Surety Non-Prop.",null,null,null,null,0]
["Sch IVE","Net Prem by Zone",null,"NPE Zn 11 - Aviation Non-Proportional",null,null,null,null,0]
["Sch IVE","Net Prem by Zone",null,"NPE Zn 12 - US Professional",null,null,null,null,0]
["Sch IVE","Net Prem by Zone",null,"NPE Zn 13 - US Casualty Non-Prop.",null,null,null,null,0]
["Sch IVE","Net Prem by Zone",null,"NPE Zn 14 - Property Catastrophe",null,null,null,null,0]
["Sch IVE","Net Prem by Zone",null,"NPE Zn 14 - Structured / Finite R/I",null,null,null,null,0]
["Sch IVE","Net Prem by Zone",null,"NPE Zn 15 - US Casualty Non-Prop.",null,null,null,null,0]
["Sch IVE","Net Prem by Zone",null,"NPE Zn 16 - Total",null,null,null,null,0]
["Sch IVE","Net Prem by Zone",null,"NPE Zn 17 - Retro Property",null,null,null,null,0]
["Sch IVE","Net Prem by Zone",null,"NPE Zn 18 - Energy",null,null,null,null,0]
["Sch IVF","Exposure of Risk",null,"1. # of Subsidiaries - 7.Denmark",null,null,null,null,0]
["Sch IVF","Exposure of Risk",null,"1. # of Subsidiaries - 18.Luxembourg",null,null,null,null,0]
["Sch IVF","Exposure of Risk",null,"2. GPW Cat - 1.Austria",null,null,null,null,0]
["Sch IVF","Exposure of Risk",null,"2. GPW Cat - 35.Japan",null,null,null,null,0]
["Sch IVF","Exposure of Risk",null,"3. GPW Other - 21.Poland",null,null,null,null,0]
["Sch IVF","Exposure of Risk",null,"3. GPW Other - 27.Sweden",null,null,null,null,0]
["Sch IVF","Exposure of Risk",null,"4. Ceded Cat - 19.Malta",null,null,null,null,0]
["Sch IVF","Exposure of Risk",null,"5. Ceded Other - 5.Cyprus",null,null,null,null,0]
["Sch IVF","Exposure of Risk",null,"5. Ceded Other - 17.Lithuania",null,null,null,null,0]
["Sch IVF","Exposure of Risk",null,"6. Losses Cat - 1.Austria",null,null,null,null,0]
["Sch IVF","Exposure of Risk",null,"6. Losses Cat - 33.Canada",null,null,null,null,0]
["Sch IVF","Exposure of Risk",null,"6. Losses Cat - 36.Hong Kong",null,null,null,null,0]
["Sch IVF","Exposure of Risk",null,"7. Losses Other - 31.Switzerland",null,null,null,null,0]
["Sch IVF","Exposure of Risk",null,"8. GB Reserves - 9.Finland",null,null,null,null,0]
["Sch IVF","Exposure of Risk",null,"8. GB Reserves - 30.United Kingdom",null,null,null,null,0]
["Sch V","Risk Mgnt",null,"Actual Attritional Loss - Relevant Yr.",null,null,null,null,0]
["Sch Va","Governance",null,"Director Position - 10",0]
["Sch Va","Governance",null,"Director Residence - 9",0]
["Sch Va","Governance",null,"Director Work Experience - 1",0]
["Sch Va","Governance",null,"Director Status on Board - 6","Select"]
["Sch Va","Governance",null,"Director Status on Board - 16","Select"]
["Sch Va","Governance",null,"Executive Position - 2",0]
["Sch Va","Governance",null,"Executive Residence - 11",0]
["Sch Va","Governance",null,"Executive Work Experience - 17",0]
["Sch Va","Governance",null,"Executive Employee Arrangement - 6","Select"]
["Sch Va","Governance",null,"Executive Responsibilities - 14","Select"]
["Sch Va","Governance",null,"Risk Mgmt. - Operation Location",0]
["Sch Va","Governance",null,"Inv. Strategy - Provider Type","Select"]
["Sch Va","Governance",null,"Services Outsourced - Compliance","Select Yes/No"]
["Sch Va","Governance",null,"Services in BDA - Internal Audit","Select Yes/No"]
["Sch Va","Governance",null,"Insurer Asset - 5",null,null,null,null,0]
["Sch Va","Governance",null,"Insurer Capital & Surplus - 1",null,null,null,null,0]
["Sch Vc","Group Structure",null,"Issuer/Borrower Name - 11",0]
["Sch Vc","Group Structure",null,"Issuer Jurisdiction - 2",0]
["Sch Vc","Group Structure",null,"Investor/Lendor Name - 13",0]
["Sch Vc","Group Structure",null,"Investor/Lendor Name - 14",0]
["Sch Vc","Group Structure",null,"Investor Jurisdiction - 23",0]
["Sch Vc","Group Structure",null,"Transaction Details - 23",0]
["Sch Vc","Group Structure",null,"Exposure Value - 8",0]
["Sch Vc","Group Structure",null,"Assuming Party Name - 5",0]
["Sch Vc","Group Structure",null,"Assuming Party Jurisdiction - 1",0]
["Sch Vc","Group Structure",null,"Assuming Party Rating - 4",0]
["Sch Vc","Group Structure",null,"Ceding Party Name - 10",0]
["Sch Vc","Group Structure",null,"Ceding Party Name - 14",0]
["Sch Vc","Group Structure",null,"Ceding Party Jurisdiction - 18",0]
["Sch Vc","Group Structure",null,"Ceding Party Rating - 20",0]
["Sch Vc","Group Structure",null,"Gross Exposure Limit - 5",0]
["Sch Vc","Group Structure",null,"Net Exposure Limit - 1",0]
["Sch Vc","Group Structure",null,"Gross Premium Written - 14",0]
["Sch Vc","Group Structure",null,"Net Premium Written - 7",0]
["Sch Vc","Group Structure",null,"Q4 Proportion of Internal R/I",0]
["Sch Vc","Group Structure",null,"Counterparty Name - 15",0]
["Sch Vc","Group Structure",null,"Counterparty Name - 32",0]
["Sch Vc","Group Structure",null,"Counterparty Location - 10",0]
["Sch Vc","Group Structure",null,"Exposure Fair Value - 11",0]
["Sch Vc","Group Structure",null,"Exposure Fair Value - 26",0]
["Sch Vc","Group Structure",null,"Exposure Market Value - 8",0]
["Sch Vc","Group Structure",null,"Exposure Market Value - 17",0]
["Sch Vc","Group Structure",null,"Transaction Type - 5",0]
["Sch Vc","Group Structure",null,"Transaction Type - 33",0]
["Sch Ve","Scenario Tests",null,"R8 Scenario Severe Inflation - Liabilities",null,null,null,null,null,null,null,null,0]
["Sch Ve","Scenario Tests",null,"Mortgage Loan - Shock 1 Rate",null,null,null,null,null,null,null,null,9.4700000000000006E-2]
["Sch Ve","Scenario Tests",null,"Mortgage Loan - Claims - Related - R/I - Other",null,null,null,null,null,null,null,null,0]
["Sch Ve","Scenario Tests",null,"UW1. Gross Loss ",null,null,null,null,null,null,null,null,0]
["Sch Ve","Scenario Tests",null,"IE1. Gross Loss ",null,null,null,null,null,null,null,null,0]
["Sch Ve","Scenario Tests",null,"M1. Net Loss - After Reinsurance",null,null,null,null,null,null,null,null,0]
["Sch Ve","Scenario Tests",null,"IW2. Net Loss - Cat Mitigation Tech.",null,null,null,null,null,null,null,null,0]
["Sch Ve","Scenario Tests",null,"A1. Return Period 2",null,null,null,null,null,null,null,null,0]
["Sch Ve","Scenario Tests",null,"IE1. Catastrophe Model",null,null,null,null,null,null,null,null,0]
["Sch Ve","Scenario Tests",null," Other - Net Loss 1 - Cat. Mitigation Tech.",null,null,null,null,null,null,null,null,0]
["Sch Ve","Scenario Tests",null,"Latent Liab - Scen 1 - NPW - Product Liab - Pro - Emerging Mkts",null,null,null,null,null,null,null,null,0]
["Sch Ve","Scenario Tests",null,"Latent Liab - Scen 1 - NPW - Empl. Liab/Workers Comp - Pro - China",null,null,null,null,null,null,null,null,0]
["Sch Ve","Scenario Tests",null,"Latent Liab - Scen 1 - Prem. Growth - Empl. Liab/Workers Comp - Pro - US/Canada",null,null,null,null,null,null,null,null,0]
["Sch Ve","Scenario Tests",null,"Latent Liab - Scen 1 - Yr Growth - Product Liab - Non Pro - Other Developed Mkts",null,null,null,null,null,null,null,null,0]
["Sch Ve","Scenario Tests",null,"Latent Liab - Scen 1 - Yr Growth - Empl. Liab/Workers Comp - Pro - EEA & Switzerland",null,null,null,null,null,null,null,null,0]
["Sch Ve","Scenario Tests",null,"Latent Liab - Scen 2 - US Enviro - Cur Yr - GAAP Reserves",null,null,null,null,null,null,null,null,0]
["Sch Ve","Scenario Tests",null,"Latent Liab - Scen 2 - UK Asbestos - Cur Yr - loading for future medical advances",null,null,null,null,null,null,null,null,0]
["Sch Ve","Scenario Tests",null," Terrorism Loss 1 - State",null,null,null,null,null,null,null,null,0]
["Sch Ve","Scenario Tests",null," Terrorism Loss 4 - Location",null,null,null,null,null,null,null,null,0]
["Sch Ve","Scenario Tests",null," Terrorism Loss 6 - Gross Loss",null,null,null,null,null,null,null,null,0]
["Sch Ve","Scenario Tests",null," Terrorism Loss 9 - Location",null,null,null,null,null,null,null,null,0]
["Sch Ve","Scenario Tests",null,"Cyber - 1. Cyber GPW Non-Proportional - R/I",0,null,0,null,null,null,null,null,0,null,0]
["Sch Ve","Scenario Tests",null,"Cyber - 1. Gross Cyber Limit - Package",0,null,0,null,null,null,null,null,0,null,0]
["Sch Ve","Scenario Tests",null,"Cyber - 1. Claims Paid - Related",0,null,0]
["Sch Ve","Scenario Tests",null,"Cyber - 1. # of Policies Direct - Canada",0,null,null,null,null,null,null,null,0]
["Sch Ve","Scenario Tests",null,"Cyber - 1. Cyber NPW-Direct - US",0,null,null,null,null,null,null,null,0]
["Sch Ve","Scenario Tests",null,"Cyber - 1. Cyber NPW-R/I - Japan",0,null,null,null,null,null,null,null,0]
["Sch Ve","Scenario Tests",null,"Cyber - 1. # of Policies Package - Australia & New Zealand",0,null,null,null,null,null,null,null,0]
["Sch Ve","Scenario Tests",null,"Cyber - 1. Cyber NPW-Package - Japan",0,null,null,null,null,null,null,null,0]
["Sch Ve","Scenario Tests",null,"Cyber - 2. Exclusion Clause - Property Non-Proportional",null,null,null,null,null,null,null,null,"Select"]
["Sch Ve","Scenario Tests",null,"Cyber - 2. Exclusion Clause - International Casualty Non-Motor",null,null,null,null,null,null,null,null,"Select"]
["Sch Ve","Scenario Tests",null,"Cyber - 2. Current Yr US Specialty Non-Proportional",null,null,null,null,null,null,null,null,0]
["Sch Ve","Scenario Tests",null,"Cyber - 2. Prior Yr US Professional Non-Proportional",null,null,null,null,null,null,null,null,0]
["Sch Ve","Scenario Tests",null,"Cyber - 2. Claims Made or Occurrence -  Structured/Finite reinsurance",null,null,null,null,null,null,null,null,"Select from Drop-down"]
["Sch Ve","Scenario Tests",null,"Cyber - 3. 1. Cloud Outage - Gross Coverage - 5. GL / Failure to Supply",null,null,null,null,null,null,null,null,0]
["Sch Ve","Scenario Tests",null,"Cyber - 3. 2. Ransomeware - Gross Coverage - 4. D&O",null,null,null,null,null,null,null,null,0]
["Sch Ve","Scenario Tests",null,"Cyber - 4. Occurrence Return Limit",null,null,null,null,null,null,null,null,0]
["Sch Ve","Scenario Tests",null,"B5) Compliance with Data Protection requirements","Select Yes/No"]
["Sch Ve","Scenario Tests",null,"B12) Staff complete cybersecurity training","Select Yes/No"]
["Sch Vg","GAAP - BSCR Rec",null,"Assets Fin. Stmts. - Prepaid Expenses",0]
["Sch Vg","GAAP - BSCR Rec",null,"Assets Form 1SFS - Gross Premium Provision",0]
["Sch Vg","GAAP - BSCR Rec",null,"Liab. Form 1SFS - Risk Margin",0]
["Sch Vg","GAAP - BSCR Rec",null,"Liab. Form 1SFS - Other 2",0]
["Sch Vg","GAAP - BSCR Rec",null,"C&S Form 1SFS - Gross Loss Provision",0]
["Sch Vg","GAAP - BSCR Rec",null,"C&S Form 1SFS - Other 1",0]
["Sch Vk","Deposit Details",null,"Name of Exposure - 16",0]
["Sch Vk","Deposit Details",null,"Assets in Trust - 4",0]
["Sch Vk","Deposit Details",null,"Assets in Trust - 18",0]
["Sch Vk","Deposit Details",null,"Collateral - 15",0]
["Sch Vk","Deposit Details",null,"GPW for the Period - 1",0]
["Sch Vk","Deposit Details",null,"GPW for the Period - Total",0]
["Sch Vk","Deposit Details",null,"Exposure - 5",0]
["Sch Vk","Deposit Details",null,"Limit @ 99.0 TVAR - 3",0]
["Sch Vk","Deposit Details",null,"Limit @ 99.0 TVAR - 14",0]
["Sch Vk","Deposit Details",null,"Unlimited Exposure Details - 14",0]
["Sch V(L)","Segregated Acc","(M)","Other Liabilities - Cell 1",0]
["Sch V(L)","Segregated Acc","(X) ","Collateral required to be posted by Cell/Insurer - Cell 1",0]
["Sch V(L)","Segregated Acc","(AO) ","Limited recourse  - Cell 1","Select Yes/No"]
["Sch V(L)","Segregated Acc","(N)","Statutory Capital - Cell 2",0]
["Sch V(L)","Segregated Acc","(AC) ","currency used - Cell 2","Select Currency"]
["Sch V(L)","Segregated Acc","(AQ) ","i) GPW - Cell 2",0]
["Sch V(L)","Segregated Acc","(AQ) ","v) Premiums Ceded - Cell 2",0]
["Sch V(L)","Segregated Acc","(Q)","Net Premiums Written - Cell 3",0]
["Sch V(L)","Segregated Acc","(AD) ","Cell to Cell Activity  - Cell 3","Confirm Activity"]
["Sch V(L)","Segregated Acc","(D)","Cash and Time Deposits - Cell 4",0]
["Sch V(L)","Segregated Acc","(V) ","Capital Returned & Dividends Paid/Payable - Cell 4",0]
["Sch V(L)","Segregated Acc","(AH) ","Details of Benefical Owners of Risk - Cell 4","Confirm"]
["Sch V(L)","Segregated Acc","(AQ) ","iii) GPW - Cell 4",0]
["Sch V(L)","Segregated Acc","(V) ","Capital Returned & Dividends Paid/Payable - Cell 5",0]
["Sch V(L)","Segregated Acc","(AA) ","Limit of Cell  Funding/ Collateral - Cell 5","Confirm Funding / Collateral"]
["Sch V(L)","Segregated Acc","(AQ) ","ii) NPW - Cell 5",0]
["Sch V(L)","Segregated Acc","(Q)","Net Premiums Written - Cell 6",0]
["Sch V(L)","Segregated Acc","(W) ","Is Collateral required - Cell 6","Select Yes/No"]
["Sch V(L)","Segregated Acc","(AQ) ","i) Statutory Line of Business - Cell 6","Select Line of Business"]
["Sch V(L)","Segregated Acc","(J)","Other Assets - Cell 7",0]
["Sch V(L)","Segregated Acc","(R)","Total Income (Insurance and Other) - Cell 7",0]
["Sch V(L)","Segregated Acc","(AJ) ","Benefical Owners - Cell 7","Confirm"]
["Sch V(L)","Segregated Acc","(H)","Investments in and Advances to Affiliates - Cell 8",0]
["Sch V(L)","Segregated Acc","(AA.1) ","Aggregate Limit Amount - Cell 8",0]
["Sch V(L)","Segregated Acc","(AM) ","Benefical Ownership Gov Intrument - Cell 8","Confirm Instrument"]
["Sch V(L)","Segregated Acc","(AQ) ","iv) GPW - Cell 8",0]
["Sch V(L)","Segregated Acc","(I)","Funds Held by Ceding Reinsurers - Cell 9",0]
["Sch V(L)","Segregated Acc","(AA.2) ","Limit of Cell  Funding/ Collateral Details - Cell 9",0]
["Sch V(L)","Segregated Acc","(AQ) ","v) Premiums Ceded - Cell 9",0]
["Sch V(L)","Segregated Acc","(P)","Gross Premiums Written - Cell 10",0]
["Sch V(L)","Segregated Acc","(AF) ","Cell Deficit - Cell 10",0]
["Sch V(L)","Segregated Acc","(AQ) ","i) NPW - Cell 10",0]
["Sch V(L)","Segregated Acc","(AQ) ","v) GPW - Cell 10",0]
["Sch V(L)","Segregated Acc","(U) ","Other Expenses - Cell 11",0]
["Sch V(L)","Segregated Acc","(AQ) ","i) Statutory Line of Business - Cell 11","Select Line of Business"]
["Sch V(L)","Segregated Acc","(K)","Unearned Premiums - Cell 12",0]
["Sch V(L)","Segregated Acc","(P)","Gross Premiums Written - Cell 12",0]
["Sch V(L)","Segregated Acc","(AO) ","Limited recourse  - Cell 12","Select Yes/No"]
["Sch V(L)","Segregated Acc","(C)","Direct Insurer, Reinsurer or Both - Cell 13","Select Premiums Written"]
["Sch V(L)","Segregated Acc","(L)","Net Loss & Loss Expense Provisions - Cell 13",0]
["Sch V(L)","Segregated Acc","(AG.1) ","Additional Capital Support Details - Cell 13",0]
["Sch V(L)","Segregated Acc","(B)","Cell name - Cell 14",0]
["Sch V(L)","Segregated Acc","(U) ","Other Expenses - Cell 14",0]
["Sch V(L)","Segregated Acc","(AH) ","Details of Benefical Owners of Risk - Cell 14","Confirm"]
["Sch V(L)","Segregated Acc","(AQ) ","ii) Premiums Ceded - Cell 14",0]
["Sch V(L)","Segregated Acc","(G)","Unquoted: Bonds, and Debentures - Cell 15",0]
["Sch V(L)","Segregated Acc","(V) ","Capital Returned & Dividends Paid/Payable - Cell 15",0]
["Sch V(L)","Segregated Acc","(AQ) ","iv) Statutory Line of Business - Cell 15","Select Line of Business"]
["Sch V(L)","Segregated Acc","(I)","Funds Held by Ceding Reinsurers - Cell 16",0]
["Sch V(L)","Segregated Acc","(AB) ","Cell  in Run-Off - Cell 16","Select Yes/No"]
["Sch V(L)","Segregated Acc","(AL) ","Jurisdiction - Cell 16","Confirm Jurisdiction"]
["Sch V(L)","Segregated Acc","(AQ) ","v) GPW - Cell 16",0]
["Sch V(L)","Segregated Acc","(AA) ","Limit of Cell Funding/ Collateral - Cell 17","Confirm Funding / Collateral"]
["Sch V(L)","Segregated Acc","(AE.1) ","General Cell to Cell Activity Details - Cell 17",0]
["Sch V(L)","Segregated Acc","(AQ) ","iv) Statutory Line of Business - Cell 17","Select Line of Business"]
["Sch V(L)","Segregated Acc","(U) ","Other Expenses - Cell 18",0]
["Sch V(L)","Segregated Acc","(AK) ","Benefical Ownership - Cell 18","Confirm"]
["Sch V(L)","Segregated Acc","(AQ) ","iv) NPW - Cell 18",0]
["Sch V(L)","Segregated Acc","(J)","Other Assets - Cell 19",0]
["Sch V(L)","Segregated Acc","(AC) ","currency used - Cell 19","Select Currency"]
["Sch V(L)","Segregated Acc","(AQ) ","iv) NPW - Cell 19",0]
["Sch V(L)","Segregated Acc","(R)","Total Income (Insurance and Other) - Cell 20",0]
["Sch V(L)","Segregated Acc","(AD.1) ","Cell to Cell Activity Details - Cell 20",0]
["Sch V(L)","Segregated Acc","(AP) ","Operational Risk Mitigants - Cell 20","Confirm Mitigants & Attach Support"]
["Sch V(L)","Segregated Acc","(A)","Cell Ref # - Cell 21",0]
["Sch V(L)","Segregated Acc","(AF) ","Cell Deficit - Cell 21",0]
["Sch V(L)","Segregated Acc","(AG.1) ","Additional Capital Support Details - Cell 21",0]
["Sch V(L)","Segregated Acc","(B)","Cell name - Cell 22",0]
["Sch V(L)","Segregated Acc","(X) ","Collateral required to be posted by Cell/Insurer - Cell 22",0]
["Sch V(L)","Segregated Acc","(AG) ","Additional Capital Support - Cell 22","Confirm"]
["Sch V(L)","Segregated Acc","(AQ) ","iii) NPW - Cell 22",0]
["Sch V(L)","Segregated Acc","(X) ","Collateral required to be posted by Cell/Insurer - Cell 23",0]
["Sch V(L)","Segregated Acc","(AA.2) ","Limit of Cell 2 Funding/ Collateral Details - Cell 23",0]
["Sch V(L)","Segregated Acc","(AQ) ","ii) GPW - Cell 23",0]
["Sch V(L)","Segregated Acc","(S) ","Net loss and Loss Expenses Incurred - Cell 24",0]
["Sch V(L)","Segregated Acc","(AK) ","Benefical Ownership - Cell 24","Confirm"]
["Sch V(L)","Segregated Acc","(AQ) ","i) Premiums Ceded - Cell 24",0]
["Sch V(L)","Segregated Acc","(H)","Investments in and Advances to Affiliates - Cell 25",0]
["Sch V(L)","Segregated Acc","(T) ","Commissions and Brokerage - Cell 25",0]
["Sch V(L)","Segregated Acc","(AK.1) ","Benefical Ownership Add. Details - Cell 25",0]
["Sch V(L)","Segregated Acc",null,"i) NPW - Gen Acc.",0]
["Sch V(L)","Segregated Acc",null,"v) NPW - Gen Acc.",0]
["Sch V(m)","Alternative Capital",null,"Name of Cedant - 13",0]
["Sch V(m)","Alternative Capital",null,"Contract Reference - 5",0]
["Sch V(m)","Alternative Capital",null,"Contract Reference - 22",0]
["Sch V(m)","Alternative Capital",null,"Statutory Line of Business - 14","Select from Drop Down"]
["Sch V(m)","Alternative Capital",null,"Statutory Line of Business - 24","Select from Drop Down"]
["Sch V(m)","Alternative Capital",null,"Agg. Max. Limit at Inception - 1",0]
["Sch V(m)","Alternative Capital",null,"Agg. Max. Limit at Inception - 9",0]
["Sch V(m)","Alternative Capital",null,"Net Agg. Max. Limit at End of Year - 8",0]
["Sch V(m)","Alternative Capital",null,"Inception Date of Cover Period - 13","00:00:00"]
["Sch V(m)","Alternative Capital",null,"Effective Date of Contract - 16","00:00:00"]
["Sch V(m)","Alternative Capital",null,"Effective Date of Contract - 23","00:00:00"]
["Sch V(m)","Alternative Capital",null,"Cover Period GPW - 3",0]
["Sch V(m)","Alternative Capital",null,"Cover Period GPW - 25",0]
["Sch V(m)","Alternative Capital",null,"Cover Period NPW - 14",0]
["Sch V(m)","Alternative Capital",null,"Attachment Point - 8",0]
["Sch V(m)","Alternative Capital",null,"Aggregate Losses Beg. Of Year - 17",0]
["Sch V(m)","Alternative Capital",null,"Aggregate Losses Incurred - 12",0]
["Sch V(m)","Alternative Capital",null,"Aggregate Losses End Of Year - 2",0]
["Sch V(m)","Alternative Capital",null,"Aggregate Losses End Of Year - 21",0]
["Sch V(m)","Alternative Capital",null,"Collateral Reserve Buffer - 13",0]
["Sch V(m)","Alternative Capital",null,"Collateral Reserve Buffer - Total",0]
["Sch V(m)","Alternative Capital",null,"Currency of Exposure - 24","Select from Drop Down"]
["Sch V(m)","Alternative Capital",null,"Collateral Rating - 6","Select from Drop Down"]
["Sch V(m)","Alternative Capital",null,"Amount of Collateral - 8",0]
["Sch V(m)","Alternative Capital",null,"Amount of Collateral - 16",0]
["Sch V(m)","Alternative Capital",null,"Comments - 15",0]
["Sch VI","Schedule of Assets",null,"(A) Cash - Asset Type 18","Select",null,null,null,null,null,null,null,"Select"]
["Sch VI","Schedule of Assets",null,"(A) Cash - Asset Type 24","Select",null,null,null,null,null,null,null,"Select"]
["Sch VI","Schedule of Assets",null,"(A) Cash - Asset Type 63","Select",null,null,null,null,null,null,null,"Select"]
["Sch VI","Schedule of Assets",null,"(A) Cash - Asset Type 69","Select",null,null,null,null,null,null,null,"Select"]
["Sch VI","Schedule of Assets",null,"(A) Cash - Asset Type 100","Select",null,null,null,null,null,null,null,"Select"]
["Sch VI","Schedule of Assets",null,"(A) Cash - Asset Type 125","Select",null,null,null,null,null,null,null,"Select"]
["Sch VI","Schedule of Assets",null,"(A) Cash - Asset Type 137","Select",null,null,null,null,null,null,null,"Select"]
["Sch VI","Schedule of Assets",null,"(A) Cash - Asset Type 156","Select",null,null,null,null,null,null,null,"Select"]
["Sch VI","Schedule of Assets",null,"(A) Cash - Asset Type 174","Select",null,null,null,null,null,null,null,"Select"]
["Sch VI","Schedule of Assets",null,"(A) Cash - Currency 12","Select",null,null,null,null,null,null,null,"Select"]
["Sch VI","Schedule of Assets",null,"(A) Cash - Currency 33","Select",null,null,null,null,null,null,null,"Select"]
["Sch VI","Schedule of Assets",null,"(A) Cash - Currency 47","Select",null,null,null,null,null,null,null,"Select"]
["Sch VI","Schedule of Assets",null,"(A) Cash - Currency 66","Select",null,null,null,null,null,null,null,"Select"]
["Sch VI","Schedule of Assets",null,"(A) Cash - Currency 82","Select",null,null,null,null,null,null,null,"Select"]
["Sch VI","Schedule of Assets",null,"(A) Cash - Currency 103","Select",null,null,null,null,null,null,null,"Select"]
["Sch VI","Schedule of Assets",null,"(A) Cash - Currency 134","Select",null,null,null,null,null,null,null,"Select"]
["Sch VI","Schedule of Assets",null,"(A) Cash - Currency 162","Select",null,null,null,null,null,null,null,"Select"]
["Sch VI","Schedule of Assets",null,"(A) Cash - Currency 169","Select",null,null,null,null,null,null,null,"Select"]
["Sch VI","Schedule of Assets",null,"(A) Cash - Currency 199","Select",null,null,null,null,null,null,null,"Select"]
["Sch VI","Schedule of Assets",null,"(A) Cash - Rating 25","Select",null,null,null,null,null,null,null,"Select"]
["Sch VI","Schedule of Assets",null,"(A) Cash - Rating 32","Select",null,null,null,null,null,null,null,"Select"]
["Sch VI","Schedule of Assets",null,"(A) Cash - Rating 60","Select",null,null,null,null,null,null,null,"Select"]
["Sch VI","Schedule of Assets",null,"(A) Cash - Rating 91","Select",null,null,null,null,null,null,null,"Select"]
["Sch VI","Schedule of Assets",null,"(A) Cash - Rating 112","Select",null,null,null,null,null,null,null,"Select"]
["Sch VI","Schedule of Assets",null,"(A) Cash - Rating 128","Select",null,null,null,null,null,null,null,"Select"]
["Sch VI","Schedule of Assets",null,"(A) Cash - Rating 147","Select",null,null,null,null,null,null,null,"Select"]
["Sch VI","Schedule of Assets",null,"(A) Cash - Rating 165","Select",null,null,null,null,null,null,null,"Select"]
["Sch VI","Schedule of Assets",null,"(A) Cash - Rating 182","Select",null,null,null,null,null,null,null,"Select"]
["Sch VI","Schedule of Assets",null,"(A) Cash - Nominal 19",0,null,null,null,null,null,null,null,0]
["Sch VI","Schedule of Assets",null,"(A) Cash - Nominal 41",0,null,null,null,null,null,null,null,0]
["Sch VI","Schedule of Assets",null,"(A) Cash - Nominal 54",0,null,null,null,null,null,null,null,0]
["Sch VI","Schedule of Assets",null,"(A) Cash - Nominal 78",0,null,null,null,null,null,null,null,0]
["Sch VI","Schedule of Assets",null,"(A) Cash - Nominal 89",0,null,null,null,null,null,null,null,0]
["Sch VI","Schedule of Assets",null,"(A) Cash - Nominal 111",0,null,null,null,null,null,null,null,0]
["Sch VI","Schedule of Assets",null,"(A) Cash - Nominal 145",0,null,null,null,null,null,null,null,0]
["Sch VI","Schedule of Assets",null,"(A) Cash - Nominal 170",0,null,null,null,null,null,null,null,0]
["Sch VI","Schedule of Assets",null,"(A) Cash - Nominal 176",0,null,null,null,null,null,null,null,0]
["Sch VI","Schedule of Assets",null,"(A) Cash - Fair Value 7",0,null,null,null,null,null,null,null,0]
["Sch VI","Schedule of Assets",null,"(A) Cash - Fair Value 32",0,null,null,null,null,null,null,null,0]
["Sch VI","Schedule of Assets",null,"(A) Cash - Fair Value 44",0,null,null,null,null,null,null,null,0]
["Sch VI","Schedule of Assets",null,"(A) Cash - Fair Value 67",0,null,null,null,null,null,null,null,0]
["Sch VI","Schedule of Assets",null,"(A) Cash - Fair Value 99",0,null,null,null,null,null,null,null,0]
["Sch VI","Schedule of Assets",null,"(A) Cash - Fair Value 123",0,null,null,null,null,null,null,null,0]
["Sch VI","Schedule of Assets",null,"(A) Cash - Fair Value 136",0,null,null,null,null,null,null,null,0]
["Sch VI","Schedule of Assets",null,"(A) Cash - Fair Value 154",0,null,null,null,null,null,null,null,0]
["Sch VI","Schedule of Assets",null,"(A) Cash - Fair Value 173",0,null,null,null,null,null,null,null,0]
["Sch VI","Schedule of Assets",null,"(A) Cash - Comments 10",0,null,null,null,null,null,null,null,0]
["Sch VI","Schedule of Assets",null,"(A) Cash - Comments 32",0,null,null,null,null,null,null,null,0]
["Sch VI","Schedule of Assets",null,"(A) Cash - Comments 45",0,null,null,null,null,null,null,null,0]
["Sch VI","Schedule of Assets",null,"(A) Cash - Comments 65",0,null,null,null,null,null,null,null,0]
["Sch VI","Schedule of Assets",null,"(A) Cash - Comments 80",0,null,null,null,null,null,null,null,0]
["Sch VI","Schedule of Assets",null,"(A) Cash - Comments 102",0,null,null,null,null,null,null,null,0]
["Sch VI","Schedule of Assets",null,"(A) Cash - Comments 136",0,null,null,null,null,null,null,null,0]
["Sch VI","Schedule of Assets",null,"(A) Cash - Comments 161",0,null,null,null,null,null,null,null,0]
["Sch VI","Schedule of Assets",null,"(A) Cash - Comments 178",0,null,null,null,null,null,null,null,0]
["Sch VI","Schedule of Assets",null,"(A) Cash - Comments 187",0,null,null,null,null,null,null,null,0]
["Sch VI","Schedule of Assets",null,"(B) Bonds - Asset Type 14","Select",null,null,null,null,null,null,null,"Select"]
["Sch VI","Schedule of Assets",null,"(B) Bonds - Asset Type 38","Select",null,null,null,null,null,null,null,"Select"]
["Sch VI","Schedule of Assets",null,"(B) Bonds - Asset Type 51","Select",null,null,null,null,null,null,null,"Select"]
["Sch VI","Schedule of Assets",null,"(B) Bonds - Asset Type 73","Select",null,null,null,null,null,null,null,"Select"]
["Sch VI","Schedule of Assets",null,"(B) Bonds - Asset Type 110","Select",null,null,null,null,null,null,null,"Select"]
["Sch VI","Schedule of Assets",null,"(B) Bonds - Asset Type 129","Select",null,null,null,null,null,null,null,"Select"]
["Sch VI","Schedule of Assets",null,"(B) Bonds - Asset Type 143","Select",null,null,null,null,null,null,null,"Select"]
["Sch VI","Schedule of Assets",null,"(B) Bonds - Asset Type 164","Select",null,null,null,null,null,null,null,"Select"]
["Sch VI","Schedule of Assets",null,"(B) Bonds - Asset Type 180","Select",null,null,null,null,null,null,null,"Select"]
["Sch VI","Schedule of Assets",null,"(B) Bonds - Asset Type 199","Select",null,null,null,null,null,null,null,"Select"]
["Sch VI","Schedule of Assets",null,"(B) Bonds - Asset Type 239","Select",null,null,null,null,null,null,null,"Select"]
["Sch VI","Schedule of Assets",null,"(B) Bonds - Asset Type 251","Select",null,null,null,null,null,null,null,"Select"]
["Sch VI","Schedule of Assets",null,"(B) Bonds - Asset Type 276","Select",null,null,null,null,null,null,null,"Select"]
["Sch VI","Schedule of Assets",null,"(B) Bonds - Asset Type 286","Select",null,null,null,null,null,null,null,"Select"]
["Sch VI","Schedule of Assets",null,"(B) Bonds - Asset Type 309","Select",null,null,null,null,null,null,null,"Select"]
["Sch VI","Schedule of Assets",null,"(B) Bonds - Asset Type 342","Select",null,null,null,null,null,null,null,"Select"]
["Sch VI","Schedule of Assets",null,"(B) Bonds - Asset Type 368","Select",null,null,null,null,null,null,null,"Select"]
["Sch VI","Schedule of Assets",null,"(B) Bonds - Asset Type 377","Select",null,null,null,null,null,null,null,"Select"]
["Sch VI","Schedule of Assets",null,"(B) Bonds - Currency 5","Select",null,null,null,null,null,null,null,"Select"]
["Sch VI","Schedule of Assets",null,"(B) Bonds - Currency 29","Select",null,null,null,null,null,null,null,"Select"]
["Sch VI","Schedule of Assets",null,"(B) Bonds - Currency 42","Select",null,null,null,null,null,null,null,"Select"]
["Sch VI","Schedule of Assets",null,"(B) Bonds - Currency 64","Select",null,null,null,null,null,null,null,"Select"]
["Sch VI","Schedule of Assets",null,"(B) Bonds - Currency 97","Select",null,null,null,null,null,null,null,"Select"]
["Sch VI","Schedule of Assets",null,"(B) Bonds - Currency 99","Select",null,null,null,null,null,null,null,"Select"]
["Sch VI","Schedule of Assets",null,"(B) Bonds - Currency 134","Select",null,null,null,null,null,null,null,"Select"]
["Sch VI","Schedule of Assets",null,"(B) Bonds - Currency 155","Select",null,null,null,null,null,null,null,"Select"]
["Sch VI","Schedule of Assets",null,"(B) Bonds - Currency 171","Select",null,null,null,null,null,null,null,"Select"]
["Sch VI","Schedule of Assets",null,"(B) Bonds - Currency 188","Select",null,null,null,null,null,null,null,"Select"]
["Sch VI","Schedule of Assets",null,"(B) Bonds - Currency 227","Select",null,null,null,null,null,null,null,"Select"]
["Sch VI","Schedule of Assets",null,"(B) Bonds - Currency 247","Select",null,null,null,null,null,null,null,"Select"]
["Sch VI","Schedule of Assets",null,"(B) Bonds - Currency 262","Select",null,null,null,null,null,null,null,"Select"]
["Sch VI","Schedule of Assets",null,"(B) Bonds - Currency 284","Select",null,null,null,null,null,null,null,"Select"]
["Sch VI","Schedule of Assets",null,"(B) Bonds - Currency 293","Select",null,null,null,null,null,null,null,"Select"]
["Sch VI","Schedule of Assets",null,"(B) Bonds - Currency 321","Select",null,null,null,null,null,null,null,"Select"]
["Sch VI","Schedule of Assets",null,"(B) Bonds - Currency 349","Select",null,null,null,null,null,null,null,"Select"]
["Sch VI","Schedule of Assets",null,"(B) Bonds - Currency 376","Select",null,null,null,null,null,null,null,"Select"]
["Sch VI","Schedule of Assets",null,"(B) Bonds - Currency 384","Select",null,null,null,null,null,null,null,"Select"]
["Sch VI","Schedule of Assets",null,"(B) Bonds - Rating 13","Select",null,null,null,null,null,null,null,"Select"]
["Sch VI","Schedule of Assets",null,"(B) Bonds - Rating 40","Select",null,null,null,null,null,null,null,"Select"]
["Sch VI","Schedule of Assets",null,"(B) Bonds - Rating 50","Select",null,null,null,null,null,null,null,"Select"]
["Sch VI","Schedule of Assets",null,"(B) Bonds - Rating 71","Select",null,null,null,null,null,null,null,"Select"]
["Sch VI","Schedule of Assets",null,"(B) Bonds - Rating 87","Select",null,null,null,null,null,null,null,"Select"]
["Sch VI","Schedule of Assets",null,"(B) Bonds - Rating 127","Select",null,null,null,null,null,null,null,"Select"]
["Sch VI","Schedule of Assets",null,"(B) Bonds - Rating 142","Select",null,null,null,null,null,null,null,"Select"]
["Sch VI","Schedule of Assets",null,"(B) Bonds - Rating 162","Select",null,null,null,null,null,null,null,"Select"]
["Sch VI","Schedule of Assets",null,"(B) Bonds - Rating 179","Select",null,null,null,null,null,null,null,"Select"]
["Sch VI","Schedule of Assets",null,"(B) Bonds - Rating 197","Select",null,null,null,null,null,null,null,"Select"]
["Sch VI","Schedule of Assets",null,"(B) Bonds - Rating 216","Select",null,null,null,null,null,null,null,"Select"]
["Sch VI","Schedule of Assets",null,"(B) Bonds - Rating 249","Select",null,null,null,null,null,null,null,"Select"]
["Sch VI","Schedule of Assets",null,"(B) Bonds - Rating 275","Select",null,null,null,null,null,null,null,"Select"]
["Sch VI","Schedule of Assets",null,"(B) Bonds - Rating 292","Select",null,null,null,null,null,null,null,"Select"]
["Sch VI","Schedule of Assets",null,"(B) Bonds - Rating 304","Select",null,null,null,null,null,null,null,"Select"]
["Sch VI","Schedule of Assets",null,"(B) Bonds - Rating 329","Select",null,null,null,null,null,null,null,"Select"]
["Sch VI","Schedule of Assets",null,"(B) Bonds - Rating 356","Select",null,null,null,null,null,null,null,"Select"]
["Sch VI","Schedule of Assets",null,"(B) Bonds - Rating 366","Select",null,null,null,null,null,null,null,"Select"]
["Sch VI","Schedule of Assets",null,"(B) Bonds - Rating 391","Select",null,null,null,null,null,null,null,"Select"]
["Sch VI","Schedule of Assets",null,"(B) Bonds - Nominal 21",0,null,null,null,null,null,null,null,0]
["Sch VI","Schedule of Assets",null,"(B) Bonds - Nominal 47",0,null,null,null,null,null,null,null,0]
["Sch VI","Schedule of Assets",null,"(B) Bonds - Nominal 58",0,null,null,null,null,null,null,null,0]
["Sch VI","Schedule of Assets",null,"(B) Bonds - Nominal 82",0,null,null,null,null,null,null,null,0]
["Sch VI","Schedule of Assets",null,"(B) Bonds - Nominal 95",0,null,null,null,null,null,null,null,0]
["Sch VI","Schedule of Assets",null,"(B) Bonds - Nominal 134",0,null,null,null,null,null,null,null,0]
["Sch VI","Schedule of Assets",null,"(B) Bonds - Nominal 154",0,null,null,null,null,null,null,null,0]
["Sch VI","Schedule of Assets",null,"(B) Bonds - Nominal 169",0,null,null,null,null,null,null,null,0]
["Sch VI","Schedule of Assets",null,"(B) Bonds - Nominal 191",0,null,null,null,null,null,null,null,0]
["Sch VI","Schedule of Assets",null,"(B) Bonds - Nominal 204",0,null,null,null,null,null,null,null,0]
["Sch VI","Schedule of Assets",null,"(B) Bonds - Nominal 224",0,null,null,null,null,null,null,null,0]
["Sch VI","Schedule of Assets",null,"(B) Bonds - Nominal 260",0,null,null,null,null,null,null,null,0]
["Sch VI","Schedule of Assets",null,"(B) Bonds - Nominal 283",0,null,null,null,null,null,null,null,0]
["Sch VI","Schedule of Assets",null,"(B) Bonds - Nominal 291",0,null,null,null,null,null,null,null,0]
["Sch VI","Schedule of Assets",null,"(B) Bonds - Nominal 320",0,null,null,null,null,null,null,null,0]
["Sch VI","Schedule of Assets",null,"(B) Bonds - Nominal 347",0,null,null,null,null,null,null,null,0]
["Sch VI","Schedule of Assets",null,"(B) Bonds - Nominal 357",0,null,null,null,null,null,null,null,0]
["Sch VI","Schedule of Assets",null,"(B) Bonds - Nominal 382",0,null,null,null,null,null,null,null,0]
["Sch VI","Schedule of Assets",null,"(B) Bonds - Fair Value 12",0,null,null,null,null,null,null,null,0]
["Sch VI","Schedule of Assets",null,"(B) Bonds - Fair Value 38",0,null,null,null,null,null,null,null,0]
["Sch VI","Schedule of Assets",null,"(B) Bonds - Fair Value 49",0,null,null,null,null,null,null,null,0]
["Sch VI","Schedule of Assets",null,"(B) Bonds - Fair Value 66",0,null,null,null,null,null,null,null,0]
["Sch VI","Schedule of Assets",null,"(B) Bonds - Fair Value 89",0,null,null,null,null,null,null,null,0]
["Sch VI","Schedule of Assets",null,"(B) Bonds - Fair Value 125",0,null,null,null,null,null,null,null,0]
["Sch VI","Schedule of Assets",null,"(B) Bonds - Fair Value 145",0,null,null,null,null,null,null,null,0]
["Sch VI","Schedule of Assets",null,"(B) Bonds - Fair Value 162",0,null,null,null,null,null,null,null,0]
["Sch VI","Schedule of Assets",null,"(B) Bonds - Fair Value 176",0,null,null,null,null,null,null,null,0]
["Sch VI","Schedule of Assets",null,"(B) Bonds - Fair Value 199",0,null,null,null,null,null,null,null,0]
["Sch VI","Schedule of Assets",null,"(B) Bonds - Fair Value 232",0,null,null,null,null,null,null,null,0]
["Sch VI","Schedule of Assets",null,"(B) Bonds - Fair Value 236",0,null,null,null,null,null,null,null,0]
["Sch VI","Schedule of Assets",null,"(B) Bonds - Fair Value 267",0,null,null,null,null,null,null,null,0]
["Sch VI","Schedule of Assets",null,"(B) Bonds - Fair Value 291",0,null,null,null,null,null,null,null,0]
["Sch VI","Schedule of Assets",null,"(B) Bonds - Fair Value 302",0,null,null,null,null,null,null,null,0]
["Sch VI","Schedule of Assets",null,"(B) Bonds - Fair Value 328",0,null,null,null,null,null,null,null,0]
["Sch VI","Schedule of Assets",null,"(B) Bonds - Fair Value 354",0,null,null,null,null,null,null,null,0]
["Sch VI","Schedule of Assets",null,"(B) Bonds - Fair Value 365",0,null,null,null,null,null,null,null,0]
["Sch VI","Schedule of Assets",null,"(B) Bonds - Fair Value 389",0,null,null,null,null,null,null,null,0]
["Sch VI","Schedule of Assets",null,"(B) Bonds - Weighted Average YTM 24",0,null,null,null,null,null,null,null,0]
["Sch VI","Schedule of Assets",null,"(B) Bonds - Weighted Average YTM 45",0,null,null,null,null,null,null,null,0]
["Sch VI","Schedule of Assets",null,"(B) Bonds - Weighted Average YTM 57",0,null,null,null,null,null,null,null,0]
["Sch VI","Schedule of Assets",null,"(B) Bonds - Weighted Average YTM 80",0,null,null,null,null,null,null,null,0]
["Sch VI","Schedule of Assets",null,"(B) Bonds - Weighted Average YTM 94",0,null,null,null,null,null,null,null,0]
["Sch VI","Schedule of Assets",null,"(B) Bonds - Weighted Average YTM 115",0,null,null,null,null,null,null,null,0]
["Sch VI","Schedule of Assets",null,"(B) Bonds - Weighted Average YTM 153",0,null,null,null,null,null,null,null,0]
["Sch VI","Schedule of Assets",null,"(B) Bonds - Weighted Average YTM 167",0,null,null,null,null,null,null,null,0]
["Sch VI","Schedule of Assets",null,"(B) Bonds - Weighted Average YTM 190",0,null,null,null,null,null,null,null,0]
["Sch VI","Schedule of Assets",null,"(B) Bonds - Weighted Average YTM 202",0,null,null,null,null,null,null,null,0]
["Sch VI","Schedule of Assets",null,"(B) Bonds - Weighted Average YTM 223",0,null,null,null,null,null,null,null,0]
["Sch VI","Schedule of Assets",null,"(B) Bonds - Weighted Average YTM 244",0,null,null,null,null,null,null,null,0]
["Sch VI","Schedule of Assets",null,"(B) Bonds - Weighted Average YTM 274",0,null,null,null,null,null,null,null,0]
["Sch VI","Schedule of Assets",null,"(B) Bonds - Weighted Average YTM 303",0,null,null,null,null,null,null,null,0]
["Sch VI","Schedule of Assets",null,"(B) Bonds - Weighted Average YTM 309",0,null,null,null,null,null,null,null,0]
["Sch VI","Schedule of Assets",null,"(B) Bonds - Weighted Average YTM 336",0,null,null,null,null,null,null,null,0]
["Sch VI","Schedule of Assets",null,"(B) Bonds - Weighted Average YTM 365",0,null,null,null,null,null,null,null,0]
["Sch VI","Schedule of Assets",null,"(B) Bonds - Weighted Average YTM 373",0,null,null,null,null,null,null,null,0]
["Sch VI","Schedule of Assets",null,"(B) Bonds - Weighted Average YTM 396",0,null,null,null,null,null,null,null,0]
["Sch VI","Schedule of Assets",null,"(B) Bonds - Effective Duration 32",0,null,null,null,null,null,null,null,0]
["Sch VI","Schedule of Assets",null,"(B) Bonds - Effective Duration 52",0,null,null,null,null,null,null,null,0]
["Sch VI","Schedule of Assets",null,"(B) Bonds - Effective Duration 69",0,null,null,null,null,null,null,null,0]
["Sch VI","Schedule of Assets",null,"(B) Bonds - Effective Duration 87",0,null,null,null,null,null,null,null,0]
["Sch VI","Schedule of Assets",null,"(B) Bonds - Effective Duration 102",0,null,null,null,null,null,null,null,0]
["Sch VI","Schedule of Assets",null,"(B) Bonds - Effective Duration 122",0,null,null,null,null,null,null,null,0]
["Sch VI","Schedule of Assets",null,"(B) Bonds - Effective Duration 161",0,null,null,null,null,null,null,null,0]
["Sch VI","Schedule of Assets",null,"(B) Bonds - Effective Duration 178",0,null,null,null,null,null,null,null,0]
["Sch VI","Schedule of Assets",null,"(B) Bonds - Effective Duration 198",0,null,null,null,null,null,null,null,0]
["Sch VI","Schedule of Assets",null,"(B) Bonds - Effective Duration 209",0,null,null,null,null,null,null,null,0]
["Sch VI","Schedule of Assets",null,"(B) Bonds - Effective Duration 235",0,null,null,null,null,null,null,null,0]
["Sch VI","Schedule of Assets",null,"(B) Bonds - Effective Duration 265",0,null,null,null,null,null,null,null,0]
["Sch VI","Schedule of Assets",null,"(B) Bonds - Effective Duration 290",0,null,null,null,null,null,null,null,0]
["Sch VI","Schedule of Assets",null,"(B) Bonds - Effective Duration 300",0,null,null,null,null,null,null,null,0]
["Sch VI","Schedule of Assets",null,"(B) Bonds - Effective Duration 327",0,null,null,null,null,null,null,null,0]
["Sch VI","Schedule of Assets",null,"(B) Bonds - Effective Duration 356",0,null,null,null,null,null,null,null,0]
["Sch VI","Schedule of Assets",null,"(B) Bonds - Effective Duration 364",0,null,null,null,null,null,null,null,0]
["Sch VI","Schedule of Assets",null,"(B) Bonds - Effective Duration 381",0,null,null,null,null,null,null,null,0]
["Sch VI","Schedule of Assets",null,"(B) Bonds - Comments 7",0,null,null,null,null,null,null,null,0]
["Sch VI","Schedule of Assets",null,"(B) Bonds - Comments 40",0,null,null,null,null,null,null,null,0]
["Sch VI","Schedule of Assets",null,"(B) Bonds - Comments 59",0,null,null,null,null,null,null,null,0]
["Sch VI","Schedule of Assets",null,"(B) Bonds - Comments 77",0,null,null,null,null,null,null,null,0]
["Sch VI","Schedule of Assets",null,"(B) Bonds - Comments 94",0,null,null,null,null,null,null,null,0]
["Sch VI","Schedule of Assets",null,"(B) Bonds - Comments 114",0,null,null,null,null,null,null,null,0]
["Sch VI","Schedule of Assets",null,"(B) Bonds - Comments 150",0,null,null,null,null,null,null,null,0]
["Sch VI","Schedule of Assets",null,"(B) Bonds - Comments 169",0,null,null,null,null,null,null,null,0]
["Sch VI","Schedule of Assets",null,"(B) Bonds - Comments 185",0,null,null,null,null,null,null,null,0]
["Sch VI","Schedule of Assets",null,"(B) Bonds - Comments 206",0,null,null,null,null,null,null,null,0]
["Sch VI","Schedule of Assets",null,"(B) Bonds - Comments 220",0,null,null,null,null,null,null,null,0]
["Sch VI","Schedule of Assets",null,"(B) Bonds - Comments 243",0,null,null,null,null,null,null,null,0]
["Sch VI","Schedule of Assets",null,"(B) Bonds - Comments 272",0,null,null,null,null,null,null,null,0]
["Sch VI","Schedule of Assets",null,"(B) Bonds - Comments 302",0,null,null,null,null,null,null,null,0]
["Sch VI","Schedule of Assets",null,"(B) Bonds - Comments 307",0,null,null,null,null,null,null,null,0]
["Sch VI","Schedule of Assets",null,"(B) Bonds - Comments 335",0,null,null,null,null,null,null,null,0]
["Sch VI","Schedule of Assets",null,"(B) Bonds - Comments 363",0,null,null,null,null,null,null,null,0]
["Sch VI","Schedule of Assets",null,"(B) Bonds - Comments 372",0,null,null,null,null,null,null,null,0]
["Sch VI","Schedule of Assets",null,"(B) Bonds - Comments 398",0,null,null,null,null,null,null,null,0]
["Sch VI","Schedule of Assets",null,"(B) Bonds Sovereign Debt - Country 30","Select",null,null,null,null,null,null,null,"Select"]
["Sch VI","Schedule of Assets",null,"(B) Bonds Sovereign Debt - Country 49","Select",null,null,null,null,null,null,null,"Select"]
["Sch VI","Schedule of Assets",null,"(B) Bonds Sovereign Debt - Country 67","Select",null,null,null,null,null,null,null,"Select"]
["Sch VI","Schedule of Assets",null,"(B) Bonds Sovereign Debt - Country 84","Select",null,null,null,null,null,null,null,"Select"]
["Sch VI","Schedule of Assets",null,"(B) Bonds Sovereign Debt - Country 104","Select",null,null,null,null,null,null,null,"Select"]
["Sch VI","Schedule of Assets",null,"(B) Bonds Sovereign Debt - Country 119","Select",null,null,null,null,null,null,null,"Select"]
["Sch VI","Schedule of Assets",null,"(B) Bonds Sovereign Debt - Country 159","Select",null,null,null,null,null,null,null,"Select"]
["Sch VI","Schedule of Assets",null,"(B) Bonds Sovereign Debt - Country 180","Select",null,null,null,null,null,null,null,"Select"]
["Sch VI","Schedule of Assets",null,"(B) Bonds Sovereign Debt - Country 191","Select",null,null,null,null,null,null,null,"Select"]
["Sch VI","Schedule of Assets",null,"(B) Bonds Sovereign Debt - Currency 13","Select",null,null,null,null,null,null,null,"Select"]
["Sch VI","Schedule of Assets",null,"(B) Bonds Sovereign Debt - Currency 26","Select",null,null,null,null,null,null,null,"Select"]
["Sch VI","Schedule of Assets",null,"(B) Bonds Sovereign Debt - Currency 50","Select",null,null,null,null,null,null,null,"Select"]
["Sch VI","Schedule of Assets",null,"(B) Bonds Sovereign Debt - Currency 82","Select",null,null,null,null,null,null,null,"Select"]
["Sch VI","Schedule of Assets",null,"(B) Bonds Sovereign Debt - Currency 109","Select",null,null,null,null,null,null,null,"Select"]
["Sch VI","Schedule of Assets",null,"(B) Bonds Sovereign Debt - Currency 113","Select",null,null,null,null,null,null,null,"Select"]
["Sch VI","Schedule of Assets",null,"(B) Bonds Sovereign Debt - Currency 146","Select",null,null,null,null,null,null,null,"Select"]
["Sch VI","Schedule of Assets",null,"(B) Bonds Sovereign Debt - Currency 169","Select",null,null,null,null,null,null,null,"Select"]
["Sch VI","Schedule of Assets",null,"(B) Bonds Sovereign Debt - Currency 179","Select",null,null,null,null,null,null,null,"Select"]
["Sch VI","Schedule of Assets",null,"(B) Bonds Sovereign Debt - Rating 4","Select",null,null,null,null,null,null,null,"Select"]
["Sch VI","Schedule of Assets",null,"(B) Bonds Sovereign Debt - Rating 38","Select",null,null,null,null,null,null,null,"Select"]
["Sch VI","Schedule of Assets",null,"(B) Bonds Sovereign Debt - Rating 60","Select",null,null,null,null,null,null,null,"Select"]
["Sch VI","Schedule of Assets",null,"(B) Bonds Sovereign Debt - Rating 75","Select",null,null,null,null,null,null,null,"Select"]
["Sch VI","Schedule of Assets",null,"(B) Bonds Sovereign Debt - Rating 91","Select",null,null,null,null,null,null,null,"Select"]
["Sch VI","Schedule of Assets",null,"(B) Bonds Sovereign Debt - Rating 112","Select",null,null,null,null,null,null,null,"Select"]
["Sch VI","Schedule of Assets",null,"(B) Bonds Sovereign Debt - Rating 126","Select",null,null,null,null,null,null,null,"Select"]
["Sch VI","Schedule of Assets",null,"(B) Bonds Sovereign Debt - Rating 149","Select",null,null,null,null,null,null,null,"Select"]
["Sch VI","Schedule of Assets",null,"(B) Bonds Sovereign Debt - Rating 182","Select",null,null,null,null,null,null,null,"Select"]
["Sch VI","Schedule of Assets",null,"(B) Bonds Sovereign Debt - Fair Value 4",0,null,null,null,null,null,null,null,0]
["Sch VI","Schedule of Assets",null,"(B) Bonds Sovereign Debt - Fair Value 17",0,null,null,null,null,null,null,null,0]
["Sch VI","Schedule of Assets",null,"(B) Bonds Sovereign Debt - Fair Value 41",0,null,null,null,null,null,null,null,0]
["Sch VI","Schedule of Assets",null,"(B) Bonds Sovereign Debt - Fair Value 69",0,null,null,null,null,null,null,null,0]
["Sch VI","Schedule of Assets",null,"(B) Bonds Sovereign Debt - Fair Value 78",0,null,null,null,null,null,null,null,0]
["Sch VI","Schedule of Assets",null,"(B) Bonds Sovereign Debt - Fair Value 104",0,null,null,null,null,null,null,null,0]
["Sch VI","Schedule of Assets",null,"(B) Bonds Sovereign Debt - Fair Value 137",0,null,null,null,null,null,null,null,0]
["Sch VI","Schedule of Assets",null,"(B) Bonds Sovereign Debt - Fair Value 154",0,null,null,null,null,null,null,null,0]
["Sch VI","Schedule of Assets",null,"(B) Bonds Sovereign Debt - Fair Value 176",0,null,null,null,null,null,null,null,0]
["Sch VI","Schedule of Assets",null,"(B) Bonds Sovereign Debt - Fair Value 191",0,null,null,null,null,null,null,null,0]
["Sch VI","Schedule of Assets",null,"(B) Bonds Sovereign Debt - Comments 11",0,null,null,null,null,null,null,null,0]
["Sch VI","Schedule of Assets",null,"(B) Bonds Sovereign Debt - Comments 46",0,null,null,null,null,null,null,null,0]
["Sch VI","Schedule of Assets",null,"(B) Bonds Sovereign Debt - Comments 67",0,null,null,null,null,null,null,null,0]
["Sch VI","Schedule of Assets",null,"(B) Bonds Sovereign Debt - Comments 83",0,null,null,null,null,null,null,null,0]
["Sch VI","Schedule of Assets",null,"(B) Bonds Sovereign Debt - Comments 102",0,null,null,null,null,null,null,null,0]
["Sch VI","Schedule of Assets",null,"(B) Bonds Sovereign Debt - Comments 120",0,null,null,null,null,null,null,null,0]
["Sch VI","Schedule of Assets",null,"(B) Bonds Sovereign Debt - Comments 154",0,null,null,null,null,null,null,null,0]
["Sch VI","Schedule of Assets",null,"(B) Bonds Sovereign Debt - Comments 157",0,null,null,null,null,null,null,null,0]
["Sch VI","Schedule of Assets",null,"(B) Bonds Sovereign Debt - Comments 189",0,null,null,null,null,null,null,null,0]
["Sch VI","Schedule of Assets",null,"(C) ABS and Struct. Sec. - Asset Type 15","Select",null,null,null,null,null,null,null,"Select"]
["Sch VI","Schedule of Assets",null,"(C) ABS and Struct. Sec. - Asset Type 23","Select",null,null,null,null,null,null,null,"Select"]
["Sch VI","Schedule of Assets",null,"(C) ABS and Struct. Sec. - Asset Type 48","Select",null,null,null,null,null,null,null,"Select"]
["Sch VI","Schedule of Assets",null,"(C) ABS and Struct. Sec. - Asset Type 79","Select",null,null,null,null,null,null,null,"Select"]
["Sch VI","Schedule of Assets",null,"(C) ABS and Struct. Sec. - Asset Type 85","Select",null,null,null,null,null,null,null,"Select"]
["Sch VI","Schedule of Assets",null,"(C) ABS and Struct. Sec. - Asset Type 110","Select",null,null,null,null,null,null,null,"Select"]
["Sch VI","Schedule of Assets",null,"(C) ABS and Struct. Sec. - Asset Type 144","Select",null,null,null,null,null,null,null,"Select"]
["Sch VI","Schedule of Assets",null,"(C) ABS and Struct. Sec. - Currency 16","Select",null,null,null,null,null,null,null,"Select"]
["Sch VI","Schedule of Assets",null,"(C) ABS and Struct. Sec. - Currency 31","Select",null,null,null,null,null,null,null,"Select"]
["Sch VI","Schedule of Assets",null,"(C) ABS and Struct. Sec. - Currency 51","Select",null,null,null,null,null,null,null,"Select"]
["Sch VI","Schedule of Assets",null,"(C) ABS and Struct. Sec. - Currency 64","Select",null,null,null,null,null,null,null,"Select"]
["Sch VI","Schedule of Assets",null,"(C) ABS and Struct. Sec. - Currency 86","Select",null,null,null,null,null,null,null,"Select"]
["Sch VI","Schedule of Assets",null,"(C) ABS and Struct. Sec. - Currency 123","Select",null,null,null,null,null,null,null,"Select"]
["Sch VI","Schedule of Assets",null,"(C) ABS and Struct. Sec. - Currency 144","Select",null,null,null,null,null,null,null,"Select"]
["Sch VI","Schedule of Assets",null,"(C) ABS and Struct. Sec. - Rating 8","Select",null,null,null,null,null,null,null,"Select"]
["Sch VI","Schedule of Assets",null,"(C) ABS and Struct. Sec. - Rating 27","Select",null,null,null,null,null,null,null,"Select"]
["Sch VI","Schedule of Assets",null,"(C) ABS and Struct. Sec. - Rating 43","Select",null,null,null,null,null,null,null,"Select"]
["Sch VI","Schedule of Assets",null,"(C) ABS and Struct. Sec. - Rating 64","Select",null,null,null,null,null,null,null,"Select"]
["Sch VI","Schedule of Assets",null,"(C) ABS and Struct. Sec. - Rating 95","Select",null,null,null,null,null,null,null,"Select"]
["Sch VI","Schedule of Assets",null,"(C) ABS and Struct. Sec. - Rating 123","Select",null,null,null,null,null,null,null,"Select"]
["Sch VI","Schedule of Assets",null,"(C) ABS and Struct. Sec. - Rating 130","Select",null,null,null,null,null,null,null,"Select"]
["Sch VI","Schedule of Assets",null,"(C) ABS and Struct. Sec. - Nominal Amount 10",0,null,null,null,null,null,null,null,0]
["Sch VI","Schedule of Assets",null,"(C) ABS and Struct. Sec. - Nominal Amount 36",0,null,null,null,null,null,null,null,0]
["Sch VI","Schedule of Assets",null,"(C) ABS and Struct. Sec. - Nominal Amount 43",0,null,null,null,null,null,null,null,0]
["Sch VI","Schedule of Assets",null,"(C) ABS and Struct. Sec. - Nominal Amount 71",0,null,null,null,null,null,null,null,0]
["Sch VI","Schedule of Assets",null,"(C) ABS and Struct. Sec. - Nominal Amount 102",0,null,null,null,null,null,null,null,0]
["Sch VI","Schedule of Assets",null,"(C) ABS and Struct. Sec. - Nominal Amount 123",0,null,null,null,null,null,null,null,0]
["Sch VI","Schedule of Assets",null,"(C) ABS and Struct. Sec. - Nominal Amount 139",0,null,null,null,null,null,null,null,0]
["Sch VI","Schedule of Assets",null,"(C) ABS and Struct. Sec. - Fair Value 8",0,null,null,null,null,null,null,null,0]
["Sch VI","Schedule of Assets",null,"(C) ABS and Struct. Sec. - Fair Value 26",0,null,null,null,null,null,null,null,0]
["Sch VI","Schedule of Assets",null,"(C) ABS and Struct. Sec. - Fair Value 64",0,null,null,null,null,null,null,null,0]
["Sch VI","Schedule of Assets",null,"(C) ABS and Struct. Sec. - Fair Value 81",0,null,null,null,null,null,null,null,0]
["Sch VI","Schedule of Assets",null,"(C) ABS and Struct. Sec. - Fair Value 99",0,null,null,null,null,null,null,null,0]
["Sch VI","Schedule of Assets",null,"(C) ABS and Struct. Sec. - Fair Value 118",0,null,null,null,null,null,null,null,0]
["Sch VI","Schedule of Assets",null,"(C) ABS and Struct. Sec. - Fair Value 134",0,null,null,null,null,null,null,null,0]
["Sch VI","Schedule of Assets",null,"(C) ABS and Struct. Sec. - Weighted Avg YTM 5",0,null,null,null,null,null,null,null,0]
["Sch VI","Schedule of Assets",null,"(C) ABS and Struct. Sec. - Weighted Avg YTM 36",0,null,null,null,null,null,null,null,0]
["Sch VI","Schedule of Assets",null,"(C) ABS and Struct. Sec. - Weighted Avg YTM 64",0,null,null,null,null,null,null,null,0]
["Sch VI","Schedule of Assets",null,"(C) ABS and Struct. Sec. - Weighted Avg YTM 71",0,null,null,null,null,null,null,null,0]
["Sch VI","Schedule of Assets",null,"(C) ABS and Struct. Sec. - Weighted Avg YTM 97",0,null,null,null,null,null,null,null,0]
["Sch VI","Schedule of Assets",null,"(C) ABS and Struct. Sec. - Weighted Avg YTM 118",0,null,null,null,null,null,null,null,0]
["Sch VI","Schedule of Assets",null,"(C) ABS and Struct. Sec. - Weighted Avg YTM 143",0,null,null,null,null,null,null,null,0]
["Sch VI","Schedule of Assets",null,"(C) ABS and Struct. Sec. - Effective Duration 5",0,null,null,null,null,null,null,null,0]
["Sch VI","Schedule of Assets",null,"(C) ABS and Struct. Sec. - Effective Duration 28",0,null,null,null,null,null,null,null,0]
["Sch VI","Schedule of Assets",null,"(C) ABS and Struct. Sec. - Effective Duration 60",0,null,null,null,null,null,null,null,0]
["Sch VI","Schedule of Assets",null,"(C) ABS and Struct. Sec. - Effective Duration 84",0,null,null,null,null,null,null,null,0]
["Sch VI","Schedule of Assets",null,"(C) ABS and Struct. Sec. - Effective Duration 97",0,null,null,null,null,null,null,null,0]
["Sch VI","Schedule of Assets",null,"(C) ABS and Struct. Sec. - Effective Duration 119",0,null,null,null,null,null,null,null,0]
["Sch VI","Schedule of Assets",null,"(C) ABS and Struct. Sec. - Effective Duration 134",0,null,null,null,null,null,null,null,0]
["Sch VI","Schedule of Assets",null,"(C) ABS and Struct. Sec. - Comments 21",0,null,null,null,null,null,null,null,0]
["Sch VI","Schedule of Assets",null,"(C) ABS and Struct. Sec. - Comments 43",0,null,null,null,null,null,null,null,0]
["Sch VI","Schedule of Assets",null,"(C) ABS and Struct. Sec. - Comments 56",0,null,null,null,null,null,null,null,0]
["Sch VI","Schedule of Assets",null,"(C) ABS and Struct. Sec. - Comments 76",0,null,null,null,null,null,null,null,0]
["Sch VI","Schedule of Assets",null,"(C) ABS and Struct. Sec. - Comments 91",0,null,null,null,null,null,null,null,0]
["Sch VI","Schedule of Assets",null,"(C) ABS and Struct. Sec. - Comments 113",0,null,null,null,null,null,null,null,0]
["Sch VI","Schedule of Assets",null,"(C) ABS and Struct. Sec. - Comments 147",0,null,null,null,null,null,null,null,0]
["Sch VI","Schedule of Assets",null,"(D) Loans - Asset Type 21","Select",null,null,null,null,null,null,null,"Select"]
["Sch VI","Schedule of Assets",null,"(D) Loans - Asset Type 27","Select",null,null,null,null,null,null,null,"Select"]
["Sch VI","Schedule of Assets",null,"(D) Loans - Asset Type 58","Select",null,null,null,null,null,null,null,"Select"]
["Sch VI","Schedule of Assets",null,"(D) Loans - Asset Type 83","Select",null,null,null,null,null,null,null,"Select"]
["Sch VI","Schedule of Assets",null,"(D) Loans - Asset Type 91","Select",null,null,null,null,null,null,null,"Select"]
["Sch VI","Schedule of Assets",null,"(D) Loans - Currency 18","Select",null,null,null,null,null,null,null,"Select"]
["Sch VI","Schedule of Assets",null,"(D) Loans - Currency 50","Select",null,null,null,null,null,null,null,"Select"]
["Sch VI","Schedule of Assets",null,"(D) Loans - Currency 53","Select",null,null,null,null,null,null,null,"Select"]
["Sch VI","Schedule of Assets",null,"(D) Loans - Currency 87","Select",null,null,null,null,null,null,null,"Select"]
["Sch VI","Schedule of Assets",null,"(D) Loans - Country 5","Select",null,null,null,null,null,null,null,"Select"]
["Sch VI","Schedule of Assets",null,"(D) Loans - Country 24","Select",null,null,null,null,null,null,null,"Select"]
["Sch VI","Schedule of Assets",null,"(D) Loans - Country 41","Select",null,null,null,null,null,null,null,"Select"]
["Sch VI","Schedule of Assets",null,"(D) Loans - Country 81","Select",null,null,null,null,null,null,null,"Select"]
["Sch VI","Schedule of Assets",null,"(D) Loans - Country 100","Select",null,null,null,null,null,null,null,"Select"]
["Sch VI","Schedule of Assets",null,"(D) Loans - Rating 12","Select",null,null,null,null,null,null,null,"Select"]
["Sch VI","Schedule of Assets",null,"(D) Loans - Rating 37","Select",null,null,null,null,null,null,null,"Select"]
["Sch VI","Schedule of Assets",null,"(D) Loans - Rating 47","Select",null,null,null,null,null,null,null,"Select"]
["Sch VI","Schedule of Assets",null,"(D) Loans - Rating 70","Select",null,null,null,null,null,null,null,"Select"]
["Sch VI","Schedule of Assets",null,"(D) Loans - Nominal Amount 3",0,null,null,null,null,null,null,null,0]
["Sch VI","Schedule of Assets",null,"(D) Loans - Nominal Amount 29",0,null,null,null,null,null,null,null,0]
["Sch VI","Schedule of Assets",null,"(D) Loans - Nominal Amount 38",0,null,null,null,null,null,null,null,0]
["Sch VI","Schedule of Assets",null,"(D) Loans - Nominal Amount 66",0,null,null,null,null,null,null,null,0]
["Sch VI","Schedule of Assets",null,"(D) Loans - Nominal Amount 90",0,null,null,null,null,null,null,null,0]
["Sch VI","Schedule of Assets",null,"(D) Loans - Fair Value 3",0,null,null,null,null,null,null,null,0]
["Sch VI","Schedule of Assets",null,"(D) Loans - Fair Value 25",0,null,null,null,null,null,null,null,0]
["Sch VI","Schedule of Assets",null,"(D) Loans - Fair Value 58",0,null,null,null,null,null,null,null,0]
["Sch VI","Schedule of Assets",null,"(D) Loans - Fair Value 81",0,null,null,null,null,null,null,null,0]
["Sch VI","Schedule of Assets",null,"(D) Loans - Fair Value 95",0,null,null,null,null,null,null,null,0]
["Sch VI","Schedule of Assets",null,"(D) Loans - Weighted Avg YTM 16",0,null,null,null,null,null,null,null,0]
["Sch VI","Schedule of Assets",null,"(D) Loans - Weighted Avg YTM 32",0,null,null,null,null,null,null,null,0]
["Sch VI","Schedule of Assets",null,"(D) Loans - Weighted Avg YTM 68",0,null,null,null,null,null,null,null,0]
["Sch VI","Schedule of Assets",null,"(D) Loans - Weighted Avg YTM 69",0,null,null,null,null,null,null,null,0]
["Sch VI","Schedule of Assets",null,"(D) Loans - Effective Duration 3",0,null,null,null,null,null,null,null,0]
["Sch VI","Schedule of Assets",null,"(D) Loans - Effective Duration 28",0,null,null,null,null,null,null,null,0]
["Sch VI","Schedule of Assets",null,"(D) Loans - Effective Duration 38",0,null,null,null,null,null,null,null,0]
["Sch VI","Schedule of Assets",null,"(D) Loans - Effective Duration 61",0,null,null,null,null,null,null,null,0]
["Sch VI","Schedule of Assets",null,"(D) Loans - Effective Duration 82",0,null,null,null,null,null,null,null,0]
["Sch VI","Schedule of Assets",null,"(D) Loans - Comments 10",0,null,null,null,null,null,null,null,0]
["Sch VI","Schedule of Assets",null,"(D) Loans - Comments 37",0,null,null,null,null,null,null,null,0]
["Sch VI","Schedule of Assets",null,"(D) Loans - Comments 45",0,null,null,null,null,null,null,null,0]
["Sch VI","Schedule of Assets",null,"(D) Loans - Comments 74",0,null,null,null,null,null,null,null,0]
["Sch VI","Schedule of Assets",null,"(D) Loans Not Perform. - # of Asset Types",0,null,null,null,null,null,null,null,0]
["Sch VI","Schedule of Assets",null,"(D) Loans Not Perform. - Asset Type 10","Select",null,null,null,null,null,null,null,"Select"]
["Sch VI","Schedule of Assets",null,"(D) Loans Not Perform. - Currency 11","Select",null,null,null,null,null,null,null,"Select"]
["Sch VI","Schedule of Assets",null,"(D) Loans Not Perform. - Rating 9","Select",null,null,null,null,null,null,null,"Select"]
["Sch VI","Schedule of Assets",null,"(D) Loans Not Perform. - Nominal Amount 7",0,null,null,null,null,null,null,null,0]
["Sch VI","Schedule of Assets",null,"(D) Loans Not Perform. - Fair Value 6",0,null,null,null,null,null,null,null,0]
["Sch VI","Schedule of Assets",null,"(D) Loans Not Perform. - Comment 2",0,null,null,null,null,null,null,null,0]
["Sch VI","Schedule of Assets",null,"(D) Loans Not Perform. - Comment 19",0,null,null,null,null,null,null,null,0]
["Sch VI","Schedule of Assets",null,"(E) Preferred Equities - Asset Type 16","Select",null,null,null,null,null,null,null,"Select"]
["Sch VI","Schedule of Assets",null,"(E) Preferred Equities - Asset Type 57","Select",null,null,null,null,null,null,null,"Select"]
["Sch VI","Schedule of Assets",null,"(E) Preferred Equities - Asset Type 68","Select",null,null,null,null,null,null,null,"Select"]
["Sch VI","Schedule of Assets",null,"(E) Preferred Equities - Asset Type 94","Select",null,null,null,null,null,null,null,"Select"]
["Sch VI","Schedule of Assets",null,"(E) Preferred Equities - Currency 3","Select",null,null,null,null,null,null,null,"Select"]
["Sch VI","Schedule of Assets",null,"(E) Preferred Equities - Currency 31","Select",null,null,null,null,null,null,null,"Select"]
["Sch VI","Schedule of Assets",null,"(E) Preferred Equities - Currency 59","Select",null,null,null,null,null,null,null,"Select"]
["Sch VI","Schedule of Assets",null,"(E) Preferred Equities - Currency 86","Select",null,null,null,null,null,null,null,"Select"]
["Sch VI","Schedule of Assets",null,"(E) Preferred Equities - Currency 94","Select",null,null,null,null,null,null,null,"Select"]
["Sch VI","Schedule of Assets",null,"(E) Preferred Equities - Rating 23","Select",null,null,null,null,null,null,null,"Select"]
["Sch VI","Schedule of Assets",null,"(E) Preferred Equities - Rating 46","Select",null,null,null,null,null,null,null,"Select"]
["Sch VI","Schedule of Assets",null,"(E) Preferred Equities - Rating 60","Select",null,null,null,null,null,null,null,"Select"]
["Sch VI","Schedule of Assets",null,"(E) Preferred Equities - Rating 81","Select",null,null,null,null,null,null,null,"Select"]
["Sch VI","Schedule of Assets",null,"(E) Preferred Equities - Rating 97","Select",null,null,null,null,null,null,null,"Select"]
["Sch VI","Schedule of Assets",null,"(E) Preferred Equities - Nominal Amount 36",0,null,null,null,null,null,null,null,0]
["Sch VI","Schedule of Assets",null,"(E) Preferred Equities - Nominal Amount 53",0,null,null,null,null,null,null,null,0]
["Sch VI","Schedule of Assets",null,"(E) Preferred Equities - Nominal Amount 73",0,null,null,null,null,null,null,null,0]
["Sch VI","Schedule of Assets",null,"(E) Preferred Equities - Nominal Amount 88",0,null,null,null,null,null,null,null,0]
["Sch VI","Schedule of Assets",null,"(E) Preferred Equities - Fair Value 10",0,null,null,null,null,null,null,null,0]
["Sch VI","Schedule of Assets",null,"(E) Preferred Equities - Fair Value 44",0,null,null,null,null,null,null,null,0]
["Sch VI","Schedule of Assets",null,"(E) Preferred Equities - Fair Value 65",0,null,null,null,null,null,null,null,0]
["Sch VI","Schedule of Assets",null,"(E) Preferred Equities - Fair Value 79",0,null,null,null,null,null,null,null,0]
["Sch VI","Schedule of Assets",null,"(E) Preferred Equities - Weighted Avg YTM 2",0,null,null,null,null,null,null,null,0]
["Sch VI","Schedule of Assets",null,"(E) Preferred Equities - Weighted Avg YTM 10",0,null,null,null,null,null,null,null,0]
["Sch VI","Schedule of Assets",null,"(E) Preferred Equities - Weighted Avg YTM 39",0,null,null,null,null,null,null,null,0]
["Sch VI","Schedule of Assets",null,"(E) Preferred Equities - Weighted Avg YTM 66",0,null,null,null,null,null,null,null,0]
["Sch VI","Schedule of Assets",null,"(E) Preferred Equities - Weighted Avg YTM 76",0,null,null,null,null,null,null,null,0]
["Sch VI","Schedule of Assets",null,"(E) Preferred Equities - Effective Duration 1",0,null,null,null,null,null,null,null,0]
["Sch VI","Schedule of Assets",null,"(E) Preferred Equities - Effective Duration 31",0,null,null,null,null,null,null,null,0]
["Sch VI","Schedule of Assets",null,"(E) Preferred Equities - Effective Duration 57",0,null,null,null,null,null,null,null,0]
["Sch VI","Schedule of Assets",null,"(E) Preferred Equities - Effective Duration 68",0,null,null,null,null,null,null,null,0]
["Sch VI","Schedule of Assets",null,"(E) Preferred Equities - Effective Duration 92",0,null,null,null,null,null,null,null,0]
["Sch VI","Schedule of Assets",null,"(E) Preferred Equities - Comments 5",0,null,null,null,null,null,null,null,0]
["Sch VI","Schedule of Assets",null,"(E) Preferred Equities - Comments 44",0,null,null,null,null,null,null,null,0]
["Sch VI","Schedule of Assets",null,"(E) Preferred Equities - Comments 64",0,null,null,null,null,null,null,null,0]
["Sch VI","Schedule of Assets",null,"(E) Preferred Equities - Comments 79",0,null,null,null,null,null,null,null,0]
["Sch VI","Schedule of Assets",null,"(E) Preferred Equities - Comments 97",0,null,null,null,null,null,null,null,0]
["Sch VI","Schedule of Assets",null,"(F) Common Equities - Asset Type 13","Select",null,null,null,null,null,null,null,"Select"]
["Sch VI","Schedule of Assets",null,"(F) Common Equities - Asset Type 33","Select",null,null,null,null,null,null,null,"Select"]
["Sch VI","Schedule of Assets",null,"(F) Common Equities - Asset Type 69","Select",null,null,null,null,null,null,null,"Select"]
["Sch VI","Schedule of Assets",null,"(F) Common Equities - Asset Type 92","Select",null,null,null,null,null,null,null,"Select"]
["Sch VI","Schedule of Assets",null,"(F) Common Equities - Currency 9","Select",null,null,null,null,null,null,null,"Select"]
["Sch VI","Schedule of Assets",null,"(F) Common Equities - Currency 20","Select",null,null,null,null,null,null,null,"Select"]
["Sch VI","Schedule of Assets",null,"(F) Common Equities - Currency 46","Select",null,null,null,null,null,null,null,"Select"]
["Sch VI","Schedule of Assets",null,"(F) Common Equities - Currency 72","Select",null,null,null,null,null,null,null,"Select"]
["Sch VI","Schedule of Assets",null,"(F) Common Equities - Currency 83","Select",null,null,null,null,null,null,null,"Select"]
["Sch VI","Schedule of Assets",null,"(F) Common Equities - Country 7","Select",null,null,null,null,null,null,null,"Select"]
["Sch VI","Schedule of Assets",null,"(F) Common Equities - Country 42","Select",null,null,null,null,null,null,null,"Select"]
["Sch VI","Schedule of Assets",null,"(F) Common Equities - Country 63","Select",null,null,null,null,null,null,null,"Select"]
["Sch VI","Schedule of Assets",null,"(F) Common Equities - Country 75","Select",null,null,null,null,null,null,null,"Select"]
["Sch VI","Schedule of Assets",null,"(F) Common Equities - Country 98","Select",null,null,null,null,null,null,null,"Select"]
["Sch VI","Schedule of Assets",null,"(F) Common Equities - Fair Value 12",0,null,null,null,null,null,null,null,0]
["Sch VI","Schedule of Assets",null,"(F) Common Equities - Fair Value 33",0,null,null,null,null,null,null,null,0]
["Sch VI","Schedule of Assets",null,"(F) Common Equities - Fair Value 71",0,null,null,null,null,null,null,null,0]
["Sch VI","Schedule of Assets",null,"(F) Common Equities - Fair Value 85",0,null,null,null,null,null,null,null,0]
["Sch VI","Schedule of Assets",null,"(F) Common Equities - Comments 8",0,null,null,null,null,null,null,null,0]
["Sch VI","Schedule of Assets",null,"(F) Common Equities - Comments 20",0,null,null,null,null,null,null,null,0]
["Sch VI","Schedule of Assets",null,"(F) Common Equities - Comments 41",0,null,null,null,null,null,null,null,0]
["Sch VI","Schedule of Assets",null,"(F) Common Equities - Comments 76",0,null,null,null,null,null,null,null,0]
["Sch VI","Schedule of Assets",null,"(F) Common Equities - Comments 100",0,null,null,null,null,null,null,null,0]
["Sch VI","Schedule of Assets",null,"(G) Real Estate - Asset Type 10","Select",null,null,null,null,null,null,null,"Select"]
["Sch VI","Schedule of Assets",null,"(G) Real Estate - Asset Type 36","Select",null,null,null,null,null,null,null,"Select"]
["Sch VI","Schedule of Assets",null,"(G) Real Estate - Asset Type 62","Select",null,null,null,null,null,null,null,"Select"]
["Sch VI","Schedule of Assets",null,"(G) Real Estate - Asset Type 73","Select",null,null,null,null,null,null,null,"Select"]
["Sch VI","Schedule of Assets",null,"(G) Real Estate - Asset Type 97","Select",null,null,null,null,null,null,null,"Select"]
["Sch VI","Schedule of Assets",null,"(G) Real Estate - Currency 28","Select",null,null,null,null,null,null,null,"Select"]
["Sch VI","Schedule of Assets",null,"(G) Real Estate - Currency 49","Select",null,null,null,null,null,null,null,"Select"]
["Sch VI","Schedule of Assets",null,"(G) Real Estate - Currency 69","Select",null,null,null,null,null,null,null,"Select"]
["Sch VI","Schedule of Assets",null,"(G) Real Estate - Currency 86","Select",null,null,null,null,null,null,null,"Select"]
["Sch VI","Schedule of Assets",null,"(G) Real Estate - Country 4","Select",null,null,null,null,null,null,null,"Select"]
["Sch VI","Schedule of Assets",null,"(G) Real Estate - Country 19","Select",null,null,null,null,null,null,null,"Select"]
["Sch VI","Schedule of Assets",null,"(G) Real Estate - Country 60","Select",null,null,null,null,null,null,null,"Select"]
["Sch VI","Schedule of Assets",null,"(G) Real Estate - Country 78","Select",null,null,null,null,null,null,null,"Select"]
["Sch VI","Schedule of Assets",null,"(G) Real Estate - Country 95","Select",null,null,null,null,null,null,null,"Select"]
["Sch VI","Schedule of Assets",null,"(G) Real Estate - Purpose 15","Select",null,null,null,null,null,null,null,"Select"]
["Sch VI","Schedule of Assets",null,"(G) Real Estate - Purpose 47","Select",null,null,null,null,null,null,null,"Select"]
["Sch VI","Schedule of Assets",null,"(G) Real Estate - Purpose 52","Select",null,null,null,null,null,null,null,"Select"]
["Sch VI","Schedule of Assets",null,"(G) Real Estate - Purpose 82","Select",null,null,null,null,null,null,null,"Select"]
["Sch VI","Schedule of Assets",null,"(G) Real Estate - Cost 7",0,null,null,null,null,null,null,null,0]
["Sch VI","Schedule of Assets",null,"(G) Real Estate - Cost 17",0,null,null,null,null,null,null,null,0]
["Sch VI","Schedule of Assets",null,"(G) Real Estate - Cost 44",0,null,null,null,null,null,null,null,0]
["Sch VI","Schedule of Assets",null,"(G) Real Estate - Cost 73",0,null,null,null,null,null,null,null,0]
["Sch VI","Schedule of Assets",null,"(G) Real Estate - Cost 81",0,null,null,null,null,null,null,null,0]
["Sch VI","Schedule of Assets",null,"(G) Real Estate - Fair Value 4",0,null,null,null,null,null,null,null,0]
["Sch VI","Schedule of Assets",null,"(G) Real Estate - Fair Value 40",0,null,null,null,null,null,null,null,0]
["Sch VI","Schedule of Assets",null,"(G) Real Estate - Fair Value 60",0,null,null,null,null,null,null,null,0]
["Sch VI","Schedule of Assets",null,"(G) Real Estate - Fair Value 77",0,null,null,null,null,null,null,null,0]
["Sch VI","Schedule of Assets",null,"(G) Real Estate - Fair Value 95",0,null,null,null,null,null,null,null,0]
["Sch VI","Schedule of Assets",null,"(G) Real Estate - Comments 10",0,null,null,null,null,null,null,null,0]
["Sch VI","Schedule of Assets",null,"(G) Real Estate - Comments 30",0,null,null,null,null,null,null,null,0]
["Sch VI","Schedule of Assets",null,"(G) Real Estate - Comments 69",0,null,null,null,null,null,null,null,0]
["Sch VI","Schedule of Assets",null,"(G) Real Estate - Comments 82",0,null,null,null,null,null,null,null,0]
["Sch VI","Schedule of Assets",null,"(H) Other Alt. Inv. - Asset Type 5","Select",null,null,null,null,null,null,null,"Select"]
["Sch VI","Schedule of Assets",null,"(H) Other Alt. Inv. - Asset Type 22","Select",null,null,null,null,null,null,null,"Select"]
["Sch VI","Schedule of Assets",null,"(H) Other Alt. Inv. - Asset Type 36","Select",null,null,null,null,null,null,null,"Select"]
["Sch VI","Schedule of Assets",null,"(H) Other Alt. Inv. - Asset Type 59","Select",null,null,null,null,null,null,null,"Select"]
["Sch VI","Schedule of Assets",null,"(H) Other Alt. Inv. - Asset Type 88","Select",null,null,null,null,null,null,null,"Select"]
["Sch VI","Schedule of Assets",null,"(H) Other Alt. Inv. - Currency 18","Select",null,null,null,null,null,null,null,"Select"]
["Sch VI","Schedule of Assets",null,"(H) Other Alt. Inv. - Currency 23","Select",null,null,null,null,null,null,null,"Select"]
["Sch VI","Schedule of Assets",null,"(H) Other Alt. Inv. - Currency 51","Select",null,null,null,null,null,null,null,"Select"]
["Sch VI","Schedule of Assets",null,"(H) Other Alt. Inv. - Currency 79","Select",null,null,null,null,null,null,null,"Select"]
["Sch VI","Schedule of Assets",null,"(H) Other Alt. Inv. - Currency 88","Select",null,null,null,null,null,null,null,"Select"]
["Sch VI","Schedule of Assets",null,"(H) Other Alt. Inv. - Country 14","Select",null,null,null,null,null,null,null,"Select"]
["Sch VI","Schedule of Assets",null,"(H) Other Alt. Inv. - Country 47","Select",null,null,null,null,null,null,null,"Select"]
["Sch VI","Schedule of Assets",null,"(H) Other Alt. Inv. - Country 66","Select",null,null,null,null,null,null,null,"Select"]
["Sch VI","Schedule of Assets",null,"(H) Other Alt. Inv. - Country 84","Select",null,null,null,null,null,null,null,"Select"]
["Sch VI","Schedule of Assets",null,"(H) Other Alt. Inv. - Rating 1","Select",null,null,null,null,null,null,null,"Select"]
["Sch VI","Schedule of Assets",null,"(H) Other Alt. Inv. - Rating 21","Select",null,null,null,null,null,null,null,"Select"]
["Sch VI","Schedule of Assets",null,"(H) Other Alt. Inv. - Rating 36","Select",null,null,null,null,null,null,null,"Select"]
["Sch VI","Schedule of Assets",null,"(H) Other Alt. Inv. - Rating 76","Select",null,null,null,null,null,null,null,"Select"]
["Sch VI","Schedule of Assets",null,"(H) Other Alt. Inv. - Rating 92","Select",null,null,null,null,null,null,null,"Select"]
["Sch VI","Schedule of Assets",null,"(H) Other Alt. Inv. - Nominal Amount 13",0,null,null,null,null,null,null,null,0]
["Sch VI","Schedule of Assets",null,"(H) Other Alt. Inv. - Nominal Amount 23",0,null,null,null,null,null,null,null,0]
["Sch VI","Schedule of Assets",null,"(H) Other Alt. Inv. - Nominal Amount 50",0,null,null,null,null,null,null,null,0]
["Sch VI","Schedule of Assets",null,"(H) Other Alt. Inv. - Nominal Amount 79",0,null,null,null,null,null,null,null,0]
["Sch VI","Schedule of Assets",null,"(H) Other Alt. Inv. - Nominal Amount 87",0,null,null,null,null,null,null,null,0]
["Sch VI","Schedule of Assets",null,"(H) Other Alt. Inv. - Fair Value 14",0,null,null,null,null,null,null,null,0]
["Sch VI","Schedule of Assets",null,"(H) Other Alt. Inv. - Fair Value 42",0,null,null,null,null,null,null,null,0]
["Sch VI","Schedule of Assets",null,"(H) Other Alt. Inv. - Fair Value 70",0,null,null,null,null,null,null,null,0]
["Sch VI","Schedule of Assets",null,"(H) Other Alt. Inv. - Fair Value 79",0,null,null,null,null,null,null,null,0]
["Sch VI","Schedule of Assets",null,"(H) Other Alt. Inv. - Fair Value 96",0,null,null,null,null,null,null,null,0]
["Sch VI","Schedule of Assets",null,"(H) Other Alt. Inv. - Weighted Avg YTM 21",0,null,null,null,null,null,null,null,0]
["Sch VI","Schedule of Assets",null,"(H) Other Alt. Inv. - Weighted Avg YTM 55",0,null,null,null,null,null,null,null,0]
["Sch VI","Schedule of Assets",null,"(H) Other Alt. Inv. - Weighted Avg YTM 77",0,null,null,null,null,null,null,null,0]
["Sch VI","Schedule of Assets",null,"(H) Other Alt. Inv. - Weighted Avg YTM 92",0,null,null,null,null,null,null,null,0]
["Sch VI","Schedule of Assets",null,"(H) Other Alt. Inv. - Effective Duration 8",0,null,null,null,null,null,null,null,0]
["Sch VI","Schedule of Assets",null,"(H) Other Alt. Inv. - Effective Duration 29",0,null,null,null,null,null,null,null,0]
["Sch VI","Schedule of Assets",null,"(H) Other Alt. Inv. - Effective Duration 64",0,null,null,null,null,null,null,null,0]
["Sch VI","Schedule of Assets",null,"(H) Other Alt. Inv. - Effective Duration 66",0,null,null,null,null,null,null,null,0]
["Sch VI","Schedule of Assets",null,"(H) Other Alt. Inv. - Effective Duration 99",0,null,null,null,null,null,null,null,0]
["Sch VI","Schedule of Assets",null,"(H) Other Alt. Inv. - Comments 21",0,null,null,null,null,null,null,null,0]
["Sch VI","Schedule of Assets",null,"(H) Other Alt. Inv. - Comments 34",0,null,null,null,null,null,null,null,0]
["Sch VI","Schedule of Assets",null,"(H) Other Alt. Inv. - Comments 58",0,null,null,null,null,null,null,null,0]
["Sch VI","Schedule of Assets",null,"(H) Other Alt. Inv. - Comments 86",0,null,null,null,null,null,null,null,0]
["Sch VI","Schedule of Assets",null,"(H) Other Alt. Inv. - Comments 95",0,null,null,null,null,null,null,null,0]
["Sch VI","Schedule of Assets",null,"(I) Derivatives - Derivative Type 20","Select",null,null,null,null,null,null,null,"Select"]
["Sch VI","Schedule of Assets",null,"(I) Derivatives - Derivative Type 53","Select",null,null,null,null,null,null,null,"Select"]
["Sch VI","Schedule of Assets",null,"(I) Derivatives - Derivative Type 76","Select",null,null,null,null,null,null,null,"Select"]
["Sch VI","Schedule of Assets",null,"(I) Derivatives - Derivative Type 86","Select",null,null,null,null,null,null,null,"Select"]
["Sch VI","Schedule of Assets",null,"(I) Derivatives - Derivative Type 111","Select",null,null,null,null,null,null,null,"Select"]
["Sch VI","Schedule of Assets",null,"(I) Derivatives - Derivative Type 123","Select",null,null,null,null,null,null,null,"Select"]
["Sch VI","Schedule of Assets",null,"(I) Derivatives - Derivative Type 146","Select",null,null,null,null,null,null,null,"Select"]
["Sch VI","Schedule of Assets",null,"(I) Derivatives - Derivative Type 182","Select",null,null,null,null,null,null,null,"Select"]
["Sch VI","Schedule of Assets",null,"(I) Derivatives - Derivative Type 198","Select",null,null,null,null,null,null,null,"Select"]
["Sch VI","Schedule of Assets",null,"(I) Derivatives - Underlying 19","Select",null,null,null,null,null,null,null,"Select"]
["Sch VI","Schedule of Assets",null,"(I) Derivatives - Underlying 36","Select",null,null,null,null,null,null,null,"Select"]
["Sch VI","Schedule of Assets",null,"(I) Derivatives - Underlying 70","Select",null,null,null,null,null,null,null,"Select"]
["Sch VI","Schedule of Assets",null,"(I) Derivatives - Underlying 95","Select",null,null,null,null,null,null,null,"Select"]
["Sch VI","Schedule of Assets",null,"(I) Derivatives - Underlying 105","Select",null,null,null,null,null,null,null,"Select"]
["Sch VI","Schedule of Assets",null,"(I) Derivatives - Underlying 132","Select",null,null,null,null,null,null,null,"Select"]
["Sch VI","Schedule of Assets",null,"(I) Derivatives - Underlying 140","Select",null,null,null,null,null,null,null,"Select"]
["Sch VI","Schedule of Assets",null,"(I) Derivatives - Underlying 165","Select",null,null,null,null,null,null,null,"Select"]
["Sch VI","Schedule of Assets",null,"(I) Derivatives - Underlying 196","Select",null,null,null,null,null,null,null,"Select"]
["Sch VI","Schedule of Assets",null,"(I) Derivatives - Currency 24","Select",null,null,null,null,null,null,null,"Select"]
["Sch VI","Schedule of Assets",null,"(I) Derivatives - Currency 27","Select",null,null,null,null,null,null,null,"Select"]
["Sch VI","Schedule of Assets",null,"(I) Derivatives - Currency 61","Select",null,null,null,null,null,null,null,"Select"]
["Sch VI","Schedule of Assets",null,"(I) Derivatives - Currency 83","Select",null,null,null,null,null,null,null,"Select"]
["Sch VI","Schedule of Assets",null,"(I) Derivatives - Currency 98","Select",null,null,null,null,null,null,null,"Select"]
["Sch VI","Schedule of Assets",null,"(I) Derivatives - Currency 118","Select",null,null,null,null,null,null,null,"Select"]
["Sch VI","Schedule of Assets",null,"(I) Derivatives - Currency 153","Select",null,null,null,null,null,null,null,"Select"]
["Sch VI","Schedule of Assets",null,"(I) Derivatives - Currency 174","Select",null,null,null,null,null,null,null,"Select"]
["Sch VI","Schedule of Assets",null,"(I) Derivatives - Currency 190","Select",null,null,null,null,null,null,null,"Select"]
["Sch VI","Schedule of Assets",null,"(I) Derivatives - Trading Category 9","Select",null,null,null,null,null,null,null,"Select"]
["Sch VI","Schedule of Assets",null,"(I) Derivatives - Trading Category 27","Select",null,null,null,null,null,null,null,"Select"]
["Sch VI","Schedule of Assets",null,"(I) Derivatives - Trading Category 40","Select",null,null,null,null,null,null,null,"Select"]
["Sch VI","Schedule of Assets",null,"(I) Derivatives - Trading Category 64","Select",null,null,null,null,null,null,null,"Select"]
["Sch VI","Schedule of Assets",null,"(I) Derivatives - Trading Category 96","Select",null,null,null,null,null,null,null,"Select"]
["Sch VI","Schedule of Assets",null,"(I) Derivatives - Trading Category 119","Select",null,null,null,null,null,null,null,"Select"]
["Sch VI","Schedule of Assets",null,"(I) Derivatives - Trading Category 131","Select",null,null,null,null,null,null,null,"Select"]
["Sch VI","Schedule of Assets",null,"(I) Derivatives - Trading Category 156","Select",null,null,null,null,null,null,null,"Select"]
["Sch VI","Schedule of Assets",null,"(I) Derivatives - Trading Category 187","Select",null,null,null,null,null,null,null,"Select"]
["Sch VI","Schedule of Assets",null,"(I) Derivatives - Trading Category 193","Select",null,null,null,null,null,null,null,"Select"]
["Sch VI","Schedule of Assets",null,"(I) Derivatives - Purpose 32","Select",null,null,null,null,null,null,null,"Select"]
["Sch VI","Schedule of Assets",null,"(I) Derivatives - Purpose 38","Select",null,null,null,null,null,null,null,"Select"]
["Sch VI","Schedule of Assets",null,"(I) Derivatives - Purpose 69","Select",null,null,null,null,null,null,null,"Select"]
["Sch VI","Schedule of Assets",null,"(I) Derivatives - Purpose 94","Select",null,null,null,null,null,null,null,"Select"]
["Sch VI","Schedule of Assets",null,"(I) Derivatives - Purpose 106","Select",null,null,null,null,null,null,null,"Select"]
["Sch VI","Schedule of Assets",null,"(I) Derivatives - Purpose 125","Select",null,null,null,null,null,null,null,"Select"]
["Sch VI","Schedule of Assets",null,"(I) Derivatives - Purpose 143","Select",null,null,null,null,null,null,null,"Select"]
["Sch VI","Schedule of Assets",null,"(I) Derivatives - Purpose 181","Select",null,null,null,null,null,null,null,"Select"]
["Sch VI","Schedule of Assets",null,"(I) Derivatives - Purpose 198","Select",null,null,null,null,null,null,null,"Select"]
["Sch VI","Schedule of Assets",null,"(I) Derivatives - Position 16","Select",null,null,null,null,null,null,null,"Select"]
["Sch VI","Schedule of Assets",null,"(I) Derivatives - Position 35","Select",null,null,null,null,null,null,null,"Select"]
["Sch VI","Schedule of Assets",null,"(I) Derivatives - Position 51","Select",null,null,null,null,null,null,null,"Select"]
["Sch VI","Schedule of Assets",null,"(I) Derivatives - Position 72","Select",null,null,null,null,null,null,null,"Select"]
["Sch VI","Schedule of Assets",null,"(I) Derivatives - Position 103","Select",null,null,null,null,null,null,null,"Select"]
["Sch VI","Schedule of Assets",null,"(I) Derivatives - Position 131","Select",null,null,null,null,null,null,null,"Select"]
["Sch VI","Schedule of Assets",null,"(I) Derivatives - Position 138","Select",null,null,null,null,null,null,null,"Select"]
["Sch VI","Schedule of Assets",null,"(I) Derivatives - Position 164","Select",null,null,null,null,null,null,null,"Select"]
["Sch VI","Schedule of Assets",null,"(I) Derivatives - Position 194","Select",null,null,null,null,null,null,null,"Select"]
["Sch VI","Schedule of Assets",null,"(I) Derivatives - Pos./Neg. - 1","Select",null,null,null,null,null,null,null,"Select"]
["Sch VI","Schedule of Assets",null,"(I) Derivatives - Pos./Neg. - 29","Select",null,null,null,null,null,null,null,"Select"]
["Sch VI","Schedule of Assets",null,"(I) Derivatives - Pos./Neg. - 60","Select",null,null,null,null,null,null,null,"Select"]
["Sch VI","Schedule of Assets",null,"(I) Derivatives - Pos./Neg. - 81","Select",null,null,null,null,null,null,null,"Select"]
["Sch VI","Schedule of Assets",null,"(I) Derivatives - Pos./Neg. - 97","Select",null,null,null,null,null,null,null,"Select"]
["Sch VI","Schedule of Assets",null,"(I) Derivatives - Pos./Neg. - 116","Select",null,null,null,null,null,null,null,"Select"]
["Sch VI","Schedule of Assets",null,"(I) Derivatives - Pos./Neg. - 134","Select",null,null,null,null,null,null,null,"Select"]
["Sch VI","Schedule of Assets",null,"(I) Derivatives - Pos./Neg. - 151","Select",null,null,null,null,null,null,null,"Select"]
["Sch VI","Schedule of Assets",null,"(I) Derivatives - Pos./Neg. - 189","Select",null,null,null,null,null,null,null,"Select"]
["Sch VI","Schedule of Assets",null,"(I) Derivatives - Market Value 10",0,null,null,null,null,null,null,null,0]
["Sch VI","Schedule of Assets",null,"(I) Derivatives - Market Value 23",0,null,null,null,null,null,null,null,0]
["Sch VI","Schedule of Assets",null,"(I) Derivatives - Market Value 43",0,null,null,null,null,null,null,null,0]
["Sch VI","Schedule of Assets",null,"(I) Derivatives - Market Value 58",0,null,null,null,null,null,null,null,0]
["Sch VI","Schedule of Assets",null,"(I) Derivatives - Market Value 80",0,null,null,null,null,null,null,null,0]
["Sch VI","Schedule of Assets",null,"(I) Derivatives - Market Value 114",0,null,null,null,null,null,null,null,0]
["Sch VI","Schedule of Assets",null,"(I) Derivatives - Market Value 139",0,null,null,null,null,null,null,null,0]
["Sch VI","Schedule of Assets",null,"(I) Derivatives - Market Value 145",0,null,null,null,null,null,null,null,0]
["Sch VI","Schedule of Assets",null,"(I) Derivatives - Market Value 176",0,null,null,null,null,null,null,null,0]
["Sch VI","Schedule of Assets",null,"(I) Derivatives - Gross Notional Value 1",0,null,null,null,null,null,null,null,0]
["Sch VI","Schedule of Assets",null,"(I) Derivatives - Gross Notional Value 9",0,null,null,null,null,null,null,null,0]
["Sch VI","Schedule of Assets",null,"(I) Derivatives - Gross Notional Value 36",0,null,null,null,null,null,null,null,0]
["Sch VI","Schedule of Assets",null,"(I) Derivatives - Gross Notional Value 68",0,null,null,null,null,null,null,null,0]
["Sch VI","Schedule of Assets",null,"(I) Derivatives - Gross Notional Value 92",0,null,null,null,null,null,null,null,0]
["Sch VI","Schedule of Assets",null,"(I) Derivatives - Gross Notional Value 105",0,null,null,null,null,null,null,null,0]
["Sch VI","Schedule of Assets",null,"(I) Derivatives - Gross Notional Value 123",0,null,null,null,null,null,null,null,0]
["Sch VI","Schedule of Assets",null,"(I) Derivatives - Gross Notional Value 142",0,null,null,null,null,null,null,null,0]
["Sch VI","Schedule of Assets",null,"(I) Derivatives - Gross Notional Value 179",0,null,null,null,null,null,null,null,0]
["Sch VI","Schedule of Assets",null,"(I) Derivatives - Net Notional Value 1",0,null,null,null,null,null,null,null,0]
["Sch VI","Schedule of Assets",null,"(I) Derivatives - Net Notional Value 14",0,null,null,null,null,null,null,null,0]
["Sch VI","Schedule of Assets",null,"(I) Derivatives - Net Notional Value 34",0,null,null,null,null,null,null,null,0]
["Sch VI","Schedule of Assets",null,"(I) Derivatives - Net Notional Value 49",0,null,null,null,null,null,null,null,0]
["Sch VI","Schedule of Assets",null,"(I) Derivatives - Net Notional Value 71",0,null,null,null,null,null,null,null,0]
["Sch VI","Schedule of Assets",null,"(I) Derivatives - Net Notional Value 101",0,null,null,null,null,null,null,null,0]
["Sch VI","Schedule of Assets",null,"(I) Derivatives - Net Notional Value 130",0,null,null,null,null,null,null,null,0]
["Sch VI","Schedule of Assets",null,"(I) Derivatives - Net Notional Value 147",0,null,null,null,null,null,null,null,0]
["Sch VI","Schedule of Assets",null,"(I) Derivatives - Net Notional Value 156",0,null,null,null,null,null,null,null,0]
["Sch VI","Schedule of Assets",null,"(I) Derivatives - Net Notional Value 184",0,null,null,null,null,null,null,null,0]
["Sch VI","Schedule of Assets",null,"(I) Derivatives - Exposure 8",0,null,null,null,null,null,null,null,0]
["Sch VI","Schedule of Assets",null,"(I) Derivatives - Exposure 21",0,null,null,null,null,null,null,null,0]
["Sch VI","Schedule of Assets",null,"(I) Derivatives - Exposure 43",0,null,null,null,null,null,null,null,0]
["Sch VI","Schedule of Assets",null,"(I) Derivatives - Exposure 80",0,null,null,null,null,null,null,null,0]
["Sch VI","Schedule of Assets",null,"(I) Derivatives - Exposure 99",0,null,null,null,null,null,null,null,0]
["Sch VI","Schedule of Assets",null,"(I) Derivatives - Exposure 113",0,null,null,null,null,null,null,null,0]
["Sch VI","Schedule of Assets",null,"(I) Derivatives - Exposure 134",0,null,null,null,null,null,null,null,0]
["Sch VI","Schedule of Assets",null,"(I) Derivatives - Exposure 150",0,null,null,null,null,null,null,null,0]
["Sch VI","Schedule of Assets",null,"(I) Derivatives - Exposure 186",0,null,null,null,null,null,null,null,0]
["Sch VI","Schedule of Assets",null,"(I) Derivatives - Comments 9",0,null,null,null,null,null,null,null,0]
["Sch VI","Schedule of Assets",null,"(I) Derivatives - Comments 21",0,null,null,null,null,null,null,null,0]
["Sch VI","Schedule of Assets",null,"(I) Derivatives - Comments 46",0,null,null,null,null,null,null,null,0]
["Sch VI","Schedule of Assets",null,"(I) Derivatives - Comments 56",0,null,null,null,null,null,null,null,0]
["Sch VI","Schedule of Assets",null,"(I) Derivatives - Comments 79",0,null,null,null,null,null,null,null,0]
["Sch VI","Schedule of Assets",null,"(I) Derivatives - Comments 112",0,null,null,null,null,null,null,null,0]
["Sch VI","Schedule of Assets",null,"(I) Derivatives - Comments 138",0,null,null,null,null,null,null,null,0]
["Sch VI","Schedule of Assets",null,"(I) Derivatives - Comments 143",0,null,null,null,null,null,null,null,0]
["Sch VI","Schedule of Assets",null,"(I) Derivatives - Comments 175",0,null,null,null,null,null,null,null,0]
["Sch VI","Schedule of Assets",null,"(I) Derivatives - Comments 199",0,null,null,null,null,null,null,null,0]
["Sch VI","Schedule of Assets",null,"(J) Fin. Inst. Rating 8 - Corp Loans",0,null,null,null,null,null,null,null,0]
["Sch VI","Schedule of Assets",null,"(J) Fin. Inst. Other Fin. - Corp Bonds",0,null,null,null,null,null,null,null,0]
["Sch VI","Schedule of Assets",null,"(K) Other Assets - Asset Type 3","Select",null,null,null,null,null,null,null,"Select"]
["Sch VI","Schedule of Assets",null,"(K) Other Assets - Asset Type 5","Select",null,null,null,null,null,null,null,"Select"]
["Sch VI","Schedule of Assets",null,"(K) Other Assets - Asset Type 40","Select",null,null,null,null,null,null,null,"Select"]
["Sch VI","Schedule of Assets",null,"(K) Other Assets - Asset Type 61","Select",null,null,null,null,null,null,null,"Select"]
["Sch VI","Schedule of Assets",null,"(K) Other Assets - Asset Type 77","Select",null,null,null,null,null,null,null,"Select"]
["Sch VI","Schedule of Assets",null,"(K) Other Assets - Asset Type 94","Select",null,null,null,null,null,null,null,"Select"]
["Sch VI","Schedule of Assets",null,"(K) Other Assets - Asset Type 133","Select",null,null,null,null,null,null,null,"Select"]
["Sch VI","Schedule of Assets",null,"(K) Other Assets - Asset Type 153","Select",null,null,null,null,null,null,null,"Select"]
["Sch VI","Schedule of Assets",null,"(K) Other Assets - Asset Type 164","Select",null,null,null,null,null,null,null,"Select"]
["Sch VI","Schedule of Assets",null,"(K) Other Assets - Asset Type 190","Select",null,null,null,null,null,null,null,"Select"]
["Sch VI","Schedule of Assets",null,"(K) Other Assets - Asset Type 199","Select",null,null,null,null,null,null,null,"Select"]
["Sch VI","Schedule of Assets",null,"(K) Other Assets - Currency 27","Select",null,null,null,null,null,null,null,"Select"]
["Sch VI","Schedule of Assets",null,"(K) Other Assets - Currency 55","Select",null,null,null,null,null,null,null,"Select"]
["Sch VI","Schedule of Assets",null,"(K) Other Assets - Currency 82","Select",null,null,null,null,null,null,null,"Select"]
["Sch VI","Schedule of Assets",null,"(K) Other Assets - Currency 90","Select",null,null,null,null,null,null,null,"Select"]
["Sch VI","Schedule of Assets",null,"(K) Other Assets - Currency 119","Select",null,null,null,null,null,null,null,"Select"]
["Sch VI","Schedule of Assets",null,"(K) Other Assets - Currency 146","Select",null,null,null,null,null,null,null,"Select"]
["Sch VI","Schedule of Assets",null,"(K) Other Assets - Currency 156","Select",null,null,null,null,null,null,null,"Select"]
["Sch VI","Schedule of Assets",null,"(K) Other Assets - Currency 177","Select",null,null,null,null,null,null,null,"Select"]
["Sch VI","Schedule of Assets",null,"(K) Other Assets - Currency 193","Select",null,null,null,null,null,null,null,"Select"]
["Sch VI","Schedule of Assets",null,"(K) Other Assets - Rating 33","Select",null,null,null,null,null,null,null,"Select"]
["Sch VI","Schedule of Assets",null,"(K) Other Assets - Rating 48","Select",null,null,null,null,null,null,null,"Select"]
["Sch VI","Schedule of Assets",null,"(K) Other Assets - Rating 68","Select",null,null,null,null,null,null,null,"Select"]
["Sch VI","Schedule of Assets",null,"(K) Other Assets - Rating 85","Select",null,null,null,null,null,null,null,"Select"]
["Sch VI","Schedule of Assets",null,"(K) Other Assets - Rating 103","Select",null,null,null,null,null,null,null,"Select"]
["Sch VI","Schedule of Assets",null,"(K) Other Assets - Rating 122","Select",null,null,null,null,null,null,null,"Select"]
["Sch VI","Schedule of Assets",null,"(K) Other Assets - Rating 155","Select",null,null,null,null,null,null,null,"Select"]
["Sch VI","Schedule of Assets",null,"(K) Other Assets - Rating 181","Select",null,null,null,null,null,null,null,"Select"]
["Sch VI","Schedule of Assets",null,"(K) Other Assets - Rating 198","Select",null,null,null,null,null,null,null,"Select"]
["Sch VI","Schedule of Assets",null,"(K) Other Assets - Nominal Amount 27",0,null,null,null,null,null,null,null,0]
["Sch VI","Schedule of Assets",null,"(K) Other Assets - Nominal Amount 35",0,null,null,null,null,null,null,null,0]
["Sch VI","Schedule of Assets",null,"(K) Other Assets - Nominal Amount 62",0,null,null,null,null,null,null,null,0]
["Sch VI","Schedule of Assets",null,"(K) Other Assets - Nominal Amount 72",0,null,null,null,null,null,null,null,0]
["Sch VI","Schedule of Assets",null,"(K) Other Assets - Nominal Amount 97",0,null,null,null,null,null,null,null,0]
["Sch VI","Schedule of Assets",null,"(K) Other Assets - Nominal Amount 127",0,null,null,null,null,null,null,null,0]
["Sch VI","Schedule of Assets",null,"(K) Other Assets - Nominal Amount 153",0,null,null,null,null,null,null,null,0]
["Sch VI","Schedule of Assets",null,"(K) Other Assets - Nominal Amount 164",0,null,null,null,null,null,null,null,0]
["Sch VI","Schedule of Assets",null,"(K) Other Assets - Nominal Amount 188",0,null,null,null,null,null,null,null,0]
["Sch VI","Schedule of Assets",null,"(K) Other Assets - Fair Value 1",0,null,null,null,null,null,null,null,0]
["Sch VI","Schedule of Assets",null,"(K) Other Assets - Fair Value 40",0,null,null,null,null,null,null,null,0]
["Sch VI","Schedule of Assets",null,"(K) Other Assets - Fair Value 60",0,null,null,null,null,null,null,null,0]
["Sch VI","Schedule of Assets",null,"(K) Other Assets - Fair Value 75",0,null,null,null,null,null,null,null,0]
["Sch VI","Schedule of Assets",null,"(K) Other Assets - Fair Value 93",0,null,null,null,null,null,null,null,0]
["Sch VI","Schedule of Assets",null,"(K) Other Assets - Fair Value 110",0,null,null,null,null,null,null,null,0]
["Sch VI","Schedule of Assets",null,"(K) Other Assets - Fair Value 130",0,null,null,null,null,null,null,null,0]
["Sch VI","Schedule of Assets",null,"(K) Other Assets - Fair Value 166",0,null,null,null,null,null,null,null,0]
["Sch VI","Schedule of Assets",null,"(K) Other Assets - Fair Value 189",0,null,null,null,null,null,null,null,0]
["Sch VI","Schedule of Assets",null,"(K) Other Assets - Fair Value 197",0,null,null,null,null,null,null,null,0]
["Sch VI","Schedule of Assets",null,"(K) Other Assets - Comments 26",0,null,null,null,null,null,null,null,0]
["Sch VI","Schedule of Assets",null,"(K) Other Assets - Comments 53",0,null,null,null,null,null,null,null,0]
["Sch VI","Schedule of Assets",null,"(K) Other Assets - Comments 59",0,null,null,null,null,null,null,null,0]
["Sch VI","Schedule of Assets",null,"(K) Other Assets - Comments 88",0,null,null,null,null,null,null,null,0]
["Sch VI","Schedule of Assets",null,"(K) Other Assets - Comments 118",0,null,null,null,null,null,null,null,0]
["Sch VI","Schedule of Assets",null,"(K) Other Assets - Comments 144",0,null,null,null,null,null,null,null,0]
["Sch VI","Schedule of Assets",null,"(K) Other Assets - Comments 155",0,null,null,null,null,null,null,null,0]
["Sch VI","Schedule of Assets",null,"(K) Other Assets - Comments 172",0,null,null,null,null,null,null,null,0]
["Sch VI","Schedule of Assets",null,"(K) Other Assets - Comments 195",0,null,null,null,null,null,null,null,0]
["Sch VI","Schedule of Assets",null,"Ins. Companies - Moody's Rating 2",0,null,null,null,null,null,null,null,0]
["Sch VI","Schedule of Assets",null,"ABS - Moody's Rating 6",0,null,null,null,null,null,null,null,0]
["Sch VI","Schedule of Assets",null,"Fin. Inst. - S&P Rating 6",0,null,null,null,null,null,null,null,0]
["Sch VI","Schedule of Assets",null,"Corp. Insurers - S&P Rating 4",0,null,null,null,null,null,null,null,0]
["Sch VI","Schedule of Assets",null,"Fin. Inst. - DBRS Rating 2",0,null,null,null,null,null,null,null,0]
["Sch VI","Schedule of Assets",null,"Gov. Securities - DBRS Rating 2",0,null,null,null,null,null,null,null,0]
["Sch VI","Schedule of Assets",null,"Ins. Companies - Kroll Rating 8",0,null,null,null,null,null,null,null,0]
["Sch VI","Schedule of Assets",null,"ABS - Kroll Rating 5",0,null,null,null,null,null,null,null,0]
["Sch VI","Schedule of Assets",null,"Ins. Companies - Egan Jones Rating 4",0,null,null,null,null,null,null,null,0]
["Sch VI","Schedule of Assets",null,"Corp. Insurers - Egan Jones Rating 7",0,null,null,null,null,null,null,null,0]
["Sch VI","Schedule of Assets",null,"Fin. Inst. - Japan Credit Rating 8",0,null,null,null,null,null,null,null,0]
["Sch VI","Schedule of Assets",null,"Gov. Securities - Japan Credit Rating 1",0,null,null,null,null,null,null,null,0]
["Sch VI","Schedule of Assets",null,"Fin. Inst. - BMA Approved Int. Rating 4",0,null,null,null,null,null,null,null,0]
["Sch VI","Schedule of Assets",null,"ABS - BMA Approved Int. Rating 4",0,null,null,null,null,null,null,null,0]
["Sch VI","Schedule of Assets",null,"Corp. Insurers - BMA Approved Agency 1 -  Rating 6",0,null,null,null,null,null,null,null,0]
["Sch VI","Schedule of Assets",null,"Fin. Inst. - BMA Approved Agency 2 -  Rating 2",0,null,null,null,null,null,null,null,0]
["Sch VI","Schedule of Assets",null,"Ins. Companies - BMA Approved Agency 2 -  Rating 6",0,null,null,null,null,null,null,null,0]
["Sch VI","Schedule of Assets",null,"Gov. Securities - BMA Approved Agency 2 -  Rating 4",0,null,null,null,null,null,null,null,0]
["Sch VI","Schedule of Assets",null,"Ins. Companies - BMA Approved Agency 3 -  Rating 2",0,null,null,null,null,null,null,null,0]
["Sch VIA","Schedule of Funds Held",null,"(A) Cash - # of Asset Types",0,null,null,null,null,null,null,null,0]
["Sch VIA","Schedule of Funds Held",null,"(A) Cash - Asset Type 21","Select",null,null,null,null,null,null,null,"Select"]
["Sch VIA","Schedule of Funds Held",null,"(A) Cash - Asset Type 35","Select",null,null,null,null,null,null,null,"Select"]
["Sch VIA","Schedule of Funds Held",null,"(A) Cash - Asset Type 58","Select",null,null,null,null,null,null,null,"Select"]
["Sch VIA","Schedule of Funds Held",null,"(A) Cash - Asset Type 70","Select",null,null,null,null,null,null,null,"Select"]
["Sch VIA","Schedule of Funds Held",null,"(A) Cash - Asset Type 91","Select",null,null,null,null,null,null,null,"Select"]
["Sch VIA","Schedule of Funds Held",null,"(A) Cash - Asset Type 112","Select",null,null,null,null,null,null,null,"Select"]
["Sch VIA","Schedule of Funds Held",null,"(A) Cash - Asset Type 142","Select",null,null,null,null,null,null,null,"Select"]
["Sch VIA","Schedule of Funds Held",null,"(A) Cash - Asset Type 167","Select",null,null,null,null,null,null,null,"Select"]
["Sch VIA","Schedule of Funds Held",null,"(A) Cash - Asset Type 177","Select",null,null,null,null,null,null,null,"Select"]
["Sch VIA","Schedule of Funds Held",null,"(A) Cash - Currency 4","Select",null,null,null,null,null,null,null,"Select"]
["Sch VIA","Schedule of Funds Held",null,"(A) Cash - Currency 33","Select",null,null,null,null,null,null,null,"Select"]
["Sch VIA","Schedule of Funds Held",null,"(A) Cash - Currency 41","Select",null,null,null,null,null,null,null,"Select"]
["Sch VIA","Schedule of Funds Held",null,"(A) Cash - Currency 64","Select",null,null,null,null,null,null,null,"Select"]
["Sch VIA","Schedule of Funds Held",null,"(A) Cash - Currency 100","Select",null,null,null,null,null,null,null,"Select"]
["Sch VIA","Schedule of Funds Held",null,"(A) Cash - Currency 120","Select",null,null,null,null,null,null,null,"Select"]
["Sch VIA","Schedule of Funds Held",null,"(A) Cash - Currency 137","Select",null,null,null,null,null,null,null,"Select"]
["Sch VIA","Schedule of Funds Held",null,"(A) Cash - Currency 155","Select",null,null,null,null,null,null,null,"Select"]
["Sch VIA","Schedule of Funds Held",null,"(A) Cash - Currency 170","Select",null,null,null,null,null,null,null,"Select"]
["Sch VIA","Schedule of Funds Held",null,"(A) Cash - Currency 190","Select",null,null,null,null,null,null,null,"Select"]
["Sch VIA","Schedule of Funds Held",null,"(A) Cash - Rating 29","Select",null,null,null,null,null,null,null,"Select"]
["Sch VIA","Schedule of Funds Held",null,"(A) Cash - Rating 42","Select",null,null,null,null,null,null,null,"Select"]
["Sch VIA","Schedule of Funds Held",null,"(A) Cash - Rating 66","Select",null,null,null,null,null,null,null,"Select"]
["Sch VIA","Schedule of Funds Held",null,"(A) Cash - Rating 77","Select",null,null,null,null,null,null,null,"Select"]
["Sch VIA","Schedule of Funds Held",null,"(A) Cash - Rating 103","Select",null,null,null,null,null,null,null,"Select"]
["Sch VIA","Schedule of Funds Held",null,"(A) Cash - Rating 133","Select",null,null,null,null,null,null,null,"Select"]
["Sch VIA","Schedule of Funds Held",null,"(A) Cash - Rating 158","Select",null,null,null,null,null,null,null,"Select"]
["Sch VIA","Schedule of Funds Held",null,"(A) Cash - Rating 168","Select",null,null,null,null,null,null,null,"Select"]
["Sch VIA","Schedule of Funds Held",null,"(A) Cash - Rating 195","Select",null,null,null,null,null,null,null,"Select"]
["Sch VIA","Schedule of Funds Held",null,"(A) Cash - Nominal 20",0,null,null,null,null,null,null,null,0]
["Sch VIA","Schedule of Funds Held",null,"(A) Cash - Nominal 32",0,null,null,null,null,null,null,null,0]
["Sch VIA","Schedule of Funds Held",null,"(A) Cash - Nominal 49",0,null,null,null,null,null,null,null,0]
["Sch VIA","Schedule of Funds Held",null,"(A) Cash - Nominal 75",0,null,null,null,null,null,null,null,0]
["Sch VIA","Schedule of Funds Held",null,"(A) Cash - Nominal 108",0,null,null,null,null,null,null,null,0]
["Sch VIA","Schedule of Funds Held",null,"(A) Cash - Nominal 127",0,null,null,null,null,null,null,null,0]
["Sch VIA","Schedule of Funds Held",null,"(A) Cash - Nominal 145",0,null,null,null,null,null,null,null,0]
["Sch VIA","Schedule of Funds Held",null,"(A) Cash - Nominal 162",0,null,null,null,null,null,null,null,0]
["Sch VIA","Schedule of Funds Held",null,"(A) Cash - Nominal 182",0,null,null,null,null,null,null,null,0]
["Sch VIA","Schedule of Funds Held",null,"(A) Cash - Fair Value 18",0,null,null,null,null,null,null,null,0]
["Sch VIA","Schedule of Funds Held",null,"(A) Cash - Fair Value 37",0,null,null,null,null,null,null,null,0]
["Sch VIA","Schedule of Funds Held",null,"(A) Cash - Fair Value 53",0,null,null,null,null,null,null,null,0]
["Sch VIA","Schedule of Funds Held",null,"(A) Cash - Fair Value 74",0,null,null,null,null,null,null,null,0]
["Sch VIA","Schedule of Funds Held",null,"(A) Cash - Fair Value 105",0,null,null,null,null,null,null,null,0]
["Sch VIA","Schedule of Funds Held",null,"(A) Cash - Fair Value 111",0,null,null,null,null,null,null,null,0]
["Sch VIA","Schedule of Funds Held",null,"(A) Cash - Fair Value 140",0,null,null,null,null,null,null,null,0]
["Sch VIA","Schedule of Funds Held",null,"(A) Cash - Fair Value 170",0,null,null,null,null,null,null,null,0]
["Sch VIA","Schedule of Funds Held",null,"(A) Cash - Fair Value 175",0,null,null,null,null,null,null,null,0]
["Sch VIA","Schedule of Funds Held",null,"(A) Cash - Comments 3",0,null,null,null,null,null,null,null,0]
["Sch VIA","Schedule of Funds Held",null,"(A) Cash - Comments 31",0,null,null,null,null,null,null,null,0]
["Sch VIA","Schedule of Funds Held",null,"(A) Cash - Comments 40",0,null,null,null,null,null,null,null,0]
["Sch VIA","Schedule of Funds Held",null,"(A) Cash - Comments 66",0,null,null,null,null,null,null,null,0]
["Sch VIA","Schedule of Funds Held",null,"(A) Cash - Comments 99",0,null,null,null,null,null,null,null,0]
["Sch VIA","Schedule of Funds Held",null,"(A) Cash - Comments 118",0,null,null,null,null,null,null,null,0]
["Sch VIA","Schedule of Funds Held",null,"(A) Cash - Comments 136",0,null,null,null,null,null,null,null,0]
["Sch VIA","Schedule of Funds Held",null,"(A) Cash - Comments 153",0,null,null,null,null,null,null,null,0]
["Sch VIA","Schedule of Funds Held",null,"(A) Cash - Comments 169",0,null,null,null,null,null,null,null,0]
["Sch VIA","Schedule of Funds Held",null,"(A) Cash - Comments 188",0,null,null,null,null,null,null,null,0]
["Sch VIA","Schedule of Funds Held",null,"(B) Bonds - Asset Type 27","Select",null,null,null,null,null,null,null,"Select"]
["Sch VIA","Schedule of Funds Held",null,"(B) Bonds - Asset Type 48","Select",null,null,null,null,null,null,null,"Select"]
["Sch VIA","Schedule of Funds Held",null,"(B) Bonds - Asset Type 59","Select",null,null,null,null,null,null,null,"Select"]
["Sch VIA","Schedule of Funds Held",null,"(B) Bonds - Asset Type 81","Select",null,null,null,null,null,null,null,"Select"]
["Sch VIA","Schedule of Funds Held",null,"(B) Bonds - Asset Type 94","Select",null,null,null,null,null,null,null,"Select"]
["Sch VIA","Schedule of Funds Held",null,"(B) Bonds - Asset Type 118","Select",null,null,null,null,null,null,null,"Select"]
["Sch VIA","Schedule of Funds Held",null,"(B) Bonds - Asset Type 146","Select",null,null,null,null,null,null,null,"Select"]
["Sch VIA","Schedule of Funds Held",null,"(B) Bonds - Asset Type 177","Select",null,null,null,null,null,null,null,"Select"]
["Sch VIA","Schedule of Funds Held",null,"(B) Bonds - Asset Type 181","Select",null,null,null,null,null,null,null,"Select"]
["Sch VIA","Schedule of Funds Held",null,"(B) Bonds - Asset Type 214","Select",null,null,null,null,null,null,null,"Select"]
["Sch VIA","Schedule of Funds Held",null,"(B) Bonds - Asset Type 237","Select",null,null,null,null,null,null,null,"Select"]
["Sch VIA","Schedule of Funds Held",null,"(B) Bonds - Asset Type 247","Select",null,null,null,null,null,null,null,"Select"]
["Sch VIA","Schedule of Funds Held",null,"(B) Bonds - Asset Type 272","Select",null,null,null,null,null,null,null,"Select"]
["Sch VIA","Schedule of Funds Held",null,"(B) Bonds - Asset Type 306","Select",null,null,null,null,null,null,null,"Select"]
["Sch VIA","Schedule of Funds Held",null,"(B) Bonds - Asset Type 328","Select",null,null,null,null,null,null,null,"Select"]
["Sch VIA","Schedule of Funds Held",null,"(B) Bonds - Asset Type 343","Select",null,null,null,null,null,null,null,"Select"]
["Sch VIA","Schedule of Funds Held",null,"(B) Bonds - Asset Type 359","Select",null,null,null,null,null,null,null,"Select"]
["Sch VIA","Schedule of Funds Held",null,"(B) Bonds - Asset Type 380","Select",null,null,null,null,null,null,null,"Select"]
["Sch VIA","Schedule of Funds Held",null,"(B) Bonds - Asset Type 394","Select",null,null,null,null,null,null,null,"Select"]
["Sch VIA","Schedule of Funds Held",null,"(B) Bonds - Currency 35","Select",null,null,null,null,null,null,null,"Select"]
["Sch VIA","Schedule of Funds Held",null,"(B) Bonds - Currency 50","Select",null,null,null,null,null,null,null,"Select"]
["Sch VIA","Schedule of Funds Held",null,"(B) Bonds - Currency 72","Select",null,null,null,null,null,null,null,"Select"]
["Sch VIA","Schedule of Funds Held",null,"(B) Bonds - Currency 85","Select",null,null,null,null,null,null,null,"Select"]
["Sch VIA","Schedule of Funds Held",null,"(B) Bonds - Currency 109","Select",null,null,null,null,null,null,null,"Select"]
["Sch VIA","Schedule of Funds Held",null,"(B) Bonds - Currency 137","Select",null,null,null,null,null,null,null,"Select"]
["Sch VIA","Schedule of Funds Held",null,"(B) Bonds - Currency 146","Select",null,null,null,null,null,null,null,"Select"]
["Sch VIA","Schedule of Funds Held",null,"(B) Bonds - Currency 172","Select",null,null,null,null,null,null,null,"Select"]
["Sch VIA","Schedule of Funds Held",null,"(B) Bonds - Currency 205","Select",null,null,null,null,null,null,null,"Select"]
["Sch VIA","Schedule of Funds Held",null,"(B) Bonds - Currency 222","Select",null,null,null,null,null,null,null,"Select"]
["Sch VIA","Schedule of Funds Held",null,"(B) Bonds - Currency 244","Select",null,null,null,null,null,null,null,"Select"]
["Sch VIA","Schedule of Funds Held",null,"(B) Bonds - Currency 259","Select",null,null,null,null,null,null,null,"Select"]
["Sch VIA","Schedule of Funds Held",null,"(B) Bonds - Currency 279","Select",null,null,null,null,null,null,null,"Select"]
["Sch VIA","Schedule of Funds Held",null,"(B) Bonds - Currency 314","Select",null,null,null,null,null,null,null,"Select"]
["Sch VIA","Schedule of Funds Held",null,"(B) Bonds - Currency 335","Select",null,null,null,null,null,null,null,"Select"]
["Sch VIA","Schedule of Funds Held",null,"(B) Bonds - Currency 351","Select",null,null,null,null,null,null,null,"Select"]
["Sch VIA","Schedule of Funds Held",null,"(B) Bonds - Currency 370","Select",null,null,null,null,null,null,null,"Select"]
["Sch VIA","Schedule of Funds Held",null,"(B) Bonds - Currency 388","Select",null,null,null,null,null,null,null,"Select"]
["Sch VIA","Schedule of Funds Held",null,"(B) Bonds - Rating 22","Select",null,null,null,null,null,null,null,"Select"]
["Sch VIA","Schedule of Funds Held",null,"(B) Bonds - Rating 25","Select",null,null,null,null,null,null,null,"Select"]
["Sch VIA","Schedule of Funds Held",null,"(B) Bonds - Rating 57","Select",null,null,null,null,null,null,null,"Select"]
["Sch VIA","Schedule of Funds Held",null,"(B) Bonds - Rating 80","Select",null,null,null,null,null,null,null,"Select"]
["Sch VIA","Schedule of Funds Held",null,"(B) Bonds - Rating 92","Select",null,null,null,null,null,null,null,"Select"]
["Sch VIA","Schedule of Funds Held",null,"(B) Bonds - Rating 117","Select",null,null,null,null,null,null,null,"Select"]
["Sch VIA","Schedule of Funds Held",null,"(B) Bonds - Rating 148","Select",null,null,null,null,null,null,null,"Select"]
["Sch VIA","Schedule of Funds Held",null,"(B) Bonds - Rating 154","Select",null,null,null,null,null,null,null,"Select"]
["Sch VIA","Schedule of Funds Held",null,"(B) Bonds - Rating 179","Select",null,null,null,null,null,null,null,"Select"]
["Sch VIA","Schedule of Funds Held",null,"(B) Bonds - Rating 213","Select",null,null,null,null,null,null,null,"Select"]
["Sch VIA","Schedule of Funds Held",null,"(B) Bonds - Rating 235","Select",null,null,null,null,null,null,null,"Select"]
["Sch VIA","Schedule of Funds Held",null,"(B) Bonds - Rating 250","Select",null,null,null,null,null,null,null,"Select"]
["Sch VIA","Schedule of Funds Held",null,"(B) Bonds - Rating 270","Select",null,null,null,null,null,null,null,"Select"]
["Sch VIA","Schedule of Funds Held",null,"(B) Bonds - Rating 283","Select",null,null,null,null,null,null,null,"Select"]
["Sch VIA","Schedule of Funds Held",null,"(B) Bonds - Rating 305","Select",null,null,null,null,null,null,null,"Select"]
["Sch VIA","Schedule of Funds Held",null,"(B) Bonds - Rating 342","Select",null,null,null,null,null,null,null,"Select"]
["Sch VIA","Schedule of Funds Held",null,"(B) Bonds - Rating 359","Select",null,null,null,null,null,null,null,"Select"]
["Sch VIA","Schedule of Funds Held",null,"(B) Bonds - Rating 377","Select",null,null,null,null,null,null,null,"Select"]
["Sch VIA","Schedule of Funds Held",null,"(B) Bonds - Rating 396","Select",null,null,null,null,null,null,null,"Select"]
["Sch VIA","Schedule of Funds Held",null,"(B) Bonds - Nominal 12",0,null,null,null,null,null,null,null,0]
["Sch VIA","Schedule of Funds Held",null,"(B) Bonds - Nominal 33",0,null,null,null,null,null,null,null,0]
["Sch VIA","Schedule of Funds Held",null,"(B) Bonds - Nominal 64",0,null,null,null,null,null,null,null,0]
["Sch VIA","Schedule of Funds Held",null,"(B) Bonds - Nominal 92",0,null,null,null,null,null,null,null,0]
["Sch VIA","Schedule of Funds Held",null,"(B) Bonds - Nominal 99",0,null,null,null,null,null,null,null,0]
["Sch VIA","Schedule of Funds Held",null,"(B) Bonds - Nominal 125",0,null,null,null,null,null,null,null,0]
["Sch VIA","Schedule of Funds Held",null,"(B) Bonds - Nominal 155",0,null,null,null,null,null,null,null,0]
["Sch VIA","Schedule of Funds Held",null,"(B) Bonds - Nominal 162",0,null,null,null,null,null,null,null,0]
["Sch VIA","Schedule of Funds Held",null,"(B) Bonds - Nominal 190",0,null,null,null,null,null,null,null,0]
["Sch VIA","Schedule of Funds Held",null,"(B) Bonds - Nominal 221",0,null,null,null,null,null,null,null,0]
["Sch VIA","Schedule of Funds Held",null,"(B) Bonds - Nominal 242",0,null,null,null,null,null,null,null,0]
["Sch VIA","Schedule of Funds Held",null,"(B) Bonds - Nominal 258",0,null,null,null,null,null,null,null,0]
["Sch VIA","Schedule of Funds Held",null,"(B) Bonds - Nominal 277",0,null,null,null,null,null,null,null,0]
["Sch VIA","Schedule of Funds Held",null,"(B) Bonds - Nominal 295",0,null,null,null,null,null,null,null,0]
["Sch VIA","Schedule of Funds Held",null,"(B) Bonds - Nominal 333",0,null,null,null,null,null,null,null,0]
["Sch VIA","Schedule of Funds Held",null,"(B) Bonds - Nominal 350",0,null,null,null,null,null,null,null,0]
["Sch VIA","Schedule of Funds Held",null,"(B) Bonds - Nominal 368",0,null,null,null,null,null,null,null,0]
["Sch VIA","Schedule of Funds Held",null,"(B) Bonds - Nominal 387",0,null,null,null,null,null,null,null,0]
["Sch VIA","Schedule of Funds Held",null,"(B) Bonds - Nominal 399",0,null,null,null,null,null,null,null,0]
["Sch VIA","Schedule of Funds Held",null,"(B) Bonds - Fair Value 24",0,null,null,null,null,null,null,null,0]
["Sch VIA","Schedule of Funds Held",null,"(B) Bonds - Fair Value 55",0,null,null,null,null,null,null,null,0]
["Sch VIA","Schedule of Funds Held",null,"(B) Bonds - Fair Value 83",0,null,null,null,null,null,null,null,0]
["Sch VIA","Schedule of Funds Held",null,"(B) Bonds - Fair Value 90",0,null,null,null,null,null,null,null,0]
["Sch VIA","Schedule of Funds Held",null,"(B) Bonds - Fair Value 116",0,null,null,null,null,null,null,null,0]
["Sch VIA","Schedule of Funds Held",null,"(B) Bonds - Fair Value 137",0,null,null,null,null,null,null,null,0]
["Sch VIA","Schedule of Funds Held",null,"(B) Bonds - Fair Value 162",0,null,null,null,null,null,null,null,0]
["Sch VIA","Schedule of Funds Held",null,"(B) Bonds - Fair Value 174",0,null,null,null,null,null,null,null,0]
["Sch VIA","Schedule of Funds Held",null,"(B) Bonds - Fair Value 197",0,null,null,null,null,null,null,null,0]
["Sch VIA","Schedule of Funds Held",null,"(B) Bonds - Fair Value 229",0,null,null,null,null,null,null,null,0]
["Sch VIA","Schedule of Funds Held",null,"(B) Bonds - Fair Value 253",0,null,null,null,null,null,null,null,0]
["Sch VIA","Schedule of Funds Held",null,"(B) Bonds - Fair Value 266",0,null,null,null,null,null,null,null,0]
["Sch VIA","Schedule of Funds Held",null,"(B) Bonds - Fair Value 284",0,null,null,null,null,null,null,null,0]
["Sch VIA","Schedule of Funds Held",null,"(B) Bonds - Fair Value 303",0,null,null,null,null,null,null,null,0]
["Sch VIA","Schedule of Funds Held",null,"(B) Bonds - Fair Value 340",0,null,null,null,null,null,null,null,0]
["Sch VIA","Schedule of Funds Held",null,"(B) Bonds - Fair Value 362",0,null,null,null,null,null,null,null,0]
["Sch VIA","Schedule of Funds Held",null,"(B) Bonds - Fair Value 375",0,null,null,null,null,null,null,null,0]
["Sch VIA","Schedule of Funds Held",null,"(B) Bonds - Fair Value 395",0,null,null,null,null,null,null,null,0]
["Sch VIA","Schedule of Funds Held",null,"(B) Bonds - Weighted Average YTM 10",0,null,null,null,null,null,null,null,0]
["Sch VIA","Schedule of Funds Held",null,"(B) Bonds - Weighted Average YTM 32",0,null,null,null,null,null,null,null,0]
["Sch VIA","Schedule of Funds Held",null,"(B) Bonds - Weighted Average YTM 62",0,null,null,null,null,null,null,null,0]
["Sch VIA","Schedule of Funds Held",null,"(B) Bonds - Weighted Average YTM 91",0,null,null,null,null,null,null,null,0]
["Sch VIA","Schedule of Funds Held",null,"(B) Bonds - Weighted Average YTM 97",0,null,null,null,null,null,null,null,0]
["Sch VIA","Schedule of Funds Held",null,"(B) Bonds - Weighted Average YTM 128",0,null,null,null,null,null,null,null,0]
["Sch VIA","Schedule of Funds Held",null,"(B) Bonds - Weighted Average YTM 153",0,null,null,null,null,null,null,null,0]
["Sch VIA","Schedule of Funds Held",null,"(B) Bonds - Weighted Average YTM 161",0,null,null,null,null,null,null,null,0]
["Sch VIA","Schedule of Funds Held",null,"(B) Bonds - Weighted Average YTM 188",0,null,null,null,null,null,null,null,0]
["Sch VIA","Schedule of Funds Held",null,"(B) Bonds - Weighted Average YTM 220",0,null,null,null,null,null,null,null,0]
["Sch VIA","Schedule of Funds Held",null,"(B) Bonds - Weighted Average YTM 223",0,null,null,null,null,null,null,null,0]
["Sch VIA","Schedule of Funds Held",null,"(B) Bonds - Weighted Average YTM 257",0,null,null,null,null,null,null,null,0]
["Sch VIA","Schedule of Funds Held",null,"(B) Bonds - Weighted Average YTM 275",0,null,null,null,null,null,null,null,0]
["Sch VIA","Schedule of Funds Held",null,"(B) Bonds - Weighted Average YTM 294",0,null,null,null,null,null,null,null,0]
["Sch VIA","Schedule of Funds Held",null,"(B) Bonds - Weighted Average YTM 311",0,null,null,null,null,null,null,null,0]
["Sch VIA","Schedule of Funds Held",null,"(B) Bonds - Weighted Average YTM 347",0,null,null,null,null,null,null,null,0]
["Sch VIA","Schedule of Funds Held",null,"(B) Bonds - Weighted Average YTM 370",0,null,null,null,null,null,null,null,0]
["Sch VIA","Schedule of Funds Held",null,"(B) Bonds - Weighted Average YTM 382",0,null,null,null,null,null,null,null,0]
["Sch VIA","Schedule of Funds Held",null,"(B) Bonds - Effective Duration 7",0,null,null,null,null,null,null,null,0]
["Sch VIA","Schedule of Funds Held",null,"(B) Bonds - Effective Duration 17",0,null,null,null,null,null,null,null,0]
["Sch VIA","Schedule of Funds Held",null,"(B) Bonds - Effective Duration 40",0,null,null,null,null,null,null,null,0]
["Sch VIA","Schedule of Funds Held",null,"(B) Bonds - Effective Duration 73",0,null,null,null,null,null,null,null,0]
["Sch VIA","Schedule of Funds Held",null,"(B) Bonds - Effective Duration 99",0,null,null,null,null,null,null,null,0]
["Sch VIA","Schedule of Funds Held",null,"(B) Bonds - Effective Duration 104",0,null,null,null,null,null,null,null,0]
["Sch VIA","Schedule of Funds Held",null,"(B) Bonds - Effective Duration 136",0,null,null,null,null,null,null,null,0]
["Sch VIA","Schedule of Funds Held",null,"(B) Bonds - Effective Duration 160",0,null,null,null,null,null,null,null,0]
["Sch VIA","Schedule of Funds Held",null,"(B) Bonds - Effective Duration 173",0,null,null,null,null,null,null,null,0]
["Sch VIA","Schedule of Funds Held",null,"(B) Bonds - Effective Duration 195",0,null,null,null,null,null,null,null,0]
["Sch VIA","Schedule of Funds Held",null,"(B) Bonds - Effective Duration 228",0,null,null,null,null,null,null,null,0]
["Sch VIA","Schedule of Funds Held",null,"(B) Bonds - Effective Duration 251",0,null,null,null,null,null,null,null,0]
["Sch VIA","Schedule of Funds Held",null,"(B) Bonds - Effective Duration 265",0,null,null,null,null,null,null,null,0]
["Sch VIA","Schedule of Funds Held",null,"(B) Bonds - Effective Duration 286",0,null,null,null,null,null,null,null,0]
["Sch VIA","Schedule of Funds Held",null,"(B) Bonds - Effective Duration 302",0,null,null,null,null,null,null,null,0]
["Sch VIA","Schedule of Funds Held",null,"(B) Bonds - Effective Duration 338",0,null,null,null,null,null,null,null,0]
["Sch VIA","Schedule of Funds Held",null,"(B) Bonds - Effective Duration 339",0,null,null,null,null,null,null,null,0]
["Sch VIA","Schedule of Funds Held",null,"(B) Bonds - Effective Duration 373",0,null,null,null,null,null,null,null,0]
["Sch VIA","Schedule of Funds Held",null,"(B) Bonds - Effective Duration 394",0,null,null,null,null,null,null,null,0]
["Sch VIA","Schedule of Funds Held",null,"(B) Bonds - Comments 8",0,null,null,null,null,null,null,null,0]
["Sch VIA","Schedule of Funds Held",null,"(B) Bonds - Comments 31",0,null,null,null,null,null,null,null,0]
["Sch VIA","Schedule of Funds Held",null,"(B) Bonds - Comments 52",0,null,null,null,null,null,null,null,0]
["Sch VIA","Schedule of Funds Held",null,"(B) Bonds - Comments 80",0,null,null,null,null,null,null,null,0]
["Sch VIA","Schedule of Funds Held",null,"(B) Bonds - Comments 107",0,null,null,null,null,null,null,null,0]
["Sch VIA","Schedule of Funds Held",null,"(B) Bonds - Comments 115",0,null,null,null,null,null,null,null,0]
["Sch VIA","Schedule of Funds Held",null,"(B) Bonds - Comments 144",0,null,null,null,null,null,null,null,0]
["Sch VIA","Schedule of Funds Held",null,"(B) Bonds - Comments 171",0,null,null,null,null,null,null,null,0]
["Sch VIA","Schedule of Funds Held",null,"(B) Bonds - Comments 181",0,null,null,null,null,null,null,null,0]
["Sch VIA","Schedule of Funds Held",null,"(B) Bonds - Comments 202",0,null,null,null,null,null,null,null,0]
["Sch VIA","Schedule of Funds Held",null,"(B) Bonds - Comments 240",0,null,null,null,null,null,null,null,0]
["Sch VIA","Schedule of Funds Held",null,"(B) Bonds - Comments 258",0,null,null,null,null,null,null,null,0]
["Sch VIA","Schedule of Funds Held",null,"(B) Bonds - Comments 273",0,null,null,null,null,null,null,null,0]
["Sch VIA","Schedule of Funds Held",null,"(B) Bonds - Comments 293",0,null,null,null,null,null,null,null,0]
["Sch VIA","Schedule of Funds Held",null,"(B) Bonds - Comments 310",0,null,null,null,null,null,null,null,0]
["Sch VIA","Schedule of Funds Held",null,"(B) Bonds - Comments 328",0,null,null,null,null,null,null,null,0]
["Sch VIA","Schedule of Funds Held",null,"(B) Bonds - Comments 369",0,null,null,null,null,null,null,null,0]
["Sch VIA","Schedule of Funds Held",null,"(B) Bonds - Comments 380",0,null,null,null,null,null,null,null,0]
["Sch VIA","Schedule of Funds Held",null,"(B) Bonds Sovereign Debt - Country 5","Select",null,null,null,null,null,null,null,"Select"]
["Sch VIA","Schedule of Funds Held",null,"(B) Bonds Sovereign Debt - Country 14","Select",null,null,null,null,null,null,null,"Select"]
["Sch VIA","Schedule of Funds Held",null,"(B) Bonds Sovereign Debt - Country 38","Select",null,null,null,null,null,null,null,"Select"]
["Sch VIA","Schedule of Funds Held",null,"(B) Bonds Sovereign Debt - Country 70","Select",null,null,null,null,null,null,null,"Select"]
["Sch VIA","Schedule of Funds Held",null,"(B) Bonds Sovereign Debt - Country 97","Select",null,null,null,null,null,null,null,"Select"]
["Sch VIA","Schedule of Funds Held",null,"(B) Bonds Sovereign Debt - Country 105","Select",null,null,null,null,null,null,null,"Select"]
["Sch VIA","Schedule of Funds Held",null,"(B) Bonds Sovereign Debt - Country 134","Select",null,null,null,null,null,null,null,"Select"]
["Sch VIA","Schedule of Funds Held",null,"(B) Bonds Sovereign Debt - Country 157","Select",null,null,null,null,null,null,null,"Select"]
["Sch VIA","Schedule of Funds Held",null,"(B) Bonds Sovereign Debt - Country 171","Select",null,null,null,null,null,null,null,"Select"]
["Sch VIA","Schedule of Funds Held",null,"(B) Bonds Sovereign Debt - Country 192","Select",null,null,null,null,null,null,null,"Select"]
["Sch VIA","Schedule of Funds Held",null,"(B) Bonds Sovereign Debt - Currency 8","Select",null,null,null,null,null,null,null,"Select"]
["Sch VIA","Schedule of Funds Held",null,"(B) Bonds Sovereign Debt - Currency 47","Select",null,null,null,null,null,null,null,"Select"]
["Sch VIA","Schedule of Funds Held",null,"(B) Bonds Sovereign Debt - Currency 64","Select",null,null,null,null,null,null,null,"Select"]
["Sch VIA","Schedule of Funds Held",null,"(B) Bonds Sovereign Debt - Currency 84","Select",null,null,null,null,null,null,null,"Select"]
["Sch VIA","Schedule of Funds Held",null,"(B) Bonds Sovereign Debt - Currency 99","Select",null,null,null,null,null,null,null,"Select"]
["Sch VIA","Schedule of Funds Held",null,"(B) Bonds Sovereign Debt - Currency 117","Select",null,null,null,null,null,null,null,"Select"]
["Sch VIA","Schedule of Funds Held",null,"(B) Bonds Sovereign Debt - Currency 155","Select",null,null,null,null,null,null,null,"Select"]
["Sch VIA","Schedule of Funds Held",null,"(B) Bonds Sovereign Debt - Currency 176","Select",null,null,null,null,null,null,null,"Select"]
["Sch VIA","Schedule of Funds Held",null,"(B) Bonds Sovereign Debt - Currency 190","Select",null,null,null,null,null,null,null,"Select"]
["Sch VIA","Schedule of Funds Held",null,"(B) Bonds Sovereign Debt - Rating 13","Select",null,null,null,null,null,null,null,"Select"]
["Sch VIA","Schedule of Funds Held",null,"(B) Bonds Sovereign Debt - Rating 21","Select",null,null,null,null,null,null,null,"Select"]
["Sch VIA","Schedule of Funds Held",null,"(B) Bonds Sovereign Debt - Rating 50","Select",null,null,null,null,null,null,null,"Select"]
["Sch VIA","Schedule of Funds Held",null,"(B) Bonds Sovereign Debt - Rating 77","Select",null,null,null,null,null,null,null,"Select"]
["Sch VIA","Schedule of Funds Held",null,"(B) Bonds Sovereign Debt - Rating 87","Select",null,null,null,null,null,null,null,"Select"]
["Sch VIA","Schedule of Funds Held",null,"(B) Bonds Sovereign Debt - Rating 112","Select",null,null,null,null,null,null,null,"Select"]
["Sch VIA","Schedule of Funds Held",null,"(B) Bonds Sovereign Debt - Rating 142","Select",null,null,null,null,null,null,null,"Select"]
["Sch VIA","Schedule of Funds Held",null,"(B) Bonds Sovereign Debt - Rating 168","Select",null,null,null,null,null,null,null,"Select"]
["Sch VIA","Schedule of Funds Held",null,"(B) Bonds Sovereign Debt - Rating 179","Select",null,null,null,null,null,null,null,"Select"]
["Sch VIA","Schedule of Funds Held",null,"(B) Bonds Sovereign Debt - Rating 199","Select",null,null,null,null,null,null,null,"Select"]
["Sch VIA","Schedule of Funds Held",null,"(B) Bonds Sovereign Debt - Fair Value 16",0,null,null,null,null,null,null,null,0]
["Sch VIA","Schedule of Funds Held",null,"(B) Bonds Sovereign Debt - Fair Value 55",0,null,null,null,null,null,null,null,0]
["Sch VIA","Schedule of Funds Held",null,"(B) Bonds Sovereign Debt - Fair Value 75",0,null,null,null,null,null,null,null,0]
["Sch VIA","Schedule of Funds Held",null,"(B) Bonds Sovereign Debt - Fair Value 90",0,null,null,null,null,null,null,null,0]
["Sch VIA","Schedule of Funds Held",null,"(B) Bonds Sovereign Debt - Fair Value 108",0,null,null,null,null,null,null,null,0]
["Sch VIA","Schedule of Funds Held",null,"(B) Bonds Sovereign Debt - Fair Value 125",0,null,null,null,null,null,null,null,0]
["Sch VIA","Schedule of Funds Held",null,"(B) Bonds Sovereign Debt - Fair Value 145",0,null,null,null,null,null,null,null,0]
["Sch VIA","Schedule of Funds Held",null,"(B) Bonds Sovereign Debt - Fair Value 177",0,null,null,null,null,null,null,null,0]
["Sch VIA","Schedule of Funds Held",null,"(B) Bonds Sovereign Debt - Comments 4",0,null,null,null,null,null,null,null,0]
["Sch VIA","Schedule of Funds Held",null,"(B) Bonds Sovereign Debt - Comments 21",0,null,null,null,null,null,null,null,0]
["Sch VIA","Schedule of Funds Held",null,"(B) Bonds Sovereign Debt - Comments 32",0,null,null,null,null,null,null,null,0]
["Sch VIA","Schedule of Funds Held",null,"(B) Bonds Sovereign Debt - Comments 58",0,null,null,null,null,null,null,null,0]
["Sch VIA","Schedule of Funds Held",null,"(B) Bonds Sovereign Debt - Comments 84",0,null,null,null,null,null,null,null,0]
["Sch VIA","Schedule of Funds Held",null,"(B) Bonds Sovereign Debt - Comments 95",0,null,null,null,null,null,null,null,0]
["Sch VIA","Schedule of Funds Held",null,"(B) Bonds Sovereign Debt - Comments 119",0,null,null,null,null,null,null,null,0]
["Sch VIA","Schedule of Funds Held",null,"(B) Bonds Sovereign Debt - Comments 154",0,null,null,null,null,null,null,null,0]
["Sch VIA","Schedule of Funds Held",null,"(B) Bonds Sovereign Debt - Comments 175",0,null,null,null,null,null,null,null,0]
["Sch VIA","Schedule of Funds Held",null,"(B) Bonds Sovereign Debt - Comments 187",0,null,null,null,null,null,null,null,0]
["Sch VIA","Schedule of Funds Held",null,"(C) ABS and Struct. Sec. - Asset Type 9","Select",null,null,null,null,null,null,null,"Select"]
["Sch VIA","Schedule of Funds Held",null,"(C) ABS and Struct. Sec. - Asset Type 23","Select",null,null,null,null,null,null,null,"Select"]
["Sch VIA","Schedule of Funds Held",null,"(C) ABS and Struct. Sec. - Asset Type 61","Select",null,null,null,null,null,null,null,"Select"]
["Sch VIA","Schedule of Funds Held",null,"(C) ABS and Struct. Sec. - Asset Type 82","Select",null,null,null,null,null,null,null,"Select"]
["Sch VIA","Schedule of Funds Held",null,"(C) ABS and Struct. Sec. - Asset Type 96","Select",null,null,null,null,null,null,null,"Select"]
["Sch VIA","Schedule of Funds Held",null,"(C) ABS and Struct. Sec. - Asset Type 119","Select",null,null,null,null,null,null,null,"Select"]
["Sch VIA","Schedule of Funds Held",null,"(C) ABS and Struct. Sec. - Asset Type 131","Select",null,null,null,null,null,null,null,"Select"]
["Sch VIA","Schedule of Funds Held",null,"(C) ABS and Struct. Sec. - Currency 2","Select",null,null,null,null,null,null,null,"Select"]
["Sch VIA","Schedule of Funds Held",null,"(C) ABS and Struct. Sec. - Currency 37","Select",null,null,null,null,null,null,null,"Select"]
["Sch VIA","Schedule of Funds Held",null,"(C) ABS and Struct. Sec. - Currency 61","Select",null,null,null,null,null,null,null,"Select"]
["Sch VIA","Schedule of Funds Held",null,"(C) ABS and Struct. Sec. - Currency 68","Select",null,null,null,null,null,null,null,"Select"]
["Sch VIA","Schedule of Funds Held",null,"(C) ABS and Struct. Sec. - Currency 98","Select",null,null,null,null,null,null,null,"Select"]
["Sch VIA","Schedule of Funds Held",null,"(C) ABS and Struct. Sec. - Currency 124","Select",null,null,null,null,null,null,null,"Select"]
["Sch VIA","Schedule of Funds Held",null,"(C) ABS and Struct. Sec. - Currency 135","Select",null,null,null,null,null,null,null,"Select"]
["Sch VIA","Schedule of Funds Held",null,"(C) ABS and Struct. Sec. - Rating 9","Select",null,null,null,null,null,null,null,"Select"]
["Sch VIA","Schedule of Funds Held",null,"(C) ABS and Struct. Sec. - Rating 40","Select",null,null,null,null,null,null,null,"Select"]
["Sch VIA","Schedule of Funds Held",null,"(C) ABS and Struct. Sec. - Rating 61","Select",null,null,null,null,null,null,null,"Select"]
["Sch VIA","Schedule of Funds Held",null,"(C) ABS and Struct. Sec. - Rating 81","Select",null,null,null,null,null,null,null,"Select"]
["Sch VIA","Schedule of Funds Held",null,"(C) ABS and Struct. Sec. - Rating 98","Select",null,null,null,null,null,null,null,"Select"]
["Sch VIA","Schedule of Funds Held",null,"(C) ABS and Struct. Sec. - Rating 116","Select",null,null,null,null,null,null,null,"Select"]
["Sch VIA","Schedule of Funds Held",null,"(C) ABS and Struct. Sec. - Rating 131","Select",null,null,null,null,null,null,null,"Select"]
["Sch VIA","Schedule of Funds Held",null,"(C) ABS and Struct. Sec. - Nominal Amount 22",0,null,null,null,null,null,null,null,0]
["Sch VIA","Schedule of Funds Held",null,"(C) ABS and Struct. Sec. - Nominal Amount 40",0,null,null,null,null,null,null,null,0]
["Sch VIA","Schedule of Funds Held",null,"(C) ABS and Struct. Sec. - Nominal Amount 53",0,null,null,null,null,null,null,null,0]
["Sch VIA","Schedule of Funds Held",null,"(C) ABS and Struct. Sec. - Nominal Amount 77",0,null,null,null,null,null,null,null,0]
["Sch VIA","Schedule of Funds Held",null,"(C) ABS and Struct. Sec. - Nominal Amount 109",0,null,null,null,null,null,null,null,0]
["Sch VIA","Schedule of Funds Held",null,"(C) ABS and Struct. Sec. - Nominal Amount 114",0,null,null,null,null,null,null,null,0]
["Sch VIA","Schedule of Funds Held",null,"(C) ABS and Struct. Sec. - Nominal Amount 144",0,null,null,null,null,null,null,null,0]
["Sch VIA","Schedule of Funds Held",null,"(C) ABS and Struct. Sec. - Fair Value 19",0,null,null,null,null,null,null,null,0]
["Sch VIA","Schedule of Funds Held",null,"(C) ABS and Struct. Sec. - Fair Value 29",0,null,null,null,null,null,null,null,0]
["Sch VIA","Schedule of Funds Held",null,"(C) ABS and Struct. Sec. - Fair Value 56",0,null,null,null,null,null,null,null,0]
["Sch VIA","Schedule of Funds Held",null,"(C) ABS and Struct. Sec. - Fair Value 85",0,null,null,null,null,null,null,null,0]
["Sch VIA","Schedule of Funds Held",null,"(C) ABS and Struct. Sec. - Fair Value 93",0,null,null,null,null,null,null,null,0]
["Sch VIA","Schedule of Funds Held",null,"(C) ABS and Struct. Sec. - Fair Value 116",0,null,null,null,null,null,null,null,0]
["Sch VIA","Schedule of Funds Held",null,"(C) ABS and Struct. Sec. - Weighted Avg YTM 2",0,null,null,null,null,null,null,null,0]
["Sch VIA","Schedule of Funds Held",null,"(C) ABS and Struct. Sec. - Weighted Avg YTM 22",0,null,null,null,null,null,null,null,0]
["Sch VIA","Schedule of Funds Held",null,"(C) ABS and Struct. Sec. - Weighted Avg YTM 35",0,null,null,null,null,null,null,null,0]
["Sch VIA","Schedule of Funds Held",null,"(C) ABS and Struct. Sec. - Weighted Avg YTM 57",0,null,null,null,null,null,null,null,0]
["Sch VIA","Schedule of Funds Held",null,"(C) ABS and Struct. Sec. - Weighted Avg YTM 72",0,null,null,null,null,null,null,null,0]
["Sch VIA","Schedule of Funds Held",null,"(C) ABS and Struct. Sec. - Weighted Avg YTM 92",0,null,null,null,null,null,null,null,0]
["Sch VIA","Schedule of Funds Held",null,"(C) ABS and Struct. Sec. - Weighted Avg YTM 131",0,null,null,null,null,null,null,null,0]
["Sch VIA","Schedule of Funds Held",null,"(C) ABS and Struct. Sec. - Weighted Avg YTM 144",0,null,null,null,null,null,null,null,0]
["Sch VIA","Schedule of Funds Held",null,"(C) ABS and Struct. Sec. - Effective Duration 18",0,null,null,null,null,null,null,null,0]
["Sch VIA","Schedule of Funds Held",null,"(C) ABS and Struct. Sec. - Effective Duration 35",0,null,null,null,null,null,null,null,0]
["Sch VIA","Schedule of Funds Held",null,"(C) ABS and Struct. Sec. - Effective Duration 66",0,null,null,null,null,null,null,null,0]
["Sch VIA","Schedule of Funds Held",null,"(C) ABS and Struct. Sec. - Effective Duration 72",0,null,null,null,null,null,null,null,0]
["Sch VIA","Schedule of Funds Held",null,"(C) ABS and Struct. Sec. - Effective Duration 101",0,null,null,null,null,null,null,null,0]
["Sch VIA","Schedule of Funds Held",null,"(C) ABS and Struct. Sec. - Effective Duration 131",0,null,null,null,null,null,null,null,0]
["Sch VIA","Schedule of Funds Held",null,"(C) ABS and Struct. Sec. - Effective Duration 136",0,null,null,null,null,null,null,null,0]
["Sch VIA","Schedule of Funds Held",null,"(C) ABS and Struct. Sec. - Comments 14",0,null,null,null,null,null,null,null,0]
["Sch VIA","Schedule of Funds Held",null,"(C) ABS and Struct. Sec. - Comments 42",0,null,null,null,null,null,null,null,0]
["Sch VIA","Schedule of Funds Held",null,"(C) ABS and Struct. Sec. - Comments 51",0,null,null,null,null,null,null,null,0]
["Sch VIA","Schedule of Funds Held",null,"(C) ABS and Struct. Sec. - Comments 77",0,null,null,null,null,null,null,null,0]
["Sch VIA","Schedule of Funds Held",null,"(C) ABS and Struct. Sec. - Comments 110",0,null,null,null,null,null,null,null,0]
["Sch VIA","Schedule of Funds Held",null,"(C) ABS and Struct. Sec. - Comments 129",0,null,null,null,null,null,null,null,0]
["Sch VIA","Schedule of Funds Held",null,"(C) ABS and Struct. Sec. - Comments 147",0,null,null,null,null,null,null,null,0]
["Sch VIA","Schedule of Funds Held",null,"(D) Loans - Asset Type 13","Select",null,null,null,null,null,null,null,"Select"]
["Sch VIA","Schedule of Funds Held",null,"(D) Loans - Asset Type 29","Select",null,null,null,null,null,null,null,"Select"]
["Sch VIA","Schedule of Funds Held",null,"(D) Loans - Asset Type 48","Select",null,null,null,null,null,null,null,"Select"]
["Sch VIA","Schedule of Funds Held",null,"(D) Loans - Asset Type 88","Select",null,null,null,null,null,null,null,"Select"]
["Sch VIA","Schedule of Funds Held",null,"(D) Loans - Currency 4","Select",null,null,null,null,null,null,null,"Select"]
["Sch VIA","Schedule of Funds Held",null,"(D) Loans - Currency 25","Select",null,null,null,null,null,null,null,"Select"]
["Sch VIA","Schedule of Funds Held",null,"(D) Loans - Currency 35","Select",null,null,null,null,null,null,null,"Select"]
["Sch VIA","Schedule of Funds Held",null,"(D) Loans - Currency 62","Select",null,null,null,null,null,null,null,"Select"]
["Sch VIA","Schedule of Funds Held",null,"(D) Loans - Currency 91","Select",null,null,null,null,null,null,null,"Select"]
["Sch VIA","Schedule of Funds Held",null,"(D) Loans - Currency 99","Select",null,null,null,null,null,null,null,"Select"]
["Sch VIA","Schedule of Funds Held",null,"(D) Loans - Country 26","Select",null,null,null,null,null,null,null,"Select"]
["Sch VIA","Schedule of Funds Held",null,"(D) Loans - Country 54","Select",null,null,null,null,null,null,null,"Select"]
["Sch VIA","Schedule of Funds Held",null,"(D) Loans - Country 82","Select",null,null,null,null,null,null,null,"Select"]
["Sch VIA","Schedule of Funds Held",null,"(D) Loans - Country 91","Select",null,null,null,null,null,null,null,"Select"]
["Sch VIA","Schedule of Funds Held",null,"(D) Loans - Rating 8","Select",null,null,null,null,null,null,null,"Select"]
["Sch VIA","Schedule of Funds Held",null,"(D) Loans - Rating 33","Select",null,null,null,null,null,null,null,"Select"]
["Sch VIA","Schedule of Funds Held",null,"(D) Loans - Rating 67","Select",null,null,null,null,null,null,null,"Select"]
["Sch VIA","Schedule of Funds Held",null,"(D) Loans - Rating 89","Select",null,null,null,null,null,null,null,"Select"]
["Sch VIA","Schedule of Funds Held",null,"(D) Loans - Nominal Amount 4",0,null,null,null,null,null,null,null,0]
["Sch VIA","Schedule of Funds Held",null,"(D) Loans - Nominal Amount 20",0,null,null,null,null,null,null,null,0]
["Sch VIA","Schedule of Funds Held",null,"(D) Loans - Nominal Amount 41",0,null,null,null,null,null,null,null,0]
["Sch VIA","Schedule of Funds Held",null,"(D) Loans - Nominal Amount 76",0,null,null,null,null,null,null,null,0]
["Sch VIA","Schedule of Funds Held",null,"(D) Loans - Nominal Amount 96",0,null,null,null,null,null,null,null,0]
["Sch VIA","Schedule of Funds Held",null,"(D) Loans - Fair Value 11",0,null,null,null,null,null,null,null,0]
["Sch VIA","Schedule of Funds Held",null,"(D) Loans - Fair Value 33",0,null,null,null,null,null,null,null,0]
["Sch VIA","Schedule of Funds Held",null,"(D) Loans - Fair Value 46",0,null,null,null,null,null,null,null,0]
["Sch VIA","Schedule of Funds Held",null,"(D) Loans - Fair Value 70",0,null,null,null,null,null,null,null,0]
["Sch VIA","Schedule of Funds Held",null,"(D) Loans - Fair Value 98",0,null,null,null,null,null,null,null,0]
["Sch VIA","Schedule of Funds Held",null,"(D) Loans - Weighted Avg YTM 7",0,null,null,null,null,null,null,null,0]
["Sch VIA","Schedule of Funds Held",null,"(D) Loans - Weighted Avg YTM 33",0,null,null,null,null,null,null,null,0]
["Sch VIA","Schedule of Funds Held",null,"(D) Loans - Weighted Avg YTM 66",0,null,null,null,null,null,null,null,0]
["Sch VIA","Schedule of Funds Held",null,"(D) Loans - Weighted Avg YTM 89",0,null,null,null,null,null,null,null,0]
["Sch VIA","Schedule of Funds Held",null,"(D) Loans - Weighted Avg YTM 99",0,null,null,null,null,null,null,null,0]
["Sch VIA","Schedule of Funds Held",null,"(D) Loans - Effective Duration 24",0,null,null,null,null,null,null,null,0]
["Sch VIA","Schedule of Funds Held",null,"(D) Loans - Effective Duration 36",0,null,null,null,null,null,null,null,0]
["Sch VIA","Schedule of Funds Held",null,"(D) Loans - Effective Duration 76",0,null,null,null,null,null,null,null,0]
["Sch VIA","Schedule of Funds Held",null,"(D) Loans - Effective Duration 95",0,null,null,null,null,null,null,null,0]
["Sch VIA","Schedule of Funds Held",null,"(D) Loans - Comments 11",0,null,null,null,null,null,null,null,0]
["Sch VIA","Schedule of Funds Held",null,"(D) Loans - Comments 32",0,null,null,null,null,null,null,null,0]
["Sch VIA","Schedule of Funds Held",null,"(D) Loans - Comments 49",0,null,null,null,null,null,null,null,0]
["Sch VIA","Schedule of Funds Held",null,"(D) Loans - Comments 83",0,null,null,null,null,null,null,null,0]
["Sch VIA","Schedule of Funds Held",null,"(D) Loans Not Perform. - Asset Type 7","Select",null,null,null,null,null,null,null,"Select"]
["Sch VIA","Schedule of Funds Held",null,"(D) Loans Not Perform. - Asset Type 17","Select",null,null,null,null,null,null,null,"Select"]
["Sch VIA","Schedule of Funds Held",null,"(D) Loans Not Perform. - Currency 20","Select",null,null,null,null,null,null,null,"Select"]
["Sch VIA","Schedule of Funds Held",null,"(D) Loans Not Perform. - Country 12","Select",null,null,null,null,null,null,null,"Select"]
["Sch VIA","Schedule of Funds Held",null,"(D) Loans Not Perform. - Rating 17","Select",null,null,null,null,null,null,null,"Select"]
["Sch VIA","Schedule of Funds Held",null,"(D) Loans Not Perform. - Fair Value 8",0,null,null,null,null,null,null,null,0]
["Sch VIA","Schedule of Funds Held",null,"(D) Loans Not Perform. - Comment 16",0,null,null,null,null,null,null,null,0]
["Sch VIA","Schedule of Funds Held",null,"(D) Loans Not Perform. - Comment 19",0,null,null,null,null,null,null,null,0]
["Sch VIA","Schedule of Funds Held",null,"(E) Preferred Equities - Asset Type 32","Select",null,null,null,null,null,null,null,"Select"]
["Sch VIA","Schedule of Funds Held",null,"(E) Preferred Equities - Asset Type 54","Select",null,null,null,null,null,null,null,"Select"]
["Sch VIA","Schedule of Funds Held",null,"(E) Preferred Equities - Asset Type 69","Select",null,null,null,null,null,null,null,"Select"]
["Sch VIA","Schedule of Funds Held",null,"(E) Preferred Equities - Asset Type 89","Select",null,null,null,null,null,null,null,"Select"]
["Sch VIA","Schedule of Funds Held",null,"(E) Preferred Equities - Currency 24","Select",null,null,null,null,null,null,null,"Select"]
["Sch VIA","Schedule of Funds Held",null,"(E) Preferred Equities - Currency 45","Select",null,null,null,null,null,null,null,"Select"]
["Sch VIA","Schedule of Funds Held",null,"(E) Preferred Equities - Currency 61","Select",null,null,null,null,null,null,null,"Select"]
["Sch VIA","Schedule of Funds Held",null,"(E) Preferred Equities - Currency 76","Select",null,null,null,null,null,null,null,"Select"]
["Sch VIA","Schedule of Funds Held",null,"(E) Preferred Equities - Currency 98","Select",null,null,null,null,null,null,null,"Select"]
["Sch VIA","Schedule of Funds Held",null,"(E) Preferred Equities - Rating 11","Select",null,null,null,null,null,null,null,"Select"]
["Sch VIA","Schedule of Funds Held",null,"(E) Preferred Equities - Rating 35","Select",null,null,null,null,null,null,null,"Select"]
["Sch VIA","Schedule of Funds Held",null,"(E) Preferred Equities - Rating 67","Select",null,null,null,null,null,null,null,"Select"]
["Sch VIA","Schedule of Funds Held",null,"(E) Preferred Equities - Rating 90","Select",null,null,null,null,null,null,null,"Select"]
["Sch VIA","Schedule of Funds Held",null,"(E) Preferred Equities - Nominal Amount 2",0,null,null,null,null,null,null,null,0]
["Sch VIA","Schedule of Funds Held",null,"(E) Preferred Equities - Nominal Amount 27",0,null,null,null,null,null,null,null,0]
["Sch VIA","Schedule of Funds Held",null,"(E) Preferred Equities - Nominal Amount 58",0,null,null,null,null,null,null,null,0]
["Sch VIA","Schedule of Funds Held",null,"(E) Preferred Equities - Nominal Amount 64",0,null,null,null,null,null,null,null,0]
["Sch VIA","Schedule of Funds Held",null,"(E) Preferred Equities - Fair Value 3",0,null,null,null,null,null,null,null,0]
["Sch VIA","Schedule of Funds Held",null,"(E) Preferred Equities - Fair Value 9",0,null,null,null,null,null,null,null,0]
["Sch VIA","Schedule of Funds Held",null,"(E) Preferred Equities - Fair Value 40",0,null,null,null,null,null,null,null,0]
["Sch VIA","Schedule of Funds Held",null,"(E) Preferred Equities - Fair Value 61",0,null,null,null,null,null,null,null,0]
["Sch VIA","Schedule of Funds Held",null,"(E) Preferred Equities - Fair Value 77",0,null,null,null,null,null,null,null,0]
["Sch VIA","Schedule of Funds Held",null,"(E) Preferred Equities - Fair Value 96",0,null,null,null,null,null,null,null,0]
["Sch VIA","Schedule of Funds Held",null,"(E) Preferred Equities - Weighted Avg YTM 14",0,null,null,null,null,null,null,null,0]
["Sch VIA","Schedule of Funds Held",null,"(E) Preferred Equities - Weighted Avg YTM 52",0,null,null,null,null,null,null,null,0]
["Sch VIA","Schedule of Funds Held",null,"(E) Preferred Equities - Weighted Avg YTM 69",0,null,null,null,null,null,null,null,0]
["Sch VIA","Schedule of Funds Held",null,"(E) Preferred Equities - Weighted Avg YTM 87",0,null,null,null,null,null,null,null,0]
["Sch VIA","Schedule of Funds Held",null,"(E) Preferred Equities - Effective Duration 6",0,null,null,null,null,null,null,null,0]
["Sch VIA","Schedule of Funds Held",null,"(E) Preferred Equities - Effective Duration 39",0,null,null,null,null,null,null,null,0]
["Sch VIA","Schedule of Funds Held",null,"(E) Preferred Equities - Effective Duration 43",0,null,null,null,null,null,null,null,0]
["Sch VIA","Schedule of Funds Held",null,"(E) Preferred Equities - Effective Duration 74",0,null,null,null,null,null,null,null,0]
["Sch VIA","Schedule of Funds Held",null,"(E) Preferred Equities - Comments 2",0,null,null,null,null,null,null,null,0]
["Sch VIA","Schedule of Funds Held",null,"(E) Preferred Equities - Comments 9",0,null,null,null,null,null,null,null,0]
["Sch VIA","Schedule of Funds Held",null,"(E) Preferred Equities - Comments 35",0,null,null,null,null,null,null,null,0]
["Sch VIA","Schedule of Funds Held",null,"(E) Preferred Equities - Comments 65",0,null,null,null,null,null,null,null,0]
["Sch VIA","Schedule of Funds Held",null,"(E) Preferred Equities - Comments 72",0,null,null,null,null,null,null,null,0]
["Sch VIA","Schedule of Funds Held",null,"(E) Preferred Equities - Comments 100",0,null,null,null,null,null,null,null,0]
["Sch VIA","Schedule of Funds Held",null,"(F) Common Equities - Asset Type 30","Select",null,null,null,null,null,null,null,"Select"]
["Sch VIA","Schedule of Funds Held",null,"(F) Common Equities - Asset Type 51","Select",null,null,null,null,null,null,null,"Select"]
["Sch VIA","Schedule of Funds Held",null,"(F) Common Equities - Asset Type 67","Select",null,null,null,null,null,null,null,"Select"]
["Sch VIA","Schedule of Funds Held",null,"(F) Common Equities - Asset Type 86","Select",null,null,null,null,null,null,null,"Select"]
["Sch VIA","Schedule of Funds Held",null,"(F) Common Equities - Asset Type 100","Select",null,null,null,null,null,null,null,"Select"]
["Sch VIA","Schedule of Funds Held",null,"(F) Common Equities - Currency 21","Select",null,null,null,null,null,null,null,"Select"]
["Sch VIA","Schedule of Funds Held",null,"(F) Common Equities - Currency 59","Select",null,null,null,null,null,null,null,"Select"]
["Sch VIA","Schedule of Funds Held",null,"(F) Common Equities - Currency 80","Select",null,null,null,null,null,null,null,"Select"]
["Sch VIA","Schedule of Funds Held",null,"(F) Common Equities - Currency 93","Select",null,null,null,null,null,null,null,"Select"]
["Sch VIA","Schedule of Funds Held",null,"(F) Common Equities - Country 13","Select",null,null,null,null,null,null,null,"Select"]
["Sch VIA","Schedule of Funds Held",null,"(F) Common Equities - Country 28","Select",null,null,null,null,null,null,null,"Select"]
["Sch VIA","Schedule of Funds Held",null,"(F) Common Equities - Country 50","Select",null,null,null,null,null,null,null,"Select"]
["Sch VIA","Schedule of Funds Held",null,"(F) Common Equities - Country 80","Select",null,null,null,null,null,null,null,"Select"]
["Sch VIA","Schedule of Funds Held",null,"(F) Common Equities - Fair Value 9",0,null,null,null,null,null,null,null,0]
["Sch VIA","Schedule of Funds Held",null,"(F) Common Equities - Fair Value 15",0,null,null,null,null,null,null,null,0]
["Sch VIA","Schedule of Funds Held",null,"(F) Common Equities - Fair Value 46",0,null,null,null,null,null,null,null,0]
["Sch VIA","Schedule of Funds Held",null,"(F) Common Equities - Fair Value 71",0,null,null,null,null,null,null,null,0]
["Sch VIA","Schedule of Funds Held",null,"(F) Common Equities - Fair Value 79",0,null,null,null,null,null,null,null,0]
["Sch VIA","Schedule of Funds Held",null,"(F) Common Equities - Comments 6",0,null,null,null,null,null,null,null,0]
["Sch VIA","Schedule of Funds Held",null,"(F) Common Equities - Comments 38",0,null,null,null,null,null,null,null,0]
["Sch VIA","Schedule of Funds Held",null,"(F) Common Equities - Comments 62",0,null,null,null,null,null,null,null,0]
["Sch VIA","Schedule of Funds Held",null,"(F) Common Equities - Comments 75",0,null,null,null,null,null,null,null,0]
["Sch VIA","Schedule of Funds Held",null,"(F) Common Equities - Comments 93",0,null,null,null,null,null,null,null,0]
["Sch VIA","Schedule of Funds Held",null,"(G) Real Estate - Asset Type 11","Select",null,null,null,null,null,null,null,"Select"]
["Sch VIA","Schedule of Funds Held",null,"(G) Real Estate - Asset Type 48","Select",null,null,null,null,null,null,null,"Select"]
["Sch VIA","Schedule of Funds Held",null,"(G) Real Estate - Asset Type 66","Select",null,null,null,null,null,null,null,"Select"]
["Sch VIA","Schedule of Funds Held",null,"(G) Real Estate - Asset Type 83","Select",null,null,null,null,null,null,null,"Select"]
["Sch VIA","Schedule of Funds Held",null,"(G) Real Estate - Currency 3","Select",null,null,null,null,null,null,null,"Select"]
["Sch VIA","Schedule of Funds Held",null,"(G) Real Estate - Currency 18","Select",null,null,null,null,null,null,null,"Select"]
["Sch VIA","Schedule of Funds Held",null,"(G) Real Estate - Currency 40","Select",null,null,null,null,null,null,null,"Select"]
["Sch VIA","Schedule of Funds Held",null,"(G) Real Estate - Currency 70","Select",null,null,null,null,null,null,null,"Select"]
["Sch VIA","Schedule of Funds Held",null,"(G) Real Estate - Currency 99","Select",null,null,null,null,null,null,null,"Select"]
["Sch VIA","Schedule of Funds Held",null,"(G) Real Estate - Country 16","Select",null,null,null,null,null,null,null,"Select"]
["Sch VIA","Schedule of Funds Held",null,"(G) Real Estate - Country 25","Select",null,null,null,null,null,null,null,"Select"]
["Sch VIA","Schedule of Funds Held",null,"(G) Real Estate - Country 53","Select",null,null,null,null,null,null,null,"Select"]
["Sch VIA","Schedule of Funds Held",null,"(G) Real Estate - Country 77","Select",null,null,null,null,null,null,null,"Select"]
["Sch VIA","Schedule of Funds Held",null,"(G) Real Estate - Country 90","Select",null,null,null,null,null,null,null,"Select"]
["Sch VIA","Schedule of Funds Held",null,"(G) Real Estate - Purpose 12","Select",null,null,null,null,null,null,null,"Select"]
["Sch VIA","Schedule of Funds Held",null,"(G) Real Estate - Purpose 45","Select",null,null,null,null,null,null,null,"Select"]
["Sch VIA","Schedule of Funds Held",null,"(G) Real Estate - Purpose 68","Select",null,null,null,null,null,null,null,"Select"]
["Sch VIA","Schedule of Funds Held",null,"(G) Real Estate - Purpose 82","Select",null,null,null,null,null,null,null,"Select"]
["Sch VIA","Schedule of Funds Held",null,"(G) Real Estate - Cost 3",0,null,null,null,null,null,null,null,0]
["Sch VIA","Schedule of Funds Held",null,"(G) Real Estate - Cost 19",0,null,null,null,null,null,null,null,0]
["Sch VIA","Schedule of Funds Held",null,"(G) Real Estate - Cost 55",0,null,null,null,null,null,null,null,0]
["Sch VIA","Schedule of Funds Held",null,"(G) Real Estate - Cost 78",0,null,null,null,null,null,null,null,0]
["Sch VIA","Schedule of Funds Held",null,"(G) Real Estate - Cost 90",0,null,null,null,null,null,null,null,0]
["Sch VIA","Schedule of Funds Held",null,"(G) Real Estate - Fair Value 11",0,null,null,null,null,null,null,null,0]
["Sch VIA","Schedule of Funds Held",null,"(G) Real Estate - Fair Value 25",0,null,null,null,null,null,null,null,0]
["Sch VIA","Schedule of Funds Held",null,"(G) Real Estate - Fair Value 48",0,null,null,null,null,null,null,null,0]
["Sch VIA","Schedule of Funds Held",null,"(G) Real Estate - Fair Value 81",0,null,null,null,null,null,null,null,0]
["Sch VIA","Schedule of Funds Held",null,"(G) Real Estate - Comments 7",0,null,null,null,null,null,null,null,0]
["Sch VIA","Schedule of Funds Held",null,"(G) Real Estate - Comments 12",0,null,null,null,null,null,null,null,0]
["Sch VIA","Schedule of Funds Held",null,"(G) Real Estate - Comments 44",0,null,null,null,null,null,null,null,0]
["Sch VIA","Schedule of Funds Held",null,"(G) Real Estate - Comments 68",0,null,null,null,null,null,null,null,0]
["Sch VIA","Schedule of Funds Held",null,"(G) Real Estate - Comments 81",0,null,null,null,null,null,null,null,0]
["Sch VIA","Schedule of Funds Held",null,"(H) Other Alt. Inv. - Asset Type 2","Select",null,null,null,null,null,null,null,"Select"]
["Sch VIA","Schedule of Funds Held",null,"(H) Other Alt. Inv. - Asset Type 35","Select",null,null,null,null,null,null,null,"Select"]
["Sch VIA","Schedule of Funds Held",null,"(H) Other Alt. Inv. - Asset Type 37","Select",null,null,null,null,null,null,null,"Select"]
["Sch VIA","Schedule of Funds Held",null,"(H) Other Alt. Inv. - Asset Type 72","Select",null,null,null,null,null,null,null,"Select"]
["Sch VIA","Schedule of Funds Held",null,"(H) Other Alt. Inv. - Asset Type 89","Select",null,null,null,null,null,null,null,"Select"]
["Sch VIA","Schedule of Funds Held",null,"(H) Other Alt. Inv. - Currency 9","Select",null,null,null,null,null,null,null,"Select"]
["Sch VIA","Schedule of Funds Held",null,"(H) Other Alt. Inv. - Currency 26","Select",null,null,null,null,null,null,null,"Select"]
["Sch VIA","Schedule of Funds Held",null,"(H) Other Alt. Inv. - Currency 65","Select",null,null,null,null,null,null,null,"Select"]
["Sch VIA","Schedule of Funds Held",null,"(H) Other Alt. Inv. - Currency 85","Select",null,null,null,null,null,null,null,"Select"]
["Sch VIA","Schedule of Funds Held",null,"(H) Other Alt. Inv. - Currency 96","Select",null,null,null,null,null,null,null,"Select"]
["Sch VIA","Schedule of Funds Held",null,"(H) Other Alt. Inv. - Country 22","Select",null,null,null,null,null,null,null,"Select"]
["Sch VIA","Schedule of Funds Held",null,"(H) Other Alt. Inv. - Country 31","Select",null,null,null,null,null,null,null,"Select"]
["Sch VIA","Schedule of Funds Held",null,"(H) Other Alt. Inv. - Country 59","Select",null,null,null,null,null,null,null,"Select"]
["Sch VIA","Schedule of Funds Held",null,"(H) Other Alt. Inv. - Country 87","Select",null,null,null,null,null,null,null,"Select"]
["Sch VIA","Schedule of Funds Held",null,"(H) Other Alt. Inv. - Rating 14","Select",null,null,null,null,null,null,null,"Select"]
["Sch VIA","Schedule of Funds Held",null,"(H) Other Alt. Inv. - Rating 22","Select",null,null,null,null,null,null,null,"Select"]
["Sch VIA","Schedule of Funds Held",null,"(H) Other Alt. Inv. - Rating 51","Select",null,null,null,null,null,null,null,"Select"]
["Sch VIA","Schedule of Funds Held",null,"(H) Other Alt. Inv. - Rating 74","Select",null,null,null,null,null,null,null,"Select"]
["Sch VIA","Schedule of Funds Held",null,"(H) Other Alt. Inv. - Rating 88","Select",null,null,null,null,null,null,null,"Select"]
["Sch VIA","Schedule of Funds Held",null,"(H) Other Alt. Inv. - Nominal Amount 9",0,null,null,null,null,null,null,null,0]
["Sch VIA","Schedule of Funds Held",null,"(H) Other Alt. Inv. - Nominal Amount 25",0,null,null,null,null,null,null,null,0]
["Sch VIA","Schedule of Funds Held",null,"(H) Other Alt. Inv. - Nominal Amount 65",0,null,null,null,null,null,null,null,0]
["Sch VIA","Schedule of Funds Held",null,"(H) Other Alt. Inv. - Nominal Amount 80",0,null,null,null,null,null,null,null,0]
["Sch VIA","Schedule of Funds Held",null,"(H) Other Alt. Inv. - Nominal Amount 100",0,null,null,null,null,null,null,null,0]
["Sch VIA","Schedule of Funds Held",null,"(H) Other Alt. Inv. - Fair Value 17",0,null,null,null,null,null,null,null,0]
["Sch VIA","Schedule of Funds Held",null,"(H) Other Alt. Inv. - Fair Value 52",0,null,null,null,null,null,null,null,0]
["Sch VIA","Schedule of Funds Held",null,"(H) Other Alt. Inv. - Fair Value 54",0,null,null,null,null,null,null,null,0]
["Sch VIA","Schedule of Funds Held",null,"(H) Other Alt. Inv. - Fair Value 87",0,null,null,null,null,null,null,null,0]
["Sch VIA","Schedule of Funds Held",null,"(H) Other Alt. Inv. - Weighted Avg YTM 13",0,null,null,null,null,null,null,null,0]
["Sch VIA","Schedule of Funds Held",null,"(H) Other Alt. Inv. - Weighted Avg YTM 22",0,null,null,null,null,null,null,null,0]
["Sch VIA","Schedule of Funds Held",null,"(H) Other Alt. Inv. - Weighted Avg YTM 46",0,null,null,null,null,null,null,null,0]
["Sch VIA","Schedule of Funds Held",null,"(H) Other Alt. Inv. - Weighted Avg YTM 67",0,null,null,null,null,null,null,null,0]
["Sch VIA","Schedule of Funds Held",null,"(H) Other Alt. Inv. - Weighted Avg YTM 94",0,null,null,null,null,null,null,null,0]
["Sch VIA","Schedule of Funds Held",null,"(H) Other Alt. Inv. - Effective Duration 4",0,null,null,null,null,null,null,null,0]
["Sch VIA","Schedule of Funds Held",null,"(H) Other Alt. Inv. - Effective Duration 29",0,null,null,null,null,null,null,null,0]
["Sch VIA","Schedule of Funds Held",null,"(H) Other Alt. Inv. - Effective Duration 59",0,null,null,null,null,null,null,null,0]
["Sch VIA","Schedule of Funds Held",null,"(H) Other Alt. Inv. - Effective Duration 85",0,null,null,null,null,null,null,null,0]
["Sch VIA","Schedule of Funds Held",null,"(H) Other Alt. Inv. - Effective Duration 96",0,null,null,null,null,null,null,null,0]
["Sch VIA","Schedule of Funds Held",null,"(H) Other Alt. Inv. - Comments 16",0,null,null,null,null,null,null,null,0]
["Sch VIA","Schedule of Funds Held",null,"(H) Other Alt. Inv. - Comments 33",0,null,null,null,null,null,null,null,0]
["Sch VIA","Schedule of Funds Held",null,"(H) Other Alt. Inv. - Comments 72",0,null,null,null,null,null,null,null,0]
["Sch VIA","Schedule of Funds Held",null,"(H) Other Alt. Inv. - Comments 92",0,null,null,null,null,null,null,null,0]
["Sch VIA","Schedule of Funds Held",null,"(I) Derivatives - Derivative Type 6","Select",null,null,null,null,null,null,null,"Select"]
["Sch VIA","Schedule of Funds Held",null,"(I) Derivatives - Derivative Type 24","Select",null,null,null,null,null,null,null,"Select"]
["Sch VIA","Schedule of Funds Held",null,"(I) Derivatives - Derivative Type 41","Select",null,null,null,null,null,null,null,"Select"]
["Sch VIA","Schedule of Funds Held",null,"(I) Derivatives - Derivative Type 61","Select",null,null,null,null,null,null,null,"Select"]
["Sch VIA","Schedule of Funds Held",null,"(I) Derivatives - Derivative Type 93","Select",null,null,null,null,null,null,null,"Select"]
["Sch VIA","Schedule of Funds Held",null,"(I) Derivatives - Derivative Type 120","Select",null,null,null,null,null,null,null,"Select"]
["Sch VIA","Schedule of Funds Held",null,"(I) Derivatives - Derivative Type 128","Select",null,null,null,null,null,null,null,"Select"]
["Sch VIA","Schedule of Funds Held",null,"(I) Derivatives - Derivative Type 157","Select",null,null,null,null,null,null,null,"Select"]
["Sch VIA","Schedule of Funds Held",null,"(I) Derivatives - Derivative Type 184","Select",null,null,null,null,null,null,null,"Select"]
["Sch VIA","Schedule of Funds Held",null,"(I) Derivatives - Derivative Type 190","Select",null,null,null,null,null,null,null,"Select"]
["Sch VIA","Schedule of Funds Held",null,"(I) Derivatives - Underlying 19","Select",null,null,null,null,null,null,null,"Select"]
["Sch VIA","Schedule of Funds Held",null,"(I) Derivatives - Underlying 49","Select",null,null,null,null,null,null,null,"Select"]
["Sch VIA","Schedule of Funds Held",null,"(I) Derivatives - Underlying 75","Select",null,null,null,null,null,null,null,"Select"]
["Sch VIA","Schedule of Funds Held",null,"(I) Derivatives - Underlying 86","Select",null,null,null,null,null,null,null,"Select"]
["Sch VIA","Schedule of Funds Held",null,"(I) Derivatives - Underlying 103","Select",null,null,null,null,null,null,null,"Select"]
["Sch VIA","Schedule of Funds Held",null,"(I) Derivatives - Underlying 126","Select",null,null,null,null,null,null,null,"Select"]
["Sch VIA","Schedule of Funds Held",null,"(I) Derivatives - Underlying 162","Select",null,null,null,null,null,null,null,"Select"]
["Sch VIA","Schedule of Funds Held",null,"(I) Derivatives - Underlying 178","Select",null,null,null,null,null,null,null,"Select"]
["Sch VIA","Schedule of Funds Held",null,"(I) Derivatives - Underlying 199","Select",null,null,null,null,null,null,null,"Select"]
["Sch VIA","Schedule of Funds Held",null,"(I) Derivatives - Currency 13","Select",null,null,null,null,null,null,null,"Select"]
["Sch VIA","Schedule of Funds Held",null,"(I) Derivatives - Currency 36","Select",null,null,null,null,null,null,null,"Select"]
["Sch VIA","Schedule of Funds Held",null,"(I) Derivatives - Currency 69","Select",null,null,null,null,null,null,null,"Select"]
["Sch VIA","Schedule of Funds Held",null,"(I) Derivatives - Currency 91","Select",null,null,null,null,null,null,null,"Select"]
["Sch VIA","Schedule of Funds Held",null,"(I) Derivatives - Currency 104","Select",null,null,null,null,null,null,null,"Select"]
["Sch VIA","Schedule of Funds Held",null,"(I) Derivatives - Currency 128","Select",null,null,null,null,null,null,null,"Select"]
["Sch VIA","Schedule of Funds Held",null,"(I) Derivatives - Currency 139","Select",null,null,null,null,null,null,null,"Select"]
["Sch VIA","Schedule of Funds Held",null,"(I) Derivatives - Currency 165","Select",null,null,null,null,null,null,null,"Select"]
["Sch VIA","Schedule of Funds Held",null,"(I) Derivatives - Currency 191","Select",null,null,null,null,null,null,null,"Select"]
["Sch VIA","Schedule of Funds Held",null,"(I) Derivatives - Trading Category 2","Select",null,null,null,null,null,null,null,"Select"]
["Sch VIA","Schedule of Funds Held",null,"(I) Derivatives - Trading Category 26","Select",null,null,null,null,null,null,null,"Select"]
["Sch VIA","Schedule of Funds Held",null,"(I) Derivatives - Trading Category 57","Select",null,null,null,null,null,null,null,"Select"]
["Sch VIA","Schedule of Funds Held",null,"(I) Derivatives - Trading Category 82","Select",null,null,null,null,null,null,null,"Select"]
["Sch VIA","Schedule of Funds Held",null,"(I) Derivatives - Trading Category 94","Select",null,null,null,null,null,null,null,"Select"]
["Sch VIA","Schedule of Funds Held",null,"(I) Derivatives - Trading Category 117","Select",null,null,null,null,null,null,null,"Select"]
["Sch VIA","Schedule of Funds Held",null,"(I) Derivatives - Trading Category 131","Select",null,null,null,null,null,null,null,"Select"]
["Sch VIA","Schedule of Funds Held",null,"(I) Derivatives - Trading Category 169","Select",null,null,null,null,null,null,null,"Select"]
["Sch VIA","Schedule of Funds Held",null,"(I) Derivatives - Trading Category 190","Select",null,null,null,null,null,null,null,"Select"]
["Sch VIA","Schedule of Funds Held",null,"(I) Derivatives - Purpose 4","Select",null,null,null,null,null,null,null,"Select"]
["Sch VIA","Schedule of Funds Held",null,"(I) Derivatives - Purpose 23","Select",null,null,null,null,null,null,null,"Select"]
["Sch VIA","Schedule of Funds Held",null,"(I) Derivatives - Purpose 39","Select",null,null,null,null,null,null,null,"Select"]
["Sch VIA","Schedule of Funds Held",null,"(I) Derivatives - Purpose 60","Select",null,null,null,null,null,null,null,"Select"]
["Sch VIA","Schedule of Funds Held",null,"(I) Derivatives - Purpose 81","Select",null,null,null,null,null,null,null,"Select"]
["Sch VIA","Schedule of Funds Held",null,"(I) Derivatives - Purpose 111","Select",null,null,null,null,null,null,null,"Select"]
["Sch VIA","Schedule of Funds Held",null,"(I) Derivatives - Purpose 136","Select",null,null,null,null,null,null,null,"Select"]
["Sch VIA","Schedule of Funds Held",null,"(I) Derivatives - Purpose 146","Select",null,null,null,null,null,null,null,"Select"]
["Sch VIA","Schedule of Funds Held",null,"(I) Derivatives - Purpose 173","Select",null,null,null,null,null,null,null,"Select"]
["Sch VIA","Schedule of Funds Held",null,"(I) Derivatives - Position 2","Select",null,null,null,null,null,null,null,"Select"]
["Sch VIA","Schedule of Funds Held",null,"(I) Derivatives - Position 10","Select",null,null,null,null,null,null,null,"Select"]
["Sch VIA","Schedule of Funds Held",null,"(I) Derivatives - Position 33","Select",null,null,null,null,null,null,null,"Select"]
["Sch VIA","Schedule of Funds Held",null,"(I) Derivatives - Position 69","Select",null,null,null,null,null,null,null,"Select"]
["Sch VIA","Schedule of Funds Held",null,"(I) Derivatives - Position 89","Select",null,null,null,null,null,null,null,"Select"]
["Sch VIA","Schedule of Funds Held",null,"(I) Derivatives - Position 102","Select",null,null,null,null,null,null,null,"Select"]
["Sch VIA","Schedule of Funds Held",null,"(I) Derivatives - Position 124","Select",null,null,null,null,null,null,null,"Select"]
["Sch VIA","Schedule of Funds Held",null,"(I) Derivatives - Position 139","Select",null,null,null,null,null,null,null,"Select"]
["Sch VIA","Schedule of Funds Held",null,"(I) Derivatives - Position 159","Select",null,null,null,null,null,null,null,"Select"]
["Sch VIA","Schedule of Funds Held",null,"(I) Derivatives - Position 198","Select",null,null,null,null,null,null,null,"Select"]
["Sch VIA","Schedule of Funds Held",null,"(I) Derivatives - Pos./Neg. - 11","Select",null,null,null,null,null,null,null,"Select"]
["Sch VIA","Schedule of Funds Held",null,"(I) Derivatives - Pos./Neg. - 35","Select",null,null,null,null,null,null,null,"Select"]
["Sch VIA","Schedule of Funds Held",null,"(I) Derivatives - Pos./Neg. - 46","Select",null,null,null,null,null,null,null,"Select"]
["Sch VIA","Schedule of Funds Held",null,"(I) Derivatives - Pos./Neg. - 68","Select",null,null,null,null,null,null,null,"Select"]
["Sch VIA","Schedule of Funds Held",null,"(I) Derivatives - Pos./Neg. - 102","Select",null,null,null,null,null,null,null,"Select"]
["Sch VIA","Schedule of Funds Held",null,"(I) Derivatives - Pos./Neg. - 127","Select",null,null,null,null,null,null,null,"Select"]
["Sch VIA","Schedule of Funds Held",null,"(I) Derivatives - Pos./Neg. - 137","Select",null,null,null,null,null,null,null,"Select"]
["Sch VIA","Schedule of Funds Held",null,"(I) Derivatives - Pos./Neg. - 164","Select",null,null,null,null,null,null,null,"Select"]
["Sch VIA","Schedule of Funds Held",null,"(I) Derivatives - Pos./Neg. - 189","Select",null,null,null,null,null,null,null,"Select"]
["Sch VIA","Schedule of Funds Held",null,"(I) Derivatives - Market Value 1",0,null,null,null,null,null,null,null,0]
["Sch VIA","Schedule of Funds Held",null,"(I) Derivatives - Market Value 24",0,null,null,null,null,null,null,null,0]
["Sch VIA","Schedule of Funds Held",null,"(I) Derivatives - Market Value 38",0,null,null,null,null,null,null,null,0]
["Sch VIA","Schedule of Funds Held",null,"(I) Derivatives - Market Value 77",0,null,null,null,null,null,null,null,0]
["Sch VIA","Schedule of Funds Held",null,"(I) Derivatives - Market Value 96",0,null,null,null,null,null,null,null,0]
["Sch VIA","Schedule of Funds Held",null,"(I) Derivatives - Market Value 114",0,null,null,null,null,null,null,null,0]
["Sch VIA","Schedule of Funds Held",null,"(I) Derivatives - Market Value 131",0,null,null,null,null,null,null,null,0]
["Sch VIA","Schedule of Funds Held",null,"(I) Derivatives - Market Value 147",0,null,null,null,null,null,null,null,0]
["Sch VIA","Schedule of Funds Held",null,"(I) Derivatives - Market Value 187",0,null,null,null,null,null,null,null,0]
["Sch VIA","Schedule of Funds Held",null,"(I) Derivatives - Gross Notional Value 6",0,null,null,null,null,null,null,null,0]
["Sch VIA","Schedule of Funds Held",null,"(I) Derivatives - Gross Notional Value 22",0,null,null,null,null,null,null,null,0]
["Sch VIA","Schedule of Funds Held",null,"(I) Derivatives - Gross Notional Value 43",0,null,null,null,null,null,null,null,0]
["Sch VIA","Schedule of Funds Held",null,"(I) Derivatives - Gross Notional Value 74",0,null,null,null,null,null,null,null,0]
["Sch VIA","Schedule of Funds Held",null,"(I) Derivatives - Gross Notional Value 80",0,null,null,null,null,null,null,null,0]
["Sch VIA","Schedule of Funds Held",null,"(I) Derivatives - Gross Notional Value 109",0,null,null,null,null,null,null,null,0]
["Sch VIA","Schedule of Funds Held",null,"(I) Derivatives - Gross Notional Value 139",0,null,null,null,null,null,null,null,0]
["Sch VIA","Schedule of Funds Held",null,"(I) Derivatives - Gross Notional Value 144",0,null,null,null,null,null,null,null,0]
["Sch VIA","Schedule of Funds Held",null,"(I) Derivatives - Gross Notional Value 172",0,null,null,null,null,null,null,null,0]
["Sch VIA","Schedule of Funds Held",null,"(I) Derivatives - Gross Notional Value 200",0,null,null,null,null,null,null,null,0]
["Sch VIA","Schedule of Funds Held",null,"(I) Derivatives - Net Notional Value 9",0,null,null,null,null,null,null,null,0]
["Sch VIA","Schedule of Funds Held",null,"(I) Derivatives - Net Notional Value 31",0,null,null,null,null,null,null,null,0]
["Sch VIA","Schedule of Funds Held",null,"(I) Derivatives - Net Notional Value 68",0,null,null,null,null,null,null,null,0]
["Sch VIA","Schedule of Funds Held",null,"(I) Derivatives - Net Notional Value 87",0,null,null,null,null,null,null,null,0]
["Sch VIA","Schedule of Funds Held",null,"(I) Derivatives - Net Notional Value 105",0,null,null,null,null,null,null,null,0]
["Sch VIA","Schedule of Funds Held",null,"(I) Derivatives - Net Notional Value 122",0,null,null,null,null,null,null,null,0]
["Sch VIA","Schedule of Funds Held",null,"(I) Derivatives - Net Notional Value 138",0,null,null,null,null,null,null,null,0]
["Sch VIA","Schedule of Funds Held",null,"(I) Derivatives - Net Notional Value 157",0,null,null,null,null,null,null,null,0]
["Sch VIA","Schedule of Funds Held",null,"(I) Derivatives - Net Notional Value 197",0,null,null,null,null,null,null,null,0]
["Sch VIA","Schedule of Funds Held",null,"(I) Derivatives - Exposure 14",0,null,null,null,null,null,null,null,0]
["Sch VIA","Schedule of Funds Held",null,"(I) Derivatives - Exposure 29",0,null,null,null,null,null,null,null,0]
["Sch VIA","Schedule of Funds Held",null,"(I) Derivatives - Exposure 51",0,null,null,null,null,null,null,null,0]
["Sch VIA","Schedule of Funds Held",null,"(I) Derivatives - Exposure 64",0,null,null,null,null,null,null,null,0]
["Sch VIA","Schedule of Funds Held",null,"(I) Derivatives - Exposure 88",0,null,null,null,null,null,null,null,0]
["Sch VIA","Schedule of Funds Held",null,"(I) Derivatives - Exposure 116",0,null,null,null,null,null,null,null,0]
["Sch VIA","Schedule of Funds Held",null,"(I) Derivatives - Exposure 147",0,null,null,null,null,null,null,null,0]
["Sch VIA","Schedule of Funds Held",null,"(I) Derivatives - Exposure 151",0,null,null,null,null,null,null,null,0]
["Sch VIA","Schedule of Funds Held",null,"(I) Derivatives - Exposure 184",0,null,null,null,null,null,null,null,0]
["Sch VIA","Schedule of Funds Held",null,"(I) Derivatives - Comments 7",0,null,null,null,null,null,null,null,0]
["Sch VIA","Schedule of Funds Held",null,"(I) Derivatives - Comments 17",0,null,null,null,null,null,null,null,0]
["Sch VIA","Schedule of Funds Held",null,"(I) Derivatives - Comments 42",0,null,null,null,null,null,null,null,0]
["Sch VIA","Schedule of Funds Held",null,"(I) Derivatives - Comments 76",0,null,null,null,null,null,null,null,0]
["Sch VIA","Schedule of Funds Held",null,"(I) Derivatives - Comments 94",0,null,null,null,null,null,null,null,0]
["Sch VIA","Schedule of Funds Held",null,"(I) Derivatives - Comments 113",0,null,null,null,null,null,null,null,0]
["Sch VIA","Schedule of Funds Held",null,"(I) Derivatives - Comments 129",0,null,null,null,null,null,null,null,0]
["Sch VIA","Schedule of Funds Held",null,"(I) Derivatives - Comments 150",0,null,null,null,null,null,null,null,0]
["Sch VIA","Schedule of Funds Held",null,"(I) Derivatives - Comments 164",0,null,null,null,null,null,null,null,0]
["Sch VIA","Schedule of Funds Held",null,"(J) Fin. Inst. Rating 1-3 - Corp Bonds",0,null,null,null,null,null,null,null,0]
["Sch VIA","Schedule of Funds Held",null,"(J) Fin. Inst. Rating 8 - Securitization",0,null,null,null,null,null,null,null,0]
["Sch VIA","Schedule of Funds Held",null,"(J) Fin. Inst. Insurers - Comments",0,null,null,null,null,null,null,null,0]
["Sch VIA","Schedule of Funds Held",null,"(J) Unlisted Counterparty Rating 8 - Corp Loans",0,null,null,null,null,null,null,null,0]
["Sch VIA","Schedule of Funds Held",null,"(K) Other Assets - Asset Type 15","Select",null,null,null,null,null,null,null,"Select"]
["Sch VIA","Schedule of Funds Held",null,"(K) Other Assets - Asset Type 43","Select",null,null,null,null,null,null,null,"Select"]
["Sch VIA","Schedule of Funds Held",null,"(K) Other Assets - Asset Type 52","Select",null,null,null,null,null,null,null,"Select"]
["Sch VIA","Schedule of Funds Held",null,"(K) Other Assets - Asset Type 78","Select",null,null,null,null,null,null,null,"Select"]
["Sch VIA","Schedule of Funds Held",null,"(K) Other Assets - Asset Type 107","Select",null,null,null,null,null,null,null,"Select"]
["Sch VIA","Schedule of Funds Held",null,"(K) Other Assets - Asset Type 128","Select",null,null,null,null,null,null,null,"Select"]
["Sch VIA","Schedule of Funds Held",null,"(K) Other Assets - Asset Type 150","Select",null,null,null,null,null,null,null,"Select"]
["Sch VIA","Schedule of Funds Held",null,"(K) Other Assets - Asset Type 165","Select",null,null,null,null,null,null,null,"Select"]
["Sch VIA","Schedule of Funds Held",null,"(K) Other Assets - Asset Type 185","Select",null,null,null,null,null,null,null,"Select"]
["Sch VIA","Schedule of Funds Held",null,"(K) Other Assets - Currency 20","Select",null,null,null,null,null,null,null,"Select"]
["Sch VIA","Schedule of Funds Held",null,"(K) Other Assets - Currency 41","Select",null,null,null,null,null,null,null,"Select"]
["Sch VIA","Schedule of Funds Held",null,"(K) Other Assets - Currency 57","Select",null,null,null,null,null,null,null,"Select"]
["Sch VIA","Schedule of Funds Held",null,"(K) Other Assets - Currency 72","Select",null,null,null,null,null,null,null,"Select"]
["Sch VIA","Schedule of Funds Held",null,"(K) Other Assets - Currency 94","Select",null,null,null,null,null,null,null,"Select"]
["Sch VIA","Schedule of Funds Held",null,"(K) Other Assets - Currency 128","Select",null,null,null,null,null,null,null,"Select"]
["Sch VIA","Schedule of Funds Held",null,"(K) Other Assets - Currency 131","Select",null,null,null,null,null,null,null,"Select"]
["Sch VIA","Schedule of Funds Held",null,"(K) Other Assets - Currency 163","Select",null,null,null,null,null,null,null,"Select"]
["Sch VIA","Schedule of Funds Held",null,"(K) Other Assets - Currency 186","Select",null,null,null,null,null,null,null,"Select"]
["Sch VIA","Schedule of Funds Held",null,"(K) Other Assets - Currency 198","Select",null,null,null,null,null,null,null,"Select"]
["Sch VIA","Schedule of Funds Held",null,"(K) Other Assets - Rating 23","Select",null,null,null,null,null,null,null,"Select"]
["Sch VIA","Schedule of Funds Held",null,"(K) Other Assets - Rating 54","Select",null,null,null,null,null,null,null,"Select"]
["Sch VIA","Schedule of Funds Held",null,"(K) Other Assets - Rating 60","Select",null,null,null,null,null,null,null,"Select"]
["Sch VIA","Schedule of Funds Held",null,"(K) Other Assets - Rating 85","Select",null,null,null,null,null,null,null,"Select"]
["Sch VIA","Schedule of Funds Held",null,"(K) Other Assets - Rating 119","Select",null,null,null,null,null,null,null,"Select"]
["Sch VIA","Schedule of Funds Held",null,"(K) Other Assets - Rating 141","Select",null,null,null,null,null,null,null,"Select"]
["Sch VIA","Schedule of Funds Held",null,"(K) Other Assets - Rating 152","Select",null,null,null,null,null,null,null,"Select"]
["Sch VIA","Schedule of Funds Held",null,"(K) Other Assets - Rating 176","Select",null,null,null,null,null,null,null,"Select"]
["Sch VIA","Schedule of Funds Held",null,"(K) Other Assets - Rating 189","Select",null,null,null,null,null,null,null,"Select"]
["Sch VIA","Schedule of Funds Held",null,"(K) Other Assets - Nominal Amount 11",0,null,null,null,null,null,null,null,0]
["Sch VIA","Schedule of Funds Held",null,"(K) Other Assets - Nominal Amount 48",0,null,null,null,null,null,null,null,0]
["Sch VIA","Schedule of Funds Held",null,"(K) Other Assets - Nominal Amount 63",0,null,null,null,null,null,null,null,0]
["Sch VIA","Schedule of Funds Held",null,"(K) Other Assets - Nominal Amount 85",0,null,null,null,null,null,null,null,0]
["Sch VIA","Schedule of Funds Held",null,"(K) Other Assets - Nominal Amount 102",0,null,null,null,null,null,null,null,0]
["Sch VIA","Schedule of Funds Held",null,"(K) Other Assets - Nominal Amount 135",0,null,null,null,null,null,null,null,0]
["Sch VIA","Schedule of Funds Held",null,"(K) Other Assets - Nominal Amount 139",0,null,null,null,null,null,null,null,0]
["Sch VIA","Schedule of Funds Held",null,"(K) Other Assets - Nominal Amount 170",0,null,null,null,null,null,null,null,0]
["Sch VIA","Schedule of Funds Held",null,"(K) Other Assets - Nominal Amount 198",0,null,null,null,null,null,null,null,0]
["Sch VIA","Schedule of Funds Held",null,"(K) Other Assets - Fair Value 5",0,null,null,null,null,null,null,null,0]
["Sch VIA","Schedule of Funds Held",null,"(K) Other Assets - Fair Value 31",0,null,null,null,null,null,null,null,0]
["Sch VIA","Schedule of Funds Held",null,"(K) Other Assets - Fair Value 61",0,null,null,null,null,null,null,null,0]
["Sch VIA","Schedule of Funds Held",null,"(K) Other Assets - Fair Value 68",0,null,null,null,null,null,null,null,0]
["Sch VIA","Schedule of Funds Held",null,"(K) Other Assets - Fair Value 96",0,null,null,null,null,null,null,null,0]
["Sch VIA","Schedule of Funds Held",null,"(K) Other Assets - Fair Value 127",0,null,null,null,null,null,null,null,0]
["Sch VIA","Schedule of Funds Held",null,"(K) Other Assets - Fair Value 148",0,null,null,null,null,null,null,null,0]
["Sch VIA","Schedule of Funds Held",null,"(K) Other Assets - Fair Value 164",0,null,null,null,null,null,null,null,0]
["Sch VIA","Schedule of Funds Held",null,"(K) Other Assets - Fair Value 183",0,null,null,null,null,null,null,null,0]
["Sch VIA","Schedule of Funds Held",null,"(K) Other Assets - Fair Value 197",0,null,null,null,null,null,null,null,0]
["Sch VIA","Schedule of Funds Held",null,"(K) Other Assets - Comments 39",0,null,null,null,null,null,null,null,0]
["Sch VIA","Schedule of Funds Held",null,"(K) Other Assets - Comments 56",0,null,null,null,null,null,null,null,0]
["Sch VIA","Schedule of Funds Held",null,"(K) Other Assets - Comments 74",0,null,null,null,null,null,null,null,0]
["Sch VIA","Schedule of Funds Held",null,"(K) Other Assets - Comments 93",0,null,null,null,null,null,null,null,0]
["Sch VIA","Schedule of Funds Held",null,"(K) Other Assets - Comments 105",0,null,null,null,null,null,null,null,0]
["Sch VIA","Schedule of Funds Held",null,"(K) Other Assets - Comments 130",0,null,null,null,null,null,null,null,0]
["Sch VIA","Schedule of Funds Held",null,"(K) Other Assets - Comments 161",0,null,null,null,null,null,null,null,0]
["Sch VIA","Schedule of Funds Held",null,"(K) Other Assets - Comments 189",0,null,null,null,null,null,null,null,0]
["Sch VIA","Schedule of Funds Held",null,"(K) Other Assets - Comments 196",0,null,null,null,null,null,null,null,0]
["Sch VIA","Schedule of Funds Held",null,"Fin. Inst. - Moody's Rating 1",0,null,null,null,null,null,null,null,0]
["Sch VIA","Schedule of Funds Held",null,"Corp. Insurers - Moody's Rating 6",0,null,null,null,null,null,null,null,0]
["Sch VIA","Schedule of Funds Held",null,"Fin. Inst. - S&P Rating 6",0,null,null,null,null,null,null,null,0]
["Sch VIA","Schedule of Funds Held",null,"Gov. Securities - S&P Rating 3",0,null,null,null,null,null,null,null,0]
["Sch VIA","Schedule of Funds Held",null,"Gov. Securities - S&P Rating 8",0,null,null,null,null,null,null,null,0]
["Sch VIA","Schedule of Funds Held",null,"ABS - DBRS Rating 8",0,null,null,null,null,null,null,null,0]
["Sch VIA","Schedule of Funds Held",null,"Ins. Companies - Kroll Rating 7",0,null,null,null,null,null,null,null,0]
["Sch VIA","Schedule of Funds Held",null,"ABS - Kroll Rating 4",0,null,null,null,null,null,null,null,0]
["Sch VIA","Schedule of Funds Held",null,"Fin. Inst. - Egan Jones Rating 5",0,null,null,null,null,null,null,null,0]
["Sch VIA","Schedule of Funds Held",null,"Corp. Insurers - Egan Jones Rating 8",0,null,null,null,null,null,null,null,0]
["Sch VIA","Schedule of Funds Held",null,"Corp. Insurers - Japan Credit Rating 4",0,null,null,null,null,null,null,null,0]
["Sch VIA","Schedule of Funds Held",null,"Gov. Securities - Japan Credit Rating 5",0,null,null,null,null,null,null,null,0]
["Sch VIA","Schedule of Funds Held",null,"Ins. Companies - BMA Approved Int. Rating 6",0,null,null,null,null,null,null,null,0]
["Sch VIA","Schedule of Funds Held",null,"Gov. Securities - BMA Approved Int. Rating 1",0,null,null,null,null,null,null,null,0]
["Sch VIA","Schedule of Funds Held",null,"Fin. Inst. - BMA Approved Agency 1 -  Rating 8",0,null,null,null,null,null,null,null,0]
["Sch VIA","Schedule of Funds Held",null,"ABS - BMA Approved Agency 1 -  Rating 6",0,null,null,null,null,null,null,null,0]
["Sch VIA","Schedule of Funds Held",null,"Corp. Insurers - BMA Approved Agency 2 -  Rating 3",0,null,null,null,null,null,null,null,0]
["Sch VIA","Schedule of Funds Held",null,"Fin. Inst. - BMA Approved Agency 3 -  Rating 7",0,null,null,null,null,null,null,null,0]
["Sch VIA","Schedule of Funds Held",null,"Ins. Companies - BMA Approved Agency 3 -  Rating 5",0,null,null,null,null,null,null,null,0]
["Sch VIA","Schedule of Funds Held",null,"Corp. Insurers - Unrated 8",0,null,null,null,null,null,null,null,0]
["Sch IX(a)","CISSA Capital Summary",null,"2. Agg. Risk Categories - Correlation Matrix","Select Yes/No"]
["Sch IX(a)","CISSA Capital Summary",null,"3. Contingency Plan - Parental Guarantees","Select Yes/No"]
["Sch IX(b)","CISSA General Questions",null,"1. CISSA Used For - Alloc. Bus. Seg. & LOB","Select Yes/No"]
["Sch IX(c)","CISSA Assessment of Material Risks",null,"12c. Gov. Comment - BOD review frequency",0]
["Sch X(a)","CAT Return - EP Curve Total",null,"Gross Loss - Aggregate - 1,000 Yrs",null,null,null,null,0]
["Sch X(a)","CAT Return - EP Curve Total",null,"Gross - All Other Limited - Modeled",null,null,null,null,0]
["Sch X(a)","CAT Return - EP Curve Total",null,"2. Additional Living Expense",null,null,null,null,"Select Yes/No"]
["Sch X(a)","CAT Return - EP Curve Total",null,"4. Involuntary Pools and/or Assessments",null,null,null,null,"Select"]
["Sch X(a)","CAT Return - EP Curve Total",null,"6. Vendor Catastrophe Model",null,null,null,null,"Select Cat Model(s)"]
["Sch X(b)","CAT Return - EP Curve Insurance",null,"Net - Property Cat. Premium Modeled",null,null,null,null,0]
["Sch X(c)","CAT Return - EP Curve Region Perils",null,"Atl. Hurr. - Net Occurrence - 250 Yrs",null,null,null,null,0]
["Sch X(c)","CAT Return - EP Curve Region Perils",null,"Atl. Hurr. - Net Prop. Cat. Premium",null,null,null,null,0]
["Sch X(c)","CAT Return - EP Curve Region Perils",null,"NA. EQ. - Net Aggregate - 1,000 Yrs",null,null,null,null,0]
["Sch X(c)","CAT Return - EP Curve Region Perils",null,"European Windstorm - Cat. Model Version",null,null,null,null,0]
["Sch X(c)","CAT Return - EP Curve Region Perils",null,"Eur. Wind - Gross Prop. Cat. Limits",null,null,null,null,0]
["Sch X(c)","CAT Return - EP Curve Region Perils",null,"Japan EQ. - Net All Other Premium",null,null,null,null,0]
["Sch X(c)","CAT Return - EP Curve Region Perils",null,"Jpn. Typ. - Gross All Other Premium",null,null,null,null,0]
["Sch X(c)","CAT Return - EP Curve Region Perils",null,"Jpn. Typ. - Net Prop. Cat. Limits",null,null,null,null,0]
["Sch X(d)","CAT Return - Region Perils Exposure to Zones and Lines of Business",null,"European Windstorm - Zone 4",null,null,null,null,"Select Yes/No"]
["Sch X(d)","CAT Return - Region Perils Exposure to Zones and Lines of Business",null,"Japan Typhoon - Zone 2",null,null,null,null,"Select Yes/No"]
["Sch X(d)","CAT Return - Region Perils Exposure to Zones and Lines of Business",null,"All Other - Zone 2",null,null,null,null,"Select Yes/No"]
["Sch X(d)","CAT Return - Region Perils Exposure to Zones and Lines of Business",null,"Atlantic Hurricane - Line 11",null,null,null,null,"Select Yes/No"]
["Sch X(d)","CAT Return - Region Perils Exposure to Zones and Lines of Business",null,"North American Earthquake - Line 20",null,null,null,null,"Select Yes/No"]
["Sch X(d)","CAT Return - Region Perils Exposure to Zones and Lines of Business",null,"European Windstorm - Line 19",null,null,null,null,"Select Yes/No"]
["Sch X(d)","CAT Return - Region Perils Exposure to Zones and Lines of Business",null,"Japan Earthquake - Line 9",null,null,null,null,"Select Yes/No"]
["Sch X(d)","CAT Return - Region Perils Exposure to Zones and Lines of Business",null,"Japan Typhoon - Line 2",null,null,null,null,"Select Yes/No"]
["Sch X(d)","CAT Return - Region Perils Exposure to Zones and Lines of Business",null,"Japan Typhoon - Line 22",null,null,null,null,"Select Yes/No"]
["Sch X(e)","CAT Return - Accumulations Overview",null,"Q7. Pricing & Accum. Consistent",null,null,null,null,"Select"]
["Sch X(e)","CAT Return - Accumulations Overview",null,"Q8. % of Premium W/O Occur. Limit",null,null,null,null,"Select"]
["Sch X(f)","CAT Return - Data Analysis",null,"2. Modelable - Total - Other -Contract",null,null,null,null,0]
["Sch X(f)","CAT Return - Data Analysis",null,"3. Modeled - Peer Proxy - US - Net Limit",null,null,null,null,0]
["Sch X(f)","CAT Return - Data Analysis",null,"3. Modeled - Other - Other - Gross Limit",null,null,null,null,0]
["Sch X(f)","CAT Return - Data Analysis",null,"4. Not Modeled - Other - Other - Contract",null,null,null,null,0]
["Sch X(f)","CAT Return - Data Analysis",null,"6. Unable Model - No Cat. Model - Other - Gross Limit",null,null,null,null,0]
["Sch X(f)","CAT Return - Data Analysis",null,"6. Unable Model - Data Deficient - Other - Net Limit",null,null,null,null,0]
["Sch X(g)","CAT Return - Reinsurance Disclosures",null,"World - Premium - Total",null,null,null,null,0]
["Sch X(g)","CAT Return - Reinsurance Disclosures",null,"World - Occuren. - Quota Share Contracts",null,null,null,null,0]
["Sch X(h)","CAT Return - Insurance Terrorism Exposure",null,"Insurance - Convent. Terrorism - State 5",null,null,null,null,0]
["Sch X(h)","CAT Return - Insurance Terrorism Exposure",null,"Insurance - Convent. Terrorism - Property Exposure 8",null,null,null,null,0]
["Sch X(h)","CAT Return - Insurance Terrorism Exposure",null,"Insurance - Convent. Terrorism - TRIP Recover. 2",null,null,null,null,0]
["Sch X(h)","CAT Return - Insurance Terrorism Exposure",null,"Insurance - Convent. Terrorism - Net Exposure 3",null,null,null,null,0]
["Sch X(h)","CAT Return - Insurance Terrorism Exposure",null,"Insurance - NBCR Terrorism - Property Exposure 1",null,null,null,null,0]
["Sch X(h)","CAT Return - Insurance Terrorism Exposure",null,"Insurance - NBCR Terrorism - Gross Exposure 9",null,null,null,null,0]
["Sch X(h)","CAT Return - Insurance Terrorism Exposure",null,"Insurance - NBCR Terrorism - R/I Recover. 4",null,null,null,null,0]
["Sch X(i)","CAT Return - Reinsurance Terrorism Exposure",null,"Reins. - Convent. Terrorism - State 3",null,null,null,null,0]
["Sch X(i)","CAT Return - Reinsurance Terrorism Exposure",null,"Reins. - Convent. Terrorism - Country 10",null,null,null,null,0]
["Sch X(i)","CAT Return - Reinsurance Terrorism Exposure",null,"Reins. - Convent. Terrorism - R/I Recover. 5",null,null,null,null,0]
["Sch X(i)","CAT Return - Reinsurance Terrorism Exposure",null,"Reins. - NBCR Terrorism - State 9",null,null,null,null,0]
["Sch X(i)","CAT Return - Reinsurance Terrorism Exposure",null,"Reins. - NBCR Terrorism - Country 10",null,null,null,null,0]
["Sch X(i)","CAT Return - Reinsurance Terrorism Exposure",null,"Reins. - NBCR Terrorism - TRIP Recover. 6",null,null,null,null,0]
["Sch X(i)","CAT Return - Reinsurance Terrorism Exposure",null,"Reins. - NBCR Terrorism - R/I Recover. 5",null,null,null,null,0]
["Sch X(j)","CAT Return - Assumed Exchange Rates",null,"Currency - USD:Other 3",null,null,null,null,"USD:"]
["Sch XI(a)(i)","Loss Triangles - Property Castarophe",null,{"$f":"\"Prop Cat - Incurred - Line 3 - \"&$E$2-5&\" - \"&$E$2-8","v":"Prop Cat - Incurred - Line 3 - 2018 - 2015"},null,null,null,null,0]
["Sch XI(a)(i)","Loss Triangles - Property Castarophe",null,{"$f":"\"Prop Cat - Incurred - Line 9 - \"&$E$2-2&\" - \"&$E$2-2","v":"Prop Cat - Incurred - Line 9 - 2021 - 2021"},null,null,null,null,0]
["Sch XI(a)(i)","Loss Triangles - Property Castarophe",null,{"$f":"\"Prop Cat - Incurred - Line 8 - \"&$E$2-1&\" - \"&$E$2-3","v":"Prop Cat - Incurred - Line 8 - 2022 - 2020"},null,null,null,null,0]
["Sch XI(a)(i)","Loss Triangles - Property Castarophe",null,{"$f":"\"Prop Cat - Paid - Line 15 - \"&$E$2-8&\" - \"&$E$2-8","v":"Prop Cat - Paid - Line 15 - 2015 - 2015"},null,null,null,null,0]
["Sch XI(a)(i)","Loss Triangles - Property Castarophe",null,{"$f":"\"Prop Cat - Paid - Line 13 - \"&$E$2-3&\" - Prior\"","v":"Prop Cat - Paid - Line 13 - 2020 - Prior"},null,null,null,null,0]
["Sch XI(a)(i)","Loss Triangles - Property Castarophe",null,{"$f":"\"Prop Cat - Paid - Line 19 - \"&$E$2-2&\" - \"&$E$2-4","v":"Prop Cat - Paid - Line 19 - 2021 - 2019"},null,null,null,null,0]
["Sch XI(a)(i)","Loss Triangles - Property Castarophe",null,{"$f":"\"Prop Cat - Paid - Line 21 - \"&$E$2&\" - \"&$E$2-2","v":"Prop Cat - Paid - Line 21 - 2023 - 2021"},null,null,null,null,0]
["Sch XI(a)(i)","Loss Triangles - Property Castarophe",null,{"$f":"\"Prop Cat - Reserve - Line 25 - \"&$E$2-4&\" - Prior\"","v":"Prop Cat - Reserve - Line 25 - 2019 - Prior"},null,null,null,null,0]
["Sch XI(a)(i)","Loss Triangles - Property Castarophe",null,{"$f":"\"Prop Cat - Reserve - Line 31 - \"&$E$2-2&\" - \"&$E$2-4","v":"Prop Cat - Reserve - Line 31 - 2021 - 2019"},null,null,null,null,0]
["Sch XI(a)(i)","Loss Triangles - Property Castarophe",null,{"$f":"\"Prop Cat - Reserve - Line 29 - \"&$E$2&\" - \"&$E$2-6","v":"Prop Cat - Reserve - Line 29 - 2023 - 2017"},null,null,null,null,0]
["Sch XI(a)(i)","Loss Triangles - Property Castarophe",null,{"$f":"\"Prop Cat - GPW - Line 39 - \"&$E$2-8","v":"Prop Cat - GPW - Line 39 - 2015"},null,null,null,null,0]
["Sch XI(a)(i)","Loss Triangles - Property Castarophe",null,{"$f":"\"Prop Cat - Gross Premiums Earned - Line 43 - \"&$E$2-4","v":"Prop Cat - Gross Premiums Earned - Line 43 - 2019"},null,null,null,null,0]
["Sch XI(a)(i)","Loss Triangles - Property Castarophe",null,{"$f":"\"Prop Cat - Net Premiums Earned - Line 39 - \"&$E$2-8","v":"Prop Cat - Net Premiums Earned - Line 39 - 2015"},null,null,null,null,0]
["Sch XI(a)(i)","Loss Triangles - Property Castarophe",null,{"$f":"\"Prop Cat - Brokerage - Line 44 - \"&$E$2-3","v":"Prop Cat - Brokerage - Line 44 - 2020"},null,null,null,null,0]
["Sch XI(a)(i)","Loss Triangles - Property Castarophe",null,{"$f":"\"Prop Cat - Personnel Costs - Line 43 - \"&$E$2-4","v":"Prop Cat - Personnel Costs - Line 43 - 2019"},null,null,null,null,0]
["Sch XI(a)(i)","Loss Triangles - Property Castarophe",null,{"$f":"\"Prop Cat - Other Exp. - Line 46 - \"&$E$2-1","v":"Prop Cat - Other Exp. - Line 46 - 2022"},null,null,null,null,0]
["Sch XI(a)(ii)","Loss Triangles - Property",null,{"$f":"\"Property - Incurred - Line 1 - \"&$E$2-4&\" - Prior\"","v":"Property - Incurred - Line 1 - 2019 - Prior"},null,null,null,null,0]
["Sch XI(a)(ii)","Loss Triangles - Property",null,{"$f":"\"Property - Incurred - Line 2 - \"&$E$2-3&\" - \"&$E$2-9","v":"Property - Incurred - Line 2 - 2020 - 2014"},null,null,null,null,0]
["Sch XI(a)(ii)","Loss Triangles - Property",null,{"$f":"\"Property - Incurred - Line 4 - \"&$E$2&\" - \"&$E$2-7","v":"Property - Incurred - Line 4 - 2023 - 2016"},null,null,null,null,0]
["Sch XI(a)(ii)","Loss Triangles - Property",null,{"$f":"\"Property - Paid - Line 16 - \"&$E$2-7&\" - \"&$E$2-7","v":"Property - Paid - Line 16 - 2016 - 2016"},null,null,null,null,0]
["Sch XI(a)(ii)","Loss Triangles - Property",null,{"$f":"\"Property - Paid - Line 14 - \"&$E$2-2&\" - \"&$E$2-9","v":"Property - Paid - Line 14 - 2021 - 2014"},null,null,null,null,0]
["Sch XI(a)(ii)","Loss Triangles - Property",null,{"$f":"\"Property - Paid - Line 21 - \"&$E$2-2&\" - \"&$E$2-2","v":"Property - Paid - Line 21 - 2021 - 2021"},null,null,null,null,0]
["Sch XI(a)(ii)","Loss Triangles - Property",null,{"$f":"\"Property - Paid - Line 21 - Cat Loss. - \"&$E$2-2","v":"Property - Paid - Line 21 - Cat Loss. - 2021"},null,null,null,null,0]
["Sch XI(a)(ii)","Loss Triangles - Property",null,{"$f":"\"Property - Reserve - Line 28 - \"&$E$2-4&\" - \"&$E$2-7","v":"Property - Reserve - Line 28 - 2019 - 2016"},null,null,null,null,0]
["Sch XI(a)(ii)","Loss Triangles - Property",null,{"$f":"\"Property - Reserve - Line 32 - \"&$E$2-3&\" - \"&$E$2-3","v":"Property - Reserve - Line 32 - 2020 - 2020"},null,null,null,null,0]
["Sch XI(a)(ii)","Loss Triangles - Property",null,{"$f":"\"Property - Reserve - Line 25 - \"&$E$2&\" - Prior\"","v":"Property - Reserve - Line 25 - 2023 - Prior"},null,null,null,null,0]
["Sch XI(a)(ii)","Loss Triangles - Property",null,{"$f":"\"Property - Reserve - Line 31 - Cat Loss. - \"&$E$2-4","v":"Property - Reserve - Line 31 - Cat Loss. - 2019"},null,null,null,null,0]
["Sch XI(a)(ii)","Loss Triangles - Property",null,{"$f":"\"Property - Net Premiums Earned - Line 38 - \"&$E$2-9","v":"Property - Net Premiums Earned - Line 38 - 2014"},null,null,null,null,0]
["Sch XI(a)(ii)","Loss Triangles - Property",null,{"$f":"\"Property - Expenses Paid - Line 43 - \"&$E$2-4","v":"Property - Expenses Paid - Line 43 - 2019"},null,null,null,null,0]
["Sch XI(a)(ii)","Loss Triangles - Property",null,{"$f":"\"Property - Brokerage - Line 40 - \"&$E$2-7","v":"Property - Brokerage - Line 40 - 2016"},null,null,null,null,0]
["Sch XI(a)(ii)","Loss Triangles - Property",null,{"$f":"\"Property - G&A - Line 47 - \"&$E$2","v":"Property - G&A - Line 47 - 2023"},null,null,null,null,0]
["Sch XI(a)(ii)","Loss Triangles - Property",null,{"$f":"\"Property - Other Exp. - Line 42 - \"&$E$2-5","v":"Property - Other Exp. - Line 42 - 2018"},null,null,null,null,0]
["Sch XI(a)(iii)","Loss Triangles - Property Non-Proportional",null,{"$f":"\"Prop. Non-Prop.- Incurred - Line 5 - \"&$E$2-6&\" - \"&$E$2-6","v":"Prop. Non-Prop.- Incurred - Line 5 - 2017 - 2017"},null,null,null,null,0]
["Sch XI(a)(iii)","Loss Triangles - Property Non-Proportional",null,{"$f":"\"Prop. Non-Prop.- Incurred - Line 2 - \"&$E$2-1&\" - \"&$E$2-9","v":"Prop. Non-Prop.- Incurred - Line 2 - 2022 - 2014"},null,null,null,null,0]
["Sch XI(a)(iii)","Loss Triangles - Property Non-Proportional",null,{"$f":"\"Prop. Non-Prop.- Incurred - Line 8 - Cat Loss. - \"&$E$2-3","v":"Prop. Non-Prop.- Incurred - Line 8 - Cat Loss. - 2020"},null,null,null,null,0]
["Sch XI(a)(iii)","Loss Triangles - Property Non-Proportional",null,{"$f":"\"Prop. Non-Prop.- Paid - Line 17 - \"&$E$2-6&\" - \"&$E$2-6","v":"Prop. Non-Prop.- Paid - Line 17 - 2017 - 2017"},null,null,null,null,0]
["Sch XI(a)(iii)","Loss Triangles - Property Non-Proportional",null,{"$f":"\"Prop. Non-Prop.- Paid - Line 17 - \"&$E$2-4&\" - \"&$E$2-6","v":"Prop. Non-Prop.- Paid - Line 17 - 2019 - 2017"},null,null,null,null,0]
["Sch XI(a)(iii)","Loss Triangles - Property Non-Proportional",null,{"$f":"\"Prop. Non-Prop.- Paid - Line 19 - \"&$E$2-1&\" - \"&$E$2-4","v":"Prop. Non-Prop.- Paid - Line 19 - 2022 - 2019"},null,null,null,null,0]
["Sch XI(a)(iii)","Loss Triangles - Property Non-Proportional",null,{"$f":"\"Prop. Non-Prop.- Reserve - Line 25 - \"&$E$2-9&\" - Prior\"","v":"Prop. Non-Prop.- Reserve - Line 25 - 2014 - Prior"},null,null,null,null,0]
["Sch XI(a)(iii)","Loss Triangles - Property Non-Proportional",null,{"$f":"\"Prop. Non-Prop.- Reserve - Line 27 - \"&$E$2-6&\" - \"&$E$2-8","v":"Prop. Non-Prop.- Reserve - Line 27 - 2017 - 2015"},null,null,null,null,0]
["Sch XI(a)(iii)","Loss Triangles - Property Non-Proportional",null,{"$f":"\"Prop. Non-Prop.- Reserve - Line 25 - \"&$E$2-2&\" - Prior\"","v":"Prop. Non-Prop.- Reserve - Line 25 - 2021 - Prior"},null,null,null,null,0]
["Sch XI(a)(iii)","Loss Triangles - Property Non-Proportional",null,{"$f":"\"Prop. Non-Prop.- Reserve - Line 26 - Cat Loss. - \"&$E$2-9","v":"Prop. Non-Prop.- Reserve - Line 26 - Cat Loss. - 2014"},null,null,null,null,0]
["Sch XI(a)(iii)","Loss Triangles - Property Non-Proportional",null,{"$f":"\"Prop. Non-Prop.- Gross Premiums Earned - Line 41 - \"&$E$2-6","v":"Prop. Non-Prop.- Gross Premiums Earned - Line 41 - 2017"},null,null,null,null,0]
["Sch XI(a)(iii)","Loss Triangles - Property Non-Proportional",null,{"$f":"\"Prop. Non-Prop.- NPW - Line 42 - \"&$E$2-5","v":"Prop. Non-Prop.- NPW - Line 42 - 2018"},null,null,null,null,0]
["Sch XI(a)(iii)","Loss Triangles - Property Non-Proportional",null,{"$f":"\"Prop. Non-Prop.- Expenses Paid - Line 43 - \"&$E$2-4","v":"Prop. Non-Prop.- Expenses Paid - Line 43 - 2019"},null,null,null,null,0]
["Sch XI(a)(iii)","Loss Triangles - Property Non-Proportional",null,{"$f":"\"Prop. Non-Prop.- Expenses Incurred - Line 46 - \"&$E$2-1","v":"Prop. Non-Prop.- Expenses Incurred - Line 46 - 2022"},null,null,null,null,0]
["Sch XI(a)(iii)","Loss Triangles - Property Non-Proportional",null,{"$f":"\"Prop. Non-Prop.- Other Exp. - Line 40 - \"&$E$2-7","v":"Prop. Non-Prop.- Other Exp. - Line 40 - 2016"},null,null,null,null,0]
["Sch XI(a)(iv)","Loss Triangles - Casualty",null,{"$f":"\"Casualty - Incurred - Line 4 - \"&$E$2-6&\" - \"&$E$2-7","v":"Casualty - Incurred - Line 4 - 2017 - 2016"},null,null,null,null,0]
["Sch XI(a)(iv)","Loss Triangles - Casualty",null,{"$f":"\"Casualty - Incurred - Line 7 - \"&$E$2-4&\" - \"&$E$2-4","v":"Casualty - Incurred - Line 7 - 2019 - 2019"},null,null,null,null,0]
["Sch XI(a)(iv)","Loss Triangles - Casualty",null,{"$f":"\"Casualty - Incurred - Line 2 - \"&$E$2-1&\" - \"&$E$2-9","v":"Casualty - Incurred - Line 2 - 2022 - 2014"},null,null,null,null,0]
["Sch XI(a)(iv)","Loss Triangles - Casualty",null,{"$f":"\"Casualty - Incurred - Line 8 - \"&$E$2&\" - \"&$E$2-3","v":"Casualty - Incurred - Line 8 - 2023 - 2020"},null,null,null,null,0]
["Sch XI(a)(iv)","Loss Triangles - Casualty",null,{"$f":"\"Casualty - Paid - Line 14 - \"&$E$2-7&\" - \"&$E$2-9","v":"Casualty - Paid - Line 14 - 2016 - 2014"},null,null,null,null,0]
["Sch XI(a)(iv)","Loss Triangles - Casualty",null,{"$f":"\"Casualty - Paid - Line 19 - \"&$E$2-2&\" - \"&$E$2-4","v":"Casualty - Paid - Line 19 - 2021 - 2019"},null,null,null,null,0]
["Sch XI(a)(iv)","Loss Triangles - Casualty",null,{"$f":"\"Casualty - Paid - Line 13 - Cat Loss - Prior\"","v":"Casualty - Paid - Line 13 - Cat Loss - Prior"},null,null,null,null,0]
["Sch XI(a)(iv)","Loss Triangles - Casualty",null,{"$f":"\"Casualty - Paid - Line 20 - Cat Loss. - \"&$E$2-3","v":"Casualty - Paid - Line 20 - Cat Loss. - 2020"},null,null,null,null,0]
["Sch XI(a)(iv)","Loss Triangles - Casualty",null,{"$f":"\"Casualty - Reserve - Line 31 - \"&$E$2-4&\" - \"&$E$2-4","v":"Casualty - Reserve - Line 31 - 2019 - 2019"},null,null,null,null,0]
["Sch XI(a)(iv)","Loss Triangles - Casualty",null,{"$f":"\"Casualty - Reserve - Line 33 - \"&$E$2-1&\" - \"&$E$2-2","v":"Casualty - Reserve - Line 33 - 2022 - 2021"},null,null,null,null,0]
["Sch XI(a)(iv)","Loss Triangles - Casualty",null,{"$f":"\"Casualty - Reserve - Line 34 - \"&$E$2&\" - \"&$E$2-1","v":"Casualty - Reserve - Line 34 - 2023 - 2022"},null,null,null,null,0]
["Sch XI(a)(iv)","Loss Triangles - Casualty",null,{"$f":"\"Casualty - Gross Premiums Earned - Line 37 - Prior\"","v":"Casualty - Gross Premiums Earned - Line 37 - Prior"},null,null,null,null,"XXX"]
["Sch XI(a)(iv)","Loss Triangles - Casualty",null,{"$f":"\"Casualty - Net Premiums Earned - Line 46 - \"&$E$2-1","v":"Casualty - Net Premiums Earned - Line 46 - 2022"},null,null,null,null,0]
["Sch XI(a)(iv)","Loss Triangles - Casualty",null,{"$f":"\"Casualty - Brokerage - Line 38 - \"&$E$2-9","v":"Casualty - Brokerage - Line 38 - 2014"},null,null,null,null,0]
["Sch XI(a)(iv)","Loss Triangles - Casualty",null,{"$f":"\"Casualty - G&A - Line 39 - \"&$E$2-8","v":"Casualty - G&A - Line 39 - 2015"},null,null,null,null,0]
["Sch XI(a)(iv)","Loss Triangles - Casualty",null,{"$f":"\"Casualty - Personnel Costs - Line 45 - \"&$E$2-2","v":"Casualty - Personnel Costs - Line 45 - 2021"},null,null,null,null,0]
["Sch XI(a)(v)","Loss Triangles - Casualty Non-Proportional",null,{"$f":"\"Cas. Non-Prop.- Incurred - Line 3 - \"&$E$2-7&\" - \"&$E$2-8","v":"Cas. Non-Prop.- Incurred - Line 3 - 2016 - 2015"},null,null,null,null,0]
["Sch XI(a)(v)","Loss Triangles - Casualty Non-Proportional",null,{"$f":"\"Cas. Non-Prop.- Incurred - Line 3 - \"&$E$2-4&\" - \"&$E$2-8","v":"Cas. Non-Prop.- Incurred - Line 3 - 2019 - 2015"},null,null,null,null,0]
["Sch XI(a)(v)","Loss Triangles - Casualty Non-Proportional",null,{"$f":"\"Cas. Non-Prop.- Incurred - Line 10 - \"&$E$2&\" - \"&$E$2-1","v":"Cas. Non-Prop.- Incurred - Line 10 - 2023 - 2022"},null,null,null,null,0]
["Sch XI(a)(v)","Loss Triangles - Casualty Non-Proportional",null,{"$f":"\"Cas. Non-Prop.- Paid - Line 13 - \"&$E$2-7&\" - Prior\"","v":"Cas. Non-Prop.- Paid - Line 13 - 2016 - Prior"},null,null,null,null,0]
["Sch XI(a)(v)","Loss Triangles - Casualty Non-Proportional",null,{"$f":"\"Cas. Non-Prop.- Paid - Line 17 - \"&$E$2-5&\" - \"&$E$2-6","v":"Cas. Non-Prop.- Paid - Line 17 - 2018 - 2017"},null,null,null,null,0]
["Sch XI(a)(v)","Loss Triangles - Casualty Non-Proportional",null,{"$f":"\"Cas. Non-Prop.- Paid - Line 20 - \"&$E$2-2&\" - \"&$E$2-3","v":"Cas. Non-Prop.- Paid - Line 20 - 2021 - 2020"},null,null,null,null,0]
["Sch XI(a)(v)","Loss Triangles - Casualty Non-Proportional",null,{"$f":"\"Cas. Non-Prop.- Paid - Line 22 - Cat Loss. - \"&$E$2-1","v":"Cas. Non-Prop.- Paid - Line 22 - Cat Loss. - 2022"},null,null,null,null,0]
["Sch XI(a)(v)","Loss Triangles - Casualty Non-Proportional",null,{"$f":"\"Cas. Non-Prop.- Reserve - Line 26 - \"&$E$2-8&\" - \"&$E$2-9","v":"Cas. Non-Prop.- Reserve - Line 26 - 2015 - 2014"},null,null,null,null,0]
["Sch XI(a)(v)","Loss Triangles - Casualty Non-Proportional",null,{"$f":"\"Cas. Non-Prop.- Reserve - Line 31 - \"&$E$2-3&\" - \"&$E$2-4","v":"Cas. Non-Prop.- Reserve - Line 31 - 2020 - 2019"},null,null,null,null,0]
["Sch XI(a)(v)","Loss Triangles - Casualty Non-Proportional",null,{"$f":"\"Cas. Non-Prop.- Reserve - Line 29 - \"&$E$2&\" - \"&$E$2-6","v":"Cas. Non-Prop.- Reserve - Line 29 - 2023 - 2017"},null,null,null,null,0]
["Sch XI(a)(v)","Loss Triangles - Casualty Non-Proportional",null,{"$f":"\"Cas. Non-Prop.- Reserve - Line 28 - Cat Loss. - \"&$E$2-7","v":"Cas. Non-Prop.- Reserve - Line 28 - Cat Loss. - 2016"},null,null,null,null,0]
["Sch XI(a)(v)","Loss Triangles - Casualty Non-Proportional",null,{"$f":"\"Cas. Non-Prop.- Gross Premiums Earned - Line 45 - \"&$E$2-2","v":"Cas. Non-Prop.- Gross Premiums Earned - Line 45 - 2021"},null,null,null,null,0]
["Sch XI(a)(v)","Loss Triangles - Casualty Non-Proportional",null,{"$f":"\"Cas. Non-Prop.- Expenses Paid - Line 37 - Prior\"","v":"Cas. Non-Prop.- Expenses Paid - Line 37 - Prior"},null,null,null,null,0]
["Sch XI(a)(v)","Loss Triangles - Casualty Non-Proportional",null,{"$f":"\"Cas. Non-Prop.- Expenses Incurred - Line 38 - \"&$E$2-9","v":"Cas. Non-Prop.- Expenses Incurred - Line 38 - 2014"},null,null,null,null,0]
["Sch XI(a)(v)","Loss Triangles - Casualty Non-Proportional",null,{"$f":"\"Cas. Non-Prop.- G&A - Line 39 - \"&$E$2-8","v":"Cas. Non-Prop.- G&A - Line 39 - 2015"},null,null,null,null,0]
["Sch XI(a)(vi)","Loss Triangles - Financial Lines",null,{"$f":"\"Fin Lines Incurred - Line 3 - \"&$E$2-8&\" - \"&$E$2-8","v":"Fin Lines Incurred - Line 3 - 2015 - 2015"},null,null,null,null,0]
["Sch XI(a)(vi)","Loss Triangles - Financial Lines",null,{"$f":"\"Fin Lines Incurred - Line 5 - \"&$E$2-4&\" - \"&$E$2-6","v":"Fin Lines Incurred - Line 5 - 2019 - 2017"},null,null,null,null,0]
["Sch XI(a)(vi)","Loss Triangles - Financial Lines",null,{"$f":"\"Fin Lines Incurred - Line 3 - \"&$E$2-2&\" - \"&$E$2-8","v":"Fin Lines Incurred - Line 3 - 2021 - 2015"},null,null,null,null,0]
["Sch XI(a)(vi)","Loss Triangles - Financial Lines",null,{"$f":"\"Fin Lines Incurred - Line 6 - \"&$E$2&\" - \"&$E$2-5","v":"Fin Lines Incurred - Line 6 - 2023 - 2018"},null,null,null,null,0]
["Sch XI(a)(vi)","Loss Triangles - Financial Lines",null,{"$f":"\"Fin Lines Incurred - Line 10 - Cat Loss. - \"&$E$2-1","v":"Fin Lines Incurred - Line 10 - Cat Loss. - 2022"},null,null,null,null,0]
["Sch XI(a)(vi)","Loss Triangles - Financial Lines",null,{"$f":"\"Fin Lines Paid - Line 13 - \"&$E$2-2&\" - Prior\"","v":"Fin Lines Paid - Line 13 - 2021 - Prior"},null,null,null,null,0]
["Sch XI(a)(vi)","Loss Triangles - Financial Lines",null,{"$f":"\"Fin Lines Paid - Line 16 - \"&$E$2&\" - \"&$E$2-7","v":"Fin Lines Paid - Line 16 - 2023 - 2016"},null,null,null,null,0]
["Sch XI(a)(vi)","Loss Triangles - Financial Lines",null,{"$f":"\"Fin Lines Paid - Line 18 - Cat Loss. - \"&$E$2-5","v":"Fin Lines Paid - Line 18 - Cat Loss. - 2018"},null,null,null,null,0]
["Sch XI(a)(vi)","Loss Triangles - Financial Lines",null,{"$f":"\"Fin Lines Reserve - Line 29 - \"&$E$2-5&\" - \"&$E$2-6","v":"Fin Lines Reserve - Line 29 - 2018 - 2017"},null,null,null,null,0]
["Sch XI(a)(vi)","Loss Triangles - Financial Lines",null,{"$f":"\"Fin Lines Reserve - Line 25 - \"&$E$2-2&\" - Prior\"","v":"Fin Lines Reserve - Line 25 - 2021 - Prior"},null,null,null,null,0]
["Sch XI(a)(vi)","Loss Triangles - Financial Lines",null,{"$f":"\"Fin Lines Reserve - Line 26 - Cat Loss. - \"&$E$2-9","v":"Fin Lines Reserve - Line 26 - Cat Loss. - 2014"},null,null,null,null,0]
["Sch XI(a)(vi)","Loss Triangles - Financial Lines",null,{"$f":"\"Fin Lines Reserve - Line 32 - Cat Loss. - \"&$E$2-3","v":"Fin Lines Reserve - Line 32 - Cat Loss. - 2020"},null,null,null,null,0]
["Sch XI(a)(vi)","Loss Triangles - Financial Lines",null,{"$f":"\"Fin Lines NPW - Line 40 - \"&$E$2-7","v":"Fin Lines NPW - Line 40 - 2016"},null,null,null,null,0]
["Sch XI(a)(vi)","Loss Triangles - Financial Lines",null,{"$f":"\"Fin Lines Expenses Incurred - Line 37 - Prior\"","v":"Fin Lines Expenses Incurred - Line 37 - Prior"},null,null,null,null,0]
["Sch XI(a)(vi)","Loss Triangles - Financial Lines",null,{"$f":"\"Fin Lines Expenses Incurred - Line 42 - \"&$E$2-5","v":"Fin Lines Expenses Incurred - Line 42 - 2018"},null,null,null,null,0]
["Sch XI(a)(vi)","Loss Triangles - Financial Lines",null,{"$f":"\"Fin Lines Personnel Costs - Line 37 - Prior\"","v":"Fin Lines Personnel Costs - Line 37 - Prior"},null,null,null,null,0]
["Sch XI(a)(vii)","Loss Triangles - Other Specialty Lines",null,{"$f":"\"Otr. Special - Incurred - Line 1 - \"&$E$2-7&\" - Prior\"","v":"Otr. Special - Incurred - Line 1 - 2016 - Prior"},null,null,null,null,0]
["Sch XI(a)(vii)","Loss Triangles - Other Specialty Lines",null,{"$f":"\"Otr. Special - Incurred - Line 1 - \"&$E$2-5&\" - Prior\"","v":"Otr. Special - Incurred - Line 1 - 2018 - Prior"},null,null,null,null,0]
["Sch XI(a)(vii)","Loss Triangles - Other Specialty Lines",null,{"$f":"\"Otr. Special - Incurred - Line 2 - \"&$E$2-2&\" - \"&$E$2-9","v":"Otr. Special - Incurred - Line 2 - 2021 - 2014"},null,null,null,null,0]
["Sch XI(a)(vii)","Loss Triangles - Other Specialty Lines",null,{"$f":"\"Otr. Special - Incurred - Line 9 - Cat Loss. - \"&$E$2-2","v":"Otr. Special - Incurred - Line 9 - Cat Loss. - 2021"},null,null,null,null,0]
["Sch XI(a)(vii)","Loss Triangles - Other Specialty Lines",null,{"$f":"\"Otr. Special - Paid - Line 15 - \"&$E$2-5&\" - \"&$E$2-8","v":"Otr. Special - Paid - Line 15 - 2018 - 2015"},null,null,null,null,0]
["Sch XI(a)(vii)","Loss Triangles - Other Specialty Lines",null,{"$f":"\"Otr. Special - Paid - Line 20 - \"&$E$2-3&\" - \"&$E$2-3","v":"Otr. Special - Paid - Line 20 - 2020 - 2020"},null,null,null,null,0]
["Sch XI(a)(vii)","Loss Triangles - Other Specialty Lines",null,{"$f":"\"Otr. Special - Paid - Line 20 - \"&$E$2-1&\" - \"&$E$2-3","v":"Otr. Special - Paid - Line 20 - 2022 - 2020"},null,null,null,null,0]
["Sch XI(a)(vii)","Loss Triangles - Other Specialty Lines",null,{"$f":"\"Otr. Special - Paid - Line 15 - Cat Loss. - \"&$E$2-8","v":"Otr. Special - Paid - Line 15 - Cat Loss. - 2015"},null,null,null,null,0]
["Sch XI(a)(vii)","Loss Triangles - Other Specialty Lines",null,{"$f":"\"Otr. Special - Reserve - Line 26 - \"&$E$2-6&\" - \"&$E$2-9","v":"Otr. Special - Reserve - Line 26 - 2017 - 2014"},null,null,null,null,0]
["Sch XI(a)(vii)","Loss Triangles - Other Specialty Lines",null,{"$f":"\"Otr. Special - Reserve - Line 31 - \"&$E$2-1&\" - \"&$E$2-4","v":"Otr. Special - Reserve - Line 31 - 2022 - 2019"},null,null,null,null,0]
["Sch XI(a)(vii)","Loss Triangles - Other Specialty Lines",null,{"$f":"\"Otr. Special - Reserve - Line 26 - Cat Loss. - \"&$E$2-9","v":"Otr. Special - Reserve - Line 26 - Cat Loss. - 2014"},null,null,null,null,0]
["Sch XI(a)(vii)","Loss Triangles - Other Specialty Lines",null,{"$f":"\"Otr. Special - Gross Premiums Earned - Line 37 - Prior\"","v":"Otr. Special - Gross Premiums Earned - Line 37 - Prior"},null,null,null,null,"XXX"]
["Sch XI(a)(vii)","Loss Triangles - Other Specialty Lines",null,{"$f":"\"Otr. Special - Gross Premiums Earned - Line 47 - \"&$E$2","v":"Otr. Special - Gross Premiums Earned - Line 47 - 2023"},null,null,null,null,0]
["Sch XI(a)(vii)","Loss Triangles - Other Specialty Lines",null,{"$f":"\"Otr. Special - Expenses Paid - Line 41 - \"&$E$2-6","v":"Otr. Special - Expenses Paid - Line 41 - 2017"},null,null,null,null,0]
["Sch XI(a)(vii)","Loss Triangles - Other Specialty Lines",null,{"$f":"\"Otr. Special - G&A - Line 37 - Prior\"","v":"Otr. Special - G&A - Line 37 - Prior"},null,null,null,null,0]
["Sch XI(a)(vii)","Loss Triangles - Other Specialty Lines",null,{"$f":"\"Otr. Special - Other Exp. - Line 41 - \"&$E$2-6","v":"Otr. Special - Other Exp. - Line 41 - 2017"},null,null,null,null,0]
["Sch XI(a)(viii)","Loss Triangles - Structured/Finite Lines",null,{"$f":"\"Stuct. Lines - Incurred - Line 2 - \"&$E$2-9&\" - \"&$E$2-9","v":"Stuct. Lines - Incurred - Line 2 - 2014 - 2014"},null,null,null,null,0]
["Sch XI(a)(viii)","Loss Triangles - Structured/Finite Lines",null,{"$f":"\"Stuct. Lines - Incurred - Line 3 - \"&$E$2-3&\" - \"&$E$2-8","v":"Stuct. Lines - Incurred - Line 3 - 2020 - 2015"},null,null,null,null,0]
["Sch XI(a)(viii)","Loss Triangles - Structured/Finite Lines",null,{"$f":"\"Stuct. Lines - Incurred - Line 4 - \"&$E$2&\" - \"&$E$2-7","v":"Stuct. Lines - Incurred - Line 4 - 2023 - 2016"},null,null,null,null,0]
["Sch XI(a)(viii)","Loss Triangles - Structured/Finite Lines",null,{"$f":"\"Stuct. Lines - Incurred - Line 2 - Cat Loss. - \"&$E$2-9","v":"Stuct. Lines - Incurred - Line 2 - Cat Loss. - 2014"},null,null,null,null,0]
["Sch XI(a)(viii)","Loss Triangles - Structured/Finite Lines",null,{"$f":"\"Stuct. Lines - Paid - Line 15 - \"&$E$2-7&\" - \"&$E$2-8","v":"Stuct. Lines - Paid - Line 15 - 2016 - 2015"},null,null,null,null,0]
["Sch XI(a)(viii)","Loss Triangles - Structured/Finite Lines",null,{"$f":"\"Stuct. Lines - Paid - Line 18 - \"&$E$2-3&\" - \"&$E$2-5","v":"Stuct. Lines - Paid - Line 18 - 2020 - 2018"},null,null,null,null,0]
["Sch XI(a)(viii)","Loss Triangles - Structured/Finite Lines",null,{"$f":"\"Stuct. Lines - Paid - Line 14 - Cat Loss. - \"&$E$2-9","v":"Stuct. Lines - Paid - Line 14 - Cat Loss. - 2014"},null,null,null,null,0]
["Sch XI(a)(viii)","Loss Triangles - Structured/Finite Lines",null,{"$f":"\"Stuct. Lines - Reserve - Line 28 - \"&$E$2-7&\" - \"&$E$2-7","v":"Stuct. Lines - Reserve - Line 28 - 2016 - 2016"},null,null,null,null,0]
["Sch XI(a)(viii)","Loss Triangles - Structured/Finite Lines",null,{"$f":"\"Stuct. Lines - Reserve - Line 25 - \"&$E$2-3&\" - Prior\"","v":"Stuct. Lines - Reserve - Line 25 - 2020 - Prior"},null,null,null,null,0]
["Sch XI(a)(viii)","Loss Triangles - Structured/Finite Lines",null,{"$f":"\"Stuct. Lines - Reserve - Line 33 - \"&$E$2-2&\" - \"&$E$2-2","v":"Stuct. Lines - Reserve - Line 33 - 2021 - 2021"},null,null,null,null,0]
["Sch XI(a)(viii)","Loss Triangles - Structured/Finite Lines",null,{"$f":"\"Stuct. Lines - Reserve - Line 35 - \"&$E$2&\" - \"&$E$2","v":"Stuct. Lines - Reserve - Line 35 - 2023 - 2023"},null,null,null,null,0]
["Sch XI(a)(viii)","Loss Triangles - Structured/Finite Lines",null,{"$f":"\"Stuct. Lines - NPW - Line 38 - \"&$E$2-9","v":"Stuct. Lines - NPW - Line 38 - 2014"},null,null,null,null,0]
["Sch XI(a)(viii)","Loss Triangles - Structured/Finite Lines",null,{"$f":"\"Stuct. Lines - Net Premiums Earned - Line 47 - \"&$E$2","v":"Stuct. Lines - Net Premiums Earned - Line 47 - 2023"},null,null,null,null,0]
["Sch XI(a)(viii)","Loss Triangles - Structured/Finite Lines",null,{"$f":"\"Stuct. Lines - Expenses Incurred - Line 40 - \"&$E$2-7","v":"Stuct. Lines - Expenses Incurred - Line 40 - 2016"},null,null,null,null,0]
["Sch XI(a)(viii)","Loss Triangles - Structured/Finite Lines",null,{"$f":"\"Stuct. Lines - G&A - Line 40 - \"&$E$2-7","v":"Stuct. Lines - G&A - Line 40 - 2016"},null,null,null,null,0]
["Sch XI(a)(viii)","Loss Triangles - Structured/Finite Lines",null,{"$f":"\"Stuct. Lines - Personnel Costs - Line 42 - \"&$E$2-5","v":"Stuct. Lines - Personnel Costs - Line 42 - 2018"},null,null,null,null,0]
["SchXI(bi)","Reserve Rec - Property Castarophe",null,"Cat. - Net Losses Incurred - Current Year",null,null,null,null,null,null,null,null,0,null,0]
["SchXI(biv)","Reserve Rec - Casualty",null,"Casualty - Best Estimate Provision - Beg. Of Year",null,null,null,null,null,null,null,null,0,null,0]
["SchXI(biv)","Reserve Rec - Casualty",null,"Casualty - Impact of Change in Discount Curve",null,null,null,null,null,null,null,null,0,null,0]
["SchXI(bvii)","Reserve Rec - Other Specialty Lines",null,"Otr. Specialty - Net Loss Paid - Prior Years",null,null,null,null,null,null,null,null,0,null,0]
["Sch XII(a)","Eligible Capital",null,"Policyholder Obl. - Pledged Asset - Not Collat.",null,null,null,null,null,null,null,null,0]
[]
["Sch XII(b)","Eligible Capital - Additional Details",null,"Description of Capital Instrument 9",0]
["Sch XII(b)","Eligible Capital - Additional Details",null,"Date of Issue - Instrument 14",0]
["Sch XII(b)","Eligible Capital - Additional Details",null,"Maturity Date - Instrument 6",0]
["Sch XII(b)","Eligible Capital - Additional Details",null,"Valuation - Instrument 6",0]
["Sch XII(b)","Eligible Capital - Additional Details",null,"Tier - Instrument 5",0]
[]
["Sch XVI","Non-Insurance",null,"Entity Jurisdiction - 1",null,null,null,null,0]
["Sch XVI","Non-Insurance",null,"Entity Sector - 4",null,null,null,null,"Select"]
["Sch XVI","Non-Insurance",null,"Entity Strategic Purpose - 8",null,null,null,null,0]
["Sch XVI","Non-Insurance",null,"Entity Participation - 6",null,null,null,null,"Select"]
["Sch XVI","Non-Insurance",null,"% Interest in Entity - 1",null,null,null,null,0]
["Sch XVI","Non-Insurance",null,"Total Assets in Entity - 9",null,null,null,null,0]
["Sch XVI","Non-Insurance",null,"Investments in Entity - 5",null,null,null,null,0]
["Sch XVI","Non-Insurance",null,"Regulatory Capital in Entity - 14",null,null,null,null,0]
["Sch XVII","Sovency Analysis",null,"Name of Entity - 12",null,null,null,null,0]
["Sch XVII","Sovency Analysis",null,"Jurisdiction of Entity - 10",null,null,null,null,0]
["Sch XVII","Sovency Analysis",null,"Jurisdiction of Entity - 13",null,null,null,null,0]
["Sch XVII","Sovency Analysis",null,"Type of Entity - 17",null,null,null,null,"Select"]
["Sch XVII","Sovency Analysis",null,"% Ownership of Entity - 9",null,null,null,null,0]
["Sch XVII","Sovency Analysis",null,"% Ownership of Entity - 20",null,null,null,null,0]
["Sch XVII","Sovency Analysis",null,"GPW of Entity - 14",null,null,null,null,0]
["Sch XVII","Sovency Analysis",null,"NPW of Entity - 18",null,null,null,null,0]
["Sch XVII","Sovency Analysis",null,"Total Assets of Entity - 8",null,null,null,null,0]
["Sch XVII","Sovency Analysis",null,"Total Assets of Entity - 24",null,null,null,null,0]
["Sch XVII","Sovency Analysis",null,"Net Assets of Entity - 8",null,null,null,null,0]
["Sch XVII","Sovency Analysis",null,"Net Assets of Entity - 30",null,null,null,null,0]
["Sch XVII","Sovency Analysis",null,"Regulatory Capital of Entity - 12",null,null,null,null,0]
["Sch XVIII","Ceded Reins",null,"Reinsurer Name - 3",0,null,null,null,null,null,null,null,0]
["Sch XVIII","Ceded Reins",null,"Reinsurer BSCR Rating - 5","Select",null,null,null,null,null,null,null,"Select"]
["Sch XVIII","Ceded Reins",null,"Reinsurer BSCR Rating - 28","Select",null,null,null,null,null,null,null,"Select"]
["Sch XVIII","Ceded Reins",null,"Reinsurer R/I Assets - 10",0,null,null,null,null,null,null,null,0]
["Sch XVIII","Ceded Reins",null,"Reinsurer R/I Payable - 4",0,null,null,null,null,null,null,null,0]
["Sch XVIII","Ceded Reins",null,"Reinsurer R/I Total - 30",0,null,null,null,null,null,null,null,0]
["Sch XVIII","Ceded Reins",null,"Reinsurer Collateral - 10",0,null,null,null,null,null,null,null,0]
["Sch XVIII","Ceded Reins",null,"R/I Payable - Exposure by BSCR Rate 6",0,null,null,null,null,null,null,null,0]
["Sch XVIII","Ceded Reins",null,"Collateral - Exposure by BSCR Rate 1",0,null,null,null,null,null,null,null,0]
["Sch XIXA","Cash Counterpart",null,"BSCR Rating - Counterparty 1",null,null,null,null,null,null,null,null,"Select"]
["Sch XIXA","Cash Counterpart",null,"Counterparty Value 2",null,null,null,null,null,null,null,null,0]
["Sch XIXA","Cash Counterpart",null,"Counterparty Value 18",null,null,null,null,null,null,null,null,0]
["Sch XXA","Currency Shock",null,"Other Currency 6",null,null,null,null,null,null,null,null,"Other currency 6"]
["Sch XXA","Currency Shock",null,{"$f":"\"Before Shock - Long Exposures - Currency Derivatives Qualifying as held for risk-mitigation purposes \"&'Schedule XXA'!$B$18","v":"Before Shock - Long Exposures - Currency Derivatives Qualifying as held for risk-mitigation purposes Central African CFA Francs"},null,null,null,null,null,null,null,null,0]
["Sch XXA","Currency Shock",null,{"$f":"\"Before Shock - Long Exposures - Currency Derivatives Not Qualifying as held for risk-mitigation purposes \"&'Schedule XXA'!$B$15","v":"Before Shock - Long Exposures - Currency Derivatives Not Qualifying as held for risk-mitigation purposes Denmark Kroner"},null,null,null,null,null,null,null,null,0]
["Sch XXA","Currency Shock",null,{"$f":"\"Before Shock - Long Exposures - Currency Derivatives Not Qualifying as held for risk-mitigation purposes \"&'Schedule XXA'!$B$32","v":"Before Shock - Long Exposures - Currency Derivatives Not Qualifying as held for risk-mitigation purposes Other currency 10"},null,null,null,null,null,null,null,null,0]
["Sch XXA","Currency Shock",null,{"$f":"\"Before Shock - Short Exposures - Currency Derivatives Qualifying as held for risk-mitigation purposes \"&'Schedule XXA'!$B$27","v":"Before Shock - Short Exposures - Currency Derivatives Qualifying as held for risk-mitigation purposes Other currency 5"},null,null,null,null,null,null,null,null,0]
["Sch XXA","Currency Shock",null,{"$f":"\"Before Shock - Short Exposures - Currency Derivatives Not Qualifying as held for risk-mitigation purposes \"&'Schedule XXA'!$B$23","v":"Before Shock - Short Exposures - Currency Derivatives Not Qualifying as held for risk-mitigation purposes Other currency 1"},null,null,null,null,null,null,null,null,0]
["Sch XXA","Currency Shock",null,{"$f":"\"After Shock - Assets - Excluding Currency - Sensitive Derivatives \"&'Schedule XXA'!$B$10","v":"After Shock - Assets - Excluding Currency - Sensitive Derivatives United States Dollars"},null,null,null,null,null,null,null,null,0]
["Sch XXA","Currency Shock",null,{"$f":"\"After Shock - Assets - Excluding Currency - Sensitive Derivatives \"&'Schedule XXA'!$B$14","v":"After Shock - Assets - Excluding Currency - Sensitive Derivatives Euro"},null,null,null,null,null,null,null,null,0]
["Sch XXA","Currency Shock",null,{"$f":"\"After Shock - Long Exposures - Currency Derivatives Qualifying as held for risk-mitigation purposes \"&'Schedule XXA'!$B$22","v":"After Shock - Long Exposures - Currency Derivatives Qualifying as held for risk-mitigation purposes Japan Yen"},null,null,null,null,null,null,null,null,0]
["Sch XXA","Currency Shock",null,{"$f":"\"After Shock - Long Exposures - Currency Derivatives Not Qualifying as held for risk-mitigation purposes \"&'Schedule XXA'!$B$27","v":"After Shock - Long Exposures - Currency Derivatives Not Qualifying as held for risk-mitigation purposes Other currency 5"},null,null,null,null,null,null,null,null,0]
["Sch XXA","Currency Shock",null,{"$f":"\"After Shock - Short Exposures - Currency Derivatives Qualifying as held for risk-mitigation purposes \"&'Schedule XXA'!$B$11","v":"After Shock - Short Exposures - Currency Derivatives Qualifying as held for risk-mitigation purposes Bermuda Dollars"},null,null,null,null,null,null,null,null,0]
["Sch XXA","Currency Shock",null,{"$f":"\"After Shock - Short Exposures - Currency Derivatives Not Qualifying as held for risk-mitigation purposes \"&'Schedule XXA'!$B$14","v":"After Shock - Short Exposures - Currency Derivatives Not Qualifying as held for risk-mitigation purposes Euro"},null,null,null,null,null,null,null,null,0]
["Sch XXA","Currency Shock",null,{"$f":"\"After Shock - B.E. Liabilities \"&'Schedule XXA'!$B$21","v":"After Shock - B.E. Liabilities Canada Dollars"},null,null,null,null,null,null,null,null,0]
["Sch XXA","Currency Shock",null,{"$f":"\"After Shock - B.E. Liabilities \"&'Schedule XXA'!$B$28","v":"After Shock - B.E. Liabilities Other currency 6"},null,null,null,null,null,null,null,null,0]
["Sch XXA","Currency Shock",null,{"$f":"\"After Shock - Liabilities w Mgmt. Actions \"&'Schedule XXA'!$B$29","v":"After Shock - Liabilities w Mgmt. Actions Other currency 7"},null,null,null,null,null,null,null,null,0]
["Sch XXIA","Inv Con Risk",null,"Name of Exposure - 24",0]
["Sch XXIA","Inv Con Risk",null,"Name of Exposure - 45",0]
["Sch XXIA","Inv Con Risk",null,"Asset Type - 11","Select",null,null,null,null,null,null,null,"Select"]
["Sch XXIA","Inv Con Risk",null,"Asset Type - 30","Select",null,null,null,null,null,null,null,"Select"]
["Sch XXIA","Inv Con Risk",null,"Asset Type - 44","Select",null,null,null,null,null,null,null,"Select"]
["Sch XXIA","Inv Con Risk",null,"Bond Type - 15","Select",null,null,null,null,null,null,null,"Select"]
["Sch XXIA","Inv Con Risk",null,"BSCR Rating - 3","Select",null,null,null,null,null,null,null,"Select"]
["Sch XXIA","Inv Con Risk",null,"BSCR Rating - 24","Select",null,null,null,null,null,null,null,"Select"]
["Sch XXIA","Inv Con Risk",null,"BSCR Rating - 37","Select",null,null,null,null,null,null,null,"Select"]
["Sch XXIA","Inv Con Risk",null,"Asset Value - 7",0,null,null,null,null,null,null,null,0]
["Sch XXIA","Inv Con Risk",null,"Asset Value - 22",0,null,null,null,null,null,null,null,0]
["Sch XXIA","Inv Con Risk",null,"Asset Value - 44",0,null,null,null,null,null,null,null,0]
["Sch XXIII","Interest Rates",null,{"$f":"\"Int. Down - Before Shock - Other - Qualifying Assets - \"&'Schedule XXIII'!$C$21","v":"Int. Down - Before Shock - Other - Qualifying Assets - Other currency 4"},null,null,null,null,null,null,null,null,0]
["Sch XXIII","Interest Rates",null,"Int. Down - Before Shock - Other - Liab. w/o Mgmt Action - United Kingdom Pounds",null,null,null,null,null,null,null,null,0]
["Sch XXIII","Interest Rates",null,{"$f":"\"Int. Down - Before Shock - Other - Liab. w/o Mgmt Action - \"&'Schedule XXIII'!$C$18","v":"Int. Down - Before Shock - Other - Liab. w/o Mgmt Action - Other currency 1"},null,null,null,null,null,null,null,null,0]
["Sch XXIII","Interest Rates",null,"Int. Down - After Shock - Other - Liab. with Mgmt Action - Euro",null,null,null,null,null,null,null,null,0]
["Sch XXIII","Interest Rates",null,"Int. Down - Before Shock - Derivatives - Qualifying Assets - New Zealand Dollar",null,null,null,null,null,null,null,null,0]
["Sch XXIII","Interest Rates",null,{"$f":"\"Int. Down - Before Shock - Derivatives - Qualifying Assets - \"&'Schedule XXIII'!$C$25","v":"Int. Down - Before Shock - Derivatives - Qualifying Assets - Other currency 8"},null,null,null,null,null,null,null,null,0]
["Sch XXIII","Interest Rates",null,"Int. Down - Before Shock - Derivatives - Not Qualifying Assets - Canada Dollars",null,null,null,null,null,null,null,null,0]
["Sch XXIII","Interest Rates",null,{"$f":"\"Int. Down - After Shock - Derivatives - Not Qualifying Assets - \"&'Schedule XXIII'!$C$27","v":"Int. Down - After Shock - Derivatives - Not Qualifying Assets - Other currency 10"},null,null,null,null,null,null,null,null,0]
["Sch XXIII","Interest Rates",null,"Int. Down - Before Shock - Derivatives - Liab. w/o Mgmt Action - Total",null,null,null,null,null,null,null,null,0]
["Sch XXIII","Interest Rates",null,{"$f":"\"Int. Down - After Shock - Derivatives - Liab. w/o Mgmt Action - \"&'Schedule XXIII'!$C$26","v":"Int. Down - After Shock - Derivatives - Liab. w/o Mgmt Action - Other currency 9"},null,null,null,null,null,null,null,null,0]
["Sch XXIII","Interest Rates",null,{"$f":"\"Int. Down - After Shock - Derivatives - Liab. with Mgmt Action - \"&'Schedule XXIII'!$C$25","v":"Int. Down - After Shock - Derivatives - Liab. with Mgmt Action - Other currency 8"},null,null,null,null,null,null,null,null,0]
["Sch XXIII","Interest Rates",null,"Int. Up - Before Shock - Other - Qualifying Assets - Swiss Francs",null,null,null,null,null,null,null,null,0]
["Sch XXIII","Interest Rates",null,"Int. Up - Before Shock - Other - Liab. w/o Mgmt Action - Canada Dollars",null,null,null,null,null,null,null,null,0]
["Sch XXIII","Interest Rates",null,"Int. Up - After Shock - Other - Liab. w/o Mgmt Action - Japan Yen",null,null,null,null,null,null,null,null,0]
["Sch XXIII","Interest Rates",null,"Int. Up - After Shock - Other - Liab. with Mgmt Action - Euro",null,null,null,null,null,null,null,null,0]
["Sch XXIII","Interest Rates",null,"Int. Up - Before Shock - Derivatives - Qualifying Assets - United Kingdom Pounds",null,null,null,null,null,null,null,null,0]
["Sch XXIII","Interest Rates",null,{"$f":"\"Int. Up - Before Shock - Derivatives - Qualifying Assets - \"&'Schedule XXIII'!$C$27","v":"Int. Up - Before Shock - Derivatives - Qualifying Assets - Other currency 10"},null,null,null,null,null,null,null,null,0]
["Sch XXIII","Interest Rates",null,"Int. Up - Before Shock - Derivatives - Not Qualifying Assets - Euro",null,null,null,null,null,null,null,null,0]
["Sch XXIII","Interest Rates",null,{"$f":"\"Int. Up - After Shock - Derivatives - Not Qualifying Assets - \"&'Schedule XXIII'!$C$22","v":"Int. Up - After Shock - Derivatives - Not Qualifying Assets - Other currency 5"},null,null,null,null,null,null,null,null,0]
["Sch XXIII","Interest Rates",null,"Int. Up - After Shock - Derivatives - Liab. w/o Mgmt Action - Japan Yen",null,null,null,null,null,null,null,null,0]
["Sch XXIII","Interest Rates",null,"Int. Up - After Shock - Derivatives - Liab. with Mgmt Action - Euro",null,null,null,null,null,null,null,null,0]
["Sch XXIII","Interest Rates",null,"Int. Up - After Shock - Derivatives - Liab. with Mgmt Action - New Zealand Dollar",null,null,null,null,null,null,null,null,0]
["Sch XXIII","Interest Rates",null,{"$f":"\"Int. Up - After Shock - Derivatives - Liab. with Mgmt Action - \"&'Schedule XXIII'!$C$18","v":"Int. Up - After Shock - Derivatives - Liab. with Mgmt Action - Other currency 1"},null,null,null,null,null,null,null,null,0]
["Sch XXIII","Interest Rates",null,{"$f":"\"Int. Up - After Shock - Derivatives - Liab. with Mgmt Action - \"&'Schedule XXIII'!$C$19","v":"Int. Up - After Shock - Derivatives - Liab. with Mgmt Action - Other currency 2"},null,null,null,null,null,null,null,null,0]
["Sch XXIII","Interest Rates",null,{"$f":"\"Int. Up - After Shock - Derivatives - Liab. with Mgmt Action - \"&'Schedule XXIII'!$C$20","v":"Int. Up - After Shock - Derivatives - Liab. with Mgmt Action - Other currency 3"},null,null,null,null,null,null,null,null,0]
["Sch XXIII","Interest Rates",null,{"$f":"\"Int. Up - After Shock - Derivatives - Liab. with Mgmt Action - \"&'Schedule XXIII'!$C$21","v":"Int. Up - After Shock - Derivatives - Liab. with Mgmt Action - Other currency 4"},null,null,null,null,null,null,null,null,0]
["Sch XXIII","Interest Rates",null,{"$f":"\"Int. Up - After Shock - Derivatives - Liab. with Mgmt Action - \"&'Schedule XXIII'!$C$22","v":"Int. Up - After Shock - Derivatives - Liab. with Mgmt Action - Other currency 5"},null,null,null,null,null,null,null,null,0]
["Sch XXIII","Interest Rates",null,{"$f":"\"Int. Up - After Shock - Derivatives - Liab. with Mgmt Action - \"&'Schedule XXIII'!$C$23","v":"Int. Up - After Shock - Derivatives - Liab. with Mgmt Action - Other currency 6"},null,null,null,null,null,null,null,null,0]
["Sch XXIII","Interest Rates",null,{"$f":"\"Int. Up - After Shock - Derivatives - Liab. with Mgmt Action - \"&'Schedule XXIII'!$C$24","v":"Int. Up - After Shock - Derivatives - Liab. with Mgmt Action - Other currency 7"},null,null,null,null,null,null,null,null,0]
["Sch XXIII","Interest Rates",null,{"$f":"\"Int. Up - After Shock - Derivatives - Liab. with Mgmt Action - \"&'Schedule XXIII'!$C$25","v":"Int. Up - After Shock - Derivatives - Liab. with Mgmt Action - Other currency 8"},null,null,null,null,null,null,null,null,0]
["Sch XXIII","Interest Rates",null,{"$f":"\"Int. Up - After Shock - Derivatives - Liab. with Mgmt Action - \"&'Schedule XXIII'!$C$26","v":"Int. Up - After Shock - Derivatives - Liab. with Mgmt Action - Other currency 9"},null,null,null,null,null,null,null,null,0]
["Sch XXIII","Interest Rates",null,{"$f":"\"Int. Up - After Shock - Derivatives - Liab. with Mgmt Action - \"&'Schedule XXIII'!$C$27","v":"Int. Up - After Shock - Derivatives - Liab. with Mgmt Action - Other currency 10"},null,null,null,null,null,null,null,null,0]
["Sch XXIII","Interest Rates",null,"Int. Up - After Shock - Derivatives - Liab. with Mgmt Action - Total",null,null,null,null,null,null,null,null,0]
[]
["Op Risk","Corp Gov",null,"Corporate Governance Q1",null,null,null,null,0,null,null,null,null,null,null,0]
["Op Risk","Corp Gov",null,"Corporate Governance Q2 (Class 3A Only)",null,null,null,null,0,null,null,null,null,null,null,{"$f":"IF('Company Information'!$F$11=\"Class 3A\",200,0)","v":200}]
["Op Risk","Corp Gov",null,"Corporate Governance Q3",null,null,null,null,0]
["Op Risk","Corp Gov",null,"Corporate Governance Q4",null,null,null,null,0]
["Op Risk","Corp Gov",null,"Corporate Governance Q5",null,null,null,null,0]
["Op Risk","Corp Gov",null,"Corporate Governance Q6",null,null,null,null,0]
["Op Risk","Corp Gov",null,"Corporate Governance Q7",null,null,null,null,0]
["Op Risk","Risk Mngt",null,"Risk Management Q1",null,null,null,null,0,null,null,null,null,null,null,0]
["Op Risk","Risk Mngt",null,"Risk Management Q2",null,null,null,null,0,null,null,null,null,null,null,{"$f":"IF('Company Information'!$F$11=\"Class 3A\",200,150)","v":200}]
["Op Risk","Risk Mngt",null,"Risk Management Q3",null,null,null,null,0]
["Op Risk","Risk Mngt",null,"Risk Management Q4",null,null,null,null,0]
["Op Risk","Risk Mngt",null,"Risk Management Q5",null,null,null,null,0]
["Op Risk","Risk Mngt",null,"Risk Management Q6",null,null,null,null,0]
["Op Risk","Risk Mngt",null,"Risk Management Q7",null,null,null,null,0]
["Op Risk","Indentification",null,"Identification - Fraud (Class 4/3B Only)",null,null,null,null,0,null,null,null,null,null,null,{"$f":"IF('Company Information'!$F$11=\"Class 3A\",0,0)","v":0}]
["Op Risk","Indentification",null,"Identification - HR (Class 4/3B Only)",null,null,null,null,0,null,null,null,null,null,null,{"$f":"IF('Company Information'!$F$11=\"Class 3A\",0,50)","v":0}]
["Op Risk","Indentification",null,"Identification - Outsourcing (Class 4/3B Only)",null,null,null,null,0,null,null,null,null,null,null,{"$f":"IF('Company Information'!$F$11=\"Class 3A\",0,100)","v":0}]
["Op Risk","Indentification",null,"Identification - Dis. Channels (Class 4/3B Only)",null,null,null,null,0,null,null,null,null,null,null,{"$f":"IF('Company Information'!$F$11=\"Class 3A\",0,150)","v":0}]
["Op Risk","Indentification",null,"Identification - Bus. Processes (Class 4/3B Only)",null,null,null,null,0,null,null,null,null,null,null,{"$f":"IF('Company Information'!$F$11=\"Class 3A\",0,200)","v":0}]
["Op Risk","Indentification",null,"Identification - Bus. Continuity (Class 4/3B Only)",null,null,null,null,0]
["Op Risk","Indentification",null,"Identification - Info. Systems (Class 4/3B Only)",null,null,null,null,0]
["Op Risk","Indentification",null,"Identification - Compliance (Class 4/3B Only)",null,null,null,null,0]
["Op Risk","Measurement",null,"Measurement - Fraud (Class 4/3B Only)",null,null,null,null,0]
["Op Risk","Measurement",null,"Measurement - HR (Class 4/3B Only)",null,null,null,null,0]
["Op Risk","Measurement",null,"Measurement - Outsourcing (Class 4/3B Only)",null,null,null,null,0]
["Op Risk","Measurement",null,"Measurement - Dis. Channels (Class 4/3B Only)",null,null,null,null,0]
["Op Risk","Measurement",null,"Measurement - Bus. Processes (Class 4/3B Only)",null,null,null,null,0]
["Op Risk","Measurement",null,"Measurement - Bus. Continuity (Class 4/3B Only)",null,null,null,null,0]
["Op Risk","Measurement",null,"Measurement - Info. Systems (Class 4/3B Only)",null,null,null,null,0]
["Op Risk","Measurement",null,"Measurement - Compliance (Class 4/3B Only)",null,null,null,null,0]
["Op Risk","Response",null,"Response - Fraud (Class 4/3B Only)",null,null,null,null,0]
["Op Risk","Response",null,"Response - HR (Class 4/3B Only)",null,null,null,null,0]
["Op Risk","Response",null,"Response - Outsourcing (Class 4/3B Only)",null,null,null,null,0]
["Op Risk","Response",null,"Response - Dis. Channels (Class 4/3B Only)",null,null,null,null,0]
["Op Risk","Response",null,"Response - Bus. Processes (Class 4/3B Only)",null,null,null,null,0]
["Op Risk","Response",null,"Response - Bus. Continuity (Class 4/3B Only)",null,null,null,null,0]
["Op Risk","Response",null,"Response - Info. Systems (Class 4/3B Only)",null,null,null,null,0]
["Op Risk","Response",null,"Response - Compliance (Class 4/3B Only)",null,null,null,null,0]
["Op Risk","Mont. & Reporting",null,"Mont. & Reporting - Fraud (Class 4/3B Only)",null,null,null,null,0]
["Op Risk","Mont. & Reporting",null,"Mont. & Reporting - HR (Class 4/3B Only)",null,null,null,null,0]
["Op Risk","Mont. & Reporting",null,"Mont. & Reporting - Outsourcing (Class 4/3B Only)",null,null,null,null,0]
["Op Risk","Mont. & Reporting",null,"Mont. & Reporting - Dis. Channels (Class 4/3B Only)",null,null,null,null,0]
["Op Risk","Mont. & Reporting",null,"Mont. & Reporting - Bus. Processes (Class 4/3B Only)",null,null,null,null,0]
["Op Risk","Mont. & Reporting",null,"Mont. & Reporting - Bus. Continuity (Class 4/3B Only)",null,null,null,null,0]
["Op Risk","Mont. & Reporting",null,"Mont. & Reporting - Info. Systems (Class 4/3B Only)",null,null,null,null,0]
["Op Risk","Mont. & Reporting",null,"Mont. & Reporting - Compliance (Class 4/3B Only)",null,null,null,null,0]
[]
["Summary",null,null,"Deferred Tax Asset - T",null,null,null,null,null,null,null,null,0]
["Summary",null,null,"Deferred Tax Asset - Loss Carryback Provision",null,null,null,null,null,null,null,null,0]
["Summary",null,null,"Management Action - Net Future Discretionary Benefits / Bonus Reserve",null,null,null,null,null,null,null,null,0]
[]
["Sar & Sanc.","SAR & Santions",null,"E.1 Registered GoAML","Select Yes/No"]
["Sar & Sanc.","SAR & Santions",null,"E.1.1 When","(Select)"]
["Sar & Sanc.","SAR & Santions",null,"E.1.1 Name",0]
["Sar & Sanc.","SAR & Santions",null,"E.1.2 Another Registered","Select Yes/No"]
["Sar & Sanc.","SAR & Santions",null,"E.1.3 Name",0]
["Sar & Sanc.","SAR & Santions",null,"E.1.4 Filed SAR",0]
["Sar & Sanc.","SAR & Santions",null,"E.2 SAR Filed - Internal - Current Year",0]
["Sar & Sanc.","SAR & Santions",null,"E.2 SAR Filed - Internal - Prior Year",0]
["Sar & Sanc.","SAR & Santions",null,"E.2 SAR Filed - Internal - 2 Years Prior",0]
["Sar & Sanc.","SAR & Santions",null,"E.2 SAR Filed - Internal - 3 Years Prior",0]
["Sar & Sanc.","SAR & Santions",null,"E.2 SAR Filed - Internal - Total",0]
["Sar & Sanc.","SAR & Santions",null,"E.2 SAR Filed - w FIA - Current Year",0]
["Sar & Sanc.","SAR & Santions",null,"E.2 SAR Filed - w FIA - Prior Year",0]
["Sar & Sanc.","SAR & Santions",null,"E.2 SAR Filed - w FIA - 2 Years Prior",0]
["Sar & Sanc.","SAR & Santions",null,"E.2 SAR Filed - w FIA - 3 Years Prior",0]
["Sar & Sanc.","SAR & Santions",null,"E.2 SAR Filed - w FIA - Total",0]
["Sar & Sanc.","SAR & Santions",null,"E.2 Additional Comments",0]
["Sar & Sanc.","SAR & Santions",null,"E. Sanction - 1. Screen insurers","Select Yes/No"]
["Sar & Sanc.","SAR & Santions",null,"E. Sanction - 2. Screen employees","Select Yes/No"]
["Sar & Sanc.","SAR & Santions",null,"E. Sanction - 3. Freeze Assets","Select Yes/No"]
["Sar & Sanc.","SAR & Santions",null,"E. Sanction - 3.1 # of Assets Frozen",0]
["Sar & Sanc.","SAR & Santions",null,"E. Sanction - 3.2 Group ID 1",0]
["Sar & Sanc.","SAR & Santions",null,"E. Sanction - 3.2 Group ID 2",0]
["Sar & Sanc.","SAR & Santions",null,"E. Sanction - 3.2 Group ID 3",0]
["Sar & Sanc.","SAR & Santions",null,"E. Sanction - 3.2 Group ID 4",0]
["Sar & Sanc.","SAR & Santions",null,"E. Sanction - 3.2 Name Given 1",0]
["Sar & Sanc.","SAR & Santions",null,"E. Sanction - 3.2 Name Given 2",0]
["Sar & Sanc.","SAR & Santions",null,"E. Sanction - 3.2 Name Given 3",0]
["Sar & Sanc.","SAR & Santions",null,"E. Sanction - 3.2 Name Given 4",0]
["Sar & Sanc.","SAR & Santions",null,"E. Sanction - 3.2 Owned 1",0]
["Sar & Sanc.","SAR & Santions",null,"E. Sanction - 3.2 Owned 2",0]
["Sar & Sanc.","SAR & Santions",null,"E. Sanction - 3.2 Owned 3",0]
["Sar & Sanc.","SAR & Santions",null,"E. Sanction - 3.2 Owned 4",0]
["Sar & Sanc.","SAR & Santions",null,"E. Sanction - 3.2 Value of Assets 1",0]
["Sar & Sanc.","SAR & Santions",null,"E. Sanction - 3.2 Value of Assets 2",0]
["Sar & Sanc.","SAR & Santions",null,"E. Sanction - 3.2 Value of Assets 3",0]
["Sar & Sanc.","SAR & Santions",null,"E. Sanction - 3.2 Value of Assets 4",0]
["Sar & Sanc.","SAR & Santions",null,"E. Sanction - 3.2 Value of Total",0]
["Sar & Sanc.","SAR & Santions",null,"E. Sanction - 4 Frequency of Screen for Sanctions","Select"]
["Sar & Sanc.","SAR & Santions",null,"E. Sanction - Additional Comments ",0]
[]
["Sch XIX","Cash Counterpart",null,"Number",0]
["Sch XIX","Cash Counterpart",null,"Name - Counterparty 1",0]
["Sch XIX","Cash Counterpart",null,"Name - Counterparty 2",0]
["Sch XIX","Cash Counterpart",null,"Name - Counterparty 3",0]
["Sch XIX","Cash Counterpart",null,"Name - Counterparty 4",0]
["Sch XIX","Cash Counterpart",null,"Name - Counterparty 5",0]
["Sch XIX","Cash Counterpart",null,"Name - Counterparty 6",0]
["Sch XIX","Cash Counterpart",null,"Name - Counterparty 7",0]
["Sch XIX","Cash Counterpart",null,"Name - Counterparty 8",0]
["Sch XIX","Cash Counterpart",null,"Name - Counterparty 9",0]
["Sch XIX","Cash Counterpart",null,"Name - Counterparty 10",0]
["Sch XIX","Cash Counterpart",null,"Name - Counterparty 11",0]
["Sch XIX","Cash Counterpart",null,"Name - Counterparty 12",0]
["Sch XIX","Cash Counterpart",null,"Name - Counterparty 13",0]
["Sch XIX","Cash Counterpart",null,"Name - Counterparty 14",0]
["Sch XIX","Cash Counterpart",null,"Name - Counterparty 15",0]
["Sch XIX","Cash Counterpart",null,"Name - Counterparty 16",0]
["Sch XIX","Cash Counterpart",null,"Name - Counterparty 17",0]
["Sch XIX","Cash Counterpart",null,"Name - Counterparty 18",0]
["Sch XIX","Cash Counterpart",null,"Name - Counterparty 19",0]
["Sch XIX","Cash Counterpart",null,"Name - Counterparty 20",0]
["Sch XIX","Cash Counterpart",null,"BSCR Rating - Counterparty 1","Select"]
["Sch XIX","Cash Counterpart",null,"BSCR Rating - Counterparty 2","Select"]
["Sch XIX","Cash Counterpart",null,"BSCR Rating - Counterparty 3","Select"]
["Sch XIX","Cash Counterpart",null,"BSCR Rating - Counterparty 4","Select"]
["Sch XIX","Cash Counterpart",null,"BSCR Rating - Counterparty 5","Select"]
["Sch XIX","Cash Counterpart",null,"BSCR Rating - Counterparty 6","Select"]
["Sch XIX","Cash Counterpart",null,"BSCR Rating - Counterparty 7","Select"]
["Sch XIX","Cash Counterpart",null,"BSCR Rating - Counterparty 8","Select"]
["Sch XIX","Cash Counterpart",null,"BSCR Rating - Counterparty 9","Select"]
["Sch XIX","Cash Counterpart",null,"BSCR Rating - Counterparty 10","Select"]
["Sch XIX","Cash Counterpart",null,"BSCR Rating - Counterparty 11","Select"]
["Sch XIX","Cash Counterpart",null,"BSCR Rating - Counterparty 12","Select"]
["Sch XIX","Cash Counterpart",null,"BSCR Rating - Counterparty 13","Select"]
["Sch XIX","Cash Counterpart",null,"BSCR Rating - Counterparty 14","Select"]
["Sch XIX","Cash Counterpart",null,"BSCR Rating - Counterparty 15","Select"]
["Sch XIX","Cash Counterpart",null,"BSCR Rating - Counterparty 16","Select"]
["Sch XIX","Cash Counterpart",null,"BSCR Rating - Counterparty 17","Select"]
["Sch XIX","Cash Counterpart",null,"BSCR Rating - Counterparty 18","Select"]
["Sch XIX","Cash Counterpart",null,"BSCR Rating - Counterparty 19","Select"]
["Sch XIX","Cash Counterpart",null,"BSCR Rating - Counterparty 20","Select"]
["Sch XIX","Cash Counterpart",null,"Counterparty Value 1",0,null,null,null,null,null,null,null,0]
["Sch XIX","Cash Counterpart",null,"Counterparty Value 2",0,null,null,null,null,null,null,null,0]
["Sch XIX","Cash Counterpart",null,"Counterparty Value 3",0,null,null,null,null,null,null,null,0]
["Sch XIX","Cash Counterpart",null,"Counterparty Value 4",0,null,null,null,null,null,null,null,0]
["Sch XIX","Cash Counterpart",null,"Counterparty Value 5",0,null,null,null,null,null,null,null,0]
["Sch XIX","Cash Counterpart",null,"Counterparty Value 6",0,null,null,null,null,null,null,null,0]
["Sch XIX","Cash Counterpart",null,"Counterparty Value 7",0,null,null,null,null,null,null,null,0]
["Sch XIX","Cash Counterpart",null,"Counterparty Value 8",0,null,null,null,null,null,null,null,0]
["Sch XIX","Cash Counterpart",null,"Counterparty Value 9",0,null,null,null,null,null,null,null,0]
["Sch XIX","Cash Counterpart",null,"Counterparty Value 10",0,null,null,null,null,null,null,null,0]
["Sch XIX","Cash Counterpart",null,"Counterparty Value 11",0,null,null,null,null,null,null,null,0]
["Sch XIX","Cash Counterpart",null,"Counterparty Value 12",0,null,null,null,null,null,null,null,0]
["Sch XIX","Cash Counterpart",null,"Counterparty Value 13",0,null,null,null,null,null,null,null,0]
["Sch XIX","Cash Counterpart",null,"Counterparty Value 14",0,null,null,null,null,null,null,null,0]
["Sch XIX","Cash Counterpart",null,"Counterparty Value 15",0,null,null,null,null,null,null,null,0]
["Sch XIX","Cash Counterpart",null,"Counterparty Value 16",0,null,null,null,null,null,null,null,0]
["Sch XIX","Cash Counterpart",null,"Counterparty Value 17",0,null,null,null,null,null,null,null,0]
["Sch XIX","Cash Counterpart",null,"Counterparty Value 18",0,null,null,null,null,null,null,null,0]
["Sch XIX","Cash Counterpart",null,"Counterparty Value 19",0,null,null,null,null,null,null,null,0]
["Sch XIX","Cash Counterpart",null,"Counterparty Value 20",0,null,null,null,null,null,null,null,0]
["Sch XIX","Cash Counterpart",null,"Counterparty Total",0,null,null,null,null,null,null,null,0]
["Sch XIX","Cash Counterpart",null,"Exposure BSCR Rate 0",0,null,null,null,null,null,null,null,0]
["Sch XIX","Cash Counterpart",null,"Exposure BSCR Rate 1",0,null,null,null,null,null,null,null,0]
["Sch XIX","Cash Counterpart",null,"Exposure BSCR Rate 2",0,null,null,null,null,null,null,null,0]
["Sch XIX","Cash Counterpart",null,"Exposure BSCR Rate 3",0,null,null,null,null,null,null,null,0]
["Sch XIX","Cash Counterpart",null,"Exposure BSCR Rate 4",0,null,null,null,null,null,null,null,0]
["Sch XIX","Cash Counterpart",null,"Exposure BSCR Rate 5",0,null,null,null,null,null,null,null,0]
["Sch XIX","Cash Counterpart",null,"Exposure BSCR Rate 6",0,null,null,null,null,null,null,null,0]
["Sch XIX","Cash Counterpart",null,"Exposure BSCR Rate 7",0,null,null,null,null,null,null,null,0]
["Sch XIX","Cash Counterpart",null,"Exposure BSCR Rate 8",0,null,null,null,null,null,null,null,0]
[]
["Sch XX","Currency Analysis",null,"Assets - USD",0,null,null,null,null,null,null,null,0]
["Sch XX","Currency Analysis",null,"Assets - Euro",0,null,null,null,null,null,null,null,0]
["Sch XX","Currency Analysis",null,"Assets - UK £",0,null,null,null,null,null,null,null,0]
["Sch XX","Currency Analysis",null,"Assets - CDN",0,null,null,null,null,null,null,null,0]
["Sch XX","Currency Analysis",null,"Assets - Japan Yen",0,null,null,null,null,null,null,null,0]
["Sch XX","Currency Analysis",null,"Assets - Other 1",0,null,null,null,null,null,null,null,0]
["Sch XX","Currency Analysis",null,"Assets - Other 2",0,null,null,null,null,null,null,null,0]
["Sch XX","Currency Analysis",null,"Assets - Other 3",0,null,null,null,null,null,null,null,0]
["Sch XX","Currency Analysis",null,"Assets - Other 4",0,null,null,null,null,null,null,null,0]
["Sch XX","Currency Analysis",null,"Assets - Other 5",0,null,null,null,null,null,null,null,0]
["Sch XX","Currency Analysis",null,"Assets - Other 6",0,null,null,null,null,null,null,null,0]
["Sch XX","Currency Analysis",null,"Assets - Other 7",0,null,null,null,null,null,null,null,0]
["Sch XX","Currency Analysis",null,"Assets - Other 8",0,null,null,null,null,null,null,null,0]
["Sch XX","Currency Analysis",null,"Assets - Other 9",0,null,null,null,null,null,null,null,0]
["Sch XX","Currency Analysis",null,"Assets - Other 10",0,null,null,null,null,null,null,null,0]
["Sch XX","Currency Analysis",null,"Assets - Total",0,null,null,null,null,null,null,null,0]
["Sch XX","Currency Analysis",null,"Hedge Assets - USD",0,null,null,null,null,null,null,null,0]
["Sch XX","Currency Analysis",null,"Hedge Assets - Euro",0,null,null,null,null,null,null,null,0]
["Sch XX","Currency Analysis",null,"Hedge Assets - UK £",0,null,null,null,null,null,null,null,0]
["Sch XX","Currency Analysis",null,"Hedge Assets - CDN",0,null,null,null,null,null,null,null,0]
["Sch XX","Currency Analysis",null,"Hedge Assets - Japan Yen",0,null,null,null,null,null,null,null,0]
["Sch XX","Currency Analysis",null,"Hedge Assets - Other 1",0,null,null,null,null,null,null,null,0]
["Sch XX","Currency Analysis",null,"Hedge Assets - Other 2",0,null,null,null,null,null,null,null,0]
["Sch XX","Currency Analysis",null,"Hedge Assets - Other 3",0,null,null,null,null,null,null,null,0]
["Sch XX","Currency Analysis",null,"Hedge Assets - Other 4",0,null,null,null,null,null,null,null,0]
["Sch XX","Currency Analysis",null,"Hedge Assets - Other 5",0,null,null,null,null,null,null,null,0]
["Sch XX","Currency Analysis",null,"Hedge Assets - Other 6",0,null,null,null,null,null,null,null,0]
["Sch XX","Currency Analysis",null,"Hedge Assets - Other 7",0,null,null,null,null,null,null,null,0]
["Sch XX","Currency Analysis",null,"Hedge Assets - Other 8",0,null,null,null,null,null,null,null,0]
["Sch XX","Currency Analysis",null,"Hedge Assets - Other 9",0,null,null,null,null,null,null,null,0]
["Sch XX","Currency Analysis",null,"Hedge Assets - Other 10",0,null,null,null,null,null,null,null,0]
["Sch XX","Currency Analysis",null,"Hedge Assets - Total",0,null,null,null,null,null,null,null,0]
["Sch XX","Currency Analysis",null,"Liab. - USD",0,null,null,null,null,null,null,null,0]
["Sch XX","Currency Analysis",null,"Liab. - Euro",0,null,null,null,null,null,null,null,0]
["Sch XX","Currency Analysis",null,"Liab. - UK £",0,null,null,null,null,null,null,null,0]
["Sch XX","Currency Analysis",null,"Liab. - CDN",0,null,null,null,null,null,null,null,0]
["Sch XX","Currency Analysis",null,"Liab. - Japan Yen",0,null,null,null,null,null,null,null,0]
["Sch XX","Currency Analysis",null,"Liab. - Other 1",0,null,null,null,null,null,null,null,0]
["Sch XX","Currency Analysis",null,"Liab. - Other 2",0,null,null,null,null,null,null,null,0]
["Sch XX","Currency Analysis",null,"Liab. - Other 3",0,null,null,null,null,null,null,null,0]
["Sch XX","Currency Analysis",null,"Liab. - Other 4",0,null,null,null,null,null,null,null,0]
["Sch XX","Currency Analysis",null,"Liab. - Other 5",0,null,null,null,null,null,null,null,0]
["Sch XX","Currency Analysis",null,"Liab. - Other 6",0,null,null,null,null,null,null,null,0]
["Sch XX","Currency Analysis",null,"Liab. - Other 7",0,null,null,null,null,null,null,null,0]
["Sch XX","Currency Analysis",null,"Liab. - Other 8",0,null,null,null,null,null,null,null,0]
["Sch XX","Currency Analysis",null,"Liab. - Other 9",0,null,null,null,null,null,null,null,0]
["Sch XX","Currency Analysis",null,"Liab. - Other 10",0,null,null,null,null,null,null,null,0]
["Sch XX","Currency Analysis",null,"Liab. - Total",0,null,null,null,null,null,null,null,0]
["Sch XX","Currency Analysis",null,"Hedge Liab. - USD",0,null,null,null,null,null,null,null,0]
["Sch XX","Currency Analysis",null,"Hedge Liab. - Euro",0,null,null,null,null,null,null,null,0]
["Sch XX","Currency Analysis",null,"Hedge Liab. - UK £",0,null,null,null,null,null,null,null,0]
["Sch XX","Currency Analysis",null,"Hedge Liab. - CDN",0,null,null,null,null,null,null,null,0]
["Sch XX","Currency Analysis",null,"Hedge Liab. - Japan Yen",0,null,null,null,null,null,null,null,0]
["Sch XX","Currency Analysis",null,"Hedge Liab. - Other 1",0,null,null,null,null,null,null,null,0]
["Sch XX","Currency Analysis",null,"Hedge Liab. - Other 2",0,null,null,null,null,null,null,null,0]
["Sch XX","Currency Analysis",null,"Hedge Liab. - Other 3",0,null,null,null,null,null,null,null,0]
["Sch XX","Currency Analysis",null,"Hedge Liab. - Other 4",0,null,null,null,null,null,null,null,0]
["Sch XX","Currency Analysis",null,"Hedge Liab. - Other 5",0,null,null,null,null,null,null,null,0]
["Sch XX","Currency Analysis",null,"Hedge Liab. - Other 6",0,null,null,null,null,null,null,null,0]
["Sch XX","Currency Analysis",null,"Hedge Liab. - Other 7",0,null,null,null,null,null,null,null,0]
["Sch XX","Currency Analysis",null,"Hedge Liab. - Other 8",0,null,null,null,null,null,null,null,0]
["Sch XX","Currency Analysis",null,"Hedge Liab. - Other 9",0,null,null,null,null,null,null,null,0]
["Sch XX","Currency Analysis",null,"Hedge Liab. - Other 10",0,null,null,null,null,null,null,null,0]
["Sch XX","Currency Analysis",null,"Hedge Liab. - Total",0,null,null,null,null,null,null,null,0]
["Sch XX","Currency Analysis",null,"Liabilities Prior Year 1",null,null,null,null,null,null,null,null,0]
["Sch XX","Currency Analysis",null,"Liabilities Prior Year 2",null,null,null,null,null,null,null,null,0]
["Sch XX","Currency Analysis",null,"Liabilities Prior Year 3",null,null,null,null,null,null,null,null,0]
["Sch XX","Currency Analysis",null,"ECR Prior Year 1",null,null,null,null,null,null,null,null,0]
["Sch XX","Currency Analysis",null,"ECR Prior Year 2",null,null,null,null,null,null,null,null,0]
["Sch XX","Currency Analysis",null,"ECR Prior Year 3",null,null,null,null,null,null,null,null,0]
[]
["Sch XXI","Inv Con Risk",null,"# of Exposures",0]
["Sch XXI","Inv Con Risk",null,"Name of Exposure - 1",0]
["Sch XXI","Inv Con Risk",null,"Name of Exposure - 2",0]
["Sch XXI","Inv Con Risk",null,"Name of Exposure - 3",0]
["Sch XXI","Inv Con Risk",null,"Name of Exposure - 4",0]
["Sch XXI","Inv Con Risk",null,"Name of Exposure - 5",0]
["Sch XXI","Inv Con Risk",null,"Name of Exposure - 6",0]
["Sch XXI","Inv Con Risk",null,"Name of Exposure - 7",0]
["Sch XXI","Inv Con Risk",null,"Name of Exposure - 8",0]
["Sch XXI","Inv Con Risk",null,"Name of Exposure - 9",0]
["Sch XXI","Inv Con Risk",null,"Name of Exposure - 10",0]
["Sch XXI","Inv Con Risk",null,"Name of Exposure - 11",0]
["Sch XXI","Inv Con Risk",null,"Name of Exposure - 12",0]
["Sch XXI","Inv Con Risk",null,"Name of Exposure - 13",0]
["Sch XXI","Inv Con Risk",null,"Name of Exposure - 14",0]
["Sch XXI","Inv Con Risk",null,"Name of Exposure - 15",0]
["Sch XXI","Inv Con Risk",null,"Name of Exposure - 16",0]
["Sch XXI","Inv Con Risk",null,"Name of Exposure - 17",0]
["Sch XXI","Inv Con Risk",null,"Name of Exposure - 18",0]
["Sch XXI","Inv Con Risk",null,"Name of Exposure - 19",0]
["Sch XXI","Inv Con Risk",null,"Name of Exposure - 20",0]
["Sch XXI","Inv Con Risk",null,"Name of Exposure - 21",0]
["Sch XXI","Inv Con Risk",null,"Name of Exposure - 22",0]
["Sch XXI","Inv Con Risk",null,"Name of Exposure - 23",0]
["Sch XXI","Inv Con Risk",null,"Name of Exposure - 24",0]
["Sch XXI","Inv Con Risk",null,"Name of Exposure - 25",0]
["Sch XXI","Inv Con Risk",null,"Name of Exposure - 26",0]
["Sch XXI","Inv Con Risk",null,"Name of Exposure - 27",0]
["Sch XXI","Inv Con Risk",null,"Name of Exposure - 28",0]
["Sch XXI","Inv Con Risk",null,"Name of Exposure - 29",0]
["Sch XXI","Inv Con Risk",null,"Name of Exposure - 30",0]
["Sch XXI","Inv Con Risk",null,"Name of Exposure - 31",0]
["Sch XXI","Inv Con Risk",null,"Name of Exposure - 32",0]
["Sch XXI","Inv Con Risk",null,"Name of Exposure - 33",0]
["Sch XXI","Inv Con Risk",null,"Name of Exposure - 34",0]
["Sch XXI","Inv Con Risk",null,"Name of Exposure - 35",0]
["Sch XXI","Inv Con Risk",null,"Name of Exposure - 36",0]
["Sch XXI","Inv Con Risk",null,"Name of Exposure - 37",0]
["Sch XXI","Inv Con Risk",null,"Name of Exposure - 38",0]
["Sch XXI","Inv Con Risk",null,"Name of Exposure - 39",0]
["Sch XXI","Inv Con Risk",null,"Name of Exposure - 40",0]
["Sch XXI","Inv Con Risk",null,"Name of Exposure - 41",0]
["Sch XXI","Inv Con Risk",null,"Name of Exposure - 42",0]
["Sch XXI","Inv Con Risk",null,"Name of Exposure - 43",0]
["Sch XXI","Inv Con Risk",null,"Name of Exposure - 44",0]
["Sch XXI","Inv Con Risk",null,"Name of Exposure - 45",0]
["Sch XXI","Inv Con Risk",null,"Name of Exposure - 46",0]
["Sch XXI","Inv Con Risk",null,"Name of Exposure - 47",0]
["Sch XXI","Inv Con Risk",null,"Name of Exposure - 48",0]
["Sch XXI","Inv Con Risk",null,"Name of Exposure - 49",0]
["Sch XXI","Inv Con Risk",null,"Name of Exposure - 50",0]
["Sch XXI","Inv Con Risk",null,"Asset Type - 1","Select",null,null,null,null,null,null,null,"Select"]
["Sch XXI","Inv Con Risk",null,"Asset Type - 2","Select",null,null,null,null,null,null,null,"Select"]
["Sch XXI","Inv Con Risk",null,"Asset Type - 3","Select",null,null,null,null,null,null,null,"Select"]
["Sch XXI","Inv Con Risk",null,"Asset Type - 4","Select",null,null,null,null,null,null,null,"Select"]
["Sch XXI","Inv Con Risk",null,"Asset Type - 5","Select",null,null,null,null,null,null,null,"Select"]
["Sch XXI","Inv Con Risk",null,"Asset Type - 6","Select",null,null,null,null,null,null,null,"Select"]
["Sch XXI","Inv Con Risk",null,"Asset Type - 7","Select",null,null,null,null,null,null,null,"Select"]
["Sch XXI","Inv Con Risk",null,"Asset Type - 8","Select",null,null,null,null,null,null,null,"Select"]
["Sch XXI","Inv Con Risk",null,"Asset Type - 9","Select",null,null,null,null,null,null,null,"Select"]
["Sch XXI","Inv Con Risk",null,"Asset Type - 10","Select",null,null,null,null,null,null,null,"Select"]
["Sch XXI","Inv Con Risk",null,"Asset Type - 11","Select",null,null,null,null,null,null,null,"Select"]
["Sch XXI","Inv Con Risk",null,"Asset Type - 12","Select",null,null,null,null,null,null,null,"Select"]
["Sch XXI","Inv Con Risk",null,"Asset Type - 13","Select",null,null,null,null,null,null,null,"Select"]
["Sch XXI","Inv Con Risk",null,"Asset Type - 14","Select",null,null,null,null,null,null,null,"Select"]
["Sch XXI","Inv Con Risk",null,"Asset Type - 15","Select",null,null,null,null,null,null,null,"Select"]
["Sch XXI","Inv Con Risk",null,"Asset Type - 16","Select",null,null,null,null,null,null,null,"Select"]
["Sch XXI","Inv Con Risk",null,"Asset Type - 17","Select",null,null,null,null,null,null,null,"Select"]
["Sch XXI","Inv Con Risk",null,"Asset Type - 18","Select",null,null,null,null,null,null,null,"Select"]
["Sch XXI","Inv Con Risk",null,"Asset Type - 19","Select",null,null,null,null,null,null,null,"Select"]
["Sch XXI","Inv Con Risk",null,"Asset Type - 20","Select",null,null,null,null,null,null,null,"Select"]
["Sch XXI","Inv Con Risk",null,"Asset Type - 21","Select",null,null,null,null,null,null,null,"Select"]
["Sch XXI","Inv Con Risk",null,"Asset Type - 22","Select",null,null,null,null,null,null,null,"Select"]
["Sch XXI","Inv Con Risk",null,"Asset Type - 23","Select",null,null,null,null,null,null,null,"Select"]
["Sch XXI","Inv Con Risk",null,"Asset Type - 24","Select",null,null,null,null,null,null,null,"Select"]
["Sch XXI","Inv Con Risk",null,"Asset Type - 25","Select",null,null,null,null,null,null,null,"Select"]
["Sch XXI","Inv Con Risk",null,"Asset Type - 26","Select",null,null,null,null,null,null,null,"Select"]
["Sch XXI","Inv Con Risk",null,"Asset Type - 27","Select",null,null,null,null,null,null,null,"Select"]
["Sch XXI","Inv Con Risk",null,"Asset Type - 28","Select",null,null,null,null,null,null,null,"Select"]
["Sch XXI","Inv Con Risk",null,"Asset Type - 29","Select",null,null,null,null,null,null,null,"Select"]
["Sch XXI","Inv Con Risk",null,"Asset Type - 30","Select",null,null,null,null,null,null,null,"Select"]
["Sch XXI","Inv Con Risk",null,"Asset Type - 31","Select",null,null,null,null,null,null,null,"Select"]
["Sch XXI","Inv Con Risk",null,"Asset Type - 32","Select",null,null,null,null,null,null,null,"Select"]
["Sch XXI","Inv Con Risk",null,"Asset Type - 33","Select",null,null,null,null,null,null,null,"Select"]
["Sch XXI","Inv Con Risk",null,"Asset Type - 34","Select",null,null,null,null,null,null,null,"Select"]
["Sch XXI","Inv Con Risk",null,"Asset Type - 35","Select",null,null,null,null,null,null,null,"Select"]
["Sch XXI","Inv Con Risk",null,"Asset Type - 36","Select",null,null,null,null,null,null,null,"Select"]
["Sch XXI","Inv Con Risk",null,"Asset Type - 37","Select",null,null,null,null,null,null,null,"Select"]
["Sch XXI","Inv Con Risk",null,"Asset Type - 38","Select",null,null,null,null,null,null,null,"Select"]
["Sch XXI","Inv Con Risk",null,"Asset Type - 39","Select",null,null,null,null,null,null,null,"Select"]
["Sch XXI","Inv Con Risk",null,"Asset Type - 40","Select",null,null,null,null,null,null,null,"Select"]
["Sch XXI","Inv Con Risk",null,"Asset Type - 41","Select",null,null,null,null,null,null,null,"Select"]
["Sch XXI","Inv Con Risk",null,"Asset Type - 42","Select",null,null,null,null,null,null,null,"Select"]
["Sch XXI","Inv Con Risk",null,"Asset Type - 43","Select",null,null,null,null,null,null,null,"Select"]
["Sch XXI","Inv Con Risk",null,"Asset Type - 44","Select",null,null,null,null,null,null,null,"Select"]
["Sch XXI","Inv Con Risk",null,"Asset Type - 45","Select",null,null,null,null,null,null,null,"Select"]
["Sch XXI","Inv Con Risk",null,"Asset Type - 46","Select",null,null,null,null,null,null,null,"Select"]
["Sch XXI","Inv Con Risk",null,"Asset Type - 47","Select",null,null,null,null,null,null,null,"Select"]
["Sch XXI","Inv Con Risk",null,"Asset Type - 48","Select",null,null,null,null,null,null,null,"Select"]
["Sch XXI","Inv Con Risk",null,"Asset Type - 49","Select",null,null,null,null,null,null,null,"Select"]
["Sch XXI","Inv Con Risk",null,"Asset Type - 50","Select",null,null,null,null,null,null,null,"Select"]
["Sch XXI","Inv Con Risk",null,"Bond Type - 1","Select",null,null,null,null,null,null,null,"Select"]
["Sch XXI","Inv Con Risk",null,"Bond Type - 2","Select",null,null,null,null,null,null,null,"Select"]
["Sch XXI","Inv Con Risk",null,"Bond Type - 3","Select",null,null,null,null,null,null,null,"Select"]
["Sch XXI","Inv Con Risk",null,"Bond Type - 4","Select",null,null,null,null,null,null,null,"Select"]
["Sch XXI","Inv Con Risk",null,"Bond Type - 5","Select",null,null,null,null,null,null,null,"Select"]
["Sch XXI","Inv Con Risk",null,"Bond Type - 6","Select",null,null,null,null,null,null,null,"Select"]
["Sch XXI","Inv Con Risk",null,"Bond Type - 7","Select",null,null,null,null,null,null,null,"Select"]
["Sch XXI","Inv Con Risk",null,"Bond Type - 8","Select",null,null,null,null,null,null,null,"Select"]
["Sch XXI","Inv Con Risk",null,"Bond Type - 9","Select",null,null,null,null,null,null,null,"Select"]
["Sch XXI","Inv Con Risk",null,"Bond Type - 10","Select",null,null,null,null,null,null,null,"Select"]
["Sch XXI","Inv Con Risk",null,"Bond Type - 11","Select",null,null,null,null,null,null,null,"Select"]
["Sch XXI","Inv Con Risk",null,"Bond Type - 12","Select",null,null,null,null,null,null,null,"Select"]
["Sch XXI","Inv Con Risk",null,"Bond Type - 13","Select",null,null,null,null,null,null,null,"Select"]
["Sch XXI","Inv Con Risk",null,"Bond Type - 14","Select",null,null,null,null,null,null,null,"Select"]
["Sch XXI","Inv Con Risk",null,"Bond Type - 15","Select",null,null,null,null,null,null,null,"Select"]
["Sch XXI","Inv Con Risk",null,"Bond Type - 16","Select",null,null,null,null,null,null,null,"Select"]
["Sch XXI","Inv Con Risk",null,"Bond Type - 17","Select",null,null,null,null,null,null,null,"Select"]
["Sch XXI","Inv Con Risk",null,"Bond Type - 18","Select",null,null,null,null,null,null,null,"Select"]
["Sch XXI","Inv Con Risk",null,"Bond Type - 19","Select",null,null,null,null,null,null,null,"Select"]
["Sch XXI","Inv Con Risk",null,"Bond Type - 20","Select",null,null,null,null,null,null,null,"Select"]
["Sch XXI","Inv Con Risk",null,"Bond Type - 21","Select",null,null,null,null,null,null,null,"Select"]
["Sch XXI","Inv Con Risk",null,"Bond Type - 22","Select",null,null,null,null,null,null,null,"Select"]
["Sch XXI","Inv Con Risk",null,"Bond Type - 23","Select",null,null,null,null,null,null,null,"Select"]
["Sch XXI","Inv Con Risk",null,"Bond Type - 24","Select",null,null,null,null,null,null,null,"Select"]
["Sch XXI","Inv Con Risk",null,"Bond Type - 25","Select",null,null,null,null,null,null,null,"Select"]
["Sch XXI","Inv Con Risk",null,"Bond Type - 26","Select",null,null,null,null,null,null,null,"Select"]
["Sch XXI","Inv Con Risk",null,"Bond Type - 27","Select",null,null,null,null,null,null,null,"Select"]
["Sch XXI","Inv Con Risk",null,"Bond Type - 28","Select",null,null,null,null,null,null,null,"Select"]
["Sch XXI","Inv Con Risk",null,"Bond Type - 29","Select",null,null,null,null,null,null,null,"Select"]
["Sch XXI","Inv Con Risk",null,"Bond Type - 30","Select",null,null,null,null,null,null,null,"Select"]
["Sch XXI","Inv Con Risk",null,"Bond Type - 31","Select",null,null,null,null,null,null,null,"Select"]
["Sch XXI","Inv Con Risk",null,"Bond Type - 32","Select",null,null,null,null,null,null,null,"Select"]
["Sch XXI","Inv Con Risk",null,"Bond Type - 33","Select",null,null,null,null,null,null,null,"Select"]
["Sch XXI","Inv Con Risk",null,"Bond Type - 34","Select",null,null,null,null,null,null,null,"Select"]
["Sch XXI","Inv Con Risk",null,"Bond Type - 35","Select",null,null,null,null,null,null,null,"Select"]
["Sch XXI","Inv Con Risk",null,"Bond Type - 36","Select",null,null,null,null,null,null,null,"Select"]
["Sch XXI","Inv Con Risk",null,"Bond Type - 37","Select",null,null,null,null,null,null,null,"Select"]
["Sch XXI","Inv Con Risk",null,"Bond Type - 38","Select",null,null,null,null,null,null,null,"Select"]
["Sch XXI","Inv Con Risk",null,"Bond Type - 39","Select",null,null,null,null,null,null,null,"Select"]
["Sch XXI","Inv Con Risk",null,"Bond Type - 40","Select",null,null,null,null,null,null,null,"Select"]
["Sch XXI","Inv Con Risk",null,"Bond Type - 41","Select",null,null,null,null,null,null,null,"Select"]
["Sch XXI","Inv Con Risk",null,"Bond Type - 42","Select",null,null,null,null,null,null,null,"Select"]
["Sch XXI","Inv Con Risk",null,"Bond Type - 43","Select",null,null,null,null,null,null,null,"Select"]
["Sch XXI","Inv Con Risk",null,"Bond Type - 44","Select",null,null,null,null,null,null,null,"Select"]
["Sch XXI","Inv Con Risk",null,"Bond Type - 45","Select",null,null,null,null,null,null,null,"Select"]
["Sch XXI","Inv Con Risk",null,"Bond Type - 46","Select",null,null,null,null,null,null,null,"Select"]
["Sch XXI","Inv Con Risk",null,"Bond Type - 47","Select",null,null,null,null,null,null,null,"Select"]
["Sch XXI","Inv Con Risk",null,"Bond Type - 48","Select",null,null,null,null,null,null,null,"Select"]
["Sch XXI","Inv Con Risk",null,"Bond Type - 49","Select",null,null,null,null,null,null,null,"Select"]
["Sch XXI","Inv Con Risk",null,"Bond Type - 50","Select",null,null,null,null,null,null,null,"Select"]
["Sch XXI","Inv Con Risk",null,"BSCR Rating - 1","Select",null,null,null,null,null,null,null,"Select"]
["Sch XXI","Inv Con Risk",null,"BSCR Rating - 2","Select",null,null,null,null,null,null,null,"Select"]
["Sch XXI","Inv Con Risk",null,"BSCR Rating - 3","Select",null,null,null,null,null,null,null,"Select"]
["Sch XXI","Inv Con Risk",null,"BSCR Rating - 4","Select",null,null,null,null,null,null,null,"Select"]
["Sch XXI","Inv Con Risk",null,"BSCR Rating - 5","Select",null,null,null,null,null,null,null,"Select"]
["Sch XXI","Inv Con Risk",null,"BSCR Rating - 6","Select",null,null,null,null,null,null,null,"Select"]
["Sch XXI","Inv Con Risk",null,"BSCR Rating - 7","Select",null,null,null,null,null,null,null,"Select"]
["Sch XXI","Inv Con Risk",null,"BSCR Rating - 8","Select",null,null,null,null,null,null,null,"Select"]
["Sch XXI","Inv Con Risk",null,"BSCR Rating - 9","Select",null,null,null,null,null,null,null,"Select"]
["Sch XXI","Inv Con Risk",null,"BSCR Rating - 10","Select",null,null,null,null,null,null,null,"Select"]
["Sch XXI","Inv Con Risk",null,"BSCR Rating - 11","Select",null,null,null,null,null,null,null,"Select"]
["Sch XXI","Inv Con Risk",null,"BSCR Rating - 12","Select",null,null,null,null,null,null,null,"Select"]
["Sch XXI","Inv Con Risk",null,"BSCR Rating - 13","Select",null,null,null,null,null,null,null,"Select"]
["Sch XXI","Inv Con Risk",null,"BSCR Rating - 14","Select",null,null,null,null,null,null,null,"Select"]
["Sch XXI","Inv Con Risk",null,"BSCR Rating - 15","Select",null,null,null,null,null,null,null,"Select"]
["Sch XXI","Inv Con Risk",null,"BSCR Rating - 16","Select",null,null,null,null,null,null,null,"Select"]
["Sch XXI","Inv Con Risk",null,"BSCR Rating - 17","Select",null,null,null,null,null,null,null,"Select"]
["Sch XXI","Inv Con Risk",null,"BSCR Rating - 18","Select",null,null,null,null,null,null,null,"Select"]
["Sch XXI","Inv Con Risk",null,"BSCR Rating - 19","Select",null,null,null,null,null,null,null,"Select"]
["Sch XXI","Inv Con Risk",null,"BSCR Rating - 20","Select",null,null,null,null,null,null,null,"Select"]
["Sch XXI","Inv Con Risk",null,"BSCR Rating - 21","Select",null,null,null,null,null,null,null,"Select"]
["Sch XXI","Inv Con Risk",null,"BSCR Rating - 22","Select",null,null,null,null,null,null,null,"Select"]
["Sch XXI","Inv Con Risk",null,"BSCR Rating - 23","Select",null,null,null,null,null,null,null,"Select"]
["Sch XXI","Inv Con Risk",null,"BSCR Rating - 24","Select",null,null,null,null,null,null,null,"Select"]
["Sch XXI","Inv Con Risk",null,"BSCR Rating - 25","Select",null,null,null,null,null,null,null,"Select"]
["Sch XXI","Inv Con Risk",null,"BSCR Rating - 26","Select",null,null,null,null,null,null,null,"Select"]
["Sch XXI","Inv Con Risk",null,"BSCR Rating - 27","Select",null,null,null,null,null,null,null,"Select"]
["Sch XXI","Inv Con Risk",null,"BSCR Rating - 28","Select",null,null,null,null,null,null,null,"Select"]
["Sch XXI","Inv Con Risk",null,"BSCR Rating - 29","Select",null,null,null,null,null,null,null,"Select"]
["Sch XXI","Inv Con Risk",null,"BSCR Rating - 30","Select",null,null,null,null,null,null,null,"Select"]
["Sch XXI","Inv Con Risk",null,"BSCR Rating - 31","Select",null,null,null,null,null,null,null,"Select"]
["Sch XXI","Inv Con Risk",null,"BSCR Rating - 32","Select",null,null,null,null,null,null,null,"Select"]
["Sch XXI","Inv Con Risk",null,"BSCR Rating - 33","Select",null,null,null,null,null,null,null,"Select"]
["Sch XXI","Inv Con Risk",null,"BSCR Rating - 34","Select",null,null,null,null,null,null,null,"Select"]
["Sch XXI","Inv Con Risk",null,"BSCR Rating - 35","Select",null,null,null,null,null,null,null,"Select"]
["Sch XXI","Inv Con Risk",null,"BSCR Rating - 36","Select",null,null,null,null,null,null,null,"Select"]
["Sch XXI","Inv Con Risk",null,"BSCR Rating - 37","Select",null,null,null,null,null,null,null,"Select"]
["Sch XXI","Inv Con Risk",null,"BSCR Rating - 38","Select",null,null,null,null,null,null,null,"Select"]
["Sch XXI","Inv Con Risk",null,"BSCR Rating - 39","Select",null,null,null,null,null,null,null,"Select"]
["Sch XXI","Inv Con Risk",null,"BSCR Rating - 40","Select",null,null,null,null,null,null,null,"Select"]
["Sch XXI","Inv Con Risk",null,"BSCR Rating - 41","Select",null,null,null,null,null,null,null,"Select"]
["Sch XXI","Inv Con Risk",null,"BSCR Rating - 42","Select",null,null,null,null,null,null,null,"Select"]
["Sch XXI","Inv Con Risk",null,"BSCR Rating - 43","Select",null,null,null,null,null,null,null,"Select"]
["Sch XXI","Inv Con Risk",null,"BSCR Rating - 44","Select",null,null,null,null,null,null,null,"Select"]
["Sch XXI","Inv Con Risk",null,"BSCR Rating - 45","Select",null,null,null,null,null,null,null,"Select"]
["Sch XXI","Inv Con Risk",null,"BSCR Rating - 46","Select",null,null,null,null,null,null,null,"Select"]
["Sch XXI","Inv Con Risk",null,"BSCR Rating - 47","Select",null,null,null,null,null,null,null,"Select"]
["Sch XXI","Inv Con Risk",null,"BSCR Rating - 48","Select",null,null,null,null,null,null,null,"Select"]
["Sch XXI","Inv Con Risk",null,"BSCR Rating - 49","Select",null,null,null,null,null,null,null,"Select"]
["Sch XXI","Inv Con Risk",null,"BSCR Rating - 50","Select",null,null,null,null,null,null,null,"Select"]
["Sch XXI","Inv Con Risk",null,"Asset Value - 1",0,null,null,null,null,null,null,null,0]
["Sch XXI","Inv Con Risk",null,"Asset Value - 2",0,null,null,null,null,null,null,null,0]
["Sch XXI","Inv Con Risk",null,"Asset Value - 3",0,null,null,null,null,null,null,null,0]
["Sch XXI","Inv Con Risk",null,"Asset Value - 4",0,null,null,null,null,null,null,null,0]
["Sch XXI","Inv Con Risk",null,"Asset Value - 5",0,null,null,null,null,null,null,null,0]
["Sch XXI","Inv Con Risk",null,"Asset Value - 6",0,null,null,null,null,null,null,null,0]
["Sch XXI","Inv Con Risk",null,"Asset Value - 7",0,null,null,null,null,null,null,null,0]
["Sch XXI","Inv Con Risk",null,"Asset Value - 8",0,null,null,null,null,null,null,null,0]
["Sch XXI","Inv Con Risk",null,"Asset Value - 9",0,null,null,null,null,null,null,null,0]
["Sch XXI","Inv Con Risk",null,"Asset Value - 10",0,null,null,null,null,null,null,null,0]
["Sch XXI","Inv Con Risk",null,"Asset Value - 11",0,null,null,null,null,null,null,null,0]
["Sch XXI","Inv Con Risk",null,"Asset Value - 12",0,null,null,null,null,null,null,null,0]
["Sch XXI","Inv Con Risk",null,"Asset Value - 13",0,null,null,null,null,null,null,null,0]
["Sch XXI","Inv Con Risk",null,"Asset Value - 14",0,null,null,null,null,null,null,null,0]
["Sch XXI","Inv Con Risk",null,"Asset Value - 15",0,null,null,null,null,null,null,null,0]
["Sch XXI","Inv Con Risk",null,"Asset Value - 16",0,null,null,null,null,null,null,null,0]
["Sch XXI","Inv Con Risk",null,"Asset Value - 17",0,null,null,null,null,null,null,null,0]
["Sch XXI","Inv Con Risk",null,"Asset Value - 18",0,null,null,null,null,null,null,null,0]
["Sch XXI","Inv Con Risk",null,"Asset Value - 19",0,null,null,null,null,null,null,null,0]
["Sch XXI","Inv Con Risk",null,"Asset Value - 20",0,null,null,null,null,null,null,null,0]
["Sch XXI","Inv Con Risk",null,"Asset Value - 21",0,null,null,null,null,null,null,null,0]
["Sch XXI","Inv Con Risk",null,"Asset Value - 22",0,null,null,null,null,null,null,null,0]
["Sch XXI","Inv Con Risk",null,"Asset Value - 23",0,null,null,null,null,null,null,null,0]
["Sch XXI","Inv Con Risk",null,"Asset Value - 24",0,null,null,null,null,null,null,null,0]
["Sch XXI","Inv Con Risk",null,"Asset Value - 25",0,null,null,null,null,null,null,null,0]
["Sch XXI","Inv Con Risk",null,"Asset Value - 26",0,null,null,null,null,null,null,null,0]
["Sch XXI","Inv Con Risk",null,"Asset Value - 27",0,null,null,null,null,null,null,null,0]
["Sch XXI","Inv Con Risk",null,"Asset Value - 28",0,null,null,null,null,null,null,null,0]
["Sch XXI","Inv Con Risk",null,"Asset Value - 29",0,null,null,null,null,null,null,null,0]
["Sch XXI","Inv Con Risk",null,"Asset Value - 30",0,null,null,null,null,null,null,null,0]
["Sch XXI","Inv Con Risk",null,"Asset Value - 31",0,null,null,null,null,null,null,null,0]
["Sch XXI","Inv Con Risk",null,"Asset Value - 32",0,null,null,null,null,null,null,null,0]
["Sch XXI","Inv Con Risk",null,"Asset Value - 33",0,null,null,null,null,null,null,null,0]
["Sch XXI","Inv Con Risk",null,"Asset Value - 34",0,null,null,null,null,null,null,null,0]
["Sch XXI","Inv Con Risk",null,"Asset Value - 35",0,null,null,null,null,null,null,null,0]
["Sch XXI","Inv Con Risk",null,"Asset Value - 36",0,null,null,null,null,null,null,null,0]
["Sch XXI","Inv Con Risk",null,"Asset Value - 37",0,null,null,null,null,null,null,null,0]
["Sch XXI","Inv Con Risk",null,"Asset Value - 38",0,null,null,null,null,null,null,null,0]
["Sch XXI","Inv Con Risk",null,"Asset Value - 39",0,null,null,null,null,null,null,null,0]
["Sch XXI","Inv Con Risk",null,"Asset Value - 40",0,null,null,null,null,null,null,null,0]
["Sch XXI","Inv Con Risk",null,"Asset Value - 41",0,null,null,null,null,null,null,null,0]
["Sch XXI","Inv Con Risk",null,"Asset Value - 42",0,null,null,null,null,null,null,null,0]
["Sch XXI","Inv Con Risk",null,"Asset Value - 43",0,null,null,null,null,null,null,null,0]
["Sch XXI","Inv Con Risk",null,"Asset Value - 44",0,null,null,null,null,null,null,null,0]
["Sch XXI","Inv Con Risk",null,"Asset Value - 45",0,null,null,null,null,null,null,null,0]
["Sch XXI","Inv Con Risk",null,"Asset Value - 46",0,null,null,null,null,null,null,null,0]
["Sch XXI","Inv Con Risk",null,"Asset Value - 47",0,null,null,null,null,null,null,null,0]
["Sch XXI","Inv Con Risk",null,"Asset Value - 48",0,null,null,null,null,null,null,null,0]
["Sch XXI","Inv Con Risk",null,"Asset Value - 49",0,null,null,null,null,null,null,null,0]
["Sch XXI","Inv Con Risk",null,"Asset Value - 50",0,null,null,null,null,null,null,null,0]
["Sch XXI","Inv Con Risk",null,"Asset Value - Total",0,null,null,null,null,null,null,null,0]

{"sheet":"Export","index":7,"n_rows":45538,"n_cols":15,"rows_kept":4500,"cut":true,"hidden":false,"merged":[[0,4,0,6],[0,8,0,10],[0,12,0,14]],"bounds":{"rows_first":2000,"rows_last":500,"rows_between":2000,"halvings":0}}
[null,null,null,null,"Unconsolidated",null,null,null,"Consolidated",null,null,null,"EBS"]
["Sheet Name","Sheet Short Description","Field Code","Field Description",{"$f":"YEAR('Company Information'!$C$3)","v":2023},null,{"$f":"E2-1","v":2022},null,{"$f":"YEAR('Company Information'!$C$3)","v":2023},null,{"$f":"I2-1","v":2022},null,{"$f":"YEAR('Company Information'!$C$3)","v":2023},null,{"$f":"M2-1","v":2022}]
["Summary",null,null,"Comments",{"$f":"Submission!B14","v":0}]
[]
["Declaration",null,null,"Authorised Signing Authority 1",{"$f":"+Declaration!C11","v":0}]
["Declaration",null,null,"Date",{"$f":"+Declaration!C14","v":"00:00:00"}]
["Declaration",null,null,"Authorised Signing Authority 2",{"$f":"+Declaration!C19","v":0}]
["Declaration",null,null,"Date",{"$f":"+Declaration!C22","v":"00:00:00"}]
["Declaration",null,null,"Authorised Signing Authority 3",{"$f":"+Declaration!C26","v":0}]
["Declaration",null,null,"Date",{"$f":"+Declaration!C29","v":"00:00:00"}]
[]
["Info Sheet",null,null,"(d) Statements Held at Registered Office",{"$f":"'Information Sheet'!H9","v":"Select Yes/No"}]
["Info Sheet",null,null,"(e) Filing Period - Period Start Date",{"$f":"'Information Sheet'!H13","v":"00:00:00"}]
["Info Sheet",null,null,"(g) Figures Translated at:",{"$f":"'Information Sheet'!H18","v":1}]
["Info Sheet",null,null,"(h) Ultimate Parent",{"$f":"'Information Sheet'!H20","v":0}]
["Info Sheet",null,null,"(i) Insurer's Parent Company",{"$f":"'Information Sheet'!H22","v":0}]
["Info Sheet",null,null,"(j) Industry Sector of Insurer's Parent",{"$f":"'Information Sheet'!H24","v":"Select from Drop-Down"}]
["Info Sheet",null,null,"(k) Insurer's Ownership Structure",{"$f":"'Information Sheet'!H26","v":"Select from Drop-Down"}]
["Info Sheet",null,null,"(l) Insurer's Company Structure",{"$f":"'Information Sheet'!H28","v":"Select from Drop-Down"}]
["Info Sheet",null,null,"(l).1 Confirm if Company writes LT Insurance",{"$f":"'Information Sheet'!H29","v":"Select Yes/No"}]
["Info Sheet",null,null,"(l).2 LT Insurance written during the period",{"$f":"'Information Sheet'!H30","v":"Select Yes/No"}]
["Info Sheet",null,null,"(l).3 Subsidiares wrote Long-Term insurance",{"$f":"'Information Sheet'!H31","v":"Select Yes/No"}]
["Info Sheet",null,null,"(l).4 Subsidiares wrote LT Ins. Outside of BDA",{"$f":"'Information Sheet'!H32","v":"Select Yes/No"}]
["Info Sheet",null,null,"(l).5 Subsidiares Ins. Outside of BDA jurisdiction 1",{"$f":"'Information Sheet'!H33","v":0}]
["Info Sheet",null,null,"(l).5 Subsidiares Ins. Outside of BDA jurisdiction 2",{"$f":"'Information Sheet'!H34","v":0}]
["Info Sheet",null,null,"(l).5 Subsidiares Ins. Outside of BDA jurisdiction 3",{"$f":"'Information Sheet'!H35","v":0}]
["Info Sheet",null,null,"(m)(i) Is the Insurer a Member of Ins. Group?",{"$f":"'Information Sheet'!H38","v":"Select Yes/No"}]
["Info Sheet",null,null,"(m)(ii) Are there Segregated Accounts?",{"$f":"'Information Sheet'!H39","v":"Select Yes/No"}]
["Info Sheet",null,null,"(m)(iii) Is the Insurer in Run-Off?",{"$f":"'Information Sheet'!H40","v":"Select Yes/No"}]
["Info Sheet",null,null,"(m)(iv) Statements have a Qualified Opinion?",{"$f":"'Information Sheet'!H41","v":"Select Yes/No"}]
["Info Sheet",null,null,"(m)(iv) Details of Qualified Opinion",{"$f":"'Information Sheet'!C43","v":0}]
["Info Sheet",null,null,"(m)(v) Minimum Solvency Margin Met",{"$f":"'Information Sheet'!H46","v":"Select Yes/No"}]
["Info Sheet",null,null,"(m)(vi) Liquidity Ratio Met",{"$f":"'Information Sheet'!H47","v":"Select Yes/No"}]
["Info Sheet",null,null,"(n)(1) Certificate of Registration Date",{"$f":"'Information Sheet'!H51","v":""}]
["Info Sheet",null,null,"(n)(2) # of Conditions",{"$f":"'Information Sheet'!H53","v":0}]
["Info Sheet",null,null,"Effective Start Date of Condition - 1",{"$f":"'Information Sheet'!E56","v":"00:00:00"}]
["Info Sheet",null,null,"Effective Start Date of Condition - 2",{"$f":"'Information Sheet'!E57","v":"00:00:00"}]
["Info Sheet",null,null,"Effective Start Date of Condition - 3",{"$f":"'Information Sheet'!E58","v":"00:00:00"}]
["Info Sheet",null,null,"Effective Start Date of Condition - 4",{"$f":"'Information Sheet'!E59","v":"00:00:00"}]
["Info Sheet",null,null,"Effective Start Date of Condition - 5",{"$f":"'Information Sheet'!E60","v":"00:00:00"}]
["Info Sheet",null,null,"Effective Start Date of Condition - 6",{"$f":"'Information Sheet'!E61","v":"00:00:00"}]
["Info Sheet",null,null,"Effective Start Date of Condition - 7",{"$f":"'Information Sheet'!E62","v":"00:00:00"}]
["Info Sheet",null,null,"Effective Start Date of Condition - 8",{"$f":"'Information Sheet'!E63","v":"00:00:00"}]
["Info Sheet",null,null,"Effective Start Date of Condition - 9",{"$f":"'Information Sheet'!E64","v":"00:00:00"}]
["Info Sheet",null,null,"Effective Start Date of Condition - 10",{"$f":"'Information Sheet'!E65","v":"00:00:00"}]
["Info Sheet",null,null,"Effective End Date of Condition - 1",{"$f":"'Information Sheet'!F56","v":"00:00:00"}]
["Info Sheet",null,null,"Effective End Date of Condition - 2",{"$f":"'Information Sheet'!F57","v":"00:00:00"}]
["Info Sheet",null,null,"Effective End Date of Condition - 3",{"$f":"'Information Sheet'!F58","v":"00:00:00"}]
["Info Sheet",null,null,"Effective End Date of Condition - 4",{"$f":"'Information Sheet'!F59","v":"00:00:00"}]
["Info Sheet",null,null,"Effective End Date of Condition - 5",{"$f":"'Information Sheet'!F60","v":"00:00:00"}]
["Info Sheet",null,null,"Effective End Date of Condition - 6",{"$f":"'Information Sheet'!F61","v":"00:00:00"}]
["Info Sheet",null,null,"Effective End Date of Condition - 7",{"$f":"'Information Sheet'!F62","v":"00:00:00"}]
["Info Sheet",null,null,"Effective End Date of Condition - 8",{"$f":"'Information Sheet'!F63","v":"00:00:00"}]
["Info Sheet",null,null,"Effective End Date of Condition - 9",{"$f":"'Information Sheet'!F64","v":"00:00:00"}]
["Info Sheet",null,null,"Effective End Date of Condition - 10",{"$f":"'Information Sheet'!F65","v":"00:00:00"}]
["Info Sheet",null,null,"Description of Condition - 1",{"$f":"'Information Sheet'!G56","v":0}]
["Info Sheet",null,null,"Description of Condition - 2",{"$f":"'Information Sheet'!G57","v":0}]
["Info Sheet",null,null,"Description of Condition - 3",{"$f":"'Information Sheet'!G58","v":0}]
["Info Sheet",null,null,"Description of Condition - 4",{"$f":"'Information Sheet'!G59","v":0}]
["Info Sheet",null,null,"Description of Condition - 5",{"$f":"'Information Sheet'!G60","v":0}]
["Info Sheet",null,null,"Description of Condition - 6",{"$f":"'Information Sheet'!G61","v":0}]
["Info Sheet",null,null,"Description of Condition - 7",{"$f":"'Information Sheet'!G62","v":0}]
["Info Sheet",null,null,"Description of Condition - 8",{"$f":"'Information Sheet'!G63","v":0}]
["Info Sheet",null,null,"Description of Condition - 9",{"$f":"'Information Sheet'!G64","v":0}]
["Info Sheet",null,null,"Description of Condition - 10",{"$f":"'Information Sheet'!G65","v":0}]
["Info Sheet",null,null,"Insurer Complied with All Conditions?",{"$f":"'Information Sheet'!H67","v":"Select Yes/No"}]
["Info Sheet",null,null,"(p) # of Directions",{"$f":"'Information Sheet'!H71","v":0}]
["Info Sheet",null,null,"Effective Start Date of Direction - 1",{"$f":"'Information Sheet'!E74","v":"00:00:00"}]
["Info Sheet",null,null,"Effective Start Date of Direction - 2",{"$f":"'Information Sheet'!E75","v":"00:00:00"}]
["Info Sheet",null,null,"Effective Start Date of Direction - 3",{"$f":"'Information Sheet'!E76","v":"00:00:00"}]
["Info Sheet",null,null,"Effective Start Date of Direction - 4",{"$f":"'Information Sheet'!E77","v":"00:00:00"}]
["Info Sheet",null,null,"Effective Start Date of Direction - 5",{"$f":"'Information Sheet'!E78","v":"00:00:00"}]
["Info Sheet",null,null,"Effective Start Date of Direction - 6",{"$f":"'Information Sheet'!E79","v":"00:00:00"}]
["Info Sheet",null,null,"Effective Start Date of Direction - 7",{"$f":"'Information Sheet'!E80","v":"00:00:00"}]
["Info Sheet",null,null,"Effective Start Date of Direction - 8",{"$f":"'Information Sheet'!E81","v":"00:00:00"}]
["Info Sheet",null,null,"Effective Start Date of Direction - 9",{"$f":"'Information Sheet'!E82","v":"00:00:00"}]
["Info Sheet",null,null,"Effective Start Date of Direction - 10",{"$f":"'Information Sheet'!E83","v":"00:00:00"}]
["Info Sheet",null,null,"Effective End Date of Direction - 1",{"$f":"'Information Sheet'!F74","v":"00:00:00"}]
["Info Sheet",null,null,"Effective End Date of Direction - 2",{"$f":"'Information Sheet'!F75","v":"00:00:00"}]
["Info Sheet",null,null,"Effective End Date of Direction - 3",{"$f":"'Information Sheet'!F76","v":"00:00:00"}]
["Info Sheet",null,null,"Effective End Date of Direction - 4",{"$f":"'Information Sheet'!F77","v":"00:00:00"}]
["Info Sheet",null,null,"Effective End Date of Direction - 5",{"$f":"'Information Sheet'!F78","v":"00:00:00"}]
["Info Sheet",null,null,"Effective End Date of Direction - 6",{"$f":"'Information Sheet'!F79","v":"00:00:00"}]
["Info Sheet",null,null,"Effective End Date of Direction - 7",{"$f":"'Information Sheet'!F80","v":"00:00:00"}]
["Info Sheet",null,null,"Effective End Date of Direction - 8",{"$f":"'Information Sheet'!F81","v":"00:00:00"}]
["Info Sheet",null,null,"Effective End Date of Direction - 9",{"$f":"'Information Sheet'!F82","v":"00:00:00"}]
["Info Sheet",null,null,"Effective End Date of Direction - 10",{"$f":"'Information Sheet'!F83","v":"00:00:00"}]
["Info Sheet",null,null,"Description of Direction - 1",{"$f":"'Information Sheet'!G74","v":0}]
["Info Sheet",null,null,"Description of Direction - 2",{"$f":"'Information Sheet'!G75","v":0}]
["Info Sheet",null,null,"Description of Direction - 3",{"$f":"'Information Sheet'!G76","v":0}]
["Info Sheet",null,null,"Description of Direction - 4",{"$f":"'Information Sheet'!G77","v":0}]
["Info Sheet",null,null,"Description of Direction - 5",{"$f":"'Information Sheet'!G78","v":0}]
["Info Sheet",null,null,"Description of Direction - 6",{"$f":"'Information Sheet'!G79","v":0}]
["Info Sheet",null,null,"Description of Direction - 7",{"$f":"'Information Sheet'!G80","v":0}]
["Info Sheet",null,null,"Description of Direction - 8",{"$f":"'Information Sheet'!G81","v":0}]
["Info Sheet",null,null,"Description of Direction - 9",{"$f":"'Information Sheet'!G82","v":0}]
["Info Sheet",null,null,"Description of Direction - 10",{"$f":"'Information Sheet'!G83","v":0}]
["Info Sheet",null,null,"(q) Confirm If Any Negative Responses?",{"$f":"'Information Sheet'!H87","v":"Select Yes/No"}]
["Info Sheet",null,null,"Details of Negative Responses",{"$f":"'Information Sheet'!C89","v":0}]
[]
[null,null,null,"Balance Sheet"]
["Form 1SFS/1EBS","Balance Sheet GEN/CON/EBS","1SFS1","Cash and Cash Equivalents",{"$f":"'Form 1SFS'!E12","v":0},null,{"$f":"'Form 1SFS'!G12","v":0},null,{"$f":"'Form 1SFS'!M12","v":0},null,{"$f":"'Form 1SFS'!O12","v":0},null,{"$f":"'Form 1EBS'!F10","v":0},null,{"$f":"'Form 1EBS'!H10","v":0}]
["Form 1SFS/1EBS","Balance Sheet GEN/CON/EBS","1SFS2ai","Quoted - Bonds - Held to Maturity",{"$f":"'Form 1SFS'!E16","v":0},null,{"$f":"'Form 1SFS'!G16","v":0},null,{"$f":"'Form 1SFS'!M16","v":0},null,{"$f":"'Form 1SFS'!O16","v":0}]
["Form 1SFS/1EBS","Balance Sheet GEN/CON/EBS","1SFS2aii","Quoted - Bonds - Other",{"$f":"'Form 1SFS'!E17","v":0},null,{"$f":"'Form 1SFS'!G17","v":0},null,{"$f":"'Form 1SFS'!M17","v":0},null,{"$f":"'Form 1SFS'!O17","v":0}]
["Form 1SFS/1EBS","Balance Sheet GEN/CON/EBS","1EBS2b","Quoted - Bonds - Total",null,null,null,null,null,null,null,null,{"$f":"'Form 1EBS'!F13","v":0},null,{"$f":"'Form 1EBS'!H13","v":0}]
["Form 1SFS/1EBS","Balance Sheet GEN/CON/EBS","1SFS2ci","Quoted - Equities - Common Stocks",{"$f":"'Form 1SFS'!E20","v":0},null,{"$f":"'Form 1SFS'!G20","v":0},null,{"$f":"'Form 1SFS'!M20","v":0},null,{"$f":"'Form 1SFS'!O20","v":0},null,{"$f":"'Form 1EBS'!F15","v":0},null,{"$f":"'Form 1EBS'!H15","v":0}]
["Form 1SFS/1EBS","Balance Sheet GEN/CON/EBS","1SFS2cii","Quoted - Equities - Preferred Stocks",{"$f":"'Form 1SFS'!E21","v":0},null,{"$f":"'Form 1SFS'!G21","v":0},null,{"$f":"'Form 1SFS'!M21","v":0},null,{"$f":"'Form 1SFS'!O21","v":0},null,{"$f":"'Form 1EBS'!F16","v":0},null,{"$f":"'Form 1EBS'!H16","v":0}]
["Form 1SFS/1EBS","Balance Sheet GEN/CON/EBS","1SFS2ciii","Quoted - Equities - Mutual Funds",{"$f":"'Form 1SFS'!E22","v":0},null,{"$f":"'Form 1SFS'!G22","v":0},null,{"$f":"'Form 1SFS'!M22","v":0},null,{"$f":"'Form 1SFS'!O22","v":0},null,{"$f":"'Form 1EBS'!F17","v":0},null,{"$f":"'Form 1EBS'!H17","v":0}]
["Form 1SFS/1EBS","Balance Sheet GEN/CON/EBS","1SFS2e","Quoted - Other Investments",{"$f":"'Form 1SFS'!E24","v":0},null,{"$f":"'Form 1SFS'!G24","v":0},null,{"$f":"'Form 1SFS'!M24","v":0},null,{"$f":"'Form 1SFS'!O24","v":0},null,{"$f":"'Form 1EBS'!F19","v":0},null,{"$f":"'Form 1EBS'!H19","v":0}]
["Form 1SFS/1EBS","Balance Sheet GEN/CON/EBS","1SFS3ai","Unquoted - Bonds - Held to Maturity",{"$f":"'Form 1SFS'!E29","v":0},null,{"$f":"'Form 1SFS'!G29","v":0},null,{"$f":"'Form 1SFS'!M29","v":0},null,{"$f":"'Form 1SFS'!O29","v":0}]
["Form 1SFS/1EBS","Balance Sheet GEN/CON/EBS","1SFS3aii","Unquoted - Bonds - Other",{"$f":"'Form 1SFS'!E30","v":0},null,{"$f":"'Form 1SFS'!G30","v":0},null,{"$f":"'Form 1SFS'!M30","v":0},null,{"$f":"'Form 1SFS'!O30","v":0}]
["Form 1SFS/1EBS","Balance Sheet GEN/CON/EBS","1EBS3b","Unquoted - Bonds - Total",null,null,null,null,null,null,null,null,{"$f":"'Form 1EBS'!F23","v":0},null,{"$f":"'Form 1EBS'!H23","v":0}]
["Form 1SFS/1EBS","Balance Sheet GEN/CON/EBS","1SFS3ci","Unquoted - Equities - Common Stocks",{"$f":"'Form 1SFS'!E33","v":0},null,{"$f":"'Form 1SFS'!G33","v":0},null,{"$f":"'Form 1SFS'!M33","v":0},null,{"$f":"'Form 1SFS'!O33","v":0},null,{"$f":"'Form 1EBS'!F25","v":0},null,{"$f":"'Form 1EBS'!H25","v":0}]
["Form 1SFS/1EBS","Balance Sheet GEN/CON/EBS","1SFS3cii","Unquoted - Equities - Preferred Stocks",{"$f":"'Form 1SFS'!E34","v":0},null,{"$f":"'Form 1SFS'!G34","v":0},null,{"$f":"'Form 1SFS'!M34","v":0},null,{"$f":"'Form 1SFS'!O34","v":0},null,{"$f":"'Form 1EBS'!F26","v":0},null,{"$f":"'Form 1EBS'!H26","v":0}]
["Form 1SFS/1EBS","Balance Sheet GEN/CON/EBS","1SFS3ciii","Unquoted - Equities - Mutual Funds",{"$f":"'Form 1SFS'!E35","v":0},null,{"$f":"'Form 1SFS'!G35","v":0},null,{"$f":"'Form 1SFS'!M35","v":0},null,{"$f":"'Form 1SFS'!O35","v":0},null,{"$f":"'Form 1EBS'!F27","v":0},null,{"$f":"'Form 1EBS'!H27","v":0}]
["Form 1SFS/1EBS","Balance Sheet GEN/CON/EBS","1SFS3e","Unquoted - Other Investments",{"$f":"'Form 1SFS'!E37","v":0},null,{"$f":"'Form 1SFS'!G37","v":0},null,{"$f":"'Form 1SFS'!M37","v":0},null,{"$f":"'Form 1SFS'!O37","v":0},null,{"$f":"'Form 1EBS'!F29","v":0},null,{"$f":"'Form 1EBS'!H29","v":0}]
["Form 1SFS/1EBS","Balance Sheet GEN/CON/EBS","1SFS4a","Inv. In Affiliates - Unregulated Ancillary",{"$f":"'Form 1SFS'!E41","v":0},null,{"$f":"'Form 1SFS'!G41","v":0},null,{"$f":"'Form 1SFS'!M41","v":0},null,{"$f":"'Form 1SFS'!O41","v":0},null,{"$f":"'Form 1EBS'!F33","v":0},null,{"$f":"'Form 1EBS'!H33","v":0}]
["Form 1SFS/1EBS","Balance Sheet GEN/CON/EBS","1SFS4b","Inv. In Affiliates - Unregulated Non-Fin. Oper.",{"$f":"'Form 1SFS'!E42","v":0},null,{"$f":"'Form 1SFS'!G42","v":0},null,{"$f":"'Form 1SFS'!M42","v":0},null,{"$f":"'Form 1SFS'!O42","v":0},null,{"$f":"'Form 1EBS'!F34","v":0},null,{"$f":"'Form 1EBS'!H34","v":0}]
["Form 1SFS/1EBS","Balance Sheet GEN/CON/EBS","1SFS4c","Inv. In Affiliates - Unregulated Fin. Operating",{"$f":"'Form 1SFS'!E43","v":0},null,{"$f":"'Form 1SFS'!G43","v":0},null,{"$f":"'Form 1SFS'!M43","v":0},null,{"$f":"'Form 1SFS'!O43","v":0},null,{"$f":"'Form 1EBS'!F35","v":0},null,{"$f":"'Form 1EBS'!H35","v":0}]
["Form 1SFS/1EBS","Balance Sheet GEN/CON/EBS","1SFS4d","Inv. In Affiliates - Regulated Non-Insurance",{"$f":"'Form 1SFS'!E44","v":0},null,{"$f":"'Form 1SFS'!G44","v":0},null,{"$f":"'Form 1SFS'!M44","v":0},null,{"$f":"'Form 1SFS'!O44","v":0},null,{"$f":"'Form 1EBS'!F36","v":0},null,{"$f":"'Form 1EBS'!H36","v":0}]
["Form 1SFS/1EBS","Balance Sheet GEN/CON/EBS","1SFS4e","Inv. In Affiliates - Regulated Insurance",{"$f":"'Form 1SFS'!E45","v":0},null,{"$f":"'Form 1SFS'!G45","v":0},null,{"$f":"'Form 1SFS'!M45","v":0},null,{"$f":"'Form 1SFS'!O45","v":0},null,{"$f":"'Form 1EBS'!F37","v":0},null,{"$f":"'Form 1EBS'!H37","v":0}]
["Form 1SFS/1EBS","Balance Sheet GEN/CON/EBS","1SFS4g","Advances To Affiliates",{"$f":"'Form 1SFS'!E47","v":0},null,{"$f":"'Form 1SFS'!G47","v":0},null,{"$f":"'Form 1SFS'!M47","v":0},null,{"$f":"'Form 1SFS'!O47","v":0},null,{"$f":"'Form 1EBS'!F39","v":0},null,{"$f":"'Form 1EBS'!H39","v":0}]
["Form 1SFS/1EBS","Balance Sheet GEN/CON/EBS","1SFS5a","Inv. In Mortg. Loans on Real Estate - 1st Lien",{"$f":"'Form 1SFS'!E51","v":0},null,{"$f":"'Form 1SFS'!G51","v":0},null,{"$f":"'Form 1SFS'!M51","v":0},null,{"$f":"'Form 1SFS'!O51","v":0},null,{"$f":"'Form 1EBS'!F43","v":0},null,{"$f":"'Form 1EBS'!H43","v":0}]
["Form 1SFS/1EBS","Balance Sheet GEN/CON/EBS","1SFS5b","Inv. In Mortg. Loans on Real Estate - Other",{"$f":"'Form 1SFS'!E52","v":0},null,{"$f":"'Form 1SFS'!G52","v":0},null,{"$f":"'Form 1SFS'!M52","v":0},null,{"$f":"'Form 1SFS'!O52","v":0},null,{"$f":"'Form 1EBS'!F44","v":0},null,{"$f":"'Form 1EBS'!H44","v":0}]
["Form 1SFS/1EBS","Balance Sheet GEN/CON/EBS","1SFS6","Policy Loans",null,null,null,null,{"$f":"'Form 1SFS'!M55","v":0},null,{"$f":"'Form 1SFS'!O55","v":0}]
["Form 1SFS/1EBS","Balance Sheet GEN/CON/EBS","1SFS7a","Real Estate - Occupied by Company",{"$f":"'Form 1SFS'!E58","v":0},null,{"$f":"'Form 1SFS'!G58","v":0},null,{"$f":"'Form 1SFS'!M58","v":0},null,{"$f":"'Form 1SFS'!O58","v":0},null,{"$f":"'Form 1EBS'!F48","v":0},null,{"$f":"'Form 1EBS'!H48","v":0}]
["Form 1SFS/1EBS","Balance Sheet GEN/CON/EBS","1SFS7b","Real Estate - Other",{"$f":"'Form 1SFS'!E59","v":0},null,{"$f":"'Form 1SFS'!G59","v":0},null,{"$f":"'Form 1SFS'!M59","v":0},null,{"$f":"'Form 1SFS'!O59","v":0},null,{"$f":"'Form 1EBS'!F49","v":0},null,{"$f":"'Form 1EBS'!H49","v":0}]
["Form 1SFS/1EBS","Balance Sheet GEN/CON/EBS","1SFS8","Collateral Loans",{"$f":"'Form 1SFS'!E62","v":0},null,{"$f":"'Form 1SFS'!G62","v":0},null,{"$f":"'Form 1SFS'!M62","v":0},null,{"$f":"'Form 1SFS'!O62","v":0},null,{"$f":"'Form 1EBS'!F52","v":0},null,{"$f":"'Form 1EBS'!H52","v":0}]
["Form 1SFS/1EBS","Balance Sheet GEN/CON/EBS","1SFS9","Investment Income Due and Accrued",{"$f":"'Form 1SFS'!E64","v":0},null,{"$f":"'Form 1SFS'!G64","v":0},null,{"$f":"'Form 1SFS'!M64","v":0},null,{"$f":"'Form 1SFS'!O64","v":0},null,{"$f":"'Form 1EBS'!F54","v":0},null,{"$f":"'Form 1EBS'!H54","v":0}]
["Form 1SFS/1EBS","Balance Sheet GEN/CON/EBS","1SFS10a","Accounts & Premium Rec. - In Collection",{"$f":"'Form 1SFS'!E67","v":0},null,{"$f":"'Form 1SFS'!G67","v":0},null,{"$f":"'Form 1SFS'!M67","v":0},null,{"$f":"'Form 1SFS'!O67","v":0},null,{"$f":"'Form 1EBS'!F57","v":0},null,{"$f":"'Form 1EBS'!H57","v":0}]
["Form 1SFS/1EBS","Balance Sheet GEN/CON/EBS","1SFS10b","Accounts & Premium Rec. - Not Yet Due ",{"$f":"'Form 1SFS'!E68","v":0},null,{"$f":"'Form 1SFS'!G68","v":0},null,{"$f":"'Form 1SFS'!M68","v":0},null,{"$f":"'Form 1SFS'!O68","v":0}]
["Form 1SFS/1EBS","Balance Sheet GEN/CON/EBS","1SFS10c","Accounts & Premium Rec. - Retro. Contracts",{"$f":"'Form 1SFS'!E69","v":0},null,{"$f":"'Form 1SFS'!G69","v":0},null,{"$f":"'Form 1SFS'!M69","v":0},null,{"$f":"'Form 1SFS'!O69","v":0},null,{"$f":"'Form 1EBS'!F58","v":0},null,{"$f":"'Form 1EBS'!H58","v":0}]
["Form 1SFS/1EBS","Balance Sheet GEN/CON/EBS","1SFS11a","R/I Balances Receivable - Foreign Affiliates",{"$f":"'Form 1SFS'!E73","v":0},null,{"$f":"'Form 1SFS'!G73","v":0},null,{"$f":"'Form 1SFS'!M73","v":0},null,{"$f":"'Form 1SFS'!O73","v":0},null,{"$f":"'Form 1EBS'!F62","v":0},null,{"$f":"'Form 1EBS'!H62","v":0}]
["Form 1SFS/1EBS","Balance Sheet GEN/CON/EBS","1SFS11b","R/I Balances Receivable - Domestic Affiliates",{"$f":"'Form 1SFS'!E74","v":0},null,{"$f":"'Form 1SFS'!G74","v":0},null,{"$f":"'Form 1SFS'!M74","v":0},null,{"$f":"'Form 1SFS'!O74","v":0},null,{"$f":"'Form 1EBS'!F63","v":0},null,{"$f":"'Form 1EBS'!H63","v":0}]
["Form 1SFS/1EBS","Balance Sheet GEN/CON/EBS","1SFS11c","R/I Balances Receivable - Pools & Assoc.",{"$f":"'Form 1SFS'!E75","v":0},null,{"$f":"'Form 1SFS'!G75","v":0},null,{"$f":"'Form 1SFS'!M75","v":0},null,{"$f":"'Form 1SFS'!O75","v":0},null,{"$f":"'Form 1EBS'!F64","v":0},null,{"$f":"'Form 1EBS'!H64","v":0}]
["Form 1SFS/1EBS","Balance Sheet GEN/CON/EBS","1SFS11d","R/I Balances Receivable - All Other",{"$f":"'Form 1SFS'!E76","v":0},null,{"$f":"'Form 1SFS'!G76","v":0},null,{"$f":"'Form 1SFS'!M76","v":0},null,{"$f":"'Form 1SFS'!O76","v":0},null,{"$f":"'Form 1EBS'!F65","v":0},null,{"$f":"'Form 1EBS'!H65","v":0}]
["Form 1SFS/1EBS","Balance Sheet GEN/CON/EBS","1EBS12a","Funds Held by Ceding Companies - Affiliates",null,null,null,null,null,null,null,null,{"$f":"'Form 1EBS'!F69","v":0},null,{"$f":"'Form 1EBS'!H69","v":0}]
["Form 1SFS/1EBS","Balance Sheet GEN/CON/EBS","1EBS12b","Funds Held by Ceding Companies - Non-Aff.",null,null,null,null,null,null,null,null,{"$f":"'Form 1EBS'!F70","v":0},null,{"$f":"'Form 1EBS'!H70","v":0}]
["Form 1SFS/1EBS","Balance Sheet GEN/CON/EBS","1SFS12","Funds Held by Ceding Companies ",{"$f":"'Form 1SFS'!E79","v":0},null,{"$f":"'Form 1SFS'!G79","v":0},null,{"$f":"'Form 1SFS'!M79","v":0},null,{"$f":"'Form 1SFS'!O79","v":0}]
["Form 1SFS/1EBS","Balance Sheet GEN/CON/EBS","1SFS13a","Sundry Assets - Derivatives",{"$f":"'Form 1SFS'!E82","v":0},null,{"$f":"'Form 1SFS'!G82","v":0},null,{"$f":"'Form 1SFS'!M82","v":0},null,{"$f":"'Form 1SFS'!O82","v":0},null,{"$f":"'Form 1EBS'!F74","v":0},null,{"$f":"'Form 1EBS'!H74","v":0}]
["Form 1SFS/1EBS","Balance Sheet GEN/CON/EBS","1SFS13b","Sundry Assets - SAC - LT- Variable Annuities",null,null,null,null,{"$f":"'Form 1SFS'!M83","v":0},null,{"$f":"'Form 1SFS'!O83","v":0}]
["Form 1SFS/1EBS","Balance Sheet GEN/CON/EBS","1SFS13c","Sundry Assets - SAC - LT- Others",null,null,null,null,{"$f":"'Form 1SFS'!M84","v":0},null,{"$f":"'Form 1SFS'!O84","v":0}]
["Form 1SFS/1EBS","Balance Sheet GEN/CON/EBS","1SFS13d","Sundry Assets - SAC - General Business",{"$f":"'Form 1SFS'!E85","v":0},null,{"$f":"'Form 1SFS'!G85","v":0},null,{"$f":"'Form 1SFS'!M85","v":0},null,{"$f":"'Form 1SFS'!O85","v":0},null,{"$f":"'Form 1EBS'!F75","v":0},null,{"$f":"'Form 1EBS'!H75","v":0}]
["Form 1SFS/1EBS","Balance Sheet GEN/CON/EBS","1SFS13e","Sundry Assets - Deposit Assets",{"$f":"'Form 1SFS'!E86","v":0},null,{"$f":"'Form 1SFS'!G86","v":0},null,{"$f":"'Form 1SFS'!M86","v":0},null,{"$f":"'Form 1SFS'!O86","v":0},null,{"$f":"'Form 1EBS'!F76","v":0},null,{"$f":"'Form 1EBS'!H76","v":0}]
["Form 1SFS/1EBS","Balance Sheet GEN/CON/EBS","1SFS13f","Sundry Assets - Deferred Acquisition Costs",{"$f":"'Form 1SFS'!E87","v":0},null,{"$f":"'Form 1SFS'!G87","v":0},null,{"$f":"'Form 1SFS'!M87","v":0},null,{"$f":"'Form 1SFS'!O87","v":0}]
["Form 1SFS/1EBS","Balance Sheet GEN/CON/EBS","1SFS13g","Sundry Assets - Net Rec. for Investments",{"$f":"'Form 1SFS'!E88","v":0},null,{"$f":"'Form 1SFS'!G88","v":0},null,{"$f":"'Form 1SFS'!M88","v":0},null,{"$f":"'Form 1SFS'!O88","v":0},null,{"$f":"'Form 1EBS'!F77","v":0},null,{"$f":"'Form 1EBS'!H77","v":0}]
["Form 1SFS/1EBS","Balance Sheet GEN/CON/EBS","1EBS13g","Sundry Assets - Intangible Assets",null,null,null,null,null,null,null,null,{"$f":"'Form 1EBS'!F78","v":0},null,{"$f":"'Form 1EBS'!H78","v":0}]
["Form 1SFS/1EBS","Balance Sheet GEN/CON/EBS","1EBS13h","Sundry Assets - Deferred Tax Assets",null,null,null,null,null,null,null,null,{"$f":"'Form 1EBS'!F79","v":0},null,{"$f":"'Form 1EBS'!H79","v":0}]
["Form 1SFS/1EBS","Balance Sheet GEN/CON/EBS","1EBS13i","Sundry Assets - Pension Benefit Surplus",null,null,null,null,null,null,null,null,{"$f":"'Form 1EBS'!F80","v":0},null,{"$f":"'Form 1EBS'!H80","v":0}]
["Form 1SFS/1EBS","Balance Sheet GEN/CON/EBS","1SFS13h","Sundry Assets - Other 1",{"$f":"'Form 1SFS'!E89","v":0},null,{"$f":"'Form 1SFS'!G89","v":0},null,{"$f":"'Form 1SFS'!M89","v":0},null,{"$f":"'Form 1SFS'!O89","v":0},null,{"$f":"'Form 1EBS'!F81","v":0},null,{"$f":"'Form 1EBS'!H81","v":0}]
["Form 1SFS/1EBS","Balance Sheet GEN/CON/EBS","1SFS13i","Sundry Assets - Other 2",{"$f":"'Form 1SFS'!E90","v":0},null,{"$f":"'Form 1SFS'!G90","v":0},null,{"$f":"'Form 1SFS'!M90","v":0},null,{"$f":"'Form 1SFS'!O90","v":0}]
["Form 1SFS/1EBS","Balance Sheet GEN/CON/EBS","1SFS13j","Sundry Assets - Other 3",{"$f":"'Form 1SFS'!E91","v":0},null,{"$f":"'Form 1SFS'!G91","v":0},null,{"$f":"'Form 1SFS'!M91","v":0},null,{"$f":"'Form 1SFS'!O91","v":0}]
["Form 1SFS/1EBS","Balance Sheet GEN/CON/EBS","1SFS14a","Letters of Credit",{"$f":"'Form 1SFS'!E95","v":0},null,{"$f":"'Form 1SFS'!G95","v":0},null,{"$f":"'Form 1SFS'!M95","v":0},null,{"$f":"'Form 1SFS'!O95","v":0},null,{"$f":"'Form 1EBS'!F85","v":0},null,{"$f":"'Form 1EBS'!H85","v":0}]
["Form 1SFS/1EBS","Balance Sheet GEN/CON/EBS","1SFS14b","Guarantees",{"$f":"'Form 1SFS'!E96","v":0},null,{"$f":"'Form 1SFS'!G96","v":0},null,{"$f":"'Form 1SFS'!M96","v":0},null,{"$f":"'Form 1SFS'!O96","v":0},null,{"$f":"'Form 1EBS'!F86","v":0},null,{"$f":"'Form 1EBS'!H86","v":0}]
["Form 1SFS/1EBS","Balance Sheet GEN/CON/EBS","1SFS14c","Other Instruments",{"$f":"'Form 1SFS'!E97","v":0},null,{"$f":"'Form 1SFS'!G97","v":0},null,{"$f":"'Form 1SFS'!M97","v":0},null,{"$f":"'Form 1SFS'!O97","v":0},null,{"$f":"'Form 1EBS'!F87","v":0},null,{"$f":"'Form 1EBS'!H87","v":0}]
["Form 1SFS/1EBS","Balance Sheet GEN/CON/EBS","1SFS15","Total Assets",{"$f":"'Form 1SFS'!E100","v":0},null,{"$f":"'Form 1SFS'!G100","v":0}]
["Form 1SFS/1EBS","Balance Sheet GEN/CON/EBS","1SFS16a","Unearned Premium Reserve - Gross",{"$f":"'Form 1SFS'!E107","v":0},null,{"$f":"'Form 1SFS'!G107","v":0},null,{"$f":"'Form 1SFS'!M107","v":0},null,{"$f":"'Form 1SFS'!O107","v":0},null,{"$f":"'Form 1EBS'!F98","v":0},null,{"$f":"'Form 1EBS'!H98","v":0}]
["Form 1SFS/1EBS","Balance Sheet GEN/CON/EBS","1SFS16bi","UPR - Ceded - Foreign Affiliates",{"$f":"'Form 1SFS'!E109","v":0},null,{"$f":"'Form 1SFS'!G109","v":0},null,{"$f":"'Form 1SFS'!M109","v":0},null,{"$f":"'Form 1SFS'!O109","v":0},null,{"$f":"'Form 1EBS'!F100","v":0},null,{"$f":"'Form 1EBS'!H100","v":0}]
["Form 1SFS/1EBS","Balance Sheet GEN/CON/EBS","1SFS16bii","UPR - Ceded - Domestic Affiliates",{"$f":"'Form 1SFS'!E110","v":0},null,{"$f":"'Form 1SFS'!G110","v":0},null,{"$f":"'Form 1SFS'!M110","v":0},null,{"$f":"'Form 1SFS'!O110","v":0},null,{"$f":"'Form 1EBS'!F101","v":0},null,{"$f":"'Form 1EBS'!H101","v":0}]
["Form 1SFS/1EBS","Balance Sheet GEN/CON/EBS","1SFS16biii","UPR - Ceded - Pools & Assoc.",{"$f":"'Form 1SFS'!E111","v":0},null,{"$f":"'Form 1SFS'!G111","v":0},null,{"$f":"'Form 1SFS'!M111","v":0},null,{"$f":"'Form 1SFS'!O111","v":0},null,{"$f":"'Form 1EBS'!F102","v":0},null,{"$f":"'Form 1EBS'!H102","v":0}]
["Form 1SFS/1EBS","Balance Sheet GEN/CON/EBS","1SFS16biv","UPR - Ceded - All Other",{"$f":"'Form 1SFS'!E112","v":0},null,{"$f":"'Form 1SFS'!G112","v":0},null,{"$f":"'Form 1SFS'!M112","v":0},null,{"$f":"'Form 1SFS'!O112","v":0},null,{"$f":"'Form 1EBS'!F103","v":0},null,{"$f":"'Form 1EBS'!H103","v":0}]
["Form 1SFS/1EBS","Balance Sheet GEN/CON/EBS","1SFS17a","Loss Provision - Gross",{"$f":"'Form 1SFS'!E117","v":0},null,{"$f":"'Form 1SFS'!G117","v":0},null,{"$f":"'Form 1SFS'!M117","v":0},null,{"$f":"'Form 1SFS'!O117","v":0},null,{"$f":"'Form 1EBS'!F108","v":0},null,{"$f":"'Form 1EBS'!H108","v":0}]
["Form 1SFS/1EBS","Balance Sheet GEN/CON/EBS","1SFS17bi","R/I Recoverable - Foreign Affiliates",{"$f":"'Form 1SFS'!E119","v":0},null,{"$f":"'Form 1SFS'!G119","v":0},null,{"$f":"'Form 1SFS'!M119","v":0},null,{"$f":"'Form 1SFS'!O119","v":0},null,{"$f":"'Form 1EBS'!F110","v":0},null,{"$f":"'Form 1EBS'!H110","v":0}]
["Form 1SFS/1EBS","Balance Sheet GEN/CON/EBS","1SFS17bii","R/I Recoverable - Domestic Affiliates",{"$f":"'Form 1SFS'!E120","v":0},null,{"$f":"'Form 1SFS'!G120","v":0},null,{"$f":"'Form 1SFS'!M120","v":0},null,{"$f":"'Form 1SFS'!O120","v":0},null,{"$f":"'Form 1EBS'!F111","v":0},null,{"$f":"'Form 1EBS'!H111","v":0}]
["Form 1SFS/1EBS","Balance Sheet GEN/CON/EBS","1SFS17biii","R/I Recoverable - Pools & Assoc.",{"$f":"'Form 1SFS'!E121","v":0},null,{"$f":"'Form 1SFS'!G121","v":0},null,{"$f":"'Form 1SFS'!M121","v":0},null,{"$f":"'Form 1SFS'!O121","v":0},null,{"$f":"'Form 1EBS'!F112","v":0},null,{"$f":"'Form 1EBS'!H112","v":0}]
["Form 1SFS/1EBS","Balance Sheet GEN/CON/EBS","1SFS17biv","R/I Recoverable - All Other",{"$f":"'Form 1SFS'!E122","v":0},null,{"$f":"'Form 1SFS'!G122","v":0},null,{"$f":"'Form 1SFS'!M122","v":0},null,{"$f":"'Form 1SFS'!O122","v":0},null,{"$f":"'Form 1EBS'!F113","v":0},null,{"$f":"'Form 1EBS'!H113","v":0}]
["Form 1SFS/1EBS","Balance Sheet GEN/CON/EBS","1SFS18","Risk Margin",{"$f":"'Form 1SFS'!E126","v":0},null,{"$f":"'Form 1SFS'!G126","v":0},null,{"$f":"'Form 1SFS'!M126","v":0},null,{"$f":"'Form 1SFS'!O126","v":0},null,{"$f":"'Form 1EBS'!F117","v":0},null,{"$f":"'Form 1EBS'!H117","v":0}]
["Form 1SFS/1EBS","Balance Sheet GEN/CON/EBS","1SFS20","Net - Reserves for Reported Claims",null,null,null,null,{"$f":"'Form 1SFS'!M132","v":0},null,{"$f":"'Form 1SFS'!O132","v":0}]
["Form 1SFS/1EBS","Balance Sheet GEN/CON/EBS","1SFS21","Net - Reserves for Unreported Claims",null,null,null,null,{"$f":"'Form 1SFS'!M134","v":0},null,{"$f":"'Form 1SFS'!O134","v":0}]
["Form 1SFS/1EBS","Balance Sheet GEN/CON/EBS","1SFS22","Net - Policy Reserves - Life",null,null,null,null,{"$f":"'Form 1SFS'!M136","v":0},null,{"$f":"'Form 1SFS'!O136","v":0}]
["Form 1SFS/1EBS","Balance Sheet GEN/CON/EBS","1SFS23","Net - Policy Reserves - Accident & Health",null,null,null,null,{"$f":"'Form 1SFS'!M138","v":0},null,{"$f":"'Form 1SFS'!O138","v":0}]
["Form 1SFS/1EBS","Balance Sheet GEN/CON/EBS","1SFS24","Net - Policyholder's Funds on Deposit",null,null,null,null,{"$f":"'Form 1SFS'!M140","v":0},null,{"$f":"'Form 1SFS'!O140","v":0}]
["Form 1SFS/1EBS","Balance Sheet GEN/CON/EBS","1SFS25","Net - Liability for Future Policyholder Dividends",null,null,null,null,{"$f":"'Form 1SFS'!M142","v":0},null,{"$f":"'Form 1SFS'!O142","v":0}]
["Form 1SFS/1EBS","Balance Sheet GEN/CON/EBS","1SFS26","Net - Other LT Insurance Reserves",null,null,null,null,{"$f":"'Form 1SFS'!M144","v":0},null,{"$f":"'Form 1SFS'!O144","v":0}]
["Form 1SFS/1EBS","Balance Sheet GEN/CON/EBS","1SFS27bi","R/I Recoverable - Foreign Affiliates",null,null,null,null,{"$f":"'Form 1SFS'!M149","v":0},null,{"$f":"'Form 1SFS'!O149","v":0}]
["Form 1SFS/1EBS","Balance Sheet GEN/CON/EBS","1SFS27bii","R/I Recoverable - Domestic Affiliates",null,null,null,null,{"$f":"'Form 1SFS'!M150","v":0},null,{"$f":"'Form 1SFS'!O150","v":0}]
["Form 1SFS/1EBS","Balance Sheet GEN/CON/EBS","1SFS27biii","R/I Recoverable - Pools & Assoc.",null,null,null,null,{"$f":"'Form 1SFS'!M151","v":0},null,{"$f":"'Form 1SFS'!O151","v":0}]
["Form 1SFS/1EBS","Balance Sheet GEN/CON/EBS","1SFS27biv","R/I Recoverable - All Other",null,null,null,null,{"$f":"'Form 1SFS'!M152","v":0},null,{"$f":"'Form 1SFS'!O152","v":0}]
["Form 1SFS/1EBS","Balance Sheet GEN/CON/EBS","1EBS27A","Risk Margin"]
["Form 1SFS/1EBS","Balance Sheet GEN/CON/EBS","1EBS27Ba","Gross Provision - Tech. Prov. Calc. on Whole"]
["Form 1SFS/1EBS","Balance Sheet GEN/CON/EBS","1EBS27Bbi","R/I Recoverable - Foreign Affiliates"]
["Form 1SFS/1EBS","Balance Sheet GEN/CON/EBS","1EBS27Bbii","R/I Recoverable - Domestic Affiliates"]
["Form 1SFS/1EBS","Balance Sheet GEN/CON/EBS","1EBS27Bbiii","R/I Recoverable - Pools & Assoc."]
["Form 1SFS/1EBS","Balance Sheet GEN/CON/EBS","1EBS27Bbiv","R/I Recoverable - All Other"]
["Form 1SFS/1EBS","Balance Sheet GEN/CON/EBS","1EBS27C","Total Long-Term Tech Provisions"]
["Form 1SFS/1EBS","Balance Sheet GEN/CON/EBS","1SFS28","Insurance & R/I Balances Payable",{"$f":"'Form 1SFS'!E158","v":0},null,{"$f":"'Form 1SFS'!G158","v":0},null,{"$f":"'Form 1SFS'!M158","v":0},null,{"$f":"'Form 1SFS'!O158","v":0},null,{"$f":"'Form 1EBS'!F123","v":0},null,{"$f":"'Form 1EBS'!H123","v":0}]
["Form 1SFS/1EBS","Balance Sheet GEN/CON/EBS","1SFS29","Commissions, Expenses and Taxes Payable",{"$f":"'Form 1SFS'!E160","v":0},null,{"$f":"'Form 1SFS'!G160","v":0},null,{"$f":"'Form 1SFS'!M160","v":0},null,{"$f":"'Form 1SFS'!O160","v":0},null,{"$f":"'Form 1EBS'!F125","v":0},null,{"$f":"'Form 1EBS'!H125","v":0}]
["Form 1SFS/1EBS","Balance Sheet GEN/CON/EBS","1SFS30","Loans and Notes Payable",{"$f":"'Form 1SFS'!E162","v":0},null,{"$f":"'Form 1SFS'!G162","v":0},null,{"$f":"'Form 1SFS'!M162","v":0},null,{"$f":"'Form 1SFS'!O162","v":0},null,{"$f":"'Form 1EBS'!F127","v":0},null,{"$f":"'Form 1EBS'!H127","v":0}]
["Form 1SFS/1EBS","Balance Sheet GEN/CON/EBS","1SFS31a","Income Taxes Payable",{"$f":"'Form 1SFS'!E164","v":0},null,{"$f":"'Form 1SFS'!G164","v":0},null,{"$f":"'Form 1SFS'!M164","v":0},null,{"$f":"'Form 1SFS'!O164","v":0},null,{"$f":"'Form 1EBS'!F130","v":0},null,{"$f":"'Form 1EBS'!H130","v":0}]
["Form 1SFS/1EBS","Balance Sheet GEN/CON/EBS","1SFS31b","Deferred Taxes Payable",{"$f":"'Form 1SFS'!E166","v":0},null,{"$f":"'Form 1SFS'!G166","v":0},null,{"$f":"'Form 1SFS'!M166","v":0},null,{"$f":"'Form 1SFS'!O166","v":0},null,{"$f":"'Form 1EBS'!F131","v":0},null,{"$f":"'Form 1EBS'!H131","v":0}]
["Form 1SFS/1EBS","Balance Sheet GEN/CON/EBS","1SFS32","Amounts Due to Affiliates",{"$f":"'Form 1SFS'!E168","v":0},null,{"$f":"'Form 1SFS'!G168","v":0},null,{"$f":"'Form 1SFS'!M168","v":0},null,{"$f":"'Form 1SFS'!O168","v":0},null,{"$f":"'Form 1EBS'!F133","v":0},null,{"$f":"'Form 1EBS'!H133","v":0}]
["Form 1SFS/1EBS","Balance Sheet GEN/CON/EBS","1SFS33","Accounts Payable and Accrued Liabilities",{"$f":"'Form 1SFS'!E170","v":0},null,{"$f":"'Form 1SFS'!G170","v":0},null,{"$f":"'Form 1SFS'!M170","v":0},null,{"$f":"'Form 1SFS'!O170","v":0},null,{"$f":"'Form 1EBS'!F135","v":0},null,{"$f":"'Form 1EBS'!H135","v":0}]
["Form 1SFS/1EBS","Balance Sheet GEN/CON/EBS","1EBS34a","Funds Held under R/I Contracts - Affiliates",null,null,null,null,null,null,null,null,{"$f":"'Form 1EBS'!F138","v":0},null,{"$f":"'Form 1EBS'!H138","v":0}]
["Form 1SFS/1EBS","Balance Sheet GEN/CON/EBS","1EBS34b","Funds Held under R/I Contracts - Non-Aff.",null,null,null,null,null,null,null,null,{"$f":"'Form 1EBS'!F139","v":0},null,{"$f":"'Form 1EBS'!H139","v":0}]
["Form 1SFS/1EBS","Balance Sheet GEN/CON/EBS","1SFS34","Funds Held under R/I Contracts",{"$f":"'Form 1SFS'!E172","v":0},null,{"$f":"'Form 1SFS'!G172","v":0},null,{"$f":"'Form 1SFS'!M172","v":0},null,{"$f":"'Form 1SFS'!O172","v":0}]
["Form 1SFS/1EBS","Balance Sheet GEN/CON/EBS","1SFS35","Dividends Payable",{"$f":"'Form 1SFS'!E174","v":0},null,{"$f":"'Form 1SFS'!G174","v":0},null,{"$f":"'Form 1SFS'!M174","v":0},null,{"$f":"'Form 1SFS'!O174","v":0},null,{"$f":"'Form 1EBS'!F142","v":0},null,{"$f":"'Form 1EBS'!H142","v":0}]
["Form 1SFS/1EBS","Balance Sheet GEN/CON/EBS","1SFS36a","Sundry Liabilities - Derivative Instruments",{"$f":"'Form 1SFS'!E177","v":0},null,{"$f":"'Form 1SFS'!G177","v":0},null,{"$f":"'Form 1SFS'!M177","v":0},null,{"$f":"'Form 1SFS'!O177","v":0},null,{"$f":"'Form 1EBS'!F145","v":0},null,{"$f":"'Form 1EBS'!H145","v":0}]
["Form 1SFS/1EBS","Balance Sheet GEN/CON/EBS","1EBS36b","Sundry Liabilities - Der. Instr. - Non-Hedge Purp.",null,null,null,null,null,null,null,null,{"$f":"'Form 1EBS'!F146","v":0},null,{"$f":"'Form 1EBS'!H146","v":0}]
["Form 1SFS/1EBS","Balance Sheet GEN/CON/EBS","1SFS36b","Sundry Liabilities - Seg. Accounts - GB",{"$f":"'Form 1SFS'!E178","v":0},null,{"$f":"'Form 1SFS'!G178","v":0},null,{"$f":"'Form 1SFS'!M178","v":0},null,{"$f":"'Form 1SFS'!O178","v":0},null,{"$f":"'Form 1EBS'!F147","v":0},null,{"$f":"'Form 1EBS'!H147","v":0}]
["Form 1SFS/1EBS","Balance Sheet GEN/CON/EBS","1SFS36c","Sundry Liabilities - Deposit Liabilities",{"$f":"'Form 1SFS'!E179","v":0},null,{"$f":"'Form 1SFS'!G179","v":0},null,{"$f":"'Form 1SFS'!M179","v":0},null,{"$f":"'Form 1SFS'!O179","v":0},null,{"$f":"'Form 1EBS'!F148","v":0},null,{"$f":"'Form 1EBS'!H148","v":0}]
["Form 1SFS/1EBS","Balance Sheet GEN/CON/EBS","1EBS36g","Sundry Liabilities - Pension Benefit Oblig.",null,null,null,null,null,null,null,null,{"$f":"'Form 1EBS'!F149","v":0},null,{"$f":"'Form 1EBS'!H149","v":0}]
["Form 1SFS/1EBS","Balance Sheet GEN/CON/EBS","1SFS36d","Sundry Liabilities - Investments Purchased",{"$f":"'Form 1SFS'!E180","v":0},null,{"$f":"'Form 1SFS'!G180","v":0},null,{"$f":"'Form 1SFS'!M180","v":0},null,{"$f":"'Form 1SFS'!O180","v":0},null,{"$f":"'Form 1EBS'!F150","v":0},null,{"$f":"'Form 1EBS'!H150","v":0}]
["Form 1SFS/1EBS","Balance Sheet GEN/CON/EBS","1SFS36e","Sundry Liabilities - Other 1",{"$f":"'Form 1SFS'!E181","v":0},null,{"$f":"'Form 1SFS'!G181","v":0},null,{"$f":"'Form 1SFS'!M181","v":0},null,{"$f":"'Form 1SFS'!O181","v":0},null,{"$f":"'Form 1EBS'!F151","v":0},null,{"$f":"'Form 1EBS'!H151","v":0}]
["Form 1SFS/1EBS","Balance Sheet GEN/CON/EBS","1SFS36f","Sundry Liabilities - Other 2",{"$f":"'Form 1SFS'!E182","v":0},null,{"$f":"'Form 1SFS'!G182","v":0},null,{"$f":"'Form 1SFS'!M182","v":0},null,{"$f":"'Form 1SFS'!O182","v":0}]
["Form 1SFS/1EBS","Balance Sheet GEN/CON/EBS","1SFS36g","Sundry Liabilities - Other 3",{"$f":"'Form 1SFS'!E183","v":0},null,{"$f":"'Form 1SFS'!G183","v":0},null,{"$f":"'Form 1SFS'!M183","v":0},null,{"$f":"'Form 1SFS'!O183","v":0}]
["Form 1SFS/1EBS","Balance Sheet GEN/CON/EBS","1SFS37a","Letters of Credit",{"$f":"'Form 1SFS'!E187","v":0},null,{"$f":"'Form 1SFS'!G187","v":0},null,{"$f":"'Form 1SFS'!M187","v":0},null,{"$f":"'Form 1SFS'!O187","v":0},null,{"$f":"'Form 1EBS'!F155","v":0},null,{"$f":"'Form 1EBS'!H155","v":0}]
["Form 1SFS/1EBS","Balance Sheet GEN/CON/EBS","1SFS37b","Guarantees",{"$f":"'Form 1SFS'!E188","v":0},null,{"$f":"'Form 1SFS'!G188","v":0},null,{"$f":"'Form 1SFS'!M188","v":0},null,{"$f":"'Form 1SFS'!O188","v":0},null,{"$f":"'Form 1EBS'!F156","v":0},null,{"$f":"'Form 1EBS'!H156","v":0}]
["Form 1SFS/1EBS","Balance Sheet GEN/CON/EBS","1SFS37c","Other Instruments",{"$f":"'Form 1SFS'!E189","v":0},null,{"$f":"'Form 1SFS'!G189","v":0},null,{"$f":"'Form 1SFS'!M189","v":0},null,{"$f":"'Form 1SFS'!O189","v":0},null,{"$f":"'Form 1EBS'!F157","v":0},null,{"$f":"'Form 1EBS'!H157","v":0}]
["Form 1SFS/1EBS","Balance Sheet GEN/CON/EBS","1EBS40","Economic Capital & Surplus",null,null,null,null,null,null,null,null,{"$f":"'Form 1EBS'!F167","v":0},null,{"$f":"'Form 1EBS'!H167","v":0}]
[]
["Form 1SFS","Balance Sheet LT","1SFS1","Cash and Cash Equivalents",{"$f":"'Form 1SFS'!I12","v":0},null,{"$f":"'Form 1SFS'!K12","v":0}]
["Form 1SFS","Balance Sheet LT","1SFS2ai","Quoted - Bonds - Held to Maturity",{"$f":"'Form 1SFS'!I16","v":0},null,{"$f":"'Form 1SFS'!K16","v":0}]
["Form 1SFS","Balance Sheet LT","1SFS2aii","Quoted - Bonds - Other",{"$f":"'Form 1SFS'!I17","v":0},null,{"$f":"'Form 1SFS'!K17","v":0}]
["Form 1SFS","Balance Sheet LT","1SFS2ci","Quoted - Equities - Common Stocks",{"$f":"'Form 1SFS'!I20","v":0},null,{"$f":"'Form 1SFS'!K20","v":0}]
["Form 1SFS","Balance Sheet LT","1SFS2cii","Quoted - Equities - Preferred Stocks",{"$f":"'Form 1SFS'!I21","v":0},null,{"$f":"'Form 1SFS'!K21","v":0}]
["Form 1SFS","Balance Sheet LT","1SFS2ciii","Quoted - Equities - Mutual Funds",{"$f":"'Form 1SFS'!I22","v":0},null,{"$f":"'Form 1SFS'!K22","v":0}]
["Form 1SFS","Balance Sheet LT","1SFS2e","Quoted - Other Investments",{"$f":"'Form 1SFS'!I24","v":0},null,{"$f":"'Form 1SFS'!K24","v":0}]
["Form 1SFS","Balance Sheet LT","1SFS3ai","Unquoted - Bonds - Held to Maturity",{"$f":"'Form 1SFS'!I29","v":0},null,{"$f":"'Form 1SFS'!K29","v":0}]
["Form 1SFS","Balance Sheet LT","1SFS3aii","Unquoted - Bonds - Other",{"$f":"'Form 1SFS'!I30","v":0},null,{"$f":"'Form 1SFS'!K30","v":0}]
["Form 1SFS","Balance Sheet LT","1SFS3ci","Unquoted - Equities - Common Stocks",{"$f":"'Form 1SFS'!I33","v":0},null,{"$f":"'Form 1SFS'!K33","v":0}]
["Form 1SFS","Balance Sheet LT","1SFS3cii","Unquoted - Equities - Preferred Stocks",{"$f":"'Form 1SFS'!I34","v":0},null,{"$f":"'Form 1SFS'!K34","v":0}]
["Form 1SFS","Balance Sheet LT","1SFS3ciii","Unquoted - Equities - Mutual Funds",{"$f":"'Form 1SFS'!I35","v":0},null,{"$f":"'Form 1SFS'!K35","v":0}]
["Form 1SFS","Balance Sheet LT","1SFS3e","Unquoted - Other Investments",{"$f":"'Form 1SFS'!I37","v":0},null,{"$f":"'Form 1SFS'!K37","v":0}]
["Form 1SFS","Balance Sheet LT","1SFS4a","Inv. In Affiliates - Unregulated Ancillary",{"$f":"'Form 1SFS'!I41","v":0},null,{"$f":"'Form 1SFS'!K41","v":0}]
["Form 1SFS","Balance Sheet LT","1SFS4b","Inv. In Affiliates - Unregulated Non-Fin. Oper.",{"$f":"'Form 1SFS'!I42","v":0},null,{"$f":"'Form 1SFS'!K42","v":0}]
["Form 1SFS","Balance Sheet LT","1SFS4c","Inv. In Affiliates - Unregulated Fin. Operating",{"$f":"'Form 1SFS'!I43","v":0},null,{"$f":"'Form 1SFS'!K43","v":0}]
["Form 1SFS","Balance Sheet LT","1SFS4d","Inv. In Affiliates - Regulated Non-Insurance",{"$f":"'Form 1SFS'!I44","v":0},null,{"$f":"'Form 1SFS'!K44","v":0}]
["Form 1SFS","Balance Sheet LT","1SFS4e","Inv. In Affiliates - Regulated Insurance",{"$f":"'Form 1SFS'!I45","v":0},null,{"$f":"'Form 1SFS'!K45","v":0}]
["Form 1SFS","Balance Sheet LT","1SFS4g","Advances To Affiliates",{"$f":"'Form 1SFS'!I47","v":0},null,{"$f":"'Form 1SFS'!K47","v":0}]
["Form 1SFS","Balance Sheet LT","1SFS5a","Inv. In Mortg. Loans on Real Estate - 1st Lien",{"$f":"'Form 1SFS'!I51","v":0},null,{"$f":"'Form 1SFS'!K51","v":0}]
["Form 1SFS","Balance Sheet LT","1SFS5b","Inv. In Mortg. Loans on Real Estate - Other",{"$f":"'Form 1SFS'!I52","v":0},null,{"$f":"'Form 1SFS'!K52","v":0}]
["Form 1SFS","Balance Sheet LT","1SFS6","Policy Loans",{"$f":"'Form 1SFS'!I55","v":0},null,{"$f":"'Form 1SFS'!K55","v":0}]
["Form 1SFS","Balance Sheet LT","1SFS7a","Real Estate - Occupied by Company",{"$f":"'Form 1SFS'!I58","v":0},null,{"$f":"'Form 1SFS'!K58","v":0}]
["Form 1SFS","Balance Sheet LT","1SFS7b","Real Estate - Other",{"$f":"'Form 1SFS'!I59","v":0},null,{"$f":"'Form 1SFS'!K59","v":0}]
["Form 1SFS","Balance Sheet LT","1SFS8","Collateral Loans",{"$f":"'Form 1SFS'!I62","v":0},null,{"$f":"'Form 1SFS'!K62","v":0}]
["Form 1SFS","Balance Sheet LT","1SFS9","Investment Income Due and Accrued",{"$f":"'Form 1SFS'!I64","v":0},null,{"$f":"'Form 1SFS'!K64","v":0}]
["Form 1SFS","Balance Sheet LT","1SFS10a","Accounts & Premium Rec. - In Collection",{"$f":"'Form 1SFS'!I67","v":0},null,{"$f":"'Form 1SFS'!K67","v":0}]
["Form 1SFS","Balance Sheet LT","1SFS10b","Accounts & Premium Rec. - Not Yet Due ",{"$f":"'Form 1SFS'!I68","v":0},null,{"$f":"'Form 1SFS'!K68","v":0}]
["Form 1SFS","Balance Sheet LT","1SFS10c","Accounts & Premium Rec. - Retro. Contracts",{"$f":"'Form 1SFS'!I69","v":0},null,{"$f":"'Form 1SFS'!K69","v":0}]
["Form 1SFS","Balance Sheet LT","1SFS11a","R/I Balances Receivable - Foreign Affiliates",{"$f":"'Form 1SFS'!I73","v":0},null,{"$f":"'Form 1SFS'!K73","v":0}]
["Form 1SFS","Balance Sheet LT","1SFS11b","R/I Balances Receivable - Domestic Affiliates",{"$f":"'Form 1SFS'!I74","v":0},null,{"$f":"'Form 1SFS'!K74","v":0}]
["Form 1SFS","Balance Sheet LT","1SFS11c","R/I Balances Receivable - Pools & Assoc.",{"$f":"'Form 1SFS'!I75","v":0},null,{"$f":"'Form 1SFS'!K75","v":0}]
["Form 1SFS","Balance Sheet LT","1SFS11d","R/I Balances Receivable - All Other",{"$f":"'Form 1SFS'!I76","v":0},null,{"$f":"'Form 1SFS'!K76","v":0}]
["Form 1SFS","Balance Sheet LT","1SFS12","Funds Held by Ceding Companies ",{"$f":"'Form 1SFS'!I79","v":0},null,{"$f":"'Form 1SFS'!K79","v":0}]
["Form 1SFS","Balance Sheet LT","1SFS13a","Sundry Assets - Derivatives",{"$f":"'Form 1SFS'!I82","v":0},null,{"$f":"'Form 1SFS'!K82","v":0}]
["Form 1SFS","Balance Sheet LT","1SFS13b","Sundry Assets - SAC - LT- Variable Annuities",{"$f":"'Form 1SFS'!I83","v":0},null,{"$f":"'Form 1SFS'!K83","v":0}]
["Form 1SFS","Balance Sheet LT","1SFS13c","Sundry Assets - SAC - LT- Others",{"$f":"'Form 1SFS'!I84","v":0},null,{"$f":"'Form 1SFS'!K84","v":0}]
["Form 1SFS","Balance Sheet LT","1SFS13e","Sundry Assets - Deposit Assets"]
["Form 1SFS","Balance Sheet LT","1SFS13f","Sundry Assets - Deferred Acquisition Costs",{"$f":"'Form 1SFS'!I86","v":0},null,{"$f":"'Form 1SFS'!K86","v":0}]
["Form 1SFS","Balance Sheet LT","1SFS13g","Sundry Assets - Net Rec. for Investments",{"$f":"'Form 1SFS'!I87","v":0},null,{"$f":"'Form 1SFS'!K87","v":0}]
["Form 1SFS","Balance Sheet LT","1SFS13h","Sundry Assets - Other 1",{"$f":"'Form 1SFS'!I88","v":0},null,{"$f":"'Form 1SFS'!K88","v":0}]
["Form 1SFS","Balance Sheet LT","1SFS13i","Sundry Assets - Other 2",{"$f":"'Form 1SFS'!I89","v":0},null,{"$f":"'Form 1SFS'!K89","v":0}]
["Form 1SFS","Balance Sheet LT","1SFS13j","Sundry Assets - Other 3",{"$f":"'Form 1SFS'!I90","v":0},null,{"$f":"'Form 1SFS'!K90","v":0}]
["Form 1SFS","Balance Sheet LT","1SFS14a","Letters of Credit",{"$f":"'Form 1SFS'!I91","v":0},null,{"$f":"'Form 1SFS'!K91","v":0}]
["Form 1SFS","Balance Sheet LT","1SFS14b","Guarantees",{"$f":"'Form 1SFS'!I95","v":0},null,{"$f":"'Form 1SFS'!K95","v":0}]
["Form 1SFS","Balance Sheet LT","1SFS14c","Other Instruments",{"$f":"'Form 1SFS'!I96","v":0},null,{"$f":"'Form 1SFS'!K96","v":0}]
["Form 1SFS","Balance Sheet LT","1SFS15","Total Assets",{"$f":"'Form 1SFS'!I97","v":0},null,{"$f":"'Form 1SFS'!K97","v":0}]
["Form 1SFS","Balance Sheet LT","1SFS20","Net - Reserves for Reported Claims",{"$f":"'Form 1SFS'!I132","v":0},null,{"$f":"'Form 1SFS'!K132","v":0}]
["Form 1SFS","Balance Sheet LT","1SFS21","Net - Reserves for Unreported Claims",{"$f":"'Form 1SFS'!I134","v":0},null,{"$f":"'Form 1SFS'!K134","v":0}]
["Form 1SFS","Balance Sheet LT","1SFS22","Net - Policy Reserves - Life",{"$f":"'Form 1SFS'!I136","v":0},null,{"$f":"'Form 1SFS'!K136","v":0}]
["Form 1SFS","Balance Sheet LT","1SFS23","Net - Policy Reserves - Accident & Health",{"$f":"'Form 1SFS'!I138","v":0},null,{"$f":"'Form 1SFS'!K138","v":0}]
["Form 1SFS","Balance Sheet LT","1SFS24","Net - Policyholder's Funds on Deposit",{"$f":"'Form 1SFS'!I140","v":0},null,{"$f":"'Form 1SFS'!K140","v":0}]
["Form 1SFS","Balance Sheet LT","1SFS25","Net - Liability for Future Policyholder Dividends",{"$f":"'Form 1SFS'!I142","v":0},null,{"$f":"'Form 1SFS'!K142","v":0}]
["Form 1SFS","Balance Sheet LT","1SFS26","Net - Other LT Insurance Reserves",{"$f":"'Form 1SFS'!I144","v":0},null,{"$f":"'Form 1SFS'!K144","v":0}]
["Form 1SFS","Balance Sheet LT","1SFS27bi","R/I Recoverable - Foreign Affiliates",{"$f":"'Form 1SFS'!I149","v":0},null,{"$f":"'Form 1SFS'!K149","v":0}]
["Form 1SFS","Balance Sheet LT","1SFS27bii","R/I Recoverable - Domestic Affiliates",{"$f":"'Form 1SFS'!I150","v":0},null,{"$f":"'Form 1SFS'!K150","v":0}]
["Form 1SFS","Balance Sheet LT","1SFS27biii","R/I Recoverable - Pools & Assoc.",{"$f":"'Form 1SFS'!I151","v":0},null,{"$f":"'Form 1SFS'!K151","v":0}]
["Form 1SFS","Balance Sheet LT","1SFS27biv","R/I Recoverable - All Other",{"$f":"'Form 1SFS'!I152","v":0},null,{"$f":"'Form 1SFS'!K152","v":0}]
["Form 1SFS","Balance Sheet LT","1SFS28","Insurance & R/I Balances Payable",{"$f":"'Form 1SFS'!I158","v":0},null,{"$f":"'Form 1SFS'!K158","v":0}]
["Form 1SFS","Balance Sheet LT","1SFS29","Commissions, Expenses and Taxes Payable",{"$f":"'Form 1SFS'!I160","v":0},null,{"$f":"'Form 1SFS'!K160","v":0}]
["Form 1SFS","Balance Sheet LT","1SFS30","Loans and Notes Payable",{"$f":"'Form 1SFS'!I162","v":0},null,{"$f":"'Form 1SFS'!K162","v":0}]
["Form 1SFS","Balance Sheet LT","1SFS31a","Income Taxes Payable",{"$f":"'Form 1SFS'!I164","v":0},null,{"$f":"'Form 1SFS'!K164","v":0}]
["Form 1SFS","Balance Sheet LT","1SFS31b","Deferred Taxes Payable",{"$f":"'Form 1SFS'!I166","v":0},null,{"$f":"'Form 1SFS'!K166","v":0}]
["Form 1SFS","Balance Sheet LT","1SFS32","Amounts Due to Affiliates",{"$f":"'Form 1SFS'!I168","v":0},null,{"$f":"'Form 1SFS'!K168","v":0}]
["Form 1SFS","Balance Sheet LT","1SFS33","Accounts Payable and Accrued Liabilities",{"$f":"'Form 1SFS'!I170","v":0},null,{"$f":"'Form 1SFS'!K170","v":0}]
["Form 1SFS","Balance Sheet LT","1SFS34","Funds Held under R/I Contracts",{"$f":"'Form 1SFS'!I172","v":0},null,{"$f":"'Form 1SFS'!K172","v":0}]
["Form 1SFS","Balance Sheet LT","1SFS35","Dividends Payable",{"$f":"'Form 1SFS'!I174","v":0},null,{"$f":"'Form 1SFS'!K174","v":0}]
["Form 1SFS","Balance Sheet LT","1SFS36a","Sundry Liabilities - Derivative Instruments",{"$f":"'Form 1SFS'!I177","v":0},null,{"$f":"'Form 1SFS'!K177","v":0}]
["Form 1SFS","Balance Sheet LT","1SFS36b","Sundry Liabilities - Segregated Accounts",{"$f":"'Form 1SFS'!I178","v":0},null,{"$f":"'Form 1SFS'!K178","v":0}]
["Form 1SFS","Balance Sheet LT","1SFS36c","Sundry Liabilities - Deposit Liabilities",{"$f":"'Form 1SFS'!I179","v":0},null,{"$f":"'Form 1SFS'!K179","v":0}]
["Form 1SFS","Balance Sheet LT","1SFS36d","Sundry Liabilities - Investments Purchased",{"$f":"'Form 1SFS'!I180","v":0},null,{"$f":"'Form 1SFS'!K180","v":0}]
["Form 1SFS","Balance Sheet LT","1SFS36e","Sundry Liabilities - Other 1",{"$f":"'Form 1SFS'!I181","v":0},null,{"$f":"'Form 1SFS'!K181","v":0}]
["Form 1SFS","Balance Sheet LT","1SFS36f","Sundry Liabilities - Other 2",{"$f":"'Form 1SFS'!I182","v":0},null,{"$f":"'Form 1SFS'!K182","v":0}]
["Form 1SFS","Balance Sheet LT","1SFS36g","Sundry Liabilities - Other 3",{"$f":"'Form 1SFS'!I183","v":0},null,{"$f":"'Form 1SFS'!K183","v":0}]
["Form 1SFS","Balance Sheet LT","1SFS37a","Letters of Credit",{"$f":"'Form 1SFS'!I187","v":0},null,{"$f":"'Form 1SFS'!K187","v":0}]
["Form 1SFS","Balance Sheet LT","1SFS37b","Guarantees",{"$f":"'Form 1SFS'!I188","v":0},null,{"$f":"'Form 1SFS'!K188","v":0}]
["Form 1SFS","Balance Sheet LT","1SFS37c","Other Instruments",{"$f":"'Form 1SFS'!I189","v":0},null,{"$f":"'Form 1SFS'!K189","v":0}]
[]
["Form 1SFS","Notes","Form 1SFS","Line 10 - Collaterized Balances",{"$f":"'Form 1SFS'!M210","v":0},null,{"$f":"'Form 1SFS'!O210","v":0},null,null,null,null,null,{"$f":"'Form 1EBS'!F179","v":0},null,{"$f":"'Form 1EBS'!H179","v":0}]
["Form 1SFS","Notes","Form 1SFS","Line 11(e) - Collaterized Balances",{"$f":"'Form 1SFS'!M212","v":0},null,null,null,null,null,null,null,{"$f":"'Form 1EBS'!F180","v":0},null,{"$f":"'Form 1EBS'!H180","v":0}]
["Form 1SFS","Notes","Form 1SFS","Line 17cii - Collat. in Favor of Insurer",{"$f":"'Form 1SFS'!M214","v":0},null,null,null,null,null,null,null,{"$f":"'Form 1EBS'!F181","v":0},null,{"$f":"'Form 1EBS'!H181","v":0}]
["Form 1SFS","Notes","Form 1SFS","Line 13 - Sundry Assets",{"$f":"'Form 1SFS'!M216","v":0},null,{"$f":"'Form 1SFS'!O216","v":0},null,null,null,null,null,{"$f":"'Form 1EBS'!F182","v":0},null,{"$f":"'Form 1EBS'!H182","v":0}]
["Form 1SFS","Notes","Form 1SFS","Line 15 - Policy. Oblig. - Cash",{"$f":"'Form 1SFS'!M221","v":0},null,{"$f":"'Form 1SFS'!O221","v":0},null,null,null,null,null,{"$f":"'Form 1EBS'!F188","v":0},null,{"$f":"'Form 1EBS'!H188","v":0}]
["Form 1SFS","Notes","Form 1SFS","Line 15 - Policy. Oblig. - Quoted. Inv.",{"$f":"'Form 1SFS'!M222","v":0},null,{"$f":"'Form 1SFS'!O222","v":0},null,null,null,null,null,{"$f":"'Form 1EBS'!F189","v":0},null,{"$f":"'Form 1EBS'!H189","v":0}]
["Form 1SFS","Notes","Form 1SFS","Line 15 - Policy. Oblig. - Unquoted. Inv.",{"$f":"'Form 1SFS'!M223","v":0},null,{"$f":"'Form 1SFS'!O223","v":0},null,null,null,null,null,{"$f":"'Form 1EBS'!F190","v":0},null,{"$f":"'Form 1EBS'!H190","v":0}]
["Form 1SFS","Notes","Form 1SFS","Line 15 - Policy. Oblig. - Funds Held",{"$f":"'Form 1SFS'!M224","v":0},null,{"$f":"'Form 1SFS'!O224","v":0},null,null,null,null,null,{"$f":"'Form 1EBS'!F191","v":0},null,{"$f":"'Form 1EBS'!H191","v":0}]
["Form 1SFS","Notes","Form 1SFS","Line 15 - Policy. Oblig. - Other Assets",{"$f":"'Form 1SFS'!M225","v":0},null,{"$f":"'Form 1SFS'!O225","v":0},null,null,null,null,null,{"$f":"'Form 1EBS'!F192","v":0},null,{"$f":"'Form 1EBS'!H192","v":0}]
["Form 1SFS","Notes","Form 1SFS","Line 15 - Policy. Oblig. - Total",{"$f":"'Form 1SFS'!M226","v":0},null,{"$f":"'Form 1SFS'!O226","v":0},null,null,null,null,null,{"$f":"'Form 1EBS'!F193","v":0},null,{"$f":"'Form 1EBS'!H193","v":0}]
["Form 1SFS","Notes","Form 1SFS","Line 15 - Other - Cash",{"$f":"'Form 1SFS'!M231","v":0},null,{"$f":"'Form 1SFS'!O231","v":0},null,null,null,null,null,{"$f":"'Form 1EBS'!F198","v":0},null,{"$f":"'Form 1EBS'!H198","v":0}]
["Form 1SFS","Notes","Form 1SFS","Line 15 - Other - Quoted. Inv.",{"$f":"'Form 1SFS'!M232","v":0},null,{"$f":"'Form 1SFS'!O232","v":0},null,null,null,null,null,{"$f":"'Form 1EBS'!F199","v":0},null,{"$f":"'Form 1EBS'!H199","v":0}]
["Form 1SFS","Notes","Form 1SFS","Line 15 - Other - Unquoted. Inv.",{"$f":"'Form 1SFS'!M233","v":0},null,{"$f":"'Form 1SFS'!O233","v":0},null,null,null,null,null,{"$f":"'Form 1EBS'!F200","v":0},null,{"$f":"'Form 1EBS'!H200","v":0}]
["Form 1SFS","Notes","Form 1SFS","Line 15 - Other - Other Assets",{"$f":"'Form 1SFS'!M234","v":0},null,{"$f":"'Form 1SFS'!O234","v":0},null,null,null,null,null,{"$f":"'Form 1EBS'!F201","v":0},null,{"$f":"'Form 1EBS'!H201","v":0}]
["Form 1SFS","Notes","Form 1SFS","Line 15 - Other - Total",{"$f":"'Form 1SFS'!M235","v":0},null,{"$f":"'Form 1SFS'!O235","v":0},null,null,null,null,null,{"$f":"'Form 1EBS'!F202","v":0},null,{"$f":"'Form 1EBS'!H202","v":0}]
["Form 1SFS","Notes","Form 1SFS","Line 36 - Sundry Liabilities",{"$f":"'Form 1SFS'!M237","v":0},null,{"$f":"'Form 1SFS'!O237","v":0},null,null,null,null,null,{"$f":"'Form 1EBS'!F205","v":0},null,{"$f":"'Form 1EBS'!H205","v":0}]
["Form 1SFS","Notes","Form 1SFS","Line 37 - LOC's & Guarantees",{"$f":"'Form 1SFS'!M239","v":0},null,{"$f":"'Form 1SFS'!O239","v":0},null,null,null,null,null,{"$f":"'Form 1EBS'!F206","v":0},null,{"$f":"'Form 1EBS'!H206","v":0}]
["Form 1SFS","Notes","Form 1SFS","Line 17 - Prior year note disclosure",{"$f":"'Form 1SFS'!K242","v":0}]
["Form 1SFS","Notes","Form 1SFS","Gross Provision - Beg. Of Year",{"$f":"'Form 1SFS'!M251","v":0},null,{"$f":"'Form 1SFS'!O251","v":0}]
["Form 1SFS","Notes","Form 1SFS","R/I Recoverable - Beg. Of Year",{"$f":"'Form 1SFS'!M253","v":0},null,{"$f":"'Form 1SFS'!O253","v":0}]
["Form 1SFS","Notes","Form 1SFS","Net Provision - Beg. Of Year",{"$f":"'Form 1SFS'!M255","v":0},null,{"$f":"'Form 1SFS'!O255","v":0}]
["Form 1SFS","Notes","Form 1SFS","Acquisition / Sale of loss reserves (net):",{"$f":"'Form 1SFS'!M257","v":0},null,{"$f":"'Form 1SFS'!O257","v":0}]
["Form 1SFS","Notes","Form 1SFS","Net Losses Incurred - Current Year",{"$f":"'Form 1SFS'!M261","v":0},null,{"$f":"'Form 1SFS'!O261","v":0}]
["Form 1SFS","Notes","Form 1SFS","Net Losses Incurred - Prior Years",{"$f":"'Form 1SFS'!M262","v":0},null,{"$f":"'Form 1SFS'!O262","v":0}]
["Form 1SFS","Notes","Form 1SFS","Net Losses Incurred - Total",{"$f":"'Form 1SFS'!M264","v":0},null,{"$f":"'Form 1SFS'!O264","v":0}]
["Form 1SFS","Notes","Form 1SFS","Losses Paid - Current Year",{"$f":"'Form 1SFS'!M268","v":0},null,{"$f":"'Form 1SFS'!O268","v":0}]
["Form 1SFS","Notes","Form 1SFS","Losses Paid - Prior Years",{"$f":"'Form 1SFS'!M269","v":0},null,{"$f":"'Form 1SFS'!O269","v":0}]
["Form 1SFS","Notes","Form 1SFS","Losses Paid - Total",{"$f":"'Form 1SFS'!M271","v":0},null,{"$f":"'Form 1SFS'!O271","v":0}]
["Form 1SFS","Notes","Form 1SFS","Foreign Exchange and Other",{"$f":"'Form 1SFS'!M273","v":0},null,{"$f":"'Form 1SFS'!O273","v":0}]
["Form 1SFS","Notes","Form 1SFS","Net Provision - End Of Year",{"$f":"'Form 1SFS'!M275","v":0},null,{"$f":"'Form 1SFS'!O275","v":0}]
["Form 1SFS","Notes","Form 1SFS","R/I Recoverable - End Of Year",{"$f":"'Form 1SFS'!M277","v":0},null,{"$f":"'Form 1SFS'!O277","v":0}]
["Form 1SFS","Notes","Form 1SFS","Gross Provision - End Of Year",{"$f":"'Form 1SFS'!M279","v":0},null,{"$f":"'Form 1SFS'!O279","v":0}]
["Form 1SFS","Notes","Form 1SFS","Insurance - Gross - Open Balance",{"$f":"'Form 1SFS'!E321","v":0},null,{"$f":"'Form 1SFS'!E330","v":0}]
["Form 1SFS","Notes","Form 1SFS","Insurance - Gross - Terminations",{"$f":"'Form 1SFS'!E322","v":0},null,{"$f":"'Form 1SFS'!E331","v":0}]
["Form 1SFS","Notes","Form 1SFS","Insurance - Gross - New Business",{"$f":"'Form 1SFS'!E323","v":0},null,{"$f":"'Form 1SFS'!E332","v":0}]
["Form 1SFS","Notes","Form 1SFS","Insurance - Gross - Chg.In Force",{"$f":"'Form 1SFS'!E324","v":0},null,{"$f":"'Form 1SFS'!E333","v":0}]
["Form 1SFS","Notes","Form 1SFS","Insurance - Gross - Mgmt Actions",{"$f":"'Form 1SFS'!E325","v":0},null,{"$f":"'Form 1SFS'!E334","v":0}]
["Form 1SFS","Notes","Form 1SFS","Insurance - Gross - FX",{"$f":"'Form 1SFS'!E326","v":0},null,{"$f":"'Form 1SFS'!E335","v":0}]
["Form 1SFS","Notes","Form 1SFS","Insurance - Gross - Closing Balance",{"$f":"'Form 1SFS'!E327","v":0},null,{"$f":"'Form 1SFS'!E336","v":0}]
["Form 1SFS","Notes","Form 1SFS","Insurance - R/I - Open Balance",{"$f":"'Form 1SFS'!G321","v":0},null,{"$f":"'Form 1SFS'!G330","v":0}]
["Form 1SFS","Notes","Form 1SFS","Insurance - R/I - Terminations",{"$f":"'Form 1SFS'!G322","v":0},null,{"$f":"'Form 1SFS'!G331","v":0}]
["Form 1SFS","Notes","Form 1SFS","Insurance - R/I - New Business",{"$f":"'Form 1SFS'!G323","v":0},null,{"$f":"'Form 1SFS'!G332","v":0}]
["Form 1SFS","Notes","Form 1SFS","Insurance - R/I - Chg.In Force",{"$f":"'Form 1SFS'!G324","v":0},null,{"$f":"'Form 1SFS'!G333","v":0}]
["Form 1SFS","Notes","Form 1SFS","Insurance - R/I - Mgmt Actions",{"$f":"'Form 1SFS'!G325","v":0},null,{"$f":"'Form 1SFS'!G334","v":0}]
["Form 1SFS","Notes","Form 1SFS","Insurance - R/I - FX",{"$f":"'Form 1SFS'!G326","v":0},null,{"$f":"'Form 1SFS'!G335","v":0}]
["Form 1SFS","Notes","Form 1SFS","Insurance - R/I - Closing Balance",{"$f":"'Form 1SFS'!G327","v":0},null,{"$f":"'Form 1SFS'!G336","v":0}]
["Form 1SFS","Notes","Form 1SFS","Insurance - Net - Open Balance",{"$f":"'Form 1SFS'!I321","v":0},null,{"$f":"'Form 1SFS'!I330","v":0}]
["Form 1SFS","Notes","Form 1SFS","Insurance - Net - Terminations",{"$f":"'Form 1SFS'!I322","v":0},null,{"$f":"'Form 1SFS'!I331","v":0}]
["Form 1SFS","Notes","Form 1SFS","Insurance - Net - New Business",{"$f":"'Form 1SFS'!I323","v":0},null,{"$f":"'Form 1SFS'!I332","v":0}]
["Form 1SFS","Notes","Form 1SFS","Insurance - Net - Chg.In Force",{"$f":"'Form 1SFS'!I324","v":0},null,{"$f":"'Form 1SFS'!I333","v":0}]
["Form 1SFS","Notes","Form 1SFS","Insurance - Net - Mgmt Actions",{"$f":"'Form 1SFS'!I325","v":0},null,{"$f":"'Form 1SFS'!I334","v":0}]
["Form 1SFS","Notes","Form 1SFS","Insurance - Net - FX",{"$f":"'Form 1SFS'!I326","v":0},null,{"$f":"'Form 1SFS'!I335","v":0}]
["Form 1SFS","Notes","Form 1SFS","Insurance - Net - Closing Balance",{"$f":"'Form 1SFS'!I327","v":0},null,{"$f":"'Form 1SFS'!I336","v":0}]
["Form 1SFS","Notes","Form 1SFS","Invmnt - Gross - Open Balance",{"$f":"'Form 1SFS'!K321","v":0},null,{"$f":"'Form 1SFS'!K330","v":0}]
["Form 1SFS","Notes","Form 1SFS","Invmnt - Gross - Terminations",{"$f":"'Form 1SFS'!K322","v":0},null,{"$f":"'Form 1SFS'!K331","v":0}]
["Form 1SFS","Notes","Form 1SFS","Invmnt - Gross - New Business",{"$f":"'Form 1SFS'!K323","v":0},null,{"$f":"'Form 1SFS'!K332","v":0}]
["Form 1SFS","Notes","Form 1SFS","Invmnt - Gross - Chg.In Force",{"$f":"'Form 1SFS'!K324","v":0},null,{"$f":"'Form 1SFS'!K333","v":0}]
["Form 1SFS","Notes","Form 1SFS","Invmnt - Gross - Mgmt Actions",{"$f":"'Form 1SFS'!K325","v":0},null,{"$f":"'Form 1SFS'!K334","v":0}]
["Form 1SFS","Notes","Form 1SFS","Invmnt - Gross - FX",{"$f":"'Form 1SFS'!K326","v":0},null,{"$f":"'Form 1SFS'!K335","v":0}]
["Form 1SFS","Notes","Form 1SFS","Invmnt - Gross - Closing Balance",{"$f":"'Form 1SFS'!K327","v":0},null,{"$f":"'Form 1SFS'!K336","v":0}]
["Form 1SFS","Notes","Form 1SFS","Invmnt - R/I - Open Balance",{"$f":"'Form 1SFS'!M321","v":0},null,{"$f":"'Form 1SFS'!M330","v":0}]
["Form 1SFS","Notes","Form 1SFS","Invmnt - R/I - Terminations",{"$f":"'Form 1SFS'!M322","v":0},null,{"$f":"'Form 1SFS'!M331","v":0}]
["Form 1SFS","Notes","Form 1SFS","Invmnt - R/I - New Business",{"$f":"'Form 1SFS'!M323","v":0},null,{"$f":"'Form 1SFS'!M332","v":0}]
["Form 1SFS","Notes","Form 1SFS","Invmnt - R/I - Chg.In Force",{"$f":"'Form 1SFS'!M324","v":0},null,{"$f":"'Form 1SFS'!M333","v":0}]
["Form 1SFS","Notes","Form 1SFS","Invmnt - R/I - Mgmt Actions",{"$f":"'Form 1SFS'!M325","v":0},null,{"$f":"'Form 1SFS'!M334","v":0}]
["Form 1SFS","Notes","Form 1SFS","Invmnt - R/I - FX",{"$f":"'Form 1SFS'!M326","v":0},null,{"$f":"'Form 1SFS'!M335","v":0}]
["Form 1SFS","Notes","Form 1SFS","Invmnt - R/I - Closing Balance",{"$f":"'Form 1SFS'!M327","v":0},null,{"$f":"'Form 1SFS'!M336","v":0}]
["Form 1SFS","Notes","Form 1SFS","Invmnt - Net - Open Balance",{"$f":"'Form 1SFS'!O321","v":0},null,{"$f":"'Form 1SFS'!O330","v":0}]
["Form 1SFS","Notes","Form 1SFS","Invmnt - Net - Terminations",{"$f":"'Form 1SFS'!O322","v":0},null,{"$f":"'Form 1SFS'!O331","v":0}]
["Form 1SFS","Notes","Form 1SFS","Invmnt - Net - New Business",{"$f":"'Form 1SFS'!O323","v":0},null,{"$f":"'Form 1SFS'!O332","v":0}]
["Form 1SFS","Notes","Form 1SFS","Invmnt - Net - Chg.In Force",{"$f":"'Form 1SFS'!O324","v":0},null,{"$f":"'Form 1SFS'!O333","v":0}]
["Form 1SFS","Notes","Form 1SFS","Invmnt - Net - Mgmt Actions",{"$f":"'Form 1SFS'!O325","v":0},null,{"$f":"'Form 1SFS'!O334","v":0}]
["Form 1SFS","Notes","Form 1SFS","Invmnt - Net - FX",{"$f":"'Form 1SFS'!O326","v":0},null,{"$f":"'Form 1SFS'!O335","v":0}]
["Form 1SFS","Notes","Form 1SFS","Invmnt - Net - Closing Balance",{"$f":"'Form 1SFS'!O327","v":0},null,{"$f":"'Form 1SFS'!O336","v":0}]
[]
["1EBS","Notes","1EBS","Line 36(i) - Any Other Liabilities",null,null,null,null,null,null,null,null,{"$f":"'Form 1EBS'!F183","v":0},null,{"$f":"'Form 1EBS'!H183","v":0}]
["1EBS","Notes","1EBS","Line 36(f) - Details of Deposit Liab.",null,null,null,null,null,null,null,null,{"$f":"'Form 1EBS'!F204","v":0},null,{"$f":"'Form 1EBS'!H204","v":0}]
["1EBS","Notes","1EBS","Line 40 - Recon. 1SFS 40 to EBS 40",null,null,null,null,null,null,null,null,{"$f":"'Form 1EBS'!F207","v":0},null,{"$f":"'Form 1EBS'!H207","v":0}]
["1EBS","Notes","1EBS","Line 16c - Adj. Counterparty Default",null,null,null,null,null,null,null,null,{"$f":"'Form 1EBS'!F210","v":0},null,{"$f":"'Form 1EBS'!H210","v":0}]
["1EBS","Notes","1EBS","Line 17ci - Adj. Counterparty Default",null,null,null,null,null,null,null,null,{"$f":"'Form 1EBS'!F211","v":0},null,{"$f":"'Form 1EBS'!H211","v":0}]
["1EBS","Notes","1EBS","Line 16di - BBNI Premium",null,null,null,null,null,null,null,null,{"$f":"'Form 1EBS'!F212","v":0},null,{"$f":"'Form 1EBS'!H212","v":0}]
["1EBS","Notes","1EBS","Line 16dii - BBNI Best Est. Prem",null,null,null,null,null,null,null,null,{"$f":"'Form 1EBS'!F213","v":0},null,{"$f":"'Form 1EBS'!H213","v":0}]
["1EBS","Notes","1EBS","Line 17di - Loss Provision Discount",null,null,null,null,null,null,null,null,{"$f":"'Form 1EBS'!F214","v":0},null,{"$f":"'Form 1EBS'!H214","v":0}]
["1EBS","Notes","1EBS","Line 17dii - Scenario Based Approach",null,null,null,null,null,null,null,null,{"$f":"'Form 1EBS'!F215","v":0},null,{"$f":"'Form 1EBS'!H215","v":0}]
["1EBS","Notes","1EBS","Best Estimate Provision - Beg. Of Year",null,null,null,null,null,null,null,null,{"$f":"'Form 1EBS'!F218","v":0},null,{"$f":"'Form 1EBS'!H218","v":0}]
["1EBS","Notes","1EBS","Unwind of Discount",null,null,null,null,null,null,null,null,{"$f":"'Form 1EBS'!F220","v":0},null,{"$f":"'Form 1EBS'!H220","v":0}]
["1EBS","Notes","1EBS","Net Loss Paid - Prior Years",null,null,null,null,null,null,null,null,{"$f":"'Form 1EBS'!F221","v":0},null,{"$f":"'Form 1EBS'!H221","v":0}]
["1EBS","Notes","1EBS","Net Losses Incurred - Prior Years",null,null,null,null,null,null,null,null,{"$f":"'Form 1EBS'!F222","v":0},null,{"$f":"'Form 1EBS'!H222","v":0}]
["1EBS","Notes","1EBS","Best Estimate Provision - From PY",null,null,null,null,null,null,null,null,{"$f":"'Form 1EBS'!F223","v":0},null,{"$f":"'Form 1EBS'!H223","v":0}]
["1EBS","Notes","1EBS","Net Losses Incurred - Current Year",null,null,null,null,null,null,null,null,{"$f":"'Form 1EBS'!F225","v":0},null,{"$f":"'Form 1EBS'!H225","v":0}]
["1EBS","Notes","1EBS","Net Loss Paid - Current Year",null,null,null,null,null,null,null,null,{"$f":"'Form 1EBS'!F226","v":0},null,{"$f":"'Form 1EBS'!H226","v":0}]
["1EBS","Notes","1EBS","Foreign Exchange and Other",null,null,null,null,null,null,null,null,{"$f":"'Form 1EBS'!F227","v":0},null,{"$f":"'Form 1EBS'!H227","v":0}]
["1EBS","Notes","1EBS","Best Estimate Provision - From CY",null,null,null,null,null,null,null,null,{"$f":"'Form 1EBS'!F228","v":0},null,{"$f":"'Form 1EBS'!H228","v":0}]
["1EBS","Notes","1EBS","Impact of Change in Discount Curve",null,null,null,null,null,null,null,null,{"$f":"'Form 1EBS'!F230","v":0},null,{"$f":"'Form 1EBS'!H230","v":0}]
["1EBS","Notes","1EBS","Best Estimate Provision - End Of Year",null,null,null,null,null,null,null,null,{"$f":"'Form 1EBS'!F232","v":0},null,{"$f":"'Form 1EBS'!H232","v":0}]
[]
[null,null,null,"Income Statement"]
["Form 2SFS","Income Stmt Uncon GEN / CON","2SFS1a","Gross Premium Written - Direct",{"$f":"'Form 2SFS'!E12","v":0},null,{"$f":"'Form 2SFS'!G12","v":0},null,{"$f":"'Form 2SFS'!M12","v":0},null,{"$f":"'Form 2SFS'!O12","v":0}]
["Form 2SFS","Income Stmt Uncon GEN / CON","2SFS1b","Gross Premium Written - Assumed",{"$f":"'Form 2SFS'!E13","v":0},null,{"$f":"'Form 2SFS'!G13","v":0},null,{"$f":"'Form 2SFS'!M13","v":0},null,{"$f":"'Form 2SFS'!O13","v":0}]
["Form 2SFS","Income Stmt Uncon GEN / CON","2SFS2","R/I Premiums Ceded",{"$f":"'Form 2SFS'!E16","v":0},null,{"$f":"'Form 2SFS'!G16","v":0},null,{"$f":"'Form 2SFS'!M16","v":0},null,{"$f":"'Form 2SFS'!O16","v":0}]
["Form 2SFS","Income Stmt Uncon GEN / CON","2SFS4","Change in Unearned Premiums",{"$f":"'Form 2SFS'!E20","v":0},null,{"$f":"'Form 2SFS'!G20","v":0},null,{"$f":"'Form 2SFS'!M20","v":0},null,{"$f":"'Form 2SFS'!O20","v":0}]
["Form 2SFS","Income Stmt Uncon GEN / CON","2SFS6","Other Insurance Income",{"$f":"'Form 2SFS'!E24","v":0},null,{"$f":"'Form 2SFS'!G24","v":0},null,{"$f":"'Form 2SFS'!M24","v":0},null,{"$f":"'Form 2SFS'!O24","v":0}]
["Form 2SFS","Income Stmt Uncon GEN / CON","2SFS8","Net Losses Incurred",{"$f":"'Form 2SFS'!E30","v":0},null,{"$f":"'Form 2SFS'!G30","v":0},null,{"$f":"'Form 2SFS'!M30","v":0},null,{"$f":"'Form 2SFS'!O30","v":0}]
["Form 2SFS","Income Stmt Uncon GEN / CON","2SFS9","Commissions & Brokerage",{"$f":"'Form 2SFS'!E32","v":0},null,{"$f":"'Form 2SFS'!G32","v":0},null,{"$f":"'Form 2SFS'!M32","v":0},null,{"$f":"'Form 2SFS'!O32","v":0}]
["Form 2SFS","Income Stmt Uncon GEN / CON","2SFS12a","Gross Premium Written - Direct",null,null,null,null,{"$f":"'Form 2SFS'!M41","v":0},null,{"$f":"'Form 2SFS'!O41","v":0}]
["Form 2SFS","Income Stmt Uncon GEN / CON","2SFS12b","Gross Premium Written - Assumed",null,null,null,null,{"$f":"'Form 2SFS'!M42","v":0},null,{"$f":"'Form 2SFS'!O42","v":0}]
["Form 2SFS","Income Stmt Uncon GEN / CON","2SFS13","R/I Premiums Ceded",null,null,null,null,{"$f":"'Form 2SFS'!M45","v":0},null,{"$f":"'Form 2SFS'!O45","v":0}]
["Form 2SFS","Income Stmt Uncon GEN / CON","2SFS14a","NPW - Life",null,null,null,null,{"$f":"'Form 2SFS'!M48","v":0},null,{"$f":"'Form 2SFS'!O48","v":0}]
["Form 2SFS","Income Stmt Uncon GEN / CON","2SFS14b","NPW - Annuities",null,null,null,null,{"$f":"'Form 2SFS'!M49","v":0},null,{"$f":"'Form 2SFS'!O49","v":0}]
["Form 2SFS","Income Stmt Uncon GEN / CON","2SFS14c","NPW - Accident & Health",null,null,null,null,{"$f":"'Form 2SFS'!M50","v":0},null,{"$f":"'Form 2SFS'!O50","v":0}]
["Form 2SFS","Income Stmt Uncon GEN / CON","2SFS15","Other Insurance Income",null,null,null,null,{"$f":"'Form 2SFS'!M53","v":0},null,{"$f":"'Form 2SFS'!O53","v":0}]
["Form 2SFS","Income Stmt Uncon GEN / CON","2SFS17","Claims - Life",null,null,null,null,{"$f":"'Form 2SFS'!M59","v":0},null,{"$f":"'Form 2SFS'!O59","v":0}]
["Form 2SFS","Income Stmt Uncon GEN / CON","2SFS18","Policyholders' Dividends",null,null,null,null,{"$f":"'Form 2SFS'!M61","v":0},null,{"$f":"'Form 2SFS'!O61","v":0}]
["Form 2SFS","Income Stmt Uncon GEN / CON","2SFS19","Surrenders",null,null,null,null,{"$f":"'Form 2SFS'!M63","v":0},null,{"$f":"'Form 2SFS'!O63","v":0}]
["Form 2SFS","Income Stmt Uncon GEN / CON","2SFS20","Maturities",null,null,null,null,{"$f":"'Form 2SFS'!M65","v":0},null,{"$f":"'Form 2SFS'!O65","v":0}]
["Form 2SFS","Income Stmt Uncon GEN / CON","2SFS21","Annuities",null,null,null,null,{"$f":"'Form 2SFS'!M67","v":0},null,{"$f":"'Form 2SFS'!O67","v":0}]
["Form 2SFS","Income Stmt Uncon GEN / CON","2SFS22","Accident & Health Benefits",null,null,null,null,{"$f":"'Form 2SFS'!M69","v":0},null,{"$f":"'Form 2SFS'!O69","v":0}]
["Form 2SFS","Income Stmt Uncon GEN / CON","2SFS23","Commissions",null,null,null,null,{"$f":"'Form 2SFS'!M71","v":0},null,{"$f":"'Form 2SFS'!O71","v":0}]
["Form 2SFS","Income Stmt Uncon GEN / CON","2SFS24","Other",null,null,null,null,{"$f":"'Form 2SFS'!M73","v":0},null,{"$f":"'Form 2SFS'!O73","v":0}]
["Form 2SFS","Income Stmt Uncon GEN / CON","2SFS26a","Change in Policy Reserves - Life",null,null,null,null,{"$f":"'Form 2SFS'!M78","v":0},null,{"$f":"'Form 2SFS'!O78","v":0}]
["Form 2SFS","Income Stmt Uncon GEN / CON","2SFS26b","Change in Policy Reserves - Annuities",null,null,null,null,{"$f":"'Form 2SFS'!M79","v":0},null,{"$f":"'Form 2SFS'!O79","v":0}]
["Form 2SFS","Income Stmt Uncon GEN / CON","2SFS26c","Change in Policy Reserves - Accid. & Health",null,null,null,null,{"$f":"'Form 2SFS'!M80","v":0},null,{"$f":"'Form 2SFS'!O80","v":0}]
["Form 2SFS","Income Stmt Uncon GEN / CON","2SFS30a","Operating Expense - G&A",{"$f":"'Form 2SFS'!E93","v":0},null,{"$f":"'Form 2SFS'!G93","v":0},null,{"$f":"'Form 2SFS'!M93","v":0},null,{"$f":"'Form 2SFS'!O93","v":0}]
["Form 2SFS","Income Stmt Uncon GEN / CON","2SFS30b","Operating Expense - Personnel Costs",{"$f":"'Form 2SFS'!E94","v":0},null,{"$f":"'Form 2SFS'!G94","v":0},null,{"$f":"'Form 2SFS'!M94","v":0},null,{"$f":"'Form 2SFS'!O94","v":0}]
["Form 2SFS","Income Stmt Uncon GEN / CON","2SFS30c","Operating Expense - Other",{"$f":"'Form 2SFS'!E95","v":0},null,{"$f":"'Form 2SFS'!G95","v":0},null,{"$f":"'Form 2SFS'!M95","v":0},null,{"$f":"'Form 2SFS'!O95","v":0}]
["Form 2SFS","Income Stmt Uncon GEN / CON","2SFS31","Investment Income",{"$f":"'Form 2SFS'!E98","v":0},null,{"$f":"'Form 2SFS'!G98","v":0},null,{"$f":"'Form 2SFS'!M98","v":0},null,{"$f":"'Form 2SFS'!O98","v":0}]
["Form 2SFS","Income Stmt Uncon GEN / CON","2SFS32","Other Income",{"$f":"'Form 2SFS'!E100","v":0},null,{"$f":"'Form 2SFS'!G100","v":0},null,{"$f":"'Form 2SFS'!M100","v":0},null,{"$f":"'Form 2SFS'!O100","v":0}]
["Form 2SFS","Income Stmt Uncon GEN / CON","2SFS34a","Income Tax - Current",{"$f":"'Form 2SFS'!E105","v":0},null,{"$f":"'Form 2SFS'!G105","v":0},null,{"$f":"'Form 2SFS'!M105","v":0},null,{"$f":"'Form 2SFS'!O105","v":0}]
["Form 2SFS","Income Stmt Uncon GEN / CON","2SFS34b","Income Tax - Deferred",{"$f":"'Form 2SFS'!E106","v":0},null,{"$f":"'Form 2SFS'!G106","v":0},null,{"$f":"'Form 2SFS'!M106","v":0},null,{"$f":"'Form 2SFS'!O106","v":0}]
["Form 2SFS","Income Stmt Uncon GEN / CON","2SFS36","Realized Gains/Losses",{"$f":"'Form 2SFS'!E111","v":0},null,{"$f":"'Form 2SFS'!G111","v":0},null,{"$f":"'Form 2SFS'!M111","v":0},null,{"$f":"'Form 2SFS'!O111","v":0}]
["Form 2SFS","Income Stmt Uncon GEN / CON","2SFS37","Interest Charges",{"$f":"'Form 2SFS'!E113","v":0},null,{"$f":"'Form 2SFS'!G113","v":0},null,{"$f":"'Form 2SFS'!M113","v":0},null,{"$f":"'Form 2SFS'!O113","v":0}]
[]
["Form 2SFS","Income Stmt Uncon LT","2SFS12a","Gross Premium Written - Direct",{"$f":"'Form 2SFS'!I41","v":0},null,{"$f":"'Form 2SFS'!K41","v":0}]
["Form 2SFS","Income Stmt Uncon LT","2SFS12b","Gross Premium Written - Assumed",{"$f":"'Form 2SFS'!I42","v":0},null,{"$f":"'Form 2SFS'!K42","v":0}]
["Form 2SFS","Income Stmt Uncon LT","2SFS13","R/I Premiums Ceded",{"$f":"'Form 2SFS'!I45","v":0},null,{"$f":"'Form 2SFS'!K45","v":0}]
["Form 2SFS","Income Stmt Uncon LT","2SFS14a","NPW - Life",{"$f":"'Form 2SFS'!I48","v":0},null,{"$f":"'Form 2SFS'!K48","v":0}]
["Form 2SFS","Income Stmt Uncon LT","2SFS14b","NPW - Annuities",{"$f":"'Form 2SFS'!I49","v":0},null,{"$f":"'Form 2SFS'!K49","v":0}]
["Form 2SFS","Income Stmt Uncon LT","2SFS14c","NPW - Accident & Health",{"$f":"'Form 2SFS'!I50","v":0},null,{"$f":"'Form 2SFS'!K50","v":0}]
["Form 2SFS","Income Stmt Uncon LT","2SFS15","Other Insurance Income",{"$f":"'Form 2SFS'!I53","v":0},null,{"$f":"'Form 2SFS'!K53","v":0}]
["Form 2SFS","Income Stmt Uncon LT","2SFS17","Claims - Life",{"$f":"'Form 2SFS'!I59","v":0},null,{"$f":"'Form 2SFS'!K59","v":0}]
["Form 2SFS","Income Stmt Uncon LT","2SFS18","Policyholders' Dividends",{"$f":"'Form 2SFS'!I61","v":0},null,{"$f":"'Form 2SFS'!K61","v":0}]
["Form 2SFS","Income Stmt Uncon LT","2SFS19","Surrenders",{"$f":"'Form 2SFS'!I63","v":0},null,{"$f":"'Form 2SFS'!K63","v":0}]
["Form 2SFS","Income Stmt Uncon LT","2SFS20","Maturities",{"$f":"'Form 2SFS'!I65","v":0},null,{"$f":"'Form 2SFS'!K65","v":0}]
["Form 2SFS","Income Stmt Uncon LT","2SFS21","Annuities",{"$f":"'Form 2SFS'!I67","v":0},null,{"$f":"'Form 2SFS'!K67","v":0}]
["Form 2SFS","Income Stmt Uncon LT","2SFS22","Accident & Health Benefits",{"$f":"'Form 2SFS'!I69","v":0},null,{"$f":"'Form 2SFS'!K69","v":0}]
["Form 2SFS","Income Stmt Uncon LT","2SFS23","Commissions",{"$f":"'Form 2SFS'!I71","v":0},null,{"$f":"'Form 2SFS'!K71","v":0}]
["Form 2SFS","Income Stmt Uncon LT","2SFS24","Other",{"$f":"'Form 2SFS'!I73","v":0},null,{"$f":"'Form 2SFS'!K73","v":0}]
["Form 2SFS","Income Stmt Uncon LT","2SFS26a","Change in Policy Reserves - Life",{"$f":"'Form 2SFS'!I78","v":0},null,{"$f":"'Form 2SFS'!K78","v":0}]
["Form 2SFS","Income Stmt Uncon LT","2SFS26b","Change in Policy Reserves - Annuities",{"$f":"'Form 2SFS'!I79","v":0},null,{"$f":"'Form 2SFS'!K79","v":0}]
["Form 2SFS","Income Stmt Uncon LT","2SFS26c","Change in Policy Reserves - Accid. & Health",{"$f":"'Form 2SFS'!I80","v":0},null,{"$f":"'Form 2SFS'!K80","v":0}]
["Form 2SFS","Income Stmt Uncon LT","2SFS30a","Operating Expense - G&A",{"$f":"'Form 2SFS'!I93","v":0},null,{"$f":"'Form 2SFS'!K93","v":0}]
["Form 2SFS","Income Stmt Uncon LT","2SFS30b","Operating Expense - Personnel Costs",{"$f":"'Form 2SFS'!I94","v":0},null,{"$f":"'Form 2SFS'!K94","v":0}]
["Form 2SFS","Income Stmt Uncon LT","2SFS30c","Operating Expense - Other",{"$f":"'Form 2SFS'!I95","v":0},null,{"$f":"'Form 2SFS'!K95","v":0}]
["Form 2SFS","Income Stmt Uncon LT","2SFS31","Investment Income",{"$f":"'Form 2SFS'!I98","v":0},null,{"$f":"'Form 2SFS'!K98","v":0}]
["Form 2SFS","Income Stmt Uncon LT","2SFS32","Other Income",{"$f":"'Form 2SFS'!I100","v":0},null,{"$f":"'Form 2SFS'!K100","v":0}]
["Form 2SFS","Income Stmt Uncon LT","2SFS34a","Income Tax - Current",{"$f":"'Form 2SFS'!I105","v":0},null,{"$f":"'Form 2SFS'!K105","v":0}]
["Form 2SFS","Income Stmt Uncon LT","2SFS34b","Income Tax - Deferred",{"$f":"'Form 2SFS'!I106","v":0},null,{"$f":"'Form 2SFS'!K106","v":0}]
["Form 2SFS","Income Stmt Uncon LT","2SFS36","Realized Gains/Losses",{"$f":"'Form 2SFS'!I111","v":0},null,{"$f":"'Form 2SFS'!K111","v":0}]
["Form 2SFS","Income Stmt Uncon LT","2SFS37","Interest Charges",{"$f":"'Form 2SFS'!I113","v":0},null,{"$f":"'Form 2SFS'!K113","v":0}]
[]
[null,null,null,"Statement of Capital & Surplus"]
["Form 8SFS","Stmt of C&S Uncon GEN / CON","8SFS1ai","Capital Stock",{"$f":"'Form 8SFS'!G11","v":0},null,{"$f":"'Form 8SFS'!I11","v":0}]
["Form 8SFS","Stmt of C&S Uncon GEN / CON",null,"Common Stock",null,null,null,null,{"$f":"'Form 8SFS'!O12","v":0},null,{"$f":"'Form 8SFS'!Q12","v":0}]
["Form 8SFS","Stmt of C&S Uncon GEN / CON","8SFS1aii","Preferred Shares",null,null,null,null,{"$f":"'Form 8SFS'!O17","v":0},null,{"$f":"'Form 8SFS'!Q17","v":0}]
["Form 8SFS","Stmt of C&S Uncon GEN / CON","8SFS1aiii","Treasury Shares",null,null,null,null,{"$f":"'Form 8SFS'!O25","v":0},null,{"$f":"'Form 8SFS'!Q25","v":0}]
["Form 8SFS","Stmt of C&S Uncon GEN / CON","8SFS1b","Contributed Surplus",{"$f":"'Form 8SFS'!G29","v":0},null,{"$f":"'Form 8SFS'!I29","v":0},null,{"$f":"'Form 8SFS'!O29","v":0},null,{"$f":"'Form 8SFS'!Q29","v":0}]
["Form 8SFS","Stmt of C&S Uncon GEN / CON","8SFS1ci","Other Fixed Capital - Hybrid Instruments",{"$f":"'Form 8SFS'!G32","v":0},null,{"$f":"'Form 8SFS'!I32","v":0},null,{"$f":"'Form 8SFS'!O32","v":0},null,{"$f":"'Form 8SFS'!Q32","v":0}]
["Form 8SFS","Stmt of C&S Uncon GEN / CON","8SFS1cii","Other Fixed Capital - Guarantees & Others",{"$f":"'Form 8SFS'!G33","v":0},null,{"$f":"'Form 8SFS'!I33","v":0},null,{"$f":"'Form 8SFS'!O33","v":0},null,{"$f":"'Form 8SFS'!Q33","v":0}]
["Form 8SFS","Stmt of C&S Uncon GEN / CON","8SFS2a","Statutory Surplus - Beginning of Year",{"$f":"'Form 8SFS'!G40","v":0},null,{"$f":"'Form 8SFS'!I40","v":0},null,{"$f":"'Form 8SFS'!O40","v":0},null,{"$f":"'Form 8SFS'!Q40","v":0}]
["Form 8SFS","Stmt of C&S Uncon GEN / CON","8SFS2c","Dividends",{"$f":"'Form 8SFS'!G44","v":0},null,{"$f":"'Form 8SFS'!I44","v":0},null,{"$f":"'Form 8SFS'!O44","v":0},null,{"$f":"'Form 8SFS'!Q44","v":0}]
["Form 8SFS","Stmt of C&S Uncon GEN / CON","8SFS2d","Unrealized Change in Investments",{"$f":"'Form 8SFS'!G46","v":0},null,{"$f":"'Form 8SFS'!I46","v":0},null,{"$f":"'Form 8SFS'!O46","v":0},null,{"$f":"'Form 8SFS'!Q46","v":0}]
["Form 8SFS","Stmt of C&S Uncon GEN / CON","8SFS2e","Change in Non-Admitted Assets",{"$f":"'Form 8SFS'!G48","v":0},null,{"$f":"'Form 8SFS'!I48","v":0},null,{"$f":"'Form 8SFS'!O48","v":0},null,{"$f":"'Form 8SFS'!Q48","v":0}]
["Form 8SFS","Stmt of C&S Uncon GEN / CON","8SFS2f","Change in Real Estate",{"$f":"'Form 8SFS'!G50","v":0},null,{"$f":"'Form 8SFS'!I50","v":0},null,{"$f":"'Form 8SFS'!O50","v":0},null,{"$f":"'Form 8SFS'!Q50","v":0}]
["Form 8SFS","Stmt of C&S Uncon GEN / CON","8SFS2g","Change in Other Statutory Capital",{"$f":"'Form 8SFS'!G52","v":0},null,{"$f":"'Form 8SFS'!I52","v":0},null,{"$f":"'Form 8SFS'!O52","v":0},null,{"$f":"'Form 8SFS'!Q52","v":0}]
["Form 8SFS","Stmt of C&S Uncon GEN / CON","8SFS3","Minority Interest",{"$f":"'Form 8SFS'!G56","v":0},null,{"$f":"'Form 8SFS'!I56","v":0},null,{"$f":"'Form 8SFS'!O56","v":0},null,{"$f":"'Form 8SFS'!Q56","v":0}]
[]
["Form 8SFS","Stmt of C&S Uncon LT","8SFS1a","Common Stock",{"$f":"'Form 8SFS'!K11","v":0},null,{"$f":"'Form 8SFS'!M11","v":0}]
["Form 8SFS","Stmt of C&S Uncon LT","8SFS1b","Contributed Surplus",{"$f":"'Form 8SFS'!K29","v":0},null,{"$f":"'Form 8SFS'!M29","v":0}]
["Form 8SFS","Stmt of C&S Uncon LT","8SFS1ci","Other Fixed Capital - Hybrid Instruments",{"$f":"'Form 8SFS'!K32","v":0},null,{"$f":"'Form 8SFS'!M32","v":0}]
["Form 8SFS","Stmt of C&S Uncon LT","8SFS1cii","Other Fixed Capital - Guarantees & Others",{"$f":"'Form 8SFS'!K33","v":0},null,{"$f":"'Form 8SFS'!M33","v":0}]
["Form 8SFS","Stmt of C&S Uncon LT","8SFS2a","Statutory Surplus - Beginning of Year",{"$f":"'Form 8SFS'!K40","v":0},null,{"$f":"'Form 8SFS'!M40","v":0}]
["Form 8SFS","Stmt of C&S Uncon LT","8SFS2c","Dividends",{"$f":"'Form 8SFS'!K44","v":0},null,{"$f":"'Form 8SFS'!M44","v":0}]
["Form 8SFS","Stmt of C&S Uncon LT","8SFS2d","Unrealized Change in Investments",{"$f":"'Form 8SFS'!K46","v":0},null,{"$f":"'Form 8SFS'!M46","v":0}]
["Form 8SFS","Stmt of C&S Uncon LT","8SFS2e","Change in Non-Admitted Assets",{"$f":"'Form 8SFS'!K48","v":0},null,{"$f":"'Form 8SFS'!M48","v":0}]
["Form 8SFS","Stmt of C&S Uncon LT","8SFS2f","Change in Real Estate",{"$f":"'Form 8SFS'!K50","v":0},null,{"$f":"'Form 8SFS'!M50","v":0}]
["Form 8SFS","Stmt of C&S Uncon LT","8SFS2g","Change in Other Statutory Capital",{"$f":"'Form 8SFS'!K52","v":0},null,{"$f":"'Form 8SFS'!M52","v":0}]
["Form 8SFS","Stmt of C&S Uncon LT","8SFS3","Minority Interest",{"$f":"'Form 8SFS'!K56","v":0},null,{"$f":"'Form 8SFS'!M56","v":0}]
[]
[null,null,null,"IFRS Balance Sheet"]
["Form 1ASFS","Balance Sheet GEN/CON","1ASFS1","Cash and Cash Equivalents",{"$f":"'Form 1ASFS'!E10","v":0},null,{"$f":"'Form 1ASFS'!G10","v":0},null,{"$f":"'Form 1ASFS'!M10","v":0},null,{"$f":"'Form 1ASFS'!O10","v":0}]
["Form 1ASFS","Balance Sheet GEN/CON","1ASFS2ai","Quoted - Bonds - Held to Maturity",{"$f":"'Form 1ASFS'!E14","v":0},null,{"$f":"'Form 1ASFS'!G14","v":0},null,{"$f":"'Form 1ASFS'!M14","v":0},null,{"$f":"'Form 1ASFS'!O14","v":0}]
["Form 1ASFS","Balance Sheet GEN/CON","1ASFS2aii","Quoted - Bonds - Other",{"$f":"'Form 1ASFS'!E15","v":0},null,{"$f":"'Form 1ASFS'!G15","v":0},null,{"$f":"'Form 1ASFS'!M15","v":0},null,{"$f":"'Form 1ASFS'!O15","v":0}]
["Form 1ASFS","Balance Sheet GEN/CON","1ASFS2ci","Quoted - Equities - Common Stocks",{"$f":"'Form 1ASFS'!E18","v":0},null,{"$f":"'Form 1ASFS'!G18","v":0},null,{"$f":"'Form 1ASFS'!M18","v":0},null,{"$f":"'Form 1ASFS'!O18","v":0}]
["Form 1ASFS","Balance Sheet GEN/CON","1ASFS2cii","Quoted - Equities - Preferred Stocks",{"$f":"'Form 1ASFS'!E19","v":0},null,{"$f":"'Form 1ASFS'!G19","v":0},null,{"$f":"'Form 1ASFS'!M19","v":0},null,{"$f":"'Form 1ASFS'!O19","v":0}]
["Form 1ASFS","Balance Sheet GEN/CON","1ASFS2ciii","Quoted - Equities - Mutual Funds",{"$f":"'Form 1ASFS'!E20","v":0},null,{"$f":"'Form 1ASFS'!G20","v":0},null,{"$f":"'Form 1ASFS'!M20","v":0},null,{"$f":"'Form 1ASFS'!O20","v":0}]
["Form 1ASFS","Balance Sheet GEN/CON","1ASFS2e","Quoted - Other Investments",{"$f":"'Form 1ASFS'!E22","v":0},null,{"$f":"'Form 1ASFS'!G22","v":0},null,{"$f":"'Form 1ASFS'!M22","v":0},null,{"$f":"'Form 1ASFS'!O22","v":0}]
["Form 1ASFS","Balance Sheet GEN/CON","1ASFS3ai","Unquoted - Bonds - Held to Maturity",{"$f":"'Form 1ASFS'!E27","v":0},null,{"$f":"'Form 1ASFS'!G27","v":0},null,{"$f":"'Form 1ASFS'!M27","v":0},null,{"$f":"'Form 1ASFS'!O27","v":0}]
["Form 1ASFS","Balance Sheet GEN/CON","1ASFS3aii","Unquoted - Bonds - Other",{"$f":"'Form 1ASFS'!E28","v":0},null,{"$f":"'Form 1ASFS'!G28","v":0},null,{"$f":"'Form 1ASFS'!M28","v":0},null,{"$f":"'Form 1ASFS'!O28","v":0}]
["Form 1ASFS","Balance Sheet GEN/CON","1ASFS3ci","Unquoted - Equities - Common Stocks",{"$f":"'Form 1ASFS'!E31","v":0},null,{"$f":"'Form 1ASFS'!G31","v":0},null,{"$f":"'Form 1ASFS'!M31","v":0},null,{"$f":"'Form 1ASFS'!O31","v":0}]
["Form 1ASFS","Balance Sheet GEN/CON","1ASFS3cii","Unquoted - Equities - Preferred Stocks",{"$f":"'Form 1ASFS'!E32","v":0},null,{"$f":"'Form 1ASFS'!G32","v":0},null,{"$f":"'Form 1ASFS'!M32","v":0},null,{"$f":"'Form 1ASFS'!O32","v":0}]
["Form 1ASFS","Balance Sheet GEN/CON","1ASFS3ciii","Unquoted - Equities - Mutual Funds",{"$f":"'Form 1ASFS'!E33","v":0},null,{"$f":"'Form 1ASFS'!G33","v":0},null,{"$f":"'Form 1ASFS'!M33","v":0},null,{"$f":"'Form 1ASFS'!O33","v":0}]
["Form 1ASFS","Balance Sheet GEN/CON","1ASFS3e","Unquoted - Other Investments",{"$f":"'Form 1ASFS'!E35","v":0},null,{"$f":"'Form 1ASFS'!G35","v":0},null,{"$f":"'Form 1ASFS'!M35","v":0},null,{"$f":"'Form 1ASFS'!O35","v":0}]
["Form 1ASFS","Balance Sheet GEN/CON","1ASFS4a","Inv. In Affiliates - Unregulated Ancillary",{"$f":"'Form 1ASFS'!E39","v":0},null,{"$f":"'Form 1ASFS'!G39","v":0},null,{"$f":"'Form 1ASFS'!M39","v":0},null,{"$f":"'Form 1ASFS'!O39","v":0}]
["Form 1ASFS","Balance Sheet GEN/CON","1ASFS4b","Inv. In Affiliates - Unregulated Non-Fin. Oper.",{"$f":"'Form 1ASFS'!E40","v":0},null,{"$f":"'Form 1ASFS'!G40","v":0},null,{"$f":"'Form 1ASFS'!M40","v":0},null,{"$f":"'Form 1ASFS'!O40","v":0}]
["Form 1ASFS","Balance Sheet GEN/CON","1ASFS4c","Inv. In Affiliates - Unregulated Fin. Operating",{"$f":"'Form 1ASFS'!E41","v":0},null,{"$f":"'Form 1ASFS'!G41","v":0},null,{"$f":"'Form 1ASFS'!M41","v":0},null,{"$f":"'Form 1ASFS'!O41","v":0}]
["Form 1ASFS","Balance Sheet GEN/CON","1ASFS4d","Inv. In Affiliates - Regulated Non-Insurance",{"$f":"'Form 1ASFS'!E42","v":0},null,{"$f":"'Form 1ASFS'!G42","v":0},null,{"$f":"'Form 1ASFS'!M42","v":0},null,{"$f":"'Form 1ASFS'!O42","v":0}]
["Form 1ASFS","Balance Sheet GEN/CON","1ASFS4e","Inv. In Affiliates - Regulated Insurance",{"$f":"'Form 1ASFS'!E43","v":0},null,{"$f":"'Form 1ASFS'!G43","v":0},null,{"$f":"'Form 1ASFS'!M43","v":0},null,{"$f":"'Form 1ASFS'!O43","v":0}]
["Form 1ASFS","Balance Sheet GEN/CON","1ASFS4g","Advances To Affiliates",{"$f":"'Form 1ASFS'!E45","v":0},null,{"$f":"'Form 1ASFS'!G45","v":0},null,{"$f":"'Form 1ASFS'!M45","v":0},null,{"$f":"'Form 1ASFS'!O45","v":0}]
["Form 1ASFS","Balance Sheet GEN/CON","1ASFS5a","Inv. In Mortg. Loans on Real Estate - 1st Lien",{"$f":"'Form 1ASFS'!E49","v":0},null,{"$f":"'Form 1ASFS'!G49","v":0},null,{"$f":"'Form 1ASFS'!M49","v":0},null,{"$f":"'Form 1ASFS'!O49","v":0}]
["Form 1ASFS","Balance Sheet GEN/CON","1ASFS5b","Inv. In Mortg. Loans on Real Estate - Other",{"$f":"'Form 1ASFS'!E50","v":0},null,{"$f":"'Form 1ASFS'!G50","v":0},null,{"$f":"'Form 1ASFS'!M50","v":0},null,{"$f":"'Form 1ASFS'!O50","v":0}]
["Form 1ASFS","Balance Sheet GEN/CON","1ASFS7a","Real Estate - Occupied by Company",{"$f":"'Form 1ASFS'!E54","v":0},null,{"$f":"'Form 1ASFS'!G54","v":0},null,{"$f":"'Form 1ASFS'!M54","v":0},null,{"$f":"'Form 1ASFS'!O54","v":0}]
["Form 1ASFS","Balance Sheet GEN/CON","1ASFS7b","Real Estate - Other",{"$f":"'Form 1ASFS'!E55","v":0},null,{"$f":"'Form 1ASFS'!G55","v":0},null,{"$f":"'Form 1ASFS'!M55","v":0},null,{"$f":"'Form 1ASFS'!O55","v":0}]
["Form 1ASFS","Balance Sheet GEN/CON","1ASFS8","Collateral Loans",{"$f":"'Form 1ASFS'!E58","v":0},null,{"$f":"'Form 1ASFS'!G58","v":0},null,{"$f":"'Form 1ASFS'!M58","v":0},null,{"$f":"'Form 1ASFS'!O58","v":0}]
["Form 1ASFS","Balance Sheet GEN/CON","1ASFS9","Investment Income Due and Accrued",{"$f":"'Form 1ASFS'!E60","v":0},null,{"$f":"'Form 1ASFS'!G60","v":0},null,{"$f":"'Form 1ASFS'!M60","v":0},null,{"$f":"'Form 1ASFS'!O60","v":0}]
["Form 1ASFS","Balance Sheet GEN/CON","1ASFS10","Accounts Receivable",{"$f":"'Form 1ASFS'!E62","v":0},null,{"$f":"'Form 1ASFS'!G62","v":0},null,{"$f":"'Form 1ASFS'!M62","v":0},null,{"$f":"'Form 1ASFS'!O62","v":0}]
["Form 1ASFS","Balance Sheet GEN/CON","1ASFS11a","Insurance Contract Assets",{"$f":"'Form 1ASFS'!E65","v":0},null,{"$f":"'Form 1ASFS'!G65","v":0},null,{"$f":"'Form 1ASFS'!M65","v":0},null,{"$f":"'Form 1ASFS'!O65","v":0}]
["Form 1ASFS","Balance Sheet GEN/CON","1ASFS11b","Reinsurance Contract Assets",{"$f":"'Form 1ASFS'!E66","v":0},null,{"$f":"'Form 1ASFS'!G66","v":0},null,{"$f":"'Form 1ASFS'!M66","v":0},null,{"$f":"'Form 1ASFS'!O66","v":0}]
["Form 1ASFS","Balance Sheet GEN/CON","1ASFS11c","Investment Contracts with DPF Assets",{"$f":"'Form 1ASFS'!E67","v":0},null,{"$f":"'Form 1ASFS'!G67","v":0},null,{"$f":"'Form 1ASFS'!M67","v":0},null,{"$f":"'Form 1ASFS'!O67","v":0}]
["Form 1ASFS","Balance Sheet GEN/CON","1ASFS13a","Sundry Assets - Derivatives",{"$f":"'Form 1ASFS'!E71","v":0},null,{"$f":"'Form 1ASFS'!G71","v":0},null,{"$f":"'Form 1ASFS'!M71","v":0},null,{"$f":"'Form 1ASFS'!O71","v":0}]
["Form 1ASFS","Balance Sheet GEN/CON","1ASFS13b","Sundry Assets - SAC - LT- Variable Annuities",null,null,null,null,{"$f":"'Form 1ASFS'!M72","v":0},null,{"$f":"'Form 1ASFS'!O72","v":0}]
["Form 1ASFS","Balance Sheet GEN/CON","1ASFS13c","Sundry Assets - SAC - LT- Others",null,null,null,null,{"$f":"'Form 1ASFS'!M73","v":0},null,{"$f":"'Form 1ASFS'!O73","v":0}]
["Form 1ASFS","Balance Sheet GEN/CON","1ASFS13d","Sundry Assets - SAC - General Business",{"$f":"'Form 1ASFS'!E74","v":0},null,{"$f":"'Form 1ASFS'!G74","v":0},null,{"$f":"'Form 1ASFS'!M74","v":0},null,{"$f":"'Form 1ASFS'!O74","v":0}]
["Form 1ASFS","Balance Sheet GEN/CON","1ASFS13e","Sundry Assets - Deposit Assets",{"$f":"'Form 1ASFS'!E75","v":0},null,{"$f":"'Form 1ASFS'!G75","v":0},null,{"$f":"'Form 1ASFS'!M75","v":0},null,{"$f":"'Form 1ASFS'!O75","v":0}]
["Form 1ASFS","Balance Sheet GEN/CON","1ASFS13f","Sundry Assets - Net Rec. for Investments",{"$f":"'Form 1ASFS'!E76","v":0},null,{"$f":"'Form 1ASFS'!G76","v":0},null,{"$f":"'Form 1ASFS'!M76","v":0},null,{"$f":"'Form 1ASFS'!O76","v":0}]
["Form 1ASFS","Balance Sheet GEN/CON","1ASFS13g","Sundry Assets - Other 1",{"$f":"'Form 1ASFS'!E77","v":0},null,{"$f":"'Form 1ASFS'!G77","v":0},null,{"$f":"'Form 1ASFS'!M77","v":0},null,{"$f":"'Form 1ASFS'!O77","v":0}]
["Form 1ASFS","Balance Sheet GEN/CON","1ASFS13h","Sundry Assets - Other 2",{"$f":"'Form 1ASFS'!E78","v":0},null,{"$f":"'Form 1ASFS'!G78","v":0},null,{"$f":"'Form 1ASFS'!M78","v":0},null,{"$f":"'Form 1ASFS'!O78","v":0}]
["Form 1ASFS","Balance Sheet GEN/CON","1ASFS13i","Sundry Assets - Other 3",{"$f":"'Form 1ASFS'!E79","v":0},null,{"$f":"'Form 1ASFS'!G79","v":0},null,{"$f":"'Form 1ASFS'!M79","v":0},null,{"$f":"'Form 1ASFS'!O79","v":0}]
["Form 1ASFS","Balance Sheet GEN/CON","1ASFS14a","Letters of Credit",{"$f":"'Form 1ASFS'!E83","v":0},null,{"$f":"'Form 1ASFS'!G83","v":0},null,{"$f":"'Form 1ASFS'!M83","v":0},null,{"$f":"'Form 1ASFS'!O83","v":0}]
["Form 1ASFS","Balance Sheet GEN/CON","1ASFS14b","Guarantees",{"$f":"'Form 1ASFS'!E84","v":0},null,{"$f":"'Form 1ASFS'!G84","v":0},null,{"$f":"'Form 1ASFS'!M84","v":0},null,{"$f":"'Form 1ASFS'!O84","v":0}]
["Form 1ASFS","Balance Sheet GEN/CON","1ASFS14c","Other Instruments",{"$f":"'Form 1ASFS'!E85","v":0},null,{"$f":"'Form 1ASFS'!G85","v":0},null,{"$f":"'Form 1ASFS'!M85","v":0},null,{"$f":"'Form 1ASFS'!O85","v":0}]
["Form 1ASFS","Balance Sheet GEN/CON","1ASFS15","Total Assets",{"$f":"'Form 1ASFS'!E88","v":0},null,{"$f":"'Form 1ASFS'!G88","v":0},null,{"$f":"'Form 1ASFS'!M88","v":0},null,{"$f":"'Form 1ASFS'!O88","v":0}]
["Form 1ASFS","Balance Sheet GEN/CON","1ASFS17","General Business Insurance Contract Liabilities",{"$f":"'Form 1ASFS'!E94","v":0},null,{"$f":"'Form 1ASFS'!G94","v":0},null,{"$f":"'Form 1ASFS'!M94","v":0},null,{"$f":"'Form 1ASFS'!O94","v":0}]
["Form 1ASFS","Balance Sheet GEN/CON","1ASFS17A","General Business Reinsurance Contract Liabilities",{"$f":"'Form 1ASFS'!E96","v":0},null,{"$f":"'Form 1ASFS'!G96","v":0},null,{"$f":"'Form 1ASFS'!M96","v":0},null,{"$f":"'Form 1ASFS'!O96","v":0}]
["Form 1ASFS","Balance Sheet GEN/CON","1ASFS18","Investment Contracts with DPF Liabilities",{"$f":"'Form 1ASFS'!E98","v":0},null,{"$f":"'Form 1ASFS'!G98","v":0},null,{"$f":"'Form 1ASFS'!M98","v":0},null,{"$f":"'Form 1ASFS'!O98","v":0}]
["Form 1ASFS","Balance Sheet GEN/CON","1ASFS27","Long-Term Business Insurance Contract Liabilities",null,null,null,null,{"$f":"'Form 1ASFS'!M100","v":0},null,{"$f":"'Form 1ASFS'!O100","v":0}]
["Form 1ASFS","Balance Sheet GEN/CON","1ASFS27A","Long-Term Business Reinsurance Contract Liabilities",null,null,null,null,{"$f":"'Form 1ASFS'!M102","v":0},null,{"$f":"'Form 1ASFS'!O102","v":0}]
["Form 1ASFS","Balance Sheet GEN/CON","1ASFS29","Commissions, Expenses and Taxes Payable",{"$f":"'Form 1ASFS'!E106","v":0},null,{"$f":"'Form 1ASFS'!G106","v":0},null,{"$f":"'Form 1ASFS'!M106","v":0},null,{"$f":"'Form 1ASFS'!O106","v":0}]
["Form 1ASFS","Balance Sheet GEN/CON","1ASFS30","Loans and Notes Payable",{"$f":"'Form 1ASFS'!E108","v":0},null,{"$f":"'Form 1ASFS'!G108","v":0},null,{"$f":"'Form 1ASFS'!M108","v":0},null,{"$f":"'Form 1ASFS'!O108","v":0}]
["Form 1ASFS","Balance Sheet GEN/CON","1ASFS31a","Income Taxes Payable",{"$f":"'Form 1ASFS'!E110","v":0},null,{"$f":"'Form 1ASFS'!G110","v":0},null,{"$f":"'Form 1ASFS'!M110","v":0},null,{"$f":"'Form 1ASFS'!O110","v":0}]
["Form 1ASFS","Balance Sheet GEN/CON","1ASFS31b","Deferred Taxes Payable",{"$f":"'Form 1ASFS'!E112","v":0},null,{"$f":"'Form 1ASFS'!G112","v":0},null,{"$f":"'Form 1ASFS'!M112","v":0},null,{"$f":"'Form 1ASFS'!O112","v":0}]
["Form 1ASFS","Balance Sheet GEN/CON","1ASFS32","Amounts Due to Affiliates",{"$f":"'Form 1ASFS'!E114","v":0},null,{"$f":"'Form 1ASFS'!G114","v":0},null,{"$f":"'Form 1ASFS'!M114","v":0},null,{"$f":"'Form 1ASFS'!O114","v":0}]
["Form 1ASFS","Balance Sheet GEN/CON","1ASFS33","Accounts Payable and Accrued Liabilities",{"$f":"'Form 1ASFS'!E116","v":0},null,{"$f":"'Form 1ASFS'!G116","v":0},null,{"$f":"'Form 1ASFS'!M116","v":0},null,{"$f":"'Form 1ASFS'!O116","v":0}]
["Form 1ASFS","Balance Sheet GEN/CON","1ASFS35","Dividends Payable",{"$f":"'Form 1ASFS'!E118","v":0},null,{"$f":"'Form 1ASFS'!G118","v":0},null,{"$f":"'Form 1ASFS'!M118","v":0},null,{"$f":"'Form 1ASFS'!O118","v":0}]
["Form 1ASFS","Balance Sheet GEN/CON","1ASFS36a","Sundry Liabilities - Derivative Instruments",{"$f":"'Form 1ASFS'!E121","v":0},null,{"$f":"'Form 1ASFS'!G121","v":0},null,{"$f":"'Form 1ASFS'!M121","v":0},null,{"$f":"'Form 1ASFS'!O121","v":0}]
["Form 1ASFS","Balance Sheet GEN/CON","1ASFS36b","Sundry Liabilities - Seg. Accounts",{"$f":"'Form 1ASFS'!E122","v":0},null,{"$f":"'Form 1ASFS'!G122","v":0},null,{"$f":"'Form 1ASFS'!M122","v":0},null,{"$f":"'Form 1ASFS'!O122","v":0}]
["Form 1ASFS","Balance Sheet GEN/CON","1ASFS36c","Sundry Liabilities - Deposit Liabilities",{"$f":"'Form 1ASFS'!E123","v":0},null,{"$f":"'Form 1ASFS'!G123","v":0},null,{"$f":"'Form 1ASFS'!M123","v":0},null,{"$f":"'Form 1ASFS'!O123","v":0}]
["Form 1ASFS","Balance Sheet GEN/CON","1ASFS36d","Sundry Liabilities - Investments Purchased",{"$f":"'Form 1ASFS'!E124","v":0},null,{"$f":"'Form 1ASFS'!G124","v":0},null,{"$f":"'Form 1ASFS'!M124","v":0},null,{"$f":"'Form 1ASFS'!O124","v":0}]
["Form 1ASFS","Balance Sheet GEN/CON","1ASFS36e","Sundry Liabilities - Other 1",{"$f":"'Form 1ASFS'!E125","v":0},null,{"$f":"'Form 1ASFS'!G125","v":0},null,{"$f":"'Form 1ASFS'!M125","v":0},null,{"$f":"'Form 1ASFS'!O125","v":0}]
["Form 1ASFS","Balance Sheet GEN/CON","1ASFS36f","Sundry Liabilities - Other 2",{"$f":"'Form 1ASFS'!E126","v":0},null,{"$f":"'Form 1ASFS'!G126","v":0},null,{"$f":"'Form 1ASFS'!M126","v":0},null,{"$f":"'Form 1ASFS'!O126","v":0}]
["Form 1ASFS","Balance Sheet GEN/CON","1ASFS36g","Sundry Liabilities - Other 3",{"$f":"'Form 1ASFS'!E127","v":0},null,{"$f":"'Form 1ASFS'!G127","v":0},null,{"$f":"'Form 1ASFS'!M127","v":0},null,{"$f":"'Form 1ASFS'!O127","v":0}]
["Form 1ASFS","Balance Sheet GEN/CON","1ASFS37a","Letters of Credit",{"$f":"'Form 1ASFS'!E131","v":0},null,{"$f":"'Form 1ASFS'!G131","v":0},null,{"$f":"'Form 1ASFS'!M131","v":0},null,{"$f":"'Form 1ASFS'!O131","v":0}]
["Form 1ASFS","Balance Sheet GEN/CON","1ASFS37b","Guarantees",{"$f":"'Form 1ASFS'!E132","v":0},null,{"$f":"'Form 1ASFS'!G132","v":0},null,{"$f":"'Form 1ASFS'!M132","v":0},null,{"$f":"'Form 1ASFS'!O132","v":0}]
["Form 1ASFS","Balance Sheet GEN/CON","1ASFS37c","Other Instruments",{"$f":"'Form 1ASFS'!E133","v":0},null,{"$f":"'Form 1ASFS'!G133","v":0},null,{"$f":"'Form 1ASFS'!M133","v":0},null,{"$f":"'Form 1ASFS'!O133","v":0}]
[]
["Form 1ASFS","Balance Sheet LT","1ASFS1","Cash and Cash Equivalents",{"$f":"'Form 1ASFS'!I10","v":0},null,{"$f":"'Form 1ASFS'!K10","v":0}]
["Form 1ASFS","Balance Sheet LT","1ASFS2ai","Quoted - Bonds - Held to Maturity",{"$f":"'Form 1ASFS'!I14","v":0},null,{"$f":"'Form 1ASFS'!K14","v":0}]
["Form 1ASFS","Balance Sheet LT","1ASFS2aii","Quoted - Bonds - Other",{"$f":"'Form 1ASFS'!I15","v":0},null,{"$f":"'Form 1ASFS'!K15","v":0}]
["Form 1ASFS","Balance Sheet LT","1ASFS2ci","Quoted - Equities - Common Stocks",{"$f":"'Form 1ASFS'!I18","v":0},null,{"$f":"'Form 1ASFS'!K18","v":0}]
["Form 1ASFS","Balance Sheet LT","1ASFS2cii","Quoted - Equities - Preferred Stocks",{"$f":"'Form 1ASFS'!I19","v":0},null,{"$f":"'Form 1ASFS'!K19","v":0}]
["Form 1ASFS","Balance Sheet LT","1ASFS2ciii","Quoted - Equities - Mutual Funds",{"$f":"'Form 1ASFS'!I20","v":0},null,{"$f":"'Form 1ASFS'!K20","v":0}]
["Form 1ASFS","Balance Sheet LT","1ASFS2e","Quoted - Other Investments",{"$f":"'Form 1ASFS'!I22","v":0},null,{"$f":"'Form 1ASFS'!K22","v":0}]
["Form 1ASFS","Balance Sheet LT","1ASFS3ai","Unquoted - Bonds - Held to Maturity",{"$f":"'Form 1ASFS'!I27","v":0},null,{"$f":"'Form 1ASFS'!K27","v":0}]
["Form 1ASFS","Balance Sheet LT","1ASFS3aii","Unquoted - Bonds - Other",{"$f":"'Form 1ASFS'!I28","v":0},null,{"$f":"'Form 1ASFS'!K28","v":0}]
["Form 1ASFS","Balance Sheet LT","1ASFS3ci","Unquoted - Equities - Common Stocks",{"$f":"'Form 1ASFS'!I31","v":0},null,{"$f":"'Form 1ASFS'!K31","v":0}]
["Form 1ASFS","Balance Sheet LT","1ASFS3cii","Unquoted - Equities - Preferred Stocks",{"$f":"'Form 1ASFS'!I32","v":0},null,{"$f":"'Form 1ASFS'!K32","v":0}]
["Form 1ASFS","Balance Sheet LT","1ASFS3ciii","Unquoted - Equities - Mutual Funds",{"$f":"'Form 1ASFS'!I33","v":0},null,{"$f":"'Form 1ASFS'!K33","v":0}]
["Form 1ASFS","Balance Sheet LT","1ASFS3e","Unquoted - Other Investments",{"$f":"'Form 1ASFS'!I35","v":0},null,{"$f":"'Form 1ASFS'!K35","v":0}]
["Form 1ASFS","Balance Sheet LT","1ASFS4a","Inv. In Affiliates - Unregulated Ancillary",{"$f":"'Form 1ASFS'!I39","v":0},null,{"$f":"'Form 1ASFS'!K39","v":0}]
["Form 1ASFS","Balance Sheet LT","1ASFS4b","Inv. In Affiliates - Unregulated Non-Fin. Oper.",{"$f":"'Form 1ASFS'!I40","v":0},null,{"$f":"'Form 1ASFS'!K40","v":0}]
["Form 1ASFS","Balance Sheet LT","1ASFS4c","Inv. In Affiliates - Unregulated Fin. Operating",{"$f":"'Form 1ASFS'!I41","v":0},null,{"$f":"'Form 1ASFS'!K41","v":0}]
["Form 1ASFS","Balance Sheet LT","1ASFS4d","Inv. In Affiliates - Regulated Non-Insurance",{"$f":"'Form 1ASFS'!I42","v":0},null,{"$f":"'Form 1ASFS'!K42","v":0}]
["Form 1ASFS","Balance Sheet LT","1ASFS4e","Inv. In Affiliates - Regulated Insurance",{"$f":"'Form 1ASFS'!I43","v":0},null,{"$f":"'Form 1ASFS'!K43","v":0}]
["Form 1ASFS","Balance Sheet LT","1ASFS4g","Advances To Affiliates",{"$f":"'Form 1ASFS'!I45","v":0},null,{"$f":"'Form 1ASFS'!K45","v":0}]
["Form 1ASFS","Balance Sheet LT","1ASFS5a","Inv. In Mortg. Loans on Real Estate - 1st Lien",{"$f":"'Form 1ASFS'!I49","v":0},null,{"$f":"'Form 1ASFS'!K49","v":0}]
["Form 1ASFS","Balance Sheet LT","1ASFS5b","Inv. In Mortg. Loans on Real Estate - Other",{"$f":"'Form 1ASFS'!I50","v":0},null,{"$f":"'Form 1ASFS'!K50","v":0}]
["Form 1ASFS","Balance Sheet LT","1ASFS7a","Real Estate - Occupied by Company",{"$f":"'Form 1ASFS'!I54","v":0},null,{"$f":"'Form 1ASFS'!K54","v":0}]
["Form 1ASFS","Balance Sheet LT","1ASFS7b","Real Estate - Other",{"$f":"'Form 1ASFS'!I55","v":0},null,{"$f":"'Form 1ASFS'!K55","v":0}]
["Form 1ASFS","Balance Sheet LT","1ASFS8","Collateral Loans",{"$f":"'Form 1ASFS'!I58","v":0},null,{"$f":"'Form 1ASFS'!K58","v":0}]
["Form 1ASFS","Balance Sheet LT","1ASFS9","Investment Income Due and Accrued",{"$f":"'Form 1ASFS'!I60","v":0},null,{"$f":"'Form 1ASFS'!K60","v":0}]
["Form 1ASFS","Balance Sheet LT","1ASFS10","Accounts Receivable",{"$f":"'Form 1ASFS'!I62","v":0},null,{"$f":"'Form 1ASFS'!K62","v":0}]
["Form 1ASFS","Balance Sheet LT","1ASFS11a","Insurance Contract Assets",{"$f":"'Form 1ASFS'!I65","v":0},null,{"$f":"'Form 1ASFS'!K65","v":0}]
["Form 1ASFS","Balance Sheet LT","1ASFS11b","Reinsurance Contract Assets",{"$f":"'Form 1ASFS'!I66","v":0},null,{"$f":"'Form 1ASFS'!K66","v":0}]
["Form 1ASFS","Balance Sheet LT","1ASFS11c","Investment Contracts with DPF Assets",{"$f":"'Form 1ASFS'!I67","v":0},null,{"$f":"'Form 1ASFS'!K67","v":0}]
["Form 1ASFS","Balance Sheet LT","1ASFS13a","Sundry Assets - Derivatives",{"$f":"'Form 1ASFS'!I71","v":0},null,{"$f":"'Form 1ASFS'!K71","v":0}]
["Form 1ASFS","Balance Sheet LT","1ASFS13b","Sundry Assets - SAC - LT- Variable Annuities",{"$f":"'Form 1ASFS'!I72","v":0},null,{"$f":"'Form 1ASFS'!K72","v":0}]
["Form 1ASFS","Balance Sheet LT","1ASFS13c","Sundry Assets - SAC - LT- Others",{"$f":"'Form 1ASFS'!I73","v":0},null,{"$f":"'Form 1ASFS'!K73","v":0}]
["Form 1ASFS","Balance Sheet LT","1ASFS13e","Sundry Assets - Deposit Assets",{"$f":"'Form 1ASFS'!I75","v":0},null,{"$f":"'Form 1ASFS'!K75","v":0}]
["Form 1ASFS","Balance Sheet LT","1ASFS13f","Sundry Assets - Net Rec. for Investments",{"$f":"'Form 1ASFS'!I76","v":0},null,{"$f":"'Form 1ASFS'!K76","v":0}]
["Form 1ASFS","Balance Sheet LT","1ASFS13g","Sundry Assets - Other 1",{"$f":"'Form 1ASFS'!I77","v":0},null,{"$f":"'Form 1ASFS'!K77","v":0}]
["Form 1ASFS","Balance Sheet LT","1ASFS13h","Sundry Assets - Other 2",{"$f":"'Form 1ASFS'!I78","v":0},null,{"$f":"'Form 1ASFS'!K78","v":0}]
["Form 1ASFS","Balance Sheet LT","1ASFS13i","Sundry Assets - Other 3",{"$f":"'Form 1ASFS'!I79","v":0},null,{"$f":"'Form 1ASFS'!K79","v":0}]
["Form 1ASFS","Balance Sheet LT","1ASFS14a","Letters of Credit",{"$f":"'Form 1ASFS'!I83","v":0},null,{"$f":"'Form 1ASFS'!K83","v":0}]
["Form 1ASFS","Balance Sheet LT","1ASFS14b","Guarantees",{"$f":"'Form 1ASFS'!I84","v":0},null,{"$f":"'Form 1ASFS'!K84","v":0}]
["Form 1ASFS","Balance Sheet LT","1ASFS14c","Other Instruments",{"$f":"'Form 1ASFS'!I85","v":0},null,{"$f":"'Form 1ASFS'!K85","v":0}]
["Form 1ASFS","Balance Sheet LT","1ASFS15","Total Assets",{"$f":"'Form 1ASFS'!I88","v":0},null,{"$f":"'Form 1ASFS'!K88","v":0}]
["Form 1ASFS","Balance Sheet LT","1ASFS18","Investment Contracts with DPF Liabilities",{"$f":"'Form 1ASFS'!I98","v":0},null,{"$f":"'Form 1ASFS'!K98","v":0}]
["Form 1ASFS","Balance Sheet LT","1ASFS27","Long-Term Business Insurance Contract Liabilities",{"$f":"'Form 1ASFS'!I100","v":0},null,{"$f":"'Form 1ASFS'!K100","v":0}]
["Form 1ASFS","Balance Sheet LT","1ASFS27A","Long-Term Business Reinsurance Contract Liabilities",{"$f":"'Form 1ASFS'!I102","v":0},null,{"$f":"'Form 1ASFS'!K102","v":0}]
["Form 1ASFS","Balance Sheet LT","1ASFS29","Commissions, Expenses and Taxes Payable",{"$f":"'Form 1ASFS'!I106","v":0},null,{"$f":"'Form 1ASFS'!K106","v":0}]
["Form 1ASFS","Balance Sheet LT","1ASFS30","Loans and Notes Payable",{"$f":"'Form 1ASFS'!I108","v":0},null,{"$f":"'Form 1ASFS'!K108","v":0}]
["Form 1ASFS","Balance Sheet LT","1ASFS31a","Income Taxes Payable",{"$f":"'Form 1ASFS'!I110","v":0},null,{"$f":"'Form 1ASFS'!K110","v":0}]
["Form 1ASFS","Balance Sheet LT","1ASFS31b","Deferred Taxes Payable",{"$f":"'Form 1ASFS'!I112","v":0},null,{"$f":"'Form 1ASFS'!K112","v":0}]
["Form 1ASFS","Balance Sheet LT","1ASFS32","Amounts Due to Affiliates",{"$f":"'Form 1ASFS'!I114","v":0},null,{"$f":"'Form 1ASFS'!K114","v":0}]
["Form 1ASFS","Balance Sheet LT","1ASFS33","Accounts Payable and Accrued Liabilities",{"$f":"'Form 1ASFS'!I116","v":0},null,{"$f":"'Form 1ASFS'!K116","v":0}]
["Form 1ASFS","Balance Sheet LT","1ASFS35","Dividends Payable",{"$f":"'Form 1ASFS'!I118","v":0},null,{"$f":"'Form 1ASFS'!K118","v":0}]
["Form 1ASFS","Balance Sheet LT","1ASFS36a","Sundry Liabilities - Derivative Instruments",{"$f":"'Form 1ASFS'!I121","v":0},null,{"$f":"'Form 1ASFS'!K121","v":0}]
["Form 1ASFS","Balance Sheet LT","1ASFS36b","Sundry Liabilities - Segregated Accounts",{"$f":"'Form 1ASFS'!I122","v":0},null,{"$f":"'Form 1ASFS'!K122","v":0}]
["Form 1ASFS","Balance Sheet LT","1ASFS36c","Sundry Liabilities - Deposit Liabilities",{"$f":"'Form 1ASFS'!I123","v":0},null,{"$f":"'Form 1ASFS'!K123","v":0}]
["Form 1ASFS","Balance Sheet LT","1ASFS36d","Sundry Liabilities - Investments Purchased",{"$f":"'Form 1ASFS'!I124","v":0},null,{"$f":"'Form 1ASFS'!K124","v":0}]
["Form 1ASFS","Balance Sheet LT","1ASFS36e","Sundry Liabilities - Other 1",{"$f":"'Form 1ASFS'!I125","v":0},null,{"$f":"'Form 1ASFS'!K125","v":0}]
["Form 1ASFS","Balance Sheet LT","1ASFS36f","Sundry Liabilities - Other 2",{"$f":"'Form 1ASFS'!I126","v":0},null,{"$f":"'Form 1ASFS'!K126","v":0}]
["Form 1ASFS","Balance Sheet LT","1ASFS36g","Sundry Liabilities - Other 3",{"$f":"'Form 1ASFS'!I127","v":0},null,{"$f":"'Form 1ASFS'!K127","v":0}]
["Form 1ASFS","Balance Sheet LT","1ASFS37a","Letters of Credit",{"$f":"'Form 1ASFS'!I131","v":0},null,{"$f":"'Form 1ASFS'!K131","v":0}]
["Form 1ASFS","Balance Sheet LT","1ASFS37b","Guarantees",{"$f":"'Form 1ASFS'!I132","v":0},null,{"$f":"'Form 1ASFS'!K132","v":0}]
["Form 1ASFS","Balance Sheet LT","1ASFS37c","Other Instruments",{"$f":"'Form 1ASFS'!I133","v":0},null,{"$f":"'Form 1ASFS'!K133","v":0}]
[]
["Form 1ASFS","Form 1ASFS","Form 1ASFS","Premium Receivable - in course of collection",null,null,null,null,{"$f":"'Form 1ASFS'!M155","v":0},null,{"$f":"'Form 1ASFS'!O155","v":0}]
["Form 1ASFS","Form 1ASFS","Form 1ASFS","Premium Receivable - Deferred not yet due",null,null,null,null,{"$f":"'Form 1ASFS'!M156","v":0},null,{"$f":"'Form 1ASFS'!O156","v":0}]
["Form 1ASFS","Form 1ASFS","Form 1ASFS","Premium Receivable - receivable from retrocessional contracts",null,null,null,null,{"$f":"'Form 1ASFS'!M157","v":0},null,{"$f":"'Form 1ASFS'!O157","v":0}]
["Form 1ASFS","Form 1ASFS","Form 1ASFS","Premium Receivable - Total",null,null,null,null,{"$f":"'Form 1ASFS'!M158","v":0},null,{"$f":"'Form 1ASFS'!O158","v":0}]
["Form 1ASFS","Form 1ASFS","Form 1ASFS","Reinsurance Balances Receivable",null,null,null,null,{"$f":"'Form 1ASFS'!M160","v":0},null,{"$f":"'Form 1ASFS'!O160","v":0}]
["Form 1ASFS","Form 1ASFS","Form 1ASFS","Funds Held by Ceding Reinsurers",null,null,null,null,{"$f":"'Form 1ASFS'!M162","v":0},null,{"$f":"'Form 1ASFS'!O162","v":0}]
["Form 1ASFS","Form 1ASFS","Form 1ASFS","Line 10 - Collaterized Balances",null,null,null,null,{"$f":"'Form 1ASFS'!M164","v":0},null,{"$f":"'Form 1ASFS'!O164","v":0}]
["Form 1ASFS","Form 1ASFS","Form 1ASFS","Line 13(a) Natue of Sundry Assets",null,null,null,null,{"$f":"'Form 1ASFS'!M167","v":0}]
["Form 1ASFS","Form 1ASFS","Form 1ASFS","Line 13(b)(i) Description of Derivatives policies",null,null,null,null,{"$f":"'Form 1ASFS'!M168","v":0}]
["Form 1ASFS","Form 1ASFS","Form 1ASFS","Line 13(b)(ii) MV and Nominal Exposure of derivatives",null,null,null,null,{"$f":"'Form 1ASFS'!M169","v":0}]
["Form 1ASFS","Notes","Form 1ASFS","Line 15 - Policy. Oblig. - Cash",null,null,null,null,{"$f":"'Form 1ASFS'!M174","v":0},null,{"$f":"'Form 1ASFS'!O174","v":0}]
["Form 1ASFS","Notes","Form 1ASFS","Line 15 - Policy. Oblig. - Quoted. Inv.",null,null,null,null,{"$f":"'Form 1ASFS'!M175","v":0},null,{"$f":"'Form 1ASFS'!O175","v":0}]
["Form 1ASFS","Notes","Form 1ASFS","Line 15 - Policy. Oblig. - Unquoted. Inv.",null,null,null,null,{"$f":"'Form 1ASFS'!M176","v":0},null,{"$f":"'Form 1ASFS'!O176","v":0}]
["Form 1ASFS","Notes","Form 1ASFS","Line 15 - Policy. Oblig. - Other Assets",null,null,null,null,{"$f":"'Form 1ASFS'!M178","v":0},null,{"$f":"'Form 1ASFS'!O178","v":0}]
["Form 1ASFS","Notes","Form 1ASFS","Line 15 - Policy. Oblig. - Total",null,null,null,null,{"$f":"'Form 1ASFS'!M179","v":0},null,{"$f":"'Form 1ASFS'!O179","v":0}]
["Form 1ASFS","Notes","Form 1ASFS","Line 15 - Other - Cash",null,null,null,null,{"$f":"'Form 1ASFS'!M184","v":0},null,{"$f":"'Form 1ASFS'!O184","v":0}]
["Form 1ASFS","Notes","Form 1ASFS","Line 15 - Other - Quoted. Inv.",null,null,null,null,{"$f":"'Form 1ASFS'!M185","v":0},null,{"$f":"'Form 1ASFS'!O185","v":0}]
["Form 1ASFS","Notes","Form 1ASFS","Line 15 - Other - Unquoted. Inv.",null,null,null,null,{"$f":"'Form 1ASFS'!M186","v":0},null,{"$f":"'Form 1ASFS'!O186","v":0}]
["Form 1ASFS","Notes","Form 1ASFS","Line 15 - Other - Other Assets",null,null,null,null,{"$f":"'Form 1ASFS'!M187","v":0},null,{"$f":"'Form 1ASFS'!O187","v":0}]
["Form 1ASFS","Notes","Form 1ASFS","Line 15 - Other - Total",null,null,null,null,{"$f":"'Form 1ASFS'!M188","v":0},null,{"$f":"'Form 1ASFS'!O188","v":0}]
["Form 1ASFS","Notes","Form 1ASFS","Line 36(a) Natue of Sundry Liabilities",null,null,null,null,{"$f":"'Form 1ASFS'!M191","v":0}]
["Form 1ASFS","Notes","Form 1ASFS","Line 13(b)(i) Description of Derivatives policies",null,null,null,null,{"$f":"'Form 1ASFS'!M192","v":0}]
["Form 1ASFS","Notes","Form 1ASFS","Line 13(b)(ii) MV and Nominal Exposure of derivatives",null,null,null,null,{"$f":"'Form 1ASFS'!M193","v":0}]
["Form 1ASFS","Notes","Form 1ASFS","Line 37 - LOC's & Guarantees",null,null,null,null,{"$f":"'Form 1ASFS'!M195","v":0},null,{"$f":"'Form 1ASFS'!O195","v":0}]
["Form 1ASFS","Notes","Form 1ASFS","L17 - PAA Exc. Loss Comp - Open Assets",null,null,null,null,{"$f":"'Form 1ASFS'!E201","v":0}]
["Form 1ASFS","Notes","Form 1ASFS","L17 - PAA Exc. Loss Comp - Open Liabilities",null,null,null,null,{"$f":"'Form 1ASFS'!E202","v":0}]
["Form 1ASFS","Notes","Form 1ASFS","L17 - PAA Exc. Loss Comp - Net Open",null,null,null,null,{"$f":"'Form 1ASFS'!E203","v":0}]
["Form 1ASFS","Notes","Form 1ASFS","L17 - PAA Exc. Loss Comp - Insurance Revenue",null,null,null,null,{"$f":"'Form 1ASFS'!E207","v":0}]
["Form 1ASFS","Notes","Form 1ASFS","L17 - PAA Exc. Loss Comp - Amort. Cash Flows",null,null,null,null,{"$f":"'Form 1ASFS'!E210","v":0}]
["Form 1ASFS","Notes","Form 1ASFS","L17 - PAA Exc. Loss Comp - Incurred Claims",null,null,null,null,{"$f":"'Form 1ASFS'!E211","v":0}]
["Form 1ASFS","Notes","Form 1ASFS","L17 - PAA Exc. Loss Comp - Losses on enerous contracts",null,null,null,null,{"$f":"'Form 1ASFS'!E212","v":0}]
["Form 1ASFS","Notes","Form 1ASFS","L17 - PAA Exc. Loss Comp - Adj to Liabilities for Incurred Claims",null,null,null,null,{"$f":"'Form 1ASFS'!E213","v":0}]
["Form 1ASFS","Notes","Form 1ASFS","L17 - PAA Exc. Loss Comp - Total Insurance Service Expenses",null,null,null,null,{"$f":"'Form 1ASFS'!E214","v":0}]
["Form 1ASFS","Notes","Form 1ASFS","L17 - PAA Exc. Loss Comp - Investment Components",null,null,null,null,{"$f":"'Form 1ASFS'!E216","v":0}]
["Form 1ASFS","Notes","Form 1ASFS","L17 - PAA Exc. Loss Comp - Insurance Service Results",null,null,null,null,{"$f":"'Form 1ASFS'!E217","v":0}]
["Form 1ASFS","Notes","Form 1ASFS","L17 - PAA Exc. Loss Comp - Net finance expenses",null,null,null,null,{"$f":"'Form 1ASFS'!E219","v":0}]
["Form 1ASFS","Notes","Form 1ASFS","L17 - PAA Exc. Loss Comp - Foreign Exchange",null,null,null,null,{"$f":"'Form 1ASFS'!E220","v":0}]
["Form 1ASFS","Notes","Form 1ASFS","L17 - PAA Exc. Loss Comp - Change in Profit or Loss",null,null,null,null,{"$f":"'Form 1ASFS'!E221","v":0}]
["Form 1ASFS","Notes","Form 1ASFS","L17 - PAA Exc. Loss Comp - CF Premium Received",null,null,null,null,{"$f":"'Form 1ASFS'!E224","v":0}]
["Form 1ASFS","Notes","Form 1ASFS","L17 - PAA Exc. Loss Comp - CF Insurance Acquisition",null,null,null,null,{"$f":"'Form 1ASFS'!E225","v":0}]
["Form 1ASFS","Notes","Form 1ASFS","L17 - PAA Exc. Loss Comp - CF Claims Paid",null,null,null,null,{"$f":"'Form 1ASFS'!E226","v":0}]
["Form 1ASFS","Notes","Form 1ASFS","L17 - PAA Exc. Loss Comp - Total CF",null,null,null,null,{"$f":"'Form 1ASFS'!E227","v":0}]
["Form 1ASFS","Notes","Form 1ASFS","L17 - PAA Exc. Loss Comp - Contracts Trans. Acquisition Sub.",null,null,null,null,{"$f":"'Form 1ASFS'!E228","v":0}]
["Form 1ASFS","Notes","Form 1ASFS","L17 - PAA Exc. Loss Comp - Contracts Trans. Disposal Sub.",null,null,null,null,{"$f":"'Form 1ASFS'!E229","v":0}]
["Form 1ASFS","Notes","Form 1ASFS","L17 - PAA Exc. Loss Comp - Net Closing Balance",null,null,null,null,{"$f":"'Form 1ASFS'!E230","v":0}]
["Form 1ASFS","Notes","Form 1ASFS","L17 - PAA Exc. Loss Comp - Closing Assets",null,null,null,null,{"$f":"'Form 1ASFS'!E232","v":0}]
["Form 1ASFS","Notes","Form 1ASFS","L17 - PAA Exc. Loss Comp - Closing Liabilities",null,null,null,null,{"$f":"'Form 1ASFS'!E233","v":0}]
["Form 1ASFS","Notes","Form 1ASFS","L17 - PAA Exc. Loss Comp - Net Closing Balance",null,null,null,null,{"$f":"'Form 1ASFS'!E234","v":0}]
["Form 1ASFS","Notes","Form 1ASFS","L17 - PAA Loss Comp - Open Assets",null,null,null,null,{"$f":"'Form 1ASFS'!G201","v":0}]
["Form 1ASFS","Notes","Form 1ASFS","L17 - PAA Loss Comp - Open Liabilities",null,null,null,null,{"$f":"'Form 1ASFS'!G202","v":0}]
["Form 1ASFS","Notes","Form 1ASFS","L17 - PAA Loss Comp - Net Open",null,null,null,null,{"$f":"'Form 1ASFS'!G203","v":0}]
["Form 1ASFS","Notes","Form 1ASFS","L17 - PAA Loss Comp - Insurance Revenue",null,null,null,null,{"$f":"'Form 1ASFS'!G207","v":0}]
["Form 1ASFS","Notes","Form 1ASFS","L17 - PAA Loss Comp - Amort. Cash Flows",null,null,null,null,{"$f":"'Form 1ASFS'!G210","v":0}]
["Form 1ASFS","Notes","Form 1ASFS","L17 - PAA Loss Comp - Incurred Claims",null,null,null,null,{"$f":"'Form 1ASFS'!G211","v":0}]
["Form 1ASFS","Notes","Form 1ASFS","L17 - PAA Loss Comp - Losses on enerous contracts",null,null,null,null,{"$f":"'Form 1ASFS'!G212","v":0}]
["Form 1ASFS","Notes","Form 1ASFS","L17 - PAA Loss Comp - Adj to Liabilities for Incurred Claims",null,null,null,null,{"$f":"'Form 1ASFS'!G213","v":0}]
["Form 1ASFS","Notes","Form 1ASFS","L17 - PAA Loss Comp - Total Insurance Service Expenses",null,null,null,null,{"$f":"'Form 1ASFS'!G214","v":0}]
["Form 1ASFS","Notes","Form 1ASFS","L17 - PAA Loss Comp - Investment Components",null,null,null,null,{"$f":"'Form 1ASFS'!G216","v":0}]
["Form 1ASFS","Notes","Form 1ASFS","L17 - PAA Loss Comp - Insurance Service Results",null,null,null,null,{"$f":"'Form 1ASFS'!G217","v":0}]
["Form 1ASFS","Notes","Form 1ASFS","L17 - PAA Loss Comp - Net finance expenses",null,null,null,null,{"$f":"'Form 1ASFS'!G219","v":0}]
["Form 1ASFS","Notes","Form 1ASFS","L17 - PAA Loss Comp - Foreign Exchange",null,null,null,null,{"$f":"'Form 1ASFS'!G220","v":0}]
["Form 1ASFS","Notes","Form 1ASFS","L17 - PAA Loss Comp - Change in Profit or Loss",null,null,null,null,{"$f":"'Form 1ASFS'!G221","v":0}]
["Form 1ASFS","Notes","Form 1ASFS","L17 - PAA Loss Comp - CF Premium Received",null,null,null,null,{"$f":"'Form 1ASFS'!G224","v":0}]
["Form 1ASFS","Notes","Form 1ASFS","L17 - PAA Loss Comp - CF Insurance Acquisition",null,null,null,null,{"$f":"'Form 1ASFS'!G225","v":0}]
["Form 1ASFS","Notes","Form 1ASFS","L17 - PAA Loss Comp - CF Claims Paid",null,null,null,null,{"$f":"'Form 1ASFS'!G226","v":0}]
["Form 1ASFS","Notes","Form 1ASFS","L17 - PAA Loss Comp - Total CF",null,null,null,null,{"$f":"'Form 1ASFS'!G227","v":0}]
["Form 1ASFS","Notes","Form 1ASFS","L17 - PAA Loss Comp - Contracts Trans. Acquisition Sub.",null,null,null,null,{"$f":"'Form 1ASFS'!G228","v":0}]
["Form 1ASFS","Notes","Form 1ASFS","L17 - PAA Loss Comp - Contracts Trans. Disposal Sub.",null,null,null,null,{"$f":"'Form 1ASFS'!G229","v":0}]
["Form 1ASFS","Notes","Form 1ASFS","L17 - PAA Loss Comp - Net Closing Balance",null,null,null,null,{"$f":"'Form 1ASFS'!G230","v":0}]
["Form 1ASFS","Notes","Form 1ASFS","L17 - PAA Loss Comp - Closing Assets",null,null,null,null,{"$f":"'Form 1ASFS'!G232","v":0}]
["Form 1ASFS","Notes","Form 1ASFS","L17 - PAA Loss Comp - Closing Liabilities",null,null,null,null,{"$f":"'Form 1ASFS'!G233","v":0}]
["Form 1ASFS","Notes","Form 1ASFS","L17 - PAA Loss Comp - Net Closing Balance",null,null,null,null,{"$f":"'Form 1ASFS'!G234","v":0}]
["Form 1ASFS","Notes","Form 1ASFS","L17 - GMM Liab. for Incurred - Open Assets",null,null,null,null,{"$f":"'Form 1ASFS'!I201","v":0}]
["Form 1ASFS","Notes","Form 1ASFS","L17 - GMM Liab. for Incurred - Open Liabilities",null,null,null,null,{"$f":"'Form 1ASFS'!I202","v":0}]
["Form 1ASFS","Notes","Form 1ASFS","L17 - GMM Liab. for Incurred - Net Open",null,null,null,null,{"$f":"'Form 1ASFS'!I203","v":0}]
["Form 1ASFS","Notes","Form 1ASFS","L17 - GMM Liab. for Incurred - Insurance Revenue",null,null,null,null,{"$f":"'Form 1ASFS'!I207","v":0}]
["Form 1ASFS","Notes","Form 1ASFS","L17 - GMM Liab. for Incurred - Amort. Cash Flows",null,null,null,null,{"$f":"'Form 1ASFS'!I210","v":0}]
["Form 1ASFS","Notes","Form 1ASFS","L17 - GMM Liab. for Incurred - Incurred Claims",null,null,null,null,{"$f":"'Form 1ASFS'!I211","v":0}]
["Form 1ASFS","Notes","Form 1ASFS","L17 - GMM Liab. for Incurred - Losses on enerous contracts",null,null,null,null,{"$f":"'Form 1ASFS'!I212","v":0}]
["Form 1ASFS","Notes","Form 1ASFS","L17 - GMM Liab. for Incurred - Adj to Liabilities for Incurred Claims",null,null,null,null,{"$f":"'Form 1ASFS'!I213","v":0}]
["Form 1ASFS","Notes","Form 1ASFS","L17 - GMM Liab. for Incurred - Total Insurance Service Expenses",null,null,null,null,{"$f":"'Form 1ASFS'!I214","v":0}]
["Form 1ASFS","Notes","Form 1ASFS","L17 - GMM Liab. for Incurred - Investment Components",null,null,null,null,{"$f":"'Form 1ASFS'!I216","v":0}]
["Form 1ASFS","Notes","Form 1ASFS","L17 - GMM Liab. for Incurred - Insurance Service Results",null,null,null,null,{"$f":"'Form 1ASFS'!I217","v":0}]
["Form 1ASFS","Notes","Form 1ASFS","L17 - GMM Liab. for Incurred - Net finance expenses",null,null,null,null,{"$f":"'Form 1ASFS'!I219","v":0}]
["Form 1ASFS","Notes","Form 1ASFS","L17 - GMM Liab. for Incurred - Foreign Exchange",null,null,null,null,{"$f":"'Form 1ASFS'!I220","v":0}]
["Form 1ASFS","Notes","Form 1ASFS","L17 - GMM Liab. for Incurred - Change in Profit or Loss",null,null,null,null,{"$f":"'Form 1ASFS'!I221","v":0}]
["Form 1ASFS","Notes","Form 1ASFS","L17 - GMM Liab. for Incurred - CF Premium Received",null,null,null,null,{"$f":"'Form 1ASFS'!I224","v":0}]
["Form 1ASFS","Notes","Form 1ASFS","L17 - GMM Liab. for Incurred - CF Insurance Acquisition",null,null,null,null,{"$f":"'Form 1ASFS'!I225","v":0}]
["Form 1ASFS","Notes","Form 1ASFS","L17 - GMM Liab. for Incurred - CF Claims Paid",null,null,null,null,{"$f":"'Form 1ASFS'!I226","v":0}]
["Form 1ASFS","Notes","Form 1ASFS","L17 - GMM Liab. for Incurred - Total CF",null,null,null,null,{"$f":"'Form 1ASFS'!I227","v":0}]
["Form 1ASFS","Notes","Form 1ASFS","L17 - GMM Liab. for Incurred - Contracts Trans. Acquisition Sub.",null,null,null,null,{"$f":"'Form 1ASFS'!I228","v":0}]
["Form 1ASFS","Notes","Form 1ASFS","L17 - GMM Liab. for Incurred - Contracts Trans. Disposal Sub.",null,null,null,null,{"$f":"'Form 1ASFS'!I229","v":0}]
["Form 1ASFS","Notes","Form 1ASFS","L17 - GMM Liab. for Incurred - Net Closing Balance",null,null,null,null,{"$f":"'Form 1ASFS'!I230","v":0}]
["Form 1ASFS","Notes","Form 1ASFS","L17 - GMM Liab. for Incurred - Closing Assets",null,null,null,null,{"$f":"'Form 1ASFS'!I232","v":0}]
["Form 1ASFS","Notes","Form 1ASFS","L17 - GMM Liab. for Incurred - Closing Liabilities",null,null,null,null,{"$f":"'Form 1ASFS'!I233","v":0}]
["Form 1ASFS","Notes","Form 1ASFS","L17 - GMM Liab. for Incurred - Net Closing Balance",null,null,null,null,{"$f":"'Form 1ASFS'!I234","v":0}]
["Form 1ASFS","Notes","Form 1ASFS","L17 - GMM PV Cash Flow - Open Assets",null,null,null,null,{"$f":"'Form 1ASFS'!K201","v":0}]
["Form 1ASFS","Notes","Form 1ASFS","L17 - GMM PV Cash Flow - Open Liabilities",null,null,null,null,{"$f":"'Form 1ASFS'!K202","v":0}]
["Form 1ASFS","Notes","Form 1ASFS","L17 - GMM PV Cash Flow - Net Open",null,null,null,null,{"$f":"'Form 1ASFS'!K203","v":0}]
["Form 1ASFS","Notes","Form 1ASFS","L17 - GMM PV Cash Flow - Insurance Revenue",null,null,null,null,{"$f":"'Form 1ASFS'!K207","v":0}]
["Form 1ASFS","Notes","Form 1ASFS","L17 - GMM PV Cash Flow - Amort. Cash Flows",null,null,null,null,{"$f":"'Form 1ASFS'!K210","v":0}]
["Form 1ASFS","Notes","Form 1ASFS","L17 - GMM PV Cash Flow - Incurred Claims",null,null,null,null,{"$f":"'Form 1ASFS'!K211","v":0}]
["Form 1ASFS","Notes","Form 1ASFS","L17 - GMM PV Cash Flow - Losses on enerous contracts",null,null,null,null,{"$f":"'Form 1ASFS'!K212","v":0}]
["Form 1ASFS","Notes","Form 1ASFS","L17 - GMM PV Cash Flow - Adj to Liabilities for Incurred Claims",null,null,null,null,{"$f":"'Form 1ASFS'!K213","v":0}]
["Form 1ASFS","Notes","Form 1ASFS","L17 - GMM PV Cash Flow - Total Insurance Service Expenses",null,null,null,null,{"$f":"'Form 1ASFS'!K214","v":0}]
["Form 1ASFS","Notes","Form 1ASFS","L17 - GMM PV Cash Flow - Investment Components",null,null,null,null,{"$f":"'Form 1ASFS'!K216","v":0}]
["Form 1ASFS","Notes","Form 1ASFS","L17 - GMM PV Cash Flow - Insurance Service Results",null,null,null,null,{"$f":"'Form 1ASFS'!K217","v":0}]
["Form 1ASFS","Notes","Form 1ASFS","L17 - GMM PV Cash Flow - Net finance expenses",null,null,null,null,{"$f":"'Form 1ASFS'!K219","v":0}]
["Form 1ASFS","Notes","Form 1ASFS","L17 - GMM PV Cash Flow - Foreign Exchange",null,null,null,null,{"$f":"'Form 1ASFS'!K220","v":0}]
["Form 1ASFS","Notes","Form 1ASFS","L17 - GMM PV Cash Flow - Change in Profit or Loss",null,null,null,null,{"$f":"'Form 1ASFS'!K221","v":0}]
["Form 1ASFS","Notes","Form 1ASFS","L17 - GMM PV Cash Flow - CF Premium Received",null,null,null,null,{"$f":"'Form 1ASFS'!K224","v":0}]
["Form 1ASFS","Notes","Form 1ASFS","L17 - GMM PV Cash Flow - CF Insurance Acquisition",null,null,null,null,{"$f":"'Form 1ASFS'!K225","v":0}]
["Form 1ASFS","Notes","Form 1ASFS","L17 - GMM PV Cash Flow - CF Claims Paid",null,null,null,null,{"$f":"'Form 1ASFS'!K226","v":0}]
["Form 1ASFS","Notes","Form 1ASFS","L17 - GMM PV Cash Flow - Total CF",null,null,null,null,{"$f":"'Form 1ASFS'!K227","v":0}]
["Form 1ASFS","Notes","Form 1ASFS","L17 - GMM PV Cash Flow - Contracts Trans. Acquisition Sub.",null,null,null,null,{"$f":"'Form 1ASFS'!K228","v":0}]
["Form 1ASFS","Notes","Form 1ASFS","L17 - GMM PV Cash Flow - Contracts Trans. Disposal Sub.",null,null,null,null,{"$f":"'Form 1ASFS'!K229","v":0}]
["Form 1ASFS","Notes","Form 1ASFS","L17 - GMM PV Cash Flow - Net Closing Balance",null,null,null,null,{"$f":"'Form 1ASFS'!K230","v":0}]
["Form 1ASFS","Notes","Form 1ASFS","L17 - GMM PV Cash Flow - Closing Assets",null,null,null,null,{"$f":"'Form 1ASFS'!K232","v":0}]
["Form 1ASFS","Notes","Form 1ASFS","L17 - GMM PV Cash Flow - Closing Liabilities",null,null,null,null,{"$f":"'Form 1ASFS'!K233","v":0}]
["Form 1ASFS","Notes","Form 1ASFS","L17 - GMM PV Cash Flow - Net Closing Balance",null,null,null,null,{"$f":"'Form 1ASFS'!K234","v":0}]
["Form 1ASFS","Notes","Form 1ASFS","L17 - GMM Risk Adj - Open Assets",null,null,null,null,{"$f":"'Form 1ASFS'!M201","v":0}]
["Form 1ASFS","Notes","Form 1ASFS","L17 - GMM Risk Adj - Open Liabilities",null,null,null,null,{"$f":"'Form 1ASFS'!M202","v":0}]
["Form 1ASFS","Notes","Form 1ASFS","L17 - GMM Risk Adj - Net Open",null,null,null,null,{"$f":"'Form 1ASFS'!M203","v":0}]
["Form 1ASFS","Notes","Form 1ASFS","L17 - GMM Risk Adj - Insurance Revenue",null,null,null,null,{"$f":"'Form 1ASFS'!M207","v":0}]
["Form 1ASFS","Notes","Form 1ASFS","L17 - GMM Risk Adj - Amort. Cash Flows",null,null,null,null,{"$f":"'Form 1ASFS'!M210","v":0}]
["Form 1ASFS","Notes","Form 1ASFS","L17 - GMM Risk Adj - Incurred Claims",null,null,null,null,{"$f":"'Form 1ASFS'!M211","v":0}]
["Form 1ASFS","Notes","Form 1ASFS","L17 - GMM Risk Adj - Losses on enerous contracts",null,null,null,null,{"$f":"'Form 1ASFS'!M212","v":0}]
["Form 1ASFS","Notes","Form 1ASFS","L17 - GMM Risk Adj - Adj to Liabilities for Incurred Claims",null,null,null,null,{"$f":"'Form 1ASFS'!M213","v":0}]
["Form 1ASFS","Notes","Form 1ASFS","L17 - GMM Risk Adj - Total Insurance Service Expenses",null,null,null,null,{"$f":"'Form 1ASFS'!M214","v":0}]
["Form 1ASFS","Notes","Form 1ASFS","L17 - GMM Risk Adj - Investment Components",null,null,null,null,{"$f":"'Form 1ASFS'!M216","v":0}]
["Form 1ASFS","Notes","Form 1ASFS","L17 - GMM Risk Adj - Insurance Service Results",null,null,null,null,{"$f":"'Form 1ASFS'!M217","v":0}]
["Form 1ASFS","Notes","Form 1ASFS","L17 - GMM Risk Adj - Net finance expenses",null,null,null,null,{"$f":"'Form 1ASFS'!M219","v":0}]
["Form 1ASFS","Notes","Form 1ASFS","L17 - GMM Risk Adj - Foreign Exchange",null,null,null,null,{"$f":"'Form 1ASFS'!M220","v":0}]
["Form 1ASFS","Notes","Form 1ASFS","L17 - GMM Risk Adj - Change in Profit or Loss",null,null,null,null,{"$f":"'Form 1ASFS'!M221","v":0}]
["Form 1ASFS","Notes","Form 1ASFS","L17 - GMM Risk Adj - CF Premium Received",null,null,null,null,{"$f":"'Form 1ASFS'!M224","v":0}]
["Form 1ASFS","Notes","Form 1ASFS","L17 - GMM Risk Adj - CF Insurance Acquisition",null,null,null,null,{"$f":"'Form 1ASFS'!M225","v":0}]
["Form 1ASFS","Notes","Form 1ASFS","L17 - GMM Risk Adj - CF Claims Paid",null,null,null,null,{"$f":"'Form 1ASFS'!M226","v":0}]
["Form 1ASFS","Notes","Form 1ASFS","L17 - GMM Risk Adj - Total CF",null,null,null,null,{"$f":"'Form 1ASFS'!M227","v":0}]
["Form 1ASFS","Notes","Form 1ASFS","L17 - GMM Risk Adj - Contracts Trans. Acquisition Sub.",null,null,null,null,{"$f":"'Form 1ASFS'!M228","v":0}]
["Form 1ASFS","Notes","Form 1ASFS","L17 - GMM Risk Adj - Contracts Trans. Disposal Sub.",null,null,null,null,{"$f":"'Form 1ASFS'!M229","v":0}]
["Form 1ASFS","Notes","Form 1ASFS","L17 - GMM Risk Adj - Net Closing Balance",null,null,null,null,{"$f":"'Form 1ASFS'!M230","v":0}]
["Form 1ASFS","Notes","Form 1ASFS","L17 - GMM Risk Adj - Closing Assets",null,null,null,null,{"$f":"'Form 1ASFS'!M232","v":0}]
["Form 1ASFS","Notes","Form 1ASFS","L17 - GMM Risk Adj - Closing Liabilities",null,null,null,null,{"$f":"'Form 1ASFS'!M233","v":0}]
["Form 1ASFS","Notes","Form 1ASFS","L17 - GMM Risk Adj - Net Closing Balance",null,null,null,null,{"$f":"'Form 1ASFS'!M234","v":0}]
["Form 1ASFS","Notes","Form 1ASFS","L27 - PAA Exc. Loss Comp - Open Assets",null,null,null,null,{"$f":"'Form 1ASFS'!E241","v":0}]
["Form 1ASFS","Notes","Form 1ASFS","L27 - PAA Exc. Loss Comp - Open Liabilities",null,null,null,null,{"$f":"'Form 1ASFS'!E242","v":0}]
["Form 1ASFS","Notes","Form 1ASFS","L27 - PAA Exc. Loss Comp - Net Open",null,null,null,null,{"$f":"'Form 1ASFS'!E243","v":0}]
["Form 1ASFS","Notes","Form 1ASFS","L27 - PAA Exc. Loss Comp - Insurance Revenue",null,null,null,null,{"$f":"'Form 1ASFS'!E247","v":0}]
["Form 1ASFS","Notes","Form 1ASFS","L27 - PAA Exc. Loss Comp - Amort. Cash Flows",null,null,null,null,{"$f":"'Form 1ASFS'!E250","v":0}]
["Form 1ASFS","Notes","Form 1ASFS","L27 - PAA Exc. Loss Comp - Incurred Claims",null,null,null,null,{"$f":"'Form 1ASFS'!E251","v":0}]
["Form 1ASFS","Notes","Form 1ASFS","L27 - PAA Exc. Loss Comp - Losses on enerous contracts",null,null,null,null,{"$f":"'Form 1ASFS'!E252","v":0}]
["Form 1ASFS","Notes","Form 1ASFS","L27 - PAA Exc. Loss Comp - Adj to Liabilities for Incurred Claims",null,null,null,null,{"$f":"'Form 1ASFS'!E253","v":0}]
["Form 1ASFS","Notes","Form 1ASFS","L27 - PAA Exc. Loss Comp - Total Insurance Service Expenses",null,null,null,null,{"$f":"'Form 1ASFS'!E254","v":0}]
["Form 1ASFS","Notes","Form 1ASFS","L27 - PAA Exc. Loss Comp - Investment Components",null,null,null,null,{"$f":"'Form 1ASFS'!E256","v":0}]
["Form 1ASFS","Notes","Form 1ASFS","L27 - PAA Exc. Loss Comp - Insurance Service Results",null,null,null,null,{"$f":"'Form 1ASFS'!E257","v":0}]
["Form 1ASFS","Notes","Form 1ASFS","L27 - PAA Exc. Loss Comp - Net finance expenses",null,null,null,null,{"$f":"'Form 1ASFS'!E259","v":0}]
["Form 1ASFS","Notes","Form 1ASFS","L27 - PAA Exc. Loss Comp - Foreign Exchange",null,null,null,null,{"$f":"'Form 1ASFS'!E260","v":0}]
["Form 1ASFS","Notes","Form 1ASFS","L27 - PAA Exc. Loss Comp - Change in Profit or Loss",null,null,null,null,{"$f":"'Form 1ASFS'!E261","v":0}]
["Form 1ASFS","Notes","Form 1ASFS","L27 - PAA Exc. Loss Comp - CF Premium Received",null,null,null,null,{"$f":"'Form 1ASFS'!E264","v":0}]
["Form 1ASFS","Notes","Form 1ASFS","L27 - PAA Exc. Loss Comp - CF Insurance Acquisition",null,null,null,null,{"$f":"'Form 1ASFS'!E265","v":0}]
["Form 1ASFS","Notes","Form 1ASFS","L27 - PAA Exc. Loss Comp - CF Claims Paid",null,null,null,null,{"$f":"'Form 1ASFS'!E266","v":0}]
["Form 1ASFS","Notes","Form 1ASFS","L27 - PAA Exc. Loss Comp - Total CF",null,null,null,null,{"$f":"'Form 1ASFS'!E267","v":0}]
["Form 1ASFS","Notes","Form 1ASFS","L27 - PAA Exc. Loss Comp - Contracts Trans. Acquisition Sub.",null,null,null,null,{"$f":"'Form 1ASFS'!E268","v":0}]
["Form 1ASFS","Notes","Form 1ASFS","L27 - PAA Exc. Loss Comp - Contracts Trans. Disposal Sub.",null,null,null,null,{"$f":"'Form 1ASFS'!E269","v":0}]
["Form 1ASFS","Notes","Form 1ASFS","L27 - PAA Exc. Loss Comp - Net Closing Balance",null,null,null,null,{"$f":"'Form 1ASFS'!E270","v":0}]
["Form 1ASFS","Notes","Form 1ASFS","L27 - PAA Exc. Loss Comp - Closing Assets",null,null,null,null,{"$f":"'Form 1ASFS'!E272","v":0}]
["Form 1ASFS","Notes","Form 1ASFS","L27 - PAA Exc. Loss Comp - Closing Liabilities",null,null,null,null,{"$f":"'Form 1ASFS'!E273","v":0}]
["Form 1ASFS","Notes","Form 1ASFS","L27 - PAA Exc. Loss Comp - Net Closing Balance",null,null,null,null,{"$f":"'Form 1ASFS'!E274","v":0}]
["Form 1ASFS","Notes","Form 1ASFS","L27 - PAA Loss Comp - Open Assets",null,null,null,null,{"$f":"'Form 1ASFS'!G241","v":0}]
["Form 1ASFS","Notes","Form 1ASFS","L27 - PAA Loss Comp - Open Liabilities",null,null,null,null,{"$f":"'Form 1ASFS'!G242","v":0}]
["Form 1ASFS","Notes","Form 1ASFS","L27 - PAA Loss Comp - Net Open",null,null,null,null,{"$f":"'Form 1ASFS'!G243","v":0}]
["Form 1ASFS","Notes","Form 1ASFS","L27 - PAA Loss Comp - Insurance Revenue",null,null,null,null,{"$f":"'Form 1ASFS'!G247","v":0}]
["Form 1ASFS","Notes","Form 1ASFS","L27 - PAA Loss Comp - Amort. Cash Flows",null,null,null,null,{"$f":"'Form 1ASFS'!G250","v":0}]
["Form 1ASFS","Notes","Form 1ASFS","L27 - PAA Loss Comp - Incurred Claims",null,null,null,null,{"$f":"'Form 1ASFS'!G251","v":0}]
["Form 1ASFS","Notes","Form 1ASFS","L27 - PAA Loss Comp - Losses on enerous contracts",null,null,null,null,{"$f":"'Form 1ASFS'!G252","v":0}]
["Form 1ASFS","Notes","Form 1ASFS","L27 - PAA Loss Comp - Adj to Liabilities for Incurred Claims",null,null,null,null,{"$f":"'Form 1ASFS'!G253","v":0}]
["Form 1ASFS","Notes","Form 1ASFS","L27 - PAA Loss Comp - Total Insurance Service Expenses",null,null,null,null,{"$f":"'Form 1ASFS'!G254","v":0}]
["Form 1ASFS","Notes","Form 1ASFS","L27 - PAA Loss Comp - Investment Components",null,null,null,null,{"$f":"'Form 1ASFS'!G256","v":0}]
["Form 1ASFS","Notes","Form 1ASFS","L27 - PAA Loss Comp - Insurance Service Results",null,null,null,null,{"$f":"'Form 1ASFS'!G257","v":0}]
["Form 1ASFS","Notes","Form 1ASFS","L27 - PAA Loss Comp - Net finance expenses",null,null,null,null,{"$f":"'Form 1ASFS'!G259","v":0}]
["Form 1ASFS","Notes","Form 1ASFS","L27 - PAA Loss Comp - Foreign Exchange",null,null,null,null,{"$f":"'Form 1ASFS'!G260","v":0}]
["Form 1ASFS","Notes","Form 1ASFS","L27 - PAA Loss Comp - Change in Profit or Loss",null,null,null,null,{"$f":"'Form 1ASFS'!G261","v":0}]
["Form 1ASFS","Notes","Form 1ASFS","L27 - PAA Loss Comp - CF Premium Received",null,null,null,null,{"$f":"'Form 1ASFS'!G264","v":0}]
["Form 1ASFS","Notes","Form 1ASFS","L27 - PAA Loss Comp - CF Insurance Acquisition",null,null,null,null,{"$f":"'Form 1ASFS'!G265","v":0}]
["Form 1ASFS","Notes","Form 1ASFS","L27 - PAA Loss Comp - CF Claims Paid",null,null,null,null,{"$f":"'Form 1ASFS'!G266","v":0}]
["Form 1ASFS","Notes","Form 1ASFS","L27 - PAA Loss Comp - Total CF",null,null,null,null,{"$f":"'Form 1ASFS'!G267","v":0}]
["Form 1ASFS","Notes","Form 1ASFS","L27 - PAA Loss Comp - Contracts Trans. Acquisition Sub.",null,null,null,null,{"$f":"'Form 1ASFS'!G268","v":0}]
["Form 1ASFS","Notes","Form 1ASFS","L27 - PAA Loss Comp - Contracts Trans. Disposal Sub.",null,null,null,null,{"$f":"'Form 1ASFS'!G269","v":0}]
["Form 1ASFS","Notes","Form 1ASFS","L27 - PAA Loss Comp - Net Closing Balance",null,null,null,null,{"$f":"'Form 1ASFS'!G270","v":0}]
["Form 1ASFS","Notes","Form 1ASFS","L27 - PAA Loss Comp - Closing Assets",null,null,null,null,{"$f":"'Form 1ASFS'!G272","v":0}]
["Form 1ASFS","Notes","Form 1ASFS","L27 - PAA Loss Comp - Closing Liabilities",null,null,null,null,{"$f":"'Form 1ASFS'!G273","v":0}]
["Form 1ASFS","Notes","Form 1ASFS","L27 - PAA Loss Comp - Net Closing Balance",null,null,null,null,{"$f":"'Form 1ASFS'!G274","v":0}]
["Form 1ASFS","Notes","Form 1ASFS","L27 - GMM Liab. for Incurred - Open Assets",null,null,null,null,{"$f":"'Form 1ASFS'!I241","v":0}]
["Form 1ASFS","Notes","Form 1ASFS","L27 - GMM Liab. for Incurred - Open Liabilities",null,null,null,null,{"$f":"'Form 1ASFS'!I242","v":0}]
["Form 1ASFS","Notes","Form 1ASFS","L27 - GMM Liab. for Incurred - Net Open",null,null,null,null,{"$f":"'Form 1ASFS'!I243","v":0}]
["Form 1ASFS","Notes","Form 1ASFS","L27 - GMM Liab. for Incurred - Insurance Revenue",null,null,null,null,{"$f":"'Form 1ASFS'!I247","v":0}]
["Form 1ASFS","Notes","Form 1ASFS","L27 - GMM Liab. for Incurred - Amort. Cash Flows",null,null,null,null,{"$f":"'Form 1ASFS'!I250","v":0}]
["Form 1ASFS","Notes","Form 1ASFS","L27 - GMM Liab. for Incurred - Incurred Claims",null,null,null,null,{"$f":"'Form 1ASFS'!I251","v":0}]
["Form 1ASFS","Notes","Form 1ASFS","L27 - GMM Liab. for Incurred - Losses on enerous contracts",null,null,null,null,{"$f":"'Form 1ASFS'!I252","v":0}]
["Form 1ASFS","Notes","Form 1ASFS","L27 - GMM Liab. for Incurred - Adj to Liabilities for Incurred Claims",null,null,null,null,{"$f":"'Form 1ASFS'!I253","v":0}]
["Form 1ASFS","Notes","Form 1ASFS","L27 - GMM Liab. for Incurred - Total Insurance Service Expenses",null,null,null,null,{"$f":"'Form 1ASFS'!I254","v":0}]
["Form 1ASFS","Notes","Form 1ASFS","L27 - GMM Liab. for Incurred - Investment Components",null,null,null,null,{"$f":"'Form 1ASFS'!I256","v":0}]
["Form 1ASFS","Notes","Form 1ASFS","L27 - GMM Liab. for Incurred - Insurance Service Results",null,null,null,null,{"$f":"'Form 1ASFS'!I257","v":0}]
["Form 1ASFS","Notes","Form 1ASFS","L27 - GMM Liab. for Incurred - Net finance expenses",null,null,null,null,{"$f":"'Form 1ASFS'!I259","v":0}]
["Form 1ASFS","Notes","Form 1ASFS","L27 - GMM Liab. for Incurred - Foreign Exchange",null,null,null,null,{"$f":"'Form 1ASFS'!I260","v":0}]
["Form 1ASFS","Notes","Form 1ASFS","L27 - GMM Liab. for Incurred - Change in Profit or Loss",null,null,null,null,{"$f":"'Form 1ASFS'!I261","v":0}]
["Form 1ASFS","Notes","Form 1ASFS","L27 - GMM Liab. for Incurred - CF Premium Received",null,null,null,null,{"$f":"'Form 1ASFS'!I264","v":0}]
["Form 1ASFS","Notes","Form 1ASFS","L27 - GMM Liab. for Incurred - CF Insurance Acquisition",null,null,null,null,{"$f":"'Form 1ASFS'!I265","v":0}]
["Form 1ASFS","Notes","Form 1ASFS","L27 - GMM Liab. for Incurred - CF Claims Paid",null,null,null,null,{"$f":"'Form 1ASFS'!I266","v":0}]
["Form 1ASFS","Notes","Form 1ASFS","L27 - GMM Liab. for Incurred - Total CF",null,null,null,null,{"$f":"'Form 1ASFS'!I267","v":0}]
["Form 1ASFS","Notes","Form 1ASFS","L27 - GMM Liab. for Incurred - Contracts Trans. Acquisition Sub.",null,null,null,null,{"$f":"'Form 1ASFS'!I268","v":0}]
["Form 1ASFS","Notes","Form 1ASFS","L27 - GMM Liab. for Incurred - Contracts Trans. Disposal Sub.",null,null,null,null,{"$f":"'Form 1ASFS'!I269","v":0}]
["Form 1ASFS","Notes","Form 1ASFS","L27 - GMM Liab. for Incurred - Net Closing Balance",null,null,null,null,{"$f":"'Form 1ASFS'!I270","v":0}]
["Form 1ASFS","Notes","Form 1ASFS","L27 - GMM Liab. for Incurred - Closing Assets",null,null,null,null,{"$f":"'Form 1ASFS'!I272","v":0}]
["Form 1ASFS","Notes","Form 1ASFS","L27 - GMM Liab. for Incurred - Closing Liabilities",null,null,null,null,{"$f":"'Form 1ASFS'!I273","v":0}]
["Form 1ASFS","Notes","Form 1ASFS","L27 - GMM Liab. for Incurred - Net Closing Balance",null,null,null,null,{"$f":"'Form 1ASFS'!I274","v":0}]
["Form 1ASFS","Notes","Form 1ASFS","L27 - GMM PV Cash Flow - Open Assets",null,null,null,null,{"$f":"'Form 1ASFS'!K241","v":0}]
["Form 1ASFS","Notes","Form 1ASFS","L27 - GMM PV Cash Flow - Open Liabilities",null,null,null,null,{"$f":"'Form 1ASFS'!K242","v":0}]
["Form 1ASFS","Notes","Form 1ASFS","L27 - GMM PV Cash Flow - Net Open",null,null,null,null,{"$f":"'Form 1ASFS'!K243","v":0}]
["Form 1ASFS","Notes","Form 1ASFS","L27 - GMM PV Cash Flow - Insurance Revenue",null,null,null,null,{"$f":"'Form 1ASFS'!K247","v":0}]
["Form 1ASFS","Notes","Form 1ASFS","L27 - GMM PV Cash Flow - Amort. Cash Flows",null,null,null,null,{"$f":"'Form 1ASFS'!K250","v":0}]
["Form 1ASFS","Notes","Form 1ASFS","L27 - GMM PV Cash Flow - Incurred Claims",null,null,null,null,{"$f":"'Form 1ASFS'!K251","v":0}]
["Form 1ASFS","Notes","Form 1ASFS","L27 - GMM PV Cash Flow - Losses on enerous contracts",null,null,null,null,{"$f":"'Form 1ASFS'!K252","v":0}]
["Form 1ASFS","Notes","Form 1ASFS","L27 - GMM PV Cash Flow - Adj to Liabilities for Incurred Claims",null,null,null,null,{"$f":"'Form 1ASFS'!K253","v":0}]
["Form 1ASFS","Notes","Form 1ASFS","L27 - GMM PV Cash Flow - Total Insurance Service Expenses",null,null,null,null,{"$f":"'Form 1ASFS'!K254","v":0}]
["Form 1ASFS","Notes","Form 1ASFS","L27 - GMM PV Cash Flow - Investment Components",null,null,null,null,{"$f":"'Form 1ASFS'!K256","v":0}]
["Form 1ASFS","Notes","Form 1ASFS","L27 - GMM PV Cash Flow - Insurance Service Results",null,null,null,null,{"$f":"'Form 1ASFS'!K257","v":0}]
["Form 1ASFS","Notes","Form 1ASFS","L27 - GMM PV Cash Flow - Net finance expenses",null,null,null,null,{"$f":"'Form 1ASFS'!K259","v":0}]
["Form 1ASFS","Notes","Form 1ASFS","L27 - GMM PV Cash Flow - Foreign Exchange",null,null,null,null,{"$f":"'Form 1ASFS'!K260","v":0}]
["Form 1ASFS","Notes","Form 1ASFS","L27 - GMM PV Cash Flow - Change in Profit or Loss",null,null,null,null,{"$f":"'Form 1ASFS'!K261","v":0}]
["Form 1ASFS","Notes","Form 1ASFS","L27 - GMM PV Cash Flow - CF Premium Received",null,null,null,null,{"$f":"'Form 1ASFS'!K264","v":0}]
["Form 1ASFS","Notes","Form 1ASFS","L27 - GMM PV Cash Flow - CF Insurance Acquisition",null,null,null,null,{"$f":"'Form 1ASFS'!K265","v":0}]
["Form 1ASFS","Notes","Form 1ASFS","L27 - GMM PV Cash Flow - CF Claims Paid",null,null,null,null,{"$f":"'Form 1ASFS'!K266","v":0}]
["Form 1ASFS","Notes","Form 1ASFS","L27 - GMM PV Cash Flow - Total CF",null,null,null,null,{"$f":"'Form 1ASFS'!K267","v":0}]
["Form 1ASFS","Notes","Form 1ASFS","L27 - GMM PV Cash Flow - Contracts Trans. Acquisition Sub.",null,null,null,null,{"$f":"'Form 1ASFS'!K268","v":0}]
["Form 1ASFS","Notes","Form 1ASFS","L27 - GMM PV Cash Flow - Contracts Trans. Disposal Sub.",null,null,null,null,{"$f":"'Form 1ASFS'!K269","v":0}]
["Form 1ASFS","Notes","Form 1ASFS","L27 - GMM PV Cash Flow - Net Closing Balance",null,null,null,null,{"$f":"'Form 1ASFS'!K270","v":0}]
["Form 1ASFS","Notes","Form 1ASFS","L27 - GMM PV Cash Flow - Closing Assets",null,null,null,null,{"$f":"'Form 1ASFS'!K272","v":0}]
["Form 1ASFS","Notes","Form 1ASFS","L27 - GMM PV Cash Flow - Closing Liabilities",null,null,null,null,{"$f":"'Form 1ASFS'!K273","v":0}]
["Form 1ASFS","Notes","Form 1ASFS","L27 - GMM PV Cash Flow - Net Closing Balance",null,null,null,null,{"$f":"'Form 1ASFS'!K274","v":0}]
["Form 1ASFS","Notes","Form 1ASFS","L27 - GMM Risk Adj - Open Assets",null,null,null,null,{"$f":"'Form 1ASFS'!M241","v":0}]
["Form 1ASFS","Notes","Form 1ASFS","L27 - GMM Risk Adj - Open Liabilities",null,null,null,null,{"$f":"'Form 1ASFS'!M242","v":0}]
["Form 1ASFS","Notes","Form 1ASFS","L27 - GMM Risk Adj - Net Open",null,null,null,null,{"$f":"'Form 1ASFS'!M243","v":0}]
["Form 1ASFS","Notes","Form 1ASFS","L27 - GMM Risk Adj - Insurance Revenue",null,null,null,null,{"$f":"'Form 1ASFS'!M247","v":0}]
["Form 1ASFS","Notes","Form 1ASFS","L27 - GMM Risk Adj - Amort. Cash Flows",null,null,null,null,{"$f":"'Form 1ASFS'!M250","v":0}]
["Form 1ASFS","Notes","Form 1ASFS","L27 - GMM Risk Adj - Incurred Claims",null,null,null,null,{"$f":"'Form 1ASFS'!M251","v":0}]
["Form 1ASFS","Notes","Form 1ASFS","L27 - GMM Risk Adj - Losses on enerous contracts",null,null,null,null,{"$f":"'Form 1ASFS'!M252","v":0}]
["Form 1ASFS","Notes","Form 1ASFS","L27 - GMM Risk Adj - Adj to Liabilities for Incurred Claims",null,null,null,null,{"$f":"'Form 1ASFS'!M253","v":0}]
["Form 1ASFS","Notes","Form 1ASFS","L27 - GMM Risk Adj - Total Insurance Service Expenses",null,null,null,null,{"$f":"'Form 1ASFS'!M254","v":0}]
["Form 1ASFS","Notes","Form 1ASFS","L27 - GMM Risk Adj - Investment Components",null,null,null,null,{"$f":"'Form 1ASFS'!M256","v":0}]
["Form 1ASFS","Notes","Form 1ASFS","L27 - GMM Risk Adj - Insurance Service Results",null,null,null,null,{"$f":"'Form 1ASFS'!M257","v":0}]
["Form 1ASFS","Notes","Form 1ASFS","L27 - GMM Risk Adj - Net finance expenses",null,null,null,null,{"$f":"'Form 1ASFS'!M259","v":0}]
["Form 1ASFS","Notes","Form 1ASFS","L27 - GMM Risk Adj - Foreign Exchange",null,null,null,null,{"$f":"'Form 1ASFS'!M260","v":0}]
["Form 1ASFS","Notes","Form 1ASFS","L27 - GMM Risk Adj - Change in Profit or Loss",null,null,null,null,{"$f":"'Form 1ASFS'!M261","v":0}]
["Form 1ASFS","Notes","Form 1ASFS","L27 - GMM Risk Adj - CF Premium Received",null,null,null,null,{"$f":"'Form 1ASFS'!M264","v":0}]
["Form 1ASFS","Notes","Form 1ASFS","L27 - GMM Risk Adj - CF Insurance Acquisition",null,null,null,null,{"$f":"'Form 1ASFS'!M265","v":0}]
["Form 1ASFS","Notes","Form 1ASFS","L27 - GMM Risk Adj - CF Claims Paid",null,null,null,null,{"$f":"'Form 1ASFS'!M266","v":0}]
["Form 1ASFS","Notes","Form 1ASFS","L27 - GMM Risk Adj - Total CF",null,null,null,null,{"$f":"'Form 1ASFS'!M267","v":0}]
["Form 1ASFS","Notes","Form 1ASFS","L27 - GMM Risk Adj - Contracts Trans. Acquisition Sub.",null,null,null,null,{"$f":"'Form 1ASFS'!M268","v":0}]
["Form 1ASFS","Notes","Form 1ASFS","L27 - GMM Risk Adj - Contracts Trans. Disposal Sub.",null,null,null,null,{"$f":"'Form 1ASFS'!M269","v":0}]
["Form 1ASFS","Notes","Form 1ASFS","L27 - GMM Risk Adj - Net Closing Balance",null,null,null,null,{"$f":"'Form 1ASFS'!M270","v":0}]
["Form 1ASFS","Notes","Form 1ASFS","L27 - GMM Risk Adj - Closing Assets",null,null,null,null,{"$f":"'Form 1ASFS'!M272","v":0}]
["Form 1ASFS","Notes","Form 1ASFS","L27 - GMM Risk Adj - Closing Liabilities",null,null,null,null,{"$f":"'Form 1ASFS'!M273","v":0}]
["Form 1ASFS","Notes","Form 1ASFS","L27 - GMM Risk Adj - Net Closing Balance",null,null,null,null,{"$f":"'Form 1ASFS'!M274","v":0}]
["Form 1A","Notes","Form 1A","L17A - Coverage Exc. Loss Comp - Open Assets",null,null,null,null,{"$f":"'Form 1ASFS'!E282","v":0}]
["Form 1A","Notes","Form 1A","L17A - Coverage Exc. Loss Comp - Open Liabilities",null,null,null,null,{"$f":"'Form 1ASFS'!E283","v":0}]
["Form 1A","Notes","Form 1A","L17A - Coverage Exc. Loss Comp - Net Open",null,null,null,null,{"$f":"'Form 1ASFS'!E284","v":0}]
["Form 1A","Notes","Form 1A","L17A - Coverage Exc. Loss Comp - Premiums Paid",null,null,null,null,{"$f":"'Form 1ASFS'!E287","v":0}]
["Form 1A","Notes","Form 1A","L17A - Coverage Exc. Loss Comp - Recov. Incurred Claims",null,null,null,null,{"$f":"'Form 1ASFS'!E290","v":0}]
["Form 1A","Notes","Form 1A","L17A - Coverage Exc. Loss Comp - Recov. on Reversals",null,null,null,null,{"$f":"'Form 1ASFS'!E291","v":0}]
["Form 1A","Notes","Form 1A","L17A - Coverage Exc. Loss Comp - Adj to Assets for Incurred Claims",null,null,null,null,{"$f":"'Form 1ASFS'!E292","v":0}]
["Form 1A","Notes","Form 1A","L17A - Coverage Exc. Loss Comp - Total Recov. From Reinsurers",null,null,null,null,{"$f":"'Form 1ASFS'!E293","v":0}]
["Form 1A","Notes","Form 1A","L17A - Coverage Exc. Loss Comp - Investment Components",null,null,null,null,{"$f":"'Form 1ASFS'!E295","v":0}]
["Form 1A","Notes","Form 1A","L17A - Coverage Exc. Loss Comp - Changes in Non-Performance Risk",null,null,null,null,{"$f":"'Form 1ASFS'!E296","v":0}]
["Form 1A","Notes","Form 1A","L17A - Coverage Exc. Loss Comp - Net Expenses from R/I Contracts",null,null,null,null,{"$f":"'Form 1ASFS'!E298","v":0}]
["Form 1A","Notes","Form 1A","L17A - Coverage Exc. Loss Comp - Net Finance profit",null,null,null,null,{"$f":"'Form 1ASFS'!E300","v":0}]
["Form 1A","Notes","Form 1A","L17A - Coverage Exc. Loss Comp - Foreign Exchange",null,null,null,null,{"$f":"'Form 1ASFS'!E301","v":0}]
["Form 1A","Notes","Form 1A","L17A - Coverage Exc. Loss Comp - Change in Profit or Loss",null,null,null,null,{"$f":"'Form 1ASFS'!E302","v":0}]
["Form 1A","Notes","Form 1A","L17A - Coverage Exc. Loss Comp - CF Premium Received",null,null,null,null,{"$f":"'Form 1ASFS'!E305","v":0}]
["Form 1A","Notes","Form 1A","L17A - Coverage Exc. Loss Comp - CF Incurred Claims",null,null,null,null,{"$f":"'Form 1ASFS'!E306","v":0}]
["Form 1A","Notes","Form 1A","L17A - Coverage Exc. Loss Comp - Total CF",null,null,null,null,{"$f":"'Form 1ASFS'!E307","v":0}]
["Form 1A","Notes","Form 1A","L17A - Coverage Exc. Loss Comp - Net Closing Balance",null,null,null,null,{"$f":"'Form 1ASFS'!E308","v":0}]
["Form 1A","Notes","Form 1A","L17A - Coverage Exc. Loss Comp - Closing Assets",null,null,null,null,{"$f":"'Form 1ASFS'!E310","v":0}]
["Form 1A","Notes","Form 1A","L17A - Coverage Exc. Loss Comp - Closing Liabilities",null,null,null,null,{"$f":"'Form 1ASFS'!E311","v":0}]
["Form 1A","Notes","Form 1A","L17A - Coverage Exc. Loss Comp - Net Closing Balance",null,null,null,null,{"$f":"'Form 1ASFS'!E312","v":0}]
["Form 1A","Notes","Form 1A","L17A - Coverage Inc. Loss Comp - Open Assets",null,null,null,null,{"$f":"'Form 1ASFS'!G282","v":0}]
["Form 1A","Notes","Form 1A","L17A - Coverage Inc. Loss Comp - Open Liabilities",null,null,null,null,{"$f":"'Form 1ASFS'!G283","v":0}]
["Form 1A","Notes","Form 1A","L17A - Coverage Inc. Loss Comp - Net Open",null,null,null,null,{"$f":"'Form 1ASFS'!G284","v":0}]
["Form 1A","Notes","Form 1A","L17A - Coverage Inc. Loss Comp - Premiums Paid",null,null,null,null,{"$f":"'Form 1ASFS'!G287","v":0}]
["Form 1A","Notes","Form 1A","L17A - Coverage Inc. Loss Comp - Recov. Incurred Claims",null,null,null,null,{"$f":"'Form 1ASFS'!G290","v":0}]
["Form 1A","Notes","Form 1A","L17A - Coverage Inc. Loss Comp - Recov. on Reversals",null,null,null,null,{"$f":"'Form 1ASFS'!G291","v":0}]
["Form 1A","Notes","Form 1A","L17A - Coverage Inc. Loss Comp - Adj to Assets for Incurred Claims",null,null,null,null,{"$f":"'Form 1ASFS'!G292","v":0}]
["Form 1A","Notes","Form 1A","L17A - Coverage Inc. Loss Comp - Total Recov. From Reinsurers",null,null,null,null,{"$f":"'Form 1ASFS'!G293","v":0}]
["Form 1A","Notes","Form 1A","L17A - Coverage Inc. Loss Comp - Investment Components",null,null,null,null,{"$f":"'Form 1ASFS'!G295","v":0}]
["Form 1A","Notes","Form 1A","L17A - Coverage Inc. Loss Comp - Changes in Non-Performance Risk",null,null,null,null,{"$f":"'Form 1ASFS'!G296","v":0}]
["Form 1A","Notes","Form 1A","L17A - Coverage Inc. Loss Comp - Net Expenses from R/I Contracts",null,null,null,null,{"$f":"'Form 1ASFS'!G298","v":0}]
["Form 1A","Notes","Form 1A","L17A - Coverage Inc. Loss Comp - Net Finance profit",null,null,null,null,{"$f":"'Form 1ASFS'!G300","v":0}]
["Form 1A","Notes","Form 1A","L17A - Coverage Inc. Loss Comp - Foreign Exchange",null,null,null,null,{"$f":"'Form 1ASFS'!G301","v":0}]
["Form 1A","Notes","Form 1A","L17A - Coverage Inc. Loss Comp - Change in Profit or Loss",null,null,null,null,{"$f":"'Form 1ASFS'!G302","v":0}]
["Form 1A","Notes","Form 1A","L17A - Coverage Inc. Loss Comp - CF Premium Received",null,null,null,null,{"$f":"'Form 1ASFS'!G305","v":0}]
["Form 1A","Notes","Form 1A","L17A - Coverage Inc. Loss Comp - CF Incurred Claims",null,null,null,null,{"$f":"'Form 1ASFS'!G306","v":0}]
["Form 1A","Notes","Form 1A","L17A - Coverage Inc. Loss Comp - Total CF",null,null,null,null,{"$f":"'Form 1ASFS'!G307","v":0}]
["Form 1A","Notes","Form 1A","L17A - Coverage Inc. Loss Comp - Net Closing Balance",null,null,null,null,{"$f":"'Form 1ASFS'!G308","v":0}]
["Form 1A","Notes","Form 1A","L17A - Coverage Inc. Loss Comp - Closing Assets",null,null,null,null,{"$f":"'Form 1ASFS'!G310","v":0}]
["Form 1A","Notes","Form 1A","L17A - Coverage Inc. Loss Comp - Closing Liabilities",null,null,null,null,{"$f":"'Form 1ASFS'!G311","v":0}]
["Form 1A","Notes","Form 1A","L17A - Coverage Inc. Loss Comp - Net Closing Balance",null,null,null,null,{"$f":"'Form 1ASFS'!G312","v":0}]
["Form 1A","Notes","Form 1A","L17A - Inc. Claims Products Not PAA - Open Assets",null,null,null,null,{"$f":"'Form 1ASFS'!I282","v":0}]
["Form 1A","Notes","Form 1A","L17A - Inc. Claims Products Not PAA - Open Liabilities",null,null,null,null,{"$f":"'Form 1ASFS'!I283","v":0}]
["Form 1A","Notes","Form 1A","L17A - Inc. Claims Products Not PAA - Net Open",null,null,null,null,{"$f":"'Form 1ASFS'!I284","v":0}]
["Form 1A","Notes","Form 1A","L17A - Inc. Claims Products Not PAA - Premiums Paid",null,null,null,null,{"$f":"'Form 1ASFS'!I287","v":0}]
["Form 1A","Notes","Form 1A","L17A - Inc. Claims Products Not PAA - Recov. Incurred Claims",null,null,null,null,{"$f":"'Form 1ASFS'!I290","v":0}]
["Form 1A","Notes","Form 1A","L17A - Inc. Claims Products Not PAA - Recov. on Reversals",null,null,null,null,{"$f":"'Form 1ASFS'!I291","v":0}]
["Form 1A","Notes","Form 1A","L17A - Inc. Claims Products Not PAA - Adj to Assets for Incurred Claims",null,null,null,null,{"$f":"'Form 1ASFS'!I292","v":0}]
["Form 1A","Notes","Form 1A","L17A - Inc. Claims Products Not PAA - Total Recov. From Reinsurers",null,null,null,null,{"$f":"'Form 1ASFS'!I293","v":0}]
["Form 1A","Notes","Form 1A","L17A - Inc. Claims Products Not PAA - Investment Components",null,null,null,null,{"$f":"'Form 1ASFS'!I295","v":0}]
["Form 1A","Notes","Form 1A","L17A - Inc. Claims Products Not PAA - Changes in Non-Performance Risk",null,null,null,null,{"$f":"'Form 1ASFS'!I296","v":0}]
["Form 1A","Notes","Form 1A","L17A - Inc. Claims Products Not PAA - Net Expenses from R/I Contracts",null,null,null,null,{"$f":"'Form 1ASFS'!I298","v":0}]
["Form 1A","Notes","Form 1A","L17A - Inc. Claims Products Not PAA - Net Finance profit",null,null,null,null,{"$f":"'Form 1ASFS'!I300","v":0}]
["Form 1A","Notes","Form 1A","L17A - Inc. Claims Products Not PAA - Foreign Exchange",null,null,null,null,{"$f":"'Form 1ASFS'!I301","v":0}]
["Form 1A","Notes","Form 1A","L17A - Inc. Claims Products Not PAA - Change in Profit or Loss",null,null,null,null,{"$f":"'Form 1ASFS'!I302","v":0}]
["Form 1A","Notes","Form 1A","L17A - Inc. Claims Products Not PAA - CF Premium Received",null,null,null,null,{"$f":"'Form 1ASFS'!I305","v":0}]
["Form 1A","Notes","Form 1A","L17A - Inc. Claims Products Not PAA - CF Incurred Claims",null,null,null,null,{"$f":"'Form 1ASFS'!I306","v":0}]
["Form 1A","Notes","Form 1A","L17A - Inc. Claims Products Not PAA - Total CF",null,null,null,null,{"$f":"'Form 1ASFS'!I307","v":0}]
["Form 1A","Notes","Form 1A","L17A - Inc. Claims Products Not PAA - Net Closing Balance",null,null,null,null,{"$f":"'Form 1ASFS'!I308","v":0}]
["Form 1A","Notes","Form 1A","L17A - Inc. Claims Products Not PAA - Closing Assets",null,null,null,null,{"$f":"'Form 1ASFS'!I310","v":0}]
["Form 1A","Notes","Form 1A","L17A - Inc. Claims Products Not PAA - Closing Liabilities",null,null,null,null,{"$f":"'Form 1ASFS'!I311","v":0}]
["Form 1A","Notes","Form 1A","L17A - Inc. Claims Products Not PAA - Net Closing Balance",null,null,null,null,{"$f":"'Form 1ASFS'!I312","v":0}]
["Form 1A","Notes","Form 1A","L17A - Inc. Claims PAA PV Cash Flow - Open Assets",null,null,null,null,{"$f":"'Form 1ASFS'!K282","v":0}]
["Form 1A","Notes","Form 1A","L17A - Inc. Claims PAA PV Cash Flow - Open Liabilities",null,null,null,null,{"$f":"'Form 1ASFS'!K283","v":0}]
["Form 1A","Notes","Form 1A","L17A - Inc. Claims PAA PV Cash Flow - Net Open",null,null,null,null,{"$f":"'Form 1ASFS'!K284","v":0}]
["Form 1A","Notes","Form 1A","L17A - Inc. Claims PAA PV Cash Flow - Premiums Paid",null,null,null,null,{"$f":"'Form 1ASFS'!K287","v":0}]
["Form 1A","Notes","Form 1A","L17A - Inc. Claims PAA PV Cash Flow - Recov. Incurred Claims",null,null,null,null,{"$f":"'Form 1ASFS'!K290","v":0}]
["Form 1A","Notes","Form 1A","L17A - Inc. Claims PAA PV Cash Flow - Recov. on Reversals",null,null,null,null,{"$f":"'Form 1ASFS'!K291","v":0}]
["Form 1A","Notes","Form 1A","L17A - Inc. Claims PAA PV Cash Flow - Adj to Assets for Incurred Claims",null,null,null,null,{"$f":"'Form 1ASFS'!K292","v":0}]
["Form 1A","Notes","Form 1A","L17A - Inc. Claims PAA PV Cash Flow - Total Recov. From Reinsurers",null,null,null,null,{"$f":"'Form 1ASFS'!K293","v":0}]
["Form 1A","Notes","Form 1A","L17A - Inc. Claims PAA PV Cash Flow - Investment Components",null,null,null,null,{"$f":"'Form 1ASFS'!K295","v":0}]
["Form 1A","Notes","Form 1A","L17A - Inc. Claims PAA PV Cash Flow - Changes in Non-Performance Risk",null,null,null,null,{"$f":"'Form 1ASFS'!K296","v":0}]
["Form 1A","Notes","Form 1A","L17A - Inc. Claims PAA PV Cash Flow - Net Expenses from R/I Contracts",null,null,null,null,{"$f":"'Form 1ASFS'!K298","v":0}]
["Form 1A","Notes","Form 1A","L17A - Inc. Claims PAA PV Cash Flow - Net Finance profit",null,null,null,null,{"$f":"'Form 1ASFS'!K300","v":0}]
["Form 1A","Notes","Form 1A","L17A - Inc. Claims PAA PV Cash Flow - Foreign Exchange",null,null,null,null,{"$f":"'Form 1ASFS'!K301","v":0}]
["Form 1A","Notes","Form 1A","L17A - Inc. Claims PAA PV Cash Flow - Change in Profit or Loss",null,null,null,null,{"$f":"'Form 1ASFS'!K302","v":0}]
["Form 1A","Notes","Form 1A","L17A - Inc. Claims PAA PV Cash Flow - CF Premium Received",null,null,null,null,{"$f":"'Form 1ASFS'!K305","v":0}]
["Form 1A","Notes","Form 1A","L17A - Inc. Claims PAA PV Cash Flow - CF Incurred Claims",null,null,null,null,{"$f":"'Form 1ASFS'!K306","v":0}]
["Form 1A","Notes","Form 1A","L17A - Inc. Claims PAA PV Cash Flow - Total CF",null,null,null,null,{"$f":"'Form 1ASFS'!K307","v":0}]
["Form 1A","Notes","Form 1A","L17A - Inc. Claims PAA PV Cash Flow - Net Closing Balance",null,null,null,null,{"$f":"'Form 1ASFS'!K308","v":0}]
["Form 1A","Notes","Form 1A","L17A - Inc. Claims PAA PV Cash Flow - Closing Assets",null,null,null,null,{"$f":"'Form 1ASFS'!K310","v":0}]
["Form 1A","Notes","Form 1A","L17A - Inc. Claims PAA PV Cash Flow - Closing Liabilities",null,null,null,null,{"$f":"'Form 1ASFS'!K311","v":0}]
["Form 1A","Notes","Form 1A","L17A - Inc. Claims PAA PV Cash Flow - Net Closing Balance",null,null,null,null,{"$f":"'Form 1ASFS'!K312","v":0}]
["Form 1A","Notes","Form 1A","L17A - Inc. Claims PAA Adj Non Fin. - Open Assets",null,null,null,null,{"$f":"'Form 1ASFS'!M282","v":0}]
["Form 1A","Notes","Form 1A","L17A - Inc. Claims PAA Adj Non Fin. - Open Liabilities",null,null,null,null,{"$f":"'Form 1ASFS'!M283","v":0}]
["Form 1A","Notes","Form 1A","L17A - Inc. Claims PAA Adj Non Fin. - Net Open",null,null,null,null,{"$f":"'Form 1ASFS'!M284","v":0}]
["Form 1A","Notes","Form 1A","L17A - Inc. Claims PAA Adj Non Fin. - Premiums Paid",null,null,null,null,{"$f":"'Form 1ASFS'!M287","v":0}]
["Form 1A","Notes","Form 1A","L17A - Inc. Claims PAA Adj Non Fin. - Recov. Incurred Claims",null,null,null,null,{"$f":"'Form 1ASFS'!M290","v":0}]
["Form 1A","Notes","Form 1A","L17A - Inc. Claims PAA Adj Non Fin. - Recov. on Reversals",null,null,null,null,{"$f":"'Form 1ASFS'!M291","v":0}]
["Form 1A","Notes","Form 1A","L17A - Inc. Claims PAA Adj Non Fin. - Adj to Assets for Incurred Claims",null,null,null,null,{"$f":"'Form 1ASFS'!M292","v":0}]
["Form 1A","Notes","Form 1A","L17A - Inc. Claims PAA Adj Non Fin. - Total Recov. From Reinsurers",null,null,null,null,{"$f":"'Form 1ASFS'!M293","v":0}]
["Form 1A","Notes","Form 1A","L17A - Inc. Claims PAA Adj Non Fin. - Investment Components",null,null,null,null,{"$f":"'Form 1ASFS'!M295","v":0}]
["Form 1A","Notes","Form 1A","L17A - Inc. Claims PAA Adj Non Fin. - Changes in Non-Performance Risk",null,null,null,null,{"$f":"'Form 1ASFS'!M296","v":0}]
["Form 1A","Notes","Form 1A","L17A - Inc. Claims PAA Adj Non Fin. - Net Expenses from R/I Contracts",null,null,null,null,{"$f":"'Form 1ASFS'!M298","v":0}]
["Form 1A","Notes","Form 1A","L17A - Inc. Claims PAA Adj Non Fin. - Net Finance profit",null,null,null,null,{"$f":"'Form 1ASFS'!M300","v":0}]
["Form 1A","Notes","Form 1A","L17A - Inc. Claims PAA Adj Non Fin. - Foreign Exchange",null,null,null,null,{"$f":"'Form 1ASFS'!M301","v":0}]
["Form 1A","Notes","Form 1A","L17A - Inc. Claims PAA Adj Non Fin. - Change in Profit or Loss",null,null,null,null,{"$f":"'Form 1ASFS'!M302","v":0}]
["Form 1A","Notes","Form 1A","L17A - Inc. Claims PAA Adj Non Fin. - CF Premium Received",null,null,null,null,{"$f":"'Form 1ASFS'!M305","v":0}]
["Form 1A","Notes","Form 1A","L17A - Inc. Claims PAA Adj Non Fin. - CF Incurred Claims",null,null,null,null,{"$f":"'Form 1ASFS'!M306","v":0}]
["Form 1A","Notes","Form 1A","L17A - Inc. Claims PAA Adj Non Fin. - Total CF",null,null,null,null,{"$f":"'Form 1ASFS'!M307","v":0}]
["Form 1A","Notes","Form 1A","L17A - Inc. Claims PAA Adj Non Fin. - Net Closing Balance",null,null,null,null,{"$f":"'Form 1ASFS'!M308","v":0}]
["Form 1A","Notes","Form 1A","L17A - Inc. Claims PAA Adj Non Fin. - Closing Assets",null,null,null,null,{"$f":"'Form 1ASFS'!M310","v":0}]
["Form 1A","Notes","Form 1A","L17A - Inc. Claims PAA Adj Non Fin. - Closing Liabilities",null,null,null,null,{"$f":"'Form 1ASFS'!M311","v":0}]
["Form 1A","Notes","Form 1A","L17A - Inc. Claims PAA Adj Non Fin. - Net Closing Balance",null,null,null,null,{"$f":"'Form 1ASFS'!M312","v":0}]
["Form 1A","Notes","Form 1A","L27A - Coverage Exc. Loss Comp - Open Assets",null,null,null,null,{"$f":"'Form 1ASFS'!E320","v":0}]
["Form 1A","Notes","Form 1A","L27A - Coverage Exc. Loss Comp - Open Liabilities",null,null,null,null,{"$f":"'Form 1ASFS'!E321","v":0}]
["Form 1A","Notes","Form 1A","L27A - Coverage Exc. Loss Comp - Net Open",null,null,null,null,{"$f":"'Form 1ASFS'!E322","v":0}]
["Form 1A","Notes","Form 1A","L27A - Coverage Exc. Loss Comp - Premiums Paid",null,null,null,null,{"$f":"'Form 1ASFS'!E325","v":0}]
["Form 1A","Notes","Form 1A","L27A - Coverage Exc. Loss Comp - Recov. Incurred Claims",null,null,null,null,{"$f":"'Form 1ASFS'!E328","v":0}]
["Form 1A","Notes","Form 1A","L27A - Coverage Exc. Loss Comp - Recov. on Reversals",null,null,null,null,{"$f":"'Form 1ASFS'!E329","v":0}]
["Form 1A","Notes","Form 1A","L27A - Coverage Exc. Loss Comp - Adj to Assets for Incurred Claims",null,null,null,null,{"$f":"'Form 1ASFS'!E330","v":0}]
["Form 1A","Notes","Form 1A","L27A - Coverage Exc. Loss Comp - Total Recov. From Reinsurers",null,null,null,null,{"$f":"'Form 1ASFS'!E331","v":0}]
["Form 1A","Notes","Form 1A","L27A - Coverage Exc. Loss Comp - Investment Components",null,null,null,null,{"$f":"'Form 1ASFS'!E333","v":0}]
["Form 1A","Notes","Form 1A","L27A - Coverage Exc. Loss Comp - Changes in Non-Performance Risk",null,null,null,null,{"$f":"'Form 1ASFS'!E334","v":0}]
["Form 1A","Notes","Form 1A","L27A - Coverage Exc. Loss Comp - Net Expenses from R/I Contracts",null,null,null,null,{"$f":"'Form 1ASFS'!E336","v":0}]
["Form 1A","Notes","Form 1A","L27A - Coverage Exc. Loss Comp - Net Finance profit",null,null,null,null,{"$f":"'Form 1ASFS'!E338","v":0}]
["Form 1A","Notes","Form 1A","L27A - Coverage Exc. Loss Comp - Foreign Exchange",null,null,null,null,{"$f":"'Form 1ASFS'!E339","v":0}]
["Form 1A","Notes","Form 1A","L27A - Coverage Exc. Loss Comp - Change in Profit or Loss",null,null,null,null,{"$f":"'Form 1ASFS'!E340","v":0}]
["Form 1A","Notes","Form 1A","L27A - Coverage Exc. Loss Comp - CF Premium Received",null,null,null,null,{"$f":"'Form 1ASFS'!E343","v":0}]
["Form 1A","Notes","Form 1A","L27A - Coverage Exc. Loss Comp - CF Incurred Claims",null,null,null,null,{"$f":"'Form 1ASFS'!E344","v":0}]
["Form 1A","Notes","Form 1A","L27A - Coverage Exc. Loss Comp - Total CF",null,null,null,null,{"$f":"'Form 1ASFS'!E345","v":0}]
["Form 1A","Notes","Form 1A","L27A - Coverage Exc. Loss Comp - Net Closing Balance",null,null,null,null,{"$f":"'Form 1ASFS'!E346","v":0}]
["Form 1A","Notes","Form 1A","L27A - Coverage Exc. Loss Comp - Closing Assets",null,null,null,null,{"$f":"'Form 1ASFS'!E348","v":0}]
["Form 1A","Notes","Form 1A","L27A - Coverage Exc. Loss Comp - Closing Liabilities",null,null,null,null,{"$f":"'Form 1ASFS'!E349","v":0}]
["Form 1A","Notes","Form 1A","L27A - Coverage Exc. Loss Comp - Net Closing Balance",null,null,null,null,{"$f":"'Form 1ASFS'!E350","v":0}]
["Form 1A","Notes","Form 1A","L27A - Coverage Inc. Loss Comp - Open Assets",null,null,null,null,{"$f":"'Form 1ASFS'!G320","v":0}]
["Form 1A","Notes","Form 1A","L27A - Coverage Inc. Loss Comp - Open Liabilities",null,null,null,null,{"$f":"'Form 1ASFS'!G321","v":0}]
["Form 1A","Notes","Form 1A","L27A - Coverage Inc. Loss Comp - Net Open",null,null,null,null,{"$f":"'Form 1ASFS'!G322","v":0}]
["Form 1A","Notes","Form 1A","L27A - Coverage Inc. Loss Comp - Premiums Paid",null,null,null,null,{"$f":"'Form 1ASFS'!G325","v":0}]
["Form 1A","Notes","Form 1A","L27A - Coverage Inc. Loss Comp - Recov. Incurred Claims",null,null,null,null,{"$f":"'Form 1ASFS'!G328","v":0}]
["Form 1A","Notes","Form 1A","L27A - Coverage Inc. Loss Comp - Recov. on Reversals",null,null,null,null,{"$f":"'Form 1ASFS'!G329","v":0}]
["Form 1A","Notes","Form 1A","L27A - Coverage Inc. Loss Comp - Adj to Assets for Incurred Claims",null,null,null,null,{"$f":"'Form 1ASFS'!G330","v":0}]
["Form 1A","Notes","Form 1A","L27A - Coverage Inc. Loss Comp - Total Recov. From Reinsurers",null,null,null,null,{"$f":"'Form 1ASFS'!G331","v":0}]
["Form 1A","Notes","Form 1A","L27A - Coverage Inc. Loss Comp - Investment Components",null,null,null,null,{"$f":"'Form 1ASFS'!G333","v":0}]
["Form 1A","Notes","Form 1A","L27A - Coverage Inc. Loss Comp - Changes in Non-Performance Risk",null,null,null,null,{"$f":"'Form 1ASFS'!G334","v":0}]
["Form 1A","Notes","Form 1A","L27A - Coverage Inc. Loss Comp - Net Expenses from R/I Contracts",null,null,null,null,{"$f":"'Form 1ASFS'!G336","v":0}]
["Form 1A","Notes","Form 1A","L27A - Coverage Inc. Loss Comp - Net Finance profit",null,null,null,null,{"$f":"'Form 1ASFS'!G338","v":0}]
["Form 1A","Notes","Form 1A","L27A - Coverage Inc. Loss Comp - Foreign Exchange",null,null,null,null,{"$f":"'Form 1ASFS'!G339","v":0}]
["Form 1A","Notes","Form 1A","L27A - Coverage Inc. Loss Comp - Change in Profit or Loss",null,null,null,null,{"$f":"'Form 1ASFS'!G340","v":0}]
["Form 1A","Notes","Form 1A","L27A - Coverage Inc. Loss Comp - CF Premium Received",null,null,null,null,{"$f":"'Form 1ASFS'!G343","v":0}]
["Form 1A","Notes","Form 1A","L27A - Coverage Inc. Loss Comp - CF Incurred Claims",null,null,null,null,{"$f":"'Form 1ASFS'!G344","v":0}]
["Form 1A","Notes","Form 1A","L27A - Coverage Inc. Loss Comp - Total CF",null,null,null,null,{"$f":"'Form 1ASFS'!G345","v":0}]
["Form 1A","Notes","Form 1A","L27A - Coverage Inc. Loss Comp - Net Closing Balance",null,null,null,null,{"$f":"'Form 1ASFS'!G346","v":0}]
["Form 1A","Notes","Form 1A","L27A - Coverage Inc. Loss Comp - Closing Assets",null,null,null,null,{"$f":"'Form 1ASFS'!G348","v":0}]
["Form 1A","Notes","Form 1A","L27A - Coverage Inc. Loss Comp - Closing Liabilities",null,null,null,null,{"$f":"'Form 1ASFS'!G349","v":0}]
["Form 1A","Notes","Form 1A","L27A - Coverage Inc. Loss Comp - Net Closing Balance",null,null,null,null,{"$f":"'Form 1ASFS'!G350","v":0}]
["Form 1A","Notes","Form 1A","L27A - Inc. Claims - Open Assets",null,null,null,null,{"$f":"'Form 1ASFS'!I320","v":0}]
["Form 1A","Notes","Form 1A","L27A - Inc. Claims - Open Liabilities",null,null,null,null,{"$f":"'Form 1ASFS'!I321","v":0}]
["Form 1A","Notes","Form 1A","L27A - Inc. Claims - Net Open",null,null,null,null,{"$f":"'Form 1ASFS'!I322","v":0}]
["Form 1A","Notes","Form 1A","L27A - Inc. Claims - Premiums Paid",null,null,null,null,{"$f":"'Form 1ASFS'!I325","v":0}]
["Form 1A","Notes","Form 1A","L27A - Inc. Claims - Recov. Incurred Claims",null,null,null,null,{"$f":"'Form 1ASFS'!I328","v":0}]
["Form 1A","Notes","Form 1A","L27A - Inc. Claims - Recov. on Reversals",null,null,null,null,{"$f":"'Form 1ASFS'!I329","v":0}]
["Form 1A","Notes","Form 1A","L27A - Inc. Claims - Adj to Assets for Incurred Claims",null,null,null,null,{"$f":"'Form 1ASFS'!I330","v":0}]
["Form 1A","Notes","Form 1A","L27A - Inc. Claims - Total Recov. From Reinsurers",null,null,null,null,{"$f":"'Form 1ASFS'!I331","v":0}]
["Form 1A","Notes","Form 1A","L27A - Inc. Claims - Investment Components",null,null,null,null,{"$f":"'Form 1ASFS'!I333","v":0}]
["Form 1A","Notes","Form 1A","L27A - Inc. Claims - Changes in Non-Performance Risk",null,null,null,null,{"$f":"'Form 1ASFS'!I334","v":0}]
["Form 1A","Notes","Form 1A","L27A - Inc. Claims - Net Expenses from R/I Contracts",null,null,null,null,{"$f":"'Form 1ASFS'!I336","v":0}]
["Form 1A","Notes","Form 1A","L27A - Inc. Claims - Net Finance profit",null,null,null,null,{"$f":"'Form 1ASFS'!I338","v":0}]
["Form 1A","Notes","Form 1A","L27A - Inc. Claims - Foreign Exchange",null,null,null,null,{"$f":"'Form 1ASFS'!I339","v":0}]
["Form 1A","Notes","Form 1A","L27A - Inc. Claims - Change in Profit or Loss",null,null,null,null,{"$f":"'Form 1ASFS'!I340","v":0}]
["Form 1A","Notes","Form 1A","L27A - Inc. Claims - CF Premium Received",null,null,null,null,{"$f":"'Form 1ASFS'!I343","v":0}]
["Form 1A","Notes","Form 1A","L27A - Inc. Claims - CF Incurred Claims",null,null,null,null,{"$f":"'Form 1ASFS'!I344","v":0}]
["Form 1A","Notes","Form 1A","L27A - Inc. Claims - Total CF",null,null,null,null,{"$f":"'Form 1ASFS'!I345","v":0}]
["Form 1A","Notes","Form 1A","L27A - Inc. Claims - Net Closing Balance",null,null,null,null,{"$f":"'Form 1ASFS'!I346","v":0}]
["Form 1A","Notes","Form 1A","L27A - Inc. Claims - Closing Assets",null,null,null,null,{"$f":"'Form 1ASFS'!I348","v":0}]
["Form 1A","Notes","Form 1A","L27A - Inc. Claims - Closing Liabilities",null,null,null,null,{"$f":"'Form 1ASFS'!I349","v":0}]
["Form 1A","Notes","Form 1A","L27A - Inc. Claims - Net Closing Balance",null,null,null,null,{"$f":"'Form 1ASFS'!I350","v":0}]
[]
[null,null,null,"IFRS Income Statement"]
["Form 2ASFS","Income Stmt Uncon GEN / CON","2ASFS1","Insurance Contract Revenue",{"$f":"'Form 2ASFS'!E11","v":0},null,{"$f":"'Form 2ASFS'!G11","v":0},null,{"$f":"'Form 2ASFS'!M11","v":0},null,{"$f":"'Form 2ASFS'!O11","v":0}]
["Form 2ASFS","Income Stmt Uncon GEN / CON","2ASFS2a","Incurred Claims",{"$f":"'Form 2ASFS'!E14","v":0},null,{"$f":"'Form 2ASFS'!G14","v":0},null,{"$f":"'Form 2ASFS'!M14","v":0},null,{"$f":"'Form 2ASFS'!O14","v":0}]
["Form 2ASFS","Income Stmt Uncon GEN / CON","2ASFS2b","Acquisition Cash Flows",{"$f":"'Form 2ASFS'!E15","v":0},null,{"$f":"'Form 2ASFS'!G15","v":0},null,{"$f":"'Form 2ASFS'!M15","v":0},null,{"$f":"'Form 2ASFS'!O15","v":0}]
["Form 2ASFS","Income Stmt Uncon GEN / CON","2ASFS2c","Adj for Liability Incurred Claims",{"$f":"'Form 2ASFS'!E16","v":0},null,{"$f":"'Form 2ASFS'!G16","v":0},null,{"$f":"'Form 2ASFS'!M16","v":0},null,{"$f":"'Form 2ASFS'!O16","v":0}]
["Form 2ASFS","Income Stmt Uncon GEN / CON","2ASFS2d","Losses on Onerous Contracts",{"$f":"'Form 2ASFS'!E17","v":0},null,{"$f":"'Form 2ASFS'!G17","v":0},null,{"$f":"'Form 2ASFS'!M17","v":0},null,{"$f":"'Form 2ASFS'!O17","v":0}]
["Form 2ASFS","Income Stmt Uncon GEN / CON","2ASFS2e","Other Service Expenses",{"$f":"'Form 2ASFS'!E18","v":0},null,{"$f":"'Form 2ASFS'!G18","v":0},null,{"$f":"'Form 2ASFS'!M18","v":0},null,{"$f":"'Form 2ASFS'!O18","v":0}]
["Form 2ASFS","Income Stmt Uncon GEN / CON","2ASFS2f","Total Insurance Service Expense",{"$f":"'Form 2ASFS'!E19","v":0},null,{"$f":"'Form 2ASFS'!G19","v":0},null,{"$f":"'Form 2ASFS'!M19","v":0},null,{"$f":"'Form 2ASFS'!O19","v":0}]
["Form 2ASFS","Income Stmt Uncon GEN / CON","2ASFS3","Insurance Service Results Before R/I",{"$f":"'Form 2ASFS'!E21","v":0},null,{"$f":"'Form 2ASFS'!G21","v":0},null,{"$f":"'Form 2ASFS'!M21","v":0},null,{"$f":"'Form 2ASFS'!O21","v":0}]
["Form 2ASFS","Income Stmt Uncon GEN / CON","2ASFS4a","R/I Recoveries and Other Income",{"$f":"'Form 2ASFS'!E24","v":0},null,{"$f":"'Form 2ASFS'!G24","v":0},null,{"$f":"'Form 2ASFS'!M24","v":0},null,{"$f":"'Form 2ASFS'!O24","v":0}]
["Form 2ASFS","Income Stmt Uncon GEN / CON","2ASFS4b","R/I Expenses",{"$f":"'Form 2ASFS'!E25","v":0},null,{"$f":"'Form 2ASFS'!G25","v":0},null,{"$f":"'Form 2ASFS'!M25","v":0},null,{"$f":"'Form 2ASFS'!O25","v":0}]
["Form 2ASFS","Income Stmt Uncon GEN / CON","2ASFS4c","Net Expenses R/I Contracts Held",{"$f":"'Form 2ASFS'!E26","v":0},null,{"$f":"'Form 2ASFS'!G26","v":0},null,{"$f":"'Form 2ASFS'!M26","v":0},null,{"$f":"'Form 2ASFS'!O26","v":0}]
["Form 2ASFS","Income Stmt Uncon GEN / CON","2ASFS5","Insurance Service Results",{"$f":"'Form 2ASFS'!E28","v":0},null,{"$f":"'Form 2ASFS'!G28","v":0},null,{"$f":"'Form 2ASFS'!M28","v":0},null,{"$f":"'Form 2ASFS'!O28","v":0}]
["Form 2ASFS","Income Stmt Uncon GEN / CON","2ASFS6a","Net Interest Income",{"$f":"'Form 2ASFS'!E31","v":0},null,{"$f":"'Form 2ASFS'!G31","v":0},null,{"$f":"'Form 2ASFS'!M31","v":0},null,{"$f":"'Form 2ASFS'!O31","v":0}]
["Form 2ASFS","Income Stmt Uncon GEN / CON","2ASFS6b","Net Realized",{"$f":"'Form 2ASFS'!E32","v":0},null,{"$f":"'Form 2ASFS'!G32","v":0},null,{"$f":"'Form 2ASFS'!M32","v":0},null,{"$f":"'Form 2ASFS'!O32","v":0}]
["Form 2ASFS","Income Stmt Uncon GEN / CON","2ASFS6c","Net Foreign Exchange",{"$f":"'Form 2ASFS'!E33","v":0},null,{"$f":"'Form 2ASFS'!G33","v":0},null,{"$f":"'Form 2ASFS'!M33","v":0},null,{"$f":"'Form 2ASFS'!O33","v":0}]
["Form 2ASFS","Income Stmt Uncon GEN / CON","2ASFS6d","Credit Impairment Losses",{"$f":"'Form 2ASFS'!E34","v":0},null,{"$f":"'Form 2ASFS'!G34","v":0},null,{"$f":"'Form 2ASFS'!M34","v":0},null,{"$f":"'Form 2ASFS'!O34","v":0}]
["Form 2ASFS","Income Stmt Uncon GEN / CON","2ASFS6e","Other Investment Returns",{"$f":"'Form 2ASFS'!E35","v":0},null,{"$f":"'Form 2ASFS'!G35","v":0},null,{"$f":"'Form 2ASFS'!M35","v":0},null,{"$f":"'Form 2ASFS'!O35","v":0}]
["Form 2ASFS","Income Stmt Uncon GEN / CON","2ASFS6f","Total Investment Returns",{"$f":"'Form 2ASFS'!E36","v":0},null,{"$f":"'Form 2ASFS'!G36","v":0},null,{"$f":"'Form 2ASFS'!M36","v":0},null,{"$f":"'Form 2ASFS'!O36","v":0}]
["Form 2ASFS","Income Stmt Uncon GEN / CON","2ASFS7a","Net Finance Expense from Insurance",{"$f":"'Form 2ASFS'!E39","v":0},null,{"$f":"'Form 2ASFS'!G39","v":0},null,{"$f":"'Form 2ASFS'!M39","v":0},null,{"$f":"'Form 2ASFS'!O39","v":0}]
["Form 2ASFS","Income Stmt Uncon GEN / CON","2ASFS7b","Net Finance Expense from Reinsurance",{"$f":"'Form 2ASFS'!E40","v":0},null,{"$f":"'Form 2ASFS'!G40","v":0},null,{"$f":"'Form 2ASFS'!M40","v":0},null,{"$f":"'Form 2ASFS'!O40","v":0}]
["Form 2ASFS","Income Stmt Uncon GEN / CON","2ASFS7c","Insurance Finance Results",{"$f":"'Form 2ASFS'!E41","v":0},null,{"$f":"'Form 2ASFS'!G41","v":0},null,{"$f":"'Form 2ASFS'!M41","v":0},null,{"$f":"'Form 2ASFS'!O41","v":0}]
["Form 2ASFS","Income Stmt Uncon GEN / CON","2ASFS8","Net Insurance Financial and Investment Results",{"$f":"'Form 2ASFS'!E43","v":0},null,{"$f":"'Form 2ASFS'!G43","v":0},null,{"$f":"'Form 2ASFS'!M43","v":0},null,{"$f":"'Form 2ASFS'!O43","v":0}]
["Form 2ASFS","Income Stmt Uncon GEN / CON","2ASFS9","Other Income",{"$f":"'Form 2ASFS'!E45","v":0},null,{"$f":"'Form 2ASFS'!G45","v":0},null,{"$f":"'Form 2ASFS'!M45","v":0},null,{"$f":"'Form 2ASFS'!O45","v":0}]
["Form 2ASFS","Income Stmt Uncon GEN / CON","2ASFS10","Profit Before Tax",{"$f":"'Form 2ASFS'!E48","v":0},null,{"$f":"'Form 2ASFS'!G48","v":0},null,{"$f":"'Form 2ASFS'!M48","v":0},null,{"$f":"'Form 2ASFS'!O48","v":0}]
["Form 2ASFS","Income Stmt Uncon GEN / CON","2ASFS11","Income Tax",{"$f":"'Form 2ASFS'!E50","v":0},null,{"$f":"'Form 2ASFS'!G50","v":0},null,{"$f":"'Form 2ASFS'!M50","v":0},null,{"$f":"'Form 2ASFS'!O50","v":0}]
["Form 2ASFS","Income Stmt Uncon GEN / CON","2ASFS12","Net Income",{"$f":"'Form 2ASFS'!E52","v":0},null,{"$f":"'Form 2ASFS'!G52","v":0},null,{"$f":"'Form 2ASFS'!M52","v":0},null,{"$f":"'Form 2ASFS'!O52","v":0}]
[]
["Form 2ASFS","Income Stmt Uncon LT","2ASFS1","Insurance Contract Revenue",{"$f":"'Form 2ASFS'!I11","v":0},null,{"$f":"'Form 2ASFS'!K11","v":0}]
["Form 2ASFS","Income Stmt Uncon LT","2ASFS2a","Incurred Claims",{"$f":"'Form 2ASFS'!I14","v":0},null,{"$f":"'Form 2ASFS'!K14","v":0}]
["Form 2ASFS","Income Stmt Uncon LT","2ASFS2b","Acquisition Cash Flows",{"$f":"'Form 2ASFS'!I15","v":0},null,{"$f":"'Form 2ASFS'!K15","v":0}]
["Form 2ASFS","Income Stmt Uncon LT","2ASFS2c","Adj for Liability Incurred Claims",{"$f":"'Form 2ASFS'!I16","v":0},null,{"$f":"'Form 2ASFS'!K16","v":0}]
["Form 2ASFS","Income Stmt Uncon LT","2ASFS2d","Losses on Onerous Contracts",{"$f":"'Form 2ASFS'!I17","v":0},null,{"$f":"'Form 2ASFS'!K17","v":0}]
["Form 2ASFS","Income Stmt Uncon LT","2ASFS2e","Other Service Expenses",{"$f":"'Form 2ASFS'!I18","v":0},null,{"$f":"'Form 2ASFS'!K18","v":0}]
["Form 2ASFS","Income Stmt Uncon LT","2ASFS2f","Total Insurance Service Expense",{"$f":"'Form 2ASFS'!I19","v":0},null,{"$f":"'Form 2ASFS'!K19","v":0}]
["Form 2ASFS","Income Stmt Uncon LT","2ASFS3","Insurance Service Results Before R/I",{"$f":"'Form 2ASFS'!I21","v":0},null,{"$f":"'Form 2ASFS'!K21","v":0}]
["Form 2ASFS","Income Stmt Uncon LT","2ASFS4a","R/I Recoveries and Other Income",{"$f":"'Form 2ASFS'!I24","v":0},null,{"$f":"'Form 2ASFS'!K24","v":0}]
["Form 2ASFS","Income Stmt Uncon LT","2ASFS4b","R/I Expenses",{"$f":"'Form 2ASFS'!I25","v":0},null,{"$f":"'Form 2ASFS'!K25","v":0}]
["Form 2ASFS","Income Stmt Uncon LT","2ASFS4c","Net Expenses R/I Contracts Held",{"$f":"'Form 2ASFS'!I26","v":0},null,{"$f":"'Form 2ASFS'!K26","v":0}]
["Form 2ASFS","Income Stmt Uncon LT","2ASFS5","Insurance Service Results",{"$f":"'Form 2ASFS'!I28","v":0},null,{"$f":"'Form 2ASFS'!K28","v":0}]
["Form 2ASFS","Income Stmt Uncon LT","2ASFS6a","Net Interest Income",{"$f":"'Form 2ASFS'!I31","v":0},null,{"$f":"'Form 2ASFS'!K31","v":0}]
["Form 2ASFS","Income Stmt Uncon LT","2ASFS6b","Net Realized",{"$f":"'Form 2ASFS'!I32","v":0},null,{"$f":"'Form 2ASFS'!K32","v":0}]
["Form 2ASFS","Income Stmt Uncon LT","2ASFS6c","Net Foreign Exchange",{"$f":"'Form 2ASFS'!I33","v":0},null,{"$f":"'Form 2ASFS'!K33","v":0}]
["Form 2ASFS","Income Stmt Uncon LT","2ASFS6d","Credit Impairment Losses",{"$f":"'Form 2ASFS'!I34","v":0},null,{"$f":"'Form 2ASFS'!K34","v":0}]
["Form 2ASFS","Income Stmt Uncon LT","2ASFS6e","Other Investment Returns",{"$f":"'Form 2ASFS'!I35","v":0},null,{"$f":"'Form 2ASFS'!K35","v":0}]
["Form 2ASFS","Income Stmt Uncon LT","2ASFS6f","Total Investment Returns",{"$f":"'Form 2ASFS'!I36","v":0},null,{"$f":"'Form 2ASFS'!K36","v":0}]
["Form 2ASFS","Income Stmt Uncon LT","2ASFS7a","Net Finance Expense from Insurance",{"$f":"'Form 2ASFS'!I39","v":0},null,{"$f":"'Form 2ASFS'!K39","v":0}]
["Form 2ASFS","Income Stmt Uncon LT","2ASFS7b","Net Finance Expense from Reinsurance",{"$f":"'Form 2ASFS'!I40","v":0},null,{"$f":"'Form 2ASFS'!K40","v":0}]
["Form 2ASFS","Income Stmt Uncon LT","2ASFS7c","Insurance Finance Results",{"$f":"'Form 2ASFS'!I41","v":0},null,{"$f":"'Form 2ASFS'!K41","v":0}]
["Form 2ASFS","Income Stmt Uncon LT","2ASFS8","Net Insurance Financial and Investment Results",{"$f":"'Form 2ASFS'!I43","v":0},null,{"$f":"'Form 2ASFS'!K43","v":0}]
["Form 2ASFS","Income Stmt Uncon LT","2ASFS9","Other Income",{"$f":"'Form 2ASFS'!I45","v":0},null,{"$f":"'Form 2ASFS'!K45","v":0}]
["Form 2ASFS","Income Stmt Uncon LT","2ASFS10","Profit Before Tax",{"$f":"'Form 2ASFS'!I48","v":0},null,{"$f":"'Form 2ASFS'!K48","v":0}]
["Form 2ASFS","Income Stmt Uncon LT","2ASFS11","Income Tax",{"$f":"'Form 2ASFS'!I50","v":0},null,{"$f":"'Form 2ASFS'!K50","v":0}]
["Form 2ASFS","Income Stmt Uncon LT","2ASFS12","Net Income",{"$f":"'Form 2ASFS'!I52","v":0},null,{"$f":"'Form 2ASFS'!K52","v":0}]
[]
["Form 2ASFS","Notes","Revenue","Expected Incurred Claims",{"$f":"'Form 2ASFS'!E61","v":0}]
["Form 2ASFS","Notes","Revenue","CSM for Services Provided",{"$f":"'Form 2ASFS'!E63","v":0}]
["Form 2ASFS","Notes","Revenue","Change in Risk Adjustment",{"$f":"'Form 2ASFS'!E65","v":0}]
["Form 2ASFS","Notes","Revenue","Recovery of Insurance Acqusition",{"$f":"'Form 2ASFS'!E67","v":0}]
["Form 2ASFS","Notes","Revenue","Contracts Measured under the General Model",{"$f":"'Form 2ASFS'!E69","v":0}]
["Form 2ASFS","Notes","Revenue","Contracts Measured under PAA",{"$f":"'Form 2ASFS'!E71","v":0}]
["Form 2ASFS","Notes","Revenue","Total Insurance Revenue",{"$f":"'Form 2ASFS'!E73","v":0}]
["Form 2ASFS","Notes","Premium","General Business GPW",{"$f":"'Form 2ASFS'!E77","v":0},null,null,null,{"$f":"'Form 2ASFS'!M77","v":0}]
["Form 2ASFS","Notes","Premium","General Business Premiums Ceded",{"$f":"'Form 2ASFS'!E78","v":0},null,null,null,{"$f":"'Form 2ASFS'!M78","v":0}]
["Form 2ASFS","Notes","Premium","General Business NPW",{"$f":"'Form 2ASFS'!E79","v":0},null,null,null,{"$f":"'Form 2ASFS'!M79","v":0}]
["Form 2ASFS","Notes","Premium","General Business Net Losses Incurred",{"$f":"'Form 2ASFS'!E81","v":0},null,null,null,{"$f":"'Form 2ASFS'!M81","v":0}]
["Form 2ASFS","Notes","Premium","Long-Term GPW",{"$f":"'Form 2ASFS'!E83","v":0},null,null,null,{"$f":"'Form 2ASFS'!M83","v":0}]
["Form 2ASFS","Notes","Premium","Long-Term Premiums Ceded",{"$f":"'Form 2ASFS'!E84","v":0},null,null,null,{"$f":"'Form 2ASFS'!M84","v":0}]
["Form 2ASFS","Notes","Premium","Long-Term NPW",{"$f":"'Form 2ASFS'!E85","v":0},null,null,null,{"$f":"'Form 2ASFS'!M85","v":0}]
["Form 2ASFS","Notes","Oper. Exp.","General and Administrative Expense",{"$f":"'Form 2ASFS'!E89","v":0},null,null,null,{"$f":"'Form 2ASFS'!M89","v":0}]
["Form 2ASFS","Notes","Oper. Exp.","Personnel Costs",{"$f":"'Form 2ASFS'!E90","v":0},null,null,null,{"$f":"'Form 2ASFS'!M90","v":0}]
["Form 2ASFS","Notes","Oper. Exp.","Other Expenses",{"$f":"'Form 2ASFS'!E91","v":0},null,null,null,{"$f":"'Form 2ASFS'!M91","v":0}]
["Form 2ASFS","Notes","Oper. Exp.","Total Combined Operating Expense",{"$f":"'Form 2ASFS'!E92","v":0},null,null,null,{"$f":"'Form 2ASFS'!M92","v":0}]
[]
[null,null,null,"Statement of Capital & Surplus"]
["Form 8ASFS","Stmt of C&S Uncon GEN / CON","8ASFS1ai","Capital Stock",{"$f":"'Form 8ASFS'!G11","v":0},null,{"$f":"'Form 8ASFS'!I11","v":0}]
["Form 8ASFS","Stmt of C&S Uncon GEN / CON",null,"Common Stock",null,null,null,null,{"$f":"'Form 8ASFS'!O12","v":0},null,{"$f":"'Form 8ASFS'!Q12","v":0}]
["Form 8ASFS","Stmt of C&S Uncon GEN / CON","8ASFS1aii","Preferred Shares",null,null,null,null,{"$f":"'Form 8ASFS'!O17","v":0},null,{"$f":"'Form 8ASFS'!Q17","v":0}]
["Form 8ASFS","Stmt of C&S Uncon GEN / CON","8ASFS1aiii","Treasury Shares",null,null,null,null,{"$f":"'Form 8ASFS'!O25","v":0},null,{"$f":"'Form 8ASFS'!Q25","v":0}]
["Form 8ASFS","Stmt of C&S Uncon GEN / CON","8ASFS1b","Contributed Surplus",{"$f":"'Form 8ASFS'!G29","v":0},null,{"$f":"'Form 8ASFS'!I29","v":0},null,{"$f":"'Form 8ASFS'!O29","v":0},null,{"$f":"'Form 8ASFS'!Q29","v":0}]
["Form 8ASFS","Stmt of C&S Uncon GEN / CON","8ASFS1ci","Other Fixed Capital - Hybrid Instruments",{"$f":"'Form 8ASFS'!G32","v":0},null,{"$f":"'Form 8ASFS'!I32","v":0},null,{"$f":"'Form 8ASFS'!O32","v":0},null,{"$f":"'Form 8ASFS'!Q32","v":0}]
["Form 8ASFS","Stmt of C&S Uncon GEN / CON","8ASFS1cii","Other Fixed Capital - Guarantees & Others",{"$f":"'Form 8ASFS'!G33","v":0},null,{"$f":"'Form 8ASFS'!I33","v":0},null,{"$f":"'Form 8ASFS'!O33","v":0},null,{"$f":"'Form 8ASFS'!Q33","v":0}]
["Form 8ASFS","Stmt of C&S Uncon GEN / CON","8ASFS2a","Statutory Surplus - Beginning of Year",{"$f":"'Form 8ASFS'!G40","v":0},null,{"$f":"'Form 8ASFS'!I40","v":0},null,{"$f":"'Form 8ASFS'!O40","v":0},null,{"$f":"'Form 8ASFS'!Q40","v":0}]
["Form 8ASFS","Stmt of C&S Uncon GEN / CON","8ASFS2c","Dividends",{"$f":"'Form 8ASFS'!G44","v":0},null,{"$f":"'Form 8ASFS'!I44","v":0},null,{"$f":"'Form 8ASFS'!O44","v":0},null,{"$f":"'Form 8ASFS'!Q44","v":0}]
["Form 8ASFS","Stmt of C&S Uncon GEN / CON","8ASFS2d","Unrealized Change in Investments",{"$f":"'Form 8ASFS'!G46","v":0},null,{"$f":"'Form 8ASFS'!I46","v":0},null,{"$f":"'Form 8ASFS'!O46","v":0},null,{"$f":"'Form 8ASFS'!Q46","v":0}]
["Form 8ASFS","Stmt of C&S Uncon GEN / CON","8ASFS2e","Change in Non-Admitted Assets",{"$f":"'Form 8ASFS'!G48","v":0},null,{"$f":"'Form 8ASFS'!I48","v":0},null,{"$f":"'Form 8ASFS'!O48","v":0},null,{"$f":"'Form 8ASFS'!Q48","v":0}]
["Form 8ASFS","Stmt of C&S Uncon GEN / CON","8ASFS2f","Change in Real Estate",{"$f":"'Form 8ASFS'!G50","v":0},null,{"$f":"'Form 8ASFS'!I50","v":0},null,{"$f":"'Form 8ASFS'!O50","v":0},null,{"$f":"'Form 8ASFS'!Q50","v":0}]
["Form 8ASFS","Stmt of C&S Uncon GEN / CON","8ASFS2g","Change in Other Statutory Capital",{"$f":"'Form 8ASFS'!G52","v":0},null,{"$f":"'Form 8ASFS'!I52","v":0},null,{"$f":"'Form 8ASFS'!O52","v":0},null,{"$f":"'Form 8ASFS'!Q52","v":0}]
["Form 8ASFS","Stmt of C&S Uncon GEN / CON","8ASFS3","Minority Interest",{"$f":"'Form 8ASFS'!G56","v":0},null,{"$f":"'Form 8ASFS'!I56","v":0},null,{"$f":"'Form 8ASFS'!O56","v":0},null,{"$f":"'Form 8ASFS'!Q56","v":0}]
[]
["Form 8ASFS","Stmt of C&S Uncon LT","8ASFS1a","Common Stock",{"$f":"'Form 8ASFS'!K11","v":0},null,{"$f":"'Form 8ASFS'!M11","v":0}]
["Form 8ASFS","Stmt of C&S Uncon LT","8ASFS1b","Contributed Surplus",{"$f":"'Form 8ASFS'!K29","v":0},null,{"$f":"'Form 8ASFS'!M29","v":0}]
["Form 8ASFS","Stmt of C&S Uncon LT","8ASFS1ci","Other Fixed Capital - Hybrid Instruments",{"$f":"'Form 8ASFS'!K32","v":0},null,{"$f":"'Form 8ASFS'!M32","v":0}]
["Form 8ASFS","Stmt of C&S Uncon LT","8ASFS1cii","Other Fixed Capital - Guarantees & Others",{"$f":"'Form 8ASFS'!K33","v":0},null,{"$f":"'Form 8ASFS'!M33","v":0}]
["Form 8ASFS","Stmt of C&S Uncon LT","8ASFS2a","Statutory Surplus - Beginning of Year",{"$f":"'Form 8ASFS'!K40","v":0},null,{"$f":"'Form 8ASFS'!M40","v":0}]
["Form 8ASFS","Stmt of C&S Uncon LT","8ASFS2c","Dividends",{"$f":"'Form 8ASFS'!K44","v":0},null,{"$f":"'Form 8ASFS'!M44","v":0}]
["Form 8ASFS","Stmt of C&S Uncon LT","8ASFS2d","Unrealized Change in Investments",{"$f":"'Form 8ASFS'!K46","v":0},null,{"$f":"'Form 8ASFS'!M46","v":0}]
["Form 8ASFS","Stmt of C&S Uncon LT","8ASFS2e","Change in Non-Admitted Assets",{"$f":"'Form 8ASFS'!K48","v":0},null,{"$f":"'Form 8ASFS'!M48","v":0}]
["Form 8ASFS","Stmt of C&S Uncon LT","8ASFS2f","Change in Real Estate",{"$f":"'Form 8ASFS'!K50","v":0},null,{"$f":"'Form 8ASFS'!M50","v":0}]
["Form 8ASFS","Stmt of C&S Uncon LT","8ASFS2g","Change in Other Statutory Capital",{"$f":"'Form 8ASFS'!K52","v":0},null,{"$f":"'Form 8ASFS'!M52","v":0}]
["Form 8ASFS","Stmt of C&S Uncon LT","8ASFS3","Minority Interest",{"$f":"'Form 8ASFS'!K56","v":0},null,{"$f":"'Form 8ASFS'!M56","v":0}]
[]
["Form 8ASFS","Notes","2g","Description 1",{"$f":"'Form 8ASFS'!G61","v":0}]
["Form 8ASFS","Notes","2g","Description 2",{"$f":"'Form 8ASFS'!G62","v":0}]
["Form 8ASFS","Notes","2g","Description 3",{"$f":"'Form 8ASFS'!G63","v":0}]
["Form 8ASFS","Notes","2g","Description 4",{"$f":"'Form 8ASFS'!G64","v":0}]
["Form 8ASFS","Notes","2g","IFRS 4 to 17 Adj",{"$f":"'Form 8ASFS'!K61","v":0},null,null,null,{"$f":"'Form 8ASFS'!O61","v":0}]
["Form 8ASFS","Notes","2g","Other Adj 1",{"$f":"'Form 8ASFS'!K62","v":0},null,null,null,{"$f":"'Form 8ASFS'!O62","v":0}]
["Form 8ASFS","Notes","2g","Other Adj 2",{"$f":"'Form 8ASFS'!K63","v":0},null,null,null,{"$f":"'Form 8ASFS'!O63","v":0}]
["Form 8ASFS","Notes","2g","Other Adj 3",{"$f":"'Form 8ASFS'!K64","v":0},null,null,null,{"$f":"'Form 8ASFS'!O64","v":0}]
["Form 8ASFS","Notes","2g","Other Adj 4",{"$f":"'Form 8ASFS'!K65","v":0},null,null,null,{"$f":"'Form 8ASFS'!O65","v":0}]
[]
[null,null,null,"BSCR Schedules "]
["Sch II","Investments",null,"Corp. Bonds - BSCR Rate 0",{"$f":"'Schedule II'!D12","v":0},null,{"$f":"'Schedule II'!F12","v":0}]
["Sch II","Investments",null,"Corp. Bonds - BSCR Rate 1",{"$f":"'Schedule II'!D13","v":0},null,{"$f":"'Schedule II'!F13","v":0}]
["Sch II","Investments",null,"Corp. Bonds - BSCR Rate 2",{"$f":"'Schedule II'!D14","v":0},null,{"$f":"'Schedule II'!F14","v":0}]
["Sch II","Investments",null,"Corp. Bonds - BSCR Rate 3",{"$f":"'Schedule II'!D15","v":0},null,{"$f":"'Schedule II'!F15","v":0}]
["Sch II","Investments",null,"Corp. Bonds - BSCR Rate 4",{"$f":"'Schedule II'!D16","v":0},null,{"$f":"'Schedule II'!F16","v":0}]
["Sch II","Investments",null,"Corp. Bonds - BSCR Rate 5",{"$f":"'Schedule II'!D17","v":0},null,{"$f":"'Schedule II'!F17","v":0}]
["Sch II","Investments",null,"Corp. Bonds - BSCR Rate 6",{"$f":"'Schedule II'!D18","v":0},null,{"$f":"'Schedule II'!F18","v":0}]
["Sch II","Investments",null,"Corp. Bonds - BSCR Rate 7",{"$f":"'Schedule II'!D19","v":0},null,{"$f":"'Schedule II'!F19","v":0}]
["Sch II","Investments",null,"Corp. Bonds - BSCR Rate 8",{"$f":"'Schedule II'!D20","v":0},null,{"$f":"'Schedule II'!F20","v":0}]
["Sch II","Investments",null,"Residential MBS - BSCR Rate 1",{"$f":"'Schedule II'!H13","v":0},null,{"$f":"'Schedule II'!J13","v":0}]
["Sch II","Investments",null,"Residential MBS - BSCR Rate 2",{"$f":"'Schedule II'!H14","v":0},null,{"$f":"'Schedule II'!J14","v":0}]
["Sch II","Investments",null,"Residential MBS - BSCR Rate 3",{"$f":"'Schedule II'!H15","v":0},null,{"$f":"'Schedule II'!J15","v":0}]
["Sch II","Investments",null,"Residential MBS - BSCR Rate 4",{"$f":"'Schedule II'!H16","v":0},null,{"$f":"'Schedule II'!J16","v":0}]
["Sch II","Investments",null,"Residential MBS - BSCR Rate 5",{"$f":"'Schedule II'!H17","v":0},null,{"$f":"'Schedule II'!J17","v":0}]
["Sch II","Investments",null,"Residential MBS - BSCR Rate 6",{"$f":"'Schedule II'!H18","v":0},null,{"$f":"'Schedule II'!J18","v":0}]
["Sch II","Investments",null,"Residential MBS - BSCR Rate 7",{"$f":"'Schedule II'!H19","v":0},null,{"$f":"'Schedule II'!J19","v":0}]
["Sch II","Investments",null,"Residential MBS - BSCR Rate 8",{"$f":"'Schedule II'!H20","v":0},null,{"$f":"'Schedule II'!J20","v":0}]
["Sch II","Investments",null,"Commercial MBS - BSCR Rate 1",{"$f":"'Schedule II'!L13","v":0},null,{"$f":"'Schedule II'!N13","v":0}]
["Sch II","Investments",null,"Commercial MBS - BSCR Rate 2",{"$f":"'Schedule II'!L14","v":0},null,{"$f":"'Schedule II'!N14","v":0}]
["Sch II","Investments",null,"Commercial MBS - BSCR Rate 3",{"$f":"'Schedule II'!L15","v":0},null,{"$f":"'Schedule II'!N15","v":0}]
["Sch II","Investments",null,"Commercial MBS - BSCR Rate 4",{"$f":"'Schedule II'!L16","v":0},null,{"$f":"'Schedule II'!N16","v":0}]
["Sch II","Investments",null,"Commercial MBS - BSCR Rate 5",{"$f":"'Schedule II'!L17","v":0},null,{"$f":"'Schedule II'!N17","v":0}]
["Sch II","Investments",null,"Commercial MBS - BSCR Rate 6",{"$f":"'Schedule II'!L18","v":0},null,{"$f":"'Schedule II'!N18","v":0}]
["Sch II","Investments",null,"Commercial MBS - BSCR Rate 7",{"$f":"'Schedule II'!L19","v":0},null,{"$f":"'Schedule II'!N19","v":0}]
["Sch II","Investments",null,"Commercial MBS - BSCR Rate 8",{"$f":"'Schedule II'!L20","v":0},null,{"$f":"'Schedule II'!N20","v":0}]
["Sch II","Investments",null,"Bonds Mutual Fund - BSCR Rate 0",{"$f":"'Schedule II'!P12","v":0},null,{"$f":"'Schedule II'!R12","v":0}]
["Sch II","Investments",null,"Bonds Mutual Fund - BSCR Rate 1",{"$f":"'Schedule II'!P13","v":0},null,{"$f":"'Schedule II'!R13","v":0}]
["Sch II","Investments",null,"Bonds Mutual Fund - BSCR Rate 2",{"$f":"'Schedule II'!P14","v":0},null,{"$f":"'Schedule II'!R14","v":0}]
["Sch II","Investments",null,"Bonds Mutual Fund - BSCR Rate 3",{"$f":"'Schedule II'!P15","v":0},null,{"$f":"'Schedule II'!R15","v":0}]
["Sch II","Investments",null,"Bonds Mutual Fund - BSCR Rate 4",{"$f":"'Schedule II'!P16","v":0},null,{"$f":"'Schedule II'!R16","v":0}]
["Sch II","Investments",null,"Bonds Mutual Fund - BSCR Rate 5",{"$f":"'Schedule II'!P17","v":0},null,{"$f":"'Schedule II'!R17","v":0}]
["Sch II","Investments",null,"Bonds Mutual Fund - BSCR Rate 6",{"$f":"'Schedule II'!P18","v":0},null,{"$f":"'Schedule II'!R18","v":0}]
["Sch II","Investments",null,"Bonds Mutual Fund - BSCR Rate 7",{"$f":"'Schedule II'!P19","v":0},null,{"$f":"'Schedule II'!R19","v":0}]
["Sch II","Investments",null,"Bonds Mutual Fund - BSCR Rate 8",{"$f":"'Schedule II'!P20","v":0},null,{"$f":"'Schedule II'!R20","v":0}]
["Sch II","Investments",null,"Common Shares - Quoted",{"$f":"'Schedule II'!D41","v":0},null,{"$f":"'Schedule II'!F41","v":0}]
["Sch II","Investments",null,"Common Shares - Unquoted",{"$f":"'Schedule II'!D42","v":0},null,{"$f":"'Schedule II'!F42","v":0}]
["Sch II","Investments",null,"Preferred Shares - BSCR Rate 1",{"$f":"'Schedule II'!H33","v":0},null,{"$f":"'Schedule II'!J33","v":0}]
["Sch II","Investments",null,"Preferred Shares - BSCR Rate 2",{"$f":"'Schedule II'!H34","v":0},null,{"$f":"'Schedule II'!J34","v":0}]
["Sch II","Investments",null,"Preferred Shares - BSCR Rate 3",{"$f":"'Schedule II'!H35","v":0},null,{"$f":"'Schedule II'!J35","v":0}]
["Sch II","Investments",null,"Preferred Shares - BSCR Rate 4",{"$f":"'Schedule II'!H36","v":0},null,{"$f":"'Schedule II'!J36","v":0}]
["Sch II","Investments",null,"Preferred Shares - BSCR Rate 5",{"$f":"'Schedule II'!H37","v":0},null,{"$f":"'Schedule II'!J37","v":0}]
["Sch II","Investments",null,"Preferred Shares - BSCR Rate 6",{"$f":"'Schedule II'!H38","v":0},null,{"$f":"'Schedule II'!J38","v":0}]
["Sch II","Investments",null,"Preferred Shares - BSCR Rate 7",{"$f":"'Schedule II'!H39","v":0},null,{"$f":"'Schedule II'!J39","v":0}]
["Sch II","Investments",null,"Preferred Shares - BSCR Rate 8",{"$f":"'Schedule II'!H40","v":0},null,{"$f":"'Schedule II'!J40","v":0}]
["Sch II","Investments",null,"Equity Mutual Funds -  Quoted",{"$f":"'Schedule II'!L41","v":0},null,{"$f":"'Schedule II'!N41","v":0}]
["Sch II","Investments",null,"Equity Mutual Funds -  Unquoted",{"$f":"'Schedule II'!L42","v":0},null,{"$f":"'Schedule II'!N42","v":0}]
["Sch II","Investments",null,"Mortgage Loans - Insured",{"$f":"'Schedule II'!D57","v":0},null,{"$f":"'Schedule II'!F57","v":0}]
["Sch II","Investments",null,"Mortgage Loans - Other Commercial",{"$f":"'Schedule II'!D58","v":0},null,{"$f":"'Schedule II'!F58","v":0}]
["Sch II","Investments",null,"Mortgage Loans - Other Residential",{"$f":"'Schedule II'!D59","v":0},null,{"$f":"'Schedule II'!F59","v":0}]
["Sch II","Investments",null,"Mortgage Loans - Not Good Stand.",{"$f":"'Schedule II'!D60","v":0},null,{"$f":"'Schedule II'!F60","v":0}]
["Sch II","Investments",null,"NAIC Resid. MBS - Orig. Class 1",{"$f":"'Schedule II'!L55","v":0}]
["Sch II","Investments",null,"NAIC Resid. MBS - Orig. Class 2",{"$f":"'Schedule II'!L56","v":0}]
["Sch II","Investments",null,"NAIC Resid. MBS - Orig. Class 3",{"$f":"'Schedule II'!L57","v":0}]
["Sch II","Investments",null,"NAIC Resid. MBS - Orig. Class 4",{"$f":"'Schedule II'!L58","v":0}]
["Sch II","Investments",null,"NAIC Resid. MBS - Orig. Class 5",{"$f":"'Schedule II'!L59","v":0}]
["Sch II","Investments",null,"NAIC Resid. MBS - Orig. Class 6",{"$f":"'Schedule II'!L60","v":0}]
["Sch II","Investments",null,"NAIC Resid. MBS - Orig. Total",{"$f":"'Schedule II'!L62","v":0}]
["Sch II","Investments",null,"NAIC Resid. MBS - Rev. Class 1",{"$f":"'Schedule II'!N55","v":0}]
["Sch II","Investments",null,"NAIC Resid. MBS - Rev. Class 2",{"$f":"'Schedule II'!N56","v":0}]
["Sch II","Investments",null,"NAIC Resid. MBS - Rev. Class 3",{"$f":"'Schedule II'!N57","v":0}]
["Sch II","Investments",null,"NAIC Resid. MBS - Rev. Class 4",{"$f":"'Schedule II'!N58","v":0}]
["Sch II","Investments",null,"NAIC Resid. MBS - Rev. Class 5",{"$f":"'Schedule II'!N59","v":0}]
["Sch II","Investments",null,"NAIC Resid. MBS - Rev. Class 6",{"$f":"'Schedule II'!N60","v":0}]
["Sch II","Investments",null,"NAIC Resid. MBS - Rev. Total",{"$f":"'Schedule II'!N62","v":0}]
["Sch II","Investments",null,"NAIC Comm. MBS - Orig. Class 1",{"$f":"'Schedule II'!P55","v":0}]
["Sch II","Investments",null,"NAIC Comm. MBS - Orig. Class 2",{"$f":"'Schedule II'!P56","v":0}]
["Sch II","Investments",null,"NAIC Comm. MBS - Orig. Class 3",{"$f":"'Schedule II'!P57","v":0}]
["Sch II","Investments",null,"NAIC Comm. MBS - Orig. Class 4",{"$f":"'Schedule II'!P58","v":0}]
["Sch II","Investments",null,"NAIC Comm. MBS - Orig. Class 5",{"$f":"'Schedule II'!P59","v":0}]
["Sch II","Investments",null,"NAIC Comm. MBS - Orig. Class 6",{"$f":"'Schedule II'!P60","v":0}]
["Sch II","Investments",null,"NAIC Comm. MBS - Orig. Total",{"$f":"'Schedule II'!P62","v":0}]
["Sch II","Investments",null,"NAIC Comm. MBS - Rev. Class 1",{"$f":"'Schedule II'!R55","v":0}]
["Sch II","Investments",null,"NAIC Comm. MBS - Rev. Class 2",{"$f":"'Schedule II'!R56","v":0}]
["Sch II","Investments",null,"NAIC Comm. MBS - Rev. Class 3",{"$f":"'Schedule II'!R57","v":0}]
["Sch II","Investments",null,"NAIC Comm. MBS - Rev. Class 4",{"$f":"'Schedule II'!R58","v":0}]
["Sch II","Investments",null,"NAIC Comm. MBS - Rev. Class 5",{"$f":"'Schedule II'!R59","v":0}]
["Sch II","Investments",null,"NAIC Comm. MBS - Rev. Class 6",{"$f":"'Schedule II'!R60","v":0}]
["Sch II","Investments",null,"NAIC Comm. MBS - Rev. Total",{"$f":"'Schedule II'!R62","v":0}]
["Sch II","Investments",null,"NAIC Rating Corp & Sov. Bond - Class 1",{"$f":"'Schedule II'!D70","v":0}]
["Sch II","Investments",null,"NAIC Rating Corp & Sov. Bond - Class 2",{"$f":"'Schedule II'!D71","v":0}]
["Sch II","Investments",null,"NAIC Rating Corp & Sov. Bond - Class 3",{"$f":"'Schedule II'!D72","v":0}]
["Sch II","Investments",null,"NAIC Rating Corp & Sov. Bond - Class 4",{"$f":"'Schedule II'!D73","v":0}]
["Sch II","Investments",null,"NAIC Rating Corp & Sov. Bond - Class 5",{"$f":"'Schedule II'!D74","v":0}]
["Sch II","Investments",null,"NAIC Rating Corp & Sov. Bond - Class 6",{"$f":"'Schedule II'!D75","v":0}]
["Sch II","Investments",null,"NAIC Rating Corp & Sov. Bond - Total",{"$f":"'Schedule II'!D76","v":0}]
["Sch II","Investments",null,"NAIC Rating Resid. MBS - Class 1",{"$f":"'Schedule II'!F70","v":0}]
["Sch II","Investments",null,"NAIC Rating Resid. MBS - Class 2",{"$f":"'Schedule II'!F71","v":0}]
["Sch II","Investments",null,"NAIC Rating Resid. MBS - Class 3",{"$f":"'Schedule II'!F72","v":0}]
["Sch II","Investments",null,"NAIC Rating Resid. MBS - Class 4",{"$f":"'Schedule II'!F73","v":0}]
["Sch II","Investments",null,"NAIC Rating Resid. MBS - Class 5",{"$f":"'Schedule II'!F74","v":0}]
["Sch II","Investments",null,"NAIC Rating Resid. MBS - Class 6",{"$f":"'Schedule II'!F75","v":0}]
["Sch II","Investments",null,"NAIC Rating Resid. MBS - Total",{"$f":"'Schedule II'!F76","v":0}]
["Sch II","Investments",null,"NAIC Rating Comm. MBS - Class 1",{"$f":"'Schedule II'!H70","v":0}]
["Sch II","Investments",null,"NAIC Rating Comm. MBS - Class 2",{"$f":"'Schedule II'!H71","v":0}]
["Sch II","Investments",null,"NAIC Rating Comm. MBS - Class 3",{"$f":"'Schedule II'!H72","v":0}]
["Sch II","Investments",null,"NAIC Rating Comm. MBS - Class 4",{"$f":"'Schedule II'!H73","v":0}]
["Sch II","Investments",null,"NAIC Rating Comm. MBS - Class 5",{"$f":"'Schedule II'!H74","v":0}]
["Sch II","Investments",null,"NAIC Rating Comm. MBS - Class 6",{"$f":"'Schedule II'!H75","v":0}]
["Sch II","Investments",null,"NAIC Rating Comm. MBS - Total",{"$f":"'Schedule II'!H76","v":0}]
["Sch II","Investments",null,"NAIC Rating Bond Mutual - Class 1",{"$f":"'Schedule II'!J70","v":0}]
["Sch II","Investments",null,"NAIC Rating Bond Mutual - Class 2",{"$f":"'Schedule II'!J71","v":0}]
["Sch II","Investments",null,"NAIC Rating Bond Mutual - Class 3",{"$f":"'Schedule II'!J72","v":0}]
["Sch II","Investments",null,"NAIC Rating Bond Mutual - Class 4",{"$f":"'Schedule II'!J73","v":0}]
["Sch II","Investments",null,"NAIC Rating Bond Mutual - Class 5",{"$f":"'Schedule II'!J74","v":0}]
["Sch II","Investments",null,"NAIC Rating Bond Mutual - Class 6",{"$f":"'Schedule II'!J75","v":0}]
["Sch II","Investments",null,"NAIC Rating Bond Mutual - Total",{"$f":"'Schedule II'!J76","v":0}]
["Sch II","Investments",null,"NAIC Rating Mort. Loan - Class 1",{"$f":"'Schedule II'!L70","v":0}]
["Sch II","Investments",null,"NAIC Rating Mort. Loan - Class 2",{"$f":"'Schedule II'!L71","v":0}]
["Sch II","Investments",null,"NAIC Rating Mort. Loan - Class 3",{"$f":"'Schedule II'!L72","v":0}]
["Sch II","Investments",null,"NAIC Rating Mort. Loan - Class 4",{"$f":"'Schedule II'!L73","v":0}]
["Sch II","Investments",null,"NAIC Rating Mort. Loan - Class 5",{"$f":"'Schedule II'!L74","v":0}]
["Sch II","Investments",null,"NAIC Rating Mort. Loan - Class 6",{"$f":"'Schedule II'!L75","v":0}]
["Sch II","Investments",null,"NAIC Rating Mort. Loan - Total",{"$f":"'Schedule II'!L76","v":0}]
["Sch II","Investments",null,"NAIC Rating Pref. Stock - Class 1",{"$f":"'Schedule II'!N70","v":0}]
["Sch II","Investments",null,"NAIC Rating Pref. Stock - Class 2",{"$f":"'Schedule II'!N71","v":0}]
["Sch II","Investments",null,"NAIC Rating Pref. Stock - Class 3",{"$f":"'Schedule II'!N72","v":0}]
["Sch II","Investments",null,"NAIC Rating Pref. Stock - Class 4",{"$f":"'Schedule II'!N73","v":0}]
["Sch II","Investments",null,"NAIC Rating Pref. Stock - Class 5",{"$f":"'Schedule II'!N74","v":0}]
["Sch II","Investments",null,"NAIC Rating Pref. Stock - Class 6",{"$f":"'Schedule II'!N75","v":0}]
["Sch II","Investments",null,"NAIC Rating Pref. Stock - Total",{"$f":"'Schedule II'!N76","v":0}]
["Sch II","Investments",null,"NAIC Rating Other Assets - Class 1",{"$f":"'Schedule II'!P70","v":0}]
["Sch II","Investments",null,"NAIC Rating Other Assets - Class 2",{"$f":"'Schedule II'!P71","v":0}]
["Sch II","Investments",null,"NAIC Rating Other Assets - Class 3",{"$f":"'Schedule II'!P72","v":0}]
["Sch II","Investments",null,"NAIC Rating Other Assets - Class 4",{"$f":"'Schedule II'!P73","v":0}]
["Sch II","Investments",null,"NAIC Rating Other Assets - Class 5",{"$f":"'Schedule II'!P74","v":0}]
["Sch II","Investments",null,"NAIC Rating Other Assets - Class 6",{"$f":"'Schedule II'!P75","v":0}]
["Sch II","Investments",null,"NAIC Rating Other Assets - Total",{"$f":"'Schedule II'!P76","v":0}]
[]
["Sch IIA","Funds Held",null,"Corp. Bonds - BSCR Rate 0",{"$f":"'Schedule IIA'!D12","v":0},null,{"$f":"'Schedule IIA'!F12","v":0}]
["Sch IIA","Funds Held",null,"Corp. Bonds - BSCR Rate 1",{"$f":"'Schedule IIA'!D13","v":0},null,{"$f":"'Schedule IIA'!F13","v":0}]
["Sch IIA","Funds Held",null,"Corp. Bonds - BSCR Rate 2",{"$f":"'Schedule IIA'!D14","v":0},null,{"$f":"'Schedule IIA'!F14","v":0}]
["Sch IIA","Funds Held",null,"Corp. Bonds - BSCR Rate 3",{"$f":"'Schedule IIA'!D15","v":0},null,{"$f":"'Schedule IIA'!F15","v":0}]
["Sch IIA","Funds Held",null,"Corp. Bonds - BSCR Rate 4",{"$f":"'Schedule IIA'!D16","v":0},null,{"$f":"'Schedule IIA'!F16","v":0}]
["Sch IIA","Funds Held",null,"Corp. Bonds - BSCR Rate 5",{"$f":"'Schedule IIA'!D17","v":0},null,{"$f":"'Schedule IIA'!F17","v":0}]
["Sch IIA","Funds Held",null,"Corp. Bonds - BSCR Rate 6",{"$f":"'Schedule IIA'!D18","v":0},null,{"$f":"'Schedule IIA'!F18","v":0}]
["Sch IIA","Funds Held",null,"Corp. Bonds - BSCR Rate 7",{"$f":"'Schedule IIA'!D19","v":0},null,{"$f":"'Schedule IIA'!F19","v":0}]
["Sch IIA","Funds Held",null,"Corp. Bonds - BSCR Rate 8",{"$f":"'Schedule IIA'!D20","v":0},null,{"$f":"'Schedule IIA'!F20","v":0}]
["Sch IIA","Funds Held",null,"Residential MBS - BSCR Rate 1",{"$f":"'Schedule IIA'!H13","v":0},null,{"$f":"'Schedule IIA'!J13","v":0}]
["Sch IIA","Funds Held",null,"Residential MBS - BSCR Rate 2",{"$f":"'Schedule IIA'!H14","v":0},null,{"$f":"'Schedule IIA'!J14","v":0}]
["Sch IIA","Funds Held",null,"Residential MBS - BSCR Rate 3",{"$f":"'Schedule IIA'!H15","v":0},null,{"$f":"'Schedule IIA'!J15","v":0}]
["Sch IIA","Funds Held",null,"Residential MBS - BSCR Rate 4",{"$f":"'Schedule IIA'!H16","v":0},null,{"$f":"'Schedule IIA'!J16","v":0}]
["Sch IIA","Funds Held",null,"Residential MBS - BSCR Rate 5",{"$f":"'Schedule IIA'!H17","v":0},null,{"$f":"'Schedule IIA'!J17","v":0}]
["Sch IIA","Funds Held",null,"Residential MBS - BSCR Rate 6",{"$f":"'Schedule IIA'!H18","v":0},null,{"$f":"'Schedule IIA'!J18","v":0}]
["Sch IIA","Funds Held",null,"Residential MBS - BSCR Rate 7",{"$f":"'Schedule IIA'!H19","v":0},null,{"$f":"'Schedule IIA'!J19","v":0}]
["Sch IIA","Funds Held",null,"Residential MBS - BSCR Rate 8",{"$f":"'Schedule IIA'!H20","v":0},null,{"$f":"'Schedule IIA'!J20","v":0}]
["Sch IIA","Funds Held",null,"Commercial MBS - BSCR Rate 1",{"$f":"'Schedule IIA'!L13","v":0},null,{"$f":"'Schedule IIA'!N13","v":0}]
["Sch IIA","Funds Held",null,"Commercial MBS - BSCR Rate 2",{"$f":"'Schedule IIA'!L14","v":0},null,{"$f":"'Schedule IIA'!N14","v":0}]
["Sch IIA","Funds Held",null,"Commercial MBS - BSCR Rate 3",{"$f":"'Schedule IIA'!L15","v":0},null,{"$f":"'Schedule IIA'!N15","v":0}]
["Sch IIA","Funds Held",null,"Commercial MBS - BSCR Rate 4",{"$f":"'Schedule IIA'!L16","v":0},null,{"$f":"'Schedule IIA'!N16","v":0}]
["Sch IIA","Funds Held",null,"Commercial MBS - BSCR Rate 5",{"$f":"'Schedule IIA'!L17","v":0},null,{"$f":"'Schedule IIA'!N17","v":0}]
["Sch IIA","Funds Held",null,"Commercial MBS - BSCR Rate 6",{"$f":"'Schedule IIA'!L18","v":0},null,{"$f":"'Schedule IIA'!N18","v":0}]
["Sch IIA","Funds Held",null,"Commercial MBS - BSCR Rate 7",{"$f":"'Schedule IIA'!L19","v":0},null,{"$f":"'Schedule IIA'!N19","v":0}]
["Sch IIA","Funds Held",null,"Commercial MBS - BSCR Rate 8",{"$f":"'Schedule IIA'!L20","v":0},null,{"$f":"'Schedule IIA'!N20","v":0}]
["Sch IIA","Funds Held",null,"Bonds Mutual Fund - BSCR Rate 0",{"$f":"'Schedule IIA'!P12","v":0},null,{"$f":"'Schedule IIA'!R12","v":0}]
["Sch IIA","Funds Held",null,"Bonds Mutual Fund - BSCR Rate 1",{"$f":"'Schedule IIA'!P13","v":0},null,{"$f":"'Schedule IIA'!R13","v":0}]
["Sch IIA","Funds Held",null,"Bonds Mutual Fund - BSCR Rate 2",{"$f":"'Schedule IIA'!P14","v":0},null,{"$f":"'Schedule IIA'!R14","v":0}]
["Sch IIA","Funds Held",null,"Bonds Mutual Fund - BSCR Rate 3",{"$f":"'Schedule IIA'!P15","v":0},null,{"$f":"'Schedule IIA'!R15","v":0}]
["Sch IIA","Funds Held",null,"Bonds Mutual Fund - BSCR Rate 4",{"$f":"'Schedule IIA'!P16","v":0},null,{"$f":"'Schedule IIA'!R16","v":0}]
["Sch IIA","Funds Held",null,"Bonds Mutual Fund - BSCR Rate 5",{"$f":"'Schedule IIA'!P17","v":0},null,{"$f":"'Schedule IIA'!R17","v":0}]
["Sch IIA","Funds Held",null,"Bonds Mutual Fund - BSCR Rate 6",{"$f":"'Schedule IIA'!P18","v":0},null,{"$f":"'Schedule IIA'!R18","v":0}]
["Sch IIA","Funds Held",null,"Bonds Mutual Fund - BSCR Rate 7",{"$f":"'Schedule IIA'!P19","v":0},null,{"$f":"'Schedule IIA'!R19","v":0}]
["Sch IIA","Funds Held",null,"Bonds Mutual Fund - BSCR Rate 8",{"$f":"'Schedule IIA'!P20","v":0},null,{"$f":"'Schedule IIA'!R20","v":0}]
["Sch IIA","Funds Held",null,"Common Shares - Quoted",{"$f":"'Schedule IIA'!D41","v":0},null,{"$f":"'Schedule IIA'!F41","v":0}]
["Sch IIA","Funds Held",null,"Common Shares - Unquoted",{"$f":"'Schedule IIA'!D42","v":0},null,{"$f":"'Schedule IIA'!F42","v":0}]
["Sch IIA","Funds Held",null,"Preferred Shares - BSCR Rate 1",{"$f":"'Schedule IIA'!H33","v":0},null,{"$f":"'Schedule IIA'!J33","v":0}]
["Sch IIA","Funds Held",null,"Preferred Shares - BSCR Rate 2",{"$f":"'Schedule IIA'!H34","v":0},null,{"$f":"'Schedule IIA'!J34","v":0}]
["Sch IIA","Funds Held",null,"Preferred Shares - BSCR Rate 3",{"$f":"'Schedule IIA'!H35","v":0},null,{"$f":"'Schedule IIA'!J35","v":0}]
["Sch IIA","Funds Held",null,"Preferred Shares - BSCR Rate 4",{"$f":"'Schedule IIA'!H36","v":0},null,{"$f":"'Schedule IIA'!J36","v":0}]
["Sch IIA","Funds Held",null,"Preferred Shares - BSCR Rate 5",{"$f":"'Schedule IIA'!H37","v":0},null,{"$f":"'Schedule IIA'!J37","v":0}]
["Sch IIA","Funds Held",null,"Preferred Shares - BSCR Rate 6",{"$f":"'Schedule IIA'!H38","v":0},null,{"$f":"'Schedule IIA'!J38","v":0}]
["Sch IIA","Funds Held",null,"Preferred Shares - BSCR Rate 7",{"$f":"'Schedule IIA'!H39","v":0},null,{"$f":"'Schedule IIA'!J39","v":0}]
["Sch IIA","Funds Held",null,"Preferred Shares - BSCR Rate 8",{"$f":"'Schedule IIA'!H40","v":0},null,{"$f":"'Schedule IIA'!J40","v":0}]
["Sch IIA","Funds Held",null,"Equity Mutual Funds -  Quoted",{"$f":"'Schedule IIA'!L41","v":0},null,{"$f":"'Schedule IIA'!N41","v":0}]
["Sch IIA","Funds Held",null,"Equity Mutual Funds -  Unquoted",{"$f":"'Schedule IIA'!L42","v":0},null,{"$f":"'Schedule IIA'!N42","v":0}]
["Sch IIA","Funds Held",null,"Other Investments -  Quoted",{"$f":"+'Schedule IIA'!P41","v":0},null,{"$f":"+'Schedule IIA'!R41","v":0}]
["Sch IIA","Funds Held",null,"Other Investments -  Unquoted",{"$f":"+'Schedule IIA'!P42","v":0},null,{"$f":"+'Schedule IIA'!R42","v":0}]
["Sch IIA","Funds Held",null,"Mortgage Loans - Insured",{"$f":"'Schedule IIA'!D57","v":0},null,{"$f":"'Schedule IIA'!F57","v":0}]
["Sch IIA","Funds Held",null,"Mortgage Loans - Other Commercial",{"$f":"'Schedule IIA'!D58","v":0},null,{"$f":"'Schedule IIA'!F58","v":0}]
["Sch IIA","Funds Held",null,"Mortgage Loans - Other Residential",{"$f":"'Schedule IIA'!D59","v":0},null,{"$f":"'Schedule IIA'!F59","v":0}]
["Sch IIA","Funds Held",null,"Mortgage Loans - Not Good Stand.",{"$f":"'Schedule IIA'!D60","v":0},null,{"$f":"'Schedule IIA'!F60","v":0}]
["Sch IIA","Funds Held",null,"Cash and Cash Equivalents",{"$f":"'Schedule IIA'!D68","v":0},null,{"$f":"'Schedule IIA'!F68","v":0}]
["Sch IIA","Funds Held",null,"NAIC Resid. MBS - Orig. Class 1",{"$f":"'Schedule IIA'!L55","v":0}]
["Sch IIA","Funds Held",null,"NAIC Resid. MBS - Orig. Class 2",{"$f":"'Schedule IIA'!L56","v":0}]
["Sch IIA","Funds Held",null,"NAIC Resid. MBS - Orig. Class 3",{"$f":"'Schedule IIA'!L57","v":0}]
["Sch IIA","Funds Held",null,"NAIC Resid. MBS - Orig. Class 4",{"$f":"'Schedule IIA'!L58","v":0}]
["Sch IIA","Funds Held",null,"NAIC Resid. MBS - Orig. Class 5",{"$f":"'Schedule IIA'!L59","v":0}]
["Sch IIA","Funds Held",null,"NAIC Resid. MBS - Orig. Class 6",{"$f":"'Schedule IIA'!L60","v":0}]
["Sch IIA","Funds Held",null,"NAIC Resid. MBS - Orig. Total",{"$f":"'Schedule IIA'!L62","v":0}]
["Sch IIA","Funds Held",null,"NAIC Resid. MBS - Rev. Class 1",{"$f":"'Schedule IIA'!N55","v":0}]
["Sch IIA","Funds Held",null,"NAIC Resid. MBS - Rev. Class 2",{"$f":"'Schedule IIA'!N56","v":0}]
["Sch IIA","Funds Held",null,"NAIC Resid. MBS - Rev. Class 3",{"$f":"'Schedule IIA'!N57","v":0}]
["Sch IIA","Funds Held",null,"NAIC Resid. MBS - Rev. Class 4",{"$f":"'Schedule IIA'!N58","v":0}]
["Sch IIA","Funds Held",null,"NAIC Resid. MBS - Rev. Class 5",{"$f":"'Schedule IIA'!N59","v":0}]
["Sch IIA","Funds Held",null,"NAIC Resid. MBS - Rev. Class 6",{"$f":"'Schedule IIA'!N60","v":0}]
["Sch IIA","Funds Held",null,"NAIC Resid. MBS - Rev. Total",{"$f":"'Schedule IIA'!N62","v":0}]
["Sch IIA","Funds Held",null,"NAIC Comm. MBS - Orig. Class 1",{"$f":"'Schedule IIA'!P55","v":0}]
["Sch IIA","Funds Held",null,"NAIC Comm. MBS - Orig. Class 2",{"$f":"'Schedule IIA'!P56","v":0}]
["Sch IIA","Funds Held",null,"NAIC Comm. MBS - Orig. Class 3",{"$f":"'Schedule IIA'!P57","v":0}]
["Sch IIA","Funds Held",null,"NAIC Comm. MBS - Orig. Class 4",{"$f":"'Schedule IIA'!P58","v":0}]
["Sch IIA","Funds Held",null,"NAIC Comm. MBS - Orig. Class 5",{"$f":"'Schedule IIA'!P59","v":0}]
["Sch IIA","Funds Held",null,"NAIC Comm. MBS - Orig. Class 6",{"$f":"'Schedule IIA'!P60","v":0}]
["Sch IIA","Funds Held",null,"NAIC Comm. MBS - Orig. Total",{"$f":"'Schedule IIA'!P62","v":0}]
["Sch IIA","Funds Held",null,"NAIC Comm. MBS - Rev. Class 1",{"$f":"'Schedule IIA'!R55","v":0}]
["Sch IIA","Funds Held",null,"NAIC Comm. MBS - Rev. Class 2",{"$f":"'Schedule IIA'!R56","v":0}]
["Sch IIA","Funds Held",null,"NAIC Comm. MBS - Rev. Class 3",{"$f":"'Schedule IIA'!R57","v":0}]
["Sch IIA","Funds Held",null,"NAIC Comm. MBS - Rev. Class 4",{"$f":"'Schedule IIA'!R58","v":0}]
["Sch IIA","Funds Held",null,"NAIC Comm. MBS - Rev. Class 5",{"$f":"'Schedule IIA'!R59","v":0}]
["Sch IIA","Funds Held",null,"NAIC Comm. MBS - Rev. Class 6",{"$f":"'Schedule IIA'!R60","v":0}]
["Sch IIA","Funds Held",null,"NAIC Comm. MBS - Rev. Total",{"$f":"'Schedule IIA'!R62","v":0}]
["Sch IIA","Funds Held",null,"NAIC Rating Corp & Sov. Bond - Class 1",{"$f":"'Schedule IIA'!D78","v":0}]
["Sch IIA","Funds Held",null,"NAIC Rating Corp & Sov. Bond - Class 2",{"$f":"'Schedule IIA'!D79","v":0}]
["Sch IIA","Funds Held",null,"NAIC Rating Corp & Sov. Bond - Class 3",{"$f":"'Schedule IIA'!D80","v":0}]
["Sch IIA","Funds Held",null,"NAIC Rating Corp & Sov. Bond - Class 4",{"$f":"'Schedule IIA'!D81","v":0}]
["Sch IIA","Funds Held",null,"NAIC Rating Corp & Sov. Bond - Class 5",{"$f":"'Schedule IIA'!D82","v":0}]
["Sch IIA","Funds Held",null,"NAIC Rating Corp & Sov. Bond - Class 6",{"$f":"'Schedule IIA'!D83","v":0}]
["Sch IIA","Funds Held",null,"NAIC Rating Corp & Sov. Bond - Total",{"$f":"'Schedule IIA'!D84","v":0}]
["Sch IIA","Funds Held",null,"NAIC Rating Resid. MBS - Class 1",{"$f":"'Schedule IIA'!F78","v":0}]
["Sch IIA","Funds Held",null,"NAIC Rating Resid. MBS - Class 2",{"$f":"'Schedule IIA'!F79","v":0}]
["Sch IIA","Funds Held",null,"NAIC Rating Resid. MBS - Class 3",{"$f":"'Schedule IIA'!F80","v":0}]
["Sch IIA","Funds Held",null,"NAIC Rating Resid. MBS - Class 4",{"$f":"'Schedule IIA'!F81","v":0}]
["Sch IIA","Funds Held",null,"NAIC Rating Resid. MBS - Class 5",{"$f":"'Schedule IIA'!F82","v":0}]
["Sch IIA","Funds Held",null,"NAIC Rating Resid. MBS - Class 6",{"$f":"'Schedule IIA'!F83","v":0}]
["Sch IIA","Funds Held",null,"NAIC Rating Resid. MBS - Total",{"$f":"'Schedule IIA'!F84","v":0}]
["Sch IIA","Funds Held",null,"NAIC Rating Comm. MBS - Class 1",{"$f":"'Schedule IIA'!H78","v":0}]
["Sch IIA","Funds Held",null,"NAIC Rating Comm. MBS - Class 2",{"$f":"'Schedule IIA'!H79","v":0}]
["Sch IIA","Funds Held",null,"NAIC Rating Comm. MBS - Class 3",{"$f":"'Schedule IIA'!H80","v":0}]
["Sch IIA","Funds Held",null,"NAIC Rating Comm. MBS - Class 4",{"$f":"'Schedule IIA'!H81","v":0}]
["Sch IIA","Funds Held",null,"NAIC Rating Comm. MBS - Class 5",{"$f":"'Schedule IIA'!H82","v":0}]
["Sch IIA","Funds Held",null,"NAIC Rating Comm. MBS - Class 6",{"$f":"'Schedule IIA'!H83","v":0}]
["Sch IIA","Funds Held",null,"NAIC Rating Comm. MBS - Total",{"$f":"'Schedule IIA'!H84","v":0}]
["Sch IIA","Funds Held",null,"NAIC Rating Bond Mutual - Class 1",{"$f":"'Schedule IIA'!J78","v":0}]
["Sch IIA","Funds Held",null,"NAIC Rating Bond Mutual - Class 2",{"$f":"'Schedule IIA'!J79","v":0}]
["Sch IIA","Funds Held",null,"NAIC Rating Bond Mutual - Class 3",{"$f":"'Schedule IIA'!J80","v":0}]
["Sch IIA","Funds Held",null,"NAIC Rating Bond Mutual - Class 4",{"$f":"'Schedule IIA'!J81","v":0}]
["Sch IIA","Funds Held",null,"NAIC Rating Bond Mutual - Class 5",{"$f":"'Schedule IIA'!J82","v":0}]
["Sch IIA","Funds Held",null,"NAIC Rating Bond Mutual - Class 6",{"$f":"'Schedule IIA'!J83","v":0}]
["Sch IIA","Funds Held",null,"NAIC Rating Bond Mutual - Total",{"$f":"'Schedule IIA'!J84","v":0}]
["Sch IIA","Funds Held",null,"NAIC Rating Mort. Loan - Class 1",{"$f":"'Schedule IIA'!L78","v":0}]
["Sch IIA","Funds Held",null,"NAIC Rating Mort. Loan - Class 2",{"$f":"'Schedule IIA'!L79","v":0}]
["Sch IIA","Funds Held",null,"NAIC Rating Mort. Loan - Class 3",{"$f":"'Schedule IIA'!L80","v":0}]
["Sch IIA","Funds Held",null,"NAIC Rating Mort. Loan - Class 4",{"$f":"'Schedule IIA'!L81","v":0}]
["Sch IIA","Funds Held",null,"NAIC Rating Mort. Loan - Class 5",{"$f":"'Schedule IIA'!L82","v":0}]
["Sch IIA","Funds Held",null,"NAIC Rating Mort. Loan - Class 6",{"$f":"'Schedule IIA'!L83","v":0}]
["Sch IIA","Funds Held",null,"NAIC Rating Mort. Loan - Total",{"$f":"'Schedule IIA'!L84","v":0}]
["Sch IIA","Funds Held",null,"NAIC Rating Pref. Stock - Class 1",{"$f":"'Schedule IIA'!N78","v":0}]
["Sch IIA","Funds Held",null,"NAIC Rating Pref. Stock - Class 2",{"$f":"'Schedule IIA'!N79","v":0}]
["Sch IIA","Funds Held",null,"NAIC Rating Pref. Stock - Class 3",{"$f":"'Schedule IIA'!N80","v":0}]
["Sch IIA","Funds Held",null,"NAIC Rating Pref. Stock - Class 4",{"$f":"'Schedule IIA'!N81","v":0}]
["Sch IIA","Funds Held",null,"NAIC Rating Pref. Stock - Class 5",{"$f":"'Schedule IIA'!N82","v":0}]
["Sch IIA","Funds Held",null,"NAIC Rating Pref. Stock - Class 6",{"$f":"'Schedule IIA'!N83","v":0}]
["Sch IIA","Funds Held",null,"NAIC Rating Pref. Stock - Total",{"$f":"'Schedule IIA'!N84","v":0}]
["Sch IIA","Funds Held",null,"NAIC Rating Other Assets - Class 1",{"$f":"'Schedule IIA'!P78","v":0}]
["Sch IIA","Funds Held",null,"NAIC Rating Other Assets - Class 2",{"$f":"'Schedule IIA'!P79","v":0}]
["Sch IIA","Funds Held",null,"NAIC Rating Other Assets - Class 3",{"$f":"'Schedule IIA'!P80","v":0}]
["Sch IIA","Funds Held",null,"NAIC Rating Other Assets - Class 4",{"$f":"'Schedule IIA'!P81","v":0}]
["Sch IIA","Funds Held",null,"NAIC Rating Other Assets - Class 5",{"$f":"'Schedule IIA'!P82","v":0}]
["Sch IIA","Funds Held",null,"NAIC Rating Other Assets - Class 6",{"$f":"'Schedule IIA'!P83","v":0}]
["Sch IIA","Funds Held",null,"NAIC Rating Other Assets - Total",{"$f":"'Schedule IIA'!P84","v":0}]
[]
["Sch IIB","Investments",null,"Corp. Bonds - BSCR Rate 0",null,null,null,null,null,null,null,null,{"$f":"'Schedule IIB (EBS)'!D13","v":0},null,{"$f":"'Schedule IIB (EBS)'!F13","v":0}]
["Sch IIB","Investments",null,"Corp. Bonds - BSCR Rate 1",null,null,null,null,null,null,null,null,{"$f":"'Schedule IIB (EBS)'!D14","v":0},null,{"$f":"'Schedule IIB (EBS)'!F14","v":0}]
["Sch IIB","Investments",null,"Corp. Bonds - BSCR Rate 2",null,null,null,null,null,null,null,null,{"$f":"'Schedule IIB (EBS)'!D15","v":0},null,{"$f":"'Schedule IIB (EBS)'!F15","v":0}]
["Sch IIB","Investments",null,"Corp. Bonds - BSCR Rate 3",null,null,null,null,null,null,null,null,{"$f":"'Schedule IIB (EBS)'!D16","v":0},null,{"$f":"'Schedule IIB (EBS)'!F16","v":0}]
["Sch IIB","Investments",null,"Corp. Bonds - BSCR Rate 4",null,null,null,null,null,null,null,null,{"$f":"'Schedule IIB (EBS)'!D17","v":0},null,{"$f":"'Schedule IIB (EBS)'!F17","v":0}]
["Sch IIB","Investments",null,"Corp. Bonds - BSCR Rate 5",null,null,null,null,null,null,null,null,{"$f":"'Schedule IIB (EBS)'!D18","v":0},null,{"$f":"'Schedule IIB (EBS)'!F18","v":0}]
["Sch IIB","Investments",null,"Corp. Bonds - BSCR Rate 6",null,null,null,null,null,null,null,null,{"$f":"'Schedule IIB (EBS)'!D19","v":0},null,{"$f":"'Schedule IIB (EBS)'!F19","v":0}]
["Sch IIB","Investments",null,"Corp. Bonds - BSCR Rate 7",null,null,null,null,null,null,null,null,{"$f":"'Schedule IIB (EBS)'!D20","v":0},null,{"$f":"'Schedule IIB (EBS)'!F20","v":0}]
["Sch IIB","Investments",null,"Corp. Bonds - BSCR Rate 8",null,null,null,null,null,null,null,null,{"$f":"'Schedule IIB (EBS)'!D21","v":0},null,{"$f":"'Schedule IIB (EBS)'!F21","v":0}]
["Sch IIB","Investments",null,"Residential MBS - BSCR Rate 1",null,null,null,null,null,null,null,null,{"$f":"'Schedule IIB (EBS)'!H14","v":0},null,{"$f":"'Schedule IIB (EBS)'!J14","v":0}]
["Sch IIB","Investments",null,"Residential MBS - BSCR Rate 2",null,null,null,null,null,null,null,null,{"$f":"'Schedule IIB (EBS)'!H15","v":0},null,{"$f":"'Schedule IIB (EBS)'!J15","v":0}]
["Sch IIB","Investments",null,"Residential MBS - BSCR Rate 3",null,null,null,null,null,null,null,null,{"$f":"'Schedule IIB (EBS)'!H16","v":0},null,{"$f":"'Schedule IIB (EBS)'!J16","v":0}]
["Sch IIB","Investments",null,"Residential MBS - BSCR Rate 4",null,null,null,null,null,null,null,null,{"$f":"'Schedule IIB (EBS)'!H17","v":0},null,{"$f":"'Schedule IIB (EBS)'!J17","v":0}]
["Sch IIB","Investments",null,"Residential MBS - BSCR Rate 5",null,null,null,null,null,null,null,null,{"$f":"'Schedule IIB (EBS)'!H18","v":0},null,{"$f":"'Schedule IIB (EBS)'!J18","v":0}]
["Sch IIB","Investments",null,"Residential MBS - BSCR Rate 6",null,null,null,null,null,null,null,null,{"$f":"'Schedule IIB (EBS)'!H19","v":0},null,{"$f":"'Schedule IIB (EBS)'!J19","v":0}]
["Sch IIB","Investments",null,"Residential MBS - BSCR Rate 7",null,null,null,null,null,null,null,null,{"$f":"'Schedule IIB (EBS)'!H20","v":0},null,{"$f":"'Schedule IIB (EBS)'!J20","v":0}]
["Sch IIB","Investments",null,"Residential MBS - BSCR Rate 8",null,null,null,null,null,null,null,null,{"$f":"'Schedule IIB (EBS)'!H21","v":0},null,{"$f":"'Schedule IIB (EBS)'!J21","v":0}]
["Sch IIB","Investments",null,"Commercial MBS - BSCR Rate 1",null,null,null,null,null,null,null,null,{"$f":"'Schedule IIB (EBS)'!L14","v":0},null,{"$f":"'Schedule IIB (EBS)'!N14","v":0}]
["Sch IIB","Investments",null,"Commercial MBS - BSCR Rate 2",null,null,null,null,null,null,null,null,{"$f":"'Schedule IIB (EBS)'!L15","v":0},null,{"$f":"'Schedule IIB (EBS)'!N15","v":0}]
["Sch IIB","Investments",null,"Commercial MBS - BSCR Rate 3",null,null,null,null,null,null,null,null,{"$f":"'Schedule IIB (EBS)'!L16","v":0},null,{"$f":"'Schedule IIB (EBS)'!N16","v":0}]
["Sch IIB","Investments",null,"Commercial MBS - BSCR Rate 4",null,null,null,null,null,null,null,null,{"$f":"'Schedule IIB (EBS)'!L17","v":0},null,{"$f":"'Schedule IIB (EBS)'!N17","v":0}]
["Sch IIB","Investments",null,"Commercial MBS - BSCR Rate 5",null,null,null,null,null,null,null,null,{"$f":"'Schedule IIB (EBS)'!L18","v":0},null,{"$f":"'Schedule IIB (EBS)'!N18","v":0}]
["Sch IIB","Investments",null,"Commercial MBS - BSCR Rate 6",null,null,null,null,null,null,null,null,{"$f":"'Schedule IIB (EBS)'!L19","v":0},null,{"$f":"'Schedule IIB (EBS)'!N19","v":0}]
["Sch IIB","Investments",null,"Commercial MBS - BSCR Rate 7",null,null,null,null,null,null,null,null,{"$f":"'Schedule IIB (EBS)'!L20","v":0},null,{"$f":"'Schedule IIB (EBS)'!N20","v":0}]
["Sch IIB","Investments",null,"Commercial MBS - BSCR Rate 8",null,null,null,null,null,null,null,null,{"$f":"'Schedule IIB (EBS)'!L21","v":0},null,{"$f":"'Schedule IIB (EBS)'!N21","v":0}]
["Sch IIB","Investments",null,"Bonds Mutual Fund - BSCR Rate 0",null,null,null,null,null,null,null,null,{"$f":"'Schedule IIB (EBS)'!P13","v":0},null,{"$f":"'Schedule IIB (EBS)'!R13","v":0}]
["Sch IIB","Investments",null,"Bonds Mutual Fund - BSCR Rate 1",null,null,null,null,null,null,null,null,{"$f":"'Schedule IIB (EBS)'!P14","v":0},null,{"$f":"'Schedule IIB (EBS)'!R14","v":0}]
["Sch IIB","Investments",null,"Bonds Mutual Fund - BSCR Rate 2",null,null,null,null,null,null,null,null,{"$f":"'Schedule IIB (EBS)'!P15","v":0},null,{"$f":"'Schedule IIB (EBS)'!R15","v":0}]
["Sch IIB","Investments",null,"Bonds Mutual Fund - BSCR Rate 3",null,null,null,null,null,null,null,null,{"$f":"'Schedule IIB (EBS)'!P16","v":0},null,{"$f":"'Schedule IIB (EBS)'!R16","v":0}]
["Sch IIB","Investments",null,"Bonds Mutual Fund - BSCR Rate 4",null,null,null,null,null,null,null,null,{"$f":"'Schedule IIB (EBS)'!P17","v":0},null,{"$f":"'Schedule IIB (EBS)'!R17","v":0}]
["Sch IIB","Investments",null,"Bonds Mutual Fund - BSCR Rate 5",null,null,null,null,null,null,null,null,{"$f":"'Schedule IIB (EBS)'!P18","v":0},null,{"$f":"'Schedule IIB (EBS)'!R18","v":0}]
["Sch IIB","Investments",null,"Bonds Mutual Fund - BSCR Rate 6",null,null,null,null,null,null,null,null,{"$f":"'Schedule IIB (EBS)'!P19","v":0},null,{"$f":"'Schedule IIB (EBS)'!R19","v":0}]
["Sch IIB","Investments",null,"Bonds Mutual Fund - BSCR Rate 7",null,null,null,null,null,null,null,null,{"$f":"'Schedule IIB (EBS)'!P20","v":0},null,{"$f":"'Schedule IIB (EBS)'!R20","v":0}]
["Sch IIB","Investments",null,"Bonds Mutual Fund - BSCR Rate 8",null,null,null,null,null,null,null,null,{"$f":"'Schedule IIB (EBS)'!P21","v":0},null,{"$f":"'Schedule IIB (EBS)'!R21","v":0}]
["Sch IIB","Investments",null,"Mortgage Loans - Insured",null,null,null,null,null,null,null,null,{"$f":"'Schedule IIB (EBS)'!T22","v":0},null,{"$f":"'Schedule IIB (EBS)'!V22","v":0}]
["Sch IIB","Investments",null,"Mortgage Loans - Other Commercial",null,null,null,null,null,null,null,null,{"$f":"'Schedule IIB (EBS)'!T23","v":0},null,{"$f":"'Schedule IIB (EBS)'!V23","v":0}]
["Sch IIB","Investments",null,"Mortgage Loans - Other Residential",null,null,null,null,null,null,null,null,{"$f":"'Schedule IIB (EBS)'!T24","v":0},null,{"$f":"'Schedule IIB (EBS)'!V24","v":0}]
["Sch IIB","Investments",null,"Mortgage Loans - Not Good Stand.",null,null,null,null,null,null,null,null,{"$f":"'Schedule IIB (EBS)'!T25","v":0},null,{"$f":"'Schedule IIB (EBS)'!V25","v":0}]
["Sch IIB","Investments",null,"Long Positions - Before - Strategic Holdings - Listed",null,null,null,null,null,null,null,null,{"$f":"'Schedule IIB (EBS)'!D39","v":0}]
["Sch IIB","Investments",null,"Long Positions - Before - Duration Based",null,null,null,null,null,null,null,null,{"$f":"'Schedule IIB (EBS)'!D40","v":0}]
["Sch IIB","Investments",null,"Long Positions - Before - Listed Equity Securities in Developed Markets",null,null,null,null,null,null,null,null,{"$f":"'Schedule IIB (EBS)'!D41","v":0}]
["Sch IIB","Investments",null,"Long Positions - Before - Preferred Stocks, BSCR Rating 1",null,null,null,null,null,null,null,null,{"$f":"'Schedule IIB (EBS)'!D42","v":0}]
["Sch IIB","Investments",null,"Long Positions - Before - Preferred Stocks, BSCR Rating 2",null,null,null,null,null,null,null,null,{"$f":"'Schedule IIB (EBS)'!D43","v":0}]
["Sch IIB","Investments",null,"Long Positions - Before - Preferred Stocks, BSCR Rating 3",null,null,null,null,null,null,null,null,{"$f":"'Schedule IIB (EBS)'!D44","v":0}]
["Sch IIB","Investments",null,"Long Positions - Before - Preferred Stocks, BSCR Rating 4",null,null,null,null,null,null,null,null,{"$f":"'Schedule IIB (EBS)'!D45","v":0}]
["Sch IIB","Investments",null,"Long Positions - Before - Preferred Stocks, BSCR Rating 5",null,null,null,null,null,null,null,null,{"$f":"'Schedule IIB (EBS)'!D46","v":0}]
["Sch IIB","Investments",null,"Long Positions - Before - Preferred Stocks, BSCR Rating 6",null,null,null,null,null,null,null,null,{"$f":"'Schedule IIB (EBS)'!D47","v":0}]
["Sch IIB","Investments",null,"Long Positions - Before - Preferred Stocks, BSCR Rating 7",null,null,null,null,null,null,null,null,{"$f":"'Schedule IIB (EBS)'!D48","v":0}]
["Sch IIB","Investments",null,"Long Positions - Before - Preferred Stocks, BSCR Rating 8",null,null,null,null,null,null,null,null,{"$f":"'Schedule IIB (EBS)'!D49","v":0}]
["Sch IIB","Investments",null,"Long Positions - Before - Equity Derivatives on Type 1 Equities",null,null,null,null,null,null,null,null,{"$f":"'Schedule IIB (EBS)'!D50","v":0}]
["Sch IIB","Investments",null,"Long Positions - Before - Strategic Holdings - Unlisted",null,null,null,null,null,null,null,null,{"$f":"'Schedule IIB (EBS)'!D51","v":0}]
["Sch IIB","Investments",null,"Long Positions - Before - Other Equities",null,null,null,null,null,null,null,null,{"$f":"'Schedule IIB (EBS)'!D52","v":0}]
["Sch IIB","Investments",null,"Long Positions - Before - Letters of Credit",null,null,null,null,null,null,null,null,{"$f":"'Schedule IIB (EBS)'!D53","v":0}]
["Sch IIB","Investments",null,"Long Positions - Before - Intangible assets",null,null,null,null,null,null,null,null,{"$f":"'Schedule IIB (EBS)'!D54","v":0}]
["Sch IIB","Investments",null,"Long Positions - Before - Pension Benefit Surplus",null,null,null,null,null,null,null,null,{"$f":"'Schedule IIB (EBS)'!D55","v":0}]
["Sch IIB","Investments",null,"Long Positions - Before - Equity Derivatives on Type 2 Equities",null,null,null,null,null,null,null,null,{"$f":"'Schedule IIB (EBS)'!D56","v":0}]
["Sch IIB","Investments",null,"Long Positions - Before - Infrastructure",null,null,null,null,null,null,null,null,{"$f":"'Schedule IIB (EBS)'!D57","v":0}]
["Sch IIB","Investments",null,"Long Positions - Before - Derivatives on Infrastructure",null,null,null,null,null,null,null,null,{"$f":"'Schedule IIB (EBS)'!D58","v":0}]
["Sch IIB","Investments",null,"Long Positions - Before - Equity Real Estate 1",null,null,null,null,null,null,null,null,{"$f":"'Schedule IIB (EBS)'!D59","v":0}]
["Sch IIB","Investments",null,"Long Positions - Before - Equity Real Estate 2",null,null,null,null,null,null,null,null,{"$f":"'Schedule IIB (EBS)'!D60","v":0}]
["Sch IIB","Investments",null,"Long Positions - After - Strategic Holdings - Listed",null,null,null,null,null,null,null,null,{"$f":"'Schedule IIB (EBS)'!F39","v":0}]
["Sch IIB","Investments",null,"Long Positions - After - Duration Based",null,null,null,null,null,null,null,null,{"$f":"'Schedule IIB (EBS)'!F40","v":0}]
["Sch IIB","Investments",null,"Long Positions - After - Listed Equity Securities in Developed Markets",null,null,null,null,null,null,null,null,{"$f":"'Schedule IIB (EBS)'!F41","v":0}]
["Sch IIB","Investments",null,"Long Positions - After - Preferred Stocks, BSCR Rating 1",null,null,null,null,null,null,null,null,{"$f":"'Schedule IIB (EBS)'!F42","v":0}]
["Sch IIB","Investments",null,"Long Positions - After - Preferred Stocks, BSCR Rating 2",null,null,null,null,null,null,null,null,{"$f":"'Schedule IIB (EBS)'!F43","v":0}]
["Sch IIB","Investments",null,"Long Positions - After - Preferred Stocks, BSCR Rating 3",null,null,null,null,null,null,null,null,{"$f":"'Schedule IIB (EBS)'!F44","v":0}]
["Sch IIB","Investments",null,"Long Positions - After - Preferred Stocks, BSCR Rating 4",null,null,null,null,null,null,null,null,{"$f":"'Schedule IIB (EBS)'!F45","v":0}]
["Sch IIB","Investments",null,"Long Positions - After - Preferred Stocks, BSCR Rating 5",null,null,null,null,null,null,null,null,{"$f":"'Schedule IIB (EBS)'!F46","v":0}]
["Sch IIB","Investments",null,"Long Positions - After - Preferred Stocks, BSCR Rating 6",null,null,null,null,null,null,null,null,{"$f":"'Schedule IIB (EBS)'!F47","v":0}]
["Sch IIB","Investments",null,"Long Positions - After - Preferred Stocks, BSCR Rating 7",null,null,null,null,null,null,null,null,{"$f":"'Schedule IIB (EBS)'!F48","v":0}]
["Sch IIB","Investments",null,"Long Positions - After - Preferred Stocks, BSCR Rating 8",null,null,null,null,null,null,null,null,{"$f":"'Schedule IIB (EBS)'!F49","v":0}]
["Sch IIB","Investments",null,"Long Positions - After - Equity Derivatives on Type 1 Equities",null,null,null,null,null,null,null,null,{"$f":"'Schedule IIB (EBS)'!F50","v":0}]
["Sch IIB","Investments",null,"Long Positions - After - Strategic Holdings - Unlisted",null,null,null,null,null,null,null,null,{"$f":"'Schedule IIB (EBS)'!F51","v":0}]
["Sch IIB","Investments",null,"Long Positions - After - Other Equities",null,null,null,null,null,null,null,null,{"$f":"'Schedule IIB (EBS)'!F52","v":0}]
["Sch IIB","Investments",null,"Long Positions - After - Letters of Credit",null,null,null,null,null,null,null,null,{"$f":"'Schedule IIB (EBS)'!F53","v":0}]
["Sch IIB","Investments",null,"Long Positions - After - Intangible assets",null,null,null,null,null,null,null,null,{"$f":"'Schedule IIB (EBS)'!F54","v":0}]
["Sch IIB","Investments",null,"Long Positions - After - Pension Benefit Surplus",null,null,null,null,null,null,null,null,{"$f":"'Schedule IIB (EBS)'!F55","v":0}]
["Sch IIB","Investments",null,"Long Positions - After - Equity Derivatives on Type 2 Equities",null,null,null,null,null,null,null,null,{"$f":"'Schedule IIB (EBS)'!F56","v":0}]
["Sch IIB","Investments",null,"Long Positions - After - Infrastructure",null,null,null,null,null,null,null,null,{"$f":"'Schedule IIB (EBS)'!F57","v":0}]
["Sch IIB","Investments",null,"Long Positions - After - Derivatives on Infrastructure",null,null,null,null,null,null,null,null,{"$f":"'Schedule IIB (EBS)'!F58","v":0}]
["Sch IIB","Investments",null,"Long Positions - After - Equity Real Estate 1",null,null,null,null,null,null,null,null,{"$f":"'Schedule IIB (EBS)'!F59","v":0}]
["Sch IIB","Investments",null,"Long Positions - After - Equity Real Estate 2",null,null,null,null,null,null,null,null,{"$f":"'Schedule IIB (EBS)'!F60","v":0}]
["Sch IIB","Investments",null,"Short - Before - Qualified Assets - Strategic Holdings - Listed",null,null,null,null,null,null,null,null,{"$f":"'Schedule IIB (EBS)'!H39","v":0}]
["Sch IIB","Investments",null,"Short - Before - Qualified Assets - Duration Based",null,null,null,null,null,null,null,null,{"$f":"'Schedule IIB (EBS)'!H40","v":0}]
["Sch IIB","Investments",null,"Short - Before - Qualified Assets - Listed Equity Securities in Developed Markets",null,null,null,null,null,null,null,null,{"$f":"'Schedule IIB (EBS)'!H41","v":0}]
["Sch IIB","Investments",null,"Short - Before - Qualified Assets - Preferred Stocks, BSCR Rating 1",null,null,null,null,null,null,null,null,{"$f":"'Schedule IIB (EBS)'!H42","v":0}]
["Sch IIB","Investments",null,"Short - Before - Qualified Assets - Preferred Stocks, BSCR Rating 2",null,null,null,null,null,null,null,null,{"$f":"'Schedule IIB (EBS)'!H43","v":0}]
["Sch IIB","Investments",null,"Short - Before - Qualified Assets - Preferred Stocks, BSCR Rating 3",null,null,null,null,null,null,null,null,{"$f":"'Schedule IIB (EBS)'!H44","v":0}]
["Sch IIB","Investments",null,"Short - Before - Qualified Assets - Preferred Stocks, BSCR Rating 4",null,null,null,null,null,null,null,null,{"$f":"'Schedule IIB (EBS)'!H45","v":0}]
["Sch IIB","Investments",null,"Short - Before - Qualified Assets - Preferred Stocks, BSCR Rating 5",null,null,null,null,null,null,null,null,{"$f":"'Schedule IIB (EBS)'!H46","v":0}]
["Sch IIB","Investments",null,"Short - Before - Qualified Assets - Preferred Stocks, BSCR Rating 6",null,null,null,null,null,null,null,null,{"$f":"'Schedule IIB (EBS)'!H47","v":0}]
["Sch IIB","Investments",null,"Short - Before - Qualified Assets - Preferred Stocks, BSCR Rating 7",null,null,null,null,null,null,null,null,{"$f":"'Schedule IIB (EBS)'!H48","v":0}]
["Sch IIB","Investments",null,"Short - Before - Qualified Assets - Preferred Stocks, BSCR Rating 8",null,null,null,null,null,null,null,null,{"$f":"'Schedule IIB (EBS)'!H49","v":0}]
["Sch IIB","Investments",null,"Short - Before - Qualified Assets - Equity Derivatives on Type 1 Equities",null,null,null,null,null,null,null,null,{"$f":"'Schedule IIB (EBS)'!H50","v":0}]
["Sch IIB","Investments",null,"Short - Before - Qualified Assets - Strategic Holdings - Unlisted",null,null,null,null,null,null,null,null,{"$f":"'Schedule IIB (EBS)'!H51","v":0}]
["Sch IIB","Investments",null,"Short - Before - Qualified Assets - Other Equities",null,null,null,null,null,null,null,null,{"$f":"'Schedule IIB (EBS)'!H52","v":0}]
["Sch IIB","Investments",null,"Short - Before - Qualified Assets - Letters of Credit",null,null,null,null,null,null,null,null,{"$f":"'Schedule IIB (EBS)'!H53","v":0}]
["Sch IIB","Investments",null,"Short - Before - Qualified Assets - Intangible assets",null,null,null,null,null,null,null,null,{"$f":"'Schedule IIB (EBS)'!H54","v":0}]
["Sch IIB","Investments",null,"Short - Before - Qualified Assets - Pension Benefit Surplus",null,null,null,null,null,null,null,null,{"$f":"'Schedule IIB (EBS)'!H55","v":0}]
["Sch IIB","Investments",null,"Short - Before - Qualified Assets - Equity Derivatives on Type 2 Equities",null,null,null,null,null,null,null,null,{"$f":"'Schedule IIB (EBS)'!H56","v":0}]
["Sch IIB","Investments",null,"Short - Before - Qualified Assets - Infrastructure",null,null,null,null,null,null,null,null,{"$f":"'Schedule IIB (EBS)'!H57","v":0}]
["Sch IIB","Investments",null,"Short - Before - Qualified Assets - Derivatives on Infrastructure",null,null,null,null,null,null,null,null,{"$f":"'Schedule IIB (EBS)'!H58","v":0}]
["Sch IIB","Investments",null,"Short - Before - Qualified Assets - Equity Real Estate 1",null,null,null,null,null,null,null,null,{"$f":"'Schedule IIB (EBS)'!H59","v":0}]
["Sch IIB","Investments",null,"Short - Before - Qualified Assets - Equity Real Estate 2",null,null,null,null,null,null,null,null,{"$f":"'Schedule IIB (EBS)'!H60","v":0}]
["Sch IIB","Investments",null,"Short - After - Qualified Assets - Strategic Holdings - Listed",null,null,null,null,null,null,null,null,{"$f":"'Schedule IIB (EBS)'!J39","v":0}]
["Sch IIB","Investments",null,"Short - After - Qualified Assets - Duration Based",null,null,null,null,null,null,null,null,{"$f":"'Schedule IIB (EBS)'!J40","v":0}]
["Sch IIB","Investments",null,"Short - After - Qualified Assets - Listed Equity Securities in Developed Markets",null,null,null,null,null,null,null,null,{"$f":"'Schedule IIB (EBS)'!J41","v":0}]
["Sch IIB","Investments",null,"Short - After - Qualified Assets - Preferred Stocks, BSCR Rating 1",null,null,null,null,null,null,null,null,{"$f":"'Schedule IIB (EBS)'!J42","v":0}]
["Sch IIB","Investments",null,"Short - After - Qualified Assets - Preferred Stocks, BSCR Rating 2",null,null,null,null,null,null,null,null,{"$f":"'Schedule IIB (EBS)'!J43","v":0}]
["Sch IIB","Investments",null,"Short - After - Qualified Assets - Preferred Stocks, BSCR Rating 3",null,null,null,null,null,null,null,null,{"$f":"'Schedule IIB (EBS)'!J44","v":0}]
["Sch IIB","Investments",null,"Short - After - Qualified Assets - Preferred Stocks, BSCR Rating 4",null,null,null,null,null,null,null,null,{"$f":"'Schedule IIB (EBS)'!J45","v":0}]
["Sch IIB","Investments",null,"Short - After - Qualified Assets - Preferred Stocks, BSCR Rating 5",null,null,null,null,null,null,null,null,{"$f":"'Schedule IIB (EBS)'!J46","v":0}]
["Sch IIB","Investments",null,"Short - After - Qualified Assets - Preferred Stocks, BSCR Rating 6",null,null,null,null,null,null,null,null,{"$f":"'Schedule IIB (EBS)'!J47","v":0}]
["Sch IIB","Investments",null,"Short - After - Qualified Assets - Preferred Stocks, BSCR Rating 7",null,null,null,null,null,null,null,null,{"$f":"'Schedule IIB (EBS)'!J48","v":0}]
["Sch IIB","Investments",null,"Short - After - Qualified Assets - Preferred Stocks, BSCR Rating 8",null,null,null,null,null,null,null,null,{"$f":"'Schedule IIB (EBS)'!J49","v":0}]
["Sch IIB","Investments",null,"Short - After - Qualified Assets - Equity Derivatives on Type 1 Equities",null,null,null,null,null,null,null,null,{"$f":"'Schedule IIB (EBS)'!J50","v":0}]
["Sch IIB","Investments",null,"Short - After - Qualified Assets - Strategic Holdings - Unlisted",null,null,null,null,null,null,null,null,{"$f":"'Schedule IIB (EBS)'!J51","v":0}]
["Sch IIB","Investments",null,"Short - After - Qualified Assets - Other Equities",null,null,null,null,null,null,null,null,{"$f":"'Schedule IIB (EBS)'!J52","v":0}]
["Sch IIB","Investments",null,"Short - After - Qualified Assets - Letters of Credit",null,null,null,null,null,null,null,null,{"$f":"'Schedule IIB (EBS)'!J53","v":0}]
["Sch IIB","Investments",null,"Short - After - Qualified Assets - Intangible assets",null,null,null,null,null,null,null,null,{"$f":"'Schedule IIB (EBS)'!J54","v":0}]
["Sch IIB","Investments",null,"Short - After - Qualified Assets - Pension Benefit Surplus",null,null,null,null,null,null,null,null,{"$f":"'Schedule IIB (EBS)'!J55","v":0}]
["Sch IIB","Investments",null,"Short - After - Qualified Assets - Equity Derivatives on Type 2 Equities",null,null,null,null,null,null,null,null,{"$f":"'Schedule IIB (EBS)'!J56","v":0}]
["Sch IIB","Investments",null,"Short - After - Qualified Assets - Infrastructure",null,null,null,null,null,null,null,null,{"$f":"'Schedule IIB (EBS)'!J57","v":0}]
["Sch IIB","Investments",null,"Short - After - Qualified Assets - Derivatives on Infrastructure",null,null,null,null,null,null,null,null,{"$f":"'Schedule IIB (EBS)'!J58","v":0}]
["Sch IIB","Investments",null,"Short - After - Qualified Assets - Equity Real Estate 1",null,null,null,null,null,null,null,null,{"$f":"'Schedule IIB (EBS)'!J59","v":0}]
["Sch IIB","Investments",null,"Short - After - Qualified Assets - Equity Real Estate 2",null,null,null,null,null,null,null,null,{"$f":"'Schedule IIB (EBS)'!J60","v":0}]
["Sch IIB","Investments",null,"Short - Before - UnQualified Assets - Strategic Holdings - Listed",null,null,null,null,null,null,null,null,{"$f":"'Schedule IIB (EBS)'!L39","v":0}]
["Sch IIB","Investments",null,"Short - Before - UnQualified Assets - Duration Based",null,null,null,null,null,null,null,null,{"$f":"'Schedule IIB (EBS)'!L40","v":0}]
["Sch IIB","Investments",null,"Short - Before - UnQualified Assets - Listed Equity Securities in Developed Markets",null,null,null,null,null,null,null,null,{"$f":"'Schedule IIB (EBS)'!L41","v":0}]
["Sch IIB","Investments",null,"Short - Before - UnQualified Assets - Preferred Stocks, BSCR Rating 1",null,null,null,null,null,null,null,null,{"$f":"'Schedule IIB (EBS)'!L42","v":0}]
["Sch IIB","Investments",null,"Short - Before - UnQualified Assets - Preferred Stocks, BSCR Rating 2",null,null,null,null,null,null,null,null,{"$f":"'Schedule IIB (EBS)'!L43","v":0}]
["Sch IIB","Investments",null,"Short - Before - UnQualified Assets - Preferred Stocks, BSCR Rating 3",null,null,null,null,null,null,null,null,{"$f":"'Schedule IIB (EBS)'!L44","v":0}]
["Sch IIB","Investments",null,"Short - Before - UnQualified Assets - Preferred Stocks, BSCR Rating 4",null,null,null,null,null,null,null,null,{"$f":"'Schedule IIB (EBS)'!L45","v":0}]
["Sch IIB","Investments",null,"Short - Before - UnQualified Assets - Preferred Stocks, BSCR Rating 5",null,null,null,null,null,null,null,null,{"$f":"'Schedule IIB (EBS)'!L46","v":0}]
["Sch IIB","Investments",null,"Short - Before - UnQualified Assets - Preferred Stocks, BSCR Rating 6",null,null,null,null,null,null,null,null,{"$f":"'Schedule IIB (EBS)'!L47","v":0}]
["Sch IIB","Investments",null,"Short - Before - UnQualified Assets - Preferred Stocks, BSCR Rating 7",null,null,null,null,null,null,null,null,{"$f":"'Schedule IIB (EBS)'!L48","v":0}]
["Sch IIB","Investments",null,"Short - Before - UnQualified Assets - Preferred Stocks, BSCR Rating 8",null,null,null,null,null,null,null,null,{"$f":"'Schedule IIB (EBS)'!L49","v":0}]
["Sch IIB","Investments",null,"Short - Before - UnQualified Assets - Equity Derivatives on Type 1 Equities",null,null,null,null,null,null,null,null,{"$f":"'Schedule IIB (EBS)'!L50","v":0}]
["Sch IIB","Investments",null,"Short - Before - UnQualified Assets - Strategic Holdings - Unlisted",null,null,null,null,null,null,null,null,{"$f":"'Schedule IIB (EBS)'!L51","v":0}]
["Sch IIB","Investments",null,"Short - Before - UnQualified Assets - Other Equities",null,null,null,null,null,null,null,null,{"$f":"'Schedule IIB (EBS)'!L52","v":0}]
["Sch IIB","Investments",null,"Short - Before - UnQualified Assets - Letters of Credit",null,null,null,null,null,null,null,null,{"$f":"'Schedule IIB (EBS)'!L53","v":0}]
["Sch IIB","Investments",null,"Short - Before - UnQualified Assets - Intangible assets",null,null,null,null,null,null,null,null,{"$f":"'Schedule IIB (EBS)'!L54","v":0}]
["Sch IIB","Investments",null,"Short - Before - UnQualified Assets - Pension Benefit Surplus",null,null,null,null,null,null,null,null,{"$f":"'Schedule IIB (EBS)'!L55","v":0}]
["Sch IIB","Investments",null,"Short - Before - UnQualified Assets - Equity Derivatives on Type 2 Equities",null,null,null,null,null,null,null,null,{"$f":"'Schedule IIB (EBS)'!L56","v":0}]
["Sch IIB","Investments",null,"Short - Before - UnQualified Assets - Infrastructure",null,null,null,null,null,null,null,null,{"$f":"'Schedule IIB (EBS)'!L57","v":0}]
["Sch IIB","Investments",null,"Short - Before - UnQualified Assets - Derivatives on Infrastructure",null,null,null,null,null,null,null,null,{"$f":"'Schedule IIB (EBS)'!L58","v":0}]
["Sch IIB","Investments",null,"Short - Before - UnQualified Assets - Equity Real Estate 1",null,null,null,null,null,null,null,null,{"$f":"'Schedule IIB (EBS)'!L59","v":0}]
["Sch IIB","Investments",null,"Short - Before - UnQualified Assets - Equity Real Estate 2",null,null,null,null,null,null,null,null,{"$f":"'Schedule IIB (EBS)'!L60","v":0}]
["Sch IIB","Investments",null,"Short - After - UnQualified Assets - Strategic Holdings - Listed",null,null,null,null,null,null,null,null,{"$f":"'Schedule IIB (EBS)'!N39","v":0}]
["Sch IIB","Investments",null,"Short - After - UnQualified Assets - Duration Based",null,null,null,null,null,null,null,null,{"$f":"'Schedule IIB (EBS)'!N40","v":0}]
["Sch IIB","Investments",null,"Short - After - UnQualified Assets - Listed Equity Securities in Developed Markets",null,null,null,null,null,null,null,null,{"$f":"'Schedule IIB (EBS)'!N41","v":0}]
["Sch IIB","Investments",null,"Short - After - UnQualified Assets - Preferred Stocks, BSCR Rating 1",null,null,null,null,null,null,null,null,{"$f":"'Schedule IIB (EBS)'!N42","v":0}]
["Sch IIB","Investments",null,"Short - After - UnQualified Assets - Preferred Stocks, BSCR Rating 2",null,null,null,null,null,null,null,null,{"$f":"'Schedule IIB (EBS)'!N43","v":0}]
["Sch IIB","Investments",null,"Short - After - UnQualified Assets - Preferred Stocks, BSCR Rating 3",null,null,null,null,null,null,null,null,{"$f":"'Schedule IIB (EBS)'!N44","v":0}]
["Sch IIB","Investments",null,"Short - After - UnQualified Assets - Preferred Stocks, BSCR Rating 4",null,null,null,null,null,null,null,null,{"$f":"'Schedule IIB (EBS)'!N45","v":0}]
["Sch IIB","Investments",null,"Short - After - UnQualified Assets - Preferred Stocks, BSCR Rating 5",null,null,null,null,null,null,null,null,{"$f":"'Schedule IIB (EBS)'!N46","v":0}]
["Sch IIB","Investments",null,"Short - After - UnQualified Assets - Preferred Stocks, BSCR Rating 6",null,null,null,null,null,null,null,null,{"$f":"'Schedule IIB (EBS)'!N47","v":0}]
["Sch IIB","Investments",null,"Short - After - UnQualified Assets - Preferred Stocks, BSCR Rating 7",null,null,null,null,null,null,null,null,{"$f":"'Schedule IIB (EBS)'!N48","v":0}]
["Sch IIB","Investments",null,"Short - After - UnQualified Assets - Preferred Stocks, BSCR Rating 8",null,null,null,null,null,null,null,null,{"$f":"'Schedule IIB (EBS)'!N49","v":0}]
["Sch IIB","Investments",null,"Short - After - UnQualified Assets - Equity Derivatives on Type 1 Equities",null,null,null,null,null,null,null,null,{"$f":"'Schedule IIB (EBS)'!N50","v":0}]
["Sch IIB","Investments",null,"Short - After - UnQualified Assets - Strategic Holdings - Unlisted",null,null,null,null,null,null,null,null,{"$f":"'Schedule IIB (EBS)'!N51","v":0}]
["Sch IIB","Investments",null,"Short - After - UnQualified Assets - Other Equities",null,null,null,null,null,null,null,null,{"$f":"'Schedule IIB (EBS)'!N52","v":0}]
["Sch IIB","Investments",null,"Short - After - UnQualified Assets - Letters of Credit",null,null,null,null,null,null,null,null,{"$f":"'Schedule IIB (EBS)'!N53","v":0}]
["Sch IIB","Investments",null,"Short - After - UnQualified Assets - Intangible assets",null,null,null,null,null,null,null,null,{"$f":"'Schedule IIB (EBS)'!N54","v":0}]
["Sch IIB","Investments",null,"Short - After - UnQualified Assets - Pension Benefit Surplus",null,null,null,null,null,null,null,null,{"$f":"'Schedule IIB (EBS)'!N55","v":0}]
["Sch IIB","Investments",null,"Short - After - UnQualified Assets - Equity Derivatives on Type 2 Equities",null,null,null,null,null,null,null,null,{"$f":"'Schedule IIB (EBS)'!N56","v":0}]
["Sch IIB","Investments",null,"Short - After - UnQualified Assets - Infrastructure",null,null,null,null,null,null,null,null,{"$f":"'Schedule IIB (EBS)'!N57","v":0}]
["Sch IIB","Investments",null,"Short - After - UnQualified Assets - Derivatives on Infrastructure",null,null,null,null,null,null,null,null,{"$f":"'Schedule IIB (EBS)'!N58","v":0}]
["Sch IIB","Investments",null,"Short - After - UnQualified Assets - Equity Real Estate 1",null,null,null,null,null,null,null,null,{"$f":"'Schedule IIB (EBS)'!N59","v":0}]
["Sch IIB","Investments",null,"Short - After - UnQualified Assets - Equity Real Estate 2",null,null,null,null,null,null,null,null,{"$f":"'Schedule IIB (EBS)'!N60","v":0}]
["Sch IIB","Investments",null,"Liabilities - Before - W/O Mgmt Actions - Strategic Holdings - Listed",null,null,null,null,null,null,null,null,{"$f":"'Schedule IIB (EBS)'!P39","v":0}]
["Sch IIB","Investments",null,"Liabilities - Before - W/O Mgmt Actions - Duration Based",null,null,null,null,null,null,null,null,{"$f":"'Schedule IIB (EBS)'!P40","v":0}]
["Sch IIB","Investments",null,"Liabilities - Before - W/O Mgmt Actions - Listed Equity Securities in Developed Markets",null,null,null,null,null,null,null,null,{"$f":"'Schedule IIB (EBS)'!P41","v":0}]
["Sch IIB","Investments",null,"Liabilities - Before - W/O Mgmt Actions - Preferred Stocks, BSCR Rating 1",null,null,null,null,null,null,null,null,{"$f":"'Schedule IIB (EBS)'!P42","v":0}]
["Sch IIB","Investments",null,"Liabilities - Before - W/O Mgmt Actions - Preferred Stocks, BSCR Rating 2",null,null,null,null,null,null,null,null,{"$f":"'Schedule IIB (EBS)'!P43","v":0}]
["Sch IIB","Investments",null,"Liabilities - Before - W/O Mgmt Actions - Preferred Stocks, BSCR Rating 3",null,null,null,null,null,null,null,null,{"$f":"'Schedule IIB (EBS)'!P44","v":0}]
["Sch IIB","Investments",null,"Liabilities - Before - W/O Mgmt Actions - Preferred Stocks, BSCR Rating 4",null,null,null,null,null,null,null,null,{"$f":"'Schedule IIB (EBS)'!P45","v":0}]
["Sch IIB","Investments",null,"Liabilities - Before - W/O Mgmt Actions - Preferred Stocks, BSCR Rating 5",null,null,null,null,null,null,null,null,{"$f":"'Schedule IIB (EBS)'!P46","v":0}]
["Sch IIB","Investments",null,"Liabilities - Before - W/O Mgmt Actions - Preferred Stocks, BSCR Rating 6",null,null,null,null,null,null,null,null,{"$f":"'Schedule IIB (EBS)'!P47","v":0}]
["Sch IIB","Investments",null,"Liabilities - Before - W/O Mgmt Actions - Preferred Stocks, BSCR Rating 7",null,null,null,null,null,null,null,null,{"$f":"'Schedule IIB (EBS)'!P48","v":0}]
["Sch IIB","Investments",null,"Liabilities - Before - W/O Mgmt Actions - Preferred Stocks, BSCR Rating 8",null,null,null,null,null,null,null,null,{"$f":"'Schedule IIB (EBS)'!P49","v":0}]
["Sch IIB","Investments",null,"Liabilities - Before - W/O Mgmt Actions - Equity Derivatives on Type 1 Equities",null,null,null,null,null,null,null,null,{"$f":"'Schedule IIB (EBS)'!P50","v":0}]
["Sch IIB","Investments",null,"Liabilities - Before - W/O Mgmt Actions - Strategic Holdings - Unlisted",null,null,null,null,null,null,null,null,{"$f":"'Schedule IIB (EBS)'!P51","v":0}]
["Sch IIB","Investments",null,"Liabilities - Before - W/O Mgmt Actions - Other Equities",null,null,null,null,null,null,null,null,{"$f":"'Schedule IIB (EBS)'!P52","v":0}]
["Sch IIB","Investments",null,"Liabilities - Before - W/O Mgmt Actions - Letters of Credit",null,null,null,null,null,null,null,null,{"$f":"'Schedule IIB (EBS)'!P53","v":0}]
["Sch IIB","Investments",null,"Liabilities - Before - W/O Mgmt Actions - Intangible assets",null,null,null,null,null,null,null,null,{"$f":"'Schedule IIB (EBS)'!P54","v":0}]
["Sch IIB","Investments",null,"Liabilities - Before - W/O Mgmt Actions - Pension Benefit Surplus",null,null,null,null,null,null,null,null,{"$f":"'Schedule IIB (EBS)'!P55","v":0}]
["Sch IIB","Investments",null,"Liabilities - Before - W/O Mgmt Actions - Equity Derivatives on Type 2 Equities",null,null,null,null,null,null,null,null,{"$f":"'Schedule IIB (EBS)'!P56","v":0}]
["Sch IIB","Investments",null,"Liabilities - Before - W/O Mgmt Actions - Infrastructure",null,null,null,null,null,null,null,null,{"$f":"'Schedule IIB (EBS)'!P57","v":0}]
["Sch IIB","Investments",null,"Liabilities - Before - W/O Mgmt Actions - Derivatives on Infrastructure",null,null,null,null,null,null,null,null,{"$f":"'Schedule IIB (EBS)'!P58","v":0}]
["Sch IIB","Investments",null,"Liabilities - Before - W/O Mgmt Actions - Equity Real Estate 1",null,null,null,null,null,null,null,null,{"$f":"'Schedule IIB (EBS)'!P59","v":0}]
["Sch IIB","Investments",null,"Liabilities - Before - W/O Mgmt Actions - Equity Real Estate 2",null,null,null,null,null,null,null,null,{"$f":"'Schedule IIB (EBS)'!P60","v":0}]
["Sch IIB","Investments",null,"Liabilities - After - W/O Mgmt Actions - Strategic Holdings - Listed",null,null,null,null,null,null,null,null,{"$f":"'Schedule IIB (EBS)'!R39","v":0}]
["Sch IIB","Investments",null,"Liabilities - After - W/O Mgmt Actions - Duration Based",null,null,null,null,null,null,null,null,{"$f":"'Schedule IIB (EBS)'!R40","v":0}]
["Sch IIB","Investments",null,"Liabilities - After - W/O Mgmt Actions - Listed Equity Securities in Developed Markets",null,null,null,null,null,null,null,null,{"$f":"'Schedule IIB (EBS)'!R41","v":0}]
["Sch IIB","Investments",null,"Liabilities - After - W/O Mgmt Actions - Preferred Stocks, BSCR Rating 1",null,null,null,null,null,null,null,null,{"$f":"'Schedule IIB (EBS)'!R42","v":0}]
["Sch IIB","Investments",null,"Liabilities - After - W/O Mgmt Actions - Preferred Stocks, BSCR Rating 2",null,null,null,null,null,null,null,null,{"$f":"'Schedule IIB (EBS)'!R43","v":0}]
["Sch IIB","Investments",null,"Liabilities - After - W/O Mgmt Actions - Preferred Stocks, BSCR Rating 3",null,null,null,null,null,null,null,null,{"$f":"'Schedule IIB (EBS)'!R44","v":0}]
["Sch IIB","Investments",null,"Liabilities - After - W/O Mgmt Actions - Preferred Stocks, BSCR Rating 4",null,null,null,null,null,null,null,null,{"$f":"'Schedule IIB (EBS)'!R45","v":0}]
["Sch IIB","Investments",null,"Liabilities - After - W/O Mgmt Actions - Preferred Stocks, BSCR Rating 5",null,null,null,null,null,null,null,null,{"$f":"'Schedule IIB (EBS)'!R46","v":0}]
["Sch IIB","Investments",null,"Liabilities - After - W/O Mgmt Actions - Preferred Stocks, BSCR Rating 6",null,null,null,null,null,null,null,null,{"$f":"'Schedule IIB (EBS)'!R47","v":0}]
["Sch IIB","Investments",null,"Liabilities - After - W/O Mgmt Actions - Preferred Stocks, BSCR Rating 7",null,null,null,null,null,null,null,null,{"$f":"'Schedule IIB (EBS)'!R48","v":0}]
["Sch IIB","Investments",null,"Liabilities - After - W/O Mgmt Actions - Preferred Stocks, BSCR Rating 8",null,null,null,null,null,null,null,null,{"$f":"'Schedule IIB (EBS)'!R49","v":0}]
["Sch IIB","Investments",null,"Liabilities - After - W/O Mgmt Actions - Equity Derivatives on Type 1 Equities",null,null,null,null,null,null,null,null,{"$f":"'Schedule IIB (EBS)'!R50","v":0}]
["Sch IIB","Investments",null,"Liabilities - After - W/O Mgmt Actions - Strategic Holdings - Unlisted",null,null,null,null,null,null,null,null,{"$f":"'Schedule IIB (EBS)'!R51","v":0}]
["Sch IIB","Investments",null,"Liabilities - After - W/O Mgmt Actions - Other Equities",null,null,null,null,null,null,null,null,{"$f":"'Schedule IIB (EBS)'!R52","v":0}]
["Sch IIB","Investments",null,"Liabilities - After - W/O Mgmt Actions - Letters of Credit",null,null,null,null,null,null,null,null,{"$f":"'Schedule IIB (EBS)'!R53","v":0}]
["Sch IIB","Investments",null,"Liabilities - After - W/O Mgmt Actions - Intangible assets",null,null,null,null,null,null,null,null,{"$f":"'Schedule IIB (EBS)'!R54","v":0}]
["Sch IIB","Investments",null,"Liabilities - After - W/O Mgmt Actions - Pension Benefit Surplus",null,null,null,null,null,null,null,null,{"$f":"'Schedule IIB (EBS)'!R55","v":0}]
["Sch IIB","Investments",null,"Liabilities - After - W/O Mgmt Actions - Equity Derivatives on Type 2 Equities",null,null,null,null,null,null,null,null,{"$f":"'Schedule IIB (EBS)'!R56","v":0}]
["Sch IIB","Investments",null,"Liabilities - After - W/O Mgmt Actions - Infrastructure",null,null,null,null,null,null,null,null,{"$f":"'Schedule IIB (EBS)'!R57","v":0}]
["Sch IIB","Investments",null,"Liabilities - After - W/O Mgmt Actions - Derivatives on Infrastructure",null,null,null,null,null,null,null,null,{"$f":"'Schedule IIB (EBS)'!R58","v":0}]
["Sch IIB","Investments",null,"Liabilities - After - W/O Mgmt Actions - Equity Real Estate 1",null,null,null,null,null,null,null,null,{"$f":"'Schedule IIB (EBS)'!R59","v":0}]
["Sch IIB","Investments",null,"Liabilities - After - W/O Mgmt Actions - Equity Real Estate 2",null,null,null,null,null,null,null,null,{"$f":"'Schedule IIB (EBS)'!R60","v":0}]
["Sch IIB","Investments",null,"Liabilities - After - With Mgmt Actions - Strategic Holdings - Listed",null,null,null,null,null,null,null,null,{"$f":"'Schedule IIB (EBS)'!T39","v":0}]
["Sch IIB","Investments",null,"Liabilities - After - With Mgmt Actions - Duration Based",null,null,null,null,null,null,null,null,{"$f":"'Schedule IIB (EBS)'!T40","v":0}]
["Sch IIB","Investments",null,"Liabilities - After - With Mgmt Actions - Listed Equity Securities in Developed Markets",null,null,null,null,null,null,null,null,{"$f":"'Schedule IIB (EBS)'!T41","v":0}]
["Sch IIB","Investments",null,"Liabilities - After - With Mgmt Actions - Preferred Stocks, BSCR Rating 1",null,null,null,null,null,null,null,null,{"$f":"'Schedule IIB (EBS)'!T42","v":0}]
["Sch IIB","Investments",null,"Liabilities - After - With Mgmt Actions - Preferred Stocks, BSCR Rating 2",null,null,null,null,null,null,null,null,{"$f":"'Schedule IIB (EBS)'!T43","v":0}]
["Sch IIB","Investments",null,"Liabilities - After - With Mgmt Actions - Preferred Stocks, BSCR Rating 3",null,null,null,null,null,null,null,null,{"$f":"'Schedule IIB (EBS)'!T44","v":0}]
["Sch IIB","Investments",null,"Liabilities - After - With Mgmt Actions - Preferred Stocks, BSCR Rating 4",null,null,null,null,null,null,null,null,{"$f":"'Schedule IIB (EBS)'!T45","v":0}]
["Sch IIB","Investments",null,"Liabilities - After - With Mgmt Actions - Preferred Stocks, BSCR Rating 5",null,null,null,null,null,null,null,null,{"$f":"'Schedule IIB (EBS)'!T46","v":0}]
["Sch IIB","Investments",null,"Liabilities - After - With Mgmt Actions - Preferred Stocks, BSCR Rating 6",null,null,null,null,null,null,null,null,{"$f":"'Schedule IIB (EBS)'!T47","v":0}]
["Sch IIB","Investments",null,"Liabilities - After - With Mgmt Actions - Preferred Stocks, BSCR Rating 7",null,null,null,null,null,null,null,null,{"$f":"'Schedule IIB (EBS)'!T48","v":0}]
["Sch IIB","Investments",null,"Liabilities - After - With Mgmt Actions - Preferred Stocks, BSCR Rating 8",null,null,null,null,null,null,null,null,{"$f":"'Schedule IIB (EBS)'!T49","v":0}]
["Sch IIB","Investments",null,"Liabilities - After - With Mgmt Actions - Equity Derivatives on Type 1 Equities",null,null,null,null,null,null,null,null,{"$f":"'Schedule IIB (EBS)'!T50","v":0}]
["Sch IIB","Investments",null,"Liabilities - After - With Mgmt Actions - Strategic Holdings - Unlisted",null,null,null,null,null,null,null,null,{"$f":"'Schedule IIB (EBS)'!T51","v":0}]
["Sch IIB","Investments",null,"Liabilities - After - With Mgmt Actions - Other Equities",null,null,null,null,null,null,null,null,{"$f":"'Schedule IIB (EBS)'!T52","v":0}]
["Sch IIB","Investments",null,"Liabilities - After - With Mgmt Actions - Letters of Credit",null,null,null,null,null,null,null,null,{"$f":"'Schedule IIB (EBS)'!T53","v":0}]
["Sch IIB","Investments",null,"Liabilities - After - With Mgmt Actions - Intangible assets",null,null,null,null,null,null,null,null,{"$f":"'Schedule IIB (EBS)'!T54","v":0}]
["Sch IIB","Investments",null,"Liabilities - After - With Mgmt Actions - Pension Benefit Surplus",null,null,null,null,null,null,null,null,{"$f":"'Schedule IIB (EBS)'!T55","v":0}]
["Sch IIB","Investments",null,"Liabilities - After - With Mgmt Actions - Equity Derivatives on Type 2 Equities",null,null,null,null,null,null,null,null,{"$f":"'Schedule IIB (EBS)'!T56","v":0}]
["Sch IIB","Investments",null,"Liabilities - After - With Mgmt Actions - Infrastructure",null,null,null,null,null,null,null,null,{"$f":"'Schedule IIB (EBS)'!T57","v":0}]
["Sch IIB","Investments",null,"Liabilities - After - With Mgmt Actions - Derivatives on Infrastructure",null,null,null,null,null,null,null,null,{"$f":"'Schedule IIB (EBS)'!T58","v":0}]
["Sch IIB","Investments",null,"Liabilities - After - With Mgmt Actions - Equity Real Estate 1",null,null,null,null,null,null,null,null,{"$f":"'Schedule IIB (EBS)'!T59","v":0}]
["Sch IIB","Investments",null,"Liabilities - After - With Mgmt Actions - Equity Real Estate 2",null,null,null,null,null,null,null,null,{"$f":"'Schedule IIB (EBS)'!T60","v":0}]
["Sch IIB","Investments",null,"Credit Derivatives - Up - Before - Long-Rating 0",null,null,null,null,null,null,null,null,{"$f":"'Schedule IIB (EBS)'!D68","v":0}]
["Sch IIB","Investments",null,"Credit Derivatives - Up - Before - Long-Rating 1",null,null,null,null,null,null,null,null,{"$f":"'Schedule IIB (EBS)'!D69","v":0}]
["Sch IIB","Investments",null,"Credit Derivatives - Up - Before - Long-Rating 2",null,null,null,null,null,null,null,null,{"$f":"'Schedule IIB (EBS)'!D70","v":0}]
["Sch IIB","Investments",null,"Credit Derivatives - Up - Before - Long-Rating 3",null,null,null,null,null,null,null,null,{"$f":"'Schedule IIB (EBS)'!D71","v":0}]
["Sch IIB","Investments",null,"Credit Derivatives - Up - Before - Long-Rating 4",null,null,null,null,null,null,null,null,{"$f":"'Schedule IIB (EBS)'!D72","v":0}]
["Sch IIB","Investments",null,"Credit Derivatives - Up - Before - Long-Rating 5",null,null,null,null,null,null,null,null,{"$f":"'Schedule IIB (EBS)'!D73","v":0}]
["Sch IIB","Investments",null,"Credit Derivatives - Up - Before - Long-Rating 6",null,null,null,null,null,null,null,null,{"$f":"'Schedule IIB (EBS)'!D74","v":0}]
["Sch IIB","Investments",null,"Credit Derivatives - Up - Before - Long-Rating 7",null,null,null,null,null,null,null,null,{"$f":"'Schedule IIB (EBS)'!D75","v":0}]
["Sch IIB","Investments",null,"Credit Derivatives - Up - Before - Long-Rating 8",null,null,null,null,null,null,null,null,{"$f":"'Schedule IIB (EBS)'!D76","v":0}]
["Sch IIB","Investments",null,"Credit Derivatives - Up - After - Long- Rating 0",null,null,null,null,null,null,null,null,{"$f":"'Schedule IIB (EBS)'!F68","v":0}]
["Sch IIB","Investments",null,"Credit Derivatives - Up - After - Long- Rating 1",null,null,null,null,null,null,null,null,{"$f":"'Schedule IIB (EBS)'!F69","v":0}]
["Sch IIB","Investments",null,"Credit Derivatives - Up - After - Long- Rating 2",null,null,null,null,null,null,null,null,{"$f":"'Schedule IIB (EBS)'!F70","v":0}]
["Sch IIB","Investments",null,"Credit Derivatives - Up - After - Long- Rating 3",null,null,null,null,null,null,null,null,{"$f":"'Schedule IIB (EBS)'!F71","v":0}]
["Sch IIB","Investments",null,"Credit Derivatives - Up - After - Long- Rating 4",null,null,null,null,null,null,null,null,{"$f":"'Schedule IIB (EBS)'!F72","v":0}]
["Sch IIB","Investments",null,"Credit Derivatives - Up - After - Long- Rating 5",null,null,null,null,null,null,null,null,{"$f":"'Schedule IIB (EBS)'!F73","v":0}]
["Sch IIB","Investments",null,"Credit Derivatives - Up - After - Long- Rating 6",null,null,null,null,null,null,null,null,{"$f":"'Schedule IIB (EBS)'!F74","v":0}]
["Sch IIB","Investments",null,"Credit Derivatives - Up - After - Long- Rating 7",null,null,null,null,null,null,null,null,{"$f":"'Schedule IIB (EBS)'!F75","v":0}]
["Sch IIB","Investments",null,"Credit Derivatives - Up - After - Long- Rating 8",null,null,null,null,null,null,null,null,{"$f":"'Schedule IIB (EBS)'!F76","v":0}]
["Sch IIB","Investments",null,"Credit Derivatives - Up - Before - Short- Rating 0",null,null,null,null,null,null,null,null,{"$f":"'Schedule IIB (EBS)'!H68","v":0}]
["Sch IIB","Investments",null,"Credit Derivatives - Up - Before - Short- Rating 1",null,null,null,null,null,null,null,null,{"$f":"'Schedule IIB (EBS)'!H69","v":0}]
["Sch IIB","Investments",null,"Credit Derivatives - Up - Before - Short- Rating 2",null,null,null,null,null,null,null,null,{"$f":"'Schedule IIB (EBS)'!H70","v":0}]
["Sch IIB","Investments",null,"Credit Derivatives - Up - Before - Short- Rating 3",null,null,null,null,null,null,null,null,{"$f":"'Schedule IIB (EBS)'!H71","v":0}]
["Sch IIB","Investments",null,"Credit Derivatives - Up - Before - Short- Rating 4",null,null,null,null,null,null,null,null,{"$f":"'Schedule IIB (EBS)'!H72","v":0}]
["Sch IIB","Investments",null,"Credit Derivatives - Up - Before - Short- Rating 5",null,null,null,null,null,null,null,null,{"$f":"'Schedule IIB (EBS)'!H73","v":0}]
["Sch IIB","Investments",null,"Credit Derivatives - Up - Before - Short- Rating 6",null,null,null,null,null,null,null,null,{"$f":"'Schedule IIB (EBS)'!H74","v":0}]
["Sch IIB","Investments",null,"Credit Derivatives - Up - Before - Short- Rating 7",null,null,null,null,null,null,null,null,{"$f":"'Schedule IIB (EBS)'!H75","v":0}]
["Sch IIB","Investments",null,"Credit Derivatives - Up - Before - Short- Rating 8",null,null,null,null,null,null,null,null,{"$f":"'Schedule IIB (EBS)'!H76","v":0}]
["Sch IIB","Investments",null,"Credit Derivatives - Up - After - Short- Rating 0",null,null,null,null,null,null,null,null,{"$f":"'Schedule IIB (EBS)'!J68","v":0}]
["Sch IIB","Investments",null,"Credit Derivatives - Up - After - Short- Rating 1",null,null,null,null,null,null,null,null,{"$f":"'Schedule IIB (EBS)'!J69","v":0}]
["Sch IIB","Investments",null,"Credit Derivatives - Up - After - Short- Rating 2",null,null,null,null,null,null,null,null,{"$f":"'Schedule IIB (EBS)'!J70","v":0}]
["Sch IIB","Investments",null,"Credit Derivatives - Up - After - Short- Rating 3",null,null,null,null,null,null,null,null,{"$f":"'Schedule IIB (EBS)'!J71","v":0}]
["Sch IIB","Investments",null,"Credit Derivatives - Up - After - Short- Rating 4",null,null,null,null,null,null,null,null,{"$f":"'Schedule IIB (EBS)'!J72","v":0}]
["Sch IIB","Investments",null,"Credit Derivatives - Up - After - Short- Rating 5",null,null,null,null,null,null,null,null,{"$f":"'Schedule IIB (EBS)'!J73","v":0}]
["Sch IIB","Investments",null,"Credit Derivatives - Up - After - Short- Rating 6",null,null,null,null,null,null,null,null,{"$f":"'Schedule IIB (EBS)'!J74","v":0}]
["Sch IIB","Investments",null,"Credit Derivatives - Up - After - Short- Rating 7",null,null,null,null,null,null,null,null,{"$f":"'Schedule IIB (EBS)'!J75","v":0}]
["Sch IIB","Investments",null,"Credit Derivatives - Up - After - Short- Rating 8",null,null,null,null,null,null,null,null,{"$f":"'Schedule IIB (EBS)'!J76","v":0}]
["Sch IIB","Investments",null,"Credit Derivatives - Down - Before - Long-Rating 0",null,null,null,null,null,null,null,null,{"$f":"'Schedule IIB (EBS)'!N68","v":0}]
["Sch IIB","Investments",null,"Credit Derivatives - Down - Before - Long-Rating 1",null,null,null,null,null,null,null,null,{"$f":"'Schedule IIB (EBS)'!N69","v":0}]
["Sch IIB","Investments",null,"Credit Derivatives - Down - Before - Long-Rating 2",null,null,null,null,null,null,null,null,{"$f":"'Schedule IIB (EBS)'!N70","v":0}]
["Sch IIB","Investments",null,"Credit Derivatives - Down - Before - Long-Rating 3",null,null,null,null,null,null,null,null,{"$f":"'Schedule IIB (EBS)'!N71","v":0}]
["Sch IIB","Investments",null,"Credit Derivatives - Down - Before - Long-Rating 4",null,null,null,null,null,null,null,null,{"$f":"'Schedule IIB (EBS)'!N72","v":0}]
["Sch IIB","Investments",null,"Credit Derivatives - Down - Before - Long-Rating 5",null,null,null,null,null,null,null,null,{"$f":"'Schedule IIB (EBS)'!N73","v":0}]
["Sch IIB","Investments",null,"Credit Derivatives - Down - Before - Long-Rating 6",null,null,null,null,null,null,null,null,{"$f":"'Schedule IIB (EBS)'!N74","v":0}]
["Sch IIB","Investments",null,"Credit Derivatives - Down - Before - Long-Rating 7",null,null,null,null,null,null,null,null,{"$f":"'Schedule IIB (EBS)'!N75","v":0}]
["Sch IIB","Investments",null,"Credit Derivatives - Down - Before - Long-Rating 8",null,null,null,null,null,null,null,null,{"$f":"'Schedule IIB (EBS)'!N76","v":0}]
["Sch IIB","Investments",null,"Credit Derivatives - Down - After - Long- Rating 0",null,null,null,null,null,null,null,null,{"$f":"'Schedule IIB (EBS)'!P68","v":0}]
["Sch IIB","Investments",null,"Credit Derivatives - Down - After - Long- Rating 1",null,null,null,null,null,null,null,null,{"$f":"'Schedule IIB (EBS)'!P69","v":0}]
["Sch IIB","Investments",null,"Credit Derivatives - Down - After - Long- Rating 2",null,null,null,null,null,null,null,null,{"$f":"'Schedule IIB (EBS)'!P70","v":0}]
["Sch IIB","Investments",null,"Credit Derivatives - Down - After - Long- Rating 3",null,null,null,null,null,null,null,null,{"$f":"'Schedule IIB (EBS)'!P71","v":0}]
["Sch IIB","Investments",null,"Credit Derivatives - Down - After - Long- Rating 4",null,null,null,null,null,null,null,null,{"$f":"'Schedule IIB (EBS)'!P72","v":0}]
["Sch IIB","Investments",null,"Credit Derivatives - Down - After - Long- Rating 5",null,null,null,null,null,null,null,null,{"$f":"'Schedule IIB (EBS)'!P73","v":0}]
["Sch IIB","Investments",null,"Credit Derivatives - Down - After - Long- Rating 6",null,null,null,null,null,null,null,null,{"$f":"'Schedule IIB (EBS)'!P74","v":0}]
["Sch IIB","Investments",null,"Credit Derivatives - Down - After - Long- Rating 7",null,null,null,null,null,null,null,null,{"$f":"'Schedule IIB (EBS)'!P75","v":0}]
["Sch IIB","Investments",null,"Credit Derivatives - Down - After - Long- Rating 8",null,null,null,null,null,null,null,null,{"$f":"'Schedule IIB (EBS)'!P76","v":0}]
["Sch IIB","Investments",null,"Credit Derivatives - Down - Before - Short- Rating 0",null,null,null,null,null,null,null,null,{"$f":"'Schedule IIB (EBS)'!R68","v":0}]
["Sch IIB","Investments",null,"Credit Derivatives - Down - Before - Short- Rating 1",null,null,null,null,null,null,null,null,{"$f":"'Schedule IIB (EBS)'!R69","v":0}]
["Sch IIB","Investments",null,"Credit Derivatives - Down - Before - Short- Rating 2",null,null,null,null,null,null,null,null,{"$f":"'Schedule IIB (EBS)'!R70","v":0}]
["Sch IIB","Investments",null,"Credit Derivatives - Down - Before - Short- Rating 3",null,null,null,null,null,null,null,null,{"$f":"'Schedule IIB (EBS)'!R71","v":0}]
["Sch IIB","Investments",null,"Credit Derivatives - Down - Before - Short- Rating 4",null,null,null,null,null,null,null,null,{"$f":"'Schedule IIB (EBS)'!R72","v":0}]
["Sch IIB","Investments",null,"Credit Derivatives - Down - Before - Short- Rating 5",null,null,null,null,null,null,null,null,{"$f":"'Schedule IIB (EBS)'!R73","v":0}]
["Sch IIB","Investments",null,"Credit Derivatives - Down - Before - Short- Rating 6",null,null,null,null,null,null,null,null,{"$f":"'Schedule IIB (EBS)'!R74","v":0}]
["Sch IIB","Investments",null,"Credit Derivatives - Down - Before - Short- Rating 7",null,null,null,null,null,null,null,null,{"$f":"'Schedule IIB (EBS)'!R75","v":0}]
["Sch IIB","Investments",null,"Credit Derivatives - Down - Before - Short- Rating 8",null,null,null,null,null,null,null,null,{"$f":"'Schedule IIB (EBS)'!R76","v":0}]
["Sch IIB","Investments",null,"Credit Derivatives - Down - After - Short- Rating 0",null,null,null,null,null,null,null,null,{"$f":"'Schedule IIB (EBS)'!T68","v":0}]
["Sch IIB","Investments",null,"Credit Derivatives - Down - After - Short- Rating 1",null,null,null,null,null,null,null,null,{"$f":"'Schedule IIB (EBS)'!T69","v":0}]
["Sch IIB","Investments",null,"Credit Derivatives - Down - After - Short- Rating 2",null,null,null,null,null,null,null,null,{"$f":"'Schedule IIB (EBS)'!T70","v":0}]
["Sch IIB","Investments",null,"Credit Derivatives - Down - After - Short- Rating 3",null,null,null,null,null,null,null,null,{"$f":"'Schedule IIB (EBS)'!T71","v":0}]
["Sch IIB","Investments",null,"Credit Derivatives - Down - After - Short- Rating 4",null,null,null,null,null,null,null,null,{"$f":"'Schedule IIB (EBS)'!T72","v":0}]
["Sch IIB","Investments",null,"Credit Derivatives - Down - After - Short- Rating 5",null,null,null,null,null,null,null,null,{"$f":"'Schedule IIB (EBS)'!T73","v":0}]
["Sch IIB","Investments",null,"Credit Derivatives - Down - After - Short- Rating 6",null,null,null,null,null,null,null,null,{"$f":"'Schedule IIB (EBS)'!T74","v":0}]
["Sch IIB","Investments",null,"Credit Derivatives - Down - After - Short- Rating 7",null,null,null,null,null,null,null,null,{"$f":"'Schedule IIB (EBS)'!T75","v":0}]
["Sch IIB","Investments",null,"Credit Derivatives - Down - After - Short- Rating 8",null,null,null,null,null,null,null,null,{"$f":"'Schedule IIB (EBS)'!T76","v":0}]
["Sch IIB","Investments",null,"Counterparty Default Risk - MV of Derivatives - MV Positive - Rating 0",null,null,null,null,null,null,null,null,{"$f":"'Schedule IIB (EBS)'!D84","v":0}]
["Sch IIB","Investments",null,"Counterparty Default Risk - MV of Derivatives - MV Positive - Rating 1",null,null,null,null,null,null,null,null,{"$f":"'Schedule IIB (EBS)'!D85","v":0}]
["Sch IIB","Investments",null,"Counterparty Default Risk - MV of Derivatives - MV Positive - Rating 2",null,null,null,null,null,null,null,null,{"$f":"'Schedule IIB (EBS)'!D86","v":0}]
["Sch IIB","Investments",null,"Counterparty Default Risk - MV of Derivatives - MV Positive - Rating 3",null,null,null,null,null,null,null,null,{"$f":"'Schedule IIB (EBS)'!D87","v":0}]
["Sch IIB","Investments",null,"Counterparty Default Risk - MV of Derivatives - MV Positive - Rating 4",null,null,null,null,null,null,null,null,{"$f":"'Schedule IIB (EBS)'!D88","v":0}]
["Sch IIB","Investments",null,"Counterparty Default Risk - MV of Derivatives - MV Positive - Rating 5",null,null,null,null,null,null,null,null,{"$f":"'Schedule IIB (EBS)'!D89","v":0}]
["Sch IIB","Investments",null,"Counterparty Default Risk - MV of Derivatives - MV Positive - Rating 6",null,null,null,null,null,null,null,null,{"$f":"'Schedule IIB (EBS)'!D90","v":0}]
["Sch IIB","Investments",null,"Counterparty Default Risk - MV of Derivatives - MV Positive - Rating 7",null,null,null,null,null,null,null,null,{"$f":"'Schedule IIB (EBS)'!D91","v":0}]
["Sch IIB","Investments",null,"Counterparty Default Risk - MV of Derivatives - MV Positive - Rating 8",null,null,null,null,null,null,null,null,{"$f":"'Schedule IIB (EBS)'!D92","v":0}]
["Sch IIB","Investments",null,"Counterparty Default Risk - MV of Derivatives - MV Negative - Rating 0",null,null,null,null,null,null,null,null,{"$f":"'Schedule IIB (EBS)'!F84","v":0}]
["Sch IIB","Investments",null,"Counterparty Default Risk - MV of Derivatives - MV Negative - Rating 1",null,null,null,null,null,null,null,null,{"$f":"'Schedule IIB (EBS)'!F85","v":0}]
["Sch IIB","Investments",null,"Counterparty Default Risk - MV of Derivatives - MV Negative - Rating 2",null,null,null,null,null,null,null,null,{"$f":"'Schedule IIB (EBS)'!F86","v":0}]
["Sch IIB","Investments",null,"Counterparty Default Risk - MV of Derivatives - MV Negative - Rating 3",null,null,null,null,null,null,null,null,{"$f":"'Schedule IIB (EBS)'!F87","v":0}]
["Sch IIB","Investments",null,"Counterparty Default Risk - MV of Derivatives - MV Negative - Rating 4",null,null,null,null,null,null,null,null,{"$f":"'Schedule IIB (EBS)'!F88","v":0}]
["Sch IIB","Investments",null,"Counterparty Default Risk - MV of Derivatives - MV Negative - Rating 5",null,null,null,null,null,null,null,null,{"$f":"'Schedule IIB (EBS)'!F89","v":0}]
["Sch IIB","Investments",null,"Counterparty Default Risk - MV of Derivatives - MV Negative - Rating 6",null,null,null,null,null,null,null,null,{"$f":"'Schedule IIB (EBS)'!F90","v":0}]
["Sch IIB","Investments",null,"Counterparty Default Risk - MV of Derivatives - MV Negative - Rating 7",null,null,null,null,null,null,null,null,{"$f":"'Schedule IIB (EBS)'!F91","v":0}]
["Sch IIB","Investments",null,"Counterparty Default Risk - MV of Derivatives - MV Negative - Rating 8",null,null,null,null,null,null,null,null,{"$f":"'Schedule IIB (EBS)'!F92","v":0}]
["Sch IIB","Investments",null,"Counterparty Default Risk - MV of Collateral - Rating 0",null,null,null,null,null,null,null,null,{"$f":"'Schedule IIB (EBS)'!H84","v":0}]
["Sch IIB","Investments",null,"Counterparty Default Risk - MV of Collateral - Rating 1",null,null,null,null,null,null,null,null,{"$f":"'Schedule IIB (EBS)'!H85","v":0}]
["Sch IIB","Investments",null,"Counterparty Default Risk - MV of Collateral - Rating 2",null,null,null,null,null,null,null,null,{"$f":"'Schedule IIB (EBS)'!H86","v":0}]
["Sch IIB","Investments",null,"Counterparty Default Risk - MV of Collateral - Rating 3",null,null,null,null,null,null,null,null,{"$f":"'Schedule IIB (EBS)'!H87","v":0}]
["Sch IIB","Investments",null,"Counterparty Default Risk - MV of Collateral - Rating 4",null,null,null,null,null,null,null,null,{"$f":"'Schedule IIB (EBS)'!H88","v":0}]
["Sch IIB","Investments",null,"Counterparty Default Risk - MV of Collateral - Rating 5",null,null,null,null,null,null,null,null,{"$f":"'Schedule IIB (EBS)'!H89","v":0}]
["Sch IIB","Investments",null,"Counterparty Default Risk - MV of Collateral - Rating 6",null,null,null,null,null,null,null,null,{"$f":"'Schedule IIB (EBS)'!H90","v":0}]
["Sch IIB","Investments",null,"Counterparty Default Risk - MV of Collateral - Rating 7",null,null,null,null,null,null,null,null,{"$f":"'Schedule IIB (EBS)'!H91","v":0}]
["Sch IIB","Investments",null,"Counterparty Default Risk - MV of Collateral - Rating 8",null,null,null,null,null,null,null,null,{"$f":"'Schedule IIB (EBS)'!H92","v":0}]
["Sch IIB","Investments",null,"Cash and Cash Equivalents",null,null,null,null,null,null,null,null,{"$f":"'Schedule IIB (EBS)'!D95","v":0}]
["Sch IIB","Investments",null,"NAIC Resid. MBS - Orig. Class 1",null,null,null,null,null,null,null,null,{"$f":"'Schedule IIB (EBS)'!N86","v":0}]
["Sch IIB","Investments",null,"NAIC Resid. MBS - Orig. Class 2",null,null,null,null,null,null,null,null,{"$f":"'Schedule IIB (EBS)'!N87","v":0}]
["Sch IIB","Investments",null,"NAIC Resid. MBS - Orig. Class 3",null,null,null,null,null,null,null,null,{"$f":"'Schedule IIB (EBS)'!N88","v":0}]
["Sch IIB","Investments",null,"NAIC Resid. MBS - Orig. Class 4",null,null,null,null,null,null,null,null,{"$f":"'Schedule IIB (EBS)'!N89","v":0}]
["Sch IIB","Investments",null,"NAIC Resid. MBS - Orig. Class 5",null,null,null,null,null,null,null,null,{"$f":"'Schedule IIB (EBS)'!N90","v":0}]
["Sch IIB","Investments",null,"NAIC Resid. MBS - Orig. Class 6",null,null,null,null,null,null,null,null,{"$f":"'Schedule IIB (EBS)'!N91","v":0}]
["Sch IIB","Investments",null,"NAIC Resid. MBS - Orig. Total",null,null,null,null,null,null,null,null,{"$f":"'Schedule IIB (EBS)'!N92","v":0}]
["Sch IIB","Investments",null,"NAIC Resid. MBS - Rev. Class 1",null,null,null,null,null,null,null,null,{"$f":"'Schedule IIB (EBS)'!P86","v":0}]
["Sch IIB","Investments",null,"NAIC Resid. MBS - Rev. Class 2",null,null,null,null,null,null,null,null,{"$f":"'Schedule IIB (EBS)'!P87","v":0}]
["Sch IIB","Investments",null,"NAIC Resid. MBS - Rev. Class 3",null,null,null,null,null,null,null,null,{"$f":"'Schedule IIB (EBS)'!P88","v":0}]
["Sch IIB","Investments",null,"NAIC Resid. MBS - Rev. Class 4",null,null,null,null,null,null,null,null,{"$f":"'Schedule IIB (EBS)'!P89","v":0}]
["Sch IIB","Investments",null,"NAIC Resid. MBS - Rev. Class 5",null,null,null,null,null,null,null,null,{"$f":"'Schedule IIB (EBS)'!P90","v":0}]
["Sch IIB","Investments",null,"NAIC Resid. MBS - Rev. Class 6",null,null,null,null,null,null,null,null,{"$f":"'Schedule IIB (EBS)'!P91","v":0}]
["Sch IIB","Investments",null,"NAIC Resid. MBS - Rev. Total",null,null,null,null,null,null,null,null,{"$f":"'Schedule IIB (EBS)'!P92","v":0}]
["Sch IIB","Investments",null,"NAIC Comm. MBS - Orig. Class 1",null,null,null,null,null,null,null,null,{"$f":"'Schedule IIB (EBS)'!R86","v":0}]
["Sch IIB","Investments",null,"NAIC Comm. MBS - Orig. Class 2",null,null,null,null,null,null,null,null,{"$f":"'Schedule IIB (EBS)'!R87","v":0}]
["Sch IIB","Investments",null,"NAIC Comm. MBS - Orig. Class 3",null,null,null,null,null,null,null,null,{"$f":"'Schedule IIB (EBS)'!R88","v":0}]
["Sch IIB","Investments",null,"NAIC Comm. MBS - Orig. Class 4",null,null,null,null,null,null,null,null,{"$f":"'Schedule IIB (EBS)'!R89","v":0}]
["Sch IIB","Investments",null,"NAIC Comm. MBS - Orig. Class 5",null,null,null,null,null,null,null,null,{"$f":"'Schedule IIB (EBS)'!R90","v":0}]
["Sch IIB","Investments",null,"NAIC Comm. MBS - Orig. Class 6",null,null,null,null,null,null,null,null,{"$f":"'Schedule IIB (EBS)'!R91","v":0}]
["Sch IIB","Investments",null,"NAIC Comm. MBS - Orig. Total",null,null,null,null,null,null,null,null,{"$f":"'Schedule IIB (EBS)'!R92","v":0}]
["Sch IIB","Investments",null,"NAIC Comm. MBS - Rev. Class 1",null,null,null,null,null,null,null,null,{"$f":"'Schedule IIB (EBS)'!T86","v":0}]
["Sch IIB","Investments",null,"NAIC Comm. MBS - Rev. Class 2",null,null,null,null,null,null,null,null,{"$f":"'Schedule IIB (EBS)'!T87","v":0}]
["Sch IIB","Investments",null,"NAIC Comm. MBS - Rev. Class 3",null,null,null,null,null,null,null,null,{"$f":"'Schedule IIB (EBS)'!T88","v":0}]
["Sch IIB","Investments",null,"NAIC Comm. MBS - Rev. Class 4",null,null,null,null,null,null,null,null,{"$f":"'Schedule IIB (EBS)'!T89","v":0}]
["Sch IIB","Investments",null,"NAIC Comm. MBS - Rev. Class 5",null,null,null,null,null,null,null,null,{"$f":"'Schedule IIB (EBS)'!T90","v":0}]
["Sch IIB","Investments",null,"NAIC Comm. MBS - Rev. Class 6",null,null,null,null,null,null,null,null,{"$f":"'Schedule IIB (EBS)'!T91","v":0}]
["Sch IIB","Investments",null,"NAIC Comm. MBS - Rev. Total",null,null,null,null,null,null,null,null,{"$f":"'Schedule IIB (EBS)'!T92","v":0}]
["Sch IIB","Investments",null,"NAIC Rating Corp & Sov. Bond - Class 1",null,null,null,null,null,null,null,null,{"$f":"'Schedule IIB (EBS)'!D101","v":0}]
["Sch IIB","Investments",null,"NAIC Rating Corp & Sov. Bond - Class 2",null,null,null,null,null,null,null,null,{"$f":"'Schedule IIB (EBS)'!D102","v":0}]
["Sch IIB","Investments",null,"NAIC Rating Corp & Sov. Bond - Class 3",null,null,null,null,null,null,null,null,{"$f":"'Schedule IIB (EBS)'!D103","v":0}]
["Sch IIB","Investments",null,"NAIC Rating Corp & Sov. Bond - Class 4",null,null,null,null,null,null,null,null,{"$f":"'Schedule IIB (EBS)'!D104","v":0}]
["Sch IIB","Investments",null,"NAIC Rating Corp & Sov. Bond - Class 5",null,null,null,null,null,null,null,null,{"$f":"'Schedule IIB (EBS)'!D105","v":0}]
["Sch IIB","Investments",null,"NAIC Rating Corp & Sov. Bond - Class 6",null,null,null,null,null,null,null,null,{"$f":"'Schedule IIB (EBS)'!D106","v":0}]
["Sch IIB","Investments",null,"NAIC Rating Corp & Sov. Bond - Total",null,null,null,null,null,null,null,null,{"$f":"'Schedule IIB (EBS)'!D107","v":0}]
["Sch IIB","Investments",null,"NAIC Rating Resid. MBS - Class 1",null,null,null,null,null,null,null,null,{"$f":"'Schedule IIB (EBS)'!F101","v":0}]
["Sch IIB","Investments",null,"NAIC Rating Resid. MBS - Class 2",null,null,null,null,null,null,null,null,{"$f":"'Schedule IIB (EBS)'!F102","v":0}]
["Sch IIB","Investments",null,"NAIC Rating Resid. MBS - Class 3",null,null,null,null,null,null,null,null,{"$f":"'Schedule IIB (EBS)'!F103","v":0}]
["Sch IIB","Investments",null,"NAIC Rating Resid. MBS - Class 4",null,null,null,null,null,null,null,null,{"$f":"'Schedule IIB (EBS)'!F104","v":0}]
["Sch IIB","Investments",null,"NAIC Rating Resid. MBS - Class 5",null,null,null,null,null,null,null,null,{"$f":"'Schedule IIB (EBS)'!F105","v":0}]
["Sch IIB","Investments",null,"NAIC Rating Resid. MBS - Class 6",null,null,null,null,null,null,null,null,{"$f":"'Schedule IIB (EBS)'!F106","v":0}]
["Sch IIB","Investments",null,"NAIC Rating Resid. MBS - Total",null,null,null,null,null,null,null,null,{"$f":"'Schedule IIB (EBS)'!F107","v":0}]
["Sch IIB","Investments",null,"NAIC Rating Comm. MBS - Class 1",null,null,null,null,null,null,null,null,{"$f":"'Schedule IIB (EBS)'!H101","v":0}]
["Sch IIB","Investments",null,"NAIC Rating Comm. MBS - Class 2",null,null,null,null,null,null,null,null,{"$f":"'Schedule IIB (EBS)'!H102","v":0}]
["Sch IIB","Investments",null,"NAIC Rating Comm. MBS - Class 3",null,null,null,null,null,null,null,null,{"$f":"'Schedule IIB (EBS)'!H103","v":0}]
["Sch IIB","Investments",null,"NAIC Rating Comm. MBS - Class 4",null,null,null,null,null,null,null,null,{"$f":"'Schedule IIB (EBS)'!H104","v":0}]
["Sch IIB","Investments",null,"NAIC Rating Comm. MBS - Class 5",null,null,null,null,null,null,null,null,{"$f":"'Schedule IIB (EBS)'!H105","v":0}]
["Sch IIB","Investments",null,"NAIC Rating Comm. MBS - Class 6",null,null,null,null,null,null,null,null,{"$f":"'Schedule IIB (EBS)'!H106","v":0}]
["Sch IIB","Investments",null,"NAIC Rating Comm. MBS - Total",null,null,null,null,null,null,null,null,{"$f":"'Schedule IIB (EBS)'!H107","v":0}]
["Sch IIB","Investments",null,"NAIC Rating Bond Mutual - Class 1",null,null,null,null,null,null,null,null,{"$f":"'Schedule IIB (EBS)'!J101","v":0}]
["Sch IIB","Investments",null,"NAIC Rating Bond Mutual - Class 2",null,null,null,null,null,null,null,null,{"$f":"'Schedule IIB (EBS)'!J102","v":0}]
["Sch IIB","Investments",null,"NAIC Rating Bond Mutual - Class 3",null,null,null,null,null,null,null,null,{"$f":"'Schedule IIB (EBS)'!J103","v":0}]
["Sch IIB","Investments",null,"NAIC Rating Bond Mutual - Class 4",null,null,null,null,null,null,null,null,{"$f":"'Schedule IIB (EBS)'!J104","v":0}]
["Sch IIB","Investments",null,"NAIC Rating Bond Mutual - Class 5",null,null,null,null,null,null,null,null,{"$f":"'Schedule IIB (EBS)'!J105","v":0}]
["Sch IIB","Investments",null,"NAIC Rating Bond Mutual - Class 6",null,null,null,null,null,null,null,null,{"$f":"'Schedule IIB (EBS)'!J106","v":0}]
["Sch IIB","Investments",null,"NAIC Rating Bond Mutual - Total",null,null,null,null,null,null,null,null,{"$f":"'Schedule IIB (EBS)'!J107","v":0}]
["Sch IIB","Investments",null,"NAIC Rating Mort. Loan - Class 1",null,null,null,null,null,null,null,null,{"$f":"'Schedule IIB (EBS)'!L101","v":0}]
["Sch IIB","Investments",null,"NAIC Rating Mort. Loan - Class 2",null,null,null,null,null,null,null,null,{"$f":"'Schedule IIB (EBS)'!L102","v":0}]
["Sch IIB","Investments",null,"NAIC Rating Mort. Loan - Class 3",null,null,null,null,null,null,null,null,{"$f":"'Schedule IIB (EBS)'!L103","v":0}]
["Sch IIB","Investments",null,"NAIC Rating Mort. Loan - Class 4",null,null,null,null,null,null,null,null,{"$f":"'Schedule IIB (EBS)'!L104","v":0}]
["Sch IIB","Investments",null,"NAIC Rating Mort. Loan - Class 5",null,null,null,null,null,null,null,null,{"$f":"'Schedule IIB (EBS)'!L105","v":0}]
["Sch IIB","Investments",null,"NAIC Rating Mort. Loan - Class 6",null,null,null,null,null,null,null,null,{"$f":"'Schedule IIB (EBS)'!L106","v":0}]
["Sch IIB","Investments",null,"NAIC Rating Mort. Loan - Total",null,null,null,null,null,null,null,null,{"$f":"'Schedule IIB (EBS)'!L107","v":0}]
["Sch IIB","Investments",null,"NAIC Rating Pref. Stock - Class 1",null,null,null,null,null,null,null,null,{"$f":"'Schedule IIB (EBS)'!N101","v":0}]
["Sch IIB","Investments",null,"NAIC Rating Pref. Stock - Class 2",null,null,null,null,null,null,null,null,{"$f":"'Schedule IIB (EBS)'!N102","v":0}]
["Sch IIB","Investments",null,"NAIC Rating Pref. Stock - Class 3",null,null,null,null,null,null,null,null,{"$f":"'Schedule IIB (EBS)'!N103","v":0}]
["Sch IIB","Investments",null,"NAIC Rating Pref. Stock - Class 4",null,null,null,null,null,null,null,null,{"$f":"'Schedule IIB (EBS)'!N104","v":0}]
["Sch IIB","Investments",null,"NAIC Rating Pref. Stock - Class 5",null,null,null,null,null,null,null,null,{"$f":"'Schedule IIB (EBS)'!N105","v":0}]
["Sch IIB","Investments",null,"NAIC Rating Pref. Stock - Class 6",null,null,null,null,null,null,null,null,{"$f":"'Schedule IIB (EBS)'!N106","v":0}]
["Sch IIB","Investments",null,"NAIC Rating Pref. Stock - Total",null,null,null,null,null,null,null,null,{"$f":"'Schedule IIB (EBS)'!N107","v":0}]
["Sch IIB","Investments",null,"NAIC Rating Other Assets - Class 1",null,null,null,null,null,null,null,null,{"$f":"'Schedule IIB (EBS)'!P101","v":0}]
["Sch IIB","Investments",null,"NAIC Rating Other Assets - Class 2",null,null,null,null,null,null,null,null,{"$f":"'Schedule IIB (EBS)'!P102","v":0}]
["Sch IIB","Investments",null,"NAIC Rating Other Assets - Class 3",null,null,null,null,null,null,null,null,{"$f":"'Schedule IIB (EBS)'!P103","v":0}]
["Sch IIB","Investments",null,"NAIC Rating Other Assets - Class 4",null,null,null,null,null,null,null,null,{"$f":"'Schedule IIB (EBS)'!P104","v":0}]
["Sch IIB","Investments",null,"NAIC Rating Other Assets - Class 5",null,null,null,null,null,null,null,null,{"$f":"'Schedule IIB (EBS)'!P105","v":0}]
["Sch IIB","Investments",null,"NAIC Rating Other Assets - Class 6",null,null,null,null,null,null,null,null,{"$f":"'Schedule IIB (EBS)'!P106","v":0}]
["Sch IIB","Investments",null,"NAIC Rating Other Assets - Total",null,null,null,null,null,null,null,null,{"$f":"'Schedule IIB (EBS)'!P107","v":0}]
[]
["Sch IIC","Funds Held",null,"Corp. Bonds - BSCR Rate 0",null,null,null,null,null,null,null,null,{"$f":"'Schedule IIC (EBS)'!D13","v":0},null,{"$f":"'Schedule IIC (EBS)'!F13","v":0}]
["Sch IIC","Funds Held",null,"Corp. Bonds - BSCR Rate 1",null,null,null,null,null,null,null,null,{"$f":"'Schedule IIC (EBS)'!D14","v":0},null,{"$f":"'Schedule IIC (EBS)'!F14","v":0}]
["Sch IIC","Funds Held",null,"Corp. Bonds - BSCR Rate 2",null,null,null,null,null,null,null,null,{"$f":"'Schedule IIC (EBS)'!D15","v":0},null,{"$f":"'Schedule IIC (EBS)'!F15","v":0}]
["Sch IIC","Funds Held",null,"Corp. Bonds - BSCR Rate 3",null,null,null,null,null,null,null,null,{"$f":"'Schedule IIC (EBS)'!D16","v":0},null,{"$f":"'Schedule IIC (EBS)'!F16","v":0}]
["Sch IIC","Funds Held",null,"Corp. Bonds - BSCR Rate 4",null,null,null,null,null,null,null,null,{"$f":"'Schedule IIC (EBS)'!D17","v":0},null,{"$f":"'Schedule IIC (EBS)'!F17","v":0}]
["Sch IIC","Funds Held",null,"Corp. Bonds - BSCR Rate 5",null,null,null,null,null,null,null,null,{"$f":"'Schedule IIC (EBS)'!D18","v":0},null,{"$f":"'Schedule IIC (EBS)'!F18","v":0}]
["Sch IIC","Funds Held",null,"Corp. Bonds - BSCR Rate 6",null,null,null,null,null,null,null,null,{"$f":"'Schedule IIC (EBS)'!D19","v":0},null,{"$f":"'Schedule IIC (EBS)'!F19","v":0}]
["Sch IIC","Funds Held",null,"Corp. Bonds - BSCR Rate 7",null,null,null,null,null,null,null,null,{"$f":"'Schedule IIC (EBS)'!D20","v":0},null,{"$f":"'Schedule IIC (EBS)'!F20","v":0}]
["Sch IIC","Funds Held",null,"Corp. Bonds - BSCR Rate 8",null,null,null,null,null,null,null,null,{"$f":"'Schedule IIC (EBS)'!D21","v":0},null,{"$f":"'Schedule IIC (EBS)'!F21","v":0}]
["Sch IIC","Funds Held",null,"Residential MBS - BSCR Rate 1",null,null,null,null,null,null,null,null,{"$f":"'Schedule IIC (EBS)'!H14","v":0},null,{"$f":"'Schedule IIC (EBS)'!J14","v":0}]
["Sch IIC","Funds Held",null,"Residential MBS - BSCR Rate 2",null,null,null,null,null,null,null,null,{"$f":"'Schedule IIC (EBS)'!H15","v":0},null,{"$f":"'Schedule IIC (EBS)'!J15","v":0}]
["Sch IIC","Funds Held",null,"Residential MBS - BSCR Rate 3",null,null,null,null,null,null,null,null,{"$f":"'Schedule IIC (EBS)'!H16","v":0},null,{"$f":"'Schedule IIC (EBS)'!J16","v":0}]
["Sch IIC","Funds Held",null,"Residential MBS - BSCR Rate 4",null,null,null,null,null,null,null,null,{"$f":"'Schedule IIC (EBS)'!H17","v":0},null,{"$f":"'Schedule IIC (EBS)'!J17","v":0}]
["Sch IIC","Funds Held",null,"Residential MBS - BSCR Rate 5",null,null,null,null,null,null,null,null,{"$f":"'Schedule IIC (EBS)'!H18","v":0},null,{"$f":"'Schedule IIC (EBS)'!J18","v":0}]
["Sch IIC","Funds Held",null,"Residential MBS - BSCR Rate 6",null,null,null,null,null,null,null,null,{"$f":"'Schedule IIC (EBS)'!H19","v":0},null,{"$f":"'Schedule IIC (EBS)'!J19","v":0}]
["Sch IIC","Funds Held",null,"Residential MBS - BSCR Rate 7",null,null,null,null,null,null,null,null,{"$f":"'Schedule IIC (EBS)'!H20","v":0},null,{"$f":"'Schedule IIC (EBS)'!J20","v":0}]
["Sch IIC","Funds Held",null,"Residential MBS - BSCR Rate 8",null,null,null,null,null,null,null,null,{"$f":"'Schedule IIC (EBS)'!H21","v":0},null,{"$f":"'Schedule IIC (EBS)'!J21","v":0}]
["Sch IIC","Funds Held",null,"Commercial MBS - BSCR Rate 1",null,null,null,null,null,null,null,null,{"$f":"'Schedule IIC (EBS)'!L14","v":0},null,{"$f":"'Schedule IIC (EBS)'!N14","v":0}]
["Sch IIC","Funds Held",null,"Commercial MBS - BSCR Rate 2",null,null,null,null,null,null,null,null,{"$f":"'Schedule IIC (EBS)'!L15","v":0},null,{"$f":"'Schedule IIC (EBS)'!N15","v":0}]
["Sch IIC","Funds Held",null,"Commercial MBS - BSCR Rate 3",null,null,null,null,null,null,null,null,{"$f":"'Schedule IIC (EBS)'!L16","v":0},null,{"$f":"'Schedule IIC (EBS)'!N16","v":0}]
["Sch IIC","Funds Held",null,"Commercial MBS - BSCR Rate 4",null,null,null,null,null,null,null,null,{"$f":"'Schedule IIC (EBS)'!L17","v":0},null,{"$f":"'Schedule IIC (EBS)'!N17","v":0}]
["Sch IIC","Funds Held",null,"Commercial MBS - BSCR Rate 5",null,null,null,null,null,null,null,null,{"$f":"'Schedule IIC (EBS)'!L18","v":0},null,{"$f":"'Schedule IIC (EBS)'!N18","v":0}]
["Sch IIC","Funds Held",null,"Commercial MBS - BSCR Rate 6",null,null,null,null,null,null,null,null,{"$f":"'Schedule IIC (EBS)'!L19","v":0},null,{"$f":"'Schedule IIC (EBS)'!N19","v":0}]
["Sch IIC","Funds Held",null,"Commercial MBS - BSCR Rate 7",null,null,null,null,null,null,null,null,{"$f":"'Schedule IIC (EBS)'!L20","v":0},null,{"$f":"'Schedule IIC (EBS)'!N20","v":0}]
["Sch IIC","Funds Held",null,"Commercial MBS - BSCR Rate 8",null,null,null,null,null,null,null,null,{"$f":"'Schedule IIC (EBS)'!L21","v":0},null,{"$f":"'Schedule IIC (EBS)'!N21","v":0}]
["Sch IIC","Funds Held",null,"Bonds Mutual Fund - BSCR Rate 0",null,null,null,null,null,null,null,null,{"$f":"'Schedule IIC (EBS)'!P13","v":0},null,{"$f":"'Schedule IIC (EBS)'!R13","v":0}]
["Sch IIC","Funds Held",null,"Bonds Mutual Fund - BSCR Rate 1",null,null,null,null,null,null,null,null,{"$f":"'Schedule IIC (EBS)'!P14","v":0},null,{"$f":"'Schedule IIC (EBS)'!R14","v":0}]
["Sch IIC","Funds Held",null,"Bonds Mutual Fund - BSCR Rate 2",null,null,null,null,null,null,null,null,{"$f":"'Schedule IIC (EBS)'!P15","v":0},null,{"$f":"'Schedule IIC (EBS)'!R15","v":0}]
["Sch IIC","Funds Held",null,"Bonds Mutual Fund - BSCR Rate 3",null,null,null,null,null,null,null,null,{"$f":"'Schedule IIC (EBS)'!P16","v":0},null,{"$f":"'Schedule IIC (EBS)'!R16","v":0}]
["Sch IIC","Funds Held",null,"Bonds Mutual Fund - BSCR Rate 4",null,null,null,null,null,null,null,null,{"$f":"'Schedule IIC (EBS)'!P17","v":0},null,{"$f":"'Schedule IIC (EBS)'!R17","v":0}]
["Sch IIC","Funds Held",null,"Bonds Mutual Fund - BSCR Rate 5",null,null,null,null,null,null,null,null,{"$f":"'Schedule IIC (EBS)'!P18","v":0},null,{"$f":"'Schedule IIC (EBS)'!R18","v":0}]
["Sch IIC","Funds Held",null,"Bonds Mutual Fund - BSCR Rate 6",null,null,null,null,null,null,null,null,{"$f":"'Schedule IIC (EBS)'!P19","v":0},null,{"$f":"'Schedule IIC (EBS)'!R19","v":0}]
["Sch IIC","Funds Held",null,"Bonds Mutual Fund - BSCR Rate 7",null,null,null,null,null,null,null,null,{"$f":"'Schedule IIC (EBS)'!P20","v":0},null,{"$f":"'Schedule IIC (EBS)'!R20","v":0}]
["Sch IIC","Funds Held",null,"Bonds Mutual Fund - BSCR Rate 8",null,null,null,null,null,null,null,null,{"$f":"'Schedule IIC (EBS)'!P21","v":0},null,{"$f":"'Schedule IIC (EBS)'!R21","v":0}]
["Sch IIC","Funds Held",null,"Mortgage Loans - Insured",null,null,null,null,null,null,null,null,{"$f":"'Schedule IIC (EBS)'!T22","v":0},null,{"$f":"'Schedule IIC (EBS)'!V22","v":0}]
["Sch IIC","Funds Held",null,"Mortgage Loans - Other Commercial",null,null,null,null,null,null,null,null,{"$f":"'Schedule IIC (EBS)'!T23","v":0},null,{"$f":"'Schedule IIC (EBS)'!V23","v":0}]
["Sch IIC","Funds Held",null,"Mortgage Loans - Other Residential",null,null,null,null,null,null,null,null,{"$f":"'Schedule IIC (EBS)'!T24","v":0},null,{"$f":"'Schedule IIC (EBS)'!V24","v":0}]
["Sch IIC","Funds Held",null,"Mortgage Loans - Not Good Stand.",null,null,null,null,null,null,null,null,{"$f":"'Schedule IIC (EBS)'!T25","v":0},null,{"$f":"'Schedule IIC (EBS)'!V25","v":0}]
["Sch IIC","Funds Held",null,"Long Positions - Before - Strategic Holdings - Listed",null,null,null,null,null,null,null,null,{"$f":"'Schedule IIC (EBS)'!D39","v":0}]
["Sch IIC","Funds Held",null,"Long Positions - Before - Duration Based",null,null,null,null,null,null,null,null,{"$f":"'Schedule IIC (EBS)'!D40","v":0}]
["Sch IIC","Funds Held",null,"Long Positions - Before - Listed Equity Securities in Developed Markets",null,null,null,null,null,null,null,null,{"$f":"'Schedule IIC (EBS)'!D41","v":0}]
["Sch IIC","Funds Held",null,"Long Positions - Before - Preferred Stocks, BSCR Rating 1",null,null,null,null,null,null,null,null,{"$f":"'Schedule IIC (EBS)'!D42","v":0}]
["Sch IIC","Funds Held",null,"Long Positions - Before - Preferred Stocks, BSCR Rating 2",null,null,null,null,null,null,null,null,{"$f":"'Schedule IIC (EBS)'!D43","v":0}]
["Sch IIC","Funds Held",null,"Long Positions - Before - Preferred Stocks, BSCR Rating 3",null,null,null,null,null,null,null,null,{"$f":"'Schedule IIC (EBS)'!D44","v":0}]
["Sch IIC","Funds Held",null,"Long Positions - Before - Preferred Stocks, BSCR Rating 4",null,null,null,null,null,null,null,null,{"$f":"'Schedule IIC (EBS)'!D45","v":0}]
["Sch IIC","Funds Held",null,"Long Positions - Before - Preferred Stocks, BSCR Rating 5",null,null,null,null,null,null,null,null,{"$f":"'Schedule IIC (EBS)'!D46","v":0}]
["Sch IIC","Funds Held",null,"Long Positions - Before - Preferred Stocks, BSCR Rating 6",null,null,null,null,null,null,null,null,{"$f":"'Schedule IIC (EBS)'!D47","v":0}]
["Sch IIC","Funds Held",null,"Long Positions - Before - Preferred Stocks, BSCR Rating 7",null,null,null,null,null,null,null,null,{"$f":"'Schedule IIC (EBS)'!D48","v":0}]
["Sch IIC","Funds Held",null,"Long Positions - Before - Preferred Stocks, BSCR Rating 8",null,null,null,null,null,null,null,null,{"$f":"'Schedule IIC (EBS)'!D49","v":0}]
["Sch IIC","Funds Held",null,"Long Positions - Before - Equity Derivatives on Type 1 Equities",null,null,null,null,null,null,null,null,{"$f":"'Schedule IIC (EBS)'!D50","v":0}]
["Sch IIC","Funds Held",null,"Long Positions - Before - Strategic Holdings - Unlisted",null,null,null,null,null,null,null,null,{"$f":"'Schedule IIC (EBS)'!D51","v":0}]
["Sch IIC","Funds Held",null,"Long Positions - Before - Other Equities",null,null,null,null,null,null,null,null,{"$f":"'Schedule IIC (EBS)'!D52","v":0}]
["Sch IIC","Funds Held",null,"Long Positions - Before - Letters of Credit",null,null,null,null,null,null,null,null,{"$f":"'Schedule IIC (EBS)'!D53","v":0}]
["Sch IIC","Funds Held",null,"Long Positions - Before - Intangible assets",null,null,null,null,null,null,null,null,{"$f":"'Schedule IIC (EBS)'!D54","v":0}]
["Sch IIC","Funds Held",null,"Long Positions - Before - Pension Benefit Surplus",null,null,null,null,null,null,null,null,{"$f":"'Schedule IIC (EBS)'!D55","v":0}]
["Sch IIC","Funds Held",null,"Long Positions - Before - Equity Derivatives on Type 2 Equities",null,null,null,null,null,null,null,null,{"$f":"'Schedule IIC (EBS)'!D56","v":0}]
["Sch IIC","Funds Held",null,"Long Positions - Before - Infrastructure",null,null,null,null,null,null,null,null,{"$f":"'Schedule IIC (EBS)'!D57","v":0}]
["Sch IIC","Funds Held",null,"Long Positions - Before - Derivatives on Infrastructure",null,null,null,null,null,null,null,null,{"$f":"'Schedule IIC (EBS)'!D58","v":0}]
["Sch IIC","Funds Held",null,"Long Positions - Before - Equity Real Estate 1",null,null,null,null,null,null,null,null,{"$f":"'Schedule IIC (EBS)'!D59","v":0}]
["Sch IIC","Funds Held",null,"Long Positions - Before - Equity Real Estate 2",null,null,null,null,null,null,null,null,{"$f":"'Schedule IIC (EBS)'!D60","v":0}]
["Sch IIC","Funds Held",null,"Long Positions - After - Strategic Holdings - Listed",null,null,null,null,null,null,null,null,{"$f":"'Schedule IIC (EBS)'!F39","v":0}]
["Sch IIC","Funds Held",null,"Long Positions - After - Duration Based",null,null,null,null,null,null,null,null,{"$f":"'Schedule IIC (EBS)'!F40","v":0}]
["Sch IIC","Funds Held",null,"Long Positions - After - Listed Equity Securities in Developed Markets",null,null,null,null,null,null,null,null,{"$f":"'Schedule IIC (EBS)'!F41","v":0}]
["Sch IIC","Funds Held",null,"Long Positions - After - Preferred Stocks, BSCR Rating 1",null,null,null,null,null,null,null,null,{"$f":"'Schedule IIC (EBS)'!F42","v":0}]
["Sch IIC","Funds Held",null,"Long Positions - After - Preferred Stocks, BSCR Rating 2",null,null,null,null,null,null,null,null,{"$f":"'Schedule IIC (EBS)'!F43","v":0}]
["Sch IIC","Funds Held",null,"Long Positions - After - Preferred Stocks, BSCR Rating 3",null,null,null,null,null,null,null,null,{"$f":"'Schedule IIC (EBS)'!F44","v":0}]
["Sch IIC","Funds Held",null,"Long Positions - After - Preferred Stocks, BSCR Rating 4",null,null,null,null,null,null,null,null,{"$f":"'Schedule IIC (EBS)'!F45","v":0}]
["Sch IIC","Funds Held",null,"Long Positions - After - Preferred Stocks, BSCR Rating 5",null,null,null,null,null,null,null,null,{"$f":"'Schedule IIC (EBS)'!F46","v":0}]
["Sch IIC","Funds Held",null,"Long Positions - After - Preferred Stocks, BSCR Rating 6",null,null,null,null,null,null,null,null,{"$f":"'Schedule IIC (EBS)'!F47","v":0}]
["Sch IIC","Funds Held",null,"Long Positions - After - Preferred Stocks, BSCR Rating 7",null,null,null,null,null,null,null,null,{"$f":"'Schedule IIC (EBS)'!F48","v":0}]
["Sch IIC","Funds Held",null,"Long Positions - After - Preferred Stocks, BSCR Rating 8",null,null,null,null,null,null,null,null,{"$f":"'Schedule IIC (EBS)'!F49","v":0}]
["Sch IIC","Funds Held",null,"Long Positions - After - Equity Derivatives on Type 1 Equities",null,null,null,null,null,null,null,null,{"$f":"'Schedule IIC (EBS)'!F50","v":0}]
["Sch IIC","Funds Held",null,"Long Positions - After - Strategic Holdings - Unlisted",null,null,null,null,null,null,null,null,{"$f":"'Schedule IIC (EBS)'!F51","v":0}]
["Sch IIC","Funds Held",null,"Long Positions - After - Other Equities",null,null,null,null,null,null,null,null,{"$f":"'Schedule IIC (EBS)'!F52","v":0}]
["Sch IIC","Funds Held",null,"Long Positions - After - Letters of Credit",null,null,null,null,null,null,null,null,{"$f":"'Schedule IIC (EBS)'!F53","v":0}]
["Sch IIC","Funds Held",null,"Long Positions - After - Intangible assets",null,null,null,null,null,null,null,null,{"$f":"'Schedule IIC (EBS)'!F54","v":0}]
["Sch IIC","Funds Held",null,"Long Positions - After - Pension Benefit Surplus",null,null,null,null,null,null,null,null,{"$f":"'Schedule IIC (EBS)'!F55","v":0}]
["Sch IIC","Funds Held",null,"Long Positions - After - Equity Derivatives on Type 2 Equities",null,null,null,null,null,null,null,null,{"$f":"'Schedule IIC (EBS)'!F56","v":0}]
["Sch IIC","Funds Held",null,"Long Positions - After - Infrastructure",null,null,null,null,null,null,null,null,{"$f":"'Schedule IIC (EBS)'!F57","v":0}]
["Sch IIC","Funds Held",null,"Long Positions - After - Derivatives on Infrastructure",null,null,null,null,null,null,null,null,{"$f":"'Schedule IIC (EBS)'!F58","v":0}]
["Sch IIC","Funds Held",null,"Long Positions - After - Equity Real Estate 1",null,null,null,null,null,null,null,null,{"$f":"'Schedule IIC (EBS)'!F59","v":0}]
["Sch IIC","Funds Held",null,"Long Positions - After - Equity Real Estate 2",null,null,null,null,null,null,null,null,{"$f":"'Schedule IIC (EBS)'!F60","v":0}]
["Sch IIC","Funds Held",null,"Short - Before - Qualified Assets - Strategic Holdings - Listed",null,null,null,null,null,null,null,null,{"$f":"'Schedule IIC (EBS)'!H39","v":0}]
["Sch IIC","Funds Held",null,"Short - Before - Qualified Assets - Duration Based",null,null,null,null,null,null,null,null,{"$f":"'Schedule IIC (EBS)'!H40","v":0}]
["Sch IIC","Funds Held",null,"Short - Before - Qualified Assets - Listed Equity Securities in Developed Markets",null,null,null,null,null,null,null,null,{"$f":"'Schedule IIC (EBS)'!H41","v":0}]
["Sch IIC","Funds Held",null,"Short - Before - Qualified Assets - Preferred Stocks, BSCR Rating 1",null,null,null,null,null,null,null,null,{"$f":"'Schedule IIC (EBS)'!H42","v":0}]
["Sch IIC","Funds Held",null,"Short - Before - Qualified Assets - Preferred Stocks, BSCR Rating 2",null,null,null,null,null,null,null,null,{"$f":"'Schedule IIC (EBS)'!H43","v":0}]
["Sch IIC","Funds Held",null,"Short - Before - Qualified Assets - Preferred Stocks, BSCR Rating 3",null,null,null,null,null,null,null,null,{"$f":"'Schedule IIC (EBS)'!H44","v":0}]
["Sch IIC","Funds Held",null,"Short - Before - Qualified Assets - Preferred Stocks, BSCR Rating 4",null,null,null,null,null,null,null,null,{"$f":"'Schedule IIC (EBS)'!H45","v":0}]
["Sch IIC","Funds Held",null,"Short - Before - Qualified Assets - Preferred Stocks, BSCR Rating 5",null,null,null,null,null,null,null,null,{"$f":"'Schedule IIC (EBS)'!H46","v":0}]
["Sch IIC","Funds Held",null,"Short - Before - Qualified Assets - Preferred Stocks, BSCR Rating 6",null,null,null,null,null,null,null,null,{"$f":"'Schedule IIC (EBS)'!H47","v":0}]
["Sch IIC","Funds Held",null,"Short - Before - Qualified Assets - Preferred Stocks, BSCR Rating 7",null,null,null,null,null,null,null,null,{"$f":"'Schedule IIC (EBS)'!H48","v":0}]
["Sch IIC","Funds Held",null,"Short - Before - Qualified Assets - Preferred Stocks, BSCR Rating 8",null,null,null,null,null,null,null,null,{"$f":"'Schedule IIC (EBS)'!H49","v":0}]
["Sch IIC","Funds Held",null,"Short - Before - Qualified Assets - Equity Derivatives on Type 1 Equities",null,null,null,null,null,null,null,null,{"$f":"'Schedule IIC (EBS)'!H50","v":0}]
["Sch IIC","Funds Held",null,"Short - Before - Qualified Assets - Strategic Holdings - Unlisted",null,null,null,null,null,null,null,null,{"$f":"'Schedule IIC (EBS)'!H51","v":0}]
["Sch IIC","Funds Held",null,"Short - Before - Qualified Assets - Other Equities",null,null,null,null,null,null,null,null,{"$f":"'Schedule IIC (EBS)'!H52","v":0}]
["Sch IIC","Funds Held",null,"Short - Before - Qualified Assets - Letters of Credit",null,null,null,null,null,null,null,null,{"$f":"'Schedule IIC (EBS)'!H53","v":0}]
["Sch IIC","Funds Held",null,"Short - Before - Qualified Assets - Intangible assets",null,null,null,null,null,null,null,null,{"$f":"'Schedule IIC (EBS)'!H54","v":0}]
["Sch IIC","Funds Held",null,"Short - Before - Qualified Assets - Pension Benefit Surplus",null,null,null,null,null,null,null,null,{"$f":"'Schedule IIC (EBS)'!H55","v":0}]
["Sch IIC","Funds Held",null,"Short - Before - Qualified Assets - Equity Derivatives on Type 2 Equities",null,null,null,null,null,null,null,null,{"$f":"'Schedule IIC (EBS)'!H56","v":0}]
["Sch IIC","Funds Held",null,"Short - Before - Qualified Assets - Infrastructure",null,null,null,null,null,null,null,null,{"$f":"'Schedule IIC (EBS)'!H57","v":0}]
["Sch IIC","Funds Held",null,"Short - Before - Qualified Assets - Derivatives on Infrastructure",null,null,null,null,null,null,null,null,{"$f":"'Schedule IIC (EBS)'!H58","v":0}]
["Sch IIC","Funds Held",null,"Short - Before - Qualified Assets - Equity Real Estate 1",null,null,null,null,null,null,null,null,{"$f":"'Schedule IIC (EBS)'!H59","v":0}]
["Sch IIC","Funds Held",null,"Short - Before - Qualified Assets - Equity Real Estate 2",null,null,null,null,null,null,null,null,{"$f":"'Schedule IIC (EBS)'!H60","v":0}]
["Sch IIC","Funds Held",null,"Short - After - Qualified Assets - Strategic Holdings - Listed",null,null,null,null,null,null,null,null,{"$f":"'Schedule IIC (EBS)'!J39","v":0}]
["Sch IIC","Funds Held",null,"Short - After - Qualified Assets - Duration Based",null,null,null,null,null,null,null,null,{"$f":"'Schedule IIC (EBS)'!J40","v":0}]
["Sch IIC","Funds Held",null,"Short - After - Qualified Assets - Listed Equity Securities in Developed Markets",null,null,null,null,null,null,null,null,{"$f":"'Schedule IIC (EBS)'!J41","v":0}]
["Sch IIC","Funds Held",null,"Short - After - Qualified Assets - Preferred Stocks, BSCR Rating 1",null,null,null,null,null,null,null,null,{"$f":"'Schedule IIC (EBS)'!J42","v":0}]
["Sch IIC","Funds Held",null,"Short - After - Qualified Assets - Preferred Stocks, BSCR Rating 2",null,null,null,null,null,null,null,null,{"$f":"'Schedule IIC (EBS)'!J43","v":0}]
["Sch IIC","Funds Held",null,"Short - After - Qualified Assets - Preferred Stocks, BSCR Rating 3",null,null,null,null,null,null,null,null,{"$f":"'Schedule IIC (EBS)'!J44","v":0}]
["Sch IIC","Funds Held",null,"Short - After - Qualified Assets - Preferred Stocks, BSCR Rating 4",null,null,null,null,null,null,null,null,{"$f":"'Schedule IIC (EBS)'!J45","v":0}]
["Sch IIC","Funds Held",null,"Short - After - Qualified Assets - Preferred Stocks, BSCR Rating 5",null,null,null,null,null,null,null,null,{"$f":"'Schedule IIC (EBS)'!J46","v":0}]
["Sch IIC","Funds Held",null,"Short - After - Qualified Assets - Preferred Stocks, BSCR Rating 6",null,null,null,null,null,null,null,null,{"$f":"'Schedule IIC (EBS)'!J47","v":0}]
["Sch IIC","Funds Held",null,"Short - After - Qualified Assets - Preferred Stocks, BSCR Rating 7",null,null,null,null,null,null,null,null,{"$f":"'Schedule IIC (EBS)'!J48","v":0}]
["Sch IIC","Funds Held",null,"Short - After - Qualified Assets - Preferred Stocks, BSCR Rating 8",null,null,null,null,null,null,null,null,{"$f":"'Schedule IIC (EBS)'!J49","v":0}]
["Sch IIC","Funds Held",null,"Short - After - Qualified Assets - Equity Derivatives on Type 1 Equities",null,null,null,null,null,null,null,null,{"$f":"'Schedule IIC (EBS)'!J50","v":0}]
["Sch IIC","Funds Held",null,"Short - After - Qualified Assets - Strategic Holdings - Unlisted",null,null,null,null,null,null,null,null,{"$f":"'Schedule IIC (EBS)'!J51","v":0}]
["Sch IIC","Funds Held",null,"Short - After - Qualified Assets - Other Equities",null,null,null,null,null,null,null,null,{"$f":"'Schedule IIC (EBS)'!J52","v":0}]
["Sch IIC","Funds Held",null,"Short - After - Qualified Assets - Letters of Credit",null,null,null,null,null,null,null,null,{"$f":"'Schedule IIC (EBS)'!J53","v":0}]
["Sch IIC","Funds Held",null,"Short - After - Qualified Assets - Intangible assets",null,null,null,null,null,null,null,null,{"$f":"'Schedule IIC (EBS)'!J54","v":0}]
["Sch IIC","Funds Held",null,"Short - After - Qualified Assets - Pension Benefit Surplus",null,null,null,null,null,null,null,null,{"$f":"'Schedule IIC (EBS)'!J55","v":0}]
["Sch IIC","Funds Held",null,"Short - After - Qualified Assets - Equity Derivatives on Type 2 Equities",null,null,null,null,null,null,null,null,{"$f":"'Schedule IIC (EBS)'!J56","v":0}]
["Sch IIC","Funds Held",null,"Short - After - Qualified Assets - Infrastructure",null,null,null,null,null,null,null,null,{"$f":"'Schedule IIC (EBS)'!J57","v":0}]
["Sch IIC","Funds Held",null,"Short - After - Qualified Assets - Derivatives on Infrastructure",null,null,null,null,null,null,null,null,{"$f":"'Schedule IIC (EBS)'!J58","v":0}]
["Sch IIC","Funds Held",null,"Short - After - Qualified Assets - Equity Real Estate 1",null,null,null,null,null,null,null,null,{"$f":"'Schedule IIC (EBS)'!J59","v":0}]
["Sch IIC","Funds Held",null,"Short - After - Qualified Assets - Equity Real Estate 2",null,null,null,null,null,null,null,null,{"$f":"'Schedule IIC (EBS)'!J60","v":0}]
["Sch IIC","Funds Held",null,"Short - Before - UnQualified Assets - Strategic Holdings - Listed",null,null,null,null,null,null,null,null,{"$f":"'Schedule IIC (EBS)'!L39","v":0}]
["Sch IIC","Funds Held",null,"Short - Before - UnQualified Assets - Duration Based",null,null,null,null,null,null,null,null,{"$f":"'Schedule IIC (EBS)'!L40","v":0}]
["Sch IIC","Funds Held",null,"Short - Before - UnQualified Assets - Listed Equity Securities in Developed Markets",null,null,null,null,null,null,null,null,{"$f":"'Schedule IIC (EBS)'!L41","v":0}]
["Sch IIC","Funds Held",null,"Short - Before - UnQualified Assets - Preferred Stocks, BSCR Rating 1",null,null,null,null,null,null,null,null,{"$f":"'Schedule IIC (EBS)'!L42","v":0}]
["Sch IIC","Funds Held",null,"Short - Before - UnQualified Assets - Preferred Stocks, BSCR Rating 2",null,null,null,null,null,null,null,null,{"$f":"'Schedule IIC (EBS)'!L43","v":0}]
["Sch IIC","Funds Held",null,"Short - Before - UnQualified Assets - Preferred Stocks, BSCR Rating 3",null,null,null,null,null,null,null,null,{"$f":"'Schedule IIC (EBS)'!L44","v":0}]
["Sch IIC","Funds Held",null,"Short - Before - UnQualified Assets - Preferred Stocks, BSCR Rating 4",null,null,null,null,null,null,null,null,{"$f":"'Schedule IIC (EBS)'!L45","v":0}]
["Sch IIC","Funds Held",null,"Short - Before - UnQualified Assets - Preferred Stocks, BSCR Rating 5",null,null,null,null,null,null,null,null,{"$f":"'Schedule IIC (EBS)'!L46","v":0}]
["Sch IIC","Funds Held",null,"Short - Before - UnQualified Assets - Preferred Stocks, BSCR Rating 6",null,null,null,null,null,null,null,null,{"$f":"'Schedule IIC (EBS)'!L47","v":0}]
["Sch IIC","Funds Held",null,"Short - Before - UnQualified Assets - Preferred Stocks, BSCR Rating 7",null,null,null,null,null,null,null,null,{"$f":"'Schedule IIC (EBS)'!L48","v":0}]
["Sch IIC","Funds Held",null,"Short - Before - UnQualified Assets - Preferred Stocks, BSCR Rating 8",null,null,null,null,null,null,null,null,{"$f":"'Schedule IIC (EBS)'!L49","v":0}]
["Sch IIC","Funds Held",null,"Short - Before - UnQualified Assets - Equity Derivatives on Type 1 Equities",null,null,null,null,null,null,null,null,{"$f":"'Schedule IIC (EBS)'!L50","v":0}]
["Sch IIC","Funds Held",null,"Short - Before - UnQualified Assets - Strategic Holdings - Unlisted",null,null,null,null,null,null,null,null,{"$f":"'Schedule IIC (EBS)'!L51","v":0}]
["Sch IIC","Funds Held",null,"Short - Before - UnQualified Assets - Other Equities",null,null,null,null,null,null,null,null,{"$f":"'Schedule IIC (EBS)'!L52","v":0}]
["Sch IIC","Funds Held",null,"Short - Before - UnQualified Assets - Letters of Credit",null,null,null,null,null,null,null,null,{"$f":"'Schedule IIC (EBS)'!L53","v":0}]
["Sch IIC","Funds Held",null,"Short - Before - UnQualified Assets - Intangible assets",null,null,null,null,null,null,null,null,{"$f":"'Schedule IIC (EBS)'!L54","v":0}]
["Sch IIC","Funds Held",null,"Short - Before - UnQualified Assets - Pension Benefit Surplus",null,null,null,null,null,null,null,null,{"$f":"'Schedule IIC (EBS)'!L55","v":0}]
["Sch IIC","Funds Held",null,"Short - Before - UnQualified Assets - Equity Derivatives on Type 2 Equities",null,null,null,null,null,null,null,null,{"$f":"'Schedule IIC (EBS)'!L56","v":0}]
["Sch IIC","Funds Held",null,"Short - Before - UnQualified Assets - Infrastructure",null,null,null,null,null,null,null,null,{"$f":"'Schedule IIC (EBS)'!L57","v":0}]
["Sch IIC","Funds Held",null,"Short - Before - UnQualified Assets - Derivatives on Infrastructure",null,null,null,null,null,null,null,null,{"$f":"'Schedule IIC (EBS)'!L58","v":0}]
["Sch IIC","Funds Held",null,"Short - Before - UnQualified Assets - Equity Real Estate 1",null,null,null,null,null,null,null,null,{"$f":"'Schedule IIC (EBS)'!L59","v":0}]
["Sch IIC","Funds Held",null,"Short - Before - UnQualified Assets - Equity Real Estate 2",null,null,null,null,null,null,null,null,{"$f":"'Schedule IIC (EBS)'!L60","v":0}]
["Sch IIC","Funds Held",null,"Short - After - UnQualified Assets - Strategic Holdings - Listed",null,null,null,null,null,null,null,null,{"$f":"'Schedule IIC (EBS)'!N39","v":0}]
["Sch IIC","Funds Held",null,"Short - After - UnQualified Assets - Duration Based",null,null,null,null,null,null,null,null,{"$f":"'Schedule IIC (EBS)'!N40","v":0}]
["Sch IIC","Funds Held",null,"Short - After - UnQualified Assets - Listed Equity Securities in Developed Markets",null,null,null,null,null,null,null,null,{"$f":"'Schedule IIC (EBS)'!N41","v":0}]
["Sch IIC","Funds Held",null,"Short - After - UnQualified Assets - Preferred Stocks, BSCR Rating 1",null,null,null,null,null,null,null,null,{"$f":"'Schedule IIC (EBS)'!N42","v":0}]
["Sch IIC","Funds Held",null,"Short - After - UnQualified Assets - Preferred Stocks, BSCR Rating 2",null,null,null,null,null,null,null,null,{"$f":"'Schedule IIC (EBS)'!N43","v":0}]
["Sch IIC","Funds Held",null,"Short - After - UnQualified Assets - Preferred Stocks, BSCR Rating 3",null,null,null,null,null,null,null,null,{"$f":"'Schedule IIC (EBS)'!N44","v":0}]
["Sch IIC","Funds Held",null,"Short - After - UnQualified Assets - Preferred Stocks, BSCR Rating 4",null,null,null,null,null,null,null,null,{"$f":"'Schedule IIC (EBS)'!N45","v":0}]
["Sch IIC","Funds Held",null,"Short - After - UnQualified Assets - Preferred Stocks, BSCR Rating 5",null,null,null,null,null,null,null,null,{"$f":"'Schedule IIC (EBS)'!N46","v":0}]
["Sch IIC","Funds Held",null,"Short - After - UnQualified Assets - Preferred Stocks, BSCR Rating 6",null,null,null,null,null,null,null,null,{"$f":"'Schedule IIC (EBS)'!N47","v":0}]
["Sch IIC","Funds Held",null,"Short - After - UnQualified Assets - Preferred Stocks, BSCR Rating 7",null,null,null,null,null,null,null,null,{"$f":"'Schedule IIC (EBS)'!N48","v":0}]
["Sch IIC","Funds Held",null,"Short - After - UnQualified Assets - Preferred Stocks, BSCR Rating 8",null,null,null,null,null,null,null,null,{"$f":"'Schedule IIC (EBS)'!N49","v":0}]
["Sch IIC","Funds Held",null,"Short - After - UnQualified Assets - Equity Derivatives on Type 1 Equities",null,null,null,null,null,null,null,null,{"$f":"'Schedule IIC (EBS)'!N50","v":0}]
["Sch IIC","Funds Held",null,"Short - After - UnQualified Assets - Strategic Holdings - Unlisted",null,null,null,null,null,null,null,null,{"$f":"'Schedule IIC (EBS)'!N51","v":0}]
["Sch IIC","Funds Held",null,"Short - After - UnQualified Assets - Other Equities",null,null,null,null,null,null,null,null,{"$f":"'Schedule IIC (EBS)'!N52","v":0}]
["Sch IIC","Funds Held",null,"Short - After - UnQualified Assets - Letters of Credit",null,null,null,null,null,null,null,null,{"$f":"'Schedule IIC (EBS)'!N53","v":0}]
["Sch IIC","Funds Held",null,"Short - After - UnQualified Assets - Intangible assets",null,null,null,null,null,null,null,null,{"$f":"'Schedule IIC (EBS)'!N54","v":0}]
["Sch IIC","Funds Held",null,"Short - After - UnQualified Assets - Pension Benefit Surplus",null,null,null,null,null,null,null,null,{"$f":"'Schedule IIC (EBS)'!N55","v":0}]
["Sch IIC","Funds Held",null,"Short - After - UnQualified Assets - Equity Derivatives on Type 2 Equities",null,null,null,null,null,null,null,null,{"$f":"'Schedule IIC (EBS)'!N56","v":0}]
["Sch IIC","Funds Held",null,"Short - After - UnQualified Assets - Infrastructure",null,null,null,null,null,null,null,null,{"$f":"'Schedule IIC (EBS)'!N57","v":0}]
["Sch IIC","Funds Held",null,"Short - After - UnQualified Assets - Derivatives on Infrastructure",null,null,null,null,null,null,null,null,{"$f":"'Schedule IIC (EBS)'!N58","v":0}]
["Sch IIC","Funds Held",null,"Short - After - UnQualified Assets - Equity Real Estate 1",null,null,null,null,null,null,null,null,{"$f":"'Schedule IIC (EBS)'!N59","v":0}]
["Sch IIC","Funds Held",null,"Short - After - UnQualified Assets - Equity Real Estate 2",null,null,null,null,null,null,null,null,{"$f":"'Schedule IIC (EBS)'!N60","v":0}]
["Sch IIC","Funds Held",null,"Liabilities - Before - W/O Mgmt Actions - Strategic Holdings - Listed",null,null,null,null,null,null,null,null,{"$f":"'Schedule IIC (EBS)'!P39","v":0}]
["Sch IIC","Funds Held",null,"Liabilities - Before - W/O Mgmt Actions - Duration Based",null,null,null,null,null,null,null,null,{"$f":"'Schedule IIC (EBS)'!P40","v":0}]
["Sch IIC","Funds Held",null,"Liabilities - Before - W/O Mgmt Actions - Listed Equity Securities in Developed Markets",null,null,null,null,null,null,null,null,{"$f":"'Schedule IIC (EBS)'!P41","v":0}]
["Sch IIC","Funds Held",null,"Liabilities - Before - W/O Mgmt Actions - Preferred Stocks, BSCR Rating 1",null,null,null,null,null,null,null,null,{"$f":"'Schedule IIC (EBS)'!P42","v":0}]
["Sch IIC","Funds Held",null,"Liabilities - Before - W/O Mgmt Actions - Preferred Stocks, BSCR Rating 2",null,null,null,null,null,null,null,null,{"$f":"'Schedule IIC (EBS)'!P43","v":0}]
["Sch IIC","Funds Held",null,"Liabilities - Before - W/O Mgmt Actions - Preferred Stocks, BSCR Rating 3",null,null,null,null,null,null,null,null,{"$f":"'Schedule IIC (EBS)'!P44","v":0}]
["Sch IIC","Funds Held",null,"Liabilities - Before - W/O Mgmt Actions - Preferred Stocks, BSCR Rating 4",null,null,null,null,null,null,null,null,{"$f":"'Schedule IIC (EBS)'!P45","v":0}]
["Sch IIC","Funds Held",null,"Liabilities - After - W/O Mgmt Actions - Preferred Stocks, BSCR Rating 1",null,null,null,null,null,null,null,null,{"$f":"'Schedule IIC (EBS)'!R42","v":0}]
["Sch IIC","Funds Held",null,"Liabilities - After - W/O Mgmt Actions - Preferred Stocks, BSCR Rating 6",null,null,null,null,null,null,null,null,{"$f":"'Schedule IIC (EBS)'!R47","v":0}]
["Sch IIC","Funds Held",null,"Liabilities - After - With Mgmt Actions - Pension Benefit Surplus",null,null,null,null,null,null,null,null,{"$f":"'Schedule IIC (EBS)'!T55","v":0}]
["Sch IIC","Funds Held",null,"Credit Derivatives - Up - Before - Short- Rating 5",null,null,null,null,null,null,null,null,{"$f":"'Schedule IIC (EBS)'!H73","v":0}]
["Sch IIC","Funds Held",null,"Credit Derivatives - Up - After - Short- Rating 2",null,null,null,null,null,null,null,null,{"$f":"'Schedule IIC (EBS)'!J70","v":0}]
["Sch IIC","Funds Held",null,"Credit Derivatives - Down - Before - Short- Rating 2",null,null,null,null,null,null,null,null,{"$f":"'Schedule IIC (EBS)'!R70","v":0}]
["Sch IIC","Funds Held",null,"Counterparty Default Risk - MV of Derivatives - MV Negative - Rating 4",null,null,null,null,null,null,null,null,{"$f":"'Schedule IIC (EBS)'!F88","v":0}]
["Sch IIC","Funds Held",null,"Counterparty Default Risk - MV of Collateral - Rating 3",null,null,null,null,null,null,null,null,{"$f":"'Schedule IIC (EBS)'!H87","v":0}]
["Sch IIC","Funds Held",null,"NAIC Rating Comm. MBS - Total",null,null,null,null,null,null,null,null,{"$f":"'Schedule IIC (EBS)'!H107","v":0}]
["Sch IID","Segregated Acc",null,"Corp. Bonds - BSCR Rate 2",null,null,null,null,null,null,null,null,{"$f":"'Schedule IID (EBS)'!D15","v":0}]
["Sch IID","Segregated Acc",null,"Residential MBS - BSCR Rate 5",null,null,null,null,null,null,null,null,{"$f":"'Schedule IID (EBS)'!H18","v":0}]
["Sch IID","Segregated Acc",null,"Commercial MBS - BSCR Rate 6",null,null,null,null,null,null,null,null,{"$f":"'Schedule IID (EBS)'!L19","v":0}]
["Sch IID","Segregated Acc",null,"Bonds Mutual Fund - BSCR Rate 7",null,null,null,null,null,null,null,null,{"$f":"'Schedule IID (EBS)'!P20","v":0}]
["Sch IID","Segregated Acc",null,"Liabilities Supported by Mortgage Loans - Insured",null,null,null,null,null,null,null,null,{"$f":"'Schedule IID (EBS)'!V22","v":0}]
["Sch IID","Segregated Acc",null,"Long Positions - Before - Pension Benefit Surplus",null,null,null,null,null,null,null,null,{"$f":"'Schedule IID (EBS)'!D55","v":0}]
["Sch IID","Segregated Acc",null,"Short - Before - Qualified Assets - Equity Derivatives on Type 1 Equities",null,null,null,null,null,null,null,null,{"$f":"'Schedule IID (EBS)'!H50","v":0}]
["Sch IID","Segregated Acc",null,"Short - After - Qualified Assets - Preferred Stocks, BSCR Rating 4",null,null,null,null,null,null,null,null,{"$f":"'Schedule IID (EBS)'!J45","v":0}]
["Sch IID","Segregated Acc",null,"Short - Before - UnQualified Assets - Preferred Stocks, BSCR Rating 2",null,null,null,null,null,null,null,null,{"$f":"'Schedule IID (EBS)'!L43","v":0}]
["Sch IID","Segregated Acc",null,"Short - Before - UnQualified Assets - Intangible assets",null,null,null,null,null,null,null,null,{"$f":"'Schedule IID (EBS)'!L54","v":0}]
["Sch IID","Segregated Acc",null,"Short - After - UnQualified Assets - Derivatives on Infrastructure",null,null,null,null,null,null,null,null,{"$f":"'Schedule IID (EBS)'!N58","v":0}]
["Sch IID","Segregated Acc",null,"Liabilities - After - W/O Mgmt Actions - Preferred Stocks, BSCR Rating 3",null,null,null,null,null,null,null,null,{"$f":"'Schedule IID (EBS)'!R44","v":0}]
["Sch IID","Segregated Acc",null,"Liabilities - After - W/O Mgmt Actions - Strategic Holdings - Unlisted",null,null,null,null,null,null,null,null,{"$f":"'Schedule IID (EBS)'!R51","v":0}]
["Sch IID","Segregated Acc",null,"Liabilities - After - With Mgmt Actions - Infrastructure",null,null,null,null,null,null,null,null,{"$f":"'Schedule IID (EBS)'!T57","v":0}]
["Sch IID","Segregated Acc",null,"Credit Derivatives - Up - Before - Short- Rating 5",null,null,null,null,null,null,null,null,{"$f":"'Schedule IID (EBS)'!H73","v":0}]
["Sch IID","Segregated Acc",null,"Credit Derivatives - Down - After - Long- Rating 7",null,null,null,null,null,null,null,null,{"$f":"'Schedule IID (EBS)'!P75","v":0}]
["Sch IID","Segregated Acc",null,"Credit Derivatives - Down - Before - Short- Rating 6",null,null,null,null,null,null,null,null,{"$f":"'Schedule IID (EBS)'!R74","v":0}]
["Sch IID","Segregated Acc",null,"Counterparty Default Risk - MV of Derivatives - MV Positive - Rating 5",null,null,null,null,null,null,null,null,{"$f":"'Schedule IID (EBS)'!D89","v":0}]
["Sch IID","Segregated Acc",null,"NAIC Rating Corp & Sov. Bond - Class 4",null,null,null,null,null,null,null,null,{"$f":"'Schedule IID (EBS)'!D104","v":0}]
["Sch IID","Segregated Acc",null,"NAIC Rating Pref. Stock - Class 2",null,null,null,null,null,null,null,null,{"$f":"'Schedule IID (EBS)'!N102","v":0}]
["Sch IIE","Deposits",null,"Residential MBS - BSCR Rate 1",null,null,null,null,null,null,null,null,{"$f":"'Schedule IIE (EBS)'!H14","v":0},null,{"$f":"'Schedule IIE (EBS)'!J14","v":0}]
["Sch IIE","Deposits",null,"Commercial MBS - BSCR Rate 7",null,null,null,null,null,null,null,null,{"$f":"'Schedule IIE (EBS)'!L20","v":0},null,{"$f":"'Schedule IIE (EBS)'!N20","v":0}]
["Sch IIE","Deposits",null,"Long Positions - Before - Listed Equity Securities in Developed Markets",null,null,null,null,null,null,null,null,{"$f":"'Schedule IIE (EBS)'!D41","v":0}]
["Sch IIE","Deposits",null,"Long Positions - After - Strategic Holdings - Listed",null,null,null,null,null,null,null,null,{"$f":"'Schedule IIE (EBS)'!F39","v":0}]
["Sch IIE","Deposits",null,"Short - Before - Qualified Assets - Letters of Credit",null,null,null,null,null,null,null,null,{"$f":"'Schedule IIE (EBS)'!H53","v":0}]
["Sch IIE","Deposits",null,"Short - After - Qualified Assets - Equity Derivatives on Type 1 Equities",null,null,null,null,null,null,null,null,{"$f":"'Schedule IIE (EBS)'!J50","v":0}]
["Sch IIE","Deposits",null,"Short - Before - UnQualified Assets - Preferred Stocks, BSCR Rating 3",null,null,null,null,null,null,null,null,{"$f":"'Schedule IIE (EBS)'!L44","v":0}]
["Sch IIE","Deposits",null,"Short - After - UnQualified Assets - Preferred Stocks, BSCR Rating 2",null,null,null,null,null,null,null,null,{"$f":"'Schedule IIE (EBS)'!N43","v":0}]
["Sch IIE","Deposits",null,"Short - After - UnQualified Assets - Infrastructure",null,null,null,null,null,null,null,null,{"$f":"'Schedule IIE (EBS)'!N57","v":0}]
["Sch IIE","Deposits",null,"Liabilities - Before - W/O Mgmt Actions - Derivatives on Infrastructure",null,null,null,null,null,null,null,null,{"$f":"'Schedule IIE (EBS)'!P58","v":0}]
["Sch IIE","Deposits",null,"Liabilities - After - With Mgmt Actions - Preferred Stocks, BSCR Rating 2",null,null,null,null,null,null,null,null,{"$f":"'Schedule IIE (EBS)'!T43","v":0}]
["Sch IIE","Deposits",null,"Credit Derivatives - Up - After - Long- Rating 3",null,null,null,null,null,null,null,null,{"$f":"'Schedule IIE (EBS)'!F71","v":0}]
["Sch IIE","Deposits",null,"Credit Derivatives - Up - After - Long- Rating 8",null,null,null,null,null,null,null,null,{"$f":"'Schedule IIE (EBS)'!F76","v":0}]
["Sch IIE","Deposits",null,"Credit Derivatives - Down - After - Long- Rating 4",null,null,null,null,null,null,null,null,{"$f":"'Schedule IIE (EBS)'!P72","v":0}]
["Sch IIE","Deposits",null,"Counterparty Default Risk - MV of Derivatives - MV Positive - Rating 1",null,null,null,null,null,null,null,null,{"$f":"'Schedule IIE (EBS)'!D85","v":0}]
["Sch IIE","Deposits",null,"Counterparty Default Risk - MV of Derivatives - MV Negative - Rating 1",null,null,null,null,null,null,null,null,{"$f":"'Schedule IIE (EBS)'!F85","v":0}]
["Sch IIE","Deposits",null,"NAIC Rating Resid. MBS - Class 2",null,null,null,null,null,null,null,null,{"$f":"'Schedule IIE (EBS)'!F102","v":0}]
["Sch IIE","Deposits",null,"NAIC Rating Pref. Stock - Total",null,null,null,null,null,null,null,null,{"$f":"'Schedule IIE (EBS)'!N107","v":0}]
["Sch IIF","Other Sundry",null,"Residential MBS - BSCR Rate 2",null,null,null,null,null,null,null,null,{"$f":"'Schedule IIF (EBS)'!H15","v":0},null,{"$f":"'Schedule IIF (EBS)'!J15","v":0}]
["Sch IIF","Other Sundry",null,"Bonds Mutual Fund - BSCR Rate 3",null,null,null,null,null,null,null,null,{"$f":"'Schedule IIF (EBS)'!P16","v":0},null,{"$f":"'Schedule IIF (EBS)'!R16","v":0}]
["Sch IIF","Other Sundry",null,"Long Positions - Before - Preferred Stocks, BSCR Rating 5",null,null,null,null,null,null,null,null,{"$f":"'Schedule IIF (EBS)'!D46","v":0}]
["Sch IIF","Other Sundry",null,"Long Positions - After - Preferred Stocks, BSCR Rating 3",null,null,null,null,null,null,null,null,{"$f":"'Schedule IIF (EBS)'!F44","v":0}]
["Sch IIF","Other Sundry",null,"Long Positions - After - Equity Real Estate 1",null,null,null,null,null,null,null,null,{"$f":"'Schedule IIF (EBS)'!F59","v":0}]
["Sch IIF","Other Sundry",null,"Short - After - Qualified Assets - Pension Benefit Surplus",null,null,null,null,null,null,null,null,{"$f":"'Schedule IIF (EBS)'!J55","v":0}]
["Sch IIF","Other Sundry",null,"Short - Before - UnQualified Assets - Intangible assets",null,null,null,null,null,null,null,null,{"$f":"'Schedule IIF (EBS)'!L54","v":0}]
["Sch IIF","Other Sundry",null,"Short - After - UnQualified Assets - Preferred Stocks, BSCR Rating 2",null,null,null,null,null,null,null,null,{"$f":"'Schedule IIF (EBS)'!N43","v":0}]
["Sch IIF","Other Sundry",null,"Liabilities - Before - W/O Mgmt Actions - Preferred Stocks, BSCR Rating 6",null,null,null,null,null,null,null,null,{"$f":"'Schedule IIF (EBS)'!P47","v":0}]
["Sch IIF","Other Sundry",null,"Liabilities - Before - W/O Mgmt Actions - Equity Derivatives on Type 2 Equities",null,null,null,null,null,null,null,null,{"$f":"'Schedule IIF (EBS)'!P56","v":0}]
["Sch IIF","Other Sundry",null,"Liabilities - After - W/O Mgmt Actions - Derivatives on Infrastructure",null,null,null,null,null,null,null,null,{"$f":"'Schedule IIF (EBS)'!R58","v":0}]
["Sch IIF","Other Sundry",null,"Credit Derivatives - Up - Before - Long-Rating 7",null,null,null,null,null,null,null,null,{"$f":"'Schedule IIF (EBS)'!D75","v":0}]
["Sch IIF","Other Sundry",null,"Credit Derivatives - Up - After - Short- Rating 7",null,null,null,null,null,null,null,null,{"$f":"'Schedule IIF (EBS)'!J75","v":0}]
["Sch IIF","Other Sundry",null,"Credit Derivatives - Down - Before - Long-Rating 2",null,null,null,null,null,null,null,null,{"$f":"'Schedule IIF (EBS)'!N70","v":0}]
["Sch IIF","Other Sundry",null,"Credit Derivatives - Down - After - Short- Rating 8",null,null,null,null,null,null,null,null,{"$f":"'Schedule IIF (EBS)'!T76","v":0}]
["Sch IIF","Other Sundry",null,"Counterparty Default Risk - MV of Collateral - Rating 4",null,null,null,null,null,null,null,null,{"$f":"'Schedule IIF (EBS)'!H88","v":0}]
["Sch IIF","Other Sundry",null,"NAIC Rating Resid. MBS - Class 2",null,null,null,null,null,null,null,null,{"$f":"'Schedule IIF (EBS)'!F102","v":0}]
["Sch IIF","Other Sundry",null,"NAIC Rating Mort. Loan - Class 2",null,null,null,null,null,null,null,null,{"$f":"'Schedule IIF (EBS)'!L102","v":0}]
["Sch III","Losses by Line",null,"Reserve - US Professional",{"$f":"'Schedule III'!E22","v":0},null,{"$f":"'Schedule III'!G22","v":0}]
["Sch III","Losses by Line",null,"Res. Gross - Energy Non-Proportional",null,null,null,null,null,null,null,null,{"$f":"'Schedule III (EBS)'!D20","v":0}]
["Sch III","Losses by Line",null,"Res. Net - Property",null,null,null,null,null,null,null,null,{"$f":"'Schedule III (EBS)'!F11","v":0}]
["Sch III","Losses by Line",null,"Res. Net - Int'l Motor",null,null,null,null,null,null,null,null,{"$f":"'Schedule III (EBS)'!F27","v":0}]
["Sch III","Losses by Line",null,"Note 16di - US Professional Non-Prop.",null,null,null,null,null,null,null,null,{"$f":"'Schedule III (EBS)'!J24","v":0}]
["Sch III","Losses by Line",null,"Note 16dii - Personal Acc. Non Prop.",null,null,null,null,null,null,null,null,{"$f":"'Schedule III (EBS)'!K14","v":0}]
["Sch III","Losses by Line",null,"Note 17d - Personal Accident",null,null,null,null,null,null,null,null,{"$f":"'Schedule III (EBS)'!L13","v":0}]
["Sch IIIA","Losses by Zone",null,"Res. Zn 1 - US Casualty",null,null,null,null,null,null,null,null,{"$f":"'Schedule IIIA (EBS)'!E21","v":0}]
["Sch IIIA","Losses by Zone",null,"Res. Zn 2 - Credit Surety Non-Prop.",null,null,null,null,null,null,null,null,{"$f":"'Schedule IIIA (EBS)'!F18","v":0}]
["Sch IIIA","Losses by Zone",null,"Res. Zn 2 - Retro Property",null,null,null,null,null,null,null,null,{"$f":"'Schedule IIIA (EBS)'!F31","v":0}]
["Sch IIIA","Losses by Zone",null,"Res. Zn 3 - Int'l Casualty Non-Prop.",null,null,null,null,null,null,null,null,{"$f":"'Schedule IIIA (EBS)'!G30","v":0}]
["Sch IIIA","Losses by Zone",null,"Res. Zn 5 - Property Non-Proportion",null,null,null,null,null,null,null,null,{"$f":"'Schedule IIIA (EBS)'!I12","v":0}]
["Sch IIIA","Losses by Zone",null,"Res. Zn 5 - Credit Surety",null,null,null,null,null,null,null,null,{"$f":"'Schedule IIIA (EBS)'!I17","v":0}]
["Sch IIIA","Losses by Zone",null,"Res. Zn 6 - Retro Property",null,null,null,null,null,null,null,null,{"$f":"'Schedule IIIA (EBS)'!J31","v":0}]
["Sch IIIA","Losses by Zone",null,"Res. Zn 7 - Personal Accident",null,null,null,null,null,null,null,null,{"$f":"'Schedule IIIA (EBS)'!K13","v":0}]
["Sch IIIA","Losses by Zone",null,"Res. Zn 8 - Credit Surety Non-Prop.",null,null,null,null,null,null,null,null,{"$f":"'Schedule IIIA (EBS)'!L18","v":0}]
["Sch IIIA","Losses by Zone",null,"Res. Zn 9 - Aviation",null,null,null,null,null,null,null,null,{"$f":"'Schedule IIIA (EBS)'!M15","v":0}]
["Sch IIIA","Losses by Zone",null,"Res. Zn 9 - Int'l Casualty Non-Prop.",null,null,null,null,null,null,null,null,{"$f":"'Schedule IIIA (EBS)'!M30","v":0}]
["Sch IIIA","Losses by Zone",null,"Res. Zn 10 - US Specialty",null,null,null,null,null,null,null,null,{"$f":"'Schedule IIIA (EBS)'!N25","v":0}]
["Sch IIIA","Losses by Zone",null,"Res. Zn 11 - Credit Surety",null,null,null,null,null,null,null,null,{"$f":"'Schedule IIIA (EBS)'!O17","v":0}]
["Sch IIIA","Losses by Zone",null,"Res. Zn 12 - Retro Property",null,null,null,null,null,null,null,null,{"$f":"'Schedule IIIA (EBS)'!P31","v":0}]
["Sch IIIA","Losses by Zone",null,"Res. Zn 13 - US Casualty Non-Prop.",null,null,null,null,null,null,null,null,{"$f":"'Schedule IIIA (EBS)'!Q22","v":0}]
["Sch IIIA","Losses by Zone",null,"Res. Zn 14 - Aviation Non-Proportional",null,null,null,null,null,null,null,null,{"$f":"'Schedule IIIA (EBS)'!R16","v":0}]
["Sch IIIA","Losses by Zone",null,"Res. Zn 14 - Total",null,null,null,null,null,null,null,null,{"$f":"'Schedule IIIA (EBS)'!R34","v":0}]
["Sch IIIA","Losses by Zone",null,"Res. Zn 16 - Credit Surety Non-Prop.",null,null,null,null,null,null,null,null,{"$f":"'Schedule IIIA (EBS)'!T18","v":0}]
["Sch IIIA","Losses by Zone",null,"Res. Zn 16 - US Casualty",null,null,null,null,null,null,null,null,{"$f":"'Schedule IIIA (EBS)'!T21","v":0}]
["Sch IIIA","Losses by Zone",null,"Res. Zn 17 - Int'l Motor Non-Prop.",null,null,null,null,null,null,null,null,{"$f":"'Schedule IIIA (EBS)'!U28","v":0}]
["Sch IIIA","Losses by Zone",null,"Res. Zn 18 - Int'l Casualty Non-Prop.",null,null,null,null,null,null,null,null,{"$f":"'Schedule IIIA (EBS)'!V30","v":0}]
["Sch IIIA","Losses by Zone",null,"Res. Total - Personal Accident",null,null,null,null,null,null,null,null,{"$f":"'Schedule IIIA (EBS)'!X13","v":0}]
["Sch IV","Premium by Line",null,"Unrelated - Property Non-Proportion",{"$f":"'Schedule IV'!E13","v":0},null,{"$f":"'Schedule IV'!G13","v":0},null,{"$f":"'Schedule IVA (EBS)'!E13","v":0},null,{"$f":"'Schedule IVA (EBS)'!G13","v":0}]
["Sch IV","Premium by Line",null,"Related - Energy",{"$f":"'Schedule IV'!I20","v":0},null,{"$f":"'Schedule IV'!K20","v":0},null,{"$f":"'Schedule IVA (EBS)'!I20","v":0},null,{"$f":"'Schedule IVA (EBS)'!K20","v":0}]
["Sch IV","Premium by Line",null,"Related - US Specialty",{"$f":"'Schedule IV'!I26","v":0},null,{"$f":"'Schedule IV'!K26","v":0},null,{"$f":"'Schedule IVA (EBS)'!I26","v":0},null,{"$f":"'Schedule IVA (EBS)'!K26","v":0}]
["Sch IV","Premium by Line",null,"NPW - Int'l Casualty Non-Prop.",{"$f":"'Schedule IV'!Q31","v":0},null,{"$f":"'Schedule IV'!S31","v":0},null,{"$f":"'Schedule IVA (EBS)'!Q31","v":0},null,{"$f":"'Schedule IVA (EBS)'!S31","v":0}]
["Sch IVC","Premium by Zone",null,"NPW Zn 1 - Total",null,null,null,null,{"$f":"'Schedule IVC (EBS)'!E33","v":0}]
["Sch IVC","Premium by Zone",null,"NPW Zn 2 - Retro Property",null,null,null,null,{"$f":"'Schedule IVC (EBS)'!F30","v":0}]
["Sch IVC","Premium by Zone",null,"NPW Zn 3 - US Casualty",null,null,null,null,{"$f":"'Schedule IVC (EBS)'!G20","v":0}]
["Sch IVC","Premium by Zone",null,"NPW Zn 4 - Aviation Non-Proportional",null,null,null,null,{"$f":"'Schedule IVC (EBS)'!H15","v":0}]
["Sch IVC","Premium by Zone",null,"NPW Zn 4 - Int'l Casualty",null,null,null,null,{"$f":"'Schedule IVC (EBS)'!H28","v":0}]
["Sch IVC","Premium by Zone",null,"NPW Zn 5 - US Specialty Non-Prop.",null,null,null,null,{"$f":"'Schedule IVC (EBS)'!I25","v":0}]
["Sch IVC","Premium by Zone",null,"NPW Zn 7 - Personal Accident",null,null,null,null,{"$f":"'Schedule IVC (EBS)'!K12","v":0}]
["Sch IVC","Premium by Zone",null,"NPW Zn 7 - Total",null,null,null,null,{"$f":"'Schedule IVC (EBS)'!K33","v":0}]
["Sch IVC","Premium by Zone",null,"NPW Zn 8 - US Professional",null,null,null,null,{"$f":"'Schedule IVC (EBS)'!L22","v":0}]
["Sch IVC","Premium by Zone",null,"NPW Zn 9 - Credit Surety",null,null,null,null,{"$f":"'Schedule IVC (EBS)'!M16","v":0}]
["Sch IVC","Premium by Zone",null,"NPW Zn 9 - Health",null,null,null,null,{"$f":"'Schedule IVC (EBS)'!M32","v":0}]
["Sch IVC","Premium by Zone",null,"NPW Zn 10 - Int'l Casualty",null,null,null,null,{"$f":"'Schedule IVC (EBS)'!N28","v":0}]
["Sch IVC","Premium by Zone",null,"NPW Zn 12 - Personal Acc. Non Prop.",null,null,null,null,{"$f":"'Schedule IVC (EBS)'!P13","v":0}]
["Sch IVC","Premium by Zone",null,"NPW Zn 13 - Personal Accident",null,null,null,null,{"$f":"'Schedule IVC (EBS)'!Q12","v":0}]
["Sch IVC","Premium by Zone",null,"NPW Zn 13 - Energy Non-Proportional",null,null,null,null,{"$f":"'Schedule IVC (EBS)'!Q19","v":0}]
["Sch IVC","Premium by Zone",null,"NPW Zn 14 - US Specialty",null,null,null,null,{"$f":"'Schedule IVC (EBS)'!R24","v":0}]
["Sch IVC","Premium by Zone",null,"NPW Zn 15 - US Specialty Non-Prop.",null,null,null,null,{"$f":"'Schedule IVC (EBS)'!S25","v":0}]
["Sch IVC","Premium by Zone",null,"NPW Zn 15 - Health",null,null,null,null,{"$f":"'Schedule IVC (EBS)'!S32","v":0}]
["Sch IVC","Premium by Zone",null,"NPW Zn 17 - Property",null,null,null,null,{"$f":"'Schedule IVC (EBS)'!U10","v":0}]
["Sch IVC","Premium by Zone",null,"NPW Zn 18 - Credit Surety",null,null,null,null,{"$f":"'Schedule IVC (EBS)'!V16","v":0}]
["Sch IVD","Exposure by Line",null,"NPE - Est. Next 12 Month - Aviation Non-Proportional",null,null,null,null,{"$f":"'Schedule IVD (EBS)'!G15","v":0}]
["Sch IVD","Exposure by Line",null,"NPE - Est. Next 12 Month - Int'l Motor Non-Prop.",null,null,null,null,{"$f":"'Schedule IVD (EBS)'!G27","v":0}]
["Sch IVD","Exposure by Line",null,"NPE FP Existing - US Casualty Non-Prop.",null,null,null,null,{"$f":"'Schedule IVD (EBS)'!K21","v":0}]
["Sch IVD","Exposure by Line",null,"NPE FP Future - Aviation",null,null,null,null,{"$f":"'Schedule IVD (EBS)'!M14","v":0}]
["Sch IVD","Exposure by Line",null,"Gross Premium Exposure - Int'l Motor Non-Prop.",null,null,null,null,{"$f":"'Schedule IVD (EBS)'!Q27","v":0}]
["Sch IVE","Net Prem by Zone",null,"NPE Zn 1 - Energy",null,null,null,null,{"$f":"'Schedule IVE (EBS)'!E18","v":0}]
["Sch IVE","Net Prem by Zone",null,"NPE Zn 2 - Property Non-Proportion",null,null,null,null,{"$f":"'Schedule IVE (EBS)'!F11","v":0}]
["Sch IVE","Net Prem by Zone",null,"NPE Zn 2 - Retro Property",null,null,null,null,{"$f":"'Schedule IVE (EBS)'!F30","v":0}]
["Sch IVE","Net Prem by Zone",null,"NPE Zn 3 - US Casualty Non-Prop.",null,null,null,null,{"$f":"'Schedule IVE (EBS)'!G21","v":0}]
["Sch IVE","Net Prem by Zone",null,"NPE Zn 4 - Credit Surety Non-Prop.",null,null,null,null,{"$f":"'Schedule IVE (EBS)'!H17","v":0}]
["Sch IVE","Net Prem by Zone",null,"NPE Zn 5 - US Professional Non-Prop.",null,null,null,null,{"$f":"'Schedule IVE (EBS)'!I23","v":0}]
["Sch IVE","Net Prem by Zone",null,"NPE Zn 6 - Int'l Motor",null,null,null,null,{"$f":"'Schedule IVE (EBS)'!J26","v":0}]
["Sch IVE","Net Prem by Zone",null,"NPE Zn 6 - Total",null,null,null,null,{"$f":"'Schedule IVE (EBS)'!J33","v":0}]
["Sch IVE","Net Prem by Zone",null,"NPE Zn 8 - Personal Acc. Non Prop.",null,null,null,null,{"$f":"'Schedule IVE (EBS)'!L13","v":0}]
["Sch IVE","Net Prem by Zone",null,"NPE Zn 8 - Retro Property",null,null,null,null,{"$f":"'Schedule IVE (EBS)'!L30","v":0}]
["Sch IVE","Net Prem by Zone",null,"NPE Zn 9 - Retro Property",null,null,null,null,{"$f":"'Schedule IVE (EBS)'!M30","v":0}]
["Sch IVE","Net Prem by Zone",null,"NPE Zn 10 - Credit Surety Non-Prop.",null,null,null,null,{"$f":"'Schedule IVE (EBS)'!N17","v":0}]
["Sch IVE","Net Prem by Zone",null,"NPE Zn 11 - Aviation Non-Proportional",null,null,null,null,{"$f":"'Schedule IVE (EBS)'!O15","v":0}]
["Sch IVE","Net Prem by Zone",null,"NPE Zn 12 - US Professional",null,null,null,null,{"$f":"'Schedule IVE (EBS)'!P22","v":0}]
["Sch IVE","Net Prem by Zone",null,"NPE Zn 13 - US Casualty Non-Prop.",null,null,null,null,{"$f":"'Schedule IVE (EBS)'!Q21","v":0}]
["Sch IVE","Net Prem by Zone",null,"NPE Zn 14 - Property Catastrophe",null,null,null,null,{"$f":"'Schedule IVE (EBS)'!R9","v":0}]
["Sch IVE","Net Prem by Zone",null,"NPE Zn 14 - Structured / Finite R/I",null,null,null,null,{"$f":"'Schedule IVE (EBS)'!R31","v":0}]
["Sch IVE","Net Prem by Zone",null,"NPE Zn 15 - US Casualty Non-Prop.",null,null,null,null,{"$f":"'Schedule IVE (EBS)'!S21","v":0}]
["Sch IVE","Net Prem by Zone",null,"NPE Zn 16 - Total",null,null,null,null,{"$f":"'Schedule IVE (EBS)'!T33","v":0}]
["Sch IVE","Net Prem by Zone",null,"NPE Zn 17 - Retro Property",null,null,null,null,{"$f":"'Schedule IVE (EBS)'!U30","v":0}]
["Sch IVE","Net Prem by Zone",null,"NPE Zn 18 - Energy",null,null,null,null,{"$f":"'Schedule IVE (EBS)'!V18","v":0}]
["Sch IVF","Exposure of Risk",null,"1. # of Subsidiaries - 7.Denmark",null,null,null,null,{"$f":"'Schedule IVF'!D19","v":0}]
["Sch IVF","Exposure of Risk",null,"1. # of Subsidiaries - 18.Luxembourg",null,null,null,null,{"$f":"'Schedule IVF'!D30","v":0}]
["Sch IVF","Exposure of Risk",null,"2. GPW Cat - 1.Austria",null,null,null,null,{"$f":"'Schedule IVF'!E13","v":0}]
["Sch IVF","Exposure of Risk",null,"2. GPW Cat - 35.Japan",null,null,null,null,{"$f":"'Schedule IVF'!E48","v":0}]
["Sch IVF","Exposure of Risk",null,"3. GPW Other - 21.Poland",null,null,null,null,{"$f":"'Schedule IVF'!F33","v":0}]
["Sch IVF","Exposure of Risk",null,"3. GPW Other - 27.Sweden",null,null,null,null,{"$f":"'Schedule IVF'!F39","v":0}]
["Sch IVF","Exposure of Risk",null,"4. Ceded Cat - 19.Malta",null,null,null,null,{"$f":"'Schedule IVF'!G31","v":0}]
["Sch IVF","Exposure of Risk",null,"5. Ceded Other - 5.Cyprus",null,null,null,null,{"$f":"'Schedule IVF'!H17","v":0}]
["Sch IVF","Exposure of Risk",null,"5. Ceded Other - 17.Lithuania",null,null,null,null,{"$f":"'Schedule IVF'!H29","v":0}]
["Sch IVF","Exposure of Risk",null,"6. Losses Cat - 1.Austria",null,null,null,null,{"$f":"'Schedule IVF'!J13","v":0}]
["Sch IVF","Exposure of Risk",null,"6. Losses Cat - 33.Canada",null,null,null,null,{"$f":"'Schedule IVF'!J46","v":0}]
["Sch IVF","Exposure of Risk",null,"6. Losses Cat - 36.Hong Kong",null,null,null,null,{"$f":"'Schedule IVF'!J49","v":0}]
["Sch IVF","Exposure of Risk",null,"7. Losses Other - 31.Switzerland",null,null,null,null,{"$f":"'Schedule IVF'!K44","v":0}]
["Sch IVF","Exposure of Risk",null,"8. GB Reserves - 9.Finland",null,null,null,null,{"$f":"'Schedule IVF'!L21","v":0}]
["Sch IVF","Exposure of Risk",null,"8. GB Reserves - 30.United Kingdom",null,null,null,null,{"$f":"'Schedule IVF'!L43","v":0}]
["Sch V","Risk Mgnt",null,"Actual Attritional Loss - Relevant Yr.",null,null,null,null,{"$f":"'Schedule V'!H22","v":0}]
["Sch Va","Governance",null,"Director Position - 10",{"$f":"'Schedule V(a)'!D21","v":0}]
["Sch Va","Governance",null,"Director Residence - 9",{"$f":"'Schedule V(a)'!E20","v":0}]
["Sch Va","Governance",null,"Director Work Experience - 1",{"$f":"'Schedule V(a)'!F12","v":0}]
["Sch Va","Governance",null,"Director Status on Board - 6",{"$f":"'Schedule V(a)'!H17","v":"Select"}]
["Sch Va","Governance",null,"Director Status on Board - 16",{"$f":"'Schedule V(a)'!H27","v":"Select"}]
["Sch Va","Governance",null,"Executive Position - 2",{"$f":"'Schedule V(a)'!D38","v":0}]
["Sch Va","Governance",null,"Executive Residence - 11",{"$f":"'Schedule V(a)'!E47","v":0}]
["Sch Va","Governance",null,"Executive Work Experience - 17",{"$f":"'Schedule V(a)'!F53","v":0}]
["Sch Va","Governance",null,"Executive Employee Arrangement - 6",{"$f":"'Schedule V(a)'!H42","v":"Select"}]
["Sch Va","Governance",null,"Executive Responsibilities - 14",{"$f":"'Schedule V(a)'!I50","v":"Select"}]
["Sch Va","Governance",null,"Risk Mgmt. - Operation Location",{"$f":"IF('Schedule V(a)'!F73=\"\",\"Bermuda\",'Schedule V(a)'!F73)","v":0}]
["Sch Va","Governance",null,"Inv. Strategy - Provider Type",{"$f":"'Schedule V(a)'!I74","v":"Select"}]
["Sch Va","Governance",null,"Services Outsourced - Compliance",{"$f":"'Schedule V(a)'!F93","v":"Select Yes/No"}]
["Sch Va","Governance",null,"Services in BDA - Internal Audit",{"$f":"'Schedule V(a)'!G92","v":"Select Yes/No"}]
["Sch Va","Governance",null,"Insurer Asset - 5",null,null,null,null,{"$f":"'Schedule V(a)'!E134","v":0}]
["Sch Va","Governance",null,"Insurer Capital & Surplus - 1",null,null,null,null,{"$f":"'Schedule V(a)'!G130","v":0}]
["Sch Vc","Group Structure",null,"Issuer/Borrower Name - 11",{"$f":"'Schedule V(c)'!C25","v":0}]
["Sch Vc","Group Structure",null,"Issuer Jurisdiction - 2",{"$f":"'Schedule V(c)'!D16","v":0}]
["Sch Vc","Group Structure",null,"Investor/Lendor Name - 13",{"$f":"'Schedule V(c)'!E27","v":0}]
["Sch Vc","Group Structure",null,"Investor/Lendor Name - 14",{"$f":"'Schedule V(c)'!E28","v":0}]
["Sch Vc","Group Structure",null,"Investor Jurisdiction - 23",{"$f":"'Schedule V(c)'!F37","v":0}]
["Sch Vc","Group Structure",null,"Transaction Details - 23",{"$f":"'Schedule V(c)'!G37","v":0}]
["Sch Vc","Group Structure",null,"Exposure Value - 8",{"$f":"'Schedule V(c)'!J22","v":0}]
["Sch Vc","Group Structure",null,"Assuming Party Name - 5",{"$f":"'Schedule V(c)'!C52","v":0}]
["Sch Vc","Group Structure",null,"Assuming Party Jurisdiction - 1",{"$f":"'Schedule V(c)'!D48","v":0}]
["Sch Vc","Group Structure",null,"Assuming Party Rating - 4",{"$f":"'Schedule V(c)'!E51","v":0}]
["Sch Vc","Group Structure",null,"Ceding Party Name - 10",{"$f":"'Schedule V(c)'!F57","v":0}]
["Sch Vc","Group Structure",null,"Ceding Party Name - 14",{"$f":"'Schedule V(c)'!F61","v":0}]
["Sch Vc","Group Structure",null,"Ceding Party Jurisdiction - 18",{"$f":"'Schedule V(c)'!G65","v":0}]
["Sch Vc","Group Structure",null,"Ceding Party Rating - 20",{"$f":"'Schedule V(c)'!H67","v":0}]
["Sch Vc","Group Structure",null,"Gross Exposure Limit - 5",{"$f":"'Schedule V(c)'!I52","v":0}]
["Sch Vc","Group Structure",null,"Net Exposure Limit - 1",{"$f":"'Schedule V(c)'!J48","v":0}]
["Sch Vc","Group Structure",null,"Gross Premium Written - 14",{"$f":"'Schedule V(c)'!K61","v":0}]
["Sch Vc","Group Structure",null,"Net Premium Written - 7",{"$f":"'Schedule V(c)'!L54","v":0}]
["Sch Vc","Group Structure",null,"Q4 Proportion of Internal R/I",{"$f":"'Schedule V(c)'!L74","v":0}]
["Sch Vc","Group Structure",null,"Counterparty Name - 15",{"$f":"'Schedule V(c)'!C97","v":0}]
["Sch Vc","Group Structure",null,"Counterparty Name - 32",{"$f":"'Schedule V(c)'!C114","v":0}]
["Sch Vc","Group Structure",null,"Counterparty Location - 10",{"$f":"'Schedule V(c)'!G92","v":0}]
["Sch Vc","Group Structure",null,"Exposure Fair Value - 11",{"$f":"'Schedule V(c)'!H93","v":0}]
["Sch Vc","Group Structure",null,"Exposure Fair Value - 26",{"$f":"'Schedule V(c)'!H108","v":0}]
["Sch Vc","Group Structure",null,"Exposure Market Value - 8",{"$f":"'Schedule V(c)'!I90","v":0}]
["Sch Vc","Group Structure",null,"Exposure Market Value - 17",{"$f":"'Schedule V(c)'!I99","v":0}]
["Sch Vc","Group Structure",null,"Transaction Type - 5",{"$f":"'Schedule V(c)'!J87","v":0}]
["Sch Vc","Group Structure",null,"Transaction Type - 33",{"$f":"'Schedule V(c)'!J115","v":0}]
["Sch Ve","Scenario Tests",null,"R8 Scenario Severe Inflation - Liabilities",null,null,null,null,null,null,null,null,{"$f":"'Schedule V(e)'!G20","v":0}]
["Sch Ve","Scenario Tests",null,"Mortgage Loan - Shock 1 Rate",null,null,null,null,null,null,null,null,{"$f":"'Schedule V(e)'!D28","v":9.4700000000000006E-2}]
["Sch Ve","Scenario Tests",null,"Mortgage Loan - Claims - Related - R/I - Other",null,null,null,null,null,null,null,null,{"$f":"'Schedule V(e)'!H36","v":0}]
["Sch Ve","Scenario Tests",null,"UW1. Gross Loss ",null,null,null,null,null,null,null,null,{"$f":"Import!M6475","v":0}]
["Sch Ve","Scenario Tests",null,"IE1. Gross Loss ",null,null,null,null,null,null,null,null,{"$f":"Import!M6485","v":0}]
["Sch Ve","Scenario Tests",null,"M1. Net Loss - After Reinsurance",null,null,null,null,null,null,null,null,{"$f":"'Schedule V(e)'!F65","v":0}]
["Sch Ve","Scenario Tests",null,"IW2. Net Loss - Cat Mitigation Tech.",null,null,null,null,null,null,null,null,{"$f":"'Schedule V(e)'!G62","v":0}]
["Sch Ve","Scenario Tests",null,"A1. Return Period 2",null,null,null,null,null,null,null,null,{"$f":"'Schedule V(e)'!K64","v":0}]
["Sch Ve","Scenario Tests",null,"IE1. Catastrophe Model",null,null,null,null,null,null,null,null,{"$f":"'Schedule V(e)'!L63","v":0}]
["Sch Ve","Scenario Tests",null," Other - Net Loss 1 - Cat. Mitigation Tech.",null,null,null,null,null,null,null,null,{"$f":"'Schedule V(e)'!J83","v":0}]
["Sch Ve","Scenario Tests",null,"Latent Liab - Scen 1 - NPW - Product Liab - Pro - Emerging Mkts",null,null,null,null,null,null,null,null,{"$f":"'Schedule V(e)'!D104","v":0}]
["Sch Ve","Scenario Tests",null,"Latent Liab - Scen 1 - NPW - Empl. Liab/Workers Comp - Pro - China",null,null,null,null,null,null,null,null,{"$f":"'Schedule V(e)'!H102","v":0}]
["Sch Ve","Scenario Tests",null,"Latent Liab - Scen 1 - Prem. Growth - Empl. Liab/Workers Comp - Pro - US/Canada",null,null,null,null,null,null,null,null,{"$f":"'Schedule V(e)'!H109","v":0}]
["Sch Ve","Scenario Tests",null,"Latent Liab - Scen 1 - Yr Growth - Product Liab - Non Pro - Other Developed Mkts",null,null,null,null,null,null,null,null,{"$f":"'Schedule V(e)'!M112","v":0}]
["Sch Ve","Scenario Tests",null,"Latent Liab - Scen 1 - Yr Growth - Empl. Liab/Workers Comp - Pro - EEA & Switzerland",null,null,null,null,null,null,null,null,{"$f":"'Schedule V(e)'!P108","v":0}]
["Sch Ve","Scenario Tests",null,"Latent Liab - Scen 2 - US Enviro - Cur Yr - GAAP Reserves",null,null,null,null,null,null,null,null,{"$f":"'Schedule V(e)'!H136","v":0}]
["Sch Ve","Scenario Tests",null,"Latent Liab - Scen 2 - UK Asbestos - Cur Yr - loading for future medical advances",null,null,null,null,null,null,null,null,{"$f":"'Schedule V(e)'!E156","v":0}]
["Sch Ve","Scenario Tests",null," Terrorism Loss 1 - State",null,null,null,null,null,null,null,null,{"$f":"'Schedule V(e)'!D220","v":0}]
["Sch Ve","Scenario Tests",null," Terrorism Loss 4 - Location",null,null,null,null,null,null,null,null,{"$f":"'Schedule V(e)'!G226","v":0}]
["Sch Ve","Scenario Tests",null," Terrorism Loss 6 - Gross Loss",null,null,null,null,null,null,null,null,{"$f":"'Schedule V(e)'!I222","v":0}]
["Sch Ve","Scenario Tests",null," Terrorism Loss 9 - Location",null,null,null,null,null,null,null,null,{"$f":"'Schedule V(e)'!L226","v":0}]
["Sch Ve","Scenario Tests",null,"Cyber - 1. Cyber GPW Non-Proportional - R/I",{"$f":"'Schedule V(e)'!G268","v":0},null,{"$f":"'Schedule V(e)'!H268","v":0},null,null,null,null,null,{"$f":"'Schedule V(e)'!G247","v":0},null,{"$f":"'Schedule V(e)'!H247","v":0}]
["Sch Ve","Scenario Tests",null,"Cyber - 1. Gross Cyber Limit - Package",{"$f":"'Schedule V(e)'!J279","v":0},null,{"$f":"'Schedule V(e)'!K279","v":0},null,null,null,null,null,{"$f":"'Schedule V(e)'!J258","v":0},null,{"$f":"'Schedule V(e)'!K258","v":0}]
["Sch Ve","Scenario Tests",null,"Cyber - 1. Claims Paid - Related",{"$f":"'Schedule V(e)'!M274","v":0},null,{"$f":"'Schedule V(e)'!N274","v":0}]
["Sch Ve","Scenario Tests",null,"Cyber - 1. # of Policies Direct - Canada",{"$f":"'Schedule V(e)'!D302","v":0},null,null,null,null,null,null,null,{"$f":"'Schedule V(e)'!D288","v":0}]
["Sch Ve","Scenario Tests",null,"Cyber - 1. Cyber NPW-Direct - US",{"$f":"'Schedule V(e)'!F301","v":0},null,null,null,null,null,null,null,{"$f":"'Schedule V(e)'!F287","v":0}]
["Sch Ve","Scenario Tests",null,"Cyber - 1. Cyber NPW-R/I - Japan",{"$f":"'Schedule V(e)'!K305","v":0},null,null,null,null,null,null,null,{"$f":"'Schedule V(e)'!K291","v":0}]
["Sch Ve","Scenario Tests",null,"Cyber - 1. # of Policies Package - Australia & New Zealand",{"$f":"'Schedule V(e)'!N304","v":0},null,null,null,null,null,null,null,{"$f":"'Schedule V(e)'!N290","v":0}]
["Sch Ve","Scenario Tests",null,"Cyber - 1. Cyber NPW-Package - Japan",{"$f":"'Schedule V(e)'!P305","v":0},null,null,null,null,null,null,null,{"$f":"'Schedule V(e)'!P291","v":0}]
["Sch Ve","Scenario Tests",null,"Cyber - 2. Exclusion Clause - Property Non-Proportional",null,null,null,null,null,null,null,null,{"$f":"'Schedule V(e)'!F321","v":"Select"}]
["Sch Ve","Scenario Tests",null,"Cyber - 2. Exclusion Clause - International Casualty Non-Motor",null,null,null,null,null,null,null,null,{"$f":"'Schedule V(e)'!F338","v":"Select"}]
["Sch Ve","Scenario Tests",null,"Cyber - 2. Current Yr US Specialty Non-Proportional",null,null,null,null,null,null,null,null,{"$f":"'Schedule V(e)'!G335","v":0}]
["Sch Ve","Scenario Tests",null,"Cyber - 2. Prior Yr US Professional Non-Proportional",null,null,null,null,null,null,null,null,{"$f":"'Schedule V(e)'!H333","v":0}]
["Sch Ve","Scenario Tests",null,"Cyber - 2. Claims Made or Occurrence -  Structured/Finite reinsurance",null,null,null,null,null,null,null,null,{"$f":"'Schedule V(e)'!I341","v":"Select from Drop-down"}]
["Sch Ve","Scenario Tests",null,"Cyber - 3. 1. Cloud Outage - Gross Coverage - 5. GL / Failure to Supply",null,null,null,null,null,null,null,null,{"$f":"'Schedule V(e)'!E364","v":0}]
["Sch Ve","Scenario Tests",null,"Cyber - 3. 2. Ransomeware - Gross Coverage - 4. D&O",null,null,null,null,null,null,null,null,{"$f":"'Schedule V(e)'!G363","v":0}]
["Sch Ve","Scenario Tests",null,"Cyber - 3. Occurrence Return Limit",null,null,null,null,null,null,null,null,{"$f":"'Schedule V(e)'!D376","v":0}]
["Sch Ve","Scenario Tests",null,"B5) Compliance with Data Protection requirements",{"$f":"'Schedule V(e)'!L421","v":"Select Yes/No"}]
["Sch Ve","Scenario Tests",null,"B12) Staff complete cybersecurity training",{"$f":"'Schedule V(e)'!L429","v":"Select Yes/No"}]
["Sch Vg","GAAP - BSCR Rec",null,"Assets Fin. Stmts. - Prepaid Expenses",{"$f":"'Schedule V(g)'!D11","v":0}]
["Sch Vg","GAAP - BSCR Rec",null,"Assets Form 1SFS - Gross Premium Provision",{"$f":"'Schedule V(g)'!D32","v":0}]
["Sch Vg","GAAP - BSCR Rec",null,"Liab. Form 1SFS - Risk Margin",{"$f":"'Schedule V(g)'!E34","v":0}]
["Sch Vg","GAAP - BSCR Rec",null,"Liab. Form 1SFS - Other 2",{"$f":"'Schedule V(g)'!E46","v":0}]
["Sch Vg","GAAP - BSCR Rec",null,"C&S Form 1SFS - Gross Loss Provision",{"$f":"'Schedule V(g)'!G31","v":0}]
["Sch Vg","GAAP - BSCR Rec",null,"C&S Form 1SFS - Other 1",{"$f":"'Schedule V(g)'!G45","v":0}]
["Sch Vk","Deposit Details",null,"Name of Exposure - 16",{"$f":"'Schedule V(k)'!C23","v":0}]
["Sch Vk","Deposit Details",null,"Assets in Trust - 4",{"$f":"'Schedule V(k)'!F11","v":0}]
["Sch Vk","Deposit Details",null,"Assets in Trust - 18",{"$f":"'Schedule V(k)'!F25","v":0}]
["Sch Vk","Deposit Details",null,"Collateral - 15",{"$f":"'Schedule V(k)'!G22","v":0}]
["Sch Vk","Deposit Details",null,"GPW for the Period - 1",{"$f":"'Schedule V(k)'!H8","v":0}]
["Sch Vk","Deposit Details",null,"GPW for the Period - Total",{"$f":"'Schedule V(k)'!H58","v":0}]
["Sch Vk","Deposit Details",null,"Exposure - 5",{"$f":"'Schedule V(k)'!J12","v":0}]
["Sch Vk","Deposit Details",null,"Limit @ 99.0 TVAR - 3",{"$f":"'Schedule V(k)'!K10","v":0}]
["Sch Vk","Deposit Details",null,"Limit @ 99.0 TVAR - 14",{"$f":"'Schedule V(k)'!K21","v":0}]
["Sch Vk","Deposit Details",null,"Unlimited Exposure Details - 14",{"$f":"'Schedule V(k)'!L21","v":0}]
["Sch V(L)","Segregated Acc","(M)","Other Liabilities - Cell 1",{"$f":"'Schedule V(l)'!D23","v":0}]
["Sch V(L)","Segregated Acc","(X) ","Collateral required to be posted by Cell/Insurer - Cell 1",{"$f":"'Schedule V(l)'!D41","v":0}]
["Sch V(L)","Segregated Acc","(AO) ","Limited recourse  - Cell 1",{"$f":"'Schedule V(l)'!D70","v":"Select Yes/No"}]
["Sch V(L)","Segregated Acc","(N)","Statutory Capital - Cell 2",{"$f":"'Schedule V(l)'!E24","v":0}]
["Sch V(L)","Segregated Acc","(AC) ","currency used - Cell 2",{"$f":"'Schedule V(l)'!E51","v":"Select Currency"}]
["Sch V(L)","Segregated Acc","(AQ) ","i) GPW - Cell 2",{"$f":"'Schedule V(l)'!E75","v":0}]
["Sch V(L)","Segregated Acc","(AQ) ","v) Premiums Ceded - Cell 2",{"$f":"'Schedule V(l)'!E92","v":0}]
["Sch V(L)","Segregated Acc","(Q)","Net Premiums Written - Cell 3",{"$f":"'Schedule V(l)'!F31","v":0}]
["Sch V(L)","Segregated Acc","(AD) ","Cell to Cell Activity  - Cell 3",{"$f":"'Schedule V(l)'!F52","v":"Confirm Activity"}]
["Sch V(L)","Segregated Acc","(D)","Cash and Time Deposits - Cell 4",{"$f":"'Schedule V(l)'!G11","v":0}]
["Sch V(L)","Segregated Acc","(V) ","Capital Returned & Dividends Paid/Payable - Cell 4",{"$f":"'Schedule V(l)'!G37","v":0}]
["Sch V(L)","Segregated Acc","(AH) ","Details of Benefical Owners of Risk - Cell 4",{"$f":"'Schedule V(l)'!G61","v":"Confirm"}]
["Sch V(L)","Segregated Acc","(AQ) ","iii) GPW - Cell 4",{"$f":"'Schedule V(l)'!G83","v":0}]
["Sch V(L)","Segregated Acc","(V) ","Capital Returned & Dividends Paid/Payable - Cell 5",{"$f":"'Schedule V(l)'!H37","v":0}]
["Sch V(L)","Segregated Acc","(AA) ","Limit of Cell  Funding/ Collateral - Cell 5",{"$f":"'Schedule V(l)'!H45","v":"Confirm Funding / Collateral"}]
["Sch V(L)","Segregated Acc","(AQ) ","ii) NPW - Cell 5",{"$f":"'Schedule V(l)'!H81","v":0}]
["Sch V(L)","Segregated Acc","(Q)","Net Premiums Written - Cell 6",{"$f":"'Schedule V(l)'!I31","v":0}]
["Sch V(L)","Segregated Acc","(W) ","Is Collateral required - Cell 6",{"$f":"'Schedule V(l)'!I40","v":"Select Yes/No"}]
["Sch V(L)","Segregated Acc","(AQ) ","i) Statutory Line of Business - Cell 6",{"$f":"'Schedule V(l)'!I74","v":"Select Line of Business"}]
["Sch V(L)","Segregated Acc","(J)","Other Assets - Cell 7",{"$f":"'Schedule V(l)'!J17","v":0}]
["Sch V(L)","Segregated Acc","(R)","Total Income (Insurance and Other) - Cell 7",{"$f":"'Schedule V(l)'!J32","v":0}]
["Sch V(L)","Segregated Acc","(AJ) ","Benefical Owners - Cell 7",{"$f":"'Schedule V(l)'!J63","v":"Confirm"}]
["Sch V(L)","Segregated Acc","(H)","Investments in and Advances to Affiliates - Cell 8",{"$f":"'Schedule V(l)'!K15","v":0}]
["Sch V(L)","Segregated Acc","(AA.1) ","Aggregate Limit Amount - Cell 8",{"$f":"'Schedule V(l)'!K46","v":0}]
["Sch V(L)","Segregated Acc","(AM) ","Benefical Ownership Gov Intrument - Cell 8",{"$f":"'Schedule V(l)'!K67","v":"Confirm Instrument"}]
["Sch V(L)","Segregated Acc","(AQ) ","iv) GPW - Cell 8",{"$f":"'Schedule V(l)'!K87","v":0}]
["Sch V(L)","Segregated Acc","(I)","Funds Held by Ceding Reinsurers - Cell 9",{"$f":"'Schedule V(l)'!L16","v":0}]
["Sch V(L)","Segregated Acc","(AA.2) ","Limit of Cell  Funding/ Collateral Details - Cell 9",{"$f":"'Schedule V(l)'!L47","v":0}]
["Sch V(L)","Segregated Acc","(AQ) ","v) Premiums Ceded - Cell 9",{"$f":"'Schedule V(l)'!L92","v":0}]
["Sch V(L)","Segregated Acc","(P)","Gross Premiums Written - Cell 10",{"$f":"'Schedule V(l)'!M30","v":0}]
["Sch V(L)","Segregated Acc","(AF) ","Cell Deficit - Cell 10",{"$f":"'Schedule V(l)'!M56","v":0}]
["Sch V(L)","Segregated Acc","(AQ) ","i) NPW - Cell 10",{"$f":"'Schedule V(l)'!M77","v":0}]
["Sch V(L)","Segregated Acc","(AQ) ","v) GPW - Cell 10",{"$f":"'Schedule V(l)'!M91","v":0}]
["Sch V(L)","Segregated Acc","(U) ","Other Expenses - Cell 11",{"$f":"'Schedule V(l)'!N35","v":0}]
["Sch V(L)","Segregated Acc","(AQ) ","i) Statutory Line of Business - Cell 11",{"$f":"'Schedule V(l)'!N74","v":"Select Line of Business"}]
["Sch V(L)","Segregated Acc","(K)","Unearned Premiums - Cell 12",{"$f":"'Schedule V(l)'!O21","v":0}]
["Sch V(L)","Segregated Acc","(P)","Gross Premiums Written - Cell 12",{"$f":"'Schedule V(l)'!O30","v":0}]
["Sch V(L)","Segregated Acc","(AO) ","Limited recourse  - Cell 12",{"$f":"'Schedule V(l)'!O70","v":"Select Yes/No"}]
["Sch V(L)","Segregated Acc","(C)","Direct Insurer, Reinsurer or Both - Cell 13",{"$f":"'Schedule V(l)'!P8","v":"Select Premiums Written"}]
["Sch V(L)","Segregated Acc","(L)","Net Loss & Loss Expense Provisions - Cell 13",{"$f":"'Schedule V(l)'!P22","v":0}]
["Sch V(L)","Segregated Acc","(AG.1) ","Additional Capital Support Details - Cell 13",{"$f":"'Schedule V(l)'!P58","v":0}]
["Sch V(L)","Segregated Acc","(B)","Cell name - Cell 14",{"$f":"'Schedule V(l)'!Q7","v":0}]
["Sch V(L)","Segregated Acc","(U) ","Other Expenses - Cell 14",{"$f":"'Schedule V(l)'!Q35","v":0}]
["Sch V(L)","Segregated Acc","(AH) ","Details of Benefical Owners of Risk - Cell 14",{"$f":"'Schedule V(l)'!Q61","v":"Confirm"}]
["Sch V(L)","Segregated Acc","(AQ) ","ii) Premiums Ceded - Cell 14",{"$f":"'Schedule V(l)'!Q80","v":0}]
["Sch V(L)","Segregated Acc","(G)","Unquoted: Bonds, and Debentures - Cell 15",{"$f":"'Schedule V(l)'!R14","v":0}]
["Sch V(L)","Segregated Acc","(V) ","Capital Returned & Dividends Paid/Payable - Cell 15",{"$f":"'Schedule V(l)'!R37","v":0}]
["Sch V(L)","Segregated Acc","(AQ) ","iv) Statutory Line of Business - Cell 15",{"$f":"'Schedule V(l)'!R86","v":"Select Line of Business"}]
["Sch V(L)","Segregated Acc","(I)","Funds Held by Ceding Reinsurers - Cell 16",{"$f":"'Schedule V(l)'!S16","v":0}]
["Sch V(L)","Segregated Acc","(AB) ","Cell  in Run-Off - Cell 16",{"$f":"'Schedule V(l)'!S50","v":"Select Yes/No"}]
["Sch V(L)","Segregated Acc","(AL) ","Jurisdiction - Cell 16",{"$f":"'Schedule V(l)'!S66","v":"Confirm Jurisdiction"}]
["Sch V(L)","Segregated Acc","(AQ) ","v) GPW - Cell 16",{"$f":"'Schedule V(l)'!S91","v":0}]
["Sch V(L)","Segregated Acc","(AA) ","Limit of Cell Funding/ Collateral - Cell 17",{"$f":"'Schedule V(l)'!T45","v":"Confirm Funding / Collateral"}]
["Sch V(L)","Segregated Acc","(AE.1) ","General Cell to Cell Activity Details - Cell 17",{"$f":"'Schedule V(l)'!T55","v":0}]
["Sch V(L)","Segregated Acc","(AQ) ","iv) Statutory Line of Business - Cell 17",{"$f":"'Schedule V(l)'!T86","v":"Select Line of Business"}]
["Sch V(L)","Segregated Acc","(U) ","Other Expenses - Cell 18",{"$f":"'Schedule V(l)'!U35","v":0}]
["Sch V(L)","Segregated Acc","(AK) ","Benefical Ownership - Cell 18",{"$f":"'Schedule V(l)'!U64","v":"Confirm"}]
["Sch V(L)","Segregated Acc","(AQ) ","iv) NPW - Cell 18",{"$f":"'Schedule V(l)'!U89","v":0}]
["Sch V(L)","Segregated Acc","(J)","Other Assets - Cell 19",{"$f":"'Schedule V(l)'!V17","v":0}]
["Sch V(L)","Segregated Acc","(AC) ","currency used - Cell 19",{"$f":"'Schedule V(l)'!V51","v":"Select Currency"}]
["Sch V(L)","Segregated Acc","(AQ) ","iv) NPW - Cell 19",{"$f":"'Schedule V(l)'!V89","v":0}]
["Sch V(L)","Segregated Acc","(R)","Total Income (Insurance and Other) - Cell 20",{"$f":"'Schedule V(l)'!W32","v":0}]
["Sch V(L)","Segregated Acc","(AD.1) ","Cell to Cell Activity Details - Cell 20",{"$f":"'Schedule V(l)'!W53","v":0}]
["Sch V(L)","Segregated Acc","(AP) ","Operational Risk Mitigants - Cell 20",{"$f":"'Schedule V(l)'!W71","v":"Confirm Mitigants & Attach Support"}]
["Sch V(L)","Segregated Acc","(A)","Cell Ref # - Cell 21",{"$f":"'Schedule V(l)'!X6","v":0}]
["Sch V(L)","Segregated Acc","(AF) ","Cell Deficit - Cell 21",{"$f":"'Schedule V(l)'!X56","v":0}]
["Sch V(L)","Segregated Acc","(AG.1) ","Additional Capital Support Details - Cell 21",{"$f":"'Schedule V(l)'!X58","v":0}]
["Sch V(L)","Segregated Acc","(B)","Cell name - Cell 22",{"$f":"'Schedule V(l)'!Y7","v":0}]
["Sch V(L)","Segregated Acc","(X) ","Collateral required to be posted by Cell/Insurer - Cell 22",{"$f":"'Schedule V(l)'!Y41","v":0}]
["Sch V(L)","Segregated Acc","(AG) ","Additional Capital Support - Cell 22",{"$f":"'Schedule V(l)'!Y57","v":"Confirm"}]
["Sch V(L)","Segregated Acc","(AQ) ","iii) NPW - Cell 22",{"$f":"'Schedule V(l)'!Y85","v":0}]
["Sch V(L)","Segregated Acc","(X) ","Collateral required to be posted by Cell/Insurer - Cell 23",{"$f":"'Schedule V(l)'!Z41","v":0}]
["Sch V(L)","Segregated Acc","(AA.2) ","Limit of Cell 2 Funding/ Collateral Details - Cell 23",{"$f":"'Schedule V(l)'!Z47","v":0}]
["Sch V(L)","Segregated Acc","(AQ) ","ii) GPW - Cell 23",{"$f":"'Schedule V(l)'!Z79","v":0}]
["Sch V(L)","Segregated Acc","(S) ","Net loss and Loss Expenses Incurred - Cell 24",{"$f":"'Schedule V(l)'!AA33","v":0}]
["Sch V(L)","Segregated Acc","(AK) ","Benefical Ownership - Cell 24",{"$f":"'Schedule V(l)'!AA64","v":"Confirm"}]
["Sch V(L)","Segregated Acc","(AQ) ","i) Premiums Ceded - Cell 24",{"$f":"'Schedule V(l)'!AA76","v":0}]
["Sch V(L)","Segregated Acc","(H)","Investments in and Advances to Affiliates - Cell 25",{"$f":"'Schedule V(l)'!AB15","v":0}]
["Sch V(L)","Segregated Acc","(T) ","Commissions and Brokerage - Cell 25",{"$f":"'Schedule V(l)'!AB34","v":0}]
["Sch V(L)","Segregated Acc","(AK.1) ","Benefical Ownership Add. Details - Cell 25",{"$f":"'Schedule V(l)'!AB65","v":0}]
["Sch V(L)","Segregated Acc",null,"i) NPW - Gen Acc.",{"$f":"'Schedule V(l)'!BE77","v":0}]
["Sch V(L)","Segregated Acc",null,"v) NPW - Gen Acc.",{"$f":"'Schedule V(l)'!BE93","v":0}]
["Sch V(m)","Alternative Capital",null,"Name of Cedant - 13",{"$f":"'Schedule V(m)'!B23","v":0}]
["Sch V(m)","Alternative Capital",null,"Contract Reference - 5",{"$f":"'Schedule V(m)'!C15","v":0}]
["Sch V(m)","Alternative Capital",null,"Contract Reference - 22",{"$f":"'Schedule V(m)'!C32","v":0}]
["Sch V(m)","Alternative Capital",null,"Statutory Line of Business - 14",{"$f":"'Schedule V(m)'!E24","v":"Select from Drop Down"}]
["Sch V(m)","Alternative Capital",null,"Statutory Line of Business - 24",{"$f":"'Schedule V(m)'!E34","v":"Select from Drop Down"}]
["Sch V(m)","Alternative Capital",null,"Agg. Max. Limit at Inception - 1",{"$f":"'Schedule V(m)'!G11","v":0}]
["Sch V(m)","Alternative Capital",null,"Agg. Max. Limit at Inception - 9",{"$f":"'Schedule V(m)'!G19","v":0}]
["Sch V(m)","Alternative Capital",null,"Net Agg. Max. Limit at End of Year - 8",{"$f":"'Schedule V(m)'!H18","v":0}]
["Sch V(m)","Alternative Capital",null,"Inception Date of Cover Period - 13",{"$f":"'Schedule V(m)'!I23","v":""}]
["Sch V(m)","Alternative Capital",null,"Effective Date of Contract - 16",{"$f":"'Schedule V(m)'!J26","v":""}]
["Sch V(m)","Alternative Capital",null,"Effective Date of Contract - 23",{"$f":"'Schedule V(m)'!J33","v":""}]
["Sch V(m)","Alternative Capital",null,"Cover Period GPW - 3",{"$f":"'Schedule V(m)'!L13","v":0}]
["Sch V(m)","Alternative Capital",null,"Cover Period GPW - 25",{"$f":"'Schedule V(m)'!L35","v":0}]
["Sch V(m)","Alternative Capital",null,"Cover Period NPW - 14",{"$f":"'Schedule V(m)'!M24","v":0}]
["Sch V(m)","Alternative Capital",null,"Attachment Point - 8",{"$f":"'Schedule V(m)'!N18","v":0}]
["Sch V(m)","Alternative Capital",null,"Aggregate Losses Beg. Of Year - 17",{"$f":"'Schedule V(m)'!O27","v":0}]
["Sch V(m)","Alternative Capital",null,"Aggregate Losses Incurred - 12",{"$f":"'Schedule V(m)'!P22","v":0}]
["Sch V(m)","Alternative Capital",null,"Aggregate Losses End Of Year - 2",{"$f":"'Schedule V(m)'!Q12","v":0}]
["Sch V(m)","Alternative Capital",null,"Aggregate Losses End Of Year - 21",{"$f":"'Schedule V(m)'!Q31","v":0}]
["Sch V(m)","Alternative Capital",null,"Collateral Reserve Buffer - 13",{"$f":"'Schedule V(m)'!R23","v":0}]
["Sch V(m)","Alternative Capital",null,"Collateral Reserve Buffer - Total",{"$f":"'Schedule V(m)'!R1512","v":0}]
["Sch V(m)","Alternative Capital",null,"Currency of Exposure - 24",{"$f":"'Schedule V(m)'!S34","v":"Select from Drop Down"}]
["Sch V(m)","Alternative Capital",null,"Collateral Rating - 6",{"$f":"'Schedule V(m)'!U16","v":"Select from Drop Down"}]
["Sch V(m)","Alternative Capital",null,"Amount of Collateral - 8",{"$f":"'Schedule V(m)'!V18","v":0}]
["Sch V(m)","Alternative Capital",null,"Amount of Collateral - 16",{"$f":"'Schedule V(m)'!V26","v":0}]
["Sch V(m)","Alternative Capital",null,"Comments - 15",{"$f":"'Schedule V(m)'!W25","v":0}]
["Sch VI","Schedule of Assets",null,"(A) Cash - Asset Type 18",{"$f":"'Schedule VI'!B28","v":"Select"},null,null,null,null,null,null,null,{"$f":"'Schedule VI (EBS)'!B28","v":"Select"}]
["Sch VI","Schedule of Assets",null,"(A) Cash - Asset Type 24",{"$f":"'Schedule VI'!B34","v":"Select"},null,null,null,null,null,null,null,{"$f":"'Schedule VI (EBS)'!B34","v":"Select"}]
["Sch VI","Schedule of Assets",null,"(A) Cash - Asset Type 63",{"$f":"'Schedule VI'!B73","v":"Select"},null,null,null,null,null,null,null,{"$f":"'Schedule VI (EBS)'!B73","v":"Select"}]
["Sch VI","Schedule of Assets",null,"(A) Cash - Asset Type 69",{"$f":"'Schedule VI'!B79","v":"Select"},null,null,null,null,null,null,null,{"$f":"'Schedule VI (EBS)'!B79","v":"Select"}]
["Sch VI","Schedule of Assets",null,"(A) Cash - Asset Type 100",{"$f":"'Schedule VI'!B110","v":"Select"},null,null,null,null,null,null,null,{"$f":"'Schedule VI (EBS)'!B110","v":"Select"}]
["Sch VI","Schedule of Assets",null,"(A) Cash - Asset Type 125",{"$f":"'Schedule VI'!B135","v":"Select"},null,null,null,null,null,null,null,{"$f":"'Schedule VI (EBS)'!B135","v":"Select"}]
["Sch VI","Schedule of Assets",null,"(A) Cash - Asset Type 137",{"$f":"'Schedule VI'!B147","v":"Select"},null,null,null,null,null,null,null,{"$f":"'Schedule VI (EBS)'!B147","v":"Select"}]
["Sch VI","Schedule of Assets",null,"(A) Cash - Asset Type 156",{"$f":"'Schedule VI'!B166","v":"Select"},null,null,null,null,null,null,null,{"$f":"'Schedule VI (EBS)'!B166","v":"Select"}]
["Sch VI","Schedule of Assets",null,"(A) Cash - Asset Type 174",{"$f":"'Schedule VI'!B184","v":"Select"},null,null,null,null,null,null,null,{"$f":"'Schedule VI (EBS)'!B184","v":"Select"}]
["Sch VI","Schedule of Assets",null,"(A) Cash - Currency 12",{"$f":"'Schedule VI'!C22","v":"Select"},null,null,null,null,null,null,null,{"$f":"'Schedule VI (EBS)'!C22","v":"Select"}]
["Sch VI","Schedule of Assets",null,"(A) Cash - Currency 33",{"$f":"'Schedule VI'!C43","v":"Select"},null,null,null,null,null,null,null,{"$f":"'Schedule VI (EBS)'!C43","v":"Select"}]
["Sch VI","Schedule of Assets",null,"(A) Cash - Currency 47",{"$f":"'Schedule VI'!C57","v":"Select"},null,null,null,null,null,null,null,{"$f":"'Schedule VI (EBS)'!C57","v":"Select"}]
["Sch VI","Schedule of Assets",null,"(A) Cash - Currency 66",{"$f":"'Schedule VI'!C76","v":"Select"},null,null,null,null,null,null,null,{"$f":"'Schedule VI (EBS)'!C76","v":"Select"}]
["Sch VI","Schedule of Assets",null,"(A) Cash - Currency 82",{"$f":"'Schedule VI'!C92","v":"Select"},null,null,null,null,null,null,null,{"$f":"'Schedule VI (EBS)'!C92","v":"Select"}]
["Sch VI","Schedule of Assets",null,"(A) Cash - Currency 103",{"$f":"'Schedule VI'!C113","v":"Select"},null,null,null,null,null,null,null,{"$f":"'Schedule VI (EBS)'!C113","v":"Select"}]
["Sch VI","Schedule of Assets",null,"(A) Cash - Currency 134",{"$f":"'Schedule VI'!C144","v":"Select"},null,null,null,null,null,null,null,{"$f":"'Schedule VI (EBS)'!C144","v":"Select"}]
["Sch VI","Schedule of Assets",null,"(A) Cash - Currency 162",{"$f":"'Schedule VI'!C172","v":"Select"},null,null,null,null,null,null,null,{"$f":"'Schedule VI (EBS)'!C172","v":"Select"}]
["Sch VI","Schedule of Assets",null,"(A) Cash - Currency 169",{"$f":"'Schedule VI'!C179","v":"Select"},null,null,null,null,null,null,null,{"$f":"'Schedule VI (EBS)'!C179","v":"Select"}]
["Sch VI","Schedule of Assets",null,"(A) Cash - Currency 199",{"$f":"'Schedule VI'!C209","v":"Select"},null,null,null,null,null,null,null,{"$f":"'Schedule VI (EBS)'!C209","v":"Select"}]
["Sch VI","Schedule of Assets",null,"(A) Cash - Rating 25",{"$f":"'Schedule VI'!D35","v":"Select"},null,null,null,null,null,null,null,{"$f":"'Schedule VI (EBS)'!D35","v":"Select"}]
["Sch VI","Schedule of Assets",null,"(A) Cash - Rating 32",{"$f":"'Schedule VI'!D42","v":"Select"},null,null,null,null,null,null,null,{"$f":"'Schedule VI (EBS)'!D42","v":"Select"}]
["Sch VI","Schedule of Assets",null,"(A) Cash - Rating 60",{"$f":"'Schedule VI'!D70","v":"Select"},null,null,null,null,null,null,null,{"$f":"'Schedule VI (EBS)'!D70","v":"Select"}]
["Sch VI","Schedule of Assets",null,"(A) Cash - Rating 91",{"$f":"'Schedule VI'!D101","v":"Select"},null,null,null,null,null,null,null,{"$f":"'Schedule VI (EBS)'!D101","v":"Select"}]
["Sch VI","Schedule of Assets",null,"(A) Cash - Rating 112",{"$f":"'Schedule VI'!D122","v":"Select"},null,null,null,null,null,null,null,{"$f":"'Schedule VI (EBS)'!D122","v":"Select"}]
["Sch VI","Schedule of Assets",null,"(A) Cash - Rating 128",{"$f":"'Schedule VI'!D138","v":"Select"},null,null,null,null,null,null,null,{"$f":"'Schedule VI (EBS)'!D138","v":"Select"}]
["Sch VI","Schedule of Assets",null,"(A) Cash - Rating 147",{"$f":"'Schedule VI'!D157","v":"Select"},null,null,null,null,null,null,null,{"$f":"'Schedule VI (EBS)'!D157","v":"Select"}]
["Sch VI","Schedule of Assets",null,"(A) Cash - Rating 165",{"$f":"'Schedule VI'!D175","v":"Select"},null,null,null,null,null,null,null,{"$f":"'Schedule VI (EBS)'!D175","v":"Select"}]
["Sch VI","Schedule of Assets",null,"(A) Cash - Rating 182",{"$f":"'Schedule VI'!D192","v":"Select"},null,null,null,null,null,null,null,{"$f":"'Schedule VI (EBS)'!D192","v":"Select"}]
["Sch VI","Schedule of Assets",null,"(A) Cash - Nominal 19",{"$f":"'Schedule VI'!E29","v":0},null,null,null,null,null,null,null,{"$f":"'Schedule VI (EBS)'!E29","v":0}]
["Sch VI","Schedule of Assets",null,"(A) Cash - Nominal 41",{"$f":"'Schedule VI'!E51","v":0},null,null,null,null,null,null,null,{"$f":"'Schedule VI (EBS)'!E51","v":0}]
["Sch VI","Schedule of Assets",null,"(A) Cash - Nominal 54",{"$f":"'Schedule VI'!E64","v":0},null,null,null,null,null,null,null,{"$f":"'Schedule VI (EBS)'!E64","v":0}]
["Sch VI","Schedule of Assets",null,"(A) Cash - Nominal 78",{"$f":"'Schedule VI'!E88","v":0},null,null,null,null,null,null,null,{"$f":"'Schedule VI (EBS)'!E88","v":0}]
["Sch VI","Schedule of Assets",null,"(A) Cash - Nominal 89",{"$f":"'Schedule VI'!E99","v":0},null,null,null,null,null,null,null,{"$f":"'Schedule VI (EBS)'!E99","v":0}]
["Sch VI","Schedule of Assets",null,"(A) Cash - Nominal 111",{"$f":"'Schedule VI'!E121","v":0},null,null,null,null,null,null,null,{"$f":"'Schedule VI (EBS)'!E121","v":0}]
["Sch VI","Schedule of Assets",null,"(A) Cash - Nominal 145",{"$f":"'Schedule VI'!E155","v":0},null,null,null,null,null,null,null,{"$f":"'Schedule VI (EBS)'!E155","v":0}]
["Sch VI","Schedule of Assets",null,"(A) Cash - Nominal 170",{"$f":"'Schedule VI'!E180","v":0},null,null,null,null,null,null,null,{"$f":"'Schedule VI (EBS)'!E180","v":0}]
["Sch VI","Schedule of Assets",null,"(A) Cash - Nominal 176",{"$f":"'Schedule VI'!E186","v":0},null,null,null,null,null,null,null,{"$f":"'Schedule VI (EBS)'!E186","v":0}]
["Sch VI","Schedule of Assets",null,"(A) Cash - Fair Value 7",{"$f":"'Schedule VI'!F17","v":0},null,null,null,null,null,null,null,{"$f":"'Schedule VI (EBS)'!F17","v":0}]
["Sch VI","Schedule of Assets",null,"(A) Cash - Fair Value 32",{"$f":"'Schedule VI'!F42","v":0},null,null,null,null,null,null,null,{"$f":"'Schedule VI (EBS)'!F42","v":0}]
["Sch VI","Schedule of Assets",null,"(A) Cash - Fair Value 44",{"$f":"'Schedule VI'!F54","v":0},null,null,null,null,null,null,null,{"$f":"'Schedule VI (EBS)'!F54","v":0}]
["Sch VI","Schedule of Assets",null,"(A) Cash - Fair Value 67",{"$f":"'Schedule VI'!F77","v":0},null,null,null,null,null,null,null,{"$f":"'Schedule VI (EBS)'!F77","v":0}]
["Sch VI","Schedule of Assets",null,"(A) Cash - Fair Value 99",{"$f":"'Schedule VI'!F109","v":0},null,null,null,null,null,null,null,{"$f":"'Schedule VI (EBS)'!F109","v":0}]
["Sch VI","Schedule of Assets",null,"(A) Cash - Fair Value 123",{"$f":"'Schedule VI'!F133","v":0},null,null,null,null,null,null,null,{"$f":"'Schedule VI (EBS)'!F133","v":0}]
["Sch VI","Schedule of Assets",null,"(A) Cash - Fair Value 136",{"$f":"'Schedule VI'!F146","v":0},null,null,null,null,null,null,null,{"$f":"'Schedule VI (EBS)'!F146","v":0}]
["Sch VI","Schedule of Assets",null,"(A) Cash - Fair Value 154",{"$f":"'Schedule VI'!F164","v":0},null,null,null,null,null,null,null,{"$f":"'Schedule VI (EBS)'!F164","v":0}]
["Sch VI","Schedule of Assets",null,"(A) Cash - Fair Value 173",{"$f":"'Schedule VI'!F183","v":0},null,null,null,null,null,null,null,{"$f":"'Schedule VI (EBS)'!F183","v":0}]
["Sch VI","Schedule of Assets",null,"(A) Cash - Comments 10",{"$f":"'Schedule VI'!G20","v":0},null,null,null,null,null,null,null,{"$f":"'Schedule VI (EBS)'!G20","v":0}]
["Sch VI","Schedule of Assets",null,"(A) Cash - Comments 32",{"$f":"'Schedule VI'!G42","v":0},null,null,null,null,null,null,null,{"$f":"'Schedule VI (EBS)'!G42","v":0}]
["Sch VI","Schedule of Assets",null,"(A) Cash - Comments 45",{"$f":"'Schedule VI'!G55","v":0},null,null,null,null,null,null,null,{"$f":"'Schedule VI (EBS)'!G55","v":0}]
["Sch VI","Schedule of Assets",null,"(A) Cash - Comments 65",{"$f":"'Schedule VI'!G75","v":0},null,null,null,null,null,null,null,{"$f":"'Schedule VI (EBS)'!G75","v":0}]
["Sch VI","Schedule of Assets",null,"(A) Cash - Comments 80",{"$f":"'Schedule VI'!G90","v":0},null,null,null,null,null,null,null,{"$f":"'Schedule VI (EBS)'!G90","v":0}]
["Sch VI","Schedule of Assets",null,"(A) Cash - Comments 102",{"$f":"'Schedule VI'!G112","v":0},null,null,null,null,null,null,null,{"$f":"'Schedule VI (EBS)'!G112","v":0}]
["Sch VI","Schedule of Assets",null,"(A) Cash - Comments 136",{"$f":"'Schedule VI'!G146","v":0},null,null,null,null,null,null,null,{"$f":"'Schedule VI (EBS)'!G146","v":0}]
["Sch VI","Schedule of Assets",null,"(A) Cash - Comments 161",{"$f":"'Schedule VI'!G171","v":0},null,null,null,null,null,null,null,{"$f":"'Schedule VI (EBS)'!G171","v":0}]
["Sch VI","Schedule of Assets",null,"(A) Cash - Comments 178",{"$f":"'Schedule VI'!G188","v":0},null,null,null,null,null,null,null,{"$f":"'Schedule VI (EBS)'!G188","v":0}]
["Sch VI","Schedule of Assets",null,"(A) Cash - Comments 187",{"$f":"'Schedule VI'!G197","v":0},null,null,null,null,null,null,null,{"$f":"'Schedule VI (EBS)'!G197","v":0}]
["Sch VI","Schedule of Assets",null,"(B) Bonds - Asset Type 14",{"$f":"'Schedule VI'!B232","v":"Select"},null,null,null,null,null,null,null,{"$f":"'Schedule VI (EBS)'!B232","v":"Select"}]
["Sch VI","Schedule of Assets",null,"(B) Bonds - Asset Type 38",{"$f":"'Schedule VI'!B256","v":"Select"},null,null,null,null,null,null,null,{"$f":"'Schedule VI (EBS)'!B256","v":"Select"}]
["Sch VI","Schedule of Assets",null,"(B) Bonds - Asset Type 51",{"$f":"'Schedule VI'!B269","v":"Select"},null,null,null,null,null,null,null,{"$f":"'Schedule VI (EBS)'!B269","v":"Select"}]
["Sch VI","Schedule of Assets",null,"(B) Bonds - Asset Type 73",{"$f":"'Schedule VI'!B291","v":"Select"},null,null,null,null,null,null,null,{"$f":"'Schedule VI (EBS)'!B291","v":"Select"}]
["Sch VI","Schedule of Assets",null,"(B) Bonds - Asset Type 110",{"$f":"'Schedule VI'!B328","v":"Select"},null,null,null,null,null,null,null,{"$f":"'Schedule VI (EBS)'!B328","v":"Select"}]
["Sch VI","Schedule of Assets",null,"(B) Bonds - Asset Type 129",{"$f":"'Schedule VI'!B347","v":"Select"},null,null,null,null,null,null,null,{"$f":"'Schedule VI (EBS)'!B347","v":"Select"}]
["Sch VI","Schedule of Assets",null,"(B) Bonds - Asset Type 143",{"$f":"'Schedule VI'!B361","v":"Select"},null,null,null,null,null,null,null,{"$f":"'Schedule VI (EBS)'!B361","v":"Select"}]
["Sch VI","Schedule of Assets",null,"(B) Bonds - Asset Type 164",{"$f":"'Schedule VI'!B382","v":"Select"},null,null,null,null,null,null,null,{"$f":"'Schedule VI (EBS)'!B382","v":"Select"}]
["Sch VI","Schedule of Assets",null,"(B) Bonds - Asset Type 180",{"$f":"'Schedule VI'!B398","v":"Select"},null,null,null,null,null,null,null,{"$f":"'Schedule VI (EBS)'!B398","v":"Select"}]
["Sch VI","Schedule of Assets",null,"(B) Bonds - Asset Type 199",{"$f":"'Schedule VI'!B417","v":"Select"},null,null,null,null,null,null,null,{"$f":"'Schedule VI (EBS)'!B417","v":"Select"}]
["Sch VI","Schedule of Assets",null,"(B) Bonds - Asset Type 239",{"$f":"'Schedule VI'!B457","v":"Select"},null,null,null,null,null,null,null,{"$f":"'Schedule VI (EBS)'!B457","v":"Select"}]
["Sch VI","Schedule of Assets",null,"(B) Bonds - Asset Type 251",{"$f":"'Schedule VI'!B469","v":"Select"},null,null,null,null,null,null,null,{"$f":"'Schedule VI (EBS)'!B469","v":"Select"}]
["Sch VI","Schedule of Assets",null,"(B) Bonds - Asset Type 276",{"$f":"'Schedule VI'!B494","v":"Select"},null,null,null,null,null,null,null,{"$f":"'Schedule VI (EBS)'!B494","v":"Select"}]
["Sch VI","Schedule of Assets",null,"(B) Bonds - Asset Type 286",{"$f":"'Schedule VI'!B504","v":"Select"},null,null,null,null,null,null,null,{"$f":"'Schedule VI (EBS)'!B504","v":"Select"}]
["Sch VI","Schedule of Assets",null,"(B) Bonds - Asset Type 309",{"$f":"'Schedule VI'!B527","v":"Select"},null,null,null,null,null,null,null,{"$f":"'Schedule VI (EBS)'!B527","v":"Select"}]
["Sch VI","Schedule of Assets",null,"(B) Bonds - Asset Type 342",{"$f":"'Schedule VI'!B560","v":"Select"},null,null,null,null,null,null,null,{"$f":"'Schedule VI (EBS)'!B560","v":"Select"}]
["Sch VI","Schedule of Assets",null,"(B) Bonds - Asset Type 368",{"$f":"'Schedule VI'!B586","v":"Select"},null,null,null,null,null,null,null,{"$f":"'Schedule VI (EBS)'!B586","v":"Select"}]
["Sch VI","Schedule of Assets",null,"(B) Bonds - Asset Type 377",{"$f":"'Schedule VI'!B595","v":"Select"},null,null,null,null,null,null,null,{"$f":"'Schedule VI (EBS)'!B595","v":"Select"}]
["Sch VI","Schedule of Assets",null,"(B) Bonds - Currency 5",{"$f":"'Schedule VI'!C223","v":"Select"},null,null,null,null,null,null,null,{"$f":"'Schedule VI (EBS)'!C223","v":"Select"}]
["Sch VI","Schedule of Assets",null,"(B) Bonds - Currency 29",{"$f":"'Schedule VI'!C247","v":"Select"},null,null,null,null,null,null,null,{"$f":"'Schedule VI (EBS)'!C247","v":"Select"}]
["Sch VI","Schedule of Assets",null,"(B) Bonds - Currency 42",{"$f":"'Schedule VI'!C260","v":"Select"},null,null,null,null,null,null,null,{"$f":"'Schedule VI (EBS)'!C260","v":"Select"}]
["Sch VI","Schedule of Assets",null,"(B) Bonds - Currency 64",{"$f":"'Schedule VI'!C282","v":"Select"},null,null,null,null,null,null,null,{"$f":"'Schedule VI (EBS)'!C282","v":"Select"}]
["Sch VI","Schedule of Assets",null,"(B) Bonds - Currency 97",{"$f":"'Schedule VI'!C315","v":"Select"},null,null,null,null,null,null,null,{"$f":"'Schedule VI (EBS)'!C315","v":"Select"}]
["Sch VI","Schedule of Assets",null,"(B) Bonds - Currency 99",{"$f":"'Schedule VI'!C317","v":"Select"},null,null,null,null,null,null,null,{"$f":"'Schedule VI (EBS)'!C317","v":"Select"}]
["Sch VI","Schedule of Assets",null,"(B) Bonds - Currency 134",{"$f":"'Schedule VI'!C352","v":"Select"},null,null,null,null,null,null,null,{"$f":"'Schedule VI (EBS)'!C352","v":"Select"}]
["Sch VI","Schedule of Assets",null,"(B) Bonds - Currency 155",{"$f":"'Schedule VI'!C373","v":"Select"},null,null,null,null,null,null,null,{"$f":"'Schedule VI (EBS)'!C373","v":"Select"}]
["Sch VI","Schedule of Assets",null,"(B) Bonds - Currency 171",{"$f":"'Schedule VI'!C389","v":"Select"},null,null,null,null,null,null,null,{"$f":"'Schedule VI (EBS)'!C389","v":"Select"}]
["Sch VI","Schedule of Assets",null,"(B) Bonds - Currency 188",{"$f":"'Schedule VI'!C406","v":"Select"},null,null,null,null,null,null,null,{"$f":"'Schedule VI (EBS)'!C406","v":"Select"}]
["Sch VI","Schedule of Assets",null,"(B) Bonds - Currency 227",{"$f":"'Schedule VI'!C445","v":"Select"},null,null,null,null,null,null,null,{"$f":"'Schedule VI (EBS)'!C445","v":"Select"}]
["Sch VI","Schedule of Assets",null,"(B) Bonds - Currency 247",{"$f":"'Schedule VI'!C465","v":"Select"},null,null,null,null,null,null,null,{"$f":"'Schedule VI (EBS)'!C465","v":"Select"}]
["Sch VI","Schedule of Assets",null,"(B) Bonds - Currency 262",{"$f":"'Schedule VI'!C480","v":"Select"},null,null,null,null,null,null,null,{"$f":"'Schedule VI (EBS)'!C480","v":"Select"}]
["Sch VI","Schedule of Assets",null,"(B) Bonds - Currency 284",{"$f":"'Schedule VI'!C502","v":"Select"},null,null,null,null,null,null,null,{"$f":"'Schedule VI (EBS)'!C502","v":"Select"}]
["Sch VI","Schedule of Assets",null,"(B) Bonds - Currency 293",{"$f":"'Schedule VI'!C511","v":"Select"},null,null,null,null,null,null,null,{"$f":"'Schedule VI (EBS)'!C511","v":"Select"}]
["Sch VI","Schedule of Assets",null,"(B) Bonds - Currency 321",{"$f":"'Schedule VI'!C539","v":"Select"},null,null,null,null,null,null,null,{"$f":"'Schedule VI (EBS)'!C539","v":"Select"}]
["Sch VI","Schedule of Assets",null,"(B) Bonds - Currency 349",{"$f":"'Schedule VI'!C567","v":"Select"},null,null,null,null,null,null,null,{"$f":"'Schedule VI (EBS)'!C567","v":"Select"}]
["Sch VI","Schedule of Assets",null,"(B) Bonds - Currency 376",{"$f":"'Schedule VI'!C594","v":"Select"},null,null,null,null,null,null,null,{"$f":"'Schedule VI (EBS)'!C594","v":"Select"}]
["Sch VI","Schedule of Assets",null,"(B) Bonds - Currency 384",{"$f":"'Schedule VI'!C602","v":"Select"},null,null,null,null,null,null,null,{"$f":"'Schedule VI (EBS)'!C602","v":"Select"}]
["Sch VI","Schedule of Assets",null,"(B) Bonds - Rating 13",{"$f":"'Schedule VI'!D231","v":"Select"},null,null,null,null,null,null,null,{"$f":"'Schedule VI (EBS)'!D231","v":"Select"}]
["Sch VI","Schedule of Assets",null,"(B) Bonds - Rating 40",{"$f":"'Schedule VI'!D258","v":"Select"},null,null,null,null,null,null,null,{"$f":"'Schedule VI (EBS)'!D258","v":"Select"}]
["Sch VI","Schedule of Assets",null,"(B) Bonds - Rating 50",{"$f":"'Schedule VI'!D268","v":"Select"},null,null,null,null,null,null,null,{"$f":"'Schedule VI (EBS)'!D268","v":"Select"}]
["Sch VI","Schedule of Assets",null,"(B) Bonds - Rating 71",{"$f":"'Schedule VI'!D289","v":"Select"},null,null,null,null,null,null,null,{"$f":"'Schedule VI (EBS)'!D289","v":"Select"}]
["Sch VI","Schedule of Assets",null,"(B) Bonds - Rating 87",{"$f":"'Schedule VI'!D305","v":"Select"},null,null,null,null,null,null,null,{"$f":"'Schedule VI (EBS)'!D305","v":"Select"}]
["Sch VI","Schedule of Assets",null,"(B) Bonds - Rating 127",{"$f":"'Schedule VI'!D345","v":"Select"},null,null,null,null,null,null,null,{"$f":"'Schedule VI (EBS)'!D345","v":"Select"}]
["Sch VI","Schedule of Assets",null,"(B) Bonds - Rating 142",{"$f":"'Schedule VI'!D360","v":"Select"},null,null,null,null,null,null,null,{"$f":"'Schedule VI (EBS)'!D360","v":"Select"}]
["Sch VI","Schedule of Assets",null,"(B) Bonds - Rating 162",{"$f":"'Schedule VI'!D380","v":"Select"},null,null,null,null,null,null,null,{"$f":"'Schedule VI (EBS)'!D380","v":"Select"}]
["Sch VI","Schedule of Assets",null,"(B) Bonds - Rating 179",{"$f":"'Schedule VI'!D397","v":"Select"},null,null,null,null,null,null,null,{"$f":"'Schedule VI (EBS)'!D397","v":"Select"}]
["Sch VI","Schedule of Assets",null,"(B) Bonds - Rating 197",{"$f":"'Schedule VI'!D415","v":"Select"},null,null,null,null,null,null,null,{"$f":"'Schedule VI (EBS)'!D415","v":"Select"}]
["Sch VI","Schedule of Assets",null,"(B) Bonds - Rating 216",{"$f":"'Schedule VI'!D434","v":"Select"},null,null,null,null,null,null,null,{"$f":"'Schedule VI (EBS)'!D434","v":"Select"}]
["Sch VI","Schedule of Assets",null,"(B) Bonds - Rating 249",{"$f":"'Schedule VI'!D467","v":"Select"},null,null,null,null,null,null,null,{"$f":"'Schedule VI (EBS)'!D467","v":"Select"}]
["Sch VI","Schedule of Assets",null,"(B) Bonds - Rating 275",{"$f":"'Schedule VI'!D493","v":"Select"},null,null,null,null,null,null,null,{"$f":"'Schedule VI (EBS)'!D493","v":"Select"}]
["Sch VI","Schedule of Assets",null,"(B) Bonds - Rating 292",{"$f":"'Schedule VI'!D510","v":"Select"},null,null,null,null,null,null,null,{"$f":"'Schedule VI (EBS)'!D510","v":"Select"}]
["Sch VI","Schedule of Assets",null,"(B) Bonds - Rating 304",{"$f":"'Schedule VI'!D522","v":"Select"},null,null,null,null,null,null,null,{"$f":"'Schedule VI (EBS)'!D522","v":"Select"}]
["Sch VI","Schedule of Assets",null,"(B) Bonds - Rating 329",{"$f":"'Schedule VI'!D547","v":"Select"},null,null,null,null,null,null,null,{"$f":"'Schedule VI (EBS)'!D547","v":"Select"}]
["Sch VI","Schedule of Assets",null,"(B) Bonds - Rating 356",{"$f":"'Schedule VI'!D574","v":"Select"},null,null,null,null,null,null,null,{"$f":"'Schedule VI (EBS)'!D574","v":"Select"}]
["Sch VI","Schedule of Assets",null,"(B) Bonds - Rating 366",{"$f":"'Schedule VI'!D584","v":"Select"},null,null,null,null,null,null,null,{"$f":"'Schedule VI (EBS)'!D584","v":"Select"}]
["Sch VI","Schedule of Assets",null,"(B) Bonds - Rating 391",{"$f":"'Schedule VI'!D609","v":"Select"},null,null,null,null,null,null,null,{"$f":"'Schedule VI (EBS)'!D609","v":"Select"}]
["Sch VI","Schedule of Assets",null,"(B) Bonds - Nominal 21",{"$f":"'Schedule VI'!E239","v":0},null,null,null,null,null,null,null,{"$f":"'Schedule VI (EBS)'!E239","v":0}]
["Sch VI","Schedule of Assets",null,"(B) Bonds - Nominal 47",{"$f":"'Schedule VI'!E265","v":0},null,null,null,null,null,null,null,{"$f":"'Schedule VI (EBS)'!E265","v":0}]
["Sch VI","Schedule of Assets",null,"(B) Bonds - Nominal 58",{"$f":"'Schedule VI'!E276","v":0},null,null,null,null,null,null,null,{"$f":"'Schedule VI (EBS)'!E276","v":0}]
["Sch VI","Schedule of Assets",null,"(B) Bonds - Nominal 82",{"$f":"'Schedule VI'!E300","v":0},null,null,null,null,null,null,null,{"$f":"'Schedule VI (EBS)'!E300","v":0}]
["Sch VI","Schedule of Assets",null,"(B) Bonds - Nominal 95",{"$f":"'Schedule VI'!E313","v":0},null,null,null,null,null,null,null,{"$f":"'Schedule VI (EBS)'!E313","v":0}]
["Sch VI","Schedule of Assets",null,"(B) Bonds - Nominal 134",{"$f":"'Schedule VI'!E352","v":0},null,null,null,null,null,null,null,{"$f":"'Schedule VI (EBS)'!E352","v":0}]
["Sch VI","Schedule of Assets",null,"(B) Bonds - Nominal 154",{"$f":"'Schedule VI'!E372","v":0},null,null,null,null,null,null,null,{"$f":"'Schedule VI (EBS)'!E372","v":0}]
["Sch VI","Schedule of Assets",null,"(B) Bonds - Nominal 169",{"$f":"'Schedule VI'!E387","v":0},null,null,null,null,null,null,null,{"$f":"'Schedule VI (EBS)'!E387","v":0}]
["Sch VI","Schedule of Assets",null,"(B) Bonds - Nominal 191",{"$f":"'Schedule VI'!E409","v":0},null,null,null,null,null,null,null,{"$f":"'Schedule VI (EBS)'!E409","v":0}]
["Sch VI","Schedule of Assets",null,"(B) Bonds - Nominal 204",{"$f":"'Schedule VI'!E422","v":0},null,null,null,null,null,null,null,{"$f":"'Schedule VI (EBS)'!E422","v":0}]
["Sch VI","Schedule of Assets",null,"(B) Bonds - Nominal 224",{"$f":"'Schedule VI'!E442","v":0},null,null,null,null,null,null,null,{"$f":"'Schedule VI (EBS)'!E442","v":0}]
["Sch VI","Schedule of Assets",null,"(B) Bonds - Nominal 260",{"$f":"'Schedule VI'!E478","v":0},null,null,null,null,null,null,null,{"$f":"'Schedule VI (EBS)'!E478","v":0}]
["Sch VI","Schedule of Assets",null,"(B) Bonds - Nominal 283",{"$f":"'Schedule VI'!E501","v":0},null,null,null,null,null,null,null,{"$f":"'Schedule VI (EBS)'!E501","v":0}]
["Sch VI","Schedule of Assets",null,"(B) Bonds - Nominal 291",{"$f":"'Schedule VI'!E509","v":0},null,null,null,null,null,null,null,{"$f":"'Schedule VI (EBS)'!E509","v":0}]
["Sch VI","Schedule of Assets",null,"(B) Bonds - Nominal 320",{"$f":"'Schedule VI'!E538","v":0},null,null,null,null,null,null,null,{"$f":"'Schedule VI (EBS)'!E538","v":0}]
["Sch VI","Schedule of Assets",null,"(B) Bonds - Nominal 347",{"$f":"'Schedule VI'!E565","v":0},null,null,null,null,null,null,null,{"$f":"'Schedule VI (EBS)'!E565","v":0}]
["Sch VI","Schedule of Assets",null,"(B) Bonds - Nominal 357",{"$f":"'Schedule VI'!E575","v":0},null,null,null,null,null,null,null,{"$f":"'Schedule VI (EBS)'!E575","v":0}]
["Sch VI","Schedule of Assets",null,"(B) Bonds - Nominal 382",{"$f":"'Schedule VI'!E600","v":0},null,null,null,null,null,null,null,{"$f":"'Schedule VI (EBS)'!E600","v":0}]
["Sch VI","Schedule of Assets",null,"(B) Bonds - Fair Value 12",{"$f":"'Schedule VI'!F230","v":0},null,null,null,null,null,null,null,{"$f":"'Schedule VI (EBS)'!F230","v":0}]
["Sch VI","Schedule of Assets",null,"(B) Bonds - Fair Value 38",{"$f":"'Schedule VI'!F256","v":0},null,null,null,null,null,null,null,{"$f":"'Schedule VI (EBS)'!F256","v":0}]
["Sch VI","Schedule of Assets",null,"(B) Bonds - Fair Value 49",{"$f":"'Schedule VI'!F267","v":0},null,null,null,null,null,null,null,{"$f":"'Schedule VI (EBS)'!F267","v":0}]
["Sch VI","Schedule of Assets",null,"(B) Bonds - Fair Value 66",{"$f":"'Schedule VI'!F284","v":0},null,null,null,null,null,null,null,{"$f":"'Schedule VI (EBS)'!F284","v":0}]
["Sch VI","Schedule of Assets",null,"(B) Bonds - Fair Value 89",{"$f":"'Schedule VI'!F307","v":0},null,null,null,null,null,null,null,{"$f":"'Schedule VI (EBS)'!F307","v":0}]
["Sch VI","Schedule of Assets",null,"(B) Bonds - Fair Value 125",{"$f":"'Schedule VI'!F343","v":0},null,null,null,null,null,null,null,{"$f":"'Schedule VI (EBS)'!F343","v":0}]
["Sch VI","Schedule of Assets",null,"(B) Bonds - Fair Value 145",{"$f":"'Schedule VI'!F363","v":0},null,null,null,null,null,null,null,{"$f":"'Schedule VI (EBS)'!F363","v":0}]
["Sch VI","Schedule of Assets",null,"(B) Bonds - Fair Value 162",{"$f":"'Schedule VI'!F380","v":0},null,null,null,null,null,null,null,{"$f":"'Schedule VI (EBS)'!F380","v":0}]
["Sch VI","Schedule of Assets",null,"(B) Bonds - Fair Value 176",{"$f":"'Schedule VI'!F394","v":0},null,null,null,null,null,null,null,{"$f":"'Schedule VI (EBS)'!F394","v":0}]
["Sch VI","Schedule of Assets",null,"(B) Bonds - Fair Value 199",{"$f":"'Schedule VI'!F417","v":0},null,null,null,null,null,null,null,{"$f":"'Schedule VI (EBS)'!F417","v":0}]
["Sch VI","Schedule of Assets",null,"(B) Bonds - Fair Value 232",{"$f":"'Schedule VI'!F450","v":0},null,null,null,null,null,null,null,{"$f":"'Schedule VI (EBS)'!F450","v":0}]
["Sch VI","Schedule of Assets",null,"(B) Bonds - Fair Value 236",{"$f":"'Schedule VI'!F454","v":0},null,null,null,null,null,null,null,{"$f":"'Schedule VI (EBS)'!F454","v":0}]
["Sch VI","Schedule of Assets",null,"(B) Bonds - Fair Value 267",{"$f":"'Schedule VI'!F485","v":0},null,null,null,null,null,null,null,{"$f":"'Schedule VI (EBS)'!F485","v":0}]
["Sch VI","Schedule of Assets",null,"(B) Bonds - Fair Value 291",{"$f":"'Schedule VI'!F509","v":0},null,null,null,null,null,null,null,{"$f":"'Schedule VI (EBS)'!F509","v":0}]
["Sch VI","Schedule of Assets",null,"(B) Bonds - Fair Value 302",{"$f":"'Schedule VI'!F520","v":0},null,null,null,null,null,null,null,{"$f":"'Schedule VI (EBS)'!F520","v":0}]
["Sch VI","Schedule of Assets",null,"(B) Bonds - Fair Value 328",{"$f":"'Schedule VI'!F546","v":0},null,null,null,null,null,null,null,{"$f":"'Schedule VI (EBS)'!F546","v":0}]
["Sch VI","Schedule of Assets",null,"(B) Bonds - Fair Value 354",{"$f":"'Schedule VI'!F572","v":0},null,null,null,null,null,null,null,{"$f":"'Schedule VI (EBS)'!F572","v":0}]
["Sch VI","Schedule of Assets",null,"(B) Bonds - Fair Value 365",{"$f":"'Schedule VI'!F583","v":0},null,null,null,null,null,null,null,{"$f":"'Schedule VI (EBS)'!F583","v":0}]
["Sch VI","Schedule of Assets",null,"(B) Bonds - Fair Value 389",{"$f":"'Schedule VI'!F607","v":0},null,null,null,null,null,null,null,{"$f":"'Schedule VI (EBS)'!F607","v":0}]
["Sch VI","Schedule of Assets",null,"(B) Bonds - Weighted Average YTM 24",{"$f":"'Schedule VI'!G242","v":0},null,null,null,null,null,null,null,{"$f":"'Schedule VI (EBS)'!G242","v":0}]
["Sch VI","Schedule of Assets",null,"(B) Bonds - Weighted Average YTM 45",{"$f":"'Schedule VI'!G263","v":0},null,null,null,null,null,null,null,{"$f":"'Schedule VI (EBS)'!G263","v":0}]
["Sch VI","Schedule of Assets",null,"(B) Bonds - Weighted Average YTM 57",{"$f":"'Schedule VI'!G275","v":0},null,null,null,null,null,null,null,{"$f":"'Schedule VI (EBS)'!G275","v":0}]
["Sch VI","Schedule of Assets",null,"(B) Bonds - Weighted Average YTM 80",{"$f":"'Schedule VI'!G298","v":0},null,null,null,null,null,null,null,{"$f":"'Schedule VI (EBS)'!G298","v":0}]
["Sch VI","Schedule of Assets",null,"(B) Bonds - Weighted Average YTM 94",{"$f":"'Schedule VI'!G312","v":0},null,null,null,null,null,null,null,{"$f":"'Schedule VI (EBS)'!G312","v":0}]
["Sch VI","Schedule of Assets",null,"(B) Bonds - Weighted Average YTM 115",{"$f":"'Schedule VI'!G333","v":0},null,null,null,null,null,null,null,{"$f":"'Schedule VI (EBS)'!G333","v":0}]
["Sch VI","Schedule of Assets",null,"(B) Bonds - Weighted Average YTM 153",{"$f":"'Schedule VI'!G371","v":0},null,null,null,null,null,null,null,{"$f":"'Schedule VI (EBS)'!G371","v":0}]
["Sch VI","Schedule of Assets",null,"(B) Bonds - Weighted Average YTM 167",{"$f":"'Schedule VI'!G385","v":0},null,null,null,null,null,null,null,{"$f":"'Schedule VI (EBS)'!G385","v":0}]
["Sch VI","Schedule of Assets",null,"(B) Bonds - Weighted Average YTM 190",{"$f":"'Schedule VI'!G408","v":0},null,null,null,null,null,null,null,{"$f":"'Schedule VI (EBS)'!G408","v":0}]
["Sch VI","Schedule of Assets",null,"(B) Bonds - Weighted Average YTM 202",{"$f":"'Schedule VI'!G420","v":0},null,null,null,null,null,null,null,{"$f":"'Schedule VI (EBS)'!G420","v":0}]
["Sch VI","Schedule of Assets",null,"(B) Bonds - Weighted Average YTM 223",{"$f":"'Schedule VI'!G441","v":0},null,null,null,null,null,null,null,{"$f":"'Schedule VI (EBS)'!G441","v":0}]
["Sch VI","Schedule of Assets",null,"(B) Bonds - Weighted Average YTM 244",{"$f":"'Schedule VI'!G462","v":0},null,null,null,null,null,null,null,{"$f":"'Schedule VI (EBS)'!G462","v":0}]
["Sch VI","Schedule of Assets",null,"(B) Bonds - Weighted Average YTM 274",{"$f":"'Schedule VI'!G492","v":0},null,null,null,null,null,null,null,{"$f":"'Schedule VI (EBS)'!G492","v":0}]
["Sch VI","Schedule of Assets",null,"(B) Bonds - Weighted Average YTM 303",{"$f":"'Schedule VI'!G521","v":0},null,null,null,null,null,null,null,{"$f":"'Schedule VI (EBS)'!G521","v":0}]
["Sch VI","Schedule of Assets",null,"(B) Bonds - Weighted Average YTM 309",{"$f":"'Schedule VI'!G527","v":0},null,null,null,null,null,null,null,{"$f":"'Schedule VI (EBS)'!G527","v":0}]
["Sch VI","Schedule of Assets",null,"(B) Bonds - Weighted Average YTM 336",{"$f":"'Schedule VI'!G554","v":0},null,null,null,null,null,null,null,{"$f":"'Schedule VI (EBS)'!G554","v":0}]
["Sch VI","Schedule of Assets",null,"(B) Bonds - Weighted Average YTM 365",{"$f":"'Schedule VI'!G583","v":0},null,null,null,null,null,null,null,{"$f":"'Schedule VI (EBS)'!G583","v":0}]
["Sch VI","Schedule of Assets",null,"(B) Bonds - Weighted Average YTM 373",{"$f":"'Schedule VI'!G591","v":0},null,null,null,null,null,null,null,{"$f":"'Schedule VI (EBS)'!G591","v":0}]
["Sch VI","Schedule of Assets",null,"(B) Bonds - Weighted Average YTM 396",{"$f":"'Schedule VI'!G614","v":0},null,null,null,null,null,null,null,{"$f":"'Schedule VI (EBS)'!G614","v":0}]
["Sch VI","Schedule of Assets",null,"(B) Bonds - Effective Duration 32",{"$f":"'Schedule VI'!H250","v":0},null,null,null,null,null,null,null,{"$f":"'Schedule VI (EBS)'!H250","v":0}]
["Sch VI","Schedule of Assets",null,"(B) Bonds - Effective Duration 52",{"$f":"'Schedule VI'!H270","v":0},null,null,null,null,null,null,null,{"$f":"'Schedule VI (EBS)'!H270","v":0}]
["Sch VI","Schedule of Assets",null,"(B) Bonds - Effective Duration 69",{"$f":"'Schedule VI'!H287","v":0},null,null,null,null,null,null,null,{"$f":"'Schedule VI (EBS)'!H287","v":0}]
["Sch VI","Schedule of Assets",null,"(B) Bonds - Effective Duration 87",{"$f":"'Schedule VI'!H305","v":0},null,null,null,null,null,null,null,{"$f":"'Schedule VI (EBS)'!H305","v":0}]
["Sch VI","Schedule of Assets",null,"(B) Bonds - Effective Duration 102",{"$f":"'Schedule VI'!H320","v":0},null,null,null,null,null,null,null,{"$f":"'Schedule VI (EBS)'!H320","v":0}]
["Sch VI","Schedule of Assets",null,"(B) Bonds - Effective Duration 122",{"$f":"'Schedule VI'!H340","v":0},null,null,null,null,null,null,null,{"$f":"'Schedule VI (EBS)'!H340","v":0}]
["Sch VI","Schedule of Assets",null,"(B) Bonds - Effective Duration 161",{"$f":"'Schedule VI'!H379","v":0},null,null,null,null,null,null,null,{"$f":"'Schedule VI (EBS)'!H379","v":0}]
["Sch VI","Schedule of Assets",null,"(B) Bonds - Effective Duration 178",{"$f":"'Schedule VI'!H396","v":0},null,null,null,null,null,null,null,{"$f":"'Schedule VI (EBS)'!H396","v":0}]
["Sch VI","Schedule of Assets",null,"(B) Bonds - Effective Duration 198",{"$f":"'Schedule VI'!H416","v":0},null,null,null,null,null,null,null,{"$f":"'Schedule VI (EBS)'!H416","v":0}]
["Sch VI","Schedule of Assets",null,"(B) Bonds - Effective Duration 209",{"$f":"'Schedule VI'!H427","v":0},null,null,null,null,null,null,null,{"$f":"'Schedule VI (EBS)'!H427","v":0}]
["Sch VI","Schedule of Assets",null,"(B) Bonds - Effective Duration 235",{"$f":"'Schedule VI'!H453","v":0},null,null,null,null,null,null,null,{"$f":"'Schedule VI (EBS)'!H453","v":0}]
["Sch VI","Schedule of Assets",null,"(B) Bonds - Effective Duration 265",{"$f":"'Schedule VI'!H483","v":0},null,null,null,null,null,null,null,{"$f":"'Schedule VI (EBS)'!H483","v":0}]
["Sch VI","Schedule of Assets",null,"(B) Bonds - Effective Duration 290",{"$f":"'Schedule VI'!H508","v":0},null,null,null,null,null,null,null,{"$f":"'Schedule VI (EBS)'!H508","v":0}]
["Sch VI","Schedule of Assets",null,"(B) Bonds - Effective Duration 300",{"$f":"'Schedule VI'!H518","v":0},null,null,null,null,null,null,null,{"$f":"'Schedule VI (EBS)'!H518","v":0}]
["Sch VI","Schedule of Assets",null,"(B) Bonds - Effective Duration 327",{"$f":"'Schedule VI'!H545","v":0},null,null,null,null,null,null,null,{"$f":"'Schedule VI (EBS)'!H545","v":0}]
["Sch VI","Schedule of Assets",null,"(B) Bonds - Effective Duration 356",{"$f":"'Schedule VI'!H574","v":0},null,null,null,null,null,null,null,{"$f":"'Schedule VI (EBS)'!H574","v":0}]
["Sch VI","Schedule of Assets",null,"(B) Bonds - Effective Duration 364",{"$f":"'Schedule VI'!H582","v":0},null,null,null,null,null,null,null,{"$f":"'Schedule VI (EBS)'!H582","v":0}]
["Sch VI","Schedule of Assets",null,"(B) Bonds - Effective Duration 381",{"$f":"'Schedule VI'!H599","v":0},null,null,null,null,null,null,null,{"$f":"'Schedule VI (EBS)'!H599","v":0}]
["Sch VI","Schedule of Assets",null,"(B) Bonds - Comments 7",{"$f":"'Schedule VI'!I225","v":0},null,null,null,null,null,null,null,{"$f":"'Schedule VI (EBS)'!I225","v":0}]
["Sch VI","Schedule of Assets",null,"(B) Bonds - Comments 40",{"$f":"'Schedule VI'!I258","v":0},null,null,null,null,null,null,null,{"$f":"'Schedule VI (EBS)'!I258","v":0}]
["Sch VI","Schedule of Assets",null,"(B) Bonds - Comments 59",{"$f":"'Schedule VI'!I277","v":0},null,null,null,null,null,null,null,{"$f":"'Schedule VI (EBS)'!I277","v":0}]
["Sch VI","Schedule of Assets",null,"(B) Bonds - Comments 77",{"$f":"'Schedule VI'!I295","v":0},null,null,null,null,null,null,null,{"$f":"'Schedule VI (EBS)'!I295","v":0}]
["Sch VI","Schedule of Assets",null,"(B) Bonds - Comments 94",{"$f":"'Schedule VI'!I312","v":0},null,null,null,null,null,null,null,{"$f":"'Schedule VI (EBS)'!I312","v":0}]
["Sch VI","Schedule of Assets",null,"(B) Bonds - Comments 114",{"$f":"'Schedule VI'!I332","v":0},null,null,null,null,null,null,null,{"$f":"'Schedule VI (EBS)'!I332","v":0}]
["Sch VI","Schedule of Assets",null,"(B) Bonds - Comments 150",{"$f":"'Schedule VI'!I368","v":0},null,null,null,null,null,null,null,{"$f":"'Schedule VI (EBS)'!I368","v":0}]
["Sch VI","Schedule of Assets",null,"(B) Bonds - Comments 169",{"$f":"'Schedule VI'!I387","v":0},null,null,null,null,null,null,null,{"$f":"'Schedule VI (EBS)'!I387","v":0}]
["Sch VI","Schedule of Assets",null,"(B) Bonds - Comments 185",{"$f":"'Schedule VI'!I403","v":0},null,null,null,null,null,null,null,{"$f":"'Schedule VI (EBS)'!I403","v":0}]
["Sch VI","Schedule of Assets",null,"(B) Bonds - Comments 206",{"$f":"'Schedule VI'!I424","v":0},null,null,null,null,null,null,null,{"$f":"'Schedule VI (EBS)'!I424","v":0}]
["Sch VI","Schedule of Assets",null,"(B) Bonds - Comments 220",{"$f":"'Schedule VI'!I438","v":0},null,null,null,null,null,null,null,{"$f":"'Schedule VI (EBS)'!I438","v":0}]
["Sch VI","Schedule of Assets",null,"(B) Bonds - Comments 243",{"$f":"'Schedule VI'!I461","v":0},null,null,null,null,null,null,null,{"$f":"'Schedule VI (EBS)'!I461","v":0}]
["Sch VI","Schedule of Assets",null,"(B) Bonds - Comments 272",{"$f":"'Schedule VI'!I490","v":0},null,null,null,null,null,null,null,{"$f":"'Schedule VI (EBS)'!I490","v":0}]
["Sch VI","Schedule of Assets",null,"(B) Bonds - Comments 302",{"$f":"'Schedule VI'!I520","v":0},null,null,null,null,null,null,null,{"$f":"'Schedule VI (EBS)'!I520","v":0}]
["Sch VI","Schedule of Assets",null,"(B) Bonds - Comments 307",{"$f":"'Schedule VI'!I525","v":0},null,null,null,null,null,null,null,{"$f":"'Schedule VI (EBS)'!I525","v":0}]
["Sch VI","Schedule of Assets",null,"(B) Bonds - Comments 335",{"$f":"'Schedule VI'!I553","v":0},null,null,null,null,null,null,null,{"$f":"'Schedule VI (EBS)'!I553","v":0}]
["Sch VI","Schedule of Assets",null,"(B) Bonds - Comments 363",{"$f":"'Schedule VI'!I581","v":0},null,null,null,null,null,null,null,{"$f":"'Schedule VI (EBS)'!I581","v":0}]
["Sch VI","Schedule of Assets",null,"(B) Bonds - Comments 372",{"$f":"'Schedule VI'!I590","v":0},null,null,null,null,null,null,null,{"$f":"'Schedule VI (EBS)'!I590","v":0}]
["Sch VI","Schedule of Assets",null,"(B) Bonds - Comments 398",{"$f":"'Schedule VI'!I616","v":0},null,null,null,null,null,null,null,{"$f":"'Schedule VI (EBS)'!I616","v":0}]
["Sch VI","Schedule of Assets",null,"(B) Bonds Sovereign Debt - Country 30",{"$f":"'Schedule VI'!C656","v":"Select"},null,null,null,null,null,null,null,{"$f":"'Schedule VI (EBS)'!C656","v":"Select"}]
["Sch VI","Schedule of Assets",null,"(B) Bonds Sovereign Debt - Country 49",{"$f":"'Schedule VI'!C675","v":"Select"},null,null,null,null,null,null,null,{"$f":"'Schedule VI (EBS)'!C675","v":"Select"}]
["Sch VI","Schedule of Assets",null,"(B) Bonds Sovereign Debt - Country 67",{"$f":"'Schedule VI'!C693","v":"Select"},null,null,null,null,null,null,null,{"$f":"'Schedule VI (EBS)'!C693","v":"Select"}]
["Sch VI","Schedule of Assets",null,"(B) Bonds Sovereign Debt - Country 84",{"$f":"'Schedule VI'!C710","v":"Select"},null,null,null,null,null,null,null,{"$f":"'Schedule VI (EBS)'!C710","v":"Select"}]
["Sch VI","Schedule of Assets",null,"(B) Bonds Sovereign Debt - Country 104",{"$f":"'Schedule VI'!C730","v":"Select"},null,null,null,null,null,null,null,{"$f":"'Schedule VI (EBS)'!C730","v":"Select"}]
["Sch VI","Schedule of Assets",null,"(B) Bonds Sovereign Debt - Country 119",{"$f":"'Schedule VI'!C745","v":"Select"},null,null,null,null,null,null,null,{"$f":"'Schedule VI (EBS)'!C745","v":"Select"}]
["Sch VI","Schedule of Assets",null,"(B) Bonds Sovereign Debt - Country 159",{"$f":"'Schedule VI'!C785","v":"Select"},null,null,null,null,null,null,null,{"$f":"'Schedule VI (EBS)'!C785","v":"Select"}]
["Sch VI","Schedule of Assets",null,"(B) Bonds Sovereign Debt - Country 180",{"$f":"'Schedule VI'!C806","v":"Select"},null,null,null,null,null,null,null,{"$f":"'Schedule VI (EBS)'!C806","v":"Select"}]
["Sch VI","Schedule of Assets",null,"(B) Bonds Sovereign Debt - Country 191",{"$f":"'Schedule VI'!C817","v":"Select"},null,null,null,null,null,null,null,{"$f":"'Schedule VI (EBS)'!C817","v":"Select"}]
["Sch VI","Schedule of Assets",null,"(B) Bonds Sovereign Debt - Currency 13",{"$f":"'Schedule VI'!D639","v":"Select"},null,null,null,null,null,null,null,{"$f":"'Schedule VI (EBS)'!D639","v":"Select"}]
["Sch VI","Schedule of Assets",null,"(B) Bonds Sovereign Debt - Currency 26",{"$f":"'Schedule VI'!D652","v":"Select"},null,null,null,null,null,null,null,{"$f":"'Schedule VI (EBS)'!D652","v":"Select"}]
["Sch VI","Schedule of Assets",null,"(B) Bonds Sovereign Debt - Currency 50",{"$f":"'Schedule VI'!D676","v":"Select"},null,null,null,null,null,null,null,{"$f":"'Schedule VI (EBS)'!D676","v":"Select"}]
["Sch VI","Schedule of Assets",null,"(B) Bonds Sovereign Debt - Currency 82",{"$f":"'Schedule VI'!D708","v":"Select"},null,null,null,null,null,null,null,{"$f":"'Schedule VI (EBS)'!D708","v":"Select"}]
["Sch VI","Schedule of Assets",null,"(B) Bonds Sovereign Debt - Currency 109",{"$f":"'Schedule VI'!D735","v":"Select"},null,null,null,null,null,null,null,{"$f":"'Schedule VI (EBS)'!D735","v":"Select"}]
["Sch VI","Schedule of Assets",null,"(B) Bonds Sovereign Debt - Currency 113",{"$f":"'Schedule VI'!D739","v":"Select"},null,null,null,null,null,null,null,{"$f":"'Schedule VI (EBS)'!D739","v":"Select"}]
["Sch VI","Schedule of Assets",null,"(B) Bonds Sovereign Debt - Currency 146",{"$f":"'Schedule VI'!D772","v":"Select"},null,null,null,null,null,null,null,{"$f":"'Schedule VI (EBS)'!D772","v":"Select"}]
["Sch VI","Schedule of Assets",null,"(B) Bonds Sovereign Debt - Currency 169",{"$f":"'Schedule VI'!D795","v":"Select"},null,null,null,null,null,null,null,{"$f":"'Schedule VI (EBS)'!D795","v":"Select"}]
["Sch VI","Schedule of Assets",null,"(B) Bonds Sovereign Debt - Currency 179",{"$f":"'Schedule VI'!D805","v":"Select"},null,null,null,null,null,null,null,{"$f":"'Schedule VI (EBS)'!D805","v":"Select"}]
["Sch VI","Schedule of Assets",null,"(B) Bonds Sovereign Debt - Rating 4",{"$f":"'Schedule VI'!E630","v":"Select"},null,null,null,null,null,null,null,{"$f":"'Schedule VI (EBS)'!E630","v":"Select"}]
["Sch VI","Schedule of Assets",null,"(B) Bonds Sovereign Debt - Rating 38",{"$f":"'Schedule VI'!E664","v":"Select"},null,null,null,null,null,null,null,{"$f":"'Schedule VI (EBS)'!E664","v":"Select"}]
["Sch VI","Schedule of Assets",null,"(B) Bonds Sovereign Debt - Rating 60",{"$f":"'Schedule VI'!E686","v":"Select"},null,null,null,null,null,null,null,{"$f":"'Schedule VI (EBS)'!E686","v":"Select"}]
["Sch VI","Schedule of Assets",null,"(B) Bonds Sovereign Debt - Rating 75",{"$f":"'Schedule VI'!E701","v":"Select"},null,null,null,null,null,null,null,{"$f":"'Schedule VI (EBS)'!E701","v":"Select"}]
["Sch VI","Schedule of Assets",null,"(B) Bonds Sovereign Debt - Rating 91",{"$f":"'Schedule VI'!E717","v":"Select"},null,null,null,null,null,null,null,{"$f":"'Schedule VI (EBS)'!E717","v":"Select"}]
["Sch VI","Schedule of Assets",null,"(B) Bonds Sovereign Debt - Rating 112",{"$f":"'Schedule VI'!E738","v":"Select"},null,null,null,null,null,null,null,{"$f":"'Schedule VI (EBS)'!E738","v":"Select"}]
["Sch VI","Schedule of Assets",null,"(B) Bonds Sovereign Debt - Rating 126",{"$f":"'Schedule VI'!E752","v":"Select"},null,null,null,null,null,null,null,{"$f":"'Schedule VI (EBS)'!E752","v":"Select"}]
["Sch VI","Schedule of Assets",null,"(B) Bonds Sovereign Debt - Rating 149",{"$f":"'Schedule VI'!E775","v":"Select"},null,null,null,null,null,null,null,{"$f":"'Schedule VI (EBS)'!E775","v":"Select"}]
["Sch VI","Schedule of Assets",null,"(B) Bonds Sovereign Debt - Rating 182",{"$f":"'Schedule VI'!E808","v":"Select"},null,null,null,null,null,null,null,{"$f":"'Schedule VI (EBS)'!E808","v":"Select"}]
["Sch VI","Schedule of Assets",null,"(B) Bonds Sovereign Debt - Fair Value 4",{"$f":"'Schedule VI'!F630","v":0},null,null,null,null,null,null,null,{"$f":"'Schedule VI (EBS)'!F630","v":0}]
["Sch VI","Schedule of Assets",null,"(B) Bonds Sovereign Debt - Fair Value 17",{"$f":"'Schedule VI'!F643","v":0},null,null,null,null,null,null,null,{"$f":"'Schedule VI (EBS)'!F643","v":0}]
["Sch VI","Schedule of Assets",null,"(B) Bonds Sovereign Debt - Fair Value 41",{"$f":"'Schedule VI'!F667","v":0},null,null,null,null,null,null,null,{"$f":"'Schedule VI (EBS)'!F667","v":0}]
["Sch VI","Schedule of Assets",null,"(B) Bonds Sovereign Debt - Fair Value 69",{"$f":"'Schedule VI'!F695","v":0},null,null,null,null,null,null,null,{"$f":"'Schedule VI (EBS)'!F695","v":0}]
["Sch VI","Schedule of Assets",null,"(B) Bonds Sovereign Debt - Fair Value 78",{"$f":"'Schedule VI'!F704","v":0},null,null,null,null,null,null,null,{"$f":"'Schedule VI (EBS)'!F704","v":0}]
["Sch VI","Schedule of Assets",null,"(B) Bonds Sovereign Debt - Fair Value 104",{"$f":"'Schedule VI'!F730","v":0},null,null,null,null,null,null,null,{"$f":"'Schedule VI (EBS)'!F730","v":0}]
["Sch VI","Schedule of Assets",null,"(B) Bonds Sovereign Debt - Fair Value 137",{"$f":"'Schedule VI'!F763","v":0},null,null,null,null,null,null,null,{"$f":"'Schedule VI (EBS)'!F763","v":0}]
["Sch VI","Schedule of Assets",null,"(B) Bonds Sovereign Debt - Fair Value 154",{"$f":"'Schedule VI'!F780","v":0},null,null,null,null,null,null,null,{"$f":"'Schedule VI (EBS)'!F780","v":0}]
["Sch VI","Schedule of Assets",null,"(B) Bonds Sovereign Debt - Fair Value 176",{"$f":"'Schedule VI'!F802","v":0},null,null,null,null,null,null,null,{"$f":"'Schedule VI (EBS)'!F802","v":0}]
["Sch VI","Schedule of Assets",null,"(B) Bonds Sovereign Debt - Fair Value 191",{"$f":"'Schedule VI'!F817","v":0},null,null,null,null,null,null,null,{"$f":"'Schedule VI (EBS)'!F817","v":0}]
["Sch VI","Schedule of Assets",null,"(B) Bonds Sovereign Debt - Comments 11",{"$f":"'Schedule VI'!G637","v":0},null,null,null,null,null,null,null,{"$f":"'Schedule VI (EBS)'!G637","v":0}]
["Sch VI","Schedule of Assets",null,"(B) Bonds Sovereign Debt - Comments 46",{"$f":"'Schedule VI'!G672","v":0},null,null,null,null,null,null,null,{"$f":"'Schedule VI (EBS)'!G672","v":0}]
["Sch VI","Schedule of Assets",null,"(B) Bonds Sovereign Debt - Comments 67",{"$f":"'Schedule VI'!G693","v":0},null,null,null,null,null,null,null,{"$f":"'Schedule VI (EBS)'!G693","v":0}]
["Sch VI","Schedule of Assets",null,"(B) Bonds Sovereign Debt - Comments 83",{"$f":"'Schedule VI'!G709","v":0},null,null,null,null,null,null,null,{"$f":"'Schedule VI (EBS)'!G709","v":0}]
["Sch VI","Schedule of Assets",null,"(B) Bonds Sovereign Debt - Comments 102",{"$f":"'Schedule VI'!G728","v":0},null,null,null,null,null,null,null,{"$f":"'Schedule VI (EBS)'!G728","v":0}]
["Sch VI","Schedule of Assets",null,"(B) Bonds Sovereign Debt - Comments 120",{"$f":"'Schedule VI'!G746","v":0},null,null,null,null,null,null,null,{"$f":"'Schedule VI (EBS)'!G746","v":0}]
["Sch VI","Schedule of Assets",null,"(B) Bonds Sovereign Debt - Comments 154",{"$f":"'Schedule VI'!G780","v":0},null,null,null,null,null,null,null,{"$f":"'Schedule VI (EBS)'!G780","v":0}]
["Sch VI","Schedule of Assets",null,"(B) Bonds Sovereign Debt - Comments 157",{"$f":"'Schedule VI'!G783","v":0},null,null,null,null,null,null,null,{"$f":"'Schedule VI (EBS)'!G783","v":0}]
["Sch VI","Schedule of Assets",null,"(B) Bonds Sovereign Debt - Comments 189",{"$f":"'Schedule VI'!G815","v":0},null,null,null,null,null,null,null,{"$f":"'Schedule VI (EBS)'!G815","v":0}]
["Sch VI","Schedule of Assets",null,"(C) ABS and Struct. Sec. - Asset Type 15",{"$f":"'Schedule VI'!B849","v":"Select"},null,null,null,null,null,null,null,{"$f":"'Schedule VI (EBS)'!B849","v":"Select"}]
["Sch VI","Schedule of Assets",null,"(C) ABS and Struct. Sec. - Asset Type 23",{"$f":"'Schedule VI'!B857","v":"Select"},null,null,null,null,null,null,null,{"$f":"'Schedule VI (EBS)'!B857","v":"Select"}]
["Sch VI","Schedule of Assets",null,"(C) ABS and Struct. Sec. - Asset Type 48",{"$f":"'Schedule VI'!B882","v":"Select"},null,null,null,null,null,null,null,{"$f":"'Schedule VI (EBS)'!B882","v":"Select"}]
["Sch VI","Schedule of Assets",null,"(C) ABS and Struct. Sec. - Asset Type 79",{"$f":"'Schedule VI'!B913","v":"Select"},null,null,null,null,null,null,null,{"$f":"'Schedule VI (EBS)'!B913","v":"Select"}]
["Sch VI","Schedule of Assets",null,"(C) ABS and Struct. Sec. - Asset Type 85",{"$f":"'Schedule VI'!B919","v":"Select"},null,null,null,null,null,null,null,{"$f":"'Schedule VI (EBS)'!B919","v":"Select"}]
["Sch VI","Schedule of Assets",null,"(C) ABS and Struct. Sec. - Asset Type 110",{"$f":"'Schedule VI'!B944","v":"Select"},null,null,null,null,null,null,null,{"$f":"'Schedule VI (EBS)'!B944","v":"Select"}]
["Sch VI","Schedule of Assets",null,"(C) ABS and Struct. Sec. - Asset Type 144",{"$f":"'Schedule VI'!B978","v":"Select"},null,null,null,null,null,null,null,{"$f":"'Schedule VI (EBS)'!B978","v":"Select"}]
["Sch VI","Schedule of Assets",null,"(C) ABS and Struct. Sec. - Currency 16",{"$f":"'Schedule VI'!C850","v":"Select"},null,null,null,null,null,null,null,{"$f":"'Schedule VI (EBS)'!C850","v":"Select"}]
["Sch VI","Schedule of Assets",null,"(C) ABS and Struct. Sec. - Currency 31",{"$f":"'Schedule VI'!C865","v":"Select"},null,null,null,null,null,null,null,{"$f":"'Schedule VI (EBS)'!C865","v":"Select"}]
["Sch VI","Schedule of Assets",null,"(C) ABS and Struct. Sec. - Currency 51",{"$f":"'Schedule VI'!C885","v":"Select"},null,null,null,null,null,null,null,{"$f":"'Schedule VI (EBS)'!C885","v":"Select"}]
["Sch VI","Schedule of Assets",null,"(C) ABS and Struct. Sec. - Currency 64",{"$f":"'Schedule VI'!C898","v":"Select"},null,null,null,null,null,null,null,{"$f":"'Schedule VI (EBS)'!C898","v":"Select"}]
["Sch VI","Schedule of Assets",null,"(C) ABS and Struct. Sec. - Currency 86",{"$f":"'Schedule VI'!C920","v":"Select"},null,null,null,null,null,null,null,{"$f":"'Schedule VI (EBS)'!C920","v":"Select"}]
["Sch VI","Schedule of Assets",null,"(C) ABS and Struct. Sec. - Currency 123",{"$f":"'Schedule VI'!C957","v":"Select"},null,null,null,null,null,null,null,{"$f":"'Schedule VI (EBS)'!C957","v":"Select"}]
["Sch VI","Schedule of Assets",null,"(C) ABS and Struct. Sec. - Currency 144",{"$f":"'Schedule VI'!C978","v":"Select"},null,null,null,null,null,null,null,{"$f":"'Schedule VI (EBS)'!C978","v":"Select"}]
["Sch VI","Schedule of Assets",null,"(C) ABS and Struct. Sec. - Rating 8",{"$f":"'Schedule VI'!D842","v":"Select"},null,null,null,null,null,null,null,{"$f":"'Schedule VI (EBS)'!D842","v":"Select"}]
["Sch VI","Schedule of Assets",null,"(C) ABS and Struct. Sec. - Rating 27",{"$f":"'Schedule VI'!D861","v":"Select"},null,null,null,null,null,null,null,{"$f":"'Schedule VI (EBS)'!D861","v":"Select"}]
["Sch VI","Schedule of Assets",null,"(C) ABS and Struct. Sec. - Rating 43",{"$f":"'Schedule VI'!D877","v":"Select"},null,null,null,null,null,null,null,{"$f":"'Schedule VI (EBS)'!D877","v":"Select"}]
["Sch VI","Schedule of Assets",null,"(C) ABS and Struct. Sec. - Rating 64",{"$f":"'Schedule VI'!D898","v":"Select"},null,null,null,null,null,null,null,{"$f":"'Schedule VI (EBS)'!D898","v":"Select"}]
["Sch VI","Schedule of Assets",null,"(C) ABS and Struct. Sec. - Rating 95",{"$f":"'Schedule VI'!D929","v":"Select"},null,null,null,null,null,null,null,{"$f":"'Schedule VI (EBS)'!D929","v":"Select"}]
["Sch VI","Schedule of Assets",null,"(C) ABS and Struct. Sec. - Rating 123",{"$f":"'Schedule VI'!D957","v":"Select"},null,null,null,null,null,null,null,{"$f":"'Schedule VI (EBS)'!D957","v":"Select"}]
["Sch VI","Schedule of Assets",null,"(C) ABS and Struct. Sec. - Rating 130",{"$f":"'Schedule VI'!D964","v":"Select"},null,null,null,null,null,null,null,{"$f":"'Schedule VI (EBS)'!D964","v":"Select"}]
["Sch VI","Schedule of Assets",null,"(C) ABS and Struct. Sec. - Nominal Amount 10",{"$f":"'Schedule VI'!E844","v":0},null,null,null,null,null,null,null,{"$f":"'Schedule VI (EBS)'!E844","v":0}]
["Sch VI","Schedule of Assets",null,"(C) ABS and Struct. Sec. - Nominal Amount 36",{"$f":"'Schedule VI'!E870","v":0},null,null,null,null,null,null,null,{"$f":"'Schedule VI (EBS)'!E870","v":0}]
["Sch VI","Schedule of Assets",null,"(C) ABS and Struct. Sec. - Nominal Amount 43",{"$f":"'Schedule VI'!E877","v":0},null,null,null,null,null,null,null,{"$f":"'Schedule VI (EBS)'!E877","v":0}]
["Sch VI","Schedule of Assets",null,"(C) ABS and Struct. Sec. - Nominal Amount 71",{"$f":"'Schedule VI'!E905","v":0},null,null,null,null,null,null,null,{"$f":"'Schedule VI (EBS)'!E905","v":0}]
["Sch VI","Schedule of Assets",null,"(C) ABS and Struct. Sec. - Nominal Amount 102",{"$f":"'Schedule VI'!E936","v":0},null,null,null,null,null,null,null,{"$f":"'Schedule VI (EBS)'!E936","v":0}]
["Sch VI","Schedule of Assets",null,"(C) ABS and Struct. Sec. - Nominal Amount 123",{"$f":"'Schedule VI'!E957","v":0},null,null,null,null,null,null,null,{"$f":"'Schedule VI (EBS)'!E957","v":0}]
["Sch VI","Schedule of Assets",null,"(C) ABS and Struct. Sec. - Nominal Amount 139",{"$f":"'Schedule VI'!E973","v":0},null,null,null,null,null,null,null,{"$f":"'Schedule VI (EBS)'!E973","v":0}]
["Sch VI","Schedule of Assets",null,"(C) ABS and Struct. Sec. - Fair Value 8",{"$f":"'Schedule VI'!F842","v":0},null,null,null,null,null,null,null,{"$f":"'Schedule VI (EBS)'!F842","v":0}]
["Sch VI","Schedule of Assets",null,"(C) ABS and Struct. Sec. - Fair Value 26",{"$f":"'Schedule VI'!F860","v":0},null,null,null,null,null,null,null,{"$f":"'Schedule VI (EBS)'!F860","v":0}]
["Sch VI","Schedule of Assets",null,"(C) ABS and Struct. Sec. - Fair Value 64",{"$f":"'Schedule VI'!F898","v":0},null,null,null,null,null,null,null,{"$f":"'Schedule VI (EBS)'!F898","v":0}]
["Sch VI","Schedule of Assets",null,"(C) ABS and Struct. Sec. - Fair Value 81",{"$f":"'Schedule VI'!F915","v":0},null,null,null,null,null,null,null,{"$f":"'Schedule VI (EBS)'!F915","v":0}]
["Sch VI","Schedule of Assets",null,"(C) ABS and Struct. Sec. - Fair Value 99",{"$f":"'Schedule VI'!F933","v":0},null,null,null,null,null,null,null,{"$f":"'Schedule VI (EBS)'!F933","v":0}]
["Sch VI","Schedule of Assets",null,"(C) ABS and Struct. Sec. - Fair Value 118",{"$f":"'Schedule VI'!F952","v":0},null,null,null,null,null,null,null,{"$f":"'Schedule VI (EBS)'!F952","v":0}]
["Sch VI","Schedule of Assets",null,"(C) ABS and Struct. Sec. - Fair Value 134",{"$f":"'Schedule VI'!F968","v":0},null,null,null,null,null,null,null,{"$f":"'Schedule VI (EBS)'!F968","v":0}]
["Sch VI","Schedule of Assets",null,"(C) ABS and Struct. Sec. - Weighted Avg YTM 5",{"$f":"'Schedule VI'!G839","v":0},null,null,null,null,null,null,null,{"$f":"'Schedule VI (EBS)'!G839","v":0}]
["Sch VI","Schedule of Assets",null,"(C) ABS and Struct. Sec. - Weighted Avg YTM 36",{"$f":"'Schedule VI'!G870","v":0},null,null,null,null,null,null,null,{"$f":"'Schedule VI (EBS)'!G870","v":0}]
["Sch VI","Schedule of Assets",null,"(C) ABS and Struct. Sec. - Weighted Avg YTM 64",{"$f":"'Schedule VI'!G898","v":0},null,null,null,null,null,null,null,{"$f":"'Schedule VI (EBS)'!G898","v":0}]
["Sch VI","Schedule of Assets",null,"(C) ABS and Struct. Sec. - Weighted Avg YTM 71",{"$f":"'Schedule VI'!G905","v":0},null,null,null,null,null,null,null,{"$f":"'Schedule VI (EBS)'!G905","v":0}]
["Sch VI","Schedule of Assets",null,"(C) ABS and Struct. Sec. - Weighted Avg YTM 97",{"$f":"'Schedule VI'!G931","v":0},null,null,null,null,null,null,null,{"$f":"'Schedule VI (EBS)'!G931","v":0}]
["Sch VI","Schedule of Assets",null,"(C) ABS and Struct. Sec. - Weighted Avg YTM 118",{"$f":"'Schedule VI'!G952","v":0},null,null,null,null,null,null,null,{"$f":"'Schedule VI (EBS)'!G952","v":0}]
["Sch VI","Schedule of Assets",null,"(C) ABS and Struct. Sec. - Weighted Avg YTM 143",{"$f":"'Schedule VI'!G977","v":0},null,null,null,null,null,null,null,{"$f":"'Schedule VI (EBS)'!G977","v":0}]
["Sch VI","Schedule of Assets",null,"(C) ABS and Struct. Sec. - Effective Duration 5",{"$f":"'Schedule VI'!H839","v":0},null,null,null,null,null,null,null,{"$f":"'Schedule VI (EBS)'!H839","v":0}]
["Sch VI","Schedule of Assets",null,"(C) ABS and Struct. Sec. - Effective Duration 28",{"$f":"'Schedule VI'!H862","v":0},null,null,null,null,null,null,null,{"$f":"'Schedule VI (EBS)'!H862","v":0}]
["Sch VI","Schedule of Assets",null,"(C) ABS and Struct. Sec. - Effective Duration 60",{"$f":"'Schedule VI'!H894","v":0},null,null,null,null,null,null,null,{"$f":"'Schedule VI (EBS)'!H894","v":0}]
["Sch VI","Schedule of Assets",null,"(C) ABS and Struct. Sec. - Effective Duration 84",{"$f":"'Schedule VI'!H918","v":0},null,null,null,null,null,null,null,{"$f":"'Schedule VI (EBS)'!H918","v":0}]
["Sch VI","Schedule of Assets",null,"(C) ABS and Struct. Sec. - Effective Duration 97",{"$f":"'Schedule VI'!H931","v":0},null,null,null,null,null,null,null,{"$f":"'Schedule VI (EBS)'!H931","v":0}]
["Sch VI","Schedule of Assets",null,"(C) ABS and Struct. Sec. - Effective Duration 119",{"$f":"'Schedule VI'!H953","v":0},null,null,null,null,null,null,null,{"$f":"'Schedule VI (EBS)'!H953","v":0}]
["Sch VI","Schedule of Assets",null,"(C) ABS and Struct. Sec. - Effective Duration 134",{"$f":"'Schedule VI'!H968","v":0},null,null,null,null,null,null,null,{"$f":"'Schedule VI (EBS)'!H968","v":0}]
["Sch VI","Schedule of Assets",null,"(C) ABS and Struct. Sec. - Comments 21",{"$f":"'Schedule VI'!I855","v":0},null,null,null,null,null,null,null,{"$f":"'Schedule VI (EBS)'!I855","v":0}]
["Sch VI","Schedule of Assets",null,"(C) ABS and Struct. Sec. - Comments 43",{"$f":"'Schedule VI'!I877","v":0},null,null,null,null,null,null,null,{"$f":"'Schedule VI (EBS)'!I877","v":0}]
["Sch VI","Schedule of Assets",null,"(C) ABS and Struct. Sec. - Comments 56",{"$f":"'Schedule VI'!I890","v":0},null,null,null,null,null,null,null,{"$f":"'Schedule VI (EBS)'!I890","v":0}]
["Sch VI","Schedule of Assets",null,"(C) ABS and Struct. Sec. - Comments 76",{"$f":"'Schedule VI'!I910","v":0},null,null,null,null,null,null,null,{"$f":"'Schedule VI (EBS)'!I910","v":0}]
["Sch VI","Schedule of Assets",null,"(C) ABS and Struct. Sec. - Comments 91",{"$f":"'Schedule VI'!I925","v":0},null,null,null,null,null,null,null,{"$f":"'Schedule VI (EBS)'!I925","v":0}]
["Sch VI","Schedule of Assets",null,"(C) ABS and Struct. Sec. - Comments 113",{"$f":"'Schedule VI'!I947","v":0},null,null,null,null,null,null,null,{"$f":"'Schedule VI (EBS)'!I947","v":0}]
["Sch VI","Schedule of Assets",null,"(C) ABS and Struct. Sec. - Comments 147",{"$f":"'Schedule VI'!I981","v":0},null,null,null,null,null,null,null,{"$f":"'Schedule VI (EBS)'!I981","v":0}]
["Sch VI","Schedule of Assets",null,"(D) Loans - Asset Type 21",{"$f":"'Schedule VI'!B1013","v":"Select"},null,null,null,null,null,null,null,{"$f":"'Schedule VI (EBS)'!B1013","v":"Select"}]
["Sch VI","Schedule of Assets",null,"(D) Loans - Asset Type 27",{"$f":"'Schedule VI'!B1019","v":"Select"},null,null,null,null,null,null,null,{"$f":"'Schedule VI (EBS)'!B1019","v":"Select"}]
["Sch VI","Schedule of Assets",null,"(D) Loans - Asset Type 58",{"$f":"'Schedule VI'!B1050","v":"Select"},null,null,null,null,null,null,null,{"$f":"'Schedule VI (EBS)'!B1050","v":"Select"}]
["Sch VI","Schedule of Assets",null,"(D) Loans - Asset Type 83",{"$f":"'Schedule VI'!B1075","v":"Select"},null,null,null,null,null,null,null,{"$f":"'Schedule VI (EBS)'!B1075","v":"Select"}]
["Sch VI","Schedule of Assets",null,"(D) Loans - Asset Type 91",{"$f":"'Schedule VI'!B1083","v":"Select"},null,null,null,null,null,null,null,{"$f":"'Schedule VI (EBS)'!B1083","v":"Select"}]
["Sch VI","Schedule of Assets",null,"(D) Loans - Currency 18",{"$f":"'Schedule VI'!C1010","v":"Select"},null,null,null,null,null,null,null,{"$f":"'Schedule VI (EBS)'!C1010","v":"Select"}]
["Sch VI","Schedule of Assets",null,"(D) Loans - Currency 50",{"$f":"'Schedule VI'!C1042","v":"Select"},null,null,null,null,null,null,null,{"$f":"'Schedule VI (EBS)'!C1042","v":"Select"}]
["Sch VI","Schedule of Assets",null,"(D) Loans - Currency 53",{"$f":"'Schedule VI'!C1045","v":"Select"},null,null,null,null,null,null,null,{"$f":"'Schedule VI (EBS)'!C1045","v":"Select"}]
["Sch VI","Schedule of Assets",null,"(D) Loans - Currency 87",{"$f":"'Schedule VI'!C1079","v":"Select"},null,null,null,null,null,null,null,{"$f":"'Schedule VI (EBS)'!C1079","v":"Select"}]
["Sch VI","Schedule of Assets",null,"(D) Loans - Country 5",{"$f":"'Schedule VI'!D997","v":"Select"},null,null,null,null,null,null,null,{"$f":"'Schedule VI (EBS)'!D997","v":"Select"}]
["Sch VI","Schedule of Assets",null,"(D) Loans - Country 24",{"$f":"'Schedule VI'!D1016","v":"Select"},null,null,null,null,null,null,null,{"$f":"'Schedule VI (EBS)'!D1016","v":"Select"}]
["Sch VI","Schedule of Assets",null,"(D) Loans - Country 41",{"$f":"'Schedule VI'!D1033","v":"Select"},null,null,null,null,null,null,null,{"$f":"'Schedule VI (EBS)'!D1033","v":"Select"}]
["Sch VI","Schedule of Assets",null,"(D) Loans - Country 81",{"$f":"'Schedule VI'!D1073","v":"Select"},null,null,null,null,null,null,null,{"$f":"'Schedule VI (EBS)'!D1073","v":"Select"}]
["Sch VI","Schedule of Assets",null,"(D) Loans - Country 100",{"$f":"'Schedule VI'!D1092","v":"Select"},null,null,null,null,null,null,null,{"$f":"'Schedule VI (EBS)'!D1092","v":"Select"}]
["Sch VI","Schedule of Assets",null,"(D) Loans - Rating 12",{"$f":"'Schedule VI'!E1004","v":"Select"},null,null,null,null,null,null,null,{"$f":"'Schedule VI (EBS)'!E1004","v":"Select"}]
["Sch VI","Schedule of Assets",null,"(D) Loans - Rating 37",{"$f":"'Schedule VI'!E1029","v":"Select"},null,null,null,null,null,null,null,{"$f":"'Schedule VI (EBS)'!E1029","v":"Select"}]
["Sch VI","Schedule of Assets",null,"(D) Loans - Rating 47",{"$f":"'Schedule VI'!E1039","v":"Select"},null,null,null,null,null,null,null,{"$f":"'Schedule VI (EBS)'!E1039","v":"Select"}]
["Sch VI","Schedule of Assets",null,"(D) Loans - Rating 70",{"$f":"'Schedule VI'!E1062","v":"Select"},null,null,null,null,null,null,null,{"$f":"'Schedule VI (EBS)'!E1062","v":"Select"}]
["Sch VI","Schedule of Assets",null,"(D) Loans - Nominal Amount 3",{"$f":"'Schedule VI'!F995","v":0},null,null,null,null,null,null,null,{"$f":"'Schedule VI (EBS)'!F995","v":0}]
["Sch VI","Schedule of Assets",null,"(D) Loans - Nominal Amount 29",{"$f":"'Schedule VI'!F1021","v":0},null,null,null,null,null,null,null,{"$f":"'Schedule VI (EBS)'!F1021","v":0}]
["Sch VI","Schedule of Assets",null,"(D) Loans - Nominal Amount 38",{"$f":"'Schedule VI'!F1030","v":0},null,null,null,null,null,null,null,{"$f":"'Schedule VI (EBS)'!F1030","v":0}]
["Sch VI","Schedule of Assets",null,"(D) Loans - Nominal Amount 66",{"$f":"'Schedule VI'!F1058","v":0},null,null,null,null,null,null,null,{"$f":"'Schedule VI (EBS)'!F1058","v":0}]
["Sch VI","Schedule of Assets",null,"(D) Loans - Nominal Amount 90",{"$f":"'Schedule VI'!F1082","v":0},null,null,null,null,null,null,null,{"$f":"'Schedule VI (EBS)'!F1082","v":0}]
["Sch VI","Schedule of Assets",null,"(D) Loans - Fair Value 3",{"$f":"'Schedule VI'!G995","v":0},null,null,null,null,null,null,null,{"$f":"'Schedule VI (EBS)'!G995","v":0}]
["Sch VI","Schedule of Assets",null,"(D) Loans - Fair Value 25",{"$f":"'Schedule VI'!G1017","v":0},null,null,null,null,null,null,null,{"$f":"'Schedule VI (EBS)'!G1017","v":0}]
["Sch VI","Schedule of Assets",null,"(D) Loans - Fair Value 58",{"$f":"'Schedule VI'!G1050","v":0},null,null,null,null,null,null,null,{"$f":"'Schedule VI (EBS)'!G1050","v":0}]
["Sch VI","Schedule of Assets",null,"(D) Loans - Fair Value 81",{"$f":"'Schedule VI'!G1073","v":0},null,null,null,null,null,null,null,{"$f":"'Schedule VI (EBS)'!G1073","v":0}]
["Sch VI","Schedule of Assets",null,"(D) Loans - Fair Value 95",{"$f":"'Schedule VI'!G1087","v":0},null,null,null,null,null,null,null,{"$f":"'Schedule VI (EBS)'!G1087","v":0}]
["Sch VI","Schedule of Assets",null,"(D) Loans - Weighted Avg YTM 16",{"$f":"'Schedule VI'!H1008","v":0},null,null,null,null,null,null,null,{"$f":"'Schedule VI (EBS)'!H1008","v":0}]
["Sch VI","Schedule of Assets",null,"(D) Loans - Weighted Avg YTM 32",{"$f":"'Schedule VI'!H1024","v":0},null,null,null,null,null,null,null,{"$f":"'Schedule VI (EBS)'!H1024","v":0}]
["Sch VI","Schedule of Assets",null,"(D) Loans - Weighted Avg YTM 68",{"$f":"'Schedule VI'!H1060","v":0},null,null,null,null,null,null,null,{"$f":"'Schedule VI (EBS)'!H1060","v":0}]
["Sch VI","Schedule of Assets",null,"(D) Loans - Weighted Avg YTM 69",{"$f":"'Schedule VI'!H1061","v":0},null,null,null,null,null,null,null,{"$f":"'Schedule VI (EBS)'!H1061","v":0}]
["Sch VI","Schedule of Assets",null,"(D) Loans - Effective Duration 3",{"$f":"'Schedule VI'!I995","v":0},null,null,null,null,null,null,null,{"$f":"'Schedule VI (EBS)'!I995","v":0}]
["Sch VI","Schedule of Assets",null,"(D) Loans - Effective Duration 28",{"$f":"'Schedule VI'!I1020","v":0},null,null,null,null,null,null,null,{"$f":"'Schedule VI (EBS)'!I1020","v":0}]
["Sch VI","Schedule of Assets",null,"(D) Loans - Effective Duration 38",{"$f":"'Schedule VI'!I1030","v":0},null,null,null,null,null,null,null,{"$f":"'Schedule VI (EBS)'!I1030","v":0}]
["Sch VI","Schedule of Assets",null,"(D) Loans - Effective Duration 61",{"$f":"'Schedule VI'!I1053","v":0},null,null,null,null,null,null,null,{"$f":"'Schedule VI (EBS)'!I1053","v":0}]
["Sch VI","Schedule of Assets",null,"(D) Loans - Effective Duration 82",{"$f":"'Schedule VI'!I1074","v":0},null,null,null,null,null,null,null,{"$f":"'Schedule VI (EBS)'!I1074","v":0}]
["Sch VI","Schedule of Assets",null,"(D) Loans - Comments 10",{"$f":"'Schedule VI'!J1002","v":0},null,null,null,null,null,null,null,{"$f":"'Schedule VI (EBS)'!J1002","v":0}]
["Sch VI","Schedule of Assets",null,"(D) Loans - Comments 37",{"$f":"'Schedule VI'!J1029","v":0},null,null,null,null,null,null,null,{"$f":"'Schedule VI (EBS)'!J1029","v":0}]
["Sch VI","Schedule of Assets",null,"(D) Loans - Comments 45",{"$f":"'Schedule VI'!J1037","v":0},null,null,null,null,null,null,null,{"$f":"'Schedule VI (EBS)'!J1037","v":0}]
["Sch VI","Schedule of Assets",null,"(D) Loans - Comments 74",{"$f":"'Schedule VI'!J1066","v":0},null,null,null,null,null,null,null,{"$f":"'Schedule VI (EBS)'!J1066","v":0}]
["Sch VI","Schedule of Assets",null,"(D) Loans Not Perform. - # of Asset Types",{"$f":"'Schedule VI'!D1098","v":0},null,null,null,null,null,null,null,{"$f":"'Schedule VI (EBS)'!D1098","v":0}]
["Sch VI","Schedule of Assets",null,"(D) Loans Not Perform. - Asset Type 10",{"$f":"'Schedule VI'!B1110","v":"Select"},null,null,null,null,null,null,null,{"$f":"'Schedule VI (EBS)'!B1110","v":"Select"}]
["Sch VI","Schedule of Assets",null,"(D) Loans Not Perform. - Currency 11",{"$f":"'Schedule VI'!C1111","v":"Select"},null,null,null,null,null,null,null,{"$f":"'Schedule VI (EBS)'!C1111","v":"Select"}]
["Sch VI","Schedule of Assets",null,"(D) Loans Not Perform. - Rating 9",{"$f":"'Schedule VI'!E1109","v":"Select"},null,null,null,null,null,null,null,{"$f":"'Schedule VI (EBS)'!E1109","v":"Select"}]
["Sch VI","Schedule of Assets",null,"(D) Loans Not Perform. - Nominal Amount 7",{"$f":"'Schedule VI'!F1107","v":0},null,null,null,null,null,null,null,{"$f":"'Schedule VI (EBS)'!F1107","v":0}]
["Sch VI","Schedule of Assets",null,"(D) Loans Not Perform. - Fair Value 6",{"$f":"'Schedule VI'!G1106","v":0},null,null,null,null,null,null,null,{"$f":"'Schedule VI (EBS)'!G1106","v":0}]
["Sch VI","Schedule of Assets",null,"(D) Loans Not Perform. - Comment 2",{"$f":"'Schedule VI'!H1102","v":0},null,null,null,null,null,null,null,{"$f":"'Schedule VI (EBS)'!H1102","v":0}]
["Sch VI","Schedule of Assets",null,"(D) Loans Not Perform. - Comment 19",{"$f":"'Schedule VI'!H1119","v":0},null,null,null,null,null,null,null,{"$f":"'Schedule VI (EBS)'!H1119","v":0}]
["Sch VI","Schedule of Assets",null,"(E) Preferred Equities - Asset Type 16",{"$f":"'Schedule VI'!B1144","v":"Select"},null,null,null,null,null,null,null,{"$f":"'Schedule VI (EBS)'!B1144","v":"Select"}]
["Sch VI","Schedule of Assets",null,"(E) Preferred Equities - Asset Type 57",{"$f":"'Schedule VI'!B1185","v":"Select"},null,null,null,null,null,null,null,{"$f":"'Schedule VI (EBS)'!B1185","v":"Select"}]
["Sch VI","Schedule of Assets",null,"(E) Preferred Equities - Asset Type 68",{"$f":"'Schedule VI'!B1196","v":"Select"},null,null,null,null,null,null,null,{"$f":"'Schedule VI (EBS)'!B1196","v":"Select"}]
["Sch VI","Schedule of Assets",null,"(E) Preferred Equities - Asset Type 94",{"$f":"'Schedule VI'!B1222","v":"Select"},null,null,null,null,null,null,null,{"$f":"'Schedule VI (EBS)'!B1222","v":"Select"}]
["Sch VI","Schedule of Assets",null,"(E) Preferred Equities - Currency 3",{"$f":"'Schedule VI'!C1131","v":"Select"},null,null,null,null,null,null,null,{"$f":"'Schedule VI (EBS)'!C1131","v":"Select"}]
["Sch VI","Schedule of Assets",null,"(E) Preferred Equities - Currency 31",{"$f":"'Schedule VI'!C1159","v":"Select"},null,null,null,null,null,null,null,{"$f":"'Schedule VI (EBS)'!C1159","v":"Select"}]
["Sch VI","Schedule of Assets",null,"(E) Preferred Equities - Currency 59",{"$f":"'Schedule VI'!C1187","v":"Select"},null,null,null,null,null,null,null,{"$f":"'Schedule VI (EBS)'!C1187","v":"Select"}]
["Sch VI","Schedule of Assets",null,"(E) Preferred Equities - Currency 86",{"$f":"'Schedule VI'!C1214","v":"Select"},null,null,null,null,null,null,null,{"$f":"'Schedule VI (EBS)'!C1214","v":"Select"}]
["Sch VI","Schedule of Assets",null,"(E) Preferred Equities - Currency 94",{"$f":"'Schedule VI'!C1222","v":"Select"},null,null,null,null,null,null,null,{"$f":"'Schedule VI (EBS)'!C1222","v":"Select"}]
["Sch VI","Schedule of Assets",null,"(E) Preferred Equities - Rating 23",{"$f":"'Schedule VI'!D1151","v":"Select"},null,null,null,null,null,null,null,{"$f":"'Schedule VI (EBS)'!D1151","v":"Select"}]
["Sch VI","Schedule of Assets",null,"(E) Preferred Equities - Rating 46",{"$f":"'Schedule VI'!D1174","v":"Select"},null,null,null,null,null,null,null,{"$f":"'Schedule VI (EBS)'!D1174","v":"Select"}]
["Sch VI","Schedule of Assets",null,"(E) Preferred Equities - Rating 60",{"$f":"'Schedule VI'!D1188","v":"Select"},null,null,null,null,null,null,null,{"$f":"'Schedule VI (EBS)'!D1188","v":"Select"}]
["Sch VI","Schedule of Assets",null,"(E) Preferred Equities - Rating 81",{"$f":"'Schedule VI'!D1209","v":"Select"},null,null,null,null,null,null,null,{"$f":"'Schedule VI (EBS)'!D1209","v":"Select"}]
["Sch VI","Schedule of Assets",null,"(E) Preferred Equities - Rating 97",{"$f":"'Schedule VI'!D1225","v":"Select"},null,null,null,null,null,null,null,{"$f":"'Schedule VI (EBS)'!D1225","v":"Select"}]
["Sch VI","Schedule of Assets",null,"(E) Preferred Equities - Nominal Amount 36",{"$f":"'Schedule VI'!E1164","v":0},null,null,null,null,null,null,null,{"$f":"'Schedule VI (EBS)'!E1164","v":0}]
["Sch VI","Schedule of Assets",null,"(E) Preferred Equities - Nominal Amount 53",{"$f":"'Schedule VI'!E1181","v":0},null,null,null,null,null,null,null,{"$f":"'Schedule VI (EBS)'!E1181","v":0}]
["Sch VI","Schedule of Assets",null,"(E) Preferred Equities - Nominal Amount 73",{"$f":"'Schedule VI'!E1201","v":0},null,null,null,null,null,null,null,{"$f":"'Schedule VI (EBS)'!E1201","v":0}]
["Sch VI","Schedule of Assets",null,"(E) Preferred Equities - Nominal Amount 88",{"$f":"'Schedule VI'!E1216","v":0},null,null,null,null,null,null,null,{"$f":"'Schedule VI (EBS)'!E1216","v":0}]
["Sch VI","Schedule of Assets",null,"(E) Preferred Equities - Fair Value 10",{"$f":"'Schedule VI'!F1138","v":0},null,null,null,null,null,null,null,{"$f":"'Schedule VI (EBS)'!F1138","v":0}]
["Sch VI","Schedule of Assets",null,"(E) Preferred Equities - Fair Value 44",{"$f":"'Schedule VI'!F1172","v":0},null,null,null,null,null,null,null,{"$f":"'Schedule VI (EBS)'!F1172","v":0}]
["Sch VI","Schedule of Assets",null,"(E) Preferred Equities - Fair Value 65",{"$f":"'Schedule VI'!F1193","v":0},null,null,null,null,null,null,null,{"$f":"'Schedule VI (EBS)'!F1193","v":0}]
["Sch VI","Schedule of Assets",null,"(E) Preferred Equities - Fair Value 79",{"$f":"'Schedule VI'!F1207","v":0},null,null,null,null,null,null,null,{"$f":"'Schedule VI (EBS)'!F1207","v":0}]
["Sch VI","Schedule of Assets",null,"(E) Preferred Equities - Weighted Avg YTM 2",{"$f":"'Schedule VI'!G1130","v":0},null,null,null,null,null,null,null,{"$f":"'Schedule VI (EBS)'!G1130","v":0}]
["Sch VI","Schedule of Assets",null,"(E) Preferred Equities - Weighted Avg YTM 10",{"$f":"'Schedule VI'!G1138","v":0},null,null,null,null,null,null,null,{"$f":"'Schedule VI (EBS)'!G1138","v":0}]
["Sch VI","Schedule of Assets",null,"(E) Preferred Equities - Weighted Avg YTM 39",{"$f":"'Schedule VI'!G1167","v":0},null,null,null,null,null,null,null,{"$f":"'Schedule VI (EBS)'!G1167","v":0}]
["Sch VI","Schedule of Assets",null,"(E) Preferred Equities - Weighted Avg YTM 66",{"$f":"'Schedule VI'!G1194","v":0},null,null,null,null,null,null,null,{"$f":"'Schedule VI (EBS)'!G1194","v":0}]
["Sch VI","Schedule of Assets",null,"(E) Preferred Equities - Weighted Avg YTM 76",{"$f":"'Schedule VI'!G1204","v":0},null,null,null,null,null,null,null,{"$f":"'Schedule VI (EBS)'!G1204","v":0}]
["Sch VI","Schedule of Assets",null,"(E) Preferred Equities - Effective Duration 1",{"$f":"'Schedule VI'!H1129","v":0},null,null,null,null,null,null,null,{"$f":"'Schedule VI (EBS)'!H1129","v":0}]
["Sch VI","Schedule of Assets",null,"(E) Preferred Equities - Effective Duration 31",{"$f":"'Schedule VI'!H1159","v":0},null,null,null,null,null,null,null,{"$f":"'Schedule VI (EBS)'!H1159","v":0}]
["Sch VI","Schedule of Assets",null,"(E) Preferred Equities - Effective Duration 57",{"$f":"'Schedule VI'!H1185","v":0},null,null,null,null,null,null,null,{"$f":"'Schedule VI (EBS)'!H1185","v":0}]
["Sch VI","Schedule of Assets",null,"(E) Preferred Equities - Effective Duration 68",{"$f":"'Schedule VI'!H1196","v":0},null,null,null,null,null,null,null,{"$f":"'Schedule VI (EBS)'!H1196","v":0}]
["Sch VI","Schedule of Assets",null,"(E) Preferred Equities - Effective Duration 92",{"$f":"'Schedule VI'!H1220","v":0},null,null,null,null,null,null,null,{"$f":"'Schedule VI (EBS)'!H1220","v":0}]
["Sch VI","Schedule of Assets",null,"(E) Preferred Equities - Comments 5",{"$f":"'Schedule VI'!I1133","v":0},null,null,null,null,null,null,null,{"$f":"'Schedule VI (EBS)'!I1133","v":0}]
["Sch VI","Schedule of Assets",null,"(E) Preferred Equities - Comments 44",{"$f":"'Schedule VI'!I1172","v":0},null,null,null,null,null,null,null,{"$f":"'Schedule VI (EBS)'!I1172","v":0}]
["Sch VI","Schedule of Assets",null,"(E) Preferred Equities - Comments 64",{"$f":"'Schedule VI'!I1192","v":0},null,null,null,null,null,null,null,{"$f":"'Schedule VI (EBS)'!I1192","v":0}]
["Sch VI","Schedule of Assets",null,"(E) Preferred Equities - Comments 79",{"$f":"'Schedule VI'!I1207","v":0},null,null,null,null,null,null,null,{"$f":"'Schedule VI (EBS)'!I1207","v":0}]
["Sch VI","Schedule of Assets",null,"(E) Preferred Equities - Comments 97",{"$f":"'Schedule VI'!I1225","v":0},null,null,null,null,null,null,null,{"$f":"'Schedule VI (EBS)'!I1225","v":0}]
["Sch VI","Schedule of Assets",null,"(F) Common Equities - Asset Type 13",{"$f":"'Schedule VI'!B1249","v":"Select"},null,null,null,null,null,null,null,{"$f":"'Schedule VI (EBS)'!B1249","v":"Select"}]
["Sch VI","Schedule of Assets",null,"(F) Common Equities - Asset Type 33",{"$f":"'Schedule VI'!B1269","v":"Select"},null,null,null,null,null,null,null,{"$f":"'Schedule VI (EBS)'!B1269","v":"Select"}]
["Sch VI","Schedule of Assets",null,"(F) Common Equities - Asset Type 69",{"$f":"'Schedule VI'!B1305","v":"Select"},null,null,null,null,null,null,null,{"$f":"'Schedule VI (EBS)'!B1305","v":"Select"}]
["Sch VI","Schedule of Assets",null,"(F) Common Equities - Asset Type 92",{"$f":"'Schedule VI'!B1328","v":"Select"},null,null,null,null,null,null,null,{"$f":"'Schedule VI (EBS)'!B1328","v":"Select"}]
["Sch VI","Schedule of Assets",null,"(F) Common Equities - Currency 9",{"$f":"'Schedule VI'!C1245","v":"Select"},null,null,null,null,null,null,null,{"$f":"'Schedule VI (EBS)'!C1245","v":"Select"}]
["Sch VI","Schedule of Assets",null,"(F) Common Equities - Currency 20",{"$f":"'Schedule VI'!C1256","v":"Select"},null,null,null,null,null,null,null,{"$f":"'Schedule VI (EBS)'!C1256","v":"Select"}]
["Sch VI","Schedule of Assets",null,"(F) Common Equities - Currency 46",{"$f":"'Schedule VI'!C1282","v":"Select"},null,null,null,null,null,null,null,{"$f":"'Schedule VI (EBS)'!C1282","v":"Select"}]
["Sch VI","Schedule of Assets",null,"(F) Common Equities - Currency 72",{"$f":"'Schedule VI'!C1308","v":"Select"},null,null,null,null,null,null,null,{"$f":"'Schedule VI (EBS)'!C1308","v":"Select"}]
["Sch VI","Schedule of Assets",null,"(F) Common Equities - Currency 83",{"$f":"'Schedule VI'!C1319","v":"Select"},null,null,null,null,null,null,null,{"$f":"'Schedule VI (EBS)'!C1319","v":"Select"}]
["Sch VI","Schedule of Assets",null,"(F) Common Equities - Country 7",{"$f":"'Schedule VI'!D1243","v":"Select"},null,null,null,null,null,null,null,{"$f":"'Schedule VI (EBS)'!D1243","v":"Select"}]
["Sch VI","Schedule of Assets",null,"(F) Common Equities - Country 42",{"$f":"'Schedule VI'!D1278","v":"Select"},null,null,null,null,null,null,null,{"$f":"'Schedule VI (EBS)'!D1278","v":"Select"}]
["Sch VI","Schedule of Assets",null,"(F) Common Equities - Country 63",{"$f":"'Schedule VI'!D1299","v":"Select"},null,null,null,null,null,null,null,{"$f":"'Schedule VI (EBS)'!D1299","v":"Select"}]
["Sch VI","Schedule of Assets",null,"(F) Common Equities - Country 75",{"$f":"'Schedule VI'!D1311","v":"Select"},null,null,null,null,null,null,null,{"$f":"'Schedule VI (EBS)'!D1311","v":"Select"}]
["Sch VI","Schedule of Assets",null,"(F) Common Equities - Country 98",{"$f":"'Schedule VI'!D1334","v":"Select"},null,null,null,null,null,null,null,{"$f":"'Schedule VI (EBS)'!D1334","v":"Select"}]
["Sch VI","Schedule of Assets",null,"(F) Common Equities - Fair Value 12",{"$f":"'Schedule VI'!E1248","v":0},null,null,null,null,null,null,null,{"$f":"'Schedule VI (EBS)'!E1248","v":0}]
["Sch VI","Schedule of Assets",null,"(F) Common Equities - Fair Value 33",{"$f":"'Schedule VI'!E1269","v":0},null,null,null,null,null,null,null,{"$f":"'Schedule VI (EBS)'!E1269","v":0}]
["Sch VI","Schedule of Assets",null,"(F) Common Equities - Fair Value 71",{"$f":"'Schedule VI'!E1307","v":0},null,null,null,null,null,null,null,{"$f":"'Schedule VI (EBS)'!E1307","v":0}]
["Sch VI","Schedule of Assets",null,"(F) Common Equities - Fair Value 85",{"$f":"'Schedule VI'!E1321","v":0},null,null,null,null,null,null,null,{"$f":"'Schedule VI (EBS)'!E1321","v":0}]
["Sch VI","Schedule of Assets",null,"(F) Common Equities - Comments 8",{"$f":"'Schedule VI'!F1244","v":0},null,null,null,null,null,null,null,{"$f":"'Schedule VI (EBS)'!F1244","v":0}]
["Sch VI","Schedule of Assets",null,"(F) Common Equities - Comments 20",{"$f":"'Schedule VI'!F1256","v":0},null,null,null,null,null,null,null,{"$f":"'Schedule VI (EBS)'!F1256","v":0}]
["Sch VI","Schedule of Assets",null,"(F) Common Equities - Comments 41",{"$f":"'Schedule VI'!F1277","v":0},null,null,null,null,null,null,null,{"$f":"'Schedule VI (EBS)'!F1277","v":0}]
["Sch VI","Schedule of Assets",null,"(F) Common Equities - Comments 76",{"$f":"'Schedule VI'!F1312","v":0},null,null,null,null,null,null,null,{"$f":"'Schedule VI (EBS)'!F1312","v":0}]
["Sch VI","Schedule of Assets",null,"(F) Common Equities - Comments 100",{"$f":"'Schedule VI'!F1336","v":0},null,null,null,null,null,null,null,{"$f":"'Schedule VI (EBS)'!F1336","v":0}]
["Sch VI","Schedule of Assets",null,"(G) Real Estate - Asset Type 10",{"$f":"'Schedule VI'!B1354","v":"Select"},null,null,null,null,null,null,null,{"$f":"'Schedule VI (EBS)'!B1354","v":"Select"}]
["Sch VI","Schedule of Assets",null,"(G) Real Estate - Asset Type 36",{"$f":"'Schedule VI'!B1380","v":"Select"},null,null,null,null,null,null,null,{"$f":"'Schedule VI (EBS)'!B1380","v":"Select"}]
["Sch VI","Schedule of Assets",null,"(G) Real Estate - Asset Type 62",{"$f":"'Schedule VI'!B1406","v":"Select"},null,null,null,null,null,null,null,{"$f":"'Schedule VI (EBS)'!B1406","v":"Select"}]
["Sch VI","Schedule of Assets",null,"(G) Real Estate - Asset Type 73",{"$f":"'Schedule VI'!B1417","v":"Select"},null,null,null,null,null,null,null,{"$f":"'Schedule VI (EBS)'!B1417","v":"Select"}]
["Sch VI","Schedule of Assets",null,"(G) Real Estate - Asset Type 97",{"$f":"'Schedule VI'!B1441","v":"Select"},null,null,null,null,null,null,null,{"$f":"'Schedule VI (EBS)'!B1441","v":"Select"}]
["Sch VI","Schedule of Assets",null,"(G) Real Estate - Currency 28",{"$f":"'Schedule VI'!C1372","v":"Select"},null,null,null,null,null,null,null,{"$f":"'Schedule VI (EBS)'!C1372","v":"Select"}]
["Sch VI","Schedule of Assets",null,"(G) Real Estate - Currency 49",{"$f":"'Schedule VI'!C1393","v":"Select"},null,null,null,null,null,null,null,{"$f":"'Schedule VI (EBS)'!C1393","v":"Select"}]
["Sch VI","Schedule of Assets",null,"(G) Real Estate - Currency 69",{"$f":"'Schedule VI'!C1413","v":"Select"},null,null,null,null,null,null,null,{"$f":"'Schedule VI (EBS)'!C1413","v":"Select"}]
["Sch VI","Schedule of Assets",null,"(G) Real Estate - Currency 86",{"$f":"'Schedule VI'!C1430","v":"Select"},null,null,null,null,null,null,null,{"$f":"'Schedule VI (EBS)'!C1430","v":"Select"}]
["Sch VI","Schedule of Assets",null,"(G) Real Estate - Country 4",{"$f":"'Schedule VI'!D1348","v":"Select"},null,null,null,null,null,null,null,{"$f":"'Schedule VI (EBS)'!D1348","v":"Select"}]
["Sch VI","Schedule of Assets",null,"(G) Real Estate - Country 19",{"$f":"'Schedule VI'!D1363","v":"Select"},null,null,null,null,null,null,null,{"$f":"'Schedule VI (EBS)'!D1363","v":"Select"}]
["Sch VI","Schedule of Assets",null,"(G) Real Estate - Country 60",{"$f":"'Schedule VI'!D1404","v":"Select"},null,null,null,null,null,null,null,{"$f":"'Schedule VI (EBS)'!D1404","v":"Select"}]
["Sch VI","Schedule of Assets",null,"(G) Real Estate - Country 78",{"$f":"'Schedule VI'!D1422","v":"Select"},null,null,null,null,null,null,null,{"$f":"'Schedule VI (EBS)'!D1422","v":"Select"}]
["Sch VI","Schedule of Assets",null,"(G) Real Estate - Country 95",{"$f":"'Schedule VI'!D1439","v":"Select"},null,null,null,null,null,null,null,{"$f":"'Schedule VI (EBS)'!D1439","v":"Select"}]
["Sch VI","Schedule of Assets",null,"(G) Real Estate - Purpose 15",{"$f":"'Schedule VI'!E1359","v":"Select"},null,null,null,null,null,null,null,{"$f":"'Schedule VI (EBS)'!E1359","v":"Select"}]
["Sch VI","Schedule of Assets",null,"(G) Real Estate - Purpose 47",{"$f":"'Schedule VI'!E1391","v":"Select"},null,null,null,null,null,null,null,{"$f":"'Schedule VI (EBS)'!E1391","v":"Select"}]
["Sch VI","Schedule of Assets",null,"(G) Real Estate - Purpose 52",{"$f":"'Schedule VI'!E1396","v":"Select"},null,null,null,null,null,null,null,{"$f":"'Schedule VI (EBS)'!E1396","v":"Select"}]
["Sch VI","Schedule of Assets",null,"(G) Real Estate - Purpose 82",{"$f":"'Schedule VI'!E1426","v":"Select"},null,null,null,null,null,null,null,{"$f":"'Schedule VI (EBS)'!E1426","v":"Select"}]
["Sch VI","Schedule of Assets",null,"(G) Real Estate - Cost 7",{"$f":"'Schedule VI'!F1351","v":0},null,null,null,null,null,null,null,{"$f":"'Schedule VI (EBS)'!F1351","v":0}]
["Sch VI","Schedule of Assets",null,"(G) Real Estate - Cost 17",{"$f":"'Schedule VI'!F1361","v":0},null,null,null,null,null,null,null,{"$f":"'Schedule VI (EBS)'!F1361","v":0}]
["Sch VI","Schedule of Assets",null,"(G) Real Estate - Cost 44",{"$f":"'Schedule VI'!F1388","v":0},null,null,null,null,null,null,null,{"$f":"'Schedule VI (EBS)'!F1388","v":0}]
["Sch VI","Schedule of Assets",null,"(G) Real Estate - Cost 73",{"$f":"'Schedule VI'!F1417","v":0},null,null,null,null,null,null,null,{"$f":"'Schedule VI (EBS)'!F1417","v":0}]
["Sch VI","Schedule of Assets",null,"(G) Real Estate - Cost 81",{"$f":"'Schedule VI'!F1425","v":0},null,null,null,null,null,null,null,{"$f":"'Schedule VI (EBS)'!F1425","v":0}]
["Sch VI","Schedule of Assets",null,"(G) Real Estate - Fair Value 4",{"$f":"'Schedule VI'!G1348","v":0},null,null,null,null,null,null,null,{"$f":"'Schedule VI (EBS)'!G1348","v":0}]
["Sch VI","Schedule of Assets",null,"(G) Real Estate - Fair Value 40",{"$f":"'Schedule VI'!G1384","v":0},null,null,null,null,null,null,null,{"$f":"'Schedule VI (EBS)'!G1384","v":0}]
["Sch VI","Schedule of Assets",null,"(G) Real Estate - Fair Value 60",{"$f":"'Schedule VI'!G1404","v":0},null,null,null,null,null,null,null,{"$f":"'Schedule VI (EBS)'!G1404","v":0}]
["Sch VI","Schedule of Assets",null,"(G) Real Estate - Fair Value 77",{"$f":"'Schedule VI'!G1421","v":0},null,null,null,null,null,null,null,{"$f":"'Schedule VI (EBS)'!G1421","v":0}]
["Sch VI","Schedule of Assets",null,"(G) Real Estate - Fair Value 95",{"$f":"'Schedule VI'!G1439","v":0},null,null,null,null,null,null,null,{"$f":"'Schedule VI (EBS)'!G1439","v":0}]
["Sch VI","Schedule of Assets",null,"(G) Real Estate - Comments 10",{"$f":"'Schedule VI'!H1354","v":0},null,null,null,null,null,null,null,{"$f":"'Schedule VI (EBS)'!H1354","v":0}]
["Sch VI","Schedule of Assets",null,"(G) Real Estate - Comments 30",{"$f":"'Schedule VI'!H1374","v":0},null,null,null,null,null,null,null,{"$f":"'Schedule VI (EBS)'!H1374","v":0}]
["Sch VI","Schedule of Assets",null,"(G) Real Estate - Comments 69",{"$f":"'Schedule VI'!H1413","v":0},null,null,null,null,null,null,null,{"$f":"'Schedule VI (EBS)'!H1413","v":0}]
["Sch VI","Schedule of Assets",null,"(G) Real Estate - Comments 82",{"$f":"'Schedule VI'!H1426","v":0},null,null,null,null,null,null,null,{"$f":"'Schedule VI (EBS)'!H1426","v":0}]
["Sch VI","Schedule of Assets",null,"(H) Other Alt. Inv. - Asset Type 5",{"$f":"'Schedule VI'!B1457","v":"Select"},null,null,null,null,null,null,null,{"$f":"'Schedule VI (EBS)'!B1457","v":"Select"}]
["Sch VI","Schedule of Assets",null,"(H) Other Alt. Inv. - Asset Type 22",{"$f":"'Schedule VI'!B1474","v":"Select"},null,null,null,null,null,null,null,{"$f":"'Schedule VI (EBS)'!B1474","v":"Select"}]
["Sch VI","Schedule of Assets",null,"(H) Other Alt. Inv. - Asset Type 36",{"$f":"'Schedule VI'!B1488","v":"Select"},null,null,null,null,null,null,null,{"$f":"'Schedule VI (EBS)'!B1488","v":"Select"}]
["Sch VI","Schedule of Assets",null,"(H) Other Alt. Inv. - Asset Type 59",{"$f":"'Schedule VI'!B1511","v":"Select"},null,null,null,null,null,null,null,{"$f":"'Schedule VI (EBS)'!B1511","v":"Select"}]
["Sch VI","Schedule of Assets",null,"(H) Other Alt. Inv. - Asset Type 88",{"$f":"'Schedule VI'!B1540","v":"Select"},null,null,null,null,null,null,null,{"$f":"'Schedule VI (EBS)'!B1540","v":"Select"}]
["Sch VI","Schedule of Assets",null,"(H) Other Alt. Inv. - Currency 18",{"$f":"'Schedule VI'!C1470","v":"Select"},null,null,null,null,null,null,null,{"$f":"'Schedule VI (EBS)'!C1470","v":"Select"}]
["Sch VI","Schedule of Assets",null,"(H) Other Alt. Inv. - Currency 23",{"$f":"'Schedule VI'!C1475","v":"Select"},null,null,null,null,null,null,null,{"$f":"'Schedule VI (EBS)'!C1475","v":"Select"}]
["Sch VI","Schedule of Assets",null,"(H) Other Alt. Inv. - Currency 51",{"$f":"'Schedule VI'!C1503","v":"Select"},null,null,null,null,null,null,null,{"$f":"'Schedule VI (EBS)'!C1503","v":"Select"}]
["Sch VI","Schedule of Assets",null,"(H) Other Alt. Inv. - Currency 79",{"$f":"'Schedule VI'!C1531","v":"Select"},null,null,null,null,null,null,null,{"$f":"'Schedule VI (EBS)'!C1531","v":"Select"}]
["Sch VI","Schedule of Assets",null,"(H) Other Alt. Inv. - Currency 88",{"$f":"'Schedule VI'!C1540","v":"Select"},null,null,null,null,null,null,null,{"$f":"'Schedule VI (EBS)'!C1540","v":"Select"}]
["Sch VI","Schedule of Assets",null,"(H) Other Alt. Inv. - Country 14",{"$f":"'Schedule VI'!D1466","v":"Select"},null,null,null,null,null,null,null,{"$f":"'Schedule VI (EBS)'!D1466","v":"Select"}]
["Sch VI","Schedule of Assets",null,"(H) Other Alt. Inv. - Country 47",{"$f":"'Schedule VI'!D1499","v":"Select"},null,null,null,null,null,null,null,{"$f":"'Schedule VI (EBS)'!D1499","v":"Select"}]
["Sch VI","Schedule of Assets",null,"(H) Other Alt. Inv. - Country 66",{"$f":"'Schedule VI'!D1518","v":"Select"},null,null,null,null,null,null,null,{"$f":"'Schedule VI (EBS)'!D1518","v":"Select"}]
["Sch VI","Schedule of Assets",null,"(H) Other Alt. Inv. - Country 84",{"$f":"'Schedule VI'!D1536","v":"Select"},null,null,null,null,null,null,null,{"$f":"'Schedule VI (EBS)'!D1536","v":"Select"}]
["Sch VI","Schedule of Assets",null,"(H) Other Alt. Inv. - Rating 1",{"$f":"'Schedule VI'!E1453","v":"Select"},null,null,null,null,null,null,null,{"$f":"'Schedule VI (EBS)'!E1453","v":"Select"}]
["Sch VI","Schedule of Assets",null,"(H) Other Alt. Inv. - Rating 21",{"$f":"'Schedule VI'!E1473","v":"Select"},null,null,null,null,null,null,null,{"$f":"'Schedule VI (EBS)'!E1473","v":"Select"}]
["Sch VI","Schedule of Assets",null,"(H) Other Alt. Inv. - Rating 36",{"$f":"'Schedule VI'!E1488","v":"Select"},null,null,null,null,null,null,null,{"$f":"'Schedule VI (EBS)'!E1488","v":"Select"}]
["Sch VI","Schedule of Assets",null,"(H) Other Alt. Inv. - Rating 76",{"$f":"'Schedule VI'!E1528","v":"Select"},null,null,null,null,null,null,null,{"$f":"'Schedule VI (EBS)'!E1528","v":"Select"}]
["Sch VI","Schedule of Assets",null,"(H) Other Alt. Inv. - Rating 92",{"$f":"'Schedule VI'!E1544","v":"Select"},null,null,null,null,null,null,null,{"$f":"'Schedule VI (EBS)'!E1544","v":"Select"}]
["Sch VI","Schedule of Assets",null,"(H) Other Alt. Inv. - Nominal Amount 13",{"$f":"'Schedule VI'!F1465","v":0},null,null,null,null,null,null,null,{"$f":"'Schedule VI (EBS)'!F1465","v":0}]
["Sch VI","Schedule of Assets",null,"(H) Other Alt. Inv. - Nominal Amount 23",{"$f":"'Schedule VI'!F1475","v":0},null,null,null,null,null,null,null,{"$f":"'Schedule VI (EBS)'!F1475","v":0}]
["Sch VI","Schedule of Assets",null,"(H) Other Alt. Inv. - Nominal Amount 50",{"$f":"'Schedule VI'!F1502","v":0},null,null,null,null,null,null,null,{"$f":"'Schedule VI (EBS)'!F1502","v":0}]
["Sch VI","Schedule of Assets",null,"(H) Other Alt. Inv. - Nominal Amount 79",{"$f":"'Schedule VI'!F1531","v":0},null,null,null,null,null,null,null,{"$f":"'Schedule VI (EBS)'!F1531","v":0}]
["Sch VI","Schedule of Assets",null,"(H) Other Alt. Inv. - Nominal Amount 87",{"$f":"'Schedule VI'!F1539","v":0},null,null,null,null,null,null,null,{"$f":"'Schedule VI (EBS)'!F1539","v":0}]
["Sch VI","Schedule of Assets",null,"(H) Other Alt. Inv. - Fair Value 14",{"$f":"'Schedule VI'!G1466","v":0},null,null,null,null,null,null,null,{"$f":"'Schedule VI (EBS)'!G1466","v":0}]
["Sch VI","Schedule of Assets",null,"(H) Other Alt. Inv. - Fair Value 42",{"$f":"'Schedule VI'!G1494","v":0},null,null,null,null,null,null,null,{"$f":"'Schedule VI (EBS)'!G1494","v":0}]
["Sch VI","Schedule of Assets",null,"(H) Other Alt. Inv. - Fair Value 70",{"$f":"'Schedule VI'!G1522","v":0},null,null,null,null,null,null,null,{"$f":"'Schedule VI (EBS)'!G1522","v":0}]
["Sch VI","Schedule of Assets",null,"(H) Other Alt. Inv. - Fair Value 79",{"$f":"'Schedule VI'!G1531","v":0},null,null,null,null,null,null,null,{"$f":"'Schedule VI (EBS)'!G1531","v":0}]
["Sch VI","Schedule of Assets",null,"(H) Other Alt. Inv. - Fair Value 96",{"$f":"'Schedule VI'!G1548","v":0},null,null,null,null,null,null,null,{"$f":"'Schedule VI (EBS)'!G1548","v":0}]
["Sch VI","Schedule of Assets",null,"(H) Other Alt. Inv. - Weighted Avg YTM 21",{"$f":"'Schedule VI'!H1473","v":0},null,null,null,null,null,null,null,{"$f":"'Schedule VI (EBS)'!H1473","v":0}]
["Sch VI","Schedule of Assets",null,"(H) Other Alt. Inv. - Weighted Avg YTM 55",{"$f":"'Schedule VI'!H1507","v":0},null,null,null,null,null,null,null,{"$f":"'Schedule VI (EBS)'!H1507","v":0}]
["Sch VI","Schedule of Assets",null,"(H) Other Alt. Inv. - Weighted Avg YTM 77",{"$f":"'Schedule VI'!H1529","v":0},null,null,null,null,null,null,null,{"$f":"'Schedule VI (EBS)'!H1529","v":0}]
["Sch VI","Schedule of Assets",null,"(H) Other Alt. Inv. - Weighted Avg YTM 92",{"$f":"'Schedule VI'!H1544","v":0},null,null,null,null,null,null,null,{"$f":"'Schedule VI (EBS)'!H1544","v":0}]
["Sch VI","Schedule of Assets",null,"(H) Other Alt. Inv. - Effective Duration 8",{"$f":"'Schedule VI'!I1460","v":0},null,null,null,null,null,null,null,{"$f":"'Schedule VI (EBS)'!I1460","v":0}]
["Sch VI","Schedule of Assets",null,"(H) Other Alt. Inv. - Effective Duration 29",{"$f":"'Schedule VI'!I1481","v":0},null,null,null,null,null,null,null,{"$f":"'Schedule VI (EBS)'!I1481","v":0}]
["Sch VI","Schedule of Assets",null,"(H) Other Alt. Inv. - Effective Duration 64",{"$f":"'Schedule VI'!I1516","v":0},null,null,null,null,null,null,null,{"$f":"'Schedule VI (EBS)'!I1516","v":0}]
["Sch VI","Schedule of Assets",null,"(H) Other Alt. Inv. - Effective Duration 66",{"$f":"'Schedule VI'!I1518","v":0},null,null,null,null,null,null,null,{"$f":"'Schedule VI (EBS)'!I1518","v":0}]
["Sch VI","Schedule of Assets",null,"(H) Other Alt. Inv. - Effective Duration 99",{"$f":"'Schedule VI'!I1551","v":0},null,null,null,null,null,null,null,{"$f":"'Schedule VI (EBS)'!I1551","v":0}]
["Sch VI","Schedule of Assets",null,"(H) Other Alt. Inv. - Comments 21",{"$f":"'Schedule VI'!J1473","v":0},null,null,null,null,null,null,null,{"$f":"'Schedule VI (EBS)'!J1473","v":0}]
["Sch VI","Schedule of Assets",null,"(H) Other Alt. Inv. - Comments 34",{"$f":"'Schedule VI'!J1486","v":0},null,null,null,null,null,null,null,{"$f":"'Schedule VI (EBS)'!J1486","v":0}]
["Sch VI","Schedule of Assets",null,"(H) Other Alt. Inv. - Comments 58",{"$f":"'Schedule VI'!J1510","v":0},null,null,null,null,null,null,null,{"$f":"'Schedule VI (EBS)'!J1510","v":0}]
["Sch VI","Schedule of Assets",null,"(H) Other Alt. Inv. - Comments 86",{"$f":"'Schedule VI'!J1538","v":0},null,null,null,null,null,null,null,{"$f":"'Schedule VI (EBS)'!J1538","v":0}]
["Sch VI","Schedule of Assets",null,"(H) Other Alt. Inv. - Comments 95",{"$f":"'Schedule VI'!J1547","v":0},null,null,null,null,null,null,null,{"$f":"'Schedule VI (EBS)'!J1547","v":0}]
["Sch VI","Schedule of Assets",null,"(I) Derivatives - Derivative Type 20",{"$f":"'Schedule VI'!B1579","v":"Select"},null,null,null,null,null,null,null,{"$f":"'Schedule VI (EBS)'!B1579","v":"Select"}]
["Sch VI","Schedule of Assets",null,"(I) Derivatives - Derivative Type 53",{"$f":"'Schedule VI'!B1612","v":"Select"},null,null,null,null,null,null,null,{"$f":"'Schedule VI (EBS)'!B1612","v":"Select"}]
["Sch VI","Schedule of Assets",null,"(I) Derivatives - Derivative Type 76",{"$f":"'Schedule VI'!B1635","v":"Select"},null,null,null,null,null,null,null,{"$f":"'Schedule VI (EBS)'!B1635","v":"Select"}]
["Sch VI","Schedule of Assets",null,"(I) Derivatives - Derivative Type 86",{"$f":"'Schedule VI'!B1645","v":"Select"},null,null,null,null,null,null,null,{"$f":"'Schedule VI (EBS)'!B1645","v":"Select"}]
["Sch VI","Schedule of Assets",null,"(I) Derivatives - Derivative Type 111",{"$f":"'Schedule VI'!B1670","v":"Select"},null,null,null,null,null,null,null,{"$f":"'Schedule VI (EBS)'!B1670","v":"Select"}]
["Sch VI","Schedule of Assets",null,"(I) Derivatives - Derivative Type 123",{"$f":"'Schedule VI'!B1682","v":"Select"},null,null,null,null,null,null,null,{"$f":"'Schedule VI (EBS)'!B1682","v":"Select"}]
["Sch VI","Schedule of Assets",null,"(I) Derivatives - Derivative Type 146",{"$f":"'Schedule VI'!B1705","v":"Select"},null,null,null,null,null,null,null,{"$f":"'Schedule VI (EBS)'!B1705","v":"Select"}]
["Sch VI","Schedule of Assets",null,"(I) Derivatives - Derivative Type 182",{"$f":"'Schedule VI'!B1741","v":"Select"},null,null,null,null,null,null,null,{"$f":"'Schedule VI (EBS)'!B1741","v":"Select"}]
["Sch VI","Schedule of Assets",null,"(I) Derivatives - Derivative Type 198",{"$f":"'Schedule VI'!B1757","v":"Select"},null,null,null,null,null,null,null,{"$f":"'Schedule VI (EBS)'!B1757","v":"Select"}]
["Sch VI","Schedule of Assets",null,"(I) Derivatives - Underlying 19",{"$f":"'Schedule VI'!C1578","v":"Select"},null,null,null,null,null,null,null,{"$f":"'Schedule VI (EBS)'!C1578","v":"Select"}]
["Sch VI","Schedule of Assets",null,"(I) Derivatives - Underlying 36",{"$f":"'Schedule VI'!C1595","v":"Select"},null,null,null,null,null,null,null,{"$f":"'Schedule VI (EBS)'!C1595","v":"Select"}]
["Sch VI","Schedule of Assets",null,"(I) Derivatives - Underlying 70",{"$f":"'Schedule VI'!C1629","v":"Select"},null,null,null,null,null,null,null,{"$f":"'Schedule VI (EBS)'!C1629","v":"Select"}]
["Sch VI","Schedule of Assets",null,"(I) Derivatives - Underlying 95",{"$f":"'Schedule VI'!C1654","v":"Select"},null,null,null,null,null,null,null,{"$f":"'Schedule VI (EBS)'!C1654","v":"Select"}]
["Sch VI","Schedule of Assets",null,"(I) Derivatives - Underlying 105",{"$f":"'Schedule VI'!C1664","v":"Select"},null,null,null,null,null,null,null,{"$f":"'Schedule VI (EBS)'!C1664","v":"Select"}]
["Sch VI","Schedule of Assets",null,"(I) Derivatives - Underlying 132",{"$f":"'Schedule VI'!C1691","v":"Select"},null,null,null,null,null,null,null,{"$f":"'Schedule VI (EBS)'!C1691","v":"Select"}]
["Sch VI","Schedule of Assets",null,"(I) Derivatives - Underlying 140",{"$f":"'Schedule VI'!C1699","v":"Select"},null,null,null,null,null,null,null,{"$f":"'Schedule VI (EBS)'!C1699","v":"Select"}]
["Sch VI","Schedule of Assets",null,"(I) Derivatives - Underlying 165",{"$f":"'Schedule VI'!C1724","v":"Select"},null,null,null,null,null,null,null,{"$f":"'Schedule VI (EBS)'!C1724","v":"Select"}]
["Sch VI","Schedule of Assets",null,"(I) Derivatives - Underlying 196",{"$f":"'Schedule VI'!C1755","v":"Select"},null,null,null,null,null,null,null,{"$f":"'Schedule VI (EBS)'!C1755","v":"Select"}]
["Sch VI","Schedule of Assets",null,"(I) Derivatives - Currency 24",{"$f":"'Schedule VI'!D1583","v":"Select"},null,null,null,null,null,null,null,{"$f":"'Schedule VI (EBS)'!D1583","v":"Select"}]
["Sch VI","Schedule of Assets",null,"(I) Derivatives - Currency 27",{"$f":"'Schedule VI'!D1586","v":"Select"},null,null,null,null,null,null,null,{"$f":"'Schedule VI (EBS)'!D1586","v":"Select"}]
["Sch VI","Schedule of Assets",null,"(I) Derivatives - Currency 61",{"$f":"'Schedule VI'!D1620","v":"Select"},null,null,null,null,null,null,null,{"$f":"'Schedule VI (EBS)'!D1620","v":"Select"}]
["Sch VI","Schedule of Assets",null,"(I) Derivatives - Currency 83",{"$f":"'Schedule VI'!D1642","v":"Select"},null,null,null,null,null,null,null,{"$f":"'Schedule VI (EBS)'!D1642","v":"Select"}]
["Sch VI","Schedule of Assets",null,"(I) Derivatives - Currency 98",{"$f":"'Schedule VI'!D1657","v":"Select"},null,null,null,null,null,null,null,{"$f":"'Schedule VI (EBS)'!D1657","v":"Select"}]
["Sch VI","Schedule of Assets",null,"(I) Derivatives - Currency 118",{"$f":"'Schedule VI'!D1677","v":"Select"},null,null,null,null,null,null,null,{"$f":"'Schedule VI (EBS)'!D1677","v":"Select"}]
["Sch VI","Schedule of Assets",null,"(I) Derivatives - Currency 153",{"$f":"'Schedule VI'!D1712","v":"Select"},null,null,null,null,null,null,null,{"$f":"'Schedule VI (EBS)'!D1712","v":"Select"}]
["Sch VI","Schedule of Assets",null,"(I) Derivatives - Currency 174",{"$f":"'Schedule VI'!D1733","v":"Select"},null,null,null,null,null,null,null,{"$f":"'Schedule VI (EBS)'!D1733","v":"Select"}]
["Sch VI","Schedule of Assets",null,"(I) Derivatives - Currency 190",{"$f":"'Schedule VI'!D1749","v":"Select"},null,null,null,null,null,null,null,{"$f":"'Schedule VI (EBS)'!D1749","v":"Select"}]
["Sch VI","Schedule of Assets",null,"(I) Derivatives - Trading Category 9",{"$f":"'Schedule VI'!E1568","v":"Select"},null,null,null,null,null,null,null,{"$f":"'Schedule VI (EBS)'!E1568","v":"Select"}]
["Sch VI","Schedule of Assets",null,"(I) Derivatives - Trading Category 27",{"$f":"'Schedule VI'!E1586","v":"Select"},null,null,null,null,null,null,null,{"$f":"'Schedule VI (EBS)'!E1586","v":"Select"}]
["Sch VI","Schedule of Assets",null,"(I) Derivatives - Trading Category 40",{"$f":"'Schedule VI'!E1599","v":"Select"},null,null,null,null,null,null,null,{"$f":"'Schedule VI (EBS)'!E1599","v":"Select"}]
["Sch VI","Schedule of Assets",null,"(I) Derivatives - Trading Category 64",{"$f":"'Schedule VI'!E1623","v":"Select"},null,null,null,null,null,null,null,{"$f":"'Schedule VI (EBS)'!E1623","v":"Select"}]
["Sch VI","Schedule of Assets",null,"(I) Derivatives - Trading Category 96",{"$f":"'Schedule VI'!E1655","v":"Select"},null,null,null,null,null,null,null,{"$f":"'Schedule VI (EBS)'!E1655","v":"Select"}]
["Sch VI","Schedule of Assets",null,"(I) Derivatives - Trading Category 119",{"$f":"'Schedule VI'!E1678","v":"Select"},null,null,null,null,null,null,null,{"$f":"'Schedule VI (EBS)'!E1678","v":"Select"}]
["Sch VI","Schedule of Assets",null,"(I) Derivatives - Trading Category 131",{"$f":"'Schedule VI'!E1690","v":"Select"},null,null,null,null,null,null,null,{"$f":"'Schedule VI (EBS)'!E1690","v":"Select"}]
["Sch VI","Schedule of Assets",null,"(I) Derivatives - Trading Category 156",{"$f":"'Schedule VI'!E1715","v":"Select"},null,null,null,null,null,null,null,{"$f":"'Schedule VI (EBS)'!E1715","v":"Select"}]
["Sch VI","Schedule of Assets",null,"(I) Derivatives - Trading Category 187",{"$f":"'Schedule VI'!E1746","v":"Select"},null,null,null,null,null,null,null,{"$f":"'Schedule VI (EBS)'!E1746","v":"Select"}]
["Sch VI","Schedule of Assets",null,"(I) Derivatives - Trading Category 193",{"$f":"'Schedule VI'!E1752","v":"Select"},null,null,null,null,null,null,null,{"$f":"'Schedule VI (EBS)'!E1752","v":"Select"}]
["Sch VI","Schedule of Assets",null,"(I) Derivatives - Purpose 32",{"$f":"'Schedule VI'!F1591","v":"Select"},null,null,null,null,null,null,null,{"$f":"'Schedule VI (EBS)'!F1591","v":"Select"}]
["Sch VI","Schedule of Assets",null,"(I) Derivatives - Purpose 38",{"$f":"'Schedule VI'!F1597","v":"Select"},null,null,null,null,null,null,null,{"$f":"'Schedule VI (EBS)'!F1597","v":"Select"}]
["Sch VI","Schedule of Assets",null,"(I) Derivatives - Purpose 69",{"$f":"'Schedule VI'!F1628","v":"Select"},null,null,null,null,null,null,null,{"$f":"'Schedule VI (EBS)'!F1628","v":"Select"}]
["Sch VI","Schedule of Assets",null,"(I) Derivatives - Purpose 94",{"$f":"'Schedule VI'!F1653","v":"Select"},null,null,null,null,null,null,null,{"$f":"'Schedule VI (EBS)'!F1653","v":"Select"}]
["Sch VI","Schedule of Assets",null,"(I) Derivatives - Purpose 106",{"$f":"'Schedule VI'!F1665","v":"Select"},null,null,null,null,null,null,null,{"$f":"'Schedule VI (EBS)'!F1665","v":"Select"}]
["Sch VI","Schedule of Assets",null,"(I) Derivatives - Purpose 125",{"$f":"'Schedule VI'!F1684","v":"Select"},null,null,null,null,null,null,null,{"$f":"'Schedule VI (EBS)'!F1684","v":"Select"}]
["Sch VI","Schedule of Assets",null,"(I) Derivatives - Purpose 143",{"$f":"'Schedule VI'!F1702","v":"Select"},null,null,null,null,null,null,null,{"$f":"'Schedule VI (EBS)'!F1702","v":"Select"}]
["Sch VI","Schedule of Assets",null,"(I) Derivatives - Purpose 181",{"$f":"'Schedule VI'!F1740","v":"Select"},null,null,null,null,null,null,null,{"$f":"'Schedule VI (EBS)'!F1740","v":"Select"}]
["Sch VI","Schedule of Assets",null,"(I) Derivatives - Purpose 198",{"$f":"'Schedule VI'!F1757","v":"Select"},null,null,null,null,null,null,null,{"$f":"'Schedule VI (EBS)'!F1757","v":"Select"}]
["Sch VI","Schedule of Assets",null,"(I) Derivatives - Position 16",{"$f":"'Schedule VI'!G1575","v":"Select"},null,null,null,null,null,null,null,{"$f":"'Schedule VI (EBS)'!G1575","v":"Select"}]
["Sch VI","Schedule of Assets",null,"(I) Derivatives - Position 35",{"$f":"'Schedule VI'!G1594","v":"Select"},null,null,null,null,null,null,null,{"$f":"'Schedule VI (EBS)'!G1594","v":"Select"}]
["Sch VI","Schedule of Assets",null,"(I) Derivatives - Position 51",{"$f":"'Schedule VI'!G1610","v":"Select"},null,null,null,null,null,null,null,{"$f":"'Schedule VI (EBS)'!G1610","v":"Select"}]
["Sch VI","Schedule of Assets",null,"(I) Derivatives - Position 72",{"$f":"'Schedule VI'!G1631","v":"Select"},null,null,null,null,null,null,null,{"$f":"'Schedule VI (EBS)'!G1631","v":"Select"}]
["Sch VI","Schedule of Assets",null,"(I) Derivatives - Position 103",{"$f":"'Schedule VI'!G1662","v":"Select"},null,null,null,null,null,null,null,{"$f":"'Schedule VI (EBS)'!G1662","v":"Select"}]
["Sch VI","Schedule of Assets",null,"(I) Derivatives - Position 131",{"$f":"'Schedule VI'!G1690","v":"Select"},null,null,null,null,null,null,null,{"$f":"'Schedule VI (EBS)'!G1690","v":"Select"}]
["Sch VI","Schedule of Assets",null,"(I) Derivatives - Position 138",{"$f":"'Schedule VI'!G1697","v":"Select"},null,null,null,null,null,null,null,{"$f":"'Schedule VI (EBS)'!G1697","v":"Select"}]
["Sch VI","Schedule of Assets",null,"(I) Derivatives - Position 164",{"$f":"'Schedule VI'!G1723","v":"Select"},null,null,null,null,null,null,null,{"$f":"'Schedule VI (EBS)'!G1723","v":"Select"}]
["Sch VI","Schedule of Assets",null,"(I) Derivatives - Position 194",{"$f":"'Schedule VI'!G1753","v":"Select"},null,null,null,null,null,null,null,{"$f":"'Schedule VI (EBS)'!G1753","v":"Select"}]
["Sch VI","Schedule of Assets",null,"(I) Derivatives - Pos./Neg. - 1",{"$f":"'Schedule VI'!H1560","v":"Select"},null,null,null,null,null,null,null,{"$f":"'Schedule VI (EBS)'!H1560","v":"Select"}]
["Sch VI","Schedule of Assets",null,"(I) Derivatives - Pos./Neg. - 29",{"$f":"'Schedule VI'!H1588","v":"Select"},null,null,null,null,null,null,null,{"$f":"'Schedule VI (EBS)'!H1588","v":"Select"}]
["Sch VI","Schedule of Assets",null,"(I) Derivatives - Pos./Neg. - 60",{"$f":"'Schedule VI'!H1619","v":"Select"},null,null,null,null,null,null,null,{"$f":"'Schedule VI (EBS)'!H1619","v":"Select"}]
["Sch VI","Schedule of Assets",null,"(I) Derivatives - Pos./Neg. - 81",{"$f":"'Schedule VI'!H1640","v":"Select"},null,null,null,null,null,null,null,{"$f":"'Schedule VI (EBS)'!H1640","v":"Select"}]
["Sch VI","Schedule of Assets",null,"(I) Derivatives - Pos./Neg. - 97",{"$f":"'Schedule VI'!H1656","v":"Select"},null,null,null,null,null,null,null,{"$f":"'Schedule VI (EBS)'!H1656","v":"Select"}]
["Sch VI","Schedule of Assets",null,"(I) Derivatives - Pos./Neg. - 116",{"$f":"'Schedule VI'!H1675","v":"Select"},null,null,null,null,null,null,null,{"$f":"'Schedule VI (EBS)'!H1675","v":"Select"}]
["Sch VI","Schedule of Assets",null,"(I) Derivatives - Pos./Neg. - 134",{"$f":"'Schedule VI'!H1693","v":"Select"},null,null,null,null,null,null,null,{"$f":"'Schedule VI (EBS)'!H1693","v":"Select"}]
["Sch VI","Schedule of Assets",null,"(I) Derivatives - Pos./Neg. - 151",{"$f":"'Schedule VI'!H1710","v":"Select"},null,null,null,null,null,null,null,{"$f":"'Schedule VI (EBS)'!H1710","v":"Select"}]
["Sch VI","Schedule of Assets",null,"(I) Derivatives - Pos./Neg. - 189",{"$f":"'Schedule VI'!H1748","v":"Select"},null,null,null,null,null,null,null,{"$f":"'Schedule VI (EBS)'!H1748","v":"Select"}]
["Sch VI","Schedule of Assets",null,"(I) Derivatives - Market Value 10",{"$f":"'Schedule VI'!I1569","v":0},null,null,null,null,null,null,null,{"$f":"'Schedule VI (EBS)'!I1569","v":0}]
["Sch VI","Schedule of Assets",null,"(I) Derivatives - Market Value 23",{"$f":"'Schedule VI'!I1582","v":0},null,null,null,null,null,null,null,{"$f":"'Schedule VI (EBS)'!I1582","v":0}]
["Sch VI","Schedule of Assets",null,"(I) Derivatives - Market Value 43",{"$f":"'Schedule VI'!I1602","v":0},null,null,null,null,null,null,null,{"$f":"'Schedule VI (EBS)'!I1602","v":0}]
["Sch VI","Schedule of Assets",null,"(I) Derivatives - Market Value 58",{"$f":"'Schedule VI'!I1617","v":0},null,null,null,null,null,null,null,{"$f":"'Schedule VI (EBS)'!I1617","v":0}]
["Sch VI","Schedule of Assets",null,"(I) Derivatives - Market Value 80",{"$f":"'Schedule VI'!I1639","v":0},null,null,null,null,null,null,null,{"$f":"'Schedule VI (EBS)'!I1639","v":0}]
["Sch VI","Schedule of Assets",null,"(I) Derivatives - Market Value 114",{"$f":"'Schedule VI'!I1673","v":0},null,null,null,null,null,null,null,{"$f":"'Schedule VI (EBS)'!I1673","v":0}]
["Sch VI","Schedule of Assets",null,"(I) Derivatives - Market Value 139",{"$f":"'Schedule VI'!I1698","v":0},null,null,null,null,null,null,null,{"$f":"'Schedule VI (EBS)'!I1698","v":0}]
["Sch VI","Schedule of Assets",null,"(I) Derivatives - Market Value 145",{"$f":"'Schedule VI'!I1704","v":0},null,null,null,null,null,null,null,{"$f":"'Schedule VI (EBS)'!I1704","v":0}]
["Sch VI","Schedule of Assets",null,"(I) Derivatives - Market Value 176",{"$f":"'Schedule VI'!I1735","v":0},null,null,null,null,null,null,null,{"$f":"'Schedule VI (EBS)'!I1735","v":0}]
["Sch VI","Schedule of Assets",null,"(I) Derivatives - Gross Notional Value 1",{"$f":"'Schedule VI'!J1560","v":0},null,null,null,null,null,null,null,{"$f":"'Schedule VI (EBS)'!J1560","v":0}]
["Sch VI","Schedule of Assets",null,"(I) Derivatives - Gross Notional Value 9",{"$f":"'Schedule VI'!J1568","v":0},null,null,null,null,null,null,null,{"$f":"'Schedule VI (EBS)'!J1568","v":0}]
["Sch VI","Schedule of Assets",null,"(I) Derivatives - Gross Notional Value 36",{"$f":"'Schedule VI'!J1595","v":0},null,null,null,null,null,null,null,{"$f":"'Schedule VI (EBS)'!J1595","v":0}]
["Sch VI","Schedule of Assets",null,"(I) Derivatives - Gross Notional Value 68",{"$f":"'Schedule VI'!J1627","v":0},null,null,null,null,null,null,null,{"$f":"'Schedule VI (EBS)'!J1627","v":0}]
["Sch VI","Schedule of Assets",null,"(I) Derivatives - Gross Notional Value 92",{"$f":"'Schedule VI'!J1651","v":0},null,null,null,null,null,null,null,{"$f":"'Schedule VI (EBS)'!J1651","v":0}]
["Sch VI","Schedule of Assets",null,"(I) Derivatives - Gross Notional Value 105",{"$f":"'Schedule VI'!J1664","v":0},null,null,null,null,null,null,null,{"$f":"'Schedule VI (EBS)'!J1664","v":0}]
["Sch VI","Schedule of Assets",null,"(I) Derivatives - Gross Notional Value 123",{"$f":"'Schedule VI'!J1682","v":0},null,null,null,null,null,null,null,{"$f":"'Schedule VI (EBS)'!J1682","v":0}]
["Sch VI","Schedule of Assets",null,"(I) Derivatives - Gross Notional Value 142",{"$f":"'Schedule VI'!J1701","v":0},null,null,null,null,null,null,null,{"$f":"'Schedule VI (EBS)'!J1701","v":0}]
["Sch VI","Schedule of Assets",null,"(I) Derivatives - Gross Notional Value 179",{"$f":"'Schedule VI'!J1738","v":0},null,null,null,null,null,null,null,{"$f":"'Schedule VI (EBS)'!J1738","v":0}]
["Sch VI","Schedule of Assets",null,"(I) Derivatives - Net Notional Value 1",{"$f":"'Schedule VI'!K1560","v":0},null,null,null,null,null,null,null,{"$f":"'Schedule VI (EBS)'!K1560","v":0}]
["Sch VI","Schedule of Assets",null,"(I) Derivatives - Net Notional Value 14",{"$f":"'Schedule VI'!K1573","v":0},null,null,null,null,null,null,null,{"$f":"'Schedule VI (EBS)'!K1573","v":0}]
["Sch VI","Schedule of Assets",null,"(I) Derivatives - Net Notional Value 34",{"$f":"'Schedule VI'!K1593","v":0},null,null,null,null,null,null,null,{"$f":"'Schedule VI (EBS)'!K1593","v":0}]
["Sch VI","Schedule of Assets",null,"(I) Derivatives - Net Notional Value 49",{"$f":"'Schedule VI'!K1608","v":0},null,null,null,null,null,null,null,{"$f":"'Schedule VI (EBS)'!K1608","v":0}]
["Sch VI","Schedule of Assets",null,"(I) Derivatives - Net Notional Value 71",{"$f":"'Schedule VI'!K1630","v":0},null,null,null,null,null,null,null,{"$f":"'Schedule VI (EBS)'!K1630","v":0}]
["Sch VI","Schedule of Assets",null,"(I) Derivatives - Net Notional Value 101",{"$f":"'Schedule VI'!K1660","v":0},null,null,null,null,null,null,null,{"$f":"'Schedule VI (EBS)'!K1660","v":0}]
["Sch VI","Schedule of Assets",null,"(I) Derivatives - Net Notional Value 130",{"$f":"'Schedule VI'!K1689","v":0},null,null,null,null,null,null,null,{"$f":"'Schedule VI (EBS)'!K1689","v":0}]
["Sch VI","Schedule of Assets",null,"(I) Derivatives - Net Notional Value 147",{"$f":"'Schedule VI'!K1706","v":0},null,null,null,null,null,null,null,{"$f":"'Schedule VI (EBS)'!K1706","v":0}]
["Sch VI","Schedule of Assets",null,"(I) Derivatives - Net Notional Value 156",{"$f":"'Schedule VI'!K1715","v":0},null,null,null,null,null,null,null,{"$f":"'Schedule VI (EBS)'!K1715","v":0}]
["Sch VI","Schedule of Assets",null,"(I) Derivatives - Net Notional Value 184",{"$f":"'Schedule VI'!K1743","v":0},null,null,null,null,null,null,null,{"$f":"'Schedule VI (EBS)'!K1743","v":0}]
["Sch VI","Schedule of Assets",null,"(I) Derivatives - Exposure 8",{"$f":"'Schedule VI'!L1567","v":0},null,null,null,null,null,null,null,{"$f":"'Schedule VI (EBS)'!L1567","v":0}]
["Sch VI","Schedule of Assets",null,"(I) Derivatives - Exposure 21",{"$f":"'Schedule VI'!L1580","v":0},null,null,null,null,null,null,null,{"$f":"'Schedule VI (EBS)'!L1580","v":0}]
["Sch VI","Schedule of Assets",null,"(I) Derivatives - Exposure 43",{"$f":"'Schedule VI'!L1602","v":0},null,null,null,null,null,null,null,{"$f":"'Schedule VI (EBS)'!L1602","v":0}]
["Sch VI","Schedule of Assets",null,"(I) Derivatives - Exposure 80",{"$f":"'Schedule VI'!L1639","v":0},null,null,null,null,null,null,null,{"$f":"'Schedule VI (EBS)'!L1639","v":0}]
["Sch VI","Schedule of Assets",null,"(I) Derivatives - Exposure 99",{"$f":"'Schedule VI'!L1658","v":0},null,null,null,null,null,null,null,{"$f":"'Schedule VI (EBS)'!L1658","v":0}]
["Sch VI","Schedule of Assets",null,"(I) Derivatives - Exposure 113",{"$f":"'Schedule VI'!L1672","v":0},null,null,null,null,null,null,null,{"$f":"'Schedule VI (EBS)'!L1672","v":0}]
["Sch VI","Schedule of Assets",null,"(I) Derivatives - Exposure 134",{"$f":"'Schedule VI'!L1693","v":0},null,null,null,null,null,null,null,{"$f":"'Schedule VI (EBS)'!L1693","v":0}]
["Sch VI","Schedule of Assets",null,"(I) Derivatives - Exposure 150",{"$f":"'Schedule VI'!L1709","v":0},null,null,null,null,null,null,null,{"$f":"'Schedule VI (EBS)'!L1709","v":0}]
["Sch VI","Schedule of Assets",null,"(I) Derivatives - Exposure 186",{"$f":"'Schedule VI'!L1745","v":0},null,null,null,null,null,null,null,{"$f":"'Schedule VI (EBS)'!L1745","v":0}]
["Sch VI","Schedule of Assets",null,"(I) Derivatives - Comments 9",{"$f":"'Schedule VI'!M1568","v":0},null,null,null,null,null,null,null,{"$f":"'Schedule VI (EBS)'!M1568","v":0}]
["Sch VI","Schedule of Assets",null,"(I) Derivatives - Comments 21",{"$f":"'Schedule VI'!M1580","v":0},null,null,null,null,null,null,null,{"$f":"'Schedule VI (EBS)'!M1580","v":0}]
["Sch VI","Schedule of Assets",null,"(I) Derivatives - Comments 46",{"$f":"'Schedule VI'!M1605","v":0},null,null,null,null,null,null,null,{"$f":"'Schedule VI (EBS)'!M1605","v":0}]
["Sch VI","Schedule of Assets",null,"(I) Derivatives - Comments 56",{"$f":"'Schedule VI'!M1615","v":0},null,null,null,null,null,null,null,{"$f":"'Schedule VI (EBS)'!M1615","v":0}]
["Sch VI","Schedule of Assets",null,"(I) Derivatives - Comments 79",{"$f":"'Schedule VI'!M1638","v":0},null,null,null,null,null,null,null,{"$f":"'Schedule VI (EBS)'!M1638","v":0}]
["Sch VI","Schedule of Assets",null,"(I) Derivatives - Comments 112",{"$f":"'Schedule VI'!M1671","v":0},null,null,null,null,null,null,null,{"$f":"'Schedule VI (EBS)'!M1671","v":0}]
["Sch VI","Schedule of Assets",null,"(I) Derivatives - Comments 138",{"$f":"'Schedule VI'!M1697","v":0},null,null,null,null,null,null,null,{"$f":"'Schedule VI (EBS)'!M1697","v":0}]
["Sch VI","Schedule of Assets",null,"(I) Derivatives - Comments 143",{"$f":"'Schedule VI'!M1702","v":0},null,null,null,null,null,null,null,{"$f":"'Schedule VI (EBS)'!M1702","v":0}]
["Sch VI","Schedule of Assets",null,"(I) Derivatives - Comments 175",{"$f":"'Schedule VI'!M1734","v":0},null,null,null,null,null,null,null,{"$f":"'Schedule VI (EBS)'!M1734","v":0}]
["Sch VI","Schedule of Assets",null,"(I) Derivatives - Comments 199",{"$f":"'Schedule VI'!M1758","v":0},null,null,null,null,null,null,null,{"$f":"'Schedule VI (EBS)'!M1758","v":0}]
["Sch VI","Schedule of Assets",null,"(J) Fin. Inst. Rating 8 - Corp Loans",{"$f":"'Schedule VI'!E1770","v":0},null,null,null,null,null,null,null,{"$f":"'Schedule VI (EBS)'!E1770","v":0}]
["Sch VI","Schedule of Assets",null,"(J) Fin. Inst. Other Fin. - Corp Bonds",{"$f":"'Schedule VI'!D1777","v":0},null,null,null,null,null,null,null,{"$f":"'Schedule VI (EBS)'!D1777","v":0}]
["Sch VI","Schedule of Assets",null,"(K) Other Assets - Asset Type 3",{"$f":"'Schedule VI'!B1798","v":"Select"},null,null,null,null,null,null,null,{"$f":"'Schedule VI (EBS)'!B1798","v":"Select"}]
["Sch VI","Schedule of Assets",null,"(K) Other Assets - Asset Type 5",{"$f":"'Schedule VI'!B1800","v":"Select"},null,null,null,null,null,null,null,{"$f":"'Schedule VI (EBS)'!B1800","v":"Select"}]
["Sch VI","Schedule of Assets",null,"(K) Other Assets - Asset Type 40",{"$f":"'Schedule VI'!B1835","v":"Select"},null,null,null,null,null,null,null,{"$f":"'Schedule VI (EBS)'!B1835","v":"Select"}]
["Sch VI","Schedule of Assets",null,"(K) Other Assets - Asset Type 61",{"$f":"'Schedule VI'!B1856","v":"Select"},null,null,null,null,null,null,null,{"$f":"'Schedule VI (EBS)'!B1856","v":"Select"}]
["Sch VI","Schedule of Assets",null,"(K) Other Assets - Asset Type 77",{"$f":"'Schedule VI'!B1872","v":"Select"},null,null,null,null,null,null,null,{"$f":"'Schedule VI (EBS)'!B1872","v":"Select"}]
["Sch VI","Schedule of Assets",null,"(K) Other Assets - Asset Type 94",{"$f":"'Schedule VI'!B1889","v":"Select"},null,null,null,null,null,null,null,{"$f":"'Schedule VI (EBS)'!B1889","v":"Select"}]
["Sch VI","Schedule of Assets",null,"(K) Other Assets - Asset Type 133",{"$f":"'Schedule VI'!B1928","v":"Select"},null,null,null,null,null,null,null,{"$f":"'Schedule VI (EBS)'!B1928","v":"Select"}]
["Sch VI","Schedule of Assets",null,"(K) Other Assets - Asset Type 153",{"$f":"'Schedule VI'!B1948","v":"Select"},null,null,null,null,null,null,null,{"$f":"'Schedule VI (EBS)'!B1948","v":"Select"}]
["Sch VI","Schedule of Assets",null,"(K) Other Assets - Asset Type 164",{"$f":"'Schedule VI'!B1959","v":"Select"},null,null,null,null,null,null,null,{"$f":"'Schedule VI (EBS)'!B1959","v":"Select"}]
["Sch VI","Schedule of Assets",null,"(K) Other Assets - Asset Type 190",{"$f":"'Schedule VI'!B1985","v":"Select"},null,null,null,null,null,null,null,{"$f":"'Schedule VI (EBS)'!B1985","v":"Select"}]
["Sch VI","Schedule of Assets",null,"(K) Other Assets - Asset Type 199",{"$f":"'Schedule VI'!B1994","v":"Select"},null,null,null,null,null,null,null,{"$f":"'Schedule VI (EBS)'!B1994","v":"Select"}]
["Sch VI","Schedule of Assets",null,"(K) Other Assets - Currency 27",{"$f":"'Schedule VI'!C1822","v":"Select"},null,null,null,null,null,null,null,{"$f":"'Schedule VI (EBS)'!C1822","v":"Select"}]
["Sch VI","Schedule of Assets",null,"(K) Other Assets - Currency 55",{"$f":"'Schedule VI'!C1850","v":"Select"},null,null,null,null,null,null,null,{"$f":"'Schedule VI (EBS)'!C1850","v":"Select"}]
["Sch VI","Schedule of Assets",null,"(K) Other Assets - Currency 82",{"$f":"'Schedule VI'!C1877","v":"Select"},null,null,null,null,null,null,null,{"$f":"'Schedule VI (EBS)'!C1877","v":"Select"}]
["Sch VI","Schedule of Assets",null,"(K) Other Assets - Currency 90",{"$f":"'Schedule VI'!C1885","v":"Select"},null,null,null,null,null,null,null,{"$f":"'Schedule VI (EBS)'!C1885","v":"Select"}]
["Sch VI","Schedule of Assets",null,"(K) Other Assets - Currency 119",{"$f":"'Schedule VI'!C1914","v":"Select"},null,null,null,null,null,null,null,{"$f":"'Schedule VI (EBS)'!C1914","v":"Select"}]
["Sch VI","Schedule of Assets",null,"(K) Other Assets - Currency 146",{"$f":"'Schedule VI'!C1941","v":"Select"},null,null,null,null,null,null,null,{"$f":"'Schedule VI (EBS)'!C1941","v":"Select"}]
["Sch VI","Schedule of Assets",null,"(K) Other Assets - Currency 156",{"$f":"'Schedule VI'!C1951","v":"Select"},null,null,null,null,null,null,null,{"$f":"'Schedule VI (EBS)'!C1951","v":"Select"}]
["Sch VI","Schedule of Assets",null,"(K) Other Assets - Currency 177",{"$f":"'Schedule VI'!C1972","v":"Select"},null,null,null,null,null,null,null,{"$f":"'Schedule VI (EBS)'!C1972","v":"Select"}]
["Sch VI","Schedule of Assets",null,"(K) Other Assets - Currency 193",{"$f":"'Schedule VI'!C1988","v":"Select"},null,null,null,null,null,null,null,{"$f":"'Schedule VI (EBS)'!C1988","v":"Select"}]
["Sch VI","Schedule of Assets",null,"(K) Other Assets - Rating 33",{"$f":"'Schedule VI'!D1828","v":"Select"},null,null,null,null,null,null,null,{"$f":"'Schedule VI (EBS)'!D1828","v":"Select"}]
["Sch VI","Schedule of Assets",null,"(K) Other Assets - Rating 48",{"$f":"'Schedule VI'!D1843","v":"Select"},null,null,null,null,null,null,null,{"$f":"'Schedule VI (EBS)'!D1843","v":"Select"}]
["Sch VI","Schedule of Assets",null,"(K) Other Assets - Rating 68",{"$f":"'Schedule VI'!D1863","v":"Select"},null,null,null,null,null,null,null,{"$f":"'Schedule VI (EBS)'!D1863","v":"Select"}]
["Sch VI","Schedule of Assets",null,"(K) Other Assets - Rating 85",{"$f":"'Schedule VI'!D1880","v":"Select"},null,null,null,null,null,null,null,{"$f":"'Schedule VI (EBS)'!D1880","v":"Select"}]
["Sch VI","Schedule of Assets",null,"(K) Other Assets - Rating 103",{"$f":"'Schedule VI'!D1898","v":"Select"},null,null,null,null,null,null,null,{"$f":"'Schedule VI (EBS)'!D1898","v":"Select"}]
["Sch VI","Schedule of Assets",null,"(K) Other Assets - Rating 122",{"$f":"'Schedule VI'!D1917","v":"Select"},null,null,null,null,null,null,null,{"$f":"'Schedule VI (EBS)'!D1917","v":"Select"}]
["Sch VI","Schedule of Assets",null,"(K) Other Assets - Rating 155",{"$f":"'Schedule VI'!D1950","v":"Select"},null,null,null,null,null,null,null,{"$f":"'Schedule VI (EBS)'!D1950","v":"Select"}]
["Sch VI","Schedule of Assets",null,"(K) Other Assets - Rating 181",{"$f":"'Schedule VI'!D1976","v":"Select"},null,null,null,null,null,null,null,{"$f":"'Schedule VI (EBS)'!D1976","v":"Select"}]
["Sch VI","Schedule of Assets",null,"(K) Other Assets - Rating 198",{"$f":"'Schedule VI'!D1993","v":"Select"},null,null,null,null,null,null,null,{"$f":"'Schedule VI (EBS)'!D1993","v":"Select"}]
["Sch VI","Schedule of Assets",null,"(K) Other Assets - Nominal Amount 27",{"$f":"'Schedule VI'!E1822","v":0},null,null,null,null,null,null,null,{"$f":"'Schedule VI (EBS)'!E1822","v":0}]
["Sch VI","Schedule of Assets",null,"(K) Other Assets - Nominal Amount 35",{"$f":"'Schedule VI'!E1830","v":0},null,null,null,null,null,null,null,{"$f":"'Schedule VI (EBS)'!E1830","v":0}]
["Sch VI","Schedule of Assets",null,"(K) Other Assets - Nominal Amount 62",{"$f":"'Schedule VI'!E1857","v":0},null,null,null,null,null,null,null,{"$f":"'Schedule VI (EBS)'!E1857","v":0}]
["Sch VI","Schedule of Assets",null,"(K) Other Assets - Nominal Amount 72",{"$f":"'Schedule VI'!E1867","v":0},null,null,null,null,null,null,null,{"$f":"'Schedule VI (EBS)'!E1867","v":0}]
["Sch VI","Schedule of Assets",null,"(K) Other Assets - Nominal Amount 97",{"$f":"'Schedule VI'!E1892","v":0},null,null,null,null,null,null,null,{"$f":"'Schedule VI (EBS)'!E1892","v":0}]
["Sch VI","Schedule of Assets",null,"(K) Other Assets - Nominal Amount 127",{"$f":"'Schedule VI'!E1922","v":0},null,null,null,null,null,null,null,{"$f":"'Schedule VI (EBS)'!E1922","v":0}]
["Sch VI","Schedule of Assets",null,"(K) Other Assets - Nominal Amount 153",{"$f":"'Schedule VI'!E1948","v":0},null,null,null,null,null,null,null,{"$f":"'Schedule VI (EBS)'!E1948","v":0}]
["Sch VI","Schedule of Assets",null,"(K) Other Assets - Nominal Amount 164",{"$f":"'Schedule VI'!E1959","v":0},null,null,null,null,null,null,null,{"$f":"'Schedule VI (EBS)'!E1959","v":0}]
["Sch VI","Schedule of Assets",null,"(K) Other Assets - Nominal Amount 188",{"$f":"'Schedule VI'!E1983","v":0},null,null,null,null,null,null,null,{"$f":"'Schedule VI (EBS)'!E1983","v":0}]
["Sch VI","Schedule of Assets",null,"(K) Other Assets - Fair Value 1",{"$f":"'Schedule VI'!F1796","v":0},null,null,null,null,null,null,null,{"$f":"'Schedule VI (EBS)'!F1796","v":0}]
["Sch VI","Schedule of Assets",null,"(K) Other Assets - Fair Value 40",{"$f":"'Schedule VI'!F1835","v":0},null,null,null,null,null,null,null,{"$f":"'Schedule VI (EBS)'!F1835","v":0}]
["Sch VI","Schedule of Assets",null,"(K) Other Assets - Fair Value 60",{"$f":"'Schedule VI'!F1855","v":0},null,null,null,null,null,null,null,{"$f":"'Schedule VI (EBS)'!F1855","v":0}]
["Sch VI","Schedule of Assets",null,"(K) Other Assets - Fair Value 75",{"$f":"'Schedule VI'!F1870","v":0},null,null,null,null,null,null,null,{"$f":"'Schedule VI (EBS)'!F1870","v":0}]
["Sch VI","Schedule of Assets",null,"(K) Other Assets - Fair Value 93",{"$f":"'Schedule VI'!F1888","v":0},null,null,null,null,null,null,null,{"$f":"'Schedule VI (EBS)'!F1888","v":0}]
["Sch VI","Schedule of Assets",null,"(K) Other Assets - Fair Value 110",{"$f":"'Schedule VI'!F1905","v":0},null,null,null,null,null,null,null,{"$f":"'Schedule VI (EBS)'!F1905","v":0}]
["Sch VI","Schedule of Assets",null,"(K) Other Assets - Fair Value 130",{"$f":"'Schedule VI'!F1925","v":0},null,null,null,null,null,null,null,{"$f":"'Schedule VI (EBS)'!F1925","v":0}]
["Sch VI","Schedule of Assets",null,"(K) Other Assets - Fair Value 166",{"$f":"'Schedule VI'!F1961","v":0},null,null,null,null,null,null,null,{"$f":"'Schedule VI (EBS)'!F1961","v":0}]
["Sch VI","Schedule of Assets",null,"(K) Other Assets - Fair Value 189",{"$f":"'Schedule VI'!F1984","v":0},null,null,null,null,null,null,null,{"$f":"'Schedule VI (EBS)'!F1984","v":0}]
["Sch VI","Schedule of Assets",null,"(K) Other Assets - Fair Value 197",{"$f":"'Schedule VI'!F1992","v":0},null,null,null,null,null,null,null,{"$f":"'Schedule VI (EBS)'!F1992","v":0}]
["Sch VI","Schedule of Assets",null,"(K) Other Assets - Comments 26",{"$f":"'Schedule VI'!G1821","v":0},null,null,null,null,null,null,null,{"$f":"'Schedule VI (EBS)'!G1821","v":0}]
["Sch VI","Schedule of Assets",null,"(K) Other Assets - Comments 53",{"$f":"'Schedule VI'!G1848","v":0},null,null,null,null,null,null,null,{"$f":"'Schedule VI (EBS)'!G1848","v":0}]
["Sch VI","Schedule of Assets",null,"(K) Other Assets - Comments 59",{"$f":"'Schedule VI'!G1854","v":0},null,null,null,null,null,null,null,{"$f":"'Schedule VI (EBS)'!G1854","v":0}]
["Sch VI","Schedule of Assets",null,"(K) Other Assets - Comments 88",{"$f":"'Schedule VI'!G1883","v":0},null,null,null,null,null,null,null,{"$f":"'Schedule VI (EBS)'!G1883","v":0}]
["Sch VI","Schedule of Assets",null,"(K) Other Assets - Comments 118",{"$f":"'Schedule VI'!G1913","v":0},null,null,null,null,null,null,null,{"$f":"'Schedule VI (EBS)'!G1913","v":0}]
["Sch VI","Schedule of Assets",null,"(K) Other Assets - Comments 144",{"$f":"'Schedule VI'!G1939","v":0},null,null,null,null,null,null,null,{"$f":"'Schedule VI (EBS)'!G1939","v":0}]
["Sch VI","Schedule of Assets",null,"(K) Other Assets - Comments 155",{"$f":"'Schedule VI'!G1950","v":0},null,null,null,null,null,null,null,{"$f":"'Schedule VI (EBS)'!G1950","v":0}]
["Sch VI","Schedule of Assets",null,"(K) Other Assets - Comments 172",{"$f":"'Schedule VI'!G1967","v":0},null,null,null,null,null,null,null,{"$f":"'Schedule VI (EBS)'!G1967","v":0}]
["Sch VI","Schedule of Assets",null,"(K) Other Assets - Comments 195",{"$f":"'Schedule VI'!G1990","v":0},null,null,null,null,null,null,null,{"$f":"'Schedule VI (EBS)'!G1990","v":0}]
["Sch VI","Schedule of Assets",null,"Ins. Companies - Moody's Rating 2",{"$f":"'Schedule VI'!D2047","v":0},null,null,null,null,null,null,null,{"$f":"'Schedule VI (EBS)'!D2047","v":0}]
["Sch VI","Schedule of Assets",null,"ABS - Moody's Rating 6",{"$f":"'Schedule VI'!D2067","v":0},null,null,null,null,null,null,null,{"$f":"'Schedule VI (EBS)'!D2067","v":0}]
["Sch VI","Schedule of Assets",null,"Fin. Inst. - S&P Rating 6",{"$f":"'Schedule VI'!E2043","v":0},null,null,null,null,null,null,null,{"$f":"'Schedule VI (EBS)'!E2043","v":0}]
["Sch VI","Schedule of Assets",null,"Corp. Insurers - S&P Rating 4",{"$f":"'Schedule VI'!E2057","v":0},null,null,null,null,null,null,null,{"$f":"'Schedule VI (EBS)'!E2057","v":0}]
["Sch VI","Schedule of Assets",null,"Fin. Inst. - DBRS Rating 2",{"$f":"'Schedule VI'!F2039","v":0},null,null,null,null,null,null,null,{"$f":"'Schedule VI (EBS)'!F2039","v":0}]
["Sch VI","Schedule of Assets",null,"Gov. Securities - DBRS Rating 2",{"$f":"'Schedule VI'!F2072","v":0},null,null,null,null,null,null,null,{"$f":"'Schedule VI (EBS)'!F2072","v":0}]
["Sch VI","Schedule of Assets",null,"Ins. Companies - Kroll Rating 8",{"$f":"'Schedule VI'!G2053","v":0},null,null,null,null,null,null,null,{"$f":"'Schedule VI (EBS)'!G2053","v":0}]
["Sch VI","Schedule of Assets",null,"ABS - Kroll Rating 5",{"$f":"'Schedule VI'!G2066","v":0},null,null,null,null,null,null,null,{"$f":"'Schedule VI (EBS)'!G2066","v":0}]
["Sch VI","Schedule of Assets",null,"Ins. Companies - Egan Jones Rating 4",{"$f":"'Schedule VI'!H2049","v":0},null,null,null,null,null,null,null,{"$f":"'Schedule VI (EBS)'!H2049","v":0}]
["Sch VI","Schedule of Assets",null,"Corp. Insurers - Egan Jones Rating 7",{"$f":"'Schedule VI'!H2060","v":0},null,null,null,null,null,null,null,{"$f":"'Schedule VI (EBS)'!H2060","v":0}]
["Sch VI","Schedule of Assets",null,"Fin. Inst. - Japan Credit Rating 8",{"$f":"'Schedule VI'!I2045","v":0},null,null,null,null,null,null,null,{"$f":"'Schedule VI (EBS)'!I2045","v":0}]
["Sch VI","Schedule of Assets",null,"Gov. Securities - Japan Credit Rating 1",{"$f":"'Schedule VI'!I2071","v":0},null,null,null,null,null,null,null,{"$f":"'Schedule VI (EBS)'!I2071","v":0}]
["Sch VI","Schedule of Assets",null,"Fin. Inst. - BMA Approved Int. Rating 4",{"$f":"'Schedule VI'!J2041","v":0},null,null,null,null,null,null,null,{"$f":"'Schedule VI (EBS)'!J2041","v":0}]
["Sch VI","Schedule of Assets",null,"ABS - BMA Approved Int. Rating 4",{"$f":"'Schedule VI'!J2065","v":0},null,null,null,null,null,null,null,{"$f":"'Schedule VI (EBS)'!J2065","v":0}]
["Sch VI","Schedule of Assets",null,"Corp. Insurers - BMA Approved Agency 1 -  Rating 6",{"$f":"'Schedule VI'!K2059","v":0},null,null,null,null,null,null,null,{"$f":"'Schedule VI (EBS)'!K2059","v":0}]
["Sch VI","Schedule of Assets",null,"Fin. Inst. - BMA Approved Agency 2 -  Rating 2",{"$f":"'Schedule VI'!L2039","v":0},null,null,null,null,null,null,null,{"$f":"'Schedule VI (EBS)'!L2039","v":0}]
["Sch VI","Schedule of Assets",null,"Ins. Companies - BMA Approved Agency 2 -  Rating 6",{"$f":"'Schedule VI'!L2051","v":0},null,null,null,null,null,null,null,{"$f":"'Schedule VI (EBS)'!L2051","v":0}]
["Sch VI","Schedule of Assets",null,"Gov. Securities - BMA Approved Agency 2 -  Rating 4",{"$f":"'Schedule VI'!L2074","v":0},null,null,null,null,null,null,null,{"$f":"'Schedule VI (EBS)'!L2074","v":0}]
["Sch VI","Schedule of Assets",null,"Ins. Companies - BMA Approved Agency 3 -  Rating 2",{"$f":"'Schedule VI'!M2047","v":0},null,null,null,null,null,null,null,{"$f":"'Schedule VI (EBS)'!M2047","v":0}]
["Sch VIA","Schedule of Funds Held",null,"(A) Cash - # of Asset Types",{"$f":"'Schedule VIA'!D8","v":0},null,null,null,null,null,null,null,{"$f":"'Schedule VIA (EBS)'!D8","v":0}]
["Sch VIA","Schedule of Funds Held",null,"(A) Cash - Asset Type 21",{"$f":"'Schedule VIA'!B31","v":"Select"},null,null,null,null,null,null,null,{"$f":"'Schedule VIA (EBS)'!B31","v":"Select"}]
["Sch VIA","Schedule of Funds Held",null,"(A) Cash - Asset Type 35",{"$f":"'Schedule VIA'!B45","v":"Select"},null,null,null,null,null,null,null,{"$f":"'Schedule VIA (EBS)'!B45","v":"Select"}]
["Sch VIA","Schedule of Funds Held",null,"(A) Cash - Asset Type 58",{"$f":"'Schedule VIA'!B68","v":"Select"},null,null,null,null,null,null,null,{"$f":"'Schedule VIA (EBS)'!B68","v":"Select"}]
["Sch VIA","Schedule of Funds Held",null,"(A) Cash - Asset Type 70",{"$f":"'Schedule VIA'!B80","v":"Select"},null,null,null,null,null,null,null,{"$f":"'Schedule VIA (EBS)'!B80","v":"Select"}]
["Sch VIA","Schedule of Funds Held",null,"(A) Cash - Asset Type 91",{"$f":"'Schedule VIA'!B101","v":"Select"},null,null,null,null,null,null,null,{"$f":"'Schedule VIA (EBS)'!B101","v":"Select"}]
["Sch VIA","Schedule of Funds Held",null,"(A) Cash - Asset Type 112",{"$f":"'Schedule VIA'!B122","v":"Select"},null,null,null,null,null,null,null,{"$f":"'Schedule VIA (EBS)'!B122","v":"Select"}]
["Sch VIA","Schedule of Funds Held",null,"(A) Cash - Asset Type 142",{"$f":"'Schedule VIA'!B152","v":"Select"},null,null,null,null,null,null,null,{"$f":"'Schedule VIA (EBS)'!B152","v":"Select"}]
["Sch VIA","Schedule of Funds Held",null,"(A) Cash - Asset Type 167",{"$f":"'Schedule VIA'!B177","v":"Select"},null,null,null,null,null,null,null,{"$f":"'Schedule VIA (EBS)'!B177","v":"Select"}]
["Sch VIA","Schedule of Funds Held",null,"(A) Cash - Asset Type 177",{"$f":"'Schedule VIA'!B187","v":"Select"},null,null,null,null,null,null,null,{"$f":"'Schedule VIA (EBS)'!B187","v":"Select"}]
["Sch VIA","Schedule of Funds Held",null,"(A) Cash - Currency 4",{"$f":"'Schedule VIA'!C14","v":"Select"},null,null,null,null,null,null,null,{"$f":"'Schedule VIA (EBS)'!C14","v":"Select"}]
["Sch VIA","Schedule of Funds Held",null,"(A) Cash - Currency 33",{"$f":"'Schedule VIA'!C43","v":"Select"},null,null,null,null,null,null,null,{"$f":"'Schedule VIA (EBS)'!C43","v":"Select"}]
["Sch VIA","Schedule of Funds Held",null,"(A) Cash - Currency 41",{"$f":"'Schedule VIA'!C51","v":"Select"},null,null,null,null,null,null,null,{"$f":"'Schedule VIA (EBS)'!C51","v":"Select"}]
["Sch VIA","Schedule of Funds Held",null,"(A) Cash - Currency 64",{"$f":"'Schedule VIA'!C74","v":"Select"},null,null,null,null,null,null,null,{"$f":"'Schedule VIA (EBS)'!C74","v":"Select"}]
["Sch VIA","Schedule of Funds Held",null,"(A) Cash - Currency 100",{"$f":"'Schedule VIA'!C110","v":"Select"},null,null,null,null,null,null,null,{"$f":"'Schedule VIA (EBS)'!C110","v":"Select"}]
["Sch VIA","Schedule of Funds Held",null,"(A) Cash - Currency 120",{"$f":"'Schedule VIA'!C130","v":"Select"},null,null,null,null,null,null,null,{"$f":"'Schedule VIA (EBS)'!C130","v":"Select"}]
["Sch VIA","Schedule of Funds Held",null,"(A) Cash - Currency 137",{"$f":"'Schedule VIA'!C147","v":"Select"},null,null,null,null,null,null,null,{"$f":"'Schedule VIA (EBS)'!C147","v":"Select"}]
["Sch VIA","Schedule of Funds Held",null,"(A) Cash - Currency 155",{"$f":"'Schedule VIA'!C165","v":"Select"},null,null,null,null,null,null,null,{"$f":"'Schedule VIA (EBS)'!C165","v":"Select"}]
["Sch VIA","Schedule of Funds Held",null,"(A) Cash - Currency 170",{"$f":"'Schedule VIA'!C180","v":"Select"},null,null,null,null,null,null,null,{"$f":"'Schedule VIA (EBS)'!C180","v":"Select"}]
["Sch VIA","Schedule of Funds Held",null,"(A) Cash - Currency 190",{"$f":"'Schedule VIA'!C200","v":"Select"},null,null,null,null,null,null,null,{"$f":"'Schedule VIA (EBS)'!C200","v":"Select"}]
["Sch VIA","Schedule of Funds Held",null,"(A) Cash - Rating 29",{"$f":"'Schedule VIA'!D39","v":"Select"},null,null,null,null,null,null,null,{"$f":"'Schedule VIA (EBS)'!D39","v":"Select"}]
["Sch VIA","Schedule of Funds Held",null,"(A) Cash - Rating 42",{"$f":"'Schedule VIA'!D52","v":"Select"},null,null,null,null,null,null,null,{"$f":"'Schedule VIA (EBS)'!D52","v":"Select"}]
["Sch VIA","Schedule of Funds Held",null,"(A) Cash - Rating 66",{"$f":"'Schedule VIA'!D76","v":"Select"},null,null,null,null,null,null,null,{"$f":"'Schedule VIA (EBS)'!D76","v":"Select"}]
["Sch VIA","Schedule of Funds Held",null,"(A) Cash - Rating 77",{"$f":"'Schedule VIA'!D87","v":"Select"},null,null,null,null,null,null,null,{"$f":"'Schedule VIA (EBS)'!D87","v":"Select"}]
["Sch VIA","Schedule of Funds Held",null,"(A) Cash - Rating 103",{"$f":"'Schedule VIA'!D113","v":"Select"},null,null,null,null,null,null,null,{"$f":"'Schedule VIA (EBS)'!D113","v":"Select"}]
["Sch VIA","Schedule of Funds Held",null,"(A) Cash - Rating 133",{"$f":"'Schedule VIA'!D143","v":"Select"},null,null,null,null,null,null,null,{"$f":"'Schedule VIA (EBS)'!D143","v":"Select"}]
["Sch VIA","Schedule of Funds Held",null,"(A) Cash - Rating 158",{"$f":"'Schedule VIA'!D168","v":"Select"},null,null,null,null,null,null,null,{"$f":"'Schedule VIA (EBS)'!D168","v":"Select"}]
["Sch VIA","Schedule of Funds Held",null,"(A) Cash - Rating 168",{"$f":"'Schedule VIA'!D178","v":"Select"},null,null,null,null,null,null,null,{"$f":"'Schedule VIA (EBS)'!D178","v":"Select"}]
["Sch VIA","Schedule of Funds Held",null,"(A) Cash - Rating 195",{"$f":"'Schedule VIA'!D205","v":"Select"},null,null,null,null,null,null,null,{"$f":"'Schedule VIA (EBS)'!D205","v":"Select"}]
["Sch VIA","Schedule of Funds Held",null,"(A) Cash - Nominal 20",{"$f":"'Schedule VIA'!E30","v":0},null,null,null,null,null,null,null,{"$f":"'Schedule VIA (EBS)'!E30","v":0}]
["Sch VIA","Schedule of Funds Held",null,"(A) Cash - Nominal 32",{"$f":"'Schedule VIA'!E42","v":0},null,null,null,null,null,null,null,{"$f":"'Schedule VIA (EBS)'!E42","v":0}]
["Sch VIA","Schedule of Funds Held",null,"(A) Cash - Nominal 49",{"$f":"'Schedule VIA'!E59","v":0},null,null,null,null,null,null,null,{"$f":"'Schedule VIA (EBS)'!E59","v":0}]
["Sch VIA","Schedule of Funds Held",null,"(A) Cash - Nominal 75",{"$f":"'Schedule VIA'!E85","v":0},null,null,null,null,null,null,null,{"$f":"'Schedule VIA (EBS)'!E85","v":0}]
["Sch VIA","Schedule of Funds Held",null,"(A) Cash - Nominal 108",{"$f":"'Schedule VIA'!E118","v":0},null,null,null,null,null,null,null,{"$f":"'Schedule VIA (EBS)'!E118","v":0}]
["Sch VIA","Schedule of Funds Held",null,"(A) Cash - Nominal 127",{"$f":"'Schedule VIA'!E137","v":0},null,null,null,null,null,null,null,{"$f":"'Schedule VIA (EBS)'!E137","v":0}]
["Sch VIA","Schedule of Funds Held",null,"(A) Cash - Nominal 145",{"$f":"'Schedule VIA'!E155","v":0},null,null,null,null,null,null,null,{"$f":"'Schedule VIA (EBS)'!E155","v":0}]
["Sch VIA","Schedule of Funds Held",null,"(A) Cash - Nominal 162",{"$f":"'Schedule VIA'!E172","v":0},null,null,null,null,null,null,null,{"$f":"'Schedule VIA (EBS)'!E172","v":0}]
["Sch VIA","Schedule of Funds Held",null,"(A) Cash - Nominal 182",{"$f":"'Schedule VIA'!E192","v":0},null,null,null,null,null,null,null,{"$f":"'Schedule VIA (EBS)'!E192","v":0}]
["Sch VIA","Schedule of Funds Held",null,"(A) Cash - Fair Value 18",{"$f":"'Schedule VIA'!F28","v":0},null,null,null,null,null,null,null,{"$f":"'Schedule VIA (EBS)'!F28","v":0}]
["Sch VIA","Schedule of Funds Held",null,"(A) Cash - Fair Value 37",{"$f":"'Schedule VIA'!F47","v":0},null,null,null,null,null,null,null,{"$f":"'Schedule VIA (EBS)'!F47","v":0}]
["Sch VIA","Schedule of Funds Held",null,"(A) Cash - Fair Value 53",{"$f":"'Schedule VIA'!F63","v":0},null,null,null,null,null,null,null,{"$f":"'Schedule VIA (EBS)'!F63","v":0}]
["Sch VIA","Schedule of Funds Held",null,"(A) Cash - Fair Value 74",{"$f":"'Schedule VIA'!F84","v":0},null,null,null,null,null,null,null,{"$f":"'Schedule VIA (EBS)'!F84","v":0}]
["Sch VIA","Schedule of Funds Held",null,"(A) Cash - Fair Value 105",{"$f":"'Schedule VIA'!F115","v":0},null,null,null,null,null,null,null,{"$f":"'Schedule VIA (EBS)'!F115","v":0}]
["Sch VIA","Schedule of Funds Held",null,"(A) Cash - Fair Value 111",{"$f":"'Schedule VIA'!F121","v":0},null,null,null,null,null,null,null,{"$f":"'Schedule VIA (EBS)'!F121","v":0}]
["Sch VIA","Schedule of Funds Held",null,"(A) Cash - Fair Value 140",{"$f":"'Schedule VIA'!F150","v":0},null,null,null,null,null,null,null,{"$f":"'Schedule VIA (EBS)'!F150","v":0}]
["Sch VIA","Schedule of Funds Held",null,"(A) Cash - Fair Value 170",{"$f":"'Schedule VIA'!F180","v":0},null,null,null,null,null,null,null,{"$f":"'Schedule VIA (EBS)'!F180","v":0}]
["Sch VIA","Schedule of Funds Held",null,"(A) Cash - Fair Value 175",{"$f":"'Schedule VIA'!F185","v":0},null,null,null,null,null,null,null,{"$f":"'Schedule VIA (EBS)'!F185","v":0}]
["Sch VIA","Schedule of Funds Held",null,"(A) Cash - Comments 3",{"$f":"'Schedule VIA'!G13","v":0},null,null,null,null,null,null,null,{"$f":"'Schedule VIA (EBS)'!G13","v":0}]
["Sch VIA","Schedule of Funds Held",null,"(A) Cash - Comments 31",{"$f":"'Schedule VIA'!G41","v":0},null,null,null,null,null,null,null,{"$f":"'Schedule VIA (EBS)'!G41","v":0}]
["Sch VIA","Schedule of Funds Held",null,"(A) Cash - Comments 40",{"$f":"'Schedule VIA'!G50","v":0},null,null,null,null,null,null,null,{"$f":"'Schedule VIA (EBS)'!G50","v":0}]
["Sch VIA","Schedule of Funds Held",null,"(A) Cash - Comments 66",{"$f":"'Schedule VIA'!G76","v":0},null,null,null,null,null,null,null,{"$f":"'Schedule VIA (EBS)'!G76","v":0}]
["Sch VIA","Schedule of Funds Held",null,"(A) Cash - Comments 99",{"$f":"'Schedule VIA'!G109","v":0},null,null,null,null,null,null,null,{"$f":"'Schedule VIA (EBS)'!G109","v":0}]
["Sch VIA","Schedule of Funds Held",null,"(A) Cash - Comments 118",{"$f":"'Schedule VIA'!G128","v":0},null,null,null,null,null,null,null,{"$f":"'Schedule VIA (EBS)'!G128","v":0}]
["Sch VIA","Schedule of Funds Held",null,"(A) Cash - Comments 136",{"$f":"'Schedule VIA'!G146","v":0},null,null,null,null,null,null,null,{"$f":"'Schedule VIA (EBS)'!G146","v":0}]
["Sch VIA","Schedule of Funds Held",null,"(A) Cash - Comments 153",{"$f":"'Schedule VIA'!G163","v":0},null,null,null,null,null,null,null,{"$f":"'Schedule VIA (EBS)'!G163","v":0}]
["Sch VIA","Schedule of Funds Held",null,"(A) Cash - Comments 169",{"$f":"'Schedule VIA'!G179","v":0},null,null,null,null,null,null,null,{"$f":"'Schedule VIA (EBS)'!G179","v":0}]
["Sch VIA","Schedule of Funds Held",null,"(A) Cash - Comments 188",{"$f":"'Schedule VIA'!G198","v":0},null,null,null,null,null,null,null,{"$f":"'Schedule VIA (EBS)'!G198","v":0}]
["Sch VIA","Schedule of Funds Held",null,"(B) Bonds - Asset Type 27",{"$f":"'Schedule VIA'!B245","v":"Select"},null,null,null,null,null,null,null,{"$f":"'Schedule VIA (EBS)'!B245","v":"Select"}]
["Sch VIA","Schedule of Funds Held",null,"(B) Bonds - Asset Type 48",{"$f":"'Schedule VIA'!B266","v":"Select"},null,null,null,null,null,null,null,{"$f":"'Schedule VIA (EBS)'!B266","v":"Select"}]
["Sch VIA","Schedule of Funds Held",null,"(B) Bonds - Asset Type 59",{"$f":"'Schedule VIA'!B277","v":"Select"},null,null,null,null,null,null,null,{"$f":"'Schedule VIA (EBS)'!B277","v":"Select"}]
["Sch VIA","Schedule of Funds Held",null,"(B) Bonds - Asset Type 81",{"$f":"'Schedule VIA'!B299","v":"Select"},null,null,null,null,null,null,null,{"$f":"'Schedule VIA (EBS)'!B299","v":"Select"}]
["Sch VIA","Schedule of Funds Held",null,"(B) Bonds - Asset Type 94",{"$f":"'Schedule VIA'!B312","v":"Select"},null,null,null,null,null,null,null,{"$f":"'Schedule VIA (EBS)'!B312","v":"Select"}]
["Sch VIA","Schedule of Funds Held",null,"(B) Bonds - Asset Type 118",{"$f":"'Schedule VIA'!B336","v":"Select"},null,null,null,null,null,null,null,{"$f":"'Schedule VIA (EBS)'!B336","v":"Select"}]
["Sch VIA","Schedule of Funds Held",null,"(B) Bonds - Asset Type 146",{"$f":"'Schedule VIA'!B364","v":"Select"},null,null,null,null,null,null,null,{"$f":"'Schedule VIA (EBS)'!B364","v":"Select"}]
["Sch VIA","Schedule of Funds Held",null,"(B) Bonds - Asset Type 177",{"$f":"'Schedule VIA'!B395","v":"Select"},null,null,null,null,null,null,null,{"$f":"'Schedule VIA (EBS)'!B395","v":"Select"}]
["Sch VIA","Schedule of Funds Held",null,"(B) Bonds - Asset Type 181",{"$f":"'Schedule VIA'!B399","v":"Select"},null,null,null,null,null,null,null,{"$f":"'Schedule VIA (EBS)'!B399","v":"Select"}]
["Sch VIA","Schedule of Funds Held",null,"(B) Bonds - Asset Type 214",{"$f":"'Schedule VIA'!B432","v":"Select"},null,null,null,null,null,null,null,{"$f":"'Schedule VIA (EBS)'!B432","v":"Select"}]
["Sch VIA","Schedule of Funds Held",null,"(B) Bonds - Asset Type 237",{"$f":"'Schedule VIA'!B455","v":"Select"},null,null,null,null,null,null,null,{"$f":"'Schedule VIA (EBS)'!B455","v":"Select"}]
["Sch VIA","Schedule of Funds Held",null,"(B) Bonds - Asset Type 247",{"$f":"'Schedule VIA'!B465","v":"Select"},null,null,null,null,null,null,null,{"$f":"'Schedule VIA (EBS)'!B465","v":"Select"}]
["Sch VIA","Schedule of Funds Held",null,"(B) Bonds - Asset Type 272",{"$f":"'Schedule VIA'!B490","v":"Select"},null,null,null,null,null,null,null,{"$f":"'Schedule VIA (EBS)'!B490","v":"Select"}]
["Sch VIA","Schedule of Funds Held",null,"(B) Bonds - Asset Type 306",{"$f":"'Schedule VIA'!B524","v":"Select"},null,null,null,null,null,null,null,{"$f":"'Schedule VIA (EBS)'!B524","v":"Select"}]
["Sch VIA","Schedule of Funds Held",null,"(B) Bonds - Asset Type 328",{"$f":"'Schedule VIA'!B546","v":"Select"},null,null,null,null,null,null,null,{"$f":"'Schedule VIA (EBS)'!B546","v":"Select"}]
["Sch VIA","Schedule of Funds Held",null,"(B) Bonds - Asset Type 343",{"$f":"'Schedule VIA'!B561","v":"Select"},null,null,null,null,null,null,null,{"$f":"'Schedule VIA (EBS)'!B561","v":"Select"}]
["Sch VIA","Schedule of Funds Held",null,"(B) Bonds - Asset Type 359",{"$f":"'Schedule VIA'!B577","v":"Select"},null,null,null,null,null,null,null,{"$f":"'Schedule VIA (EBS)'!B577","v":"Select"}]
["Sch VIA","Schedule of Funds Held",null,"(B) Bonds - Asset Type 380",{"$f":"'Schedule VIA'!B598","v":"Select"},null,null,null,null,null,null,null,{"$f":"'Schedule VIA (EBS)'!B598","v":"Select"}]
["Sch VIA","Schedule of Funds Held",null,"(B) Bonds - Asset Type 394",{"$f":"'Schedule VIA'!B612","v":"Select"},null,null,null,null,null,null,null,{"$f":"'Schedule VIA (EBS)'!B612","v":"Select"}]
["Sch VIA","Schedule of Funds Held",null,"(B) Bonds - Currency 35",{"$f":"'Schedule VIA'!C253","v":"Select"},null,null,null,null,null,null,null,{"$f":"'Schedule VIA (EBS)'!C253","v":"Select"}]
["Sch VIA","Schedule of Funds Held",null,"(B) Bonds - Currency 50",{"$f":"'Schedule VIA'!C268","v":"Select"},null,null,null,null,null,null,null,{"$f":"'Schedule VIA (EBS)'!C268","v":"Select"}]
["Sch VIA","Schedule of Funds Held",null,"(B) Bonds - Currency 72",{"$f":"'Schedule VIA'!C290","v":"Select"},null,null,null,null,null,null,null,{"$f":"'Schedule VIA (EBS)'!C290","v":"Select"}]
["Sch VIA","Schedule of Funds Held",null,"(B) Bonds - Currency 85",{"$f":"'Schedule VIA'!C303","v":"Select"},null,null,null,null,null,null,null,{"$f":"'Schedule VIA (EBS)'!C303","v":"Select"}]
["Sch VIA","Schedule of Funds Held",null,"(B) Bonds - Currency 109",{"$f":"'Schedule VIA'!C327","v":"Select"},null,null,null,null,null,null,null,{"$f":"'Schedule VIA (EBS)'!C327","v":"Select"}]
["Sch VIA","Schedule of Funds Held",null,"(B) Bonds - Currency 137",{"$f":"'Schedule VIA'!C355","v":"Select"},null,null,null,null,null,null,null,{"$f":"'Schedule VIA (EBS)'!C355","v":"Select"}]
["Sch VIA","Schedule of Funds Held",null,"(B) Bonds - Currency 146",{"$f":"'Schedule VIA'!C364","v":"Select"},null,null,null,null,null,null,null,{"$f":"'Schedule VIA (EBS)'!C364","v":"Select"}]
["Sch VIA","Schedule of Funds Held",null,"(B) Bonds - Currency 172",{"$f":"'Schedule VIA'!C390","v":"Select"},null,null,null,null,null,null,null,{"$f":"'Schedule VIA (EBS)'!C390","v":"Select"}]
["Sch VIA","Schedule of Funds Held",null,"(B) Bonds - Currency 205",{"$f":"'Schedule VIA'!C423","v":"Select"},null,null,null,null,null,null,null,{"$f":"'Schedule VIA (EBS)'!C423","v":"Select"}]
["Sch VIA","Schedule of Funds Held",null,"(B) Bonds - Currency 222",{"$f":"'Schedule VIA'!C440","v":"Select"},null,null,null,null,null,null,null,{"$f":"'Schedule VIA (EBS)'!C440","v":"Select"}]
["Sch VIA","Schedule of Funds Held",null,"(B) Bonds - Currency 244",{"$f":"'Schedule VIA'!C462","v":"Select"},null,null,null,null,null,null,null,{"$f":"'Schedule VIA (EBS)'!C462","v":"Select"}]
["Sch VIA","Schedule of Funds Held",null,"(B) Bonds - Currency 259",{"$f":"'Schedule VIA'!C477","v":"Select"},null,null,null,null,null,null,null,{"$f":"'Schedule VIA (EBS)'!C477","v":"Select"}]
["Sch VIA","Schedule of Funds Held",null,"(B) Bonds - Currency 279",{"$f":"'Schedule VIA'!C497","v":"Select"},null,null,null,null,null,null,null,{"$f":"'Schedule VIA (EBS)'!C497","v":"Select"}]
["Sch VIA","Schedule of Funds Held",null,"(B) Bonds - Currency 314",{"$f":"'Schedule VIA'!C532","v":"Select"},null,null,null,null,null,null,null,{"$f":"'Schedule VIA (EBS)'!C532","v":"Select"}]
["Sch VIA","Schedule of Funds Held",null,"(B) Bonds - Currency 335",{"$f":"'Schedule VIA'!C553","v":"Select"},null,null,null,null,null,null,null,{"$f":"'Schedule VIA (EBS)'!C553","v":"Select"}]
["Sch VIA","Schedule of Funds Held",null,"(B) Bonds - Currency 351",{"$f":"'Schedule VIA'!C569","v":"Select"},null,null,null,null,null,null,null,{"$f":"'Schedule VIA (EBS)'!C569","v":"Select"}]
["Sch VIA","Schedule of Funds Held",null,"(B) Bonds - Currency 370",{"$f":"'Schedule VIA'!C588","v":"Select"},null,null,null,null,null,null,null,{"$f":"'Schedule VIA (EBS)'!C588","v":"Select"}]
["Sch VIA","Schedule of Funds Held",null,"(B) Bonds - Currency 388",{"$f":"'Schedule VIA'!C606","v":"Select"},null,null,null,null,null,null,null,{"$f":"'Schedule VIA (EBS)'!C606","v":"Select"}]
["Sch VIA","Schedule of Funds Held",null,"(B) Bonds - Rating 22",{"$f":"'Schedule VIA'!D240","v":"Select"},null,null,null,null,null,null,null,{"$f":"'Schedule VIA (EBS)'!D240","v":"Select"}]
["Sch VIA","Schedule of Funds Held",null,"(B) Bonds - Rating 25",{"$f":"'Schedule VIA'!D243","v":"Select"},null,null,null,null,null,null,null,{"$f":"'Schedule VIA (EBS)'!D243","v":"Select"}]
["Sch VIA","Schedule of Funds Held",null,"(B) Bonds - Rating 57",{"$f":"'Schedule VIA'!D275","v":"Select"},null,null,null,null,null,null,null,{"$f":"'Schedule VIA (EBS)'!D275","v":"Select"}]
["Sch VIA","Schedule of Funds Held",null,"(B) Bonds - Rating 80",{"$f":"'Schedule VIA'!D298","v":"Select"},null,null,null,null,null,null,null,{"$f":"'Schedule VIA (EBS)'!D298","v":"Select"}]
["Sch VIA","Schedule of Funds Held",null,"(B) Bonds - Rating 92",{"$f":"'Schedule VIA'!D310","v":"Select"},null,null,null,null,null,null,null,{"$f":"'Schedule VIA (EBS)'!D310","v":"Select"}]
["Sch VIA","Schedule of Funds Held",null,"(B) Bonds - Rating 117",{"$f":"'Schedule VIA'!D335","v":"Select"},null,null,null,null,null,null,null,{"$f":"'Schedule VIA (EBS)'!D335","v":"Select"}]
["Sch VIA","Schedule of Funds Held",null,"(B) Bonds - Rating 148",{"$f":"'Schedule VIA'!D366","v":"Select"},null,null,null,null,null,null,null,{"$f":"'Schedule VIA (EBS)'!D366","v":"Select"}]
["Sch VIA","Schedule of Funds Held",null,"(B) Bonds - Rating 154",{"$f":"'Schedule VIA'!D372","v":"Select"},null,null,null,null,null,null,null,{"$f":"'Schedule VIA (EBS)'!D372","v":"Select"}]
["Sch VIA","Schedule of Funds Held",null,"(B) Bonds - Rating 179",{"$f":"'Schedule VIA'!D397","v":"Select"},null,null,null,null,null,null,null,{"$f":"'Schedule VIA (EBS)'!D397","v":"Select"}]
["Sch VIA","Schedule of Funds Held",null,"(B) Bonds - Rating 213",{"$f":"'Schedule VIA'!D431","v":"Select"},null,null,null,null,null,null,null,{"$f":"'Schedule VIA (EBS)'!D431","v":"Select"}]
["Sch VIA","Schedule of Funds Held",null,"(B) Bonds - Rating 235",{"$f":"'Schedule VIA'!D453","v":"Select"},null,null,null,null,null,null,null,{"$f":"'Schedule VIA (EBS)'!D453","v":"Select"}]
["Sch VIA","Schedule of Funds Held",null,"(B) Bonds - Rating 250",{"$f":"'Schedule VIA'!D468","v":"Select"},null,null,null,null,null,null,null,{"$f":"'Schedule VIA (EBS)'!D468","v":"Select"}]
["Sch VIA","Schedule of Funds Held",null,"(B) Bonds - Rating 270",{"$f":"'Schedule VIA'!D488","v":"Select"},null,null,null,null,null,null,null,{"$f":"'Schedule VIA (EBS)'!D488","v":"Select"}]
["Sch VIA","Schedule of Funds Held",null,"(B) Bonds - Rating 283",{"$f":"'Schedule VIA'!D501","v":"Select"},null,null,null,null,null,null,null,{"$f":"'Schedule VIA (EBS)'!D501","v":"Select"}]
["Sch VIA","Schedule of Funds Held",null,"(B) Bonds - Rating 305",{"$f":"'Schedule VIA'!D523","v":"Select"},null,null,null,null,null,null,null,{"$f":"'Schedule VIA (EBS)'!D523","v":"Select"}]
["Sch VIA","Schedule of Funds Held",null,"(B) Bonds - Rating 342",{"$f":"'Schedule VIA'!D560","v":"Select"},null,null,null,null,null,null,null,{"$f":"'Schedule VIA (EBS)'!D560","v":"Select"}]
["Sch VIA","Schedule of Funds Held",null,"(B) Bonds - Rating 359",{"$f":"'Schedule VIA'!D577","v":"Select"},null,null,null,null,null,null,null,{"$f":"'Schedule VIA (EBS)'!D577","v":"Select"}]
["Sch VIA","Schedule of Funds Held",null,"(B) Bonds - Rating 377",{"$f":"'Schedule VIA'!D595","v":"Select"},null,null,null,null,null,null,null,{"$f":"'Schedule VIA (EBS)'!D595","v":"Select"}]
["Sch VIA","Schedule of Funds Held",null,"(B) Bonds - Rating 396",{"$f":"'Schedule VIA'!D614","v":"Select"},null,null,null,null,null,null,null,{"$f":"'Schedule VIA (EBS)'!D614","v":"Select"}]
["Sch VIA","Schedule of Funds Held",null,"(B) Bonds - Nominal 12",{"$f":"'Schedule VIA'!E230","v":0},null,null,null,null,null,null,null,{"$f":"'Schedule VIA (EBS)'!E230","v":0}]
["Sch VIA","Schedule of Funds Held",null,"(B) Bonds - Nominal 33",{"$f":"'Schedule VIA'!E251","v":0},null,null,null,null,null,null,null,{"$f":"'Schedule VIA (EBS)'!E251","v":0}]
["Sch VIA","Schedule of Funds Held",null,"(B) Bonds - Nominal 64",{"$f":"'Schedule VIA'!E282","v":0},null,null,null,null,null,null,null,{"$f":"'Schedule VIA (EBS)'!E282","v":0}]
["Sch VIA","Schedule of Funds Held",null,"(B) Bonds - Nominal 92",{"$f":"'Schedule VIA'!E310","v":0},null,null,null,null,null,null,null,{"$f":"'Schedule VIA (EBS)'!E310","v":0}]
["Sch VIA","Schedule of Funds Held",null,"(B) Bonds - Nominal 99",{"$f":"'Schedule VIA'!E317","v":0},null,null,null,null,null,null,null,{"$f":"'Schedule VIA (EBS)'!E317","v":0}]
["Sch VIA","Schedule of Funds Held",null,"(B) Bonds - Nominal 125",{"$f":"'Schedule VIA'!E343","v":0},null,null,null,null,null,null,null,{"$f":"'Schedule VIA (EBS)'!E343","v":0}]
["Sch VIA","Schedule of Funds Held",null,"(B) Bonds - Nominal 155",{"$f":"'Schedule VIA'!E373","v":0},null,null,null,null,null,null,null,{"$f":"'Schedule VIA (EBS)'!E373","v":0}]
["Sch VIA","Schedule of Funds Held",null,"(B) Bonds - Nominal 162",{"$f":"'Schedule VIA'!E380","v":0},null,null,null,null,null,null,null,{"$f":"'Schedule VIA (EBS)'!E380","v":0}]
["Sch VIA","Schedule of Funds Held",null,"(B) Bonds - Nominal 190",{"$f":"'Schedule VIA'!E408","v":0},null,null,null,null,null,null,null,{"$f":"'Schedule VIA (EBS)'!E408","v":0}]
["Sch VIA","Schedule of Funds Held",null,"(B) Bonds - Nominal 221",{"$f":"'Schedule VIA'!E439","v":0},null,null,null,null,null,null,null,{"$f":"'Schedule VIA (EBS)'!E439","v":0}]
["Sch VIA","Schedule of Funds Held",null,"(B) Bonds - Nominal 242",{"$f":"'Schedule VIA'!E460","v":0},null,null,null,null,null,null,null,{"$f":"'Schedule VIA (EBS)'!E460","v":0}]
["Sch VIA","Schedule of Funds Held",null,"(B) Bonds - Nominal 258",{"$f":"'Schedule VIA'!E476","v":0},null,null,null,null,null,null,null,{"$f":"'Schedule VIA (EBS)'!E476","v":0}]
["Sch VIA","Schedule of Funds Held",null,"(B) Bonds - Nominal 277",{"$f":"'Schedule VIA'!E495","v":0},null,null,null,null,null,null,null,{"$f":"'Schedule VIA (EBS)'!E495","v":0}]
["Sch VIA","Schedule of Funds Held",null,"(B) Bonds - Nominal 295",{"$f":"'Schedule VIA'!E513","v":0},null,null,null,null,null,null,null,{"$f":"'Schedule VIA (EBS)'!E513","v":0}]
["Sch VIA","Schedule of Funds Held",null,"(B) Bonds - Nominal 333",{"$f":"'Schedule VIA'!E551","v":0},null,null,null,null,null,null,null,{"$f":"'Schedule VIA (EBS)'!E551","v":0}]
["Sch VIA","Schedule of Funds Held",null,"(B) Bonds - Nominal 350",{"$f":"'Schedule VIA'!E568","v":0},null,null,null,null,null,null,null,{"$f":"'Schedule VIA (EBS)'!E568","v":0}]
["Sch VIA","Schedule of Funds Held",null,"(B) Bonds - Nominal 368",{"$f":"'Schedule VIA'!E586","v":0},null,null,null,null,null,null,null,{"$f":"'Schedule VIA (EBS)'!E586","v":0}]
["Sch VIA","Schedule of Funds Held",null,"(B) Bonds - Nominal 387",{"$f":"'Schedule VIA'!E605","v":0},null,null,null,null,null,null,null,{"$f":"'Schedule VIA (EBS)'!E605","v":0}]
["Sch VIA","Schedule of Funds Held",null,"(B) Bonds - Nominal 399",{"$f":"'Schedule VIA'!E617","v":0},null,null,null,null,null,null,null,{"$f":"'Schedule VIA (EBS)'!E617","v":0}]
["Sch VIA","Schedule of Funds Held",null,"(B) Bonds - Fair Value 24",{"$f":"'Schedule VIA'!F242","v":0},null,null,null,null,null,null,null,{"$f":"'Schedule VIA (EBS)'!F242","v":0}]
["Sch VIA","Schedule of Funds Held",null,"(B) Bonds - Fair Value 55",{"$f":"'Schedule VIA'!F273","v":0},null,null,null,null,null,null,null,{"$f":"'Schedule VIA (EBS)'!F273","v":0}]
["Sch VIA","Schedule of Funds Held",null,"(B) Bonds - Fair Value 83",{"$f":"'Schedule VIA'!F301","v":0},null,null,null,null,null,null,null,{"$f":"'Schedule VIA (EBS)'!F301","v":0}]
["Sch VIA","Schedule of Funds Held",null,"(B) Bonds - Fair Value 90",{"$f":"'Schedule VIA'!F308","v":0},null,null,null,null,null,null,null,{"$f":"'Schedule VIA (EBS)'!F308","v":0}]
["Sch VIA","Schedule of Funds Held",null,"(B) Bonds - Fair Value 116",{"$f":"'Schedule VIA'!F334","v":0},null,null,null,null,null,null,null,{"$f":"'Schedule VIA (EBS)'!F334","v":0}]
["Sch VIA","Schedule of Funds Held",null,"(B) Bonds - Fair Value 137",{"$f":"'Schedule VIA'!F355","v":0},null,null,null,null,null,null,null,{"$f":"'Schedule VIA (EBS)'!F355","v":0}]
["Sch VIA","Schedule of Funds Held",null,"(B) Bonds - Fair Value 162",{"$f":"'Schedule VIA'!F380","v":0},null,null,null,null,null,null,null,{"$f":"'Schedule VIA (EBS)'!F380","v":0}]
["Sch VIA","Schedule of Funds Held",null,"(B) Bonds - Fair Value 174",{"$f":"'Schedule VIA'!F392","v":0},null,null,null,null,null,null,null,{"$f":"'Schedule VIA (EBS)'!F392","v":0}]
["Sch VIA","Schedule of Funds Held",null,"(B) Bonds - Fair Value 197",{"$f":"'Schedule VIA'!F415","v":0},null,null,null,null,null,null,null,{"$f":"'Schedule VIA (EBS)'!F415","v":0}]
["Sch VIA","Schedule of Funds Held",null,"(B) Bonds - Fair Value 229",{"$f":"'Schedule VIA'!F447","v":0},null,null,null,null,null,null,null,{"$f":"'Schedule VIA (EBS)'!F447","v":0}]
["Sch VIA","Schedule of Funds Held",null,"(B) Bonds - Fair Value 253",{"$f":"'Schedule VIA'!F471","v":0},null,null,null,null,null,null,null,{"$f":"'Schedule VIA (EBS)'!F471","v":0}]
["Sch VIA","Schedule of Funds Held",null,"(B) Bonds - Fair Value 266",{"$f":"'Schedule VIA'!F484","v":0},null,null,null,null,null,null,null,{"$f":"'Schedule VIA (EBS)'!F484","v":0}]
["Sch VIA","Schedule of Funds Held",null,"(B) Bonds - Fair Value 284",{"$f":"'Schedule VIA'!F502","v":0},null,null,null,null,null,null,null,{"$f":"'Schedule VIA (EBS)'!F502","v":0}]
["Sch VIA","Schedule of Funds Held",null,"(B) Bonds - Fair Value 303",{"$f":"'Schedule VIA'!F521","v":0},null,null,null,null,null,null,null,{"$f":"'Schedule VIA (EBS)'!F521","v":0}]
["Sch VIA","Schedule of Funds Held",null,"(B) Bonds - Fair Value 340",{"$f":"'Schedule VIA'!F558","v":0},null,null,null,null,null,null,null,{"$f":"'Schedule VIA (EBS)'!F558","v":0}]
["Sch VIA","Schedule of Funds Held",null,"(B) Bonds - Fair Value 362",{"$f":"'Schedule VIA'!F580","v":0},null,null,null,null,null,null,null,{"$f":"'Schedule VIA (EBS)'!F580","v":0}]
["Sch VIA","Schedule of Funds Held",null,"(B) Bonds - Fair Value 375",{"$f":"'Schedule VIA'!F593","v":0},null,null,null,null,null,null,null,{"$f":"'Schedule VIA (EBS)'!F593","v":0}]
["Sch VIA","Schedule of Funds Held",null,"(B) Bonds - Fair Value 395",{"$f":"'Schedule VIA'!F613","v":0},null,null,null,null,null,null,null,{"$f":"'Schedule VIA (EBS)'!F613","v":0}]
["Sch VIA","Schedule of Funds Held",null,"(B) Bonds - Weighted Average YTM 10",{"$f":"'Schedule VIA'!G228","v":0},null,null,null,null,null,null,null,{"$f":"'Schedule VIA (EBS)'!G228","v":0}]
["Sch VIA","Schedule of Funds Held",null,"(B) Bonds - Weighted Average YTM 32",{"$f":"'Schedule VIA'!G250","v":0},null,null,null,null,null,null,null,{"$f":"'Schedule VIA (EBS)'!G250","v":0}]
["Sch VIA","Schedule of Funds Held",null,"(B) Bonds - Weighted Average YTM 62",{"$f":"'Schedule VIA'!G280","v":0},null,null,null,null,null,null,null,{"$f":"'Schedule VIA (EBS)'!G280","v":0}]
["Sch VIA","Schedule of Funds Held",null,"(B) Bonds - Weighted Average YTM 91",{"$f":"'Schedule VIA'!G309","v":0},null,null,null,null,null,null,null,{"$f":"'Schedule VIA (EBS)'!G309","v":0}]
["Sch VIA","Schedule of Funds Held",null,"(B) Bonds - Weighted Average YTM 97",{"$f":"'Schedule VIA'!G315","v":0},null,null,null,null,null,null,null,{"$f":"'Schedule VIA (EBS)'!G315","v":0}]
["Sch VIA","Schedule of Funds Held",null,"(B) Bonds - Weighted Average YTM 128",{"$f":"'Schedule VIA'!G346","v":0},null,null,null,null,null,null,null,{"$f":"'Schedule VIA (EBS)'!G346","v":0}]
["Sch VIA","Schedule of Funds Held",null,"(B) Bonds - Weighted Average YTM 153",{"$f":"'Schedule VIA'!G371","v":0},null,null,null,null,null,null,null,{"$f":"'Schedule VIA (EBS)'!G371","v":0}]
["Sch VIA","Schedule of Funds Held",null,"(B) Bonds - Weighted Average YTM 161",{"$f":"'Schedule VIA'!G379","v":0},null,null,null,null,null,null,null,{"$f":"'Schedule VIA (EBS)'!G379","v":0}]
["Sch VIA","Schedule of Funds Held",null,"(B) Bonds - Weighted Average YTM 188",{"$f":"'Schedule VIA'!G406","v":0},null,null,null,null,null,null,null,{"$f":"'Schedule VIA (EBS)'!G406","v":0}]
["Sch VIA","Schedule of Funds Held",null,"(B) Bonds - Weighted Average YTM 220",{"$f":"'Schedule VIA'!G438","v":0},null,null,null,null,null,null,null,{"$f":"'Schedule VIA (EBS)'!G438","v":0}]
["Sch VIA","Schedule of Funds Held",null,"(B) Bonds - Weighted Average YTM 223",{"$f":"'Schedule VIA'!G441","v":0},null,null,null,null,null,null,null,{"$f":"'Schedule VIA (EBS)'!G441","v":0}]
["Sch VIA","Schedule of Funds Held",null,"(B) Bonds - Weighted Average YTM 257",{"$f":"'Schedule VIA'!G475","v":0},null,null,null,null,null,null,null,{"$f":"'Schedule VIA (EBS)'!G475","v":0}]
["Sch VIA","Schedule of Funds Held",null,"(B) Bonds - Weighted Average YTM 275",{"$f":"'Schedule VIA'!G493","v":0},null,null,null,null,null,null,null,{"$f":"'Schedule VIA (EBS)'!G493","v":0}]
["Sch VIA","Schedule of Funds Held",null,"(B) Bonds - Weighted Average YTM 294",{"$f":"'Schedule VIA'!G512","v":0},null,null,null,null,null,null,null,{"$f":"'Schedule VIA (EBS)'!G512","v":0}]
["Sch VIA","Schedule of Funds Held",null,"(B) Bonds - Weighted Average YTM 311",{"$f":"'Schedule VIA'!G529","v":0},null,null,null,null,null,null,null,{"$f":"'Schedule VIA (EBS)'!G529","v":0}]
["Sch VIA","Schedule of Funds Held",null,"(B) Bonds - Weighted Average YTM 347",{"$f":"'Schedule VIA'!G565","v":0},null,null,null,null,null,null,null,{"$f":"'Schedule VIA (EBS)'!G565","v":0}]
["Sch VIA","Schedule of Funds Held",null,"(B) Bonds - Weighted Average YTM 370",{"$f":"'Schedule VIA'!G588","v":0},null,null,null,null,null,null,null,{"$f":"'Schedule VIA (EBS)'!G588","v":0}]
["Sch VIA","Schedule of Funds Held",null,"(B) Bonds - Weighted Average YTM 382",{"$f":"'Schedule VIA'!G600","v":0},null,null,null,null,null,null,null,{"$f":"'Schedule VIA (EBS)'!G600","v":0}]
["Sch VIA","Schedule of Funds Held",null,"(B) Bonds - Effective Duration 7",{"$f":"'Schedule VIA'!H225","v":0},null,null,null,null,null,null,null,{"$f":"'Schedule VIA (EBS)'!H225","v":0}]
["Sch VIA","Schedule of Funds Held",null,"(B) Bonds - Effective Duration 17",{"$f":"'Schedule VIA'!H235","v":0},null,null,null,null,null,null,null,{"$f":"'Schedule VIA (EBS)'!H235","v":0}]
["Sch VIA","Schedule of Funds Held",null,"(B) Bonds - Effective Duration 40",{"$f":"'Schedule VIA'!H258","v":0},null,null,null,null,null,null,null,{"$f":"'Schedule VIA (EBS)'!H258","v":0}]
["Sch VIA","Schedule of Funds Held",null,"(B) Bonds - Effective Duration 73",{"$f":"'Schedule VIA'!H291","v":0},null,null,null,null,null,null,null,{"$f":"'Schedule VIA (EBS)'!H291","v":0}]
["Sch VIA","Schedule of Funds Held",null,"(B) Bonds - Effective Duration 99",{"$f":"'Schedule VIA'!H317","v":0},null,null,null,null,null,null,null,{"$f":"'Schedule VIA (EBS)'!H317","v":0}]
["Sch VIA","Schedule of Funds Held",null,"(B) Bonds - Effective Duration 104",{"$f":"'Schedule VIA'!H322","v":0},null,null,null,null,null,null,null,{"$f":"'Schedule VIA (EBS)'!H322","v":0}]
["Sch VIA","Schedule of Funds Held",null,"(B) Bonds - Effective Duration 136",{"$f":"'Schedule VIA'!H354","v":0},null,null,null,null,null,null,null,{"$f":"'Schedule VIA (EBS)'!H354","v":0}]
["Sch VIA","Schedule of Funds Held",null,"(B) Bonds - Effective Duration 160",{"$f":"'Schedule VIA'!H378","v":0},null,null,null,null,null,null,null,{"$f":"'Schedule VIA (EBS)'!H378","v":0}]
["Sch VIA","Schedule of Funds Held",null,"(B) Bonds - Effective Duration 173",{"$f":"'Schedule VIA'!H391","v":0},null,null,null,null,null,null,null,{"$f":"'Schedule VIA (EBS)'!H391","v":0}]
["Sch VIA","Schedule of Funds Held",null,"(B) Bonds - Effective Duration 195",{"$f":"'Schedule VIA'!H413","v":0},null,null,null,null,null,null,null,{"$f":"'Schedule VIA (EBS)'!H413","v":0}]
["Sch VIA","Schedule of Funds Held",null,"(B) Bonds - Effective Duration 228",{"$f":"'Schedule VIA'!H446","v":0},null,null,null,null,null,null,null,{"$f":"'Schedule VIA (EBS)'!H446","v":0}]
["Sch VIA","Schedule of Funds Held",null,"(B) Bonds - Effective Duration 251",{"$f":"'Schedule VIA'!H469","v":0},null,null,null,null,null,null,null,{"$f":"'Schedule VIA (EBS)'!H469","v":0}]
["Sch VIA","Schedule of Funds Held",null,"(B) Bonds - Effective Duration 265",{"$f":"'Schedule VIA'!H483","v":0},null,null,null,null,null,null,null,{"$f":"'Schedule VIA (EBS)'!H483","v":0}]
["Sch VIA","Schedule of Funds Held",null,"(B) Bonds - Effective Duration 286",{"$f":"'Schedule VIA'!H504","v":0},null,null,null,null,null,null,null,{"$f":"'Schedule VIA (EBS)'!H504","v":0}]
["Sch VIA","Schedule of Funds Held",null,"(B) Bonds - Effective Duration 302",{"$f":"'Schedule VIA'!H520","v":0},null,null,null,null,null,null,null,{"$f":"'Schedule VIA (EBS)'!H520","v":0}]
["Sch VIA","Schedule of Funds Held",null,"(B) Bonds - Effective Duration 338",{"$f":"'Schedule VIA'!H556","v":0},null,null,null,null,null,null,null,{"$f":"'Schedule VIA (EBS)'!H556","v":0}]
["Sch VIA","Schedule of Funds Held",null,"(B) Bonds - Effective Duration 339",{"$f":"'Schedule VIA'!H557","v":0},null,null,null,null,null,null,null,{"$f":"'Schedule VIA (EBS)'!H557","v":0}]
["Sch VIA","Schedule of Funds Held",null,"(B) Bonds - Effective Duration 373",{"$f":"'Schedule VIA'!H591","v":0},null,null,null,null,null,null,null,{"$f":"'Schedule VIA (EBS)'!H591","v":0}]
["Sch VIA","Schedule of Funds Held",null,"(B) Bonds - Effective Duration 394",{"$f":"'Schedule VIA'!H612","v":0},null,null,null,null,null,null,null,{"$f":"'Schedule VIA (EBS)'!H612","v":0}]
["Sch VIA","Schedule of Funds Held",null,"(B) Bonds - Comments 8",{"$f":"'Schedule VIA'!I226","v":0},null,null,null,null,null,null,null,{"$f":"'Schedule VIA (EBS)'!I226","v":0}]
["Sch VIA","Schedule of Funds Held",null,"(B) Bonds - Comments 31",{"$f":"'Schedule VIA'!I249","v":0},null,null,null,null,null,null,null,{"$f":"'Schedule VIA (EBS)'!I249","v":0}]
["Sch VIA","Schedule of Funds Held",null,"(B) Bonds - Comments 52",{"$f":"'Schedule VIA'!I270","v":0},null,null,null,null,null,null,null,{"$f":"'Schedule VIA (EBS)'!I270","v":0}]
["Sch VIA","Schedule of Funds Held",null,"(B) Bonds - Comments 80",{"$f":"'Schedule VIA'!I298","v":0},null,null,null,null,null,null,null,{"$f":"'Schedule VIA (EBS)'!I298","v":0}]
["Sch VIA","Schedule of Funds Held",null,"(B) Bonds - Comments 107",{"$f":"'Schedule VIA'!I325","v":0},null,null,null,null,null,null,null,{"$f":"'Schedule VIA (EBS)'!I325","v":0}]
["Sch VIA","Schedule of Funds Held",null,"(B) Bonds - Comments 115",{"$f":"'Schedule VIA'!I333","v":0},null,null,null,null,null,null,null,{"$f":"'Schedule VIA (EBS)'!I333","v":0}]
["Sch VIA","Schedule of Funds Held",null,"(B) Bonds - Comments 144",{"$f":"'Schedule VIA'!I362","v":0},null,null,null,null,null,null,null,{"$f":"'Schedule VIA (EBS)'!I362","v":0}]
["Sch VIA","Schedule of Funds Held",null,"(B) Bonds - Comments 171",{"$f":"'Schedule VIA'!I389","v":0},null,null,null,null,null,null,null,{"$f":"'Schedule VIA (EBS)'!I389","v":0}]
["Sch VIA","Schedule of Funds Held",null,"(B) Bonds - Comments 181",{"$f":"'Schedule VIA'!I399","v":0},null,null,null,null,null,null,null,{"$f":"'Schedule VIA (EBS)'!I399","v":0}]
["Sch VIA","Schedule of Funds Held",null,"(B) Bonds - Comments 202",{"$f":"'Schedule VIA'!I420","v":0},null,null,null,null,null,null,null,{"$f":"'Schedule VIA (EBS)'!I420","v":0}]
["Sch VIA","Schedule of Funds Held",null,"(B) Bonds - Comments 240",{"$f":"'Schedule VIA'!I458","v":0},null,null,null,null,null,null,null,{"$f":"'Schedule VIA (EBS)'!I458","v":0}]
["Sch VIA","Schedule of Funds Held",null,"(B) Bonds - Comments 258",{"$f":"'Schedule VIA'!I476","v":0},null,null,null,null,null,null,null,{"$f":"'Schedule VIA (EBS)'!I476","v":0}]
["Sch VIA","Schedule of Funds Held",null,"(B) Bonds - Comments 273",{"$f":"'Schedule VIA'!I491","v":0},null,null,null,null,null,null,null,{"$f":"'Schedule VIA (EBS)'!I491","v":0}]
["Sch VIA","Schedule of Funds Held",null,"(B) Bonds - Comments 293",{"$f":"'Schedule VIA'!I511","v":0},null,null,null,null,null,null,null,{"$f":"'Schedule VIA (EBS)'!I511","v":0}]
["Sch VIA","Schedule of Funds Held",null,"(B) Bonds - Comments 310",{"$f":"'Schedule VIA'!I528","v":0},null,null,null,null,null,null,null,{"$f":"'Schedule VIA (EBS)'!I528","v":0}]
["Sch VIA","Schedule of Funds Held",null,"(B) Bonds - Comments 328",{"$f":"'Schedule VIA'!I546","v":0},null,null,null,null,null,null,null,{"$f":"'Schedule VIA (EBS)'!I546","v":0}]
["Sch VIA","Schedule of Funds Held",null,"(B) Bonds - Comments 369",{"$f":"'Schedule VIA'!I587","v":0},null,null,null,null,null,null,null,{"$f":"'Schedule VIA (EBS)'!I587","v":0}]
["Sch VIA","Schedule of Funds Held",null,"(B) Bonds - Comments 380",{"$f":"'Schedule VIA'!I598","v":0},null,null,null,null,null,null,null,{"$f":"'Schedule VIA (EBS)'!I598","v":0}]
["Sch VIA","Schedule of Funds Held",null,"(B) Bonds Sovereign Debt - Country 5",{"$f":"'Schedule VIA'!C631","v":"Select"},null,null,null,null,null,null,null,{"$f":"'Schedule VIA (EBS)'!C631","v":"Select"}]
["Sch VIA","Schedule of Funds Held",null,"(B) Bonds Sovereign Debt - Country 14",{"$f":"'Schedule VIA'!C640","v":"Select"},null,null,null,null,null,null,null,{"$f":"'Schedule VIA (EBS)'!C640","v":"Select"}]
["Sch VIA","Schedule of Funds Held",null,"(B) Bonds Sovereign Debt - Country 38",{"$f":"'Schedule VIA'!C664","v":"Select"},null,null,null,null,null,null,null,{"$f":"'Schedule VIA (EBS)'!C664","v":"Select"}]
["Sch VIA","Schedule of Funds Held",null,"(B) Bonds Sovereign Debt - Country 70",{"$f":"'Schedule VIA'!C696","v":"Select"},null,null,null,null,null,null,null,{"$f":"'Schedule VIA (EBS)'!C696","v":"Select"}]
["Sch VIA","Schedule of Funds Held",null,"(B) Bonds Sovereign Debt - Country 97",{"$f":"'Schedule VIA'!C723","v":"Select"},null,null,null,null,null,null,null,{"$f":"'Schedule VIA (EBS)'!C723","v":"Select"}]
["Sch VIA","Schedule of Funds Held",null,"(B) Bonds Sovereign Debt - Country 105",{"$f":"'Schedule VIA'!C731","v":"Select"},null,null,null,null,null,null,null,{"$f":"'Schedule VIA (EBS)'!C731","v":"Select"}]
["Sch VIA","Schedule of Funds Held",null,"(B) Bonds Sovereign Debt - Country 134",{"$f":"'Schedule VIA'!C760","v":"Select"},null,null,null,null,null,null,null,{"$f":"'Schedule VIA (EBS)'!C760","v":"Select"}]
["Sch VIA","Schedule of Funds Held",null,"(B) Bonds Sovereign Debt - Country 157",{"$f":"'Schedule VIA'!C783","v":"Select"},null,null,null,null,null,null,null,{"$f":"'Schedule VIA (EBS)'!C783","v":"Select"}]
["Sch VIA","Schedule of Funds Held",null,"(B) Bonds Sovereign Debt - Country 171",{"$f":"'Schedule VIA'!C797","v":"Select"},null,null,null,null,null,null,null,{"$f":"'Schedule VIA (EBS)'!C797","v":"Select"}]
["Sch VIA","Schedule of Funds Held",null,"(B) Bonds Sovereign Debt - Country 192",{"$f":"'Schedule VIA'!C818","v":"Select"},null,null,null,null,null,null,null,{"$f":"'Schedule VIA (EBS)'!C818","v":"Select"}]
["Sch VIA","Schedule of Funds Held",null,"(B) Bonds Sovereign Debt - Currency 8",{"$f":"'Schedule VIA'!D634","v":"Select"},null,null,null,null,null,null,null,{"$f":"'Schedule VIA (EBS)'!D634","v":"Select"}]
["Sch VIA","Schedule of Funds Held",null,"(B) Bonds Sovereign Debt - Currency 47",{"$f":"'Schedule VIA'!D673","v":"Select"},null,null,null,null,null,null,null,{"$f":"'Schedule VIA (EBS)'!D673","v":"Select"}]
["Sch VIA","Schedule of Funds Held",null,"(B) Bonds Sovereign Debt - Currency 64",{"$f":"'Schedule VIA'!D690","v":"Select"},null,null,null,null,null,null,null,{"$f":"'Schedule VIA (EBS)'!D690","v":"Select"}]
["Sch VIA","Schedule of Funds Held",null,"(B) Bonds Sovereign Debt - Currency 84",{"$f":"'Schedule VIA'!D710","v":"Select"},null,null,null,null,null,null,null,{"$f":"'Schedule VIA (EBS)'!D710","v":"Select"}]
["Sch VIA","Schedule of Funds Held",null,"(B) Bonds Sovereign Debt - Currency 99",{"$f":"'Schedule VIA'!D725","v":"Select"},null,null,null,null,null,null,null,{"$f":"'Schedule VIA (EBS)'!D725","v":"Select"}]
["Sch VIA","Schedule of Funds Held",null,"(B) Bonds Sovereign Debt - Currency 117",{"$f":"'Schedule VIA'!D743","v":"Select"},null,null,null,null,null,null,null,{"$f":"'Schedule VIA (EBS)'!D743","v":"Select"}]
["Sch VIA","Schedule of Funds Held",null,"(B) Bonds Sovereign Debt - Currency 155",{"$f":"'Schedule VIA'!D781","v":"Select"},null,null,null,null,null,null,null,{"$f":"'Schedule VIA (EBS)'!D781","v":"Select"}]
["Sch VIA","Schedule of Funds Held",null,"(B) Bonds Sovereign Debt - Currency 176",{"$f":"'Schedule VIA'!D802","v":"Select"},null,null,null,null,null,null,null,{"$f":"'Schedule VIA (EBS)'!D802","v":"Select"}]
["Sch VIA","Schedule of Funds Held",null,"(B) Bonds Sovereign Debt - Currency 190",{"$f":"'Schedule VIA'!D816","v":"Select"},null,null,null,null,null,null,null,{"$f":"'Schedule VIA (EBS)'!D816","v":"Select"}]
["Sch VIA","Schedule of Funds Held",null,"(B) Bonds Sovereign Debt - Rating 13",{"$f":"'Schedule VIA'!E639","v":"Select"},null,null,null,null,null,null,null,{"$f":"'Schedule VIA (EBS)'!E639","v":"Select"}]
["Sch VIA","Schedule of Funds Held",null,"(B) Bonds Sovereign Debt - Rating 21",{"$f":"'Schedule VIA'!E647","v":"Select"},null,null,null,null,null,null,null,{"$f":"'Schedule VIA (EBS)'!E647","v":"Select"}]
["Sch VIA","Schedule of Funds Held",null,"(B) Bonds Sovereign Debt - Rating 50",{"$f":"'Schedule VIA'!E676","v":"Select"},null,null,null,null,null,null,null,{"$f":"'Schedule VIA (EBS)'!E676","v":"Select"}]
["Sch VIA","Schedule of Funds Held",null,"(B) Bonds Sovereign Debt - Rating 77",{"$f":"'Schedule VIA'!E703","v":"Select"},null,null,null,null,null,null,null,{"$f":"'Schedule VIA (EBS)'!E703","v":"Select"}]
["Sch VIA","Schedule of Funds Held",null,"(B) Bonds Sovereign Debt - Rating 87",{"$f":"'Schedule VIA'!E713","v":"Select"},null,null,null,null,null,null,null,{"$f":"'Schedule VIA (EBS)'!E713","v":"Select"}]
["Sch VIA","Schedule of Funds Held",null,"(B) Bonds Sovereign Debt - Rating 112",{"$f":"'Schedule VIA'!E738","v":"Select"},null,null,null,null,null,null,null,{"$f":"'Schedule VIA (EBS)'!E738","v":"Select"}]
["Sch VIA","Schedule of Funds Held",null,"(B) Bonds Sovereign Debt - Rating 142",{"$f":"'Schedule VIA'!E768","v":"Select"},null,null,null,null,null,null,null,{"$f":"'Schedule VIA (EBS)'!E768","v":"Select"}]
["Sch VIA","Schedule of Funds Held",null,"(B) Bonds Sovereign Debt - Rating 168",{"$f":"'Schedule VIA'!E794","v":"Select"},null,null,null,null,null,null,null,{"$f":"'Schedule VIA (EBS)'!E794","v":"Select"}]
["Sch VIA","Schedule of Funds Held",null,"(B) Bonds Sovereign Debt - Rating 179",{"$f":"'Schedule VIA'!E805","v":"Select"},null,null,null,null,null,null,null,{"$f":"'Schedule VIA (EBS)'!E805","v":"Select"}]
["Sch VIA","Schedule of Funds Held",null,"(B) Bonds Sovereign Debt - Rating 199",{"$f":"'Schedule VIA'!E825","v":"Select"},null,null,null,null,null,null,null,{"$f":"'Schedule VIA (EBS)'!E825","v":"Select"}]
["Sch VIA","Schedule of Funds Held",null,"(B) Bonds Sovereign Debt - Fair Value 16",{"$f":"'Schedule VIA'!F642","v":0},null,null,null,null,null,null,null,{"$f":"'Schedule VIA (EBS)'!F642","v":0}]
["Sch VIA","Schedule of Funds Held",null,"(B) Bonds Sovereign Debt - Fair Value 55",{"$f":"'Schedule VIA'!F681","v":0},null,null,null,null,null,null,null,{"$f":"'Schedule VIA (EBS)'!F681","v":0}]
["Sch VIA","Schedule of Funds Held",null,"(B) Bonds Sovereign Debt - Fair Value 75",{"$f":"'Schedule VIA'!F701","v":0},null,null,null,null,null,null,null,{"$f":"'Schedule VIA (EBS)'!F701","v":0}]
["Sch VIA","Schedule of Funds Held",null,"(B) Bonds Sovereign Debt - Fair Value 90",{"$f":"'Schedule VIA'!F716","v":0},null,null,null,null,null,null,null,{"$f":"'Schedule VIA (EBS)'!F716","v":0}]
["Sch VIA","Schedule of Funds Held",null,"(B) Bonds Sovereign Debt - Fair Value 108",{"$f":"'Schedule VIA'!F734","v":0},null,null,null,null,null,null,null,{"$f":"'Schedule VIA (EBS)'!F734","v":0}]
["Sch VIA","Schedule of Funds Held",null,"(B) Bonds Sovereign Debt - Fair Value 125",{"$f":"'Schedule VIA'!F751","v":0},null,null,null,null,null,null,null,{"$f":"'Schedule VIA (EBS)'!F751","v":0}]
["Sch VIA","Schedule of Funds Held",null,"(B) Bonds Sovereign Debt - Fair Value 145",{"$f":"'Schedule VIA'!F771","v":0},null,null,null,null,null,null,null,{"$f":"'Schedule VIA (EBS)'!F771","v":0}]
["Sch VIA","Schedule of Funds Held",null,"(B) Bonds Sovereign Debt - Fair Value 177",{"$f":"'Schedule VIA'!F803","v":0},null,null,null,null,null,null,null,{"$f":"'Schedule VIA (EBS)'!F803","v":0}]
["Sch VIA","Schedule of Funds Held",null,"(B) Bonds Sovereign Debt - Comments 4",{"$f":"'Schedule VIA'!G630","v":0},null,null,null,null,null,null,null,{"$f":"'Schedule VIA (EBS)'!G630","v":0}]
["Sch VIA","Schedule of Funds Held",null,"(B) Bonds Sovereign Debt - Comments 21",{"$f":"'Schedule VIA'!G647","v":0},null,null,null,null,null,null,null,{"$f":"'Schedule VIA (EBS)'!G647","v":0}]
["Sch VIA","Schedule of Funds Held",null,"(B) Bonds Sovereign Debt - Comments 32",{"$f":"'Schedule VIA'!G658","v":0},null,null,null,null,null,null,null,{"$f":"'Schedule VIA (EBS)'!G658","v":0}]
["Sch VIA","Schedule of Funds Held",null,"(B) Bonds Sovereign Debt - Comments 58",{"$f":"'Schedule VIA'!G684","v":0},null,null,null,null,null,null,null,{"$f":"'Schedule VIA (EBS)'!G684","v":0}]
["Sch VIA","Schedule of Funds Held",null,"(B) Bonds Sovereign Debt - Comments 84",{"$f":"'Schedule VIA'!G710","v":0},null,null,null,null,null,null,null,{"$f":"'Schedule VIA (EBS)'!G710","v":0}]
["Sch VIA","Schedule of Funds Held",null,"(B) Bonds Sovereign Debt - Comments 95",{"$f":"'Schedule VIA'!G721","v":0},null,null,null,null,null,null,null,{"$f":"'Schedule VIA (EBS)'!G721","v":0}]
["Sch VIA","Schedule of Funds Held",null,"(B) Bonds Sovereign Debt - Comments 119",{"$f":"'Schedule VIA'!G745","v":0},null,null,null,null,null,null,null,{"$f":"'Schedule VIA (EBS)'!G745","v":0}]
["Sch VIA","Schedule of Funds Held",null,"(B) Bonds Sovereign Debt - Comments 154",{"$f":"'Schedule VIA'!G780","v":0},null,null,null,null,null,null,null,{"$f":"'Schedule VIA (EBS)'!G780","v":0}]
["Sch VIA","Schedule of Funds Held",null,"(B) Bonds Sovereign Debt - Comments 175",{"$f":"'Schedule VIA'!G801","v":0},null,null,null,null,null,null,null,{"$f":"'Schedule VIA (EBS)'!G801","v":0}]
["Sch VIA","Schedule of Funds Held",null,"(B) Bonds Sovereign Debt - Comments 187",{"$f":"'Schedule VIA'!G813","v":0},null,null,null,null,null,null,null,{"$f":"'Schedule VIA (EBS)'!G813","v":0}]
["Sch VIA","Schedule of Funds Held",null,"(C) ABS and Struct. Sec. - Asset Type 9",{"$f":"'Schedule VIA'!B843","v":"Select"},null,null,null,null,null,null,null,{"$f":"'Schedule VIA (EBS)'!B843","v":"Select"}]
["Sch VIA","Schedule of Funds Held",null,"(C) ABS and Struct. Sec. - Asset Type 23",{"$f":"'Schedule VIA'!B857","v":"Select"},null,null,null,null,null,null,null,{"$f":"'Schedule VIA (EBS)'!B857","v":"Select"}]
["Sch VIA","Schedule of Funds Held",null,"(C) ABS and Struct. Sec. - Asset Type 61",{"$f":"'Schedule VIA'!B895","v":"Select"},null,null,null,null,null,null,null,{"$f":"'Schedule VIA (EBS)'!B895","v":"Select"}]
["Sch VIA","Schedule of Funds Held",null,"(C) ABS and Struct. Sec. - Asset Type 82",{"$f":"'Schedule VIA'!B916","v":"Select"},null,null,null,null,null,null,null,{"$f":"'Schedule VIA (EBS)'!B916","v":"Select"}]
["Sch VIA","Schedule of Funds Held",null,"(C) ABS and Struct. Sec. - Asset Type 96",{"$f":"'Schedule VIA'!B930","v":"Select"},null,null,null,null,null,null,null,{"$f":"'Schedule VIA (EBS)'!B930","v":"Select"}]
["Sch VIA","Schedule of Funds Held",null,"(C) ABS and Struct. Sec. - Asset Type 119",{"$f":"'Schedule VIA'!B953","v":"Select"},null,null,null,null,null,null,null,{"$f":"'Schedule VIA (EBS)'!B953","v":"Select"}]
["Sch VIA","Schedule of Funds Held",null,"(C) ABS and Struct. Sec. - Asset Type 131",{"$f":"'Schedule VIA'!B965","v":"Select"},null,null,null,null,null,null,null,{"$f":"'Schedule VIA (EBS)'!B965","v":"Select"}]
["Sch VIA","Schedule of Funds Held",null,"(C) ABS and Struct. Sec. - Currency 2",{"$f":"'Schedule VIA'!C836","v":"Select"},null,null,null,null,null,null,null,{"$f":"'Schedule VIA (EBS)'!C836","v":"Select"}]
["Sch VIA","Schedule of Funds Held",null,"(C) ABS and Struct. Sec. - Currency 37",{"$f":"'Schedule VIA'!C871","v":"Select"},null,null,null,null,null,null,null,{"$f":"'Schedule VIA (EBS)'!C871","v":"Select"}]
["Sch VIA","Schedule of Funds Held",null,"(C) ABS and Struct. Sec. - Currency 61",{"$f":"'Schedule VIA'!C895","v":"Select"},null,null,null,null,null,null,null,{"$f":"'Schedule VIA (EBS)'!C895","v":"Select"}]
["Sch VIA","Schedule of Funds Held",null,"(C) ABS and Struct. Sec. - Currency 68",{"$f":"'Schedule VIA'!C902","v":"Select"},null,null,null,null,null,null,null,{"$f":"'Schedule VIA (EBS)'!C902","v":"Select"}]
["Sch VIA","Schedule of Funds Held",null,"(C) ABS and Struct. Sec. - Currency 98",{"$f":"'Schedule VIA'!C932","v":"Select"},null,null,null,null,null,null,null,{"$f":"'Schedule VIA (EBS)'!C932","v":"Select"}]
["Sch VIA","Schedule of Funds Held",null,"(C) ABS and Struct. Sec. - Currency 124",{"$f":"'Schedule VIA'!C958","v":"Select"},null,null,null,null,null,null,null,{"$f":"'Schedule VIA (EBS)'!C958","v":"Select"}]
["Sch VIA","Schedule of Funds Held",null,"(C) ABS and Struct. Sec. - Currency 135",{"$f":"'Schedule VIA'!C969","v":"Select"},null,null,null,null,null,null,null,{"$f":"'Schedule VIA (EBS)'!C969","v":"Select"}]
["Sch VIA","Schedule of Funds Held",null,"(C) ABS and Struct. Sec. - Rating 9",{"$f":"'Schedule VIA'!D843","v":"Select"},null,null,null,null,null,null,null,{"$f":"'Schedule VIA (EBS)'!D843","v":"Select"}]
["Sch VIA","Schedule of Funds Held",null,"(C) ABS and Struct. Sec. - Rating 40",{"$f":"'Schedule VIA'!D874","v":"Select"},null,null,null,null,null,null,null,{"$f":"'Schedule VIA (EBS)'!D874","v":"Select"}]
["Sch VIA","Schedule of Funds Held",null,"(C) ABS and Struct. Sec. - Rating 61",{"$f":"'Schedule VIA'!D895","v":"Select"},null,null,null,null,null,null,null,{"$f":"'Schedule VIA (EBS)'!D895","v":"Select"}]
["Sch VIA","Schedule of Funds Held",null,"(C) ABS and Struct. Sec. - Rating 81",{"$f":"'Schedule VIA'!D915","v":"Select"},null,null,null,null,null,null,null,{"$f":"'Schedule VIA (EBS)'!D915","v":"Select"}]
["Sch VIA","Schedule of Funds Held",null,"(C) ABS and Struct. Sec. - Rating 98",{"$f":"'Schedule VIA'!D932","v":"Select"},null,null,null,null,null,null,null,{"$f":"'Schedule VIA (EBS)'!D932","v":"Select"}]
["Sch VIA","Schedule of Funds Held",null,"(C) ABS and Struct. Sec. - Rating 116",{"$f":"'Schedule VIA'!D950","v":"Select"},null,null,null,null,null,null,null,{"$f":"'Schedule VIA (EBS)'!D950","v":"Select"}]
["Sch VIA","Schedule of Funds Held",null,"(C) ABS and Struct. Sec. - Rating 131",{"$f":"'Schedule VIA'!D965","v":"Select"},null,null,null,null,null,null,null,{"$f":"'Schedule VIA (EBS)'!D965","v":"Select"}]
["Sch VIA","Schedule of Funds Held",null,"(C) ABS and Struct. Sec. - Nominal Amount 22",{"$f":"'Schedule VIA'!E856","v":0},null,null,null,null,null,null,null,{"$f":"'Schedule VIA (EBS)'!E856","v":0}]
["Sch VIA","Schedule of Funds Held",null,"(C) ABS and Struct. Sec. - Nominal Amount 40",{"$f":"'Schedule VIA'!E874","v":0},null,null,null,null,null,null,null,{"$f":"'Schedule VIA (EBS)'!E874","v":0}]
["Sch VIA","Schedule of Funds Held",null,"(C) ABS and Struct. Sec. - Nominal Amount 53",{"$f":"'Schedule VIA'!E887","v":0},null,null,null,null,null,null,null,{"$f":"'Schedule VIA (EBS)'!E887","v":0}]
["Sch VIA","Schedule of Funds Held",null,"(C) ABS and Struct. Sec. - Nominal Amount 77",{"$f":"'Schedule VIA'!E911","v":0},null,null,null,null,null,null,null,{"$f":"'Schedule VIA (EBS)'!E911","v":0}]
["Sch VIA","Schedule of Funds Held",null,"(C) ABS and Struct. Sec. - Nominal Amount 109",{"$f":"'Schedule VIA'!E943","v":0},null,null,null,null,null,null,null,{"$f":"'Schedule VIA (EBS)'!E943","v":0}]
["Sch VIA","Schedule of Funds Held",null,"(C) ABS and Struct. Sec. - Nominal Amount 114",{"$f":"'Schedule VIA'!E948","v":0},null,null,null,null,null,null,null,{"$f":"'Schedule VIA (EBS)'!E948","v":0}]
["Sch VIA","Schedule of Funds Held",null,"(C) ABS and Struct. Sec. - Nominal Amount 144",{"$f":"'Schedule VIA'!E978","v":0},null,null,null,null,null,null,null,{"$f":"'Schedule VIA (EBS)'!E978","v":0}]
["Sch VIA","Schedule of Funds Held",null,"(C) ABS and Struct. Sec. - Fair Value 19",{"$f":"'Schedule VIA'!F853","v":0},null,null,null,null,null,null,null,{"$f":"'Schedule VIA (EBS)'!F853","v":0}]
["Sch VIA","Schedule of Funds Held",null,"(C) ABS and Struct. Sec. - Fair Value 29",{"$f":"'Schedule VIA'!F863","v":0},null,null,null,null,null,null,null,{"$f":"'Schedule VIA (EBS)'!F863","v":0}]
["Sch VIA","Schedule of Funds Held",null,"(C) ABS and Struct. Sec. - Fair Value 56",{"$f":"'Schedule VIA'!F890","v":0},null,null,null,null,null,null,null,{"$f":"'Schedule VIA (EBS)'!F890","v":0}]
["Sch VIA","Schedule of Funds Held",null,"(C) ABS and Struct. Sec. - Fair Value 85",{"$f":"'Schedule VIA'!F919","v":0},null,null,null,null,null,null,null,{"$f":"'Schedule VIA (EBS)'!F919","v":0}]
["Sch VIA","Schedule of Funds Held",null,"(C) ABS and Struct. Sec. - Fair Value 93",{"$f":"'Schedule VIA'!F927","v":0},null,null,null,null,null,null,null,{"$f":"'Schedule VIA (EBS)'!F927","v":0}]
["Sch VIA","Schedule of Funds Held",null,"(C) ABS and Struct. Sec. - Fair Value 116",{"$f":"'Schedule VIA'!F950","v":0},null,null,null,null,null,null,null,{"$f":"'Schedule VIA (EBS)'!F950","v":0}]
["Sch VIA","Schedule of Funds Held",null,"(C) ABS and Struct. Sec. - Weighted Avg YTM 2",{"$f":"'Schedule VIA'!G836","v":0},null,null,null,null,null,null,null,{"$f":"'Schedule VIA (EBS)'!G836","v":0}]
["Sch VIA","Schedule of Funds Held",null,"(C) ABS and Struct. Sec. - Weighted Avg YTM 22",{"$f":"'Schedule VIA'!G856","v":0},null,null,null,null,null,null,null,{"$f":"'Schedule VIA (EBS)'!G856","v":0}]
["Sch VIA","Schedule of Funds Held",null,"(C) ABS and Struct. Sec. - Weighted Avg YTM 35",{"$f":"'Schedule VIA'!G869","v":0},null,null,null,null,null,null,null,{"$f":"'Schedule VIA (EBS)'!G869","v":0}]
["Sch VIA","Schedule of Funds Held",null,"(C) ABS and Struct. Sec. - Weighted Avg YTM 57",{"$f":"'Schedule VIA'!G891","v":0},null,null,null,null,null,null,null,{"$f":"'Schedule VIA (EBS)'!G891","v":0}]
["Sch VIA","Schedule of Funds Held",null,"(C) ABS and Struct. Sec. - Weighted Avg YTM 72",{"$f":"'Schedule VIA'!G906","v":0},null,null,null,null,null,null,null,{"$f":"'Schedule VIA (EBS)'!G906","v":0}]
["Sch VIA","Schedule of Funds Held",null,"(C) ABS and Struct. Sec. - Weighted Avg YTM 92",{"$f":"'Schedule VIA'!G926","v":0},null,null,null,null,null,null,null,{"$f":"'Schedule VIA (EBS)'!G926","v":0}]
["Sch VIA","Schedule of Funds Held",null,"(C) ABS and Struct. Sec. - Weighted Avg YTM 131",{"$f":"'Schedule VIA'!G965","v":0},null,null,null,null,null,null,null,{"$f":"'Schedule VIA (EBS)'!G965","v":0}]
["Sch VIA","Schedule of Funds Held",null,"(C) ABS and Struct. Sec. - Weighted Avg YTM 144",{"$f":"'Schedule VIA'!G978","v":0},null,null,null,null,null,null,null,{"$f":"'Schedule VIA (EBS)'!G978","v":0}]
["Sch VIA","Schedule of Funds Held",null,"(C) ABS and Struct. Sec. - Effective Duration 18",{"$f":"'Schedule VIA'!H852","v":0},null,null,null,null,null,null,null,{"$f":"'Schedule VIA (EBS)'!H852","v":0}]
["Sch VIA","Schedule of Funds Held",null,"(C) ABS and Struct. Sec. - Effective Duration 35",{"$f":"'Schedule VIA'!H869","v":0},null,null,null,null,null,null,null,{"$f":"'Schedule VIA (EBS)'!H869","v":0}]
["Sch VIA","Schedule of Funds Held",null,"(C) ABS and Struct. Sec. - Effective Duration 66",{"$f":"'Schedule VIA'!H900","v":0},null,null,null,null,null,null,null,{"$f":"'Schedule VIA (EBS)'!H900","v":0}]
["Sch VIA","Schedule of Funds Held",null,"(C) ABS and Struct. Sec. - Effective Duration 72",{"$f":"'Schedule VIA'!H906","v":0},null,null,null,null,null,null,null,{"$f":"'Schedule VIA (EBS)'!H906","v":0}]
["Sch VIA","Schedule of Funds Held",null,"(C) ABS and Struct. Sec. - Effective Duration 101",{"$f":"'Schedule VIA'!H935","v":0},null,null,null,null,null,null,null,{"$f":"'Schedule VIA (EBS)'!H935","v":0}]
["Sch VIA","Schedule of Funds Held",null,"(C) ABS and Struct. Sec. - Effective Duration 131",{"$f":"'Schedule VIA'!H965","v":0},null,null,null,null,null,null,null,{"$f":"'Schedule VIA (EBS)'!H965","v":0}]
["Sch VIA","Schedule of Funds Held",null,"(C) ABS and Struct. Sec. - Effective Duration 136",{"$f":"'Schedule VIA'!H970","v":0},null,null,null,null,null,null,null,{"$f":"'Schedule VIA (EBS)'!H970","v":0}]
["Sch VIA","Schedule of Funds Held",null,"(C) ABS and Struct. Sec. - Comments 14",{"$f":"'Schedule VIA'!I848","v":0},null,null,null,null,null,null,null,{"$f":"'Schedule VIA (EBS)'!I848","v":0}]
["Sch VIA","Schedule of Funds Held",null,"(C) ABS and Struct. Sec. - Comments 42",{"$f":"'Schedule VIA'!I876","v":0},null,null,null,null,null,null,null,{"$f":"'Schedule VIA (EBS)'!I876","v":0}]
["Sch VIA","Schedule of Funds Held",null,"(C) ABS and Struct. Sec. - Comments 51",{"$f":"'Schedule VIA'!I885","v":0},null,null,null,null,null,null,null,{"$f":"'Schedule VIA (EBS)'!I885","v":0}]
["Sch VIA","Schedule of Funds Held",null,"(C) ABS and Struct. Sec. - Comments 77",{"$f":"'Schedule VIA'!I911","v":0},null,null,null,null,null,null,null,{"$f":"'Schedule VIA (EBS)'!I911","v":0}]
["Sch VIA","Schedule of Funds Held",null,"(C) ABS and Struct. Sec. - Comments 110",{"$f":"'Schedule VIA'!I944","v":0},null,null,null,null,null,null,null,{"$f":"'Schedule VIA (EBS)'!I944","v":0}]
["Sch VIA","Schedule of Funds Held",null,"(C) ABS and Struct. Sec. - Comments 129",{"$f":"'Schedule VIA'!I963","v":0},null,null,null,null,null,null,null,{"$f":"'Schedule VIA (EBS)'!I963","v":0}]
["Sch VIA","Schedule of Funds Held",null,"(C) ABS and Struct. Sec. - Comments 147",{"$f":"'Schedule VIA'!I981","v":0},null,null,null,null,null,null,null,{"$f":"'Schedule VIA (EBS)'!I981","v":0}]
["Sch VIA","Schedule of Funds Held",null,"(D) Loans - Asset Type 13",{"$f":"'Schedule VIA'!B1005","v":"Select"},null,null,null,null,null,null,null,{"$f":"'Schedule VIA (EBS)'!B1005","v":"Select"}]
["Sch VIA","Schedule of Funds Held",null,"(D) Loans - Asset Type 29",{"$f":"'Schedule VIA'!B1021","v":"Select"},null,null,null,null,null,null,null,{"$f":"'Schedule VIA (EBS)'!B1021","v":"Select"}]
["Sch VIA","Schedule of Funds Held",null,"(D) Loans - Asset Type 48",{"$f":"'Schedule VIA'!B1040","v":"Select"},null,null,null,null,null,null,null,{"$f":"'Schedule VIA (EBS)'!B1040","v":"Select"}]
["Sch VIA","Schedule of Funds Held",null,"(D) Loans - Asset Type 88",{"$f":"'Schedule VIA'!B1080","v":"Select"},null,null,null,null,null,null,null,{"$f":"'Schedule VIA (EBS)'!B1080","v":"Select"}]
["Sch VIA","Schedule of Funds Held",null,"(D) Loans - Currency 4",{"$f":"'Schedule VIA'!C996","v":"Select"},null,null,null,null,null,null,null,{"$f":"'Schedule VIA (EBS)'!C996","v":"Select"}]
["Sch VIA","Schedule of Funds Held",null,"(D) Loans - Currency 25",{"$f":"'Schedule VIA'!C1017","v":"Select"},null,null,null,null,null,null,null,{"$f":"'Schedule VIA (EBS)'!C1017","v":"Select"}]
["Sch VIA","Schedule of Funds Held",null,"(D) Loans - Currency 35",{"$f":"'Schedule VIA'!C1027","v":"Select"},null,null,null,null,null,null,null,{"$f":"'Schedule VIA (EBS)'!C1027","v":"Select"}]
["Sch VIA","Schedule of Funds Held",null,"(D) Loans - Currency 62",{"$f":"'Schedule VIA'!C1054","v":"Select"},null,null,null,null,null,null,null,{"$f":"'Schedule VIA (EBS)'!C1054","v":"Select"}]
["Sch VIA","Schedule of Funds Held",null,"(D) Loans - Currency 91",{"$f":"'Schedule VIA'!C1083","v":"Select"},null,null,null,null,null,null,null,{"$f":"'Schedule VIA (EBS)'!C1083","v":"Select"}]
["Sch VIA","Schedule of Funds Held",null,"(D) Loans - Currency 99",{"$f":"'Schedule VIA'!C1091","v":"Select"},null,null,null,null,null,null,null,{"$f":"'Schedule VIA (EBS)'!C1091","v":"Select"}]
["Sch VIA","Schedule of Funds Held",null,"(D) Loans - Country 26",{"$f":"'Schedule VIA'!D1018","v":"Select"},null,null,null,null,null,null,null,{"$f":"'Schedule VIA (EBS)'!D1018","v":"Select"}]
["Sch VIA","Schedule of Funds Held",null,"(D) Loans - Country 54",{"$f":"'Schedule VIA'!D1046","v":"Select"},null,null,null,null,null,null,null,{"$f":"'Schedule VIA (EBS)'!D1046","v":"Select"}]
["Sch VIA","Schedule of Funds Held",null,"(D) Loans - Country 82",{"$f":"'Schedule VIA'!D1074","v":"Select"},null,null,null,null,null,null,null,{"$f":"'Schedule VIA (EBS)'!D1074","v":"Select"}]
["Sch VIA","Schedule of Funds Held",null,"(D) Loans - Country 91",{"$f":"'Schedule VIA'!D1083","v":"Select"},null,null,null,null,null,null,null,{"$f":"'Schedule VIA (EBS)'!D1083","v":"Select"}]
["Sch VIA","Schedule of Funds Held",null,"(D) Loans - Rating 8",{"$f":"'Schedule VIA'!E1000","v":"Select"},null,null,null,null,null,null,null,{"$f":"'Schedule VIA (EBS)'!E1000","v":"Select"}]
["Sch VIA","Schedule of Funds Held",null,"(D) Loans - Rating 33",{"$f":"'Schedule VIA'!E1025","v":"Select"},null,null,null,null,null,null,null,{"$f":"'Schedule VIA (EBS)'!E1025","v":"Select"}]
["Sch VIA","Schedule of Funds Held",null,"(D) Loans - Rating 67",{"$f":"'Schedule VIA'!E1059","v":"Select"},null,null,null,null,null,null,null,{"$f":"'Schedule VIA (EBS)'!E1059","v":"Select"}]
["Sch VIA","Schedule of Funds Held",null,"(D) Loans - Rating 89",{"$f":"'Schedule VIA'!E1081","v":"Select"},null,null,null,null,null,null,null,{"$f":"'Schedule VIA (EBS)'!E1081","v":"Select"}]
["Sch VIA","Schedule of Funds Held",null,"(D) Loans - Nominal Amount 4",{"$f":"'Schedule VIA'!F996","v":0},null,null,null,null,null,null,null,{"$f":"'Schedule VIA (EBS)'!F996","v":0}]
["Sch VIA","Schedule of Funds Held",null,"(D) Loans - Nominal Amount 20",{"$f":"'Schedule VIA'!F1012","v":0},null,null,null,null,null,null,null,{"$f":"'Schedule VIA (EBS)'!F1012","v":0}]
["Sch VIA","Schedule of Funds Held",null,"(D) Loans - Nominal Amount 41",{"$f":"'Schedule VIA'!F1033","v":0},null,null,null,null,null,null,null,{"$f":"'Schedule VIA (EBS)'!F1033","v":0}]
["Sch VIA","Schedule of Funds Held",null,"(D) Loans - Nominal Amount 76",{"$f":"'Schedule VIA'!F1068","v":0},null,null,null,null,null,null,null,{"$f":"'Schedule VIA (EBS)'!F1068","v":0}]
["Sch VIA","Schedule of Funds Held",null,"(D) Loans - Nominal Amount 96",{"$f":"'Schedule VIA'!F1088","v":0},null,null,null,null,null,null,null,{"$f":"'Schedule VIA (EBS)'!F1088","v":0}]
["Sch VIA","Schedule of Funds Held",null,"(D) Loans - Fair Value 11",{"$f":"'Schedule VIA'!G1003","v":0},null,null,null,null,null,null,null,{"$f":"'Schedule VIA (EBS)'!G1003","v":0}]
["Sch VIA","Schedule of Funds Held",null,"(D) Loans - Fair Value 33",{"$f":"'Schedule VIA'!G1025","v":0},null,null,null,null,null,null,null,{"$f":"'Schedule VIA (EBS)'!G1025","v":0}]
["Sch VIA","Schedule of Funds Held",null,"(D) Loans - Fair Value 46",{"$f":"'Schedule VIA'!G1038","v":0},null,null,null,null,null,null,null,{"$f":"'Schedule VIA (EBS)'!G1038","v":0}]
["Sch VIA","Schedule of Funds Held",null,"(D) Loans - Fair Value 70",{"$f":"'Schedule VIA'!G1062","v":0},null,null,null,null,null,null,null,{"$f":"'Schedule VIA (EBS)'!G1062","v":0}]
["Sch VIA","Schedule of Funds Held",null,"(D) Loans - Fair Value 98",{"$f":"'Schedule VIA'!G1090","v":0},null,null,null,null,null,null,null,{"$f":"'Schedule VIA (EBS)'!G1090","v":0}]
["Sch VIA","Schedule of Funds Held",null,"(D) Loans - Weighted Avg YTM 7",{"$f":"'Schedule VIA'!H999","v":0},null,null,null,null,null,null,null,{"$f":"'Schedule VIA (EBS)'!H999","v":0}]
["Sch VIA","Schedule of Funds Held",null,"(D) Loans - Weighted Avg YTM 33",{"$f":"'Schedule VIA'!H1025","v":0},null,null,null,null,null,null,null,{"$f":"'Schedule VIA (EBS)'!H1025","v":0}]
["Sch VIA","Schedule of Funds Held",null,"(D) Loans - Weighted Avg YTM 66",{"$f":"'Schedule VIA'!H1058","v":0},null,null,null,null,null,null,null,{"$f":"'Schedule VIA (EBS)'!H1058","v":0}]
["Sch VIA","Schedule of Funds Held",null,"(D) Loans - Weighted Avg YTM 89",{"$f":"'Schedule VIA'!H1081","v":0},null,null,null,null,null,null,null,{"$f":"'Schedule VIA (EBS)'!H1081","v":0}]
["Sch VIA","Schedule of Funds Held",null,"(D) Loans - Weighted Avg YTM 99",{"$f":"'Schedule VIA'!H1091","v":0},null,null,null,null,null,null,null,{"$f":"'Schedule VIA (EBS)'!H1091","v":0}]
["Sch VIA","Schedule of Funds Held",null,"(D) Loans - Effective Duration 24",{"$f":"'Schedule VIA'!I1016","v":0},null,null,null,null,null,null,null,{"$f":"'Schedule VIA (EBS)'!I1016","v":0}]
["Sch VIA","Schedule of Funds Held",null,"(D) Loans - Effective Duration 36",{"$f":"'Schedule VIA'!I1028","v":0},null,null,null,null,null,null,null,{"$f":"'Schedule VIA (EBS)'!I1028","v":0}]
["Sch VIA","Schedule of Funds Held",null,"(D) Loans - Effective Duration 76",{"$f":"'Schedule VIA'!I1068","v":0},null,null,null,null,null,null,null,{"$f":"'Schedule VIA (EBS)'!I1068","v":0}]
["Sch VIA","Schedule of Funds Held",null,"(D) Loans - Effective Duration 95",{"$f":"'Schedule VIA'!I1087","v":0},null,null,null,null,null,null,null,{"$f":"'Schedule VIA (EBS)'!I1087","v":0}]
["Sch VIA","Schedule of Funds Held",null,"(D) Loans - Comments 11",{"$f":"'Schedule VIA'!J1003","v":0},null,null,null,null,null,null,null,{"$f":"'Schedule VIA (EBS)'!J1003","v":0}]
["Sch VIA","Schedule of Funds Held",null,"(D) Loans - Comments 32",{"$f":"'Schedule VIA'!J1024","v":0},null,null,null,null,null,null,null,{"$f":"'Schedule VIA (EBS)'!J1024","v":0}]
["Sch VIA","Schedule of Funds Held",null,"(D) Loans - Comments 49",{"$f":"'Schedule VIA'!J1041","v":0},null,null,null,null,null,null,null,{"$f":"'Schedule VIA (EBS)'!J1041","v":0}]
["Sch VIA","Schedule of Funds Held",null,"(D) Loans - Comments 83",{"$f":"'Schedule VIA'!J1075","v":0},null,null,null,null,null,null,null,{"$f":"'Schedule VIA (EBS)'!J1075","v":0}]
["Sch VIA","Schedule of Funds Held",null,"(D) Loans Not Perform. - Asset Type 7",{"$f":"'Schedule VIA'!B1107","v":"Select"},null,null,null,null,null,null,null,{"$f":"'Schedule VIA (EBS)'!B1107","v":"Select"}]
["Sch VIA","Schedule of Funds Held",null,"(D) Loans Not Perform. - Asset Type 17",{"$f":"'Schedule VIA'!B1117","v":"Select"},null,null,null,null,null,null,null,{"$f":"'Schedule VIA (EBS)'!B1117","v":"Select"}]
["Sch VIA","Schedule of Funds Held",null,"(D) Loans Not Perform. - Currency 20",{"$f":"'Schedule VIA'!C1120","v":"Select"},null,null,null,null,null,null,null,{"$f":"'Schedule VIA (EBS)'!C1120","v":"Select"}]
["Sch VIA","Schedule of Funds Held",null,"(D) Loans Not Perform. - Country 12",{"$f":"'Schedule VIA'!D1112","v":"Select"},null,null,null,null,null,null,null,{"$f":"'Schedule VIA (EBS)'!D1112","v":"Select"}]
["Sch VIA","Schedule of Funds Held",null,"(D) Loans Not Perform. - Rating 17",{"$f":"'Schedule VIA'!E1117","v":"Select"},null,null,null,null,null,null,null,{"$f":"'Schedule VIA (EBS)'!E1117","v":"Select"}]
["Sch VIA","Schedule of Funds Held",null,"(D) Loans Not Perform. - Fair Value 8",{"$f":"'Schedule VIA'!G1108","v":0},null,null,null,null,null,null,null,{"$f":"'Schedule VIA (EBS)'!G1108","v":0}]
["Sch VIA","Schedule of Funds Held",null,"(D) Loans Not Perform. - Comment 16",{"$f":"'Schedule VIA'!H1116","v":0},null,null,null,null,null,null,null,{"$f":"'Schedule VIA (EBS)'!H1116","v":0}]
["Sch VIA","Schedule of Funds Held",null,"(D) Loans Not Perform. - Comment 19",{"$f":"'Schedule VIA'!H1119","v":0},null,null,null,null,null,null,null,{"$f":"'Schedule VIA (EBS)'!H1119","v":0}]
["Sch VIA","Schedule of Funds Held",null,"(E) Preferred Equities - Asset Type 32",{"$f":"'Schedule VIA'!B1160","v":"Select"},null,null,null,null,null,null,null,{"$f":"'Schedule VIA (EBS)'!B1160","v":"Select"}]
["Sch VIA","Schedule of Funds Held",null,"(E) Preferred Equities - Asset Type 54",{"$f":"'Schedule VIA'!B1182","v":"Select"},null,null,null,null,null,null,null,{"$f":"'Schedule VIA (EBS)'!B1182","v":"Select"}]
["Sch VIA","Schedule of Funds Held",null,"(E) Preferred Equities - Asset Type 69",{"$f":"'Schedule VIA'!B1197","v":"Select"},null,null,null,null,null,null,null,{"$f":"'Schedule VIA (EBS)'!B1197","v":"Select"}]
["Sch VIA","Schedule of Funds Held",null,"(E) Preferred Equities - Asset Type 89",{"$f":"'Schedule VIA'!B1217","v":"Select"},null,null,null,null,null,null,null,{"$f":"'Schedule VIA (EBS)'!B1217","v":"Select"}]
["Sch VIA","Schedule of Funds Held",null,"(E) Preferred Equities - Currency 24",{"$f":"'Schedule VIA'!C1152","v":"Select"},null,null,null,null,null,null,null,{"$f":"'Schedule VIA (EBS)'!C1152","v":"Select"}]
["Sch VIA","Schedule of Funds Held",null,"(E) Preferred Equities - Currency 45",{"$f":"'Schedule VIA'!C1173","v":"Select"},null,null,null,null,null,null,null,{"$f":"'Schedule VIA (EBS)'!C1173","v":"Select"}]
["Sch VIA","Schedule of Funds Held",null,"(E) Preferred Equities - Currency 61",{"$f":"'Schedule VIA'!C1189","v":"Select"},null,null,null,null,null,null,null,{"$f":"'Schedule VIA (EBS)'!C1189","v":"Select"}]
["Sch VIA","Schedule of Funds Held",null,"(E) Preferred Equities - Currency 76",{"$f":"'Schedule VIA'!C1204","v":"Select"},null,null,null,null,null,null,null,{"$f":"'Schedule VIA (EBS)'!C1204","v":"Select"}]
["Sch VIA","Schedule of Funds Held",null,"(E) Preferred Equities - Currency 98",{"$f":"'Schedule VIA'!C1226","v":"Select"},null,null,null,null,null,null,null,{"$f":"'Schedule VIA (EBS)'!C1226","v":"Select"}]
["Sch VIA","Schedule of Funds Held",null,"(E) Preferred Equities - Rating 11",{"$f":"'Schedule VIA'!D1139","v":"Select"},null,null,null,null,null,null,null,{"$f":"'Schedule VIA (EBS)'!D1139","v":"Select"}]
["Sch VIA","Schedule of Funds Held",null,"(E) Preferred Equities - Rating 35",{"$f":"'Schedule VIA'!D1163","v":"Select"},null,null,null,null,null,null,null,{"$f":"'Schedule VIA (EBS)'!D1163","v":"Select"}]
["Sch VIA","Schedule of Funds Held",null,"(E) Preferred Equities - Rating 67",{"$f":"'Schedule VIA'!D1195","v":"Select"},null,null,null,null,null,null,null,{"$f":"'Schedule VIA (EBS)'!D1195","v":"Select"}]
["Sch VIA","Schedule of Funds Held",null,"(E) Preferred Equities - Rating 90",{"$f":"'Schedule VIA'!D1218","v":"Select"},null,null,null,null,null,null,null,{"$f":"'Schedule VIA (EBS)'!D1218","v":"Select"}]
["Sch VIA","Schedule of Funds Held",null,"(E) Preferred Equities - Nominal Amount 2",{"$f":"'Schedule VIA'!E1130","v":0},null,null,null,null,null,null,null,{"$f":"'Schedule VIA (EBS)'!E1130","v":0}]
["Sch VIA","Schedule of Funds Held",null,"(E) Preferred Equities - Nominal Amount 27",{"$f":"'Schedule VIA'!E1155","v":0},null,null,null,null,null,null,null,{"$f":"'Schedule VIA (EBS)'!E1155","v":0}]
["Sch VIA","Schedule of Funds Held",null,"(E) Preferred Equities - Nominal Amount 58",{"$f":"'Schedule VIA'!E1186","v":0},null,null,null,null,null,null,null,{"$f":"'Schedule VIA (EBS)'!E1186","v":0}]
["Sch VIA","Schedule of Funds Held",null,"(E) Preferred Equities - Nominal Amount 64",{"$f":"'Schedule VIA'!E1192","v":0},null,null,null,null,null,null,null,{"$f":"'Schedule VIA (EBS)'!E1192","v":0}]
["Sch VIA","Schedule of Funds Held",null,"(E) Preferred Equities - Fair Value 3",{"$f":"'Schedule VIA'!F1131","v":0},null,null,null,null,null,null,null,{"$f":"'Schedule VIA (EBS)'!F1131","v":0}]
["Sch VIA","Schedule of Funds Held",null,"(E) Preferred Equities - Fair Value 9",{"$f":"'Schedule VIA'!F1137","v":0},null,null,null,null,null,null,null,{"$f":"'Schedule VIA (EBS)'!F1137","v":0}]
["Sch VIA","Schedule of Funds Held",null,"(E) Preferred Equities - Fair Value 40",{"$f":"'Schedule VIA'!F1168","v":0},null,null,null,null,null,null,null,{"$f":"'Schedule VIA (EBS)'!F1168","v":0}]
["Sch VIA","Schedule of Funds Held",null,"(E) Preferred Equities - Fair Value 61",{"$f":"'Schedule VIA'!F1189","v":0},null,null,null,null,null,null,null,{"$f":"'Schedule VIA (EBS)'!F1189","v":0}]
["Sch VIA","Schedule of Funds Held",null,"(E) Preferred Equities - Fair Value 77",{"$f":"'Schedule VIA'!F1205","v":0},null,null,null,null,null,null,null,{"$f":"'Schedule VIA (EBS)'!F1205","v":0}]
["Sch VIA","Schedule of Funds Held",null,"(E) Preferred Equities - Fair Value 96",{"$f":"'Schedule VIA'!F1224","v":0},null,null,null,null,null,null,null,{"$f":"'Schedule VIA (EBS)'!F1224","v":0}]
["Sch VIA","Schedule of Funds Held",null,"(E) Preferred Equities - Weighted Avg YTM 14",{"$f":"'Schedule VIA'!G1142","v":0},null,null,null,null,null,null,null,{"$f":"'Schedule VIA (EBS)'!G1142","v":0}]
["Sch VIA","Schedule of Funds Held",null,"(E) Preferred Equities - Weighted Avg YTM 52",{"$f":"'Schedule VIA'!G1180","v":0},null,null,null,null,null,null,null,{"$f":"'Schedule VIA (EBS)'!G1180","v":0}]
["Sch VIA","Schedule of Funds Held",null,"(E) Preferred Equities - Weighted Avg YTM 69",{"$f":"'Schedule VIA'!G1197","v":0},null,null,null,null,null,null,null,{"$f":"'Schedule VIA (EBS)'!G1197","v":0}]
["Sch VIA","Schedule of Funds Held",null,"(E) Preferred Equities - Weighted Avg YTM 87",{"$f":"'Schedule VIA'!G1215","v":0},null,null,null,null,null,null,null,{"$f":"'Schedule VIA (EBS)'!G1215","v":0}]
["Sch VIA","Schedule of Funds Held",null,"(E) Preferred Equities - Effective Duration 6",{"$f":"'Schedule VIA'!H1134","v":0},null,null,null,null,null,null,null,{"$f":"'Schedule VIA (EBS)'!H1134","v":0}]
["Sch VIA","Schedule of Funds Held",null,"(E) Preferred Equities - Effective Duration 39",{"$f":"'Schedule VIA'!H1167","v":0},null,null,null,null,null,null,null,{"$f":"'Schedule VIA (EBS)'!H1167","v":0}]
["Sch VIA","Schedule of Funds Held",null,"(E) Preferred Equities - Effective Duration 43",{"$f":"'Schedule VIA'!H1171","v":0},null,null,null,null,null,null,null,{"$f":"'Schedule VIA (EBS)'!H1171","v":0}]
["Sch VIA","Schedule of Funds Held",null,"(E) Preferred Equities - Effective Duration 74",{"$f":"'Schedule VIA'!H1202","v":0},null,null,null,null,null,null,null,{"$f":"'Schedule VIA (EBS)'!H1202","v":0}]
["Sch VIA","Schedule of Funds Held",null,"(E) Preferred Equities - Comments 2",{"$f":"'Schedule VIA'!I1130","v":0},null,null,null,null,null,null,null,{"$f":"'Schedule VIA (EBS)'!I1130","v":0}]
["Sch VIA","Schedule of Funds Held",null,"(E) Preferred Equities - Comments 9",{"$f":"'Schedule VIA'!I1137","v":0},null,null,null,null,null,null,null,{"$f":"'Schedule VIA (EBS)'!I1137","v":0}]
["Sch VIA","Schedule of Funds Held",null,"(E) Preferred Equities - Comments 35",{"$f":"'Schedule VIA'!I1163","v":0},null,null,null,null,null,null,null,{"$f":"'Schedule VIA (EBS)'!I1163","v":0}]
["Sch VIA","Schedule of Funds Held",null,"(E) Preferred Equities - Comments 65",{"$f":"'Schedule VIA'!I1193","v":0},null,null,null,null,null,null,null,{"$f":"'Schedule VIA (EBS)'!I1193","v":0}]
["Sch VIA","Schedule of Funds Held",null,"(E) Preferred Equities - Comments 72",{"$f":"'Schedule VIA'!I1200","v":0},null,null,null,null,null,null,null,{"$f":"'Schedule VIA (EBS)'!I1200","v":0}]
["Sch VIA","Schedule of Funds Held",null,"(E) Preferred Equities - Comments 100",{"$f":"'Schedule VIA'!I1228","v":0},null,null,null,null,null,null,null,{"$f":"'Schedule VIA (EBS)'!I1228","v":0}]
["Sch VIA","Schedule of Funds Held",null,"(F) Common Equities - Asset Type 30",{"$f":"'Schedule VIA'!B1266","v":"Select"},null,null,null,null,null,null,null,{"$f":"'Schedule VIA (EBS)'!B1266","v":"Select"}]
["Sch VIA","Schedule of Funds Held",null,"(F) Common Equities - Asset Type 51",{"$f":"'Schedule VIA'!B1287","v":"Select"},null,null,null,null,null,null,null,{"$f":"'Schedule VIA (EBS)'!B1287","v":"Select"}]
["Sch VIA","Schedule of Funds Held",null,"(F) Common Equities - Asset Type 67",{"$f":"'Schedule VIA'!B1303","v":"Select"},null,null,null,null,null,null,null,{"$f":"'Schedule VIA (EBS)'!B1303","v":"Select"}]
["Sch VIA","Schedule of Funds Held",null,"(F) Common Equities - Asset Type 86",{"$f":"'Schedule VIA'!B1322","v":"Select"},null,null,null,null,null,null,null,{"$f":"'Schedule VIA (EBS)'!B1322","v":"Select"}]
["Sch VIA","Schedule of Funds Held",null,"(F) Common Equities - Asset Type 100",{"$f":"'Schedule VIA'!B1336","v":"Select"},null,null,null,null,null,null,null,{"$f":"'Schedule VIA (EBS)'!B1336","v":"Select"}]
["Sch VIA","Schedule of Funds Held",null,"(F) Common Equities - Currency 21",{"$f":"'Schedule VIA'!C1257","v":"Select"},null,null,null,null,null,null,null,{"$f":"'Schedule VIA (EBS)'!C1257","v":"Select"}]
["Sch VIA","Schedule of Funds Held",null,"(F) Common Equities - Currency 59",{"$f":"'Schedule VIA'!C1295","v":"Select"},null,null,null,null,null,null,null,{"$f":"'Schedule VIA (EBS)'!C1295","v":"Select"}]
["Sch VIA","Schedule of Funds Held",null,"(F) Common Equities - Currency 80",{"$f":"'Schedule VIA'!C1316","v":"Select"},null,null,null,null,null,null,null,{"$f":"'Schedule VIA (EBS)'!C1316","v":"Select"}]
["Sch VIA","Schedule of Funds Held",null,"(F) Common Equities - Currency 93",{"$f":"'Schedule VIA'!C1329","v":"Select"},null,null,null,null,null,null,null,{"$f":"'Schedule VIA (EBS)'!C1329","v":"Select"}]
["Sch VIA","Schedule of Funds Held",null,"(F) Common Equities - Country 13",{"$f":"'Schedule VIA'!D1249","v":"Select"},null,null,null,null,null,null,null,{"$f":"'Schedule VIA (EBS)'!D1249","v":"Select"}]
["Sch VIA","Schedule of Funds Held",null,"(F) Common Equities - Country 28",{"$f":"'Schedule VIA'!D1264","v":"Select"},null,null,null,null,null,null,null,{"$f":"'Schedule VIA (EBS)'!D1264","v":"Select"}]
["Sch VIA","Schedule of Funds Held",null,"(F) Common Equities - Country 50",{"$f":"'Schedule VIA'!D1286","v":"Select"},null,null,null,null,null,null,null,{"$f":"'Schedule VIA (EBS)'!D1286","v":"Select"}]
["Sch VIA","Schedule of Funds Held",null,"(F) Common Equities - Country 80",{"$f":"'Schedule VIA'!D1316","v":"Select"},null,null,null,null,null,null,null,{"$f":"'Schedule VIA (EBS)'!D1316","v":"Select"}]
["Sch VIA","Schedule of Funds Held",null,"(F) Common Equities - Fair Value 9",{"$f":"'Schedule VIA'!E1245","v":0},null,null,null,null,null,null,null,{"$f":"'Schedule VIA (EBS)'!E1245","v":0}]
["Sch VIA","Schedule of Funds Held",null,"(F) Common Equities - Fair Value 15",{"$f":"'Schedule VIA'!E1251","v":0},null,null,null,null,null,null,null,{"$f":"'Schedule VIA (EBS)'!E1251","v":0}]
["Sch VIA","Schedule of Funds Held",null,"(F) Common Equities - Fair Value 46",{"$f":"'Schedule VIA'!E1282","v":0},null,null,null,null,null,null,null,{"$f":"'Schedule VIA (EBS)'!E1282","v":0}]
["Sch VIA","Schedule of Funds Held",null,"(F) Common Equities - Fair Value 71",{"$f":"'Schedule VIA'!E1307","v":0},null,null,null,null,null,null,null,{"$f":"'Schedule VIA (EBS)'!E1307","v":0}]
["Sch VIA","Schedule of Funds Held",null,"(F) Common Equities - Fair Value 79",{"$f":"'Schedule VIA'!E1315","v":0},null,null,null,null,null,null,null,{"$f":"'Schedule VIA (EBS)'!E1315","v":0}]
["Sch VIA","Schedule of Funds Held",null,"(F) Common Equities - Comments 6",{"$f":"'Schedule VIA'!F1242","v":0},null,null,null,null,null,null,null,{"$f":"'Schedule VIA (EBS)'!F1242","v":0}]
["Sch VIA","Schedule of Funds Held",null,"(F) Common Equities - Comments 38",{"$f":"'Schedule VIA'!F1274","v":0},null,null,null,null,null,null,null,{"$f":"'Schedule VIA (EBS)'!F1274","v":0}]
["Sch VIA","Schedule of Funds Held",null,"(F) Common Equities - Comments 62",{"$f":"'Schedule VIA'!F1298","v":0},null,null,null,null,null,null,null,{"$f":"'Schedule VIA (EBS)'!F1298","v":0}]
["Sch VIA","Schedule of Funds Held",null,"(F) Common Equities - Comments 75",{"$f":"'Schedule VIA'!F1311","v":0},null,null,null,null,null,null,null,{"$f":"'Schedule VIA (EBS)'!F1311","v":0}]
["Sch VIA","Schedule of Funds Held",null,"(F) Common Equities - Comments 93",{"$f":"'Schedule VIA'!F1329","v":0},null,null,null,null,null,null,null,{"$f":"'Schedule VIA (EBS)'!F1329","v":0}]
["Sch VIA","Schedule of Funds Held",null,"(G) Real Estate - Asset Type 11",{"$f":"'Schedule VIA'!B1355","v":"Select"},null,null,null,null,null,null,null,{"$f":"'Schedule VIA (EBS)'!B1355","v":"Select"}]
["Sch VIA","Schedule of Funds Held",null,"(G) Real Estate - Asset Type 48",{"$f":"'Schedule VIA'!B1392","v":"Select"},null,null,null,null,null,null,null,{"$f":"'Schedule VIA (EBS)'!B1392","v":"Select"}]
["Sch VIA","Schedule of Funds Held",null,"(G) Real Estate - Asset Type 66",{"$f":"'Schedule VIA'!B1410","v":"Select"},null,null,null,null,null,null,null,{"$f":"'Schedule VIA (EBS)'!B1410","v":"Select"}]
["Sch VIA","Schedule of Funds Held",null,"(G) Real Estate - Asset Type 83",{"$f":"'Schedule VIA'!B1427","v":"Select"},null,null,null,null,null,null,null,{"$f":"'Schedule VIA (EBS)'!B1427","v":"Select"}]
["Sch VIA","Schedule of Funds Held",null,"(G) Real Estate - Currency 3",{"$f":"'Schedule VIA'!C1347","v":"Select"},null,null,null,null,null,null,null,{"$f":"'Schedule VIA (EBS)'!C1347","v":"Select"}]
["Sch VIA","Schedule of Funds Held",null,"(G) Real Estate - Currency 18",{"$f":"'Schedule VIA'!C1362","v":"Select"},null,null,null,null,null,null,null,{"$f":"'Schedule VIA (EBS)'!C1362","v":"Select"}]
["Sch VIA","Schedule of Funds Held",null,"(G) Real Estate - Currency 40",{"$f":"'Schedule VIA'!C1384","v":"Select"},null,null,null,null,null,null,null,{"$f":"'Schedule VIA (EBS)'!C1384","v":"Select"}]
["Sch VIA","Schedule of Funds Held",null,"(G) Real Estate - Currency 70",{"$f":"'Schedule VIA'!C1414","v":"Select"},null,null,null,null,null,null,null,{"$f":"'Schedule VIA (EBS)'!C1414","v":"Select"}]
["Sch VIA","Schedule of Funds Held",null,"(G) Real Estate - Currency 99",{"$f":"'Schedule VIA'!C1443","v":"Select"},null,null,null,null,null,null,null,{"$f":"'Schedule VIA (EBS)'!C1443","v":"Select"}]
["Sch VIA","Schedule of Funds Held",null,"(G) Real Estate - Country 16",{"$f":"'Schedule VIA'!D1360","v":"Select"},null,null,null,null,null,null,null,{"$f":"'Schedule VIA (EBS)'!D1360","v":"Select"}]
["Sch VIA","Schedule of Funds Held",null,"(G) Real Estate - Country 25",{"$f":"'Schedule VIA'!D1369","v":"Select"},null,null,null,null,null,null,null,{"$f":"'Schedule VIA (EBS)'!D1369","v":"Select"}]
["Sch VIA","Schedule of Funds Held",null,"(G) Real Estate - Country 53",{"$f":"'Schedule VIA'!D1397","v":"Select"},null,null,null,null,null,null,null,{"$f":"'Schedule VIA (EBS)'!D1397","v":"Select"}]
["Sch VIA","Schedule of Funds Held",null,"(G) Real Estate - Country 77",{"$f":"'Schedule VIA'!D1421","v":"Select"},null,null,null,null,null,null,null,{"$f":"'Schedule VIA (EBS)'!D1421","v":"Select"}]
["Sch VIA","Schedule of Funds Held",null,"(G) Real Estate - Country 90",{"$f":"'Schedule VIA'!D1434","v":"Select"},null,null,null,null,null,null,null,{"$f":"'Schedule VIA (EBS)'!D1434","v":"Select"}]
["Sch VIA","Schedule of Funds Held",null,"(G) Real Estate - Purpose 12",{"$f":"'Schedule VIA'!E1356","v":"Select"},null,null,null,null,null,null,null,{"$f":"'Schedule VIA (EBS)'!E1356","v":"Select"}]
["Sch VIA","Schedule of Funds Held",null,"(G) Real Estate - Purpose 45",{"$f":"'Schedule VIA'!E1389","v":"Select"},null,null,null,null,null,null,null,{"$f":"'Schedule VIA (EBS)'!E1389","v":"Select"}]
["Sch VIA","Schedule of Funds Held",null,"(G) Real Estate - Purpose 68",{"$f":"'Schedule VIA'!E1412","v":"Select"},null,null,null,null,null,null,null,{"$f":"'Schedule VIA (EBS)'!E1412","v":"Select"}]
["Sch VIA","Schedule of Funds Held",null,"(G) Real Estate - Purpose 82",{"$f":"'Schedule VIA'!E1426","v":"Select"},null,null,null,null,null,null,null,{"$f":"'Schedule VIA (EBS)'!E1426","v":"Select"}]
["Sch VIA","Schedule of Funds Held",null,"(G) Real Estate - Cost 3",{"$f":"'Schedule VIA'!F1347","v":0},null,null,null,null,null,null,null,{"$f":"'Schedule VIA (EBS)'!F1347","v":0}]
["Sch VIA","Schedule of Funds Held",null,"(G) Real Estate - Cost 19",{"$f":"'Schedule VIA'!F1363","v":0},null,null,null,null,null,null,null,{"$f":"'Schedule VIA (EBS)'!F1363","v":0}]
["Sch VIA","Schedule of Funds Held",null,"(G) Real Estate - Cost 55",{"$f":"'Schedule VIA'!F1399","v":0},null,null,null,null,null,null,null,{"$f":"'Schedule VIA (EBS)'!F1399","v":0}]
["Sch VIA","Schedule of Funds Held",null,"(G) Real Estate - Cost 78",{"$f":"'Schedule VIA'!F1422","v":0},null,null,null,null,null,null,null,{"$f":"'Schedule VIA (EBS)'!F1422","v":0}]
["Sch VIA","Schedule of Funds Held",null,"(G) Real Estate - Cost 90",{"$f":"'Schedule VIA'!F1434","v":0},null,null,null,null,null,null,null,{"$f":"'Schedule VIA (EBS)'!F1434","v":0}]
["Sch VIA","Schedule of Funds Held",null,"(G) Real Estate - Fair Value 11",{"$f":"'Schedule VIA'!G1355","v":0},null,null,null,null,null,null,null,{"$f":"'Schedule VIA (EBS)'!G1355","v":0}]
["Sch VIA","Schedule of Funds Held",null,"(G) Real Estate - Fair Value 25",{"$f":"'Schedule VIA'!G1369","v":0},null,null,null,null,null,null,null,{"$f":"'Schedule VIA (EBS)'!G1369","v":0}]
["Sch VIA","Schedule of Funds Held",null,"(G) Real Estate - Fair Value 48",{"$f":"'Schedule VIA'!G1392","v":0},null,null,null,null,null,null,null,{"$f":"'Schedule VIA (EBS)'!G1392","v":0}]
["Sch VIA","Schedule of Funds Held",null,"(G) Real Estate - Fair Value 81",{"$f":"'Schedule VIA'!G1425","v":0},null,null,null,null,null,null,null,{"$f":"'Schedule VIA (EBS)'!G1425","v":0}]
["Sch VIA","Schedule of Funds Held",null,"(G) Real Estate - Comments 7",{"$f":"'Schedule VIA'!H1351","v":0},null,null,null,null,null,null,null,{"$f":"'Schedule VIA (EBS)'!H1351","v":0}]
["Sch VIA","Schedule of Funds Held",null,"(G) Real Estate - Comments 12",{"$f":"'Schedule VIA'!H1356","v":0},null,null,null,null,null,null,null,{"$f":"'Schedule VIA (EBS)'!H1356","v":0}]
["Sch VIA","Schedule of Funds Held",null,"(G) Real Estate - Comments 44",{"$f":"'Schedule VIA'!H1388","v":0},null,null,null,null,null,null,null,{"$f":"'Schedule VIA (EBS)'!H1388","v":0}]
["Sch VIA","Schedule of Funds Held",null,"(G) Real Estate - Comments 68",{"$f":"'Schedule VIA'!H1412","v":0},null,null,null,null,null,null,null,{"$f":"'Schedule VIA (EBS)'!H1412","v":0}]
["Sch VIA","Schedule of Funds Held",null,"(G) Real Estate - Comments 81",{"$f":"'Schedule VIA'!H1425","v":0},null,null,null,null,null,null,null,{"$f":"'Schedule VIA (EBS)'!H1425","v":0}]
["Sch VIA","Schedule of Funds Held",null,"(H) Other Alt. Inv. - Asset Type 2",{"$f":"'Schedule VIA'!B1454","v":"Select"},null,null,null,null,null,null,null,{"$f":"'Schedule VIA (EBS)'!B1454","v":"Select"}]
["Sch VIA","Schedule of Funds Held",null,"(H) Other Alt. Inv. - Asset Type 35",{"$f":"'Schedule VIA'!B1487","v":"Select"},null,null,null,null,null,null,null,{"$f":"'Schedule VIA (EBS)'!B1487","v":"Select"}]
["Sch VIA","Schedule of Funds Held",null,"(H) Other Alt. Inv. - Asset Type 37",{"$f":"'Schedule VIA'!B1489","v":"Select"},null,null,null,null,null,null,null,{"$f":"'Schedule VIA (EBS)'!B1489","v":"Select"}]
["Sch VIA","Schedule of Funds Held",null,"(H) Other Alt. Inv. - Asset Type 72",{"$f":"'Schedule VIA'!B1524","v":"Select"},null,null,null,null,null,null,null,{"$f":"'Schedule VIA (EBS)'!B1524","v":"Select"}]
["Sch VIA","Schedule of Funds Held",null,"(H) Other Alt. Inv. - Asset Type 89",{"$f":"'Schedule VIA'!B1541","v":"Select"},null,null,null,null,null,null,null,{"$f":"'Schedule VIA (EBS)'!B1541","v":"Select"}]
["Sch VIA","Schedule of Funds Held",null,"(H) Other Alt. Inv. - Currency 9",{"$f":"'Schedule VIA'!C1461","v":"Select"},null,null,null,null,null,null,null,{"$f":"'Schedule VIA (EBS)'!C1461","v":"Select"}]
["Sch VIA","Schedule of Funds Held",null,"(H) Other Alt. Inv. - Currency 26",{"$f":"'Schedule VIA'!C1478","v":"Select"},null,null,null,null,null,null,null,{"$f":"'Schedule VIA (EBS)'!C1478","v":"Select"}]
["Sch VIA","Schedule of Funds Held",null,"(H) Other Alt. Inv. - Currency 65",{"$f":"'Schedule VIA'!C1517","v":"Select"},null,null,null,null,null,null,null,{"$f":"'Schedule VIA (EBS)'!C1517","v":"Select"}]
["Sch VIA","Schedule of Funds Held",null,"(H) Other Alt. Inv. - Currency 85",{"$f":"'Schedule VIA'!C1537","v":"Select"},null,null,null,null,null,null,null,{"$f":"'Schedule VIA (EBS)'!C1537","v":"Select"}]
["Sch VIA","Schedule of Funds Held",null,"(H) Other Alt. Inv. - Currency 96",{"$f":"'Schedule VIA'!C1548","v":"Select"},null,null,null,null,null,null,null,{"$f":"'Schedule VIA (EBS)'!C1548","v":"Select"}]
["Sch VIA","Schedule of Funds Held",null,"(H) Other Alt. Inv. - Country 22",{"$f":"'Schedule VIA'!D1474","v":"Select"},null,null,null,null,null,null,null,{"$f":"'Schedule VIA (EBS)'!D1474","v":"Select"}]
["Sch VIA","Schedule of Funds Held",null,"(H) Other Alt. Inv. - Country 31",{"$f":"'Schedule VIA'!D1483","v":"Select"},null,null,null,null,null,null,null,{"$f":"'Schedule VIA (EBS)'!D1483","v":"Select"}]
["Sch VIA","Schedule of Funds Held",null,"(H) Other Alt. Inv. - Country 59",{"$f":"'Schedule VIA'!D1511","v":"Select"},null,null,null,null,null,null,null,{"$f":"'Schedule VIA (EBS)'!D1511","v":"Select"}]
["Sch VIA","Schedule of Funds Held",null,"(H) Other Alt. Inv. - Country 87",{"$f":"'Schedule VIA'!D1539","v":"Select"},null,null,null,null,null,null,null,{"$f":"'Schedule VIA (EBS)'!D1539","v":"Select"}]
["Sch VIA","Schedule of Funds Held",null,"(H) Other Alt. Inv. - Rating 14",{"$f":"'Schedule VIA'!E1466","v":"Select"},null,null,null,null,null,null,null,{"$f":"'Schedule VIA (EBS)'!E1466","v":"Select"}]
["Sch VIA","Schedule of Funds Held",null,"(H) Other Alt. Inv. - Rating 22",{"$f":"'Schedule VIA'!E1474","v":"Select"},null,null,null,null,null,null,null,{"$f":"'Schedule VIA (EBS)'!E1474","v":"Select"}]
["Sch VIA","Schedule of Funds Held",null,"(H) Other Alt. Inv. - Rating 51",{"$f":"'Schedule VIA'!E1503","v":"Select"},null,null,null,null,null,null,null,{"$f":"'Schedule VIA (EBS)'!E1503","v":"Select"}]
["Sch VIA","Schedule of Funds Held",null,"(H) Other Alt. Inv. - Rating 74",{"$f":"'Schedule VIA'!E1526","v":"Select"},null,null,null,null,null,null,null,{"$f":"'Schedule VIA (EBS)'!E1526","v":"Select"}]
["Sch VIA","Schedule of Funds Held",null,"(H) Other Alt. Inv. - Rating 88",{"$f":"'Schedule VIA'!E1540","v":"Select"},null,null,null,null,null,null,null,{"$f":"'Schedule VIA (EBS)'!E1540","v":"Select"}]
["Sch VIA","Schedule of Funds Held",null,"(H) Other Alt. Inv. - Nominal Amount 9",{"$f":"'Schedule VIA'!F1461","v":0},null,null,null,null,null,null,null,{"$f":"'Schedule VIA (EBS)'!F1461","v":0}]
["Sch VIA","Schedule of Funds Held",null,"(H) Other Alt. Inv. - Nominal Amount 25",{"$f":"'Schedule VIA'!F1477","v":0},null,null,null,null,null,null,null,{"$f":"'Schedule VIA (EBS)'!F1477","v":0}]
["Sch VIA","Schedule of Funds Held",null,"(H) Other Alt. Inv. - Nominal Amount 65",{"$f":"'Schedule VIA'!F1517","v":0},null,null,null,null,null,null,null,{"$f":"'Schedule VIA (EBS)'!F1517","v":0}]
["Sch VIA","Schedule of Funds Held",null,"(H) Other Alt. Inv. - Nominal Amount 80",{"$f":"'Schedule VIA'!F1532","v":0},null,null,null,null,null,null,null,{"$f":"'Schedule VIA (EBS)'!F1532","v":0}]
["Sch VIA","Schedule of Funds Held",null,"(H) Other Alt. Inv. - Nominal Amount 100",{"$f":"'Schedule VIA'!F1552","v":0},null,null,null,null,null,null,null,{"$f":"'Schedule VIA (EBS)'!F1552","v":0}]
["Sch VIA","Schedule of Funds Held",null,"(H) Other Alt. Inv. - Fair Value 17",{"$f":"'Schedule VIA'!G1469","v":0},null,null,null,null,null,null,null,{"$f":"'Schedule VIA (EBS)'!G1469","v":0}]
["Sch VIA","Schedule of Funds Held",null,"(H) Other Alt. Inv. - Fair Value 52",{"$f":"'Schedule VIA'!G1504","v":0},null,null,null,null,null,null,null,{"$f":"'Schedule VIA (EBS)'!G1504","v":0}]
["Sch VIA","Schedule of Funds Held",null,"(H) Other Alt. Inv. - Fair Value 54",{"$f":"'Schedule VIA'!G1506","v":0},null,null,null,null,null,null,null,{"$f":"'Schedule VIA (EBS)'!G1506","v":0}]
["Sch VIA","Schedule of Funds Held",null,"(H) Other Alt. Inv. - Fair Value 87",{"$f":"'Schedule VIA'!G1539","v":0},null,null,null,null,null,null,null,{"$f":"'Schedule VIA (EBS)'!G1539","v":0}]
["Sch VIA","Schedule of Funds Held",null,"(H) Other Alt. Inv. - Weighted Avg YTM 13",{"$f":"'Schedule VIA'!H1465","v":0},null,null,null,null,null,null,null,{"$f":"'Schedule VIA (EBS)'!H1465","v":0}]
["Sch VIA","Schedule of Funds Held",null,"(H) Other Alt. Inv. - Weighted Avg YTM 22",{"$f":"'Schedule VIA'!H1474","v":0},null,null,null,null,null,null,null,{"$f":"'Schedule VIA (EBS)'!H1474","v":0}]
["Sch VIA","Schedule of Funds Held",null,"(H) Other Alt. Inv. - Weighted Avg YTM 46",{"$f":"'Schedule VIA'!H1498","v":0},null,null,null,null,null,null,null,{"$f":"'Schedule VIA (EBS)'!H1498","v":0}]
["Sch VIA","Schedule of Funds Held",null,"(H) Other Alt. Inv. - Weighted Avg YTM 67",{"$f":"'Schedule VIA'!H1519","v":0},null,null,null,null,null,null,null,{"$f":"'Schedule VIA (EBS)'!H1519","v":0}]
["Sch VIA","Schedule of Funds Held",null,"(H) Other Alt. Inv. - Weighted Avg YTM 94",{"$f":"'Schedule VIA'!H1546","v":0},null,null,null,null,null,null,null,{"$f":"'Schedule VIA (EBS)'!H1546","v":0}]
["Sch VIA","Schedule of Funds Held",null,"(H) Other Alt. Inv. - Effective Duration 4",{"$f":"'Schedule VIA'!I1456","v":0},null,null,null,null,null,null,null,{"$f":"'Schedule VIA (EBS)'!I1456","v":0}]
["Sch VIA","Schedule of Funds Held",null,"(H) Other Alt. Inv. - Effective Duration 29",{"$f":"'Schedule VIA'!I1481","v":0},null,null,null,null,null,null,null,{"$f":"'Schedule VIA (EBS)'!I1481","v":0}]
["Sch VIA","Schedule of Funds Held",null,"(H) Other Alt. Inv. - Effective Duration 59",{"$f":"'Schedule VIA'!I1511","v":0},null,null,null,null,null,null,null,{"$f":"'Schedule VIA (EBS)'!I1511","v":0}]
["Sch VIA","Schedule of Funds Held",null,"(H) Other Alt. Inv. - Effective Duration 85",{"$f":"'Schedule VIA'!I1537","v":0},null,null,null,null,null,null,null,{"$f":"'Schedule VIA (EBS)'!I1537","v":0}]
["Sch VIA","Schedule of Funds Held",null,"(H) Other Alt. Inv. - Effective Duration 96",{"$f":"'Schedule VIA'!I1548","v":0},null,null,null,null,null,null,null,{"$f":"'Schedule VIA (EBS)'!I1548","v":0}]
["Sch VIA","Schedule of Funds Held",null,"(H) Other Alt. Inv. - Comments 16",{"$f":"'Schedule VIA'!J1468","v":0},null,null,null,null,null,null,null,{"$f":"'Schedule VIA (EBS)'!J1468","v":0}]
["Sch VIA","Schedule of Funds Held",null,"(H) Other Alt. Inv. - Comments 33",{"$f":"'Schedule VIA'!J1485","v":0},null,null,null,null,null,null,null,{"$f":"'Schedule VIA (EBS)'!J1485","v":0}]
["Sch VIA","Schedule of Funds Held",null,"(H) Other Alt. Inv. - Comments 72",{"$f":"'Schedule VIA'!J1524","v":0},null,null,null,null,null,null,null,{"$f":"'Schedule VIA (EBS)'!J1524","v":0}]
["Sch VIA","Schedule of Funds Held",null,"(H) Other Alt. Inv. - Comments 92",{"$f":"'Schedule VIA'!J1544","v":0},null,null,null,null,null,null,null,{"$f":"'Schedule VIA (EBS)'!J1544","v":0}]
["Sch VIA","Schedule of Funds Held",null,"(I) Derivatives - Derivative Type 6",{"$f":"'Schedule VIA'!B1565","v":"Select"},null,null,null,null,null,null,null,{"$f":"'Schedule VIA (EBS)'!B1565","v":"Select"}]
["Sch VIA","Schedule of Funds Held",null,"(I) Derivatives - Derivative Type 24",{"$f":"'Schedule VIA'!B1583","v":"Select"},null,null,null,null,null,null,null,{"$f":"'Schedule VIA (EBS)'!B1583","v":"Select"}]
["Sch VIA","Schedule of Funds Held",null,"(I) Derivatives - Derivative Type 41",{"$f":"'Schedule VIA'!B1600","v":"Select"},null,null,null,null,null,null,null,{"$f":"'Schedule VIA (EBS)'!B1600","v":"Select"}]
["Sch VIA","Schedule of Funds Held",null,"(I) Derivatives - Derivative Type 61",{"$f":"'Schedule VIA'!B1620","v":"Select"},null,null,null,null,null,null,null,{"$f":"'Schedule VIA (EBS)'!B1620","v":"Select"}]
["Sch VIA","Schedule of Funds Held",null,"(I) Derivatives - Derivative Type 93",{"$f":"'Schedule VIA'!B1652","v":"Select"},null,null,null,null,null,null,null,{"$f":"'Schedule VIA (EBS)'!B1652","v":"Select"}]
["Sch VIA","Schedule of Funds Held",null,"(I) Derivatives - Derivative Type 120",{"$f":"'Schedule VIA'!B1679","v":"Select"},null,null,null,null,null,null,null,{"$f":"'Schedule VIA (EBS)'!B1679","v":"Select"}]
["Sch VIA","Schedule of Funds Held",null,"(I) Derivatives - Derivative Type 128",{"$f":"'Schedule VIA'!B1687","v":"Select"},null,null,null,null,null,null,null,{"$f":"'Schedule VIA (EBS)'!B1687","v":"Select"}]
["Sch VIA","Schedule of Funds Held",null,"(I) Derivatives - Derivative Type 157",{"$f":"'Schedule VIA'!B1716","v":"Select"},null,null,null,null,null,null,null,{"$f":"'Schedule VIA (EBS)'!B1716","v":"Select"}]
["Sch VIA","Schedule of Funds Held",null,"(I) Derivatives - Derivative Type 184",{"$f":"'Schedule VIA'!B1743","v":"Select"},null,null,null,null,null,null,null,{"$f":"'Schedule VIA (EBS)'!B1743","v":"Select"}]
["Sch VIA","Schedule of Funds Held",null,"(I) Derivatives - Derivative Type 190",{"$f":"'Schedule VIA'!B1749","v":"Select"},null,null,null,null,null,null,null,{"$f":"'Schedule VIA (EBS)'!B1749","v":"Select"}]
["Sch VIA","Schedule of Funds Held",null,"(I) Derivatives - Underlying 19",{"$f":"'Schedule VIA'!C1578","v":"Select"},null,null,null,null,null,null,null,{"$f":"'Schedule VIA (EBS)'!C1578","v":"Select"}]
["Sch VIA","Schedule of Funds Held",null,"(I) Derivatives - Underlying 49",{"$f":"'Schedule VIA'!C1608","v":"Select"},null,null,null,null,null,null,null,{"$f":"'Schedule VIA (EBS)'!C1608","v":"Select"}]
["Sch VIA","Schedule of Funds Held",null,"(I) Derivatives - Underlying 75",{"$f":"'Schedule VIA'!C1634","v":"Select"},null,null,null,null,null,null,null,{"$f":"'Schedule VIA (EBS)'!C1634","v":"Select"}]
["Sch VIA","Schedule of Funds Held",null,"(I) Derivatives - Underlying 86",{"$f":"'Schedule VIA'!C1645","v":"Select"},null,null,null,null,null,null,null,{"$f":"'Schedule VIA (EBS)'!C1645","v":"Select"}]
["Sch VIA","Schedule of Funds Held",null,"(I) Derivatives - Underlying 103",{"$f":"'Schedule VIA'!C1662","v":"Select"},null,null,null,null,null,null,null,{"$f":"'Schedule VIA (EBS)'!C1662","v":"Select"}]
["Sch VIA","Schedule of Funds Held",null,"(I) Derivatives - Underlying 126",{"$f":"'Schedule VIA'!C1685","v":"Select"},null,null,null,null,null,null,null,{"$f":"'Schedule VIA (EBS)'!C1685","v":"Select"}]
["Sch VIA","Schedule of Funds Held",null,"(I) Derivatives - Underlying 162",{"$f":"'Schedule VIA'!C1721","v":"Select"},null,null,null,null,null,null,null,{"$f":"'Schedule VIA (EBS)'!C1721","v":"Select"}]
["Sch VIA","Schedule of Funds Held",null,"(I) Derivatives - Underlying 178",{"$f":"'Schedule VIA'!C1737","v":"Select"},null,null,null,null,null,null,null,{"$f":"'Schedule VIA (EBS)'!C1737","v":"Select"}]
["Sch VIA","Schedule of Funds Held",null,"(I) Derivatives - Underlying 199",{"$f":"'Schedule VIA'!C1758","v":"Select"},null,null,null,null,null,null,null,{"$f":"'Schedule VIA (EBS)'!C1758","v":"Select"}]
["Sch VIA","Schedule of Funds Held",null,"(I) Derivatives - Currency 13",{"$f":"'Schedule VIA'!D1572","v":"Select"},null,null,null,null,null,null,null,{"$f":"'Schedule VIA (EBS)'!D1572","v":"Select"}]
["Sch VIA","Schedule of Funds Held",null,"(I) Derivatives - Currency 36",{"$f":"'Schedule VIA'!D1595","v":"Select"},null,null,null,null,null,null,null,{"$f":"'Schedule VIA (EBS)'!D1595","v":"Select"}]
["Sch VIA","Schedule of Funds Held",null,"(I) Derivatives - Currency 69",{"$f":"'Schedule VIA'!D1628","v":"Select"},null,null,null,null,null,null,null,{"$f":"'Schedule VIA (EBS)'!D1628","v":"Select"}]
["Sch VIA","Schedule of Funds Held",null,"(I) Derivatives - Currency 91",{"$f":"'Schedule VIA'!D1650","v":"Select"},null,null,null,null,null,null,null,{"$f":"'Schedule VIA (EBS)'!D1650","v":"Select"}]
["Sch VIA","Schedule of Funds Held",null,"(I) Derivatives - Currency 104",{"$f":"'Schedule VIA'!D1663","v":"Select"},null,null,null,null,null,null,null,{"$f":"'Schedule VIA (EBS)'!D1663","v":"Select"}]
["Sch VIA","Schedule of Funds Held",null,"(I) Derivatives - Currency 128",{"$f":"'Schedule VIA'!D1687","v":"Select"},null,null,null,null,null,null,null,{"$f":"'Schedule VIA (EBS)'!D1687","v":"Select"}]
["Sch VIA","Schedule of Funds Held",null,"(I) Derivatives - Currency 139",{"$f":"'Schedule VIA'!D1698","v":"Select"},null,null,null,null,null,null,null,{"$f":"'Schedule VIA (EBS)'!D1698","v":"Select"}]
["Sch VIA","Schedule of Funds Held",null,"(I) Derivatives - Currency 165",{"$f":"'Schedule VIA'!D1724","v":"Select"},null,null,null,null,null,null,null,{"$f":"'Schedule VIA (EBS)'!D1724","v":"Select"}]
["Sch VIA","Schedule of Funds Held",null,"(I) Derivatives - Currency 191",{"$f":"'Schedule VIA'!D1750","v":"Select"},null,null,null,null,null,null,null,{"$f":"'Schedule VIA (EBS)'!D1750","v":"Select"}]
["Sch VIA","Schedule of Funds Held",null,"(I) Derivatives - Trading Category 2",{"$f":"'Schedule VIA'!E1561","v":"Select"},null,null,null,null,null,null,null,{"$f":"'Schedule VIA (EBS)'!E1561","v":"Select"}]
["Sch VIA","Schedule of Funds Held",null,"(I) Derivatives - Trading Category 26",{"$f":"'Schedule VIA'!E1585","v":"Select"},null,null,null,null,null,null,null,{"$f":"'Schedule VIA (EBS)'!E1585","v":"Select"}]
["Sch VIA","Schedule of Funds Held",null,"(I) Derivatives - Trading Category 57",{"$f":"'Schedule VIA'!E1616","v":"Select"},null,null,null,null,null,null,null,{"$f":"'Schedule VIA (EBS)'!E1616","v":"Select"}]
["Sch VIA","Schedule of Funds Held",null,"(I) Derivatives - Trading Category 82",{"$f":"'Schedule VIA'!E1641","v":"Select"},null,null,null,null,null,null,null,{"$f":"'Schedule VIA (EBS)'!E1641","v":"Select"}]
["Sch VIA","Schedule of Funds Held",null,"(I) Derivatives - Trading Category 94",{"$f":"'Schedule VIA'!E1653","v":"Select"},null,null,null,null,null,null,null,{"$f":"'Schedule VIA (EBS)'!E1653","v":"Select"}]
["Sch VIA","Schedule of Funds Held",null,"(I) Derivatives - Trading Category 117",{"$f":"'Schedule VIA'!E1676","v":"Select"},null,null,null,null,null,null,null,{"$f":"'Schedule VIA (EBS)'!E1676","v":"Select"}]
["Sch VIA","Schedule of Funds Held",null,"(I) Derivatives - Trading Category 131",{"$f":"'Schedule VIA'!E1690","v":"Select"},null,null,null,null,null,null,null,{"$f":"'Schedule VIA (EBS)'!E1690","v":"Select"}]
["Sch VIA","Schedule of Funds Held",null,"(I) Derivatives - Trading Category 169",{"$f":"'Schedule VIA'!E1728","v":"Select"},null,null,null,null,null,null,null,{"$f":"'Schedule VIA (EBS)'!E1728","v":"Select"}]
["Sch VIA","Schedule of Funds Held",null,"(I) Derivatives - Trading Category 190",{"$f":"'Schedule VIA'!E1749","v":"Select"},null,null,null,null,null,null,null,{"$f":"'Schedule VIA (EBS)'!E1749","v":"Select"}]
["Sch VIA","Schedule of Funds Held",null,"(I) Derivatives - Purpose 4",{"$f":"'Schedule VIA'!F1563","v":"Select"},null,null,null,null,null,null,null,{"$f":"'Schedule VIA (EBS)'!F1563","v":"Select"}]
["Sch VIA","Schedule of Funds Held",null,"(I) Derivatives - Purpose 23",{"$f":"'Schedule VIA'!F1582","v":"Select"},null,null,null,null,null,null,null,{"$f":"'Schedule VIA (EBS)'!F1582","v":"Select"}]
["Sch VIA","Schedule of Funds Held",null,"(I) Derivatives - Purpose 39",{"$f":"'Schedule VIA'!F1598","v":"Select"},null,null,null,null,null,null,null,{"$f":"'Schedule VIA (EBS)'!F1598","v":"Select"}]
["Sch VIA","Schedule of Funds Held",null,"(I) Derivatives - Purpose 60",{"$f":"'Schedule VIA'!F1619","v":"Select"},null,null,null,null,null,null,null,{"$f":"'Schedule VIA (EBS)'!F1619","v":"Select"}]
["Sch VIA","Schedule of Funds Held",null,"(I) Derivatives - Purpose 81",{"$f":"'Schedule VIA'!F1640","v":"Select"},null,null,null,null,null,null,null,{"$f":"'Schedule VIA (EBS)'!F1640","v":"Select"}]
["Sch VIA","Schedule of Funds Held",null,"(I) Derivatives - Purpose 111",{"$f":"'Schedule VIA'!F1670","v":"Select"},null,null,null,null,null,null,null,{"$f":"'Schedule VIA (EBS)'!F1670","v":"Select"}]
["Sch VIA","Schedule of Funds Held",null,"(I) Derivatives - Purpose 136",{"$f":"'Schedule VIA'!F1695","v":"Select"},null,null,null,null,null,null,null,{"$f":"'Schedule VIA (EBS)'!F1695","v":"Select"}]
["Sch VIA","Schedule of Funds Held",null,"(I) Derivatives - Purpose 146",{"$f":"'Schedule VIA'!F1705","v":"Select"},null,null,null,null,null,null,null,{"$f":"'Schedule VIA (EBS)'!F1705","v":"Select"}]
["Sch VIA","Schedule of Funds Held",null,"(I) Derivatives - Purpose 173",{"$f":"'Schedule VIA'!F1732","v":"Select"},null,null,null,null,null,null,null,{"$f":"'Schedule VIA (EBS)'!F1732","v":"Select"}]
["Sch VIA","Schedule of Funds Held",null,"(I) Derivatives - Position 2",{"$f":"'Schedule VIA'!G1561","v":"Select"},null,null,null,null,null,null,null,{"$f":"'Schedule VIA (EBS)'!G1561","v":"Select"}]
["Sch VIA","Schedule of Funds Held",null,"(I) Derivatives - Position 10",{"$f":"'Schedule VIA'!G1569","v":"Select"},null,null,null,null,null,null,null,{"$f":"'Schedule VIA (EBS)'!G1569","v":"Select"}]
["Sch VIA","Schedule of Funds Held",null,"(I) Derivatives - Position 33",{"$f":"'Schedule VIA'!G1592","v":"Select"},null,null,null,null,null,null,null,{"$f":"'Schedule VIA (EBS)'!G1592","v":"Select"}]
["Sch VIA","Schedule of Funds Held",null,"(I) Derivatives - Position 69",{"$f":"'Schedule VIA'!G1628","v":"Select"},null,null,null,null,null,null,null,{"$f":"'Schedule VIA (EBS)'!G1628","v":"Select"}]
["Sch VIA","Schedule of Funds Held",null,"(I) Derivatives - Position 89",{"$f":"'Schedule VIA'!G1648","v":"Select"},null,null,null,null,null,null,null,{"$f":"'Schedule VIA (EBS)'!G1648","v":"Select"}]
["Sch VIA","Schedule of Funds Held",null,"(I) Derivatives - Position 102",{"$f":"'Schedule VIA'!G1661","v":"Select"},null,null,null,null,null,null,null,{"$f":"'Schedule VIA (EBS)'!G1661","v":"Select"}]
["Sch VIA","Schedule of Funds Held",null,"(I) Derivatives - Position 124",{"$f":"'Schedule VIA'!G1683","v":"Select"},null,null,null,null,null,null,null,{"$f":"'Schedule VIA (EBS)'!G1683","v":"Select"}]
["Sch VIA","Schedule of Funds Held",null,"(I) Derivatives - Position 139",{"$f":"'Schedule VIA'!G1698","v":"Select"},null,null,null,null,null,null,null,{"$f":"'Schedule VIA (EBS)'!G1698","v":"Select"}]
["Sch VIA","Schedule of Funds Held",null,"(I) Derivatives - Position 159",{"$f":"'Schedule VIA'!G1718","v":"Select"},null,null,null,null,null,null,null,{"$f":"'Schedule VIA (EBS)'!G1718","v":"Select"}]
["Sch VIA","Schedule of Funds Held",null,"(I) Derivatives - Position 198",{"$f":"'Schedule VIA'!G1757","v":"Select"},null,null,null,null,null,null,null,{"$f":"'Schedule VIA (EBS)'!G1757","v":"Select"}]
["Sch VIA","Schedule of Funds Held",null,"(I) Derivatives - Pos./Neg. - 11",{"$f":"'Schedule VIA'!H1570","v":"Select"},null,null,null,null,null,null,null,{"$f":"'Schedule VIA (EBS)'!H1570","v":"Select"}]
["Sch VIA","Schedule of Funds Held",null,"(I) Derivatives - Pos./Neg. - 35",{"$f":"'Schedule VIA'!H1594","v":"Select"},null,null,null,null,null,null,null,{"$f":"'Schedule VIA (EBS)'!H1594","v":"Select"}]
["Sch VIA","Schedule of Funds Held",null,"(I) Derivatives - Pos./Neg. - 46",{"$f":"'Schedule VIA'!H1605","v":"Select"},null,null,null,null,null,null,null,{"$f":"'Schedule VIA (EBS)'!H1605","v":"Select"}]
["Sch VIA","Schedule of Funds Held",null,"(I) Derivatives - Pos./Neg. - 68",{"$f":"'Schedule VIA'!H1627","v":"Select"},null,null,null,null,null,null,null,{"$f":"'Schedule VIA (EBS)'!H1627","v":"Select"}]
["Sch VIA","Schedule of Funds Held",null,"(I) Derivatives - Pos./Neg. - 102",{"$f":"'Schedule VIA'!H1661","v":"Select"},null,null,null,null,null,null,null,{"$f":"'Schedule VIA (EBS)'!H1661","v":"Select"}]
["Sch VIA","Schedule of Funds Held",null,"(I) Derivatives - Pos./Neg. - 127",{"$f":"'Schedule VIA'!H1686","v":"Select"},null,null,null,null,null,null,null,{"$f":"'Schedule VIA (EBS)'!H1686","v":"Select"}]
["Sch VIA","Schedule of Funds Held",null,"(I) Derivatives - Pos./Neg. - 137",{"$f":"'Schedule VIA'!H1696","v":"Select"},null,null,null,null,null,null,null,{"$f":"'Schedule VIA (EBS)'!H1696","v":"Select"}]
["Sch VIA","Schedule of Funds Held",null,"(I) Derivatives - Pos./Neg. - 164",{"$f":"'Schedule VIA'!H1723","v":"Select"},null,null,null,null,null,null,null,{"$f":"'Schedule VIA (EBS)'!H1723","v":"Select"}]
["Sch VIA","Schedule of Funds Held",null,"(I) Derivatives - Pos./Neg. - 189",{"$f":"'Schedule VIA'!H1748","v":"Select"},null,null,null,null,null,null,null,{"$f":"'Schedule VIA (EBS)'!H1748","v":"Select"}]
["Sch VIA","Schedule of Funds Held",null,"(I) Derivatives - Market Value 1",{"$f":"'Schedule VIA'!I1560","v":0},null,null,null,null,null,null,null,{"$f":"'Schedule VIA (EBS)'!I1560","v":0}]
["Sch VIA","Schedule of Funds Held",null,"(I) Derivatives - Market Value 24",{"$f":"'Schedule VIA'!I1583","v":0},null,null,null,null,null,null,null,{"$f":"'Schedule VIA (EBS)'!I1583","v":0}]
["Sch VIA","Schedule of Funds Held",null,"(I) Derivatives - Market Value 38",{"$f":"'Schedule VIA'!I1597","v":0},null,null,null,null,null,null,null,{"$f":"'Schedule VIA (EBS)'!I1597","v":0}]
["Sch VIA","Schedule of Funds Held",null,"(I) Derivatives - Market Value 77",{"$f":"'Schedule VIA'!I1636","v":0},null,null,null,null,null,null,null,{"$f":"'Schedule VIA (EBS)'!I1636","v":0}]
["Sch VIA","Schedule of Funds Held",null,"(I) Derivatives - Market Value 96",{"$f":"'Schedule VIA'!I1655","v":0},null,null,null,null,null,null,null,{"$f":"'Schedule VIA (EBS)'!I1655","v":0}]
["Sch VIA","Schedule of Funds Held",null,"(I) Derivatives - Market Value 114",{"$f":"'Schedule VIA'!I1673","v":0},null,null,null,null,null,null,null,{"$f":"'Schedule VIA (EBS)'!I1673","v":0}]
["Sch VIA","Schedule of Funds Held",null,"(I) Derivatives - Market Value 131",{"$f":"'Schedule VIA'!I1690","v":0},null,null,null,null,null,null,null,{"$f":"'Schedule VIA (EBS)'!I1690","v":0}]
["Sch VIA","Schedule of Funds Held",null,"(I) Derivatives - Market Value 147",{"$f":"'Schedule VIA'!I1706","v":0},null,null,null,null,null,null,null,{"$f":"'Schedule VIA (EBS)'!I1706","v":0}]
["Sch VIA","Schedule of Funds Held",null,"(I) Derivatives - Market Value 187",{"$f":"'Schedule VIA'!I1746","v":0},null,null,null,null,null,null,null,{"$f":"'Schedule VIA (EBS)'!I1746","v":0}]
["Sch VIA","Schedule of Funds Held",null,"(I) Derivatives - Gross Notional Value 6",{"$f":"'Schedule VIA'!J1565","v":0},null,null,null,null,null,null,null,{"$f":"'Schedule VIA (EBS)'!J1565","v":0}]
["Sch VIA","Schedule of Funds Held",null,"(I) Derivatives - Gross Notional Value 22",{"$f":"'Schedule VIA'!J1581","v":0},null,null,null,null,null,null,null,{"$f":"'Schedule VIA (EBS)'!J1581","v":0}]
["Sch VIA","Schedule of Funds Held",null,"(I) Derivatives - Gross Notional Value 43",{"$f":"'Schedule VIA'!J1602","v":0},null,null,null,null,null,null,null,{"$f":"'Schedule VIA (EBS)'!J1602","v":0}]
["Sch VIA","Schedule of Funds Held",null,"(I) Derivatives - Gross Notional Value 74",{"$f":"'Schedule VIA'!J1633","v":0},null,null,null,null,null,null,null,{"$f":"'Schedule VIA (EBS)'!J1633","v":0}]
["Sch VIA","Schedule of Funds Held",null,"(I) Derivatives - Gross Notional Value 80",{"$f":"'Schedule VIA'!J1639","v":0},null,null,null,null,null,null,null,{"$f":"'Schedule VIA (EBS)'!J1639","v":0}]
["Sch VIA","Schedule of Funds Held",null,"(I) Derivatives - Gross Notional Value 109",{"$f":"'Schedule VIA'!J1668","v":0},null,null,null,null,null,null,null,{"$f":"'Schedule VIA (EBS)'!J1668","v":0}]
["Sch VIA","Schedule of Funds Held",null,"(I) Derivatives - Gross Notional Value 139",{"$f":"'Schedule VIA'!J1698","v":0},null,null,null,null,null,null,null,{"$f":"'Schedule VIA (EBS)'!J1698","v":0}]
["Sch VIA","Schedule of Funds Held",null,"(I) Derivatives - Gross Notional Value 144",{"$f":"'Schedule VIA'!J1703","v":0},null,null,null,null,null,null,null,{"$f":"'Schedule VIA (EBS)'!J1703","v":0}]
["Sch VIA","Schedule of Funds Held",null,"(I) Derivatives - Gross Notional Value 172",{"$f":"'Schedule VIA'!J1731","v":0},null,null,null,null,null,null,null,{"$f":"'Schedule VIA (EBS)'!J1731","v":0}]
["Sch VIA","Schedule of Funds Held",null,"(I) Derivatives - Gross Notional Value 200",{"$f":"'Schedule VIA'!J1759","v":0},null,null,null,null,null,null,null,{"$f":"'Schedule VIA (EBS)'!J1759","v":0}]
["Sch VIA","Schedule of Funds Held",null,"(I) Derivatives - Net Notional Value 9",{"$f":"'Schedule VIA'!K1568","v":0},null,null,null,null,null,null,null,{"$f":"'Schedule VIA (EBS)'!K1568","v":0}]
["Sch VIA","Schedule of Funds Held",null,"(I) Derivatives - Net Notional Value 31",{"$f":"'Schedule VIA'!K1590","v":0},null,null,null,null,null,null,null,{"$f":"'Schedule VIA (EBS)'!K1590","v":0}]
["Sch VIA","Schedule of Funds Held",null,"(I) Derivatives - Net Notional Value 68",{"$f":"'Schedule VIA'!K1627","v":0},null,null,null,null,null,null,null,{"$f":"'Schedule VIA (EBS)'!K1627","v":0}]
["Sch VIA","Schedule of Funds Held",null,"(I) Derivatives - Net Notional Value 87",{"$f":"'Schedule VIA'!K1646","v":0},null,null,null,null,null,null,null,{"$f":"'Schedule VIA (EBS)'!K1646","v":0}]
["Sch VIA","Schedule of Funds Held",null,"(I) Derivatives - Net Notional Value 105",{"$f":"'Schedule VIA'!K1664","v":0},null,null,null,null,null,null,null,{"$f":"'Schedule VIA (EBS)'!K1664","v":0}]
["Sch VIA","Schedule of Funds Held",null,"(I) Derivatives - Net Notional Value 122",{"$f":"'Schedule VIA'!K1681","v":0},null,null,null,null,null,null,null,{"$f":"'Schedule VIA (EBS)'!K1681","v":0}]
["Sch VIA","Schedule of Funds Held",null,"(I) Derivatives - Net Notional Value 138",{"$f":"'Schedule VIA'!K1697","v":0},null,null,null,null,null,null,null,{"$f":"'Schedule VIA (EBS)'!K1697","v":0}]
["Sch VIA","Schedule of Funds Held",null,"(I) Derivatives - Net Notional Value 157",{"$f":"'Schedule VIA'!K1716","v":0},null,null,null,null,null,null,null,{"$f":"'Schedule VIA (EBS)'!K1716","v":0}]
["Sch VIA","Schedule of Funds Held",null,"(I) Derivatives - Net Notional Value 197",{"$f":"'Schedule VIA'!K1756","v":0},null,null,null,null,null,null,null,{"$f":"'Schedule VIA (EBS)'!K1756","v":0}]
["Sch VIA","Schedule of Funds Held",null,"(I) Derivatives - Exposure 14",{"$f":"'Schedule VIA'!L1573","v":0},null,null,null,null,null,null,null,{"$f":"'Schedule VIA (EBS)'!L1573","v":0}]
["Sch VIA","Schedule of Funds Held",null,"(I) Derivatives - Exposure 29",{"$f":"'Schedule VIA'!L1588","v":0},null,null,null,null,null,null,null,{"$f":"'Schedule VIA (EBS)'!L1588","v":0}]
["Sch VIA","Schedule of Funds Held",null,"(I) Derivatives - Exposure 51",{"$f":"'Schedule VIA'!L1610","v":0},null,null,null,null,null,null,null,{"$f":"'Schedule VIA (EBS)'!L1610","v":0}]
["Sch VIA","Schedule of Funds Held",null,"(I) Derivatives - Exposure 64",{"$f":"'Schedule VIA'!L1623","v":0},null,null,null,null,null,null,null,{"$f":"'Schedule VIA (EBS)'!L1623","v":0}]
["Sch VIA","Schedule of Funds Held",null,"(I) Derivatives - Exposure 88",{"$f":"'Schedule VIA'!L1647","v":0},null,null,null,null,null,null,null,{"$f":"'Schedule VIA (EBS)'!L1647","v":0}]
["Sch VIA","Schedule of Funds Held",null,"(I) Derivatives - Exposure 116",{"$f":"'Schedule VIA'!L1675","v":0},null,null,null,null,null,null,null,{"$f":"'Schedule VIA (EBS)'!L1675","v":0}]
["Sch VIA","Schedule of Funds Held",null,"(I) Derivatives - Exposure 147",{"$f":"'Schedule VIA'!L1706","v":0},null,null,null,null,null,null,null,{"$f":"'Schedule VIA (EBS)'!L1706","v":0}]
["Sch VIA","Schedule of Funds Held",null,"(I) Derivatives - Exposure 151",{"$f":"'Schedule VIA'!L1710","v":0},null,null,null,null,null,null,null,{"$f":"'Schedule VIA (EBS)'!L1710","v":0}]
["Sch VIA","Schedule of Funds Held",null,"(I) Derivatives - Exposure 184",{"$f":"'Schedule VIA'!L1743","v":0},null,null,null,null,null,null,null,{"$f":"'Schedule VIA (EBS)'!L1743","v":0}]
["Sch VIA","Schedule of Funds Held",null,"(I) Derivatives - Comments 7",{"$f":"'Schedule VIA'!M1566","v":0},null,null,null,null,null,null,null,{"$f":"'Schedule VIA (EBS)'!M1566","v":0}]
["Sch VIA","Schedule of Funds Held",null,"(I) Derivatives - Comments 17",{"$f":"'Schedule VIA'!M1576","v":0},null,null,null,null,null,null,null,{"$f":"'Schedule VIA (EBS)'!M1576","v":0}]
["Sch VIA","Schedule of Funds Held",null,"(I) Derivatives - Comments 42",{"$f":"'Schedule VIA'!M1601","v":0},null,null,null,null,null,null,null,{"$f":"'Schedule VIA (EBS)'!M1601","v":0}]
["Sch VIA","Schedule of Funds Held",null,"(I) Derivatives - Comments 76",{"$f":"'Schedule VIA'!M1635","v":0},null,null,null,null,null,null,null,{"$f":"'Schedule VIA (EBS)'!M1635","v":0}]
["Sch VIA","Schedule of Funds Held",null,"(I) Derivatives - Comments 94",{"$f":"'Schedule VIA'!M1653","v":0},null,null,null,null,null,null,null,{"$f":"'Schedule VIA (EBS)'!M1653","v":0}]
["Sch VIA","Schedule of Funds Held",null,"(I) Derivatives - Comments 113",{"$f":"'Schedule VIA'!M1672","v":0},null,null,null,null,null,null,null,{"$f":"'Schedule VIA (EBS)'!M1672","v":0}]
["Sch VIA","Schedule of Funds Held",null,"(I) Derivatives - Comments 129",{"$f":"'Schedule VIA'!M1688","v":0},null,null,null,null,null,null,null,{"$f":"'Schedule VIA (EBS)'!M1688","v":0}]
["Sch VIA","Schedule of Funds Held",null,"(I) Derivatives - Comments 150",{"$f":"'Schedule VIA'!M1709","v":0},null,null,null,null,null,null,null,{"$f":"'Schedule VIA (EBS)'!M1709","v":0}]
["Sch VIA","Schedule of Funds Held",null,"(I) Derivatives - Comments 164",{"$f":"'Schedule VIA'!M1723","v":0},null,null,null,null,null,null,null,{"$f":"'Schedule VIA (EBS)'!M1723","v":0}]
["Sch VIA","Schedule of Funds Held",null,"(J) Fin. Inst. Rating 1-3 - Corp Bonds",{"$f":"'Schedule VIA'!D1767","v":0},null,null,null,null,null,null,null,{"$f":"'Schedule VIA (EBS)'!D1767","v":0}]
["Sch VIA","Schedule of Funds Held",null,"(J) Fin. Inst. Rating 8 - Securitization",{"$f":"'Schedule VIA'!G1770","v":0},null,null,null,null,null,null,null,{"$f":"'Schedule VIA (EBS)'!G1770","v":0}]
["Sch VIA","Schedule of Funds Held",null,"(J) Fin. Inst. Insurers - Comments",{"$f":"'Schedule VIA'!J1776","v":0},null,null,null,null,null,null,null,{"$f":"'Schedule VIA (EBS)'!J1776","v":0}]
["Sch VIA","Schedule of Funds Held",null,"(J) Unlisted Counterparty Rating 8 - Corp Loans",{"$f":"'Schedule VIA'!E1786","v":0},null,null,null,null,null,null,null,{"$f":"'Schedule VIA (EBS)'!E1786","v":0}]
["Sch VIA","Schedule of Funds Held",null,"(K) Other Assets - Asset Type 15",{"$f":"'Schedule VIA'!B1810","v":"Select"},null,null,null,null,null,null,null,{"$f":"'Schedule VIA (EBS)'!B1810","v":"Select"}]
["Sch VIA","Schedule of Funds Held",null,"(K) Other Assets - Asset Type 43",{"$f":"'Schedule VIA'!B1838","v":"Select"},null,null,null,null,null,null,null,{"$f":"'Schedule VIA (EBS)'!B1838","v":"Select"}]
["Sch VIA","Schedule of Funds Held",null,"(K) Other Assets - Asset Type 52",{"$f":"'Schedule VIA'!B1847","v":"Select"},null,null,null,null,null,null,null,{"$f":"'Schedule VIA (EBS)'!B1847","v":"Select"}]
["Sch VIA","Schedule of Funds Held",null,"(K) Other Assets - Asset Type 78",{"$f":"'Schedule VIA'!B1873","v":"Select"},null,null,null,null,null,null,null,{"$f":"'Schedule VIA (EBS)'!B1873","v":"Select"}]
["Sch VIA","Schedule of Funds Held",null,"(K) Other Assets - Asset Type 107",{"$f":"'Schedule VIA'!B1902","v":"Select"},null,null,null,null,null,null,null,{"$f":"'Schedule VIA (EBS)'!B1902","v":"Select"}]
["Sch VIA","Schedule of Funds Held",null,"(K) Other Assets - Asset Type 128",{"$f":"'Schedule VIA'!B1923","v":"Select"},null,null,null,null,null,null,null,{"$f":"'Schedule VIA (EBS)'!B1923","v":"Select"}]
["Sch VIA","Schedule of Funds Held",null,"(K) Other Assets - Asset Type 150",{"$f":"'Schedule VIA'!B1945","v":"Select"},null,null,null,null,null,null,null,{"$f":"'Schedule VIA (EBS)'!B1945","v":"Select"}]
["Sch VIA","Schedule of Funds Held",null,"(K) Other Assets - Asset Type 165",{"$f":"'Schedule VIA'!B1960","v":"Select"},null,null,null,null,null,null,null,{"$f":"'Schedule VIA (EBS)'!B1960","v":"Select"}]
["Sch VIA","Schedule of Funds Held",null,"(K) Other Assets - Asset Type 185",{"$f":"'Schedule VIA'!B1980","v":"Select"},null,null,null,null,null,null,null,{"$f":"'Schedule VIA (EBS)'!B1980","v":"Select"}]
["Sch VIA","Schedule of Funds Held",null,"(K) Other Assets - Currency 20",{"$f":"'Schedule VIA'!C1815","v":"Select"},null,null,null,null,null,null,null,{"$f":"'Schedule VIA (EBS)'!C1815","v":"Select"}]
["Sch VIA","Schedule of Funds Held",null,"(K) Other Assets - Currency 41",{"$f":"'Schedule VIA'!C1836","v":"Select"},null,null,null,null,null,null,null,{"$f":"'Schedule VIA (EBS)'!C1836","v":"Select"}]
["Sch VIA","Schedule of Funds Held",null,"(K) Other Assets - Currency 57",{"$f":"'Schedule VIA'!C1852","v":"Select"},null,null,null,null,null,null,null,{"$f":"'Schedule VIA (EBS)'!C1852","v":"Select"}]
["Sch VIA","Schedule of Funds Held",null,"(K) Other Assets - Currency 72",{"$f":"'Schedule VIA'!C1867","v":"Select"},null,null,null,null,null,null,null,{"$f":"'Schedule VIA (EBS)'!C1867","v":"Select"}]
["Sch VIA","Schedule of Funds Held",null,"(K) Other Assets - Currency 94",{"$f":"'Schedule VIA'!C1889","v":"Select"},null,null,null,null,null,null,null,{"$f":"'Schedule VIA (EBS)'!C1889","v":"Select"}]
["Sch VIA","Schedule of Funds Held",null,"(K) Other Assets - Currency 128",{"$f":"'Schedule VIA'!C1923","v":"Select"},null,null,null,null,null,null,null,{"$f":"'Schedule VIA (EBS)'!C1923","v":"Select"}]
["Sch VIA","Schedule of Funds Held",null,"(K) Other Assets - Currency 131",{"$f":"'Schedule VIA'!C1926","v":"Select"},null,null,null,null,null,null,null,{"$f":"'Schedule VIA (EBS)'!C1926","v":"Select"}]
["Sch VIA","Schedule of Funds Held",null,"(K) Other Assets - Currency 163",{"$f":"'Schedule VIA'!C1958","v":"Select"},null,null,null,null,null,null,null,{"$f":"'Schedule VIA (EBS)'!C1958","v":"Select"}]
["Sch VIA","Schedule of Funds Held",null,"(K) Other Assets - Currency 186",{"$f":"'Schedule VIA'!C1981","v":"Select"},null,null,null,null,null,null,null,{"$f":"'Schedule VIA (EBS)'!C1981","v":"Select"}]
["Sch VIA","Schedule of Funds Held",null,"(K) Other Assets - Currency 198",{"$f":"'Schedule VIA'!C1993","v":"Select"},null,null,null,null,null,null,null,{"$f":"'Schedule VIA (EBS)'!C1993","v":"Select"}]
["Sch VIA","Schedule of Funds Held",null,"(K) Other Assets - Rating 23",{"$f":"'Schedule VIA'!D1818","v":"Select"},null,null,null,null,null,null,null,{"$f":"'Schedule VIA (EBS)'!D1818","v":"Select"}]
["Sch VIA","Schedule of Funds Held",null,"(K) Other Assets - Rating 54",{"$f":"'Schedule VIA'!D1849","v":"Select"},null,null,null,null,null,null,null,{"$f":"'Schedule VIA (EBS)'!D1849","v":"Select"}]
["Sch VIA","Schedule of Funds Held",null,"(K) Other Assets - Rating 60",{"$f":"'Schedule VIA'!D1855","v":"Select"},null,null,null,null,null,null,null,{"$f":"'Schedule VIA (EBS)'!D1855","v":"Select"}]
["Sch VIA","Schedule of Funds Held",null,"(K) Other Assets - Rating 85",{"$f":"'Schedule VIA'!D1880","v":"Select"},null,null,null,null,null,null,null,{"$f":"'Schedule VIA (EBS)'!D1880","v":"Select"}]
["Sch VIA","Schedule of Funds Held",null,"(K) Other Assets - Rating 119",{"$f":"'Schedule VIA'!D1914","v":"Select"},null,null,null,null,null,null,null,{"$f":"'Schedule VIA (EBS)'!D1914","v":"Select"}]
["Sch VIA","Schedule of Funds Held",null,"(K) Other Assets - Rating 141",{"$f":"'Schedule VIA'!D1936","v":"Select"},null,null,null,null,null,null,null,{"$f":"'Schedule VIA (EBS)'!D1936","v":"Select"}]
["Sch VIA","Schedule of Funds Held",null,"(K) Other Assets - Rating 152",{"$f":"'Schedule VIA'!D1947","v":"Select"},null,null,null,null,null,null,null,{"$f":"'Schedule VIA (EBS)'!D1947","v":"Select"}]
["Sch VIA","Schedule of Funds Held",null,"(K) Other Assets - Rating 176",{"$f":"'Schedule VIA'!D1971","v":"Select"},null,null,null,null,null,null,null,{"$f":"'Schedule VIA (EBS)'!D1971","v":"Select"}]
["Sch VIA","Schedule of Funds Held",null,"(K) Other Assets - Rating 189",{"$f":"'Schedule VIA'!D1984","v":"Select"},null,null,null,null,null,null,null,{"$f":"'Schedule VIA (EBS)'!D1984","v":"Select"}]
["Sch VIA","Schedule of Funds Held",null,"(K) Other Assets - Nominal Amount 11",{"$f":"'Schedule VIA'!E1806","v":0},null,null,null,null,null,null,null,{"$f":"'Schedule VIA (EBS)'!E1806","v":0}]
["Sch VIA","Schedule of Funds Held",null,"(K) Other Assets - Nominal Amount 48",{"$f":"'Schedule VIA'!E1843","v":0},null,null,null,null,null,null,null,{"$f":"'Schedule VIA (EBS)'!E1843","v":0}]
["Sch VIA","Schedule of Funds Held",null,"(K) Other Assets - Nominal Amount 63",{"$f":"'Schedule VIA'!E1858","v":0},null,null,null,null,null,null,null,{"$f":"'Schedule VIA (EBS)'!E1858","v":0}]
["Sch VIA","Schedule of Funds Held",null,"(K) Other Assets - Nominal Amount 85",{"$f":"'Schedule VIA'!E1880","v":0},null,null,null,null,null,null,null,{"$f":"'Schedule VIA (EBS)'!E1880","v":0}]
["Sch VIA","Schedule of Funds Held",null,"(K) Other Assets - Nominal Amount 102",{"$f":"'Schedule VIA'!E1897","v":0},null,null,null,null,null,null,null,{"$f":"'Schedule VIA (EBS)'!E1897","v":0}]
["Sch VIA","Schedule of Funds Held",null,"(K) Other Assets - Nominal Amount 135",{"$f":"'Schedule VIA'!E1930","v":0},null,null,null,null,null,null,null,{"$f":"'Schedule VIA (EBS)'!E1930","v":0}]
["Sch VIA","Schedule of Funds Held",null,"(K) Other Assets - Nominal Amount 139",{"$f":"'Schedule VIA'!E1934","v":0},null,null,null,null,null,null,null,{"$f":"'Schedule VIA (EBS)'!E1934","v":0}]
["Sch VIA","Schedule of Funds Held",null,"(K) Other Assets - Nominal Amount 170",{"$f":"'Schedule VIA'!E1965","v":0},null,null,null,null,null,null,null,{"$f":"'Schedule VIA (EBS)'!E1965","v":0}]
["Sch VIA","Schedule of Funds Held",null,"(K) Other Assets - Nominal Amount 198",{"$f":"'Schedule VIA'!E1993","v":0},null,null,null,null,null,null,null,{"$f":"'Schedule VIA (EBS)'!E1993","v":0}]
["Sch VIA","Schedule of Funds Held",null,"(K) Other Assets - Fair Value 5",{"$f":"'Schedule VIA'!F1800","v":0},null,null,null,null,null,null,null,{"$f":"'Schedule VIA (EBS)'!F1800","v":0}]
["Sch VIA","Schedule of Funds Held",null,"(K) Other Assets - Fair Value 31",{"$f":"'Schedule VIA'!F1826","v":0},null,null,null,null,null,null,null,{"$f":"'Schedule VIA (EBS)'!F1826","v":0}]
["Sch VIA","Schedule of Funds Held",null,"(K) Other Assets - Fair Value 61",{"$f":"'Schedule VIA'!F1856","v":0},null,null,null,null,null,null,null,{"$f":"'Schedule VIA (EBS)'!F1856","v":0}]
["Sch VIA","Schedule of Funds Held",null,"(K) Other Assets - Fair Value 68",{"$f":"'Schedule VIA'!F1863","v":0},null,null,null,null,null,null,null,{"$f":"'Schedule VIA (EBS)'!F1863","v":0}]
["Sch VIA","Schedule of Funds Held",null,"(K) Other Assets - Fair Value 96",{"$f":"'Schedule VIA'!F1891","v":0},null,null,null,null,null,null,null,{"$f":"'Schedule VIA (EBS)'!F1891","v":0}]
["Sch VIA","Schedule of Funds Held",null,"(K) Other Assets - Fair Value 127",{"$f":"'Schedule VIA'!F1922","v":0},null,null,null,null,null,null,null,{"$f":"'Schedule VIA (EBS)'!F1922","v":0}]
["Sch VIA","Schedule of Funds Held",null,"(K) Other Assets - Fair Value 148",{"$f":"'Schedule VIA'!F1943","v":0},null,null,null,null,null,null,null,{"$f":"'Schedule VIA (EBS)'!F1943","v":0}]
["Sch VIA","Schedule of Funds Held",null,"(K) Other Assets - Fair Value 164",{"$f":"'Schedule VIA'!F1959","v":0},null,null,null,null,null,null,null,{"$f":"'Schedule VIA (EBS)'!F1959","v":0}]
["Sch VIA","Schedule of Funds Held",null,"(K) Other Assets - Fair Value 183",{"$f":"'Schedule VIA'!F1978","v":0},null,null,null,null,null,null,null,{"$f":"'Schedule VIA (EBS)'!F1978","v":0}]
["Sch VIA","Schedule of Funds Held",null,"(K) Other Assets - Fair Value 197",{"$f":"'Schedule VIA'!F1992","v":0},null,null,null,null,null,null,null,{"$f":"'Schedule VIA (EBS)'!F1992","v":0}]
["Sch VIA","Schedule of Funds Held",null,"(K) Other Assets - Comments 39",{"$f":"'Schedule VIA'!G1834","v":0},null,null,null,null,null,null,null,{"$f":"'Schedule VIA (EBS)'!G1834","v":0}]
["Sch VIA","Schedule of Funds Held",null,"(K) Other Assets - Comments 56",{"$f":"'Schedule VIA'!G1851","v":0},null,null,null,null,null,null,null,{"$f":"'Schedule VIA (EBS)'!G1851","v":0}]
["Sch VIA","Schedule of Funds Held",null,"(K) Other Assets - Comments 74",{"$f":"'Schedule VIA'!G1869","v":0},null,null,null,null,null,null,null,{"$f":"'Schedule VIA (EBS)'!G1869","v":0}]
["Sch VIA","Schedule of Funds Held",null,"(K) Other Assets - Comments 93",{"$f":"'Schedule VIA'!G1888","v":0},null,null,null,null,null,null,null,{"$f":"'Schedule VIA (EBS)'!G1888","v":0}]
["Sch VIA","Schedule of Funds Held",null,"(K) Other Assets - Comments 105",{"$f":"'Schedule VIA'!G1900","v":0},null,null,null,null,null,null,null,{"$f":"'Schedule VIA (EBS)'!G1900","v":0}]
["Sch VIA","Schedule of Funds Held",null,"(K) Other Assets - Comments 130",{"$f":"'Schedule VIA'!G1925","v":0},null,null,null,null,null,null,null,{"$f":"'Schedule VIA (EBS)'!G1925","v":0}]
["Sch VIA","Schedule of Funds Held",null,"(K) Other Assets - Comments 161",{"$f":"'Schedule VIA'!G1956","v":0},null,null,null,null,null,null,null,{"$f":"'Schedule VIA (EBS)'!G1956","v":0}]
["Sch VIA","Schedule of Funds Held",null,"(K) Other Assets - Comments 189",{"$f":"'Schedule VIA'!G1984","v":0},null,null,null,null,null,null,null,{"$f":"'Schedule VIA (EBS)'!G1984","v":0}]
["Sch VIA","Schedule of Funds Held",null,"(K) Other Assets - Comments 196",{"$f":"'Schedule VIA'!G1991","v":0},null,null,null,null,null,null,null,{"$f":"'Schedule VIA (EBS)'!G1991","v":0}]
["Sch VIA","Schedule of Funds Held",null,"Fin. Inst. - Moody's Rating 1",{"$f":"'Schedule VIA'!D2038","v":0},null,null,null,null,null,null,null,{"$f":"'Schedule VIA (EBS)'!D2038","v":0}]
["Sch VIA","Schedule of Funds Held",null,"Corp. Insurers - Moody's Rating 6",{"$f":"'Schedule VIA'!D2059","v":0},null,null,null,null,null,null,null,{"$f":"'Schedule VIA (EBS)'!D2059","v":0}]
["Sch VIA","Schedule of Funds Held",null,"Fin. Inst. - S&P Rating 6",{"$f":"'Schedule VIA'!E2043","v":0},null,null,null,null,null,null,null,{"$f":"'Schedule VIA (EBS)'!E2043","v":0}]
["Sch VIA","Schedule of Funds Held",null,"Gov. Securities - S&P Rating 3",{"$f":"'Schedule VIA'!E2073","v":0},null,null,null,null,null,null,null,{"$f":"'Schedule VIA (EBS)'!E2073","v":0}]
["Sch VIA","Schedule of Funds Held",null,"Gov. Securities - S&P Rating 8",{"$f":"'Schedule VIA'!E2078","v":0},null,null,null,null,null,null,null,{"$f":"'Schedule VIA (EBS)'!E2078","v":0}]
["Sch VIA","Schedule of Funds Held",null,"ABS - DBRS Rating 8",{"$f":"'Schedule VIA'!F2069","v":0},null,null,null,null,null,null,null,{"$f":"'Schedule VIA (EBS)'!F2069","v":0}]
["Sch VIA","Schedule of Funds Held",null,"Ins. Companies - Kroll Rating 7",{"$f":"'Schedule VIA'!G2052","v":0},null,null,null,null,null,null,null,{"$f":"'Schedule VIA (EBS)'!G2052","v":0}]
["Sch VIA","Schedule of Funds Held",null,"ABS - Kroll Rating 4",{"$f":"'Schedule VIA'!G2065","v":0},null,null,null,null,null,null,null,{"$f":"'Schedule VIA (EBS)'!G2065","v":0}]
["Sch VIA","Schedule of Funds Held",null,"Fin. Inst. - Egan Jones Rating 5",{"$f":"'Schedule VIA'!H2042","v":0},null,null,null,null,null,null,null,{"$f":"'Schedule VIA (EBS)'!H2042","v":0}]
["Sch VIA","Schedule of Funds Held",null,"Corp. Insurers - Egan Jones Rating 8",{"$f":"'Schedule VIA'!H2061","v":0},null,null,null,null,null,null,null,{"$f":"'Schedule VIA (EBS)'!H2061","v":0}]
["Sch VIA","Schedule of Funds Held",null,"Corp. Insurers - Japan Credit Rating 4",{"$f":"'Schedule VIA'!I2057","v":0},null,null,null,null,null,null,null,{"$f":"'Schedule VIA (EBS)'!I2057","v":0}]
["Sch VIA","Schedule of Funds Held",null,"Gov. Securities - Japan Credit Rating 5",{"$f":"'Schedule VIA'!I2075","v":0},null,null,null,null,null,null,null,{"$f":"'Schedule VIA (EBS)'!I2075","v":0}]
["Sch VIA","Schedule of Funds Held",null,"Ins. Companies - BMA Approved Int. Rating 6",{"$f":"'Schedule VIA'!J2051","v":0},null,null,null,null,null,null,null,{"$f":"'Schedule VIA (EBS)'!J2051","v":0}]
["Sch VIA","Schedule of Funds Held",null,"Gov. Securities - BMA Approved Int. Rating 1",{"$f":"'Schedule VIA'!J2071","v":0},null,null,null,null,null,null,null,{"$f":"'Schedule VIA (EBS)'!J2071","v":0}]
["Sch VIA","Schedule of Funds Held",null,"Fin. Inst. - BMA Approved Agency 1 -  Rating 8",{"$f":"'Schedule VIA'!K2045","v":0},null,null,null,null,null,null,null,{"$f":"'Schedule VIA (EBS)'!K2045","v":0}]
["Sch VIA","Schedule of Funds Held",null,"ABS - BMA Approved Agency 1 -  Rating 6",{"$f":"'Schedule VIA'!K2067","v":0},null,null,null,null,null,null,null,{"$f":"'Schedule VIA (EBS)'!K2067","v":0}]
["Sch VIA","Schedule of Funds Held",null,"Corp. Insurers - BMA Approved Agency 2 -  Rating 3",{"$f":"'Schedule VIA'!L2056","v":0},null,null,null,null,null,null,null,{"$f":"'Schedule VIA (EBS)'!L2056","v":0}]
["Sch VIA","Schedule of Funds Held",null,"Fin. Inst. - BMA Approved Agency 3 -  Rating 7",{"$f":"'Schedule VIA'!M2044","v":0},null,null,null,null,null,null,null,{"$f":"'Schedule VIA (EBS)'!M2044","v":0}]
["Sch VIA","Schedule of Funds Held",null,"Ins. Companies - BMA Approved Agency 3 -  Rating 5",{"$f":"'Schedule VIA'!M2050","v":0},null,null,null,null,null,null,null,{"$f":"'Schedule VIA (EBS)'!M2050","v":0}]
["Sch VIA","Schedule of Funds Held",null,"Corp. Insurers - Unrated 8",{"$f":"'Schedule VIA'!D2096","v":0},null,null,null,null,null,null,null,{"$f":"'Schedule VIA (EBS)'!D2096","v":0}]
["Sch IX(a)","CISSA Capital Summary",null,"2. Agg. Risk Categories - Correlation Matrix",{"$f":"IF('Schedule IX(a)'!B50=0,\"No\",'Schedule IX(a)'!B50)","v":"Select Yes/No"}]
["Sch IX(a)","CISSA Capital Summary",null,"3. Contingency Plan - Parental Guarantees",{"$f":"IF('Schedule IX(a)'!B60=0,\"No\",'Schedule IX(a)'!B60)","v":"Select Yes/No"}]
["Sch IX(b)","CISSA General Questions",null,"1. CISSA Used For - Alloc. Bus. Seg. & LOB",{"$f":"IF('Schedule IX(b)'!F16=0,\"No\",'Schedule IX(b)'!F16)","v":"Select Yes/No"}]
["Sch IX(c)","CISSA Assessment of Material Risks",null,"12c. Gov. Comment - BOD review frequency",{"$f":"'Schedule IX(c)'!F69","v":0}]
["Sch X(a)","CAT Return - EP Curve Total",null,"Gross Loss - Aggregate - 1,000 Yrs",null,null,null,null,{"$f":"'Schedule X(a)'!F13","v":0}]
["Sch X(a)","CAT Return - EP Curve Total",null,"Gross - All Other Limited - Modeled",null,null,null,null,{"$f":"'Schedule X(a)'!E25","v":0}]
["Sch X(a)","CAT Return - EP Curve Total",null,"2. Additional Living Expense",null,null,null,null,{"$f":"IF('Schedule X(a)'!E34=0,\"No\",'Schedule X(a)'!E34)","v":"Select Yes/No"}]
["Sch X(a)","CAT Return - EP Curve Total",null,"4. Involuntary Pools and/or Assessments",null,null,null,null,{"$f":"IF('Schedule X(a)'!E57=0,\"No\",'Schedule X(a)'!E57)","v":"Select"}]
["Sch X(a)","CAT Return - EP Curve Total",null,"6. Vendor Catastrophe Model",null,null,null,null,{"$f":"'Schedule X(a)'!G80","v":"Select Cat Model(s)"}]
["Sch X(b)","CAT Return - EP Curve Insurance",null,"Net - Property Cat. Premium Modeled",null,null,null,null,{"$f":"'Schedule X(b)'!J22","v":0}]
["Sch X(c)","CAT Return - EP Curve Region Perils",null,"Atl. Hurr. - Net Occurrence - 250 Yrs",null,null,null,null,{"$f":"'Schedule X(c)'!F18","v":0}]
["Sch X(c)","CAT Return - EP Curve Region Perils",null,"Atl. Hurr. - Net Prop. Cat. Premium",null,null,null,null,{"$f":"'Schedule X(c)'!F24","v":0}]
["Sch X(c)","CAT Return - EP Curve Region Perils",null,"NA. EQ. - Net Aggregate - 1,000 Yrs",null,null,null,null,{"$f":"'Schedule X(c)'!G42","v":0}]
["Sch X(c)","CAT Return - EP Curve Region Perils",null,"European Windstorm - Cat. Model Version",null,null,null,null,{"$f":"'Schedule X(c)'!F54","v":0}]
["Sch X(c)","CAT Return - EP Curve Region Perils",null,"Eur. Wind - Gross Prop. Cat. Limits",null,null,null,null,{"$f":"'Schedule X(c)'!E70","v":0}]
["Sch X(c)","CAT Return - EP Curve Region Perils",null,"Japan EQ. - Net All Other Premium",null,null,null,null,{"$f":"'Schedule X(c)'!F91","v":0}]
["Sch X(c)","CAT Return - EP Curve Region Perils",null,"Jpn. Typ. - Gross All Other Premium",null,null,null,null,{"$f":"'Schedule X(c)'!E113","v":0}]
["Sch X(c)","CAT Return - EP Curve Region Perils",null,"Jpn. Typ. - Net Prop. Cat. Limits",null,null,null,null,{"$f":"'Schedule X(c)'!F114","v":0}]
["Sch X(d)","CAT Return - Region Perils Exposure to Zones and Lines of Business",null,"European Windstorm - Zone 4",null,null,null,null,{"$f":"'Schedule X(d)'!E12","v":"Select Yes/No"}]
["Sch X(d)","CAT Return - Region Perils Exposure to Zones and Lines of Business",null,"Japan Typhoon - Zone 2",null,null,null,null,{"$f":"'Schedule X(d)'!G10","v":"Select Yes/No"}]
["Sch X(d)","CAT Return - Region Perils Exposure to Zones and Lines of Business",null,"All Other - Zone 2",null,null,null,null,{"$f":"'Schedule X(d)'!H10","v":"Select Yes/No"}]
["Sch X(d)","CAT Return - Region Perils Exposure to Zones and Lines of Business",null,"Atlantic Hurricane - Line 11",null,null,null,null,{"$f":"'Schedule X(d)'!C35","v":"Select Yes/No"}]
["Sch X(d)","CAT Return - Region Perils Exposure to Zones and Lines of Business",null,"North American Earthquake - Line 20",null,null,null,null,{"$f":"'Schedule X(d)'!D44","v":"Select Yes/No"}]
["Sch X(d)","CAT Return - Region Perils Exposure to Zones and Lines of Business",null,"European Windstorm - Line 19",null,null,null,null,{"$f":"'Schedule X(d)'!E43","v":"Select Yes/No"}]
["Sch X(d)","CAT Return - Region Perils Exposure to Zones and Lines of Business",null,"Japan Earthquake - Line 9",null,null,null,null,{"$f":"'Schedule X(d)'!F33","v":"Select Yes/No"}]
["Sch X(d)","CAT Return - Region Perils Exposure to Zones and Lines of Business",null,"Japan Typhoon - Line 2",null,null,null,null,{"$f":"'Schedule X(d)'!G26","v":"Select Yes/No"}]
["Sch X(d)","CAT Return - Region Perils Exposure to Zones and Lines of Business",null,"Japan Typhoon - Line 22",null,null,null,null,{"$f":"'Schedule X(d)'!G46","v":"Select Yes/No"}]
["Sch X(e)","CAT Return - Accumulations Overview",null,"Q7. Pricing & Accum. Consistent",null,null,null,null,{"$f":"'Schedule X(e)'!C29","v":"Select"}]
["Sch X(e)","CAT Return - Accumulations Overview",null,"Q8. % of Premium W/O Occur. Limit",null,null,null,null,{"$f":"'Schedule X(e)'!C32","v":"Select"}]
["Sch X(f)","CAT Return - Data Analysis",null,"2. Modelable - Total - Other -Contract",null,null,null,null,{"$f":"'Schedule X(f)'!H21","v":0}]
["Sch X(f)","CAT Return - Data Analysis",null,"3. Modeled - Peer Proxy - US - Net Limit",null,null,null,null,{"$f":"'Schedule X(f)'!G30","v":0}]
["Sch X(f)","CAT Return - Data Analysis",null,"3. Modeled - Other - Other - Gross Limit",null,null,null,null,{"$f":"'Schedule X(f)'!I32","v":0}]
["Sch X(f)","CAT Return - Data Analysis",null,"4. Not Modeled - Other - Other - Contract",null,null,null,null,{"$f":"'Schedule X(f)'!H45","v":0}]
["Sch X(f)","CAT Return - Data Analysis",null,"6. Unable Model - No Cat. Model - Other - Gross Limit",null,null,null,null,{"$f":"'Schedule X(f)'!I61","v":0}]
["Sch X(f)","CAT Return - Data Analysis",null,"6. Unable Model - Data Deficient - Other - Net Limit",null,null,null,null,{"$f":"'Schedule X(f)'!J60","v":0}]
["Sch X(g)","CAT Return - Reinsurance Disclosures",null,"World - Premium - Total",null,null,null,null,{"$f":"'Schedule X(g)'!F19","v":0}]
["Sch X(g)","CAT Return - Reinsurance Disclosures",null,"World - Occuren. - Quota Share Contracts",null,null,null,null,{"$f":"'Schedule X(g)'!G17","v":0}]
["Sch X(h)","CAT Return - Insurance Terrorism Exposure",null,"Insurance - Convent. Terrorism - State 5",null,null,null,null,{"$f":"IF('Schedule X(h)'!D13=\"\",\"\",'Schedule X(h)'!D13)","v":0}]
["Sch X(h)","CAT Return - Insurance Terrorism Exposure",null,"Insurance - Convent. Terrorism - Property Exposure 8",null,null,null,null,{"$f":"'Schedule X(h)'!F16","v":0}]
["Sch X(h)","CAT Return - Insurance Terrorism Exposure",null,"Insurance - Convent. Terrorism - TRIP Recover. 2",null,null,null,null,{"$f":"'Schedule X(h)'!H10","v":0}]
["Sch X(h)","CAT Return - Insurance Terrorism Exposure",null,"Insurance - Convent. Terrorism - Net Exposure 3",null,null,null,null,{"$f":"'Schedule X(h)'!J11","v":0}]
["Sch X(h)","CAT Return - Insurance Terrorism Exposure",null,"Insurance - NBCR Terrorism - Property Exposure 1",null,null,null,null,{"$f":"'Schedule X(h)'!F24","v":0}]
["Sch X(h)","CAT Return - Insurance Terrorism Exposure",null,"Insurance - NBCR Terrorism - Gross Exposure 9",null,null,null,null,{"$f":"'Schedule X(h)'!G32","v":0}]
["Sch X(h)","CAT Return - Insurance Terrorism Exposure",null,"Insurance - NBCR Terrorism - R/I Recover. 4",null,null,null,null,{"$f":"'Schedule X(h)'!I27","v":0}]
["Sch X(i)","CAT Return - Reinsurance Terrorism Exposure",null,"Reins. - Convent. Terrorism - State 3",null,null,null,null,{"$f":"IF('Schedule X(i)'!E11=\"\",\"\",'Schedule X(i)'!E11)","v":0}]
["Sch X(i)","CAT Return - Reinsurance Terrorism Exposure",null,"Reins. - Convent. Terrorism - Country 10",null,null,null,null,{"$f":"IF('Schedule X(i)'!F18=\"\",\"\",'Schedule X(i)'!F18)","v":0}]
["Sch X(i)","CAT Return - Reinsurance Terrorism Exposure",null,"Reins. - Convent. Terrorism - R/I Recover. 5",null,null,null,null,{"$f":"'Schedule X(i)'!J13","v":0}]
["Sch X(i)","CAT Return - Reinsurance Terrorism Exposure",null,"Reins. - NBCR Terrorism - State 9",null,null,null,null,{"$f":"IF('Schedule X(i)'!E32=\"\",\"\",'Schedule X(i)'!E32)","v":0}]
["Sch X(i)","CAT Return - Reinsurance Terrorism Exposure",null,"Reins. - NBCR Terrorism - Country 10",null,null,null,null,{"$f":"IF('Schedule X(i)'!F33=\"\",\"\",'Schedule X(i)'!F33)","v":0}]
["Sch X(i)","CAT Return - Reinsurance Terrorism Exposure",null,"Reins. - NBCR Terrorism - TRIP Recover. 6",null,null,null,null,{"$f":"'Schedule X(i)'!I29","v":0}]
["Sch X(i)","CAT Return - Reinsurance Terrorism Exposure",null,"Reins. - NBCR Terrorism - R/I Recover. 5",null,null,null,null,{"$f":"'Schedule X(i)'!J28","v":0}]
["Sch X(j)","CAT Return - Assumed Exchange Rates",null,"Currency - USD:Other 3",null,null,null,null,{"$f":"'Schedule X(j)'!C15","v":"USD:"}]
["Sch XI(a)(i)","Loss Triangles - Property Castarophe",null,{"$f":"\"Prop Cat - Incurred - Line 3 - \"&$E$2-5&\" - \"&$E$2-8","v":"Prop Cat - Incurred - Line 3 - 2018 - 2015"},null,null,null,null,{"$f":"+'Sch XI(a)(i)'!G13","v":0}]
["Sch XI(a)(i)","Loss Triangles - Property Castarophe",null,{"$f":"\"Prop Cat - Incurred - Line 9 - \"&$E$2-2&\" - \"&$E$2-2","v":"Prop Cat - Incurred - Line 9 - 2021 - 2021"},null,null,null,null,{"$f":"+'Sch XI(a)(i)'!J19","v":0}]
["Sch XI(a)(i)","Loss Triangles - Property Castarophe",null,{"$f":"\"Prop Cat - Incurred - Line 8 - \"&$E$2-1&\" - \"&$E$2-3","v":"Prop Cat - Incurred - Line 8 - 2022 - 2020"},null,null,null,null,{"$f":"+'Sch XI(a)(i)'!K18","v":0}]
["Sch XI(a)(i)","Loss Triangles - Property Castarophe",null,{"$f":"\"Prop Cat - Paid - Line 15 - \"&$E$2-8&\" - \"&$E$2-8","v":"Prop Cat - Paid - Line 15 - 2015 - 2015"},null,null,null,null,{"$f":"+'Sch XI(a)(i)'!D31","v":0}]
["Sch XI(a)(i)","Loss Triangles - Property Castarophe",null,{"$f":"\"Prop Cat - Paid - Line 13 - \"&$E$2-3&\" - Prior\"","v":"Prop Cat - Paid - Line 13 - 2020 - Prior"},null,null,null,null,{"$f":"+'Sch XI(a)(i)'!I29","v":0}]
["Sch XI(a)(i)","Loss Triangles - Property Castarophe",null,{"$f":"\"Prop Cat - Paid - Line 19 - \"&$E$2-2&\" - \"&$E$2-4","v":"Prop Cat - Paid - Line 19 - 2021 - 2019"},null,null,null,null,{"$f":"+'Sch XI(a)(i)'!J35","v":0}]
["Sch XI(a)(i)","Loss Triangles - Property Castarophe",null,{"$f":"\"Prop Cat - Paid - Line 21 - \"&$E$2&\" - \"&$E$2-2","v":"Prop Cat - Paid - Line 21 - 2023 - 2021"},null,null,null,null,{"$f":"+'Sch XI(a)(i)'!L37","v":0}]
["Sch XI(a)(i)","Loss Triangles - Property Castarophe",null,{"$f":"\"Prop Cat - Reserve - Line 25 - \"&$E$2-4&\" - Prior\"","v":"Prop Cat - Reserve - Line 25 - 2019 - Prior"},null,null,null,null,{"$f":"+'Sch XI(a)(i)'!H47","v":0}]
["Sch XI(a)(i)","Loss Triangles - Property Castarophe",null,{"$f":"\"Prop Cat - Reserve - Line 31 - \"&$E$2-2&\" - \"&$E$2-4","v":"Prop Cat - Reserve - Line 31 - 2021 - 2019"},null,null,null,null,{"$f":"+'Sch XI(a)(i)'!J53","v":0}]
["Sch XI(a)(i)","Loss Triangles - Property Castarophe",null,{"$f":"\"Prop Cat - Reserve - Line 29 - \"&$E$2&\" - \"&$E$2-6","v":"Prop Cat - Reserve - Line 29 - 2023 - 2017"},null,null,null,null,{"$f":"+'Sch XI(a)(i)'!L51","v":0}]
["Sch XI(a)(i)","Loss Triangles - Property Castarophe",null,{"$f":"\"Prop Cat - GPW - Line 39 - \"&$E$2-8","v":"Prop Cat - GPW - Line 39 - 2015"},null,null,null,null,{"$f":"+'Sch XI(a)(i)'!C69","v":0}]
["Sch XI(a)(i)","Loss Triangles - Property Castarophe",null,{"$f":"\"Prop Cat - Gross Premiums Earned - Line 43 - \"&$E$2-4","v":"Prop Cat - Gross Premiums Earned - Line 43 - 2019"},null,null,null,null,{"$f":"+'Sch XI(a)(i)'!D73","v":0}]
["Sch XI(a)(i)","Loss Triangles - Property Castarophe",null,{"$f":"\"Prop Cat - Net Premiums Earned - Line 39 - \"&$E$2-8","v":"Prop Cat - Net Premiums Earned - Line 39 - 2015"},null,null,null,null,{"$f":"+'Sch XI(a)(i)'!F69","v":0}]
["Sch XI(a)(i)","Loss Triangles - Property Castarophe",null,{"$f":"\"Prop Cat - Brokerage - Line 44 - \"&$E$2-3","v":"Prop Cat - Brokerage - Line 44 - 2020"},null,null,null,null,{"$f":"+'Sch XI(a)(i)'!J74","v":0}]
["Sch XI(a)(i)","Loss Triangles - Property Castarophe",null,{"$f":"\"Prop Cat - Personnel Costs - Line 43 - \"&$E$2-4","v":"Prop Cat - Personnel Costs - Line 43 - 2019"},null,null,null,null,{"$f":"+'Sch XI(a)(i)'!L73","v":0}]
["Sch XI(a)(i)","Loss Triangles - Property Castarophe",null,{"$f":"\"Prop Cat - Other Exp. - Line 46 - \"&$E$2-1","v":"Prop Cat - Other Exp. - Line 46 - 2022"},null,null,null,null,{"$f":"+'Sch XI(a)(i)'!M76","v":0}]
["Sch XI(a)(ii)","Loss Triangles - Property",null,{"$f":"\"Property - Incurred - Line 1 - \"&$E$2-4&\" - Prior\"","v":"Property - Incurred - Line 1 - 2019 - Prior"},null,null,null,null,{"$f":"+'Sch XI(a)(ii)'!H11","v":0}]
["Sch XI(a)(ii)","Loss Triangles - Property",null,{"$f":"\"Property - Incurred - Line 2 - \"&$E$2-3&\" - \"&$E$2-9","v":"Property - Incurred - Line 2 - 2020 - 2014"},null,null,null,null,{"$f":"+'Sch XI(a)(ii)'!I12","v":0}]
["Sch XI(a)(ii)","Loss Triangles - Property",null,{"$f":"\"Property - Incurred - Line 4 - \"&$E$2&\" - \"&$E$2-7","v":"Property - Incurred - Line 4 - 2023 - 2016"},null,null,null,null,{"$f":"+'Sch XI(a)(ii)'!L14","v":0}]
["Sch XI(a)(ii)","Loss Triangles - Property",null,{"$f":"\"Property - Paid - Line 16 - \"&$E$2-7&\" - \"&$E$2-7","v":"Property - Paid - Line 16 - 2016 - 2016"},null,null,null,null,{"$f":"+'Sch XI(a)(ii)'!E32","v":0}]
["Sch XI(a)(ii)","Loss Triangles - Property",null,{"$f":"\"Property - Paid - Line 14 - \"&$E$2-2&\" - \"&$E$2-9","v":"Property - Paid - Line 14 - 2021 - 2014"},null,null,null,null,{"$f":"+'Sch XI(a)(ii)'!J30","v":0}]
["Sch XI(a)(ii)","Loss Triangles - Property",null,{"$f":"\"Property - Paid - Line 21 - \"&$E$2-2&\" - \"&$E$2-2","v":"Property - Paid - Line 21 - 2021 - 2021"},null,null,null,null,{"$f":"+'Sch XI(a)(ii)'!J37","v":0}]
["Sch XI(a)(ii)","Loss Triangles - Property",null,{"$f":"\"Property - Paid - Line 21 - Cat Loss. - \"&$E$2-2","v":"Property - Paid - Line 21 - Cat Loss. - 2021"},null,null,null,null,{"$f":"+'Sch XI(a)(ii)'!M37","v":0}]
["Sch XI(a)(ii)","Loss Triangles - Property",null,{"$f":"\"Property - Reserve - Line 28 - \"&$E$2-4&\" - \"&$E$2-7","v":"Property - Reserve - Line 28 - 2019 - 2016"},null,null,null,null,{"$f":"+'Sch XI(a)(ii)'!H50","v":0}]
["Sch XI(a)(ii)","Loss Triangles - Property",null,{"$f":"\"Property - Reserve - Line 32 - \"&$E$2-3&\" - \"&$E$2-3","v":"Property - Reserve - Line 32 - 2020 - 2020"},null,null,null,null,{"$f":"+'Sch XI(a)(ii)'!I54","v":0}]
["Sch XI(a)(ii)","Loss Triangles - Property",null,{"$f":"\"Property - Reserve - Line 25 - \"&$E$2&\" - Prior\"","v":"Property - Reserve - Line 25 - 2023 - Prior"},null,null,null,null,{"$f":"+'Sch XI(a)(ii)'!L47","v":0}]
["Sch XI(a)(ii)","Loss Triangles - Property",null,{"$f":"\"Property - Reserve - Line 31 - Cat Loss. - \"&$E$2-4","v":"Property - Reserve - Line 31 - Cat Loss. - 2019"},null,null,null,null,{"$f":"+'Sch XI(a)(ii)'!M53","v":0}]
["Sch XI(a)(ii)","Loss Triangles - Property",null,{"$f":"\"Property - Net Premiums Earned - Line 38 - \"&$E$2-9","v":"Property - Net Premiums Earned - Line 38 - 2014"},null,null,null,null,{"$f":"+'Sch XI(a)(ii)'!F68","v":0}]
["Sch XI(a)(ii)","Loss Triangles - Property",null,{"$f":"\"Property - Expenses Paid - Line 43 - \"&$E$2-4","v":"Property - Expenses Paid - Line 43 - 2019"},null,null,null,null,{"$f":"+'Sch XI(a)(ii)'!G73","v":0}]
["Sch XI(a)(ii)","Loss Triangles - Property",null,{"$f":"\"Property - Brokerage - Line 40 - \"&$E$2-7","v":"Property - Brokerage - Line 40 - 2016"},null,null,null,null,{"$f":"+'Sch XI(a)(ii)'!J70","v":0}]
["Sch XI(a)(ii)","Loss Triangles - Property",null,{"$f":"\"Property - G&A - Line 47 - \"&$E$2","v":"Property - G&A - Line 47 - 2023"},null,null,null,null,{"$f":"+'Sch XI(a)(ii)'!K77","v":0}]
["Sch XI(a)(ii)","Loss Triangles - Property",null,{"$f":"\"Property - Other Exp. - Line 42 - \"&$E$2-5","v":"Property - Other Exp. - Line 42 - 2018"},null,null,null,null,{"$f":"+'Sch XI(a)(ii)'!M72","v":0}]
["Sch XI(a)(iii)","Loss Triangles - Property Non-Proportional",null,{"$f":"\"Prop. Non-Prop.- Incurred - Line 5 - \"&$E$2-6&\" - \"&$E$2-6","v":"Prop. Non-Prop.- Incurred - Line 5 - 2017 - 2017"},null,null,null,null,{"$f":"+'Sch XI(a)(iii)'!F15","v":0}]
["Sch XI(a)(iii)","Loss Triangles - Property Non-Proportional",null,{"$f":"\"Prop. Non-Prop.- Incurred - Line 2 - \"&$E$2-1&\" - \"&$E$2-9","v":"Prop. Non-Prop.- Incurred - Line 2 - 2022 - 2014"},null,null,null,null,{"$f":"+'Sch XI(a)(iii)'!K12","v":0}]
["Sch XI(a)(iii)","Loss Triangles - Property Non-Proportional",null,{"$f":"\"Prop. Non-Prop.- Incurred - Line 8 - Cat Loss. - \"&$E$2-3","v":"Prop. Non-Prop.- Incurred - Line 8 - Cat Loss. - 2020"},null,null,null,null,{"$f":"+'Sch XI(a)(iii)'!M18","v":0}]
["Sch XI(a)(iii)","Loss Triangles - Property Non-Proportional",null,{"$f":"\"Prop. Non-Prop.- Paid - Line 17 - \"&$E$2-6&\" - \"&$E$2-6","v":"Prop. Non-Prop.- Paid - Line 17 - 2017 - 2017"},null,null,null,null,{"$f":"+'Sch XI(a)(iii)'!F33","v":0}]
["Sch XI(a)(iii)","Loss Triangles - Property Non-Proportional",null,{"$f":"\"Prop. Non-Prop.- Paid - Line 17 - \"&$E$2-4&\" - \"&$E$2-6","v":"Prop. Non-Prop.- Paid - Line 17 - 2019 - 2017"},null,null,null,null,{"$f":"+'Sch XI(a)(iii)'!H33","v":0}]
["Sch XI(a)(iii)","Loss Triangles - Property Non-Proportional",null,{"$f":"\"Prop. Non-Prop.- Paid - Line 19 - \"&$E$2-1&\" - \"&$E$2-4","v":"Prop. Non-Prop.- Paid - Line 19 - 2022 - 2019"},null,null,null,null,{"$f":"+'Sch XI(a)(iii)'!K35","v":0}]
["Sch XI(a)(iii)","Loss Triangles - Property Non-Proportional",null,{"$f":"\"Prop. Non-Prop.- Reserve - Line 25 - \"&$E$2-9&\" - Prior\"","v":"Prop. Non-Prop.- Reserve - Line 25 - 2014 - Prior"},null,null,null,null,{"$f":"+'Sch XI(a)(iii)'!C47","v":0}]
["Sch XI(a)(iii)","Loss Triangles - Property Non-Proportional",null,{"$f":"\"Prop. Non-Prop.- Reserve - Line 27 - \"&$E$2-6&\" - \"&$E$2-8","v":"Prop. Non-Prop.- Reserve - Line 27 - 2017 - 2015"},null,null,null,null,{"$f":"+'Sch XI(a)(iii)'!F49","v":0}]
["Sch XI(a)(iii)","Loss Triangles - Property Non-Proportional",null,{"$f":"\"Prop. Non-Prop.- Reserve - Line 25 - \"&$E$2-2&\" - Prior\"","v":"Prop. Non-Prop.- Reserve - Line 25 - 2021 - Prior"},null,null,null,null,{"$f":"+'Sch XI(a)(iii)'!J47","v":0}]
["Sch XI(a)(iii)","Loss Triangles - Property Non-Proportional",null,{"$f":"\"Prop. Non-Prop.- Reserve - Line 26 - Cat Loss. - \"&$E$2-9","v":"Prop. Non-Prop.- Reserve - Line 26 - Cat Loss. - 2014"},null,null,null,null,{"$f":"+'Sch XI(a)(iii)'!M48","v":0}]
["Sch XI(a)(iii)","Loss Triangles - Property Non-Proportional",null,{"$f":"\"Prop. Non-Prop.- Gross Premiums Earned - Line 41 - \"&$E$2-6","v":"Prop. Non-Prop.- Gross Premiums Earned - Line 41 - 2017"},null,null,null,null,{"$f":"+'Sch XI(a)(iii)'!D71","v":0}]
["Sch XI(a)(iii)","Loss Triangles - Property Non-Proportional",null,{"$f":"\"Prop. Non-Prop.- NPW - Line 42 - \"&$E$2-5","v":"Prop. Non-Prop.- NPW - Line 42 - 2018"},null,null,null,null,{"$f":"+'Sch XI(a)(iii)'!E72","v":0}]
["Sch XI(a)(iii)","Loss Triangles - Property Non-Proportional",null,{"$f":"\"Prop. Non-Prop.- Expenses Paid - Line 43 - \"&$E$2-4","v":"Prop. Non-Prop.- Expenses Paid - Line 43 - 2019"},null,null,null,null,{"$f":"+'Sch XI(a)(iii)'!G73","v":0}]
["Sch XI(a)(iii)","Loss Triangles - Property Non-Proportional",null,{"$f":"\"Prop. Non-Prop.- Expenses Incurred - Line 46 - \"&$E$2-1","v":"Prop. Non-Prop.- Expenses Incurred - Line 46 - 2022"},null,null,null,null,{"$f":"+'Sch XI(a)(iii)'!H76","v":0}]
["Sch XI(a)(iii)","Loss Triangles - Property Non-Proportional",null,{"$f":"\"Prop. Non-Prop.- Other Exp. - Line 40 - \"&$E$2-7","v":"Prop. Non-Prop.- Other Exp. - Line 40 - 2016"},null,null,null,null,{"$f":"+'Sch XI(a)(iii)'!M70","v":0}]
["Sch XI(a)(iv)","Loss Triangles - Casualty",null,{"$f":"\"Casualty - Incurred - Line 4 - \"&$E$2-6&\" - \"&$E$2-7","v":"Casualty - Incurred - Line 4 - 2017 - 2016"},null,null,null,null,{"$f":"+'Sch XI(a)(iv)'!F14","v":0}]
["Sch XI(a)(iv)","Loss Triangles - Casualty",null,{"$f":"\"Casualty - Incurred - Line 7 - \"&$E$2-4&\" - \"&$E$2-4","v":"Casualty - Incurred - Line 7 - 2019 - 2019"},null,null,null,null,{"$f":"+'Sch XI(a)(iv)'!H17","v":0}]
["Sch XI(a)(iv)","Loss Triangles - Casualty",null,{"$f":"\"Casualty - Incurred - Line 2 - \"&$E$2-1&\" - \"&$E$2-9","v":"Casualty - Incurred - Line 2 - 2022 - 2014"},null,null,null,null,{"$f":"+'Sch XI(a)(iv)'!K12","v":0}]
["Sch XI(a)(iv)","Loss Triangles - Casualty",null,{"$f":"\"Casualty - Incurred - Line 8 - \"&$E$2&\" - \"&$E$2-3","v":"Casualty - Incurred - Line 8 - 2023 - 2020"},null,null,null,null,{"$f":"+'Sch XI(a)(iv)'!L18","v":0}]
["Sch XI(a)(iv)","Loss Triangles - Casualty",null,{"$f":"\"Casualty - Paid - Line 14 - \"&$E$2-7&\" - \"&$E$2-9","v":"Casualty - Paid - Line 14 - 2016 - 2014"},null,null,null,null,{"$f":"+'Sch XI(a)(iv)'!E30","v":0}]
["Sch XI(a)(iv)","Loss Triangles - Casualty",null,{"$f":"\"Casualty - Paid - Line 19 - \"&$E$2-2&\" - \"&$E$2-4","v":"Casualty - Paid - Line 19 - 2021 - 2019"},null,null,null,null,{"$f":"+'Sch XI(a)(iv)'!J35","v":0}]
["Sch XI(a)(iv)","Loss Triangles - Casualty",null,{"$f":"\"Casualty - Paid - Line 13 - Cat Loss - Prior\"","v":"Casualty - Paid - Line 13 - Cat Loss - Prior"},null,null,null,null,{"$f":"+'Sch XI(a)(iv)'!M29","v":0}]
["Sch XI(a)(iv)","Loss Triangles - Casualty",null,{"$f":"\"Casualty - Paid - Line 20 - Cat Loss. - \"&$E$2-3","v":"Casualty - Paid - Line 20 - Cat Loss. - 2020"},null,null,null,null,{"$f":"+'Sch XI(a)(iv)'!M36","v":0}]
["Sch XI(a)(iv)","Loss Triangles - Casualty",null,{"$f":"\"Casualty - Reserve - Line 31 - \"&$E$2-4&\" - \"&$E$2-4","v":"Casualty - Reserve - Line 31 - 2019 - 2019"},null,null,null,null,{"$f":"+'Sch XI(a)(iv)'!H53","v":0}]
["Sch XI(a)(iv)","Loss Triangles - Casualty",null,{"$f":"\"Casualty - Reserve - Line 33 - \"&$E$2-1&\" - \"&$E$2-2","v":"Casualty - Reserve - Line 33 - 2022 - 2021"},null,null,null,null,{"$f":"+'Sch XI(a)(iv)'!K55","v":0}]
["Sch XI(a)(iv)","Loss Triangles - Casualty",null,{"$f":"\"Casualty - Reserve - Line 34 - \"&$E$2&\" - \"&$E$2-1","v":"Casualty - Reserve - Line 34 - 2023 - 2022"},null,null,null,null,{"$f":"+'Sch XI(a)(iv)'!L56","v":0}]
["Sch XI(a)(iv)","Loss Triangles - Casualty",null,{"$f":"\"Casualty - Gross Premiums Earned - Line 37 - Prior\"","v":"Casualty - Gross Premiums Earned - Line 37 - Prior"},null,null,null,null,{"$f":"+'Sch XI(a)(iv)'!D67","v":"XXX"}]
["Sch XI(a)(iv)","Loss Triangles - Casualty",null,{"$f":"\"Casualty - Net Premiums Earned - Line 46 - \"&$E$2-1","v":"Casualty - Net Premiums Earned - Line 46 - 2022"},null,null,null,null,{"$f":"+'Sch XI(a)(iv)'!F76","v":0}]
["Sch XI(a)(iv)","Loss Triangles - Casualty",null,{"$f":"\"Casualty - Brokerage - Line 38 - \"&$E$2-9","v":"Casualty - Brokerage - Line 38 - 2014"},null,null,null,null,{"$f":"+'Sch XI(a)(iv)'!J68","v":0}]
["Sch XI(a)(iv)","Loss Triangles - Casualty",null,{"$f":"\"Casualty - G&A - Line 39 - \"&$E$2-8","v":"Casualty - G&A - Line 39 - 2015"},null,null,null,null,{"$f":"+'Sch XI(a)(iv)'!K69","v":0}]
["Sch XI(a)(iv)","Loss Triangles - Casualty",null,{"$f":"\"Casualty - Personnel Costs - Line 45 - \"&$E$2-2","v":"Casualty - Personnel Costs - Line 45 - 2021"},null,null,null,null,{"$f":"+'Sch XI(a)(iv)'!L75","v":0}]
["Sch XI(a)(v)","Loss Triangles - Casualty Non-Proportional",null,{"$f":"\"Cas. Non-Prop.- Incurred - Line 3 - \"&$E$2-7&\" - \"&$E$2-8","v":"Cas. Non-Prop.- Incurred - Line 3 - 2016 - 2015"},null,null,null,null,{"$f":"+'Sch XI(a)(v)'!E13","v":0}]
["Sch XI(a)(v)","Loss Triangles - Casualty Non-Proportional",null,{"$f":"\"Cas. Non-Prop.- Incurred - Line 3 - \"&$E$2-4&\" - \"&$E$2-8","v":"Cas. Non-Prop.- Incurred - Line 3 - 2019 - 2015"},null,null,null,null,{"$f":"+'Sch XI(a)(v)'!H13","v":0}]
["Sch XI(a)(v)","Loss Triangles - Casualty Non-Proportional",null,{"$f":"\"Cas. Non-Prop.- Incurred - Line 10 - \"&$E$2&\" - \"&$E$2-1","v":"Cas. Non-Prop.- Incurred - Line 10 - 2023 - 2022"},null,null,null,null,{"$f":"+'Sch XI(a)(v)'!L20","v":0}]
["Sch XI(a)(v)","Loss Triangles - Casualty Non-Proportional",null,{"$f":"\"Cas. Non-Prop.- Paid - Line 13 - \"&$E$2-7&\" - Prior\"","v":"Cas. Non-Prop.- Paid - Line 13 - 2016 - Prior"},null,null,null,null,{"$f":"+'Sch XI(a)(v)'!E29","v":0}]
["Sch XI(a)(v)","Loss Triangles - Casualty Non-Proportional",null,{"$f":"\"Cas. Non-Prop.- Paid - Line 17 - \"&$E$2-5&\" - \"&$E$2-6","v":"Cas. Non-Prop.- Paid - Line 17 - 2018 - 2017"},null,null,null,null,{"$f":"+'Sch XI(a)(v)'!G33","v":0}]
["Sch XI(a)(v)","Loss Triangles - Casualty Non-Proportional",null,{"$f":"\"Cas. Non-Prop.- Paid - Line 20 - \"&$E$2-2&\" - \"&$E$2-3","v":"Cas. Non-Prop.- Paid - Line 20 - 2021 - 2020"},null,null,null,null,{"$f":"+'Sch XI(a)(v)'!J36","v":0}]
["Sch XI(a)(v)","Loss Triangles - Casualty Non-Proportional",null,{"$f":"\"Cas. Non-Prop.- Paid - Line 22 - Cat Loss. - \"&$E$2-1","v":"Cas. Non-Prop.- Paid - Line 22 - Cat Loss. - 2022"},null,null,null,null,{"$f":"+'Sch XI(a)(v)'!M38","v":0}]
["Sch XI(a)(v)","Loss Triangles - Casualty Non-Proportional",null,{"$f":"\"Cas. Non-Prop.- Reserve - Line 26 - \"&$E$2-8&\" - \"&$E$2-9","v":"Cas. Non-Prop.- Reserve - Line 26 - 2015 - 2014"},null,null,null,null,{"$f":"+'Sch XI(a)(v)'!D48","v":0}]
["Sch XI(a)(v)","Loss Triangles - Casualty Non-Proportional",null,{"$f":"\"Cas. Non-Prop.- Reserve - Line 31 - \"&$E$2-3&\" - \"&$E$2-4","v":"Cas. Non-Prop.- Reserve - Line 31 - 2020 - 2019"},null,null,null,null,{"$f":"+'Sch XI(a)(v)'!I53","v":0}]
["Sch XI(a)(v)","Loss Triangles - Casualty Non-Proportional",null,{"$f":"\"Cas. Non-Prop.- Reserve - Line 29 - \"&$E$2&\" - \"&$E$2-6","v":"Cas. Non-Prop.- Reserve - Line 29 - 2023 - 2017"},null,null,null,null,{"$f":"+'Sch XI(a)(v)'!L51","v":0}]
["Sch XI(a)(v)","Loss Triangles - Casualty Non-Proportional",null,{"$f":"\"Cas. Non-Prop.- Reserve - Line 28 - Cat Loss. - \"&$E$2-7","v":"Cas. Non-Prop.- Reserve - Line 28 - Cat Loss. - 2016"},null,null,null,null,{"$f":"+'Sch XI(a)(v)'!M50","v":0}]
["Sch XI(a)(v)","Loss Triangles - Casualty Non-Proportional",null,{"$f":"\"Cas. Non-Prop.- Gross Premiums Earned - Line 45 - \"&$E$2-2","v":"Cas. Non-Prop.- Gross Premiums Earned - Line 45 - 2021"},null,null,null,null,{"$f":"+'Sch XI(a)(v)'!D75","v":0}]
["Sch XI(a)(v)","Loss Triangles - Casualty Non-Proportional",null,{"$f":"\"Cas. Non-Prop.- Expenses Paid - Line 37 - Prior\"","v":"Cas. Non-Prop.- Expenses Paid - Line 37 - Prior"},null,null,null,null,{"$f":"+'Sch XI(a)(v)'!G67","v":0}]
["Sch XI(a)(v)","Loss Triangles - Casualty Non-Proportional",null,{"$f":"\"Cas. Non-Prop.- Expenses Incurred - Line 38 - \"&$E$2-9","v":"Cas. Non-Prop.- Expenses Incurred - Line 38 - 2014"},null,null,null,null,{"$f":"+'Sch XI(a)(v)'!H68","v":0}]
["Sch XI(a)(v)","Loss Triangles - Casualty Non-Proportional",null,{"$f":"\"Cas. Non-Prop.- G&A - Line 39 - \"&$E$2-8","v":"Cas. Non-Prop.- G&A - Line 39 - 2015"},null,null,null,null,{"$f":"+'Sch XI(a)(v)'!K69","v":0}]
["Sch XI(a)(vi)","Loss Triangles - Financial Lines",null,{"$f":"\"Fin Lines Incurred - Line 3 - \"&$E$2-8&\" - \"&$E$2-8","v":"Fin Lines Incurred - Line 3 - 2015 - 2015"},null,null,null,null,{"$f":"+'Sch XI(a)(vi)'!D13","v":0}]
["Sch XI(a)(vi)","Loss Triangles - Financial Lines",null,{"$f":"\"Fin Lines Incurred - Line 5 - \"&$E$2-4&\" - \"&$E$2-6","v":"Fin Lines Incurred - Line 5 - 2019 - 2017"},null,null,null,null,{"$f":"+'Sch XI(a)(vi)'!H15","v":0}]
["Sch XI(a)(vi)","Loss Triangles - Financial Lines",null,{"$f":"\"Fin Lines Incurred - Line 3 - \"&$E$2-2&\" - \"&$E$2-8","v":"Fin Lines Incurred - Line 3 - 2021 - 2015"},null,null,null,null,{"$f":"+'Sch XI(a)(vi)'!J13","v":0}]
["Sch XI(a)(vi)","Loss Triangles - Financial Lines",null,{"$f":"\"Fin Lines Incurred - Line 6 - \"&$E$2&\" - \"&$E$2-5","v":"Fin Lines Incurred - Line 6 - 2023 - 2018"},null,null,null,null,{"$f":"+'Sch XI(a)(vi)'!L16","v":0}]
["Sch XI(a)(vi)","Loss Triangles - Financial Lines",null,{"$f":"\"Fin Lines Incurred - Line 10 - Cat Loss. - \"&$E$2-1","v":"Fin Lines Incurred - Line 10 - Cat Loss. - 2022"},null,null,null,null,{"$f":"+'Sch XI(a)(vi)'!M20","v":0}]
["Sch XI(a)(vi)","Loss Triangles - Financial Lines",null,{"$f":"\"Fin Lines Paid - Line 13 - \"&$E$2-2&\" - Prior\"","v":"Fin Lines Paid - Line 13 - 2021 - Prior"},null,null,null,null,{"$f":"+'Sch XI(a)(vi)'!J29","v":0}]
["Sch XI(a)(vi)","Loss Triangles - Financial Lines",null,{"$f":"\"Fin Lines Paid - Line 16 - \"&$E$2&\" - \"&$E$2-7","v":"Fin Lines Paid - Line 16 - 2023 - 2016"},null,null,null,null,{"$f":"+'Sch XI(a)(vi)'!L32","v":0}]
["Sch XI(a)(vi)","Loss Triangles - Financial Lines",null,{"$f":"\"Fin Lines Paid - Line 18 - Cat Loss. - \"&$E$2-5","v":"Fin Lines Paid - Line 18 - Cat Loss. - 2018"},null,null,null,null,{"$f":"+'Sch XI(a)(vi)'!M34","v":0}]
["Sch XI(a)(vi)","Loss Triangles - Financial Lines",null,{"$f":"\"Fin Lines Reserve - Line 29 - \"&$E$2-5&\" - \"&$E$2-6","v":"Fin Lines Reserve - Line 29 - 2018 - 2017"},null,null,null,null,{"$f":"+'Sch XI(a)(vi)'!G51","v":0}]
["Sch XI(a)(vi)","Loss Triangles - Financial Lines",null,{"$f":"\"Fin Lines Reserve - Line 25 - \"&$E$2-2&\" - Prior\"","v":"Fin Lines Reserve - Line 25 - 2021 - Prior"},null,null,null,null,{"$f":"+'Sch XI(a)(vi)'!J47","v":0}]
["Sch XI(a)(vi)","Loss Triangles - Financial Lines",null,{"$f":"\"Fin Lines Reserve - Line 26 - Cat Loss. - \"&$E$2-9","v":"Fin Lines Reserve - Line 26 - Cat Loss. - 2014"},null,null,null,null,{"$f":"+'Sch XI(a)(vi)'!M48","v":0}]
["Sch XI(a)(vi)","Loss Triangles - Financial Lines",null,{"$f":"\"Fin Lines Reserve - Line 32 - Cat Loss. - \"&$E$2-3","v":"Fin Lines Reserve - Line 32 - Cat Loss. - 2020"},null,null,null,null,{"$f":"+'Sch XI(a)(vi)'!M54","v":0}]
["Sch XI(a)(vi)","Loss Triangles - Financial Lines",null,{"$f":"\"Fin Lines NPW - Line 40 - \"&$E$2-7","v":"Fin Lines NPW - Line 40 - 2016"},null,null,null,null,{"$f":"+'Sch XI(a)(vi)'!E70","v":0}]
["Sch XI(a)(vi)","Loss Triangles - Financial Lines",null,{"$f":"\"Fin Lines Expenses Incurred - Line 37 - Prior\"","v":"Fin Lines Expenses Incurred - Line 37 - Prior"},null,null,null,null,{"$f":"+'Sch XI(a)(vi)'!H67","v":0}]
["Sch XI(a)(vi)","Loss Triangles - Financial Lines",null,{"$f":"\"Fin Lines Expenses Incurred - Line 42 - \"&$E$2-5","v":"Fin Lines Expenses Incurred - Line 42 - 2018"},null,null,null,null,{"$f":"+'Sch XI(a)(vi)'!H72","v":0}]
["Sch XI(a)(vi)","Loss Triangles - Financial Lines",null,{"$f":"\"Fin Lines Personnel Costs - Line 37 - Prior\"","v":"Fin Lines Personnel Costs - Line 37 - Prior"},null,null,null,null,{"$f":"+'Sch XI(a)(vi)'!L67","v":0}]
["Sch XI(a)(vii)","Loss Triangles - Other Specialty Lines",null,{"$f":"\"Otr. Special - Incurred - Line 1 - \"&$E$2-7&\" - Prior\"","v":"Otr. Special - Incurred - Line 1 - 2016 - Prior"},null,null,null,null,{"$f":"+'Sch XI(a)(vii)'!E11","v":0}]
["Sch XI(a)(vii)","Loss Triangles - Other Specialty Lines",null,{"$f":"\"Otr. Special - Incurred - Line 1 - \"&$E$2-5&\" - Prior\"","v":"Otr. Special - Incurred - Line 1 - 2018 - Prior"},null,null,null,null,{"$f":"+'Sch XI(a)(vii)'!G11","v":0}]
["Sch XI(a)(vii)","Loss Triangles - Other Specialty Lines",null,{"$f":"\"Otr. Special - Incurred - Line 2 - \"&$E$2-2&\" - \"&$E$2-9","v":"Otr. Special - Incurred - Line 2 - 2021 - 2014"},null,null,null,null,{"$f":"+'Sch XI(a)(vii)'!J12","v":0}]
["Sch XI(a)(vii)","Loss Triangles - Other Specialty Lines",null,{"$f":"\"Otr. Special - Incurred - Line 9 - Cat Loss. - \"&$E$2-2","v":"Otr. Special - Incurred - Line 9 - Cat Loss. - 2021"},null,null,null,null,{"$f":"+'Sch XI(a)(vii)'!M19","v":0}]
["Sch XI(a)(vii)","Loss Triangles - Other Specialty Lines",null,{"$f":"\"Otr. Special - Paid - Line 15 - \"&$E$2-5&\" - \"&$E$2-8","v":"Otr. Special - Paid - Line 15 - 2018 - 2015"},null,null,null,null,{"$f":"+'Sch XI(a)(vii)'!G31","v":0}]
["Sch XI(a)(vii)","Loss Triangles - Other Specialty Lines",null,{"$f":"\"Otr. Special - Paid - Line 20 - \"&$E$2-3&\" - \"&$E$2-3","v":"Otr. Special - Paid - Line 20 - 2020 - 2020"},null,null,null,null,{"$f":"+'Sch XI(a)(vii)'!I36","v":0}]
["Sch XI(a)(vii)","Loss Triangles - Other Specialty Lines",null,{"$f":"\"Otr. Special - Paid - Line 20 - \"&$E$2-1&\" - \"&$E$2-3","v":"Otr. Special - Paid - Line 20 - 2022 - 2020"},null,null,null,null,{"$f":"+'Sch XI(a)(vii)'!K36","v":0}]
["Sch XI(a)(vii)","Loss Triangles - Other Specialty Lines",null,{"$f":"\"Otr. Special - Paid - Line 15 - Cat Loss. - \"&$E$2-8","v":"Otr. Special - Paid - Line 15 - Cat Loss. - 2015"},null,null,null,null,{"$f":"+'Sch XI(a)(vii)'!M31","v":0}]
["Sch XI(a)(vii)","Loss Triangles - Other Specialty Lines",null,{"$f":"\"Otr. Special - Reserve - Line 26 - \"&$E$2-6&\" - \"&$E$2-9","v":"Otr. Special - Reserve - Line 26 - 2017 - 2014"},null,null,null,null,{"$f":"+'Sch XI(a)(vii)'!F48","v":0}]
["Sch XI(a)(vii)","Loss Triangles - Other Specialty Lines",null,{"$f":"\"Otr. Special - Reserve - Line 31 - \"&$E$2-1&\" - \"&$E$2-4","v":"Otr. Special - Reserve - Line 31 - 2022 - 2019"},null,null,null,null,{"$f":"+'Sch XI(a)(vii)'!K53","v":0}]
["Sch XI(a)(vii)","Loss Triangles - Other Specialty Lines",null,{"$f":"\"Otr. Special - Reserve - Line 26 - Cat Loss. - \"&$E$2-9","v":"Otr. Special - Reserve - Line 26 - Cat Loss. - 2014"},null,null,null,null,{"$f":"+'Sch XI(a)(vii)'!M48","v":0}]
["Sch XI(a)(vii)","Loss Triangles - Other Specialty Lines",null,{"$f":"\"Otr. Special - Gross Premiums Earned - Line 37 - Prior\"","v":"Otr. Special - Gross Premiums Earned - Line 37 - Prior"},null,null,null,null,{"$f":"+'Sch XI(a)(vii)'!D67","v":"XXX"}]
["Sch XI(a)(vii)","Loss Triangles - Other Specialty Lines",null,{"$f":"\"Otr. Special - Gross Premiums Earned - Line 47 - \"&$E$2","v":"Otr. Special - Gross Premiums Earned - Line 47 - 2023"},null,null,null,null,{"$f":"+'Sch XI(a)(vii)'!D77","v":0}]
["Sch XI(a)(vii)","Loss Triangles - Other Specialty Lines",null,{"$f":"\"Otr. Special - Expenses Paid - Line 41 - \"&$E$2-6","v":"Otr. Special - Expenses Paid - Line 41 - 2017"},null,null,null,null,{"$f":"+'Sch XI(a)(vii)'!G71","v":0}]
["Sch XI(a)(vii)","Loss Triangles - Other Specialty Lines",null,{"$f":"\"Otr. Special - G&A - Line 37 - Prior\"","v":"Otr. Special - G&A - Line 37 - Prior"},null,null,null,null,{"$f":"+'Sch XI(a)(vii)'!K67","v":0}]
["Sch XI(a)(vii)","Loss Triangles - Other Specialty Lines",null,{"$f":"\"Otr. Special - Other Exp. - Line 41 - \"&$E$2-6","v":"Otr. Special - Other Exp. - Line 41 - 2017"},null,null,null,null,{"$f":"+'Sch XI(a)(vii)'!M71","v":0}]
["Sch XI(a)(viii)","Loss Triangles - Structured/Finite Lines",null,{"$f":"\"Stuct. Lines - Incurred - Line 2 - \"&$E$2-9&\" - \"&$E$2-9","v":"Stuct. Lines - Incurred - Line 2 - 2014 - 2014"},null,null,null,null,{"$f":"+'Sch XI(a)(viii)'!C12","v":0}]
["Sch XI(a)(viii)","Loss Triangles - Structured/Finite Lines",null,{"$f":"\"Stuct. Lines - Incurred - Line 3 - \"&$E$2-3&\" - \"&$E$2-8","v":"Stuct. Lines - Incurred - Line 3 - 2020 - 2015"},null,null,null,null,{"$f":"+'Sch XI(a)(viii)'!I13","v":0}]
["Sch XI(a)(viii)","Loss Triangles - Structured/Finite Lines",null,{"$f":"\"Stuct. Lines - Incurred - Line 4 - \"&$E$2&\" - \"&$E$2-7","v":"Stuct. Lines - Incurred - Line 4 - 2023 - 2016"},null,null,null,null,{"$f":"+'Sch XI(a)(viii)'!L14","v":0}]
["Sch XI(a)(viii)","Loss Triangles - Structured/Finite Lines",null,{"$f":"\"Stuct. Lines - Incurred - Line 2 - Cat Loss. - \"&$E$2-9","v":"Stuct. Lines - Incurred - Line 2 - Cat Loss. - 2014"},null,null,null,null,{"$f":"+'Sch XI(a)(viii)'!M12","v":0}]
["Sch XI(a)(viii)","Loss Triangles - Structured/Finite Lines",null,{"$f":"\"Stuct. Lines - Paid - Line 15 - \"&$E$2-7&\" - \"&$E$2-8","v":"Stuct. Lines - Paid - Line 15 - 2016 - 2015"},null,null,null,null,{"$f":"+'Sch XI(a)(viii)'!E31","v":0}]
["Sch XI(a)(viii)","Loss Triangles - Structured/Finite Lines",null,{"$f":"\"Stuct. Lines - Paid - Line 18 - \"&$E$2-3&\" - \"&$E$2-5","v":"Stuct. Lines - Paid - Line 18 - 2020 - 2018"},null,null,null,null,{"$f":"+'Sch XI(a)(viii)'!I34","v":0}]
["Sch XI(a)(viii)","Loss Triangles - Structured/Finite Lines",null,{"$f":"\"Stuct. Lines - Paid - Line 14 - Cat Loss. - \"&$E$2-9","v":"Stuct. Lines - Paid - Line 14 - Cat Loss. - 2014"},null,null,null,null,{"$f":"+'Sch XI(a)(viii)'!M30","v":0}]
["Sch XI(a)(viii)","Loss Triangles - Structured/Finite Lines",null,{"$f":"\"Stuct. Lines - Reserve - Line 28 - \"&$E$2-7&\" - \"&$E$2-7","v":"Stuct. Lines - Reserve - Line 28 - 2016 - 2016"},null,null,null,null,{"$f":"+'Sch XI(a)(viii)'!E50","v":0}]
["Sch XI(a)(viii)","Loss Triangles - Structured/Finite Lines",null,{"$f":"\"Stuct. Lines - Reserve - Line 25 - \"&$E$2-3&\" - Prior\"","v":"Stuct. Lines - Reserve - Line 25 - 2020 - Prior"},null,null,null,null,{"$f":"+'Sch XI(a)(viii)'!I47","v":0}]
["Sch XI(a)(viii)","Loss Triangles - Structured/Finite Lines",null,{"$f":"\"Stuct. Lines - Reserve - Line 33 - \"&$E$2-2&\" - \"&$E$2-2","v":"Stuct. Lines - Reserve - Line 33 - 2021 - 2021"},null,null,null,null,{"$f":"+'Sch XI(a)(viii)'!J55","v":0}]
["Sch XI(a)(viii)","Loss Triangles - Structured/Finite Lines",null,{"$f":"\"Stuct. Lines - Reserve - Line 35 - \"&$E$2&\" - \"&$E$2","v":"Stuct. Lines - Reserve - Line 35 - 2023 - 2023"},null,null,null,null,{"$f":"+'Sch XI(a)(viii)'!L57","v":0}]
["Sch XI(a)(viii)","Loss Triangles - Structured/Finite Lines",null,{"$f":"\"Stuct. Lines - NPW - Line 38 - \"&$E$2-9","v":"Stuct. Lines - NPW - Line 38 - 2014"},null,null,null,null,{"$f":"+'Sch XI(a)(viii)'!E68","v":0}]
["Sch XI(a)(viii)","Loss Triangles - Structured/Finite Lines",null,{"$f":"\"Stuct. Lines - Net Premiums Earned - Line 47 - \"&$E$2","v":"Stuct. Lines - Net Premiums Earned - Line 47 - 2023"},null,null,null,null,{"$f":"+'Sch XI(a)(viii)'!F77","v":0}]
["Sch XI(a)(viii)","Loss Triangles - Structured/Finite Lines",null,{"$f":"\"Stuct. Lines - Expenses Incurred - Line 40 - \"&$E$2-7","v":"Stuct. Lines - Expenses Incurred - Line 40 - 2016"},null,null,null,null,{"$f":"+'Sch XI(a)(viii)'!H70","v":0}]
["Sch XI(a)(viii)","Loss Triangles - Structured/Finite Lines",null,{"$f":"\"Stuct. Lines - G&A - Line 40 - \"&$E$2-7","v":"Stuct. Lines - G&A - Line 40 - 2016"},null,null,null,null,{"$f":"+'Sch XI(a)(viii)'!K70","v":0}]
["Sch XI(a)(viii)","Loss Triangles - Structured/Finite Lines",null,{"$f":"\"Stuct. Lines - Personnel Costs - Line 42 - \"&$E$2-5","v":"Stuct. Lines - Personnel Costs - Line 42 - 2018"},null,null,null,null,{"$f":"+'Sch XI(a)(viii)'!L72","v":0}]
["SchXI(bi)","Reserve Rec - Property Castarophe",null,"Cat. - Net Losses Incurred - Current Year",null,null,null,null,null,null,null,null,{"$f":"'Sch XI(b)(i)'!D17","v":0},null,{"$f":"'Sch XI(b)(i)'!F17","v":0}]
["SchXI(biv)","Reserve Rec - Casualty",null,"Casualty - Best Estimate Provision - Beg. Of Year",null,null,null,null,null,null,null,null,{"$f":"'Sch XI(b)(iv)'!D10","v":0},null,{"$f":"'Sch XI(b)(iv)'!F10","v":0}]
["SchXI(biv)","Reserve Rec - Casualty",null,"Casualty - Impact of Change in Discount Curve",null,null,null,null,null,null,null,null,{"$f":"'Sch XI(b)(iv)'!D22","v":0},null,{"$f":"'Sch XI(b)(iv)'!F22","v":0}]
["SchXI(bvii)","Reserve Rec - Other Specialty Lines",null,"Otr. Specialty - Net Loss Paid - Prior Years",null,null,null,null,null,null,null,null,{"$f":"'Sch XI(b)(vii)'!D13","v":0},null,{"$f":"'Sch XI(b)(vii)'!F13","v":0}]
["Sch XII(a)","Eligible Capital",null,"Policyholder Obl. - Pledged Asset - Not Collat.",null,null,null,null,null,null,null,null,{"$f":"'Schedule XII(a)'!G27","v":0}]
[]
["Sch XII(b)","Eligible Capital - Additional Details",null,"Description of Capital Instrument 9",{"$f":"'Schedule XII(b)'!B19","v":0}]
["Sch XII(b)","Eligible Capital - Additional Details",null,"Date of Issue - Instrument 14",{"$f":"'Schedule XII(b)'!C24","v":0}]
["Sch XII(b)","Eligible Capital - Additional Details",null,"Maturity Date - Instrument 6",{"$f":"'Schedule XII(b)'!D16","v":0}]
["Sch XII(b)","Eligible Capital - Additional Details",null,"Valuation - Instrument 6",{"$f":"+'Schedule XII(b)'!F16","v":0}]
["Sch XII(b)","Eligible Capital - Additional Details",null,"Tier - Instrument 5",{"$f":"'Schedule XII(b)'!G15","v":0}]
[]
["Sch XVI","Non-Insurance",null,"Entity Jurisdiction - 1",null,null,null,null,{"$f":"'Schedule XVI'!C11","v":0}]
["Sch XVI","Non-Insurance",null,"Entity Sector - 4",null,null,null,null,{"$f":"'Schedule XVI'!D14","v":"Select"}]
["Sch XVI","Non-Insurance",null,"Entity Strategic Purpose - 8",null,null,null,null,{"$f":"'Schedule XVI'!E18","v":0}]
["Sch XVI","Non-Insurance",null,"Entity Participation - 6",null,null,null,null,{"$f":"'Schedule XVI'!H16","v":"Select"}]
["Sch XVI","Non-Insurance",null,"% Interest in Entity - 1",null,null,null,null,{"$f":"'Schedule XVI'!I11","v":0}]
["Sch XVI","Non-Insurance",null,"Total Assets in Entity - 9",null,null,null,null,{"$f":"'Schedule XVI'!J19","v":0}]
["Sch XVI","Non-Insurance",null,"Investments in Entity - 5",null,null,null,null,{"$f":"'Schedule XVI'!K15","v":0}]
["Sch XVI","Non-Insurance",null,"Regulatory Capital in Entity - 14",null,null,null,null,{"$f":"'Schedule XVI'!L24","v":0}]
["Sch XVII","Sovency Analysis",null,"Name of Entity - 12",null,null,null,null,{"$f":"'Schedule XVII'!B22","v":0}]
["Sch XVII","Sovency Analysis",null,"Jurisdiction of Entity - 10",null,null,null,null,{"$f":"'Schedule XVII'!C20","v":0}]
["Sch XVII","Sovency Analysis",null,"Jurisdiction of Entity - 13",null,null,null,null,{"$f":"'Schedule XVII'!C23","v":0}]
["Sch XVII","Sovency Analysis",null,"Type of Entity - 17",null,null,null,null,{"$f":"'Schedule XVII'!D27","v":"Select"}]
["Sch XVII","Sovency Analysis",null,"% Ownership of Entity - 9",null,null,null,null,{"$f":"'Schedule XVII'!E19","v":0}]
["Sch XVII","Sovency Analysis",null,"% Ownership of Entity - 20",null,null,null,null,{"$f":"'Schedule XVII'!E30","v":0}]
["Sch XVII","Sovency Analysis",null,"GPW of Entity - 14",null,null,null,null,{"$f":"'Schedule XVII'!F24","v":0}]
["Sch XVII","Sovency Analysis",null,"NPW of Entity - 18",null,null,null,null,{"$f":"'Schedule XVII'!G28","v":0}]
["Sch XVII","Sovency Analysis",null,"Total Assets of Entity - 8",null,null,null,null,{"$f":"'Schedule XVII'!H18","v":0}]
["Sch XVII","Sovency Analysis",null,"Total Assets of Entity - 24",null,null,null,null,{"$f":"'Schedule XVII'!H34","v":0}]
["Sch XVII","Sovency Analysis",null,"Net Assets of Entity - 8",null,null,null,null,{"$f":"'Schedule XVII'!I18","v":0}]
["Sch XVII","Sovency Analysis",null,"Net Assets of Entity - 30",null,null,null,null,{"$f":"'Schedule XVII'!I40","v":0}]
["Sch XVII","Sovency Analysis",null,"Regulatory Capital of Entity - 12",null,null,null,null,{"$f":"'Schedule XVII'!J22","v":0}]
["Sch XVIII","Ceded Reins",null,"Reinsurer Name - 3",{"$f":"'Schedule XVIII'!C17","v":0},null,null,null,null,null,null,null,{"$f":"'Schedule XVIII (EBS)'!C17","v":0}]
["Sch XVIII","Ceded Reins",null,"Reinsurer BSCR Rating - 5",{"$f":"'Schedule XVIII'!E19","v":"Select"},null,null,null,null,null,null,null,{"$f":"'Schedule XVIII (EBS)'!E19","v":"Select"}]
["Sch XVIII","Ceded Reins",null,"Reinsurer BSCR Rating - 28",{"$f":"'Schedule XVIII'!E42","v":"Select"},null,null,null,null,null,null,null,{"$f":"'Schedule XVIII (EBS)'!E42","v":"Select"}]
["Sch XVIII","Ceded Reins",null,"Reinsurer R/I Assets - 10",{"$f":"'Schedule XVIII'!G24","v":0},null,null,null,null,null,null,null,{"$f":"'Schedule XVIII (EBS)'!G24","v":0}]
["Sch XVIII","Ceded Reins",null,"Reinsurer R/I Payable - 4",{"$f":"'Schedule XVIII'!I18","v":0},null,null,null,null,null,null,null,{"$f":"'Schedule XVIII (EBS)'!I18","v":0}]
["Sch XVIII","Ceded Reins",null,"Reinsurer R/I Total - 30",{"$f":"'Schedule XVIII'!I55","v":0},null,null,null,null,null,null,null,{"$f":"'Schedule XVIII (EBS)'!I55","v":0}]
["Sch XVIII","Ceded Reins",null,"Reinsurer Collateral - 10",{"$f":"'Schedule XVIII'!K24","v":0},null,null,null,null,null,null,null,{"$f":"'Schedule XVIII (EBS)'!K24","v":0}]
["Sch XVIII","Ceded Reins",null,"R/I Payable - Exposure by BSCR Rate 6",{"$f":"'Schedule XVIII'!I64","v":0},null,null,null,null,null,null,null,{"$f":"'Schedule XVIII (EBS)'!I64","v":0}]
["Sch XVIII","Ceded Reins",null,"Collateral - Exposure by BSCR Rate 1",{"$f":"'Schedule XVIII'!K59","v":0},null,null,null,null,null,null,null,{"$f":"'Schedule XVIII (EBS)'!K59","v":0}]
["Sch XIXA","Cash Counterpart",null,"BSCR Rating - Counterparty 1",null,null,null,null,null,null,null,null,{"$f":"'Schedule XIXA'!D14","v":"Select"}]
["Sch XIXA","Cash Counterpart",null,"Counterparty Value 2",null,null,null,null,null,null,null,null,{"$f":"'Schedule XIXA'!F15","v":0}]
["Sch XIXA","Cash Counterpart",null,"Counterparty Value 18",null,null,null,null,null,null,null,null,{"$f":"'Schedule XIXA'!F31","v":0}]
["Sch XXA","Currency Shock",null,"Other Currency 6",null,null,null,null,null,null,null,null,{"$f":"'Schedule XXA'!B28","v":"Other currency 6"}]
["Sch XXA","Currency Shock",null,{"$f":"\"Before Shock - Long Exposures - Currency Derivatives Qualifying as held for risk-mitigation purposes \"&'Schedule XXA'!$B$18","v":"Before Shock - Long Exposures - Currency Derivatives Qualifying as held for risk-mitigation purposes Central African CFA Francs"},null,null,null,null,null,null,null,null,{"$f":"'Schedule XXA'!F18","v":0}]
["Sch XXA","Currency Shock",null,{"$f":"\"Before Shock - Long Exposures - Currency Derivatives Not Qualifying as held for risk-mitigation purposes \"&'Schedule XXA'!$B$15","v":"Before Shock - Long Exposures - Currency Derivatives Not Qualifying as held for risk-mitigation purposes Denmark Kroner"},null,null,null,null,null,null,null,null,{"$f":"'Schedule XXA'!H15","v":0}]
["Sch XXA","Currency Shock",null,{"$f":"\"Before Shock - Long Exposures - Currency Derivatives Not Qualifying as held for risk-mitigation purposes \"&'Schedule XXA'!$B$32","v":"Before Shock - Long Exposures - Currency Derivatives Not Qualifying as held for risk-mitigation purposes Other currency 10"},null,null,null,null,null,null,null,null,{"$f":"'Schedule XXA'!H32","v":0}]
["Sch XXA","Currency Shock",null,{"$f":"\"Before Shock - Short Exposures - Currency Derivatives Qualifying as held for risk-mitigation purposes \"&'Schedule XXA'!$B$27","v":"Before Shock - Short Exposures - Currency Derivatives Qualifying as held for risk-mitigation purposes Other currency 5"},null,null,null,null,null,null,null,null,{"$f":"'Schedule XXA'!J27","v":0}]
["Sch XXA","Currency Shock",null,{"$f":"\"Before Shock - Short Exposures - Currency Derivatives Not Qualifying as held for risk-mitigation purposes \"&'Schedule XXA'!$B$23","v":"Before Shock - Short Exposures - Currency Derivatives Not Qualifying as held for risk-mitigation purposes Other currency 1"},null,null,null,null,null,null,null,null,{"$f":"'Schedule XXA'!L23","v":0}]
["Sch XXA","Currency Shock",null,{"$f":"\"After Shock - Assets - Excluding Currency - Sensitive Derivatives \"&'Schedule XXA'!$B$10","v":"After Shock - Assets - Excluding Currency - Sensitive Derivatives United States Dollars"},null,null,null,null,null,null,null,null,{"$f":"'Schedule XXA'!V10","v":0}]
["Sch XXA","Currency Shock",null,{"$f":"\"After Shock - Assets - Excluding Currency - Sensitive Derivatives \"&'Schedule XXA'!$B$14","v":"After Shock - Assets - Excluding Currency - Sensitive Derivatives Euro"},null,null,null,null,null,null,null,null,{"$f":"'Schedule XXA'!V14","v":0}]
["Sch XXA","Currency Shock",null,{"$f":"\"After Shock - Long Exposures - Currency Derivatives Qualifying as held for risk-mitigation purposes \"&'Schedule XXA'!$B$22","v":"After Shock - Long Exposures - Currency Derivatives Qualifying as held for risk-mitigation purposes Japan Yen"},null,null,null,null,null,null,null,null,{"$f":"'Schedule XXA'!X22","v":0}]
["Sch XXA","Currency Shock",null,{"$f":"\"After Shock - Long Exposures - Currency Derivatives Not Qualifying as held for risk-mitigation purposes \"&'Schedule XXA'!$B$27","v":"After Shock - Long Exposures - Currency Derivatives Not Qualifying as held for risk-mitigation purposes Other currency 5"},null,null,null,null,null,null,null,null,{"$f":"'Schedule XXA'!Z27","v":0}]
["Sch XXA","Currency Shock",null,{"$f":"\"After Shock - Short Exposures - Currency Derivatives Qualifying as held for risk-mitigation purposes \"&'Schedule XXA'!$B$11","v":"After Shock - Short Exposures - Currency Derivatives Qualifying as held for risk-mitigation purposes Bermuda Dollars"},null,null,null,null,null,null,null,null,{"$f":"'Schedule XXA'!AB11","v":0}]
["Sch XXA","Currency Shock",null,{"$f":"\"After Shock - Short Exposures - Currency Derivatives Not Qualifying as held for risk-mitigation purposes \"&'Schedule XXA'!$B$14","v":"After Shock - Short Exposures - Currency Derivatives Not Qualifying as held for risk-mitigation purposes Euro"},null,null,null,null,null,null,null,null,{"$f":"'Schedule XXA'!AD14","v":0}]
["Sch XXA","Currency Shock",null,{"$f":"\"After Shock - B.E. Liabilities \"&'Schedule XXA'!$B$21","v":"After Shock - B.E. Liabilities Canada Dollars"},null,null,null,null,null,null,null,null,{"$f":"'Schedule XXA'!AF21","v":0}]
["Sch XXA","Currency Shock",null,{"$f":"\"After Shock - B.E. Liabilities \"&'Schedule XXA'!$B$28","v":"After Shock - B.E. Liabilities Other currency 6"},null,null,null,null,null,null,null,null,{"$f":"'Schedule XXA'!AF28","v":0}]
["Sch XXA","Currency Shock",null,{"$f":"\"After Shock - Liabilities w Mgmt. Actions \"&'Schedule XXA'!$B$29","v":"After Shock - Liabilities w Mgmt. Actions Other currency 7"},null,null,null,null,null,null,null,null,{"$f":"'Schedule XXA'!AH29","v":0}]
["Sch XXIA","Inv Con Risk",null,"Name of Exposure - 24",{"$f":"'Schedule XXIA'!C31","v":0}]
["Sch XXIA","Inv Con Risk",null,"Name of Exposure - 45",{"$f":"'Schedule XXIA'!C52","v":0}]
["Sch XXIA","Inv Con Risk",null,"Asset Type - 11",{"$f":"'Schedule XXIA'!E18","v":"Select"},null,null,null,null,null,null,null,{"$f":"'Schedule XXIA'!J18","v":"Select"}]
["Sch XXIA","Inv Con Risk",null,"Asset Type - 30",{"$f":"'Schedule XXIA'!E37","v":"Select"},null,null,null,null,null,null,null,{"$f":"'Schedule XXIA'!J37","v":"Select"}]
["Sch XXIA","Inv Con Risk",null,"Asset Type - 44",{"$f":"'Schedule XXIA'!E51","v":"Select"},null,null,null,null,null,null,null,{"$f":"'Schedule XXIA'!J51","v":"Select"}]
["Sch XXIA","Inv Con Risk",null,"Bond Type - 15",{"$f":"'Schedule XXIA'!F22","v":"Select"},null,null,null,null,null,null,null,{"$f":"'Schedule XXIA'!K22","v":"Select"}]
["Sch XXIA","Inv Con Risk",null,"BSCR Rating - 3",{"$f":"'Schedule XXIA'!G10","v":"Select"},null,null,null,null,null,null,null,{"$f":"'Schedule XXIA'!L10","v":"Select"}]
["Sch XXIA","Inv Con Risk",null,"BSCR Rating - 24",{"$f":"'Schedule XXIA'!G31","v":"Select"},null,null,null,null,null,null,null,{"$f":"'Schedule XXIA'!L31","v":"Select"}]
["Sch XXIA","Inv Con Risk",null,"BSCR Rating - 37",{"$f":"'Schedule XXIA'!G44","v":"Select"},null,null,null,null,null,null,null,{"$f":"'Schedule XXIA'!L44","v":"Select"}]
["Sch XXIA","Inv Con Risk",null,"Asset Value - 7",{"$f":"'Schedule XXIA'!H14","v":0},null,null,null,null,null,null,null,{"$f":"'Schedule XXIA'!M14","v":0}]
["Sch XXIA","Inv Con Risk",null,"Asset Value - 22",{"$f":"'Schedule XXIA'!H29","v":0},null,null,null,null,null,null,null,{"$f":"'Schedule XXIA'!M29","v":0}]
["Sch XXIA","Inv Con Risk",null,"Asset Value - 44",{"$f":"'Schedule XXIA'!H51","v":0},null,null,null,null,null,null,null,{"$f":"'Schedule XXIA'!M51","v":0}]
["Sch XXIII","Interest Rates",null,{"$f":"\"Int. Down - Before Shock - Other - Qualifying Assets - \"&'Schedule XXIII'!$C$21","v":"Int. Down - Before Shock - Other - Qualifying Assets - Other currency 4"},null,null,null,null,null,null,null,null,{"$f":"'Schedule XXIII'!E21","v":0}]
["Sch XXIII","Interest Rates",null,"Int. Down - Before Shock - Other - Liab. w/o Mgmt Action - United Kingdom Pounds",null,null,null,null,null,null,null,null,{"$f":"'Schedule XXIII'!H12","v":0}]
["Sch XXIII","Interest Rates",null,{"$f":"\"Int. Down - Before Shock - Other - Liab. w/o Mgmt Action - \"&'Schedule XXIII'!$C$18","v":"Int. Down - Before Shock - Other - Liab. w/o Mgmt Action - Other currency 1"},null,null,null,null,null,null,null,null,{"$f":"'Schedule XXIII'!H18","v":0}]
["Sch XXIII","Interest Rates",null,"Int. Down - After Shock - Other - Liab. with Mgmt Action - Euro",null,null,null,null,null,null,null,null,{"$f":"'Schedule XXIII'!K11","v":0}]
["Sch XXIII","Interest Rates",null,"Int. Down - Before Shock - Derivatives - Qualifying Assets - New Zealand Dollar",null,null,null,null,null,null,null,null,{"$f":"'Schedule XXIII'!M17","v":0}]
["Sch XXIII","Interest Rates",null,{"$f":"\"Int. Down - Before Shock - Derivatives - Qualifying Assets - \"&'Schedule XXIII'!$C$25","v":"Int. Down - Before Shock - Derivatives - Qualifying Assets - Other currency 8"},null,null,null,null,null,null,null,null,{"$f":"'Schedule XXIII'!M25","v":0}]
["Sch XXIII","Interest Rates",null,"Int. Down - Before Shock - Derivatives - Not Qualifying Assets - Canada Dollars",null,null,null,null,null,null,null,null,{"$f":"'Schedule XXIII'!P14","v":0}]
["Sch XXIII","Interest Rates",null,{"$f":"\"Int. Down - After Shock - Derivatives - Not Qualifying Assets - \"&'Schedule XXIII'!$C$27","v":"Int. Down - After Shock - Derivatives - Not Qualifying Assets - Other currency 10"},null,null,null,null,null,null,null,null,{"$f":"'Schedule XXIII'!Q27","v":0}]
["Sch XXIII","Interest Rates",null,"Int. Down - Before Shock - Derivatives - Liab. w/o Mgmt Action - Total",null,null,null,null,null,null,null,null,{"$f":"'Schedule XXIII'!S28","v":0}]
["Sch XXIII","Interest Rates",null,{"$f":"\"Int. Down - After Shock - Derivatives - Liab. w/o Mgmt Action - \"&'Schedule XXIII'!$C$26","v":"Int. Down - After Shock - Derivatives - Liab. w/o Mgmt Action - Other currency 9"},null,null,null,null,null,null,null,null,{"$f":"'Schedule XXIII'!T26","v":0}]
["Sch XXIII","Interest Rates",null,{"$f":"\"Int. Down - After Shock - Derivatives - Liab. with Mgmt Action - \"&'Schedule XXIII'!$C$25","v":"Int. Down - After Shock - Derivatives - Liab. with Mgmt Action - Other currency 8"},null,null,null,null,null,null,null,null,{"$f":"'Schedule XXIII'!V25","v":0}]
["Sch XXIII","Interest Rates",null,"Int. Up - Before Shock - Other - Qualifying Assets - Swiss Francs",null,null,null,null,null,null,null,null,{"$f":"'Schedule XXIII'!E40","v":0}]
["Sch XXIII","Interest Rates",null,"Int. Up - Before Shock - Other - Liab. w/o Mgmt Action - Canada Dollars",null,null,null,null,null,null,null,null,{"$f":"'Schedule XXIII'!H39","v":0}]
["Sch XXIII","Interest Rates",null,"Int. Up - After Shock - Other - Liab. w/o Mgmt Action - Japan Yen",null,null,null,null,null,null,null,null,{"$f":"'Schedule XXIII'!I38","v":0}]
["Sch XXIII","Interest Rates",null,"Int. Up - After Shock - Other - Liab. with Mgmt Action - Euro",null,null,null,null,null,null,null,null,{"$f":"'Schedule XXIII'!K36","v":0}]
["Sch XXIII","Interest Rates",null,"Int. Up - Before Shock - Derivatives - Qualifying Assets - United Kingdom Pounds",null,null,null,null,null,null,null,null,{"$f":"'Schedule XXIII'!M37","v":0}]
["Sch XXIII","Interest Rates",null,{"$f":"\"Int. Up - Before Shock - Derivatives - Qualifying Assets - \"&'Schedule XXIII'!$C$27","v":"Int. Up - Before Shock - Derivatives - Qualifying Assets - Other currency 10"},null,null,null,null,null,null,null,null,{"$f":"'Schedule XXIII'!M52","v":0}]
["Sch XXIII","Interest Rates",null,"Int. Up - Before Shock - Derivatives - Not Qualifying Assets - Euro",null,null,null,null,null,null,null,null,{"$f":"'Schedule XXIII'!P36","v":0}]
["Sch XXIII","Interest Rates",null,{"$f":"\"Int. Up - After Shock - Derivatives - Not Qualifying Assets - \"&'Schedule XXIII'!$C$22","v":"Int. Up - After Shock - Derivatives - Not Qualifying Assets - Other currency 5"},null,null,null,null,null,null,null,null,{"$f":"'Schedule XXIII'!Q47","v":0}]
["Sch XXIII","Interest Rates",null,"Int. Up - After Shock - Derivatives - Liab. w/o Mgmt Action - Japan Yen",null,null,null,null,null,null,null,null,{"$f":"'Schedule XXIII'!T38","v":0}]
["Sch XXIII","Interest Rates",null,"Int. Up - After Shock - Derivatives - Liab. with Mgmt Action - Euro",null,null,null,null,null,null,null,null,{"$f":"'Schedule XXIII'!V36","v":0}]
["Sch XXIII","Interest Rates",null,"Int. Up - After Shock - Derivatives - Liab. with Mgmt Action - New Zealand Dollar",null,null,null,null,null,null,null,null,{"$f":"'Schedule XXIII'!V42","v":0}]
["Sch XXIII","Interest Rates",null,{"$f":"\"Int. Up - After Shock - Derivatives - Liab. with Mgmt Action - \"&'Schedule XXIII'!$C$18","v":"Int. Up - After Shock - Derivatives - Liab. with Mgmt Action - Other currency 1"},null,null,null,null,null,null,null,null,{"$f":"'Schedule XXIII'!V43","v":0}]
["Sch XXIII","Interest Rates",null,{"$f":"\"Int. Up - After Shock - Derivatives - Liab. with Mgmt Action - \"&'Schedule XXIII'!$C$19","v":"Int. Up - After Shock - Derivatives - Liab. with Mgmt Action - Other currency 2"},null,null,null,null,null,null,null,null,{"$f":"'Schedule XXIII'!V44","v":0}]
["Sch XXIII","Interest Rates",null,{"$f":"\"Int. Up - After Shock - Derivatives - Liab. with Mgmt Action - \"&'Schedule XXIII'!$C$20","v":"Int. Up - After Shock - Derivatives - Liab. with Mgmt Action - Other currency 3"},null,null,null,null,null,null,null,null,{"$f":"'Schedule XXIII'!V45","v":0}]
["Sch XXIII","Interest Rates",null,{"$f":"\"Int. Up - After Shock - Derivatives - Liab. with Mgmt Action - \"&'Schedule XXIII'!$C$21","v":"Int. Up - After Shock - Derivatives - Liab. with Mgmt Action - Other currency 4"},null,null,null,null,null,null,null,null,{"$f":"'Schedule XXIII'!V46","v":0}]
["Sch XXIII","Interest Rates",null,{"$f":"\"Int. Up - After Shock - Derivatives - Liab. with Mgmt Action - \"&'Schedule XXIII'!$C$22","v":"Int. Up - After Shock - Derivatives - Liab. with Mgmt Action - Other currency 5"},null,null,null,null,null,null,null,null,{"$f":"'Schedule XXIII'!V47","v":0}]
["Sch XXIII","Interest Rates",null,{"$f":"\"Int. Up - After Shock - Derivatives - Liab. with Mgmt Action - \"&'Schedule XXIII'!$C$23","v":"Int. Up - After Shock - Derivatives - Liab. with Mgmt Action - Other currency 6"},null,null,null,null,null,null,null,null,{"$f":"'Schedule XXIII'!V48","v":0}]
["Sch XXIII","Interest Rates",null,{"$f":"\"Int. Up - After Shock - Derivatives - Liab. with Mgmt Action - \"&'Schedule XXIII'!$C$24","v":"Int. Up - After Shock - Derivatives - Liab. with Mgmt Action - Other currency 7"},null,null,null,null,null,null,null,null,{"$f":"'Schedule XXIII'!V49","v":0}]
["Sch XXIII","Interest Rates",null,{"$f":"\"Int. Up - After Shock - Derivatives - Liab. with Mgmt Action - \"&'Schedule XXIII'!$C$25","v":"Int. Up - After Shock - Derivatives - Liab. with Mgmt Action - Other currency 8"},null,null,null,null,null,null,null,null,{"$f":"'Schedule XXIII'!V50","v":0}]
["Sch XXIII","Interest Rates",null,{"$f":"\"Int. Up - After Shock - Derivatives - Liab. with Mgmt Action - \"&'Schedule XXIII'!$C$26","v":"Int. Up - After Shock - Derivatives - Liab. with Mgmt Action - Other currency 9"},null,null,null,null,null,null,null,null,{"$f":"'Schedule XXIII'!V51","v":0}]
["Sch XXIII","Interest Rates",null,{"$f":"\"Int. Up - After Shock - Derivatives - Liab. with Mgmt Action - \"&'Schedule XXIII'!$C$27","v":"Int. Up - After Shock - Derivatives - Liab. with Mgmt Action - Other currency 10"},null,null,null,null,null,null,null,null,{"$f":"'Schedule XXIII'!V52","v":0}]
["Sch XXIII","Interest Rates",null,"Int. Up - After Shock - Derivatives - Liab. with Mgmt Action - Total",null,null,null,null,null,null,null,null,{"$f":"'Schedule XXIII'!V53","v":0}]
[]
["Op Risk","Corp Gov",null,"Corporate Governance Q1",null,null,null,null,{"$f":"'Corp Gov'!D10","v":0}]
["Op Risk","Corp Gov",null,"Corporate Governance Q2 (Class 3A Only)",null,null,null,null,{"$f":"'Corp Gov'!D11","v":0}]
["Op Risk","Corp Gov",null,"Corporate Governance Q3",null,null,null,null,{"$f":"'Corp Gov'!D12","v":0}]
["Op Risk","Corp Gov",null,"Corporate Governance Q4",null,null,null,null,{"$f":"'Corp Gov'!D13","v":0}]
["Op Risk","Corp Gov",null,"Corporate Governance Q5",null,null,null,null,{"$f":"'Corp Gov'!D14","v":0}]
["Op Risk","Corp Gov",null,"Corporate Governance Q6",null,null,null,null,{"$f":"'Corp Gov'!D15","v":0}]
["Op Risk","Corp Gov",null,"Corporate Governance Q7",null,null,null,null,{"$f":"'Corp Gov'!D16","v":0}]
["Op Risk","Risk Mngt",null,"Risk Management Q1",null,null,null,null,{"$f":"'Risk Man'!D11","v":0}]
["Op Risk","Risk Mngt",null,"Risk Management Q2",null,null,null,null,{"$f":"'Risk Man'!D12","v":0}]
["Op Risk","Risk Mngt",null,"Risk Management Q3",null,null,null,null,{"$f":"'Risk Man'!D13","v":0}]
["Op Risk","Risk Mngt",null,"Risk Management Q4",null,null,null,null,{"$f":"'Risk Man'!D14","v":0}]
["Op Risk","Risk Mngt",null,"Risk Management Q5",null,null,null,null,{"$f":"'Risk Man'!D15","v":0}]
["Op Risk","Risk Mngt",null,"Risk Management Q6",null,null,null,null,{"$f":"'Risk Man'!D16","v":0}]
["Op Risk","Risk Mngt",null,"Risk Management Q7",null,null,null,null,{"$f":"'Risk Man'!D17","v":0}]
["Op Risk","Indentification",null,"Identification - Fraud (Class 4/3B Only)",null,null,null,null,{"$f":"Identification!E19","v":0}]
["Op Risk","Indentification",null,"Identification - HR (Class 4/3B Only)",null,null,null,null,{"$f":"Identification!F19","v":0}]
["Op Risk","Indentification",null,"Identification - Outsourcing (Class 4/3B Only)",null,null,null,null,{"$f":"Identification!G19","v":0}]
["Op Risk","Indentification",null,"Identification - Dis. Channels (Class 4/3B Only)",null,null,null,null,{"$f":"Identification!H19","v":0}]
["Op Risk","Indentification",null,"Identification - Bus. Processes (Class 4/3B Only)",null,null,null,null,{"$f":"Identification!I19","v":0}]
["Op Risk","Indentification",null,"Identification - Bus. Continuity (Class 4/3B Only)",null,null,null,null,{"$f":"Identification!J19","v":0}]
["Op Risk","Indentification",null,"Identification - Info. Systems (Class 4/3B Only)",null,null,null,null,{"$f":"Identification!K19","v":0}]
["Op Risk","Indentification",null,"Identification - Compliance (Class 4/3B Only)",null,null,null,null,{"$f":"Identification!L19","v":0}]
["Op Risk","Measurement",null,"Measurement - Fraud (Class 4/3B Only)",null,null,null,null,{"$f":"Measurement!E19","v":0}]
["Op Risk","Measurement",null,"Measurement - HR (Class 4/3B Only)",null,null,null,null,{"$f":"Measurement!F19","v":0}]
["Op Risk","Measurement",null,"Measurement - Outsourcing (Class 4/3B Only)",null,null,null,null,{"$f":"Measurement!G19","v":0}]
["Op Risk","Measurement",null,"Measurement - Dis. Channels (Class 4/3B Only)",null,null,null,null,{"$f":"Measurement!H19","v":0}]
["Op Risk","Measurement",null,"Measurement - Bus. Processes (Class 4/3B Only)",null,null,null,null,{"$f":"Measurement!I19","v":0}]
["Op Risk","Measurement",null,"Measurement - Bus. Continuity (Class 4/3B Only)",null,null,null,null,{"$f":"Measurement!J19","v":0}]
["Op Risk","Measurement",null,"Measurement - Info. Systems (Class 4/3B Only)",null,null,null,null,{"$f":"Measurement!K19","v":0}]
["Op Risk","Measurement",null,"Measurement - Compliance (Class 4/3B Only)",null,null,null,null,{"$f":"Measurement!L19","v":0}]
["Op Risk","Response",null,"Response - Fraud (Class 4/3B Only)",null,null,null,null,{"$f":"Response!E19","v":0}]
["Op Risk","Response",null,"Response - HR (Class 4/3B Only)",null,null,null,null,{"$f":"Response!F19","v":0}]
["Op Risk","Response",null,"Response - Outsourcing (Class 4/3B Only)",null,null,null,null,{"$f":"Response!G19","v":0}]
["Op Risk","Response",null,"Response - Dis. Channels (Class 4/3B Only)",null,null,null,null,{"$f":"Response!H19","v":0}]
["Op Risk","Response",null,"Response - Bus. Processes (Class 4/3B Only)",null,null,null,null,{"$f":"Response!I19","v":0}]
["Op Risk","Response",null,"Response - Bus. Continuity (Class 4/3B Only)",null,null,null,null,{"$f":"Response!J19","v":0}]
["Op Risk","Response",null,"Response - Info. Systems (Class 4/3B Only)",null,null,null,null,{"$f":"Response!K19","v":0}]
["Op Risk","Response",null,"Response - Compliance (Class 4/3B Only)",null,null,null,null,{"$f":"Response!L19","v":0}]
["Op Risk","Mont. & Reporting",null,"Mont. & Reporting - Fraud (Class 4/3B Only)",null,null,null,null,{"$f":"'Monitoring & Reporting'!E19","v":0}]
["Op Risk","Mont. & Reporting",null,"Mont. & Reporting - HR (Class 4/3B Only)",null,null,null,null,{"$f":"'Monitoring & Reporting'!F19","v":0}]
["Op Risk","Mont. & Reporting",null,"Mont. & Reporting - Outsourcing (Class 4/3B Only)",null,null,null,null,{"$f":"'Monitoring & Reporting'!G19","v":0}]
["Op Risk","Mont. & Reporting",null,"Mont. & Reporting - Dis. Channels (Class 4/3B Only)",null,null,null,null,{"$f":"'Monitoring & Reporting'!H19","v":0}]
["Op Risk","Mont. & Reporting",null,"Mont. & Reporting - Bus. Processes (Class 4/3B Only)",null,null,null,null,{"$f":"'Monitoring & Reporting'!I19","v":0}]
["Op Risk","Mont. & Reporting",null,"Mont. & Reporting - Bus. Continuity (Class 4/3B Only)",null,null,null,null,{"$f":"'Monitoring & Reporting'!J19","v":0}]
["Op Risk","Mont. & Reporting",null,"Mont. & Reporting - Info. Systems (Class 4/3B Only)",null,null,null,null,{"$f":"'Monitoring & Reporting'!K19","v":0}]
["Op Risk","Mont. & Reporting",null,"Mont. & Reporting - Compliance (Class 4/3B Only)",null,null,null,null,{"$f":"'Monitoring & Reporting'!L19","v":0}]
[]
["Summary",null,null,"Deferred Tax Asset - T",null,null,null,null,null,null,null,null,{"$f":"Summary!D157","v":0}]
["Summary",null,null,"Deferred Tax Asset - Loss Carryback Provision",null,null,null,null,null,null,null,null,{"$f":"Summary!K157","v":0}]
["Summary",null,null,"Management Action - Net Future Discretionary Benefits / Bonus Reserve",null,null,null,null,null,null,null,null,{"$f":"Summary!M146","v":0}]
[]
["Sar & Sanc.","SAR & Santions",null,"E.1 Registered GoAML",{"$f":"'SAR & Sanc. (All)'!I8","v":"Select Yes/No"}]
["Sar & Sanc.","SAR & Santions",null,"E.1.1 When",{"$f":"'SAR & Sanc. (All)'!I10","v":"(Select)"}]
["Sar & Sanc.","SAR & Santions",null,"E.1.1 Name",{"$f":"'SAR & Sanc. (All)'!C10","v":0}]
["Sar & Sanc.","SAR & Santions",null,"E.1.2 Another Registered",{"$f":"'SAR & Sanc. (All)'!I12","v":"Select Yes/No"}]
["Sar & Sanc.","SAR & Santions",null,"E.1.3 Name",{"$f":"'SAR & Sanc. (All)'!C14","v":0}]
["Sar & Sanc.","SAR & Santions",null,"E.1.4 Filed SAR",{"$f":"'SAR & Sanc. (All)'!C17","v":0}]
["Sar & Sanc.","SAR & Santions",null,"E.2 SAR Filed - Internal - Current Year",{"$f":"'SAR & Sanc. (All)'!G21","v":0}]
["Sar & Sanc.","SAR & Santions",null,"E.2 SAR Filed - Internal - Prior Year",{"$f":"'SAR & Sanc. (All)'!G22","v":0}]
["Sar & Sanc.","SAR & Santions",null,"E.2 SAR Filed - Internal - 2 Years Prior",{"$f":"'SAR & Sanc. (All)'!G23","v":0}]
["Sar & Sanc.","SAR & Santions",null,"E.2 SAR Filed - Internal - 3 Years Prior",{"$f":"'SAR & Sanc. (All)'!G24","v":0}]
["Sar & Sanc.","SAR & Santions",null,"E.2 SAR Filed - Internal - Total",{"$f":"'SAR & Sanc. (All)'!G25","v":0}]
["Sar & Sanc.","SAR & Santions",null,"E.2 SAR Filed - w FIA - Current Year",{"$f":"'SAR & Sanc. (All)'!I21","v":0}]
["Sar & Sanc.","SAR & Santions",null,"E.2 SAR Filed - w FIA - Prior Year",{"$f":"'SAR & Sanc. (All)'!I22","v":0}]
["Sar & Sanc.","SAR & Santions",null,"E.2 SAR Filed - w FIA - 2 Years Prior",{"$f":"'SAR & Sanc. (All)'!I23","v":0}]
["Sar & Sanc.","SAR & Santions",null,"E.2 SAR Filed - w FIA - 3 Years Prior",{"$f":"'SAR & Sanc. (All)'!I24","v":0}]
["Sar & Sanc.","SAR & Santions",null,"E.2 SAR Filed - w FIA - Total",{"$f":"'SAR & Sanc. (All)'!I25","v":0}]
["Sar & Sanc.","SAR & Santions",null,"E.2 Additional Comments",{"$f":"'SAR & Sanc. (All)'!C28","v":0}]
["Sar & Sanc.","SAR & Santions",null,"E. Sanction - 1. Screen insurers",{"$f":"'SAR & Sanc. (All)'!I35","v":"Select Yes/No"}]
["Sar & Sanc.","SAR & Santions",null,"E. Sanction - 2. Screen employees",{"$f":"'SAR & Sanc. (All)'!I37","v":"Select Yes/No"}]
["Sar & Sanc.","SAR & Santions",null,"E. Sanction - 3. Freeze Assets",{"$f":"'SAR & Sanc. (All)'!I39","v":"Select Yes/No"}]
["Sar & Sanc.","SAR & Santions",null,"E. Sanction - 3.1 # of Assets Frozen",{"$f":"'SAR & Sanc. (All)'!I41","v":0}]
["Sar & Sanc.","SAR & Santions",null,"E. Sanction - 3.2 Group ID 1",{"$f":"'SAR & Sanc. (All)'!E45","v":0}]
["Sar & Sanc.","SAR & Santions",null,"E. Sanction - 3.2 Group ID 2",{"$f":"'SAR & Sanc. (All)'!E46","v":0}]
["Sar & Sanc.","SAR & Santions",null,"E. Sanction - 3.2 Group ID 3",{"$f":"'SAR & Sanc. (All)'!E47","v":0}]
["Sar & Sanc.","SAR & Santions",null,"E. Sanction - 3.2 Group ID 4",{"$f":"'SAR & Sanc. (All)'!E48","v":0}]
["Sar & Sanc.","SAR & Santions",null,"E. Sanction - 3.2 Name Given 1",{"$f":"'SAR & Sanc. (All)'!F45","v":0}]
["Sar & Sanc.","SAR & Santions",null,"E. Sanction - 3.2 Name Given 2",{"$f":"'SAR & Sanc. (All)'!F46","v":0}]
["Sar & Sanc.","SAR & Santions",null,"E. Sanction - 3.2 Name Given 3",{"$f":"'SAR & Sanc. (All)'!F47","v":0}]
["Sar & Sanc.","SAR & Santions",null,"E. Sanction - 3.2 Name Given 4",{"$f":"'SAR & Sanc. (All)'!F48","v":0}]
["Sar & Sanc.","SAR & Santions",null,"E. Sanction - 3.2 Owned 1",{"$f":"'SAR & Sanc. (All)'!F45","v":0}]
["Sar & Sanc.","SAR & Santions",null,"E. Sanction - 3.2 Owned 2",{"$f":"'SAR & Sanc. (All)'!F46","v":0}]
["Sar & Sanc.","SAR & Santions",null,"E. Sanction - 3.2 Owned 3",{"$f":"'SAR & Sanc. (All)'!F47","v":0}]
["Sar & Sanc.","SAR & Santions",null,"E. Sanction - 3.2 Owned 4",{"$f":"'SAR & Sanc. (All)'!F48","v":0}]
["Sar & Sanc.","SAR & Santions",null,"E. Sanction - 3.2 Value of Assets 1",{"$f":"'SAR & Sanc. (All)'!J45","v":0}]
["Sar & Sanc.","SAR & Santions",null,"E. Sanction - 3.2 Value of Assets 2",{"$f":"'SAR & Sanc. (All)'!J46","v":0}]
["Sar & Sanc.","SAR & Santions",null,"E. Sanction - 3.2 Value of Assets 3",{"$f":"'SAR & Sanc. (All)'!J47","v":0}]
["Sar & Sanc.","SAR & Santions",null,"E. Sanction - 3.2 Value of Assets 4",{"$f":"'SAR & Sanc. (All)'!J48","v":0}]
["Sar & Sanc.","SAR & Santions",null,"E. Sanction - 3.2 Value of Total",{"$f":"SUM(E45136:E45139)","v":0}]
["Sar & Sanc.","SAR & Santions",null,"E. Sanction - 4 Frequency of Screen for Sanctions",{"$f":"'SAR & Sanc. (All)'!I50","v":"Select"}]
["Sar & Sanc.","SAR & Santions",null,"E. Sanction - Additional Comments ",{"$f":"'SAR & Sanc. (All)'!C53","v":0}]
[]
["Sch XIX","Cash Counterpart",null,"Number",{"$f":"'Schedule XIX'!D10","v":0}]
["Sch XIX","Cash Counterpart",null,"Name - Counterparty 1",{"$f":"'Schedule XIX'!C14","v":0}]
["Sch XIX","Cash Counterpart",null,"Name - Counterparty 2",{"$f":"'Schedule XIX'!C15","v":0}]
["Sch XIX","Cash Counterpart",null,"Name - Counterparty 3",{"$f":"'Schedule XIX'!C16","v":0}]
["Sch XIX","Cash Counterpart",null,"Name - Counterparty 4",{"$f":"'Schedule XIX'!C17","v":0}]
["Sch XIX","Cash Counterpart",null,"Name - Counterparty 5",{"$f":"'Schedule XIX'!C18","v":0}]
["Sch XIX","Cash Counterpart",null,"Name - Counterparty 6",{"$f":"'Schedule XIX'!C19","v":0}]
["Sch XIX","Cash Counterpart",null,"Name - Counterparty 7",{"$f":"'Schedule XIX'!C20","v":0}]
["Sch XIX","Cash Counterpart",null,"Name - Counterparty 8",{"$f":"'Schedule XIX'!C21","v":0}]
["Sch XIX","Cash Counterpart",null,"Name - Counterparty 9",{"$f":"'Schedule XIX'!C22","v":0}]
["Sch XIX","Cash Counterpart",null,"Name - Counterparty 10",{"$f":"'Schedule XIX'!C23","v":0}]
["Sch XIX","Cash Counterpart",null,"Name - Counterparty 11",{"$f":"'Schedule XIX'!C24","v":0}]
["Sch XIX","Cash Counterpart",null,"Name - Counterparty 12",{"$f":"'Schedule XIX'!C25","v":0}]
["Sch XIX","Cash Counterpart",null,"Name - Counterparty 13",{"$f":"'Schedule XIX'!C26","v":0}]
["Sch XIX","Cash Counterpart",null,"Name - Counterparty 14",{"$f":"'Schedule XIX'!C27","v":0}]
["Sch XIX","Cash Counterpart",null,"Name - Counterparty 15",{"$f":"'Schedule XIX'!C28","v":0}]
["Sch XIX","Cash Counterpart",null,"Name - Counterparty 16",{"$f":"'Schedule XIX'!C29","v":0}]
["Sch XIX","Cash Counterpart",null,"Name - Counterparty 17",{"$f":"'Schedule XIX'!C30","v":0}]
["Sch XIX","Cash Counterpart",null,"Name - Counterparty 18",{"$f":"'Schedule XIX'!C31","v":0}]
["Sch XIX","Cash Counterpart",null,"Name - Counterparty 19",{"$f":"'Schedule XIX'!C32","v":0}]
["Sch XIX","Cash Counterpart",null,"Name - Counterparty 20",{"$f":"'Schedule XIX'!C33","v":0}]
["Sch XIX","Cash Counterpart",null,"BSCR Rating - Counterparty 1",{"$f":"'Schedule XIX'!D14","v":"Select"}]
["Sch XIX","Cash Counterpart",null,"BSCR Rating - Counterparty 2",{"$f":"'Schedule XIX'!D15","v":"Select"}]
["Sch XIX","Cash Counterpart",null,"BSCR Rating - Counterparty 3",{"$f":"'Schedule XIX'!D16","v":"Select"}]
["Sch XIX","Cash Counterpart",null,"BSCR Rating - Counterparty 4",{"$f":"'Schedule XIX'!D17","v":"Select"}]
["Sch XIX","Cash Counterpart",null,"BSCR Rating - Counterparty 5",{"$f":"'Schedule XIX'!D18","v":"Select"}]
["Sch XIX","Cash Counterpart",null,"BSCR Rating - Counterparty 6",{"$f":"'Schedule XIX'!D19","v":"Select"}]
["Sch XIX","Cash Counterpart",null,"BSCR Rating - Counterparty 7",{"$f":"'Schedule XIX'!D20","v":"Select"}]
["Sch XIX","Cash Counterpart",null,"BSCR Rating - Counterparty 8",{"$f":"'Schedule XIX'!D21","v":"Select"}]
["Sch XIX","Cash Counterpart",null,"BSCR Rating - Counterparty 9",{"$f":"'Schedule XIX'!D22","v":"Select"}]
["Sch XIX","Cash Counterpart",null,"BSCR Rating - Counterparty 10",{"$f":"'Schedule XIX'!D23","v":"Select"}]
["Sch XIX","Cash Counterpart",null,"BSCR Rating - Counterparty 11",{"$f":"'Schedule XIX'!D24","v":"Select"}]
["Sch XIX","Cash Counterpart",null,"BSCR Rating - Counterparty 12",{"$f":"'Schedule XIX'!D25","v":"Select"}]
["Sch XIX","Cash Counterpart",null,"BSCR Rating - Counterparty 13",{"$f":"'Schedule XIX'!D26","v":"Select"}]
["Sch XIX","Cash Counterpart",null,"BSCR Rating - Counterparty 14",{"$f":"'Schedule XIX'!D27","v":"Select"}]
["Sch XIX","Cash Counterpart",null,"BSCR Rating - Counterparty 15",{"$f":"'Schedule XIX'!D28","v":"Select"}]
["Sch XIX","Cash Counterpart",null,"BSCR Rating - Counterparty 16",{"$f":"'Schedule XIX'!D29","v":"Select"}]
["Sch XIX","Cash Counterpart",null,"BSCR Rating - Counterparty 17",{"$f":"'Schedule XIX'!D30","v":"Select"}]
["Sch XIX","Cash Counterpart",null,"BSCR Rating - Counterparty 18",{"$f":"'Schedule XIX'!D31","v":"Select"}]
["Sch XIX","Cash Counterpart",null,"BSCR Rating - Counterparty 19",{"$f":"'Schedule XIX'!D32","v":"Select"}]
["Sch XIX","Cash Counterpart",null,"BSCR Rating - Counterparty 20",{"$f":"'Schedule XIX'!D33","v":"Select"}]
["Sch XIX","Cash Counterpart",null,"Counterparty Value 1",{"$f":"'Schedule XIX'!F14","v":0},null,null,null,null,null,null,null,{"$f":"'Schedule XIX'!H14","v":0}]
["Sch XIX","Cash Counterpart",null,"Counterparty Value 2",{"$f":"'Schedule XIX'!F15","v":0},null,null,null,null,null,null,null,{"$f":"'Schedule XIX'!H15","v":0}]
["Sch XIX","Cash Counterpart",null,"Counterparty Value 3",{"$f":"'Schedule XIX'!F16","v":0},null,null,null,null,null,null,null,{"$f":"'Schedule XIX'!H16","v":0}]
["Sch XIX","Cash Counterpart",null,"Counterparty Value 4",{"$f":"'Schedule XIX'!F17","v":0},null,null,null,null,null,null,null,{"$f":"'Schedule XIX'!H17","v":0}]
["Sch XIX","Cash Counterpart",null,"Counterparty Value 5",{"$f":"'Schedule XIX'!F18","v":0},null,null,null,null,null,null,null,{"$f":"'Schedule XIX'!H18","v":0}]
["Sch XIX","Cash Counterpart",null,"Counterparty Value 6",{"$f":"'Schedule XIX'!F19","v":0},null,null,null,null,null,null,null,{"$f":"'Schedule XIX'!H19","v":0}]
["Sch XIX","Cash Counterpart",null,"Counterparty Value 7",{"$f":"'Schedule XIX'!F20","v":0},null,null,null,null,null,null,null,{"$f":"'Schedule XIX'!H20","v":0}]
["Sch XIX","Cash Counterpart",null,"Counterparty Value 8",{"$f":"'Schedule XIX'!F21","v":0},null,null,null,null,null,null,null,{"$f":"'Schedule XIX'!H21","v":0}]
["Sch XIX","Cash Counterpart",null,"Counterparty Value 9",{"$f":"'Schedule XIX'!F22","v":0},null,null,null,null,null,null,null,{"$f":"'Schedule XIX'!H22","v":0}]
["Sch XIX","Cash Counterpart",null,"Counterparty Value 10",{"$f":"'Schedule XIX'!F23","v":0},null,null,null,null,null,null,null,{"$f":"'Schedule XIX'!H23","v":0}]
["Sch XIX","Cash Counterpart",null,"Counterparty Value 11",{"$f":"'Schedule XIX'!F24","v":0},null,null,null,null,null,null,null,{"$f":"'Schedule XIX'!H24","v":0}]
["Sch XIX","Cash Counterpart",null,"Counterparty Value 12",{"$f":"'Schedule XIX'!F25","v":0},null,null,null,null,null,null,null,{"$f":"'Schedule XIX'!H25","v":0}]
["Sch XIX","Cash Counterpart",null,"Counterparty Value 13",{"$f":"'Schedule XIX'!F26","v":0},null,null,null,null,null,null,null,{"$f":"'Schedule XIX'!H26","v":0}]
["Sch XIX","Cash Counterpart",null,"Counterparty Value 14",{"$f":"'Schedule XIX'!F27","v":0},null,null,null,null,null,null,null,{"$f":"'Schedule XIX'!H27","v":0}]
["Sch XIX","Cash Counterpart",null,"Counterparty Value 15",{"$f":"'Schedule XIX'!F28","v":0},null,null,null,null,null,null,null,{"$f":"'Schedule XIX'!H28","v":0}]
["Sch XIX","Cash Counterpart",null,"Counterparty Value 16",{"$f":"'Schedule XIX'!F29","v":0},null,null,null,null,null,null,null,{"$f":"'Schedule XIX'!H29","v":0}]
["Sch XIX","Cash Counterpart",null,"Counterparty Value 17",{"$f":"'Schedule XIX'!F30","v":0},null,null,null,null,null,null,null,{"$f":"'Schedule XIX'!H30","v":0}]
["Sch XIX","Cash Counterpart",null,"Counterparty Value 18",{"$f":"'Schedule XIX'!F31","v":0},null,null,null,null,null,null,null,{"$f":"'Schedule XIX'!H31","v":0}]
["Sch XIX","Cash Counterpart",null,"Counterparty Value 19",{"$f":"'Schedule XIX'!F32","v":0},null,null,null,null,null,null,null,{"$f":"'Schedule XIX'!H32","v":0}]
["Sch XIX","Cash Counterpart",null,"Counterparty Value 20",{"$f":"'Schedule XIX'!F33","v":0},null,null,null,null,null,null,null,{"$f":"'Schedule XIX'!H33","v":0}]
["Sch XIX","Cash Counterpart",null,"Counterparty Total",{"$f":"'Schedule XIX'!F54","v":0},null,null,null,null,null,null,null,{"$f":"'Schedule XIX'!H54","v":0}]
["Sch XIX","Cash Counterpart",null,"Exposure BSCR Rate 0",{"$f":"'Schedule XIX'!F57","v":0},null,null,null,null,null,null,null,{"$f":"'Schedule XIX'!H57","v":0}]
["Sch XIX","Cash Counterpart",null,"Exposure BSCR Rate 1",{"$f":"'Schedule XIX'!F58","v":0},null,null,null,null,null,null,null,{"$f":"'Schedule XIX'!H58","v":0}]
["Sch XIX","Cash Counterpart",null,"Exposure BSCR Rate 2",{"$f":"'Schedule XIX'!F59","v":0},null,null,null,null,null,null,null,{"$f":"'Schedule XIX'!H59","v":0}]
["Sch XIX","Cash Counterpart",null,"Exposure BSCR Rate 3",{"$f":"'Schedule XIX'!F60","v":0},null,null,null,null,null,null,null,{"$f":"'Schedule XIX'!H60","v":0}]
["Sch XIX","Cash Counterpart",null,"Exposure BSCR Rate 4",{"$f":"'Schedule XIX'!F61","v":0},null,null,null,null,null,null,null,{"$f":"'Schedule XIX'!H61","v":0}]
["Sch XIX","Cash Counterpart",null,"Exposure BSCR Rate 5",{"$f":"'Schedule XIX'!F62","v":0},null,null,null,null,null,null,null,{"$f":"'Schedule XIX'!H62","v":0}]
["Sch XIX","Cash Counterpart",null,"Exposure BSCR Rate 6",{"$f":"'Schedule XIX'!F63","v":0},null,null,null,null,null,null,null,{"$f":"'Schedule XIX'!H63","v":0}]
["Sch XIX","Cash Counterpart",null,"Exposure BSCR Rate 7",{"$f":"'Schedule XIX'!F64","v":0},null,null,null,null,null,null,null,{"$f":"'Schedule XIX'!H64","v":0}]
["Sch XIX","Cash Counterpart",null,"Exposure BSCR Rate 8",{"$f":"'Schedule XIX'!F65","v":0},null,null,null,null,null,null,null,{"$f":"'Schedule XIX'!H65","v":0}]
[]
["Sch XX","Currency Analysis",null,"Assets - USD",{"$f":"'Schedule XX'!D9","v":0},null,null,null,null,null,null,null,{"$f":"'Schedule XX'!L9","v":0}]
["Sch XX","Currency Analysis",null,"Assets - Euro",{"$f":"'Schedule XX'!D10","v":0},null,null,null,null,null,null,null,{"$f":"'Schedule XX'!L10","v":0}]
["Sch XX","Currency Analysis",null,"Assets - UK £",{"$f":"'Schedule XX'!D11","v":0},null,null,null,null,null,null,null,{"$f":"'Schedule XX'!L11","v":0}]
["Sch XX","Currency Analysis",null,"Assets - CDN",{"$f":"'Schedule XX'!D12","v":0},null,null,null,null,null,null,null,{"$f":"'Schedule XX'!L12","v":0}]
["Sch XX","Currency Analysis",null,"Assets - Japan Yen",{"$f":"'Schedule XX'!D13","v":0},null,null,null,null,null,null,null,{"$f":"'Schedule XX'!L13","v":0}]
["Sch XX","Currency Analysis",null,"Assets - Other 1",{"$f":"'Schedule XX'!D14","v":0},null,null,null,null,null,null,null,{"$f":"'Schedule XX'!L14","v":0}]
["Sch XX","Currency Analysis",null,"Assets - Other 2",{"$f":"'Schedule XX'!D15","v":0},null,null,null,null,null,null,null,{"$f":"'Schedule XX'!L15","v":0}]
["Sch XX","Currency Analysis",null,"Assets - Other 3",{"$f":"'Schedule XX'!D16","v":0},null,null,null,null,null,null,null,{"$f":"'Schedule XX'!L16","v":0}]
["Sch XX","Currency Analysis",null,"Assets - Other 4",{"$f":"'Schedule XX'!D17","v":0},null,null,null,null,null,null,null,{"$f":"'Schedule XX'!L17","v":0}]
["Sch XX","Currency Analysis",null,"Assets - Other 5",{"$f":"'Schedule XX'!D18","v":0},null,null,null,null,null,null,null,{"$f":"'Schedule XX'!L18","v":0}]
["Sch XX","Currency Analysis",null,"Assets - Other 6",{"$f":"'Schedule XX'!D19","v":0},null,null,null,null,null,null,null,{"$f":"'Schedule XX'!L19","v":0}]
["Sch XX","Currency Analysis",null,"Assets - Other 7",{"$f":"'Schedule XX'!D20","v":0},null,null,null,null,null,null,null,{"$f":"'Schedule XX'!L20","v":0}]
["Sch XX","Currency Analysis",null,"Assets - Other 8",{"$f":"'Schedule XX'!D21","v":0},null,null,null,null,null,null,null,{"$f":"'Schedule XX'!L21","v":0}]
["Sch XX","Currency Analysis",null,"Assets - Other 9",{"$f":"'Schedule XX'!D22","v":0},null,null,null,null,null,null,null,{"$f":"'Schedule XX'!L22","v":0}]
["Sch XX","Currency Analysis",null,"Assets - Other 10",{"$f":"'Schedule XX'!D23","v":0},null,null,null,null,null,null,null,{"$f":"'Schedule XX'!L23","v":0}]
["Sch XX","Currency Analysis",null,"Assets - Total",{"$f":"'Schedule XX'!D24","v":0},null,null,null,null,null,null,null,{"$f":"'Schedule XX'!L24","v":0}]
["Sch XX","Currency Analysis",null,"Hedge Assets - USD",{"$f":"'Schedule XX'!F9","v":0},null,null,null,null,null,null,null,{"$f":"'Schedule XX'!N9","v":0}]
["Sch XX","Currency Analysis",null,"Hedge Assets - Euro",{"$f":"'Schedule XX'!F10","v":0},null,null,null,null,null,null,null,{"$f":"'Schedule XX'!N10","v":0}]
["Sch XX","Currency Analysis",null,"Hedge Assets - UK £",{"$f":"'Schedule XX'!F11","v":0},null,null,null,null,null,null,null,{"$f":"'Schedule XX'!N11","v":0}]
["Sch XX","Currency Analysis",null,"Hedge Assets - CDN",{"$f":"'Schedule XX'!F12","v":0},null,null,null,null,null,null,null,{"$f":"'Schedule XX'!N12","v":0}]
["Sch XX","Currency Analysis",null,"Hedge Assets - Japan Yen",{"$f":"'Schedule XX'!F13","v":0},null,null,null,null,null,null,null,{"$f":"'Schedule XX'!N13","v":0}]
["Sch XX","Currency Analysis",null,"Hedge Assets - Other 1",{"$f":"'Schedule XX'!F14","v":0},null,null,null,null,null,null,null,{"$f":"'Schedule XX'!N14","v":0}]
["Sch XX","Currency Analysis",null,"Hedge Assets - Other 2",{"$f":"'Schedule XX'!F15","v":0},null,null,null,null,null,null,null,{"$f":"'Schedule XX'!N15","v":0}]
["Sch XX","Currency Analysis",null,"Hedge Assets - Other 3",{"$f":"'Schedule XX'!F16","v":0},null,null,null,null,null,null,null,{"$f":"'Schedule XX'!N16","v":0}]
["Sch XX","Currency Analysis",null,"Hedge Assets - Other 4",{"$f":"'Schedule XX'!F17","v":0},null,null,null,null,null,null,null,{"$f":"'Schedule XX'!N17","v":0}]
["Sch XX","Currency Analysis",null,"Hedge Assets - Other 5",{"$f":"'Schedule XX'!F18","v":0},null,null,null,null,null,null,null,{"$f":"'Schedule XX'!N18","v":0}]
["Sch XX","Currency Analysis",null,"Hedge Assets - Other 6",{"$f":"'Schedule XX'!F19","v":0},null,null,null,null,null,null,null,{"$f":"'Schedule XX'!N19","v":0}]
["Sch XX","Currency Analysis",null,"Hedge Assets - Other 7",{"$f":"'Schedule XX'!F20","v":0},null,null,null,null,null,null,null,{"$f":"'Schedule XX'!N20","v":0}]
["Sch XX","Currency Analysis",null,"Hedge Assets - Other 8",{"$f":"'Schedule XX'!F21","v":0},null,null,null,null,null,null,null,{"$f":"'Schedule XX'!N21","v":0}]
["Sch XX","Currency Analysis",null,"Hedge Assets - Other 9",{"$f":"'Schedule XX'!F22","v":0},null,null,null,null,null,null,null,{"$f":"'Schedule XX'!N22","v":0}]
["Sch XX","Currency Analysis",null,"Hedge Assets - Other 10",{"$f":"'Schedule XX'!F23","v":0},null,null,null,null,null,null,null,{"$f":"'Schedule XX'!N23","v":0}]
["Sch XX","Currency Analysis",null,"Hedge Assets - Total",{"$f":"'Schedule XX'!F24","v":0},null,null,null,null,null,null,null,{"$f":"'Schedule XX'!N24","v":0}]
["Sch XX","Currency Analysis",null,"Liab. - USD",{"$f":"'Schedule XX'!H9","v":0},null,null,null,null,null,null,null,{"$f":"'Schedule XX'!P9","v":0}]
["Sch XX","Currency Analysis",null,"Liab. - Euro",{"$f":"'Schedule XX'!H10","v":0},null,null,null,null,null,null,null,{"$f":"'Schedule XX'!P10","v":0}]
["Sch XX","Currency Analysis",null,"Liab. - UK £",{"$f":"'Schedule XX'!H11","v":0},null,null,null,null,null,null,null,{"$f":"'Schedule XX'!P11","v":0}]
["Sch XX","Currency Analysis",null,"Liab. - CDN",{"$f":"'Schedule XX'!H12","v":0},null,null,null,null,null,null,null,{"$f":"'Schedule XX'!P12","v":0}]
["Sch XX","Currency Analysis",null,"Liab. - Japan Yen",{"$f":"'Schedule XX'!H13","v":0},null,null,null,null,null,null,null,{"$f":"'Schedule XX'!P13","v":0}]
["Sch XX","Currency Analysis",null,"Liab. - Other 1",{"$f":"'Schedule XX'!H14","v":0},null,null,null,null,null,null,null,{"$f":"'Schedule XX'!P14","v":0}]
["Sch XX","Currency Analysis",null,"Liab. - Other 2",{"$f":"'Schedule XX'!H15","v":0},null,null,null,null,null,null,null,{"$f":"'Schedule XX'!P15","v":0}]
["Sch XX","Currency Analysis",null,"Liab. - Other 3",{"$f":"'Schedule XX'!H16","v":0},null,null,null,null,null,null,null,{"$f":"'Schedule XX'!P16","v":0}]
["Sch XX","Currency Analysis",null,"Liab. - Other 4",{"$f":"'Schedule XX'!H17","v":0},null,null,null,null,null,null,null,{"$f":"'Schedule XX'!P17","v":0}]
["Sch XX","Currency Analysis",null,"Liab. - Other 5",{"$f":"'Schedule XX'!H18","v":0},null,null,null,null,null,null,null,{"$f":"'Schedule XX'!P18","v":0}]
["Sch XX","Currency Analysis",null,"Liab. - Other 6",{"$f":"'Schedule XX'!H19","v":0},null,null,null,null,null,null,null,{"$f":"'Schedule XX'!P19","v":0}]
["Sch XX","Currency Analysis",null,"Liab. - Other 7",{"$f":"'Schedule XX'!H20","v":0},null,null,null,null,null,null,null,{"$f":"'Schedule XX'!P20","v":0}]
["Sch XX","Currency Analysis",null,"Liab. - Other 8",{"$f":"'Schedule XX'!H21","v":0},null,null,null,null,null,null,null,{"$f":"'Schedule XX'!P21","v":0}]
["Sch XX","Currency Analysis",null,"Liab. - Other 9",{"$f":"'Schedule XX'!H22","v":0},null,null,null,null,null,null,null,{"$f":"'Schedule XX'!P22","v":0}]
["Sch XX","Currency Analysis",null,"Liab. - Other 10",{"$f":"'Schedule XX'!H23","v":0},null,null,null,null,null,null,null,{"$f":"'Schedule XX'!P23","v":0}]
["Sch XX","Currency Analysis",null,"Liab. - Total",{"$f":"'Schedule XX'!H24","v":0},null,null,null,null,null,null,null,{"$f":"'Schedule XX'!P24","v":0}]
["Sch XX","Currency Analysis",null,"Hedge Liab. - USD",{"$f":"'Schedule XX'!J9","v":0},null,null,null,null,null,null,null,{"$f":"'Schedule XX'!R9","v":0}]
["Sch XX","Currency Analysis",null,"Hedge Liab. - Euro",{"$f":"'Schedule XX'!J10","v":0},null,null,null,null,null,null,null,{"$f":"'Schedule XX'!R10","v":0}]
["Sch XX","Currency Analysis",null,"Hedge Liab. - UK £",{"$f":"'Schedule XX'!J11","v":0},null,null,null,null,null,null,null,{"$f":"'Schedule XX'!R11","v":0}]
["Sch XX","Currency Analysis",null,"Hedge Liab. - CDN",{"$f":"'Schedule XX'!J12","v":0},null,null,null,null,null,null,null,{"$f":"'Schedule XX'!R12","v":0}]
["Sch XX","Currency Analysis",null,"Hedge Liab. - Japan Yen",{"$f":"'Schedule XX'!J13","v":0},null,null,null,null,null,null,null,{"$f":"'Schedule XX'!R13","v":0}]
["Sch XX","Currency Analysis",null,"Hedge Liab. - Other 1",{"$f":"'Schedule XX'!J14","v":0},null,null,null,null,null,null,null,{"$f":"'Schedule XX'!R14","v":0}]
["Sch XX","Currency Analysis",null,"Hedge Liab. - Other 2",{"$f":"'Schedule XX'!J15","v":0},null,null,null,null,null,null,null,{"$f":"'Schedule XX'!R15","v":0}]
["Sch XX","Currency Analysis",null,"Hedge Liab. - Other 3",{"$f":"'Schedule XX'!J16","v":0},null,null,null,null,null,null,null,{"$f":"'Schedule XX'!R16","v":0}]
["Sch XX","Currency Analysis",null,"Hedge Liab. - Other 4",{"$f":"'Schedule XX'!J17","v":0},null,null,null,null,null,null,null,{"$f":"'Schedule XX'!R17","v":0}]
["Sch XX","Currency Analysis",null,"Hedge Liab. - Other 5",{"$f":"'Schedule XX'!J18","v":0},null,null,null,null,null,null,null,{"$f":"'Schedule XX'!R18","v":0}]
["Sch XX","Currency Analysis",null,"Hedge Liab. - Other 6",{"$f":"'Schedule XX'!J19","v":0},null,null,null,null,null,null,null,{"$f":"'Schedule XX'!R19","v":0}]
["Sch XX","Currency Analysis",null,"Hedge Liab. - Other 7",{"$f":"'Schedule XX'!J20","v":0},null,null,null,null,null,null,null,{"$f":"'Schedule XX'!R20","v":0}]
["Sch XX","Currency Analysis",null,"Hedge Liab. - Other 8",{"$f":"'Schedule XX'!J21","v":0},null,null,null,null,null,null,null,{"$f":"'Schedule XX'!R21","v":0}]
["Sch XX","Currency Analysis",null,"Hedge Liab. - Other 9",{"$f":"'Schedule XX'!J22","v":0},null,null,null,null,null,null,null,{"$f":"'Schedule XX'!R22","v":0}]
["Sch XX","Currency Analysis",null,"Hedge Liab. - Other 10",{"$f":"'Schedule XX'!J23","v":0},null,null,null,null,null,null,null,{"$f":"'Schedule XX'!R23","v":0}]
["Sch XX","Currency Analysis",null,"Hedge Liab. - Total",{"$f":"'Schedule XX'!J24","v":0},null,null,null,null,null,null,null,{"$f":"'Schedule XX'!R24","v":0}]
["Sch XX","Currency Analysis",null,"Liabilities Prior Year 1",null,null,null,null,null,null,null,null,{"$f":"'Schedule XX'!L34","v":0}]
["Sch XX","Currency Analysis",null,"Liabilities Prior Year 2",null,null,null,null,null,null,null,null,{"$f":"'Schedule XX'!L35","v":0}]
["Sch XX","Currency Analysis",null,"Liabilities Prior Year 3",null,null,null,null,null,null,null,null,{"$f":"'Schedule XX'!L36","v":0}]
["Sch XX","Currency Analysis",null,"ECR Prior Year 1",null,null,null,null,null,null,null,null,{"$f":"'Schedule XX'!P34","v":0}]
["Sch XX","Currency Analysis",null,"ECR Prior Year 2",null,null,null,null,null,null,null,null,{"$f":"'Schedule XX'!P35","v":0}]
["Sch XX","Currency Analysis",null,"ECR Prior Year 3",null,null,null,null,null,null,null,null,{"$f":"'Schedule XX'!P36","v":0}]
[]
["Sch XXI","Inv Con Risk",null,"# of Exposures",{"$f":"'Schedule XXI'!J3","v":0}]
["Sch XXI","Inv Con Risk",null,"Name of Exposure - 1",{"$f":"'Schedule XXI'!C8","v":0}]
["Sch XXI","Inv Con Risk",null,"Name of Exposure - 2",{"$f":"'Schedule XXI'!C9","v":0}]
["Sch XXI","Inv Con Risk",null,"Name of Exposure - 3",{"$f":"'Schedule XXI'!C10","v":0}]
["Sch XXI","Inv Con Risk",null,"Name of Exposure - 4",{"$f":"'Schedule XXI'!C11","v":0}]
["Sch XXI","Inv Con Risk",null,"Name of Exposure - 5",{"$f":"'Schedule XXI'!C12","v":0}]
["Sch XXI","Inv Con Risk",null,"Name of Exposure - 6",{"$f":"'Schedule XXI'!C13","v":0}]
["Sch XXI","Inv Con Risk",null,"Name of Exposure - 7",{"$f":"'Schedule XXI'!C14","v":0}]
["Sch XXI","Inv Con Risk",null,"Name of Exposure - 8",{"$f":"'Schedule XXI'!C15","v":0}]
["Sch XXI","Inv Con Risk",null,"Name of Exposure - 9",{"$f":"'Schedule XXI'!C16","v":0}]
["Sch XXI","Inv Con Risk",null,"Name of Exposure - 10",{"$f":"'Schedule XXI'!C17","v":0}]
["Sch XXI","Inv Con Risk",null,"Name of Exposure - 11",{"$f":"'Schedule XXI'!C18","v":0}]
["Sch XXI","Inv Con Risk",null,"Name of Exposure - 12",{"$f":"'Schedule XXI'!C19","v":0}]
["Sch XXI","Inv Con Risk",null,"Name of Exposure - 13",{"$f":"'Schedule XXI'!C20","v":0}]
["Sch XXI","Inv Con Risk",null,"Name of Exposure - 14",{"$f":"'Schedule XXI'!C21","v":0}]
["Sch XXI","Inv Con Risk",null,"Name of Exposure - 15",{"$f":"'Schedule XXI'!C22","v":0}]
["Sch XXI","Inv Con Risk",null,"Name of Exposure - 16",{"$f":"'Schedule XXI'!C23","v":0}]
["Sch XXI","Inv Con Risk",null,"Name of Exposure - 17",{"$f":"'Schedule XXI'!C24","v":0}]
["Sch XXI","Inv Con Risk",null,"Name of Exposure - 18",{"$f":"'Schedule XXI'!C25","v":0}]
["Sch XXI","Inv Con Risk",null,"Name of Exposure - 19",{"$f":"'Schedule XXI'!C26","v":0}]
["Sch XXI","Inv Con Risk",null,"Name of Exposure - 20",{"$f":"'Schedule XXI'!C27","v":0}]
["Sch XXI","Inv Con Risk",null,"Name of Exposure - 21",{"$f":"'Schedule XXI'!C28","v":0}]
["Sch XXI","Inv Con Risk",null,"Name of Exposure - 22",{"$f":"'Schedule XXI'!C29","v":0}]
["Sch XXI","Inv Con Risk",null,"Name of Exposure - 23",{"$f":"'Schedule XXI'!C30","v":0}]
["Sch XXI","Inv Con Risk",null,"Name of Exposure - 24",{"$f":"'Schedule XXI'!C31","v":0}]
["Sch XXI","Inv Con Risk",null,"Name of Exposure - 25",{"$f":"'Schedule XXI'!C32","v":0}]
["Sch XXI","Inv Con Risk",null,"Name of Exposure - 26",{"$f":"'Schedule XXI'!C33","v":0}]
["Sch XXI","Inv Con Risk",null,"Name of Exposure - 27",{"$f":"'Schedule XXI'!C34","v":0}]
["Sch XXI","Inv Con Risk",null,"Name of Exposure - 28",{"$f":"'Schedule XXI'!C35","v":0}]
["Sch XXI","Inv Con Risk",null,"Name of Exposure - 29",{"$f":"'Schedule XXI'!C36","v":0}]
["Sch XXI","Inv Con Risk",null,"Name of Exposure - 30",{"$f":"'Schedule XXI'!C37","v":0}]
["Sch XXI","Inv Con Risk",null,"Name of Exposure - 31",{"$f":"'Schedule XXI'!C38","v":0}]
["Sch XXI","Inv Con Risk",null,"Name of Exposure - 32",{"$f":"'Schedule XXI'!C39","v":0}]
["Sch XXI","Inv Con Risk",null,"Name of Exposure - 33",{"$f":"'Schedule XXI'!C40","v":0}]
["Sch XXI","Inv Con Risk",null,"Name of Exposure - 34",{"$f":"'Schedule XXI'!C41","v":0}]
["Sch XXI","Inv Con Risk",null,"Name of Exposure - 35",{"$f":"'Schedule XXI'!C42","v":0}]
["Sch XXI","Inv Con Risk",null,"Name of Exposure - 36",{"$f":"'Schedule XXI'!C43","v":0}]
["Sch XXI","Inv Con Risk",null,"Name of Exposure - 37",{"$f":"'Schedule XXI'!C44","v":0}]
["Sch XXI","Inv Con Risk",null,"Name of Exposure - 38",{"$f":"'Schedule XXI'!C45","v":0}]
["Sch XXI","Inv Con Risk",null,"Name of Exposure - 39",{"$f":"'Schedule XXI'!C46","v":0}]
["Sch XXI","Inv Con Risk",null,"Name of Exposure - 40",{"$f":"'Schedule XXI'!C47","v":0}]
["Sch XXI","Inv Con Risk",null,"Name of Exposure - 41",{"$f":"'Schedule XXI'!C48","v":0}]
["Sch XXI","Inv Con Risk",null,"Name of Exposure - 42",{"$f":"'Schedule XXI'!C49","v":0}]
["Sch XXI","Inv Con Risk",null,"Name of Exposure - 43",{"$f":"'Schedule XXI'!C50","v":0}]
["Sch XXI","Inv Con Risk",null,"Name of Exposure - 44",{"$f":"'Schedule XXI'!C51","v":0}]
["Sch XXI","Inv Con Risk",null,"Name of Exposure - 45",{"$f":"'Schedule XXI'!C52","v":0}]
["Sch XXI","Inv Con Risk",null,"Name of Exposure - 46",{"$f":"'Schedule XXI'!C53","v":0}]
["Sch XXI","Inv Con Risk",null,"Name of Exposure - 47",{"$f":"'Schedule XXI'!C54","v":0}]
["Sch XXI","Inv Con Risk",null,"Name of Exposure - 48",{"$f":"'Schedule XXI'!C55","v":0}]
["Sch XXI","Inv Con Risk",null,"Name of Exposure - 49",{"$f":"'Schedule XXI'!C56","v":0}]
["Sch XXI","Inv Con Risk",null,"Name of Exposure - 50",{"$f":"'Schedule XXI'!C57","v":0}]
["Sch XXI","Inv Con Risk",null,"Asset Type - 1",{"$f":"'Schedule XXI'!E8","v":"Select"},null,null,null,null,null,null,null,{"$f":"'Schedule XXI'!J8","v":"Select"}]
["Sch XXI","Inv Con Risk",null,"Asset Type - 2",{"$f":"'Schedule XXI'!E9","v":"Select"},null,null,null,null,null,null,null,{"$f":"'Schedule XXI'!J9","v":"Select"}]
["Sch XXI","Inv Con Risk",null,"Asset Type - 3",{"$f":"'Schedule XXI'!E10","v":"Select"},null,null,null,null,null,null,null,{"$f":"'Schedule XXI'!J10","v":"Select"}]
["Sch XXI","Inv Con Risk",null,"Asset Type - 4",{"$f":"'Schedule XXI'!E11","v":"Select"},null,null,null,null,null,null,null,{"$f":"'Schedule XXI'!J11","v":"Select"}]
["Sch XXI","Inv Con Risk",null,"Asset Type - 5",{"$f":"'Schedule XXI'!E12","v":"Select"},null,null,null,null,null,null,null,{"$f":"'Schedule XXI'!J12","v":"Select"}]
["Sch XXI","Inv Con Risk",null,"Asset Type - 6",{"$f":"'Schedule XXI'!E13","v":"Select"},null,null,null,null,null,null,null,{"$f":"'Schedule XXI'!J13","v":"Select"}]
["Sch XXI","Inv Con Risk",null,"Asset Type - 7",{"$f":"'Schedule XXI'!E14","v":"Select"},null,null,null,null,null,null,null,{"$f":"'Schedule XXI'!J14","v":"Select"}]
["Sch XXI","Inv Con Risk",null,"Asset Type - 8",{"$f":"'Schedule XXI'!E15","v":"Select"},null,null,null,null,null,null,null,{"$f":"'Schedule XXI'!J15","v":"Select"}]
["Sch XXI","Inv Con Risk",null,"Asset Type - 9",{"$f":"'Schedule XXI'!E16","v":"Select"},null,null,null,null,null,null,null,{"$f":"'Schedule XXI'!J16","v":"Select"}]
["Sch XXI","Inv Con Risk",null,"Asset Type - 10",{"$f":"'Schedule XXI'!E17","v":"Select"},null,null,null,null,null,null,null,{"$f":"'Schedule XXI'!J17","v":"Select"}]
["Sch XXI","Inv Con Risk",null,"Asset Type - 11",{"$f":"'Schedule XXI'!E18","v":"Select"},null,null,null,null,null,null,null,{"$f":"'Schedule XXI'!J18","v":"Select"}]
["Sch XXI","Inv Con Risk",null,"Asset Type - 12",{"$f":"'Schedule XXI'!E19","v":"Select"},null,null,null,null,null,null,null,{"$f":"'Schedule XXI'!J19","v":"Select"}]
["Sch XXI","Inv Con Risk",null,"Asset Type - 13",{"$f":"'Schedule XXI'!E20","v":"Select"},null,null,null,null,null,null,null,{"$f":"'Schedule XXI'!J20","v":"Select"}]
["Sch XXI","Inv Con Risk",null,"Asset Type - 14",{"$f":"'Schedule XXI'!E21","v":"Select"},null,null,null,null,null,null,null,{"$f":"'Schedule XXI'!J21","v":"Select"}]
["Sch XXI","Inv Con Risk",null,"Asset Type - 15",{"$f":"'Schedule XXI'!E22","v":"Select"},null,null,null,null,null,null,null,{"$f":"'Schedule XXI'!J22","v":"Select"}]
["Sch XXI","Inv Con Risk",null,"Asset Type - 16",{"$f":"'Schedule XXI'!E23","v":"Select"},null,null,null,null,null,null,null,{"$f":"'Schedule XXI'!J23","v":"Select"}]
["Sch XXI","Inv Con Risk",null,"Asset Type - 17",{"$f":"'Schedule XXI'!E24","v":"Select"},null,null,null,null,null,null,null,{"$f":"'Schedule XXI'!J24","v":"Select"}]
["Sch XXI","Inv Con Risk",null,"Asset Type - 18",{"$f":"'Schedule XXI'!E25","v":"Select"},null,null,null,null,null,null,null,{"$f":"'Schedule XXI'!J25","v":"Select"}]
["Sch XXI","Inv Con Risk",null,"Asset Type - 19",{"$f":"'Schedule XXI'!E26","v":"Select"},null,null,null,null,null,null,null,{"$f":"'Schedule XXI'!J26","v":"Select"}]
["Sch XXI","Inv Con Risk",null,"Asset Type - 20",{"$f":"'Schedule XXI'!E27","v":"Select"},null,null,null,null,null,null,null,{"$f":"'Schedule XXI'!J27","v":"Select"}]
["Sch XXI","Inv Con Risk",null,"Asset Type - 21",{"$f":"'Schedule XXI'!E28","v":"Select"},null,null,null,null,null,null,null,{"$f":"'Schedule XXI'!J28","v":"Select"}]
["Sch XXI","Inv Con Risk",null,"Asset Type - 22",{"$f":"'Schedule XXI'!E29","v":"Select"},null,null,null,null,null,null,null,{"$f":"'Schedule XXI'!J29","v":"Select"}]
["Sch XXI","Inv Con Risk",null,"Asset Type - 23",{"$f":"'Schedule XXI'!E30","v":"Select"},null,null,null,null,null,null,null,{"$f":"'Schedule XXI'!J30","v":"Select"}]
["Sch XXI","Inv Con Risk",null,"Asset Type - 24",{"$f":"'Schedule XXI'!E31","v":"Select"},null,null,null,null,null,null,null,{"$f":"'Schedule XXI'!J31","v":"Select"}]
["Sch XXI","Inv Con Risk",null,"Asset Type - 25",{"$f":"'Schedule XXI'!E32","v":"Select"},null,null,null,null,null,null,null,{"$f":"'Schedule XXI'!J32","v":"Select"}]
["Sch XXI","Inv Con Risk",null,"Asset Type - 26",{"$f":"'Schedule XXI'!E33","v":"Select"},null,null,null,null,null,null,null,{"$f":"'Schedule XXI'!J33","v":"Select"}]
["Sch XXI","Inv Con Risk",null,"Asset Type - 27",{"$f":"'Schedule XXI'!E34","v":"Select"},null,null,null,null,null,null,null,{"$f":"'Schedule XXI'!J34","v":"Select"}]
["Sch XXI","Inv Con Risk",null,"Asset Type - 28",{"$f":"'Schedule XXI'!E35","v":"Select"},null,null,null,null,null,null,null,{"$f":"'Schedule XXI'!J35","v":"Select"}]
["Sch XXI","Inv Con Risk",null,"Asset Type - 29",{"$f":"'Schedule XXI'!E36","v":"Select"},null,null,null,null,null,null,null,{"$f":"'Schedule XXI'!J36","v":"Select"}]
["Sch XXI","Inv Con Risk",null,"Asset Type - 30",{"$f":"'Schedule XXI'!E37","v":"Select"},null,null,null,null,null,null,null,{"$f":"'Schedule XXI'!J37","v":"Select"}]
["Sch XXI","Inv Con Risk",null,"Asset Type - 31",{"$f":"'Schedule XXI'!E38","v":"Select"},null,null,null,null,null,null,null,{"$f":"'Schedule XXI'!J38","v":"Select"}]
["Sch XXI","Inv Con Risk",null,"Asset Type - 32",{"$f":"'Schedule XXI'!E39","v":"Select"},null,null,null,null,null,null,null,{"$f":"'Schedule XXI'!J39","v":"Select"}]
["Sch XXI","Inv Con Risk",null,"Asset Type - 33",{"$f":"'Schedule XXI'!E40","v":"Select"},null,null,null,null,null,null,null,{"$f":"'Schedule XXI'!J40","v":"Select"}]
["Sch XXI","Inv Con Risk",null,"Asset Type - 34",{"$f":"'Schedule XXI'!E41","v":"Select"},null,null,null,null,null,null,null,{"$f":"'Schedule XXI'!J41","v":"Select"}]
["Sch XXI","Inv Con Risk",null,"Asset Type - 35",{"$f":"'Schedule XXI'!E42","v":"Select"},null,null,null,null,null,null,null,{"$f":"'Schedule XXI'!J42","v":"Select"}]
["Sch XXI","Inv Con Risk",null,"Asset Type - 36",{"$f":"'Schedule XXI'!E43","v":"Select"},null,null,null,null,null,null,null,{"$f":"'Schedule XXI'!J43","v":"Select"}]
["Sch XXI","Inv Con Risk",null,"Asset Type - 37",{"$f":"'Schedule XXI'!E44","v":"Select"},null,null,null,null,null,null,null,{"$f":"'Schedule XXI'!J44","v":"Select"}]
["Sch XXI","Inv Con Risk",null,"Asset Type - 38",{"$f":"'Schedule XXI'!E45","v":"Select"},null,null,null,null,null,null,null,{"$f":"'Schedule XXI'!J45","v":"Select"}]
["Sch XXI","Inv Con Risk",null,"Asset Type - 39",{"$f":"'Schedule XXI'!E46","v":"Select"},null,null,null,null,null,null,null,{"$f":"'Schedule XXI'!J46","v":"Select"}]
["Sch XXI","Inv Con Risk",null,"Asset Type - 40",{"$f":"'Schedule XXI'!E47","v":"Select"},null,null,null,null,null,null,null,{"$f":"'Schedule XXI'!J47","v":"Select"}]
["Sch XXI","Inv Con Risk",null,"Asset Type - 41",{"$f":"'Schedule XXI'!E48","v":"Select"},null,null,null,null,null,null,null,{"$f":"'Schedule XXI'!J48","v":"Select"}]
["Sch XXI","Inv Con Risk",null,"Asset Type - 42",{"$f":"'Schedule XXI'!E49","v":"Select"},null,null,null,null,null,null,null,{"$f":"'Schedule XXI'!J49","v":"Select"}]
["Sch XXI","Inv Con Risk",null,"Asset Type - 43",{"$f":"'Schedule XXI'!E50","v":"Select"},null,null,null,null,null,null,null,{"$f":"'Schedule XXI'!J50","v":"Select"}]
["Sch XXI","Inv Con Risk",null,"Asset Type - 44",{"$f":"'Schedule XXI'!E51","v":"Select"},null,null,null,null,null,null,null,{"$f":"'Schedule XXI'!J51","v":"Select"}]
["Sch XXI","Inv Con Risk",null,"Asset Type - 45",{"$f":"'Schedule XXI'!E52","v":"Select"},null,null,null,null,null,null,null,{"$f":"'Schedule XXI'!J52","v":"Select"}]
["Sch XXI","Inv Con Risk",null,"Asset Type - 46",{"$f":"'Schedule XXI'!E53","v":"Select"},null,null,null,null,null,null,null,{"$f":"'Schedule XXI'!J53","v":"Select"}]
["Sch XXI","Inv Con Risk",null,"Asset Type - 47",{"$f":"'Schedule XXI'!E54","v":"Select"},null,null,null,null,null,null,null,{"$f":"'Schedule XXI'!J54","v":"Select"}]
["Sch XXI","Inv Con Risk",null,"Asset Type - 48",{"$f":"'Schedule XXI'!E55","v":"Select"},null,null,null,null,null,null,null,{"$f":"'Schedule XXI'!J55","v":"Select"}]
["Sch XXI","Inv Con Risk",null,"Asset Type - 49",{"$f":"'Schedule XXI'!E56","v":"Select"},null,null,null,null,null,null,null,{"$f":"'Schedule XXI'!J56","v":"Select"}]
["Sch XXI","Inv Con Risk",null,"Asset Type - 50",{"$f":"'Schedule XXI'!E57","v":"Select"},null,null,null,null,null,null,null,{"$f":"'Schedule XXI'!J57","v":"Select"}]
["Sch XXI","Inv Con Risk",null,"Bond Type - 1",{"$f":"'Schedule XXI'!F8","v":"Select"},null,null,null,null,null,null,null,{"$f":"'Schedule XXI'!K8","v":"Select"}]
["Sch XXI","Inv Con Risk",null,"Bond Type - 2",{"$f":"'Schedule XXI'!F9","v":"Select"},null,null,null,null,null,null,null,{"$f":"'Schedule XXI'!K9","v":"Select"}]
["Sch XXI","Inv Con Risk",null,"Bond Type - 3",{"$f":"'Schedule XXI'!F10","v":"Select"},null,null,null,null,null,null,null,{"$f":"'Schedule XXI'!K10","v":"Select"}]
["Sch XXI","Inv Con Risk",null,"Bond Type - 4",{"$f":"'Schedule XXI'!F11","v":"Select"},null,null,null,null,null,null,null,{"$f":"'Schedule XXI'!K11","v":"Select"}]
["Sch XXI","Inv Con Risk",null,"Bond Type - 5",{"$f":"'Schedule XXI'!F12","v":"Select"},null,null,null,null,null,null,null,{"$f":"'Schedule XXI'!K12","v":"Select"}]
["Sch XXI","Inv Con Risk",null,"Bond Type - 6",{"$f":"'Schedule XXI'!F13","v":"Select"},null,null,null,null,null,null,null,{"$f":"'Schedule XXI'!K13","v":"Select"}]
["Sch XXI","Inv Con Risk",null,"Bond Type - 7",{"$f":"'Schedule XXI'!F14","v":"Select"},null,null,null,null,null,null,null,{"$f":"'Schedule XXI'!K14","v":"Select"}]
["Sch XXI","Inv Con Risk",null,"Bond Type - 8",{"$f":"'Schedule XXI'!F15","v":"Select"},null,null,null,null,null,null,null,{"$f":"'Schedule XXI'!K15","v":"Select"}]
["Sch XXI","Inv Con Risk",null,"Bond Type - 9",{"$f":"'Schedule XXI'!F16","v":"Select"},null,null,null,null,null,null,null,{"$f":"'Schedule XXI'!K16","v":"Select"}]
["Sch XXI","Inv Con Risk",null,"Bond Type - 10",{"$f":"'Schedule XXI'!F17","v":"Select"},null,null,null,null,null,null,null,{"$f":"'Schedule XXI'!K17","v":"Select"}]
["Sch XXI","Inv Con Risk",null,"Bond Type - 11",{"$f":"'Schedule XXI'!F18","v":"Select"},null,null,null,null,null,null,null,{"$f":"'Schedule XXI'!K18","v":"Select"}]
["Sch XXI","Inv Con Risk",null,"Bond Type - 12",{"$f":"'Schedule XXI'!F19","v":"Select"},null,null,null,null,null,null,null,{"$f":"'Schedule XXI'!K19","v":"Select"}]
["Sch XXI","Inv Con Risk",null,"Bond Type - 13",{"$f":"'Schedule XXI'!F20","v":"Select"},null,null,null,null,null,null,null,{"$f":"'Schedule XXI'!K20","v":"Select"}]
["Sch XXI","Inv Con Risk",null,"Bond Type - 14",{"$f":"'Schedule XXI'!F21","v":"Select"},null,null,null,null,null,null,null,{"$f":"'Schedule XXI'!K21","v":"Select"}]
["Sch XXI","Inv Con Risk",null,"Bond Type - 15",{"$f":"'Schedule XXI'!F22","v":"Select"},null,null,null,null,null,null,null,{"$f":"'Schedule XXI'!K22","v":"Select"}]
["Sch XXI","Inv Con Risk",null,"Bond Type - 16",{"$f":"'Schedule XXI'!F23","v":"Select"},null,null,null,null,null,null,null,{"$f":"'Schedule XXI'!K23","v":"Select"}]
["Sch XXI","Inv Con Risk",null,"Bond Type - 17",{"$f":"'Schedule XXI'!F24","v":"Select"},null,null,null,null,null,null,null,{"$f":"'Schedule XXI'!K24","v":"Select"}]
["Sch XXI","Inv Con Risk",null,"Bond Type - 18",{"$f":"'Schedule XXI'!F25","v":"Select"},null,null,null,null,null,null,null,{"$f":"'Schedule XXI'!K25","v":"Select"}]
["Sch XXI","Inv Con Risk",null,"Bond Type - 19",{"$f":"'Schedule XXI'!F26","v":"Select"},null,null,null,null,null,null,null,{"$f":"'Schedule XXI'!K26","v":"Select"}]
["Sch XXI","Inv Con Risk",null,"Bond Type - 20",{"$f":"'Schedule XXI'!F27","v":"Select"},null,null,null,null,null,null,null,{"$f":"'Schedule XXI'!K27","v":"Select"}]
["Sch XXI","Inv Con Risk",null,"Bond Type - 21",{"$f":"'Schedule XXI'!F28","v":"Select"},null,null,null,null,null,null,null,{"$f":"'Schedule XXI'!K28","v":"Select"}]
["Sch XXI","Inv Con Risk",null,"Bond Type - 22",{"$f":"'Schedule XXI'!F29","v":"Select"},null,null,null,null,null,null,null,{"$f":"'Schedule XXI'!K29","v":"Select"}]
["Sch XXI","Inv Con Risk",null,"Bond Type - 23",{"$f":"'Schedule XXI'!F30","v":"Select"},null,null,null,null,null,null,null,{"$f":"'Schedule XXI'!K30","v":"Select"}]
["Sch XXI","Inv Con Risk",null,"Bond Type - 24",{"$f":"'Schedule XXI'!F31","v":"Select"},null,null,null,null,null,null,null,{"$f":"'Schedule XXI'!K31","v":"Select"}]
["Sch XXI","Inv Con Risk",null,"Bond Type - 25",{"$f":"'Schedule XXI'!F32","v":"Select"},null,null,null,null,null,null,null,{"$f":"'Schedule XXI'!K32","v":"Select"}]
["Sch XXI","Inv Con Risk",null,"Bond Type - 26",{"$f":"'Schedule XXI'!F33","v":"Select"},null,null,null,null,null,null,null,{"$f":"'Schedule XXI'!K33","v":"Select"}]
["Sch XXI","Inv Con Risk",null,"Bond Type - 27",{"$f":"'Schedule XXI'!F34","v":"Select"},null,null,null,null,null,null,null,{"$f":"'Schedule XXI'!K34","v":"Select"}]
["Sch XXI","Inv Con Risk",null,"Bond Type - 28",{"$f":"'Schedule XXI'!F35","v":"Select"},null,null,null,null,null,null,null,{"$f":"'Schedule XXI'!K35","v":"Select"}]
["Sch XXI","Inv Con Risk",null,"Bond Type - 29",{"$f":"'Schedule XXI'!F36","v":"Select"},null,null,null,null,null,null,null,{"$f":"'Schedule XXI'!K36","v":"Select"}]
["Sch XXI","Inv Con Risk",null,"Bond Type - 30",{"$f":"'Schedule XXI'!F37","v":"Select"},null,null,null,null,null,null,null,{"$f":"'Schedule XXI'!K37","v":"Select"}]
["Sch XXI","Inv Con Risk",null,"Bond Type - 31",{"$f":"'Schedule XXI'!F38","v":"Select"},null,null,null,null,null,null,null,{"$f":"'Schedule XXI'!K38","v":"Select"}]
["Sch XXI","Inv Con Risk",null,"Bond Type - 32",{"$f":"'Schedule XXI'!F39","v":"Select"},null,null,null,null,null,null,null,{"$f":"'Schedule XXI'!K39","v":"Select"}]
["Sch XXI","Inv Con Risk",null,"Bond Type - 33",{"$f":"'Schedule XXI'!F40","v":"Select"},null,null,null,null,null,null,null,{"$f":"'Schedule XXI'!K40","v":"Select"}]
["Sch XXI","Inv Con Risk",null,"Bond Type - 34",{"$f":"'Schedule XXI'!F41","v":"Select"},null,null,null,null,null,null,null,{"$f":"'Schedule XXI'!K41","v":"Select"}]
["Sch XXI","Inv Con Risk",null,"Bond Type - 35",{"$f":"'Schedule XXI'!F42","v":"Select"},null,null,null,null,null,null,null,{"$f":"'Schedule XXI'!K42","v":"Select"}]
["Sch XXI","Inv Con Risk",null,"Bond Type - 36",{"$f":"'Schedule XXI'!F43","v":"Select"},null,null,null,null,null,null,null,{"$f":"'Schedule XXI'!K43","v":"Select"}]
["Sch XXI","Inv Con Risk",null,"Bond Type - 37",{"$f":"'Schedule XXI'!F44","v":"Select"},null,null,null,null,null,null,null,{"$f":"'Schedule XXI'!K44","v":"Select"}]
["Sch XXI","Inv Con Risk",null,"Bond Type - 38",{"$f":"'Schedule XXI'!F45","v":"Select"},null,null,null,null,null,null,null,{"$f":"'Schedule XXI'!K45","v":"Select"}]
["Sch XXI","Inv Con Risk",null,"Bond Type - 39",{"$f":"'Schedule XXI'!F46","v":"Select"},null,null,null,null,null,null,null,{"$f":"'Schedule XXI'!K46","v":"Select"}]
["Sch XXI","Inv Con Risk",null,"Bond Type - 40",{"$f":"'Schedule XXI'!F47","v":"Select"},null,null,null,null,null,null,null,{"$f":"'Schedule XXI'!K47","v":"Select"}]
["Sch XXI","Inv Con Risk",null,"Bond Type - 41",{"$f":"'Schedule XXI'!F48","v":"Select"},null,null,null,null,null,null,null,{"$f":"'Schedule XXI'!K48","v":"Select"}]
["Sch XXI","Inv Con Risk",null,"Bond Type - 42",{"$f":"'Schedule XXI'!F49","v":"Select"},null,null,null,null,null,null,null,{"$f":"'Schedule XXI'!K49","v":"Select"}]
["Sch XXI","Inv Con Risk",null,"Bond Type - 43",{"$f":"'Schedule XXI'!F50","v":"Select"},null,null,null,null,null,null,null,{"$f":"'Schedule XXI'!K50","v":"Select"}]
["Sch XXI","Inv Con Risk",null,"Bond Type - 44",{"$f":"'Schedule XXI'!F51","v":"Select"},null,null,null,null,null,null,null,{"$f":"'Schedule XXI'!K51","v":"Select"}]
["Sch XXI","Inv Con Risk",null,"Bond Type - 45",{"$f":"'Schedule XXI'!F52","v":"Select"},null,null,null,null,null,null,null,{"$f":"'Schedule XXI'!K52","v":"Select"}]
["Sch XXI","Inv Con Risk",null,"Bond Type - 46",{"$f":"'Schedule XXI'!F53","v":"Select"},null,null,null,null,null,null,null,{"$f":"'Schedule XXI'!K53","v":"Select"}]
["Sch XXI","Inv Con Risk",null,"Bond Type - 47",{"$f":"'Schedule XXI'!F54","v":"Select"},null,null,null,null,null,null,null,{"$f":"'Schedule XXI'!K54","v":"Select"}]
["Sch XXI","Inv Con Risk",null,"Bond Type - 48",{"$f":"'Schedule XXI'!F55","v":"Select"},null,null,null,null,null,null,null,{"$f":"'Schedule XXI'!K55","v":"Select"}]
["Sch XXI","Inv Con Risk",null,"Bond Type - 49",{"$f":"'Schedule XXI'!F56","v":"Select"},null,null,null,null,null,null,null,{"$f":"'Schedule XXI'!K56","v":"Select"}]
["Sch XXI","Inv Con Risk",null,"Bond Type - 50",{"$f":"'Schedule XXI'!F57","v":"Select"},null,null,null,null,null,null,null,{"$f":"'Schedule XXI'!K57","v":"Select"}]
["Sch XXI","Inv Con Risk",null,"BSCR Rating - 1",{"$f":"'Schedule XXI'!G8","v":"Select"},null,null,null,null,null,null,null,{"$f":"'Schedule XXI'!L8","v":"Select"}]
["Sch XXI","Inv Con Risk",null,"BSCR Rating - 2",{"$f":"'Schedule XXI'!G9","v":"Select"},null,null,null,null,null,null,null,{"$f":"'Schedule XXI'!L9","v":"Select"}]
["Sch XXI","Inv Con Risk",null,"BSCR Rating - 3",{"$f":"'Schedule XXI'!G10","v":"Select"},null,null,null,null,null,null,null,{"$f":"'Schedule XXI'!L10","v":"Select"}]
["Sch XXI","Inv Con Risk",null,"BSCR Rating - 4",{"$f":"'Schedule XXI'!G11","v":"Select"},null,null,null,null,null,null,null,{"$f":"'Schedule XXI'!L11","v":"Select"}]
["Sch XXI","Inv Con Risk",null,"BSCR Rating - 5",{"$f":"'Schedule XXI'!G12","v":"Select"},null,null,null,null,null,null,null,{"$f":"'Schedule XXI'!L12","v":"Select"}]
["Sch XXI","Inv Con Risk",null,"BSCR Rating - 6",{"$f":"'Schedule XXI'!G13","v":"Select"},null,null,null,null,null,null,null,{"$f":"'Schedule XXI'!L13","v":"Select"}]
["Sch XXI","Inv Con Risk",null,"BSCR Rating - 7",{"$f":"'Schedule XXI'!G14","v":"Select"},null,null,null,null,null,null,null,{"$f":"'Schedule XXI'!L14","v":"Select"}]
["Sch XXI","Inv Con Risk",null,"BSCR Rating - 8",{"$f":"'Schedule XXI'!G15","v":"Select"},null,null,null,null,null,null,null,{"$f":"'Schedule XXI'!L15","v":"Select"}]
["Sch XXI","Inv Con Risk",null,"BSCR Rating - 9",{"$f":"'Schedule XXI'!G16","v":"Select"},null,null,null,null,null,null,null,{"$f":"'Schedule XXI'!L16","v":"Select"}]
["Sch XXI","Inv Con Risk",null,"BSCR Rating - 10",{"$f":"'Schedule XXI'!G17","v":"Select"},null,null,null,null,null,null,null,{"$f":"'Schedule XXI'!L17","v":"Select"}]
["Sch XXI","Inv Con Risk",null,"BSCR Rating - 11",{"$f":"'Schedule XXI'!G18","v":"Select"},null,null,null,null,null,null,null,{"$f":"'Schedule XXI'!L18","v":"Select"}]
["Sch XXI","Inv Con Risk",null,"BSCR Rating - 12",{"$f":"'Schedule XXI'!G19","v":"Select"},null,null,null,null,null,null,null,{"$f":"'Schedule XXI'!L19","v":"Select"}]
["Sch XXI","Inv Con Risk",null,"BSCR Rating - 13",{"$f":"'Schedule XXI'!G20","v":"Select"},null,null,null,null,null,null,null,{"$f":"'Schedule XXI'!L20","v":"Select"}]
["Sch XXI","Inv Con Risk",null,"BSCR Rating - 14",{"$f":"'Schedule XXI'!G21","v":"Select"},null,null,null,null,null,null,null,{"$f":"'Schedule XXI'!L21","v":"Select"}]
["Sch XXI","Inv Con Risk",null,"BSCR Rating - 15",{"$f":"'Schedule XXI'!G22","v":"Select"},null,null,null,null,null,null,null,{"$f":"'Schedule XXI'!L22","v":"Select"}]
["Sch XXI","Inv Con Risk",null,"BSCR Rating - 16",{"$f":"'Schedule XXI'!G23","v":"Select"},null,null,null,null,null,null,null,{"$f":"'Schedule XXI'!L23","v":"Select"}]
["Sch XXI","Inv Con Risk",null,"BSCR Rating - 17",{"$f":"'Schedule XXI'!G24","v":"Select"},null,null,null,null,null,null,null,{"$f":"'Schedule XXI'!L24","v":"Select"}]
["Sch XXI","Inv Con Risk",null,"BSCR Rating - 18",{"$f":"'Schedule XXI'!G25","v":"Select"},null,null,null,null,null,null,null,{"$f":"'Schedule XXI'!L25","v":"Select"}]
["Sch XXI","Inv Con Risk",null,"BSCR Rating - 19",{"$f":"'Schedule XXI'!G26","v":"Select"},null,null,null,null,null,null,null,{"$f":"'Schedule XXI'!L26","v":"Select"}]
["Sch XXI","Inv Con Risk",null,"BSCR Rating - 20",{"$f":"'Schedule XXI'!G27","v":"Select"},null,null,null,null,null,null,null,{"$f":"'Schedule XXI'!L27","v":"Select"}]
["Sch XXI","Inv Con Risk",null,"BSCR Rating - 21",{"$f":"'Schedule XXI'!G28","v":"Select"},null,null,null,null,null,null,null,{"$f":"'Schedule XXI'!L28","v":"Select"}]
["Sch XXI","Inv Con Risk",null,"BSCR Rating - 22",{"$f":"'Schedule XXI'!G29","v":"Select"},null,null,null,null,null,null,null,{"$f":"'Schedule XXI'!L29","v":"Select"}]
["Sch XXI","Inv Con Risk",null,"BSCR Rating - 23",{"$f":"'Schedule XXI'!G30","v":"Select"},null,null,null,null,null,null,null,{"$f":"'Schedule XXI'!L30","v":"Select"}]
["Sch XXI","Inv Con Risk",null,"BSCR Rating - 24",{"$f":"'Schedule XXI'!G31","v":"Select"},null,null,null,null,null,null,null,{"$f":"'Schedule XXI'!L31","v":"Select"}]
["Sch XXI","Inv Con Risk",null,"BSCR Rating - 25",{"$f":"'Schedule XXI'!G32","v":"Select"},null,null,null,null,null,null,null,{"$f":"'Schedule XXI'!L32","v":"Select"}]
["Sch XXI","Inv Con Risk",null,"BSCR Rating - 26",{"$f":"'Schedule XXI'!G33","v":"Select"},null,null,null,null,null,null,null,{"$f":"'Schedule XXI'!L33","v":"Select"}]
["Sch XXI","Inv Con Risk",null,"BSCR Rating - 27",{"$f":"'Schedule XXI'!G34","v":"Select"},null,null,null,null,null,null,null,{"$f":"'Schedule XXI'!L34","v":"Select"}]
["Sch XXI","Inv Con Risk",null,"BSCR Rating - 28",{"$f":"'Schedule XXI'!G35","v":"Select"},null,null,null,null,null,null,null,{"$f":"'Schedule XXI'!L35","v":"Select"}]
["Sch XXI","Inv Con Risk",null,"BSCR Rating - 29",{"$f":"'Schedule XXI'!G36","v":"Select"},null,null,null,null,null,null,null,{"$f":"'Schedule XXI'!L36","v":"Select"}]
["Sch XXI","Inv Con Risk",null,"BSCR Rating - 30",{"$f":"'Schedule XXI'!G37","v":"Select"},null,null,null,null,null,null,null,{"$f":"'Schedule XXI'!L37","v":"Select"}]
["Sch XXI","Inv Con Risk",null,"BSCR Rating - 31",{"$f":"'Schedule XXI'!G38","v":"Select"},null,null,null,null,null,null,null,{"$f":"'Schedule XXI'!L38","v":"Select"}]
["Sch XXI","Inv Con Risk",null,"BSCR Rating - 32",{"$f":"'Schedule XXI'!G39","v":"Select"},null,null,null,null,null,null,null,{"$f":"'Schedule XXI'!L39","v":"Select"}]
["Sch XXI","Inv Con Risk",null,"BSCR Rating - 33",{"$f":"'Schedule XXI'!G40","v":"Select"},null,null,null,null,null,null,null,{"$f":"'Schedule XXI'!L40","v":"Select"}]
["Sch XXI","Inv Con Risk",null,"BSCR Rating - 34",{"$f":"'Schedule XXI'!G41","v":"Select"},null,null,null,null,null,null,null,{"$f":"'Schedule XXI'!L41","v":"Select"}]
["Sch XXI","Inv Con Risk",null,"BSCR Rating - 35",{"$f":"'Schedule XXI'!G42","v":"Select"},null,null,null,null,null,null,null,{"$f":"'Schedule XXI'!L42","v":"Select"}]
["Sch XXI","Inv Con Risk",null,"BSCR Rating - 36",{"$f":"'Schedule XXI'!G43","v":"Select"},null,null,null,null,null,null,null,{"$f":"'Schedule XXI'!L43","v":"Select"}]
["Sch XXI","Inv Con Risk",null,"BSCR Rating - 37",{"$f":"'Schedule XXI'!G44","v":"Select"},null,null,null,null,null,null,null,{"$f":"'Schedule XXI'!L44","v":"Select"}]
["Sch XXI","Inv Con Risk",null,"BSCR Rating - 38",{"$f":"'Schedule XXI'!G45","v":"Select"},null,null,null,null,null,null,null,{"$f":"'Schedule XXI'!L45","v":"Select"}]
["Sch XXI","Inv Con Risk",null,"BSCR Rating - 39",{"$f":"'Schedule XXI'!G46","v":"Select"},null,null,null,null,null,null,null,{"$f":"'Schedule XXI'!L46","v":"Select"}]
["Sch XXI","Inv Con Risk",null,"BSCR Rating - 40",{"$f":"'Schedule XXI'!G47","v":"Select"},null,null,null,null,null,null,null,{"$f":"'Schedule XXI'!L47","v":"Select"}]
["Sch XXI","Inv Con Risk",null,"BSCR Rating - 41",{"$f":"'Schedule XXI'!G48","v":"Select"},null,null,null,null,null,null,null,{"$f":"'Schedule XXI'!L48","v":"Select"}]
["Sch XXI","Inv Con Risk",null,"BSCR Rating - 42",{"$f":"'Schedule XXI'!G49","v":"Select"},null,null,null,null,null,null,null,{"$f":"'Schedule XXI'!L49","v":"Select"}]
["Sch XXI","Inv Con Risk",null,"BSCR Rating - 43",{"$f":"'Schedule XXI'!G50","v":"Select"},null,null,null,null,null,null,null,{"$f":"'Schedule XXI'!L50","v":"Select"}]
["Sch XXI","Inv Con Risk",null,"BSCR Rating - 44",{"$f":"'Schedule XXI'!G51","v":"Select"},null,null,null,null,null,null,null,{"$f":"'Schedule XXI'!L51","v":"Select"}]
["Sch XXI","Inv Con Risk",null,"BSCR Rating - 45",{"$f":"'Schedule XXI'!G52","v":"Select"},null,null,null,null,null,null,null,{"$f":"'Schedule XXI'!L52","v":"Select"}]
["Sch XXI","Inv Con Risk",null,"BSCR Rating - 46",{"$f":"'Schedule XXI'!G53","v":"Select"},null,null,null,null,null,null,null,{"$f":"'Schedule XXI'!L53","v":"Select"}]
["Sch XXI","Inv Con Risk",null,"BSCR Rating - 47",{"$f":"'Schedule XXI'!G54","v":"Select"},null,null,null,null,null,null,null,{"$f":"'Schedule XXI'!L54","v":"Select"}]
["Sch XXI","Inv Con Risk",null,"BSCR Rating - 48",{"$f":"'Schedule XXI'!G55","v":"Select"},null,null,null,null,null,null,null,{"$f":"'Schedule XXI'!L55","v":"Select"}]
["Sch XXI","Inv Con Risk",null,"BSCR Rating - 49",{"$f":"'Schedule XXI'!G56","v":"Select"},null,null,null,null,null,null,null,{"$f":"'Schedule XXI'!L56","v":"Select"}]
["Sch XXI","Inv Con Risk",null,"BSCR Rating - 50",{"$f":"'Schedule XXI'!G57","v":"Select"},null,null,null,null,null,null,null,{"$f":"'Schedule XXI'!L57","v":"Select"}]
["Sch XXI","Inv Con Risk",null,"Asset Value - 1",{"$f":"'Schedule XXI'!H8","v":0},null,null,null,null,null,null,null,{"$f":"'Schedule XXI'!M8","v":0}]
["Sch XXI","Inv Con Risk",null,"Asset Value - 2",{"$f":"'Schedule XXI'!H9","v":0},null,null,null,null,null,null,null,{"$f":"'Schedule XXI'!M9","v":0}]
["Sch XXI","Inv Con Risk",null,"Asset Value - 3",{"$f":"'Schedule XXI'!H10","v":0},null,null,null,null,null,null,null,{"$f":"'Schedule XXI'!M10","v":0}]
["Sch XXI","Inv Con Risk",null,"Asset Value - 4",{"$f":"'Schedule XXI'!H11","v":0},null,null,null,null,null,null,null,{"$f":"'Schedule XXI'!M11","v":0}]
["Sch XXI","Inv Con Risk",null,"Asset Value - 5",{"$f":"'Schedule XXI'!H12","v":0},null,null,null,null,null,null,null,{"$f":"'Schedule XXI'!M12","v":0}]
["Sch XXI","Inv Con Risk",null,"Asset Value - 6",{"$f":"'Schedule XXI'!H13","v":0},null,null,null,null,null,null,null,{"$f":"'Schedule XXI'!M13","v":0}]
["Sch XXI","Inv Con Risk",null,"Asset Value - 7",{"$f":"'Schedule XXI'!H14","v":0},null,null,null,null,null,null,null,{"$f":"'Schedule XXI'!M14","v":0}]
["Sch XXI","Inv Con Risk",null,"Asset Value - 8",{"$f":"'Schedule XXI'!H15","v":0},null,null,null,null,null,null,null,{"$f":"'Schedule XXI'!M15","v":0}]
["Sch XXI","Inv Con Risk",null,"Asset Value - 9",{"$f":"'Schedule XXI'!H16","v":0},null,null,null,null,null,null,null,{"$f":"'Schedule XXI'!M16","v":0}]
["Sch XXI","Inv Con Risk",null,"Asset Value - 10",{"$f":"'Schedule XXI'!H17","v":0},null,null,null,null,null,null,null,{"$f":"'Schedule XXI'!M17","v":0}]
["Sch XXI","Inv Con Risk",null,"Asset Value - 11",{"$f":"'Schedule XXI'!H18","v":0},null,null,null,null,null,null,null,{"$f":"'Schedule XXI'!M18","v":0}]
["Sch XXI","Inv Con Risk",null,"Asset Value - 12",{"$f":"'Schedule XXI'!H19","v":0},null,null,null,null,null,null,null,{"$f":"'Schedule XXI'!M19","v":0}]
["Sch XXI","Inv Con Risk",null,"Asset Value - 13",{"$f":"'Schedule XXI'!H20","v":0},null,null,null,null,null,null,null,{"$f":"'Schedule XXI'!M20","v":0}]
["Sch XXI","Inv Con Risk",null,"Asset Value - 14",{"$f":"'Schedule XXI'!H21","v":0},null,null,null,null,null,null,null,{"$f":"'Schedule XXI'!M21","v":0}]
["Sch XXI","Inv Con Risk",null,"Asset Value - 15",{"$f":"'Schedule XXI'!H22","v":0},null,null,null,null,null,null,null,{"$f":"'Schedule XXI'!M22","v":0}]
["Sch XXI","Inv Con Risk",null,"Asset Value - 16",{"$f":"'Schedule XXI'!H23","v":0},null,null,null,null,null,null,null,{"$f":"'Schedule XXI'!M23","v":0}]
["Sch XXI","Inv Con Risk",null,"Asset Value - 17",{"$f":"'Schedule XXI'!H24","v":0},null,null,null,null,null,null,null,{"$f":"'Schedule XXI'!M24","v":0}]
["Sch XXI","Inv Con Risk",null,"Asset Value - 18",{"$f":"'Schedule XXI'!H25","v":0},null,null,null,null,null,null,null,{"$f":"'Schedule XXI'!M25","v":0}]
["Sch XXI","Inv Con Risk",null,"Asset Value - 19",{"$f":"'Schedule XXI'!H26","v":0},null,null,null,null,null,null,null,{"$f":"'Schedule XXI'!M26","v":0}]
["Sch XXI","Inv Con Risk",null,"Asset Value - 20",{"$f":"'Schedule XXI'!H27","v":0},null,null,null,null,null,null,null,{"$f":"'Schedule XXI'!M27","v":0}]
["Sch XXI","Inv Con Risk",null,"Asset Value - 21",{"$f":"'Schedule XXI'!H28","v":0},null,null,null,null,null,null,null,{"$f":"'Schedule XXI'!M28","v":0}]
["Sch XXI","Inv Con Risk",null,"Asset Value - 22",{"$f":"'Schedule XXI'!H29","v":0},null,null,null,null,null,null,null,{"$f":"'Schedule XXI'!M29","v":0}]
["Sch XXI","Inv Con Risk",null,"Asset Value - 23",{"$f":"'Schedule XXI'!H30","v":0},null,null,null,null,null,null,null,{"$f":"'Schedule XXI'!M30","v":0}]
["Sch XXI","Inv Con Risk",null,"Asset Value - 24",{"$f":"'Schedule XXI'!H31","v":0},null,null,null,null,null,null,null,{"$f":"'Schedule XXI'!M31","v":0}]
["Sch XXI","Inv Con Risk",null,"Asset Value - 25",{"$f":"'Schedule XXI'!H32","v":0},null,null,null,null,null,null,null,{"$f":"'Schedule XXI'!M32","v":0}]
["Sch XXI","Inv Con Risk",null,"Asset Value - 26",{"$f":"'Schedule XXI'!H33","v":0},null,null,null,null,null,null,null,{"$f":"'Schedule XXI'!M33","v":0}]
["Sch XXI","Inv Con Risk",null,"Asset Value - 27",{"$f":"'Schedule XXI'!H34","v":0},null,null,null,null,null,null,null,{"$f":"'Schedule XXI'!M34","v":0}]
["Sch XXI","Inv Con Risk",null,"Asset Value - 28",{"$f":"'Schedule XXI'!H35","v":0},null,null,null,null,null,null,null,{"$f":"'Schedule XXI'!M35","v":0}]
["Sch XXI","Inv Con Risk",null,"Asset Value - 29",{"$f":"'Schedule XXI'!H36","v":0},null,null,null,null,null,null,null,{"$f":"'Schedule XXI'!M36","v":0}]
["Sch XXI","Inv Con Risk",null,"Asset Value - 30",{"$f":"'Schedule XXI'!H37","v":0},null,null,null,null,null,null,null,{"$f":"'Schedule XXI'!M37","v":0}]
["Sch XXI","Inv Con Risk",null,"Asset Value - 31",{"$f":"'Schedule XXI'!H38","v":0},null,null,null,null,null,null,null,{"$f":"'Schedule XXI'!M38","v":0}]
["Sch XXI","Inv Con Risk",null,"Asset Value - 32",{"$f":"'Schedule XXI'!H39","v":0},null,null,null,null,null,null,null,{"$f":"'Schedule XXI'!M39","v":0}]
["Sch XXI","Inv Con Risk",null,"Asset Value - 33",{"$f":"'Schedule XXI'!H40","v":0},null,null,null,null,null,null,null,{"$f":"'Schedule XXI'!M40","v":0}]
["Sch XXI","Inv Con Risk",null,"Asset Value - 34",{"$f":"'Schedule XXI'!H41","v":0},null,null,null,null,null,null,null,{"$f":"'Schedule XXI'!M41","v":0}]
["Sch XXI","Inv Con Risk",null,"Asset Value - 35",{"$f":"'Schedule XXI'!H42","v":0},null,null,null,null,null,null,null,{"$f":"'Schedule XXI'!M42","v":0}]
["Sch XXI","Inv Con Risk",null,"Asset Value - 36",{"$f":"'Schedule XXI'!H43","v":0},null,null,null,null,null,null,null,{"$f":"'Schedule XXI'!M43","v":0}]
["Sch XXI","Inv Con Risk",null,"Asset Value - 37",{"$f":"'Schedule XXI'!H44","v":0},null,null,null,null,null,null,null,{"$f":"'Schedule XXI'!M44","v":0}]
["Sch XXI","Inv Con Risk",null,"Asset Value - 38",{"$f":"'Schedule XXI'!H45","v":0},null,null,null,null,null,null,null,{"$f":"'Schedule XXI'!M45","v":0}]
["Sch XXI","Inv Con Risk",null,"Asset Value - 39",{"$f":"'Schedule XXI'!H46","v":0},null,null,null,null,null,null,null,{"$f":"'Schedule XXI'!M46","v":0}]
["Sch XXI","Inv Con Risk",null,"Asset Value - 40",{"$f":"'Schedule XXI'!H47","v":0},null,null,null,null,null,null,null,{"$f":"'Schedule XXI'!M47","v":0}]
["Sch XXI","Inv Con Risk",null,"Asset Value - 41",{"$f":"'Schedule XXI'!H48","v":0},null,null,null,null,null,null,null,{"$f":"'Schedule XXI'!M48","v":0}]
["Sch XXI","Inv Con Risk",null,"Asset Value - 42",{"$f":"'Schedule XXI'!H49","v":0},null,null,null,null,null,null,null,{"$f":"'Schedule XXI'!M49","v":0}]
["Sch XXI","Inv Con Risk",null,"Asset Value - 43",{"$f":"'Schedule XXI'!H50","v":0},null,null,null,null,null,null,null,{"$f":"'Schedule XXI'!M50","v":0}]
["Sch XXI","Inv Con Risk",null,"Asset Value - 44",{"$f":"'Schedule XXI'!H51","v":0},null,null,null,null,null,null,null,{"$f":"'Schedule XXI'!M51","v":0}]
["Sch XXI","Inv Con Risk",null,"Asset Value - 45",{"$f":"'Schedule XXI'!H52","v":0},null,null,null,null,null,null,null,{"$f":"'Schedule XXI'!M52","v":0}]
["Sch XXI","Inv Con Risk",null,"Asset Value - 46",{"$f":"'Schedule XXI'!H53","v":0},null,null,null,null,null,null,null,{"$f":"'Schedule XXI'!M53","v":0}]
["Sch XXI","Inv Con Risk",null,"Asset Value - 47",{"$f":"'Schedule XXI'!H54","v":0},null,null,null,null,null,null,null,{"$f":"'Schedule XXI'!M54","v":0}]
["Sch XXI","Inv Con Risk",null,"Asset Value - 48",{"$f":"'Schedule XXI'!H55","v":0},null,null,null,null,null,null,null,{"$f":"'Schedule XXI'!M55","v":0}]
["Sch XXI","Inv Con Risk",null,"Asset Value - 49",{"$f":"'Schedule XXI'!H56","v":0},null,null,null,null,null,null,null,{"$f":"'Schedule XXI'!M56","v":0}]
["Sch XXI","Inv Con Risk",null,"Asset Value - 50",{"$f":"'Schedule XXI'!H57","v":0},null,null,null,null,null,null,null,{"$f":"'Schedule XXI'!M57","v":0}]
["Sch XXI","Inv Con Risk",null,"Asset Value - Total",{"$f":"'Schedule XXI'!H58","v":0},null,null,null,null,null,null,null,{"$f":"'Schedule XXI'!M58","v":0}]

{"sheet":"Import Differences","index":8,"n_rows":8,"n_cols":4,"rows_kept":8,"cut":false,"hidden":false,"merged":[]}
["General Business BSCR Model"]
["Import/Export Row Changes"]
["From the 2022 year-end model to 2023 year-end Model"]
[]
[null,"Schedule","Row(s)","Section"]
[1,"IFRS Schedules","Rows: 477:1148","IFRS Financial Statements"]
[{"$f":"A6+1","v":2},"Schedule V(e) ","Rows: 6401:6402 & 6411:6412","Schedule of Stress Test Scenarios - Inflation Risk Financial Market Scenario"]
[{"$f":"A7+1","v":3},"Schedule VI & VIA","Rows: 9898:39200","Schedule of Assets and Schedule of Funds Held By Ceding Reinsurers"]

{"sheet":"Attachments","index":9,"n_rows":204,"n_cols":11,"rows_kept":204,"cut":false,"hidden":false,"merged":[[203,2,203,4],[194,2,194,4],[195,2,195,4],[196,2,196,4],[197,2,197,4],[198,2,198,4],[199,2,199,4],[200,2,200,4],[201,2,201,4],[202,2,202,4],[191,2,191,4],[192,2,192,4],[193,2,193,4],[143,2,143,4],[14,2,14,4],[15,2,15,4],[16,2,16,4],[17,2,17,4],[18,2,18,4],[19,2,19,4],[126,2,126,4],[20,2,20,4],[21,2,21,4],[22,2,22,4],[137,2,137,4],[138,2,138,4],[125,2,125,4],[124,2,124,4],[122,2,122,4],[123,2,123,4],[49,2,49,4],[50,2,50,4],[51,2,51,4],[52,2,52,4],[53,2,53,4],[23,2,23,4],[44,2,44,4],[45,2,45,4],[46,2,46,4],[47,2,47,4],[48,2,48,4],[25,2,25,4],[30,2,30,4],[32,2,32,4],[33,2,33,4],[39,2,39,4],[40,2,40,4],[41,2,41,4],[42,2,42,4],[130,2,130,4],[155,2,155,4],[156,2,156,4],[134,2,134,4],[135,2,135,4],[136,2,136,4],[140,2,140,4],[141,2,141,4],[142,2,142,4],[139,2,139,4],[59,2,59,4],[68,2,68,4],[69,2,69,4],[70,2,70,4],[71,2,71,4],[105,2,105,4],[104,2,104,4],[103,2,103,4],[87,2,87,4],[88,2,88,4],[73,2,73,4],[77,2,77,4],[79,2,79,4],[82,2,82,4],[74,2,74,4],[75,2,75,4],[66,2,66,4],[63,2,63,4],[64,2,64,4],[65,2,65,4],[67,2,67,4],[60,2,60,4],[61,2,61,4],[62,2,62,4],[54,2,54,4],[55,2,55,4],[56,2,56,4],[57,2,57,4],[149,2,149,4],[150,2,150,4],[151,2,151,4],[152,2,152,4],[78,2,78,4],[72,2,72,4],[99,2,99,4],[100,2,100,4],[101,2,101,4],[85,2,85,4],[106,2,106,4],[113,2,113,4],[111,2,111,4],[112,2,112,4],[109,2,109,4],[119,2,119,4],[118,2,118,4],[117,2,117,4],[58,2,58,4],[84,2,84,4],[91,2,91,4],[92,2,92,4],[93,2,93,4],[89,2,89,4],[90,2,90,4],[102,2,102,4],[95,2,95,4],[164,2,164,4],[115,2,115,4],[120,2,120,4],[116,2,116,4],[110,2,110,4],[107,2,107,4],[108,2,108,4],[114,2,114,4],[121,2,121,4],[96,2,96,4],[98,2,98,4],[127,2,127,4],[128,2,128,4],[131,2,131,4],[132,2,132,4],[133,2,133,4],[129,2,129,4],[4,2,4,4],[31,2,31,4],[24,2,24,4],[9,2,9,4],[10,2,10,4],[11,2,11,4],[5,2,5,4],[6,2,6,4],[7,2,7,4],[12,2,12,4],[8,2,8,4],[13,2,13,4],[26,2,26,4],[27,2,27,4],[28,2,28,4],[81,2,81,4],[80,2,80,4],[83,2,83,4],[29,2,29,4],[173,2,173,4],[36,2,36,4],[37,2,37,4],[38,2,38,4],[171,2,171,4],[172,2,172,4],[43,2,43,4],[34,2,34,4],[35,2,35,4],[76,2,76,4],[144,2,144,4],[145,2,145,4],[146,2,146,4],[147,2,147,4],[148,2,148,4],[167,2,167,4],[166,2,166,4],[86,2,86,4],[97,2,97,4],[94,2,94,4],[180,2,180,4],[181,2,181,4],[153,2,153,4],[176,2,176,4],[177,2,177,4],[178,2,178,4],[175,2,175,4],[157,2,157,4],[158,2,158,4],[154,2,154,4],[170,2,170,4],[159,2,159,4],[160,2,160,4],[163,2,163,4],[161,2,161,4],[162,2,162,4],[179,2,179,4],[168,2,168,4],[169,2,169,4],[174,2,174,4],[165,2,165,4],[189,2,189,4],[190,2,190,4],[183,2,183,4],[184,2,184,4],[185,2,185,4],[186,2,186,4],[187,2,187,4],[188,2,188,4],[182,2,182,4]]}
[null,"File Attachments",null,null,null,null,null,null,null,{"$f":"HYPERLINK(\"#'Index'!A1\",\"Return to Index\")","v":"Return to Index"}]
[]
[]
[null,null,null,null,null,null,null,null,null,"Input comment for each attached file here."]
[null,"1.","GAAP/IFRS Financial Statements",null,null,"<Attach file>","Attach","View","Remove",null,"Governance structure"]
[null,null,null,null,null,null,null,null,null,null,"Governance structure"]
[null,null,null,null,null,null,null,null,null,null,"Governance structure"]
[null,null,null,null,null,null,null,null,null,null,"Governance structure"]
[null,null,null,null,null,null,null,null,null,null,"Governance structure"]
[null,null,null,null,null,null,null,null,null,null,"Governance structure"]
[null,null,null,null,null,null,null,null,null,"","Governance structure"]
[null,null,null,null,null,null,null,null,null,"","Governance structure"]
[null,null,null,null,null,"<Attach file>",null,null,null,"","Governance structure"]
[null,null,null,null,null,"<Attach file>",null,null,null,"","Governance structure"]
[null,"2.","Financial Condition Report",null,null,"<Attach file>","Attach","View","Remove",null,"Governance structure"]
[null,null,null,null,null,null,null,null,null,null,"Governance structure"]
[null,null,null,null,null,null,null,null,null,null,"Governance structure"]
[null,null,null,null,null,null,null,null,null,null,"Governance structure"]
[null,null,null,null,null,null,null,null,null,null,"Governance structure"]
[null,null,null,null,null,null,null,null,null,null,"Governance structure"]
[null,null,null,null,null,null,null,null,null,null,"Governance structure"]
[null,null,null,null,null,null,null,null,null,null,"Governance structure"]
[null,null,null,null,null,null,null,null,null,null,"Governance structure"]
[null,null,null,null,null,null,null,null,null,"","Governance structure"]
[null,"3.","Declaration of Compliance",null,null,"<Attach file>","Attach","View","Remove",null,"Intra-group exposures"]
[null,null,null,null,null,null,null,null,null,null,"Intra-group exposures"]
[null,null,null,null,null,null,null,null,null,null,"Intra-group exposures"]
[null,null,null,null,null,null,null,null,null,null,"Intra-group exposures"]
[null,null,null,null,null,null,null,null,null,null,"Intra-group exposures"]
[null,null,null,null,null,null,null,null,null,null,"Intra-group exposures"]
[null,null,null,null,null,null,null,null,null,null,"Intra-group exposures"]
[null,null,null,null,null,null,null,null,null,null,"Intra-group exposures"]
[null,null,null,null,null,null,null,null,null,null,"Intra-group exposures"]
[null,null,null,null,null,null,null,null,null,"","Intra-group exposures"]
[null,"4.","CISSA attachments",null,null,"<Attach file>","Attach","View","Remove",null,"Description of the effective duration of assets and liabilities calculations and key assumptions"]
[null,null,null,null,null,"<Attach file>","Attach","View","Remove",null,"Description of the effective duration of assets and liabilities calculations and key assumptions"]
[null,null,null,null,null,"<Attach file>","Attach","View","Remove",null,"Description of the effective duration of assets and liabilities calculations and key assumptions"]
[null,null,null,null,null,"<Attach file>","Attach","View","Remove",null,"Description of the effective duration of assets and liabilities calculations and key assumptions"]
[null,null,null,null,null,"<Attach file>","Attach","View","Remove",null,"Description of the effective duration of assets and liabilities calculations and key assumptions"]
[null,null,null,null,null,"<Attach file>","Attach","View","Remove",null,"Description of the effective duration of assets and liabilities calculations and key assumptions"]
[null,null,null,null,null,"<Attach file>","Attach","View","Remove",null,"Description of the effective duration of assets and liabilities calculations and key assumptions"]
[null,null,null,null,null,"<Attach file>","Attach","View","Remove",null,"Description of the effective duration of assets and liabilities calculations and key assumptions"]
[null,null,null,null,null,"<Attach file>","Attach","View","Remove",null,"Description of the effective duration of assets and liabilities calculations and key assumptions"]
[null,null,null,null,null,"<Attach file>","Attach","View","Remove",null,"Description of the effective duration of assets and liabilities calculations and key assumptions"]
[null,"5.","Form 1EBS Attachments - Collateral Balances and Sundry Assets/Liabilities",null,null,"<Attach file>","Attach","View","Remove",null,"Financial impact and description of stress & scenarios"]
[null,null,null,null,null,"<Attach file>","Attach","View","Remove",null,"Financial impact and description of stress & scenarios"]
[null,null,null,null,null,"<Attach file>","Attach","View","Remove",null,"Financial impact and description of stress & scenarios"]
[null,null,null,null,null,"<Attach file>","Attach","View","Remove",null,"Financial impact and description of stress & scenarios"]
[null,null,null,null,null,"<Attach file>","Attach","View","Remove",null,"Financial impact and description of stress & scenarios"]
[null,null,null,null,null,"<Attach file>","Attach","View","Remove",null,"Financial impact and description of stress & scenarios"]
[null,null,null,null,null,"<Attach file>","Attach","View","Remove",null,"Financial impact and description of stress & scenarios"]
[null,null,null,null,null,"<Attach file>","Attach","View","Remove",null,"Financial impact and description of stress & scenarios"]
[null,null,null,null,null,"<Attach file>","Attach","View","Remove",null,"Financial impact and description of stress & scenarios"]
[null,null,null,null,null,"<Attach file>","Attach","View","Remove",null,"Financial impact and description of stress & scenarios"]
[null,"6.","Form 1EBS Attachments - General Business Reserves & Actuarial Memorandum",null,null,"<Attach file>","Attach","View","Remove",null,"Financial impact and description of stress & scenarios"]
[null,null,null,null,null,"<Attach file>","Attach","View","Remove",null,"Financial impact and description of stress & scenarios"]
[null,null,null,null,null,"<Attach file>","Attach","View","Remove",null,"Financial impact and description of stress & scenarios"]
[null,null,null,null,null,"<Attach file>","Attach","View","Remove",null,"Financial impact and description of stress & scenarios"]
[null,null,null,null,null,"<Attach file>","Attach","View","Remove",null,"Financial impact and description of stress & scenarios"]
[null,null,null,null,null,"<Attach file>","Attach","View","Remove",null,"Financial impact and description of stress & scenarios"]
[null,null,null,null,null,"<Attach file>","Attach","View","Remove",null,"Financial impact and description of stress & scenarios"]
[null,null,null,null,null,"<Attach file>","Attach","View","Remove",null,"Financial impact and description of stress & scenarios"]
[null,null,null,null,null,"<Attach file>","Attach","View","Remove",null,"Financial impact and description of stress & scenarios"]
[null,null,null,null,null,"<Attach file>","Attach","View","Remove",null,"Financial impact and description of stress & scenarios"]
[null,"7.","Governance and group structure",null,null,"<Attach file>","Attach","View","Remove",null,"Financial impact and description of stress & scenarios"]
[null,null,null,null,null,"<Attach file>","Attach","View","Remove",null,"Financial impact and description of stress & scenarios"]
[null,null,null,null,null,"<Attach file>","Attach","View","Remove",null,"Financial impact and description of stress & scenarios"]
[null,null,null,null,null,"<Attach file>","Attach","View","Remove",null,"Financial impact and description of stress & scenarios"]
[null,null,null,null,null,"<Attach file>","Attach","View","Remove",null,"Financial impact and description of stress & scenarios"]
[null,null,null,null,null,"<Attach file>","Attach","View","Remove",null,"Financial impact and description of stress & scenarios"]
[null,null,null,null,null,"<Attach file>","Attach","View","Remove",null,"Financial impact and description of stress & scenarios"]
[null,null,null,null,null,"<Attach file>","Attach","View","Remove",null,"Financial impact and description of stress & scenarios"]
[null,null,null,null,null,"<Attach file>","Attach","View","Remove",null,"Financial impact and description of stress & scenarios"]
[null,null,null,null,null,"<Attach file>","Attach","View","Remove",null,"Financial impact and description of stress & scenarios"]
[null,"8.","Organisational Chart",null,null,"<Attach file>","Attach","View","Remove",null,"Investment policy"]
[null,null,null,null,null,"<Attach file>","Attach","View","Remove",null,"Investment policy"]
[null,null,null,null,null,"<Attach file>","Attach","View","Remove",null,"Investment policy"]
[null,null,null,null,null,"<Attach file>","Attach","View","Remove",null,"Investment policy"]
[null,null,null,null,null,"<Attach file>","Attach","View","Remove",null,"Investment policy"]
[null,null,null,null,null,"<Attach file>","Attach","View","Remove",null,"Investment policy"]
[null,null,null,null,null,"<Attach file>","Attach","View","Remove",null,"Investment policy"]
[null,null,null,null,null,"<Attach file>","Attach","View","Remove",null,"Investment policy"]
[null,null,null,null,null,"<Attach file>","Attach","View","Remove",null,"Investment policy"]
[null,null,null,null,null,"<Attach file>","Attach","View","Remove",null,"Investment policy"]
[null,"9.","Intra-group transactions and risk concentrations",null,null,"<Attach file>","Attach","View","Remove",null,"Description of underwriting strategy"]
[null,null,null,null,null,"<Attach file>","Attach","View","Remove",null,"Description of underwriting strategy"]
[null,null,null,null,null,"<Attach file>","Attach","View","Remove",null,"Description of underwriting strategy"]
[null,null,null,null,null,"<Attach file>","Attach","View","Remove",null,"Description of underwriting strategy"]
[null,null,null,null,null,"<Attach file>","Attach","View","Remove",null,"Description of underwriting strategy"]
[null,null,null,null,null,"<Attach file>","Attach","View","Remove",null,"Description of underwriting strategy"]
[null,null,null,null,null,"<Attach file>","Attach","View","Remove",null,"Description of underwriting strategy"]
[null,null,null,null,null,"<Attach file>","Attach","View","Remove",null,"Description of underwriting strategy"]
[null,null,null,null,null,"<Attach file>","Attach","View","Remove",null,"Description of underwriting strategy"]
[null,null,null,null,null,"<Attach file>","Attach","View","Remove",null,"Description of underwriting strategy"]
[null,"10.","Description of the effective duration of assets and liabilities calculations and key assumptions",null,null,"<Attach file>","Attach","View","Remove",null,"Financial impact and description of stress & scenarios"]
[null,null,null,null,null,"<Attach file>","Attach","View","Remove",null,"Financial impact and description of stress & scenarios"]
[null,null,null,null,null,"<Attach file>","Attach","View","Remove",null,"Financial impact and description of stress & scenarios"]
[null,null,null,null,null,"<Attach file>","Attach","View","Remove",null,"Financial impact and description of stress & scenarios"]
[null,null,null,null,null,"<Attach file>","Attach","View","Remove",null,"Financial impact and description of stress & scenarios"]
[null,null,null,null,null,"<Attach file>","Attach","View","Remove",null,"Financial impact and description of stress & scenarios"]
[null,null,null,null,null,"<Attach file>","Attach","View","Remove",null,"Financial impact and description of stress & scenarios"]
[null,null,null,null,null,"<Attach file>","Attach","View","Remove",null,"Financial impact and description of stress & scenarios"]
[null,null,null,null,null,"<Attach file>","Attach","View","Remove",null,"Financial impact and description of stress & scenarios"]
[null,null,null,null,null,"<Attach file>","Attach","View","Remove",null,"Financial impact and description of stress & scenarios"]
[null,"11.","Investments, derivatives and strategies policy",null,null,"<Attach file>","Attach","View","Remove",null,"Description of the insurer's risk management program"]
[null,null,null,null,null,"<Attach file>","Attach","View","Remove",null,"Description of the insurer's risk management program"]
[null,null,null,null,null,"<Attach file>","Attach","View","Remove",null,"Description of the insurer's risk management program"]
[null,null,null,null,null,"<Attach file>","Attach","View","Remove",null,"Description of the insurer's risk management program"]
[null,null,null,null,null,"<Attach file>","Attach","View","Remove",null,"Description of the insurer's risk management program"]
[null,null,null,null,null,"<Attach file>","Attach","View","Remove",null,"Description of the insurer's risk management program"]
[null,null,null,null,null,"<Attach file>","Attach","View","Remove",null,"Description of the insurer's risk management program"]
[null,null,null,null,null,"<Attach file>","Attach","View","Remove",null,"Description of the insurer's risk management program"]
[null,null,null,null,null,"<Attach file>","Attach","View","Remove",null,"Description of the insurer's risk management program"]
[null,null,null,null,null,"<Attach file>","Attach","View","Remove",null,"Description of the insurer's risk management program"]
[null,"12.","Bonds and debentures that have been reclassed in accordance with the NAIC",null,null,"<Attach file>","Attach","View","Remove",null,"Risk register"]
[null,null,null,null,null,"<Attach file>","Attach","View","Remove",null,"Risk register"]
[null,null,null,null,null,"<Attach file>","Attach","View","Remove",null,"Risk register"]
[null,null,null,null,null,"<Attach file>","Attach","View","Remove",null,"Risk register"]
[null,null,null,null,null,"<Attach file>","Attach","View","Remove",null,"Risk register"]
[null,null,null,null,null,"<Attach file>","Attach","View","Remove",null,"Risk register"]
[null,null,null,null,null,"<Attach file>","Attach","View","Remove",null,"Risk register"]
[null,null,null,null,null,"<Attach file>","Attach","View","Remove",null,"Risk register"]
[null,null,null,null,null,"<Attach file>","Attach","View","Remove",null,"Risk register"]
[null,null,null,null,null,"<Attach file>","Attach","View","Remove",null,"Risk register"]
[null,"13.","Mutual Fund Disclosure",null,null,"<Attach file>","Attach","View","Remove",null,"CISSA Attachments"]
[null,null,null,null,null,"<Attach file>","Attach","View","Remove",null,"CISSA Attachments"]
[null,null,null,null,null,"<Attach file>","Attach","View","Remove",null,"CISSA Attachments"]
[null,null,null,null,null,"<Attach file>","Attach","View","Remove",null,"CISSA Attachments"]
[null,null,null,null,null,"<Attach file>","Attach","View","Remove",null,"CISSA Attachments"]
[null,null,null,null,null,"<Attach file>","Attach","View","Remove",null,"CISSA Attachments"]
[null,null,null,null,null,"<Attach file>","Attach","View","Remove",null,"CISSA Attachments"]
[null,null,null,null,null,"<Attach file>","Attach","View","Remove",null,"CISSA Attachments"]
[null,null,null,null,null,"<Attach file>","Attach","View","Remove",null,"CISSA Attachments"]
[null,null,null,null,null,"<Attach file>","Attach","View","Remove",null,"CISSA Attachments"]
[null,"14.","Description of underwriting strategy",null,null,"<Attach file>","Attach","View","Remove",null,"CISSA Attachments"]
[null,null,null,null,null,"<Attach file>","Attach","View","Remove",null,"CISSA Attachments"]
[null,null,null,null,null,"<Attach file>","Attach","View","Remove",null,"CISSA Attachments"]
[null,null,null,null,null,"<Attach file>","Attach","View","Remove",null,"CISSA Attachments"]
[null,null,null,null,null,"<Attach file>","Attach","View","Remove",null,"CISSA Attachments"]
[null,null,null,null,null,"<Attach file>","Attach","View","Remove",null,"CISSA Attachments"]
[null,null,null,null,null,"<Attach file>","Attach","View","Remove",null,"CISSA Attachments"]
[null,null,null,null,null,"<Attach file>","Attach","View","Remove",null,"CISSA Attachments"]
[null,null,null,null,null,"<Attach file>","Attach","View","Remove",null,"CISSA Attachments"]
[null,null,null,null,null,"<Attach file>","Attach","View","Remove",null,"CISSA Attachments"]
[null,"15.","Financial impact and description of stress & scenarios",null,null,"<Attach file>","Attach","View","Remove",null,"CISSA Attachments"]
[null,null,null,null,null,"<Attach file>","Attach","View","Remove",null,"CISSA Attachments"]
[null,null,null,null,null,"<Attach file>","Attach","View","Remove",null,"CISSA Attachments"]
[null,null,null,null,null,"<Attach file>","Attach","View","Remove",null,"CISSA Attachments"]
[null,null,null,null,null,"<Attach file>","Attach","View","Remove",null,"CISSA Attachments"]
[null,null,null,null,null,"<Attach file>","Attach","View","Remove",null,"CISSA Attachments"]
[null,null,null,null,null,"<Attach file>","Attach","View","Remove",null,"CISSA Attachments"]
[null,null,null,null,null,"<Attach file>","Attach","View","Remove",null,"CISSA Attachments"]
[null,null,null,null,null,"<Attach file>","Attach","View","Remove",null,"CISSA Attachments"]
[null,null,null,null,null,"<Attach file>","Attach","View","Remove",null,"CISSA Attachments"]
[null,"16.","Description of the insurer's risk management program",null,null,"<Attach file>","Attach","View","Remove",null,"Other Attachments"]
[null,null,null,null,null,"<Attach file>","Attach","View","Remove",null,"Other Attachments"]
[null,null,null,null,null,"<Attach file>","Attach","View","Remove",null,"Other Attachments"]
[null,null,null,null,null,"<Attach file>","Attach","View","Remove",null,"Other Attachments"]
[null,null,null,null,null,"<Attach file>","Attach","View","Remove",null,"Other Attachments"]
[null,null,null,null,null,"<Attach file>","Attach","View","Remove",null,"Other Attachments"]
[null,null,null,null,null,"<Attach file>","Attach","View","Remove",null,"Other Attachments"]
[null,null,null,null,null,"<Attach file>","Attach","View","Remove",null,"Other Attachments"]
[null,null,null,null,null,"<Attach file>","Attach","View","Remove",null,"Other Attachments"]
[null,null,null,null,null,"<Attach file>","Attach","View","Remove",null,"Other Attachments"]
[null,"17.","Risk register",null,null,"<Attach file>","Attach","View","Remove",null,"Other Attachments"]
[null,null,null,null,null,"<Attach file>","Attach","View","Remove",null,"Other Attachments"]
[null,null,null,null,null,"<Attach file>","Attach","View","Remove",null,"Other Attachments"]
[null,null,null,null,null,"<Attach file>","Attach","View","Remove",null,"Other Attachments"]
[null,null,null,null,null,"<Attach file>","Attach","View","Remove",null,"Other Attachments"]
[null,null,null,null,null,"<Attach file>","Attach","View","Remove",null,"Other Attachments"]
[null,null,null,null,null,"<Attach file>","Attach","View","Remove",null,"Other Attachments"]
[null,null,null,null,null,"<Attach file>","Attach","View","Remove",null,"Other Attachments"]
[null,null,null,null,null,"<Attach file>","Attach","View","Remove",null,"Other Attachments"]
[null,null,null,null,null,"<Attach file>","Attach","View","Remove",null,"Other Attachments"]
[null,"18.","Reconciliation to Company Specific Parameters",null,null,"<Attach file>","Attach","View","Remove",null,"Other Attachments"]
[null,null,null,null,null,"<Attach file>","Attach","View","Remove",null,"Other Attachments"]
[null,null,null,null,null,"<Attach file>","Attach","View","Remove",null,"Other Attachments"]
[null,null,null,null,null,"<Attach file>","Attach","View","Remove",null,"Other Attachments"]
[null,null,null,null,null,"<Attach file>","Attach","View","Remove",null,"Other Attachments"]
[null,null,null,null,null,"<Attach file>","Attach","View","Remove",null,"Other Attachments"]
[null,null,null,null,null,"<Attach file>","Attach","View","Remove",null,"Other Attachments"]
[null,null,null,null,null,"<Attach file>","Attach","View","Remove",null,"Other Attachments"]
[null,null,null,null,null,"<Attach file>","Attach","View","Remove",null,"Other Attachments"]
[null,null,null,null,null,"<Attach file>","Attach","View","Remove",null,"Other Attachments"]
[null,"19.","Capital and Solvency Return Declaration and Statutory Financial Statements",null,null,"<Attach file>","Attach","View","Remove",null,"Other Attachments"]
[null,null,null,null,null,"<Attach file>","Attach","View","Remove",null,"Other Attachments"]
[null,null,null,null,null,"<Attach file>","Attach","View","Remove",null,"Other Attachments"]
[null,null,null,null,null,"<Attach file>","Attach","View","Remove",null,"Other Attachments"]
[null,null,null,null,null,"<Attach file>","Attach","View","Remove",null,"Other Attachments"]
[null,null,null,null,null,"<Attach file>","Attach","View","Remove",null,"Other Attachments"]
[null,null,null,null,null,"<Attach file>","Attach","View","Remove",null,"Other Attachments"]
[null,null,null,null,null,"<Attach file>","Attach","View","Remove",null,"Other Attachments"]
[null,null,null,null,null,"<Attach file>","Attach","View","Remove","","Other Attachments"]
[null,null,null,null,null,"<Attach file>","Attach","View","Remove","","Other Attachments"]
[null,"20.","Other Attachments",null,null,"<Attach file>","Attach","View","Remove",null,"Other Attachments"]
[null,null,null,null,null,"<Attach file>","Attach","View","Remove",null,"Other Attachments"]
[null,null,null,null,null,"<Attach file>","Attach","View","Remove",null,"Other Attachments"]
[null,null,null,null,null,"<Attach file>","Attach","View","Remove",null,"Other Attachments"]
[null,null,null,null,null,"<Attach file>","Attach","View","Remove",null,"Other Attachments"]
[null,null,null,null,null,"<Attach file>","Attach","View","Remove",null,"Other Attachments"]
[null,null,null,null,null,"<Attach file>","Attach","View","Remove",null,"Other Attachments"]
[null,null,null,null,null,"<Attach file>","Attach","View","Remove",null,"Other Attachments"]
[null,null,null,null,null,"<Attach file>","Attach","View","Remove",null,"Other Attachments"]
[null,null,null,null,null,"<Attach file>","Attach","View","Remove",null,"Other Attachments"]

{"sheet":"FileStorage","index":10,"n_rows":0,"n_cols":0,"rows_kept":0,"cut":false,"hidden":true,"merged":[]}

{"sheet":"Declaration","index":11,"n_rows":89,"n_cols":16,"rows_kept":89,"cut":false,"hidden":false,"merged":[[0,0,0,2],[5,1,5,3]]}
["CAPITAL AND SOLVENCY RETURN DECLARATION",null,null,{"$f":"HYPERLINK(\"#'Index'!A1\",\"Return to Index\")","v":"Return to Index"},null,null,null,null,null,null,null,null,null,null,null,{"$f":"IF(C4=\"\",\"\",TEXT(DATE(YEAR(C4+1)-1,MONTH(C4+1),DAY(C4+1)),\"mm/dd/yyyy\"))","v":"01/01/2023"}]
[null,null,null,null,null,null,null,"",null,null,null,null,null,null,null,{"$f":"IF(C4=\"\",\"\",TEXT(C4,\"mm/dd/yyyy\"))","v":"12/31/2023"}]
[null,{"$f":"'Company Information'!C7","v":"Enter Company Name"}]
[null,"For the Year Ending ",{"$f":" TEXT('Company Information'!C3,\"d mmmm yyyy\")","v":"31 December 2023"},null,null,null,null,""]
[]
[null,"We declare that to the best of our knowledge and belief, the information in this Capital and Solvency Return fairly represents the financial condition of the Company in all material respects."]
[]
[]
[null,"Signatory:"]
[]
[null,"Print Name:",{"$f":"+Import!E5","v":0}]
[null,null,"Director"]
[]
[null,"Date:",{"$f":"+Import!E6","v":"00:00:00"}]
[]
[]
[null,"Signatory:"]
[]
[null,"Print Name:",{"$f":"+Import!E7","v":0}]
[null,null,"Director"]
[]
[null,"Date:",{"$f":"+Import!E8","v":"00:00:00"}]
[]
[null,"Signatory:"]
[]
[null,"Print Name:",{"$f":"+Import!E9","v":0}]
[null,null,{"$f":"IF('Company Information'!F11=\"Class 3A\",\"Principal Representative\",\"Chief Risk Officer or Chief Financial Officer\")","v":"Principal Representative"}]
[]
[null,"Date:",{"$f":"+Import!E10","v":"00:00:00"}]
[]
[null,"Insurer Name:",{"$f":"B3","v":"Enter Company Name"}]
[]
[null,"Year-end:",{"$f":" TEXT('Company Information'!C3,\"d mmmm yyyy\")","v":"31 December 2023"}]
[]
[]
[]
[]
[]
[]
[]
[]
[]
[]
[]
[]
[]
[]
[]
[]
[]
[]
[]
[]
[]
[]
[]
[]
[]
[]
[]
[]
[]
[]
[]
[]
[]
[]
[]
[]
[]
[]
[]
[]
[]
[]
[]
[]
[]
[]
[]
[]
[]
[]
[]
[]
[]
[]
[]
[null,null,null,null,null,null,null,""]

{"sheet":"Zones","index":12,"n_rows":143,"n_cols":12,"rows_kept":143,"cut":false,"hidden":false,"merged":[[134,3,134,9]]}
[null,"ZONE CATEGORISATION AND BSCR RATING SCHEDULE",null,null,null,null,null,null,null,null,{"$f":"HYPERLINK(\"#'Index'!A1\",\"Return to Index\")","v":"Return to Index"}]
[null,{"$f":"+'Company Information'!C7","v":"Enter Company Name"}]
[null,"ZONE CATEGORISATION "]
[null,null,"Zone 1 - Central & Western Asia"]
[null,null,null,"Armenia",null,"Azerbaijan",null,"Bahrain",null,"Georgia"]
[null,null,null,"Iraq",null,"Israel",null,"Jordan",null,"Kazakhstan"]
[null,null,null,"Kuwait",null,"Kyrgyzstan",null,"Lebanon",null,"Oman"]
[null,null,null,"Palestinian",null,"Qatar",null,"Saudi Arabia",null,"Saudi Arab Republic"]
[null,null,null,"Tajikistan",null,"Turkey",null,"Turkmenistan",null,"United Arab Emirates"]
[null,null,null,"Uzbekistan",null,"Yemen"]
[]
[]
[null,null,"Zone 2 - Eastern Asia"]
[null,null,null,"China",null,"Hong Kong",null,"Japan",null,"Macao"]
[null,null,null,"Mongolia",null,"North Korea",null,"South Korea",null,"Taiwan"]
[]
[]
[null,null,"Zone 3 - South and South-Eastern Asia"]
[null,null,null,"Afghanistan",null,"Bangladesh",null,"Bhutan",null,"Brunei Darussalam"]
[null,null,null,"Cambodia",null,"India",null,"Indonesia",null,"Iran"]
[null,null,null,"Lao PDR",null,"Malaysia",null,"Maldives",null,"Myanmar"]
[null,null,null,"Nepal",null,"Pakistan",null,"Philippines",null,"Singapore"]
[null,null,null,"Sri Lanka",null,"Thailand",null,"Timor-Leste",null,"Vietnam"]
[]
[]
[null,null,"Zone 4 - Oceania"]
[null,null,null,"American Samoa",null,"Australia",null,"Cook Islands",null,"Fiji"]
[null,null,null,"French Polynesia",null,"Guam",null,"Kiribati",null,"Marshall Islands"]
[null,null,null,"Micronesia",null,"Nauru",null,"New Caledonia",null,"New Zealand"]
[null,null,null,"Niue",null,"Norfolk Island",null,"N. Mariana Islands",null,"Palau"]
[null,null,null,"Papua New Guinea",null,"Pitcairn",null,"Samoa",null,"Solomon Islands"]
[null,null,null,"Tokelau",null,"Tonga",null,"Tuvalu",null,"Vanuatu"]
[null,null,null,"Wallis & Futuna Islands"]
[]
[]
[null,null,"Zone 5 - Northern Africa"]
[null,null,null,"Algeria",null,"Benin",null,"Burkina Faso",null,"Cameroon"]
[null,null,null,"Cape Verde",null,"Central African Republic",null,"Chad",null,"Cote d' Ivoire"]
[null,null,null,"Egypt",null,"Gambia",null,"Ghana",null,"Guinea"]
[null,null,null,"Guinea-Bissau",null,"Liberia",null,"Libya",null,"Mali"]
[null,null,null,"Mauritania",null,"Morocco",null,"Niger",null,"Nigeria"]
[null,null,null,"Saint Helena",null,"Senegal",null,"Sierra Leone",null,"Sudan"]
[null,null,null,"Togo",null,"Tunisia",null,"Western Sahara"]
[]
[]
[null,null,"Zone 6 - Southern Africa"]
[null,null,null,"Angola",null,"Botswana",null,"Burundi",null,"Democratic Republic of Congo"]
[null,null,null,"Comoros",null,"Djibouti",null,"Equatorial Guinea",null,"Eritrea"]
[null,null,null,"Ethiopia",null,"Gabon",null,"Kenya",null,"Lesotho"]
[null,null,null,"Madagascar",null,"Malawi",null,"Mauritius",null,"Mayotte"]
[null,null,null,"Mozambique",null,"Namibia",null,"Republic of Congo",null,"Reunion"]
[null,null,null,"Rwanda",null,"Sao Tome & Principe",null,"Seychelles",null,"Somalia"]
[null,null,null,"South Africa",null,"Swaziland",null,"Uganda",null,"United Republic of Tanzania"]
[null,null,null,"Zambia",null,"Zimbabwe"]
[]
[]
[null,null,"Zone 7 - Eastern Europe"]
[null,null,null,"Belarus",null,"Bulgaria",null,"Czech Republic",null,"Hungary"]
[null,null,null,"Moldova",null,"Poland",null,"Romania",null,"Russian Federation"]
[null,null,null,"Slovakia",null,"Ukraine"]
[]
[null,null,"Zone 8 - Northern Europe"]
[null,null,null,"Aland Islands",null,"Channel Islands",null,"Denmark",null,"Estonia"]
[null,null,null,"Faeroe Islands",null,"Finland",null,"Guernsey",null,"Iceland"]
[null,null,null,"Republic of Ireland",null,"Isle of Man",null,"Jersey",null,"Latvia"]
[null,null,null,"Lithuania",null,"Norway",null,"Svalbard, Jan Mayen",null,"Sweden"]
[null,null,null,"United Kingdom"]
[]
[]
[null,null,"Zone 9 - Southern Europe"]
[null,null,null,"Albania",null,"Andorra",null,"Bosnia",null,"Croatia"]
[null,null,null,"Cyprus",null,"Gibraltar",null,"Greece",null,"Italy"]
[null,null,null,"fYR of Macedonia",null,"Malta",null,"Montenegro",null,"Portugal"]
[null,null,null,"San Marino",null,"Serbia",null,"Slovenia",null,"Spain"]
[null,null,null,"Vatican City"]
[]
[]
[null,null,"Zone 10 - Western Europe"]
[null,null,null,"Austria",null,"Belgium",null,"France",null,"Germany"]
[null,null,null,"Liechtenstein",null,"Luxembourg",null,"Monaco",null,"Netherlands"]
[null,null,null,"Switzerland"]
[]
[]
[null,null,"Zone 11 - Northern America (Excluding USA)"]
[null,null,null,"Bermuda",null,"Canada",null,"Greenland",null,"St Pierre & Miquelon"]
[]
[]
[null,null,"Zone 12 - Caribbean & Central America"]
[]
[null,null,null,"Anguilla",null,"Antigua & Barbuda",null,"Aruba",null,"Bahamas"]
[null,null,null,"Barbados",null,"Belize",null,"British Virgin Islands",null,"Cayman Islands"]
[null,null,null,"Costa Rica",null,"Cuba",null,"Dominica",null,"Dominican Republic"]
[null,null,null,"El Salvador",null,"Grenada",null,"Guadeloupe",null,"Guatemala"]
[null,null,null,"Haiti",null,"Honduras",null,"Jamaica",null,"Martinique"]
[null,null,null,"Mexico",null,"Montserrat",null,"Netherlands Antilles",null,"Nicaragua"]
[null,null,null,"Panama",null,"Puerto Rico",null,"St-Barthelemy",null,"St Kitts & Nevis"]
[null,null,null,"St Lucia",null,"St Martin",null,"St Vincent",null,"Trinidad & Tobago",null,"Tobago"]
[null,null,null,"Turks & Caicos Islands",null,"US Virgin Islands"]
[]
[]
[null,null,"Zone 13 - Eastern South America"]
[null,null,null,"Brazil",null,"Falkland Islands",null,"French Guiana",null,"Guyana"]
[null,null,null,"Paraguay",null,"Suriname",null,"Uruguay"]
[]
[]
[null,null,"Zone 14 - Northern, Southern and Western South America"]
[null,null,null,"Argentina",null,"Bolivia",null,"Chile",null,"Colombia"]
[null,null,null,"Ecuador",null,"Peru",null,"Venezuela"]
[]
[null,null,"Zone 15 - North-East United States"]
[null,null,null,"Connecticut",null,"Delaware",null,"District of Columbia",null,"Maine"]
[null,null,null,"Maryland",null,"Massachusetts",null,"New Hampshire",null,"New Jersey"]
[null,null,null,"New York",null,"Pennsylvania",null,"Rhode Island",null,"Vermont"]
[]
[null,null,"Zone 16 - South-East United States"]
[null,null,null,"Alabama",null,"Arkansas",null,"Florida",null,"Georgia"]
[null,null,null,"Kentucky",null,"Louisiana",null,"Mississippi",null,"North Carolina"]
[null,null,null,"South Carolina",null,"Tennessee",null,"Virginia",null,"West Virigina"]
[]
[]
[null,null,"Zone 17 - Mid-West United States"]
[null,null,null,"Illinois",null,"Indiana",null,"Iowa",null,"Kansas"]
[null,null,null,"Michigan",null,"Minnesota",null,"Missouri",null,"Nebraska"]
[null,null,null,"North Dakota",null,"Ohio",null,"Oklahoma",null,"South Dakota"]
[null,null,null,"Wisconsin"]
[]
[null,null,"Zone 18 - Western United States"]
[null,null,null,"Alaska",null,"Arizona",null,"California",null,"Colorado"]
[null,null,null,"Hawaii",null,"Idaho",null,"Montana",null,"Nevada"]
[null,null,null,"New Mexico",null,"Oregon",null,"Texas",null,"Utah"]
[null,null,null,"Washington",null,"Wyoming"]
[]
[null,"BSCR RATING SCHEDULE"]
[null,null,null,"Standard & Poor’s",null,"Moody’s",null,"AM Best",null,"Fitch"]
[null,0,null,"Sovereign debt issued by a country in its own currency that is rated AA- or better"]
[null,1,null,"AAA",null,"Aaa",null,"A++",null,"AAA"]
[null,2,null,"AA+ to AA-",null,"Aa1 to Aa3",null,"A+",null,"AA+ to AA-"]
[null,3,null,"A+ to A-",null,"A1 to A3",null,"A",null,"A+ to A-"]
[null,4,null,"BBB+ to BBB-",null,"Baa1 to Baa3",null,"A-",null,"BBB+ to BBB-"]
[null,5,null,"BB+ to BB-",null,"Ba1 to Ba3",null,"B++ to B",null,"BB+ to BB-"]
[null,6,null,"B+ to B-",null,"B1 to B3",null,"B- to C+",null,"B+ to B-"]
[null,7,null,"CCC+ to CCC-",null,"Caa1 to Caa3",null,"C, C-",null,"CCC+ to CCC-"]
[null,8,null,"Below CCC-",null,"Below Caa3",null,"Below C-",null,"Below CCC-"]

{"sheet":"Information Sheet","index":13,"n_rows":131,"n_cols":12,"rows_kept":131,"cut":false,"hidden":false,"merged":[[8,2,9,6],[42,2,44,6],[86,2,87,6],[88,2,90,6],[28,2,28,6],[31,2,31,6],[40,2,40,6]]}
[null,"Insurer Information Sheet",null,null,null,null,null,{"$f":"HYPERLINK(\"#'Index'!A1\",\"Return to Index\")","v":"Return to Index"}]
[]
[null,"(a)","Name of Insurer:",null,null,null,null,{"$f":"+'Company Information'!C7","v":"Enter Company Name"}]
[]
[null,"(b)","Certificate of Registration Number",null,null,null,null,{"$f":"+'Company Information'!F9","v":0}]
[]
[null,"(c)","Class of Registration:",null,null,null,null,{"$f":"+'Company Information'!F11","v":"Class 3A"}]
[]
[null,"(d)","Statements are available at the insurer's registered office in Bermuda pursuant to section 17(1) or, as the case may be, have been filed pursuant to section 17(3) of the Act",null,null,null,null,{"$f":"Import!E12","v":"Select Yes/No"}]
[]
[]
[null,"(e)","Filing Period:"]
[null,null,"Period Start Date:",null,null,null,null,{"$f":"Import!E13","v":"00:00:00"}]
[null,null,"Period End Date:",null,null,null,null,{"$f":"+'Company Information'!C3","v":"2023-12-31"}]
[]
[null,"(f)","Currency used in the statutory financial statements:",null,null,null,null,{"$f":"+'Form 1SFS'!C5","v":"United States Dollars"}]
[]
[null,"(g)","To prepare this return, provide the multiplier exchange rate / translation rate is applicable in converting the reporting currency to USD/BMD",null,null,null,null,{"$f":"Import!E14","v":1}]
[]
[null,"(h)","Ultimate Parent",null,null,null,null,{"$f":"Import!E15","v":0}]
[]
[null,"(i)","Insurer's Parent Company",null,null,null,null,{"$f":"Import!E16","v":0}]
[]
[null,"(j)","Industry Sector of the Insurer's Parent",null,null,null,null,{"$f":"Import!E17","v":"Select from Drop-Down"}]
[]
[null,"(k)","Insurer's Ownership Structure",null,null,null,null,{"$f":"Import!E18","v":"Select from Drop-Down"}]
[]
[null,"(l)","Insurer's Company Structure",null,null,null,null,{"$f":"Import!E19","v":"Select from Drop-Down"}]
[null,"(l).1","Confirm if the Company has written or currently writes Long-Term insurance",null,null,null,null,{"$f":"Import!E20","v":"Select Yes/No"}]
[null,"(l).2","Did the Company actively write Long-Term insurance business during the financial period",null,null,null,null,{"$f":"Import!E21","v":"Select Yes/No"}]
[null,"(l).3","If the Company has subsidiaries, confirm if the subsidiaries wrote Long-Term insurane business during the financial period",null,null,null,null,{"$f":"Import!E22","v":"Select Yes/No"}]
[null,"(l).4","If the subsidiaries wrote Long-Term insurance business during the financial period, confirm if the subsidiaries are in another jurisdication outside of Bermuda",null,null,null,null,{"$f":"Import!E23","v":"Select Yes/No"}]
[null,"(l).5","If other jurisdictions outside of Bermuda, list the jurisdictions",null,null,null,null,{"$f":"Import!E24","v":0}]
[null,null,null,null,null,null,null,{"$f":"Import!E25","v":0}]
[null,null,null,null,null,null,null,{"$f":"Import!E26","v":0}]
[]
[null,"(m)","General Questions"]
[null,null,"(i) Is the Insurer a member of a group?",null,null,null,null,{"$f":"Import!E27","v":"Select Yes/No"}]
[null,null,"(ii) Does the Insurer have segregated accounts?",null,null,null,null,{"$f":"Import!E28","v":"Select Yes/No"}]
[null,null,"(iii) Is the insurer in run-off?",null,null,null,null,{"$f":"Import!E29","v":"Select Yes/No"}]
[null,null,"(iv) Whether the general purpose financial statements of the insurer for the relevant year have been audited and/or an unqualified opinion issued",null,null,null,null,{"$f":"Import!E30","v":"Select Yes/No"}]
[null,null,"If a qualified opinion was issued, indicate the qualification:"]
[null,null,{"$f":"Import!E31","v":0}]
[]
[]
[null,null,"(v) The minimum solvency margin was met:",null,null,null,null,{"$f":"Import!E32","v":"Select Yes/No"}]
[null,null,"(vi) The applicable minimum liquidity ratio was met during the reporting period:",null,null,null,null,{"$f":"Import!E33","v":"Select Yes/No"}]
[]
[null,"(n)","Certificate of Registration Conditions"]
[]
[null,1,"Certificate of Registration for General Business - Effective Date",null,null,null,null,{"$f":"IF(+'Company Information'!C11=0,\"\",+'Company Information'!C11)","v":""}]
[]
[null,2,"Certificate of Registration for General Business - General Conditions (Enter Number of Conditions)",null,null,null,null,{"$f":"Import!E35","v":0}]
[]
[null,null,null,null,"Effective Start Date","Effective End Date","Condition Description"]
[null,null,null,1,{"$f":"Import!E36","v":"00:00:00"},{"$f":"Import!E46","v":"00:00:00"},{"$f":"Import!E56","v":0}]
[null,null,null,{"$f":"D56+1","v":2},{"$f":"Import!E37","v":"00:00:00"},{"$f":"Import!E47","v":"00:00:00"},{"$f":"Import!E57","v":0}]
[null,null,null,{"$f":"D57+1","v":3},{"$f":"Import!E38","v":"00:00:00"},{"$f":"Import!E48","v":"00:00:00"},{"$f":"Import!E58","v":0}]
[null,null,null,4,{"$f":"Import!E39","v":"00:00:00"},{"$f":"Import!E49","v":"00:00:00"},{"$f":"Import!E59","v":0}]
[null,null,null,5,{"$f":"Import!E40","v":"00:00:00"},{"$f":"Import!E50","v":"00:00:00"},{"$f":"Import!E60","v":0}]
[null,null,null,6,{"$f":"Import!E41","v":"00:00:00"},{"$f":"Import!E51","v":"00:00:00"},{"$f":"Import!E61","v":0}]
[null,null,null,7,{"$f":"Import!E42","v":"00:00:00"},{"$f":"Import!E52","v":"00:00:00"},{"$f":"Import!E62","v":0}]
[null,null,null,8,{"$f":"Import!E43","v":"00:00:00"},{"$f":"Import!E53","v":"00:00:00"},{"$f":"Import!E63","v":0}]
[null,null,null,9,{"$f":"Import!E44","v":"00:00:00"},{"$f":"Import!E54","v":"00:00:00"},{"$f":"Import!E64","v":0}]
[null,null,null,10,{"$f":"Import!E45","v":"00:00:00"},{"$f":"Import!E55","v":"00:00:00"},{"$f":"Import!E65","v":0}]
[]
[null,"(o)","The insurer has complied with conditions on Certificate of Registration",null,null,null,null,{"$f":"Import!E66","v":"Select Yes/No"}]
[]
[null,"(p)","Regulatory Approvals"]
[]
[null,1,"Regulatory - Approved Direction (Enter Number of Directions)",null,null,null,null,{"$f":"Import!E67","v":0}]
[]
[null,null,null,null,"Effective Start Date","Effective End Date","Direction Description"]
[null,null,null,1,{"$f":"Import!E68","v":"00:00:00"},{"$f":"Import!E78","v":"00:00:00"},{"$f":"Import!E88","v":0}]
[null,null,null,{"$f":"D74+1","v":2},{"$f":"Import!E69","v":"00:00:00"},{"$f":"Import!E79","v":"00:00:00"},{"$f":"Import!E89","v":0}]
[null,null,null,{"$f":"D75+1","v":3},{"$f":"Import!E70","v":"00:00:00"},{"$f":"Import!E80","v":"00:00:00"},{"$f":"Import!E90","v":0}]
[null,null,null,4,{"$f":"Import!E71","v":"00:00:00"},{"$f":"Import!E81","v":"00:00:00"},{"$f":"Import!E91","v":0}]
[null,null,null,5,{"$f":"Import!E72","v":"00:00:00"},{"$f":"Import!E82","v":"00:00:00"},{"$f":"Import!E92","v":0}]
[null,null,null,6,{"$f":"Import!E73","v":"00:00:00"},{"$f":"Import!E83","v":"00:00:00"},{"$f":"Import!E93","v":0}]
[null,null,null,7,{"$f":"Import!E74","v":"00:00:00"},{"$f":"Import!E84","v":"00:00:00"},{"$f":"Import!E94","v":0}]
[null,null,null,8,{"$f":"Import!E75","v":"00:00:00"},{"$f":"Import!E85","v":"00:00:00"},{"$f":"Import!E95","v":0}]
[null,null,null,9,{"$f":"Import!E76","v":"00:00:00"},{"$f":"Import!E86","v":"00:00:00"},{"$f":"Import!E96","v":0}]
[null,null,null,10,{"$f":"Import!E77","v":"00:00:00"},{"$f":"Import!E87","v":"00:00:00"},{"$f":"Import!E97","v":0}]
[]
[]
[]
[null,"(q)","If any question in points (m)(v), (m)(vi) or (o) has been answered in the negative, state the reason for negative answer and describe whether or not the insurer has taken corrective action in any case and, where the insurer has taken such action, describe the action in a statement attached ",null,null,null,null,{"$f":"Import!E98","v":"Select Yes/No"}]
[]
[null,null,{"$f":"Import!E99","v":0}]
[]
[]
[]
[]
[null,null,null,null,null,null,null,null,null,null,null,""]
[null,"Industry Sector","Type of Company"]
[null,"Select from Drop-Down","Select from Drop-Down"]
[null,"Administrative and Support Services","Pure Captive"]
[null,"Agriculture, Mining, Forestry and Fishing","Rent-a-Captive"]
[null,"Automotive, Manufacturing and Retail","Agency Captive"]
[null,"Charities & Non-profit Organisations","Group Captive"]
[null,"Chemical and Pharmaceutical","Association Captive"]
[null,"Construction","Risk Retention Group"]
[null,"Education","Insurer/Reinsurer"]
[null,"Energy, Power and Utilities"]
[null,"Financial Institution"]
[null,"Government or Public Sector"]
[null,"Healthcare"]
[null,"Hospitality"]
[null,"Leisure"]
[null,"Media and Gaming"]
[null,"Professional Services"]
[null,"Science and Research"]
[null,"Shipping, Transport & Storage"]
[null,"Technology and Telecoms"]
[null,"Wholesale and Retail"]
[]
[null,"Ownership"]
[null,"Select from Drop-Down"]
[null,"Mutual"]
[null,"Shares"]
[null,"Partnership"]
[null,"Government or Government Agency"]
[null,"Limited Partnership"]
[null,"Permit/Branch"]
[null,"Trust"]
[]
[null,"General Questions"]
[null,"Select Yes/No"]
[null,"Yes"]
[null,"No"]
[null,"N/A"]

{"sheet":"Financial Condition","index":14,"n_rows":477,"n_cols":10,"rows_kept":477,"cut":false,"hidden":true,"merged":[[85,1,85,2],[86,1,86,2],[87,1,87,2],[80,1,80,2],[81,1,81,2],[82,1,82,2],[83,1,83,2],[84,1,84,2],[75,1,75,2],[76,1,76,2],[77,1,77,2],[78,1,78,2],[79,1,79,2],[70,1,70,2],[71,1,71,2],[72,1,72,2],[73,1,73,2],[74,1,74,2],[252,1,254,5],[115,1,117,5],[121,1,123,5],[163,1,165,5],[345,1,346,5],[158,1,160,5],[234,1,236,5],[168,1,170,5],[173,1,175,5],[185,1,187,5],[180,1,182,5],[192,1,194,5],[198,1,200,5],[196,1,197,5],[241,1,243,5],[246,1,248,5],[203,1,205,5],[208,1,210,5],[215,1,217,5],[220,1,222,5],[227,1,229,5],[285,1,287,5],[256,1,257,5],[289,1,289,5],[292,1,294,5],[298,1,300,5],[275,1,277,5],[280,1,282,5],[270,1,272,5],[260,1,262,5],[265,1,267,5],[397,1,399,5],[313,1,315,5],[296,1,297,5],[317,1,317,5],[347,1,349,5],[371,1,371,5],[362,1,364,5],[367,1,369,5],[308,1,310,5],[323,1,325,5],[303,1,305,5],[321,1,322,5],[334,1,336,5],[332,1,333,5],[352,1,354,5],[357,1,359,5],[385,1,387,5],[380,1,382,5],[449,1,451,5],[443,1,443,5],[444,1,446,5],[439,1,441,5],[438,1,438,5],[422,1,424,5],[431,1,431,5],[434,1,436,5],[427,1,428,5],[390,1,392,5],[402,1,404,5],[407,1,409,5],[412,1,414,5],[417,1,419,5]]}
[null,"SCHEDULE OF FINANCIAL CONDITION REPORT"]
["i)","Business and Performance - particulars regarding the organisational structure, insurance business activities and financial performance "]
[]
["(a)","Name of the insurer:"]
[null,null,null,null,null,{"$f":"+'Company Information'!C7","v":"Enter Company Name"}]
["(b)","Name and contact details of the insurance supervisor and group supervisor"]
[null,null,null,"Insurance Supervisor",null,"Group Supervisor"]
[null,"Name:"]
[null,"Jurisdiction:"]
[null,"Email Address:"]
[null,"Phone Number:"]
[]
["(c)","Name and contact details of the Approved Auditor"]
[]
[null,"Organisation:"]
[null,"Name:"]
[null,"Jurisdiction:"]
[null,"Email Address:"]
[null,"Phone Number:"]
[]
["(d)","Ownership details: ",null,null,null,"Enter Number of Owners"]
[]
[null,null,null,"Owner Name",null,"Ownership Percentage"]
[null,null,1]
[null,null,{"$f":"C24+1","v":2}]
[null,null,{"$f":"C25+1","v":3}]
[null,null,4]
[null,null,5]
[null,null,6]
[null,null,7]
[null,null,8]
[null,null,9]
[null,null,10]
[null,null,11]
[null,null,12]
[null,null,13]
[null,null,14]
[null,null,{"$f":"C37+1","v":15}]
[]
["(e)","Where the insurer is part of a group, a group structure chart showing where the insurer fits within the group structure"]
[]
["(f)","Insurance business written by business segment and by geographical region during the reporting period:"]
[null,"Line of Business",null,"Gross Premium Written",null,"Net Premium Written"]
[1,"Property Catastrophe",null,{"$f":"+'Schedule IVA (EBS)'!M11","v":0},null,{"$f":"+'Schedule IVA (EBS)'!Q11","v":0}]
[2,"Property",null,{"$f":"+'Schedule IVA (EBS)'!M12","v":0},null,{"$f":"+'Schedule IVA (EBS)'!Q12","v":0}]
[3,"Property Non – Proportional",null,{"$f":"+'Schedule IVA (EBS)'!M13","v":0},null,{"$f":"+'Schedule IVA (EBS)'!Q13","v":0}]
[4,"Personal Accident",null,{"$f":"+'Schedule IVA (EBS)'!M14","v":0},null,{"$f":"+'Schedule IVA (EBS)'!Q14","v":0}]
[5,"Personal Accident Non- Proportional",null,{"$f":"+'Schedule IVA (EBS)'!M15","v":0},null,{"$f":"+'Schedule IVA (EBS)'!Q15","v":0}]
[6,"Aviation",null,{"$f":"+'Schedule IVA (EBS)'!M16","v":0},null,{"$f":"+'Schedule IVA (EBS)'!Q16","v":0}]
[7,"Aviation Non – Proportional",null,{"$f":"+'Schedule IVA (EBS)'!M17","v":0},null,{"$f":"+'Schedule IVA (EBS)'!Q17","v":0}]
[8,"Credit / Surety ",null,{"$f":"+'Schedule IVA (EBS)'!M18","v":0},null,{"$f":"+'Schedule IVA (EBS)'!Q18","v":0}]
[9,"Credit / Surety Non – Proportional",null,{"$f":"+'Schedule IVA (EBS)'!M19","v":0},null,{"$f":"+'Schedule IVA (EBS)'!Q19","v":0}]
[10,"Energy Offshore / Marine",null,{"$f":"+'Schedule IVA (EBS)'!M20","v":0},null,{"$f":"+'Schedule IVA (EBS)'!Q20","v":0}]
[11,"Energy Offshore / Marine Non - Proportional ",null,{"$f":"+'Schedule IVA (EBS)'!M21","v":0},null,{"$f":"+'Schedule IVA (EBS)'!Q21","v":0}]
[12,"US Casualty",null,{"$f":"+'Schedule IVA (EBS)'!M22","v":0},null,{"$f":"+'Schedule IVA (EBS)'!Q22","v":0}]
[13,"US Casualty Non - Proportional ",null,{"$f":"+'Schedule IVA (EBS)'!M23","v":0},null,{"$f":"+'Schedule IVA (EBS)'!Q23","v":0}]
[14,"US Professional",null,{"$f":"+'Schedule IVA (EBS)'!M24","v":0},null,{"$f":"+'Schedule IVA (EBS)'!Q24","v":0}]
[15,"US Professional Non – Proportional",null,{"$f":"+'Schedule IVA (EBS)'!M25","v":0},null,{"$f":"+'Schedule IVA (EBS)'!Q25","v":0}]
[16,"US Specialty ",null,{"$f":"+'Schedule IVA (EBS)'!M26","v":0},null,{"$f":"+'Schedule IVA (EBS)'!Q26","v":0}]
[17,"US Specialty Non - Proportional",null,{"$f":"+'Schedule IVA (EBS)'!M27","v":0},null,{"$f":"+'Schedule IVA (EBS)'!Q27","v":0}]
[18,"International Motor ",null,{"$f":"+'Schedule IVA (EBS)'!M28","v":0},null,{"$f":"+'Schedule IVA (EBS)'!Q28","v":0}]
[19,"International Motor Non – Proportional",null,{"$f":"+'Schedule IVA (EBS)'!M29","v":0},null,{"$f":"+'Schedule IVA (EBS)'!Q29","v":0}]
[20,"International Casualty Non – Motor ",null,{"$f":"+'Schedule IVA (EBS)'!M30","v":0},null,{"$f":"+'Schedule IVA (EBS)'!Q30","v":0}]
[21,"International Casualty Non Motor Non – Proportional ",null,{"$f":"+'Schedule IVA (EBS)'!M31","v":0},null,{"$f":"+'Schedule IVA (EBS)'!Q31","v":0}]
[22,"Retro Property",null,{"$f":"+'Schedule IVA (EBS)'!M32","v":0},null,{"$f":"+'Schedule IVA (EBS)'!Q32","v":0}]
[23,"Structured / Finite Reinsurance",null,{"$f":"+'Schedule IVA (EBS)'!M33","v":0},null,{"$f":"+'Schedule IVA (EBS)'!Q33","v":0}]
[24,"Health",null,{"$f":"+'Schedule IVA (EBS)'!M34","v":0},null,{"$f":"+'Schedule IVA (EBS)'!Q34","v":0}]
[25,"Total ",null,{"$f":"SUM(D44:D67)","v":0},null,{"$f":"SUM(F44:F67)","v":0}]
[]
[null,"Geographical Location",null,"Gross Premium Written"]
[1,{"$f":"HYPERLINK(\"#'Zones'!c4\",\"Central & Western Asia\")","v":"Central & Western Asia"}]
[2,{"$f":"HYPERLINK(\"#'Zones'!c13\",\"Eastern Asia\")","v":"Eastern Asia"}]
[3,{"$f":"HYPERLINK(\"#'Zones'!c18\",\"South and South-Eastern Asia\")","v":"South and South-Eastern Asia"}]
[4,{"$f":"HYPERLINK(\"#'Zones'!c26\",\"Oceania\")","v":"Oceania"}]
[5,{"$f":"HYPERLINK(\"#'Zones'!c36\",\"Nothern Africa\")","v":"Nothern Africa"}]
[6,{"$f":"HYPERLINK(\"#'Zones'!c46\",\"Southern Africa\")","v":"Southern Africa"}]
[7,{"$f":"HYPERLINK(\"#'Zones'!c57\",\"Eastern Europe\")","v":"Eastern Europe"}]
[8,{"$f":"HYPERLINK(\"#'Zones'!c68\",\"Nothern Europe\")","v":"Nothern Europe"}]
[9,{"$f":"HYPERLINK(\"#'Zones'!c76\",\"Southern Europe\")","v":"Southern Europe"}]
[10,{"$f":"HYPERLINK(\"#'Zones'!c84\",\"Western Europe\")","v":"Western Europe"}]
[11,{"$f":"HYPERLINK(\"#'Zones'!c90\",\"Nothern America (Excluding USA)\")","v":"Nothern America (Excluding USA)"}]
[12,{"$f":"HYPERLINK(\"#'Zones'!c94\",\"Caribean & Centeral America\")","v":"Caribean & Centeral America"}]
[13,{"$f":"HYPERLINK(\"#'Zones'!c107\",\"Eastern South America\")","v":"Eastern South America"}]
[14,{"$f":"HYPERLINK(\"#'Zones'!c112\",\"Nothern, Southern, and Western South America\")","v":"Nothern, Southern, and Western South America"}]
[15,{"$f":"HYPERLINK(\"#'Zones'!c116\",\"North-East United States\")","v":"North-East United States"}]
[16,{"$f":"HYPERLINK(\"#'Zones'!c121\",\"South-East United States\")","v":"South-East United States"}]
[17,{"$f":"HYPERLINK(\"#'Zones'!c127\",\"Mid-West United States\")","v":"Mid-West United States"}]
[18,{"$f":"HYPERLINK(\"#'Zones'!c133\",\"Western United States\")","v":"Western United States"}]
[null,"TOTAL",null,{"$f":"SUM(D71:D88)","v":0}]
[]
["(g)","Performance  of  investments during the reporting period:"]
[null,null,null,"Market Value",null,"Performance"]
[1,{"$f":"+#REF!","v":{"$error":"#REF!"}}]
[null,{"$f":"+#REF!","v":{"$error":"#REF!"}},null,{"$f":"#REF!","v":{"$error":"#REF!"}}]
[null,{"$f":"+#REF!","v":{"$error":"#REF!"}},null,{"$f":"#REF!","v":{"$error":"#REF!"}}]
[null,{"$f":"+#REF!","v":{"$error":"#REF!"}},null,{"$f":"#REF!","v":{"$error":"#REF!"}}]
[2,{"$f":"+#REF!","v":{"$error":"#REF!"}},null,{"$f":"#REF!","v":{"$error":"#REF!"}}]
[3,{"$f":"+#REF!","v":{"$error":"#REF!"}},null,{"$f":"#REF!","v":{"$error":"#REF!"}}]
[4,{"$f":"+#REF!","v":{"$error":"#REF!"}}]
[null,{"$f":"+#REF!","v":{"$error":"#REF!"}},null,{"$f":"#REF!","v":{"$error":"#REF!"}}]
[null,{"$f":"+#REF!","v":{"$error":"#REF!"}},null,{"$f":"#REF!","v":{"$error":"#REF!"}}]
[null,{"$f":"+#REF!","v":{"$error":"#REF!"}},null,{"$f":"#REF!","v":{"$error":"#REF!"}}]
[null,{"$f":"+#REF!","v":{"$error":"#REF!"}},null,{"$f":"#REF!","v":{"$error":"#REF!"}}]
[5,{"$f":"+#REF!","v":{"$error":"#REF!"}},null,{"$f":"#REF!","v":{"$error":"#REF!"}}]
[6,{"$f":"+#REF!","v":{"$error":"#REF!"}}]
[null,{"$f":"+#REF!","v":{"$error":"#REF!"}},null,{"$f":"#REF!","v":{"$error":"#REF!"}}]
[null,{"$f":"+#REF!","v":{"$error":"#REF!"}},null,{"$f":"#REF!","v":{"$error":"#REF!"}}]
[null,{"$f":"+#REF!","v":{"$error":"#REF!"}},null,{"$f":"#REF!","v":{"$error":"#REF!"}}]
[7,{"$f":"+#REF!","v":{"$error":"#REF!"}},null,{"$f":"#REF!","v":{"$error":"#REF!"}}]
[8,{"$f":"+#REF!","v":{"$error":"#REF!"}},null,{"$f":"#REF!","v":{"$error":"#REF!"}}]
[9,{"$f":"+#REF!","v":{"$error":"#REF!"}},null,{"$f":"#REF!","v":{"$error":"#REF!"}}]
[10,{"$f":"+#REF!","v":{"$error":"#REF!"}},null,{"$f":"#REF!","v":{"$error":"#REF!"}}]
[null,{"$f":"+#REF!","v":{"$error":"#REF!"}},null,{"$f":"SUM(D93:D112)","v":{"$error":"#REF!"}}]
[]
[null,"Details  on  material income and expenses incurred"]
[]
[]
[]
[]
["(h)","Any other material information:"]
[]
[]
[]
[]
[]
["ii)","Governance Structure - particulars of corporate governance, risk management and solvency self-assessment frameworks"]
[]
["(a)","Board and Senior Executive:"]
[]
["i.","Directors",null,null,null,{"$f":"'Schedule V(a)'!D8","v":0}]
[]
[null,"Name","Board Position"]
[1,{"$f":"'Schedule V(a)'!C12","v":0},{"$f":"'Schedule V(a)'!D12","v":0}]
[{"$f":"A133+1","v":2},{"$f":"'Schedule V(a)'!C13","v":0},{"$f":"'Schedule V(a)'!D13","v":0}]
[{"$f":"A134+1","v":3},{"$f":"'Schedule V(a)'!C14","v":0},{"$f":"'Schedule V(a)'!D14","v":0}]
[4,{"$f":"'Schedule V(a)'!C15","v":0},{"$f":"'Schedule V(a)'!D15","v":0}]
[5,{"$f":"'Schedule V(a)'!C16","v":0},{"$f":"'Schedule V(a)'!D16","v":0}]
[6,{"$f":"'Schedule V(a)'!C17","v":0},{"$f":"'Schedule V(a)'!D17","v":0}]
[7,{"$f":"'Schedule V(a)'!C18","v":0},{"$f":"'Schedule V(a)'!D18","v":0}]
[8,{"$f":"'Schedule V(a)'!C19","v":0},{"$f":"'Schedule V(a)'!D19","v":0}]
[{"$f":"A140+1","v":9},{"$f":"'Schedule V(a)'!C20","v":0},{"$f":"'Schedule V(a)'!D20","v":0}]
[{"$f":"A141+1","v":10},{"$f":"'Schedule V(a)'!C21","v":0},{"$f":"'Schedule V(a)'!D21","v":0}]
[]
[null,"Officers",null,null,null,{"$f":"'Schedule V(a)'!D33","v":0}]
[]
[null,"Name","Board Position","Responsibilities"]
[1,{"$f":"'Schedule V(a)'!C37","v":0},{"$f":"'Schedule V(a)'!D37","v":0}]
[{"$f":"A147+1","v":2},{"$f":"'Schedule V(a)'!C38","v":0},{"$f":"'Schedule V(a)'!D38","v":0}]
[{"$f":"A148+1","v":3},{"$f":"'Schedule V(a)'!C39","v":0},{"$f":"'Schedule V(a)'!D39","v":0}]
[4,{"$f":"'Schedule V(a)'!C40","v":0},{"$f":"'Schedule V(a)'!D40","v":0}]
[5,{"$f":"'Schedule V(a)'!C41","v":0},{"$f":"'Schedule V(a)'!D41","v":0}]
[6,{"$f":"'Schedule V(a)'!C42","v":0},{"$f":"'Schedule V(a)'!D42","v":0}]
[7,{"$f":"'Schedule V(a)'!C43","v":0},{"$f":"'Schedule V(a)'!D43","v":0}]
[8,{"$f":"'Schedule V(a)'!C44","v":0},{"$f":"'Schedule V(a)'!D44","v":0}]
[9,{"$f":"'Schedule V(a)'!C45","v":0},{"$f":"'Schedule V(a)'!D45","v":0}]
[10,{"$f":"'Schedule V(a)'!C46","v":0},{"$f":"'Schedule V(a)'!D46","v":0}]
[]
[null,"Description of segregation of these responsibilities"]
[]
[]
[]
[]
["ii.","Description of remuneration policy and practices and performance- based criteria governing the board, senior executive and employees"]
[]
[]
[]
[]
["iii.","Description of the supplementary pension or early retirement schemes for members, the board and senior executive"]
[]
[]
[]
[]
["iv.","Any material transactions with shareholder controllers, persons who exercise significant influence, the board or senior executive"]
[]
[]
[]
[]
["(b)","Fitness and Propriety Requirements"]
[]
["i.","Description of the fit and proper process in assessing the board and senior executive"]
[]
[]
[]
[]
["ii.","Description of the professional qualifications, skills, and expertise of the board and senior executives to carry out their functions"]
[]
[]
[]
[]
["(c)","Risk Management and Solvency Self-Assessment"]
[]
["i.","Description of  the risk management process and procedures to effectively identify, measure, manage and report on risk exposures"]
[]
[]
[]
[]
["ii.","Description of how the risk management and solvency self- assessment systems are implemented and integrated into the insurer’s operations; including strategic planning and organisational and decision making process"]
[]
[]
[]
[]
[]
["iii.","Description of the relationship between the solvency self- assessment, solvency needs, and capital and risk management systems"]
[]
[]
[]
[]
["iv.","Description of the solvency self-assessment approval process including the level of oversight and independent verification by the board and senior executives"]
[]
[]
[]
[]
["(d)","Internal Controls"]
[]
["i.","Description of the internal control system"]
[]
[]
[]
[]
["ii.","Description of how the compliance function is executed"]
[]
[]
[]
[]
["(e)","Internal Audit"]
[]
[null,"Description of how the internal audit function is implemented and how it maintains its independence and objectivity when conducting its functions"]
[]
[]
[]
[]
["(f)","Actuarial Function"]
[]
[null,"Description of how the actuarial function is implemented"]
[]
[]
[]
[]
["(g)","Outsourcing"]
[]
["i.","Description of the outsourcing policy and information on any key or important functions that have been outsourced"]
[]
[]
[]
[]
["ii.","Description of material intra-group outsourcing"]
[]
[]
[]
[]
["(h)","Any other material information:"]
[]
[]
[]
[]
[]
["iii)","Risk Profile - particulars on exposures on underwriting risk, market risk including off balance sheet exposures, credit risk, liquidity risk, operational risk and other material risks"]
[]
[]
["(a)","Material risks that the insurer is exposed to, including how these risks are measured and any material changes that have occurred during the reporting period:"]
[]
[]
[]
[]
["(b)","How risks are mitigated including the methods used and the process to monitor the effectiveness of these methods"]
[]
[]
[]
[]
["(c)","Material risk concentrations"]
[]
[]
[]
[]
["(d)","How assets are invested in accordance with the prudent person principle as stated in Paragraph 5.1.2 of the Code"]
[]
[]
[]
[]
["(e)","The stress testing and sensitivity analysis to assess material risks, including the methods and assumptions used, and the outcomes"]
[]
[]
[]
[]
["(f)","Any other material information:"]
[]
[]
[]
[]
["iv)","Solvency Valuation - particulars of the valuation bases, methods and assumptions on the inputs used to determine solvency"]
[]
["(a)","The valuation bases, assumptions and methods used to derive the value of each asset class"]
[]
[]
[]
[]
["(b)","The valuation bases, assumptions and methods used to derive the value of technical provisions and the amount of the best estimate. The amount of the risk margin as well as the level of uncertainty to determine the value of the technical provisions should be included"]
[]
[]
[]
[]
[]
["(c)","Description of recoverables from reinsurance contracts, including special purpose insurers and other risk transfer mechanisms"]
[]
[]
[]
[]
["(d)","The valuation bases, assumptions and methods used to derive the value of other liabilities"]
[]
[]
[]
[]
["(e)","Any other material information:"]
[]
[]
[]
[]
["v)","Capital Management - particulars regarding an assessment of capital needs and regulatory capital requirements"]
[]
["(a)","Eligible Capital"]
[]
["i.","Description of the capital management policy and process to determine capital needs for business planning, how capital is managed and any material changes during the reporting period"]
[]
[]
[]
[]
[]
["ii.","Eligible Capital"]
[null,"Tier 1",null,null,null,{"$f":"+'Schedule XII(a)'!J56","v":0}]
[null,"Tier 2",null,null,null,{"$f":"+'Schedule XII(a)'!J69","v":0}]
[null,"Tier 3",null,null,null,{"$f":"+'Schedule XII(a)'!J77","v":0}]
[null,"Total",null,null,null,{"$f":"SUM(F329:F331)","v":0}]
[null,"Description of the eligible capital categorised by tiers in accordance with the Eligible Capital Rules"]
[]
[]
[]
[]
[]
["iii.","Eligible Capital by Regulatory Limitations"]
[null,null,"Limits:                 MSM                    ECR","Minimum Margin of Solvency",null,"Enhanced Capital Requirement"]
[null,"Tier 1",{"$f":"IF('Company Information'!$F$11=\"Class 3A\",\"min                             80%                          50%\",\"min                             80%                          60%\")","v":"min                             80%                          50%"},{"$f":"+'Schedule XII(a)'!G92","v":0},null,{"$f":"+'Schedule XII(a)'!I92","v":0}]
[null,"Tier 2",{"$f":"IF('Company Information'!$F$11=\"Class 3A\",\"max                             25%                          50%\",\"max                             25%                          66.67%\")","v":"max                             25%                          50%"},{"$f":"+'Schedule XII(a)'!G93","v":0},null,{"$f":"+'Schedule XII(a)'!I93","v":0}]
[null,"Tier 3","max                                                              17.65%",{"$f":"+'Schedule XII(a)'!G94","v":0},null,{"$f":"+'Schedule XII(a)'!I94","v":0}]
[null,"Total",null,{"$f":"SUM(D341:D343)","v":0},null,{"$f":"SUM(F341:F343)","v":0}]
[]
[null,"Description of the  eligible capital categorised by tiers, in accordance with the Eligible Capital Rules used to meet the Enhanced Capital Requirement (“ECR”) and the Minimum Margin of Solvency (“MSM”) defined in accordance with section (1) (1) of the Act"]
[]
[]
[]
[]
[]
["iv.","Confirmation that eligible capital is subject to transitional arrangements as required under the Eligible Capital Rules",null,null,null,"Select from Drop-Down"]
[]
[]
[]
[]
["v.","Identification of any factors affecting encumbrances affecting the availability and transferability of capital to meet the ECR"]
[]
[]
[]
[]
["vi."," Identification of ancillary capital instruments that have been approved by the Authority"]
[]
[]
[]
[]
["vii.","Identification of differences in shareholder’s equity as stated in the financial statements versus available statutory capital and surplus"]
[]
[]
[]
[]
["(b)","Regulatory Capital Requirements"]
[]
["i.","Amount of the ECR and MSM at the end of the reporting period:"]
[]
[null,null,null,null,null,"Amount"]
[null,"Minimum Margin of Solvency",null,null,null,{"$f":"+Summary!N106","v":1000}]
[null,"Enhanced Capital Requirement",null,null,null,{"$f":"+Summary!N112","v":1000}]
[]
["ii.","Identification of any non-compliance with the MSM and the ECR"]
[]
[]
[]
[]
["iii.","Description of the amount and circumstances surrounding the non-compliance, the remedial measures taken and their effectiveness"]
[]
[]
[]
[]
["iv.","Where the non-compliance has not been resolved, description of the amount of the non-compliance at the end of the reporting period"]
[]
[]
[]
[]
["(c)","Approved Internal Capital Model used to derive the ECR"]
[]
["i.","Description of the purpose and scope of the business and risk areas where the internal model is used"]
[]
[]
[]
[]
["ii.","where a partial internal model is used, description of how it is integrated with the BSCR Model"]
[]
[]
[]
[]
["iii.","Description of methods used in the internal model to calculate the ECR"]
[]
[]
[]
[]
["iv.","Description of aggregation methodologies and diversification effects"]
[]
[]
[]
[]
["v.","description of the main differences in the methods and assumptions used for the risk areas in the internal model versus the BSCR Model"]
[]
[]
[]
[]
["vi.","Description of the nature and suitability of the data used in the internal model"]
[]
[]
[]
[]
["vii.","Any other material information:"]
[]
[]
[]
[]
["vi)","Significant Event - particulars and explanations of a significant event including, but not limited to the following"]
[]
["(a)","Description of the significant event"]
[]
[]
[]
[]
["(b)","Approximate date(s) or proposed timing of the significant event"]
[]
[]
[]
[]
["(c)","Confirmation of how the significant event has impacted or will impact, any information provided in the most recent financial condition report filed with the Authority"]
[]
[]
[]
[]
["(d)","Any other material information:"]
[]
[]
[]
[]
[]
[null,null,null,null,null,null,null,null,null,""]
[]
[null,"General Questions"]
[null,"Select from Drop-Down"]
[null,"Yes"]
[null,"No"]
[]
[null,"Ra"]
[null,"Rating Agency"]
[null,"Select Rating Agency"]
[null,"Standard & Poor"]
[null,"Moody's"]
[null,"AM Best"]
[null,"Fitch"]
[null,"Standard & Poor","Moody's","AM Best","Fitch"]
[null,"AAA","Aaa","A++","AAA"]
[null,"AA+ to AA-","Aa1 to Aa3","A+","AA+ to AA-"]
[null,"A+ to A-","A1 to A3","A","A+ to A-"]
[null,"BBB+ to BBB-","Baa1 to Baa3","A-","BBB+ to BBB-"]
[null,"BB+ to BB-","Ba1 to Ba3","B++ to B","BB+ to BB-"]
[null,"B+ to B-","B1 to B3","B- to C+","B+ to B-"]
[null,"CCC+ to CCC-","Caa1 to Caa3","C, C-","CCC+ to CCC-"]
[null,"Below CCC-","Below Caa3","Below C-","Below CCC-"]

{"sheet":"SAR & Sanc. (All)","index":15,"n_rows":66,"n_cols":19,"rows_kept":66,"cut":false,"hidden":false,"merged":[[52,2,56,9],[0,1,0,4],[4,1,4,9],[9,2,9,4],[13,2,13,4],[16,2,16,4],[27,2,31,9],[43,5,43,7],[44,5,44,7],[45,5,45,7],[46,5,46,7],[47,5,47,7]]}
[null,"SCHEDULE OF SUSPICIOUS ACTIVITY REPORTING AND SANCTIONS",null,null,null,null,null,null,null,{"$f":"HYPERLINK(\"#'Index'!A1\",\"Return to Index\")","v":"Return to Index"},null,null,null,null,null,{"$f":"HYPERLINK(\"#'Index'!A1\",\"Return to Index\")","v":"Return to Index"},{"$f":"IF($B$3=\"\",\"\",TEXT(DATE(YEAR($B$3+1)-1,MONTH($B$3+1),DAY($B$3+1)),\"mm/dd/yyyy\"))","v":"01/01/2023"}]
[null,{"$f":"'Company Information'!C7","v":"Enter Company Name"},null,null,null,null,null,null,null,null,null,null,null,null,null,null,{"$f":"IF($B$3=\"\",\"\",TEXT($B$3,\"mm/dd/yyyy\"))","v":"12/31/2023"}]
[null,{"$f":" TEXT('Company Information'!C3,\"d mmmm yyyy\")","v":"31 December 2023"},null,null,null,null,null,null,null,"SAR & Sanctions"]
[]
[null,"All insurers shall be required to complete the questions set out in the Suspicious Activity Reporting and Sanctions Schedule (on a unconsolidated basis). "]
[]
["Section E - Reporting"]
[null,1,"Is your company registered with GoAML at www.fia.bm",null,null,null,null,null,{"$f":"Import!E45103","v":"Select Yes/No"}]
[null,null,"1.1 If yes, under what name and when?"]
[null,null,{"$f":"Import!E45105","v":0},null,null,null,null,null,{"$f":"Import!E45104","v":"(Select)"}]
[]
[null,null,"1.2 If you answered no to 1., do you have access to GoAML through another registration?",null,null,null,null,null,{"$f":"Import!E45106","v":"Select Yes/No"}]
[null,null,"1.3 Under what name and how are you connected?"]
[null,null,{"$f":"Import!E45107","v":0}]
[]
[null,null,"1.4 if you answered no to 1. and 1.2 who would file a SAR on your behalf?"]
[null,null,{"$f":"Import!E45108","v":0}]
[]
[null,2,"How many Suspicious Activity Reports (SAR) have been filed?"]
[null,null,null,null,null,null,"Internal",null,"With FIA"]
[null,null,null,null,null,{"$f":"YEAR($B$3)","v":2023},{"$f":"Import!E45109","v":0},{"$f":"YEAR($B$3)","v":2023},{"$f":"Import!E45114","v":0}]
[null,null,null,null,null,{"$f":"F21-1","v":2022},{"$f":"Import!E45110","v":0},{"$f":"H21-1","v":2022},{"$f":"Import!E45115","v":0}]
[null,null,null,null,null,{"$f":"F22-1","v":2021},{"$f":"Import!E45111","v":0},2021,{"$f":"Import!E45116","v":0}]
[null,null,null,null,null,2020,{"$f":"Import!E45112","v":0},2020,{"$f":"Import!E45117","v":0}]
[null,null,null,null,null,"Total",{"$f":"SUM(G21:G24)","v":0},"Total",{"$f":"SUM(I21:I24)","v":0}]
[]
[null,null,"Include any additional information/comments which you think might be relevant to this exercise?"]
[null,null,{"$f":"Import!E45119","v":0}]
[]
[]
[]
[]
[]
["SANCTIONS QUESTIONNAIRE"]
[null,1,"Does the company screen insurers and beneficiaries (where relevant) to determine if they are subject to measures imposed under Bermuda sanctions regime?",null,null,null,null,null,{"$f":"Import!E45121","v":"Select Yes/No"}]
[]
[null,2,"Does the company screen employees to determine if they are subject to measures imposed under Bermuda sanctions regime?",null,null,null,null,null,{"$f":"Import!E45121","v":"Select Yes/No"}]
[]
[null,3,"Has the Company frozen any customer assets in the last 12 months under the Bermuda sanctions regime?",null,null,null,null,null,{"$f":"Import!E45122","v":"Select Yes/No"}]
[]
[null,null,"3.1 If yes, how many asset freezes have there been?",null,null,null,null,null,{"$f":"Import!E45123","v":0}]
[]
[null,null,"3.2 Provide the following details for those assets freezes from the consolidated list:"]
[null,null,null,null,"Group ID","Name of the designated person as given on the consolidated list",null,null,"Name of the person/entity if owned/controlled by a designated person.","Value of Assets"]
[null,null,null,1,{"$f":"Import!E45124","v":0},{"$f":"Import!E45128","v":0},null,null,{"$f":"Import!E45132","v":0},{"$f":"Import!E45136","v":0}]
[null,null,null,2,{"$f":"Import!E45125","v":0},{"$f":"Import!E45129","v":0},null,null,{"$f":"Import!E45133","v":0},{"$f":"Import!E45137","v":0}]
[null,null,null,3,{"$f":"Import!E45126","v":0},{"$f":"Import!E45130","v":0},null,null,{"$f":"Import!E45134","v":0},{"$f":"Import!E45138","v":0}]
[null,null,null,4,{"$f":"Import!E45127","v":0},{"$f":"Import!E45131","v":0},null,null,{"$f":"Import!E45135","v":0},{"$f":"Import!E45139","v":0}]
[]
[null,4,"How often does the licensee screen for sanctions?",null,null,null,null,null,{"$f":"Import!E45141","v":"Select"}]
[]
[null,null,"Include any additional information/comments which you think might be relevant to this exercise?"]
[null,null,{"$f":"Import!E45142","v":0}]
[]
[]
[]
[]
[null,null,null,null,null,null,null,null,null,null,null,null,null,null,null,null,null,null,""]
[]
[]
[null,null,null,null,null,null,null,2016,"Every year","Yes"]
[null,null,null,null,null,null,null,2015,"1 to 2 years","No"]
[null,null,null,null,null,null,null,2014,"2 to 5 years"]
[null,null,null,null,null,null,null,2013,"+5 years"]
[null,null,null,null,null,null,null,2012]
[null,null,null,null,null,null,null,"Prior 2012"]

{"sheet":"Form 1SFS","index":16,"n_rows":336,"n_cols":17,"rows_kept":336,"cut":false,"hidden":false,"merged":[[247,2,248,8],[7,12,7,14],[7,4,7,6],[6,4,6,6],[6,12,6,14],[6,8,6,10],[7,8,7,10],[2,4,5,10],[318,4,318,8],[318,10,318,14],[220,8,220,10],[221,8,221,10],[222,8,222,10],[223,8,223,10],[224,8,224,10],[230,8,230,10],[231,8,231,10],[232,8,232,10],[233,8,233,10],[234,8,234,10],[241,2,242,8],[241,10,242,14],[244,2,245,8]]}
[null,"STATUTORY BALANCE SHEET",null,null,null,null,null,null,null,null,null,null,null,null,{"$f":"HYPERLINK(\"#'Index'!A1\",\"Return to Index\")","v":"Return to Index"}]
[]
[null,{"$f":"'Company Information'!C7","v":"Enter Company Name"},null,null,"Note if an insurer does not have any entities to consolidate, select \"No Subsidiaries\" on the Company Information tab (This cell is editable for deletion)",null,null,null,null,null,null,null,null,null,"FORM 1SFS"]
[null,"As at",{"$f":"'Company Information'!C3","v":"2023-12-31"}]
[null,{"$f":"\"expressed in\"& IF(CONFIGURATION!$B$12>1,\" ['\"&MID(CONFIGURATION!$B$12,2,LEN(CONFIGURATION!$B$12))&\"s]\",\"\")","v":"expressed in ['000s]"},"United States Dollars"]
[]
[null,null,null,null,"General Business",null,null,null,"Long-Term Business",null,null,null,"General & Long-Term Business"]
[null,"STMT.",null,null,"Unconsolidated",null,null,null,"Unconsolidated",null,null,null,"Consolidated"]
[null,"LINE No.",null,null,{"$f":"C4","v":"2023-12-31"},null,{"$f":"DATE(YEAR(C4) -1, MONTH(C4), DAY(C4))","v":"2022-12-31"},null,{"$f":"C4","v":"2023-12-31"},null,{"$f":"DATE(YEAR(C4) -1, MONTH(C4), DAY(C4))","v":"2022-12-31"},null,{"$f":"C4","v":"2023-12-31"},null,{"$f":"DATE(YEAR(C4) -1, MONTH(C4), DAY(C4))","v":"2022-12-31"}]
[null,null,null,null,{"$f":"CONFIGURATION!$D$12","v":" ('000s)"},null,{"$f":"CONFIGURATION!$D$12","v":" ('000s)"},null,{"$f":"CONFIGURATION!$D$12","v":" ('000s)"},null,{"$f":"CONFIGURATION!$D$12","v":" ('000s)"},null,{"$f":"CONFIGURATION!$D$12","v":" ('000s)"},null,{"$f":"CONFIGURATION!$D$12","v":" ('000s)"}]
[]
[null,"1.","CASH AND CASH EQUIVALENTS",null,{"$f":"+Import!E102","v":0},null,{"$f":"+Import!G102","v":0},null,{"$f":"+Import!E211","v":0},null,{"$f":"+Import!G211","v":0},null,{"$f":"+Import!I102","v":0},null,{"$f":"+Import!K102","v":0}]
[]
[null,"2.","QUOTED INVESTMENTS:"]
[null,"(a)","Bonds and Debentures"]
[null,null,"  i.   Held to maturity",null,{"$f":"+Import!E103","v":0},null,{"$f":"+Import!G103","v":0},null,{"$f":"+Import!E212","v":0},null,{"$f":"+Import!G212","v":0},null,{"$f":"+Import!I103","v":0},null,{"$f":"+Import!K103","v":0}]
[null,null,"  ii.  Other",null,{"$f":"+Import!E104","v":0},null,{"$f":"+Import!G104","v":0},null,{"$f":"+Import!E213","v":0},null,{"$f":"+Import!G213","v":0},null,{"$f":"+Import!I104","v":0},null,{"$f":"+Import!K104","v":0}]
[null,"(b)","Total Bonds and Debentures",null,{"$f":"SUM(E16:E17)","v":0},null,{"$f":"SUM(G16:G17)","v":0},null,{"$f":"SUM(I16:I17)","v":0},null,{"$f":"SUM(K16:K17)","v":0},null,{"$f":"SUM(M16:M17)","v":0},null,{"$f":"SUM(O16:O17)","v":0}]
[null,"(c) ","Equities "]
[null,null,"  i.   Common stocks",null,{"$f":"Import!E106","v":0},null,{"$f":"Import!G106","v":0},null,{"$f":"+Import!E214","v":0},null,{"$f":"+Import!G214","v":0},null,{"$f":"+Import!I106","v":0},null,{"$f":"+Import!K106","v":0}]
[null,null,"  ii. Preferred stocks",null,{"$f":"Import!E107","v":0},null,{"$f":"Import!G107","v":0},null,{"$f":"+Import!E215","v":0},null,{"$f":"+Import!G215","v":0},null,{"$f":"+Import!I107","v":0},null,{"$f":"+Import!K107","v":0}]
[null,null,"  iii. Mutual Funds",null,{"$f":"Import!E108","v":0},null,{"$f":"Import!G108","v":0},null,{"$f":"+Import!E216","v":0},null,{"$f":"+Import!G216","v":0},null,{"$f":"+Import!I108","v":0},null,{"$f":"+Import!K108","v":0}]
[null,"(d) ","Total equity investments",null,{"$f":"SUM(E20:E22)","v":0},null,{"$f":"SUM(G20:G22)","v":0},null,{"$f":"SUM(I20:I22)","v":0},null,{"$f":"SUM(K20:K22)","v":0},null,{"$f":"SUM(M20:M22)","v":0},null,{"$f":"SUM(O20:O22)","v":0}]
[null,"(e)","Other quoted investments",null,{"$f":"Import!E109","v":0},null,{"$f":"Import!G109","v":0},null,{"$f":"+Import!E217","v":0},null,{"$f":"+Import!G217","v":0},null,{"$f":"+Import!I109","v":0},null,{"$f":"+Import!K109","v":0}]
[null,"(f)","Total quoted investments",null,{"$f":"E18+E23+E24","v":0},null,{"$f":"G18+G23+G24","v":0},null,{"$f":"I18+I23+I24","v":0},null,{"$f":"K18+K23+K24","v":0},null,{"$f":"M18+M23+M24","v":0},null,{"$f":"O18+O23+O24","v":0}]
[]
[null,"3.","UNQUOTED INVESTMENTS:"]
[null,"(a)","Bonds and Debentures"]
[null,null,"  i.   Held to maturity",null,{"$f":"Import!E110","v":0},null,{"$f":"Import!G110","v":0},null,{"$f":"+Import!E218","v":0},null,{"$f":"+Import!G218","v":0},null,{"$f":"+Import!I110","v":0},null,{"$f":"+Import!K110","v":0}]
[null,null,"  ii.  Other",null,{"$f":"Import!E111","v":0},null,{"$f":"Import!G111","v":0},null,{"$f":"+Import!E219","v":0},null,{"$f":"+Import!G219","v":0},null,{"$f":"+Import!I111","v":0},null,{"$f":"+Import!K111","v":0}]
[null,"(b)","Total Bonds and Debentures",null,{"$f":"SUM(E29:E30)","v":0},null,{"$f":"SUM(G29:G30)","v":0},null,{"$f":"SUM(I29:I30)","v":0},null,{"$f":"SUM(K29:K30)","v":0},null,{"$f":"SUM(M29:M30)","v":0},null,{"$f":"SUM(O29:O30)","v":0}]
[null,"(c) ","Equities "]
[null,null,"  i.   Common stocks",null,{"$f":"Import!E113","v":0},null,{"$f":"Import!G113","v":0},null,{"$f":"+Import!E220","v":0},null,{"$f":"+Import!G220","v":0},null,{"$f":"+Import!I113","v":0},null,{"$f":"+Import!K113","v":0}]
[null,null,"  ii. Preferred stocks",null,{"$f":"Import!E114","v":0},null,{"$f":"Import!G114","v":0},null,{"$f":"+Import!E221","v":0},null,{"$f":"+Import!G221","v":0},null,{"$f":"+Import!I114","v":0},null,{"$f":"+Import!K114","v":0}]
[null,null,"  iii . Mutual Funds",null,{"$f":"Import!E115","v":0},null,{"$f":"Import!G115","v":0},null,{"$f":"+Import!E222","v":0},null,{"$f":"+Import!G222","v":0},null,{"$f":"+Import!I115","v":0},null,{"$f":"+Import!K115","v":0}]
[null,"(d) ","Total equity investments",null,{"$f":"SUM(E33:E35)","v":0},null,{"$f":"SUM(G33:G35)","v":0},null,{"$f":"SUM(I33:I35)","v":0},null,{"$f":"SUM(K33:K35)","v":0},null,{"$f":"SUM(M33:M35)","v":0},null,{"$f":"SUM(O33:O35)","v":0}]
[null,"(e) ","Other unquoted investments",null,{"$f":"Import!E116","v":0},null,{"$f":"Import!G116","v":0},null,{"$f":"+Import!E223","v":0},null,{"$f":"+Import!G223","v":0},null,{"$f":"+Import!I116","v":0},null,{"$f":"+Import!K116","v":0}]
[null,"(f) ","Total unquoted investments",null,{"$f":"E31+E36+E37","v":0},null,{"$f":"G31+G36+G37","v":0},null,{"$f":"I31+I36+I37","v":0},null,{"$f":"K31+K36+K37","v":0},null,{"$f":"M31+M36+M37","v":0},null,{"$f":"O31+O36+O37","v":0}]
[]
[null,"4.","INVESTMENTS IN AND ADVANCES TO AFFILIATES (EQUITY METHOD):"]
[null,"(a)","Unregulated entities that conduct ancillary services",null,{"$f":"Import!E117","v":0},null,{"$f":"Import!G117","v":0},null,{"$f":"+Import!E224","v":0},null,{"$f":"+Import!G224","v":0},null,{"$f":"+Import!I117","v":0},null,{"$f":"+Import!K117","v":0}]
[null,"(b)","Unregulated non-financial operating entities",null,{"$f":"Import!E118","v":0},null,{"$f":"Import!G118","v":0},null,{"$f":"+Import!E225","v":0},null,{"$f":"+Import!G225","v":0},null,{"$f":"+Import!I118","v":0},null,{"$f":"+Import!K118","v":0}]
[null,"(c)","Unregulated financial operating entities",null,{"$f":"Import!E119","v":0},null,{"$f":"Import!G119","v":0},null,{"$f":"+Import!E226","v":0},null,{"$f":"+Import!G226","v":0},null,{"$f":"+Import!I119","v":0},null,{"$f":"+Import!K119","v":0}]
[null,"(d)","Regulated non-insurance financial operating entities",null,{"$f":"Import!E120","v":0},null,{"$f":"Import!G120","v":0},null,{"$f":"+Import!E227","v":0},null,{"$f":"+Import!G227","v":0},null,{"$f":"+Import!I120","v":0},null,{"$f":"+Import!K120","v":0}]
[null,"(e)","Regulated insurance financial operating entities",null,{"$f":"Import!E121","v":0},null,{"$f":"Import!G121","v":0},null,{"$f":"+Import!E228","v":0},null,{"$f":"+Import!G228","v":0},null,{"$f":"+Import!I121","v":0},null,{"$f":"+Import!K121","v":0}]
[null,"(f)","Total investments in affiliates (equity method)",null,{"$f":"SUM(E41:E45)","v":0},null,{"$f":"SUM(G41:G45)","v":0},null,{"$f":"SUM(I41:I45)","v":0},null,{"$f":"SUM(K41:K45)","v":0},null,{"$f":"SUM(M41:M45)","v":0},null,{"$f":"SUM(O41:O45)","v":0}]
[null,"(g)","Advances to affiliates",null,{"$f":"Import!E122","v":0},null,{"$f":"Import!G122","v":0},null,{"$f":"+Import!E229","v":0},null,{"$f":"+Import!G229","v":0},null,{"$f":"+Import!I122","v":0},null,{"$f":"+Import!K122","v":0}]
[null,"(h)","Total investments in and advances to affiliates (equity method)",null,{"$f":"E46+E47","v":0},null,{"$f":"G46+G47","v":0},null,{"$f":"I46+I47","v":0},null,{"$f":"K46+K47","v":0},null,{"$f":"M46+M47","v":0},null,{"$f":"O46+O47","v":0}]
[]
[null,"5.","INVESTMENTS IN MORTGAGE LOANS ON REAL ESTATE:"]
[null,"(a)","First liens",null,{"$f":"Import!E123","v":0},null,{"$f":"Import!G123","v":0},null,{"$f":"+Import!E230","v":0},null,{"$f":"+Import!G230","v":0},null,{"$f":"+Import!I123","v":0},null,{"$f":"+Import!K123","v":0}]
[null,"(b)","Other than first liens ",null,{"$f":"Import!E124","v":0},null,{"$f":"Import!G124","v":0},null,{"$f":"+Import!E231","v":0},null,{"$f":"+Import!G231","v":0},null,{"$f":"+Import!I124","v":0},null,{"$f":"+Import!K124","v":0}]
[null,"(c) ","Total investments in mortgage loans on real estate",null,{"$f":"SUM(E51:E52)","v":0},null,{"$f":"SUM(G51:G52)","v":0},null,{"$f":"SUM(I51:I52)","v":0},null,{"$f":"SUM(K51:K52)","v":0},null,{"$f":"SUM(M51:M52)","v":0},null,{"$f":"SUM(O51:O52)","v":0}]
[]
[null,"6.","POLICY LOANS",null,null,null,null,null,{"$f":"+Import!E232","v":0},null,{"$f":"+Import!G232","v":0},null,{"$f":"+Import!I125","v":0},null,{"$f":"+Import!K125","v":0}]
[]
[null,"7.","REAL ESTATE:"]
[null,"(a)","Occupied by the company (less encumbrances)",null,{"$f":"Import!E126","v":0},null,{"$f":"Import!G126","v":0},null,{"$f":"+Import!E233","v":0},null,{"$f":"+Import!G233","v":0},null,{"$f":"+Import!I126","v":0},null,{"$f":"+Import!K126","v":0}]
[null,"(b)","Other properties (less encumbrances)",null,{"$f":"Import!E127","v":0},null,{"$f":"Import!G127","v":0},null,{"$f":"+Import!E234","v":0},null,{"$f":"+Import!G234","v":0},null,{"$f":"+Import!I127","v":0},null,{"$f":"+Import!K127","v":0}]
[null,"(c) ","Total real estate",null,{"$f":"SUM(E58:E59)","v":0},null,{"$f":"SUM(G58:G59)","v":0},null,{"$f":"SUM(I58:I59)","v":0},null,{"$f":"SUM(K58:K59)","v":0},null,{"$f":"SUM(M58:M59)","v":0},null,{"$f":"SUM(O58:O59)","v":0}]
[]
[null,"8.","COLLATERAL LOANS",null,{"$f":"Import!E128","v":0},null,{"$f":"Import!G128","v":0},null,{"$f":"+Import!E235","v":0},null,{"$f":"+Import!G235","v":0},null,{"$f":"+Import!I128","v":0},null,{"$f":"+Import!K128","v":0}]
[]
[null,"9.","INVESTMENT INCOME DUE AND ACCRUED",null,{"$f":"Import!E129","v":0},null,{"$f":"Import!G129","v":0},null,{"$f":"+Import!E236","v":0},null,{"$f":"+Import!G236","v":0},null,{"$f":"+Import!I129","v":0},null,{"$f":"+Import!K129","v":0}]
[]
[null,"10.","ACCOUNTS AND PREMIUMS RECEIVABLE:"]
[null,"(a)","In course of collection",null,{"$f":"Import!E130","v":0},null,{"$f":"Import!G130","v":0},null,{"$f":"+Import!E237","v":0},null,{"$f":"+Import!G237","v":0},null,{"$f":"+Import!I130","v":0},null,{"$f":"+Import!K130","v":0}]
[null,"(b)","Deferred - not yet due",null,{"$f":"Import!E131","v":0},null,{"$f":"Import!G131","v":0},null,{"$f":"+Import!E238","v":0},null,{"$f":"+Import!G238","v":0},null,{"$f":"+Import!I131","v":0},null,{"$f":"+Import!K131","v":0}]
[null,"(c) ","Receivables from retrocessional contracts",null,{"$f":"Import!E132","v":0},null,{"$f":"Import!G132","v":0},null,{"$f":"+Import!E239","v":0},null,{"$f":"+Import!G239","v":0},null,{"$f":"+Import!I132","v":0},null,{"$f":"+Import!K132","v":0}]
[null,"(d) ","Total accounts and premiums receivable",null,{"$f":"SUM(E67:E69)","v":0},null,{"$f":"SUM(G67:G69)","v":0},null,{"$f":"SUM(I67:I69)","v":0},null,{"$f":"SUM(K67:K69)","v":0},null,{"$f":"SUM(M67:M69)","v":0},null,{"$f":"SUM(O67:O69)","v":0}]
[]
[null,"11.","REINSURANCE BALANCES RECEIVABLE:"]
[null,"(a)","Foreign affiliates",null,{"$f":"Import!E133","v":0},null,{"$f":"Import!G133","v":0},null,{"$f":"+Import!E240","v":0},null,{"$f":"+Import!G240","v":0},null,{"$f":"+Import!I133","v":0},null,{"$f":"+Import!K133","v":0}]
[null,"(b)","Domestic affiliates",null,{"$f":"Import!E134","v":0},null,{"$f":"Import!G134","v":0},null,{"$f":"+Import!E241","v":0},null,{"$f":"+Import!G241","v":0},null,{"$f":"+Import!I134","v":0},null,{"$f":"+Import!K134","v":0}]
[null,"(c) ","Pools & associations",null,{"$f":"Import!E135","v":0},null,{"$f":"Import!G135","v":0},null,{"$f":"+Import!E242","v":0},null,{"$f":"+Import!G242","v":0},null,{"$f":"+Import!I135","v":0},null,{"$f":"+Import!K135","v":0}]
[null,"(d) ","All other insurers",null,{"$f":"Import!E136","v":0},null,{"$f":"Import!G136","v":0},null,{"$f":"+Import!E243","v":0},null,{"$f":"+Import!G243","v":0},null,{"$f":"+Import!I136","v":0},null,{"$f":"+Import!K136","v":0}]
[null,"(e)","Total reinsurance balances receivable",null,{"$f":"SUM(E73:E76)","v":0},null,{"$f":"SUM(G73:G76)","v":0},null,{"$f":"SUM(I73:I76)","v":0},null,{"$f":"SUM(K73:K76)","v":0},null,{"$f":"SUM(M73:M76)","v":0},null,{"$f":"SUM(O73:O76)","v":0}]
[]
[null,"12.","FUNDS HELD BY CEDING REINSURERS:",null,{"$f":"Import!E139","v":0},null,{"$f":"Import!G139","v":0},null,{"$f":"+Import!E244","v":0},null,{"$f":"+Import!G244","v":0},null,{"$f":"+Import!I139","v":0},null,{"$f":"+Import!K139","v":0}]
[]
[null,"13.","SUNDRY ASSETS:"]
[null,"(a)","Derivative instruments",null,{"$f":"Import!E140","v":0},null,{"$f":"Import!G140","v":0},null,{"$f":"+Import!E245","v":0},null,{"$f":"+Import!G245","v":0},null,{"$f":"+Import!I140","v":0},null,{"$f":"+Import!K140","v":0}]
[null,"(b)","Segregated accounts companies - long-term business - variable annuities",null,null,null,null,null,{"$f":"+Import!E246","v":0},null,{"$f":"+Import!G246","v":0},null,{"$f":"+Import!I141","v":0},null,{"$f":"+Import!K141","v":0}]
[null,"(c) ","Segregated accounts companies - long-term business - others",null,null,null,null,null,{"$f":"+Import!E247","v":0},null,{"$f":"+Import!G247","v":0},null,{"$f":"+Import!I142","v":0},null,{"$f":"+Import!K142","v":0}]
[null,"(d)","Segregated accounts companies - general business",null,{"$f":"Import!E143","v":0},null,{"$f":"Import!G143","v":0},null,null,null,null,null,{"$f":"+Import!I143","v":0},null,{"$f":"+Import!K143","v":0}]
[null,"(e) ","Deposit assets",null,{"$f":"Import!E144","v":0},null,{"$f":"Import!G144","v":0},null,{"$f":"+Import!E249","v":0},null,{"$f":"+Import!G249","v":0},null,{"$f":"+Import!I144","v":0},null,{"$f":"+Import!K144","v":0}]
[null,"(f) ","Deferred acquisition costs",null,{"$f":"Import!E145","v":0},null,{"$f":"Import!G145","v":0},null,{"$f":"+Import!E250","v":0},null,{"$f":"+Import!G250","v":0},null,{"$f":"+Import!I145","v":0},null,{"$f":"+Import!K145","v":0}]
[null,"(g) ","Net receivables for investments sold",null,{"$f":"Import!E146","v":0},null,{"$f":"Import!G146","v":0},null,{"$f":"+Import!E251","v":0},null,{"$f":"+Import!G251","v":0},null,{"$f":"+Import!I146","v":0},null,{"$f":"+Import!K146","v":0}]
[null,"(h) ","Other Sundry Assets (Specify)",null,{"$f":"Import!E150","v":0},null,{"$f":"Import!G150","v":0},null,{"$f":"+Import!E252","v":0},null,{"$f":"+Import!G252","v":0},null,{"$f":"+Import!I150","v":0},null,{"$f":"+Import!K150","v":0}]
[null,"(i) ","Other Sundry Assets (Specify)",null,{"$f":"Import!E151","v":0},null,{"$f":"Import!G151","v":0},null,{"$f":"+Import!E253","v":0},null,{"$f":"+Import!G253","v":0},null,{"$f":"+Import!I151","v":0},null,{"$f":"+Import!K151","v":0}]
[null,"(j)","Other Sundry Assets (Specify)",null,{"$f":"Import!E152","v":0},null,{"$f":"Import!G152","v":0},null,{"$f":"+Import!E254","v":0},null,{"$f":"+Import!G254","v":0},null,{"$f":"+Import!I152","v":0},null,{"$f":"+Import!K152","v":0}]
[null,"(k)","Total sundry assets",null,{"$f":"SUM(E82:E91)","v":0},null,{"$f":"SUM(G82:G91)","v":0},null,{"$f":"SUM(I82:I91)","v":0},null,{"$f":"SUM(K82:K91)","v":0},null,{"$f":"SUM(M82:M91)","v":0},null,{"$f":"SUM(O82:O91)","v":0}]
[]
[null,"14.","LETTERS OF CREDIT, GUARANTEES AND OTHER INSTRUMENTS:"]
[null,"(a)","Letters of credit ",null,{"$f":"Import!E153","v":0},null,{"$f":"Import!G153","v":0},null,{"$f":"+Import!E255","v":0},null,{"$f":"+Import!G255","v":0},null,{"$f":"+Import!I153","v":0},null,{"$f":"+Import!K153","v":0}]
[null,"(b)","Guarantees",null,{"$f":"Import!E154","v":0},null,{"$f":"Import!G154","v":0},null,{"$f":"+Import!E256","v":0},null,{"$f":"+Import!G256","v":0},null,{"$f":"+Import!I154","v":0},null,{"$f":"+Import!K154","v":0}]
[null,"(c) ","Other instruments",null,{"$f":"Import!E155","v":0},null,{"$f":"Import!G155","v":0},null,{"$f":"+Import!E257","v":0},null,{"$f":"+Import!G257","v":0},null,{"$f":"+Import!I155","v":0},null,{"$f":"+Import!K155","v":0}]
[null,"(e) ","Total letters of credit, guarantees and other instruments",null,{"$f":"SUM(E95:E97)","v":0},null,{"$f":"SUM(G95:G97)","v":0},null,{"$f":"SUM(I95:I97)","v":0},null,{"$f":"SUM(K95:K97)","v":0},null,{"$f":"SUM(M95:M97)","v":0},null,{"$f":"SUM(O95:O97)","v":0}]
[]
[null,"15.","TOTAL",null,{"$f":"E12+E25+E38+E48+E53+E55+E60+E62+E64+E70+E77+E79+E92+E98","v":0},null,{"$f":"G12+G25+G38+G48+G53+G55+G60+G62+G64+G70+G77+G79+G92+G98","v":0},null,{"$f":"I12+I25+I38+I48+I53+I55+I60+I62+I64+I70+I77+I79+I92+I98","v":0},null,{"$f":"K12+K25+K38+K48+K53+K55+K60+K62+K64+K70+K77+K79+K92+K98","v":0},null,{"$f":"M12+M25+M38+M48+M53+M55+M60+M62+M64+M70+M77+M79+M92+M98","v":0},null,{"$f":"O12+O25+O38+O48+O53+O55+O60+O62+O64+O70+O77+O79+O92+O98","v":0}]
[]
[null,null,"INSURANCE RESERVES, OTHER LIABILITIES AND STATUTORY CAPITAL AND SURPLUS"]
[]
[null,null,"INSURANCE RESERVES"]
[]
[null,"16.","UNEARNED PREMIUM RESERVE"]
[null,"(a)","Gross unearned premium reserves",null,{"$f":"+Import!E157","v":0},null,{"$f":"+Import!G157","v":0},null,null,null,null,null,{"$f":"+Import!I157","v":0},null,{"$f":"+Import!K157","v":0}]
[null,"(b)","Less: Ceded unearned premium reserve"]
[null,null,"  i.   Foreign affiliates",null,{"$f":"+Import!E158","v":0},null,{"$f":"+Import!G158","v":0},null,null,null,null,null,{"$f":"+Import!I158","v":0},null,{"$f":"+Import!K158","v":0}]
[null,null,"  ii.  Domestic affiliates",null,{"$f":"+Import!E159","v":0},null,{"$f":"+Import!G159","v":0},null,null,null,null,null,{"$f":"+Import!I159","v":0},null,{"$f":"+Import!K159","v":0}]
[null,null,"  iii. Pools & associations",null,{"$f":"+Import!E160","v":0},null,{"$f":"+Import!G160","v":0},null,null,null,null,null,{"$f":"+Import!I160","v":0},null,{"$f":"+Import!K160","v":0}]
[null,null,"  iv.  All other insurers",null,{"$f":"+Import!E161","v":0},null,{"$f":"+Import!G161","v":0},null,null,null,null,null,{"$f":"+Import!I161","v":0},null,{"$f":"+Import!K161","v":0}]
[null,"(c) ","Total ceded unearned premium reserve",null,{"$f":"SUM(E109:E112)","v":0},null,{"$f":"SUM(G109:G112)","v":0},null,null,null,null,null,{"$f":"SUM(M109:M112)","v":0},null,{"$f":"SUM(O109:O112)","v":0}]
[null,"(d) ","Net unearned premium reserves",null,{"$f":"E107-E113","v":0},null,{"$f":"G107-G113","v":0},null,null,null,null,null,{"$f":"M107-M113","v":0},null,{"$f":"O107-O113","v":0}]
[]
[null,"17.","LOSS AND LOSS EXPENSE PROVISIONS:"]
[null,"(a)","Gross loss and loss expense provisions",null,{"$f":"+Import!E162","v":0},null,{"$f":"+Import!G162","v":0},null,null,null,null,null,{"$f":"+Import!I162","v":0},null,{"$f":"+Import!K162","v":0}]
[null,"(b)","Less : Reinsurance recoverable balance"]
[null,null,"  i.   Foreign affiliates",null,{"$f":"+Import!E163","v":0},null,{"$f":"+Import!G163","v":0},null,null,null,null,null,{"$f":"+Import!I163","v":0},null,{"$f":"+Import!K163","v":0}]
[null,null,"  ii.  Domestic affiliates",null,{"$f":"+Import!E164","v":0},null,{"$f":"+Import!G164","v":0},null,null,null,null,null,{"$f":"+Import!I164","v":0},null,{"$f":"+Import!K164","v":0}]
[null,null,"  iii. Pools & associations",null,{"$f":"+Import!E165","v":0},null,{"$f":"+Import!G165","v":0},null,null,null,null,null,{"$f":"+Import!I165","v":0},null,{"$f":"+Import!K165","v":0}]
[null,null,"  iv.  All other insurers",null,{"$f":"+Import!E166","v":0},null,{"$f":"+Import!G166","v":0},null,null,null,null,null,{"$f":"+Import!I166","v":0},null,{"$f":"+Import!K166","v":0}]
[null,"(c) ","Total reinsurance recoverable balance",null,{"$f":"SUM(E119:E122)","v":0},null,{"$f":"SUM(G119:G122)","v":0},null,null,null,null,null,{"$f":"SUM(M119:M122)","v":0},null,{"$f":"SUM(O119:O122)","v":0}]
[null,"(d) ","Net loss and loss expense provisions",null,{"$f":"E117-E123","v":0},null,{"$f":"G117-G123","v":0},null,null,null,null,null,{"$f":"M117-M123","v":0},null,{"$f":"O117-O123","v":0}]
[]
[null,"18.","OTHER INSURANCE RESERVES",null,{"$f":"+Import!E167","v":0},null,{"$f":"+Import!G167","v":0},null,null,null,null,null,{"$f":"+Import!I167","v":0},null,{"$f":"+Import!K167","v":0}]
[]
[null,"19.","TOTAL GENERAL BUSINESS - INSURANCE RESERVES",null,{"$f":"E114+E124+E126","v":0},null,{"$f":"G114+G124+G126","v":0},null,null,null,null,null,{"$f":"M114+M124+M126","v":0},null,{"$f":"O114+O124+O126","v":0}]
[]
[null,null,"LONG-TERM BUSINESS INSURANCE RESERVES"]
[]
[null,20,"RESERVES FOR REPORTED CLAIMS",null,null,null,null,null,{"$f":"+Import!E258","v":0},null,{"$f":"+Import!G258","v":0},null,{"$f":"+Import!I168","v":0},null,{"$f":"+Import!K168","v":0}]
[]
[null,21,"RESERVES FOR UNREPORTED CLAIMS",null,null,null,null,null,{"$f":"+Import!E259","v":0},null,{"$f":"+Import!G259","v":0},null,{"$f":"+Import!I169","v":0},null,{"$f":"+Import!K169","v":0}]
[]
[null,22,"POLICY RESERVES - LIFE",null,null,null,null,null,{"$f":"+Import!E260","v":0},null,{"$f":"+Import!G260","v":0},null,{"$f":"+Import!I170","v":0},null,{"$f":"+Import!K170","v":0}]
[]
[null,23,"POLICY RESERVES - ACCIDENT AND HEALTH",null,null,null,null,null,{"$f":"+Import!E261","v":0},null,{"$f":"+Import!G261","v":0},null,{"$f":"+Import!I171","v":0},null,{"$f":"+Import!K171","v":0}]
[]
[null,24,"POLICYHOLDER'S FUNDS ON DEPOSIT",null,null,null,null,null,{"$f":"+Import!E262","v":0},null,{"$f":"+Import!G262","v":0},null,{"$f":"+Import!I172","v":0},null,{"$f":"+Import!K172","v":0}]
[]
[null,25,"LIABILITY FOR FUTURE POLICYHOLDER DIVIDENDS",null,null,null,null,null,{"$f":"+Import!E263","v":0},null,{"$f":"+Import!G263","v":0},null,{"$f":"+Import!I173","v":0},null,{"$f":"+Import!K173","v":0}]
[]
[null,26,"OTHER LONG-TERM BUSINESS INSURANCE RESERVES",null,null,null,null,null,{"$f":"+Import!E264","v":0},null,{"$f":"+Import!G264","v":0},null,{"$f":"+Import!I174","v":0},null,{"$f":"+Import!K174","v":0}]
[]
[null,27,"TOTAL LONG-TERM BUSINESS INSURANCE RESERVES"]
[null,"(a)","Total Gross Long-Term Business Insurance Reserves",null,null,null,null,{"$f":"H154+H153","v":0},0,0,0,0,0,0,0]
[null,"(b)","Less: Reinsurance Recoverable Balance:"]
[null,null,"(i) Foreign Affiliates",null,null,null,null,null,{"$f":"+Import!E265","v":0},null,{"$f":"+Import!G265","v":0},null,{"$f":"+Import!I175","v":0},null,{"$f":"+Import!K175","v":0}]
[null,null,"(ii) Domestic Affiliaties",null,null,null,null,null,{"$f":"+Import!E266","v":0},null,{"$f":"+Import!G266","v":0},null,{"$f":"+Import!I176","v":0},null,{"$f":"+Import!K176","v":0}]
[null,null,"(iii) Pools and Associations",null,null,null,null,null,{"$f":"+Import!E267","v":0},null,{"$f":"+Import!G267","v":0},null,{"$f":"+Import!I177","v":0},null,{"$f":"+Import!K177","v":0}]
[null,null,"(iv) All Other Insurers",null,null,null,null,null,{"$f":"+Import!E268","v":0},null,{"$f":"+Import!G268","v":0},null,{"$f":"+Import!I178","v":0},null,{"$f":"+Import!K178","v":0}]
[null,"(c)","Total Reinsurance Recoverable Balance",null,null,null,null,{"$f":"SUM(H149:H152)","v":0},0,0,0,0,0,0,0]
[null,"(d)","Net Long-Term Business Insurance Reserves",null,null,null,null,{"$f":"H132+H134+H136+H138+H140+H142+H144","v":0},0,0,0,0,0,0,0]
[]
[null,null,"OTHER LIABILITIES"]
[]
[null,"28.","INSURANCE AND REINSURANCE BALANCES PAYABLE",null,{"$f":"+Import!E186","v":0},null,{"$f":"+Import!G186","v":0},null,{"$f":"+Import!E269","v":0},null,{"$f":"+Import!G269","v":0},null,{"$f":"+Import!I186","v":0},null,{"$f":"+Import!K186","v":0}]
[]
[null,"29.","COMMISSIONS, EXPENSES, FEES AND TAXES PAYABLE",null,{"$f":"+Import!E187","v":0},null,{"$f":"+Import!G187","v":0},null,{"$f":"+Import!E270","v":0},null,{"$f":"+Import!G270","v":0},null,{"$f":"+Import!I187","v":0},null,{"$f":"+Import!K187","v":0}]
[]
[null,"30.","LOANS AND NOTES PAYABLE",null,{"$f":"+Import!E188","v":0},null,{"$f":"+Import!G188","v":0},null,{"$f":"+Import!E271","v":0},null,{"$f":"+Import!G271","v":0},null,{"$f":"+Import!I188","v":0},null,{"$f":"+Import!K188","v":0}]
[]
[null,"31.","(a) INCOME TAXES PAYABLE",null,{"$f":"+Import!E189","v":0},null,{"$f":"+Import!G189","v":0},null,{"$f":"+Import!E272","v":0},null,{"$f":"+Import!G272","v":0},null,{"$f":"+Import!I189","v":0},null,{"$f":"+Import!K189","v":0}]
[]
[null,null,"(b) DEFERRED INCOME TAXES",null,{"$f":"+Import!E190","v":0},null,{"$f":"+Import!G190","v":0},null,{"$f":"+Import!E273","v":0},null,{"$f":"+Import!G273","v":0},null,{"$f":"+Import!I190","v":0},null,{"$f":"+Import!K190","v":0}]
[]
[null,"32.","AMOUNTS DUE TO AFFILIATES",null,{"$f":"+Import!E191","v":0},null,{"$f":"+Import!G191","v":0},null,{"$f":"+Import!E274","v":0},null,{"$f":"+Import!G274","v":0},null,{"$f":"+Import!I191","v":0},null,{"$f":"+Import!K191","v":0}]
[]
[null,"33.","ACCOUNTS PAYABLE AND ACCRUED LIABILITIES",null,{"$f":"+Import!E192","v":0},null,{"$f":"+Import!G192","v":0},null,{"$f":"+Import!E275","v":0},null,{"$f":"+Import!G275","v":0},null,{"$f":"+Import!I192","v":0},null,{"$f":"+Import!K192","v":0}]
[]
[null,"34.","FUNDS HELD UNDER REINSURANCE CONTRACTS:",null,{"$f":"+Import!E195","v":0},null,{"$f":"+Import!G195","v":0},null,{"$f":"+Import!E276","v":0},null,{"$f":"+Import!G276","v":0},null,{"$f":"+Import!I195","v":0},null,{"$f":"+Import!K195","v":0}]
[]
[null,"35.","DIVIDENDS PAYABLE",null,{"$f":"+Import!E196","v":0},null,{"$f":"+Import!G196","v":0},null,{"$f":"+Import!E277","v":0},null,{"$f":"+Import!G277","v":0},null,{"$f":"+Import!I196","v":0},null,{"$f":"+Import!K196","v":0}]
[]
[null,"36.","SUNDRY LIABILITIES:"]
[null,"(a)","Derivative instruments ",null,{"$f":"+Import!E197","v":0},null,{"$f":"+Import!G197","v":0},null,{"$f":"+Import!E278","v":0},null,{"$f":"+Import!G278","v":0},null,{"$f":"+Import!I197","v":0},null,{"$f":"+Import!K197","v":0}]
[null,"(b)","Segregated accounts companies",null,{"$f":"+Import!E199","v":0},null,{"$f":"+Import!G199","v":0},null,{"$f":"+Import!E279","v":0},null,{"$f":"+Import!G279","v":0},null,{"$f":"+Import!I199","v":0},null,{"$f":"+Import!K199","v":0}]
[null,"(c)","Deposit liabilities",null,{"$f":"+Import!E200","v":0},null,{"$f":"+Import!G200","v":0},null,{"$f":"+Import!E280","v":0},null,{"$f":"+Import!G280","v":0},null,{"$f":"+Import!I200","v":0},null,{"$f":"+Import!K200","v":0}]
[null,"(d)","Net payable for investments purchased",null,{"$f":"+Import!E202","v":0},null,{"$f":"+Import!G202","v":0},null,{"$f":"+Import!E281","v":0},null,{"$f":"+Import!G281","v":0},null,{"$f":"+Import!I202","v":0},null,{"$f":"+Import!K202","v":0}]
[null,"(e)","Other sundry liabilities (specify)",null,{"$f":"+Import!E203","v":0},null,{"$f":"+Import!G203","v":0},null,{"$f":"+Import!E282","v":0},null,{"$f":"+Import!G282","v":0},null,{"$f":"+Import!I203","v":0},null,{"$f":"+Import!K203","v":0}]
[null,"(f)","Other sundry liabilities (specify)",null,{"$f":"+Import!E204","v":0},null,{"$f":"+Import!G204","v":0},null,{"$f":"+Import!E283","v":0},null,{"$f":"+Import!G283","v":0},null,{"$f":"+Import!I204","v":0},null,{"$f":"+Import!K204","v":0}]
[null,"(g)","Other sundry liabilities (specify)",null,{"$f":"+Import!E205","v":0},null,{"$f":"+Import!G205","v":0},null,{"$f":"+Import!E284","v":0},null,{"$f":"+Import!G284","v":0},null,{"$f":"+Import!I205","v":0},null,{"$f":"+Import!K205","v":0}]
[null,"(h)","Total sundry liabilities",null,{"$f":"SUM(E177:E183)","v":0},null,{"$f":"SUM(G177:G183)","v":0},null,{"$f":"SUM(I177:I183)","v":0},null,{"$f":"SUM(K177:K183)","v":0},null,{"$f":"SUM(M177:M183)","v":0},null,{"$f":"SUM(O177:O183)","v":0}]
[]
[null,"37.","LETTERS OF CREDIT, GUARANTEES AND OTHER INSTRUMENTS:"]
[null,"(a)","Letters of credit ",null,{"$f":"+Import!E206","v":0},null,{"$f":"+Import!G206","v":0},null,{"$f":"+Import!E285","v":0},null,{"$f":"+Import!G285","v":0},null,{"$f":"+Import!I206","v":0},null,{"$f":"+Import!K206","v":0}]
[null,"(b)","Guarantees",null,{"$f":"+Import!E207","v":0},null,{"$f":"+Import!G207","v":0},null,{"$f":"+Import!E286","v":0},null,{"$f":"+Import!G286","v":0},null,{"$f":"+Import!I207","v":0},null,{"$f":"+Import!K207","v":0}]
[null,"(c) ","Other instruments",null,{"$f":"+Import!E208","v":0},null,{"$f":"+Import!G208","v":0},null,{"$f":"+Import!E287","v":0},null,{"$f":"+Import!G287","v":0},null,{"$f":"+Import!I208","v":0},null,{"$f":"+Import!K208","v":0}]
[null,"(d)","Total letters of credit, guarantees and other instruments",null,{"$f":"SUM(E187:E189)","v":0},null,{"$f":"SUM(G187:G189)","v":0},null,{"$f":"SUM(I187:I189)","v":0},null,{"$f":"SUM(K187:K189)","v":0},null,{"$f":"SUM(M187:M189)","v":0},null,{"$f":"SUM(O187:O189)","v":0}]
[]
[null,"38.","TOTAL OTHER LIABILITIES",null,{"$f":"E158+E160+E162+E164+E166+E168+E170+E172+E174+E184+E190","v":0},null,{"$f":"G158+G160+G162+G164+G166+G168+G170+G172+G174+G184+G190","v":0},null,{"$f":"I158+I160+I162+I164+I166+I168+I170+I172+I174+I184+I190","v":0},null,{"$f":"K158+K160+K162+K164+K166+K168+K170+K172+K174+K184+K190","v":0},null,{"$f":"M158+M160+M162+M164+M166+M168+M170+M172+M174+M184+M190","v":0},null,{"$f":"O158+O160+O162+O164+O166+O168+O170+O172+O174+O184+O190","v":0}]
[]
[null,"39.","TOTAL INSURANCE PROVISIONS AND OTHER LIABILITIES",null,{"$f":"E128+E154+E192","v":0},null,{"$f":"G128+G154+G192","v":0},null,{"$f":"I128+I154+I192","v":0},null,{"$f":"K128+K154+K192","v":0},null,{"$f":"M128+M154+M192","v":0},null,{"$f":"O128+O154+O192","v":0}]
[]
[null,null,"STATUTORY CAPITAL AND SURPLUS"]
[]
[null,"40.","TOTAL STATUTORY CAPITAL AND SURPLUS ",null,{"$f":"+'Form 8SFS'!G58","v":0},null,{"$f":"+'Form 8SFS'!I58","v":0},null,{"$f":"+'Form 8SFS'!K58","v":0},null,{"$f":"+'Form 8SFS'!M58","v":0},null,{"$f":"+'Form 8SFS'!O58","v":0},null,{"$f":"+'Form 8SFS'!Q58","v":0}]
[]
[null,"41.","TOTAL",null,{"$f":"E194+E198","v":0},null,{"$f":"G194+G198","v":0},null,{"$f":"I194+I198","v":0},null,{"$f":"K194+K198","v":0},null,{"$f":"M194+M198","v":0},null,{"$f":"O194+O198","v":0}]
[]
[null,null,null,null,{"$f":"IF(E203=\"TRUE\",HYPERLINK(\"#'Form 1SFS'!E100\",\"TRUE\"),HYPERLINK(\"#'Form 1SFS'!E100\",\"FALSE\"))","v":"TRUE"},null,{"$f":"IF(G203=\"TRUE\",HYPERLINK(\"#'Form 1SFS'!G100\",\"TRUE\"),HYPERLINK(\"#'Form 1SFS'!G100\",\"FALSE\"))","v":"TRUE"},null,{"$f":"IF(I203=\"TRUE\",HYPERLINK(\"#'Form 1SFS'!I100\",\"TRUE\"),HYPERLINK(\"#'Form 1SFS'!I100\",\"FALSE\"))","v":"TRUE"},null,{"$f":"IF(K203=\"TRUE\",HYPERLINK(\"#'Form 1SFS'!K100\",\"TRUE\"),HYPERLINK(\"#'Form 1SFS'!K100\",\"FALSE\"))","v":"TRUE"},null,{"$f":"IF(M203=\"TRUE\",HYPERLINK(\"#'Form 1SFS'!M100\",\"TRUE\"),HYPERLINK(\"#'Form 1SFS'!M100\",\"FALSE\"))","v":"TRUE"},null,{"$f":"IF(O203=\"TRUE\",HYPERLINK(\"#'Form 1SFS'!O100\",\"TRUE\"),HYPERLINK(\"#'Form 1SFS'!O100\",\"FALSE\"))","v":"TRUE"},null,"CHECK"]
[null,null,null,null,{"$f":"IF(ROUND((E100-E200),0)=0,\"TRUE\",\"FALSE\")","v":"TRUE"},null,{"$f":"IF(ROUND((G100-G200),0)=0,\"TRUE\",\"FALSE\")","v":"TRUE"},null,{"$f":"IF(ROUND((I100-I200),0)=0,\"TRUE\",\"FALSE\")","v":"TRUE"},null,{"$f":"IF(ROUND((K100-K200),0)=0,\"TRUE\",\"FALSE\")","v":"TRUE"},null,{"$f":"IF(ROUND((M100-M200),0)=0,\"TRUE\",\"FALSE\")","v":"TRUE"},null,{"$f":"IF(ROUND((O100-O200),0)=0,\"TRUE\",\"FALSE\")","v":"TRUE"}]
[null,null,"Difference",null,{"$f":"ROUND((E100-E200),0)","v":0},null,{"$f":"ROUND((G100-G200),0)","v":0},null,{"$f":"ROUND((I100-I200),0)","v":0},null,{"$f":"ROUND((K100-K200),0)","v":0},null,{"$f":"ROUND((M100-M200),0)","v":0},null,{"$f":"ROUND((O100-O200),0)","v":0}]
[]
[null,null,null,null,{"$f":"IF(E202=\"False\",\"Line 15 does not equal Line 41\",\"\")","v":""},null,{"$f":"IF(G202=\"False\",\"Line 15 does not equal Line 41\",\"\")","v":""},null,{"$f":"IF(I202=\"False\",\"Line 15 does not equal Line 41\",\"\")","v":""},null,{"$f":"IF(K202=\"False\",\"Line 15 does not equal Line 41\",\"\")","v":""},null,{"$f":"IF(M202=\"False\",\"Line 15 does not equal Line 41\",\"\")","v":""},null,{"$f":"IF(O202=\"False\",\"Line 15 does not equal Line 41\",\"\")","v":""}]
[]
[null,"Notes to Unconsolidated Form 1SFS"]
[]
[null,"Line 10 ","Collateralized balances",null,null,null,null,null,null,null,null,null,{"$f":"Import!E289","v":0},null,{"$f":"Import!G289","v":0}]
[]
[null,"Line 11(e) ","Collateralized balances",null,null,null,null,null,null,null,null,null,{"$f":"Import!E290","v":0}]
[]
[null,"Line 17(c) ","Collateral placed in favor of the insurer ",null,null,null,null,null,null,null,null,null,{"$f":"Import!E291","v":0}]
[]
[null,"Line 13 ","Sundry assets",null,null,null,null,null,null,null,null,null,{"$f":"Import!E292","v":0},null,{"$f":"Import!G292","v":0}]
[]
[null,"Line 15","Encumbered assets for policyholder obligations"]
[]
[null,null,"Asset",null,null,null,null,null,"Purpose of Encumbrance"]
[null,null,"                Cash and cash equivalents",null,null,null,null,null,null,null,null,null,{"$f":"Import!E293","v":0},null,{"$f":"Import!G293","v":0}]
[null,null,"                Total quoted investments",null,null,null,null,null,null,null,null,null,{"$f":"Import!E294","v":0},null,{"$f":"Import!G294","v":0}]
[null,null,"                Total unquoted investments",null,null,null,null,null,null,null,null,null,{"$f":"Import!E295","v":0},null,{"$f":"Import!G295","v":0}]
[null,null,"                Funds held by ceding reinsurers",null,null,null,null,null,null,null,null,null,{"$f":"IF(SUM(E100,I100)=0,M79,E79+I79)","v":0},null,{"$f":"IF(SUM(G100,K100)=0,O79,G79+K79)","v":0}]
[null,null,"                Other assets",null,null,null,null,null,null,null,null,null,{"$f":"Import!E297","v":0},null,{"$f":"Import!G297","v":0}]
[null,null,"                Total encumbered assets",null,null,null,null,null,null,null,null,null,{"$f":"SUM(M221:M225)","v":0},null,{"$f":"SUM(O221:O225)","v":0}]
[]
[null,"Line 15","Encumbered assets not securing policyholder obligations"]
[]
[null,null,"Asset",null,null,null,null,null,"Purpose of Encumbrance"]
[null,null,"                Cash and cash equivalents",null,null,null,null,null,null,null,null,null,{"$f":"Import!E299","v":0},null,{"$f":"Import!G299","v":0}]
[null,null,"                Total quoted investments",null,null,null,null,null,null,null,null,null,{"$f":"Import!E300","v":0},null,{"$f":"Import!G300","v":0}]
[null,null,"                Total unquoted investments",null,null,null,null,null,null,null,null,null,{"$f":"Import!E301","v":0},null,{"$f":"Import!G301","v":0}]
[null,null,"                Other assets",null,null,null,null,null,null,null,null,null,{"$f":"Import!E302","v":0},null,{"$f":"Import!G302","v":0}]
[null,null,"                Total encumbered assets",null,null,null,null,null,null,null,null,null,{"$f":"SUM(M231:M234)","v":0},null,{"$f":"SUM(O231:O234)","v":0}]
[]
[null,"Line 36","Sundry liabilities",null,null,null,null,null,null,null,null,null,{"$f":"Import!E304","v":0},null,{"$f":"Import!G304","v":0}]
[]
[null,"Line 37","Letters of Credit, Guarantees and other Instruments",null,null,null,null,null,null,null,null,null,{"$f":"Import!E305","v":0},null,{"$f":"Import!G305","v":0}]
[]
[null,null,"General Business"]
[null,"Line 17","Reasons for the change in the net losses incurred and net loss expenses incurred related to prior years and indicate whether additional premiums or return premiums have been accrued as a result of the prior year effects. ",null,null,null,null,null,null,null,{"$f":"Import!E306","v":0}]
[]
[]
[null,"Line 17","Loss and loss expense provisions total restricted assets - an amount equal to the value of all that are held for security or collateral against a liability or contingent liabilit"]
[]
[]
[null,"Line 17","Loss and loss expense provision unsecured policyholder obligations - an amount equal to all policyholder obligations that are not secured by assets or collateral"]
[]
[]
[null,"Line 17","Gross loss and loss expense provisions at beginning of year",null,null,null,null,null,null,null,null,null,{"$f":"Import!E307","v":0},null,{"$f":"Import!G307","v":0}]
[]
[null,null,"Less: Reinsurance recoverable at beginning of year",null,null,null,null,null,null,null,null,null,{"$f":"Import!E308","v":0},null,{"$f":"Import!G308","v":0}]
[]
[null,null,"Net loss and loss expense provisions at beginning of year",null,null,null,null,null,null,null,null,null,{"$f":"M251-M253","v":0},null,{"$f":"O251-O253","v":0}]
[]
[null,null,"Acquisition / Sale of loss reserves (net):",null,null,null,null,null,null,null,null,null,{"$f":"Import!E310","v":0},null,{"$f":"Import!G310","v":0}]
[]
[null,null,"Net losses incurred and net loss expenses incurred related to:"]
[]
[null,null,"               Current year",null,null,null,null,null,null,null,null,null,{"$f":"Import!E311","v":0},null,{"$f":"Import!G311","v":0}]
[null,null,"               Prior years",null,null,null,null,null,null,null,null,null,{"$f":"Import!E312","v":0},null,{"$f":"Import!G312","v":0}]
[]
[null,null,"Total net incurred losses & loss expenses",null,null,null,null,null,null,null,null,null,{"$f":"SUM(M261:M262)","v":0},null,{"$f":"SUM(O261:O262)","v":0}]
[]
[null,null,"Net losses and loss expenses paid or payable related to:"]
[]
[null,null,"               Current year",null,null,null,null,null,null,null,null,null,{"$f":"Import!E314","v":0},null,{"$f":"Import!G314","v":0}]
[null,null,"               Prior years",null,null,null,null,null,null,null,null,null,{"$f":"Import!E315","v":0},null,{"$f":"Import!G315","v":0}]
[]
[null,null,"Total losses and loss expenses paid or payable",null,null,null,null,null,null,null,null,null,{"$f":"SUM(M268:M269)","v":0},null,{"$f":"SUM(O268:O269)","v":0}]
[]
[null,null,"Foreign exchange and other",null,null,null,null,null,null,null,null,null,{"$f":"Import!E317","v":0},null,{"$f":"Import!G317","v":0}]
[]
[null,null,"Net loss and loss expense provisions at end of year",null,null,null,null,null,null,null,null,null,{"$f":"M255+M257+M264+M271+M273","v":0},null,{"$f":"O255+O257+O264+O271+O273","v":0}]
[]
[null,null,"Add: Reinsurance recoverable at end of year",null,null,null,null,null,null,null,null,null,{"$f":"Import!E319","v":0},null,{"$f":"Import!G319","v":0}]
[]
[null,null,"Gross loss and loss expense provisions at end of year",null,null,null,null,null,null,null,null,null,{"$f":"M275+M277","v":0},null,{"$f":"O275+O277","v":0}]
[null,null,null,null,null,null,null,null,null,null,null,null,null,null,null,null,""]
[null,null,null,null,null,null,null,null,null,null,null,null,{"$f":"IF(M282=\"TRUE\",HYPERLINK(\"#'Form 1SFS'!E117:M117\",\"TRUE\"),HYPERLINK(\"#'Form 1SFS'!E117:M117\",\"FALSE\"))","v":"TRUE"},null,{"$f":"IF(O282=\"TRUE\",HYPERLINK(\"#'Form 1SFS'!G117:O117\",\"TRUE\"),HYPERLINK(\"#'Form 1SFS'!G117:O117\",\"FALSE\"))","v":"TRUE"}]
[null,null,null,null,null,null,null,null,null,null,null,null,{"$f":"IF('Company Information'!$B$2=\"Unconsolidated BSCR Model\",IF(ROUND((M279-M117),0)=0,\"TRUE\",\"FALSE\"),IF(ROUND((M279-E117),0)=0,\"TRUE\",\"FALSE\"))","v":"TRUE"},null,{"$f":"IF('Company Information'!$B$2=\"Unconsolidated BSCR Model\",IF(ROUND((O279-O117),0)=0,\"TRUE\",\"FALSE\"),IF(ROUND((O279-G117),0)=0,\"TRUE\",\"FALSE\"))","v":"TRUE"}]
[null,null,"Difference",null,null,null,null,null,null,null,null,null,{"$f":"IF('Company Information'!$B$2=\"Unconsolidated BSCR Model\",ROUND(M117-M279,0),ROUND(E117-M279,0))","v":0},null,{"$f":"IF('Company Information'!$B$2=\"Unconsolidated BSCR Model\",ROUND(O117-O279,0),ROUND(G117-O279,0))","v":0}]
[]
[null,null,null,null,null,null,null,null,null,null,null,null,{"$f":"IF(M281=\"False\",\"Does not equal Line 17(a)\",\"\")","v":""},null,{"$f":"IF(O281=\"False\",\"Does not equal Line 17(a)\",\"\")","v":""}]
[]
[null,null,"Long-Term Business"]
[]
[null,"Line 27","Total gross long-term business insurance reserves at beginning of year"]
[]
[null,null,"Less: Reinsurance recoverable on long-term business at beginning of year"]
[]
[null,null,"Total net long-term business insurance reserves at beginning of year",null,null,null,null,null,null,null,null,null,{"$f":"M289-M291","v":0},null,{"$f":"O289-O291","v":0}]
[]
[null,null,"Long-term business deductions related to:"]
[]
[null,null,"               Current year"]
[null,null,"               Prior years"]
[]
[null,null,"Total long-term business deductions",null,null,null,null,null,null,null,null,null,{"$f":"SUM(M297:M298)","v":0},null,{"$f":"SUM(O297:O298)","v":0}]
[]
[null,null,"Less: Long-term business deductions paid or payable related to:"]
[]
[null,null,"               Current year"]
[null,null,"               Prior years"]
[]
[null,null,"Total long-term business deductions paid or payable",null,null,null,null,null,null,null,null,null,{"$f":"SUM(M304:M305)","v":0},null,{"$f":"SUM(O304:O305)","v":0}]
[]
[null,null,"Total net long-term business insurance reserves at end of year",null,null,null,null,null,null,null,null,null,{"$f":"M293+M300+M307","v":0},null,{"$f":"O293+O300+O307","v":0}]
[]
[null,null,"Add: Reinsurance recoverable on long-term business at end of year"]
[]
[null,null,"Total gross long-term business insurance reserves at end of year",null,null,null,null,null,null,null,null,null,{"$f":"M309+M311","v":0},null,{"$f":"O309+O311","v":0}]
[null,null,null,null,null,null,null,null,null,null,null,null,null,null,null,null,""]
[null,null,null,null,null,null,null,null,null,null,null,null,{"$f":"IF((M313-I147)=0,TRUE,FALSE)","v":true},null,{"$f":"IF((O313-I147)=0,TRUE,FALSE)","v":true}]
[]
[null,null,"Difference",null,null,null,null,null,null,null,null,null,{"$f":"I147-M313","v":0},null,{"$f":"I147-O313","v":0}]
[]
[null,"Line 27",null,null,"Insurance Contracts",null,null,null,null,null,"Investment Contracts"]
[null,null,"CURRENT YEAR",null,"Gross",null,"Reinsurance",null,"Net",null,"Gross",null,"Reinsurance",null,"Net"]
[null,null,"Balance - Beginning of Year",null,{"$f":"Import!E321","v":0},null,{"$f":"Import!E328","v":0},null,{"$f":"E321-G321","v":0},null,{"$f":"Import!E342","v":0},null,{"$f":"Import!E349","v":0},null,{"$f":"K321-M321","v":0}]
[null,null,"Impact of Terminations",null,{"$f":"Import!E322","v":0},null,{"$f":"Import!E329","v":0},null,0,null,{"$f":"Import!E343","v":0},null,{"$f":"Import!E350","v":0},null,0]
[null,null,"Impact of New Business",null,{"$f":"Import!E323","v":0},null,{"$f":"Import!E330","v":0},null,0,null,{"$f":"Import!E344","v":0},null,{"$f":"Import!E351","v":0},null,0]
[null,null,"Normal Change in force",null,{"$f":"Import!E324","v":0},null,{"$f":"Import!E331","v":0},null,0,null,{"$f":"Import!E345","v":0},null,{"$f":"Import!E352","v":0},null,0]
[null,null,"Management Actions and Changes in Assumptions",null,{"$f":"Import!E325","v":0},null,{"$f":"Import!E332","v":0},null,0,null,{"$f":"Import!E346","v":0},null,{"$f":"Import!E353","v":0},null,0]
[null,null,"Impact of Foreign Exchange rate changes",null,{"$f":"Import!E326","v":0},null,{"$f":"Import!E333","v":0},null,0,null,{"$f":"Import!E347","v":0},null,{"$f":"Import!E354","v":0},null,0]
[null,null,"Balance - End of Year",null,{"$f":"SUM(E321:E326)","v":0},null,{"$f":"SUM(G321:G326)","v":0},null,{"$f":"SUM(I321:I326)","v":0},null,{"$f":"SUM(K321:K326)","v":0},null,{"$f":"SUM(M321:M326)","v":0},null,{"$f":"SUM(O321:O326)","v":0}]
[]
[null,null,"PRIOR YEAR"]
[null,null,"Balance - Beginning of Year",null,{"$f":"Import!G321","v":0},null,{"$f":"Import!G328","v":0},null,{"$f":"E330-G330","v":0},null,{"$f":"Import!G342","v":0},null,{"$f":"Import!G349","v":0},null,{"$f":"K330-M330","v":0}]
[null,null,"Impact of Terminations",null,{"$f":"Import!G322","v":0},null,{"$f":"Import!G329","v":0},null,0,null,{"$f":"Import!G343","v":0},null,{"$f":"Import!G350","v":0},null,0]
[null,null,"Impact of New Business",null,{"$f":"Import!G323","v":0},null,{"$f":"Import!G330","v":0},null,0,null,{"$f":"Import!G344","v":0},null,{"$f":"Import!G351","v":0},null,0]
[null,null,"Normal Change in force",null,{"$f":"Import!G324","v":0},null,{"$f":"Import!G331","v":0},null,0,null,{"$f":"Import!G345","v":0},null,{"$f":"Import!G352","v":0},null,0]
[null,null,"Management Actions and Changes in Assumptions",null,{"$f":"Import!G325","v":0},null,{"$f":"Import!G332","v":0},null,0,null,{"$f":"Import!G346","v":0},null,{"$f":"Import!G353","v":0},null,0]
[null,null,"Impact of Foreign Exchange rate changes",null,{"$f":"Import!G326","v":0},null,{"$f":"Import!G333","v":0},null,0,null,{"$f":"Import!G347","v":0},null,{"$f":"Import!G354","v":0},null,0]
[null,null,"Balance - End of Year",null,{"$f":"SUM(E330:E335)","v":0},null,{"$f":"SUM(G330:G335)","v":0},null,{"$f":"SUM(I330:I335)","v":0},null,{"$f":"SUM(K330:K335)","v":0},null,{"$f":"SUM(M330:M335)","v":0},null,{"$f":"SUM(O330:O335)","v":0}]

{"sheet":"Form 2SFS","index":17,"n_rows":115,"n_cols":15,"rows_kept":115,"cut":false,"hidden":false,"merged":[[1,4,3,10],[5,4,5,6],[5,12,5,14],[5,8,5,10],[4,4,4,6],[4,8,4,10],[4,12,4,14]]}
[null,"STATUTORY STATEMENT OF INCOME",null,null,null,null,null,null,null,null,null,null,null,null,{"$f":"HYPERLINK(\"#'Index'!A1\",\"Return to Index\")","v":"Return to Index"}]
[null,{"$f":"'Company Information'!C7","v":"Enter Company Name"},null,null,"Note if an insurer does not have any entities to consolidate, select \"No Subsidiaries\" on the Company Information tab (This cell is editable for deletion)"]
[null,"For the year ending",{"$f":" TEXT('Company Information'!C3,\"d mmmm yyyy\")","v":"31 December 2023"},null,null,null,null,null,null,null,null,null,null,null,"FORM 2SFS"]
[null,{"$f":"\"expressed in\"& IF(CONFIGURATION!$B$12>1,\" ['\"&MID(CONFIGURATION!$B$12,2,LEN(CONFIGURATION!$B$12))&\"s]\",\"\")","v":"expressed in ['000s]"},{"$f":"'Form 1EBS'!$C$4","v":"United States Dollars"}]
[null,null,null,null,"General Business",null,null,null,"Long-Term Business",null,null,null,"General and Long-Term Business"]
[null,"STMT.",null,null,"Unconsolidated",null,null,null,"Unconsolidated",null,null,null,"Consolidated"]
[null,"LINE No.",null,null,{"$f":"'Form 1EBS'!F7","v":"2023-12-31"},null,{"$f":"'Form 1EBS'!H7","v":"2022-12-31"},null,{"$f":"'Form 1EBS'!F7","v":"2023-12-31"},null,{"$f":"'Form 1EBS'!H7","v":"2022-12-31"},null,{"$f":"'Form 1EBS'!F7","v":"2023-12-31"},null,{"$f":"'Form 1EBS'!H7","v":"2022-12-31"}]
[null,null,null,null,{"$f":"CONFIGURATION!$D$12","v":" ('000s)"},null,{"$f":"CONFIGURATION!$D$12","v":" ('000s)"},null,{"$f":"CONFIGURATION!$D$12","v":" ('000s)"},null,{"$f":"CONFIGURATION!$D$12","v":" ('000s)"},null,{"$f":"CONFIGURATION!$D$12","v":" ('000s)"},null,{"$f":"CONFIGURATION!$D$12","v":" ('000s)"}]
[null,null,"GENERAL BUSINESS UNDERWRITING INCOME"]
[]
[null,"1.","GROSS PREMIUMS WRITTEN:"]
[null,null,"(a) Direct gross premiums written",null,{"$f":"+Import!E386","v":0},null,{"$f":"+Import!G386","v":0},null,null,null,null,null,{"$f":"+Import!I386","v":0},null,{"$f":"+Import!K386","v":0}]
[null,null,"(b) Assumed gross premiums written",null,{"$f":"+Import!E387","v":0},null,{"$f":"+Import!G387","v":0},null,null,null,null,null,{"$f":"+Import!I387","v":0},null,{"$f":"+Import!K387","v":0}]
[null,null,"(c) Total gross premiums written",null,{"$f":"SUM(E12:E13)","v":0},null,{"$f":"SUM(G12:G13)","v":0},null,null,null,null,null,{"$f":"SUM(M12:M13)","v":0},null,{"$f":"SUM(O12:O13)","v":0}]
[]
[null,"2.","REINSURANCE PREMIUMS CEDED",null,{"$f":"+Import!E388","v":0},null,{"$f":"+Import!G388","v":0},null,null,null,null,null,{"$f":"+Import!I388","v":0},null,{"$f":"+Import!K388","v":0}]
[]
[null,"3.","NET PREMIUMS WRITTEN",null,{"$f":"E14-E16","v":0},null,{"$f":"G14-G16","v":0},null,null,null,null,null,{"$f":"M14-M16","v":0},null,{"$f":"O14-O16","v":0}]
[]
[null,"4.","INCREASE (DECREASE) IN UNEARNED PREMIUMS",null,{"$f":"+Import!E389","v":0},null,{"$f":"+Import!G389","v":0},null,null,null,null,null,{"$f":"+Import!I389","v":0},null,{"$f":"+Import!K389","v":0}]
[]
[null,"5.","NET PREMIUMS EARNED",null,{"$f":"E18+E20","v":0},null,{"$f":"G18+G20","v":0},null,null,null,null,null,{"$f":"M18+M20","v":0},null,{"$f":"O18+O20","v":0}]
[]
[null,"6.","OTHER INSURANCE INCOME",null,{"$f":"+Import!E390","v":0},null,{"$f":"+Import!G390","v":0},null,null,null,null,null,{"$f":"+Import!I390","v":0},null,{"$f":"+Import!K390","v":0}]
[]
[null,"7.",null,null,{"$f":"E22+E24","v":0},null,{"$f":"G22+G24","v":0},null,null,null,null,null,{"$f":"M22+M24","v":0},null,{"$f":"O22+O24","v":0}]
[]
[null,null,"GENERAL BUSINESS UNDERWRITING EXPENSES"]
[]
[null,"8.","NET LOSSES INCURRED AND NET LOSS EXPENSES INCURRED",null,{"$f":"+Import!E391","v":0},null,{"$f":"+Import!G391","v":0},null,null,null,null,null,{"$f":"+Import!I391","v":0},null,{"$f":"+Import!K391","v":0}]
[]
[null,"9.","COMMISSIONS AND BROKERAGE",null,{"$f":"+Import!E392","v":0},null,{"$f":"+Import!G392","v":0},null,null,null,null,null,{"$f":"+Import!I392","v":0},null,{"$f":"+Import!K392","v":0}]
[]
[null,"10.",null,null,{"$f":"E30+E32","v":0},null,{"$f":"G30+G32","v":0},null,null,null,null,null,{"$f":"M30+M32","v":0},null,{"$f":"O30+O32","v":0}]
[]
[null,"11.","NET UNDERWRITING PROFIT (LOSS) - GENERAL BUSINESS",null,{"$f":"E26-E34","v":0},null,{"$f":"G26-G34","v":0},null,null,null,null,null,{"$f":"M26-M34","v":0},null,{"$f":"O26-O34","v":0}]
[]
[null,null,"LONG-TERM BUSINESS UNDERWRITING INCOME"]
[]
[null,"12.","GROSS PREMIUMS AND OTHER CONSIDERATIONS:"]
[null,null,"(a) Direct gross premiums and other considerations",null,null,null,null,null,{"$f":"+Import!E421","v":0},null,{"$f":"+Import!G421","v":0},null,{"$f":"+Import!I393","v":0},null,{"$f":"+Import!K393","v":0}]
[null,null,"(b) Assumed gross premiums and other considerations",null,null,null,null,null,{"$f":"+Import!E422","v":0},null,{"$f":"+Import!G422","v":0},null,{"$f":"+Import!I394","v":0},null,{"$f":"+Import!K394","v":0}]
[null,null,"(c) Total gross premiums and other considerations",null,null,null,null,null,{"$f":"SUM(I41:I42)","v":0},null,{"$f":"SUM(K41:K42)","v":0},null,{"$f":"SUM(M41:M42)","v":0},null,{"$f":"SUM(O41:O42)","v":0}]
[]
[null,"13.","PREMIUMS CEDED",null,null,null,null,null,{"$f":"I43-I51","v":0},null,{"$f":"K43-K51","v":0},null,{"$f":"M43-M51","v":0},null,{"$f":"O43-O51","v":0}]
[]
[null,"14.","NET PREMIUMS AND OTHER CONSIDERATIONS:"]
[null,null,"(a) Life",null,null,null,null,null,{"$f":"+Import!E424","v":0},null,{"$f":"+Import!G424","v":0},null,{"$f":"+Import!I396","v":0},null,{"$f":"+Import!K396","v":0}]
[null,null,"(b) Annuities",null,null,null,null,null,{"$f":"+Import!E425","v":0},null,{"$f":"+Import!G425","v":0},null,{"$f":"+Import!I397","v":0},null,{"$f":"+Import!K397","v":0}]
[null,null,"(c) Accident and health",null,null,null,null,null,{"$f":"+Import!E426","v":0},null,{"$f":"+Import!G426","v":0},null,{"$f":"+Import!I398","v":0},null,{"$f":"+Import!K398","v":0}]
[null,null,"(d) Total net premiums and other considerations",null,null,null,null,null,{"$f":"SUM(I48:I50)","v":0},null,{"$f":"SUM(K48:K50)","v":0},null,{"$f":"SUM(M48:M50)","v":0},null,{"$f":"SUM(O48:O50)","v":0}]
[]
[null,"15.","OTHER INSURANCE INCOME",null,null,null,null,null,{"$f":"+Import!E427","v":0},null,{"$f":"+Import!G427","v":0},null,{"$f":"+Import!I399","v":0},null,{"$f":"+Import!K399","v":0}]
[]
[null,"16.",null,null,null,null,null,null,{"$f":"I51+I53","v":0},null,{"$f":"K51+K53","v":0},null,{"$f":"M51+M53","v":0},null,{"$f":"O51+O53","v":0}]
[]
[null,null,"LONG-TERM BUSINESS DEDUCTIONS AND EXPENSES"]
[]
[null,"17.","CLAIMS - LIFE",null,null,null,null,null,{"$f":"+Import!E428","v":0},null,{"$f":"+Import!G428","v":0},null,{"$f":"+Import!I400","v":0},null,{"$f":"+Import!K400","v":0}]
[]
[null,"18.","POLICYHOLDERS' DIVIDENDS",null,null,null,null,null,{"$f":"+Import!E429","v":0},null,{"$f":"+Import!G429","v":0},null,{"$f":"+Import!I401","v":0},null,{"$f":"+Import!K401","v":0}]
[]
[null,"19.","SURRENDERS",null,null,null,null,null,{"$f":"+Import!E430","v":0},null,{"$f":"+Import!G430","v":0},null,{"$f":"+Import!I402","v":0},null,{"$f":"+Import!K402","v":0}]
[]
[null,"20.","MATURITIES",null,null,null,null,null,{"$f":"+Import!E431","v":0},null,{"$f":"+Import!G431","v":0},null,{"$f":"+Import!I403","v":0},null,{"$f":"+Import!K403","v":0}]
[]
[null,"21.","ANNUITIES",null,null,null,null,null,{"$f":"+Import!E432","v":0},null,{"$f":"+Import!G432","v":0},null,{"$f":"+Import!I404","v":0},null,{"$f":"+Import!K404","v":0}]
[]
[null,"22.","ACCIDENT AND HEALTH BENEFITS",null,null,null,null,null,{"$f":"+Import!E433","v":0},null,{"$f":"+Import!G433","v":0},null,{"$f":"+Import!I405","v":0},null,{"$f":"+Import!K405","v":0}]
[]
[null,"23.","COMMISSIONS",null,null,null,null,null,{"$f":"+Import!E434","v":0},null,{"$f":"+Import!G434","v":0},null,{"$f":"+Import!I406","v":0},null,{"$f":"+Import!K406","v":0}]
[]
[null,"24.","OTHER",null,null,null,null,null,{"$f":"+Import!E435","v":0},null,{"$f":"+Import!G435","v":0},null,{"$f":"+Import!I407","v":0},null,{"$f":"+Import!K407","v":0}]
[]
[null,"25.",null,null,null,null,null,null,{"$f":"I59+I61+I63+I65+I67+I69+I71+I73","v":0},null,{"$f":"K59+K61+K63+K65+K67+K69+K71+K73","v":0},null,{"$f":"M59+M61+M63+M65+M67+M69+M71+M73","v":0},null,{"$f":"O59+O61+O63+O65+O67+O69+O71+O73","v":0}]
[]
[null,"26.","INCREASE (DECREASE) IN POLICY RESERVES:"]
[null,null,"(a) Life",null,null,null,null,null,{"$f":"+Import!E436","v":0},null,{"$f":"+Import!G436","v":0},null,{"$f":"+Import!I408","v":0},null,{"$f":"+Import!K408","v":0}]
[null,null,"(b) Annuities",null,null,null,null,null,{"$f":"+Import!E437","v":0},null,{"$f":"+Import!G437","v":0},null,{"$f":"+Import!I409","v":0},null,{"$f":"+Import!K409","v":0}]
[null,null,"(c) Accident and health",null,null,null,null,null,{"$f":"+Import!E438","v":0},null,{"$f":"+Import!G438","v":0},null,{"$f":"+Import!I410","v":0},null,{"$f":"+Import!K410","v":0}]
[null,null,"(d) Total increase (decrease) in policy reserves",null,null,null,null,null,{"$f":"SUM(I78:I80)","v":0},null,{"$f":"SUM(K78:K80)","v":0},null,{"$f":"SUM(M78:M80)","v":0},null,{"$f":"SUM(O78:O80)","v":0}]
[]
[null,"27.",null,null,null,null,null,null,{"$f":"I75+I81","v":0},null,{"$f":"K75+K81","v":0},null,{"$f":"M75+M81","v":0},null,{"$f":"O75+O81","v":0}]
[]
[null,"28.","NET UNDERWRITING PROFIT (LOSS) - LONG-TERM BUSINESS",null,null,null,null,null,{"$f":"I55-I83","v":0},null,{"$f":"K55-K83","v":0},null,{"$f":"M55-M83","v":0},null,{"$f":"O55-O83","v":0}]
[]
[null,"29.","COMBINED NET UNDERWRITING PROFIT (LOSS) BEFORE "]
[null,null,"THE UNDERNOTED ITEMS",null,{"$f":"E36+E85","v":0},null,{"$f":"G36+G85","v":0},null,{"$f":"I36+I85","v":0},null,{"$f":"K36+K85","v":0},null,{"$f":"M36+M85","v":0},null,{"$f":"O36+O85","v":0}]
[]
[null,null,"UNDERNOTED ITEMS"]
[]
[null,"30.","COMBINED OPERATING EXPENSES:"]
[null,null,"(a) General and administrative ",null,{"$f":"Import!E411","v":0},null,{"$f":"Import!G411","v":0},null,{"$f":"+Import!E439","v":0},null,{"$f":"+Import!G439","v":0},null,{"$f":"+Import!I411","v":0},null,{"$f":"+Import!K411","v":0}]
[null,null,"(b) Personnel Costs  ",null,{"$f":"Import!E412","v":0},null,{"$f":"Import!G412","v":0},null,{"$f":"+Import!E440","v":0},null,{"$f":"+Import!G440","v":0},null,{"$f":"+Import!I412","v":0},null,{"$f":"+Import!K412","v":0}]
[null,null,"(c) Other  ",null,{"$f":"Import!E413","v":0},null,{"$f":"Import!G413","v":0},null,{"$f":"+Import!E441","v":0},null,{"$f":"+Import!G441","v":0},null,{"$f":"+Import!I413","v":0},null,{"$f":"+Import!K413","v":0}]
[null,null,"(d) Total combined operating expenses  ",null,{"$f":"SUM(E93:E95)","v":0},null,{"$f":"SUM(G93:G95)","v":0},null,{"$f":"SUM(I93:I95)","v":0},null,{"$f":"SUM(K93:K95)","v":0},null,{"$f":"SUM(M93:M95)","v":0},null,{"$f":"SUM(O93:O95)","v":0}]
[]
[null,"31.","COMBINED INVESTMENT INCOME - NET",null,{"$f":"Import!E414","v":0},null,{"$f":"Import!G414","v":0},null,{"$f":"+Import!E442","v":0},null,{"$f":"+Import!G442","v":0},null,{"$f":"+Import!I414","v":0},null,{"$f":"+Import!K414","v":0}]
[]
[null,"32.","COMBINED OTHER INCOME (DEDUCTIONS)",null,{"$f":"Import!E415","v":0},null,{"$f":"Import!G415","v":0},null,{"$f":"+Import!E443","v":0},null,{"$f":"+Import!G443","v":0},null,{"$f":"+Import!I415","v":0},null,{"$f":"+Import!K415","v":0}]
[]
[null,"33.","COMBINED INCOME BEFORE TAXES",null,{"$f":"E88-E96+E98+E100","v":0},null,{"$f":"G88-G96+G98+G100","v":0},null,{"$f":"I88-I96+I98+I100","v":0},null,{"$f":"K88-K96+K98+K100","v":0},null,{"$f":"M88-M96+M98+M100","v":0},null,{"$f":"O88-O96+O98+O100","v":0}]
[]
[null,"34.","COMBINED INCOME TAXES (IF APPLICABLE):"]
[null,null,"(a) Current",null,{"$f":"Import!E416","v":0},null,{"$f":"Import!G416","v":0},null,{"$f":"+Import!E444","v":0},null,{"$f":"+Import!G444","v":0},null,{"$f":"+Import!I416","v":0},null,{"$f":"+Import!K416","v":0}]
[null,null,"(b) Deferred",null,{"$f":"Import!E417","v":0},null,{"$f":"Import!G417","v":0},null,{"$f":"+Import!E445","v":0},null,{"$f":"+Import!G445","v":0},null,{"$f":"+Import!I417","v":0},null,{"$f":"+Import!K417","v":0}]
[null,null,"(c) Total ",null,{"$f":"E105+E106","v":0},null,{"$f":"G105+G106","v":0},null,{"$f":"I105+I106","v":0},null,{"$f":"K105+K106","v":0},null,{"$f":"M105+M106","v":0},null,{"$f":"O105+O106","v":0}]
[]
[null,"35.","COMBINED INCOME BEFORE REALIZED GAINS (LOSSES)",null,{"$f":"E102-E107","v":0},null,{"$f":"G102-G107","v":0},null,{"$f":"I102-I107","v":0},null,{"$f":"K102-K107","v":0},null,{"$f":"M102-M107","v":0},null,{"$f":"O102-O107","v":0}]
[]
[null,"36.","COMBINED REALIZED GAINS (LOSSES)",null,{"$f":"Import!E418","v":0},null,{"$f":"Import!G418","v":0},null,{"$f":"+Import!E446","v":0},null,{"$f":"+Import!G446","v":0},null,{"$f":"+Import!I418","v":0},null,{"$f":"+Import!K418","v":0}]
[]
[null,"37.","COMBINED INTEREST CHARGES",null,{"$f":"Import!E419","v":0},null,{"$f":"Import!G419","v":0},null,{"$f":"+Import!E447","v":0},null,{"$f":"+Import!G447","v":0},null,{"$f":"+Import!I419","v":0},null,{"$f":"+Import!K419","v":0}]
[]
[null,"38.","NET INCOME",null,{"$f":"E109+E111-E113","v":0},null,{"$f":"G109+G111-G113","v":0},null,{"$f":"I109+I111-I113","v":0},null,{"$f":"K109+K111-K113","v":0},null,{"$f":"M109+M111-M113","v":0},null,{"$f":"O109+O111-O113","v":0}]

{"sheet":"Form 8SFS","index":18,"n_rows":63,"n_cols":17,"rows_kept":63,"cut":false,"hidden":false,"merged":[[5,14,5,16],[5,10,5,12],[4,10,4,12],[4,6,4,8],[5,6,5,8],[4,14,4,16],[62,2,62,4],[60,10,60,12],[60,2,60,4],[2,2,2,3],[3,2,3,3],[45,2,45,4],[62,10,62,12],[1,6,3,12]]}
[null,"STATUTORY STATEMENT OF CAPITAL AND SURPLUS ",null,null,null,null,null,null,null,null,null,null,null,null,null,null,{"$f":"HYPERLINK(\"#'Index'!A1\",\"Return to Index\")","v":"Return to Index"}]
[null,{"$f":"'Company Information'!C7","v":"Enter Company Name"},null,null,null,null,"Note if an insurer does not have any entities to consolidate, select \"No Subsidiaries\" on the Company Information tab (This cell is editable for deletion)"]
[null,"For the year ending",{"$f":" TEXT('Company Information'!C3,\"d mmmm yyyy\")","v":"31 December 2023"},null,null,null,null,null,null,null,null,null,null,null,null,null,"FORM 8SFS"]
[null,{"$f":"\"expressed in\"& IF(CONFIGURATION!$B$12>1,\" ['\"&MID(CONFIGURATION!$B$12,2,LEN(CONFIGURATION!$B$12))&\"s]\",\"\")","v":"expressed in ['000s]"},{"$f":"'Form 1EBS'!C4","v":"United States Dollars"}]
[null,null,null,null,null,null,"General Business",null,null,null,"Long-Term Business",null,null,null,"General and Long-Term Business"]
[null,"STMT.",null,null,null,null,"Unconsolidated",null,null,null,"Unconsolidated",null,null,null,"Consolidated"]
[null,"LINE No.",null,null,null,null,{"$f":"'Form 1EBS'!F7","v":"2023-12-31"},null,{"$f":"'Form 1EBS'!H7","v":"2022-12-31"},null,{"$f":"'Form 1EBS'!F7","v":"2023-12-31"},null,{"$f":"'Form 1EBS'!H7","v":"2022-12-31"},null,{"$f":"'Form 1EBS'!F7","v":"2023-12-31"},null,{"$f":"'Form 1EBS'!H7","v":"2022-12-31"}]
[null,null,null,null,null,null,{"$f":"CONFIGURATION!$D$12","v":" ('000s)"},null,{"$f":"CONFIGURATION!$D$12","v":" ('000s)"},null,{"$f":"CONFIGURATION!$D$12","v":" ('000s)"},null,{"$f":"CONFIGURATION!$D$12","v":" ('000s)"},null,{"$f":"CONFIGURATION!$D$12","v":" ('000s)"},null,{"$f":"CONFIGURATION!$D$12","v":" ('000s)"}]
[null,"1.","STATUTORY CAPITAL"]
[]
[null,"(a)","Capital Stock",null,null,null,{"$f":"Import!E450","v":0},null,{"$f":"Import!G450","v":0},null,{"$f":"Import!E465","v":0},null,{"$f":"Import!G465","v":0}]
[null,null,"(i) Common Shares",null,null,null,null,null,null,null,null,null,null,null,{"$f":"Import!I451","v":0},null,{"$f":"Import!K451","v":0}]
[null,null,"authorized",null,"shares of par"]
[null,null,"value",null,"each issued and"]
[null,null,"fully paid",null,"shares"]
[]
[null,null,"(ii) Preferred Shares",null,null,null,null,null,null,null,null,null,null,null,{"$f":"Import!I452","v":0},null,{"$f":"Import!K452","v":0}]
[null,null,"authorized",null,"shares of par"]
[null,null,"value",null,"each issued and"]
[null,null,"fully paid",null,"shares"]
[null,null,"aggregate liquidation value for —"]
[null,null,{"$f":"O7","v":"2023-12-31"}]
[null,null,{"$f":"Q7","v":"2022-12-31"}]
[]
[null,null,"(iii) Treasury Shares",null,null,null,null,null,null,null,null,null,null,null,{"$f":"Import!I453","v":0},null,{"$f":"Import!K453","v":0}]
[null,null,"repurchased",null,"shares of par"]
[null,null,"value",null,"each issued"]
[]
[null,"(b)","Contributed surplus",null,null,null,{"$f":"Import!E454","v":0},null,{"$f":"Import!G454","v":0},null,{"$f":"Import!E466","v":0},null,{"$f":"Import!G466","v":0},null,{"$f":"Import!I454","v":0},null,{"$f":"Import!K454","v":0}]
[]
[null,"(c)","Any other fixed capital"]
[null,null,"(i) Hybrid capital instruments",null,null,null,{"$f":"Import!E455","v":0},null,{"$f":"Import!G455","v":0},null,{"$f":"Import!E467","v":0},null,{"$f":"Import!G467","v":0},null,{"$f":"Import!I455","v":0},null,{"$f":"Import!K455","v":0}]
[null,null,"(ii) Guarantees and others",null,null,null,{"$f":"Import!E456","v":0},null,{"$f":"Import!G456","v":0},null,{"$f":"Import!E468","v":0},null,{"$f":"Import!G468","v":0},null,{"$f":"Import!I456","v":0},null,{"$f":"Import!K456","v":0}]
[null,null,"(iii) Total any other fixed capital",null,null,null,{"$f":"SUM(G32:G33)","v":0},null,{"$f":"SUM(I32:I33)","v":0},null,{"$f":"SUM(K32:K33)","v":0},null,{"$f":"SUM(M32:M33)","v":0},null,{"$f":"SUM(O32:O33)","v":0},null,{"$f":"SUM(Q32:Q33)","v":0}]
[]
[null,"(d)","Total Statutory Capital",null,null,null,{"$f":"G11+G29+G34","v":0},null,{"$f":"I11+I29+I34","v":0},null,{"$f":"K11+K29+K34","v":0},null,{"$f":"M11+M29+M34","v":0},null,{"$f":"O12+O17-O25+O29+O34","v":0},null,{"$f":"Q12+Q17-Q25+Q29+Q34","v":0}]
[]
[null,"2.","STATUTORY SURPLUS:"]
[]
[null,"(a)","Statutory Surplus - Beginning of Year",null,null,null,{"$f":"Import!E457","v":0},null,{"$f":"Import!G457","v":0},null,{"$f":"Import!E469","v":0},null,{"$f":"Import!G469","v":0},null,{"$f":"Import!I457","v":0},null,{"$f":"Import!K457","v":0}]
[]
[null,"(b)","Add: Income for Year",null,null,null,{"$f":"'Form 2SFS'!E115","v":0},null,{"$f":"'Form 2SFS'!G115","v":0},null,{"$f":"'Form 2SFS'!I115","v":0},null,{"$f":"'Form 2SFS'!K115","v":0},null,{"$f":"'Form 2SFS'!M115","v":0},null,{"$f":"'Form 2SFS'!O115","v":0}]
[]
[null,"(c)","Less: Dividends paid and payable",null,null,null,{"$f":"Import!E458","v":0},null,{"$f":"Import!G458","v":0},null,{"$f":"Import!E470","v":0},null,{"$f":"Import!G470","v":0},null,{"$f":"Import!I458","v":0},null,{"$f":"Import!K458","v":0}]
[]
[null,"(d)","Add (Deduct): Change in unrealized appreciation (depreciation) of investments",null,null,null,{"$f":"Import!E459","v":0},null,{"$f":"Import!G459","v":0},null,{"$f":"Import!E471","v":0},null,{"$f":"Import!G471","v":0},null,{"$f":"Import!I459","v":0},null,{"$f":"Import!K459","v":0}]
[]
[null,"(e)","Add (Deduct): Change in non-admitted assets",null,null,null,{"$f":"Import!E460","v":0},null,{"$f":"Import!G460","v":0},null,{"$f":"Import!E472","v":0},null,{"$f":"Import!G472","v":0},null,{"$f":"Import!I460","v":0},null,{"$f":"Import!K460","v":0}]
[]
[null,"(f)","Add (Deduct): Change in appraisal of real estate",null,null,null,{"$f":"Import!E461","v":0},null,{"$f":"Import!G461","v":0},null,{"$f":"Import!E473","v":0},null,{"$f":"Import!G473","v":0},null,{"$f":"Import!I461","v":0},null,{"$f":"Import!K461","v":0}]
[]
[null,"(g)","Add (Deduct): Change in any other statutory capital",null,null,null,{"$f":"Import!E462","v":0},null,{"$f":"Import!G462","v":0},null,{"$f":"Import!E474","v":0},null,{"$f":"Import!G474","v":0},null,{"$f":"Import!I462","v":0},null,{"$f":"Import!K462","v":0}]
[]
[null,"(h)","Statutory Surplus - End of Year",null,null,null,{"$f":"G40+G42+G44+G46+G48+G50+G52","v":0},null,{"$f":"I40+I42+I44+I46+I48+I50+I52","v":0},null,{"$f":"K40+K42+K44+K46+K48+K50+K52","v":0},null,{"$f":"M40+M42+M44+M46+M48+M50+M52","v":0},null,{"$f":"O40+O42+O44+O46+O48+O50+O52","v":0},null,{"$f":"Q40+Q42+Q44+Q46+Q48+Q50+Q52","v":0}]
[]
[null,"3.","MINORITY INTEREST",null,null,null,{"$f":"Import!E463","v":0},null,{"$f":"Import!G463","v":0},null,{"$f":"Import!E475","v":0},null,{"$f":"Import!G475","v":0},null,{"$f":"Import!I463","v":0},null,{"$f":"Import!K463","v":0}]
[]
[null,"4.","TOTAL STATUTORY CAPITAL AND SURPLUS",null,null,null,{"$f":"G36+G54+G56","v":0},null,{"$f":"I36+I54+I56","v":0},null,{"$f":"K36+K54+K56","v":0},null,{"$f":"M36+M54+M56","v":0},null,{"$f":"O36+O54+O56","v":0},null,{"$f":"Q36+Q54+Q56","v":0}]
[]
[null,null,null,null,null,null,null,null,null,null,"Change in other statutory capital and surplus"]
[null,"Line 2g","Change in any other statutory capital"]
[]
[null,"Line 4","Total Statutory Capital & Surplus",null,null,null,null,null,null,null,{"$f":"HYPERLINK(\"#'Schedule V(g)'!A1\",\"Refer to Schedule V(g)\")","v":"Refer to Schedule V(g)"}]

{"sheet":"Form 1ASFS","index":19,"n_rows":353,"n_cols":21,"rows_kept":353,"cut":false,"hidden":false,"merged":[[186,8,186,10],[198,4,198,6],[238,4,238,6],[238,8,238,12],[190,12,190,14],[191,12,191,14],[192,12,192,14],[198,8,198,12],[175,8,175,10],[177,8,177,10],[183,8,183,10],[184,8,184,10],[185,8,185,10],[176,8,176,10],[166,12,166,14],[167,12,167,14],[168,12,168,14],[173,8,173,10],[174,8,174,10],[4,4,4,6],[4,8,4,10],[4,12,4,14],[5,4,5,6],[5,8,5,10],[5,12,5,14],[279,4,279,6],[279,8,279,12],[289,1,289,2],[290,1,290,2],[294,1,294,2],[295,1,295,2],[299,1,299,2],[301,1,301,2],[305,1,305,2],[317,4,317,6]]}
[null,"STATUTORY BALANCE SHEET",null,null,null,null,null,null,null,null,null,null,null,null,{"$f":"HYPERLINK(\"#'Index'!A1\",\"Return to Index\")","v":"Return to Index"}]
[null,{"$f":"'Company Information'!C7","v":"Enter Company Name"}]
[null,"As at",{"$f":"'Company Information'!C3","v":"2023-12-31"},null,null,null,null,null,null,null,null,null,null,null,"FORM 1ASFS"]
[null,{"$f":"\"expressed in\"& IF(CONFIGURATION!$B$12>1,\" ['\"&MID(CONFIGURATION!$B$12,2,LEN(CONFIGURATION!$B$12))&\"s]\",\"\")","v":"expressed in ['000s]"},"United States Dollars"]
[null,null,null,null,"General Business",null,null,null,"Long-Term Business",null,null,null,"General & Long-Term Business"]
[null,"STMT.",null,null,"Unconsolidated",null,null,null,"Unconsolidated",null,null,null,"Consolidated"]
[null,"LINE No.",null,null,{"$f":"C3","v":"2023-12-31"},null,{"$f":"DATE(YEAR(C3) -1, MONTH(C3), DAY(C3))","v":"2022-12-31"},null,{"$f":"C3","v":"2023-12-31"},null,{"$f":"DATE(YEAR(C3) -1, MONTH(C3), DAY(C3))","v":"2022-12-31"},null,{"$f":"C3","v":"2023-12-31"},null,{"$f":"DATE(YEAR(C3) -1, MONTH(C3), DAY(C3))","v":"2022-12-31"}]
[null,null,null,null,{"$f":"CONFIGURATION!$D$12","v":" ('000s)"},null,{"$f":"CONFIGURATION!$D$12","v":" ('000s)"},null,{"$f":"CONFIGURATION!$D$12","v":" ('000s)"},null,{"$f":"CONFIGURATION!$D$12","v":" ('000s)"},null,{"$f":"CONFIGURATION!$D$12","v":" ('000s)"},null,{"$f":"CONFIGURATION!$D$12","v":" ('000s)"}]
[]
[null,"1.","CASH AND CASH EQUIVALENTS",null,{"$f":"Import!E478","v":0},null,{"$f":"Import!G478","v":0},null,{"$f":"Import!E543","v":0},null,{"$f":"Import!G543","v":0},null,{"$f":"Import!I478","v":0},null,{"$f":"Import!K478","v":0}]
[]
[null,"2.","QUOTED INVESTMENTS:"]
[null,"(a)","Bonds and Debentures"]
[null,null,"  i.   Assets Held to maturity or collection",null,{"$f":"Import!E479","v":0},null,{"$f":"Import!G479","v":0},null,{"$f":"Import!E544","v":0},null,{"$f":"Import!G544","v":0},null,{"$f":"Import!I479","v":0},null,{"$f":"Import!K479","v":0}]
[null,null,"  ii.  Other",null,{"$f":"Import!E480","v":0},null,{"$f":"Import!G480","v":0},null,{"$f":"Import!E545","v":0},null,{"$f":"Import!G545","v":0},null,{"$f":"Import!I480","v":0},null,{"$f":"Import!K480","v":0}]
[null,"(b) ","Total Bonds and Debentures",null,{"$f":"SUM(E14:E15)","v":0},null,{"$f":"SUM(G14:G15)","v":0},null,{"$f":"SUM(I14:I15)","v":0},null,{"$f":"SUM(K14:K15)","v":0},null,{"$f":"SUM(M14:M15)","v":0},null,{"$f":"SUM(O14:O15)","v":0}]
[null,"(c) ","Equities "]
[null,null,"  i.  Common stocks",null,{"$f":"Import!E481","v":0},null,{"$f":"Import!G481","v":0},null,{"$f":"Import!E546","v":0},null,{"$f":"Import!G546","v":0},null,{"$f":"Import!I481","v":0},null,{"$f":"Import!K481","v":0}]
[null,null,"  ii. Preferred stocks",null,{"$f":"Import!E482","v":0},null,{"$f":"Import!G482","v":0},null,{"$f":"Import!E547","v":0},null,{"$f":"Import!G547","v":0},null,{"$f":"Import!I482","v":0},null,{"$f":"Import!K482","v":0}]
[null,null,"  iii. Mutual Funds",null,{"$f":"Import!E483","v":0},null,{"$f":"Import!G483","v":0},null,{"$f":"Import!E548","v":0},null,{"$f":"Import!G548","v":0},null,{"$f":"Import!I483","v":0},null,{"$f":"Import!K483","v":0}]
[null,"(d) ","Total Equity Investments",null,{"$f":"SUM(E18:E20)","v":0},null,{"$f":"SUM(G18:G20)","v":0},null,{"$f":"SUM(I18:I20)","v":0},null,{"$f":"SUM(K18:K20)","v":0},null,{"$f":"SUM(M18:M20)","v":0},null,{"$f":"SUM(O18:O20)","v":0}]
[null,"(e)","Other quoted investments",null,{"$f":"Import!E484","v":0},null,{"$f":"Import!G484","v":0},null,{"$f":"Import!E549","v":0},null,{"$f":"Import!G549","v":0},null,{"$f":"Import!I484","v":0},null,{"$f":"Import!K484","v":0}]
[null,"(f)","Total quoted investments",null,{"$f":"E16+E21+E22","v":0},null,{"$f":"G16+G21+G22","v":0},null,{"$f":"I16+I21+I22","v":0},null,{"$f":"K16+K21+K22","v":0},null,{"$f":"M16+M21+M22","v":0},null,{"$f":"O16+O21+O22","v":0}]
[]
[null,"3.","UNQUOTED INVESTMENTS:"]
[null,"(a)","Bonds and Debentures"]
[null,null,"  i.   Assets held to maturity or collection",null,{"$f":"Import!E485","v":0},null,{"$f":"Import!G485","v":0},null,{"$f":"Import!E550","v":0},null,{"$f":"Import!G550","v":0},null,{"$f":"Import!I485","v":0},null,{"$f":"Import!K485","v":0}]
[null,null,"  ii.  Other",null,{"$f":"Import!E486","v":0},null,{"$f":"Import!G486","v":0},null,{"$f":"Import!E551","v":0},null,{"$f":"Import!G551","v":0},null,{"$f":"Import!I486","v":0},null,{"$f":"Import!K486","v":0}]
[null,"(b) ","Total Bonds and Debentures",null,{"$f":"SUM(E27:E28)","v":0},null,{"$f":"SUM(G27:G28)","v":0},null,{"$f":"SUM(I27:I28)","v":0},null,{"$f":"SUM(K27:K28)","v":0},null,{"$f":"SUM(M27:M28)","v":0},null,{"$f":"SUM(O27:O28)","v":0}]
[null,"(c) ","Equities "]
[null,null,"  i.  Common stocks",null,{"$f":"Import!E487","v":0},null,{"$f":"Import!G487","v":0},null,{"$f":"Import!E552","v":0},null,{"$f":"Import!G552","v":0},null,{"$f":"Import!I487","v":0},null,{"$f":"Import!K487","v":0}]
[null,null,"  ii. Preferred stocks",null,{"$f":"Import!E488","v":0},null,{"$f":"Import!G488","v":0},null,{"$f":"Import!E553","v":0},null,{"$f":"Import!G553","v":0},null,{"$f":"Import!I488","v":0},null,{"$f":"Import!K488","v":0}]
[null,null,"  iii. Mutual Funds",null,{"$f":"Import!E489","v":0},null,{"$f":"Import!G489","v":0},null,{"$f":"Import!E554","v":0},null,{"$f":"Import!G554","v":0},null,{"$f":"Import!I489","v":0},null,{"$f":"Import!K489","v":0}]
[null,"(d) ","Total equity investments",null,{"$f":"SUM(E31:E33)","v":0},null,{"$f":"SUM(G31:G33)","v":0},null,{"$f":"SUM(I31:I33)","v":0},null,{"$f":"SUM(K31:K33)","v":0},null,{"$f":"SUM(M31:M33)","v":0},null,{"$f":"SUM(O31:O33)","v":0}]
[null,"(e)","Other unquoted investments",null,{"$f":"Import!E490","v":0},null,{"$f":"Import!G490","v":0},null,{"$f":"Import!E555","v":0},null,{"$f":"Import!G555","v":0},null,{"$f":"Import!I490","v":0},null,{"$f":"Import!K490","v":0}]
[null,"(f)","Total unquoted investments",null,{"$f":"E29+E34+E35","v":0},null,{"$f":"G29+G34+G35","v":0},null,{"$f":"I29+I34+I35","v":0},null,{"$f":"K29+K34+K35","v":0},null,{"$f":"M29+M34+M35","v":0},null,{"$f":"O29+O34+O35","v":0}]
[]
[null,"4.","INVESTMENTS IN AND ADVANCES TO AFFILIATES (EQUITY METHOD):"]
[null,"(a)","Unregulated entities that conduct ancillary services",null,{"$f":"Import!E491","v":0},null,{"$f":"Import!G491","v":0},null,{"$f":"Import!E556","v":0},null,{"$f":"Import!G556","v":0},null,{"$f":"Import!I491","v":0},null,{"$f":"Import!K491","v":0}]
[null,"(b)","Unregulated non-financial operating entities",null,{"$f":"Import!E492","v":0},null,{"$f":"Import!G492","v":0},null,{"$f":"Import!E557","v":0},null,{"$f":"Import!G557","v":0},null,{"$f":"Import!I492","v":0},null,{"$f":"Import!K492","v":0}]
[null,"(c)","Unregulated financial operating entities",null,{"$f":"Import!E493","v":0},null,{"$f":"Import!G493","v":0},null,{"$f":"Import!E558","v":0},null,{"$f":"Import!G558","v":0},null,{"$f":"Import!I493","v":0},null,{"$f":"Import!K493","v":0}]
[null,"(d)","Regulated non-insurance financial operating entities",null,{"$f":"Import!E494","v":0},null,{"$f":"Import!G494","v":0},null,{"$f":"Import!E559","v":0},null,{"$f":"Import!G559","v":0},null,{"$f":"Import!I494","v":0},null,{"$f":"Import!K494","v":0}]
[null,"(e)","Regulated insurance financial operating entities",null,{"$f":"Import!E495","v":0},null,{"$f":"Import!G495","v":0},null,{"$f":"Import!E560","v":0},null,{"$f":"Import!G560","v":0},null,{"$f":"Import!I495","v":0},null,{"$f":"Import!K495","v":0}]
[null,"(f)","Total investments in affiliates (equity method)",null,{"$f":"SUM(E39:E43)","v":0},null,{"$f":"SUM(G39:G43)","v":0},null,{"$f":"SUM(I39:I43)","v":0},null,{"$f":"SUM(K39:K43)","v":0},null,{"$f":"SUM(M39:M43)","v":0},null,{"$f":"SUM(O39:O43)","v":0}]
[null,"(g)","Advances to affiliates",null,{"$f":"Import!E496","v":0},null,{"$f":"Import!G496","v":0},null,{"$f":"Import!E561","v":0},null,{"$f":"Import!G561","v":0},null,{"$f":"Import!I496","v":0},null,{"$f":"Import!K496","v":0}]
[null,"(h)","Total investments in and advances to affiliates (equity method)",null,{"$f":"E44+E45","v":0},null,{"$f":"G44+G45","v":0},null,{"$f":"I44+I45","v":0},null,{"$f":"K44+K45","v":0},null,{"$f":"M44+M45","v":0},null,{"$f":"O44+O45","v":0}]
[]
[null,"5.","INVESTMENTS IN MORTGAGE LOANS ON REAL ESTATE:"]
[null,"(a)","First liens",null,{"$f":"Import!E497","v":0},null,{"$f":"Import!G497","v":0},null,{"$f":"Import!E562","v":0},null,{"$f":"Import!G562","v":0},null,{"$f":"Import!I497","v":0},null,{"$f":"Import!K497","v":0}]
[null,"(b) ","Other than first liens",null,{"$f":"Import!E498","v":0},null,{"$f":"Import!G498","v":0},null,{"$f":"Import!E563","v":0},null,{"$f":"Import!G563","v":0},null,{"$f":"Import!I498","v":0},null,{"$f":"Import!K498","v":0}]
[null,"(c) ","Total investments in mortgage loans on real estate",null,{"$f":"E49+E50","v":0},null,{"$f":"G49+G50","v":0},null,{"$f":"I49+I50","v":0},null,{"$f":"K49+K50","v":0},null,{"$f":"M49+M50","v":0},null,{"$f":"O49+O50","v":0}]
[]
[null,"7.","REAL ESTATE:"]
[null,"(a)","Occupied by the company (less encumbrances)",null,{"$f":"Import!E499","v":0},null,{"$f":"Import!G499","v":0},null,{"$f":"Import!E564","v":0},null,{"$f":"Import!G564","v":0},null,{"$f":"Import!I499","v":0},null,{"$f":"Import!K499","v":0}]
[null,"(b)","Other properties (less encumbrances)",null,{"$f":"Import!E500","v":0},null,{"$f":"Import!G500","v":0},null,{"$f":"Import!E565","v":0},null,{"$f":"Import!G565","v":0},null,{"$f":"Import!I500","v":0},null,{"$f":"Import!K500","v":0}]
[null,"(c) ","Total real estate",null,{"$f":"SUM(E54:E55)","v":0},null,{"$f":"SUM(G54:G55)","v":0},null,{"$f":"SUM(I54:I55)","v":0},null,{"$f":"SUM(K54:K55)","v":0},null,{"$f":"SUM(M54:M55)","v":0},null,{"$f":"SUM(O54:O55)","v":0}]
[]
[null,"8.","COLLATERAL LOANS",null,{"$f":"Import!E501","v":0},null,{"$f":"Import!G501","v":0},null,{"$f":"Import!E566","v":0},null,{"$f":"Import!G566","v":0},null,{"$f":"Import!I501","v":0},null,{"$f":"Import!K501","v":0}]
[]
[null,"9.","INVESTMENT INCOME DUE AND ACCRUED",null,{"$f":"Import!E502","v":0},null,{"$f":"Import!G502","v":0},null,{"$f":"Import!E567","v":0},null,{"$f":"Import!G567","v":0},null,{"$f":"Import!I502","v":0},null,{"$f":"Import!K502","v":0}]
[]
[null,"10.","ACCOUNTS RECEIVABLE",null,{"$f":"Import!E503","v":0},null,{"$f":"Import!G503","v":0},null,{"$f":"Import!E568","v":0},null,{"$f":"Import!G568","v":0},null,{"$f":"Import!I503","v":0},null,{"$f":"Import!K503","v":0}]
[]
[null,"11.","INSURANCE AND REINSURANCE CONTRACT ASSETS"]
[null,"(a)","Insurance Contract Assets",null,{"$f":"Import!E504","v":0},null,{"$f":"Import!G504","v":0},null,{"$f":"Import!E569","v":0},null,{"$f":"Import!G569","v":0},null,{"$f":"Import!I504","v":0},null,{"$f":"Import!K504","v":0}]
[null,"(b)","Reinsurance Contract Assets",null,{"$f":"Import!E505","v":0},null,{"$f":"Import!G505","v":0},null,{"$f":"Import!E570","v":0},null,{"$f":"Import!G570","v":0},null,{"$f":"Import!I505","v":0},null,{"$f":"Import!K505","v":0}]
[null,"(c)","Investment Contracts with Discretionary Participation Features (DPF) assets",null,{"$f":"Import!E506","v":0},null,{"$f":"Import!G506","v":0},null,{"$f":"Import!E571","v":0},null,{"$f":"Import!G571","v":0},null,{"$f":"Import!I506","v":0},null,{"$f":"Import!K506","v":0}]
[null,"(d) ","Total Insurance and Reinsurance Contract Assets",null,{"$f":"SUM(E65:E67)","v":0},null,{"$f":"SUM(G65:G67)","v":0},null,{"$f":"SUM(I65:I67)","v":0},null,{"$f":"SUM(K65:K67)","v":0},null,{"$f":"SUM(M65:M67)","v":0},null,{"$f":"SUM(O65:O67)","v":0}]
[]
[null,"13.","SUNDRY ASSETS:"]
[null,"(a)","Derivative instruments",null,{"$f":"Import!E507","v":0},null,{"$f":"Import!G507","v":0},null,{"$f":"Import!E572","v":0},null,{"$f":"Import!G572","v":0},null,{"$f":"Import!I507","v":0},null,{"$f":"Import!K507","v":0}]
[null,"(b)","Segregated accounts companies - long-term business - variable annuities",null,null,null,null,null,{"$f":"Import!E573","v":0},null,{"$f":"Import!G573","v":0},null,{"$f":"Import!I508","v":0},null,{"$f":"Import!K508","v":0}]
[null,"(c) ","Segregated accounts companies - long-term business - others",null,null,null,null,null,{"$f":"Import!E574","v":0},null,{"$f":"Import!G574","v":0},null,{"$f":"Import!I509","v":0},null,{"$f":"Import!K509","v":0}]
[null,"(d)","Segregated accounts companies - general business",null,{"$f":"Import!E510","v":0},null,{"$f":"Import!G510","v":0},null,null,null,null,null,{"$f":"Import!I510","v":0},null,{"$f":"Import!K510","v":0}]
[null,"(e) ","Deposit assets",null,{"$f":"Import!E511","v":0},null,{"$f":"Import!G511","v":0},null,{"$f":"Import!E575","v":0},null,{"$f":"Import!G575","v":0},null,{"$f":"Import!I511","v":0},null,{"$f":"Import!K511","v":0}]
[null,"(f) ","Net receivables for investments sold",null,{"$f":"Import!E512","v":0},null,{"$f":"Import!G512","v":0},null,{"$f":"Import!E576","v":0},null,{"$f":"Import!G576","v":0},null,{"$f":"Import!I512","v":0},null,{"$f":"Import!K512","v":0}]
[null,"(g) ","Other Sundry Assets - 1 (Specify)",null,{"$f":"Import!E513","v":0},null,{"$f":"Import!G513","v":0},null,{"$f":"Import!E577","v":0},null,{"$f":"Import!G577","v":0},null,{"$f":"Import!I513","v":0},null,{"$f":"Import!K513","v":0}]
[null,"(h) ","Other Sundry Assets - 2 (Specify)",null,{"$f":"Import!E514","v":0},null,{"$f":"Import!G514","v":0},null,{"$f":"Import!E578","v":0},null,{"$f":"Import!G578","v":0},null,{"$f":"Import!I514","v":0},null,{"$f":"Import!K514","v":0}]
[null,"(i) ","Other Sundry Assets - 3 (Specify)",null,{"$f":"Import!E515","v":0},null,{"$f":"Import!G515","v":0},null,{"$f":"Import!E579","v":0},null,{"$f":"Import!G579","v":0},null,{"$f":"Import!I515","v":0},null,{"$f":"Import!K515","v":0}]
[null,"(j)","Total sundry assets",null,{"$f":"SUM(E71:E79)","v":0},null,{"$f":"SUM(G71:G79)","v":0},null,{"$f":"SUM(I71:I79)","v":0},null,{"$f":"SUM(K71:K79)","v":0},null,{"$f":"SUM(M71:M79)","v":0},null,{"$f":"SUM(O71:O79)","v":0}]
[]
[null,"14.","LETTERS OF CREDIT, GUARANTEES AND OTHER INSTRUMENTS"]
[null,"(a)","Letters of credit ",null,{"$f":"Import!E516","v":0},null,{"$f":"Import!G516","v":0},null,{"$f":"Import!E580","v":0},null,{"$f":"Import!G580","v":0},null,{"$f":"Import!I516","v":0},null,{"$f":"Import!K516","v":0}]
[null,"(b)","Guarantees",null,{"$f":"Import!E517","v":0},null,{"$f":"Import!G517","v":0},null,{"$f":"Import!E581","v":0},null,{"$f":"Import!G581","v":0},null,{"$f":"Import!I517","v":0},null,{"$f":"Import!K517","v":0}]
[null,"(c) ","Other instruments",null,{"$f":"Import!E518","v":0},null,{"$f":"Import!G518","v":0},null,{"$f":"Import!E582","v":0},null,{"$f":"Import!G582","v":0},null,{"$f":"Import!I518","v":0},null,{"$f":"Import!K518","v":0}]
[null,"(d) ","Total letters of credit, guarantees and other instruments",null,{"$f":"SUM(E83:E85)","v":0},null,{"$f":"SUM(G83:G85)","v":0},null,{"$f":"SUM(I83:I85)","v":0},null,{"$f":"SUM(K83:K85)","v":0},null,{"$f":"SUM(M83:M85)","v":0},null,{"$f":"SUM(O83:O85)","v":0}]
[]
[null,"15.","TOTAL ASSETS",null,{"$f":"E10+E23+E36+E46+E51+E56+E58+E60+E62+E80+E86+E68","v":0},null,{"$f":"G10+G23+G36+G46+G51+G56+G58+G60+G62+G80+G86+G68","v":0},null,{"$f":"I10+I23+I36+I46+I51+I56+I58+I60+I62+I80+I86+I68","v":0},null,{"$f":"K10+K23+K36+K46+K51+K56+K58+K60+K62+K80+K86+K68","v":0},null,{"$f":"M10+M23+M36+M46+M51+M56+M58+M60+M62+M80+M86+M68","v":0},null,{"$f":"O10+O23+O36+O46+O51+O56+O58+O60+O62+O80+O86+O68","v":0}]
[]
[null,null,"INSURANCE LIABILITIES, OTHER LIABILITIES AND STATUTORY CAPITAL AND SURPLUS"]
[]
[null,null,"INSURANCE LIABILITIES"]
[]
[null,"17.","GENERAL BUSINESS INSURANCE CONTRACT LIABILITIES",null,{"$f":"Import!E520","v":0},null,{"$f":"Import!G520","v":0},null,null,null,null,null,{"$f":"Import!I520","v":0},null,{"$f":"Import!K520","v":0}]
[]
[null,"17A.","GENERAL BUSINESS REINSURANCE CONTRACT LIABILITIES",null,{"$f":"Import!E521","v":0},null,{"$f":"Import!G521","v":0},null,null,null,null,null,{"$f":"Import!I521","v":0},null,{"$f":"Import!K521","v":0},null,null,null,null,null,17]
[]
[null,"18.","INVESTMENT CONTRACT WITH DPF LIABILITIES",null,{"$f":"Import!E522","v":0},null,{"$f":"Import!G522","v":0},null,{"$f":"Import!E584","v":0},null,{"$f":"Import!G584","v":0},null,{"$f":"Import!I522","v":0},null,{"$f":"Import!K522","v":0}]
[]
[null,"27.","LONG-TERM BUSINESS INSURANCE CONTRACT LIABILITIES",null,null,null,null,null,{"$f":"Import!E585","v":0},null,{"$f":"Import!G585","v":0},null,{"$f":"Import!I523","v":0},null,{"$f":"Import!K523","v":0}]
[]
[null,"27A.","LONG-TERM REINSURANCE CONTRACT LIABILITIES",null,null,null,null,null,{"$f":"Import!E586","v":0},null,{"$f":"Import!G586","v":0},null,{"$f":"Import!I524","v":0},null,{"$f":"Import!K524","v":0}]
[]
[null,null,"OTHER LIABILITIES"]
[]
[null,"29.","COMMISSIONS, EXPENSES, FEES AND TAXES PAYABLE",null,{"$f":"Import!E525","v":0},null,{"$f":"Import!G525","v":0},null,{"$f":"Import!E587","v":0},null,{"$f":"Import!G587","v":0},null,{"$f":"Import!I525","v":0},null,{"$f":"Import!K525","v":0}]
[]
[null,"30.","LOANS AND NOTES PAYABLE",null,{"$f":"Import!E526","v":0},null,{"$f":"Import!G526","v":0},null,{"$f":"Import!E588","v":0},null,{"$f":"Import!G588","v":0},null,{"$f":"Import!I526","v":0},null,{"$f":"Import!K526","v":0}]
[]
[null,"31.","(a) INCOME TAXES PAYABLE",null,{"$f":"Import!E527","v":0},null,{"$f":"Import!G527","v":0},null,{"$f":"Import!E589","v":0},null,{"$f":"Import!G589","v":0},null,{"$f":"Import!I527","v":0},null,{"$f":"Import!K527","v":0}]
[]
[null,null,"(b) DEFERRED INCOME TAXES",null,{"$f":"Import!E528","v":0},null,{"$f":"Import!G528","v":0},null,{"$f":"Import!E590","v":0},null,{"$f":"Import!G590","v":0},null,{"$f":"Import!I528","v":0},null,{"$f":"Import!K528","v":0}]
[]
[null,"32.","AMOUNTS DUE TO AFFILIATES",null,{"$f":"Import!E529","v":0},null,{"$f":"Import!G529","v":0},null,{"$f":"Import!E591","v":0},null,{"$f":"Import!G591","v":0},null,{"$f":"Import!I529","v":0},null,{"$f":"Import!K529","v":0}]
[]
[null,"33.","ACCOUNTS PAYABLE AND ACCRUED LIABILITIES",null,{"$f":"Import!E530","v":0},null,{"$f":"Import!G530","v":0},null,{"$f":"Import!E592","v":0},null,{"$f":"Import!G592","v":0},null,{"$f":"Import!I530","v":0},null,{"$f":"Import!K530","v":0}]
[]
[null,"35.","DIVIDENDS PAYABLE",null,{"$f":"Import!E531","v":0},null,{"$f":"Import!G531","v":0},null,{"$f":"Import!E593","v":0},null,{"$f":"Import!G593","v":0},null,{"$f":"Import!I531","v":0},null,{"$f":"Import!K531","v":0}]
[]
[null,"36.","SUNDRY LIABILITIES:"]
[null,"(a)","Derivative instruments",null,{"$f":"Import!E532","v":0},null,{"$f":"Import!G532","v":0},null,{"$f":"Import!E594","v":0},null,{"$f":"Import!G594","v":0},null,{"$f":"Import!I532","v":0},null,{"$f":"Import!K532","v":0}]
[null,"(b)","Segregated account companies",null,{"$f":"Import!E533","v":0},null,{"$f":"Import!G533","v":0},null,{"$f":"Import!E595","v":0},null,{"$f":"Import!G595","v":0},null,{"$f":"Import!I533","v":0},null,{"$f":"Import!K533","v":0}]
[null,"(c)","Deposit liabilities",null,{"$f":"Import!E534","v":0},null,{"$f":"Import!G534","v":0},null,{"$f":"Import!E596","v":0},null,{"$f":"Import!G596","v":0},null,{"$f":"Import!I534","v":0},null,{"$f":"Import!K534","v":0}]
[null,"(d)","Net payable for investments purchased",null,{"$f":"Import!E535","v":0},null,{"$f":"Import!G535","v":0},null,{"$f":"Import!E597","v":0},null,{"$f":"Import!G597","v":0},null,{"$f":"Import!I535","v":0},null,{"$f":"Import!K535","v":0}]
[null,"(e)","Other sundry liabilities - 1 (specify)",null,{"$f":"Import!E536","v":0},null,{"$f":"Import!G536","v":0},null,{"$f":"Import!E598","v":0},null,{"$f":"Import!G598","v":0},null,{"$f":"Import!I536","v":0},null,{"$f":"Import!K536","v":0}]
[null,"(f)","Other sundry liabilities - 2 (specify)",null,{"$f":"Import!E537","v":0},null,{"$f":"Import!G537","v":0},null,{"$f":"Import!E599","v":0},null,{"$f":"Import!G599","v":0},null,{"$f":"Import!I537","v":0},null,{"$f":"Import!K537","v":0}]
[null,"(g)","Other sundry liabilities - 3 (specify)",null,{"$f":"Import!E538","v":0},null,{"$f":"Import!G538","v":0},null,{"$f":"Import!E600","v":0},null,{"$f":"Import!G600","v":0},null,{"$f":"Import!I538","v":0},null,{"$f":"Import!K538","v":0}]
[null,"(h)","Total sundry liabilities",null,{"$f":"SUM(E121:E127)","v":0},null,{"$f":"SUM(G121:G127)","v":0},null,{"$f":"SUM(I121:I127)","v":0},null,{"$f":"SUM(K121:K127)","v":0},null,{"$f":"SUM(M121:M127)","v":0},null,{"$f":"SUM(O121:O127)","v":0}]
[]
[null,"37.","LETTERS OF CREDIT, GUARANTEES AND OTHER INSTRUMENTS"]
[null,"(a)","Letters of credit ",null,{"$f":"Import!E539","v":0},null,{"$f":"Import!G539","v":0},null,{"$f":"Import!E601","v":0},null,{"$f":"Import!G601","v":0},null,{"$f":"Import!I539","v":0},null,{"$f":"Import!K539","v":0}]
[null,"(b)","Guarantees",null,{"$f":"Import!E540","v":0},null,{"$f":"Import!G540","v":0},null,{"$f":"Import!E602","v":0},null,{"$f":"Import!G602","v":0},null,{"$f":"Import!I540","v":0},null,{"$f":"Import!K540","v":0}]
[null,"(c) ","Other instruments",null,{"$f":"Import!E541","v":0},null,{"$f":"Import!G541","v":0},null,{"$f":"Import!E603","v":0},null,{"$f":"Import!G603","v":0},null,{"$f":"Import!I541","v":0},null,{"$f":"Import!K541","v":0}]
[null,"(d)","Total letters of credit, guarantees and other instruments",null,{"$f":"SUM(E131:E133)","v":0},null,{"$f":"SUM(G131:G133)","v":0},null,{"$f":"SUM(I131:I133)","v":0},null,{"$f":"SUM(K131:K133)","v":0},null,{"$f":"SUM(M131:M133)","v":0},null,{"$f":"SUM(O131:O133)","v":0}]
[]
[null,"38.","TOTAL OTHER LIABILITIES",null,{"$f":"E106+E108+E110+E112+E114+E116+E118+E128+E134","v":0},null,{"$f":"G106+G108+G110+G112+G114+G116+G118+G128+G134","v":0},null,{"$f":"I106+I108+I110+I112+I114+I116+I118+I128+I134","v":0},null,{"$f":"K106+K108+K110+K112+K114+K116+K118+K128+K134","v":0},null,{"$f":"M106+M108+M110+M112+M114+M116+M118+M128+M134","v":0},null,{"$f":"O106+O108+O110+O112+O114+O116+O118+O128+O134","v":0}]
[]
[null,"39.","TOTAL INSURANCE LIABILITIES AND OTHER LIABILITIES",null,{"$f":"E94+E96+E100+E102+E98+E136","v":0},null,{"$f":"G94+G96+G100+G102+G98+G136","v":0},null,{"$f":"I94+I96+I100+I102+I98+I136","v":0},null,{"$f":"K94+K96+K100+K102+K98+K136","v":0},null,{"$f":"M94+M96+M100+M102+M98+M136","v":0},null,{"$f":"O94+O96+O100+O102+O98+O136","v":0}]
[]
[null,null,"STATUTORY CAPITAL AND SURPLUS"]
[]
[null,"40.","TOTAL STATUTORY CAPITAL AND SURPLUS ",null,{"$f":"'Form 8ASFS'!G58","v":0},null,{"$f":"'Form 8ASFS'!I58","v":0},null,{"$f":"'Form 8ASFS'!K58","v":0},null,{"$f":"'Form 8ASFS'!M58","v":0},null,{"$f":"'Form 8ASFS'!O58","v":0},null,{"$f":"'Form 8ASFS'!Q58","v":0}]
[]
[null,"41.","TOTAL LIABILITIES AND STATUTORY CAPITAL AND SURPLUS",null,{"$f":"E138+E142","v":0},null,{"$f":"G138+G142","v":0},null,{"$f":"I138+I142","v":0},null,{"$f":"K138+K142","v":0},null,{"$f":"M138+M142","v":0},null,{"$f":"O138+O142","v":0}]
[]
[null,null,null,null,{"$f":"IF(E147=\"TRUE\",HYPERLINK(\"#'Form 1ASFS'!E89\",\"TRUE\"),HYPERLINK(\"#'Form 1ASFS'!E89\",\"FALSE\"))","v":"TRUE"},null,{"$f":"IF(G147=\"TRUE\",HYPERLINK(\"#'Form 1ASFS'!G89\",\"TRUE\"),HYPERLINK(\"#'Form 1ASFS'!G89\",\"FALSE\"))","v":"TRUE"},null,{"$f":"IF(I147=\"TRUE\",HYPERLINK(\"#'Form 1ASFS'!I89\",\"TRUE\"),HYPERLINK(\"#'Form 1ASFS'!I89\",\"FALSE\"))","v":"TRUE"},null,{"$f":"IF(K147=\"TRUE\",HYPERLINK(\"#'Form 1ASFS'!K89\",\"TRUE\"),HYPERLINK(\"#'Form 1ASFS'!K89\",\"FALSE\"))","v":"TRUE"},null,{"$f":"IF(M147=\"TRUE\",HYPERLINK(\"#'Form 1ASFS'!M89\",\"TRUE\"),HYPERLINK(\"#'Form 1ASFS'!M89\",\"FALSE\"))","v":"TRUE"},null,{"$f":"IF(O147=\"TRUE\",HYPERLINK(\"#'Form 1ASFS'!O89\",\"TRUE\"),HYPERLINK(\"#'Form 1ASFS'!O89\",\"FALSE\"))","v":"TRUE"}]
[null,null,null,null,{"$f":"IF(ROUND((E88-E144),0)=0,\"TRUE\",\"FALSE\")","v":"TRUE"},null,{"$f":"IF(ROUND((G88-G144),0)=0,\"TRUE\",\"FALSE\")","v":"TRUE"},null,{"$f":"IF(ROUND((I88-I144),0)=0,\"TRUE\",\"FALSE\")","v":"TRUE"},null,{"$f":"IF(ROUND((K88-K144),0)=0,\"TRUE\",\"FALSE\")","v":"TRUE"},null,{"$f":"IF(ROUND((M88-M144),0)=0,\"TRUE\",\"FALSE\")","v":"TRUE"},null,{"$f":"IF(ROUND((O88-O144),0)=0,\"TRUE\",\"FALSE\")","v":"TRUE"}]
[null,null,"Difference",null,{"$f":"ROUND((E88-E144),0)","v":0},null,{"$f":"ROUND((G88-G144),0)","v":0},null,{"$f":"ROUND((I88-I144),0)","v":0},null,{"$f":"ROUND((K88-K144),0)","v":0},null,{"$f":"ROUND((M88-M144),0)","v":0},null,{"$f":"ROUND((O88-O144),0)","v":0}]
[]
[null,null,null,null,{"$f":"IF(E146=\"False\",\"Line 15 does not equal Line 41\",\"\")","v":""},null,{"$f":"IF(G146=\"False\",\"Line 15 does not equal Line 41\",\"\")","v":""},null,{"$f":"IF(I146=\"False\",\"Line 15 does not equal Line 41\",\"\")","v":""},null,{"$f":"IF(K146=\"False\",\"Line 15 does not equal Line 41\",\"\")","v":""},null,{"$f":"IF(M146=\"False\",\"Line 15 does not equal Line 41\",\"\")","v":""},null,{"$f":"IF(O146=\"False\",\"Line 15 does not equal Line 41\",\"\")","v":""}]
[]
[null,"Notes to Unconsolidated Form 1ASFS"]
[]
[null,null,"Premiums Receivable"]
[null,null,"In course of collection",null,null,null,null,null,null,null,null,null,{"$f":"Import!I605","v":0},null,{"$f":"Import!K605","v":0}]
[null,null,"Deferred - not yet due",null,null,null,null,null,null,null,null,null,{"$f":"Import!I606","v":0},null,{"$f":"Import!K606","v":0}]
[null,null,"Receivable from retrocessional contracts",null,null,null,null,null,null,null,null,null,{"$f":"Import!I607","v":0},null,{"$f":"Import!K607","v":0}]
[null,null,"Total Premium Receivable",null,null,null,null,null,null,null,null,null,{"$f":"SUM(M155:M157)","v":0},null,{"$f":"SUM(O155:O157)","v":0}]
[]
[null,null,"Reinsurance Balances Receivable",null,null,null,null,null,null,null,null,null,{"$f":"Import!I609","v":0},null,{"$f":"Import!K609","v":0}]
[]
[null,null,"Funds Held by Ceding Reinsurers",null,null,null,null,null,null,null,null,null,{"$f":"Import!I610","v":0},null,{"$f":"Import!K610","v":0}]
[]
[null,null,"Collateralized balances related to receivables from retrocessional contracts",null,null,null,null,null,null,null,null,null,{"$f":"Import!I611","v":0},null,{"$f":"Import!K611","v":0}]
[]
[null,"Line 13","Sundry assets"]
[null,null,"(a) Nature of the assets",null,null,null,null,null,null,null,null,null,{"$f":"Import!I612","v":0}]
[null,null,"(b) (i) Description of policies surrounding use of derivatives, if applicable",null,null,null,null,null,null,null,null,null,{"$f":"Import!I613","v":0}]
[null,null,"(b) (ii) Market value and nominal exposure of each derivative by issuer",null,null,null,null,null,null,null,null,null,{"$f":"Import!I614","v":0}]
[]
[null,"Line 15","Encumbered assets for policyholder obligations"]
[]
[null,null,"Asset",null,null,null,null,null,"Purpose of Encumbrance"]
[null,null,"             Cash",null,null,null,null,null,null,null,null,null,{"$f":"Import!I615","v":0},null,{"$f":"Import!K615","v":0}]
[null,null,"             Total quoted investments",null,null,null,null,null,null,null,null,null,{"$f":"Import!I616","v":0},null,{"$f":"Import!K616","v":0}]
[null,null,"             Total unquoted investments",null,null,null,null,null,null,null,null,null,{"$f":"Import!I617","v":0},null,{"$f":"Import!K617","v":0}]
[null,null,"             Funds held by ceding reinsurers"]
[null,null,"             Other asset types",null,null,null,null,null,null,null,null,null,{"$f":"Import!I618","v":0},null,{"$f":"Import!K618","v":0}]
[null,null,"                      Total assets encumbered",null,null,null,null,null,null,null,null,null,{"$f":"SUM(M174:M178)","v":0},null,{"$f":"SUM(O174:O178)","v":0}]
[]
[null,"Line 15","Encumbered assets not securing policyholder obligations"]
[]
[null,null,"Asset",null,null,null,null,null,"Purpose of Encumbrance"]
[null,null,"             Cash",null,null,null,null,null,null,null,null,null,{"$f":"Import!I620","v":0},null,{"$f":"Import!K620","v":0}]
[null,null,"             Total quoted investments",null,null,null,null,null,null,null,null,null,{"$f":"Import!I621","v":0},null,{"$f":"Import!K621","v":0}]
[null,null,"             Total unquoted investments",null,null,null,null,null,null,null,null,null,{"$f":"Import!I622","v":0},null,{"$f":"Import!K622","v":0}]
[null,null,"             Other asset types",null,null,null,null,null,null,null,null,null,{"$f":"Import!I623","v":0},null,{"$f":"Import!K623","v":0}]
[null,null,"                      Total assets encumbered",null,null,null,null,null,null,null,null,null,{"$f":"SUM(M184:M187)","v":0},null,{"$f":"SUM(O184:O187)","v":0}]
[]
[null,"Line 36","Sundry liabilities"]
[null,null,"(a) Nature of the liabilities and repayment terms",null,null,null,null,null,null,null,null,null,{"$f":"Import!I625","v":0}]
[null,null,"(b) (i) Description of policies surrounding use of derivatives, if applicable",null,null,null,null,null,null,null,null,null,{"$f":"Import!I626","v":0}]
[null,null,"(b) (ii) Market value and nominal exposure of each derivative by issuer",null,null,null,null,null,null,null,null,null,{"$f":"Import!I627","v":0}]
[]
[null,"Line 37","Letters of Credit, Guarantees and other Instruments",null,null,null,null,null,null,null,null,null,{"$f":"Import!I628","v":0},null,{"$f":"Import!K628","v":0}]
[]
[null,"Reconciliation of Net Changes in Insurance Contracts Liabilities by Remaining Coverage and Incurred Claim - General Business"]
[null,"Line 17 and 11(a)"]
[null,null,null,null,"Liability for Remaining Coverage",null,null,null,"Liabilities for Incurred Claims"]
[null,null,null,null,"Excluding loss component",null,"Loss component",null,"Products not under PAA",null,"(PAA) Estimates of present value of future cash flows",null," (PAA) Risk adjustment for non-financial risk",null,"Total"]
[null,"Opening assets",null,null,{"$f":"Import!I629","v":0},null,{"$f":"Import!I653","v":0},null,{"$f":"Import!I677","v":0},null,{"$f":"Import!I701","v":0},null,{"$f":"Import!I725","v":0},null,{"$f":"SUM(D201:M201)","v":0}]
[null,"Opening liabilities",null,null,{"$f":"Import!I630","v":0},null,{"$f":"Import!I654","v":0},null,{"$f":"Import!I678","v":0},null,{"$f":"Import!I702","v":0},null,{"$f":"Import!I726","v":0},null,{"$f":"SUM(D202:M202)","v":0}]
[null,"Net opening balance",null,null,{"$f":"E201-E202","v":0},null,{"$f":"G201-G202","v":0},null,{"$f":"I201-I202","v":0},null,0,null,0,null,0]
[]
[null,"Changes in the statement of income or loss"]
[]
[null," Insurance revenue",null,null,{"$f":"Import!I632","v":0},null,{"$f":"Import!I656","v":0},null,{"$f":"Import!I680","v":0},null,{"$f":"Import!I704","v":0},null,{"$f":"Import!I728","v":0},null,{"$f":"SUM(D207:M207)","v":0}]
[]
[null,"Insurance service expenses"]
[null,"Amortisation of insurance acquisition cash flows",null,null,{"$f":"Import!I633","v":0},null,{"$f":"Import!I657","v":0},null,{"$f":"Import!I681","v":0},null,{"$f":"Import!I705","v":0},null,{"$f":"Import!I729","v":0},null,{"$f":"SUM(D210:M210)","v":0}]
[null,"Incurred claims and other insurance service expenses",null,null,{"$f":"Import!I634","v":0},null,{"$f":"Import!I658","v":0},null,{"$f":"Import!I682","v":0},null,{"$f":"Import!I706","v":0},null,{"$f":"Import!I730","v":0},null,{"$f":"SUM(D211:M211)","v":0}]
[null,"Losses and reversals on onerous contracts",null,null,{"$f":"Import!I635","v":0},null,{"$f":"Import!I659","v":0},null,{"$f":"Import!I683","v":0},null,{"$f":"Import!I707","v":0},null,{"$f":"Import!I731","v":0},null,{"$f":"SUM(D212:M212)","v":0}]
[null,"Adjustments to liabilities for incurred claims",null,null,{"$f":"Import!I636","v":0},null,{"$f":"Import!I660","v":0},null,{"$f":"Import!I684","v":0},null,{"$f":"Import!I708","v":0},null,{"$f":"Import!I732","v":0},null,{"$f":"SUM(D213:M213)","v":0}]
[null,"Total Insurance service expenses",null,null,{"$f":"SUM(E210:E213)","v":0},null,{"$f":"SUM(G210:G213)","v":0},null,{"$f":"SUM(I210:I213)","v":0},null,{"$f":"SUM(K210:K213)","v":0},null,{"$f":"SUM(M210:M213)","v":0},null,{"$f":"SUM(O210:O213)","v":0}]
[]
[null,"Investment components",null,null,{"$f":"Import!I638","v":0},null,{"$f":"Import!I662","v":0},null,{"$f":"Import!I686","v":0},null,{"$f":"Import!I710","v":0},null,{"$f":"Import!I734","v":0},null,{"$f":"SUM(D216:M216)","v":0}]
[null,"Insurance service result",null,null,{"$f":"E207+E214+E216","v":0},null,{"$f":"G207+G214+G216","v":0},null,{"$f":"I207+I214+I216","v":0},null,{"$f":"K207+K214+K216","v":0},null,{"$f":"M207+M214+M216","v":0},null,{"$f":"O207+O214+O216","v":0}]
[]
[null,"Net finance expenses from insurance contracts",null,null,{"$f":"Import!I640","v":0},null,{"$f":"Import!I664","v":0},null,{"$f":"Import!I688","v":0},null,{"$f":"Import!I712","v":0},null,{"$f":"Import!I736","v":0},null,{"$f":"SUM(D219:M219)","v":0}]
[null,"Effect of movements in exchange rates",null,null,{"$f":"Import!I641","v":0},null,{"$f":"Import!I665","v":0},null,{"$f":"Import!I689","v":0},null,{"$f":"Import!I713","v":0},null,{"$f":"Import!I737","v":0},null,{"$f":"SUM(D220:M220)","v":0}]
[null,"Total changes in the statement of income or loss ",null,null,{"$f":"E217+E219+E220","v":0},null,{"$f":"G217+G219+G220","v":0},null,{"$f":"I217+I219+I220","v":0},null,{"$f":"K217+K219+K220","v":0},null,{"$f":"M217+M219+M220","v":0},null,{"$f":"O217+O219+O220","v":0}]
[]
[null,"Cash flows"]
[null,"Premiums received",null,null,{"$f":"Import!I643","v":0},null,{"$f":"Import!I667","v":0},null,{"$f":"Import!I691","v":0},null,{"$f":"Import!I715","v":0},null,{"$f":"Import!I739","v":0},null,{"$f":"SUM(D224:M224)","v":0}]
[null,"Insurance acquisition cash flows",null,null,{"$f":"Import!I644","v":0},null,{"$f":"Import!I668","v":0},null,{"$f":"Import!I692","v":0},null,{"$f":"Import!I716","v":0},null,{"$f":"Import!I740","v":0},null,{"$f":"SUM(D225:M225)","v":0}]
[null,"Claims and other insurance service expenses paid",null,null,{"$f":"Import!I645","v":0},null,{"$f":"Import!I669","v":0},null,{"$f":"Import!I693","v":0},null,{"$f":"Import!I717","v":0},null,{"$f":"Import!I741","v":0},null,{"$f":"SUM(D226:M226)","v":0}]
[null,"Total cash flows",null,null,{"$f":"SUM(E224:E226)","v":0},null,{"$f":"SUM(G224:G226)","v":0},null,{"$f":"SUM(I224:I226)","v":0},null,{"$f":"SUM(K224:K226)","v":0},null,{"$f":"SUM(M224:M226)","v":0},null,{"$f":"SUM(O224:O226)","v":0}]
[null,"Contracts transferred on acquisition of subsidiary",null,null,{"$f":"Import!I647","v":0},null,{"$f":"Import!I671","v":0},null,{"$f":"Import!I695","v":0},null,{"$f":"Import!I719","v":0},null,{"$f":"Import!I743","v":0},null,{"$f":"SUM(D228:M228)","v":0}]
[null,"Contracts transferred on disposal of subsidiary",null,null,{"$f":"Import!I648","v":0},null,{"$f":"Import!I672","v":0},null,{"$f":"Import!I696","v":0},null,{"$f":"Import!I720","v":0},null,{"$f":"Import!I744","v":0},null,{"$f":"SUM(D229:M229)","v":0}]
[null,"Net closing balance",null,null,{"$f":"E203+E221+E227+E228+E229","v":0},null,{"$f":"G203+G221+G227+G228+G229","v":0},null,{"$f":"I203+I221+I227+I228+I229","v":0},null,{"$f":"K203+K221+K227+K228+K229","v":0},null,{"$f":"M203+M221+M227+M228+M229","v":0},null,{"$f":"O203+O221+O227+O228+O229","v":0}]
[]
[null,"Closing assets",null,null,{"$f":"Import!I650","v":0},null,{"$f":"Import!I674","v":0},null,{"$f":"Import!I698","v":0},null,{"$f":"Import!I722","v":0},null,{"$f":"Import!I746","v":0},null,{"$f":"SUM(D232:M232)","v":0}]
[null,"Closing liabilities",null,null,{"$f":"Import!I651","v":0},null,{"$f":"Import!I675","v":0},null,{"$f":"Import!I699","v":0},null,{"$f":"Import!I723","v":0},null,{"$f":"Import!I747","v":0},null,{"$f":"SUM(D233:M233)","v":0}]
[null,"Net closing balance",null,null,{"$f":"E232-E233","v":0},null,{"$f":"G232-G233","v":0},null,{"$f":"I232-I233","v":0},null,{"$f":"K232-K233","v":0},null,{"$f":"M232-M233","v":0},null,{"$f":"O232-O233","v":0}]
[]
[null,null,null,null,null,null,null,null,null,null,null,null,{"$f":"E65-E94","v":0},null,{"$f":"IF(ROUND((O234-(E65-E94)),0)=0,\"True\",\"False\")","v":"True"}]
[null,null,null,null,null,null,null,null,null,null,null,null,{"$f":"ROUND((O234-(E65-E94)),0)","v":0},null,{"$f":"IF(ROUND((O234-O230),0)=0,\"True\",\"False\")","v":"True"}]
[null,"Reconciliation of Net Changes in Insurance Contracts Liabilities by Remaining Coverage and Incurred Claim - Long-Term Business"]
[null,"Line 27 and 11(a)",null,null,"Liability for Remaining Coverage",null,null,null,"Liabilities for Incurred Claims"]
[null,null,null,null,"Excluding loss component",null,"Loss component",null,"Products not under PAA",null,"(PAA) Estimates of present value of future cash flows",null," (PAA) Risk adjustment for non-financial risk",null,"Total"]
[null,"Opening assets",null,null,{"$f":"Import!I749","v":0},null,{"$f":"Import!I773","v":0},null,{"$f":"Import!I797","v":0},null,{"$f":"Import!I821","v":0},null,{"$f":"Import!I845","v":0},null,{"$f":"SUM(D241:M241)","v":0}]
[null,"Opening liabilities",null,null,{"$f":"Import!I750","v":0},null,{"$f":"Import!I774","v":0},null,{"$f":"Import!I798","v":0},null,{"$f":"Import!I822","v":0},null,{"$f":"Import!I846","v":0},null,{"$f":"SUM(D242:M242)","v":0}]
[null,"Net opening balance",null,null,{"$f":"E241-E242","v":0},null,{"$f":"G241-G242","v":0},null,{"$f":"I241-I242","v":0},null,{"$f":"K241-K242","v":0},null,{"$f":"M241-M242","v":0},null,{"$f":"O241-O242","v":0}]
[]
[null,"Changes in the statement of income or loss "]
[]
[null,"Insurance revenue",null,null,{"$f":"Import!I752","v":0},null,{"$f":"Import!I776","v":0},null,{"$f":"Import!I800","v":0},null,{"$f":"Import!I824","v":0},null,{"$f":"Import!I848","v":0},null,{"$f":"SUM(D247:M247)","v":0}]
[]
[null,"Insurance service expenses"]
[null,"Amortisation of insurance acquisition cash flows",null,null,{"$f":"Import!I753","v":0},null,{"$f":"Import!I777","v":0},null,{"$f":"Import!I801","v":0},null,{"$f":"Import!I825","v":0},null,{"$f":"Import!I849","v":0},null,{"$f":"SUM(D250:M250)","v":0}]
[null,"Incurred claims and other insurance service expenses",null,null,{"$f":"Import!I754","v":0},null,{"$f":"Import!I778","v":0},null,0,null,{"$f":"Import!I826","v":0},null,{"$f":"Import!I850","v":0},null,{"$f":"SUM(D251:M251)","v":0}]
[null,"Losses and reversals on onerous contracts",null,null,{"$f":"Import!I755","v":0},null,{"$f":"Import!I779","v":0},null,{"$f":"Import!I803","v":0},null,{"$f":"Import!I827","v":0},null,{"$f":"Import!I851","v":0},null,{"$f":"SUM(D252:M252)","v":0}]
[null,"Adjustments to liabilities for incurred claims",null,null,{"$f":"Import!I756","v":0},null,{"$f":"Import!I780","v":0},null,{"$f":"Import!I804","v":0},null,{"$f":"Import!I828","v":0},null,{"$f":"Import!I852","v":0},null,{"$f":"SUM(D253:M253)","v":0}]
[null,"Total Insurance service expenses",null,null,{"$f":"SUM(E250:E253)","v":0},null,{"$f":"SUM(G250:G253)","v":0},null,0,null,0,null,0,null,0]
[]
[null,"Investment components",null,null,{"$f":"Import!I758","v":0},null,{"$f":"Import!I782","v":0},null,{"$f":"Import!I806","v":0},null,{"$f":"Import!I830","v":0},null,{"$f":"Import!I854","v":0},null,{"$f":"SUM(D256:M256)","v":0}]
[null,"Insurance service result",null,null,{"$f":"E247+E254+E256","v":0},null,{"$f":"G247+G254+G256","v":0},null,{"$f":"I247+I254+I256","v":0},null,{"$f":"K247+K254+K256","v":0},null,{"$f":"M247+M254+M256","v":0},null,{"$f":"O247+O254+O256","v":0}]
[]
[null,"Net finance expenses from insurance contracts",null,null,{"$f":"Import!I760","v":0},null,{"$f":"Import!I784","v":0},null,{"$f":"Import!I808","v":0},null,{"$f":"Import!I832","v":0},null,{"$f":"Import!I856","v":0},null,{"$f":"SUM(D259:M259)","v":0}]
[null,"Effect of movements in exchange rates",null,null,{"$f":"Import!I761","v":0},null,{"$f":"Import!I785","v":0},null,{"$f":"Import!I809","v":0},null,{"$f":"Import!I833","v":0},null,{"$f":"Import!I857","v":0},null,{"$f":"SUM(D260:M260)","v":0}]
[null,"Total changes in the statement of income or loss ",null,null,{"$f":"E257+E259+E260","v":0},null,{"$f":"G257+G259+G260","v":0},null,{"$f":"I257+I259+I260","v":0},null,{"$f":"K257+K259+K260","v":0},null,{"$f":"M257+M259+M260","v":0},null,{"$f":"O257+O259+O260","v":0}]
[]
[null,"Cash flows"]
[null,"Premiums received",null,null,{"$f":"Import!I763","v":0},null,{"$f":"Import!I787","v":0},null,{"$f":"Import!I811","v":0},null,{"$f":"Import!I835","v":0},null,{"$f":"Import!I859","v":0},null,{"$f":"SUM(D264:M264)","v":0}]
[null,"Insurance acquisition cash flows",null,null,{"$f":"Import!I764","v":0},null,{"$f":"Import!I788","v":0},null,{"$f":"Import!I812","v":0},null,{"$f":"Import!I836","v":0},null,{"$f":"Import!I860","v":0},null,{"$f":"SUM(D265:M265)","v":0}]
[null,"Claims and other insurance service expenses paid",null,null,{"$f":"Import!I765","v":0},null,{"$f":"Import!I789","v":0},null,{"$f":"Import!I813","v":0},null,{"$f":"Import!I837","v":0},null,{"$f":"Import!I861","v":0},null,{"$f":"SUM(D266:M266)","v":0}]
[null,"Total cash flows",null,null,{"$f":"SUM(E264:E266)","v":0},null,{"$f":"SUM(G264:G266)","v":0},null,{"$f":"SUM(I264:I266)","v":0},null,{"$f":"SUM(K264:K266)","v":0},null,{"$f":"SUM(M264:M266)","v":0},null,{"$f":"SUM(O264:O266)","v":0}]
[null,"Contracts transferred on acquisition of subsidiary",null,null,{"$f":"Import!I767","v":0},null,{"$f":"Import!I791","v":0},null,{"$f":"Import!I815","v":0},null,{"$f":"Import!I839","v":0},null,{"$f":"Import!I863","v":0},null,{"$f":"SUM(D268:M268)","v":0}]
[null,"Contracts transferred on disposal of subsidiary",null,null,{"$f":"Import!I768","v":0},null,{"$f":"Import!I792","v":0},null,{"$f":"Import!I816","v":0},null,{"$f":"Import!I840","v":0},null,{"$f":"Import!I864","v":0},null,{"$f":"SUM(D269:M269)","v":0}]
[null,"Net closing balance",null,null,{"$f":"E243+E261+E267+E268+E269","v":0},null,{"$f":"G243+G261+G267+G268+G269","v":0},null,{"$f":"I243+I261+I267+I268+I269","v":0},null,{"$f":"K243+K261+K267+K268+K269","v":0},null,{"$f":"M243+M261+M267+M268+M269","v":0},null,{"$f":"O243+O261+O267+O268+O269","v":0}]
[]
[null,"Closing assets",null,null,{"$f":"Import!I770","v":0},null,{"$f":"Import!I794","v":0},null,{"$f":"Import!I818","v":0},null,{"$f":"Import!I842","v":0},null,{"$f":"Import!I866","v":0},null,{"$f":"SUM(D272:M272)","v":0}]
[null,"Closing liabilities",null,null,{"$f":"Import!I771","v":0},null,{"$f":"Import!I795","v":0},null,{"$f":"Import!I819","v":0},null,{"$f":"Import!I843","v":0},null,{"$f":"Import!I867","v":0},null,{"$f":"SUM(D273:M273)","v":0}]
[null,"Net closing balance",null,null,{"$f":"E272-E273","v":0},null,{"$f":"G272-G273","v":0},null,{"$f":"I272-I273","v":0},null,{"$f":"K272-K273","v":0},null,{"$f":"M272-M273","v":0},null,{"$f":"O272-O273","v":0}]
[]
[null,null,null,null,null,null,null,null,null,null,null,null,{"$f":"I65-I100","v":0},null,{"$f":"IF(ROUND((O274-(I65-I100)),0)=0,\"True\",\"False\")","v":"True"}]
[null,null,null,null,null,null,null,null,null,null,null,null,{"$f":"ROUND((O274-(I65-I100)),0)","v":0},null,{"$f":"IF(ROUND((O274-O270),0)=0,\"True\",\"False\")","v":"True"}]
[null,"Reconciliation of Changes in Net Reinsurance Contracts Assets by Remaining Coverage and Incurred Claims- General Business"]
[null,"Line 11b and 17A "]
[null,null,null,null,"Assets for Remaining Coverage",null,null,null,"Assets for Incurred Claims"]
[null,null,null,null,"Excluding loss-recovery component",null,"Loss recovery component",null,"Products not under PAA",null,"(PAA) Estimates of present value of future cashflows",null,"(PAA) Risk adjustment for non-financial risk",null,"Total"]
[null,"Opening assets",null,null,{"$f":"Import!I869","v":0},null,{"$f":"Import!I890","v":0},null,{"$f":"Import!I911","v":0},null,{"$f":"Import!I932","v":0},null,{"$f":"Import!I953","v":0},null,{"$f":"SUM(E282:M282)","v":0}]
[null,"Opening liabilities",null,null,{"$f":"Import!I870","v":0},null,{"$f":"Import!I891","v":0},null,{"$f":"Import!I912","v":0},null,{"$f":"Import!I933","v":0},null,{"$f":"Import!I954","v":0},null,0]
[null,"Net opening balance",null,null,{"$f":"E282-E283","v":0},null,{"$f":"G282-G283","v":0},null,{"$f":"I282-I283","v":0},null,{"$f":"K282-K283","v":0},null,{"$f":"M282-M283","v":0},null,{"$f":"O282-O283","v":0}]
[]
[null,"Changes in the statement of income or loss"]
[null,"Allocation of reinsurance premiums paid",null,null,{"$f":"Import!I872","v":0},null,{"$f":"Import!I893","v":0},null,{"$f":"Import!I914","v":0},null,{"$f":"Import!I935","v":0},null,{"$f":"Import!I956","v":0},null,{"$f":"SUM(E287:M287)","v":0}]
[]
[null,"Amounts recovered from reinsurers"]
[null,"Recoveries on incurred claims and other incurred reinsurance service expenses",null,null,{"$f":"Import!I873","v":0},null,{"$f":"Import!I894","v":0},null,{"$f":"Import!I915","v":0},null,{"$f":"Import!I936","v":0},null,{"$f":"Import!I957","v":0},null,{"$f":"SUM(E290:M290)","v":0}]
[null,"Recoveries and reversals of recoveries of losses on onerous contracts",null,null,{"$f":"Import!I874","v":0},null,{"$f":"Import!I895","v":0},null,{"$f":"Import!I916","v":0},null,{"$f":"Import!I937","v":0},null,{"$f":"Import!I958","v":0},null,0]
[null,"Adjustments to assets for incurred claims",null,null,{"$f":"Import!I875","v":0},null,{"$f":"Import!I896","v":0},null,{"$f":"Import!I917","v":0},null,{"$f":"Import!I938","v":0},null,{"$f":"Import!I959","v":0},null,0]
[null,"Total Amounts recovered from reinsurers",null,null,{"$f":"SUM(E290:E292)","v":0},null,{"$f":"SUM(G290:G292)","v":0},null,{"$f":"SUM(I290:I292)","v":0},null,{"$f":"SUM(K290:K292)","v":0},null,{"$f":"SUM(M290:M292)","v":0},null,{"$f":"SUM(O290:O292)","v":0}]
[]
[null,"Investment components and premium refunds",null,null,{"$f":"Import!I877","v":0},null,{"$f":"Import!I898","v":0},null,{"$f":"Import!I919","v":0},null,{"$f":"Import!I940","v":0},null,{"$f":"Import!I961","v":0},null,{"$f":"SUM(E295:M295)","v":0}]
[null,"Effect of changes in non-performance risk of reinsurers",null,null,{"$f":"Import!I878","v":0},null,{"$f":"Import!I899","v":0},null,{"$f":"Import!I920","v":0},null,{"$f":"Import!I941","v":0},null,{"$f":"Import!I962","v":0},null,0]
[]
[null,"Net expenses from reinsurance contracts held",null,null,{"$f":"E287+E293+E295+E296","v":0},null,{"$f":"G287+G293+G295+G296","v":0},null,{"$f":"I287+I293+I295+I296","v":0},null,{"$f":"K287+K293+K295+K296","v":0},null,{"$f":"M287+M293+M295+M296","v":0},null,{"$f":"O287+O293+O295+O296","v":0}]
[]
[null,"Net Finance income or expenses from reinsurance contracts",null,null,{"$f":"Import!I880","v":0},null,{"$f":"Import!I901","v":0},null,{"$f":"Import!I922","v":0},null,{"$f":"Import!I943","v":0},null,{"$f":"Import!I964","v":0},null,{"$f":"SUM(E300:M300)","v":0}]
[null,"Effect of movements in exchange rates",null,null,{"$f":"Import!I881","v":0},null,{"$f":"Import!I902","v":0},null,{"$f":"Import!I923","v":0},null,{"$f":"Import!I944","v":0},null,{"$f":"Import!I965","v":0},null,0]
[null,"Total changes in the statement of income or loss ",null,null,{"$f":"SUM(E298:E301)","v":0},null,{"$f":"SUM(G298:G301)","v":0},null,{"$f":"SUM(I298:I301)","v":0},null,{"$f":"SUM(K298:K301)","v":0},null,{"$f":"SUM(M298:M301)","v":0},null,{"$f":"SUM(O298:O301)","v":0}]
[]
[null,"Cash flows"]
[null,"Premiums paid",null,null,{"$f":"Import!I883","v":0},null,{"$f":"Import!I904","v":0},null,{"$f":"Import!I925","v":0},null,{"$f":"Import!I946","v":0},null,{"$f":"Import!I967","v":0},null,{"$f":"SUM(E305:M305)","v":0}]
[null,"Amounts received from reinsurers relating to incurred claims",null,null,{"$f":"Import!I884","v":0},null,{"$f":"Import!I905","v":0},null,{"$f":"Import!I926","v":0},null,{"$f":"Import!I947","v":0},null,{"$f":"Import!I968","v":0},null,0]
[null,"Total cash flows",null,null,{"$f":"SUM(E305:E306)","v":0},null,{"$f":"SUM(G305:G306)","v":0},null,{"$f":"SUM(I305:I306)","v":0},null,{"$f":"SUM(K305:K306)","v":0},null,{"$f":"SUM(M305:M306)","v":0},null,{"$f":"SUM(O305:O306)","v":0}]
[null,"Net closing balance",null,null,{"$f":"E284+E302+E307","v":0},null,{"$f":"G284+G302+G307","v":0},null,{"$f":"I284+I302+I307","v":0},null,{"$f":"K284+K302+K307","v":0},null,{"$f":"M284+M302+M307","v":0},null,{"$f":"O284+O302+O307","v":0}]
[]
[null,"Closing assets",null,null,{"$f":"Import!I887","v":0},null,{"$f":"Import!I908","v":0},null,{"$f":"Import!I929","v":0},null,{"$f":"Import!I950","v":0},null,{"$f":"Import!I971","v":0},null,{"$f":"SUM(E310:M310)","v":0}]
[null,"Closing liabilities",null,null,{"$f":"Import!I888","v":0},null,{"$f":"Import!I909","v":0},null,{"$f":"Import!I930","v":0},null,{"$f":"Import!I951","v":0},null,{"$f":"Import!I972","v":0},null,0]
[null,"Net closing balance",null,null,{"$f":"E310-E311","v":0},null,{"$f":"G310-G311","v":0},null,{"$f":"I310-I311","v":0},null,{"$f":"K310-K311","v":0},null,{"$f":"M310-M311","v":0},null,{"$f":"O310-O311","v":0}]
[]
[null,null,null,null,null,null,null,null,null,null,null,null,{"$f":"E66-E96","v":0},null,{"$f":"IF(ROUND((O312-(E66-E96)),0)=0,\"True\",\"False\")","v":"True"}]
[null,null,null,null,null,null,null,null,null,null,null,null,{"$f":"ROUND((O312-(E66-E96)),0)","v":0},null,{"$f":"IF(ROUND((O312-O308),0)=0,\"True\",\"False\")","v":"True"}]
[null,"Reconciliation of Changes in Net Reinsurance Contracts Assets by Remaining Coverage and Incurred Claims- Long Term"]
[null,"Line 11b and 27A "]
[null,null,null,null,"Assets for Remaining Coverage"]
[null,null,null,null,"Excluding loss-recovery component",null,"Loss recovery component",null,"Amounts recoverable: Incurred claims",null,"Total"]
[null,"Opening assets",null,null,{"$f":"Import!I974","v":0},null,{"$f":"Import!I995","v":0},null,{"$f":"Import!I1016","v":0},null,{"$f":"SUM(G320:I320)","v":0}]
[null,"Opening liabilities",null,null,{"$f":"Import!I975","v":0},null,{"$f":"Import!I996","v":0},null,{"$f":"Import!I1017","v":0},null,{"$f":"SUM(G321:I321)","v":0}]
[null,"Net opening balance",null,null,{"$f":"E320-E321","v":0},null,{"$f":"G320-G321","v":0},null,{"$f":"I320-I321","v":0},null,{"$f":"K320-K321","v":0}]
[]
[null,"Changes in the statement of income or loss"]
[null,"Allocation of reinsurance premiums paid",null,null,{"$f":"Import!I977","v":0},null,{"$f":"Import!I998","v":0},null,{"$f":"Import!I1019","v":0},null,{"$f":"SUM(G325:I325)","v":0}]
[]
[null,"Amounts recovered from reinsurers"]
[null,"Recoveries on incurred claims and other incurred reinsurance service expenses",null,null,{"$f":"Import!I978","v":0},null,{"$f":"Import!I999","v":0},null,{"$f":"Import!I1020","v":0},null,{"$f":"SUM(G328:I328)","v":0}]
[null,"Recoveries and reversals of recoveries of losses on onerous contracts",null,null,{"$f":"Import!I979","v":0},null,{"$f":"Import!I1000","v":0},null,{"$f":"Import!I1021","v":0},null,0]
[null,"Adjustments to assets for incurred claims",null,null,{"$f":"Import!I980","v":0},null,{"$f":"Import!I1001","v":0},null,{"$f":"Import!I1022","v":0},null,0]
[null,"Total Amounts recovered from reinsurers",null,null,{"$f":"SUM(E328:E330)","v":0},null,{"$f":"SUM(G328:G330)","v":0},null,{"$f":"SUM(I328:I330)","v":0},null,{"$f":"SUM(K328:K330)","v":0}]
[]
[null,"Investment components and premium refunds",null,null,{"$f":"Import!I982","v":0},null,{"$f":"Import!I1003","v":0},null,{"$f":"Import!I1024","v":0},null,{"$f":"SUM(G333:I333)","v":0}]
[null,"Effect of changes in non-performance risk of reinsurers",null,null,{"$f":"Import!I983","v":0},null,{"$f":"Import!I1004","v":0},null,{"$f":"Import!I1025","v":0},null,0]
[]
[null,"Net expenses from reinsurance contracts held",null,null,{"$f":"E325+E331+E333+E334","v":0},null,{"$f":"G325+G331+G333+G334","v":0},null,{"$f":"I325+I331+I333+I334","v":0},null,{"$f":"K325+K331+K333+K334","v":0}]
[]
[null,"Net Finance income or expenses from reinsurance contracts",null,null,{"$f":"Import!I985","v":0},null,{"$f":"Import!I1006","v":0},null,{"$f":"Import!I1027","v":0},null,{"$f":"SUM(G338:I338)","v":0}]
[null,"Effect of movements in exchange rates",null,null,{"$f":"Import!I986","v":0},null,{"$f":"Import!I1007","v":0},null,{"$f":"Import!I1028","v":0},null,0]
[null,"Total changes in the statement of income or loss ",null,null,{"$f":"SUM(E336:E339)","v":0},null,{"$f":"SUM(G336:G339)","v":0},null,{"$f":"SUM(I336:I339)","v":0},null,{"$f":"SUM(K336:K339)","v":0}]
[]
[null,"Cash flows"]
[null,"Premiums paid",null,null,{"$f":"Import!I988","v":0},null,{"$f":"Import!I1009","v":0},null,{"$f":"Import!I1030","v":0},null,{"$f":"SUM(G343:I343)","v":0}]
[null,"Amounts received from reinsurers relating to incurred claims",null,null,{"$f":"Import!I989","v":0},null,{"$f":"Import!I1010","v":0},null,{"$f":"Import!I1031","v":0},null,0]
[null,"Total cash flows",null,null,{"$f":"SUM(E343:E344)","v":0},null,{"$f":"SUM(G343:G344)","v":0},null,{"$f":"SUM(I343:I344)","v":0},null,{"$f":"SUM(K343:K344)","v":0}]
[null,"Net closing balance",null,null,{"$f":"E322+E340+E345","v":0},null,{"$f":"G322+G340+G345","v":0},null,{"$f":"I322+I340+I345","v":0},null,{"$f":"K322+K340+K345","v":0}]
[]
[null,"Closing assets",null,null,{"$f":"Import!I992","v":0},null,{"$f":"Import!I1013","v":0},null,{"$f":"Import!I1034","v":0},null,{"$f":"SUM(G348:I348)","v":0}]
[null,"Closing liabilities",null,null,{"$f":"Import!I993","v":0},null,{"$f":"Import!I1014","v":0},null,{"$f":"Import!I1035","v":0},null,0]
[null,"Net closing balance",null,null,{"$f":"E348-E349","v":0},null,{"$f":"G348-G349","v":0},null,{"$f":"I348-I349","v":0},null,{"$f":"K348-K349","v":0}]
[]
[null,null,null,null,null,null,null,null,{"$f":"I66-I102","v":0},null,{"$f":"IF(ROUND((K350-(I66-I102)),0)=0,\"True\",\"False\")","v":"True"}]
[null,null,null,null,null,null,null,null,{"$f":"ROUND((K350-(I66-I102)),0)","v":0},null,{"$f":"IF(ROUND((K350-K346),0)=0,\"True\",\"False\")","v":"True"}]

{"sheet":"Form 2ASFS","index":20,"n_rows":92,"n_cols":15,"rows_kept":92,"cut":false,"hidden":false,"merged":[[4,4,4,6],[4,8,4,10],[4,12,4,14],[5,4,5,6],[5,8,5,10],[5,12,5,14]]}
[null,"STATUTORY STATEMENT OF PROFIT OR LOSS",null,null,null,null,null,null,null,null,null,null,null,null,{"$f":"HYPERLINK(\"#'Index'!A1\",\"Return to Index\")","v":"Return to Index"}]
[null,{"$f":"'Company Information'!C7","v":"Enter Company Name"}]
[null,"For the year ending",{"$f":" TEXT('Company Information'!C3,\"d mmmm yyyy\")","v":"31 December 2023"},null,null,null,null,null,null,null,null,null,null,null,"FORM 2ASFS"]
[null,{"$f":"\"expressed in\"& IF(CONFIGURATION!$B$12>1,\" ['\"&MID(CONFIGURATION!$B$12,2,LEN(CONFIGURATION!$B$12))&\"s]\",\"\")","v":"expressed in ['000s]"},{"$f":"'Form 1EBS'!$C$4","v":"United States Dollars"}]
[null,null,null,null,"General Business",null,null,null,"Long-Term Business",null,null,null,"General and Long-Term Business"]
[null,"STMT.",null,null,"Unconsolidated",null,null,null,"Unconsolidated",null,null,null,"Consolidated"]
[null,"LINE No.",null,null,{"$f":"'Form 1EBS'!F7","v":"2023-12-31"},null,{"$f":"'Form 1EBS'!H7","v":"2022-12-31"},null,{"$f":"'Form 1EBS'!F7","v":"2023-12-31"},null,{"$f":"'Form 1EBS'!H7","v":"2022-12-31"},null,{"$f":"'Form 1EBS'!F7","v":"2023-12-31"},null,{"$f":"'Form 1EBS'!H7","v":"2022-12-31"}]
[null,null,null,null,{"$f":"CONFIGURATION!$D$12","v":" ('000s)"},null,{"$f":"CONFIGURATION!$D$12","v":" ('000s)"},null,{"$f":"CONFIGURATION!$D$12","v":" ('000s)"},null,{"$f":"CONFIGURATION!$D$12","v":" ('000s)"},null,{"$f":"CONFIGURATION!$D$12","v":" ('000s)"},null,{"$f":"CONFIGURATION!$D$12","v":" ('000s)"}]
[]
[]
[null,"1.","INSURANCE CONTRACT REVENUE",null,{"$f":"Import!E1039","v":0},null,{"$f":"Import!G1039","v":0},null,{"$f":"Import!E1066","v":0},null,{"$f":"Import!G1066","v":0},null,{"$f":"Import!I1039","v":0},null,{"$f":"Import!K1039","v":0}]
[]
[null,"2.","INSURANCE SERVICE EXPENSES"]
[null,"(a)","Incurred Claims and Insurance Contract Expenses",null,{"$f":"Import!E1040","v":0},null,{"$f":"Import!G1040","v":0},null,{"$f":"Import!E1067","v":0},null,{"$f":"Import!G1067","v":0},null,{"$f":"Import!I1040","v":0},null,{"$f":"Import!K1040","v":0}]
[null,"(b)","Insurance Contract Acquisition Cash Flows",null,{"$f":"Import!E1041","v":0},null,{"$f":"Import!G1041","v":0},null,{"$f":"Import!E1068","v":0},null,{"$f":"Import!G1068","v":0},null,{"$f":"Import!I1041","v":0},null,{"$f":"Import!K1041","v":0}]
[null,"(c)","Adjustments to Liabilities for Incurred Claims",null,{"$f":"Import!E1042","v":0},null,{"$f":"Import!G1042","v":0},null,{"$f":"Import!E1069","v":0},null,{"$f":"Import!G1069","v":0},null,{"$f":"Import!I1042","v":0},null,{"$f":"Import!K1042","v":0}]
[null,"(d)","Losses (and reversals of losses) on Onerous Insurance Contracts",null,{"$f":"Import!E1043","v":0},null,{"$f":"Import!G1043","v":0},null,{"$f":"Import!E1070","v":0},null,{"$f":"Import!G1070","v":0},null,{"$f":"Import!I1043","v":0},null,{"$f":"Import!K1043","v":0}]
[null,"(e)","Other Insurance Service Expenses",null,{"$f":"Import!E1044","v":0},null,{"$f":"Import!G1044","v":0},null,{"$f":"Import!E1071","v":0},null,{"$f":"Import!G1071","v":0},null,{"$f":"Import!I1044","v":0},null,{"$f":"Import!K1044","v":0}]
[null,"(f)","TOTAL INSURANCE SERVICE EXPENSES",null,{"$f":"SUM(E14:E18)","v":0},null,{"$f":"SUM(G14:G18)","v":0},null,{"$f":"SUM(I14:I18)","v":0},null,{"$f":"SUM(K14:K18)","v":0},null,{"$f":"SUM(M14:M18)","v":0},null,{"$f":"SUM(O14:O18)","v":0}]
[]
[null,"3.","INSURANCE SERVICE RESULTS BEFORE REINSURANCE",null,{"$f":"E11-E19","v":0},null,{"$f":"G11-G19","v":0},null,{"$f":"I11-I19","v":0},null,{"$f":"K11-K19","v":0},null,{"$f":"M11-M19","v":0},null,{"$f":"O11-O19","v":0}]
[]
[null,"4.","NET EXPENSES FROM REINSURANCE CONTRACT HELD"]
[null,"(a)","    Reinsurance recoveries and other income",null,{"$f":"Import!E1047","v":0},null,{"$f":"Import!G1047","v":0},null,{"$f":"Import!E1074","v":0},null,{"$f":"Import!G1074","v":0},null,{"$f":"Import!I1047","v":0},null,{"$f":"Import!K1047","v":0}]
[null,"(b)","    Reinsurance expenses (allocated reinsurance premiums)",null,{"$f":"Import!E1048","v":0},null,{"$f":"Import!G1048","v":0},null,{"$f":"Import!E1075","v":0},null,{"$f":"Import!G1075","v":0},null,{"$f":"Import!I1048","v":0},null,{"$f":"Import!K1048","v":0}]
[null,"(c)","TOTAL NET EXPENSES FROM REINSURANCE CONTRACTS HELD",null,{"$f":"SUM(E24:E25)","v":0},null,{"$f":"SUM(G24:G25)","v":0},null,{"$f":"SUM(I24:I25)","v":0},null,{"$f":"SUM(K24:K25)","v":0},null,{"$f":"SUM(M24:M25)","v":0},null,{"$f":"SUM(O24:O25)","v":0}]
[]
[null,"5.","NET INSURANCE SERVICE RESULTS",null,{"$f":"E21-E26","v":0},null,{"$f":"G21-G26","v":0},null,{"$f":"I21-I26","v":0},null,{"$f":"K21-K26","v":0},null,{"$f":"M21-M26","v":0},null,{"$f":"O21-O26","v":0}]
[]
[null,"6.","INVESTMENT RETURNS"]
[null,"(a)","Net interest revenue/investment income",null,{"$f":"Import!E1051","v":0},null,{"$f":"Import!G1051","v":0},null,{"$f":"Import!E1078","v":0},null,{"$f":"Import!G1078","v":0},null,{"$f":"Import!I1051","v":0},null,{"$f":"Import!K1051","v":0}]
[null,"(b)","Net realised fair value gains/(losses) through P&L",null,{"$f":"Import!E1052","v":0},null,{"$f":"Import!G1052","v":0},null,{"$f":"Import!E1079","v":0},null,{"$f":"Import!G1079","v":0},null,{"$f":"Import!I1052","v":0},null,{"$f":"Import!K1052","v":0}]
[null,"(c)","Net foreign exchange income",null,{"$f":"Import!E1053","v":0},null,{"$f":"Import!G1053","v":0},null,{"$f":"Import!E1080","v":0},null,{"$f":"Import!G1080","v":0},null,{"$f":"Import!I1053","v":0},null,{"$f":"Import!K1053","v":0}]
[null,"(d)","Credit impairment losses on financial assets",null,{"$f":"Import!E1054","v":0},null,{"$f":"Import!G1054","v":0},null,{"$f":"Import!E1081","v":0},null,{"$f":"Import!G1081","v":0},null,{"$f":"Import!I1054","v":0},null,{"$f":"Import!K1054","v":0}]
[null,"(e)","Other investment returns",null,{"$f":"Import!E1055","v":0},null,{"$f":"Import!G1055","v":0},null,{"$f":"Import!E1082","v":0},null,{"$f":"Import!G1082","v":0},null,{"$f":"Import!I1055","v":0},null,{"$f":"Import!K1055","v":0}]
[null,"(f)","TOTAL INVESTMENT RETURNS",null,{"$f":"E31+E32-E33+E34+E35","v":0},null,{"$f":"G31+G32-G33+G34+G35","v":0},null,{"$f":"I31+I32-I33+I34+I35","v":0},null,{"$f":"K31+K32-K33+K34+K35","v":0},null,{"$f":"M31+M32-M33+M34+M35","v":0},null,{"$f":"O31+O32-O33+O34+O35","v":0}]
[]
[null,"7.","INSURANCE FINANCE RESULTS"]
[null,"(a)","Net finance income and expenses from insurance contracts issued",null,{"$f":"Import!E1057","v":0},null,{"$f":"Import!G1057","v":0},null,{"$f":"Import!E1084","v":0},null,{"$f":"Import!G1084","v":0},null,{"$f":"Import!I1057","v":0},null,{"$f":"Import!K1057","v":0}]
[null,"(b)","Net finance income and expenses from reinsurance contracts held",null,{"$f":"Import!E1058","v":0},null,{"$f":"Import!G1058","v":0},null,{"$f":"Import!E1085","v":0},null,{"$f":"Import!G1085","v":0},null,{"$f":"Import!I1058","v":0},null,{"$f":"Import!K1058","v":0}]
[null,"(c)","TOTAL NET INSURANCE FINANCE RESULTS",null,{"$f":"SUM(E39:E40)","v":0},null,{"$f":"SUM(G39:G40)","v":0},null,{"$f":"SUM(I39:I40)","v":0},null,{"$f":"SUM(K39:K40)","v":0},null,{"$f":"SUM(M39:M40)","v":0},null,{"$f":"SUM(O39:O40)","v":0}]
[]
[null,"8.","NET INSURANCE FINANCIAL AND INVESTMENT RESULTS",null,{"$f":"E36+E41","v":0},null,{"$f":"G36+G41","v":0},null,{"$f":"I36+I41","v":0},null,{"$f":"K36+K41","v":0},null,{"$f":"M36+M41","v":0},null,{"$f":"O36+O41","v":0}]
[]
[null,"9.","COMBINED OTHER INCOME (DEDUCTIONS)",null,{"$f":"Import!E1061","v":0},null,{"$f":"Import!G1061","v":0},null,{"$f":"Import!E1088","v":0},null,{"$f":"Import!G1088","v":0},null,{"$f":"Import!I1061","v":0},null,{"$f":"Import!K1061","v":0}]
[]
[]
[null,"10.","PROFIT BEFORE TAX",null,{"$f":"E43+E28+E45","v":0},null,{"$f":"G43+G28+G45","v":0},null,{"$f":"I43+I28+I45","v":0},null,{"$f":"K43+K28+K45","v":0},null,{"$f":"M43+M28+M45","v":0},null,{"$f":"O43+O28+O45","v":0}]
[]
[null,"11.","INCOME TAX",null,{"$f":"Import!E1063","v":0},null,{"$f":"Import!G1063","v":0},null,{"$f":"Import!E1090","v":0},null,{"$f":"Import!G1090","v":0},null,{"$f":"Import!I1063","v":0},null,{"$f":"Import!K1063","v":0}]
[]
[null,"12.","NET INCOME",null,{"$f":"E48-E50","v":0},null,{"$f":"G48-G50","v":0},null,{"$f":"I48-I50","v":0},null,{"$f":"K48-K50","v":0},null,{"$f":"M48-M50","v":0},null,{"$f":"O48-O50","v":0}]
[]
[]
[null,"Unconsolidated Disclosures for Statement of Profit or Loss"]
[null,"Line 1","Notes to Insurance Revenue"]
[]
[null,null,"Contracts not measured under the PAA"]
[null,null,"Amounts relating to changes in liabilities for remaining coverage"]
[]
[null,null,"Expected incurred claims and other insurance service expenses",null,{"$f":"Import!E1093","v":0}]
[]
[null,null,"CSM recognised for services provided",null,{"$f":"Import!E1094","v":0}]
[]
[null,null,"Change in risk adjustment for non-financial risk for risk expired",null,{"$f":"Import!E1095","v":0}]
[]
[null,null,"Allocation of the portion of premiums that relate to the recovery of insurance acquisition cashflows",null,{"$f":"Import!E1096","v":0}]
[]
[null,null,"Contracts measured under the General Model",null,{"$f":"E63+E65+E67+E61","v":0}]
[]
[null,null,"Contracts measured under the PAA",null,{"$f":"Import!E1098","v":0}]
[]
[null,null,"Total Insurance Revenue",null,{"$f":"E69+E71","v":0}]
[]
[null,"UNCONSOLIDATERD AND CONSOLIDATED SUPPLEMENTARY DISCLOSURES"]
[null,"Premium Disclosures",null,null,{"$f":"E7","v":"2023-12-31"},null,null,null,null,null,null,null,{"$f":"M7","v":"2023-12-31"}]
[null,null,"General Business - Gross premium written in the reporting Year",null,{"$f":"Import!E1100","v":0},null,null,null,null,null,null,null,{"$f":"Import!I1100","v":0}]
[null,null,"General Business - Premiums Ceded in the reporting Year",null,{"$f":"Import!E1101","v":0},null,null,null,null,null,null,null,{"$f":"Import!I1101","v":0}]
[null,null,"General Business - Net premium written in the reporting Year",null,{"$f":"E77-E78","v":0},null,null,null,null,null,null,null,{"$f":"M77-M78","v":0}]
[]
[null,null,"General Business - Net Losses Incurred in the reporting Year",null,{"$f":"Import!E1103","v":0},null,null,null,null,null,null,null,{"$f":"Import!I1103","v":0}]
[]
[null,null,"Long-Term Business - Gross premium written in the reporting Year",null,{"$f":"Import!E1104","v":0},null,null,null,null,null,null,null,{"$f":"Import!I1104","v":0}]
[null,null,"Long-Term Business - Premiums Ceded in the reporting Year",null,{"$f":"Import!E1105","v":0},null,null,null,null,null,null,null,{"$f":"Import!I1105","v":0}]
[null,null,"Long-Term Business - Net premium written in the reporting Year",null,{"$f":"E83-E84","v":0},null,null,null,null,null,null,null,{"$f":"M83-M84","v":0}]
[]
[null,"Operating Expenses Details"]
[]
[null,"(a)","General and administrative ",null,{"$f":"Import!E1107","v":0},null,null,null,null,null,null,null,{"$f":"Import!I1107","v":0}]
[null,"(b)","Personnel costs  ",null,{"$f":"Import!E1108","v":0},null,null,null,null,null,null,null,{"$f":"Import!I1108","v":0}]
[null,"(c)","Other  ",null,{"$f":"Import!E1109","v":0},null,null,null,null,null,null,null,{"$f":"Import!I1109","v":0}]
[null,"(d)","Total combined operating expenses  ",null,{"$f":"SUM(E89:E91)","v":0},null,null,null,null,null,null,null,{"$f":"SUM(M89:M91)","v":0}]

{"sheet":"Form 8ASFS","index":21,"n_rows":67,"n_cols":17,"rows_kept":67,"cut":false,"hidden":false,"merged":[[66,2,66,4],[51,2,51,4],[60,2,60,4],[61,2,61,4],[62,2,62,4],[63,2,63,4],[2,2,2,3],[3,2,3,3],[4,6,4,8],[4,10,4,12],[45,2,45,4],[4,14,4,16],[5,6,5,8],[5,10,5,12],[5,14,5,16],[66,6,66,8],[60,6,60,8],[61,6,61,8],[62,6,62,8],[63,6,63,8]]}
[null,"STATUTORY STATEMENT OF CAPITAL AND SURPLUS",null,null,null,null,null,null,null,null,null,null,null,null,null,null,{"$f":"HYPERLINK(\"#'Index'!A1\",\"Return to Index\")","v":"Return to Index"}]
[null,{"$f":"'Company Information'!C7","v":"Enter Company Name"}]
[null,"For the year ending",{"$f":" TEXT('Company Information'!C3,\"d mmmm yyyy\")","v":"31 December 2023"},null,null,null,null,null,null,null,null,null,null,null,null,null,"FORM 8ASFS"]
[null,{"$f":"\"expressed in\"& IF(CONFIGURATION!$B$12>1,\" ['\"&MID(CONFIGURATION!$B$12,2,LEN(CONFIGURATION!$B$12))&\"s]\",\"\")","v":"expressed in ['000s]"},{"$f":"'Form 1EBS'!C4","v":"United States Dollars"}]
[null,null,null,null,null,null,"General Business",null,null,null,"Long-Term Business",null,null,null,"General and Long-Term Business"]
[null,"STMT.",null,null,null,null,"Unconsolidated",null,null,null,"Unconsolidated",null,null,null,"Consolidated"]
[null,"LINE No.",null,null,null,null,{"$f":"'Form 1EBS'!F7","v":"2023-12-31"},null,{"$f":"'Form 1EBS'!H7","v":"2022-12-31"},null,{"$f":"'Form 1EBS'!F7","v":"2023-12-31"},null,{"$f":"'Form 1EBS'!H7","v":"2022-12-31"},null,{"$f":"'Form 1EBS'!F7","v":"2023-12-31"},null,{"$f":"'Form 1EBS'!H7","v":"2022-12-31"}]
[null,null,null,null,null,null,{"$f":"CONFIGURATION!$D$12","v":" ('000s)"},null,{"$f":"CONFIGURATION!$D$12","v":" ('000s)"},null,{"$f":"CONFIGURATION!$D$12","v":" ('000s)"},null,{"$f":"CONFIGURATION!$D$12","v":" ('000s)"},null,{"$f":"CONFIGURATION!$D$12","v":" ('000s)"},null,{"$f":"CONFIGURATION!$D$12","v":" ('000s)"}]
[null,"1.","STATUTORY CAPITAL"]
[]
[null,"(a) ","Capital stock",null,null,null,{"$f":"Import!E1113","v":0},null,{"$f":"Import!G1113","v":0},null,{"$f":"Import!E1128","v":0},null,{"$f":"Import!G1128","v":0}]
[null,null,"(i) Common shares",null,null,null,null,null,null,null,null,null,null,null,{"$f":"Import!I1114","v":0},null,{"$f":"Import!K1114","v":0}]
[null,null,"authorised",null,"shares of par"]
[null,null,"value",null,"each issued and"]
[null,null,"fully paid",null,"shares"]
[]
[null,null,"(ii) Preferred shares",null,null,null,null,null,null,null,null,null,null,null,{"$f":"Import!I1115","v":0},null,{"$f":"Import!K1115","v":0}]
[null,null,"authorised",null,"shares of par"]
[null,null,"value",null,"each issued and"]
[null,null,"fully paid",null,"shares"]
[null,null,"aggregate liquidation value for —"]
[null,null,{"$f":"G7","v":"2023-12-31"}]
[null,null,{"$f":"I7","v":"2022-12-31"}]
[]
[null,null,"(iii) Treasury shares",null,null,null,null,null,null,null,null,null,null,null,{"$f":"Import!I1116","v":0},null,{"$f":"Import!K1116","v":0}]
[null,null,"repurchased",null,"shares of par"]
[null,null,"value",null,"each issued"]
[]
[null,"(b)","Contributed surplus",null,null,null,{"$f":"Import!E1117","v":0},null,{"$f":"Import!G1117","v":0},null,{"$f":"Import!E1129","v":0},null,{"$f":"Import!G1129","v":0},null,{"$f":"Import!I1117","v":0},null,{"$f":"Import!K1117","v":0}]
[]
[null,"(c) ","Any other fixed capital"]
[null,null,"(i) Hybrid capital instruments",null,null,null,{"$f":"Import!E1118","v":0},null,{"$f":"Import!G1118","v":0},null,{"$f":"Import!E1130","v":0},null,{"$f":"Import!G1130","v":0},null,{"$f":"Import!I1118","v":0},null,{"$f":"Import!K1118","v":0}]
[null,null,"(ii) Guarantees and others",null,null,null,{"$f":"Import!E1119","v":0},null,{"$f":"Import!G1119","v":0},null,{"$f":"Import!E1131","v":0},null,{"$f":"Import!G1131","v":0},null,{"$f":"Import!I1119","v":0},null,{"$f":"Import!K1119","v":0}]
[null,null,"(iii) Total any other fixed capital",null,null,null,{"$f":"SUM(G32:G33)","v":0},null,{"$f":"SUM(I32:I33)","v":0},null,{"$f":"SUM(K32:K33)","v":0},null,{"$f":"SUM(M32:M33)","v":0},null,{"$f":"SUM(O32:O33)","v":0},null,{"$f":"SUM(Q32:Q33)","v":0}]
[]
[null,"(d)","Total Statutory Capital",null,null,null,{"$f":"G11+G29+G34","v":0},null,{"$f":"I11+I29+I34","v":0},null,{"$f":"K11+K29+K34","v":0},null,{"$f":"M11+M29+M34","v":0},null,{"$f":"O12+O17-O25+O29+O34","v":0},null,{"$f":"Q12+Q17-Q25+Q29+Q34","v":0}]
[]
[null,"2.","STATUTORY SURPLUS:"]
[]
[null,"(a) ","Statutory Surplus - Beginning of Year",null,null,null,{"$f":"Import!E1120","v":0},null,{"$f":"Import!G1120","v":0},null,{"$f":"Import!E1132","v":0},null,{"$f":"Import!G1132","v":0},null,{"$f":"Import!I1120","v":0},null,{"$f":"Import!K1120","v":0}]
[]
[null,"(b)","Add: Income for Year",null,null,null,{"$f":"'Form 2ASFS'!E52","v":0},null,{"$f":"'Form 2ASFS'!G52","v":0},null,{"$f":"'Form 2ASFS'!I52","v":0},null,{"$f":"'Form 2ASFS'!K52","v":0},null,{"$f":"'Form 2ASFS'!M52","v":0},null,{"$f":"'Form 2ASFS'!O52","v":0}]
[]
[null,"(c) ","Less: Dividends paid and payable",null,null,null,{"$f":"Import!E1121","v":0},null,{"$f":"Import!G1121","v":0},null,{"$f":"Import!E1133","v":0},null,{"$f":"Import!G1133","v":0},null,{"$f":"Import!I1121","v":0},null,{"$f":"Import!K1121","v":0}]
[]
[null,"(d)","Add (Deduct) change in unrealized appreciation (depreciation) of investments",null,null,null,{"$f":"Import!E1122","v":0},null,{"$f":"Import!G1122","v":0},null,{"$f":"Import!E1134","v":0},null,{"$f":"Import!G1134","v":0},null,{"$f":"Import!I1122","v":0},null,{"$f":"Import!K1122","v":0}]
[]
[null,"(e)","Add (Deduct) change in non-admitted assets",null,null,null,{"$f":"Import!E1123","v":0},null,{"$f":"Import!G1123","v":0},null,{"$f":"Import!E1135","v":0},null,{"$f":"Import!G1135","v":0},null,{"$f":"Import!I1123","v":0},null,{"$f":"Import!K1123","v":0}]
[]
[null,"(f)","Add (Deduct) change in appraisal of real estate",null,null,null,{"$f":"Import!E1124","v":0},null,{"$f":"Import!G1124","v":0},null,{"$f":"Import!E1136","v":0},null,{"$f":"Import!G1136","v":0},null,{"$f":"Import!I1124","v":0},null,{"$f":"Import!K1124","v":0}]
[]
[null,"(g)","Add (Deduct) change in any other statutory capital",null,null,null,{"$f":"Import!E1125","v":0},null,{"$f":"Import!G1125","v":0},null,{"$f":"Import!E1137","v":0},null,{"$f":"Import!G1137","v":0},null,{"$f":"Import!I1125","v":0},null,{"$f":"Import!K1125","v":0}]
[]
[null,"(h)","Statutory Surplus - End of Year",null,null,null,{"$f":"G40+G42+G44+G46+G48+G50+G52","v":0},null,{"$f":"I40+I42+I44+I46+I48+I50+I52","v":0},null,{"$f":"K40+K42+K44+K46+K48+K50+K52","v":0},null,{"$f":"M40+M42+M44+M46+M48+M50+M52","v":0},null,{"$f":"O40+O42+O44+O46+O48+O50+O52","v":0},null,{"$f":"Q40+Q42+Q44+Q46+Q48+Q50+Q52","v":0}]
[]
[null,"3.","MINORITY INTEREST",null,null,null,{"$f":"Import!E1126","v":0},null,{"$f":"Import!G1126","v":0},null,{"$f":"Import!E1138","v":0},null,{"$f":"Import!G1138","v":0},null,{"$f":"Import!I1126","v":0},null,{"$f":"Import!K1126","v":0}]
[]
[null,"4.","TOTAL STATUTORY CAPITAL AND SURPLUS",null,null,null,{"$f":"G36+G54+G56","v":0},null,{"$f":"I36+I54+I56","v":0},null,{"$f":"K36+K54+K56","v":0},null,{"$f":"M36+M54+M56","v":0},null,{"$f":"O36+O54+O56","v":0},null,{"$f":"Q36+Q54+Q56","v":0}]
[]
[null,null,null,null,null,null,"Change in other statutory capital and surplus"]
[null,"Line 2g","Change in any other statutory capital - Change from IFRS 4 to 17",null,null,null,{"$f":"Import!E1140","v":0},null,null,null,{"$f":"Import!E1144","v":0},null,null,null,{"$f":"Import!I1144","v":0}]
[null,"Line 2g","Change in any other statutory capital - 1 Other",null,null,null,{"$f":"Import!E1141","v":0},null,null,null,{"$f":"Import!E1145","v":0},null,null,null,{"$f":"Import!I1145","v":0}]
[null,"Line 2g","Change in any other statutory capital - 2 Other",null,null,null,{"$f":"Import!E1142","v":0},null,null,null,{"$f":"Import!E1146","v":0},null,null,null,{"$f":"Import!I1146","v":0}]
[null,"Line 2g","Change in any other statutory capital - 3 Other",null,null,null,{"$f":"Import!E1143","v":0},null,null,null,{"$f":"Import!E1147","v":0},null,null,null,{"$f":"Import!I1147","v":0}]
[null,null,"Total",null,null,null,null,null,null,null,{"$f":"SUM(K61:K64)","v":0},null,{"$f":"IF(M67=0,\"True\",\"False\")","v":"True"},null,{"$f":"SUM(O61:O64)","v":0},null,{"$f":"IF(Q67=0,\"True\",\"False\")","v":"True"}]
[null,null,null,null,null,null,null,null,null,null,null,null,{"$f":"IF(ROUND((M8-M63),0)=0,\"TRUE\",\"FALSE\")","v":{"$error":"#VALUE!"}},null,null,null,{"$f":"IF(ROUND((Q8-Q63),0)=0,\"TRUE\",\"FALSE\")","v":{"$error":"#VALUE!"}}]
[null,"Line 4","Total Statutory Capital and Surplus",null,null,null,{"$f":"HYPERLINK(\"#'Schedule V(g)'!A1\",\"Refer to Schedule V(g)\")","v":"Refer to Schedule V(g)"},null,null,null,null,null,{"$f":"ROUND((G52+K52)-K65,0)","v":0},null,null,null,{"$f":"ROUND((O52-O65),0)","v":0}]

{"sheet":"Form 1EBS","index":22,"n_rows":238,"n_cols":8,"rows_kept":238,"cut":false,"hidden":false,"merged":[[227,2,227,3],[222,2,222,3],[3,2,3,3]]}
[null,"ECONOMIC BALANCE SHEET",null,null,null,null,null,{"$f":"HYPERLINK(\"#'Index'!A1\",\"Return to Index\")","v":"Return to Index"}]
[null,{"$f":"'Company Information'!C7","v":"Enter Company Name"}]
[null,"As at",{"$f":"'Company Information'!C3","v":"2023-12-31"},null,null,null,null,"FORM 1EBS"]
[null,{"$f":"\"expressed in\"& IF(CONFIGURATION!$B$12>1,\" ['\"&MID(CONFIGURATION!$B$12,2,LEN(CONFIGURATION!$B$12))&\"s]\",\"\")","v":"expressed in ['000s]"},{"$f":"'Form 1SFS'!C5","v":"United States Dollars"}]
[]
[null,"STMT."]
[null,"LINE No.",null,null,null,{"$f":"C3","v":"2023-12-31"},null,{"$f":"DATE(YEAR(C3) -1, MONTH(C3), DAY(C3))","v":"2022-12-31"}]
[null,null,null,null,null,{"$f":"CONFIGURATION!$D$12","v":" ('000s)"},null,{"$f":"CONFIGURATION!$D$12","v":" ('000s)"}]
[]
[null,"1.","CASH AND CASH EQUIVALENTS",null,null,{"$f":"Import!M102","v":0},null,{"$f":"Import!O102","v":0}]
[]
[null,"2.","QUOTED INVESTMENTS:"]
[null,"(b)","Total Bonds and Debentures",null,null,{"$f":"Import!M105","v":0},null,{"$f":"Import!O105","v":0}]
[null,"(c) ","Equities "]
[null,null,"  i.   Common stocks",null,null,{"$f":"Import!M106","v":0},null,{"$f":"Import!O106","v":0}]
[null,null,"  ii. Preferred stocks",null,null,{"$f":"Import!M107","v":0},null,{"$f":"Import!O107","v":0}]
[null,null,"  iii. Mutual Funds",null,null,{"$f":"Import!M108","v":0},null,{"$f":"Import!O108","v":0}]
[null,"(d) ","Total equity investments",null,null,{"$f":"SUM(F15:F17)","v":0},null,{"$f":"SUM(H15:H17)","v":0}]
[null,"(e)","Other quoted investments",null,null,{"$f":"Import!M109","v":0},null,{"$f":"Import!O109","v":0}]
[null,"(f)","Total quoted investments",null,null,{"$f":"F13+F18+F19","v":0},null,{"$f":"H13+H18+H19","v":0}]
[]
[null,"3.","UNQUOTED INVESTMENTS:"]
[null,"(b)","Total Bonds and Debentures",null,null,{"$f":"Import!M112","v":0},null,{"$f":"Import!O112","v":0}]
[null,"(c) ","Equities "]
[null,null,"  i.   Common stocks",null,null,{"$f":"Import!M113","v":0},null,{"$f":"Import!O113","v":0}]
[null,null,"  ii. Preferred stocks",null,null,{"$f":"Import!M114","v":0},null,{"$f":"Import!O114","v":0}]
[null,null,"  iii . Mutual Funds",null,null,{"$f":"Import!M115","v":0},null,{"$f":"Import!O115","v":0}]
[null,"(d) ","Total equity investments",null,null,{"$f":"SUM(F25:F27)","v":0},null,{"$f":"SUM(H25:H27)","v":0}]
[null,"(e) ","Other unquoted investments",null,null,{"$f":"Import!M116","v":0},null,{"$f":"Import!O116","v":0}]
[null,"(f) ","Total unquoted investments",null,null,{"$f":"F23+F28+F29","v":0},null,{"$f":"H23+H28+H29","v":0}]
[]
[null,"4.","INVESTMENTS IN AND ADVANCES TO AFFILIATES (EQUITY METHOD):"]
[null,"(a)","Unregulated entities that conduct ancillary services",null,null,{"$f":"Import!M117","v":0},null,{"$f":"Import!O117","v":0}]
[null,"(b)","Unregulated non-financial operating entities",null,null,{"$f":"Import!M118","v":0},null,{"$f":"Import!O118","v":0}]
[null,"(c)","Unregulated financial operating entities",null,null,{"$f":"Import!M119","v":0},null,{"$f":"Import!O119","v":0}]
[null,"(d)","Regulated non-insurance financial operating entities",null,null,{"$f":"Import!M120","v":0},null,{"$f":"Import!O120","v":0}]
[null,"(e)","Regulated insurance financial operating entities",null,null,{"$f":"Import!M121","v":0},null,{"$f":"Import!O121","v":0}]
[null,"(f)","Total investments in affiliates (equity method)",null,null,{"$f":"SUM(F33:F37)","v":0},null,{"$f":"SUM(H33:H37)","v":0}]
[null,"(g)","Advances to affiliates",null,null,{"$f":"Import!M122","v":0},null,{"$f":"Import!O122","v":0}]
[null,"(h)","Total investments in and advances to affiliates (equity method)",null,null,{"$f":"F38+F39","v":0},null,{"$f":"H38+H39","v":0}]
[]
[null,"5.","INVESTMENTS IN MORTGAGE LOANS ON REAL ESTATE:"]
[null,"(a)","First liens",null,null,{"$f":"Import!M123","v":0},null,{"$f":"Import!O123","v":0}]
[null,"(b)","Other than first liens ",null,null,{"$f":"Import!M124","v":0},null,{"$f":"Import!O124","v":0}]
[null,"(c) ","Total investments in mortgage loans on real estate",null,null,{"$f":"SUM(F43:F44)","v":0},null,{"$f":"SUM(H43:H44)","v":0}]
[]
[null,"7.","REAL ESTATE:"]
[null,"(a)","Occupied by the company (less encumbrances)",null,null,{"$f":"Import!M126","v":0},null,{"$f":"Import!O126","v":0}]
[null,"(b)","Other properties (less encumbrances)",null,null,{"$f":"Import!M127","v":0},null,{"$f":"Import!O127","v":0}]
[null,"(c) ","Total real estate",null,null,{"$f":"SUM(F48:F49)","v":0},null,{"$f":"SUM(H48:H49)","v":0}]
[]
[null,"8.","COLLATERAL LOANS",null,null,{"$f":"Import!M128","v":0},null,{"$f":"Import!O128","v":0}]
[]
[null,"9.","INVESTMENT INCOME DUE AND ACCRUED",null,null,{"$f":"Import!M129","v":0},null,{"$f":"Import!O129","v":0}]
[]
[null,"10.","ACCOUNTS AND PREMIUMS RECEIVABLE:"]
[null,"(a)","In course of collection",null,null,{"$f":"Import!M130","v":0},null,{"$f":"Import!O130","v":0}]
[null,"(c) ","Receivables from retrocessional contracts",null,null,{"$f":"Import!M132","v":0},null,{"$f":"Import!O132","v":0}]
[null,"(d) ","Total accounts and premiums receivable",null,null,{"$f":"SUM(F57:F58)","v":0},null,{"$f":"SUM(H57:H58)","v":0}]
[]
[null,"11.","REINSURANCE BALANCES RECEIVABLE:"]
[null,"(a)","Foreign affiliates",null,null,{"$f":"Import!M133","v":0},null,{"$f":"Import!O133","v":0}]
[null,"(b)","Domestic affiliates",null,null,{"$f":"Import!M134","v":0},null,{"$f":"Import!O134","v":0}]
[null,"(c) ","Pools & associations",null,null,{"$f":"Import!M135","v":0},null,{"$f":"Import!O135","v":0}]
[null,"(d) ","All other insurers",null,null,{"$f":"Import!M136","v":0},null,{"$f":"Import!O136","v":0}]
[null,"(e)","Total reinsurance balances receivable",null,null,{"$f":"SUM(F62:F65)","v":0},null,{"$f":"SUM(H62:H65)","v":0}]
[]
[null,"12.","FUNDS HELD BY CEDING REINSURERS:"]
[null,"(a)","Affiliated",null,null,{"$f":"Import!M137","v":0},null,{"$f":"Import!O137","v":0}]
[null,"(b)","Non-affiliated",null,null,{"$f":"Import!M138","v":0},null,{"$f":"Import!O138","v":0}]
[null,"(c)","Total funds held by ceding reinsurers",null,null,{"$f":"SUM(F69:F70)","v":0},null,{"$f":"SUM(H69:H70)","v":0}]
[]
[null,"13.","SUNDRY ASSETS:"]
[null,"(a)","Derivative instruments",null,null,{"$f":"Import!M140","v":0},null,{"$f":"Import!O140","v":0}]
[null,"(d)","Segregated accounts companies",null,null,{"$f":"Import!M143","v":0},null,{"$f":"Import!O143","v":0}]
[null,"(e)","Deposit assets",null,null,{"$f":"Import!M144","v":0},null,{"$f":"Import!O144","v":0}]
[null,"(f)","Balances receivable on sale of investments",null,null,{"$f":"Import!M146","v":0},null,{"$f":"Import!O146","v":0}]
[null,"(g)","Intangible assets",null,null,{"$f":"Import!M147","v":0},null,{"$f":"Import!O147","v":0}]
[null,"(h)","Deferred tax Assets",null,null,{"$f":"Import!M148","v":0},null,{"$f":"Import!O148","v":0}]
[null,"(i)","Pension Benefit Surplus",null,null,{"$f":"Import!M149","v":0},null,{"$f":"Import!O149","v":0}]
[null,"(j)",null,null,null,{"$f":"Import!M150","v":0},null,{"$f":"Import!O150","v":0}]
[null,"(k)","Total sundry assets",null,null,{"$f":"SUM(F74:F81)","v":0},null,{"$f":"SUM(H74:H81)","v":0}]
[]
[null,"14.","LETTERS OF CREDIT, GUARANTEES AND OTHER INSTRUMENTS:"]
[null,"(a)","Letters of credit ",null,null,{"$f":"Import!M153","v":0},null,{"$f":"Import!O153","v":0}]
[null,"(b)","Guarantees",null,null,{"$f":"Import!M154","v":0},null,{"$f":"Import!O154","v":0}]
[null,"(c) ","Other instruments",null,null,{"$f":"Import!M155","v":0},null,{"$f":"Import!O155","v":0}]
[null,"(d)","Total letters of credit, guarantees and other instruments",null,null,{"$f":"SUM(F85:F87)","v":0},null,{"$f":"SUM(H85:H87)","v":0}]
[]
[null,"15.","TOTAL",null,null,{"$f":"F10+F20+F30+F40+F45+F50+F52+F54+F59+F66+F71+F82+F88","v":0},null,{"$f":"H10+H20+H30+H40+H45+H50+H52+H54+H59+H66+H71+H82+H88","v":0}]
[]
[null,null,"GENERAL BUSINESS INSURANCE TECHNICAL PROVISIONS, OTHER LIABILITIES "]
[null,null,"AND STATUTORY CAPITAL AND SURPLUS"]
[]
[null,null,"GENERAL BUSINESS INSURANCE TECHNICAL PROVISIONS"]
[]
[null,"16.","BEST ESTIMATE PREMIUM PROVISIONS"]
[null,"(a)","Gross premium provisions",null,null,{"$f":"Import!M157","v":0},null,{"$f":"Import!O157","v":0}]
[null,"(b)","Less : Reinsurance recoverable balance"]
[null,null,"  i.   Foreign affiliates",null,null,{"$f":"Import!M158","v":0},null,{"$f":"Import!O158","v":0}]
[null,null,"  ii.  Domestic affiliates",null,null,{"$f":"Import!M159","v":0},null,{"$f":"Import!O159","v":0}]
[null,null,"  iii. Pools & associations",null,null,{"$f":"Import!M160","v":0},null,{"$f":"Import!O160","v":0}]
[null,null,"  iv.  All other insurers",null,null,{"$f":"Import!M161","v":0},null,{"$f":"Import!O161","v":0}]
[null,"(c) ","Total reinsurance recoverable balance",null,null,{"$f":"SUM(F100:F103)","v":0},null,{"$f":"SUM(H100:H103)","v":0}]
[null,"(d) ","Net premium provisions",null,null,{"$f":"F98-F104","v":0},null,{"$f":"H98-H104","v":0}]
[]
[null,"17.","BEST ESTIMATE LOSS AND LOSS EXPENSE PROVISIONS:"]
[null,"(a)","Gross loss and loss expense provisions",null,null,{"$f":"Import!M162","v":0},null,{"$f":"Import!O162","v":0}]
[null,"(b)","Less : Reinsurance recoverable balance"]
[null,null,"  i.   Foreign affiliates",null,null,{"$f":"Import!M163","v":0},null,{"$f":"Import!O163","v":0}]
[null,null,"  ii.  Domestic affiliates",null,null,{"$f":"Import!M164","v":0},null,{"$f":"Import!O164","v":0}]
[null,null,"  iii. Pools & associations",null,null,{"$f":"Import!M165","v":0},null,{"$f":"Import!O165","v":0}]
[null,null,"  iv.  All other insurers",null,null,{"$f":"Import!M166","v":0},null,{"$f":"Import!O166","v":0}]
[null,"(c) ","Total reinsurance recoverable balance",null,null,{"$f":"SUM(F110:F113)","v":0},null,{"$f":"SUM(H110:H113)","v":0}]
[null,"(d) ","Net loss and loss expense provisions",null,null,{"$f":"F108-F114","v":0},null,{"$f":"H108-H114","v":0}]
[]
[null,"18.","RISK MARGIN – GENERAL INSURANCE BUSINESS",null,null,{"$f":"Import!M167","v":0},null,{"$f":"Import!O167","v":0}]
[]
[null,"19.","TOTAL GENERAL BUSINESS INSURANCE TECHNICAL PROVISIONS",null,null,{"$f":"F105+F115+F117","v":0},null,{"$f":"H105+H115+H117","v":0}]
[]
[null,null,"OTHER LIABILITIES"]
[]
[null,"28.","INSURANCE AND REINSURANCE BALANCES PAYABLE",null,null,{"$f":"Import!M186","v":0},null,{"$f":"Import!O186","v":0}]
[]
[null,"29.","COMMISSIONS, EXPENSES, FEES AND TAXES PAYABLE",null,null,{"$f":"Import!M187","v":0},null,{"$f":"Import!O187","v":0}]
[]
[null,"30.","LOANS AND NOTES PAYABLE",null,null,{"$f":"Import!M188","v":0},null,{"$f":"Import!O188","v":0}]
[]
[null,"31.","TAX LIABILITIES"]
[null,"(a)","Income taxes payable",null,null,{"$f":"Import!M189","v":0},null,{"$f":"Import!O189","v":0}]
[null,"(b)","Deferred income taxes",null,null,{"$f":"Import!M190","v":0},null,{"$f":"Import!O190","v":0}]
[]
[null,"32.","AMOUNTS DUE TO AFFILIATES",null,null,{"$f":"Import!M191","v":0},null,{"$f":"Import!O191","v":0}]
[]
[null,"33.","ACCOUNTS PAYABLE AND ACCRUED LIABILITIES",null,null,{"$f":"Import!M192","v":0},null,{"$f":"Import!O192","v":0}]
[]
[null,"34.","FUNDS HELD UNDER REINSURANCE CONTRACTS:"]
[null,"(a)","Affiliated",null,null,{"$f":"Import!M193","v":0},null,{"$f":"Import!O193","v":0}]
[null,"(b)","Non-affiliated",null,null,{"$f":"Import!M194","v":0},null,{"$f":"Import!O194","v":0}]
[null,"(c)","Total funds held under reinsurance contracts",null,null,{"$f":"SUM(F138:F139)","v":0},null,{"$f":"SUM(H138:H139)","v":0}]
[]
[null,"35.","DIVIDENDS PAYABLE",null,null,{"$f":"Import!M196","v":0},null,{"$f":"Import!O196","v":0}]
[]
[null,"36.","SUNDRY LIABILITIES:"]
[null,"(a)","Derivative instruments – held for hedging purposes",null,null,{"$f":"Import!M197","v":0},null,{"$f":"Import!O197","v":0}]
[null,"(b)","Derivative instruments – not held for hedging purposes",null,null,{"$f":"Import!M198","v":0},null,{"$f":"Import!O198","v":0}]
[null,"(e)","Segregated accounts companies",null,null,{"$f":"Import!M199","v":0},null,{"$f":"Import!O199","v":0}]
[null,"(f)","Deposit liabilities",null,null,{"$f":"Import!M200","v":0},null,{"$f":"Import!O200","v":0}]
[null,"(g)","Pension benefit obligations",null,null,{"$f":"Import!M201","v":0},null,{"$f":"Import!O201","v":0}]
[null,"(h)","Balances payable for purchase of investments",null,null,{"$f":"Import!M202","v":0},null,{"$f":"Import!O202","v":0}]
[null,"(i)",null,null,null,{"$f":"Import!M203","v":0},null,{"$f":"Import!O203","v":0}]
[null,"(j)","Total sundry liabilities",null,null,{"$f":"SUM(F145:F151)","v":0},null,{"$f":"SUM(H145:H151)","v":0}]
[]
[null,"37.","LETTERS OF CREDIT, GUARANTEES AND OTHER INSTRUMENTS:"]
[null,"(a)","Letters of credit ",null,null,{"$f":"Import!M206","v":0},null,{"$f":"Import!O206","v":0}]
[null,"(b)","Guarantees",null,null,{"$f":"Import!M207","v":0},null,{"$f":"Import!O207","v":0}]
[null,"(c) ","Other instruments",null,null,{"$f":"Import!M208","v":0},null,{"$f":"Import!O208","v":0}]
[null,"(d)","Total letters of credit, guarantees and other instruments",null,null,{"$f":"SUM(F155:F157)","v":0},null,{"$f":"SUM(H155:H157)","v":0}]
[]
[]
[null,"38.","TOTAL OTHER LIABILITIES",null,null,{"$f":"F123+F125+F127+F130+F131+F133+F135+F140+F142+F152+F158","v":0},null,{"$f":"H123+H125+H127+H130+H131+H133+H135+H140+H142+H152+H158","v":0}]
[]
[null,"39.","TOTAL INSURANCE TECHNICAL PROVISIONS AND OTHER LIABILITIES",null,null,{"$f":"F119+F161","v":0},null,{"$f":"H119+H161","v":0}]
[]
[null,null,"STATUTORY ECONOMIC CAPITAL AND SURPLUS"]
[]
[null,"40.","TOTAL STATUTORY ECONOMIC CAPITAL AND SURPLUS ",null,null,{"$f":"Import!M209","v":0},null,{"$f":"Import!O209","v":0}]
[]
[null,"41.","TOTAL",null,null,{"$f":"F163+F167","v":0},null,{"$f":"H163+H167","v":0}]
[]
[null,null,null,null,null,{"$f":"IF(F172=\"TRUE\",HYPERLINK(\"#'Form 1EBS'!F90\",\"TRUE\"),HYPERLINK(\"#'Form 1EBS'!F90\",\"FALSE\"))","v":"TRUE"},null,{"$f":"IF(H172=\"TRUE\",HYPERLINK(\"#'Form 1EBS'!H90\",\"TRUE\"),HYPERLINK(\"#'Form 1EBS'!H90\",\"FALSE\"))","v":"TRUE"}]
[null,null,null,null,null,{"$f":"IF(ROUND((F90-F169),0)=0,\"TRUE\",\"FALSE\")","v":"TRUE"},null,{"$f":"IF(ROUND((H90-H169),0)=0,\"TRUE\",\"FALSE\")","v":"TRUE"}]
[null,null,null,null,null,{"$f":"ROUND(F90-F169,0)","v":0},null,{"$f":"ROUND(H90-H169,0)","v":0}]
[]
[null,null,null,null,null,{"$f":"IF(F171=\"False\",\"Line 15 does not equal Line 41\",\"\")","v":""},null,{"$f":"IF(H171=\"False\",\"Line 15 does not equal Line 41\",\"\")","v":""}]
[]
[null,"Notes to Form 1EBS"]
[null,null,null,"Additional Details"]
[null,"Line 10 ","Collateralized balances",null,null,{"$f":"Import!M289","v":0}]
[null,"Line 11(e)","Collateralized balances",null,null,{"$f":"Import!M290","v":0}]
[null,"Line 17(c)-(ii)","Collateral placed in favor of the insurer ",{"$f":"HYPERLINK(\"#'Attachments'!G225\",\"Attach file\")","v":"Attach file"},null,{"$f":"Import!M291","v":0}]
[null,"Line 13(j)","Any other assets",{"$f":"HYPERLINK(\"#'Attachments'!G225\",\"Attach file\")","v":"Attach file"},null,{"$f":"Import!M292","v":0}]
[null,"Line 36(i)","Other sundry liabilities",{"$f":"HYPERLINK(\"#'Attachments'!G225\",\"Attach file\")","v":"Attach file"},null,{"$f":"Import!M364","v":0}]
[]
[null,"Line 15","Encumbered assets for policyholder obligations"]
[]
[null,null,"Asset"]
[null,null,"                Cash and cash equivalents",null,null,{"$f":"Import!M293","v":0},null,{"$f":"Import!O293","v":0}]
[null,null,"                Total quoted investments",null,null,{"$f":"Import!M294","v":0},null,{"$f":"Import!O294","v":0}]
[null,null,"                Total unquoted investments",null,null,{"$f":"Import!M295","v":0},null,{"$f":"Import!O295","v":0}]
[null,null,"                Funds held by ceding reinsurers",null,null,{"$f":"F71","v":0},null,{"$f":"H71","v":0}]
[null,null,"                Other assets",null,null,{"$f":"Import!M297","v":0},null,{"$f":"Import!O297","v":0}]
[null,null,"                Total encumbered assets",null,null,{"$f":"SUM(F188:F192)","v":0},null,{"$f":"SUM(H188:H192)","v":0}]
[]
[null,"Line 15","Encumbered assets not securing policyholder obligations"]
[]
[null,null,"Asset","Purpose of Encumbrance"]
[null,null,"                Cash and cash equivalents",null,null,{"$f":"Import!M299","v":0},null,{"$f":"Import!O299","v":0}]
[null,null,"                Total quoted investments",null,null,{"$f":"Import!M300","v":0},null,{"$f":"Import!O300","v":0}]
[null,null,"                Total unquoted investments",null,null,{"$f":"Import!M301","v":0},null,{"$f":"Import!O301","v":0}]
[null,null,"                Other assets",null,null,{"$f":"Import!M302","v":0},null,{"$f":"Import!O302","v":0}]
[null,null,"                Total encumbered assets",null,null,{"$f":"SUM(F198:F201)","v":0},null,{"$f":"SUM(H198:H201)","v":0}]
[]
[null,"Line 13(e) ","Details of business treated under deposit accounting techniques as a asset",{"$f":"IF('Company Information'!$F$11=\"Class 3A\",HYPERLINK(\"#'Attachments'!G115\",\"Attach file\"),HYPERLINK(\"#'Attachments'!G165\",\"Attach file\"))","v":"Attach file"},null,{"$f":"Import!M365","v":0}]
[null,"Line 36(f)","Details of business treated under deposit accounting techniques as a liability",{"$f":"IF('Company Information'!$F$11=\"Class 3A\",HYPERLINK(\"#'Attachments'!G115\",\"Attach file\"),HYPERLINK(\"#'Attachments'!G165\",\"Attach file\"))","v":"Attach file"},null,{"$f":"Import!M304","v":0}]
[null,"Line 37","Details of the basis used to derive the amounts disclosed",{"$f":"IF('Company Information'!$F$11=\"Class 3A\",HYPERLINK(\"#'Attachments'!G115\",\"Attach file\"),HYPERLINK(\"#'Attachments'!G165\",\"Attach file\"))","v":"Attach file"},null,{"$f":"Import!M305","v":0}]
[null,"Line 40","Reconciliation between Line 40 of 1EBS and Line 40 of Form 1SFS",{"$f":"HYPERLINK(\"#'Schedule V(g)'!A1\",\"Refer to Schedule V(g)\")","v":"Refer to Schedule V(g)"},null,{"$f":"Import!M366","v":0}]
[]
[null,null,"General Business Provisions Additional Disclosures","Additional Details"]
[null,"Line 16(c) ","Adjustment for counterparty default ",{"$f":"IF('Company Information'!$F$11=\"Class 3A\",HYPERLINK(\"#'Attachments'!G125\",\"Attach file With Details of Line Of Business\"),HYPERLINK(\"#'Attachments'!G175\",\"Attach file With Details of Line Of Business\"))","v":"Attach file With Details of Line Of Business"},null,{"$f":"Import!M367","v":0}]
[null,"Line 17(c)-(i)","Adjustment for counterparty default ",{"$f":"IF('Company Information'!$F$11=\"Class 3A\",HYPERLINK(\"#'Attachments'!G125\",\"Attach file\"),HYPERLINK(\"#'Attachments'!G175\",\"Attach file\"))","v":"Attach file"},null,{"$f":"Import!M368","v":0}]
[null,"Line 16(d)-(i)","Premium included as Bound But Not Incepted","See and complete Sch III (EBS)",null,{"$f":"Import!M369","v":0},null,{"$f":"'Schedule III (EBS)'!J34","v":0}]
[null,"Line 16(d)-(ii)","Best estimate Premium included as Bound But Not Incepted","See and complete Sch III (EBS)",null,{"$f":"Import!M370","v":0},null,{"$f":"'Schedule III (EBS)'!K34","v":0}]
[null,"Line 17(d)-(i)","Loss and loss expense provision discount","See and complete Sch III (EBS)",null,{"$f":"Import!M371","v":0},null,{"$f":"'Schedule III (EBS)'!L34","v":0}]
[null,"Line 17(d)-(ii)","Scenario based approach loss and loss expense provision ",{"$f":"IF('Company Information'!$F$11=\"Class 3A\",HYPERLINK(\"#'Attachments'!G125\",\"Attach file With Details\"),HYPERLINK(\"#'Attachments'!G175\",\"Attach file With Details\"))","v":"Attach file With Details"},null,{"$f":"Import!M372","v":0}]
[]
[null,null,"General Business Reserves:"]
[null,"Line 17","Net best estimate loss and loss expense provisions at start of year",null,null,{"$f":"Import!M373","v":0},null,{"$f":"Import!O373","v":0}]
[]
[null,null,"Unwind of discount (start year discount curve)",null,null,{"$f":"Import!M374","v":0},null,{"$f":"Import!O374","v":0}]
[null,null,"Net losses and loss expenses paid or payable related to prior years",null,null,{"$f":"Import!M375","v":0},null,{"$f":"Import!O375","v":0}]
[null,null,"Net losses incurred and net loss expenses incurred related to prior years",null,null,{"$f":"Import!M376","v":0},null,{"$f":"Import!O376","v":0}]
[null,null,"Undiscounted net best estimate loss and loss expense provisions at end of year related to prior years.",null,null,{"$f":"SUM(F218:F222)","v":0},null,{"$f":"SUM(H218:H222)","v":0}]
[]
[null,null,"Net losses incurred and net loss expenses incurred related to current year",null,null,{"$f":"Import!M378","v":0},null,{"$f":"Import!O378","v":0}]
[null,null,"Net losses and loss expenses paid or payable related to current year",null,null,{"$f":"Import!M379","v":0},null,{"$f":"Import!O379","v":0}]
[null,null,"Foreign exchange and other adjustments",null,null,{"$f":"Import!M380","v":0},null,{"$f":"Import!O380","v":0}]
[null,null,"Undiscounted net best estimate loss and loss expense provisions at end of year related to current year.",null,null,{"$f":"SUM(F225:F227)","v":0},null,{"$f":"SUM(H225:H227)","v":0}]
[]
[null,null,"Impact of change in discount curve",null,null,{"$f":"Import!M382","v":0},null,{"$f":"Import!O382","v":0}]
[]
[null,null,"Net best estimate loss and loss expense provisions at end of year",null,null,{"$f":"F223+F228+F230","v":0},null,{"$f":"H223+H228+H230","v":0}]
[]
[null,null,null,null,null,{"$f":"IF(F235=\"TRUE\",HYPERLINK(\"#'Form 1EBS'!F115\",\"TRUE\"),HYPERLINK(\"#'Form 1EBS'!F115\",\"FALSE\"))","v":"TRUE"},null,{"$f":"IF(H235=\"TRUE\",HYPERLINK(\"#'Form 1EBS'!H115\",\"TRUE\"),HYPERLINK(\"#'Form 1EBS'!H115\",\"FALSE\"))","v":"TRUE"}]
[null,null,null,null,null,{"$f":"IF(ROUND((F232-F115),0)=0,\"TRUE\",\"FALSE\")","v":"TRUE"},null,{"$f":"IF(ROUND((H232-H115),0)=0,\"TRUE\",\"FALSE\")","v":"TRUE"}]
[null,null,null,null,null,{"$f":"IF(F232=0,0,ROUND(F115-F232,0))","v":0},null,{"$f":"IF(H232=0,0,ROUND(H115-H232,0))","v":0}]
[]
[null,null,null,null,null,{"$f":"IF(F234=\"False\",\"Does not equal Line 17(d)\",\"\")","v":""},null,{"$f":"IF(H234=\"False\",\"Does not equal Line 17(d)\",\"\")","v":""}]

{"sheet":"Schedule II","index":23,"n_rows":76,"n_cols":22,"rows_kept":76,"cut":false,"hidden":false,"merged":[[51,3,51,5],[51,8,51,18],[52,11,52,13],[52,15,52,17],[54,3,54,5],[1,2,1,4],[2,3,2,5],[3,3,3,5],[6,3,6,5],[6,7,6,9],[6,19,6,21],[28,3,28,5],[28,7,28,9],[28,11,28,13],[28,19,28,21],[6,15,6,17],[6,11,6,13]]}
[null,"SCHEDULE OF FIXED INCOME & EQUITY INVESTMENTS BY BSCR RATING",null,null,null,null,null,null,null,null,null,null,null,null,null,null,null,null,null,null,null,{"$f":"HYPERLINK(\"#'Index'!A1\",\"Return to Index\")","v":"Return to Index"}]
[null,null,{"$f":"'Company Information'!C7","v":"Enter Company Name"}]
[null,null,"As at",{"$f":" TEXT('Company Information'!C3,\"d mmmm yyyy\")","v":"31 December 2023"},null,null,null,null,null,null,null,null,null,null,null,null,null,null,null,null,null,"SCHEDULE II"]
[null,null,{"$f":"\"expressed in\"& IF(CONFIGURATION!$B$12>1,\" ['\"&MID(CONFIGURATION!$B$12,2,LEN(CONFIGURATION!$B$12))&\"s]\",\"\")","v":"expressed in ['000s]"},{"$f":"'Form 1EBS'!C4","v":"United States Dollars"}]
[]
[null,null,null,"(1)",null,"(2)",null,"(3)",null,"(4)",null,"(5)",null,"(6)",null,"(7)",null,"(8)",null,"(9)",null,"(10)"]
[null,null,null,"CORPORATE & SOVEREIGN BONDS",null,null,null,"RESIDENTIAL MORTGAGE-BACKED SECURITIES",null,null,null,"COMMERCIAL MORTGAGE-BACKED SECURITIES / ASSET-BACKED SECURITIES",null,null,null,"BOND MUTUAL FUNDS",null,null,null,"TOTAL\n[ Form 1SFS Lines 2(b) & 3(b)]"]
[null,null,null,{"$f":"+'Form 1EBS'!$F$7","v":"2023-12-31"},null,{"$f":"+'Form 1EBS'!$H$7","v":"2022-12-31"},null,{"$f":"+'Form 1EBS'!$F$7","v":"2023-12-31"},null,{"$f":"+'Form 1EBS'!$H$7","v":"2022-12-31"},null,{"$f":"+'Form 1EBS'!$F$7","v":"2023-12-31"},null,{"$f":"+'Form 1EBS'!$H$7","v":"2022-12-31"},null,{"$f":"+'Form 1EBS'!$F$7","v":"2023-12-31"},null,{"$f":"+'Form 1EBS'!$H$7","v":"2022-12-31"},null,{"$f":"+'Form 1EBS'!$F$7","v":"2023-12-31"},null,{"$f":"+'Form 1EBS'!$H$7","v":"2022-12-31"}]
[null,null,null,{"$f":"+'Form 1EBS'!$F$8","v":" ('000s)"},null,{"$f":"+'Form 1EBS'!$H$8","v":" ('000s)"},null,{"$f":"+'Form 1EBS'!$F$8","v":" ('000s)"},null,{"$f":"+'Form 1EBS'!$H$8","v":" ('000s)"},null,{"$f":"+'Form 1EBS'!$F$8","v":" ('000s)"},null,{"$f":"+'Form 1EBS'!$H$8","v":" ('000s)"},null,{"$f":"+'Form 1EBS'!$F$8","v":" ('000s)"},null,{"$f":"+'Form 1EBS'!$H$8","v":" ('000s)"},null,{"$f":"+'Form 1EBS'!$F$8","v":" ('000s)"},null,{"$f":"+'Form 1EBS'!$H$8","v":" ('000s)"}]
[null,"Line no. "]
[null,"Quoted and Unquoted Bonds and Debentures"]
[null,1,"BSCR Rating 0",{"$f":"Import!E1151","v":0},null,{"$f":"Import!G1151","v":0},null,null,null,null,null,null,null,null,null,{"$f":"Import!E1176","v":0},null,{"$f":"Import!G1176","v":0},null,{"$f":"D12+H12+L12+P12","v":0},null,{"$f":"F12+J12+N12+R12","v":0}]
[null,2,"BSCR Rating 1",{"$f":"Import!E1152","v":0},null,{"$f":"Import!G1152","v":0},null,{"$f":"Import!E1160","v":0},null,{"$f":"Import!G1160","v":0},null,{"$f":"Import!E1168","v":0},null,{"$f":"Import!G1168","v":0},null,{"$f":"Import!E1177","v":0},null,{"$f":"Import!G1177","v":0},null,{"$f":"D13+H13+L13+P13","v":0},null,0]
[null,3,"BSCR Rating 2",{"$f":"Import!E1153","v":0},null,{"$f":"Import!G1153","v":0},null,{"$f":"Import!E1161","v":0},null,{"$f":"Import!G1161","v":0},null,{"$f":"Import!E1169","v":0},null,{"$f":"Import!G1169","v":0},null,{"$f":"Import!E1178","v":0},null,{"$f":"Import!G1178","v":0},null,0,null,0]
[null,4,"BSCR Rating 3",{"$f":"Import!E1154","v":0},null,{"$f":"Import!G1154","v":0},null,{"$f":"Import!E1162","v":0},null,{"$f":"Import!G1162","v":0},null,{"$f":"Import!E1170","v":0},null,{"$f":"Import!G1170","v":0},null,{"$f":"Import!E1179","v":0},null,{"$f":"Import!G1179","v":0},null,0,null,0]
[null,5,"BSCR Rating 4",{"$f":"Import!E1155","v":0},null,{"$f":"Import!G1155","v":0},null,{"$f":"Import!E1163","v":0},null,{"$f":"Import!G1163","v":0},null,{"$f":"Import!E1171","v":0},null,{"$f":"Import!G1171","v":0},null,{"$f":"Import!E1180","v":0},null,{"$f":"Import!G1180","v":0},null,0,null,0]
[null,6,"BSCR Rating 5",{"$f":"Import!E1156","v":0},null,{"$f":"Import!G1156","v":0},null,{"$f":"Import!E1164","v":0},null,{"$f":"Import!G1164","v":0},null,{"$f":"Import!E1172","v":0},null,{"$f":"Import!G1172","v":0},null,{"$f":"Import!E1181","v":0},null,{"$f":"Import!G1181","v":0},null,0,null,0]
[null,7,"BSCR Rating 6",{"$f":"Import!E1157","v":0},null,{"$f":"Import!G1157","v":0},null,{"$f":"Import!E1165","v":0},null,{"$f":"Import!G1165","v":0},null,{"$f":"Import!E1173","v":0},null,{"$f":"Import!G1173","v":0},null,{"$f":"Import!E1182","v":0},null,{"$f":"Import!G1182","v":0},null,0,null,0]
[null,8,"BSCR Rating 7",{"$f":"Import!E1158","v":0},null,{"$f":"Import!G1158","v":0},null,{"$f":"Import!E1166","v":0},null,{"$f":"Import!G1166","v":0},null,{"$f":"Import!E1174","v":0},null,{"$f":"Import!G1174","v":0},null,{"$f":"Import!E1183","v":0},null,{"$f":"Import!G1183","v":0},null,0,null,0]
[null,9,"BSCR Rating 8",{"$f":"Import!E1159","v":0},null,{"$f":"Import!G1159","v":0},null,{"$f":"Import!E1167","v":0},null,{"$f":"Import!G1167","v":0},null,{"$f":"Import!E1175","v":0},null,{"$f":"Import!G1175","v":0},null,{"$f":"Import!E1184","v":0},null,{"$f":"Import!G1184","v":0},null,0,null,0]
[]
[null,10,"Total",{"$f":"SUM(D12:D20)","v":0},null,{"$f":"SUM(F12:F20)","v":0},null,{"$f":"SUM(H12:H20)","v":0},null,{"$f":"SUM(J12:J20)","v":0},null,{"$f":"SUM(L12:L20)","v":0},null,{"$f":"SUM(N12:N20)","v":0},null,{"$f":"SUM(P11:P20)","v":0},null,{"$f":"SUM(R11:R20)","v":0},null,{"$f":"SUM(T12:T20)","v":0},null,{"$f":"SUM(V12:V20)","v":0}]
[]
[null,null,null,null,null,null,null,null,null,null,null,null,null,null,null,null,null,null,null,{"$f":"IF(T25=\"TRUE\",HYPERLINK(\"#'Form 1SFS'!E16:M31\",\"TRUE\"),HYPERLINK(\"#'Form 1SFS'!E16:M31\",\"FALSE\"))","v":"TRUE"},null,{"$f":"IF(V25=\"TRUE\",HYPERLINK(\"#'Form 1SFS'!G16:O31\",\"TRUE\"),HYPERLINK(\"#'Form 1SFS'!G16:O31\",\"FALSE\"))","v":"TRUE"}]
[null,null,null,null,null,null,null,null,null,null,null,null,null,null,null,null,null,null,null,{"$f":"IF('Company Information'!$C$2=\"IFRS\",IF(ROUND((T22-('Form 1ASFS'!E16+'Form 1ASFS'!I16+'Form 1ASFS'!E29+'Form 1ASFS'!I29)),0)=0,\"TRUE\",\"FALSE\"),IF(ROUND((T22-('Form 1SFS'!E18+'Form 1SFS'!I18+'Form 1SFS'!E31+'Form 1SFS'!I31)),0)=0,\"TRUE\",\"FALSE\"))","v":"TRUE"},null,{"$f":"IF('Company Information'!$C$2=\"IFRS\",IF(ROUND((V22-('Form 1ASFS'!G16+'Form 1ASFS'!K16+'Form 1ASFS'!G29+'Form 1ASFS'!K29)),0)=0,\"TRUE\",\"FALSE\"),IF(ROUND((V22-('Form 1SFS'!G18+'Form 1SFS'!K18+'Form 1SFS'!G31+'Form 1SFS'!K31)),0)=0,\"TRUE\",\"FALSE\"))","v":"TRUE"}]
[null,null,"Difference",null,null,null,null,null,null,null,null,null,null,null,null," ",null,null,null,{"$f":"IF('Company Information'!$C$2=\"IFRS\",ROUND(('Form 1ASFS'!E16+'Form 1ASFS'!I16+'Form 1ASFS'!E29+'Form 1ASFS'!I29)-T22,0),ROUND(('Form 1SFS'!E18+'Form 1SFS'!I18+'Form 1SFS'!E31+'Form 1SFS'!I31)-T22,0))","v":0},null,{"$f":"IF('Company Information'!$C$2=\"IFRS\",ROUND(('Form 1ASFS'!G16+'Form 1ASFS'!K16+'Form 1ASFS'!G29+'Form 1ASFS'!K29)-V22,0),ROUND(('Form 1SFS'!G18+'Form 1SFS'!K18+'Form 1SFS'!G31+'Form 1SFS'!K31)-V22,0))","v":0}]
[]
[null,null,null,null,null,null,null,null,null,null,null,null,null,null,null,null,null,null,null,{"$f":"IF(T24=\"False\",\"Does not equal Form 1SFS Lines 2(b) & 3(b)\",\"\")","v":""},null,{"$f":"IF(V24=\"False\",\"Does not equal Form 1SFS Lines 2(b) & 3(b)\",\"\")","v":""}]
[null,null,null,"COMMON STOCK\n[ Form 1SFS Lines 2(c)(i) & 3(c)(i) ]",null,null,null,"PREFERRED STOCK\n[ Form 1SFS Lines 2(c)(ii) & 3(c)(ii) ]",null,null,null,"EQUITY MUTUAL FUNDS\n[ Form 1SFS Lines 2(c)(iii) & 3(c)(iii) ]",null,null,null,null,null,null,null,"TOTAL\n[ Form 1SFS Lines 2(d) & 3(d)]"]
[null,null,null,{"$f":"+'Form 1EBS'!$F$7","v":"2023-12-31"},null,{"$f":"+'Form 1EBS'!$H$7","v":"2022-12-31"},null,{"$f":"+'Form 1EBS'!$F$7","v":"2023-12-31"},null,{"$f":"+'Form 1EBS'!$H$7","v":"2022-12-31"},null,{"$f":"+'Form 1EBS'!$F$7","v":"2023-12-31"},null,{"$f":"+'Form 1EBS'!$H$7","v":"2022-12-31"},null,null,null,null,null,{"$f":"+'Form 1EBS'!$F$7","v":"2023-12-31"},null,{"$f":"+'Form 1EBS'!$H$7","v":"2022-12-31"}]
[null,null,null,{"$f":"+'Form 1EBS'!$F$8","v":" ('000s)"},null,{"$f":"+'Form 1EBS'!$H$8","v":" ('000s)"},null,{"$f":"+'Form 1EBS'!$F$8","v":" ('000s)"},null,{"$f":"+'Form 1EBS'!$H$8","v":" ('000s)"},null,{"$f":"+'Form 1EBS'!$F$8","v":" ('000s)"},null,{"$f":"+'Form 1EBS'!$H$8","v":" ('000s)"},null,null,null,null,null,{"$f":"+'Form 1EBS'!$F$8","v":" ('000s)"},null,{"$f":"+'Form 1EBS'!$H$8","v":" ('000s)"}]
[null,"Quoted and Unquoted Equities"]
[null,11,"BSCR Rating 1",null,null,null,null,{"$f":"Import!E1187","v":0},null,{"$f":"Import!G1187","v":0},null,null,null,null,null,null,null,null,null,{"$f":"D33+H33+L33","v":0},null,0]
[null,12,"BSCR Rating 2",null,null,null,null,{"$f":"Import!E1188","v":0},null,{"$f":"Import!G1188","v":0},null,null,null,null,null,null,null,null,null,0,null,0]
[null,13,"BSCR Rating 3",null,null,null,null,{"$f":"Import!E1189","v":0},null,{"$f":"Import!G1189","v":0},null,null,null,null,null,null,null,null,null,0,null,0]
[null,14,"BSCR Rating 4",null,null,null,null,{"$f":"Import!E1190","v":0},null,{"$f":"Import!G1190","v":0},null,null,null,null,null,null,null,null,null,0,null,0]
[null,15,"BSCR Rating 5",null,null,null,null,{"$f":"Import!E1191","v":0},null,{"$f":"Import!G1191","v":0},null,null,null,null,null,null,null,null,null,0,null,0]
[null,16,"BSCR Rating 6",null,null,null,null,{"$f":"Import!E1192","v":0},null,{"$f":"Import!G1192","v":0},null,null,null,null,null,null,null,null,null,0,null,0]
[null,17,"BSCR Rating 7",null,null,null,null,{"$f":"Import!E1193","v":0},null,{"$f":"Import!G1193","v":0},null,null,null,null,null,null,null,null,null,0,null,0]
[null,18,"BSCR Rating 8",null,null,null,null,{"$f":"Import!E1194","v":0},null,{"$f":"Import!G1194","v":0},null,null,null,null,null,null,null,null,null,0,null,0]
[null,19,"Quoted Equity Funds",{"$f":"IF('Company Information'!$C$2=\"IFRS\",'Form 1ASFS'!E18+'Form 1ASFS'!I18,'Form 1SFS'!E20+'Form 1SFS'!I20)","v":0},null,{"$f":"IF('Company Information'!$C$2=\"IFRS\",'Form 1ASFS'!G18+'Form 1ASFS'!K18,'Form 1SFS'!G20+'Form 1SFS'!K20)","v":0},null,null,null,null,null,{"$f":"IF('Company Information'!$C$2=\"IFRS\",'Form 1ASFS'!E20+'Form 1ASFS'!I20,'Form 1SFS'!E22+'Form 1SFS'!I22)","v":0},null,{"$f":"IF('Company Information'!$C$2=\"IFRS\",'Form 1ASFS'!G20+'Form 1ASFS'!K20,'Form 1SFS'!G22+'Form 1SFS'!K22)","v":0},null,null,null,null,null,{"$f":"D41+H41+L41","v":0},null,{"$f":"F41+J41+N41","v":0}]
[null,20,"Unquoted Equity Funds",{"$f":"IF('Company Information'!$C$2=\"IFRS\",'Form 1ASFS'!E31+'Form 1ASFS'!I31,'Form 1SFS'!E33+'Form 1SFS'!I33)","v":0},null,{"$f":"IF('Company Information'!$C$2=\"IFRS\",'Form 1ASFS'!G31+'Form 1ASFS'!K31,'Form 1SFS'!G33+'Form 1SFS'!K33)","v":0},null,null,null,null,null,{"$f":"IF('Company Information'!$C$2=\"IFRS\",'Form 1ASFS'!E33+'Form 1ASFS'!I33,'Form 1SFS'!E35+'Form 1SFS'!I35)","v":0},null,{"$f":"IF('Company Information'!$C$2=\"IFRS\",'Form 1ASFS'!G33+'Form 1ASFS'!K33,'Form 1SFS'!G35+'Form 1SFS'!K35)","v":0},null,null,null,null,null,{"$f":"D42+H42+L42","v":0},null,0]
[]
[null,21,"Total",{"$f":"SUM(D33:D42)","v":0},null,{"$f":"SUM(F33:F42)","v":0},null,{"$f":"SUM(H33:H42)","v":0},null,{"$f":"SUM(J33:J42)","v":0},null,{"$f":"SUM(L32:L42)","v":0},null,{"$f":"SUM(N32:N42)","v":0},null,null,null,null,null,{"$f":"SUM(T33:T42)","v":0},null,{"$f":"SUM(V33:V42)","v":0}]
[]
[null,null,null,{"$f":"IF(D47=\"TRUE\",HYPERLINK(\"#'Form 1SFS'!E20:M33\",\"TRUE\"),HYPERLINK(\"#'Form 1SFS'!E20:M33\",\"FALSE\"))","v":"TRUE"},null,{"$f":"IF(F47=\"TRUE\",HYPERLINK(\"#'Form 1SFS'!G20:O33\",\"TRUE\"),HYPERLINK(\"#'Form 1SFS'!G20:O33\",\"FALSE\"))","v":"TRUE"},null,{"$f":"IF(H47=\"TRUE\",HYPERLINK(\"#'Form 1SFS'!E21:M34\",\"TRUE\"),HYPERLINK(\"#'Form 1SFS'!E21:M34\",\"FALSE\"))","v":"TRUE"},null,{"$f":"IF(J47=\"TRUE\",HYPERLINK(\"#'Form 1SFS'!G21:O34\",\"TRUE\"),HYPERLINK(\"#'Form 1SFS'!G21:O34\",\"FALSE\"))","v":"TRUE"},null,{"$f":"IF(L47=\"TRUE\",HYPERLINK(\"#'Form 1SFS'!E22:M35\",\"TRUE\"),HYPERLINK(\"#'Form 1SFS'!E22:M35\",\"FALSE\"))","v":"TRUE"},null,{"$f":"IF(N47=\"TRUE\",HYPERLINK(\"#'Form 1SFS'!G22:O35\",\"TRUE\"),HYPERLINK(\"#'Form 1SFS'!G22:O35\",\"FALSE\"))","v":"TRUE"},null,null,null,null,null,{"$f":"IF(T47=\"TRUE\",HYPERLINK(\"#'Form 1SFS'!E20:M36\",\"TRUE\"),HYPERLINK(\"#'Form 1SFS'!E20:M36\",\"FALSE\"))","v":"TRUE"},null,{"$f":"IF(V47=\"TRUE\",HYPERLINK(\"#'Form 1SFS'!G20:O36\",\"TRUE\"),HYPERLINK(\"#'Form 1SFS'!G20:O36\",\"FALSE\"))","v":"TRUE"}]
[null,null,null,{"$f":"IF('Company Information'!$C$2=\"IFRS\",IF(ROUND(D44-('Form 1ASFS'!E18+'Form 1ASFS'!I18+'Form 1ASFS'!E31+'Form 1ASFS'!I31),0)=0,\"TRUE\",\"FALSE\"),IF(ROUND(D44-('Form 1SFS'!E20+'Form 1SFS'!E33+'Form 1SFS'!I20+'Form 1SFS'!I33),0)=0,\"TRUE\",\"FALSE\"))","v":"TRUE"},null,{"$f":"IF('Company Information'!$C$2=\"IFRS\",IF(ROUND(F44-('Form 1ASFS'!G18+'Form 1ASFS'!K18+'Form 1ASFS'!G31+'Form 1ASFS'!K31),0)=0,\"TRUE\",\"FALSE\"),IF(ROUND(F44-('Form 1SFS'!G20+'Form 1SFS'!G33+'Form 1SFS'!K20+'Form 1SFS'!K33),0)=0,\"TRUE\",\"FALSE\"))","v":"TRUE"},null,{"$f":"IF('Company Information'!$C$2=\"IFRS\",IF(ROUND(H44-('Form 1ASFS'!E19+'Form 1ASFS'!I19+'Form 1ASFS'!E32+'Form 1ASFS'!I32),0)=0,\"TRUE\",\"FALSE\"),IF(ROUND(H44-('Form 1SFS'!E21+'Form 1SFS'!I21+'Form 1SFS'!E34+'Form 1SFS'!I34),0)=0,\"TRUE\",\"FALSE\"))","v":"TRUE"},null,{"$f":"IF('Company Information'!$C$2=\"IFRS\",IF(ROUND(J44-('Form 1ASFS'!G19+'Form 1ASFS'!K19+'Form 1ASFS'!G32+'Form 1ASFS'!K32),0)=0,\"TRUE\",\"FALSE\"),IF(ROUND(J44-('Form 1SFS'!G21+'Form 1SFS'!K21+'Form 1SFS'!G34+'Form 1SFS'!K34),0)=0,\"TRUE\",\"FALSE\"))","v":"TRUE"},null,{"$f":"IF('Company Information'!$C$2=\"IFRS\",IF(ROUND(L44-('Form 1ASFS'!E20+'Form 1ASFS'!I20+'Form 1ASFS'!E33+'Form 1ASFS'!I33),0)=0,\"TRUE\",\"FALSE\"),IF(ROUND(L44-('Form 1SFS'!E22+'Form 1SFS'!E35+'Form 1SFS'!I22+'Form 1SFS'!I35),0)=0,\"TRUE\",\"FALSE\"))","v":"TRUE"},null,{"$f":"IF('Company Information'!$C$2=\"IFRS\",IF(ROUND(N44-('Form 1ASFS'!G20+'Form 1ASFS'!K20+'Form 1ASFS'!G33+'Form 1ASFS'!K33),0)=0,\"TRUE\",\"FALSE\"),IF(ROUND(N44-('Form 1SFS'!G22+'Form 1SFS'!G35+'Form 1SFS'!K22+'Form 1SFS'!K35),0)=0,\"TRUE\",\"FALSE\"))","v":"TRUE"},null,null,null,null,null,{"$f":"IF('Company Information'!$C$2=\"IFRS\",IF(ROUND(T44-('Form 1ASFS'!E21+'Form 1ASFS'!I21+'Form 1ASFS'!E34+'Form 1ASFS'!I34),0)=0,\"TRUE\",\"FALSE\"),IF(ROUND(T44-('Form 1SFS'!E23+'Form 1SFS'!I23+'Form 1SFS'!E36+'Form 1SFS'!I36),0)=0,\"TRUE\",\"FALSE\"))","v":"TRUE"},null,{"$f":"IF('Company Information'!$C$2=\"IFRS\",IF(ROUND(V44-('Form 1ASFS'!G21+'Form 1ASFS'!K21+'Form 1ASFS'!G34+'Form 1ASFS'!K34),0)=0,\"TRUE\",\"FALSE\"),IF(ROUND(V44-('Form 1SFS'!G23+'Form 1SFS'!K23+'Form 1SFS'!G36+'Form 1SFS'!K36),0)=0,\"TRUE\",\"FALSE\"))","v":"TRUE"}]
[null,null,null,{"$f":"IF('Company Information'!$C$2=\"IFRS\",ROUND(('Form 1ASFS'!E18+'Form 1ASFS'!I18+'Form 1ASFS'!E31+'Form 1ASFS'!I31)-D44,0),ROUND(('Form 1SFS'!E20+'Form 1SFS'!E33+'Form 1SFS'!I20+'Form 1SFS'!I33)-D44,0))","v":0},null,{"$f":"IF('Company Information'!$C$2=\"IFRS\",ROUND(('Form 1ASFS'!G18+'Form 1ASFS'!K18+'Form 1ASFS'!G31+'Form 1ASFS'!K31)-F44,0),ROUND(('Form 1SFS'!G20+'Form 1SFS'!G33+'Form 1SFS'!K20+'Form 1SFS'!K33)-F44,0))","v":0},null,{"$f":"IF('Company Information'!$C$2=\"IFRS\",ROUND(('Form 1ASFS'!E19+'Form 1ASFS'!I19+'Form 1ASFS'!E32+'Form 1ASFS'!I32)-H44,0),ROUND(('Form 1SFS'!E21+'Form 1SFS'!I21+'Form 1SFS'!E34+'Form 1SFS'!I34)-H44,0))","v":0},null,{"$f":"IF('Company Information'!$C$2=\"IFRS\",ROUND(('Form 1ASFS'!G19+'Form 1ASFS'!K19+'Form 1ASFS'!G32+'Form 1ASFS'!K32)-J44,0),ROUND(('Form 1SFS'!G21+'Form 1SFS'!K21+'Form 1SFS'!G34+'Form 1SFS'!K34)-J44,0))","v":0},null,{"$f":"IF('Company Information'!$C$2=\"IFRS\",ROUND(('Form 1ASFS'!E20+'Form 1ASFS'!I20+'Form 1ASFS'!E33+'Form 1ASFS'!I33)-L44,0),ROUND(('Form 1SFS'!E22+'Form 1SFS'!E35+'Form 1SFS'!I22+'Form 1SFS'!I35)-L44,0))","v":0},null,{"$f":"IF('Company Information'!$C$2=\"IFRS\",ROUND(('Form 1ASFS'!G20+'Form 1ASFS'!K20+'Form 1ASFS'!G33+'Form 1ASFS'!K33)-N44,0),ROUND(('Form 1SFS'!G22+'Form 1SFS'!G35+'Form 1SFS'!K22+'Form 1SFS'!K35)-N44,0))","v":0},null,null,null,null,null,{"$f":"IF('Company Information'!$C$2=\"IFRS\",ROUND(('Form 1ASFS'!E21+'Form 1ASFS'!I21+'Form 1ASFS'!E34+'Form 1ASFS'!I34)-T44,0),ROUND(('Form 1SFS'!E23+'Form 1SFS'!I23+'Form 1SFS'!E36+'Form 1SFS'!I36)-T44,0))","v":0},null,{"$f":"IF('Company Information'!$C$2=\"IFRS\",ROUND(('Form 1ASFS'!G21+'Form 1ASFS'!K21+'Form 1ASFS'!G34+'Form 1ASFS'!K34)-V44,0),ROUND(('Form 1SFS'!G23+'Form 1SFS'!K23+'Form 1SFS'!G36+'Form 1SFS'!K36)-V44,0))","v":0}]
[]
[null,null,null,{"$f":"IF(D46=\"False\",\"Does not equal Form 1SFS Lines 2(c)(i) & 3(c)(i)\",\"\")","v":""},null,{"$f":"IF(F46=\"False\",\"Does not equal Form 1SFS Lines 2(c)(i) & 3(c)(i)\",\"\")","v":""},null,{"$f":"IF(H46=\"False\",\"Does not equal Form 1SFS Lines 2(c)(ii) & 3(c)(ii)\",\"\")","v":""},null,{"$f":"IF(J46=\"False\",\"Does not equal Form 1SFS Lines 2(c)(ii) & 3(c)(ii)\",\"\")","v":""},null,{"$f":"IF(L46=\"False\",\"Does not equal Form 1SFS Lines 2(c)(iii) & 3(c)(iii)\",\"\")","v":""},null,{"$f":"IF(N46=\"False\",\"Does not equal Form 1SFS Lines 2(c)(iii) & 3(c)(iii)\",\"\")","v":""},null,null,null,null,null,{"$f":"IF(T46=\"False\",\"Does not equal Form 1SFS Lines 2(d) & 3(d)\",\"\")","v":""},null,{"$f":"IF(V46=\"False\",\"Does not equal Form 1SFS Lines 2(d) & 3(d)\",\"\")","v":""}]
[]
[null,null,null,"MORTGAGE LOANS\n[ Form 1SFS Lines 5(c) ]",null,null,null,null,"This Section is Only Applicable to Companies that have Mortgage Backed Securities that have been Reclassified in Accordance with the NAIC and that elect to use NAIC reclassifications to map to the BSCR classes"]
[null,null,null,{"$f":"+'Form 1EBS'!$F$7","v":"2023-12-31"},null,{"$f":"+'Form 1EBS'!$H$7","v":"2022-12-31"},null,null,null,null,null,"VALUES OF RESIDENTIAL MORTGAGE BACKED SECURITIES",null,null,null,"VALUES OF COMMERCIAL MORTGAGE BACKED SECURITIES / ASSET BACKED SECURITIES"]
[null,null,null,{"$f":"+'Form 1EBS'!$F$8","v":" ('000s)"},null,{"$f":"+'Form 1EBS'!$H$8","v":" ('000s)"},null,null,null,null,null,"Original Classification",null,"Revised Classification",null,"Original Classification",null,"Revised Classification"]
[null,null,null,null,null,null,null,null,null,"NAIC Class 1",null,{"$f":"Import!E1201","v":0},null,{"$f":"Import!E1208","v":0},null,{"$f":"Import!E1215","v":0},null,{"$f":"Import!E1222","v":0}]
[null,"Mortgage Loans",null,null,null,null,null,null,null,"NAIC Class 2",null,{"$f":"Import!E1202","v":0},null,{"$f":"Import!E1209","v":0},null,{"$f":"Import!E1216","v":0},null,{"$f":"Import!E1223","v":0}]
[null,22,"Insured/Guaranteed Mortgages",{"$f":"Import!E1197","v":0},null,{"$f":"Import!G1197","v":0},null,null,null,"NAIC Class 3",null,{"$f":"Import!E1203","v":0},null,{"$f":"Import!E1210","v":0},null,{"$f":"Import!E1217","v":0},null,{"$f":"Import!E1224","v":0}]
[null,23,"Other Commercial and Farm Mortgages",{"$f":"Import!E1198","v":0},null,{"$f":"Import!G1198","v":0},null,null,null,"NAIC Class 4",null,{"$f":"Import!E1204","v":0},null,{"$f":"Import!E1211","v":0},null,{"$f":"Import!E1218","v":0},null,{"$f":"Import!E1225","v":0}]
[null,24,"Other Residential Mortgages",{"$f":"Import!E1199","v":0},null,{"$f":"Import!G1199","v":0},null,null,null,"NAIC Class 5",null,{"$f":"Import!E1205","v":0},null,{"$f":"Import!E1212","v":0},null,{"$f":"Import!E1219","v":0},null,{"$f":"Import!E1226","v":0}]
[null,25,"Mortgages Not In Good Standing",{"$f":"Import!E1200","v":0},null,{"$f":"Import!G1200","v":0},null,null,null,"NAIC Class 6",null,{"$f":"Import!E1206","v":0},null,{"$f":"Import!E1213","v":0},null,{"$f":"Import!E1220","v":0},null,{"$f":"Import!E1227","v":0}]
[]
[null,26,"Total",{"$f":"SUM(D57:D60)","v":0},null,{"$f":"SUM(F57:F60)","v":0},null,null,null,null,null,{"$f":"SUM(L55:L60)","v":0},null,{"$f":"SUM(N55:N60)","v":0},null,{"$f":"SUM(P55:P60)","v":0},null,{"$f":"SUM(R55:R60)","v":0}]
[]
[null,null,null,{"$f":"IF(D65=\"TRUE\",HYPERLINK(\"#'Form 1SFS'!E53:M53\",\"TRUE\"),HYPERLINK(\"#'Form 1SFS'!E53:M53\",\"FALSE\"))","v":"TRUE"},null,{"$f":"IF(F65=\"TRUE\",HYPERLINK(\"#'Form 1SFS'!G53:O53\",\"TRUE\"),HYPERLINK(\"#'Form 1SFS'!G53:O53\",\"FALSE\"))","v":"TRUE"},null,null,null,{"$f":"IF('Company Information'!$F$11=\"Class 3A\",HYPERLINK(\"#'Attachments'!G45\",\"Attach file\"),HYPERLINK(\"#'Attachments'!G65\",\"Attach file\"))","v":"Attach file"}]
[null,null,null,{"$f":"IF('Company Information'!$C$2=\"IFRS\",IF(ROUND((D62-('Form 1ASFS'!E51+'Form 1ASFS'!I51)),0)=0,\"TRUE\",\"FALSE\"),IF(ROUND((D62-('Form 1SFS'!E53+'Form 1SFS'!I53)),0)=0,\"TRUE\",\"FALSE\"))","v":"TRUE"},null,{"$f":"IF('Company Information'!$C$2=\"IFRS\",IF(ROUND((F62-('Form 1ASFS'!G51+'Form 1ASFS'!K51)),0)=0,\"TRUE\",\"FALSE\"),IF(ROUND((F62-('Form 1SFS'!G53+'Form 1SFS'!K53)),0)=0,\"TRUE\",\"FALSE\"))","v":"TRUE"}]
[null,null,null,{"$f":"IF('Company Information'!$C$2=\"IFRS\",ROUND(('Form 1ASFS'!E51+'Form 1ASFS'!I51)-D62,0),ROUND(('Form 1SFS'!E53+'Form 1SFS'!I53)-D62,0))","v":0},null,{"$f":"IF('Company Information'!$C$2=\"IFRS\",ROUND(('Form 1ASFS'!G51+'Form 1ASFS'!K51)-F62,0),ROUND(('Form 1SFS'!G53+'Form 1SFS'!K53)-F62,0))","v":0}]
[]
[null,null,"Please include in the table below any assets, included in this Schedule, for which NAIC ratings were used to map to the BSCR rating classes"]
[null,null,"Information on the use of NAIC ratings\n(for disclosure purposes only)","CORPORATE & SOVEREIGN BONDS",null,"RESIDENTIAL MORTGAGE-BACKED SECURITIES",null,"COMMERCIAL MORTGAGE-BACKED SECURITIES / ASSET-BACKED SECURITIES",null,"BOND MUTUAL FUNDS",null,"MORTGAGE LOANS",null,"PREFERRED STOCKS",null,"OTHER ASSETS"]
[null,null,"NAIC Class 1",{"$f":"Import!E1229","v":0},null,{"$f":"Import!E1236","v":0},null,{"$f":"Import!E1243","v":0},null,{"$f":"Import!E1250","v":0},null,{"$f":"Import!E1257","v":0},null,{"$f":"Import!E1264","v":0},null,{"$f":"Import!E1271","v":0}]
[null,null,"NAIC Class 2",{"$f":"Import!E1230","v":0},null,{"$f":"Import!E1237","v":0},null,{"$f":"Import!E1244","v":0},null,{"$f":"Import!E1251","v":0},null,{"$f":"Import!E1258","v":0},null,{"$f":"Import!E1265","v":0},null,{"$f":"Import!E1272","v":0}]
[null,null,"NAIC Class 3",{"$f":"Import!E1231","v":0},null,{"$f":"Import!E1238","v":0},null,{"$f":"Import!E1245","v":0},null,{"$f":"Import!E1252","v":0},null,{"$f":"Import!E1259","v":0},null,{"$f":"Import!E1266","v":0},null,{"$f":"Import!E1273","v":0}]
[null,null,"NAIC Class 4",{"$f":"Import!E1232","v":0},null,{"$f":"Import!E1239","v":0},null,{"$f":"Import!E1246","v":0},null,{"$f":"Import!E1253","v":0},null,{"$f":"Import!E1260","v":0},null,{"$f":"Import!E1267","v":0},null,{"$f":"Import!E1274","v":0}]
[null,null,"NAIC Class 5",{"$f":"Import!E1233","v":0},null,{"$f":"Import!E1240","v":0},null,{"$f":"Import!E1247","v":0},null,{"$f":"Import!E1254","v":0},null,{"$f":"Import!E1261","v":0},null,{"$f":"Import!E1268","v":0},null,{"$f":"Import!E1275","v":0}]
[null,null,"NAIC Class 6",{"$f":"Import!E1234","v":0},null,{"$f":"Import!E1241","v":0},null,{"$f":"Import!E1248","v":0},null,{"$f":"Import!E1255","v":0},null,{"$f":"Import!E1262","v":0},null,{"$f":"Import!E1269","v":0},null,{"$f":"Import!E1276","v":0}]
[null,null,null,{"$f":"SUM(D70:D75)","v":0},null,{"$f":"SUM(F70:F75)","v":0},null,{"$f":"SUM(H70:H75)","v":0},null,{"$f":"SUM(J70:J75)","v":0},null,{"$f":"SUM(L70:L75)","v":0},null,{"$f":"SUM(N70:N75)","v":0},null,{"$f":"SUM(P70:P75)","v":0}]

{"sheet":"Schedule II (EBS)","index":24,"n_rows":76,"n_cols":22,"rows_kept":76,"cut":false,"hidden":true,"merged":[[6,19,6,21],[28,3,28,5],[28,7,28,9],[28,11,28,13],[28,19,28,21],[52,15,52,17],[54,3,54,5],[2,3,2,5],[3,3,3,5],[1,2,1,4],[6,3,6,5],[6,7,6,9],[6,11,6,13],[6,15,6,17],[51,3,51,5],[51,8,51,18],[52,11,52,13]]}
[null,"SCHEDULE OF FIXED INCOME & EQUITY INVESTMENTS BY BSCR RATING",null,null,null,null,null,null,null,null,null,null,null,null,null,null,null,null,null,null,null,{"$f":"HYPERLINK(\"#'Index'!A1\",\"Return to Index\")","v":"Return to Index"}]
[null,null,{"$f":"'Company Information'!C7","v":"Enter Company Name"}]
[null,null,"As at",{"$f":"'Company Information'!C3","v":"2023-12-31"},null,null,null,null,null,null,null,null,null,null,null,null,null,null,null,null,null,"SCHEDULE II (EBS)"]
[null,null,{"$f":"\"expressed in\"& IF(CONFIGURATION!$B$12>1,\" ['\"&MID(CONFIGURATION!$B$12,2,LEN(CONFIGURATION!$B$12))&\"s]\",\"\")","v":"expressed in ['000s]"},{"$f":"'Form 1EBS'!C4","v":"United States Dollars"}]
[]
[null,null,null,"(1)",null,"(2)",null,"(3)",null,"(4)",null,"(5)",null,"(6)",null,"(7)",null,"(8)",null,"(9)",null,"(10)"]
[null,null,null,"CORPORATE & SOVEREIGN BONDS",null,null,null,"RESIDENTIAL MORTGAGE-BACKED SECURITIES",null,null,null,"COMMERCIAL MORTGAGE-BACKED SECURITIES / ASSET-BACKED SECURITIES",null,null,null,"BOND MUTUAL FUNDS",null,null,null,"TOTAL\n[ Form 1EBS Lines 2(b) & 3(b)]"]
[null,null,null,{"$f":"+'Form 1EBS'!$F$7","v":"2023-12-31"},null,{"$f":"+'Form 1EBS'!$H$7","v":"2022-12-31"},null,{"$f":"+'Form 1EBS'!$F$7","v":"2023-12-31"},null,{"$f":"+'Form 1EBS'!$H$7","v":"2022-12-31"},null,{"$f":"+'Form 1EBS'!$F$7","v":"2023-12-31"},null,{"$f":"+'Form 1EBS'!$H$7","v":"2022-12-31"},null,{"$f":"+'Form 1EBS'!$F$7","v":"2023-12-31"},null,{"$f":"+'Form 1EBS'!$H$7","v":"2022-12-31"},null,{"$f":"+'Form 1EBS'!$F$7","v":"2023-12-31"},null,{"$f":"+'Form 1EBS'!$H$7","v":"2022-12-31"}]
[null,null,null,{"$f":"+'Form 1EBS'!$F$8","v":" ('000s)"},null,{"$f":"+'Form 1EBS'!$H$8","v":" ('000s)"},null,{"$f":"+'Form 1EBS'!$F$8","v":" ('000s)"},null,{"$f":"+'Form 1EBS'!$H$8","v":" ('000s)"},null,{"$f":"+'Form 1EBS'!$F$8","v":" ('000s)"},null,{"$f":"+'Form 1EBS'!$H$8","v":" ('000s)"},null,{"$f":"+'Form 1EBS'!$F$8","v":" ('000s)"},null,{"$f":"+'Form 1EBS'!$H$8","v":" ('000s)"},null,{"$f":"+'Form 1EBS'!$F$8","v":" ('000s)"},null,{"$f":"+'Form 1EBS'!$H$8","v":" ('000s)"}]
[null,"Line no. "]
[null,"Quoted and Unquoted Bonds and Debentures"]
[null,1,"BSCR Rating 0",{"$f":"Import!M1151","v":0},null,{"$f":"Import!O1151","v":0},null,null,null,null,null,null,null,null,null,{"$f":"Import!M1176","v":0},null,{"$f":"Import!O1176","v":0},null,{"$f":"D12+H12+L12+P12","v":0},null,{"$f":"F12+J12+N12+R12","v":0}]
[null,2,"BSCR Rating 1",{"$f":"Import!M1152","v":0},null,{"$f":"Import!O1152","v":0},null,{"$f":"Import!M1160","v":0},null,{"$f":"Import!O1160","v":0},null,{"$f":"Import!M1168","v":0},null,{"$f":"Import!O1168","v":0},null,{"$f":"Import!M1177","v":0},null,{"$f":"Import!O1177","v":0},null,{"$f":"D13+H13+L13+P13","v":0},null,0]
[null,3,"BSCR Rating 2",{"$f":"Import!M1153","v":0},null,{"$f":"Import!O1153","v":0},null,{"$f":"Import!M1161","v":0},null,{"$f":"Import!O1161","v":0},null,{"$f":"Import!M1169","v":0},null,{"$f":"Import!O1169","v":0},null,{"$f":"Import!M1178","v":0},null,{"$f":"Import!O1178","v":0},null,0,null,0]
[null,4,"BSCR Rating 3",{"$f":"Import!M1154","v":0},null,{"$f":"Import!O1154","v":0},null,{"$f":"Import!M1162","v":0},null,{"$f":"Import!O1162","v":0},null,{"$f":"Import!M1170","v":0},null,{"$f":"Import!O1170","v":0},null,{"$f":"Import!M1179","v":0},null,{"$f":"Import!O1179","v":0},null,0,null,0]
[null,5,"BSCR Rating 4",{"$f":"Import!M1155","v":0},null,{"$f":"Import!O1155","v":0},null,{"$f":"Import!M1163","v":0},null,{"$f":"Import!O1163","v":0},null,{"$f":"Import!M1171","v":0},null,{"$f":"Import!O1171","v":0},null,{"$f":"Import!M1180","v":0},null,{"$f":"Import!O1180","v":0},null,0,null,0]
[null,6,"BSCR Rating 5",{"$f":"Import!M1156","v":0},null,{"$f":"Import!O1156","v":0},null,{"$f":"Import!M1164","v":0},null,{"$f":"Import!O1164","v":0},null,{"$f":"Import!M1172","v":0},null,{"$f":"Import!O1172","v":0},null,{"$f":"Import!M1181","v":0},null,{"$f":"Import!O1181","v":0},null,0,null,0]
[null,7,"BSCR Rating 6",{"$f":"Import!M1157","v":0},null,{"$f":"Import!O1157","v":0},null,{"$f":"Import!M1165","v":0},null,{"$f":"Import!O1165","v":0},null,{"$f":"Import!M1173","v":0},null,{"$f":"Import!O1173","v":0},null,{"$f":"Import!M1182","v":0},null,{"$f":"Import!O1182","v":0},null,0,null,0]
[null,8,"BSCR Rating 7",{"$f":"Import!M1158","v":0},null,{"$f":"Import!O1158","v":0},null,{"$f":"Import!M1166","v":0},null,{"$f":"Import!O1166","v":0},null,{"$f":"Import!M1174","v":0},null,{"$f":"Import!O1174","v":0},null,{"$f":"Import!M1183","v":0},null,{"$f":"Import!O1183","v":0},null,0,null,0]
[null,9,"BSCR Rating 8",{"$f":"Import!M1159","v":0},null,{"$f":"Import!O1159","v":0},null,{"$f":"Import!M1167","v":0},null,{"$f":"Import!O1167","v":0},null,{"$f":"Import!M1175","v":0},null,{"$f":"Import!O1175","v":0},null,{"$f":"Import!M1184","v":0},null,{"$f":"Import!O1184","v":0},null,0,null,0]
[]
[null,10,"Total",{"$f":"SUM(D12:D20)","v":0},null,{"$f":"SUM(F12:F20)","v":0},null,{"$f":"SUM(H12:H20)","v":0},null,{"$f":"SUM(J12:J20)","v":0},null,{"$f":"SUM(L12:L20)","v":0},null,{"$f":"SUM(N12:N20)","v":0},null,{"$f":"SUM(P11:P20)","v":0},null,{"$f":"SUM(R11:R20)","v":0},null,{"$f":"SUM(T12:T20)","v":0},null,{"$f":"SUM(V12:V20)","v":0}]
[]
[null,null,null,null,null,null,null,null,null,null,null,null,null,null,null,null,null,null,null,{"$f":"IF(T25=\"TRUE\",HYPERLINK(\"#'Form 1EBS'!F13:F28\",\"TRUE\"),HYPERLINK(\"#'Form 1EBS'!F13:F28\",\"FALSE\"))","v":"TRUE"},null,{"$f":"IF(V25=\"TRUE\",HYPERLINK(\"#'Form 1EBS'!F13:F28\",\"TRUE\"),HYPERLINK(\"#'Form 1EBS'!F13:F28\",\"FALSE\"))","v":"TRUE"}]
[null,null,null,null,null,null,null,null,null,null,null,null,null,null,null,null,null,null,null,{"$f":"IF((ROUND((T22-('Form 1EBS'!F13+'Form 1EBS'!F23)),0))=0,\"TRUE\",\"FALSE\")","v":"TRUE"},null,{"$f":"IF((ROUND((V22-('Form 1EBS'!H13+'Form 1EBS'!H23)),0))=0,\"TRUE\",\"FALSE\")","v":"TRUE"}]
[null,null,"Difference",null,null,null,null,null,null,null,null,null,null,null,null," ",null,null,null,{"$f":"ROUND(('Form 1EBS'!F13+'Form 1EBS'!F23)-T22,0)","v":0},null,{"$f":"ROUND(('Form 1EBS'!H13+'Form 1EBS'!H23)-V22,0)","v":0}]
[]
[null,null,null,null,null,null,null,null,null,null,null,null,null,null,null,null,null,null,null,{"$f":"IF(T24=\"False\",\"Does not equal Form 1EBS Lines 2(b) & 3(b)\",\"\")","v":""},null,{"$f":"IF(V24=\"False\",\"Does not equal Form 1EBS Lines 2(b) & 3(b)\",\"\")","v":""}]
[null,null,null,"COMMON STOCK\n[ Form 1EBS Lines 2(c)(i) & 3(c)(i) ]",null,null,null,"PREFERRED STOCK\n[ Form 1EBS Lines 2(c)(ii) & 3(c)(ii) ]",null,null,null,"EQUITY MUTUAL FUNDS\n[ Form 1EBS Lines 2(c)(iii) & 3(c)(iii) ]",null,null,null,null,null,null,null,"TOTAL\n[ Form 1EBS Lines 2(d) & 3(d)]"]
[null,null,null,{"$f":"+'Form 1EBS'!$F$7","v":"2023-12-31"},null,{"$f":"+'Form 1EBS'!$H$7","v":"2022-12-31"},null,{"$f":"+'Form 1EBS'!$F$7","v":"2023-12-31"},null,{"$f":"+'Form 1EBS'!$H$7","v":"2022-12-31"},null,{"$f":"+'Form 1EBS'!$F$7","v":"2023-12-31"},null,{"$f":"+'Form 1EBS'!$H$7","v":"2022-12-31"},null,null,null,null,null,{"$f":"+'Form 1EBS'!$F$7","v":"2023-12-31"},null,{"$f":"+'Form 1EBS'!$H$7","v":"2022-12-31"}]
[null,null,null,{"$f":"+'Form 1EBS'!$F$8","v":" ('000s)"},null,{"$f":"+'Form 1EBS'!$H$8","v":" ('000s)"},null,{"$f":"+'Form 1EBS'!$F$8","v":" ('000s)"},null,{"$f":"+'Form 1EBS'!$H$8","v":" ('000s)"},null,{"$f":"+'Form 1EBS'!$F$8","v":" ('000s)"},null,{"$f":"+'Form 1EBS'!$H$8","v":" ('000s)"},null,null,null,null,null,{"$f":"+'Form 1EBS'!$F$8","v":" ('000s)"},null,{"$f":"+'Form 1EBS'!$H$8","v":" ('000s)"}]
[null,"Quoted and Unquoted Equities"]
[null,11,"BSCR Rating 1",null,null,null,null,{"$f":"Import!M1187","v":0},null,{"$f":"Import!O1187","v":0},null,null,null,null,null,null,null,null,null,{"$f":"D33+H33+L33","v":0},null,0]
[null,12,"BSCR Rating 2",null,null,null,null,{"$f":"Import!M1188","v":0},null,{"$f":"Import!O1188","v":0},null,null,null,null,null,null,null,null,null,0,null,0]
[null,13,"BSCR Rating 3",null,null,null,null,{"$f":"Import!M1189","v":0},null,{"$f":"Import!O1189","v":0},null,null,null,null,null,null,null,null,null,0,null,0]
[null,14,"BSCR Rating 4",null,null,null,null,{"$f":"Import!M1190","v":0},null,{"$f":"Import!O1190","v":0},null,null,null,null,null,null,null,null,null,0,null,0]
[null,15,"BSCR Rating 5",null,null,null,null,{"$f":"Import!M1191","v":0},null,{"$f":"Import!O1191","v":0},null,null,null,null,null,null,null,null,null,0,null,0]
[null,16,"BSCR Rating 6",null,null,null,null,{"$f":"Import!M1192","v":0},null,{"$f":"Import!O1192","v":0},null,null,null,null,null,null,null,null,null,0,null,0]
[null,17,"BSCR Rating 7",null,null,null,null,{"$f":"Import!M1193","v":0},null,{"$f":"Import!O1193","v":0},null,null,null,null,null,null,null,null,null,0,null,0]
[null,18,"BSCR Rating 8",null,null,null,null,{"$f":"Import!M1194","v":0},null,{"$f":"Import!O1194","v":0},null,null,null,null,null,null,null,null,null,0,null,0]
[null,19,"Quoted Equity Funds",{"$f":"+'Form 1EBS'!F15","v":0},null,{"$f":"+'Form 1EBS'!H15","v":0},null,null,null,null,null,{"$f":"+'Form 1EBS'!F17","v":0},null,{"$f":"+'Form 1EBS'!H17","v":0},null,null,null,null,null,{"$f":"D41+H41+L41","v":0},null,{"$f":"F41+J41+N41","v":0}]
[null,20,"Unquoted Equity Funds",{"$f":"+'Form 1EBS'!F25","v":0},null,{"$f":"+'Form 1EBS'!H25","v":0},null,null,null,null,null,{"$f":"+'Form 1EBS'!F27","v":0},null,{"$f":"+'Form 1EBS'!H27","v":0},null,null,null,null,null,{"$f":"D42+H42+L42","v":0},null,0]
[]
[null,21,"Total",{"$f":"SUM(D33:D42)","v":0},null,{"$f":"SUM(F33:F42)","v":0},null,{"$f":"SUM(H33:H42)","v":0},null,{"$f":"SUM(J33:J42)","v":0},null,{"$f":"SUM(L32:L42)","v":0},null,{"$f":"SUM(N32:N42)","v":0},null,null,null,null,null,{"$f":"SUM(T33:T42)","v":0},null,{"$f":"SUM(V33:V42)","v":0}]
[]
[null,null,null,{"$f":"IF(D47=\"TRUE\",HYPERLINK(\"#'Form 1EBS'!F15:F25\",\"TRUE\"),HYPERLINK(\"#'Form 1EBS'!F15:F25\",\"FALSE\"))","v":"TRUE"},null,{"$f":"IF(F47=\"TRUE\",HYPERLINK(\"#'Form 1EBS'!H15:H25\",\"TRUE\"),HYPERLINK(\"#'Form 1EBS'!H15:H25\",\"FALSE\"))","v":"TRUE"},null,{"$f":"IF(H47=\"TRUE\",HYPERLINK(\"#'Form 1EBS'!F16:F26\",\"TRUE\"),HYPERLINK(\"#'Form 1EBS'!F16:F26\",\"FALSE\"))","v":"TRUE"},null,{"$f":"IF(J47=\"TRUE\",HYPERLINK(\"#'Form 1EBS'!H16:H26\",\"TRUE\"),HYPERLINK(\"#'Form 1EBS'!H16:H26\",\"FALSE\"))","v":"TRUE"},null,{"$f":"IF(L47=\"TRUE\",HYPERLINK(\"#'Form 1EBS'!F17:F27\",\"TRUE\"),HYPERLINK(\"#'Form 1EBS'!F17:F27\",\"FALSE\"))","v":"TRUE"},null,{"$f":"IF(N47=\"TRUE\",HYPERLINK(\"#'Form 1EBS'!H17:H27\",\"TRUE\"),HYPERLINK(\"#'Form 1EBS'!H17:H27\",\"FALSE\"))","v":"TRUE"},null,null,null,null,null,{"$f":"IF(T47=\"TRUE\",HYPERLINK(\"#'Form 1EBS'!F15:F29\",\"TRUE\"),HYPERLINK(\"#'Form 1EBS'!F15:F29\",\"FALSE\"))","v":"TRUE"},null,{"$f":"IF(V47=\"TRUE\",HYPERLINK(\"#'Form 1EBS'!H15:H29\",\"TRUE\"),HYPERLINK(\"#'Form 1EBS'!H15:H29\",\"FALSE\"))","v":"TRUE"}]
[null,null,null,{"$f":"IF(ROUND(D44-('Form 1EBS'!F15+'Form 1EBS'!F25),0)=0,\"TRUE\",\"FALSE\")","v":"TRUE"},null,{"$f":"IF(ROUND(F44-('Form 1EBS'!H15+'Form 1EBS'!H25),0)=0,\"TRUE\",\"FALSE\")","v":"TRUE"},null,{"$f":"IF((ROUND((H44-('Form 1EBS'!F16+'Form 1EBS'!F26)),0))=0,\"TRUE\",\"FALSE\")","v":"TRUE"},null,{"$f":"IF((ROUND((J44-('Form 1EBS'!H16+'Form 1EBS'!H26)),0))=0,\"TRUE\",\"FALSE\")","v":"TRUE"},null,{"$f":"IF(ROUND(L44-('Form 1EBS'!F17+'Form 1EBS'!F27),0)=0,\"TRUE\",\"FALSE\")","v":"TRUE"},null,{"$f":"IF(ROUND(N44-('Form 1EBS'!H17+'Form 1EBS'!H27),0)=0,\"TRUE\",\"FALSE\")","v":"TRUE"},null,null,null,null,null,{"$f":"IF(ROUND(T44-('Form 1EBS'!F18+'Form 1EBS'!F28),0)=0,\"TRUE\",\"FALSE\")","v":"TRUE"},null,{"$f":"IF(ROUND(V44-('Form 1EBS'!H18+'Form 1EBS'!H28),0)=0,\"TRUE\",\"FALSE\")","v":"TRUE"}]
[null,null,null,{"$f":"ROUND(('Form 1EBS'!F15+'Form 1EBS'!F25)-D44,0)","v":0},null,{"$f":"ROUND(('Form 1EBS'!H15+'Form 1EBS'!H25)-F44,0)","v":0},null,{"$f":"ROUND(('Form 1EBS'!F16+'Form 1EBS'!F26)-H44,0)","v":0},null,{"$f":"ROUND(('Form 1EBS'!H16+'Form 1EBS'!H26)-J44,0)","v":0},null,{"$f":"ROUND(('Form 1EBS'!F17+'Form 1EBS'!F27)-L44,0)","v":0},null,{"$f":"ROUND(('Form 1EBS'!H17+'Form 1EBS'!H27)-N44,0)","v":0},null,null,null,null,null,{"$f":"ROUND(('Form 1EBS'!F18+'Form 1EBS'!F28)-T44,0)","v":0},null,{"$f":"ROUND(('Form 1EBS'!H18+'Form 1EBS'!H28)-V44,0)","v":0}]
[]
[null,null,null,{"$f":"IF(D46=\"False\",\"Does not equal Form 1EBS Lines 2(c)(i) & 3(c)(i)\",\"\")","v":""},null,{"$f":"IF(F46=\"False\",\"Does not equal Form 1EBS Lines 2(c)(i) & 3(c)(i)\",\"\")","v":""},null,{"$f":"IF(H46=\"False\",\"Does not equal Form 1EBS Lines 2(c)(ii) & 3(c)(ii)\",\"\")","v":""},null,{"$f":"IF(J46=\"False\",\"Does not equal Form 1EBS Lines 2(c)(ii) & 3(c)(ii)\",\"\")","v":""},null,{"$f":"IF(L46=\"False\",\"Does not equal Form 1EBS Lines 2(c)(iii) & 3(c)(iii)\",\"\")","v":""},null,{"$f":"IF(N46=\"False\",\"Does not equal Form 1EBS Lines 2(c)(iii) & 3(c)(iii)\",\"\")","v":""},null,null,null,null,null,{"$f":"IF(T46=\"False\",\"Does not equal Form 1EBS Lines 2(d) & 3(d)\",\"\")","v":""},null,{"$f":"IF(V46=\"False\",\"Does not equal Form 1EBS Lines 2(d) & 3(d)\",\"\")","v":""}]
[]
[null,null,null,"MORTGAGE LOANS\n[ Form 1EBS Lines 5(c) ]",null,null,null,null,"This Section is Only Applicable to Companies that have Mortgage Backed Securities that have been Reclassified in Accordance with the NAIC and that elect to use NAIC reclassifications to map to the BSCR classes"]
[null,null,null,{"$f":"+'Form 1EBS'!$F$7","v":"2023-12-31"},null,{"$f":"+'Form 1EBS'!$H$7","v":"2022-12-31"},null,null,null,null,null,"VALUES OF RESIDENTIAL MORTGAGE BACKED SECURITIES",null,null,null,"VALUES OF COMMERCIAL MORTGAGE BACKED SECURITIES / ASSET BACKED SECURITIES"]
[null,null,null,{"$f":"+'Form 1EBS'!$F$8","v":" ('000s)"},null,{"$f":"+'Form 1EBS'!$H$8","v":" ('000s)"},null,null,null,null,null,"Original Classification",null,"Revised Classification",null,"Original Classification",null,"Revised Classification"]
[null,null,null,null,null,null,null,null,null,"NAIC Class 1",null,{"$f":"Import!M1201","v":0},null,{"$f":"Import!M1208","v":0},null,{"$f":"Import!M1215","v":0},null,{"$f":"Import!M1222","v":0}]
[null,"Mortgage Loans",null,null,null,null,null,null,null,"NAIC Class 2",null,{"$f":"Import!M1202","v":0},null,{"$f":"Import!M1209","v":0},null,{"$f":"Import!M1216","v":0},null,{"$f":"Import!M1223","v":0}]
[null,22,"Insured/Guaranteed Mortgages",{"$f":"Import!M1197","v":0},null,{"$f":"Import!O1197","v":0},null,null,null,"NAIC Class 3",null,{"$f":"Import!M1203","v":0},null,{"$f":"Import!M1210","v":0},null,{"$f":"Import!M1217","v":0},null,{"$f":"Import!M1224","v":0}]
[null,23,"Other Commercial and Farm Mortgages",{"$f":"Import!M1198","v":0},null,{"$f":"Import!O1198","v":0},null,null,null,"NAIC Class 4",null,{"$f":"Import!M1204","v":0},null,{"$f":"Import!M1211","v":0},null,{"$f":"Import!M1218","v":0},null,{"$f":"Import!M1225","v":0}]
[null,24,"Other Residential Mortgages",{"$f":"Import!M1199","v":0},null,{"$f":"Import!O1199","v":0},null,null,null,"NAIC Class 5",null,{"$f":"Import!M1205","v":0},null,{"$f":"Import!M1212","v":0},null,{"$f":"Import!M1219","v":0},null,{"$f":"Import!M1226","v":0}]
[null,25,"Mortgages Not In Good Standing",{"$f":"Import!M1200","v":0},null,{"$f":"Import!O1200","v":0},null,null,null,"NAIC Class 6",null,{"$f":"Import!M1206","v":0},null,{"$f":"Import!M1213","v":0},null,{"$f":"Import!M1220","v":0},null,{"$f":"Import!M1227","v":0}]
[]
[null,26,"Total",{"$f":"SUM(D57:D60)","v":0},null,{"$f":"SUM(F57:F60)","v":0},null,null,null,null,null,{"$f":"SUM(L55:L60)","v":0},null,{"$f":"SUM(N55:N60)","v":0},null,{"$f":"SUM(P55:P60)","v":0},null,{"$f":"SUM(R55:R60)","v":0}]
[]
[null,null,null,{"$f":"IF(D65=\"TRUE\",HYPERLINK(\"#'Form 1EBS'!F45\",\"TRUE\"),HYPERLINK(\"#'Form 1EBS'!F45\",\"FALSE\"))","v":"TRUE"},null,{"$f":"IF(F65=\"TRUE\",HYPERLINK(\"#'Form 1EBS'!H45\",\"TRUE\"),HYPERLINK(\"#'Form 1EBS'!H45\",\"FALSE\"))","v":"TRUE"}]
[null,null,null,{"$f":"IF(ROUND((D62-'Form 1EBS'!F45),0)=0,\"TRUE\",\"FALSE\")","v":"TRUE"},null,{"$f":"IF(ROUND((F62-'Form 1EBS'!H45),0)=0,\"TRUE\",\"FALSE\")","v":"TRUE"}]
[null,null,null,{"$f":"ROUND(('Form 1EBS'!F45)-D62,0)","v":0},null,{"$f":"ROUND(('Form 1EBS'!H45)-F62,0)","v":0},null,null,null,{"$f":"IF('Company Information'!$F$11=\"Class 3A\",HYPERLINK(\"#'Attachments'!G45\",\"Attach file\"),HYPERLINK(\"#'Attachments'!G65\",\"Attach file\"))","v":"Attach file"}]
[]
[null,null,"Please include in the table below any assets, included in this Schedule, for which NAIC ratings were used to map to the BSCR rating classes"]
[null,null,"Information on the use of NAIC ratings\n(for disclosure purposes only)","CORPORATE & SOVEREIGN BONDS",null,"RESIDENTIAL MORTGAGE-BACKED SECURITIES",null,"COMMERCIAL MORTGAGE-BACKED SECURITIES / ASSET-BACKED SECURITIES",null,"BOND MUTUAL FUNDS",null,"MORTGAGE LOANS",null,"PREFERRED STOCKS",null,"OTHER ASSETS"]
[null,null,"NAIC Class 1"]
[null,null,"NAIC Class 2"]
[null,null,"NAIC Class 3"]
[null,null,"NAIC Class 4"]
[null,null,"NAIC Class 5"]
[null,null,"NAIC Class 6"]
[null,null,null,{"$f":"SUM(D70:D75)","v":0},null,{"$f":"SUM(F70:F75)","v":0},null,{"$f":"SUM(H70:H75)","v":0},null,{"$f":"SUM(J70:J75)","v":0},null,{"$f":"SUM(L70:L75)","v":0},null,{"$f":"SUM(N70:N75)","v":0},null,{"$f":"SUM(P70:P75)","v":0}]

{"sheet":"Schedule IIA","index":25,"n_rows":84,"n_cols":22,"rows_kept":84,"cut":false,"hidden":false,"merged":[[71,2,73,2],[51,3,51,5],[50,8,51,20],[52,11,52,13],[52,15,52,17],[63,3,63,5],[6,11,6,13],[6,15,6,17],[6,19,6,21],[28,3,28,5],[28,7,28,9],[28,11,28,13],[28,19,28,21],[28,15,28,17],[1,2,1,4],[2,3,2,5],[3,3,3,5],[6,3,6,5],[6,7,6,9]]}
[null,"SCHEDULE OF FUNDS HELD BY CEDING REINSURERS IN SEGREGATED ACCOUNTS / TRUSTS BY BSCR RATING",null,null,null,null,null,null,null,null,null,null,null,null,null,null,null,null,null,null,null,{"$f":"HYPERLINK(\"#'Index'!A1\",\"Return to Index\")","v":"Return to Index"}]
[null,null,{"$f":"+'Company Information'!C7","v":"Enter Company Name"}]
[null,null,"As at",{"$f":" TEXT('Company Information'!C3,\"d mmmm yyyy\")","v":"31 December 2023"},null,null,null,null,null,null,null,null,null,null,null,null,null,null,null,null,null,"SCHEDULE IIA"]
[null,null,{"$f":"+'Form 1EBS'!B4","v":"expressed in ['000s]"},{"$f":"+'Form 1EBS'!C4","v":"United States Dollars"}]
[]
[null,null,null,"(1)",null,"(2)",null,"(3)",null,"(4)",null,"(5)",null,"(6)",null,"(7)",null,"(8)",null,"(9)",null,"(10)"]
[null,null,null,"CORPORATE & SOVEREIGN BONDS",null,null,null,"RESIDENTIAL MORTGAGE-BACKED SECURITIES",null,null,null,"COMMERCIAL MORTGAGE-BACKED SECURITIES / ASSET-BACKED SECURITIES",null,null,null,"BOND MUTUAL FUNDS",null,null,null,"TOTAL"]
[null,null,null,{"$f":"+'Form 1EBS'!$F$7","v":"2023-12-31"},null,{"$f":"+'Form 1EBS'!$H$7","v":"2022-12-31"},null,{"$f":"+'Form 1EBS'!$F$7","v":"2023-12-31"},null,{"$f":"+'Form 1EBS'!$H$7","v":"2022-12-31"},null,{"$f":"+'Form 1EBS'!$F$7","v":"2023-12-31"},null,{"$f":"+'Form 1EBS'!$H$7","v":"2022-12-31"},null,{"$f":"+'Form 1EBS'!$F$7","v":"2023-12-31"},null,{"$f":"+'Form 1EBS'!$H$7","v":"2022-12-31"},null,{"$f":"+'Form 1EBS'!$F$7","v":"2023-12-31"},null,{"$f":"+'Form 1EBS'!$H$7","v":"2022-12-31"}]
[null,null,null,{"$f":"+'Form 1EBS'!$F$8","v":" ('000s)"},null,{"$f":"+'Form 1EBS'!$H$8","v":" ('000s)"},null,{"$f":"+'Form 1EBS'!$F$8","v":" ('000s)"},null,{"$f":"+'Form 1EBS'!$H$8","v":" ('000s)"},null,{"$f":"+'Form 1EBS'!$F$8","v":" ('000s)"},null,{"$f":"+'Form 1EBS'!$H$8","v":" ('000s)"},null,{"$f":"+'Form 1EBS'!$F$8","v":" ('000s)"},null,{"$f":"+'Form 1EBS'!$H$8","v":" ('000s)"},null,{"$f":"+'Form 1EBS'!$F$8","v":" ('000s)"},null,{"$f":"+'Form 1EBS'!$H$8","v":" ('000s)"}]
[null,"Line no. "]
[null,"Quoted and Unquoted Bonds and Debentures"]
[null,1,"BSCR Rating 0",{"$f":"Import!E1279","v":0},null,{"$f":"Import!G1279","v":0},null,null,null,null,null,null,null,null,null,{"$f":"Import!E1304","v":0},null,{"$f":"Import!G1304","v":0},null,{"$f":"D12+H12+L12+P12","v":0},null,{"$f":"F12+J12+N12+R12","v":0}]
[null,2,"BSCR Rating 1",{"$f":"Import!E1280","v":0},null,{"$f":"Import!G1280","v":0},null,{"$f":"Import!E1288","v":0},null,{"$f":"Import!G1288","v":0},null,{"$f":"Import!E1296","v":0},null,{"$f":"Import!G1296","v":0},null,{"$f":"Import!E1305","v":0},null,{"$f":"Import!G1305","v":0},null,{"$f":"D13+H13+L13+P13","v":0},null,0]
[null,3,"BSCR Rating 2",{"$f":"Import!E1281","v":0},null,{"$f":"Import!G1281","v":0},null,{"$f":"Import!E1289","v":0},null,{"$f":"Import!G1289","v":0},null,{"$f":"Import!E1297","v":0},null,{"$f":"Import!G1297","v":0},null,{"$f":"Import!E1306","v":0},null,{"$f":"Import!G1306","v":0},null,0,null,0]
[null,4,"BSCR Rating 3",{"$f":"Import!E1282","v":0},null,{"$f":"Import!G1282","v":0},null,{"$f":"Import!E1290","v":0},null,{"$f":"Import!G1290","v":0},null,{"$f":"Import!E1298","v":0},null,{"$f":"Import!G1298","v":0},null,{"$f":"Import!E1307","v":0},null,{"$f":"Import!G1307","v":0},null,0,null,0]
[null,5,"BSCR Rating 4",{"$f":"Import!E1283","v":0},null,{"$f":"Import!G1283","v":0},null,{"$f":"Import!E1291","v":0},null,{"$f":"Import!G1291","v":0},null,{"$f":"Import!E1299","v":0},null,{"$f":"Import!G1299","v":0},null,{"$f":"Import!E1308","v":0},null,{"$f":"Import!G1308","v":0},null,0,null,0]
[null,6,"BSCR Rating 5",{"$f":"Import!E1284","v":0},null,{"$f":"Import!G1284","v":0},null,{"$f":"Import!E1292","v":0},null,{"$f":"Import!G1292","v":0},null,{"$f":"Import!E1300","v":0},null,{"$f":"Import!G1300","v":0},null,{"$f":"Import!E1309","v":0},null,{"$f":"Import!G1309","v":0},null,0,null,0]
[null,7,"BSCR Rating 6",{"$f":"Import!E1285","v":0},null,{"$f":"Import!G1285","v":0},null,{"$f":"Import!E1293","v":0},null,{"$f":"Import!G1293","v":0},null,{"$f":"Import!E1301","v":0},null,{"$f":"Import!G1301","v":0},null,{"$f":"Import!E1310","v":0},null,{"$f":"Import!G1310","v":0},null,0,null,0]
[null,8,"BSCR Rating 7",{"$f":"Import!E1286","v":0},null,{"$f":"Import!G1286","v":0},null,{"$f":"Import!E1294","v":0},null,{"$f":"Import!G1294","v":0},null,{"$f":"Import!E1302","v":0},null,{"$f":"Import!G1302","v":0},null,{"$f":"Import!E1311","v":0},null,{"$f":"Import!G1311","v":0},null,0,null,0]
[null,9,"BSCR Rating 8",{"$f":"Import!E1287","v":0},null,{"$f":"Import!G1287","v":0},null,{"$f":"Import!E1295","v":0},null,{"$f":"Import!G1295","v":0},null,{"$f":"Import!E1303","v":0},null,{"$f":"Import!G1303","v":0},null,{"$f":"Import!E1312","v":0},null,{"$f":"Import!G1312","v":0},null,0,null,0]
[]
[null,10,"Total",{"$f":"SUM(D12:D20)","v":0},null,{"$f":"SUM(F12:F20)","v":0},null,{"$f":"SUM(H12:H20)","v":0},null,{"$f":"SUM(J12:J20)","v":0},null,{"$f":"SUM(L12:L20)","v":0},null,{"$f":"SUM(N12:N20)","v":0},null,{"$f":"SUM(P12:P20)","v":0},null,{"$f":"SUM(R12:R20)","v":0},null,{"$f":"SUM(T12:T20)","v":0},null,{"$f":"SUM(V12:V20)","v":0}]
[]
[]
[]
[]
[]
[]
[null,null,null,"COMMON STOCK",null,null,null,"PREFERRED STOCK",null,null,null,"EQUITY MUTUAL FUNDS",null,null,null,"OTHER INVESTMENTS",null,null,null,"TOTAL\n"]
[null,null,null,{"$f":"+'Form 1EBS'!$F$7","v":"2023-12-31"},null,{"$f":"+'Form 1EBS'!$H$7","v":"2022-12-31"},null,{"$f":"+'Form 1EBS'!$F$7","v":"2023-12-31"},null,{"$f":"+'Form 1EBS'!$H$7","v":"2022-12-31"},null,{"$f":"+'Form 1EBS'!$F$7","v":"2023-12-31"},null,{"$f":"+'Form 1EBS'!$H$7","v":"2022-12-31"},null,{"$f":"+'Form 1EBS'!$F$7","v":"2023-12-31"},null,{"$f":"+'Form 1EBS'!$H$7","v":"2022-12-31"},null,{"$f":"+'Form 1EBS'!$F$7","v":"2023-12-31"},null,{"$f":"+'Form 1EBS'!$H$7","v":"2022-12-31"}]
[null,null,null,{"$f":"+'Form 1EBS'!$F$8","v":" ('000s)"},null,{"$f":"+'Form 1EBS'!$H$8","v":" ('000s)"},null,{"$f":"+'Form 1EBS'!$F$8","v":" ('000s)"},null,{"$f":"+'Form 1EBS'!$H$8","v":" ('000s)"},null,{"$f":"+'Form 1EBS'!$F$8","v":" ('000s)"},null,{"$f":"+'Form 1EBS'!$H$8","v":" ('000s)"},null,{"$f":"+'Form 1EBS'!$F$8","v":" ('000s)"},null,{"$f":"+'Form 1EBS'!$H$8","v":" ('000s)"},null,{"$f":"+'Form 1EBS'!$F$8","v":" ('000s)"},null,{"$f":"+'Form 1EBS'!$H$8","v":" ('000s)"}]
[null,"Quoted and Unquoted Equities"]
[null,11,"BSCR Rating 1",null,null,null,null,{"$f":"Import!E1315","v":0},null,{"$f":"Import!G1315","v":0},null,null,null,null,null,null,null,null,null,{"$f":"D33+H33+L33","v":0},null,{"$f":"F33+J33+N33","v":0}]
[null,12,"BSCR Rating 2",null,null,null,null,{"$f":"Import!E1316","v":0},null,{"$f":"Import!G1316","v":0},null,null,null,null,null,null,null,null,null,0,null,0]
[null,13,"BSCR Rating 3",null,null,null,null,{"$f":"Import!E1317","v":0},null,{"$f":"Import!G1317","v":0},null,null,null,null,null,null,null,null,null,0,null,0]
[null,14,"BSCR Rating 4",null,null,null,null,{"$f":"Import!E1318","v":0},null,{"$f":"Import!G1318","v":0},null,null,null,null,null,null,null,null,null,0,null,0]
[null,15,"BSCR Rating 5",null,null,null,null,{"$f":"Import!E1319","v":0},null,{"$f":"Import!G1319","v":0},null,null,null,null,null,null,null,null,null,0,null,0]
[null,16,"BSCR Rating 6",null,null,null,null,{"$f":"Import!E1320","v":0},null,{"$f":"Import!G1320","v":0},null,null,null,null,null,null,null,null,null,0,null,0]
[null,17,"BSCR Rating 7",null,null,null,null,{"$f":"Import!E1321","v":0},null,{"$f":"Import!G1321","v":0},null,null,null,null,null,null,null,null,null,0,null,0]
[null,18,"BSCR Rating 8",null,null,null,null,{"$f":"Import!E1322","v":0},null,{"$f":"Import!G1322","v":0},null,null,null,null,null,null,null,null,null,0,null,0]
[null,19,"Quoted Equity Funds",{"$f":"Import!E1313","v":0},null,{"$f":"Import!G1313","v":0},null,null,null,null,null,{"$f":"Import!E1323","v":0},null,{"$f":"Import!G1323","v":0},null,{"$f":"Import!E1325","v":0},null,{"$f":"Import!G1325","v":0},null,{"$f":"D41+H41+L41+P41","v":0},null,{"$f":"F41+J41+N41+R41","v":0}]
[null,20,"Unquoted Equity Funds",{"$f":"Import!E1314","v":0},null,{"$f":"Import!G1314","v":0},null,null,null,null,null,{"$f":"Import!E1324","v":0},null,{"$f":"Import!G1324","v":0},null,{"$f":"Import!E1326","v":0},null,{"$f":"Import!G1326","v":0},null,{"$f":"D42+H42+L42+P42","v":0},null,{"$f":"F42+J42+N42+R42","v":0}]
[]
[null,21,"Total",{"$f":"SUM(D33:D42)","v":0},null,{"$f":"SUM(F33:F42)","v":0},null,{"$f":"SUM(H33:H42)","v":0},null,{"$f":"SUM(J33:J42)","v":0},null,{"$f":"SUM(L33:L42)","v":0},null,{"$f":"SUM(N33:N42)","v":0},null,{"$f":"SUM(P33:P42)","v":0},null,{"$f":"SUM(R33:R42)","v":0},null,{"$f":"SUM(T33:T42)","v":0},null,{"$f":"SUM(V33:V42)","v":0}]
[]
[]
[]
[]
[]
[]
[null,null,null,null,null,null,null,null,"This Section is Only Applicable to Companies that have Mortgage Backed Securities that have been Reclassified in Accordance with the NAIC and that elect to use NAIC reclassifications to map to the BSCR classes"]
[null,null,null,"MORTGAGE LOANS"]
[null,null,null,{"$f":"+'Form 1EBS'!$F$7","v":"2023-12-31"},null,{"$f":"+'Form 1EBS'!$H$7","v":"2022-12-31"},null,null,null,null,null,"VALUES OF RESIDENTIAL MORTGAGE BACKED SECURITIES",null,null,null,"VALUES OF COMMERCIAL MORTGAGE BACKED SECURITIES / ASSET BACKED SECURITIES"]
[null,null,null,{"$f":"+'Form 1EBS'!$F$8","v":" ('000s)"},null,{"$f":"+'Form 1EBS'!$H$8","v":" ('000s)"},null,null,null,null,null,"Original Classification",null,"Revised Classification",null,"Original Classification",null,"Revised Classification"]
[null,null,null,null,null,null,null,null,null,"NAIC Class 1",null,{"$f":"Import!E1332","v":0},null,{"$f":"Import!E1339","v":0},null,{"$f":"Import!E1346","v":0},null,{"$f":"Import!E1353","v":0}]
[null,"Mortgage Loans",null,null,null,null,null,null,null,"NAIC Class 2",null,{"$f":"Import!E1333","v":0},null,{"$f":"Import!E1340","v":0},null,{"$f":"Import!E1347","v":0},null,{"$f":"Import!E1354","v":0}]
[null,22,"Insured/Guaranteed Mortgages",{"$f":"Import!E1327","v":0},null,{"$f":"Import!G1327","v":0},null,null,null,"NAIC Class 3",null,{"$f":"Import!E1334","v":0},null,{"$f":"Import!E1341","v":0},null,{"$f":"Import!E1348","v":0},null,{"$f":"Import!E1355","v":0}]
[null,23,"Other Commercial and Farm Mortgages",{"$f":"Import!E1328","v":0},null,{"$f":"Import!G1328","v":0},null,null,null,"NAIC Class 4",null,{"$f":"Import!E1335","v":0},null,{"$f":"Import!E1342","v":0},null,{"$f":"Import!E1349","v":0},null,{"$f":"Import!E1356","v":0}]
[null,24,"Other Residential Mortgages",{"$f":"Import!E1329","v":0},null,{"$f":"Import!G1329","v":0},null,null,null,"NAIC Class 5",null,{"$f":"Import!E1336","v":0},null,{"$f":"Import!E1343","v":0},null,{"$f":"Import!E1350","v":0},null,{"$f":"Import!E1357","v":0}]
[null,25,"Mortgages Not In Good Standing",{"$f":"Import!E1330","v":0},null,{"$f":"Import!G1330","v":0},null,null,null,"NAIC Class 6",null,{"$f":"Import!E1337","v":0},null,{"$f":"Import!E1344","v":0},null,{"$f":"Import!E1351","v":0},null,{"$f":"Import!E1358","v":0}]
[]
[null,26,"Total",{"$f":"SUM(D57:D60)","v":0},null,{"$f":"SUM(F57:F60)","v":0},null,null,null,null,null,{"$f":"SUM(L55:L60)","v":0},null,{"$f":"SUM(N55:N60)","v":0},null,{"$f":"SUM(P55:P60)","v":0},null,{"$f":"SUM(R55:R60)","v":0}]
[]
[null,null,null,"CASH AND CASH EQUIVALENTS"]
[null,null,null,{"$f":"+'Form 1EBS'!$F$7","v":"2023-12-31"},null,{"$f":"+'Form 1EBS'!$H$7","v":"2022-12-31"},null,null,null,{"$f":"IF('Company Information'!$F$11=\"Class 3A\",HYPERLINK(\"#'Attachments'!G45\",\"Attach file\"),HYPERLINK(\"#'Attachments'!G65\",\"Attach file\"))","v":"Attach file"}]
[null,null,null,{"$f":"+'Form 1EBS'!$F$8","v":" ('000s)"},null,{"$f":"+'Form 1EBS'!$H$8","v":" ('000s)"}]
[]
[null,27,"Cash and Cash Equivalents",{"$f":"Import!E1331","v":0},null,{"$f":"Import!G1331","v":0}]
[]
[null,null,null,{"$f":"+'Form 1EBS'!$F$7","v":"2023-12-31"},null,{"$f":"+'Form 1EBS'!$H$7","v":"2022-12-31"}]
[null,null,null,{"$f":"+'Form 1EBS'!$F$8","v":" ('000s)"},null,{"$f":"+'Form 1EBS'!$H$8","v":" ('000s)"}]
[null,null,"Total Funds Held by Ceding Reinsurers in Segregated Accounts / Trusts (Lines 10, 21, 26 and 27)"]
[]
[null,{"$f":"B68+1","v":28},null,{"$f":"T22+T44+D62+D68","v":0},null,{"$f":"V22+V44+F62+F68","v":0}]
[]
[null,null,"Please include in the table below any assets, included in this Schedule, for which NAIC ratings were used to map to the BSCR rating classes"]
[null,null,"Information on the use of NAIC ratings\n(for disclosure purposes only)","CORPORATE & SOVEREIGN BONDS",null,"RESIDENTIAL MORTGAGE-BACKED SECURITIES",null,"COMMERCIAL MORTGAGE-BACKED SECURITIES / ASSET-BACKED SECURITIES",null,"BOND MUTUAL FUNDS",null,"MORTGAGE LOANS",null,"PREFERRED STOCKS",null,"OTHER ASSETS"]
[null,null,"NAIC Class 1",{"$f":"Import!E1360","v":0},null,{"$f":"Import!E1367","v":0},null,{"$f":"Import!E1374","v":0},null,{"$f":"Import!E1381","v":0},null,{"$f":"Import!E1388","v":0},null,{"$f":"Import!E1395","v":0},null,{"$f":"Import!E1402","v":0}]
[null,null,"NAIC Class 2",{"$f":"Import!E1361","v":0},null,{"$f":"Import!E1368","v":0},null,{"$f":"Import!E1375","v":0},null,{"$f":"Import!E1382","v":0},null,{"$f":"Import!E1389","v":0},null,{"$f":"Import!E1396","v":0},null,{"$f":"Import!E1403","v":0}]
[null,null,"NAIC Class 3",{"$f":"Import!E1362","v":0},null,{"$f":"Import!E1369","v":0},null,{"$f":"Import!E1376","v":0},null,{"$f":"Import!E1383","v":0},null,{"$f":"Import!E1390","v":0},null,{"$f":"Import!E1397","v":0},null,{"$f":"Import!E1404","v":0}]
[null,null,"NAIC Class 4",{"$f":"Import!E1363","v":0},null,{"$f":"Import!E1370","v":0},null,{"$f":"Import!E1377","v":0},null,{"$f":"Import!E1384","v":0},null,{"$f":"Import!E1391","v":0},null,{"$f":"Import!E1398","v":0},null,{"$f":"Import!E1405","v":0}]
[null,null,"NAIC Class 5",{"$f":"Import!E1364","v":0},null,{"$f":"Import!E1371","v":0},null,{"$f":"Import!E1378","v":0},null,{"$f":"Import!E1385","v":0},null,{"$f":"Import!E1392","v":0},null,{"$f":"Import!E1399","v":0},null,{"$f":"Import!E1406","v":0}]
[null,null,"NAIC Class 6",{"$f":"Import!E1365","v":0},null,{"$f":"Import!E1372","v":0},null,{"$f":"Import!E1379","v":0},null,{"$f":"Import!E1386","v":0},null,{"$f":"Import!E1393","v":0},null,{"$f":"Import!E1400","v":0},null,{"$f":"Import!E1407","v":0}]
[null,null,null,{"$f":"SUM(D78:D83)","v":0},null,{"$f":"SUM(F78:F83)","v":0},null,{"$f":"SUM(H78:H83)","v":0},null,{"$f":"SUM(J78:J83)","v":0},null,{"$f":"SUM(L78:L83)","v":0},null,{"$f":"SUM(N78:N83)","v":0},null,{"$f":"SUM(P78:P83)","v":0}]

{"sheet":"Schedule IIA (EBS)","index":26,"n_rows":84,"n_cols":22,"rows_kept":84,"cut":false,"hidden":true,"merged":[[52,11,52,13],[52,15,52,17],[63,3,63,5],[2,3,2,5],[3,3,3,5],[71,2,73,2],[6,3,6,5],[6,7,6,9],[28,3,28,5],[28,7,28,9],[1,2,1,4],[51,3,51,5],[50,8,51,20],[6,19,6,21],[28,19,28,21],[6,11,6,13],[6,15,6,17],[28,11,28,13],[28,15,28,17]]}
[null,"SCHEDULE OF FUNDS HELD BY CEDING REINSURERS IN SEGREGATED ACCOUNTS / TRUSTS BY BSCR RATING",null,null,null,null,null,null,null,null,null,null,null,null,null,null,null,null,null,null,null,{"$f":"HYPERLINK(\"#'Index'!A1\",\"Return to Index\")","v":"Return to Index"}]
[null,null,{"$f":"+'Company Information'!C7","v":"Enter Company Name"}]
[null,null,"As at",{"$f":"+'Company Information'!C3","v":"2023-12-31"},null,null,null,null,null,null,null,null,null,null,null,null,null,null,null,null,null,"SCHEDULE IIA (EBS)"]
[null,null,{"$f":"+'Form 1EBS'!B4","v":"expressed in ['000s]"},{"$f":"+'Form 1EBS'!C4","v":"United States Dollars"}]
[]
[null,null,null,"(1)",null,"(2)",null,"(3)",null,"(4)",null,"(5)",null,"(6)",null,"(7)",null,"(8)",null,"(9)",null,"(10)"]
[null,null,null,"CORPORATE & SOVEREIGN BONDS",null,null,null,"RESIDENTIAL MORTGAGE-BACKED SECURITIES",null,null,null,"COMMERCIAL MORTGAGE-BACKED SECURITIES / ASSET-BACKED SECURITIES",null,null,null,"BOND MUTUAL FUNDS",null,null,null,"TOTAL"]
[null,null,null,{"$f":"+'Form 1EBS'!$F$7","v":"2023-12-31"},null,{"$f":"+'Form 1EBS'!$H$7","v":"2022-12-31"},null,{"$f":"+'Form 1EBS'!$F$7","v":"2023-12-31"},null,{"$f":"+'Form 1EBS'!$H$7","v":"2022-12-31"},null,{"$f":"+'Form 1EBS'!$F$7","v":"2023-12-31"},null,{"$f":"+'Form 1EBS'!$H$7","v":"2022-12-31"},null,{"$f":"+'Form 1EBS'!$F$7","v":"2023-12-31"},null,{"$f":"+'Form 1EBS'!$H$7","v":"2022-12-31"},null,{"$f":"+'Form 1EBS'!$F$7","v":"2023-12-31"},null,{"$f":"+'Form 1EBS'!$H$7","v":"2022-12-31"}]
[null,null,null,{"$f":"+'Form 1EBS'!$F$8","v":" ('000s)"},null,{"$f":"+'Form 1EBS'!$H$8","v":" ('000s)"},null,{"$f":"+'Form 1EBS'!$F$8","v":" ('000s)"},null,{"$f":"+'Form 1EBS'!$H$8","v":" ('000s)"},null,{"$f":"+'Form 1EBS'!$F$8","v":" ('000s)"},null,{"$f":"+'Form 1EBS'!$H$8","v":" ('000s)"},null,{"$f":"+'Form 1EBS'!$F$8","v":" ('000s)"},null,{"$f":"+'Form 1EBS'!$H$8","v":" ('000s)"},null,{"$f":"+'Form 1EBS'!$F$8","v":" ('000s)"},null,{"$f":"+'Form 1EBS'!$H$8","v":" ('000s)"}]
[null,"Line no. "]
[null,"Quoted and Unquoted Bonds and Debentures"]
[null,1,"BSCR Rating 0",{"$f":"Import!M1279","v":0},null,{"$f":"Import!O1279","v":0},null,null,null,null,null,null,null,null,null,{"$f":"Import!M1304","v":0},null,{"$f":"Import!O1304","v":0},null,{"$f":"D12+H12+L12+P12","v":0},null,{"$f":"F12+J12+N12+R12","v":0}]
[null,2,"BSCR Rating 1",{"$f":"Import!M1280","v":0},null,{"$f":"Import!O1280","v":0},null,{"$f":"Import!M1288","v":0},null,{"$f":"Import!O1288","v":0},null,{"$f":"Import!M1296","v":0},null,{"$f":"Import!O1296","v":0},null,{"$f":"Import!M1305","v":0},null,{"$f":"Import!O1305","v":0},null,{"$f":"D13+H13+L13+P13","v":0},null,0]
[null,3,"BSCR Rating 2",{"$f":"Import!M1281","v":0},null,{"$f":"Import!O1281","v":0},null,{"$f":"Import!M1289","v":0},null,{"$f":"Import!O1289","v":0},null,{"$f":"Import!M1297","v":0},null,{"$f":"Import!O1297","v":0},null,{"$f":"Import!M1306","v":0},null,{"$f":"Import!O1306","v":0},null,0,null,0]
[null,4,"BSCR Rating 3",{"$f":"Import!M1282","v":0},null,{"$f":"Import!O1282","v":0},null,{"$f":"Import!M1290","v":0},null,{"$f":"Import!O1290","v":0},null,{"$f":"Import!M1298","v":0},null,{"$f":"Import!O1298","v":0},null,{"$f":"Import!M1307","v":0},null,{"$f":"Import!O1307","v":0},null,0,null,0]
[null,5,"BSCR Rating 4",{"$f":"Import!M1283","v":0},null,{"$f":"Import!O1283","v":0},null,{"$f":"Import!M1291","v":0},null,{"$f":"Import!O1291","v":0},null,{"$f":"Import!M1299","v":0},null,{"$f":"Import!O1299","v":0},null,{"$f":"Import!M1308","v":0},null,{"$f":"Import!O1308","v":0},null,0,null,0]
[null,6,"BSCR Rating 5",{"$f":"Import!M1284","v":0},null,{"$f":"Import!O1284","v":0},null,{"$f":"Import!M1292","v":0},null,{"$f":"Import!O1292","v":0},null,{"$f":"Import!M1300","v":0},null,{"$f":"Import!O1300","v":0},null,{"$f":"Import!M1309","v":0},null,{"$f":"Import!O1309","v":0},null,0,null,0]
[null,7,"BSCR Rating 6",{"$f":"Import!M1285","v":0},null,{"$f":"Import!O1285","v":0},null,{"$f":"Import!M1293","v":0},null,{"$f":"Import!O1293","v":0},null,{"$f":"Import!M1301","v":0},null,{"$f":"Import!O1301","v":0},null,{"$f":"Import!M1310","v":0},null,{"$f":"Import!O1310","v":0},null,0,null,0]
[null,8,"BSCR Rating 7",{"$f":"Import!M1286","v":0},null,{"$f":"Import!O1286","v":0},null,{"$f":"Import!M1294","v":0},null,{"$f":"Import!O1294","v":0},null,{"$f":"Import!M1302","v":0},null,{"$f":"Import!O1302","v":0},null,{"$f":"Import!M1311","v":0},null,{"$f":"Import!O1311","v":0},null,0,null,0]
[null,9,"BSCR Rating 8",{"$f":"Import!M1287","v":0},null,{"$f":"Import!O1287","v":0},null,{"$f":"Import!M1295","v":0},null,{"$f":"Import!O1295","v":0},null,{"$f":"Import!M1303","v":0},null,{"$f":"Import!O1303","v":0},null,{"$f":"Import!M1312","v":0},null,{"$f":"Import!O1312","v":0},null,0,null,0]
[]
[null,10,"Total",{"$f":"SUM(D12:D20)","v":0},null,{"$f":"SUM(F12:F20)","v":0},null,{"$f":"SUM(H12:H20)","v":0},null,{"$f":"SUM(J12:J20)","v":0},null,{"$f":"SUM(L12:L20)","v":0},null,{"$f":"SUM(N12:N20)","v":0},null,{"$f":"SUM(P12:P20)","v":0},null,{"$f":"SUM(R12:R20)","v":0},null,{"$f":"SUM(T12:T20)","v":0},null,{"$f":"SUM(V12:V20)","v":0}]
[]
[]
[]
[]
[]
[]
[null,null,null,"COMMON STOCK",null,null,null,"PREFERRED STOCK",null,null,null,"EQUITY MUTUAL FUNDS",null,null,null,"OTHER INVESTMENTS",null,null,null,"TOTAL\n"]
[null,null,null,{"$f":"+'Form 1EBS'!$F$7","v":"2023-12-31"},null,{"$f":"+'Form 1EBS'!$H$7","v":"2022-12-31"},null,{"$f":"+'Form 1EBS'!$F$7","v":"2023-12-31"},null,{"$f":"+'Form 1EBS'!$H$7","v":"2022-12-31"},null,{"$f":"+'Form 1EBS'!$F$7","v":"2023-12-31"},null,{"$f":"+'Form 1EBS'!$H$7","v":"2022-12-31"},null,{"$f":"+'Form 1EBS'!$F$7","v":"2023-12-31"},null,{"$f":"+'Form 1EBS'!$H$7","v":"2022-12-31"},null,{"$f":"+'Form 1EBS'!$F$7","v":"2023-12-31"},null,{"$f":"+'Form 1EBS'!$H$7","v":"2022-12-31"}]
[null,null,null,{"$f":"+'Form 1EBS'!$F$8","v":" ('000s)"},null,{"$f":"+'Form 1EBS'!$H$8","v":" ('000s)"},null,{"$f":"+'Form 1EBS'!$F$8","v":" ('000s)"},null,{"$f":"+'Form 1EBS'!$H$8","v":" ('000s)"},null,{"$f":"+'Form 1EBS'!$F$8","v":" ('000s)"},null,{"$f":"+'Form 1EBS'!$H$8","v":" ('000s)"},null,{"$f":"+'Form 1EBS'!$F$8","v":" ('000s)"},null,{"$f":"+'Form 1EBS'!$H$8","v":" ('000s)"},null,{"$f":"+'Form 1EBS'!$F$8","v":" ('000s)"},null,{"$f":"+'Form 1EBS'!$H$8","v":" ('000s)"}]
[null,"Quoted and Unquoted Equities"]
[null,11,"BSCR Rating 1",null,null,null,null,{"$f":"Import!M1315","v":0},null,{"$f":"Import!O1315","v":0},null,null,null,null,null,null,null,null,null,{"$f":"D33+H33+L33","v":0},null,{"$f":"F33+J33+N33","v":0}]
[null,12,"BSCR Rating 2",null,null,null,null,{"$f":"Import!M1316","v":0},null,{"$f":"Import!O1316","v":0},null,null,null,null,null,null,null,null,null,0,null,0]
[null,13,"BSCR Rating 3",null,null,null,null,{"$f":"Import!M1317","v":0},null,{"$f":"Import!O1317","v":0},null,null,null,null,null,null,null,null,null,0,null,0]
[null,14,"BSCR Rating 4",null,null,null,null,{"$f":"Import!M1318","v":0},null,{"$f":"Import!O1318","v":0},null,null,null,null,null,null,null,null,null,0,null,0]
[null,15,"BSCR Rating 5",null,null,null,null,{"$f":"Import!M1319","v":0},null,{"$f":"Import!O1319","v":0},null,null,null,null,null,null,null,null,null,0,null,0]
[null,16,"BSCR Rating 6",null,null,null,null,{"$f":"Import!M1320","v":0},null,{"$f":"Import!O1320","v":0},null,null,null,null,null,null,null,null,null,0,null,0]
[null,17,"BSCR Rating 7",null,null,null,null,{"$f":"Import!M1321","v":0},null,{"$f":"Import!O1321","v":0},null,null,null,null,null,null,null,null,null,0,null,0]
[null,18,"BSCR Rating 8",null,null,null,null,{"$f":"Import!M1322","v":0},null,{"$f":"Import!O1322","v":0},null,null,null,null,null,null,null,null,null,0,null,0]
[null,19,"Quoted Equity Funds",{"$f":"Import!M1313","v":0},null,{"$f":"Import!O1313","v":0},null,null,null,null,null,{"$f":"Import!M1323","v":0},null,{"$f":"Import!O1323","v":0},null,{"$f":"Import!M1325","v":0},null,{"$f":"Import!O1325","v":0},null,{"$f":"D41+H41+L41+P41","v":0},null,{"$f":"F41+J41+N41+R41","v":0}]
[null,20,"Unquoted Equity Funds",{"$f":"Import!M1314","v":0},null,{"$f":"Import!O1314","v":0},null,null,null,null,null,{"$f":"Import!M1324","v":0},null,{"$f":"Import!O1324","v":0},null,{"$f":"Import!M1326","v":0},null,{"$f":"Import!O1326","v":0},null,{"$f":"D42+H42+L42+P42","v":0},null,{"$f":"F42+J42+N42+R42","v":0}]
[]
[null,21,"Total",{"$f":"SUM(D33:D42)","v":0},null,{"$f":"SUM(F33:F42)","v":0},null,{"$f":"SUM(H33:H42)","v":0},null,{"$f":"SUM(J33:J42)","v":0},null,{"$f":"SUM(L33:L42)","v":0},null,{"$f":"SUM(N33:N42)","v":0},null,{"$f":"SUM(P33:P42)","v":0},null,{"$f":"SUM(R33:R42)","v":0},null,{"$f":"SUM(T33:T42)","v":0},null,{"$f":"SUM(V33:V42)","v":0}]
[]
[]
[]
[]
[]
[]
[null,null,null,null,null,null,null,null,"This Section is Only Applicable to Companies that have Mortgage Backed Securities that have been Reclassified in Accordance with the NAIC and that elect to use NAIC reclassifications to map to the BSCR classes"]
[null,null,null,"MORTGAGE LOANS"]
[null,null,null,{"$f":"+'Form 1EBS'!$F$7","v":"2023-12-31"},null,{"$f":"+'Form 1EBS'!$H$7","v":"2022-12-31"},null,null,null,null,null,"VALUES OF RESIDENTIAL MORTGAGE BACKED SECURITIES",null,null,null,"VALUES OF COMMERCIAL MORTGAGE BACKED SECURITIES / ASSET BACKED SECURITIES"]
[null,null,null,{"$f":"+'Form 1EBS'!$F$8","v":" ('000s)"},null,{"$f":"+'Form 1EBS'!$H$8","v":" ('000s)"},null,null,null,null,null,"Original Classification",null,"Revised Classification",null,"Original Classification",null,"Revised Classification"]
[null,null,null,null,null,null,null,null,null,"NAIC Class 1",null,{"$f":"Import!M1332","v":0},null,{"$f":"Import!M1339","v":0},null,{"$f":"Import!M1346","v":0},null,{"$f":"Import!M1353","v":0}]
[null,"Mortgage Loans",null,null,null,null,null,null,null,"NAIC Class 2",null,{"$f":"Import!M1333","v":0},null,{"$f":"Import!M1340","v":0},null,{"$f":"Import!M1347","v":0},null,{"$f":"Import!M1354","v":0}]
[null,22,"Insured/Guaranteed Mortgages",{"$f":"Import!M1327","v":0},null,{"$f":"Import!O1327","v":0},null,null,null,"NAIC Class 3",null,{"$f":"Import!M1334","v":0},null,{"$f":"Import!M1341","v":0},null,{"$f":"Import!M1348","v":0},null,{"$f":"Import!M1355","v":0}]
[null,23,"Other Commercial and Farm Mortgages",{"$f":"Import!M1328","v":0},null,{"$f":"Import!O1328","v":0},null,null,null,"NAIC Class 4",null,{"$f":"Import!M1335","v":0},null,{"$f":"Import!M1342","v":0},null,{"$f":"Import!M1349","v":0},null,{"$f":"Import!M1356","v":0}]
[null,24,"Other Residential Mortgages",{"$f":"Import!M1329","v":0},null,{"$f":"Import!O1329","v":0},null,null,null,"NAIC Class 5",null,{"$f":"Import!M1336","v":0},null,{"$f":"Import!M1343","v":0},null,{"$f":"Import!M1350","v":0},null,{"$f":"Import!M1357","v":0}]
[null,25,"Mortgages Not In Good Standing",{"$f":"Import!M1330","v":0},null,{"$f":"Import!O1330","v":0},null,null,null,"NAIC Class 6",null,{"$f":"Import!M1337","v":0},null,{"$f":"Import!M1344","v":0},null,{"$f":"Import!M1351","v":0},null,{"$f":"Import!M1358","v":0}]
[]
[null,26,"Total",{"$f":"SUM(D57:D60)","v":0},null,{"$f":"SUM(F57:F60)","v":0},null,null,null,null,null,{"$f":"SUM(L55:L60)","v":0},null,{"$f":"SUM(N55:N60)","v":0},null,{"$f":"SUM(P55:P60)","v":0},null,{"$f":"SUM(R55:R60)","v":0}]
[]
[null,null,null,"CASH AND CASH EQUIVALENTS",null,null,null,null,null,{"$f":"IF('Company Information'!$F$11=\"Class 3A\",HYPERLINK(\"#'Attachments'!G45\",\"Attach file\"),HYPERLINK(\"#'Attachments'!G65\",\"Attach file\"))","v":"Attach file"}]
[null,null,null,{"$f":"+'Form 1EBS'!$F$7","v":"2023-12-31"},null,{"$f":"+'Form 1EBS'!$H$7","v":"2022-12-31"}]
[null,null,null,{"$f":"+'Form 1EBS'!$F$8","v":" ('000s)"},null,{"$f":"+'Form 1EBS'!$H$8","v":" ('000s)"}]
[]
[null,27,"Cash and Cash Equivalents",{"$f":"Import!M1331","v":0},null,{"$f":"Import!O1331","v":0}]
[]
[null,null,null,{"$f":"+'Form 1EBS'!$F$7","v":"2023-12-31"},null,{"$f":"+'Form 1EBS'!$H$7","v":"2022-12-31"}]
[null,null,null,{"$f":"+'Form 1EBS'!$F$8","v":" ('000s)"},null,{"$f":"+'Form 1EBS'!$H$8","v":" ('000s)"}]
[null,null,"Total Funds Held by Ceding Reinsurers in Segregated Accounts / Trusts (Lines 10, 21, 26 and 27)"]
[]
[null,{"$f":"B68+1","v":28},null,{"$f":"T22+T44+D62+D68","v":0},null,{"$f":"V22+V44+F62+F68","v":0}]
[]
[null,null,"Please include in the table below any assets, included in this Schedule, for which NAIC ratings were used to map to the BSCR rating classes"]
[null,null,"Information on the use of NAIC ratings\n(for disclosure purposes only)","CORPORATE & SOVEREIGN BONDS",null,"RESIDENTIAL MORTGAGE-BACKED SECURITIES",null,"COMMERCIAL MORTGAGE-BACKED SECURITIES / ASSET-BACKED SECURITIES",null,"BOND MUTUAL FUNDS",null,"MORTGAGE LOANS",null,"PREFERRED STOCKS",null,"OTHER ASSETS"]
[null,null,"NAIC Class 1"]
[null,null,"NAIC Class 2"]
[null,null,"NAIC Class 3"]
[null,null,"NAIC Class 4"]
[null,null,"NAIC Class 5"]
[null,null,"NAIC Class 6"]
[null,null,null,{"$f":"SUM(D78:D83)","v":0},null,{"$f":"SUM(F78:F83)","v":0},null,{"$f":"SUM(H78:H83)","v":0},null,{"$f":"SUM(J78:J83)","v":0},null,{"$f":"SUM(L78:L83)","v":0},null,{"$f":"SUM(N78:N83)","v":0},null,{"$f":"SUM(P78:P83)","v":0}]

{"sheet":"Investment Reconciliation","index":27,"n_rows":61,"n_cols":18,"rows_kept":61,"cut":false,"hidden":false,"merged":[[33,2,33,11],[0,2,0,8],[1,2,1,7],[2,2,2,8],[7,3,7,5],[7,6,7,17]]}
[null,null,"INVESTMENT RECONCILIATION ",null,null,null,null,null,null,null,null,null,null,null,null,null,null,{"$f":"HYPERLINK(\"#'Index'!A1\",\"Return to Index\")","v":"Return to Index"}]
[null,null,{"$f":"'Company Information'!C7","v":"Enter Company Name"}]
[null,null,{"$f":"\"For the year ending \"& TEXT('Company Information'!C3,\"d mmmm yyyy\")","v":"For the year ending 31 December 2023"}]
[null,null,{"$f":"\"expressed in\"& IF(CONFIGURATION!$B$12>1,\" ['\"&MID(CONFIGURATION!$B$12,2,LEN(CONFIGURATION!$B$12))&\"s]\",\"\")&\" \"&'Form 1EBS'!C4","v":"expressed in ['000s] United States Dollars"}]
[]
[null,null,"A reconciliation of investments reported on Form 1EBS to Schedules IIB, IIC, IID, IIE and IIF"]
[]
[null,null,null,"Amounts as Reported in Balance Sheet",null,null,"Amounts results from Look-Through"]
[null,null,"Adjustment Description","Form 1EBS Balance","Form 1EBS Balance - Amounts Reported under Bonds and Debentures","Form 1EBS Balance - Amounts reported under Equities","Schedule IIB - Interest rate-sensitive investments","Schedule IIB - Investments sensitive to equity prices","Schedule IIC - Interest rate-sensitive investments","Schedule IIC - Investments sensitive to equity prices","Schedule IID - Interest rate-sensitive investments","Schedule IID - Investments sensitive to equity prices","Schedule IIE - Interest rate-sensitive investments","Schedule IIE - Investments sensitive to equity prices","Schedule IIF - Interest rate-sensitive investments","Schedule IIF - Investments sensitive to equity prices","Total - Interest rate-sensitive investments","Total - Investments sensitive to equity prices"]
[null,1,"Form 1EBS Open Balance",null,null,null,{"$f":"'Form 1EBS'!F13+'Form 1EBS'!F23+'Form 1EBS'!F45","v":0},{"$f":"'Form 1EBS'!F18+'Form 1EBS'!F19+'Form 1EBS'!F28+'Form 1EBS'!F29+'Form 1EBS'!F38+'Form 1EBS'!F40+'Form 1EBS'!F50","v":0},{"$f":"'Schedule IIA (EBS)'!T22+'Schedule IIA (EBS)'!D62","v":0},{"$f":"'Schedule IIA (EBS)'!T44","v":0},null,null,null,null,null,null,{"$f":"G10+I10+K10+M10+O10","v":0},{"$f":"H10+J10+L10+N10+P10","v":0}]
[null,{"$f":"B10+1","v":2},"Cash and Cash Equivalents",null,null,null,null,null,null,null,null,null,null,null,null,null,{"$f":"G11+I11+K11+M11+O11-E11","v":0},{"$f":"H11+J11+L11+N11+P11-F11","v":0}]
[null,{"$f":"B11+1","v":3},"Bonds and Debentures",null,null,null,null,null,null,null,null,null,null,null,null,null,{"$f":"G12+I12+K12+M12+O12-E12","v":0},0]
[null,4,"Equities ",null,null,null,null,null,null,null,null,null,null,null,null,null,0,0]
[null,5,"Real Estate",null,null,null,null,null,null,null,null,null,null,null,null,null,0,0]
[null,6,"Collective Investment Vehicles",null,null,null,null,null,null,null,null,null,null,null,null,null,0,0]
[null,7,"Derivatives",null,null,null,null,null,null,null,null,null,null,null,null,null,0,0]
[null,8,"Funds withheld",null,null,null,null,null,null,null,null,null,null,null,null,null,0,0]
[null,9,"Segregated Accounts Assets",null,null,null,null,null,null,null,null,null,null,null,null,null,0,0]
[null,10,"Deposit Assets",null,null,null,null,null,null,null,null,null,null,null,null,null,0,0]
[null,11,"Other Sundry Assets",null,null,null,null,null,null,null,null,null,null,null,null,null,0,0]
[null,12,"Other Adjustment ",null,null,null,null,null,null,null,null,null,null,null,null,null,0,0]
[null,13,"Other Adjustment ",null,null,null,null,null,null,null,null,null,null,null,null,null,{"$f":"G22+I22+K22+M22+O22-E22","v":0},{"$f":"H22+J22+L22+N22+P22-F22","v":0}]
[null,14,"Other Adjustment ",null,null,null,null,null,null,null,null,null,null,null,null,null,0,0]
[null,15,"Other Adjustment ",null,null,null,null,null,null,null,null,null,null,null,null,null,0,0]
[null,16,"Other Adjustment ",null,null,null,null,null,null,null,null,null,null,null,null,null,0,0]
[null,17,"Other Adjustment ",null,null,null,null,null,null,null,null,null,null,null,null,null,0,0]
[null,18,"Calculated Balances",null,null,null,{"$f":"G10+SUM(G11:G26)-SUM(E11:E26)","v":0},{"$f":"H10+SUM(H11:H26)-SUM(F11:F26)","v":0},{"$f":"SUM(I10:I26)","v":0},0,0,0,0,0,0,0,0,0]
[null,null,"Balance after Look-Through adjustments",null,null,null,{"$f":"'Schedule IIB (EBS)'!X27","v":0},{"$f":"'Schedule IIB (EBS)'!X62","v":0},{"$f":"'Schedule IIC (EBS)'!X27","v":0},{"$f":"'Schedule IIC (EBS)'!X62","v":0},{"$f":"'Schedule IID (EBS)'!X27","v":0},{"$f":"'Schedule IID (EBS)'!X62","v":0},{"$f":"'Schedule IIE (EBS)'!X27","v":0},{"$f":"'Schedule IIE (EBS)'!X62","v":0},{"$f":"'Schedule IIF (EBS)'!X27","v":0},{"$f":"'Schedule IIF (EBS)'!X62","v":0},{"$f":"G28+I28+K28+M28+O28-E28","v":0},{"$f":"H28+J28+L28+N28+P28-F28","v":0}]
[]
[null,null,null,null,null,null,{"$f":"IF(ROUND((G28-G27),0)=0,\"TRUE\",\"FALSE\")","v":"TRUE"},{"$f":"IF(ROUND((H28-H27),0)=0,\"TRUE\",\"FALSE\")","v":"TRUE"},"TRUE","TRUE","TRUE","TRUE","TRUE","TRUE","TRUE","TRUE","TRUE","TRUE"]
[]
[null,null,null,null,null,null,{"$f":"G27-G28","v":0},{"$f":"H27-H28","v":0},0,0,0,0,0,0,0,0,0,0]
[]
[null,null,"A reconciliation of investments reported on Schedules IIB, IIC, IID, IIE and IIF to exposures in Equity Risk and Interest Rate Risk calculations taking into account look-through"]
[]
[null,null,"Adjustment Description",null,null,null,"Interest rate-sensitive investments","Investments sensitive to equity prices","Interest rate-sensitive investments","Investments sensitive to equity prices","Interest rate-sensitive investments","Investments sensitive to equity prices","Interest rate-sensitive investments","Investments sensitive to equity prices","Interest rate-sensitive investments","Investments sensitive to equity prices","Total - Interest rate-sensitive investments","Total - Investments sensitive to equity prices"]
[null,null,"Schedule IIB, IIC, IID, IIE & IIF Balances",null,null,null,{"$f":"'Schedule IIB (EBS)'!X27","v":0},{"$f":"'Schedule IIB (EBS)'!X62","v":0},{"$f":"'Schedule IIC (EBS)'!X27","v":0},{"$f":"'Schedule IIC (EBS)'!X62","v":0},{"$f":"'Schedule IID (EBS)'!X27","v":0},{"$f":"'Schedule IID (EBS)'!X62","v":0},{"$f":"'Schedule IIE (EBS)'!X27","v":0},{"$f":"'Schedule IIE (EBS)'!X62","v":0},{"$f":"'Schedule IIF (EBS)'!X27","v":0},{"$f":"'Schedule IIF (EBS)'!X62","v":0},{"$f":"G37+I37+K37+M37+O37","v":0},{"$f":"H37+J37+L37+N37+P37","v":0}]
[null,{"$f":"B27+1","v":19},"Cash and Cash Equivalents",null,null,null,null,null,null,null,null,null,null,null,null,null,{"$f":"G38+I38+K38+M38+O38","v":0},0]
[null,{"$f":"B38+1","v":20},"Derivatives not included in Schedules IIB-IIF",null,null,null,null,null,null,null,null,null,null,null,null,null,0,0]
[null,{"$f":"B39+1","v":21},"Other Interest/Equity sensitive items not included in Schedules IIB-IIF",null,null,null,null,null,null,null,null,null,null,null,null,null,0,0]
[null,22,"Other Interest/Equity sensitive items not included in Schedules IIB-IIF",null,null,null,null,null,null,null,null,null,null,null,null,null,0,0]
[null,23,"Other Interest/Equity sensitive items not included in Schedules IIB-IIF",null,null,null,null,null,null,null,null,null,null,null,null,null,0,0]
[null,24,"Other Interest/Equity sensitive items not included in Schedules IIB-IIF",null,null,null,null,null,null,null,null,null,null,null,null,null,0,0]
[null,25,"Other Interest/Equity sensitive items not included in Schedules IIB-IIF",null,null,null,null,null,null,null,null,null,null,null,null,null,0,0]
[null,26,"Other Interest/Equity sensitive items not included in Schedules IIB-IIF",null,null,null,null,null,null,null,null,null,null,null,null,null,0,0]
[null,27,"Other Interest/Equity sensitive items not included in Schedules IIB-IIF",null,null,null,null,null,null,null,null,null,null,null,null,null,0,0]
[null,28,"Other Interest/Equity sensitive items not included in Schedules IIB-IIF",null,null,null,null,null,null,null,null,null,null,null,null,null,0,0]
[null,29,"Other Interest/Equity sensitive items not included in Schedules IIB-IIF",null,null,null,null,null,null,null,null,null,null,null,null,null,0,0]
[null,30,"Other Interest/Equity sensitive items not included in Schedules IIB-IIF",null,null,null,null,null,null,null,null,null,null,null,null,null,0,0]
[null,31,"Exposures after adjustments",null,null,null,{"$f":"SUM(G37:G49)","v":0},{"$f":"SUM(H37:H49)","v":0},0,0,0,0,0,0,0,0,{"$f":"SUM(Q37:Q49)","v":0},{"$f":"SUM(R37:R49)","v":0}]
[null,null,"Total Exposure in Risk calculations",null,null,null,null,null,null,null,null,null,null,null,null,null,{"$f":"'Interest Rate-Liquidity (Rev.)'!C51","v":0},{"$f":"'Equity Investments'!D48+'Equity Investments'!F48+'Equity Investments'!H48","v":0}]
[]
[null,null,null,null,null,null,null,null,null,null,null,null,null,null,null,null,{"$f":"IF(ROUND((Q51-Q50),0)=0,\"TRUE\",\"FALSE\")","v":"TRUE"},{"$f":"IF(ROUND((R51-R50),0)=0,\"TRUE\",\"FALSE\")","v":"TRUE"}]
[null,null,"Interest rate-sensitive investments",null,"Total","Difference"]
[null,null,"Amount after Look-through",null,{"$f":"Q50","v":0},null,null,null,null,null,null,null,null,null,null,null,{"$f":"Q50-Q51","v":0},{"$f":"R50-R51","v":0}]
[null,null,"Amount in Interest Rate & Liquidity Risk calculation",null,{"$f":"'Interest Rate-Liquidity (Rev.)'!C51","v":0},{"$f":"E56-E55","v":0},{"$f":"IF(Summary!E60=\"Shock-Based Approach\",IF(ROUND(F56,0)=0,\"TRUE\",\"FALSE\"),\"N/A\")","v":"N/A"}]
[]
[]
[null,null,"Investments sensitive to equity prices",null,"Total","Difference"]
[null,null,"Amount after Look-through",null,{"$f":"R50","v":0}]
[null,null,"Amount in Equity Risk calculations",null,{"$f":"'Equity Investments'!D48+'Equity Investments'!F48+'Equity Investments'!H48","v":0},{"$f":"E61-E60","v":0},{"$f":"IF(ROUND(F61,0)=0,\"TRUE\",\"FALSE\")","v":"TRUE"}]

{"sheet":"Schedule IIB (EBS)","index":28,"n_rows":107,"n_cols":28,"rows_kept":107,"cut":false,"hidden":false,"merged":[[33,27,34,27],[81,11,81,20],[83,13,84,13],[83,15,84,15],[83,17,84,17],[83,19,84,19],[82,12,82,15],[82,16,82,19],[63,13,63,21],[63,3,63,11],[64,3,64,5],[64,7,64,9],[64,13,64,15],[64,17,64,19],[7,15,7,17],[7,23,7,25],[7,11,7,13],[7,19,7,21],[33,23,34,23],[33,7,33,13],[32,3,32,13],[33,3,34,5],[34,7,34,9],[34,11,34,13],[33,17,34,17],[33,19,34,19],[33,15,34,15],[32,15,32,19],[2,1,2,3],[3,3,3,5],[4,3,4,5],[7,3,7,5],[7,7,7,9]]}
[null,"SCHEDULE OF FIXED INCOME & EQUITY INVESTMENTS BY BSCR RATING",null,null,null,null,null,null,null,null,null,null,null,null,null,null,null,null,null,null,null,null,null,null,null,null,null,{"$f":"HYPERLINK(\"#'Index'!A1\",\"Return to Index\")","v":"Return to Index"}]
[]
[null,{"$f":"'Company Information'!C7","v":"Enter Company Name"}]
[null,"As at",null,{"$f":" TEXT('Company Information'!C3,\"d mmmm yyyy\")","v":"31 December 2023"},null,null,null,null,null,null,null,null,null,null,null,null,null,null,null,null,null,null,null,null,null,"SCHEDULE IIB (EBS)"]
[null,{"$f":"\"expressed in\"& IF(CONFIGURATION!$B$12>1,\" ['\"&MID(CONFIGURATION!$B$12,2,LEN(CONFIGURATION!$B$12))&\"s]\",\"\")","v":"expressed in ['000s]"},null,{"$f":"'Form 1EBS'!C4","v":"United States Dollars"}]
[]
[null,null,null,"(1)",null,"(2)",null,"(3)",null,"(4)",null,"(5)",null,"(6)",null,"(7)",null,"(8)",null,"(9)",null,"(10)",null,"(11)",null,"(12)"]
[null,null,null,"CORPORATE & SOVEREIGN BONDS",null,null,null,"RESIDENTIAL MORTGAGE-BACKED SECURITIES",null,null,null,"COMMERCIAL MORTGAGE-BACKED SECURITIES / ASSET-BACKED SECURITIES",null,null,null,"BOND MUTUAL FUNDS",null,null,null,"MORTGAGE LOANS",null,null,null,"TOTAL\n"]
[null,null,null,{"$f":"+'Form 1EBS'!$F$7","v":"2023-12-31"},null,{"$f":"+'Form 1EBS'!$H$7","v":"2022-12-31"},null,{"$f":"+'Form 1EBS'!$F$7","v":"2023-12-31"},null,{"$f":"+'Form 1EBS'!$H$7","v":"2022-12-31"},null,{"$f":"+'Form 1EBS'!$F$7","v":"2023-12-31"},null,{"$f":"+'Form 1EBS'!$H$7","v":"2022-12-31"},null,{"$f":"+'Form 1EBS'!$F$7","v":"2023-12-31"},null,{"$f":"+'Form 1EBS'!$H$7","v":"2022-12-31"},null,{"$f":"+'Form 1EBS'!$F$7","v":"2023-12-31"},null,{"$f":"+'Form 1EBS'!$H$7","v":"2022-12-31"},null,{"$f":"+'Form 1EBS'!$F$7","v":"2023-12-31"},null,{"$f":"+'Form 1EBS'!$H$7","v":"2022-12-31"}]
[null,null,null,{"$f":"+'Form 1EBS'!$F$8","v":" ('000s)"},null,{"$f":"+'Form 1EBS'!$H$8","v":" ('000s)"},null,{"$f":"+'Form 1EBS'!$F$8","v":" ('000s)"},null,{"$f":"+'Form 1EBS'!$H$8","v":" ('000s)"},null,{"$f":"+'Form 1EBS'!$F$8","v":" ('000s)"},null,{"$f":"+'Form 1EBS'!$H$8","v":" ('000s)"},null,{"$f":"+'Form 1EBS'!$F$8","v":" ('000s)"},null,{"$f":"+'Form 1EBS'!$H$8","v":" ('000s)"},null,{"$f":"+'Form 1EBS'!$F$8","v":" ('000s)"},null,{"$f":"+'Form 1EBS'!$H$8","v":" ('000s)"},null,{"$f":"+'Form 1EBS'!$F$8","v":" ('000s)"},null,{"$f":"+'Form 1EBS'!$H$8","v":" ('000s)"}]
[null,"Line no. "]
[null,"Quoted and Unquoted Bonds and Debentures"]
[null,1,"BSCR Rating 0",{"$f":"Import!M1410","v":0},null,{"$f":"Import!O1410","v":0},null,null,null,null,null,null,null,null,null,{"$f":"Import!M1435","v":0},null,{"$f":"Import!O1435","v":0},null,null,null,null,null,{"$f":"D13+H13+L13+P13","v":0},null,{"$f":"F13+J13+N13+R13","v":0}]
[null,2,"BSCR Rating 1",{"$f":"Import!M1411","v":0},null,{"$f":"Import!O1411","v":0},null,{"$f":"Import!M1419","v":0},null,{"$f":"Import!O1419","v":0},null,{"$f":"Import!M1427","v":0},null,{"$f":"Import!O1427","v":0},null,{"$f":"Import!M1436","v":0},null,{"$f":"Import!O1436","v":0},null,null,null,null,null,0,null,0]
[null,3,"BSCR Rating 2",{"$f":"Import!M1412","v":0},null,{"$f":"Import!O1412","v":0},null,{"$f":"Import!M1420","v":0},null,{"$f":"Import!O1420","v":0},null,{"$f":"Import!M1428","v":0},null,{"$f":"Import!O1428","v":0},null,{"$f":"Import!M1437","v":0},null,{"$f":"Import!O1437","v":0},null,null,null,null,null,0,null,0]
[null,4,"BSCR Rating 3",{"$f":"Import!M1413","v":0},null,{"$f":"Import!O1413","v":0},null,{"$f":"Import!M1421","v":0},null,{"$f":"Import!O1421","v":0},null,{"$f":"Import!M1429","v":0},null,{"$f":"Import!O1429","v":0},null,{"$f":"Import!M1438","v":0},null,{"$f":"Import!O1438","v":0},null,null,null,null,null,0,null,0]
[null,5,"BSCR Rating 4",{"$f":"Import!M1414","v":0},null,{"$f":"Import!O1414","v":0},null,{"$f":"Import!M1422","v":0},null,{"$f":"Import!O1422","v":0},null,{"$f":"Import!M1430","v":0},null,{"$f":"Import!O1430","v":0},null,{"$f":"Import!M1439","v":0},null,{"$f":"Import!O1439","v":0},null,null,null,null,null,0,null,0]
[null,6,"BSCR Rating 5",{"$f":"Import!M1415","v":0},null,{"$f":"Import!O1415","v":0},null,{"$f":"Import!M1423","v":0},null,{"$f":"Import!O1423","v":0},null,{"$f":"Import!M1431","v":0},null,{"$f":"Import!O1431","v":0},null,{"$f":"Import!M1440","v":0},null,{"$f":"Import!O1440","v":0},null,null,null,null,null,0,null,0]
[null,7,"BSCR Rating 6",{"$f":"Import!M1416","v":0},null,{"$f":"Import!O1416","v":0},null,{"$f":"Import!M1424","v":0},null,{"$f":"Import!O1424","v":0},null,{"$f":"Import!M1432","v":0},null,{"$f":"Import!O1432","v":0},null,{"$f":"Import!M1441","v":0},null,{"$f":"Import!O1441","v":0},null,null,null,null,null,0,null,0]
[null,8,"BSCR Rating 7",{"$f":"Import!M1417","v":0},null,{"$f":"Import!O1417","v":0},null,{"$f":"Import!M1425","v":0},null,{"$f":"Import!O1425","v":0},null,{"$f":"Import!M1433","v":0},null,{"$f":"Import!O1433","v":0},null,{"$f":"Import!M1442","v":0},null,{"$f":"Import!O1442","v":0},null,null,null,null,null,0,null,0]
[null,9,"BSCR Rating 8",{"$f":"Import!M1418","v":0},null,{"$f":"Import!O1418","v":0},null,{"$f":"Import!M1426","v":0},null,{"$f":"Import!O1426","v":0},null,{"$f":"Import!M1434","v":0},null,{"$f":"Import!O1434","v":0},null,{"$f":"Import!M1443","v":0},null,{"$f":"Import!O1443","v":0},null,null,null,null,null,{"$f":"D21+H21+L21+P21","v":0},null,{"$f":"F21+J21+N21+R21","v":0}]
[null,{"$f":"B21+1","v":10},"Insured/Guaranteed Mortgages",null,null,null,null,null,null,null,null,null,null,null,null,null,null,null,null,{"$f":"Import!M1444","v":0},null,{"$f":"Import!O1444","v":0},null,{"$f":"D22+H22+L22+P22+T22","v":0},null,{"$f":"F22+J22+N22+R22+V22","v":0}]
[null,{"$f":"B22+1","v":11},"Other Commercial and Farm Mortgages",null,null,null,null,null,null,null,null,null,null,null,null,null,null,null,null,{"$f":"Import!M1445","v":0},null,{"$f":"Import!O1445","v":0},null,{"$f":"D23+H23+L23+P23+T23","v":0},null,0]
[null,{"$f":"B23+1","v":12},"Other Residential Mortgages",null,null,null,null,null,null,null,null,null,null,null,null,null,null,null,null,{"$f":"Import!M1446","v":0},null,{"$f":"Import!O1446","v":0},null,0,null,0]
[null,{"$f":"B24+1","v":13},"Mortgages Not In Good Standing",null,null,null,null,null,null,null,null,null,null,null,null,null,null,null,null,{"$f":"Import!M1447","v":0},null,{"$f":"Import!O1447","v":0},null,0,null,0]
[]
[null,{"$f":"B25+1","v":14},"Total",{"$f":"SUM(D13:D21)","v":0},null,{"$f":"SUM(F13:F21)","v":0},null,{"$f":"SUM(H13:H21)","v":0},null,{"$f":"SUM(J13:J21)","v":0},null,{"$f":"SUM(L13:L21)","v":0},null,{"$f":"SUM(N13:N21)","v":0},null,{"$f":"SUM(P12:P21)","v":0},null,{"$f":"SUM(R12:R21)","v":0},null,{"$f":"SUM(T12:T25)","v":0},null,{"$f":"SUM(V12:V25)","v":0},null,{"$f":"SUM(X12:X25)","v":0},null,{"$f":"SUM(Z12:Z25)","v":0}]
[]
[null,null,null,null,null,null,null,null,null,null,null,null,null,null,null,null,null,null,null,{"$f":"IF((ROUND((X27-('Form 1EBS'!F13+'Form 1EBS'!F23)),0))=0,TRUE,FALSE)","v":true},null,{"$f":"IF((ROUND((Z27-('Form 1EBS'!H13+'Form 1EBS'!H23)),0))=0,TRUE,FALSE)","v":true}]
[]
[null,null,null,null,null,null,null,null,null,null,null,null,null,null,null," ",null,null,null,{"$f":"('Form 1EBS'!F13+'Form 1EBS'!F23)-X27","v":0},null,{"$f":"('Form 1EBS'!H13+'Form 1EBS'!H23)-Z27","v":0}]
[]
[null,null,null,"ASSETS",null,null,null,null,null,null,null,null,null,null,null,"Liabilities"]
[null,null,null,"Long Exposures",null,null,null,"Short Exposures",null,null,null,null,null,null,null,null,null,"Without Management Actions",null,"With Management Actions",null,null,null,"Total Assets Before Shock",null,null,null,"Shocks"]
[null,null,null,null,null,null,null,"Qualifying as Assets held for risk-mitigation purposes",null,null,null,"Not Qualifying as Assets held for risk-mitigation purposes",null,null,null,null,null,null,null,null,null,null,null,null,null,null,null,"Shocks"]
[null,null,null,"Before Shock",null,"After Shock",null,"Before Shock",null,"After Shock",null,"Before Shock",null,"After Shock",null,"Before Shock",null,"After Shock",null,"After Shock"]
[null,null,null,{"$f":"+'Form 1EBS'!$F$8","v":" ('000s)"},null,{"$f":"+'Form 1EBS'!$F$8","v":" ('000s)"},null,{"$f":"+'Form 1EBS'!$H$8","v":" ('000s)"},null,{"$f":"+'Form 1EBS'!$H$8","v":" ('000s)"},null,{"$f":"+'Form 1EBS'!$F$8","v":" ('000s)"},null,{"$f":"+'Form 1EBS'!$F$8","v":" ('000s)"},null,{"$f":"+'Form 1EBS'!$H$8","v":" ('000s)"},null,{"$f":"+'Form 1EBS'!$H$8","v":" ('000s)"},null,{"$f":"+'Form 1EBS'!$F$8","v":" ('000s)"},null,null,null,{"$f":"+'Form 1EBS'!$F$8","v":" ('000s)"}]
[null,"Equity Holdings "]
[null,{"$f":"B27+1","v":15},"Strategic Holdings - Listed",{"$f":"Import!M1448","v":0},null,{"$f":"IF(OR(Import!M1470=0,Import!M1470=\"\"),(1-$AB39)*D39,Import!M1470)","v":0},null,{"$f":"Import!M1492","v":0},null,{"$f":"IF(OR(Import!M1514=0,Import!M1514=\"\"),(1-$AB39)*H39,Import!M1514)","v":0},null,{"$f":"Import!M1536","v":0},null,{"$f":"IF(OR(Import!M1558=0,Import!M1558=\"\"),(1-$AB39)*L39,Import!M1558)","v":0},null,{"$f":"Import!M1580","v":0},null,{"$f":"IF(OR(Import!M1602=0,Import!M1602=\"\"),P39,Import!M1602)","v":0},null,{"$f":"IF(OR(Import!M1624=0,Import!M1624=\"\"),R39,Import!M1624)","v":0},null,null,null,{"$f":"D39+H39+L39","v":0},null,null,null,0.2]
[null,{"$f":"B39+1","v":16},"Duration Based",{"$f":"Import!M1449","v":0},null,{"$f":"IF(OR(Import!M1471=0,Import!M1471=\"\"),(1-$AB40)*D40,Import!M1471)","v":0},null,{"$f":"Import!M1493","v":0},null,{"$f":"IF(OR(Import!M1515=0,Import!M1515=\"\"),(1-$AB40)*H40,Import!M1515)","v":0},null,{"$f":"Import!M1537","v":0},null,{"$f":"IF(OR(Import!M1559=0,Import!M1559=\"\"),(1-$AB40)*L40,Import!M1559)","v":0},null,{"$f":"Import!M1581","v":0},null,{"$f":"IF(OR(Import!M1603=0,Import!M1603=\"\"),P40,Import!M1603)","v":0},null,{"$f":"IF(OR(Import!M1625=0,Import!M1625=\"\"),R40,Import!M1625)","v":0},null,null,null,{"$f":"D40+H40+L40","v":0},null,null,null,0.2]
[null,17,"Listed Equity Securities in Developed Markets",{"$f":"Import!M1450","v":0},null,{"$f":"IF(OR(Import!M1472=0,Import!M1472=\"\"),(1-$AB41)*D41,Import!M1472)","v":0},null,{"$f":"Import!M1494","v":0},null,{"$f":"IF(OR(Import!M1516=0,Import!M1516=\"\"),(1-$AB41)*H41,Import!M1516)","v":0},null,{"$f":"Import!M1538","v":0},null,{"$f":"IF(OR(Import!M1560=0,Import!M1560=\"\"),(1-$AB41)*L41,Import!M1560)","v":0},null,{"$f":"Import!M1582","v":0},null,{"$f":"IF(OR(Import!M1604=0,Import!M1604=\"\"),P41,Import!M1604)","v":0},null,{"$f":"IF(OR(Import!M1626=0,Import!M1626=\"\"),R41,Import!M1626)","v":0},null,null,null,0,null,null,null,0.35]
[null,18,"Preferred Stocks, BSCR Rating 1",{"$f":"Import!M1451","v":0},null,{"$f":"IF(OR(Import!M1473=0,Import!M1473=\"\"),(1-$AB42)*D42,Import!M1473)","v":0},null,{"$f":"Import!M1495","v":0},null,{"$f":"IF(OR(Import!M1517=0,Import!M1517=\"\"),(1-$AB42)*H42,Import!M1517)","v":0},null,{"$f":"Import!M1539","v":0},null,{"$f":"IF(OR(Import!M1561=0,Import!M1561=\"\"),(1-$AB42)*L42,Import!M1561)","v":0},null,null,null,{"$f":"IF(OR(Import!M1605=0,Import!M1605=\"\"),P42,Import!M1605)","v":0},null,{"$f":"IF(OR(Import!M1627=0,Import!M1627=\"\"),R42,Import!M1627)","v":0},null,null,null,0,null,null,null,6.0000000000000001E-3]
[null,19,"Preferred Stocks, BSCR Rating 2",{"$f":"Import!M1452","v":0},null,{"$f":"IF(OR(Import!M1474=0,Import!M1474=\"\"),(1-$AB43)*D43,Import!M1474)","v":0},null,{"$f":"Import!M1496","v":0},null,{"$f":"IF(OR(Import!M1518=0,Import!M1518=\"\"),(1-$AB43)*H43,Import!M1518)","v":0},null,{"$f":"Import!M1540","v":0},null,{"$f":"IF(OR(Import!M1562=0,Import!M1562=\"\"),(1-$AB43)*L43,Import!M1562)","v":0},null,{"$f":"Import!M1584","v":0},null,{"$f":"IF(OR(Import!M1606=0,Import!M1606=\"\"),P43,Import!M1606)","v":0},null,{"$f":"IF(OR(Import!M1628=0,Import!M1628=\"\"),R43,Import!M1628)","v":0},null,null,null,0,null,null,null,1.2E-2]
[null,20,"Preferred Stocks, BSCR Rating 3",{"$f":"Import!M1453","v":0},null,{"$f":"IF(OR(Import!M1475=0,Import!M1475=\"\"),(1-$AB44)*D44,Import!M1475)","v":0},null,{"$f":"Import!M1497","v":0},null,{"$f":"IF(OR(Import!M1519=0,Import!M1519=\"\"),(1-$AB44)*H44,Import!M1519)","v":0},null,{"$f":"Import!M1541","v":0},null,{"$f":"IF(OR(Import!M1563=0,Import!M1563=\"\"),(1-$AB44)*L44,Import!M1563)","v":0},null,{"$f":"Import!M1585","v":0},null,{"$f":"IF(OR(Import!M1607=0,Import!M1607=\"\"),P44,Import!M1607)","v":0},null,{"$f":"IF(OR(Import!M1629=0,Import!M1629=\"\"),R44,Import!M1629)","v":0},null,null,null,0,null,null,null,0.02]
[null,21,"Preferred Stocks, BSCR Rating 4",{"$f":"Import!M1454","v":0},null,{"$f":"IF(OR(Import!M1476=0,Import!M1476=\"\"),(1-$AB45)*D45,Import!M1476)","v":0},null,{"$f":"Import!M1498","v":0},null,{"$f":"IF(OR(Import!M1520=0,Import!M1520=\"\"),(1-$AB45)*H45,Import!M1520)","v":0},null,{"$f":"Import!M1542","v":0},null,{"$f":"IF(OR(Import!M1564=0,Import!M1564=\"\"),(1-$AB45)*L45,Import!M1564)","v":0},null,{"$f":"Import!M1586","v":0},null,{"$f":"IF(OR(Import!M1608=0,Import!M1608=\"\"),P45,Import!M1608)","v":0},null,{"$f":"IF(OR(Import!M1630=0,Import!M1630=\"\"),R45,Import!M1630)","v":0},null,null,null,0,null,null,null,0.04]
[null,22,"Preferred Stocks, BSCR Rating 5",{"$f":"Import!M1455","v":0},null,{"$f":"IF(OR(Import!M1477=0,Import!M1477=\"\"),(1-$AB46)*D46,Import!M1477)","v":0},null,{"$f":"Import!M1499","v":0},null,{"$f":"IF(OR(Import!M1521=0,Import!M1521=\"\"),(1-$AB46)*H46,Import!M1521)","v":0},null,{"$f":"Import!M1543","v":0},null,{"$f":"IF(OR(Import!M1565=0,Import!M1565=\"\"),(1-$AB46)*L46,Import!M1565)","v":0},null,{"$f":"Import!M1587","v":0},null,{"$f":"IF(OR(Import!M1609=0,Import!M1609=\"\"),P46,Import!M1609)","v":0},null,{"$f":"IF(OR(Import!M1631=0,Import!M1631=\"\"),R46,Import!M1631)","v":0},null,null,null,0,null,null,null,0.11]
[null,23,"Preferred Stocks, BSCR Rating 6",{"$f":"Import!M1456","v":0},null,{"$f":"IF(OR(Import!M1478=0,Import!M1478=\"\"),(1-$AB47)*D47,Import!M1478)","v":0},null,{"$f":"Import!M1500","v":0},null,{"$f":"IF(OR(Import!M1522=0,Import!M1522=\"\"),(1-$AB47)*H47,Import!M1522)","v":0},null,{"$f":"Import!M1544","v":0},null,{"$f":"IF(OR(Import!M1566=0,Import!M1566=\"\"),(1-$AB47)*L47,Import!M1566)","v":0},null,{"$f":"Import!M1588","v":0},null,{"$f":"IF(OR(Import!M1610=0,Import!M1610=\"\"),P47,Import!M1610)","v":0},null,{"$f":"IF(OR(Import!M1632=0,Import!M1632=\"\"),R47,Import!M1632)","v":0},null,null,null,0,null,null,null,0.25]
[null,24,"Preferred Stocks, BSCR Rating 7",{"$f":"Import!M1457","v":0},null,{"$f":"IF(OR(Import!M1479=0,Import!M1479=\"\"),(1-$AB48)*D48,Import!M1479)","v":0},null,{"$f":"Import!M1501","v":0},null,{"$f":"IF(OR(Import!M1523=0,Import!M1523=\"\"),(1-$AB48)*H48,Import!M1523)","v":0},null,{"$f":"Import!M1545","v":0},null,{"$f":"IF(OR(Import!M1567=0,Import!M1567=\"\"),(1-$AB48)*L48,Import!M1567)","v":0},null,{"$f":"Import!M1589","v":0},null,{"$f":"IF(OR(Import!M1611=0,Import!M1611=\"\"),P48,Import!M1611)","v":0},null,{"$f":"IF(OR(Import!M1633=0,Import!M1633=\"\"),R48,Import!M1633)","v":0},null,null,null,0,null,null,null,0.35]
[null,25,"Preferred Stocks, BSCR Rating 8",{"$f":"Import!M1458","v":0},null,{"$f":"IF(OR(Import!M1480=0,Import!M1480=\"\"),(1-$AB49)*D49,Import!M1480)","v":0},null,{"$f":"Import!M1502","v":0},null,{"$f":"IF(OR(Import!M1524=0,Import!M1524=\"\"),(1-$AB49)*H49,Import!M1524)","v":0},null,{"$f":"Import!M1546","v":0},null,{"$f":"IF(OR(Import!M1568=0,Import!M1568=\"\"),(1-$AB49)*L49,Import!M1568)","v":0},null,{"$f":"Import!M1590","v":0},null,{"$f":"IF(OR(Import!M1612=0,Import!M1612=\"\"),P49,Import!M1612)","v":0},null,{"$f":"IF(OR(Import!M1634=0,Import!M1634=\"\"),R49,Import!M1634)","v":0},null,null,null,0,null,null,null,0.35]
[null,26,"Equity Derivatives on Type 1 Equities",{"$f":"Import!M1459","v":0},null,{"$f":"Import!M1481","v":0},null,{"$f":"Import!M1503","v":0},null,{"$f":"Import!M1525","v":0},null,{"$f":"Import!M1547","v":0},null,{"$f":"Import!M1569","v":0},null,{"$f":"Import!M1591","v":0},null,{"$f":"IF(OR(Import!M1613=0,Import!M1613=\"\"),P50,Import!M1613)","v":0},null,{"$f":"IF(OR(Import!M1635=0,Import!M1635=\"\"),R50,Import!M1635)","v":0},null,null,null,0,null,null,null,0.35]
[null,27,"Strategic Holdings - Unlisted",{"$f":"Import!M1460","v":0},null,{"$f":"IF(OR(Import!M1482=0,Import!M1482=\"\"),(1-$AB51)*D51,Import!M1482)","v":0},null,{"$f":"Import!M1504","v":0},null,{"$f":"IF(OR(Import!M1526=0,Import!M1526=\"\"),(1-$AB51)*H51,Import!M1526)","v":0},null,{"$f":"Import!M1548","v":0},null,{"$f":"IF(OR(Import!M1570=0,Import!M1570=\"\"),(1-$AB51)*L51,Import!M1570)","v":0},null,{"$f":"Import!M1592","v":0},null,{"$f":"IF(OR(Import!M1614=0,Import!M1614=\"\"),P51,Import!M1614)","v":0},null,{"$f":"IF(OR(Import!M1636=0,Import!M1636=\"\"),R51,Import!M1636)","v":0},null,null,null,0,null,null,null,0.2]
[null,28,"Other Equities / Other Assets",{"$f":"Import!M1461","v":0},null,{"$f":"IF(OR(Import!M1483=0,Import!M1483=\"\"),(1-$AB52)*D52,Import!M1483)","v":0},null,{"$f":"Import!M1505","v":0},null,{"$f":"IF(OR(Import!M1527=0,Import!M1527=\"\"),(1-$AB52)*H52,Import!M1527)","v":0},null,{"$f":"Import!M1549","v":0},null,{"$f":"IF(OR(Import!M1571=0,Import!M1571=\"\"),(1-$AB52)*L52,Import!M1571)","v":0},null,{"$f":"Import!M1593","v":0},null,{"$f":"IF(OR(Import!M1615=0,Import!M1615=\"\"),P52,Import!M1615)","v":0},null,{"$f":"IF(OR(Import!M1637=0,Import!M1637=\"\"),R52,Import!M1637)","v":0},null,null,null,0,null,null,null,0.45]
[null,29,"Letters of Credit",{"$f":"Import!M1462","v":0},null,{"$f":"IF(OR(Import!M1484=0,Import!M1484=\"\"),(1-$AB53)*D53,Import!M1484)","v":0},null,{"$f":"Import!M1506","v":0},null,{"$f":"IF(OR(Import!M1528=0,Import!M1528=\"\"),(1-$AB53)*H53,Import!M1528)","v":0},null,{"$f":"Import!M1550","v":0},null,{"$f":"IF(OR(Import!M1572=0,Import!M1572=\"\"),(1-$AB53)*L53,Import!M1572)","v":0},null,{"$f":"Import!M1594","v":0},null,{"$f":"IF(OR(Import!M1616=0,Import!M1616=\"\"),P53,Import!M1616)","v":0},null,{"$f":"IF(OR(Import!M1638=0,Import!M1638=\"\"),R53,Import!M1638)","v":0},null,null,null,0,null,null,null,0.2]
[null,30,"Intangible assets",{"$f":"Import!M1463","v":0},null,{"$f":"IF(OR(Import!M1485=0,Import!M1485=\"\"),(1-$AB54)*D54,Import!M1485)","v":0},null,{"$f":"Import!M1507","v":0},null,{"$f":"IF(OR(Import!M1529=0,Import!M1529=\"\"),(1-$AB54)*H54,Import!M1529)","v":0},null,{"$f":"Import!M1551","v":0},null,{"$f":"IF(OR(Import!M1573=0,Import!M1573=\"\"),(1-$AB54)*L54,Import!M1573)","v":0},null,{"$f":"Import!M1595","v":0},null,{"$f":"IF(OR(Import!M1617=0,Import!M1617=\"\"),P54,Import!M1617)","v":0},null,{"$f":"IF(OR(Import!M1639=0,Import!M1639=\"\"),R54,Import!M1639)","v":0},null,null,null,0,null,null,null,0.2]
[null,31,"Pension Benefit Surplus",{"$f":"Import!M1464","v":0},null,{"$f":"IF(OR(Import!M1486=0,Import!M1486=\"\"),(1-$AB55)*D55,Import!M1486)","v":0},null,{"$f":"Import!M1508","v":0},null,{"$f":"IF(OR(Import!M1530=0,Import!M1530=\"\"),(1-$AB55)*H55,Import!M1530)","v":0},null,{"$f":"Import!M1552","v":0},null,{"$f":"IF(OR(Import!M1574=0,Import!M1574=\"\"),(1-$AB55)*L55,Import!M1574)","v":0},null,{"$f":"Import!M1596","v":0},null,{"$f":"IF(OR(Import!M1618=0,Import!M1618=\"\"),P55,Import!M1618)","v":0},null,{"$f":"IF(OR(Import!M1640=0,Import!M1640=\"\"),R55,Import!M1640)","v":0},null,null,null,0,null,null,null,0.2]
[null,32,"Equity Derivatives on Type 2 Equities",{"$f":"Import!M1465","v":0},null,{"$f":"Import!M1487","v":0},null,{"$f":"Import!M1509","v":0},null,{"$f":"Import!M1531","v":0},null,{"$f":"Import!M1553","v":0},null,{"$f":"Import!M1575","v":0},null,{"$f":"Import!M1597","v":0},null,{"$f":"IF(OR(Import!M1619=0,Import!M1619=\"\"),P56,Import!M1619)","v":0},null,{"$f":"IF(OR(Import!M1641=0,Import!M1641=\"\"),R56,Import!M1641)","v":0},null,null,null,0,null,null,null,0.45]
[null,33,"Infrastructure",{"$f":"Import!M1466","v":0},null,{"$f":"IF(OR(Import!M1488=0,Import!M1488=\"\"),(1-$AB57)*D57,Import!M1488)","v":0},null,{"$f":"Import!M1510","v":0},null,{"$f":"IF(OR(Import!M1532=0,Import!M1532=\"\"),(1-$AB57)*H57,Import!M1532)","v":0},null,{"$f":"Import!M1554","v":0},null,{"$f":"IF(OR(Import!M1576=0,Import!M1576=\"\"),(1-$AB57)*L57,Import!M1576)","v":0},null,{"$f":"Import!M1598","v":0},null,{"$f":"IF(OR(Import!M1620=0,Import!M1620=\"\"),P57,Import!M1620)","v":0},null,{"$f":"IF(OR(Import!M1642=0,Import!M1642=\"\"),R57,Import!M1642)","v":0},null,null,null,0,null,null,null,0.25]
[null,34,"Derivatives on Infrastructure",{"$f":"Import!M1467","v":0},null,{"$f":"Import!M1489","v":0},null,{"$f":"Import!M1511","v":0},null,{"$f":"Import!M1533","v":0},null,{"$f":"Import!M1555","v":0},null,{"$f":"Import!M1577","v":0},null,{"$f":"Import!M1599","v":0},null,{"$f":"IF(OR(Import!M1621=0,Import!M1621=\"\"),P58,Import!M1621)","v":0},null,{"$f":"IF(OR(Import!M1643=0,Import!M1643=\"\"),R58,Import!M1643)","v":0},null,null,null,0,null,null,null,0.25]
[null,35,"Equity Real Estate 1",{"$f":"Import!M1468","v":0},null,{"$f":"IF(OR(Import!M1490=0,Import!M1490=\"\"),(1-$AB59)*D59,Import!M1490)","v":0},null,{"$f":"Import!M1512","v":0},null,{"$f":"IF(OR(Import!M1534=0,Import!M1534=\"\"),(1-$AB59)*H59,Import!M1534)","v":0},null,{"$f":"Import!M1556","v":0},null,{"$f":"IF(OR(Import!M1578=0,Import!M1578=\"\"),(1-$AB59)*L59,Import!M1578)","v":0},null,{"$f":"Import!M1600","v":0},null,{"$f":"IF(OR(Import!M1622=0,Import!M1622=\"\"),P59,Import!M1622)","v":0},null,{"$f":"IF(OR(Import!M1644=0,Import!M1644=\"\"),R59,Import!M1644)","v":0},null,null,null,0,null,null,null,0.1]
[null,36,"Equity Real Estate 2",{"$f":"Import!M1469","v":0},null,{"$f":"IF(OR(Import!M1491=0,Import!M1491=\"\"),(1-$AB60)*D60,Import!M1491)","v":0},null,{"$f":"Import!M1513","v":0},null,{"$f":"IF(OR(Import!M1535=0,Import!M1535=\"\"),(1-$AB60)*H60,Import!M1535)","v":0},null,{"$f":"Import!M1557","v":0},null,{"$f":"IF(OR(Import!M1579=0,Import!M1579=\"\"),(1-$AB60)*L60,Import!M1579)","v":0},null,{"$f":"Import!M1601","v":0},null,{"$f":"IF(OR(Import!M1623=0,Import!M1623=\"\"),P60,Import!M1623)","v":0},null,{"$f":"IF(OR(Import!M1645=0,Import!M1645=\"\"),R60,Import!M1645)","v":0},null,null,null,0,null,null,null,0.2]
[]
[null,{"$f":"B60+1","v":37},"Total Equity Holdings",{"$f":"SUM(D38:D61)","v":0},null,{"$f":"SUM(F38:F61)","v":0},null,{"$f":"SUM(H38:H61)","v":0},null,{"$f":"SUM(J38:J61)","v":0},null,{"$f":"SUM(L38:L61)","v":0},null,{"$f":"SUM(N38:N61)","v":0},null,{"$f":"SUM(P38:P61)","v":0},null,{"$f":"SUM(R38:R61)","v":0},null,{"$f":"SUM(T38:T61)","v":0},null,null,null,{"$f":"SUM(X38:X61)","v":0}]
[]
[null,null,null,"Spread Up",null,null,null,null,null,null,null,null,null,"Spread Down"]
[null,null,null,"Long Exposures",null,null,null,"Short Exposures",null,null,null,"Shock (bps)",null,"Long Exposures",null,null,null,"Short Exposures",null,null,{"$f":"SUM(K69:K77)","v":0},"Shock Rates"]
[null,null,null,"Before Shock",null,"After Shock",null,"Before Shock",null,"After Shock",null,null,null,"Before Shock",null,"After Shock",null,"Before Shock",null,"After Shock"]
[null,null,"Spread Risk for Credit Derivatives",null,null,null,null,null,null,null,null,null,null,null,null,null,{"$f":"SUM(G71:G79)","v":0},null,{"$f":"SUM(I71:I79)","v":0},null,{"$f":"SUM(K71:K79)","v":0}]
[null,{"$f":"B62+1","v":38},"BSCR Rating 0",{"$f":"Import!M1646","v":0},null,{"$f":"Import!M1655","v":0},null,{"$f":"Import!M1664","v":0},null,{"$f":"Import!M1673","v":0},null,0,null,{"$f":"Import!M1682","v":0},null,{"$f":"Import!M1691","v":0},{"$f":"SUM(G72:G80)","v":0},{"$f":"Import!M1700","v":0},{"$f":"SUM(I72:I80)","v":0},{"$f":"Import!M1709","v":0},{"$f":"SUM(K72:K80)","v":0},0]
[null,{"$f":"B68+1","v":39},"BSCR Rating 1",{"$f":"Import!M1647","v":0},null,{"$f":"Import!M1656","v":0},null,{"$f":"Import!M1665","v":0},null,{"$f":"Import!M1674","v":0},null,130,null,{"$f":"Import!M1683","v":0},null,{"$f":"Import!M1692","v":0},{"$f":"SUM(G73:G80)","v":0},{"$f":"Import!M1701","v":0},{"$f":"SUM(I73:I80)","v":0},{"$f":"Import!M1710","v":0},{"$f":"SUM(K73:K80)","v":0},-0.75]
[null,{"$f":"B69+1","v":40},"BSCR Rating 2",{"$f":"Import!M1648","v":0},null,{"$f":"Import!M1657","v":0},null,{"$f":"Import!M1666","v":0},null,{"$f":"Import!M1675","v":0},null,150,null,{"$f":"Import!M1684","v":0},null,{"$f":"Import!M1693","v":0},{"$f":"SUM(G74:G80)","v":0},{"$f":"Import!M1702","v":0},{"$f":"SUM(I74:I80)","v":0},{"$f":"Import!M1711","v":0},{"$f":"SUM(K74:K80)","v":0},-0.75]
[null,41,"BSCR Rating 3",{"$f":"Import!M1649","v":0},null,{"$f":"Import!M1658","v":0},null,{"$f":"Import!M1667","v":0},null,{"$f":"Import!M1676","v":0},null,260,null,{"$f":"Import!M1685","v":0},null,{"$f":"Import!M1694","v":0},{"$f":"SUM(G75:G80)","v":0},{"$f":"Import!M1703","v":0},{"$f":"SUM(I75:I80)","v":0},{"$f":"Import!M1712","v":0},{"$f":"SUM(K75:K80)","v":0},-0.75]
[null,42,"BSCR Rating 4",{"$f":"Import!M1650","v":0},null,{"$f":"Import!M1659","v":0},null,{"$f":"Import!M1668","v":0},null,{"$f":"Import!M1677","v":0},null,450,null,{"$f":"Import!M1686","v":0},null,{"$f":"Import!M1695","v":0},{"$f":"SUM(G76:G80)","v":0},{"$f":"Import!M1704","v":0},{"$f":"SUM(I76:I80)","v":0},{"$f":"Import!M1713","v":0},{"$f":"SUM(K76:K80)","v":0},-0.75]
[null,43,"BSCR Rating 5",{"$f":"Import!M1651","v":0},null,{"$f":"Import!M1660","v":0},null,{"$f":"Import!M1669","v":0},null,{"$f":"Import!M1678","v":0},null,840,null,{"$f":"Import!M1687","v":0},null,{"$f":"Import!M1696","v":0},{"$f":"SUM(G77:G80)","v":0},{"$f":"Import!M1705","v":0},{"$f":"SUM(I77:I80)","v":0},{"$f":"Import!M1714","v":0},{"$f":"SUM(K77:K80)","v":0},-0.75]
[null,44,"BSCR Rating 6",{"$f":"Import!M1652","v":0},null,{"$f":"Import!M1661","v":0},null,{"$f":"Import!M1670","v":0},null,{"$f":"Import!M1679","v":0},null,1620,null,{"$f":"Import!M1688","v":0},null,{"$f":"Import!M1697","v":0},{"$f":"SUM(G78:G80)","v":0},{"$f":"Import!M1706","v":0},{"$f":"SUM(I78:I80)","v":0},{"$f":"Import!M1715","v":0},{"$f":"SUM(K78:K80)","v":0},-0.75]
[null,45,"BSCR Rating 7",{"$f":"Import!M1653","v":0},null,{"$f":"Import!M1662","v":0},null,{"$f":"Import!M1671","v":0},null,{"$f":"Import!M1680","v":0},null,1620,null,{"$f":"Import!M1689","v":0},null,{"$f":"Import!M1698","v":0},{"$f":"SUM(Q64:Q74)","v":0},{"$f":"Import!M1707","v":0},{"$f":"SUM(S64:S74)","v":0},{"$f":"Import!M1716","v":0},{"$f":"SUM(U64:U74)","v":0},-0.75]
[null,46,"BSCR Rating 8",{"$f":"Import!M1654","v":0},null,{"$f":"Import!M1663","v":0},null,{"$f":"Import!M1672","v":0},null,{"$f":"Import!M1681","v":0},null,1620,null,{"$f":"Import!M1690","v":0},null,{"$f":"Import!M1699","v":0},{"$f":"SUM(Q66:Q75)","v":0},{"$f":"Import!M1708","v":0},{"$f":"SUM(S66:S75)","v":0},{"$f":"Import!M1717","v":0},{"$f":"SUM(U66:U75)","v":0},-0.75]
[null,47,"Total Spread",{"$f":"SUM(D67:D76)","v":0},null,{"$f":"SUM(F67:F76)","v":0},null,{"$f":"SUM(H67:H76)","v":0},null,{"$f":"SUM(J67:J76)","v":0},null,null,null,{"$f":"SUM(N67:N76)","v":0},null,{"$f":"SUM(P67:P76)","v":0},{"$f":"SUM(Q67:Q76)","v":0},{"$f":"SUM(R67:R76)","v":0},{"$f":"SUM(S67:S76)","v":0},{"$f":"SUM(T67:T76)","v":0},{"$f":"SUM(U67:U76)","v":0}]
[]
[null,null,"Spread Risk Check",null,null,null,null,null,null,null,null,null,null,{"$f":"IF(ROUND(D77-N77,0)=0,\"Yes\",\"No\")","v":"Yes"},null,null,null,{"$f":"IF(ROUND(H77-R77,0)=0,\"Yes\",\"No\")","v":"Yes"}]
[null,null,"Difference",null,null,null,null,null,null,null,null,null,null,{"$f":"ROUND(D77-N77,0)","v":0},null,null,null,{"$f":"ROUND(H77-R77,0)","v":0}]
[]
[null,null,null,"Market Value of Derivatives with Positive Market Value",null,"Market Value of Derivatives with Negative Market Value",null,"Market Value of Collateral, Excluding any over-collateralization",null,null,null,"This Section is Only Applicable to Companies that have Mortgage Backed Securities that have been Reclassified in Accordance with the NAIC and that elect to use NAIC reclassifications to map to the BSCR classes"]
[null,null,"Counterparty Default Risk for OTC Derivatives",null,null,null,null,null,null,null,null,null,"VALUES OF RESIDENTIAL MORTGAGE BACKED SECURITIES",null,null,null,"VALUES OF COMMERCIAL MORTGAGE BACKED SECURITIES / ASSET BACKED SECURITIES"]
[null,{"$f":"B77+1","v":48},"BSCR Rating 0",{"$f":"Import!M1718","v":0},null,{"$f":"Import!M1727","v":0},null,{"$f":"Import!M1736","v":0},null,null,null,null,null,"Original Classification",null,"Revised Classification",null,"Original Classification",null,"Revised Classification"]
[null,{"$f":"B84+1","v":49},"BSCR Rating 1",{"$f":"Import!M1719","v":0},null,{"$f":"Import!M1728","v":0},null,{"$f":"Import!M1737","v":0}]
[null,{"$f":"B85+1","v":50},"BSCR Rating 2",{"$f":"Import!M1720","v":0},null,{"$f":"Import!M1729","v":0},null,{"$f":"Import!M1738","v":0},null,null,null,"NAIC Class 1",null,{"$f":"Import!M1746","v":0},null,{"$f":"Import!M1753","v":0},null,{"$f":"Import!M1760","v":0},null,{"$f":"Import!M1767","v":0}]
[null,51,"BSCR Rating 3",{"$f":"Import!M1721","v":0},null,{"$f":"Import!M1730","v":0},null,{"$f":"Import!M1739","v":0},null,null,null,"NAIC Class 2",null,{"$f":"Import!M1747","v":0},null,{"$f":"Import!M1754","v":0},null,{"$f":"Import!M1761","v":0},null,{"$f":"Import!M1768","v":0}]
[null,52,"BSCR Rating 4",{"$f":"Import!M1722","v":0},null,{"$f":"Import!M1731","v":0},null,{"$f":"Import!M1740","v":0},null,null,null,"NAIC Class 3",null,{"$f":"Import!M1748","v":0},null,{"$f":"Import!M1755","v":0},null,{"$f":"Import!M1762","v":0},null,{"$f":"Import!M1769","v":0}]
[null,53,"BSCR Rating 5",{"$f":"Import!M1723","v":0},null,{"$f":"Import!M1732","v":0},null,{"$f":"Import!M1741","v":0},null,null,null,"NAIC Class 4",null,{"$f":"Import!M1749","v":0},null,{"$f":"Import!M1756","v":0},null,{"$f":"Import!M1763","v":0},null,{"$f":"Import!M1770","v":0}]
[null,54,"BSCR Rating 6",{"$f":"Import!M1724","v":0},null,{"$f":"Import!M1733","v":0},null,{"$f":"Import!M1742","v":0},null,null,null,"NAIC Class 5",null,{"$f":"Import!M1750","v":0},null,{"$f":"Import!M1757","v":0},null,{"$f":"Import!M1764","v":0},null,{"$f":"Import!M1771","v":0}]
[null,55,"BSCR Rating 7",{"$f":"Import!M1725","v":0},null,{"$f":"Import!M1734","v":0},null,{"$f":"Import!M1743","v":0},null,null,null,"NAIC Class 6",null,{"$f":"Import!M1751","v":0},null,{"$f":"Import!M1758","v":0},null,{"$f":"Import!M1765","v":0},null,{"$f":"Import!M1772","v":0}]
[null,56,"BSCR Rating 8",{"$f":"Import!M1726","v":0},null,{"$f":"Import!M1735","v":0},null,{"$f":"Import!M1744","v":0},null,null,null,{"$f":"IF('Company Information'!$F$11=\"Class 3A\",HYPERLINK(\"#'Attachments'!G45\",\"Attach file\"),HYPERLINK(\"#'Attachments'!G65\",\"Attach file\"))","v":"Attach file"},null,{"$f":"SUM(N86:N91)","v":0},null,{"$f":"SUM(P86:P91)","v":0},null,{"$f":"SUM(R86:R91)","v":0},null,{"$f":"SUM(T86:T91)","v":0}]
[null,57,"Total Default Risk for OTC Derivatives ",{"$f":"SUM(D83:D92)","v":0},null,{"$f":"SUM(F83:F92)","v":0},null,{"$f":"SUM(H83:H92)","v":0},null,null,null,null,null,null,{"$f":"SUM(N86:N91)","v":0},null,{"$f":"SUM(P86:P91)","v":0},null,{"$f":"SUM(R86:R91)","v":0}]
[]
[null,{"$f":"B93+1","v":58},"Cash and Cash Equivalents",{"$f":"Import!M1745","v":0}]
[]
[null,{"$f":"B95+1","v":59},"Total Fixed Income & Equity Investments",{"$f":"X27+X62+D77+H77+D93+F93+H93+D95","v":0}]
[]
[null,null,"Please include in the table below any assets, included in this Schedule, for which NAIC ratings were used to map to the BSCR rating classes"]
[null,null,"Information on the use of NAIC ratings\n(for disclosure purposes only)","CORPORATE & SOVEREIGN BONDS",null,"RESIDENTIAL MORTGAGE-BACKED SECURITIES",null,"COMMERCIAL MORTGAGE-BACKED SECURITIES / ASSET-BACKED SECURITIES",null,"BOND MUTUAL FUNDS",null,"MORTGAGE LOANS",null,"PREFERRED STOCKS",null,"OTHER ASSETS"]
[null,null,"NAIC Class 1",{"$f":"Import!M1774","v":0},null,{"$f":"Import!M1781","v":0},null,{"$f":"Import!M1788","v":0},null,{"$f":"Import!M1795","v":0},null,{"$f":"Import!M1802","v":0},null,{"$f":"Import!M1809","v":0},null,{"$f":"Import!M1816","v":0}]
[null,null,"NAIC Class 2",{"$f":"Import!M1775","v":0},null,{"$f":"Import!M1782","v":0},null,{"$f":"Import!M1789","v":0},null,{"$f":"Import!M1796","v":0},null,{"$f":"Import!M1803","v":0},null,{"$f":"Import!M1810","v":0},null,{"$f":"Import!M1817","v":0}]
[null,null,"NAIC Class 3",{"$f":"Import!M1776","v":0},null,{"$f":"Import!M1783","v":0},null,{"$f":"Import!M1790","v":0},null,{"$f":"Import!M1797","v":0},null,{"$f":"Import!M1804","v":0},null,{"$f":"Import!M1811","v":0},null,{"$f":"Import!M1818","v":0}]
[null,null,"NAIC Class 4",{"$f":"Import!M1777","v":0},null,{"$f":"Import!M1784","v":0},null,{"$f":"Import!M1791","v":0},null,{"$f":"Import!M1798","v":0},null,{"$f":"Import!M1805","v":0},null,{"$f":"Import!M1812","v":0},null,{"$f":"Import!M1819","v":0}]
[null,null,"NAIC Class 5",{"$f":"Import!M1778","v":0},null,{"$f":"Import!M1785","v":0},null,{"$f":"Import!M1792","v":0},null,{"$f":"Import!M1799","v":0},null,{"$f":"Import!M1806","v":0},null,{"$f":"Import!M1813","v":0},null,{"$f":"Import!M1820","v":0}]
[null,null,"NAIC Class 6",{"$f":"Import!M1779","v":0},null,{"$f":"Import!M1786","v":0},null,{"$f":"Import!M1793","v":0},null,{"$f":"Import!M1800","v":0},null,{"$f":"Import!M1807","v":0},null,{"$f":"Import!M1814","v":0},null,{"$f":"Import!M1821","v":0}]
[null,null,null,{"$f":"SUM(D101:D106)","v":0},null,{"$f":"SUM(F101:F106)","v":0},null,{"$f":"SUM(H101:H106)","v":0},null,{"$f":"SUM(J101:J106)","v":0},null,{"$f":"SUM(L101:L106)","v":0},null,{"$f":"SUM(N101:N106)","v":0},null,{"$f":"SUM(P101:P106)","v":0}]

{"sheet":"Schedule IIC (EBS)","index":29,"n_rows":107,"n_cols":28,"rows_kept":107,"cut":false,"hidden":false,"merged":[[33,27,34,27],[2,1,2,3],[3,3,3,5],[4,3,4,5],[7,3,7,5],[7,7,7,9],[33,23,34,23],[33,15,34,15],[33,17,34,17],[33,19,34,19],[7,23,7,25],[64,17,64,19],[63,3,63,11],[63,13,63,21],[7,19,7,21],[32,3,32,13],[7,15,7,17],[32,15,32,19],[34,7,34,9],[34,11,34,13],[33,3,34,5],[33,7,33,13],[7,11,7,13],[64,3,64,5],[64,7,64,9],[64,13,64,15]]}
[null,"SCHEDULE OF FUNDS HELD",null,null,null,null,null,null,null,null,null,null,null,null,null,null,null,null,null,null,null,null,null,null,null,null,null,{"$f":"HYPERLINK(\"#'Index'!A1\",\"Return to Index\")","v":"Return to Index"}]
[]
[null,{"$f":"+'Company Information'!C7","v":"Enter Company Name"}]
[null,"As at",null,{"$f":" TEXT('Company Information'!C3,\"d mmmm yyyy\")","v":"31 December 2023"},null,null,null,null,null,null,null,null,null,null,null,null,null,null,null,null,null,null,null,null,null,"SCHEDULE IIC (EBS)"]
[null,{"$f":"+'Form 1EBS'!B4","v":"expressed in ['000s]"},null,{"$f":"+'Form 1EBS'!C4","v":"United States Dollars"}]
[]
[null,null,null,"(1)",null,"(2)",null,"(3)",null,"(4)",null,"(5)",null,"(6)",null,"(7)",null,"(8)",null,"(9)",null,"(10)",null,"(11)",null,"(12)"]
[null,null,null,"Corporate & Sovereign Bonds",null,null,null,"Residential Mortgage Backed Securities",null,null,null,"Commercial Mortgage Backed Securities / Asset- Backed Securities",null,null,null,"Bond Mutual Funds",null,null,null,"Mortgage Loans",null,null,null,"TOTAL"]
[null,null,null,{"$f":"+'Form 1EBS'!$F$7","v":"2023-12-31"},null,{"$f":"+'Form 1EBS'!$H$7","v":"2022-12-31"},null,{"$f":"+'Form 1EBS'!$F$7","v":"2023-12-31"},null,{"$f":"+'Form 1EBS'!$H$7","v":"2022-12-31"},null,{"$f":"+'Form 1EBS'!$F$7","v":"2023-12-31"},null,{"$f":"+'Form 1EBS'!$H$7","v":"2022-12-31"},null,{"$f":"+'Form 1EBS'!$F$7","v":"2023-12-31"},null,{"$f":"+'Form 1EBS'!$H$7","v":"2022-12-31"},null,{"$f":"+'Form 1EBS'!$F$7","v":"2023-12-31"},null,{"$f":"+'Form 1EBS'!$H$7","v":"2022-12-31"},null,{"$f":"+'Form 1EBS'!$F$7","v":"2023-12-31"},null,{"$f":"+'Form 1EBS'!$H$7","v":"2022-12-31"}]
[null,null,null,{"$f":"+'Form 1EBS'!$F$8","v":" ('000s)"},null,{"$f":"+'Form 1EBS'!$F$8","v":" ('000s)"},null,{"$f":"+'Form 1EBS'!$F$8","v":" ('000s)"},null,{"$f":"+'Form 1EBS'!$F$8","v":" ('000s)"},null,{"$f":"+'Form 1EBS'!$F$8","v":" ('000s)"},null,{"$f":"+'Form 1EBS'!$F$8","v":" ('000s)"},null,{"$f":"+'Form 1EBS'!$F$8","v":" ('000s)"},null,{"$f":"+'Form 1EBS'!$F$8","v":" ('000s)"},null,{"$f":"+'Form 1EBS'!$F$8","v":" ('000s)"},null,{"$f":"+'Form 1EBS'!$F$8","v":" ('000s)"},null,{"$f":"+'Form 1EBS'!$F$8","v":" ('000s)"},null,{"$f":"+'Form 1EBS'!$H$8","v":" ('000s)"}]
[null,"Line no. "]
[null,"Quoted and Unquoted Bonds and Debentures"]
[null,1,"BSCR Rating 0",{"$f":"Import!M1824","v":0},null,{"$f":"Import!O1824","v":0},null,null,null,null,null,null,null,null,null,{"$f":"Import!M1849","v":0},null,{"$f":"Import!O1849","v":0},null,null,null,null,null,{"$f":"D13+H13+L13+P13","v":0},null,{"$f":"F13+J13+N13+R13","v":0}]
[null,2,"BSCR Rating 1",{"$f":"Import!M1825","v":0},null,{"$f":"Import!O1825","v":0},null,{"$f":"Import!M1833","v":0},null,{"$f":"Import!O1833","v":0},null,{"$f":"Import!M1841","v":0},null,{"$f":"Import!O1841","v":0},null,{"$f":"Import!M1850","v":0},null,{"$f":"Import!O1850","v":0},null,null,null,null,null,{"$f":"D14+H14+L14+P14","v":0},null,0]
[null,3,"BSCR Rating 2",{"$f":"Import!M1826","v":0},null,{"$f":"Import!O1826","v":0},null,{"$f":"Import!M1834","v":0},null,{"$f":"Import!O1834","v":0},null,{"$f":"Import!M1842","v":0},null,{"$f":"Import!O1842","v":0},null,{"$f":"Import!M1851","v":0},null,{"$f":"Import!O1851","v":0},null,null,null,null,null,0,null,0]
[null,4,"BSCR Rating 3",{"$f":"Import!M1827","v":0},null,{"$f":"Import!O1827","v":0},null,{"$f":"Import!M1835","v":0},null,{"$f":"Import!O1835","v":0},null,{"$f":"Import!M1843","v":0},null,{"$f":"Import!O1843","v":0},null,{"$f":"Import!M1852","v":0},null,{"$f":"Import!O1852","v":0},null,null,null,null,null,0,null,0]
[null,5,"BSCR Rating 4",{"$f":"Import!M1828","v":0},null,{"$f":"Import!O1828","v":0},null,{"$f":"Import!M1836","v":0},null,{"$f":"Import!O1836","v":0},null,{"$f":"Import!M1844","v":0},null,{"$f":"Import!O1844","v":0},null,{"$f":"Import!M1853","v":0},null,{"$f":"Import!O1853","v":0},null,null,null,null,null,0,null,0]
[null,6,"BSCR Rating 5",{"$f":"Import!M1829","v":0},null,{"$f":"Import!O1829","v":0},null,{"$f":"Import!M1837","v":0},null,{"$f":"Import!O1837","v":0},null,{"$f":"Import!M1845","v":0},null,{"$f":"Import!O1845","v":0},null,{"$f":"Import!M1854","v":0},null,{"$f":"Import!O1854","v":0},null,null,null,null,null,0,null,0]
[null,7,"BSCR Rating 6",{"$f":"Import!M1830","v":0},null,{"$f":"Import!O1830","v":0},null,{"$f":"Import!M1838","v":0},null,{"$f":"Import!O1838","v":0},null,{"$f":"Import!M1846","v":0},null,{"$f":"Import!O1846","v":0},null,{"$f":"Import!M1855","v":0},null,{"$f":"Import!O1855","v":0},null,null,null,null,null,0,null,0]
[null,8,"BSCR Rating 7",{"$f":"Import!M1831","v":0},null,{"$f":"Import!O1831","v":0},null,{"$f":"Import!M1839","v":0},null,{"$f":"Import!O1839","v":0},null,{"$f":"Import!M1847","v":0},null,{"$f":"Import!O1847","v":0},null,{"$f":"Import!M1856","v":0},null,{"$f":"Import!O1856","v":0},null,null,null,null,null,0,null,0]
[null,9,"BSCR Rating 8",{"$f":"Import!M1832","v":0},null,{"$f":"Import!O1832","v":0},null,{"$f":"Import!M1840","v":0},null,{"$f":"Import!O1840","v":0},null,{"$f":"Import!M1848","v":0},null,{"$f":"Import!O1848","v":0},null,{"$f":"Import!M1857","v":0},null,{"$f":"Import!O1857","v":0},null,null,null,null,null,{"$f":"D21+H21+L21+P21","v":0},null,{"$f":"F21+J21+N21+R21","v":0}]
[null,{"$f":"B21+1","v":10},"Insured/Guaranteed Mortgages",null,null,null,null,null,null,null,null,null,null,null,null,null,null,null,null,{"$f":"Import!M1858","v":0},null,{"$f":"Import!O1858","v":0},null,{"$f":"D22+H22+L22+P22+T22","v":0},null,{"$f":"F22+J22+N22+R22+V22","v":0}]
[null,{"$f":"B22+1","v":11},"Other Commercial and Farm Mortgages",null,null,null,null,null,null,null,null,null,null,null,null,null,null,null,null,{"$f":"Import!M1859","v":0},null,{"$f":"Import!O1859","v":0},null,{"$f":"D23+H23+L23+P23+T23","v":0},null,0]
[null,{"$f":"B23+1","v":12},"Other Residential Mortgages",null,null,null,null,null,null,null,null,null,null,null,null,null,null,null,null,{"$f":"Import!M1860","v":0},null,{"$f":"Import!O1860","v":0},null,{"$f":"D24+H24+L24+P24+T24","v":0},null,{"$f":"F24+J24+N24+R24+V24","v":0}]
[null,13,"Mortgages Not In Good Standing",null,null,null,null,null,null,null,null,null,null,null,null,null,null,null,null,{"$f":"Import!M1861","v":0},null,{"$f":"Import!O1861","v":0},null,0,null,0]
[]
[null,{"$f":"B25+1","v":14},"Total",{"$f":"SUM(D13:D21)","v":0},null,{"$f":"SUM(F13:F21)","v":0},null,{"$f":"SUM(H13:H21)","v":0},null,{"$f":"SUM(J13:J21)","v":0},null,{"$f":"SUM(L13:L21)","v":0},null,{"$f":"SUM(N13:N21)","v":0},null,{"$f":"SUM(P13:P21)","v":0},null,{"$f":"SUM(R13:R21)","v":0},null,{"$f":"SUM(T13:T26)","v":0},null,{"$f":"SUM(V13:V26)","v":0},null,{"$f":"SUM(X13:X26)","v":0},null,{"$f":"SUM(Z13:Z26)","v":0}]
[]
[]
[]
[]
[]
[null,null,null,"ASSETS",null,null,null,null,null,null,null,null,null,null,null,"Liabilities"]
[null,null,null,"Long Exposures",null,null,null,"Short Exposures",null,null,null,null,null,null,null,null,null,"Without Management Actions",null,"With Management Actions",null,null,null,"Total Assets Before Shock",null,null,null,"Shocks"]
[null,null,null,null,null,null,null,"Qualifying as Assets held for risk-mitigation purposes",null,null,null,"Not Qualifying as Assets held for risk-mitigation purposes",null,null,null,null,null,null,null,null,null,null,null,null,null,null,null,"Shocks"]
[null,null,null,"Before Shock",null,"After Shock",null,"Before Shock",null,"After Shock",null,"Before Shock",null,"After Shock",null,"Before Shock",null,"After Shock",null,"After Shock"]
[null,null,null,{"$f":"+'Form 1EBS'!$F$8","v":" ('000s)"},null,{"$f":"+'Form 1EBS'!$F$8","v":" ('000s)"},null,{"$f":"+'Form 1EBS'!$H$8","v":" ('000s)"},null,{"$f":"+'Form 1EBS'!$H$8","v":" ('000s)"},null,{"$f":"+'Form 1EBS'!$F$8","v":" ('000s)"},null,{"$f":"+'Form 1EBS'!$F$8","v":" ('000s)"},null,{"$f":"+'Form 1EBS'!$H$8","v":" ('000s)"},null,{"$f":"+'Form 1EBS'!$H$8","v":" ('000s)"},null,{"$f":"+'Form 1EBS'!$F$8","v":" ('000s)"},null,null,null,{"$f":"+'Form 1EBS'!$F$8","v":" ('000s)"}]
[null,"Equity Holdings "]
[null,{"$f":"B27+1","v":15},"Strategic Holdings - Listed",{"$f":"Import!M1862","v":0},null,{"$f":"IF(OR(Import!M1884=0,Import!M1884=\"\"),(1-$AB39)*D39,Import!M1884)","v":0},null,{"$f":"Import!M1906","v":0},null,{"$f":"IF(OR(Import!M1928=0,Import!M1928=\"\"),(1-$AB39)*H39,Import!M1928)","v":0},null,{"$f":"Import!M1950","v":0},null,{"$f":"IF(OR(Import!M1972=0,Import!M1972=\"\"),(1-$AB39)*L39,Import!M1972)","v":0},null,{"$f":"Import!M1994","v":0},null,{"$f":"IF(OR(Import!M2016=0,Import!M2016=\"\"),P39,Import!M2016)","v":0},null,{"$f":"IF(OR(Import!M2038=0,Import!M2038=\"\"),R39,Import!M2038)","v":0},null,null,null,{"$f":"D39+H39+L39","v":0},null,null,null,0.2]
[null,{"$f":"B39+1","v":16},"Duration Based",{"$f":"Import!M1863","v":0},null,{"$f":"IF(OR(Import!M1885=0,Import!M1885=\"\"),(1-$AB40)*D40,Import!M1885)","v":0},null,{"$f":"Import!M1907","v":0},null,{"$f":"IF(OR(Import!M1929=0,Import!M1929=\"\"),(1-$AB40)*H40,Import!M1929)","v":0},null,{"$f":"Import!M1951","v":0},null,{"$f":"IF(OR(Import!M1973=0,Import!M1973=\"\"),(1-$AB40)*L40,Import!M1973)","v":0},null,{"$f":"Import!M1995","v":0},null,{"$f":"IF(OR(Import!M2017=0,Import!M2017=\"\"),P40,Import!M2017)","v":0},null,{"$f":"IF(OR(Import!M2039=0,Import!M2039=\"\"),R40,Import!M2039)","v":0},null,null,null,{"$f":"D40+H40+L40","v":0},null,null,null,0.2]
[null,17,"Listed Equity Securities in Developed Markets",{"$f":"Import!M1864","v":0},null,{"$f":"IF(OR(Import!M1886=0,Import!M1886=\"\"),(1-$AB41)*D41,Import!M1886)","v":0},null,{"$f":"Import!M1908","v":0},null,{"$f":"IF(OR(Import!M1930=0,Import!M1930=\"\"),(1-$AB41)*H41,Import!M1930)","v":0},null,{"$f":"Import!M1952","v":0},null,{"$f":"IF(OR(Import!M1974=0,Import!M1974=\"\"),(1-$AB41)*L41,Import!M1974)","v":0},null,{"$f":"Import!M1996","v":0},null,{"$f":"IF(OR(Import!M2018=0,Import!M2018=\"\"),P41,Import!M2018)","v":0},null,{"$f":"IF(OR(Import!M2040=0,Import!M2040=\"\"),R41,Import!M2040)","v":0},null,null,null,0,null,null,null,0.35]
[null,18,"Preferred Stocks, BSCR Rating 1",{"$f":"Import!M1865","v":0},null,{"$f":"IF(OR(Import!M1887=0,Import!M1887=\"\"),(1-$AB42)*D42,Import!M1887)","v":0},null,{"$f":"Import!M1909","v":0},null,{"$f":"IF(OR(Import!M1931=0,Import!M1931=\"\"),(1-$AB42)*H42,Import!M1931)","v":0},null,{"$f":"Import!M1953","v":0},null,{"$f":"IF(OR(Import!M1975=0,Import!M1975=\"\"),(1-$AB42)*L42,Import!M1975)","v":0},null,{"$f":"Import!M1997","v":0},null,{"$f":"IF(OR(Import!M2019=0,Import!M2019=\"\"),P42,Import!M2019)","v":0},null,{"$f":"IF(OR(Import!M2041=0,Import!M2041=\"\"),R42,Import!M2041)","v":0},null,null,null,0,null,null,null,6.0000000000000001E-3]
[null,19,"Preferred Stocks, BSCR Rating 2",{"$f":"Import!M1866","v":0},null,{"$f":"IF(OR(Import!M1888=0,Import!M1888=\"\"),(1-$AB43)*D43,Import!M1888)","v":0},null,{"$f":"Import!M1910","v":0},null,{"$f":"IF(OR(Import!M1932=0,Import!M1932=\"\"),(1-$AB43)*H43,Import!M1932)","v":0},null,{"$f":"Import!M1954","v":0},null,{"$f":"IF(OR(Import!M1976=0,Import!M1976=\"\"),(1-$AB43)*L43,Import!M1976)","v":0},null,{"$f":"Import!M1998","v":0},null,{"$f":"IF(OR(Import!M2020=0,Import!M2020=\"\"),P43,Import!M2020)","v":0},null,{"$f":"IF(OR(Import!M2042=0,Import!M2042=\"\"),R43,Import!M2042)","v":0},null,null,null,0,null,null,null,1.2E-2]
[null,20,"Preferred Stocks, BSCR Rating 3",{"$f":"Import!M1867","v":0},null,{"$f":"IF(OR(Import!M1889=0,Import!M1889=\"\"),(1-$AB44)*D44,Import!M1889)","v":0},null,{"$f":"Import!M1911","v":0},null,{"$f":"IF(OR(Import!M1933=0,Import!M1933=\"\"),(1-$AB44)*H44,Import!M1933)","v":0},null,{"$f":"Import!M1955","v":0},null,{"$f":"IF(OR(Import!M1977=0,Import!M1977=\"\"),(1-$AB44)*L44,Import!M1977)","v":0},null,{"$f":"Import!M1999","v":0},null,{"$f":"IF(OR(Import!M2021=0,Import!M2021=\"\"),P44,Import!M2021)","v":0},null,{"$f":"IF(OR(Import!M2043=0,Import!M2043=\"\"),R44,Import!M2043)","v":0},null,null,null,0,null,null,null,0.02]
[null,21,"Preferred Stocks, BSCR Rating 4",{"$f":"Import!M1868","v":0},null,{"$f":"IF(OR(Import!M1890=0,Import!M1890=\"\"),(1-$AB45)*D45,Import!M1890)","v":0},null,{"$f":"Import!M1912","v":0},null,{"$f":"IF(OR(Import!M1934=0,Import!M1934=\"\"),(1-$AB45)*H45,Import!M1934)","v":0},null,{"$f":"Import!M1956","v":0},null,{"$f":"IF(OR(Import!M1978=0,Import!M1978=\"\"),(1-$AB45)*L45,Import!M1978)","v":0},null,{"$f":"Import!M2000","v":0},null,{"$f":"IF(OR(Import!M2022=0,Import!M2022=\"\"),P45,Import!M2022)","v":0},null,{"$f":"IF(OR(Import!M2044=0,Import!M2044=\"\"),R45,Import!M2044)","v":0},null,null,null,0,null,null,null,0.04]
[null,22,"Preferred Stocks, BSCR Rating 5",{"$f":"Import!M1869","v":0},null,{"$f":"IF(OR(Import!M1891=0,Import!M1891=\"\"),(1-$AB46)*D46,Import!M1891)","v":0},null,{"$f":"Import!M1913","v":0},null,{"$f":"IF(OR(Import!M1935=0,Import!M1935=\"\"),(1-$AB46)*H46,Import!M1935)","v":0},null,{"$f":"Import!M1957","v":0},null,{"$f":"IF(OR(Import!M1979=0,Import!M1979=\"\"),(1-$AB46)*L46,Import!M1979)","v":0},null,{"$f":"Import!M2001","v":0},null,{"$f":"IF(OR(Import!M2023=0,Import!M2023=\"\"),P46,Import!M2023)","v":0},null,{"$f":"IF(OR(Import!M2045=0,Import!M2045=\"\"),R46,Import!M2045)","v":0},null,null,null,0,null,null,null,0.11]
[null,23,"Preferred Stocks, BSCR Rating 6",{"$f":"Import!M1870","v":0},null,{"$f":"IF(OR(Import!M1892=0,Import!M1892=\"\"),(1-$AB47)*D47,Import!M1892)","v":0},null,{"$f":"Import!M1914","v":0},null,{"$f":"IF(OR(Import!M1936=0,Import!M1936=\"\"),(1-$AB47)*H47,Import!M1936)","v":0},null,{"$f":"Import!M1958","v":0},null,{"$f":"IF(OR(Import!M1980=0,Import!M1980=\"\"),(1-$AB47)*L47,Import!M1980)","v":0},null,{"$f":"Import!M2002","v":0},null,{"$f":"IF(OR(Import!M2024=0,Import!M2024=\"\"),P47,Import!M2024)","v":0},null,{"$f":"IF(OR(Import!M2046=0,Import!M2046=\"\"),R47,Import!M2046)","v":0},null,null,null,0,null,null,null,0.25]
[null,24,"Preferred Stocks, BSCR Rating 7",{"$f":"Import!M1871","v":0},null,{"$f":"IF(OR(Import!M1893=0,Import!M1893=\"\"),(1-$AB48)*D48,Import!M1893)","v":0},null,{"$f":"Import!M1915","v":0},null,{"$f":"IF(OR(Import!M1937=0,Import!M1937=\"\"),(1-$AB48)*H48,Import!M1937)","v":0},null,{"$f":"Import!M1959","v":0},null,{"$f":"IF(OR(Import!M1981=0,Import!M1981=\"\"),(1-$AB48)*L48,Import!M1981)","v":0},null,{"$f":"Import!M2003","v":0},null,{"$f":"IF(OR(Import!M2025=0,Import!M2025=\"\"),P48,Import!M2025)","v":0},null,{"$f":"IF(OR(Import!M2047=0,Import!M2047=\"\"),R48,Import!M2047)","v":0},null,null,null,0,null,null,null,0.35]
[null,25,"Preferred Stocks, BSCR Rating 8",{"$f":"Import!M1872","v":0},null,{"$f":"IF(OR(Import!M1894=0,Import!M1894=\"\"),(1-$AB49)*D49,Import!M1894)","v":0},null,{"$f":"Import!M1916","v":0},null,{"$f":"IF(OR(Import!M1938=0,Import!M1938=\"\"),(1-$AB49)*H49,Import!M1938)","v":0},null,{"$f":"Import!M1960","v":0},null,{"$f":"IF(OR(Import!M1982=0,Import!M1982=\"\"),(1-$AB49)*L49,Import!M1982)","v":0},null,{"$f":"Import!M2004","v":0},null,{"$f":"IF(OR(Import!M2026=0,Import!M2026=\"\"),P49,Import!M2026)","v":0},null,{"$f":"IF(OR(Import!M2048=0,Import!M2048=\"\"),R49,Import!M2048)","v":0},null,null,null,0,null,null,null,0.35]
[null,26,"Equity Derivatives on Type 1 Equities",{"$f":"Import!M1873","v":0},null,{"$f":"Import!M1895","v":0},null,{"$f":"Import!M1917","v":0},null,{"$f":"Import!M1939","v":0},null,{"$f":"Import!M1961","v":0},null,{"$f":"Import!M1983","v":0},null,{"$f":"Import!M2005","v":0},null,{"$f":"IF(OR(Import!M2027=0,Import!M2027=\"\"),P50,Import!M2027)","v":0},null,{"$f":"IF(OR(Import!M2049=0,Import!M2049=\"\"),R50,Import!M2049)","v":0},null,null,null,0,null,null,null,0.35]
[null,27,"Strategic Holdings - Unlisted",{"$f":"Import!M1874","v":0},null,{"$f":"IF(OR(Import!M1896=0,Import!M1896=\"\"),(1-$AB51)*D51,Import!M1896)","v":0},null,{"$f":"Import!M1918","v":0},null,{"$f":"IF(OR(Import!M1940=0,Import!M1940=\"\"),(1-$AB51)*H51,Import!M1940)","v":0},null,{"$f":"Import!M1962","v":0},null,{"$f":"IF(OR(Import!M1984=0,Import!M1984=\"\"),(1-$AB51)*L51,Import!M1984)","v":0},null,{"$f":"Import!M2006","v":0},null,{"$f":"IF(OR(Import!M2028=0,Import!M2028=\"\"),P51,Import!M2028)","v":0},null,{"$f":"IF(OR(Import!M2050=0,Import!M2050=\"\"),R51,Import!M2050)","v":0},null,null,null,0,null,null,null,0.2]
[null,28,"Other Equities / Other Assets",{"$f":"Import!M1875","v":0},null,{"$f":"IF(OR(Import!M1897=0,Import!M1897=\"\"),(1-$AB52)*D52,Import!M1897)","v":0},null,{"$f":"Import!M1919","v":0},null,{"$f":"IF(OR(Import!M1941=0,Import!M1941=\"\"),(1-$AB52)*H52,Import!M1941)","v":0},null,{"$f":"Import!M1963","v":0},null,{"$f":"IF(OR(Import!M1985=0,Import!M1985=\"\"),(1-$AB52)*L52,Import!M1985)","v":0},null,{"$f":"Import!M2007","v":0},null,{"$f":"IF(OR(Import!M2029=0,Import!M2029=\"\"),P52,Import!M2029)","v":0},null,{"$f":"IF(OR(Import!M2051=0,Import!M2051=\"\"),R52,Import!M2051)","v":0},null,null,null,0,null,null,null,0.45]
[null,29,"Letters of Credit",{"$f":"Import!M1876","v":0},null,{"$f":"IF(OR(Import!M1898=0,Import!M1898=\"\"),(1-$AB53)*D53,Import!M1898)","v":0},null,{"$f":"Import!M1920","v":0},null,{"$f":"IF(OR(Import!M1942=0,Import!M1942=\"\"),(1-$AB53)*H53,Import!M1942)","v":0},null,{"$f":"Import!M1964","v":0},null,{"$f":"IF(OR(Import!M1986=0,Import!M1986=\"\"),(1-$AB53)*L53,Import!M1986)","v":0},null,{"$f":"Import!M2008","v":0},null,{"$f":"IF(OR(Import!M2030=0,Import!M2030=\"\"),P53,Import!M2030)","v":0},null,{"$f":"IF(OR(Import!M2052=0,Import!M2052=\"\"),R53,Import!M2052)","v":0},null,null,null,0,null,null,null,0.2]
[null,30,"Intangible assets",{"$f":"Import!M1877","v":0},null,{"$f":"IF(OR(Import!M1899=0,Import!M1899=\"\"),(1-$AB54)*D54,Import!M1899)","v":0},null,{"$f":"Import!M1921","v":0},null,{"$f":"IF(OR(Import!M1943=0,Import!M1943=\"\"),(1-$AB54)*H54,Import!M1943)","v":0},null,{"$f":"Import!M1965","v":0},null,{"$f":"IF(OR(Import!M1987=0,Import!M1987=\"\"),(1-$AB54)*L54,Import!M1987)","v":0},null,{"$f":"Import!M2009","v":0},null,{"$f":"IF(OR(Import!M2031=0,Import!M2031=\"\"),P54,Import!M2031)","v":0},null,{"$f":"IF(OR(Import!M2053=0,Import!M2053=\"\"),R54,Import!M2053)","v":0},null,null,null,0,null,null,null,0.2]
[null,31,"Pension Benefit Surplus",{"$f":"Import!M1878","v":0},null,{"$f":"IF(OR(Import!M1900=0,Import!M1900=\"\"),(1-$AB55)*D55,Import!M1900)","v":0},null,{"$f":"Import!M1922","v":0},null,{"$f":"IF(OR(Import!M1944=0,Import!M1944=\"\"),(1-$AB55)*H55,Import!M1944)","v":0},null,{"$f":"Import!M1966","v":0},null,{"$f":"IF(OR(Import!M1988=0,Import!M1988=\"\"),(1-$AB55)*L55,Import!M1988)","v":0},null,{"$f":"Import!M2010","v":0},null,{"$f":"IF(OR(Import!M2032=0,Import!M2032=\"\"),P55,Import!M2032)","v":0},null,{"$f":"IF(OR(Import!M2054=0,Import!M2054=\"\"),R55,Import!M2054)","v":0},null,null,null,0,null,null,null,0.2]
[null,32,"Equity Derivatives on Type 2 Equities",{"$f":"Import!M1879","v":0},null,{"$f":"Import!M1901","v":0},null,{"$f":"Import!M1923","v":0},null,{"$f":"Import!M1945","v":0},null,{"$f":"Import!M1967","v":0},null,{"$f":"Import!M1989","v":0},null,{"$f":"Import!M2011","v":0},null,{"$f":"IF(OR(Import!M2033=0,Import!M2033=\"\"),P56,Import!M2033)","v":0},null,{"$f":"IF(OR(Import!M2055=0,Import!M2055=\"\"),R56,Import!M2055)","v":0},null,null,null,0,null,null,null,0.45]
[null,33,"Infrastructure",{"$f":"Import!M1880","v":0},null,{"$f":"IF(OR(Import!M1902=0,Import!M1902=\"\"),(1-$AB57)*D57,Import!M1902)","v":0},null,{"$f":"Import!M1924","v":0},null,{"$f":"IF(OR(Import!M1946=0,Import!M1946=\"\"),(1-$AB57)*H57,Import!M1946)","v":0},null,{"$f":"Import!M1968","v":0},null,{"$f":"IF(OR(Import!M1990=0,Import!M1990=\"\"),(1-$AB57)*L57,Import!M1990)","v":0},null,{"$f":"Import!M2012","v":0},null,{"$f":"IF(OR(Import!M2034=0,Import!M2034=\"\"),P57,Import!M2034)","v":0},null,{"$f":"IF(OR(Import!M2056=0,Import!M2056=\"\"),R57,Import!M2056)","v":0},null,null,null,0,null,null,null,0.25]
[null,34,"Derivatives on Infrastructure",{"$f":"Import!M1881","v":0},null,{"$f":"Import!M1903","v":0},null,{"$f":"Import!M1925","v":0},null,{"$f":"Import!M1947","v":0},null,{"$f":"Import!M1969","v":0},null,{"$f":"Import!M1991","v":0},null,{"$f":"Import!M2013","v":0},null,{"$f":"IF(OR(Import!M2035=0,Import!M2035=\"\"),P58,Import!M2035)","v":0},null,{"$f":"IF(OR(Import!M2057=0,Import!M2057=\"\"),R58,Import!M2057)","v":0},null,null,null,0,null,null,null,0.25]
[null,35,"Equity Real Estate 1",{"$f":"Import!M1882","v":0},null,{"$f":"IF(OR(Import!M1904=0,Import!M1904=\"\"),(1-$AB59)*D59,Import!M1904)","v":0},null,{"$f":"Import!M1926","v":0},null,{"$f":"IF(OR(Import!M1948=0,Import!M1948=\"\"),(1-$AB59)*H59,Import!M1948)","v":0},null,{"$f":"Import!M1970","v":0},null,{"$f":"IF(OR(Import!M1992=0,Import!M1992=\"\"),(1-$AB59)*L59,Import!M1992)","v":0},null,{"$f":"Import!M2014","v":0},null,{"$f":"IF(OR(Import!M2036=0,Import!M2036=\"\"),P59,Import!M2036)","v":0},null,{"$f":"IF(OR(Import!M2058=0,Import!M2058=\"\"),R59,Import!M2058)","v":0},null,null,null,0,null,null,null,0.1]
[null,36,"Equity Real Estate 2",{"$f":"Import!M1883","v":0},null,{"$f":"IF(OR(Import!M1905=0,Import!M1905=\"\"),(1-$AB60)*D60,Import!M1905)","v":0},null,{"$f":"Import!M1927","v":0},null,{"$f":"IF(OR(Import!M1949=0,Import!M1949=\"\"),(1-$AB60)*H60,Import!M1949)","v":0},null,{"$f":"Import!M1971","v":0},null,{"$f":"IF(OR(Import!M1993=0,Import!M1993=\"\"),(1-$AB60)*L60,Import!M1993)","v":0},null,{"$f":"Import!M2015","v":0},null,{"$f":"IF(OR(Import!M2037=0,Import!M2037=\"\"),P60,Import!M2037)","v":0},null,{"$f":"IF(OR(Import!M2059=0,Import!M2059=\"\"),R60,Import!M2059)","v":0},null,null,null,0,null,null,null,0.2]
[]
[null,{"$f":"B60+1","v":37},"Total Equity Holdings",{"$f":"SUM(D38:D61)","v":0},null,{"$f":"SUM(F38:F61)","v":0},null,{"$f":"SUM(H38:H61)","v":0},null,{"$f":"SUM(J38:J61)","v":0},null,{"$f":"SUM(L38:L61)","v":0},null,{"$f":"SUM(N38:N61)","v":0},null,{"$f":"SUM(P38:P61)","v":0},null,{"$f":"SUM(R38:R61)","v":0},null,{"$f":"SUM(T38:T61)","v":0},null,null,null,{"$f":"SUM(X38:X61)","v":0}]
[]
[null,null,null,"Spread Up",null,null,null,null,null,null,null,null,null,"Spread Down"]
[null,null,null,"Long Exposures",null,null,null,"Short Exposures",null,null,null,"Shock (bps)",null,"Long Exposures",null,null,null,"Short Exposures",null,null,null,"Shock Rates"]
[null,null,null,"Before Shock",null,"After Shock",null,"Before Shock",null,"After Shock",null,null,null,"Before Shock",null,"After Shock",null,"Before Shock",null,"After Shock"]
[null,null,"Spread Risk for Credit Derivatives",null,null,null,null,null,null,null,null,null,null,null,null,null,{"$f":"SUM(G71:G79)","v":0},null,{"$f":"SUM(I71:I79)","v":0},null,{"$f":"SUM(K71:K79)","v":0}]
[null,{"$f":"B62+1","v":38},"BSCR Rating 0",{"$f":"Import!M2060","v":0},null,{"$f":"Import!M2069","v":0},null,{"$f":"Import!M2078","v":0},null,{"$f":"Import!M2087","v":0},null,0,null,{"$f":"Import!M2096","v":0},null,{"$f":"Import!M2105","v":0},null,{"$f":"Import!M2114","v":0},null,{"$f":"Import!M2123","v":0},null,0]
[null,{"$f":"B68+1","v":39},"BSCR Rating 1",{"$f":"Import!M2061","v":0},null,{"$f":"Import!M2070","v":0},null,{"$f":"Import!M2079","v":0},null,{"$f":"Import!M2088","v":0},null,130,null,{"$f":"Import!M2097","v":0},null,{"$f":"Import!M2106","v":0},null,{"$f":"Import!M2115","v":0},null,{"$f":"Import!M2124","v":0},null,-0.75]
[null,{"$f":"B69+1","v":40},"BSCR Rating 2",{"$f":"Import!M2062","v":0},null,{"$f":"Import!M2071","v":0},null,{"$f":"Import!M2080","v":0},null,{"$f":"Import!M2089","v":0},null,150,null,{"$f":"Import!M2098","v":0},null,{"$f":"Import!M2107","v":0},null,{"$f":"Import!M2116","v":0},null,{"$f":"Import!M2125","v":0},null,-0.75]
[null,41,"BSCR Rating 3",{"$f":"Import!M2063","v":0},null,{"$f":"Import!M2072","v":0},null,{"$f":"Import!M2081","v":0},null,{"$f":"Import!M2090","v":0},null,260,null,{"$f":"Import!M2099","v":0},null,{"$f":"Import!M2108","v":0},null,{"$f":"Import!M2117","v":0},null,{"$f":"Import!M2126","v":0},null,-0.75]
[null,42,"BSCR Rating 4",{"$f":"Import!M2064","v":0},null,{"$f":"Import!M2073","v":0},null,{"$f":"Import!M2082","v":0},null,{"$f":"Import!M2091","v":0},null,450,null,{"$f":"Import!M2100","v":0},null,{"$f":"Import!M2109","v":0},null,{"$f":"Import!M2118","v":0},null,{"$f":"Import!M2127","v":0},null,-0.75]
[null,43,"BSCR Rating 5",{"$f":"Import!M2065","v":0},null,{"$f":"Import!M2074","v":0},null,{"$f":"Import!M2083","v":0},null,{"$f":"Import!M2092","v":0},null,840,null,{"$f":"Import!M2101","v":0},null,{"$f":"Import!M2110","v":0},null,{"$f":"Import!M2119","v":0},null,{"$f":"Import!M2128","v":0},null,-0.75]
[null,44,"BSCR Rating 6",{"$f":"Import!M2066","v":0},null,{"$f":"Import!M2075","v":0},null,{"$f":"Import!M2084","v":0},null,{"$f":"Import!M2093","v":0},null,1620,null,{"$f":"Import!M2102","v":0},null,{"$f":"Import!M2111","v":0},null,{"$f":"Import!M2120","v":0},null,{"$f":"Import!M2129","v":0},null,-0.75]
[null,45,"BSCR Rating 7",{"$f":"Import!M2067","v":0},null,{"$f":"Import!M2076","v":0},null,{"$f":"Import!M2085","v":0},null,{"$f":"Import!M2094","v":0},null,1620,null,{"$f":"Import!M2103","v":0},null,{"$f":"Import!M2112","v":0},null,{"$f":"Import!M2121","v":0},null,{"$f":"Import!M2130","v":0},null,-0.75]
[null,46,"BSCR Rating 8",{"$f":"Import!M2068","v":0},null,{"$f":"Import!M2077","v":0},null,{"$f":"Import!M2086","v":0},null,{"$f":"Import!M2095","v":0},null,1620,null,{"$f":"Import!M2104","v":0},null,{"$f":"Import!M2113","v":0},null,{"$f":"Import!M2122","v":0},null,{"$f":"Import!M2131","v":0},null,-0.75]
[null,47,"Total Spread",{"$f":"SUM(D67:D76)","v":0},null,{"$f":"SUM(F67:F76)","v":0},null,{"$f":"SUM(H67:H76)","v":0},null,{"$f":"SUM(J67:J76)","v":0},null,null,null,{"$f":"SUM(N67:N76)","v":0},null,{"$f":"SUM(P67:P76)","v":0},{"$f":"SUM(Q67:Q76)","v":0},{"$f":"SUM(R67:R76)","v":0},{"$f":"SUM(S67:S76)","v":0},{"$f":"SUM(T67:T76)","v":0},{"$f":"SUM(U67:U76)","v":0}]
[]
[null,null,"Spread Risk Check",null,null,null,null,null,null,null,null,null,null,{"$f":"IF(ROUND(D77-N77,0)=0,\"Yes\",\"No\")","v":"Yes"},null,null,null,{"$f":"IF(ROUND(H77-R77,0)=0,\"Yes\",\"No\")","v":"Yes"}]
[null,null,"Difference",null,null,null,null,null,null,null,null,null,null,{"$f":"ROUND(D77-N77,0)","v":0},null,null,null,{"$f":"ROUND(H77-R77,0)","v":0}]
[]
[null,null,null,"Market Value of Derivatives with Positive Market Value",null,"Market Value of Derivatives with Negative Market Value",null,"Market Value of Collateral, Excluding any over-collateralization"]
[null,null,"Counterparty Default Risk for OTC Derivatives"]
[null,{"$f":"B77+1","v":48},"BSCR Rating 0",{"$f":"Import!M2132","v":0},null,{"$f":"Import!M2141","v":0},null,{"$f":"Import!M2150","v":0}]
[null,{"$f":"B84+1","v":49},"BSCR Rating 1",{"$f":"Import!M2133","v":0},null,{"$f":"Import!M2142","v":0},null,{"$f":"Import!M2151","v":0}]
[null,{"$f":"B85+1","v":50},"BSCR Rating 2",{"$f":"Import!M2134","v":0},null,{"$f":"Import!M2143","v":0},null,{"$f":"Import!M2152","v":0}]
[null,51,"BSCR Rating 3",{"$f":"Import!M2135","v":0},null,{"$f":"Import!M2144","v":0},null,{"$f":"Import!M2153","v":0}]
[null,52,"BSCR Rating 4",{"$f":"Import!M2136","v":0},null,{"$f":"Import!M2145","v":0},null,{"$f":"Import!M2154","v":0}]
[null,53,"BSCR Rating 5",{"$f":"Import!M2137","v":0},null,{"$f":"Import!M2146","v":0},null,{"$f":"Import!M2155","v":0}]
[null,54,"BSCR Rating 6",{"$f":"Import!M2138","v":0},null,{"$f":"Import!M2147","v":0},null,{"$f":"Import!M2156","v":0}]
[null,55,"BSCR Rating 7",{"$f":"Import!M2139","v":0},null,{"$f":"Import!M2148","v":0},null,{"$f":"Import!M2157","v":0}]
[null,56,"BSCR Rating 8",{"$f":"Import!M2140","v":0},null,{"$f":"Import!M2149","v":0},null,{"$f":"Import!M2158","v":0}]
[null,57,"Total Default Risk for OTC Derivatives ",{"$f":"SUM(D83:D92)","v":0},null,{"$f":"SUM(F83:F92)","v":0},null,{"$f":"SUM(H83:H92)","v":0}]
[]
[null,{"$f":"B93+1","v":58},"Cash and Cash Equivalents",{"$f":"Import!M2159","v":0}]
[]
[null,{"$f":"B95+1","v":59},"Total Funds Held",{"$f":"X27+X62+D77+H77+D93+F93+H93+D95","v":0}]
[]
[null,null,"Please include in the table below any assets, included in this Schedule, for which NAIC ratings were used to map to the BSCR rating classes"]
[null,null,"Information on the use of NAIC ratings\n(for disclosure purposes only)","CORPORATE & SOVEREIGN BONDS",null,"RESIDENTIAL MORTGAGE-BACKED SECURITIES",null,"COMMERCIAL MORTGAGE-BACKED SECURITIES / ASSET-BACKED SECURITIES",null,"BOND MUTUAL FUNDS",null,"MORTGAGE LOANS",null,"PREFERRED STOCKS",null,"OTHER ASSETS"]
[null,null,"NAIC Class 1",{"$f":"Import!M2160","v":0},null,{"$f":"Import!M2167","v":0},null,{"$f":"Import!M2174","v":0},null,{"$f":"Import!M2181","v":0},null,{"$f":"Import!M2188","v":0},null,{"$f":"Import!M2195","v":0},null,{"$f":"Import!M2202","v":0}]
[null,null,"NAIC Class 2",{"$f":"Import!M2161","v":0},null,{"$f":"Import!M2168","v":0},null,{"$f":"Import!M2175","v":0},null,{"$f":"Import!M2182","v":0},null,{"$f":"Import!M2189","v":0},null,{"$f":"Import!M2196","v":0},null,{"$f":"Import!M2203","v":0}]
[null,null,"NAIC Class 3",{"$f":"Import!M2162","v":0},null,{"$f":"Import!M2169","v":0},null,{"$f":"Import!M2176","v":0},null,{"$f":"Import!M2183","v":0},null,{"$f":"Import!M2190","v":0},null,{"$f":"Import!M2197","v":0},null,{"$f":"Import!M2204","v":0}]
[null,null,"NAIC Class 4",{"$f":"Import!M2163","v":0},null,{"$f":"Import!M2170","v":0},null,{"$f":"Import!M2177","v":0},null,{"$f":"Import!M2184","v":0},null,{"$f":"Import!M2191","v":0},null,{"$f":"Import!M2198","v":0},null,{"$f":"Import!M2205","v":0}]
[null,null,"NAIC Class 5",{"$f":"Import!M2164","v":0},null,{"$f":"Import!M2171","v":0},null,{"$f":"Import!M2178","v":0},null,{"$f":"Import!M2185","v":0},null,{"$f":"Import!M2192","v":0},null,{"$f":"Import!M2199","v":0},null,{"$f":"Import!M2206","v":0}]
[null,null,"NAIC Class 6",{"$f":"Import!M2165","v":0},null,{"$f":"Import!M2172","v":0},null,{"$f":"Import!M2179","v":0},null,{"$f":"Import!M2186","v":0},null,{"$f":"Import!M2193","v":0},null,{"$f":"Import!M2200","v":0},null,{"$f":"Import!M2207","v":0}]
[null,null,null,{"$f":"SUM(D101:D106)","v":0},null,{"$f":"SUM(F101:F106)","v":0},null,{"$f":"SUM(H101:H106)","v":0},null,{"$f":"SUM(J101:J106)","v":0},null,{"$f":"SUM(L101:L106)","v":0},null,{"$f":"SUM(N101:N106)","v":0},null,{"$f":"SUM(P101:P106)","v":0}]

{"sheet":"Schedule IID (EBS)","index":30,"n_rows":107,"n_cols":28,"rows_kept":107,"cut":false,"hidden":false,"merged":[[2,1,2,3],[3,3,3,5],[4,3,4,5],[7,3,7,5],[7,7,7,9],[7,19,7,21],[7,15,7,17],[63,3,63,11],[63,13,63,21],[33,27,34,27],[7,23,7,25],[32,3,32,13],[33,3,34,5],[33,7,33,13],[33,23,34,23],[7,11,7,13],[34,7,34,9],[34,11,34,13],[32,15,32,19],[33,15,34,15],[64,3,64,5],[64,7,64,9],[64,13,64,15],[64,17,64,19],[33,17,34,17],[33,19,34,19]]}
[null,"SEGREGATED ACCOUNTS\n",null,null,null,null,null,null,null,null,null,null,null,null,null,null,null,null,null,null,null,null,null,null,null,null,null,{"$f":"HYPERLINK(\"#'Index'!A1\",\"Return to Index\")","v":"Return to Index"}]
[]
[null,{"$f":"+'Company Information'!C7","v":"Enter Company Name"}]
[null,"As at",null,{"$f":" TEXT('Company Information'!C3,\"d mmmm yyyy\")","v":"31 December 2023"},null,null,null,null,null,null,null,null,null,null,null,null,null,null,null,null,null,null,null,null,null,"SCHEDULE IID (EBS)"]
[null,{"$f":"+'Form 1EBS'!B4","v":"expressed in ['000s]"},null,{"$f":"+'Form 1EBS'!C4","v":"United States Dollars"}]
[]
[null,null,null,"(1)",null,"(2)",null,"(3)",null,"(4)",null,"(5)",null,"(6)",null,"(7)",null,"(8)",null,"(9)",null,"(10)",null,"(11)",null,"(12)"]
[null,null,null,"Corporate & Sovereign Bonds",null,null,null,"Residential Mortgage Backed Securities",null,null,null,"Commercial Mortgage Backed Securities / Asset- Backed Securities",null,null,null,"Bond Mutual Funds",null,null,null,"Mortgage Loans",null,null,null,"TOTAL"]
[null,null,null,"Assets",null,"Liabilities",null,"Assets",null,"Liabilities",null,"Assets",null,"Liabilities",null,"Assets",null,"Liabilities",null,"Assets",null,"Liabilities",null,{"$f":"D9","v":"Assets"},null,{"$f":"F9","v":"Liabilities"}]
[null,null,null,{"$f":"+'Form 1EBS'!$F$8","v":" ('000s)"},null,{"$f":"+'Form 1EBS'!$F$8","v":" ('000s)"},null,{"$f":"+'Form 1EBS'!$F$8","v":" ('000s)"},null,{"$f":"+'Form 1EBS'!$F$8","v":" ('000s)"},null,{"$f":"+'Form 1EBS'!$F$8","v":" ('000s)"},null,{"$f":"+'Form 1EBS'!$F$8","v":" ('000s)"},null,{"$f":"+'Form 1EBS'!$F$8","v":" ('000s)"},null,{"$f":"+'Form 1EBS'!$F$8","v":" ('000s)"},null,{"$f":"+'Form 1EBS'!$F$8","v":" ('000s)"},null,{"$f":"+'Form 1EBS'!$F$8","v":" ('000s)"},null,{"$f":"+'Form 1EBS'!$F$8","v":" ('000s)"},null,{"$f":"+'Form 1EBS'!$H$8","v":" ('000s)"}]
[null,"Line no. "]
[null,"Quoted and Unquoted Bonds and Debentures"]
[null,1,"BSCR Rating 0",{"$f":"Import!M2210","v":0},null,{"$f":"Import!M2219","v":0},null,null,null,null,null,null,null,null,null,{"$f":"Import!M2260","v":0},null,{"$f":"Import!M2269","v":0},null,null,null,null,null,{"$f":"D13+H13+L13+P13","v":0},null,{"$f":"F13+J13+N13+R13","v":0}]
[null,2,"BSCR Rating 1",{"$f":"Import!M2211","v":0},null,{"$f":"Import!M2220","v":0},null,{"$f":"Import!M2228","v":0},null,{"$f":"Import!M2236","v":0},null,{"$f":"Import!M2244","v":0},null,{"$f":"Import!M2252","v":0},null,{"$f":"Import!M2261","v":0},null,{"$f":"Import!M2270","v":0},null,null,null,null,null,{"$f":"D14+H14+L14+P14","v":0},null,0]
[null,3,"BSCR Rating 2",{"$f":"Import!M2212","v":0},null,{"$f":"Import!M2221","v":0},null,{"$f":"Import!M2229","v":0},null,{"$f":"Import!M2237","v":0},null,{"$f":"Import!M2245","v":0},null,{"$f":"Import!M2253","v":0},null,{"$f":"Import!M2262","v":0},null,{"$f":"Import!M2271","v":0},null,null,null,null,null,0,null,0]
[null,4,"BSCR Rating 3",{"$f":"Import!M2213","v":0},null,{"$f":"Import!M2222","v":0},null,{"$f":"Import!M2230","v":0},null,{"$f":"Import!M2238","v":0},null,{"$f":"Import!M2246","v":0},null,{"$f":"Import!M2254","v":0},null,{"$f":"Import!M2263","v":0},null,{"$f":"Import!M2272","v":0},null,null,null,null,null,0,null,0]
[null,5,"BSCR Rating 4",{"$f":"Import!M2214","v":0},null,{"$f":"Import!M2223","v":0},null,{"$f":"Import!M2231","v":0},null,{"$f":"Import!M2239","v":0},null,{"$f":"Import!M2247","v":0},null,{"$f":"Import!M2255","v":0},null,{"$f":"Import!M2264","v":0},null,{"$f":"Import!M2273","v":0},null,null,null,null,null,0,null,0]
[null,6,"BSCR Rating 5",{"$f":"Import!M2215","v":0},null,{"$f":"Import!M2224","v":0},null,{"$f":"Import!M2232","v":0},null,{"$f":"Import!M2240","v":0},null,{"$f":"Import!M2248","v":0},null,{"$f":"Import!M2256","v":0},null,{"$f":"Import!M2265","v":0},null,{"$f":"Import!M2274","v":0},null,null,null,null,null,0,null,0]
[null,7,"BSCR Rating 6",{"$f":"Import!M2216","v":0},null,{"$f":"Import!M2225","v":0},null,{"$f":"Import!M2233","v":0},null,{"$f":"Import!M2241","v":0},null,{"$f":"Import!M2249","v":0},null,{"$f":"Import!M2257","v":0},null,{"$f":"Import!M2266","v":0},null,{"$f":"Import!M2275","v":0},null,null,null,null,null,0,null,0]
[null,8,"BSCR Rating 7",{"$f":"Import!M2217","v":0},null,{"$f":"Import!M2226","v":0},null,{"$f":"Import!M2234","v":0},null,{"$f":"Import!M2242","v":0},null,{"$f":"Import!M2250","v":0},null,{"$f":"Import!M2258","v":0},null,{"$f":"Import!M2267","v":0},null,{"$f":"Import!M2276","v":0},null,null,null,null,null,0,null,0]
[null,9,"BSCR Rating 8",{"$f":"Import!M2218","v":0},null,{"$f":"Import!M2227","v":0},null,{"$f":"Import!M2235","v":0},null,{"$f":"Import!M2243","v":0},null,{"$f":"Import!M2251","v":0},null,{"$f":"Import!M2259","v":0},null,{"$f":"Import!M2268","v":0},null,{"$f":"Import!M2277","v":0},null,null,null,null,null,0,null,0]
[null,{"$f":"B21+1","v":10},"Insured/Guaranteed Mortgages",null,null,null,null,null,null,null,null,null,null,null,null,null,null,null,null,{"$f":"Import!M2278","v":0},null,{"$f":"Import!M2282","v":0},null,{"$f":"D22+H22+L22+P22+T22","v":0},null,{"$f":"F22+J22+N22+R22+V22","v":0}]
[null,{"$f":"B22+1","v":11},"Other Commercial and Farm Mortgages",null,null,null,null,null,null,null,null,null,null,null,null,null,null,null,null,{"$f":"Import!M2279","v":0},null,{"$f":"Import!M2283","v":0},null,{"$f":"D23+H23+L23+P23+T23","v":0},null,0]
[null,{"$f":"B23+1","v":12},"Other Residential Mortgages",null,null,null,null,null,null,null,null,null,null,null,null,null,null,null,null,{"$f":"Import!M2280","v":0},null,{"$f":"Import!M2284","v":0},null,{"$f":"D24+H24+L24+P24+T24","v":0},null,{"$f":"F24+J24+N24+R24+V24","v":0}]
[null,13,"Mortgages Not In Good Standing",null,null,null,null,null,null,null,null,null,null,null,null,null,null,null,null,{"$f":"Import!M2281","v":0},null,{"$f":"Import!M2285","v":0},null,0,null,0]
[]
[null,{"$f":"B25+1","v":14},"Total",{"$f":"SUM(D13:D21)","v":0},null,{"$f":"SUM(F13:F21)","v":0},null,{"$f":"SUM(H13:H21)","v":0},null,{"$f":"SUM(J13:J21)","v":0},null,{"$f":"SUM(L13:L21)","v":0},null,{"$f":"SUM(N13:N21)","v":0},null,{"$f":"SUM(P13:P21)","v":0},null,{"$f":"SUM(R13:R21)","v":0},null,{"$f":"SUM(T13:T26)","v":0},null,{"$f":"SUM(V13:V26)","v":0},null,{"$f":"SUM(X13:X26)","v":0},null,{"$f":"SUM(Z13:Z26)","v":0}]
[]
[]
[]
[]
[]
[null,null,null,"ASSETS",null,null,null,null,null,null,null,null,null,null,null,"Liabilities"]
[null,null,null,"Long Exposures",null,null,null,"Short Exposures",null,null,null,null,null,null,null,null,null,"Without Management Actions",null,"With Management Actions",null,null,null,"Total Assets Before Shock",null,null,null,"Shocks"]
[null,null,null,null,null,null,null,"Qualifying as Assets held for risk-mitigation purposes",null,null,null,"Not Qualifying as Assets held for risk-mitigation purposes",null,null,null,null,null,null,null,null,null,null,null,null,null,null,null,"Shocks"]
[null,null,null,"Before Shock",null,"After Shock",null,"Before Shock",null,"After Shock",null,"Before Shock",null,"After Shock",null,"Before Shock",null,"After Shock",null,"After Shock"]
[null,null,null,{"$f":"+'Form 1EBS'!$F$8","v":" ('000s)"},null,{"$f":"+'Form 1EBS'!$F$8","v":" ('000s)"},null,{"$f":"+'Form 1EBS'!$H$8","v":" ('000s)"},null,{"$f":"+'Form 1EBS'!$H$8","v":" ('000s)"},null,{"$f":"+'Form 1EBS'!$F$8","v":" ('000s)"},null,{"$f":"+'Form 1EBS'!$F$8","v":" ('000s)"},null,{"$f":"+'Form 1EBS'!$H$8","v":" ('000s)"},null,{"$f":"+'Form 1EBS'!$H$8","v":" ('000s)"},null,{"$f":"+'Form 1EBS'!$F$8","v":" ('000s)"},null,null,null,{"$f":"+'Form 1EBS'!$F$8","v":" ('000s)"}]
[null,"Equity Holdings "]
[null,{"$f":"B27+1","v":15},"Strategic Holdings - Listed",{"$f":"Import!M2286","v":0},null,{"$f":"IF(OR(Import!M2308=0,Import!M2308=\"\"),(1-$AB39)*D39,Import!M2308)","v":0},null,{"$f":"Import!M2330","v":0},null,{"$f":"IF(OR(Import!M2352=0,Import!M2352=\"\"),(1-$AB39)*H39,Import!M2352)","v":0},null,{"$f":"Import!M2374","v":0},null,{"$f":"IF(OR(Import!M2396=0,Import!M2396=\"\"),(1-$AB39)*L39,Import!M2396)","v":0},null,{"$f":"Import!M2418","v":0},null,{"$f":"IF(OR(Import!M2440=0,Import!M2440=\"\"),P39,Import!M2440)","v":0},null,{"$f":"IF(OR(Import!M2462=0,Import!M2462=\"\"),R39,Import!M2462)","v":0},null,null,null,{"$f":"D39+H39+L39","v":0},null,null,null,0.2]
[null,{"$f":"B39+1","v":16},"Duration Based",{"$f":"Import!M2287","v":0},null,{"$f":"IF(OR(Import!M2309=0,Import!M2309=\"\"),(1-$AB40)*D40,Import!M2309)","v":0},null,{"$f":"Import!M2331","v":0},null,{"$f":"IF(OR(Import!M2353=0,Import!M2353=\"\"),(1-$AB40)*H40,Import!M2353)","v":0},null,{"$f":"Import!M2375","v":0},null,{"$f":"IF(OR(Import!M2397=0,Import!M2397=\"\"),(1-$AB40)*L40,Import!M2397)","v":0},null,{"$f":"Import!M2419","v":0},null,{"$f":"IF(OR(Import!M2441=0,Import!M2441=\"\"),P40,Import!M2441)","v":0},null,{"$f":"IF(OR(Import!M2463=0,Import!M2463=\"\"),R40,Import!M2463)","v":0},null,null,null,{"$f":"D40+H40+L40","v":0},null,null,null,0.2]
[null,17,"Listed Equity Securities in Developed Markets",{"$f":"Import!M2288","v":0},null,{"$f":"IF(OR(Import!M2310=0,Import!M2310=\"\"),(1-$AB41)*D41,Import!M2310)","v":0},null,{"$f":"Import!M2332","v":0},null,{"$f":"IF(OR(Import!M2354=0,Import!M2354=\"\"),(1-$AB41)*H41,Import!M2354)","v":0},null,{"$f":"Import!M2376","v":0},null,{"$f":"IF(OR(Import!M2398=0,Import!M2398=\"\"),(1-$AB41)*L41,Import!M2398)","v":0},null,{"$f":"Import!M2420","v":0},null,{"$f":"IF(OR(Import!M2442=0,Import!M2442=\"\"),P41,Import!M2442)","v":0},null,{"$f":"IF(OR(Import!M2464=0,Import!M2464=\"\"),R41,Import!M2464)","v":0},null,null,null,0,null,null,null,0.35]
[null,18,"Preferred Stocks, BSCR Rating 1",{"$f":"Import!M2289","v":0},null,{"$f":"IF(OR(Import!M2311=0,Import!M2311=\"\"),(1-$AB42)*D42,Import!M2311)","v":0},null,{"$f":"Import!M2333","v":0},null,{"$f":"IF(OR(Import!M2355=0,Import!M2355=\"\"),(1-$AB42)*H42,Import!M2355)","v":0},null,{"$f":"Import!M2377","v":0},null,{"$f":"IF(OR(Import!M2399=0,Import!M2399=\"\"),(1-$AB42)*L42,Import!M2399)","v":0},null,{"$f":"Import!M2421","v":0},null,{"$f":"IF(OR(Import!M2443=0,Import!M2443=\"\"),P42,Import!M2443)","v":0},null,{"$f":"IF(OR(Import!M2465=0,Import!M2465=\"\"),R42,Import!M2465)","v":0},null,null,null,0,null,null,null,6.0000000000000001E-3]
[null,19,"Preferred Stocks, BSCR Rating 2",{"$f":"Import!M2290","v":0},null,{"$f":"IF(OR(Import!M2312=0,Import!M2312=\"\"),(1-$AB43)*D43,Import!M2312)","v":0},null,{"$f":"Import!M2334","v":0},null,{"$f":"IF(OR(Import!M2356=0,Import!M2356=\"\"),(1-$AB43)*H43,Import!M2356)","v":0},null,{"$f":"Import!M2378","v":0},null,{"$f":"IF(OR(Import!M2400=0,Import!M2400=\"\"),(1-$AB43)*L43,Import!M2400)","v":0},null,{"$f":"Import!M2422","v":0},null,{"$f":"IF(OR(Import!M2444=0,Import!M2444=\"\"),P43,Import!M2444)","v":0},null,{"$f":"IF(OR(Import!M2466=0,Import!M2466=\"\"),R43,Import!M2466)","v":0},null,null,null,0,null,null,null,1.2E-2]
[null,20,"Preferred Stocks, BSCR Rating 3",{"$f":"Import!M2291","v":0},null,{"$f":"IF(OR(Import!M2313=0,Import!M2313=\"\"),(1-$AB44)*D44,Import!M2313)","v":0},null,{"$f":"Import!M2335","v":0},null,{"$f":"IF(OR(Import!M2357=0,Import!M2357=\"\"),(1-$AB44)*H44,Import!M2357)","v":0},null,{"$f":"Import!M2379","v":0},null,{"$f":"IF(OR(Import!M2401=0,Import!M2401=\"\"),(1-$AB44)*L44,Import!M2401)","v":0},null,{"$f":"Import!M2423","v":0},null,{"$f":"IF(OR(Import!M2445=0,Import!M2445=\"\"),P44,Import!M2445)","v":0},null,{"$f":"IF(OR(Import!M2467=0,Import!M2467=\"\"),R44,Import!M2467)","v":0},null,null,null,0,null,null,null,0.02]
[null,21,"Preferred Stocks, BSCR Rating 4",{"$f":"Import!M2292","v":0},null,{"$f":"IF(OR(Import!M2314=0,Import!M2314=\"\"),(1-$AB45)*D45,Import!M2314)","v":0},null,{"$f":"Import!M2336","v":0},null,{"$f":"IF(OR(Import!M2358=0,Import!M2358=\"\"),(1-$AB45)*H45,Import!M2358)","v":0},null,{"$f":"Import!M2380","v":0},null,{"$f":"IF(OR(Import!M2402=0,Import!M2402=\"\"),(1-$AB45)*L45,Import!M2402)","v":0},null,{"$f":"Import!M2424","v":0},null,{"$f":"IF(OR(Import!M2446=0,Import!M2446=\"\"),P45,Import!M2446)","v":0},null,{"$f":"IF(OR(Import!M2468=0,Import!M2468=\"\"),R45,Import!M2468)","v":0},null,null,null,0,null,null,null,0.04]
[null,22,"Preferred Stocks, BSCR Rating 5",{"$f":"Import!M2293","v":0},null,{"$f":"IF(OR(Import!M2315=0,Import!M2315=\"\"),(1-$AB46)*D46,Import!M2315)","v":0},null,{"$f":"Import!M2337","v":0},null,{"$f":"IF(OR(Import!M2359=0,Import!M2359=\"\"),(1-$AB46)*H46,Import!M2359)","v":0},null,{"$f":"Import!M2381","v":0},null,{"$f":"IF(OR(Import!M2403=0,Import!M2403=\"\"),(1-$AB46)*L46,Import!M2403)","v":0},null,{"$f":"Import!M2425","v":0},null,{"$f":"IF(OR(Import!M2447=0,Import!M2447=\"\"),P46,Import!M2447)","v":0},null,{"$f":"IF(OR(Import!M2469=0,Import!M2469=\"\"),R46,Import!M2469)","v":0},null,null,null,0,null,null,null,0.11]
[null,23,"Preferred Stocks, BSCR Rating 6",{"$f":"Import!M2294","v":0},null,{"$f":"IF(OR(Import!M2316=0,Import!M2316=\"\"),(1-$AB47)*D47,Import!M2316)","v":0},null,{"$f":"Import!M2338","v":0},null,{"$f":"IF(OR(Import!M2360=0,Import!M2360=\"\"),(1-$AB47)*H47,Import!M2360)","v":0},null,{"$f":"Import!M2382","v":0},null,{"$f":"IF(OR(Import!M2404=0,Import!M2404=\"\"),(1-$AB47)*L47,Import!M2404)","v":0},null,{"$f":"Import!M2426","v":0},null,{"$f":"IF(OR(Import!M2448=0,Import!M2448=\"\"),P47,Import!M2448)","v":0},null,{"$f":"IF(OR(Import!M2470=0,Import!M2470=\"\"),R47,Import!M2470)","v":0},null,null,null,0,null,null,null,0.25]
[null,24,"Preferred Stocks, BSCR Rating 7",{"$f":"Import!M2295","v":0},null,{"$f":"IF(OR(Import!M2317=0,Import!M2317=\"\"),(1-$AB48)*D48,Import!M2317)","v":0},null,{"$f":"Import!M2339","v":0},null,{"$f":"IF(OR(Import!M2361=0,Import!M2361=\"\"),(1-$AB48)*H48,Import!M2361)","v":0},null,{"$f":"Import!M2383","v":0},null,{"$f":"IF(OR(Import!M2405=0,Import!M2405=\"\"),(1-$AB48)*L48,Import!M2405)","v":0},null,{"$f":"Import!M2427","v":0},null,{"$f":"IF(OR(Import!M2449=0,Import!M2449=\"\"),P48,Import!M2449)","v":0},null,{"$f":"IF(OR(Import!M2471=0,Import!M2471=\"\"),R48,Import!M2471)","v":0},null,null,null,0,null,null,null,0.35]
[null,25,"Preferred Stocks, BSCR Rating 8",{"$f":"Import!M2296","v":0},null,{"$f":"IF(OR(Import!M2318=0,Import!M2318=\"\"),(1-$AB49)*D49,Import!M2318)","v":0},null,{"$f":"Import!M2340","v":0},null,{"$f":"IF(OR(Import!M2362=0,Import!M2362=\"\"),(1-$AB49)*H49,Import!M2362)","v":0},null,{"$f":"Import!M2384","v":0},null,{"$f":"IF(OR(Import!M2406=0,Import!M2406=\"\"),(1-$AB49)*L49,Import!M2406)","v":0},null,{"$f":"Import!M2428","v":0},null,{"$f":"IF(OR(Import!M2450=0,Import!M2450=\"\"),P49,Import!M2450)","v":0},null,{"$f":"IF(OR(Import!M2472=0,Import!M2472=\"\"),R49,Import!M2472)","v":0},null,null,null,0,null,null,null,0.35]
[null,26,"Equity Derivatives on Type 1 Equities",{"$f":"Import!M2297","v":0},null,{"$f":"Import!M2319","v":0},null,{"$f":"Import!M2341","v":0},null,{"$f":"Import!M2363","v":0},null,{"$f":"Import!M2385","v":0},null,{"$f":"Import!M2407","v":0},null,{"$f":"Import!M2429","v":0},null,{"$f":"IF(OR(Import!M2451=0,Import!M2451=\"\"),P50,Import!M2451)","v":0},null,{"$f":"IF(OR(Import!M2473=0,Import!M2473=\"\"),R50,Import!M2473)","v":0},null,null,null,0,null,null,null,0.35]
[null,27,"Strategic Holdings - Unlisted",{"$f":"Import!M2298","v":0},null,{"$f":"IF(OR(Import!M2320=0,Import!M2320=\"\"),(1-$AB51)*D51,Import!M2320)","v":0},null,{"$f":"Import!M2342","v":0},null,{"$f":"IF(OR(Import!M2364=0,Import!M2364=\"\"),(1-$AB51)*H51,Import!M2364)","v":0},null,{"$f":"Import!M2386","v":0},null,{"$f":"IF(OR(Import!M2408=0,Import!M2408=\"\"),(1-$AB51)*L51,Import!M2408)","v":0},null,{"$f":"Import!M2430","v":0},null,{"$f":"IF(OR(Import!M2452=0,Import!M2452=\"\"),P51,Import!M2452)","v":0},null,{"$f":"IF(OR(Import!M2474=0,Import!M2474=\"\"),R51,Import!M2474)","v":0},null,null,null,0,null,null,null,0.2]
[null,28,"Other Equities / Other Assets",{"$f":"Import!M2299","v":0},null,{"$f":"IF(OR(Import!M2321=0,Import!M2321=\"\"),(1-$AB52)*D52,Import!M2321)","v":0},null,{"$f":"Import!M2343","v":0},null,{"$f":"IF(OR(Import!M2365=0,Import!M2365=\"\"),(1-$AB52)*H52,Import!M2365)","v":0},null,{"$f":"Import!M2387","v":0},null,{"$f":"IF(OR(Import!M2409=0,Import!M2409=\"\"),(1-$AB52)*L52,Import!M2409)","v":0},null,{"$f":"Import!M2431","v":0},null,{"$f":"IF(OR(Import!M2453=0,Import!M2453=\"\"),P52,Import!M2453)","v":0},null,{"$f":"IF(OR(Import!M2475=0,Import!M2475=\"\"),R52,Import!M2475)","v":0},null,null,null,0,null,null,null,0.45]
[null,29,"Letters of Credit",{"$f":"Import!M2300","v":0},null,{"$f":"IF(OR(Import!M2322=0,Import!M2322=\"\"),(1-$AB53)*D53,Import!M2322)","v":0},null,{"$f":"Import!M2344","v":0},null,{"$f":"IF(OR(Import!M2366=0,Import!M2366=\"\"),(1-$AB53)*H53,Import!M2366)","v":0},null,{"$f":"Import!M2388","v":0},null,{"$f":"IF(OR(Import!M2410=0,Import!M2410=\"\"),(1-$AB53)*L53,Import!M2410)","v":0},null,{"$f":"Import!M2432","v":0},null,{"$f":"IF(OR(Import!M2454=0,Import!M2454=\"\"),P53,Import!M2454)","v":0},null,{"$f":"IF(OR(Import!M2476=0,Import!M2476=\"\"),R53,Import!M2476)","v":0},null,null,null,0,null,null,null,0.2]
[null,30,"Intangible assets",{"$f":"Import!M2301","v":0},null,{"$f":"IF(OR(Import!M2323=0,Import!M2323=\"\"),(1-$AB54)*D54,Import!M2323)","v":0},null,{"$f":"Import!M2345","v":0},null,{"$f":"IF(OR(Import!M2367=0,Import!M2367=\"\"),(1-$AB54)*H54,Import!M2367)","v":0},null,{"$f":"Import!M2389","v":0},null,{"$f":"IF(OR(Import!M2411=0,Import!M2411=\"\"),(1-$AB54)*L54,Import!M2411)","v":0},null,{"$f":"Import!M2433","v":0},null,{"$f":"IF(OR(Import!M2455=0,Import!M2455=\"\"),P54,Import!M2455)","v":0},null,{"$f":"IF(OR(Import!M2477=0,Import!M2477=\"\"),R54,Import!M2477)","v":0},null,null,null,0,null,null,null,0.2]
[null,31,"Pension Benefit Surplus",{"$f":"Import!M2302","v":0},null,{"$f":"IF(OR(Import!M2324=0,Import!M2324=\"\"),(1-$AB55)*D55,Import!M2324)","v":0},null,{"$f":"Import!M2346","v":0},null,{"$f":"IF(OR(Import!M2368=0,Import!M2368=\"\"),(1-$AB55)*H55,Import!M2368)","v":0},null,{"$f":"Import!M2390","v":0},null,{"$f":"IF(OR(Import!M2412=0,Import!M2412=\"\"),(1-$AB55)*L55,Import!M2412)","v":0},null,{"$f":"Import!M2434","v":0},null,{"$f":"IF(OR(Import!M2456=0,Import!M2456=\"\"),P55,Import!M2456)","v":0},null,{"$f":"IF(OR(Import!M2478=0,Import!M2478=\"\"),R55,Import!M2478)","v":0},null,null,null,0,null,null,null,0.2]
[null,32,"Equity Derivatives on Type 2 Equities",{"$f":"Import!M2303","v":0},null,{"$f":"Import!M2325","v":0},null,{"$f":"Import!M2347","v":0},null,{"$f":"Import!M2369","v":0},null,{"$f":"Import!M2391","v":0},null,{"$f":"Import!M2413","v":0},null,{"$f":"Import!M2435","v":0},null,{"$f":"IF(OR(Import!M2457=0,Import!M2457=\"\"),P56,Import!M2457)","v":0},null,{"$f":"IF(OR(Import!M2479=0,Import!M2479=\"\"),R56,Import!M2479)","v":0},null,null,null,0,null,null,null,0.45]
[null,33,"Infrastructure",{"$f":"Import!M2304","v":0},null,{"$f":"IF(OR(Import!M2326=0,Import!M2326=\"\"),(1-$AB57)*D57,Import!M2326)","v":0},null,{"$f":"Import!M2348","v":0},null,{"$f":"IF(OR(Import!M2370=0,Import!M2370=\"\"),(1-$AB57)*H57,Import!M2370)","v":0},null,{"$f":"Import!M2392","v":0},null,{"$f":"IF(OR(Import!M2414=0,Import!M2414=\"\"),(1-$AB57)*L57,Import!M2414)","v":0},null,{"$f":"Import!M2436","v":0},null,{"$f":"IF(OR(Import!M2458=0,Import!M2458=\"\"),P57,Import!M2458)","v":0},null,{"$f":"IF(OR(Import!M2480=0,Import!M2480=\"\"),R57,Import!M2480)","v":0},null,null,null,0,null,null,null,0.25]
[null,34,"Derivatives on Infrastructure",{"$f":"Import!M2305","v":0},null,{"$f":"Import!M2327","v":0},null,{"$f":"Import!M2349","v":0},null,{"$f":"Import!M2371","v":0},null,{"$f":"Import!M2393","v":0},null,{"$f":"Import!M2415","v":0},null,{"$f":"Import!M2437","v":0},null,{"$f":"IF(OR(Import!M2459=0,Import!M2459=\"\"),P58,Import!M2459)","v":0},null,{"$f":"IF(OR(Import!M2481=0,Import!M2481=\"\"),R58,Import!M2481)","v":0},null,null,null,0,null,null,null,0.25]
[null,35,"Equity Real Estate 1",{"$f":"Import!M2306","v":0},null,{"$f":"IF(OR(Import!M2328=0,Import!M2328=\"\"),(1-$AB59)*D59,Import!M2328)","v":0},null,{"$f":"Import!M2350","v":0},null,{"$f":"IF(OR(Import!M2372=0,Import!M2372=\"\"),(1-$AB59)*H59,Import!M2372)","v":0},null,{"$f":"Import!M2394","v":0},null,{"$f":"IF(OR(Import!M2416=0,Import!M2416=\"\"),(1-$AB59)*L59,Import!M2416)","v":0},null,{"$f":"Import!M2438","v":0},null,{"$f":"IF(OR(Import!M2460=0,Import!M2460=\"\"),P59,Import!M2460)","v":0},null,{"$f":"IF(OR(Import!M2482=0,Import!M2482=\"\"),R59,Import!M2482)","v":0},null,null,null,0,null,null,null,0.1]
[null,36,"Equity Real Estate 2",{"$f":"Import!M2307","v":0},null,{"$f":"IF(OR(Import!M2329=0,Import!M2329=\"\"),(1-$AB60)*D60,Import!M2329)","v":0},null,{"$f":"Import!M2351","v":0},null,{"$f":"IF(OR(Import!M2373=0,Import!M2373=\"\"),(1-$AB60)*H60,Import!M2373)","v":0},null,{"$f":"Import!M2395","v":0},null,{"$f":"IF(OR(Import!M2417=0,Import!M2417=\"\"),(1-$AB60)*L60,Import!M2417)","v":0},null,{"$f":"Import!M2439","v":0},null,{"$f":"IF(OR(Import!M2461=0,Import!M2461=\"\"),P60,Import!M2461)","v":0},null,{"$f":"IF(OR(Import!M2483=0,Import!M2483=\"\"),R60,Import!M2483)","v":0},null,null,null,0,null,null,null,0.2]
[]
[null,{"$f":"B60+1","v":37},"Total Equity Holdings",{"$f":"SUM(D38:D61)","v":0},null,{"$f":"SUM(F38:F61)","v":0},null,{"$f":"SUM(H38:H61)","v":0},null,{"$f":"SUM(J38:J61)","v":0},null,{"$f":"SUM(L38:L61)","v":0},null,{"$f":"SUM(N38:N61)","v":0},null,{"$f":"SUM(P38:P61)","v":0},null,{"$f":"SUM(R38:R61)","v":0},null,{"$f":"SUM(T38:T61)","v":0},null,null,null,{"$f":"SUM(X38:X61)","v":0}]
[]
[null,null,null,"Spread Up",null,null,null,null,null,null,null,null,null,"Spread Down"]
[null,null,null,"Long Exposures",null,null,null,"Short Exposures",null,null,null,"Shock (bps)",null,"Long Exposures",null,null,null,"Short Exposures",null,null,null,"Shock Rates"]
[null,null,null,"Before Shock",null,"After Shock",null,"Before Shock",null,"After Shock",null,null,null,"Before Shock",null,"After Shock",null,"Before Shock",null,"After Shock"]
[null,null,"Spread Risk for Credit Derivatives",null,null,null,null,null,null,null,null,null,null,null,null,null,{"$f":"SUM(G71:G80)","v":0},null,{"$f":"SUM(I71:I80)","v":0},null,{"$f":"SUM(K71:K80)","v":0}]
[null,{"$f":"B62+1","v":38},"BSCR Rating 0",{"$f":"Import!M2484","v":0},null,{"$f":"Import!M2493","v":0},null,{"$f":"Import!M2502","v":0},null,{"$f":"Import!M2511","v":0},null,0,null,{"$f":"Import!M2520","v":0},null,{"$f":"Import!M2529","v":0},null,{"$f":"Import!M2538","v":0},null,{"$f":"Import!M2547","v":0},null,0]
[null,{"$f":"B68+1","v":39},"BSCR Rating 1",{"$f":"Import!M2485","v":0},null,{"$f":"Import!M2494","v":0},null,{"$f":"Import!M2503","v":0},null,{"$f":"Import!M2512","v":0},null,130,null,{"$f":"Import!M2521","v":0},null,{"$f":"Import!M2530","v":0},null,{"$f":"Import!M2539","v":0},null,{"$f":"Import!M2548","v":0},null,-0.75]
[null,{"$f":"B69+1","v":40},"BSCR Rating 2",{"$f":"Import!M2486","v":0},null,{"$f":"Import!M2495","v":0},null,{"$f":"Import!M2504","v":0},null,{"$f":"Import!M2513","v":0},null,150,null,{"$f":"Import!M2522","v":0},null,{"$f":"Import!M2531","v":0},null,{"$f":"Import!M2540","v":0},null,{"$f":"Import!M2549","v":0},null,-0.75]
[null,41,"BSCR Rating 3",{"$f":"Import!M2487","v":0},null,{"$f":"Import!M2496","v":0},null,{"$f":"Import!M2505","v":0},null,{"$f":"Import!M2514","v":0},null,260,null,{"$f":"Import!M2523","v":0},null,{"$f":"Import!M2532","v":0},null,{"$f":"Import!M2541","v":0},null,{"$f":"Import!M2550","v":0},null,-0.75]
[null,42,"BSCR Rating 4",{"$f":"Import!M2488","v":0},null,{"$f":"Import!M2497","v":0},null,{"$f":"Import!M2506","v":0},null,{"$f":"Import!M2515","v":0},null,450,null,{"$f":"Import!M2524","v":0},null,{"$f":"Import!M2533","v":0},null,{"$f":"Import!M2542","v":0},null,{"$f":"Import!M2551","v":0},null,-0.75]
[null,43,"BSCR Rating 5",{"$f":"Import!M2489","v":0},null,{"$f":"Import!M2498","v":0},null,{"$f":"Import!M2507","v":0},null,{"$f":"Import!M2516","v":0},null,840,null,{"$f":"Import!M2525","v":0},null,{"$f":"Import!M2534","v":0},null,{"$f":"Import!M2543","v":0},null,{"$f":"Import!M2552","v":0},null,-0.75]
[null,44,"BSCR Rating 6",{"$f":"Import!M2490","v":0},null,{"$f":"Import!M2499","v":0},null,{"$f":"Import!M2508","v":0},null,{"$f":"Import!M2517","v":0},null,1620,null,{"$f":"Import!M2526","v":0},null,{"$f":"Import!M2535","v":0},null,{"$f":"Import!M2544","v":0},null,{"$f":"Import!M2553","v":0},null,-0.75]
[null,45,"BSCR Rating 7",{"$f":"Import!M2491","v":0},null,{"$f":"Import!M2500","v":0},null,{"$f":"Import!M2509","v":0},null,{"$f":"Import!M2518","v":0},null,1620,null,{"$f":"Import!M2527","v":0},null,{"$f":"Import!M2536","v":0},null,{"$f":"Import!M2545","v":0},null,{"$f":"Import!M2554","v":0},null,-0.75]
[null,46,"BSCR Rating 8",{"$f":"Import!M2492","v":0},null,{"$f":"Import!M2501","v":0},null,{"$f":"Import!M2510","v":0},null,{"$f":"Import!M2519","v":0},null,1620,null,{"$f":"Import!M2528","v":0},null,{"$f":"Import!M2537","v":0},null,{"$f":"Import!M2546","v":0},null,{"$f":"Import!M2555","v":0},null,-0.75]
[null,47,"Total Spread",{"$f":"SUM(D67:D76)","v":0},null,{"$f":"SUM(F67:F76)","v":0},null,{"$f":"SUM(H67:H76)","v":0},null,{"$f":"SUM(J67:J76)","v":0},null,null,null,{"$f":"SUM(N67:N76)","v":0},null,{"$f":"SUM(P67:P76)","v":0},0,0,0,0,0]
[]
[null,null,"Spread Risk Check",null,null,null,null,null,null,null,null,null,null,{"$f":"IF(ROUND(D77-N77,0)=0,\"Yes\",\"No\")","v":"Yes"},null,null,null,{"$f":"IF(ROUND(H77-R77,0)=0,\"Yes\",\"No\")","v":"Yes"}]
[null,null,"Difference",null,null,null,null,null,null,null,null,null,null,{"$f":"ROUND(D77-N77,0)","v":0},null,null,null,{"$f":"ROUND(H77-R77,0)","v":0}]
[]
[null,null,null,"Market Value of Derivatives with Positive Market Value",null,"Market Value of Derivatives with Negative Market Value",null,"Market Value of Collateral, Excluding any over-collateralization"]
[null,null,"Counterparty Default Risk for OTC Derivatives"]
[null,{"$f":"B77+1","v":48},"BSCR Rating 0",{"$f":"Import!M2556","v":0},null,{"$f":"Import!M2565","v":0},null,{"$f":"Import!M2574","v":0}]
[null,{"$f":"B84+1","v":49},"BSCR Rating 1",{"$f":"Import!M2557","v":0},null,{"$f":"Import!M2566","v":0},null,{"$f":"Import!M2575","v":0}]
[null,{"$f":"B85+1","v":50},"BSCR Rating 2",{"$f":"Import!M2558","v":0},null,{"$f":"Import!M2567","v":0},null,{"$f":"Import!M2576","v":0}]
[null,51,"BSCR Rating 3",{"$f":"Import!M2559","v":0},null,{"$f":"Import!M2568","v":0},null,{"$f":"Import!M2577","v":0}]
[null,52,"BSCR Rating 4",{"$f":"Import!M2560","v":0},null,{"$f":"Import!M2569","v":0},null,{"$f":"Import!M2578","v":0}]
[null,53,"BSCR Rating 5",{"$f":"Import!M2561","v":0},null,{"$f":"Import!M2570","v":0},null,{"$f":"Import!M2579","v":0}]
[null,54,"BSCR Rating 6",{"$f":"Import!M2562","v":0},null,{"$f":"Import!M2571","v":0},null,{"$f":"Import!M2580","v":0}]
[null,55,"BSCR Rating 7",{"$f":"Import!M2563","v":0},null,{"$f":"Import!M2572","v":0},null,{"$f":"Import!M2581","v":0}]
[null,56,"BSCR Rating 8",{"$f":"Import!M2564","v":0},null,{"$f":"Import!M2573","v":0},null,{"$f":"Import!M2582","v":0}]
[null,57,"Total Default Risk for OTC Derivatives ",{"$f":"SUM(D83:D92)","v":0},null,{"$f":"SUM(F83:F92)","v":0},null,{"$f":"SUM(H83:H92)","v":0}]
[]
[null,{"$f":"B93+1","v":58},"Cash and Cash Equivalents",{"$f":"Import!M2583","v":0}]
[]
[null,{"$f":"B95+1","v":59},"Total Segregated Account Assets",{"$f":"X27+X62+D77+H77+D93+F93+H93+D95","v":0}]
[]
[null,null,"Please include in the table below any assets, included in this Schedule, for which NAIC ratings were used to map to the BSCR rating classes"]
[null,null,"Information on the use of NAIC ratings\n(for disclosure purposes only)","CORPORATE & SOVEREIGN BONDS",null,"RESIDENTIAL MORTGAGE-BACKED SECURITIES",null,"COMMERCIAL MORTGAGE-BACKED SECURITIES / ASSET-BACKED SECURITIES",null,"BOND MUTUAL FUNDS",null,"MORTGAGE LOANS",null,"PREFERRED STOCKS",null,"OTHER ASSETS"]
[null,null,"NAIC Class 1",{"$f":"Import!M2584","v":0},null,{"$f":"Import!M2591","v":0},null,{"$f":"Import!M2598","v":0},null,{"$f":"Import!M2605","v":0},null,{"$f":"Import!M2612","v":0},null,{"$f":"Import!M2619","v":0},null,{"$f":"Import!M2626","v":0}]
[null,null,"NAIC Class 2",{"$f":"Import!M2585","v":0},null,{"$f":"Import!M2592","v":0},null,{"$f":"Import!M2599","v":0},null,{"$f":"Import!M2606","v":0},null,{"$f":"Import!M2613","v":0},null,{"$f":"Import!M2620","v":0},null,{"$f":"Import!M2627","v":0}]
[null,null,"NAIC Class 3",{"$f":"Import!M2586","v":0},null,{"$f":"Import!M2593","v":0},null,{"$f":"Import!M2600","v":0},null,{"$f":"Import!M2607","v":0},null,{"$f":"Import!M2614","v":0},null,{"$f":"Import!M2621","v":0},null,{"$f":"Import!M2628","v":0}]
[null,null,"NAIC Class 4",{"$f":"Import!M2587","v":0},null,{"$f":"Import!M2594","v":0},null,{"$f":"Import!M2601","v":0},null,{"$f":"Import!M2608","v":0},null,{"$f":"Import!M2615","v":0},null,{"$f":"Import!M2622","v":0},null,{"$f":"Import!M2629","v":0}]
[null,null,"NAIC Class 5",{"$f":"Import!M2588","v":0},null,{"$f":"Import!M2595","v":0},null,{"$f":"Import!M2602","v":0},null,{"$f":"Import!M2609","v":0},null,{"$f":"Import!M2616","v":0},null,{"$f":"Import!M2623","v":0},null,{"$f":"Import!M2630","v":0}]
[null,null,"NAIC Class 6",{"$f":"Import!M2589","v":0},null,{"$f":"Import!M2596","v":0},null,{"$f":"Import!M2603","v":0},null,{"$f":"Import!M2610","v":0},null,{"$f":"Import!M2617","v":0},null,{"$f":"Import!M2624","v":0},null,{"$f":"Import!M2631","v":0}]
[null,null,null,{"$f":"SUM(D101:D106)","v":0},null,{"$f":"SUM(F101:F106)","v":0},null,{"$f":"SUM(H101:H106)","v":0},null,{"$f":"SUM(J101:J106)","v":0},null,{"$f":"SUM(L101:L106)","v":0},null,{"$f":"SUM(N101:N106)","v":0},null,{"$f":"SUM(P101:P106)","v":0}]

{"sheet":"Schedule IIE (EBS)","index":31,"n_rows":107,"n_cols":28,"rows_kept":107,"cut":false,"hidden":false,"merged":[[33,27,34,27],[2,1,2,3],[3,3,3,5],[4,3,4,5],[7,3,7,5],[7,7,7,9],[7,23,7,25],[32,3,32,13],[33,3,34,5],[33,7,33,13],[33,23,34,23],[7,11,7,13],[34,7,34,9],[34,11,34,13],[33,15,34,15],[33,17,34,17],[7,15,7,17],[32,15,32,19],[7,19,7,21],[63,3,63,11],[63,13,63,21],[64,3,64,5],[64,7,64,9],[64,13,64,15],[64,17,64,19],[33,19,34,19]]}
[null,"DEPOSIT ASSETS AND LIABILITIES",null,null,null,null,null,null,null,null,null,null,null,null,null,null,null,null,null,null,null,null,null,null,null,null,null,{"$f":"HYPERLINK(\"#'Index'!A1\",\"Return to Index\")","v":"Return to Index"}]
[]
[null,{"$f":"+'Company Information'!C7","v":"Enter Company Name"}]
[null,"As at",null,{"$f":" TEXT('Company Information'!C3,\"d mmmm yyyy\")","v":"31 December 2023"},null,null,null,null,null,null,null,null,null,null,null,null,null,null,null,null,null,null,null,null,null,"SCHEDULE IIE (EBS)"]
[null,{"$f":"+'Form 1EBS'!B4","v":"expressed in ['000s]"},null,{"$f":"+'Form 1EBS'!C4","v":"United States Dollars"}]
[]
[null,null,null,"(1)",null,"(2)",null,"(3)",null,"(4)",null,"(5)",null,"(6)",null,"(7)",null,"(8)",null,"(9)",null,"(10)",null,"(11)",null,"(12)"]
[null,null,null,"Corporate & Sovereign Bonds",null,null,null,"Residential Mortgage Backed Securities",null,null,null,"Commercial Mortgage Backed Securities / Asset- Backed Securities",null,null,null,"Bond Mutual Funds",null,null,null,"Mortgage Loans",null,null,null,"TOTAL"]
[null,null,null,{"$f":"+'Form 1EBS'!$F$7","v":"2023-12-31"},null,{"$f":"+'Form 1EBS'!$H$7","v":"2022-12-31"},null,{"$f":"+'Form 1EBS'!$F$7","v":"2023-12-31"},null,{"$f":"+'Form 1EBS'!$H$7","v":"2022-12-31"},null,{"$f":"+'Form 1EBS'!$F$7","v":"2023-12-31"},null,{"$f":"+'Form 1EBS'!$H$7","v":"2022-12-31"},null,{"$f":"+'Form 1EBS'!$F$7","v":"2023-12-31"},null,{"$f":"+'Form 1EBS'!$H$7","v":"2022-12-31"},null,{"$f":"+'Form 1EBS'!$F$7","v":"2023-12-31"},null,{"$f":"+'Form 1EBS'!$H$7","v":"2022-12-31"},null,{"$f":"+'Form 1EBS'!$F$7","v":"2023-12-31"},null,{"$f":"+'Form 1EBS'!$H$7","v":"2022-12-31"}]
[null,null,null,{"$f":"+'Form 1EBS'!$F$8","v":" ('000s)"},null,{"$f":"+'Form 1EBS'!$F$8","v":" ('000s)"},null,{"$f":"+'Form 1EBS'!$F$8","v":" ('000s)"},null,{"$f":"+'Form 1EBS'!$F$8","v":" ('000s)"},null,{"$f":"+'Form 1EBS'!$F$8","v":" ('000s)"},null,{"$f":"+'Form 1EBS'!$F$8","v":" ('000s)"},null,{"$f":"+'Form 1EBS'!$F$8","v":" ('000s)"},null,{"$f":"+'Form 1EBS'!$F$8","v":" ('000s)"},null,{"$f":"+'Form 1EBS'!$F$8","v":" ('000s)"},null,{"$f":"+'Form 1EBS'!$F$8","v":" ('000s)"},null,{"$f":"+'Form 1EBS'!$F$8","v":" ('000s)"},null,{"$f":"+'Form 1EBS'!$H$8","v":" ('000s)"}]
[null,"Line no. "]
[null,"Quoted and Unquoted Bonds and Debentures"]
[null,1,"BSCR Rating 0",{"$f":"Import!M2634","v":0},null,{"$f":"Import!O2634","v":0},null,null,null,null,null,null,null,null,null,{"$f":"Import!M2659","v":0},null,{"$f":"Import!O2659","v":0},null,null,null,null,null,{"$f":"D13+H13+L13+P13","v":0},null,{"$f":"F13+J13+N13+R13","v":0}]
[null,2,"BSCR Rating 1",{"$f":"Import!M2635","v":0},null,{"$f":"Import!O2635","v":0},null,{"$f":"Import!M2643","v":0},null,{"$f":"Import!O2643","v":0},null,{"$f":"Import!M2651","v":0},null,{"$f":"Import!O2651","v":0},null,{"$f":"Import!M2660","v":0},null,{"$f":"Import!O2660","v":0},null,null,null,null,null,{"$f":"D14+H14+L14+P14","v":0},null,0]
[null,3,"BSCR Rating 2",{"$f":"Import!M2636","v":0},null,{"$f":"Import!O2636","v":0},null,{"$f":"Import!M2644","v":0},null,{"$f":"Import!O2644","v":0},null,{"$f":"Import!M2652","v":0},null,{"$f":"Import!O2652","v":0},null,{"$f":"Import!M2661","v":0},null,{"$f":"Import!O2661","v":0},null,null,null,null,null,0,null,0]
[null,4,"BSCR Rating 3",{"$f":"Import!M2637","v":0},null,{"$f":"Import!O2637","v":0},null,{"$f":"Import!M2645","v":0},null,{"$f":"Import!O2645","v":0},null,{"$f":"Import!M2653","v":0},null,{"$f":"Import!O2653","v":0},null,{"$f":"Import!M2662","v":0},null,{"$f":"Import!O2662","v":0},null,null,null,null,null,0,null,0]
[null,5,"BSCR Rating 4",{"$f":"Import!M2638","v":0},null,{"$f":"Import!O2638","v":0},null,{"$f":"Import!M2646","v":0},null,{"$f":"Import!O2646","v":0},null,{"$f":"Import!M2654","v":0},null,{"$f":"Import!O2654","v":0},null,{"$f":"Import!M2663","v":0},null,{"$f":"Import!O2663","v":0},null,null,null,null,null,0,null,0]
[null,6,"BSCR Rating 5",{"$f":"Import!M2639","v":0},null,{"$f":"Import!O2639","v":0},null,{"$f":"Import!M2647","v":0},null,{"$f":"Import!O2647","v":0},null,{"$f":"Import!M2655","v":0},null,{"$f":"Import!O2655","v":0},null,{"$f":"Import!M2664","v":0},null,{"$f":"Import!O2664","v":0},null,null,null,null,null,0,null,0]
[null,7,"BSCR Rating 6",{"$f":"Import!M2640","v":0},null,{"$f":"Import!O2640","v":0},null,{"$f":"Import!M2648","v":0},null,{"$f":"Import!O2648","v":0},null,{"$f":"Import!M2656","v":0},null,{"$f":"Import!O2656","v":0},null,{"$f":"Import!M2665","v":0},null,{"$f":"Import!O2665","v":0},null,null,null,null,null,0,null,0]
[null,8,"BSCR Rating 7",{"$f":"Import!M2641","v":0},null,{"$f":"Import!O2641","v":0},null,{"$f":"Import!M2649","v":0},null,{"$f":"Import!O2649","v":0},null,{"$f":"Import!M2657","v":0},null,{"$f":"Import!O2657","v":0},null,{"$f":"Import!M2666","v":0},null,{"$f":"Import!O2666","v":0},null,null,null,null,null,0,null,0]
[null,9,"BSCR Rating 8",{"$f":"Import!M2642","v":0},null,{"$f":"Import!O2642","v":0},null,{"$f":"Import!M2650","v":0},null,{"$f":"Import!O2650","v":0},null,{"$f":"Import!M2658","v":0},null,{"$f":"Import!O2658","v":0},null,{"$f":"Import!M2667","v":0},null,{"$f":"Import!O2667","v":0},null,null,null,null,null,0,null,0]
[null,{"$f":"B21+1","v":10},"Insured/Guaranteed Mortgages",null,null,null,null,null,null,null,null,null,null,null,null,null,null,null,null,{"$f":"Import!M2668","v":0},null,{"$f":"Import!O2668","v":0},null,{"$f":"D22+H22+L22+P22+T22","v":0},null,{"$f":"F22+J22+N22+R22+V22","v":0}]
[null,{"$f":"B22+1","v":11},"Other Commercial and Farm Mortgages",null,null,null,null,null,null,null,null,null,null,null,null,null,null,null,null,{"$f":"Import!M2669","v":0},null,{"$f":"Import!O2669","v":0},null,{"$f":"D23+H23+L23+P23+T23","v":0},null,0]
[null,{"$f":"B23+1","v":12},"Other Residential Mortgages",null,null,null,null,null,null,null,null,null,null,null,null,null,null,null,null,{"$f":"Import!M2670","v":0},null,{"$f":"Import!O2670","v":0},null,{"$f":"D24+H24+L24+P24+T24","v":0},null,{"$f":"F24+J24+N24+R24+V24","v":0}]
[null,13,"Mortgages Not In Good Standing",null,null,null,null,null,null,null,null,null,null,null,null,null,null,null,null,{"$f":"Import!M2671","v":0},null,{"$f":"Import!O2671","v":0},null,0,null,0]
[]
[null,{"$f":"B25+1","v":14},"Total",{"$f":"SUM(D13:D21)","v":0},null,{"$f":"SUM(F13:F21)","v":0},null,{"$f":"SUM(H13:H21)","v":0},null,{"$f":"SUM(J13:J21)","v":0},null,{"$f":"SUM(L13:L21)","v":0},null,{"$f":"SUM(N13:N21)","v":0},null,{"$f":"SUM(P13:P21)","v":0},null,{"$f":"SUM(R13:R21)","v":0},null,{"$f":"SUM(T13:T26)","v":0},null,{"$f":"SUM(V13:V26)","v":0},null,{"$f":"SUM(X13:X26)","v":0},null,{"$f":"SUM(Z13:Z26)","v":0}]
[]
[]
[]
[]
[]
[null,null,null,"ASSETS",null,null,null,null,null,null,null,null,null,null,null,"Liabilities"]
[null,null,null,"Long Exposures",null,null,null,"Short Exposures",null,null,null,null,null,null,null,null,null,"Without Management Actions",null,"With Management Actions",null,null,null,"Total Assets Before Shock",null,null,null,"Shocks"]
[null,null,null,null,null,null,null,"Qualifying as Assets held for risk-mitigation purposes",null,null,null,"Not Qualifying as Assets held for risk-mitigation purposes",null,null,null,null,null,null,null,null,null,null,null,null,null,null,null,"Shocks"]
[null,null,null,"Before Shock",null,"After Shock",null,"Before Shock",null,"After Shock",null,"Before Shock",null,"After Shock",null,"Before Shock",null,"After Shock",null,"After Shock"]
[null,null,null,{"$f":"+'Form 1EBS'!$F$8","v":" ('000s)"},null,{"$f":"+'Form 1EBS'!$F$8","v":" ('000s)"},null,{"$f":"+'Form 1EBS'!$H$8","v":" ('000s)"},null,{"$f":"+'Form 1EBS'!$H$8","v":" ('000s)"},null,{"$f":"+'Form 1EBS'!$F$8","v":" ('000s)"},null,{"$f":"+'Form 1EBS'!$F$8","v":" ('000s)"},null,{"$f":"+'Form 1EBS'!$H$8","v":" ('000s)"},null,{"$f":"+'Form 1EBS'!$H$8","v":" ('000s)"},null,{"$f":"+'Form 1EBS'!$F$8","v":" ('000s)"},null,null,null,{"$f":"+'Form 1EBS'!$F$8","v":" ('000s)"}]
[null,"Equity Holdings "]
[null,{"$f":"B27+1","v":15},"Strategic Holdings - Listed",{"$f":"Import!M2672","v":0},null,{"$f":"IF(OR(Import!M2694=0,Import!M2694=\"\"),(1-$AB39)*D39,Import!M2694)","v":0},null,{"$f":"Import!M2716","v":0},null,{"$f":"IF(OR(Import!M2738=0,Import!M2738=\"\"),(1-$AB39)*H39,Import!M2738)","v":0},null,{"$f":"Import!M2760","v":0},null,{"$f":"IF(OR(Import!M2782=0,Import!M2782=\"\"),(1-$AB39)*L39,Import!M2782)","v":0},null,{"$f":"Import!M2804","v":0},null,{"$f":"IF(OR(Import!M2826=0,Import!M2826=\"\"),P39,Import!M2826)","v":0},null,{"$f":"IF(OR(Import!M2848=0,Import!M2848=\"\"),R39,Import!M2848)","v":0},null,null,null,{"$f":"D39+H39+L39","v":0},null,null,null,0.2]
[null,{"$f":"B39+1","v":16},"Duration Based",{"$f":"Import!M2673","v":0},null,{"$f":"IF(OR(Import!M2695=0,Import!M2695=\"\"),(1-$AB40)*D40,Import!M2695)","v":0},null,{"$f":"Import!M2717","v":0},null,{"$f":"IF(OR(Import!M2739=0,Import!M2739=\"\"),(1-$AB40)*H40,Import!M2739)","v":0},null,{"$f":"Import!M2761","v":0},null,{"$f":"IF(OR(Import!M2783=0,Import!M2783=\"\"),(1-$AB40)*L40,Import!M2783)","v":0},null,{"$f":"Import!M2805","v":0},null,{"$f":"IF(OR(Import!M2827=0,Import!M2827=\"\"),P40,Import!M2827)","v":0},null,{"$f":"IF(OR(Import!M2849=0,Import!M2849=\"\"),R40,Import!M2849)","v":0},null,null,null,{"$f":"D40+H40+L40","v":0},null,null,null,0.2]
[null,17,"Listed Equity Securities in Developed Markets",{"$f":"Import!M2674","v":0},null,{"$f":"IF(OR(Import!M2696=0,Import!M2696=\"\"),(1-$AB41)*D41,Import!M2696)","v":0},null,{"$f":"Import!M2718","v":0},null,{"$f":"IF(OR(Import!M2740=0,Import!M2740=\"\"),(1-$AB41)*H41,Import!M2740)","v":0},null,{"$f":"Import!M2762","v":0},null,{"$f":"IF(OR(Import!M2784=0,Import!M2784=\"\"),(1-$AB41)*L41,Import!M2784)","v":0},null,{"$f":"Import!M2806","v":0},null,{"$f":"IF(OR(Import!M2828=0,Import!M2828=\"\"),P41,Import!M2828)","v":0},null,{"$f":"IF(OR(Import!M2850=0,Import!M2850=\"\"),R41,Import!M2850)","v":0},null,null,null,0,null,null,null,0.35]
[null,18,"Preferred Stocks, BSCR Rating 1",{"$f":"Import!M2675","v":0},null,{"$f":"IF(OR(Import!M2697=0,Import!M2697=\"\"),(1-$AB42)*D42,Import!M2697)","v":0},null,{"$f":"Import!M2719","v":0},null,{"$f":"IF(OR(Import!M2741=0,Import!M2741=\"\"),(1-$AB42)*H42,Import!M2741)","v":0},null,{"$f":"Import!M2763","v":0},null,{"$f":"IF(OR(Import!M2785=0,Import!M2785=\"\"),(1-$AB42)*L42,Import!M2785)","v":0},null,{"$f":"Import!M2807","v":0},null,{"$f":"IF(OR(Import!M2829=0,Import!M2829=\"\"),P42,Import!M2829)","v":0},null,{"$f":"IF(OR(Import!M2851=0,Import!M2851=\"\"),R42,Import!M2851)","v":0},null,null,null,0,null,null,null,6.0000000000000001E-3]
[null,19,"Preferred Stocks, BSCR Rating 2",{"$f":"Import!M2676","v":0},null,{"$f":"IF(OR(Import!M2698=0,Import!M2698=\"\"),(1-$AB43)*D43,Import!M2698)","v":0},null,{"$f":"Import!M2720","v":0},null,{"$f":"IF(OR(Import!M2742=0,Import!M2742=\"\"),(1-$AB43)*H43,Import!M2742)","v":0},null,{"$f":"Import!M2764","v":0},null,{"$f":"IF(OR(Import!M2786=0,Import!M2786=\"\"),(1-$AB43)*L43,Import!M2786)","v":0},null,{"$f":"Import!M2808","v":0},null,{"$f":"IF(OR(Import!M2830=0,Import!M2830=\"\"),P43,Import!M2830)","v":0},null,{"$f":"IF(OR(Import!M2852=0,Import!M2852=\"\"),R43,Import!M2852)","v":0},null,null,null,0,null,null,null,1.2E-2]
[null,20,"Preferred Stocks, BSCR Rating 3",{"$f":"Import!M2677","v":0},null,{"$f":"IF(OR(Import!M2699=0,Import!M2699=\"\"),(1-$AB44)*D44,Import!M2699)","v":0},null,{"$f":"Import!M2721","v":0},null,{"$f":"IF(OR(Import!M2743=0,Import!M2743=\"\"),(1-$AB44)*H44,Import!M2743)","v":0},null,{"$f":"Import!M2765","v":0},null,{"$f":"IF(OR(Import!M2787=0,Import!M2787=\"\"),(1-$AB44)*L44,Import!M2787)","v":0},null,{"$f":"Import!M2809","v":0},null,{"$f":"IF(OR(Import!M2831=0,Import!M2831=\"\"),P44,Import!M2831)","v":0},null,{"$f":"IF(OR(Import!M2853=0,Import!M2853=\"\"),R44,Import!M2853)","v":0},null,null,null,0,null,null,null,0.02]
[null,21,"Preferred Stocks, BSCR Rating 4",{"$f":"Import!M2678","v":0},null,{"$f":"IF(OR(Import!M2700=0,Import!M2700=\"\"),(1-$AB45)*D45,Import!M2700)","v":0},null,{"$f":"Import!M2722","v":0},null,{"$f":"IF(OR(Import!M2744=0,Import!M2744=\"\"),(1-$AB45)*H45,Import!M2744)","v":0},null,{"$f":"Import!M2766","v":0},null,{"$f":"IF(OR(Import!M2788=0,Import!M2788=\"\"),(1-$AB45)*L45,Import!M2788)","v":0},null,{"$f":"Import!M2810","v":0},null,{"$f":"IF(OR(Import!M2832=0,Import!M2832=\"\"),P45,Import!M2832)","v":0},null,{"$f":"IF(OR(Import!M2854=0,Import!M2854=\"\"),R45,Import!M2854)","v":0},null,null,null,0,null,null,null,0.04]
[null,22,"Preferred Stocks, BSCR Rating 5",{"$f":"Import!M2679","v":0},null,{"$f":"IF(OR(Import!M2701=0,Import!M2701=\"\"),(1-$AB46)*D46,Import!M2701)","v":0},null,{"$f":"Import!M2723","v":0},null,{"$f":"IF(OR(Import!M2745=0,Import!M2745=\"\"),(1-$AB46)*H46,Import!M2745)","v":0},null,{"$f":"Import!M2767","v":0},null,{"$f":"IF(OR(Import!M2789=0,Import!M2789=\"\"),(1-$AB46)*L46,Import!M2789)","v":0},null,{"$f":"Import!M2811","v":0},null,{"$f":"IF(OR(Import!M2833=0,Import!M2833=\"\"),P46,Import!M2833)","v":0},null,{"$f":"IF(OR(Import!M2855=0,Import!M2855=\"\"),R46,Import!M2855)","v":0},null,null,null,0,null,null,null,0.11]
[null,23,"Preferred Stocks, BSCR Rating 6",{"$f":"Import!M2680","v":0},null,{"$f":"IF(OR(Import!M2702=0,Import!M2702=\"\"),(1-$AB47)*D47,Import!M2702)","v":0},null,{"$f":"Import!M2724","v":0},null,{"$f":"IF(OR(Import!M2746=0,Import!M2746=\"\"),(1-$AB47)*H47,Import!M2746)","v":0},null,{"$f":"Import!M2768","v":0},null,{"$f":"IF(OR(Import!M2790=0,Import!M2790=\"\"),(1-$AB47)*L47,Import!M2790)","v":0},null,{"$f":"Import!M2812","v":0},null,{"$f":"IF(OR(Import!M2834=0,Import!M2834=\"\"),P47,Import!M2834)","v":0},null,{"$f":"IF(OR(Import!M2856=0,Import!M2856=\"\"),R47,Import!M2856)","v":0},null,null,null,0,null,null,null,0.25]
[null,24,"Preferred Stocks, BSCR Rating 7",{"$f":"Import!M2681","v":0},null,{"$f":"IF(OR(Import!M2703=0,Import!M2703=\"\"),(1-$AB48)*D48,Import!M2703)","v":0},null,{"$f":"Import!M2725","v":0},null,{"$f":"IF(OR(Import!M2747=0,Import!M2747=\"\"),(1-$AB48)*H48,Import!M2747)","v":0},null,{"$f":"Import!M2769","v":0},null,{"$f":"IF(OR(Import!M2791=0,Import!M2791=\"\"),(1-$AB48)*L48,Import!M2791)","v":0},null,{"$f":"Import!M2813","v":0},null,{"$f":"IF(OR(Import!M2835=0,Import!M2835=\"\"),P48,Import!M2835)","v":0},null,{"$f":"IF(OR(Import!M2857=0,Import!M2857=\"\"),R48,Import!M2857)","v":0},null,null,null,0,null,null,null,0.35]
[null,25,"Preferred Stocks, BSCR Rating 8",{"$f":"Import!M2682","v":0},null,{"$f":"IF(OR(Import!M2704=0,Import!M2704=\"\"),(1-$AB49)*D49,Import!M2704)","v":0},null,{"$f":"Import!M2726","v":0},null,{"$f":"IF(OR(Import!M2748=0,Import!M2748=\"\"),(1-$AB49)*H49,Import!M2748)","v":0},null,{"$f":"Import!M2770","v":0},null,{"$f":"IF(OR(Import!M2792=0,Import!M2792=\"\"),(1-$AB49)*L49,Import!M2792)","v":0},null,{"$f":"Import!M2814","v":0},null,{"$f":"IF(OR(Import!M2836=0,Import!M2836=\"\"),P49,Import!M2836)","v":0},null,{"$f":"IF(OR(Import!M2858=0,Import!M2858=\"\"),R49,Import!M2858)","v":0},null,null,null,0,null,null,null,0.35]
[null,26,"Equity Derivatives on Type 1 Equities",{"$f":"Import!M2683","v":0},null,{"$f":"Import!M2705","v":0},null,{"$f":"Import!M2727","v":0},null,{"$f":"Import!M2749","v":0},null,{"$f":"Import!M2771","v":0},null,{"$f":"Import!M2793","v":0},null,{"$f":"Import!M2815","v":0},null,{"$f":"IF(OR(Import!M2837=0,Import!M2837=\"\"),P50,Import!M2837)","v":0},null,{"$f":"IF(OR(Import!M2859=0,Import!M2859=\"\"),R50,Import!M2859)","v":0},null,null,null,0,null,null,null,0.35]
[null,27,"Strategic Holdings - Unlisted",{"$f":"Import!M2684","v":0},null,{"$f":"IF(OR(Import!M2706=0,Import!M2706=\"\"),(1-$AB51)*D51,Import!M2706)","v":0},null,{"$f":"Import!M2728","v":0},null,{"$f":"IF(OR(Import!M2750=0,Import!M2750=\"\"),(1-$AB51)*H51,Import!M2750)","v":0},null,{"$f":"Import!M2772","v":0},null,{"$f":"IF(OR(Import!M2794=0,Import!M2794=\"\"),(1-$AB51)*L51,Import!M2794)","v":0},null,{"$f":"Import!M2816","v":0},null,{"$f":"IF(OR(Import!M2838=0,Import!M2838=\"\"),P51,Import!M2838)","v":0},null,{"$f":"IF(OR(Import!M2860=0,Import!M2860=\"\"),R51,Import!M2860)","v":0},null,null,null,0,null,null,null,0.2]
[null,28,"Other Equities / Other Assets",{"$f":"Import!M2685","v":0},null,{"$f":"IF(OR(Import!M2707=0,Import!M2707=\"\"),(1-$AB52)*D52,Import!M2707)","v":0},null,{"$f":"Import!M2729","v":0},null,{"$f":"IF(OR(Import!M2751=0,Import!M2751=\"\"),(1-$AB52)*H52,Import!M2751)","v":0},null,{"$f":"Import!M2773","v":0},null,{"$f":"IF(OR(Import!M2795=0,Import!M2795=\"\"),(1-$AB52)*L52,Import!M2795)","v":0},null,{"$f":"Import!M2817","v":0},null,{"$f":"IF(OR(Import!M2839=0,Import!M2839=\"\"),P52,Import!M2839)","v":0},null,{"$f":"IF(OR(Import!M2861=0,Import!M2861=\"\"),R52,Import!M2861)","v":0},null,null,null,0,null,null,null,0.45]
[null,29,"Letters of Credit",{"$f":"Import!M2686","v":0},null,{"$f":"IF(OR(Import!M2708=0,Import!M2708=\"\"),(1-$AB53)*D53,Import!M2708)","v":0},null,{"$f":"Import!M2730","v":0},null,{"$f":"IF(OR(Import!M2752=0,Import!M2752=\"\"),(1-$AB53)*H53,Import!M2752)","v":0},null,{"$f":"Import!M2774","v":0},null,{"$f":"IF(OR(Import!M2796=0,Import!M2796=\"\"),(1-$AB53)*L53,Import!M2796)","v":0},null,{"$f":"Import!M2818","v":0},null,{"$f":"IF(OR(Import!M2840=0,Import!M2840=\"\"),P53,Import!M2840)","v":0},null,{"$f":"IF(OR(Import!M2862=0,Import!M2862=\"\"),R53,Import!M2862)","v":0},null,null,null,0,null,null,null,0.2]
[null,30,"Intangible assets",{"$f":"Import!M2687","v":0},null,{"$f":"IF(OR(Import!M2709=0,Import!M2709=\"\"),(1-$AB54)*D54,Import!M2709)","v":0},null,{"$f":"Import!M2731","v":0},null,{"$f":"IF(OR(Import!M2753=0,Import!M2753=\"\"),(1-$AB54)*H54,Import!M2753)","v":0},null,{"$f":"Import!M2775","v":0},null,{"$f":"IF(OR(Import!M2797=0,Import!M2797=\"\"),(1-$AB54)*L54,Import!M2797)","v":0},null,{"$f":"Import!M2819","v":0},null,{"$f":"IF(OR(Import!M2841=0,Import!M2841=\"\"),P54,Import!M2841)","v":0},null,{"$f":"IF(OR(Import!M2863=0,Import!M2863=\"\"),R54,Import!M2863)","v":0},null,null,null,0,null,null,null,0.2]
[null,31,"Pension Benefit Surplus",{"$f":"Import!M2688","v":0},null,{"$f":"IF(OR(Import!M2710=0,Import!M2710=\"\"),(1-$AB55)*D55,Import!M2710)","v":0},null,{"$f":"Import!M2732","v":0},null,{"$f":"IF(OR(Import!M2754=0,Import!M2754=\"\"),(1-$AB55)*H55,Import!M2754)","v":0},null,{"$f":"Import!M2776","v":0},null,{"$f":"IF(OR(Import!M2798=0,Import!M2798=\"\"),(1-$AB55)*L55,Import!M2798)","v":0},null,{"$f":"Import!M2820","v":0},null,{"$f":"IF(OR(Import!M2842=0,Import!M2842=\"\"),P55,Import!M2842)","v":0},null,{"$f":"IF(OR(Import!M2864=0,Import!M2864=\"\"),R55,Import!M2864)","v":0},null,null,null,0,null,null,null,0.2]
[null,32,"Equity Derivatives on Type 2 Equities",{"$f":"Import!M2689","v":0},null,{"$f":"Import!M2711","v":0},null,{"$f":"Import!M2733","v":0},null,{"$f":"Import!M2755","v":0},null,{"$f":"Import!M2777","v":0},null,{"$f":"Import!M2799","v":0},null,{"$f":"Import!M2821","v":0},null,{"$f":"IF(OR(Import!M2843=0,Import!M2843=\"\"),P56,Import!M2843)","v":0},null,{"$f":"IF(OR(Import!M2865=0,Import!M2865=\"\"),R56,Import!M2865)","v":0},null,null,null,0,null,null,null,0.45]
[null,33,"Infrastructure",{"$f":"Import!M2690","v":0},null,{"$f":"IF(OR(Import!M2712=0,Import!M2712=\"\"),(1-$AB57)*D57,Import!M2712)","v":0},null,{"$f":"Import!M2734","v":0},null,{"$f":"IF(OR(Import!M2756=0,Import!M2756=\"\"),(1-$AB57)*H57,Import!M2756)","v":0},null,{"$f":"Import!M2778","v":0},null,{"$f":"IF(OR(Import!M2800=0,Import!M2800=\"\"),(1-$AB57)*L57,Import!M2800)","v":0},null,{"$f":"Import!M2822","v":0},null,{"$f":"IF(OR(Import!M2844=0,Import!M2844=\"\"),P57,Import!M2844)","v":0},null,{"$f":"IF(OR(Import!M2866=0,Import!M2866=\"\"),R57,Import!M2866)","v":0},null,null,null,0,null,null,null,0.25]
[null,34,"Derivatives on Infrastructure",{"$f":"Import!M2691","v":0},null,{"$f":"Import!M2713","v":0},null,{"$f":"Import!M2735","v":0},null,{"$f":"Import!M2757","v":0},null,{"$f":"Import!M2779","v":0},null,{"$f":"Import!M2801","v":0},null,{"$f":"Import!M2823","v":0},null,{"$f":"IF(OR(Import!M2845=0,Import!M2845=\"\"),P58,Import!M2845)","v":0},null,{"$f":"IF(OR(Import!M2867=0,Import!M2867=\"\"),R58,Import!M2867)","v":0},null,null,null,0,null,null,null,0.25]
[null,35,"Equity Real Estate 1",{"$f":"Import!M2692","v":0},null,{"$f":"IF(OR(Import!M2714=0,Import!M2714=\"\"),(1-$AB59)*D59,Import!M2714)","v":0},null,{"$f":"Import!M2736","v":0},null,{"$f":"IF(OR(Import!M2758=0,Import!M2758=\"\"),(1-$AB59)*H59,Import!M2758)","v":0},null,{"$f":"Import!M2780","v":0},null,{"$f":"IF(OR(Import!M2802=0,Import!M2802=\"\"),(1-$AB59)*L59,Import!M2802)","v":0},null,{"$f":"Import!M2824","v":0},null,{"$f":"IF(OR(Import!M2846=0,Import!M2846=\"\"),P59,Import!M2846)","v":0},null,{"$f":"IF(OR(Import!M2868=0,Import!M2868=\"\"),R59,Import!M2868)","v":0},null,null,null,0,null,null,null,0.1]
[null,36,"Equity Real Estate 2",{"$f":"Import!M2693","v":0},null,{"$f":"IF(OR(Import!M2715=0,Import!M2715=\"\"),(1-$AB60)*D60,Import!M2715)","v":0},null,{"$f":"Import!M2737","v":0},null,{"$f":"IF(OR(Import!M2759=0,Import!M2759=\"\"),(1-$AB60)*H60,Import!M2759)","v":0},null,{"$f":"Import!M2781","v":0},null,{"$f":"IF(OR(Import!M2803=0,Import!M2803=\"\"),(1-$AB60)*L60,Import!M2803)","v":0},null,{"$f":"Import!M2825","v":0},null,{"$f":"IF(OR(Import!M2847=0,Import!M2847=\"\"),P60,Import!M2847)","v":0},null,{"$f":"IF(OR(Import!M2869=0,Import!M2869=\"\"),R60,Import!M2869)","v":0},null,null,null,0,null,null,null,0.2]
[]
[null,{"$f":"B60+1","v":37},"Total Equity Holdings",{"$f":"SUM(D38:D61)","v":0},null,{"$f":"SUM(F38:F61)","v":0},null,{"$f":"SUM(H38:H61)","v":0},null,{"$f":"SUM(J38:J61)","v":0},null,{"$f":"SUM(L38:L61)","v":0},null,{"$f":"SUM(N38:N61)","v":0},null,{"$f":"SUM(P38:P61)","v":0},null,{"$f":"SUM(R38:R61)","v":0},null,{"$f":"SUM(T38:T61)","v":0},null,null,null,{"$f":"SUM(X38:X61)","v":0}]
[]
[null,null,null,"Spread Up",null,null,null,null,null,null,null,null,null,"Spread Down"]
[null,null,null,"Long Exposures",null,null,null,"Short Exposures",null,null,null,"Shock (bps)",null,"Long Exposures",null,null,null,"Short Exposures",null,null,null,"Shock Rates"]
[null,null,null,"Before Shock",null,"After Shock",null,"Before Shock",null,"After Shock",null,null,null,"Before Shock",null,"After Shock",null,"Before Shock",null,"After Shock"]
[null,null,"Spread Risk for Credit Derivatives",null,null,null,null,null,null,null,null,null,null,null,null,null,{"$f":"SUM(G71:G80)","v":0},null,{"$f":"SUM(I71:I80)","v":0},null,{"$f":"SUM(K71:K80)","v":0}]
[null,{"$f":"B62+1","v":38},"BSCR Rating 0",{"$f":"Import!M2870","v":0},null,{"$f":"Import!M2879","v":0},null,{"$f":"Import!M2888","v":0},null,{"$f":"Import!M2897","v":0},null,0,null,{"$f":"Import!M2906","v":0},null,{"$f":"Import!M2915","v":0},null,{"$f":"Import!M2924","v":0},null,{"$f":"Import!M2933","v":0},null,0]
[null,{"$f":"B68+1","v":39},"BSCR Rating 1",{"$f":"Import!M2871","v":0},null,{"$f":"Import!M2880","v":0},null,{"$f":"Import!M2889","v":0},null,{"$f":"Import!M2898","v":0},null,130,null,{"$f":"Import!M2907","v":0},null,{"$f":"Import!M2916","v":0},null,{"$f":"Import!M2925","v":0},null,{"$f":"Import!M2934","v":0},null,-0.75]
[null,{"$f":"B69+1","v":40},"BSCR Rating 2",{"$f":"Import!M2872","v":0},null,{"$f":"Import!M2881","v":0},null,{"$f":"Import!M2890","v":0},null,{"$f":"Import!M2899","v":0},null,150,null,{"$f":"Import!M2908","v":0},null,{"$f":"Import!M2917","v":0},null,{"$f":"Import!M2926","v":0},null,{"$f":"Import!M2935","v":0},null,-0.75]
[null,41,"BSCR Rating 3",{"$f":"Import!M2873","v":0},null,{"$f":"Import!M2882","v":0},null,{"$f":"Import!M2891","v":0},null,{"$f":"Import!M2900","v":0},null,260,null,{"$f":"Import!M2909","v":0},null,{"$f":"Import!M2918","v":0},null,{"$f":"Import!M2927","v":0},null,{"$f":"Import!M2936","v":0},null,-0.75]
[null,42,"BSCR Rating 4",{"$f":"Import!M2874","v":0},null,{"$f":"Import!M2883","v":0},null,{"$f":"Import!M2892","v":0},null,{"$f":"Import!M2901","v":0},null,450,null,{"$f":"Import!M2910","v":0},null,{"$f":"Import!M2919","v":0},null,{"$f":"Import!M2928","v":0},null,{"$f":"Import!M2937","v":0},null,-0.75]
[null,43,"BSCR Rating 5",{"$f":"Import!M2875","v":0},null,{"$f":"Import!M2884","v":0},null,{"$f":"Import!M2893","v":0},null,{"$f":"Import!M2902","v":0},null,840,null,{"$f":"Import!M2911","v":0},null,{"$f":"Import!M2920","v":0},null,{"$f":"Import!M2929","v":0},null,{"$f":"Import!M2938","v":0},null,-0.75]
[null,44,"BSCR Rating 6",{"$f":"Import!M2876","v":0},null,{"$f":"Import!M2885","v":0},null,{"$f":"Import!M2894","v":0},null,{"$f":"Import!M2903","v":0},null,1620,null,{"$f":"Import!M2912","v":0},null,{"$f":"Import!M2921","v":0},null,{"$f":"Import!M2930","v":0},null,{"$f":"Import!M2939","v":0},null,-0.75]
[null,45,"BSCR Rating 7",{"$f":"Import!M2877","v":0},null,{"$f":"Import!M2886","v":0},null,{"$f":"Import!M2895","v":0},null,{"$f":"Import!M2904","v":0},null,1620,null,{"$f":"Import!M2913","v":0},null,{"$f":"Import!M2922","v":0},null,{"$f":"Import!M2931","v":0},null,{"$f":"Import!M2940","v":0},null,-0.75]
[null,46,"BSCR Rating 8",{"$f":"Import!M2878","v":0},null,{"$f":"Import!M2887","v":0},null,{"$f":"Import!M2896","v":0},null,{"$f":"Import!M2905","v":0},null,1620,null,{"$f":"Import!M2914","v":0},null,{"$f":"Import!M2923","v":0},null,{"$f":"Import!M2932","v":0},null,{"$f":"Import!M2941","v":0},null,-0.75]
[null,47,"Total Spread",{"$f":"SUM(D67:D76)","v":0},null,{"$f":"SUM(F67:F76)","v":0},null,{"$f":"SUM(H67:H76)","v":0},null,{"$f":"SUM(J67:J76)","v":0},null,null,null,{"$f":"SUM(N67:N76)","v":0},null,{"$f":"SUM(P67:P76)","v":0},0,0,0,0,0]
[]
[null,null,"Spread Risk Check",null,null,null,null,null,null,null,null,null,null,{"$f":"IF(ROUND(D77-N77,0)=0,\"Yes\",\"No\")","v":"Yes"},null,null,null,{"$f":"IF(ROUND(H77-R77,0)=0,\"Yes\",\"No\")","v":"Yes"}]
[null,null,"Difference",null,null,null,null,null,null,null,null,null,null,{"$f":"ROUND(D77-N77,0)","v":0},null,null,null,{"$f":"ROUND(H77-R77,0)","v":0}]
[]
[null,null,null,"Market Value of Derivatives with Positive Market Value",null,"Market Value of Derivatives with Negative Market Value",null,"Market Value of Collateral, Excluding any over-collateralization"]
[null,null,"Counterparty Default Risk for OTC Derivatives"]
[null,{"$f":"B77+1","v":48},"BSCR Rating 0",{"$f":"Import!M2942","v":0},null,{"$f":"Import!M2951","v":0},null,{"$f":"Import!M2960","v":0}]
[null,{"$f":"B84+1","v":49},"BSCR Rating 1",{"$f":"Import!M2943","v":0},null,{"$f":"Import!M2952","v":0},null,{"$f":"Import!M2961","v":0}]
[null,{"$f":"B85+1","v":50},"BSCR Rating 2",{"$f":"Import!M2944","v":0},null,{"$f":"Import!M2953","v":0},null,{"$f":"Import!M2962","v":0}]
[null,51,"BSCR Rating 3",{"$f":"Import!M2945","v":0},null,{"$f":"Import!M2954","v":0},null,{"$f":"Import!M2963","v":0}]
[null,52,"BSCR Rating 4",{"$f":"Import!M2946","v":0},null,{"$f":"Import!M2955","v":0},null,{"$f":"Import!M2964","v":0}]
[null,53,"BSCR Rating 5",{"$f":"Import!M2947","v":0},null,{"$f":"Import!M2956","v":0},null,{"$f":"Import!M2965","v":0}]
[null,54,"BSCR Rating 6",{"$f":"Import!M2948","v":0},null,{"$f":"Import!M2957","v":0},null,{"$f":"Import!M2966","v":0}]
[null,55,"BSCR Rating 7",{"$f":"Import!M2949","v":0},null,{"$f":"Import!M2958","v":0},null,{"$f":"Import!M2967","v":0}]
[null,56,"BSCR Rating 8",{"$f":"Import!M2950","v":0},null,{"$f":"Import!M2959","v":0},null,{"$f":"Import!M2968","v":0}]
[null,57,"Total Default Risk for OTC Derivatives ",{"$f":"SUM(D83:D92)","v":0},null,{"$f":"SUM(F83:F92)","v":0},null,{"$f":"SUM(H83:H92)","v":0}]
[]
[null,{"$f":"B93+1","v":58},"Cash and Cash Equivalents",{"$f":"Import!M2969","v":0}]
[]
[null,{"$f":"B95+1","v":59},"Total Deposit Assets",{"$f":"X27+X62+D77+H77+D93+F93+H93+D95","v":0}]
[]
[null,null,"Please include in the table below any assets, included in this Schedule, for which NAIC ratings were used to map to the BSCR rating classes"]
[null,null,"Information on the use of NAIC ratings\n(for disclosure purposes only)","CORPORATE & SOVEREIGN BONDS",null,"RESIDENTIAL MORTGAGE-BACKED SECURITIES",null,"COMMERCIAL MORTGAGE-BACKED SECURITIES / ASSET-BACKED SECURITIES",null,"BOND MUTUAL FUNDS",null,"MORTGAGE LOANS",null,"PREFERRED STOCKS",null,"OTHER ASSETS"]
[null,null,"NAIC Class 1",{"$f":"Import!M2970","v":0},null,{"$f":"Import!M2977","v":0},null,{"$f":"Import!M2984","v":0},null,{"$f":"Import!M2991","v":0},null,{"$f":"Import!M2998","v":0},null,{"$f":"Import!M3005","v":0},null,{"$f":"Import!M3012","v":0}]
[null,null,"NAIC Class 2",{"$f":"Import!M2971","v":0},null,{"$f":"Import!M2978","v":0},null,{"$f":"Import!M2985","v":0},null,{"$f":"Import!M2992","v":0},null,{"$f":"Import!M2999","v":0},null,{"$f":"Import!M3006","v":0},null,{"$f":"Import!M3013","v":0}]
[null,null,"NAIC Class 3",{"$f":"Import!M2972","v":0},null,{"$f":"Import!M2979","v":0},null,{"$f":"Import!M2986","v":0},null,{"$f":"Import!M2993","v":0},null,{"$f":"Import!M3000","v":0},null,{"$f":"Import!M3007","v":0},null,{"$f":"Import!M3014","v":0}]
[null,null,"NAIC Class 4",{"$f":"Import!M2973","v":0},null,{"$f":"Import!M2980","v":0},null,{"$f":"Import!M2987","v":0},null,{"$f":"Import!M2994","v":0},null,{"$f":"Import!M3001","v":0},null,{"$f":"Import!M3008","v":0},null,{"$f":"Import!M3015","v":0}]
[null,null,"NAIC Class 5",{"$f":"Import!M2974","v":0},null,{"$f":"Import!M2981","v":0},null,{"$f":"Import!M2988","v":0},null,{"$f":"Import!M2995","v":0},null,{"$f":"Import!M3002","v":0},null,{"$f":"Import!M3009","v":0},null,{"$f":"Import!M3016","v":0}]
[null,null,"NAIC Class 6",{"$f":"Import!M2975","v":0},null,{"$f":"Import!M2982","v":0},null,{"$f":"Import!M2989","v":0},null,{"$f":"Import!M2996","v":0},null,{"$f":"Import!M3003","v":0},null,{"$f":"Import!M3010","v":0},null,{"$f":"Import!M3017","v":0}]
[null,null,null,{"$f":"SUM(D101:D106)","v":0},null,{"$f":"SUM(F101:F106)","v":0},null,{"$f":"SUM(H101:H106)","v":0},null,{"$f":"SUM(J101:J106)","v":0},null,{"$f":"SUM(L101:L106)","v":0},null,{"$f":"SUM(N101:N106)","v":0},null,{"$f":"SUM(P101:P106)","v":0}]

{"sheet":"Schedule IIF (EBS)","index":32,"n_rows":107,"n_cols":28,"rows_kept":107,"cut":false,"hidden":false,"merged":[[33,27,34,27],[2,1,2,3],[3,3,3,5],[4,3,4,5],[7,3,7,5],[7,7,7,9],[7,23,7,25],[32,3,32,13],[33,3,34,5],[33,7,33,13],[33,23,34,23],[7,11,7,13],[34,7,34,9],[34,11,34,13],[32,15,32,19],[33,15,34,15],[33,17,34,17],[33,19,34,19],[7,19,7,21],[64,3,64,5],[64,7,64,9],[64,13,64,15],[64,17,64,19],[7,15,7,17],[63,3,63,11],[63,13,63,21]]}
[null,"OTHER SUNDRY ASSETS AND LIABILITIES",null,null,null,null,null,null,null,null,null,null,null,null,null,null,null,null,null,null,null,null,null,null,null,null,null,{"$f":"HYPERLINK(\"#'Index'!A1\",\"Return to Index\")","v":"Return to Index"}]
[]
[null,{"$f":"+'Company Information'!C7","v":"Enter Company Name"}]
[null,"As at",null,{"$f":" TEXT('Company Information'!C3,\"d mmmm yyyy\")","v":"31 December 2023"},null,null,null,null,null,null,null,null,null,null,null,null,null,null,null,null,null,null,null,null,null,"SCHEDULE IIF (EBS)"]
[null,{"$f":"+'Form 1EBS'!B4","v":"expressed in ['000s]"},null,{"$f":"+'Form 1EBS'!C4","v":"United States Dollars"}]
[]
[null,null,null,"(1)",null,"(2)",null,"(3)",null,"(4)",null,"(5)",null,"(6)",null,"(7)",null,"(8)",null,"(9)",null,"(10)",null,"(11)",null,"(12)"]
[null,null,null,"Corporate & Sovereign Bonds",null,null,null,"Residential Mortgage Backed Securities",null,null,null,"Commercial Mortgage Backed Securities / Asset- Backed Securities",null,null,null,"Bond Mutual Funds",null,null,null,"Mortgage Loans",null,null,null,"TOTAL"]
[null,null,null,{"$f":"+'Form 1EBS'!$F$7","v":"2023-12-31"},null,{"$f":"+'Form 1EBS'!$H$7","v":"2022-12-31"},null,{"$f":"+'Form 1EBS'!$F$7","v":"2023-12-31"},null,{"$f":"+'Form 1EBS'!$H$7","v":"2022-12-31"},null,{"$f":"+'Form 1EBS'!$F$7","v":"2023-12-31"},null,{"$f":"+'Form 1EBS'!$H$7","v":"2022-12-31"},null,{"$f":"+'Form 1EBS'!$F$7","v":"2023-12-31"},null,{"$f":"+'Form 1EBS'!$H$7","v":"2022-12-31"},null,{"$f":"+'Form 1EBS'!$F$7","v":"2023-12-31"},null,{"$f":"+'Form 1EBS'!$H$7","v":"2022-12-31"},null,{"$f":"+'Form 1EBS'!$F$7","v":"2023-12-31"},null,{"$f":"+'Form 1EBS'!$H$7","v":"2022-12-31"}]
[null,null,null,{"$f":"+'Form 1EBS'!$F$8","v":" ('000s)"},null,{"$f":"+'Form 1EBS'!$F$8","v":" ('000s)"},null,{"$f":"+'Form 1EBS'!$F$8","v":" ('000s)"},null,{"$f":"+'Form 1EBS'!$F$8","v":" ('000s)"},null,{"$f":"+'Form 1EBS'!$F$8","v":" ('000s)"},null,{"$f":"+'Form 1EBS'!$F$8","v":" ('000s)"},null,{"$f":"+'Form 1EBS'!$F$8","v":" ('000s)"},null,{"$f":"+'Form 1EBS'!$F$8","v":" ('000s)"},null,{"$f":"+'Form 1EBS'!$F$8","v":" ('000s)"},null,{"$f":"+'Form 1EBS'!$F$8","v":" ('000s)"},null,{"$f":"+'Form 1EBS'!$F$8","v":" ('000s)"},null,{"$f":"+'Form 1EBS'!$H$8","v":" ('000s)"}]
[null,"Line no. "]
[null,"Quoted and Unquoted Bonds and Debentures"]
[null,1,"BSCR Rating 0",{"$f":"Import!M3020","v":0},null,{"$f":"Import!O3020","v":0},null,null,null,null,null,null,null,null,null,{"$f":"Import!M3045","v":0},null,{"$f":"Import!O3045","v":0},null,null,null,null,null,{"$f":"D13+H13+L13+P13","v":0},null,{"$f":"F13+J13+N13+R13","v":0}]
[null,2,"BSCR Rating 1",{"$f":"Import!M3021","v":0},null,{"$f":"Import!O3021","v":0},null,{"$f":"Import!M3029","v":0},null,{"$f":"Import!O3029","v":0},null,{"$f":"Import!M3037","v":0},null,{"$f":"Import!O3037","v":0},null,{"$f":"Import!M3046","v":0},null,{"$f":"Import!O3046","v":0},null,null,null,null,null,{"$f":"D14+H14+L14+P14","v":0},null,0]
[null,3,"BSCR Rating 2",{"$f":"Import!M3022","v":0},null,{"$f":"Import!O3022","v":0},null,{"$f":"Import!M3030","v":0},null,{"$f":"Import!O3030","v":0},null,{"$f":"Import!M3038","v":0},null,{"$f":"Import!O3038","v":0},null,{"$f":"Import!M3047","v":0},null,{"$f":"Import!O3047","v":0},null,null,null,null,null,0,null,0]
[null,4,"BSCR Rating 3",{"$f":"Import!M3023","v":0},null,{"$f":"Import!O3023","v":0},null,{"$f":"Import!M3031","v":0},null,{"$f":"Import!O3031","v":0},null,{"$f":"Import!M3039","v":0},null,{"$f":"Import!O3039","v":0},null,{"$f":"Import!M3048","v":0},null,{"$f":"Import!O3048","v":0},null,null,null,null,null,0,null,0]
[null,5,"BSCR Rating 4",{"$f":"Import!M3024","v":0},null,{"$f":"Import!O3024","v":0},null,{"$f":"Import!M3032","v":0},null,{"$f":"Import!O3032","v":0},null,{"$f":"Import!M3040","v":0},null,{"$f":"Import!O3040","v":0},null,{"$f":"Import!M3049","v":0},null,{"$f":"Import!O3049","v":0},null,null,null,null,null,0,null,0]
[null,6,"BSCR Rating 5",{"$f":"Import!M3025","v":0},null,{"$f":"Import!O3025","v":0},null,{"$f":"Import!M3033","v":0},null,{"$f":"Import!O3033","v":0},null,{"$f":"Import!M3041","v":0},null,{"$f":"Import!O3041","v":0},null,{"$f":"Import!M3050","v":0},null,{"$f":"Import!O3050","v":0},null,null,null,null,null,0,null,0]
[null,7,"BSCR Rating 6",{"$f":"Import!M3026","v":0},null,{"$f":"Import!O3026","v":0},null,{"$f":"Import!M3034","v":0},null,{"$f":"Import!O3034","v":0},null,{"$f":"Import!M3042","v":0},null,{"$f":"Import!O3042","v":0},null,{"$f":"Import!M3051","v":0},null,{"$f":"Import!O3051","v":0},null,null,null,null,null,0,null,0]
[null,8,"BSCR Rating 7",{"$f":"Import!M3027","v":0},null,{"$f":"Import!O3027","v":0},null,{"$f":"Import!M3035","v":0},null,{"$f":"Import!O3035","v":0},null,{"$f":"Import!M3043","v":0},null,{"$f":"Import!O3043","v":0},null,{"$f":"Import!M3052","v":0},null,{"$f":"Import!O3052","v":0},null,null,null,null,null,0,null,0]
[null,9,"BSCR Rating 8",{"$f":"Import!M3028","v":0},null,{"$f":"Import!O3028","v":0},null,{"$f":"Import!M3036","v":0},null,{"$f":"Import!O3036","v":0},null,{"$f":"Import!M3044","v":0},null,{"$f":"Import!O3044","v":0},null,{"$f":"Import!M3053","v":0},null,{"$f":"Import!O3053","v":0},null,null,null,null,null,0,null,0]
[null,{"$f":"B21+1","v":10},"Insured/Guaranteed Mortgages",null,null,null,null,null,null,null,null,null,null,null,null,null,null,null,null,{"$f":"Import!M3054","v":0},null,{"$f":"Import!O3054","v":0},null,{"$f":"D22+H22+L22+P22+T22","v":0},null,{"$f":"F22+J22+N22+R22+V22","v":0}]
[null,{"$f":"B22+1","v":11},"Other Commercial and Farm Mortgages",null,null,null,null,null,null,null,null,null,null,null,null,null,null,null,null,{"$f":"Import!M3055","v":0},null,{"$f":"Import!O3055","v":0},null,{"$f":"D23+H23+L23+P23+T23","v":0},null,0]
[null,{"$f":"B23+1","v":12},"Other Residential Mortgages",null,null,null,null,null,null,null,null,null,null,null,null,null,null,null,null,{"$f":"Import!M3056","v":0},null,{"$f":"Import!O3056","v":0},null,{"$f":"D24+H24+L24+P24+T24","v":0},null,{"$f":"F24+J24+N24+R24+V24","v":0}]
[null,13,"Mortgages Not In Good Standing",null,null,null,null,null,null,null,null,null,null,null,null,null,null,null,null,{"$f":"Import!M3057","v":0},null,{"$f":"Import!O3057","v":0},null,0,null,0]
[]
[null,{"$f":"B25+1","v":14},"Total",{"$f":"SUM(D13:D21)","v":0},null,{"$f":"SUM(F13:F21)","v":0},null,{"$f":"SUM(H13:H21)","v":0},null,{"$f":"SUM(J13:J21)","v":0},null,{"$f":"SUM(L13:L21)","v":0},null,{"$f":"SUM(N13:N21)","v":0},null,{"$f":"SUM(P13:P21)","v":0},null,{"$f":"SUM(R13:R21)","v":0},null,{"$f":"SUM(T13:T26)","v":0},null,{"$f":"SUM(V13:V26)","v":0},null,{"$f":"SUM(X13:X26)","v":0},null,{"$f":"SUM(Z13:Z26)","v":0}]
[]
[]
[]
[]
[]
[null,null,null,"ASSETS",null,null,null,null,null,null,null,null,null,null,null,"Liabilities"]
[null,null,null,"Long Exposures",null,null,null,"Short Exposures",null,null,null,null,null,null,null,null,null,"Without Management Actions",null,"With Management Actions",null,null,null,"Total Assets Before Shock",null,null,null,"Shocks"]
[null,null,null,null,null,null,null,"Qualifying as Assets held for risk-mitigation purposes",null,null,null,"Not Qualifying as Assets held for risk-mitigation purposes",null,null,null,null,null,null,null,null,null,null,null,null,null,null,null,"Shocks"]
[null,null,null,"Before Shock",null,"After Shock",null,"Before Shock",null,"After Shock",null,"Before Shock",null,"After Shock",null,"Before Shock",null,"After Shock",null,"After Shock"]
[null,null,null,{"$f":"+'Form 1EBS'!$F$8","v":" ('000s)"},null,{"$f":"+'Form 1EBS'!$F$8","v":" ('000s)"},null,{"$f":"+'Form 1EBS'!$H$8","v":" ('000s)"},null,{"$f":"+'Form 1EBS'!$H$8","v":" ('000s)"},null,{"$f":"+'Form 1EBS'!$F$8","v":" ('000s)"},null,{"$f":"+'Form 1EBS'!$F$8","v":" ('000s)"},null,{"$f":"+'Form 1EBS'!$H$8","v":" ('000s)"},null,{"$f":"+'Form 1EBS'!$H$8","v":" ('000s)"},null,{"$f":"+'Form 1EBS'!$F$8","v":" ('000s)"},null,null,null,{"$f":"+'Form 1EBS'!$F$8","v":" ('000s)"}]
[null,"Equity Holdings "]
[null,{"$f":"B27+1","v":15},"Strategic Holdings - Listed",{"$f":"Import!M3058","v":0},null,{"$f":"IF(OR(Import!M3080=0,Import!M3080=\"\"),(1-$AB39)*D39,Import!M3080)","v":0},null,{"$f":"Import!M3102","v":0},null,{"$f":"IF(OR(Import!M3124=0,Import!M3124=\"\"),(1-$AB39)*H39,Import!M3124)","v":0},null,{"$f":"Import!M3146","v":0},null,{"$f":"IF(OR(Import!M3168=0,Import!M3168=\"\"),(1-$AB39)*L39,Import!M3168)","v":0},null,{"$f":"Import!M3190","v":0},null,{"$f":"IF(OR(Import!M3212=0,Import!M3212=\"\"),P39,Import!M3212)","v":0},null,{"$f":"IF(OR(Import!M3234=0,Import!M3234=\"\"),R39,Import!M3234)","v":0},null,null,null,{"$f":"D39+H39+L39","v":0},null,null,null,0.2]
[null,{"$f":"B39+1","v":16},"Duration Based",{"$f":"Import!M3059","v":0},null,{"$f":"IF(OR(Import!M3081=0,Import!M3081=\"\"),(1-$AB40)*D40,Import!M3081)","v":0},null,{"$f":"Import!M3103","v":0},null,{"$f":"IF(OR(Import!M3125=0,Import!M3125=\"\"),(1-$AB40)*H40,Import!M3125)","v":0},null,{"$f":"Import!M3147","v":0},null,{"$f":"IF(OR(Import!M3169=0,Import!M3169=\"\"),(1-$AB40)*L40,Import!M3169)","v":0},null,{"$f":"Import!M3191","v":0},null,{"$f":"IF(OR(Import!M3213=0,Import!M3213=\"\"),P40,Import!M3213)","v":0},null,{"$f":"IF(OR(Import!M3235=0,Import!M3235=\"\"),R40,Import!M3235)","v":0},null,null,null,{"$f":"D40+H40+L40","v":0},null,null,null,0.2]
[null,17,"Listed Equity Securities in Developed Markets",{"$f":"Import!M3060","v":0},null,{"$f":"IF(OR(Import!M3082=0,Import!M3082=\"\"),(1-$AB41)*D41,Import!M3082)","v":0},null,{"$f":"Import!M3104","v":0},null,{"$f":"IF(OR(Import!M3126=0,Import!M3126=\"\"),(1-$AB41)*H41,Import!M3126)","v":0},null,{"$f":"Import!M3148","v":0},null,{"$f":"IF(OR(Import!M3170=0,Import!M3170=\"\"),(1-$AB41)*L41,Import!M3170)","v":0},null,{"$f":"Import!M3192","v":0},null,{"$f":"IF(OR(Import!M3214=0,Import!M3214=\"\"),P41,Import!M3214)","v":0},null,{"$f":"IF(OR(Import!M3236=0,Import!M3236=\"\"),R41,Import!M3236)","v":0},null,null,null,0,null,null,null,0.35]
[null,18,"Preferred Stocks, BSCR Rating 1",{"$f":"Import!M3061","v":0},null,{"$f":"IF(OR(Import!M3083=0,Import!M3083=\"\"),(1-$AB42)*D42,Import!M3083)","v":0},null,{"$f":"Import!M3105","v":0},null,{"$f":"IF(OR(Import!M3127=0,Import!M3127=\"\"),(1-$AB42)*H42,Import!M3127)","v":0},null,{"$f":"Import!M3149","v":0},null,{"$f":"IF(OR(Import!M3171=0,Import!M3171=\"\"),(1-$AB42)*L42,Import!M3171)","v":0},null,{"$f":"Import!M3193","v":0},null,{"$f":"IF(OR(Import!M3215=0,Import!M3215=\"\"),P42,Import!M3215)","v":0},null,{"$f":"IF(OR(Import!M3237=0,Import!M3237=\"\"),R42,Import!M3237)","v":0},null,null,null,0,null,null,null,6.0000000000000001E-3]
[null,19,"Preferred Stocks, BSCR Rating 2",{"$f":"Import!M3062","v":0},null,{"$f":"IF(OR(Import!M3084=0,Import!M3084=\"\"),(1-$AB43)*D43,Import!M3084)","v":0},null,{"$f":"Import!M3106","v":0},null,{"$f":"IF(OR(Import!M3128=0,Import!M3128=\"\"),(1-$AB43)*H43,Import!M3128)","v":0},null,{"$f":"Import!M3150","v":0},null,{"$f":"IF(OR(Import!M3172=0,Import!M3172=\"\"),(1-$AB43)*L43,Import!M3172)","v":0},null,{"$f":"Import!M3194","v":0},null,{"$f":"IF(OR(Import!M3216=0,Import!M3216=\"\"),P43,Import!M3216)","v":0},null,{"$f":"IF(OR(Import!M3238=0,Import!M3238=\"\"),R43,Import!M3238)","v":0},null,null,null,0,null,null,null,1.2E-2]
[null,20,"Preferred Stocks, BSCR Rating 3",{"$f":"Import!M3063","v":0},null,{"$f":"IF(OR(Import!M3085=0,Import!M3085=\"\"),(1-$AB44)*D44,Import!M3085)","v":0},null,{"$f":"Import!M3107","v":0},null,{"$f":"IF(OR(Import!M3129=0,Import!M3129=\"\"),(1-$AB44)*H44,Import!M3129)","v":0},null,{"$f":"Import!M3151","v":0},null,{"$f":"IF(OR(Import!M3173=0,Import!M3173=\"\"),(1-$AB44)*L44,Import!M3173)","v":0},null,{"$f":"Import!M3195","v":0},null,{"$f":"IF(OR(Import!M3217=0,Import!M3217=\"\"),P44,Import!M3217)","v":0},null,{"$f":"IF(OR(Import!M3239=0,Import!M3239=\"\"),R44,Import!M3239)","v":0},null,null,null,0,null,null,null,0.02]
[null,21,"Preferred Stocks, BSCR Rating 4",{"$f":"Import!M3064","v":0},null,{"$f":"IF(OR(Import!M3086=0,Import!M3086=\"\"),(1-$AB45)*D45,Import!M3086)","v":0},null,{"$f":"Import!M3108","v":0},null,{"$f":"IF(OR(Import!M3130=0,Import!M3130=\"\"),(1-$AB45)*H45,Import!M3130)","v":0},null,{"$f":"Import!M3152","v":0},null,{"$f":"IF(OR(Import!M3174=0,Import!M3174=\"\"),(1-$AB45)*L45,Import!M3174)","v":0},null,{"$f":"Import!M3196","v":0},null,{"$f":"IF(OR(Import!M3218=0,Import!M3218=\"\"),P45,Import!M3218)","v":0},null,{"$f":"IF(OR(Import!M3240=0,Import!M3240=\"\"),R45,Import!M3240)","v":0},null,null,null,0,null,null,null,0.04]
[null,22,"Preferred Stocks, BSCR Rating 5",{"$f":"Import!M3065","v":0},null,{"$f":"IF(OR(Import!M3087=0,Import!M3087=\"\"),(1-$AB46)*D46,Import!M3087)","v":0},null,{"$f":"Import!M3109","v":0},null,{"$f":"IF(OR(Import!M3131=0,Import!M3131=\"\"),(1-$AB46)*H46,Import!M3131)","v":0},null,{"$f":"Import!M3153","v":0},null,{"$f":"IF(OR(Import!M3175=0,Import!M3175=\"\"),(1-$AB46)*L46,Import!M3175)","v":0},null,{"$f":"Import!M3197","v":0},null,{"$f":"IF(OR(Import!M3219=0,Import!M3219=\"\"),P46,Import!M3219)","v":0},null,{"$f":"IF(OR(Import!M3241=0,Import!M3241=\"\"),R46,Import!M3241)","v":0},null,null,null,0,null,null,null,0.11]
[null,23,"Preferred Stocks, BSCR Rating 6",{"$f":"Import!M3066","v":0},null,{"$f":"IF(OR(Import!M3088=0,Import!M3088=\"\"),(1-$AB47)*D47,Import!M3088)","v":0},null,{"$f":"Import!M3110","v":0},null,{"$f":"IF(OR(Import!M3132=0,Import!M3132=\"\"),(1-$AB47)*H47,Import!M3132)","v":0},null,{"$f":"Import!M3154","v":0},null,{"$f":"IF(OR(Import!M3176=0,Import!M3176=\"\"),(1-$AB47)*L47,Import!M3176)","v":0},null,{"$f":"Import!M3198","v":0},null,{"$f":"IF(OR(Import!M3220=0,Import!M3220=\"\"),P47,Import!M3220)","v":0},null,{"$f":"IF(OR(Import!M3242=0,Import!M3242=\"\"),R47,Import!M3242)","v":0},null,null,null,0,null,null,null,0.25]
[null,24,"Preferred Stocks, BSCR Rating 7",{"$f":"Import!M3067","v":0},null,{"$f":"IF(OR(Import!M3089=0,Import!M3089=\"\"),(1-$AB48)*D48,Import!M3089)","v":0},null,{"$f":"Import!M3111","v":0},null,{"$f":"IF(OR(Import!M3133=0,Import!M3133=\"\"),(1-$AB48)*H48,Import!M3133)","v":0},null,{"$f":"Import!M3155","v":0},null,{"$f":"IF(OR(Import!M3177=0,Import!M3177=\"\"),(1-$AB48)*L48,Import!M3177)","v":0},null,{"$f":"Import!M3199","v":0},null,{"$f":"IF(OR(Import!M3221=0,Import!M3221=\"\"),P48,Import!M3221)","v":0},null,{"$f":"IF(OR(Import!M3243=0,Import!M3243=\"\"),R48,Import!M3243)","v":0},null,null,null,0,null,null,null,0.35]
[null,25,"Preferred Stocks, BSCR Rating 8",{"$f":"Import!M3068","v":0},null,{"$f":"IF(OR(Import!M3090=0,Import!M3090=\"\"),(1-$AB49)*D49,Import!M3090)","v":0},null,{"$f":"Import!M3112","v":0},null,{"$f":"IF(OR(Import!M3134=0,Import!M3134=\"\"),(1-$AB49)*H49,Import!M3134)","v":0},null,{"$f":"Import!M3156","v":0},null,{"$f":"IF(OR(Import!M3178=0,Import!M3178=\"\"),(1-$AB49)*L49,Import!M3178)","v":0},null,{"$f":"Import!M3200","v":0},null,{"$f":"IF(OR(Import!M3222=0,Import!M3222=\"\"),P49,Import!M3222)","v":0},null,{"$f":"IF(OR(Import!M3244=0,Import!M3244=\"\"),R49,Import!M3244)","v":0},null,null,null,0,null,null,null,0.35]
[null,26,"Equity Derivatives on Type 1 Equities",{"$f":"Import!M3069","v":0},null,{"$f":"Import!M3091","v":0},null,{"$f":"Import!M3113","v":0},null,{"$f":"Import!M3135","v":0},null,{"$f":"Import!M3157","v":0},null,{"$f":"Import!M3179","v":0},null,{"$f":"Import!M3201","v":0},null,{"$f":"IF(OR(Import!M3223=0,Import!M3223=\"\"),P50,Import!M3223)","v":0},null,{"$f":"IF(OR(Import!M3245=0,Import!M3245=\"\"),R50,Import!M3245)","v":0},null,null,null,0,null,null,null,0.35]
[null,27,"Strategic Holdings - Unlisted",{"$f":"Import!M3070","v":0},null,{"$f":"IF(OR(Import!M3092=0,Import!M3092=\"\"),(1-$AB51)*D51,Import!M3092)","v":0},null,{"$f":"Import!M3114","v":0},null,{"$f":"IF(OR(Import!M3136=0,Import!M3136=\"\"),(1-$AB51)*H51,Import!M3136)","v":0},null,{"$f":"Import!M3158","v":0},null,{"$f":"IF(OR(Import!M3180=0,Import!M3180=\"\"),(1-$AB51)*L51,Import!M3180)","v":0},null,{"$f":"Import!M3202","v":0},null,{"$f":"IF(OR(Import!M3224=0,Import!M3224=\"\"),P51,Import!M3224)","v":0},null,{"$f":"IF(OR(Import!M3246=0,Import!M3246=\"\"),R51,Import!M3246)","v":0},null,null,null,0,null,null,null,0.2]
[null,28,"Other Equities / Other Assets",{"$f":"IF(OR(Import!M3071=0,Import!M3071=\"\"),'Form 1EBS'!F81,Import!M3071)","v":0},null,{"$f":"IF(OR(Import!M3093=0,Import!M3093=\"\"),(1-$AB52)*D52,Import!M3093)","v":0},null,{"$f":"Import!M3115","v":0},null,{"$f":"IF(OR(Import!M3137=0,Import!M3137=\"\"),(1-$AB52)*H52,Import!M3137)","v":0},null,{"$f":"Import!M3159","v":0},null,{"$f":"IF(OR(Import!M3181=0,Import!M3181=\"\"),(1-$AB52)*L52,Import!M3181)","v":0},null,{"$f":"Import!M3203","v":0},null,{"$f":"IF(OR(Import!M3225=0,Import!M3225=\"\"),P52,Import!M3225)","v":0},null,{"$f":"IF(OR(Import!M3247=0,Import!M3247=\"\"),R52,Import!M3247)","v":0},null,null,null,0,null,null,null,0.45]
[null,29,"Letters of Credit",{"$f":"IF(OR(Import!M3072=0,Import!M3072=\"\"),'Form 1EBS'!F88,Import!M3072)","v":0},null,{"$f":"IF(OR(Import!M3094=0,Import!M3094=\"\"),(1-$AB53)*D53,Import!M3094)","v":0},null,{"$f":"Import!M3116","v":0},null,{"$f":"IF(OR(Import!M3138=0,Import!M3138=\"\"),(1-$AB53)*H53,Import!M3138)","v":0},null,{"$f":"Import!M3160","v":0},null,{"$f":"IF(OR(Import!M3182=0,Import!M3182=\"\"),(1-$AB53)*L53,Import!M3182)","v":0},null,{"$f":"Import!M3204","v":0},null,{"$f":"IF(OR(Import!M3226=0,Import!M3226=\"\"),P53,Import!M3226)","v":0},null,{"$f":"IF(OR(Import!M3248=0,Import!M3248=\"\"),R53,Import!M3248)","v":0},null,null,null,0,null,null,null,0.2]
[null,30,"Intangible assets",{"$f":"IF(OR(Import!M3073=0,Import!M3073=\"\"),'Form 1EBS'!F78,Import!M3073)","v":0},null,{"$f":"IF(OR(Import!M3095=0,Import!M3095=\"\"),(1-$AB54)*D54,Import!M3095)","v":0},null,{"$f":"Import!M3117","v":0},null,{"$f":"IF(OR(Import!M3139=0,Import!M3139=\"\"),(1-$AB54)*H54,Import!M3139)","v":0},null,{"$f":"Import!M3161","v":0},null,{"$f":"IF(OR(Import!M3183=0,Import!M3183=\"\"),(1-$AB54)*L54,Import!M3183)","v":0},null,{"$f":"Import!M3205","v":0},null,{"$f":"IF(OR(Import!M3227=0,Import!M3227=\"\"),P54,Import!M3227)","v":0},null,{"$f":"IF(OR(Import!M3249=0,Import!M3249=\"\"),R54,Import!M3249)","v":0},null,null,null,0,null,null,null,0.2]
[null,31,"Pension Benefit Surplus",{"$f":"IF(OR(Import!M3074=0,Import!M3074=\"\"),'Form 1EBS'!F80,Import!M3074)","v":0},null,{"$f":"IF(OR(Import!M3096=0,Import!M3096=\"\"),(1-$AB55)*D55,Import!M3096)","v":0},null,{"$f":"Import!M3118","v":0},null,{"$f":"IF(OR(Import!M3140=0,Import!M3140=\"\"),(1-$AB55)*H55,Import!M3140)","v":0},null,{"$f":"Import!M3162","v":0},null,{"$f":"IF(OR(Import!M3184=0,Import!M3184=\"\"),(1-$AB55)*L55,Import!M3184)","v":0},null,{"$f":"Import!M3206","v":0},null,{"$f":"IF(OR(Import!M3228=0,Import!M3228=\"\"),P55,Import!M3228)","v":0},null,{"$f":"IF(OR(Import!M3250=0,Import!M3250=\"\"),R55,Import!M3250)","v":0},null,null,null,0,null,null,null,0.2]
[null,32,"Equity Derivatives on Type 2 Equities",{"$f":"Import!M3075","v":0},null,{"$f":"Import!M3097","v":0},null,{"$f":"Import!M3119","v":0},null,{"$f":"Import!M3141","v":0},null,{"$f":"Import!M3163","v":0},null,{"$f":"Import!M3185","v":0},null,{"$f":"Import!M3207","v":0},null,{"$f":"IF(OR(Import!M3229=0,Import!M3229=\"\"),P56,Import!M3229)","v":0},null,{"$f":"IF(OR(Import!M3251=0,Import!M3251=\"\"),R56,Import!M3251)","v":0},null,null,null,0,null,null,null,0.45]
[null,33,"Infrastructure",{"$f":"Import!M3076","v":0},null,{"$f":"IF(OR(Import!M3098=0,Import!M3098=\"\"),(1-$AB57)*D57,Import!M3098)","v":0},null,{"$f":"Import!M3120","v":0},null,{"$f":"IF(OR(Import!M3142=0,Import!M3142=\"\"),(1-$AB57)*H57,Import!M3142)","v":0},null,{"$f":"Import!M3164","v":0},null,{"$f":"IF(OR(Import!M3186=0,Import!M3186=\"\"),(1-$AB57)*L57,Import!M3186)","v":0},null,{"$f":"Import!M3208","v":0},null,{"$f":"IF(OR(Import!M3230=0,Import!M3230=\"\"),P57,Import!M3230)","v":0},null,{"$f":"IF(OR(Import!M3252=0,Import!M3252=\"\"),R57,Import!M3252)","v":0},null,null,null,0,null,null,null,0.25]
[null,34,"Derivatives on Infrastructure",{"$f":"Import!M3077","v":0},null,{"$f":"Import!M3099","v":0},null,{"$f":"Import!M3121","v":0},null,{"$f":"Import!M3143","v":0},null,{"$f":"Import!M3165","v":0},null,{"$f":"Import!M3187","v":0},null,{"$f":"Import!M3209","v":0},null,{"$f":"IF(OR(Import!M3231=0,Import!M3231=\"\"),P58,Import!M3231)","v":0},null,{"$f":"IF(OR(Import!M3253=0,Import!M3253=\"\"),R58,Import!M3253)","v":0},null,null,null,0,null,null,null,0.25]
[null,35,"Equity Real Estate 1",{"$f":"Import!M3078","v":0},null,{"$f":"IF(OR(Import!M3100=0,Import!M3100=\"\"),(1-$AB59)*D59,Import!M3100)","v":0},null,{"$f":"Import!M3122","v":0},null,{"$f":"IF(OR(Import!M3144=0,Import!M3144=\"\"),(1-$AB59)*H59,Import!M3144)","v":0},null,{"$f":"Import!M3166","v":0},null,{"$f":"IF(OR(Import!M3188=0,Import!M3188=\"\"),(1-$AB59)*L59,Import!M3188)","v":0},null,{"$f":"Import!M3210","v":0},null,{"$f":"IF(OR(Import!M3232=0,Import!M3232=\"\"),P59,Import!M3232)","v":0},null,{"$f":"IF(OR(Import!M3254=0,Import!M3254=\"\"),R59,Import!M3254)","v":0},null,null,null,0,null,null,null,0.1]
[null,36,"Equity Real Estate 2",{"$f":"Import!M3079","v":0},null,{"$f":"IF(OR(Import!M3101=0,Import!M3101=\"\"),(1-$AB60)*D60,Import!M3101)","v":0},null,{"$f":"Import!M3123","v":0},null,{"$f":"IF(OR(Import!M3145=0,Import!M3145=\"\"),(1-$AB60)*H60,Import!M3145)","v":0},null,{"$f":"Import!M3167","v":0},null,{"$f":"IF(OR(Import!M3189=0,Import!M3189=\"\"),(1-$AB60)*L60,Import!M3189)","v":0},null,{"$f":"Import!M3211","v":0},null,{"$f":"IF(OR(Import!M3233=0,Import!M3233=\"\"),P60,Import!M3233)","v":0},null,{"$f":"IF(OR(Import!M3255=0,Import!M3255=\"\"),R60,Import!M3255)","v":0},null,null,null,0,null,null,null,0.2]
[]
[null,{"$f":"B60+1","v":37},"Total Equity Holdings",{"$f":"SUM(D38:D61)","v":0},null,{"$f":"SUM(F38:F61)","v":0},null,{"$f":"SUM(H38:H61)","v":0},null,{"$f":"SUM(J38:J61)","v":0},null,{"$f":"SUM(L38:L61)","v":0},null,{"$f":"SUM(N38:N61)","v":0},null,{"$f":"SUM(P38:P61)","v":0},null,{"$f":"SUM(R38:R61)","v":0},null,{"$f":"SUM(T38:T61)","v":0},null,null,null,{"$f":"SUM(X38:X61)","v":0}]
[]
[null,null,null,"Spread Up",null,null,null,null,null,null,null,null,null,"Spread Down"]
[null,null,null,"Long Exposures",null,null,null,"Short Exposures",null,null,null,"Shock (bps)",null,"Long Exposures",null,null,null,"Short Exposures",null,null,null,"Shock Rates"]
[null,null,null,"Before Shock",null,"After Shock",null,"Before Shock",null,"After Shock",null,null,null,"Before Shock",null,"After Shock",null,"Before Shock",null,"After Shock"]
[null,null,"Spread Risk for Credit Derivatives",null,null,null,null,null,null,null,null,null,null,null,null,null,{"$f":"SUM(G71:G79)","v":0},null,{"$f":"SUM(I71:I79)","v":0},null,{"$f":"SUM(K71:K79)","v":0}]
[null,{"$f":"B62+1","v":38},"BSCR Rating 0",{"$f":"Import!M3256","v":0},null,{"$f":"Import!M3265","v":0},null,{"$f":"Import!M3274","v":0},null,{"$f":"Import!M3283","v":0},null,0,null,{"$f":"Import!M3292","v":0},null,{"$f":"Import!M3301","v":0},null,{"$f":"Import!M3310","v":0},null,{"$f":"Import!M3319","v":0},null,0]
[null,{"$f":"B68+1","v":39},"BSCR Rating 1",{"$f":"Import!M3257","v":0},null,{"$f":"Import!M3266","v":0},null,{"$f":"Import!M3275","v":0},null,{"$f":"Import!M3284","v":0},null,130,null,{"$f":"Import!M3293","v":0},null,{"$f":"Import!M3302","v":0},null,{"$f":"Import!M3311","v":0},null,{"$f":"Import!M3320","v":0},null,-0.75]
[null,{"$f":"B69+1","v":40},"BSCR Rating 2",{"$f":"Import!M3258","v":0},null,{"$f":"Import!M3267","v":0},null,{"$f":"Import!M3276","v":0},null,{"$f":"Import!M3285","v":0},null,150,null,{"$f":"Import!M3294","v":0},null,{"$f":"Import!M3303","v":0},null,{"$f":"Import!M3312","v":0},null,{"$f":"Import!M3321","v":0},null,-0.75]
[null,41,"BSCR Rating 3",{"$f":"Import!M3259","v":0},null,{"$f":"Import!M3268","v":0},null,{"$f":"Import!M3277","v":0},null,{"$f":"Import!M3286","v":0},null,260,null,{"$f":"Import!M3295","v":0},null,{"$f":"Import!M3304","v":0},null,{"$f":"Import!M3313","v":0},null,{"$f":"Import!M3322","v":0},null,-0.75]
[null,42,"BSCR Rating 4",{"$f":"Import!M3260","v":0},null,{"$f":"Import!M3269","v":0},null,{"$f":"Import!M3278","v":0},null,{"$f":"Import!M3287","v":0},null,450,null,{"$f":"Import!M3296","v":0},null,{"$f":"Import!M3305","v":0},null,{"$f":"Import!M3314","v":0},null,{"$f":"Import!M3323","v":0},null,-0.75]
[null,43,"BSCR Rating 5",{"$f":"Import!M3261","v":0},null,{"$f":"Import!M3270","v":0},null,{"$f":"Import!M3279","v":0},null,{"$f":"Import!M3288","v":0},null,840,null,{"$f":"Import!M3297","v":0},null,{"$f":"Import!M3306","v":0},null,{"$f":"Import!M3315","v":0},null,{"$f":"Import!M3324","v":0},null,-0.75]
[null,44,"BSCR Rating 6",{"$f":"Import!M3262","v":0},null,{"$f":"Import!M3271","v":0},null,{"$f":"Import!M3280","v":0},null,{"$f":"Import!M3289","v":0},null,1620,null,{"$f":"Import!M3298","v":0},null,{"$f":"Import!M3307","v":0},null,{"$f":"Import!M3316","v":0},null,{"$f":"Import!M3325","v":0},null,-0.75]
[null,45,"BSCR Rating 7",{"$f":"Import!M3263","v":0},null,{"$f":"Import!M3272","v":0},null,{"$f":"Import!M3281","v":0},null,{"$f":"Import!M3290","v":0},null,1620,null,{"$f":"Import!M3299","v":0},null,{"$f":"Import!M3308","v":0},null,{"$f":"Import!M3317","v":0},null,{"$f":"Import!M3326","v":0},null,-0.75]
[null,46,"BSCR Rating 8",{"$f":"Import!M3264","v":0},null,{"$f":"Import!M3273","v":0},null,{"$f":"Import!M3282","v":0},null,{"$f":"Import!M3291","v":0},null,1620,null,{"$f":"Import!M3300","v":0},null,{"$f":"Import!M3309","v":0},null,{"$f":"Import!M3318","v":0},null,{"$f":"Import!M3327","v":0},null,-0.75]
[null,47,"Total Spread",{"$f":"SUM(D67:D76)","v":0},null,{"$f":"SUM(F67:F76)","v":0},null,{"$f":"SUM(H67:H76)","v":0},null,{"$f":"SUM(J67:J76)","v":0},null,null,null,{"$f":"SUM(N67:N76)","v":0},null,{"$f":"SUM(P67:P76)","v":0},{"$f":"SUM(Q67:Q76)","v":0},{"$f":"SUM(R67:R76)","v":0},{"$f":"SUM(S67:S76)","v":0},{"$f":"SUM(T67:T76)","v":0},{"$f":"SUM(U67:U76)","v":0}]
[]
[null,null,"Spread Risk Check",null,null,null,null,null,null,null,null,null,null,{"$f":"IF(ROUND(D77-N77,0)=0,\"Yes\",\"No\")","v":"Yes"},null,null,null,{"$f":"IF(ROUND(H77-R77,0)=0,\"Yes\",\"No\")","v":"Yes"}]
[null,null,"Difference",null,null,null,null,null,null,null,null,null,null,{"$f":"ROUND(D77-N77,0)","v":0},null,null,null,{"$f":"ROUND(H77-R77,0)","v":0}]
[]
[null,null,null,"Market Value of Derivatives with Positive Market Value",null,"Market Value of Derivatives with Negative Market Value",null,"Market Value of Collateral, Excluding any over-collateralization"]
[null,null,"Counterparty Default Risk for OTC Derivatives"]
[null,{"$f":"B77+1","v":48},"BSCR Rating 0",{"$f":"Import!M3328","v":0},null,{"$f":"Import!M3337","v":0},null,{"$f":"Import!M3346","v":0}]
[null,{"$f":"B84+1","v":49},"BSCR Rating 1",{"$f":"Import!M3329","v":0},null,{"$f":"Import!M3338","v":0},null,{"$f":"Import!M3347","v":0}]
[null,{"$f":"B85+1","v":50},"BSCR Rating 2",{"$f":"Import!M3330","v":0},null,{"$f":"Import!M3339","v":0},null,{"$f":"Import!M3348","v":0}]
[null,51,"BSCR Rating 3",{"$f":"Import!M3331","v":0},null,{"$f":"Import!M3340","v":0},null,{"$f":"Import!M3349","v":0}]
[null,52,"BSCR Rating 4",{"$f":"Import!M3332","v":0},null,{"$f":"Import!M3341","v":0},null,{"$f":"Import!M3350","v":0}]
[null,53,"BSCR Rating 5",{"$f":"Import!M3333","v":0},null,{"$f":"Import!M3342","v":0},null,{"$f":"Import!M3351","v":0}]
[null,54,"BSCR Rating 6",{"$f":"Import!M3334","v":0},null,{"$f":"Import!M3343","v":0},null,{"$f":"Import!M3352","v":0}]
[null,55,"BSCR Rating 7",{"$f":"Import!M3335","v":0},null,{"$f":"Import!M3344","v":0},null,{"$f":"Import!M3353","v":0}]
[null,56,"BSCR Rating 8",{"$f":"Import!M3336","v":0},null,{"$f":"Import!M3345","v":0},null,{"$f":"Import!M3354","v":0}]
[null,57,"Total Default Risk for OTC Derivatives ",{"$f":"SUM(D83:D92)","v":0},null,{"$f":"SUM(F83:F92)","v":0},null,{"$f":"SUM(H83:H92)","v":0}]
[]
[null,{"$f":"B93+1","v":58},"Cash and Cash Equivalents",{"$f":"Import!M3355","v":0}]
[]
[null,{"$f":"B95+1","v":59},"Total Other Sundry Assets",{"$f":"X27+X62+D77+H77+D93+F93+H93+D95","v":0}]
[]
[null,null,"Please include in the table below any assets, included in this Schedule, for which NAIC ratings were used to map to the BSCR rating classes"]
[null,null,"Information on the use of NAIC ratings\n(for disclosure purposes only)","CORPORATE & SOVEREIGN BONDS",null,"RESIDENTIAL MORTGAGE-BACKED SECURITIES",null,"COMMERCIAL MORTGAGE-BACKED SECURITIES / ASSET-BACKED SECURITIES",null,"BOND MUTUAL FUNDS",null,"MORTGAGE LOANS",null,"PREFERRED STOCKS",null,"OTHER ASSETS"]
[null,null,"NAIC Class 1",{"$f":"Import!M3356","v":0},null,{"$f":"Import!M3363","v":0},null,{"$f":"Import!M3370","v":0},null,{"$f":"Import!M3377","v":0},null,{"$f":"Import!M3384","v":0},null,{"$f":"Import!M3391","v":0},null,{"$f":"Import!M3398","v":0}]
[null,null,"NAIC Class 2",{"$f":"Import!M3357","v":0},null,{"$f":"Import!M3364","v":0},null,{"$f":"Import!M3371","v":0},null,{"$f":"Import!M3378","v":0},null,{"$f":"Import!M3385","v":0},null,{"$f":"Import!M3392","v":0},null,{"$f":"Import!M3399","v":0}]
[null,null,"NAIC Class 3",{"$f":"Import!M3358","v":0},null,{"$f":"Import!M3365","v":0},null,{"$f":"Import!M3372","v":0},null,{"$f":"Import!M3379","v":0},null,{"$f":"Import!M3386","v":0},null,{"$f":"Import!M3393","v":0},null,{"$f":"Import!M3400","v":0}]
[null,null,"NAIC Class 4",{"$f":"Import!M3359","v":0},null,{"$f":"Import!M3366","v":0},null,{"$f":"Import!M3373","v":0},null,{"$f":"Import!M3380","v":0},null,{"$f":"Import!M3387","v":0},null,{"$f":"Import!M3394","v":0},null,{"$f":"Import!M3401","v":0}]
[null,null,"NAIC Class 5",{"$f":"Import!M3360","v":0},null,{"$f":"Import!M3367","v":0},null,{"$f":"Import!M3374","v":0},null,{"$f":"Import!M3381","v":0},null,{"$f":"Import!M3388","v":0},null,{"$f":"Import!M3395","v":0},null,{"$f":"Import!M3402","v":0}]
[null,null,"NAIC Class 6",{"$f":"Import!M3361","v":0},null,{"$f":"Import!M3368","v":0},null,{"$f":"Import!M3375","v":0},null,{"$f":"Import!M3382","v":0},null,{"$f":"Import!M3389","v":0},null,{"$f":"Import!M3396","v":0},null,{"$f":"Import!M3403","v":0}]
[null,null,null,{"$f":"SUM(D101:D106)","v":0},null,{"$f":"SUM(F101:F106)","v":0},null,{"$f":"SUM(H101:H106)","v":0},null,{"$f":"SUM(J101:J106)","v":0},null,{"$f":"SUM(L101:L106)","v":0},null,{"$f":"SUM(N101:N106)","v":0},null,{"$f":"SUM(P101:P106)","v":0}]

{"sheet":"Schedule III","index":33,"n_rows":39,"n_cols":7,"rows_kept":39,"cut":false,"hidden":false,"merged":[[43,1,43,6],[8,2,8,3],[9,2,9,3],[10,2,10,3],[11,2,11,3],[12,2,12,3],[13,2,13,3],[14,2,14,3],[15,2,15,3],[16,2,16,3],[17,2,17,3],[18,2,18,3],[19,2,19,3],[20,2,20,3],[21,2,21,3],[22,2,22,3],[28,2,28,3],[29,2,29,3],[30,2,30,3],[31,2,31,3],[23,2,23,3],[24,2,24,3],[25,2,25,3],[26,2,26,3],[27,2,27,3]]}
[null,"SCHEDULE OF NET LOSS AND LOSS EXPENSE PROVISIONS BY LINE OF BUSINESS",null,null,null,null,{"$f":"HYPERLINK(\"#'Index'!A1\",\"Return to Index\")","v":"Return to Index"}]
[null,{"$f":"'Company Information'!C7","v":"Enter Company Name"}]
[null,"As at",null,{"$f":" TEXT('Company Information'!C3,\"d mmmm yyyy\")","v":"31 December 2023"},null,null,"SCHEDULE III"]
[null,{"$f":"\"expressed in\"& IF(CONFIGURATION!$B$12>1,\" ['\"&MID(CONFIGURATION!$B$12,2,LEN(CONFIGURATION!$B$12))&\"s]\",\"\")","v":"expressed in ['000s]"},null,{"$f":"'Form 1EBS'!C4","v":"United States Dollars"}]
[]
[null,"Schedule ",null,null,{"$f":"'Form 1EBS'!F7","v":"2023-12-31"},null,{"$f":"'Form 1EBS'!H7","v":"2022-12-31"}]
[null,"Line no. ",null,null,{"$f":"CONFIGURATION!$D$12","v":" ('000s)"},null,{"$f":"CONFIGURATION!$D$12","v":" ('000s)"}]
[]
[null,1,"Property Catastrophe",null,{"$f":"Import!E3406","v":0},null,{"$f":"Import!G3406","v":0}]
[null,2,"Property",null,{"$f":"Import!E3407","v":0},null,{"$f":"Import!G3407","v":0}]
[null,3,"Property Non – Proportional",null,{"$f":"Import!E3408","v":0},null,{"$f":"Import!G3408","v":0}]
[null,4,"Personal Accident",null,{"$f":"Import!E3409","v":0},null,{"$f":"Import!G3409","v":0}]
[null,5,"Personal Accident Non- Proportional",null,{"$f":"Import!E3410","v":0},null,{"$f":"Import!G3410","v":0}]
[null,6,"Aviation",null,{"$f":"Import!E3411","v":0},null,{"$f":"Import!G3411","v":0}]
[null,7,"Aviation Non – Proportional",null,{"$f":"Import!E3412","v":0},null,{"$f":"Import!G3412","v":0}]
[null,8,"Credit / Surety",null,{"$f":"Import!E3413","v":0},null,{"$f":"Import!G3413","v":0}]
[null,9,"Credit / Surety Non – Proportional",null,{"$f":"Import!E3414","v":0},null,{"$f":"Import!G3414","v":0}]
[null,10,"Energy Offshore / Marine",null,{"$f":"Import!E3415","v":0},null,{"$f":"Import!G3415","v":0}]
[null,11,"Energy Offshore / Marine Non - Proportional ",null,{"$f":"Import!E3416","v":0},null,{"$f":"Import!G3416","v":0}]
[null,12,"US Casualty",null,{"$f":"Import!E3417","v":0},null,{"$f":"Import!G3417","v":0}]
[null,13,"US Casualty Non - Proportional ",null,{"$f":"Import!E3418","v":0},null,{"$f":"Import!G3418","v":0}]
[null,14,"US Professional",null,{"$f":"Import!E3419","v":0},null,{"$f":"Import!G3419","v":0}]
[null,15,"US Professional Non – Proportional",null,{"$f":"Import!E3420","v":0},null,{"$f":"Import!G3420","v":0}]
[null,16,"US Specialty",null,{"$f":"Import!E3421","v":0},null,{"$f":"Import!G3421","v":0}]
[null,17,"US Specialty Non - Proportional",null,{"$f":"Import!E3422","v":0},null,{"$f":"Import!G3422","v":0}]
[null,18,"International Motor",null,{"$f":"Import!E3423","v":0},null,{"$f":"Import!G3423","v":0}]
[null,19,"International Motor Non – Proportional",null,{"$f":"Import!E3424","v":0},null,{"$f":"Import!G3424","v":0}]
[null,20,"International Casualty Non Motor",null,{"$f":"Import!E3425","v":0},null,{"$f":"Import!G3425","v":0}]
[null,21,"International Casualty Non Motor Non – Proportional ",null,{"$f":"Import!E3426","v":0},null,{"$f":"Import!G3426","v":0}]
[null,22,"Retro Property",null,{"$f":"Import!E3427","v":0},null,{"$f":"Import!G3427","v":0}]
[null,23,"Structured / Finite Reinsurance",null,{"$f":"Import!E3428","v":0},null,{"$f":"Import!G3428","v":0}]
[null,24,"Health",null,{"$f":"Import!E3429","v":0},null,{"$f":"Import!G3429","v":0}]
[null,25,"Total ",null,{"$f":"SUM(E9:E32)","v":0},null,{"$f":"SUM(G9:G32)","v":0}]
[]
[null,null,null,null,{"$f":"IF(E36=\"TRUE\",HYPERLINK(\"#'Form 1SFS'!E124\",\"TRUE\"),HYPERLINK(\"#'Form 1SFS'!E124\",\"FALSE\"))","v":"TRUE"},null,{"$f":"IF(G36=\"TRUE\",HYPERLINK(\"#'Form 1SFS'!G124\",\"TRUE\"),HYPERLINK(\"#'Form 1SFS'!G124\",\"FALSE\"))","v":"TRUE"}]
[null,null,null,null,{"$f":"IF('Company Information'!$C$2=\"IFRS\",\nIF(ROUND(E33-('Form 1ASFS'!I234+'Form 1ASFS'!K234+'Form 1ASFS'!M234-'Form 1ASFS'!I312-'Form 1ASFS'!K312-'Form 1ASFS'!M312),0)=0,\"TRUE\",\"FALSE\"),\nIF('Company Information'!$B$2=\"UNCONSOLIDATED BSCR MODEL\",IF(ROUND(E33-'Form 1SFS'!M124,0)=0,\"TRUE\",\"FALSE\"),IF(ROUND(E33-'Form 1SFS'!E124,0)=0,\"TRUE\",\"FALSE\")))","v":"TRUE"},null,{"$f":"IF('Company Information'!$C$2=\"IFRS\",\nIF(ROUND(G33-('Form 1ASFS'!I203+'Form 1ASFS'!K203+'Form 1ASFS'!M203-'Form 1ASFS'!I284-'Form 1ASFS'!K284-'Form 1ASFS'!M284),0)=0,\"TRUE\",\"FALSE\"),\nIF('Company Information'!$B$2=\"UNCONSOLIDATED BSCR MODEL\",IF(ROUND(G33-'Form 1SFS'!O124,0)=0,\"TRUE\",\"FALSE\"),IF(ROUND(G33-'Form 1SFS'!G124,0)=0,\"TRUE\",\"FALSE\")))","v":"TRUE"}]
[null,null,null,null,{"$f":"IF('Company Information'!$C$2=\"IFRS\",\nROUND(('Form 1ASFS'!I234+'Form 1ASFS'!K234+'Form 1ASFS'!M234-'Form 1ASFS'!I312-'Form 1ASFS'!K312-'Form 1ASFS'!M312)-E33,0),\nIF('Company Information'!$B$2=\"UNCONSOLIDATED BSCR MODEL\",ROUND('Form 1SFS'!M124-E33,0),ROUND('Form 1SFS'!E124-E33,0)))","v":0},null,{"$f":"IF('Company Information'!$C$2=\"IFRS\",\nROUND(('Form 1ASFS'!I203+'Form 1ASFS'!K203+'Form 1ASFS'!M203-'Form 1ASFS'!I284-'Form 1ASFS'!K284-'Form 1ASFS'!M284)-G33,0),\nIF('Company Information'!$B$2=\"UNCONSOLIDATED BSCR MODEL\",ROUND('Form 1SFS'!O124-G33,0),ROUND('Form 1SFS'!G124-G33,0)))","v":0}]
[]
[null,null,null,null,{"$f":"IF(E35=\"False\",\"Does not equal Form 1SFS Line 17(d)\",\"\")","v":""},null,{"$f":"IF(G35=\"False\",\"Does not equal Form 1SFS Line 17(d)\",\"\")","v":""}]

{"sheet":"Schedule III (EBS)","index":34,"n_rows":42,"n_cols":12,"rows_kept":42,"cut":false,"hidden":false,"merged":[[46,1,46,11],[5,3,5,7],[5,9,5,11]]}
[null,"SCHEDULE OF NET LOSS AND LOSS EXPENSE PROVISIONS BY LINE OF BUSINESS",null,null,null,null,null,null,null,null,null,{"$f":"HYPERLINK(\"#'Index'!A1\",\"Return to Index\")","v":"Return to Index"}]
[null,{"$f":"'Company Information'!C7","v":"Enter Company Name"}]
[null,"As at",{"$f":" TEXT('Company Information'!C3,\"d mmmm yyyy\")","v":"31 December 2023"},null,null,null,null,null,null,null,null,"SCHEDULE III (EBS)"]
[null,{"$f":"\"expressed in\"& IF(CONFIGURATION!$B$12>1,\" ['\"&MID(CONFIGURATION!$B$12,2,LEN(CONFIGURATION!$B$12))&\"s]\",\"\")","v":"expressed in ['000s]"},{"$f":"'Form 1EBS'!C4","v":"United States Dollars"},"(A)",null,"(B)",null,"(C)",null,"(D)","(E)","(F)"]
[]
[null,null,null,{"$f":"'Form 1EBS'!F7","v":"2023-12-31"},null,null,null,null,null,"Supplemental Notes to General Business Provisions"]
[null,"Schedule ",null,"Gross Loss Reserves",null,"Net Loss Reserves",null,"Geo Loss Reserves",null,"Bound But Not Incepted (BBNI) Premium","Best Estimate Premium Provision In Respect of BBNI","Discount included in Best Estimate Loss and Loss Expense Provisions"]
[null,"Line no. ",null,"[ Form 1EBS, Line 17(a) ]",null,"[ Form 1EBS, Line 17(d) ]",null,"[ Schedule III(a) ]",null,"[ Form 1EBS, note Line 16(d)-(i) ]","[ Form 1EBS,note Line 16(d)-(ii) ]","[ Form 1EBS,note Line 17(d) ]"]
[]
[null,1,"Property Catastrophe",{"$f":"Import!M3431","v":0},null,{"$f":"Import!M3455","v":0},null,{"$f":"+'Schedule IIIA (EBS)'!X10","v":0},null,{"$f":"Import!M3479","v":0},{"$f":"Import!M3503","v":0},{"$f":"Import!M3527","v":0}]
[null,2,"Property",{"$f":"Import!M3432","v":0},null,{"$f":"Import!M3456","v":0},null,{"$f":"+'Schedule IIIA (EBS)'!X11","v":0},null,{"$f":"Import!M3480","v":0},{"$f":"Import!M3504","v":0},{"$f":"Import!M3528","v":0}]
[null,3,"Property Non – Proportional",{"$f":"Import!M3433","v":0},null,{"$f":"Import!M3457","v":0},null,{"$f":"+'Schedule IIIA (EBS)'!X12","v":0},null,{"$f":"Import!M3481","v":0},{"$f":"Import!M3505","v":0},{"$f":"Import!M3529","v":0}]
[null,4,"Personal Accident",{"$f":"Import!M3434","v":0},null,{"$f":"Import!M3458","v":0},null,{"$f":"+'Schedule IIIA (EBS)'!X13","v":0},null,{"$f":"Import!M3482","v":0},{"$f":"Import!M3506","v":0},{"$f":"Import!M3530","v":0}]
[null,5,"Personal Accident Non- Proportional",{"$f":"Import!M3435","v":0},null,{"$f":"Import!M3459","v":0},null,{"$f":"+'Schedule IIIA (EBS)'!X14","v":0},null,{"$f":"Import!M3483","v":0},{"$f":"Import!M3507","v":0},{"$f":"Import!M3531","v":0}]
[null,6,"Aviation",{"$f":"Import!M3436","v":0},null,{"$f":"Import!M3460","v":0},null,{"$f":"+'Schedule IIIA (EBS)'!X15","v":0},null,{"$f":"Import!M3484","v":0},{"$f":"Import!M3508","v":0},{"$f":"Import!M3532","v":0}]
[null,7,"Aviation Non – Proportional",{"$f":"Import!M3437","v":0},null,{"$f":"Import!M3461","v":0},null,{"$f":"+'Schedule IIIA (EBS)'!X16","v":0},null,{"$f":"Import!M3485","v":0},{"$f":"Import!M3509","v":0},{"$f":"Import!M3533","v":0}]
[null,8,"Credit / Surety ",{"$f":"Import!M3438","v":0},null,{"$f":"Import!M3462","v":0},null,{"$f":"+'Schedule IIIA (EBS)'!X17","v":0},null,{"$f":"Import!M3486","v":0},{"$f":"Import!M3510","v":0},{"$f":"Import!M3534","v":0}]
[null,9,"Credit / Surety Non – Proportional",{"$f":"Import!M3439","v":0},null,{"$f":"Import!M3463","v":0},null,{"$f":"+'Schedule IIIA (EBS)'!X18","v":0},null,{"$f":"Import!M3487","v":0},{"$f":"Import!M3511","v":0},{"$f":"Import!M3535","v":0}]
[null,10,"Energy Offshore / Marine",{"$f":"Import!M3440","v":0},null,{"$f":"Import!M3464","v":0},null,{"$f":"+'Schedule IIIA (EBS)'!X19","v":0},null,{"$f":"Import!M3488","v":0},{"$f":"Import!M3512","v":0},{"$f":"Import!M3536","v":0}]
[null,11,"Energy Offshore / Marine Non - Proportional ",{"$f":"Import!M3441","v":0},null,{"$f":"Import!M3465","v":0},null,{"$f":"+'Schedule IIIA (EBS)'!X20","v":0},null,{"$f":"Import!M3489","v":0},{"$f":"Import!M3513","v":0},{"$f":"Import!M3537","v":0}]
[null,12,"US Casualty",{"$f":"Import!M3442","v":0},null,{"$f":"Import!M3466","v":0},null,{"$f":"+'Schedule IIIA (EBS)'!X21","v":0},null,{"$f":"Import!M3490","v":0},{"$f":"Import!M3514","v":0},{"$f":"Import!M3538","v":0}]
[null,13,"US Casualty Non - Proportional ",{"$f":"Import!M3443","v":0},null,{"$f":"Import!M3467","v":0},null,{"$f":"+'Schedule IIIA (EBS)'!X22","v":0},null,{"$f":"Import!M3491","v":0},{"$f":"Import!M3515","v":0},{"$f":"Import!M3539","v":0}]
[null,14,"US Professional",{"$f":"Import!M3444","v":0},null,{"$f":"Import!M3468","v":0},null,{"$f":"+'Schedule IIIA (EBS)'!X23","v":0},null,{"$f":"Import!M3492","v":0},{"$f":"Import!M3516","v":0},{"$f":"Import!M3540","v":0}]
[null,15,"US Professional Non – Proportional",{"$f":"Import!M3445","v":0},null,{"$f":"Import!M3469","v":0},null,{"$f":"+'Schedule IIIA (EBS)'!X24","v":0},null,{"$f":"Import!M3493","v":0},{"$f":"Import!M3517","v":0},{"$f":"Import!M3541","v":0}]
[null,16,"US Specialty ",{"$f":"Import!M3446","v":0},null,{"$f":"Import!M3470","v":0},null,{"$f":"+'Schedule IIIA (EBS)'!X25","v":0},null,{"$f":"Import!M3494","v":0},{"$f":"Import!M3518","v":0},{"$f":"Import!M3542","v":0}]
[null,17,"US Specialty Non - Proportional",{"$f":"Import!M3447","v":0},null,{"$f":"Import!M3471","v":0},null,{"$f":"+'Schedule IIIA (EBS)'!X26","v":0},null,{"$f":"Import!M3495","v":0},{"$f":"Import!M3519","v":0},{"$f":"Import!M3543","v":0}]
[null,18,"International Motor ",{"$f":"Import!M3448","v":0},null,{"$f":"Import!M3472","v":0},null,{"$f":"+'Schedule IIIA (EBS)'!X27","v":0},null,{"$f":"Import!M3496","v":0},{"$f":"Import!M3520","v":0},{"$f":"Import!M3544","v":0}]
[null,19,"International Motor Non – Proportional",{"$f":"Import!M3449","v":0},null,{"$f":"Import!M3473","v":0},null,{"$f":"+'Schedule IIIA (EBS)'!X28","v":0},null,{"$f":"Import!M3497","v":0},{"$f":"Import!M3521","v":0},{"$f":"Import!M3545","v":0}]
[null,20,"International Casualty Non – Motor ",{"$f":"Import!M3450","v":0},null,{"$f":"Import!M3474","v":0},null,{"$f":"+'Schedule IIIA (EBS)'!X29","v":0},null,{"$f":"Import!M3498","v":0},{"$f":"Import!M3522","v":0},{"$f":"Import!M3546","v":0}]
[null,21,"International Casualty Non Motor Non – Proportional ",{"$f":"Import!M3451","v":0},null,{"$f":"Import!M3475","v":0},null,{"$f":"+'Schedule IIIA (EBS)'!X30","v":0},null,{"$f":"Import!M3499","v":0},{"$f":"Import!M3523","v":0},{"$f":"Import!M3547","v":0}]
[null,22,"Retro Property",{"$f":"Import!M3452","v":0},null,{"$f":"Import!M3476","v":0},null,{"$f":"+'Schedule IIIA (EBS)'!X31","v":0},null,{"$f":"Import!M3500","v":0},{"$f":"Import!M3524","v":0},{"$f":"Import!M3548","v":0}]
[null,23,"Structured / Finite Reinsurance",{"$f":"Import!M3453","v":0},null,{"$f":"Import!M3477","v":0},null,{"$f":"+'Schedule IIIA (EBS)'!X32","v":0},null,{"$f":"Import!M3501","v":0},{"$f":"Import!M3525","v":0},{"$f":"Import!M3549","v":0}]
[null,24,"Health",{"$f":"Import!M3454","v":0},null,{"$f":"Import!M3478","v":0},null,{"$f":"+'Schedule IIIA (EBS)'!X33","v":0},null,{"$f":"Import!M3502","v":0},{"$f":"Import!M3526","v":0},{"$f":"Import!M3550","v":0}]
[null,25,"Total ",{"$f":"SUM(D10:D33)","v":0},null,{"$f":"SUM(F10:F33)","v":0},null,{"$f":"SUM(H10:H33)","v":0},null,{"$f":"SUM(J10:J33)","v":0},{"$f":"SUM(K10:K33)","v":0},{"$f":"SUM(L10:L33)","v":0}]
[]
[null,null,"Form 1EBS Check",{"$f":"+'Form 1EBS'!F108","v":0},null,{"$f":"+'Form 1EBS'!F115","v":0},null,null,null,{"$f":"+'Form 1EBS'!F212","v":0},{"$f":"+'Form 1EBS'!F213","v":0},{"$f":"+'Form 1EBS'!F214","v":0}]
[]
[null,null,null,{"$f":"IF(D39=\"TRUE\",HYPERLINK(\"#'Form 1EBS'!F108\",\"TRUE\"),HYPERLINK(\"#'Form 1EBS'!F108\",\"FALSE\"))","v":"TRUE"},null,{"$f":"IF(F39=\"TRUE\",HYPERLINK(\"#'Form 1EBS'!F115\",\"TRUE\"),HYPERLINK(\"#'Form 1EBS'!F115\",\"FALSE\"))","v":"TRUE"},null,null,null,{"$f":"IF(J39=\"TRUE\",HYPERLINK(\"#'Form 1EBS'!F212\",\"TRUE\"),HYPERLINK(\"#'Form 1EBS'!F212\",\"FALSE\"))","v":"TRUE"},{"$f":"IF(K39=\"TRUE\",HYPERLINK(\"#'Form 1EBS'!F213\",\"TRUE\"),HYPERLINK(\"#'Form 1EBS'!F213\",\"FALSE\"))","v":"TRUE"},{"$f":"IF(L39=\"TRUE\",HYPERLINK(\"#'Form 1EBS'!F214\",\"TRUE\"),HYPERLINK(\"#'Form 1EBS'!F214\",\"FALSE\"))","v":"TRUE"}]
[null,null,null,{"$f":"IF(ROUND((D34-'Form 1EBS'!F108),0)=0,\"TRUE\",\"FALSE\")","v":"TRUE"},null,{"$f":"IF(ROUND((F34-'Form 1EBS'!F115),0)=0,\"TRUE\",\"FALSE\")","v":"TRUE"},null,null,null,{"$f":"IF(ROUND((J34-+'Form 1EBS'!F212),0)=0,\"TRUE\",\"FALSE\")","v":"TRUE"},{"$f":"IF(ROUND((K34-+'Form 1EBS'!F213),0)=0,\"TRUE\",\"FALSE\")","v":"TRUE"},{"$f":"IF(ROUND((L34-+'Form 1EBS'!F214),0)=0,\"TRUE\",\"FALSE\")","v":"TRUE"}]
[null,null,null,{"$f":"ROUND('Form 1EBS'!F108-D34,0)","v":0},null,{"$f":"ROUND('Form 1EBS'!F115-F34,0)","v":0},null,null,null,{"$f":"ROUND('Form 1EBS'!F212-J34,0)","v":0},{"$f":"ROUND('Form 1EBS'!F213-K34,0)","v":0},{"$f":"ROUND('Form 1EBS'!F214-L34,0)","v":0}]
[]
[null,null,null,{"$f":"IF(D38=\"False\",\"Does not equal Form 1EBS Line 17(a)\",\"\")","v":""},null,{"$f":"IF(F38=\"False\",\"Does not equal Form 1EBS Line 17(d)\",\"\")","v":""},null,null,null,{"$f":"IF(J38=\"False\",\"Does not equal Form 1EBS Note Line 16(d)(i)\",\"\")","v":""},{"$f":"IF(K38=\"False\",\"Does not equal Form 1EBS Note Line 16(d)(ii)\",\"\")","v":""},{"$f":"IF(L38=\"False\",\"Does not equal Form 1EBS Note Line 17(d)(i)\",\"\")","v":""}]

{"sheet":"Schedule IIIA (EBS)","index":35,"n_rows":34,"n_cols":28,"rows_kept":34,"cut":false,"hidden":false,"merged":[[42,1,42,25]]}
[null,"SCHEDULE OF GEOGRAPHIC DIVERSIFICATION OF NET LOSS AND LOSS EXPENSE PROVISIONS ",null,null,null,null,null,null,null,null,null,null,null,null,null,null,null,null,null,null,null,null,null,null,null,{"$f":"HYPERLINK(\"#'Index'!A1\",\"Return to Index\")","v":"Return to Index"}]
[null,{"$f":"'Company Information'!C7","v":"Enter Company Name"}]
[null,"As at",{"$f":" TEXT('Company Information'!C3,\"d mmmm yyyy\")","v":"31 December 2023"},null,null,null,null,null,null,null,null,null,null,null,null,null,null,null,null,null,null,null,null,null,null,"SCHEDULE III(a) (EBS)"]
[null,{"$f":"\"expressed in\"& IF(CONFIGURATION!$B$12>1,\" ['\"&MID(CONFIGURATION!$B$12,2,LEN(CONFIGURATION!$B$12))&\"s]\",\"\")","v":"expressed in ['000s]"},{"$f":"'Form 1EBS'!C4","v":"United States Dollars"},null,null,null,null,null,null,null,null,null,null,null,null,null,null,null,null,null,null,null,null,{"$f":"\"Confirmation that \"&B2& \" Is Taking Advantage of Geographic Diversification of Reserves\"","v":"Confirmation that Enter Company Name Is Taking Advantage of Geographic Diversification of Reserves"},null,"Yes"]
[]
[null,"Schedule ",null,null,{"$f":"HYPERLINK(\"#'Zones'!c4\",\"Zone 1\")","v":"Zone 1"},{"$f":"HYPERLINK(\"#'Zones'!c13\",\"Zone 2\")","v":"Zone 2"},{"$f":"HYPERLINK(\"#'Zones'!c18\",\"Zone 3\")","v":"Zone 3"},{"$f":"HYPERLINK(\"#'Zones'!c26\",\"Zone 4\")","v":"Zone 4"},{"$f":"HYPERLINK(\"#'Zones'!c36\",\"Zone 5\")","v":"Zone 5"},{"$f":"HYPERLINK(\"#'Zones'!c46\",\"Zone 6\")","v":"Zone 6"},{"$f":"HYPERLINK(\"#'Zones'!c57\",\"Zone 7\")","v":"Zone 7"},{"$f":"HYPERLINK(\"#'Zones'!c68\",\"Zone 8\")","v":"Zone 8"},{"$f":"HYPERLINK(\"#'Zones'!c76\",\"Zone 9\")","v":"Zone 9"},{"$f":"HYPERLINK(\"#'Zones'!c84\",\"Zone 10\")","v":"Zone 10"},{"$f":"HYPERLINK(\"#'Zones'!c90\",\"Zone 11\")","v":"Zone 11"},{"$f":"HYPERLINK(\"#'Zones'!c94\",\"Zone 12\")","v":"Zone 12"},{"$f":"HYPERLINK(\"#'Zones'!c107\",\"Zone 13\")","v":"Zone 13"},{"$f":"HYPERLINK(\"#'Zones'!c112\",\"Zone 14\")","v":"Zone 14"},{"$f":"HYPERLINK(\"#'Zones'!c116\",\"Zone 15\")","v":"Zone 15"},{"$f":"HYPERLINK(\"#'Zones'!c121\",\"Zone 16\")","v":"Zone 16"},{"$f":"HYPERLINK(\"#'Zones'!c127\",\"Zone 17\")","v":"Zone 17"},{"$f":"HYPERLINK(\"#'Zones'!c133\",\"Zone 18\")","v":"Zone 18"},null,"Geo Net Provision",null,"Net Loss Provision"]
[null,"Line no. ",null,null,{"$f":"CONFIGURATION!$D$12","v":" ('000s)"},{"$f":"CONFIGURATION!$D$12","v":" ('000s)"},{"$f":"CONFIGURATION!$D$12","v":" ('000s)"},{"$f":"CONFIGURATION!$D$12","v":" ('000s)"},{"$f":"CONFIGURATION!$D$12","v":" ('000s)"},{"$f":"CONFIGURATION!$D$12","v":" ('000s)"},{"$f":"CONFIGURATION!$D$12","v":" ('000s)"},{"$f":"CONFIGURATION!$D$12","v":" ('000s)"},{"$f":"CONFIGURATION!$D$12","v":" ('000s)"},{"$f":"CONFIGURATION!$D$12","v":" ('000s)"},{"$f":"CONFIGURATION!$D$12","v":" ('000s)"},{"$f":"CONFIGURATION!$D$12","v":" ('000s)"},{"$f":"CONFIGURATION!$D$12","v":" ('000s)"},{"$f":"CONFIGURATION!$D$12","v":" ('000s)"},{"$f":"CONFIGURATION!$D$12","v":" ('000s)"},{"$f":"CONFIGURATION!$D$12","v":" ('000s)"},{"$f":"CONFIGURATION!$D$12","v":" ('000s)"},{"$f":"CONFIGURATION!$D$12","v":" ('000s)"},null,{"$f":"CONFIGURATION!$D$12","v":" ('000s)"},null,{"$f":"CONFIGURATION!$D$12","v":" ('000s)"}]
[]
[]
[null,1,"Property Catastrophe",null,{"$f":"Import!M3552","v":0},{"$f":"Import!M3577","v":0},{"$f":"Import!M3602","v":0},{"$f":"Import!M3627","v":0},{"$f":"Import!M3652","v":0},{"$f":"Import!M3677","v":0},{"$f":"Import!M3702","v":0},{"$f":"Import!M3727","v":0},{"$f":"Import!M3752","v":0},{"$f":"Import!M3777","v":0},{"$f":"Import!M3802","v":0},{"$f":"Import!M3827","v":0},{"$f":"Import!M3852","v":0},{"$f":"Import!M3877","v":0},{"$f":"Import!M3902","v":0},{"$f":"Import!M3927","v":0},{"$f":"Import!M3952","v":0},{"$f":"Import!M3977","v":0},null,{"$f":"ROUND(SUM(E10:V10),0)","v":0},null,{"$f":"ROUND('Schedule III (EBS)'!F10,0)","v":0},null,{"$f":"IF($Z$4=\"Yes\",IF(X10=0,\" - \",IF(ROUND(SUM(X10-Z10),0)=0,\"TRUE\",\"FALSE\")),\"N/A\")","v":" - "}]
[null,2,"Property",null,{"$f":"Import!M3553","v":0},{"$f":"Import!M3578","v":0},{"$f":"Import!M3603","v":0},{"$f":"Import!M3628","v":0},{"$f":"Import!M3653","v":0},{"$f":"Import!M3678","v":0},{"$f":"Import!M3703","v":0},{"$f":"Import!M3728","v":0},{"$f":"Import!M3753","v":0},{"$f":"Import!M3778","v":0},{"$f":"Import!M3803","v":0},{"$f":"Import!M3828","v":0},{"$f":"Import!M3853","v":0},{"$f":"Import!M3878","v":0},{"$f":"Import!M3903","v":0},{"$f":"Import!M3928","v":0},{"$f":"Import!M3953","v":0},{"$f":"Import!M3978","v":0},null,{"$f":"ROUND(SUM(E11:V11),0)","v":0},null,{"$f":"ROUND('Schedule III (EBS)'!F11,0)","v":0},null,{"$f":"IF($Z$4=\"Yes\",IF(X11=0,\" - \",IF(ROUND(SUM(X11-Z11),0)=0,\"TRUE\",\"FALSE\")),\"N/A\")","v":" - "}]
[null,3,"Property Non – Proportional",null,{"$f":"Import!M3554","v":0},{"$f":"Import!M3579","v":0},{"$f":"Import!M3604","v":0},{"$f":"Import!M3629","v":0},{"$f":"Import!M3654","v":0},{"$f":"Import!M3679","v":0},{"$f":"Import!M3704","v":0},{"$f":"Import!M3729","v":0},{"$f":"Import!M3754","v":0},{"$f":"Import!M3779","v":0},{"$f":"Import!M3804","v":0},{"$f":"Import!M3829","v":0},{"$f":"Import!M3854","v":0},{"$f":"Import!M3879","v":0},{"$f":"Import!M3904","v":0},{"$f":"Import!M3929","v":0},{"$f":"Import!M3954","v":0},{"$f":"Import!M3979","v":0},null,0,null,{"$f":"ROUND('Schedule III (EBS)'!F12,0)","v":0},null," - "]
[null,4,"Personal Accident",null,{"$f":"Import!M3555","v":0},{"$f":"Import!M3580","v":0},{"$f":"Import!M3605","v":0},{"$f":"Import!M3630","v":0},{"$f":"Import!M3655","v":0},{"$f":"Import!M3680","v":0},{"$f":"Import!M3705","v":0},{"$f":"Import!M3730","v":0},{"$f":"Import!M3755","v":0},{"$f":"Import!M3780","v":0},{"$f":"Import!M3805","v":0},{"$f":"Import!M3830","v":0},{"$f":"Import!M3855","v":0},{"$f":"Import!M3880","v":0},{"$f":"Import!M3905","v":0},{"$f":"Import!M3930","v":0},{"$f":"Import!M3955","v":0},{"$f":"Import!M3980","v":0},null,0,null,{"$f":"ROUND('Schedule III (EBS)'!F13,0)","v":0},null," - "]
[null,5,"Personal Accident Non- Proportional",null,{"$f":"Import!M3556","v":0},{"$f":"Import!M3581","v":0},{"$f":"Import!M3606","v":0},{"$f":"Import!M3631","v":0},{"$f":"Import!M3656","v":0},{"$f":"Import!M3681","v":0},{"$f":"Import!M3706","v":0},{"$f":"Import!M3731","v":0},{"$f":"Import!M3756","v":0},{"$f":"Import!M3781","v":0},{"$f":"Import!M3806","v":0},{"$f":"Import!M3831","v":0},{"$f":"Import!M3856","v":0},{"$f":"Import!M3881","v":0},{"$f":"Import!M3906","v":0},{"$f":"Import!M3931","v":0},{"$f":"Import!M3956","v":0},{"$f":"Import!M3981","v":0},null,0,null,{"$f":"ROUND('Schedule III (EBS)'!F14,0)","v":0},null," - "]
[null,6,"Aviation",null,{"$f":"Import!M3557","v":0},{"$f":"Import!M3582","v":0},{"$f":"Import!M3607","v":0},{"$f":"Import!M3632","v":0},{"$f":"Import!M3657","v":0},{"$f":"Import!M3682","v":0},{"$f":"Import!M3707","v":0},{"$f":"Import!M3732","v":0},{"$f":"Import!M3757","v":0},{"$f":"Import!M3782","v":0},{"$f":"Import!M3807","v":0},{"$f":"Import!M3832","v":0},{"$f":"Import!M3857","v":0},{"$f":"Import!M3882","v":0},{"$f":"Import!M3907","v":0},{"$f":"Import!M3932","v":0},{"$f":"Import!M3957","v":0},{"$f":"Import!M3982","v":0},null,0,null,{"$f":"ROUND('Schedule III (EBS)'!F15,0)","v":0},null," - "]
[null,7,"Aviation Non – Proportional",null,{"$f":"Import!M3558","v":0},{"$f":"Import!M3583","v":0},{"$f":"Import!M3608","v":0},{"$f":"Import!M3633","v":0},{"$f":"Import!M3658","v":0},{"$f":"Import!M3683","v":0},{"$f":"Import!M3708","v":0},{"$f":"Import!M3733","v":0},{"$f":"Import!M3758","v":0},{"$f":"Import!M3783","v":0},{"$f":"Import!M3808","v":0},{"$f":"Import!M3833","v":0},{"$f":"Import!M3858","v":0},{"$f":"Import!M3883","v":0},{"$f":"Import!M3908","v":0},{"$f":"Import!M3933","v":0},{"$f":"Import!M3958","v":0},{"$f":"Import!M3983","v":0},null,0,null,{"$f":"ROUND('Schedule III (EBS)'!F16,0)","v":0},null," - "]
[null,8,"Credit / Surety ",null,{"$f":"Import!M3559","v":0},{"$f":"Import!M3584","v":0},{"$f":"Import!M3609","v":0},{"$f":"Import!M3634","v":0},{"$f":"Import!M3659","v":0},{"$f":"Import!M3684","v":0},{"$f":"Import!M3709","v":0},{"$f":"Import!M3734","v":0},{"$f":"Import!M3759","v":0},{"$f":"Import!M3784","v":0},{"$f":"Import!M3809","v":0},{"$f":"Import!M3834","v":0},{"$f":"Import!M3859","v":0},{"$f":"Import!M3884","v":0},{"$f":"Import!M3909","v":0},{"$f":"Import!M3934","v":0},{"$f":"Import!M3959","v":0},{"$f":"Import!M3984","v":0},null,0,null,{"$f":"ROUND('Schedule III (EBS)'!F17,0)","v":0},null," - "]
[null,9,"Credit / Surety Non – Proportional",null,{"$f":"Import!M3560","v":0},{"$f":"Import!M3585","v":0},{"$f":"Import!M3610","v":0},{"$f":"Import!M3635","v":0},{"$f":"Import!M3660","v":0},{"$f":"Import!M3685","v":0},{"$f":"Import!M3710","v":0},{"$f":"Import!M3735","v":0},{"$f":"Import!M3760","v":0},{"$f":"Import!M3785","v":0},{"$f":"Import!M3810","v":0},{"$f":"Import!M3835","v":0},{"$f":"Import!M3860","v":0},{"$f":"Import!M3885","v":0},{"$f":"Import!M3910","v":0},{"$f":"Import!M3935","v":0},{"$f":"Import!M3960","v":0},{"$f":"Import!M3985","v":0},null,0,null,{"$f":"ROUND('Schedule III (EBS)'!F18,0)","v":0},null," - "]
[null,10,"Energy Offshore / Marine",null,{"$f":"Import!M3561","v":0},{"$f":"Import!M3586","v":0},{"$f":"Import!M3611","v":0},{"$f":"Import!M3636","v":0},{"$f":"Import!M3661","v":0},{"$f":"Import!M3686","v":0},{"$f":"Import!M3711","v":0},{"$f":"Import!M3736","v":0},{"$f":"Import!M3761","v":0},{"$f":"Import!M3786","v":0},{"$f":"Import!M3811","v":0},{"$f":"Import!M3836","v":0},{"$f":"Import!M3861","v":0},{"$f":"Import!M3886","v":0},{"$f":"Import!M3911","v":0},{"$f":"Import!M3936","v":0},{"$f":"Import!M3961","v":0},{"$f":"Import!M3986","v":0},null,0,null,{"$f":"ROUND('Schedule III (EBS)'!F19,0)","v":0},null," - "]
[null,11,"Energy Offshore / Marine Non - Proportional ",null,{"$f":"Import!M3562","v":0},{"$f":"Import!M3587","v":0},{"$f":"Import!M3612","v":0},{"$f":"Import!M3637","v":0},{"$f":"Import!M3662","v":0},{"$f":"Import!M3687","v":0},{"$f":"Import!M3712","v":0},{"$f":"Import!M3737","v":0},{"$f":"Import!M3762","v":0},{"$f":"Import!M3787","v":0},{"$f":"Import!M3812","v":0},{"$f":"Import!M3837","v":0},{"$f":"Import!M3862","v":0},{"$f":"Import!M3887","v":0},{"$f":"Import!M3912","v":0},{"$f":"Import!M3937","v":0},{"$f":"Import!M3962","v":0},{"$f":"Import!M3987","v":0},null,0,null,{"$f":"ROUND('Schedule III (EBS)'!F20,0)","v":0},null," - "]
[null,12,"US Casualty",null,{"$f":"Import!M3563","v":0},{"$f":"Import!M3588","v":0},{"$f":"Import!M3613","v":0},{"$f":"Import!M3638","v":0},{"$f":"Import!M3663","v":0},{"$f":"Import!M3688","v":0},{"$f":"Import!M3713","v":0},{"$f":"Import!M3738","v":0},{"$f":"Import!M3763","v":0},{"$f":"Import!M3788","v":0},{"$f":"Import!M3813","v":0},{"$f":"Import!M3838","v":0},{"$f":"Import!M3863","v":0},{"$f":"Import!M3888","v":0},{"$f":"Import!M3913","v":0},{"$f":"Import!M3938","v":0},{"$f":"Import!M3963","v":0},{"$f":"Import!M3988","v":0},null,0,null,{"$f":"ROUND('Schedule III (EBS)'!F21,0)","v":0},null," - "]
[null,13,"US Casualty Non - Proportional ",null,{"$f":"Import!M3564","v":0},{"$f":"Import!M3589","v":0},{"$f":"Import!M3614","v":0},{"$f":"Import!M3639","v":0},{"$f":"Import!M3664","v":0},{"$f":"Import!M3689","v":0},{"$f":"Import!M3714","v":0},{"$f":"Import!M3739","v":0},{"$f":"Import!M3764","v":0},{"$f":"Import!M3789","v":0},{"$f":"Import!M3814","v":0},{"$f":"Import!M3839","v":0},{"$f":"Import!M3864","v":0},{"$f":"Import!M3889","v":0},{"$f":"Import!M3914","v":0},{"$f":"Import!M3939","v":0},{"$f":"Import!M3964","v":0},{"$f":"Import!M3989","v":0},null,0,null,{"$f":"ROUND('Schedule III (EBS)'!F22,0)","v":0},null," - "]
[null,14,"US Professional",null,{"$f":"Import!M3565","v":0},{"$f":"Import!M3590","v":0},{"$f":"Import!M3615","v":0},{"$f":"Import!M3640","v":0},{"$f":"Import!M3665","v":0},{"$f":"Import!M3690","v":0},{"$f":"Import!M3715","v":0},{"$f":"Import!M3740","v":0},{"$f":"Import!M3765","v":0},{"$f":"Import!M3790","v":0},{"$f":"Import!M3815","v":0},{"$f":"Import!M3840","v":0},{"$f":"Import!M3865","v":0},{"$f":"Import!M3890","v":0},{"$f":"Import!M3915","v":0},{"$f":"Import!M3940","v":0},{"$f":"Import!M3965","v":0},{"$f":"Import!M3990","v":0},null,0,null,{"$f":"ROUND('Schedule III (EBS)'!F23,0)","v":0},null," - "]
[null,15,"US Professional Non – Proportional",null,{"$f":"Import!M3566","v":0},{"$f":"Import!M3591","v":0},{"$f":"Import!M3616","v":0},{"$f":"Import!M3641","v":0},{"$f":"Import!M3666","v":0},{"$f":"Import!M3691","v":0},{"$f":"Import!M3716","v":0},{"$f":"Import!M3741","v":0},{"$f":"Import!M3766","v":0},{"$f":"Import!M3791","v":0},{"$f":"Import!M3816","v":0},{"$f":"Import!M3841","v":0},{"$f":"Import!M3866","v":0},{"$f":"Import!M3891","v":0},{"$f":"Import!M3916","v":0},{"$f":"Import!M3941","v":0},{"$f":"Import!M3966","v":0},{"$f":"Import!M3991","v":0},null,0,null,{"$f":"ROUND('Schedule III (EBS)'!F24,0)","v":0},null," - "]
[null,16,"US Specialty ",null,{"$f":"Import!M3567","v":0},{"$f":"Import!M3592","v":0},{"$f":"Import!M3617","v":0},{"$f":"Import!M3642","v":0},{"$f":"Import!M3667","v":0},{"$f":"Import!M3692","v":0},{"$f":"Import!M3717","v":0},{"$f":"Import!M3742","v":0},{"$f":"Import!M3767","v":0},{"$f":"Import!M3792","v":0},{"$f":"Import!M3817","v":0},{"$f":"Import!M3842","v":0},{"$f":"Import!M3867","v":0},{"$f":"Import!M3892","v":0},{"$f":"Import!M3917","v":0},{"$f":"Import!M3942","v":0},{"$f":"Import!M3967","v":0},{"$f":"Import!M3992","v":0},null,0,null,{"$f":"ROUND('Schedule III (EBS)'!F25,0)","v":0},null," - "]
[null,17,"US Specialty Non - Proportional",null,{"$f":"Import!M3568","v":0},{"$f":"Import!M3593","v":0},{"$f":"Import!M3618","v":0},{"$f":"Import!M3643","v":0},{"$f":"Import!M3668","v":0},{"$f":"Import!M3693","v":0},{"$f":"Import!M3718","v":0},{"$f":"Import!M3743","v":0},{"$f":"Import!M3768","v":0},{"$f":"Import!M3793","v":0},{"$f":"Import!M3818","v":0},{"$f":"Import!M3843","v":0},{"$f":"Import!M3868","v":0},{"$f":"Import!M3893","v":0},{"$f":"Import!M3918","v":0},{"$f":"Import!M3943","v":0},{"$f":"Import!M3968","v":0},{"$f":"Import!M3993","v":0},null,0,null,{"$f":"ROUND('Schedule III (EBS)'!F26,0)","v":0},null," - "]
[null,18,"International Motor ",null,{"$f":"Import!M3569","v":0},{"$f":"Import!M3594","v":0},{"$f":"Import!M3619","v":0},{"$f":"Import!M3644","v":0},{"$f":"Import!M3669","v":0},{"$f":"Import!M3694","v":0},{"$f":"Import!M3719","v":0},{"$f":"Import!M3744","v":0},{"$f":"Import!M3769","v":0},{"$f":"Import!M3794","v":0},{"$f":"Import!M3819","v":0},{"$f":"Import!M3844","v":0},{"$f":"Import!M3869","v":0},{"$f":"Import!M3894","v":0},{"$f":"Import!M3919","v":0},{"$f":"Import!M3944","v":0},{"$f":"Import!M3969","v":0},{"$f":"Import!M3994","v":0},null,0,null,{"$f":"ROUND('Schedule III (EBS)'!F27,0)","v":0},null," - "]
[null,19,"International Motor Non – Proportional",null,{"$f":"Import!M3570","v":0},{"$f":"Import!M3595","v":0},{"$f":"Import!M3620","v":0},{"$f":"Import!M3645","v":0},{"$f":"Import!M3670","v":0},{"$f":"Import!M3695","v":0},{"$f":"Import!M3720","v":0},{"$f":"Import!M3745","v":0},{"$f":"Import!M3770","v":0},{"$f":"Import!M3795","v":0},{"$f":"Import!M3820","v":0},{"$f":"Import!M3845","v":0},{"$f":"Import!M3870","v":0},{"$f":"Import!M3895","v":0},{"$f":"Import!M3920","v":0},{"$f":"Import!M3945","v":0},{"$f":"Import!M3970","v":0},{"$f":"Import!M3995","v":0},null,0,null,{"$f":"ROUND('Schedule III (EBS)'!F28,0)","v":0},null," - "]
[null,20,"International Casualty Non – Motor ",null,{"$f":"Import!M3571","v":0},{"$f":"Import!M3596","v":0},{"$f":"Import!M3621","v":0},{"$f":"Import!M3646","v":0},{"$f":"Import!M3671","v":0},{"$f":"Import!M3696","v":0},{"$f":"Import!M3721","v":0},{"$f":"Import!M3746","v":0},{"$f":"Import!M3771","v":0},{"$f":"Import!M3796","v":0},{"$f":"Import!M3821","v":0},{"$f":"Import!M3846","v":0},{"$f":"Import!M3871","v":0},{"$f":"Import!M3896","v":0},{"$f":"Import!M3921","v":0},{"$f":"Import!M3946","v":0},{"$f":"Import!M3971","v":0},{"$f":"Import!M3996","v":0},null,0,null,{"$f":"ROUND('Schedule III (EBS)'!F29,0)","v":0},null," - "]
[null,21,"International Casualty Non Motor Non – Proportional ",null,{"$f":"Import!M3572","v":0},{"$f":"Import!M3597","v":0},{"$f":"Import!M3622","v":0},{"$f":"Import!M3647","v":0},{"$f":"Import!M3672","v":0},{"$f":"Import!M3697","v":0},{"$f":"Import!M3722","v":0},{"$f":"Import!M3747","v":0},{"$f":"Import!M3772","v":0},{"$f":"Import!M3797","v":0},{"$f":"Import!M3822","v":0},{"$f":"Import!M3847","v":0},{"$f":"Import!M3872","v":0},{"$f":"Import!M3897","v":0},{"$f":"Import!M3922","v":0},{"$f":"Import!M3947","v":0},{"$f":"Import!M3972","v":0},{"$f":"Import!M3997","v":0},null,0,null,{"$f":"ROUND('Schedule III (EBS)'!F30,0)","v":0},null," - "]
[null,22,"Retro Property",null,{"$f":"Import!M3573","v":0},{"$f":"Import!M3598","v":0},{"$f":"Import!M3623","v":0},{"$f":"Import!M3648","v":0},{"$f":"Import!M3673","v":0},{"$f":"Import!M3698","v":0},{"$f":"Import!M3723","v":0},{"$f":"Import!M3748","v":0},{"$f":"Import!M3773","v":0},{"$f":"Import!M3798","v":0},{"$f":"Import!M3823","v":0},{"$f":"Import!M3848","v":0},{"$f":"Import!M3873","v":0},{"$f":"Import!M3898","v":0},{"$f":"Import!M3923","v":0},{"$f":"Import!M3948","v":0},{"$f":"Import!M3973","v":0},{"$f":"Import!M3998","v":0},null,0,null,{"$f":"ROUND('Schedule III (EBS)'!F31,0)","v":0},null," - "]
[null,23,"Structured / Finite Reinsurance",null,{"$f":"Import!M3574","v":0},{"$f":"Import!M3599","v":0},{"$f":"Import!M3624","v":0},{"$f":"Import!M3649","v":0},{"$f":"Import!M3674","v":0},{"$f":"Import!M3699","v":0},{"$f":"Import!M3724","v":0},{"$f":"Import!M3749","v":0},{"$f":"Import!M3774","v":0},{"$f":"Import!M3799","v":0},{"$f":"Import!M3824","v":0},{"$f":"Import!M3849","v":0},{"$f":"Import!M3874","v":0},{"$f":"Import!M3899","v":0},{"$f":"Import!M3924","v":0},{"$f":"Import!M3949","v":0},{"$f":"Import!M3974","v":0},{"$f":"Import!M3999","v":0},null,0,null,{"$f":"ROUND('Schedule III (EBS)'!F32,0)","v":0},null," - "]
[null,24,"Health",null,{"$f":"Import!M3575","v":0},{"$f":"Import!M3600","v":0},{"$f":"Import!M3625","v":0},{"$f":"Import!M3650","v":0},{"$f":"Import!M3675","v":0},{"$f":"Import!M3700","v":0},{"$f":"Import!M3725","v":0},{"$f":"Import!M3750","v":0},{"$f":"Import!M3775","v":0},{"$f":"Import!M3800","v":0},{"$f":"Import!M3825","v":0},{"$f":"Import!M3850","v":0},{"$f":"Import!M3875","v":0},{"$f":"Import!M3900","v":0},{"$f":"Import!M3925","v":0},{"$f":"Import!M3950","v":0},{"$f":"Import!M3975","v":0},{"$f":"Import!M4000","v":0},null,0,null,{"$f":"ROUND('Schedule III (EBS)'!F33,0)","v":0},null," - "]
[null,25,"Total ",null,{"$f":"SUM(E10:E33)","v":0},0,0,0,0,0,0,0,0,0,0,0,0,0,0,0,0,0,null,{"$f":"SUM(X10:X33)","v":0},null,{"$f":"SUM(Z10:Z33)","v":0}]

{"sheet":"Schedule IV","index":36,"n_rows":39,"n_cols":19,"rows_kept":39,"cut":false,"hidden":false,"merged":[[6,12,6,14],[6,16,6,18],[1,1,1,2],[4,4,4,14],[4,16,4,18],[5,4,5,6],[5,8,5,10],[5,12,5,14]]}
[null,"SCHEDULE OF PREMIUMS WRITTEN BY LINE OF BUSINESS",null,null,null,null,null,null,null,null,null,null,null,null,null,null,null,null,{"$f":"HYPERLINK(\"#'Index'!A1\",\"Return to Index\")","v":"Return to Index"}]
[null,{"$f":"'Company Information'!C7","v":"Enter Company Name"}]
[null,{"$f":"\"For the year ending \"&TEXT('Company Information'!C3,\"d mmmm yyyy\")","v":"For the year ending 31 December 2023"},null,null,null,null,null,null,null,null,null,null,null,null,null,null,null,null,"SCHEDULE IV"]
[null,{"$f":"\"expressed in\"& IF(CONFIGURATION!$B$12>1,\" ['\"&MID(CONFIGURATION!$B$12,2,LEN(CONFIGURATION!$B$12))&\"s]\",\"\")&\" \"&'Form 1EBS'!C4","v":"expressed in ['000s] United States Dollars"}]
[null,null,null,null,"Gross Premiums Written",null,null,null,null,null,null,null,null,null,null,null,"Net Premiums Written"]
[null,null,null,null,"Unrelated",null,null,null,"Related",null,null,null,"Total"]
[null,"Schedule ",null,null,null,null,null,null,null,null,null,null,"Form 2SFS, Line 1(c) ",null,null,null,"Form 2SFS, Line 3"]
[null,"Line no. ",null,null,{"$f":"'Form 1EBS'!F7","v":"2023-12-31"},null,{"$f":"'Form 1EBS'!H7","v":"2022-12-31"},null,{"$f":"'Form 1EBS'!F7","v":"2023-12-31"},null,{"$f":"'Form 1EBS'!H7","v":"2022-12-31"},null,{"$f":"'Form 1EBS'!F7","v":"2023-12-31"},null,{"$f":"'Form 1EBS'!H7","v":"2022-12-31"},null,{"$f":"'Form 1EBS'!F7","v":"2023-12-31"},null,{"$f":"'Form 1EBS'!H7","v":"2022-12-31"}]
[null,null,null,null,{"$f":"CONFIGURATION!$D$12","v":" ('000s)"},null,{"$f":"CONFIGURATION!$D$12","v":" ('000s)"},null,{"$f":"CONFIGURATION!$D$12","v":" ('000s)"},null,{"$f":"CONFIGURATION!$D$12","v":" ('000s)"},null,{"$f":"CONFIGURATION!$D$12","v":" ('000s)"},null,{"$f":"CONFIGURATION!$D$12","v":" ('000s)"},null,{"$f":"CONFIGURATION!$D$12","v":" ('000s)"},null,{"$f":"CONFIGURATION!$D$12","v":" ('000s)"}]
[]
[null,1,"Property Catastrophe",null,{"$f":"Import!E4028","v":0},null,{"$f":"Import!G4028","v":0},null,{"$f":"Import!E4052","v":0},null,{"$f":"Import!G4052","v":0},null,{"$f":"E11+I11","v":0},null,{"$f":"G11+K11","v":0},null,{"$f":"Import!E4076","v":0},null,{"$f":"Import!G4076","v":0}]
[null,2,"Property",null,{"$f":"Import!E4029","v":0},null,{"$f":"Import!G4029","v":0},null,{"$f":"Import!E4053","v":0},null,{"$f":"Import!G4053","v":0},null,0,null,0,null,{"$f":"Import!E4077","v":0},null,{"$f":"Import!G4077","v":0}]
[null,3,"Property Non – Proportional",null,{"$f":"Import!E4030","v":0},null,{"$f":"Import!G4030","v":0},null,{"$f":"Import!E4054","v":0},null,{"$f":"Import!G4054","v":0},null,0,null,0,null,{"$f":"Import!E4078","v":0},null,{"$f":"Import!G4078","v":0}]
[null,4,"Personal Accident",null,{"$f":"Import!E4031","v":0},null,{"$f":"Import!G4031","v":0},null,{"$f":"Import!E4055","v":0},null,{"$f":"Import!G4055","v":0},null,0,null,0,null,{"$f":"Import!E4079","v":0},null,{"$f":"Import!G4079","v":0}]
[null,5,"Personal Accident Non- Proportional",null,{"$f":"Import!E4032","v":0},null,{"$f":"Import!G4032","v":0},null,{"$f":"Import!E4056","v":0},null,{"$f":"Import!G4056","v":0},null,0,null,0,null,{"$f":"Import!E4080","v":0},null,{"$f":"Import!G4080","v":0}]
[null,6,"Aviation",null,{"$f":"Import!E4033","v":0},null,{"$f":"Import!G4033","v":0},null,{"$f":"Import!E4057","v":0},null,{"$f":"Import!G4057","v":0},null,0,null,0,null,{"$f":"Import!E4081","v":0},null,{"$f":"Import!G4081","v":0}]
[null,7,"Aviation Non – Proportional",null,{"$f":"Import!E4034","v":0},null,{"$f":"Import!G4034","v":0},null,{"$f":"Import!E4058","v":0},null,{"$f":"Import!G4058","v":0},null,0,null,0,null,{"$f":"Import!E4082","v":0},null,{"$f":"Import!G4082","v":0}]
[null,8,"Credit / Surety ",null,{"$f":"Import!E4035","v":0},null,{"$f":"Import!G4035","v":0},null,{"$f":"Import!E4059","v":0},null,{"$f":"Import!G4059","v":0},null,0,null,0,null,{"$f":"Import!E4083","v":0},null,{"$f":"Import!G4083","v":0}]
[null,9,"Credit / Surety Non – Proportional",null,{"$f":"Import!E4036","v":0},null,{"$f":"Import!G4036","v":0},null,{"$f":"Import!E4060","v":0},null,{"$f":"Import!G4060","v":0},null,0,null,0,null,{"$f":"Import!E4084","v":0},null,{"$f":"Import!G4084","v":0}]
[null,10,"Energy Offshore / Marine",null,{"$f":"Import!E4037","v":0},null,{"$f":"Import!G4037","v":0},null,{"$f":"Import!E4061","v":0},null,{"$f":"Import!G4061","v":0},null,0,null,0,null,{"$f":"Import!E4085","v":0},null,{"$f":"Import!G4085","v":0}]
[null,11,"Energy Offshore / Marine Non - Proportional ","  ",{"$f":"Import!E4038","v":0},null,{"$f":"Import!G4038","v":0},null,{"$f":"Import!E4062","v":0},null,{"$f":"Import!G4062","v":0},null,0,null,0,null,{"$f":"Import!E4086","v":0},null,{"$f":"Import!G4086","v":0}]
[null,12,"US Casualty",null,{"$f":"Import!E4039","v":0},null,{"$f":"Import!G4039","v":0},null,{"$f":"Import!E4063","v":0},null,{"$f":"Import!G4063","v":0},null,0,null,0,null,{"$f":"Import!E4087","v":0},null,{"$f":"Import!G4087","v":0}]
[null,13,"US Casualty Non - Proportional ",null,{"$f":"Import!E4040","v":0},null,{"$f":"Import!G4040","v":0},null,{"$f":"Import!E4064","v":0},null,{"$f":"Import!G4064","v":0},null,0,null,0,null,{"$f":"Import!E4088","v":0},null,{"$f":"Import!G4088","v":0}]
[null,14,"US Professional",null,{"$f":"Import!E4041","v":0},null,{"$f":"Import!G4041","v":0},null,{"$f":"Import!E4065","v":0},null,{"$f":"Import!G4065","v":0},null,0,null,0,null,{"$f":"Import!E4089","v":0},null,{"$f":"Import!G4089","v":0}]
[null,15,"US Professional Non – Proportional",null,{"$f":"Import!E4042","v":0},null,{"$f":"Import!G4042","v":0},null,{"$f":"Import!E4066","v":0},null,{"$f":"Import!G4066","v":0},null,0,null,0,null,{"$f":"Import!E4090","v":0},null,{"$f":"Import!G4090","v":0}]
[null,16,"US Specialty ",null,{"$f":"Import!E4043","v":0},null,{"$f":"Import!G4043","v":0},null,{"$f":"Import!E4067","v":0},null,{"$f":"Import!G4067","v":0},null,0,null,0,null,{"$f":"Import!E4091","v":0},null,{"$f":"Import!G4091","v":0}]
[null,17,"US Specialty Non - Proportional",null,{"$f":"Import!E4044","v":0},null,{"$f":"Import!G4044","v":0},null,{"$f":"Import!E4068","v":0},null,{"$f":"Import!G4068","v":0},null,0,null,0,null,{"$f":"Import!E4092","v":0},null,{"$f":"Import!G4092","v":0}]
[null,18,"International Motor ",null,{"$f":"Import!E4045","v":0},null,{"$f":"Import!G4045","v":0},null,{"$f":"Import!E4069","v":0},null,{"$f":"Import!G4069","v":0},null,0,null,0,null,{"$f":"Import!E4093","v":0},null,{"$f":"Import!G4093","v":0}]
[null,19,"International Motor Non – Proportional",null,{"$f":"Import!E4046","v":0},null,{"$f":"Import!G4046","v":0},null,{"$f":"Import!E4070","v":0},null,{"$f":"Import!G4070","v":0},null,0,null,0,null,{"$f":"Import!E4094","v":0},null,{"$f":"Import!G4094","v":0}]
[null,20,"International Casualty Non – Motor ",null,{"$f":"Import!E4047","v":0},null,{"$f":"Import!G4047","v":0},null,{"$f":"Import!E4071","v":0},null,{"$f":"Import!G4071","v":0},null,0,null,0,null,{"$f":"Import!E4095","v":0},null,{"$f":"Import!G4095","v":0}]
[null,21,"International Casualty Non Motor Non – Proportional ",null,{"$f":"Import!E4048","v":0},null,{"$f":"Import!G4048","v":0},null,{"$f":"Import!E4072","v":0},null,{"$f":"Import!G4072","v":0},null,0,null,0,null,{"$f":"Import!E4096","v":0},null,{"$f":"Import!G4096","v":0}]
[null,22,"Retro Property",null,{"$f":"Import!E4049","v":0},null,{"$f":"Import!G4049","v":0},null,{"$f":"Import!E4073","v":0},null,{"$f":"Import!G4073","v":0},null,0,null,0,null,{"$f":"Import!E4097","v":0},null,{"$f":"Import!G4097","v":0}]
[null,23,"Structured / Finite Reinsurance",null,{"$f":"Import!E4050","v":0},null,{"$f":"Import!G4050","v":0},null,{"$f":"Import!E4074","v":0},null,{"$f":"Import!G4074","v":0},null,0,null,0,null,{"$f":"Import!E4098","v":0},null,{"$f":"Import!G4098","v":0}]
[null,24,"Health",null,{"$f":"Import!E4051","v":0},null,{"$f":"Import!G4051","v":0},null,{"$f":"Import!E4075","v":0},null,{"$f":"Import!G4075","v":0},null,0,null,0,null,{"$f":"Import!E4099","v":0},null,{"$f":"Import!G4099","v":0}]
[null,25,"Total ",null,{"$f":"SUM(E11:E34)","v":0},null,{"$f":"SUM(G11:G34)","v":0},null,{"$f":"SUM(I11:I34)","v":0},null,{"$f":"SUM(K11:K34)","v":0},null,{"$f":"SUM(M11:M34)","v":0},null,{"$f":"SUM(O11:O34)","v":0},null,{"$f":"SUM(Q11:Q34)","v":0},null,{"$f":"SUM(S11:S34)","v":0}]
[]
[null,null,null,null,null,null,null,null,null,null,null,null,{"$f":"IF(M38=\"TRUE\",HYPERLINK(\"#'Form 2SFS'!E14\",\"TRUE\"),HYPERLINK(\"#'Form 2SFS'!E14\",\"FALSE\"))","v":"TRUE"},null,{"$f":"IF(O38=\"TRUE\",HYPERLINK(\"#'Form 2SFS'!G14\",\"TRUE\"),HYPERLINK(\"#'Form 2SFS'!G14\",\"FALSE\"))","v":"TRUE"},null,{"$f":"IF(Q38=\"TRUE\",HYPERLINK(\"#'Form 2SFS'!E18\",\"TRUE\"),HYPERLINK(\"#'Form 2SFS'!E18\",\"FALSE\"))","v":"TRUE"},null,{"$f":"IF(S38=\"TRUE\",HYPERLINK(\"#'Form 2SFS'!G18\",\"TRUE\"),HYPERLINK(\"#'Form 2SFS'!G18\",\"FALSE\"))","v":"TRUE"}]
[null,null,null,null,null,null,null,null,null,null,null,null,{"$f":"IF('Company Information'!$C$2=\"IFRS\",IF(ROUND((M35-'Form 2ASFS'!E77),0)=0,\"TRUE\",\"FALSE\"),IF(ROUND((M35-'Form 2SFS'!E14),0)=0,\"TRUE\",\"FALSE\"))","v":"TRUE"},null,{"$f":"IF('Company Information'!$C$2=\"IFRS\",IF(ROUND((O35-'Form 2ASFS'!G77),0)=0,\"TRUE\",\"FALSE\"),IF(ROUND((O35-'Form 2SFS'!G14),0)=0,\"TRUE\",\"FALSE\"))","v":"TRUE"},null,{"$f":"IF('Company Information'!$C$2=\"IFRS\",IF(ROUND((Q35-'Form 2ASFS'!E79),0)=0,\"TRUE\",\"FALSE\"),IF(ROUND((Q35-'Form 2SFS'!E18),0)=0,\"TRUE\",\"FALSE\"))","v":"TRUE"},null,{"$f":"IF('Company Information'!$C$2=\"IFRS\",IF(ROUND((S35-'Form 2ASFS'!G79),0)=0,\"TRUE\",\"FALSE\"),IF(ROUND((S35-'Form 2SFS'!G18),0)=0,\"TRUE\",\"FALSE\"))","v":"TRUE"}]
[null,null,null,null,null,null,null,null,null,null,null,null,{"$f":"IF('Company Information'!$C$2=\"IFRS\",'Form 2ASFS'!E77-M35,'Form 2SFS'!E14-M35)","v":0},null,{"$f":"IF('Company Information'!$C$2=\"IFRS\",'Form 2ASFS'!G77-O35,'Form 2SFS'!G14-O35)","v":0},null,{"$f":"IF('Company Information'!$C$2=\"IFRS\",'Form 2ASFS'!E79-Q35,'Form 2SFS'!E18-Q35)","v":0},null,{"$f":"IF('Company Information'!$C$2=\"IFRS\",'Form 2ASFS'!G79-S35,'Form 2SFS'!G18-S35)","v":0}]

{"sheet":"Schedule IVA (EBS)","index":37,"n_rows":39,"n_cols":21,"rows_kept":39,"cut":false,"hidden":false,"merged":[[6,12,6,14],[6,16,6,18],[1,1,1,2],[4,4,4,14],[5,4,5,6],[4,16,4,18],[5,8,5,10],[5,12,5,14]]}
[null,"SCHEDULE OF PREMIUMS WRITTEN BY LINE OF BUSINESS",null,null,null,null,null,null,null,null,null,null,null,null,null,null,null,null,null,null,{"$f":"HYPERLINK(\"#'Index'!A1\",\"Return to Index\")","v":"Return to Index"}]
[null,{"$f":"'Company Information'!C7","v":"Enter Company Name"}]
[null,{"$f":"\"For the year ending \"& TEXT('Company Information'!C3,\"d mmmm yyyy\")","v":"For the year ending 31 December 2023"},null,null,null,null,null,null,null,null,null,null,null,null,null,null,null,null,null,null,"SCHEDULE IV(A) (EBS)"]
[null,{"$f":"\"expressed in\"& IF(CONFIGURATION!$B$12>1,\" ['\"&MID(CONFIGURATION!$B$12,2,LEN(CONFIGURATION!$B$12))&\"s]\",\"\")&\" \"&'Form 1EBS'!C4","v":"expressed in ['000s] United States Dollars"}]
[null,null,null,null,"Gross Premiums Written",null,null,null,null,null,null,null,null,null,null,null,"Net Premiums Written",null,null,null,"Geo NPW"]
[null,null,null,null,"Unrelated",null,null,null,"Related",null,null,null,"Total"]
[null,"Schedule ",null,null,null,null,null,null,null,null,null,null,"Form 2SFS, Line 1(c) ",null,null,null,"Form 2SFS, Line 3",null,null,null,"[ Schedule IV(C) ]"]
[null,"Line no. ",null,null,{"$f":"'Form 1EBS'!F7","v":"2023-12-31"},null,{"$f":"'Form 1EBS'!H7","v":"2022-12-31"},null,{"$f":"'Form 1EBS'!F7","v":"2023-12-31"},null,{"$f":"'Form 1EBS'!H7","v":"2022-12-31"},null,{"$f":"'Form 1EBS'!F7","v":"2023-12-31"},null,{"$f":"'Form 1EBS'!H7","v":"2022-12-31"},null,{"$f":"'Form 1EBS'!F7","v":"2023-12-31"},null,{"$f":"'Form 1EBS'!H7","v":"2022-12-31"},null,{"$f":"'Form 1EBS'!F7","v":"2023-12-31"}]
[null,null,null,null,{"$f":"CONFIGURATION!$D$12","v":" ('000s)"},null,{"$f":"CONFIGURATION!$D$12","v":" ('000s)"},null,{"$f":"CONFIGURATION!$D$12","v":" ('000s)"},null,{"$f":"CONFIGURATION!$D$12","v":" ('000s)"},null,{"$f":"CONFIGURATION!$D$12","v":" ('000s)"},null,{"$f":"CONFIGURATION!$D$12","v":" ('000s)"},null,{"$f":"CONFIGURATION!$D$12","v":" ('000s)"},null,{"$f":"CONFIGURATION!$D$12","v":" ('000s)"},null,{"$f":"CONFIGURATION!$D$12","v":" ('000s)"}]
[]
[null,1,"Property Catastrophe",null,{"$f":"Import!I4028","v":0},null,{"$f":"Import!K4028","v":0},null,{"$f":"Import!I4052","v":0},null,{"$f":"Import!K4052","v":0},null,{"$f":"E11+I11","v":0},null,{"$f":"G11+K11","v":0},null,{"$f":"Import!I4076","v":0},null,{"$f":"Import!K4076","v":0},null,{"$f":"+'Schedule IVC (EBS)'!X9","v":0}]
[null,2,"Property",null,{"$f":"Import!I4029","v":0},null,{"$f":"Import!K4029","v":0},null,{"$f":"Import!I4053","v":0},null,{"$f":"Import!K4053","v":0},null,0,null,0,null,{"$f":"Import!I4077","v":0},null,{"$f":"Import!K4077","v":0},null,{"$f":"+'Schedule IVC (EBS)'!X10","v":0}]
[null,3,"Property Non – Proportional",null,{"$f":"Import!I4030","v":0},null,{"$f":"Import!K4030","v":0},null,{"$f":"Import!I4054","v":0},null,{"$f":"Import!K4054","v":0},null,0,null,0,null,{"$f":"Import!I4078","v":0},null,{"$f":"Import!K4078","v":0},null,{"$f":"+'Schedule IVC (EBS)'!X11","v":0}]
[null,4,"Personal Accident",null,{"$f":"Import!I4031","v":0},null,{"$f":"Import!K4031","v":0},null,{"$f":"Import!I4055","v":0},null,{"$f":"Import!K4055","v":0},null,0,null,0,null,{"$f":"Import!I4079","v":0},null,{"$f":"Import!K4079","v":0},null,{"$f":"+'Schedule IVC (EBS)'!X12","v":0}]
[null,5,"Personal Accident Non- Proportional",null,{"$f":"Import!I4032","v":0},null,{"$f":"Import!K4032","v":0},null,{"$f":"Import!I4056","v":0},null,{"$f":"Import!K4056","v":0},null,0,null,0,null,{"$f":"Import!I4080","v":0},null,{"$f":"Import!K4080","v":0},null,{"$f":"+'Schedule IVC (EBS)'!X13","v":0}]
[null,6,"Aviation",null,{"$f":"Import!I4033","v":0},null,{"$f":"Import!K4033","v":0},null,{"$f":"Import!I4057","v":0},null,{"$f":"Import!K4057","v":0},null,0,null,0,null,{"$f":"Import!I4081","v":0},null,{"$f":"Import!K4081","v":0},null,{"$f":"+'Schedule IVC (EBS)'!X14","v":0}]
[null,7,"Aviation Non – Proportional",null,{"$f":"Import!I4034","v":0},null,{"$f":"Import!K4034","v":0},null,{"$f":"Import!I4058","v":0},null,{"$f":"Import!K4058","v":0},null,0,null,0,null,{"$f":"Import!I4082","v":0},null,{"$f":"Import!K4082","v":0},null,{"$f":"+'Schedule IVC (EBS)'!X15","v":0}]
[null,8,"Credit / Surety ",null,{"$f":"Import!I4035","v":0},null,{"$f":"Import!K4035","v":0},null,{"$f":"Import!I4059","v":0},null,{"$f":"Import!K4059","v":0},null,0,null,0,null,{"$f":"Import!I4083","v":0},null,{"$f":"Import!K4083","v":0},null,{"$f":"+'Schedule IVC (EBS)'!X16","v":0}]
[null,9,"Credit / Surety Non – Proportional",null,{"$f":"Import!I4036","v":0},null,{"$f":"Import!K4036","v":0},null,{"$f":"Import!I4060","v":0},null,{"$f":"Import!K4060","v":0},null,0,null,0,null,{"$f":"Import!I4084","v":0},null,{"$f":"Import!K4084","v":0},null,{"$f":"+'Schedule IVC (EBS)'!X17","v":0}]
[null,10,"Energy Offshore / Marine",null,{"$f":"Import!I4037","v":0},null,{"$f":"Import!K4037","v":0},null,{"$f":"Import!I4061","v":0},null,{"$f":"Import!K4061","v":0},null,0,null,0,null,{"$f":"Import!I4085","v":0},null,{"$f":"Import!K4085","v":0},null,{"$f":"+'Schedule IVC (EBS)'!X18","v":0}]
[null,11,"Energy Offshore / Marine Non - Proportional ","  ",{"$f":"Import!I4038","v":0},null,{"$f":"Import!K4038","v":0},null,{"$f":"Import!I4062","v":0},null,{"$f":"Import!K4062","v":0},null,0,null,0,null,{"$f":"Import!I4086","v":0},null,{"$f":"Import!K4086","v":0},null,{"$f":"+'Schedule IVC (EBS)'!X19","v":0}]
[null,12,"US Casualty",null,{"$f":"Import!I4039","v":0},null,{"$f":"Import!K4039","v":0},null,{"$f":"Import!I4063","v":0},null,{"$f":"Import!K4063","v":0},null,0,null,0,null,{"$f":"Import!I4087","v":0},null,{"$f":"Import!K4087","v":0},null,{"$f":"+'Schedule IVC (EBS)'!X20","v":0}]
[null,13,"US Casualty Non - Proportional ",null,{"$f":"Import!I4040","v":0},null,{"$f":"Import!K4040","v":0},null,{"$f":"Import!I4064","v":0},null,{"$f":"Import!K4064","v":0},null,0,null,0,null,{"$f":"Import!I4088","v":0},null,{"$f":"Import!K4088","v":0},null,{"$f":"+'Schedule IVC (EBS)'!X21","v":0}]
[null,14,"US Professional",null,{"$f":"Import!I4041","v":0},null,{"$f":"Import!K4041","v":0},null,{"$f":"Import!I4065","v":0},null,{"$f":"Import!K4065","v":0},null,0,null,0,null,{"$f":"Import!I4089","v":0},null,{"$f":"Import!K4089","v":0},null,{"$f":"+'Schedule IVC (EBS)'!X22","v":0}]
[null,15,"US Professional Non – Proportional",null,{"$f":"Import!I4042","v":0},null,{"$f":"Import!K4042","v":0},null,{"$f":"Import!I4066","v":0},null,{"$f":"Import!K4066","v":0},null,0,null,0,null,{"$f":"Import!I4090","v":0},null,{"$f":"Import!K4090","v":0},null,{"$f":"+'Schedule IVC (EBS)'!X23","v":0}]
[null,16,"US Specialty ",null,{"$f":"Import!I4043","v":0},null,{"$f":"Import!K4043","v":0},null,{"$f":"Import!I4067","v":0},null,{"$f":"Import!K4067","v":0},null,0,null,0,null,{"$f":"Import!I4091","v":0},null,{"$f":"Import!K4091","v":0},null,{"$f":"+'Schedule IVC (EBS)'!X24","v":0}]
[null,17,"US Specialty Non - Proportional",null,{"$f":"Import!I4044","v":0},null,{"$f":"Import!K4044","v":0},null,{"$f":"Import!I4068","v":0},null,{"$f":"Import!K4068","v":0},null,0,null,0,null,{"$f":"Import!I4092","v":0},null,{"$f":"Import!K4092","v":0},null,{"$f":"+'Schedule IVC (EBS)'!X25","v":0}]
[null,18,"International Motor ",null,{"$f":"Import!I4045","v":0},null,{"$f":"Import!K4045","v":0},null,{"$f":"Import!I4069","v":0},null,{"$f":"Import!K4069","v":0},null,0,null,0,null,{"$f":"Import!I4093","v":0},null,{"$f":"Import!K4093","v":0},null,{"$f":"+'Schedule IVC (EBS)'!X26","v":0}]
[null,19,"International Motor Non – Proportional",null,{"$f":"Import!I4046","v":0},null,{"$f":"Import!K4046","v":0},null,{"$f":"Import!I4070","v":0},null,{"$f":"Import!K4070","v":0},null,0,null,0,null,{"$f":"Import!I4094","v":0},null,{"$f":"Import!K4094","v":0},null,{"$f":"+'Schedule IVC (EBS)'!X27","v":0}]
[null,20,"International Casualty Non – Motor ",null,{"$f":"Import!I4047","v":0},null,{"$f":"Import!K4047","v":0},null,{"$f":"Import!I4071","v":0},null,{"$f":"Import!K4071","v":0},null,0,null,0,null,{"$f":"Import!I4095","v":0},null,{"$f":"Import!K4095","v":0},null,{"$f":"+'Schedule IVC (EBS)'!X28","v":0}]
[null,21,"International Casualty Non Motor Non – Proportional ",null,{"$f":"Import!I4048","v":0},null,{"$f":"Import!K4048","v":0},null,{"$f":"Import!I4072","v":0},null,{"$f":"Import!K4072","v":0},null,0,null,0,null,{"$f":"Import!I4096","v":0},null,{"$f":"Import!K4096","v":0},null,{"$f":"+'Schedule IVC (EBS)'!X29","v":0}]
[null,22,"Retro Property",null,{"$f":"Import!I4049","v":0},null,{"$f":"Import!K4049","v":0},null,{"$f":"Import!I4073","v":0},null,{"$f":"Import!K4073","v":0},null,0,null,0,null,{"$f":"Import!I4097","v":0},null,{"$f":"Import!K4097","v":0},null,{"$f":"+'Schedule IVC (EBS)'!X30","v":0}]
[null,23,"Structured / Finite Reinsurance",null,{"$f":"Import!I4050","v":0},null,{"$f":"Import!K4050","v":0},null,{"$f":"Import!I4074","v":0},null,{"$f":"Import!K4074","v":0},null,0,null,0,null,{"$f":"Import!I4098","v":0},null,{"$f":"Import!K4098","v":0},null,{"$f":"+'Schedule IVC (EBS)'!X31","v":0}]
[null,24,"Health",null,{"$f":"Import!I4051","v":0},null,{"$f":"Import!K4051","v":0},null,{"$f":"Import!I4075","v":0},null,{"$f":"Import!K4075","v":0},null,0,null,0,null,{"$f":"Import!I4099","v":0},null,{"$f":"Import!K4099","v":0},null,{"$f":"+'Schedule IVC (EBS)'!X32","v":0}]
[null,25,"Total ",null,{"$f":"SUM(E11:E34)","v":0},null,{"$f":"SUM(G11:G34)","v":0},null,{"$f":"SUM(I11:I34)","v":0},null,{"$f":"SUM(K11:K34)","v":0},null,{"$f":"SUM(M11:M34)","v":0},null,{"$f":"SUM(O11:O34)","v":0},null,{"$f":"SUM(Q11:Q34)","v":0},null,{"$f":"SUM(S11:S34)","v":0},null,{"$f":"SUM(U11:U34)","v":0}]
[]
[null,null,null,null,null,null,null,null,null,null,null,null,{"$f":"IF(M38=\"TRUE\",HYPERLINK(\"#'Form 2SFS'!E14:M14\",\"TRUE\"),HYPERLINK(\"#'Form 2SFS'!E14:M14\",\"FALSE\"))","v":"TRUE"},null,{"$f":"IF(O38=\"TRUE\",HYPERLINK(\"#'Form 2SFS'!G14:O14\",\"TRUE\"),HYPERLINK(\"#'Form 2SFS'!G14:O14\",\"FALSE\"))","v":"TRUE"},null,{"$f":"IF(Q38=\"TRUE\",HYPERLINK(\"#'Form 2SFS'!E18:M18\",\"TRUE\"),HYPERLINK(\"#'Form 2SFS'!E18:M18\",\"FALSE\"))","v":"TRUE"},null,{"$f":"IF(S38=\"TRUE\",HYPERLINK(\"#'Form 2SFS'!G18:O18\",\"TRUE\"),HYPERLINK(\"#'Form 2SFS'!G18:O18\",\"FALSE\"))","v":"TRUE"}]
[null,null,null,null,null,null,null,null,null,null,null,null,{"$f":"IF('Company Information'!$C$2=\"IFRS\",\nIF(ROUND((M35-'Form 2ASFS'!M77),0)=0,\"TRUE\",\"FALSE\"),\nIF(ROUND((M35-'Form 2SFS'!M14),0)=0,\"TRUE\",\"FALSE\"))","v":"TRUE"},null,{"$f":"IF('Company Information'!$C$2=\"IFRS\",\nIF(ROUND((O35-'Form 2ASFS'!O77),0)=0,\"TRUE\",\"FALSE\"),\nIF(ROUND((O35-'Form 2SFS'!O14),0)=0,\"TRUE\",\"FALSE\"))","v":"TRUE"},null,{"$f":"IF('Company Information'!$C$2=\"IFRS\",\nIF(ROUND((Q35-'Form 2ASFS'!M79),0)=0,\"TRUE\",\"FALSE\"),IF(ROUND((Q35-'Form 2SFS'!M18),0)=0,\"TRUE\",\"FALSE\"))","v":"TRUE"},null,{"$f":"IF('Company Information'!$C$2=\"IFRS\",\nIF(ROUND((S35-'Form 2ASFS'!O79),0)=0,\"TRUE\",\"FALSE\"),IF(ROUND((S35-'Form 2SFS'!O18),0)=0,\"TRUE\",\"FALSE\"))","v":"TRUE"}]
[null,null,null,null,null,null,null,null,null,null,null,null,{"$f":"IF('Company Information'!$C$2=\"IFRS\",\nROUND('Form 2ASFS'!M77-M35,0),\nROUND('Form 2SFS'!M14-M35,0))","v":0},null,{"$f":"IF('Company Information'!$C$2=\"IFRS\",\nROUND('Form 2ASFS'!O77-O35,0),\nROUND('Form 2SFS'!O14-O35,0))","v":0},null,{"$f":"IF('Company Information'!$C$2=\"IFRS\",\nROUND('Form 2ASFS'!M79-Q35,0),ROUND('Form 2SFS'!M18-Q35,0))","v":0},null,{"$f":"IF('Company Information'!$C$2=\"IFRS\",\nROUND('Form 2ASFS'!O79-S35,0),ROUND('Form 2SFS'!O18-S35,0))","v":0}]

{"sheet":"Schedule IVC (EBS)","index":38,"n_rows":33,"n_cols":28,"rows_kept":33,"cut":false,"hidden":false,"merged":[[1,1,1,2]]}
[null,"SCHEDULE OF GEOGRAPHIC DIVERSIFICATION OF PREMIUMS WRITTEN",null,null,null,null,null,null,null,null,null,null,null,null,null,null,null,null,null,null,null,null,null,null,null,{"$f":"HYPERLINK(\"#'Index'!A1\",\"Return to Index\")","v":"Return to Index"}]
[null,{"$f":"'Company Information'!C7","v":"Enter Company Name"}]
[null,{"$f":"\"For the year ending \"& TEXT('Company Information'!C3,\"d mmmm yyyy\")","v":"For the year ending 31 December 2023"},null,null,null,null,null,null,null,null,null,null,null,null,null,null,null,null,null,null,null,null,null,null,null,"SCHEDULE IV(C) (EBS)"]
[null,{"$f":"\"expressed in\"& IF(CONFIGURATION!$B$12>1,\" ['\"&MID(CONFIGURATION!$B$12,2,LEN(CONFIGURATION!$B$12))&\"s]\",\"\")&\" \"&'Form 1EBS'!C4","v":"expressed in ['000s] United States Dollars"},null,null,null,null,null,null,null,null,null,null,null,null,null,null,null,null,null,null,null,null,null,{"$f":"\"Confirmation that \"&B2& \" Is Taking Advantage of Geographic Diversification of Premiums\"","v":"Confirmation that Enter Company Name Is Taking Advantage of Geographic Diversification of Premiums"},null,"Yes"]
[]
[null,"Schedule ",null,null,{"$f":"HYPERLINK(\"#'Zones'!c4\",\"Zone 1\")","v":"Zone 1"},{"$f":"HYPERLINK(\"#'Zones'!c13\",\"Zone 2\")","v":"Zone 2"},{"$f":"HYPERLINK(\"#'Zones'!c18\",\"Zone 3\")","v":"Zone 3"},{"$f":"HYPERLINK(\"#'Zones'!c26\",\"Zone 4\")","v":"Zone 4"},{"$f":"HYPERLINK(\"#'Zones'!c36\",\"Zone 5\")","v":"Zone 5"},{"$f":"HYPERLINK(\"#'Zones'!c46\",\"Zone 6\")","v":"Zone 6"},{"$f":"HYPERLINK(\"#'Zones'!c57\",\"Zone 7\")","v":"Zone 7"},{"$f":"HYPERLINK(\"#'Zones'!c68\",\"Zone 8\")","v":"Zone 8"},{"$f":"HYPERLINK(\"#'Zones'!c76\",\"Zone 9\")","v":"Zone 9"},{"$f":"HYPERLINK(\"#'Zones'!c84\",\"Zone 10\")","v":"Zone 10"},{"$f":"HYPERLINK(\"#'Zones'!c90\",\"Zone 11\")","v":"Zone 11"},{"$f":"HYPERLINK(\"#'Zones'!c94\",\"Zone 12\")","v":"Zone 12"},{"$f":"HYPERLINK(\"#'Zones'!c107\",\"Zone 13\")","v":"Zone 13"},{"$f":"HYPERLINK(\"#'Zones'!c112\",\"Zone 14\")","v":"Zone 14"},{"$f":"HYPERLINK(\"#'Zones'!c116\",\"Zone 15\")","v":"Zone 15"},{"$f":"HYPERLINK(\"#'Zones'!c121\",\"Zone 16\")","v":"Zone 16"},{"$f":"HYPERLINK(\"#'Zones'!c127\",\"Zone 17\")","v":"Zone 17"},{"$f":"HYPERLINK(\"#'Zones'!c133\",\"Zone 18\")","v":"Zone 18"},null,"Total Geo NPW",null,"Total NPW"]
[null,"Line no. ",null,null,{"$f":"CONFIGURATION!$D$12","v":" ('000s)"},{"$f":"CONFIGURATION!$D$12","v":" ('000s)"},{"$f":"CONFIGURATION!$D$12","v":" ('000s)"},{"$f":"CONFIGURATION!$D$12","v":" ('000s)"},{"$f":"CONFIGURATION!$D$12","v":" ('000s)"},{"$f":"CONFIGURATION!$D$12","v":" ('000s)"},{"$f":"CONFIGURATION!$D$12","v":" ('000s)"},{"$f":"CONFIGURATION!$D$12","v":" ('000s)"},{"$f":"CONFIGURATION!$D$12","v":" ('000s)"},{"$f":"CONFIGURATION!$D$12","v":" ('000s)"},{"$f":"CONFIGURATION!$D$12","v":" ('000s)"},{"$f":"CONFIGURATION!$D$12","v":" ('000s)"},{"$f":"CONFIGURATION!$D$12","v":" ('000s)"},{"$f":"CONFIGURATION!$D$12","v":" ('000s)"},{"$f":"CONFIGURATION!$D$12","v":" ('000s)"},{"$f":"CONFIGURATION!$D$12","v":" ('000s)"},{"$f":"CONFIGURATION!$D$12","v":" ('000s)"},{"$f":"CONFIGURATION!$D$12","v":" ('000s)"},null,{"$f":"CONFIGURATION!$D$12","v":" ('000s)"},null,{"$f":"CONFIGURATION!$D$12","v":" ('000s)"}]
[]
[null,1,"Property Catastrophe",null,{"$f":"Import!I4102","v":0},{"$f":"Import!I4127","v":0},{"$f":"Import!I4152","v":0},{"$f":"Import!I4177","v":0},{"$f":"Import!I4202","v":0},{"$f":"Import!I4227","v":0},{"$f":"Import!I4252","v":0},{"$f":"Import!I4277","v":0},{"$f":"Import!I4302","v":0},{"$f":"Import!I4327","v":0},{"$f":"Import!I4352","v":0},{"$f":"Import!I4377","v":0},{"$f":"Import!I4402","v":0},{"$f":"Import!I4427","v":0},{"$f":"Import!I4452","v":0},{"$f":"Import!I4477","v":0},{"$f":"Import!I4502","v":0},{"$f":"Import!I4527","v":0},null,{"$f":"SUM(E9:V9)","v":0},null,{"$f":"'Schedule IVA (EBS)'!Q11","v":0},null,{"$f":"IF($Z$4=\"Yes\",IF(X9=0,\" - \",IF(ROUND(SUM(X9-Z9),0)=0,\"TRUE\",\"FALSE\")),\"N/A\")","v":" - "}]
[null,2,"Property",null,{"$f":"Import!I4103","v":0},{"$f":"Import!I4128","v":0},{"$f":"Import!I4153","v":0},{"$f":"Import!I4178","v":0},{"$f":"Import!I4203","v":0},{"$f":"Import!I4228","v":0},{"$f":"Import!I4253","v":0},{"$f":"Import!I4278","v":0},{"$f":"Import!I4303","v":0},{"$f":"Import!I4328","v":0},{"$f":"Import!I4353","v":0},{"$f":"Import!I4378","v":0},{"$f":"Import!I4403","v":0},{"$f":"Import!I4428","v":0},{"$f":"Import!I4453","v":0},{"$f":"Import!I4478","v":0},{"$f":"Import!I4503","v":0},{"$f":"Import!I4528","v":0},null,{"$f":"SUM(E10:V10)","v":0},null,{"$f":"'Schedule IVA (EBS)'!Q12","v":0},null,{"$f":"IF($Z$4=\"Yes\",IF(X10=0,\" - \",IF(ROUND(SUM(X10-Z10),0)=0,\"TRUE\",\"FALSE\")),\"N/A\")","v":" - "}]
[null,3,"Property Non – Proportional",null,{"$f":"Import!I4104","v":0},{"$f":"Import!I4129","v":0},{"$f":"Import!I4154","v":0},{"$f":"Import!I4179","v":0},{"$f":"Import!I4204","v":0},{"$f":"Import!I4229","v":0},{"$f":"Import!I4254","v":0},{"$f":"Import!I4279","v":0},{"$f":"Import!I4304","v":0},{"$f":"Import!I4329","v":0},{"$f":"Import!I4354","v":0},{"$f":"Import!I4379","v":0},{"$f":"Import!I4404","v":0},{"$f":"Import!I4429","v":0},{"$f":"Import!I4454","v":0},{"$f":"Import!I4479","v":0},{"$f":"Import!I4504","v":0},{"$f":"Import!I4529","v":0},null,0,null,{"$f":"'Schedule IVA (EBS)'!Q13","v":0},null," - "]
[null,4,"Personal Accident",null,{"$f":"Import!I4105","v":0},{"$f":"Import!I4130","v":0},{"$f":"Import!I4155","v":0},{"$f":"Import!I4180","v":0},{"$f":"Import!I4205","v":0},{"$f":"Import!I4230","v":0},{"$f":"Import!I4255","v":0},{"$f":"Import!I4280","v":0},{"$f":"Import!I4305","v":0},{"$f":"Import!I4330","v":0},{"$f":"Import!I4355","v":0},{"$f":"Import!I4380","v":0},{"$f":"Import!I4405","v":0},{"$f":"Import!I4430","v":0},{"$f":"Import!I4455","v":0},{"$f":"Import!I4480","v":0},{"$f":"Import!I4505","v":0},{"$f":"Import!I4530","v":0},null,0,null,{"$f":"'Schedule IVA (EBS)'!Q14","v":0},null," - "]
[null,5,"Personal Accident Non- Proportional",null,{"$f":"Import!I4106","v":0},{"$f":"Import!I4131","v":0},{"$f":"Import!I4156","v":0},{"$f":"Import!I4181","v":0},{"$f":"Import!I4206","v":0},{"$f":"Import!I4231","v":0},{"$f":"Import!I4256","v":0},{"$f":"Import!I4281","v":0},{"$f":"Import!I4306","v":0},{"$f":"Import!I4331","v":0},{"$f":"Import!I4356","v":0},{"$f":"Import!I4381","v":0},{"$f":"Import!I4406","v":0},{"$f":"Import!I4431","v":0},{"$f":"Import!I4456","v":0},{"$f":"Import!I4481","v":0},{"$f":"Import!I4506","v":0},{"$f":"Import!I4531","v":0},null,0,null,{"$f":"'Schedule IVA (EBS)'!Q15","v":0},null," - "]
[null,6,"Aviation",null,{"$f":"Import!I4107","v":0},{"$f":"Import!I4132","v":0},{"$f":"Import!I4157","v":0},{"$f":"Import!I4182","v":0},{"$f":"Import!I4207","v":0},{"$f":"Import!I4232","v":0},{"$f":"Import!I4257","v":0},{"$f":"Import!I4282","v":0},{"$f":"Import!I4307","v":0},{"$f":"Import!I4332","v":0},{"$f":"Import!I4357","v":0},{"$f":"Import!I4382","v":0},{"$f":"Import!I4407","v":0},{"$f":"Import!I4432","v":0},{"$f":"Import!I4457","v":0},{"$f":"Import!I4482","v":0},{"$f":"Import!I4507","v":0},{"$f":"Import!I4532","v":0},null,0,null,{"$f":"'Schedule IVA (EBS)'!Q16","v":0},null," - "]
[null,7,"Aviation Non – Proportional",null,{"$f":"Import!I4108","v":0},{"$f":"Import!I4133","v":0},{"$f":"Import!I4158","v":0},{"$f":"Import!I4183","v":0},{"$f":"Import!I4208","v":0},{"$f":"Import!I4233","v":0},{"$f":"Import!I4258","v":0},{"$f":"Import!I4283","v":0},{"$f":"Import!I4308","v":0},{"$f":"Import!I4333","v":0},{"$f":"Import!I4358","v":0},{"$f":"Import!I4383","v":0},{"$f":"Import!I4408","v":0},{"$f":"Import!I4433","v":0},{"$f":"Import!I4458","v":0},{"$f":"Import!I4483","v":0},{"$f":"Import!I4508","v":0},{"$f":"Import!I4533","v":0},null,0,null,{"$f":"'Schedule IVA (EBS)'!Q17","v":0},null," - "]
[null,8,"Credit / Surety ",null,{"$f":"Import!I4109","v":0},{"$f":"Import!I4134","v":0},{"$f":"Import!I4159","v":0},{"$f":"Import!I4184","v":0},{"$f":"Import!I4209","v":0},{"$f":"Import!I4234","v":0},{"$f":"Import!I4259","v":0},{"$f":"Import!I4284","v":0},{"$f":"Import!I4309","v":0},{"$f":"Import!I4334","v":0},{"$f":"Import!I4359","v":0},{"$f":"Import!I4384","v":0},{"$f":"Import!I4409","v":0},{"$f":"Import!I4434","v":0},{"$f":"Import!I4459","v":0},{"$f":"Import!I4484","v":0},{"$f":"Import!I4509","v":0},{"$f":"Import!I4534","v":0},null,0,null,{"$f":"'Schedule IVA (EBS)'!Q18","v":0},null," - "]
[null,9,"Credit / Surety Non – Proportional",null,{"$f":"Import!I4110","v":0},{"$f":"Import!I4135","v":0},{"$f":"Import!I4160","v":0},{"$f":"Import!I4185","v":0},{"$f":"Import!I4210","v":0},{"$f":"Import!I4235","v":0},{"$f":"Import!I4260","v":0},{"$f":"Import!I4285","v":0},{"$f":"Import!I4310","v":0},{"$f":"Import!I4335","v":0},{"$f":"Import!I4360","v":0},{"$f":"Import!I4385","v":0},{"$f":"Import!I4410","v":0},{"$f":"Import!I4435","v":0},{"$f":"Import!I4460","v":0},{"$f":"Import!I4485","v":0},{"$f":"Import!I4510","v":0},{"$f":"Import!I4535","v":0},null,0,null,{"$f":"'Schedule IVA (EBS)'!Q19","v":0},null," - "]
[null,10,"Energy Offshore / Marine",null,{"$f":"Import!I4111","v":0},{"$f":"Import!I4136","v":0},{"$f":"Import!I4161","v":0},{"$f":"Import!I4186","v":0},{"$f":"Import!I4211","v":0},{"$f":"Import!I4236","v":0},{"$f":"Import!I4261","v":0},{"$f":"Import!I4286","v":0},{"$f":"Import!I4311","v":0},{"$f":"Import!I4336","v":0},{"$f":"Import!I4361","v":0},{"$f":"Import!I4386","v":0},{"$f":"Import!I4411","v":0},{"$f":"Import!I4436","v":0},{"$f":"Import!I4461","v":0},{"$f":"Import!I4486","v":0},{"$f":"Import!I4511","v":0},{"$f":"Import!I4536","v":0},null,0,null,{"$f":"'Schedule IVA (EBS)'!Q20","v":0},null," - "]
[null,11,"Energy Offshore / Marine Non - Proportional ","  ",{"$f":"Import!I4112","v":0},{"$f":"Import!I4137","v":0},{"$f":"Import!I4162","v":0},{"$f":"Import!I4187","v":0},{"$f":"Import!I4212","v":0},{"$f":"Import!I4237","v":0},{"$f":"Import!I4262","v":0},{"$f":"Import!I4287","v":0},{"$f":"Import!I4312","v":0},{"$f":"Import!I4337","v":0},{"$f":"Import!I4362","v":0},{"$f":"Import!I4387","v":0},{"$f":"Import!I4412","v":0},{"$f":"Import!I4437","v":0},{"$f":"Import!I4462","v":0},{"$f":"Import!I4487","v":0},{"$f":"Import!I4512","v":0},{"$f":"Import!I4537","v":0},null,0,null,{"$f":"'Schedule IVA (EBS)'!Q21","v":0},null," - "]
[null,12,"US Casualty",null,{"$f":"Import!I4113","v":0},{"$f":"Import!I4138","v":0},{"$f":"Import!I4163","v":0},{"$f":"Import!I4188","v":0},{"$f":"Import!I4213","v":0},{"$f":"Import!I4238","v":0},{"$f":"Import!I4263","v":0},{"$f":"Import!I4288","v":0},{"$f":"Import!I4313","v":0},{"$f":"Import!I4338","v":0},{"$f":"Import!I4363","v":0},{"$f":"Import!I4388","v":0},{"$f":"Import!I4413","v":0},{"$f":"Import!I4438","v":0},{"$f":"Import!I4463","v":0},{"$f":"Import!I4488","v":0},{"$f":"Import!I4513","v":0},{"$f":"Import!I4538","v":0},null,0,null,{"$f":"'Schedule IVA (EBS)'!Q22","v":0},null," - "]
[null,13,"US Casualty Non - Proportional ",null,{"$f":"Import!I4114","v":0},{"$f":"Import!I4139","v":0},{"$f":"Import!I4164","v":0},{"$f":"Import!I4189","v":0},{"$f":"Import!I4214","v":0},{"$f":"Import!I4239","v":0},{"$f":"Import!I4264","v":0},{"$f":"Import!I4289","v":0},{"$f":"Import!I4314","v":0},{"$f":"Import!I4339","v":0},{"$f":"Import!I4364","v":0},{"$f":"Import!I4389","v":0},{"$f":"Import!I4414","v":0},{"$f":"Import!I4439","v":0},{"$f":"Import!I4464","v":0},{"$f":"Import!I4489","v":0},{"$f":"Import!I4514","v":0},{"$f":"Import!I4539","v":0},null,0,null,{"$f":"'Schedule IVA (EBS)'!Q23","v":0},null," - "]
[null,14,"US Professional",null,{"$f":"Import!I4115","v":0},{"$f":"Import!I4140","v":0},{"$f":"Import!I4165","v":0},{"$f":"Import!I4190","v":0},{"$f":"Import!I4215","v":0},{"$f":"Import!I4240","v":0},{"$f":"Import!I4265","v":0},{"$f":"Import!I4290","v":0},{"$f":"Import!I4315","v":0},{"$f":"Import!I4340","v":0},{"$f":"Import!I4365","v":0},{"$f":"Import!I4390","v":0},{"$f":"Import!I4415","v":0},{"$f":"Import!I4440","v":0},{"$f":"Import!I4465","v":0},{"$f":"Import!I4490","v":0},{"$f":"Import!I4515","v":0},{"$f":"Import!I4540","v":0},null,0,null,{"$f":"'Schedule IVA (EBS)'!Q24","v":0},null," - "]
[null,15,"US Professional Non – Proportional",null,{"$f":"Import!I4116","v":0},{"$f":"Import!I4141","v":0},{"$f":"Import!I4166","v":0},{"$f":"Import!I4191","v":0},{"$f":"Import!I4216","v":0},{"$f":"Import!I4241","v":0},{"$f":"Import!I4266","v":0},{"$f":"Import!I4291","v":0},{"$f":"Import!I4316","v":0},{"$f":"Import!I4341","v":0},{"$f":"Import!I4366","v":0},{"$f":"Import!I4391","v":0},{"$f":"Import!I4416","v":0},{"$f":"Import!I4441","v":0},{"$f":"Import!I4466","v":0},{"$f":"Import!I4491","v":0},{"$f":"Import!I4516","v":0},{"$f":"Import!I4541","v":0},null,0,null,{"$f":"'Schedule IVA (EBS)'!Q25","v":0},null," - "]
[null,16,"US Specialty ",null,{"$f":"Import!I4117","v":0},{"$f":"Import!I4142","v":0},{"$f":"Import!I4167","v":0},{"$f":"Import!I4192","v":0},{"$f":"Import!I4217","v":0},{"$f":"Import!I4242","v":0},{"$f":"Import!I4267","v":0},{"$f":"Import!I4292","v":0},{"$f":"Import!I4317","v":0},{"$f":"Import!I4342","v":0},{"$f":"Import!I4367","v":0},{"$f":"Import!I4392","v":0},{"$f":"Import!I4417","v":0},{"$f":"Import!I4442","v":0},{"$f":"Import!I4467","v":0},{"$f":"Import!I4492","v":0},{"$f":"Import!I4517","v":0},{"$f":"Import!I4542","v":0},null,0,null,{"$f":"'Schedule IVA (EBS)'!Q26","v":0},null," - "]
[null,17,"US Specialty Non - Proportional",null,{"$f":"Import!I4118","v":0},{"$f":"Import!I4143","v":0},{"$f":"Import!I4168","v":0},{"$f":"Import!I4193","v":0},{"$f":"Import!I4218","v":0},{"$f":"Import!I4243","v":0},{"$f":"Import!I4268","v":0},{"$f":"Import!I4293","v":0},{"$f":"Import!I4318","v":0},{"$f":"Import!I4343","v":0},{"$f":"Import!I4368","v":0},{"$f":"Import!I4393","v":0},{"$f":"Import!I4418","v":0},{"$f":"Import!I4443","v":0},{"$f":"Import!I4468","v":0},{"$f":"Import!I4493","v":0},{"$f":"Import!I4518","v":0},{"$f":"Import!I4543","v":0},null,0,null,{"$f":"'Schedule IVA (EBS)'!Q27","v":0},null," - "]
[null,18,"International Motor ",null,{"$f":"Import!I4119","v":0},{"$f":"Import!I4144","v":0},{"$f":"Import!I4169","v":0},{"$f":"Import!I4194","v":0},{"$f":"Import!I4219","v":0},{"$f":"Import!I4244","v":0},{"$f":"Import!I4269","v":0},{"$f":"Import!I4294","v":0},{"$f":"Import!I4319","v":0},{"$f":"Import!I4344","v":0},{"$f":"Import!I4369","v":0},{"$f":"Import!I4394","v":0},{"$f":"Import!I4419","v":0},{"$f":"Import!I4444","v":0},{"$f":"Import!I4469","v":0},{"$f":"Import!I4494","v":0},{"$f":"Import!I4519","v":0},{"$f":"Import!I4544","v":0},null,0,null,{"$f":"'Schedule IVA (EBS)'!Q28","v":0},null," - "]
[null,19,"International Motor Non – Proportional",null,{"$f":"Import!I4120","v":0},{"$f":"Import!I4145","v":0},{"$f":"Import!I4170","v":0},{"$f":"Import!I4195","v":0},{"$f":"Import!I4220","v":0},{"$f":"Import!I4245","v":0},{"$f":"Import!I4270","v":0},{"$f":"Import!I4295","v":0},{"$f":"Import!I4320","v":0},{"$f":"Import!I4345","v":0},{"$f":"Import!I4370","v":0},{"$f":"Import!I4395","v":0},{"$f":"Import!I4420","v":0},{"$f":"Import!I4445","v":0},{"$f":"Import!I4470","v":0},{"$f":"Import!I4495","v":0},{"$f":"Import!I4520","v":0},{"$f":"Import!I4545","v":0},null,0,null,{"$f":"'Schedule IVA (EBS)'!Q29","v":0},null," - "]
[null,20,"International Casualty Non – Motor ",null,{"$f":"Import!I4121","v":0},{"$f":"Import!I4146","v":0},{"$f":"Import!I4171","v":0},{"$f":"Import!I4196","v":0},{"$f":"Import!I4221","v":0},{"$f":"Import!I4246","v":0},{"$f":"Import!I4271","v":0},{"$f":"Import!I4296","v":0},{"$f":"Import!I4321","v":0},{"$f":"Import!I4346","v":0},{"$f":"Import!I4371","v":0},{"$f":"Import!I4396","v":0},{"$f":"Import!I4421","v":0},{"$f":"Import!I4446","v":0},{"$f":"Import!I4471","v":0},{"$f":"Import!I4496","v":0},{"$f":"Import!I4521","v":0},{"$f":"Import!I4546","v":0},null,0,null,{"$f":"'Schedule IVA (EBS)'!Q30","v":0},null," - "]
[null,21,"International Casualty Non Motor Non – Proportional ",null,{"$f":"Import!I4122","v":0},{"$f":"Import!I4147","v":0},{"$f":"Import!I4172","v":0},{"$f":"Import!I4197","v":0},{"$f":"Import!I4222","v":0},{"$f":"Import!I4247","v":0},{"$f":"Import!I4272","v":0},{"$f":"Import!I4297","v":0},{"$f":"Import!I4322","v":0},{"$f":"Import!I4347","v":0},{"$f":"Import!I4372","v":0},{"$f":"Import!I4397","v":0},{"$f":"Import!I4422","v":0},{"$f":"Import!I4447","v":0},{"$f":"Import!I4472","v":0},{"$f":"Import!I4497","v":0},{"$f":"Import!I4522","v":0},{"$f":"Import!I4547","v":0},null,0,null,{"$f":"'Schedule IVA (EBS)'!Q31","v":0},null," - "]
[null,22,"Retro Property",null,{"$f":"Import!I4123","v":0},{"$f":"Import!I4148","v":0},{"$f":"Import!I4173","v":0},{"$f":"Import!I4198","v":0},{"$f":"Import!I4223","v":0},{"$f":"Import!I4248","v":0},{"$f":"Import!I4273","v":0},{"$f":"Import!I4298","v":0},{"$f":"Import!I4323","v":0},{"$f":"Import!I4348","v":0},{"$f":"Import!I4373","v":0},{"$f":"Import!I4398","v":0},{"$f":"Import!I4423","v":0},{"$f":"Import!I4448","v":0},{"$f":"Import!I4473","v":0},{"$f":"Import!I4498","v":0},{"$f":"Import!I4523","v":0},{"$f":"Import!I4548","v":0},null,0,null,{"$f":"'Schedule IVA (EBS)'!Q32","v":0},null," - "]
[null,23,"Structured / Finite Reinsurance",null,{"$f":"Import!I4124","v":0},{"$f":"Import!I4149","v":0},{"$f":"Import!I4174","v":0},{"$f":"Import!I4199","v":0},{"$f":"Import!I4224","v":0},{"$f":"Import!I4249","v":0},{"$f":"Import!I4274","v":0},{"$f":"Import!I4299","v":0},{"$f":"Import!I4324","v":0},{"$f":"Import!I4349","v":0},{"$f":"Import!I4374","v":0},{"$f":"Import!I4399","v":0},{"$f":"Import!I4424","v":0},{"$f":"Import!I4449","v":0},{"$f":"Import!I4474","v":0},{"$f":"Import!I4499","v":0},{"$f":"Import!I4524","v":0},{"$f":"Import!I4549","v":0},null,0,null,{"$f":"'Schedule IVA (EBS)'!Q33","v":0},null," - "]
[null,24,"Health",null,{"$f":"Import!I4125","v":0},{"$f":"Import!I4150","v":0},{"$f":"Import!I4175","v":0},{"$f":"Import!I4200","v":0},{"$f":"Import!I4225","v":0},{"$f":"Import!I4250","v":0},{"$f":"Import!I4275","v":0},{"$f":"Import!I4300","v":0},{"$f":"Import!I4325","v":0},{"$f":"Import!I4350","v":0},{"$f":"Import!I4375","v":0},{"$f":"Import!I4400","v":0},{"$f":"Import!I4425","v":0},{"$f":"Import!I4450","v":0},{"$f":"Import!I4475","v":0},{"$f":"Import!I4500","v":0},{"$f":"Import!I4525","v":0},{"$f":"Import!I4550","v":0},null,{"$f":"SUM(E32:V32)","v":0},null,{"$f":"'Schedule IVA (EBS)'!Q34","v":0},null," - "]
[null,25,"Total ",null,{"$f":"SUM(E9:E32)","v":0},{"$f":"SUM(F9:F32)","v":0},0,0,0,0,0,0,0,0,0,0,0,0,0,0,0,0,null,0,null,{"$f":"SUM(Z9:Z32)","v":0}]

{"sheet":"Schedule IVD (EBS)","index":39,"n_rows":46,"n_cols":19,"rows_kept":46,"cut":false,"hidden":false,"merged":[[4,16,5,16],[4,14,5,14],[1,1,1,2],[4,10,5,10],[4,6,5,6],[4,12,5,12],[4,4,5,4],[4,8,5,8]]}
[null,"SCHEDULE OF EXPOSURE MEASURE BY LINE OF BUSINESS",null,null,null,null,null,null,null,null,null,null,null,null,null,null,null,null,{"$f":"HYPERLINK(\"#'Index'!A1\",\"Return to Index\")","v":"Return to Index"}]
[null,{"$f":"'Company Information'!C7","v":"Enter Company Name"}]
[null,{"$f":"\"For the year ending \"&TEXT('Company Information'!C3,\"d mmmm yyyy\")","v":"For the year ending 31 December 2023"},null,null,null,null,null,null,null,null,null,null,null,null,null,null,null,null,"SCHEDULE IV(D) (EBS)"]
[null,{"$f":"\"expressed in\"& IF(CONFIGURATION!$B$12>1,\" ['\"&MID(CONFIGURATION!$B$12,2,LEN(CONFIGURATION!$B$12))&\"s]\",\"\")&\" \"&'Form 1EBS'!C4","v":"expressed in ['000s] United States Dollars"},null,null,"(A)",null,"(B)",null,"(C)",null,"(D)",null,"(E)",null,"(F)",null,"(G)",null,"(H)"]
[null,null,null,null,"Net Premiums Written",null,"Est. of Net Earned Premiums for Next 12 Months",null,"Net Base Exposure",null,"Net FP (Exisiting) ",null,"Net FP (Future) ",null,"Net Premium Exposure Measure",null,"Gross Premium Exposure Measure",null,"Geo NPE"]
[null,"Schedule ",null,null,null,null,null,null,null,null,null,null,null,null,null,null,null,null,"Geo Net Exp Mea"]
[null,"Line no. ",null,null,{"$f":"'Form 1EBS'!$F$7","v":"2023-12-31"},null,{"$f":"'Form 1EBS'!$F$7+1","v":"2024-01-01"},null,{"$f":"'Form 1EBS'!$F$7+1","v":"2024-01-01"},null,{"$f":"'Form 1EBS'!$F$7+1","v":"2024-01-01"},null,{"$f":"'Form 1EBS'!$F$7+1","v":"2024-01-01"},null,{"$f":"'Form 1EBS'!F7+1","v":"2024-01-01"},null,{"$f":"'Form 1EBS'!$F$7+1","v":"2024-01-01"},null,{"$f":"'Form 1EBS'!$F$7+1","v":"2024-01-01"}]
[null,null,null,null,{"$f":"CONFIGURATION!$D$12","v":" ('000s)"},null,{"$f":"CONFIGURATION!$D$12","v":" ('000s)"},null,{"$f":"CONFIGURATION!$D$12","v":" ('000s)"},null,{"$f":"CONFIGURATION!$D$12","v":" ('000s)"},null,{"$f":"CONFIGURATION!$D$12","v":" ('000s)"},null,{"$f":"CONFIGURATION!$D$12","v":" ('000s)"},null,{"$f":"CONFIGURATION!$D$12","v":" ('000s)"},null,{"$f":"CONFIGURATION!$D$12","v":" ('000s)"}]
[null,1,"Property Catastrophe",null,{"$f":"'Schedule IVA (EBS)'!Q11","v":0},null,{"$f":"Import!I4553","v":0},null,{"$f":"IF($E$33>$G$33,E9,G9)","v":0},null,{"$f":"Import!I4578","v":0},null,{"$f":"Import!I4603","v":0},null,{"$f":"SUM(I9:M9)","v":0},null,{"$f":"Import!I4628","v":0},null,{"$f":"'Schedule IVE (EBS)'!X9","v":0}]
[null,2,"Property",null,{"$f":"'Schedule IVA (EBS)'!Q12","v":0},null,{"$f":"Import!I4554","v":0},null,{"$f":"IF($E$33>$G$33,E10,G10)","v":0},null,{"$f":"Import!I4579","v":0},null,{"$f":"Import!I4604","v":0},null,{"$f":"SUM(I10:M10)","v":0},null,{"$f":"Import!I4629","v":0},null,{"$f":"'Schedule IVE (EBS)'!X10","v":0}]
[null,3,"Property Non – Proportional",null,{"$f":"'Schedule IVA (EBS)'!Q13","v":0},null,{"$f":"Import!I4555","v":0},null,0,null,{"$f":"Import!I4580","v":0},null,{"$f":"Import!I4605","v":0},null,0,null,{"$f":"Import!I4630","v":0},null,{"$f":"'Schedule IVE (EBS)'!X11","v":0}]
[null,4,"Personal Accident",null,{"$f":"'Schedule IVA (EBS)'!Q14","v":0},null,{"$f":"Import!I4556","v":0},null,0,null,{"$f":"Import!I4581","v":0},null,{"$f":"Import!I4606","v":0},null,0,null,{"$f":"Import!I4631","v":0},null,{"$f":"'Schedule IVE (EBS)'!X12","v":0}]
[null,5,"Personal Accident Non- Proportional",null,{"$f":"'Schedule IVA (EBS)'!Q15","v":0},null,{"$f":"Import!I4557","v":0},null,0,null,{"$f":"Import!I4582","v":0},null,{"$f":"Import!I4607","v":0},null,0,null,{"$f":"Import!I4632","v":0},null,{"$f":"'Schedule IVE (EBS)'!X13","v":0}]
[null,6,"Aviation",null,{"$f":"'Schedule IVA (EBS)'!Q16","v":0},null,{"$f":"Import!I4558","v":0},null,0,null,{"$f":"Import!I4583","v":0},null,{"$f":"Import!I4608","v":0},null,0,null,{"$f":"Import!I4633","v":0},null,{"$f":"'Schedule IVE (EBS)'!X14","v":0}]
[null,7,"Aviation Non – Proportional",null,{"$f":"'Schedule IVA (EBS)'!Q17","v":0},null,{"$f":"Import!I4559","v":0},null,0,null,{"$f":"Import!I4584","v":0},null,{"$f":"Import!I4609","v":0},null,0,null,{"$f":"Import!I4634","v":0},null,{"$f":"'Schedule IVE (EBS)'!X15","v":0}]
[null,8,"Credit / Surety ",null,{"$f":"'Schedule IVA (EBS)'!Q18","v":0},null,{"$f":"Import!I4560","v":0},null,0,null,{"$f":"Import!I4585","v":0},null,{"$f":"Import!I4610","v":0},null,0,null,{"$f":"Import!I4635","v":0},null,{"$f":"'Schedule IVE (EBS)'!X16","v":0}]
[null,9,"Credit / Surety Non – Proportional",null,{"$f":"'Schedule IVA (EBS)'!Q19","v":0},null,{"$f":"Import!I4561","v":0},null,0,null,{"$f":"Import!I4586","v":0},null,{"$f":"Import!I4611","v":0},null,0,null,{"$f":"Import!I4636","v":0},null,{"$f":"'Schedule IVE (EBS)'!X17","v":0}]
[null,10,"Energy Offshore / Marine",null,{"$f":"'Schedule IVA (EBS)'!Q20","v":0},null,{"$f":"Import!I4562","v":0},null,0,null,{"$f":"Import!I4587","v":0},null,{"$f":"Import!I4612","v":0},null,0,null,{"$f":"Import!I4637","v":0},null,{"$f":"'Schedule IVE (EBS)'!X18","v":0}]
[null,11,"Energy Offshore / Marine Non - Proportional ","  ",{"$f":"'Schedule IVA (EBS)'!Q21","v":0},null,{"$f":"Import!I4563","v":0},null,0,null,{"$f":"Import!I4588","v":0},null,{"$f":"Import!I4613","v":0},null,0,null,{"$f":"Import!I4638","v":0},null,{"$f":"'Schedule IVE (EBS)'!X19","v":0}]
[null,12,"US Casualty",null,{"$f":"'Schedule IVA (EBS)'!Q22","v":0},null,{"$f":"Import!I4564","v":0},null,0,null,{"$f":"Import!I4589","v":0},null,{"$f":"Import!I4614","v":0},null,0,null,{"$f":"Import!I4639","v":0},null,{"$f":"'Schedule IVE (EBS)'!X20","v":0}]
[null,13,"US Casualty Non - Proportional ",null,{"$f":"'Schedule IVA (EBS)'!Q23","v":0},null,{"$f":"Import!I4565","v":0},null,0,null,{"$f":"Import!I4590","v":0},null,{"$f":"Import!I4615","v":0},null,0,null,{"$f":"Import!I4640","v":0},null,{"$f":"'Schedule IVE (EBS)'!X21","v":0}]
[null,14,"US Professional",null,{"$f":"'Schedule IVA (EBS)'!Q24","v":0},null,{"$f":"Import!I4566","v":0},null,0,null,{"$f":"Import!I4591","v":0},null,{"$f":"Import!I4616","v":0},null,0,null,{"$f":"Import!I4641","v":0},null,{"$f":"'Schedule IVE (EBS)'!X22","v":0}]
[null,15,"US Professional Non – Proportional",null,{"$f":"'Schedule IVA (EBS)'!Q25","v":0},null,{"$f":"Import!I4567","v":0},null,0,null,{"$f":"Import!I4592","v":0},null,{"$f":"Import!I4617","v":0},null,0,null,{"$f":"Import!I4642","v":0},null,{"$f":"'Schedule IVE (EBS)'!X23","v":0}]
[null,16,"US Specialty ",null,{"$f":"'Schedule IVA (EBS)'!Q26","v":0},null,{"$f":"Import!I4568","v":0},null,0,null,{"$f":"Import!I4593","v":0},null,{"$f":"Import!I4618","v":0},null,0,null,{"$f":"Import!I4643","v":0},null,{"$f":"'Schedule IVE (EBS)'!X24","v":0}]
[null,17,"US Specialty Non - Proportional",null,{"$f":"'Schedule IVA (EBS)'!Q27","v":0},null,{"$f":"Import!I4569","v":0},null,0,null,{"$f":"Import!I4594","v":0},null,{"$f":"Import!I4619","v":0},null,0,null,{"$f":"Import!I4644","v":0},null,{"$f":"'Schedule IVE (EBS)'!X25","v":0}]
[null,18,"International Motor ",null,{"$f":"'Schedule IVA (EBS)'!Q28","v":0},null,{"$f":"Import!I4570","v":0},null,0,null,{"$f":"Import!I4595","v":0},null,{"$f":"Import!I4620","v":0},null,0,null,{"$f":"Import!I4645","v":0},null,{"$f":"'Schedule IVE (EBS)'!X26","v":0}]
[null,19,"International Motor Non – Proportional",null,{"$f":"'Schedule IVA (EBS)'!Q29","v":0},null,{"$f":"Import!I4571","v":0},null,0,null,{"$f":"Import!I4596","v":0},null,{"$f":"Import!I4621","v":0},null,0,null,{"$f":"Import!I4646","v":0},null,{"$f":"'Schedule IVE (EBS)'!X27","v":0}]
[null,20,"International Casualty Non – Motor ",null,{"$f":"'Schedule IVA (EBS)'!Q30","v":0},null,{"$f":"Import!I4572","v":0},null,0,null,{"$f":"Import!I4597","v":0},null,{"$f":"Import!I4622","v":0},null,0,null,{"$f":"Import!I4647","v":0},null,{"$f":"'Schedule IVE (EBS)'!X28","v":0}]
[null,21,"International Casualty Non Motor Non – Proportional ",null,{"$f":"'Schedule IVA (EBS)'!Q31","v":0},null,{"$f":"Import!I4573","v":0},null,0,null,{"$f":"Import!I4598","v":0},null,{"$f":"Import!I4623","v":0},null,0,null,{"$f":"Import!I4648","v":0},null,{"$f":"'Schedule IVE (EBS)'!X29","v":0}]
[null,22,"Retro Property",null,{"$f":"'Schedule IVA (EBS)'!Q32","v":0},null,{"$f":"Import!I4574","v":0},null,0,null,{"$f":"Import!I4599","v":0},null,{"$f":"Import!I4624","v":0},null,0,null,{"$f":"Import!I4649","v":0},null,{"$f":"'Schedule IVE (EBS)'!X30","v":0}]
[null,23,"Structured / Finite Reinsurance",null,{"$f":"'Schedule IVA (EBS)'!Q33","v":0},null,{"$f":"Import!I4575","v":0},null,0,null,{"$f":"Import!I4600","v":0},null,{"$f":"Import!I4625","v":0},null,0,null,{"$f":"Import!I4650","v":0},null,{"$f":"'Schedule IVE (EBS)'!X31","v":0}]
[null,24,"Health",null,{"$f":"'Schedule IVA (EBS)'!Q34","v":0},null,{"$f":"Import!I4576","v":0},null,0,null,{"$f":"Import!I4601","v":0},null,{"$f":"Import!I4626","v":0},null,0,null,{"$f":"Import!I4651","v":0},null,{"$f":"'Schedule IVE (EBS)'!X32","v":0}]
[null,25,"Total ",null,{"$f":"SUM(E9:E32)","v":0},null,{"$f":"SUM(G9:G32)","v":0},null,{"$f":"SUM(I9:I32)","v":0},null,{"$f":"SUM(K9:K32)","v":0},null,{"$f":"SUM(M9:M32)","v":0},null,{"$f":"SUM(O9:O32)","v":0},null,{"$f":"SUM(Q9:Q32)","v":0},null,{"$f":"SUM(S9:S32)","v":0}]
[]
[null,null,"Details of Premiums Ceded"]
[null,26,"Gross Exposure Measure",null,{"$f":"Q33","v":0}]
[null,27,"Net Exposure Measure",null,{"$f":"O33","v":0}]
[null,28,"Ceded Exposure Measure",null,{"$f":"E36-E37","v":0}]
[]
[null,"*Exposure Measure is to include:"]
[null,"1. Base Exposure shall be the greater of:"]
[null,"(a) Estimate of the net premiums to be earned by the insurer during the next 12 months accounting period;"]
[null,"(b) Net Premiums Written for the reporting period."]
[null,"2. Include Multi-year exposure for:"]
[null,"(a) FP (Exisiting) - shall include the expected present value of premiums to be earned by the insurer after the next 12 months accounting period for existing contracts"]
[null,"(b) FP (future) - The expected present value of net premiums to be earned by the insurer after the next 12 month accounting period for contracts where the initial recognition date falls in the following 12 months."]

{"sheet":"Schedule IVE (EBS)","index":40,"n_rows":33,"n_cols":28,"rows_kept":33,"cut":false,"hidden":false,"merged":[[1,1,1,2]]}
[null,"SCHEDULE OF GEOGRAPHIC DIVERSIFICATION OF NET EXPOSURE MEASURE",null,null,null,null,null,null,null,null,null,null,null,null,null,null,null,null,null,null,null,null,null,null,null,{"$f":"HYPERLINK(\"#'Index'!A1\",\"Return to Index\")","v":"Return to Index"}]
[null,{"$f":"'Company Information'!C7","v":"Enter Company Name"}]
[null,{"$f":"\"For the year ending \"&TEXT('Company Information'!C3,\"d mmmm yyyy\")","v":"For the year ending 31 December 2023"},null,null,null,null,null,null,null,null,null,null,null,null,null,null,null,null,null,null,null,null,null,null,null,"SCHEDULE IV(E) (EBS)"]
[null,{"$f":"\"expressed in\"& IF(CONFIGURATION!$B$12>1,\" ['\"&MID(CONFIGURATION!$B$12,2,LEN(CONFIGURATION!$B$12))&\"s]\",\"\")&\" \"&'Form 1EBS'!C4","v":"expressed in ['000s] United States Dollars"},null,null,null,null,null,null,null,null,null,null,null,null,null,null,null,null,null,null,null,null,null,{"$f":"\"Confirmation that \"&B2& \" Is Taking Advantage of Geographic Diversification of Premiums\"","v":"Confirmation that Enter Company Name Is Taking Advantage of Geographic Diversification of Premiums"},null,"Yes"]
[null,null,null,null,{"$f":"HYPERLINK(\"#'Zones'!c4\",\"Zone 1\")","v":"Zone 1"},{"$f":"HYPERLINK(\"#'Zones'!c13\",\"Zone 2\")","v":"Zone 2"},{"$f":"HYPERLINK(\"#'Zones'!c18\",\"Zone 3\")","v":"Zone 3"},{"$f":"HYPERLINK(\"#'Zones'!c26\",\"Zone 4\")","v":"Zone 4"},{"$f":"HYPERLINK(\"#'Zones'!c36\",\"Zone 5\")","v":"Zone 5"},{"$f":"HYPERLINK(\"#'Zones'!c46\",\"Zone 6\")","v":"Zone 6"},{"$f":"HYPERLINK(\"#'Zones'!c57\",\"Zone 7\")","v":"Zone 7"},{"$f":"HYPERLINK(\"#'Zones'!c68\",\"Zone 8\")","v":"Zone 8"},{"$f":"HYPERLINK(\"#'Zones'!c76\",\"Zone 9\")","v":"Zone 9"},{"$f":"HYPERLINK(\"#'Zones'!c84\",\"Zone 10\")","v":"Zone 10"},{"$f":"HYPERLINK(\"#'Zones'!c90\",\"Zone 11\")","v":"Zone 11"},{"$f":"HYPERLINK(\"#'Zones'!c94\",\"Zone 12\")","v":"Zone 12"},{"$f":"HYPERLINK(\"#'Zones'!c107\",\"Zone 13\")","v":"Zone 13"},{"$f":"HYPERLINK(\"#'Zones'!c112\",\"Zone 14\")","v":"Zone 14"},{"$f":"HYPERLINK(\"#'Zones'!c116\",\"Zone 15\")","v":"Zone 15"},{"$f":"HYPERLINK(\"#'Zones'!c121\",\"Zone 16\")","v":"Zone 16"},{"$f":"HYPERLINK(\"#'Zones'!c127\",\"Zone 17\")","v":"Zone 17"},{"$f":"HYPERLINK(\"#'Zones'!c133\",\"Zone 18\")","v":"Zone 18"},null,"Geo Net Exp Mea",null,"Total Net Exp"]
[null,"Schedule "]
[]
[null,"Line no. ",null,null,{"$f":"CONFIGURATION!$D$12","v":" ('000s)"},{"$f":"CONFIGURATION!$D$12","v":" ('000s)"},{"$f":"CONFIGURATION!$D$12","v":" ('000s)"},{"$f":"CONFIGURATION!$D$12","v":" ('000s)"},{"$f":"CONFIGURATION!$D$12","v":" ('000s)"},{"$f":"CONFIGURATION!$D$12","v":" ('000s)"},{"$f":"CONFIGURATION!$D$12","v":" ('000s)"},{"$f":"CONFIGURATION!$D$12","v":" ('000s)"},{"$f":"CONFIGURATION!$D$12","v":" ('000s)"},{"$f":"CONFIGURATION!$D$12","v":" ('000s)"},{"$f":"CONFIGURATION!$D$12","v":" ('000s)"},{"$f":"CONFIGURATION!$D$12","v":" ('000s)"},{"$f":"CONFIGURATION!$D$12","v":" ('000s)"},{"$f":"CONFIGURATION!$D$12","v":" ('000s)"},{"$f":"CONFIGURATION!$D$12","v":" ('000s)"},{"$f":"CONFIGURATION!$D$12","v":" ('000s)"},{"$f":"CONFIGURATION!$D$12","v":" ('000s)"},{"$f":"CONFIGURATION!$D$12","v":" ('000s)"},null,{"$f":"CONFIGURATION!$D$12","v":" ('000s)"},null,{"$f":"CONFIGURATION!$D$12","v":" ('000s)"}]
[null,1,"Property Catastrophe",null,{"$f":"Import!I4654","v":0},{"$f":"Import!I4679","v":0},{"$f":"Import!I4704","v":0},{"$f":"Import!I4729","v":0},{"$f":"Import!I4754","v":0},{"$f":"Import!I4779","v":0},{"$f":"Import!I4804","v":0},{"$f":"Import!I4829","v":0},{"$f":"Import!I4854","v":0},{"$f":"Import!I4879","v":0},{"$f":"Import!I4904","v":0},{"$f":"Import!I4929","v":0},{"$f":"Import!I4954","v":0},{"$f":"Import!I4979","v":0},{"$f":"Import!I5004","v":0},{"$f":"Import!I5029","v":0},{"$f":"Import!I5054","v":0},{"$f":"Import!I5079","v":0},null,{"$f":"SUM(E9:V9)","v":0},null,{"$f":"'Schedule IVD (EBS)'!O9","v":0},null,{"$f":"IF($Z$4=\"Yes\",IF(X9=0,\" - \",IF(ROUND(SUM(X9-Z9),0)=0,\"TRUE\",\"FALSE\")),\"N/A\")","v":" - "}]
[null,2,"Property",null,{"$f":"Import!I4655","v":0},{"$f":"Import!I4680","v":0},{"$f":"Import!I4705","v":0},{"$f":"Import!I4730","v":0},{"$f":"Import!I4755","v":0},{"$f":"Import!I4780","v":0},{"$f":"Import!I4805","v":0},{"$f":"Import!I4830","v":0},{"$f":"Import!I4855","v":0},{"$f":"Import!I4880","v":0},{"$f":"Import!I4905","v":0},{"$f":"Import!I4930","v":0},{"$f":"Import!I4955","v":0},{"$f":"Import!I4980","v":0},{"$f":"Import!I5005","v":0},{"$f":"Import!I5030","v":0},{"$f":"Import!I5055","v":0},{"$f":"Import!I5080","v":0},null,{"$f":"SUM(E10:V10)","v":0},null,{"$f":"'Schedule IVD (EBS)'!O10","v":0},null,{"$f":"IF($Z$4=\"Yes\",IF(X10=0,\" - \",IF(ROUND(SUM(X10-Z10),0)=0,\"TRUE\",\"FALSE\")),\"N/A\")","v":" - "}]
[null,3,"Property Non – Proportional",null,{"$f":"Import!I4656","v":0},{"$f":"Import!I4681","v":0},{"$f":"Import!I4706","v":0},{"$f":"Import!I4731","v":0},{"$f":"Import!I4756","v":0},{"$f":"Import!I4781","v":0},{"$f":"Import!I4806","v":0},{"$f":"Import!I4831","v":0},{"$f":"Import!I4856","v":0},{"$f":"Import!I4881","v":0},{"$f":"Import!I4906","v":0},{"$f":"Import!I4931","v":0},{"$f":"Import!I4956","v":0},{"$f":"Import!I4981","v":0},{"$f":"Import!I5006","v":0},{"$f":"Import!I5031","v":0},{"$f":"Import!I5056","v":0},{"$f":"Import!I5081","v":0},null,0,null,{"$f":"'Schedule IVD (EBS)'!O11","v":0},null," - "]
[null,4,"Personal Accident",null,{"$f":"Import!I4657","v":0},{"$f":"Import!I4682","v":0},{"$f":"Import!I4707","v":0},{"$f":"Import!I4732","v":0},{"$f":"Import!I4757","v":0},{"$f":"Import!I4782","v":0},{"$f":"Import!I4807","v":0},{"$f":"Import!I4832","v":0},{"$f":"Import!I4857","v":0},{"$f":"Import!I4882","v":0},{"$f":"Import!I4907","v":0},{"$f":"Import!I4932","v":0},{"$f":"Import!I4957","v":0},{"$f":"Import!I4982","v":0},{"$f":"Import!I5007","v":0},{"$f":"Import!I5032","v":0},{"$f":"Import!I5057","v":0},{"$f":"Import!I5082","v":0},null,0,null,{"$f":"'Schedule IVD (EBS)'!O12","v":0},null," - "]
[null,5,"Personal Accident Non- Proportional",null,{"$f":"Import!I4658","v":0},{"$f":"Import!I4683","v":0},{"$f":"Import!I4708","v":0},{"$f":"Import!I4733","v":0},{"$f":"Import!I4758","v":0},{"$f":"Import!I4783","v":0},{"$f":"Import!I4808","v":0},{"$f":"Import!I4833","v":0},{"$f":"Import!I4858","v":0},{"$f":"Import!I4883","v":0},{"$f":"Import!I4908","v":0},{"$f":"Import!I4933","v":0},{"$f":"Import!I4958","v":0},{"$f":"Import!I4983","v":0},{"$f":"Import!I5008","v":0},{"$f":"Import!I5033","v":0},{"$f":"Import!I5058","v":0},{"$f":"Import!I5083","v":0},null,0,null,{"$f":"'Schedule IVD (EBS)'!O13","v":0},null," - "]
[null,6,"Aviation",null,{"$f":"Import!I4659","v":0},{"$f":"Import!I4684","v":0},{"$f":"Import!I4709","v":0},{"$f":"Import!I4734","v":0},{"$f":"Import!I4759","v":0},{"$f":"Import!I4784","v":0},{"$f":"Import!I4809","v":0},{"$f":"Import!I4834","v":0},{"$f":"Import!I4859","v":0},{"$f":"Import!I4884","v":0},{"$f":"Import!I4909","v":0},{"$f":"Import!I4934","v":0},{"$f":"Import!I4959","v":0},{"$f":"Import!I4984","v":0},{"$f":"Import!I5009","v":0},{"$f":"Import!I5034","v":0},{"$f":"Import!I5059","v":0},{"$f":"Import!I5084","v":0},null,0,null,{"$f":"'Schedule IVD (EBS)'!O14","v":0},null," - "]
[null,7,"Aviation Non – Proportional",null,{"$f":"Import!I4660","v":0},{"$f":"Import!I4685","v":0},{"$f":"Import!I4710","v":0},{"$f":"Import!I4735","v":0},{"$f":"Import!I4760","v":0},{"$f":"Import!I4785","v":0},{"$f":"Import!I4810","v":0},{"$f":"Import!I4835","v":0},{"$f":"Import!I4860","v":0},{"$f":"Import!I4885","v":0},{"$f":"Import!I4910","v":0},{"$f":"Import!I4935","v":0},{"$f":"Import!I4960","v":0},{"$f":"Import!I4985","v":0},{"$f":"Import!I5010","v":0},{"$f":"Import!I5035","v":0},{"$f":"Import!I5060","v":0},{"$f":"Import!I5085","v":0},null,0,null,{"$f":"'Schedule IVD (EBS)'!O15","v":0},null," - "]
[null,8,"Credit / Surety ",null,{"$f":"Import!I4661","v":0},{"$f":"Import!I4686","v":0},{"$f":"Import!I4711","v":0},{"$f":"Import!I4736","v":0},{"$f":"Import!I4761","v":0},{"$f":"Import!I4786","v":0},{"$f":"Import!I4811","v":0},{"$f":"Import!I4836","v":0},{"$f":"Import!I4861","v":0},{"$f":"Import!I4886","v":0},{"$f":"Import!I4911","v":0},{"$f":"Import!I4936","v":0},{"$f":"Import!I4961","v":0},{"$f":"Import!I4986","v":0},{"$f":"Import!I5011","v":0},{"$f":"Import!I5036","v":0},{"$f":"Import!I5061","v":0},{"$f":"Import!I5086","v":0},null,0,null,{"$f":"'Schedule IVD (EBS)'!O16","v":0},null," - "]
[null,9,"Credit / Surety Non – Proportional",null,{"$f":"Import!I4662","v":0},{"$f":"Import!I4687","v":0},{"$f":"Import!I4712","v":0},{"$f":"Import!I4737","v":0},{"$f":"Import!I4762","v":0},{"$f":"Import!I4787","v":0},{"$f":"Import!I4812","v":0},{"$f":"Import!I4837","v":0},{"$f":"Import!I4862","v":0},{"$f":"Import!I4887","v":0},{"$f":"Import!I4912","v":0},{"$f":"Import!I4937","v":0},{"$f":"Import!I4962","v":0},{"$f":"Import!I4987","v":0},{"$f":"Import!I5012","v":0},{"$f":"Import!I5037","v":0},{"$f":"Import!I5062","v":0},{"$f":"Import!I5087","v":0},null,0,null,{"$f":"'Schedule IVD (EBS)'!O17","v":0},null," - "]
[null,10,"Energy Offshore / Marine",null,{"$f":"Import!I4663","v":0},{"$f":"Import!I4688","v":0},{"$f":"Import!I4713","v":0},{"$f":"Import!I4738","v":0},{"$f":"Import!I4763","v":0},{"$f":"Import!I4788","v":0},{"$f":"Import!I4813","v":0},{"$f":"Import!I4838","v":0},{"$f":"Import!I4863","v":0},{"$f":"Import!I4888","v":0},{"$f":"Import!I4913","v":0},{"$f":"Import!I4938","v":0},{"$f":"Import!I4963","v":0},{"$f":"Import!I4988","v":0},{"$f":"Import!I5013","v":0},{"$f":"Import!I5038","v":0},{"$f":"Import!I5063","v":0},{"$f":"Import!I5088","v":0},null,0,null,{"$f":"'Schedule IVD (EBS)'!O18","v":0},null," - "]
[null,11,"Energy Offshore / Marine Non - Proportional ","  ",{"$f":"Import!I4664","v":0},{"$f":"Import!I4689","v":0},{"$f":"Import!I4714","v":0},{"$f":"Import!I4739","v":0},{"$f":"Import!I4764","v":0},{"$f":"Import!I4789","v":0},{"$f":"Import!I4814","v":0},{"$f":"Import!I4839","v":0},{"$f":"Import!I4864","v":0},{"$f":"Import!I4889","v":0},{"$f":"Import!I4914","v":0},{"$f":"Import!I4939","v":0},{"$f":"Import!I4964","v":0},{"$f":"Import!I4989","v":0},{"$f":"Import!I5014","v":0},{"$f":"Import!I5039","v":0},{"$f":"Import!I5064","v":0},{"$f":"Import!I5089","v":0},null,0,null,{"$f":"'Schedule IVD (EBS)'!O19","v":0},null," - "]
[null,12,"US Casualty",null,{"$f":"Import!I4665","v":0},{"$f":"Import!I4690","v":0},{"$f":"Import!I4715","v":0},{"$f":"Import!I4740","v":0},{"$f":"Import!I4765","v":0},{"$f":"Import!I4790","v":0},{"$f":"Import!I4815","v":0},{"$f":"Import!I4840","v":0},{"$f":"Import!I4865","v":0},{"$f":"Import!I4890","v":0},{"$f":"Import!I4915","v":0},{"$f":"Import!I4940","v":0},{"$f":"Import!I4965","v":0},{"$f":"Import!I4990","v":0},{"$f":"Import!I5015","v":0},{"$f":"Import!I5040","v":0},{"$f":"Import!I5065","v":0},{"$f":"Import!I5090","v":0},null,0,null,{"$f":"'Schedule IVD (EBS)'!O20","v":0},null," - "]
[null,13,"US Casualty Non - Proportional ",null,{"$f":"Import!I4666","v":0},{"$f":"Import!I4691","v":0},{"$f":"Import!I4716","v":0},{"$f":"Import!I4741","v":0},{"$f":"Import!I4766","v":0},{"$f":"Import!I4791","v":0},{"$f":"Import!I4816","v":0},{"$f":"Import!I4841","v":0},{"$f":"Import!I4866","v":0},{"$f":"Import!I4891","v":0},{"$f":"Import!I4916","v":0},{"$f":"Import!I4941","v":0},{"$f":"Import!I4966","v":0},{"$f":"Import!I4991","v":0},{"$f":"Import!I5016","v":0},{"$f":"Import!I5041","v":0},{"$f":"Import!I5066","v":0},{"$f":"Import!I5091","v":0},null,0,null,{"$f":"'Schedule IVD (EBS)'!O21","v":0},null," - "]
[null,14,"US Professional",null,{"$f":"Import!I4667","v":0},{"$f":"Import!I4692","v":0},{"$f":"Import!I4717","v":0},{"$f":"Import!I4742","v":0},{"$f":"Import!I4767","v":0},{"$f":"Import!I4792","v":0},{"$f":"Import!I4817","v":0},{"$f":"Import!I4842","v":0},{"$f":"Import!I4867","v":0},{"$f":"Import!I4892","v":0},{"$f":"Import!I4917","v":0},{"$f":"Import!I4942","v":0},{"$f":"Import!I4967","v":0},{"$f":"Import!I4992","v":0},{"$f":"Import!I5017","v":0},{"$f":"Import!I5042","v":0},{"$f":"Import!I5067","v":0},{"$f":"Import!I5092","v":0},null,0,null,{"$f":"'Schedule IVD (EBS)'!O22","v":0},null," - "]
[null,15,"US Professional Non – Proportional",null,{"$f":"Import!I4668","v":0},{"$f":"Import!I4693","v":0},{"$f":"Import!I4718","v":0},{"$f":"Import!I4743","v":0},{"$f":"Import!I4768","v":0},{"$f":"Import!I4793","v":0},{"$f":"Import!I4818","v":0},{"$f":"Import!I4843","v":0},{"$f":"Import!I4868","v":0},{"$f":"Import!I4893","v":0},{"$f":"Import!I4918","v":0},{"$f":"Import!I4943","v":0},{"$f":"Import!I4968","v":0},{"$f":"Import!I4993","v":0},{"$f":"Import!I5018","v":0},{"$f":"Import!I5043","v":0},{"$f":"Import!I5068","v":0},{"$f":"Import!I5093","v":0},null,0,null,{"$f":"'Schedule IVD (EBS)'!O23","v":0},null," - "]
[null,16,"US Specialty ",null,{"$f":"Import!I4669","v":0},{"$f":"Import!I4694","v":0},{"$f":"Import!I4719","v":0},{"$f":"Import!I4744","v":0},{"$f":"Import!I4769","v":0},{"$f":"Import!I4794","v":0},{"$f":"Import!I4819","v":0},{"$f":"Import!I4844","v":0},{"$f":"Import!I4869","v":0},{"$f":"Import!I4894","v":0},{"$f":"Import!I4919","v":0},{"$f":"Import!I4944","v":0},{"$f":"Import!I4969","v":0},{"$f":"Import!I4994","v":0},{"$f":"Import!I5019","v":0},{"$f":"Import!I5044","v":0},{"$f":"Import!I5069","v":0},{"$f":"Import!I5094","v":0},null,0,null,{"$f":"'Schedule IVD (EBS)'!O24","v":0},null," - "]
[null,17,"US Specialty Non - Proportional",null,{"$f":"Import!I4670","v":0},{"$f":"Import!I4695","v":0},{"$f":"Import!I4720","v":0},{"$f":"Import!I4745","v":0},{"$f":"Import!I4770","v":0},{"$f":"Import!I4795","v":0},{"$f":"Import!I4820","v":0},{"$f":"Import!I4845","v":0},{"$f":"Import!I4870","v":0},{"$f":"Import!I4895","v":0},{"$f":"Import!I4920","v":0},{"$f":"Import!I4945","v":0},{"$f":"Import!I4970","v":0},{"$f":"Import!I4995","v":0},{"$f":"Import!I5020","v":0},{"$f":"Import!I5045","v":0},{"$f":"Import!I5070","v":0},{"$f":"Import!I5095","v":0},null,0,null,{"$f":"'Schedule IVD (EBS)'!O25","v":0},null," - "]
[null,18,"International Motor ",null,{"$f":"Import!I4671","v":0},{"$f":"Import!I4696","v":0},{"$f":"Import!I4721","v":0},{"$f":"Import!I4746","v":0},{"$f":"Import!I4771","v":0},{"$f":"Import!I4796","v":0},{"$f":"Import!I4821","v":0},{"$f":"Import!I4846","v":0},{"$f":"Import!I4871","v":0},{"$f":"Import!I4896","v":0},{"$f":"Import!I4921","v":0},{"$f":"Import!I4946","v":0},{"$f":"Import!I4971","v":0},{"$f":"Import!I4996","v":0},{"$f":"Import!I5021","v":0},{"$f":"Import!I5046","v":0},{"$f":"Import!I5071","v":0},{"$f":"Import!I5096","v":0},null,0,null,{"$f":"'Schedule IVD (EBS)'!O26","v":0},null," - "]
[null,19,"International Motor Non – Proportional",null,{"$f":"Import!I4672","v":0},{"$f":"Import!I4697","v":0},{"$f":"Import!I4722","v":0},{"$f":"Import!I4747","v":0},{"$f":"Import!I4772","v":0},{"$f":"Import!I4797","v":0},{"$f":"Import!I4822","v":0},{"$f":"Import!I4847","v":0},{"$f":"Import!I4872","v":0},{"$f":"Import!I4897","v":0},{"$f":"Import!I4922","v":0},{"$f":"Import!I4947","v":0},{"$f":"Import!I4972","v":0},{"$f":"Import!I4997","v":0},{"$f":"Import!I5022","v":0},{"$f":"Import!I5047","v":0},{"$f":"Import!I5072","v":0},{"$f":"Import!I5097","v":0},null,0,null,{"$f":"'Schedule IVD (EBS)'!O27","v":0},null," - "]
[null,20,"International Casualty Non – Motor ",null,{"$f":"Import!I4673","v":0},{"$f":"Import!I4698","v":0},{"$f":"Import!I4723","v":0},{"$f":"Import!I4748","v":0},{"$f":"Import!I4773","v":0},{"$f":"Import!I4798","v":0},{"$f":"Import!I4823","v":0},{"$f":"Import!I4848","v":0},{"$f":"Import!I4873","v":0},{"$f":"Import!I4898","v":0},{"$f":"Import!I4923","v":0},{"$f":"Import!I4948","v":0},{"$f":"Import!I4973","v":0},{"$f":"Import!I4998","v":0},{"$f":"Import!I5023","v":0},{"$f":"Import!I5048","v":0},{"$f":"Import!I5073","v":0},{"$f":"Import!I5098","v":0},null,0,null,{"$f":"'Schedule IVD (EBS)'!O28","v":0},null," - "]
[null,21,"International Casualty Non Motor Non – Proportional ",null,{"$f":"Import!I4674","v":0},{"$f":"Import!I4699","v":0},{"$f":"Import!I4724","v":0},{"$f":"Import!I4749","v":0},{"$f":"Import!I4774","v":0},{"$f":"Import!I4799","v":0},{"$f":"Import!I4824","v":0},{"$f":"Import!I4849","v":0},{"$f":"Import!I4874","v":0},{"$f":"Import!I4899","v":0},{"$f":"Import!I4924","v":0},{"$f":"Import!I4949","v":0},{"$f":"Import!I4974","v":0},{"$f":"Import!I4999","v":0},{"$f":"Import!I5024","v":0},{"$f":"Import!I5049","v":0},{"$f":"Import!I5074","v":0},{"$f":"Import!I5099","v":0},null,0,null,{"$f":"'Schedule IVD (EBS)'!O29","v":0},null," - "]
[null,22,"Retro Property",null,{"$f":"Import!I4675","v":0},{"$f":"Import!I4700","v":0},{"$f":"Import!I4725","v":0},{"$f":"Import!I4750","v":0},{"$f":"Import!I4775","v":0},{"$f":"Import!I4800","v":0},{"$f":"Import!I4825","v":0},{"$f":"Import!I4850","v":0},{"$f":"Import!I4875","v":0},{"$f":"Import!I4900","v":0},{"$f":"Import!I4925","v":0},{"$f":"Import!I4950","v":0},{"$f":"Import!I4975","v":0},{"$f":"Import!I5000","v":0},{"$f":"Import!I5025","v":0},{"$f":"Import!I5050","v":0},{"$f":"Import!I5075","v":0},{"$f":"Import!I5100","v":0},null,0,null,{"$f":"'Schedule IVD (EBS)'!O30","v":0},null," - "]
[null,23,"Structured / Finite Reinsurance",null,{"$f":"Import!I4676","v":0},{"$f":"Import!I4701","v":0},{"$f":"Import!I4726","v":0},{"$f":"Import!I4751","v":0},{"$f":"Import!I4776","v":0},{"$f":"Import!I4801","v":0},{"$f":"Import!I4826","v":0},{"$f":"Import!I4851","v":0},{"$f":"Import!I4876","v":0},{"$f":"Import!I4901","v":0},{"$f":"Import!I4926","v":0},{"$f":"Import!I4951","v":0},{"$f":"Import!I4976","v":0},{"$f":"Import!I5001","v":0},{"$f":"Import!I5026","v":0},{"$f":"Import!I5051","v":0},{"$f":"Import!I5076","v":0},{"$f":"Import!I5101","v":0},null,0,null,{"$f":"'Schedule IVD (EBS)'!O31","v":0},null," - "]
[null,24,"Health",null,{"$f":"Import!I4677","v":0},{"$f":"Import!I4702","v":0},{"$f":"Import!I4727","v":0},{"$f":"Import!I4752","v":0},{"$f":"Import!I4777","v":0},{"$f":"Import!I4802","v":0},{"$f":"Import!I4827","v":0},{"$f":"Import!I4852","v":0},{"$f":"Import!I4877","v":0},{"$f":"Import!I4902","v":0},{"$f":"Import!I4927","v":0},{"$f":"Import!I4952","v":0},{"$f":"Import!I4977","v":0},{"$f":"Import!I5002","v":0},{"$f":"Import!I5027","v":0},{"$f":"Import!I5052","v":0},{"$f":"Import!I5077","v":0},{"$f":"Import!I5102","v":0},null,{"$f":"SUM(E32:V32)","v":0},null,{"$f":"'Schedule IVD (EBS)'!O32","v":0},null," - "]
[null,25,"Total ",null,{"$f":"SUM(E9:E32)","v":0},{"$f":"SUM(F9:F32)","v":0},0,0,0,0,0,0,0,0,0,0,0,0,0,0,0,0,null,0,null,{"$f":"SUM(Z9:Z32)","v":0}]

{"sheet":"Schedule IVF","index":41,"n_rows":90,"n_cols":21,"rows_kept":90,"cut":false,"hidden":false,"merged":[[1,1,1,2],[9,4,9,11],[9,12,9,19],[5,4,5,5],[7,1,7,19]]}
[null,"SCHEDULE OF EXPOSURE OF RISK",null,null,null,null,null,null,null,null,null,null,null,null,null,null,null,null,null,null,{"$f":"HYPERLINK(\"#'Index'!A1\",\"Return to Index\")","v":"Return to Index"}]
[null,{"$f":"'Company Information'!C7","v":"Enter Company Name"}]
[null,{"$f":"\"For the year ending \"&TEXT('Company Information'!C3,\"d mmmm yyyy\")","v":"For the year ending 31 December 2023"}]
[null,{"$f":"\"expressed in\"& IF(CONFIGURATION!$B$12>1,\" ['\"&MID(CONFIGURATION!$B$12,2,LEN(CONFIGURATION!$B$12))&\"s]\",\"\")&\" \"&'Form 1EBS'!C4","v":"expressed in ['000s] United States Dollars"},null,null,null,null,null,null,null,null,null,null,null,null,null,null,null,null,null,null,"Schedule IVF"]
[]
[null,"1. Jurisdiction of Ultimate Parent of insurer",null,null,{"$f":"Import!I5105","v":"Select"},{"$f":"Import!J5105","v":0}]
[]
[null,"2. Financial Activity for the reporting period. Note location is to be based on the location of the risk being underwriting. In the instance that the location of risk being underwriting is not available, insurers can provide the location based on the location of the cedant."]
[]
[null,null,null,"ALL","General Business",null,null,null,null,null,null,null,"Long-Term Business"]
[null,null,null,"Number of Subsidiaries","GPW - Property Catastrophe","GPW - Other Lines other than Property Cat","Reinsurance - Retroceded to Bermuda Cedants","Reinsurance - Retroceded to Other Cedants","Net Premium Written","Gross Incurred Losses - Property Catastrophe","Gross Incurred Losses - Other Lines Other than Property","Gross Reserves at Year-End","Gross Reserve - Mortality Risk","Gross Reserve - Longevity Risk","Gross Reserve - Deferred Accumulation Annuities Business Risk","Gross Reserve - Disability","Gross Reserve - Group","Gross Reserve - Variable Annuities","Gross Reserve - Other Products","Claims and Benefits Paid"]
[null,null,null,null,{"$f":"CONFIGURATION!$D$12","v":" ('000s)"},{"$f":"CONFIGURATION!$D$12","v":" ('000s)"},{"$f":"CONFIGURATION!$D$12","v":" ('000s)"},{"$f":"CONFIGURATION!$D$12","v":" ('000s)"},{"$f":"CONFIGURATION!$D$12","v":" ('000s)"},{"$f":"CONFIGURATION!$D$12","v":" ('000s)"},{"$f":"CONFIGURATION!$D$12","v":" ('000s)"},{"$f":"CONFIGURATION!$D$12","v":" ('000s)"},{"$f":"CONFIGURATION!$D$12","v":" ('000s)"},{"$f":"CONFIGURATION!$D$12","v":" ('000s)"},{"$f":"CONFIGURATION!$D$12","v":" ('000s)"},{"$f":"CONFIGURATION!$D$12","v":" ('000s)"},{"$f":"CONFIGURATION!$D$12","v":" ('000s)"},{"$f":"CONFIGURATION!$D$12","v":" ('000s)"},{"$f":"CONFIGURATION!$D$12","v":" ('000s)"},{"$f":"CONFIGURATION!$D$12","v":" ('000s)"}]
[null,1,"Austria",{"$f":"Import!I5106","v":0},{"$f":"Import!I5145","v":0},{"$f":"Import!I5184","v":0},{"$f":"Import!I5223","v":0},{"$f":"Import!I5262","v":0},{"$f":"E13+F13-G13-H13","v":0},{"$f":"Import!I5301","v":0},{"$f":"Import!I5340","v":0},{"$f":"Import!I5379","v":0}]
[null,2,"Belgium",{"$f":"Import!I5107","v":0},{"$f":"Import!I5146","v":0},{"$f":"Import!I5185","v":0},{"$f":"Import!I5224","v":0},{"$f":"Import!I5263","v":0},{"$f":"E14+F14-G14-H14","v":0},{"$f":"Import!I5302","v":0},{"$f":"Import!I5341","v":0},{"$f":"Import!I5380","v":0}]
[null,3,"Bulgaria",{"$f":"Import!I5108","v":0},{"$f":"Import!I5147","v":0},{"$f":"Import!I5186","v":0},{"$f":"Import!I5225","v":0},{"$f":"Import!I5264","v":0},0,{"$f":"Import!I5303","v":0},{"$f":"Import!I5342","v":0},{"$f":"Import!I5381","v":0}]
[null,4,"Croatia",{"$f":"Import!I5109","v":0},{"$f":"Import!I5148","v":0},{"$f":"Import!I5187","v":0},{"$f":"Import!I5226","v":0},{"$f":"Import!I5265","v":0},0,{"$f":"Import!I5304","v":0},{"$f":"Import!I5343","v":0},{"$f":"Import!I5382","v":0}]
[null,5,"Cyprus",{"$f":"Import!I5110","v":0},{"$f":"Import!I5149","v":0},{"$f":"Import!I5188","v":0},{"$f":"Import!I5227","v":0},{"$f":"Import!I5266","v":0},0,{"$f":"Import!I5305","v":0},{"$f":"Import!I5344","v":0},{"$f":"Import!I5383","v":0}]
[null,6,"Czechia",{"$f":"Import!I5111","v":0},{"$f":"Import!I5150","v":0},{"$f":"Import!I5189","v":0},{"$f":"Import!I5228","v":0},{"$f":"Import!I5267","v":0},0,{"$f":"Import!I5306","v":0},{"$f":"Import!I5345","v":0},{"$f":"Import!I5384","v":0}]
[null,7,"Denmark",{"$f":"Import!I5112","v":0},{"$f":"Import!I5151","v":0},{"$f":"Import!I5190","v":0},{"$f":"Import!I5229","v":0},{"$f":"Import!I5268","v":0},0,{"$f":"Import!I5307","v":0},{"$f":"Import!I5346","v":0},{"$f":"Import!I5385","v":0}]
[null,8,"Estonia",{"$f":"Import!I5113","v":0},{"$f":"Import!I5152","v":0},{"$f":"Import!I5191","v":0},{"$f":"Import!I5230","v":0},{"$f":"Import!I5269","v":0},0,{"$f":"Import!I5308","v":0},{"$f":"Import!I5347","v":0},{"$f":"Import!I5386","v":0}]
[null,9,"Finland",{"$f":"Import!I5114","v":0},{"$f":"Import!I5153","v":0},{"$f":"Import!I5192","v":0},{"$f":"Import!I5231","v":0},{"$f":"Import!I5270","v":0},0,{"$f":"Import!I5309","v":0},{"$f":"Import!I5348","v":0},{"$f":"Import!I5387","v":0}]
[null,10,"France",{"$f":"Import!I5115","v":0},{"$f":"Import!I5154","v":0},{"$f":"Import!I5193","v":0},{"$f":"Import!I5232","v":0},{"$f":"Import!I5271","v":0},0,{"$f":"Import!I5310","v":0},{"$f":"Import!I5349","v":0},{"$f":"Import!I5388","v":0}]
[null,11,"Germany",{"$f":"Import!I5116","v":0},{"$f":"Import!I5155","v":0},{"$f":"Import!I5194","v":0},{"$f":"Import!I5233","v":0},{"$f":"Import!I5272","v":0},0,{"$f":"Import!I5311","v":0},{"$f":"Import!I5350","v":0},{"$f":"Import!I5389","v":0}]
[null,12,"Greece",{"$f":"Import!I5117","v":0},{"$f":"Import!I5156","v":0},{"$f":"Import!I5195","v":0},{"$f":"Import!I5234","v":0},{"$f":"Import!I5273","v":0},0,{"$f":"Import!I5312","v":0},{"$f":"Import!I5351","v":0},{"$f":"Import!I5390","v":0}]
[null,13,"Hungary",{"$f":"Import!I5118","v":0},{"$f":"Import!I5157","v":0},{"$f":"Import!I5196","v":0},{"$f":"Import!I5235","v":0},{"$f":"Import!I5274","v":0},0,{"$f":"Import!I5313","v":0},{"$f":"Import!I5352","v":0},{"$f":"Import!I5391","v":0}]
[null,14,"Ireland",{"$f":"Import!I5119","v":0},{"$f":"Import!I5158","v":0},{"$f":"Import!I5197","v":0},{"$f":"Import!I5236","v":0},{"$f":"Import!I5275","v":0},0,{"$f":"Import!I5314","v":0},{"$f":"Import!I5353","v":0},{"$f":"Import!I5392","v":0}]
[null,15,"Italy",{"$f":"Import!I5120","v":0},{"$f":"Import!I5159","v":0},{"$f":"Import!I5198","v":0},{"$f":"Import!I5237","v":0},{"$f":"Import!I5276","v":0},0,{"$f":"Import!I5315","v":0},{"$f":"Import!I5354","v":0},{"$f":"Import!I5393","v":0}]
[null,16,"Latvia",{"$f":"Import!I5121","v":0},{"$f":"Import!I5160","v":0},{"$f":"Import!I5199","v":0},{"$f":"Import!I5238","v":0},{"$f":"Import!I5277","v":0},0,{"$f":"Import!I5316","v":0},{"$f":"Import!I5355","v":0},{"$f":"Import!I5394","v":0}]
[null,17,"Lithuania",{"$f":"Import!I5122","v":0},{"$f":"Import!I5161","v":0},{"$f":"Import!I5200","v":0},{"$f":"Import!I5239","v":0},{"$f":"Import!I5278","v":0},0,{"$f":"Import!I5317","v":0},{"$f":"Import!I5356","v":0},{"$f":"Import!I5395","v":0}]
[null,18,"Luxembourg",{"$f":"Import!I5123","v":0},{"$f":"Import!I5162","v":0},{"$f":"Import!I5201","v":0},{"$f":"Import!I5240","v":0},{"$f":"Import!I5279","v":0},0,{"$f":"Import!I5318","v":0},{"$f":"Import!I5357","v":0},{"$f":"Import!I5396","v":0}]
[null,19,"Malta",{"$f":"Import!I5124","v":0},{"$f":"Import!I5163","v":0},{"$f":"Import!I5202","v":0},{"$f":"Import!I5241","v":0},{"$f":"Import!I5280","v":0},0,{"$f":"Import!I5319","v":0},{"$f":"Import!I5358","v":0},{"$f":"Import!I5397","v":0}]
[null,20,"Netherlands",{"$f":"Import!I5125","v":0},{"$f":"Import!I5164","v":0},{"$f":"Import!I5203","v":0},{"$f":"Import!I5242","v":0},{"$f":"Import!I5281","v":0},0,{"$f":"Import!I5320","v":0},{"$f":"Import!I5359","v":0},{"$f":"Import!I5398","v":0}]
[null,21,"Poland",{"$f":"Import!I5126","v":0},{"$f":"Import!I5165","v":0},{"$f":"Import!I5204","v":0},{"$f":"Import!I5243","v":0},{"$f":"Import!I5282","v":0},0,{"$f":"Import!I5321","v":0},{"$f":"Import!I5360","v":0},{"$f":"Import!I5399","v":0}]
[null,22,"Portugal",{"$f":"Import!I5127","v":0},{"$f":"Import!I5166","v":0},{"$f":"Import!I5205","v":0},{"$f":"Import!I5244","v":0},{"$f":"Import!I5283","v":0},0,{"$f":"Import!I5322","v":0},{"$f":"Import!I5361","v":0},{"$f":"Import!I5400","v":0}]
[null,23,"Romania",{"$f":"Import!I5128","v":0},{"$f":"Import!I5167","v":0},{"$f":"Import!I5206","v":0},{"$f":"Import!I5245","v":0},{"$f":"Import!I5284","v":0},0,{"$f":"Import!I5323","v":0},{"$f":"Import!I5362","v":0},{"$f":"Import!I5401","v":0}]
[null,24,"Slovakia",{"$f":"Import!I5129","v":0},{"$f":"Import!I5168","v":0},{"$f":"Import!I5207","v":0},{"$f":"Import!I5246","v":0},{"$f":"Import!I5285","v":0},0,{"$f":"Import!I5324","v":0},{"$f":"Import!I5363","v":0},{"$f":"Import!I5402","v":0}]
[null,25,"Slovenia",{"$f":"Import!I5130","v":0},{"$f":"Import!I5169","v":0},{"$f":"Import!I5208","v":0},{"$f":"Import!I5247","v":0},{"$f":"Import!I5286","v":0},0,{"$f":"Import!I5325","v":0},{"$f":"Import!I5364","v":0},{"$f":"Import!I5403","v":0}]
[null,26,"Spain",{"$f":"Import!I5131","v":0},{"$f":"Import!I5170","v":0},{"$f":"Import!I5209","v":0},{"$f":"Import!I5248","v":0},{"$f":"Import!I5287","v":0},0,{"$f":"Import!I5326","v":0},{"$f":"Import!I5365","v":0},{"$f":"Import!I5404","v":0}]
[null,27,"Sweden",{"$f":"Import!I5132","v":0},{"$f":"Import!I5171","v":0},{"$f":"Import!I5210","v":0},{"$f":"Import!I5249","v":0},{"$f":"Import!I5288","v":0},0,{"$f":"Import!I5327","v":0},{"$f":"Import!I5366","v":0},{"$f":"Import!I5405","v":0}]
[null,28,"Sub Total European Union",{"$f":"SUM(D13:D39)","v":0},0,0,0,0,0,0,0,0,0,0,0,0,0,0,0,0]
[]
[null,{"$f":"B40+1","v":29},"Bermuda",{"$f":"Import!I5134","v":0},{"$f":"Import!I5173","v":0},{"$f":"Import!I5212","v":0},{"$f":"Import!I5251","v":0},{"$f":"Import!I5290","v":0},{"$f":"E42+F42-G42-H42","v":0},{"$f":"Import!I5329","v":0},{"$f":"Import!I5368","v":0},{"$f":"Import!I5407","v":0}]
[null,30,"United Kingdom",{"$f":"Import!I5135","v":0},{"$f":"Import!I5174","v":0},{"$f":"Import!I5213","v":0},{"$f":"Import!I5252","v":0},{"$f":"Import!I5291","v":0},0,{"$f":"Import!I5330","v":0},{"$f":"Import!I5369","v":0},{"$f":"Import!I5408","v":0}]
[null,31,"Switzerland",{"$f":"Import!I5136","v":0},{"$f":"Import!I5175","v":0},{"$f":"Import!I5214","v":0},{"$f":"Import!I5253","v":0},{"$f":"Import!I5292","v":0},0,{"$f":"Import!I5331","v":0},{"$f":"Import!I5370","v":0},{"$f":"Import!I5409","v":0}]
[null,32,"United States of America",{"$f":"Import!I5137","v":0},{"$f":"Import!I5176","v":0},{"$f":"Import!I5215","v":0},{"$f":"Import!I5254","v":0},{"$f":"Import!I5293","v":0},0,{"$f":"Import!I5332","v":0},{"$f":"Import!I5371","v":0},{"$f":"Import!I5410","v":0}]
[null,33,"Canada",{"$f":"Import!I5138","v":0},{"$f":"Import!I5177","v":0},{"$f":"Import!I5216","v":0},{"$f":"Import!I5255","v":0},{"$f":"Import!I5294","v":0},0,{"$f":"Import!I5333","v":0},{"$f":"Import!I5372","v":0},{"$f":"Import!I5411","v":0}]
[null,34,"China",{"$f":"Import!I5139","v":0},{"$f":"Import!I5178","v":0},{"$f":"Import!I5217","v":0},{"$f":"Import!I5256","v":0},{"$f":"Import!I5295","v":0},0,{"$f":"Import!I5334","v":0},{"$f":"Import!I5373","v":0},{"$f":"Import!I5412","v":0}]
[null,35,"Japan",{"$f":"Import!I5140","v":0},{"$f":"Import!I5179","v":0},{"$f":"Import!I5218","v":0},{"$f":"Import!I5257","v":0},{"$f":"Import!I5296","v":0},0,{"$f":"Import!I5335","v":0},{"$f":"Import!I5374","v":0},{"$f":"Import!I5413","v":0}]
[null,36,"Hong Kong",{"$f":"Import!I5141","v":0},{"$f":"Import!I5180","v":0},{"$f":"Import!I5219","v":0},{"$f":"Import!I5258","v":0},{"$f":"Import!I5297","v":0},0,{"$f":"Import!I5336","v":0},{"$f":"Import!I5375","v":0},{"$f":"Import!I5414","v":0}]
[null,37,"Australia",{"$f":"Import!I5142","v":0},{"$f":"Import!I5181","v":0},{"$f":"Import!I5220","v":0},{"$f":"Import!I5259","v":0},{"$f":"Import!I5298","v":0},0,{"$f":"Import!I5337","v":0},{"$f":"Import!I5376","v":0},{"$f":"Import!I5415","v":0}]
[null,38,"All Other Locations",{"$f":"Import!I5143","v":0},{"$f":"Import!I5182","v":0},{"$f":"Import!I5221","v":0},{"$f":"Import!I5260","v":0},{"$f":"Import!I5299","v":0},0,{"$f":"Import!I5338","v":0},{"$f":"Import!I5377","v":0},{"$f":"Import!I5416","v":0}]
[null,39,"Total",{"$f":"D40+SUM(D42:D51)","v":0},0,0,0,0,0,0,0,0,0,0,0,0,0,0,0,0]
[null,null,null,null,null,{"$f":"IF(F54=\"TRUE\",HYPERLINK(\"#'Form 2SFS'!E14:M14\",\"TRUE\"),HYPERLINK(\"#'Form 2SFS'!E14:M14\",\"FALSE\"))","v":"TRUE"},null,null,{"$f":"IF(I54=\"TRUE\",HYPERLINK(\"#'Form 2SFS'!E18:M18\",\"TRUE\"),HYPERLINK(\"#'Form 2SFS'!E18:M18\",\"FALSE\"))","v":"TRUE"},null,null,{"$f":"IF(L54=\"FALSE\",HYPERLINK(\"#'Form 1SFS'!E117:M117\",\"FALSE\"),HYPERLINK(\"#'Form 1SFS'!E117:M117\",\"TRUE\"))","v":"TRUE"}]
[null,null,null,null,null,{"$f":"IF('Company Information'!$C$2=\"IFRS\",IF(ROUND(((E52+F52)-'Form 2ASFS'!M77),0)=0,\"TRUE\",\"FALSE\"),\nIF('Form 2SFS'!$M14=0,IF(ROUND(((E52+F52)-'Form 2SFS'!E14),0)=0,\"TRUE\",\"FALSE\"),IF(ROUND(((E52+F52)-'Form 2SFS'!$M14),0)=0,\"TRUE\",\"FALSE\")))","v":"TRUE"},null,null,{"$f":"IF('Company Information'!C2=\"IFRS\",IF(ROUND((I52-'Form 2ASFS'!M79),0)=0,\"TRUE\",\"FALSE\"),\nIF('Form 2SFS'!$M18=0,IF(ROUND((I52-'Form 2SFS'!E18),0)=0,\"TRUE\",\"FALSE\"),IF(ROUND((I52-'Form 2SFS'!$M18),0)=0,\"TRUE\",\"FALSE\")))","v":"TRUE"},null,null,{"$f":"IF('Company Information'!C2=\"IFRS\",\"TRUE\",IF('Form 1SFS'!$M117=0,IF(ROUND((L52-'Form 1SFS'!E117),0)=0,\"TRUE\",\"FALSE\"),IF(ROUND((L52-'Form 1SFS'!$M117),0)=0,\"TRUE\",\"FALSE\")))","v":"TRUE"}]
[null,null,null,null,null,{"$f":"IF('Company Information'!$C$2=\"IFRS\",ROUND('Form 2ASFS'!M77-(E52+F52),0),\nIF('Form 2SFS'!$M14=0,ROUND('Form 2SFS'!E14-(E52+F52),0),ROUND('Form 2SFS'!$M14-(E52+F52),0)))","v":0},null,null,{"$f":"IF('Company Information'!C2=\"IFRS\",ROUND('Form 2ASFS'!M79-I52,0),\nIF('Form 2SFS'!$M18=0,ROUND('Form 2SFS'!E18-I52,0),ROUND('Form 2SFS'!$M18-I52,0)))","v":0},null,null,{"$f":"IF('Company Information'!C2=\"IFRS\",\"N/A\",IF('Form 1SFS'!$M117=0,ROUND('Form 1SFS'!E117-L52,0),ROUND('Form 1SFS'!$M117-L52,0)))","v":0}]
[]
[]
[null,null,"Select"]
[null,null,"Bermuda"]
[null,null,"United Kingdom"]
[null,null,"Switzerland"]
[null,null,"United States of America"]
[null,null,"Austria"]
[null,null,"Belgium"]
[null,null,"Bulgaria"]
[null,null,"Croatia"]
[null,null,"Cyprus"]
[null,null,"Czechia"]
[null,null,"Denmark"]
[null,null,"Estonia"]
[null,null,"Finland"]
[null,null,"France"]
[null,null,"Germany"]
[null,null,"Greece"]
[null,null,"Hungary"]
[null,null,"Ireland"]
[null,null,"Italy"]
[null,null,"Latvia"]
[null,null,"Lithuania"]
[null,null,"Luxembourg"]
[null,null,"Malta"]
[null,null,"Netherlands"]
[null,null,"Poland"]
[null,null,"Portugal"]
[null,null,"Romania"]
[null,null,"Slovakia"]
[null,null,"Slovenia"]
[null,null,"Spain"]
[null,null,"Sweden"]
[null,null,"All Other Locations"]

{"sheet":"Schedule V","index":42,"n_rows":55,"n_cols":8,"rows_kept":55,"cut":false,"hidden":false,"merged":[[35,7,36,7],[2,3,3,6],[7,2,7,4],[9,2,9,4],[11,2,11,4],[15,2,15,4],[17,2,17,4],[19,2,19,4],[35,2,36,3],[52,2,52,4],[54,2,54,4],[21,2,21,4],[30,2,30,4],[42,2,42,4],[44,2,44,4],[46,2,46,4],[50,2,50,4],[37,2,38,3]]}
[null,"SCHEDULE OF RISK MANAGEMENT",null,null,null,null,null,{"$f":"HYPERLINK(\"#'Index'!A1\",\"Return to Index\")","v":"Return to Index"}]
[null,{"$f":"'Company Information'!C7","v":"Enter Company Name"}]
[null,"For the year ending",{"$f":" TEXT('Company Information'!C3,\"d mmmm yyyy\")","v":"31 December 2023"},"Note if an insurer does not have any entities to consolidate, enter EBS Valuation information only \n(This cell is editable for deletion)",null,null,null,"SCHEDULE V"]
[null,{"$f":"\"expressed in\"& IF(CONFIGURATION!$B$12>1,\" ['\"&MID(CONFIGURATION!$B$12,2,LEN(CONFIGURATION!$B$12))&\"s]\",\"\")","v":"expressed in ['000s]"},{"$f":"'Form 1EBS'!C4","v":"United States Dollars"}]
[null,null,null,null,null,"Unconsolidated SFS",null,"EBS Valuation"]
[null,"(a)","Governance and group structure",null,null,null,null,{"$f":"HYPERLINK(\"#'Schedule V(a)'!c6\",\"Refer to Schedule V(a)\")","v":"Refer to Schedule V(a)"}]
[]
[null,"(b)","Intra-group transactions that the insurer is a party to and the insurer's risk concentrations",null,null,null,null,{"$f":"HYPERLINK(\"#'Schedule V(c)'!c6\",\"Refer to Schedule V(c)\")","v":"Refer to Schedule V(c)"}]
[]
[null,"(d)","Effective duration of assets",null,null,null,null,{"$f":"Import!M5419","v":0}]
[]
[null,"(e)","Effective duration of liabilities",null,null,null,null,{"$f":"Import!M5420","v":0}]
[null,null,null,null,null,null,null,"Document Name & Page Number"]
[null,{"$f":"IF('Company Information'!$F$11=\"Class 3A\",\"(f)\",\"(f)\")","v":"(f)"},"Description of the effective duration of assets and liabilities calculations and key assumptions",null,null,{"$f":"HYPERLINK(\"#'Attachments'!G35\",\"Attach file\")","v":"Attach file"}]
[]
[null,{"$f":"IF('Company Information'!$F$11=\"Class 3A\",\"(f)\",\"(g)\")","v":"(f)"},"Gross probable maximum loss",null,null,{"$f":"Import!E5421","v":0},null,{"$f":"Import!I5421","v":0}]
[]
[null,{"$f":"IF('Company Information'!$F$11=\"Class 3A\",\"(g)\",\"(h)\")","v":"(g)"},"Net probable maximum loss",null,null,{"$f":"Import!E5422","v":0},null,{"$f":"Import!I5422","v":0}]
[]
[null,{"$f":"IF('Company Information'!$F$11=\"Class 3A\",\"(h)\",\"(i)\")","v":"(h)"},"Average annual loss (excluding property catastrophe)",null,null,null,null,{"$f":"Import!I5423","v":0}]
[]
[null,{"$f":"IF('Company Information'!$F$11=\"Class 3A\",\"(i)\",\"(j)\")","v":"(i)"},"Actual attritional losses and large claims losses - relevant year",null,null,null,null,{"$f":"Import!I5424","v":0}]
[]
[null,{"$f":"IF('Company Information'!$F$11=\"Class 3A\",\"(j)\",\"(k)\")","v":"(j)"},"Arrangements with respect to property catastrophe recoverables"]
[null,null,"(i) Collateral",null,null,null,null,{"$f":"Import!I5425","v":0}]
[null,null,"(ii) Catastrophe bonds",null,null,null,null,{"$f":"Import!I5426","v":0}]
[null,null,"(iii) Special purpose insurer (indemnity basis)",null,null,null,null,{"$f":"Import!I5427","v":0}]
[null,null,"(iv) Special purpose insurer (other basis)",null,null,null,null,{"$f":"Import!I5428","v":0}]
[null,null,"(v) Total",null,null,null,null,{"$f":"SUM(H25:H28)","v":0}]
[null,null,null,null,null,null,null,"Document Name & Page Number"]
[null,{"$f":"IF('Company Information'!$F$11=\"Class 3A\",\"(k)\",\"(l)\")","v":"(k)"},"Mutual fund disclosures",null,null,{"$f":"HYPERLINK(\"#'Attachments'!G125\",\"Attach file\")","v":"Attach file"}]
[]
[null,{"$f":"IF('Company Information'!$F$11=\"Class 3A\",\"(l)\",\"(m)\")","v":"(l)"},"Summary of projected performance - "]
[null,null,"(i) The insurer's latest estimate of annual net premiums written",null,null,null,null,{"$f":"Import!I5430","v":0}]
[null,null,"(ii) The estimated underwriting profit or loss",null,null,null,null,{"$f":"Import!I5431","v":0}]
[null,null,"(iii) The estimated net income or loss for the insurer or on a group basis with disclosure of the estimated percentage of the insurer's contribution relative to the group",null,null,null,null,{"$f":"Import!I5432","v":0}]
[]
[null,null,"(iv) A qualitative description of the insurer's business and underwriting strategy to achieve the above estimates",null,null,null,null,"Document Name & Page Number"]
[null,null,null,null,null,{"$f":"HYPERLINK(\"#'Attachments'!G135\",\"Attach file\")","v":"Attach file"}]
[]
[null,{"$f":"IF('Company Information'!$F$11=\"Class 3A\",\"(m)\",\"(n)\")","v":"(m)"},"Financial impact and description of stress & scenario tests",null,null,null,null,{"$f":"HYPERLINK(\"#'Schedule V(e)'!b1\",\"Refer to Schedule V(e)\")","v":"Refer to Schedule V(e)"}]
[null,null,null,null,null,null,null,"Document Name & Page Number"]
[null,"(o)","Investments and derivatives strategies and policy",null,null,{"$f":"HYPERLINK(\"#'Attachments'!G105\",\"Attach file\")","v":"Attach file"}]
[null,null,null,null,null,null,null,"Document Name & Page Number"]
[null,"(p)","Description of the insurer's risk management program",null,null,{"$f":"HYPERLINK(\"#'Attachments'!G155\",\"Attach file\")","v":"Attach file"}]
[null,null,null,null,null,null,null,"Document Name & Page Number"]
[null,"(q)","Risk register",null,null,{"$f":"HYPERLINK(\"#'Attachments'!G165\",\"Attach file\")","v":"Attach file"}]
[]
[null,{"$f":"IF('Company Information'!$F$11=\"Class 3A\",\"(n)\",\"(r)\")","v":"(n)"},"List of statutory lines and statutory territories that have catastrophe exposures",null,null,null,null,{"$f":"HYPERLINK(\"#'Schedule X(d)'!a7\",\"Refer to Schedule X(d)\")","v":"Refer to Schedule X(d)"}]
[]
[null,{"$f":"IF('Company Information'!$F$11=\"Class 3A\",\"(o)\",\"(s)\")","v":"(o)"},"Reconciliation from Form 1SFS to Form 1EBS",null,null,null,null,{"$f":"HYPERLINK(\"#'Schedule V(g)'!a7\",\"Refer to Schedule V(g)\")","v":"Refer to Schedule V(g)"}]
[]
[null,{"$f":"IF('Company Information'!$F$11=\"Class 3A\",\"(s)\",\"(w)\")","v":"(s)"},"Details of deposit assets and liabilities",null,null,null,null,{"$f":"HYPERLINK(\"#'Schedule V(k)'!a7\",\"Refer to Schedule V(k)\")","v":"Refer to Schedule V(k)"}]
[]
[null,{"$f":"IF('Company Information'!$F$11=\"Class 3A\",\"(t)\",\"(x)\")","v":"(t)"},"Details of segregated accounts",null,null,null,null,{"$f":"HYPERLINK(\"#'Schedule V(l)'!a7\",\"Refer to Schedule V(l)\")","v":"Refer to Schedule V(l)"}]

{"sheet":"Schedule V(a)","index":43,"n_rows":386,"n_cols":10,"rows_kept":386,"cut":false,"hidden":false,"merged":[[95,3,95,7],[75,5,75,6],[74,5,74,6],[73,5,73,6],[72,5,72,6],[44,5,44,6],[49,5,49,6],[50,5,50,6],[51,5,51,6],[52,5,52,6],[45,5,45,6],[46,5,46,6],[47,5,47,6],[48,5,48,6],[39,5,39,6],[40,5,40,6],[41,5,41,6],[42,5,42,6],[43,5,43,6],[30,5,30,6],[35,5,35,6],[36,5,36,6],[37,5,37,6],[38,5,38,6],[25,5,25,6],[26,5,26,6],[27,5,27,6],[28,5,28,6],[29,5,29,6],[20,5,20,6],[21,5,21,6],[22,5,22,6],[23,5,23,6],[24,5,24,6],[141,2,142,9],[0,2,0,5],[10,5,10,6],[11,5,11,6],[12,5,12,6],[13,5,13,6],[109,2,109,5],[110,2,110,5],[111,2,111,5],[112,2,112,5],[14,5,14,6],[15,5,15,6],[16,5,16,6],[17,5,17,6],[18,5,18,6],[19,5,19,6],[113,2,113,5],[53,5,53,6],[54,5,54,6],[55,5,55,6],[62,4,62,6],[63,5,63,6],[64,5,64,6],[65,5,65,6],[67,5,67,6],[69,4,69,6],[70,5,70,6],[71,5,71,6],[62,2,63,3],[69,2,70,3],[66,2,66,3],[76,5,76,6],[69,7,69,9],[66,5,66,6],[35,8,35,9],[36,8,36,9],[37,8,37,9],[51,8,51,9],[52,8,52,9],[41,8,41,9],[42,8,42,9],[43,8,43,9],[44,8,44,9],[45,8,45,9],[38,8,38,9],[39,8,39,9],[40,8,40,9],[47,8,47,9],[55,8,55,9],[49,8,49,9],[48,8,48,9],[50,8,50,9],[46,8,46,9],[53,8,53,9],[54,8,54,9]]}
[null,null,"SCHEDULE OF RISK MANAGEMENT - GOVERNANCE AND GROUP STRUCTURE",null,null,null,null,null,null,{"$f":"HYPERLINK(\"#'Index'!A1\",\"Return to Index\")","v":"Return to Index"}]
[]
[null,null,{"$f":"'Company Information'!C7","v":"Enter Company Name"}]
[null,null,"For the year ending",{"$f":" TEXT('Company Information'!C3,\"d mmmm yyyy\")","v":"31 December 2023"},null,null,null,null,null,"SCHEDULE V(a)"]
[null,null,{"$f":"\"expressed in\"& IF(CONFIGURATION!$B$12>1,\" ['\"&MID(CONFIGURATION!$B$12,2,LEN(CONFIGURATION!$B$12))&\"s]\",\"\")","v":"expressed in ['000s]"},{"$f":"'Form 1EBS'!C4","v":"United States Dollars"}]
[]
[null,1,"Structure of the board of directors, including names, role, country of residence and work experience - "]
[null,null," Enter number of Directors",{"$f":"Import!E5434","v":0}]
[]
[]
[null,null,"Name","Board Position","Country of Residence","Work Experience",null,"Status on the Board\n(Select from Drop Down)"]
[null,1,{"$f":"Import!E5435","v":0},{"$f":"Import!E5455","v":0},{"$f":"Import!E5475","v":0},{"$f":"Import!E5495","v":0},null,{"$f":"Import!E5515","v":"Select"}]
[null,2,{"$f":"Import!E5436","v":0},{"$f":"Import!E5456","v":0},{"$f":"Import!E5476","v":0},{"$f":"Import!E5496","v":0},null,{"$f":"Import!E5516","v":"Select"}]
[null,3,{"$f":"Import!E5437","v":0},{"$f":"Import!E5457","v":0},{"$f":"Import!E5477","v":0},{"$f":"Import!E5497","v":0},null,{"$f":"Import!E5517","v":"Select"}]
[null,4,{"$f":"Import!E5438","v":0},{"$f":"Import!E5458","v":0},{"$f":"Import!E5478","v":0},{"$f":"Import!E5498","v":0},null,{"$f":"Import!E5518","v":"Select"}]
[null,5,{"$f":"Import!E5439","v":0},{"$f":"Import!E5459","v":0},{"$f":"Import!E5479","v":0},{"$f":"Import!E5499","v":0},null,{"$f":"Import!E5519","v":"Select"}]
[null,6,{"$f":"Import!E5440","v":0},{"$f":"Import!E5460","v":0},{"$f":"Import!E5480","v":0},{"$f":"Import!E5500","v":0},null,{"$f":"Import!E5520","v":"Select"}]
[null,7,{"$f":"Import!E5441","v":0},{"$f":"Import!E5461","v":0},{"$f":"Import!E5481","v":0},{"$f":"Import!E5501","v":0},null,{"$f":"Import!E5521","v":"Select"}]
[null,8,{"$f":"Import!E5442","v":0},{"$f":"Import!E5462","v":0},{"$f":"Import!E5482","v":0},{"$f":"Import!E5502","v":0},null,{"$f":"Import!E5522","v":"Select"}]
[null,9,{"$f":"Import!E5443","v":0},{"$f":"Import!E5463","v":0},{"$f":"Import!E5483","v":0},{"$f":"Import!E5503","v":0},null,{"$f":"Import!E5523","v":"Select"}]
[null,10,{"$f":"Import!E5444","v":0},{"$f":"Import!E5464","v":0},{"$f":"Import!E5484","v":0},{"$f":"Import!E5504","v":0},null,{"$f":"Import!E5524","v":"Select"}]
[null,11,{"$f":"Import!E5445","v":0},{"$f":"Import!E5465","v":0},{"$f":"Import!E5485","v":0},{"$f":"Import!E5505","v":0},null,{"$f":"Import!E5525","v":"Select"}]
[null,12,{"$f":"Import!E5446","v":0},{"$f":"Import!E5466","v":0},{"$f":"Import!E5486","v":0},{"$f":"Import!E5506","v":0},null,{"$f":"Import!E5526","v":"Select"}]
[null,13,{"$f":"Import!E5447","v":0},{"$f":"Import!E5467","v":0},{"$f":"Import!E5487","v":0},{"$f":"Import!E5507","v":0},null,{"$f":"Import!E5527","v":"Select"}]
[null,14,{"$f":"Import!E5448","v":0},{"$f":"Import!E5468","v":0},{"$f":"Import!E5488","v":0},{"$f":"Import!E5508","v":0},null,{"$f":"Import!E5528","v":"Select"}]
[null,15,{"$f":"Import!E5449","v":0},{"$f":"Import!E5469","v":0},{"$f":"Import!E5489","v":0},{"$f":"Import!E5509","v":0},null,{"$f":"Import!E5529","v":"Select"}]
[null,16,{"$f":"Import!E5450","v":0},{"$f":"Import!E5470","v":0},{"$f":"Import!E5490","v":0},{"$f":"Import!E5510","v":0},null,{"$f":"Import!E5530","v":"Select"}]
[null,17,{"$f":"Import!E5451","v":0},{"$f":"Import!E5471","v":0},{"$f":"Import!E5491","v":0},{"$f":"Import!E5511","v":0},null,{"$f":"Import!E5531","v":"Select"}]
[null,18,{"$f":"Import!E5452","v":0},{"$f":"Import!E5472","v":0},{"$f":"Import!E5492","v":0},{"$f":"Import!E5512","v":0},null,{"$f":"Import!E5532","v":"Select"}]
[null,19,{"$f":"Import!E5453","v":0},{"$f":"Import!E5473","v":0},{"$f":"Import!E5493","v":0},{"$f":"Import!E5513","v":0},null,{"$f":"Import!E5533","v":"Select"}]
[null,20,{"$f":"Import!E5454","v":0},{"$f":"Import!E5474","v":0},{"$f":"Import!E5494","v":0},{"$f":"Import!E5514","v":0},null,{"$f":"Import!E5534","v":"Select"}]
[]
[null,2,"Enter number of Officers",{"$f":"Import!E5535","v":0}]
[null,null,"Structure of the chief and senior executive management, including names, roles, country of residence work experience, employee arrangement and description of responsibilities"]
[]
[null,null,"Name","Chief and Senior Executive Position","Country of Residence","Work Experience",null,"Employee Arrangement (Select from Drop Down)","Description of Responsibilities\n(Select from Drop Down)"]
[null,1,{"$f":"Import!E5536","v":0},{"$f":"Import!E5556","v":0},{"$f":"Import!E5576","v":0},{"$f":"Import!E5596","v":0},null,{"$f":"Import!E5616","v":"Select"},{"$f":"Import!E5636","v":"Select"}]
[null,2,{"$f":"Import!E5537","v":0},{"$f":"Import!E5557","v":0},{"$f":"Import!E5577","v":0},{"$f":"Import!E5597","v":0},null,{"$f":"Import!E5617","v":"Select"},{"$f":"Import!E5637","v":"Select"}]
[null,3,{"$f":"Import!E5538","v":0},{"$f":"Import!E5558","v":0},{"$f":"Import!E5578","v":0},{"$f":"Import!E5598","v":0},null,{"$f":"Import!E5618","v":"Select"},{"$f":"Import!E5638","v":"Select"}]
[null,4,{"$f":"Import!E5539","v":0},{"$f":"Import!E5559","v":0},{"$f":"Import!E5579","v":0},{"$f":"Import!E5599","v":0},null,{"$f":"Import!E5619","v":"Select"},{"$f":"Import!E5639","v":"Select"}]
[null,5,{"$f":"Import!E5540","v":0},{"$f":"Import!E5560","v":0},{"$f":"Import!E5580","v":0},{"$f":"Import!E5600","v":0},null,{"$f":"Import!E5620","v":"Select"},{"$f":"Import!E5640","v":"Select"}]
[null,6,{"$f":"Import!E5541","v":0},{"$f":"Import!E5561","v":0},{"$f":"Import!E5581","v":0},{"$f":"Import!E5601","v":0},null,{"$f":"Import!E5621","v":"Select"},{"$f":"Import!E5641","v":"Select"}]
[null,7,{"$f":"Import!E5542","v":0},{"$f":"Import!E5562","v":0},{"$f":"Import!E5582","v":0},{"$f":"Import!E5602","v":0},null,{"$f":"Import!E5622","v":"Select"},{"$f":"Import!E5642","v":"Select"}]
[null,8,{"$f":"Import!E5543","v":0},{"$f":"Import!E5563","v":0},{"$f":"Import!E5583","v":0},{"$f":"Import!E5603","v":0},null,{"$f":"Import!E5623","v":"Select"},{"$f":"Import!E5643","v":"Select"}]
[null,9,{"$f":"Import!E5544","v":0},{"$f":"Import!E5564","v":0},{"$f":"Import!E5584","v":0},{"$f":"Import!E5604","v":0},null,{"$f":"Import!E5624","v":"Select"},{"$f":"Import!E5644","v":"Select"}]
[null,10,{"$f":"Import!E5545","v":0},{"$f":"Import!E5565","v":0},{"$f":"Import!E5585","v":0},{"$f":"Import!E5605","v":0},null,{"$f":"Import!E5625","v":"Select"},{"$f":"Import!E5645","v":"Select"}]
[null,11,{"$f":"Import!E5546","v":0},{"$f":"Import!E5566","v":0},{"$f":"Import!E5586","v":0},{"$f":"Import!E5606","v":0},null,{"$f":"Import!E5626","v":"Select"},{"$f":"Import!E5646","v":"Select"}]
[null,12,{"$f":"Import!E5547","v":0},{"$f":"Import!E5567","v":0},{"$f":"Import!E5587","v":0},{"$f":"Import!E5607","v":0},null,{"$f":"Import!E5627","v":"Select"},{"$f":"Import!E5647","v":"Select"}]
[null,13,{"$f":"Import!E5548","v":0},{"$f":"Import!E5568","v":0},{"$f":"Import!E5588","v":0},{"$f":"Import!E5608","v":0},null,{"$f":"Import!E5628","v":"Select"},{"$f":"Import!E5648","v":"Select"}]
[null,14,{"$f":"Import!E5549","v":0},{"$f":"Import!E5569","v":0},{"$f":"Import!E5589","v":0},{"$f":"Import!E5609","v":0},null,{"$f":"Import!E5629","v":"Select"},{"$f":"Import!E5649","v":"Select"}]
[null,15,{"$f":"Import!E5550","v":0},{"$f":"Import!E5570","v":0},{"$f":"Import!E5590","v":0},{"$f":"Import!E5610","v":0},null,{"$f":"Import!E5630","v":"Select"},{"$f":"Import!E5650","v":"Select"}]
[null,16,{"$f":"Import!E5551","v":0},{"$f":"Import!E5571","v":0},{"$f":"Import!E5591","v":0},{"$f":"Import!E5611","v":0},null,{"$f":"Import!E5631","v":"Select"},{"$f":"Import!E5651","v":"Select"}]
[null,17,{"$f":"Import!E5552","v":0},{"$f":"Import!E5572","v":0},{"$f":"Import!E5592","v":0},{"$f":"Import!E5612","v":0},null,{"$f":"Import!E5632","v":"Select"},{"$f":"Import!E5652","v":"Select"}]
[null,18,{"$f":"Import!E5553","v":0},{"$f":"Import!E5573","v":0},{"$f":"Import!E5593","v":0},{"$f":"Import!E5613","v":0},null,{"$f":"Import!E5633","v":"Select"},{"$f":"Import!E5653","v":"Select"}]
[null,19,{"$f":"Import!E5554","v":0},{"$f":"Import!E5574","v":0},{"$f":"Import!E5594","v":0},{"$f":"Import!E5614","v":0},null,{"$f":"Import!E5634","v":"Select"},{"$f":"Import!E5654","v":"Select"}]
[null,20,{"$f":"Import!E5555","v":0},{"$f":"Import!E5575","v":0},{"$f":"Import!E5595","v":0},{"$f":"Import!E5684","v":"Select"},null,{"$f":"Import!E5635","v":"Select"},{"$f":"Import!E5655","v":"Select"}]
[null,null,null,null,null,null,null,"Doc Name","Page Number"]
[null,3,"Terms of reference of the board of directors and its sub-committees —",null,null,{"$f":"HYPERLINK(\"#'Attachments'!G65\",\"Attach file\")","v":"Attach file"}]
[]
[null,null,null,null,null,null,null,"Confirmation","Country of Tax Residency"]
[null,"3a","Does your company have tax residency outside of Bermuda, e.g. has made a 953d election",null,null,null,null,{"$f":"Import!E5656","v":"Select Yes/No"},{"$f":"Import!E5657","v":"Select"}]
[]
[null,4,"Jurisdiction(s) where the board of directors of the insurer meet on activities ",null,"Activities Performed in Bermuda?"]
[null,null,null,null,"Yes/No","If no, provide the name of the jurisdiction"]
[null,null,"(a) Setting strategic direction",null,{"$f":"Import!E5658","v":"Select Yes/No"},{"$f":"Import!E5662","v":0}]
[null,null,"(b) Determining the (re)insurers risk appetite",null,{"$f":"Import!E5659","v":"Select Yes/No"},{"$f":"Import!E5663","v":0}]
[null,null,"(c) Makes strategic decisions about new and/or changes to products, lines of business or markets",null,{"$f":"Import!E5660","v":"Select Yes/No"},{"$f":"Import!E5664","v":0}]
[null,null,"(d) Assess or manage solvency requirements",null,{"$f":"Import!E5661","v":"Select Yes/No"},{"$f":"Import!E5665","v":0}]
[]
[null,5,"Details of an insurer's operations that include the jurisdiction(s), service type and name ",null,"Operations Performed in Bermuda?",null,null,"Are Services Outsourced?"]
[null,null,null,null,"Yes/No","If no, provide the name of the jurisdiction",null,"Yes/No","Type of Provider","Name of Provider"]
[null,null,"(a) Underwriting (re)insurance policies",null,{"$f":"Import!E5666","v":"Select Yes/No"},{"$f":"Import!E5672","v":0},null,{"$f":"Import!E5678","v":"Select Yes/No"},{"$f":"Import!E5684","v":"Select"},{"$f":"Import!E5690","v":0}]
[null,null,"(b) Risk management decisions/activities",null,{"$f":"Import!E5667","v":"Select Yes/No"},{"$f":"Import!E5673","v":0},null,{"$f":"Import!E5679","v":"Select Yes/No"},{"$f":"Import!E5685","v":"Select"},{"$f":"Import!E5691","v":0}]
[null,null,"(c) Investment strategy",null,{"$f":"Import!E5668","v":"Select Yes/No"},{"$f":"Import!E5674","v":0},null,{"$f":"Import!E5680","v":"Select Yes/No"},{"$f":"Import!E5686","v":"Select"},{"$f":"Import!E5692","v":0}]
[null,null,"(d) Actuarial ",null,{"$f":"Import!E5669","v":"Select Yes/No"},{"$f":"Import!E5675","v":0},null,{"$f":"Import!E5681","v":"Select Yes/No"},{"$f":"Import!E5687","v":"Select"},{"$f":"Import!E5693","v":0}]
[null,null,"(e) Compliance ",null,{"$f":"Import!E5670","v":"Select Yes/No"},{"$f":"Import!E5676","v":0},null,{"$f":"Import!E5682","v":"Select Yes/No"},{"$f":"Import!E5688","v":"Select"},{"$f":"Import!E5694","v":0}]
[null,null,"(f) Internal Audit",null,{"$f":"Import!E5671","v":"Select Yes/No"},{"$f":"Import!E5677","v":0},null,{"$f":"Import!E5683","v":"Select Yes/No"},{"$f":"Import!E5689","v":"Select"},{"$f":"Import!E5695","v":0}]
[]
[null,"5a","Details of the services outsourced and if yes, if the services performed in Bermua (confirm with the yes/no drop-down box)"]
[null,null,null,null,null,"Services Outsourced","Outsourced Services Performed in Bermuda"]
[null,"(i)","\tPrincipal Representative\r\n",null,null,{"$f":"Import!E5696","v":"Select Yes/No"},{"$f":"Import!E5712","v":"Select Yes/No"}]
[null,"(ii)","Directorships/Board Member",null,null,{"$f":"Import!E5697","v":"Select Yes/No"},{"$f":"Import!E5713","v":"Select Yes/No"}]
[null,"(iii)","Senior Officer",null,null,{"$f":"Import!E5698","v":"Select Yes/No"},{"$f":"Import!E5714","v":"Select Yes/No"}]
[null,"(iv)","Accounting",null,null,{"$f":"Import!E5699","v":"Select Yes/No"},{"$f":"Import!E5715","v":"Select Yes/No"}]
[null,"(v)","Preparation of Prudential / Statutory Financial Return",null,null,{"$f":"Import!E5700","v":"Select Yes/No"},{"$f":"Import!E5716","v":"Select Yes/No"}]
[null,"(vi)","Underwriting",null,null,{"$f":"Import!E5701","v":"Select Yes/No"},{"$f":"Import!E5717","v":"Select Yes/No"}]
[null,"(vii)","\tClaims Handling\r\n",null,null,{"$f":"Import!E5702","v":"Select Yes/No"},{"$f":"Import!E5718","v":"Select Yes/No"}]
[null,"(viii)","Risk Management",null,null,{"$f":"Import!E5703","v":"Select Yes/No"},{"$f":"Import!E5719","v":"Select Yes/No"}]
[null,"(ix)","Investment",null,null,{"$f":"Import!E5704","v":"Select Yes/No"},{"$f":"Import!E5720","v":"Select Yes/No"}]
[null,"(x)","Treasury",null,null,{"$f":"Import!E5705","v":"Select Yes/No"},{"$f":"Import!E5721","v":"Select Yes/No"}]
[null,"(xi)","Actuarial functions",null,null,{"$f":"Import!E5706","v":"Select Yes/No"},{"$f":"Import!E5722","v":"Select Yes/No"}]
[null,"(xii)","Internal Audit",null,null,{"$f":"Import!E5707","v":"Select Yes/No"},{"$f":"Import!E5723","v":"Select Yes/No"}]
[null,"(xiii)","\tCompliance\r\n",null,null,{"$f":"Import!E5708","v":"Select Yes/No"},{"$f":"Import!E5724","v":"Select Yes/No"}]
[null,"(xiv)","AML/AFT/Sanctions Compliance",null,null,{"$f":"Import!E5709","v":"Select Yes/No"},{"$f":"Import!E5725","v":"Select Yes/No"}]
[null,"(xv)","Money Laundering Reporting Officer",null,null,{"$f":"Import!E5710","v":"Select Yes/No"},{"$f":"Import!E5726","v":"Select Yes/No"}]
[null,"(xvi)","Other (if other, disclose)",{"$f":"Import!E5711","v":0}]
[]
[null,6,"Number of employees of the insurer that are resident in Bermuda (non-outsourced positions)",null,null,null,{"$f":"Import!E5727","v":0}]
[]
[null,"6a","Number of employees in Bermuda working as:"]
[null,"(i)","Senior Executive",null,null,null,{"$f":"Import!E5728","v":0}]
[null,"(ii)","Senior Manager",null,null,null,{"$f":"Import!E5729","v":0}]
[null,"(iiii)","Technical Officer",null,null,null,{"$f":"Import!E5730","v":0}]
[null,"(iv)","Administrative",null,null,null,{"$f":"Import!E5731","v":0}]
[null,null,"Total",null,null,null,{"$f":"SUM(G101:G104)","v":0}]
[]
[null,null,"Check",null,null,null,{"$f":"IF(G98=G105,\"True\",\"False\")","v":"True"}]
[]
[null,7,"Name of the jurisdiction(s) where the group's board of directors primarily deliberates on the following matters —"]
[null,null,"(a) Setting strategic decision",null,null,null,{"$f":"Import!I5732","v":0}]
[null,null,"(b) Determining the group's risk appetite",null,null,null,{"$f":"Import!I5733","v":0}]
[null,null,"(c) Choosing corporate structure, including amalgamations, acquisitions and strategic alliances",null,null,null,{"$f":"Import!I5734","v":0}]
[null,null,"(d) Makes strategic decisions about new and/or changes to products, lines of business or markets",null,null,null,{"$f":"Import!I5735","v":0}]
[null,null,"(e) Assess or manage solvency requirements",null,null,null,{"$f":"Import!I5736","v":0}]
[]
[null,8,"Name of the jurisdiction(s) where the group's board of directors and chief and"]
[null,null,"senior executives primarily reside —",null,null,null,{"$f":"Import!I5737","v":0}]
[]
[null,9,"Name of the jurisdiction(s) where the group's control functions reside "]
[null,null,"(i.e. group finance, actuarial, and risk management) —",null,null,null,{"$f":"Import!I5738","v":0}]
[]
[null,10,"The group's financial position based on its most recent audited general purpose financial statements —"]
[null,null,"(a) Total assets",null,null,null,{"$f":"Import!I5739","v":0}]
[null,null,"(b) Total reserves",null,null,null,{"$f":"Import!I5740","v":0}]
[null,null,"(c) Capital and surplus",null,null,null,{"$f":"Import!I5741","v":0}]
[]
[null,11,"Name of insurers (and place of incorporation) within the group that have the three highest: (i) total asset value, (ii) total insurance "]
[null,null,"reserve value and (iii) capital and surplus, based on the group's most recent audited general purpose financial statements —"]
[null,null,"Name of Insurer","Jurisdiction","Asset Value","Insurance Reserve Value","Capital and Surplus"]
[null,1,{"$f":"Import!I5742","v":0},{"$f":"Import!I5751","v":0},{"$f":"Import!I5760","v":0},{"$f":"Import!I5769","v":0},{"$f":"Import!I5778","v":0}]
[null,2,{"$f":"Import!I5743","v":0},{"$f":"Import!I5752","v":0},{"$f":"Import!I5761","v":0},{"$f":"Import!I5770","v":0},{"$f":"Import!I5779","v":0}]
[null,3,{"$f":"Import!I5744","v":0},{"$f":"Import!I5753","v":0},{"$f":"Import!I5762","v":0},{"$f":"Import!I5771","v":0},{"$f":"Import!I5780","v":0}]
[null,4,{"$f":"Import!I5745","v":0},{"$f":"Import!I5754","v":0},{"$f":"Import!I5763","v":0},{"$f":"Import!I5772","v":0},{"$f":"Import!I5781","v":0}]
[null,5,{"$f":"Import!I5746","v":0},{"$f":"Import!I5755","v":0},{"$f":"Import!I5764","v":0},{"$f":"Import!I5773","v":0},{"$f":"Import!I5782","v":0}]
[null,6,{"$f":"Import!I5747","v":0},{"$f":"Import!I5756","v":0},{"$f":"Import!I5765","v":0},{"$f":"Import!I5774","v":0},{"$f":"Import!I5783","v":0}]
[null,7,{"$f":"Import!I5748","v":0},{"$f":"Import!I5757","v":0},{"$f":"Import!I5766","v":0},{"$f":"Import!I5775","v":0},{"$f":"Import!I5784","v":0}]
[null,8,{"$f":"Import!I5749","v":0},{"$f":"Import!I5758","v":0},{"$f":"Import!I5767","v":0},{"$f":"Import!I5776","v":0},{"$f":"Import!I5785","v":0}]
[null,9,{"$f":"Import!I5750","v":0},{"$f":"Import!I5759","v":0},{"$f":"Import!I5768","v":0},{"$f":"Import!I5777","v":0},{"$f":"Import!I5786","v":0}]
[]
[null,12,"Describe any subsequent events or decisions that would or have materially changed the information in items (4) to (11) above "]
[null,null,"(e.g. amalgamation, acquisition, or restructuring, etc.) —"]
[null,null,{"$f":"Import!E5787","v":0}]
[]
[null,null,null,null,null,"Doc Name","Page Number"]
[null,13,"A copy of the latest group organizational chart —",null,{"$f":"HYPERLINK(\"#'Attachments'!G75\",\"Attach file\")","v":"Attach file"}]
[]
[]
[null,null,"Select","Select",null,"Select",null,"Select Yes/No"]
[null,null,"N/A","Insurance Manager","Insurance Manager","Insurer",null,"Yes",null,"Select"]
[null,null,"United Kingdom","Other Third Party","Other Third Party","Affiliate",null,"No",null,"Non-executive (Independent)"]
[null,null,"United States of America","Affiliate","Affiliate","External service provider ",null,null,null,"Non-executive (Affiliate)"]
[null,null,"Canada",null,null,null,null,null,null,"Non-executive (Service Provider)"]
[null,null,null,null,null,null,null,null,null,"Non-executive (Other)"]
[null,null,"Afghanistan",null,null,null,null,null,null,"Executive"]
[null,null,"Aland Islands",null,null,null,null,null,null,"Select"]
[null,null,"Albania",null,null,null,null,null,null,"A - Has authority to make key strategic, underwriting or investment decisions, etc."]
[null,null,"Algeria",null,null,null,null,null,null,"B - Has authority to make key strategic, underwriting or investments decision, etc., within the risk appetite explicitly set by the Board of Directors."]
[null,null,"American Samoa",null,null,null,null,null,null,"C - Must get key strategic, underwriting, or investment decisions signed-off by Board of Directors before executing."]
[null,null,"Andorra"]
[null,null,"Angola"]
[null,null,"Anguilla"]
[null,null,"Antigua & Barbuda"]
[null,null,"Argentina"]
[null,null,"Armenia"]
[null,null,"Aruba"]
[null,null,"Australia"]
[null,null,"Austria"]
[null,null,"Azerbaijan"]
[null,null,"Bahamas"]
[null,null,"Bahrain"]
[null,null,"Bangladesh"]
[null,null,"Barbados"]
[null,null,"Belarus"]
[null,null,"Belgium"]
[null,null,"Belize"]
[null,null,"Benin"]
[null,null,"Bhutan"]
[null,null,"Bolivia"]
[null,null,"Bosnia and Herzegovina"]
[null,null,"Botswana"]
[null,null,"Brazil"]
[null,null,"British Virgin Islands"]
[null,null,"Brunei Darussalam"]
[null,null,"Bulgaria"]
[null,null,"Burkina Faso"]
[null,null,"Burundi"]
[null,null,"Cambodia"]
[null,null,"Cameroon"]
[null,null,"Cape Verde"]
[null,null,"Cayman Islands"]
[null,null,"Central African Republic"]
[null,null,"Chad"]
[null,null,"Chile"]
[null,null,"China"]
[null,null,"Colombia"]
[null,null,"Comoros"]
[null,null,"Cook Islands"]
[null,null,"Costa Rica"]
[null,null,"Cote d' Ivoire"]
[null,null,"Croatia"]
[null,null,"Cuba"]
[null,null,"Cyprus"]
[null,null,"Czech Republic"]
[null,null,"Democratic Republic of Congo"]
[null,null,"Denmark"]
[null,null,"Djibouti"]
[null,null,"Dominica"]
[null,null,"Dominican Republic"]
[null,null,"Ecuador"]
[null,null,"Egypt"]
[null,null,"El Salvador"]
[null,null,"Equatorial Guinea"]
[null,null,"Eritrea"]
[null,null,"Estonia"]
[null,null,"Ethiopia"]
[null,null,"Faeroe Islands"]
[null,null,"Falkland Islands"]
[null,null,"Fiji"]
[null,null,"Finland"]
[null,null,"France"]
[null,null,"French Guiana"]
[null,null,"French Polynesia"]
[null,null,"fYR of Macedonia"]
[null,null,"Gabon"]
[null,null,"Gambia"]
[null,null,"Georgia"]
[null,null,"Germany"]
[null,null,"Ghana"]
[null,null,"Gibraltar"]
[null,null,"Greece"]
[null,null,"Greenland"]
[null,null,"Grenada"]
[null,null,"Guadeloupe"]
[null,null,"Guam"]
[null,null,"Guatemala"]
[null,null,"Guernsey"]
[null,null,"Guinea"]
[null,null,"Guinea-Bissau"]
[null,null,"Guyana"]
[null,null,"Haiti"]
[null,null,"Honduras"]
[null,null,"Hong Kong"]
[null,null,"Hungary"]
[null,null,"Iceland"]
[null,null,"India"]
[null,null,"Indonesia"]
[null,null,"Iran"]
[null,null,"Iraq"]
[null,null,"Isle of Man"]
[null,null,"Israel"]
[null,null,"Italy"]
[null,null,"Jamica"]
[null,null,"Japan"]
[null,null,"Jersey"]
[null,null,"Jordan"]
[null,null,"Kazakhstan"]
[null,null,"Kenya"]
[null,null,"Kiribati"]
[null,null,"Kuwait"]
[null,null,"Kyrgyzstan"]
[null,null,"Lao PDR"]
[null,null,"Latvia"]
[null,null,"Lebanon"]
[null,null,"Lesotho"]
[null,null,"Liberia"]
[null,null,"Libya"]
[null,null,"Liechtenstein"]
[null,null,"Lithuania"]
[null,null,"Luxembourg"]
[null,null,"Macao"]
[null,null,"Madagascar"]
[null,null,"Malawi"]
[null,null,"Malaysia"]
[null,null,"Maldives"]
[null,null,"Mali"]
[null,null,"Malta"]
[null,null,"Marshall Islands"]
[null,null,"Mauritania"]
[null,null,"Mauritius"]
[null,null,"Mayotte"]
[null,null,"Mexico"]
[null,null,"Micronesia"]
[null,null,"Moldova"]
[null,null,"Monaco"]
[null,null,"Mongolia"]
[null,null,"Montenegro"]
[null,null,"Montserrat"]
[null,null,"Morocco"]
[null,null,"Mozambique"]
[null,null,"Myanmar"]
[null,null,"N. Mariana Islands"]
[null,null,"Namibia"]
[null,null,"Nauru"]
[null,null,"Nepal"]
[null,null,"Netherlands"]
[null,null,"Netherlands Antilles (Curacao and Bonaire)"]
[null,null,"New Caledonia"]
[null,null,"New Zealand"]
[null,null,"Nicaragua"]
[null,null,"Niger"]
[null,null,"Nigeria"]
[null,null,"Niue"]
[null,null,"Norfolk Island"]
[null,null,"North Korea"]
[null,null,"Northern Africa"]
[null,null,"Norway"]
[null,null,"Oman"]
[null,null,"Pakistan"]
[null,null,"Palau"]
[null,null,"Palestinian"]
[null,null,"Panama"]
[null,null,"Papua New Guinea"]
[null,null,"Paraguay"]
[null,null,"Peru"]
[null,null,"Philippines"]
[null,null,"Pitcairn"]
[null,null,"Poland"]
[null,null,"Portugal"]
[null,null,"Puerto Rico"]
[null,null,"Qatar"]
[null,null,"Republic of Congo"]
[null,null,"Republic of Ireland"]
[null,null,"Reunion"]
[null,null,"Romania"]
[null,null,"Russian Federation"]
[null,null,"Rwanda"]
[null,null,"Saint Helena"]
[null,null,"Samoa"]
[null,null,"San Marino"]
[null,null,"Sao Tome & Principe"]
[null,null,"Saudi Arabia"]
[null,null,"Senegal"]
[null,null,"Serbia"]
[null,null,"Seychelles"]
[null,null,"Sierra Leone"]
[null,null,"Singapore"]
[null,null,"Slovakia"]
[null,null,"Slovenia"]
[null,null,"Solomon Islands"]
[null,null,"Somalia"]
[null,null,"South Africa"]
[null,null,"South Korea"]
[null,null,"Spain"]
[null,null,"Sri Lanka"]
[null,null,"St Kitts & Nevis"]
[null,null,"St Lucia"]
[null,null,"St Pierre & Miquelon"]
[null,null,"St. Maarten"]
[null,null,"St. Vincent & the Grenadines"]
[null,null,"St-Barthelemy"]
[null,null,"Sudan"]
[null,null,"Suriname"]
[null,null,"Svalbard, Jan Mayen"]
[null,null,"Swaziland"]
[null,null,"Sweden"]
[null,null,"Switzerland"]
[null,null,"Syria"]
[null,null,"Taiwan"]
[null,null,"Tajikistan"]
[null,null,"Thailand"]
[null,null,"Timor-Leste"]
[null,null,"Togo"]
[null,null,"Tokelau"]
[null,null,"Tonga"]
[null,null,"Trinidad & Tobago"]
[null,null,"Tunisia"]
[null,null,"Turkey"]
[null,null,"Turkmenistan"]
[null,null,"Turks & Caicos Islands"]
[null,null,"Tuvalu"]
[null,null,"Uganda"]
[null,null,"Ukraine"]
[null,null,"United Arab Emirates"]
[null,null,"United Republic of Tanzania"]
[null,null,"Uruguay"]
[null,null,"US Virgin Islands"]
[null,null,"Uzbekistan"]
[null,null,"Vanuatu"]
[null,null,"Vatican City"]
[null,null,"Venezuela"]
[null,null,"Vietnam"]
[null,null,"Wallis & Futuna Islands"]
[null,null,"Western Sahara"]
[null,null,"Yemen"]
[null,null,"Zambia"]
[null,null,"Zimbabwe"]

{"sheet":"Schedule V(c)","index":44,"n_rows":122,"n_cols":12,"rows_kept":122,"cut":false,"hidden":false,"merged":[[3,4,3,5],[4,4,4,5],[28,6,28,8],[29,6,29,8],[30,6,30,8],[31,6,31,8],[32,6,32,8],[2,2,2,4],[12,3,13,3],[12,5,13,5],[10,6,13,8],[14,6,14,8],[15,6,15,8],[16,6,16,8],[17,6,17,8],[18,6,18,8],[22,6,22,8],[23,6,23,8],[24,6,24,8],[25,6,25,8],[26,6,26,8],[27,6,27,8],[12,2,13,2],[12,4,13,4],[44,8,45,9],[19,6,19,8],[20,6,20,8],[21,6,21,8],[44,2,45,7],[44,10,45,11],[10,9,13,9],[33,6,33,8],[34,6,34,8],[35,6,35,8],[36,6,36,8],[37,6,37,8],[38,6,38,8],[10,2,11,5],[41,6,42,11],[82,9,82,10],[83,9,83,10],[84,9,84,10],[85,9,85,10],[86,9,86,10],[87,9,87,10],[80,2,81,5],[80,6,81,6],[82,2,82,5],[83,2,83,5],[84,2,84,5],[80,9,81,10],[80,7,80,8],[81,7,81,8],[85,2,85,5],[86,2,86,5],[87,2,87,5],[94,9,94,10],[95,9,95,10],[96,9,96,10],[97,9,97,10],[98,9,98,10],[99,9,99,10],[88,9,88,10],[89,9,89,10],[90,9,90,10],[91,9,91,10],[92,9,92,10],[93,9,93,10],[120,2,120,5],[100,9,100,10],[101,9,101,10],[102,9,102,10],[119,9,119,10],[120,9,120,10],[121,9,121,10],[112,9,112,10],[113,9,113,10],[114,9,114,10],[115,9,115,10],[116,9,116,10],[117,9,117,10],[103,9,103,10],[104,9,104,10],[105,9,105,10],[118,9,118,10],[106,9,106,10],[107,9,107,10],[108,9,108,10],[109,9,109,10],[110,9,110,10],[111,9,111,10],[121,2,121,5],[114,2,114,5],[115,2,115,5],[116,2,116,5],[117,2,117,5],[118,2,118,5],[119,2,119,5],[91,2,91,5],[92,2,92,5],[99,2,99,5],[100,2,100,5],[101,2,101,5],[102,2,102,5],[103,2,103,5],[104,2,104,5],[105,2,105,5],[108,2,108,5],[109,2,109,5],[110,2,110,5],[111,2,111,5],[106,2,106,5],[107,2,107,5],[112,2,112,5],[113,2,113,5],[88,2,88,5],[89,2,89,5],[90,2,90,5],[97,2,97,5],[98,2,98,5],[93,2,93,5],[94,2,94,5],[95,2,95,5],[96,2,96,5]]}
[null,null,"SCHEDULE OF RISK MANAGEMENT - INTRA-GROUP EXPOSURES AND RISK CONCENTRATIONS",null,null,null,null,null,null,null,null,{"$f":"HYPERLINK(\"#'Index'!A1\",\"Return to Index\")","v":"Return to Index"}]
[]
[null,null,{"$f":"'Company Information'!C7","v":"Enter Company Name"}]
[null,null,"For the year ending",null,{"$f":" TEXT('Company Information'!C3,\"d mmmm yyyy\")","v":"31 December 2023"},null,null,null,null,null,null,"SCHEDULE V(c)"]
[null,null,{"$f":"\"expressed in\"& IF(CONFIGURATION!$B$12>1,\" ['\"&MID(CONFIGURATION!$B$12,2,LEN(CONFIGURATION!$B$12))&\"s]\",\"\")","v":"expressed in ['000s]"},null,{"$f":"'Form 1EBS'!C4","v":"United States Dollars"}]
[]
[null,1,"Details of material intra-group transactions —"]
[null,null,"Enter Number of Material Intra-Group Transactions"]
[null,null,"Enter information for each transaction",null,{"$f":"Import!E5788","v":0}]
[]
[null,null,"Counterparties Involved",null,null,null,"Transaction Details \n(Purpose, terms, transaction cost, duration and performance trigger)",null,null,"Exposure Value \n(face value or market value)"]
[]
[null,null,"Issuer/Borrower/Debtor","Jurisdiction","Investor/Lender/Creditor","Jurisdiction"]
[]
[null,1,{"$f":"Import!E5789","v":0},{"$f":"Import!E5814","v":0},{"$f":"Import!E5839","v":0},{"$f":"Import!E5864","v":0},{"$f":"Import!E5889","v":0},null,null,{"$f":"Import!E5914","v":0}]
[null,2,{"$f":"Import!E5790","v":0},{"$f":"Import!E5815","v":0},{"$f":"Import!E5840","v":0},{"$f":"Import!E5865","v":0},{"$f":"Import!E5890","v":0},null,null,{"$f":"Import!E5915","v":0}]
[null,3,{"$f":"Import!E5791","v":0},{"$f":"Import!E5816","v":0},{"$f":"Import!E5841","v":0},{"$f":"Import!E5866","v":0},{"$f":"Import!E5891","v":0},null,null,{"$f":"Import!E5916","v":0}]
[null,4,{"$f":"Import!E5792","v":0},{"$f":"Import!E5817","v":0},{"$f":"Import!E5842","v":0},{"$f":"Import!E5867","v":0},{"$f":"Import!E5892","v":0},null,null,{"$f":"Import!E5917","v":0}]
[null,5,{"$f":"Import!E5793","v":0},{"$f":"Import!E5818","v":0},{"$f":"Import!E5843","v":0},{"$f":"Import!E5868","v":0},{"$f":"Import!E5893","v":0},null,null,{"$f":"Import!E5918","v":0}]
[null,6,{"$f":"Import!E5794","v":0},{"$f":"Import!E5819","v":0},{"$f":"Import!E5844","v":0},{"$f":"Import!E5869","v":0},{"$f":"Import!E5894","v":0},null,null,{"$f":"Import!E5919","v":0}]
[null,7,{"$f":"Import!E5795","v":0},{"$f":"Import!E5820","v":0},{"$f":"Import!E5845","v":0},{"$f":"Import!E5870","v":0},{"$f":"Import!E5895","v":0},null,null,{"$f":"Import!E5920","v":0}]
[null,8,{"$f":"Import!E5796","v":0},{"$f":"Import!E5821","v":0},{"$f":"Import!E5846","v":0},{"$f":"Import!E5871","v":0},{"$f":"Import!E5896","v":0},null,null,{"$f":"Import!E5921","v":0}]
[null,9,{"$f":"Import!E5797","v":0},{"$f":"Import!E5822","v":0},{"$f":"Import!E5847","v":0},{"$f":"Import!E5872","v":0},{"$f":"Import!E5897","v":0},null,null,{"$f":"Import!E5922","v":0}]
[null,10,{"$f":"Import!E5798","v":0},{"$f":"Import!E5823","v":0},{"$f":"Import!E5848","v":0},{"$f":"Import!E5873","v":0},{"$f":"Import!E5898","v":0},null,null,{"$f":"Import!E5923","v":0}]
[null,11,{"$f":"Import!E5799","v":0},{"$f":"Import!E5824","v":0},{"$f":"Import!E5849","v":0},{"$f":"Import!E5874","v":0},{"$f":"Import!E5899","v":0},null,null,{"$f":"Import!E5924","v":0}]
[null,12,{"$f":"Import!E5800","v":0},{"$f":"Import!E5825","v":0},{"$f":"Import!E5850","v":0},{"$f":"Import!E5875","v":0},{"$f":"Import!E5900","v":0},null,null,{"$f":"Import!E5925","v":0}]
[null,13,{"$f":"Import!E5801","v":0},{"$f":"Import!E5826","v":0},{"$f":"Import!E5851","v":0},{"$f":"Import!E5876","v":0},{"$f":"Import!E5901","v":0},null,null,{"$f":"Import!E5926","v":0}]
[null,14,{"$f":"Import!E5802","v":0},{"$f":"Import!E5827","v":0},{"$f":"Import!E5852","v":0},{"$f":"Import!E5877","v":0},{"$f":"Import!E5902","v":0},null,null,{"$f":"Import!E5927","v":0}]
[null,15,{"$f":"Import!E5803","v":0},{"$f":"Import!E5828","v":0},{"$f":"Import!E5853","v":0},{"$f":"Import!E5878","v":0},{"$f":"Import!E5903","v":0},null,null,{"$f":"Import!E5928","v":0}]
[null,16,{"$f":"Import!E5804","v":0},{"$f":"Import!E5829","v":0},{"$f":"Import!E5854","v":0},{"$f":"Import!E5879","v":0},{"$f":"Import!E5904","v":0},null,null,{"$f":"Import!E5929","v":0}]
[null,17,{"$f":"Import!E5805","v":0},{"$f":"Import!E5830","v":0},{"$f":"Import!E5855","v":0},{"$f":"Import!E5880","v":0},{"$f":"Import!E5905","v":0},null,null,{"$f":"Import!E5930","v":0}]
[null,18,{"$f":"Import!E5806","v":0},{"$f":"Import!E5831","v":0},{"$f":"Import!E5856","v":0},{"$f":"Import!E5881","v":0},{"$f":"Import!E5906","v":0},null,null,{"$f":"Import!E5931","v":0}]
[null,19,{"$f":"Import!E5807","v":0},{"$f":"Import!E5832","v":0},{"$f":"Import!E5857","v":0},{"$f":"Import!E5882","v":0},{"$f":"Import!E5907","v":0},null,null,{"$f":"Import!E5932","v":0}]
[null,20,{"$f":"Import!E5808","v":0},{"$f":"Import!E5833","v":0},{"$f":"Import!E5858","v":0},{"$f":"Import!E5883","v":0},{"$f":"Import!E5908","v":0},null,null,{"$f":"Import!E5933","v":0}]
[null,21,{"$f":"Import!E5809","v":0},{"$f":"Import!E5834","v":0},{"$f":"Import!E5859","v":0},{"$f":"Import!E5884","v":0},{"$f":"Import!E5909","v":0},null,null,{"$f":"Import!E5934","v":0}]
[null,22,{"$f":"Import!E5810","v":0},{"$f":"Import!E5835","v":0},{"$f":"Import!E5860","v":0},{"$f":"Import!E5885","v":0},{"$f":"Import!E5910","v":0},null,null,{"$f":"Import!E5935","v":0}]
[null,23,{"$f":"Import!E5811","v":0},{"$f":"Import!E5836","v":0},{"$f":"Import!E5861","v":0},{"$f":"Import!E5886","v":0},{"$f":"Import!E5911","v":0},null,null,{"$f":"Import!E5936","v":0}]
[null,24,{"$f":"Import!E5812","v":0},{"$f":"Import!E5837","v":0},{"$f":"Import!E5862","v":0},{"$f":"Import!E5887","v":0},{"$f":"Import!E5912","v":0},null,null,{"$f":"Import!E5937","v":0}]
[null,25,{"$f":"Import!E5813","v":0},{"$f":"Import!E5838","v":0},{"$f":"Import!E5863","v":0},{"$f":"Import!E5888","v":0},{"$f":"Import!E5913","v":0},null,null,{"$f":"Import!E5938","v":0}]
[]
[null,2,"Details of all intra-group reinsurance and retrocession arrangements —"]
[null,null,"Enter Number of Intra-Group (Re)insurance Arrangements",null,null,null,{"$f":"IF(E43>25,\"Please group arrangements with the same cedent and assuming parties together. Only 25 arrangements can be populated below. Additional arrangements must be provided as an attachment.\",\"\")","v":""}]
[null,null,"Enter information for each arrangement",null,{"$f":"Import!E5939","v":0}]
[]
[null,null,"Counterparties Involved",null,null,null,null,null,"Aggregated values of the exposure limits",null,"Aggregated premium flows"]
[]
[null,null,"Assuming party ","Jurisdiction","Rating","Ceding party","Jurisdiction","Rating","Gross","Net","Gross","Net"]
[null,1,{"$f":"Import!E5940","v":0},{"$f":"Import!E5965","v":0},{"$f":"Import!E5990","v":0},{"$f":"Import!E6015","v":0},{"$f":"Import!E6040","v":0},{"$f":"Import!E6065","v":0},{"$f":"Import!E6090","v":0},{"$f":"Import!E6115","v":0},{"$f":"Import!E6140","v":0},{"$f":"Import!E6165","v":0}]
[null,2,{"$f":"Import!E5941","v":0},{"$f":"Import!E5966","v":0},{"$f":"Import!E5991","v":0},{"$f":"Import!E6016","v":0},{"$f":"Import!E6041","v":0},{"$f":"Import!E6066","v":0},{"$f":"Import!E6091","v":0},{"$f":"Import!E6116","v":0},{"$f":"Import!E6141","v":0},{"$f":"Import!E6166","v":0}]
[null,3,{"$f":"Import!E5942","v":0},{"$f":"Import!E5967","v":0},{"$f":"Import!E5992","v":0},{"$f":"Import!E6017","v":0},{"$f":"Import!E6042","v":0},{"$f":"Import!E6067","v":0},{"$f":"Import!E6092","v":0},{"$f":"Import!E6117","v":0},{"$f":"Import!E6142","v":0},{"$f":"Import!E6167","v":0}]
[null,4,{"$f":"Import!E5943","v":0},{"$f":"Import!E5968","v":0},{"$f":"Import!E5993","v":0},{"$f":"Import!E6018","v":0},{"$f":"Import!E6043","v":0},{"$f":"Import!E6068","v":0},{"$f":"Import!E6093","v":0},{"$f":"Import!E6118","v":0},{"$f":"Import!E6143","v":0},{"$f":"Import!E6168","v":0}]
[null,5,{"$f":"Import!E5944","v":0},{"$f":"Import!E5969","v":0},{"$f":"Import!E5994","v":0},{"$f":"Import!E6019","v":0},{"$f":"Import!E6044","v":0},{"$f":"Import!E6069","v":0},{"$f":"Import!E6094","v":0},{"$f":"Import!E6119","v":0},{"$f":"Import!E6144","v":0},{"$f":"Import!E6169","v":0}]
[null,6,{"$f":"Import!E5945","v":0},{"$f":"Import!E5970","v":0},{"$f":"Import!E5995","v":0},{"$f":"Import!E6020","v":0},{"$f":"Import!E6045","v":0},{"$f":"Import!E6070","v":0},{"$f":"Import!E6095","v":0},{"$f":"Import!E6120","v":0},{"$f":"Import!E6145","v":0},{"$f":"Import!E6170","v":0}]
[null,7,{"$f":"Import!E5946","v":0},{"$f":"Import!E5971","v":0},{"$f":"Import!E5996","v":0},{"$f":"Import!E6021","v":0},{"$f":"Import!E6046","v":0},{"$f":"Import!E6071","v":0},{"$f":"Import!E6096","v":0},{"$f":"Import!E6121","v":0},{"$f":"Import!E6146","v":0},{"$f":"Import!E6171","v":0}]
[null,8,{"$f":"Import!E5947","v":0},{"$f":"Import!E5972","v":0},{"$f":"Import!E5997","v":0},{"$f":"Import!E6022","v":0},{"$f":"Import!E6047","v":0},{"$f":"Import!E6072","v":0},{"$f":"Import!E6097","v":0},{"$f":"Import!E6122","v":0},{"$f":"Import!E6147","v":0},{"$f":"Import!E6172","v":0}]
[null,9,{"$f":"Import!E5948","v":0},{"$f":"Import!E5973","v":0},{"$f":"Import!E5998","v":0},{"$f":"Import!E6023","v":0},{"$f":"Import!E6048","v":0},{"$f":"Import!E6073","v":0},{"$f":"Import!E6098","v":0},{"$f":"Import!E6123","v":0},{"$f":"Import!E6148","v":0},{"$f":"Import!E6173","v":0}]
[null,10,{"$f":"Import!E5949","v":0},{"$f":"Import!E5974","v":0},{"$f":"Import!E5999","v":0},{"$f":"Import!E6024","v":0},{"$f":"Import!E6049","v":0},{"$f":"Import!E6074","v":0},{"$f":"Import!E6099","v":0},{"$f":"Import!E6124","v":0},{"$f":"Import!E6149","v":0},{"$f":"Import!E6174","v":0}]
[null,11,{"$f":"Import!E5950","v":0},{"$f":"Import!E5975","v":0},{"$f":"Import!E6000","v":0},{"$f":"Import!E6025","v":0},{"$f":"Import!E6050","v":0},{"$f":"Import!E6075","v":0},{"$f":"Import!E6100","v":0},{"$f":"Import!E6125","v":0},{"$f":"Import!E6150","v":0},{"$f":"Import!E6175","v":0}]
[null,12,{"$f":"Import!E5951","v":0},{"$f":"Import!E5976","v":0},{"$f":"Import!E6001","v":0},{"$f":"Import!E6026","v":0},{"$f":"Import!E6051","v":0},{"$f":"Import!E6076","v":0},{"$f":"Import!E6101","v":0},{"$f":"Import!E6126","v":0},{"$f":"Import!E6151","v":0},{"$f":"Import!E6176","v":0}]
[null,13,{"$f":"Import!E5952","v":0},{"$f":"Import!E5977","v":0},{"$f":"Import!E6002","v":0},{"$f":"Import!E6027","v":0},{"$f":"Import!E6052","v":0},{"$f":"Import!E6077","v":0},{"$f":"Import!E6102","v":0},{"$f":"Import!E6127","v":0},{"$f":"Import!E6152","v":0},{"$f":"Import!E6177","v":0}]
[null,14,{"$f":"Import!E5953","v":0},{"$f":"Import!E5978","v":0},{"$f":"Import!E6003","v":0},{"$f":"Import!E6028","v":0},{"$f":"Import!E6053","v":0},{"$f":"Import!E6078","v":0},{"$f":"Import!E6103","v":0},{"$f":"Import!E6128","v":0},{"$f":"Import!E6153","v":0},{"$f":"Import!E6178","v":0}]
[null,15,{"$f":"Import!E5954","v":0},{"$f":"Import!E5979","v":0},{"$f":"Import!E6004","v":0},{"$f":"Import!E6029","v":0},{"$f":"Import!E6054","v":0},{"$f":"Import!E6079","v":0},{"$f":"Import!E6104","v":0},{"$f":"Import!E6129","v":0},{"$f":"Import!E6154","v":0},{"$f":"Import!E6179","v":0}]
[null,16,{"$f":"Import!E5955","v":0},{"$f":"Import!E5980","v":0},{"$f":"Import!E6005","v":0},{"$f":"Import!E6030","v":0},{"$f":"Import!E6055","v":0},{"$f":"Import!E6080","v":0},{"$f":"Import!E6105","v":0},{"$f":"Import!E6130","v":0},{"$f":"Import!E6155","v":0},{"$f":"Import!E6180","v":0}]
[null,17,{"$f":"Import!E5956","v":0},{"$f":"Import!E5981","v":0},{"$f":"Import!E6006","v":0},{"$f":"Import!E6031","v":0},{"$f":"Import!E6056","v":0},{"$f":"Import!E6081","v":0},{"$f":"Import!E6106","v":0},{"$f":"Import!E6131","v":0},{"$f":"Import!E6156","v":0},{"$f":"Import!E6181","v":0}]
[null,18,{"$f":"Import!E5957","v":0},{"$f":"Import!E5982","v":0},{"$f":"Import!E6007","v":0},{"$f":"Import!E6032","v":0},{"$f":"Import!E6057","v":0},{"$f":"Import!E6082","v":0},{"$f":"Import!E6107","v":0},{"$f":"Import!E6132","v":0},{"$f":"Import!E6157","v":0},{"$f":"Import!E6182","v":0}]
[null,19,{"$f":"Import!E5958","v":0},{"$f":"Import!E5983","v":0},{"$f":"Import!E6008","v":0},{"$f":"Import!E6033","v":0},{"$f":"Import!E6058","v":0},{"$f":"Import!E6083","v":0},{"$f":"Import!E6108","v":0},{"$f":"Import!E6133","v":0},{"$f":"Import!E6158","v":0},{"$f":"Import!E6183","v":0}]
[null,20,{"$f":"Import!E5959","v":0},{"$f":"Import!E5984","v":0},{"$f":"Import!E6009","v":0},{"$f":"Import!E6034","v":0},{"$f":"Import!E6059","v":0},{"$f":"Import!E6084","v":0},{"$f":"Import!E6109","v":0},{"$f":"Import!E6134","v":0},{"$f":"Import!E6159","v":0},{"$f":"Import!E6184","v":0}]
[null,21,{"$f":"Import!E5960","v":0},{"$f":"Import!E5985","v":0},{"$f":"Import!E6010","v":0},{"$f":"Import!E6035","v":0},{"$f":"Import!E6060","v":0},{"$f":"Import!E6085","v":0},{"$f":"Import!E6110","v":0},{"$f":"Import!E6135","v":0},{"$f":"Import!E6160","v":0},{"$f":"Import!E6185","v":0}]
[null,22,{"$f":"Import!E5961","v":0},{"$f":"Import!E5986","v":0},{"$f":"Import!E6011","v":0},{"$f":"Import!E6036","v":0},{"$f":"Import!E6061","v":0},{"$f":"Import!E6086","v":0},{"$f":"Import!E6111","v":0},{"$f":"Import!E6136","v":0},{"$f":"Import!E6161","v":0},{"$f":"Import!E6186","v":0}]
[null,23,{"$f":"Import!E5962","v":0},{"$f":"Import!E5987","v":0},{"$f":"Import!E6012","v":0},{"$f":"Import!E6037","v":0},{"$f":"Import!E6062","v":0},{"$f":"Import!E6087","v":0},{"$f":"Import!E6112","v":0},{"$f":"Import!E6137","v":0},{"$f":"Import!E6162","v":0},{"$f":"Import!E6187","v":0}]
[null,24,{"$f":"Import!E5963","v":0},{"$f":"Import!E5988","v":0},{"$f":"Import!E6013","v":0},{"$f":"Import!E6038","v":0},{"$f":"Import!E6063","v":0},{"$f":"Import!E6088","v":0},{"$f":"Import!E6113","v":0},{"$f":"Import!E6138","v":0},{"$f":"Import!E6163","v":0},{"$f":"Import!E6188","v":0}]
[null,25,{"$f":"Import!E5964","v":0},{"$f":"Import!E5989","v":0},{"$f":"Import!E6014","v":0},{"$f":"Import!E6039","v":0},{"$f":"Import!E6064","v":0},{"$f":"Import!E6089","v":0},{"$f":"Import!E6114","v":0},{"$f":"Import!E6139","v":0},{"$f":"Import!E6164","v":0},{"$f":"Import!E6189","v":0}]
[]
[null,3,"The proportion of the insurer's insurance business covered by internal reinsurance, retrocession and other risk transfer arrangements-(in percentage)",null,null,null,null,null,null,null,null,{"$f":"Import!E6190","v":0}]
[]
[null,{"$f":"IF('Company Information'!$F$11=\"Class 3A\",1,4)","v":1},"Ten largest exposures to unaffiliated counterparties and any other unaffiliated counterparty exposures or series of linked unaffiliated"]
[null,null," counterparty  exposures exceeding 10% of the insurer's  statutory capital and surplus —"]
[null,null,"Enter Number of Material Counterparty Exposures"]
[null,null,"Enter information for each exposure",null,{"$f":"Import!E6191","v":0}]
[]
[null,null,"Name of Counterparty",null,null,null,"Jurisdiction","Exposure Values ",null,"Transaction Type"]
[null,null,null,null,null,null,null,"(Face Value or Market Value)"]
[null,1,{"$f":"Import!E6192","v":0},null,null,null,{"$f":"Import!E6232","v":0},{"$f":"Import!E6272","v":0},{"$f":"Import!E6312","v":0},{"$f":"Import!E6352","v":0}]
[null,2,{"$f":"Import!E6193","v":0},null,null,null,{"$f":"Import!E6233","v":0},{"$f":"Import!E6273","v":0},{"$f":"Import!E6313","v":0},{"$f":"Import!E6353","v":0}]
[null,3,{"$f":"Import!E6194","v":0},null,null,null,{"$f":"Import!E6234","v":0},{"$f":"Import!E6274","v":0},{"$f":"Import!E6314","v":0},{"$f":"Import!E6354","v":0}]
[null,4,{"$f":"Import!E6195","v":0},null,null,null,{"$f":"Import!E6235","v":0},{"$f":"Import!E6275","v":0},{"$f":"Import!E6315","v":0},{"$f":"Import!E6355","v":0}]
[null,5,{"$f":"Import!E6196","v":0},null,null,null,{"$f":"Import!E6236","v":0},{"$f":"Import!E6276","v":0},{"$f":"Import!E6316","v":0},{"$f":"Import!E6356","v":0}]
[null,6,{"$f":"Import!E6197","v":0},null,null,null,{"$f":"Import!E6237","v":0},{"$f":"Import!E6277","v":0},{"$f":"Import!E6317","v":0},{"$f":"Import!E6357","v":0}]
[null,7,{"$f":"Import!E6198","v":0},null,null,null,{"$f":"Import!E6238","v":0},{"$f":"Import!E6278","v":0},{"$f":"Import!E6318","v":0},{"$f":"Import!E6358","v":0}]
[null,8,{"$f":"Import!E6199","v":0},null,null,null,{"$f":"Import!E6239","v":0},{"$f":"Import!E6279","v":0},{"$f":"Import!E6319","v":0},{"$f":"Import!E6359","v":0}]
[null,9,{"$f":"Import!E6200","v":0},null,null,null,{"$f":"Import!E6240","v":0},{"$f":"Import!E6280","v":0},{"$f":"Import!E6320","v":0},{"$f":"Import!E6360","v":0}]
[null,10,{"$f":"Import!E6201","v":0},null,null,null,{"$f":"Import!E6241","v":0},{"$f":"Import!E6281","v":0},{"$f":"Import!E6321","v":0},{"$f":"Import!E6361","v":0}]
[null,11,{"$f":"Import!E6202","v":0},null,null,null,{"$f":"Import!E6242","v":0},{"$f":"Import!E6282","v":0},{"$f":"Import!E6322","v":0},{"$f":"Import!E6362","v":0}]
[null,12,{"$f":"Import!E6203","v":0},null,null,null,{"$f":"Import!E6243","v":0},{"$f":"Import!E6283","v":0},{"$f":"Import!E6323","v":0},{"$f":"Import!E6363","v":0}]
[null,13,{"$f":"Import!E6204","v":0},null,null,null,{"$f":"Import!E6244","v":0},{"$f":"Import!E6284","v":0},{"$f":"Import!E6324","v":0},{"$f":"Import!E6364","v":0}]
[null,14,{"$f":"Import!E6205","v":0},null,null,null,{"$f":"Import!E6245","v":0},{"$f":"Import!E6285","v":0},{"$f":"Import!E6325","v":0},{"$f":"Import!E6365","v":0}]
[null,15,{"$f":"Import!E6206","v":0},null,null,null,{"$f":"Import!E6246","v":0},{"$f":"Import!E6286","v":0},{"$f":"Import!E6326","v":0},{"$f":"Import!E6366","v":0}]
[null,16,{"$f":"Import!E6207","v":0},null,null,null,{"$f":"Import!E6247","v":0},{"$f":"Import!E6287","v":0},{"$f":"Import!E6327","v":0},{"$f":"Import!E6367","v":0}]
[null,17,{"$f":"Import!E6208","v":0},null,null,null,{"$f":"Import!E6248","v":0},{"$f":"Import!E6288","v":0},{"$f":"Import!E6328","v":0},{"$f":"Import!E6368","v":0}]
[null,18,{"$f":"Import!E6209","v":0},null,null,null,{"$f":"Import!E6249","v":0},{"$f":"Import!E6289","v":0},{"$f":"Import!E6329","v":0},{"$f":"Import!E6369","v":0}]
[null,19,{"$f":"Import!E6210","v":0},null,null,null,{"$f":"Import!E6250","v":0},{"$f":"Import!E6290","v":0},{"$f":"Import!E6330","v":0},{"$f":"Import!E6370","v":0}]
[null,20,{"$f":"Import!E6211","v":0},null,null,null,{"$f":"Import!E6251","v":0},{"$f":"Import!E6291","v":0},{"$f":"Import!E6331","v":0},{"$f":"Import!E6371","v":0}]
[null,21,{"$f":"Import!E6212","v":0},null,null,null,{"$f":"Import!E6252","v":0},{"$f":"Import!E6292","v":0},{"$f":"Import!E6332","v":0},{"$f":"Import!E6372","v":0}]
[null,22,{"$f":"Import!E6213","v":0},null,null,null,{"$f":"Import!E6253","v":0},{"$f":"Import!E6293","v":0},{"$f":"Import!E6333","v":0},{"$f":"Import!E6373","v":0}]
[null,23,{"$f":"Import!E6214","v":0},null,null,null,{"$f":"Import!E6254","v":0},{"$f":"Import!E6294","v":0},{"$f":"Import!E6334","v":0},{"$f":"Import!E6374","v":0}]
[null,24,{"$f":"Import!E6215","v":0},null,null,null,{"$f":"Import!E6255","v":0},{"$f":"Import!E6295","v":0},{"$f":"Import!E6335","v":0},{"$f":"Import!E6375","v":0}]
[null,25,{"$f":"Import!E6216","v":0},null,null,null,{"$f":"Import!E6256","v":0},{"$f":"Import!E6296","v":0},{"$f":"Import!E6336","v":0},{"$f":"Import!E6376","v":0}]
[null,26,{"$f":"Import!E6217","v":0},null,null,null,{"$f":"Import!E6257","v":0},{"$f":"Import!E6297","v":0},{"$f":"Import!E6337","v":0},{"$f":"Import!E6377","v":0}]
[null,27,{"$f":"Import!E6218","v":0},null,null,null,{"$f":"Import!E6258","v":0},{"$f":"Import!E6298","v":0},{"$f":"Import!E6338","v":0},{"$f":"Import!E6378","v":0}]
[null,28,{"$f":"Import!E6219","v":0},null,null,null,{"$f":"Import!E6259","v":0},{"$f":"Import!E6299","v":0},{"$f":"Import!E6339","v":0},{"$f":"Import!E6379","v":0}]
[null,29,{"$f":"Import!E6220","v":0},null,null,null,{"$f":"Import!E6260","v":0},{"$f":"Import!E6300","v":0},{"$f":"Import!E6340","v":0},{"$f":"Import!E6380","v":0}]
[null,30,{"$f":"Import!E6221","v":0},null,null,null,{"$f":"Import!E6261","v":0},{"$f":"Import!E6301","v":0},{"$f":"Import!E6341","v":0},{"$f":"Import!E6381","v":0}]
[null,31,{"$f":"Import!E6222","v":0},null,null,null,{"$f":"Import!E6262","v":0},{"$f":"Import!E6302","v":0},{"$f":"Import!E6342","v":0},{"$f":"Import!E6382","v":0}]
[null,32,{"$f":"Import!E6223","v":0},null,null,null,{"$f":"Import!E6263","v":0},{"$f":"Import!E6303","v":0},{"$f":"Import!E6343","v":0},{"$f":"Import!E6383","v":0}]
[null,33,{"$f":"Import!E6224","v":0},null,null,null,{"$f":"Import!E6264","v":0},{"$f":"Import!E6304","v":0},{"$f":"Import!E6344","v":0},{"$f":"Import!E6384","v":0}]
[null,34,{"$f":"Import!E6225","v":0},null,null,null,{"$f":"Import!E6265","v":0},{"$f":"Import!E6305","v":0},{"$f":"Import!E6345","v":0},{"$f":"Import!E6385","v":0}]
[null,35,{"$f":"Import!E6226","v":0},null,null,null,{"$f":"Import!E6266","v":0},{"$f":"Import!E6306","v":0},{"$f":"Import!E6346","v":0},{"$f":"Import!E6386","v":0}]
[null,36,{"$f":"Import!E6227","v":0},null,null,null,{"$f":"Import!E6267","v":0},{"$f":"Import!E6307","v":0},{"$f":"Import!E6347","v":0},{"$f":"Import!E6387","v":0}]
[null,37,{"$f":"Import!E6228","v":0},null,null,null,{"$f":"Import!E6268","v":0},{"$f":"Import!E6308","v":0},{"$f":"Import!E6348","v":0},{"$f":"Import!E6388","v":0}]
[null,38,{"$f":"Import!E6229","v":0},null,null,null,{"$f":"Import!E6269","v":0},{"$f":"Import!E6309","v":0},{"$f":"Import!E6349","v":0},{"$f":"Import!E6389","v":0}]
[null,39,{"$f":"Import!E6230","v":0},null,null,null,{"$f":"Import!E6270","v":0},{"$f":"Import!E6310","v":0},{"$f":"Import!E6350","v":0},{"$f":"Import!E6390","v":0}]
[null,40,{"$f":"Import!E6231","v":0},null,null,null,{"$f":"Import!E6271","v":0},{"$f":"Import!E6311","v":0},{"$f":"Import!E6351","v":0},{"$f":"Import!E6391","v":0}]

{"sheet":"Schedule V(e)","index":45,"n_rows":576,"n_cols":21,"rows_kept":576,"cut":false,"hidden":false,"merged":[[363,1,363,3],[365,1,365,3],[345,1,345,13],[346,1,346,13],[347,1,350,13],[352,12,352,13],[353,12,353,13],[354,12,354,13],[355,12,355,13],[357,1,357,3],[357,4,357,5],[357,6,357,7],[357,8,357,9],[151,1,153,1],[151,2,151,3],[152,5,152,6],[153,5,153,6],[155,1,156,1],[155,5,155,6],[156,5,156,6],[399,2,399,8],[157,1,159,1],[157,2,157,3],[158,2,158,3],[159,2,159,3],[160,1,162,1],[160,2,160,3],[161,2,161,3],[162,2,162,3],[302,1,302,2],[303,1,303,2],[304,1,304,2],[305,1,305,2],[306,1,306,2],[307,1,307,2],[308,1,308,2],[297,8,297,12],[135,1,139,1],[140,1,141,1],[140,5,140,6],[141,5,141,6],[142,1,144,1],[300,1,300,2],[301,1,301,2],[297,1,297,2],[297,3,297,7],[299,1,299,2],[286,1,286,2],[287,1,287,2],[288,1,288,2],[289,1,289,2],[290,1,290,2],[291,1,291,2],[292,1,292,2],[293,1,293,2],[294,1,294,2],[283,1,283,2],[283,3,283,7],[285,1,285,2],[145,1,147,1],[149,4,149,6],[297,13,297,17],[298,3,299,3],[298,4,298,5],[298,6,298,7],[298,8,299,8],[298,9,298,10],[298,11,298,12],[298,13,299,13],[298,14,298,15],[298,16,298,17],[283,13,283,17],[284,3,285,3],[284,4,284,5],[284,6,284,7],[284,8,285,8],[284,9,284,10],[284,11,284,12],[284,13,285,13],[284,14,284,15],[284,16,284,17],[283,8,283,12],[261,15,261,16],[264,14,265,14],[268,14,269,14],[270,14,271,14],[277,12,277,13],[264,17,265,17],[268,17,269,17],[270,17,271,17],[277,15,277,16],[261,12,261,13],[270,11,271,11],[271,1,271,2],[277,3,277,4],[277,6,277,7],[277,9,277,10],[261,3,261,4],[261,6,261,7],[261,9,261,10],[264,1,264,2],[264,5,265,5],[264,8,265,8],[264,11,265,11],[265,1,265,2],[263,1,263,2],[268,5,269,5],[268,8,269,8],[268,11,269,11],[270,5,271,5],[270,8,271,8],[261,1,262,2],[546,3,546,4],[522,3,522,4],[544,3,544,4],[547,3,547,4],[548,3,548,4],[515,3,515,4],[537,3,537,4],[539,3,539,4],[540,3,540,4],[529,3,529,4],[538,3,538,4],[541,3,541,4],[533,3,533,4],[530,3,530,4],[528,3,528,4],[521,3,521,4],[520,3,520,4],[524,3,524,4],[517,3,517,4],[518,3,518,4],[516,3,516,4],[519,3,519,4],[3,11,3,14],[193,1,193,2],[551,3,551,4],[543,3,543,4],[542,3,542,4],[536,3,536,4],[82,1,82,2],[200,1,200,2],[525,3,525,4],[534,3,534,4],[535,3,535,4],[177,1,177,2],[177,3,177,4],[526,3,526,4],[527,3,527,4],[514,3,514,4],[166,1,170,11],[176,3,176,4],[201,1,201,2],[203,1,203,2],[511,3,511,4],[523,3,523,4],[549,3,549,4],[545,3,545,4],[574,3,574,4],[568,3,568,4],[569,3,569,4],[570,3,570,4],[571,3,571,4],[550,3,550,4],[560,3,560,4],[553,3,553,4],[552,3,552,4],[572,3,572,4],[573,3,573,4],[566,3,566,4],[567,3,567,4],[555,3,555,4],[556,3,556,4],[559,3,559,4],[565,3,565,4],[564,3,564,4],[558,3,558,4],[563,3,563,4],[557,3,557,4],[562,3,562,4],[561,3,561,4],[513,3,513,4],[212,1,212,2],[212,3,212,4],[213,1,213,2],[213,3,213,4],[376,1,376,2],[313,8,318,9],[319,8,319,9],[510,2,510,4],[220,1,220,2],[226,3,226,4],[223,1,223,2],[224,1,224,2],[214,1,214,2],[219,1,219,2],[240,1,241,2],[240,3,240,4],[240,6,240,7],[240,9,240,10],[243,1,243,2],[243,5,244,5],[243,8,244,8],[256,3,256,4],[256,6,256,7],[407,13,407,15],[408,13,408,15],[320,8,320,9],[321,8,321,9],[322,8,322,9],[323,8,323,9],[324,8,324,9],[325,8,325,9],[326,8,326,9],[327,8,327,9],[328,8,328,9],[512,3,512,4],[374,3,374,4],[371,1,371,2],[372,1,372,2],[371,3,371,4],[372,3,372,4],[382,1,383,16],[385,1,386,16],[369,1,370,2],[369,3,370,8],[376,3,376,4],[377,1,377,2],[377,3,377,4],[409,13,409,15],[411,13,411,15],[412,13,412,15],[431,13,431,15],[428,13,428,15],[438,13,438,15],[450,13,450,15],[449,13,449,15],[410,13,410,15],[427,13,427,15],[418,13,418,15],[175,30,175,31],[176,30,176,31],[177,30,177,31],[178,1,178,2],[187,1,187,2],[204,3,204,4],[202,1,202,2],[178,30,178,31],[179,1,179,2],[181,3,181,4],[180,30,180,31],[200,3,200,4],[191,1,191,2],[191,3,191,4],[180,3,180,4],[187,3,187,4],[188,3,188,4],[194,1,194,2],[181,30,181,31],[180,1,180,2],[190,3,190,4],[192,3,192,4],[196,0,196,3],[1,1,1,3],[22,1,23,3],[48,1,48,3],[13,2,13,3],[2,1,2,4],[11,2,11,3],[12,2,12,3],[79,1,79,2],[18,2,18,3],[15,2,15,3],[16,2,16,3],[17,2,17,3],[14,2,14,3],[28,1,28,2],[27,1,27,2],[30,3,30,4],[19,2,19,3],[20,2,20,3],[107,9,107,10],[108,9,108,10],[109,9,109,10],[38,11,39,11],[30,9,30,10],[32,1,32,2],[33,1,33,2],[34,1,34,2],[35,1,35,2],[36,1,36,2],[38,3,39,3],[38,4,39,4],[38,5,38,6],[38,7,39,7],[105,9,106,10],[81,1,81,2],[80,1,80,2],[84,1,84,4],[30,5,30,6],[30,7,30,8],[38,9,39,9],[38,10,39,10],[91,3,91,4],[91,5,91,6],[96,2,97,2],[110,9,110,10],[111,9,111,10],[189,1,189,2],[225,1,225,2],[227,1,227,2],[227,3,227,4],[226,1,226,2],[198,3,199,9],[198,1,199,2],[221,1,221,2],[193,3,193,4],[202,3,202,4],[201,3,201,4],[194,3,194,4],[206,1,206,4],[211,1,211,2],[211,3,211,4],[204,1,204,2],[208,1,209,2],[210,1,210,2],[203,3,203,4],[222,1,222,2],[105,2,106,2],[38,12,39,12],[38,13,39,13],[42,1,42,7],[43,1,43,7],[44,1,44,7],[45,1,45,7],[38,8,39,8],[77,12,78,14],[192,1,192,2],[190,1,190,2],[179,3,179,4],[181,1,181,2],[178,3,178,4],[175,3,175,4],[176,1,176,2],[164,1,164,2],[172,1,172,4],[185,1,185,2],[189,3,189,4],[188,1,188,2],[87,1,87,2],[88,1,88,2],[89,1,89,2],[93,1,93,2],[342,1,342,4],[375,1,375,2],[375,3,375,4],[329,8,329,9],[330,8,330,9],[331,8,331,9],[332,8,332,9],[333,8,333,9],[334,8,334,9],[335,8,335,9],[373,1,373,2],[373,3,373,4],[374,1,374,2],[338,8,338,9],[339,8,339,9],[340,8,340,9],[341,8,341,9],[336,8,336,9],[337,8,337,9],[358,1,358,3],[359,1,359,3],[360,1,360,3],[361,1,361,3],[362,1,362,3],[112,9,112,10],[114,2,115,2],[123,2,124,2],[133,4,133,6],[133,7,133,9],[147,2,147,3],[135,2,135,3],[136,2,136,3],[137,2,137,3],[138,2,138,3],[139,2,139,3],[142,2,142,3],[143,2,143,3],[144,2,144,3],[146,2,146,3],[210,3,210,4],[208,3,209,9],[214,3,214,4],[236,1,236,2],[237,1,237,2],[216,1,216,2],[229,1,229,4],[313,5,318,5],[242,1,242,2],[256,9,256,10],[313,6,316,7],[251,1,251,2],[252,1,252,2],[253,1,253,2],[254,1,254,2],[272,1,272,2],[273,1,273,2],[274,1,274,2],[275,1,275,2],[257,1,257,2],[258,1,258,2],[278,1,278,2],[279,1,279,2],[243,11,244,11],[244,1,244,2],[247,5,248,5],[247,8,248,8],[247,11,248,11],[249,5,250,5],[249,8,250,8],[249,11,250,11],[250,1,250,2]]}
[null,"SCHEDULE OF RISK MANAGEMENT - STRESS/SCENARIO TESTS",null,null,null,null,null,null,null,null,null,null,null,null,null,null,{"$f":"HYPERLINK(\"#'Index'!A1\",\"Return to Index\")","v":"Return to Index"}]
[null,{"$f":"'Company Information'!C7","v":"Enter Company Name"}]
[null,{"$f":"\"For the year ending \"& TEXT('Company Information'!C3+1,\"d mmmm yyyy\")","v":"For the year ending 1 January 2024"},null,null,null,null,null,null,null,null,null,null,null,null,null,null,"SCHEDULE V(e)"]
[null,{"$f":"\"expressed in\"& IF(CONFIGURATION!$B$12>1,\" ['\"&MID(CONFIGURATION!$B$12,2,LEN(CONFIGURATION!$B$12))&\"s]\",\"\")&\" \"&'Form 1EBS'!C4","v":"expressed in ['000s] United States Dollars"}]
[null,null,null,null,null,"EBS Assets","EBS Liabilities","EBS Capital & Surplus"]
[null,null,null,null,"Pre-stress/scenario position",{"$f":"'Form 1EBS'!F90","v":0},{"$f":"'Form 1EBS'!F163","v":0},{"$f":"'Form 1EBS'!F167","v":0}]
[]
[null,"Insurer Confirms that Loss Scenarios left blank/omitted, result in no loss exposure"]
[null,null,null,null,null,null,null,null,"Confirm with \"X\""]
[null,"A. FINANCIAL MARKET SCENARIOS"]
[null,null,null,null,"Loss","EBS Assets","EBS Liabilities","EBS Capital & Surplus"]
[null,"R1.","40% decline in equity prices",null,{"$f":"IF(SUM(F12:G12)=0,0,($F$6-F12)+(G12-$G$6))","v":0},{"$f":"Import!M6393","v":0},{"$f":"+Import!M6403","v":0},{"$f":"H$6-E12","v":0}]
[null,"R2.","Alternative Investments and Real Estate",null,0,{"$f":"Import!M6394","v":0},{"$f":"+Import!M6404","v":0},0]
[null,"R3.","Yield Curve Stress",null,0,{"$f":"Import!M6395","v":0},{"$f":"+Import!M6405","v":0},0]
[null,"R4.","General widening of credit spreads",null,{"$f":"IF(SUM(F15:G15)=0,0,($F$6-F15)+(G15-$G$6))","v":0},{"$f":"Import!M6396","v":0},{"$f":"+Import!M6406","v":0},{"$f":"H$6-E15","v":0}]
[null,"R5.","Combined R1, R2, R3 and R4.",null,0,{"$f":"Import!M6397","v":0},{"$f":"+Import!M6407","v":0},0]
[null,"R6.","Foreign currency shocks",null,0,{"$f":"Import!M6398","v":0},{"$f":"+Import!M6408","v":0},0]
[null,"R7.","Escalation of sovereign risk ",null,0,{"$f":"Import!M6399","v":0},{"$f":"+Import!M6409","v":0},0]
[null,"R8.","Inflation and Monetary Policy Risk - Moderate inflation",null,{"$f":"IF(SUM(F19:G19)=0,0,($F$6-F19)+(G19-$G$6))","v":0},{"$f":"Import!M6400","v":0},{"$f":"+Import!M6410","v":0},{"$f":"H$6-E19","v":0}]
[null,"R8.","Inflation and Monetary Policy Risk - Severe inflation",null,0,{"$f":"Import!M6401","v":0},{"$f":"+Import!M6411","v":0},0]
[null,"R8.","Inflation and Monetary Policy Risk - Deflation scenario",null,0,{"$f":"Import!M6402","v":0},{"$f":"+Import!M6412","v":0},0]
[]
[null,"Valuation losses on debt securities and loans issued by debtors in each European state —",null,null,"Greece","Italy","Portugal","Ukraine","Argentina","Turkey"]
[null,null,null,null,{"$f":"Import!M6413","v":0},{"$f":"Import!M6414","v":0},{"$f":"Import!M6415","v":0},{"$f":"Import!M6416","v":0},{"$f":"Import!M6417","v":0},{"$f":"Import!M6418","v":0}]
[]
[null,"B. MORTGAGE INSURANCE"]
[]
[null,"Mortgage Loan Shock 1",null,{"$f":"Import!M6419","v":9.4700000000000006E-2},{"$f":"IF(SUM(F28:G28)=0,0,($F$6-F28)+(G28-$G$6))","v":0},{"$f":"Import!M6421","v":0},{"$f":"Import!M6423","v":0},{"$f":"H$6-E28","v":0}]
[null,"Mortgage Loan Shock 2",null,{"$f":"Import!M6420","v":"Select"},{"$f":"IF(SUM(F29:G29)=0,0,($F$6-F29)+(G29-$G$6))","v":0},{"$f":"Import!M6422","v":0},{"$f":"Import!M6424","v":0},{"$f":"H$6-E29","v":0}]
[]
[null,null,null,"Gross Premium",null,"Net Premium",null,"Claims Paid",null,"Loss Reserves"]
[null,null,null,"Related","Unrelated","Related","Unrelated","Related","Unrelated","Gross ","Net "]
[null,"Mortgage Insurance - US",null,{"$f":"Import!M6425","v":0},{"$f":"Import!M6430","v":0},{"$f":"Import!M6435","v":0},{"$f":"Import!M6440","v":0},{"$f":"Import!M6445","v":0},{"$f":"Import!M6450","v":0},{"$f":"Import!M6455","v":0},{"$f":"Import!M6460","v":0}]
[null,"Mortgage Reinsurance - US",null,{"$f":"Import!M6426","v":0},{"$f":"Import!M6431","v":0},{"$f":"Import!M6436","v":0},{"$f":"Import!M6441","v":0},{"$f":"Import!M6446","v":0},{"$f":"Import!M6451","v":0},{"$f":"Import!M6456","v":0},{"$f":"Import!M6461","v":0}]
[null,"Mortgage Insurance - Non-US",null,{"$f":"Import!M6427","v":0},{"$f":"Import!M6432","v":0},{"$f":"Import!M6437","v":0},{"$f":"Import!M6442","v":0},{"$f":"Import!M6447","v":0},{"$f":"Import!M6452","v":0},{"$f":"Import!M6457","v":0},{"$f":"Import!M6462","v":0}]
[null,"Mortgage Reinsurance - Non-US",null,{"$f":"Import!M6428","v":0},{"$f":"Import!M6433","v":0},{"$f":"Import!M6438","v":0},{"$f":"Import!M6443","v":0},{"$f":"Import!M6448","v":0},{"$f":"Import!M6453","v":0},{"$f":"Import!M6458","v":0},{"$f":"Import!M6463","v":0}]
[null,"Total",null,{"$f":"SUM(D33:D36)","v":0},{"$f":"SUM(E33:E36)","v":0},0,0,0,0,0,0]
[]
[null,null,null,"Insurance in Force (IIF)","Risk in Force (RIF)","Capital Held",null,"Risk to MI Capital Ratio","Collateral Posted","# of Policies in Force","Loss Ratio (UW)","Combined Ratio (UW)","Weighted Ave. LTV","Weighted Ave. FICO Score"]
[null,null,null,null,null,"Internal ","Regulatory "]
[null,"Supplemental Disclosures",null,{"$f":"Import!M6465","v":0},{"$f":"Import!M6466","v":0},{"$f":"Import!M6467","v":0},{"$f":"((F37+G37)*0.454)+(K37*0.435)","v":0},{"$f":"IF(G41=0,0,E41/G41)","v":0},{"$f":"Import!M6469","v":0},{"$f":"Import!M6470","v":0},{"$f":"Import!M6471","v":0},{"$f":"Import!M6472","v":0},{"$f":"Import!M6473","v":0},{"$f":"Import!M6474","v":0}]
[]
[null,"1. How do you define your risk appetite for this type of business, in terms metrics, tolerance levels and limits?",null,null,null,null,null,null,{"$f":"HYPERLINK(\"#'Attachments'!G85\",\"Attach file\")","v":"Attach file"}]
[null,"2. What key drivers do you monitor in the risk management and business performance assessment of this LoB?",null,null,null,null,null,null,"Attach file"]
[null,"3. How do you allocate capital to this LoB in terms of methodology and metrics used?",null,null,null,null,null,null,"Attach file"]
[null,"4. How do you calculate the CISSA standalone capital requirement, what methodology and risk factors do you model?",null,null,null,null,null,null,"Attach file"]
[]
[null,"C. UNDERWRITING LOSS SCENARIOS",null,null,null,"Doc Name","Page Number"]
[null,"Internal model key assumptions and parameters",null,null,{"$f":"HYPERLINK(\"#'Attachments'!G145\",\"Attach file\")","v":"Attach file"}]
[]
[]
[null,null,null,"Gross Loss Impact","EBS Capital & Surplus After Gross Loss","Net Loss After Reinsurance","Catastrophe Mitigation Techniques","Net Loss Impact","EBS Capital & Surplus After Net Loss","Occurrence Return Period ","Relative Return Period 2","Proprietary/ Vendor Model & Version",null,null,null,null,null,null,"Gross Loss Check","Net Loss Check","Gross Loss and Net Loss Check"]
[null,"UW1. ","Northeast Hurricane",{"$f":"Import!M6475","v":0},{"$f":"$H$6-D53","v":0},{"$f":"Import!M6494","v":0},{"$f":"Import!M6513","v":0},{"$f":"F53-G53","v":0},{"$f":"$H$6-H53","v":0},{"$f":"Import!M6532","v":0},{"$f":"Import!M6550","v":0},{"$f":"Import!M6568","v":0},null,null,null,null,null,null,{"$f":"IF(E53<0,\"Gross Impact - C&S Negative\",\"Gross Impact - Check Ok\")","v":"Gross Impact - Check Ok"},{"$f":"IF(I53<0,\"Net Impact - C&S Negative\",\"Net Impact - Check Ok\")","v":"Net Impact - Check Ok"},{"$f":"IF(H53>D53,\"Net Impact Greater than Gross Impact\",\"Gross to Net Impact - Check Ok\")","v":"Gross to Net Impact - Check Ok"}]
[null,"UW2.","Carolinas Hurricane",{"$f":"Import!M6476","v":0},{"$f":"$H$6-D54","v":0},{"$f":"Import!M6495","v":0},{"$f":"Import!M6514","v":0},{"$f":"F54-G54","v":0},{"$f":"$H$6-H54","v":0},{"$f":"Import!M6533","v":0},{"$f":"Import!M6551","v":0},{"$f":"Import!M6569","v":0},null,null,null,null,null,null,{"$f":"IF(E54<0,\"Gross Impact - C&S Negative\",\"Gross Impact - Check Ok\")","v":"Gross Impact - Check Ok"},"Net Impact - Check Ok","Gross to Net Impact - Check Ok"]
[null,"UW3.","Miami-Dade Hurricane",{"$f":"Import!M6477","v":0},0,{"$f":"Import!M6496","v":0},{"$f":"Import!M6515","v":0},0,0,{"$f":"Import!M6534","v":0},{"$f":"Import!M6552","v":0},{"$f":"Import!M6570","v":0},null,null,null,null,null,null,"Gross Impact - Check Ok","Net Impact - Check Ok","Gross to Net Impact - Check Ok"]
[null,"UW4.","Pinellas Hurricane",{"$f":"Import!M6478","v":0},0,{"$f":"Import!M6497","v":0},{"$f":"Import!M6516","v":0},0,0,{"$f":"Import!M6535","v":0},{"$f":"Import!M6553","v":0},{"$f":"Import!M6571","v":0},null,null,null,null,null,null,"Gross Impact - Check Ok","Net Impact - Check Ok","Gross to Net Impact - Check Ok"]
[null,"UW5.","Gulf Windstorm (onshore)",{"$f":"Import!M6479","v":0},0,{"$f":"Import!M6498","v":0},{"$f":"Import!M6517","v":0},0,0,{"$f":"Import!M6536","v":0},{"$f":"Import!M6554","v":0},{"$f":"Import!M6572","v":0},null,null,null,null,null,null,"Gross Impact - Check Ok","Net Impact - Check Ok","Gross to Net Impact - Check Ok"]
[null,"UE1.","Los Angeles Earthquake",{"$f":"Import!M6480","v":0},0,{"$f":"Import!M6499","v":0},{"$f":"Import!M6518","v":0},0,0,{"$f":"Import!M6537","v":0},{"$f":"Import!M6555","v":0},{"$f":"Import!M6573","v":0},null,null,null,null,null,null,"Gross Impact - Check Ok","Net Impact - Check Ok","Gross to Net Impact - Check Ok"]
[null,"UE2.","San Francisco Earthquake",{"$f":"Import!M6481","v":0},0,{"$f":"Import!M6500","v":0},{"$f":"Import!M6519","v":0},0,0,{"$f":"Import!M6538","v":0},{"$f":"Import!M6556","v":0},{"$f":"Import!M6574","v":0},null,null,null,null,null,null,"Gross Impact - Check Ok","Net Impact - Check Ok","Gross to Net Impact - Check Ok"]
[null,"UE3.","New Madrid (NM) RDS",{"$f":"Import!M6482","v":0},0,{"$f":"Import!M6501","v":0},{"$f":"Import!M6520","v":0},0,0,{"$f":"Import!M6539","v":0},{"$f":"Import!M6557","v":0},{"$f":"Import!M6575","v":0},null,null,null,null,null,null,"Gross Impact - Check Ok","Net Impact - Check Ok","Gross to Net Impact - Check Ok"]
[null,"IW1. ","European Windstorm",{"$f":"Import!M6483","v":0},0,{"$f":"Import!M6502","v":0},{"$f":"Import!M6521","v":0},0,0,{"$f":"Import!M6540","v":0},{"$f":"Import!M6558","v":0},{"$f":"Import!M6576","v":0},null,null,null,null,null,null,"Gross Impact - Check Ok","Net Impact - Check Ok","Gross to Net Impact - Check Ok"]
[null,"IW2.","Japanese Typhoon",{"$f":"Import!M6484","v":0},0,{"$f":"Import!M6503","v":0},{"$f":"Import!M6522","v":0},0,0,{"$f":"Import!M6541","v":0},{"$f":"Import!M6559","v":0},{"$f":"Import!M6577","v":0},null,null,null,null,null,null,"Gross Impact - Check Ok","Net Impact - Check Ok","Gross to Net Impact - Check Ok"]
[null,"IE1.","Japanese Earthquake",{"$f":"Import!M6485","v":0},0,{"$f":"Import!M6504","v":0},{"$f":"Import!M6523","v":0},0,0,{"$f":"Import!M6542","v":0},{"$f":"Import!M6560","v":0},{"$f":"Import!M6578","v":0},null,null,null,null,null,null,"Gross Impact - Check Ok","Net Impact - Check Ok","Gross to Net Impact - Check Ok"]
[null,"A1.","Aviation Collision",{"$f":"Import!M6486","v":0},0,{"$f":"Import!M6505","v":0},{"$f":"Import!M6524","v":0},0,0,{"$f":"Import!M6543","v":0},{"$f":"Import!M6561","v":0},{"$f":"Import!M6579","v":0},null,null,null,null,null,null,"Gross Impact - Check Ok","Net Impact - Check Ok","Gross to Net Impact - Check Ok"]
[null,"M1.","Marine Collision in Prince William",{"$f":"Import!M6487","v":0},0,{"$f":"Import!M6506","v":0},{"$f":"Import!M6525","v":0},0,0,{"$f":"Import!M6544","v":0},{"$f":"Import!M6562","v":0},{"$f":"Import!M6580","v":0},null,null,null,null,null,null,"Gross Impact - Check Ok","Net Impact - Check Ok","Gross to Net Impact - Check Ok"]
[null,"M2.","Major Cruise Vessel Incident",{"$f":"Import!M6488","v":0},0,{"$f":"Import!M6507","v":0},{"$f":"Import!M6526","v":0},0,0,{"$f":"Import!M6545","v":0},{"$f":"Import!M6563","v":0},{"$f":"Import!M6581","v":0},null,null,null,null,null,null,"Gross Impact - Check Ok","Net Impact - Check Ok","Gross to Net Impact - Check Ok"]
[null,"N1.","US Oil Spill",{"$f":"Import!M6489","v":0},0,{"$f":"Import!M6508","v":0},{"$f":"Import!M6527","v":0},0,0,{"$f":"Import!M6546","v":0},{"$f":"Import!M6564","v":0},{"$f":"Import!M6582","v":0},null,null,null,null,null,null,"Gross Impact - Check Ok","Net Impact - Check Ok","Gross to Net Impact - Check Ok"]
[null,"N2.","US Tornadoes",{"$f":"Import!M6490","v":0},0,{"$f":"Import!M6509","v":0},{"$f":"Import!M6528","v":0},0,0,{"$f":"Import!M6547","v":0},{"$f":"Import!M6565","v":0},{"$f":"Import!M6583","v":0},null,null,null,null,null,null,"Gross Impact - Check Ok","Net Impact - Check Ok","Gross to Net Impact - Check Ok"]
[null,"N3.","Australian Flooding",{"$f":"Import!M6491","v":0},0,{"$f":"Import!M6510","v":0},{"$f":"Import!M6529","v":0},0,0,{"$f":"Import!M6548","v":0},{"$f":"Import!M6566","v":0},{"$f":"Import!M6584","v":0},null,null,null,null,null,null,"Gross Impact - Check Ok","Net Impact - Check Ok","Gross to Net Impact - Check Ok"]
[null,"N4.","Australian Wildfires",{"$f":"Import!M6492","v":0},0,{"$f":"Import!M6511","v":0},{"$f":"Import!M6530","v":0},0,0,{"$f":"Import!M6549","v":0},{"$f":"Import!M6567","v":0},{"$f":"Import!M6585","v":0},null,null,null,null,null,null,"Gross Impact - Check Ok","Net Impact - Check Ok","Gross to Net Impact - Check Ok"]
[null,"P1.","Contamination Food Exposure (Domestic Health Writers Only)",{"$f":"Import!M6493","v":0},0,{"$f":"Import!M6512","v":0},{"$f":"Import!M6531","v":0},0,0,null,null,{"$f":"Import!M6586","v":0},null,null,null,null,null,null,"Gross Impact - Check Ok","Net Impact - Check Ok","Gross to Net Impact - Check Ok"]
[null,null,null,null,null,null,null,null,null,null,null,null,null,null,null,null,null,null,{"$f":"IF(COUNTIF(S53:S71,\"Gross Impact - Check Ok\")=19,\"True\",\"False\")","v":"True"},{"$f":"IF(COUNTIF(T53:T71,\"Net Impact - Check Ok\")=19,\"True\",\"False\")","v":"True"},{"$f":"IF(COUNTIF(U53:U71,\"Gross to Net Impact - Check Ok\")=19,\"True\",\"False\")","v":"True"}]
[null,1,"Post-stress/scenario net loss is Post-stress/scenario gross loss, net of reinsurance and/or other loss mitigation instruments"]
[null,2,"The relative return period should be calculated using the underlying loss distribution for its Net Probable Maximum Loss, as submitted in the BSCR"]
[]
[null,{"$f":"IF('Company Information'!$F$11=\"Class 3A\",\"C. UNDERWRITING LOSS SCENARIOS\",\"D. OTHER UNDERWRITING SCENARIOS\")","v":"C. UNDERWRITING LOSS SCENARIOS"}]
[null,{"$f":"IF('Company Information'!$F$11=\"Class 3A\",\"The (re)insurer is to submit the description of three of its own underwriting scenarios and related key assumptions with the impact on the economic balance sheet\",\"Where B above is either not applicable or only partially apply, the (re)insurer is to submit the description of three of its own underwriting scenarios and related key assumptions with the impact on the economic balance sheet.\")","v":"The (re)insurer is to submit the description of three of its own underwriting scenarios and related key assumptions with the impact on the economic balance sheet"}]
[null,null,null,null,null,null,null,null,null,null,null,null,{"$f":"IF('Company Information'!$F$11=\"Class 3A\",\"Only Class 3A Insurers that write Property Catastrophe Business are to provide return periods\",\"\")","v":"Only Class 3A Insurers that write Property Catastrophe Business are to provide return periods"}]
[]
[null,"Description",null,"Assumptions","Doc Name","Page Number","Gross Loss Impact","EBS Capital & Surplus","Net Loss After Reinsurance","Catastrophe Mitigation Techniques","Net Loss Impact","EBS Capital & Surplus","Occurrence Return Period ","Relative Return Period","Proprietary/ Vendor Model & Version"]
[null,{"$f":"Import!M6587","v":0},null,{"$f":"HYPERLINK(\"#'Attachments'!G145\",\"Attach file\")","v":"Attach file"},null,null,{"$f":"Import!M6590","v":0},{"$f":"$H$6-G81","v":0},{"$f":"Import!M6593","v":0},{"$f":"Import!M6596","v":0},{"$f":"I81-J81","v":0},{"$f":"$H$6-K81","v":0},{"$f":"Import!M6599","v":0},{"$f":"Import!M6602","v":0},{"$f":"Import!M6605","v":0}]
[null,{"$f":"Import!M6588","v":0},null,"Attach file",null,null,{"$f":"Import!M6591","v":0},{"$f":"$H$6-G82","v":0},{"$f":"Import!M6594","v":0},{"$f":"Import!M6597","v":0},{"$f":"I82-J82","v":0},{"$f":"$H$6-K82","v":0},{"$f":"Import!M6600","v":0},{"$f":"Import!M6603","v":0},{"$f":"Import!M6606","v":0}]
[null,{"$f":"Import!M6589","v":0},null,"Attach file",null,null,{"$f":"Import!M6592","v":0},0,{"$f":"Import!M6595","v":0},{"$f":"Import!M6598","v":0},0,0,{"$f":"Import!M6601","v":0},{"$f":"Import!M6604","v":0},{"$f":"Import!M6607","v":0}]
[]
[null,{"$f":"IF('Company Information'!$F$11=\"Class 3A\",\"D. LIABILITY LOSS ACCUMULATION SCENARIOS\",\"E. LIABILITY LOSS ACCUMULATION SCENARIOS\")","v":"D. LIABILITY LOSS ACCUMULATION SCENARIOS"}]
[]
[null,"0. Results"]
[]
[null,"Description",null,"Net Loss Impact","EBS Capital & Surplus"]
[null,"1. New latent liability",null,{"$f":"SUM(D126:I131)","v":0},{"$f":"$H$6-D90","v":0}]
[]
[null,null,null,"One Year View",null,"Ultimate View"]
[null,null,null,"Net Loss Impact","EBS Capital & Surplus","Net Loss Impact","EBS Capital & Surplus"]
[null,"2. Deterioration in existing US A&E reserves",null,{"$f":"+E148-E136+H148-H136","v":0},{"$f":"$H$6-D94","v":0},{"$f":"+E146-E136+H146-H136+E161-E152","v":0},{"$f":"$H$6-F94","v":0}]
[]
[null,"a) Scenario 1 - New latent liability"]
[null,null,{"$f":"\"NWP for the most recent year\"&\" (\"&TEXT('Company Information'!C3,\"YYYY\")&\")\"","v":"NWP for the most recent year (2023)"},"Product Liability","Product Liability","Gen Comm Liability","Gen Comm Liability","Empl Liab/ Workers Comp","Empl Liab/ Workers Comp"]
[null,null,null,"P","NP","P","NP","P","NP"]
[null,null,"EEA and Switzerland",{"$f":"Import!M6608","v":0},{"$f":"Import!M6614","v":0},{"$f":"Import!M6620","v":0},{"$f":"Import!M6626","v":0},{"$f":"Import!M6632","v":0},{"$f":"Import!M6638","v":0}]
[null,null,"US/Canada",{"$f":"Import!M6609","v":0},{"$f":"Import!M6615","v":0},{"$f":"Import!M6621","v":0},{"$f":"Import!M6627","v":0},{"$f":"Import!M6633","v":0},{"$f":"Import!M6639","v":0}]
[null,null,"Japan",{"$f":"Import!M6610","v":0},{"$f":"Import!M6616","v":0},{"$f":"Import!M6622","v":0},{"$f":"Import!M6628","v":0},{"$f":"Import!M6634","v":0},{"$f":"Import!M6640","v":0}]
[null,null,"China",{"$f":"Import!M6611","v":0},{"$f":"Import!M6617","v":0},{"$f":"Import!M6623","v":0},{"$f":"Import!M6629","v":0},{"$f":"Import!M6635","v":0},{"$f":"Import!M6641","v":0}]
[null,null,"Other developed markets",{"$f":"Import!M6612","v":0},{"$f":"Import!M6618","v":0},{"$f":"Import!M6624","v":0},{"$f":"Import!M6630","v":0},{"$f":"Import!M6636","v":0},{"$f":"Import!M6642","v":0}]
[null,null,"Emerging markets",{"$f":"Import!M6613","v":0},{"$f":"Import!M6619","v":0},{"$f":"Import!M6625","v":0},{"$f":"Import!M6631","v":0},{"$f":"Import!M6637","v":0},{"$f":"Import!M6643","v":0}]
[]
[null,null,"Average Annual Premium Growth over the last 8 years (3 years for US Workers Comp)","Product Liability","Product Liability","Gen Comm Liability","Gen Comm Liability","Empl Liab/ Workers Comp","Empl Liab/ Workers Comp","Number of Years over which the annual growth is calculated (subject to the max of 8 or 3 years for US/CA WC) ",null,"Product Liability","Product Liability","Gen Comm Liability","Gen Comm Liability","Empl Liab/ Workers Comp","Empl Liab/ Workers Comp"]
[null,null,null,"P","NP","P","NP","P","NP",null,null,"P","NP","P","NP","P","NP"]
[null,null,"EEA and Switzerland",{"$f":"Import!M6644","v":0},{"$f":"Import!M6650","v":0},{"$f":"Import!M6656","v":0},{"$f":"Import!M6662","v":0},{"$f":"Import!M6668","v":0},{"$f":"Import!M6674","v":0},"EEA and Switzerland",null,{"$f":"Import!M6680","v":0},{"$f":"Import!M6686","v":0},{"$f":"Import!M6692","v":0},{"$f":"Import!M6698","v":0},{"$f":"Import!M6704","v":0},{"$f":"Import!M6710","v":0}]
[null,null,"US/Canada",{"$f":"Import!M6645","v":0},{"$f":"Import!M6651","v":0},{"$f":"Import!M6657","v":0},{"$f":"Import!M6663","v":0},{"$f":"Import!M6669","v":0},{"$f":"Import!M6675","v":0},"US/Canada",null,{"$f":"Import!M6681","v":0},{"$f":"Import!M6687","v":0},{"$f":"Import!M6693","v":0},{"$f":"Import!M6699","v":0},{"$f":"Import!M6705","v":0},{"$f":"Import!M6711","v":0}]
[null,null,"Japan",{"$f":"Import!M6646","v":0},{"$f":"Import!M6652","v":0},{"$f":"Import!M6658","v":0},{"$f":"Import!M6664","v":0},{"$f":"Import!M6670","v":0},{"$f":"Import!M6676","v":0},"Japan",null,{"$f":"Import!M6682","v":0},{"$f":"Import!M6688","v":0},{"$f":"Import!M6694","v":0},{"$f":"Import!M6700","v":0},{"$f":"Import!M6706","v":0},{"$f":"Import!M6712","v":0}]
[null,null,"China",{"$f":"Import!M6647","v":0},{"$f":"Import!M6653","v":0},{"$f":"Import!M6659","v":0},{"$f":"Import!M6665","v":0},{"$f":"Import!M6671","v":0},{"$f":"Import!M6677","v":0},"China",null,{"$f":"Import!M6683","v":0},{"$f":"Import!M6689","v":0},{"$f":"Import!M6695","v":0},{"$f":"Import!M6701","v":0},{"$f":"Import!M6707","v":0},{"$f":"Import!M6713","v":0}]
[null,null,"Other developed markets",{"$f":"Import!M6648","v":0},{"$f":"Import!M6654","v":0},{"$f":"Import!M6660","v":0},{"$f":"Import!M6666","v":0},{"$f":"Import!M6672","v":0},{"$f":"Import!M6678","v":0},"Other developed markets",null,{"$f":"Import!M6684","v":0},{"$f":"Import!M6690","v":0},{"$f":"Import!M6696","v":0},{"$f":"Import!M6702","v":0},{"$f":"Import!M6708","v":0},{"$f":"Import!M6714","v":0}]
[null,null,"Emerging markets",{"$f":"Import!M6649","v":0},{"$f":"Import!M6655","v":0},{"$f":"Import!M6661","v":0},{"$f":"Import!M6667","v":0},{"$f":"Import!M6673","v":0},{"$f":"Import!M6679","v":0},"Emerging markets",null,{"$f":"Import!M6685","v":0},{"$f":"Import!M6691","v":0},{"$f":"Import!M6697","v":0},{"$f":"Import!M6703","v":0},{"$f":"Import!M6709","v":0},{"$f":"Import!M6715","v":0}]
[]
[null,null,"Risk factors by segment","Product Liability","Product Liability","Gen Comm Liability","Gen Comm Liability","Empl Liab/ Workers Comp","Empl Liab/ Workers Comp"]
[null,null,null,"P","NP","P","NP","P","NP"]
[null,null,"EEA and Switzerland",0.45,0.9,0.25,0.5,0.25,0.5]
[null,null,"US/Canada",0.65,1.3,0.35,0.75,0.15,0.3]
[null,null,"Japan",0.35,0.65,0.2,0.35,0.2,0.35]
[null,null,"China",0.25,0.5,0.15,0.3,0.15,0.3]
[null,null,"Other developed markets",0.3,0.6,0.15,0.35,0.15,0.35]
[null,null,"Emerging markets",0.25,0.5,0.15,0.3,0.15,0.3]
[]
[null,null,"Estimated Reserve Deterioration","Product Liability","Product Liability","Gen Comm Liability","Gen Comm Liability","Empl Liab/ Workers Comp","Empl Liab/ Workers Comp"]
[null,null,null,"P","NP","P","NP","P","NP"]
[null,null,"EEA and Switzerland",{"$f":"MAX(MAX(IFERROR((((1-(1+D108)^(L108))/(1-(1+D108)))/L108)/((1+D108)^(L108-1)),1),0)*D117*D99*MIN(IF(L108>=1,L108/8,1),1),0)","v":0},{"$f":"MAX(MAX(IFERROR((((1-(1+E108)^(M108))/(1-(1+E108)))/M108)/((1+E108)^(M108-1)),1),0)*E117*E99*MIN(IF(M108>=1,M108/8,1),1),0)","v":0},{"$f":"MAX(MAX(IFERROR((((1-(1+F108)^(N108))/(1-(1+F108)))/N108)/((1+F108)^(N108-1)),1),0)*F117*F99*MIN(IF(N108>=1,N108/8,1),1),0)","v":0},0,0,0]
[null,null,"US/Canada",{"$f":"MAX(MAX(IFERROR((((1-(1+D109)^(L109))/(1-(1+D109)))/L109)/((1+D109)^(L109-1)),1),0)*D118*D100*MIN(IF(L109>=1,L109/8,1),1),0)","v":0},0,0,0,{"$f":"MAX(MAX(IFERROR((((1-(1+H109)^(P109))/(1-(1+H109)))/P109)/((1+H109)^(P109-1)),1),0)*H118*H100*MIN(IF(P109>=1,P109/3,1),1),0)","v":0},{"$f":"MAX(MAX(IFERROR((((1-(1+I109)^(Q109))/(1-(1+I109)))/Q109)/((1+I109)^(Q109-1)),1),0)*I118*I100*MIN(IF(Q109>=1,Q109/3,1),1),0)","v":0}]
[null,null,"Japan",0,0,0,0,0,0]
[null,null,"China",0,0,0,0,0,0]
[null,null,"Other developed markets",0,0,0,0,0,0]
[null,null,"Emerging markets",0,0,0,0,0,0]
[]
[null,"b) Scenario 2 - Deterioration in existing US A&E reserves"]
[null,null,null,null,"US Asbestos",null,null,"US Environmental"]
[null,null,null,null,{"$f":"+TEXT('Company Information'!$C$3,\"YYYY\")","v":"2023"},{"$f":"+E135-1","v":2022},{"$f":"+F135-1","v":2021},{"$f":"+TEXT('Company Information'!$C$3,\"YYYY\")","v":"2023"},{"$f":"+H135-1","v":2022},{"$f":"+I135-1","v":2021}]
[null,"1. Survival Ratio stress","Yearend Net GAAP Reserves ",null,{"$f":"Import!M6716","v":0},{"$f":"Import!M6723","v":0},{"$f":"Import!M6725","v":0},{"$f":"Import!M6727","v":0},{"$f":"Import!M6733","v":0},{"$f":"Import!M6735","v":0}]
[null,null,"Net Paid on Yearend GAAP Reserves",null,{"$f":"Import!M6717","v":0},{"$f":"Import!M6724","v":0},{"$f":"Import!M6726","v":0},{"$f":"Import!M6728","v":0},{"$f":"Import!M6734","v":0},{"$f":"Import!M6736","v":0}]
[null,null,"Survival Ratio of US Reserves",null,{"$f":"Import!M6718","v":0},"Est Surv Ratio",{"$f":"IFERROR(E136/AVERAGE(IF(E137:G137>0,E137:G137,\"\")),0)","v":0},{"$f":"Import!M6729","v":0},"Est Surv Ratio",{"$f":"IFERROR(H136/AVERAGE(IF(H137:J137>0,H137:J137,\"\")),0)","v":0}]
[null,null,"Target Survival Ratio",null,15,null,null,12]
[null,null,"GAAP Reserves at target Survival Ratio",null,{"$f":"IF(E138=0,0,MAX((E139/E138)*E136,E136))","v":0},null,null,{"$f":"IF(H138=0,0,MAX((H139/H138)*H136,H136))","v":0}]
[null,"2. Med Adv Stress","Insurer's loading for future medical advances",null,{"$f":"Import!M6719","v":0},"Uplift for medical developments"]
[null,null,"Stress loading for future medical developments",null,{"$f":"IFERROR(MIN(MAX((1+F142)/(1+E141)-1,0),F142),0)","v":0.1},0.1,null,"N/A"]
[null,"3. Claims Inflation Stress","Effective Duration of Liabilities",null,{"$f":"Import!M6720","v":0},null,null,{"$f":"Import!M6730","v":0}]
[null,null,"Increase in Claims Inflation",null,0.04,"Approximated",null,0.04,"Approximated"]
[null,null,"GAAP Reserves after 4% Inflation stress",null,{"$f":"Import!M6721","v":0},{"$f":"E136*(1+E144)^E143","v":0},null,{"$f":"Import!M6731","v":0},{"$f":"H136*(1+H144)^H143","v":0}]
[null,"Stress Results","GAAP Reserves Ultimate Stress",null,{"$f":"IF(E136=0,0,E140*MAX((E145/E136),1)*(1+E142))","v":0},"Uplift",{"$f":"IF(E136=0,0,E146/E136-1)","v":0},{"$f":"IF(H136=0,0,H140*MAX((H145/H136),1))","v":0},"Uplift",{"$f":"IF(H136=0,0,H146/H136-1)","v":0}]
[null,null,"1 year emergence factor",null,{"$f":"Import!M6722","v":0},null,null,{"$f":"Import!M6732","v":0}]
[null,null,"GAAP Reserves 1-year Stress",null,{"$f":"IF(E136=0,0,E140*(1+E142)*(1+MAX(E145/E136-1,0)*E147))","v":0},"Uplift",{"$f":"IF(E136=0,0,E148/E136-1)","v":0},{"$f":"IF(H136=0,0,H140*(1+MAX(H145/H136-1,0)*H147))","v":0},"Uplift",{"$f":"IF(H136=0,0,H148/H136-1)","v":0}]
[]
[null,null,null,null,"UK Asbestos"]
[null,null,null,null,{"$f":"+TEXT('Company Information'!$C$3,\"YYYY\")","v":"2023"}]
[null,"1. New claims beyond 2050 stress","Yearend Net GAAP Reserves ",null,{"$f":"Import!M6737","v":0}]
[null,null,"Insurer's reserve proportion for post 2050 claims",null,{"$f":"Import!M6738","v":0},"Uplift for new claims past 2050"]
[null,null,"Stress for new claims arising beyond 2050",null,{"$f":"IFERROR(MIN(MAX((1+F154)/(1+E153/(1-E153))-1,0),F154),0)","v":0.14999999999999991},0.15]
[null,"2. Claim count stress","Stress on projected claims count up to 2050",null,0.15]
[null,"3. Med Adv Stress","Insurer's loading for future medical advances",null,{"$f":"Import!M6739","v":0},"Uplift for medical developments"]
[null,null,"Stress for future medical developments",null,{"$f":"IFERROR(MIN(MAX((1+F157)/(1+E156)-1,0),F157),0)","v":0.1},0.1]
[null,"4. Claims Inflation Stress","Effective Duration of Liabilities",null,{"$f":"Import!M6740","v":0}]
[null,null,"Increase in Claims Inflation",null,0.03,"Approximated"]
[null,null,"GAAP Reserves after 3% Inflation stress",null,{"$f":"Import!M6741","v":0},{"$f":"E152*(1+E159)^E158","v":0}]
[null,"Stress Results","GAAP Reserves Ultimate Stress",null,{"$f":"IF(E152=0,0,E152*(1+E154)*(1+E157)*(1+E155)*E160/E152)","v":0},"Uplift",{"$f":"IF(E152=0,0,E161/E152-1)","v":0}]
[null,null,"1 year emergence factor",null,{"$f":"Import!M6742","v":0}]
[null,null,"GAAP Reserves 1-year Stress",null,{"$f":"IF(E152=0,0,E152*(1+E154)*(1+E157)*(1+E155*E162)*((E160/E152-1)*E162+1))","v":0},"Uplift",{"$f":"IF(E152=0,0,E163/E152-1)","v":0}]
[]
[null,{"$f":"IF('Company Information'!$F$11=\"Class 3A\",\"E. RATING DOWNGRADE\",\"F. RATING DOWNGRADE\")","v":"E. RATING DOWNGRADE"}]
[null,"The (re)insurer is to submit a detailed disclosure on the impact of a ratings downgrade of its Bermuda legal entity or group by TWO NOTCHES OR BELOW A-, WHICHEVER IS LOWER."]
[null,{"$f":"Import!M6743","v":0}]
[]
[]
[]
[]
[]
[null,{"$f":"IF('Company Information'!$F$11=\"Class 3A\",\"F. WORST-CASE ANNUAL AGGREGATE LOSS SCENARIO\",\"G. WORST-CASE ANNUAL AGGREGATE LOSS SCENARIO\")","v":"F. WORST-CASE ANNUAL AGGREGATE LOSS SCENARIO"}]
[null,"The (re)insurer is to submit the following: (1) and either (2a) or (2b) below"]
[null,"(1) R4 above and the three largest underwriting scenarios"]
[null,null,null,"Worst-case "]
[null,"R5",null,{"$f":"E16","v":0}]
[null,"Aggregate of 3 largest net underwriting loss",null,{"$f":"IF(SUM(K81:K83,H53:H71)=0,0,IF(COUNT(K81:K83,H53:H71)=1,LARGE((H53:H71,K81:K83),1),IF(COUNT(K81:K83,H53:H71)=2,LARGE((H53:H71,K81:K83),1)+LARGE((H53:H71,K81:K83),2),LARGE((H53:H71,K81:K83),1)+LARGE((H53:H71,K81:K83),2)+LARGE((H53:H71,K81:K83),3))))","v":0}]
[null,"Total loss",null,{"$f":"SUM(D177:E178)","v":0}]
[null,"Occurrence Return period",null,{"$f":"Import!M6744","v":0}]
[null,"Relative Return period",null,{"$f":"Import!M6745","v":0},null,"Doc Name","Page Number"]
[null,"Assumptions ",null,{"$f":"HYPERLINK(\"#'Attachments'!G145\",\"Attach file\")","v":"Attach file"}]
[]
[null,"(2) Either (2a) or (2b):"]
[]
[null,"(2a) Series of loss simulations "]
[null,{"$f":"\"The (re)insurer is to run a series of loss simulations or other analysis performed related to extreme tail events that include all in-force policies for \"&TEXT('Company Information'!C3+1,\"d mmmm yyyy\")","v":"The (re)insurer is to run a series of loss simulations or other analysis performed related to extreme tail events that include all in-force policies for 1 January 2024"}]
[null,"Gross loss",null,{"$f":"Import!M6746","v":0}]
[null,"Net loss",null,{"$f":"Import!M6747","v":0},null,{"$f":"$I$6","v":0},{"$f":"IFERROR(($H$6-D189)/F189,0)","v":0}]
[null,"Risk measure",null,{"$f":"Import!M6748","v":0}]
[null,"Time horizon",null,{"$f":"Import!M6749","v":0}]
[null,"Occurrence Return period",null,{"$f":"Import!M6750","v":0}]
[null,"Relative Return period",null,{"$f":"Import!M6751","v":0}]
[null,"Proprietary / vendor model and version",null,{"$f":"Import!M6752","v":0},null,"Doc Name","Page Number"]
[null,"Assumptions",null,{"$f":"HYPERLINK(\"#'Attachments'!G145\",\"Attach file\")","v":"Attach file"}]
[]
[{"$f":"IF('Company Information'!$F$11=\"Class 3A\",\"(2) (Re)insurer specific worst-case scenario\",\"(2b) (Re)insurer specific worst-case scenario\")","v":"(2) (Re)insurer specific worst-case scenario"}]
[null,"The (re)insurer is to submit a description of its own worst-case annual aggregate loss scenario and the underlying assumptions. "]
[null,"Worst-case annual aggregate loss \nscenario description",null,{"$f":"Import!M6753","v":0}]
[]
[null,"Gross loss",null,{"$f":"Import!M6754","v":0}]
[null,"Net loss",null,{"$f":"Import!M6755","v":0}]
[null,"Occurrence Return period",null,{"$f":"Import!M6756","v":0}]
[null,"Relative Return period",null,{"$f":"Import!M6757","v":0},null,"Doc Name","Page Number"]
[null,"Underlying assumptions",null,{"$f":"HYPERLINK(\"#'Attachments'!G145\",\"Attach file\")","v":"Attach file"}]
[]
[null,{"$f":"IF('Company Information'!$F$11=\"Class 3A\",\"G. REVERSE STRESS TEST SCENARIO\",\"H. REVERSE STRESS TEST SCENARIO\")","v":"G. REVERSE STRESS TEST SCENARIO"}]
[null,"The (re)insurer is to submit key assumptions and scenarios that would cause business failure as determined by a reverse stress test scenario."]
[null,"Reverse stress test scenario description",null,{"$f":"Import!M6758","v":0}]
[]
[null,"Gross loss",null,{"$f":"Import!M6759","v":0}]
[null,"Net loss",null,{"$f":"Import!M6760","v":0}]
[null,"Occurrence Return period",null,{"$f":"Import!M6761","v":0}]
[null,"Relative Return period",null,{"$f":"Import!M6762","v":0},null,"Doc Name","Page Number"]
[null,"Underlying assumptions",null,{"$f":"HYPERLINK(\"#'Attachments'!G145\",\"Attach file\")","v":"Attach file"}]
[]
[null,"I. TERRORISM"]
[null,{"$f":"\"The (re)insurer is to submit the estimated top ten largest losses (in descending order) arising from explosion of a two-tonne bomb based upon policies in force at \"&TEXT('Company Information'!C3+1,\"d mmmm yyyy\")","v":"The (re)insurer is to submit the estimated top ten largest losses (in descending order) arising from explosion of a two-tonne bomb based upon policies in force at 1 January 2024"}]
[null,null,null,"Loss 1","Loss 2","Loss 3","Loss 4","Loss 5","Loss 6","Loss 7","Loss 8","Loss 9","Loss 10"]
[null,"State / province",null,{"$f":"Import!M6764","v":0},{"$f":"Import!M6771","v":0},{"$f":"Import!M6778","v":0},{"$f":"Import!M6785","v":0},{"$f":"Import!M6792","v":0},{"$f":"Import!M6799","v":0},{"$f":"Import!M6806","v":0},{"$f":"Import!M6813","v":0},{"$f":"Import!M6820","v":0},{"$f":"Import!M6827","v":0}]
[null,"Country",null,{"$f":"Import!M6765","v":0},{"$f":"Import!M6772","v":0},{"$f":"Import!M6779","v":0},{"$f":"Import!M6786","v":0},{"$f":"Import!M6793","v":0},{"$f":"Import!M6800","v":0},{"$f":"Import!M6807","v":0},{"$f":"Import!M6814","v":0},{"$f":"Import!M6821","v":0},{"$f":"Import!M6828","v":0}]
[null,"Total gross loss estimate",null,{"$f":"Import!M6766","v":0},{"$f":"Import!M6773","v":0},{"$f":"Import!M6780","v":0},{"$f":"Import!M6787","v":0},{"$f":"Import!M6794","v":0},{"$f":"Import!M6801","v":0},{"$f":"Import!M6808","v":0},{"$f":"Import!M6815","v":0},{"$f":"Import!M6822","v":0},{"$f":"Import!M6829","v":0}]
[null,"TRIP or other recoverable, if any",null,{"$f":"Import!M6767","v":0},{"$f":"Import!M6774","v":0},{"$f":"Import!M6781","v":0},{"$f":"Import!M6788","v":0},{"$f":"Import!M6795","v":0},{"$f":"Import!M6802","v":0},{"$f":"Import!M6809","v":0},{"$f":"Import!M6816","v":0},{"$f":"Import!M6823","v":0},{"$f":"Import!M6830","v":0}]
[null,"Reinsurance recoveries, if any",null,{"$f":"Import!M6768","v":0},{"$f":"Import!M6775","v":0},{"$f":"Import!M6782","v":0},{"$f":"Import!M6789","v":0},{"$f":"Import!M6796","v":0},{"$f":"Import!M6803","v":0},{"$f":"Import!M6810","v":0},{"$f":"Import!M6817","v":0},{"$f":"Import!M6824","v":0},{"$f":"Import!M6831","v":0}]
[null,"Total net loss estimate",null,{"$f":"Import!M6769","v":0},{"$f":"Import!M6776","v":0},{"$f":"Import!M6783","v":0},{"$f":"Import!M6790","v":0},{"$f":"Import!M6797","v":0},{"$f":"Import!M6804","v":0},{"$f":"Import!M6811","v":0},{"$f":"Import!M6818","v":0},{"$f":"Import!M6825","v":0},{"$f":"Import!M6832","v":0}]
[null,"Target location",null,{"$f":"Import!M6770","v":0},{"$f":"Import!M6777","v":0},{"$f":"Import!M6784","v":0},{"$f":"Import!M6791","v":0},{"$f":"Import!M6798","v":0},{"$f":"Import!M6805","v":0},{"$f":"Import!M6812","v":0},{"$f":"Import!M6819","v":0},{"$f":"Import!M6826","v":0},{"$f":"Import!M6833","v":0}]
[null,"Proprietary / vendor model and version",null,{"$f":"Import!M6763","v":0},null,"Doc Name","Page Number"]
[null,"All assumptions and calculations",null,{"$f":"HYPERLINK(\"#'Attachments'!G145\",\"Attach file\")","v":"Attach file"}]
[]
[null,{"$f":"IF('Company Information'!$F$11=\"Class 3A\",\"H. TECHNOLOGY RISK\",\"J. TECHNOLOGY RISK\")","v":"H. TECHNOLOGY RISK"}]
[null,"a) CYBER RISK - UNDERWRITING "]
[]
[null,"a) If the (Re)Insurer writes affirmative cyber risk policies, provide details for the policies written during the reporting period"]
[null,"b) If the (Re)Insurer does not write any affirmative cyber policies, skip item 1 and proceed to item 2 to provide details non-affirmative cyber exposures all other policies written. This section must be completed by affirmative cyber writers as well in addition to a)."]
[null,"c) For (re)insurers, unconsolidated results relate to the Bermuda standalone operations (Excluding subsidiaries) and consolidated results relates to Bermuda entity level results (Including Subsidiaries). "]
[null,"d) For (re)insurers, answering item 1 below, please specify if you are consolidated by a another Bermuda (re)insurer:"]
[null,"Results consolidated by a Bermuda (re)insurer",null,{"$f":"Import!M6834","v":"Select"}]
[null,"Name of the Parent Bermuda (re)insurer",null,{"$f":"Import!M6835","v":0}]
[]
[1,"CONSOLIDATED RESULTS (Bermuda + Subsidiaries)"]
[null,"Policy Type",null,"Direct & Facultative",null,null,"Reinsurance",null,null,"Package "]
[null,null,null,{"$f":"YEAR('Company Information'!$C$3)","v":2023},{"$f":"D242-1","v":2022},null,{"$f":"YEAR('Company Information'!$C$3)","v":2023},{"$f":"G242-1","v":2022},null,{"$f":"YEAR('Company Information'!$C$3)","v":2023},{"$f":"J242-1","v":2022}]
["(i)","Total number of cyber policies in force (units) ",null,{"$f":"Import!M6836","v":0},{"$f":"Import!O6836","v":0},null,{"$f":"Import!M6852","v":0},{"$f":"Import!O6852","v":0},null,{"$f":"Import!M6868","v":0},{"$f":"Import!O6868","v":0}]
["(ii)","Gross Exposure for Policies in force ('$000)",null,{"$f":"Import!M6837","v":0},{"$f":"Import!O6837","v":0},{"$f":"IF(D244>=D245,\"TRUE\",\"FALSE\")","v":"TRUE"},{"$f":"Import!M6853","v":0},{"$f":"Import!O6853","v":0},{"$f":"IF(G244>=G245,\"TRUE\",\"FALSE\")","v":"TRUE"},{"$f":"Import!M6869","v":0},{"$f":"Import!O6869","v":0},{"$f":"IF(J244>=J245,\"TRUE\",\"FALSE\")","v":"TRUE"}]
["(iii)","Net Exposure for Policies in force ($'000)",null,{"$f":"Import!M6838","v":0},{"$f":"Import!O6838","v":0},null,{"$f":"Import!M6854","v":0},{"$f":"Import!O6854","v":0},null,{"$f":"Import!M6870","v":0},{"$f":"Import!O6870","v":0}]
["(iv).1","GPW - Proportional ('$000)",null,{"$f":"Import!M6839","v":0},{"$f":"Import!O6839","v":0},null,{"$f":"Import!M6855","v":0},{"$f":"Import!O6855","v":0},null,{"$f":"Import!M6871","v":0},{"$f":"Import!O6871","v":0}]
["(iv).2","GPW - Non-Proportional ('$000)",null,{"$f":"Import!M6840","v":0},{"$f":"Import!O6840","v":0},null,{"$f":"Import!M6856","v":0},{"$f":"Import!O6856","v":0},null,{"$f":"Import!M6872","v":0},{"$f":"Import!O6872","v":0}]
["(iv)","Gross Premium Written ('$000)",null,{"$f":"SUM(D246:D247)","v":0},{"$f":"SUM(E246:E247)","v":0},{"$f":"IF(D248>=D249,\"TRUE\",\"FALSE\")","v":"TRUE"},{"$f":"SUM(G246:G247)","v":0},{"$f":"SUM(H246:H247)","v":0},{"$f":"IF(G248>=G249,\"TRUE\",\"FALSE\")","v":"TRUE"},{"$f":"SUM(J246:J247)","v":0},{"$f":"SUM(K246:K247)","v":0},{"$f":"IF(J248>=J249,\"TRUE\",\"FALSE\")","v":"TRUE"}]
["(v)","Net Premium Written ($'000)",null,{"$f":"Import!M6841","v":0},{"$f":"Import!O6841","v":0},null,{"$f":"Import!M6857","v":0},{"$f":"Import!O6857","v":0},null,{"$f":"Import!M6873","v":0},{"$f":"Import!O6873","v":0}]
["(vi)","Gross Loss Reserves ('$000)",null,{"$f":"Import!M6842","v":0},{"$f":"Import!O6842","v":0},{"$f":"IF(D250>=D251,\"TRUE\",\"FALSE\")","v":"TRUE"},{"$f":"Import!M6858","v":0},{"$f":"Import!O6858","v":0},{"$f":"IF(G250>=G251,\"TRUE\",\"FALSE\")","v":"TRUE"},{"$f":"Import!M6874","v":0},{"$f":"Import!O6874","v":0},{"$f":"IF(J250>=J251,\"TRUE\",\"FALSE\")","v":"TRUE"}]
["(vii)","Net Loss Reserves ($'000)",null,{"$f":"Import!M6843","v":0},{"$f":"Import!O6843","v":0},null,{"$f":"Import!M6859","v":0},{"$f":"Import!O6859","v":0},null,{"$f":"Import!M6875","v":0},{"$f":"Import!O6875","v":0}]
["(viii)","Number of Reported Claims (units) ",null,{"$f":"Import!M6844","v":0},{"$f":"Import!O6844","v":0},null,{"$f":"Import!M6860","v":0},{"$f":"Import!O6860","v":0},null,{"$f":"Import!M6876","v":0},{"$f":"Import!O6876","v":0}]
["(ix)","Paid Claims ($'000)",null,{"$f":"Import!M6845","v":0},{"$f":"Import!O6845","v":0},null,{"$f":"Import!M6861","v":0},{"$f":"Import!O6861","v":0},null,{"$f":"Import!M6877","v":0},{"$f":"Import!O6877","v":0}]
["(x)","Incurred Losses ($'000)",null,{"$f":"Import!M6846","v":0},{"$f":"Import!O6846","v":0},null,{"$f":"Import!M6862","v":0},{"$f":"Import!O6862","v":0},null,{"$f":"Import!M6878","v":0},{"$f":"Import!O6878","v":0}]
["(xi)","Approximate Average Size of Claims ($'000)",null,{"$f":"Import!M6847","v":0},{"$f":"Import!O6847","v":0},null,{"$f":"Import!M6863","v":0},{"$f":"Import!O6863","v":0},null,{"$f":"Import!M6879","v":0},{"$f":"Import!O6879","v":0}]
["(xii)","Largest Cyber Claim ($'000)",null,{"$f":"Import!M6848","v":0},{"$f":"Import!O6848","v":0},null,{"$f":"Import!M6864","v":0},{"$f":"Import!O6864","v":0},null,{"$f":"Import!M6880","v":0},{"$f":"Import!O6880","v":0}]
["(xiii)","Brief Description of largest claim (text)",null,{"$f":"Import!M6849","v":0},null,null,{"$f":"Import!M6865","v":0},null,null,{"$f":"Import!M6881","v":0}]
["xiv)","Gross Policy Limits",null,{"$f":"Import!M6850","v":0},{"$f":"Import!O6850","v":0},null,{"$f":"Import!M6866","v":0},{"$f":"Import!O6866","v":0},null,{"$f":"Import!M6882","v":0},{"$f":"Import!O6882","v":0}]
["xv)","Net Policy Limits",null,{"$f":"Import!M6851","v":0},{"$f":"Import!O6851","v":0},null,{"$f":"Import!M6867","v":0},{"$f":"Import!O6867","v":0},null,{"$f":"Import!M6883","v":0},{"$f":"Import!O6883","v":0}]
[]
[null,"UNCONSOLIDATED RESULTS (Bermuda Only)"]
[null,"Policy Type",null,"Direct & Facultative",null,null,"Reinsurance",null,null,"Package ",null,null,"Related Party Business",null,null,"Unrelated Business (third party)"]
[null,null,null,{"$f":"YEAR('Company Information'!$C$3)","v":2023},{"$f":"D263-1","v":2022},null,{"$f":"YEAR('Company Information'!$C$3)","v":2023},{"$f":"G263-1","v":2022},null,{"$f":"YEAR('Company Information'!$C$3)","v":2023},{"$f":"J263-1","v":2022},null,{"$f":"YEAR('Company Information'!$C$3)","v":2023},{"$f":"M263-1","v":2022},null,{"$f":"YEAR('Company Information'!$C$3)","v":2023},{"$f":"P263-1","v":2022}]
["(i)","Total number of cyber policies in force (units) ",null,{"$f":"Import!E6836","v":0},{"$f":"Import!G6836","v":0},null,{"$f":"Import!E6852","v":0},{"$f":"Import!G6852","v":0},null,{"$f":"Import!E6868","v":0},{"$f":"Import!G6868","v":0},null,{"$f":"Import!E6884","v":0},{"$f":"Import!G6884","v":0},null,{"$f":"Import!E6900","v":0},{"$f":"Import!G6900","v":0}]
["(ii)","Gross Exposure for Policies in force ('$000)",null,{"$f":"Import!E6837","v":0},{"$f":"Import!G6837","v":0},{"$f":"IF(D265>=D266,\"TRUE\",\"FALSE\")","v":"TRUE"},{"$f":"Import!E6853","v":0},{"$f":"Import!G6853","v":0},{"$f":"IF(G265>=G266,\"TRUE\",\"FALSE\")","v":"TRUE"},{"$f":"Import!E6869","v":0},{"$f":"Import!G6869","v":0},{"$f":"IF(J265>=J266,\"TRUE\",\"FALSE\")","v":"TRUE"},{"$f":"Import!E6885","v":0},{"$f":"Import!G6885","v":0},{"$f":"IF(M265>=M266,\"TRUE\",\"FALSE\")","v":"TRUE"},{"$f":"Import!E6901","v":0},{"$f":"Import!G6901","v":0},{"$f":"IF(P265>=P266,\"TRUE\",\"FALSE\")","v":"TRUE"}]
["(iii)","Net Exposure for Policies in force ($'000)",null,{"$f":"Import!E6838","v":0},{"$f":"Import!G6838","v":0},null,{"$f":"Import!E6854","v":0},{"$f":"Import!G6854","v":0},null,{"$f":"Import!E6870","v":0},{"$f":"Import!G6870","v":0},null,{"$f":"Import!E6886","v":0},{"$f":"Import!G6886","v":0},null,{"$f":"Import!E6902","v":0},{"$f":"Import!G6902","v":0}]
["(iv).1","GPW - Proportional ('$000)",null,{"$f":"Import!E6839","v":0},{"$f":"Import!G6839","v":0},null,{"$f":"Import!E6855","v":0},{"$f":"Import!G6855","v":0},null,{"$f":"Import!E6871","v":0},{"$f":"Import!G6871","v":0},null,{"$f":"Import!E6887","v":0},{"$f":"Import!G6887","v":0},null,{"$f":"Import!E6903","v":0},{"$f":"Import!G6903","v":0}]
["(iv).2","GPW - Non-Proportional ('$000)",null,{"$f":"Import!E6840","v":0},{"$f":"Import!G6840","v":0},null,{"$f":"Import!E6856","v":0},{"$f":"Import!G6856","v":0},null,{"$f":"Import!E6872","v":0},{"$f":"Import!G6872","v":0},null,{"$f":"Import!E6888","v":0},{"$f":"Import!G6888","v":0},null,{"$f":"Import!E6904","v":0},{"$f":"Import!G6904","v":0}]
["(iv)","Gross Premium Written ('$000)",null,{"$f":"SUM(D267:D268)","v":0},{"$f":"SUM(E267:E268)","v":0},{"$f":"IF(D269>=D270,\"TRUE\",\"FALSE\")","v":"TRUE"},{"$f":"SUM(G267:G268)","v":0},{"$f":"SUM(H267:H268)","v":0},{"$f":"IF(G269>=G270,\"TRUE\",\"FALSE\")","v":"TRUE"},{"$f":"SUM(J267:J268)","v":0},{"$f":"SUM(K267:K268)","v":0},{"$f":"IF(J269>=J270,\"TRUE\",\"FALSE\")","v":"TRUE"},{"$f":"SUM(M267:M268)","v":0},{"$f":"SUM(N267:N268)","v":0},{"$f":"IF(M269>=M270,\"TRUE\",\"FALSE\")","v":"TRUE"},{"$f":"SUM(P267:P268)","v":0},{"$f":"SUM(Q267:Q268)","v":0},{"$f":"IF(P269>=P270,\"TRUE\",\"FALSE\")","v":"TRUE"}]
["(v)","Net Premium Written ($'000)",null,{"$f":"Import!E6841","v":0},{"$f":"Import!G6841","v":0},null,{"$f":"Import!E6857","v":0},{"$f":"Import!G6857","v":0},null,{"$f":"Import!E6873","v":0},{"$f":"Import!G6873","v":0},null,{"$f":"Import!E6889","v":0},{"$f":"Import!G6889","v":0},null,{"$f":"Import!E6905","v":0},{"$f":"Import!G6905","v":0}]
["(vi)","Gross Loss Reserves ('$000)",null,{"$f":"Import!E6842","v":0},{"$f":"Import!G6842","v":0},{"$f":"IF(D271>=D272,\"TRUE\",\"FALSE\")","v":"TRUE"},{"$f":"Import!E6858","v":0},{"$f":"Import!G6858","v":0},{"$f":"IF(G271>=G272,\"TRUE\",\"FALSE\")","v":"TRUE"},{"$f":"Import!E6874","v":0},{"$f":"Import!G6874","v":0},{"$f":"IF(J271>=J272,\"TRUE\",\"FALSE\")","v":"TRUE"},{"$f":"Import!E6890","v":0},{"$f":"Import!G6890","v":0},{"$f":"IF(M271>=M272,\"TRUE\",\"FALSE\")","v":"TRUE"},{"$f":"Import!E6906","v":0},{"$f":"Import!G6906","v":0},{"$f":"IF(P271>=P272,\"TRUE\",\"FALSE\")","v":"TRUE"}]
["(vii)","Net Loss Reserves ($'000)",null,{"$f":"Import!E6843","v":0},{"$f":"Import!G6843","v":0},null,{"$f":"Import!E6859","v":0},{"$f":"Import!G6859","v":0},null,{"$f":"Import!E6875","v":0},{"$f":"Import!G6875","v":0},null,{"$f":"Import!E6891","v":0},{"$f":"Import!G6891","v":0},null,{"$f":"Import!E6907","v":0},{"$f":"Import!G6907","v":0}]
["(viii)","Number of Reported Claims (units) ",null,{"$f":"Import!E6844","v":0},{"$f":"Import!G6844","v":0},null,{"$f":"Import!E6860","v":0},{"$f":"Import!G6860","v":0},null,{"$f":"Import!E6876","v":0},{"$f":"Import!G6876","v":0},null,{"$f":"Import!E6892","v":0},{"$f":"Import!G6892","v":0},null,{"$f":"Import!E6908","v":0},{"$f":"Import!G6908","v":0}]
["(ix)","Paid Claims ($'000)",null,{"$f":"Import!E6845","v":0},{"$f":"Import!G6845","v":0},null,{"$f":"Import!E6861","v":0},{"$f":"Import!G6861","v":0},null,{"$f":"Import!E6877","v":0},{"$f":"Import!G6877","v":0},null,{"$f":"Import!E6893","v":0},{"$f":"Import!G6893","v":0},null,{"$f":"Import!E6909","v":0},{"$f":"Import!G6909","v":0}]
["(x)","Incurred Losses ($'000)",null,{"$f":"Import!E6846","v":0},{"$f":"Import!G6846","v":0},null,{"$f":"Import!E6862","v":0},{"$f":"Import!G6862","v":0},null,{"$f":"Import!E6878","v":0},{"$f":"Import!G6878","v":0},null,{"$f":"Import!E6894","v":0},{"$f":"Import!G6894","v":0},null,{"$f":"Import!E6910","v":0},{"$f":"Import!G6910","v":0}]
["(xi)","Approximate Average Size of Claims ($'000)",null,{"$f":"Import!E6847","v":0},{"$f":"Import!G6847","v":0},null,{"$f":"Import!E6863","v":0},{"$f":"Import!G6863","v":0},null,{"$f":"Import!E6879","v":0},{"$f":"Import!G6879","v":0},null,{"$f":"Import!E6895","v":0},{"$f":"Import!G6895","v":0},null,{"$f":"Import!E6911","v":0},{"$f":"Import!G6911","v":0}]
["(xii)","Largest Cyber Claim ($'000)",null,{"$f":"Import!E6848","v":0},{"$f":"Import!G6848","v":0},null,{"$f":"Import!E6864","v":0},{"$f":"Import!G6864","v":0},null,{"$f":"Import!E6880","v":0},{"$f":"Import!G6880","v":0},null,{"$f":"Import!E6896","v":0},{"$f":"Import!G6896","v":0},null,{"$f":"Import!E6912","v":0},{"$f":"Import!G6912","v":0}]
["(xiii)","Brief Description of largest claim (text)",null,{"$f":"Import!E6849","v":0},null,null,{"$f":"Import!E6865","v":0},null,null,{"$f":"Import!E6881","v":0},null,null,{"$f":"Import!E6897","v":0},null,null,{"$f":"Import!E6913","v":0}]
["xiv)","Gross Policy Limits",null,{"$f":"Import!E6850","v":0},{"$f":"Import!G6850","v":0},null,{"$f":"Import!E6866","v":0},{"$f":"Import!G6866","v":0},null,{"$f":"Import!E6882","v":0},{"$f":"Import!G6882","v":0},null,{"$f":"Import!E6898","v":0},{"$f":"Import!G6898","v":0},null,{"$f":"Import!E6914","v":0},{"$f":"Import!G6914","v":0}]
["xv)","Net Policy Limits",null,{"$f":"Import!E6851","v":0},{"$f":"Import!G6851","v":0},null,{"$f":"Import!E6867","v":0},{"$f":"Import!G6867","v":0},null,{"$f":"Import!E6883","v":0},{"$f":"Import!G6883","v":0},null,{"$f":"Import!E6899","v":0},{"$f":"Import!G6899","v":0},null,{"$f":"Import!E6915","v":0},{"$f":"Import!G6915","v":0}]
[]
[null,"GEOGRAPHIC SPECIFIC INFORMATION"]
[null,"CONSOLIDATED RESULTS (Bermuda + Subsidiaries)"]
[null,"Policy Type",null,"Direct & Facultative ",null,null,null,null,"Reinsurance ",null,null,null,null,"Package "]
[null,null,null,"# of Policies",{"$f":"YEAR('Company Information'!$C$3)&\" Cyber Premiums Written\"","v":"2023 Cyber Premiums Written"},null,{"$f":"YEAR('Company Information'!$C$3)&\" Exposure\"","v":"2023 Exposure"},null,"# of Policies",{"$f":"YEAR('Company Information'!$C$3)&\" Cyber Premiums Written\"","v":"2023 Cyber Premiums Written"},null,{"$f":"YEAR('Company Information'!$C$3)&\" Exposure\"","v":"2023 Exposure"},null,"# of Policies",{"$f":"YEAR('Company Information'!$C$3)&\" Cyber Premiums Written\"","v":"2023 Cyber Premiums Written"},null,{"$f":"YEAR('Company Information'!$C$3)&\" Exposure\"","v":"2023 Exposure"}]
[null,"Location",null,null,"Gross ('$000)","Net ('$000)","Gross ('$000)","Net ('$000)",null,"Gross ('$000)","Net ('$000)","Gross ('$000)","Net ('$000)",null,"Gross ('$000)","Net ('$000)","Gross ('$000)","Net ('$000)"]
[null,"United States (all states)",null,{"$f":"Import!M6916","v":0},{"$f":"Import!M6923","v":0},{"$f":"Import!M6930","v":0},{"$f":"Import!M6937","v":0},{"$f":"Import!M6944","v":0},{"$f":"Import!M6951","v":0},{"$f":"Import!M6958","v":0},{"$f":"Import!M6965","v":0},{"$f":"Import!M6972","v":0},{"$f":"Import!M6979","v":0},{"$f":"Import!M6986","v":0},{"$f":"Import!M6993","v":0},{"$f":"Import!M7000","v":0},{"$f":"Import!M7007","v":0},{"$f":"Import!M7014","v":0}]
[null,"Canada",null,{"$f":"Import!M6917","v":0},{"$f":"Import!M6924","v":0},{"$f":"Import!M6931","v":0},{"$f":"Import!M6938","v":0},{"$f":"Import!M6945","v":0},{"$f":"Import!M6952","v":0},{"$f":"Import!M6959","v":0},{"$f":"Import!M6966","v":0},{"$f":"Import!M6973","v":0},{"$f":"Import!M6980","v":0},{"$f":"Import!M6987","v":0},{"$f":"Import!M6994","v":0},{"$f":"Import!M7001","v":0},{"$f":"Import!M7008","v":0},{"$f":"Import!M7015","v":0}]
[null,"UK, Continental Europe",null,{"$f":"Import!M6918","v":0},{"$f":"Import!M6925","v":0},{"$f":"Import!M6932","v":0},{"$f":"Import!M6939","v":0},{"$f":"Import!M6946","v":0},{"$f":"Import!M6953","v":0},{"$f":"Import!M6960","v":0},{"$f":"Import!M6967","v":0},{"$f":"Import!M6974","v":0},{"$f":"Import!M6981","v":0},{"$f":"Import!M6988","v":0},{"$f":"Import!M6995","v":0},{"$f":"Import!M7002","v":0},{"$f":"Import!M7009","v":0},{"$f":"Import!M7016","v":0}]
[null,"Australia, New Zealand",null,{"$f":"Import!M6919","v":0},{"$f":"Import!M6926","v":0},{"$f":"Import!M6933","v":0},{"$f":"Import!M6940","v":0},{"$f":"Import!M6947","v":0},{"$f":"Import!M6954","v":0},{"$f":"Import!M6961","v":0},{"$f":"Import!M6968","v":0},{"$f":"Import!M6975","v":0},{"$f":"Import!M6982","v":0},{"$f":"Import!M6989","v":0},{"$f":"Import!M6996","v":0},{"$f":"Import!M7003","v":0},{"$f":"Import!M7010","v":0},{"$f":"Import!M7017","v":0}]
[null,"Japan",null,{"$f":"Import!M6920","v":0},{"$f":"Import!M6927","v":0},{"$f":"Import!M6934","v":0},{"$f":"Import!M6941","v":0},{"$f":"Import!M6948","v":0},{"$f":"Import!M6955","v":0},{"$f":"Import!M6962","v":0},{"$f":"Import!M6969","v":0},{"$f":"Import!M6976","v":0},{"$f":"Import!M6983","v":0},{"$f":"Import!M6990","v":0},{"$f":"Import!M6997","v":0},{"$f":"Import!M7004","v":0},{"$f":"Import!M7011","v":0},{"$f":"Import!M7018","v":0}]
[null,"Worldwide covers",null,{"$f":"Import!M6921","v":0},{"$f":"Import!M6928","v":0},{"$f":"Import!M6935","v":0},{"$f":"Import!M6942","v":0},{"$f":"Import!M6949","v":0},{"$f":"Import!M6956","v":0},{"$f":"Import!M6963","v":0},{"$f":"Import!M6970","v":0},{"$f":"Import!M6977","v":0},{"$f":"Import!M6984","v":0},{"$f":"Import!M6991","v":0},{"$f":"Import!M6998","v":0},{"$f":"Import!M7005","v":0},{"$f":"Import!M7012","v":0},{"$f":"Import!M7019","v":0}]
[null,"Other",null,{"$f":"Import!M6922","v":0},{"$f":"Import!M6929","v":0},{"$f":"Import!M6936","v":0},{"$f":"Import!M6943","v":0},{"$f":"Import!M6950","v":0},{"$f":"Import!M6957","v":0},{"$f":"Import!M6964","v":0},{"$f":"Import!M6971","v":0},{"$f":"Import!M6978","v":0},{"$f":"Import!M6985","v":0},{"$f":"Import!M6992","v":0},{"$f":"Import!M6999","v":0},{"$f":"Import!M7006","v":0},{"$f":"Import!M7013","v":0},{"$f":"Import!M7020","v":0}]
[null,"TOTAL",null,{"$f":"SUM(D287:D293)=D243","v":true},{"$f":"SUM(E287:E293)=D248","v":true},{"$f":"SUM(F287:F293)=D249","v":true},{"$f":"SUM(G287:G293)=D244","v":true},{"$f":"SUM(H287:H293)=D245","v":true},{"$f":"SUM(I287:I293)=G243","v":true},{"$f":"SUM(J287:J293)=G248","v":true},{"$f":"SUM(K287:K293)=G249","v":true},{"$f":"SUM(L287:L293)=G244","v":true},{"$f":"SUM(M287:M293)=G245","v":true},{"$f":"SUM(N287:N293)=J243","v":true},{"$f":"SUM(O287:O293)=J248","v":true},{"$f":"SUM(P287:P293)=J249","v":true},{"$f":"SUM(Q287:Q293)=J244","v":true},{"$f":"SUM(R287:R293)=J245","v":true}]
[null,"Cyber Underwriting risk appetite and limits",null,{"$f":"HYPERLINK(\"#'Attachments'!G85\",\"Attach file\")","v":"Attach file"}]
[]
[null,"UNCONSOLIDATED RESULTS (Bermuda Only)"]
[null,"Policy Type",null,"Direct & Facultative ",null,null,null,null,"Reinsurance ",null,null,null,null,"Package "]
[null,null,null,"# of Policies",{"$f":"YEAR('Company Information'!$C$3)&\" Cyber Premiums Written\"","v":"2023 Cyber Premiums Written"},null,{"$f":"YEAR('Company Information'!$C$3)&\" Exposure\"","v":"2023 Exposure"},null,"# of Policies",{"$f":"YEAR('Company Information'!$C$3)&\" Cyber Premiums Written\"","v":"2023 Cyber Premiums Written"},null,{"$f":"YEAR('Company Information'!$C$3)&\" Exposure\"","v":"2023 Exposure"},null,"# of Policies",{"$f":"YEAR('Company Information'!$C$3)&\" Cyber Premiums Written\"","v":"2023 Cyber Premiums Written"},null,{"$f":"YEAR('Company Information'!$C$3)&\" Exposure\"","v":"2023 Exposure"}]
[null,"Location",null,null,"Gross ('$000)","Net ('$000)","Gross ('$000)","Net ('$000)",null,"Gross ('$000)","Net ('$000)","Gross ('$000)","Net ('$000)",null,"Gross ('$000)","Net ('$000)","Gross ('$000)","Net ('$000)"]
[null,"United States (all states)",null,{"$f":"Import!E6916","v":0},{"$f":"Import!E6923","v":0},{"$f":"Import!E6930","v":0},{"$f":"Import!E6937","v":0},{"$f":"Import!E6944","v":0},{"$f":"Import!E6951","v":0},{"$f":"Import!E6958","v":0},{"$f":"Import!E6965","v":0},{"$f":"Import!E6972","v":0},{"$f":"Import!E6979","v":0},{"$f":"Import!E6986","v":0},{"$f":"Import!E6993","v":0},{"$f":"Import!E7000","v":0},{"$f":"Import!E7007","v":0},{"$f":"Import!E7014","v":0}]
[null,"Canada",null,{"$f":"Import!E6917","v":0},{"$f":"Import!E6924","v":0},{"$f":"Import!E6931","v":0},{"$f":"Import!E6938","v":0},{"$f":"Import!E6945","v":0},{"$f":"Import!E6952","v":0},{"$f":"Import!E6959","v":0},{"$f":"Import!E6966","v":0},{"$f":"Import!E6973","v":0},{"$f":"Import!E6980","v":0},{"$f":"Import!E6987","v":0},{"$f":"Import!E6994","v":0},{"$f":"Import!E7001","v":0},{"$f":"Import!E7008","v":0},{"$f":"Import!E7015","v":0}]
[null,"UK, Continental Europe",null,{"$f":"Import!E6918","v":0},{"$f":"Import!E6925","v":0},{"$f":"Import!E6932","v":0},{"$f":"Import!E6939","v":0},{"$f":"Import!E6946","v":0},{"$f":"Import!E6953","v":0},{"$f":"Import!E6960","v":0},{"$f":"Import!E6967","v":0},{"$f":"Import!E6974","v":0},{"$f":"Import!E6981","v":0},{"$f":"Import!E6988","v":0},{"$f":"Import!E6995","v":0},{"$f":"Import!E7002","v":0},{"$f":"Import!E7009","v":0},{"$f":"Import!E7016","v":0}]
[null,"Australia, New Zealand",null,{"$f":"Import!E6919","v":0},{"$f":"Import!E6926","v":0},{"$f":"Import!E6933","v":0},{"$f":"Import!E6940","v":0},{"$f":"Import!E6947","v":0},{"$f":"Import!E6954","v":0},{"$f":"Import!E6961","v":0},{"$f":"Import!E6968","v":0},{"$f":"Import!E6975","v":0},{"$f":"Import!E6982","v":0},{"$f":"Import!E6989","v":0},{"$f":"Import!E6996","v":0},{"$f":"Import!E7003","v":0},{"$f":"Import!E7010","v":0},{"$f":"Import!E7017","v":0}]
[null,"Japan",null,{"$f":"Import!E6920","v":0},{"$f":"Import!E6927","v":0},{"$f":"Import!E6934","v":0},{"$f":"Import!E6941","v":0},{"$f":"Import!E6948","v":0},{"$f":"Import!E6955","v":0},{"$f":"Import!E6962","v":0},{"$f":"Import!E6969","v":0},{"$f":"Import!E6976","v":0},{"$f":"Import!E6983","v":0},{"$f":"Import!E6990","v":0},{"$f":"Import!E6997","v":0},{"$f":"Import!E7004","v":0},{"$f":"Import!E7011","v":0},{"$f":"Import!E7018","v":0}]
[null,"Worldwide covers",null,{"$f":"Import!E6921","v":0},{"$f":"Import!E6928","v":0},{"$f":"Import!E6935","v":0},{"$f":"Import!E6942","v":0},{"$f":"Import!E6949","v":0},{"$f":"Import!E6956","v":0},{"$f":"Import!E6963","v":0},{"$f":"Import!E6970","v":0},{"$f":"Import!E6977","v":0},{"$f":"Import!E6984","v":0},{"$f":"Import!E6991","v":0},{"$f":"Import!E6998","v":0},{"$f":"Import!E7005","v":0},{"$f":"Import!E7012","v":0},{"$f":"Import!E7019","v":0}]
[null,"Other",null,{"$f":"Import!E6922","v":0},{"$f":"Import!E6929","v":0},{"$f":"Import!E6936","v":0},{"$f":"Import!E6943","v":0},{"$f":"Import!E6950","v":0},{"$f":"Import!E6957","v":0},{"$f":"Import!E6964","v":0},{"$f":"Import!E6971","v":0},{"$f":"Import!E6978","v":0},{"$f":"Import!E6985","v":0},{"$f":"Import!E6992","v":0},{"$f":"Import!E6999","v":0},{"$f":"Import!E7006","v":0},{"$f":"Import!E7013","v":0},{"$f":"Import!E7020","v":0}]
[null,"TOTAL",null,{"$f":"SUM(D301:D307)=D264","v":true},{"$f":"SUM(E301:E307)=D269","v":true},{"$f":"SUM(F301:F307)=D270","v":true},{"$f":"SUM(G301:G307)=D265","v":true},{"$f":"SUM(H301:H307)=D266","v":true},{"$f":"SUM(I301:I307)=G264","v":true},{"$f":"SUM(J301:J307)=G269","v":true},{"$f":"SUM(K301:K307)=G270","v":true},{"$f":"SUM(L301:L307)=G265","v":true},{"$f":"SUM(M301:M307)=G266","v":true},{"$f":"SUM(N301:N307)=J264","v":true},{"$f":"SUM(O301:O307)=J269","v":true},{"$f":"SUM(P301:P307)=J270","v":true},{"$f":"SUM(Q301:Q307)=J265","v":true},{"$f":"SUM(R301:R307)=J266","v":true}]
[null,"Cyber Underwriting risk appetite and limits",null,{"$f":"HYPERLINK(\"#'Attachments'!G85\",\"Attach file\")","v":"Attach file"}]
[]
[2,"For all other non-cyber specific (re)insurance policies issued, provide the following on a consolidated EBS basis (applicable to all insurers whether or not they write affirmative cyber policies):"]
[null,"Answering YES or NO, in which of the following lines of business has a cyber exclusion clause been included based on the policies enforced during the reporting period"]
[]
[null,null,null,null,null,"Does the company have exclusion clause in place for this LOB in its portfolio?","If NO, provide ESTIMATED Potential Gross Exposure for portfolio where no cyber exclusion clause has been included in the policy:",null,"Indicate if portfolio has predominantly claims-made (CM) or occurrence (OCC) claims trigger"]
[]
[]
[]
[null,null,null,null,null,null,{"$f":"YEAR('Company Information'!$C$3)","v":2023},{"$f":"G318-1","v":2022}]
[null,"Line of Business",null,null,null,null,"('$000)","('$000)"]
[null,"Property",null,null,null,{"$f":"Import!M7021","v":"Select"},{"$f":"Import!M7044","v":0},{"$f":"Import!M7067","v":0},{"$f":"Import!M7090","v":"Select from Drop-down"},{"$f":"Import!N7090","v":0}]
[null,"Property Non-Proportional",null,null,null,{"$f":"Import!M7022","v":"Select"},{"$f":"Import!M7045","v":0},{"$f":"Import!M7068","v":0},{"$f":"Import!M7091","v":"Select from Drop-down"},{"$f":"Import!N7091","v":0}]
[null,"Personal Accident",null,null,null,{"$f":"Import!M7023","v":"Select"},{"$f":"Import!M7046","v":0},{"$f":"Import!M7069","v":0},{"$f":"Import!M7092","v":"Select from Drop-down"},{"$f":"Import!N7092","v":0}]
[null,"Personal Accident Non-Proportional",null,null,null,{"$f":"Import!M7024","v":"Select"},{"$f":"Import!M7047","v":0},{"$f":"Import!M7070","v":0},{"$f":"Import!M7093","v":"Select from Drop-down"},{"$f":"Import!N7093","v":0}]
[null,"Aviation",null,null,null,{"$f":"Import!M7025","v":"Select"},{"$f":"Import!M7048","v":0},{"$f":"Import!M7071","v":0},{"$f":"Import!M7094","v":"Select from Drop-down"},{"$f":"Import!N7094","v":0}]
[null,"Aviation Non-Proportional",null,null,null,{"$f":"Import!M7026","v":"Select"},{"$f":"Import!M7049","v":0},{"$f":"Import!M7072","v":0},{"$f":"Import!M7095","v":"Select from Drop-down"},{"$f":"Import!N7095","v":0}]
[null,"Credit/Surety",null,null,null,{"$f":"Import!M7027","v":"Select"},{"$f":"Import!M7050","v":0},{"$f":"Import!M7073","v":0},{"$f":"Import!M7096","v":"Select from Drop-down"},{"$f":"Import!N7096","v":0}]
[null,"Credit/Surety - Non-Proportional",null,null,null,{"$f":"Import!M7028","v":"Select"},{"$f":"Import!M7051","v":0},{"$f":"Import!M7074","v":0},{"$f":"Import!M7097","v":"Select from Drop-down"},{"$f":"Import!N7097","v":0}]
[null,"Energy Offshore/Marine",null,null,null,{"$f":"Import!M7029","v":"Select"},{"$f":"Import!M7052","v":0},{"$f":"Import!M7075","v":0},{"$f":"Import!M7098","v":"Select from Drop-down"},{"$f":"Import!N7098","v":0}]
[null,"Energy offshore/Marine Non-Proportional",null,null,null,{"$f":"Import!M7030","v":"Select"},{"$f":"Import!M7053","v":0},{"$f":"Import!M7076","v":0},{"$f":"Import!M7099","v":"Select from Drop-down"},{"$f":"Import!N7099","v":0}]
[null,"US Casualty",null,null,null,{"$f":"Import!M7031","v":"Select"},{"$f":"Import!M7054","v":0},{"$f":"Import!M7077","v":0},{"$f":"Import!M7100","v":"Select from Drop-down"},{"$f":"Import!N7100","v":0}]
[null,"US Casualty Non-Proportional",null,null,null,{"$f":"Import!M7032","v":"Select"},{"$f":"Import!M7055","v":0},{"$f":"Import!M7078","v":0},{"$f":"Import!M7101","v":"Select from Drop-down"},{"$f":"Import!N7101","v":0}]
[null,"US Professional",null,null,null,{"$f":"Import!M7033","v":"Select"},{"$f":"Import!M7056","v":0},{"$f":"Import!M7079","v":0},{"$f":"Import!M7102","v":"Select from Drop-down"},{"$f":"Import!N7102","v":0}]
[null,"US Professional Non-Proportional",null,null,null,{"$f":"Import!M7034","v":"Select"},{"$f":"Import!M7057","v":0},{"$f":"Import!M7080","v":0},{"$f":"Import!M7103","v":"Select from Drop-down"},{"$f":"Import!N7103","v":0}]
[null,"US Specialty",null,null,null,{"$f":"Import!M7035","v":"Select"},{"$f":"Import!M7058","v":0},{"$f":"Import!M7081","v":0},{"$f":"Import!M7104","v":"Select from Drop-down"},{"$f":"Import!N7104","v":0}]
[null,"US Specialty Non-Proportional",null,null,null,{"$f":"Import!M7036","v":"Select"},{"$f":"Import!M7059","v":0},{"$f":"Import!M7082","v":0},{"$f":"Import!M7105","v":"Select from Drop-down"},{"$f":"Import!N7105","v":0}]
[null,"International Motor",null,null,null,{"$f":"Import!M7037","v":"Select"},{"$f":"Import!M7060","v":0},{"$f":"Import!M7083","v":0},{"$f":"Import!M7106","v":"Select from Drop-down"},{"$f":"Import!N7106","v":0}]
[null,"International Motor Non-Proportional",null,null,null,{"$f":"Import!M7038","v":"Select"},{"$f":"Import!M7061","v":0},{"$f":"Import!M7084","v":0},{"$f":"Import!M7107","v":"Select from Drop-down"},{"$f":"Import!N7107","v":0}]
[null,"International Casualty Non-Motor",null,null,null,{"$f":"Import!M7039","v":"Select"},{"$f":"Import!M7062","v":0},{"$f":"Import!M7085","v":0},{"$f":"Import!M7108","v":"Select from Drop-down"},{"$f":"Import!N7108","v":0}]
[null,"International Casualty Non-Motor Non-Proportional",null,null,null,{"$f":"Import!M7040","v":"Select"},{"$f":"Import!M7063","v":0},{"$f":"Import!M7086","v":0},{"$f":"Import!M7109","v":"Select from Drop-down"},{"$f":"Import!N7109","v":0}]
[null,"Retro Property",null,null,null,{"$f":"Import!M7041","v":"Select"},{"$f":"Import!M7064","v":0},{"$f":"Import!M7087","v":0},{"$f":"Import!M7110","v":"Select from Drop-down"},{"$f":"Import!N7110","v":0}]
[null,"Structured/Finite reinsurance",null,null,null,{"$f":"Import!M7042","v":"Select"},{"$f":"Import!M7065","v":0},{"$f":"Import!M7088","v":0},{"$f":"Import!M7111","v":"Select from Drop-down"},{"$f":"Import!N7111","v":0}]
[null,"Health",null,null,null,{"$f":"Import!M7043","v":"Select"},{"$f":"Import!M7066","v":0},{"$f":"Import!M7089","v":0},{"$f":"Import!M7112","v":"Select from Drop-down"},{"$f":"Import!N7112","v":0}]
[null,"TOTAL",null,null,null,null,{"$f":"SUM(G320:G342)","v":0},{"$f":"SUM(H320:H342)","v":0}]
[]
[3,"BMA Prescribed Cyber Stress Scenarios for insurers writing affirmative cyber covers or those that have material non-affirmative cyber exposures"]
[null,"Assume cyber underwriting scenarios are generated by a perpetrator that is not a nation state and that these scenarios do not trigger any cyber war or other similar exclusions"]
[null,"For reinsurers, please calculate separately on the basis that these attacks are deemed both as one event and as ten separate events, returning whichever causes the largest net loss."]
[null,"For the purpose of these scenarios, we define Materiality to be either one the following metrics:\n1. Affirmative Cyber GWP represents 15% or more of the total GWP for the current year\n2. Gross estimated affirmative cyber loss accounts for 10% of the current capital and surplus (C&S)\n3. Gross estimated non-affirmative cyber loss accounts for 5% of the current C&S. \n4. Cyber-related loss events (either arising from affirmative cyber policy or non-affirmative policy responding to a cyber loss event) constitute 15% of the total losses incurred for the most recent year end\n"]
[]
[]
[]
[]
[null,null,null,"Total Estimated Gross Loss (000's)","Total Estimated Net Loss (000's)","Gross loss - affirmative cyber cover (000's)"," Net loss - affirmative cyber cover (000's)","Cyber Gross Premium Written (000's)","Cyber Net Premium Written (000's)","Occurrence Return Period ","Proprietary/ Vendor Model Used & Version (if applicable)","Assumptions Used+ Other supporting documents","Potential Management Action/mitigation plans to be taken post-stress scenario"]
[null,1,"Cloud outage",{"$f":"F354+E366","v":0},{"$f":"G354+F366","v":0},{"$f":"Import!M7113","v":0},{"$f":"Import!M7116","v":0},{"$f":"Import!M7119","v":0},{"$f":"Import!M7122","v":0},{"$f":"Import!M7125","v":0},{"$f":"Import!M7128","v":0},{"$f":"HYPERLINK(\"#'Attachments'!G85\",\"Attach file\")","v":"Attach file"},"Attach file"]
[null,2,"Ransomware",{"$f":"F355+G366","v":0},{"$f":"G355+H366","v":0},{"$f":"Import!M7114","v":0},{"$f":"Import!M7117","v":0},{"$f":"Import!M7120","v":0},{"$f":"Import!M7123","v":0},{"$f":"Import!M7126","v":0},{"$f":"Import!M7129","v":0},"Attach file","Attach file"]
[null,3,"Data Breach",{"$f":"F356+I366","v":0},{"$f":"G356+J366","v":0},{"$f":"Import!M7115","v":0},{"$f":"Import!M7118","v":0},{"$f":"Import!M7121","v":0},{"$f":"Import!M7124","v":0},{"$f":"Import!M7127","v":0},{"$f":"Import!M7130","v":0},"Attach file","Attach file"]
[]
[null,"Summary of Non-affirmative cyber exposure per stress scenario",null,null,"1. Cloud Outage",null,"2. Ransomware",null,"3. Data Breach"]
[null,"Line of Business",null,null,"Gross loss - non-affirmative (000's)","Net loss - non-affirmative (000's)","Gross loss - non-affirmative (000's)","Net loss - non-affirmative (000's)","Gross loss - non-affirmative (000's)","Net loss - non-affirmative (000's)"]
[null,"1. Crime ",null,null,{"$f":"Import!M7131","v":0},{"$f":"Import!M7137","v":0},{"$f":"Import!M7143","v":0},{"$f":"Import!M7149","v":0},{"$f":"Import!M7155","v":0},{"$f":"Import!M7161","v":0}]
[null,"2. E&O policies",null,null,{"$f":"Import!M7132","v":0},{"$f":"Import!M7138","v":0},{"$f":"Import!M7144","v":0},{"$f":"Import!M7150","v":0},{"$f":"Import!M7156","v":0},{"$f":"Import!M7162","v":0}]
[null,"3. Technology E&O ",null,null,{"$f":"Import!M7133","v":0},{"$f":"Import!M7139","v":0},{"$f":"Import!M7145","v":0},{"$f":"Import!M7151","v":0},{"$f":"Import!M7157","v":0},{"$f":"Import!M7163","v":0}]
[null,"4. D&O ",null,null,{"$f":"Import!M7134","v":0},{"$f":"Import!M7140","v":0},{"$f":"Import!M7146","v":0},{"$f":"Import!M7152","v":0},{"$f":"Import!M7158","v":0},{"$f":"Import!M7164","v":0}]
[null,"5. GL / failure to supply ",null,null,{"$f":"Import!M7135","v":0},{"$f":"Import!M7141","v":0},{"$f":"Import!M7147","v":0},{"$f":"Import!M7153","v":0},{"$f":"Import!M7159","v":0},{"$f":"Import!M7165","v":0}]
[null,"6. Other policies that may respond to the stress scenario",null,null,{"$f":"Import!M7136","v":0},{"$f":"Import!M7142","v":0},{"$f":"Import!M7148","v":0},{"$f":"Import!M7154","v":0},{"$f":"Import!M7160","v":0},{"$f":"Import!M7166","v":0}]
[null,"Total",null,null,{"$f":"SUM(E360:E365)","v":0},{"$f":"SUM(F360:F365)","v":0},0,0,0,0]
[]
[4,"(Re)insurer specific/own cyber stress scenario (for those that write affirmative cyber coverage) on a consolidated basis: "]
[null,"The (re)insurer is to submit a description of its own cyber risk worst-case annual aggregate loss scenario and the underlying assumptions. "]
[null,"Worst-case annual aggregate loss \nscenario description",null,{"$f":"Import!M7167","v":0}]
[]
[null,"Gross policy limits",null,{"$f":"Import!M7168","v":0}]
[null,"Net Policy limits",null,{"$f":"Import!M7169","v":0}]
[null,"Gross loss ('$000)",null,{"$f":"Import!M7170","v":0}]
[null,"Net loss ('$000)",null,{"$f":"Import!M7171","v":0}]
[null,"Occurrence Return period",null,{"$f":"Import!M7172","v":0}]
[null,"Relative Return period",null,{"$f":"Import!M7173","v":0}]
[null,"Underlying assumptions:",null,{"$f":"HYPERLINK(\"#'Attachments'!G145\",\"Attach file\")","v":"Attach file"}]
[]
[null,"b) TECHNOLOGY RISK - (RE)INSURER OWN/OPERATIONAL CYBERSECURITY AND RESILIENCE CAPABILITIES  "]
[null,"Technology Risk Guidance"]
[]
[null,"Technology Risk is a key enterprise risk that entities in the financial sectors regulated by the Authority must manage. The questionnaire below is designed to assess Technology Risk, including Information Security, Data Protection and IT or Cyber Security. The Authority expects that the board of directors of all licensed entities will have evaluated the aforementioned risks. These risks should be managed as part of an overall Enterprise Risk Management Process. This assessment is designed to assess Technology Risk controls. The IT or Cyber Security controls are grounded in the \"National Institute of Standards and Technology Cybersecurity Framework\" (NIST). The assessment focuses on several areas, to include: governance, policies and procedures, ongoing training, critical/sensitive asset identification, protective measures, detection of anomalous activity, documented incident response plans, and effective business recovery processes. "]
[]
[]
[null,"The Authority recognizes that there is no “one size fits all” approach to addressing these risks, as specific business circumstances may vary greatly from entity to entity. Each entity must assess their risks, create prudent policies and procedures to mitigate known risks, and ensure that the organization is properly trained and equipped.\n"]
[]
[]
[null,"Select one response from the drop-down list. Where required/applicable, attach the relevant document indicating the document name and identifying the applicable page numbers"]
[]
[null,"SECTION A - BUSINESS SUMMARY QUESTIONS"]
[null,"Geographical details",null,null,null,null,null,null,null,null,null,"Responses",null,"Complete where prompted"]
[null,1,"Is the company headquartered in Bermuda",null,null,null,null,null,null,null,null,{"$f":"Import!E7174","v":"Select Yes/No"}]
[null,{"$f":"B393+1","v":2},"Number of users located in Bermuda",null,null,null,null,null,null,null,null,{"$f":"Import!E7175","v":"Select Amount"}]
[null,{"$f":"B394+1","v":3},"Number of users Globally ",null,null,null,null,null,null,null,null,{"$f":"Import!E7176","v":"Select Amount"}]
[null,4,"Do you have a data centre in Bermuda to host your servers",null,null,null,null,null,null,null,null,{"$f":"Import!E7177","v":"Select Yes/No"}]
[null,5,"Do you utilize a cloud hosting company to host your servers",null,null,null,null,null,null,null,null,{"$f":"Import!E7178","v":"Select Yes/No"}]
[null,6,"Does the organization have cybersecurity insurance coverage (i.e. to cover internal risk from security incidents)",null,null,null,null,null,null,null,null,{"$f":"Import!E7179","v":"Select Yes/No"}]
[null,"Is the following data type stored/processed"]
[null,{"$f":"B398+1","v":7},"Do you collect/store/process personally identifiable information (PII) of your customers? examples include but are not limited to: customer name, email address, social security number",null,null,null,null,null,null,null,null,{"$f":"Import!E7180","v":"Select Yes/No"}]
[null,{"$f":"B400+1","v":8},"Payment card data (i.e. credit/debit card)",null,null,null,null,null,null,null,null,{"$f":"Import!E7181","v":"Select Yes/No"}]
[null,{"$f":"B401+1","v":9},"Is customer PII collected/stored/processed by this entity on behalf of other entities ",null,null,null,null,null,null,null,null,{"$f":"Import!E7182","v":"Select Yes/No"}]
[null,"Are the following internet facing services in place "]
[null,{"$f":"B402+1","v":10},"Brochureware (static content only)",null,null,null,null,null,null,null,null,{"$f":"Import!E7183","v":"Select Yes/No"}]
[null,{"$f":"B404+1","v":11},"Web applications",null,null,null,null,null,null,null,null,{"$f":"Import!E7184","v":"Select Yes/No"}]
[null,12,"Web applications that process (query, reference, capture, store, transmit) personal data or payment card data ",null,null,null,null,null,null,null,null,{"$f":"Import!E7185","v":"Select Yes/No"}]
[null,"Roles & Responsibilities",null,null,null,null,null,null,null,null,null,null,null,{"$f":"Import!E7191","v":"Confirm role holder's name"}]
[null,{"$f":"B406+1","v":13},"Is there a designated IT Risk Manager, if not which job title holds this responsibility",null,null,null,null,null,null,null,null,{"$f":"Import!E7186","v":"Select Yes/No"},null,{"$f":"Import!E7187","v":"Confirm role holder's name"}]
[null,{"$f":"B408+1","v":14},"Is there a designated IT Security Manager, if not which job title holds this responsibility",null,null,null,null,null,null,null,null,{"$f":"Import!E7188","v":"Select Yes/No"},null,{"$f":"Import!E7189","v":"Confirm role holder's name"}]
[null,{"$f":"B409+1","v":15},"Is there a designated IT Disaster Recovery Manager, if not which job title holds this responsibility",null,null,null,null,null,null,null,null,{"$f":"Import!E7190","v":"Select Yes/No"},null,{"$f":"Import!E7191","v":"Confirm role holder's name"}]
[null,{"$f":"B410+1","v":16},"Is there a designated Business Continuity Manager (BCP) in place, if not which job title holds this responsibility",null,null,null,null,null,null,null,null,{"$f":"Import!E7192","v":"Select Yes/No"},null,{"$f":"Import!E7193","v":"Confirm role holder's name"}]
[null,{"$f":"B411+1","v":17},"Does the organization have a designated Data Privacy Officer",null,null,null,null,null,null,null,null,{"$f":"Import!E7194","v":"Select Yes/No"},null,{"$f":"Import!E7195","v":"Confirm role holder's name"}]
[null,{"$f":"B412+1","v":18},"Is there an annual IT audit plan in place i.e. detailing any IT audit activity for the year ",null,null,null,null,null,null,null,null,{"$f":"Import!E7196","v":"Select Yes/No"},null,{"$f":"Import!E7197","v":"Date of last internal/external IT audit"}]
[]
[null,"SECTION B - NIST CONTROL SUMMARY - Answer YES/NO"]
[null,"Identify",null,null,null,null,null,null,null,null,null,"Responses"]
[null,1,"Is there a Cyber Risk Management Programme in place (i.e. assessing all IT risk to include IT Security Risk)",null,null,null,null,null,null,null,null,{"$f":"Import!E7198","v":"Select Yes/No"}]
[null,{"$f":"B417+1","v":2},"Is the status of the Cyber Risk Management Programme communicated to the Senior Mgt. team & the Board of Directors on a regular basis",null,null,null,null,null,null,null,null,{"$f":"Import!E7199","v":"Select Yes/No"}]
[null,3,"Has a Cyber Risk Policy (or Cyber Security Policy) been approved by the Board and is annually updated",null,null,null,null,null,null,null,null,{"$f":"Import!E7200","v":"Select Yes/No"},null,"Specify name of relevant document"]
[null,4,"Are the roles and responsibilities of each of the three lines of defence clearly defined",null,null,null,null,null,null,null,null,{"$f":"Import!E7201","v":"Select Yes/No"}]
[null,5,"Has the organization performed an assessment of compliance against Data Protection regulatory requirements ",null,null,null,null,null,null,null,null,{"$f":"Import!E7202","v":"Select Yes/No"}]
[null,6,"Asset Management - are physical devices, information systems, and data within the organization inventoried",null,null,null,null,null,null,null,null,{"$f":"Import!E7203","v":"Select Yes/No"}]
[null,7,"Has the organization classified all data ",null,null,null,null,null,null,null,null,{"$f":"Import!E7204","v":"Select Yes/No"}]
[null,8,"Has a third party security risk assessment been completed during the past year? i.e. to assess IT risks arising from third parties",null,null,null,null,null,null,null,null,{"$f":"Import!E7205","v":"Select Yes/No"}]
[null,"Protect"]
[null,9,"Is data that is classified as critical, encrypted in transit and at rest  ",null,null,null,null,null,null,null,null,{"$f":"Import!E7206","v":"Select Yes/No"}]
[null,{"$f":"B426+1","v":10},"Is there a formal process to ensure maintenance of software and hardware i.e. patching & managing end of life technologies ",null,null,null,null,null,null,null,null,{"$f":"Import!E7207","v":"Select Yes/No"}]
[null,11,"Is there a Logical Access Management Standard defining how systems access is verified, managed, revoked, and audited ",null,null,null,null,null,null,null,null,{"$f":"Import!E7208","v":"Select Yes/No"},null,"Specify name of relevant document"]
[null,12,"Do all staff complete cybersecurity training annually",null,null,null,null,null,null,null,null,{"$f":"Import!E7209","v":"Select Yes/No"},null,"Specify name of relevant document"]
[null,13,"Has a penetration test been completed in the last year",null,null,null,null,null,null,null,null,{"$f":"Import!E7210","v":"Select Yes/No"}]
[null,14,"Has the company segregated the enterprise network into multiple, separate trust zones",null,null,null,null,null,null,null,null,{"$f":"Import!E7211","v":"Select Yes/No"}]
[null,15,"Is there a process detailing IT service management controls i.e. change, release & configuration management",null,null,null,null,null,null,null,null,{"$f":"Import!E7212","v":"Select Yes/No"},null,"Specify name of relevant document"]
[null,16,"Does the company document and enforce security configuration standards of all network devices",null,null,null,null,null,null,null,null,{"$f":"Import!E7213","v":"Select Yes/No"}]
[null,"Detect"]
[null,{"$f":"B433+1","v":17},"Is there a process enabling the review of threat intelligence & vulnerability alerting data",null,null,null,null,null,null,null,null,{"$f":"Import!E7214","v":"Select Yes/No"}]
[null,{"$f":"B435+1","v":18},"Is there a process in place to monitor information systems and assets to identify cybersecurity events ",null,null,null,null,null,null,null,null,{"$f":"Import!E7215","v":"Select Yes/No"}]
[null,19,"The company centrally stores & archives security event logs",null,null,null,null,null,null,null,null,{"$f":"Import!E7216","v":"Select Yes/No"}]
[null,"Respond"]
[null,{"$f":"B437+1","v":20},"Is there a documented security incident response plan in place, including internal & external communications & crisis management ",null,null,null,null,null,null,null,null,{"$f":"Import!E7217","v":"Select Yes/No"},null,"Specify name of relevant document"]
[null,{"$f":"B439+1","v":21},"In the event of a major incident, is the company contracted to a \"4th line\" IT security expert service (for example a Managed Security Services Provider - MSSP)  ",null,null,null,null,null,null,null,null,{"$f":"Import!E7218","v":"Select Yes/No"}]
[null,"Recover"]
[null,{"$f":"B440+1","v":22},"Has a test of the Business Continuity and IT Disaster Recovery plans been performed during the past 12 months ",null,null,null,null,null,null,null,null,{"$f":"Import!E7219","v":"Select Yes/No"}]
[null,{"$f":"B442+1","v":23},"Has the organization been subject to a significant cyber incident during the past 12 months",null,null,null,null,null,null,null,null,{"$f":"Import!E7220","v":"Select Yes/No"}]
[]
[null,"SECTION C - Technical Security Controls - Answer YES/NO"]
[null,"Technical controls summary"]
[null,1,"Antivirus software is installed on all Microsoft Operating System endpoints",null,null,null,null,null,null,null,null,{"$f":"Import!E7221","v":"Select Yes/No"}]
[null,{"$f":"B447+1","v":2},"Is there an endpoint Advanced Persistent Threat (APT) control in place ",null,null,null,null,null,null,null,null,{"$f":"Import!E7222","v":"Select Yes/No"}]
[null,3,"Are Data Loss Prevention (DLP) controls in place i.e.: to prevent unauthorized data leaving the enterprise\n\n",null,null,null,null,null,null,null,null,{"$f":"Import!E7223","v":"Select Yes/No"}]
[null,4,"Is INTERNAL vulnerability scanning conducted (& what is the frequency)",null,null,null,null,null,null,null,null,{"$f":"Import!E7224","v":"Select Yes/No"},null,{"$f":"Import!E7225","v":"Select Frequency"}]
[null,{"$f":"B450+1","v":5},"Is EXTERNAL vulnerability scanning conducted (& what is the frequency)",null,null,null,null,null,null,null,null,{"$f":"Import!E7226","v":"Select Yes/No"},null,{"$f":"Import!E7227","v":"Select Frequency"}]
[null,{"$f":"B451+1","v":6},"Are there regular (6 monthly minimum) firewall ruleset reviews",null,null,null,null,null,null,null,null,{"$f":"Import!E7228","v":"Select Yes/No"}]
[null,7,"Is there a network perimeter Intrusion Detection or Prevention (IDS/IPS) control",null,null,null,null,null,null,null,null,{"$f":"Import!E7229","v":"Select Yes/No"}]
[null,8,"Is there DDOS defence in place for internet gateways",null,null,null,null,null,null,null,null,{"$f":"Import!E7230","v":"Select Yes/No"}]
[]
[null,null,null,null,null,null,null,null,null,null,null,null,null,null,null,null,"Select all from drop down list"]
[null,null,null,null,null,null,null,null,null,null,null,null,null,null,null,null,"PCI - payment Card Industry Standard"]
[null,null,null,null,null,null,null,null,null,null,null,null,null,null,null,null,"GDPR - General Data Protection Regulation "]
[null,null,null,null,null,null,null,null,null,null,null,null,null,null,null,null,"EU U.S. - Privacy Shield Framework "]
[null,null,null,null,null,null,null,null,null,null,null,null,null,null,null,null,"PIPA - Personal Information Privacy Act"]
[null,null,null,null,null,null,null,null,null,null,null,null,null,null,null,null,"HIPAA - Health Insurance Portability and Accountability Act"]
[null,null,null,null,null,null,null,null,null,null,null,null,null,null,null,null,"PIPEDA - Federal Personal Information Protection and Electronic Documents Act"]
[null,null,null,null,null,null,null,null,null,null,null,null,null,null,null,null,"SOLVENCY II"]
[null,null,null,null,null,null,null,null,null,null,null,null,null,null,null,null,"SEC - U.S. Securities and Exchange Commission"]
[null,null,null,null,null,null,null,null,null,null,null,null,null,null,null,null,"SOX - Sarbanes Oxley Act"]
[null,null,null,null,null,null,null,null,null,null,null,null,null,null,null,null,"(FISMA) Federal Information Security Management Act of 2002 "]
[null,null,null,null,null,null,null,null,null,null,null,null,null,null,null,null,"(GLBA) Gramm Leach Bliley Act"]
[null,null,null,null,null,null,null,null,null,null,null,null,null,null,null,null,"other"]
[]
[null,null,null,null,null,null,null,null,null,null,null,null,null,null,null,null,"Select all from drop down list"]
[null,null,null,null,null,null,null,null,null,null,null,null,null,null,null,null,"COBIT - Control Objectives for Information and Related Technologies"]
[null,null,null,null,null,null,null,null,null,null,null,null,null,null,null,null,"NIST - National Institute of Standards and Technology"]
[null,null,null,null,null,null,null,null,null,null,null,null,null,null,null,null,"ISO27001 - Information Security Management System "]
[null,null,null,null,null,null,null,null,null,null,null,null,null,null,null,null,"ISO27002 - Information Security Standard  "]
[null,null,null,null,null,null,null,null,null,null,null,null,null,null,null,null,"ITIL - Information Technology Infrastructure Library"]
[]
[]
[]
[]
[]
[]
[]
[]
[]
[]
[]
[]
[]
[]
[]
[]
[]
[]
[]
[]
[]
[]
[]
[]
[]
[]
[]
[]
[]
[]
[]
[]
[]
[]
[]
[null,null,"Largest Loss"]
[null,null,"UW1. ","Northeast Hurricane"]
[null,null,"UW2.","Carolinas Hurricane"]
[null,null,"UW3.","Miami-Dade Hurricane"]
[null,null,"UW4.","Pinellas Hurricane"]
[null,null,"UW5.","Gulf Windstorm (onshore)"]
[null,null,"UW6.","Gulf Windstorm (offshore)"]
[null,null,"UE1.","Los Angeles Earthquake"]
[null,null,"UE2.","San Francisco Earthquake"]
[null,null,"UE3.","New Madrid (NM) RDS"]
[null,null,"UE4.","NM Extreme Stress Scenario"]
[null,null,"IW1. ","European Windstorm"]
[null,null,"IW2.","Japanese Typhoon"]
[null,null,"IE1.","Japanese Earthquake"]
[null,null,"A1.","Aerospace/ Aviation Event"]
[null,null,"M1.","Marine Collision in Prince William"]
[null,null,"M2.","Major Cruise Vessel Incident"]
[null,null,"N1.","US Oil Spill"]
[null,null,"N2.","US Tornadoes"]
[null,null,"N3.","Australian Flooding"]
[null,null,"N4.","Australian Wildfires"]
[null,null,null,"Largest Loss",null,null,null,null,{"$f":"MAX(F53:F70)","v":0}]
[]
[null,null,"UW1. ","Northeast Hurricane",null,null,null,null,{"$f":"IF($I$532=F53,0,F53)","v":0}]
[null,null,"UW2.","Carolinas Hurricane",null,null,null,null,{"$f":"IF($I$532=F54,0,F54)","v":0}]
[null,null,"UW3.","Miami-Dade Hurricane",null,null,null,null,{"$f":"IF($I$532=F55,0,F55)","v":0}]
[null,null,"UW4.","Pinellas Hurricane",null,null,null,null,{"$f":"IF($I$532=F56,0,F56)","v":0}]
[null,null,"UW5.","Gulf Windstorm (onshore)",null,null,null,null,{"$f":"IF($I$532=F57,0,F57)","v":0}]
[null,null,"UW6.","Gulf Windstorm (offshore)"]
[null,null,"UE1.","Los Angeles Earthquake",null,null,null,null,{"$f":"IF($I$532=F58,0,F58)","v":0}]
[null,null,"UE2.","San Francisco Earthquake",null,null,null,null,{"$f":"IF($I$532=F59,0,F59)","v":0}]
[null,null,"UE3.","New Madrid (NM) RDS",null,null,null,null,{"$f":"IF($I$532=F60,0,F60)","v":0}]
[null,null,"UE4.","NM Extreme Stress Scenario"]
[null,null,"IW1. ","European Windstorm",null,null,null,null,{"$f":"IF($I$532=F61,0,F61)","v":0}]
[null,null,"IW2.","Japanese Typhoon",null,null,null,null,0]
[null,null,"IE1.","Japanese Earthquake",null,null,null,null,0]
[null,null,"A1.","Aerospace/ Aviation Event",null,null,null,null,0]
[null,null,"M1.","Marine Collision in Prince William",null,null,null,null,0]
[null,null,"M2.","Major Cruise Vessel Incident",null,null,null,null,0]
[null,null,"N1.","US Oil Spill",null,null,null,null,0]
[null,null,"N2.","US Tornadoes",null,null,null,null,0]
[null,null,"N3.","Australian Flooding",null,null,null,null,0]
[null,null,"N4.","Australian Wildfires",null,null,null,null,0]
[null,null,null,"2nd Largest Loss",null,null,null,null,{"$f":"MAX(I534:I553)","v":0}]
[]
[null,null,"UW1. ","Northeast Hurricane",null,null,null,null,{"$f":"IF($I$554=I534,0,I534)","v":0}]
[null,null,"UW2.","Carolinas Hurricane",null,null,null,null,{"$f":"IF($I$554=I535,0,I535)","v":0}]
[null,null,"UW3.","Miami-Dade Hurricane",null,null,null,null,0]
[null,null,"UW4.","Pinellas Hurricane",null,null,null,null,0]
[null,null,"UW5.","Gulf Windstorm (onshore)",null,null,null,null,0]
[null,null,"UW6.","Gulf Windstorm (offshore)",null,null,null,null,0]
[null,null,"UE1.","Los Angeles Earthquake",null,null,null,null,0]
[null,null,"UE2.","San Francisco Earthquake",null,null,null,null,0]
[null,null,"UE3.","New Madrid (NM) RDS",null,null,null,null,0]
[null,null,"UE4.","NM Extreme Stress Scenario",null,null,null,null,0]
[null,null,"IW1. ","European Windstorm",null,null,null,null,0]
[null,null,"IW2.","Japanese Typhoon",null,null,null,null,0]
[null,null,"IE1.","Japanese Earthquake",null,null,null,null,0]
[null,null,"A1.","Aerospace/ Aviation Event",null,null,null,null,0]
[null,null,"M1.","Marine Collision in Prince William",null,null,null,null,0]
[null,null,"M2.","Major Cruise Vessel Incident",null,null,null,null,0]
[null,null,"N1.","US Oil Spill",null,null,null,null,0]
[null,null,"N2.","US Tornadoes",null,null,null,null,0]
[null,null,"N3.","Australian Flooding",null,null,null,null,0]
[null,null,"N4.","Australian Wildfires",null,null,null,null,0]
[null,null,null,"3rd Largest Loss",null,null,null,null,{"$f":"MAX(I556:I575)","v":0}]

{"sheet":"Schedule V(g)","index":46,"n_rows":57,"n_cols":7,"rows_kept":57,"cut":false,"hidden":false,"merged":[[0,2,0,5],[1,2,1,4],[2,2,2,5],[5,2,6,6]]}
[null,null,"SCHEDULE OF RISK MANAGEMENT - FINANCIAL STATEMENT RECONCILIATION",null,null,null,{"$f":"HYPERLINK(\"#'Index'!A1\",\"Return to Index\")","v":"Return to Index"}]
[null,null,{"$f":"'Company Information'!C7","v":"Enter Company Name"}]
[null,null,{"$f":"\"For the year ending \"&TEXT('Company Information'!C3,\"d mmmm yyyy\")","v":"For the year ending 31 December 2023"}]
[null,null,{"$f":"\"expressed in\"& IF(CONFIGURATION!$B$12>1,\" ['\"&MID(CONFIGURATION!$B$12,2,LEN(CONFIGURATION!$B$12))&\"s]\",\"\")&\" \"&'Form 1EBS'!C4","v":"expressed in ['000s] United States Dollars"},null,null,null,"SCHEDULE V(g)"]
[]
[null,null,"A reconciliation of amounts reported in total assets, total liabilities, net income, and capital and surplus comprising of any adjustments applied to the General Accepted Accounting Principles/International Financial Reporting Standards to Form 1SFS and from Form 1SFS to Form 1EBS"]
[]
[]
[null,null,"Adjustment Description","Assets","Liabilities","Net Income","Capital and Surplus"]
[null,null,"GAAP/IFRS Financial Statements ",{"$f":"Import!E7232","v":0},{"$f":"Import!E7243","v":0},{"$f":"Import!E7254","v":0},{"$f":"Import!E7265","v":0}]
[null,1,"Prepaid Expenses",{"$f":"Import!E7233","v":0},{"$f":"Import!E7244","v":0},{"$f":"Import!E7255","v":0},{"$f":"D11-E11","v":0}]
[null,{"$f":"B11+1","v":2},"Goodwill",{"$f":"Import!E7234","v":0},{"$f":"Import!E7245","v":0},{"$f":"Import!E7256","v":0},0]
[null,3,"Intangible Assets",{"$f":"Import!E7235","v":0},{"$f":"Import!E7246","v":0},{"$f":"Import!E7257","v":0},0]
[null,4,"(Enter other adjustments from Financials Statements to Form 1SFS)",{"$f":"Import!E7236","v":0},{"$f":"Import!E7247","v":0},{"$f":"Import!E7258","v":0},0]
[null,5,"(Enter other adjustments from Financials Statements to Form 1SFS)",{"$f":"Import!E7237","v":0},{"$f":"Import!E7248","v":0},{"$f":"Import!E7259","v":0},0]
[null,6,"(Enter other adjustments from Financials Statements to Form 1SFS)",{"$f":"Import!E7238","v":0},{"$f":"Import!E7249","v":0},{"$f":"Import!E7260","v":0},0]
[null,7,"(Enter other adjustments from Financials Statements to Form 1SFS)",{"$f":"Import!E7239","v":0},{"$f":"Import!E7250","v":0},{"$f":"Import!E7261","v":0},0]
[null,8,"(Enter other adjustments from Financials Statements to Form 1SFS)",{"$f":"Import!E7240","v":0},{"$f":"Import!E7251","v":0},{"$f":"Import!E7262","v":0},0]
[null,9,"(Enter other adjustments from Financials Statements to Form 1SFS)",{"$f":"Import!E7241","v":0},{"$f":"Import!E7252","v":0},{"$f":"Import!E7263","v":0},0]
[null,10,"(Enter other adjustments from Financials Statements to Form 1SFS)",{"$f":"Import!E7242","v":0},{"$f":"Import!E7253","v":0},{"$f":"Import!E7264","v":0},0]
[null,null,{"$f":"IF('Company Information'!$C$2=\"IFRS\",\"Form 1ASFS\",\"Form 1SFS\")","v":"Form 1SFS"},{"$f":"SUM(D10:D20)","v":0},{"$f":"SUM(E10:E20)","v":0},{"$f":"SUM(F10:F20)","v":0},{"$f":"SUM(G10:G20)","v":0}]
[]
[null,null,null,{"$f":"IF(D24=\"TRUE\",HYPERLINK(\"#'Form 1SFS'!M100\",\"TRUE\"),HYPERLINK(\"#'Form 1SFS'!M100\",\"FALSE\"))","v":"TRUE"},{"$f":"IF(E24=\"TRUE\",HYPERLINK(\"#'Form 1SFS'!M194\",\"TRUE\"),HYPERLINK(\"#'Form 1SFS'!M194\",\"FALSE\"))","v":"TRUE"},null,{"$f":"IF(G24=\"TRUE\",HYPERLINK(\"#'Form 1SFS'!M198\",\"TRUE\"),HYPERLINK(\"#'Form 1SFS'!M198\",\"FALSE\"))","v":"TRUE"}]
[null,null,null,{"$f":"IF('Company Information'!$C$2=\"IFRS\",IF(ROUND(('Form 1ASFS'!E88+'Form 1ASFS'!I88)-D21,0)=0,\"TRUE\",\"FALSE\"),\nIF(ROUND((IF('Form 1SFS'!M100=0,('Form 1SFS'!E100+'Form 1SFS'!I100),'Form 1SFS'!M100)-D21),0)=0,\"TRUE\",\"FALSE\"))","v":"TRUE"},{"$f":"IF('Company Information'!$C$2=\"IFRS\",IF(ROUND(('Form 1ASFS'!E138+'Form 1ASFS'!I138)-E21,0)=0,\"TRUE\",\"FALSE\"),\nIF(ROUND((IF('Form 1SFS'!M194=0,('Form 1SFS'!E194+'Form 1SFS'!I194),'Form 1SFS'!M194)-E21),0)=0,\"TRUE\",\"FALSE\"))","v":"TRUE"},null,{"$f":"IF('Company Information'!$C$2=\"IFRS\",IF(ROUND(('Form 1ASFS'!E142+'Form 1ASFS'!I142)-G21,0)=0,\"TRUE\",\"FALSE\"),\nIF(ROUND((IF('Form 1SFS'!M198=0,('Form 1SFS'!E198+'Form 1SFS'!I198),'Form 1SFS'!M198)-G21),0)=0,\"TRUE\",\"FALSE\"))","v":"TRUE"}]
[null,null,null,{"$f":"IF('Company Information'!$C$2=\"IFRS\",ROUND(('Form 1ASFS'!E88+'Form 1ASFS'!I88)-D21,0),\nROUND(IF('Form 1SFS'!M100=0,('Form 1SFS'!E100+'Form 1SFS'!I100),'Form 1SFS'!M100)-D21,0))","v":0},{"$f":"IF('Company Information'!$C$2=\"IFRS\",ROUND(('Form 1ASFS'!E138+'Form 1ASFS'!I138)-E21,0),\nROUND(IF('Form 1SFS'!M194=0,('Form 1SFS'!E194+'Form 1SFS'!I194),'Form 1SFS'!M194)-E21,0))","v":0},null,{"$f":"IF('Company Information'!$C$2=\"IFRS\",ROUND(('Form 1ASFS'!E142+'Form 1ASFS'!I142)-G21,0),\nROUND(IF('Form 1SFS'!M198=0,('Form 1SFS'!E198+'Form 1SFS'!I198),'Form 1SFS'!M198)-G21,0))","v":0}]
[]
[null,null,null,{"$f":"IF(D23=\"False\",\"Does not equal Form 1SFS Line 15\",\"\")","v":""},{"$f":"IF(E23=\"False\",\"Does not equal Form 1SFS Line 39\",\"\")","v":""},null,{"$f":"IF(G23=\"False\",\"Does not equal Form 1SFS Line 40\",\"\")","v":""}]
[]
[null,null,"Adjustment Description","Assets","Liabilities","Net Income","Capital and Surplus"]
[null,null,{"$f":"IF('Company Information'!$C$2=\"IFRS\",\"Form 1ASFS\",\"Form 1SFS\")","v":"Form 1SFS"},{"$f":"IF('Company Information'!$C$2=\"IFRS\",'Form 1ASFS'!E88+'Form 1ASFS'!I88,\nIF('Form 1SFS'!M100=0,('Form 1SFS'!E100+'Form 1SFS'!I100),'Form 1SFS'!M100))","v":0},{"$f":"IF('Company Information'!$C$2=\"IFRS\",'Form 1ASFS'!E138+'Form 1ASFS'!I138,\nIF('Form 1SFS'!M194=0,('Form 1SFS'!E194+'Form 1SFS'!I194),'Form 1SFS'!M194))","v":0},{"$f":"IF('Company Information'!$C$2=\"IFRS\",'Form 1ASFS'!E52+'Form 1ASFS'!I52,\nIF('Form 2SFS'!M115=0,('Form 2SFS'!E115+'Form 2SFS'!I115),'Form 2SFS'!M115))","v":0},{"$f":"IF('Company Information'!$C$2=\"IFRS\",'Form 1ASFS'!E142+'Form 1ASFS'!I142,\nIF('Form 1SFS'!M198=0,('Form 1SFS'!E198+'Form 1SFS'!I198),'Form 1SFS'!M198))","v":0}]
[null,1,"Gross Loss and Loss Expense Provision",{"$f":"Import!E7267","v":0},{"$f":"Import!E7286","v":0},{"$f":"Import!E7305","v":0},{"$f":"D31-E31","v":0}]
[null,{"$f":"B31+1","v":2},"Gross Premium Provisions",{"$f":"Import!E7268","v":0},{"$f":"Import!E7287","v":0},{"$f":"Import!E7306","v":0},0]
[null,3,"Reinsurance Recoverable",{"$f":"Import!E7269","v":0},{"$f":"Import!E7288","v":0},{"$f":"Import!E7307","v":0},0]
[null,4,"Risk Margin",{"$f":"Import!E7270","v":0},{"$f":"Import!E7289","v":0},{"$f":"Import!E7308","v":0},0]
[null,5,"Contingent Liabilities",{"$f":"Import!E7271","v":0},{"$f":"Import!E7290","v":0},{"$f":"Import!E7309","v":0},0]
[null,6,"Goodwill",{"$f":"Import!E7272","v":0},{"$f":"Import!E7291","v":0},{"$f":"Import!E7310","v":0},0]
[null,7,"Deferred Taxes Valuation",{"$f":"Import!E7273","v":0},{"$f":"Import!E7292","v":0},{"$f":"Import!E7311","v":0},0]
[null,8,"Quoted Investments",{"$f":"Import!E7274","v":0},{"$f":"Import!E7293","v":0},{"$f":"Import!E7312","v":0},0]
[null,9,"Unquoted Investments",{"$f":"Import!E7275","v":0},{"$f":"Import!E7294","v":0},{"$f":"Import!E7313","v":0},0]
[null,10,"Investments in affiliates",{"$f":"Import!E7276","v":0},{"$f":"Import!E7295","v":0},{"$f":"Import!E7314","v":0},0]
[null,11,"Real Estate ",{"$f":"Import!E7277","v":0},{"$f":"Import!E7296","v":0},{"$f":"Import!E7315","v":0},0]
[null,12,"Off Balance Sheet Instruments approved as statutory capital",{"$f":"Import!E7278","v":0},{"$f":"Import!E7297","v":0},{"$f":"Import!E7316","v":0},0]
[null,13,"Debt Instruments approved as statutory Capital ",{"$f":"Import!E7279","v":0},{"$f":"Import!E7298","v":0},{"$f":"Import!E7317","v":0},0]
[null,14,"Other Intangible Assets (Specify)",{"$f":"Import!E7280","v":0},{"$f":"Import!E7299","v":0},{"$f":"Import!E7318","v":0},0]
[null,15,"(Enter other adjustments from Form 1SFS to Form 1EBS)",{"$f":"Import!E7281","v":0},{"$f":"Import!E7300","v":0},{"$f":"Import!E7319","v":0},0]
[null,16,"(Enter other adjustments from Form 1SFS to Form 1EBS)",{"$f":"Import!E7282","v":0},{"$f":"Import!E7301","v":0},{"$f":"Import!E7320","v":0},0]
[null,17,"(Enter other adjustments from Form 1SFS to Form 1EBS)",{"$f":"Import!E7283","v":0},{"$f":"Import!E7302","v":0},{"$f":"Import!E7321","v":0},0]
[null,18,"(Enter other adjustments from Form 1SFS to Form 1EBS)",null,null,null,0]
[null,19,"(Enter other adjustments from Form 1SFS to Form 1EBS)",null,null,null,0]
[null,20,"(Enter other adjustments from Form 1SFS to Form 1EBS)",null,null,null,0]
[null,null,"Form 1 EBS",{"$f":"SUM(D30:D50)","v":0},{"$f":"SUM(E30:E50)","v":0},{"$f":"SUM(F30:F50)","v":0},{"$f":"SUM(G30:G50)","v":0}]
[]
[null,null,null,{"$f":"IF(D54=\"TRUE\",HYPERLINK(\"#'Form 1EBS'!F90\",\"TRUE\"),HYPERLINK(\"#'Form 1EBS'!F90\",\"FALSE\"))","v":"TRUE"},{"$f":"IF(E54=\"TRUE\",HYPERLINK(\"#'Form 1EBS'!F163\",\"TRUE\"),HYPERLINK(\"#'Form 1EBS'!F163\",\"FALSE\"))","v":"TRUE"},null,{"$f":"IF(G54=\"TRUE\",HYPERLINK(\"#'Form 1EBS'!F167\",\"TRUE\"),HYPERLINK(\"#'Form 1EBS'!F167\",\"FALSE\"))","v":"TRUE"}]
[null,null,null,{"$f":"IF(ROUND(('Form 1EBS'!F90-D51),0)=0,\"TRUE\",\"FALSE\")","v":"TRUE"},{"$f":"IF(ROUND(('Form 1EBS'!F163-E51),0)=0,\"TRUE\",\"FALSE\")","v":"TRUE"},null,{"$f":"IF(ROUND(('Form 1EBS'!F167-G51),0)=0,\"TRUE\",\"FALSE\")","v":"TRUE"}]
[null,null,null,{"$f":"ROUND('Form 1EBS'!F90-D51,0)","v":0},{"$f":"ROUND('Form 1EBS'!F163-E51,0)","v":0},null,{"$f":"ROUND('Form 1EBS'!F167-G51,0)","v":0}]
[]
[null,null,null,{"$f":"IF(D53=\"False\",\"Does not equal Form 1EBS Line 15\",\"\")","v":""},{"$f":"IF(E53=\"False\",\"Does not equal Form 1EBS Line 39\",\"\")","v":""},null,{"$f":"IF(G53=\"False\",\"Does not equal Form 1EBS Line 40\",\"\")","v":""}]

{"sheet":"Schedule V(k)","index":47,"n_rows":58,"n_cols":12,"rows_kept":58,"cut":false,"hidden":false,"merged":[]}
[null,null,"Details of Deposit Asset and Liabilities",null,null,null,null,null,null,null,null,{"$f":"HYPERLINK(\"#'Index'!A1\",\"Return to Index\")","v":"Return to Index"}]
[null,null,{"$f":"'Company Information'!C7","v":"Enter Company Name"}]
[null,null,{"$f":" TEXT('Company Information'!C3,\"d mmmm yyyy\")","v":"31 December 2023"},null,{"$f":"Import!E7343","v":0},null,"Enter Number of Rows Required",null,null,null,null,"SCHEDULE V(k)"]
[null,null,{"$f":"IF(CONFIGURATION!$B$12>1,\" ['\"&MID(CONFIGURATION!$B$12,2,LEN(CONFIGURATION!$B$12))&\"s]\",\"\")&'Form 1EBS'!C4","v":" ['000s]United States Dollars"}]
[null,null,null,null,"(A)","(A)","(B)","(C)","(D)","(E)","(F)","(G)"]
[null,null,"Name of Exposure",null,"Lines of Business Written","Assets in Trust","Other Collaterial","GPW for the Period","NPW for the Period","Limits/Maximum Exposure","Limits at \n99.0 TvaR","Unlimited Exposure Details"]
[]
[null,1,{"$f":"Import!E7344","v":0},null,{"$f":"Import!E7369","v":0},{"$f":"Import!E7394","v":0},{"$f":"Import!E7420","v":0},{"$f":"Import!E7446","v":0},{"$f":"Import!E7472","v":0},{"$f":"Import!E7498","v":0},{"$f":"Import!E7524","v":0},{"$f":"Import!E7550","v":0}]
[null,{"$f":"B8+1","v":2},{"$f":"Import!E7345","v":0},null,{"$f":"Import!E7370","v":0},{"$f":"Import!E7395","v":0},{"$f":"Import!E7421","v":0},{"$f":"Import!E7447","v":0},{"$f":"Import!E7473","v":0},{"$f":"Import!E7499","v":0},{"$f":"Import!E7525","v":0},{"$f":"Import!E7551","v":0}]
[null,{"$f":"B9+1","v":3},{"$f":"Import!E7346","v":0},null,{"$f":"Import!E7371","v":0},{"$f":"Import!E7396","v":0},{"$f":"Import!E7422","v":0},{"$f":"Import!E7448","v":0},{"$f":"Import!E7474","v":0},{"$f":"Import!E7500","v":0},{"$f":"Import!E7526","v":0},{"$f":"Import!E7552","v":0}]
[null,4,{"$f":"Import!E7347","v":0},null,{"$f":"Import!E7372","v":0},{"$f":"Import!E7397","v":0},{"$f":"Import!E7423","v":0},{"$f":"Import!E7449","v":0},{"$f":"Import!E7475","v":0},{"$f":"Import!E7501","v":0},{"$f":"Import!E7527","v":0},{"$f":"Import!E7553","v":0}]
[null,5,{"$f":"Import!E7348","v":0},null,{"$f":"Import!E7373","v":0},{"$f":"Import!E7398","v":0},{"$f":"Import!E7424","v":0},{"$f":"Import!E7450","v":0},{"$f":"Import!E7476","v":0},{"$f":"Import!E7502","v":0},{"$f":"Import!E7528","v":0},{"$f":"Import!E7554","v":0}]
[null,6,{"$f":"Import!E7349","v":0},null,{"$f":"Import!E7374","v":0},{"$f":"Import!E7399","v":0},{"$f":"Import!E7425","v":0},{"$f":"Import!E7451","v":0},{"$f":"Import!E7477","v":0},{"$f":"Import!E7503","v":0},{"$f":"Import!E7529","v":0},{"$f":"Import!E7555","v":0}]
[null,7,{"$f":"Import!E7350","v":0},null,{"$f":"Import!E7375","v":0},{"$f":"Import!E7400","v":0},{"$f":"Import!E7426","v":0},{"$f":"Import!E7452","v":0},{"$f":"Import!E7478","v":0},{"$f":"Import!E7504","v":0},{"$f":"Import!E7530","v":0},{"$f":"Import!E7556","v":0}]
[null,8,{"$f":"Import!E7351","v":0},null,{"$f":"Import!E7376","v":0},{"$f":"Import!E7401","v":0},{"$f":"Import!E7427","v":0},{"$f":"Import!E7453","v":0},{"$f":"Import!E7479","v":0},{"$f":"Import!E7505","v":0},{"$f":"Import!E7531","v":0},{"$f":"Import!E7557","v":0}]
[null,9,{"$f":"Import!E7352","v":0},null,{"$f":"Import!E7377","v":0},{"$f":"Import!E7402","v":0},{"$f":"Import!E7428","v":0},{"$f":"Import!E7454","v":0},{"$f":"Import!E7480","v":0},{"$f":"Import!E7506","v":0},{"$f":"Import!E7532","v":0},{"$f":"Import!E7558","v":0}]
[null,10,{"$f":"Import!E7353","v":0},null,{"$f":"Import!E7378","v":0},{"$f":"Import!E7403","v":0},{"$f":"Import!E7429","v":0},{"$f":"Import!E7455","v":0},{"$f":"Import!E7481","v":0},{"$f":"Import!E7507","v":0},{"$f":"Import!E7533","v":0},{"$f":"Import!E7559","v":0}]
[null,11,{"$f":"Import!E7354","v":0},null,{"$f":"Import!E7379","v":0},{"$f":"Import!E7404","v":0},{"$f":"Import!E7430","v":0},{"$f":"Import!E7456","v":0},{"$f":"Import!E7482","v":0},{"$f":"Import!E7508","v":0},{"$f":"Import!E7534","v":0},{"$f":"Import!E7560","v":0}]
[null,12,{"$f":"Import!E7355","v":0},null,{"$f":"Import!E7380","v":0},{"$f":"Import!E7405","v":0},{"$f":"Import!E7431","v":0},{"$f":"Import!E7457","v":0},{"$f":"Import!E7483","v":0},{"$f":"Import!E7509","v":0},{"$f":"Import!E7535","v":0},{"$f":"Import!E7561","v":0}]
[null,13,{"$f":"Import!E7356","v":0},null,{"$f":"Import!E7381","v":0},{"$f":"Import!E7406","v":0},{"$f":"Import!E7432","v":0},{"$f":"Import!E7458","v":0},{"$f":"Import!E7484","v":0},{"$f":"Import!E7510","v":0},{"$f":"Import!E7536","v":0},{"$f":"Import!E7562","v":0}]
[null,14,{"$f":"Import!E7357","v":0},null,{"$f":"Import!E7382","v":0},{"$f":"Import!E7407","v":0},{"$f":"Import!E7433","v":0},{"$f":"Import!E7459","v":0},{"$f":"Import!E7485","v":0},{"$f":"Import!E7511","v":0},{"$f":"Import!E7537","v":0},{"$f":"Import!E7563","v":0}]
[null,15,{"$f":"Import!E7358","v":0},null,{"$f":"Import!E7383","v":0},{"$f":"Import!E7408","v":0},{"$f":"Import!E7434","v":0},{"$f":"Import!E7460","v":0},{"$f":"Import!E7486","v":0},{"$f":"Import!E7512","v":0},{"$f":"Import!E7538","v":0},{"$f":"Import!E7564","v":0}]
[null,16,{"$f":"Import!E7359","v":0},null,{"$f":"Import!E7384","v":0},{"$f":"Import!E7409","v":0},{"$f":"Import!E7435","v":0},{"$f":"Import!E7461","v":0},{"$f":"Import!E7487","v":0},{"$f":"Import!E7513","v":0},{"$f":"Import!E7539","v":0},{"$f":"Import!E7565","v":0}]
[null,17,{"$f":"Import!E7360","v":0},null,{"$f":"Import!E7385","v":0},{"$f":"Import!E7410","v":0},{"$f":"Import!E7436","v":0},{"$f":"Import!E7462","v":0},{"$f":"Import!E7488","v":0},{"$f":"Import!E7514","v":0},{"$f":"Import!E7540","v":0},{"$f":"Import!E7566","v":0}]
[null,18,{"$f":"Import!E7361","v":0},null,{"$f":"Import!E7386","v":0},{"$f":"Import!E7411","v":0},{"$f":"Import!E7437","v":0},{"$f":"Import!E7463","v":0},{"$f":"Import!E7489","v":0},{"$f":"Import!E7515","v":0},{"$f":"Import!E7541","v":0},{"$f":"Import!E7567","v":0}]
[null,19,{"$f":"Import!E7362","v":0},null,{"$f":"Import!E7387","v":0},{"$f":"Import!E7412","v":0},{"$f":"Import!E7438","v":0},{"$f":"Import!E7464","v":0},{"$f":"Import!E7490","v":0},{"$f":"Import!E7516","v":0},{"$f":"Import!E7542","v":0},{"$f":"Import!E7568","v":0}]
[null,20,{"$f":"Import!E7363","v":0},null,{"$f":"Import!E7388","v":0},{"$f":"Import!E7413","v":0},{"$f":"Import!E7439","v":0},{"$f":"Import!E7465","v":0},{"$f":"Import!E7491","v":0},{"$f":"Import!E7517","v":0},{"$f":"Import!E7543","v":0},{"$f":"Import!E7569","v":0}]
[null,21,{"$f":"Import!E7364","v":0},null,{"$f":"Import!E7389","v":0},{"$f":"Import!E7414","v":0},{"$f":"Import!E7440","v":0},{"$f":"Import!E7466","v":0},{"$f":"Import!E7492","v":0},{"$f":"Import!E7518","v":0},{"$f":"Import!E7544","v":0},{"$f":"Import!E7570","v":0}]
[null,22,{"$f":"Import!E7365","v":0},null,{"$f":"Import!E7390","v":0},{"$f":"Import!E7415","v":0},{"$f":"Import!E7441","v":0},{"$f":"Import!E7467","v":0},{"$f":"Import!E7493","v":0},{"$f":"Import!E7519","v":0},{"$f":"Import!E7545","v":0},{"$f":"Import!E7571","v":0}]
[null,23,{"$f":"Import!E7366","v":0},null,{"$f":"Import!E7391","v":0},{"$f":"Import!E7416","v":0},{"$f":"Import!E7442","v":0},{"$f":"Import!E7468","v":0},{"$f":"Import!E7494","v":0},{"$f":"Import!E7520","v":0},{"$f":"Import!E7546","v":0},{"$f":"Import!E7572","v":0}]
[null,24,{"$f":"Import!E7367","v":0},null,{"$f":"Import!E7392","v":0},{"$f":"Import!E7417","v":0},{"$f":"Import!E7443","v":0},{"$f":"Import!E7469","v":0},{"$f":"Import!E7495","v":0},{"$f":"Import!E7521","v":0},{"$f":"Import!E7547","v":0},{"$f":"Import!E7573","v":0}]
[null,25,{"$f":"Import!E7368","v":0},null,{"$f":"Import!E7393","v":0},{"$f":"Import!E7418","v":0},{"$f":"Import!E7444","v":0},{"$f":"Import!E7470","v":0},{"$f":"Import!E7496","v":0},{"$f":"Import!E7522","v":0},{"$f":"Import!E7548","v":0},{"$f":"Import!E7574","v":0}]
[null,26]
[null,27]
[null,28]
[null,29]
[null,30]
[null,31]
[null,32]
[null,33]
[null,34]
[null,35]
[null,36]
[null,37]
[null,38]
[null,39]
[null,40]
[null,41]
[null,42]
[null,43]
[null,44]
[null,45]
[null,46]
[null,47]
[null,48]
[null,49]
[null,50]
[null,null,"TOTAL ",null,null,{"$f":"SUM(F8:F57)","v":0},0,0,0,0,0]

{"sheet":"Schedule V(l)","index":48,"n_rows":239,"n_cols":65,"rows_kept":239,"cut":false,"hidden":false,"merged":[[2,58,5,58],[1,3,1,56]]}
[null,null,"SCHEDULE OF SEGREGATED ACCOUNTS - CELL BY CELL DISCLOSURE (UNCONSOLIDATED BASIS)",null,null,null,null,null,null,null,null,null,null,null,null,null,null,null,null,null,null,null,null,null,null,null,null,null,null,null,null,null,null,null,null,null,null,null,null,null,null,null,null,null,null,null,null,null,null,null,null,null,null,null,null,null,null,null,null,null,null,null,null,null,{"$f":"HYPERLINK(\"#'Index'!A1\",\"Return to Index\")","v":"Return to Index"}]
[null,null,{"$f":"'Company Information'!C7","v":"Enter Company Name"},"Ensure that all figures are included  on a statutory basis.  Items that require a balance sheet check should be consistent with the respective Line on Form 1SFS.  Input the value from the financial statements and where  a discrepancy is noted, include a comment explaining the difference.",null,null,null,null,null,null,null,null,null,null,null,null,null,null,null,null,null,null,null,null,null,null,null,null,null,null,null,null,null,null,null,null,null,null,null,null,null,null,null,null,null,null,null,null,null,null,null,null,null,null,null,null,null,null,"SCHEDULE V(l) "]
[null,null,{"$f":" TEXT('Company Information'!C3,\"d mmmm yyyy\")","v":"31 December 2023"},null,{"$f":"Import!E7576","v":0},null,"Enter Number of Columns Required (Note only a maximum of 50 cells)",null,null,null,null,null,null,null,null,null,null,null,null,null,null,null,null,null,null,null,null,null,null,null,null,null,null,null,null,null,null,null,null,null,null,null,null,null,null,null,null,null,null,null,null,null,null,null,null,null,null,null,"Grand Total General Account and Total Cells"]
[null,null,{"$f":"IF(CONFIGURATION!$B$12>1,\" ['\"&MID(CONFIGURATION!$B$12,2,LEN(CONFIGURATION!$B$12))&\"s]\",\"\")&'Form 1EBS'!C4","v":" ['000s]United States Dollars"},null,null,null,null,null,null,null,null,null,null,null,null,null,null,null,null,null,null,null,null,null,null,null,null,null,null,null,null,null,null,null,null,null,null,null,null,null,null,null,null,null,null,null,null,null,null,null,null,null,null,null,null,null,"General",null,null,null,"Balance Sheet"]
[null,null,null,"Cell 1","Cell 2","Cell 3","Cell 4","Cell 5","Cell 6","Cell 7","Cell 8","Cell 9","Cell 10","Cell 11","Cell 12","Cell 13","Cell 14","Cell 15","Cell 16","Cell 17","Cell 18","Cell 19","Cell 20","Cell 21","Cell 22","Cell 23","Cell 24","Cell 25","Cell 26","Cell 27","Cell 28","Cell 29","Cell 30","Cell 31","Cell 32","Cell 33","Cell 34","Cell 35","Cell 36","Cell 37","Cell 38","Cell 39","Cell 40","Cell 41","Cell 42","Cell 43","Cell 44","Cell 45","Cell 46","Cell 47","Cell 48","Cell 49","Cell 50",null,"Total of Cells",null,"Account",null,null,null,"Check",null,"Difference",null,"Comment for Discrepancies Noted"]
[null,"(A)","Cell reference number",{"$f":"Import!E7577","v":0},{"$f":"Import!E7646","v":0},{"$f":"Import!E7715","v":0},{"$f":"Import!E7784","v":0},{"$f":"Import!E7853","v":0},{"$f":"Import!E7922","v":0},{"$f":"Import!E7991","v":0},{"$f":"Import!E8060","v":0},{"$f":"Import!E8129","v":0},{"$f":"Import!E8198","v":0},{"$f":"Import!E8267","v":0},{"$f":"Import!E8336","v":0},{"$f":"Import!E8405","v":0},{"$f":"Import!E8474","v":0},{"$f":"Import!E8543","v":0},{"$f":"Import!E8612","v":0},{"$f":"Import!E8681","v":0},{"$f":"Import!E8750","v":0},{"$f":"Import!E8819","v":0},{"$f":"Import!E8888","v":0},{"$f":"Import!E8957","v":0},{"$f":"Import!E9026","v":0},{"$f":"Import!E9095","v":0},{"$f":"Import!E9164","v":0},{"$f":"Import!E9233","v":0}]
[null,"(B)","Cell name",{"$f":"Import!E7578","v":0},{"$f":"Import!E7647","v":0},{"$f":"Import!E7716","v":0},{"$f":"Import!E7785","v":0},{"$f":"Import!E7854","v":0},{"$f":"Import!E7923","v":0},{"$f":"Import!E7992","v":0},{"$f":"Import!E8061","v":0},{"$f":"Import!E8130","v":0},{"$f":"Import!E8199","v":0},{"$f":"Import!E8268","v":0},{"$f":"Import!E8337","v":0},{"$f":"Import!E8406","v":0},{"$f":"Import!E8475","v":0},{"$f":"Import!E8544","v":0},{"$f":"Import!E8613","v":0},{"$f":"Import!E8682","v":0},{"$f":"Import!E8751","v":0},{"$f":"Import!E8820","v":0},{"$f":"Import!E8889","v":0},{"$f":"Import!E8958","v":0},{"$f":"Import!E9027","v":0},{"$f":"Import!E9096","v":0},{"$f":"Import!E9165","v":0},{"$f":"Import!E9234","v":0}]
[null,"(C)","Direct Insurer, Reinsurer or Both",{"$f":"Import!E7579","v":"Select Premiums Written"},{"$f":"Import!E7648","v":"Select Premiums Written"},{"$f":"Import!E7717","v":"Select Premiums Written"},{"$f":"Import!E7786","v":"Select Premiums Written"},{"$f":"Import!E7855","v":"Select Premiums Written"},{"$f":"Import!E7924","v":"Select Premiums Written"},{"$f":"Import!E7993","v":"Select Premiums Written"},{"$f":"Import!E8062","v":"Select Premiums Written"},{"$f":"Import!E8131","v":"Select Premiums Written"},{"$f":"Import!E8200","v":"Select Premiums Written"},{"$f":"Import!E8269","v":"Select Premiums Written"},{"$f":"Import!E8338","v":"Select Premiums Written"},{"$f":"Import!E8407","v":"Select Premiums Written"},{"$f":"Import!E8476","v":"Select Premiums Written"},{"$f":"Import!E8545","v":"Select Premiums Written"},{"$f":"Import!E8614","v":"Select Premiums Written"},{"$f":"Import!E8683","v":"Select Premiums Written"},{"$f":"Import!E8752","v":"Select Premiums Written"},{"$f":"Import!E8821","v":"Select Premiums Written"},{"$f":"Import!E8890","v":"Select Premiums Written"},{"$f":"Import!E8959","v":"Select Premiums Written"},{"$f":"Import!E9028","v":"Select Premiums Written"},{"$f":"Import!E9097","v":"Select Premiums Written"},{"$f":"Import!E9166","v":"Select Premiums Written"},{"$f":"Import!E9235","v":"Select Premiums Written"},"Select Premiums Written","Select Premiums Written","Select Premiums Written","Select Premiums Written","Select Premiums Written","Select Premiums Written","Select Premiums Written","Select Premiums Written","Select Premiums Written","Select Premiums Written","Select Premiums Written","Select Premiums Written","Select Premiums Written","Select Premiums Written","Select Premiums Written","Select Premiums Written","Select Premiums Written","Select Premiums Written","Select Premiums Written","Select Premiums Written","Select Premiums Written","Select Premiums Written","Select Premiums Written","Select Premiums Written","Select Premiums Written"]
[]
[null,null,"ASSETS"]
[null,"(D)","Cash and Time Deposits",{"$f":"Import!E7580","v":0},{"$f":"Import!E7649","v":0},{"$f":"Import!E7718","v":0},{"$f":"Import!E7787","v":0},{"$f":"Import!E7856","v":0},{"$f":"Import!E7925","v":0},{"$f":"Import!E7994","v":0},{"$f":"Import!E8063","v":0},{"$f":"Import!E8132","v":0},{"$f":"Import!E8201","v":0},{"$f":"Import!E8270","v":0},{"$f":"Import!E8339","v":0},{"$f":"Import!E8408","v":0},{"$f":"Import!E8477","v":0},{"$f":"Import!E8546","v":0},{"$f":"Import!E8615","v":0},{"$f":"Import!E8684","v":0},{"$f":"Import!E8753","v":0},{"$f":"Import!E8822","v":0},{"$f":"Import!E8891","v":0},{"$f":"Import!E8960","v":0},{"$f":"Import!E9029","v":0},{"$f":"Import!E9098","v":0},{"$f":"Import!E9167","v":0},{"$f":"Import!E9236","v":0},null,null,null,null,null,null,null,null,null,null,null,null,null,null,null,null,null,null,null,null,null,null,null,null,null,null,{"$f":"SUM(D11:BA11)","v":0},null,{"$f":"Import!E9302","v":0},null,{"$f":"BC11+BE11","v":0},null,{"$f":"IF(('Form 1SFS'!E100+'Form 1SFS'!I100)=0,'Form 1SFS'!M12,'Form 1SFS'!E12+'Form 1SFS'!I12)","v":0},null,{"$f":"IFERROR(ROUND(BG11-BI11,0),0)","v":0},null,{"$f":"Import!E9328","v":0}]
[null,"(E)","Quoted: Bonds and Debentures",{"$f":"Import!E7581","v":0},{"$f":"Import!E7650","v":0},{"$f":"Import!E7719","v":0},{"$f":"Import!E7788","v":0},{"$f":"Import!E7857","v":0},{"$f":"Import!E7926","v":0},{"$f":"Import!E7995","v":0},{"$f":"Import!E8064","v":0},{"$f":"Import!E8133","v":0},{"$f":"Import!E8202","v":0},{"$f":"Import!E8271","v":0},{"$f":"Import!E8340","v":0},{"$f":"Import!E8409","v":0},{"$f":"Import!E8478","v":0},{"$f":"Import!E8547","v":0},{"$f":"Import!E8616","v":0},{"$f":"Import!E8685","v":0},{"$f":"Import!E8754","v":0},{"$f":"Import!E8823","v":0},{"$f":"Import!E8892","v":0},{"$f":"Import!E8961","v":0},{"$f":"Import!E9030","v":0},{"$f":"Import!E9099","v":0},{"$f":"Import!E9168","v":0},{"$f":"Import!E9237","v":0},null,null,null,null,null,null,null,null,null,null,null,null,null,null,null,null,null,null,null,null,null,null,null,null,null,null,0]
[null,"(F)","Quoted: Equites and Other",{"$f":"Import!E7582","v":0},{"$f":"Import!E7651","v":0},{"$f":"Import!E7720","v":0},{"$f":"Import!E7789","v":0},{"$f":"Import!E7858","v":0},{"$f":"Import!E7927","v":0},{"$f":"Import!E7996","v":0},{"$f":"Import!E8065","v":0},{"$f":"Import!E8134","v":0},{"$f":"Import!E8203","v":0},{"$f":"Import!E8272","v":0},{"$f":"Import!E8341","v":0},{"$f":"Import!E8410","v":0},{"$f":"Import!E8479","v":0},{"$f":"Import!E8548","v":0},{"$f":"Import!E8617","v":0},{"$f":"Import!E8686","v":0},{"$f":"Import!E8755","v":0},{"$f":"Import!E8824","v":0},{"$f":"Import!E8893","v":0},{"$f":"Import!E8962","v":0},{"$f":"Import!E9031","v":0},{"$f":"Import!E9100","v":0},{"$f":"Import!E9169","v":0},{"$f":"Import!E9238","v":0},null,null,null,null,null,null,null,null,null,null,null,null,null,null,null,null,null,null,null,null,null,null,null,null,null,null,0]
[null,"(G)","Unquoted: Bonds, and Debentures",{"$f":"Import!E7583","v":0},{"$f":"Import!E7652","v":0},{"$f":"Import!E7721","v":0},{"$f":"Import!E7790","v":0},{"$f":"Import!E7859","v":0},{"$f":"Import!E7928","v":0},{"$f":"Import!E7997","v":0},{"$f":"Import!E8066","v":0},{"$f":"Import!E8135","v":0},{"$f":"Import!E8204","v":0},{"$f":"Import!E8273","v":0},{"$f":"Import!E8342","v":0},{"$f":"Import!E8411","v":0},{"$f":"Import!E8480","v":0},{"$f":"Import!E8549","v":0},{"$f":"Import!E8618","v":0},{"$f":"Import!E8687","v":0},{"$f":"Import!E8756","v":0},{"$f":"Import!E8825","v":0},{"$f":"Import!E8894","v":0},{"$f":"Import!E8963","v":0},{"$f":"Import!E9032","v":0},{"$f":"Import!E9101","v":0},{"$f":"Import!E9170","v":0},{"$f":"Import!E9239","v":0},null,null,null,null,null,null,null,null,null,null,null,null,null,null,null,null,null,null,null,null,null,null,null,null,null,null,0]
[null,"(H)","Investments in and Advances to Affiliates",{"$f":"Import!E7584","v":0},{"$f":"Import!E7653","v":0},{"$f":"Import!E7722","v":0},{"$f":"Import!E7791","v":0},{"$f":"Import!E7860","v":0},{"$f":"Import!E7929","v":0},{"$f":"Import!E7998","v":0},{"$f":"Import!E8067","v":0},{"$f":"Import!E8136","v":0},{"$f":"Import!E8205","v":0},{"$f":"Import!E8274","v":0},{"$f":"Import!E8343","v":0},{"$f":"Import!E8412","v":0},{"$f":"Import!E8481","v":0},{"$f":"Import!E8550","v":0},{"$f":"Import!E8619","v":0},{"$f":"Import!E8688","v":0},{"$f":"Import!E8757","v":0},{"$f":"Import!E8826","v":0},{"$f":"Import!E8895","v":0},{"$f":"Import!E8964","v":0},{"$f":"Import!E9033","v":0},{"$f":"Import!E9102","v":0},{"$f":"Import!E9171","v":0},{"$f":"Import!E9240","v":0},null,null,null,null,null,null,null,null,null,null,null,null,null,null,null,null,null,null,null,null,null,null,null,null,null,null,0]
[null,"(I)","Funds Held by Ceding Reinsurers",{"$f":"Import!E7585","v":0},{"$f":"Import!E7654","v":0},{"$f":"Import!E7723","v":0},{"$f":"Import!E7792","v":0},{"$f":"Import!E7861","v":0},{"$f":"Import!E7930","v":0},{"$f":"Import!E7999","v":0},{"$f":"Import!E8068","v":0},{"$f":"Import!E8137","v":0},{"$f":"Import!E8206","v":0},{"$f":"Import!E8275","v":0},{"$f":"Import!E8344","v":0},{"$f":"Import!E8413","v":0},{"$f":"Import!E8482","v":0},{"$f":"Import!E8551","v":0},{"$f":"Import!E8620","v":0},{"$f":"Import!E8689","v":0},{"$f":"Import!E8758","v":0},{"$f":"Import!E8827","v":0},{"$f":"Import!E8896","v":0},{"$f":"Import!E8965","v":0},{"$f":"Import!E9034","v":0},{"$f":"Import!E9103","v":0},{"$f":"Import!E9172","v":0},{"$f":"Import!E9241","v":0},null,null,null,null,null,null,null,null,null,null,null,null,null,null,null,null,null,null,null,null,null,null,null,null,null,null,0]
[null,"(J)","Other Assets",{"$f":"Import!E7586","v":0},{"$f":"Import!E7655","v":0},{"$f":"Import!E7724","v":0},{"$f":"Import!E7793","v":0},{"$f":"Import!E7862","v":0},{"$f":"Import!E7931","v":0},{"$f":"Import!E8000","v":0},{"$f":"Import!E8069","v":0},{"$f":"Import!E8138","v":0},{"$f":"Import!E8207","v":0},{"$f":"Import!E8276","v":0},{"$f":"Import!E8345","v":0},{"$f":"Import!E8414","v":0},{"$f":"Import!E8483","v":0},{"$f":"Import!E8552","v":0},{"$f":"Import!E8621","v":0},{"$f":"Import!E8690","v":0},{"$f":"Import!E8759","v":0},{"$f":"Import!E8828","v":0},{"$f":"Import!E8897","v":0},{"$f":"Import!E8966","v":0},{"$f":"Import!E9035","v":0},{"$f":"Import!E9104","v":0},{"$f":"Import!E9173","v":0},{"$f":"Import!E9242","v":0},null,null,null,null,null,null,null,null,null,null,null,null,null,null,null,null,null,null,null,null,null,null,null,null,null,null,0]
[null,null,"Total Assets",{"$f":"SUM(D11:D17)","v":0},{"$f":"SUM(E11:E17)","v":0},0,0,0,0,0,0,0,0,0,0,0,0,0,0,0,0,0,0,0,0,0,0,0,0,0,0,0,0,0,0,0,0,0,0,0,0,0,0,0,0,0,0,0,0,0,0,0,0,null,0,null,{"$f":"Import!E9303","v":0},null,{"$f":"BC18+BE18","v":0},null,{"$f":"IF(('Form 1SFS'!E100+'Form 1SFS'!I100)=0,'Form 1SFS'!M100,'Form 1SFS'!E100+'Form 1SFS'!I100)","v":0},null,{"$f":"IFERROR(ROUND(BG18-BI18,0),0)","v":0},null,{"$f":"Import!E9329","v":0}]
[]
[null,null,"LIABILITIES AND SHAREHOLDERS' EQUITY"]
[null,"(K)","Unearned Premiums",{"$f":"Import!E7587","v":0},{"$f":"Import!E7656","v":0},{"$f":"Import!E7725","v":0},{"$f":"Import!E7794","v":0},{"$f":"Import!E7863","v":0},{"$f":"Import!E7932","v":0},{"$f":"Import!E8001","v":0},{"$f":"Import!E8070","v":0},{"$f":"Import!E8139","v":0},{"$f":"Import!E8208","v":0},{"$f":"Import!E8277","v":0},{"$f":"Import!E8346","v":0},{"$f":"Import!E8415","v":0},{"$f":"Import!E8484","v":0},{"$f":"Import!E8553","v":0},{"$f":"Import!E8622","v":0},{"$f":"Import!E8691","v":0},{"$f":"Import!E8760","v":0},{"$f":"Import!E8829","v":0},{"$f":"Import!E8898","v":0},{"$f":"Import!E8967","v":0},{"$f":"Import!E9036","v":0},{"$f":"Import!E9105","v":0},{"$f":"Import!E9174","v":0},{"$f":"Import!E9243","v":0},null,null,null,null,null,null,null,null,null,null,null,null,null,null,null,null,null,null,null,null,null,null,null,null,null,null,{"$f":"SUM(D21:BA21)","v":0}]
[null,"(L)","Net Loss & Loss Expense Provisions",{"$f":"Import!E7588","v":0},{"$f":"Import!E7657","v":0},{"$f":"Import!E7726","v":0},{"$f":"Import!E7795","v":0},{"$f":"Import!E7864","v":0},{"$f":"Import!E7933","v":0},{"$f":"Import!E8002","v":0},{"$f":"Import!E8071","v":0},{"$f":"Import!E8140","v":0},{"$f":"Import!E8209","v":0},{"$f":"Import!E8278","v":0},{"$f":"Import!E8347","v":0},{"$f":"Import!E8416","v":0},{"$f":"Import!E8485","v":0},{"$f":"Import!E8554","v":0},{"$f":"Import!E8623","v":0},{"$f":"Import!E8692","v":0},{"$f":"Import!E8761","v":0},{"$f":"Import!E8830","v":0},{"$f":"Import!E8899","v":0},{"$f":"Import!E8968","v":0},{"$f":"Import!E9037","v":0},{"$f":"Import!E9106","v":0},{"$f":"Import!E9175","v":0},{"$f":"Import!E9244","v":0},null,null,null,null,null,null,null,null,null,null,null,null,null,null,null,null,null,null,null,null,null,null,null,null,null,null,{"$f":"SUM(D22:BA22)","v":0},null,{"$f":"Import!E9304","v":0},null,{"$f":"BC22+BE22","v":0},null,{"$f":"IF(('Form 1SFS'!E100+'Form 1SFS'!I100)=0,'Form 1SFS'!M124+'Form 1SFS'!M154,'Form 1SFS'!E124+'Form 1SFS'!I154)","v":0},null,{"$f":"IFERROR(ROUND(BG22-BI22,0),0)","v":0},null,{"$f":"Import!E9330","v":0}]
[null,"(M)","Other Liabilities",{"$f":"Import!E7589","v":0},{"$f":"Import!E7658","v":0},{"$f":"Import!E7727","v":0},{"$f":"Import!E7796","v":0},{"$f":"Import!E7865","v":0},{"$f":"Import!E7934","v":0},{"$f":"Import!E8003","v":0},{"$f":"Import!E8072","v":0},{"$f":"Import!E8141","v":0},{"$f":"Import!E8210","v":0},{"$f":"Import!E8279","v":0},{"$f":"Import!E8348","v":0},{"$f":"Import!E8417","v":0},{"$f":"Import!E8486","v":0},{"$f":"Import!E8555","v":0},{"$f":"Import!E8624","v":0},{"$f":"Import!E8693","v":0},{"$f":"Import!E8762","v":0},{"$f":"Import!E8831","v":0},{"$f":"Import!E8900","v":0},{"$f":"Import!E8969","v":0},{"$f":"Import!E9038","v":0},{"$f":"Import!E9107","v":0},{"$f":"Import!E9176","v":0},{"$f":"Import!E9245","v":0},null,null,null,null,null,null,null,null,null,null,null,null,null,null,null,null,null,null,null,null,null,null,null,null,null,null,{"$f":"SUM(D23:BA23)","v":0}]
[null,"(N)","Statutory Capital",{"$f":"Import!E7590","v":0},{"$f":"Import!E7659","v":0},{"$f":"Import!E7728","v":0},{"$f":"Import!E7797","v":0},{"$f":"Import!E7866","v":0},{"$f":"Import!E7935","v":0},{"$f":"Import!E8004","v":0},{"$f":"Import!E8073","v":0},{"$f":"Import!E8142","v":0},{"$f":"Import!E8211","v":0},{"$f":"Import!E8280","v":0},{"$f":"Import!E8349","v":0},{"$f":"Import!E8418","v":0},{"$f":"Import!E8487","v":0},{"$f":"Import!E8556","v":0},{"$f":"Import!E8625","v":0},{"$f":"Import!E8694","v":0},{"$f":"Import!E8763","v":0},{"$f":"Import!E8832","v":0},{"$f":"Import!E8901","v":0},{"$f":"Import!E8970","v":0},{"$f":"Import!E9039","v":0},{"$f":"Import!E9108","v":0},{"$f":"Import!E9177","v":0},{"$f":"Import!E9246","v":0},null,null,null,null,null,null,null,null,null,null,null,null,null,null,null,null,null,null,null,null,null,null,null,null,null,null,{"$f":"SUM(D24:BA24)","v":0}]
[null,"(O)","Statutory Surplus",{"$f":"Import!E7591","v":0},{"$f":"Import!E7660","v":0},{"$f":"Import!E7729","v":0},{"$f":"Import!E7798","v":0},{"$f":"Import!E7867","v":0},{"$f":"Import!E7936","v":0},{"$f":"Import!E8005","v":0},{"$f":"Import!E8074","v":0},{"$f":"Import!E8143","v":0},{"$f":"Import!E8212","v":0},{"$f":"Import!E8281","v":0},{"$f":"Import!E8350","v":0},{"$f":"Import!E8419","v":0},{"$f":"Import!E8488","v":0},{"$f":"Import!E8557","v":0},{"$f":"Import!E8626","v":0},{"$f":"Import!E8695","v":0},{"$f":"Import!E8764","v":0},{"$f":"Import!E8833","v":0},{"$f":"Import!E8902","v":0},{"$f":"Import!E8971","v":0},{"$f":"Import!E9040","v":0},{"$f":"Import!E9109","v":0},{"$f":"Import!E9178","v":0},{"$f":"Import!E9247","v":0},null,null,null,null,null,null,null,null,null,null,null,null,null,null,null,null,null,null,null,null,null,null,null,null,null,null,{"$f":"SUM(D25:BA25)","v":0}]
[null,null,"Total Statutory Capital & Surplus",{"$f":"D24+D25","v":0},{"$f":"E24+E25","v":0},0,0,0,0,0,0,0,0,0,0,0,0,0,0,0,0,0,0,0,0,0,0,0,0,0,0,0,0,0,0,0,0,0,0,0,0,0,0,0,0,0,0,0,0,0,0,0,0,null,{"$f":"BC24+BC25","v":0}]
[null,null,"Total Liabilities and Shareholders Equity",{"$f":"SUM(D21:D25)","v":0},{"$f":"SUM(E21:E25)","v":0},0,0,0,0,0,0,0,0,0,0,0,0,0,0,0,0,0,0,0,0,0,0,0,0,0,0,0,0,0,0,0,0,0,0,0,0,0,0,0,0,0,0,0,0,0,0,0,0,null,{"$f":"SUM(BC21:BC25)","v":0},null,{"$f":"Import!E9305","v":0},null,{"$f":"BC27+BE27","v":0},null,{"$f":"IF(('Form 1SFS'!E100+'Form 1SFS'!I100)=0,'Form 1SFS'!M200,'Form 1SFS'!E200+'Form 1SFS'!I200)","v":0},null,{"$f":"IFERROR(ROUND(BG27-BI27,0),0)","v":0},null,{"$f":"Import!E9331","v":0}]
[null,null,null,{"$f":"IF((D18-D27)=ROUND(0,),0,FALSE)","v":0},{"$f":"IF((E18-E27)=ROUND(0,),0,FALSE)","v":0},0,0,0,0,0,0,0,0,0,0,0,0,0,0,0,0,0,0,0,0,0,0,0,0,0,0,0,0,0,0,0,0,0,0,0,0,0,0,0,0,0,0,0,0,0,0,0,0,null,{"$f":"IF((BC18-BC27)=ROUND(0,),0,FALSE)","v":0},null,{"$f":"IF((BE18-BE27)=ROUND(0,),0,FALSE)","v":0}]
[null,null,"INCOME STATEMENT"]
[null,"(P)","Gross Premiums Written",{"$f":"Import!E7592","v":0},{"$f":"Import!E7661","v":0},{"$f":"Import!E7730","v":0},{"$f":"Import!E7799","v":0},{"$f":"Import!E7868","v":0},{"$f":"Import!E7937","v":0},{"$f":"Import!E8006","v":0},{"$f":"Import!E8075","v":0},{"$f":"Import!E8144","v":0},{"$f":"Import!E8213","v":0},{"$f":"Import!E8282","v":0},{"$f":"Import!E8351","v":0},{"$f":"Import!E8420","v":0},{"$f":"Import!E8489","v":0},{"$f":"Import!E8558","v":0},{"$f":"Import!E8627","v":0},{"$f":"Import!E8696","v":0},{"$f":"Import!E8765","v":0},{"$f":"Import!E8834","v":0},{"$f":"Import!E8903","v":0},{"$f":"Import!E8972","v":0},{"$f":"Import!E9041","v":0},{"$f":"Import!E9110","v":0},{"$f":"Import!E9179","v":0},{"$f":"Import!E9248","v":0},null,null,null,null,null,null,null,null,null,null,null,null,null,null,null,null,null,null,null,null,null,null,null,null,null,null,{"$f":"SUM(D30:BA30)","v":0}]
[null,"(Q)","Net Premiums Written",{"$f":"Import!E7593","v":0},{"$f":"Import!E7662","v":0},{"$f":"Import!E7731","v":0},{"$f":"Import!E7800","v":0},{"$f":"Import!E7869","v":0},{"$f":"Import!E7938","v":0},{"$f":"Import!E8007","v":0},{"$f":"Import!E8076","v":0},{"$f":"Import!E8145","v":0},{"$f":"Import!E8214","v":0},{"$f":"Import!E8283","v":0},{"$f":"Import!E8352","v":0},{"$f":"Import!E8421","v":0},{"$f":"Import!E8490","v":0},{"$f":"Import!E8559","v":0},{"$f":"Import!E8628","v":0},{"$f":"Import!E8697","v":0},{"$f":"Import!E8766","v":0},{"$f":"Import!E8835","v":0},{"$f":"Import!E8904","v":0},{"$f":"Import!E8973","v":0},{"$f":"Import!E9042","v":0},{"$f":"Import!E9111","v":0},{"$f":"Import!E9180","v":0},{"$f":"Import!E9249","v":0},null,null,null,null,null,null,null,null,null,null,null,null,null,null,null,null,null,null,null,null,null,null,null,null,null,null,0]
[null,"(R)","Total Income (Insurance and Other)",{"$f":"Import!E7594","v":0},{"$f":"Import!E7663","v":0},{"$f":"Import!E7732","v":0},{"$f":"Import!E7801","v":0},{"$f":"Import!E7870","v":0},{"$f":"Import!E7939","v":0},{"$f":"Import!E8008","v":0},{"$f":"Import!E8077","v":0},{"$f":"Import!E8146","v":0},{"$f":"Import!E8215","v":0},{"$f":"Import!E8284","v":0},{"$f":"Import!E8353","v":0},{"$f":"Import!E8422","v":0},{"$f":"Import!E8491","v":0},{"$f":"Import!E8560","v":0},{"$f":"Import!E8629","v":0},{"$f":"Import!E8698","v":0},{"$f":"Import!E8767","v":0},{"$f":"Import!E8836","v":0},{"$f":"Import!E8905","v":0},{"$f":"Import!E8974","v":0},{"$f":"Import!E9043","v":0},{"$f":"Import!E9112","v":0},{"$f":"Import!E9181","v":0},{"$f":"Import!E9250","v":0},null,null,null,null,null,null,null,null,null,null,null,null,null,null,null,null,null,null,null,null,null,null,null,null,null,null,0]
[null,"(S) ","Net loss and Loss Expenses Incurred",{"$f":"Import!E7595","v":0},{"$f":"Import!E7664","v":0},{"$f":"Import!E7733","v":0},{"$f":"Import!E7802","v":0},{"$f":"Import!E7871","v":0},{"$f":"Import!E7940","v":0},{"$f":"Import!E8009","v":0},{"$f":"Import!E8078","v":0},{"$f":"Import!E8147","v":0},{"$f":"Import!E8216","v":0},{"$f":"Import!E8285","v":0},{"$f":"Import!E8354","v":0},{"$f":"Import!E8423","v":0},{"$f":"Import!E8492","v":0},{"$f":"Import!E8561","v":0},{"$f":"Import!E8630","v":0},{"$f":"Import!E8699","v":0},{"$f":"Import!E8768","v":0},{"$f":"Import!E8837","v":0},{"$f":"Import!E8906","v":0},{"$f":"Import!E8975","v":0},{"$f":"Import!E9044","v":0},{"$f":"Import!E9113","v":0},{"$f":"Import!E9182","v":0},{"$f":"Import!E9251","v":0},null,null,null,null,null,null,null,null,null,null,null,null,null,null,null,null,null,null,null,null,null,null,null,null,null,null,0]
[null,"(T) ","Commissions and Brokerage",{"$f":"Import!E7596","v":0},{"$f":"Import!E7665","v":0},{"$f":"Import!E7734","v":0},{"$f":"Import!E7803","v":0},{"$f":"Import!E7872","v":0},{"$f":"Import!E7941","v":0},{"$f":"Import!E8010","v":0},{"$f":"Import!E8079","v":0},{"$f":"Import!E8148","v":0},{"$f":"Import!E8217","v":0},{"$f":"Import!E8286","v":0},{"$f":"Import!E8355","v":0},{"$f":"Import!E8424","v":0},{"$f":"Import!E8493","v":0},{"$f":"Import!E8562","v":0},{"$f":"Import!E8631","v":0},{"$f":"Import!E8700","v":0},{"$f":"Import!E8769","v":0},{"$f":"Import!E8838","v":0},{"$f":"Import!E8907","v":0},{"$f":"Import!E8976","v":0},{"$f":"Import!E9045","v":0},{"$f":"Import!E9114","v":0},{"$f":"Import!E9183","v":0},{"$f":"Import!E9252","v":0},null,null,null,null,null,null,null,null,null,null,null,null,null,null,null,null,null,null,null,null,null,null,null,null,null,null,0]
[null,"(U) ","Other Expenses",{"$f":"Import!E7597","v":0},{"$f":"Import!E7666","v":0},{"$f":"Import!E7735","v":0},{"$f":"Import!E7804","v":0},{"$f":"Import!E7873","v":0},{"$f":"Import!E7942","v":0},{"$f":"Import!E8011","v":0},{"$f":"Import!E8080","v":0},{"$f":"Import!E8149","v":0},{"$f":"Import!E8218","v":0},{"$f":"Import!E8287","v":0},{"$f":"Import!E8356","v":0},{"$f":"Import!E8425","v":0},{"$f":"Import!E8494","v":0},{"$f":"Import!E8563","v":0},{"$f":"Import!E8632","v":0},{"$f":"Import!E8701","v":0},{"$f":"Import!E8770","v":0},{"$f":"Import!E8839","v":0},{"$f":"Import!E8908","v":0},{"$f":"Import!E8977","v":0},{"$f":"Import!E9046","v":0},{"$f":"Import!E9115","v":0},{"$f":"Import!E9184","v":0},{"$f":"Import!E9253","v":0},null,null,null,null,null,null,null,null,null,null,null,null,null,null,null,null,null,null,null,null,null,null,null,null,null,null,0]
[null,null,"Net Income",{"$f":"D31+D32+D33+D34+D35","v":0},{"$f":"E31+E32+E33+E34+E35","v":0},0,0,0,0,0,0,0,0,0,0,0,0,0,0,0,0,0,0,0,0,0,0,0,0,0,0,0,0,0,0,0,0,0,0,0,0,0,0,0,0,0,0,0,0,0,0,0,0,null,0,null,{"$f":"Import!E9306","v":0},null,{"$f":"BC36+BE36","v":0},null,{"$f":"IF(('Form 1SFS'!E100+'Form 1SFS'!I100)=0,'Form 2SFS'!M115,'Form 2SFS'!E115+'Form 2SFS'!I115)","v":0},null,{"$f":"IFERROR(ROUND(BG36-BI36,0),0)","v":0},null,{"$f":"Import!E9332","v":0}]
[null,"(V) ","Capital Returned & Dividends Paid/Payable",{"$f":"Import!E7598","v":0},{"$f":"Import!E7667","v":0},{"$f":"Import!E7736","v":0},{"$f":"Import!E7805","v":0},{"$f":"Import!E7874","v":0},{"$f":"Import!E7943","v":0},{"$f":"Import!E8012","v":0},{"$f":"Import!E8081","v":0},{"$f":"Import!E8150","v":0},{"$f":"Import!E8219","v":0},{"$f":"Import!E8288","v":0},{"$f":"Import!E8357","v":0},{"$f":"Import!E8426","v":0},{"$f":"Import!E8495","v":0},{"$f":"Import!E8564","v":0},{"$f":"Import!E8633","v":0},{"$f":"Import!E8702","v":0},{"$f":"Import!E8771","v":0},{"$f":"Import!E8840","v":0},{"$f":"Import!E8909","v":0},{"$f":"Import!E8978","v":0},{"$f":"Import!E9047","v":0},{"$f":"Import!E9116","v":0},{"$f":"Import!E9185","v":0},{"$f":"Import!E9254","v":0},null,null,null,null,null,null,null,null,null,null,null,null,null,null,null,null,null,null,null,null,null,null,null,null,null,null,0,null,null,null,{"$f":"BC37+BE37","v":0}]
[]
[null,null,"COLLATERAL"]
[null,"(W) ","Is Collateral required",{"$f":"Import!E7599","v":"Select Yes/No"},{"$f":"Import!E7668","v":"Select Yes/No"},{"$f":"Import!E7737","v":"Select Yes/No"},{"$f":"Import!E7806","v":"Select Yes/No"},{"$f":"Import!E7875","v":"Select Yes/No"},{"$f":"Import!E7944","v":"Select Yes/No"},{"$f":"Import!E8013","v":"Select Yes/No"},{"$f":"Import!E8082","v":"Select Yes/No"},{"$f":"Import!E8151","v":"Select Yes/No"},{"$f":"Import!E8220","v":"Select Yes/No"},{"$f":"Import!E8289","v":"Select Yes/No"},{"$f":"Import!E8358","v":"Select Yes/No"},{"$f":"Import!E8427","v":"Select Yes/No"},{"$f":"Import!E8496","v":"Select Yes/No"},{"$f":"Import!E8565","v":"Select Yes/No"},{"$f":"Import!E8634","v":"Select Yes/No"},{"$f":"Import!E8703","v":"Select Yes/No"},{"$f":"Import!E8772","v":"Select Yes/No"},{"$f":"Import!E8841","v":"Select Yes/No"},{"$f":"Import!E8910","v":"Select Yes/No"},{"$f":"Import!E8979","v":"Select Yes/No"},{"$f":"Import!E9048","v":"Select Yes/No"},{"$f":"Import!E9117","v":"Select Yes/No"},{"$f":"Import!E9186","v":"Select Yes/No"},{"$f":"Import!E9255","v":"Select Yes/No"},"Select Yes/No","Select Yes/No","Select Yes/No","Select Yes/No","Select Yes/No","Select Yes/No","Select Yes/No","Select Yes/No","Select Yes/No","Select Yes/No","Select Yes/No","Select Yes/No","Select Yes/No","Select Yes/No","Select Yes/No","Select Yes/No","Select Yes/No","Select Yes/No","Select Yes/No","Select Yes/No","Select Yes/No","Select Yes/No","Select Yes/No","Select Yes/No","Select Yes/No"]
[null,"(X) ","Collateral required to be posted by Cell/Insurer",{"$f":"Import!E7600","v":0},{"$f":"Import!E7669","v":0},{"$f":"Import!E7738","v":0},{"$f":"Import!E7807","v":0},{"$f":"Import!E7876","v":0},{"$f":"Import!E7945","v":0},{"$f":"Import!E8014","v":0},{"$f":"Import!E8083","v":0},{"$f":"Import!E8152","v":0},{"$f":"Import!E8221","v":0},{"$f":"Import!E8290","v":0},{"$f":"Import!E8359","v":0},{"$f":"Import!E8428","v":0},{"$f":"Import!E8497","v":0},{"$f":"Import!E8566","v":0},{"$f":"Import!E8635","v":0},{"$f":"Import!E8704","v":0},{"$f":"Import!E8773","v":0},{"$f":"Import!E8842","v":0},{"$f":"Import!E8911","v":0},{"$f":"Import!E8980","v":0},{"$f":"Import!E9049","v":0},{"$f":"Import!E9118","v":0},{"$f":"Import!E9187","v":0},{"$f":"Import!E9256","v":0},null,null,null,null,null,null,null,null,null,null,null,null,null,null,null,null,null,null,null,null,null,null,null,null,null,null,{"$f":"SUM(D41:BA41)","v":0},null,null,null,{"$f":"BC41+BE41","v":0}]
[null,"(Y) ","Actual collateral posted by Cell/Insurer",{"$f":"Import!E7601","v":0},{"$f":"Import!E7670","v":0},{"$f":"Import!E7739","v":0},{"$f":"Import!E7808","v":0},{"$f":"Import!E7877","v":0},{"$f":"Import!E7946","v":0},{"$f":"Import!E8015","v":0},{"$f":"Import!E8084","v":0},{"$f":"Import!E8153","v":0},{"$f":"Import!E8222","v":0},{"$f":"Import!E8291","v":0},{"$f":"Import!E8360","v":0},{"$f":"Import!E8429","v":0},{"$f":"Import!E8498","v":0},{"$f":"Import!E8567","v":0},{"$f":"Import!E8636","v":0},{"$f":"Import!E8705","v":0},{"$f":"Import!E8774","v":0},{"$f":"Import!E8843","v":0},{"$f":"Import!E8912","v":0},{"$f":"Import!E8981","v":0},{"$f":"Import!E9050","v":0},{"$f":"Import!E9119","v":0},{"$f":"Import!E9188","v":0},{"$f":"Import!E9257","v":0},null,null,null,null,null,null,null,null,null,null,null,null,null,null,null,null,null,null,null,null,null,null,null,null,null,null,{"$f":"SUM(D42:BA42)","v":0},null,null,null,0]
[null,null,"Excess/(Shortfall) in Collateral",{"$f":"D42-D41","v":0},{"$f":"E42-E41","v":0},0,0,0,0,0,0,0,0,0,0,0,0,0,0,0,0,0,0,0,0,0,0,0,0,0,0,0,0,0,0,0,0,0,0,0,0,0,0,0,0,0,0,0,0,0,0,0,0,null,{"$f":"SUM(D43:BA43)","v":0},null,null,null,0]
[null,"(Z) ","Primary Cell Funding",{"$f":"Import!E7602","v":"Select Funding"},{"$f":"Import!E7671","v":"Select Funding"},{"$f":"Import!E7740","v":"Select Funding"},{"$f":"Import!E7809","v":"Select Funding"},{"$f":"Import!E7878","v":"Select Funding"},{"$f":"Import!E7947","v":"Select Funding"},{"$f":"Import!E8016","v":"Select Funding"},{"$f":"Import!E8085","v":"Select Funding"},{"$f":"Import!E8154","v":"Select Funding"},{"$f":"Import!E8223","v":"Select Funding"},{"$f":"Import!E8292","v":"Select Funding"},{"$f":"Import!E8361","v":"Select Funding"},{"$f":"Import!E8430","v":"Select Funding"},{"$f":"Import!E8499","v":"Select Funding"},{"$f":"Import!E8568","v":"Select Funding"},{"$f":"Import!E8637","v":"Select Funding"},{"$f":"Import!E8706","v":"Select Funding"},{"$f":"Import!E8775","v":"Select Funding"},{"$f":"Import!E8844","v":"Select Funding"},{"$f":"Import!E8913","v":"Select Funding"},{"$f":"Import!E8982","v":"Select Funding"},{"$f":"Import!E9051","v":"Select Funding"},{"$f":"Import!E9120","v":"Select Funding"},{"$f":"Import!E9189","v":"Select Funding"},{"$f":"Import!E9258","v":"Select Funding"},"Select Funding","Select Funding","Select Funding","Select Funding","Select Funding","Select Funding","Select Funding","Select Funding","Select Funding","Select Funding","Select Funding","Select Funding","Select Funding","Select Funding","Select Funding","Select Funding","Select Funding","Select Funding","Select Funding","Select Funding","Select Funding","Select Funding","Select Funding","Select Funding","Select Funding"]
[null,"(AA) ","Limit of Cell Funding/Collateral",{"$f":"Import!E7603","v":"Confirm Funding / Collateral"},{"$f":"Import!E7672","v":"Confirm Funding / Collateral"},{"$f":"Import!E7741","v":"Confirm Funding / Collateral"},{"$f":"Import!E7810","v":"Confirm Funding / Collateral"},{"$f":"Import!E7879","v":"Confirm Funding / Collateral"},{"$f":"Import!E7948","v":"Confirm Funding / Collateral"},{"$f":"Import!E8017","v":"Confirm Funding / Collateral"},{"$f":"Import!E8086","v":"Confirm Funding / Collateral"},{"$f":"Import!E8155","v":"Confirm Funding / Collateral"},{"$f":"Import!E8224","v":"Confirm Funding / Collateral"},{"$f":"Import!E8293","v":"Confirm Funding / Collateral"},{"$f":"Import!E8362","v":"Confirm Funding / Collateral"},{"$f":"Import!E8431","v":"Confirm Funding / Collateral"},{"$f":"Import!E8500","v":"Confirm Funding / Collateral"},{"$f":"Import!E8569","v":"Confirm Funding / Collateral"},{"$f":"Import!E8638","v":"Confirm Funding / Collateral"},{"$f":"Import!E8707","v":"Confirm Funding / Collateral"},{"$f":"Import!E8776","v":"Confirm Funding / Collateral"},{"$f":"Import!E8845","v":"Confirm Funding / Collateral"},{"$f":"Import!E8914","v":"Confirm Funding / Collateral"},{"$f":"Import!E8983","v":"Confirm Funding / Collateral"},{"$f":"Import!E9052","v":"Confirm Funding / Collateral"},{"$f":"Import!E9121","v":"Confirm Funding / Collateral"},{"$f":"Import!E9190","v":"Confirm Funding / Collateral"},{"$f":"Import!E9259","v":"Confirm Funding / Collateral"},"Confirm Funding / Collateral","Confirm Funding / Collateral","Confirm Funding / Collateral","Confirm Funding / Collateral","Confirm Funding / Collateral","Confirm Funding / Collateral","Confirm Funding / Collateral","Confirm Funding / Collateral","Confirm Funding / Collateral","Confirm Funding / Collateral","Confirm Funding / Collateral","Confirm Funding / Collateral","Confirm Funding / Collateral","Confirm Funding / Collateral","Confirm Funding / Collateral","Confirm Funding / Collateral","Confirm Funding / Collateral","Confirm Funding / Collateral","Confirm Funding / Collateral","Confirm Funding / Collateral","Confirm Funding / Collateral","Confirm Funding / Collateral","Confirm Funding / Collateral","Confirm Funding / Collateral","Confirm Funding / Collateral"]
[null,"(AA.1) ","Aggregate Limit Amount",{"$f":"Import!E7604","v":0},{"$f":"Import!E7673","v":0},{"$f":"Import!E7742","v":0},{"$f":"Import!E7811","v":0},{"$f":"Import!E7880","v":0},{"$f":"Import!E7949","v":0},{"$f":"Import!E8018","v":0},{"$f":"Import!E8087","v":0},{"$f":"Import!E8156","v":0},{"$f":"Import!E8225","v":0},{"$f":"Import!E8294","v":0},{"$f":"Import!E8363","v":0},{"$f":"Import!E8432","v":0},{"$f":"Import!E8501","v":0},{"$f":"Import!E8570","v":0},{"$f":"Import!E8639","v":0},{"$f":"Import!E8708","v":0},{"$f":"Import!E8777","v":0},{"$f":"Import!E8846","v":0},{"$f":"Import!E8915","v":0},{"$f":"Import!E8984","v":0},{"$f":"Import!E9053","v":0},{"$f":"Import!E9122","v":0},{"$f":"Import!E9191","v":0},{"$f":"Import!E9260","v":0},null,null,null,null,null,null,null,null,null,null,null,null,null,null,null,null,null,null,null,null,null,null,null,null,null,null,{"$f":"SUM(D46:BA46)","v":0},null,{"$f":"Import!E9307","v":0},null,{"$f":"BC46+BE46","v":0}]
[null,"(AA.2) ","Limit of Cell Funding/Collateral Details",{"$f":"Import!E7605","v":0},{"$f":"Import!E7674","v":0},{"$f":"Import!E7743","v":0},{"$f":"Import!E7812","v":0},{"$f":"Import!E7881","v":0},{"$f":"Import!E7950","v":0},{"$f":"Import!E8019","v":0},{"$f":"Import!E8088","v":0},{"$f":"Import!E8157","v":0},{"$f":"Import!E8226","v":0},{"$f":"Import!E8295","v":0},{"$f":"Import!E8364","v":0},{"$f":"Import!E8433","v":0},{"$f":"Import!E8502","v":0},{"$f":"Import!E8571","v":0},{"$f":"Import!E8640","v":0},{"$f":"Import!E8709","v":0},{"$f":"Import!E8778","v":0},{"$f":"Import!E8847","v":0},{"$f":"Import!E8916","v":0},{"$f":"Import!E8985","v":0},{"$f":"Import!E9054","v":0},{"$f":"Import!E9123","v":0},{"$f":"Import!E9192","v":0},{"$f":"Import!E9261","v":0}]
[]
[null,null,"CELL ACTIVITY"]
[null,"(AB) ","Cell is in Run-Off",{"$f":"Import!E7606","v":"Select Yes/No"},{"$f":"Import!E7675","v":"Select Yes/No"},{"$f":"Import!E7744","v":"Select Yes/No"},{"$f":"Import!E7813","v":"Select Yes/No"},{"$f":"Import!E7882","v":"Select Yes/No"},{"$f":"Import!E7951","v":"Select Yes/No"},{"$f":"Import!E8020","v":"Select Yes/No"},{"$f":"Import!E8089","v":"Select Yes/No"},{"$f":"Import!E8158","v":"Select Yes/No"},{"$f":"Import!E8227","v":"Select Yes/No"},{"$f":"Import!E8296","v":"Select Yes/No"},{"$f":"Import!E8365","v":"Select Yes/No"},{"$f":"Import!E8434","v":"Select Yes/No"},{"$f":"Import!E8503","v":"Select Yes/No"},{"$f":"Import!E8572","v":"Select Yes/No"},{"$f":"Import!E8641","v":"Select Yes/No"},{"$f":"Import!E8710","v":"Select Yes/No"},{"$f":"Import!E8779","v":"Select Yes/No"},{"$f":"Import!E8848","v":"Select Yes/No"},{"$f":"Import!E8917","v":"Select Yes/No"},{"$f":"Import!E8986","v":"Select Yes/No"},{"$f":"Import!E9055","v":"Select Yes/No"},{"$f":"Import!E9124","v":"Select Yes/No"},{"$f":"Import!E9193","v":"Select Yes/No"},{"$f":"Import!E9262","v":"Select Yes/No"},"Select Yes/No","Select Yes/No","Select Yes/No","Select Yes/No","Select Yes/No","Select Yes/No","Select Yes/No","Select Yes/No","Select Yes/No","Select Yes/No","Select Yes/No","Select Yes/No","Select Yes/No","Select Yes/No","Select Yes/No","Select Yes/No","Select Yes/No","Select Yes/No","Select Yes/No","Select Yes/No","Select Yes/No","Select Yes/No","Select Yes/No","Select Yes/No","Select Yes/No"]
[null,"(AC) ","Currency Used",{"$f":"Import!E7607","v":"Select Currency"},{"$f":"Import!E7676","v":"Select Currency"},{"$f":"Import!E7745","v":"Select Currency"},{"$f":"Import!E7814","v":"Select Currency"},{"$f":"Import!E7883","v":"Select Currency"},{"$f":"Import!E7952","v":"Select Currency"},{"$f":"Import!E8021","v":"Select Currency"},{"$f":"Import!E8090","v":"Select Currency"},{"$f":"Import!E8159","v":"Select Currency"},{"$f":"Import!E8228","v":"Select Currency"},{"$f":"Import!E8297","v":"Select Currency"},{"$f":"Import!E8366","v":"Select Currency"},{"$f":"Import!E8435","v":"Select Currency"},{"$f":"Import!E8504","v":"Select Currency"},{"$f":"Import!E8573","v":"Select Currency"},{"$f":"Import!E8642","v":"Select Currency"},{"$f":"Import!E8711","v":"Select Currency"},{"$f":"Import!E8780","v":"Select Currency"},{"$f":"Import!E8849","v":"Select Currency"},{"$f":"Import!E8918","v":"Select Currency"},{"$f":"Import!E8987","v":"Select Currency"},{"$f":"Import!E9056","v":"Select Currency"},{"$f":"Import!E9125","v":"Select Currency"},{"$f":"Import!E9194","v":"Select Currency"},{"$f":"Import!E9263","v":"Select Currency"},"Select Currency","Select Currency","Select Currency","Select Currency","Select Currency","Select Currency","Select Currency","Select Currency","Select Currency","Select Currency","Select Currency","Select Currency","Select Currency","Select Currency","Select Currency","Select Currency","Select Currency","Select Currency","Select Currency","Select Currency","Select Currency","Select Currency","Select Currency","Select Currency","Select Currency"]
[null,"(AD) ","Cell to Cell Activity ",{"$f":"Import!E7608","v":"Confirm Activity"},{"$f":"Import!E7677","v":"Confirm Activity"},{"$f":"Import!E7746","v":"Confirm Activity"},{"$f":"Import!E7815","v":"Confirm Activity"},{"$f":"Import!E7884","v":"Confirm Activity"},{"$f":"Import!E7953","v":"Confirm Activity"},{"$f":"Import!E8022","v":"Confirm Activity"},{"$f":"Import!E8091","v":"Confirm Activity"},{"$f":"Import!E8160","v":"Confirm Activity"},{"$f":"Import!E8229","v":"Confirm Activity"},{"$f":"Import!E8298","v":"Confirm Activity"},{"$f":"Import!E8367","v":"Confirm Activity"},{"$f":"Import!E8436","v":"Confirm Activity"},{"$f":"Import!E8505","v":"Confirm Activity"},{"$f":"Import!E8574","v":"Confirm Activity"},{"$f":"Import!E8643","v":"Confirm Activity"},{"$f":"Import!E8712","v":"Confirm Activity"},{"$f":"Import!E8781","v":"Confirm Activity"},{"$f":"Import!E8850","v":"Confirm Activity"},{"$f":"Import!E8919","v":"Confirm Activity"},{"$f":"Import!E8988","v":"Confirm Activity"},{"$f":"Import!E9057","v":"Confirm Activity"},{"$f":"Import!E9126","v":"Confirm Activity"},{"$f":"Import!E9195","v":"Confirm Activity"},{"$f":"Import!E9264","v":"Confirm Activity"},"Confirm Activity","Confirm Activity","Confirm Activity","Confirm Activity","Confirm Activity","Confirm Activity","Confirm Activity","Confirm Activity","Confirm Activity","Confirm Activity","Confirm Activity","Confirm Activity","Confirm Activity","Confirm Activity","Confirm Activity","Confirm Activity","Confirm Activity","Confirm Activity","Confirm Activity","Confirm Activity","Confirm Activity","Confirm Activity","Confirm Activity","Confirm Activity","Confirm Activity"]
[null,"(AD.1) ","Cell to Cell Activity Details",{"$f":"Import!E7609","v":0},{"$f":"Import!E7678","v":0},{"$f":"Import!E7747","v":0},{"$f":"Import!E7816","v":0},{"$f":"Import!E7885","v":0},{"$f":"Import!E7954","v":0},{"$f":"Import!E8023","v":0},{"$f":"Import!E8092","v":0},{"$f":"Import!E8161","v":0},{"$f":"Import!E8230","v":0},{"$f":"Import!E8299","v":0},{"$f":"Import!E8368","v":0},{"$f":"Import!E8437","v":0},{"$f":"Import!E8506","v":0},{"$f":"Import!E8575","v":0},{"$f":"Import!E8644","v":0},{"$f":"Import!E8713","v":0},{"$f":"Import!E8782","v":0},{"$f":"Import!E8851","v":0},{"$f":"Import!E8920","v":0},{"$f":"Import!E8989","v":0},{"$f":"Import!E9058","v":0},{"$f":"Import!E9127","v":0},{"$f":"Import!E9196","v":0},{"$f":"Import!E9265","v":0}]
[null,"(AE) ","General Cell to Cell Activity",{"$f":"Import!E7610","v":"Confirm Activity"},{"$f":"Import!E7679","v":"Confirm Activity"},{"$f":"Import!E7748","v":"Confirm Activity"},{"$f":"Import!E7817","v":"Confirm Activity"},{"$f":"Import!E7886","v":"Confirm Activity"},{"$f":"Import!E7955","v":"Confirm Activity"},{"$f":"Import!E8024","v":"Confirm Activity"},{"$f":"Import!E8093","v":"Confirm Activity"},{"$f":"Import!E8162","v":"Confirm Activity"},{"$f":"Import!E8231","v":"Confirm Activity"},{"$f":"Import!E8300","v":"Confirm Activity"},{"$f":"Import!E8369","v":"Confirm Activity"},{"$f":"Import!E8438","v":"Confirm Activity"},{"$f":"Import!E8507","v":"Confirm Activity"},{"$f":"Import!E8576","v":"Confirm Activity"},{"$f":"Import!E8645","v":"Confirm Activity"},{"$f":"Import!E8714","v":"Confirm Activity"},{"$f":"Import!E8783","v":"Confirm Activity"},{"$f":"Import!E8852","v":"Confirm Activity"},{"$f":"Import!E8921","v":"Confirm Activity"},{"$f":"Import!E8990","v":"Confirm Activity"},{"$f":"Import!E9059","v":"Confirm Activity"},{"$f":"Import!E9128","v":"Confirm Activity"},{"$f":"Import!E9197","v":"Confirm Activity"},{"$f":"Import!E9266","v":"Confirm Activity"},"Confirm Activity","Confirm Activity","Confirm Activity","Confirm Activity","Confirm Activity","Confirm Activity","Confirm Activity","Confirm Activity","Confirm Activity","Confirm Activity","Confirm Activity","Confirm Activity","Confirm Activity","Confirm Activity","Confirm Activity","Confirm Activity","Confirm Activity","Confirm Activity","Confirm Activity","Confirm Activity","Confirm Activity","Confirm Activity","Confirm Activity","Confirm Activity","Confirm Activity"]
[null,"(AE.1) ","General Cell to Cell Activity Details",{"$f":"Import!E7611","v":0},{"$f":"Import!E7680","v":0},{"$f":"Import!E7749","v":0},{"$f":"Import!E7818","v":0},{"$f":"Import!E7887","v":0},{"$f":"Import!E7956","v":0},{"$f":"Import!E8025","v":0},{"$f":"Import!E8094","v":0},{"$f":"Import!E8163","v":0},{"$f":"Import!E8232","v":0},{"$f":"Import!E8301","v":0},{"$f":"Import!E8370","v":0},{"$f":"Import!E8439","v":0},{"$f":"Import!E8508","v":0},{"$f":"Import!E8577","v":0},{"$f":"Import!E8646","v":0},{"$f":"Import!E8715","v":0},{"$f":"Import!E8784","v":0},{"$f":"Import!E8853","v":0},{"$f":"Import!E8922","v":0},{"$f":"Import!E8991","v":0},{"$f":"Import!E9060","v":0},{"$f":"Import!E9129","v":0},{"$f":"Import!E9198","v":0},{"$f":"Import!E9267","v":0}]
[null,"(AF) ","Where a cell is in deficit, insolvent or subject to litigation, provide or attach details of remediation actions or update on proceedings",{"$f":"Import!E7612","v":0},{"$f":"Import!E7681","v":0},{"$f":"Import!E7750","v":0},{"$f":"Import!E7819","v":0},{"$f":"Import!E7888","v":0},{"$f":"Import!E7957","v":0},{"$f":"Import!E8026","v":0},{"$f":"Import!E8095","v":0},{"$f":"Import!E8164","v":0},{"$f":"Import!E8233","v":0},{"$f":"Import!E8302","v":0},{"$f":"Import!E8371","v":0},{"$f":"Import!E8440","v":0},{"$f":"Import!E8509","v":0},{"$f":"Import!E8578","v":0},{"$f":"Import!E8647","v":0},{"$f":"Import!E8716","v":0},{"$f":"Import!E8785","v":0},{"$f":"Import!E8854","v":0},{"$f":"Import!E8923","v":0},{"$f":"Import!E8992","v":0},{"$f":"Import!E9061","v":0},{"$f":"Import!E9130","v":0},{"$f":"Import!E9199","v":0},{"$f":"Import!E9268","v":0}]
[null,"(AG) ","Additional Capital Support",{"$f":"Import!E7613","v":"Confirm"},{"$f":"Import!E7682","v":"Confirm"},{"$f":"Import!E7751","v":"Confirm"},{"$f":"Import!E7820","v":"Confirm"},{"$f":"Import!E7889","v":"Confirm"},{"$f":"Import!E7958","v":"Confirm"},{"$f":"Import!E8027","v":"Confirm"},{"$f":"Import!E8096","v":"Confirm"},{"$f":"Import!E8165","v":"Confirm"},{"$f":"Import!E8234","v":"Confirm"},{"$f":"Import!E8303","v":"Confirm"},{"$f":"Import!E8372","v":"Confirm"},{"$f":"Import!E8441","v":"Confirm"},{"$f":"Import!E8510","v":"Confirm"},{"$f":"Import!E8579","v":"Confirm"},{"$f":"Import!E8648","v":"Confirm"},{"$f":"Import!E8717","v":"Confirm"},{"$f":"Import!E8786","v":"Confirm"},{"$f":"Import!E8855","v":"Confirm"},{"$f":"Import!E8924","v":"Confirm"},{"$f":"Import!E8993","v":"Confirm"},{"$f":"Import!E9062","v":"Confirm"},{"$f":"Import!E9131","v":"Confirm"},{"$f":"Import!E9200","v":"Confirm"},{"$f":"Import!E9269","v":"Confirm"},"Confirm","Confirm","Confirm","Confirm","Confirm","Confirm","Confirm","Confirm","Confirm","Confirm","Confirm","Confirm","Confirm","Confirm","Confirm","Confirm","Confirm","Confirm","Confirm","Confirm","Confirm","Confirm","Confirm","Confirm","Confirm"]
[null,"(AG.1) ","Additional Capital Support Details",{"$f":"Import!E7614","v":0},{"$f":"Import!E7683","v":0},{"$f":"Import!E7752","v":0},{"$f":"Import!E7821","v":0},{"$f":"Import!E7890","v":0},{"$f":"Import!E7959","v":0},{"$f":"Import!E8028","v":0},{"$f":"Import!E8097","v":0},{"$f":"Import!E8166","v":0},{"$f":"Import!E8235","v":0},{"$f":"Import!E8304","v":0},{"$f":"Import!E8373","v":0},{"$f":"Import!E8442","v":0},{"$f":"Import!E8511","v":0},{"$f":"Import!E8580","v":0},{"$f":"Import!E8649","v":0},{"$f":"Import!E8718","v":0},{"$f":"Import!E8787","v":0},{"$f":"Import!E8856","v":0},{"$f":"Import!E8925","v":0},{"$f":"Import!E8994","v":0},{"$f":"Import!E9063","v":0},{"$f":"Import!E9132","v":0},{"$f":"Import!E9201","v":0},{"$f":"Import!E9270","v":0}]
[]
[null,null,"BENEFICIAL OWNERSHIP"]
[null,"(AH) ","Details of Beneficial Owners and their relationship to the underlying risk",{"$f":"Import!E7615","v":"Confirm"},{"$f":"Import!E7684","v":"Confirm"},{"$f":"Import!E7753","v":"Confirm"},{"$f":"Import!E7822","v":"Confirm"},{"$f":"Import!E7891","v":"Confirm"},{"$f":"Import!E7960","v":"Confirm"},{"$f":"Import!E8029","v":"Confirm"},{"$f":"Import!E8098","v":"Confirm"},{"$f":"Import!E8167","v":"Confirm"},{"$f":"Import!E8236","v":"Confirm"},{"$f":"Import!E8305","v":"Confirm"},{"$f":"Import!E8374","v":"Confirm"},{"$f":"Import!E8443","v":"Confirm"},{"$f":"Import!E8512","v":"Confirm"},{"$f":"Import!E8581","v":"Confirm"},{"$f":"Import!E8650","v":"Confirm"},{"$f":"Import!E8719","v":"Confirm"},{"$f":"Import!E8788","v":"Confirm"},{"$f":"Import!E8857","v":"Confirm"},{"$f":"Import!E8926","v":"Confirm"},{"$f":"Import!E8995","v":"Confirm"},{"$f":"Import!E9064","v":"Confirm"},{"$f":"Import!E9133","v":"Confirm"},{"$f":"Import!E9202","v":"Confirm"},{"$f":"Import!E9271","v":"Confirm"},"Confirm","Confirm","Confirm","Confirm","Confirm","Confirm","Confirm","Confirm","Confirm","Confirm","Confirm","Confirm","Confirm","Confirm","Confirm","Confirm","Confirm","Confirm","Confirm","Confirm","Confirm","Confirm","Confirm","Confirm","Confirm"]
[null,"(AI) ","Beneficial Owner(s) Relationship to the Segregated Account Company Ownership",{"$f":"Import!E7616","v":"Confirm"},{"$f":"Import!E7685","v":"Confirm"},{"$f":"Import!E7754","v":"Confirm"},{"$f":"Import!E7823","v":"Confirm"},{"$f":"Import!E7892","v":"Confirm"},{"$f":"Import!E7961","v":"Confirm"},{"$f":"Import!E8030","v":"Confirm"},{"$f":"Import!E8099","v":"Confirm"},{"$f":"Import!E8168","v":"Confirm"},{"$f":"Import!E8237","v":"Confirm"},{"$f":"Import!E8306","v":"Confirm"},{"$f":"Import!E8375","v":"Confirm"},{"$f":"Import!E8444","v":"Confirm"},{"$f":"Import!E8513","v":"Confirm"},{"$f":"Import!E8582","v":"Confirm"},{"$f":"Import!E8651","v":"Confirm"},{"$f":"Import!E8720","v":"Confirm"},{"$f":"Import!E8789","v":"Confirm"},{"$f":"Import!E8858","v":"Confirm"},{"$f":"Import!E8927","v":"Confirm"},{"$f":"Import!E8996","v":"Confirm"},{"$f":"Import!E9065","v":"Confirm"},{"$f":"Import!E9134","v":"Confirm"},{"$f":"Import!E9203","v":"Confirm"},{"$f":"Import!E9272","v":"Confirm"},"Confirm","Confirm","Confirm","Confirm","Confirm","Confirm","Confirm","Confirm","Confirm","Confirm","Confirm","Confirm","Confirm","Confirm","Confirm","Confirm","Confirm","Confirm","Confirm","Confirm","Confirm","Confirm","Confirm","Confirm","Confirm"]
[null,"(AJ) ","Beneficial Owner(s)",{"$f":"Import!E7617","v":"Confirm"},{"$f":"Import!E7686","v":"Confirm"},{"$f":"Import!E7755","v":"Confirm"},{"$f":"Import!E7824","v":"Confirm"},{"$f":"Import!E7893","v":"Confirm"},{"$f":"Import!E7962","v":"Confirm"},{"$f":"Import!E8031","v":"Confirm"},{"$f":"Import!E8100","v":"Confirm"},{"$f":"Import!E8169","v":"Confirm"},{"$f":"Import!E8238","v":"Confirm"},{"$f":"Import!E8307","v":"Confirm"},{"$f":"Import!E8376","v":"Confirm"},{"$f":"Import!E8445","v":"Confirm"},{"$f":"Import!E8514","v":"Confirm"},{"$f":"Import!E8583","v":"Confirm"},{"$f":"Import!E8652","v":"Confirm"},{"$f":"Import!E8721","v":"Confirm"},{"$f":"Import!E8790","v":"Confirm"},{"$f":"Import!E8859","v":"Confirm"},{"$f":"Import!E8928","v":"Confirm"},{"$f":"Import!E8997","v":"Confirm"},{"$f":"Import!E9066","v":"Confirm"},{"$f":"Import!E9135","v":"Confirm"},{"$f":"Import!E9204","v":"Confirm"},{"$f":"Import!E9273","v":"Confirm"},"Confirm Beneficial Owner","Confirm Beneficial Owner","Confirm Beneficial Owner","Confirm Beneficial Owner","Confirm Beneficial Owner","Confirm Beneficial Owner","Confirm Beneficial Owner","Confirm Beneficial Owner","Confirm Beneficial Owner","Confirm Beneficial Owner","Confirm Beneficial Owner","Confirm Beneficial Owner","Confirm Beneficial Owner","Confirm Beneficial Owner","Confirm Beneficial Owner","Confirm Beneficial Owner","Confirm Beneficial Owner","Confirm Beneficial Owner","Confirm Beneficial Owner","Confirm Beneficial Owner","Confirm Beneficial Owner","Confirm Beneficial Owner","Confirm Beneficial Owner","Confirm Beneficial Owner","Confirm Beneficial Owner"]
[null,"(AK) ","Beneficial Ownership",{"$f":"Import!E7618","v":"Confirm"},{"$f":"Import!E7687","v":"Confirm"},{"$f":"Import!E7756","v":"Confirm"},{"$f":"Import!E7825","v":"Confirm"},{"$f":"Import!E7894","v":"Confirm"},{"$f":"Import!E7963","v":"Confirm"},{"$f":"Import!E8032","v":"Confirm"},{"$f":"Import!E8101","v":"Confirm"},{"$f":"Import!E8170","v":"Confirm"},{"$f":"Import!E8239","v":"Confirm"},{"$f":"Import!E8308","v":"Confirm"},{"$f":"Import!E8377","v":"Confirm"},{"$f":"Import!E8446","v":"Confirm"},{"$f":"Import!E8515","v":"Confirm"},{"$f":"Import!E8584","v":"Confirm"},{"$f":"Import!E8653","v":"Confirm"},{"$f":"Import!E8722","v":"Confirm"},{"$f":"Import!E8791","v":"Confirm"},{"$f":"Import!E8860","v":"Confirm"},{"$f":"Import!E8929","v":"Confirm"},{"$f":"Import!E8998","v":"Confirm"},{"$f":"Import!E9067","v":"Confirm"},{"$f":"Import!E9136","v":"Confirm"},{"$f":"Import!E9205","v":"Confirm"},{"$f":"Import!E9274","v":"Confirm"},"Confirm","Confirm","Confirm","Confirm","Confirm","Confirm","Confirm","Confirm","Confirm","Confirm","Confirm","Confirm","Confirm","Confirm","Confirm","Confirm","Confirm","Confirm","Confirm","Confirm","Confirm","Confirm","Confirm","Confirm","Confirm"]
[null,"(AK.1) ","Beneficial Ownership Details (if other is chosen)",{"$f":"Import!E7619","v":0},{"$f":"Import!E7688","v":0},{"$f":"Import!E7757","v":0},{"$f":"Import!E7826","v":0},{"$f":"Import!E7895","v":0},{"$f":"Import!E7964","v":0},{"$f":"Import!E8033","v":0},{"$f":"Import!E8102","v":0},{"$f":"Import!E8171","v":0},{"$f":"Import!E8240","v":0},{"$f":"Import!E8309","v":0},{"$f":"Import!E8378","v":0},{"$f":"Import!E8447","v":0},{"$f":"Import!E8516","v":0},{"$f":"Import!E8585","v":0},{"$f":"Import!E8654","v":0},{"$f":"Import!E8723","v":0},{"$f":"Import!E8792","v":0},{"$f":"Import!E8861","v":0},{"$f":"Import!E8930","v":0},{"$f":"Import!E8999","v":0},{"$f":"Import!E9068","v":0},{"$f":"Import!E9137","v":0},{"$f":"Import!E9206","v":0},{"$f":"Import!E9275","v":0}]
[null,"(AL) ","Details of the principal jurisdiction of the underlying risk",{"$f":"Import!E7620","v":"Confirm Jurisdiction"},{"$f":"Import!E7689","v":"Confirm Jurisdiction"},{"$f":"Import!E7758","v":"Confirm Jurisdiction"},{"$f":"Import!E7827","v":"Confirm Jurisdiction"},{"$f":"Import!E7896","v":"Confirm Jurisdiction"},{"$f":"Import!E7965","v":"Confirm Jurisdiction"},{"$f":"Import!E8034","v":"Confirm Jurisdiction"},{"$f":"Import!E8103","v":"Confirm Jurisdiction"},{"$f":"Import!E8172","v":"Confirm Jurisdiction"},{"$f":"Import!E8241","v":"Confirm Jurisdiction"},{"$f":"Import!E8310","v":"Confirm Jurisdiction"},{"$f":"Import!E8379","v":"Confirm Jurisdiction"},{"$f":"Import!E8448","v":"Confirm Jurisdiction"},{"$f":"Import!E8517","v":"Confirm Jurisdiction"},{"$f":"Import!E8586","v":"Confirm Jurisdiction"},{"$f":"Import!E8655","v":"Confirm Jurisdiction"},{"$f":"Import!E8724","v":"Confirm Jurisdiction"},{"$f":"Import!E8793","v":"Confirm Jurisdiction"},{"$f":"Import!E8862","v":"Confirm Jurisdiction"},{"$f":"Import!E8931","v":"Confirm Jurisdiction"},{"$f":"Import!E9000","v":"Confirm Jurisdiction"},{"$f":"Import!E9069","v":"Confirm Jurisdiction"},{"$f":"Import!E9138","v":"Confirm Jurisdiction"},{"$f":"Import!E9207","v":"Confirm Jurisdiction"},{"$f":"Import!E9276","v":"Confirm Jurisdiction"},"Confirm Jurisdiction","Confirm Jurisdiction","Confirm Jurisdiction","Confirm Jurisdiction","Confirm Jurisdiction","Confirm Jurisdiction","Confirm Jurisdiction","Confirm Jurisdiction","Confirm Jurisdiction","Confirm Jurisdiction","Confirm Jurisdiction","Confirm Jurisdiction","Confirm Jurisdiction","Confirm Jurisdiction","Confirm Jurisdiction","Confirm Jurisdiction","Confirm Jurisdiction","Confirm Jurisdiction","Confirm Jurisdiction","Confirm Jurisdiction","Confirm Jurisdiction","Confirm Jurisdiction","Confirm Jurisdiction","Confirm Jurisdiction","Confirm Jurisdiction"]
[null,"(AM) ","Beneficial Owner Governing Instrument",{"$f":"Import!E7621","v":"Confirm Instrument"},{"$f":"Import!E7690","v":"Confirm Instrument"},{"$f":"Import!E7759","v":"Confirm Instrument"},{"$f":"Import!E7828","v":"Confirm Instrument"},{"$f":"Import!E7897","v":"Confirm Instrument"},{"$f":"Import!E7966","v":"Confirm Instrument"},{"$f":"Import!E8035","v":"Confirm Instrument"},{"$f":"Import!E8104","v":"Confirm Instrument"},{"$f":"Import!E8173","v":"Confirm Instrument"},{"$f":"Import!E8242","v":"Confirm Instrument"},{"$f":"Import!E8311","v":"Confirm Instrument"},{"$f":"Import!E8380","v":"Confirm Instrument"},{"$f":"Import!E8449","v":"Confirm Instrument"},{"$f":"Import!E8518","v":"Confirm Instrument"},{"$f":"Import!E8587","v":"Confirm Instrument"},{"$f":"Import!E8656","v":"Confirm Instrument"},{"$f":"Import!E8725","v":"Confirm Instrument"},{"$f":"Import!E8794","v":"Confirm Instrument"},{"$f":"Import!E8863","v":"Confirm Instrument"},{"$f":"Import!E8932","v":"Confirm Instrument"},{"$f":"Import!E9001","v":"Confirm Instrument"},{"$f":"Import!E9070","v":"Confirm Instrument"},{"$f":"Import!E9139","v":"Confirm Instrument"},{"$f":"Import!E9208","v":"Confirm Instrument"},{"$f":"Import!E9277","v":"Confirm Instrument"},"Confirm Instrument","Confirm Instrument","Confirm Instrument","Confirm Instrument","Confirm Instrument","Confirm Instrument","Confirm Instrument","Confirm Instrument","Confirm Instrument","Confirm Instrument","Confirm Instrument","Confirm Instrument","Confirm Instrument","Confirm Instrument","Confirm Instrument","Confirm Instrument","Confirm Instrument","Confirm Instrument","Confirm Instrument","Confirm Instrument","Confirm Instrument","Confirm Instrument","Confirm Instrument","Confirm Instrument","Confirm Instrument"]
[null,"(AM.1) ","Beneficial Owner Governing Instrument (if other is chosen)",{"$f":"Import!E7622","v":0},{"$f":"Import!E7691","v":0},{"$f":"Import!E7760","v":0},{"$f":"Import!E7829","v":0},{"$f":"Import!E7898","v":0},{"$f":"Import!E7967","v":0},{"$f":"Import!E8036","v":0},{"$f":"Import!E8105","v":0},{"$f":"Import!E8174","v":0},{"$f":"Import!E8243","v":0},{"$f":"Import!E8312","v":0},{"$f":"Import!E8381","v":0},{"$f":"Import!E8450","v":0},{"$f":"Import!E8519","v":0},{"$f":"Import!E8588","v":0},{"$f":"Import!E8657","v":0},{"$f":"Import!E8726","v":0},{"$f":"Import!E8795","v":0},{"$f":"Import!E8864","v":0},{"$f":"Import!E8933","v":0},{"$f":"Import!E9002","v":0},{"$f":"Import!E9071","v":0},{"$f":"Import!E9140","v":0},{"$f":"Import!E9209","v":0},{"$f":"Import!E9278","v":0}]
[null,"(AN) ","Does Beneficial Owner Governing Instrument Contain Indemnity Provisions",{"$f":"Import!E7623","v":"Select Yes/No"},{"$f":"Import!E7692","v":"Select Yes/No"},{"$f":"Import!E7761","v":"Select Yes/No"},{"$f":"Import!E7830","v":"Select Yes/No"},{"$f":"Import!E7899","v":"Select Yes/No"},{"$f":"Import!E7968","v":"Select Yes/No"},{"$f":"Import!E8037","v":"Select Yes/No"},{"$f":"Import!E8106","v":"Select Yes/No"},{"$f":"Import!E8175","v":"Select Yes/No"},{"$f":"Import!E8244","v":"Select Yes/No"},{"$f":"Import!E8313","v":"Select Yes/No"},{"$f":"Import!E8382","v":"Select Yes/No"},{"$f":"Import!E8451","v":"Select Yes/No"},{"$f":"Import!E8520","v":"Select Yes/No"},{"$f":"Import!E8589","v":"Select Yes/No"},{"$f":"Import!E8658","v":"Select Yes/No"},{"$f":"Import!E8727","v":"Select Yes/No"},{"$f":"Import!E8796","v":"Select Yes/No"},{"$f":"Import!E8865","v":"Select Yes/No"},{"$f":"Import!E8934","v":"Select Yes/No"},{"$f":"Import!E9003","v":"Select Yes/No"},{"$f":"Import!E9072","v":"Select Yes/No"},{"$f":"Import!E9141","v":"Select Yes/No"},{"$f":"Import!E9210","v":"Select Yes/No"},{"$f":"Import!E9279","v":"Select Yes/No"},"Select Yes/No","Select Yes/No","Select Yes/No","Select Yes/No","Select Yes/No","Select Yes/No","Select Yes/No","Select Yes/No","Select Yes/No","Select Yes/No","Select Yes/No","Select Yes/No","Select Yes/No","Select Yes/No","Select Yes/No","Select Yes/No","Select Yes/No","Select Yes/No","Select Yes/No","Select Yes/No","Select Yes/No","Select Yes/No","Select Yes/No","Select Yes/No","Select Yes/No"]
[null,"(AO) ","Does Insurance/Reinsurance Agreement Contain Limited Recourse Language",{"$f":"Import!E7624","v":"Select Yes/No"},{"$f":"Import!E7693","v":"Select Yes/No"},{"$f":"Import!E7762","v":"Select Yes/No"},{"$f":"Import!E7831","v":"Select Yes/No"},{"$f":"Import!E7900","v":"Select Yes/No"},{"$f":"Import!E7969","v":"Select Yes/No"},{"$f":"Import!E8038","v":"Select Yes/No"},{"$f":"Import!E8107","v":"Select Yes/No"},{"$f":"Import!E8176","v":"Select Yes/No"},{"$f":"Import!E8245","v":"Select Yes/No"},{"$f":"Import!E8314","v":"Select Yes/No"},{"$f":"Import!E8383","v":"Select Yes/No"},{"$f":"Import!E8452","v":"Select Yes/No"},{"$f":"Import!E8521","v":"Select Yes/No"},{"$f":"Import!E8590","v":"Select Yes/No"},{"$f":"Import!E8659","v":"Select Yes/No"},{"$f":"Import!E8728","v":"Select Yes/No"},{"$f":"Import!E8797","v":"Select Yes/No"},{"$f":"Import!E8866","v":"Select Yes/No"},{"$f":"Import!E8935","v":"Select Yes/No"},{"$f":"Import!E9004","v":"Select Yes/No"},{"$f":"Import!E9073","v":"Select Yes/No"},{"$f":"Import!E9142","v":"Select Yes/No"},{"$f":"Import!E9211","v":"Select Yes/No"},{"$f":"Import!E9280","v":"Select Yes/No"},"Select Yes/No","Select Yes/No","Select Yes/No","Select Yes/No","Select Yes/No","Select Yes/No","Select Yes/No","Select Yes/No","Select Yes/No","Select Yes/No","Select Yes/No","Select Yes/No","Select Yes/No","Select Yes/No","Select Yes/No","Select Yes/No","Select Yes/No","Select Yes/No","Select Yes/No","Select Yes/No","Select Yes/No","Select Yes/No","Select Yes/No","Select Yes/No","Select Yes/No"]
[null,"(AP) ","What mitigates are in place with respect to Operational Risk",{"$f":"Import!E7625","v":"Confirm Mitigants & Attach Support"},{"$f":"Import!E7694","v":"Confirm Mitigants & Attach Support"},{"$f":"Import!E7763","v":"Confirm Mitigants & Attach Support"},{"$f":"Import!E7832","v":"Confirm Mitigants & Attach Support"},{"$f":"Import!E7901","v":"Confirm Mitigants & Attach Support"},{"$f":"Import!E7970","v":"Confirm Mitigants & Attach Support"},{"$f":"Import!E8039","v":"Confirm Mitigants & Attach Support"},{"$f":"Import!E8108","v":"Confirm Mitigants & Attach Support"},{"$f":"Import!E8177","v":"Confirm Mitigants & Attach Support"},{"$f":"Import!E8246","v":"Confirm Mitigants & Attach Support"},{"$f":"Import!E8315","v":"Confirm Mitigants & Attach Support"},{"$f":"Import!E8384","v":"Confirm Mitigants & Attach Support"},{"$f":"Import!E8453","v":"Confirm Mitigants & Attach Support"},{"$f":"Import!E8522","v":"Confirm Mitigants & Attach Support"},{"$f":"Import!E8591","v":"Confirm Mitigants & Attach Support"},{"$f":"Import!E8660","v":"Confirm Mitigants & Attach Support"},{"$f":"Import!E8729","v":"Confirm Mitigants & Attach Support"},{"$f":"Import!E8798","v":"Confirm Mitigants & Attach Support"},{"$f":"Import!E8867","v":"Confirm Mitigants & Attach Support"},{"$f":"Import!E8936","v":"Confirm Mitigants & Attach Support"},{"$f":"Import!E9005","v":"Confirm Mitigants & Attach Support"},{"$f":"Import!E9074","v":"Confirm Mitigants & Attach Support"},{"$f":"Import!E9143","v":"Confirm Mitigants & Attach Support"},{"$f":"Import!E9212","v":"Confirm Mitigants & Attach Support"},{"$f":"Import!E9281","v":"Confirm Mitigants & Attach Support"},"Confirm Mitigants & Attach Support","Confirm Mitigants & Attach Support","Confirm Mitigants & Attach Support","Confirm Mitigants & Attach Support","Confirm Mitigants & Attach Support","Confirm Mitigants & Attach Support","Confirm Mitigants & Attach Support","Confirm Mitigants & Attach Support","Confirm Mitigants & Attach Support","Confirm Mitigants & Attach Support","Confirm Mitigants & Attach Support","Confirm Mitigants & Attach Support","Confirm Mitigants & Attach Support","Confirm Mitigants & Attach Support","Confirm Mitigants & Attach Support","Confirm Mitigants & Attach Support","Confirm Mitigants & Attach Support","Confirm Mitigants & Attach Support","Confirm Mitigants & Attach Support","Confirm Mitigants & Attach Support","Confirm Mitigants & Attach Support","Confirm Mitigants & Attach Support","Confirm Mitigants & Attach Support","Confirm Mitigants & Attach Support","Confirm Mitigants & Attach Support"]
[]
[null,"(AQ) ","Lines of Business Written by Premium Written"]
[null,"(i)","Statutory Lines of Business Written ",{"$f":"Import!E7626","v":"Select Line of Business"},{"$f":"Import!E7695","v":"Select Line of Business"},{"$f":"Import!E7764","v":"Select Line of Business"},{"$f":"Import!E7833","v":"Select Line of Business"},{"$f":"Import!E7902","v":"Select Line of Business"},{"$f":"Import!E7971","v":"Select Line of Business"},{"$f":"Import!E8040","v":"Select Line of Business"},{"$f":"Import!E8109","v":"Select Line of Business"},{"$f":"Import!E8178","v":"Select Line of Business"},{"$f":"Import!E8247","v":"Select Line of Business"},{"$f":"Import!E8316","v":"Select Line of Business"},{"$f":"Import!E8385","v":"Select Line of Business"},{"$f":"Import!E8454","v":"Select Line of Business"},{"$f":"Import!E8523","v":"Select Line of Business"},{"$f":"Import!E8592","v":"Select Line of Business"},{"$f":"Import!E8661","v":"Select Line of Business"},{"$f":"Import!E8730","v":"Select Line of Business"},{"$f":"Import!E8799","v":"Select Line of Business"},{"$f":"Import!E8868","v":"Select Line of Business"},{"$f":"Import!E8937","v":"Select Line of Business"},{"$f":"Import!E9006","v":"Select Line of Business"},{"$f":"Import!E9075","v":"Select Line of Business"},{"$f":"Import!E9144","v":"Select Line of Business"},{"$f":"Import!E9213","v":"Select Line of Business"},{"$f":"Import!E9282","v":"Select Line of Business"},"Select Line of Business","Select Line of Business","Select Line of Business","Select Line of Business","Select Line of Business","Select Line of Business","Select Line of Business","Select Line of Business","Select Line of Business","Select Line of Business","Select Line of Business","Select Line of Business","Select Line of Business","Select Line of Business","Select Line of Business","Select Line of Business","Select Line of Business","Select Line of Business","Select Line of Business","Select Line of Business","Select Line of Business","Select Line of Business","Select Line of Business","Select Line of Business","Select Line of Business",null,null,null,{"$f":"Import!E9308","v":"Select Line of Business"}]
[null,null,"Gross Premiums Written",{"$f":"Import!E7627","v":0},{"$f":"Import!E7696","v":0},{"$f":"Import!E7765","v":0},{"$f":"Import!E7834","v":0},{"$f":"Import!E7903","v":0},{"$f":"Import!E7972","v":0},{"$f":"Import!E8041","v":0},{"$f":"Import!E8110","v":0},{"$f":"Import!E8179","v":0},{"$f":"Import!E8248","v":0},{"$f":"Import!E8317","v":0},{"$f":"Import!E8386","v":0},{"$f":"Import!E8455","v":0},{"$f":"Import!E8524","v":0},{"$f":"Import!E8593","v":0},{"$f":"Import!E8662","v":0},{"$f":"Import!E8731","v":0},{"$f":"Import!E8800","v":0},{"$f":"Import!E8869","v":0},{"$f":"Import!E8938","v":0},{"$f":"Import!E9007","v":0},{"$f":"Import!E9076","v":0},{"$f":"Import!E9145","v":0},{"$f":"Import!E9214","v":0},{"$f":"Import!E9283","v":0},null,null,null,null,null,null,null,null,null,null,null,null,null,null,null,null,null,null,null,null,null,null,null,null,null,null,null,null,{"$f":"Import!E9309","v":0}]
[null,null,"Reinsurance Ceded",{"$f":"Import!E7628","v":0},{"$f":"Import!E7697","v":0},{"$f":"Import!E7766","v":0},{"$f":"Import!E7835","v":0},{"$f":"Import!E7904","v":0},{"$f":"Import!E7973","v":0},{"$f":"Import!E8042","v":0},{"$f":"Import!E8111","v":0},{"$f":"Import!E8180","v":0},{"$f":"Import!E8249","v":0},{"$f":"Import!E8318","v":0},{"$f":"Import!E8387","v":0},{"$f":"Import!E8456","v":0},{"$f":"Import!E8525","v":0},{"$f":"Import!E8594","v":0},{"$f":"Import!E8663","v":0},{"$f":"Import!E8732","v":0},{"$f":"Import!E8801","v":0},{"$f":"Import!E8870","v":0},{"$f":"Import!E8939","v":0},{"$f":"Import!E9008","v":0},{"$f":"Import!E9077","v":0},{"$f":"Import!E9146","v":0},{"$f":"Import!E9215","v":0},{"$f":"Import!E9284","v":0},null,null,null,null,null,null,null,null,null,null,null,null,null,null,null,null,null,null,null,null,null,null,null,null,null,null,null,null,{"$f":"Import!E9310","v":0}]
[null,null,"Net Premiums Written",{"$f":"D75-D76","v":0},{"$f":"E75-E76","v":0},0,0,0,0,0,0,0,0,0,0,0,0,0,0,0,0,0,0,0,0,0,0,0,0,0,0,0,0,0,0,0,0,0,0,0,0,0,0,0,0,0,0,0,0,0,0,0,0,null,null,null,{"$f":"BE75-BE76","v":0}]
[null,"(ii)","Statutory Lines of Business Written ",{"$f":"Import!E7630","v":"Select Line of Business"},{"$f":"Import!E7699","v":"Select Line of Business"},{"$f":"Import!E7768","v":"Select Line of Business"},{"$f":"Import!E7837","v":"Select Line of Business"},{"$f":"Import!E7906","v":"Select Line of Business"},{"$f":"Import!E7975","v":"Select Line of Business"},{"$f":"Import!E8044","v":"Select Line of Business"},{"$f":"Import!E8113","v":"Select Line of Business"},{"$f":"Import!E8182","v":"Select Line of Business"},{"$f":"Import!E8251","v":"Select Line of Business"},{"$f":"Import!E8320","v":"Select Line of Business"},{"$f":"Import!E8389","v":"Select Line of Business"},{"$f":"Import!E8458","v":"Select Line of Business"},{"$f":"Import!E8527","v":"Select Line of Business"},{"$f":"Import!E8596","v":"Select Line of Business"},{"$f":"Import!E8665","v":"Select Line of Business"},{"$f":"Import!E8734","v":"Select Line of Business"},{"$f":"Import!E8803","v":"Select Line of Business"},{"$f":"Import!E8872","v":"Select Line of Business"},{"$f":"Import!E8941","v":"Select Line of Business"},{"$f":"Import!E9010","v":"Select Line of Business"},{"$f":"Import!E9079","v":"Select Line of Business"},{"$f":"Import!E9148","v":"Select Line of Business"},{"$f":"Import!E9217","v":"Select Line of Business"},{"$f":"Import!E9286","v":"Select Line of Business"},"Select Line of Business","Select Line of Business","Select Line of Business","Select Line of Business","Select Line of Business","Select Line of Business","Select Line of Business","Select Line of Business","Select Line of Business","Select Line of Business","Select Line of Business","Select Line of Business","Select Line of Business","Select Line of Business","Select Line of Business","Select Line of Business","Select Line of Business","Select Line of Business","Select Line of Business","Select Line of Business","Select Line of Business","Select Line of Business","Select Line of Business","Select Line of Business","Select Line of Business",null,null,null,{"$f":"Import!E9312","v":"Select Line of Business"}]
[null,null,"Gross Premiums Written",{"$f":"Import!E7631","v":0},{"$f":"Import!E7700","v":0},{"$f":"Import!E7769","v":0},{"$f":"Import!E7838","v":0},{"$f":"Import!E7907","v":0},{"$f":"Import!E7976","v":0},{"$f":"Import!E8045","v":0},{"$f":"Import!E8114","v":0},{"$f":"Import!E8183","v":0},{"$f":"Import!E8252","v":0},{"$f":"Import!E8321","v":0},{"$f":"Import!E8390","v":0},{"$f":"Import!E8459","v":0},{"$f":"Import!E8528","v":0},{"$f":"Import!E8597","v":0},{"$f":"Import!E8666","v":0},{"$f":"Import!E8735","v":0},{"$f":"Import!E8804","v":0},{"$f":"Import!E8873","v":0},{"$f":"Import!E8942","v":0},{"$f":"Import!E9011","v":0},{"$f":"Import!E9080","v":0},{"$f":"Import!E9149","v":0},{"$f":"Import!E9218","v":0},{"$f":"Import!E9287","v":0},null,null,null,null,null,null,null,null,null,null,null,null,null,null,null,null,null,null,null,null,null,null,null,null,null,null,null,null,{"$f":"Import!E9313","v":0}]
[null,null,"Reinsurance Ceded",{"$f":"Import!E7632","v":0},{"$f":"Import!E7701","v":0},{"$f":"Import!E7770","v":0},{"$f":"Import!E7839","v":0},{"$f":"Import!E7908","v":0},{"$f":"Import!E7977","v":0},{"$f":"Import!E8046","v":0},{"$f":"Import!E8115","v":0},{"$f":"Import!E8184","v":0},{"$f":"Import!E8253","v":0},{"$f":"Import!E8322","v":0},{"$f":"Import!E8391","v":0},{"$f":"Import!E8460","v":0},{"$f":"Import!E8529","v":0},{"$f":"Import!E8598","v":0},{"$f":"Import!E8667","v":0},{"$f":"Import!E8736","v":0},{"$f":"Import!E8805","v":0},{"$f":"Import!E8874","v":0},{"$f":"Import!E8943","v":0},{"$f":"Import!E9012","v":0},{"$f":"Import!E9081","v":0},{"$f":"Import!E9150","v":0},{"$f":"Import!E9219","v":0},{"$f":"Import!E9288","v":0},null,null,null,null,null,null,null,null,null,null,null,null,null,null,null,null,null,null,null,null,null,null,null,null,null,null,null,null,{"$f":"Import!E9314","v":0}]
[null,null,"Net Premiums Written",{"$f":"D79-D80","v":0},{"$f":"E79-E80","v":0},{"$f":"F79-F80","v":0},{"$f":"G79-G80","v":0},{"$f":"H79-H80","v":0},0,0,0,0,0,0,0,0,0,0,0,0,0,0,0,0,0,0,0,0,{"$f":"AC79-AC80","v":0},{"$f":"AD79-AD80","v":0},{"$f":"AE79-AE80","v":0},{"$f":"AF79-AF80","v":0},{"$f":"AG79-AG80","v":0},{"$f":"AH79-AH80","v":0},{"$f":"AI79-AI80","v":0},{"$f":"AJ79-AJ80","v":0},{"$f":"AK79-AK80","v":0},{"$f":"AL79-AL80","v":0},{"$f":"AM79-AM80","v":0},{"$f":"AN79-AN80","v":0},{"$f":"AO79-AO80","v":0},{"$f":"AP79-AP80","v":0},{"$f":"AQ79-AQ80","v":0},{"$f":"AR79-AR80","v":0},{"$f":"AS79-AS80","v":0},{"$f":"AT79-AT80","v":0},{"$f":"AU79-AU80","v":0},{"$f":"AV79-AV80","v":0},{"$f":"AW79-AW80","v":0},{"$f":"AX79-AX80","v":0},{"$f":"AY79-AY80","v":0},{"$f":"AZ79-AZ80","v":0},{"$f":"BA79-BA80","v":0},null,null,null,{"$f":"BE79-BE80","v":0}]
[null,"(iii)","Statutory Lines of Business Written ",{"$f":"Import!E7634","v":"Select Line of Business"},{"$f":"Import!E7703","v":"Select Line of Business"},{"$f":"Import!E7772","v":"Select Line of Business"},{"$f":"Import!E7841","v":"Select Line of Business"},{"$f":"Import!E7910","v":"Select Line of Business"},{"$f":"Import!E7979","v":"Select Line of Business"},{"$f":"Import!E8048","v":"Select Line of Business"},{"$f":"Import!E8117","v":"Select Line of Business"},{"$f":"Import!E8186","v":"Select Line of Business"},{"$f":"Import!E8255","v":"Select Line of Business"},{"$f":"Import!E8324","v":"Select Line of Business"},{"$f":"Import!E8393","v":"Select Line of Business"},{"$f":"Import!E8462","v":"Select Line of Business"},{"$f":"Import!E8531","v":"Select Line of Business"},{"$f":"Import!E8600","v":"Select Line of Business"},{"$f":"Import!E8669","v":"Select Line of Business"},{"$f":"Import!E8738","v":"Select Line of Business"},{"$f":"Import!E8807","v":"Select Line of Business"},{"$f":"Import!E8876","v":"Select Line of Business"},{"$f":"Import!E8945","v":"Select Line of Business"},{"$f":"Import!E9014","v":"Select Line of Business"},{"$f":"Import!E9083","v":"Select Line of Business"},{"$f":"Import!E9152","v":"Select Line of Business"},{"$f":"Import!E9221","v":"Select Line of Business"},{"$f":"Import!E9290","v":"Select Line of Business"},"Select Line of Business","Select Line of Business","Select Line of Business","Select Line of Business","Select Line of Business","Select Line of Business","Select Line of Business","Select Line of Business","Select Line of Business","Select Line of Business","Select Line of Business","Select Line of Business","Select Line of Business","Select Line of Business","Select Line of Business","Select Line of Business","Select Line of Business","Select Line of Business","Select Line of Business","Select Line of Business","Select Line of Business","Select Line of Business","Select Line of Business","Select Line of Business","Select Line of Business",null,null,null,{"$f":"Import!E9316","v":"Select Line of Business"}]
[null,null,"Gross Premiums Written",{"$f":"Import!E7635","v":0},{"$f":"Import!E7704","v":0},{"$f":"Import!E7773","v":0},{"$f":"Import!E7842","v":0},{"$f":"Import!E7911","v":0},{"$f":"Import!E7980","v":0},{"$f":"Import!E8049","v":0},{"$f":"Import!E8118","v":0},{"$f":"Import!E8187","v":0},{"$f":"Import!E8256","v":0},{"$f":"Import!E8325","v":0},{"$f":"Import!E8394","v":0},{"$f":"Import!E8463","v":0},{"$f":"Import!E8532","v":0},{"$f":"Import!E8601","v":0},{"$f":"Import!E8670","v":0},{"$f":"Import!E8739","v":0},{"$f":"Import!E8808","v":0},{"$f":"Import!E8877","v":0},{"$f":"Import!E8946","v":0},{"$f":"Import!E9015","v":0},{"$f":"Import!E9084","v":0},{"$f":"Import!E9153","v":0},{"$f":"Import!E9222","v":0},{"$f":"Import!E9291","v":0},null,null,null,null,null,null,null,null,null,null,null,null,null,null,null,null,null,null,null,null,null,null,null,null,null,null,null,null,{"$f":"Import!E9317","v":0}]
[null,null,"Reinsurance Ceded",{"$f":"Import!E7636","v":0},{"$f":"Import!E7705","v":0},{"$f":"Import!E7774","v":0},{"$f":"Import!E7843","v":0},{"$f":"Import!E7912","v":0},{"$f":"Import!E7981","v":0},{"$f":"Import!E8050","v":0},{"$f":"Import!E8119","v":0},{"$f":"Import!E8188","v":0},{"$f":"Import!E8257","v":0},{"$f":"Import!E8326","v":0},{"$f":"Import!E8395","v":0},{"$f":"Import!E8464","v":0},{"$f":"Import!E8533","v":0},{"$f":"Import!E8602","v":0},{"$f":"Import!E8671","v":0},{"$f":"Import!E8740","v":0},{"$f":"Import!E8809","v":0},{"$f":"Import!E8878","v":0},{"$f":"Import!E8947","v":0},{"$f":"Import!E9016","v":0},{"$f":"Import!E9085","v":0},{"$f":"Import!E9154","v":0},{"$f":"Import!E9223","v":0},{"$f":"Import!E9292","v":0},null,null,null,null,null,null,null,null,null,null,null,null,null,null,null,null,null,null,null,null,null,null,null,null,null,null,null,null,{"$f":"Import!E9318","v":0}]
[null,null,"Net Premiums Written",{"$f":"D83-D84","v":0},{"$f":"E83-E84","v":0},{"$f":"F83-F84","v":0},{"$f":"G83-G84","v":0},{"$f":"H83-H84","v":0},0,0,0,0,0,0,0,0,0,0,0,0,0,0,0,0,0,0,0,0,{"$f":"AC83-AC84","v":0},{"$f":"AD83-AD84","v":0},{"$f":"AE83-AE84","v":0},{"$f":"AF83-AF84","v":0},{"$f":"AG83-AG84","v":0},{"$f":"AH83-AH84","v":0},{"$f":"AI83-AI84","v":0},{"$f":"AJ83-AJ84","v":0},{"$f":"AK83-AK84","v":0},{"$f":"AL83-AL84","v":0},{"$f":"AM83-AM84","v":0},{"$f":"AN83-AN84","v":0},{"$f":"AO83-AO84","v":0},{"$f":"AP83-AP84","v":0},{"$f":"AQ83-AQ84","v":0},{"$f":"AR83-AR84","v":0},{"$f":"AS83-AS84","v":0},{"$f":"AT83-AT84","v":0},{"$f":"AU83-AU84","v":0},{"$f":"AV83-AV84","v":0},{"$f":"AW83-AW84","v":0},{"$f":"AX83-AX84","v":0},{"$f":"AY83-AY84","v":0},{"$f":"AZ83-AZ84","v":0},{"$f":"BA83-BA84","v":0},null,null,null,0]
[null,"(iv)","Statutory Lines of Business Written ",{"$f":"Import!E7638","v":"Select Line of Business"},{"$f":"Import!E7707","v":"Select Line of Business"},{"$f":"Import!E7776","v":"Select Line of Business"},{"$f":"Import!E7845","v":"Select Line of Business"},{"$f":"Import!E7914","v":"Select Line of Business"},{"$f":"Import!E7983","v":"Select Line of Business"},{"$f":"Import!E8052","v":"Select Line of Business"},{"$f":"Import!E8121","v":"Select Line of Business"},{"$f":"Import!E8190","v":"Select Line of Business"},{"$f":"Import!E8259","v":"Select Line of Business"},{"$f":"Import!E8328","v":"Select Line of Business"},{"$f":"Import!E8397","v":"Select Line of Business"},{"$f":"Import!E8466","v":"Select Line of Business"},{"$f":"Import!E8535","v":"Select Line of Business"},{"$f":"Import!E8604","v":"Select Line of Business"},{"$f":"Import!E8673","v":"Select Line of Business"},{"$f":"Import!E8742","v":"Select Line of Business"},{"$f":"Import!E8811","v":"Select Line of Business"},{"$f":"Import!E8880","v":"Select Line of Business"},{"$f":"Import!E8949","v":"Select Line of Business"},{"$f":"Import!E9018","v":"Select Line of Business"},{"$f":"Import!E9087","v":"Select Line of Business"},{"$f":"Import!E9156","v":"Select Line of Business"},{"$f":"Import!E9225","v":"Select Line of Business"},{"$f":"Import!E9294","v":"Select Line of Business"},"Select Line of Business","Select Line of Business","Select Line of Business","Select Line of Business","Select Line of Business","Select Line of Business","Select Line of Business","Select Line of Business","Select Line of Business","Select Line of Business","Select Line of Business","Select Line of Business","Select Line of Business","Select Line of Business","Select Line of Business","Select Line of Business","Select Line of Business","Select Line of Business","Select Line of Business","Select Line of Business","Select Line of Business","Select Line of Business","Select Line of Business","Select Line of Business","Select Line of Business",null,null,null,{"$f":"Import!E9320","v":"Select Line of Business"}]
[null,null,"Gross Premiums Written",{"$f":"Import!E7639","v":0},{"$f":"Import!E7708","v":0},{"$f":"Import!E7777","v":0},{"$f":"Import!E7846","v":0},{"$f":"Import!E7915","v":0},{"$f":"Import!E7984","v":0},{"$f":"Import!E8053","v":0},{"$f":"Import!E8122","v":0},{"$f":"Import!E8191","v":0},{"$f":"Import!E8260","v":0},{"$f":"Import!E8329","v":0},{"$f":"Import!E8398","v":0},{"$f":"Import!E8467","v":0},{"$f":"Import!E8536","v":0},{"$f":"Import!E8605","v":0},{"$f":"Import!E8674","v":0},{"$f":"Import!E8743","v":0},{"$f":"Import!E8812","v":0},{"$f":"Import!E8881","v":0},{"$f":"Import!E8950","v":0},{"$f":"Import!E9019","v":0},{"$f":"Import!E9088","v":0},{"$f":"Import!E9157","v":0},{"$f":"Import!E9226","v":0},{"$f":"Import!E9295","v":0},null,null,null,null,null,null,null,null,null,null,null,null,null,null,null,null,null,null,null,null,null,null,null,null,null,null,null,null,{"$f":"Import!E9321","v":0}]
[null,null,"Reinsurance Ceded",{"$f":"Import!E7640","v":0},{"$f":"Import!E7709","v":0},{"$f":"Import!E7778","v":0},{"$f":"Import!E7847","v":0},{"$f":"Import!E7916","v":0},{"$f":"Import!E7985","v":0},{"$f":"Import!E8054","v":0},{"$f":"Import!E8123","v":0},{"$f":"Import!E8192","v":0},{"$f":"Import!E8261","v":0},{"$f":"Import!E8330","v":0},{"$f":"Import!E8399","v":0},{"$f":"Import!E8468","v":0},{"$f":"Import!E8537","v":0},{"$f":"Import!E8606","v":0},{"$f":"Import!E8675","v":0},{"$f":"Import!E8744","v":0},{"$f":"Import!E8813","v":0},{"$f":"Import!E8882","v":0},{"$f":"Import!E8951","v":0},{"$f":"Import!E9020","v":0},{"$f":"Import!E9089","v":0},{"$f":"Import!E9158","v":0},{"$f":"Import!E9227","v":0},{"$f":"Import!E9296","v":0},null,null,null,null,null,null,null,null,null,null,null,null,null,null,null,null,null,null,null,null,null,null,null,null,null,null,null,null,{"$f":"Import!E9322","v":0}]
[null,null,"Net Premiums Written",{"$f":"D87-D88","v":0},{"$f":"E87-E88","v":0},{"$f":"F87-F88","v":0},{"$f":"G87-G88","v":0},{"$f":"H87-H88","v":0},0,0,0,0,0,0,0,0,0,0,0,0,0,0,0,0,0,0,0,0,{"$f":"AC87-AC88","v":0},{"$f":"AD87-AD88","v":0},{"$f":"AE87-AE88","v":0},{"$f":"AF87-AF88","v":0},{"$f":"AG87-AG88","v":0},{"$f":"AH87-AH88","v":0},{"$f":"AI87-AI88","v":0},{"$f":"AJ87-AJ88","v":0},{"$f":"AK87-AK88","v":0},{"$f":"AL87-AL88","v":0},{"$f":"AM87-AM88","v":0},{"$f":"AN87-AN88","v":0},{"$f":"AO87-AO88","v":0},{"$f":"AP87-AP88","v":0},{"$f":"AQ87-AQ88","v":0},{"$f":"AR87-AR88","v":0},{"$f":"AS87-AS88","v":0},{"$f":"AT87-AT88","v":0},{"$f":"AU87-AU88","v":0},{"$f":"AV87-AV88","v":0},{"$f":"AW87-AW88","v":0},{"$f":"AX87-AX88","v":0},{"$f":"AY87-AY88","v":0},{"$f":"AZ87-AZ88","v":0},{"$f":"BA87-BA88","v":0},null,null,null,0]
[null,"(v)","Statutory Lines of Business Written ",{"$f":"Import!E7642","v":"Select Line of Business"},{"$f":"Import!E7711","v":"Select Line of Business"},{"$f":"Import!E7780","v":"Select Line of Business"},{"$f":"Import!E7849","v":"Select Line of Business"},{"$f":"Import!E7918","v":"Select Line of Business"},{"$f":"Import!E7987","v":"Select Line of Business"},{"$f":"Import!E8056","v":"Select Line of Business"},{"$f":"Import!E8125","v":"Select Line of Business"},{"$f":"Import!E8194","v":"Select Line of Business"},{"$f":"Import!E8263","v":"Select Line of Business"},{"$f":"Import!E8332","v":"Select Line of Business"},{"$f":"Import!E8401","v":"Select Line of Business"},{"$f":"Import!E8470","v":"Select Line of Business"},{"$f":"Import!E8539","v":"Select Line of Business"},{"$f":"Import!E8608","v":"Select Line of Business"},{"$f":"Import!E8677","v":"Select Line of Business"},{"$f":"Import!E8746","v":"Select Line of Business"},{"$f":"Import!E8815","v":"Select Line of Business"},{"$f":"Import!E8884","v":"Select Line of Business"},{"$f":"Import!E8953","v":"Select Line of Business"},{"$f":"Import!E9022","v":"Select Line of Business"},{"$f":"Import!E9091","v":"Select Line of Business"},{"$f":"Import!E9160","v":"Select Line of Business"},{"$f":"Import!E9229","v":"Select Line of Business"},{"$f":"Import!E9298","v":"Select Line of Business"},"Select Line of Business","Select Line of Business","Select Line of Business","Select Line of Business","Select Line of Business","Select Line of Business","Select Line of Business","Select Line of Business","Select Line of Business","Select Line of Business","Select Line of Business","Select Line of Business","Select Line of Business","Select Line of Business","Select Line of Business","Select Line of Business","Select Line of Business","Select Line of Business","Select Line of Business","Select Line of Business","Select Line of Business","Select Line of Business","Select Line of Business","Select Line of Business","Select Line of Business",null,null,null,{"$f":"Import!E9324","v":"Select Line of Business"}]
[null,null,"Gross Premiums Written",{"$f":"Import!E7643","v":0},{"$f":"Import!E7712","v":0},{"$f":"Import!E7781","v":0},{"$f":"Import!E7850","v":0},{"$f":"Import!E7919","v":0},{"$f":"Import!E7988","v":0},{"$f":"Import!E8057","v":0},{"$f":"Import!E8126","v":0},{"$f":"Import!E8195","v":0},{"$f":"Import!E8264","v":0},{"$f":"Import!E8333","v":0},{"$f":"Import!E8402","v":0},{"$f":"Import!E8471","v":0},{"$f":"Import!E8540","v":0},{"$f":"Import!E8609","v":0},{"$f":"Import!E8678","v":0},{"$f":"Import!E8747","v":0},{"$f":"Import!E8816","v":0},{"$f":"Import!E8885","v":0},{"$f":"Import!E8954","v":0},{"$f":"Import!E9023","v":0},{"$f":"Import!E9092","v":0},{"$f":"Import!E9161","v":0},{"$f":"Import!E9230","v":0},{"$f":"Import!E9299","v":0},null,null,null,null,null,null,null,null,null,null,null,null,null,null,null,null,null,null,null,null,null,null,null,null,null,null,null,null,{"$f":"Import!E9325","v":0}]
[null,null,"Reinsurance Ceded",{"$f":"Import!E7644","v":0},{"$f":"Import!E7713","v":0},{"$f":"Import!E7782","v":0},{"$f":"Import!E7851","v":0},{"$f":"Import!E7920","v":0},{"$f":"Import!E7989","v":0},{"$f":"Import!E8058","v":0},{"$f":"Import!E8127","v":0},{"$f":"Import!E8196","v":0},{"$f":"Import!E8265","v":0},{"$f":"Import!E8334","v":0},{"$f":"Import!E8403","v":0},{"$f":"Import!E8472","v":0},{"$f":"Import!E8541","v":0},{"$f":"Import!E8610","v":0},{"$f":"Import!E8679","v":0},{"$f":"Import!E8748","v":0},{"$f":"Import!E8817","v":0},{"$f":"Import!E8886","v":0},{"$f":"Import!E8955","v":0},{"$f":"Import!E9024","v":0},{"$f":"Import!E9093","v":0},{"$f":"Import!E9162","v":0},{"$f":"Import!E9231","v":0},{"$f":"Import!E9300","v":0},null,null,null,null,null,null,null,null,null,null,null,null,null,null,null,null,null,null,null,null,null,null,null,null,null,null,null,null,{"$f":"Import!E9326","v":0}]
[null,null,"Net Premiums Written",{"$f":"D91-D92","v":0},{"$f":"E91-E92","v":0},{"$f":"F91-F92","v":0},{"$f":"G91-G92","v":0},{"$f":"H91-H92","v":0},0,0,0,0,0,0,0,0,0,0,0,0,0,0,0,0,0,0,0,0,{"$f":"AC91-AC92","v":0},{"$f":"AD91-AD92","v":0},{"$f":"AE91-AE92","v":0},{"$f":"AF91-AF92","v":0},{"$f":"AG91-AG92","v":0},{"$f":"AH91-AH92","v":0},{"$f":"AI91-AI92","v":0},{"$f":"AJ91-AJ92","v":0},{"$f":"AK91-AK92","v":0},{"$f":"AL91-AL92","v":0},{"$f":"AM91-AM92","v":0},{"$f":"AN91-AN92","v":0},{"$f":"AO91-AO92","v":0},{"$f":"AP91-AP92","v":0},{"$f":"AQ91-AQ92","v":0},{"$f":"AR91-AR92","v":0},{"$f":"AS91-AS92","v":0},{"$f":"AT91-AT92","v":0},{"$f":"AU91-AU92","v":0},{"$f":"AV91-AV92","v":0},{"$f":"AW91-AW92","v":0},{"$f":"AX91-AX92","v":0},{"$f":"AY91-AY92","v":0},{"$f":"AZ91-AZ92","v":0},{"$f":"BA91-BA92","v":0},null,null,null,0]
[null,null,"Total Gross Premiums Written",{"$f":"D75+D79+D83+D87+D91","v":0},{"$f":"E75+E79+E83+E87+E91","v":0},0,0,0,0,0,0,0,0,0,0,0,0,0,0,0,0,0,0,0,0,0,0,0,0,0,0,0,0,0,0,0,0,0,0,0,0,0,0,0,0,0,0,0,0,0,0,0,0,null,{"$f":"SUM(D94:BA94)","v":0},null,{"$f":"BE75+BE79+BE83+BE87+BE91","v":0}]
[null,null,"Total Net Premiums Written",{"$f":"D77+D81+D85+D89+D93","v":0},{"$f":"E77+E81+E85+E89+E93","v":0},0,0,0,0,0,0,0,0,0,0,0,0,0,0,0,0,0,0,0,0,0,0,0,0,0,0,0,0,0,0,0,0,0,0,0,0,0,0,0,0,0,0,0,0,0,0,0,0,null,{"$f":"SUM(D95:BA95)","v":0},null,{"$f":"BE76+BE80+BE84+BE88+BE92","v":0}]
[]
[null,null,"Check Gross Premiums Written",{"$f":"ROUND((D30-D94),0)","v":0},0,0,0,0,0,0,0,0,0,0,0,0,0,0,0,0,0,0,0,0,0,0,0,0,0,0,0,0,0,0,0,{"$f":"ROUND((AJ30-AJ94),0)","v":0},0,0,0,0,0,0,0,0,0,0,0,0,0,0,0,0,0,null,null,null,{"$f":"ROUND((BE30-BE94),0)","v":0}]
[null,null,"Check Net Premiums Written",{"$f":"ROUND((D31-D95),0)","v":0},0,0,0,0,0,0,0,0,0,0,0,0,0,0,0,0,0,0,0,0,0,0,0,0,0,0,0,0,0,0,0,{"$f":"ROUND((AJ31-AJ95),0)","v":0},0,0,0,0,0,0,0,0,0,0,0,0,0,0,0,0,0,null,null,null,{"$f":"ROUND((BE31-BE95),0)","v":0}]
[]
[null,null,"Notional Minimum Margin of Solvency Test"]
[null,null,"Test A $120,000 (General Account Only)"]
[null,null,"Test B 20% for first $6 Million; 10% of Net Premiums Written in Excess",{"$f":"IF(D95>0,IF(D95>6000,1200+((D95-6000)*10%),D95*20%),\"\")","v":""},{"$f":"IF(E95>0,IF(E95>6000,1200+((E95-6000)*10%),E95*20%),\"\")","v":""},"","","","","","","","","","","","","","","","","","","","","","","","","","","","","","","","","","","","","","","","","","","","","","","","",null,null,null,{"$f":"IF(BE95>0,IF(BE95>6000,1200+((BE95-6000)*10%),BE95*20%),\"\")","v":""}]
[null,null,"Test C 10% of Net Loss Provisions",{"$f":"IF(D22>0,D22*10%,\"\")","v":""},"","","","","","","","","","","","","","","","","","","","","","","","","","","","","","","",{"$f":"IF(AJ22>0,AJ22*10%,\"\")","v":""},"","","","","","","","","","","","","","","","","",null,null,null,{"$f":"IF(BE22>0,BE22*10%,\"\")","v":""}]
[]
[null,null,"Notional Minimum Margin of Solvency ",{"$f":"MAX(D102,D103)","v":0},{"$f":"MAX(E102,E103)","v":0},0,0,0,0,0,0,0,0,0,0,0,0,0,0,0,0,0,0,0,0,0,0,0,0,0,0,0,0,0,0,0,0,0,0,0,0,0,0,0,0,0,0,0,0,0,0,0,0,null,null,null,0]
[]
[null,null,"Notional Enhanced Capital Requirement"]
[null,null,"Summary - ECR",{"$f":"IF(D21=\"\",\"\",Summary!$G$112)","v":0},{"$f":"IF(E21=\"\",\"\",Summary!$G$112)","v":0},{"$f":"IF(F21=\"\",\"\",Summary!$G$112)","v":0},{"$f":"IF(G21=\"\",\"\",Summary!$G$112)","v":0},{"$f":"IF(H21=\"\",\"\",Summary!$G$112)","v":0},{"$f":"IF(I21=\"\",\"\",Summary!$G$112)","v":0},{"$f":"IF(J21=\"\",\"\",Summary!$G$112)","v":0},{"$f":"IF(K21=\"\",\"\",Summary!$G$112)","v":0},{"$f":"IF(L21=\"\",\"\",Summary!$G$112)","v":0},{"$f":"IF(M21=\"\",\"\",Summary!$G$112)","v":0},{"$f":"IF(N21=\"\",\"\",Summary!$G$112)","v":0},{"$f":"IF(O21=\"\",\"\",Summary!$G$112)","v":0},{"$f":"IF(P21=\"\",\"\",Summary!$G$112)","v":0},{"$f":"IF(Q21=\"\",\"\",Summary!$G$112)","v":0},{"$f":"IF(R21=\"\",\"\",Summary!$G$112)","v":0},{"$f":"IF(S21=\"\",\"\",Summary!$G$112)","v":0},{"$f":"IF(T21=\"\",\"\",Summary!$G$112)","v":0},{"$f":"IF(U21=\"\",\"\",Summary!$G$112)","v":0},{"$f":"IF(V21=\"\",\"\",Summary!$G$112)","v":0},{"$f":"IF(W21=\"\",\"\",Summary!$G$112)","v":0},{"$f":"IF(X21=\"\",\"\",Summary!$G$112)","v":0},{"$f":"IF(Y21=\"\",\"\",Summary!$G$112)","v":0},{"$f":"IF(Z21=\"\",\"\",Summary!$G$112)","v":0},{"$f":"IF(AA21=\"\",\"\",Summary!$G$112)","v":0},{"$f":"IF(AB21=\"\",\"\",Summary!$G$112)","v":0},{"$f":"IF(AC21=\"\",\"\",Summary!$G$112)","v":""},{"$f":"IF(AD21=\"\",\"\",Summary!$G$112)","v":""},{"$f":"IF(AE21=\"\",\"\",Summary!$G$112)","v":""},{"$f":"IF(AF21=\"\",\"\",Summary!$G$112)","v":""},{"$f":"IF(AG21=\"\",\"\",Summary!$G$112)","v":""},{"$f":"IF(AH21=\"\",\"\",Summary!$G$112)","v":""},{"$f":"IF(AI21=\"\",\"\",Summary!$G$112)","v":""},{"$f":"IF(AJ21=\"\",\"\",Summary!$G$112)","v":""},{"$f":"IF(AK21=\"\",\"\",Summary!$G$112)","v":""},{"$f":"IF(AL21=\"\",\"\",Summary!$G$112)","v":""},{"$f":"IF(AM21=\"\",\"\",Summary!$G$112)","v":""},{"$f":"IF(AN21=\"\",\"\",Summary!$G$112)","v":""},{"$f":"IF(AO21=\"\",\"\",Summary!$G$112)","v":""},{"$f":"IF(AP21=\"\",\"\",Summary!$G$112)","v":""},{"$f":"IF(AQ21=\"\",\"\",Summary!$G$112)","v":""},{"$f":"IF(AR21=\"\",\"\",Summary!$G$112)","v":""},{"$f":"IF(AS21=\"\",\"\",Summary!$G$112)","v":""},{"$f":"IF(AT21=\"\",\"\",Summary!$G$112)","v":""},{"$f":"IF(AU21=\"\",\"\",Summary!$G$112)","v":""},{"$f":"IF(AV21=\"\",\"\",Summary!$G$112)","v":""},{"$f":"IF(AW21=\"\",\"\",Summary!$G$112)","v":""},{"$f":"IF(AX21=\"\",\"\",Summary!$G$112)","v":""},{"$f":"IF(AY21=\"\",\"\",Summary!$G$112)","v":""},{"$f":"IF(AZ21=\"\",\"\",Summary!$G$112)","v":""},{"$f":"IF(BA21=\"\",\"\",Summary!$G$112)","v":""},null,null,null,{"$f":"IF(BE21=\"\",\"\",Summary!$G$112)","v":""}]
[null,null,"Summary - Minimum Margin of Solvency",{"$f":"IF(D21=\"\",\"\",Summary!$G$106)","v":0},{"$f":"IF(E21=\"\",\"\",Summary!$G$106)","v":0},{"$f":"IF(F21=\"\",\"\",Summary!$G$106)","v":0},{"$f":"IF(G21=\"\",\"\",Summary!$G$106)","v":0},{"$f":"IF(H21=\"\",\"\",Summary!$G$106)","v":0},{"$f":"IF(I21=\"\",\"\",Summary!$G$106)","v":0},{"$f":"IF(J21=\"\",\"\",Summary!$G$106)","v":0},{"$f":"IF(K21=\"\",\"\",Summary!$G$106)","v":0},{"$f":"IF(L21=\"\",\"\",Summary!$G$106)","v":0},{"$f":"IF(M21=\"\",\"\",Summary!$G$106)","v":0},{"$f":"IF(N21=\"\",\"\",Summary!$G$106)","v":0},{"$f":"IF(O21=\"\",\"\",Summary!$G$106)","v":0},{"$f":"IF(P21=\"\",\"\",Summary!$G$106)","v":0},{"$f":"IF(Q21=\"\",\"\",Summary!$G$106)","v":0},{"$f":"IF(R21=\"\",\"\",Summary!$G$106)","v":0},{"$f":"IF(S21=\"\",\"\",Summary!$G$106)","v":0},{"$f":"IF(T21=\"\",\"\",Summary!$G$106)","v":0},{"$f":"IF(U21=\"\",\"\",Summary!$G$106)","v":0},{"$f":"IF(V21=\"\",\"\",Summary!$G$106)","v":0},{"$f":"IF(W21=\"\",\"\",Summary!$G$106)","v":0},{"$f":"IF(X21=\"\",\"\",Summary!$G$106)","v":0},{"$f":"IF(Y21=\"\",\"\",Summary!$G$106)","v":0},{"$f":"IF(Z21=\"\",\"\",Summary!$G$106)","v":0},{"$f":"IF(AA21=\"\",\"\",Summary!$G$106)","v":0},{"$f":"IF(AB21=\"\",\"\",Summary!$G$106)","v":0},{"$f":"IF(AC21=\"\",\"\",Summary!$G$106)","v":""},{"$f":"IF(AD21=\"\",\"\",Summary!$G$106)","v":""},{"$f":"IF(AE21=\"\",\"\",Summary!$G$106)","v":""},{"$f":"IF(AF21=\"\",\"\",Summary!$G$106)","v":""},{"$f":"IF(AG21=\"\",\"\",Summary!$G$106)","v":""},{"$f":"IF(AH21=\"\",\"\",Summary!$G$106)","v":""},{"$f":"IF(AI21=\"\",\"\",Summary!$G$106)","v":""},{"$f":"IF(AJ21=\"\",\"\",Summary!$G$106)","v":""},{"$f":"IF(AK21=\"\",\"\",Summary!$G$106)","v":""},{"$f":"IF(AL21=\"\",\"\",Summary!$G$106)","v":""},{"$f":"IF(AM21=\"\",\"\",Summary!$G$106)","v":""},{"$f":"IF(AN21=\"\",\"\",Summary!$G$106)","v":""},{"$f":"IF(AO21=\"\",\"\",Summary!$G$106)","v":""},{"$f":"IF(AP21=\"\",\"\",Summary!$G$106)","v":""},{"$f":"IF(AQ21=\"\",\"\",Summary!$G$106)","v":""},{"$f":"IF(AR21=\"\",\"\",Summary!$G$106)","v":""},{"$f":"IF(AS21=\"\",\"\",Summary!$G$106)","v":""},{"$f":"IF(AT21=\"\",\"\",Summary!$G$106)","v":""},{"$f":"IF(AU21=\"\",\"\",Summary!$G$106)","v":""},{"$f":"IF(AV21=\"\",\"\",Summary!$G$106)","v":""},{"$f":"IF(AW21=\"\",\"\",Summary!$G$106)","v":""},{"$f":"IF(AX21=\"\",\"\",Summary!$G$106)","v":""},{"$f":"IF(AY21=\"\",\"\",Summary!$G$106)","v":""},{"$f":"IF(AZ21=\"\",\"\",Summary!$G$106)","v":""},{"$f":"IF(BA21=\"\",\"\",Summary!$G$106)","v":""},null,null,null,{"$f":"IF(BE21=\"\",\"\",Summary!$G$106)","v":""}]
[null,null,"ECR to Minimum Margin of Solvency",{"$f":"IF(D21=\"\",\"\",IF(D109=0,0,D108/D109))","v":0},0,0,0,0,0,0,0,0,0,0,0,0,0,0,0,0,0,0,0,0,0,0,0,0,"","","","","","","",{"$f":"IF(AJ21=\"\",\"\",IF(AJ109=0,0,AJ108/AJ109))","v":""},"","","","","","","","","","","","","","","","","",null,null,null,{"$f":"IF(BE21=\"\",\"\",IF(BE109=0,0,BE108/BE109))","v":""}]
[]
[null,null,"Cell Notional ECR Requirement",{"$f":"IF(D21=0,\"\",D105*D110)","v":""},"","","","","","","","","","","","","","","","","","","","","","","","","","","","","","","",{"$f":"IF(AJ21=0,\"\",AJ105*AJ110)","v":""},"","","","","","","","","","","","","","","","","",null,null,null,{"$f":"IF(BE21=0,\"\",BE105*BE110)","v":""}]
[]
[null,null,"Cell Notional ECR Ratio",{"$f":"IF(D21=0,\"\",IF((D23+D24)=0,0,(D23+D24)/D112))","v":""},"","","","","","","","","","","","","","","","","","","","","","","","","","","","","","","",{"$f":"IF(AJ21=0,\"\",IF((AJ23+AJ24)=0,0,(AJ23+AJ24)/AJ112))","v":""},"","","","","","","","","","","","","","","","","",null,null,null,{"$f":"IF(BE21=0,\"\",IF((BE23+BE24)=0,0,(BE23+BE24)/BE112))","v":""}]
[]
[]
[null,null,null,null,null,null,null,null,null,"Select Line of Business",null,"Confirm Jurisdiction","Select Funding","Select Currency","Confirm Mitigants & Attach Support"]
[null,null,null,null,null,null,null,null,null,"General Business",null,"Zone 1 - Central & Western Asia","Cash","Bermudian Dollar","None",null,"Yes"]
[null,null,null,null,null,null,null,null,null,"Accident and Health, Travel, Personal Accident",null,"Zone 2 - Eastern Asia","Lines of Credit","US Dollar","Provide Support in Attachments tab",null,"No"]
[null,null,null,"Select Yes/No",null,null,null,null,null,"Agriculture",null,"Zone 3 - South and South-Eastern Asia","Guarantees","Canadian Dollar"]
[null,null,"Select Premiums Written","Yes","Confirm",null,"Confirm Activity","Confirm Funding / Collateral",null,"Asbestos",null,"Zone 4 - Oceania",null,"Euro"]
[null,null,"Direct Insurer","No","LOC ",null,"None","Up to Probable Maximum Loss",null,"Aviation - Hull, Liability and War",null,"Zone 5 - Northern Africa",null,"Japanese Yen"]
[null,null,"Reinsurer",null,"Guarantees",null,"Reinsurance","Up to Aggregate Limit",null,"Construction",null,"Zone 6 - Southern Africa",null,"Pound Sterling"]
[null,null,"Both",null,"Capital Calls",null,"Other (Define) ","Reserves",null,"Credit / Surety",null,"Zone 7 - Eastern Europe",null,"Swiss Franc"]
[null,null,null,null,"Other (Define) ",null,null,"Total Reserves and expenses",null,"Crime and Fidelity",null,"Zone 8 - Northern Europe"]
[null,null,null,null,null,null,null,"Other (define)",null,"Crime and Fraud",null,"Zone 9 - Southern Europe",null,"Afghanistan Afghani"]
[null,null,null,null,"Confirm",null,null,null,null,"Cyber Risk",null,"Zone 10 - Western Europe",null,"Albanian Lek"]
[null,null,null,null,"Related",null,null,null,null,"Energy - Onshore and offshore",null,"Zone 11 - Northern America (Excluding USA)",null,"Algerian Dinar"]
[null,null,null,null,"Unrelated",null,null,null,null,"Environmental Risk",null,"Zone 12 - Caribbean & Centeral America",null,"Angolan Kwanza"]
[null,null,null,null,null,null,null,null,null,"General liability - Public, Products, Umbrella, Product recall",null,"Zone 13 - Eastern South America",null,"Arab Emirates Dirham"]
[null,null,null,null,"Confirm Beneficial Owner",null,null,null,null,"Life and Accident and Health (General Business approval)",null,"Zone 14 - Northern, Southern and Western South America",null,"Argentine Peso"]
[null,null,null,null,"Single",null,null,null,null,"Marine - P&I, Cargo, Hull and Liability, War",null,"Zone 15 - North-East United States",null,"Armenian Dram"]
[null,null,null,null,"Multiple",null,null,null,null,"Medical Malpractice",null,"Zone 16 - South-East United States",null,"Aruban Guilder"]
[null,null,null,null,null,null,null,null,null,"Mortgage",null,"Zone 17 - Mid-West United States",null,"Australian Dollar"]
[null,null,null,null,"Confirm Ownership",null,null,null,null,"Motor - APD and Liability",null,"Zone 18 - Western United States",null,"Azerbaijan New Manat"]
[null,null,null,null,"Management General Agents & Brokers",null,null,null,null,"Political Risks",null,null,null,"Bahamian Dollar"]
[null,null,null,null,"Insurance Company",null,null,null,null,"Professional Liability - Professional Indemnity, D&O, Bankers Blanket, E&O",null,null,null,"Bahraini Dinar"]
[null,null,null,null,"Reinsurance Company",null,null,null,null,"Property Catastrophe",null,null,null,"Bangladeshi Taka"]
[null,null,null,null,"Non-Insurance Company",null,null,null,null,"Property Damage and Business Interruption",null,null,null,"Barbados Dollar"]
[null,null,null,null,"Non-Related Investors",null,null,null,null,"Property Retro",null,null,null,"Belarussian Ruble"]
[null,null,null,null,"Other",null,"A or better",null,null,"Structured/Finite Reinsurance",null,null,null,"Belize Dollar"]
[null,null,null,null,null,null,"BBB or equivalent",null,null,"Terrorism",null,null,null,"Bhutan Ngultrum"]
[null,null,null,null,"Confirm Instrument",null,"B or better",null,null,"Warranty, Residual Value",null,null,null,"Boliviano"]
[null,null,null,null,"Non-Voting Preferred Shareholder Agreement",null,"unrated/other",null,null,"Workers Compensation/Employers Liability",null,null,null,"Botswana Pula"]
[null,null,null,null,"Participation Agreement",null,null,null,null,null,null,null,null,"Brazilian Real"]
[null,null,null,null,"Noteholder Agreement",null,null,null,null,"Long Term Business",null,null,null,"Brunei Dollar"]
[null,null,null,null,"Contingent Commission Agreement",null,null,null,null,"Mortality",null,null,null,"Burundi Franc"]
[null,null,null,null,"Other Agreement",null,null,null,null,"Critical Illness",null,null,null,"Cape Verde Escudo"]
[null,null,null,null,null,null,null,null,null,"Longevity",null,null,null,"Cayman Islands Dollar"]
[null,null,null,null,null,null,null,null,null,"Deferred Annuities",null,null,null,"CFA Franc BCEAO"]
[null,null,null,null,null,null,null,null,null,"Disability Income: Active lives with premium guarantee of -",null,null,null,"CFA Franc BEAC"]
[null,null,null,null,null,null,null,null,null,"Less than or equal to 1 year",null,null,null,"CFP Franc"]
[null,null,null,null,null,null,null,null,null,"More than 1 year but less than 5 years",null,null,null,"Chilean Peso"]
[null,null,null,null,null,null,null,null,null,"Greater than 5 years",null,null,null,"Colombian Peso"]
[null,null,null,null,null,null,null,null,null,"Disability Income: Actives lives for other",null,null,null,"Comoros Franc"]
[null,null,null,null,null,null,null,null,null,"accident and sickness",null,null,null,"Costa Rican Colon"]
[null,null,null,null,null,null,null,null,null,"Disability Income: Claims in payment",null,null,null,"Croatian Kuna"]
[null,null,null,null,null,null,null,null,null,"Disability Income: Claims in payment for other",null,null,null,"Cuban Peso"]
[null,null,null,null,null,null,null,null,null,"accident and sickness",null,null,null,"Czech Koruna"]
[null,null,null,null,null,null,null,null,null,"Group Life",null,null,null,"Danish Krone"]
[null,null,null,null,null,null,null,null,null,"Group Disability",null,null,null,"Denar"]
[null,null,null,null,null,null,null,null,null,"Group Health",null,null,null,"Djibouti Franc"]
[null,null,null,null,null,null,null,null,null,"Stop Loss",null,null,null,"Dominican Peso"]
[null,null,null,null,null,null,null,null,null,"Rider",null,null,null,"East Caribbean Dollar"]
[null,null,null,null,null,null,null,null,null,"Variable Annuities",null,null,null,"Ecuador Sucre"]
[null,null,null,null,null,null,null,null,null,null,null,null,null,"Egyptian Pound"]
[null,null,null,null,null,null,null,null,null,null,null,null,null,"El Salvador Colon"]
[null,null,null,null,null,null,null,null,null,null,null,null,null,"Eritrean Nakfa"]
[null,null,null,null,null,null,null,null,null,null,null,null,null,"Falkland Islands Pound"]
[null,null,null,null,null,null,null,null,null,null,null,null,null,"Fiji Dollar"]
[null,null,null,null,null,null,null,null,null,null,null,null,null,"Francs"]
[null,null,null,null,null,null,null,null,null,null,null,null,null,"Gambian Dalasi"]
[null,null,null,null,null,null,null,null,null,null,null,null,null,"Georgian Lari"]
[null,null,null,null,null,null,null,null,null,null,null,null,null,"Ghanaian Cedi"]
[null,null,null,null,null,null,null,null,null,null,null,null,null,"Gibraltar Pound"]
[null,null,null,null,null,null,null,null,null,null,null,null,null,"Guatemalan Quetzal"]
[null,null,null,null,null,null,null,null,null,null,null,null,null,"Guinea Franc"]
[null,null,null,null,null,null,null,null,null,null,null,null,null,"Guinea-Bissau Peso"]
[null,null,null,null,null,null,null,null,null,null,null,null,null,"Guyana Dollar"]
[null,null,null,null,null,null,null,null,null,null,null,null,null,"Haitian Gourde"]
[null,null,null,null,null,null,null,null,null,null,null,null,null,"Honduran Lempira"]
[null,null,null,null,null,null,null,null,null,null,null,null,null,"Hong Kong Dollar"]
[null,null,null,null,null,null,null,null,null,null,null,null,null,"Hungarian Forint"]
[null,null,null,null,null,null,null,null,null,null,null,null,null,"Iceland Krona"]
[null,null,null,null,null,null,null,null,null,null,null,null,null,"Indian Rupee"]
[null,null,null,null,null,null,null,null,null,null,null,null,null,"Indonesian Rupiah"]
[null,null,null,null,null,null,null,null,null,null,null,null,null,"Iraqi Dinar"]
[null,null,null,null,null,null,null,null,null,null,null,null,null,"Israeli New Shekel"]
[null,null,null,null,null,null,null,null,null,null,null,null,null,"Jamaican Dollar"]
[null,null,null,null,null,null,null,null,null,null,null,null,null,"Jordanian Dinar"]
[null,null,null,null,null,null,null,null,null,null,null,null,null,"Kampuchean Riel"]
[null,null,null,null,null,null,null,null,null,null,null,null,null,"Kazakhstan Tenge"]
[null,null,null,null,null,null,null,null,null,null,null,null,null,"Kenyan Shilling"]
[null,null,null,null,null,null,null,null,null,null,null,null,null,"Korean Won"]
[null,null,null,null,null,null,null,null,null,null,null,null,null,"Kuwaiti Dinar"]
[null,null,null,null,null,null,null,null,null,null,null,null,null,"Lao Kip"]
[null,null,null,null,null,null,null,null,null,null,null,null,null,"Latvian Lats"]
[null,null,null,null,null,null,null,null,null,null,null,null,null,"Lebanese Pound"]
[null,null,null,null,null,null,null,null,null,null,null,null,null,"Lesotho Loti"]
[null,null,null,null,null,null,null,null,null,null,null,null,null,"Liberian Dollar"]
[null,null,null,null,null,null,null,null,null,null,null,null,null,"Libyan Dinar"]
[null,null,null,null,null,null,null,null,null,null,null,null,null,"Lithuanian Litas"]
[null,null,null,null,null,null,null,null,null,null,null,null,null,"Macau Pataca"]
[null,null,null,null,null,null,null,null,null,null,null,null,null,"Malagasy Franc"]
[null,null,null,null,null,null,null,null,null,null,null,null,null,"Malawi Kwacha"]
[null,null,null,null,null,null,null,null,null,null,null,null,null,"Malaysian Ringgit"]
[null,null,null,null,null,null,null,null,null,null,null,null,null,"Maldive Rufiyaa"]
[null,null,null,null,null,null,null,null,null,null,null,null,null,"Manat"]
[null,null,null,null,null,null,null,null,null,null,null,null,null,"Marka"]
[null,null,null,null,null,null,null,null,null,null,null,null,null,"Moroccan Dirham"]
[null,null,null,null,null,null,null,null,null,null,null,null,null,"New Zealand Dollar"]
[null,null,null,null,null,null,null,null,null,null,null,null,null,"North Korean Won"]
[null,null,null,null,null,null,null,null,null,null,null,null,null,"Norwegian Krone"]
[null,null,null,null,null,null,null,null,null,null,null,null,null,"Norwegian Krone"]
[null,null,null,null,null,null,null,null,null,null,null,null,null,"Som"]
[null,null,null,null,null,null,null,null,null,null,null,null,null,"Sri Lanka Rupee"]
[null,null,null,null,null,null,null,null,null,null,null,null,null,"Sudanese Pound"]
[null,null,null,null,null,null,null,null,null,null,null,null,null,"Surinam Dollar"]
[null,null,null,null,null,null,null,null,null,null,null,null,null,"Swaziland Lilangeni"]
[null,null,null,null,null,null,null,null,null,null,null,null,null,"Swedish Krona"]
[null,null,null,null,null,null,null,null,null,null,null,null,null,"Syrian Pound"]
[null,null,null,null,null,null,null,null,null,null,null,null,null,"Taiwan Dollar"]
[null,null,null,null,null,null,null,null,null,null,null,null,null,"Tajik Somoni"]
[null,null,null,null,null,null,null,null,null,null,null,null,null,"Tanzanian Shilling"]
[null,null,null,null,null,null,null,null,null,null,null,null,null,"Thai Baht"]
[null,null,null,null,null,null,null,null,null,null,null,null,null,"Tongan Pa'anga"]
[null,null,null,null,null,null,null,null,null,null,null,null,null,"Trinidad and Tobago Dollar"]
[null,null,null,null,null,null,null,null,null,null,null,null,null,"Tunisian Dollar"]
[null,null,null,null,null,null,null,null,null,null,null,null,null,"Turkish Lira"]
[null,null,null,null,null,null,null,null,null,null,null,null,null,"Uganda Shilling"]
[null,null,null,null,null,null,null,null,null,null,null,null,null,"Ukraine Hryvnia"]
[null,null,null,null,null,null,null,null,null,null,null,null,null,"Uruguayan Peso"]
[null,null,null,null,null,null,null,null,null,null,null,null,null,"Uzbekistan Sum"]
[null,null,null,null,null,null,null,null,null,null,null,null,"Vanuatu Vatu","Vanuatu Vatu"]
[null,null,null,null,null,null,null,null,null,null,null,null,"Venezuelan Bolivar","Venezuelan Bolivar"]
[null,null,null,null,null,null,null,null,null,null,null,null,"Yemeni Rial","Yemeni Rial"]
[null,null,null,null,null,null,null,null,null,null,null,null,"Yuan Renminbi","Yuan Renminbi"]
[null,null,null,null,null,null,null,null,null,null,null,null,"Zambian Kwacha","Zambian Kwacha"]
[null,null,null,null,null,null,null,null,null,null,null,null,"Zimbabwe Dollar","Zimbabwe Dollar"]

{"sheet":"Schedule V(m)","index":49,"n_rows":1566,"n_cols":23,"rows_kept":1566,"cut":false,"hidden":false,"merged":[[1,2,1,3],[2,2,2,3],[3,2,3,3],[8,1,8,4],[1514,1,1520,10]]}
[null,"Alternative Capital Analysis ",null,null,null,null,null,null,null,null,null,null,null,null,null,null,null,null,null,null,null,null,{"$f":"HYPERLINK(\"#'Index'!A1\",\"Return to Index\")","v":"Return to Index"}]
[null,"Name of Insurer:",{"$f":"'Company Information'!C7","v":"Enter Company Name"}]
[null,"Structure of the Insurer:",{"$f":"Import!E9334","v":"Select from Drop Down"},{"$f":"Import!F9334","v":0}]
[null,"For the Year-Ending:",{"$f":" TEXT('Company Information'!C3,\"d mmmm yyyy\")","v":"31 December 2023"}]
[]
[null,"Enter Number of Rows required",{"$f":"Import!E9335","v":0}]
[null,"(Maximum of 1,500 Rows available)"]
[null,"A)  Transaction Details"]
[null,"All monetary figures must be reported in Units and in United States Dollars"]
[null,"Name of Cedant","Contract Reference (e.g. Cell Name/Account No.)","Type of coverage","Statutory Line of Business Written","Location of Exposure Covered","Aggregate Maximum Limit as at Inception Date","Net Aggregate Maximum Limit at the end of Financial Year","Inception Date of Cover Period (DD/MM/YYYY)","Effective Date of Contract\n(DD/MM/YYYY)","Expiry Date of Cover Period (DD/MM/YYYY)","Gross Premium Written for the Cover Period","Net Premium Written for the Cover Period","Attachment Point","Aggregate Losses Outstanding at the Beginning of the Financial Year","Aggregate Losses Incurred During the Financial Year","Aggregate Losses Outstanding at the End of the Financial Year","Reserved Buffer Collateral","Currency of Exposure","Nature of Collateral ","Average Collateral Rating ","Amount of Collateral","Additional Comments (Optional/If Necessary)"]
[1,{"$f":"Import!E9336","v":0},{"$f":"Import!E9361","v":0},{"$f":"Import!E9386","v":"Select from Drop Down"},{"$f":"Import!E9411","v":"Select from Drop Down"},{"$f":"Import!E9436","v":"Select from Drop Down"},{"$f":"Import!E9461","v":0},{"$f":"Import!E9487","v":0},{"$f":"IF(Import!E9513=0,\"\",Import!E9513)","v":""},{"$f":"IF(Import!E9538=0,\"\",Import!E9538)","v":""},{"$f":"IF(Import!E9563=0,\"\",Import!E9563)","v":""},{"$f":"Import!E9588","v":0},{"$f":"Import!E9614","v":0},{"$f":"Import!E9640","v":0},{"$f":"Import!E9666","v":0},{"$f":"Import!E9692","v":0},{"$f":"Import!E9718","v":0},{"$f":"Import!E9744","v":0},{"$f":"Import!E9770","v":"Select from Drop Down"},{"$f":"Import!E9795","v":"Select from Drop Down"},{"$f":"Import!E9820","v":"Select from Drop Down"},{"$f":"Import!E9845","v":0},{"$f":"Import!E9871","v":0}]
[{"$f":"A11+1","v":2},{"$f":"Import!E9337","v":0},{"$f":"Import!E9362","v":0},{"$f":"Import!E9387","v":"Select from Drop Down"},{"$f":"Import!E9412","v":"Select from Drop Down"},{"$f":"Import!E9437","v":"Select from Drop Down"},{"$f":"Import!E9462","v":0},{"$f":"Import!E9488","v":0},{"$f":"IF(Import!E9514=0,\"\",Import!E9514)","v":""},{"$f":"IF(Import!E9539=0,\"\",Import!E9539)","v":""},{"$f":"IF(Import!E9564=0,\"\",Import!E9564)","v":""},{"$f":"Import!E9589","v":0},{"$f":"Import!E9615","v":0},{"$f":"Import!E9641","v":0},{"$f":"Import!E9667","v":0},{"$f":"Import!E9693","v":0},{"$f":"Import!E9719","v":0},{"$f":"Import!E9745","v":0},{"$f":"Import!E9771","v":"Select from Drop Down"},{"$f":"Import!E9796","v":"Select from Drop Down"},{"$f":"Import!E9821","v":"Select from Drop Down"},{"$f":"Import!E9846","v":0},{"$f":"Import!E9872","v":0}]
[{"$f":"A12+1","v":3},{"$f":"Import!E9338","v":0},{"$f":"Import!E9363","v":0},{"$f":"Import!E9388","v":"Select from Drop Down"},{"$f":"Import!E9413","v":"Select from Drop Down"},{"$f":"Import!E9438","v":"Select from Drop Down"},{"$f":"Import!E9463","v":0},{"$f":"Import!E9489","v":0},{"$f":"IF(Import!E9515=0,\"\",Import!E9515)","v":""},{"$f":"IF(Import!E9540=0,\"\",Import!E9540)","v":""},{"$f":"IF(Import!E9565=0,\"\",Import!E9565)","v":""},{"$f":"Import!E9590","v":0},{"$f":"Import!E9616","v":0},{"$f":"Import!E9642","v":0},{"$f":"Import!E9668","v":0},{"$f":"Import!E9694","v":0},{"$f":"Import!E9720","v":0},{"$f":"Import!E9746","v":0},{"$f":"Import!E9772","v":"Select from Drop Down"},{"$f":"Import!E9797","v":"Select from Drop Down"},{"$f":"Import!E9822","v":"Select from Drop Down"},{"$f":"Import!E9847","v":0},{"$f":"Import!E9873","v":0}]
[4,{"$f":"Import!E9339","v":0},{"$f":"Import!E9364","v":0},{"$f":"Import!E9389","v":"Select from Drop Down"},{"$f":"Import!E9414","v":"Select from Drop Down"},{"$f":"Import!E9439","v":"Select from Drop Down"},{"$f":"Import!E9464","v":0},{"$f":"Import!E9490","v":0},{"$f":"IF(Import!E9516=0,\"\",Import!E9516)","v":""},{"$f":"IF(Import!E9541=0,\"\",Import!E9541)","v":""},{"$f":"IF(Import!E9566=0,\"\",Import!E9566)","v":""},{"$f":"Import!E9591","v":0},{"$f":"Import!E9617","v":0},{"$f":"Import!E9643","v":0},{"$f":"Import!E9669","v":0},{"$f":"Import!E9695","v":0},{"$f":"Import!E9721","v":0},{"$f":"Import!E9747","v":0},{"$f":"Import!E9773","v":"Select from Drop Down"},{"$f":"Import!E9798","v":"Select from Drop Down"},{"$f":"Import!E9823","v":"Select from Drop Down"},{"$f":"Import!E9848","v":0},{"$f":"Import!E9874","v":0}]
[5,{"$f":"Import!E9340","v":0},{"$f":"Import!E9365","v":0},{"$f":"Import!E9390","v":"Select from Drop Down"},{"$f":"Import!E9415","v":"Select from Drop Down"},{"$f":"Import!E9440","v":"Select from Drop Down"},{"$f":"Import!E9465","v":0},{"$f":"Import!E9491","v":0},{"$f":"IF(Import!E9517=0,\"\",Import!E9517)","v":""},{"$f":"IF(Import!E9542=0,\"\",Import!E9542)","v":""},{"$f":"IF(Import!E9567=0,\"\",Import!E9567)","v":""},{"$f":"Import!E9592","v":0},{"$f":"Import!E9618","v":0},{"$f":"Import!E9644","v":0},{"$f":"Import!E9670","v":0},{"$f":"Import!E9696","v":0},{"$f":"Import!E9722","v":0},{"$f":"Import!E9748","v":0},{"$f":"Import!E9774","v":"Select from Drop Down"},{"$f":"Import!E9799","v":"Select from Drop Down"},{"$f":"Import!E9824","v":"Select from Drop Down"},{"$f":"Import!E9849","v":0},{"$f":"Import!E9875","v":0}]
[6,{"$f":"Import!E9341","v":0},{"$f":"Import!E9366","v":0},{"$f":"Import!E9391","v":"Select from Drop Down"},{"$f":"Import!E9416","v":"Select from Drop Down"},{"$f":"Import!E9441","v":"Select from Drop Down"},{"$f":"Import!E9466","v":0},{"$f":"Import!E9492","v":0},{"$f":"IF(Import!E9518=0,\"\",Import!E9518)","v":""},{"$f":"IF(Import!E9543=0,\"\",Import!E9543)","v":""},{"$f":"IF(Import!E9568=0,\"\",Import!E9568)","v":""},{"$f":"Import!E9593","v":0},{"$f":"Import!E9619","v":0},{"$f":"Import!E9645","v":0},{"$f":"Import!E9671","v":0},{"$f":"Import!E9697","v":0},{"$f":"Import!E9723","v":0},{"$f":"Import!E9749","v":0},{"$f":"Import!E9775","v":"Select from Drop Down"},{"$f":"Import!E9800","v":"Select from Drop Down"},{"$f":"Import!E9825","v":"Select from Drop Down"},{"$f":"Import!E9850","v":0},{"$f":"Import!E9876","v":0}]
[7,{"$f":"Import!E9342","v":0},{"$f":"Import!E9367","v":0},{"$f":"Import!E9392","v":"Select from Drop Down"},{"$f":"Import!E9417","v":"Select from Drop Down"},{"$f":"Import!E9442","v":"Select from Drop Down"},{"$f":"Import!E9467","v":0},{"$f":"Import!E9493","v":0},{"$f":"IF(Import!E9519=0,\"\",Import!E9519)","v":""},{"$f":"IF(Import!E9544=0,\"\",Import!E9544)","v":""},{"$f":"IF(Import!E9569=0,\"\",Import!E9569)","v":""},{"$f":"Import!E9594","v":0},{"$f":"Import!E9620","v":0},{"$f":"Import!E9646","v":0},{"$f":"Import!E9672","v":0},{"$f":"Import!E9698","v":0},{"$f":"Import!E9724","v":0},{"$f":"Import!E9750","v":0},{"$f":"Import!E9776","v":"Select from Drop Down"},{"$f":"Import!E9801","v":"Select from Drop Down"},{"$f":"Import!E9826","v":"Select from Drop Down"},{"$f":"Import!E9851","v":0},{"$f":"Import!E9877","v":0}]
[8,{"$f":"Import!E9343","v":0},{"$f":"Import!E9368","v":0},{"$f":"Import!E9393","v":"Select from Drop Down"},{"$f":"Import!E9418","v":"Select from Drop Down"},{"$f":"Import!E9443","v":"Select from Drop Down"},{"$f":"Import!E9468","v":0},{"$f":"Import!E9494","v":0},{"$f":"IF(Import!E9520=0,\"\",Import!E9520)","v":""},{"$f":"IF(Import!E9545=0,\"\",Import!E9545)","v":""},{"$f":"IF(Import!E9570=0,\"\",Import!E9570)","v":""},{"$f":"Import!E9595","v":0},{"$f":"Import!E9621","v":0},{"$f":"Import!E9647","v":0},{"$f":"Import!E9673","v":0},{"$f":"Import!E9699","v":0},{"$f":"Import!E9725","v":0},{"$f":"Import!E9751","v":0},{"$f":"Import!E9777","v":"Select from Drop Down"},{"$f":"Import!E9802","v":"Select from Drop Down"},{"$f":"Import!E9827","v":"Select from Drop Down"},{"$f":"Import!E9852","v":0},{"$f":"Import!E9878","v":0}]
[9,{"$f":"Import!E9344","v":0},{"$f":"Import!E9369","v":0},{"$f":"Import!E9394","v":"Select from Drop Down"},{"$f":"Import!E9419","v":"Select from Drop Down"},{"$f":"Import!E9444","v":"Select from Drop Down"},{"$f":"Import!E9469","v":0},{"$f":"Import!E9495","v":0},{"$f":"IF(Import!E9521=0,\"\",Import!E9521)","v":""},{"$f":"IF(Import!E9546=0,\"\",Import!E9546)","v":""},{"$f":"IF(Import!E9571=0,\"\",Import!E9571)","v":""},{"$f":"Import!E9596","v":0},{"$f":"Import!E9622","v":0},{"$f":"Import!E9648","v":0},{"$f":"Import!E9674","v":0},{"$f":"Import!E9700","v":0},{"$f":"Import!E9726","v":0},{"$f":"Import!E9752","v":0},{"$f":"Import!E9778","v":"Select from Drop Down"},{"$f":"Import!E9803","v":"Select from Drop Down"},{"$f":"Import!E9828","v":"Select from Drop Down"},{"$f":"Import!E9853","v":0},{"$f":"Import!E9879","v":0}]
[10,{"$f":"Import!E9345","v":0},{"$f":"Import!E9370","v":0},{"$f":"Import!E9395","v":"Select from Drop Down"},{"$f":"Import!E9420","v":"Select from Drop Down"},{"$f":"Import!E9445","v":"Select from Drop Down"},{"$f":"Import!E9470","v":0},{"$f":"Import!E9496","v":0},{"$f":"IF(Import!E9522=0,\"\",Import!E9522)","v":""},{"$f":"IF(Import!E9547=0,\"\",Import!E9547)","v":""},{"$f":"IF(Import!E9572=0,\"\",Import!E9572)","v":""},{"$f":"Import!E9597","v":0},{"$f":"Import!E9623","v":0},{"$f":"Import!E9649","v":0},{"$f":"Import!E9675","v":0},{"$f":"Import!E9701","v":0},{"$f":"Import!E9727","v":0},{"$f":"Import!E9753","v":0},{"$f":"Import!E9779","v":"Select from Drop Down"},{"$f":"Import!E9804","v":"Select from Drop Down"},{"$f":"Import!E9829","v":"Select from Drop Down"},{"$f":"Import!E9854","v":0},{"$f":"Import!E9880","v":0}]
[11,{"$f":"Import!E9346","v":0},{"$f":"Import!E9371","v":0},{"$f":"Import!E9396","v":"Select from Drop Down"},{"$f":"Import!E9421","v":"Select from Drop Down"},{"$f":"Import!E9446","v":"Select from Drop Down"},{"$f":"Import!E9471","v":0},{"$f":"Import!E9497","v":0},{"$f":"IF(Import!E9523=0,\"\",Import!E9523)","v":""},{"$f":"IF(Import!E9548=0,\"\",Import!E9548)","v":""},{"$f":"IF(Import!E9573=0,\"\",Import!E9573)","v":""},{"$f":"Import!E9598","v":0},{"$f":"Import!E9624","v":0},{"$f":"Import!E9650","v":0},{"$f":"Import!E9676","v":0},{"$f":"Import!E9702","v":0},{"$f":"Import!E9728","v":0},{"$f":"Import!E9754","v":0},{"$f":"Import!E9780","v":"Select from Drop Down"},{"$f":"Import!E9805","v":"Select from Drop Down"},{"$f":"Import!E9830","v":"Select from Drop Down"},{"$f":"Import!E9855","v":0},{"$f":"Import!E9881","v":0}]
[12,{"$f":"Import!E9347","v":0},{"$f":"Import!E9372","v":0},{"$f":"Import!E9397","v":"Select from Drop Down"},{"$f":"Import!E9422","v":"Select from Drop Down"},{"$f":"Import!E9447","v":"Select from Drop Down"},{"$f":"Import!E9472","v":0},{"$f":"Import!E9498","v":0},{"$f":"IF(Import!E9524=0,\"\",Import!E9524)","v":""},{"$f":"IF(Import!E9549=0,\"\",Import!E9549)","v":""},{"$f":"IF(Import!E9574=0,\"\",Import!E9574)","v":""},{"$f":"Import!E9599","v":0},{"$f":"Import!E9625","v":0},{"$f":"Import!E9651","v":0},{"$f":"Import!E9677","v":0},{"$f":"Import!E9703","v":0},{"$f":"Import!E9729","v":0},{"$f":"Import!E9755","v":0},{"$f":"Import!E9781","v":"Select from Drop Down"},{"$f":"Import!E9806","v":"Select from Drop Down"},{"$f":"Import!E9831","v":"Select from Drop Down"},{"$f":"Import!E9856","v":0},{"$f":"Import!E9882","v":0}]
[13,{"$f":"Import!E9348","v":0},{"$f":"Import!E9373","v":0},{"$f":"Import!E9398","v":"Select from Drop Down"},{"$f":"Import!E9423","v":"Select from Drop Down"},{"$f":"Import!E9448","v":"Select from Drop Down"},{"$f":"Import!E9473","v":0},{"$f":"Import!E9499","v":0},{"$f":"IF(Import!E9525=0,\"\",Import!E9525)","v":""},{"$f":"IF(Import!E9550=0,\"\",Import!E9550)","v":""},{"$f":"IF(Import!E9575=0,\"\",Import!E9575)","v":""},{"$f":"Import!E9600","v":0},{"$f":"Import!E9626","v":0},{"$f":"Import!E9652","v":0},{"$f":"Import!E9678","v":0},{"$f":"Import!E9704","v":0},{"$f":"Import!E9730","v":0},{"$f":"Import!E9756","v":0},{"$f":"Import!E9782","v":"Select from Drop Down"},{"$f":"Import!E9807","v":"Select from Drop Down"},{"$f":"Import!E9832","v":"Select from Drop Down"},{"$f":"Import!E9857","v":0},{"$f":"Import!E9883","v":0}]
[14,{"$f":"Import!E9349","v":0},{"$f":"Import!E9374","v":0},{"$f":"Import!E9399","v":"Select from Drop Down"},{"$f":"Import!E9424","v":"Select from Drop Down"},{"$f":"Import!E9449","v":"Select from Drop Down"},{"$f":"Import!E9474","v":0},{"$f":"Import!E9500","v":0},{"$f":"IF(Import!E9526=0,\"\",Import!E9526)","v":""},{"$f":"IF(Import!E9551=0,\"\",Import!E9551)","v":""},{"$f":"IF(Import!E9576=0,\"\",Import!E9576)","v":""},{"$f":"Import!E9601","v":0},{"$f":"Import!E9627","v":0},{"$f":"Import!E9653","v":0},{"$f":"Import!E9679","v":0},{"$f":"Import!E9705","v":0},{"$f":"Import!E9731","v":0},{"$f":"Import!E9757","v":0},{"$f":"Import!E9783","v":"Select from Drop Down"},{"$f":"Import!E9808","v":"Select from Drop Down"},{"$f":"Import!E9833","v":"Select from Drop Down"},{"$f":"Import!E9858","v":0},{"$f":"Import!E9884","v":0}]
[15,{"$f":"Import!E9350","v":0},{"$f":"Import!E9375","v":0},{"$f":"Import!E9400","v":"Select from Drop Down"},{"$f":"Import!E9425","v":"Select from Drop Down"},{"$f":"Import!E9450","v":"Select from Drop Down"},{"$f":"Import!E9475","v":0},{"$f":"Import!E9501","v":0},{"$f":"IF(Import!E9527=0,\"\",Import!E9527)","v":""},{"$f":"IF(Import!E9552=0,\"\",Import!E9552)","v":""},{"$f":"IF(Import!E9577=0,\"\",Import!E9577)","v":""},{"$f":"Import!E9602","v":0},{"$f":"Import!E9628","v":0},{"$f":"Import!E9654","v":0},{"$f":"Import!E9680","v":0},{"$f":"Import!E9706","v":0},{"$f":"Import!E9732","v":0},{"$f":"Import!E9758","v":0},{"$f":"Import!E9784","v":"Select from Drop Down"},{"$f":"Import!E9809","v":"Select from Drop Down"},{"$f":"Import!E9834","v":"Select from Drop Down"},{"$f":"Import!E9859","v":0},{"$f":"Import!E9885","v":0}]
[16,{"$f":"Import!E9351","v":0},{"$f":"Import!E9376","v":0},{"$f":"Import!E9401","v":"Select from Drop Down"},{"$f":"Import!E9426","v":"Select from Drop Down"},{"$f":"Import!E9451","v":"Select from Drop Down"},{"$f":"Import!E9476","v":0},{"$f":"Import!E9502","v":0},{"$f":"IF(Import!E9528=0,\"\",Import!E9528)","v":""},{"$f":"IF(Import!E9553=0,\"\",Import!E9553)","v":""},{"$f":"IF(Import!E9578=0,\"\",Import!E9578)","v":""},{"$f":"Import!E9603","v":0},{"$f":"Import!E9629","v":0},{"$f":"Import!E9655","v":0},{"$f":"Import!E9681","v":0},{"$f":"Import!E9707","v":0},{"$f":"Import!E9733","v":0},{"$f":"Import!E9759","v":0},{"$f":"Import!E9785","v":"Select from Drop Down"},{"$f":"Import!E9810","v":"Select from Drop Down"},{"$f":"Import!E9835","v":"Select from Drop Down"},{"$f":"Import!E9860","v":0},{"$f":"Import!E9886","v":0}]
[17,{"$f":"Import!E9352","v":0},{"$f":"Import!E9377","v":0},{"$f":"Import!E9402","v":"Select from Drop Down"},{"$f":"Import!E9427","v":"Select from Drop Down"},{"$f":"Import!E9452","v":"Select from Drop Down"},{"$f":"Import!E9477","v":0},{"$f":"Import!E9503","v":0},{"$f":"IF(Import!E9529=0,\"\",Import!E9529)","v":""},{"$f":"IF(Import!E9554=0,\"\",Import!E9554)","v":""},{"$f":"IF(Import!E9579=0,\"\",Import!E9579)","v":""},{"$f":"Import!E9604","v":0},{"$f":"Import!E9630","v":0},{"$f":"Import!E9656","v":0},{"$f":"Import!E9682","v":0},{"$f":"Import!E9708","v":0},{"$f":"Import!E9734","v":0},{"$f":"Import!E9760","v":0},{"$f":"Import!E9786","v":"Select from Drop Down"},{"$f":"Import!E9811","v":"Select from Drop Down"},{"$f":"Import!E9836","v":"Select from Drop Down"},{"$f":"Import!E9861","v":0},{"$f":"Import!E9887","v":0}]
[18,{"$f":"Import!E9353","v":0},{"$f":"Import!E9378","v":0},{"$f":"Import!E9403","v":"Select from Drop Down"},{"$f":"Import!E9428","v":"Select from Drop Down"},{"$f":"Import!E9453","v":"Select from Drop Down"},{"$f":"Import!E9478","v":0},{"$f":"Import!E9504","v":0},{"$f":"IF(Import!E9530=0,\"\",Import!E9530)","v":""},{"$f":"IF(Import!E9555=0,\"\",Import!E9555)","v":""},{"$f":"IF(Import!E9580=0,\"\",Import!E9580)","v":""},{"$f":"Import!E9605","v":0},{"$f":"Import!E9631","v":0},{"$f":"Import!E9657","v":0},{"$f":"Import!E9683","v":0},{"$f":"Import!E9709","v":0},{"$f":"Import!E9735","v":0},{"$f":"Import!E9761","v":0},{"$f":"Import!E9787","v":"Select from Drop Down"},{"$f":"Import!E9812","v":"Select from Drop Down"},{"$f":"Import!E9837","v":"Select from Drop Down"},{"$f":"Import!E9862","v":0},{"$f":"Import!E9888","v":0}]
[19,{"$f":"Import!E9354","v":0},{"$f":"Import!E9379","v":0},{"$f":"Import!E9404","v":"Select from Drop Down"},{"$f":"Import!E9429","v":"Select from Drop Down"},{"$f":"Import!E9454","v":"Select from Drop Down"},{"$f":"Import!E9479","v":0},{"$f":"Import!E9505","v":0},{"$f":"IF(Import!E9531=0,\"\",Import!E9531)","v":""},{"$f":"IF(Import!E9556=0,\"\",Import!E9556)","v":""},{"$f":"IF(Import!E9581=0,\"\",Import!E9581)","v":""},{"$f":"Import!E9606","v":0},{"$f":"Import!E9632","v":0},{"$f":"Import!E9658","v":0},{"$f":"Import!E9684","v":0},{"$f":"Import!E9710","v":0},{"$f":"Import!E9736","v":0},{"$f":"Import!E9762","v":0},{"$f":"Import!E9788","v":"Select from Drop Down"},{"$f":"Import!E9813","v":"Select from Drop Down"},{"$f":"Import!E9838","v":"Select from Drop Down"},{"$f":"Import!E9863","v":0},{"$f":"Import!E9889","v":0}]
[20,{"$f":"Import!E9355","v":0},{"$f":"Import!E9380","v":0},{"$f":"Import!E9405","v":"Select from Drop Down"},{"$f":"Import!E9430","v":"Select from Drop Down"},{"$f":"Import!E9455","v":"Select from Drop Down"},{"$f":"Import!E9480","v":0},{"$f":"Import!E9506","v":0},{"$f":"IF(Import!E9532=0,\"\",Import!E9532)","v":""},{"$f":"IF(Import!E9557=0,\"\",Import!E9557)","v":""},{"$f":"IF(Import!E9582=0,\"\",Import!E9582)","v":""},{"$f":"Import!E9607","v":0},{"$f":"Import!E9633","v":0},{"$f":"Import!E9659","v":0},{"$f":"Import!E9685","v":0},{"$f":"Import!E9711","v":0},{"$f":"Import!E9737","v":0},{"$f":"Import!E9763","v":0},{"$f":"Import!E9789","v":"Select from Drop Down"},{"$f":"Import!E9814","v":"Select from Drop Down"},{"$f":"Import!E9839","v":"Select from Drop Down"},{"$f":"Import!E9864","v":0},{"$f":"Import!E9890","v":0}]
[21,{"$f":"Import!E9356","v":0},{"$f":"Import!E9381","v":0},{"$f":"Import!E9406","v":"Select from Drop Down"},{"$f":"Import!E9431","v":"Select from Drop Down"},{"$f":"Import!E9456","v":"Select from Drop Down"},{"$f":"Import!E9481","v":0},{"$f":"Import!E9507","v":0},{"$f":"IF(Import!E9533=0,\"\",Import!E9533)","v":""},{"$f":"IF(Import!E9558=0,\"\",Import!E9558)","v":""},{"$f":"IF(Import!E9583=0,\"\",Import!E9583)","v":""},{"$f":"Import!E9608","v":0},{"$f":"Import!E9634","v":0},{"$f":"Import!E9660","v":0},{"$f":"Import!E9686","v":0},{"$f":"Import!E9712","v":0},{"$f":"Import!E9738","v":0},{"$f":"Import!E9764","v":0},{"$f":"Import!E9790","v":"Select from Drop Down"},{"$f":"Import!E9815","v":"Select from Drop Down"},{"$f":"Import!E9840","v":"Select from Drop Down"},{"$f":"Import!E9865","v":0},{"$f":"Import!E9891","v":0}]
[22,{"$f":"Import!E9357","v":0},{"$f":"Import!E9382","v":0},{"$f":"Import!E9407","v":"Select from Drop Down"},{"$f":"Import!E9432","v":"Select from Drop Down"},{"$f":"Import!E9457","v":"Select from Drop Down"},{"$f":"Import!E9482","v":0},{"$f":"Import!E9508","v":0},{"$f":"IF(Import!E9534=0,\"\",Import!E9534)","v":""},{"$f":"IF(Import!E9559=0,\"\",Import!E9559)","v":""},{"$f":"IF(Import!E9584=0,\"\",Import!E9584)","v":""},{"$f":"Import!E9609","v":0},{"$f":"Import!E9635","v":0},{"$f":"Import!E9661","v":0},{"$f":"Import!E9687","v":0},{"$f":"Import!E9713","v":0},{"$f":"Import!E9739","v":0},{"$f":"Import!E9765","v":0},{"$f":"Import!E9791","v":"Select from Drop Down"},{"$f":"Import!E9816","v":"Select from Drop Down"},{"$f":"Import!E9841","v":"Select from Drop Down"},{"$f":"Import!E9866","v":0},{"$f":"Import!E9892","v":0}]
[23,{"$f":"Import!E9358","v":0},{"$f":"Import!E9383","v":0},{"$f":"Import!E9408","v":"Select from Drop Down"},{"$f":"Import!E9433","v":"Select from Drop Down"},{"$f":"Import!E9458","v":"Select from Drop Down"},{"$f":"Import!E9483","v":0},{"$f":"Import!E9509","v":0},{"$f":"IF(Import!E9535=0,\"\",Import!E9535)","v":""},{"$f":"IF(Import!E9560=0,\"\",Import!E9560)","v":""},{"$f":"IF(Import!E9585=0,\"\",Import!E9585)","v":""},{"$f":"Import!E9610","v":0},{"$f":"Import!E9636","v":0},{"$f":"Import!E9662","v":0},{"$f":"Import!E9688","v":0},{"$f":"Import!E9714","v":0},{"$f":"Import!E9740","v":0},{"$f":"Import!E9766","v":0},{"$f":"Import!E9792","v":"Select from Drop Down"},{"$f":"Import!E9817","v":"Select from Drop Down"},{"$f":"Import!E9842","v":"Select from Drop Down"},{"$f":"Import!E9867","v":0},{"$f":"Import!E9893","v":0}]
[24,{"$f":"Import!E9359","v":0},{"$f":"Import!E9384","v":0},{"$f":"Import!E9409","v":"Select from Drop Down"},{"$f":"Import!E9434","v":"Select from Drop Down"},{"$f":"Import!E9459","v":"Select from Drop Down"},{"$f":"Import!E9484","v":0},{"$f":"Import!E9510","v":0},{"$f":"IF(Import!E9536=0,\"\",Import!E9536)","v":""},{"$f":"IF(Import!E9561=0,\"\",Import!E9561)","v":""},{"$f":"IF(Import!E9586=0,\"\",Import!E9586)","v":""},{"$f":"Import!E9611","v":0},{"$f":"Import!E9637","v":0},{"$f":"Import!E9663","v":0},{"$f":"Import!E9689","v":0},{"$f":"Import!E9715","v":0},{"$f":"Import!E9741","v":0},{"$f":"Import!E9767","v":0},{"$f":"Import!E9793","v":"Select from Drop Down"},{"$f":"Import!E9818","v":"Select from Drop Down"},{"$f":"Import!E9843","v":"Select from Drop Down"},{"$f":"Import!E9868","v":0},{"$f":"Import!E9894","v":0}]
[25,{"$f":"Import!E9360","v":0},{"$f":"Import!E9385","v":0},{"$f":"Import!E9410","v":"Select from Drop Down"},{"$f":"Import!E9435","v":"Select from Drop Down"},{"$f":"Import!E9460","v":"Select from Drop Down"},{"$f":"Import!E9485","v":0},{"$f":"Import!E9511","v":0},{"$f":"IF(Import!E9537=0,\"\",Import!E9537)","v":""},{"$f":"IF(Import!E9562=0,\"\",Import!E9562)","v":""},{"$f":"IF(Import!E9587=0,\"\",Import!E9587)","v":""},{"$f":"Import!E9612","v":0},{"$f":"Import!E9638","v":0},{"$f":"Import!E9664","v":0},{"$f":"Import!E9690","v":0},{"$f":"Import!E9716","v":0},{"$f":"Import!E9742","v":0},{"$f":"Import!E9768","v":0},{"$f":"Import!E9794","v":"Select from Drop Down"},{"$f":"Import!E9819","v":"Select from Drop Down"},{"$f":"Import!E9844","v":"Select from Drop Down"},{"$f":"Import!E9869","v":0},{"$f":"Import!E9895","v":0}]
[26,null,null,"Select from Drop Down","Select from Drop Down","Select from Drop Down",null,null,null,null,null,null,null,null,null,null,null,null,"Select from Drop Down","Select from Drop Down","Select from Drop Down"]
[27,null,null,"Select from Drop Down","Select from Drop Down","Select from Drop Down",null,null,null,null,null,null,null,null,null,null,null,null,"Select from Drop Down","Select from Drop Down","Select from Drop Down"]
[28,null,null,"Select from Drop Down","Select from Drop Down","Select from Drop Down",null,null,null,null,null,null,null,null,null,null,null,null,"Select from Drop Down","Select from Drop Down","Select from Drop Down"]
[29,null,null,"Select from Drop Down","Select from Drop Down","Select from Drop Down",null,null,null,null,null,null,null,null,null,null,null,null,"Select from Drop Down","Select from Drop Down","Select from Drop Down"]
[30,null,null,"Select from Drop Down","Select from Drop Down","Select from Drop Down",null,null,null,null,null,null,null,null,null,null,null,null,"Select from Drop Down","Select from Drop Down","Select from Drop Down"]
[31,null,null,"Select from Drop Down","Select from Drop Down","Select from Drop Down",null,null,null,null,null,null,null,null,null,null,null,null,"Select from Drop Down","Select from Drop Down","Select from Drop Down"]
[32,null,null,"Select from Drop Down","Select from Drop Down","Select from Drop Down",null,null,null,null,null,null,null,null,null,null,null,null,"Select from Drop Down","Select from Drop Down","Select from Drop Down"]
[33,null,null,"Select from Drop Down","Select from Drop Down","Select from Drop Down",null,null,null,null,null,null,null,null,null,null,null,null,"Select from Drop Down","Select from Drop Down","Select from Drop Down"]
[34,null,null,"Select from Drop Down","Select from Drop Down","Select from Drop Down",null,null,null,null,null,null,null,null,null,null,null,null,"Select from Drop Down","Select from Drop Down","Select from Drop Down"]
[35,null,null,"Select from Drop Down","Select from Drop Down","Select from Drop Down",null,null,null,null,null,null,null,null,null,null,null,null,"Select from Drop Down","Select from Drop Down","Select from Drop Down"]
[36,null,null,"Select from Drop Down","Select from Drop Down","Select from Drop Down",null,null,null,null,null,null,null,null,null,null,null,null,"Select from Drop Down","Select from Drop Down","Select from Drop Down"]
[37,null,null,"Select from Drop Down","Select from Drop Down","Select from Drop Down",null,null,null,null,null,null,null,null,null,null,null,null,"Select from Drop Down","Select from Drop Down","Select from Drop Down"]
[38,null,null,"Select from Drop Down","Select from Drop Down","Select from Drop Down",null,null,null,null,null,null,null,null,null,null,null,null,"Select from Drop Down","Select from Drop Down","Select from Drop Down"]
[39,null,null,"Select from Drop Down","Select from Drop Down","Select from Drop Down",null,null,null,null,null,null,null,null,null,null,null,null,"Select from Drop Down","Select from Drop Down","Select from Drop Down"]
[40,null,null,"Select from Drop Down","Select from Drop Down","Select from Drop Down",null,null,null,null,null,null,null,null,null,null,null,null,"Select from Drop Down","Select from Drop Down","Select from Drop Down"]
[41,null,null,"Select from Drop Down","Select from Drop Down","Select from Drop Down",null,null,null,null,null,null,null,null,null,null,null,null,"Select from Drop Down","Select from Drop Down","Select from Drop Down"]
[42,null,null,"Select from Drop Down","Select from Drop Down","Select from Drop Down",null,null,null,null,null,null,null,null,null,null,null,null,"Select from Drop Down","Select from Drop Down","Select from Drop Down"]
[43,null,null,"Select from Drop Down","Select from Drop Down","Select from Drop Down",null,null,null,null,null,null,null,null,null,null,null,null,"Select from Drop Down","Select from Drop Down","Select from Drop Down"]
[44,null,null,"Select from Drop Down","Select from Drop Down","Select from Drop Down",null,null,null,null,null,null,null,null,null,null,null,null,"Select from Drop Down","Select from Drop Down","Select from Drop Down"]
[45,null,null,"Select from Drop Down","Select from Drop Down","Select from Drop Down",null,null,null,null,null,null,null,null,null,null,null,null,"Select from Drop Down","Select from Drop Down","Select from Drop Down"]
[46,null,null,"Select from Drop Down","Select from Drop Down","Select from Drop Down",null,null,null,null,null,null,null,null,null,null,null,null,"Select from Drop Down","Select from Drop Down","Select from Drop Down"]
[47,null,null,"Select from Drop Down","Select from Drop Down","Select from Drop Down",null,null,null,null,null,null,null,null,null,null,null,null,"Select from Drop Down","Select from Drop Down","Select from Drop Down"]
[48,null,null,"Select from Drop Down","Select from Drop Down","Select from Drop Down",null,null,null,null,null,null,null,null,null,null,null,null,"Select from Drop Down","Select from Drop Down","Select from Drop Down"]
[49,null,null,"Select from Drop Down","Select from Drop Down","Select from Drop Down",null,null,null,null,null,null,null,null,null,null,null,null,"Select from Drop Down","Select from Drop Down","Select from Drop Down"]
[50,null,null,"Select from Drop Down","Select from Drop Down","Select from Drop Down",null,null,null,null,null,null,null,null,null,null,null,null,"Select from Drop Down","Select from Drop Down","Select from Drop Down"]
[51,null,null,"Select from Drop Down","Select from Drop Down","Select from Drop Down",null,null,null,null,null,null,null,null,null,null,null,null,"Select from Drop Down","Select from Drop Down","Select from Drop Down"]
[52,null,null,"Select from Drop Down","Select from Drop Down","Select from Drop Down",null,null,null,null,null,null,null,null,null,null,null,null,"Select from Drop Down","Select from Drop Down","Select from Drop Down"]
[53,null,null,"Select from Drop Down","Select from Drop Down","Select from Drop Down",null,null,null,null,null,null,null,null,null,null,null,null,"Select from Drop Down","Select from Drop Down","Select from Drop Down"]
[54,null,null,"Select from Drop Down","Select from Drop Down","Select from Drop Down",null,null,null,null,null,null,null,null,null,null,null,null,"Select from Drop Down","Select from Drop Down","Select from Drop Down"]
[55,null,null,"Select from Drop Down","Select from Drop Down","Select from Drop Down",null,null,null,null,null,null,null,null,null,null,null,null,"Select from Drop Down","Select from Drop Down","Select from Drop Down"]
[56,null,null,"Select from Drop Down","Select from Drop Down","Select from Drop Down",null,null,null,null,null,null,null,null,null,null,null,null,"Select from Drop Down","Select from Drop Down","Select from Drop Down"]
[57,null,null,"Select from Drop Down","Select from Drop Down","Select from Drop Down",null,null,null,null,null,null,null,null,null,null,null,null,"Select from Drop Down","Select from Drop Down","Select from Drop Down"]
[58,null,null,"Select from Drop Down","Select from Drop Down","Select from Drop Down",null,null,null,null,null,null,null,null,null,null,null,null,"Select from Drop Down","Select from Drop Down","Select from Drop Down"]
[59,null,null,"Select from Drop Down","Select from Drop Down","Select from Drop Down",null,null,null,null,null,null,null,null,null,null,null,null,"Select from Drop Down","Select from Drop Down","Select from Drop Down"]
[60,null,null,"Select from Drop Down","Select from Drop Down","Select from Drop Down",null,null,null,null,null,null,null,null,null,null,null,null,"Select from Drop Down","Select from Drop Down","Select from Drop Down"]
[61,null,null,"Select from Drop Down","Select from Drop Down","Select from Drop Down",null,null,null,null,null,null,null,null,null,null,null,null,"Select from Drop Down","Select from Drop Down","Select from Drop Down"]
[62,null,null,"Select from Drop Down","Select from Drop Down","Select from Drop Down",null,null,null,null,null,null,null,null,null,null,null,null,"Select from Drop Down","Select from Drop Down","Select from Drop Down"]
[63,null,null,"Select from Drop Down","Select from Drop Down","Select from Drop Down",null,null,null,null,null,null,null,null,null,null,null,null,"Select from Drop Down","Select from Drop Down","Select from Drop Down"]
[64,null,null,"Select from Drop Down","Select from Drop Down","Select from Drop Down",null,null,null,null,null,null,null,null,null,null,null,null,"Select from Drop Down","Select from Drop Down","Select from Drop Down"]
[65,null,null,"Select from Drop Down","Select from Drop Down","Select from Drop Down",null,null,null,null,null,null,null,null,null,null,null,null,"Select from Drop Down","Select from Drop Down","Select from Drop Down"]
[66,null,null,"Select from Drop Down","Select from Drop Down","Select from Drop Down",null,null,null,null,null,null,null,null,null,null,null,null,"Select from Drop Down","Select from Drop Down","Select from Drop Down"]
[{"$f":"A76+1","v":67},null,null,"Select from Drop Down","Select from Drop Down","Select from Drop Down",null,null,null,null,null,null,null,null,null,null,null,null,"Select from Drop Down","Select from Drop Down","Select from Drop Down"]
[68,null,null,"Select from Drop Down","Select from Drop Down","Select from Drop Down",null,null,null,null,null,null,null,null,null,null,null,null,"Select from Drop Down","Select from Drop Down","Select from Drop Down"]
[69,null,null,"Select from Drop Down","Select from Drop Down","Select from Drop Down",null,null,null,null,null,null,null,null,null,null,null,null,"Select from Drop Down","Select from Drop Down","Select from Drop Down"]
[70,null,null,"Select from Drop Down","Select from Drop Down","Select from Drop Down",null,null,null,null,null,null,null,null,null,null,null,null,"Select from Drop Down","Select from Drop Down","Select from Drop Down"]
[71,null,null,"Select from Drop Down","Select from Drop Down","Select from Drop Down",null,null,null,null,null,null,null,null,null,null,null,null,"Select from Drop Down","Select from Drop Down","Select from Drop Down"]
[72,null,null,"Select from Drop Down","Select from Drop Down","Select from Drop Down",null,null,null,null,null,null,null,null,null,null,null,null,"Select from Drop Down","Select from Drop Down","Select from Drop Down"]
[73,null,null,"Select from Drop Down","Select from Drop Down","Select from Drop Down",null,null,null,null,null,null,null,null,null,null,null,null,"Select from Drop Down","Select from Drop Down","Select from Drop Down"]
[74,null,null,"Select from Drop Down","Select from Drop Down","Select from Drop Down",null,null,null,null,null,null,null,null,null,null,null,null,"Select from Drop Down","Select from Drop Down","Select from Drop Down"]
[75,null,null,"Select from Drop Down","Select from Drop Down","Select from Drop Down",null,null,null,null,null,null,null,null,null,null,null,null,"Select from Drop Down","Select from Drop Down","Select from Drop Down"]
[76,null,null,"Select from Drop Down","Select from Drop Down","Select from Drop Down",null,null,null,null,null,null,null,null,null,null,null,null,"Select from Drop Down","Select from Drop Down","Select from Drop Down"]
[77,null,null,"Select from Drop Down","Select from Drop Down","Select from Drop Down",null,null,null,null,null,null,null,null,null,null,null,null,"Select from Drop Down","Select from Drop Down","Select from Drop Down"]
[78,null,null,"Select from Drop Down","Select from Drop Down","Select from Drop Down",null,null,null,null,null,null,null,null,null,null,null,null,"Select from Drop Down","Select from Drop Down","Select from Drop Down"]
[79,null,null,"Select from Drop Down","Select from Drop Down","Select from Drop Down",null,null,null,null,null,null,null,null,null,null,null,null,"Select from Drop Down","Select from Drop Down","Select from Drop Down"]
[80,null,null,"Select from Drop Down","Select from Drop Down","Select from Drop Down",null,null,null,null,null,null,null,null,null,null,null,null,"Select from Drop Down","Select from Drop Down","Select from Drop Down"]
[81,null,null,"Select from Drop Down","Select from Drop Down","Select from Drop Down",null,null,null,null,null,null,null,null,null,null,null,null,"Select from Drop Down","Select from Drop Down","Select from Drop Down"]
[82,null,null,"Select from Drop Down","Select from Drop Down","Select from Drop Down",null,null,null,null,null,null,null,null,null,null,null,null,"Select from Drop Down","Select from Drop Down","Select from Drop Down"]
[83,null,null,"Select from Drop Down","Select from Drop Down","Select from Drop Down",null,null,null,null,null,null,null,null,null,null,null,null,"Select from Drop Down","Select from Drop Down","Select from Drop Down"]
[84,null,null,"Select from Drop Down","Select from Drop Down","Select from Drop Down",null,null,null,null,null,null,null,null,null,null,null,null,"Select from Drop Down","Select from Drop Down","Select from Drop Down"]
[85,null,null,"Select from Drop Down","Select from Drop Down","Select from Drop Down",null,null,null,null,null,null,null,null,null,null,null,null,"Select from Drop Down","Select from Drop Down","Select from Drop Down"]
[86,null,null,"Select from Drop Down","Select from Drop Down","Select from Drop Down",null,null,null,null,null,null,null,null,null,null,null,null,"Select from Drop Down","Select from Drop Down","Select from Drop Down"]
[87,null,null,"Select from Drop Down","Select from Drop Down","Select from Drop Down",null,null,null,null,null,null,null,null,null,null,null,null,"Select from Drop Down","Select from Drop Down","Select from Drop Down"]
[88,null,null,"Select from Drop Down","Select from Drop Down","Select from Drop Down",null,null,null,null,null,null,null,null,null,null,null,null,"Select from Drop Down","Select from Drop Down","Select from Drop Down"]
[89,null,null,"Select from Drop Down","Select from Drop Down","Select from Drop Down",null,null,null,null,null,null,null,null,null,null,null,null,"Select from Drop Down","Select from Drop Down","Select from Drop Down"]
[90,null,null,"Select from Drop Down","Select from Drop Down","Select from Drop Down",null,null,null,null,null,null,null,null,null,null,null,null,"Select from Drop Down","Select from Drop Down","Select from Drop Down"]
[91,null,null,"Select from Drop Down","Select from Drop Down","Select from Drop Down",null,null,null,null,null,null,null,null,null,null,null,null,"Select from Drop Down","Select from Drop Down","Select from Drop Down"]
[92,null,null,"Select from Drop Down","Select from Drop Down","Select from Drop Down",null,null,null,null,null,null,null,null,null,null,null,null,"Select from Drop Down","Select from Drop Down","Select from Drop Down"]
[93,null,null,"Select from Drop Down","Select from Drop Down","Select from Drop Down",null,null,null,null,null,null,null,null,null,null,null,null,"Select from Drop Down","Select from Drop Down","Select from Drop Down"]
[94,null,null,"Select from Drop Down","Select from Drop Down","Select from Drop Down",null,null,null,null,null,null,null,null,null,null,null,null,"Select from Drop Down","Select from Drop Down","Select from Drop Down"]
[95,null,null,"Select from Drop Down","Select from Drop Down","Select from Drop Down",null,null,null,null,null,null,null,null,null,null,null,null,"Select from Drop Down","Select from Drop Down","Select from Drop Down"]
[96,null,null,"Select from Drop Down","Select from Drop Down","Select from Drop Down",null,null,null,null,null,null,null,null,null,null,null,null,"Select from Drop Down","Select from Drop Down","Select from Drop Down"]
[97,null,null,"Select from Drop Down","Select from Drop Down","Select from Drop Down",null,null,null,null,null,null,null,null,null,null,null,null,"Select from Drop Down","Select from Drop Down","Select from Drop Down"]
[98,null,null,"Select from Drop Down","Select from Drop Down","Select from Drop Down",null,null,null,null,null,null,null,null,null,null,null,null,"Select from Drop Down","Select from Drop Down","Select from Drop Down"]
[99,null,null,"Select from Drop Down","Select from Drop Down","Select from Drop Down",null,null,null,null,null,null,null,null,null,null,null,null,"Select from Drop Down","Select from Drop Down","Select from Drop Down"]
[100,null,null,"Select from Drop Down","Select from Drop Down","Select from Drop Down",null,null,null,null,null,null,null,null,null,null,null,null,"Select from Drop Down","Select from Drop Down","Select from Drop Down"]
[101,null,null,"Select from Drop Down","Select from Drop Down","Select from Drop Down",null,null,null,null,null,null,null,null,null,null,null,null,"Select from Drop Down","Select from Drop Down","Select from Drop Down"]
[102,null,null,"Select from Drop Down","Select from Drop Down","Select from Drop Down",null,null,null,null,null,null,null,null,null,null,null,null,"Select from Drop Down","Select from Drop Down","Select from Drop Down"]
[103,null,null,"Select from Drop Down","Select from Drop Down","Select from Drop Down",null,null,null,null,null,null,null,null,null,null,null,null,"Select from Drop Down","Select from Drop Down","Select from Drop Down"]
[104,null,null,"Select from Drop Down","Select from Drop Down","Select from Drop Down",null,null,null,null,null,null,null,null,null,null,null,null,"Select from Drop Down","Select from Drop Down","Select from Drop Down"]
[105,null,null,"Select from Drop Down","Select from Drop Down","Select from Drop Down",null,null,null,null,null,null,null,null,null,null,null,null,"Select from Drop Down","Select from Drop Down","Select from Drop Down"]
[106,null,null,"Select from Drop Down","Select from Drop Down","Select from Drop Down",null,null,null,null,null,null,null,null,null,null,null,null,"Select from Drop Down","Select from Drop Down","Select from Drop Down"]
[107,null,null,"Select from Drop Down","Select from Drop Down","Select from Drop Down",null,null,null,null,null,null,null,null,null,null,null,null,"Select from Drop Down","Select from Drop Down","Select from Drop Down"]
[108,null,null,"Select from Drop Down","Select from Drop Down","Select from Drop Down",null,null,null,null,null,null,null,null,null,null,null,null,"Select from Drop Down","Select from Drop Down","Select from Drop Down"]
[109,null,null,"Select from Drop Down","Select from Drop Down","Select from Drop Down",null,null,null,null,null,null,null,null,null,null,null,null,"Select from Drop Down","Select from Drop Down","Select from Drop Down"]
[110,null,null,"Select from Drop Down","Select from Drop Down","Select from Drop Down",null,null,null,null,null,null,null,null,null,null,null,null,"Select from Drop Down","Select from Drop Down","Select from Drop Down"]
[111,null,null,"Select from Drop Down","Select from Drop Down","Select from Drop Down",null,null,null,null,null,null,null,null,null,null,null,null,"Select from Drop Down","Select from Drop Down","Select from Drop Down"]
[112,null,null,"Select from Drop Down","Select from Drop Down","Select from Drop Down",null,null,null,null,null,null,null,null,null,null,null,null,"Select from Drop Down","Select from Drop Down","Select from Drop Down"]
[113,null,null,"Select from Drop Down","Select from Drop Down","Select from Drop Down",null,null,null,null,null,null,null,null,null,null,null,null,"Select from Drop Down","Select from Drop Down","Select from Drop Down"]
[114,null,null,"Select from Drop Down","Select from Drop Down","Select from Drop Down",null,null,null,null,null,null,null,null,null,null,null,null,"Select from Drop Down","Select from Drop Down","Select from Drop Down"]
[115,null,null,"Select from Drop Down","Select from Drop Down","Select from Drop Down",null,null,null,null,null,null,null,null,null,null,null,null,"Select from Drop Down","Select from Drop Down","Select from Drop Down"]
[116,null,null,"Select from Drop Down","Select from Drop Down","Select from Drop Down",null,null,null,null,null,null,null,null,null,null,null,null,"Select from Drop Down","Select from Drop Down","Select from Drop Down"]
[117,null,null,"Select from Drop Down","Select from Drop Down","Select from Drop Down",null,null,null,null,null,null,null,null,null,null,null,null,"Select from Drop Down","Select from Drop Down","Select from Drop Down"]
[118,null,null,"Select from Drop Down","Select from Drop Down","Select from Drop Down",null,null,null,null,null,null,null,null,null,null,null,null,"Select from Drop Down","Select from Drop Down","Select from Drop Down"]
[119,null,null,"Select from Drop Down","Select from Drop Down","Select from Drop Down",null,null,null,null,null,null,null,null,null,null,null,null,"Select from Drop Down","Select from Drop Down","Select from Drop Down"]
[120,null,null,"Select from Drop Down","Select from Drop Down","Select from Drop Down",null,null,null,null,null,null,null,null,null,null,null,null,"Select from Drop Down","Select from Drop Down","Select from Drop Down"]
[121,null,null,"Select from Drop Down","Select from Drop Down","Select from Drop Down",null,null,null,null,null,null,null,null,null,null,null,null,"Select from Drop Down","Select from Drop Down","Select from Drop Down"]
[122,null,null,"Select from Drop Down","Select from Drop Down","Select from Drop Down",null,null,null,null,null,null,null,null,null,null,null,null,"Select from Drop Down","Select from Drop Down","Select from Drop Down"]
[123,null,null,"Select from Drop Down","Select from Drop Down","Select from Drop Down",null,null,null,null,null,null,null,null,null,null,null,null,"Select from Drop Down","Select from Drop Down","Select from Drop Down"]
[124,null,null,"Select from Drop Down","Select from Drop Down","Select from Drop Down",null,null,null,null,null,null,null,null,null,null,null,null,"Select from Drop Down","Select from Drop Down","Select from Drop Down"]
[125,null,null,"Select from Drop Down","Select from Drop Down","Select from Drop Down",null,null,null,null,null,null,null,null,null,null,null,null,"Select from Drop Down","Select from Drop Down","Select from Drop Down"]
[126,null,null,"Select from Drop Down","Select from Drop Down","Select from Drop Down",null,null,null,null,null,null,null,null,null,null,null,null,"Select from Drop Down","Select from Drop Down","Select from Drop Down"]
[127,null,null,"Select from Drop Down","Select from Drop Down","Select from Drop Down",null,null,null,null,null,null,null,null,null,null,null,null,"Select from Drop Down","Select from Drop Down","Select from Drop Down"]
[128,null,null,"Select from Drop Down","Select from Drop Down","Select from Drop Down",null,null,null,null,null,null,null,null,null,null,null,null,"Select from Drop Down","Select from Drop Down","Select from Drop Down"]
[129,null,null,"Select from Drop Down","Select from Drop Down","Select from Drop Down",null,null,null,null,null,null,null,null,null,null,null,null,"Select from Drop Down","Select from Drop Down","Select from Drop Down"]
[130,null,null,"Select from Drop Down","Select from Drop Down","Select from Drop Down",null,null,null,null,null,null,null,null,null,null,null,null,"Select from Drop Down","Select from Drop Down","Select from Drop Down"]
[{"$f":"A140+1","v":131},null,null,"Select from Drop Down","Select from Drop Down","Select from Drop Down",null,null,null,null,null,null,null,null,null,null,null,null,"Select from Drop Down","Select from Drop Down","Select from Drop Down"]
[132,null,null,"Select from Drop Down","Select from Drop Down","Select from Drop Down",null,null,null,null,null,null,null,null,null,null,null,null,"Select from Drop Down","Select from Drop Down","Select from Drop Down"]
[133,null,null,"Select from Drop Down","Select from Drop Down","Select from Drop Down",null,null,null,null,null,null,null,null,null,null,null,null,"Select from Drop Down","Select from Drop Down","Select from Drop Down"]
[134,null,null,"Select from Drop Down","Select from Drop Down","Select from Drop Down",null,null,null,null,null,null,null,null,null,null,null,null,"Select from Drop Down","Select from Drop Down","Select from Drop Down"]
[135,null,null,"Select from Drop Down","Select from Drop Down","Select from Drop Down",null,null,null,null,null,null,null,null,null,null,null,null,"Select from Drop Down","Select from Drop Down","Select from Drop Down"]
[136,null,null,"Select from Drop Down","Select from Drop Down","Select from Drop Down",null,null,null,null,null,null,null,null,null,null,null,null,"Select from Drop Down","Select from Drop Down","Select from Drop Down"]
[137,null,null,"Select from Drop Down","Select from Drop Down","Select from Drop Down",null,null,null,null,null,null,null,null,null,null,null,null,"Select from Drop Down","Select from Drop Down","Select from Drop Down"]
[138,null,null,"Select from Drop Down","Select from Drop Down","Select from Drop Down",null,null,null,null,null,null,null,null,null,null,null,null,"Select from Drop Down","Select from Drop Down","Select from Drop Down"]
[139,null,null,"Select from Drop Down","Select from Drop Down","Select from Drop Down",null,null,null,null,null,null,null,null,null,null,null,null,"Select from Drop Down","Select from Drop Down","Select from Drop Down"]
[140,null,null,"Select from Drop Down","Select from Drop Down","Select from Drop Down",null,null,null,null,null,null,null,null,null,null,null,null,"Select from Drop Down","Select from Drop Down","Select from Drop Down"]
[141,null,null,"Select from Drop Down","Select from Drop Down","Select from Drop Down",null,null,null,null,null,null,null,null,null,null,null,null,"Select from Drop Down","Select from Drop Down","Select from Drop Down"]
[142,null,null,"Select from Drop Down","Select from Drop Down","Select from Drop Down",null,null,null,null,null,null,null,null,null,null,null,null,"Select from Drop Down","Select from Drop Down","Select from Drop Down"]
[143,null,null,"Select from Drop Down","Select from Drop Down","Select from Drop Down",null,null,null,null,null,null,null,null,null,null,null,null,"Select from Drop Down","Select from Drop Down","Select from Drop Down"]
[144,null,null,"Select from Drop Down","Select from Drop Down","Select from Drop Down",null,null,null,null,null,null,null,null,null,null,null,null,"Select from Drop Down","Select from Drop Down","Select from Drop Down"]
[145,null,null,"Select from Drop Down","Select from Drop Down","Select from Drop Down",null,null,null,null,null,null,null,null,null,null,null,null,"Select from Drop Down","Select from Drop Down","Select from Drop Down"]
[146,null,null,"Select from Drop Down","Select from Drop Down","Select from Drop Down",null,null,null,null,null,null,null,null,null,null,null,null,"Select from Drop Down","Select from Drop Down","Select from Drop Down"]
[147,null,null,"Select from Drop Down","Select from Drop Down","Select from Drop Down",null,null,null,null,null,null,null,null,null,null,null,null,"Select from Drop Down","Select from Drop Down","Select from Drop Down"]
[148,null,null,"Select from Drop Down","Select from Drop Down","Select from Drop Down",null,null,null,null,null,null,null,null,null,null,null,null,"Select from Drop Down","Select from Drop Down","Select from Drop Down"]
[149,null,null,"Select from Drop Down","Select from Drop Down","Select from Drop Down",null,null,null,null,null,null,null,null,null,null,null,null,"Select from Drop Down","Select from Drop Down","Select from Drop Down"]
[150,null,null,"Select from Drop Down","Select from Drop Down","Select from Drop Down",null,null,null,null,null,null,null,null,null,null,null,null,"Select from Drop Down","Select from Drop Down","Select from Drop Down"]
[151,null,null,"Select from Drop Down","Select from Drop Down","Select from Drop Down",null,null,null,null,null,null,null,null,null,null,null,null,"Select from Drop Down","Select from Drop Down","Select from Drop Down"]
[152,null,null,"Select from Drop Down","Select from Drop Down","Select from Drop Down",null,null,null,null,null,null,null,null,null,null,null,null,"Select from Drop Down","Select from Drop Down","Select from Drop Down"]
[153,null,null,"Select from Drop Down","Select from Drop Down","Select from Drop Down",null,null,null,null,null,null,null,null,null,null,null,null,"Select from Drop Down","Select from Drop Down","Select from Drop Down"]
[154,null,null,"Select from Drop Down","Select from Drop Down","Select from Drop Down",null,null,null,null,null,null,null,null,null,null,null,null,"Select from Drop Down","Select from Drop Down","Select from Drop Down"]
[155,null,null,"Select from Drop Down","Select from Drop Down","Select from Drop Down",null,null,null,null,null,null,null,null,null,null,null,null,"Select from Drop Down","Select from Drop Down","Select from Drop Down"]
[156,null,null,"Select from Drop Down","Select from Drop Down","Select from Drop Down",null,null,null,null,null,null,null,null,null,null,null,null,"Select from Drop Down","Select from Drop Down","Select from Drop Down"]
[157,null,null,"Select from Drop Down","Select from Drop Down","Select from Drop Down",null,null,null,null,null,null,null,null,null,null,null,null,"Select from Drop Down","Select from Drop Down","Select from Drop Down"]
[158,null,null,"Select from Drop Down","Select from Drop Down","Select from Drop Down",null,null,null,null,null,null,null,null,null,null,null,null,"Select from Drop Down","Select from Drop Down","Select from Drop Down"]
[159,null,null,"Select from Drop Down","Select from Drop Down","Select from Drop Down",null,null,null,null,null,null,null,null,null,null,null,null,"Select from Drop Down","Select from Drop Down","Select from Drop Down"]
[160,null,null,"Select from Drop Down","Select from Drop Down","Select from Drop Down",null,null,null,null,null,null,null,null,null,null,null,null,"Select from Drop Down","Select from Drop Down","Select from Drop Down"]
[161,null,null,"Select from Drop Down","Select from Drop Down","Select from Drop Down",null,null,null,null,null,null,null,null,null,null,null,null,"Select from Drop Down","Select from Drop Down","Select from Drop Down"]
[162,null,null,"Select from Drop Down","Select from Drop Down","Select from Drop Down",null,null,null,null,null,null,null,null,null,null,null,null,"Select from Drop Down","Select from Drop Down","Select from Drop Down"]
[163,null,null,"Select from Drop Down","Select from Drop Down","Select from Drop Down",null,null,null,null,null,null,null,null,null,null,null,null,"Select from Drop Down","Select from Drop Down","Select from Drop Down"]
[164,null,null,"Select from Drop Down","Select from Drop Down","Select from Drop Down",null,null,null,null,null,null,null,null,null,null,null,null,"Select from Drop Down","Select from Drop Down","Select from Drop Down"]
[165,null,null,"Select from Drop Down","Select from Drop Down","Select from Drop Down",null,null,null,null,null,null,null,null,null,null,null,null,"Select from Drop Down","Select from Drop Down","Select from Drop Down"]
[166,null,null,"Select from Drop Down","Select from Drop Down","Select from Drop Down",null,null,null,null,null,null,null,null,null,null,null,null,"Select from Drop Down","Select from Drop Down","Select from Drop Down"]
[167,null,null,"Select from Drop Down","Select from Drop Down","Select from Drop Down",null,null,null,null,null,null,null,null,null,null,null,null,"Select from Drop Down","Select from Drop Down","Select from Drop Down"]
[168,null,null,"Select from Drop Down","Select from Drop Down","Select from Drop Down",null,null,null,null,null,null,null,null,null,null,null,null,"Select from Drop Down","Select from Drop Down","Select from Drop Down"]
[169,null,null,"Select from Drop Down","Select from Drop Down","Select from Drop Down",null,null,null,null,null,null,null,null,null,null,null,null,"Select from Drop Down","Select from Drop Down","Select from Drop Down"]
[170,null,null,"Select from Drop Down","Select from Drop Down","Select from Drop Down",null,null,null,null,null,null,null,null,null,null,null,null,"Select from Drop Down","Select from Drop Down","Select from Drop Down"]
[171,null,null,"Select from Drop Down","Select from Drop Down","Select from Drop Down",null,null,null,null,null,null,null,null,null,null,null,null,"Select from Drop Down","Select from Drop Down","Select from Drop Down"]
[172,null,null,"Select from Drop Down","Select from Drop Down","Select from Drop Down",null,null,null,null,null,null,null,null,null,null,null,null,"Select from Drop Down","Select from Drop Down","Select from Drop Down"]
[173,null,null,"Select from Drop Down","Select from Drop Down","Select from Drop Down",null,null,null,null,null,null,null,null,null,null,null,null,"Select from Drop Down","Select from Drop Down","Select from Drop Down"]
[174,null,null,"Select from Drop Down","Select from Drop Down","Select from Drop Down",null,null,null,null,null,null,null,null,null,null,null,null,"Select from Drop Down","Select from Drop Down","Select from Drop Down"]
[175,null,null,"Select from Drop Down","Select from Drop Down","Select from Drop Down",null,null,null,null,null,null,null,null,null,null,null,null,"Select from Drop Down","Select from Drop Down","Select from Drop Down"]
[176,null,null,"Select from Drop Down","Select from Drop Down","Select from Drop Down",null,null,null,null,null,null,null,null,null,null,null,null,"Select from Drop Down","Select from Drop Down","Select from Drop Down"]
[177,null,null,"Select from Drop Down","Select from Drop Down","Select from Drop Down",null,null,null,null,null,null,null,null,null,null,null,null,"Select from Drop Down","Select from Drop Down","Select from Drop Down"]
[178,null,null,"Select from Drop Down","Select from Drop Down","Select from Drop Down",null,null,null,null,null,null,null,null,null,null,null,null,"Select from Drop Down","Select from Drop Down","Select from Drop Down"]
[179,null,null,"Select from Drop Down","Select from Drop Down","Select from Drop Down",null,null,null,null,null,null,null,null,null,null,null,null,"Select from Drop Down","Select from Drop Down","Select from Drop Down"]
[180,null,null,"Select from Drop Down","Select from Drop Down","Select from Drop Down",null,null,null,null,null,null,null,null,null,null,null,null,"Select from Drop Down","Select from Drop Down","Select from Drop Down"]
[181,null,null,"Select from Drop Down","Select from Drop Down","Select from Drop Down",null,null,null,null,null,null,null,null,null,null,null,null,"Select from Drop Down","Select from Drop Down","Select from Drop Down"]
[182,null,null,"Select from Drop Down","Select from Drop Down","Select from Drop Down",null,null,null,null,null,null,null,null,null,null,null,null,"Select from Drop Down","Select from Drop Down","Select from Drop Down"]
[183,null,null,"Select from Drop Down","Select from Drop Down","Select from Drop Down",null,null,null,null,null,null,null,null,null,null,null,null,"Select from Drop Down","Select from Drop Down","Select from Drop Down"]
[184,null,null,"Select from Drop Down","Select from Drop Down","Select from Drop Down",null,null,null,null,null,null,null,null,null,null,null,null,"Select from Drop Down","Select from Drop Down","Select from Drop Down"]
[185,null,null,"Select from Drop Down","Select from Drop Down","Select from Drop Down",null,null,null,null,null,null,null,null,null,null,null,null,"Select from Drop Down","Select from Drop Down","Select from Drop Down"]
[186,null,null,"Select from Drop Down","Select from Drop Down","Select from Drop Down",null,null,null,null,null,null,null,null,null,null,null,null,"Select from Drop Down","Select from Drop Down","Select from Drop Down"]
[187,null,null,"Select from Drop Down","Select from Drop Down","Select from Drop Down",null,null,null,null,null,null,null,null,null,null,null,null,"Select from Drop Down","Select from Drop Down","Select from Drop Down"]
[188,null,null,"Select from Drop Down","Select from Drop Down","Select from Drop Down",null,null,null,null,null,null,null,null,null,null,null,null,"Select from Drop Down","Select from Drop Down","Select from Drop Down"]
[189,null,null,"Select from Drop Down","Select from Drop Down","Select from Drop Down",null,null,null,null,null,null,null,null,null,null,null,null,"Select from Drop Down","Select from Drop Down","Select from Drop Down"]
[190,null,null,"Select from Drop Down","Select from Drop Down","Select from Drop Down",null,null,null,null,null,null,null,null,null,null,null,null,"Select from Drop Down","Select from Drop Down","Select from Drop Down"]
[191,null,null,"Select from Drop Down","Select from Drop Down","Select from Drop Down",null,null,null,null,null,null,null,null,null,null,null,null,"Select from Drop Down","Select from Drop Down","Select from Drop Down"]
[192,null,null,"Select from Drop Down","Select from Drop Down","Select from Drop Down",null,null,null,null,null,null,null,null,null,null,null,null,"Select from Drop Down","Select from Drop Down","Select from Drop Down"]
[193,null,null,"Select from Drop Down","Select from Drop Down","Select from Drop Down",null,null,null,null,null,null,null,null,null,null,null,null,"Select from Drop Down","Select from Drop Down","Select from Drop Down"]
[194,null,null,"Select from Drop Down","Select from Drop Down","Select from Drop Down",null,null,null,null,null,null,null,null,null,null,null,null,"Select from Drop Down","Select from Drop Down","Select from Drop Down"]
[{"$f":"A204+1","v":195},null,null,"Select from Drop Down","Select from Drop Down","Select from Drop Down",null,null,null,null,null,null,null,null,null,null,null,null,"Select from Drop Down","Select from Drop Down","Select from Drop Down"]
[196,null,null,"Select from Drop Down","Select from Drop Down","Select from Drop Down",null,null,null,null,null,null,null,null,null,null,null,null,"Select from Drop Down","Select from Drop Down","Select from Drop Down"]
[197,null,null,"Select from Drop Down","Select from Drop Down","Select from Drop Down",null,null,null,null,null,null,null,null,null,null,null,null,"Select from Drop Down","Select from Drop Down","Select from Drop Down"]
[198,null,null,"Select from Drop Down","Select from Drop Down","Select from Drop Down",null,null,null,null,null,null,null,null,null,null,null,null,"Select from Drop Down","Select from Drop Down","Select from Drop Down"]
[199,null,null,"Select from Drop Down","Select from Drop Down","Select from Drop Down",null,null,null,null,null,null,null,null,null,null,null,null,"Select from Drop Down","Select from Drop Down","Select from Drop Down"]
[200,null,null,"Select from Drop Down","Select from Drop Down","Select from Drop Down",null,null,null,null,null,null,null,null,null,null,null,null,"Select from Drop Down","Select from Drop Down","Select from Drop Down"]
[201,null,null,"Select from Drop Down","Select from Drop Down","Select from Drop Down",null,null,null,null,null,null,null,null,null,null,null,null,"Select from Drop Down","Select from Drop Down","Select from Drop Down"]
[202,null,null,"Select from Drop Down","Select from Drop Down","Select from Drop Down",null,null,null,null,null,null,null,null,null,null,null,null,"Select from Drop Down","Select from Drop Down","Select from Drop Down"]
[203,null,null,"Select from Drop Down","Select from Drop Down","Select from Drop Down",null,null,null,null,null,null,null,null,null,null,null,null,"Select from Drop Down","Select from Drop Down","Select from Drop Down"]
[204,null,null,"Select from Drop Down","Select from Drop Down","Select from Drop Down",null,null,null,null,null,null,null,null,null,null,null,null,"Select from Drop Down","Select from Drop Down","Select from Drop Down"]
[205,null,null,"Select from Drop Down","Select from Drop Down","Select from Drop Down",null,null,null,null,null,null,null,null,null,null,null,null,"Select from Drop Down","Select from Drop Down","Select from Drop Down"]
[206,null,null,"Select from Drop Down","Select from Drop Down","Select from Drop Down",null,null,null,null,null,null,null,null,null,null,null,null,"Select from Drop Down","Select from Drop Down","Select from Drop Down"]
[207,null,null,"Select from Drop Down","Select from Drop Down","Select from Drop Down",null,null,null,null,null,null,null,null,null,null,null,null,"Select from Drop Down","Select from Drop Down","Select from Drop Down"]
[208,null,null,"Select from Drop Down","Select from Drop Down","Select from Drop Down",null,null,null,null,null,null,null,null,null,null,null,null,"Select from Drop Down","Select from Drop Down","Select from Drop Down"]
[209,null,null,"Select from Drop Down","Select from Drop Down","Select from Drop Down",null,null,null,null,null,null,null,null,null,null,null,null,"Select from Drop Down","Select from Drop Down","Select from Drop Down"]
[210,null,null,"Select from Drop Down","Select from Drop Down","Select from Drop Down",null,null,null,null,null,null,null,null,null,null,null,null,"Select from Drop Down","Select from Drop Down","Select from Drop Down"]
[211,null,null,"Select from Drop Down","Select from Drop Down","Select from Drop Down",null,null,null,null,null,null,null,null,null,null,null,null,"Select from Drop Down","Select from Drop Down","Select from Drop Down"]
[212,null,null,"Select from Drop Down","Select from Drop Down","Select from Drop Down",null,null,null,null,null,null,null,null,null,null,null,null,"Select from Drop Down","Select from Drop Down","Select from Drop Down"]
[213,null,null,"Select from Drop Down","Select from Drop Down","Select from Drop Down",null,null,null,null,null,null,null,null,null,null,null,null,"Select from Drop Down","Select from Drop Down","Select from Drop Down"]
[214,null,null,"Select from Drop Down","Select from Drop Down","Select from Drop Down",null,null,null,null,null,null,null,null,null,null,null,null,"Select from Drop Down","Select from Drop Down","Select from Drop Down"]
[215,null,null,"Select from Drop Down","Select from Drop Down","Select from Drop Down",null,null,null,null,null,null,null,null,null,null,null,null,"Select from Drop Down","Select from Drop Down","Select from Drop Down"]
[216,null,null,"Select from Drop Down","Select from Drop Down","Select from Drop Down",null,null,null,null,null,null,null,null,null,null,null,null,"Select from Drop Down","Select from Drop Down","Select from Drop Down"]
[217,null,null,"Select from Drop Down","Select from Drop Down","Select from Drop Down",null,null,null,null,null,null,null,null,null,null,null,null,"Select from Drop Down","Select from Drop Down","Select from Drop Down"]
[218,null,null,"Select from Drop Down","Select from Drop Down","Select from Drop Down",null,null,null,null,null,null,null,null,null,null,null,null,"Select from Drop Down","Select from Drop Down","Select from Drop Down"]
[219,null,null,"Select from Drop Down","Select from Drop Down","Select from Drop Down",null,null,null,null,null,null,null,null,null,null,null,null,"Select from Drop Down","Select from Drop Down","Select from Drop Down"]
[220,null,null,"Select from Drop Down","Select from Drop Down","Select from Drop Down",null,null,null,null,null,null,null,null,null,null,null,null,"Select from Drop Down","Select from Drop Down","Select from Drop Down"]
[221,null,null,"Select from Drop Down","Select from Drop Down","Select from Drop Down",null,null,null,null,null,null,null,null,null,null,null,null,"Select from Drop Down","Select from Drop Down","Select from Drop Down"]
[222,null,null,"Select from Drop Down","Select from Drop Down","Select from Drop Down",null,null,null,null,null,null,null,null,null,null,null,null,"Select from Drop Down","Select from Drop Down","Select from Drop Down"]
[223,null,null,"Select from Drop Down","Select from Drop Down","Select from Drop Down",null,null,null,null,null,null,null,null,null,null,null,null,"Select from Drop Down","Select from Drop Down","Select from Drop Down"]
[224,null,null,"Select from Drop Down","Select from Drop Down","Select from Drop Down",null,null,null,null,null,null,null,null,null,null,null,null,"Select from Drop Down","Select from Drop Down","Select from Drop Down"]
[225,null,null,"Select from Drop Down","Select from Drop Down","Select from Drop Down",null,null,null,null,null,null,null,null,null,null,null,null,"Select from Drop Down","Select from Drop Down","Select from Drop Down"]
[226,null,null,"Select from Drop Down","Select from Drop Down","Select from Drop Down",null,null,null,null,null,null,null,null,null,null,null,null,"Select from Drop Down","Select from Drop Down","Select from Drop Down"]
[227,null,null,"Select from Drop Down","Select from Drop Down","Select from Drop Down",null,null,null,null,null,null,null,null,null,null,null,null,"Select from Drop Down","Select from Drop Down","Select from Drop Down"]
[228,null,null,"Select from Drop Down","Select from Drop Down","Select from Drop Down",null,null,null,null,null,null,null,null,null,null,null,null,"Select from Drop Down","Select from Drop Down","Select from Drop Down"]
[229,null,null,"Select from Drop Down","Select from Drop Down","Select from Drop Down",null,null,null,null,null,null,null,null,null,null,null,null,"Select from Drop Down","Select from Drop Down","Select from Drop Down"]
[230,null,null,"Select from Drop Down","Select from Drop Down","Select from Drop Down",null,null,null,null,null,null,null,null,null,null,null,null,"Select from Drop Down","Select from Drop Down","Select from Drop Down"]
[231,null,null,"Select from Drop Down","Select from Drop Down","Select from Drop Down",null,null,null,null,null,null,null,null,null,null,null,null,"Select from Drop Down","Select from Drop Down","Select from Drop Down"]
[232,null,null,"Select from Drop Down","Select from Drop Down","Select from Drop Down",null,null,null,null,null,null,null,null,null,null,null,null,"Select from Drop Down","Select from Drop Down","Select from Drop Down"]
[233,null,null,"Select from Drop Down","Select from Drop Down","Select from Drop Down",null,null,null,null,null,null,null,null,null,null,null,null,"Select from Drop Down","Select from Drop Down","Select from Drop Down"]
[234,null,null,"Select from Drop Down","Select from Drop Down","Select from Drop Down",null,null,null,null,null,null,null,null,null,null,null,null,"Select from Drop Down","Select from Drop Down","Select from Drop Down"]
[235,null,null,"Select from Drop Down","Select from Drop Down","Select from Drop Down",null,null,null,null,null,null,null,null,null,null,null,null,"Select from Drop Down","Select from Drop Down","Select from Drop Down"]
[236,null,null,"Select from Drop Down","Select from Drop Down","Select from Drop Down",null,null,null,null,null,null,null,null,null,null,null,null,"Select from Drop Down","Select from Drop Down","Select from Drop Down"]
[237,null,null,"Select from Drop Down","Select from Drop Down","Select from Drop Down",null,null,null,null,null,null,null,null,null,null,null,null,"Select from Drop Down","Select from Drop Down","Select from Drop Down"]
[238,null,null,"Select from Drop Down","Select from Drop Down","Select from Drop Down",null,null,null,null,null,null,null,null,null,null,null,null,"Select from Drop Down","Select from Drop Down","Select from Drop Down"]
[239,null,null,"Select from Drop Down","Select from Drop Down","Select from Drop Down",null,null,null,null,null,null,null,null,null,null,null,null,"Select from Drop Down","Select from Drop Down","Select from Drop Down"]
[240,null,null,"Select from Drop Down","Select from Drop Down","Select from Drop Down",null,null,null,null,null,null,null,null,null,null,null,null,"Select from Drop Down","Select from Drop Down","Select from Drop Down"]
[241,null,null,"Select from Drop Down","Select from Drop Down","Select from Drop Down",null,null,null,null,null,null,null,null,null,null,null,null,"Select from Drop Down","Select from Drop Down","Select from Drop Down"]
[242,null,null,"Select from Drop Down","Select from Drop Down","Select from Drop Down",null,null,null,null,null,null,null,null,null,null,null,null,"Select from Drop Down","Select from Drop Down","Select from Drop Down"]
[243,null,null,"Select from Drop Down","Select from Drop Down","Select from Drop Down",null,null,null,null,null,null,null,null,null,null,null,null,"Select from Drop Down","Select from Drop Down","Select from Drop Down"]
[244,null,null,"Select from Drop Down","Select from Drop Down","Select from Drop Down",null,null,null,null,null,null,null,null,null,null,null,null,"Select from Drop Down","Select from Drop Down","Select from Drop Down"]
[245,null,null,"Select from Drop Down","Select from Drop Down","Select from Drop Down",null,null,null,null,null,null,null,null,null,null,null,null,"Select from Drop Down","Select from Drop Down","Select from Drop Down"]
[246,null,null,"Select from Drop Down","Select from Drop Down","Select from Drop Down",null,null,null,null,null,null,null,null,null,null,null,null,"Select from Drop Down","Select from Drop Down","Select from Drop Down"]
[247,null,null,"Select from Drop Down","Select from Drop Down","Select from Drop Down",null,null,null,null,null,null,null,null,null,null,null,null,"Select from Drop Down","Select from Drop Down","Select from Drop Down"]
[248,null,null,"Select from Drop Down","Select from Drop Down","Select from Drop Down",null,null,null,null,null,null,null,null,null,null,null,null,"Select from Drop Down","Select from Drop Down","Select from Drop Down"]
[249,null,null,"Select from Drop Down","Select from Drop Down","Select from Drop Down",null,null,null,null,null,null,null,null,null,null,null,null,"Select from Drop Down","Select from Drop Down","Select from Drop Down"]
[250,null,null,"Select from Drop Down","Select from Drop Down","Select from Drop Down",null,null,null,null,null,null,null,null,null,null,null,null,"Select from Drop Down","Select from Drop Down","Select from Drop Down"]
[251,null,null,"Select from Drop Down","Select from Drop Down","Select from Drop Down",null,null,null,null,null,null,null,null,null,null,null,null,"Select from Drop Down","Select from Drop Down","Select from Drop Down"]
[252,null,null,"Select from Drop Down","Select from Drop Down","Select from Drop Down",null,null,null,null,null,null,null,null,null,null,null,null,"Select from Drop Down","Select from Drop Down","Select from Drop Down"]
[253,null,null,"Select from Drop Down","Select from Drop Down","Select from Drop Down",null,null,null,null,null,null,null,null,null,null,null,null,"Select from Drop Down","Select from Drop Down","Select from Drop Down"]
[254,null,null,"Select from Drop Down","Select from Drop Down","Select from Drop Down",null,null,null,null,null,null,null,null,null,null,null,null,"Select from Drop Down","Select from Drop Down","Select from Drop Down"]
[255,null,null,"Select from Drop Down","Select from Drop Down","Select from Drop Down",null,null,null,null,null,null,null,null,null,null,null,null,"Select from Drop Down","Select from Drop Down","Select from Drop Down"]
[256,null,null,"Select from Drop Down","Select from Drop Down","Select from Drop Down",null,null,null,null,null,null,null,null,null,null,null,null,"Select from Drop Down","Select from Drop Down","Select from Drop Down"]
[257,null,null,"Select from Drop Down","Select from Drop Down","Select from Drop Down",null,null,null,null,null,null,null,null,null,null,null,null,"Select from Drop Down","Select from Drop Down","Select from Drop Down"]
[258,null,null,"Select from Drop Down","Select from Drop Down","Select from Drop Down",null,null,null,null,null,null,null,null,null,null,null,null,"Select from Drop Down","Select from Drop Down","Select from Drop Down"]
[{"$f":"A268+1","v":259},null,null,"Select from Drop Down","Select from Drop Down","Select from Drop Down",null,null,null,null,null,null,null,null,null,null,null,null,"Select from Drop Down","Select from Drop Down","Select from Drop Down"]
[260,null,null,"Select from Drop Down","Select from Drop Down","Select from Drop Down",null,null,null,null,null,null,null,null,null,null,null,null,"Select from Drop Down","Select from Drop Down","Select from Drop Down"]
[261,null,null,"Select from Drop Down","Select from Drop Down","Select from Drop Down",null,null,null,null,null,null,null,null,null,null,null,null,"Select from Drop Down","Select from Drop Down","Select from Drop Down"]
[262,null,null,"Select from Drop Down","Select from Drop Down","Select from Drop Down",null,null,null,null,null,null,null,null,null,null,null,null,"Select from Drop Down","Select from Drop Down","Select from Drop Down"]
[263,null,null,"Select from Drop Down","Select from Drop Down","Select from Drop Down",null,null,null,null,null,null,null,null,null,null,null,null,"Select from Drop Down","Select from Drop Down","Select from Drop Down"]
[264,null,null,"Select from Drop Down","Select from Drop Down","Select from Drop Down",null,null,null,null,null,null,null,null,null,null,null,null,"Select from Drop Down","Select from Drop Down","Select from Drop Down"]
[265,null,null,"Select from Drop Down","Select from Drop Down","Select from Drop Down",null,null,null,null,null,null,null,null,null,null,null,null,"Select from Drop Down","Select from Drop Down","Select from Drop Down"]
[266,null,null,"Select from Drop Down","Select from Drop Down","Select from Drop Down",null,null,null,null,null,null,null,null,null,null,null,null,"Select from Drop Down","Select from Drop Down","Select from Drop Down"]
[267,null,null,"Select from Drop Down","Select from Drop Down","Select from Drop Down",null,null,null,null,null,null,null,null,null,null,null,null,"Select from Drop Down","Select from Drop Down","Select from Drop Down"]
[268,null,null,"Select from Drop Down","Select from Drop Down","Select from Drop Down",null,null,null,null,null,null,null,null,null,null,null,null,"Select from Drop Down","Select from Drop Down","Select from Drop Down"]
[269,null,null,"Select from Drop Down","Select from Drop Down","Select from Drop Down",null,null,null,null,null,null,null,null,null,null,null,null,"Select from Drop Down","Select from Drop Down","Select from Drop Down"]
[270,null,null,"Select from Drop Down","Select from Drop Down","Select from Drop Down",null,null,null,null,null,null,null,null,null,null,null,null,"Select from Drop Down","Select from Drop Down","Select from Drop Down"]
[271,null,null,"Select from Drop Down","Select from Drop Down","Select from Drop Down",null,null,null,null,null,null,null,null,null,null,null,null,"Select from Drop Down","Select from Drop Down","Select from Drop Down"]
[272,null,null,"Select from Drop Down","Select from Drop Down","Select from Drop Down",null,null,null,null,null,null,null,null,null,null,null,null,"Select from Drop Down","Select from Drop Down","Select from Drop Down"]
[273,null,null,"Select from Drop Down","Select from Drop Down","Select from Drop Down",null,null,null,null,null,null,null,null,null,null,null,null,"Select from Drop Down","Select from Drop Down","Select from Drop Down"]
[274,null,null,"Select from Drop Down","Select from Drop Down","Select from Drop Down",null,null,null,null,null,null,null,null,null,null,null,null,"Select from Drop Down","Select from Drop Down","Select from Drop Down"]
[275,null,null,"Select from Drop Down","Select from Drop Down","Select from Drop Down",null,null,null,null,null,null,null,null,null,null,null,null,"Select from Drop Down","Select from Drop Down","Select from Drop Down"]
[276,null,null,"Select from Drop Down","Select from Drop Down","Select from Drop Down",null,null,null,null,null,null,null,null,null,null,null,null,"Select from Drop Down","Select from Drop Down","Select from Drop Down"]
[277,null,null,"Select from Drop Down","Select from Drop Down","Select from Drop Down",null,null,null,null,null,null,null,null,null,null,null,null,"Select from Drop Down","Select from Drop Down","Select from Drop Down"]
[278,null,null,"Select from Drop Down","Select from Drop Down","Select from Drop Down",null,null,null,null,null,null,null,null,null,null,null,null,"Select from Drop Down","Select from Drop Down","Select from Drop Down"]
[279,null,null,"Select from Drop Down","Select from Drop Down","Select from Drop Down",null,null,null,null,null,null,null,null,null,null,null,null,"Select from Drop Down","Select from Drop Down","Select from Drop Down"]
[280,null,null,"Select from Drop Down","Select from Drop Down","Select from Drop Down",null,null,null,null,null,null,null,null,null,null,null,null,"Select from Drop Down","Select from Drop Down","Select from Drop Down"]
[281,null,null,"Select from Drop Down","Select from Drop Down","Select from Drop Down",null,null,null,null,null,null,null,null,null,null,null,null,"Select from Drop Down","Select from Drop Down","Select from Drop Down"]
[282,null,null,"Select from Drop Down","Select from Drop Down","Select from Drop Down",null,null,null,null,null,null,null,null,null,null,null,null,"Select from Drop Down","Select from Drop Down","Select from Drop Down"]
[283,null,null,"Select from Drop Down","Select from Drop Down","Select from Drop Down",null,null,null,null,null,null,null,null,null,null,null,null,"Select from Drop Down","Select from Drop Down","Select from Drop Down"]
[284,null,null,"Select from Drop Down","Select from Drop Down","Select from Drop Down",null,null,null,null,null,null,null,null,null,null,null,null,"Select from Drop Down","Select from Drop Down","Select from Drop Down"]
[285,null,null,"Select from Drop Down","Select from Drop Down","Select from Drop Down",null,null,null,null,null,null,null,null,null,null,null,null,"Select from Drop Down","Select from Drop Down","Select from Drop Down"]
[286,null,null,"Select from Drop Down","Select from Drop Down","Select from Drop Down",null,null,null,null,null,null,null,null,null,null,null,null,"Select from Drop Down","Select from Drop Down","Select from Drop Down"]
[287,null,null,"Select from Drop Down","Select from Drop Down","Select from Drop Down",null,null,null,null,null,null,null,null,null,null,null,null,"Select from Drop Down","Select from Drop Down","Select from Drop Down"]
[288,null,null,"Select from Drop Down","Select from Drop Down","Select from Drop Down",null,null,null,null,null,null,null,null,null,null,null,null,"Select from Drop Down","Select from Drop Down","Select from Drop Down"]
[289,null,null,"Select from Drop Down","Select from Drop Down","Select from Drop Down",null,null,null,null,null,null,null,null,null,null,null,null,"Select from Drop Down","Select from Drop Down","Select from Drop Down"]
[290,null,null,"Select from Drop Down","Select from Drop Down","Select from Drop Down",null,null,null,null,null,null,null,null,null,null,null,null,"Select from Drop Down","Select from Drop Down","Select from Drop Down"]
[291,null,null,"Select from Drop Down","Select from Drop Down","Select from Drop Down",null,null,null,null,null,null,null,null,null,null,null,null,"Select from Drop Down","Select from Drop Down","Select from Drop Down"]
[292,null,null,"Select from Drop Down","Select from Drop Down","Select from Drop Down",null,null,null,null,null,null,null,null,null,null,null,null,"Select from Drop Down","Select from Drop Down","Select from Drop Down"]
[293,null,null,"Select from Drop Down","Select from Drop Down","Select from Drop Down",null,null,null,null,null,null,null,null,null,null,null,null,"Select from Drop Down","Select from Drop Down","Select from Drop Down"]
[294,null,null,"Select from Drop Down","Select from Drop Down","Select from Drop Down",null,null,null,null,null,null,null,null,null,null,null,null,"Select from Drop Down","Select from Drop Down","Select from Drop Down"]
[295,null,null,"Select from Drop Down","Select from Drop Down","Select from Drop Down",null,null,null,null,null,null,null,null,null,null,null,null,"Select from Drop Down","Select from Drop Down","Select from Drop Down"]
[296,null,null,"Select from Drop Down","Select from Drop Down","Select from Drop Down",null,null,null,null,null,null,null,null,null,null,null,null,"Select from Drop Down","Select from Drop Down","Select from Drop Down"]
[297,null,null,"Select from Drop Down","Select from Drop Down","Select from Drop Down",null,null,null,null,null,null,null,null,null,null,null,null,"Select from Drop Down","Select from Drop Down","Select from Drop Down"]
[298,null,null,"Select from Drop Down","Select from Drop Down","Select from Drop Down",null,null,null,null,null,null,null,null,null,null,null,null,"Select from Drop Down","Select from Drop Down","Select from Drop Down"]
[299,null,null,"Select from Drop Down","Select from Drop Down","Select from Drop Down",null,null,null,null,null,null,null,null,null,null,null,null,"Select from Drop Down","Select from Drop Down","Select from Drop Down"]
[300,null,null,"Select from Drop Down","Select from Drop Down","Select from Drop Down",null,null,null,null,null,null,null,null,null,null,null,null,"Select from Drop Down","Select from Drop Down","Select from Drop Down"]
[301,null,null,"Select from Drop Down","Select from Drop Down","Select from Drop Down",null,null,null,null,null,null,null,null,null,null,null,null,"Select from Drop Down","Select from Drop Down","Select from Drop Down"]
[302,null,null,"Select from Drop Down","Select from Drop Down","Select from Drop Down",null,null,null,null,null,null,null,null,null,null,null,null,"Select from Drop Down","Select from Drop Down","Select from Drop Down"]
[303,null,null,"Select from Drop Down","Select from Drop Down","Select from Drop Down",null,null,null,null,null,null,null,null,null,null,null,null,"Select from Drop Down","Select from Drop Down","Select from Drop Down"]
[304,null,null,"Select from Drop Down","Select from Drop Down","Select from Drop Down",null,null,null,null,null,null,null,null,null,null,null,null,"Select from Drop Down","Select from Drop Down","Select from Drop Down"]
[305,null,null,"Select from Drop Down","Select from Drop Down","Select from Drop Down",null,null,null,null,null,null,null,null,null,null,null,null,"Select from Drop Down","Select from Drop Down","Select from Drop Down"]
[306,null,null,"Select from Drop Down","Select from Drop Down","Select from Drop Down",null,null,null,null,null,null,null,null,null,null,null,null,"Select from Drop Down","Select from Drop Down","Select from Drop Down"]
[307,null,null,"Select from Drop Down","Select from Drop Down","Select from Drop Down",null,null,null,null,null,null,null,null,null,null,null,null,"Select from Drop Down","Select from Drop Down","Select from Drop Down"]
[308,null,null,"Select from Drop Down","Select from Drop Down","Select from Drop Down",null,null,null,null,null,null,null,null,null,null,null,null,"Select from Drop Down","Select from Drop Down","Select from Drop Down"]
[309,null,null,"Select from Drop Down","Select from Drop Down","Select from Drop Down",null,null,null,null,null,null,null,null,null,null,null,null,"Select from Drop Down","Select from Drop Down","Select from Drop Down"]
[310,null,null,"Select from Drop Down","Select from Drop Down","Select from Drop Down",null,null,null,null,null,null,null,null,null,null,null,null,"Select from Drop Down","Select from Drop Down","Select from Drop Down"]
[311,null,null,"Select from Drop Down","Select from Drop Down","Select from Drop Down",null,null,null,null,null,null,null,null,null,null,null,null,"Select from Drop Down","Select from Drop Down","Select from Drop Down"]
[312,null,null,"Select from Drop Down","Select from Drop Down","Select from Drop Down",null,null,null,null,null,null,null,null,null,null,null,null,"Select from Drop Down","Select from Drop Down","Select from Drop Down"]
[313,null,null,"Select from Drop Down","Select from Drop Down","Select from Drop Down",null,null,null,null,null,null,null,null,null,null,null,null,"Select from Drop Down","Select from Drop Down","Select from Drop Down"]
[314,null,null,"Select from Drop Down","Select from Drop Down","Select from Drop Down",null,null,null,null,null,null,null,null,null,null,null,null,"Select from Drop Down","Select from Drop Down","Select from Drop Down"]
[315,null,null,"Select from Drop Down","Select from Drop Down","Select from Drop Down",null,null,null,null,null,null,null,null,null,null,null,null,"Select from Drop Down","Select from Drop Down","Select from Drop Down"]
[316,null,null,"Select from Drop Down","Select from Drop Down","Select from Drop Down",null,null,null,null,null,null,null,null,null,null,null,null,"Select from Drop Down","Select from Drop Down","Select from Drop Down"]
[317,null,null,"Select from Drop Down","Select from Drop Down","Select from Drop Down",null,null,null,null,null,null,null,null,null,null,null,null,"Select from Drop Down","Select from Drop Down","Select from Drop Down"]
[318,null,null,"Select from Drop Down","Select from Drop Down","Select from Drop Down",null,null,null,null,null,null,null,null,null,null,null,null,"Select from Drop Down","Select from Drop Down","Select from Drop Down"]
[319,null,null,"Select from Drop Down","Select from Drop Down","Select from Drop Down",null,null,null,null,null,null,null,null,null,null,null,null,"Select from Drop Down","Select from Drop Down","Select from Drop Down"]
[320,null,null,"Select from Drop Down","Select from Drop Down","Select from Drop Down",null,null,null,null,null,null,null,null,null,null,null,null,"Select from Drop Down","Select from Drop Down","Select from Drop Down"]
[321,null,null,"Select from Drop Down","Select from Drop Down","Select from Drop Down",null,null,null,null,null,null,null,null,null,null,null,null,"Select from Drop Down","Select from Drop Down","Select from Drop Down"]
[322,null,null,"Select from Drop Down","Select from Drop Down","Select from Drop Down",null,null,null,null,null,null,null,null,null,null,null,null,"Select from Drop Down","Select from Drop Down","Select from Drop Down"]
[{"$f":"A332+1","v":323},null,null,"Select from Drop Down","Select from Drop Down","Select from Drop Down",null,null,null,null,null,null,null,null,null,null,null,null,"Select from Drop Down","Select from Drop Down","Select from Drop Down"]
[324,null,null,"Select from Drop Down","Select from Drop Down","Select from Drop Down",null,null,null,null,null,null,null,null,null,null,null,null,"Select from Drop Down","Select from Drop Down","Select from Drop Down"]
[325,null,null,"Select from Drop Down","Select from Drop Down","Select from Drop Down",null,null,null,null,null,null,null,null,null,null,null,null,"Select from Drop Down","Select from Drop Down","Select from Drop Down"]
[326,null,null,"Select from Drop Down","Select from Drop Down","Select from Drop Down",null,null,null,null,null,null,null,null,null,null,null,null,"Select from Drop Down","Select from Drop Down","Select from Drop Down"]
[327,null,null,"Select from Drop Down","Select from Drop Down","Select from Drop Down",null,null,null,null,null,null,null,null,null,null,null,null,"Select from Drop Down","Select from Drop Down","Select from Drop Down"]
[328,null,null,"Select from Drop Down","Select from Drop Down","Select from Drop Down",null,null,null,null,null,null,null,null,null,null,null,null,"Select from Drop Down","Select from Drop Down","Select from Drop Down"]
[329,null,null,"Select from Drop Down","Select from Drop Down","Select from Drop Down",null,null,null,null,null,null,null,null,null,null,null,null,"Select from Drop Down","Select from Drop Down","Select from Drop Down"]
[330,null,null,"Select from Drop Down","Select from Drop Down","Select from Drop Down",null,null,null,null,null,null,null,null,null,null,null,null,"Select from Drop Down","Select from Drop Down","Select from Drop Down"]
[331,null,null,"Select from Drop Down","Select from Drop Down","Select from Drop Down",null,null,null,null,null,null,null,null,null,null,null,null,"Select from Drop Down","Select from Drop Down","Select from Drop Down"]
[332,null,null,"Select from Drop Down","Select from Drop Down","Select from Drop Down",null,null,null,null,null,null,null,null,null,null,null,null,"Select from Drop Down","Select from Drop Down","Select from Drop Down"]
[333,null,null,"Select from Drop Down","Select from Drop Down","Select from Drop Down",null,null,null,null,null,null,null,null,null,null,null,null,"Select from Drop Down","Select from Drop Down","Select from Drop Down"]
[334,null,null,"Select from Drop Down","Select from Drop Down","Select from Drop Down",null,null,null,null,null,null,null,null,null,null,null,null,"Select from Drop Down","Select from Drop Down","Select from Drop Down"]
[335,null,null,"Select from Drop Down","Select from Drop Down","Select from Drop Down",null,null,null,null,null,null,null,null,null,null,null,null,"Select from Drop Down","Select from Drop Down","Select from Drop Down"]
[336,null,null,"Select from Drop Down","Select from Drop Down","Select from Drop Down",null,null,null,null,null,null,null,null,null,null,null,null,"Select from Drop Down","Select from Drop Down","Select from Drop Down"]
[337,null,null,"Select from Drop Down","Select from Drop Down","Select from Drop Down",null,null,null,null,null,null,null,null,null,null,null,null,"Select from Drop Down","Select from Drop Down","Select from Drop Down"]
[338,null,null,"Select from Drop Down","Select from Drop Down","Select from Drop Down",null,null,null,null,null,null,null,null,null,null,null,null,"Select from Drop Down","Select from Drop Down","Select from Drop Down"]
[339,null,null,"Select from Drop Down","Select from Drop Down","Select from Drop Down",null,null,null,null,null,null,null,null,null,null,null,null,"Select from Drop Down","Select from Drop Down","Select from Drop Down"]
[340,null,null,"Select from Drop Down","Select from Drop Down","Select from Drop Down",null,null,null,null,null,null,null,null,null,null,null,null,"Select from Drop Down","Select from Drop Down","Select from Drop Down"]
[341,null,null,"Select from Drop Down","Select from Drop Down","Select from Drop Down",null,null,null,null,null,null,null,null,null,null,null,null,"Select from Drop Down","Select from Drop Down","Select from Drop Down"]
[342,null,null,"Select from Drop Down","Select from Drop Down","Select from Drop Down",null,null,null,null,null,null,null,null,null,null,null,null,"Select from Drop Down","Select from Drop Down","Select from Drop Down"]
[343,null,null,"Select from Drop Down","Select from Drop Down","Select from Drop Down",null,null,null,null,null,null,null,null,null,null,null,null,"Select from Drop Down","Select from Drop Down","Select from Drop Down"]
[344,null,null,"Select from Drop Down","Select from Drop Down","Select from Drop Down",null,null,null,null,null,null,null,null,null,null,null,null,"Select from Drop Down","Select from Drop Down","Select from Drop Down"]
[345,null,null,"Select from Drop Down","Select from Drop Down","Select from Drop Down",null,null,null,null,null,null,null,null,null,null,null,null,"Select from Drop Down","Select from Drop Down","Select from Drop Down"]
[346,null,null,"Select from Drop Down","Select from Drop Down","Select from Drop Down",null,null,null,null,null,null,null,null,null,null,null,null,"Select from Drop Down","Select from Drop Down","Select from Drop Down"]
[347,null,null,"Select from Drop Down","Select from Drop Down","Select from Drop Down",null,null,null,null,null,null,null,null,null,null,null,null,"Select from Drop Down","Select from Drop Down","Select from Drop Down"]
[348,null,null,"Select from Drop Down","Select from Drop Down","Select from Drop Down",null,null,null,null,null,null,null,null,null,null,null,null,"Select from Drop Down","Select from Drop Down","Select from Drop Down"]
[349,null,null,"Select from Drop Down","Select from Drop Down","Select from Drop Down",null,null,null,null,null,null,null,null,null,null,null,null,"Select from Drop Down","Select from Drop Down","Select from Drop Down"]
[350,null,null,"Select from Drop Down","Select from Drop Down","Select from Drop Down",null,null,null,null,null,null,null,null,null,null,null,null,"Select from Drop Down","Select from Drop Down","Select from Drop Down"]
[351,null,null,"Select from Drop Down","Select from Drop Down","Select from Drop Down",null,null,null,null,null,null,null,null,null,null,null,null,"Select from Drop Down","Select from Drop Down","Select from Drop Down"]
[352,null,null,"Select from Drop Down","Select from Drop Down","Select from Drop Down",null,null,null,null,null,null,null,null,null,null,null,null,"Select from Drop Down","Select from Drop Down","Select from Drop Down"]
[353,null,null,"Select from Drop Down","Select from Drop Down","Select from Drop Down",null,null,null,null,null,null,null,null,null,null,null,null,"Select from Drop Down","Select from Drop Down","Select from Drop Down"]
[354,null,null,"Select from Drop Down","Select from Drop Down","Select from Drop Down",null,null,null,null,null,null,null,null,null,null,null,null,"Select from Drop Down","Select from Drop Down","Select from Drop Down"]
[355,null,null,"Select from Drop Down","Select from Drop Down","Select from Drop Down",null,null,null,null,null,null,null,null,null,null,null,null,"Select from Drop Down","Select from Drop Down","Select from Drop Down"]
[356,null,null,"Select from Drop Down","Select from Drop Down","Select from Drop Down",null,null,null,null,null,null,null,null,null,null,null,null,"Select from Drop Down","Select from Drop Down","Select from Drop Down"]
[357,null,null,"Select from Drop Down","Select from Drop Down","Select from Drop Down",null,null,null,null,null,null,null,null,null,null,null,null,"Select from Drop Down","Select from Drop Down","Select from Drop Down"]
[358,null,null,"Select from Drop Down","Select from Drop Down","Select from Drop Down",null,null,null,null,null,null,null,null,null,null,null,null,"Select from Drop Down","Select from Drop Down","Select from Drop Down"]
[359,null,null,"Select from Drop Down","Select from Drop Down","Select from Drop Down",null,null,null,null,null,null,null,null,null,null,null,null,"Select from Drop Down","Select from Drop Down","Select from Drop Down"]
[360,null,null,"Select from Drop Down","Select from Drop Down","Select from Drop Down",null,null,null,null,null,null,null,null,null,null,null,null,"Select from Drop Down","Select from Drop Down","Select from Drop Down"]
[361,null,null,"Select from Drop Down","Select from Drop Down","Select from Drop Down",null,null,null,null,null,null,null,null,null,null,null,null,"Select from Drop Down","Select from Drop Down","Select from Drop Down"]
[362,null,null,"Select from Drop Down","Select from Drop Down","Select from Drop Down",null,null,null,null,null,null,null,null,null,null,null,null,"Select from Drop Down","Select from Drop Down","Select from Drop Down"]
[363,null,null,"Select from Drop Down","Select from Drop Down","Select from Drop Down",null,null,null,null,null,null,null,null,null,null,null,null,"Select from Drop Down","Select from Drop Down","Select from Drop Down"]
[364,null,null,"Select from Drop Down","Select from Drop Down","Select from Drop Down",null,null,null,null,null,null,null,null,null,null,null,null,"Select from Drop Down","Select from Drop Down","Select from Drop Down"]
[365,null,null,"Select from Drop Down","Select from Drop Down","Select from Drop Down",null,null,null,null,null,null,null,null,null,null,null,null,"Select from Drop Down","Select from Drop Down","Select from Drop Down"]
[366,null,null,"Select from Drop Down","Select from Drop Down","Select from Drop Down",null,null,null,null,null,null,null,null,null,null,null,null,"Select from Drop Down","Select from Drop Down","Select from Drop Down"]
[367,null,null,"Select from Drop Down","Select from Drop Down","Select from Drop Down",null,null,null,null,null,null,null,null,null,null,null,null,"Select from Drop Down","Select from Drop Down","Select from Drop Down"]
[368,null,null,"Select from Drop Down","Select from Drop Down","Select from Drop Down",null,null,null,null,null,null,null,null,null,null,null,null,"Select from Drop Down","Select from Drop Down","Select from Drop Down"]
[369,null,null,"Select from Drop Down","Select from Drop Down","Select from Drop Down",null,null,null,null,null,null,null,null,null,null,null,null,"Select from Drop Down","Select from Drop Down","Select from Drop Down"]
[370,null,null,"Select from Drop Down","Select from Drop Down","Select from Drop Down",null,null,null,null,null,null,null,null,null,null,null,null,"Select from Drop Down","Select from Drop Down","Select from Drop Down"]
[371,null,null,"Select from Drop Down","Select from Drop Down","Select from Drop Down",null,null,null,null,null,null,null,null,null,null,null,null,"Select from Drop Down","Select from Drop Down","Select from Drop Down"]
[372,null,null,"Select from Drop Down","Select from Drop Down","Select from Drop Down",null,null,null,null,null,null,null,null,null,null,null,null,"Select from Drop Down","Select from Drop Down","Select from Drop Down"]
[373,null,null,"Select from Drop Down","Select from Drop Down","Select from Drop Down",null,null,null,null,null,null,null,null,null,null,null,null,"Select from Drop Down","Select from Drop Down","Select from Drop Down"]
[374,null,null,"Select from Drop Down","Select from Drop Down","Select from Drop Down",null,null,null,null,null,null,null,null,null,null,null,null,"Select from Drop Down","Select from Drop Down","Select from Drop Down"]
[375,null,null,"Select from Drop Down","Select from Drop Down","Select from Drop Down",null,null,null,null,null,null,null,null,null,null,null,null,"Select from Drop Down","Select from Drop Down","Select from Drop Down"]
[376,null,null,"Select from Drop Down","Select from Drop Down","Select from Drop Down",null,null,null,null,null,null,null,null,null,null,null,null,"Select from Drop Down","Select from Drop Down","Select from Drop Down"]
[377,null,null,"Select from Drop Down","Select from Drop Down","Select from Drop Down",null,null,null,null,null,null,null,null,null,null,null,null,"Select from Drop Down","Select from Drop Down","Select from Drop Down"]
[378,null,null,"Select from Drop Down","Select from Drop Down","Select from Drop Down",null,null,null,null,null,null,null,null,null,null,null,null,"Select from Drop Down","Select from Drop Down","Select from Drop Down"]
[379,null,null,"Select from Drop Down","Select from Drop Down","Select from Drop Down",null,null,null,null,null,null,null,null,null,null,null,null,"Select from Drop Down","Select from Drop Down","Select from Drop Down"]
[380,null,null,"Select from Drop Down","Select from Drop Down","Select from Drop Down",null,null,null,null,null,null,null,null,null,null,null,null,"Select from Drop Down","Select from Drop Down","Select from Drop Down"]
[381,null,null,"Select from Drop Down","Select from Drop Down","Select from Drop Down",null,null,null,null,null,null,null,null,null,null,null,null,"Select from Drop Down","Select from Drop Down","Select from Drop Down"]
[382,null,null,"Select from Drop Down","Select from Drop Down","Select from Drop Down",null,null,null,null,null,null,null,null,null,null,null,null,"Select from Drop Down","Select from Drop Down","Select from Drop Down"]
[383,null,null,"Select from Drop Down","Select from Drop Down","Select from Drop Down",null,null,null,null,null,null,null,null,null,null,null,null,"Select from Drop Down","Select from Drop Down","Select from Drop Down"]
[384,null,null,"Select from Drop Down","Select from Drop Down","Select from Drop Down",null,null,null,null,null,null,null,null,null,null,null,null,"Select from Drop Down","Select from Drop Down","Select from Drop Down"]
[385,null,null,"Select from Drop Down","Select from Drop Down","Select from Drop Down",null,null,null,null,null,null,null,null,null,null,null,null,"Select from Drop Down","Select from Drop Down","Select from Drop Down"]
[386,null,null,"Select from Drop Down","Select from Drop Down","Select from Drop Down",null,null,null,null,null,null,null,null,null,null,null,null,"Select from Drop Down","Select from Drop Down","Select from Drop Down"]
[{"$f":"A396+1","v":387},null,null,"Select from Drop Down","Select from Drop Down","Select from Drop Down",null,null,null,null,null,null,null,null,null,null,null,null,"Select from Drop Down","Select from Drop Down","Select from Drop Down"]
[388,null,null,"Select from Drop Down","Select from Drop Down","Select from Drop Down",null,null,null,null,null,null,null,null,null,null,null,null,"Select from Drop Down","Select from Drop Down","Select from Drop Down"]
[389,null,null,"Select from Drop Down","Select from Drop Down","Select from Drop Down",null,null,null,null,null,null,null,null,null,null,null,null,"Select from Drop Down","Select from Drop Down","Select from Drop Down"]
[390,null,null,"Select from Drop Down","Select from Drop Down","Select from Drop Down",null,null,null,null,null,null,null,null,null,null,null,null,"Select from Drop Down","Select from Drop Down","Select from Drop Down"]
[391,null,null,"Select from Drop Down","Select from Drop Down","Select from Drop Down",null,null,null,null,null,null,null,null,null,null,null,null,"Select from Drop Down","Select from Drop Down","Select from Drop Down"]
[392,null,null,"Select from Drop Down","Select from Drop Down","Select from Drop Down",null,null,null,null,null,null,null,null,null,null,null,null,"Select from Drop Down","Select from Drop Down","Select from Drop Down"]
[393,null,null,"Select from Drop Down","Select from Drop Down","Select from Drop Down",null,null,null,null,null,null,null,null,null,null,null,null,"Select from Drop Down","Select from Drop Down","Select from Drop Down"]
[394,null,null,"Select from Drop Down","Select from Drop Down","Select from Drop Down",null,null,null,null,null,null,null,null,null,null,null,null,"Select from Drop Down","Select from Drop Down","Select from Drop Down"]
[395,null,null,"Select from Drop Down","Select from Drop Down","Select from Drop Down",null,null,null,null,null,null,null,null,null,null,null,null,"Select from Drop Down","Select from Drop Down","Select from Drop Down"]
[396,null,null,"Select from Drop Down","Select from Drop Down","Select from Drop Down",null,null,null,null,null,null,null,null,null,null,null,null,"Select from Drop Down","Select from Drop Down","Select from Drop Down"]
[397,null,null,"Select from Drop Down","Select from Drop Down","Select from Drop Down",null,null,null,null,null,null,null,null,null,null,null,null,"Select from Drop Down","Select from Drop Down","Select from Drop Down"]
[398,null,null,"Select from Drop Down","Select from Drop Down","Select from Drop Down",null,null,null,null,null,null,null,null,null,null,null,null,"Select from Drop Down","Select from Drop Down","Select from Drop Down"]
[399,null,null,"Select from Drop Down","Select from Drop Down","Select from Drop Down",null,null,null,null,null,null,null,null,null,null,null,null,"Select from Drop Down","Select from Drop Down","Select from Drop Down"]
[400,null,null,"Select from Drop Down","Select from Drop Down","Select from Drop Down",null,null,null,null,null,null,null,null,null,null,null,null,"Select from Drop Down","Select from Drop Down","Select from Drop Down"]
[401,null,null,"Select from Drop Down","Select from Drop Down","Select from Drop Down",null,null,null,null,null,null,null,null,null,null,null,null,"Select from Drop Down","Select from Drop Down","Select from Drop Down"]
[402,null,null,"Select from Drop Down","Select from Drop Down","Select from Drop Down",null,null,null,null,null,null,null,null,null,null,null,null,"Select from Drop Down","Select from Drop Down","Select from Drop Down"]
[403,null,null,"Select from Drop Down","Select from Drop Down","Select from Drop Down",null,null,null,null,null,null,null,null,null,null,null,null,"Select from Drop Down","Select from Drop Down","Select from Drop Down"]
[404,null,null,"Select from Drop Down","Select from Drop Down","Select from Drop Down",null,null,null,null,null,null,null,null,null,null,null,null,"Select from Drop Down","Select from Drop Down","Select from Drop Down"]
[405,null,null,"Select from Drop Down","Select from Drop Down","Select from Drop Down",null,null,null,null,null,null,null,null,null,null,null,null,"Select from Drop Down","Select from Drop Down","Select from Drop Down"]
[406,null,null,"Select from Drop Down","Select from Drop Down","Select from Drop Down",null,null,null,null,null,null,null,null,null,null,null,null,"Select from Drop Down","Select from Drop Down","Select from Drop Down"]
[407,null,null,"Select from Drop Down","Select from Drop Down","Select from Drop Down",null,null,null,null,null,null,null,null,null,null,null,null,"Select from Drop Down","Select from Drop Down","Select from Drop Down"]
[408,null,null,"Select from Drop Down","Select from Drop Down","Select from Drop Down",null,null,null,null,null,null,null,null,null,null,null,null,"Select from Drop Down","Select from Drop Down","Select from Drop Down"]
[409,null,null,"Select from Drop Down","Select from Drop Down","Select from Drop Down",null,null,null,null,null,null,null,null,null,null,null,null,"Select from Drop Down","Select from Drop Down","Select from Drop Down"]
[410,null,null,"Select from Drop Down","Select from Drop Down","Select from Drop Down",null,null,null,null,null,null,null,null,null,null,null,null,"Select from Drop Down","Select from Drop Down","Select from Drop Down"]
[411,null,null,"Select from Drop Down","Select from Drop Down","Select from Drop Down",null,null,null,null,null,null,null,null,null,null,null,null,"Select from Drop Down","Select from Drop Down","Select from Drop Down"]
[412,null,null,"Select from Drop Down","Select from Drop Down","Select from Drop Down",null,null,null,null,null,null,null,null,null,null,null,null,"Select from Drop Down","Select from Drop Down","Select from Drop Down"]
[413,null,null,"Select from Drop Down","Select from Drop Down","Select from Drop Down",null,null,null,null,null,null,null,null,null,null,null,null,"Select from Drop Down","Select from Drop Down","Select from Drop Down"]
[414,null,null,"Select from Drop Down","Select from Drop Down","Select from Drop Down",null,null,null,null,null,null,null,null,null,null,null,null,"Select from Drop Down","Select from Drop Down","Select from Drop Down"]
[415,null,null,"Select from Drop Down","Select from Drop Down","Select from Drop Down",null,null,null,null,null,null,null,null,null,null,null,null,"Select from Drop Down","Select from Drop Down","Select from Drop Down"]
[416,null,null,"Select from Drop Down","Select from Drop Down","Select from Drop Down",null,null,null,null,null,null,null,null,null,null,null,null,"Select from Drop Down","Select from Drop Down","Select from Drop Down"]
[417,null,null,"Select from Drop Down","Select from Drop Down","Select from Drop Down",null,null,null,null,null,null,null,null,null,null,null,null,"Select from Drop Down","Select from Drop Down","Select from Drop Down"]
[418,null,null,"Select from Drop Down","Select from Drop Down","Select from Drop Down",null,null,null,null,null,null,null,null,null,null,null,null,"Select from Drop Down","Select from Drop Down","Select from Drop Down"]
[419,null,null,"Select from Drop Down","Select from Drop Down","Select from Drop Down",null,null,null,null,null,null,null,null,null,null,null,null,"Select from Drop Down","Select from Drop Down","Select from Drop Down"]
[420,null,null,"Select from Drop Down","Select from Drop Down","Select from Drop Down",null,null,null,null,null,null,null,null,null,null,null,null,"Select from Drop Down","Select from Drop Down","Select from Drop Down"]
[421,null,null,"Select from Drop Down","Select from Drop Down","Select from Drop Down",null,null,null,null,null,null,null,null,null,null,null,null,"Select from Drop Down","Select from Drop Down","Select from Drop Down"]
[422,null,null,"Select from Drop Down","Select from Drop Down","Select from Drop Down",null,null,null,null,null,null,null,null,null,null,null,null,"Select from Drop Down","Select from Drop Down","Select from Drop Down"]
[423,null,null,"Select from Drop Down","Select from Drop Down","Select from Drop Down",null,null,null,null,null,null,null,null,null,null,null,null,"Select from Drop Down","Select from Drop Down","Select from Drop Down"]
[424,null,null,"Select from Drop Down","Select from Drop Down","Select from Drop Down",null,null,null,null,null,null,null,null,null,null,null,null,"Select from Drop Down","Select from Drop Down","Select from Drop Down"]
[425,null,null,"Select from Drop Down","Select from Drop Down","Select from Drop Down",null,null,null,null,null,null,null,null,null,null,null,null,"Select from Drop Down","Select from Drop Down","Select from Drop Down"]
[426,null,null,"Select from Drop Down","Select from Drop Down","Select from Drop Down",null,null,null,null,null,null,null,null,null,null,null,null,"Select from Drop Down","Select from Drop Down","Select from Drop Down"]
[427,null,null,"Select from Drop Down","Select from Drop Down","Select from Drop Down",null,null,null,null,null,null,null,null,null,null,null,null,"Select from Drop Down","Select from Drop Down","Select from Drop Down"]
[428,null,null,"Select from Drop Down","Select from Drop Down","Select from Drop Down",null,null,null,null,null,null,null,null,null,null,null,null,"Select from Drop Down","Select from Drop Down","Select from Drop Down"]
[429,null,null,"Select from Drop Down","Select from Drop Down","Select from Drop Down",null,null,null,null,null,null,null,null,null,null,null,null,"Select from Drop Down","Select from Drop Down","Select from Drop Down"]
[430,null,null,"Select from Drop Down","Select from Drop Down","Select from Drop Down",null,null,null,null,null,null,null,null,null,null,null,null,"Select from Drop Down","Select from Drop Down","Select from Drop Down"]
[431,null,null,"Select from Drop Down","Select from Drop Down","Select from Drop Down",null,null,null,null,null,null,null,null,null,null,null,null,"Select from Drop Down","Select from Drop Down","Select from Drop Down"]
[432,null,null,"Select from Drop Down","Select from Drop Down","Select from Drop Down",null,null,null,null,null,null,null,null,null,null,null,null,"Select from Drop Down","Select from Drop Down","Select from Drop Down"]
[433,null,null,"Select from Drop Down","Select from Drop Down","Select from Drop Down",null,null,null,null,null,null,null,null,null,null,null,null,"Select from Drop Down","Select from Drop Down","Select from Drop Down"]
[434,null,null,"Select from Drop Down","Select from Drop Down","Select from Drop Down",null,null,null,null,null,null,null,null,null,null,null,null,"Select from Drop Down","Select from Drop Down","Select from Drop Down"]
[435,null,null,"Select from Drop Down","Select from Drop Down","Select from Drop Down",null,null,null,null,null,null,null,null,null,null,null,null,"Select from Drop Down","Select from Drop Down","Select from Drop Down"]
[436,null,null,"Select from Drop Down","Select from Drop Down","Select from Drop Down",null,null,null,null,null,null,null,null,null,null,null,null,"Select from Drop Down","Select from Drop Down","Select from Drop Down"]
[437,null,null,"Select from Drop Down","Select from Drop Down","Select from Drop Down",null,null,null,null,null,null,null,null,null,null,null,null,"Select from Drop Down","Select from Drop Down","Select from Drop Down"]
[438,null,null,"Select from Drop Down","Select from Drop Down","Select from Drop Down",null,null,null,null,null,null,null,null,null,null,null,null,"Select from Drop Down","Select from Drop Down","Select from Drop Down"]
[439,null,null,"Select from Drop Down","Select from Drop Down","Select from Drop Down",null,null,null,null,null,null,null,null,null,null,null,null,"Select from Drop Down","Select from Drop Down","Select from Drop Down"]
[440,null,null,"Select from Drop Down","Select from Drop Down","Select from Drop Down",null,null,null,null,null,null,null,null,null,null,null,null,"Select from Drop Down","Select from Drop Down","Select from Drop Down"]
[441,null,null,"Select from Drop Down","Select from Drop Down","Select from Drop Down",null,null,null,null,null,null,null,null,null,null,null,null,"Select from Drop Down","Select from Drop Down","Select from Drop Down"]
[442,null,null,"Select from Drop Down","Select from Drop Down","Select from Drop Down",null,null,null,null,null,null,null,null,null,null,null,null,"Select from Drop Down","Select from Drop Down","Select from Drop Down"]
[443,null,null,"Select from Drop Down","Select from Drop Down","Select from Drop Down",null,null,null,null,null,null,null,null,null,null,null,null,"Select from Drop Down","Select from Drop Down","Select from Drop Down"]
[444,null,null,"Select from Drop Down","Select from Drop Down","Select from Drop Down",null,null,null,null,null,null,null,null,null,null,null,null,"Select from Drop Down","Select from Drop Down","Select from Drop Down"]
[445,null,null,"Select from Drop Down","Select from Drop Down","Select from Drop Down",null,null,null,null,null,null,null,null,null,null,null,null,"Select from Drop Down","Select from Drop Down","Select from Drop Down"]
[446,null,null,"Select from Drop Down","Select from Drop Down","Select from Drop Down",null,null,null,null,null,null,null,null,null,null,null,null,"Select from Drop Down","Select from Drop Down","Select from Drop Down"]
[447,null,null,"Select from Drop Down","Select from Drop Down","Select from Drop Down",null,null,null,null,null,null,null,null,null,null,null,null,"Select from Drop Down","Select from Drop Down","Select from Drop Down"]
[448,null,null,"Select from Drop Down","Select from Drop Down","Select from Drop Down",null,null,null,null,null,null,null,null,null,null,null,null,"Select from Drop Down","Select from Drop Down","Select from Drop Down"]
[449,null,null,"Select from Drop Down","Select from Drop Down","Select from Drop Down",null,null,null,null,null,null,null,null,null,null,null,null,"Select from Drop Down","Select from Drop Down","Select from Drop Down"]
[450,null,null,"Select from Drop Down","Select from Drop Down","Select from Drop Down",null,null,null,null,null,null,null,null,null,null,null,null,"Select from Drop Down","Select from Drop Down","Select from Drop Down"]
[{"$f":"A460+1","v":451},null,null,"Select from Drop Down","Select from Drop Down","Select from Drop Down",null,null,null,null,null,null,null,null,null,null,null,null,"Select from Drop Down","Select from Drop Down","Select from Drop Down"]
[452,null,null,"Select from Drop Down","Select from Drop Down","Select from Drop Down",null,null,null,null,null,null,null,null,null,null,null,null,"Select from Drop Down","Select from Drop Down","Select from Drop Down"]
[453,null,null,"Select from Drop Down","Select from Drop Down","Select from Drop Down",null,null,null,null,null,null,null,null,null,null,null,null,"Select from Drop Down","Select from Drop Down","Select from Drop Down"]
[454,null,null,"Select from Drop Down","Select from Drop Down","Select from Drop Down",null,null,null,null,null,null,null,null,null,null,null,null,"Select from Drop Down","Select from Drop Down","Select from Drop Down"]
[455,null,null,"Select from Drop Down","Select from Drop Down","Select from Drop Down",null,null,null,null,null,null,null,null,null,null,null,null,"Select from Drop Down","Select from Drop Down","Select from Drop Down"]
[456,null,null,"Select from Drop Down","Select from Drop Down","Select from Drop Down",null,null,null,null,null,null,null,null,null,null,null,null,"Select from Drop Down","Select from Drop Down","Select from Drop Down"]
[457,null,null,"Select from Drop Down","Select from Drop Down","Select from Drop Down",null,null,null,null,null,null,null,null,null,null,null,null,"Select from Drop Down","Select from Drop Down","Select from Drop Down"]
[458,null,null,"Select from Drop Down","Select from Drop Down","Select from Drop Down",null,null,null,null,null,null,null,null,null,null,null,null,"Select from Drop Down","Select from Drop Down","Select from Drop Down"]
[459,null,null,"Select from Drop Down","Select from Drop Down","Select from Drop Down",null,null,null,null,null,null,null,null,null,null,null,null,"Select from Drop Down","Select from Drop Down","Select from Drop Down"]
[460,null,null,"Select from Drop Down","Select from Drop Down","Select from Drop Down",null,null,null,null,null,null,null,null,null,null,null,null,"Select from Drop Down","Select from Drop Down","Select from Drop Down"]
[461,null,null,"Select from Drop Down","Select from Drop Down","Select from Drop Down",null,null,null,null,null,null,null,null,null,null,null,null,"Select from Drop Down","Select from Drop Down","Select from Drop Down"]
[462,null,null,"Select from Drop Down","Select from Drop Down","Select from Drop Down",null,null,null,null,null,null,null,null,null,null,null,null,"Select from Drop Down","Select from Drop Down","Select from Drop Down"]
[463,null,null,"Select from Drop Down","Select from Drop Down","Select from Drop Down",null,null,null,null,null,null,null,null,null,null,null,null,"Select from Drop Down","Select from Drop Down","Select from Drop Down"]
[464,null,null,"Select from Drop Down","Select from Drop Down","Select from Drop Down",null,null,null,null,null,null,null,null,null,null,null,null,"Select from Drop Down","Select from Drop Down","Select from Drop Down"]
[465,null,null,"Select from Drop Down","Select from Drop Down","Select from Drop Down",null,null,null,null,null,null,null,null,null,null,null,null,"Select from Drop Down","Select from Drop Down","Select from Drop Down"]
[466,null,null,"Select from Drop Down","Select from Drop Down","Select from Drop Down",null,null,null,null,null,null,null,null,null,null,null,null,"Select from Drop Down","Select from Drop Down","Select from Drop Down"]
[467,null,null,"Select from Drop Down","Select from Drop Down","Select from Drop Down",null,null,null,null,null,null,null,null,null,null,null,null,"Select from Drop Down","Select from Drop Down","Select from Drop Down"]
[468,null,null,"Select from Drop Down","Select from Drop Down","Select from Drop Down",null,null,null,null,null,null,null,null,null,null,null,null,"Select from Drop Down","Select from Drop Down","Select from Drop Down"]
[469,null,null,"Select from Drop Down","Select from Drop Down","Select from Drop Down",null,null,null,null,null,null,null,null,null,null,null,null,"Select from Drop Down","Select from Drop Down","Select from Drop Down"]
[470,null,null,"Select from Drop Down","Select from Drop Down","Select from Drop Down",null,null,null,null,null,null,null,null,null,null,null,null,"Select from Drop Down","Select from Drop Down","Select from Drop Down"]
[471,null,null,"Select from Drop Down","Select from Drop Down","Select from Drop Down",null,null,null,null,null,null,null,null,null,null,null,null,"Select from Drop Down","Select from Drop Down","Select from Drop Down"]
[472,null,null,"Select from Drop Down","Select from Drop Down","Select from Drop Down",null,null,null,null,null,null,null,null,null,null,null,null,"Select from Drop Down","Select from Drop Down","Select from Drop Down"]
[473,null,null,"Select from Drop Down","Select from Drop Down","Select from Drop Down",null,null,null,null,null,null,null,null,null,null,null,null,"Select from Drop Down","Select from Drop Down","Select from Drop Down"]
[474,null,null,"Select from Drop Down","Select from Drop Down","Select from Drop Down",null,null,null,null,null,null,null,null,null,null,null,null,"Select from Drop Down","Select from Drop Down","Select from Drop Down"]
[475,null,null,"Select from Drop Down","Select from Drop Down","Select from Drop Down",null,null,null,null,null,null,null,null,null,null,null,null,"Select from Drop Down","Select from Drop Down","Select from Drop Down"]
[476,null,null,"Select from Drop Down","Select from Drop Down","Select from Drop Down",null,null,null,null,null,null,null,null,null,null,null,null,"Select from Drop Down","Select from Drop Down","Select from Drop Down"]
[477,null,null,"Select from Drop Down","Select from Drop Down","Select from Drop Down",null,null,null,null,null,null,null,null,null,null,null,null,"Select from Drop Down","Select from Drop Down","Select from Drop Down"]
[478,null,null,"Select from Drop Down","Select from Drop Down","Select from Drop Down",null,null,null,null,null,null,null,null,null,null,null,null,"Select from Drop Down","Select from Drop Down","Select from Drop Down"]
[479,null,null,"Select from Drop Down","Select from Drop Down","Select from Drop Down",null,null,null,null,null,null,null,null,null,null,null,null,"Select from Drop Down","Select from Drop Down","Select from Drop Down"]
[480,null,null,"Select from Drop Down","Select from Drop Down","Select from Drop Down",null,null,null,null,null,null,null,null,null,null,null,null,"Select from Drop Down","Select from Drop Down","Select from Drop Down"]
[481,null,null,"Select from Drop Down","Select from Drop Down","Select from Drop Down",null,null,null,null,null,null,null,null,null,null,null,null,"Select from Drop Down","Select from Drop Down","Select from Drop Down"]
[482,null,null,"Select from Drop Down","Select from Drop Down","Select from Drop Down",null,null,null,null,null,null,null,null,null,null,null,null,"Select from Drop Down","Select from Drop Down","Select from Drop Down"]
[483,null,null,"Select from Drop Down","Select from Drop Down","Select from Drop Down",null,null,null,null,null,null,null,null,null,null,null,null,"Select from Drop Down","Select from Drop Down","Select from Drop Down"]
[484,null,null,"Select from Drop Down","Select from Drop Down","Select from Drop Down",null,null,null,null,null,null,null,null,null,null,null,null,"Select from Drop Down","Select from Drop Down","Select from Drop Down"]
[485,null,null,"Select from Drop Down","Select from Drop Down","Select from Drop Down",null,null,null,null,null,null,null,null,null,null,null,null,"Select from Drop Down","Select from Drop Down","Select from Drop Down"]
[486,null,null,"Select from Drop Down","Select from Drop Down","Select from Drop Down",null,null,null,null,null,null,null,null,null,null,null,null,"Select from Drop Down","Select from Drop Down","Select from Drop Down"]
[487,null,null,"Select from Drop Down","Select from Drop Down","Select from Drop Down",null,null,null,null,null,null,null,null,null,null,null,null,"Select from Drop Down","Select from Drop Down","Select from Drop Down"]
[488,null,null,"Select from Drop Down","Select from Drop Down","Select from Drop Down",null,null,null,null,null,null,null,null,null,null,null,null,"Select from Drop Down","Select from Drop Down","Select from Drop Down"]
[489,null,null,"Select from Drop Down","Select from Drop Down","Select from Drop Down",null,null,null,null,null,null,null,null,null,null,null,null,"Select from Drop Down","Select from Drop Down","Select from Drop Down"]
[490,null,null,"Select from Drop Down","Select from Drop Down","Select from Drop Down",null,null,null,null,null,null,null,null,null,null,null,null,"Select from Drop Down","Select from Drop Down","Select from Drop Down"]
[491,null,null,"Select from Drop Down","Select from Drop Down","Select from Drop Down",null,null,null,null,null,null,null,null,null,null,null,null,"Select from Drop Down","Select from Drop Down","Select from Drop Down"]
[492,null,null,"Select from Drop Down","Select from Drop Down","Select from Drop Down",null,null,null,null,null,null,null,null,null,null,null,null,"Select from Drop Down","Select from Drop Down","Select from Drop Down"]
[493,null,null,"Select from Drop Down","Select from Drop Down","Select from Drop Down",null,null,null,null,null,null,null,null,null,null,null,null,"Select from Drop Down","Select from Drop Down","Select from Drop Down"]
[494,null,null,"Select from Drop Down","Select from Drop Down","Select from Drop Down",null,null,null,null,null,null,null,null,null,null,null,null,"Select from Drop Down","Select from Drop Down","Select from Drop Down"]
[495,null,null,"Select from Drop Down","Select from Drop Down","Select from Drop Down",null,null,null,null,null,null,null,null,null,null,null,null,"Select from Drop Down","Select from Drop Down","Select from Drop Down"]
[496,null,null,"Select from Drop Down","Select from Drop Down","Select from Drop Down",null,null,null,null,null,null,null,null,null,null,null,null,"Select from Drop Down","Select from Drop Down","Select from Drop Down"]
[497,null,null,"Select from Drop Down","Select from Drop Down","Select from Drop Down",null,null,null,null,null,null,null,null,null,null,null,null,"Select from Drop Down","Select from Drop Down","Select from Drop Down"]
[498,null,null,"Select from Drop Down","Select from Drop Down","Select from Drop Down",null,null,null,null,null,null,null,null,null,null,null,null,"Select from Drop Down","Select from Drop Down","Select from Drop Down"]
[499,null,null,"Select from Drop Down","Select from Drop Down","Select from Drop Down",null,null,null,null,null,null,null,null,null,null,null,null,"Select from Drop Down","Select from Drop Down","Select from Drop Down"]
[500,null,null,"Select from Drop Down","Select from Drop Down","Select from Drop Down",null,null,null,null,null,null,null,null,null,null,null,null,"Select from Drop Down","Select from Drop Down","Select from Drop Down"]
[501,null,null,"Select from Drop Down","Select from Drop Down","Select from Drop Down",null,null,null,null,null,null,null,null,null,null,null,null,"Select from Drop Down","Select from Drop Down","Select from Drop Down"]
[502,null,null,"Select from Drop Down","Select from Drop Down","Select from Drop Down",null,null,null,null,null,null,null,null,null,null,null,null,"Select from Drop Down","Select from Drop Down","Select from Drop Down"]
[503,null,null,"Select from Drop Down","Select from Drop Down","Select from Drop Down",null,null,null,null,null,null,null,null,null,null,null,null,"Select from Drop Down","Select from Drop Down","Select from Drop Down"]
[504,null,null,"Select from Drop Down","Select from Drop Down","Select from Drop Down",null,null,null,null,null,null,null,null,null,null,null,null,"Select from Drop Down","Select from Drop Down","Select from Drop Down"]
[505,null,null,"Select from Drop Down","Select from Drop Down","Select from Drop Down",null,null,null,null,null,null,null,null,null,null,null,null,"Select from Drop Down","Select from Drop Down","Select from Drop Down"]
[506,null,null,"Select from Drop Down","Select from Drop Down","Select from Drop Down",null,null,null,null,null,null,null,null,null,null,null,null,"Select from Drop Down","Select from Drop Down","Select from Drop Down"]
[507,null,null,"Select from Drop Down","Select from Drop Down","Select from Drop Down",null,null,null,null,null,null,null,null,null,null,null,null,"Select from Drop Down","Select from Drop Down","Select from Drop Down"]
[508,null,null,"Select from Drop Down","Select from Drop Down","Select from Drop Down",null,null,null,null,null,null,null,null,null,null,null,null,"Select from Drop Down","Select from Drop Down","Select from Drop Down"]
[509,null,null,"Select from Drop Down","Select from Drop Down","Select from Drop Down",null,null,null,null,null,null,null,null,null,null,null,null,"Select from Drop Down","Select from Drop Down","Select from Drop Down"]
[510,null,null,"Select from Drop Down","Select from Drop Down","Select from Drop Down",null,null,null,null,null,null,null,null,null,null,null,null,"Select from Drop Down","Select from Drop Down","Select from Drop Down"]
[511,null,null,"Select from Drop Down","Select from Drop Down","Select from Drop Down",null,null,null,null,null,null,null,null,null,null,null,null,"Select from Drop Down","Select from Drop Down","Select from Drop Down"]
[512,null,null,"Select from Drop Down","Select from Drop Down","Select from Drop Down",null,null,null,null,null,null,null,null,null,null,null,null,"Select from Drop Down","Select from Drop Down","Select from Drop Down"]
[513,null,null,"Select from Drop Down","Select from Drop Down","Select from Drop Down",null,null,null,null,null,null,null,null,null,null,null,null,"Select from Drop Down","Select from Drop Down","Select from Drop Down"]
[514,null,null,"Select from Drop Down","Select from Drop Down","Select from Drop Down",null,null,null,null,null,null,null,null,null,null,null,null,"Select from Drop Down","Select from Drop Down","Select from Drop Down"]
[{"$f":"A524+1","v":515},null,null,"Select from Drop Down","Select from Drop Down","Select from Drop Down",null,null,null,null,null,null,null,null,null,null,null,null,"Select from Drop Down","Select from Drop Down","Select from Drop Down"]
[516,null,null,"Select from Drop Down","Select from Drop Down","Select from Drop Down",null,null,null,null,null,null,null,null,null,null,null,null,"Select from Drop Down","Select from Drop Down","Select from Drop Down"]
[517,null,null,"Select from Drop Down","Select from Drop Down","Select from Drop Down",null,null,null,null,null,null,null,null,null,null,null,null,"Select from Drop Down","Select from Drop Down","Select from Drop Down"]
[518,null,null,"Select from Drop Down","Select from Drop Down","Select from Drop Down",null,null,null,null,null,null,null,null,null,null,null,null,"Select from Drop Down","Select from Drop Down","Select from Drop Down"]
[519,null,null,"Select from Drop Down","Select from Drop Down","Select from Drop Down",null,null,null,null,null,null,null,null,null,null,null,null,"Select from Drop Down","Select from Drop Down","Select from Drop Down"]
[520,null,null,"Select from Drop Down","Select from Drop Down","Select from Drop Down",null,null,null,null,null,null,null,null,null,null,null,null,"Select from Drop Down","Select from Drop Down","Select from Drop Down"]
[521,null,null,"Select from Drop Down","Select from Drop Down","Select from Drop Down",null,null,null,null,null,null,null,null,null,null,null,null,"Select from Drop Down","Select from Drop Down","Select from Drop Down"]
[522,null,null,"Select from Drop Down","Select from Drop Down","Select from Drop Down",null,null,null,null,null,null,null,null,null,null,null,null,"Select from Drop Down","Select from Drop Down","Select from Drop Down"]
[523,null,null,"Select from Drop Down","Select from Drop Down","Select from Drop Down",null,null,null,null,null,null,null,null,null,null,null,null,"Select from Drop Down","Select from Drop Down","Select from Drop Down"]
[524,null,null,"Select from Drop Down","Select from Drop Down","Select from Drop Down",null,null,null,null,null,null,null,null,null,null,null,null,"Select from Drop Down","Select from Drop Down","Select from Drop Down"]
[525,null,null,"Select from Drop Down","Select from Drop Down","Select from Drop Down",null,null,null,null,null,null,null,null,null,null,null,null,"Select from Drop Down","Select from Drop Down","Select from Drop Down"]
[526,null,null,"Select from Drop Down","Select from Drop Down","Select from Drop Down",null,null,null,null,null,null,null,null,null,null,null,null,"Select from Drop Down","Select from Drop Down","Select from Drop Down"]
[527,null,null,"Select from Drop Down","Select from Drop Down","Select from Drop Down",null,null,null,null,null,null,null,null,null,null,null,null,"Select from Drop Down","Select from Drop Down","Select from Drop Down"]
[528,null,null,"Select from Drop Down","Select from Drop Down","Select from Drop Down",null,null,null,null,null,null,null,null,null,null,null,null,"Select from Drop Down","Select from Drop Down","Select from Drop Down"]
[529,null,null,"Select from Drop Down","Select from Drop Down","Select from Drop Down",null,null,null,null,null,null,null,null,null,null,null,null,"Select from Drop Down","Select from Drop Down","Select from Drop Down"]
[530,null,null,"Select from Drop Down","Select from Drop Down","Select from Drop Down",null,null,null,null,null,null,null,null,null,null,null,null,"Select from Drop Down","Select from Drop Down","Select from Drop Down"]
[531,null,null,"Select from Drop Down","Select from Drop Down","Select from Drop Down",null,null,null,null,null,null,null,null,null,null,null,null,"Select from Drop Down","Select from Drop Down","Select from Drop Down"]
[532,null,null,"Select from Drop Down","Select from Drop Down","Select from Drop Down",null,null,null,null,null,null,null,null,null,null,null,null,"Select from Drop Down","Select from Drop Down","Select from Drop Down"]
[533,null,null,"Select from Drop Down","Select from Drop Down","Select from Drop Down",null,null,null,null,null,null,null,null,null,null,null,null,"Select from Drop Down","Select from Drop Down","Select from Drop Down"]
[534,null,null,"Select from Drop Down","Select from Drop Down","Select from Drop Down",null,null,null,null,null,null,null,null,null,null,null,null,"Select from Drop Down","Select from Drop Down","Select from Drop Down"]
[535,null,null,"Select from Drop Down","Select from Drop Down","Select from Drop Down",null,null,null,null,null,null,null,null,null,null,null,null,"Select from Drop Down","Select from Drop Down","Select from Drop Down"]
[536,null,null,"Select from Drop Down","Select from Drop Down","Select from Drop Down",null,null,null,null,null,null,null,null,null,null,null,null,"Select from Drop Down","Select from Drop Down","Select from Drop Down"]
[537,null,null,"Select from Drop Down","Select from Drop Down","Select from Drop Down",null,null,null,null,null,null,null,null,null,null,null,null,"Select from Drop Down","Select from Drop Down","Select from Drop Down"]
[538,null,null,"Select from Drop Down","Select from Drop Down","Select from Drop Down",null,null,null,null,null,null,null,null,null,null,null,null,"Select from Drop Down","Select from Drop Down","Select from Drop Down"]
[539,null,null,"Select from Drop Down","Select from Drop Down","Select from Drop Down",null,null,null,null,null,null,null,null,null,null,null,null,"Select from Drop Down","Select from Drop Down","Select from Drop Down"]
[540,null,null,"Select from Drop Down","Select from Drop Down","Select from Drop Down",null,null,null,null,null,null,null,null,null,null,null,null,"Select from Drop Down","Select from Drop Down","Select from Drop Down"]
[541,null,null,"Select from Drop Down","Select from Drop Down","Select from Drop Down",null,null,null,null,null,null,null,null,null,null,null,null,"Select from Drop Down","Select from Drop Down","Select from Drop Down"]
[542,null,null,"Select from Drop Down","Select from Drop Down","Select from Drop Down",null,null,null,null,null,null,null,null,null,null,null,null,"Select from Drop Down","Select from Drop Down","Select from Drop Down"]
[543,null,null,"Select from Drop Down","Select from Drop Down","Select from Drop Down",null,null,null,null,null,null,null,null,null,null,null,null,"Select from Drop Down","Select from Drop Down","Select from Drop Down"]
[544,null,null,"Select from Drop Down","Select from Drop Down","Select from Drop Down",null,null,null,null,null,null,null,null,null,null,null,null,"Select from Drop Down","Select from Drop Down","Select from Drop Down"]
[545,null,null,"Select from Drop Down","Select from Drop Down","Select from Drop Down",null,null,null,null,null,null,null,null,null,null,null,null,"Select from Drop Down","Select from Drop Down","Select from Drop Down"]
[546,null,null,"Select from Drop Down","Select from Drop Down","Select from Drop Down",null,null,null,null,null,null,null,null,null,null,null,null,"Select from Drop Down","Select from Drop Down","Select from Drop Down"]
[547,null,null,"Select from Drop Down","Select from Drop Down","Select from Drop Down",null,null,null,null,null,null,null,null,null,null,null,null,"Select from Drop Down","Select from Drop Down","Select from Drop Down"]
[548,null,null,"Select from Drop Down","Select from Drop Down","Select from Drop Down",null,null,null,null,null,null,null,null,null,null,null,null,"Select from Drop Down","Select from Drop Down","Select from Drop Down"]
[549,null,null,"Select from Drop Down","Select from Drop Down","Select from Drop Down",null,null,null,null,null,null,null,null,null,null,null,null,"Select from Drop Down","Select from Drop Down","Select from Drop Down"]
[550,null,null,"Select from Drop Down","Select from Drop Down","Select from Drop Down",null,null,null,null,null,null,null,null,null,null,null,null,"Select from Drop Down","Select from Drop Down","Select from Drop Down"]
[551,null,null,"Select from Drop Down","Select from Drop Down","Select from Drop Down",null,null,null,null,null,null,null,null,null,null,null,null,"Select from Drop Down","Select from Drop Down","Select from Drop Down"]
[552,null,null,"Select from Drop Down","Select from Drop Down","Select from Drop Down",null,null,null,null,null,null,null,null,null,null,null,null,"Select from Drop Down","Select from Drop Down","Select from Drop Down"]
[553,null,null,"Select from Drop Down","Select from Drop Down","Select from Drop Down",null,null,null,null,null,null,null,null,null,null,null,null,"Select from Drop Down","Select from Drop Down","Select from Drop Down"]
[554,null,null,"Select from Drop Down","Select from Drop Down","Select from Drop Down",null,null,null,null,null,null,null,null,null,null,null,null,"Select from Drop Down","Select from Drop Down","Select from Drop Down"]
[555,null,null,"Select from Drop Down","Select from Drop Down","Select from Drop Down",null,null,null,null,null,null,null,null,null,null,null,null,"Select from Drop Down","Select from Drop Down","Select from Drop Down"]
[556,null,null,"Select from Drop Down","Select from Drop Down","Select from Drop Down",null,null,null,null,null,null,null,null,null,null,null,null,"Select from Drop Down","Select from Drop Down","Select from Drop Down"]
[557,null,null,"Select from Drop Down","Select from Drop Down","Select from Drop Down",null,null,null,null,null,null,null,null,null,null,null,null,"Select from Drop Down","Select from Drop Down","Select from Drop Down"]
[558,null,null,"Select from Drop Down","Select from Drop Down","Select from Drop Down",null,null,null,null,null,null,null,null,null,null,null,null,"Select from Drop Down","Select from Drop Down","Select from Drop Down"]
[559,null,null,"Select from Drop Down","Select from Drop Down","Select from Drop Down",null,null,null,null,null,null,null,null,null,null,null,null,"Select from Drop Down","Select from Drop Down","Select from Drop Down"]
[560,null,null,"Select from Drop Down","Select from Drop Down","Select from Drop Down",null,null,null,null,null,null,null,null,null,null,null,null,"Select from Drop Down","Select from Drop Down","Select from Drop Down"]
[561,null,null,"Select from Drop Down","Select from Drop Down","Select from Drop Down",null,null,null,null,null,null,null,null,null,null,null,null,"Select from Drop Down","Select from Drop Down","Select from Drop Down"]
[562,null,null,"Select from Drop Down","Select from Drop Down","Select from Drop Down",null,null,null,null,null,null,null,null,null,null,null,null,"Select from Drop Down","Select from Drop Down","Select from Drop Down"]
[563,null,null,"Select from Drop Down","Select from Drop Down","Select from Drop Down",null,null,null,null,null,null,null,null,null,null,null,null,"Select from Drop Down","Select from Drop Down","Select from Drop Down"]
[564,null,null,"Select from Drop Down","Select from Drop Down","Select from Drop Down",null,null,null,null,null,null,null,null,null,null,null,null,"Select from Drop Down","Select from Drop Down","Select from Drop Down"]
[565,null,null,"Select from Drop Down","Select from Drop Down","Select from Drop Down",null,null,null,null,null,null,null,null,null,null,null,null,"Select from Drop Down","Select from Drop Down","Select from Drop Down"]
[566,null,null,"Select from Drop Down","Select from Drop Down","Select from Drop Down",null,null,null,null,null,null,null,null,null,null,null,null,"Select from Drop Down","Select from Drop Down","Select from Drop Down"]
[567,null,null,"Select from Drop Down","Select from Drop Down","Select from Drop Down",null,null,null,null,null,null,null,null,null,null,null,null,"Select from Drop Down","Select from Drop Down","Select from Drop Down"]
[568,null,null,"Select from Drop Down","Select from Drop Down","Select from Drop Down",null,null,null,null,null,null,null,null,null,null,null,null,"Select from Drop Down","Select from Drop Down","Select from Drop Down"]
[569,null,null,"Select from Drop Down","Select from Drop Down","Select from Drop Down",null,null,null,null,null,null,null,null,null,null,null,null,"Select from Drop Down","Select from Drop Down","Select from Drop Down"]
[570,null,null,"Select from Drop Down","Select from Drop Down","Select from Drop Down",null,null,null,null,null,null,null,null,null,null,null,null,"Select from Drop Down","Select from Drop Down","Select from Drop Down"]
[571,null,null,"Select from Drop Down","Select from Drop Down","Select from Drop Down",null,null,null,null,null,null,null,null,null,null,null,null,"Select from Drop Down","Select from Drop Down","Select from Drop Down"]
[572,null,null,"Select from Drop Down","Select from Drop Down","Select from Drop Down",null,null,null,null,null,null,null,null,null,null,null,null,"Select from Drop Down","Select from Drop Down","Select from Drop Down"]
[573,null,null,"Select from Drop Down","Select from Drop Down","Select from Drop Down",null,null,null,null,null,null,null,null,null,null,null,null,"Select from Drop Down","Select from Drop Down","Select from Drop Down"]
[574,null,null,"Select from Drop Down","Select from Drop Down","Select from Drop Down",null,null,null,null,null,null,null,null,null,null,null,null,"Select from Drop Down","Select from Drop Down","Select from Drop Down"]
[575,null,null,"Select from Drop Down","Select from Drop Down","Select from Drop Down",null,null,null,null,null,null,null,null,null,null,null,null,"Select from Drop Down","Select from Drop Down","Select from Drop Down"]
[576,null,null,"Select from Drop Down","Select from Drop Down","Select from Drop Down",null,null,null,null,null,null,null,null,null,null,null,null,"Select from Drop Down","Select from Drop Down","Select from Drop Down"]
[577,null,null,"Select from Drop Down","Select from Drop Down","Select from Drop Down",null,null,null,null,null,null,null,null,null,null,null,null,"Select from Drop Down","Select from Drop Down","Select from Drop Down"]
[578,null,null,"Select from Drop Down","Select from Drop Down","Select from Drop Down",null,null,null,null,null,null,null,null,null,null,null,null,"Select from Drop Down","Select from Drop Down","Select from Drop Down"]
[{"$f":"A588+1","v":579},null,null,"Select from Drop Down","Select from Drop Down","Select from Drop Down",null,null,null,null,null,null,null,null,null,null,null,null,"Select from Drop Down","Select from Drop Down","Select from Drop Down"]
[580,null,null,"Select from Drop Down","Select from Drop Down","Select from Drop Down",null,null,null,null,null,null,null,null,null,null,null,null,"Select from Drop Down","Select from Drop Down","Select from Drop Down"]
[581,null,null,"Select from Drop Down","Select from Drop Down","Select from Drop Down",null,null,null,null,null,null,null,null,null,null,null,null,"Select from Drop Down","Select from Drop Down","Select from Drop Down"]
[582,null,null,"Select from Drop Down","Select from Drop Down","Select from Drop Down",null,null,null,null,null,null,null,null,null,null,null,null,"Select from Drop Down","Select from Drop Down","Select from Drop Down"]
[583,null,null,"Select from Drop Down","Select from Drop Down","Select from Drop Down",null,null,null,null,null,null,null,null,null,null,null,null,"Select from Drop Down","Select from Drop Down","Select from Drop Down"]
[584,null,null,"Select from Drop Down","Select from Drop Down","Select from Drop Down",null,null,null,null,null,null,null,null,null,null,null,null,"Select from Drop Down","Select from Drop Down","Select from Drop Down"]
[585,null,null,"Select from Drop Down","Select from Drop Down","Select from Drop Down",null,null,null,null,null,null,null,null,null,null,null,null,"Select from Drop Down","Select from Drop Down","Select from Drop Down"]
[586,null,null,"Select from Drop Down","Select from Drop Down","Select from Drop Down",null,null,null,null,null,null,null,null,null,null,null,null,"Select from Drop Down","Select from Drop Down","Select from Drop Down"]
[587,null,null,"Select from Drop Down","Select from Drop Down","Select from Drop Down",null,null,null,null,null,null,null,null,null,null,null,null,"Select from Drop Down","Select from Drop Down","Select from Drop Down"]
[588,null,null,"Select from Drop Down","Select from Drop Down","Select from Drop Down",null,null,null,null,null,null,null,null,null,null,null,null,"Select from Drop Down","Select from Drop Down","Select from Drop Down"]
[589,null,null,"Select from Drop Down","Select from Drop Down","Select from Drop Down",null,null,null,null,null,null,null,null,null,null,null,null,"Select from Drop Down","Select from Drop Down","Select from Drop Down"]
[590,null,null,"Select from Drop Down","Select from Drop Down","Select from Drop Down",null,null,null,null,null,null,null,null,null,null,null,null,"Select from Drop Down","Select from Drop Down","Select from Drop Down"]
[591,null,null,"Select from Drop Down","Select from Drop Down","Select from Drop Down",null,null,null,null,null,null,null,null,null,null,null,null,"Select from Drop Down","Select from Drop Down","Select from Drop Down"]
[592,null,null,"Select from Drop Down","Select from Drop Down","Select from Drop Down",null,null,null,null,null,null,null,null,null,null,null,null,"Select from Drop Down","Select from Drop Down","Select from Drop Down"]
[593,null,null,"Select from Drop Down","Select from Drop Down","Select from Drop Down",null,null,null,null,null,null,null,null,null,null,null,null,"Select from Drop Down","Select from Drop Down","Select from Drop Down"]
[594,null,null,"Select from Drop Down","Select from Drop Down","Select from Drop Down",null,null,null,null,null,null,null,null,null,null,null,null,"Select from Drop Down","Select from Drop Down","Select from Drop Down"]
[595,null,null,"Select from Drop Down","Select from Drop Down","Select from Drop Down",null,null,null,null,null,null,null,null,null,null,null,null,"Select from Drop Down","Select from Drop Down","Select from Drop Down"]
[596,null,null,"Select from Drop Down","Select from Drop Down","Select from Drop Down",null,null,null,null,null,null,null,null,null,null,null,null,"Select from Drop Down","Select from Drop Down","Select from Drop Down"]
[597,null,null,"Select from Drop Down","Select from Drop Down","Select from Drop Down",null,null,null,null,null,null,null,null,null,null,null,null,"Select from Drop Down","Select from Drop Down","Select from Drop Down"]
[598,null,null,"Select from Drop Down","Select from Drop Down","Select from Drop Down",null,null,null,null,null,null,null,null,null,null,null,null,"Select from Drop Down","Select from Drop Down","Select from Drop Down"]
[599,null,null,"Select from Drop Down","Select from Drop Down","Select from Drop Down",null,null,null,null,null,null,null,null,null,null,null,null,"Select from Drop Down","Select from Drop Down","Select from Drop Down"]
[600,null,null,"Select from Drop Down","Select from Drop Down","Select from Drop Down",null,null,null,null,null,null,null,null,null,null,null,null,"Select from Drop Down","Select from Drop Down","Select from Drop Down"]
[601,null,null,"Select from Drop Down","Select from Drop Down","Select from Drop Down",null,null,null,null,null,null,null,null,null,null,null,null,"Select from Drop Down","Select from Drop Down","Select from Drop Down"]
[602,null,null,"Select from Drop Down","Select from Drop Down","Select from Drop Down",null,null,null,null,null,null,null,null,null,null,null,null,"Select from Drop Down","Select from Drop Down","Select from Drop Down"]
[603,null,null,"Select from Drop Down","Select from Drop Down","Select from Drop Down",null,null,null,null,null,null,null,null,null,null,null,null,"Select from Drop Down","Select from Drop Down","Select from Drop Down"]
[604,null,null,"Select from Drop Down","Select from Drop Down","Select from Drop Down",null,null,null,null,null,null,null,null,null,null,null,null,"Select from Drop Down","Select from Drop Down","Select from Drop Down"]
[605,null,null,"Select from Drop Down","Select from Drop Down","Select from Drop Down",null,null,null,null,null,null,null,null,null,null,null,null,"Select from Drop Down","Select from Drop Down","Select from Drop Down"]
[606,null,null,"Select from Drop Down","Select from Drop Down","Select from Drop Down",null,null,null,null,null,null,null,null,null,null,null,null,"Select from Drop Down","Select from Drop Down","Select from Drop Down"]
[607,null,null,"Select from Drop Down","Select from Drop Down","Select from Drop Down",null,null,null,null,null,null,null,null,null,null,null,null,"Select from Drop Down","Select from Drop Down","Select from Drop Down"]
[608,null,null,"Select from Drop Down","Select from Drop Down","Select from Drop Down",null,null,null,null,null,null,null,null,null,null,null,null,"Select from Drop Down","Select from Drop Down","Select from Drop Down"]
[609,null,null,"Select from Drop Down","Select from Drop Down","Select from Drop Down",null,null,null,null,null,null,null,null,null,null,null,null,"Select from Drop Down","Select from Drop Down","Select from Drop Down"]
[610,null,null,"Select from Drop Down","Select from Drop Down","Select from Drop Down",null,null,null,null,null,null,null,null,null,null,null,null,"Select from Drop Down","Select from Drop Down","Select from Drop Down"]
[611,null,null,"Select from Drop Down","Select from Drop Down","Select from Drop Down",null,null,null,null,null,null,null,null,null,null,null,null,"Select from Drop Down","Select from Drop Down","Select from Drop Down"]
[612,null,null,"Select from Drop Down","Select from Drop Down","Select from Drop Down",null,null,null,null,null,null,null,null,null,null,null,null,"Select from Drop Down","Select from Drop Down","Select from Drop Down"]
[613,null,null,"Select from Drop Down","Select from Drop Down","Select from Drop Down",null,null,null,null,null,null,null,null,null,null,null,null,"Select from Drop Down","Select from Drop Down","Select from Drop Down"]
[614,null,null,"Select from Drop Down","Select from Drop Down","Select from Drop Down",null,null,null,null,null,null,null,null,null,null,null,null,"Select from Drop Down","Select from Drop Down","Select from Drop Down"]
[615,null,null,"Select from Drop Down","Select from Drop Down","Select from Drop Down",null,null,null,null,null,null,null,null,null,null,null,null,"Select from Drop Down","Select from Drop Down","Select from Drop Down"]
[616,null,null,"Select from Drop Down","Select from Drop Down","Select from Drop Down",null,null,null,null,null,null,null,null,null,null,null,null,"Select from Drop Down","Select from Drop Down","Select from Drop Down"]
[617,null,null,"Select from Drop Down","Select from Drop Down","Select from Drop Down",null,null,null,null,null,null,null,null,null,null,null,null,"Select from Drop Down","Select from Drop Down","Select from Drop Down"]
[618,null,null,"Select from Drop Down","Select from Drop Down","Select from Drop Down",null,null,null,null,null,null,null,null,null,null,null,null,"Select from Drop Down","Select from Drop Down","Select from Drop Down"]
[619,null,null,"Select from Drop Down","Select from Drop Down","Select from Drop Down",null,null,null,null,null,null,null,null,null,null,null,null,"Select from Drop Down","Select from Drop Down","Select from Drop Down"]
[620,null,null,"Select from Drop Down","Select from Drop Down","Select from Drop Down",null,null,null,null,null,null,null,null,null,null,null,null,"Select from Drop Down","Select from Drop Down","Select from Drop Down"]
[621,null,null,"Select from Drop Down","Select from Drop Down","Select from Drop Down",null,null,null,null,null,null,null,null,null,null,null,null,"Select from Drop Down","Select from Drop Down","Select from Drop Down"]
[622,null,null,"Select from Drop Down","Select from Drop Down","Select from Drop Down",null,null,null,null,null,null,null,null,null,null,null,null,"Select from Drop Down","Select from Drop Down","Select from Drop Down"]
[623,null,null,"Select from Drop Down","Select from Drop Down","Select from Drop Down",null,null,null,null,null,null,null,null,null,null,null,null,"Select from Drop Down","Select from Drop Down","Select from Drop Down"]
[624,null,null,"Select from Drop Down","Select from Drop Down","Select from Drop Down",null,null,null,null,null,null,null,null,null,null,null,null,"Select from Drop Down","Select from Drop Down","Select from Drop Down"]
[625,null,null,"Select from Drop Down","Select from Drop Down","Select from Drop Down",null,null,null,null,null,null,null,null,null,null,null,null,"Select from Drop Down","Select from Drop Down","Select from Drop Down"]
[626,null,null,"Select from Drop Down","Select from Drop Down","Select from Drop Down",null,null,null,null,null,null,null,null,null,null,null,null,"Select from Drop Down","Select from Drop Down","Select from Drop Down"]
[627,null,null,"Select from Drop Down","Select from Drop Down","Select from Drop Down",null,null,null,null,null,null,null,null,null,null,null,null,"Select from Drop Down","Select from Drop Down","Select from Drop Down"]
[628,null,null,"Select from Drop Down","Select from Drop Down","Select from Drop Down",null,null,null,null,null,null,null,null,null,null,null,null,"Select from Drop Down","Select from Drop Down","Select from Drop Down"]
[629,null,null,"Select from Drop Down","Select from Drop Down","Select from Drop Down",null,null,null,null,null,null,null,null,null,null,null,null,"Select from Drop Down","Select from Drop Down","Select from Drop Down"]
[630,null,null,"Select from Drop Down","Select from Drop Down","Select from Drop Down",null,null,null,null,null,null,null,null,null,null,null,null,"Select from Drop Down","Select from Drop Down","Select from Drop Down"]
[631,null,null,"Select from Drop Down","Select from Drop Down","Select from Drop Down",null,null,null,null,null,null,null,null,null,null,null,null,"Select from Drop Down","Select from Drop Down","Select from Drop Down"]
[632,null,null,"Select from Drop Down","Select from Drop Down","Select from Drop Down",null,null,null,null,null,null,null,null,null,null,null,null,"Select from Drop Down","Select from Drop Down","Select from Drop Down"]
[633,null,null,"Select from Drop Down","Select from Drop Down","Select from Drop Down",null,null,null,null,null,null,null,null,null,null,null,null,"Select from Drop Down","Select from Drop Down","Select from Drop Down"]
[634,null,null,"Select from Drop Down","Select from Drop Down","Select from Drop Down",null,null,null,null,null,null,null,null,null,null,null,null,"Select from Drop Down","Select from Drop Down","Select from Drop Down"]
[635,null,null,"Select from Drop Down","Select from Drop Down","Select from Drop Down",null,null,null,null,null,null,null,null,null,null,null,null,"Select from Drop Down","Select from Drop Down","Select from Drop Down"]
[636,null,null,"Select from Drop Down","Select from Drop Down","Select from Drop Down",null,null,null,null,null,null,null,null,null,null,null,null,"Select from Drop Down","Select from Drop Down","Select from Drop Down"]
[637,null,null,"Select from Drop Down","Select from Drop Down","Select from Drop Down",null,null,null,null,null,null,null,null,null,null,null,null,"Select from Drop Down","Select from Drop Down","Select from Drop Down"]
[638,null,null,"Select from Drop Down","Select from Drop Down","Select from Drop Down",null,null,null,null,null,null,null,null,null,null,null,null,"Select from Drop Down","Select from Drop Down","Select from Drop Down"]
[639,null,null,"Select from Drop Down","Select from Drop Down","Select from Drop Down",null,null,null,null,null,null,null,null,null,null,null,null,"Select from Drop Down","Select from Drop Down","Select from Drop Down"]
[640,null,null,"Select from Drop Down","Select from Drop Down","Select from Drop Down",null,null,null,null,null,null,null,null,null,null,null,null,"Select from Drop Down","Select from Drop Down","Select from Drop Down"]
[641,null,null,"Select from Drop Down","Select from Drop Down","Select from Drop Down",null,null,null,null,null,null,null,null,null,null,null,null,"Select from Drop Down","Select from Drop Down","Select from Drop Down"]
[642,null,null,"Select from Drop Down","Select from Drop Down","Select from Drop Down",null,null,null,null,null,null,null,null,null,null,null,null,"Select from Drop Down","Select from Drop Down","Select from Drop Down"]
[{"$f":"A652+1","v":643},null,null,"Select from Drop Down","Select from Drop Down","Select from Drop Down",null,null,null,null,null,null,null,null,null,null,null,null,"Select from Drop Down","Select from Drop Down","Select from Drop Down"]
[644,null,null,"Select from Drop Down","Select from Drop Down","Select from Drop Down",null,null,null,null,null,null,null,null,null,null,null,null,"Select from Drop Down","Select from Drop Down","Select from Drop Down"]
[645,null,null,"Select from Drop Down","Select from Drop Down","Select from Drop Down",null,null,null,null,null,null,null,null,null,null,null,null,"Select from Drop Down","Select from Drop Down","Select from Drop Down"]
[646,null,null,"Select from Drop Down","Select from Drop Down","Select from Drop Down",null,null,null,null,null,null,null,null,null,null,null,null,"Select from Drop Down","Select from Drop Down","Select from Drop Down"]
[647,null,null,"Select from Drop Down","Select from Drop Down","Select from Drop Down",null,null,null,null,null,null,null,null,null,null,null,null,"Select from Drop Down","Select from Drop Down","Select from Drop Down"]
[648,null,null,"Select from Drop Down","Select from Drop Down","Select from Drop Down",null,null,null,null,null,null,null,null,null,null,null,null,"Select from Drop Down","Select from Drop Down","Select from Drop Down"]
[649,null,null,"Select from Drop Down","Select from Drop Down","Select from Drop Down",null,null,null,null,null,null,null,null,null,null,null,null,"Select from Drop Down","Select from Drop Down","Select from Drop Down"]
[650,null,null,"Select from Drop Down","Select from Drop Down","Select from Drop Down",null,null,null,null,null,null,null,null,null,null,null,null,"Select from Drop Down","Select from Drop Down","Select from Drop Down"]
[651,null,null,"Select from Drop Down","Select from Drop Down","Select from Drop Down",null,null,null,null,null,null,null,null,null,null,null,null,"Select from Drop Down","Select from Drop Down","Select from Drop Down"]
[652,null,null,"Select from Drop Down","Select from Drop Down","Select from Drop Down",null,null,null,null,null,null,null,null,null,null,null,null,"Select from Drop Down","Select from Drop Down","Select from Drop Down"]
[653,null,null,"Select from Drop Down","Select from Drop Down","Select from Drop Down",null,null,null,null,null,null,null,null,null,null,null,null,"Select from Drop Down","Select from Drop Down","Select from Drop Down"]
[654,null,null,"Select from Drop Down","Select from Drop Down","Select from Drop Down",null,null,null,null,null,null,null,null,null,null,null,null,"Select from Drop Down","Select from Drop Down","Select from Drop Down"]
[655,null,null,"Select from Drop Down","Select from Drop Down","Select from Drop Down",null,null,null,null,null,null,null,null,null,null,null,null,"Select from Drop Down","Select from Drop Down","Select from Drop Down"]
[656,null,null,"Select from Drop Down","Select from Drop Down","Select from Drop Down",null,null,null,null,null,null,null,null,null,null,null,null,"Select from Drop Down","Select from Drop Down","Select from Drop Down"]
[657,null,null,"Select from Drop Down","Select from Drop Down","Select from Drop Down",null,null,null,null,null,null,null,null,null,null,null,null,"Select from Drop Down","Select from Drop Down","Select from Drop Down"]
[658,null,null,"Select from Drop Down","Select from Drop Down","Select from Drop Down",null,null,null,null,null,null,null,null,null,null,null,null,"Select from Drop Down","Select from Drop Down","Select from Drop Down"]
[659,null,null,"Select from Drop Down","Select from Drop Down","Select from Drop Down",null,null,null,null,null,null,null,null,null,null,null,null,"Select from Drop Down","Select from Drop Down","Select from Drop Down"]
[660,null,null,"Select from Drop Down","Select from Drop Down","Select from Drop Down",null,null,null,null,null,null,null,null,null,null,null,null,"Select from Drop Down","Select from Drop Down","Select from Drop Down"]
[661,null,null,"Select from Drop Down","Select from Drop Down","Select from Drop Down",null,null,null,null,null,null,null,null,null,null,null,null,"Select from Drop Down","Select from Drop Down","Select from Drop Down"]
[662,null,null,"Select from Drop Down","Select from Drop Down","Select from Drop Down",null,null,null,null,null,null,null,null,null,null,null,null,"Select from Drop Down","Select from Drop Down","Select from Drop Down"]
[663,null,null,"Select from Drop Down","Select from Drop Down","Select from Drop Down",null,null,null,null,null,null,null,null,null,null,null,null,"Select from Drop Down","Select from Drop Down","Select from Drop Down"]
[664,null,null,"Select from Drop Down","Select from Drop Down","Select from Drop Down",null,null,null,null,null,null,null,null,null,null,null,null,"Select from Drop Down","Select from Drop Down","Select from Drop Down"]
[665,null,null,"Select from Drop Down","Select from Drop Down","Select from Drop Down",null,null,null,null,null,null,null,null,null,null,null,null,"Select from Drop Down","Select from Drop Down","Select from Drop Down"]
[666,null,null,"Select from Drop Down","Select from Drop Down","Select from Drop Down",null,null,null,null,null,null,null,null,null,null,null,null,"Select from Drop Down","Select from Drop Down","Select from Drop Down"]
[667,null,null,"Select from Drop Down","Select from Drop Down","Select from Drop Down",null,null,null,null,null,null,null,null,null,null,null,null,"Select from Drop Down","Select from Drop Down","Select from Drop Down"]
[668,null,null,"Select from Drop Down","Select from Drop Down","Select from Drop Down",null,null,null,null,null,null,null,null,null,null,null,null,"Select from Drop Down","Select from Drop Down","Select from Drop Down"]
[669,null,null,"Select from Drop Down","Select from Drop Down","Select from Drop Down",null,null,null,null,null,null,null,null,null,null,null,null,"Select from Drop Down","Select from Drop Down","Select from Drop Down"]
[670,null,null,"Select from Drop Down","Select from Drop Down","Select from Drop Down",null,null,null,null,null,null,null,null,null,null,null,null,"Select from Drop Down","Select from Drop Down","Select from Drop Down"]
[671,null,null,"Select from Drop Down","Select from Drop Down","Select from Drop Down",null,null,null,null,null,null,null,null,null,null,null,null,"Select from Drop Down","Select from Drop Down","Select from Drop Down"]
[672,null,null,"Select from Drop Down","Select from Drop Down","Select from Drop Down",null,null,null,null,null,null,null,null,null,null,null,null,"Select from Drop Down","Select from Drop Down","Select from Drop Down"]
[673,null,null,"Select from Drop Down","Select from Drop Down","Select from Drop Down",null,null,null,null,null,null,null,null,null,null,null,null,"Select from Drop Down","Select from Drop Down","Select from Drop Down"]
[674,null,null,"Select from Drop Down","Select from Drop Down","Select from Drop Down",null,null,null,null,null,null,null,null,null,null,null,null,"Select from Drop Down","Select from Drop Down","Select from Drop Down"]
[675,null,null,"Select from Drop Down","Select from Drop Down","Select from Drop Down",null,null,null,null,null,null,null,null,null,null,null,null,"Select from Drop Down","Select from Drop Down","Select from Drop Down"]
[676,null,null,"Select from Drop Down","Select from Drop Down","Select from Drop Down",null,null,null,null,null,null,null,null,null,null,null,null,"Select from Drop Down","Select from Drop Down","Select from Drop Down"]
[677,null,null,"Select from Drop Down","Select from Drop Down","Select from Drop Down",null,null,null,null,null,null,null,null,null,null,null,null,"Select from Drop Down","Select from Drop Down","Select from Drop Down"]
[678,null,null,"Select from Drop Down","Select from Drop Down","Select from Drop Down",null,null,null,null,null,null,null,null,null,null,null,null,"Select from Drop Down","Select from Drop Down","Select from Drop Down"]
[679,null,null,"Select from Drop Down","Select from Drop Down","Select from Drop Down",null,null,null,null,null,null,null,null,null,null,null,null,"Select from Drop Down","Select from Drop Down","Select from Drop Down"]
[680,null,null,"Select from Drop Down","Select from Drop Down","Select from Drop Down",null,null,null,null,null,null,null,null,null,null,null,null,"Select from Drop Down","Select from Drop Down","Select from Drop Down"]
[681,null,null,"Select from Drop Down","Select from Drop Down","Select from Drop Down",null,null,null,null,null,null,null,null,null,null,null,null,"Select from Drop Down","Select from Drop Down","Select from Drop Down"]
[682,null,null,"Select from Drop Down","Select from Drop Down","Select from Drop Down",null,null,null,null,null,null,null,null,null,null,null,null,"Select from Drop Down","Select from Drop Down","Select from Drop Down"]
[683,null,null,"Select from Drop Down","Select from Drop Down","Select from Drop Down",null,null,null,null,null,null,null,null,null,null,null,null,"Select from Drop Down","Select from Drop Down","Select from Drop Down"]
[684,null,null,"Select from Drop Down","Select from Drop Down","Select from Drop Down",null,null,null,null,null,null,null,null,null,null,null,null,"Select from Drop Down","Select from Drop Down","Select from Drop Down"]
[685,null,null,"Select from Drop Down","Select from Drop Down","Select from Drop Down",null,null,null,null,null,null,null,null,null,null,null,null,"Select from Drop Down","Select from Drop Down","Select from Drop Down"]
[686,null,null,"Select from Drop Down","Select from Drop Down","Select from Drop Down",null,null,null,null,null,null,null,null,null,null,null,null,"Select from Drop Down","Select from Drop Down","Select from Drop Down"]
[687,null,null,"Select from Drop Down","Select from Drop Down","Select from Drop Down",null,null,null,null,null,null,null,null,null,null,null,null,"Select from Drop Down","Select from Drop Down","Select from Drop Down"]
[688,null,null,"Select from Drop Down","Select from Drop Down","Select from Drop Down",null,null,null,null,null,null,null,null,null,null,null,null,"Select from Drop Down","Select from Drop Down","Select from Drop Down"]
[689,null,null,"Select from Drop Down","Select from Drop Down","Select from Drop Down",null,null,null,null,null,null,null,null,null,null,null,null,"Select from Drop Down","Select from Drop Down","Select from Drop Down"]
[690,null,null,"Select from Drop Down","Select from Drop Down","Select from Drop Down",null,null,null,null,null,null,null,null,null,null,null,null,"Select from Drop Down","Select from Drop Down","Select from Drop Down"]
[691,null,null,"Select from Drop Down","Select from Drop Down","Select from Drop Down",null,null,null,null,null,null,null,null,null,null,null,null,"Select from Drop Down","Select from Drop Down","Select from Drop Down"]
[692,null,null,"Select from Drop Down","Select from Drop Down","Select from Drop Down",null,null,null,null,null,null,null,null,null,null,null,null,"Select from Drop Down","Select from Drop Down","Select from Drop Down"]
[693,null,null,"Select from Drop Down","Select from Drop Down","Select from Drop Down",null,null,null,null,null,null,null,null,null,null,null,null,"Select from Drop Down","Select from Drop Down","Select from Drop Down"]
[694,null,null,"Select from Drop Down","Select from Drop Down","Select from Drop Down",null,null,null,null,null,null,null,null,null,null,null,null,"Select from Drop Down","Select from Drop Down","Select from Drop Down"]
[695,null,null,"Select from Drop Down","Select from Drop Down","Select from Drop Down",null,null,null,null,null,null,null,null,null,null,null,null,"Select from Drop Down","Select from Drop Down","Select from Drop Down"]
[696,null,null,"Select from Drop Down","Select from Drop Down","Select from Drop Down",null,null,null,null,null,null,null,null,null,null,null,null,"Select from Drop Down","Select from Drop Down","Select from Drop Down"]
[697,null,null,"Select from Drop Down","Select from Drop Down","Select from Drop Down",null,null,null,null,null,null,null,null,null,null,null,null,"Select from Drop Down","Select from Drop Down","Select from Drop Down"]
[698,null,null,"Select from Drop Down","Select from Drop Down","Select from Drop Down",null,null,null,null,null,null,null,null,null,null,null,null,"Select from Drop Down","Select from Drop Down","Select from Drop Down"]
[699,null,null,"Select from Drop Down","Select from Drop Down","Select from Drop Down",null,null,null,null,null,null,null,null,null,null,null,null,"Select from Drop Down","Select from Drop Down","Select from Drop Down"]
[700,null,null,"Select from Drop Down","Select from Drop Down","Select from Drop Down",null,null,null,null,null,null,null,null,null,null,null,null,"Select from Drop Down","Select from Drop Down","Select from Drop Down"]
[701,null,null,"Select from Drop Down","Select from Drop Down","Select from Drop Down",null,null,null,null,null,null,null,null,null,null,null,null,"Select from Drop Down","Select from Drop Down","Select from Drop Down"]
[702,null,null,"Select from Drop Down","Select from Drop Down","Select from Drop Down",null,null,null,null,null,null,null,null,null,null,null,null,"Select from Drop Down","Select from Drop Down","Select from Drop Down"]
[703,null,null,"Select from Drop Down","Select from Drop Down","Select from Drop Down",null,null,null,null,null,null,null,null,null,null,null,null,"Select from Drop Down","Select from Drop Down","Select from Drop Down"]
[704,null,null,"Select from Drop Down","Select from Drop Down","Select from Drop Down",null,null,null,null,null,null,null,null,null,null,null,null,"Select from Drop Down","Select from Drop Down","Select from Drop Down"]
[705,null,null,"Select from Drop Down","Select from Drop Down","Select from Drop Down",null,null,null,null,null,null,null,null,null,null,null,null,"Select from Drop Down","Select from Drop Down","Select from Drop Down"]
[706,null,null,"Select from Drop Down","Select from Drop Down","Select from Drop Down",null,null,null,null,null,null,null,null,null,null,null,null,"Select from Drop Down","Select from Drop Down","Select from Drop Down"]
[{"$f":"A716+1","v":707},null,null,"Select from Drop Down","Select from Drop Down","Select from Drop Down",null,null,null,null,null,null,null,null,null,null,null,null,"Select from Drop Down","Select from Drop Down","Select from Drop Down"]
[708,null,null,"Select from Drop Down","Select from Drop Down","Select from Drop Down",null,null,null,null,null,null,null,null,null,null,null,null,"Select from Drop Down","Select from Drop Down","Select from Drop Down"]
[709,null,null,"Select from Drop Down","Select from Drop Down","Select from Drop Down",null,null,null,null,null,null,null,null,null,null,null,null,"Select from Drop Down","Select from Drop Down","Select from Drop Down"]
[710,null,null,"Select from Drop Down","Select from Drop Down","Select from Drop Down",null,null,null,null,null,null,null,null,null,null,null,null,"Select from Drop Down","Select from Drop Down","Select from Drop Down"]
[711,null,null,"Select from Drop Down","Select from Drop Down","Select from Drop Down",null,null,null,null,null,null,null,null,null,null,null,null,"Select from Drop Down","Select from Drop Down","Select from Drop Down"]
[712,null,null,"Select from Drop Down","Select from Drop Down","Select from Drop Down",null,null,null,null,null,null,null,null,null,null,null,null,"Select from Drop Down","Select from Drop Down","Select from Drop Down"]
[713,null,null,"Select from Drop Down","Select from Drop Down","Select from Drop Down",null,null,null,null,null,null,null,null,null,null,null,null,"Select from Drop Down","Select from Drop Down","Select from Drop Down"]
[714,null,null,"Select from Drop Down","Select from Drop Down","Select from Drop Down",null,null,null,null,null,null,null,null,null,null,null,null,"Select from Drop Down","Select from Drop Down","Select from Drop Down"]
[715,null,null,"Select from Drop Down","Select from Drop Down","Select from Drop Down",null,null,null,null,null,null,null,null,null,null,null,null,"Select from Drop Down","Select from Drop Down","Select from Drop Down"]
[716,null,null,"Select from Drop Down","Select from Drop Down","Select from Drop Down",null,null,null,null,null,null,null,null,null,null,null,null,"Select from Drop Down","Select from Drop Down","Select from Drop Down"]
[717,null,null,"Select from Drop Down","Select from Drop Down","Select from Drop Down",null,null,null,null,null,null,null,null,null,null,null,null,"Select from Drop Down","Select from Drop Down","Select from Drop Down"]
[718,null,null,"Select from Drop Down","Select from Drop Down","Select from Drop Down",null,null,null,null,null,null,null,null,null,null,null,null,"Select from Drop Down","Select from Drop Down","Select from Drop Down"]
[719,null,null,"Select from Drop Down","Select from Drop Down","Select from Drop Down",null,null,null,null,null,null,null,null,null,null,null,null,"Select from Drop Down","Select from Drop Down","Select from Drop Down"]
[720,null,null,"Select from Drop Down","Select from Drop Down","Select from Drop Down",null,null,null,null,null,null,null,null,null,null,null,null,"Select from Drop Down","Select from Drop Down","Select from Drop Down"]
[721,null,null,"Select from Drop Down","Select from Drop Down","Select from Drop Down",null,null,null,null,null,null,null,null,null,null,null,null,"Select from Drop Down","Select from Drop Down","Select from Drop Down"]
[722,null,null,"Select from Drop Down","Select from Drop Down","Select from Drop Down",null,null,null,null,null,null,null,null,null,null,null,null,"Select from Drop Down","Select from Drop Down","Select from Drop Down"]
[723,null,null,"Select from Drop Down","Select from Drop Down","Select from Drop Down",null,null,null,null,null,null,null,null,null,null,null,null,"Select from Drop Down","Select from Drop Down","Select from Drop Down"]
[724,null,null,"Select from Drop Down","Select from Drop Down","Select from Drop Down",null,null,null,null,null,null,null,null,null,null,null,null,"Select from Drop Down","Select from Drop Down","Select from Drop Down"]
[725,null,null,"Select from Drop Down","Select from Drop Down","Select from Drop Down",null,null,null,null,null,null,null,null,null,null,null,null,"Select from Drop Down","Select from Drop Down","Select from Drop Down"]
[726,null,null,"Select from Drop Down","Select from Drop Down","Select from Drop Down",null,null,null,null,null,null,null,null,null,null,null,null,"Select from Drop Down","Select from Drop Down","Select from Drop Down"]
[727,null,null,"Select from Drop Down","Select from Drop Down","Select from Drop Down",null,null,null,null,null,null,null,null,null,null,null,null,"Select from Drop Down","Select from Drop Down","Select from Drop Down"]
[728,null,null,"Select from Drop Down","Select from Drop Down","Select from Drop Down",null,null,null,null,null,null,null,null,null,null,null,null,"Select from Drop Down","Select from Drop Down","Select from Drop Down"]
[729,null,null,"Select from Drop Down","Select from Drop Down","Select from Drop Down",null,null,null,null,null,null,null,null,null,null,null,null,"Select from Drop Down","Select from Drop Down","Select from Drop Down"]
[730,null,null,"Select from Drop Down","Select from Drop Down","Select from Drop Down",null,null,null,null,null,null,null,null,null,null,null,null,"Select from Drop Down","Select from Drop Down","Select from Drop Down"]
[731,null,null,"Select from Drop Down","Select from Drop Down","Select from Drop Down",null,null,null,null,null,null,null,null,null,null,null,null,"Select from Drop Down","Select from Drop Down","Select from Drop Down"]
[732,null,null,"Select from Drop Down","Select from Drop Down","Select from Drop Down",null,null,null,null,null,null,null,null,null,null,null,null,"Select from Drop Down","Select from Drop Down","Select from Drop Down"]
[733,null,null,"Select from Drop Down","Select from Drop Down","Select from Drop Down",null,null,null,null,null,null,null,null,null,null,null,null,"Select from Drop Down","Select from Drop Down","Select from Drop Down"]
[734,null,null,"Select from Drop Down","Select from Drop Down","Select from Drop Down",null,null,null,null,null,null,null,null,null,null,null,null,"Select from Drop Down","Select from Drop Down","Select from Drop Down"]
[735,null,null,"Select from Drop Down","Select from Drop Down","Select from Drop Down",null,null,null,null,null,null,null,null,null,null,null,null,"Select from Drop Down","Select from Drop Down","Select from Drop Down"]
[736,null,null,"Select from Drop Down","Select from Drop Down","Select from Drop Down",null,null,null,null,null,null,null,null,null,null,null,null,"Select from Drop Down","Select from Drop Down","Select from Drop Down"]
[737,null,null,"Select from Drop Down","Select from Drop Down","Select from Drop Down",null,null,null,null,null,null,null,null,null,null,null,null,"Select from Drop Down","Select from Drop Down","Select from Drop Down"]
[738,null,null,"Select from Drop Down","Select from Drop Down","Select from Drop Down",null,null,null,null,null,null,null,null,null,null,null,null,"Select from Drop Down","Select from Drop Down","Select from Drop Down"]
[739,null,null,"Select from Drop Down","Select from Drop Down","Select from Drop Down",null,null,null,null,null,null,null,null,null,null,null,null,"Select from Drop Down","Select from Drop Down","Select from Drop Down"]
[740,null,null,"Select from Drop Down","Select from Drop Down","Select from Drop Down",null,null,null,null,null,null,null,null,null,null,null,null,"Select from Drop Down","Select from Drop Down","Select from Drop Down"]
[741,null,null,"Select from Drop Down","Select from Drop Down","Select from Drop Down",null,null,null,null,null,null,null,null,null,null,null,null,"Select from Drop Down","Select from Drop Down","Select from Drop Down"]
[742,null,null,"Select from Drop Down","Select from Drop Down","Select from Drop Down",null,null,null,null,null,null,null,null,null,null,null,null,"Select from Drop Down","Select from Drop Down","Select from Drop Down"]
[743,null,null,"Select from Drop Down","Select from Drop Down","Select from Drop Down",null,null,null,null,null,null,null,null,null,null,null,null,"Select from Drop Down","Select from Drop Down","Select from Drop Down"]
[744,null,null,"Select from Drop Down","Select from Drop Down","Select from Drop Down",null,null,null,null,null,null,null,null,null,null,null,null,"Select from Drop Down","Select from Drop Down","Select from Drop Down"]
[745,null,null,"Select from Drop Down","Select from Drop Down","Select from Drop Down",null,null,null,null,null,null,null,null,null,null,null,null,"Select from Drop Down","Select from Drop Down","Select from Drop Down"]
[746,null,null,"Select from Drop Down","Select from Drop Down","Select from Drop Down",null,null,null,null,null,null,null,null,null,null,null,null,"Select from Drop Down","Select from Drop Down","Select from Drop Down"]
[747,null,null,"Select from Drop Down","Select from Drop Down","Select from Drop Down",null,null,null,null,null,null,null,null,null,null,null,null,"Select from Drop Down","Select from Drop Down","Select from Drop Down"]
[748,null,null,"Select from Drop Down","Select from Drop Down","Select from Drop Down",null,null,null,null,null,null,null,null,null,null,null,null,"Select from Drop Down","Select from Drop Down","Select from Drop Down"]
[749,null,null,"Select from Drop Down","Select from Drop Down","Select from Drop Down",null,null,null,null,null,null,null,null,null,null,null,null,"Select from Drop Down","Select from Drop Down","Select from Drop Down"]
[750,null,null,"Select from Drop Down","Select from Drop Down","Select from Drop Down",null,null,null,null,null,null,null,null,null,null,null,null,"Select from Drop Down","Select from Drop Down","Select from Drop Down"]
[751,null,null,"Select from Drop Down","Select from Drop Down","Select from Drop Down",null,null,null,null,null,null,null,null,null,null,null,null,"Select from Drop Down","Select from Drop Down","Select from Drop Down"]
[752,null,null,"Select from Drop Down","Select from Drop Down","Select from Drop Down",null,null,null,null,null,null,null,null,null,null,null,null,"Select from Drop Down","Select from Drop Down","Select from Drop Down"]
[753,null,null,"Select from Drop Down","Select from Drop Down","Select from Drop Down",null,null,null,null,null,null,null,null,null,null,null,null,"Select from Drop Down","Select from Drop Down","Select from Drop Down"]
[754,null,null,"Select from Drop Down","Select from Drop Down","Select from Drop Down",null,null,null,null,null,null,null,null,null,null,null,null,"Select from Drop Down","Select from Drop Down","Select from Drop Down"]
[755,null,null,"Select from Drop Down","Select from Drop Down","Select from Drop Down",null,null,null,null,null,null,null,null,null,null,null,null,"Select from Drop Down","Select from Drop Down","Select from Drop Down"]
[756,null,null,"Select from Drop Down","Select from Drop Down","Select from Drop Down",null,null,null,null,null,null,null,null,null,null,null,null,"Select from Drop Down","Select from Drop Down","Select from Drop Down"]
[757,null,null,"Select from Drop Down","Select from Drop Down","Select from Drop Down",null,null,null,null,null,null,null,null,null,null,null,null,"Select from Drop Down","Select from Drop Down","Select from Drop Down"]
[758,null,null,"Select from Drop Down","Select from Drop Down","Select from Drop Down",null,null,null,null,null,null,null,null,null,null,null,null,"Select from Drop Down","Select from Drop Down","Select from Drop Down"]
[759,null,null,"Select from Drop Down","Select from Drop Down","Select from Drop Down",null,null,null,null,null,null,null,null,null,null,null,null,"Select from Drop Down","Select from Drop Down","Select from Drop Down"]
[760,null,null,"Select from Drop Down","Select from Drop Down","Select from Drop Down",null,null,null,null,null,null,null,null,null,null,null,null,"Select from Drop Down","Select from Drop Down","Select from Drop Down"]
[761,null,null,"Select from Drop Down","Select from Drop Down","Select from Drop Down",null,null,null,null,null,null,null,null,null,null,null,null,"Select from Drop Down","Select from Drop Down","Select from Drop Down"]
[762,null,null,"Select from Drop Down","Select from Drop Down","Select from Drop Down",null,null,null,null,null,null,null,null,null,null,null,null,"Select from Drop Down","Select from Drop Down","Select from Drop Down"]
[763,null,null,"Select from Drop Down","Select from Drop Down","Select from Drop Down",null,null,null,null,null,null,null,null,null,null,null,null,"Select from Drop Down","Select from Drop Down","Select from Drop Down"]
[764,null,null,"Select from Drop Down","Select from Drop Down","Select from Drop Down",null,null,null,null,null,null,null,null,null,null,null,null,"Select from Drop Down","Select from Drop Down","Select from Drop Down"]
[765,null,null,"Select from Drop Down","Select from Drop Down","Select from Drop Down",null,null,null,null,null,null,null,null,null,null,null,null,"Select from Drop Down","Select from Drop Down","Select from Drop Down"]
[766,null,null,"Select from Drop Down","Select from Drop Down","Select from Drop Down",null,null,null,null,null,null,null,null,null,null,null,null,"Select from Drop Down","Select from Drop Down","Select from Drop Down"]
[767,null,null,"Select from Drop Down","Select from Drop Down","Select from Drop Down",null,null,null,null,null,null,null,null,null,null,null,null,"Select from Drop Down","Select from Drop Down","Select from Drop Down"]
[768,null,null,"Select from Drop Down","Select from Drop Down","Select from Drop Down",null,null,null,null,null,null,null,null,null,null,null,null,"Select from Drop Down","Select from Drop Down","Select from Drop Down"]
[769,null,null,"Select from Drop Down","Select from Drop Down","Select from Drop Down",null,null,null,null,null,null,null,null,null,null,null,null,"Select from Drop Down","Select from Drop Down","Select from Drop Down"]
[770,null,null,"Select from Drop Down","Select from Drop Down","Select from Drop Down",null,null,null,null,null,null,null,null,null,null,null,null,"Select from Drop Down","Select from Drop Down","Select from Drop Down"]
[{"$f":"A780+1","v":771},null,null,"Select from Drop Down","Select from Drop Down","Select from Drop Down",null,null,null,null,null,null,null,null,null,null,null,null,"Select from Drop Down","Select from Drop Down","Select from Drop Down"]
[772,null,null,"Select from Drop Down","Select from Drop Down","Select from Drop Down",null,null,null,null,null,null,null,null,null,null,null,null,"Select from Drop Down","Select from Drop Down","Select from Drop Down"]
[773,null,null,"Select from Drop Down","Select from Drop Down","Select from Drop Down",null,null,null,null,null,null,null,null,null,null,null,null,"Select from Drop Down","Select from Drop Down","Select from Drop Down"]
[774,null,null,"Select from Drop Down","Select from Drop Down","Select from Drop Down",null,null,null,null,null,null,null,null,null,null,null,null,"Select from Drop Down","Select from Drop Down","Select from Drop Down"]
[775,null,null,"Select from Drop Down","Select from Drop Down","Select from Drop Down",null,null,null,null,null,null,null,null,null,null,null,null,"Select from Drop Down","Select from Drop Down","Select from Drop Down"]
[776,null,null,"Select from Drop Down","Select from Drop Down","Select from Drop Down",null,null,null,null,null,null,null,null,null,null,null,null,"Select from Drop Down","Select from Drop Down","Select from Drop Down"]
[777,null,null,"Select from Drop Down","Select from Drop Down","Select from Drop Down",null,null,null,null,null,null,null,null,null,null,null,null,"Select from Drop Down","Select from Drop Down","Select from Drop Down"]
[778,null,null,"Select from Drop Down","Select from Drop Down","Select from Drop Down",null,null,null,null,null,null,null,null,null,null,null,null,"Select from Drop Down","Select from Drop Down","Select from Drop Down"]
[779,null,null,"Select from Drop Down","Select from Drop Down","Select from Drop Down",null,null,null,null,null,null,null,null,null,null,null,null,"Select from Drop Down","Select from Drop Down","Select from Drop Down"]
[780,null,null,"Select from Drop Down","Select from Drop Down","Select from Drop Down",null,null,null,null,null,null,null,null,null,null,null,null,"Select from Drop Down","Select from Drop Down","Select from Drop Down"]
[781,null,null,"Select from Drop Down","Select from Drop Down","Select from Drop Down",null,null,null,null,null,null,null,null,null,null,null,null,"Select from Drop Down","Select from Drop Down","Select from Drop Down"]
[782,null,null,"Select from Drop Down","Select from Drop Down","Select from Drop Down",null,null,null,null,null,null,null,null,null,null,null,null,"Select from Drop Down","Select from Drop Down","Select from Drop Down"]
[783,null,null,"Select from Drop Down","Select from Drop Down","Select from Drop Down",null,null,null,null,null,null,null,null,null,null,null,null,"Select from Drop Down","Select from Drop Down","Select from Drop Down"]
[784,null,null,"Select from Drop Down","Select from Drop Down","Select from Drop Down",null,null,null,null,null,null,null,null,null,null,null,null,"Select from Drop Down","Select from Drop Down","Select from Drop Down"]
[785,null,null,"Select from Drop Down","Select from Drop Down","Select from Drop Down",null,null,null,null,null,null,null,null,null,null,null,null,"Select from Drop Down","Select from Drop Down","Select from Drop Down"]
[786,null,null,"Select from Drop Down","Select from Drop Down","Select from Drop Down",null,null,null,null,null,null,null,null,null,null,null,null,"Select from Drop Down","Select from Drop Down","Select from Drop Down"]
[787,null,null,"Select from Drop Down","Select from Drop Down","Select from Drop Down",null,null,null,null,null,null,null,null,null,null,null,null,"Select from Drop Down","Select from Drop Down","Select from Drop Down"]
[788,null,null,"Select from Drop Down","Select from Drop Down","Select from Drop Down",null,null,null,null,null,null,null,null,null,null,null,null,"Select from Drop Down","Select from Drop Down","Select from Drop Down"]
[789,null,null,"Select from Drop Down","Select from Drop Down","Select from Drop Down",null,null,null,null,null,null,null,null,null,null,null,null,"Select from Drop Down","Select from Drop Down","Select from Drop Down"]
[790,null,null,"Select from Drop Down","Select from Drop Down","Select from Drop Down",null,null,null,null,null,null,null,null,null,null,null,null,"Select from Drop Down","Select from Drop Down","Select from Drop Down"]
[791,null,null,"Select from Drop Down","Select from Drop Down","Select from Drop Down",null,null,null,null,null,null,null,null,null,null,null,null,"Select from Drop Down","Select from Drop Down","Select from Drop Down"]
[792,null,null,"Select from Drop Down","Select from Drop Down","Select from Drop Down",null,null,null,null,null,null,null,null,null,null,null,null,"Select from Drop Down","Select from Drop Down","Select from Drop Down"]
[793,null,null,"Select from Drop Down","Select from Drop Down","Select from Drop Down",null,null,null,null,null,null,null,null,null,null,null,null,"Select from Drop Down","Select from Drop Down","Select from Drop Down"]
[794,null,null,"Select from Drop Down","Select from Drop Down","Select from Drop Down",null,null,null,null,null,null,null,null,null,null,null,null,"Select from Drop Down","Select from Drop Down","Select from Drop Down"]
[795,null,null,"Select from Drop Down","Select from Drop Down","Select from Drop Down",null,null,null,null,null,null,null,null,null,null,null,null,"Select from Drop Down","Select from Drop Down","Select from Drop Down"]
[796,null,null,"Select from Drop Down","Select from Drop Down","Select from Drop Down",null,null,null,null,null,null,null,null,null,null,null,null,"Select from Drop Down","Select from Drop Down","Select from Drop Down"]
[797,null,null,"Select from Drop Down","Select from Drop Down","Select from Drop Down",null,null,null,null,null,null,null,null,null,null,null,null,"Select from Drop Down","Select from Drop Down","Select from Drop Down"]
[798,null,null,"Select from Drop Down","Select from Drop Down","Select from Drop Down",null,null,null,null,null,null,null,null,null,null,null,null,"Select from Drop Down","Select from Drop Down","Select from Drop Down"]
[799,null,null,"Select from Drop Down","Select from Drop Down","Select from Drop Down",null,null,null,null,null,null,null,null,null,null,null,null,"Select from Drop Down","Select from Drop Down","Select from Drop Down"]
[800,null,null,"Select from Drop Down","Select from Drop Down","Select from Drop Down",null,null,null,null,null,null,null,null,null,null,null,null,"Select from Drop Down","Select from Drop Down","Select from Drop Down"]
[801,null,null,"Select from Drop Down","Select from Drop Down","Select from Drop Down",null,null,null,null,null,null,null,null,null,null,null,null,"Select from Drop Down","Select from Drop Down","Select from Drop Down"]
[802,null,null,"Select from Drop Down","Select from Drop Down","Select from Drop Down",null,null,null,null,null,null,null,null,null,null,null,null,"Select from Drop Down","Select from Drop Down","Select from Drop Down"]
[803,null,null,"Select from Drop Down","Select from Drop Down","Select from Drop Down",null,null,null,null,null,null,null,null,null,null,null,null,"Select from Drop Down","Select from Drop Down","Select from Drop Down"]
[804,null,null,"Select from Drop Down","Select from Drop Down","Select from Drop Down",null,null,null,null,null,null,null,null,null,null,null,null,"Select from Drop Down","Select from Drop Down","Select from Drop Down"]
[805,null,null,"Select from Drop Down","Select from Drop Down","Select from Drop Down",null,null,null,null,null,null,null,null,null,null,null,null,"Select from Drop Down","Select from Drop Down","Select from Drop Down"]
[806,null,null,"Select from Drop Down","Select from Drop Down","Select from Drop Down",null,null,null,null,null,null,null,null,null,null,null,null,"Select from Drop Down","Select from Drop Down","Select from Drop Down"]
[807,null,null,"Select from Drop Down","Select from Drop Down","Select from Drop Down",null,null,null,null,null,null,null,null,null,null,null,null,"Select from Drop Down","Select from Drop Down","Select from Drop Down"]
[808,null,null,"Select from Drop Down","Select from Drop Down","Select from Drop Down",null,null,null,null,null,null,null,null,null,null,null,null,"Select from Drop Down","Select from Drop Down","Select from Drop Down"]
[809,null,null,"Select from Drop Down","Select from Drop Down","Select from Drop Down",null,null,null,null,null,null,null,null,null,null,null,null,"Select from Drop Down","Select from Drop Down","Select from Drop Down"]
[810,null,null,"Select from Drop Down","Select from Drop Down","Select from Drop Down",null,null,null,null,null,null,null,null,null,null,null,null,"Select from Drop Down","Select from Drop Down","Select from Drop Down"]
[811,null,null,"Select from Drop Down","Select from Drop Down","Select from Drop Down",null,null,null,null,null,null,null,null,null,null,null,null,"Select from Drop Down","Select from Drop Down","Select from Drop Down"]
[812,null,null,"Select from Drop Down","Select from Drop Down","Select from Drop Down",null,null,null,null,null,null,null,null,null,null,null,null,"Select from Drop Down","Select from Drop Down","Select from Drop Down"]
[813,null,null,"Select from Drop Down","Select from Drop Down","Select from Drop Down",null,null,null,null,null,null,null,null,null,null,null,null,"Select from Drop Down","Select from Drop Down","Select from Drop Down"]
[814,null,null,"Select from Drop Down","Select from Drop Down","Select from Drop Down",null,null,null,null,null,null,null,null,null,null,null,null,"Select from Drop Down","Select from Drop Down","Select from Drop Down"]
[815,null,null,"Select from Drop Down","Select from Drop Down","Select from Drop Down",null,null,null,null,null,null,null,null,null,null,null,null,"Select from Drop Down","Select from Drop Down","Select from Drop Down"]
[816,null,null,"Select from Drop Down","Select from Drop Down","Select from Drop Down",null,null,null,null,null,null,null,null,null,null,null,null,"Select from Drop Down","Select from Drop Down","Select from Drop Down"]
[817,null,null,"Select from Drop Down","Select from Drop Down","Select from Drop Down",null,null,null,null,null,null,null,null,null,null,null,null,"Select from Drop Down","Select from Drop Down","Select from Drop Down"]
[818,null,null,"Select from Drop Down","Select from Drop Down","Select from Drop Down",null,null,null,null,null,null,null,null,null,null,null,null,"Select from Drop Down","Select from Drop Down","Select from Drop Down"]
[819,null,null,"Select from Drop Down","Select from Drop Down","Select from Drop Down",null,null,null,null,null,null,null,null,null,null,null,null,"Select from Drop Down","Select from Drop Down","Select from Drop Down"]
[820,null,null,"Select from Drop Down","Select from Drop Down","Select from Drop Down",null,null,null,null,null,null,null,null,null,null,null,null,"Select from Drop Down","Select from Drop Down","Select from Drop Down"]
[821,null,null,"Select from Drop Down","Select from Drop Down","Select from Drop Down",null,null,null,null,null,null,null,null,null,null,null,null,"Select from Drop Down","Select from Drop Down","Select from Drop Down"]
[822,null,null,"Select from Drop Down","Select from Drop Down","Select from Drop Down",null,null,null,null,null,null,null,null,null,null,null,null,"Select from Drop Down","Select from Drop Down","Select from Drop Down"]
[823,null,null,"Select from Drop Down","Select from Drop Down","Select from Drop Down",null,null,null,null,null,null,null,null,null,null,null,null,"Select from Drop Down","Select from Drop Down","Select from Drop Down"]
[824,null,null,"Select from Drop Down","Select from Drop Down","Select from Drop Down",null,null,null,null,null,null,null,null,null,null,null,null,"Select from Drop Down","Select from Drop Down","Select from Drop Down"]
[825,null,null,"Select from Drop Down","Select from Drop Down","Select from Drop Down",null,null,null,null,null,null,null,null,null,null,null,null,"Select from Drop Down","Select from Drop Down","Select from Drop Down"]
[826,null,null,"Select from Drop Down","Select from Drop Down","Select from Drop Down",null,null,null,null,null,null,null,null,null,null,null,null,"Select from Drop Down","Select from Drop Down","Select from Drop Down"]
[827,null,null,"Select from Drop Down","Select from Drop Down","Select from Drop Down",null,null,null,null,null,null,null,null,null,null,null,null,"Select from Drop Down","Select from Drop Down","Select from Drop Down"]
[828,null,null,"Select from Drop Down","Select from Drop Down","Select from Drop Down",null,null,null,null,null,null,null,null,null,null,null,null,"Select from Drop Down","Select from Drop Down","Select from Drop Down"]
[829,null,null,"Select from Drop Down","Select from Drop Down","Select from Drop Down",null,null,null,null,null,null,null,null,null,null,null,null,"Select from Drop Down","Select from Drop Down","Select from Drop Down"]
[830,null,null,"Select from Drop Down","Select from Drop Down","Select from Drop Down",null,null,null,null,null,null,null,null,null,null,null,null,"Select from Drop Down","Select from Drop Down","Select from Drop Down"]
[831,null,null,"Select from Drop Down","Select from Drop Down","Select from Drop Down",null,null,null,null,null,null,null,null,null,null,null,null,"Select from Drop Down","Select from Drop Down","Select from Drop Down"]
[832,null,null,"Select from Drop Down","Select from Drop Down","Select from Drop Down",null,null,null,null,null,null,null,null,null,null,null,null,"Select from Drop Down","Select from Drop Down","Select from Drop Down"]
[833,null,null,"Select from Drop Down","Select from Drop Down","Select from Drop Down",null,null,null,null,null,null,null,null,null,null,null,null,"Select from Drop Down","Select from Drop Down","Select from Drop Down"]
[834,null,null,"Select from Drop Down","Select from Drop Down","Select from Drop Down",null,null,null,null,null,null,null,null,null,null,null,null,"Select from Drop Down","Select from Drop Down","Select from Drop Down"]
[{"$f":"A844+1","v":835},null,null,"Select from Drop Down","Select from Drop Down","Select from Drop Down",null,null,null,null,null,null,null,null,null,null,null,null,"Select from Drop Down","Select from Drop Down","Select from Drop Down"]
[836,null,null,"Select from Drop Down","Select from Drop Down","Select from Drop Down",null,null,null,null,null,null,null,null,null,null,null,null,"Select from Drop Down","Select from Drop Down","Select from Drop Down"]
[837,null,null,"Select from Drop Down","Select from Drop Down","Select from Drop Down",null,null,null,null,null,null,null,null,null,null,null,null,"Select from Drop Down","Select from Drop Down","Select from Drop Down"]
[838,null,null,"Select from Drop Down","Select from Drop Down","Select from Drop Down",null,null,null,null,null,null,null,null,null,null,null,null,"Select from Drop Down","Select from Drop Down","Select from Drop Down"]
[839,null,null,"Select from Drop Down","Select from Drop Down","Select from Drop Down",null,null,null,null,null,null,null,null,null,null,null,null,"Select from Drop Down","Select from Drop Down","Select from Drop Down"]
[840,null,null,"Select from Drop Down","Select from Drop Down","Select from Drop Down",null,null,null,null,null,null,null,null,null,null,null,null,"Select from Drop Down","Select from Drop Down","Select from Drop Down"]
[841,null,null,"Select from Drop Down","Select from Drop Down","Select from Drop Down",null,null,null,null,null,null,null,null,null,null,null,null,"Select from Drop Down","Select from Drop Down","Select from Drop Down"]
[842,null,null,"Select from Drop Down","Select from Drop Down","Select from Drop Down",null,null,null,null,null,null,null,null,null,null,null,null,"Select from Drop Down","Select from Drop Down","Select from Drop Down"]
[843,null,null,"Select from Drop Down","Select from Drop Down","Select from Drop Down",null,null,null,null,null,null,null,null,null,null,null,null,"Select from Drop Down","Select from Drop Down","Select from Drop Down"]
[844,null,null,"Select from Drop Down","Select from Drop Down","Select from Drop Down",null,null,null,null,null,null,null,null,null,null,null,null,"Select from Drop Down","Select from Drop Down","Select from Drop Down"]
[845,null,null,"Select from Drop Down","Select from Drop Down","Select from Drop Down",null,null,null,null,null,null,null,null,null,null,null,null,"Select from Drop Down","Select from Drop Down","Select from Drop Down"]
[846,null,null,"Select from Drop Down","Select from Drop Down","Select from Drop Down",null,null,null,null,null,null,null,null,null,null,null,null,"Select from Drop Down","Select from Drop Down","Select from Drop Down"]
[847,null,null,"Select from Drop Down","Select from Drop Down","Select from Drop Down",null,null,null,null,null,null,null,null,null,null,null,null,"Select from Drop Down","Select from Drop Down","Select from Drop Down"]
[848,null,null,"Select from Drop Down","Select from Drop Down","Select from Drop Down",null,null,null,null,null,null,null,null,null,null,null,null,"Select from Drop Down","Select from Drop Down","Select from Drop Down"]
[849,null,null,"Select from Drop Down","Select from Drop Down","Select from Drop Down",null,null,null,null,null,null,null,null,null,null,null,null,"Select from Drop Down","Select from Drop Down","Select from Drop Down"]
[850,null,null,"Select from Drop Down","Select from Drop Down","Select from Drop Down",null,null,null,null,null,null,null,null,null,null,null,null,"Select from Drop Down","Select from Drop Down","Select from Drop Down"]
[851,null,null,"Select from Drop Down","Select from Drop Down","Select from Drop Down",null,null,null,null,null,null,null,null,null,null,null,null,"Select from Drop Down","Select from Drop Down","Select from Drop Down"]
[852,null,null,"Select from Drop Down","Select from Drop Down","Select from Drop Down",null,null,null,null,null,null,null,null,null,null,null,null,"Select from Drop Down","Select from Drop Down","Select from Drop Down"]
[853,null,null,"Select from Drop Down","Select from Drop Down","Select from Drop Down",null,null,null,null,null,null,null,null,null,null,null,null,"Select from Drop Down","Select from Drop Down","Select from Drop Down"]
[854,null,null,"Select from Drop Down","Select from Drop Down","Select from Drop Down",null,null,null,null,null,null,null,null,null,null,null,null,"Select from Drop Down","Select from Drop Down","Select from Drop Down"]
[855,null,null,"Select from Drop Down","Select from Drop Down","Select from Drop Down",null,null,null,null,null,null,null,null,null,null,null,null,"Select from Drop Down","Select from Drop Down","Select from Drop Down"]
[856,null,null,"Select from Drop Down","Select from Drop Down","Select from Drop Down",null,null,null,null,null,null,null,null,null,null,null,null,"Select from Drop Down","Select from Drop Down","Select from Drop Down"]
[857,null,null,"Select from Drop Down","Select from Drop Down","Select from Drop Down",null,null,null,null,null,null,null,null,null,null,null,null,"Select from Drop Down","Select from Drop Down","Select from Drop Down"]
[858,null,null,"Select from Drop Down","Select from Drop Down","Select from Drop Down",null,null,null,null,null,null,null,null,null,null,null,null,"Select from Drop Down","Select from Drop Down","Select from Drop Down"]
[859,null,null,"Select from Drop Down","Select from Drop Down","Select from Drop Down",null,null,null,null,null,null,null,null,null,null,null,null,"Select from Drop Down","Select from Drop Down","Select from Drop Down"]
[860,null,null,"Select from Drop Down","Select from Drop Down","Select from Drop Down",null,null,null,null,null,null,null,null,null,null,null,null,"Select from Drop Down","Select from Drop Down","Select from Drop Down"]
[861,null,null,"Select from Drop Down","Select from Drop Down","Select from Drop Down",null,null,null,null,null,null,null,null,null,null,null,null,"Select from Drop Down","Select from Drop Down","Select from Drop Down"]
[862,null,null,"Select from Drop Down","Select from Drop Down","Select from Drop Down",null,null,null,null,null,null,null,null,null,null,null,null,"Select from Drop Down","Select from Drop Down","Select from Drop Down"]
[863,null,null,"Select from Drop Down","Select from Drop Down","Select from Drop Down",null,null,null,null,null,null,null,null,null,null,null,null,"Select from Drop Down","Select from Drop Down","Select from Drop Down"]
[864,null,null,"Select from Drop Down","Select from Drop Down","Select from Drop Down",null,null,null,null,null,null,null,null,null,null,null,null,"Select from Drop Down","Select from Drop Down","Select from Drop Down"]
[865,null,null,"Select from Drop Down","Select from Drop Down","Select from Drop Down",null,null,null,null,null,null,null,null,null,null,null,null,"Select from Drop Down","Select from Drop Down","Select from Drop Down"]
[866,null,null,"Select from Drop Down","Select from Drop Down","Select from Drop Down",null,null,null,null,null,null,null,null,null,null,null,null,"Select from Drop Down","Select from Drop Down","Select from Drop Down"]
[867,null,null,"Select from Drop Down","Select from Drop Down","Select from Drop Down",null,null,null,null,null,null,null,null,null,null,null,null,"Select from Drop Down","Select from Drop Down","Select from Drop Down"]
[868,null,null,"Select from Drop Down","Select from Drop Down","Select from Drop Down",null,null,null,null,null,null,null,null,null,null,null,null,"Select from Drop Down","Select from Drop Down","Select from Drop Down"]
[869,null,null,"Select from Drop Down","Select from Drop Down","Select from Drop Down",null,null,null,null,null,null,null,null,null,null,null,null,"Select from Drop Down","Select from Drop Down","Select from Drop Down"]
[870,null,null,"Select from Drop Down","Select from Drop Down","Select from Drop Down",null,null,null,null,null,null,null,null,null,null,null,null,"Select from Drop Down","Select from Drop Down","Select from Drop Down"]
[871,null,null,"Select from Drop Down","Select from Drop Down","Select from Drop Down",null,null,null,null,null,null,null,null,null,null,null,null,"Select from Drop Down","Select from Drop Down","Select from Drop Down"]
[872,null,null,"Select from Drop Down","Select from Drop Down","Select from Drop Down",null,null,null,null,null,null,null,null,null,null,null,null,"Select from Drop Down","Select from Drop Down","Select from Drop Down"]
[873,null,null,"Select from Drop Down","Select from Drop Down","Select from Drop Down",null,null,null,null,null,null,null,null,null,null,null,null,"Select from Drop Down","Select from Drop Down","Select from Drop Down"]
[874,null,null,"Select from Drop Down","Select from Drop Down","Select from Drop Down",null,null,null,null,null,null,null,null,null,null,null,null,"Select from Drop Down","Select from Drop Down","Select from Drop Down"]
[875,null,null,"Select from Drop Down","Select from Drop Down","Select from Drop Down",null,null,null,null,null,null,null,null,null,null,null,null,"Select from Drop Down","Select from Drop Down","Select from Drop Down"]
[876,null,null,"Select from Drop Down","Select from Drop Down","Select from Drop Down",null,null,null,null,null,null,null,null,null,null,null,null,"Select from Drop Down","Select from Drop Down","Select from Drop Down"]
[877,null,null,"Select from Drop Down","Select from Drop Down","Select from Drop Down",null,null,null,null,null,null,null,null,null,null,null,null,"Select from Drop Down","Select from Drop Down","Select from Drop Down"]
[878,null,null,"Select from Drop Down","Select from Drop Down","Select from Drop Down",null,null,null,null,null,null,null,null,null,null,null,null,"Select from Drop Down","Select from Drop Down","Select from Drop Down"]
[879,null,null,"Select from Drop Down","Select from Drop Down","Select from Drop Down",null,null,null,null,null,null,null,null,null,null,null,null,"Select from Drop Down","Select from Drop Down","Select from Drop Down"]
[880,null,null,"Select from Drop Down","Select from Drop Down","Select from Drop Down",null,null,null,null,null,null,null,null,null,null,null,null,"Select from Drop Down","Select from Drop Down","Select from Drop Down"]
[881,null,null,"Select from Drop Down","Select from Drop Down","Select from Drop Down",null,null,null,null,null,null,null,null,null,null,null,null,"Select from Drop Down","Select from Drop Down","Select from Drop Down"]
[882,null,null,"Select from Drop Down","Select from Drop Down","Select from Drop Down",null,null,null,null,null,null,null,null,null,null,null,null,"Select from Drop Down","Select from Drop Down","Select from Drop Down"]
[883,null,null,"Select from Drop Down","Select from Drop Down","Select from Drop Down",null,null,null,null,null,null,null,null,null,null,null,null,"Select from Drop Down","Select from Drop Down","Select from Drop Down"]
[884,null,null,"Select from Drop Down","Select from Drop Down","Select from Drop Down",null,null,null,null,null,null,null,null,null,null,null,null,"Select from Drop Down","Select from Drop Down","Select from Drop Down"]
[885,null,null,"Select from Drop Down","Select from Drop Down","Select from Drop Down",null,null,null,null,null,null,null,null,null,null,null,null,"Select from Drop Down","Select from Drop Down","Select from Drop Down"]
[886,null,null,"Select from Drop Down","Select from Drop Down","Select from Drop Down",null,null,null,null,null,null,null,null,null,null,null,null,"Select from Drop Down","Select from Drop Down","Select from Drop Down"]
[887,null,null,"Select from Drop Down","Select from Drop Down","Select from Drop Down",null,null,null,null,null,null,null,null,null,null,null,null,"Select from Drop Down","Select from Drop Down","Select from Drop Down"]
[888,null,null,"Select from Drop Down","Select from Drop Down","Select from Drop Down",null,null,null,null,null,null,null,null,null,null,null,null,"Select from Drop Down","Select from Drop Down","Select from Drop Down"]
[889,null,null,"Select from Drop Down","Select from Drop Down","Select from Drop Down",null,null,null,null,null,null,null,null,null,null,null,null,"Select from Drop Down","Select from Drop Down","Select from Drop Down"]
[890,null,null,"Select from Drop Down","Select from Drop Down","Select from Drop Down",null,null,null,null,null,null,null,null,null,null,null,null,"Select from Drop Down","Select from Drop Down","Select from Drop Down"]
[891,null,null,"Select from Drop Down","Select from Drop Down","Select from Drop Down",null,null,null,null,null,null,null,null,null,null,null,null,"Select from Drop Down","Select from Drop Down","Select from Drop Down"]
[892,null,null,"Select from Drop Down","Select from Drop Down","Select from Drop Down",null,null,null,null,null,null,null,null,null,null,null,null,"Select from Drop Down","Select from Drop Down","Select from Drop Down"]
[893,null,null,"Select from Drop Down","Select from Drop Down","Select from Drop Down",null,null,null,null,null,null,null,null,null,null,null,null,"Select from Drop Down","Select from Drop Down","Select from Drop Down"]
[894,null,null,"Select from Drop Down","Select from Drop Down","Select from Drop Down",null,null,null,null,null,null,null,null,null,null,null,null,"Select from Drop Down","Select from Drop Down","Select from Drop Down"]
[895,null,null,"Select from Drop Down","Select from Drop Down","Select from Drop Down",null,null,null,null,null,null,null,null,null,null,null,null,"Select from Drop Down","Select from Drop Down","Select from Drop Down"]
[896,null,null,"Select from Drop Down","Select from Drop Down","Select from Drop Down",null,null,null,null,null,null,null,null,null,null,null,null,"Select from Drop Down","Select from Drop Down","Select from Drop Down"]
[897,null,null,"Select from Drop Down","Select from Drop Down","Select from Drop Down",null,null,null,null,null,null,null,null,null,null,null,null,"Select from Drop Down","Select from Drop Down","Select from Drop Down"]
[898,null,null,"Select from Drop Down","Select from Drop Down","Select from Drop Down",null,null,null,null,null,null,null,null,null,null,null,null,"Select from Drop Down","Select from Drop Down","Select from Drop Down"]
[{"$f":"A908+1","v":899},null,null,"Select from Drop Down","Select from Drop Down","Select from Drop Down",null,null,null,null,null,null,null,null,null,null,null,null,"Select from Drop Down","Select from Drop Down","Select from Drop Down"]
[900,null,null,"Select from Drop Down","Select from Drop Down","Select from Drop Down",null,null,null,null,null,null,null,null,null,null,null,null,"Select from Drop Down","Select from Drop Down","Select from Drop Down"]
[901,null,null,"Select from Drop Down","Select from Drop Down","Select from Drop Down",null,null,null,null,null,null,null,null,null,null,null,null,"Select from Drop Down","Select from Drop Down","Select from Drop Down"]
[902,null,null,"Select from Drop Down","Select from Drop Down","Select from Drop Down",null,null,null,null,null,null,null,null,null,null,null,null,"Select from Drop Down","Select from Drop Down","Select from Drop Down"]
[903,null,null,"Select from Drop Down","Select from Drop Down","Select from Drop Down",null,null,null,null,null,null,null,null,null,null,null,null,"Select from Drop Down","Select from Drop Down","Select from Drop Down"]
[904,null,null,"Select from Drop Down","Select from Drop Down","Select from Drop Down",null,null,null,null,null,null,null,null,null,null,null,null,"Select from Drop Down","Select from Drop Down","Select from Drop Down"]
[905,null,null,"Select from Drop Down","Select from Drop Down","Select from Drop Down",null,null,null,null,null,null,null,null,null,null,null,null,"Select from Drop Down","Select from Drop Down","Select from Drop Down"]
[906,null,null,"Select from Drop Down","Select from Drop Down","Select from Drop Down",null,null,null,null,null,null,null,null,null,null,null,null,"Select from Drop Down","Select from Drop Down","Select from Drop Down"]
[907,null,null,"Select from Drop Down","Select from Drop Down","Select from Drop Down",null,null,null,null,null,null,null,null,null,null,null,null,"Select from Drop Down","Select from Drop Down","Select from Drop Down"]
[908,null,null,"Select from Drop Down","Select from Drop Down","Select from Drop Down",null,null,null,null,null,null,null,null,null,null,null,null,"Select from Drop Down","Select from Drop Down","Select from Drop Down"]
[909,null,null,"Select from Drop Down","Select from Drop Down","Select from Drop Down",null,null,null,null,null,null,null,null,null,null,null,null,"Select from Drop Down","Select from Drop Down","Select from Drop Down"]
[910,null,null,"Select from Drop Down","Select from Drop Down","Select from Drop Down",null,null,null,null,null,null,null,null,null,null,null,null,"Select from Drop Down","Select from Drop Down","Select from Drop Down"]
[911,null,null,"Select from Drop Down","Select from Drop Down","Select from Drop Down",null,null,null,null,null,null,null,null,null,null,null,null,"Select from Drop Down","Select from Drop Down","Select from Drop Down"]
[912,null,null,"Select from Drop Down","Select from Drop Down","Select from Drop Down",null,null,null,null,null,null,null,null,null,null,null,null,"Select from Drop Down","Select from Drop Down","Select from Drop Down"]
[913,null,null,"Select from Drop Down","Select from Drop Down","Select from Drop Down",null,null,null,null,null,null,null,null,null,null,null,null,"Select from Drop Down","Select from Drop Down","Select from Drop Down"]
[914,null,null,"Select from Drop Down","Select from Drop Down","Select from Drop Down",null,null,null,null,null,null,null,null,null,null,null,null,"Select from Drop Down","Select from Drop Down","Select from Drop Down"]
[915,null,null,"Select from Drop Down","Select from Drop Down","Select from Drop Down",null,null,null,null,null,null,null,null,null,null,null,null,"Select from Drop Down","Select from Drop Down","Select from Drop Down"]
[916,null,null,"Select from Drop Down","Select from Drop Down","Select from Drop Down",null,null,null,null,null,null,null,null,null,null,null,null,"Select from Drop Down","Select from Drop Down","Select from Drop Down"]
[917,null,null,"Select from Drop Down","Select from Drop Down","Select from Drop Down",null,null,null,null,null,null,null,null,null,null,null,null,"Select from Drop Down","Select from Drop Down","Select from Drop Down"]
[918,null,null,"Select from Drop Down","Select from Drop Down","Select from Drop Down",null,null,null,null,null,null,null,null,null,null,null,null,"Select from Drop Down","Select from Drop Down","Select from Drop Down"]
[919,null,null,"Select from Drop Down","Select from Drop Down","Select from Drop Down",null,null,null,null,null,null,null,null,null,null,null,null,"Select from Drop Down","Select from Drop Down","Select from Drop Down"]
[920,null,null,"Select from Drop Down","Select from Drop Down","Select from Drop Down",null,null,null,null,null,null,null,null,null,null,null,null,"Select from Drop Down","Select from Drop Down","Select from Drop Down"]
[921,null,null,"Select from Drop Down","Select from Drop Down","Select from Drop Down",null,null,null,null,null,null,null,null,null,null,null,null,"Select from Drop Down","Select from Drop Down","Select from Drop Down"]
[922,null,null,"Select from Drop Down","Select from Drop Down","Select from Drop Down",null,null,null,null,null,null,null,null,null,null,null,null,"Select from Drop Down","Select from Drop Down","Select from Drop Down"]
[923,null,null,"Select from Drop Down","Select from Drop Down","Select from Drop Down",null,null,null,null,null,null,null,null,null,null,null,null,"Select from Drop Down","Select from Drop Down","Select from Drop Down"]
[924,null,null,"Select from Drop Down","Select from Drop Down","Select from Drop Down",null,null,null,null,null,null,null,null,null,null,null,null,"Select from Drop Down","Select from Drop Down","Select from Drop Down"]
[925,null,null,"Select from Drop Down","Select from Drop Down","Select from Drop Down",null,null,null,null,null,null,null,null,null,null,null,null,"Select from Drop Down","Select from Drop Down","Select from Drop Down"]
[926,null,null,"Select from Drop Down","Select from Drop Down","Select from Drop Down",null,null,null,null,null,null,null,null,null,null,null,null,"Select from Drop Down","Select from Drop Down","Select from Drop Down"]
[927,null,null,"Select from Drop Down","Select from Drop Down","Select from Drop Down",null,null,null,null,null,null,null,null,null,null,null,null,"Select from Drop Down","Select from Drop Down","Select from Drop Down"]
[928,null,null,"Select from Drop Down","Select from Drop Down","Select from Drop Down",null,null,null,null,null,null,null,null,null,null,null,null,"Select from Drop Down","Select from Drop Down","Select from Drop Down"]
[929,null,null,"Select from Drop Down","Select from Drop Down","Select from Drop Down",null,null,null,null,null,null,null,null,null,null,null,null,"Select from Drop Down","Select from Drop Down","Select from Drop Down"]
[930,null,null,"Select from Drop Down","Select from Drop Down","Select from Drop Down",null,null,null,null,null,null,null,null,null,null,null,null,"Select from Drop Down","Select from Drop Down","Select from Drop Down"]
[931,null,null,"Select from Drop Down","Select from Drop Down","Select from Drop Down",null,null,null,null,null,null,null,null,null,null,null,null,"Select from Drop Down","Select from Drop Down","Select from Drop Down"]
[932,null,null,"Select from Drop Down","Select from Drop Down","Select from Drop Down",null,null,null,null,null,null,null,null,null,null,null,null,"Select from Drop Down","Select from Drop Down","Select from Drop Down"]
[933,null,null,"Select from Drop Down","Select from Drop Down","Select from Drop Down",null,null,null,null,null,null,null,null,null,null,null,null,"Select from Drop Down","Select from Drop Down","Select from Drop Down"]
[934,null,null,"Select from Drop Down","Select from Drop Down","Select from Drop Down",null,null,null,null,null,null,null,null,null,null,null,null,"Select from Drop Down","Select from Drop Down","Select from Drop Down"]
[935,null,null,"Select from Drop Down","Select from Drop Down","Select from Drop Down",null,null,null,null,null,null,null,null,null,null,null,null,"Select from Drop Down","Select from Drop Down","Select from Drop Down"]
[936,null,null,"Select from Drop Down","Select from Drop Down","Select from Drop Down",null,null,null,null,null,null,null,null,null,null,null,null,"Select from Drop Down","Select from Drop Down","Select from Drop Down"]
[937,null,null,"Select from Drop Down","Select from Drop Down","Select from Drop Down",null,null,null,null,null,null,null,null,null,null,null,null,"Select from Drop Down","Select from Drop Down","Select from Drop Down"]
[938,null,null,"Select from Drop Down","Select from Drop Down","Select from Drop Down",null,null,null,null,null,null,null,null,null,null,null,null,"Select from Drop Down","Select from Drop Down","Select from Drop Down"]
[939,null,null,"Select from Drop Down","Select from Drop Down","Select from Drop Down",null,null,null,null,null,null,null,null,null,null,null,null,"Select from Drop Down","Select from Drop Down","Select from Drop Down"]
[940,null,null,"Select from Drop Down","Select from Drop Down","Select from Drop Down",null,null,null,null,null,null,null,null,null,null,null,null,"Select from Drop Down","Select from Drop Down","Select from Drop Down"]
[941,null,null,"Select from Drop Down","Select from Drop Down","Select from Drop Down",null,null,null,null,null,null,null,null,null,null,null,null,"Select from Drop Down","Select from Drop Down","Select from Drop Down"]
[942,null,null,"Select from Drop Down","Select from Drop Down","Select from Drop Down",null,null,null,null,null,null,null,null,null,null,null,null,"Select from Drop Down","Select from Drop Down","Select from Drop Down"]
[943,null,null,"Select from Drop Down","Select from Drop Down","Select from Drop Down",null,null,null,null,null,null,null,null,null,null,null,null,"Select from Drop Down","Select from Drop Down","Select from Drop Down"]
[944,null,null,"Select from Drop Down","Select from Drop Down","Select from Drop Down",null,null,null,null,null,null,null,null,null,null,null,null,"Select from Drop Down","Select from Drop Down","Select from Drop Down"]
[945,null,null,"Select from Drop Down","Select from Drop Down","Select from Drop Down",null,null,null,null,null,null,null,null,null,null,null,null,"Select from Drop Down","Select from Drop Down","Select from Drop Down"]
[946,null,null,"Select from Drop Down","Select from Drop Down","Select from Drop Down",null,null,null,null,null,null,null,null,null,null,null,null,"Select from Drop Down","Select from Drop Down","Select from Drop Down"]
[947,null,null,"Select from Drop Down","Select from Drop Down","Select from Drop Down",null,null,null,null,null,null,null,null,null,null,null,null,"Select from Drop Down","Select from Drop Down","Select from Drop Down"]
[948,null,null,"Select from Drop Down","Select from Drop Down","Select from Drop Down",null,null,null,null,null,null,null,null,null,null,null,null,"Select from Drop Down","Select from Drop Down","Select from Drop Down"]
[949,null,null,"Select from Drop Down","Select from Drop Down","Select from Drop Down",null,null,null,null,null,null,null,null,null,null,null,null,"Select from Drop Down","Select from Drop Down","Select from Drop Down"]
[950,null,null,"Select from Drop Down","Select from Drop Down","Select from Drop Down",null,null,null,null,null,null,null,null,null,null,null,null,"Select from Drop Down","Select from Drop Down","Select from Drop Down"]
[951,null,null,"Select from Drop Down","Select from Drop Down","Select from Drop Down",null,null,null,null,null,null,null,null,null,null,null,null,"Select from Drop Down","Select from Drop Down","Select from Drop Down"]
[952,null,null,"Select from Drop Down","Select from Drop Down","Select from Drop Down",null,null,null,null,null,null,null,null,null,null,null,null,"Select from Drop Down","Select from Drop Down","Select from Drop Down"]
[953,null,null,"Select from Drop Down","Select from Drop Down","Select from Drop Down",null,null,null,null,null,null,null,null,null,null,null,null,"Select from Drop Down","Select from Drop Down","Select from Drop Down"]
[954,null,null,"Select from Drop Down","Select from Drop Down","Select from Drop Down",null,null,null,null,null,null,null,null,null,null,null,null,"Select from Drop Down","Select from Drop Down","Select from Drop Down"]
[955,null,null,"Select from Drop Down","Select from Drop Down","Select from Drop Down",null,null,null,null,null,null,null,null,null,null,null,null,"Select from Drop Down","Select from Drop Down","Select from Drop Down"]
[956,null,null,"Select from Drop Down","Select from Drop Down","Select from Drop Down",null,null,null,null,null,null,null,null,null,null,null,null,"Select from Drop Down","Select from Drop Down","Select from Drop Down"]
[957,null,null,"Select from Drop Down","Select from Drop Down","Select from Drop Down",null,null,null,null,null,null,null,null,null,null,null,null,"Select from Drop Down","Select from Drop Down","Select from Drop Down"]
[958,null,null,"Select from Drop Down","Select from Drop Down","Select from Drop Down",null,null,null,null,null,null,null,null,null,null,null,null,"Select from Drop Down","Select from Drop Down","Select from Drop Down"]
[959,null,null,"Select from Drop Down","Select from Drop Down","Select from Drop Down",null,null,null,null,null,null,null,null,null,null,null,null,"Select from Drop Down","Select from Drop Down","Select from Drop Down"]
[960,null,null,"Select from Drop Down","Select from Drop Down","Select from Drop Down",null,null,null,null,null,null,null,null,null,null,null,null,"Select from Drop Down","Select from Drop Down","Select from Drop Down"]
[961,null,null,"Select from Drop Down","Select from Drop Down","Select from Drop Down",null,null,null,null,null,null,null,null,null,null,null,null,"Select from Drop Down","Select from Drop Down","Select from Drop Down"]
[962,null,null,"Select from Drop Down","Select from Drop Down","Select from Drop Down",null,null,null,null,null,null,null,null,null,null,null,null,"Select from Drop Down","Select from Drop Down","Select from Drop Down"]
[{"$f":"A972+1","v":963},null,null,"Select from Drop Down","Select from Drop Down","Select from Drop Down",null,null,null,null,null,null,null,null,null,null,null,null,"Select from Drop Down","Select from Drop Down","Select from Drop Down"]
[964,null,null,"Select from Drop Down","Select from Drop Down","Select from Drop Down",null,null,null,null,null,null,null,null,null,null,null,null,"Select from Drop Down","Select from Drop Down","Select from Drop Down"]
[965,null,null,"Select from Drop Down","Select from Drop Down","Select from Drop Down",null,null,null,null,null,null,null,null,null,null,null,null,"Select from Drop Down","Select from Drop Down","Select from Drop Down"]
[966,null,null,"Select from Drop Down","Select from Drop Down","Select from Drop Down",null,null,null,null,null,null,null,null,null,null,null,null,"Select from Drop Down","Select from Drop Down","Select from Drop Down"]
[967,null,null,"Select from Drop Down","Select from Drop Down","Select from Drop Down",null,null,null,null,null,null,null,null,null,null,null,null,"Select from Drop Down","Select from Drop Down","Select from Drop Down"]
[968,null,null,"Select from Drop Down","Select from Drop Down","Select from Drop Down",null,null,null,null,null,null,null,null,null,null,null,null,"Select from Drop Down","Select from Drop Down","Select from Drop Down"]
[969,null,null,"Select from Drop Down","Select from Drop Down","Select from Drop Down",null,null,null,null,null,null,null,null,null,null,null,null,"Select from Drop Down","Select from Drop Down","Select from Drop Down"]
[970,null,null,"Select from Drop Down","Select from Drop Down","Select from Drop Down",null,null,null,null,null,null,null,null,null,null,null,null,"Select from Drop Down","Select from Drop Down","Select from Drop Down"]
[971,null,null,"Select from Drop Down","Select from Drop Down","Select from Drop Down",null,null,null,null,null,null,null,null,null,null,null,null,"Select from Drop Down","Select from Drop Down","Select from Drop Down"]
[972,null,null,"Select from Drop Down","Select from Drop Down","Select from Drop Down",null,null,null,null,null,null,null,null,null,null,null,null,"Select from Drop Down","Select from Drop Down","Select from Drop Down"]
[973,null,null,"Select from Drop Down","Select from Drop Down","Select from Drop Down",null,null,null,null,null,null,null,null,null,null,null,null,"Select from Drop Down","Select from Drop Down","Select from Drop Down"]
[974,null,null,"Select from Drop Down","Select from Drop Down","Select from Drop Down",null,null,null,null,null,null,null,null,null,null,null,null,"Select from Drop Down","Select from Drop Down","Select from Drop Down"]
[975,null,null,"Select from Drop Down","Select from Drop Down","Select from Drop Down",null,null,null,null,null,null,null,null,null,null,null,null,"Select from Drop Down","Select from Drop Down","Select from Drop Down"]
[976,null,null,"Select from Drop Down","Select from Drop Down","Select from Drop Down",null,null,null,null,null,null,null,null,null,null,null,null,"Select from Drop Down","Select from Drop Down","Select from Drop Down"]
[977,null,null,"Select from Drop Down","Select from Drop Down","Select from Drop Down",null,null,null,null,null,null,null,null,null,null,null,null,"Select from Drop Down","Select from Drop Down","Select from Drop Down"]
[978,null,null,"Select from Drop Down","Select from Drop Down","Select from Drop Down",null,null,null,null,null,null,null,null,null,null,null,null,"Select from Drop Down","Select from Drop Down","Select from Drop Down"]
[979,null,null,"Select from Drop Down","Select from Drop Down","Select from Drop Down",null,null,null,null,null,null,null,null,null,null,null,null,"Select from Drop Down","Select from Drop Down","Select from Drop Down"]
[980,null,null,"Select from Drop Down","Select from Drop Down","Select from Drop Down",null,null,null,null,null,null,null,null,null,null,null,null,"Select from Drop Down","Select from Drop Down","Select from Drop Down"]
[981,null,null,"Select from Drop Down","Select from Drop Down","Select from Drop Down",null,null,null,null,null,null,null,null,null,null,null,null,"Select from Drop Down","Select from Drop Down","Select from Drop Down"]
[982,null,null,"Select from Drop Down","Select from Drop Down","Select from Drop Down",null,null,null,null,null,null,null,null,null,null,null,null,"Select from Drop Down","Select from Drop Down","Select from Drop Down"]
[983,null,null,"Select from Drop Down","Select from Drop Down","Select from Drop Down",null,null,null,null,null,null,null,null,null,null,null,null,"Select from Drop Down","Select from Drop Down","Select from Drop Down"]
[984,null,null,"Select from Drop Down","Select from Drop Down","Select from Drop Down",null,null,null,null,null,null,null,null,null,null,null,null,"Select from Drop Down","Select from Drop Down","Select from Drop Down"]
[985,null,null,"Select from Drop Down","Select from Drop Down","Select from Drop Down",null,null,null,null,null,null,null,null,null,null,null,null,"Select from Drop Down","Select from Drop Down","Select from Drop Down"]
[986,null,null,"Select from Drop Down","Select from Drop Down","Select from Drop Down",null,null,null,null,null,null,null,null,null,null,null,null,"Select from Drop Down","Select from Drop Down","Select from Drop Down"]
[987,null,null,"Select from Drop Down","Select from Drop Down","Select from Drop Down",null,null,null,null,null,null,null,null,null,null,null,null,"Select from Drop Down","Select from Drop Down","Select from Drop Down"]
[988,null,null,"Select from Drop Down","Select from Drop Down","Select from Drop Down",null,null,null,null,null,null,null,null,null,null,null,null,"Select from Drop Down","Select from Drop Down","Select from Drop Down"]
[989,null,null,"Select from Drop Down","Select from Drop Down","Select from Drop Down",null,null,null,null,null,null,null,null,null,null,null,null,"Select from Drop Down","Select from Drop Down","Select from Drop Down"]
[990,null,null,"Select from Drop Down","Select from Drop Down","Select from Drop Down",null,null,null,null,null,null,null,null,null,null,null,null,"Select from Drop Down","Select from Drop Down","Select from Drop Down"]
[991,null,null,"Select from Drop Down","Select from Drop Down","Select from Drop Down",null,null,null,null,null,null,null,null,null,null,null,null,"Select from Drop Down","Select from Drop Down","Select from Drop Down"]
[992,null,null,"Select from Drop Down","Select from Drop Down","Select from Drop Down",null,null,null,null,null,null,null,null,null,null,null,null,"Select from Drop Down","Select from Drop Down","Select from Drop Down"]
[993,null,null,"Select from Drop Down","Select from Drop Down","Select from Drop Down",null,null,null,null,null,null,null,null,null,null,null,null,"Select from Drop Down","Select from Drop Down","Select from Drop Down"]
[994,null,null,"Select from Drop Down","Select from Drop Down","Select from Drop Down",null,null,null,null,null,null,null,null,null,null,null,null,"Select from Drop Down","Select from Drop Down","Select from Drop Down"]
[995,null,null,"Select from Drop Down","Select from Drop Down","Select from Drop Down",null,null,null,null,null,null,null,null,null,null,null,null,"Select from Drop Down","Select from Drop Down","Select from Drop Down"]
[996,null,null,"Select from Drop Down","Select from Drop Down","Select from Drop Down",null,null,null,null,null,null,null,null,null,null,null,null,"Select from Drop Down","Select from Drop Down","Select from Drop Down"]
[997,null,null,"Select from Drop Down","Select from Drop Down","Select from Drop Down",null,null,null,null,null,null,null,null,null,null,null,null,"Select from Drop Down","Select from Drop Down","Select from Drop Down"]
[998,null,null,"Select from Drop Down","Select from Drop Down","Select from Drop Down",null,null,null,null,null,null,null,null,null,null,null,null,"Select from Drop Down","Select from Drop Down","Select from Drop Down"]
[999,null,null,"Select from Drop Down","Select from Drop Down","Select from Drop Down",null,null,null,null,null,null,null,null,null,null,null,null,"Select from Drop Down","Select from Drop Down","Select from Drop Down"]
[1000,null,null,"Select from Drop Down","Select from Drop Down","Select from Drop Down",null,null,null,null,null,null,null,null,null,null,null,null,"Select from Drop Down","Select from Drop Down","Select from Drop Down"]
[1001,null,null,"Select from Drop Down","Select from Drop Down","Select from Drop Down",null,null,null,null,null,null,null,null,null,null,null,null,"Select from Drop Down","Select from Drop Down","Select from Drop Down"]
[1002,null,null,"Select from Drop Down","Select from Drop Down","Select from Drop Down",null,null,null,null,null,null,null,null,null,null,null,null,"Select from Drop Down","Select from Drop Down","Select from Drop Down"]
[1003,null,null,"Select from Drop Down","Select from Drop Down","Select from Drop Down",null,null,null,null,null,null,null,null,null,null,null,null,"Select from Drop Down","Select from Drop Down","Select from Drop Down"]
[1004,null,null,"Select from Drop Down","Select from Drop Down","Select from Drop Down",null,null,null,null,null,null,null,null,null,null,null,null,"Select from Drop Down","Select from Drop Down","Select from Drop Down"]
[1005,null,null,"Select from Drop Down","Select from Drop Down","Select from Drop Down",null,null,null,null,null,null,null,null,null,null,null,null,"Select from Drop Down","Select from Drop Down","Select from Drop Down"]
[1006,null,null,"Select from Drop Down","Select from Drop Down","Select from Drop Down",null,null,null,null,null,null,null,null,null,null,null,null,"Select from Drop Down","Select from Drop Down","Select from Drop Down"]
[1007,null,null,"Select from Drop Down","Select from Drop Down","Select from Drop Down",null,null,null,null,null,null,null,null,null,null,null,null,"Select from Drop Down","Select from Drop Down","Select from Drop Down"]
[1008,null,null,"Select from Drop Down","Select from Drop Down","Select from Drop Down",null,null,null,null,null,null,null,null,null,null,null,null,"Select from Drop Down","Select from Drop Down","Select from Drop Down"]
[1009,null,null,"Select from Drop Down","Select from Drop Down","Select from Drop Down",null,null,null,null,null,null,null,null,null,null,null,null,"Select from Drop Down","Select from Drop Down","Select from Drop Down"]
[1010,null,null,"Select from Drop Down","Select from Drop Down","Select from Drop Down",null,null,null,null,null,null,null,null,null,null,null,null,"Select from Drop Down","Select from Drop Down","Select from Drop Down"]
[1011,null,null,"Select from Drop Down","Select from Drop Down","Select from Drop Down",null,null,null,null,null,null,null,null,null,null,null,null,"Select from Drop Down","Select from Drop Down","Select from Drop Down"]
[1012,null,null,"Select from Drop Down","Select from Drop Down","Select from Drop Down",null,null,null,null,null,null,null,null,null,null,null,null,"Select from Drop Down","Select from Drop Down","Select from Drop Down"]
[1013,null,null,"Select from Drop Down","Select from Drop Down","Select from Drop Down",null,null,null,null,null,null,null,null,null,null,null,null,"Select from Drop Down","Select from Drop Down","Select from Drop Down"]
[1014,null,null,"Select from Drop Down","Select from Drop Down","Select from Drop Down",null,null,null,null,null,null,null,null,null,null,null,null,"Select from Drop Down","Select from Drop Down","Select from Drop Down"]
[1015,null,null,"Select from Drop Down","Select from Drop Down","Select from Drop Down",null,null,null,null,null,null,null,null,null,null,null,null,"Select from Drop Down","Select from Drop Down","Select from Drop Down"]
[1016,null,null,"Select from Drop Down","Select from Drop Down","Select from Drop Down",null,null,null,null,null,null,null,null,null,null,null,null,"Select from Drop Down","Select from Drop Down","Select from Drop Down"]
[1017,null,null,"Select from Drop Down","Select from Drop Down","Select from Drop Down",null,null,null,null,null,null,null,null,null,null,null,null,"Select from Drop Down","Select from Drop Down","Select from Drop Down"]
[1018,null,null,"Select from Drop Down","Select from Drop Down","Select from Drop Down",null,null,null,null,null,null,null,null,null,null,null,null,"Select from Drop Down","Select from Drop Down","Select from Drop Down"]
[1019,null,null,"Select from Drop Down","Select from Drop Down","Select from Drop Down",null,null,null,null,null,null,null,null,null,null,null,null,"Select from Drop Down","Select from Drop Down","Select from Drop Down"]
[1020,null,null,"Select from Drop Down","Select from Drop Down","Select from Drop Down",null,null,null,null,null,null,null,null,null,null,null,null,"Select from Drop Down","Select from Drop Down","Select from Drop Down"]
[1021,null,null,"Select from Drop Down","Select from Drop Down","Select from Drop Down",null,null,null,null,null,null,null,null,null,null,null,null,"Select from Drop Down","Select from Drop Down","Select from Drop Down"]
[1022,null,null,"Select from Drop Down","Select from Drop Down","Select from Drop Down",null,null,null,null,null,null,null,null,null,null,null,null,"Select from Drop Down","Select from Drop Down","Select from Drop Down"]
[1023,null,null,"Select from Drop Down","Select from Drop Down","Select from Drop Down",null,null,null,null,null,null,null,null,null,null,null,null,"Select from Drop Down","Select from Drop Down","Select from Drop Down"]
[1024,null,null,"Select from Drop Down","Select from Drop Down","Select from Drop Down",null,null,null,null,null,null,null,null,null,null,null,null,"Select from Drop Down","Select from Drop Down","Select from Drop Down"]
[1025,null,null,"Select from Drop Down","Select from Drop Down","Select from Drop Down",null,null,null,null,null,null,null,null,null,null,null,null,"Select from Drop Down","Select from Drop Down","Select from Drop Down"]
[1026,null,null,"Select from Drop Down","Select from Drop Down","Select from Drop Down",null,null,null,null,null,null,null,null,null,null,null,null,"Select from Drop Down","Select from Drop Down","Select from Drop Down"]
[{"$f":"A1036+1","v":1027},null,null,"Select from Drop Down","Select from Drop Down","Select from Drop Down",null,null,null,null,null,null,null,null,null,null,null,null,"Select from Drop Down","Select from Drop Down","Select from Drop Down"]
[1028,null,null,"Select from Drop Down","Select from Drop Down","Select from Drop Down",null,null,null,null,null,null,null,null,null,null,null,null,"Select from Drop Down","Select from Drop Down","Select from Drop Down"]
[1029,null,null,"Select from Drop Down","Select from Drop Down","Select from Drop Down",null,null,null,null,null,null,null,null,null,null,null,null,"Select from Drop Down","Select from Drop Down","Select from Drop Down"]
[1030,null,null,"Select from Drop Down","Select from Drop Down","Select from Drop Down",null,null,null,null,null,null,null,null,null,null,null,null,"Select from Drop Down","Select from Drop Down","Select from Drop Down"]
[1031,null,null,"Select from Drop Down","Select from Drop Down","Select from Drop Down",null,null,null,null,null,null,null,null,null,null,null,null,"Select from Drop Down","Select from Drop Down","Select from Drop Down"]
[1032,null,null,"Select from Drop Down","Select from Drop Down","Select from Drop Down",null,null,null,null,null,null,null,null,null,null,null,null,"Select from Drop Down","Select from Drop Down","Select from Drop Down"]
[1033,null,null,"Select from Drop Down","Select from Drop Down","Select from Drop Down",null,null,null,null,null,null,null,null,null,null,null,null,"Select from Drop Down","Select from Drop Down","Select from Drop Down"]
[1034,null,null,"Select from Drop Down","Select from Drop Down","Select from Drop Down",null,null,null,null,null,null,null,null,null,null,null,null,"Select from Drop Down","Select from Drop Down","Select from Drop Down"]
[1035,null,null,"Select from Drop Down","Select from Drop Down","Select from Drop Down",null,null,null,null,null,null,null,null,null,null,null,null,"Select from Drop Down","Select from Drop Down","Select from Drop Down"]
[1036,null,null,"Select from Drop Down","Select from Drop Down","Select from Drop Down",null,null,null,null,null,null,null,null,null,null,null,null,"Select from Drop Down","Select from Drop Down","Select from Drop Down"]
[1037,null,null,"Select from Drop Down","Select from Drop Down","Select from Drop Down",null,null,null,null,null,null,null,null,null,null,null,null,"Select from Drop Down","Select from Drop Down","Select from Drop Down"]
[1038,null,null,"Select from Drop Down","Select from Drop Down","Select from Drop Down",null,null,null,null,null,null,null,null,null,null,null,null,"Select from Drop Down","Select from Drop Down","Select from Drop Down"]
[1039,null,null,"Select from Drop Down","Select from Drop Down","Select from Drop Down",null,null,null,null,null,null,null,null,null,null,null,null,"Select from Drop Down","Select from Drop Down","Select from Drop Down"]
[1040,null,null,"Select from Drop Down","Select from Drop Down","Select from Drop Down",null,null,null,null,null,null,null,null,null,null,null,null,"Select from Drop Down","Select from Drop Down","Select from Drop Down"]
[1041,null,null,"Select from Drop Down","Select from Drop Down","Select from Drop Down",null,null,null,null,null,null,null,null,null,null,null,null,"Select from Drop Down","Select from Drop Down","Select from Drop Down"]
[1042,null,null,"Select from Drop Down","Select from Drop Down","Select from Drop Down",null,null,null,null,null,null,null,null,null,null,null,null,"Select from Drop Down","Select from Drop Down","Select from Drop Down"]
[1043,null,null,"Select from Drop Down","Select from Drop Down","Select from Drop Down",null,null,null,null,null,null,null,null,null,null,null,null,"Select from Drop Down","Select from Drop Down","Select from Drop Down"]
[1044,null,null,"Select from Drop Down","Select from Drop Down","Select from Drop Down",null,null,null,null,null,null,null,null,null,null,null,null,"Select from Drop Down","Select from Drop Down","Select from Drop Down"]
[1045,null,null,"Select from Drop Down","Select from Drop Down","Select from Drop Down",null,null,null,null,null,null,null,null,null,null,null,null,"Select from Drop Down","Select from Drop Down","Select from Drop Down"]
[1046,null,null,"Select from Drop Down","Select from Drop Down","Select from Drop Down",null,null,null,null,null,null,null,null,null,null,null,null,"Select from Drop Down","Select from Drop Down","Select from Drop Down"]
[1047,null,null,"Select from Drop Down","Select from Drop Down","Select from Drop Down",null,null,null,null,null,null,null,null,null,null,null,null,"Select from Drop Down","Select from Drop Down","Select from Drop Down"]
[1048,null,null,"Select from Drop Down","Select from Drop Down","Select from Drop Down",null,null,null,null,null,null,null,null,null,null,null,null,"Select from Drop Down","Select from Drop Down","Select from Drop Down"]
[1049,null,null,"Select from Drop Down","Select from Drop Down","Select from Drop Down",null,null,null,null,null,null,null,null,null,null,null,null,"Select from Drop Down","Select from Drop Down","Select from Drop Down"]
[1050,null,null,"Select from Drop Down","Select from Drop Down","Select from Drop Down",null,null,null,null,null,null,null,null,null,null,null,null,"Select from Drop Down","Select from Drop Down","Select from Drop Down"]
[1051,null,null,"Select from Drop Down","Select from Drop Down","Select from Drop Down",null,null,null,null,null,null,null,null,null,null,null,null,"Select from Drop Down","Select from Drop Down","Select from Drop Down"]
[1052,null,null,"Select from Drop Down","Select from Drop Down","Select from Drop Down",null,null,null,null,null,null,null,null,null,null,null,null,"Select from Drop Down","Select from Drop Down","Select from Drop Down"]
[1053,null,null,"Select from Drop Down","Select from Drop Down","Select from Drop Down",null,null,null,null,null,null,null,null,null,null,null,null,"Select from Drop Down","Select from Drop Down","Select from Drop Down"]
[1054,null,null,"Select from Drop Down","Select from Drop Down","Select from Drop Down",null,null,null,null,null,null,null,null,null,null,null,null,"Select from Drop Down","Select from Drop Down","Select from Drop Down"]
[1055,null,null,"Select from Drop Down","Select from Drop Down","Select from Drop Down",null,null,null,null,null,null,null,null,null,null,null,null,"Select from Drop Down","Select from Drop Down","Select from Drop Down"]
[1056,null,null,"Select from Drop Down","Select from Drop Down","Select from Drop Down",null,null,null,null,null,null,null,null,null,null,null,null,"Select from Drop Down","Select from Drop Down","Select from Drop Down"]
[1057,null,null,"Select from Drop Down","Select from Drop Down","Select from Drop Down",null,null,null,null,null,null,null,null,null,null,null,null,"Select from Drop Down","Select from Drop Down","Select from Drop Down"]
[1058,null,null,"Select from Drop Down","Select from Drop Down","Select from Drop Down",null,null,null,null,null,null,null,null,null,null,null,null,"Select from Drop Down","Select from Drop Down","Select from Drop Down"]
[1059,null,null,"Select from Drop Down","Select from Drop Down","Select from Drop Down",null,null,null,null,null,null,null,null,null,null,null,null,"Select from Drop Down","Select from Drop Down","Select from Drop Down"]
[1060,null,null,"Select from Drop Down","Select from Drop Down","Select from Drop Down",null,null,null,null,null,null,null,null,null,null,null,null,"Select from Drop Down","Select from Drop Down","Select from Drop Down"]
[1061,null,null,"Select from Drop Down","Select from Drop Down","Select from Drop Down",null,null,null,null,null,null,null,null,null,null,null,null,"Select from Drop Down","Select from Drop Down","Select from Drop Down"]
[1062,null,null,"Select from Drop Down","Select from Drop Down","Select from Drop Down",null,null,null,null,null,null,null,null,null,null,null,null,"Select from Drop Down","Select from Drop Down","Select from Drop Down"]
[1063,null,null,"Select from Drop Down","Select from Drop Down","Select from Drop Down",null,null,null,null,null,null,null,null,null,null,null,null,"Select from Drop Down","Select from Drop Down","Select from Drop Down"]
[1064,null,null,"Select from Drop Down","Select from Drop Down","Select from Drop Down",null,null,null,null,null,null,null,null,null,null,null,null,"Select from Drop Down","Select from Drop Down","Select from Drop Down"]
[1065,null,null,"Select from Drop Down","Select from Drop Down","Select from Drop Down",null,null,null,null,null,null,null,null,null,null,null,null,"Select from Drop Down","Select from Drop Down","Select from Drop Down"]
[1066,null,null,"Select from Drop Down","Select from Drop Down","Select from Drop Down",null,null,null,null,null,null,null,null,null,null,null,null,"Select from Drop Down","Select from Drop Down","Select from Drop Down"]
[1067,null,null,"Select from Drop Down","Select from Drop Down","Select from Drop Down",null,null,null,null,null,null,null,null,null,null,null,null,"Select from Drop Down","Select from Drop Down","Select from Drop Down"]
[1068,null,null,"Select from Drop Down","Select from Drop Down","Select from Drop Down",null,null,null,null,null,null,null,null,null,null,null,null,"Select from Drop Down","Select from Drop Down","Select from Drop Down"]
[1069,null,null,"Select from Drop Down","Select from Drop Down","Select from Drop Down",null,null,null,null,null,null,null,null,null,null,null,null,"Select from Drop Down","Select from Drop Down","Select from Drop Down"]
[1070,null,null,"Select from Drop Down","Select from Drop Down","Select from Drop Down",null,null,null,null,null,null,null,null,null,null,null,null,"Select from Drop Down","Select from Drop Down","Select from Drop Down"]
[1071,null,null,"Select from Drop Down","Select from Drop Down","Select from Drop Down",null,null,null,null,null,null,null,null,null,null,null,null,"Select from Drop Down","Select from Drop Down","Select from Drop Down"]
[1072,null,null,"Select from Drop Down","Select from Drop Down","Select from Drop Down",null,null,null,null,null,null,null,null,null,null,null,null,"Select from Drop Down","Select from Drop Down","Select from Drop Down"]
[1073,null,null,"Select from Drop Down","Select from Drop Down","Select from Drop Down",null,null,null,null,null,null,null,null,null,null,null,null,"Select from Drop Down","Select from Drop Down","Select from Drop Down"]
[1074,null,null,"Select from Drop Down","Select from Drop Down","Select from Drop Down",null,null,null,null,null,null,null,null,null,null,null,null,"Select from Drop Down","Select from Drop Down","Select from Drop Down"]
[1075,null,null,"Select from Drop Down","Select from Drop Down","Select from Drop Down",null,null,null,null,null,null,null,null,null,null,null,null,"Select from Drop Down","Select from Drop Down","Select from Drop Down"]
[1076,null,null,"Select from Drop Down","Select from Drop Down","Select from Drop Down",null,null,null,null,null,null,null,null,null,null,null,null,"Select from Drop Down","Select from Drop Down","Select from Drop Down"]
[1077,null,null,"Select from Drop Down","Select from Drop Down","Select from Drop Down",null,null,null,null,null,null,null,null,null,null,null,null,"Select from Drop Down","Select from Drop Down","Select from Drop Down"]
[1078,null,null,"Select from Drop Down","Select from Drop Down","Select from Drop Down",null,null,null,null,null,null,null,null,null,null,null,null,"Select from Drop Down","Select from Drop Down","Select from Drop Down"]
[1079,null,null,"Select from Drop Down","Select from Drop Down","Select from Drop Down",null,null,null,null,null,null,null,null,null,null,null,null,"Select from Drop Down","Select from Drop Down","Select from Drop Down"]
[1080,null,null,"Select from Drop Down","Select from Drop Down","Select from Drop Down",null,null,null,null,null,null,null,null,null,null,null,null,"Select from Drop Down","Select from Drop Down","Select from Drop Down"]
[1081,null,null,"Select from Drop Down","Select from Drop Down","Select from Drop Down",null,null,null,null,null,null,null,null,null,null,null,null,"Select from Drop Down","Select from Drop Down","Select from Drop Down"]
[1082,null,null,"Select from Drop Down","Select from Drop Down","Select from Drop Down",null,null,null,null,null,null,null,null,null,null,null,null,"Select from Drop Down","Select from Drop Down","Select from Drop Down"]
[1083,null,null,"Select from Drop Down","Select from Drop Down","Select from Drop Down",null,null,null,null,null,null,null,null,null,null,null,null,"Select from Drop Down","Select from Drop Down","Select from Drop Down"]
[1084,null,null,"Select from Drop Down","Select from Drop Down","Select from Drop Down",null,null,null,null,null,null,null,null,null,null,null,null,"Select from Drop Down","Select from Drop Down","Select from Drop Down"]
[1085,null,null,"Select from Drop Down","Select from Drop Down","Select from Drop Down",null,null,null,null,null,null,null,null,null,null,null,null,"Select from Drop Down","Select from Drop Down","Select from Drop Down"]
[1086,null,null,"Select from Drop Down","Select from Drop Down","Select from Drop Down",null,null,null,null,null,null,null,null,null,null,null,null,"Select from Drop Down","Select from Drop Down","Select from Drop Down"]
[1087,null,null,"Select from Drop Down","Select from Drop Down","Select from Drop Down",null,null,null,null,null,null,null,null,null,null,null,null,"Select from Drop Down","Select from Drop Down","Select from Drop Down"]
[1088,null,null,"Select from Drop Down","Select from Drop Down","Select from Drop Down",null,null,null,null,null,null,null,null,null,null,null,null,"Select from Drop Down","Select from Drop Down","Select from Drop Down"]
[1089,null,null,"Select from Drop Down","Select from Drop Down","Select from Drop Down",null,null,null,null,null,null,null,null,null,null,null,null,"Select from Drop Down","Select from Drop Down","Select from Drop Down"]
[1090,null,null,"Select from Drop Down","Select from Drop Down","Select from Drop Down",null,null,null,null,null,null,null,null,null,null,null,null,"Select from Drop Down","Select from Drop Down","Select from Drop Down"]
[{"$f":"A1100+1","v":1091},null,null,"Select from Drop Down","Select from Drop Down","Select from Drop Down",null,null,null,null,null,null,null,null,null,null,null,null,"Select from Drop Down","Select from Drop Down","Select from Drop Down"]
[1092,null,null,"Select from Drop Down","Select from Drop Down","Select from Drop Down",null,null,null,null,null,null,null,null,null,null,null,null,"Select from Drop Down","Select from Drop Down","Select from Drop Down"]
[1093,null,null,"Select from Drop Down","Select from Drop Down","Select from Drop Down",null,null,null,null,null,null,null,null,null,null,null,null,"Select from Drop Down","Select from Drop Down","Select from Drop Down"]
[1094,null,null,"Select from Drop Down","Select from Drop Down","Select from Drop Down",null,null,null,null,null,null,null,null,null,null,null,null,"Select from Drop Down","Select from Drop Down","Select from Drop Down"]
[1095,null,null,"Select from Drop Down","Select from Drop Down","Select from Drop Down",null,null,null,null,null,null,null,null,null,null,null,null,"Select from Drop Down","Select from Drop Down","Select from Drop Down"]
[1096,null,null,"Select from Drop Down","Select from Drop Down","Select from Drop Down",null,null,null,null,null,null,null,null,null,null,null,null,"Select from Drop Down","Select from Drop Down","Select from Drop Down"]
[1097,null,null,"Select from Drop Down","Select from Drop Down","Select from Drop Down",null,null,null,null,null,null,null,null,null,null,null,null,"Select from Drop Down","Select from Drop Down","Select from Drop Down"]
[1098,null,null,"Select from Drop Down","Select from Drop Down","Select from Drop Down",null,null,null,null,null,null,null,null,null,null,null,null,"Select from Drop Down","Select from Drop Down","Select from Drop Down"]
[1099,null,null,"Select from Drop Down","Select from Drop Down","Select from Drop Down",null,null,null,null,null,null,null,null,null,null,null,null,"Select from Drop Down","Select from Drop Down","Select from Drop Down"]
[1100,null,null,"Select from Drop Down","Select from Drop Down","Select from Drop Down",null,null,null,null,null,null,null,null,null,null,null,null,"Select from Drop Down","Select from Drop Down","Select from Drop Down"]
[1101,null,null,"Select from Drop Down","Select from Drop Down","Select from Drop Down",null,null,null,null,null,null,null,null,null,null,null,null,"Select from Drop Down","Select from Drop Down","Select from Drop Down"]
[1102,null,null,"Select from Drop Down","Select from Drop Down","Select from Drop Down",null,null,null,null,null,null,null,null,null,null,null,null,"Select from Drop Down","Select from Drop Down","Select from Drop Down"]
[1103,null,null,"Select from Drop Down","Select from Drop Down","Select from Drop Down",null,null,null,null,null,null,null,null,null,null,null,null,"Select from Drop Down","Select from Drop Down","Select from Drop Down"]
[1104,null,null,"Select from Drop Down","Select from Drop Down","Select from Drop Down",null,null,null,null,null,null,null,null,null,null,null,null,"Select from Drop Down","Select from Drop Down","Select from Drop Down"]
[1105,null,null,"Select from Drop Down","Select from Drop Down","Select from Drop Down",null,null,null,null,null,null,null,null,null,null,null,null,"Select from Drop Down","Select from Drop Down","Select from Drop Down"]
[1106,null,null,"Select from Drop Down","Select from Drop Down","Select from Drop Down",null,null,null,null,null,null,null,null,null,null,null,null,"Select from Drop Down","Select from Drop Down","Select from Drop Down"]
[1107,null,null,"Select from Drop Down","Select from Drop Down","Select from Drop Down",null,null,null,null,null,null,null,null,null,null,null,null,"Select from Drop Down","Select from Drop Down","Select from Drop Down"]
[1108,null,null,"Select from Drop Down","Select from Drop Down","Select from Drop Down",null,null,null,null,null,null,null,null,null,null,null,null,"Select from Drop Down","Select from Drop Down","Select from Drop Down"]
[1109,null,null,"Select from Drop Down","Select from Drop Down","Select from Drop Down",null,null,null,null,null,null,null,null,null,null,null,null,"Select from Drop Down","Select from Drop Down","Select from Drop Down"]
[1110,null,null,"Select from Drop Down","Select from Drop Down","Select from Drop Down",null,null,null,null,null,null,null,null,null,null,null,null,"Select from Drop Down","Select from Drop Down","Select from Drop Down"]
[1111,null,null,"Select from Drop Down","Select from Drop Down","Select from Drop Down",null,null,null,null,null,null,null,null,null,null,null,null,"Select from Drop Down","Select from Drop Down","Select from Drop Down"]
[1112,null,null,"Select from Drop Down","Select from Drop Down","Select from Drop Down",null,null,null,null,null,null,null,null,null,null,null,null,"Select from Drop Down","Select from Drop Down","Select from Drop Down"]
[1113,null,null,"Select from Drop Down","Select from Drop Down","Select from Drop Down",null,null,null,null,null,null,null,null,null,null,null,null,"Select from Drop Down","Select from Drop Down","Select from Drop Down"]
[1114,null,null,"Select from Drop Down","Select from Drop Down","Select from Drop Down",null,null,null,null,null,null,null,null,null,null,null,null,"Select from Drop Down","Select from Drop Down","Select from Drop Down"]
[1115,null,null,"Select from Drop Down","Select from Drop Down","Select from Drop Down",null,null,null,null,null,null,null,null,null,null,null,null,"Select from Drop Down","Select from Drop Down","Select from Drop Down"]
[1116,null,null,"Select from Drop Down","Select from Drop Down","Select from Drop Down",null,null,null,null,null,null,null,null,null,null,null,null,"Select from Drop Down","Select from Drop Down","Select from Drop Down"]
[1117,null,null,"Select from Drop Down","Select from Drop Down","Select from Drop Down",null,null,null,null,null,null,null,null,null,null,null,null,"Select from Drop Down","Select from Drop Down","Select from Drop Down"]
[1118,null,null,"Select from Drop Down","Select from Drop Down","Select from Drop Down",null,null,null,null,null,null,null,null,null,null,null,null,"Select from Drop Down","Select from Drop Down","Select from Drop Down"]
[1119,null,null,"Select from Drop Down","Select from Drop Down","Select from Drop Down",null,null,null,null,null,null,null,null,null,null,null,null,"Select from Drop Down","Select from Drop Down","Select from Drop Down"]
[1120,null,null,"Select from Drop Down","Select from Drop Down","Select from Drop Down",null,null,null,null,null,null,null,null,null,null,null,null,"Select from Drop Down","Select from Drop Down","Select from Drop Down"]
[1121,null,null,"Select from Drop Down","Select from Drop Down","Select from Drop Down",null,null,null,null,null,null,null,null,null,null,null,null,"Select from Drop Down","Select from Drop Down","Select from Drop Down"]
[1122,null,null,"Select from Drop Down","Select from Drop Down","Select from Drop Down",null,null,null,null,null,null,null,null,null,null,null,null,"Select from Drop Down","Select from Drop Down","Select from Drop Down"]
[1123,null,null,"Select from Drop Down","Select from Drop Down","Select from Drop Down",null,null,null,null,null,null,null,null,null,null,null,null,"Select from Drop Down","Select from Drop Down","Select from Drop Down"]
[1124,null,null,"Select from Drop Down","Select from Drop Down","Select from Drop Down",null,null,null,null,null,null,null,null,null,null,null,null,"Select from Drop Down","Select from Drop Down","Select from Drop Down"]
[1125,null,null,"Select from Drop Down","Select from Drop Down","Select from Drop Down",null,null,null,null,null,null,null,null,null,null,null,null,"Select from Drop Down","Select from Drop Down","Select from Drop Down"]
[1126,null,null,"Select from Drop Down","Select from Drop Down","Select from Drop Down",null,null,null,null,null,null,null,null,null,null,null,null,"Select from Drop Down","Select from Drop Down","Select from Drop Down"]
[1127,null,null,"Select from Drop Down","Select from Drop Down","Select from Drop Down",null,null,null,null,null,null,null,null,null,null,null,null,"Select from Drop Down","Select from Drop Down","Select from Drop Down"]
[1128,null,null,"Select from Drop Down","Select from Drop Down","Select from Drop Down",null,null,null,null,null,null,null,null,null,null,null,null,"Select from Drop Down","Select from Drop Down","Select from Drop Down"]
[1129,null,null,"Select from Drop Down","Select from Drop Down","Select from Drop Down",null,null,null,null,null,null,null,null,null,null,null,null,"Select from Drop Down","Select from Drop Down","Select from Drop Down"]
[1130,null,null,"Select from Drop Down","Select from Drop Down","Select from Drop Down",null,null,null,null,null,null,null,null,null,null,null,null,"Select from Drop Down","Select from Drop Down","Select from Drop Down"]
[1131,null,null,"Select from Drop Down","Select from Drop Down","Select from Drop Down",null,null,null,null,null,null,null,null,null,null,null,null,"Select from Drop Down","Select from Drop Down","Select from Drop Down"]
[1132,null,null,"Select from Drop Down","Select from Drop Down","Select from Drop Down",null,null,null,null,null,null,null,null,null,null,null,null,"Select from Drop Down","Select from Drop Down","Select from Drop Down"]
[1133,null,null,"Select from Drop Down","Select from Drop Down","Select from Drop Down",null,null,null,null,null,null,null,null,null,null,null,null,"Select from Drop Down","Select from Drop Down","Select from Drop Down"]
[1134,null,null,"Select from Drop Down","Select from Drop Down","Select from Drop Down",null,null,null,null,null,null,null,null,null,null,null,null,"Select from Drop Down","Select from Drop Down","Select from Drop Down"]
[1135,null,null,"Select from Drop Down","Select from Drop Down","Select from Drop Down",null,null,null,null,null,null,null,null,null,null,null,null,"Select from Drop Down","Select from Drop Down","Select from Drop Down"]
[1136,null,null,"Select from Drop Down","Select from Drop Down","Select from Drop Down",null,null,null,null,null,null,null,null,null,null,null,null,"Select from Drop Down","Select from Drop Down","Select from Drop Down"]
[1137,null,null,"Select from Drop Down","Select from Drop Down","Select from Drop Down",null,null,null,null,null,null,null,null,null,null,null,null,"Select from Drop Down","Select from Drop Down","Select from Drop Down"]
[1138,null,null,"Select from Drop Down","Select from Drop Down","Select from Drop Down",null,null,null,null,null,null,null,null,null,null,null,null,"Select from Drop Down","Select from Drop Down","Select from Drop Down"]
[1139,null,null,"Select from Drop Down","Select from Drop Down","Select from Drop Down",null,null,null,null,null,null,null,null,null,null,null,null,"Select from Drop Down","Select from Drop Down","Select from Drop Down"]
[1140,null,null,"Select from Drop Down","Select from Drop Down","Select from Drop Down",null,null,null,null,null,null,null,null,null,null,null,null,"Select from Drop Down","Select from Drop Down","Select from Drop Down"]
[1141,null,null,"Select from Drop Down","Select from Drop Down","Select from Drop Down",null,null,null,null,null,null,null,null,null,null,null,null,"Select from Drop Down","Select from Drop Down","Select from Drop Down"]
[1142,null,null,"Select from Drop Down","Select from Drop Down","Select from Drop Down",null,null,null,null,null,null,null,null,null,null,null,null,"Select from Drop Down","Select from Drop Down","Select from Drop Down"]
[1143,null,null,"Select from Drop Down","Select from Drop Down","Select from Drop Down",null,null,null,null,null,null,null,null,null,null,null,null,"Select from Drop Down","Select from Drop Down","Select from Drop Down"]
[1144,null,null,"Select from Drop Down","Select from Drop Down","Select from Drop Down",null,null,null,null,null,null,null,null,null,null,null,null,"Select from Drop Down","Select from Drop Down","Select from Drop Down"]
[1145,null,null,"Select from Drop Down","Select from Drop Down","Select from Drop Down",null,null,null,null,null,null,null,null,null,null,null,null,"Select from Drop Down","Select from Drop Down","Select from Drop Down"]
[1146,null,null,"Select from Drop Down","Select from Drop Down","Select from Drop Down",null,null,null,null,null,null,null,null,null,null,null,null,"Select from Drop Down","Select from Drop Down","Select from Drop Down"]
[1147,null,null,"Select from Drop Down","Select from Drop Down","Select from Drop Down",null,null,null,null,null,null,null,null,null,null,null,null,"Select from Drop Down","Select from Drop Down","Select from Drop Down"]
[1148,null,null,"Select from Drop Down","Select from Drop Down","Select from Drop Down",null,null,null,null,null,null,null,null,null,null,null,null,"Select from Drop Down","Select from Drop Down","Select from Drop Down"]
[1149,null,null,"Select from Drop Down","Select from Drop Down","Select from Drop Down",null,null,null,null,null,null,null,null,null,null,null,null,"Select from Drop Down","Select from Drop Down","Select from Drop Down"]
[1150,null,null,"Select from Drop Down","Select from Drop Down","Select from Drop Down",null,null,null,null,null,null,null,null,null,null,null,null,"Select from Drop Down","Select from Drop Down","Select from Drop Down"]
[1151,null,null,"Select from Drop Down","Select from Drop Down","Select from Drop Down",null,null,null,null,null,null,null,null,null,null,null,null,"Select from Drop Down","Select from Drop Down","Select from Drop Down"]
[1152,null,null,"Select from Drop Down","Select from Drop Down","Select from Drop Down",null,null,null,null,null,null,null,null,null,null,null,null,"Select from Drop Down","Select from Drop Down","Select from Drop Down"]
[1153,null,null,"Select from Drop Down","Select from Drop Down","Select from Drop Down",null,null,null,null,null,null,null,null,null,null,null,null,"Select from Drop Down","Select from Drop Down","Select from Drop Down"]
[1154,null,null,"Select from Drop Down","Select from Drop Down","Select from Drop Down",null,null,null,null,null,null,null,null,null,null,null,null,"Select from Drop Down","Select from Drop Down","Select from Drop Down"]
[{"$f":"A1164+1","v":1155},null,null,"Select from Drop Down","Select from Drop Down","Select from Drop Down",null,null,null,null,null,null,null,null,null,null,null,null,"Select from Drop Down","Select from Drop Down","Select from Drop Down"]
[1156,null,null,"Select from Drop Down","Select from Drop Down","Select from Drop Down",null,null,null,null,null,null,null,null,null,null,null,null,"Select from Drop Down","Select from Drop Down","Select from Drop Down"]
[1157,null,null,"Select from Drop Down","Select from Drop Down","Select from Drop Down",null,null,null,null,null,null,null,null,null,null,null,null,"Select from Drop Down","Select from Drop Down","Select from Drop Down"]
[1158,null,null,"Select from Drop Down","Select from Drop Down","Select from Drop Down",null,null,null,null,null,null,null,null,null,null,null,null,"Select from Drop Down","Select from Drop Down","Select from Drop Down"]
[1159,null,null,"Select from Drop Down","Select from Drop Down","Select from Drop Down",null,null,null,null,null,null,null,null,null,null,null,null,"Select from Drop Down","Select from Drop Down","Select from Drop Down"]
[1160,null,null,"Select from Drop Down","Select from Drop Down","Select from Drop Down",null,null,null,null,null,null,null,null,null,null,null,null,"Select from Drop Down","Select from Drop Down","Select from Drop Down"]
[1161,null,null,"Select from Drop Down","Select from Drop Down","Select from Drop Down",null,null,null,null,null,null,null,null,null,null,null,null,"Select from Drop Down","Select from Drop Down","Select from Drop Down"]
[1162,null,null,"Select from Drop Down","Select from Drop Down","Select from Drop Down",null,null,null,null,null,null,null,null,null,null,null,null,"Select from Drop Down","Select from Drop Down","Select from Drop Down"]
[1163,null,null,"Select from Drop Down","Select from Drop Down","Select from Drop Down",null,null,null,null,null,null,null,null,null,null,null,null,"Select from Drop Down","Select from Drop Down","Select from Drop Down"]
[1164,null,null,"Select from Drop Down","Select from Drop Down","Select from Drop Down",null,null,null,null,null,null,null,null,null,null,null,null,"Select from Drop Down","Select from Drop Down","Select from Drop Down"]
[1165,null,null,"Select from Drop Down","Select from Drop Down","Select from Drop Down",null,null,null,null,null,null,null,null,null,null,null,null,"Select from Drop Down","Select from Drop Down","Select from Drop Down"]
[1166,null,null,"Select from Drop Down","Select from Drop Down","Select from Drop Down",null,null,null,null,null,null,null,null,null,null,null,null,"Select from Drop Down","Select from Drop Down","Select from Drop Down"]
[1167,null,null,"Select from Drop Down","Select from Drop Down","Select from Drop Down",null,null,null,null,null,null,null,null,null,null,null,null,"Select from Drop Down","Select from Drop Down","Select from Drop Down"]
[1168,null,null,"Select from Drop Down","Select from Drop Down","Select from Drop Down",null,null,null,null,null,null,null,null,null,null,null,null,"Select from Drop Down","Select from Drop Down","Select from Drop Down"]
[1169,null,null,"Select from Drop Down","Select from Drop Down","Select from Drop Down",null,null,null,null,null,null,null,null,null,null,null,null,"Select from Drop Down","Select from Drop Down","Select from Drop Down"]
[1170,null,null,"Select from Drop Down","Select from Drop Down","Select from Drop Down",null,null,null,null,null,null,null,null,null,null,null,null,"Select from Drop Down","Select from Drop Down","Select from Drop Down"]
[1171,null,null,"Select from Drop Down","Select from Drop Down","Select from Drop Down",null,null,null,null,null,null,null,null,null,null,null,null,"Select from Drop Down","Select from Drop Down","Select from Drop Down"]
[1172,null,null,"Select from Drop Down","Select from Drop Down","Select from Drop Down",null,null,null,null,null,null,null,null,null,null,null,null,"Select from Drop Down","Select from Drop Down","Select from Drop Down"]
[1173,null,null,"Select from Drop Down","Select from Drop Down","Select from Drop Down",null,null,null,null,null,null,null,null,null,null,null,null,"Select from Drop Down","Select from Drop Down","Select from Drop Down"]
[1174,null,null,"Select from Drop Down","Select from Drop Down","Select from Drop Down",null,null,null,null,null,null,null,null,null,null,null,null,"Select from Drop Down","Select from Drop Down","Select from Drop Down"]
[1175,null,null,"Select from Drop Down","Select from Drop Down","Select from Drop Down",null,null,null,null,null,null,null,null,null,null,null,null,"Select from Drop Down","Select from Drop Down","Select from Drop Down"]
[1176,null,null,"Select from Drop Down","Select from Drop Down","Select from Drop Down",null,null,null,null,null,null,null,null,null,null,null,null,"Select from Drop Down","Select from Drop Down","Select from Drop Down"]
[1177,null,null,"Select from Drop Down","Select from Drop Down","Select from Drop Down",null,null,null,null,null,null,null,null,null,null,null,null,"Select from Drop Down","Select from Drop Down","Select from Drop Down"]
[1178,null,null,"Select from Drop Down","Select from Drop Down","Select from Drop Down",null,null,null,null,null,null,null,null,null,null,null,null,"Select from Drop Down","Select from Drop Down","Select from Drop Down"]
[1179,null,null,"Select from Drop Down","Select from Drop Down","Select from Drop Down",null,null,null,null,null,null,null,null,null,null,null,null,"Select from Drop Down","Select from Drop Down","Select from Drop Down"]
[1180,null,null,"Select from Drop Down","Select from Drop Down","Select from Drop Down",null,null,null,null,null,null,null,null,null,null,null,null,"Select from Drop Down","Select from Drop Down","Select from Drop Down"]
[1181,null,null,"Select from Drop Down","Select from Drop Down","Select from Drop Down",null,null,null,null,null,null,null,null,null,null,null,null,"Select from Drop Down","Select from Drop Down","Select from Drop Down"]
[1182,null,null,"Select from Drop Down","Select from Drop Down","Select from Drop Down",null,null,null,null,null,null,null,null,null,null,null,null,"Select from Drop Down","Select from Drop Down","Select from Drop Down"]
[1183,null,null,"Select from Drop Down","Select from Drop Down","Select from Drop Down",null,null,null,null,null,null,null,null,null,null,null,null,"Select from Drop Down","Select from Drop Down","Select from Drop Down"]
[1184,null,null,"Select from Drop Down","Select from Drop Down","Select from Drop Down",null,null,null,null,null,null,null,null,null,null,null,null,"Select from Drop Down","Select from Drop Down","Select from Drop Down"]
[1185,null,null,"Select from Drop Down","Select from Drop Down","Select from Drop Down",null,null,null,null,null,null,null,null,null,null,null,null,"Select from Drop Down","Select from Drop Down","Select from Drop Down"]
[1186,null,null,"Select from Drop Down","Select from Drop Down","Select from Drop Down",null,null,null,null,null,null,null,null,null,null,null,null,"Select from Drop Down","Select from Drop Down","Select from Drop Down"]
[1187,null,null,"Select from Drop Down","Select from Drop Down","Select from Drop Down",null,null,null,null,null,null,null,null,null,null,null,null,"Select from Drop Down","Select from Drop Down","Select from Drop Down"]
[1188,null,null,"Select from Drop Down","Select from Drop Down","Select from Drop Down",null,null,null,null,null,null,null,null,null,null,null,null,"Select from Drop Down","Select from Drop Down","Select from Drop Down"]
[1189,null,null,"Select from Drop Down","Select from Drop Down","Select from Drop Down",null,null,null,null,null,null,null,null,null,null,null,null,"Select from Drop Down","Select from Drop Down","Select from Drop Down"]
[1190,null,null,"Select from Drop Down","Select from Drop Down","Select from Drop Down",null,null,null,null,null,null,null,null,null,null,null,null,"Select from Drop Down","Select from Drop Down","Select from Drop Down"]
[1191,null,null,"Select from Drop Down","Select from Drop Down","Select from Drop Down",null,null,null,null,null,null,null,null,null,null,null,null,"Select from Drop Down","Select from Drop Down","Select from Drop Down"]
[1192,null,null,"Select from Drop Down","Select from Drop Down","Select from Drop Down",null,null,null,null,null,null,null,null,null,null,null,null,"Select from Drop Down","Select from Drop Down","Select from Drop Down"]
[1193,null,null,"Select from Drop Down","Select from Drop Down","Select from Drop Down",null,null,null,null,null,null,null,null,null,null,null,null,"Select from Drop Down","Select from Drop Down","Select from Drop Down"]
[1194,null,null,"Select from Drop Down","Select from Drop Down","Select from Drop Down",null,null,null,null,null,null,null,null,null,null,null,null,"Select from Drop Down","Select from Drop Down","Select from Drop Down"]
[1195,null,null,"Select from Drop Down","Select from Drop Down","Select from Drop Down",null,null,null,null,null,null,null,null,null,null,null,null,"Select from Drop Down","Select from Drop Down","Select from Drop Down"]
[1196,null,null,"Select from Drop Down","Select from Drop Down","Select from Drop Down",null,null,null,null,null,null,null,null,null,null,null,null,"Select from Drop Down","Select from Drop Down","Select from Drop Down"]
[1197,null,null,"Select from Drop Down","Select from Drop Down","Select from Drop Down",null,null,null,null,null,null,null,null,null,null,null,null,"Select from Drop Down","Select from Drop Down","Select from Drop Down"]
[1198,null,null,"Select from Drop Down","Select from Drop Down","Select from Drop Down",null,null,null,null,null,null,null,null,null,null,null,null,"Select from Drop Down","Select from Drop Down","Select from Drop Down"]
[1199,null,null,"Select from Drop Down","Select from Drop Down","Select from Drop Down",null,null,null,null,null,null,null,null,null,null,null,null,"Select from Drop Down","Select from Drop Down","Select from Drop Down"]
[1200,null,null,"Select from Drop Down","Select from Drop Down","Select from Drop Down",null,null,null,null,null,null,null,null,null,null,null,null,"Select from Drop Down","Select from Drop Down","Select from Drop Down"]
[1201,null,null,"Select from Drop Down","Select from Drop Down","Select from Drop Down",null,null,null,null,null,null,null,null,null,null,null,null,"Select from Drop Down","Select from Drop Down","Select from Drop Down"]
[1202,null,null,"Select from Drop Down","Select from Drop Down","Select from Drop Down",null,null,null,null,null,null,null,null,null,null,null,null,"Select from Drop Down","Select from Drop Down","Select from Drop Down"]
[1203,null,null,"Select from Drop Down","Select from Drop Down","Select from Drop Down",null,null,null,null,null,null,null,null,null,null,null,null,"Select from Drop Down","Select from Drop Down","Select from Drop Down"]
[1204,null,null,"Select from Drop Down","Select from Drop Down","Select from Drop Down",null,null,null,null,null,null,null,null,null,null,null,null,"Select from Drop Down","Select from Drop Down","Select from Drop Down"]
[1205,null,null,"Select from Drop Down","Select from Drop Down","Select from Drop Down",null,null,null,null,null,null,null,null,null,null,null,null,"Select from Drop Down","Select from Drop Down","Select from Drop Down"]
[1206,null,null,"Select from Drop Down","Select from Drop Down","Select from Drop Down",null,null,null,null,null,null,null,null,null,null,null,null,"Select from Drop Down","Select from Drop Down","Select from Drop Down"]
[1207,null,null,"Select from Drop Down","Select from Drop Down","Select from Drop Down",null,null,null,null,null,null,null,null,null,null,null,null,"Select from Drop Down","Select from Drop Down","Select from Drop Down"]
[1208,null,null,"Select from Drop Down","Select from Drop Down","Select from Drop Down",null,null,null,null,null,null,null,null,null,null,null,null,"Select from Drop Down","Select from Drop Down","Select from Drop Down"]
[1209,null,null,"Select from Drop Down","Select from Drop Down","Select from Drop Down",null,null,null,null,null,null,null,null,null,null,null,null,"Select from Drop Down","Select from Drop Down","Select from Drop Down"]
[1210,null,null,"Select from Drop Down","Select from Drop Down","Select from Drop Down",null,null,null,null,null,null,null,null,null,null,null,null,"Select from Drop Down","Select from Drop Down","Select from Drop Down"]
[1211,null,null,"Select from Drop Down","Select from Drop Down","Select from Drop Down",null,null,null,null,null,null,null,null,null,null,null,null,"Select from Drop Down","Select from Drop Down","Select from Drop Down"]
[1212,null,null,"Select from Drop Down","Select from Drop Down","Select from Drop Down",null,null,null,null,null,null,null,null,null,null,null,null,"Select from Drop Down","Select from Drop Down","Select from Drop Down"]
[1213,null,null,"Select from Drop Down","Select from Drop Down","Select from Drop Down",null,null,null,null,null,null,null,null,null,null,null,null,"Select from Drop Down","Select from Drop Down","Select from Drop Down"]
[1214,null,null,"Select from Drop Down","Select from Drop Down","Select from Drop Down",null,null,null,null,null,null,null,null,null,null,null,null,"Select from Drop Down","Select from Drop Down","Select from Drop Down"]
[1215,null,null,"Select from Drop Down","Select from Drop Down","Select from Drop Down",null,null,null,null,null,null,null,null,null,null,null,null,"Select from Drop Down","Select from Drop Down","Select from Drop Down"]
[1216,null,null,"Select from Drop Down","Select from Drop Down","Select from Drop Down",null,null,null,null,null,null,null,null,null,null,null,null,"Select from Drop Down","Select from Drop Down","Select from Drop Down"]
[1217,null,null,"Select from Drop Down","Select from Drop Down","Select from Drop Down",null,null,null,null,null,null,null,null,null,null,null,null,"Select from Drop Down","Select from Drop Down","Select from Drop Down"]
[1218,null,null,"Select from Drop Down","Select from Drop Down","Select from Drop Down",null,null,null,null,null,null,null,null,null,null,null,null,"Select from Drop Down","Select from Drop Down","Select from Drop Down"]
[{"$f":"A1228+1","v":1219},null,null,"Select from Drop Down","Select from Drop Down","Select from Drop Down",null,null,null,null,null,null,null,null,null,null,null,null,"Select from Drop Down","Select from Drop Down","Select from Drop Down"]
[1220,null,null,"Select from Drop Down","Select from Drop Down","Select from Drop Down",null,null,null,null,null,null,null,null,null,null,null,null,"Select from Drop Down","Select from Drop Down","Select from Drop Down"]
[1221,null,null,"Select from Drop Down","Select from Drop Down","Select from Drop Down",null,null,null,null,null,null,null,null,null,null,null,null,"Select from Drop Down","Select from Drop Down","Select from Drop Down"]
[1222,null,null,"Select from Drop Down","Select from Drop Down","Select from Drop Down",null,null,null,null,null,null,null,null,null,null,null,null,"Select from Drop Down","Select from Drop Down","Select from Drop Down"]
[1223,null,null,"Select from Drop Down","Select from Drop Down","Select from Drop Down",null,null,null,null,null,null,null,null,null,null,null,null,"Select from Drop Down","Select from Drop Down","Select from Drop Down"]
[1224,null,null,"Select from Drop Down","Select from Drop Down","Select from Drop Down",null,null,null,null,null,null,null,null,null,null,null,null,"Select from Drop Down","Select from Drop Down","Select from Drop Down"]
[1225,null,null,"Select from Drop Down","Select from Drop Down","Select from Drop Down",null,null,null,null,null,null,null,null,null,null,null,null,"Select from Drop Down","Select from Drop Down","Select from Drop Down"]
[1226,null,null,"Select from Drop Down","Select from Drop Down","Select from Drop Down",null,null,null,null,null,null,null,null,null,null,null,null,"Select from Drop Down","Select from Drop Down","Select from Drop Down"]
[1227,null,null,"Select from Drop Down","Select from Drop Down","Select from Drop Down",null,null,null,null,null,null,null,null,null,null,null,null,"Select from Drop Down","Select from Drop Down","Select from Drop Down"]
[1228,null,null,"Select from Drop Down","Select from Drop Down","Select from Drop Down",null,null,null,null,null,null,null,null,null,null,null,null,"Select from Drop Down","Select from Drop Down","Select from Drop Down"]
[1229,null,null,"Select from Drop Down","Select from Drop Down","Select from Drop Down",null,null,null,null,null,null,null,null,null,null,null,null,"Select from Drop Down","Select from Drop Down","Select from Drop Down"]
[1230,null,null,"Select from Drop Down","Select from Drop Down","Select from Drop Down",null,null,null,null,null,null,null,null,null,null,null,null,"Select from Drop Down","Select from Drop Down","Select from Drop Down"]
[1231,null,null,"Select from Drop Down","Select from Drop Down","Select from Drop Down",null,null,null,null,null,null,null,null,null,null,null,null,"Select from Drop Down","Select from Drop Down","Select from Drop Down"]
[1232,null,null,"Select from Drop Down","Select from Drop Down","Select from Drop Down",null,null,null,null,null,null,null,null,null,null,null,null,"Select from Drop Down","Select from Drop Down","Select from Drop Down"]
[1233,null,null,"Select from Drop Down","Select from Drop Down","Select from Drop Down",null,null,null,null,null,null,null,null,null,null,null,null,"Select from Drop Down","Select from Drop Down","Select from Drop Down"]
[1234,null,null,"Select from Drop Down","Select from Drop Down","Select from Drop Down",null,null,null,null,null,null,null,null,null,null,null,null,"Select from Drop Down","Select from Drop Down","Select from Drop Down"]
[1235,null,null,"Select from Drop Down","Select from Drop Down","Select from Drop Down",null,null,null,null,null,null,null,null,null,null,null,null,"Select from Drop Down","Select from Drop Down","Select from Drop Down"]
[1236,null,null,"Select from Drop Down","Select from Drop Down","Select from Drop Down",null,null,null,null,null,null,null,null,null,null,null,null,"Select from Drop Down","Select from Drop Down","Select from Drop Down"]
[1237,null,null,"Select from Drop Down","Select from Drop Down","Select from Drop Down",null,null,null,null,null,null,null,null,null,null,null,null,"Select from Drop Down","Select from Drop Down","Select from Drop Down"]
[1238,null,null,"Select from Drop Down","Select from Drop Down","Select from Drop Down",null,null,null,null,null,null,null,null,null,null,null,null,"Select from Drop Down","Select from Drop Down","Select from Drop Down"]
[1239,null,null,"Select from Drop Down","Select from Drop Down","Select from Drop Down",null,null,null,null,null,null,null,null,null,null,null,null,"Select from Drop Down","Select from Drop Down","Select from Drop Down"]
[1240,null,null,"Select from Drop Down","Select from Drop Down","Select from Drop Down",null,null,null,null,null,null,null,null,null,null,null,null,"Select from Drop Down","Select from Drop Down","Select from Drop Down"]
[1241,null,null,"Select from Drop Down","Select from Drop Down","Select from Drop Down",null,null,null,null,null,null,null,null,null,null,null,null,"Select from Drop Down","Select from Drop Down","Select from Drop Down"]
[1242,null,null,"Select from Drop Down","Select from Drop Down","Select from Drop Down",null,null,null,null,null,null,null,null,null,null,null,null,"Select from Drop Down","Select from Drop Down","Select from Drop Down"]
[1243,null,null,"Select from Drop Down","Select from Drop Down","Select from Drop Down",null,null,null,null,null,null,null,null,null,null,null,null,"Select from Drop Down","Select from Drop Down","Select from Drop Down"]
[1244,null,null,"Select from Drop Down","Select from Drop Down","Select from Drop Down",null,null,null,null,null,null,null,null,null,null,null,null,"Select from Drop Down","Select from Drop Down","Select from Drop Down"]
[1245,null,null,"Select from Drop Down","Select from Drop Down","Select from Drop Down",null,null,null,null,null,null,null,null,null,null,null,null,"Select from Drop Down","Select from Drop Down","Select from Drop Down"]
[1246,null,null,"Select from Drop Down","Select from Drop Down","Select from Drop Down",null,null,null,null,null,null,null,null,null,null,null,null,"Select from Drop Down","Select from Drop Down","Select from Drop Down"]
[1247,null,null,"Select from Drop Down","Select from Drop Down","Select from Drop Down",null,null,null,null,null,null,null,null,null,null,null,null,"Select from Drop Down","Select from Drop Down","Select from Drop Down"]
[1248,null,null,"Select from Drop Down","Select from Drop Down","Select from Drop Down",null,null,null,null,null,null,null,null,null,null,null,null,"Select from Drop Down","Select from Drop Down","Select from Drop Down"]
[1249,null,null,"Select from Drop Down","Select from Drop Down","Select from Drop Down",null,null,null,null,null,null,null,null,null,null,null,null,"Select from Drop Down","Select from Drop Down","Select from Drop Down"]
[1250,null,null,"Select from Drop Down","Select from Drop Down","Select from Drop Down",null,null,null,null,null,null,null,null,null,null,null,null,"Select from Drop Down","Select from Drop Down","Select from Drop Down"]
[1251,null,null,"Select from Drop Down","Select from Drop Down","Select from Drop Down",null,null,null,null,null,null,null,null,null,null,null,null,"Select from Drop Down","Select from Drop Down","Select from Drop Down"]
[1252,null,null,"Select from Drop Down","Select from Drop Down","Select from Drop Down",null,null,null,null,null,null,null,null,null,null,null,null,"Select from Drop Down","Select from Drop Down","Select from Drop Down"]
[1253,null,null,"Select from Drop Down","Select from Drop Down","Select from Drop Down",null,null,null,null,null,null,null,null,null,null,null,null,"Select from Drop Down","Select from Drop Down","Select from Drop Down"]
[1254,null,null,"Select from Drop Down","Select from Drop Down","Select from Drop Down",null,null,null,null,null,null,null,null,null,null,null,null,"Select from Drop Down","Select from Drop Down","Select from Drop Down"]
[1255,null,null,"Select from Drop Down","Select from Drop Down","Select from Drop Down",null,null,null,null,null,null,null,null,null,null,null,null,"Select from Drop Down","Select from Drop Down","Select from Drop Down"]
[1256,null,null,"Select from Drop Down","Select from Drop Down","Select from Drop Down",null,null,null,null,null,null,null,null,null,null,null,null,"Select from Drop Down","Select from Drop Down","Select from Drop Down"]
[1257,null,null,"Select from Drop Down","Select from Drop Down","Select from Drop Down",null,null,null,null,null,null,null,null,null,null,null,null,"Select from Drop Down","Select from Drop Down","Select from Drop Down"]
[1258,null,null,"Select from Drop Down","Select from Drop Down","Select from Drop Down",null,null,null,null,null,null,null,null,null,null,null,null,"Select from Drop Down","Select from Drop Down","Select from Drop Down"]
[1259,null,null,"Select from Drop Down","Select from Drop Down","Select from Drop Down",null,null,null,null,null,null,null,null,null,null,null,null,"Select from Drop Down","Select from Drop Down","Select from Drop Down"]
[1260,null,null,"Select from Drop Down","Select from Drop Down","Select from Drop Down",null,null,null,null,null,null,null,null,null,null,null,null,"Select from Drop Down","Select from Drop Down","Select from Drop Down"]
[1261,null,null,"Select from Drop Down","Select from Drop Down","Select from Drop Down",null,null,null,null,null,null,null,null,null,null,null,null,"Select from Drop Down","Select from Drop Down","Select from Drop Down"]
[1262,null,null,"Select from Drop Down","Select from Drop Down","Select from Drop Down",null,null,null,null,null,null,null,null,null,null,null,null,"Select from Drop Down","Select from Drop Down","Select from Drop Down"]
[1263,null,null,"Select from Drop Down","Select from Drop Down","Select from Drop Down",null,null,null,null,null,null,null,null,null,null,null,null,"Select from Drop Down","Select from Drop Down","Select from Drop Down"]
[1264,null,null,"Select from Drop Down","Select from Drop Down","Select from Drop Down",null,null,null,null,null,null,null,null,null,null,null,null,"Select from Drop Down","Select from Drop Down","Select from Drop Down"]
[1265,null,null,"Select from Drop Down","Select from Drop Down","Select from Drop Down",null,null,null,null,null,null,null,null,null,null,null,null,"Select from Drop Down","Select from Drop Down","Select from Drop Down"]
[1266,null,null,"Select from Drop Down","Select from Drop Down","Select from Drop Down",null,null,null,null,null,null,null,null,null,null,null,null,"Select from Drop Down","Select from Drop Down","Select from Drop Down"]
[1267,null,null,"Select from Drop Down","Select from Drop Down","Select from Drop Down",null,null,null,null,null,null,null,null,null,null,null,null,"Select from Drop Down","Select from Drop Down","Select from Drop Down"]
[1268,null,null,"Select from Drop Down","Select from Drop Down","Select from Drop Down",null,null,null,null,null,null,null,null,null,null,null,null,"Select from Drop Down","Select from Drop Down","Select from Drop Down"]
[1269,null,null,"Select from Drop Down","Select from Drop Down","Select from Drop Down",null,null,null,null,null,null,null,null,null,null,null,null,"Select from Drop Down","Select from Drop Down","Select from Drop Down"]
[1270,null,null,"Select from Drop Down","Select from Drop Down","Select from Drop Down",null,null,null,null,null,null,null,null,null,null,null,null,"Select from Drop Down","Select from Drop Down","Select from Drop Down"]
[1271,null,null,"Select from Drop Down","Select from Drop Down","Select from Drop Down",null,null,null,null,null,null,null,null,null,null,null,null,"Select from Drop Down","Select from Drop Down","Select from Drop Down"]
[1272,null,null,"Select from Drop Down","Select from Drop Down","Select from Drop Down",null,null,null,null,null,null,null,null,null,null,null,null,"Select from Drop Down","Select from Drop Down","Select from Drop Down"]
[1273,null,null,"Select from Drop Down","Select from Drop Down","Select from Drop Down",null,null,null,null,null,null,null,null,null,null,null,null,"Select from Drop Down","Select from Drop Down","Select from Drop Down"]
[1274,null,null,"Select from Drop Down","Select from Drop Down","Select from Drop Down",null,null,null,null,null,null,null,null,null,null,null,null,"Select from Drop Down","Select from Drop Down","Select from Drop Down"]
[1275,null,null,"Select from Drop Down","Select from Drop Down","Select from Drop Down",null,null,null,null,null,null,null,null,null,null,null,null,"Select from Drop Down","Select from Drop Down","Select from Drop Down"]
[1276,null,null,"Select from Drop Down","Select from Drop Down","Select from Drop Down",null,null,null,null,null,null,null,null,null,null,null,null,"Select from Drop Down","Select from Drop Down","Select from Drop Down"]
[1277,null,null,"Select from Drop Down","Select from Drop Down","Select from Drop Down",null,null,null,null,null,null,null,null,null,null,null,null,"Select from Drop Down","Select from Drop Down","Select from Drop Down"]
[1278,null,null,"Select from Drop Down","Select from Drop Down","Select from Drop Down",null,null,null,null,null,null,null,null,null,null,null,null,"Select from Drop Down","Select from Drop Down","Select from Drop Down"]
[1279,null,null,"Select from Drop Down","Select from Drop Down","Select from Drop Down",null,null,null,null,null,null,null,null,null,null,null,null,"Select from Drop Down","Select from Drop Down","Select from Drop Down"]
[1280,null,null,"Select from Drop Down","Select from Drop Down","Select from Drop Down",null,null,null,null,null,null,null,null,null,null,null,null,"Select from Drop Down","Select from Drop Down","Select from Drop Down"]
[1281,null,null,"Select from Drop Down","Select from Drop Down","Select from Drop Down",null,null,null,null,null,null,null,null,null,null,null,null,"Select from Drop Down","Select from Drop Down","Select from Drop Down"]
[1282,null,null,"Select from Drop Down","Select from Drop Down","Select from Drop Down",null,null,null,null,null,null,null,null,null,null,null,null,"Select from Drop Down","Select from Drop Down","Select from Drop Down"]
[{"$f":"A1292+1","v":1283},null,null,"Select from Drop Down","Select from Drop Down","Select from Drop Down",null,null,null,null,null,null,null,null,null,null,null,null,"Select from Drop Down","Select from Drop Down","Select from Drop Down"]
[1284,null,null,"Select from Drop Down","Select from Drop Down","Select from Drop Down",null,null,null,null,null,null,null,null,null,null,null,null,"Select from Drop Down","Select from Drop Down","Select from Drop Down"]
[1285,null,null,"Select from Drop Down","Select from Drop Down","Select from Drop Down",null,null,null,null,null,null,null,null,null,null,null,null,"Select from Drop Down","Select from Drop Down","Select from Drop Down"]
[1286,null,null,"Select from Drop Down","Select from Drop Down","Select from Drop Down",null,null,null,null,null,null,null,null,null,null,null,null,"Select from Drop Down","Select from Drop Down","Select from Drop Down"]
[1287,null,null,"Select from Drop Down","Select from Drop Down","Select from Drop Down",null,null,null,null,null,null,null,null,null,null,null,null,"Select from Drop Down","Select from Drop Down","Select from Drop Down"]
[1288,null,null,"Select from Drop Down","Select from Drop Down","Select from Drop Down",null,null,null,null,null,null,null,null,null,null,null,null,"Select from Drop Down","Select from Drop Down","Select from Drop Down"]
[1289,null,null,"Select from Drop Down","Select from Drop Down","Select from Drop Down",null,null,null,null,null,null,null,null,null,null,null,null,"Select from Drop Down","Select from Drop Down","Select from Drop Down"]
[1290,null,null,"Select from Drop Down","Select from Drop Down","Select from Drop Down",null,null,null,null,null,null,null,null,null,null,null,null,"Select from Drop Down","Select from Drop Down","Select from Drop Down"]
[1291,null,null,"Select from Drop Down","Select from Drop Down","Select from Drop Down",null,null,null,null,null,null,null,null,null,null,null,null,"Select from Drop Down","Select from Drop Down","Select from Drop Down"]
[1292,null,null,"Select from Drop Down","Select from Drop Down","Select from Drop Down",null,null,null,null,null,null,null,null,null,null,null,null,"Select from Drop Down","Select from Drop Down","Select from Drop Down"]
[1293,null,null,"Select from Drop Down","Select from Drop Down","Select from Drop Down",null,null,null,null,null,null,null,null,null,null,null,null,"Select from Drop Down","Select from Drop Down","Select from Drop Down"]
[1294,null,null,"Select from Drop Down","Select from Drop Down","Select from Drop Down",null,null,null,null,null,null,null,null,null,null,null,null,"Select from Drop Down","Select from Drop Down","Select from Drop Down"]
[1295,null,null,"Select from Drop Down","Select from Drop Down","Select from Drop Down",null,null,null,null,null,null,null,null,null,null,null,null,"Select from Drop Down","Select from Drop Down","Select from Drop Down"]
[1296,null,null,"Select from Drop Down","Select from Drop Down","Select from Drop Down",null,null,null,null,null,null,null,null,null,null,null,null,"Select from Drop Down","Select from Drop Down","Select from Drop Down"]
[1297,null,null,"Select from Drop Down","Select from Drop Down","Select from Drop Down",null,null,null,null,null,null,null,null,null,null,null,null,"Select from Drop Down","Select from Drop Down","Select from Drop Down"]
[1298,null,null,"Select from Drop Down","Select from Drop Down","Select from Drop Down",null,null,null,null,null,null,null,null,null,null,null,null,"Select from Drop Down","Select from Drop Down","Select from Drop Down"]
[1299,null,null,"Select from Drop Down","Select from Drop Down","Select from Drop Down",null,null,null,null,null,null,null,null,null,null,null,null,"Select from Drop Down","Select from Drop Down","Select from Drop Down"]
[1300,null,null,"Select from Drop Down","Select from Drop Down","Select from Drop Down",null,null,null,null,null,null,null,null,null,null,null,null,"Select from Drop Down","Select from Drop Down","Select from Drop Down"]
[1301,null,null,"Select from Drop Down","Select from Drop Down","Select from Drop Down",null,null,null,null,null,null,null,null,null,null,null,null,"Select from Drop Down","Select from Drop Down","Select from Drop Down"]
[1302,null,null,"Select from Drop Down","Select from Drop Down","Select from Drop Down",null,null,null,null,null,null,null,null,null,null,null,null,"Select from Drop Down","Select from Drop Down","Select from Drop Down"]
[1303,null,null,"Select from Drop Down","Select from Drop Down","Select from Drop Down",null,null,null,null,null,null,null,null,null,null,null,null,"Select from Drop Down","Select from Drop Down","Select from Drop Down"]
[1304,null,null,"Select from Drop Down","Select from Drop Down","Select from Drop Down",null,null,null,null,null,null,null,null,null,null,null,null,"Select from Drop Down","Select from Drop Down","Select from Drop Down"]
[1305,null,null,"Select from Drop Down","Select from Drop Down","Select from Drop Down",null,null,null,null,null,null,null,null,null,null,null,null,"Select from Drop Down","Select from Drop Down","Select from Drop Down"]
[1306,null,null,"Select from Drop Down","Select from Drop Down","Select from Drop Down",null,null,null,null,null,null,null,null,null,null,null,null,"Select from Drop Down","Select from Drop Down","Select from Drop Down"]
[1307,null,null,"Select from Drop Down","Select from Drop Down","Select from Drop Down",null,null,null,null,null,null,null,null,null,null,null,null,"Select from Drop Down","Select from Drop Down","Select from Drop Down"]
[1308,null,null,"Select from Drop Down","Select from Drop Down","Select from Drop Down",null,null,null,null,null,null,null,null,null,null,null,null,"Select from Drop Down","Select from Drop Down","Select from Drop Down"]
[1309,null,null,"Select from Drop Down","Select from Drop Down","Select from Drop Down",null,null,null,null,null,null,null,null,null,null,null,null,"Select from Drop Down","Select from Drop Down","Select from Drop Down"]
[1310,null,null,"Select from Drop Down","Select from Drop Down","Select from Drop Down",null,null,null,null,null,null,null,null,null,null,null,null,"Select from Drop Down","Select from Drop Down","Select from Drop Down"]
[1311,null,null,"Select from Drop Down","Select from Drop Down","Select from Drop Down",null,null,null,null,null,null,null,null,null,null,null,null,"Select from Drop Down","Select from Drop Down","Select from Drop Down"]
[1312,null,null,"Select from Drop Down","Select from Drop Down","Select from Drop Down",null,null,null,null,null,null,null,null,null,null,null,null,"Select from Drop Down","Select from Drop Down","Select from Drop Down"]
[1313,null,null,"Select from Drop Down","Select from Drop Down","Select from Drop Down",null,null,null,null,null,null,null,null,null,null,null,null,"Select from Drop Down","Select from Drop Down","Select from Drop Down"]
[1314,null,null,"Select from Drop Down","Select from Drop Down","Select from Drop Down",null,null,null,null,null,null,null,null,null,null,null,null,"Select from Drop Down","Select from Drop Down","Select from Drop Down"]
[1315,null,null,"Select from Drop Down","Select from Drop Down","Select from Drop Down",null,null,null,null,null,null,null,null,null,null,null,null,"Select from Drop Down","Select from Drop Down","Select from Drop Down"]
[1316,null,null,"Select from Drop Down","Select from Drop Down","Select from Drop Down",null,null,null,null,null,null,null,null,null,null,null,null,"Select from Drop Down","Select from Drop Down","Select from Drop Down"]
[1317,null,null,"Select from Drop Down","Select from Drop Down","Select from Drop Down",null,null,null,null,null,null,null,null,null,null,null,null,"Select from Drop Down","Select from Drop Down","Select from Drop Down"]
[1318,null,null,"Select from Drop Down","Select from Drop Down","Select from Drop Down",null,null,null,null,null,null,null,null,null,null,null,null,"Select from Drop Down","Select from Drop Down","Select from Drop Down"]
[1319,null,null,"Select from Drop Down","Select from Drop Down","Select from Drop Down",null,null,null,null,null,null,null,null,null,null,null,null,"Select from Drop Down","Select from Drop Down","Select from Drop Down"]
[1320,null,null,"Select from Drop Down","Select from Drop Down","Select from Drop Down",null,null,null,null,null,null,null,null,null,null,null,null,"Select from Drop Down","Select from Drop Down","Select from Drop Down"]
[1321,null,null,"Select from Drop Down","Select from Drop Down","Select from Drop Down",null,null,null,null,null,null,null,null,null,null,null,null,"Select from Drop Down","Select from Drop Down","Select from Drop Down"]
[1322,null,null,"Select from Drop Down","Select from Drop Down","Select from Drop Down",null,null,null,null,null,null,null,null,null,null,null,null,"Select from Drop Down","Select from Drop Down","Select from Drop Down"]
[1323,null,null,"Select from Drop Down","Select from Drop Down","Select from Drop Down",null,null,null,null,null,null,null,null,null,null,null,null,"Select from Drop Down","Select from Drop Down","Select from Drop Down"]
[1324,null,null,"Select from Drop Down","Select from Drop Down","Select from Drop Down",null,null,null,null,null,null,null,null,null,null,null,null,"Select from Drop Down","Select from Drop Down","Select from Drop Down"]
[1325,null,null,"Select from Drop Down","Select from Drop Down","Select from Drop Down",null,null,null,null,null,null,null,null,null,null,null,null,"Select from Drop Down","Select from Drop Down","Select from Drop Down"]
[1326,null,null,"Select from Drop Down","Select from Drop Down","Select from Drop Down",null,null,null,null,null,null,null,null,null,null,null,null,"Select from Drop Down","Select from Drop Down","Select from Drop Down"]
[1327,null,null,"Select from Drop Down","Select from Drop Down","Select from Drop Down",null,null,null,null,null,null,null,null,null,null,null,null,"Select from Drop Down","Select from Drop Down","Select from Drop Down"]
[1328,null,null,"Select from Drop Down","Select from Drop Down","Select from Drop Down",null,null,null,null,null,null,null,null,null,null,null,null,"Select from Drop Down","Select from Drop Down","Select from Drop Down"]
[1329,null,null,"Select from Drop Down","Select from Drop Down","Select from Drop Down",null,null,null,null,null,null,null,null,null,null,null,null,"Select from Drop Down","Select from Drop Down","Select from Drop Down"]
[1330,null,null,"Select from Drop Down","Select from Drop Down","Select from Drop Down",null,null,null,null,null,null,null,null,null,null,null,null,"Select from Drop Down","Select from Drop Down","Select from Drop Down"]
[1331,null,null,"Select from Drop Down","Select from Drop Down","Select from Drop Down",null,null,null,null,null,null,null,null,null,null,null,null,"Select from Drop Down","Select from Drop Down","Select from Drop Down"]
[1332,null,null,"Select from Drop Down","Select from Drop Down","Select from Drop Down",null,null,null,null,null,null,null,null,null,null,null,null,"Select from Drop Down","Select from Drop Down","Select from Drop Down"]
[1333,null,null,"Select from Drop Down","Select from Drop Down","Select from Drop Down",null,null,null,null,null,null,null,null,null,null,null,null,"Select from Drop Down","Select from Drop Down","Select from Drop Down"]
[1334,null,null,"Select from Drop Down","Select from Drop Down","Select from Drop Down",null,null,null,null,null,null,null,null,null,null,null,null,"Select from Drop Down","Select from Drop Down","Select from Drop Down"]
[1335,null,null,"Select from Drop Down","Select from Drop Down","Select from Drop Down",null,null,null,null,null,null,null,null,null,null,null,null,"Select from Drop Down","Select from Drop Down","Select from Drop Down"]
[1336,null,null,"Select from Drop Down","Select from Drop Down","Select from Drop Down",null,null,null,null,null,null,null,null,null,null,null,null,"Select from Drop Down","Select from Drop Down","Select from Drop Down"]
[1337,null,null,"Select from Drop Down","Select from Drop Down","Select from Drop Down",null,null,null,null,null,null,null,null,null,null,null,null,"Select from Drop Down","Select from Drop Down","Select from Drop Down"]
[1338,null,null,"Select from Drop Down","Select from Drop Down","Select from Drop Down",null,null,null,null,null,null,null,null,null,null,null,null,"Select from Drop Down","Select from Drop Down","Select from Drop Down"]
[1339,null,null,"Select from Drop Down","Select from Drop Down","Select from Drop Down",null,null,null,null,null,null,null,null,null,null,null,null,"Select from Drop Down","Select from Drop Down","Select from Drop Down"]
[1340,null,null,"Select from Drop Down","Select from Drop Down","Select from Drop Down",null,null,null,null,null,null,null,null,null,null,null,null,"Select from Drop Down","Select from Drop Down","Select from Drop Down"]
[1341,null,null,"Select from Drop Down","Select from Drop Down","Select from Drop Down",null,null,null,null,null,null,null,null,null,null,null,null,"Select from Drop Down","Select from Drop Down","Select from Drop Down"]
[1342,null,null,"Select from Drop Down","Select from Drop Down","Select from Drop Down",null,null,null,null,null,null,null,null,null,null,null,null,"Select from Drop Down","Select from Drop Down","Select from Drop Down"]
[1343,null,null,"Select from Drop Down","Select from Drop Down","Select from Drop Down",null,null,null,null,null,null,null,null,null,null,null,null,"Select from Drop Down","Select from Drop Down","Select from Drop Down"]
[1344,null,null,"Select from Drop Down","Select from Drop Down","Select from Drop Down",null,null,null,null,null,null,null,null,null,null,null,null,"Select from Drop Down","Select from Drop Down","Select from Drop Down"]
[1345,null,null,"Select from Drop Down","Select from Drop Down","Select from Drop Down",null,null,null,null,null,null,null,null,null,null,null,null,"Select from Drop Down","Select from Drop Down","Select from Drop Down"]
[1346,null,null,"Select from Drop Down","Select from Drop Down","Select from Drop Down",null,null,null,null,null,null,null,null,null,null,null,null,"Select from Drop Down","Select from Drop Down","Select from Drop Down"]
[{"$f":"A1356+1","v":1347},null,null,"Select from Drop Down","Select from Drop Down","Select from Drop Down",null,null,null,null,null,null,null,null,null,null,null,null,"Select from Drop Down","Select from Drop Down","Select from Drop Down"]
[1348,null,null,"Select from Drop Down","Select from Drop Down","Select from Drop Down",null,null,null,null,null,null,null,null,null,null,null,null,"Select from Drop Down","Select from Drop Down","Select from Drop Down"]
[1349,null,null,"Select from Drop Down","Select from Drop Down","Select from Drop Down",null,null,null,null,null,null,null,null,null,null,null,null,"Select from Drop Down","Select from Drop Down","Select from Drop Down"]
[1350,null,null,"Select from Drop Down","Select from Drop Down","Select from Drop Down",null,null,null,null,null,null,null,null,null,null,null,null,"Select from Drop Down","Select from Drop Down","Select from Drop Down"]
[1351,null,null,"Select from Drop Down","Select from Drop Down","Select from Drop Down",null,null,null,null,null,null,null,null,null,null,null,null,"Select from Drop Down","Select from Drop Down","Select from Drop Down"]
[1352,null,null,"Select from Drop Down","Select from Drop Down","Select from Drop Down",null,null,null,null,null,null,null,null,null,null,null,null,"Select from Drop Down","Select from Drop Down","Select from Drop Down"]
[1353,null,null,"Select from Drop Down","Select from Drop Down","Select from Drop Down",null,null,null,null,null,null,null,null,null,null,null,null,"Select from Drop Down","Select from Drop Down","Select from Drop Down"]
[1354,null,null,"Select from Drop Down","Select from Drop Down","Select from Drop Down",null,null,null,null,null,null,null,null,null,null,null,null,"Select from Drop Down","Select from Drop Down","Select from Drop Down"]
[1355,null,null,"Select from Drop Down","Select from Drop Down","Select from Drop Down",null,null,null,null,null,null,null,null,null,null,null,null,"Select from Drop Down","Select from Drop Down","Select from Drop Down"]
[1356,null,null,"Select from Drop Down","Select from Drop Down","Select from Drop Down",null,null,null,null,null,null,null,null,null,null,null,null,"Select from Drop Down","Select from Drop Down","Select from Drop Down"]
[1357,null,null,"Select from Drop Down","Select from Drop Down","Select from Drop Down",null,null,null,null,null,null,null,null,null,null,null,null,"Select from Drop Down","Select from Drop Down","Select from Drop Down"]
[1358,null,null,"Select from Drop Down","Select from Drop Down","Select from Drop Down",null,null,null,null,null,null,null,null,null,null,null,null,"Select from Drop Down","Select from Drop Down","Select from Drop Down"]
[1359,null,null,"Select from Drop Down","Select from Drop Down","Select from Drop Down",null,null,null,null,null,null,null,null,null,null,null,null,"Select from Drop Down","Select from Drop Down","Select from Drop Down"]
[1360,null,null,"Select from Drop Down","Select from Drop Down","Select from Drop Down",null,null,null,null,null,null,null,null,null,null,null,null,"Select from Drop Down","Select from Drop Down","Select from Drop Down"]
[1361,null,null,"Select from Drop Down","Select from Drop Down","Select from Drop Down",null,null,null,null,null,null,null,null,null,null,null,null,"Select from Drop Down","Select from Drop Down","Select from Drop Down"]
[1362,null,null,"Select from Drop Down","Select from Drop Down","Select from Drop Down",null,null,null,null,null,null,null,null,null,null,null,null,"Select from Drop Down","Select from Drop Down","Select from Drop Down"]
[1363,null,null,"Select from Drop Down","Select from Drop Down","Select from Drop Down",null,null,null,null,null,null,null,null,null,null,null,null,"Select from Drop Down","Select from Drop Down","Select from Drop Down"]
[1364,null,null,"Select from Drop Down","Select from Drop Down","Select from Drop Down",null,null,null,null,null,null,null,null,null,null,null,null,"Select from Drop Down","Select from Drop Down","Select from Drop Down"]
[1365,null,null,"Select from Drop Down","Select from Drop Down","Select from Drop Down",null,null,null,null,null,null,null,null,null,null,null,null,"Select from Drop Down","Select from Drop Down","Select from Drop Down"]
[1366,null,null,"Select from Drop Down","Select from Drop Down","Select from Drop Down",null,null,null,null,null,null,null,null,null,null,null,null,"Select from Drop Down","Select from Drop Down","Select from Drop Down"]
[1367,null,null,"Select from Drop Down","Select from Drop Down","Select from Drop Down",null,null,null,null,null,null,null,null,null,null,null,null,"Select from Drop Down","Select from Drop Down","Select from Drop Down"]
[1368,null,null,"Select from Drop Down","Select from Drop Down","Select from Drop Down",null,null,null,null,null,null,null,null,null,null,null,null,"Select from Drop Down","Select from Drop Down","Select from Drop Down"]
[1369,null,null,"Select from Drop Down","Select from Drop Down","Select from Drop Down",null,null,null,null,null,null,null,null,null,null,null,null,"Select from Drop Down","Select from Drop Down","Select from Drop Down"]
[1370,null,null,"Select from Drop Down","Select from Drop Down","Select from Drop Down",null,null,null,null,null,null,null,null,null,null,null,null,"Select from Drop Down","Select from Drop Down","Select from Drop Down"]
[1371,null,null,"Select from Drop Down","Select from Drop Down","Select from Drop Down",null,null,null,null,null,null,null,null,null,null,null,null,"Select from Drop Down","Select from Drop Down","Select from Drop Down"]
[1372,null,null,"Select from Drop Down","Select from Drop Down","Select from Drop Down",null,null,null,null,null,null,null,null,null,null,null,null,"Select from Drop Down","Select from Drop Down","Select from Drop Down"]
[1373,null,null,"Select from Drop Down","Select from Drop Down","Select from Drop Down",null,null,null,null,null,null,null,null,null,null,null,null,"Select from Drop Down","Select from Drop Down","Select from Drop Down"]
[1374,null,null,"Select from Drop Down","Select from Drop Down","Select from Drop Down",null,null,null,null,null,null,null,null,null,null,null,null,"Select from Drop Down","Select from Drop Down","Select from Drop Down"]
[1375,null,null,"Select from Drop Down","Select from Drop Down","Select from Drop Down",null,null,null,null,null,null,null,null,null,null,null,null,"Select from Drop Down","Select from Drop Down","Select from Drop Down"]
[1376,null,null,"Select from Drop Down","Select from Drop Down","Select from Drop Down",null,null,null,null,null,null,null,null,null,null,null,null,"Select from Drop Down","Select from Drop Down","Select from Drop Down"]
[1377,null,null,"Select from Drop Down","Select from Drop Down","Select from Drop Down",null,null,null,null,null,null,null,null,null,null,null,null,"Select from Drop Down","Select from Drop Down","Select from Drop Down"]
[1378,null,null,"Select from Drop Down","Select from Drop Down","Select from Drop Down",null,null,null,null,null,null,null,null,null,null,null,null,"Select from Drop Down","Select from Drop Down","Select from Drop Down"]
[1379,null,null,"Select from Drop Down","Select from Drop Down","Select from Drop Down",null,null,null,null,null,null,null,null,null,null,null,null,"Select from Drop Down","Select from Drop Down","Select from Drop Down"]
[1380,null,null,"Select from Drop Down","Select from Drop Down","Select from Drop Down",null,null,null,null,null,null,null,null,null,null,null,null,"Select from Drop Down","Select from Drop Down","Select from Drop Down"]
[1381,null,null,"Select from Drop Down","Select from Drop Down","Select from Drop Down",null,null,null,null,null,null,null,null,null,null,null,null,"Select from Drop Down","Select from Drop Down","Select from Drop Down"]
[1382,null,null,"Select from Drop Down","Select from Drop Down","Select from Drop Down",null,null,null,null,null,null,null,null,null,null,null,null,"Select from Drop Down","Select from Drop Down","Select from Drop Down"]
[1383,null,null,"Select from Drop Down","Select from Drop Down","Select from Drop Down",null,null,null,null,null,null,null,null,null,null,null,null,"Select from Drop Down","Select from Drop Down","Select from Drop Down"]
[1384,null,null,"Select from Drop Down","Select from Drop Down","Select from Drop Down",null,null,null,null,null,null,null,null,null,null,null,null,"Select from Drop Down","Select from Drop Down","Select from Drop Down"]
[1385,null,null,"Select from Drop Down","Select from Drop Down","Select from Drop Down",null,null,null,null,null,null,null,null,null,null,null,null,"Select from Drop Down","Select from Drop Down","Select from Drop Down"]
[1386,null,null,"Select from Drop Down","Select from Drop Down","Select from Drop Down",null,null,null,null,null,null,null,null,null,null,null,null,"Select from Drop Down","Select from Drop Down","Select from Drop Down"]
[1387,null,null,"Select from Drop Down","Select from Drop Down","Select from Drop Down",null,null,null,null,null,null,null,null,null,null,null,null,"Select from Drop Down","Select from Drop Down","Select from Drop Down"]
[1388,null,null,"Select from Drop Down","Select from Drop Down","Select from Drop Down",null,null,null,null,null,null,null,null,null,null,null,null,"Select from Drop Down","Select from Drop Down","Select from Drop Down"]
[1389,null,null,"Select from Drop Down","Select from Drop Down","Select from Drop Down",null,null,null,null,null,null,null,null,null,null,null,null,"Select from Drop Down","Select from Drop Down","Select from Drop Down"]
[1390,null,null,"Select from Drop Down","Select from Drop Down","Select from Drop Down",null,null,null,null,null,null,null,null,null,null,null,null,"Select from Drop Down","Select from Drop Down","Select from Drop Down"]
[1391,null,null,"Select from Drop Down","Select from Drop Down","Select from Drop Down",null,null,null,null,null,null,null,null,null,null,null,null,"Select from Drop Down","Select from Drop Down","Select from Drop Down"]
[1392,null,null,"Select from Drop Down","Select from Drop Down","Select from Drop Down",null,null,null,null,null,null,null,null,null,null,null,null,"Select from Drop Down","Select from Drop Down","Select from Drop Down"]
[1393,null,null,"Select from Drop Down","Select from Drop Down","Select from Drop Down",null,null,null,null,null,null,null,null,null,null,null,null,"Select from Drop Down","Select from Drop Down","Select from Drop Down"]
[1394,null,null,"Select from Drop Down","Select from Drop Down","Select from Drop Down",null,null,null,null,null,null,null,null,null,null,null,null,"Select from Drop Down","Select from Drop Down","Select from Drop Down"]
[1395,null,null,"Select from Drop Down","Select from Drop Down","Select from Drop Down",null,null,null,null,null,null,null,null,null,null,null,null,"Select from Drop Down","Select from Drop Down","Select from Drop Down"]
[1396,null,null,"Select from Drop Down","Select from Drop Down","Select from Drop Down",null,null,null,null,null,null,null,null,null,null,null,null,"Select from Drop Down","Select from Drop Down","Select from Drop Down"]
[1397,null,null,"Select from Drop Down","Select from Drop Down","Select from Drop Down",null,null,null,null,null,null,null,null,null,null,null,null,"Select from Drop Down","Select from Drop Down","Select from Drop Down"]
[1398,null,null,"Select from Drop Down","Select from Drop Down","Select from Drop Down",null,null,null,null,null,null,null,null,null,null,null,null,"Select from Drop Down","Select from Drop Down","Select from Drop Down"]
[1399,null,null,"Select from Drop Down","Select from Drop Down","Select from Drop Down",null,null,null,null,null,null,null,null,null,null,null,null,"Select from Drop Down","Select from Drop Down","Select from Drop Down"]
[1400,null,null,"Select from Drop Down","Select from Drop Down","Select from Drop Down",null,null,null,null,null,null,null,null,null,null,null,null,"Select from Drop Down","Select from Drop Down","Select from Drop Down"]
[1401,null,null,"Select from Drop Down","Select from Drop Down","Select from Drop Down",null,null,null,null,null,null,null,null,null,null,null,null,"Select from Drop Down","Select from Drop Down","Select from Drop Down"]
[1402,null,null,"Select from Drop Down","Select from Drop Down","Select from Drop Down",null,null,null,null,null,null,null,null,null,null,null,null,"Select from Drop Down","Select from Drop Down","Select from Drop Down"]
[1403,null,null,"Select from Drop Down","Select from Drop Down","Select from Drop Down",null,null,null,null,null,null,null,null,null,null,null,null,"Select from Drop Down","Select from Drop Down","Select from Drop Down"]
[1404,null,null,"Select from Drop Down","Select from Drop Down","Select from Drop Down",null,null,null,null,null,null,null,null,null,null,null,null,"Select from Drop Down","Select from Drop Down","Select from Drop Down"]
[1405,null,null,"Select from Drop Down","Select from Drop Down","Select from Drop Down",null,null,null,null,null,null,null,null,null,null,null,null,"Select from Drop Down","Select from Drop Down","Select from Drop Down"]
[1406,null,null,"Select from Drop Down","Select from Drop Down","Select from Drop Down",null,null,null,null,null,null,null,null,null,null,null,null,"Select from Drop Down","Select from Drop Down","Select from Drop Down"]
[1407,null,null,"Select from Drop Down","Select from Drop Down","Select from Drop Down",null,null,null,null,null,null,null,null,null,null,null,null,"Select from Drop Down","Select from Drop Down","Select from Drop Down"]
[1408,null,null,"Select from Drop Down","Select from Drop Down","Select from Drop Down",null,null,null,null,null,null,null,null,null,null,null,null,"Select from Drop Down","Select from Drop Down","Select from Drop Down"]
[1409,null,null,"Select from Drop Down","Select from Drop Down","Select from Drop Down",null,null,null,null,null,null,null,null,null,null,null,null,"Select from Drop Down","Select from Drop Down","Select from Drop Down"]
[1410,null,null,"Select from Drop Down","Select from Drop Down","Select from Drop Down",null,null,null,null,null,null,null,null,null,null,null,null,"Select from Drop Down","Select from Drop Down","Select from Drop Down"]
[{"$f":"A1420+1","v":1411},null,null,"Select from Drop Down","Select from Drop Down","Select from Drop Down",null,null,null,null,null,null,null,null,null,null,null,null,"Select from Drop Down","Select from Drop Down","Select from Drop Down"]
[1412,null,null,"Select from Drop Down","Select from Drop Down","Select from Drop Down",null,null,null,null,null,null,null,null,null,null,null,null,"Select from Drop Down","Select from Drop Down","Select from Drop Down"]
[1413,null,null,"Select from Drop Down","Select from Drop Down","Select from Drop Down",null,null,null,null,null,null,null,null,null,null,null,null,"Select from Drop Down","Select from Drop Down","Select from Drop Down"]
[1414,null,null,"Select from Drop Down","Select from Drop Down","Select from Drop Down",null,null,null,null,null,null,null,null,null,null,null,null,"Select from Drop Down","Select from Drop Down","Select from Drop Down"]
[1415,null,null,"Select from Drop Down","Select from Drop Down","Select from Drop Down",null,null,null,null,null,null,null,null,null,null,null,null,"Select from Drop Down","Select from Drop Down","Select from Drop Down"]
[1416,null,null,"Select from Drop Down","Select from Drop Down","Select from Drop Down",null,null,null,null,null,null,null,null,null,null,null,null,"Select from Drop Down","Select from Drop Down","Select from Drop Down"]
[1417,null,null,"Select from Drop Down","Select from Drop Down","Select from Drop Down",null,null,null,null,null,null,null,null,null,null,null,null,"Select from Drop Down","Select from Drop Down","Select from Drop Down"]
[1418,null,null,"Select from Drop Down","Select from Drop Down","Select from Drop Down",null,null,null,null,null,null,null,null,null,null,null,null,"Select from Drop Down","Select from Drop Down","Select from Drop Down"]
[1419,null,null,"Select from Drop Down","Select from Drop Down","Select from Drop Down",null,null,null,null,null,null,null,null,null,null,null,null,"Select from Drop Down","Select from Drop Down","Select from Drop Down"]
[1420,null,null,"Select from Drop Down","Select from Drop Down","Select from Drop Down",null,null,null,null,null,null,null,null,null,null,null,null,"Select from Drop Down","Select from Drop Down","Select from Drop Down"]
[1421,null,null,"Select from Drop Down","Select from Drop Down","Select from Drop Down",null,null,null,null,null,null,null,null,null,null,null,null,"Select from Drop Down","Select from Drop Down","Select from Drop Down"]
[1422,null,null,"Select from Drop Down","Select from Drop Down","Select from Drop Down",null,null,null,null,null,null,null,null,null,null,null,null,"Select from Drop Down","Select from Drop Down","Select from Drop Down"]
[1423,null,null,"Select from Drop Down","Select from Drop Down","Select from Drop Down",null,null,null,null,null,null,null,null,null,null,null,null,"Select from Drop Down","Select from Drop Down","Select from Drop Down"]
[1424,null,null,"Select from Drop Down","Select from Drop Down","Select from Drop Down",null,null,null,null,null,null,null,null,null,null,null,null,"Select from Drop Down","Select from Drop Down","Select from Drop Down"]
[1425,null,null,"Select from Drop Down","Select from Drop Down","Select from Drop Down",null,null,null,null,null,null,null,null,null,null,null,null,"Select from Drop Down","Select from Drop Down","Select from Drop Down"]
[1426,null,null,"Select from Drop Down","Select from Drop Down","Select from Drop Down",null,null,null,null,null,null,null,null,null,null,null,null,"Select from Drop Down","Select from Drop Down","Select from Drop Down"]
[1427,null,null,"Select from Drop Down","Select from Drop Down","Select from Drop Down",null,null,null,null,null,null,null,null,null,null,null,null,"Select from Drop Down","Select from Drop Down","Select from Drop Down"]
[1428,null,null,"Select from Drop Down","Select from Drop Down","Select from Drop Down",null,null,null,null,null,null,null,null,null,null,null,null,"Select from Drop Down","Select from Drop Down","Select from Drop Down"]
[1429,null,null,"Select from Drop Down","Select from Drop Down","Select from Drop Down",null,null,null,null,null,null,null,null,null,null,null,null,"Select from Drop Down","Select from Drop Down","Select from Drop Down"]
[1430,null,null,"Select from Drop Down","Select from Drop Down","Select from Drop Down",null,null,null,null,null,null,null,null,null,null,null,null,"Select from Drop Down","Select from Drop Down","Select from Drop Down"]
[1431,null,null,"Select from Drop Down","Select from Drop Down","Select from Drop Down",null,null,null,null,null,null,null,null,null,null,null,null,"Select from Drop Down","Select from Drop Down","Select from Drop Down"]
[1432,null,null,"Select from Drop Down","Select from Drop Down","Select from Drop Down",null,null,null,null,null,null,null,null,null,null,null,null,"Select from Drop Down","Select from Drop Down","Select from Drop Down"]
[1433,null,null,"Select from Drop Down","Select from Drop Down","Select from Drop Down",null,null,null,null,null,null,null,null,null,null,null,null,"Select from Drop Down","Select from Drop Down","Select from Drop Down"]
[1434,null,null,"Select from Drop Down","Select from Drop Down","Select from Drop Down",null,null,null,null,null,null,null,null,null,null,null,null,"Select from Drop Down","Select from Drop Down","Select from Drop Down"]
[1435,null,null,"Select from Drop Down","Select from Drop Down","Select from Drop Down",null,null,null,null,null,null,null,null,null,null,null,null,"Select from Drop Down","Select from Drop Down","Select from Drop Down"]
[1436,null,null,"Select from Drop Down","Select from Drop Down","Select from Drop Down",null,null,null,null,null,null,null,null,null,null,null,null,"Select from Drop Down","Select from Drop Down","Select from Drop Down"]
[1437,null,null,"Select from Drop Down","Select from Drop Down","Select from Drop Down",null,null,null,null,null,null,null,null,null,null,null,null,"Select from Drop Down","Select from Drop Down","Select from Drop Down"]
[1438,null,null,"Select from Drop Down","Select from Drop Down","Select from Drop Down",null,null,null,null,null,null,null,null,null,null,null,null,"Select from Drop Down","Select from Drop Down","Select from Drop Down"]
[1439,null,null,"Select from Drop Down","Select from Drop Down","Select from Drop Down",null,null,null,null,null,null,null,null,null,null,null,null,"Select from Drop Down","Select from Drop Down","Select from Drop Down"]
[1440,null,null,"Select from Drop Down","Select from Drop Down","Select from Drop Down",null,null,null,null,null,null,null,null,null,null,null,null,"Select from Drop Down","Select from Drop Down","Select from Drop Down"]
[1441,null,null,"Select from Drop Down","Select from Drop Down","Select from Drop Down",null,null,null,null,null,null,null,null,null,null,null,null,"Select from Drop Down","Select from Drop Down","Select from Drop Down"]
[1442,null,null,"Select from Drop Down","Select from Drop Down","Select from Drop Down",null,null,null,null,null,null,null,null,null,null,null,null,"Select from Drop Down","Select from Drop Down","Select from Drop Down"]
[1443,null,null,"Select from Drop Down","Select from Drop Down","Select from Drop Down",null,null,null,null,null,null,null,null,null,null,null,null,"Select from Drop Down","Select from Drop Down","Select from Drop Down"]
[1444,null,null,"Select from Drop Down","Select from Drop Down","Select from Drop Down",null,null,null,null,null,null,null,null,null,null,null,null,"Select from Drop Down","Select from Drop Down","Select from Drop Down"]
[1445,null,null,"Select from Drop Down","Select from Drop Down","Select from Drop Down",null,null,null,null,null,null,null,null,null,null,null,null,"Select from Drop Down","Select from Drop Down","Select from Drop Down"]
[1446,null,null,"Select from Drop Down","Select from Drop Down","Select from Drop Down",null,null,null,null,null,null,null,null,null,null,null,null,"Select from Drop Down","Select from Drop Down","Select from Drop Down"]
[1447,null,null,"Select from Drop Down","Select from Drop Down","Select from Drop Down",null,null,null,null,null,null,null,null,null,null,null,null,"Select from Drop Down","Select from Drop Down","Select from Drop Down"]
[1448,null,null,"Select from Drop Down","Select from Drop Down","Select from Drop Down",null,null,null,null,null,null,null,null,null,null,null,null,"Select from Drop Down","Select from Drop Down","Select from Drop Down"]
[1449,null,null,"Select from Drop Down","Select from Drop Down","Select from Drop Down",null,null,null,null,null,null,null,null,null,null,null,null,"Select from Drop Down","Select from Drop Down","Select from Drop Down"]
[1450,null,null,"Select from Drop Down","Select from Drop Down","Select from Drop Down",null,null,null,null,null,null,null,null,null,null,null,null,"Select from Drop Down","Select from Drop Down","Select from Drop Down"]
[1451,null,null,"Select from Drop Down","Select from Drop Down","Select from Drop Down",null,null,null,null,null,null,null,null,null,null,null,null,"Select from Drop Down","Select from Drop Down","Select from Drop Down"]
[1452,null,null,"Select from Drop Down","Select from Drop Down","Select from Drop Down",null,null,null,null,null,null,null,null,null,null,null,null,"Select from Drop Down","Select from Drop Down","Select from Drop Down"]
[1453,null,null,"Select from Drop Down","Select from Drop Down","Select from Drop Down",null,null,null,null,null,null,null,null,null,null,null,null,"Select from Drop Down","Select from Drop Down","Select from Drop Down"]
[1454,null,null,"Select from Drop Down","Select from Drop Down","Select from Drop Down",null,null,null,null,null,null,null,null,null,null,null,null,"Select from Drop Down","Select from Drop Down","Select from Drop Down"]
[1455,null,null,"Select from Drop Down","Select from Drop Down","Select from Drop Down",null,null,null,null,null,null,null,null,null,null,null,null,"Select from Drop Down","Select from Drop Down","Select from Drop Down"]
[1456,null,null,"Select from Drop Down","Select from Drop Down","Select from Drop Down",null,null,null,null,null,null,null,null,null,null,null,null,"Select from Drop Down","Select from Drop Down","Select from Drop Down"]
[1457,null,null,"Select from Drop Down","Select from Drop Down","Select from Drop Down",null,null,null,null,null,null,null,null,null,null,null,null,"Select from Drop Down","Select from Drop Down","Select from Drop Down"]
[1458,null,null,"Select from Drop Down","Select from Drop Down","Select from Drop Down",null,null,null,null,null,null,null,null,null,null,null,null,"Select from Drop Down","Select from Drop Down","Select from Drop Down"]
[1459,null,null,"Select from Drop Down","Select from Drop Down","Select from Drop Down",null,null,null,null,null,null,null,null,null,null,null,null,"Select from Drop Down","Select from Drop Down","Select from Drop Down"]
[1460,null,null,"Select from Drop Down","Select from Drop Down","Select from Drop Down",null,null,null,null,null,null,null,null,null,null,null,null,"Select from Drop Down","Select from Drop Down","Select from Drop Down"]
[1461,null,null,"Select from Drop Down","Select from Drop Down","Select from Drop Down",null,null,null,null,null,null,null,null,null,null,null,null,"Select from Drop Down","Select from Drop Down","Select from Drop Down"]
[1462,null,null,"Select from Drop Down","Select from Drop Down","Select from Drop Down",null,null,null,null,null,null,null,null,null,null,null,null,"Select from Drop Down","Select from Drop Down","Select from Drop Down"]
[1463,null,null,"Select from Drop Down","Select from Drop Down","Select from Drop Down",null,null,null,null,null,null,null,null,null,null,null,null,"Select from Drop Down","Select from Drop Down","Select from Drop Down"]
[1464,null,null,"Select from Drop Down","Select from Drop Down","Select from Drop Down",null,null,null,null,null,null,null,null,null,null,null,null,"Select from Drop Down","Select from Drop Down","Select from Drop Down"]
[1465,null,null,"Select from Drop Down","Select from Drop Down","Select from Drop Down",null,null,null,null,null,null,null,null,null,null,null,null,"Select from Drop Down","Select from Drop Down","Select from Drop Down"]
[1466,null,null,"Select from Drop Down","Select from Drop Down","Select from Drop Down",null,null,null,null,null,null,null,null,null,null,null,null,"Select from Drop Down","Select from Drop Down","Select from Drop Down"]
[1467,null,null,"Select from Drop Down","Select from Drop Down","Select from Drop Down",null,null,null,null,null,null,null,null,null,null,null,null,"Select from Drop Down","Select from Drop Down","Select from Drop Down"]
[1468,null,null,"Select from Drop Down","Select from Drop Down","Select from Drop Down",null,null,null,null,null,null,null,null,null,null,null,null,"Select from Drop Down","Select from Drop Down","Select from Drop Down"]
[1469,null,null,"Select from Drop Down","Select from Drop Down","Select from Drop Down",null,null,null,null,null,null,null,null,null,null,null,null,"Select from Drop Down","Select from Drop Down","Select from Drop Down"]
[1470,null,null,"Select from Drop Down","Select from Drop Down","Select from Drop Down",null,null,null,null,null,null,null,null,null,null,null,null,"Select from Drop Down","Select from Drop Down","Select from Drop Down"]
[1471,null,null,"Select from Drop Down","Select from Drop Down","Select from Drop Down",null,null,null,null,null,null,null,null,null,null,null,null,"Select from Drop Down","Select from Drop Down","Select from Drop Down"]
[1472,null,null,"Select from Drop Down","Select from Drop Down","Select from Drop Down",null,null,null,null,null,null,null,null,null,null,null,null,"Select from Drop Down","Select from Drop Down","Select from Drop Down"]
[1473,null,null,"Select from Drop Down","Select from Drop Down","Select from Drop Down",null,null,null,null,null,null,null,null,null,null,null,null,"Select from Drop Down","Select from Drop Down","Select from Drop Down"]
[1474,null,null,"Select from Drop Down","Select from Drop Down","Select from Drop Down",null,null,null,null,null,null,null,null,null,null,null,null,"Select from Drop Down","Select from Drop Down","Select from Drop Down"]
[{"$f":"A1484+1","v":1475},null,null,"Select from Drop Down","Select from Drop Down","Select from Drop Down",null,null,null,null,null,null,null,null,null,null,null,null,"Select from Drop Down","Select from Drop Down","Select from Drop Down"]
[1476,null,null,"Select from Drop Down","Select from Drop Down","Select from Drop Down",null,null,null,null,null,null,null,null,null,null,null,null,"Select from Drop Down","Select from Drop Down","Select from Drop Down"]
[1477,null,null,"Select from Drop Down","Select from Drop Down","Select from Drop Down",null,null,null,null,null,null,null,null,null,null,null,null,"Select from Drop Down","Select from Drop Down","Select from Drop Down"]
[1478,null,null,"Select from Drop Down","Select from Drop Down","Select from Drop Down",null,null,null,null,null,null,null,null,null,null,null,null,"Select from Drop Down","Select from Drop Down","Select from Drop Down"]
[1479,null,null,"Select from Drop Down","Select from Drop Down","Select from Drop Down",null,null,null,null,null,null,null,null,null,null,null,null,"Select from Drop Down","Select from Drop Down","Select from Drop Down"]
[1480,null,null,"Select from Drop Down","Select from Drop Down","Select from Drop Down",null,null,null,null,null,null,null,null,null,null,null,null,"Select from Drop Down","Select from Drop Down","Select from Drop Down"]
[1481,null,null,"Select from Drop Down","Select from Drop Down","Select from Drop Down",null,null,null,null,null,null,null,null,null,null,null,null,"Select from Drop Down","Select from Drop Down","Select from Drop Down"]
[1482,null,null,"Select from Drop Down","Select from Drop Down","Select from Drop Down",null,null,null,null,null,null,null,null,null,null,null,null,"Select from Drop Down","Select from Drop Down","Select from Drop Down"]
[1483,null,null,"Select from Drop Down","Select from Drop Down","Select from Drop Down",null,null,null,null,null,null,null,null,null,null,null,null,"Select from Drop Down","Select from Drop Down","Select from Drop Down"]
[1484,null,null,"Select from Drop Down","Select from Drop Down","Select from Drop Down",null,null,null,null,null,null,null,null,null,null,null,null,"Select from Drop Down","Select from Drop Down","Select from Drop Down"]
[1485,null,null,"Select from Drop Down","Select from Drop Down","Select from Drop Down",null,null,null,null,null,null,null,null,null,null,null,null,"Select from Drop Down","Select from Drop Down","Select from Drop Down"]
[1486,null,null,"Select from Drop Down","Select from Drop Down","Select from Drop Down",null,null,null,null,null,null,null,null,null,null,null,null,"Select from Drop Down","Select from Drop Down","Select from Drop Down"]
[1487,null,null,"Select from Drop Down","Select from Drop Down","Select from Drop Down",null,null,null,null,null,null,null,null,null,null,null,null,"Select from Drop Down","Select from Drop Down","Select from Drop Down"]
[1488,null,null,"Select from Drop Down","Select from Drop Down","Select from Drop Down",null,null,null,null,null,null,null,null,null,null,null,null,"Select from Drop Down","Select from Drop Down","Select from Drop Down"]
[1489,null,null,"Select from Drop Down","Select from Drop Down","Select from Drop Down",null,null,null,null,null,null,null,null,null,null,null,null,"Select from Drop Down","Select from Drop Down","Select from Drop Down"]
[1490,null,null,"Select from Drop Down","Select from Drop Down","Select from Drop Down",null,null,null,null,null,null,null,null,null,null,null,null,"Select from Drop Down","Select from Drop Down","Select from Drop Down"]
[1491,null,null,"Select from Drop Down","Select from Drop Down","Select from Drop Down",null,null,null,null,null,null,null,null,null,null,null,null,"Select from Drop Down","Select from Drop Down","Select from Drop Down"]
[1492,null,null,"Select from Drop Down","Select from Drop Down","Select from Drop Down",null,null,null,null,null,null,null,null,null,null,null,null,"Select from Drop Down","Select from Drop Down","Select from Drop Down"]
[1493,null,null,"Select from Drop Down","Select from Drop Down","Select from Drop Down",null,null,null,null,null,null,null,null,null,null,null,null,"Select from Drop Down","Select from Drop Down","Select from Drop Down"]
[1494,null,null,"Select from Drop Down","Select from Drop Down","Select from Drop Down",null,null,null,null,null,null,null,null,null,null,null,null,"Select from Drop Down","Select from Drop Down","Select from Drop Down"]
[1495,null,null,"Select from Drop Down","Select from Drop Down","Select from Drop Down",null,null,null,null,null,null,null,null,null,null,null,null,"Select from Drop Down","Select from Drop Down","Select from Drop Down"]
[1496,null,null,"Select from Drop Down","Select from Drop Down","Select from Drop Down",null,null,null,null,null,null,null,null,null,null,null,null,"Select from Drop Down","Select from Drop Down","Select from Drop Down"]
[1497,null,null,"Select from Drop Down","Select from Drop Down","Select from Drop Down",null,null,null,null,null,null,null,null,null,null,null,null,"Select from Drop Down","Select from Drop Down","Select from Drop Down"]
[1498,null,null,"Select from Drop Down","Select from Drop Down","Select from Drop Down",null,null,null,null,null,null,null,null,null,null,null,null,"Select from Drop Down","Select from Drop Down","Select from Drop Down"]
[1499,null,null,"Select from Drop Down","Select from Drop Down","Select from Drop Down",null,null,null,null,null,null,null,null,null,null,null,null,"Select from Drop Down","Select from Drop Down","Select from Drop Down"]
[1500,null,null,"Select from Drop Down","Select from Drop Down","Select from Drop Down",null,null,null,null,null,null,null,null,null,null,null,null,"Select from Drop Down","Select from Drop Down","Select from Drop Down"]
[]
[null,"TOTAL",null,null,null,null,{"$f":"SUM(G11:G1510)","v":0},{"$f":"SUM(H11:H1510)","v":0},null,null,null,{"$f":"SUM(L11:L1510)","v":0},0,0,0,0,0,0,null,null,null,{"$f":"SUM(V11:V1510)","v":0}]
[]
[null,"General Comments"]
[null,{"$f":"Import!E9896","v":0}]
[]
[]
[]
[]
[]
[]
[]
[]
[]
[null,null,null,null,null,null,null,null,"Select Yes/No",null,null,null,"Lines of Business",null,null,"Zones",null,null,"Currency",null,"Select from Drop Down","Nature of Collateral"]
[null,null,null,null,null,null,null,null,"Yes",null,null,null,"Select from Drop Down",null,null,"Select from Drop Down",null,null,"Select from Drop Down",null,"AAA","Select from Drop Down"]
[null,null,null,null,null,null,"Select from Drop Down","Select from Drop Down","No",null,null,null,"Property Catastrophe",null,null,"US,",null,null,"USD",null,"AAA-","Money Market Fund"]
[null,null,null,null,null,null,"Indemnity ","Parametric/Industry Loss Warranty",null,"Select from Drop Down",null,null,"Property",null,null,"Europe",null,null,"BP",null,"AA","Letter of Credit "]
[null,null,null,null,null,null,"Excess-of-Loss","Excess-of-Loss",null,"Catastrophe Bond",null,null,"Property Non – Proportional",null,null,"UK",null,null,"Euro",null,"AA-","Funds Withheld"]
[null,null,null,null,null,null,"Industry Loss Warranty","Quota Share",null,"Sidecar",null,null,"Personal Accident",null,null,"Latin America",null,null,"AUD",null,"A","Cash"]
[null,null,null,null,null,null,"Quota Share","Stop Loss",null,"Collateralised Reinsurance",null,null,"Personal Accident Non- Proportional",null,null,"Asia",null,null,"CAD",null,"A-","Sovereign Bonds"]
[null,null,null,null,null,null,"Stop Loss","Index",null,"Mortgage Bond",null,null,"Aviation",null,null,"Africa",null,null,"Yen",null,"BBB","Corporate Bonds"]
[null,null,null,null,null,null,"Other","Ultimate Net Loss ",null,"Other",null,null,"Aviation Non – Proportional",null,null,"Australia",null,null,"Multi Currency",null,"BBB-","IBDR Notes"]
[null,null,null,null,null,null,null,"Other",null,null,null,null,"Credit / Surety ",null,null,"Worldwide",null,null,"Other",null,"BB","Multiple Holdings"]
[null,null,null,null,null,null,null,null,null,null,null,null,"Credit / Surety Non – Proportional",null,null,"Other",null,null,null,null,"BB-","Other"]
[null,null,null,null,null,null,null,null,null,null,null,null,"Energy Offshore / Marine",null,null,null,null,null,null,null,"B"]
[null,null,null,null,null,null,null,null,null,null,null,null,"Energy Offshore / Marine Non - Proportional ",null,null,null,null,null,null,null,"B-"]
[null,null,null,null,null,null,null,null,null,null,null,null,"US Casualty",null,null,null,null,null,null,null,"CCC"]
[null,null,null,null,null,null,null,null,null,null,null,null,"US Casualty Non - Proportional ",null,null,null,null,null,null,null,"CCC or Below"]
[null,null,null,null,null,null,null,null,null,null,null,null,"US Professional"]
[null,null,null,null,null,null,null,null,null,null,null,null,"US Professional Non – Proportional"]
[null,null,null,null,null,null,null,null,null,null,null,null,"US Specialty "]
[null,null,null,null,null,null,null,null,null,null,null,null,"US Specialty Non - Proportional"]
[null,null,null,null,null,null,null,null,null,null,null,null,"International Motor "]
[null,null,null,null,null,null,null,null,null,null,null,null,"International Motor Non – Proportional"]
[null,null,null,null,null,null,null,null,null,null,null,null,"International Casualty Non – Motor "]
[null,null,null,null,null,null,null,null,null,null,null,null,"International Casualty Non Motor Non – Proportional "]
[null,null,null,null,null,null,null,null,null,null,null,null,"Retro Property"]
[null,null,null,null,null,null,null,null,null,null,null,null,"Structured / Finite Reinsurance"]
[null,null,null,null,null,null,null,null,null,null,null,null,"Health"]
[null,null,null,null,null,null,null,null,null,null,null,null,"Weather"]
[]
[null,null,null,null,null,null,null,null,null,null,null,null,"Mortality "]
[null,null,null,null,null,null,null,null,null,null,null,null,"Critical Illness"]
[null,null,null,null,null,null,null,null,null,null,null,null,"Longevity"]
[null,null,null,null,null,null,null,null,null,null,null,null,"Deferred Annuities"]
[null,null,null,null,null,null,null,null,null,null,null,null,"Disability Income: Active lives with premium guarantee"]
[null,null,null,null,null,null,null,null,null,null,null,null,"Disability Income: Actives lives for other accident and sickenss"]
[null,null,null,null,null,null,null,null,null,null,null,null,"Disability Income: Claims in payment "]
[null,null,null,null,null,null,null,null,null,null,null,null,"Disability Income: Claims in payment for other accident and sickness"]
[null,null,null,null,null,null,null,null,null,null,null,null,"Group Life"]
[null,null,null,null,null,null,null,null,null,null,null,null,"Group Disability"]
[null,null,null,null,null,null,null,null,null,null,null,null,"Group Health"]
[null,null,null,null,null,null,null,null,null,null,null,null,"Stop Loss"]
[null,null,null,null,null,null,null,null,null,null,null,null,"Rider"]
[null,null,null,null,null,null,null,null,null,null,null,null,"Variable Annuities"]

{"sheet":"Dropdowns for Schedule VI","index":50,"n_rows":243,"n_cols":14,"rows_kept":243,"cut":false,"hidden":true,"merged":[]}
[]
[null,"Cash","Sovereign Bonds","RMBS - Agency","Public Equities","Private Equities","Investment Income Due and Accrued","Energy","Holding Entity","Significant Influence",null,"Insured/Guaranteed Mortgages",null,"Afghanistan"]
[null,"Certificates of Deposit","Municipals","RMBS - Non-agency","Public Preferred Stock","Investment Funds","Accounts and Premiums Receivable","Materials","Operating Entity","Control",null,"Other Commercial and Farm Mortgages",null,"Aland Islands"]
[null,"Money Market Funds","Supranationals (multilateral development banks and international organizations)","CMBS","Exchange Traded Funds","Hedge Funds","Reinsurance Balance Receivable","Industrial","Branch","Select",null,"Other Residential Mortgages",null,"Albania"]
[null,"Other","Corporate bonds","CLOs","Other","Private Credit Funds","Funds Held by Ceding Reinsurers","Consumer Discretionary","Select",null,null,"Mortgages Not In Good Standing",null,"Algeria"]
[null,"Select","Private Placements","CDOs","Select","Catastrophe Bonds","SAC - long-term business - variable annuities","Consumer Staples",null,null,null,"Collateral Loans",null,"American Samoa"]
[null,null,"Mutual Funds","Auto Loan ABS",null,"Other Insurance-Linked Securities","SAC - long-term business - others","Healthcare",null,null,null,"Middle Market Loans",null,"Andorra"]
[null,null,"Other - Secured Bonds","Student Loan ABS",null,"Infrastructure Debt","SAC - general business","Financial",null,null,null,"Other Direct Private Lending",null,"Angola"]
[null,null,"Other - Unsecured Bonds","Credit Card Receivable ABS",null,"Equity Investments in Infrastructure","Deposit assets","Select",null,null,null,"Policy Loans",null,"Anguilla"]
[null,null,"Other","Other ABS",null,"Investment in Affiliates","Other Sundry Assets",null,null,null,null,"Other",null,"Antigua and Barbuda"]
[null,null,"Select","Select",null,"Advances to Affiliates","Letter of Credit, Guarantees and Other Instruments",null,null,null,null,"Select",null,"Argentina"]
[null,null,null,null,null,"Equity Release / Reverse Mortgages","Other",null,null,null,null,null,null,"Armenia"]
[null,null,null,null,null,"Other","Select",null,null,null,null,null,null,"Aruba"]
[null,null,null,null,null,"Select",null,null,null,null,null,null,null,"Australia"]
[null,null,null,null,null,null,null,null,null,null,null,null,null,"Austria"]
[null,null,null,null,null,null,null,null,null,null,null,null,null,"Azerbaijan"]
[null,null,null,null,null,null,null,null,null,null,null,null,null,"Bahamas"]
[null,"Listed options","Equity","Hedging","Long / Receive Fixed / Sell Protection","Private Equities","Investment Income Due and Accrued","Real Estate - Owner Occupied",null,null,null,null,null,"Bahrain"]
[null,"Futures","Debt","Speculative","Short / Receive Floating / Buy Protection","Investment Funds","Accounts and Premiums Receivable","Real Estate - Investment",null,null,null,null,null,"Bangladesh"]
[null,"Forwards","Interest Rate","Select","Select","Hedge Funds","Reinsurance Balance Receivable","Select",null,null,null,"Insured/Guaranteed Mortgages",null,"Barbados"]
[null,"Swaps","Inflation",null,null,"Private Credit Funds","SAC - long-term business - variable annuities",null,null,null,null,"Other Commercial and Farm Mortgages",null,"Belarus"]
[null,"Swaptions","Credit",null,null,"Catastrophe Bonds","SAC - long-term business - others",null,null,null,null,"Other Residential Mortgages",null,"Belgium"]
[null,"OTC options","Currencies","Yes",null,"Other Insurance-Linked Securities","SAC - general business","Owner-occupied",null,null,null,"Mortgages Not In Good Standing",null,"Belize"]
[null,"Other","Commodities","No",null,"Infrastructure Debt","Deposit assets","Investment",null,null,null,"Collateral Loans",null,"Benin"]
[null,"Select","Other","Select",null,"Equity Investments in Infrastructure","Other Sundry Assets","Select",null,null,null,"Middle Market Loans",null,"Bermuda"]
[null,null,"Select",null,null,"Equity Release / Reverse Mortgages","Letter of Credit, Guarantees and Other Instruments",null,null,null,null,"Other Direct Private Lending",null,"Bhutan"]
[null,null,null,null,null,"Other","Other",null,null,null,null,"Policy Loans",null,"Bolivia (Plurinational State of)"]
[null,null,null,null,null,"Select","Select",null,null,null,null,"Other",null,"Bonaire, Sint Eustatius and Saba"]
[null,null,null,null,null,null,null,null,null,null,null,"Select",null,"Bosnia and Herzegovina"]
[null,null,null,null,null,null,null,null,null,null,null,null,null,"Botswana"]
[null,"BSCR Rating",null,null,null,null,null,null,null,null,null,null,null,"Brazil"]
[null,"Select",null,null,null,null,null,null,null,null,null,null,null,"British Virgin Islands"]
[null,"BSCR Rating 0",null,null,null,null,null,null,null,null,null,null,null,"Brunei Darussalam"]
[null,"BSCR Rating 1",null,null,null,null,null,null,null,null,null,null,null,"Bulgaria"]
[null,"BSCR Rating 2",null,null,null,null,null,null,null,null,null,null,null,"Burkina Faso"]
[null,"BSCR Rating 3",null,null,null,null,null,null,null,null,null,null,null,"Burundi"]
[null,"BSCR Rating 4",null,null,null,null,null,null,null,null,null,null,null,"Cabo Verde (Cape Verde)"]
[null,"BSCR Rating 5",null,null,null,null,null,null,null,null,null,null,null,"Cambodia"]
[null,"BSCR Rating 6",null,null,null,null,null,null,null,null,null,null,null,"Cameroon"]
[null,"BSCR Rating 7",null,null,null,null,null,null,null,null,null,null,null,"Canada"]
[null,"BSCR Rating 8",null,null,null,null,null,null,null,null,null,null,null,"Cayman Islands"]
[null,null,null,null,null,null,null,null,null,null,null,null,null,"Central African Republic"]
[null,null,null,null,null,null,null,null,null,null,null,null,null,"Chad"]
[null,null,null,null,null,null,null,null,null,null,null,null,null,"Chile"]
[null,null,null,null,null,null,null,null,null,null,null,null,null,"China"]
[null,null,null,null,null,null,null,null,null,null,null,null,null,"China, Hong Kong SAR"]
[null,null,null,null,null,null,null,null,null,null,null,null,null,"China, Macao SAR "]
[null,null,null,null,null,null,null,null,null,null,null,null,null,"Colombia"]
[null,null,null,null,null,null,null,null,null,null,null,null,null,"Comoros"]
[null,null,null,null,null,null,null,null,null,null,null,null,null,"Congo"]
[null,null,null,null,null,null,null,null,null,null,null,null,null,"Cook Islands"]
[null,null,null,null,null,null,null,null,null,null,null,null,null,"Costa Rica"]
[null,null,null,null,null,null,null,null,null,null,null,null,null,"Cote d' Ivoire"]
[null,null,null,null,null,null,null,null,null,null,null,null,null,"Croatia"]
[null,null,null,null,null,null,null,null,null,null,null,null,null,"Cuba"]
[null,null,null,null,null,null,null,null,null,null,null,null,null,"Curacao"]
[null,null,null,null,null,null,null,null,null,null,null,null,null,"Cyprus"]
[null,null,null,null,null,null,null,null,null,null,null,null,null,"Czech Republic"]
[null,null,null,null,null,null,null,null,null,null,null,null,null,"Democratic People's Republic of Korea (North Korea)"]
[null,null,null,null,null,null,null,null,null,null,null,null,null,"Democratic Republic of the Congo"]
[null,null,null,null,null,null,null,null,null,null,null,null,null,"Denmark"]
[null,null,null,null,null,null,null,null,null,null,null,null,null,"Djibouti"]
[null,null,null,null,null,null,null,null,null,null,null,null,null,"Dominica"]
[null,null,null,null,null,null,null,null,null,null,null,null,null,"Dominican Republic"]
[null,null,null,null,null,null,null,null,null,null,null,null,null,"Ecuador"]
[null,null,null,null,null,null,null,null,null,null,null,null,null,"Egypt"]
[null,null,null,null,null,null,null,null,null,null,null,null,null,"El Salvador"]
[null,null,null,null,null,null,null,null,null,null,null,null,null,"Equatorial Guinea"]
[null,null,null,null,null,null,null,null,null,null,null,null,null,"Eritrea"]
[null,null,null,null,null,null,null,null,null,null,null,null,null,"Estonia"]
[null,null,null,null,null,null,null,null,null,null,null,null,null,"Eswatini (Kingdom of Swaziland)"]
[null,null,null,null,null,null,null,null,null,null,null,null,null,"Ethiopia"]
[null,null,null,null,null,null,null,null,null,null,null,null,null,"Falkland Islands"]
[null,null,null,null,null,null,null,null,null,null,null,null,null,"Faroe Islands"]
[null,null,null,null,null,null,null,null,null,null,null,null,null,"Fiji"]
[null,null,null,null,null,null,null,null,null,null,null,null,null,"Finland"]
[null,null,null,null,null,null,null,null,null,null,null,null,null,"France"]
[null,null,null,null,null,null,null,null,null,null,null,null,null,"French Guiana"]
[null,null,null,null,null,null,null,null,null,null,null,null,null,"French Polynesia"]
[null,null,null,null,null,null,null,null,null,null,null,null,null,"Gabon"]
[null,null,null,null,null,null,null,null,null,null,null,null,null,"Gambia (Republic of The)"]
[null,null,null,null,null,null,null,null,null,null,null,null,null,"Georgia"]
[null,null,null,null,null,null,null,null,null,null,null,null,null,"Germany"]
[null,null,null,null,null,null,null,null,null,null,null,null,null,"Ghana"]
[null,null,null,null,null,null,null,null,null,null,null,null,null,"Gibraltar"]
[null,null,null,null,null,null,null,null,null,null,null,null,null,"Greece"]
[null,null,null,null,null,null,null,null,null,null,null,null,null,"Greenland"]
[null,null,null,null,null,null,null,null,null,null,null,null,null,"Grenada"]
[null,null,null,null,null,null,null,null,null,null,null,null,null,"Guadeloupe"]
[null,null,null,null,null,null,null,null,null,null,null,null,null,"Guam"]
[null,null,null,null,null,null,null,null,null,null,null,null,null,"Guatemala"]
[null,null,null,null,null,null,null,null,null,null,null,null,null,"Guernsey"]
[null,null,null,null,null,null,null,null,null,null,null,null,null,"Guinea"]
[null,null,null,null,null,null,null,null,null,null,null,null,null,"Guinea-Bissau"]
[null,null,null,null,null,null,null,null,null,null,null,null,null,"Guyana"]
[null,null,null,null,null,null,null,null,null,null,null,null,null,"Haiti"]
[null,null,null,null,null,null,null,null,null,null,null,null,null,"Holy See"]
[null,null,null,null,null,null,null,null,null,null,null,null,null,"Honduras"]
[null,null,null,null,null,null,null,null,null,null,null,null,null,"Hungary"]
[null,null,null,null,null,null,null,null,null,null,null,null,null,"Iceland"]
[null,null,null,null,null,null,null,null,null,null,null,null,null,"India"]
[null,null,null,null,null,null,null,null,null,null,null,null,null,"Indonesia"]
[null,null,null,null,null,null,null,null,null,null,null,null,null,"Iran (Islamic Republic of)"]
[null,null,null,null,null,null,null,null,null,null,null,null,null,"Iraq"]
[null,null,null,null,null,null,null,null,null,null,null,null,null,"Ireland"]
[null,null,null,null,null,null,null,null,null,null,null,null,null,"Isle of Man"]
[null,null,null,null,null,null,null,null,null,null,null,null,null,"Israel"]
[null,null,null,null,null,null,null,null,null,null,null,null,null,"Italy"]
[null,null,null,null,null,null,null,null,null,null,null,null,null,"Jamaica"]
[null,null,null,null,null,null,null,null,null,null,null,null,null,"Japan"]
[null,null,null,null,null,null,null,null,null,null,null,null,null,"Jersey"]
[null,null,null,null,null,null,null,null,null,null,null,null,null,"Jordan"]
[null,null,null,null,null,null,null,null,null,null,null,null,null,"Kazakhstan"]
[null,null,null,null,null,null,null,null,null,null,null,null,null,"Kenya"]
[null,null,null,null,null,null,null,null,null,null,null,null,null,"Kiribati"]
[null,null,null,null,null,null,null,null,null,null,null,null,null,"Kuwait"]
[null,null,null,null,null,null,null,null,null,null,null,null,null,"Kyrgyzstan"]
[null,null,null,null,null,null,null,null,null,null,null,null,null,"Lao People's Democratic Republic"]
[null,null,null,null,null,null,null,null,null,null,null,null,null,"Latvia"]
[null,null,null,null,null,null,null,null,null,null,null,null,null,"Lebanon"]
[null,null,null,null,null,null,null,null,null,null,null,null,null,"Lesotho"]
[null,null,null,null,null,null,null,null,null,null,null,null,null,"Liberia"]
[null,null,null,null,null,null,null,null,null,null,null,null,null,"Libya"]
[null,null,null,null,null,null,null,null,null,null,null,null,null,"Liechtenstein"]
[null,null,null,null,null,null,null,null,null,null,null,null,null,"Lithuania"]
[null,null,null,null,null,null,null,null,null,null,null,null,null,"Luxembourg"]
[null,null,null,null,null,null,null,null,null,null,null,null,null,"Madagascar"]
[null,null,null,null,null,null,null,null,null,null,null,null,null,"Malawi"]
[null,null,null,null,null,null,null,null,null,null,null,null,null,"Malaysia"]
[null,null,null,null,null,null,null,null,null,null,null,null,null,"Maldives"]
[null,null,null,null,null,null,null,null,null,null,null,null,null,"Mali"]
[null,null,null,null,null,null,null,null,null,null,null,null,null,"Malta"]
[null,null,null,null,null,null,null,null,null,null,null,null,null,"Marshall Islands"]
[null,null,null,null,null,null,null,null,null,null,null,null,null,"Martinique"]
[null,null,null,null,null,null,null,null,null,null,null,null,null,"Mauritania"]
[null,null,null,null,null,null,null,null,null,null,null,null,null,"Mauritius"]
[null,null,null,null,null,null,null,null,null,null,null,null,null,"Mayotte"]
[null,null,null,null,null,null,null,null,null,null,null,null,null,"Mexico"]
[null,null,null,null,null,null,null,null,null,null,null,null,null,"Micronesia (Federated States of)"]
[null,null,null,null,null,null,null,null,null,null,null,null,null,"Monaco"]
[null,null,null,null,null,null,null,null,null,null,null,null,null,"Mongolia"]
[null,null,null,null,null,null,null,null,null,null,null,null,null,"Montenegro"]
[null,null,null,null,null,null,null,null,null,null,null,null,null,"Montserrat"]
[null,null,null,null,null,null,null,null,null,null,null,null,null,"Morocco"]
[null,null,null,null,null,null,null,null,null,null,null,null,null,"Mozambique"]
[null,null,null,null,null,null,null,null,null,null,null,null,null,"Myanmar"]
[null,null,null,null,null,null,null,null,null,null,null,null,null,"Namibia"]
[null,null,null,null,null,null,null,null,null,null,null,null,null,"Nauru"]
[null,null,null,null,null,null,null,null,null,null,null,null,null,"Nepal"]
[null,null,null,null,null,null,null,null,null,null,null,null,null,"Netherlands"]
[null,null,null,null,null,null,null,null,null,null,null,null,null,"New Caledonia"]
[null,null,null,null,null,null,null,null,null,null,null,null,null,"New Zealand"]
[null,null,null,null,null,null,null,null,null,null,null,null,null,"Nicaragua"]
[null,null,null,null,null,null,null,null,null,null,null,null,null,"Niger"]
[null,null,null,null,null,null,null,null,null,null,null,null,null,"Nigeria"]
[null,null,null,null,null,null,null,null,null,null,null,null,null,"Niue"]
[null,null,null,null,null,null,null,null,null,null,null,null,null,"Norfolk Island"]
[null,null,null,null,null,null,null,null,null,null,null,null,null,"North Macedonia"]
[null,null,null,null,null,null,null,null,null,null,null,null,null,"Northern Mariana Islands"]
[null,null,null,null,null,null,null,null,null,null,null,null,null,"Norway"]
[null,null,null,null,null,null,null,null,null,null,null,null,null,"Oman"]
[null,null,null,null,null,null,null,null,null,null,null,null,null,"Pakistan"]
[null,null,null,null,null,null,null,null,null,null,null,null,null,"Palau"]
[null,null,null,null,null,null,null,null,null,null,null,null,null,"Panama"]
[null,null,null,null,null,null,null,null,null,null,null,null,null,"Papua New Guinea"]
[null,null,null,null,null,null,null,null,null,null,null,null,null,"Paraguay"]
[null,null,null,null,null,null,null,null,null,null,null,null,null,"Peru"]
[null,null,null,null,null,null,null,null,null,null,null,null,null,"Philippines"]
[null,null,null,null,null,null,null,null,null,null,null,null,null,"Pitcairn"]
[null,null,null,null,null,null,null,null,null,null,null,null,null,"Poland"]
[null,null,null,null,null,null,null,null,null,null,null,null,null,"Portugal"]
[null,null,null,null,null,null,null,null,null,null,null,null,null,"Puerto Rico"]
[null,null,null,null,null,null,null,null,null,null,null,null,null,"Qatar"]
[null,null,null,null,null,null,null,null,null,null,null,null,null,"Republic of Korea (South Korea)"]
[null,null,null,null,null,null,null,null,null,null,null,null,null,"Republic of Moldova"]
[null,null,null,null,null,null,null,null,null,null,null,null,null,"Reunion"]
[null,null,null,null,null,null,null,null,null,null,null,null,null,"Romania"]
[null,null,null,null,null,null,null,null,null,null,null,null,null,"Russian Federation"]
[null,null,null,null,null,null,null,null,null,null,null,null,null,"Rwanda"]
[null,null,null,null,null,null,null,null,null,null,null,null,null,"Saint Barthelemy (St. Barts)"]
[null,null,null,null,null,null,null,null,null,null,null,null,null,"Saint Helena"]
[null,null,null,null,null,null,null,null,null,null,null,null,null,"Saint Kitts and Nevis"]
[null,null,null,null,null,null,null,null,null,null,null,null,null,"Saint Lucia"]
[null,null,null,null,null,null,null,null,null,null,null,null,null,"Saint Martin"]
[null,null,null,null,null,null,null,null,null,null,null,null,null,"Saint Pierre and Miquelon"]
[null,null,null,null,null,null,null,null,null,null,null,null,null,"Saint Vincent and The Grenadines"]
[null,null,null,null,null,null,null,null,null,null,null,null,null,"Samoa"]
[null,null,null,null,null,null,null,null,null,null,null,null,null,"San Marino"]
[null,null,null,null,null,null,null,null,null,null,null,null,null,"Sao Tome and Principe"]
[null,null,null,null,null,null,null,null,null,null,null,null,null,"Sark"]
[null,null,null,null,null,null,null,null,null,null,null,null,null,"Saudi Arabia"]
[null,null,null,null,null,null,null,null,null,null,null,null,null,"Senegal"]
[null,null,null,null,null,null,null,null,null,null,null,null,null,"Serbia"]
[null,null,null,null,null,null,null,null,null,null,null,null,null,"Seychelles"]
[null,null,null,null,null,null,null,null,null,null,null,null,null,"Sierra Leone"]
[null,null,null,null,null,null,null,null,null,null,null,null,null,"Singapore"]
[null,null,null,null,null,null,null,null,null,null,null,null,null,"Sint Maarten"]
[null,null,null,null,null,null,null,null,null,null,null,null,null,"Slovakia"]
[null,null,null,null,null,null,null,null,null,null,null,null,null,"Slovenia"]
[null,null,null,null,null,null,null,null,null,null,null,null,null,"Solomon Islands"]
[null,null,null,null,null,null,null,null,null,null,null,null,null,"Somalia"]
[null,null,null,null,null,null,null,null,null,null,null,null,null,"South Africa"]
[null,null,null,null,null,null,null,null,null,null,null,null,null,"South Sudan"]
[null,null,null,null,null,null,null,null,null,null,null,null,null,"Spain"]
[null,null,null,null,null,null,null,null,null,null,null,null,null,"Sri Lanka"]
[null,null,null,null,null,null,null,null,null,null,null,null,null,"State of Palestine"]
[null,null,null,null,null,null,null,null,null,null,null,null,null,"Sudan"]
[null,null,null,null,null,null,null,null,null,null,null,null,null,"Suriname"]
[null,null,null,null,null,null,null,null,null,null,null,null,null,"Svalbard, Jan Mayen"]
[null,null,null,null,null,null,null,null,null,null,null,null,null,"Sweden"]
[null,null,null,null,null,null,null,null,null,null,null,null,null,"Switzerland"]
[null,null,null,null,null,null,null,null,null,null,null,null,null,"Syrian Arab Republic"]
[null,null,null,null,null,null,null,null,null,null,null,null,null,"Taiwan"]
[null,null,null,null,null,null,null,null,null,null,null,null,null,"Tajikistan"]
[null,null,null,null,null,null,null,null,null,null,null,null,null,"Thailand"]
[null,null,null,null,null,null,null,null,null,null,null,null,null,"Timor-Leste"]
[null,null,null,null,null,null,null,null,null,null,null,null,null,"Togo"]
[null,null,null,null,null,null,null,null,null,null,null,null,null,"Tokelau"]
[null,null,null,null,null,null,null,null,null,null,null,null,null,"Tonga"]
[null,null,null,null,null,null,null,null,null,null,null,null,null,"Trinidad and Tobago"]
[null,null,null,null,null,null,null,null,null,null,null,null,null,"Tunisia"]
[null,null,null,null,null,null,null,null,null,null,null,null,null,"Turkey"]
[null,null,null,null,null,null,null,null,null,null,null,null,null,"Turkmenistan"]
[null,null,null,null,null,null,null,null,null,null,null,null,null,"Turks & Caicos Islands"]
[null,null,null,null,null,null,null,null,null,null,null,null,null,"Tuvalu"]
[null,null,null,null,null,null,null,null,null,null,null,null,null,"Uganda"]
[null,null,null,null,null,null,null,null,null,null,null,null,null,"Ukraine"]
[null,null,null,null,null,null,null,null,null,null,null,null,null,"United Arab Emirates"]
[null,null,null,null,null,null,null,null,null,null,null,null,null,"United Kingdom of Great Britain and Northern Ireland"]
[null,null,null,null,null,null,null,null,null,null,null,null,null,"United Republic of Tanzania"]
[null,null,null,null,null,null,null,null,null,null,null,null,null,"United States of America"]
[null,null,null,null,null,null,null,null,null,null,null,null,null,"Uruguay"]
[null,null,null,null,null,null,null,null,null,null,null,null,null,"US Virgin Islands"]
[null,null,null,null,null,null,null,null,null,null,null,null,null,"Uzbekistan"]
[null,null,null,null,null,null,null,null,null,null,null,null,null,"Vanuatu"]
[null,null,null,null,null,null,null,null,null,null,null,null,null,"Venezuela, Bolivarian Republic of "]
[null,null,null,null,null,null,null,null,null,null,null,null,null,"Vietnam"]
[null,null,null,null,null,null,null,null,null,null,null,null,null,"Wallis & Futuna Islands"]
[null,null,null,null,null,null,null,null,null,null,null,null,null,"Western Sahara"]
[null,null,null,null,null,null,null,null,null,null,null,null,null,"Yemen"]
[null,null,null,null,null,null,null,null,null,null,null,null,null,"Zambia"]
[null,null,null,null,null,null,null,null,null,null,null,null,null,"Zimbabwe"]
[null,null,null,null,null,null,null,null,null,null,null,null,null,"Select"]

{"sheet":"Schedule VI","index":51,"n_rows":2357,"n_cols":18,"rows_kept":2357,"cut":false,"hidden":false,"merged":[[1793,1,1793,2],[1342,1,1342,2],[1447,1,1447,2],[1450,1,1450,2],[1555,1,1555,2],[1764,6,1765,6],[1764,7,1765,7],[1789,1,1789,2],[1339,1,1339,2],[5,1,5,2],[213,1,213,2],[216,1,216,2],[987,1,987,2],[990,1,990,2],[1095,1,1095,2],[1098,1,1098,2],[1123,1,1123,2],[1126,1,1126,2],[1231,1,1231,2],[1234,1,1234,2],[1763,5,1765,5]]}
[null,"SCHEDULE OF ASSETS",null,null,null,null,null,null,null,null,null,null,null,{"$f":"HYPERLINK(\"#'Index'!A1\",\"Return to Index\")","v":"Return to Index"}]
[null,{"$f":"'Company Information'!C7","v":"Enter Company Name"}]
[null,"As at",{"$f":"'Company Information'!C3","v":"2023-12-31"},null,null,null,null,null,null,null,null,null,null,"Schedule VI"]
[null,"expressed in ['000s]",{"$f":"'Form 1SFS'!C5","v":"United States Dollars"}]
[]
[null,"(A) CASH AND CASH EQUIVALENTS"]
[]
[null,null,"Enter # of Asset Types",{"$f":"Import!E9898","v":0}]
[null,null,null,null,{"$f":"YEAR($C$3)","v":2023},{"$f":"YEAR($C$3)","v":2023}]
[null,"Asset Type","Currency","BSCR Rating","Nominal Amount","Fair Value","Comments"]
[1,{"$f":"Import!E9899","v":"Select"},{"$f":"Import!E10099","v":"Select"},{"$f":"Import!E10299","v":"Select"},{"$f":"Import!E10499","v":0},{"$f":"Import!E10699","v":0},{"$f":"Import!E10899","v":0}]
[{"$f":"A11+1","v":2},{"$f":"Import!E9900","v":"Select"},{"$f":"Import!E10100","v":"Select"},{"$f":"Import!E10300","v":"Select"},{"$f":"Import!E10500","v":0},{"$f":"Import!E10700","v":0},{"$f":"Import!E10900","v":0}]
[{"$f":"A12+1","v":3},{"$f":"Import!E9901","v":"Select"},{"$f":"Import!E10101","v":"Select"},{"$f":"Import!E10301","v":"Select"},{"$f":"Import!E10501","v":0},{"$f":"Import!E10701","v":0},{"$f":"Import!E10901","v":0}]
[4,{"$f":"Import!E9902","v":"Select"},{"$f":"Import!E10102","v":"Select"},{"$f":"Import!E10302","v":"Select"},{"$f":"Import!E10502","v":0},{"$f":"Import!E10702","v":0},{"$f":"Import!E10902","v":0}]
[5,{"$f":"Import!E9903","v":"Select"},{"$f":"Import!E10103","v":"Select"},{"$f":"Import!E10303","v":"Select"},{"$f":"Import!E10503","v":0},{"$f":"Import!E10703","v":0},{"$f":"Import!E10903","v":0}]
[6,{"$f":"Import!E9904","v":"Select"},{"$f":"Import!E10104","v":"Select"},{"$f":"Import!E10304","v":"Select"},{"$f":"Import!E10504","v":0},{"$f":"Import!E10704","v":0},{"$f":"Import!E10904","v":0}]
[7,{"$f":"Import!E9905","v":"Select"},{"$f":"Import!E10105","v":"Select"},{"$f":"Import!E10305","v":"Select"},{"$f":"Import!E10505","v":0},{"$f":"Import!E10705","v":0},{"$f":"Import!E10905","v":0}]
[8,{"$f":"Import!E9906","v":"Select"},{"$f":"Import!E10106","v":"Select"},{"$f":"Import!E10306","v":"Select"},{"$f":"Import!E10506","v":0},{"$f":"Import!E10706","v":0},{"$f":"Import!E10906","v":0}]
[9,{"$f":"Import!E9907","v":"Select"},{"$f":"Import!E10107","v":"Select"},{"$f":"Import!E10307","v":"Select"},{"$f":"Import!E10507","v":0},{"$f":"Import!E10707","v":0},{"$f":"Import!E10907","v":0}]
[10,{"$f":"Import!E9908","v":"Select"},{"$f":"Import!E10108","v":"Select"},{"$f":"Import!E10308","v":"Select"},{"$f":"Import!E10508","v":0},{"$f":"Import!E10708","v":0},{"$f":"Import!E10908","v":0}]
[11,{"$f":"Import!E9909","v":"Select"},{"$f":"Import!E10109","v":"Select"},{"$f":"Import!E10309","v":"Select"},{"$f":"Import!E10509","v":0},{"$f":"Import!E10709","v":0},{"$f":"Import!E10909","v":0}]
[12,{"$f":"Import!E9910","v":"Select"},{"$f":"Import!E10110","v":"Select"},{"$f":"Import!E10310","v":"Select"},{"$f":"Import!E10510","v":0},{"$f":"Import!E10710","v":0},{"$f":"Import!E10910","v":0}]
[13,{"$f":"Import!E9911","v":"Select"},{"$f":"Import!E10111","v":"Select"},{"$f":"Import!E10311","v":"Select"},{"$f":"Import!E10511","v":0},{"$f":"Import!E10711","v":0},{"$f":"Import!E10911","v":0}]
[14,{"$f":"Import!E9912","v":"Select"},{"$f":"Import!E10112","v":"Select"},{"$f":"Import!E10312","v":"Select"},{"$f":"Import!E10512","v":0},{"$f":"Import!E10712","v":0},{"$f":"Import!E10912","v":0}]
[15,{"$f":"Import!E9913","v":"Select"},{"$f":"Import!E10113","v":"Select"},{"$f":"Import!E10313","v":"Select"},{"$f":"Import!E10513","v":0},{"$f":"Import!E10713","v":0},{"$f":"Import!E10913","v":0}]
[16,{"$f":"Import!E9914","v":"Select"},{"$f":"Import!E10114","v":"Select"},{"$f":"Import!E10314","v":"Select"},{"$f":"Import!E10514","v":0},{"$f":"Import!E10714","v":0},{"$f":"Import!E10914","v":0}]
[17,{"$f":"Import!E9915","v":"Select"},{"$f":"Import!E10115","v":"Select"},{"$f":"Import!E10315","v":"Select"},{"$f":"Import!E10515","v":0},{"$f":"Import!E10715","v":0},{"$f":"Import!E10915","v":0}]
[18,{"$f":"Import!E9916","v":"Select"},{"$f":"Import!E10116","v":"Select"},{"$f":"Import!E10316","v":"Select"},{"$f":"Import!E10516","v":0},{"$f":"Import!E10716","v":0},{"$f":"Import!E10916","v":0}]
[19,{"$f":"Import!E9917","v":"Select"},{"$f":"Import!E10117","v":"Select"},{"$f":"Import!E10317","v":"Select"},{"$f":"Import!E10517","v":0},{"$f":"Import!E10717","v":0},{"$f":"Import!E10917","v":0}]
[20,{"$f":"Import!E9918","v":"Select"},{"$f":"Import!E10118","v":"Select"},{"$f":"Import!E10318","v":"Select"},{"$f":"Import!E10518","v":0},{"$f":"Import!E10718","v":0},{"$f":"Import!E10918","v":0}]
[21,{"$f":"Import!E9919","v":"Select"},{"$f":"Import!E10119","v":"Select"},{"$f":"Import!E10319","v":"Select"},{"$f":"Import!E10519","v":0},{"$f":"Import!E10719","v":0},{"$f":"Import!E10919","v":0}]
[22,{"$f":"Import!E9920","v":"Select"},{"$f":"Import!E10120","v":"Select"},{"$f":"Import!E10320","v":"Select"},{"$f":"Import!E10520","v":0},{"$f":"Import!E10720","v":0},{"$f":"Import!E10920","v":0}]
[23,{"$f":"Import!E9921","v":"Select"},{"$f":"Import!E10121","v":"Select"},{"$f":"Import!E10321","v":"Select"},{"$f":"Import!E10521","v":0},{"$f":"Import!E10721","v":0},{"$f":"Import!E10921","v":0}]
[24,{"$f":"Import!E9922","v":"Select"},{"$f":"Import!E10122","v":"Select"},{"$f":"Import!E10322","v":"Select"},{"$f":"Import!E10522","v":0},{"$f":"Import!E10722","v":0},{"$f":"Import!E10922","v":0}]
[25,{"$f":"Import!E9923","v":"Select"},{"$f":"Import!E10123","v":"Select"},{"$f":"Import!E10323","v":"Select"},{"$f":"Import!E10523","v":0},{"$f":"Import!E10723","v":0},{"$f":"Import!E10923","v":0}]
[26,{"$f":"Import!E9924","v":"Select"},{"$f":"Import!E10124","v":"Select"},{"$f":"Import!E10324","v":"Select"},{"$f":"Import!E10524","v":0},{"$f":"Import!E10724","v":0},{"$f":"Import!E10924","v":0}]
[27,{"$f":"Import!E9925","v":"Select"},{"$f":"Import!E10125","v":"Select"},{"$f":"Import!E10325","v":"Select"},{"$f":"Import!E10525","v":0},{"$f":"Import!E10725","v":0},{"$f":"Import!E10925","v":0}]
[28,{"$f":"Import!E9926","v":"Select"},{"$f":"Import!E10126","v":"Select"},{"$f":"Import!E10326","v":"Select"},{"$f":"Import!E10526","v":0},{"$f":"Import!E10726","v":0},{"$f":"Import!E10926","v":0}]
[29,{"$f":"Import!E9927","v":"Select"},{"$f":"Import!E10127","v":"Select"},{"$f":"Import!E10327","v":"Select"},{"$f":"Import!E10527","v":0},{"$f":"Import!E10727","v":0},{"$f":"Import!E10927","v":0}]
[30,{"$f":"Import!E9928","v":"Select"},{"$f":"Import!E10128","v":"Select"},{"$f":"Import!E10328","v":"Select"},{"$f":"Import!E10528","v":0},{"$f":"Import!E10728","v":0},{"$f":"Import!E10928","v":0}]
[31,{"$f":"Import!E9929","v":"Select"},{"$f":"Import!E10129","v":"Select"},{"$f":"Import!E10329","v":"Select"},{"$f":"Import!E10529","v":0},{"$f":"Import!E10729","v":0},{"$f":"Import!E10929","v":0}]
[32,{"$f":"Import!E9930","v":"Select"},{"$f":"Import!E10130","v":"Select"},{"$f":"Import!E10330","v":"Select"},{"$f":"Import!E10530","v":0},{"$f":"Import!E10730","v":0},{"$f":"Import!E10930","v":0}]
[33,{"$f":"Import!E9931","v":"Select"},{"$f":"Import!E10131","v":"Select"},{"$f":"Import!E10331","v":"Select"},{"$f":"Import!E10531","v":0},{"$f":"Import!E10731","v":0},{"$f":"Import!E10931","v":0}]
[34,{"$f":"Import!E9932","v":"Select"},{"$f":"Import!E10132","v":"Select"},{"$f":"Import!E10332","v":"Select"},{"$f":"Import!E10532","v":0},{"$f":"Import!E10732","v":0},{"$f":"Import!E10932","v":0}]
[35,{"$f":"Import!E9933","v":"Select"},{"$f":"Import!E10133","v":"Select"},{"$f":"Import!E10333","v":"Select"},{"$f":"Import!E10533","v":0},{"$f":"Import!E10733","v":0},{"$f":"Import!E10933","v":0}]
[36,{"$f":"Import!E9934","v":"Select"},{"$f":"Import!E10134","v":"Select"},{"$f":"Import!E10334","v":"Select"},{"$f":"Import!E10534","v":0},{"$f":"Import!E10734","v":0},{"$f":"Import!E10934","v":0}]
[37,{"$f":"Import!E9935","v":"Select"},{"$f":"Import!E10135","v":"Select"},{"$f":"Import!E10335","v":"Select"},{"$f":"Import!E10535","v":0},{"$f":"Import!E10735","v":0},{"$f":"Import!E10935","v":0}]
[38,{"$f":"Import!E9936","v":"Select"},{"$f":"Import!E10136","v":"Select"},{"$f":"Import!E10336","v":"Select"},{"$f":"Import!E10536","v":0},{"$f":"Import!E10736","v":0},{"$f":"Import!E10936","v":0}]
[39,{"$f":"Import!E9937","v":"Select"},{"$f":"Import!E10137","v":"Select"},{"$f":"Import!E10337","v":"Select"},{"$f":"Import!E10537","v":0},{"$f":"Import!E10737","v":0},{"$f":"Import!E10937","v":0}]
[40,{"$f":"Import!E9938","v":"Select"},{"$f":"Import!E10138","v":"Select"},{"$f":"Import!E10338","v":"Select"},{"$f":"Import!E10538","v":0},{"$f":"Import!E10738","v":0},{"$f":"Import!E10938","v":0}]
[41,{"$f":"Import!E9939","v":"Select"},{"$f":"Import!E10139","v":"Select"},{"$f":"Import!E10339","v":"Select"},{"$f":"Import!E10539","v":0},{"$f":"Import!E10739","v":0},{"$f":"Import!E10939","v":0}]
[42,{"$f":"Import!E9940","v":"Select"},{"$f":"Import!E10140","v":"Select"},{"$f":"Import!E10340","v":"Select"},{"$f":"Import!E10540","v":0},{"$f":"Import!E10740","v":0},{"$f":"Import!E10940","v":0}]
[43,{"$f":"Import!E9941","v":"Select"},{"$f":"Import!E10141","v":"Select"},{"$f":"Import!E10341","v":"Select"},{"$f":"Import!E10541","v":0},{"$f":"Import!E10741","v":0},{"$f":"Import!E10941","v":0}]
[44,{"$f":"Import!E9942","v":"Select"},{"$f":"Import!E10142","v":"Select"},{"$f":"Import!E10342","v":"Select"},{"$f":"Import!E10542","v":0},{"$f":"Import!E10742","v":0},{"$f":"Import!E10942","v":0}]
[45,{"$f":"Import!E9943","v":"Select"},{"$f":"Import!E10143","v":"Select"},{"$f":"Import!E10343","v":"Select"},{"$f":"Import!E10543","v":0},{"$f":"Import!E10743","v":0},{"$f":"Import!E10943","v":0}]
[46,{"$f":"Import!E9944","v":"Select"},{"$f":"Import!E10144","v":"Select"},{"$f":"Import!E10344","v":"Select"},{"$f":"Import!E10544","v":0},{"$f":"Import!E10744","v":0},{"$f":"Import!E10944","v":0}]
[47,{"$f":"Import!E9945","v":"Select"},{"$f":"Import!E10145","v":"Select"},{"$f":"Import!E10345","v":"Select"},{"$f":"Import!E10545","v":0},{"$f":"Import!E10745","v":0},{"$f":"Import!E10945","v":0}]
[48,{"$f":"Import!E9946","v":"Select"},{"$f":"Import!E10146","v":"Select"},{"$f":"Import!E10346","v":"Select"},{"$f":"Import!E10546","v":0},{"$f":"Import!E10746","v":0},{"$f":"Import!E10946","v":0}]
[49,{"$f":"Import!E9947","v":"Select"},{"$f":"Import!E10147","v":"Select"},{"$f":"Import!E10347","v":"Select"},{"$f":"Import!E10547","v":0},{"$f":"Import!E10747","v":0},{"$f":"Import!E10947","v":0}]
[50,{"$f":"Import!E9948","v":"Select"},{"$f":"Import!E10148","v":"Select"},{"$f":"Import!E10348","v":"Select"},{"$f":"Import!E10548","v":0},{"$f":"Import!E10748","v":0},{"$f":"Import!E10948","v":0}]
[51,{"$f":"Import!E9949","v":"Select"},{"$f":"Import!E10149","v":"Select"},{"$f":"Import!E10349","v":"Select"},{"$f":"Import!E10549","v":0},{"$f":"Import!E10749","v":0},{"$f":"Import!E10949","v":0}]
[52,{"$f":"Import!E9950","v":"Select"},{"$f":"Import!E10150","v":"Select"},{"$f":"Import!E10350","v":"Select"},{"$f":"Import!E10550","v":0},{"$f":"Import!E10750","v":0},{"$f":"Import!E10950","v":0}]
[53,{"$f":"Import!E9951","v":"Select"},{"$f":"Import!E10151","v":"Select"},{"$f":"Import!E10351","v":"Select"},{"$f":"Import!E10551","v":0},{"$f":"Import!E10751","v":0},{"$f":"Import!E10951","v":0}]
[54,{"$f":"Import!E9952","v":"Select"},{"$f":"Import!E10152","v":"Select"},{"$f":"Import!E10352","v":"Select"},{"$f":"Import!E10552","v":0},{"$f":"Import!E10752","v":0},{"$f":"Import!E10952","v":0}]
[55,{"$f":"Import!E9953","v":"Select"},{"$f":"Import!E10153","v":"Select"},{"$f":"Import!E10353","v":"Select"},{"$f":"Import!E10553","v":0},{"$f":"Import!E10753","v":0},{"$f":"Import!E10953","v":0}]
[56,{"$f":"Import!E9954","v":"Select"},{"$f":"Import!E10154","v":"Select"},{"$f":"Import!E10354","v":"Select"},{"$f":"Import!E10554","v":0},{"$f":"Import!E10754","v":0},{"$f":"Import!E10954","v":0}]
[57,{"$f":"Import!E9955","v":"Select"},{"$f":"Import!E10155","v":"Select"},{"$f":"Import!E10355","v":"Select"},{"$f":"Import!E10555","v":0},{"$f":"Import!E10755","v":0},{"$f":"Import!E10955","v":0}]
[58,{"$f":"Import!E9956","v":"Select"},{"$f":"Import!E10156","v":"Select"},{"$f":"Import!E10356","v":"Select"},{"$f":"Import!E10556","v":0},{"$f":"Import!E10756","v":0},{"$f":"Import!E10956","v":0}]
[59,{"$f":"Import!E9957","v":"Select"},{"$f":"Import!E10157","v":"Select"},{"$f":"Import!E10357","v":"Select"},{"$f":"Import!E10557","v":0},{"$f":"Import!E10757","v":0},{"$f":"Import!E10957","v":0}]
[60,{"$f":"Import!E9958","v":"Select"},{"$f":"Import!E10158","v":"Select"},{"$f":"Import!E10358","v":"Select"},{"$f":"Import!E10558","v":0},{"$f":"Import!E10758","v":0},{"$f":"Import!E10958","v":0}]
[61,{"$f":"Import!E9959","v":"Select"},{"$f":"Import!E10159","v":"Select"},{"$f":"Import!E10359","v":"Select"},{"$f":"Import!E10559","v":0},{"$f":"Import!E10759","v":0},{"$f":"Import!E10959","v":0}]
[62,{"$f":"Import!E9960","v":"Select"},{"$f":"Import!E10160","v":"Select"},{"$f":"Import!E10360","v":"Select"},{"$f":"Import!E10560","v":0},{"$f":"Import!E10760","v":0},{"$f":"Import!E10960","v":0}]
[63,{"$f":"Import!E9961","v":"Select"},{"$f":"Import!E10161","v":"Select"},{"$f":"Import!E10361","v":"Select"},{"$f":"Import!E10561","v":0},{"$f":"Import!E10761","v":0},{"$f":"Import!E10961","v":0}]
[64,{"$f":"Import!E9962","v":"Select"},{"$f":"Import!E10162","v":"Select"},{"$f":"Import!E10362","v":"Select"},{"$f":"Import!E10562","v":0},{"$f":"Import!E10762","v":0},{"$f":"Import!E10962","v":0}]
[65,{"$f":"Import!E9963","v":"Select"},{"$f":"Import!E10163","v":"Select"},{"$f":"Import!E10363","v":"Select"},{"$f":"Import!E10563","v":0},{"$f":"Import!E10763","v":0},{"$f":"Import!E10963","v":0}]
[66,{"$f":"Import!E9964","v":"Select"},{"$f":"Import!E10164","v":"Select"},{"$f":"Import!E10364","v":"Select"},{"$f":"Import!E10564","v":0},{"$f":"Import!E10764","v":0},{"$f":"Import!E10964","v":0}]
[{"$f":"A76+1","v":67},{"$f":"Import!E9965","v":"Select"},{"$f":"Import!E10165","v":"Select"},{"$f":"Import!E10365","v":"Select"},{"$f":"Import!E10565","v":0},{"$f":"Import!E10765","v":0},{"$f":"Import!E10965","v":0}]
[68,{"$f":"Import!E9966","v":"Select"},{"$f":"Import!E10166","v":"Select"},{"$f":"Import!E10366","v":"Select"},{"$f":"Import!E10566","v":0},{"$f":"Import!E10766","v":0},{"$f":"Import!E10966","v":0}]
[69,{"$f":"Import!E9967","v":"Select"},{"$f":"Import!E10167","v":"Select"},{"$f":"Import!E10367","v":"Select"},{"$f":"Import!E10567","v":0},{"$f":"Import!E10767","v":0},{"$f":"Import!E10967","v":0}]
[70,{"$f":"Import!E9968","v":"Select"},{"$f":"Import!E10168","v":"Select"},{"$f":"Import!E10368","v":"Select"},{"$f":"Import!E10568","v":0},{"$f":"Import!E10768","v":0},{"$f":"Import!E10968","v":0}]
[71,{"$f":"Import!E9969","v":"Select"},{"$f":"Import!E10169","v":"Select"},{"$f":"Import!E10369","v":"Select"},{"$f":"Import!E10569","v":0},{"$f":"Import!E10769","v":0},{"$f":"Import!E10969","v":0}]
[72,{"$f":"Import!E9970","v":"Select"},{"$f":"Import!E10170","v":"Select"},{"$f":"Import!E10370","v":"Select"},{"$f":"Import!E10570","v":0},{"$f":"Import!E10770","v":0},{"$f":"Import!E10970","v":0}]
[73,{"$f":"Import!E9971","v":"Select"},{"$f":"Import!E10171","v":"Select"},{"$f":"Import!E10371","v":"Select"},{"$f":"Import!E10571","v":0},{"$f":"Import!E10771","v":0},{"$f":"Import!E10971","v":0}]
[74,{"$f":"Import!E9972","v":"Select"},{"$f":"Import!E10172","v":"Select"},{"$f":"Import!E10372","v":"Select"},{"$f":"Import!E10572","v":0},{"$f":"Import!E10772","v":0},{"$f":"Import!E10972","v":0}]
[75,{"$f":"Import!E9973","v":"Select"},{"$f":"Import!E10173","v":"Select"},{"$f":"Import!E10373","v":"Select"},{"$f":"Import!E10573","v":0},{"$f":"Import!E10773","v":0},{"$f":"Import!E10973","v":0}]
[76,{"$f":"Import!E9974","v":"Select"},{"$f":"Import!E10174","v":"Select"},{"$f":"Import!E10374","v":"Select"},{"$f":"Import!E10574","v":0},{"$f":"Import!E10774","v":0},{"$f":"Import!E10974","v":0}]
[77,{"$f":"Import!E9975","v":"Select"},{"$f":"Import!E10175","v":"Select"},{"$f":"Import!E10375","v":"Select"},{"$f":"Import!E10575","v":0},{"$f":"Import!E10775","v":0},{"$f":"Import!E10975","v":0}]
[78,{"$f":"Import!E9976","v":"Select"},{"$f":"Import!E10176","v":"Select"},{"$f":"Import!E10376","v":"Select"},{"$f":"Import!E10576","v":0},{"$f":"Import!E10776","v":0},{"$f":"Import!E10976","v":0}]
[79,{"$f":"Import!E9977","v":"Select"},{"$f":"Import!E10177","v":"Select"},{"$f":"Import!E10377","v":"Select"},{"$f":"Import!E10577","v":0},{"$f":"Import!E10777","v":0},{"$f":"Import!E10977","v":0}]
[80,{"$f":"Import!E9978","v":"Select"},{"$f":"Import!E10178","v":"Select"},{"$f":"Import!E10378","v":"Select"},{"$f":"Import!E10578","v":0},{"$f":"Import!E10778","v":0},{"$f":"Import!E10978","v":0}]
[81,{"$f":"Import!E9979","v":"Select"},{"$f":"Import!E10179","v":"Select"},{"$f":"Import!E10379","v":"Select"},{"$f":"Import!E10579","v":0},{"$f":"Import!E10779","v":0},{"$f":"Import!E10979","v":0}]
[82,{"$f":"Import!E9980","v":"Select"},{"$f":"Import!E10180","v":"Select"},{"$f":"Import!E10380","v":"Select"},{"$f":"Import!E10580","v":0},{"$f":"Import!E10780","v":0},{"$f":"Import!E10980","v":0}]
[83,{"$f":"Import!E9981","v":"Select"},{"$f":"Import!E10181","v":"Select"},{"$f":"Import!E10381","v":"Select"},{"$f":"Import!E10581","v":0},{"$f":"Import!E10781","v":0},{"$f":"Import!E10981","v":0}]
[84,{"$f":"Import!E9982","v":"Select"},{"$f":"Import!E10182","v":"Select"},{"$f":"Import!E10382","v":"Select"},{"$f":"Import!E10582","v":0},{"$f":"Import!E10782","v":0},{"$f":"Import!E10982","v":0}]
[85,{"$f":"Import!E9983","v":"Select"},{"$f":"Import!E10183","v":"Select"},{"$f":"Import!E10383","v":"Select"},{"$f":"Import!E10583","v":0},{"$f":"Import!E10783","v":0},{"$f":"Import!E10983","v":0}]
[86,{"$f":"Import!E9984","v":"Select"},{"$f":"Import!E10184","v":"Select"},{"$f":"Import!E10384","v":"Select"},{"$f":"Import!E10584","v":0},{"$f":"Import!E10784","v":0},{"$f":"Import!E10984","v":0}]
[87,{"$f":"Import!E9985","v":"Select"},{"$f":"Import!E10185","v":"Select"},{"$f":"Import!E10385","v":"Select"},{"$f":"Import!E10585","v":0},{"$f":"Import!E10785","v":0},{"$f":"Import!E10985","v":0}]
[88,{"$f":"Import!E9986","v":"Select"},{"$f":"Import!E10186","v":"Select"},{"$f":"Import!E10386","v":"Select"},{"$f":"Import!E10586","v":0},{"$f":"Import!E10786","v":0},{"$f":"Import!E10986","v":0}]
[89,{"$f":"Import!E9987","v":"Select"},{"$f":"Import!E10187","v":"Select"},{"$f":"Import!E10387","v":"Select"},{"$f":"Import!E10587","v":0},{"$f":"Import!E10787","v":0},{"$f":"Import!E10987","v":0}]
[90,{"$f":"Import!E9988","v":"Select"},{"$f":"Import!E10188","v":"Select"},{"$f":"Import!E10388","v":"Select"},{"$f":"Import!E10588","v":0},{"$f":"Import!E10788","v":0},{"$f":"Import!E10988","v":0}]
[91,{"$f":"Import!E9989","v":"Select"},{"$f":"Import!E10189","v":"Select"},{"$f":"Import!E10389","v":"Select"},{"$f":"Import!E10589","v":0},{"$f":"Import!E10789","v":0},{"$f":"Import!E10989","v":0}]
[92,{"$f":"Import!E9990","v":"Select"},{"$f":"Import!E10190","v":"Select"},{"$f":"Import!E10390","v":"Select"},{"$f":"Import!E10590","v":0},{"$f":"Import!E10790","v":0},{"$f":"Import!E10990","v":0}]
[93,{"$f":"Import!E9991","v":"Select"},{"$f":"Import!E10191","v":"Select"},{"$f":"Import!E10391","v":"Select"},{"$f":"Import!E10591","v":0},{"$f":"Import!E10791","v":0},{"$f":"Import!E10991","v":0}]
[94,{"$f":"Import!E9992","v":"Select"},{"$f":"Import!E10192","v":"Select"},{"$f":"Import!E10392","v":"Select"},{"$f":"Import!E10592","v":0},{"$f":"Import!E10792","v":0},{"$f":"Import!E10992","v":0}]
[95,{"$f":"Import!E9993","v":"Select"},{"$f":"Import!E10193","v":"Select"},{"$f":"Import!E10393","v":"Select"},{"$f":"Import!E10593","v":0},{"$f":"Import!E10793","v":0},{"$f":"Import!E10993","v":0}]
[96,{"$f":"Import!E9994","v":"Select"},{"$f":"Import!E10194","v":"Select"},{"$f":"Import!E10394","v":"Select"},{"$f":"Import!E10594","v":0},{"$f":"Import!E10794","v":0},{"$f":"Import!E10994","v":0}]
[97,{"$f":"Import!E9995","v":"Select"},{"$f":"Import!E10195","v":"Select"},{"$f":"Import!E10395","v":"Select"},{"$f":"Import!E10595","v":0},{"$f":"Import!E10795","v":0},{"$f":"Import!E10995","v":0}]
[98,{"$f":"Import!E9996","v":"Select"},{"$f":"Import!E10196","v":"Select"},{"$f":"Import!E10396","v":"Select"},{"$f":"Import!E10596","v":0},{"$f":"Import!E10796","v":0},{"$f":"Import!E10996","v":0}]
[99,{"$f":"Import!E9997","v":"Select"},{"$f":"Import!E10197","v":"Select"},{"$f":"Import!E10397","v":"Select"},{"$f":"Import!E10597","v":0},{"$f":"Import!E10797","v":0},{"$f":"Import!E10997","v":0}]
[100,{"$f":"Import!E9998","v":"Select"},{"$f":"Import!E10198","v":"Select"},{"$f":"Import!E10398","v":"Select"},{"$f":"Import!E10598","v":0},{"$f":"Import!E10798","v":0},{"$f":"Import!E10998","v":0}]
[101,{"$f":"Import!E9999","v":"Select"},{"$f":"Import!E10199","v":"Select"},{"$f":"Import!E10399","v":"Select"},{"$f":"Import!E10599","v":0},{"$f":"Import!E10799","v":0},{"$f":"Import!E10999","v":0}]
[102,{"$f":"Import!E10000","v":"Select"},{"$f":"Import!E10200","v":"Select"},{"$f":"Import!E10400","v":"Select"},{"$f":"Import!E10600","v":0},{"$f":"Import!E10800","v":0},{"$f":"Import!E11000","v":0}]
[103,{"$f":"Import!E10001","v":"Select"},{"$f":"Import!E10201","v":"Select"},{"$f":"Import!E10401","v":"Select"},{"$f":"Import!E10601","v":0},{"$f":"Import!E10801","v":0},{"$f":"Import!E11001","v":0}]
[104,{"$f":"Import!E10002","v":"Select"},{"$f":"Import!E10202","v":"Select"},{"$f":"Import!E10402","v":"Select"},{"$f":"Import!E10602","v":0},{"$f":"Import!E10802","v":0},{"$f":"Import!E11002","v":0}]
[105,{"$f":"Import!E10003","v":"Select"},{"$f":"Import!E10203","v":"Select"},{"$f":"Import!E10403","v":"Select"},{"$f":"Import!E10603","v":0},{"$f":"Import!E10803","v":0},{"$f":"Import!E11003","v":0}]
[106,{"$f":"Import!E10004","v":"Select"},{"$f":"Import!E10204","v":"Select"},{"$f":"Import!E10404","v":"Select"},{"$f":"Import!E10604","v":0},{"$f":"Import!E10804","v":0},{"$f":"Import!E11004","v":0}]
[107,{"$f":"Import!E10005","v":"Select"},{"$f":"Import!E10205","v":"Select"},{"$f":"Import!E10405","v":"Select"},{"$f":"Import!E10605","v":0},{"$f":"Import!E10805","v":0},{"$f":"Import!E11005","v":0}]
[108,{"$f":"Import!E10006","v":"Select"},{"$f":"Import!E10206","v":"Select"},{"$f":"Import!E10406","v":"Select"},{"$f":"Import!E10606","v":0},{"$f":"Import!E10806","v":0},{"$f":"Import!E11006","v":0}]
[109,{"$f":"Import!E10007","v":"Select"},{"$f":"Import!E10207","v":"Select"},{"$f":"Import!E10407","v":"Select"},{"$f":"Import!E10607","v":0},{"$f":"Import!E10807","v":0},{"$f":"Import!E11007","v":0}]
[110,{"$f":"Import!E10008","v":"Select"},{"$f":"Import!E10208","v":"Select"},{"$f":"Import!E10408","v":"Select"},{"$f":"Import!E10608","v":0},{"$f":"Import!E10808","v":0},{"$f":"Import!E11008","v":0}]
[111,{"$f":"Import!E10009","v":"Select"},{"$f":"Import!E10209","v":"Select"},{"$f":"Import!E10409","v":"Select"},{"$f":"Import!E10609","v":0},{"$f":"Import!E10809","v":0},{"$f":"Import!E11009","v":0}]
[112,{"$f":"Import!E10010","v":"Select"},{"$f":"Import!E10210","v":"Select"},{"$f":"Import!E10410","v":"Select"},{"$f":"Import!E10610","v":0},{"$f":"Import!E10810","v":0},{"$f":"Import!E11010","v":0}]
[113,{"$f":"Import!E10011","v":"Select"},{"$f":"Import!E10211","v":"Select"},{"$f":"Import!E10411","v":"Select"},{"$f":"Import!E10611","v":0},{"$f":"Import!E10811","v":0},{"$f":"Import!E11011","v":0}]
[114,{"$f":"Import!E10012","v":"Select"},{"$f":"Import!E10212","v":"Select"},{"$f":"Import!E10412","v":"Select"},{"$f":"Import!E10612","v":0},{"$f":"Import!E10812","v":0},{"$f":"Import!E11012","v":0}]
[115,{"$f":"Import!E10013","v":"Select"},{"$f":"Import!E10213","v":"Select"},{"$f":"Import!E10413","v":"Select"},{"$f":"Import!E10613","v":0},{"$f":"Import!E10813","v":0},{"$f":"Import!E11013","v":0}]
[116,{"$f":"Import!E10014","v":"Select"},{"$f":"Import!E10214","v":"Select"},{"$f":"Import!E10414","v":"Select"},{"$f":"Import!E10614","v":0},{"$f":"Import!E10814","v":0},{"$f":"Import!E11014","v":0}]
[117,{"$f":"Import!E10015","v":"Select"},{"$f":"Import!E10215","v":"Select"},{"$f":"Import!E10415","v":"Select"},{"$f":"Import!E10615","v":0},{"$f":"Import!E10815","v":0},{"$f":"Import!E11015","v":0}]
[118,{"$f":"Import!E10016","v":"Select"},{"$f":"Import!E10216","v":"Select"},{"$f":"Import!E10416","v":"Select"},{"$f":"Import!E10616","v":0},{"$f":"Import!E10816","v":0},{"$f":"Import!E11016","v":0}]
[119,{"$f":"Import!E10017","v":"Select"},{"$f":"Import!E10217","v":"Select"},{"$f":"Import!E10417","v":"Select"},{"$f":"Import!E10617","v":0},{"$f":"Import!E10817","v":0},{"$f":"Import!E11017","v":0}]
[120,{"$f":"Import!E10018","v":"Select"},{"$f":"Import!E10218","v":"Select"},{"$f":"Import!E10418","v":"Select"},{"$f":"Import!E10618","v":0},{"$f":"Import!E10818","v":0},{"$f":"Import!E11018","v":0}]
[121,{"$f":"Import!E10019","v":"Select"},{"$f":"Import!E10219","v":"Select"},{"$f":"Import!E10419","v":"Select"},{"$f":"Import!E10619","v":0},{"$f":"Import!E10819","v":0},{"$f":"Import!E11019","v":0}]
[122,{"$f":"Import!E10020","v":"Select"},{"$f":"Import!E10220","v":"Select"},{"$f":"Import!E10420","v":"Select"},{"$f":"Import!E10620","v":0},{"$f":"Import!E10820","v":0},{"$f":"Import!E11020","v":0}]
[123,{"$f":"Import!E10021","v":"Select"},{"$f":"Import!E10221","v":"Select"},{"$f":"Import!E10421","v":"Select"},{"$f":"Import!E10621","v":0},{"$f":"Import!E10821","v":0},{"$f":"Import!E11021","v":0}]
[124,{"$f":"Import!E10022","v":"Select"},{"$f":"Import!E10222","v":"Select"},{"$f":"Import!E10422","v":"Select"},{"$f":"Import!E10622","v":0},{"$f":"Import!E10822","v":0},{"$f":"Import!E11022","v":0}]
[125,{"$f":"Import!E10023","v":"Select"},{"$f":"Import!E10223","v":"Select"},{"$f":"Import!E10423","v":"Select"},{"$f":"Import!E10623","v":0},{"$f":"Import!E10823","v":0},{"$f":"Import!E11023","v":0}]
[126,{"$f":"Import!E10024","v":"Select"},{"$f":"Import!E10224","v":"Select"},{"$f":"Import!E10424","v":"Select"},{"$f":"Import!E10624","v":0},{"$f":"Import!E10824","v":0},{"$f":"Import!E11024","v":0}]
[127,{"$f":"Import!E10025","v":"Select"},{"$f":"Import!E10225","v":"Select"},{"$f":"Import!E10425","v":"Select"},{"$f":"Import!E10625","v":0},{"$f":"Import!E10825","v":0},{"$f":"Import!E11025","v":0}]
[128,{"$f":"Import!E10026","v":"Select"},{"$f":"Import!E10226","v":"Select"},{"$f":"Import!E10426","v":"Select"},{"$f":"Import!E10626","v":0},{"$f":"Import!E10826","v":0},{"$f":"Import!E11026","v":0}]
[129,{"$f":"Import!E10027","v":"Select"},{"$f":"Import!E10227","v":"Select"},{"$f":"Import!E10427","v":"Select"},{"$f":"Import!E10627","v":0},{"$f":"Import!E10827","v":0},{"$f":"Import!E11027","v":0}]
[130,{"$f":"Import!E10028","v":"Select"},{"$f":"Import!E10228","v":"Select"},{"$f":"Import!E10428","v":"Select"},{"$f":"Import!E10628","v":0},{"$f":"Import!E10828","v":0},{"$f":"Import!E11028","v":0}]
[{"$f":"A140+1","v":131},{"$f":"Import!E10029","v":"Select"},{"$f":"Import!E10229","v":"Select"},{"$f":"Import!E10429","v":"Select"},{"$f":"Import!E10629","v":0},{"$f":"Import!E10829","v":0},{"$f":"Import!E11029","v":0}]
[132,{"$f":"Import!E10030","v":"Select"},{"$f":"Import!E10230","v":"Select"},{"$f":"Import!E10430","v":"Select"},{"$f":"Import!E10630","v":0},{"$f":"Import!E10830","v":0},{"$f":"Import!E11030","v":0}]
[133,{"$f":"Import!E10031","v":"Select"},{"$f":"Import!E10231","v":"Select"},{"$f":"Import!E10431","v":"Select"},{"$f":"Import!E10631","v":0},{"$f":"Import!E10831","v":0},{"$f":"Import!E11031","v":0}]
[134,{"$f":"Import!E10032","v":"Select"},{"$f":"Import!E10232","v":"Select"},{"$f":"Import!E10432","v":"Select"},{"$f":"Import!E10632","v":0},{"$f":"Import!E10832","v":0},{"$f":"Import!E11032","v":0}]
[135,{"$f":"Import!E10033","v":"Select"},{"$f":"Import!E10233","v":"Select"},{"$f":"Import!E10433","v":"Select"},{"$f":"Import!E10633","v":0},{"$f":"Import!E10833","v":0},{"$f":"Import!E11033","v":0}]
[136,{"$f":"Import!E10034","v":"Select"},{"$f":"Import!E10234","v":"Select"},{"$f":"Import!E10434","v":"Select"},{"$f":"Import!E10634","v":0},{"$f":"Import!E10834","v":0},{"$f":"Import!E11034","v":0}]
[137,{"$f":"Import!E10035","v":"Select"},{"$f":"Import!E10235","v":"Select"},{"$f":"Import!E10435","v":"Select"},{"$f":"Import!E10635","v":0},{"$f":"Import!E10835","v":0},{"$f":"Import!E11035","v":0}]
[138,{"$f":"Import!E10036","v":"Select"},{"$f":"Import!E10236","v":"Select"},{"$f":"Import!E10436","v":"Select"},{"$f":"Import!E10636","v":0},{"$f":"Import!E10836","v":0},{"$f":"Import!E11036","v":0}]
[139,{"$f":"Import!E10037","v":"Select"},{"$f":"Import!E10237","v":"Select"},{"$f":"Import!E10437","v":"Select"},{"$f":"Import!E10637","v":0},{"$f":"Import!E10837","v":0},{"$f":"Import!E11037","v":0}]
[140,{"$f":"Import!E10038","v":"Select"},{"$f":"Import!E10238","v":"Select"},{"$f":"Import!E10438","v":"Select"},{"$f":"Import!E10638","v":0},{"$f":"Import!E10838","v":0},{"$f":"Import!E11038","v":0}]
[141,{"$f":"Import!E10039","v":"Select"},{"$f":"Import!E10239","v":"Select"},{"$f":"Import!E10439","v":"Select"},{"$f":"Import!E10639","v":0},{"$f":"Import!E10839","v":0},{"$f":"Import!E11039","v":0}]
[142,{"$f":"Import!E10040","v":"Select"},{"$f":"Import!E10240","v":"Select"},{"$f":"Import!E10440","v":"Select"},{"$f":"Import!E10640","v":0},{"$f":"Import!E10840","v":0},{"$f":"Import!E11040","v":0}]
[143,{"$f":"Import!E10041","v":"Select"},{"$f":"Import!E10241","v":"Select"},{"$f":"Import!E10441","v":"Select"},{"$f":"Import!E10641","v":0},{"$f":"Import!E10841","v":0},{"$f":"Import!E11041","v":0}]
[144,{"$f":"Import!E10042","v":"Select"},{"$f":"Import!E10242","v":"Select"},{"$f":"Import!E10442","v":"Select"},{"$f":"Import!E10642","v":0},{"$f":"Import!E10842","v":0},{"$f":"Import!E11042","v":0}]
[145,{"$f":"Import!E10043","v":"Select"},{"$f":"Import!E10243","v":"Select"},{"$f":"Import!E10443","v":"Select"},{"$f":"Import!E10643","v":0},{"$f":"Import!E10843","v":0},{"$f":"Import!E11043","v":0}]
[146,{"$f":"Import!E10044","v":"Select"},{"$f":"Import!E10244","v":"Select"},{"$f":"Import!E10444","v":"Select"},{"$f":"Import!E10644","v":0},{"$f":"Import!E10844","v":0},{"$f":"Import!E11044","v":0}]
[147,{"$f":"Import!E10045","v":"Select"},{"$f":"Import!E10245","v":"Select"},{"$f":"Import!E10445","v":"Select"},{"$f":"Import!E10645","v":0},{"$f":"Import!E10845","v":0},{"$f":"Import!E11045","v":0}]
[148,{"$f":"Import!E10046","v":"Select"},{"$f":"Import!E10246","v":"Select"},{"$f":"Import!E10446","v":"Select"},{"$f":"Import!E10646","v":0},{"$f":"Import!E10846","v":0},{"$f":"Import!E11046","v":0}]
[149,{"$f":"Import!E10047","v":"Select"},{"$f":"Import!E10247","v":"Select"},{"$f":"Import!E10447","v":"Select"},{"$f":"Import!E10647","v":0},{"$f":"Import!E10847","v":0},{"$f":"Import!E11047","v":0}]
[150,{"$f":"Import!E10048","v":"Select"},{"$f":"Import!E10248","v":"Select"},{"$f":"Import!E10448","v":"Select"},{"$f":"Import!E10648","v":0},{"$f":"Import!E10848","v":0},{"$f":"Import!E11048","v":0}]
[151,{"$f":"Import!E10049","v":"Select"},{"$f":"Import!E10249","v":"Select"},{"$f":"Import!E10449","v":"Select"},{"$f":"Import!E10649","v":0},{"$f":"Import!E10849","v":0},{"$f":"Import!E11049","v":0}]
[152,{"$f":"Import!E10050","v":"Select"},{"$f":"Import!E10250","v":"Select"},{"$f":"Import!E10450","v":"Select"},{"$f":"Import!E10650","v":0},{"$f":"Import!E10850","v":0},{"$f":"Import!E11050","v":0}]
[153,{"$f":"Import!E10051","v":"Select"},{"$f":"Import!E10251","v":"Select"},{"$f":"Import!E10451","v":"Select"},{"$f":"Import!E10651","v":0},{"$f":"Import!E10851","v":0},{"$f":"Import!E11051","v":0}]
[154,{"$f":"Import!E10052","v":"Select"},{"$f":"Import!E10252","v":"Select"},{"$f":"Import!E10452","v":"Select"},{"$f":"Import!E10652","v":0},{"$f":"Import!E10852","v":0},{"$f":"Import!E11052","v":0}]
[155,{"$f":"Import!E10053","v":"Select"},{"$f":"Import!E10253","v":"Select"},{"$f":"Import!E10453","v":"Select"},{"$f":"Import!E10653","v":0},{"$f":"Import!E10853","v":0},{"$f":"Import!E11053","v":0}]
[156,{"$f":"Import!E10054","v":"Select"},{"$f":"Import!E10254","v":"Select"},{"$f":"Import!E10454","v":"Select"},{"$f":"Import!E10654","v":0},{"$f":"Import!E10854","v":0},{"$f":"Import!E11054","v":0}]
[157,{"$f":"Import!E10055","v":"Select"},{"$f":"Import!E10255","v":"Select"},{"$f":"Import!E10455","v":"Select"},{"$f":"Import!E10655","v":0},{"$f":"Import!E10855","v":0},{"$f":"Import!E11055","v":0}]
[158,{"$f":"Import!E10056","v":"Select"},{"$f":"Import!E10256","v":"Select"},{"$f":"Import!E10456","v":"Select"},{"$f":"Import!E10656","v":0},{"$f":"Import!E10856","v":0},{"$f":"Import!E11056","v":0}]
[159,{"$f":"Import!E10057","v":"Select"},{"$f":"Import!E10257","v":"Select"},{"$f":"Import!E10457","v":"Select"},{"$f":"Import!E10657","v":0},{"$f":"Import!E10857","v":0},{"$f":"Import!E11057","v":0}]
[160,{"$f":"Import!E10058","v":"Select"},{"$f":"Import!E10258","v":"Select"},{"$f":"Import!E10458","v":"Select"},{"$f":"Import!E10658","v":0},{"$f":"Import!E10858","v":0},{"$f":"Import!E11058","v":0}]
[161,{"$f":"Import!E10059","v":"Select"},{"$f":"Import!E10259","v":"Select"},{"$f":"Import!E10459","v":"Select"},{"$f":"Import!E10659","v":0},{"$f":"Import!E10859","v":0},{"$f":"Import!E11059","v":0}]
[162,{"$f":"Import!E10060","v":"Select"},{"$f":"Import!E10260","v":"Select"},{"$f":"Import!E10460","v":"Select"},{"$f":"Import!E10660","v":0},{"$f":"Import!E10860","v":0},{"$f":"Import!E11060","v":0}]
[163,{"$f":"Import!E10061","v":"Select"},{"$f":"Import!E10261","v":"Select"},{"$f":"Import!E10461","v":"Select"},{"$f":"Import!E10661","v":0},{"$f":"Import!E10861","v":0},{"$f":"Import!E11061","v":0}]
[164,{"$f":"Import!E10062","v":"Select"},{"$f":"Import!E10262","v":"Select"},{"$f":"Import!E10462","v":"Select"},{"$f":"Import!E10662","v":0},{"$f":"Import!E10862","v":0},{"$f":"Import!E11062","v":0}]
[165,{"$f":"Import!E10063","v":"Select"},{"$f":"Import!E10263","v":"Select"},{"$f":"Import!E10463","v":"Select"},{"$f":"Import!E10663","v":0},{"$f":"Import!E10863","v":0},{"$f":"Import!E11063","v":0}]
[166,{"$f":"Import!E10064","v":"Select"},{"$f":"Import!E10264","v":"Select"},{"$f":"Import!E10464","v":"Select"},{"$f":"Import!E10664","v":0},{"$f":"Import!E10864","v":0},{"$f":"Import!E11064","v":0}]
[167,{"$f":"Import!E10065","v":"Select"},{"$f":"Import!E10265","v":"Select"},{"$f":"Import!E10465","v":"Select"},{"$f":"Import!E10665","v":0},{"$f":"Import!E10865","v":0},{"$f":"Import!E11065","v":0}]
[168,{"$f":"Import!E10066","v":"Select"},{"$f":"Import!E10266","v":"Select"},{"$f":"Import!E10466","v":"Select"},{"$f":"Import!E10666","v":0},{"$f":"Import!E10866","v":0},{"$f":"Import!E11066","v":0}]
[169,{"$f":"Import!E10067","v":"Select"},{"$f":"Import!E10267","v":"Select"},{"$f":"Import!E10467","v":"Select"},{"$f":"Import!E10667","v":0},{"$f":"Import!E10867","v":0},{"$f":"Import!E11067","v":0}]
[170,{"$f":"Import!E10068","v":"Select"},{"$f":"Import!E10268","v":"Select"},{"$f":"Import!E10468","v":"Select"},{"$f":"Import!E10668","v":0},{"$f":"Import!E10868","v":0},{"$f":"Import!E11068","v":0}]
[171,{"$f":"Import!E10069","v":"Select"},{"$f":"Import!E10269","v":"Select"},{"$f":"Import!E10469","v":"Select"},{"$f":"Import!E10669","v":0},{"$f":"Import!E10869","v":0},{"$f":"Import!E11069","v":0}]
[172,{"$f":"Import!E10070","v":"Select"},{"$f":"Import!E10270","v":"Select"},{"$f":"Import!E10470","v":"Select"},{"$f":"Import!E10670","v":0},{"$f":"Import!E10870","v":0},{"$f":"Import!E11070","v":0}]
[173,{"$f":"Import!E10071","v":"Select"},{"$f":"Import!E10271","v":"Select"},{"$f":"Import!E10471","v":"Select"},{"$f":"Import!E10671","v":0},{"$f":"Import!E10871","v":0},{"$f":"Import!E11071","v":0}]
[174,{"$f":"Import!E10072","v":"Select"},{"$f":"Import!E10272","v":"Select"},{"$f":"Import!E10472","v":"Select"},{"$f":"Import!E10672","v":0},{"$f":"Import!E10872","v":0},{"$f":"Import!E11072","v":0}]
[175,{"$f":"Import!E10073","v":"Select"},{"$f":"Import!E10273","v":"Select"},{"$f":"Import!E10473","v":"Select"},{"$f":"Import!E10673","v":0},{"$f":"Import!E10873","v":0},{"$f":"Import!E11073","v":0}]
[176,{"$f":"Import!E10074","v":"Select"},{"$f":"Import!E10274","v":"Select"},{"$f":"Import!E10474","v":"Select"},{"$f":"Import!E10674","v":0},{"$f":"Import!E10874","v":0},{"$f":"Import!E11074","v":0}]
[177,{"$f":"Import!E10075","v":"Select"},{"$f":"Import!E10275","v":"Select"},{"$f":"Import!E10475","v":"Select"},{"$f":"Import!E10675","v":0},{"$f":"Import!E10875","v":0},{"$f":"Import!E11075","v":0}]
[178,{"$f":"Import!E10076","v":"Select"},{"$f":"Import!E10276","v":"Select"},{"$f":"Import!E10476","v":"Select"},{"$f":"Import!E10676","v":0},{"$f":"Import!E10876","v":0},{"$f":"Import!E11076","v":0}]
[179,{"$f":"Import!E10077","v":"Select"},{"$f":"Import!E10277","v":"Select"},{"$f":"Import!E10477","v":"Select"},{"$f":"Import!E10677","v":0},{"$f":"Import!E10877","v":0},{"$f":"Import!E11077","v":0}]
[180,{"$f":"Import!E10078","v":"Select"},{"$f":"Import!E10278","v":"Select"},{"$f":"Import!E10478","v":"Select"},{"$f":"Import!E10678","v":0},{"$f":"Import!E10878","v":0},{"$f":"Import!E11078","v":0}]
[181,{"$f":"Import!E10079","v":"Select"},{"$f":"Import!E10279","v":"Select"},{"$f":"Import!E10479","v":"Select"},{"$f":"Import!E10679","v":0},{"$f":"Import!E10879","v":0},{"$f":"Import!E11079","v":0}]
[182,{"$f":"Import!E10080","v":"Select"},{"$f":"Import!E10280","v":"Select"},{"$f":"Import!E10480","v":"Select"},{"$f":"Import!E10680","v":0},{"$f":"Import!E10880","v":0},{"$f":"Import!E11080","v":0}]
[183,{"$f":"Import!E10081","v":"Select"},{"$f":"Import!E10281","v":"Select"},{"$f":"Import!E10481","v":"Select"},{"$f":"Import!E10681","v":0},{"$f":"Import!E10881","v":0},{"$f":"Import!E11081","v":0}]
[184,{"$f":"Import!E10082","v":"Select"},{"$f":"Import!E10282","v":"Select"},{"$f":"Import!E10482","v":"Select"},{"$f":"Import!E10682","v":0},{"$f":"Import!E10882","v":0},{"$f":"Import!E11082","v":0}]
[185,{"$f":"Import!E10083","v":"Select"},{"$f":"Import!E10283","v":"Select"},{"$f":"Import!E10483","v":"Select"},{"$f":"Import!E10683","v":0},{"$f":"Import!E10883","v":0},{"$f":"Import!E11083","v":0}]
[186,{"$f":"Import!E10084","v":"Select"},{"$f":"Import!E10284","v":"Select"},{"$f":"Import!E10484","v":"Select"},{"$f":"Import!E10684","v":0},{"$f":"Import!E10884","v":0},{"$f":"Import!E11084","v":0}]
[187,{"$f":"Import!E10085","v":"Select"},{"$f":"Import!E10285","v":"Select"},{"$f":"Import!E10485","v":"Select"},{"$f":"Import!E10685","v":0},{"$f":"Import!E10885","v":0},{"$f":"Import!E11085","v":0}]
[188,{"$f":"Import!E10086","v":"Select"},{"$f":"Import!E10286","v":"Select"},{"$f":"Import!E10486","v":"Select"},{"$f":"Import!E10686","v":0},{"$f":"Import!E10886","v":0},{"$f":"Import!E11086","v":0}]
[189,{"$f":"Import!E10087","v":"Select"},{"$f":"Import!E10287","v":"Select"},{"$f":"Import!E10487","v":"Select"},{"$f":"Import!E10687","v":0},{"$f":"Import!E10887","v":0},{"$f":"Import!E11087","v":0}]
[190,{"$f":"Import!E10088","v":"Select"},{"$f":"Import!E10288","v":"Select"},{"$f":"Import!E10488","v":"Select"},{"$f":"Import!E10688","v":0},{"$f":"Import!E10888","v":0},{"$f":"Import!E11088","v":0}]
[191,{"$f":"Import!E10089","v":"Select"},{"$f":"Import!E10289","v":"Select"},{"$f":"Import!E10489","v":"Select"},{"$f":"Import!E10689","v":0},{"$f":"Import!E10889","v":0},{"$f":"Import!E11089","v":0}]
[192,{"$f":"Import!E10090","v":"Select"},{"$f":"Import!E10290","v":"Select"},{"$f":"Import!E10490","v":"Select"},{"$f":"Import!E10690","v":0},{"$f":"Import!E10890","v":0},{"$f":"Import!E11090","v":0}]
[193,{"$f":"Import!E10091","v":"Select"},{"$f":"Import!E10291","v":"Select"},{"$f":"Import!E10491","v":"Select"},{"$f":"Import!E10691","v":0},{"$f":"Import!E10891","v":0},{"$f":"Import!E11091","v":0}]
[194,{"$f":"Import!E10092","v":"Select"},{"$f":"Import!E10292","v":"Select"},{"$f":"Import!E10492","v":"Select"},{"$f":"Import!E10692","v":0},{"$f":"Import!E10892","v":0},{"$f":"Import!E11092","v":0}]
[{"$f":"A204+1","v":195},{"$f":"Import!E10093","v":"Select"},{"$f":"Import!E10293","v":"Select"},{"$f":"Import!E10493","v":"Select"},{"$f":"Import!E10693","v":0},{"$f":"Import!E10893","v":0},{"$f":"Import!E11093","v":0}]
[196,{"$f":"Import!E10094","v":"Select"},{"$f":"Import!E10294","v":"Select"},{"$f":"Import!E10494","v":"Select"},{"$f":"Import!E10694","v":0},{"$f":"Import!E10894","v":0},{"$f":"Import!E11094","v":0}]
[197,{"$f":"Import!E10095","v":"Select"},{"$f":"Import!E10295","v":"Select"},{"$f":"Import!E10495","v":"Select"},{"$f":"Import!E10695","v":0},{"$f":"Import!E10895","v":0},{"$f":"Import!E11095","v":0}]
[198,{"$f":"Import!E10096","v":"Select"},{"$f":"Import!E10296","v":"Select"},{"$f":"Import!E10496","v":"Select"},{"$f":"Import!E10696","v":0},{"$f":"Import!E10896","v":0},{"$f":"Import!E11096","v":0}]
[199,{"$f":"Import!E10097","v":"Select"},{"$f":"Import!E10297","v":"Select"},{"$f":"Import!E10497","v":"Select"},{"$f":"Import!E10697","v":0},{"$f":"Import!E10897","v":0},{"$f":"Import!E11097","v":0}]
[200,{"$f":"Import!E10098","v":"Select"},{"$f":"Import!E10298","v":"Select"},{"$f":"Import!E10498","v":"Select"},{"$f":"Import!E10698","v":0},{"$f":"Import!E10898","v":0},{"$f":"Import!E11098","v":0}]
[]
[null,"Total Cash and Cash Equivalents",null,null,{"$f":"SUM(E11:E210)","v":0},{"$f":"SUM(F11:F210)","v":0}]
[]
[null,"(B) BONDS AND DEBENTURES"]
[]
[null,null,"Enter # of Asset Types",{"$f":"Import!E11099","v":0}]
[null,null,null,null,{"$f":"YEAR($C$3)","v":2023},2023,"Weighted"]
[null,"Asset Type","Currency","BSCR Rating","Nominal Amount","Fair Value","Average YTM","Effective Duration","Comments"]
[1,{"$f":"Import!E11100","v":"Select"},{"$f":"Import!E11500","v":"Select"},{"$f":"Import!E11900","v":"Select"},{"$f":"Import!E12300","v":0},{"$f":"Import!E12700","v":0},{"$f":"Import!E13100","v":0},{"$f":"Import!E13500","v":0},{"$f":"Import!E13900","v":0}]
[{"$f":"A219+1","v":2},{"$f":"Import!E11101","v":"Select"},{"$f":"Import!E11501","v":"Select"},{"$f":"Import!E11901","v":"Select"},{"$f":"Import!E12301","v":0},{"$f":"Import!E12701","v":0},{"$f":"Import!E13101","v":0},{"$f":"Import!E13501","v":0},{"$f":"Import!E13901","v":0}]
[{"$f":"A220+1","v":3},{"$f":"Import!E11102","v":"Select"},{"$f":"Import!E11502","v":"Select"},{"$f":"Import!E11902","v":"Select"},{"$f":"Import!E12302","v":0},{"$f":"Import!E12702","v":0},{"$f":"Import!E13102","v":0},{"$f":"Import!E13502","v":0},{"$f":"Import!E13902","v":0}]
[4,{"$f":"Import!E11103","v":"Select"},{"$f":"Import!E11503","v":"Select"},{"$f":"Import!E11903","v":"Select"},{"$f":"Import!E12303","v":0},{"$f":"Import!E12703","v":0},{"$f":"Import!E13103","v":0},{"$f":"Import!E13503","v":0},{"$f":"Import!E13903","v":0}]
[5,{"$f":"Import!E11104","v":"Select"},{"$f":"Import!E11504","v":"Select"},{"$f":"Import!E11904","v":"Select"},{"$f":"Import!E12304","v":0},{"$f":"Import!E12704","v":0},{"$f":"Import!E13104","v":0},{"$f":"Import!E13504","v":0},{"$f":"Import!E13904","v":0}]
[6,{"$f":"Import!E11105","v":"Select"},{"$f":"Import!E11505","v":"Select"},{"$f":"Import!E11905","v":"Select"},{"$f":"Import!E12305","v":0},{"$f":"Import!E12705","v":0},{"$f":"Import!E13105","v":0},{"$f":"Import!E13505","v":0},{"$f":"Import!E13905","v":0}]
[7,{"$f":"Import!E11106","v":"Select"},{"$f":"Import!E11506","v":"Select"},{"$f":"Import!E11906","v":"Select"},{"$f":"Import!E12306","v":0},{"$f":"Import!E12706","v":0},{"$f":"Import!E13106","v":0},{"$f":"Import!E13506","v":0},{"$f":"Import!E13906","v":0}]
[8,{"$f":"Import!E11107","v":"Select"},{"$f":"Import!E11507","v":"Select"},{"$f":"Import!E11907","v":"Select"},{"$f":"Import!E12307","v":0},{"$f":"Import!E12707","v":0},{"$f":"Import!E13107","v":0},{"$f":"Import!E13507","v":0},{"$f":"Import!E13907","v":0}]
[9,{"$f":"Import!E11108","v":"Select"},{"$f":"Import!E11508","v":"Select"},{"$f":"Import!E11908","v":"Select"},{"$f":"Import!E12308","v":0},{"$f":"Import!E12708","v":0},{"$f":"Import!E13108","v":0},{"$f":"Import!E13508","v":0},{"$f":"Import!E13908","v":0}]
[10,{"$f":"Import!E11109","v":"Select"},{"$f":"Import!E11509","v":"Select"},{"$f":"Import!E11909","v":"Select"},{"$f":"Import!E12309","v":0},{"$f":"Import!E12709","v":0},{"$f":"Import!E13109","v":0},{"$f":"Import!E13509","v":0},{"$f":"Import!E13909","v":0}]
[11,{"$f":"Import!E11110","v":"Select"},{"$f":"Import!E11510","v":"Select"},{"$f":"Import!E11910","v":"Select"},{"$f":"Import!E12310","v":0},{"$f":"Import!E12710","v":0},{"$f":"Import!E13110","v":0},{"$f":"Import!E13510","v":0},{"$f":"Import!E13910","v":0}]
[12,{"$f":"Import!E11111","v":"Select"},{"$f":"Import!E11511","v":"Select"},{"$f":"Import!E11911","v":"Select"},{"$f":"Import!E12311","v":0},{"$f":"Import!E12711","v":0},{"$f":"Import!E13111","v":0},{"$f":"Import!E13511","v":0},{"$f":"Import!E13911","v":0}]
[13,{"$f":"Import!E11112","v":"Select"},{"$f":"Import!E11512","v":"Select"},{"$f":"Import!E11912","v":"Select"},{"$f":"Import!E12312","v":0},{"$f":"Import!E12712","v":0},{"$f":"Import!E13112","v":0},{"$f":"Import!E13512","v":0},{"$f":"Import!E13912","v":0}]
[14,{"$f":"Import!E11113","v":"Select"},{"$f":"Import!E11513","v":"Select"},{"$f":"Import!E11913","v":"Select"},{"$f":"Import!E12313","v":0},{"$f":"Import!E12713","v":0},{"$f":"Import!E13113","v":0},{"$f":"Import!E13513","v":0},{"$f":"Import!E13913","v":0}]
[15,{"$f":"Import!E11114","v":"Select"},{"$f":"Import!E11514","v":"Select"},{"$f":"Import!E11914","v":"Select"},{"$f":"Import!E12314","v":0},{"$f":"Import!E12714","v":0},{"$f":"Import!E13114","v":0},{"$f":"Import!E13514","v":0},{"$f":"Import!E13914","v":0}]
[16,{"$f":"Import!E11115","v":"Select"},{"$f":"Import!E11515","v":"Select"},{"$f":"Import!E11915","v":"Select"},{"$f":"Import!E12315","v":0},{"$f":"Import!E12715","v":0},{"$f":"Import!E13115","v":0},{"$f":"Import!E13515","v":0},{"$f":"Import!E13915","v":0}]
[17,{"$f":"Import!E11116","v":"Select"},{"$f":"Import!E11516","v":"Select"},{"$f":"Import!E11916","v":"Select"},{"$f":"Import!E12316","v":0},{"$f":"Import!E12716","v":0},{"$f":"Import!E13116","v":0},{"$f":"Import!E13516","v":0},{"$f":"Import!E13916","v":0}]
[18,{"$f":"Import!E11117","v":"Select"},{"$f":"Import!E11517","v":"Select"},{"$f":"Import!E11917","v":"Select"},{"$f":"Import!E12317","v":0},{"$f":"Import!E12717","v":0},{"$f":"Import!E13117","v":0},{"$f":"Import!E13517","v":0},{"$f":"Import!E13917","v":0}]
[19,{"$f":"Import!E11118","v":"Select"},{"$f":"Import!E11518","v":"Select"},{"$f":"Import!E11918","v":"Select"},{"$f":"Import!E12318","v":0},{"$f":"Import!E12718","v":0},{"$f":"Import!E13118","v":0},{"$f":"Import!E13518","v":0},{"$f":"Import!E13918","v":0}]
[20,{"$f":"Import!E11119","v":"Select"},{"$f":"Import!E11519","v":"Select"},{"$f":"Import!E11919","v":"Select"},{"$f":"Import!E12319","v":0},{"$f":"Import!E12719","v":0},{"$f":"Import!E13119","v":0},{"$f":"Import!E13519","v":0},{"$f":"Import!E13919","v":0}]
[21,{"$f":"Import!E11120","v":"Select"},{"$f":"Import!E11520","v":"Select"},{"$f":"Import!E11920","v":"Select"},{"$f":"Import!E12320","v":0},{"$f":"Import!E12720","v":0},{"$f":"Import!E13120","v":0},{"$f":"Import!E13520","v":0},{"$f":"Import!E13920","v":0}]
[22,{"$f":"Import!E11121","v":"Select"},{"$f":"Import!E11521","v":"Select"},{"$f":"Import!E11921","v":"Select"},{"$f":"Import!E12321","v":0},{"$f":"Import!E12721","v":0},{"$f":"Import!E13121","v":0},{"$f":"Import!E13521","v":0},{"$f":"Import!E13921","v":0}]
[23,{"$f":"Import!E11122","v":"Select"},{"$f":"Import!E11522","v":"Select"},{"$f":"Import!E11922","v":"Select"},{"$f":"Import!E12322","v":0},{"$f":"Import!E12722","v":0},{"$f":"Import!E13122","v":0},{"$f":"Import!E13522","v":0},{"$f":"Import!E13922","v":0}]
[24,{"$f":"Import!E11123","v":"Select"},{"$f":"Import!E11523","v":"Select"},{"$f":"Import!E11923","v":"Select"},{"$f":"Import!E12323","v":0},{"$f":"Import!E12723","v":0},{"$f":"Import!E13123","v":0},{"$f":"Import!E13523","v":0},{"$f":"Import!E13923","v":0}]
[25,{"$f":"Import!E11124","v":"Select"},{"$f":"Import!E11524","v":"Select"},{"$f":"Import!E11924","v":"Select"},{"$f":"Import!E12324","v":0},{"$f":"Import!E12724","v":0},{"$f":"Import!E13124","v":0},{"$f":"Import!E13524","v":0},{"$f":"Import!E13924","v":0}]
[26,{"$f":"Import!E11125","v":"Select"},{"$f":"Import!E11525","v":"Select"},{"$f":"Import!E11925","v":"Select"},{"$f":"Import!E12325","v":0},{"$f":"Import!E12725","v":0},{"$f":"Import!E13125","v":0},{"$f":"Import!E13525","v":0},{"$f":"Import!E13925","v":0}]
[27,{"$f":"Import!E11126","v":"Select"},{"$f":"Import!E11526","v":"Select"},{"$f":"Import!E11926","v":"Select"},{"$f":"Import!E12326","v":0},{"$f":"Import!E12726","v":0},{"$f":"Import!E13126","v":0},{"$f":"Import!E13526","v":0},{"$f":"Import!E13926","v":0}]
[28,{"$f":"Import!E11127","v":"Select"},{"$f":"Import!E11527","v":"Select"},{"$f":"Import!E11927","v":"Select"},{"$f":"Import!E12327","v":0},{"$f":"Import!E12727","v":0},{"$f":"Import!E13127","v":0},{"$f":"Import!E13527","v":0},{"$f":"Import!E13927","v":0}]
[29,{"$f":"Import!E11128","v":"Select"},{"$f":"Import!E11528","v":"Select"},{"$f":"Import!E11928","v":"Select"},{"$f":"Import!E12328","v":0},{"$f":"Import!E12728","v":0},{"$f":"Import!E13128","v":0},{"$f":"Import!E13528","v":0},{"$f":"Import!E13928","v":0}]
[30,{"$f":"Import!E11129","v":"Select"},{"$f":"Import!E11529","v":"Select"},{"$f":"Import!E11929","v":"Select"},{"$f":"Import!E12329","v":0},{"$f":"Import!E12729","v":0},{"$f":"Import!E13129","v":0},{"$f":"Import!E13529","v":0},{"$f":"Import!E13929","v":0}]
[31,{"$f":"Import!E11130","v":"Select"},{"$f":"Import!E11530","v":"Select"},{"$f":"Import!E11930","v":"Select"},{"$f":"Import!E12330","v":0},{"$f":"Import!E12730","v":0},{"$f":"Import!E13130","v":0},{"$f":"Import!E13530","v":0},{"$f":"Import!E13930","v":0}]
[32,{"$f":"Import!E11131","v":"Select"},{"$f":"Import!E11531","v":"Select"},{"$f":"Import!E11931","v":"Select"},{"$f":"Import!E12331","v":0},{"$f":"Import!E12731","v":0},{"$f":"Import!E13131","v":0},{"$f":"Import!E13531","v":0},{"$f":"Import!E13931","v":0}]
[33,{"$f":"Import!E11132","v":"Select"},{"$f":"Import!E11532","v":"Select"},{"$f":"Import!E11932","v":"Select"},{"$f":"Import!E12332","v":0},{"$f":"Import!E12732","v":0},{"$f":"Import!E13132","v":0},{"$f":"Import!E13532","v":0},{"$f":"Import!E13932","v":0}]
[34,{"$f":"Import!E11133","v":"Select"},{"$f":"Import!E11533","v":"Select"},{"$f":"Import!E11933","v":"Select"},{"$f":"Import!E12333","v":0},{"$f":"Import!E12733","v":0},{"$f":"Import!E13133","v":0},{"$f":"Import!E13533","v":0},{"$f":"Import!E13933","v":0}]
[35,{"$f":"Import!E11134","v":"Select"},{"$f":"Import!E11534","v":"Select"},{"$f":"Import!E11934","v":"Select"},{"$f":"Import!E12334","v":0},{"$f":"Import!E12734","v":0},{"$f":"Import!E13134","v":0},{"$f":"Import!E13534","v":0},{"$f":"Import!E13934","v":0}]
[36,{"$f":"Import!E11135","v":"Select"},{"$f":"Import!E11535","v":"Select"},{"$f":"Import!E11935","v":"Select"},{"$f":"Import!E12335","v":0},{"$f":"Import!E12735","v":0},{"$f":"Import!E13135","v":0},{"$f":"Import!E13535","v":0},{"$f":"Import!E13935","v":0}]
[37,{"$f":"Import!E11136","v":"Select"},{"$f":"Import!E11536","v":"Select"},{"$f":"Import!E11936","v":"Select"},{"$f":"Import!E12336","v":0},{"$f":"Import!E12736","v":0},{"$f":"Import!E13136","v":0},{"$f":"Import!E13536","v":0},{"$f":"Import!E13936","v":0}]
[38,{"$f":"Import!E11137","v":"Select"},{"$f":"Import!E11537","v":"Select"},{"$f":"Import!E11937","v":"Select"},{"$f":"Import!E12337","v":0},{"$f":"Import!E12737","v":0},{"$f":"Import!E13137","v":0},{"$f":"Import!E13537","v":0},{"$f":"Import!E13937","v":0}]
[39,{"$f":"Import!E11138","v":"Select"},{"$f":"Import!E11538","v":"Select"},{"$f":"Import!E11938","v":"Select"},{"$f":"Import!E12338","v":0},{"$f":"Import!E12738","v":0},{"$f":"Import!E13138","v":0},{"$f":"Import!E13538","v":0},{"$f":"Import!E13938","v":0}]
[40,{"$f":"Import!E11139","v":"Select"},{"$f":"Import!E11539","v":"Select"},{"$f":"Import!E11939","v":"Select"},{"$f":"Import!E12339","v":0},{"$f":"Import!E12739","v":0},{"$f":"Import!E13139","v":0},{"$f":"Import!E13539","v":0},{"$f":"Import!E13939","v":0}]
[41,{"$f":"Import!E11140","v":"Select"},{"$f":"Import!E11540","v":"Select"},{"$f":"Import!E11940","v":"Select"},{"$f":"Import!E12340","v":0},{"$f":"Import!E12740","v":0},{"$f":"Import!E13140","v":0},{"$f":"Import!E13540","v":0},{"$f":"Import!E13940","v":0}]
[42,{"$f":"Import!E11141","v":"Select"},{"$f":"Import!E11541","v":"Select"},{"$f":"Import!E11941","v":"Select"},{"$f":"Import!E12341","v":0},{"$f":"Import!E12741","v":0},{"$f":"Import!E13141","v":0},{"$f":"Import!E13541","v":0},{"$f":"Import!E13941","v":0}]
[43,{"$f":"Import!E11142","v":"Select"},{"$f":"Import!E11542","v":"Select"},{"$f":"Import!E11942","v":"Select"},{"$f":"Import!E12342","v":0},{"$f":"Import!E12742","v":0},{"$f":"Import!E13142","v":0},{"$f":"Import!E13542","v":0},{"$f":"Import!E13942","v":0}]
[44,{"$f":"Import!E11143","v":"Select"},{"$f":"Import!E11543","v":"Select"},{"$f":"Import!E11943","v":"Select"},{"$f":"Import!E12343","v":0},{"$f":"Import!E12743","v":0},{"$f":"Import!E13143","v":0},{"$f":"Import!E13543","v":0},{"$f":"Import!E13943","v":0}]
[45,{"$f":"Import!E11144","v":"Select"},{"$f":"Import!E11544","v":"Select"},{"$f":"Import!E11944","v":"Select"},{"$f":"Import!E12344","v":0},{"$f":"Import!E12744","v":0},{"$f":"Import!E13144","v":0},{"$f":"Import!E13544","v":0},{"$f":"Import!E13944","v":0}]
[46,{"$f":"Import!E11145","v":"Select"},{"$f":"Import!E11545","v":"Select"},{"$f":"Import!E11945","v":"Select"},{"$f":"Import!E12345","v":0},{"$f":"Import!E12745","v":0},{"$f":"Import!E13145","v":0},{"$f":"Import!E13545","v":0},{"$f":"Import!E13945","v":0}]
[47,{"$f":"Import!E11146","v":"Select"},{"$f":"Import!E11546","v":"Select"},{"$f":"Import!E11946","v":"Select"},{"$f":"Import!E12346","v":0},{"$f":"Import!E12746","v":0},{"$f":"Import!E13146","v":0},{"$f":"Import!E13546","v":0},{"$f":"Import!E13946","v":0}]
[48,{"$f":"Import!E11147","v":"Select"},{"$f":"Import!E11547","v":"Select"},{"$f":"Import!E11947","v":"Select"},{"$f":"Import!E12347","v":0},{"$f":"Import!E12747","v":0},{"$f":"Import!E13147","v":0},{"$f":"Import!E13547","v":0},{"$f":"Import!E13947","v":0}]
[49,{"$f":"Import!E11148","v":"Select"},{"$f":"Import!E11548","v":"Select"},{"$f":"Import!E11948","v":"Select"},{"$f":"Import!E12348","v":0},{"$f":"Import!E12748","v":0},{"$f":"Import!E13148","v":0},{"$f":"Import!E13548","v":0},{"$f":"Import!E13948","v":0}]
[50,{"$f":"Import!E11149","v":"Select"},{"$f":"Import!E11549","v":"Select"},{"$f":"Import!E11949","v":"Select"},{"$f":"Import!E12349","v":0},{"$f":"Import!E12749","v":0},{"$f":"Import!E13149","v":0},{"$f":"Import!E13549","v":0},{"$f":"Import!E13949","v":0}]
[51,{"$f":"Import!E11150","v":"Select"},{"$f":"Import!E11550","v":"Select"},{"$f":"Import!E11950","v":"Select"},{"$f":"Import!E12350","v":0},{"$f":"Import!E12750","v":0},{"$f":"Import!E13150","v":0},{"$f":"Import!E13550","v":0},{"$f":"Import!E13950","v":0}]
[52,{"$f":"Import!E11151","v":"Select"},{"$f":"Import!E11551","v":"Select"},{"$f":"Import!E11951","v":"Select"},{"$f":"Import!E12351","v":0},{"$f":"Import!E12751","v":0},{"$f":"Import!E13151","v":0},{"$f":"Import!E13551","v":0},{"$f":"Import!E13951","v":0}]
[53,{"$f":"Import!E11152","v":"Select"},{"$f":"Import!E11552","v":"Select"},{"$f":"Import!E11952","v":"Select"},{"$f":"Import!E12352","v":0},{"$f":"Import!E12752","v":0},{"$f":"Import!E13152","v":0},{"$f":"Import!E13552","v":0},{"$f":"Import!E13952","v":0}]
[54,{"$f":"Import!E11153","v":"Select"},{"$f":"Import!E11553","v":"Select"},{"$f":"Import!E11953","v":"Select"},{"$f":"Import!E12353","v":0},{"$f":"Import!E12753","v":0},{"$f":"Import!E13153","v":0},{"$f":"Import!E13553","v":0},{"$f":"Import!E13953","v":0}]
[55,{"$f":"Import!E11154","v":"Select"},{"$f":"Import!E11554","v":"Select"},{"$f":"Import!E11954","v":"Select"},{"$f":"Import!E12354","v":0},{"$f":"Import!E12754","v":0},{"$f":"Import!E13154","v":0},{"$f":"Import!E13554","v":0},{"$f":"Import!E13954","v":0}]
[56,{"$f":"Import!E11155","v":"Select"},{"$f":"Import!E11555","v":"Select"},{"$f":"Import!E11955","v":"Select"},{"$f":"Import!E12355","v":0},{"$f":"Import!E12755","v":0},{"$f":"Import!E13155","v":0},{"$f":"Import!E13555","v":0},{"$f":"Import!E13955","v":0}]
[57,{"$f":"Import!E11156","v":"Select"},{"$f":"Import!E11556","v":"Select"},{"$f":"Import!E11956","v":"Select"},{"$f":"Import!E12356","v":0},{"$f":"Import!E12756","v":0},{"$f":"Import!E13156","v":0},{"$f":"Import!E13556","v":0},{"$f":"Import!E13956","v":0}]
[58,{"$f":"Import!E11157","v":"Select"},{"$f":"Import!E11557","v":"Select"},{"$f":"Import!E11957","v":"Select"},{"$f":"Import!E12357","v":0},{"$f":"Import!E12757","v":0},{"$f":"Import!E13157","v":0},{"$f":"Import!E13557","v":0},{"$f":"Import!E13957","v":0}]
[59,{"$f":"Import!E11158","v":"Select"},{"$f":"Import!E11558","v":"Select"},{"$f":"Import!E11958","v":"Select"},{"$f":"Import!E12358","v":0},{"$f":"Import!E12758","v":0},{"$f":"Import!E13158","v":0},{"$f":"Import!E13558","v":0},{"$f":"Import!E13958","v":0}]
[60,{"$f":"Import!E11159","v":"Select"},{"$f":"Import!E11559","v":"Select"},{"$f":"Import!E11959","v":"Select"},{"$f":"Import!E12359","v":0},{"$f":"Import!E12759","v":0},{"$f":"Import!E13159","v":0},{"$f":"Import!E13559","v":0},{"$f":"Import!E13959","v":0}]
[61,{"$f":"Import!E11160","v":"Select"},{"$f":"Import!E11560","v":"Select"},{"$f":"Import!E11960","v":"Select"},{"$f":"Import!E12360","v":0},{"$f":"Import!E12760","v":0},{"$f":"Import!E13160","v":0},{"$f":"Import!E13560","v":0},{"$f":"Import!E13960","v":0}]
[62,{"$f":"Import!E11161","v":"Select"},{"$f":"Import!E11561","v":"Select"},{"$f":"Import!E11961","v":"Select"},{"$f":"Import!E12361","v":0},{"$f":"Import!E12761","v":0},{"$f":"Import!E13161","v":0},{"$f":"Import!E13561","v":0},{"$f":"Import!E13961","v":0}]
[63,{"$f":"Import!E11162","v":"Select"},{"$f":"Import!E11562","v":"Select"},{"$f":"Import!E11962","v":"Select"},{"$f":"Import!E12362","v":0},{"$f":"Import!E12762","v":0},{"$f":"Import!E13162","v":0},{"$f":"Import!E13562","v":0},{"$f":"Import!E13962","v":0}]
[64,{"$f":"Import!E11163","v":"Select"},{"$f":"Import!E11563","v":"Select"},{"$f":"Import!E11963","v":"Select"},{"$f":"Import!E12363","v":0},{"$f":"Import!E12763","v":0},{"$f":"Import!E13163","v":0},{"$f":"Import!E13563","v":0},{"$f":"Import!E13963","v":0}]
[65,{"$f":"Import!E11164","v":"Select"},{"$f":"Import!E11564","v":"Select"},{"$f":"Import!E11964","v":"Select"},{"$f":"Import!E12364","v":0},{"$f":"Import!E12764","v":0},{"$f":"Import!E13164","v":0},{"$f":"Import!E13564","v":0},{"$f":"Import!E13964","v":0}]
[66,{"$f":"Import!E11165","v":"Select"},{"$f":"Import!E11565","v":"Select"},{"$f":"Import!E11965","v":"Select"},{"$f":"Import!E12365","v":0},{"$f":"Import!E12765","v":0},{"$f":"Import!E13165","v":0},{"$f":"Import!E13565","v":0},{"$f":"Import!E13965","v":0}]
[{"$f":"A284+1","v":67},{"$f":"Import!E11166","v":"Select"},{"$f":"Import!E11566","v":"Select"},{"$f":"Import!E11966","v":"Select"},{"$f":"Import!E12366","v":0},{"$f":"Import!E12766","v":0},{"$f":"Import!E13166","v":0},{"$f":"Import!E13566","v":0},{"$f":"Import!E13966","v":0}]
[68,{"$f":"Import!E11167","v":"Select"},{"$f":"Import!E11567","v":"Select"},{"$f":"Import!E11967","v":"Select"},{"$f":"Import!E12367","v":0},{"$f":"Import!E12767","v":0},{"$f":"Import!E13167","v":0},{"$f":"Import!E13567","v":0},{"$f":"Import!E13967","v":0}]
[69,{"$f":"Import!E11168","v":"Select"},{"$f":"Import!E11568","v":"Select"},{"$f":"Import!E11968","v":"Select"},{"$f":"Import!E12368","v":0},{"$f":"Import!E12768","v":0},{"$f":"Import!E13168","v":0},{"$f":"Import!E13568","v":0},{"$f":"Import!E13968","v":0}]
[70,{"$f":"Import!E11169","v":"Select"},{"$f":"Import!E11569","v":"Select"},{"$f":"Import!E11969","v":"Select"},{"$f":"Import!E12369","v":0},{"$f":"Import!E12769","v":0},{"$f":"Import!E13169","v":0},{"$f":"Import!E13569","v":0},{"$f":"Import!E13969","v":0}]
[71,{"$f":"Import!E11170","v":"Select"},{"$f":"Import!E11570","v":"Select"},{"$f":"Import!E11970","v":"Select"},{"$f":"Import!E12370","v":0},{"$f":"Import!E12770","v":0},{"$f":"Import!E13170","v":0},{"$f":"Import!E13570","v":0},{"$f":"Import!E13970","v":0}]
[72,{"$f":"Import!E11171","v":"Select"},{"$f":"Import!E11571","v":"Select"},{"$f":"Import!E11971","v":"Select"},{"$f":"Import!E12371","v":0},{"$f":"Import!E12771","v":0},{"$f":"Import!E13171","v":0},{"$f":"Import!E13571","v":0},{"$f":"Import!E13971","v":0}]
[73,{"$f":"Import!E11172","v":"Select"},{"$f":"Import!E11572","v":"Select"},{"$f":"Import!E11972","v":"Select"},{"$f":"Import!E12372","v":0},{"$f":"Import!E12772","v":0},{"$f":"Import!E13172","v":0},{"$f":"Import!E13572","v":0},{"$f":"Import!E13972","v":0}]
[74,{"$f":"Import!E11173","v":"Select"},{"$f":"Import!E11573","v":"Select"},{"$f":"Import!E11973","v":"Select"},{"$f":"Import!E12373","v":0},{"$f":"Import!E12773","v":0},{"$f":"Import!E13173","v":0},{"$f":"Import!E13573","v":0},{"$f":"Import!E13973","v":0}]
[75,{"$f":"Import!E11174","v":"Select"},{"$f":"Import!E11574","v":"Select"},{"$f":"Import!E11974","v":"Select"},{"$f":"Import!E12374","v":0},{"$f":"Import!E12774","v":0},{"$f":"Import!E13174","v":0},{"$f":"Import!E13574","v":0},{"$f":"Import!E13974","v":0}]
[76,{"$f":"Import!E11175","v":"Select"},{"$f":"Import!E11575","v":"Select"},{"$f":"Import!E11975","v":"Select"},{"$f":"Import!E12375","v":0},{"$f":"Import!E12775","v":0},{"$f":"Import!E13175","v":0},{"$f":"Import!E13575","v":0},{"$f":"Import!E13975","v":0}]
[77,{"$f":"Import!E11176","v":"Select"},{"$f":"Import!E11576","v":"Select"},{"$f":"Import!E11976","v":"Select"},{"$f":"Import!E12376","v":0},{"$f":"Import!E12776","v":0},{"$f":"Import!E13176","v":0},{"$f":"Import!E13576","v":0},{"$f":"Import!E13976","v":0}]
[78,{"$f":"Import!E11177","v":"Select"},{"$f":"Import!E11577","v":"Select"},{"$f":"Import!E11977","v":"Select"},{"$f":"Import!E12377","v":0},{"$f":"Import!E12777","v":0},{"$f":"Import!E13177","v":0},{"$f":"Import!E13577","v":0},{"$f":"Import!E13977","v":0}]
[79,{"$f":"Import!E11178","v":"Select"},{"$f":"Import!E11578","v":"Select"},{"$f":"Import!E11978","v":"Select"},{"$f":"Import!E12378","v":0},{"$f":"Import!E12778","v":0},{"$f":"Import!E13178","v":0},{"$f":"Import!E13578","v":0},{"$f":"Import!E13978","v":0}]
[80,{"$f":"Import!E11179","v":"Select"},{"$f":"Import!E11579","v":"Select"},{"$f":"Import!E11979","v":"Select"},{"$f":"Import!E12379","v":0},{"$f":"Import!E12779","v":0},{"$f":"Import!E13179","v":0},{"$f":"Import!E13579","v":0},{"$f":"Import!E13979","v":0}]
[81,{"$f":"Import!E11180","v":"Select"},{"$f":"Import!E11580","v":"Select"},{"$f":"Import!E11980","v":"Select"},{"$f":"Import!E12380","v":0},{"$f":"Import!E12780","v":0},{"$f":"Import!E13180","v":0},{"$f":"Import!E13580","v":0},{"$f":"Import!E13980","v":0}]
[82,{"$f":"Import!E11181","v":"Select"},{"$f":"Import!E11581","v":"Select"},{"$f":"Import!E11981","v":"Select"},{"$f":"Import!E12381","v":0},{"$f":"Import!E12781","v":0},{"$f":"Import!E13181","v":0},{"$f":"Import!E13581","v":0},{"$f":"Import!E13981","v":0}]
[83,{"$f":"Import!E11182","v":"Select"},{"$f":"Import!E11582","v":"Select"},{"$f":"Import!E11982","v":"Select"},{"$f":"Import!E12382","v":0},{"$f":"Import!E12782","v":0},{"$f":"Import!E13182","v":0},{"$f":"Import!E13582","v":0},{"$f":"Import!E13982","v":0}]
[84,{"$f":"Import!E11183","v":"Select"},{"$f":"Import!E11583","v":"Select"},{"$f":"Import!E11983","v":"Select"},{"$f":"Import!E12383","v":0},{"$f":"Import!E12783","v":0},{"$f":"Import!E13183","v":0},{"$f":"Import!E13583","v":0},{"$f":"Import!E13983","v":0}]
[85,{"$f":"Import!E11184","v":"Select"},{"$f":"Import!E11584","v":"Select"},{"$f":"Import!E11984","v":"Select"},{"$f":"Import!E12384","v":0},{"$f":"Import!E12784","v":0},{"$f":"Import!E13184","v":0},{"$f":"Import!E13584","v":0},{"$f":"Import!E13984","v":0}]
[86,{"$f":"Import!E11185","v":"Select"},{"$f":"Import!E11585","v":"Select"},{"$f":"Import!E11985","v":"Select"},{"$f":"Import!E12385","v":0},{"$f":"Import!E12785","v":0},{"$f":"Import!E13185","v":0},{"$f":"Import!E13585","v":0},{"$f":"Import!E13985","v":0}]
[87,{"$f":"Import!E11186","v":"Select"},{"$f":"Import!E11586","v":"Select"},{"$f":"Import!E11986","v":"Select"},{"$f":"Import!E12386","v":0},{"$f":"Import!E12786","v":0},{"$f":"Import!E13186","v":0},{"$f":"Import!E13586","v":0},{"$f":"Import!E13986","v":0}]
[88,{"$f":"Import!E11187","v":"Select"},{"$f":"Import!E11587","v":"Select"},{"$f":"Import!E11987","v":"Select"},{"$f":"Import!E12387","v":0},{"$f":"Import!E12787","v":0},{"$f":"Import!E13187","v":0},{"$f":"Import!E13587","v":0},{"$f":"Import!E13987","v":0}]
[89,{"$f":"Import!E11188","v":"Select"},{"$f":"Import!E11588","v":"Select"},{"$f":"Import!E11988","v":"Select"},{"$f":"Import!E12388","v":0},{"$f":"Import!E12788","v":0},{"$f":"Import!E13188","v":0},{"$f":"Import!E13588","v":0},{"$f":"Import!E13988","v":0}]
[90,{"$f":"Import!E11189","v":"Select"},{"$f":"Import!E11589","v":"Select"},{"$f":"Import!E11989","v":"Select"},{"$f":"Import!E12389","v":0},{"$f":"Import!E12789","v":0},{"$f":"Import!E13189","v":0},{"$f":"Import!E13589","v":0},{"$f":"Import!E13989","v":0}]
[91,{"$f":"Import!E11190","v":"Select"},{"$f":"Import!E11590","v":"Select"},{"$f":"Import!E11990","v":"Select"},{"$f":"Import!E12390","v":0},{"$f":"Import!E12790","v":0},{"$f":"Import!E13190","v":0},{"$f":"Import!E13590","v":0},{"$f":"Import!E13990","v":0}]
[92,{"$f":"Import!E11191","v":"Select"},{"$f":"Import!E11591","v":"Select"},{"$f":"Import!E11991","v":"Select"},{"$f":"Import!E12391","v":0},{"$f":"Import!E12791","v":0},{"$f":"Import!E13191","v":0},{"$f":"Import!E13591","v":0},{"$f":"Import!E13991","v":0}]
[93,{"$f":"Import!E11192","v":"Select"},{"$f":"Import!E11592","v":"Select"},{"$f":"Import!E11992","v":"Select"},{"$f":"Import!E12392","v":0},{"$f":"Import!E12792","v":0},{"$f":"Import!E13192","v":0},{"$f":"Import!E13592","v":0},{"$f":"Import!E13992","v":0}]
[94,{"$f":"Import!E11193","v":"Select"},{"$f":"Import!E11593","v":"Select"},{"$f":"Import!E11993","v":"Select"},{"$f":"Import!E12393","v":0},{"$f":"Import!E12793","v":0},{"$f":"Import!E13193","v":0},{"$f":"Import!E13593","v":0},{"$f":"Import!E13993","v":0}]
[95,{"$f":"Import!E11194","v":"Select"},{"$f":"Import!E11594","v":"Select"},{"$f":"Import!E11994","v":"Select"},{"$f":"Import!E12394","v":0},{"$f":"Import!E12794","v":0},{"$f":"Import!E13194","v":0},{"$f":"Import!E13594","v":0},{"$f":"Import!E13994","v":0}]
[96,{"$f":"Import!E11195","v":"Select"},{"$f":"Import!E11595","v":"Select"},{"$f":"Import!E11995","v":"Select"},{"$f":"Import!E12395","v":0},{"$f":"Import!E12795","v":0},{"$f":"Import!E13195","v":0},{"$f":"Import!E13595","v":0},{"$f":"Import!E13995","v":0}]
[97,{"$f":"Import!E11196","v":"Select"},{"$f":"Import!E11596","v":"Select"},{"$f":"Import!E11996","v":"Select"},{"$f":"Import!E12396","v":0},{"$f":"Import!E12796","v":0},{"$f":"Import!E13196","v":0},{"$f":"Import!E13596","v":0},{"$f":"Import!E13996","v":0}]
[98,{"$f":"Import!E11197","v":"Select"},{"$f":"Import!E11597","v":"Select"},{"$f":"Import!E11997","v":"Select"},{"$f":"Import!E12397","v":0},{"$f":"Import!E12797","v":0},{"$f":"Import!E13197","v":0},{"$f":"Import!E13597","v":0},{"$f":"Import!E13997","v":0}]
[99,{"$f":"Import!E11198","v":"Select"},{"$f":"Import!E11598","v":"Select"},{"$f":"Import!E11998","v":"Select"},{"$f":"Import!E12398","v":0},{"$f":"Import!E12798","v":0},{"$f":"Import!E13198","v":0},{"$f":"Import!E13598","v":0},{"$f":"Import!E13998","v":0}]
[100,{"$f":"Import!E11199","v":"Select"},{"$f":"Import!E11599","v":"Select"},{"$f":"Import!E11999","v":"Select"},{"$f":"Import!E12399","v":0},{"$f":"Import!E12799","v":0},{"$f":"Import!E13199","v":0},{"$f":"Import!E13599","v":0},{"$f":"Import!E13999","v":0}]
[101,{"$f":"Import!E11200","v":"Select"},{"$f":"Import!E11600","v":"Select"},{"$f":"Import!E12000","v":"Select"},{"$f":"Import!E12400","v":0},{"$f":"Import!E12800","v":0},{"$f":"Import!E13200","v":0},{"$f":"Import!E13600","v":0},{"$f":"Import!E14000","v":0}]
[102,{"$f":"Import!E11201","v":"Select"},{"$f":"Import!E11601","v":"Select"},{"$f":"Import!E12001","v":"Select"},{"$f":"Import!E12401","v":0},{"$f":"Import!E12801","v":0},{"$f":"Import!E13201","v":0},{"$f":"Import!E13601","v":0},{"$f":"Import!E14001","v":0}]
[103,{"$f":"Import!E11202","v":"Select"},{"$f":"Import!E11602","v":"Select"},{"$f":"Import!E12002","v":"Select"},{"$f":"Import!E12402","v":0},{"$f":"Import!E12802","v":0},{"$f":"Import!E13202","v":0},{"$f":"Import!E13602","v":0},{"$f":"Import!E14002","v":0}]
[104,{"$f":"Import!E11203","v":"Select"},{"$f":"Import!E11603","v":"Select"},{"$f":"Import!E12003","v":"Select"},{"$f":"Import!E12403","v":0},{"$f":"Import!E12803","v":0},{"$f":"Import!E13203","v":0},{"$f":"Import!E13603","v":0},{"$f":"Import!E14003","v":0}]
[105,{"$f":"Import!E11204","v":"Select"},{"$f":"Import!E11604","v":"Select"},{"$f":"Import!E12004","v":"Select"},{"$f":"Import!E12404","v":0},{"$f":"Import!E12804","v":0},{"$f":"Import!E13204","v":0},{"$f":"Import!E13604","v":0},{"$f":"Import!E14004","v":0}]
[106,{"$f":"Import!E11205","v":"Select"},{"$f":"Import!E11605","v":"Select"},{"$f":"Import!E12005","v":"Select"},{"$f":"Import!E12405","v":0},{"$f":"Import!E12805","v":0},{"$f":"Import!E13205","v":0},{"$f":"Import!E13605","v":0},{"$f":"Import!E14005","v":0}]
[107,{"$f":"Import!E11206","v":"Select"},{"$f":"Import!E11606","v":"Select"},{"$f":"Import!E12006","v":"Select"},{"$f":"Import!E12406","v":0},{"$f":"Import!E12806","v":0},{"$f":"Import!E13206","v":0},{"$f":"Import!E13606","v":0},{"$f":"Import!E14006","v":0}]
[108,{"$f":"Import!E11207","v":"Select"},{"$f":"Import!E11607","v":"Select"},{"$f":"Import!E12007","v":"Select"},{"$f":"Import!E12407","v":0},{"$f":"Import!E12807","v":0},{"$f":"Import!E13207","v":0},{"$f":"Import!E13607","v":0},{"$f":"Import!E14007","v":0}]
[109,{"$f":"Import!E11208","v":"Select"},{"$f":"Import!E11608","v":"Select"},{"$f":"Import!E12008","v":"Select"},{"$f":"Import!E12408","v":0},{"$f":"Import!E12808","v":0},{"$f":"Import!E13208","v":0},{"$f":"Import!E13608","v":0},{"$f":"Import!E14008","v":0}]
[110,{"$f":"Import!E11209","v":"Select"},{"$f":"Import!E11609","v":"Select"},{"$f":"Import!E12009","v":"Select"},{"$f":"Import!E12409","v":0},{"$f":"Import!E12809","v":0},{"$f":"Import!E13209","v":0},{"$f":"Import!E13609","v":0},{"$f":"Import!E14009","v":0}]
[111,{"$f":"Import!E11210","v":"Select"},{"$f":"Import!E11610","v":"Select"},{"$f":"Import!E12010","v":"Select"},{"$f":"Import!E12410","v":0},{"$f":"Import!E12810","v":0},{"$f":"Import!E13210","v":0},{"$f":"Import!E13610","v":0},{"$f":"Import!E14010","v":0}]
[112,{"$f":"Import!E11211","v":"Select"},{"$f":"Import!E11611","v":"Select"},{"$f":"Import!E12011","v":"Select"},{"$f":"Import!E12411","v":0},{"$f":"Import!E12811","v":0},{"$f":"Import!E13211","v":0},{"$f":"Import!E13611","v":0},{"$f":"Import!E14011","v":0}]
[113,{"$f":"Import!E11212","v":"Select"},{"$f":"Import!E11612","v":"Select"},{"$f":"Import!E12012","v":"Select"},{"$f":"Import!E12412","v":0},{"$f":"Import!E12812","v":0},{"$f":"Import!E13212","v":0},{"$f":"Import!E13612","v":0},{"$f":"Import!E14012","v":0}]
[114,{"$f":"Import!E11213","v":"Select"},{"$f":"Import!E11613","v":"Select"},{"$f":"Import!E12013","v":"Select"},{"$f":"Import!E12413","v":0},{"$f":"Import!E12813","v":0},{"$f":"Import!E13213","v":0},{"$f":"Import!E13613","v":0},{"$f":"Import!E14013","v":0}]
[115,{"$f":"Import!E11214","v":"Select"},{"$f":"Import!E11614","v":"Select"},{"$f":"Import!E12014","v":"Select"},{"$f":"Import!E12414","v":0},{"$f":"Import!E12814","v":0},{"$f":"Import!E13214","v":0},{"$f":"Import!E13614","v":0},{"$f":"Import!E14014","v":0}]
[116,{"$f":"Import!E11215","v":"Select"},{"$f":"Import!E11615","v":"Select"},{"$f":"Import!E12015","v":"Select"},{"$f":"Import!E12415","v":0},{"$f":"Import!E12815","v":0},{"$f":"Import!E13215","v":0},{"$f":"Import!E13615","v":0},{"$f":"Import!E14015","v":0}]
[117,{"$f":"Import!E11216","v":"Select"},{"$f":"Import!E11616","v":"Select"},{"$f":"Import!E12016","v":"Select"},{"$f":"Import!E12416","v":0},{"$f":"Import!E12816","v":0},{"$f":"Import!E13216","v":0},{"$f":"Import!E13616","v":0},{"$f":"Import!E14016","v":0}]
[118,{"$f":"Import!E11217","v":"Select"},{"$f":"Import!E11617","v":"Select"},{"$f":"Import!E12017","v":"Select"},{"$f":"Import!E12417","v":0},{"$f":"Import!E12817","v":0},{"$f":"Import!E13217","v":0},{"$f":"Import!E13617","v":0},{"$f":"Import!E14017","v":0}]
[119,{"$f":"Import!E11218","v":"Select"},{"$f":"Import!E11618","v":"Select"},{"$f":"Import!E12018","v":"Select"},{"$f":"Import!E12418","v":0},{"$f":"Import!E12818","v":0},{"$f":"Import!E13218","v":0},{"$f":"Import!E13618","v":0},{"$f":"Import!E14018","v":0}]
[120,{"$f":"Import!E11219","v":"Select"},{"$f":"Import!E11619","v":"Select"},{"$f":"Import!E12019","v":"Select"},{"$f":"Import!E12419","v":0},{"$f":"Import!E12819","v":0},{"$f":"Import!E13219","v":0},{"$f":"Import!E13619","v":0},{"$f":"Import!E14019","v":0}]
[121,{"$f":"Import!E11220","v":"Select"},{"$f":"Import!E11620","v":"Select"},{"$f":"Import!E12020","v":"Select"},{"$f":"Import!E12420","v":0},{"$f":"Import!E12820","v":0},{"$f":"Import!E13220","v":0},{"$f":"Import!E13620","v":0},{"$f":"Import!E14020","v":0}]
[122,{"$f":"Import!E11221","v":"Select"},{"$f":"Import!E11621","v":"Select"},{"$f":"Import!E12021","v":"Select"},{"$f":"Import!E12421","v":0},{"$f":"Import!E12821","v":0},{"$f":"Import!E13221","v":0},{"$f":"Import!E13621","v":0},{"$f":"Import!E14021","v":0}]
[123,{"$f":"Import!E11222","v":"Select"},{"$f":"Import!E11622","v":"Select"},{"$f":"Import!E12022","v":"Select"},{"$f":"Import!E12422","v":0},{"$f":"Import!E12822","v":0},{"$f":"Import!E13222","v":0},{"$f":"Import!E13622","v":0},{"$f":"Import!E14022","v":0}]
[124,{"$f":"Import!E11223","v":"Select"},{"$f":"Import!E11623","v":"Select"},{"$f":"Import!E12023","v":"Select"},{"$f":"Import!E12423","v":0},{"$f":"Import!E12823","v":0},{"$f":"Import!E13223","v":0},{"$f":"Import!E13623","v":0},{"$f":"Import!E14023","v":0}]
[125,{"$f":"Import!E11224","v":"Select"},{"$f":"Import!E11624","v":"Select"},{"$f":"Import!E12024","v":"Select"},{"$f":"Import!E12424","v":0},{"$f":"Import!E12824","v":0},{"$f":"Import!E13224","v":0},{"$f":"Import!E13624","v":0},{"$f":"Import!E14024","v":0}]
[126,{"$f":"Import!E11225","v":"Select"},{"$f":"Import!E11625","v":"Select"},{"$f":"Import!E12025","v":"Select"},{"$f":"Import!E12425","v":0},{"$f":"Import!E12825","v":0},{"$f":"Import!E13225","v":0},{"$f":"Import!E13625","v":0},{"$f":"Import!E14025","v":0}]
[127,{"$f":"Import!E11226","v":"Select"},{"$f":"Import!E11626","v":"Select"},{"$f":"Import!E12026","v":"Select"},{"$f":"Import!E12426","v":0},{"$f":"Import!E12826","v":0},{"$f":"Import!E13226","v":0},{"$f":"Import!E13626","v":0},{"$f":"Import!E14026","v":0}]
[128,{"$f":"Import!E11227","v":"Select"},{"$f":"Import!E11627","v":"Select"},{"$f":"Import!E12027","v":"Select"},{"$f":"Import!E12427","v":0},{"$f":"Import!E12827","v":0},{"$f":"Import!E13227","v":0},{"$f":"Import!E13627","v":0},{"$f":"Import!E14027","v":0}]
[129,{"$f":"Import!E11228","v":"Select"},{"$f":"Import!E11628","v":"Select"},{"$f":"Import!E12028","v":"Select"},{"$f":"Import!E12428","v":0},{"$f":"Import!E12828","v":0},{"$f":"Import!E13228","v":0},{"$f":"Import!E13628","v":0},{"$f":"Import!E14028","v":0}]
[130,{"$f":"Import!E11229","v":"Select"},{"$f":"Import!E11629","v":"Select"},{"$f":"Import!E12029","v":"Select"},{"$f":"Import!E12429","v":0},{"$f":"Import!E12829","v":0},{"$f":"Import!E13229","v":0},{"$f":"Import!E13629","v":0},{"$f":"Import!E14029","v":0}]
[{"$f":"A348+1","v":131},{"$f":"Import!E11230","v":"Select"},{"$f":"Import!E11630","v":"Select"},{"$f":"Import!E12030","v":"Select"},{"$f":"Import!E12430","v":0},{"$f":"Import!E12830","v":0},{"$f":"Import!E13230","v":0},{"$f":"Import!E13630","v":0},{"$f":"Import!E14030","v":0}]
[132,{"$f":"Import!E11231","v":"Select"},{"$f":"Import!E11631","v":"Select"},{"$f":"Import!E12031","v":"Select"},{"$f":"Import!E12431","v":0},{"$f":"Import!E12831","v":0},{"$f":"Import!E13231","v":0},{"$f":"Import!E13631","v":0},{"$f":"Import!E14031","v":0}]
[133,{"$f":"Import!E11232","v":"Select"},{"$f":"Import!E11632","v":"Select"},{"$f":"Import!E12032","v":"Select"},{"$f":"Import!E12432","v":0},{"$f":"Import!E12832","v":0},{"$f":"Import!E13232","v":0},{"$f":"Import!E13632","v":0},{"$f":"Import!E14032","v":0}]
[134,{"$f":"Import!E11233","v":"Select"},{"$f":"Import!E11633","v":"Select"},{"$f":"Import!E12033","v":"Select"},{"$f":"Import!E12433","v":0},{"$f":"Import!E12833","v":0},{"$f":"Import!E13233","v":0},{"$f":"Import!E13633","v":0},{"$f":"Import!E14033","v":0}]
[135,{"$f":"Import!E11234","v":"Select"},{"$f":"Import!E11634","v":"Select"},{"$f":"Import!E12034","v":"Select"},{"$f":"Import!E12434","v":0},{"$f":"Import!E12834","v":0},{"$f":"Import!E13234","v":0},{"$f":"Import!E13634","v":0},{"$f":"Import!E14034","v":0}]
[136,{"$f":"Import!E11235","v":"Select"},{"$f":"Import!E11635","v":"Select"},{"$f":"Import!E12035","v":"Select"},{"$f":"Import!E12435","v":0},{"$f":"Import!E12835","v":0},{"$f":"Import!E13235","v":0},{"$f":"Import!E13635","v":0},{"$f":"Import!E14035","v":0}]
[137,{"$f":"Import!E11236","v":"Select"},{"$f":"Import!E11636","v":"Select"},{"$f":"Import!E12036","v":"Select"},{"$f":"Import!E12436","v":0},{"$f":"Import!E12836","v":0},{"$f":"Import!E13236","v":0},{"$f":"Import!E13636","v":0},{"$f":"Import!E14036","v":0}]
[138,{"$f":"Import!E11237","v":"Select"},{"$f":"Import!E11637","v":"Select"},{"$f":"Import!E12037","v":"Select"},{"$f":"Import!E12437","v":0},{"$f":"Import!E12837","v":0},{"$f":"Import!E13237","v":0},{"$f":"Import!E13637","v":0},{"$f":"Import!E14037","v":0}]
[139,{"$f":"Import!E11238","v":"Select"},{"$f":"Import!E11638","v":"Select"},{"$f":"Import!E12038","v":"Select"},{"$f":"Import!E12438","v":0},{"$f":"Import!E12838","v":0},{"$f":"Import!E13238","v":0},{"$f":"Import!E13638","v":0},{"$f":"Import!E14038","v":0}]
[140,{"$f":"Import!E11239","v":"Select"},{"$f":"Import!E11639","v":"Select"},{"$f":"Import!E12039","v":"Select"},{"$f":"Import!E12439","v":0},{"$f":"Import!E12839","v":0},{"$f":"Import!E13239","v":0},{"$f":"Import!E13639","v":0},{"$f":"Import!E14039","v":0}]
[141,{"$f":"Import!E11240","v":"Select"},{"$f":"Import!E11640","v":"Select"},{"$f":"Import!E12040","v":"Select"},{"$f":"Import!E12440","v":0},{"$f":"Import!E12840","v":0},{"$f":"Import!E13240","v":0},{"$f":"Import!E13640","v":0},{"$f":"Import!E14040","v":0}]
[142,{"$f":"Import!E11241","v":"Select"},{"$f":"Import!E11641","v":"Select"},{"$f":"Import!E12041","v":"Select"},{"$f":"Import!E12441","v":0},{"$f":"Import!E12841","v":0},{"$f":"Import!E13241","v":0},{"$f":"Import!E13641","v":0},{"$f":"Import!E14041","v":0}]
[143,{"$f":"Import!E11242","v":"Select"},{"$f":"Import!E11642","v":"Select"},{"$f":"Import!E12042","v":"Select"},{"$f":"Import!E12442","v":0},{"$f":"Import!E12842","v":0},{"$f":"Import!E13242","v":0},{"$f":"Import!E13642","v":0},{"$f":"Import!E14042","v":0}]
[144,{"$f":"Import!E11243","v":"Select"},{"$f":"Import!E11643","v":"Select"},{"$f":"Import!E12043","v":"Select"},{"$f":"Import!E12443","v":0},{"$f":"Import!E12843","v":0},{"$f":"Import!E13243","v":0},{"$f":"Import!E13643","v":0},{"$f":"Import!E14043","v":0}]
[145,{"$f":"Import!E11244","v":"Select"},{"$f":"Import!E11644","v":"Select"},{"$f":"Import!E12044","v":"Select"},{"$f":"Import!E12444","v":0},{"$f":"Import!E12844","v":0},{"$f":"Import!E13244","v":0},{"$f":"Import!E13644","v":0},{"$f":"Import!E14044","v":0}]
[146,{"$f":"Import!E11245","v":"Select"},{"$f":"Import!E11645","v":"Select"},{"$f":"Import!E12045","v":"Select"},{"$f":"Import!E12445","v":0},{"$f":"Import!E12845","v":0},{"$f":"Import!E13245","v":0},{"$f":"Import!E13645","v":0},{"$f":"Import!E14045","v":0}]
[147,{"$f":"Import!E11246","v":"Select"},{"$f":"Import!E11646","v":"Select"},{"$f":"Import!E12046","v":"Select"},{"$f":"Import!E12446","v":0},{"$f":"Import!E12846","v":0},{"$f":"Import!E13246","v":0},{"$f":"Import!E13646","v":0},{"$f":"Import!E14046","v":0}]
[148,{"$f":"Import!E11247","v":"Select"},{"$f":"Import!E11647","v":"Select"},{"$f":"Import!E12047","v":"Select"},{"$f":"Import!E12447","v":0},{"$f":"Import!E12847","v":0},{"$f":"Import!E13247","v":0},{"$f":"Import!E13647","v":0},{"$f":"Import!E14047","v":0}]
[149,{"$f":"Import!E11248","v":"Select"},{"$f":"Import!E11648","v":"Select"},{"$f":"Import!E12048","v":"Select"},{"$f":"Import!E12448","v":0},{"$f":"Import!E12848","v":0},{"$f":"Import!E13248","v":0},{"$f":"Import!E13648","v":0},{"$f":"Import!E14048","v":0}]
[150,{"$f":"Import!E11249","v":"Select"},{"$f":"Import!E11649","v":"Select"},{"$f":"Import!E12049","v":"Select"},{"$f":"Import!E12449","v":0},{"$f":"Import!E12849","v":0},{"$f":"Import!E13249","v":0},{"$f":"Import!E13649","v":0},{"$f":"Import!E14049","v":0}]
[151,{"$f":"Import!E11250","v":"Select"},{"$f":"Import!E11650","v":"Select"},{"$f":"Import!E12050","v":"Select"},{"$f":"Import!E12450","v":0},{"$f":"Import!E12850","v":0},{"$f":"Import!E13250","v":0},{"$f":"Import!E13650","v":0},{"$f":"Import!E14050","v":0}]
[152,{"$f":"Import!E11251","v":"Select"},{"$f":"Import!E11651","v":"Select"},{"$f":"Import!E12051","v":"Select"},{"$f":"Import!E12451","v":0},{"$f":"Import!E12851","v":0},{"$f":"Import!E13251","v":0},{"$f":"Import!E13651","v":0},{"$f":"Import!E14051","v":0}]
[153,{"$f":"Import!E11252","v":"Select"},{"$f":"Import!E11652","v":"Select"},{"$f":"Import!E12052","v":"Select"},{"$f":"Import!E12452","v":0},{"$f":"Import!E12852","v":0},{"$f":"Import!E13252","v":0},{"$f":"Import!E13652","v":0},{"$f":"Import!E14052","v":0}]
[154,{"$f":"Import!E11253","v":"Select"},{"$f":"Import!E11653","v":"Select"},{"$f":"Import!E12053","v":"Select"},{"$f":"Import!E12453","v":0},{"$f":"Import!E12853","v":0},{"$f":"Import!E13253","v":0},{"$f":"Import!E13653","v":0},{"$f":"Import!E14053","v":0}]
[155,{"$f":"Import!E11254","v":"Select"},{"$f":"Import!E11654","v":"Select"},{"$f":"Import!E12054","v":"Select"},{"$f":"Import!E12454","v":0},{"$f":"Import!E12854","v":0},{"$f":"Import!E13254","v":0},{"$f":"Import!E13654","v":0},{"$f":"Import!E14054","v":0}]
[156,{"$f":"Import!E11255","v":"Select"},{"$f":"Import!E11655","v":"Select"},{"$f":"Import!E12055","v":"Select"},{"$f":"Import!E12455","v":0},{"$f":"Import!E12855","v":0},{"$f":"Import!E13255","v":0},{"$f":"Import!E13655","v":0},{"$f":"Import!E14055","v":0}]
[157,{"$f":"Import!E11256","v":"Select"},{"$f":"Import!E11656","v":"Select"},{"$f":"Import!E12056","v":"Select"},{"$f":"Import!E12456","v":0},{"$f":"Import!E12856","v":0},{"$f":"Import!E13256","v":0},{"$f":"Import!E13656","v":0},{"$f":"Import!E14056","v":0}]
[158,{"$f":"Import!E11257","v":"Select"},{"$f":"Import!E11657","v":"Select"},{"$f":"Import!E12057","v":"Select"},{"$f":"Import!E12457","v":0},{"$f":"Import!E12857","v":0},{"$f":"Import!E13257","v":0},{"$f":"Import!E13657","v":0},{"$f":"Import!E14057","v":0}]
[159,{"$f":"Import!E11258","v":"Select"},{"$f":"Import!E11658","v":"Select"},{"$f":"Import!E12058","v":"Select"},{"$f":"Import!E12458","v":0},{"$f":"Import!E12858","v":0},{"$f":"Import!E13258","v":0},{"$f":"Import!E13658","v":0},{"$f":"Import!E14058","v":0}]
[160,{"$f":"Import!E11259","v":"Select"},{"$f":"Import!E11659","v":"Select"},{"$f":"Import!E12059","v":"Select"},{"$f":"Import!E12459","v":0},{"$f":"Import!E12859","v":0},{"$f":"Import!E13259","v":0},{"$f":"Import!E13659","v":0},{"$f":"Import!E14059","v":0}]
[161,{"$f":"Import!E11260","v":"Select"},{"$f":"Import!E11660","v":"Select"},{"$f":"Import!E12060","v":"Select"},{"$f":"Import!E12460","v":0},{"$f":"Import!E12860","v":0},{"$f":"Import!E13260","v":0},{"$f":"Import!E13660","v":0},{"$f":"Import!E14060","v":0}]
[162,{"$f":"Import!E11261","v":"Select"},{"$f":"Import!E11661","v":"Select"},{"$f":"Import!E12061","v":"Select"},{"$f":"Import!E12461","v":0},{"$f":"Import!E12861","v":0},{"$f":"Import!E13261","v":0},{"$f":"Import!E13661","v":0},{"$f":"Import!E14061","v":0}]
[163,{"$f":"Import!E11262","v":"Select"},{"$f":"Import!E11662","v":"Select"},{"$f":"Import!E12062","v":"Select"},{"$f":"Import!E12462","v":0},{"$f":"Import!E12862","v":0},{"$f":"Import!E13262","v":0},{"$f":"Import!E13662","v":0},{"$f":"Import!E14062","v":0}]
[164,{"$f":"Import!E11263","v":"Select"},{"$f":"Import!E11663","v":"Select"},{"$f":"Import!E12063","v":"Select"},{"$f":"Import!E12463","v":0},{"$f":"Import!E12863","v":0},{"$f":"Import!E13263","v":0},{"$f":"Import!E13663","v":0},{"$f":"Import!E14063","v":0}]
[165,{"$f":"Import!E11264","v":"Select"},{"$f":"Import!E11664","v":"Select"},{"$f":"Import!E12064","v":"Select"},{"$f":"Import!E12464","v":0},{"$f":"Import!E12864","v":0},{"$f":"Import!E13264","v":0},{"$f":"Import!E13664","v":0},{"$f":"Import!E14064","v":0}]
[166,{"$f":"Import!E11265","v":"Select"},{"$f":"Import!E11665","v":"Select"},{"$f":"Import!E12065","v":"Select"},{"$f":"Import!E12465","v":0},{"$f":"Import!E12865","v":0},{"$f":"Import!E13265","v":0},{"$f":"Import!E13665","v":0},{"$f":"Import!E14065","v":0}]
[167,{"$f":"Import!E11266","v":"Select"},{"$f":"Import!E11666","v":"Select"},{"$f":"Import!E12066","v":"Select"},{"$f":"Import!E12466","v":0},{"$f":"Import!E12866","v":0},{"$f":"Import!E13266","v":0},{"$f":"Import!E13666","v":0},{"$f":"Import!E14066","v":0}]
[168,{"$f":"Import!E11267","v":"Select"},{"$f":"Import!E11667","v":"Select"},{"$f":"Import!E12067","v":"Select"},{"$f":"Import!E12467","v":0},{"$f":"Import!E12867","v":0},{"$f":"Import!E13267","v":0},{"$f":"Import!E13667","v":0},{"$f":"Import!E14067","v":0}]
[169,{"$f":"Import!E11268","v":"Select"},{"$f":"Import!E11668","v":"Select"},{"$f":"Import!E12068","v":"Select"},{"$f":"Import!E12468","v":0},{"$f":"Import!E12868","v":0},{"$f":"Import!E13268","v":0},{"$f":"Import!E13668","v":0},{"$f":"Import!E14068","v":0}]
[170,{"$f":"Import!E11269","v":"Select"},{"$f":"Import!E11669","v":"Select"},{"$f":"Import!E12069","v":"Select"},{"$f":"Import!E12469","v":0},{"$f":"Import!E12869","v":0},{"$f":"Import!E13269","v":0},{"$f":"Import!E13669","v":0},{"$f":"Import!E14069","v":0}]
[171,{"$f":"Import!E11270","v":"Select"},{"$f":"Import!E11670","v":"Select"},{"$f":"Import!E12070","v":"Select"},{"$f":"Import!E12470","v":0},{"$f":"Import!E12870","v":0},{"$f":"Import!E13270","v":0},{"$f":"Import!E13670","v":0},{"$f":"Import!E14070","v":0}]
[172,{"$f":"Import!E11271","v":"Select"},{"$f":"Import!E11671","v":"Select"},{"$f":"Import!E12071","v":"Select"},{"$f":"Import!E12471","v":0},{"$f":"Import!E12871","v":0},{"$f":"Import!E13271","v":0},{"$f":"Import!E13671","v":0},{"$f":"Import!E14071","v":0}]
[173,{"$f":"Import!E11272","v":"Select"},{"$f":"Import!E11672","v":"Select"},{"$f":"Import!E12072","v":"Select"},{"$f":"Import!E12472","v":0},{"$f":"Import!E12872","v":0},{"$f":"Import!E13272","v":0},{"$f":"Import!E13672","v":0},{"$f":"Import!E14072","v":0}]
[174,{"$f":"Import!E11273","v":"Select"},{"$f":"Import!E11673","v":"Select"},{"$f":"Import!E12073","v":"Select"},{"$f":"Import!E12473","v":0},{"$f":"Import!E12873","v":0},{"$f":"Import!E13273","v":0},{"$f":"Import!E13673","v":0},{"$f":"Import!E14073","v":0}]
[175,{"$f":"Import!E11274","v":"Select"},{"$f":"Import!E11674","v":"Select"},{"$f":"Import!E12074","v":"Select"},{"$f":"Import!E12474","v":0},{"$f":"Import!E12874","v":0},{"$f":"Import!E13274","v":0},{"$f":"Import!E13674","v":0},{"$f":"Import!E14074","v":0}]
[176,{"$f":"Import!E11275","v":"Select"},{"$f":"Import!E11675","v":"Select"},{"$f":"Import!E12075","v":"Select"},{"$f":"Import!E12475","v":0},{"$f":"Import!E12875","v":0},{"$f":"Import!E13275","v":0},{"$f":"Import!E13675","v":0},{"$f":"Import!E14075","v":0}]
[177,{"$f":"Import!E11276","v":"Select"},{"$f":"Import!E11676","v":"Select"},{"$f":"Import!E12076","v":"Select"},{"$f":"Import!E12476","v":0},{"$f":"Import!E12876","v":0},{"$f":"Import!E13276","v":0},{"$f":"Import!E13676","v":0},{"$f":"Import!E14076","v":0}]
[178,{"$f":"Import!E11277","v":"Select"},{"$f":"Import!E11677","v":"Select"},{"$f":"Import!E12077","v":"Select"},{"$f":"Import!E12477","v":0},{"$f":"Import!E12877","v":0},{"$f":"Import!E13277","v":0},{"$f":"Import!E13677","v":0},{"$f":"Import!E14077","v":0}]
[179,{"$f":"Import!E11278","v":"Select"},{"$f":"Import!E11678","v":"Select"},{"$f":"Import!E12078","v":"Select"},{"$f":"Import!E12478","v":0},{"$f":"Import!E12878","v":0},{"$f":"Import!E13278","v":0},{"$f":"Import!E13678","v":0},{"$f":"Import!E14078","v":0}]
[180,{"$f":"Import!E11279","v":"Select"},{"$f":"Import!E11679","v":"Select"},{"$f":"Import!E12079","v":"Select"},{"$f":"Import!E12479","v":0},{"$f":"Import!E12879","v":0},{"$f":"Import!E13279","v":0},{"$f":"Import!E13679","v":0},{"$f":"Import!E14079","v":0}]
[181,{"$f":"Import!E11280","v":"Select"},{"$f":"Import!E11680","v":"Select"},{"$f":"Import!E12080","v":"Select"},{"$f":"Import!E12480","v":0},{"$f":"Import!E12880","v":0},{"$f":"Import!E13280","v":0},{"$f":"Import!E13680","v":0},{"$f":"Import!E14080","v":0}]
[182,{"$f":"Import!E11281","v":"Select"},{"$f":"Import!E11681","v":"Select"},{"$f":"Import!E12081","v":"Select"},{"$f":"Import!E12481","v":0},{"$f":"Import!E12881","v":0},{"$f":"Import!E13281","v":0},{"$f":"Import!E13681","v":0},{"$f":"Import!E14081","v":0}]
[183,{"$f":"Import!E11282","v":"Select"},{"$f":"Import!E11682","v":"Select"},{"$f":"Import!E12082","v":"Select"},{"$f":"Import!E12482","v":0},{"$f":"Import!E12882","v":0},{"$f":"Import!E13282","v":0},{"$f":"Import!E13682","v":0},{"$f":"Import!E14082","v":0}]
[184,{"$f":"Import!E11283","v":"Select"},{"$f":"Import!E11683","v":"Select"},{"$f":"Import!E12083","v":"Select"},{"$f":"Import!E12483","v":0},{"$f":"Import!E12883","v":0},{"$f":"Import!E13283","v":0},{"$f":"Import!E13683","v":0},{"$f":"Import!E14083","v":0}]
[185,{"$f":"Import!E11284","v":"Select"},{"$f":"Import!E11684","v":"Select"},{"$f":"Import!E12084","v":"Select"},{"$f":"Import!E12484","v":0},{"$f":"Import!E12884","v":0},{"$f":"Import!E13284","v":0},{"$f":"Import!E13684","v":0},{"$f":"Import!E14084","v":0}]
[186,{"$f":"Import!E11285","v":"Select"},{"$f":"Import!E11685","v":"Select"},{"$f":"Import!E12085","v":"Select"},{"$f":"Import!E12485","v":0},{"$f":"Import!E12885","v":0},{"$f":"Import!E13285","v":0},{"$f":"Import!E13685","v":0},{"$f":"Import!E14085","v":0}]
[187,{"$f":"Import!E11286","v":"Select"},{"$f":"Import!E11686","v":"Select"},{"$f":"Import!E12086","v":"Select"},{"$f":"Import!E12486","v":0},{"$f":"Import!E12886","v":0},{"$f":"Import!E13286","v":0},{"$f":"Import!E13686","v":0},{"$f":"Import!E14086","v":0}]
[188,{"$f":"Import!E11287","v":"Select"},{"$f":"Import!E11687","v":"Select"},{"$f":"Import!E12087","v":"Select"},{"$f":"Import!E12487","v":0},{"$f":"Import!E12887","v":0},{"$f":"Import!E13287","v":0},{"$f":"Import!E13687","v":0},{"$f":"Import!E14087","v":0}]
[189,{"$f":"Import!E11288","v":"Select"},{"$f":"Import!E11688","v":"Select"},{"$f":"Import!E12088","v":"Select"},{"$f":"Import!E12488","v":0},{"$f":"Import!E12888","v":0},{"$f":"Import!E13288","v":0},{"$f":"Import!E13688","v":0},{"$f":"Import!E14088","v":0}]
[190,{"$f":"Import!E11289","v":"Select"},{"$f":"Import!E11689","v":"Select"},{"$f":"Import!E12089","v":"Select"},{"$f":"Import!E12489","v":0},{"$f":"Import!E12889","v":0},{"$f":"Import!E13289","v":0},{"$f":"Import!E13689","v":0},{"$f":"Import!E14089","v":0}]
[191,{"$f":"Import!E11290","v":"Select"},{"$f":"Import!E11690","v":"Select"},{"$f":"Import!E12090","v":"Select"},{"$f":"Import!E12490","v":0},{"$f":"Import!E12890","v":0},{"$f":"Import!E13290","v":0},{"$f":"Import!E13690","v":0},{"$f":"Import!E14090","v":0}]
[192,{"$f":"Import!E11291","v":"Select"},{"$f":"Import!E11691","v":"Select"},{"$f":"Import!E12091","v":"Select"},{"$f":"Import!E12491","v":0},{"$f":"Import!E12891","v":0},{"$f":"Import!E13291","v":0},{"$f":"Import!E13691","v":0},{"$f":"Import!E14091","v":0}]
[193,{"$f":"Import!E11292","v":"Select"},{"$f":"Import!E11692","v":"Select"},{"$f":"Import!E12092","v":"Select"},{"$f":"Import!E12492","v":0},{"$f":"Import!E12892","v":0},{"$f":"Import!E13292","v":0},{"$f":"Import!E13692","v":0},{"$f":"Import!E14092","v":0}]
[194,{"$f":"Import!E11293","v":"Select"},{"$f":"Import!E11693","v":"Select"},{"$f":"Import!E12093","v":"Select"},{"$f":"Import!E12493","v":0},{"$f":"Import!E12893","v":0},{"$f":"Import!E13293","v":0},{"$f":"Import!E13693","v":0},{"$f":"Import!E14093","v":0}]
[{"$f":"A412+1","v":195},{"$f":"Import!E11294","v":"Select"},{"$f":"Import!E11694","v":"Select"},{"$f":"Import!E12094","v":"Select"},{"$f":"Import!E12494","v":0},{"$f":"Import!E12894","v":0},{"$f":"Import!E13294","v":0},{"$f":"Import!E13694","v":0},{"$f":"Import!E14094","v":0}]
[196,{"$f":"Import!E11295","v":"Select"},{"$f":"Import!E11695","v":"Select"},{"$f":"Import!E12095","v":"Select"},{"$f":"Import!E12495","v":0},{"$f":"Import!E12895","v":0},{"$f":"Import!E13295","v":0},{"$f":"Import!E13695","v":0},{"$f":"Import!E14095","v":0}]
[197,{"$f":"Import!E11296","v":"Select"},{"$f":"Import!E11696","v":"Select"},{"$f":"Import!E12096","v":"Select"},{"$f":"Import!E12496","v":0},{"$f":"Import!E12896","v":0},{"$f":"Import!E13296","v":0},{"$f":"Import!E13696","v":0},{"$f":"Import!E14096","v":0}]
[198,{"$f":"Import!E11297","v":"Select"},{"$f":"Import!E11697","v":"Select"},{"$f":"Import!E12097","v":"Select"},{"$f":"Import!E12497","v":0},{"$f":"Import!E12897","v":0},{"$f":"Import!E13297","v":0},{"$f":"Import!E13697","v":0},{"$f":"Import!E14097","v":0}]
[199,{"$f":"Import!E11298","v":"Select"},{"$f":"Import!E11698","v":"Select"},{"$f":"Import!E12098","v":"Select"},{"$f":"Import!E12498","v":0},{"$f":"Import!E12898","v":0},{"$f":"Import!E13298","v":0},{"$f":"Import!E13698","v":0},{"$f":"Import!E14098","v":0}]
[200,{"$f":"Import!E11299","v":"Select"},{"$f":"Import!E11699","v":"Select"},{"$f":"Import!E12099","v":"Select"},{"$f":"Import!E12499","v":0},{"$f":"Import!E12899","v":0},{"$f":"Import!E13299","v":0},{"$f":"Import!E13699","v":0},{"$f":"Import!E14099","v":0}]
[201,{"$f":"Import!E11300","v":"Select"},{"$f":"Import!E11700","v":"Select"},{"$f":"Import!E12100","v":"Select"},{"$f":"Import!E12500","v":0},{"$f":"Import!E12900","v":0},{"$f":"Import!E13300","v":0},{"$f":"Import!E13700","v":0},{"$f":"Import!E14100","v":0}]
[202,{"$f":"Import!E11301","v":"Select"},{"$f":"Import!E11701","v":"Select"},{"$f":"Import!E12101","v":"Select"},{"$f":"Import!E12501","v":0},{"$f":"Import!E12901","v":0},{"$f":"Import!E13301","v":0},{"$f":"Import!E13701","v":0},{"$f":"Import!E14101","v":0}]
[203,{"$f":"Import!E11302","v":"Select"},{"$f":"Import!E11702","v":"Select"},{"$f":"Import!E12102","v":"Select"},{"$f":"Import!E12502","v":0},{"$f":"Import!E12902","v":0},{"$f":"Import!E13302","v":0},{"$f":"Import!E13702","v":0},{"$f":"Import!E14102","v":0}]
[204,{"$f":"Import!E11303","v":"Select"},{"$f":"Import!E11703","v":"Select"},{"$f":"Import!E12103","v":"Select"},{"$f":"Import!E12503","v":0},{"$f":"Import!E12903","v":0},{"$f":"Import!E13303","v":0},{"$f":"Import!E13703","v":0},{"$f":"Import!E14103","v":0}]
[205,{"$f":"Import!E11304","v":"Select"},{"$f":"Import!E11704","v":"Select"},{"$f":"Import!E12104","v":"Select"},{"$f":"Import!E12504","v":0},{"$f":"Import!E12904","v":0},{"$f":"Import!E13304","v":0},{"$f":"Import!E13704","v":0},{"$f":"Import!E14104","v":0}]
[206,{"$f":"Import!E11305","v":"Select"},{"$f":"Import!E11705","v":"Select"},{"$f":"Import!E12105","v":"Select"},{"$f":"Import!E12505","v":0},{"$f":"Import!E12905","v":0},{"$f":"Import!E13305","v":0},{"$f":"Import!E13705","v":0},{"$f":"Import!E14105","v":0}]
[207,{"$f":"Import!E11306","v":"Select"},{"$f":"Import!E11706","v":"Select"},{"$f":"Import!E12106","v":"Select"},{"$f":"Import!E12506","v":0},{"$f":"Import!E12906","v":0},{"$f":"Import!E13306","v":0},{"$f":"Import!E13706","v":0},{"$f":"Import!E14106","v":0}]
[208,{"$f":"Import!E11307","v":"Select"},{"$f":"Import!E11707","v":"Select"},{"$f":"Import!E12107","v":"Select"},{"$f":"Import!E12507","v":0},{"$f":"Import!E12907","v":0},{"$f":"Import!E13307","v":0},{"$f":"Import!E13707","v":0},{"$f":"Import!E14107","v":0}]
[209,{"$f":"Import!E11308","v":"Select"},{"$f":"Import!E11708","v":"Select"},{"$f":"Import!E12108","v":"Select"},{"$f":"Import!E12508","v":0},{"$f":"Import!E12908","v":0},{"$f":"Import!E13308","v":0},{"$f":"Import!E13708","v":0},{"$f":"Import!E14108","v":0}]
[210,{"$f":"Import!E11309","v":"Select"},{"$f":"Import!E11709","v":"Select"},{"$f":"Import!E12109","v":"Select"},{"$f":"Import!E12509","v":0},{"$f":"Import!E12909","v":0},{"$f":"Import!E13309","v":0},{"$f":"Import!E13709","v":0},{"$f":"Import!E14109","v":0}]
[211,{"$f":"Import!E11310","v":"Select"},{"$f":"Import!E11710","v":"Select"},{"$f":"Import!E12110","v":"Select"},{"$f":"Import!E12510","v":0},{"$f":"Import!E12910","v":0},{"$f":"Import!E13310","v":0},{"$f":"Import!E13710","v":0},{"$f":"Import!E14110","v":0}]
[212,{"$f":"Import!E11311","v":"Select"},{"$f":"Import!E11711","v":"Select"},{"$f":"Import!E12111","v":"Select"},{"$f":"Import!E12511","v":0},{"$f":"Import!E12911","v":0},{"$f":"Import!E13311","v":0},{"$f":"Import!E13711","v":0},{"$f":"Import!E14111","v":0}]
[213,{"$f":"Import!E11312","v":"Select"},{"$f":"Import!E11712","v":"Select"},{"$f":"Import!E12112","v":"Select"},{"$f":"Import!E12512","v":0},{"$f":"Import!E12912","v":0},{"$f":"Import!E13312","v":0},{"$f":"Import!E13712","v":0},{"$f":"Import!E14112","v":0}]
[214,{"$f":"Import!E11313","v":"Select"},{"$f":"Import!E11713","v":"Select"},{"$f":"Import!E12113","v":"Select"},{"$f":"Import!E12513","v":0},{"$f":"Import!E12913","v":0},{"$f":"Import!E13313","v":0},{"$f":"Import!E13713","v":0},{"$f":"Import!E14113","v":0}]
[215,{"$f":"Import!E11314","v":"Select"},{"$f":"Import!E11714","v":"Select"},{"$f":"Import!E12114","v":"Select"},{"$f":"Import!E12514","v":0},{"$f":"Import!E12914","v":0},{"$f":"Import!E13314","v":0},{"$f":"Import!E13714","v":0},{"$f":"Import!E14114","v":0}]
[216,{"$f":"Import!E11315","v":"Select"},{"$f":"Import!E11715","v":"Select"},{"$f":"Import!E12115","v":"Select"},{"$f":"Import!E12515","v":0},{"$f":"Import!E12915","v":0},{"$f":"Import!E13315","v":0},{"$f":"Import!E13715","v":0},{"$f":"Import!E14115","v":0}]
[217,{"$f":"Import!E11316","v":"Select"},{"$f":"Import!E11716","v":"Select"},{"$f":"Import!E12116","v":"Select"},{"$f":"Import!E12516","v":0},{"$f":"Import!E12916","v":0},{"$f":"Import!E13316","v":0},{"$f":"Import!E13716","v":0},{"$f":"Import!E14116","v":0}]
[218,{"$f":"Import!E11317","v":"Select"},{"$f":"Import!E11717","v":"Select"},{"$f":"Import!E12117","v":"Select"},{"$f":"Import!E12517","v":0},{"$f":"Import!E12917","v":0},{"$f":"Import!E13317","v":0},{"$f":"Import!E13717","v":0},{"$f":"Import!E14117","v":0}]
[219,{"$f":"Import!E11318","v":"Select"},{"$f":"Import!E11718","v":"Select"},{"$f":"Import!E12118","v":"Select"},{"$f":"Import!E12518","v":0},{"$f":"Import!E12918","v":0},{"$f":"Import!E13318","v":0},{"$f":"Import!E13718","v":0},{"$f":"Import!E14118","v":0}]
[220,{"$f":"Import!E11319","v":"Select"},{"$f":"Import!E11719","v":"Select"},{"$f":"Import!E12119","v":"Select"},{"$f":"Import!E12519","v":0},{"$f":"Import!E12919","v":0},{"$f":"Import!E13319","v":0},{"$f":"Import!E13719","v":0},{"$f":"Import!E14119","v":0}]
[221,{"$f":"Import!E11320","v":"Select"},{"$f":"Import!E11720","v":"Select"},{"$f":"Import!E12120","v":"Select"},{"$f":"Import!E12520","v":0},{"$f":"Import!E12920","v":0},{"$f":"Import!E13320","v":0},{"$f":"Import!E13720","v":0},{"$f":"Import!E14120","v":0}]
[222,{"$f":"Import!E11321","v":"Select"},{"$f":"Import!E11721","v":"Select"},{"$f":"Import!E12121","v":"Select"},{"$f":"Import!E12521","v":0},{"$f":"Import!E12921","v":0},{"$f":"Import!E13321","v":0},{"$f":"Import!E13721","v":0},{"$f":"Import!E14121","v":0}]
[223,{"$f":"Import!E11322","v":"Select"},{"$f":"Import!E11722","v":"Select"},{"$f":"Import!E12122","v":"Select"},{"$f":"Import!E12522","v":0},{"$f":"Import!E12922","v":0},{"$f":"Import!E13322","v":0},{"$f":"Import!E13722","v":0},{"$f":"Import!E14122","v":0}]
[224,{"$f":"Import!E11323","v":"Select"},{"$f":"Import!E11723","v":"Select"},{"$f":"Import!E12123","v":"Select"},{"$f":"Import!E12523","v":0},{"$f":"Import!E12923","v":0},{"$f":"Import!E13323","v":0},{"$f":"Import!E13723","v":0},{"$f":"Import!E14123","v":0}]
[225,{"$f":"Import!E11324","v":"Select"},{"$f":"Import!E11724","v":"Select"},{"$f":"Import!E12124","v":"Select"},{"$f":"Import!E12524","v":0},{"$f":"Import!E12924","v":0},{"$f":"Import!E13324","v":0},{"$f":"Import!E13724","v":0},{"$f":"Import!E14124","v":0}]
[226,{"$f":"Import!E11325","v":"Select"},{"$f":"Import!E11725","v":"Select"},{"$f":"Import!E12125","v":"Select"},{"$f":"Import!E12525","v":0},{"$f":"Import!E12925","v":0},{"$f":"Import!E13325","v":0},{"$f":"Import!E13725","v":0},{"$f":"Import!E14125","v":0}]
[227,{"$f":"Import!E11326","v":"Select"},{"$f":"Import!E11726","v":"Select"},{"$f":"Import!E12126","v":"Select"},{"$f":"Import!E12526","v":0},{"$f":"Import!E12926","v":0},{"$f":"Import!E13326","v":0},{"$f":"Import!E13726","v":0},{"$f":"Import!E14126","v":0}]
[228,{"$f":"Import!E11327","v":"Select"},{"$f":"Import!E11727","v":"Select"},{"$f":"Import!E12127","v":"Select"},{"$f":"Import!E12527","v":0},{"$f":"Import!E12927","v":0},{"$f":"Import!E13327","v":0},{"$f":"Import!E13727","v":0},{"$f":"Import!E14127","v":0}]
[229,{"$f":"Import!E11328","v":"Select"},{"$f":"Import!E11728","v":"Select"},{"$f":"Import!E12128","v":"Select"},{"$f":"Import!E12528","v":0},{"$f":"Import!E12928","v":0},{"$f":"Import!E13328","v":0},{"$f":"Import!E13728","v":0},{"$f":"Import!E14128","v":0}]
[230,{"$f":"Import!E11329","v":"Select"},{"$f":"Import!E11729","v":"Select"},{"$f":"Import!E12129","v":"Select"},{"$f":"Import!E12529","v":0},{"$f":"Import!E12929","v":0},{"$f":"Import!E13329","v":0},{"$f":"Import!E13729","v":0},{"$f":"Import!E14129","v":0}]
[231,{"$f":"Import!E11330","v":"Select"},{"$f":"Import!E11730","v":"Select"},{"$f":"Import!E12130","v":"Select"},{"$f":"Import!E12530","v":0},{"$f":"Import!E12930","v":0},{"$f":"Import!E13330","v":0},{"$f":"Import!E13730","v":0},{"$f":"Import!E14130","v":0}]
[232,{"$f":"Import!E11331","v":"Select"},{"$f":"Import!E11731","v":"Select"},{"$f":"Import!E12131","v":"Select"},{"$f":"Import!E12531","v":0},{"$f":"Import!E12931","v":0},{"$f":"Import!E13331","v":0},{"$f":"Import!E13731","v":0},{"$f":"Import!E14131","v":0}]
[233,{"$f":"Import!E11332","v":"Select"},{"$f":"Import!E11732","v":"Select"},{"$f":"Import!E12132","v":"Select"},{"$f":"Import!E12532","v":0},{"$f":"Import!E12932","v":0},{"$f":"Import!E13332","v":0},{"$f":"Import!E13732","v":0},{"$f":"Import!E14132","v":0}]
[234,{"$f":"Import!E11333","v":"Select"},{"$f":"Import!E11733","v":"Select"},{"$f":"Import!E12133","v":"Select"},{"$f":"Import!E12533","v":0},{"$f":"Import!E12933","v":0},{"$f":"Import!E13333","v":0},{"$f":"Import!E13733","v":0},{"$f":"Import!E14133","v":0}]
[235,{"$f":"Import!E11334","v":"Select"},{"$f":"Import!E11734","v":"Select"},{"$f":"Import!E12134","v":"Select"},{"$f":"Import!E12534","v":0},{"$f":"Import!E12934","v":0},{"$f":"Import!E13334","v":0},{"$f":"Import!E13734","v":0},{"$f":"Import!E14134","v":0}]
[236,{"$f":"Import!E11335","v":"Select"},{"$f":"Import!E11735","v":"Select"},{"$f":"Import!E12135","v":"Select"},{"$f":"Import!E12535","v":0},{"$f":"Import!E12935","v":0},{"$f":"Import!E13335","v":0},{"$f":"Import!E13735","v":0},{"$f":"Import!E14135","v":0}]
[237,{"$f":"Import!E11336","v":"Select"},{"$f":"Import!E11736","v":"Select"},{"$f":"Import!E12136","v":"Select"},{"$f":"Import!E12536","v":0},{"$f":"Import!E12936","v":0},{"$f":"Import!E13336","v":0},{"$f":"Import!E13736","v":0},{"$f":"Import!E14136","v":0}]
[238,{"$f":"Import!E11337","v":"Select"},{"$f":"Import!E11737","v":"Select"},{"$f":"Import!E12137","v":"Select"},{"$f":"Import!E12537","v":0},{"$f":"Import!E12937","v":0},{"$f":"Import!E13337","v":0},{"$f":"Import!E13737","v":0},{"$f":"Import!E14137","v":0}]
[239,{"$f":"Import!E11338","v":"Select"},{"$f":"Import!E11738","v":"Select"},{"$f":"Import!E12138","v":"Select"},{"$f":"Import!E12538","v":0},{"$f":"Import!E12938","v":0},{"$f":"Import!E13338","v":0},{"$f":"Import!E13738","v":0},{"$f":"Import!E14138","v":0}]
[240,{"$f":"Import!E11339","v":"Select"},{"$f":"Import!E11739","v":"Select"},{"$f":"Import!E12139","v":"Select"},{"$f":"Import!E12539","v":0},{"$f":"Import!E12939","v":0},{"$f":"Import!E13339","v":0},{"$f":"Import!E13739","v":0},{"$f":"Import!E14139","v":0}]
[241,{"$f":"Import!E11340","v":"Select"},{"$f":"Import!E11740","v":"Select"},{"$f":"Import!E12140","v":"Select"},{"$f":"Import!E12540","v":0},{"$f":"Import!E12940","v":0},{"$f":"Import!E13340","v":0},{"$f":"Import!E13740","v":0},{"$f":"Import!E14140","v":0}]
[242,{"$f":"Import!E11341","v":"Select"},{"$f":"Import!E11741","v":"Select"},{"$f":"Import!E12141","v":"Select"},{"$f":"Import!E12541","v":0},{"$f":"Import!E12941","v":0},{"$f":"Import!E13341","v":0},{"$f":"Import!E13741","v":0},{"$f":"Import!E14141","v":0}]
[243,{"$f":"Import!E11342","v":"Select"},{"$f":"Import!E11742","v":"Select"},{"$f":"Import!E12142","v":"Select"},{"$f":"Import!E12542","v":0},{"$f":"Import!E12942","v":0},{"$f":"Import!E13342","v":0},{"$f":"Import!E13742","v":0},{"$f":"Import!E14142","v":0}]
[244,{"$f":"Import!E11343","v":"Select"},{"$f":"Import!E11743","v":"Select"},{"$f":"Import!E12143","v":"Select"},{"$f":"Import!E12543","v":0},{"$f":"Import!E12943","v":0},{"$f":"Import!E13343","v":0},{"$f":"Import!E13743","v":0},{"$f":"Import!E14143","v":0}]
[245,{"$f":"Import!E11344","v":"Select"},{"$f":"Import!E11744","v":"Select"},{"$f":"Import!E12144","v":"Select"},{"$f":"Import!E12544","v":0},{"$f":"Import!E12944","v":0},{"$f":"Import!E13344","v":0},{"$f":"Import!E13744","v":0},{"$f":"Import!E14144","v":0}]
[246,{"$f":"Import!E11345","v":"Select"},{"$f":"Import!E11745","v":"Select"},{"$f":"Import!E12145","v":"Select"},{"$f":"Import!E12545","v":0},{"$f":"Import!E12945","v":0},{"$f":"Import!E13345","v":0},{"$f":"Import!E13745","v":0},{"$f":"Import!E14145","v":0}]
[247,{"$f":"Import!E11346","v":"Select"},{"$f":"Import!E11746","v":"Select"},{"$f":"Import!E12146","v":"Select"},{"$f":"Import!E12546","v":0},{"$f":"Import!E12946","v":0},{"$f":"Import!E13346","v":0},{"$f":"Import!E13746","v":0},{"$f":"Import!E14146","v":0}]
[248,{"$f":"Import!E11347","v":"Select"},{"$f":"Import!E11747","v":"Select"},{"$f":"Import!E12147","v":"Select"},{"$f":"Import!E12547","v":0},{"$f":"Import!E12947","v":0},{"$f":"Import!E13347","v":0},{"$f":"Import!E13747","v":0},{"$f":"Import!E14147","v":0}]
[249,{"$f":"Import!E11348","v":"Select"},{"$f":"Import!E11748","v":"Select"},{"$f":"Import!E12148","v":"Select"},{"$f":"Import!E12548","v":0},{"$f":"Import!E12948","v":0},{"$f":"Import!E13348","v":0},{"$f":"Import!E13748","v":0},{"$f":"Import!E14148","v":0}]
[250,{"$f":"Import!E11349","v":"Select"},{"$f":"Import!E11749","v":"Select"},{"$f":"Import!E12149","v":"Select"},{"$f":"Import!E12549","v":0},{"$f":"Import!E12949","v":0},{"$f":"Import!E13349","v":0},{"$f":"Import!E13749","v":0},{"$f":"Import!E14149","v":0}]
[251,{"$f":"Import!E11350","v":"Select"},{"$f":"Import!E11750","v":"Select"},{"$f":"Import!E12150","v":"Select"},{"$f":"Import!E12550","v":0},{"$f":"Import!E12950","v":0},{"$f":"Import!E13350","v":0},{"$f":"Import!E13750","v":0},{"$f":"Import!E14150","v":0}]
[252,{"$f":"Import!E11351","v":"Select"},{"$f":"Import!E11751","v":"Select"},{"$f":"Import!E12151","v":"Select"},{"$f":"Import!E12551","v":0},{"$f":"Import!E12951","v":0},{"$f":"Import!E13351","v":0},{"$f":"Import!E13751","v":0},{"$f":"Import!E14151","v":0}]
[253,{"$f":"Import!E11352","v":"Select"},{"$f":"Import!E11752","v":"Select"},{"$f":"Import!E12152","v":"Select"},{"$f":"Import!E12552","v":0},{"$f":"Import!E12952","v":0},{"$f":"Import!E13352","v":0},{"$f":"Import!E13752","v":0},{"$f":"Import!E14152","v":0}]
[254,{"$f":"Import!E11353","v":"Select"},{"$f":"Import!E11753","v":"Select"},{"$f":"Import!E12153","v":"Select"},{"$f":"Import!E12553","v":0},{"$f":"Import!E12953","v":0},{"$f":"Import!E13353","v":0},{"$f":"Import!E13753","v":0},{"$f":"Import!E14153","v":0}]
[255,{"$f":"Import!E11354","v":"Select"},{"$f":"Import!E11754","v":"Select"},{"$f":"Import!E12154","v":"Select"},{"$f":"Import!E12554","v":0},{"$f":"Import!E12954","v":0},{"$f":"Import!E13354","v":0},{"$f":"Import!E13754","v":0},{"$f":"Import!E14154","v":0}]
[256,{"$f":"Import!E11355","v":"Select"},{"$f":"Import!E11755","v":"Select"},{"$f":"Import!E12155","v":"Select"},{"$f":"Import!E12555","v":0},{"$f":"Import!E12955","v":0},{"$f":"Import!E13355","v":0},{"$f":"Import!E13755","v":0},{"$f":"Import!E14155","v":0}]
[257,{"$f":"Import!E11356","v":"Select"},{"$f":"Import!E11756","v":"Select"},{"$f":"Import!E12156","v":"Select"},{"$f":"Import!E12556","v":0},{"$f":"Import!E12956","v":0},{"$f":"Import!E13356","v":0},{"$f":"Import!E13756","v":0},{"$f":"Import!E14156","v":0}]
[258,{"$f":"Import!E11357","v":"Select"},{"$f":"Import!E11757","v":"Select"},{"$f":"Import!E12157","v":"Select"},{"$f":"Import!E12557","v":0},{"$f":"Import!E12957","v":0},{"$f":"Import!E13357","v":0},{"$f":"Import!E13757","v":0},{"$f":"Import!E14157","v":0}]
[{"$f":"A476+1","v":259},{"$f":"Import!E11358","v":"Select"},{"$f":"Import!E11758","v":"Select"},{"$f":"Import!E12158","v":"Select"},{"$f":"Import!E12558","v":0},{"$f":"Import!E12958","v":0},{"$f":"Import!E13358","v":0},{"$f":"Import!E13758","v":0},{"$f":"Import!E14158","v":0}]
[260,{"$f":"Import!E11359","v":"Select"},{"$f":"Import!E11759","v":"Select"},{"$f":"Import!E12159","v":"Select"},{"$f":"Import!E12559","v":0},{"$f":"Import!E12959","v":0},{"$f":"Import!E13359","v":0},{"$f":"Import!E13759","v":0},{"$f":"Import!E14159","v":0}]
[261,{"$f":"Import!E11360","v":"Select"},{"$f":"Import!E11760","v":"Select"},{"$f":"Import!E12160","v":"Select"},{"$f":"Import!E12560","v":0},{"$f":"Import!E12960","v":0},{"$f":"Import!E13360","v":0},{"$f":"Import!E13760","v":0},{"$f":"Import!E14160","v":0}]
[262,{"$f":"Import!E11361","v":"Select"},{"$f":"Import!E11761","v":"Select"},{"$f":"Import!E12161","v":"Select"},{"$f":"Import!E12561","v":0},{"$f":"Import!E12961","v":0},{"$f":"Import!E13361","v":0},{"$f":"Import!E13761","v":0},{"$f":"Import!E14161","v":0}]
[263,{"$f":"Import!E11362","v":"Select"},{"$f":"Import!E11762","v":"Select"},{"$f":"Import!E12162","v":"Select"},{"$f":"Import!E12562","v":0},{"$f":"Import!E12962","v":0},{"$f":"Import!E13362","v":0},{"$f":"Import!E13762","v":0},{"$f":"Import!E14162","v":0}]
[264,{"$f":"Import!E11363","v":"Select"},{"$f":"Import!E11763","v":"Select"},{"$f":"Import!E12163","v":"Select"},{"$f":"Import!E12563","v":0},{"$f":"Import!E12963","v":0},{"$f":"Import!E13363","v":0},{"$f":"Import!E13763","v":0},{"$f":"Import!E14163","v":0}]
[265,{"$f":"Import!E11364","v":"Select"},{"$f":"Import!E11764","v":"Select"},{"$f":"Import!E12164","v":"Select"},{"$f":"Import!E12564","v":0},{"$f":"Import!E12964","v":0},{"$f":"Import!E13364","v":0},{"$f":"Import!E13764","v":0},{"$f":"Import!E14164","v":0}]
[266,{"$f":"Import!E11365","v":"Select"},{"$f":"Import!E11765","v":"Select"},{"$f":"Import!E12165","v":"Select"},{"$f":"Import!E12565","v":0},{"$f":"Import!E12965","v":0},{"$f":"Import!E13365","v":0},{"$f":"Import!E13765","v":0},{"$f":"Import!E14165","v":0}]
[267,{"$f":"Import!E11366","v":"Select"},{"$f":"Import!E11766","v":"Select"},{"$f":"Import!E12166","v":"Select"},{"$f":"Import!E12566","v":0},{"$f":"Import!E12966","v":0},{"$f":"Import!E13366","v":0},{"$f":"Import!E13766","v":0},{"$f":"Import!E14166","v":0}]
[268,{"$f":"Import!E11367","v":"Select"},{"$f":"Import!E11767","v":"Select"},{"$f":"Import!E12167","v":"Select"},{"$f":"Import!E12567","v":0},{"$f":"Import!E12967","v":0},{"$f":"Import!E13367","v":0},{"$f":"Import!E13767","v":0},{"$f":"Import!E14167","v":0}]
[269,{"$f":"Import!E11368","v":"Select"},{"$f":"Import!E11768","v":"Select"},{"$f":"Import!E12168","v":"Select"},{"$f":"Import!E12568","v":0},{"$f":"Import!E12968","v":0},{"$f":"Import!E13368","v":0},{"$f":"Import!E13768","v":0},{"$f":"Import!E14168","v":0}]
[270,{"$f":"Import!E11369","v":"Select"},{"$f":"Import!E11769","v":"Select"},{"$f":"Import!E12169","v":"Select"},{"$f":"Import!E12569","v":0},{"$f":"Import!E12969","v":0},{"$f":"Import!E13369","v":0},{"$f":"Import!E13769","v":0},{"$f":"Import!E14169","v":0}]
[271,{"$f":"Import!E11370","v":"Select"},{"$f":"Import!E11770","v":"Select"},{"$f":"Import!E12170","v":"Select"},{"$f":"Import!E12570","v":0},{"$f":"Import!E12970","v":0},{"$f":"Import!E13370","v":0},{"$f":"Import!E13770","v":0},{"$f":"Import!E14170","v":0}]
[272,{"$f":"Import!E11371","v":"Select"},{"$f":"Import!E11771","v":"Select"},{"$f":"Import!E12171","v":"Select"},{"$f":"Import!E12571","v":0},{"$f":"Import!E12971","v":0},{"$f":"Import!E13371","v":0},{"$f":"Import!E13771","v":0},{"$f":"Import!E14171","v":0}]
[273,{"$f":"Import!E11372","v":"Select"},{"$f":"Import!E11772","v":"Select"},{"$f":"Import!E12172","v":"Select"},{"$f":"Import!E12572","v":0},{"$f":"Import!E12972","v":0},{"$f":"Import!E13372","v":0},{"$f":"Import!E13772","v":0},{"$f":"Import!E14172","v":0}]
[274,{"$f":"Import!E11373","v":"Select"},{"$f":"Import!E11773","v":"Select"},{"$f":"Import!E12173","v":"Select"},{"$f":"Import!E12573","v":0},{"$f":"Import!E12973","v":0},{"$f":"Import!E13373","v":0},{"$f":"Import!E13773","v":0},{"$f":"Import!E14173","v":0}]
[275,{"$f":"Import!E11374","v":"Select"},{"$f":"Import!E11774","v":"Select"},{"$f":"Import!E12174","v":"Select"},{"$f":"Import!E12574","v":0},{"$f":"Import!E12974","v":0},{"$f":"Import!E13374","v":0},{"$f":"Import!E13774","v":0},{"$f":"Import!E14174","v":0}]
[276,{"$f":"Import!E11375","v":"Select"},{"$f":"Import!E11775","v":"Select"},{"$f":"Import!E12175","v":"Select"},{"$f":"Import!E12575","v":0},{"$f":"Import!E12975","v":0},{"$f":"Import!E13375","v":0},{"$f":"Import!E13775","v":0},{"$f":"Import!E14175","v":0}]
[277,{"$f":"Import!E11376","v":"Select"},{"$f":"Import!E11776","v":"Select"},{"$f":"Import!E12176","v":"Select"},{"$f":"Import!E12576","v":0},{"$f":"Import!E12976","v":0},{"$f":"Import!E13376","v":0},{"$f":"Import!E13776","v":0},{"$f":"Import!E14176","v":0}]
[278,{"$f":"Import!E11377","v":"Select"},{"$f":"Import!E11777","v":"Select"},{"$f":"Import!E12177","v":"Select"},{"$f":"Import!E12577","v":0},{"$f":"Import!E12977","v":0},{"$f":"Import!E13377","v":0},{"$f":"Import!E13777","v":0},{"$f":"Import!E14177","v":0}]
[279,{"$f":"Import!E11378","v":"Select"},{"$f":"Import!E11778","v":"Select"},{"$f":"Import!E12178","v":"Select"},{"$f":"Import!E12578","v":0},{"$f":"Import!E12978","v":0},{"$f":"Import!E13378","v":0},{"$f":"Import!E13778","v":0},{"$f":"Import!E14178","v":0}]
[280,{"$f":"Import!E11379","v":"Select"},{"$f":"Import!E11779","v":"Select"},{"$f":"Import!E12179","v":"Select"},{"$f":"Import!E12579","v":0},{"$f":"Import!E12979","v":0},{"$f":"Import!E13379","v":0},{"$f":"Import!E13779","v":0},{"$f":"Import!E14179","v":0}]
[281,{"$f":"Import!E11380","v":"Select"},{"$f":"Import!E11780","v":"Select"},{"$f":"Import!E12180","v":"Select"},{"$f":"Import!E12580","v":0},{"$f":"Import!E12980","v":0},{"$f":"Import!E13380","v":0},{"$f":"Import!E13780","v":0},{"$f":"Import!E14180","v":0}]
[282,{"$f":"Import!E11381","v":"Select"},{"$f":"Import!E11781","v":"Select"},{"$f":"Import!E12181","v":"Select"},{"$f":"Import!E12581","v":0},{"$f":"Import!E12981","v":0},{"$f":"Import!E13381","v":0},{"$f":"Import!E13781","v":0},{"$f":"Import!E14181","v":0}]
[283,{"$f":"Import!E11382","v":"Select"},{"$f":"Import!E11782","v":"Select"},{"$f":"Import!E12182","v":"Select"},{"$f":"Import!E12582","v":0},{"$f":"Import!E12982","v":0},{"$f":"Import!E13382","v":0},{"$f":"Import!E13782","v":0},{"$f":"Import!E14182","v":0}]
[284,{"$f":"Import!E11383","v":"Select"},{"$f":"Import!E11783","v":"Select"},{"$f":"Import!E12183","v":"Select"},{"$f":"Import!E12583","v":0},{"$f":"Import!E12983","v":0},{"$f":"Import!E13383","v":0},{"$f":"Import!E13783","v":0},{"$f":"Import!E14183","v":0}]
[285,{"$f":"Import!E11384","v":"Select"},{"$f":"Import!E11784","v":"Select"},{"$f":"Import!E12184","v":"Select"},{"$f":"Import!E12584","v":0},{"$f":"Import!E12984","v":0},{"$f":"Import!E13384","v":0},{"$f":"Import!E13784","v":0},{"$f":"Import!E14184","v":0}]
[286,{"$f":"Import!E11385","v":"Select"},{"$f":"Import!E11785","v":"Select"},{"$f":"Import!E12185","v":"Select"},{"$f":"Import!E12585","v":0},{"$f":"Import!E12985","v":0},{"$f":"Import!E13385","v":0},{"$f":"Import!E13785","v":0},{"$f":"Import!E14185","v":0}]
[287,{"$f":"Import!E11386","v":"Select"},{"$f":"Import!E11786","v":"Select"},{"$f":"Import!E12186","v":"Select"},{"$f":"Import!E12586","v":0},{"$f":"Import!E12986","v":0},{"$f":"Import!E13386","v":0},{"$f":"Import!E13786","v":0},{"$f":"Import!E14186","v":0}]
[288,{"$f":"Import!E11387","v":"Select"},{"$f":"Import!E11787","v":"Select"},{"$f":"Import!E12187","v":"Select"},{"$f":"Import!E12587","v":0},{"$f":"Import!E12987","v":0},{"$f":"Import!E13387","v":0},{"$f":"Import!E13787","v":0},{"$f":"Import!E14187","v":0}]
[289,{"$f":"Import!E11388","v":"Select"},{"$f":"Import!E11788","v":"Select"},{"$f":"Import!E12188","v":"Select"},{"$f":"Import!E12588","v":0},{"$f":"Import!E12988","v":0},{"$f":"Import!E13388","v":0},{"$f":"Import!E13788","v":0},{"$f":"Import!E14188","v":0}]
[290,{"$f":"Import!E11389","v":"Select"},{"$f":"Import!E11789","v":"Select"},{"$f":"Import!E12189","v":"Select"},{"$f":"Import!E12589","v":0},{"$f":"Import!E12989","v":0},{"$f":"Import!E13389","v":0},{"$f":"Import!E13789","v":0},{"$f":"Import!E14189","v":0}]
[291,{"$f":"Import!E11390","v":"Select"},{"$f":"Import!E11790","v":"Select"},{"$f":"Import!E12190","v":"Select"},{"$f":"Import!E12590","v":0},{"$f":"Import!E12990","v":0},{"$f":"Import!E13390","v":0},{"$f":"Import!E13790","v":0},{"$f":"Import!E14190","v":0}]
[292,{"$f":"Import!E11391","v":"Select"},{"$f":"Import!E11791","v":"Select"},{"$f":"Import!E12191","v":"Select"},{"$f":"Import!E12591","v":0},{"$f":"Import!E12991","v":0},{"$f":"Import!E13391","v":0},{"$f":"Import!E13791","v":0},{"$f":"Import!E14191","v":0}]
[293,{"$f":"Import!E11392","v":"Select"},{"$f":"Import!E11792","v":"Select"},{"$f":"Import!E12192","v":"Select"},{"$f":"Import!E12592","v":0},{"$f":"Import!E12992","v":0},{"$f":"Import!E13392","v":0},{"$f":"Import!E13792","v":0},{"$f":"Import!E14192","v":0}]
[294,{"$f":"Import!E11393","v":"Select"},{"$f":"Import!E11793","v":"Select"},{"$f":"Import!E12193","v":"Select"},{"$f":"Import!E12593","v":0},{"$f":"Import!E12993","v":0},{"$f":"Import!E13393","v":0},{"$f":"Import!E13793","v":0},{"$f":"Import!E14193","v":0}]
[295,{"$f":"Import!E11394","v":"Select"},{"$f":"Import!E11794","v":"Select"},{"$f":"Import!E12194","v":"Select"},{"$f":"Import!E12594","v":0},{"$f":"Import!E12994","v":0},{"$f":"Import!E13394","v":0},{"$f":"Import!E13794","v":0},{"$f":"Import!E14194","v":0}]
[296,{"$f":"Import!E11395","v":"Select"},{"$f":"Import!E11795","v":"Select"},{"$f":"Import!E12195","v":"Select"},{"$f":"Import!E12595","v":0},{"$f":"Import!E12995","v":0},{"$f":"Import!E13395","v":0},{"$f":"Import!E13795","v":0},{"$f":"Import!E14195","v":0}]
[297,{"$f":"Import!E11396","v":"Select"},{"$f":"Import!E11796","v":"Select"},{"$f":"Import!E12196","v":"Select"},{"$f":"Import!E12596","v":0},{"$f":"Import!E12996","v":0},{"$f":"Import!E13396","v":0},{"$f":"Import!E13796","v":0},{"$f":"Import!E14196","v":0}]
[298,{"$f":"Import!E11397","v":"Select"},{"$f":"Import!E11797","v":"Select"},{"$f":"Import!E12197","v":"Select"},{"$f":"Import!E12597","v":0},{"$f":"Import!E12997","v":0},{"$f":"Import!E13397","v":0},{"$f":"Import!E13797","v":0},{"$f":"Import!E14197","v":0}]
[299,{"$f":"Import!E11398","v":"Select"},{"$f":"Import!E11798","v":"Select"},{"$f":"Import!E12198","v":"Select"},{"$f":"Import!E12598","v":0},{"$f":"Import!E12998","v":0},{"$f":"Import!E13398","v":0},{"$f":"Import!E13798","v":0},{"$f":"Import!E14198","v":0}]
[300,{"$f":"Import!E11399","v":"Select"},{"$f":"Import!E11799","v":"Select"},{"$f":"Import!E12199","v":"Select"},{"$f":"Import!E12599","v":0},{"$f":"Import!E12999","v":0},{"$f":"Import!E13399","v":0},{"$f":"Import!E13799","v":0},{"$f":"Import!E14199","v":0}]
[301,{"$f":"Import!E11400","v":"Select"},{"$f":"Import!E11800","v":"Select"},{"$f":"Import!E12200","v":"Select"},{"$f":"Import!E12600","v":0},{"$f":"Import!E13000","v":0},{"$f":"Import!E13400","v":0},{"$f":"Import!E13800","v":0},{"$f":"Import!E14200","v":0}]
[302,{"$f":"Import!E11401","v":"Select"},{"$f":"Import!E11801","v":"Select"},{"$f":"Import!E12201","v":"Select"},{"$f":"Import!E12601","v":0},{"$f":"Import!E13001","v":0},{"$f":"Import!E13401","v":0},{"$f":"Import!E13801","v":0},{"$f":"Import!E14201","v":0}]
[303,{"$f":"Import!E11402","v":"Select"},{"$f":"Import!E11802","v":"Select"},{"$f":"Import!E12202","v":"Select"},{"$f":"Import!E12602","v":0},{"$f":"Import!E13002","v":0},{"$f":"Import!E13402","v":0},{"$f":"Import!E13802","v":0},{"$f":"Import!E14202","v":0}]
[304,{"$f":"Import!E11403","v":"Select"},{"$f":"Import!E11803","v":"Select"},{"$f":"Import!E12203","v":"Select"},{"$f":"Import!E12603","v":0},{"$f":"Import!E13003","v":0},{"$f":"Import!E13403","v":0},{"$f":"Import!E13803","v":0},{"$f":"Import!E14203","v":0}]
[305,{"$f":"Import!E11404","v":"Select"},{"$f":"Import!E11804","v":"Select"},{"$f":"Import!E12204","v":"Select"},{"$f":"Import!E12604","v":0},{"$f":"Import!E13004","v":0},{"$f":"Import!E13404","v":0},{"$f":"Import!E13804","v":0},{"$f":"Import!E14204","v":0}]
[306,{"$f":"Import!E11405","v":"Select"},{"$f":"Import!E11805","v":"Select"},{"$f":"Import!E12205","v":"Select"},{"$f":"Import!E12605","v":0},{"$f":"Import!E13005","v":0},{"$f":"Import!E13405","v":0},{"$f":"Import!E13805","v":0},{"$f":"Import!E14205","v":0}]
[307,{"$f":"Import!E11406","v":"Select"},{"$f":"Import!E11806","v":"Select"},{"$f":"Import!E12206","v":"Select"},{"$f":"Import!E12606","v":0},{"$f":"Import!E13006","v":0},{"$f":"Import!E13406","v":0},{"$f":"Import!E13806","v":0},{"$f":"Import!E14206","v":0}]
[308,{"$f":"Import!E11407","v":"Select"},{"$f":"Import!E11807","v":"Select"},{"$f":"Import!E12207","v":"Select"},{"$f":"Import!E12607","v":0},{"$f":"Import!E13007","v":0},{"$f":"Import!E13407","v":0},{"$f":"Import!E13807","v":0},{"$f":"Import!E14207","v":0}]
[309,{"$f":"Import!E11408","v":"Select"},{"$f":"Import!E11808","v":"Select"},{"$f":"Import!E12208","v":"Select"},{"$f":"Import!E12608","v":0},{"$f":"Import!E13008","v":0},{"$f":"Import!E13408","v":0},{"$f":"Import!E13808","v":0},{"$f":"Import!E14208","v":0}]
[310,{"$f":"Import!E11409","v":"Select"},{"$f":"Import!E11809","v":"Select"},{"$f":"Import!E12209","v":"Select"},{"$f":"Import!E12609","v":0},{"$f":"Import!E13009","v":0},{"$f":"Import!E13409","v":0},{"$f":"Import!E13809","v":0},{"$f":"Import!E14209","v":0}]
[311,{"$f":"Import!E11410","v":"Select"},{"$f":"Import!E11810","v":"Select"},{"$f":"Import!E12210","v":"Select"},{"$f":"Import!E12610","v":0},{"$f":"Import!E13010","v":0},{"$f":"Import!E13410","v":0},{"$f":"Import!E13810","v":0},{"$f":"Import!E14210","v":0}]
[312,{"$f":"Import!E11411","v":"Select"},{"$f":"Import!E11811","v":"Select"},{"$f":"Import!E12211","v":"Select"},{"$f":"Import!E12611","v":0},{"$f":"Import!E13011","v":0},{"$f":"Import!E13411","v":0},{"$f":"Import!E13811","v":0},{"$f":"Import!E14211","v":0}]
[313,{"$f":"Import!E11412","v":"Select"},{"$f":"Import!E11812","v":"Select"},{"$f":"Import!E12212","v":"Select"},{"$f":"Import!E12612","v":0},{"$f":"Import!E13012","v":0},{"$f":"Import!E13412","v":0},{"$f":"Import!E13812","v":0},{"$f":"Import!E14212","v":0}]
[314,{"$f":"Import!E11413","v":"Select"},{"$f":"Import!E11813","v":"Select"},{"$f":"Import!E12213","v":"Select"},{"$f":"Import!E12613","v":0},{"$f":"Import!E13013","v":0},{"$f":"Import!E13413","v":0},{"$f":"Import!E13813","v":0},{"$f":"Import!E14213","v":0}]
[315,{"$f":"Import!E11414","v":"Select"},{"$f":"Import!E11814","v":"Select"},{"$f":"Import!E12214","v":"Select"},{"$f":"Import!E12614","v":0},{"$f":"Import!E13014","v":0},{"$f":"Import!E13414","v":0},{"$f":"Import!E13814","v":0},{"$f":"Import!E14214","v":0}]
[316,{"$f":"Import!E11415","v":"Select"},{"$f":"Import!E11815","v":"Select"},{"$f":"Import!E12215","v":"Select"},{"$f":"Import!E12615","v":0},{"$f":"Import!E13015","v":0},{"$f":"Import!E13415","v":0},{"$f":"Import!E13815","v":0},{"$f":"Import!E14215","v":0}]
[317,{"$f":"Import!E11416","v":"Select"},{"$f":"Import!E11816","v":"Select"},{"$f":"Import!E12216","v":"Select"},{"$f":"Import!E12616","v":0},{"$f":"Import!E13016","v":0},{"$f":"Import!E13416","v":0},{"$f":"Import!E13816","v":0},{"$f":"Import!E14216","v":0}]
[318,{"$f":"Import!E11417","v":"Select"},{"$f":"Import!E11817","v":"Select"},{"$f":"Import!E12217","v":"Select"},{"$f":"Import!E12617","v":0},{"$f":"Import!E13017","v":0},{"$f":"Import!E13417","v":0},{"$f":"Import!E13817","v":0},{"$f":"Import!E14217","v":0}]
[319,{"$f":"Import!E11418","v":"Select"},{"$f":"Import!E11818","v":"Select"},{"$f":"Import!E12218","v":"Select"},{"$f":"Import!E12618","v":0},{"$f":"Import!E13018","v":0},{"$f":"Import!E13418","v":0},{"$f":"Import!E13818","v":0},{"$f":"Import!E14218","v":0}]
[320,{"$f":"Import!E11419","v":"Select"},{"$f":"Import!E11819","v":"Select"},{"$f":"Import!E12219","v":"Select"},{"$f":"Import!E12619","v":0},{"$f":"Import!E13019","v":0},{"$f":"Import!E13419","v":0},{"$f":"Import!E13819","v":0},{"$f":"Import!E14219","v":0}]
[321,{"$f":"Import!E11420","v":"Select"},{"$f":"Import!E11820","v":"Select"},{"$f":"Import!E12220","v":"Select"},{"$f":"Import!E12620","v":0},{"$f":"Import!E13020","v":0},{"$f":"Import!E13420","v":0},{"$f":"Import!E13820","v":0},{"$f":"Import!E14220","v":0}]
[322,{"$f":"Import!E11421","v":"Select"},{"$f":"Import!E11821","v":"Select"},{"$f":"Import!E12221","v":"Select"},{"$f":"Import!E12621","v":0},{"$f":"Import!E13021","v":0},{"$f":"Import!E13421","v":0},{"$f":"Import!E13821","v":0},{"$f":"Import!E14221","v":0}]
[{"$f":"A540+1","v":323},{"$f":"Import!E11422","v":"Select"},{"$f":"Import!E11822","v":"Select"},{"$f":"Import!E12222","v":"Select"},{"$f":"Import!E12622","v":0},{"$f":"Import!E13022","v":0},{"$f":"Import!E13422","v":0},{"$f":"Import!E13822","v":0},{"$f":"Import!E14222","v":0}]
[324,{"$f":"Import!E11423","v":"Select"},{"$f":"Import!E11823","v":"Select"},{"$f":"Import!E12223","v":"Select"},{"$f":"Import!E12623","v":0},{"$f":"Import!E13023","v":0},{"$f":"Import!E13423","v":0},{"$f":"Import!E13823","v":0},{"$f":"Import!E14223","v":0}]
[325,{"$f":"Import!E11424","v":"Select"},{"$f":"Import!E11824","v":"Select"},{"$f":"Import!E12224","v":"Select"},{"$f":"Import!E12624","v":0},{"$f":"Import!E13024","v":0},{"$f":"Import!E13424","v":0},{"$f":"Import!E13824","v":0},{"$f":"Import!E14224","v":0}]
[326,{"$f":"Import!E11425","v":"Select"},{"$f":"Import!E11825","v":"Select"},{"$f":"Import!E12225","v":"Select"},{"$f":"Import!E12625","v":0},{"$f":"Import!E13025","v":0},{"$f":"Import!E13425","v":0},{"$f":"Import!E13825","v":0},{"$f":"Import!E14225","v":0}]
[327,{"$f":"Import!E11426","v":"Select"},{"$f":"Import!E11826","v":"Select"},{"$f":"Import!E12226","v":"Select"},{"$f":"Import!E12626","v":0},{"$f":"Import!E13026","v":0},{"$f":"Import!E13426","v":0},{"$f":"Import!E13826","v":0},{"$f":"Import!E14226","v":0}]
[328,{"$f":"Import!E11427","v":"Select"},{"$f":"Import!E11827","v":"Select"},{"$f":"Import!E12227","v":"Select"},{"$f":"Import!E12627","v":0},{"$f":"Import!E13027","v":0},{"$f":"Import!E13427","v":0},{"$f":"Import!E13827","v":0},{"$f":"Import!E14227","v":0}]
[329,{"$f":"Import!E11428","v":"Select"},{"$f":"Import!E11828","v":"Select"},{"$f":"Import!E12228","v":"Select"},{"$f":"Import!E12628","v":0},{"$f":"Import!E13028","v":0},{"$f":"Import!E13428","v":0},{"$f":"Import!E13828","v":0},{"$f":"Import!E14228","v":0}]
[330,{"$f":"Import!E11429","v":"Select"},{"$f":"Import!E11829","v":"Select"},{"$f":"Import!E12229","v":"Select"},{"$f":"Import!E12629","v":0},{"$f":"Import!E13029","v":0},{"$f":"Import!E13429","v":0},{"$f":"Import!E13829","v":0},{"$f":"Import!E14229","v":0}]
[331,{"$f":"Import!E11430","v":"Select"},{"$f":"Import!E11830","v":"Select"},{"$f":"Import!E12230","v":"Select"},{"$f":"Import!E12630","v":0},{"$f":"Import!E13030","v":0},{"$f":"Import!E13430","v":0},{"$f":"Import!E13830","v":0},{"$f":"Import!E14230","v":0}]
[332,{"$f":"Import!E11431","v":"Select"},{"$f":"Import!E11831","v":"Select"},{"$f":"Import!E12231","v":"Select"},{"$f":"Import!E12631","v":0},{"$f":"Import!E13031","v":0},{"$f":"Import!E13431","v":0},{"$f":"Import!E13831","v":0},{"$f":"Import!E14231","v":0}]
[333,{"$f":"Import!E11432","v":"Select"},{"$f":"Import!E11832","v":"Select"},{"$f":"Import!E12232","v":"Select"},{"$f":"Import!E12632","v":0},{"$f":"Import!E13032","v":0},{"$f":"Import!E13432","v":0},{"$f":"Import!E13832","v":0},{"$f":"Import!E14232","v":0}]
[334,{"$f":"Import!E11433","v":"Select"},{"$f":"Import!E11833","v":"Select"},{"$f":"Import!E12233","v":"Select"},{"$f":"Import!E12633","v":0},{"$f":"Import!E13033","v":0},{"$f":"Import!E13433","v":0},{"$f":"Import!E13833","v":0},{"$f":"Import!E14233","v":0}]
[335,{"$f":"Import!E11434","v":"Select"},{"$f":"Import!E11834","v":"Select"},{"$f":"Import!E12234","v":"Select"},{"$f":"Import!E12634","v":0},{"$f":"Import!E13034","v":0},{"$f":"Import!E13434","v":0},{"$f":"Import!E13834","v":0},{"$f":"Import!E14234","v":0}]
[336,{"$f":"Import!E11435","v":"Select"},{"$f":"Import!E11835","v":"Select"},{"$f":"Import!E12235","v":"Select"},{"$f":"Import!E12635","v":0},{"$f":"Import!E13035","v":0},{"$f":"Import!E13435","v":0},{"$f":"Import!E13835","v":0},{"$f":"Import!E14235","v":0}]
[337,{"$f":"Import!E11436","v":"Select"},{"$f":"Import!E11836","v":"Select"},{"$f":"Import!E12236","v":"Select"},{"$f":"Import!E12636","v":0},{"$f":"Import!E13036","v":0},{"$f":"Import!E13436","v":0},{"$f":"Import!E13836","v":0},{"$f":"Import!E14236","v":0}]
[338,{"$f":"Import!E11437","v":"Select"},{"$f":"Import!E11837","v":"Select"},{"$f":"Import!E12237","v":"Select"},{"$f":"Import!E12637","v":0},{"$f":"Import!E13037","v":0},{"$f":"Import!E13437","v":0},{"$f":"Import!E13837","v":0},{"$f":"Import!E14237","v":0}]
[339,{"$f":"Import!E11438","v":"Select"},{"$f":"Import!E11838","v":"Select"},{"$f":"Import!E12238","v":"Select"},{"$f":"Import!E12638","v":0},{"$f":"Import!E13038","v":0},{"$f":"Import!E13438","v":0},{"$f":"Import!E13838","v":0},{"$f":"Import!E14238","v":0}]
[340,{"$f":"Import!E11439","v":"Select"},{"$f":"Import!E11839","v":"Select"},{"$f":"Import!E12239","v":"Select"},{"$f":"Import!E12639","v":0},{"$f":"Import!E13039","v":0},{"$f":"Import!E13439","v":0},{"$f":"Import!E13839","v":0},{"$f":"Import!E14239","v":0}]
[341,{"$f":"Import!E11440","v":"Select"},{"$f":"Import!E11840","v":"Select"},{"$f":"Import!E12240","v":"Select"},{"$f":"Import!E12640","v":0},{"$f":"Import!E13040","v":0},{"$f":"Import!E13440","v":0},{"$f":"Import!E13840","v":0},{"$f":"Import!E14240","v":0}]
[342,{"$f":"Import!E11441","v":"Select"},{"$f":"Import!E11841","v":"Select"},{"$f":"Import!E12241","v":"Select"},{"$f":"Import!E12641","v":0},{"$f":"Import!E13041","v":0},{"$f":"Import!E13441","v":0},{"$f":"Import!E13841","v":0},{"$f":"Import!E14241","v":0}]
[343,{"$f":"Import!E11442","v":"Select"},{"$f":"Import!E11842","v":"Select"},{"$f":"Import!E12242","v":"Select"},{"$f":"Import!E12642","v":0},{"$f":"Import!E13042","v":0},{"$f":"Import!E13442","v":0},{"$f":"Import!E13842","v":0},{"$f":"Import!E14242","v":0}]
[344,{"$f":"Import!E11443","v":"Select"},{"$f":"Import!E11843","v":"Select"},{"$f":"Import!E12243","v":"Select"},{"$f":"Import!E12643","v":0},{"$f":"Import!E13043","v":0},{"$f":"Import!E13443","v":0},{"$f":"Import!E13843","v":0},{"$f":"Import!E14243","v":0}]
[345,{"$f":"Import!E11444","v":"Select"},{"$f":"Import!E11844","v":"Select"},{"$f":"Import!E12244","v":"Select"},{"$f":"Import!E12644","v":0},{"$f":"Import!E13044","v":0},{"$f":"Import!E13444","v":0},{"$f":"Import!E13844","v":0},{"$f":"Import!E14244","v":0}]
[346,{"$f":"Import!E11445","v":"Select"},{"$f":"Import!E11845","v":"Select"},{"$f":"Import!E12245","v":"Select"},{"$f":"Import!E12645","v":0},{"$f":"Import!E13045","v":0},{"$f":"Import!E13445","v":0},{"$f":"Import!E13845","v":0},{"$f":"Import!E14245","v":0}]
[347,{"$f":"Import!E11446","v":"Select"},{"$f":"Import!E11846","v":"Select"},{"$f":"Import!E12246","v":"Select"},{"$f":"Import!E12646","v":0},{"$f":"Import!E13046","v":0},{"$f":"Import!E13446","v":0},{"$f":"Import!E13846","v":0},{"$f":"Import!E14246","v":0}]
[348,{"$f":"Import!E11447","v":"Select"},{"$f":"Import!E11847","v":"Select"},{"$f":"Import!E12247","v":"Select"},{"$f":"Import!E12647","v":0},{"$f":"Import!E13047","v":0},{"$f":"Import!E13447","v":0},{"$f":"Import!E13847","v":0},{"$f":"Import!E14247","v":0}]
[349,{"$f":"Import!E11448","v":"Select"},{"$f":"Import!E11848","v":"Select"},{"$f":"Import!E12248","v":"Select"},{"$f":"Import!E12648","v":0},{"$f":"Import!E13048","v":0},{"$f":"Import!E13448","v":0},{"$f":"Import!E13848","v":0},{"$f":"Import!E14248","v":0}]
[350,{"$f":"Import!E11449","v":"Select"},{"$f":"Import!E11849","v":"Select"},{"$f":"Import!E12249","v":"Select"},{"$f":"Import!E12649","v":0},{"$f":"Import!E13049","v":0},{"$f":"Import!E13449","v":0},{"$f":"Import!E13849","v":0},{"$f":"Import!E14249","v":0}]
[351,{"$f":"Import!E11450","v":"Select"},{"$f":"Import!E11850","v":"Select"},{"$f":"Import!E12250","v":"Select"},{"$f":"Import!E12650","v":0},{"$f":"Import!E13050","v":0},{"$f":"Import!E13450","v":0},{"$f":"Import!E13850","v":0},{"$f":"Import!E14250","v":0}]
[352,{"$f":"Import!E11451","v":"Select"},{"$f":"Import!E11851","v":"Select"},{"$f":"Import!E12251","v":"Select"},{"$f":"Import!E12651","v":0},{"$f":"Import!E13051","v":0},{"$f":"Import!E13451","v":0},{"$f":"Import!E13851","v":0},{"$f":"Import!E14251","v":0}]
[353,{"$f":"Import!E11452","v":"Select"},{"$f":"Import!E11852","v":"Select"},{"$f":"Import!E12252","v":"Select"},{"$f":"Import!E12652","v":0},{"$f":"Import!E13052","v":0},{"$f":"Import!E13452","v":0},{"$f":"Import!E13852","v":0},{"$f":"Import!E14252","v":0}]
[354,{"$f":"Import!E11453","v":"Select"},{"$f":"Import!E11853","v":"Select"},{"$f":"Import!E12253","v":"Select"},{"$f":"Import!E12653","v":0},{"$f":"Import!E13053","v":0},{"$f":"Import!E13453","v":0},{"$f":"Import!E13853","v":0},{"$f":"Import!E14253","v":0}]
[355,{"$f":"Import!E11454","v":"Select"},{"$f":"Import!E11854","v":"Select"},{"$f":"Import!E12254","v":"Select"},{"$f":"Import!E12654","v":0},{"$f":"Import!E13054","v":0},{"$f":"Import!E13454","v":0},{"$f":"Import!E13854","v":0},{"$f":"Import!E14254","v":0}]
[356,{"$f":"Import!E11455","v":"Select"},{"$f":"Import!E11855","v":"Select"},{"$f":"Import!E12255","v":"Select"},{"$f":"Import!E12655","v":0},{"$f":"Import!E13055","v":0},{"$f":"Import!E13455","v":0},{"$f":"Import!E13855","v":0},{"$f":"Import!E14255","v":0}]
[357,{"$f":"Import!E11456","v":"Select"},{"$f":"Import!E11856","v":"Select"},{"$f":"Import!E12256","v":"Select"},{"$f":"Import!E12656","v":0},{"$f":"Import!E13056","v":0},{"$f":"Import!E13456","v":0},{"$f":"Import!E13856","v":0},{"$f":"Import!E14256","v":0}]
[358,{"$f":"Import!E11457","v":"Select"},{"$f":"Import!E11857","v":"Select"},{"$f":"Import!E12257","v":"Select"},{"$f":"Import!E12657","v":0},{"$f":"Import!E13057","v":0},{"$f":"Import!E13457","v":0},{"$f":"Import!E13857","v":0},{"$f":"Import!E14257","v":0}]
[359,{"$f":"Import!E11458","v":"Select"},{"$f":"Import!E11858","v":"Select"},{"$f":"Import!E12258","v":"Select"},{"$f":"Import!E12658","v":0},{"$f":"Import!E13058","v":0},{"$f":"Import!E13458","v":0},{"$f":"Import!E13858","v":0},{"$f":"Import!E14258","v":0}]
[360,{"$f":"Import!E11459","v":"Select"},{"$f":"Import!E11859","v":"Select"},{"$f":"Import!E12259","v":"Select"},{"$f":"Import!E12659","v":0},{"$f":"Import!E13059","v":0},{"$f":"Import!E13459","v":0},{"$f":"Import!E13859","v":0},{"$f":"Import!E14259","v":0}]
[361,{"$f":"Import!E11460","v":"Select"},{"$f":"Import!E11860","v":"Select"},{"$f":"Import!E12260","v":"Select"},{"$f":"Import!E12660","v":0},{"$f":"Import!E13060","v":0},{"$f":"Import!E13460","v":0},{"$f":"Import!E13860","v":0},{"$f":"Import!E14260","v":0}]
[362,{"$f":"Import!E11461","v":"Select"},{"$f":"Import!E11861","v":"Select"},{"$f":"Import!E12261","v":"Select"},{"$f":"Import!E12661","v":0},{"$f":"Import!E13061","v":0},{"$f":"Import!E13461","v":0},{"$f":"Import!E13861","v":0},{"$f":"Import!E14261","v":0}]
[363,{"$f":"Import!E11462","v":"Select"},{"$f":"Import!E11862","v":"Select"},{"$f":"Import!E12262","v":"Select"},{"$f":"Import!E12662","v":0},{"$f":"Import!E13062","v":0},{"$f":"Import!E13462","v":0},{"$f":"Import!E13862","v":0},{"$f":"Import!E14262","v":0}]
[364,{"$f":"Import!E11463","v":"Select"},{"$f":"Import!E11863","v":"Select"},{"$f":"Import!E12263","v":"Select"},{"$f":"Import!E12663","v":0},{"$f":"Import!E13063","v":0},{"$f":"Import!E13463","v":0},{"$f":"Import!E13863","v":0},{"$f":"Import!E14263","v":0}]
[365,{"$f":"Import!E11464","v":"Select"},{"$f":"Import!E11864","v":"Select"},{"$f":"Import!E12264","v":"Select"},{"$f":"Import!E12664","v":0},{"$f":"Import!E13064","v":0},{"$f":"Import!E13464","v":0},{"$f":"Import!E13864","v":0},{"$f":"Import!E14264","v":0}]
[366,{"$f":"Import!E11465","v":"Select"},{"$f":"Import!E11865","v":"Select"},{"$f":"Import!E12265","v":"Select"},{"$f":"Import!E12665","v":0},{"$f":"Import!E13065","v":0},{"$f":"Import!E13465","v":0},{"$f":"Import!E13865","v":0},{"$f":"Import!E14265","v":0}]
[367,{"$f":"Import!E11466","v":"Select"},{"$f":"Import!E11866","v":"Select"},{"$f":"Import!E12266","v":"Select"},{"$f":"Import!E12666","v":0},{"$f":"Import!E13066","v":0},{"$f":"Import!E13466","v":0},{"$f":"Import!E13866","v":0},{"$f":"Import!E14266","v":0}]
[368,{"$f":"Import!E11467","v":"Select"},{"$f":"Import!E11867","v":"Select"},{"$f":"Import!E12267","v":"Select"},{"$f":"Import!E12667","v":0},{"$f":"Import!E13067","v":0},{"$f":"Import!E13467","v":0},{"$f":"Import!E13867","v":0},{"$f":"Import!E14267","v":0}]
[369,{"$f":"Import!E11468","v":"Select"},{"$f":"Import!E11868","v":"Select"},{"$f":"Import!E12268","v":"Select"},{"$f":"Import!E12668","v":0},{"$f":"Import!E13068","v":0},{"$f":"Import!E13468","v":0},{"$f":"Import!E13868","v":0},{"$f":"Import!E14268","v":0}]
[370,{"$f":"Import!E11469","v":"Select"},{"$f":"Import!E11869","v":"Select"},{"$f":"Import!E12269","v":"Select"},{"$f":"Import!E12669","v":0},{"$f":"Import!E13069","v":0},{"$f":"Import!E13469","v":0},{"$f":"Import!E13869","v":0},{"$f":"Import!E14269","v":0}]
[371,{"$f":"Import!E11470","v":"Select"},{"$f":"Import!E11870","v":"Select"},{"$f":"Import!E12270","v":"Select"},{"$f":"Import!E12670","v":0},{"$f":"Import!E13070","v":0},{"$f":"Import!E13470","v":0},{"$f":"Import!E13870","v":0},{"$f":"Import!E14270","v":0}]
[372,{"$f":"Import!E11471","v":"Select"},{"$f":"Import!E11871","v":"Select"},{"$f":"Import!E12271","v":"Select"},{"$f":"Import!E12671","v":0},{"$f":"Import!E13071","v":0},{"$f":"Import!E13471","v":0},{"$f":"Import!E13871","v":0},{"$f":"Import!E14271","v":0}]
[373,{"$f":"Import!E11472","v":"Select"},{"$f":"Import!E11872","v":"Select"},{"$f":"Import!E12272","v":"Select"},{"$f":"Import!E12672","v":0},{"$f":"Import!E13072","v":0},{"$f":"Import!E13472","v":0},{"$f":"Import!E13872","v":0},{"$f":"Import!E14272","v":0}]
[374,{"$f":"Import!E11473","v":"Select"},{"$f":"Import!E11873","v":"Select"},{"$f":"Import!E12273","v":"Select"},{"$f":"Import!E12673","v":0},{"$f":"Import!E13073","v":0},{"$f":"Import!E13473","v":0},{"$f":"Import!E13873","v":0},{"$f":"Import!E14273","v":0}]
[375,{"$f":"Import!E11474","v":"Select"},{"$f":"Import!E11874","v":"Select"},{"$f":"Import!E12274","v":"Select"},{"$f":"Import!E12674","v":0},{"$f":"Import!E13074","v":0},{"$f":"Import!E13474","v":0},{"$f":"Import!E13874","v":0},{"$f":"Import!E14274","v":0}]
[376,{"$f":"Import!E11475","v":"Select"},{"$f":"Import!E11875","v":"Select"},{"$f":"Import!E12275","v":"Select"},{"$f":"Import!E12675","v":0},{"$f":"Import!E13075","v":0},{"$f":"Import!E13475","v":0},{"$f":"Import!E13875","v":0},{"$f":"Import!E14275","v":0}]
[377,{"$f":"Import!E11476","v":"Select"},{"$f":"Import!E11876","v":"Select"},{"$f":"Import!E12276","v":"Select"},{"$f":"Import!E12676","v":0},{"$f":"Import!E13076","v":0},{"$f":"Import!E13476","v":0},{"$f":"Import!E13876","v":0},{"$f":"Import!E14276","v":0}]
[378,{"$f":"Import!E11477","v":"Select"},{"$f":"Import!E11877","v":"Select"},{"$f":"Import!E12277","v":"Select"},{"$f":"Import!E12677","v":0},{"$f":"Import!E13077","v":0},{"$f":"Import!E13477","v":0},{"$f":"Import!E13877","v":0},{"$f":"Import!E14277","v":0}]
[379,{"$f":"Import!E11478","v":"Select"},{"$f":"Import!E11878","v":"Select"},{"$f":"Import!E12278","v":"Select"},{"$f":"Import!E12678","v":0},{"$f":"Import!E13078","v":0},{"$f":"Import!E13478","v":0},{"$f":"Import!E13878","v":0},{"$f":"Import!E14278","v":0}]
[380,{"$f":"Import!E11479","v":"Select"},{"$f":"Import!E11879","v":"Select"},{"$f":"Import!E12279","v":"Select"},{"$f":"Import!E12679","v":0},{"$f":"Import!E13079","v":0},{"$f":"Import!E13479","v":0},{"$f":"Import!E13879","v":0},{"$f":"Import!E14279","v":0}]
[381,{"$f":"Import!E11480","v":"Select"},{"$f":"Import!E11880","v":"Select"},{"$f":"Import!E12280","v":"Select"},{"$f":"Import!E12680","v":0},{"$f":"Import!E13080","v":0},{"$f":"Import!E13480","v":0},{"$f":"Import!E13880","v":0},{"$f":"Import!E14280","v":0}]
[382,{"$f":"Import!E11481","v":"Select"},{"$f":"Import!E11881","v":"Select"},{"$f":"Import!E12281","v":"Select"},{"$f":"Import!E12681","v":0},{"$f":"Import!E13081","v":0},{"$f":"Import!E13481","v":0},{"$f":"Import!E13881","v":0},{"$f":"Import!E14281","v":0}]
[383,{"$f":"Import!E11482","v":"Select"},{"$f":"Import!E11882","v":"Select"},{"$f":"Import!E12282","v":"Select"},{"$f":"Import!E12682","v":0},{"$f":"Import!E13082","v":0},{"$f":"Import!E13482","v":0},{"$f":"Import!E13882","v":0},{"$f":"Import!E14282","v":0}]
[384,{"$f":"Import!E11483","v":"Select"},{"$f":"Import!E11883","v":"Select"},{"$f":"Import!E12283","v":"Select"},{"$f":"Import!E12683","v":0},{"$f":"Import!E13083","v":0},{"$f":"Import!E13483","v":0},{"$f":"Import!E13883","v":0},{"$f":"Import!E14283","v":0}]
[385,{"$f":"Import!E11484","v":"Select"},{"$f":"Import!E11884","v":"Select"},{"$f":"Import!E12284","v":"Select"},{"$f":"Import!E12684","v":0},{"$f":"Import!E13084","v":0},{"$f":"Import!E13484","v":0},{"$f":"Import!E13884","v":0},{"$f":"Import!E14284","v":0}]
[386,{"$f":"Import!E11485","v":"Select"},{"$f":"Import!E11885","v":"Select"},{"$f":"Import!E12285","v":"Select"},{"$f":"Import!E12685","v":0},{"$f":"Import!E13085","v":0},{"$f":"Import!E13485","v":0},{"$f":"Import!E13885","v":0},{"$f":"Import!E14285","v":0}]
[{"$f":"A604+1","v":387},{"$f":"Import!E11486","v":"Select"},{"$f":"Import!E11886","v":"Select"},{"$f":"Import!E12286","v":"Select"},{"$f":"Import!E12686","v":0},{"$f":"Import!E13086","v":0},{"$f":"Import!E13486","v":0},{"$f":"Import!E13886","v":0},{"$f":"Import!E14286","v":0}]
[388,{"$f":"Import!E11487","v":"Select"},{"$f":"Import!E11887","v":"Select"},{"$f":"Import!E12287","v":"Select"},{"$f":"Import!E12687","v":0},{"$f":"Import!E13087","v":0},{"$f":"Import!E13487","v":0},{"$f":"Import!E13887","v":0},{"$f":"Import!E14287","v":0}]
[389,{"$f":"Import!E11488","v":"Select"},{"$f":"Import!E11888","v":"Select"},{"$f":"Import!E12288","v":"Select"},{"$f":"Import!E12688","v":0},{"$f":"Import!E13088","v":0},{"$f":"Import!E13488","v":0},{"$f":"Import!E13888","v":0},{"$f":"Import!E14288","v":0}]
[390,{"$f":"Import!E11489","v":"Select"},{"$f":"Import!E11889","v":"Select"},{"$f":"Import!E12289","v":"Select"},{"$f":"Import!E12689","v":0},{"$f":"Import!E13089","v":0},{"$f":"Import!E13489","v":0},{"$f":"Import!E13889","v":0},{"$f":"Import!E14289","v":0}]
[391,{"$f":"Import!E11490","v":"Select"},{"$f":"Import!E11890","v":"Select"},{"$f":"Import!E12290","v":"Select"},{"$f":"Import!E12690","v":0},{"$f":"Import!E13090","v":0},{"$f":"Import!E13490","v":0},{"$f":"Import!E13890","v":0},{"$f":"Import!E14290","v":0}]
[392,{"$f":"Import!E11491","v":"Select"},{"$f":"Import!E11891","v":"Select"},{"$f":"Import!E12291","v":"Select"},{"$f":"Import!E12691","v":0},{"$f":"Import!E13091","v":0},{"$f":"Import!E13491","v":0},{"$f":"Import!E13891","v":0},{"$f":"Import!E14291","v":0}]
[393,{"$f":"Import!E11492","v":"Select"},{"$f":"Import!E11892","v":"Select"},{"$f":"Import!E12292","v":"Select"},{"$f":"Import!E12692","v":0},{"$f":"Import!E13092","v":0},{"$f":"Import!E13492","v":0},{"$f":"Import!E13892","v":0},{"$f":"Import!E14292","v":0}]
[394,{"$f":"Import!E11493","v":"Select"},{"$f":"Import!E11893","v":"Select"},{"$f":"Import!E12293","v":"Select"},{"$f":"Import!E12693","v":0},{"$f":"Import!E13093","v":0},{"$f":"Import!E13493","v":0},{"$f":"Import!E13893","v":0},{"$f":"Import!E14293","v":0}]
[395,{"$f":"Import!E11494","v":"Select"},{"$f":"Import!E11894","v":"Select"},{"$f":"Import!E12294","v":"Select"},{"$f":"Import!E12694","v":0},{"$f":"Import!E13094","v":0},{"$f":"Import!E13494","v":0},{"$f":"Import!E13894","v":0},{"$f":"Import!E14294","v":0}]
[396,{"$f":"Import!E11495","v":"Select"},{"$f":"Import!E11895","v":"Select"},{"$f":"Import!E12295","v":"Select"},{"$f":"Import!E12695","v":0},{"$f":"Import!E13095","v":0},{"$f":"Import!E13495","v":0},{"$f":"Import!E13895","v":0},{"$f":"Import!E14295","v":0}]
[397,{"$f":"Import!E11496","v":"Select"},{"$f":"Import!E11896","v":"Select"},{"$f":"Import!E12296","v":"Select"},{"$f":"Import!E12696","v":0},{"$f":"Import!E13096","v":0},{"$f":"Import!E13496","v":0},{"$f":"Import!E13896","v":0},{"$f":"Import!E14296","v":0}]
[398,{"$f":"Import!E11497","v":"Select"},{"$f":"Import!E11897","v":"Select"},{"$f":"Import!E12297","v":"Select"},{"$f":"Import!E12697","v":0},{"$f":"Import!E13097","v":0},{"$f":"Import!E13497","v":0},{"$f":"Import!E13897","v":0},{"$f":"Import!E14297","v":0}]
[399,{"$f":"Import!E11498","v":"Select"},{"$f":"Import!E11898","v":"Select"},{"$f":"Import!E12298","v":"Select"},{"$f":"Import!E12698","v":0},{"$f":"Import!E13098","v":0},{"$f":"Import!E13498","v":0},{"$f":"Import!E13898","v":0},{"$f":"Import!E14298","v":0}]
[400,{"$f":"Import!E11499","v":"Select"},{"$f":"Import!E11899","v":"Select"},{"$f":"Import!E12299","v":"Select"},{"$f":"Import!E12699","v":0},{"$f":"Import!E13099","v":0},{"$f":"Import!E13499","v":0},{"$f":"Import!E13899","v":0},{"$f":"Import!E14299","v":0}]
[]
[null,"Total Bonds and Debentures",null,null,{"$f":"SUM(E219:E618)","v":0},{"$f":"SUM(F219:F618)","v":0},{"$f":"IFERROR(SUMPRODUCT(G219:G618,$F219:$F618)/SUM($F219:$F618),0)","v":0},{"$f":"IFERROR(SUMPRODUCT(H219:H618,$F219:$F618)/SUM($F219:$F618),0)","v":0}]
[]
[null,"- ADDITIONAL INFORMATION ON SOVEREIGN DEBT EXPOSURES"]
[]
[null,null,"Enter # of Asset Types",{"$f":"Import!E14300","v":0}]
[null,null,null,null,null,{"$f":"YEAR($C$3)","v":2023}]
[null,null,"Country","Currency","BSCR Rating","Fair Value","Comments"]
[null,1,{"$f":"Import!E14301","v":"Select"},{"$f":"Import!E14501","v":"Select"},{"$f":"Import!E14701","v":"Select"},{"$f":"Import!E14901","v":0},{"$f":"Import!E15101","v":0}]
[null,{"$f":"B627+1","v":2},{"$f":"Import!E14302","v":"Select"},{"$f":"Import!E14502","v":"Select"},{"$f":"Import!E14702","v":"Select"},{"$f":"Import!E14902","v":0},{"$f":"Import!E15102","v":0}]
[null,{"$f":"B628+1","v":3},{"$f":"Import!E14303","v":"Select"},{"$f":"Import!E14503","v":"Select"},{"$f":"Import!E14703","v":"Select"},{"$f":"Import!E14903","v":0},{"$f":"Import!E15103","v":0}]
[null,4,{"$f":"Import!E14304","v":"Select"},{"$f":"Import!E14504","v":"Select"},{"$f":"Import!E14704","v":"Select"},{"$f":"Import!E14904","v":0},{"$f":"Import!E15104","v":0}]
[null,5,{"$f":"Import!E14305","v":"Select"},{"$f":"Import!E14505","v":"Select"},{"$f":"Import!E14705","v":"Select"},{"$f":"Import!E14905","v":0},{"$f":"Import!E15105","v":0}]
[null,6,{"$f":"Import!E14306","v":"Select"},{"$f":"Import!E14506","v":"Select"},{"$f":"Import!E14706","v":"Select"},{"$f":"Import!E14906","v":0},{"$f":"Import!E15106","v":0}]
[null,7,{"$f":"Import!E14307","v":"Select"},{"$f":"Import!E14507","v":"Select"},{"$f":"Import!E14707","v":"Select"},{"$f":"Import!E14907","v":0},{"$f":"Import!E15107","v":0}]
[null,8,{"$f":"Import!E14308","v":"Select"},{"$f":"Import!E14508","v":"Select"},{"$f":"Import!E14708","v":"Select"},{"$f":"Import!E14908","v":0},{"$f":"Import!E15108","v":0}]
[null,9,{"$f":"Import!E14309","v":"Select"},{"$f":"Import!E14509","v":"Select"},{"$f":"Import!E14709","v":"Select"},{"$f":"Import!E14909","v":0},{"$f":"Import!E15109","v":0}]
[null,10,{"$f":"Import!E14310","v":"Select"},{"$f":"Import!E14510","v":"Select"},{"$f":"Import!E14710","v":"Select"},{"$f":"Import!E14910","v":0},{"$f":"Import!E15110","v":0}]
[null,11,{"$f":"Import!E14311","v":"Select"},{"$f":"Import!E14511","v":"Select"},{"$f":"Import!E14711","v":"Select"},{"$f":"Import!E14911","v":0},{"$f":"Import!E15111","v":0}]
[null,12,{"$f":"Import!E14312","v":"Select"},{"$f":"Import!E14512","v":"Select"},{"$f":"Import!E14712","v":"Select"},{"$f":"Import!E14912","v":0},{"$f":"Import!E15112","v":0}]
[null,13,{"$f":"Import!E14313","v":"Select"},{"$f":"Import!E14513","v":"Select"},{"$f":"Import!E14713","v":"Select"},{"$f":"Import!E14913","v":0},{"$f":"Import!E15113","v":0}]
[null,14,{"$f":"Import!E14314","v":"Select"},{"$f":"Import!E14514","v":"Select"},{"$f":"Import!E14714","v":"Select"},{"$f":"Import!E14914","v":0},{"$f":"Import!E15114","v":0}]
[null,15,{"$f":"Import!E14315","v":"Select"},{"$f":"Import!E14515","v":"Select"},{"$f":"Import!E14715","v":"Select"},{"$f":"Import!E14915","v":0},{"$f":"Import!E15115","v":0}]
[null,16,{"$f":"Import!E14316","v":"Select"},{"$f":"Import!E14516","v":"Select"},{"$f":"Import!E14716","v":"Select"},{"$f":"Import!E14916","v":0},{"$f":"Import!E15116","v":0}]
[null,17,{"$f":"Import!E14317","v":"Select"},{"$f":"Import!E14517","v":"Select"},{"$f":"Import!E14717","v":"Select"},{"$f":"Import!E14917","v":0},{"$f":"Import!E15117","v":0}]
[null,18,{"$f":"Import!E14318","v":"Select"},{"$f":"Import!E14518","v":"Select"},{"$f":"Import!E14718","v":"Select"},{"$f":"Import!E14918","v":0},{"$f":"Import!E15118","v":0}]
[null,19,{"$f":"Import!E14319","v":"Select"},{"$f":"Import!E14519","v":"Select"},{"$f":"Import!E14719","v":"Select"},{"$f":"Import!E14919","v":0},{"$f":"Import!E15119","v":0}]
[null,20,{"$f":"Import!E14320","v":"Select"},{"$f":"Import!E14520","v":"Select"},{"$f":"Import!E14720","v":"Select"},{"$f":"Import!E14920","v":0},{"$f":"Import!E15120","v":0}]
[null,21,{"$f":"Import!E14321","v":"Select"},{"$f":"Import!E14521","v":"Select"},{"$f":"Import!E14721","v":"Select"},{"$f":"Import!E14921","v":0},{"$f":"Import!E15121","v":0}]
[null,22,{"$f":"Import!E14322","v":"Select"},{"$f":"Import!E14522","v":"Select"},{"$f":"Import!E14722","v":"Select"},{"$f":"Import!E14922","v":0},{"$f":"Import!E15122","v":0}]
[null,23,{"$f":"Import!E14323","v":"Select"},{"$f":"Import!E14523","v":"Select"},{"$f":"Import!E14723","v":"Select"},{"$f":"Import!E14923","v":0},{"$f":"Import!E15123","v":0}]
[null,24,{"$f":"Import!E14324","v":"Select"},{"$f":"Import!E14524","v":"Select"},{"$f":"Import!E14724","v":"Select"},{"$f":"Import!E14924","v":0},{"$f":"Import!E15124","v":0}]
[null,25,{"$f":"Import!E14325","v":"Select"},{"$f":"Import!E14525","v":"Select"},{"$f":"Import!E14725","v":"Select"},{"$f":"Import!E14925","v":0},{"$f":"Import!E15125","v":0}]
[null,26,{"$f":"Import!E14326","v":"Select"},{"$f":"Import!E14526","v":"Select"},{"$f":"Import!E14726","v":"Select"},{"$f":"Import!E14926","v":0},{"$f":"Import!E15126","v":0}]
[null,27,{"$f":"Import!E14327","v":"Select"},{"$f":"Import!E14527","v":"Select"},{"$f":"Import!E14727","v":"Select"},{"$f":"Import!E14927","v":0},{"$f":"Import!E15127","v":0}]
[null,28,{"$f":"Import!E14328","v":"Select"},{"$f":"Import!E14528","v":"Select"},{"$f":"Import!E14728","v":"Select"},{"$f":"Import!E14928","v":0},{"$f":"Import!E15128","v":0}]
[null,29,{"$f":"Import!E14329","v":"Select"},{"$f":"Import!E14529","v":"Select"},{"$f":"Import!E14729","v":"Select"},{"$f":"Import!E14929","v":0},{"$f":"Import!E15129","v":0}]
[null,30,{"$f":"Import!E14330","v":"Select"},{"$f":"Import!E14530","v":"Select"},{"$f":"Import!E14730","v":"Select"},{"$f":"Import!E14930","v":0},{"$f":"Import!E15130","v":0}]
[null,31,{"$f":"Import!E14331","v":"Select"},{"$f":"Import!E14531","v":"Select"},{"$f":"Import!E14731","v":"Select"},{"$f":"Import!E14931","v":0},{"$f":"Import!E15131","v":0}]
[null,32,{"$f":"Import!E14332","v":"Select"},{"$f":"Import!E14532","v":"Select"},{"$f":"Import!E14732","v":"Select"},{"$f":"Import!E14932","v":0},{"$f":"Import!E15132","v":0}]
[null,33,{"$f":"Import!E14333","v":"Select"},{"$f":"Import!E14533","v":"Select"},{"$f":"Import!E14733","v":"Select"},{"$f":"Import!E14933","v":0},{"$f":"Import!E15133","v":0}]
[null,34,{"$f":"Import!E14334","v":"Select"},{"$f":"Import!E14534","v":"Select"},{"$f":"Import!E14734","v":"Select"},{"$f":"Import!E14934","v":0},{"$f":"Import!E15134","v":0}]
[null,35,{"$f":"Import!E14335","v":"Select"},{"$f":"Import!E14535","v":"Select"},{"$f":"Import!E14735","v":"Select"},{"$f":"Import!E14935","v":0},{"$f":"Import!E15135","v":0}]
[null,36,{"$f":"Import!E14336","v":"Select"},{"$f":"Import!E14536","v":"Select"},{"$f":"Import!E14736","v":"Select"},{"$f":"Import!E14936","v":0},{"$f":"Import!E15136","v":0}]
[null,37,{"$f":"Import!E14337","v":"Select"},{"$f":"Import!E14537","v":"Select"},{"$f":"Import!E14737","v":"Select"},{"$f":"Import!E14937","v":0},{"$f":"Import!E15137","v":0}]
[null,38,{"$f":"Import!E14338","v":"Select"},{"$f":"Import!E14538","v":"Select"},{"$f":"Import!E14738","v":"Select"},{"$f":"Import!E14938","v":0},{"$f":"Import!E15138","v":0}]
[null,39,{"$f":"Import!E14339","v":"Select"},{"$f":"Import!E14539","v":"Select"},{"$f":"Import!E14739","v":"Select"},{"$f":"Import!E14939","v":0},{"$f":"Import!E15139","v":0}]
[null,40,{"$f":"Import!E14340","v":"Select"},{"$f":"Import!E14540","v":"Select"},{"$f":"Import!E14740","v":"Select"},{"$f":"Import!E14940","v":0},{"$f":"Import!E15140","v":0}]
[null,41,{"$f":"Import!E14341","v":"Select"},{"$f":"Import!E14541","v":"Select"},{"$f":"Import!E14741","v":"Select"},{"$f":"Import!E14941","v":0},{"$f":"Import!E15141","v":0}]
[null,42,{"$f":"Import!E14342","v":"Select"},{"$f":"Import!E14542","v":"Select"},{"$f":"Import!E14742","v":"Select"},{"$f":"Import!E14942","v":0},{"$f":"Import!E15142","v":0}]
[null,43,{"$f":"Import!E14343","v":"Select"},{"$f":"Import!E14543","v":"Select"},{"$f":"Import!E14743","v":"Select"},{"$f":"Import!E14943","v":0},{"$f":"Import!E15143","v":0}]
[null,44,{"$f":"Import!E14344","v":"Select"},{"$f":"Import!E14544","v":"Select"},{"$f":"Import!E14744","v":"Select"},{"$f":"Import!E14944","v":0},{"$f":"Import!E15144","v":0}]
[null,45,{"$f":"Import!E14345","v":"Select"},{"$f":"Import!E14545","v":"Select"},{"$f":"Import!E14745","v":"Select"},{"$f":"Import!E14945","v":0},{"$f":"Import!E15145","v":0}]
[null,46,{"$f":"Import!E14346","v":"Select"},{"$f":"Import!E14546","v":"Select"},{"$f":"Import!E14746","v":"Select"},{"$f":"Import!E14946","v":0},{"$f":"Import!E15146","v":0}]
[null,47,{"$f":"Import!E14347","v":"Select"},{"$f":"Import!E14547","v":"Select"},{"$f":"Import!E14747","v":"Select"},{"$f":"Import!E14947","v":0},{"$f":"Import!E15147","v":0}]
[null,48,{"$f":"Import!E14348","v":"Select"},{"$f":"Import!E14548","v":"Select"},{"$f":"Import!E14748","v":"Select"},{"$f":"Import!E14948","v":0},{"$f":"Import!E15148","v":0}]
[null,49,{"$f":"Import!E14349","v":"Select"},{"$f":"Import!E14549","v":"Select"},{"$f":"Import!E14749","v":"Select"},{"$f":"Import!E14949","v":0},{"$f":"Import!E15149","v":0}]
[null,50,{"$f":"Import!E14350","v":"Select"},{"$f":"Import!E14550","v":"Select"},{"$f":"Import!E14750","v":"Select"},{"$f":"Import!E14950","v":0},{"$f":"Import!E15150","v":0}]
[null,51,{"$f":"Import!E14351","v":"Select"},{"$f":"Import!E14551","v":"Select"},{"$f":"Import!E14751","v":"Select"},{"$f":"Import!E14951","v":0},{"$f":"Import!E15151","v":0}]
[null,52,{"$f":"Import!E14352","v":"Select"},{"$f":"Import!E14552","v":"Select"},{"$f":"Import!E14752","v":"Select"},{"$f":"Import!E14952","v":0},{"$f":"Import!E15152","v":0}]
[null,53,{"$f":"Import!E14353","v":"Select"},{"$f":"Import!E14553","v":"Select"},{"$f":"Import!E14753","v":"Select"},{"$f":"Import!E14953","v":0},{"$f":"Import!E15153","v":0}]
[null,54,{"$f":"Import!E14354","v":"Select"},{"$f":"Import!E14554","v":"Select"},{"$f":"Import!E14754","v":"Select"},{"$f":"Import!E14954","v":0},{"$f":"Import!E15154","v":0}]
[null,55,{"$f":"Import!E14355","v":"Select"},{"$f":"Import!E14555","v":"Select"},{"$f":"Import!E14755","v":"Select"},{"$f":"Import!E14955","v":0},{"$f":"Import!E15155","v":0}]
[null,56,{"$f":"Import!E14356","v":"Select"},{"$f":"Import!E14556","v":"Select"},{"$f":"Import!E14756","v":"Select"},{"$f":"Import!E14956","v":0},{"$f":"Import!E15156","v":0}]
[null,57,{"$f":"Import!E14357","v":"Select"},{"$f":"Import!E14557","v":"Select"},{"$f":"Import!E14757","v":"Select"},{"$f":"Import!E14957","v":0},{"$f":"Import!E15157","v":0}]
[null,58,{"$f":"Import!E14358","v":"Select"},{"$f":"Import!E14558","v":"Select"},{"$f":"Import!E14758","v":"Select"},{"$f":"Import!E14958","v":0},{"$f":"Import!E15158","v":0}]
[null,59,{"$f":"Import!E14359","v":"Select"},{"$f":"Import!E14559","v":"Select"},{"$f":"Import!E14759","v":"Select"},{"$f":"Import!E14959","v":0},{"$f":"Import!E15159","v":0}]
[null,60,{"$f":"Import!E14360","v":"Select"},{"$f":"Import!E14560","v":"Select"},{"$f":"Import!E14760","v":"Select"},{"$f":"Import!E14960","v":0},{"$f":"Import!E15160","v":0}]
[null,61,{"$f":"Import!E14361","v":"Select"},{"$f":"Import!E14561","v":"Select"},{"$f":"Import!E14761","v":"Select"},{"$f":"Import!E14961","v":0},{"$f":"Import!E15161","v":0}]
[null,62,{"$f":"Import!E14362","v":"Select"},{"$f":"Import!E14562","v":"Select"},{"$f":"Import!E14762","v":"Select"},{"$f":"Import!E14962","v":0},{"$f":"Import!E15162","v":0}]
[null,63,{"$f":"Import!E14363","v":"Select"},{"$f":"Import!E14563","v":"Select"},{"$f":"Import!E14763","v":"Select"},{"$f":"Import!E14963","v":0},{"$f":"Import!E15163","v":0}]
[null,64,{"$f":"Import!E14364","v":"Select"},{"$f":"Import!E14564","v":"Select"},{"$f":"Import!E14764","v":"Select"},{"$f":"Import!E14964","v":0},{"$f":"Import!E15164","v":0}]
[null,65,{"$f":"Import!E14365","v":"Select"},{"$f":"Import!E14565","v":"Select"},{"$f":"Import!E14765","v":"Select"},{"$f":"Import!E14965","v":0},{"$f":"Import!E15165","v":0}]
[null,66,{"$f":"Import!E14366","v":"Select"},{"$f":"Import!E14566","v":"Select"},{"$f":"Import!E14766","v":"Select"},{"$f":"Import!E14966","v":0},{"$f":"Import!E15166","v":0}]
[null,{"$f":"B692+1","v":67},{"$f":"Import!E14367","v":"Select"},{"$f":"Import!E14567","v":"Select"},{"$f":"Import!E14767","v":"Select"},{"$f":"Import!E14967","v":0},{"$f":"Import!E15167","v":0}]
[null,68,{"$f":"Import!E14368","v":"Select"},{"$f":"Import!E14568","v":"Select"},{"$f":"Import!E14768","v":"Select"},{"$f":"Import!E14968","v":0},{"$f":"Import!E15168","v":0}]
[null,69,{"$f":"Import!E14369","v":"Select"},{"$f":"Import!E14569","v":"Select"},{"$f":"Import!E14769","v":"Select"},{"$f":"Import!E14969","v":0},{"$f":"Import!E15169","v":0}]
[null,70,{"$f":"Import!E14370","v":"Select"},{"$f":"Import!E14570","v":"Select"},{"$f":"Import!E14770","v":"Select"},{"$f":"Import!E14970","v":0},{"$f":"Import!E15170","v":0}]
[null,71,{"$f":"Import!E14371","v":"Select"},{"$f":"Import!E14571","v":"Select"},{"$f":"Import!E14771","v":"Select"},{"$f":"Import!E14971","v":0},{"$f":"Import!E15171","v":0}]
[null,72,{"$f":"Import!E14372","v":"Select"},{"$f":"Import!E14572","v":"Select"},{"$f":"Import!E14772","v":"Select"},{"$f":"Import!E14972","v":0},{"$f":"Import!E15172","v":0}]
[null,73,{"$f":"Import!E14373","v":"Select"},{"$f":"Import!E14573","v":"Select"},{"$f":"Import!E14773","v":"Select"},{"$f":"Import!E14973","v":0},{"$f":"Import!E15173","v":0}]
[null,74,{"$f":"Import!E14374","v":"Select"},{"$f":"Import!E14574","v":"Select"},{"$f":"Import!E14774","v":"Select"},{"$f":"Import!E14974","v":0},{"$f":"Import!E15174","v":0}]
[null,75,{"$f":"Import!E14375","v":"Select"},{"$f":"Import!E14575","v":"Select"},{"$f":"Import!E14775","v":"Select"},{"$f":"Import!E14975","v":0},{"$f":"Import!E15175","v":0}]
[null,76,{"$f":"Import!E14376","v":"Select"},{"$f":"Import!E14576","v":"Select"},{"$f":"Import!E14776","v":"Select"},{"$f":"Import!E14976","v":0},{"$f":"Import!E15176","v":0}]
[null,77,{"$f":"Import!E14377","v":"Select"},{"$f":"Import!E14577","v":"Select"},{"$f":"Import!E14777","v":"Select"},{"$f":"Import!E14977","v":0},{"$f":"Import!E15177","v":0}]
[null,78,{"$f":"Import!E14378","v":"Select"},{"$f":"Import!E14578","v":"Select"},{"$f":"Import!E14778","v":"Select"},{"$f":"Import!E14978","v":0},{"$f":"Import!E15178","v":0}]
[null,79,{"$f":"Import!E14379","v":"Select"},{"$f":"Import!E14579","v":"Select"},{"$f":"Import!E14779","v":"Select"},{"$f":"Import!E14979","v":0},{"$f":"Import!E15179","v":0}]
[null,80,{"$f":"Import!E14380","v":"Select"},{"$f":"Import!E14580","v":"Select"},{"$f":"Import!E14780","v":"Select"},{"$f":"Import!E14980","v":0},{"$f":"Import!E15180","v":0}]
[null,81,{"$f":"Import!E14381","v":"Select"},{"$f":"Import!E14581","v":"Select"},{"$f":"Import!E14781","v":"Select"},{"$f":"Import!E14981","v":0},{"$f":"Import!E15181","v":0}]
[null,82,{"$f":"Import!E14382","v":"Select"},{"$f":"Import!E14582","v":"Select"},{"$f":"Import!E14782","v":"Select"},{"$f":"Import!E14982","v":0},{"$f":"Import!E15182","v":0}]
[null,83,{"$f":"Import!E14383","v":"Select"},{"$f":"Import!E14583","v":"Select"},{"$f":"Import!E14783","v":"Select"},{"$f":"Import!E14983","v":0},{"$f":"Import!E15183","v":0}]
[null,84,{"$f":"Import!E14384","v":"Select"},{"$f":"Import!E14584","v":"Select"},{"$f":"Import!E14784","v":"Select"},{"$f":"Import!E14984","v":0},{"$f":"Import!E15184","v":0}]
[null,85,{"$f":"Import!E14385","v":"Select"},{"$f":"Import!E14585","v":"Select"},{"$f":"Import!E14785","v":"Select"},{"$f":"Import!E14985","v":0},{"$f":"Import!E15185","v":0}]
[null,86,{"$f":"Import!E14386","v":"Select"},{"$f":"Import!E14586","v":"Select"},{"$f":"Import!E14786","v":"Select"},{"$f":"Import!E14986","v":0},{"$f":"Import!E15186","v":0}]
[null,87,{"$f":"Import!E14387","v":"Select"},{"$f":"Import!E14587","v":"Select"},{"$f":"Import!E14787","v":"Select"},{"$f":"Import!E14987","v":0},{"$f":"Import!E15187","v":0}]
[null,88,{"$f":"Import!E14388","v":"Select"},{"$f":"Import!E14588","v":"Select"},{"$f":"Import!E14788","v":"Select"},{"$f":"Import!E14988","v":0},{"$f":"Import!E15188","v":0}]
[null,89,{"$f":"Import!E14389","v":"Select"},{"$f":"Import!E14589","v":"Select"},{"$f":"Import!E14789","v":"Select"},{"$f":"Import!E14989","v":0},{"$f":"Import!E15189","v":0}]
[null,90,{"$f":"Import!E14390","v":"Select"},{"$f":"Import!E14590","v":"Select"},{"$f":"Import!E14790","v":"Select"},{"$f":"Import!E14990","v":0},{"$f":"Import!E15190","v":0}]
[null,91,{"$f":"Import!E14391","v":"Select"},{"$f":"Import!E14591","v":"Select"},{"$f":"Import!E14791","v":"Select"},{"$f":"Import!E14991","v":0},{"$f":"Import!E15191","v":0}]
[null,92,{"$f":"Import!E14392","v":"Select"},{"$f":"Import!E14592","v":"Select"},{"$f":"Import!E14792","v":"Select"},{"$f":"Import!E14992","v":0},{"$f":"Import!E15192","v":0}]
[null,93,{"$f":"Import!E14393","v":"Select"},{"$f":"Import!E14593","v":"Select"},{"$f":"Import!E14793","v":"Select"},{"$f":"Import!E14993","v":0},{"$f":"Import!E15193","v":0}]
[null,94,{"$f":"Import!E14394","v":"Select"},{"$f":"Import!E14594","v":"Select"},{"$f":"Import!E14794","v":"Select"},{"$f":"Import!E14994","v":0},{"$f":"Import!E15194","v":0}]
[null,95,{"$f":"Import!E14395","v":"Select"},{"$f":"Import!E14595","v":"Select"},{"$f":"Import!E14795","v":"Select"},{"$f":"Import!E14995","v":0},{"$f":"Import!E15195","v":0}]
[null,96,{"$f":"Import!E14396","v":"Select"},{"$f":"Import!E14596","v":"Select"},{"$f":"Import!E14796","v":"Select"},{"$f":"Import!E14996","v":0},{"$f":"Import!E15196","v":0}]
[null,97,{"$f":"Import!E14397","v":"Select"},{"$f":"Import!E14597","v":"Select"},{"$f":"Import!E14797","v":"Select"},{"$f":"Import!E14997","v":0},{"$f":"Import!E15197","v":0}]
[null,98,{"$f":"Import!E14398","v":"Select"},{"$f":"Import!E14598","v":"Select"},{"$f":"Import!E14798","v":"Select"},{"$f":"Import!E14998","v":0},{"$f":"Import!E15198","v":0}]
[null,99,{"$f":"Import!E14399","v":"Select"},{"$f":"Import!E14599","v":"Select"},{"$f":"Import!E14799","v":"Select"},{"$f":"Import!E14999","v":0},{"$f":"Import!E15199","v":0}]
[null,100,{"$f":"Import!E14400","v":"Select"},{"$f":"Import!E14600","v":"Select"},{"$f":"Import!E14800","v":"Select"},{"$f":"Import!E15000","v":0},{"$f":"Import!E15200","v":0}]
[null,101,{"$f":"Import!E14401","v":"Select"},{"$f":"Import!E14601","v":"Select"},{"$f":"Import!E14801","v":"Select"},{"$f":"Import!E15001","v":0},{"$f":"Import!E15201","v":0}]
[null,102,{"$f":"Import!E14402","v":"Select"},{"$f":"Import!E14602","v":"Select"},{"$f":"Import!E14802","v":"Select"},{"$f":"Import!E15002","v":0},{"$f":"Import!E15202","v":0}]
[null,103,{"$f":"Import!E14403","v":"Select"},{"$f":"Import!E14603","v":"Select"},{"$f":"Import!E14803","v":"Select"},{"$f":"Import!E15003","v":0},{"$f":"Import!E15203","v":0}]
[null,104,{"$f":"Import!E14404","v":"Select"},{"$f":"Import!E14604","v":"Select"},{"$f":"Import!E14804","v":"Select"},{"$f":"Import!E15004","v":0},{"$f":"Import!E15204","v":0}]
[null,105,{"$f":"Import!E14405","v":"Select"},{"$f":"Import!E14605","v":"Select"},{"$f":"Import!E14805","v":"Select"},{"$f":"Import!E15005","v":0},{"$f":"Import!E15205","v":0}]
[null,106,{"$f":"Import!E14406","v":"Select"},{"$f":"Import!E14606","v":"Select"},{"$f":"Import!E14806","v":"Select"},{"$f":"Import!E15006","v":0},{"$f":"Import!E15206","v":0}]
[null,107,{"$f":"Import!E14407","v":"Select"},{"$f":"Import!E14607","v":"Select"},{"$f":"Import!E14807","v":"Select"},{"$f":"Import!E15007","v":0},{"$f":"Import!E15207","v":0}]
[null,108,{"$f":"Import!E14408","v":"Select"},{"$f":"Import!E14608","v":"Select"},{"$f":"Import!E14808","v":"Select"},{"$f":"Import!E15008","v":0},{"$f":"Import!E15208","v":0}]
[null,109,{"$f":"Import!E14409","v":"Select"},{"$f":"Import!E14609","v":"Select"},{"$f":"Import!E14809","v":"Select"},{"$f":"Import!E15009","v":0},{"$f":"Import!E15209","v":0}]
[null,110,{"$f":"Import!E14410","v":"Select"},{"$f":"Import!E14610","v":"Select"},{"$f":"Import!E14810","v":"Select"},{"$f":"Import!E15010","v":0},{"$f":"Import!E15210","v":0}]
[null,111,{"$f":"Import!E14411","v":"Select"},{"$f":"Import!E14611","v":"Select"},{"$f":"Import!E14811","v":"Select"},{"$f":"Import!E15011","v":0},{"$f":"Import!E15211","v":0}]
[null,112,{"$f":"Import!E14412","v":"Select"},{"$f":"Import!E14612","v":"Select"},{"$f":"Import!E14812","v":"Select"},{"$f":"Import!E15012","v":0},{"$f":"Import!E15212","v":0}]
[null,113,{"$f":"Import!E14413","v":"Select"},{"$f":"Import!E14613","v":"Select"},{"$f":"Import!E14813","v":"Select"},{"$f":"Import!E15013","v":0},{"$f":"Import!E15213","v":0}]
[null,114,{"$f":"Import!E14414","v":"Select"},{"$f":"Import!E14614","v":"Select"},{"$f":"Import!E14814","v":"Select"},{"$f":"Import!E15014","v":0},{"$f":"Import!E15214","v":0}]
[null,115,{"$f":"Import!E14415","v":"Select"},{"$f":"Import!E14615","v":"Select"},{"$f":"Import!E14815","v":"Select"},{"$f":"Import!E15015","v":0},{"$f":"Import!E15215","v":0}]
[null,116,{"$f":"Import!E14416","v":"Select"},{"$f":"Import!E14616","v":"Select"},{"$f":"Import!E14816","v":"Select"},{"$f":"Import!E15016","v":0},{"$f":"Import!E15216","v":0}]
[null,117,{"$f":"Import!E14417","v":"Select"},{"$f":"Import!E14617","v":"Select"},{"$f":"Import!E14817","v":"Select"},{"$f":"Import!E15017","v":0},{"$f":"Import!E15217","v":0}]
[null,118,{"$f":"Import!E14418","v":"Select"},{"$f":"Import!E14618","v":"Select"},{"$f":"Import!E14818","v":"Select"},{"$f":"Import!E15018","v":0},{"$f":"Import!E15218","v":0}]
[null,119,{"$f":"Import!E14419","v":"Select"},{"$f":"Import!E14619","v":"Select"},{"$f":"Import!E14819","v":"Select"},{"$f":"Import!E15019","v":0},{"$f":"Import!E15219","v":0}]
[null,120,{"$f":"Import!E14420","v":"Select"},{"$f":"Import!E14620","v":"Select"},{"$f":"Import!E14820","v":"Select"},{"$f":"Import!E15020","v":0},{"$f":"Import!E15220","v":0}]
[null,121,{"$f":"Import!E14421","v":"Select"},{"$f":"Import!E14621","v":"Select"},{"$f":"Import!E14821","v":"Select"},{"$f":"Import!E15021","v":0},{"$f":"Import!E15221","v":0}]
[null,122,{"$f":"Import!E14422","v":"Select"},{"$f":"Import!E14622","v":"Select"},{"$f":"Import!E14822","v":"Select"},{"$f":"Import!E15022","v":0},{"$f":"Import!E15222","v":0}]
[null,123,{"$f":"Import!E14423","v":"Select"},{"$f":"Import!E14623","v":"Select"},{"$f":"Import!E14823","v":"Select"},{"$f":"Import!E15023","v":0},{"$f":"Import!E15223","v":0}]
[null,124,{"$f":"Import!E14424","v":"Select"},{"$f":"Import!E14624","v":"Select"},{"$f":"Import!E14824","v":"Select"},{"$f":"Import!E15024","v":0},{"$f":"Import!E15224","v":0}]
[null,125,{"$f":"Import!E14425","v":"Select"},{"$f":"Import!E14625","v":"Select"},{"$f":"Import!E14825","v":"Select"},{"$f":"Import!E15025","v":0},{"$f":"Import!E15225","v":0}]
[null,126,{"$f":"Import!E14426","v":"Select"},{"$f":"Import!E14626","v":"Select"},{"$f":"Import!E14826","v":"Select"},{"$f":"Import!E15026","v":0},{"$f":"Import!E15226","v":0}]
[null,127,{"$f":"Import!E14427","v":"Select"},{"$f":"Import!E14627","v":"Select"},{"$f":"Import!E14827","v":"Select"},{"$f":"Import!E15027","v":0},{"$f":"Import!E15227","v":0}]
[null,128,{"$f":"Import!E14428","v":"Select"},{"$f":"Import!E14628","v":"Select"},{"$f":"Import!E14828","v":"Select"},{"$f":"Import!E15028","v":0},{"$f":"Import!E15228","v":0}]
[null,129,{"$f":"Import!E14429","v":"Select"},{"$f":"Import!E14629","v":"Select"},{"$f":"Import!E14829","v":"Select"},{"$f":"Import!E15029","v":0},{"$f":"Import!E15229","v":0}]
[null,130,{"$f":"Import!E14430","v":"Select"},{"$f":"Import!E14630","v":"Select"},{"$f":"Import!E14830","v":"Select"},{"$f":"Import!E15030","v":0},{"$f":"Import!E15230","v":0}]
[null,{"$f":"B756+1","v":131},{"$f":"Import!E14431","v":"Select"},{"$f":"Import!E14631","v":"Select"},{"$f":"Import!E14831","v":"Select"},{"$f":"Import!E15031","v":0},{"$f":"Import!E15231","v":0}]
[null,132,{"$f":"Import!E14432","v":"Select"},{"$f":"Import!E14632","v":"Select"},{"$f":"Import!E14832","v":"Select"},{"$f":"Import!E15032","v":0},{"$f":"Import!E15232","v":0}]
[null,133,{"$f":"Import!E14433","v":"Select"},{"$f":"Import!E14633","v":"Select"},{"$f":"Import!E14833","v":"Select"},{"$f":"Import!E15033","v":0},{"$f":"Import!E15233","v":0}]
[null,134,{"$f":"Import!E14434","v":"Select"},{"$f":"Import!E14634","v":"Select"},{"$f":"Import!E14834","v":"Select"},{"$f":"Import!E15034","v":0},{"$f":"Import!E15234","v":0}]
[null,135,{"$f":"Import!E14435","v":"Select"},{"$f":"Import!E14635","v":"Select"},{"$f":"Import!E14835","v":"Select"},{"$f":"Import!E15035","v":0},{"$f":"Import!E15235","v":0}]
[null,136,{"$f":"Import!E14436","v":"Select"},{"$f":"Import!E14636","v":"Select"},{"$f":"Import!E14836","v":"Select"},{"$f":"Import!E15036","v":0},{"$f":"Import!E15236","v":0}]
[null,137,{"$f":"Import!E14437","v":"Select"},{"$f":"Import!E14637","v":"Select"},{"$f":"Import!E14837","v":"Select"},{"$f":"Import!E15037","v":0},{"$f":"Import!E15237","v":0}]
[null,138,{"$f":"Import!E14438","v":"Select"},{"$f":"Import!E14638","v":"Select"},{"$f":"Import!E14838","v":"Select"},{"$f":"Import!E15038","v":0},{"$f":"Import!E15238","v":0}]
[null,139,{"$f":"Import!E14439","v":"Select"},{"$f":"Import!E14639","v":"Select"},{"$f":"Import!E14839","v":"Select"},{"$f":"Import!E15039","v":0},{"$f":"Import!E15239","v":0}]
[null,140,{"$f":"Import!E14440","v":"Select"},{"$f":"Import!E14640","v":"Select"},{"$f":"Import!E14840","v":"Select"},{"$f":"Import!E15040","v":0},{"$f":"Import!E15240","v":0}]
[null,141,{"$f":"Import!E14441","v":"Select"},{"$f":"Import!E14641","v":"Select"},{"$f":"Import!E14841","v":"Select"},{"$f":"Import!E15041","v":0},{"$f":"Import!E15241","v":0}]
[null,142,{"$f":"Import!E14442","v":"Select"},{"$f":"Import!E14642","v":"Select"},{"$f":"Import!E14842","v":"Select"},{"$f":"Import!E15042","v":0},{"$f":"Import!E15242","v":0}]
[null,143,{"$f":"Import!E14443","v":"Select"},{"$f":"Import!E14643","v":"Select"},{"$f":"Import!E14843","v":"Select"},{"$f":"Import!E15043","v":0},{"$f":"Import!E15243","v":0}]
[null,144,{"$f":"Import!E14444","v":"Select"},{"$f":"Import!E14644","v":"Select"},{"$f":"Import!E14844","v":"Select"},{"$f":"Import!E15044","v":0},{"$f":"Import!E15244","v":0}]
[null,145,{"$f":"Import!E14445","v":"Select"},{"$f":"Import!E14645","v":"Select"},{"$f":"Import!E14845","v":"Select"},{"$f":"Import!E15045","v":0},{"$f":"Import!E15245","v":0}]
[null,146,{"$f":"Import!E14446","v":"Select"},{"$f":"Import!E14646","v":"Select"},{"$f":"Import!E14846","v":"Select"},{"$f":"Import!E15046","v":0},{"$f":"Import!E15246","v":0}]
[null,147,{"$f":"Import!E14447","v":"Select"},{"$f":"Import!E14647","v":"Select"},{"$f":"Import!E14847","v":"Select"},{"$f":"Import!E15047","v":0},{"$f":"Import!E15247","v":0}]
[null,148,{"$f":"Import!E14448","v":"Select"},{"$f":"Import!E14648","v":"Select"},{"$f":"Import!E14848","v":"Select"},{"$f":"Import!E15048","v":0},{"$f":"Import!E15248","v":0}]
[null,149,{"$f":"Import!E14449","v":"Select"},{"$f":"Import!E14649","v":"Select"},{"$f":"Import!E14849","v":"Select"},{"$f":"Import!E15049","v":0},{"$f":"Import!E15249","v":0}]
[null,150,{"$f":"Import!E14450","v":"Select"},{"$f":"Import!E14650","v":"Select"},{"$f":"Import!E14850","v":"Select"},{"$f":"Import!E15050","v":0},{"$f":"Import!E15250","v":0}]
[null,151,{"$f":"Import!E14451","v":"Select"},{"$f":"Import!E14651","v":"Select"},{"$f":"Import!E14851","v":"Select"},{"$f":"Import!E15051","v":0},{"$f":"Import!E15251","v":0}]
[null,152,{"$f":"Import!E14452","v":"Select"},{"$f":"Import!E14652","v":"Select"},{"$f":"Import!E14852","v":"Select"},{"$f":"Import!E15052","v":0},{"$f":"Import!E15252","v":0}]
[null,153,{"$f":"Import!E14453","v":"Select"},{"$f":"Import!E14653","v":"Select"},{"$f":"Import!E14853","v":"Select"},{"$f":"Import!E15053","v":0},{"$f":"Import!E15253","v":0}]
[null,154,{"$f":"Import!E14454","v":"Select"},{"$f":"Import!E14654","v":"Select"},{"$f":"Import!E14854","v":"Select"},{"$f":"Import!E15054","v":0},{"$f":"Import!E15254","v":0}]
[null,155,{"$f":"Import!E14455","v":"Select"},{"$f":"Import!E14655","v":"Select"},{"$f":"Import!E14855","v":"Select"},{"$f":"Import!E15055","v":0},{"$f":"Import!E15255","v":0}]
[null,156,{"$f":"Import!E14456","v":"Select"},{"$f":"Import!E14656","v":"Select"},{"$f":"Import!E14856","v":"Select"},{"$f":"Import!E15056","v":0},{"$f":"Import!E15256","v":0}]
[null,157,{"$f":"Import!E14457","v":"Select"},{"$f":"Import!E14657","v":"Select"},{"$f":"Import!E14857","v":"Select"},{"$f":"Import!E15057","v":0},{"$f":"Import!E15257","v":0}]
[null,158,{"$f":"Import!E14458","v":"Select"},{"$f":"Import!E14658","v":"Select"},{"$f":"Import!E14858","v":"Select"},{"$f":"Import!E15058","v":0},{"$f":"Import!E15258","v":0}]
[null,159,{"$f":"Import!E14459","v":"Select"},{"$f":"Import!E14659","v":"Select"},{"$f":"Import!E14859","v":"Select"},{"$f":"Import!E15059","v":0},{"$f":"Import!E15259","v":0}]
[null,160,{"$f":"Import!E14460","v":"Select"},{"$f":"Import!E14660","v":"Select"},{"$f":"Import!E14860","v":"Select"},{"$f":"Import!E15060","v":0},{"$f":"Import!E15260","v":0}]
[null,161,{"$f":"Import!E14461","v":"Select"},{"$f":"Import!E14661","v":"Select"},{"$f":"Import!E14861","v":"Select"},{"$f":"Import!E15061","v":0},{"$f":"Import!E15261","v":0}]
[null,162,{"$f":"Import!E14462","v":"Select"},{"$f":"Import!E14662","v":"Select"},{"$f":"Import!E14862","v":"Select"},{"$f":"Import!E15062","v":0},{"$f":"Import!E15262","v":0}]
[null,163,{"$f":"Import!E14463","v":"Select"},{"$f":"Import!E14663","v":"Select"},{"$f":"Import!E14863","v":"Select"},{"$f":"Import!E15063","v":0},{"$f":"Import!E15263","v":0}]
[null,164,{"$f":"Import!E14464","v":"Select"},{"$f":"Import!E14664","v":"Select"},{"$f":"Import!E14864","v":"Select"},{"$f":"Import!E15064","v":0},{"$f":"Import!E15264","v":0}]
[null,165,{"$f":"Import!E14465","v":"Select"},{"$f":"Import!E14665","v":"Select"},{"$f":"Import!E14865","v":"Select"},{"$f":"Import!E15065","v":0},{"$f":"Import!E15265","v":0}]
[null,166,{"$f":"Import!E14466","v":"Select"},{"$f":"Import!E14666","v":"Select"},{"$f":"Import!E14866","v":"Select"},{"$f":"Import!E15066","v":0},{"$f":"Import!E15266","v":0}]
[null,167,{"$f":"Import!E14467","v":"Select"},{"$f":"Import!E14667","v":"Select"},{"$f":"Import!E14867","v":"Select"},{"$f":"Import!E15067","v":0},{"$f":"Import!E15267","v":0}]
[null,168,{"$f":"Import!E14468","v":"Select"},{"$f":"Import!E14668","v":"Select"},{"$f":"Import!E14868","v":"Select"},{"$f":"Import!E15068","v":0},{"$f":"Import!E15268","v":0}]
[null,169,{"$f":"Import!E14469","v":"Select"},{"$f":"Import!E14669","v":"Select"},{"$f":"Import!E14869","v":"Select"},{"$f":"Import!E15069","v":0},{"$f":"Import!E15269","v":0}]
[null,170,{"$f":"Import!E14470","v":"Select"},{"$f":"Import!E14670","v":"Select"},{"$f":"Import!E14870","v":"Select"},{"$f":"Import!E15070","v":0},{"$f":"Import!E15270","v":0}]
[null,171,{"$f":"Import!E14471","v":"Select"},{"$f":"Import!E14671","v":"Select"},{"$f":"Import!E14871","v":"Select"},{"$f":"Import!E15071","v":0},{"$f":"Import!E15271","v":0}]
[null,172,{"$f":"Import!E14472","v":"Select"},{"$f":"Import!E14672","v":"Select"},{"$f":"Import!E14872","v":"Select"},{"$f":"Import!E15072","v":0},{"$f":"Import!E15272","v":0}]
[null,173,{"$f":"Import!E14473","v":"Select"},{"$f":"Import!E14673","v":"Select"},{"$f":"Import!E14873","v":"Select"},{"$f":"Import!E15073","v":0},{"$f":"Import!E15273","v":0}]
[null,174,{"$f":"Import!E14474","v":"Select"},{"$f":"Import!E14674","v":"Select"},{"$f":"Import!E14874","v":"Select"},{"$f":"Import!E15074","v":0},{"$f":"Import!E15274","v":0}]
[null,175,{"$f":"Import!E14475","v":"Select"},{"$f":"Import!E14675","v":"Select"},{"$f":"Import!E14875","v":"Select"},{"$f":"Import!E15075","v":0},{"$f":"Import!E15275","v":0}]
[null,176,{"$f":"Import!E14476","v":"Select"},{"$f":"Import!E14676","v":"Select"},{"$f":"Import!E14876","v":"Select"},{"$f":"Import!E15076","v":0},{"$f":"Import!E15276","v":0}]
[null,177,{"$f":"Import!E14477","v":"Select"},{"$f":"Import!E14677","v":"Select"},{"$f":"Import!E14877","v":"Select"},{"$f":"Import!E15077","v":0},{"$f":"Import!E15277","v":0}]
[null,178,{"$f":"Import!E14478","v":"Select"},{"$f":"Import!E14678","v":"Select"},{"$f":"Import!E14878","v":"Select"},{"$f":"Import!E15078","v":0},{"$f":"Import!E15278","v":0}]
[null,179,{"$f":"Import!E14479","v":"Select"},{"$f":"Import!E14679","v":"Select"},{"$f":"Import!E14879","v":"Select"},{"$f":"Import!E15079","v":0},{"$f":"Import!E15279","v":0}]
[null,180,{"$f":"Import!E14480","v":"Select"},{"$f":"Import!E14680","v":"Select"},{"$f":"Import!E14880","v":"Select"},{"$f":"Import!E15080","v":0},{"$f":"Import!E15280","v":0}]
[null,181,{"$f":"Import!E14481","v":"Select"},{"$f":"Import!E14681","v":"Select"},{"$f":"Import!E14881","v":"Select"},{"$f":"Import!E15081","v":0},{"$f":"Import!E15281","v":0}]
[null,182,{"$f":"Import!E14482","v":"Select"},{"$f":"Import!E14682","v":"Select"},{"$f":"Import!E14882","v":"Select"},{"$f":"Import!E15082","v":0},{"$f":"Import!E15282","v":0}]
[null,183,{"$f":"Import!E14483","v":"Select"},{"$f":"Import!E14683","v":"Select"},{"$f":"Import!E14883","v":"Select"},{"$f":"Import!E15083","v":0},{"$f":"Import!E15283","v":0}]
[null,184,{"$f":"Import!E14484","v":"Select"},{"$f":"Import!E14684","v":"Select"},{"$f":"Import!E14884","v":"Select"},{"$f":"Import!E15084","v":0},{"$f":"Import!E15284","v":0}]
[null,185,{"$f":"Import!E14485","v":"Select"},{"$f":"Import!E14685","v":"Select"},{"$f":"Import!E14885","v":"Select"},{"$f":"Import!E15085","v":0},{"$f":"Import!E15285","v":0}]
[null,186,{"$f":"Import!E14486","v":"Select"},{"$f":"Import!E14686","v":"Select"},{"$f":"Import!E14886","v":"Select"},{"$f":"Import!E15086","v":0},{"$f":"Import!E15286","v":0}]
[null,187,{"$f":"Import!E14487","v":"Select"},{"$f":"Import!E14687","v":"Select"},{"$f":"Import!E14887","v":"Select"},{"$f":"Import!E15087","v":0},{"$f":"Import!E15287","v":0}]
[null,188,{"$f":"Import!E14488","v":"Select"},{"$f":"Import!E14688","v":"Select"},{"$f":"Import!E14888","v":"Select"},{"$f":"Import!E15088","v":0},{"$f":"Import!E15288","v":0}]
[null,189,{"$f":"Import!E14489","v":"Select"},{"$f":"Import!E14689","v":"Select"},{"$f":"Import!E14889","v":"Select"},{"$f":"Import!E15089","v":0},{"$f":"Import!E15289","v":0}]
[null,190,{"$f":"Import!E14490","v":"Select"},{"$f":"Import!E14690","v":"Select"},{"$f":"Import!E14890","v":"Select"},{"$f":"Import!E15090","v":0},{"$f":"Import!E15290","v":0}]
[null,191,{"$f":"Import!E14491","v":"Select"},{"$f":"Import!E14691","v":"Select"},{"$f":"Import!E14891","v":"Select"},{"$f":"Import!E15091","v":0},{"$f":"Import!E15291","v":0}]
[null,192,{"$f":"Import!E14492","v":"Select"},{"$f":"Import!E14692","v":"Select"},{"$f":"Import!E14892","v":"Select"},{"$f":"Import!E15092","v":0},{"$f":"Import!E15292","v":0}]
[null,193,{"$f":"Import!E14493","v":"Select"},{"$f":"Import!E14693","v":"Select"},{"$f":"Import!E14893","v":"Select"},{"$f":"Import!E15093","v":0},{"$f":"Import!E15293","v":0}]
[null,194,{"$f":"Import!E14494","v":"Select"},{"$f":"Import!E14694","v":"Select"},{"$f":"Import!E14894","v":"Select"},{"$f":"Import!E15094","v":0},{"$f":"Import!E15294","v":0}]
[null,{"$f":"B820+1","v":195},{"$f":"Import!E14495","v":"Select"},{"$f":"Import!E14695","v":"Select"},{"$f":"Import!E14895","v":"Select"},{"$f":"Import!E15095","v":0},{"$f":"Import!E15295","v":0}]
[null,196,{"$f":"Import!E14496","v":"Select"},{"$f":"Import!E14696","v":"Select"},{"$f":"Import!E14896","v":"Select"},{"$f":"Import!E15096","v":0},{"$f":"Import!E15296","v":0}]
[null,197,{"$f":"Import!E14497","v":"Select"},{"$f":"Import!E14697","v":"Select"},{"$f":"Import!E14897","v":"Select"},{"$f":"Import!E15097","v":0},{"$f":"Import!E15297","v":0}]
[null,198,{"$f":"Import!E14498","v":"Select"},{"$f":"Import!E14698","v":"Select"},{"$f":"Import!E14898","v":"Select"},{"$f":"Import!E15098","v":0},{"$f":"Import!E15298","v":0}]
[null,199,{"$f":"Import!E14499","v":"Select"},{"$f":"Import!E14699","v":"Select"},{"$f":"Import!E14899","v":"Select"},{"$f":"Import!E15099","v":0},{"$f":"Import!E15299","v":0}]
[null,200,{"$f":"Import!E14500","v":"Select"},{"$f":"Import!E14700","v":"Select"},{"$f":"Import!E14900","v":"Select"},{"$f":"Import!E15100","v":0},{"$f":"Import!E15300","v":0}]
[]
[null,null,null,null,null,{"$f":"SUM(F627:F826)","v":0}]
[]
[null,"(C) ASSET-BACKED AND STRUCTURED SECURITIES"]
[]
[null,null,"Enter # of Asset Types",{"$f":"Import!E15301","v":0}]
[null,null,null,null,{"$f":"YEAR($C$3)","v":2023},2023,"Weighted"]
[null,"Asset Type","Currency","BSCR Rating","Nominal Amount","Fair Value","Average YTM","Effective Duration","Comments"]
[1,{"$f":"Import!E15302","v":"Select"},{"$f":"Import!E15452","v":"Select"},{"$f":"Import!E15602","v":"Select"},{"$f":"Import!E15752","v":0},{"$f":"Import!E15902","v":0},{"$f":"Import!E16052","v":0},{"$f":"Import!E16202","v":0},{"$f":"Import!E16352","v":0}]
[{"$f":"A835+1","v":2},{"$f":"Import!E15303","v":"Select"},{"$f":"Import!E15453","v":"Select"},{"$f":"Import!E15603","v":"Select"},{"$f":"Import!E15753","v":0},{"$f":"Import!E15903","v":0},{"$f":"Import!E16053","v":0},{"$f":"Import!E16203","v":0},{"$f":"Import!E16353","v":0}]
[{"$f":"A836+1","v":3},{"$f":"Import!E15304","v":"Select"},{"$f":"Import!E15454","v":"Select"},{"$f":"Import!E15604","v":"Select"},{"$f":"Import!E15754","v":0},{"$f":"Import!E15904","v":0},{"$f":"Import!E16054","v":0},{"$f":"Import!E16204","v":0},{"$f":"Import!E16354","v":0}]
[4,{"$f":"Import!E15305","v":"Select"},{"$f":"Import!E15455","v":"Select"},{"$f":"Import!E15605","v":"Select"},{"$f":"Import!E15755","v":0},{"$f":"Import!E15905","v":0},{"$f":"Import!E16055","v":0},{"$f":"Import!E16205","v":0},{"$f":"Import!E16355","v":0}]
[5,{"$f":"Import!E15306","v":"Select"},{"$f":"Import!E15456","v":"Select"},{"$f":"Import!E15606","v":"Select"},{"$f":"Import!E15756","v":0},{"$f":"Import!E15906","v":0},{"$f":"Import!E16056","v":0},{"$f":"Import!E16206","v":0},{"$f":"Import!E16356","v":0}]
[6,{"$f":"Import!E15307","v":"Select"},{"$f":"Import!E15457","v":"Select"},{"$f":"Import!E15607","v":"Select"},{"$f":"Import!E15757","v":0},{"$f":"Import!E15907","v":0},{"$f":"Import!E16057","v":0},{"$f":"Import!E16207","v":0},{"$f":"Import!E16357","v":0}]
[7,{"$f":"Import!E15308","v":"Select"},{"$f":"Import!E15458","v":"Select"},{"$f":"Import!E15608","v":"Select"},{"$f":"Import!E15758","v":0},{"$f":"Import!E15908","v":0},{"$f":"Import!E16058","v":0},{"$f":"Import!E16208","v":0},{"$f":"Import!E16358","v":0}]
[8,{"$f":"Import!E15309","v":"Select"},{"$f":"Import!E15459","v":"Select"},{"$f":"Import!E15609","v":"Select"},{"$f":"Import!E15759","v":0},{"$f":"Import!E15909","v":0},{"$f":"Import!E16059","v":0},{"$f":"Import!E16209","v":0},{"$f":"Import!E16359","v":0}]
[9,{"$f":"Import!E15310","v":"Select"},{"$f":"Import!E15460","v":"Select"},{"$f":"Import!E15610","v":"Select"},{"$f":"Import!E15760","v":0},{"$f":"Import!E15910","v":0},{"$f":"Import!E16060","v":0},{"$f":"Import!E16210","v":0},{"$f":"Import!E16360","v":0}]
[10,{"$f":"Import!E15311","v":"Select"},{"$f":"Import!E15461","v":"Select"},{"$f":"Import!E15611","v":"Select"},{"$f":"Import!E15761","v":0},{"$f":"Import!E15911","v":0},{"$f":"Import!E16061","v":0},{"$f":"Import!E16211","v":0},{"$f":"Import!E16361","v":0}]
[11,{"$f":"Import!E15312","v":"Select"},{"$f":"Import!E15462","v":"Select"},{"$f":"Import!E15612","v":"Select"},{"$f":"Import!E15762","v":0},{"$f":"Import!E15912","v":0},{"$f":"Import!E16062","v":0},{"$f":"Import!E16212","v":0},{"$f":"Import!E16362","v":0}]
[12,{"$f":"Import!E15313","v":"Select"},{"$f":"Import!E15463","v":"Select"},{"$f":"Import!E15613","v":"Select"},{"$f":"Import!E15763","v":0},{"$f":"Import!E15913","v":0},{"$f":"Import!E16063","v":0},{"$f":"Import!E16213","v":0},{"$f":"Import!E16363","v":0}]
[13,{"$f":"Import!E15314","v":"Select"},{"$f":"Import!E15464","v":"Select"},{"$f":"Import!E15614","v":"Select"},{"$f":"Import!E15764","v":0},{"$f":"Import!E15914","v":0},{"$f":"Import!E16064","v":0},{"$f":"Import!E16214","v":0},{"$f":"Import!E16364","v":0}]
[14,{"$f":"Import!E15315","v":"Select"},{"$f":"Import!E15465","v":"Select"},{"$f":"Import!E15615","v":"Select"},{"$f":"Import!E15765","v":0},{"$f":"Import!E15915","v":0},{"$f":"Import!E16065","v":0},{"$f":"Import!E16215","v":0},{"$f":"Import!E16365","v":0}]
[15,{"$f":"Import!E15316","v":"Select"},{"$f":"Import!E15466","v":"Select"},{"$f":"Import!E15616","v":"Select"},{"$f":"Import!E15766","v":0},{"$f":"Import!E15916","v":0},{"$f":"Import!E16066","v":0},{"$f":"Import!E16216","v":0},{"$f":"Import!E16366","v":0}]
[16,{"$f":"Import!E15317","v":"Select"},{"$f":"Import!E15467","v":"Select"},{"$f":"Import!E15617","v":"Select"},{"$f":"Import!E15767","v":0},{"$f":"Import!E15917","v":0},{"$f":"Import!E16067","v":0},{"$f":"Import!E16217","v":0},{"$f":"Import!E16367","v":0}]
[17,{"$f":"Import!E15318","v":"Select"},{"$f":"Import!E15468","v":"Select"},{"$f":"Import!E15618","v":"Select"},{"$f":"Import!E15768","v":0},{"$f":"Import!E15918","v":0},{"$f":"Import!E16068","v":0},{"$f":"Import!E16218","v":0},{"$f":"Import!E16368","v":0}]
[18,{"$f":"Import!E15319","v":"Select"},{"$f":"Import!E15469","v":"Select"},{"$f":"Import!E15619","v":"Select"},{"$f":"Import!E15769","v":0},{"$f":"Import!E15919","v":0},{"$f":"Import!E16069","v":0},{"$f":"Import!E16219","v":0},{"$f":"Import!E16369","v":0}]
[19,{"$f":"Import!E15320","v":"Select"},{"$f":"Import!E15470","v":"Select"},{"$f":"Import!E15620","v":"Select"},{"$f":"Import!E15770","v":0},{"$f":"Import!E15920","v":0},{"$f":"Import!E16070","v":0},{"$f":"Import!E16220","v":0},{"$f":"Import!E16370","v":0}]
[20,{"$f":"Import!E15321","v":"Select"},{"$f":"Import!E15471","v":"Select"},{"$f":"Import!E15621","v":"Select"},{"$f":"Import!E15771","v":0},{"$f":"Import!E15921","v":0},{"$f":"Import!E16071","v":0},{"$f":"Import!E16221","v":0},{"$f":"Import!E16371","v":0}]
[21,{"$f":"Import!E15322","v":"Select"},{"$f":"Import!E15472","v":"Select"},{"$f":"Import!E15622","v":"Select"},{"$f":"Import!E15772","v":0},{"$f":"Import!E15922","v":0},{"$f":"Import!E16072","v":0},{"$f":"Import!E16222","v":0},{"$f":"Import!E16372","v":0}]
[22,{"$f":"Import!E15323","v":"Select"},{"$f":"Import!E15473","v":"Select"},{"$f":"Import!E15623","v":"Select"},{"$f":"Import!E15773","v":0},{"$f":"Import!E15923","v":0},{"$f":"Import!E16073","v":0},{"$f":"Import!E16223","v":0},{"$f":"Import!E16373","v":0}]
[23,{"$f":"Import!E15324","v":"Select"},{"$f":"Import!E15474","v":"Select"},{"$f":"Import!E15624","v":"Select"},{"$f":"Import!E15774","v":0},{"$f":"Import!E15924","v":0},{"$f":"Import!E16074","v":0},{"$f":"Import!E16224","v":0},{"$f":"Import!E16374","v":0}]
[24,{"$f":"Import!E15325","v":"Select"},{"$f":"Import!E15475","v":"Select"},{"$f":"Import!E15625","v":"Select"},{"$f":"Import!E15775","v":0},{"$f":"Import!E15925","v":0},{"$f":"Import!E16075","v":0},{"$f":"Import!E16225","v":0},{"$f":"Import!E16375","v":0}]
[25,{"$f":"Import!E15326","v":"Select"},{"$f":"Import!E15476","v":"Select"},{"$f":"Import!E15626","v":"Select"},{"$f":"Import!E15776","v":0},{"$f":"Import!E15926","v":0},{"$f":"Import!E16076","v":0},{"$f":"Import!E16226","v":0},{"$f":"Import!E16376","v":0}]
[26,{"$f":"Import!E15327","v":"Select"},{"$f":"Import!E15477","v":"Select"},{"$f":"Import!E15627","v":"Select"},{"$f":"Import!E15777","v":0},{"$f":"Import!E15927","v":0},{"$f":"Import!E16077","v":0},{"$f":"Import!E16227","v":0},{"$f":"Import!E16377","v":0}]
[27,{"$f":"Import!E15328","v":"Select"},{"$f":"Import!E15478","v":"Select"},{"$f":"Import!E15628","v":"Select"},{"$f":"Import!E15778","v":0},{"$f":"Import!E15928","v":0},{"$f":"Import!E16078","v":0},{"$f":"Import!E16228","v":0},{"$f":"Import!E16378","v":0}]
[28,{"$f":"Import!E15329","v":"Select"},{"$f":"Import!E15479","v":"Select"},{"$f":"Import!E15629","v":"Select"},{"$f":"Import!E15779","v":0},{"$f":"Import!E15929","v":0},{"$f":"Import!E16079","v":0},{"$f":"Import!E16229","v":0},{"$f":"Import!E16379","v":0}]
[29,{"$f":"Import!E15330","v":"Select"},{"$f":"Import!E15480","v":"Select"},{"$f":"Import!E15630","v":"Select"},{"$f":"Import!E15780","v":0},{"$f":"Import!E15930","v":0},{"$f":"Import!E16080","v":0},{"$f":"Import!E16230","v":0},{"$f":"Import!E16380","v":0}]
[30,{"$f":"Import!E15331","v":"Select"},{"$f":"Import!E15481","v":"Select"},{"$f":"Import!E15631","v":"Select"},{"$f":"Import!E15781","v":0},{"$f":"Import!E15931","v":0},{"$f":"Import!E16081","v":0},{"$f":"Import!E16231","v":0},{"$f":"Import!E16381","v":0}]
[31,{"$f":"Import!E15332","v":"Select"},{"$f":"Import!E15482","v":"Select"},{"$f":"Import!E15632","v":"Select"},{"$f":"Import!E15782","v":0},{"$f":"Import!E15932","v":0},{"$f":"Import!E16082","v":0},{"$f":"Import!E16232","v":0},{"$f":"Import!E16382","v":0}]
[32,{"$f":"Import!E15333","v":"Select"},{"$f":"Import!E15483","v":"Select"},{"$f":"Import!E15633","v":"Select"},{"$f":"Import!E15783","v":0},{"$f":"Import!E15933","v":0},{"$f":"Import!E16083","v":0},{"$f":"Import!E16233","v":0},{"$f":"Import!E16383","v":0}]
[33,{"$f":"Import!E15334","v":"Select"},{"$f":"Import!E15484","v":"Select"},{"$f":"Import!E15634","v":"Select"},{"$f":"Import!E15784","v":0},{"$f":"Import!E15934","v":0},{"$f":"Import!E16084","v":0},{"$f":"Import!E16234","v":0},{"$f":"Import!E16384","v":0}]
[34,{"$f":"Import!E15335","v":"Select"},{"$f":"Import!E15485","v":"Select"},{"$f":"Import!E15635","v":"Select"},{"$f":"Import!E15785","v":0},{"$f":"Import!E15935","v":0},{"$f":"Import!E16085","v":0},{"$f":"Import!E16235","v":0},{"$f":"Import!E16385","v":0}]
[35,{"$f":"Import!E15336","v":"Select"},{"$f":"Import!E15486","v":"Select"},{"$f":"Import!E15636","v":"Select"},{"$f":"Import!E15786","v":0},{"$f":"Import!E15936","v":0},{"$f":"Import!E16086","v":0},{"$f":"Import!E16236","v":0},{"$f":"Import!E16386","v":0}]
[36,{"$f":"Import!E15337","v":"Select"},{"$f":"Import!E15487","v":"Select"},{"$f":"Import!E15637","v":"Select"},{"$f":"Import!E15787","v":0},{"$f":"Import!E15937","v":0},{"$f":"Import!E16087","v":0},{"$f":"Import!E16237","v":0},{"$f":"Import!E16387","v":0}]
[37,{"$f":"Import!E15338","v":"Select"},{"$f":"Import!E15488","v":"Select"},{"$f":"Import!E15638","v":"Select"},{"$f":"Import!E15788","v":0},{"$f":"Import!E15938","v":0},{"$f":"Import!E16088","v":0},{"$f":"Import!E16238","v":0},{"$f":"Import!E16388","v":0}]
[38,{"$f":"Import!E15339","v":"Select"},{"$f":"Import!E15489","v":"Select"},{"$f":"Import!E15639","v":"Select"},{"$f":"Import!E15789","v":0},{"$f":"Import!E15939","v":0},{"$f":"Import!E16089","v":0},{"$f":"Import!E16239","v":0},{"$f":"Import!E16389","v":0}]
[39,{"$f":"Import!E15340","v":"Select"},{"$f":"Import!E15490","v":"Select"},{"$f":"Import!E15640","v":"Select"},{"$f":"Import!E15790","v":0},{"$f":"Import!E15940","v":0},{"$f":"Import!E16090","v":0},{"$f":"Import!E16240","v":0},{"$f":"Import!E16390","v":0}]
[40,{"$f":"Import!E15341","v":"Select"},{"$f":"Import!E15491","v":"Select"},{"$f":"Import!E15641","v":"Select"},{"$f":"Import!E15791","v":0},{"$f":"Import!E15941","v":0},{"$f":"Import!E16091","v":0},{"$f":"Import!E16241","v":0},{"$f":"Import!E16391","v":0}]
[41,{"$f":"Import!E15342","v":"Select"},{"$f":"Import!E15492","v":"Select"},{"$f":"Import!E15642","v":"Select"},{"$f":"Import!E15792","v":0},{"$f":"Import!E15942","v":0},{"$f":"Import!E16092","v":0},{"$f":"Import!E16242","v":0},{"$f":"Import!E16392","v":0}]
[42,{"$f":"Import!E15343","v":"Select"},{"$f":"Import!E15493","v":"Select"},{"$f":"Import!E15643","v":"Select"},{"$f":"Import!E15793","v":0},{"$f":"Import!E15943","v":0},{"$f":"Import!E16093","v":0},{"$f":"Import!E16243","v":0},{"$f":"Import!E16393","v":0}]
[43,{"$f":"Import!E15344","v":"Select"},{"$f":"Import!E15494","v":"Select"},{"$f":"Import!E15644","v":"Select"},{"$f":"Import!E15794","v":0},{"$f":"Import!E15944","v":0},{"$f":"Import!E16094","v":0},{"$f":"Import!E16244","v":0},{"$f":"Import!E16394","v":0}]
[44,{"$f":"Import!E15345","v":"Select"},{"$f":"Import!E15495","v":"Select"},{"$f":"Import!E15645","v":"Select"},{"$f":"Import!E15795","v":0},{"$f":"Import!E15945","v":0},{"$f":"Import!E16095","v":0},{"$f":"Import!E16245","v":0},{"$f":"Import!E16395","v":0}]
[45,{"$f":"Import!E15346","v":"Select"},{"$f":"Import!E15496","v":"Select"},{"$f":"Import!E15646","v":"Select"},{"$f":"Import!E15796","v":0},{"$f":"Import!E15946","v":0},{"$f":"Import!E16096","v":0},{"$f":"Import!E16246","v":0},{"$f":"Import!E16396","v":0}]
[46,{"$f":"Import!E15347","v":"Select"},{"$f":"Import!E15497","v":"Select"},{"$f":"Import!E15647","v":"Select"},{"$f":"Import!E15797","v":0},{"$f":"Import!E15947","v":0},{"$f":"Import!E16097","v":0},{"$f":"Import!E16247","v":0},{"$f":"Import!E16397","v":0}]
[47,{"$f":"Import!E15348","v":"Select"},{"$f":"Import!E15498","v":"Select"},{"$f":"Import!E15648","v":"Select"},{"$f":"Import!E15798","v":0},{"$f":"Import!E15948","v":0},{"$f":"Import!E16098","v":0},{"$f":"Import!E16248","v":0},{"$f":"Import!E16398","v":0}]
[48,{"$f":"Import!E15349","v":"Select"},{"$f":"Import!E15499","v":"Select"},{"$f":"Import!E15649","v":"Select"},{"$f":"Import!E15799","v":0},{"$f":"Import!E15949","v":0},{"$f":"Import!E16099","v":0},{"$f":"Import!E16249","v":0},{"$f":"Import!E16399","v":0}]
[49,{"$f":"Import!E15350","v":"Select"},{"$f":"Import!E15500","v":"Select"},{"$f":"Import!E15650","v":"Select"},{"$f":"Import!E15800","v":0},{"$f":"Import!E15950","v":0},{"$f":"Import!E16100","v":0},{"$f":"Import!E16250","v":0},{"$f":"Import!E16400","v":0}]
[50,{"$f":"Import!E15351","v":"Select"},{"$f":"Import!E15501","v":"Select"},{"$f":"Import!E15651","v":"Select"},{"$f":"Import!E15801","v":0},{"$f":"Import!E15951","v":0},{"$f":"Import!E16101","v":0},{"$f":"Import!E16251","v":0},{"$f":"Import!E16401","v":0}]
[51,{"$f":"Import!E15352","v":"Select"},{"$f":"Import!E15502","v":"Select"},{"$f":"Import!E15652","v":"Select"},{"$f":"Import!E15802","v":0},{"$f":"Import!E15952","v":0},{"$f":"Import!E16102","v":0},{"$f":"Import!E16252","v":0},{"$f":"Import!E16402","v":0}]
[52,{"$f":"Import!E15353","v":"Select"},{"$f":"Import!E15503","v":"Select"},{"$f":"Import!E15653","v":"Select"},{"$f":"Import!E15803","v":0},{"$f":"Import!E15953","v":0},{"$f":"Import!E16103","v":0},{"$f":"Import!E16253","v":0},{"$f":"Import!E16403","v":0}]
[53,{"$f":"Import!E15354","v":"Select"},{"$f":"Import!E15504","v":"Select"},{"$f":"Import!E15654","v":"Select"},{"$f":"Import!E15804","v":0},{"$f":"Import!E15954","v":0},{"$f":"Import!E16104","v":0},{"$f":"Import!E16254","v":0},{"$f":"Import!E16404","v":0}]
[54,{"$f":"Import!E15355","v":"Select"},{"$f":"Import!E15505","v":"Select"},{"$f":"Import!E15655","v":"Select"},{"$f":"Import!E15805","v":0},{"$f":"Import!E15955","v":0},{"$f":"Import!E16105","v":0},{"$f":"Import!E16255","v":0},{"$f":"Import!E16405","v":0}]
[55,{"$f":"Import!E15356","v":"Select"},{"$f":"Import!E15506","v":"Select"},{"$f":"Import!E15656","v":"Select"},{"$f":"Import!E15806","v":0},{"$f":"Import!E15956","v":0},{"$f":"Import!E16106","v":0},{"$f":"Import!E16256","v":0},{"$f":"Import!E16406","v":0}]
[56,{"$f":"Import!E15357","v":"Select"},{"$f":"Import!E15507","v":"Select"},{"$f":"Import!E15657","v":"Select"},{"$f":"Import!E15807","v":0},{"$f":"Import!E15957","v":0},{"$f":"Import!E16107","v":0},{"$f":"Import!E16257","v":0},{"$f":"Import!E16407","v":0}]
[57,{"$f":"Import!E15358","v":"Select"},{"$f":"Import!E15508","v":"Select"},{"$f":"Import!E15658","v":"Select"},{"$f":"Import!E15808","v":0},{"$f":"Import!E15958","v":0},{"$f":"Import!E16108","v":0},{"$f":"Import!E16258","v":0},{"$f":"Import!E16408","v":0}]
[58,{"$f":"Import!E15359","v":"Select"},{"$f":"Import!E15509","v":"Select"},{"$f":"Import!E15659","v":"Select"},{"$f":"Import!E15809","v":0},{"$f":"Import!E15959","v":0},{"$f":"Import!E16109","v":0},{"$f":"Import!E16259","v":0},{"$f":"Import!E16409","v":0}]
[59,{"$f":"Import!E15360","v":"Select"},{"$f":"Import!E15510","v":"Select"},{"$f":"Import!E15660","v":"Select"},{"$f":"Import!E15810","v":0},{"$f":"Import!E15960","v":0},{"$f":"Import!E16110","v":0},{"$f":"Import!E16260","v":0},{"$f":"Import!E16410","v":0}]
[60,{"$f":"Import!E15361","v":"Select"},{"$f":"Import!E15511","v":"Select"},{"$f":"Import!E15661","v":"Select"},{"$f":"Import!E15811","v":0},{"$f":"Import!E15961","v":0},{"$f":"Import!E16111","v":0},{"$f":"Import!E16261","v":0},{"$f":"Import!E16411","v":0}]
[61,{"$f":"Import!E15362","v":"Select"},{"$f":"Import!E15512","v":"Select"},{"$f":"Import!E15662","v":"Select"},{"$f":"Import!E15812","v":0},{"$f":"Import!E15962","v":0},{"$f":"Import!E16112","v":0},{"$f":"Import!E16262","v":0},{"$f":"Import!E16412","v":0}]
[62,{"$f":"Import!E15363","v":"Select"},{"$f":"Import!E15513","v":"Select"},{"$f":"Import!E15663","v":"Select"},{"$f":"Import!E15813","v":0},{"$f":"Import!E15963","v":0},{"$f":"Import!E16113","v":0},{"$f":"Import!E16263","v":0},{"$f":"Import!E16413","v":0}]
[63,{"$f":"Import!E15364","v":"Select"},{"$f":"Import!E15514","v":"Select"},{"$f":"Import!E15664","v":"Select"},{"$f":"Import!E15814","v":0},{"$f":"Import!E15964","v":0},{"$f":"Import!E16114","v":0},{"$f":"Import!E16264","v":0},{"$f":"Import!E16414","v":0}]
[64,{"$f":"Import!E15365","v":"Select"},{"$f":"Import!E15515","v":"Select"},{"$f":"Import!E15665","v":"Select"},{"$f":"Import!E15815","v":0},{"$f":"Import!E15965","v":0},{"$f":"Import!E16115","v":0},{"$f":"Import!E16265","v":0},{"$f":"Import!E16415","v":0}]
[65,{"$f":"Import!E15366","v":"Select"},{"$f":"Import!E15516","v":"Select"},{"$f":"Import!E15666","v":"Select"},{"$f":"Import!E15816","v":0},{"$f":"Import!E15966","v":0},{"$f":"Import!E16116","v":0},{"$f":"Import!E16266","v":0},{"$f":"Import!E16416","v":0}]
[66,{"$f":"Import!E15367","v":"Select"},{"$f":"Import!E15517","v":"Select"},{"$f":"Import!E15667","v":"Select"},{"$f":"Import!E15817","v":0},{"$f":"Import!E15967","v":0},{"$f":"Import!E16117","v":0},{"$f":"Import!E16267","v":0},{"$f":"Import!E16417","v":0}]
[{"$f":"A900+1","v":67},{"$f":"Import!E15368","v":"Select"},{"$f":"Import!E15518","v":"Select"},{"$f":"Import!E15668","v":"Select"},{"$f":"Import!E15818","v":0},{"$f":"Import!E15968","v":0},{"$f":"Import!E16118","v":0},{"$f":"Import!E16268","v":0},{"$f":"Import!E16418","v":0}]
[68,{"$f":"Import!E15369","v":"Select"},{"$f":"Import!E15519","v":"Select"},{"$f":"Import!E15669","v":"Select"},{"$f":"Import!E15819","v":0},{"$f":"Import!E15969","v":0},{"$f":"Import!E16119","v":0},{"$f":"Import!E16269","v":0},{"$f":"Import!E16419","v":0}]
[69,{"$f":"Import!E15370","v":"Select"},{"$f":"Import!E15520","v":"Select"},{"$f":"Import!E15670","v":"Select"},{"$f":"Import!E15820","v":0},{"$f":"Import!E15970","v":0},{"$f":"Import!E16120","v":0},{"$f":"Import!E16270","v":0},{"$f":"Import!E16420","v":0}]
[70,{"$f":"Import!E15371","v":"Select"},{"$f":"Import!E15521","v":"Select"},{"$f":"Import!E15671","v":"Select"},{"$f":"Import!E15821","v":0},{"$f":"Import!E15971","v":0},{"$f":"Import!E16121","v":0},{"$f":"Import!E16271","v":0},{"$f":"Import!E16421","v":0}]
[71,{"$f":"Import!E15372","v":"Select"},{"$f":"Import!E15522","v":"Select"},{"$f":"Import!E15672","v":"Select"},{"$f":"Import!E15822","v":0},{"$f":"Import!E15972","v":0},{"$f":"Import!E16122","v":0},{"$f":"Import!E16272","v":0},{"$f":"Import!E16422","v":0}]
[72,{"$f":"Import!E15373","v":"Select"},{"$f":"Import!E15523","v":"Select"},{"$f":"Import!E15673","v":"Select"},{"$f":"Import!E15823","v":0},{"$f":"Import!E15973","v":0},{"$f":"Import!E16123","v":0},{"$f":"Import!E16273","v":0},{"$f":"Import!E16423","v":0}]
[73,{"$f":"Import!E15374","v":"Select"},{"$f":"Import!E15524","v":"Select"},{"$f":"Import!E15674","v":"Select"},{"$f":"Import!E15824","v":0},{"$f":"Import!E15974","v":0},{"$f":"Import!E16124","v":0},{"$f":"Import!E16274","v":0},{"$f":"Import!E16424","v":0}]
[74,{"$f":"Import!E15375","v":"Select"},{"$f":"Import!E15525","v":"Select"},{"$f":"Import!E15675","v":"Select"},{"$f":"Import!E15825","v":0},{"$f":"Import!E15975","v":0},{"$f":"Import!E16125","v":0},{"$f":"Import!E16275","v":0},{"$f":"Import!E16425","v":0}]
[75,{"$f":"Import!E15376","v":"Select"},{"$f":"Import!E15526","v":"Select"},{"$f":"Import!E15676","v":"Select"},{"$f":"Import!E15826","v":0},{"$f":"Import!E15976","v":0},{"$f":"Import!E16126","v":0},{"$f":"Import!E16276","v":0},{"$f":"Import!E16426","v":0}]
[76,{"$f":"Import!E15377","v":"Select"},{"$f":"Import!E15527","v":"Select"},{"$f":"Import!E15677","v":"Select"},{"$f":"Import!E15827","v":0},{"$f":"Import!E15977","v":0},{"$f":"Import!E16127","v":0},{"$f":"Import!E16277","v":0},{"$f":"Import!E16427","v":0}]
[77,{"$f":"Import!E15378","v":"Select"},{"$f":"Import!E15528","v":"Select"},{"$f":"Import!E15678","v":"Select"},{"$f":"Import!E15828","v":0},{"$f":"Import!E15978","v":0},{"$f":"Import!E16128","v":0},{"$f":"Import!E16278","v":0},{"$f":"Import!E16428","v":0}]
[78,{"$f":"Import!E15379","v":"Select"},{"$f":"Import!E15529","v":"Select"},{"$f":"Import!E15679","v":"Select"},{"$f":"Import!E15829","v":0},{"$f":"Import!E15979","v":0},{"$f":"Import!E16129","v":0},{"$f":"Import!E16279","v":0},{"$f":"Import!E16429","v":0}]
[79,{"$f":"Import!E15380","v":"Select"},{"$f":"Import!E15530","v":"Select"},{"$f":"Import!E15680","v":"Select"},{"$f":"Import!E15830","v":0},{"$f":"Import!E15980","v":0},{"$f":"Import!E16130","v":0},{"$f":"Import!E16280","v":0},{"$f":"Import!E16430","v":0}]
[80,{"$f":"Import!E15381","v":"Select"},{"$f":"Import!E15531","v":"Select"},{"$f":"Import!E15681","v":"Select"},{"$f":"Import!E15831","v":0},{"$f":"Import!E15981","v":0},{"$f":"Import!E16131","v":0},{"$f":"Import!E16281","v":0},{"$f":"Import!E16431","v":0}]
[81,{"$f":"Import!E15382","v":"Select"},{"$f":"Import!E15532","v":"Select"},{"$f":"Import!E15682","v":"Select"},{"$f":"Import!E15832","v":0},{"$f":"Import!E15982","v":0},{"$f":"Import!E16132","v":0},{"$f":"Import!E16282","v":0},{"$f":"Import!E16432","v":0}]
[82,{"$f":"Import!E15383","v":"Select"},{"$f":"Import!E15533","v":"Select"},{"$f":"Import!E15683","v":"Select"},{"$f":"Import!E15833","v":0},{"$f":"Import!E15983","v":0},{"$f":"Import!E16133","v":0},{"$f":"Import!E16283","v":0},{"$f":"Import!E16433","v":0}]
[83,{"$f":"Import!E15384","v":"Select"},{"$f":"Import!E15534","v":"Select"},{"$f":"Import!E15684","v":"Select"},{"$f":"Import!E15834","v":0},{"$f":"Import!E15984","v":0},{"$f":"Import!E16134","v":0},{"$f":"Import!E16284","v":0},{"$f":"Import!E16434","v":0}]
[84,{"$f":"Import!E15385","v":"Select"},{"$f":"Import!E15535","v":"Select"},{"$f":"Import!E15685","v":"Select"},{"$f":"Import!E15835","v":0},{"$f":"Import!E15985","v":0},{"$f":"Import!E16135","v":0},{"$f":"Import!E16285","v":0},{"$f":"Import!E16435","v":0}]
[85,{"$f":"Import!E15386","v":"Select"},{"$f":"Import!E15536","v":"Select"},{"$f":"Import!E15686","v":"Select"},{"$f":"Import!E15836","v":0},{"$f":"Import!E15986","v":0},{"$f":"Import!E16136","v":0},{"$f":"Import!E16286","v":0},{"$f":"Import!E16436","v":0}]
[86,{"$f":"Import!E15387","v":"Select"},{"$f":"Import!E15537","v":"Select"},{"$f":"Import!E15687","v":"Select"},{"$f":"Import!E15837","v":0},{"$f":"Import!E15987","v":0},{"$f":"Import!E16137","v":0},{"$f":"Import!E16287","v":0},{"$f":"Import!E16437","v":0}]
[87,{"$f":"Import!E15388","v":"Select"},{"$f":"Import!E15538","v":"Select"},{"$f":"Import!E15688","v":"Select"},{"$f":"Import!E15838","v":0},{"$f":"Import!E15988","v":0},{"$f":"Import!E16138","v":0},{"$f":"Import!E16288","v":0},{"$f":"Import!E16438","v":0}]
[88,{"$f":"Import!E15389","v":"Select"},{"$f":"Import!E15539","v":"Select"},{"$f":"Import!E15689","v":"Select"},{"$f":"Import!E15839","v":0},{"$f":"Import!E15989","v":0},{"$f":"Import!E16139","v":0},{"$f":"Import!E16289","v":0},{"$f":"Import!E16439","v":0}]
[89,{"$f":"Import!E15390","v":"Select"},{"$f":"Import!E15540","v":"Select"},{"$f":"Import!E15690","v":"Select"},{"$f":"Import!E15840","v":0},{"$f":"Import!E15990","v":0},{"$f":"Import!E16140","v":0},{"$f":"Import!E16290","v":0},{"$f":"Import!E16440","v":0}]
[90,{"$f":"Import!E15391","v":"Select"},{"$f":"Import!E15541","v":"Select"},{"$f":"Import!E15691","v":"Select"},{"$f":"Import!E15841","v":0},{"$f":"Import!E15991","v":0},{"$f":"Import!E16141","v":0},{"$f":"Import!E16291","v":0},{"$f":"Import!E16441","v":0}]
[91,{"$f":"Import!E15392","v":"Select"},{"$f":"Import!E15542","v":"Select"},{"$f":"Import!E15692","v":"Select"},{"$f":"Import!E15842","v":0},{"$f":"Import!E15992","v":0},{"$f":"Import!E16142","v":0},{"$f":"Import!E16292","v":0},{"$f":"Import!E16442","v":0}]
[92,{"$f":"Import!E15393","v":"Select"},{"$f":"Import!E15543","v":"Select"},{"$f":"Import!E15693","v":"Select"},{"$f":"Import!E15843","v":0},{"$f":"Import!E15993","v":0},{"$f":"Import!E16143","v":0},{"$f":"Import!E16293","v":0},{"$f":"Import!E16443","v":0}]
[93,{"$f":"Import!E15394","v":"Select"},{"$f":"Import!E15544","v":"Select"},{"$f":"Import!E15694","v":"Select"},{"$f":"Import!E15844","v":0},{"$f":"Import!E15994","v":0},{"$f":"Import!E16144","v":0},{"$f":"Import!E16294","v":0},{"$f":"Import!E16444","v":0}]
[94,{"$f":"Import!E15395","v":"Select"},{"$f":"Import!E15545","v":"Select"},{"$f":"Import!E15695","v":"Select"},{"$f":"Import!E15845","v":0},{"$f":"Import!E15995","v":0},{"$f":"Import!E16145","v":0},{"$f":"Import!E16295","v":0},{"$f":"Import!E16445","v":0}]
[95,{"$f":"Import!E15396","v":"Select"},{"$f":"Import!E15546","v":"Select"},{"$f":"Import!E15696","v":"Select"},{"$f":"Import!E15846","v":0},{"$f":"Import!E15996","v":0},{"$f":"Import!E16146","v":0},{"$f":"Import!E16296","v":0},{"$f":"Import!E16446","v":0}]
[96,{"$f":"Import!E15397","v":"Select"},{"$f":"Import!E15547","v":"Select"},{"$f":"Import!E15697","v":"Select"},{"$f":"Import!E15847","v":0},{"$f":"Import!E15997","v":0},{"$f":"Import!E16147","v":0},{"$f":"Import!E16297","v":0},{"$f":"Import!E16447","v":0}]
[97,{"$f":"Import!E15398","v":"Select"},{"$f":"Import!E15548","v":"Select"},{"$f":"Import!E15698","v":"Select"},{"$f":"Import!E15848","v":0},{"$f":"Import!E15998","v":0},{"$f":"Import!E16148","v":0},{"$f":"Import!E16298","v":0},{"$f":"Import!E16448","v":0}]
[98,{"$f":"Import!E15399","v":"Select"},{"$f":"Import!E15549","v":"Select"},{"$f":"Import!E15699","v":"Select"},{"$f":"Import!E15849","v":0},{"$f":"Import!E15999","v":0},{"$f":"Import!E16149","v":0},{"$f":"Import!E16299","v":0},{"$f":"Import!E16449","v":0}]
[99,{"$f":"Import!E15400","v":"Select"},{"$f":"Import!E15550","v":"Select"},{"$f":"Import!E15700","v":"Select"},{"$f":"Import!E15850","v":0},{"$f":"Import!E16000","v":0},{"$f":"Import!E16150","v":0},{"$f":"Import!E16300","v":0},{"$f":"Import!E16450","v":0}]
[100,{"$f":"Import!E15401","v":"Select"},{"$f":"Import!E15551","v":"Select"},{"$f":"Import!E15701","v":"Select"},{"$f":"Import!E15851","v":0},{"$f":"Import!E16001","v":0},{"$f":"Import!E16151","v":0},{"$f":"Import!E16301","v":0},{"$f":"Import!E16451","v":0}]
[101,{"$f":"Import!E15402","v":"Select"},{"$f":"Import!E15552","v":"Select"},{"$f":"Import!E15702","v":"Select"},{"$f":"Import!E15852","v":0},{"$f":"Import!E16002","v":0},{"$f":"Import!E16152","v":0},{"$f":"Import!E16302","v":0},{"$f":"Import!E16452","v":0}]
[102,{"$f":"Import!E15403","v":"Select"},{"$f":"Import!E15553","v":"Select"},{"$f":"Import!E15703","v":"Select"},{"$f":"Import!E15853","v":0},{"$f":"Import!E16003","v":0},{"$f":"Import!E16153","v":0},{"$f":"Import!E16303","v":0},{"$f":"Import!E16453","v":0}]
[103,{"$f":"Import!E15404","v":"Select"},{"$f":"Import!E15554","v":"Select"},{"$f":"Import!E15704","v":"Select"},{"$f":"Import!E15854","v":0},{"$f":"Import!E16004","v":0},{"$f":"Import!E16154","v":0},{"$f":"Import!E16304","v":0},{"$f":"Import!E16454","v":0}]
[104,{"$f":"Import!E15405","v":"Select"},{"$f":"Import!E15555","v":"Select"},{"$f":"Import!E15705","v":"Select"},{"$f":"Import!E15855","v":0},{"$f":"Import!E16005","v":0},{"$f":"Import!E16155","v":0},{"$f":"Import!E16305","v":0},{"$f":"Import!E16455","v":0}]
[105,{"$f":"Import!E15406","v":"Select"},{"$f":"Import!E15556","v":"Select"},{"$f":"Import!E15706","v":"Select"},{"$f":"Import!E15856","v":0},{"$f":"Import!E16006","v":0},{"$f":"Import!E16156","v":0},{"$f":"Import!E16306","v":0},{"$f":"Import!E16456","v":0}]
[106,{"$f":"Import!E15407","v":"Select"},{"$f":"Import!E15557","v":"Select"},{"$f":"Import!E15707","v":"Select"},{"$f":"Import!E15857","v":0},{"$f":"Import!E16007","v":0},{"$f":"Import!E16157","v":0},{"$f":"Import!E16307","v":0},{"$f":"Import!E16457","v":0}]
[107,{"$f":"Import!E15408","v":"Select"},{"$f":"Import!E15558","v":"Select"},{"$f":"Import!E15708","v":"Select"},{"$f":"Import!E15858","v":0},{"$f":"Import!E16008","v":0},{"$f":"Import!E16158","v":0},{"$f":"Import!E16308","v":0},{"$f":"Import!E16458","v":0}]
[108,{"$f":"Import!E15409","v":"Select"},{"$f":"Import!E15559","v":"Select"},{"$f":"Import!E15709","v":"Select"},{"$f":"Import!E15859","v":0},{"$f":"Import!E16009","v":0},{"$f":"Import!E16159","v":0},{"$f":"Import!E16309","v":0},{"$f":"Import!E16459","v":0}]
[109,{"$f":"Import!E15410","v":"Select"},{"$f":"Import!E15560","v":"Select"},{"$f":"Import!E15710","v":"Select"},{"$f":"Import!E15860","v":0},{"$f":"Import!E16010","v":0},{"$f":"Import!E16160","v":0},{"$f":"Import!E16310","v":0},{"$f":"Import!E16460","v":0}]
[110,{"$f":"Import!E15411","v":"Select"},{"$f":"Import!E15561","v":"Select"},{"$f":"Import!E15711","v":"Select"},{"$f":"Import!E15861","v":0},{"$f":"Import!E16011","v":0},{"$f":"Import!E16161","v":0},{"$f":"Import!E16311","v":0},{"$f":"Import!E16461","v":0}]
[111,{"$f":"Import!E15412","v":"Select"},{"$f":"Import!E15562","v":"Select"},{"$f":"Import!E15712","v":"Select"},{"$f":"Import!E15862","v":0},{"$f":"Import!E16012","v":0},{"$f":"Import!E16162","v":0},{"$f":"Import!E16312","v":0},{"$f":"Import!E16462","v":0}]
[112,{"$f":"Import!E15413","v":"Select"},{"$f":"Import!E15563","v":"Select"},{"$f":"Import!E15713","v":"Select"},{"$f":"Import!E15863","v":0},{"$f":"Import!E16013","v":0},{"$f":"Import!E16163","v":0},{"$f":"Import!E16313","v":0},{"$f":"Import!E16463","v":0}]
[113,{"$f":"Import!E15414","v":"Select"},{"$f":"Import!E15564","v":"Select"},{"$f":"Import!E15714","v":"Select"},{"$f":"Import!E15864","v":0},{"$f":"Import!E16014","v":0},{"$f":"Import!E16164","v":0},{"$f":"Import!E16314","v":0},{"$f":"Import!E16464","v":0}]
[114,{"$f":"Import!E15415","v":"Select"},{"$f":"Import!E15565","v":"Select"},{"$f":"Import!E15715","v":"Select"},{"$f":"Import!E15865","v":0},{"$f":"Import!E16015","v":0},{"$f":"Import!E16165","v":0},{"$f":"Import!E16315","v":0},{"$f":"Import!E16465","v":0}]
[115,{"$f":"Import!E15416","v":"Select"},{"$f":"Import!E15566","v":"Select"},{"$f":"Import!E15716","v":"Select"},{"$f":"Import!E15866","v":0},{"$f":"Import!E16016","v":0},{"$f":"Import!E16166","v":0},{"$f":"Import!E16316","v":0},{"$f":"Import!E16466","v":0}]
[116,{"$f":"Import!E15417","v":"Select"},{"$f":"Import!E15567","v":"Select"},{"$f":"Import!E15717","v":"Select"},{"$f":"Import!E15867","v":0},{"$f":"Import!E16017","v":0},{"$f":"Import!E16167","v":0},{"$f":"Import!E16317","v":0},{"$f":"Import!E16467","v":0}]
[117,{"$f":"Import!E15418","v":"Select"},{"$f":"Import!E15568","v":"Select"},{"$f":"Import!E15718","v":"Select"},{"$f":"Import!E15868","v":0},{"$f":"Import!E16018","v":0},{"$f":"Import!E16168","v":0},{"$f":"Import!E16318","v":0},{"$f":"Import!E16468","v":0}]
[118,{"$f":"Import!E15419","v":"Select"},{"$f":"Import!E15569","v":"Select"},{"$f":"Import!E15719","v":"Select"},{"$f":"Import!E15869","v":0},{"$f":"Import!E16019","v":0},{"$f":"Import!E16169","v":0},{"$f":"Import!E16319","v":0},{"$f":"Import!E16469","v":0}]
[119,{"$f":"Import!E15420","v":"Select"},{"$f":"Import!E15570","v":"Select"},{"$f":"Import!E15720","v":"Select"},{"$f":"Import!E15870","v":0},{"$f":"Import!E16020","v":0},{"$f":"Import!E16170","v":0},{"$f":"Import!E16320","v":0},{"$f":"Import!E16470","v":0}]
[120,{"$f":"Import!E15421","v":"Select"},{"$f":"Import!E15571","v":"Select"},{"$f":"Import!E15721","v":"Select"},{"$f":"Import!E15871","v":0},{"$f":"Import!E16021","v":0},{"$f":"Import!E16171","v":0},{"$f":"Import!E16321","v":0},{"$f":"Import!E16471","v":0}]
[121,{"$f":"Import!E15422","v":"Select"},{"$f":"Import!E15572","v":"Select"},{"$f":"Import!E15722","v":"Select"},{"$f":"Import!E15872","v":0},{"$f":"Import!E16022","v":0},{"$f":"Import!E16172","v":0},{"$f":"Import!E16322","v":0},{"$f":"Import!E16472","v":0}]
[122,{"$f":"Import!E15423","v":"Select"},{"$f":"Import!E15573","v":"Select"},{"$f":"Import!E15723","v":"Select"},{"$f":"Import!E15873","v":0},{"$f":"Import!E16023","v":0},{"$f":"Import!E16173","v":0},{"$f":"Import!E16323","v":0},{"$f":"Import!E16473","v":0}]
[123,{"$f":"Import!E15424","v":"Select"},{"$f":"Import!E15574","v":"Select"},{"$f":"Import!E15724","v":"Select"},{"$f":"Import!E15874","v":0},{"$f":"Import!E16024","v":0},{"$f":"Import!E16174","v":0},{"$f":"Import!E16324","v":0},{"$f":"Import!E16474","v":0}]
[124,{"$f":"Import!E15425","v":"Select"},{"$f":"Import!E15575","v":"Select"},{"$f":"Import!E15725","v":"Select"},{"$f":"Import!E15875","v":0},{"$f":"Import!E16025","v":0},{"$f":"Import!E16175","v":0},{"$f":"Import!E16325","v":0},{"$f":"Import!E16475","v":0}]
[125,{"$f":"Import!E15426","v":"Select"},{"$f":"Import!E15576","v":"Select"},{"$f":"Import!E15726","v":"Select"},{"$f":"Import!E15876","v":0},{"$f":"Import!E16026","v":0},{"$f":"Import!E16176","v":0},{"$f":"Import!E16326","v":0},{"$f":"Import!E16476","v":0}]
[126,{"$f":"Import!E15427","v":"Select"},{"$f":"Import!E15577","v":"Select"},{"$f":"Import!E15727","v":"Select"},{"$f":"Import!E15877","v":0},{"$f":"Import!E16027","v":0},{"$f":"Import!E16177","v":0},{"$f":"Import!E16327","v":0},{"$f":"Import!E16477","v":0}]
[127,{"$f":"Import!E15428","v":"Select"},{"$f":"Import!E15578","v":"Select"},{"$f":"Import!E15728","v":"Select"},{"$f":"Import!E15878","v":0},{"$f":"Import!E16028","v":0},{"$f":"Import!E16178","v":0},{"$f":"Import!E16328","v":0},{"$f":"Import!E16478","v":0}]
[128,{"$f":"Import!E15429","v":"Select"},{"$f":"Import!E15579","v":"Select"},{"$f":"Import!E15729","v":"Select"},{"$f":"Import!E15879","v":0},{"$f":"Import!E16029","v":0},{"$f":"Import!E16179","v":0},{"$f":"Import!E16329","v":0},{"$f":"Import!E16479","v":0}]
[129,{"$f":"Import!E15430","v":"Select"},{"$f":"Import!E15580","v":"Select"},{"$f":"Import!E15730","v":"Select"},{"$f":"Import!E15880","v":0},{"$f":"Import!E16030","v":0},{"$f":"Import!E16180","v":0},{"$f":"Import!E16330","v":0},{"$f":"Import!E16480","v":0}]
[130,{"$f":"Import!E15431","v":"Select"},{"$f":"Import!E15581","v":"Select"},{"$f":"Import!E15731","v":"Select"},{"$f":"Import!E15881","v":0},{"$f":"Import!E16031","v":0},{"$f":"Import!E16181","v":0},{"$f":"Import!E16331","v":0},{"$f":"Import!E16481","v":0}]
[{"$f":"A964+1","v":131},{"$f":"Import!E15432","v":"Select"},{"$f":"Import!E15582","v":"Select"},{"$f":"Import!E15732","v":"Select"},{"$f":"Import!E15882","v":0},{"$f":"Import!E16032","v":0},{"$f":"Import!E16182","v":0},{"$f":"Import!E16332","v":0},{"$f":"Import!E16482","v":0}]
[132,{"$f":"Import!E15433","v":"Select"},{"$f":"Import!E15583","v":"Select"},{"$f":"Import!E15733","v":"Select"},{"$f":"Import!E15883","v":0},{"$f":"Import!E16033","v":0},{"$f":"Import!E16183","v":0},{"$f":"Import!E16333","v":0},{"$f":"Import!E16483","v":0}]
[133,{"$f":"Import!E15434","v":"Select"},{"$f":"Import!E15584","v":"Select"},{"$f":"Import!E15734","v":"Select"},{"$f":"Import!E15884","v":0},{"$f":"Import!E16034","v":0},{"$f":"Import!E16184","v":0},{"$f":"Import!E16334","v":0},{"$f":"Import!E16484","v":0}]
[134,{"$f":"Import!E15435","v":"Select"},{"$f":"Import!E15585","v":"Select"},{"$f":"Import!E15735","v":"Select"},{"$f":"Import!E15885","v":0},{"$f":"Import!E16035","v":0},{"$f":"Import!E16185","v":0},{"$f":"Import!E16335","v":0},{"$f":"Import!E16485","v":0}]
[135,{"$f":"Import!E15436","v":"Select"},{"$f":"Import!E15586","v":"Select"},{"$f":"Import!E15736","v":"Select"},{"$f":"Import!E15886","v":0},{"$f":"Import!E16036","v":0},{"$f":"Import!E16186","v":0},{"$f":"Import!E16336","v":0},{"$f":"Import!E16486","v":0}]
[136,{"$f":"Import!E15437","v":"Select"},{"$f":"Import!E15587","v":"Select"},{"$f":"Import!E15737","v":"Select"},{"$f":"Import!E15887","v":0},{"$f":"Import!E16037","v":0},{"$f":"Import!E16187","v":0},{"$f":"Import!E16337","v":0},{"$f":"Import!E16487","v":0}]
[137,{"$f":"Import!E15438","v":"Select"},{"$f":"Import!E15588","v":"Select"},{"$f":"Import!E15738","v":"Select"},{"$f":"Import!E15888","v":0},{"$f":"Import!E16038","v":0},{"$f":"Import!E16188","v":0},{"$f":"Import!E16338","v":0},{"$f":"Import!E16488","v":0}]
[138,{"$f":"Import!E15439","v":"Select"},{"$f":"Import!E15589","v":"Select"},{"$f":"Import!E15739","v":"Select"},{"$f":"Import!E15889","v":0},{"$f":"Import!E16039","v":0},{"$f":"Import!E16189","v":0},{"$f":"Import!E16339","v":0},{"$f":"Import!E16489","v":0}]
[139,{"$f":"Import!E15440","v":"Select"},{"$f":"Import!E15590","v":"Select"},{"$f":"Import!E15740","v":"Select"},{"$f":"Import!E15890","v":0},{"$f":"Import!E16040","v":0},{"$f":"Import!E16190","v":0},{"$f":"Import!E16340","v":0},{"$f":"Import!E16490","v":0}]
[140,{"$f":"Import!E15441","v":"Select"},{"$f":"Import!E15591","v":"Select"},{"$f":"Import!E15741","v":"Select"},{"$f":"Import!E15891","v":0},{"$f":"Import!E16041","v":0},{"$f":"Import!E16191","v":0},{"$f":"Import!E16341","v":0},{"$f":"Import!E16491","v":0}]
[141,{"$f":"Import!E15442","v":"Select"},{"$f":"Import!E15592","v":"Select"},{"$f":"Import!E15742","v":"Select"},{"$f":"Import!E15892","v":0},{"$f":"Import!E16042","v":0},{"$f":"Import!E16192","v":0},{"$f":"Import!E16342","v":0},{"$f":"Import!E16492","v":0}]
[142,{"$f":"Import!E15443","v":"Select"},{"$f":"Import!E15593","v":"Select"},{"$f":"Import!E15743","v":"Select"},{"$f":"Import!E15893","v":0},{"$f":"Import!E16043","v":0},{"$f":"Import!E16193","v":0},{"$f":"Import!E16343","v":0},{"$f":"Import!E16493","v":0}]
[143,{"$f":"Import!E15444","v":"Select"},{"$f":"Import!E15594","v":"Select"},{"$f":"Import!E15744","v":"Select"},{"$f":"Import!E15894","v":0},{"$f":"Import!E16044","v":0},{"$f":"Import!E16194","v":0},{"$f":"Import!E16344","v":0},{"$f":"Import!E16494","v":0}]
[144,{"$f":"Import!E15445","v":"Select"},{"$f":"Import!E15595","v":"Select"},{"$f":"Import!E15745","v":"Select"},{"$f":"Import!E15895","v":0},{"$f":"Import!E16045","v":0},{"$f":"Import!E16195","v":0},{"$f":"Import!E16345","v":0},{"$f":"Import!E16495","v":0}]
[145,{"$f":"Import!E15446","v":"Select"},{"$f":"Import!E15596","v":"Select"},{"$f":"Import!E15746","v":"Select"},{"$f":"Import!E15896","v":0},{"$f":"Import!E16046","v":0},{"$f":"Import!E16196","v":0},{"$f":"Import!E16346","v":0},{"$f":"Import!E16496","v":0}]
[146,{"$f":"Import!E15447","v":"Select"},{"$f":"Import!E15597","v":"Select"},{"$f":"Import!E15747","v":"Select"},{"$f":"Import!E15897","v":0},{"$f":"Import!E16047","v":0},{"$f":"Import!E16197","v":0},{"$f":"Import!E16347","v":0},{"$f":"Import!E16497","v":0}]
[147,{"$f":"Import!E15448","v":"Select"},{"$f":"Import!E15598","v":"Select"},{"$f":"Import!E15748","v":"Select"},{"$f":"Import!E15898","v":0},{"$f":"Import!E16048","v":0},{"$f":"Import!E16198","v":0},{"$f":"Import!E16348","v":0},{"$f":"Import!E16498","v":0}]
[148,{"$f":"Import!E15449","v":"Select"},{"$f":"Import!E15599","v":"Select"},{"$f":"Import!E15749","v":"Select"},{"$f":"Import!E15899","v":0},{"$f":"Import!E16049","v":0},{"$f":"Import!E16199","v":0},{"$f":"Import!E16349","v":0},{"$f":"Import!E16499","v":0}]
[149,{"$f":"Import!E15450","v":"Select"},{"$f":"Import!E15600","v":"Select"},{"$f":"Import!E15750","v":"Select"},{"$f":"Import!E15900","v":0},{"$f":"Import!E16050","v":0},{"$f":"Import!E16200","v":0},{"$f":"Import!E16350","v":0},{"$f":"Import!E16500","v":0}]
[150,{"$f":"Import!E15451","v":"Select"},{"$f":"Import!E15601","v":"Select"},{"$f":"Import!E15751","v":"Select"},{"$f":"Import!E15901","v":0},{"$f":"Import!E16051","v":0},{"$f":"Import!E16201","v":0},{"$f":"Import!E16351","v":0},{"$f":"Import!E16501","v":0}]
[]
[null,"Total Asset-Backed and Structured Securities",null,null,{"$f":"SUM(E835:E984)","v":0},{"$f":"SUM(F835:F984)","v":0},{"$f":"IFERROR(SUMPRODUCT(G835:G984,$F835:$F984)/SUM($F835:$F984),0)","v":0},{"$f":"IFERROR(SUMPRODUCT(H835:H984,$F835:$F984)/SUM($F835:$F984),0)","v":0}]
[]
[null,"(D) LOANS"]
[]
[null,null,"Enter # of Asset Types",{"$f":"Import!E16502","v":0}]
[null,null,null,null,null,{"$f":"YEAR($C$3)","v":2023},2023,"Weighted"]
[null,"Asset Type","Currency","Country","BSCR Rating","Nominal Amount","Fair Value","Average YTM","Effective Duration","Comments"]
[1,{"$f":"Import!E16503","v":"Select"},{"$f":"Import!E16603","v":"Select"},{"$f":"Import!E16703","v":"Select"},{"$f":"Import!E16803","v":"Select"},{"$f":"Import!E16903","v":0},{"$f":"Import!E17003","v":0},{"$f":"Import!E17103","v":0},{"$f":"Import!E17203","v":0},{"$f":"Import!E17303","v":0}]
[{"$f":"A993+1","v":2},{"$f":"Import!E16504","v":"Select"},{"$f":"Import!E16604","v":"Select"},{"$f":"Import!E16704","v":"Select"},{"$f":"Import!E16804","v":"Select"},{"$f":"Import!E16904","v":0},{"$f":"Import!E17004","v":0},{"$f":"Import!E17104","v":0},{"$f":"Import!E17204","v":0},{"$f":"Import!E17304","v":0}]
[{"$f":"A994+1","v":3},{"$f":"Import!E16505","v":"Select"},{"$f":"Import!E16605","v":"Select"},{"$f":"Import!E16705","v":"Select"},{"$f":"Import!E16805","v":"Select"},{"$f":"Import!E16905","v":0},{"$f":"Import!E17005","v":0},{"$f":"Import!E17105","v":0},{"$f":"Import!E17205","v":0},{"$f":"Import!E17305","v":0}]
[4,{"$f":"Import!E16506","v":"Select"},{"$f":"Import!E16606","v":"Select"},{"$f":"Import!E16706","v":"Select"},{"$f":"Import!E16806","v":"Select"},{"$f":"Import!E16906","v":0},{"$f":"Import!E17006","v":0},{"$f":"Import!E17106","v":0},{"$f":"Import!E17206","v":0},{"$f":"Import!E17306","v":0}]
[5,{"$f":"Import!E16507","v":"Select"},{"$f":"Import!E16607","v":"Select"},{"$f":"Import!E16707","v":"Select"},{"$f":"Import!E16807","v":"Select"},{"$f":"Import!E16907","v":0},{"$f":"Import!E17007","v":0},{"$f":"Import!E17107","v":0},{"$f":"Import!E17207","v":0},{"$f":"Import!E17307","v":0}]
[6,{"$f":"Import!E16508","v":"Select"},{"$f":"Import!E16608","v":"Select"},{"$f":"Import!E16708","v":"Select"},{"$f":"Import!E16808","v":"Select"},{"$f":"Import!E16908","v":0},{"$f":"Import!E17008","v":0},{"$f":"Import!E17108","v":0},{"$f":"Import!E17208","v":0},{"$f":"Import!E17308","v":0}]
[7,{"$f":"Import!E16509","v":"Select"},{"$f":"Import!E16609","v":"Select"},{"$f":"Import!E16709","v":"Select"},{"$f":"Import!E16809","v":"Select"},{"$f":"Import!E16909","v":0},{"$f":"Import!E17009","v":0},{"$f":"Import!E17109","v":0},{"$f":"Import!E17209","v":0},{"$f":"Import!E17309","v":0}]
[8,{"$f":"Import!E16510","v":"Select"},{"$f":"Import!E16610","v":"Select"},{"$f":"Import!E16710","v":"Select"},{"$f":"Import!E16810","v":"Select"},{"$f":"Import!E16910","v":0},{"$f":"Import!E17010","v":0},{"$f":"Import!E17110","v":0},{"$f":"Import!E17210","v":0},{"$f":"Import!E17310","v":0}]
[9,{"$f":"Import!E16511","v":"Select"},{"$f":"Import!E16611","v":"Select"},{"$f":"Import!E16711","v":"Select"},{"$f":"Import!E16811","v":"Select"},{"$f":"Import!E16911","v":0},{"$f":"Import!E17011","v":0},{"$f":"Import!E17111","v":0},{"$f":"Import!E17211","v":0},{"$f":"Import!E17311","v":0}]
[10,{"$f":"Import!E16512","v":"Select"},{"$f":"Import!E16612","v":"Select"},{"$f":"Import!E16712","v":"Select"},{"$f":"Import!E16812","v":"Select"},{"$f":"Import!E16912","v":0},{"$f":"Import!E17012","v":0},{"$f":"Import!E17112","v":0},{"$f":"Import!E17212","v":0},{"$f":"Import!E17312","v":0}]
[11,{"$f":"Import!E16513","v":"Select"},{"$f":"Import!E16613","v":"Select"},{"$f":"Import!E16713","v":"Select"},{"$f":"Import!E16813","v":"Select"},{"$f":"Import!E16913","v":0},{"$f":"Import!E17013","v":0},{"$f":"Import!E17113","v":0},{"$f":"Import!E17213","v":0},{"$f":"Import!E17313","v":0}]
[12,{"$f":"Import!E16514","v":"Select"},{"$f":"Import!E16614","v":"Select"},{"$f":"Import!E16714","v":"Select"},{"$f":"Import!E16814","v":"Select"},{"$f":"Import!E16914","v":0},{"$f":"Import!E17014","v":0},{"$f":"Import!E17114","v":0},{"$f":"Import!E17214","v":0},{"$f":"Import!E17314","v":0}]
[13,{"$f":"Import!E16515","v":"Select"},{"$f":"Import!E16615","v":"Select"},{"$f":"Import!E16715","v":"Select"},{"$f":"Import!E16815","v":"Select"},{"$f":"Import!E16915","v":0},{"$f":"Import!E17015","v":0},{"$f":"Import!E17115","v":0},{"$f":"Import!E17215","v":0},{"$f":"Import!E17315","v":0}]
[14,{"$f":"Import!E16516","v":"Select"},{"$f":"Import!E16616","v":"Select"},{"$f":"Import!E16716","v":"Select"},{"$f":"Import!E16816","v":"Select"},{"$f":"Import!E16916","v":0},{"$f":"Import!E17016","v":0},{"$f":"Import!E17116","v":0},{"$f":"Import!E17216","v":0},{"$f":"Import!E17316","v":0}]
[15,{"$f":"Import!E16517","v":"Select"},{"$f":"Import!E16617","v":"Select"},{"$f":"Import!E16717","v":"Select"},{"$f":"Import!E16817","v":"Select"},{"$f":"Import!E16917","v":0},{"$f":"Import!E17017","v":0},{"$f":"Import!E17117","v":0},{"$f":"Import!E17217","v":0},{"$f":"Import!E17317","v":0}]
[16,{"$f":"Import!E16518","v":"Select"},{"$f":"Import!E16618","v":"Select"},{"$f":"Import!E16718","v":"Select"},{"$f":"Import!E16818","v":"Select"},{"$f":"Import!E16918","v":0},{"$f":"Import!E17018","v":0},{"$f":"Import!E17118","v":0},{"$f":"Import!E17218","v":0},{"$f":"Import!E17318","v":0}]
[17,{"$f":"Import!E16519","v":"Select"},{"$f":"Import!E16619","v":"Select"},{"$f":"Import!E16719","v":"Select"},{"$f":"Import!E16819","v":"Select"},{"$f":"Import!E16919","v":0},{"$f":"Import!E17019","v":0},{"$f":"Import!E17119","v":0},{"$f":"Import!E17219","v":0},{"$f":"Import!E17319","v":0}]
[18,{"$f":"Import!E16520","v":"Select"},{"$f":"Import!E16620","v":"Select"},{"$f":"Import!E16720","v":"Select"},{"$f":"Import!E16820","v":"Select"},{"$f":"Import!E16920","v":0},{"$f":"Import!E17020","v":0},{"$f":"Import!E17120","v":0},{"$f":"Import!E17220","v":0},{"$f":"Import!E17320","v":0}]
[19,{"$f":"Import!E16521","v":"Select"},{"$f":"Import!E16621","v":"Select"},{"$f":"Import!E16721","v":"Select"},{"$f":"Import!E16821","v":"Select"},{"$f":"Import!E16921","v":0},{"$f":"Import!E17021","v":0},{"$f":"Import!E17121","v":0},{"$f":"Import!E17221","v":0},{"$f":"Import!E17321","v":0}]
[20,{"$f":"Import!E16522","v":"Select"},{"$f":"Import!E16622","v":"Select"},{"$f":"Import!E16722","v":"Select"},{"$f":"Import!E16822","v":"Select"},{"$f":"Import!E16922","v":0},{"$f":"Import!E17022","v":0},{"$f":"Import!E17122","v":0},{"$f":"Import!E17222","v":0},{"$f":"Import!E17322","v":0}]
[21,{"$f":"Import!E16523","v":"Select"},{"$f":"Import!E16623","v":"Select"},{"$f":"Import!E16723","v":"Select"},{"$f":"Import!E16823","v":"Select"},{"$f":"Import!E16923","v":0},{"$f":"Import!E17023","v":0},{"$f":"Import!E17123","v":0},{"$f":"Import!E17223","v":0},{"$f":"Import!E17323","v":0}]
[22,{"$f":"Import!E16524","v":"Select"},{"$f":"Import!E16624","v":"Select"},{"$f":"Import!E16724","v":"Select"},{"$f":"Import!E16824","v":"Select"},{"$f":"Import!E16924","v":0},{"$f":"Import!E17024","v":0},{"$f":"Import!E17124","v":0},{"$f":"Import!E17224","v":0},{"$f":"Import!E17324","v":0}]
[23,{"$f":"Import!E16525","v":"Select"},{"$f":"Import!E16625","v":"Select"},{"$f":"Import!E16725","v":"Select"},{"$f":"Import!E16825","v":"Select"},{"$f":"Import!E16925","v":0},{"$f":"Import!E17025","v":0},{"$f":"Import!E17125","v":0},{"$f":"Import!E17225","v":0},{"$f":"Import!E17325","v":0}]
[24,{"$f":"Import!E16526","v":"Select"},{"$f":"Import!E16626","v":"Select"},{"$f":"Import!E16726","v":"Select"},{"$f":"Import!E16826","v":"Select"},{"$f":"Import!E16926","v":0},{"$f":"Import!E17026","v":0},{"$f":"Import!E17126","v":0},{"$f":"Import!E17226","v":0},{"$f":"Import!E17326","v":0}]
[25,{"$f":"Import!E16527","v":"Select"},{"$f":"Import!E16627","v":"Select"},{"$f":"Import!E16727","v":"Select"},{"$f":"Import!E16827","v":"Select"},{"$f":"Import!E16927","v":0},{"$f":"Import!E17027","v":0},{"$f":"Import!E17127","v":0},{"$f":"Import!E17227","v":0},{"$f":"Import!E17327","v":0}]
[26,{"$f":"Import!E16528","v":"Select"},{"$f":"Import!E16628","v":"Select"},{"$f":"Import!E16728","v":"Select"},{"$f":"Import!E16828","v":"Select"},{"$f":"Import!E16928","v":0},{"$f":"Import!E17028","v":0},{"$f":"Import!E17128","v":0},{"$f":"Import!E17228","v":0},{"$f":"Import!E17328","v":0}]
[27,{"$f":"Import!E16529","v":"Select"},{"$f":"Import!E16629","v":"Select"},{"$f":"Import!E16729","v":"Select"},{"$f":"Import!E16829","v":"Select"},{"$f":"Import!E16929","v":0},{"$f":"Import!E17029","v":0},{"$f":"Import!E17129","v":0},{"$f":"Import!E17229","v":0},{"$f":"Import!E17329","v":0}]
[28,{"$f":"Import!E16530","v":"Select"},{"$f":"Import!E16630","v":"Select"},{"$f":"Import!E16730","v":"Select"},{"$f":"Import!E16830","v":"Select"},{"$f":"Import!E16930","v":0},{"$f":"Import!E17030","v":0},{"$f":"Import!E17130","v":0},{"$f":"Import!E17230","v":0},{"$f":"Import!E17330","v":0}]
[29,{"$f":"Import!E16531","v":"Select"},{"$f":"Import!E16631","v":"Select"},{"$f":"Import!E16731","v":"Select"},{"$f":"Import!E16831","v":"Select"},{"$f":"Import!E16931","v":0},{"$f":"Import!E17031","v":0},{"$f":"Import!E17131","v":0},{"$f":"Import!E17231","v":0},{"$f":"Import!E17331","v":0}]
[30,{"$f":"Import!E16532","v":"Select"},{"$f":"Import!E16632","v":"Select"},{"$f":"Import!E16732","v":"Select"},{"$f":"Import!E16832","v":"Select"},{"$f":"Import!E16932","v":0},{"$f":"Import!E17032","v":0},{"$f":"Import!E17132","v":0},{"$f":"Import!E17232","v":0},{"$f":"Import!E17332","v":0}]
[31,{"$f":"Import!E16533","v":"Select"},{"$f":"Import!E16633","v":"Select"},{"$f":"Import!E16733","v":"Select"},{"$f":"Import!E16833","v":"Select"},{"$f":"Import!E16933","v":0},{"$f":"Import!E17033","v":0},{"$f":"Import!E17133","v":0},{"$f":"Import!E17233","v":0},{"$f":"Import!E17333","v":0}]
[32,{"$f":"Import!E16534","v":"Select"},{"$f":"Import!E16634","v":"Select"},{"$f":"Import!E16734","v":"Select"},{"$f":"Import!E16834","v":"Select"},{"$f":"Import!E16934","v":0},{"$f":"Import!E17034","v":0},{"$f":"Import!E17134","v":0},{"$f":"Import!E17234","v":0},{"$f":"Import!E17334","v":0}]
[33,{"$f":"Import!E16535","v":"Select"},{"$f":"Import!E16635","v":"Select"},{"$f":"Import!E16735","v":"Select"},{"$f":"Import!E16835","v":"Select"},{"$f":"Import!E16935","v":0},{"$f":"Import!E17035","v":0},{"$f":"Import!E17135","v":0},{"$f":"Import!E17235","v":0},{"$f":"Import!E17335","v":0}]
[34,{"$f":"Import!E16536","v":"Select"},{"$f":"Import!E16636","v":"Select"},{"$f":"Import!E16736","v":"Select"},{"$f":"Import!E16836","v":"Select"},{"$f":"Import!E16936","v":0},{"$f":"Import!E17036","v":0},{"$f":"Import!E17136","v":0},{"$f":"Import!E17236","v":0},{"$f":"Import!E17336","v":0}]
[35,{"$f":"Import!E16537","v":"Select"},{"$f":"Import!E16637","v":"Select"},{"$f":"Import!E16737","v":"Select"},{"$f":"Import!E16837","v":"Select"},{"$f":"Import!E16937","v":0},{"$f":"Import!E17037","v":0},{"$f":"Import!E17137","v":0},{"$f":"Import!E17237","v":0},{"$f":"Import!E17337","v":0}]
[36,{"$f":"Import!E16538","v":"Select"},{"$f":"Import!E16638","v":"Select"},{"$f":"Import!E16738","v":"Select"},{"$f":"Import!E16838","v":"Select"},{"$f":"Import!E16938","v":0},{"$f":"Import!E17038","v":0},{"$f":"Import!E17138","v":0},{"$f":"Import!E17238","v":0},{"$f":"Import!E17338","v":0}]
[37,{"$f":"Import!E16539","v":"Select"},{"$f":"Import!E16639","v":"Select"},{"$f":"Import!E16739","v":"Select"},{"$f":"Import!E16839","v":"Select"},{"$f":"Import!E16939","v":0},{"$f":"Import!E17039","v":0},{"$f":"Import!E17139","v":0},{"$f":"Import!E17239","v":0},{"$f":"Import!E17339","v":0}]
[38,{"$f":"Import!E16540","v":"Select"},{"$f":"Import!E16640","v":"Select"},{"$f":"Import!E16740","v":"Select"},{"$f":"Import!E16840","v":"Select"},{"$f":"Import!E16940","v":0},{"$f":"Import!E17040","v":0},{"$f":"Import!E17140","v":0},{"$f":"Import!E17240","v":0},{"$f":"Import!E17340","v":0}]
[39,{"$f":"Import!E16541","v":"Select"},{"$f":"Import!E16641","v":"Select"},{"$f":"Import!E16741","v":"Select"},{"$f":"Import!E16841","v":"Select"},{"$f":"Import!E16941","v":0},{"$f":"Import!E17041","v":0},{"$f":"Import!E17141","v":0},{"$f":"Import!E17241","v":0},{"$f":"Import!E17341","v":0}]
[40,{"$f":"Import!E16542","v":"Select"},{"$f":"Import!E16642","v":"Select"},{"$f":"Import!E16742","v":"Select"},{"$f":"Import!E16842","v":"Select"},{"$f":"Import!E16942","v":0},{"$f":"Import!E17042","v":0},{"$f":"Import!E17142","v":0},{"$f":"Import!E17242","v":0},{"$f":"Import!E17342","v":0}]
[41,{"$f":"Import!E16543","v":"Select"},{"$f":"Import!E16643","v":"Select"},{"$f":"Import!E16743","v":"Select"},{"$f":"Import!E16843","v":"Select"},{"$f":"Import!E16943","v":0},{"$f":"Import!E17043","v":0},{"$f":"Import!E17143","v":0},{"$f":"Import!E17243","v":0},{"$f":"Import!E17343","v":0}]
[42,{"$f":"Import!E16544","v":"Select"},{"$f":"Import!E16644","v":"Select"},{"$f":"Import!E16744","v":"Select"},{"$f":"Import!E16844","v":"Select"},{"$f":"Import!E16944","v":0},{"$f":"Import!E17044","v":0},{"$f":"Import!E17144","v":0},{"$f":"Import!E17244","v":0},{"$f":"Import!E17344","v":0}]
[43,{"$f":"Import!E16545","v":"Select"},{"$f":"Import!E16645","v":"Select"},{"$f":"Import!E16745","v":"Select"},{"$f":"Import!E16845","v":"Select"},{"$f":"Import!E16945","v":0},{"$f":"Import!E17045","v":0},{"$f":"Import!E17145","v":0},{"$f":"Import!E17245","v":0},{"$f":"Import!E17345","v":0}]
[44,{"$f":"Import!E16546","v":"Select"},{"$f":"Import!E16646","v":"Select"},{"$f":"Import!E16746","v":"Select"},{"$f":"Import!E16846","v":"Select"},{"$f":"Import!E16946","v":0},{"$f":"Import!E17046","v":0},{"$f":"Import!E17146","v":0},{"$f":"Import!E17246","v":0},{"$f":"Import!E17346","v":0}]
[45,{"$f":"Import!E16547","v":"Select"},{"$f":"Import!E16647","v":"Select"},{"$f":"Import!E16747","v":"Select"},{"$f":"Import!E16847","v":"Select"},{"$f":"Import!E16947","v":0},{"$f":"Import!E17047","v":0},{"$f":"Import!E17147","v":0},{"$f":"Import!E17247","v":0},{"$f":"Import!E17347","v":0}]
[46,{"$f":"Import!E16548","v":"Select"},{"$f":"Import!E16648","v":"Select"},{"$f":"Import!E16748","v":"Select"},{"$f":"Import!E16848","v":"Select"},{"$f":"Import!E16948","v":0},{"$f":"Import!E17048","v":0},{"$f":"Import!E17148","v":0},{"$f":"Import!E17248","v":0},{"$f":"Import!E17348","v":0}]
[47,{"$f":"Import!E16549","v":"Select"},{"$f":"Import!E16649","v":"Select"},{"$f":"Import!E16749","v":"Select"},{"$f":"Import!E16849","v":"Select"},{"$f":"Import!E16949","v":0},{"$f":"Import!E17049","v":0},{"$f":"Import!E17149","v":0},{"$f":"Import!E17249","v":0},{"$f":"Import!E17349","v":0}]
[48,{"$f":"Import!E16550","v":"Select"},{"$f":"Import!E16650","v":"Select"},{"$f":"Import!E16750","v":"Select"},{"$f":"Import!E16850","v":"Select"},{"$f":"Import!E16950","v":0},{"$f":"Import!E17050","v":0},{"$f":"Import!E17150","v":0},{"$f":"Import!E17250","v":0},{"$f":"Import!E17350","v":0}]
[49,{"$f":"Import!E16551","v":"Select"},{"$f":"Import!E16651","v":"Select"},{"$f":"Import!E16751","v":"Select"},{"$f":"Import!E16851","v":"Select"},{"$f":"Import!E16951","v":0},{"$f":"Import!E17051","v":0},{"$f":"Import!E17151","v":0},{"$f":"Import!E17251","v":0},{"$f":"Import!E17351","v":0}]
[50,{"$f":"Import!E16552","v":"Select"},{"$f":"Import!E16652","v":"Select"},{"$f":"Import!E16752","v":"Select"},{"$f":"Import!E16852","v":"Select"},{"$f":"Import!E16952","v":0},{"$f":"Import!E17052","v":0},{"$f":"Import!E17152","v":0},{"$f":"Import!E17252","v":0},{"$f":"Import!E17352","v":0}]
[51,{"$f":"Import!E16553","v":"Select"},{"$f":"Import!E16653","v":"Select"},{"$f":"Import!E16753","v":"Select"},{"$f":"Import!E16853","v":"Select"},{"$f":"Import!E16953","v":0},{"$f":"Import!E17053","v":0},{"$f":"Import!E17153","v":0},{"$f":"Import!E17253","v":0},{"$f":"Import!E17353","v":0}]
[52,{"$f":"Import!E16554","v":"Select"},{"$f":"Import!E16654","v":"Select"},{"$f":"Import!E16754","v":"Select"},{"$f":"Import!E16854","v":"Select"},{"$f":"Import!E16954","v":0},{"$f":"Import!E17054","v":0},{"$f":"Import!E17154","v":0},{"$f":"Import!E17254","v":0},{"$f":"Import!E17354","v":0}]
[53,{"$f":"Import!E16555","v":"Select"},{"$f":"Import!E16655","v":"Select"},{"$f":"Import!E16755","v":"Select"},{"$f":"Import!E16855","v":"Select"},{"$f":"Import!E16955","v":0},{"$f":"Import!E17055","v":0},{"$f":"Import!E17155","v":0},{"$f":"Import!E17255","v":0},{"$f":"Import!E17355","v":0}]
[54,{"$f":"Import!E16556","v":"Select"},{"$f":"Import!E16656","v":"Select"},{"$f":"Import!E16756","v":"Select"},{"$f":"Import!E16856","v":"Select"},{"$f":"Import!E16956","v":0},{"$f":"Import!E17056","v":0},{"$f":"Import!E17156","v":0},{"$f":"Import!E17256","v":0},{"$f":"Import!E17356","v":0}]
[55,{"$f":"Import!E16557","v":"Select"},{"$f":"Import!E16657","v":"Select"},{"$f":"Import!E16757","v":"Select"},{"$f":"Import!E16857","v":"Select"},{"$f":"Import!E16957","v":0},{"$f":"Import!E17057","v":0},{"$f":"Import!E17157","v":0},{"$f":"Import!E17257","v":0},{"$f":"Import!E17357","v":0}]
[56,{"$f":"Import!E16558","v":"Select"},{"$f":"Import!E16658","v":"Select"},{"$f":"Import!E16758","v":"Select"},{"$f":"Import!E16858","v":"Select"},{"$f":"Import!E16958","v":0},{"$f":"Import!E17058","v":0},{"$f":"Import!E17158","v":0},{"$f":"Import!E17258","v":0},{"$f":"Import!E17358","v":0}]
[57,{"$f":"Import!E16559","v":"Select"},{"$f":"Import!E16659","v":"Select"},{"$f":"Import!E16759","v":"Select"},{"$f":"Import!E16859","v":"Select"},{"$f":"Import!E16959","v":0},{"$f":"Import!E17059","v":0},{"$f":"Import!E17159","v":0},{"$f":"Import!E17259","v":0},{"$f":"Import!E17359","v":0}]
[58,{"$f":"Import!E16560","v":"Select"},{"$f":"Import!E16660","v":"Select"},{"$f":"Import!E16760","v":"Select"},{"$f":"Import!E16860","v":"Select"},{"$f":"Import!E16960","v":0},{"$f":"Import!E17060","v":0},{"$f":"Import!E17160","v":0},{"$f":"Import!E17260","v":0},{"$f":"Import!E17360","v":0}]
[59,{"$f":"Import!E16561","v":"Select"},{"$f":"Import!E16661","v":"Select"},{"$f":"Import!E16761","v":"Select"},{"$f":"Import!E16861","v":"Select"},{"$f":"Import!E16961","v":0},{"$f":"Import!E17061","v":0},{"$f":"Import!E17161","v":0},{"$f":"Import!E17261","v":0},{"$f":"Import!E17361","v":0}]
[60,{"$f":"Import!E16562","v":"Select"},{"$f":"Import!E16662","v":"Select"},{"$f":"Import!E16762","v":"Select"},{"$f":"Import!E16862","v":"Select"},{"$f":"Import!E16962","v":0},{"$f":"Import!E17062","v":0},{"$f":"Import!E17162","v":0},{"$f":"Import!E17262","v":0},{"$f":"Import!E17362","v":0}]
[61,{"$f":"Import!E16563","v":"Select"},{"$f":"Import!E16663","v":"Select"},{"$f":"Import!E16763","v":"Select"},{"$f":"Import!E16863","v":"Select"},{"$f":"Import!E16963","v":0},{"$f":"Import!E17063","v":0},{"$f":"Import!E17163","v":0},{"$f":"Import!E17263","v":0},{"$f":"Import!E17363","v":0}]
[62,{"$f":"Import!E16564","v":"Select"},{"$f":"Import!E16664","v":"Select"},{"$f":"Import!E16764","v":"Select"},{"$f":"Import!E16864","v":"Select"},{"$f":"Import!E16964","v":0},{"$f":"Import!E17064","v":0},{"$f":"Import!E17164","v":0},{"$f":"Import!E17264","v":0},{"$f":"Import!E17364","v":0}]
[63,{"$f":"Import!E16565","v":"Select"},{"$f":"Import!E16665","v":"Select"},{"$f":"Import!E16765","v":"Select"},{"$f":"Import!E16865","v":"Select"},{"$f":"Import!E16965","v":0},{"$f":"Import!E17065","v":0},{"$f":"Import!E17165","v":0},{"$f":"Import!E17265","v":0},{"$f":"Import!E17365","v":0}]
[64,{"$f":"Import!E16566","v":"Select"},{"$f":"Import!E16666","v":"Select"},{"$f":"Import!E16766","v":"Select"},{"$f":"Import!E16866","v":"Select"},{"$f":"Import!E16966","v":0},{"$f":"Import!E17066","v":0},{"$f":"Import!E17166","v":0},{"$f":"Import!E17266","v":0},{"$f":"Import!E17366","v":0}]
[65,{"$f":"Import!E16567","v":"Select"},{"$f":"Import!E16667","v":"Select"},{"$f":"Import!E16767","v":"Select"},{"$f":"Import!E16867","v":"Select"},{"$f":"Import!E16967","v":0},{"$f":"Import!E17067","v":0},{"$f":"Import!E17167","v":0},{"$f":"Import!E17267","v":0},{"$f":"Import!E17367","v":0}]
[66,{"$f":"Import!E16568","v":"Select"},{"$f":"Import!E16668","v":"Select"},{"$f":"Import!E16768","v":"Select"},{"$f":"Import!E16868","v":"Select"},{"$f":"Import!E16968","v":0},{"$f":"Import!E17068","v":0},{"$f":"Import!E17168","v":0},{"$f":"Import!E17268","v":0},{"$f":"Import!E17368","v":0}]
[{"$f":"A1058+1","v":67},{"$f":"Import!E16569","v":"Select"},{"$f":"Import!E16669","v":"Select"},{"$f":"Import!E16769","v":"Select"},{"$f":"Import!E16869","v":"Select"},{"$f":"Import!E16969","v":0},{"$f":"Import!E17069","v":0},{"$f":"Import!E17169","v":0},{"$f":"Import!E17269","v":0},{"$f":"Import!E17369","v":0}]
[68,{"$f":"Import!E16570","v":"Select"},{"$f":"Import!E16670","v":"Select"},{"$f":"Import!E16770","v":"Select"},{"$f":"Import!E16870","v":"Select"},{"$f":"Import!E16970","v":0},{"$f":"Import!E17070","v":0},{"$f":"Import!E17170","v":0},{"$f":"Import!E17270","v":0},{"$f":"Import!E17370","v":0}]
[69,{"$f":"Import!E16571","v":"Select"},{"$f":"Import!E16671","v":"Select"},{"$f":"Import!E16771","v":"Select"},{"$f":"Import!E16871","v":"Select"},{"$f":"Import!E16971","v":0},{"$f":"Import!E17071","v":0},{"$f":"Import!E17171","v":0},{"$f":"Import!E17271","v":0},{"$f":"Import!E17371","v":0}]
[70,{"$f":"Import!E16572","v":"Select"},{"$f":"Import!E16672","v":"Select"},{"$f":"Import!E16772","v":"Select"},{"$f":"Import!E16872","v":"Select"},{"$f":"Import!E16972","v":0},{"$f":"Import!E17072","v":0},{"$f":"Import!E17172","v":0},{"$f":"Import!E17272","v":0},{"$f":"Import!E17372","v":0}]
[71,{"$f":"Import!E16573","v":"Select"},{"$f":"Import!E16673","v":"Select"},{"$f":"Import!E16773","v":"Select"},{"$f":"Import!E16873","v":"Select"},{"$f":"Import!E16973","v":0},{"$f":"Import!E17073","v":0},{"$f":"Import!E17173","v":0},{"$f":"Import!E17273","v":0},{"$f":"Import!E17373","v":0}]
[72,{"$f":"Import!E16574","v":"Select"},{"$f":"Import!E16674","v":"Select"},{"$f":"Import!E16774","v":"Select"},{"$f":"Import!E16874","v":"Select"},{"$f":"Import!E16974","v":0},{"$f":"Import!E17074","v":0},{"$f":"Import!E17174","v":0},{"$f":"Import!E17274","v":0},{"$f":"Import!E17374","v":0}]
[73,{"$f":"Import!E16575","v":"Select"},{"$f":"Import!E16675","v":"Select"},{"$f":"Import!E16775","v":"Select"},{"$f":"Import!E16875","v":"Select"},{"$f":"Import!E16975","v":0},{"$f":"Import!E17075","v":0},{"$f":"Import!E17175","v":0},{"$f":"Import!E17275","v":0},{"$f":"Import!E17375","v":0}]
[74,{"$f":"Import!E16576","v":"Select"},{"$f":"Import!E16676","v":"Select"},{"$f":"Import!E16776","v":"Select"},{"$f":"Import!E16876","v":"Select"},{"$f":"Import!E16976","v":0},{"$f":"Import!E17076","v":0},{"$f":"Import!E17176","v":0},{"$f":"Import!E17276","v":0},{"$f":"Import!E17376","v":0}]
[75,{"$f":"Import!E16577","v":"Select"},{"$f":"Import!E16677","v":"Select"},{"$f":"Import!E16777","v":"Select"},{"$f":"Import!E16877","v":"Select"},{"$f":"Import!E16977","v":0},{"$f":"Import!E17077","v":0},{"$f":"Import!E17177","v":0},{"$f":"Import!E17277","v":0},{"$f":"Import!E17377","v":0}]
[76,{"$f":"Import!E16578","v":"Select"},{"$f":"Import!E16678","v":"Select"},{"$f":"Import!E16778","v":"Select"},{"$f":"Import!E16878","v":"Select"},{"$f":"Import!E16978","v":0},{"$f":"Import!E17078","v":0},{"$f":"Import!E17178","v":0},{"$f":"Import!E17278","v":0},{"$f":"Import!E17378","v":0}]
[77,{"$f":"Import!E16579","v":"Select"},{"$f":"Import!E16679","v":"Select"},{"$f":"Import!E16779","v":"Select"},{"$f":"Import!E16879","v":"Select"},{"$f":"Import!E16979","v":0},{"$f":"Import!E17079","v":0},{"$f":"Import!E17179","v":0},{"$f":"Import!E17279","v":0},{"$f":"Import!E17379","v":0}]
[78,{"$f":"Import!E16580","v":"Select"},{"$f":"Import!E16680","v":"Select"},{"$f":"Import!E16780","v":"Select"},{"$f":"Import!E16880","v":"Select"},{"$f":"Import!E16980","v":0},{"$f":"Import!E17080","v":0},{"$f":"Import!E17180","v":0},{"$f":"Import!E17280","v":0},{"$f":"Import!E17380","v":0}]
[79,{"$f":"Import!E16581","v":"Select"},{"$f":"Import!E16681","v":"Select"},{"$f":"Import!E16781","v":"Select"},{"$f":"Import!E16881","v":"Select"},{"$f":"Import!E16981","v":0},{"$f":"Import!E17081","v":0},{"$f":"Import!E17181","v":0},{"$f":"Import!E17281","v":0},{"$f":"Import!E17381","v":0}]
[80,{"$f":"Import!E16582","v":"Select"},{"$f":"Import!E16682","v":"Select"},{"$f":"Import!E16782","v":"Select"},{"$f":"Import!E16882","v":"Select"},{"$f":"Import!E16982","v":0},{"$f":"Import!E17082","v":0},{"$f":"Import!E17182","v":0},{"$f":"Import!E17282","v":0},{"$f":"Import!E17382","v":0}]
[81,{"$f":"Import!E16583","v":"Select"},{"$f":"Import!E16683","v":"Select"},{"$f":"Import!E16783","v":"Select"},{"$f":"Import!E16883","v":"Select"},{"$f":"Import!E16983","v":0},{"$f":"Import!E17083","v":0},{"$f":"Import!E17183","v":0},{"$f":"Import!E17283","v":0},{"$f":"Import!E17383","v":0}]
[82,{"$f":"Import!E16584","v":"Select"},{"$f":"Import!E16684","v":"Select"},{"$f":"Import!E16784","v":"Select"},{"$f":"Import!E16884","v":"Select"},{"$f":"Import!E16984","v":0},{"$f":"Import!E17084","v":0},{"$f":"Import!E17184","v":0},{"$f":"Import!E17284","v":0},{"$f":"Import!E17384","v":0}]
[83,{"$f":"Import!E16585","v":"Select"},{"$f":"Import!E16685","v":"Select"},{"$f":"Import!E16785","v":"Select"},{"$f":"Import!E16885","v":"Select"},{"$f":"Import!E16985","v":0},{"$f":"Import!E17085","v":0},{"$f":"Import!E17185","v":0},{"$f":"Import!E17285","v":0},{"$f":"Import!E17385","v":0}]
[84,{"$f":"Import!E16586","v":"Select"},{"$f":"Import!E16686","v":"Select"},{"$f":"Import!E16786","v":"Select"},{"$f":"Import!E16886","v":"Select"},{"$f":"Import!E16986","v":0},{"$f":"Import!E17086","v":0},{"$f":"Import!E17186","v":0},{"$f":"Import!E17286","v":0},{"$f":"Import!E17386","v":0}]
[85,{"$f":"Import!E16587","v":"Select"},{"$f":"Import!E16687","v":"Select"},{"$f":"Import!E16787","v":"Select"},{"$f":"Import!E16887","v":"Select"},{"$f":"Import!E16987","v":0},{"$f":"Import!E17087","v":0},{"$f":"Import!E17187","v":0},{"$f":"Import!E17287","v":0},{"$f":"Import!E17387","v":0}]
[86,{"$f":"Import!E16588","v":"Select"},{"$f":"Import!E16688","v":"Select"},{"$f":"Import!E16788","v":"Select"},{"$f":"Import!E16888","v":"Select"},{"$f":"Import!E16988","v":0},{"$f":"Import!E17088","v":0},{"$f":"Import!E17188","v":0},{"$f":"Import!E17288","v":0},{"$f":"Import!E17388","v":0}]
[87,{"$f":"Import!E16589","v":"Select"},{"$f":"Import!E16689","v":"Select"},{"$f":"Import!E16789","v":"Select"},{"$f":"Import!E16889","v":"Select"},{"$f":"Import!E16989","v":0},{"$f":"Import!E17089","v":0},{"$f":"Import!E17189","v":0},{"$f":"Import!E17289","v":0},{"$f":"Import!E17389","v":0}]
[88,{"$f":"Import!E16590","v":"Select"},{"$f":"Import!E16690","v":"Select"},{"$f":"Import!E16790","v":"Select"},{"$f":"Import!E16890","v":"Select"},{"$f":"Import!E16990","v":0},{"$f":"Import!E17090","v":0},{"$f":"Import!E17190","v":0},{"$f":"Import!E17290","v":0},{"$f":"Import!E17390","v":0}]
[89,{"$f":"Import!E16591","v":"Select"},{"$f":"Import!E16691","v":"Select"},{"$f":"Import!E16791","v":"Select"},{"$f":"Import!E16891","v":"Select"},{"$f":"Import!E16991","v":0},{"$f":"Import!E17091","v":0},{"$f":"Import!E17191","v":0},{"$f":"Import!E17291","v":0},{"$f":"Import!E17391","v":0}]
[90,{"$f":"Import!E16592","v":"Select"},{"$f":"Import!E16692","v":"Select"},{"$f":"Import!E16792","v":"Select"},{"$f":"Import!E16892","v":"Select"},{"$f":"Import!E16992","v":0},{"$f":"Import!E17092","v":0},{"$f":"Import!E17192","v":0},{"$f":"Import!E17292","v":0},{"$f":"Import!E17392","v":0}]
[91,{"$f":"Import!E16593","v":"Select"},{"$f":"Import!E16693","v":"Select"},{"$f":"Import!E16793","v":"Select"},{"$f":"Import!E16893","v":"Select"},{"$f":"Import!E16993","v":0},{"$f":"Import!E17093","v":0},{"$f":"Import!E17193","v":0},{"$f":"Import!E17293","v":0},{"$f":"Import!E17393","v":0}]
[92,{"$f":"Import!E16594","v":"Select"},{"$f":"Import!E16694","v":"Select"},{"$f":"Import!E16794","v":"Select"},{"$f":"Import!E16894","v":"Select"},{"$f":"Import!E16994","v":0},{"$f":"Import!E17094","v":0},{"$f":"Import!E17194","v":0},{"$f":"Import!E17294","v":0},{"$f":"Import!E17394","v":0}]
[93,{"$f":"Import!E16595","v":"Select"},{"$f":"Import!E16695","v":"Select"},{"$f":"Import!E16795","v":"Select"},{"$f":"Import!E16895","v":"Select"},{"$f":"Import!E16995","v":0},{"$f":"Import!E17095","v":0},{"$f":"Import!E17195","v":0},{"$f":"Import!E17295","v":0},{"$f":"Import!E17395","v":0}]
[94,{"$f":"Import!E16596","v":"Select"},{"$f":"Import!E16696","v":"Select"},{"$f":"Import!E16796","v":"Select"},{"$f":"Import!E16896","v":"Select"},{"$f":"Import!E16996","v":0},{"$f":"Import!E17096","v":0},{"$f":"Import!E17196","v":0},{"$f":"Import!E17296","v":0},{"$f":"Import!E17396","v":0}]
[95,{"$f":"Import!E16597","v":"Select"},{"$f":"Import!E16697","v":"Select"},{"$f":"Import!E16797","v":"Select"},{"$f":"Import!E16897","v":"Select"},{"$f":"Import!E16997","v":0},{"$f":"Import!E17097","v":0},{"$f":"Import!E17197","v":0},{"$f":"Import!E17297","v":0},{"$f":"Import!E17397","v":0}]
[96,{"$f":"Import!E16598","v":"Select"},{"$f":"Import!E16698","v":"Select"},{"$f":"Import!E16798","v":"Select"},{"$f":"Import!E16898","v":"Select"},{"$f":"Import!E16998","v":0},{"$f":"Import!E17098","v":0},{"$f":"Import!E17198","v":0},{"$f":"Import!E17298","v":0},{"$f":"Import!E17398","v":0}]
[97,{"$f":"Import!E16599","v":"Select"},{"$f":"Import!E16699","v":"Select"},{"$f":"Import!E16799","v":"Select"},{"$f":"Import!E16899","v":"Select"},{"$f":"Import!E16999","v":0},{"$f":"Import!E17099","v":0},{"$f":"Import!E17199","v":0},{"$f":"Import!E17299","v":0},{"$f":"Import!E17399","v":0}]
[98,{"$f":"Import!E16600","v":"Select"},{"$f":"Import!E16700","v":"Select"},{"$f":"Import!E16800","v":"Select"},{"$f":"Import!E16900","v":"Select"},{"$f":"Import!E17000","v":0},{"$f":"Import!E17100","v":0},{"$f":"Import!E17200","v":0},{"$f":"Import!E17300","v":0},{"$f":"Import!E17400","v":0}]
[99,{"$f":"Import!E16601","v":"Select"},{"$f":"Import!E16701","v":"Select"},{"$f":"Import!E16801","v":"Select"},{"$f":"Import!E16901","v":"Select"},{"$f":"Import!E17001","v":0},{"$f":"Import!E17101","v":0},{"$f":"Import!E17201","v":0},{"$f":"Import!E17301","v":0},{"$f":"Import!E17401","v":0}]
[100,{"$f":"Import!E16602","v":"Select"},{"$f":"Import!E16702","v":"Select"},{"$f":"Import!E16802","v":"Select"},{"$f":"Import!E16902","v":"Select"},{"$f":"Import!E17002","v":0},{"$f":"Import!E17102","v":0},{"$f":"Import!E17202","v":0},{"$f":"Import!E17302","v":0},{"$f":"Import!E17402","v":0}]
[]
[null,"Total Loans",null,null,null,{"$f":"SUM(F993:F1092)","v":0},{"$f":"SUM(G993:G1092)","v":0},{"$f":"IFERROR(SUMPRODUCT(H993:H1092,$G993:$G1092)/SUM($G993:$G1092),0)","v":0},{"$f":"IFERROR(SUMPRODUCT(I993:I1092,$G993:$G1092)/SUM($G993:$G1092),0)","v":0}]
[]
[null,"- OF WHICH NON-PERFORMING LOANS"]
[]
[null,null,"Enter # of Asset Types",{"$f":"Import!E17403","v":0}]
[null,null,null,null,null,{"$f":"YEAR($C$3)","v":2023},2023]
[null,"Asset Type","Currency","Country","BSCR Rating","Nominal Amount","Fair Value","Comments"]
[1,{"$f":"Import!E17404","v":"Select"},{"$f":"Import!E17424","v":"Select"},{"$f":"Import!E17444","v":"Select"},{"$f":"Import!E17464","v":"Select"},{"$f":"Import!E17484","v":0},{"$f":"Import!E17504","v":0},{"$f":"Import!E17524","v":0}]
[{"$f":"A1101+1","v":2},"Select",{"$f":"Import!E17425","v":"Select"},{"$f":"Import!E17445","v":"Select"},{"$f":"Import!E17465","v":"Select"},{"$f":"Import!E17485","v":0},{"$f":"Import!E17505","v":0},{"$f":"Import!E17525","v":0}]
[{"$f":"A1102+1","v":3},"Select",{"$f":"Import!E17426","v":"Select"},{"$f":"Import!E17446","v":"Select"},{"$f":"Import!E17466","v":"Select"},{"$f":"Import!E17486","v":0},{"$f":"Import!E17506","v":0},{"$f":"Import!E17526","v":0}]
[4,"Select",{"$f":"Import!E17427","v":"Select"},{"$f":"Import!E17447","v":"Select"},{"$f":"Import!E17467","v":"Select"},{"$f":"Import!E17487","v":0},{"$f":"Import!E17507","v":0},{"$f":"Import!E17527","v":0}]
[5,"Select",{"$f":"Import!E17428","v":"Select"},{"$f":"Import!E17448","v":"Select"},{"$f":"Import!E17468","v":"Select"},{"$f":"Import!E17488","v":0},{"$f":"Import!E17508","v":0},{"$f":"Import!E17528","v":0}]
[6,"Select",{"$f":"Import!E17429","v":"Select"},{"$f":"Import!E17449","v":"Select"},{"$f":"Import!E17469","v":"Select"},{"$f":"Import!E17489","v":0},{"$f":"Import!E17509","v":0},{"$f":"Import!E17529","v":0}]
[7,"Select",{"$f":"Import!E17430","v":"Select"},{"$f":"Import!E17450","v":"Select"},{"$f":"Import!E17470","v":"Select"},{"$f":"Import!E17490","v":0},{"$f":"Import!E17510","v":0},{"$f":"Import!E17530","v":0}]
[8,"Select",{"$f":"Import!E17431","v":"Select"},{"$f":"Import!E17451","v":"Select"},{"$f":"Import!E17471","v":"Select"},{"$f":"Import!E17491","v":0},{"$f":"Import!E17511","v":0},{"$f":"Import!E17531","v":0}]
[9,"Select",{"$f":"Import!E17432","v":"Select"},{"$f":"Import!E17452","v":"Select"},{"$f":"Import!E17472","v":"Select"},{"$f":"Import!E17492","v":0},{"$f":"Import!E17512","v":0},{"$f":"Import!E17532","v":0}]
[10,"Select",{"$f":"Import!E17433","v":"Select"},{"$f":"Import!E17453","v":"Select"},{"$f":"Import!E17473","v":"Select"},{"$f":"Import!E17493","v":0},{"$f":"Import!E17513","v":0},{"$f":"Import!E17533","v":0}]
[11,"Select",{"$f":"Import!E17434","v":"Select"},{"$f":"Import!E17454","v":"Select"},{"$f":"Import!E17474","v":"Select"},{"$f":"Import!E17494","v":0},{"$f":"Import!E17514","v":0},{"$f":"Import!E17534","v":0}]
[12,"Select",{"$f":"Import!E17435","v":"Select"},{"$f":"Import!E17455","v":"Select"},{"$f":"Import!E17475","v":"Select"},{"$f":"Import!E17495","v":0},{"$f":"Import!E17515","v":0},{"$f":"Import!E17535","v":0}]
[13,"Select",{"$f":"Import!E17436","v":"Select"},{"$f":"Import!E17456","v":"Select"},{"$f":"Import!E17476","v":"Select"},{"$f":"Import!E17496","v":0},{"$f":"Import!E17516","v":0},{"$f":"Import!E17536","v":0}]
[14,"Select",{"$f":"Import!E17437","v":"Select"},{"$f":"Import!E17457","v":"Select"},{"$f":"Import!E17477","v":"Select"},{"$f":"Import!E17497","v":0},{"$f":"Import!E17517","v":0},{"$f":"Import!E17537","v":0}]
[15,"Select",{"$f":"Import!E17438","v":"Select"},{"$f":"Import!E17458","v":"Select"},{"$f":"Import!E17478","v":"Select"},{"$f":"Import!E17498","v":0},{"$f":"Import!E17518","v":0},{"$f":"Import!E17538","v":0}]
[16,"Select",{"$f":"Import!E17439","v":"Select"},{"$f":"Import!E17459","v":"Select"},{"$f":"Import!E17479","v":"Select"},{"$f":"Import!E17499","v":0},{"$f":"Import!E17519","v":0},{"$f":"Import!E17539","v":0}]
[17,"Select",{"$f":"Import!E17440","v":"Select"},{"$f":"Import!E17460","v":"Select"},{"$f":"Import!E17480","v":"Select"},{"$f":"Import!E17500","v":0},{"$f":"Import!E17520","v":0},{"$f":"Import!E17540","v":0}]
[18,"Select",{"$f":"Import!E17441","v":"Select"},{"$f":"Import!E17461","v":"Select"},{"$f":"Import!E17481","v":"Select"},{"$f":"Import!E17501","v":0},{"$f":"Import!E17521","v":0},{"$f":"Import!E17541","v":0}]
[19,"Select",{"$f":"Import!E17442","v":"Select"},{"$f":"Import!E17462","v":"Select"},{"$f":"Import!E17482","v":"Select"},{"$f":"Import!E17502","v":0},{"$f":"Import!E17522","v":0},{"$f":"Import!E17542","v":0}]
[20,"Select",{"$f":"Import!E17443","v":"Select"},{"$f":"Import!E17463","v":"Select"},{"$f":"Import!E17483","v":"Select"},{"$f":"Import!E17503","v":0},{"$f":"Import!E17523","v":0},{"$f":"Import!E17543","v":0}]
[]
[null,"Total Non-Performing Loans",null,null,null,{"$f":"SUM(F1101:F1120)","v":0},{"$f":"SUM(G1101:G1120)","v":0}]
[]
[null,"(E) PREFERRED EQUITIES"]
[]
[null,null,"Enter # of Asset Types",{"$f":"Import!E17544","v":0}]
[null,null,null,null,{"$f":"YEAR($C$3)","v":2023},2023,"Weighted"]
[null,"Asset Type","Currency","BSCR Rating","Nominal Amount","Fair Value","Average YTM","Effective Duration","Comments"]
[1,{"$f":"Import!E17545","v":"Select"},{"$f":"Import!E17645","v":"Select"},{"$f":"Import!E17745","v":"Select"},{"$f":"Import!E17845","v":0},{"$f":"Import!E17945","v":0},{"$f":"Import!E18045","v":0},{"$f":"Import!E18145","v":0},{"$f":"Import!E18245","v":0}]
[{"$f":"A1129+1","v":2},{"$f":"Import!E17546","v":"Select"},{"$f":"Import!E17646","v":"Select"},{"$f":"Import!E17746","v":"Select"},{"$f":"Import!E17846","v":0},{"$f":"Import!E17946","v":0},{"$f":"Import!E18046","v":0},{"$f":"Import!E18146","v":0},{"$f":"Import!E18246","v":0}]
[{"$f":"A1130+1","v":3},{"$f":"Import!E17547","v":"Select"},{"$f":"Import!E17647","v":"Select"},{"$f":"Import!E17747","v":"Select"},{"$f":"Import!E17847","v":0},{"$f":"Import!E17947","v":0},{"$f":"Import!E18047","v":0},{"$f":"Import!E18147","v":0},{"$f":"Import!E18247","v":0}]
[4,{"$f":"Import!E17548","v":"Select"},{"$f":"Import!E17648","v":"Select"},{"$f":"Import!E17748","v":"Select"},{"$f":"Import!E17848","v":0},{"$f":"Import!E17948","v":0},{"$f":"Import!E18048","v":0},{"$f":"Import!E18148","v":0},{"$f":"Import!E18248","v":0}]
[5,{"$f":"Import!E17549","v":"Select"},{"$f":"Import!E17649","v":"Select"},{"$f":"Import!E17749","v":"Select"},{"$f":"Import!E17849","v":0},{"$f":"Import!E17949","v":0},{"$f":"Import!E18049","v":0},{"$f":"Import!E18149","v":0},{"$f":"Import!E18249","v":0}]
[6,{"$f":"Import!E17550","v":"Select"},{"$f":"Import!E17650","v":"Select"},{"$f":"Import!E17750","v":"Select"},{"$f":"Import!E17850","v":0},{"$f":"Import!E17950","v":0},{"$f":"Import!E18050","v":0},{"$f":"Import!E18150","v":0},{"$f":"Import!E18250","v":0}]
[7,{"$f":"Import!E17551","v":"Select"},{"$f":"Import!E17651","v":"Select"},{"$f":"Import!E17751","v":"Select"},{"$f":"Import!E17851","v":0},{"$f":"Import!E17951","v":0},{"$f":"Import!E18051","v":0},{"$f":"Import!E18151","v":0},{"$f":"Import!E18251","v":0}]
[8,{"$f":"Import!E17552","v":"Select"},{"$f":"Import!E17652","v":"Select"},{"$f":"Import!E17752","v":"Select"},{"$f":"Import!E17852","v":0},{"$f":"Import!E17952","v":0},{"$f":"Import!E18052","v":0},{"$f":"Import!E18152","v":0},{"$f":"Import!E18252","v":0}]
[9,{"$f":"Import!E17553","v":"Select"},{"$f":"Import!E17653","v":"Select"},{"$f":"Import!E17753","v":"Select"},{"$f":"Import!E17853","v":0},{"$f":"Import!E17953","v":0},{"$f":"Import!E18053","v":0},{"$f":"Import!E18153","v":0},{"$f":"Import!E18253","v":0}]
[10,{"$f":"Import!E17554","v":"Select"},{"$f":"Import!E17654","v":"Select"},{"$f":"Import!E17754","v":"Select"},{"$f":"Import!E17854","v":0},{"$f":"Import!E17954","v":0},{"$f":"Import!E18054","v":0},{"$f":"Import!E18154","v":0},{"$f":"Import!E18254","v":0}]
[11,{"$f":"Import!E17555","v":"Select"},{"$f":"Import!E17655","v":"Select"},{"$f":"Import!E17755","v":"Select"},{"$f":"Import!E17855","v":0},{"$f":"Import!E17955","v":0},{"$f":"Import!E18055","v":0},{"$f":"Import!E18155","v":0},{"$f":"Import!E18255","v":0}]
[12,{"$f":"Import!E17556","v":"Select"},{"$f":"Import!E17656","v":"Select"},{"$f":"Import!E17756","v":"Select"},{"$f":"Import!E17856","v":0},{"$f":"Import!E17956","v":0},{"$f":"Import!E18056","v":0},{"$f":"Import!E18156","v":0},{"$f":"Import!E18256","v":0}]
[13,{"$f":"Import!E17557","v":"Select"},{"$f":"Import!E17657","v":"Select"},{"$f":"Import!E17757","v":"Select"},{"$f":"Import!E17857","v":0},{"$f":"Import!E17957","v":0},{"$f":"Import!E18057","v":0},{"$f":"Import!E18157","v":0},{"$f":"Import!E18257","v":0}]
[14,{"$f":"Import!E17558","v":"Select"},{"$f":"Import!E17658","v":"Select"},{"$f":"Import!E17758","v":"Select"},{"$f":"Import!E17858","v":0},{"$f":"Import!E17958","v":0},{"$f":"Import!E18058","v":0},{"$f":"Import!E18158","v":0},{"$f":"Import!E18258","v":0}]
[15,{"$f":"Import!E17559","v":"Select"},{"$f":"Import!E17659","v":"Select"},{"$f":"Import!E17759","v":"Select"},{"$f":"Import!E17859","v":0},{"$f":"Import!E17959","v":0},{"$f":"Import!E18059","v":0},{"$f":"Import!E18159","v":0},{"$f":"Import!E18259","v":0}]
[16,{"$f":"Import!E17560","v":"Select"},{"$f":"Import!E17660","v":"Select"},{"$f":"Import!E17760","v":"Select"},{"$f":"Import!E17860","v":0},{"$f":"Import!E17960","v":0},{"$f":"Import!E18060","v":0},{"$f":"Import!E18160","v":0},{"$f":"Import!E18260","v":0}]
[17,{"$f":"Import!E17561","v":"Select"},{"$f":"Import!E17661","v":"Select"},{"$f":"Import!E17761","v":"Select"},{"$f":"Import!E17861","v":0},{"$f":"Import!E17961","v":0},{"$f":"Import!E18061","v":0},{"$f":"Import!E18161","v":0},{"$f":"Import!E18261","v":0}]
[18,{"$f":"Import!E17562","v":"Select"},{"$f":"Import!E17662","v":"Select"},{"$f":"Import!E17762","v":"Select"},{"$f":"Import!E17862","v":0},{"$f":"Import!E17962","v":0},{"$f":"Import!E18062","v":0},{"$f":"Import!E18162","v":0},{"$f":"Import!E18262","v":0}]
[19,{"$f":"Import!E17563","v":"Select"},{"$f":"Import!E17663","v":"Select"},{"$f":"Import!E17763","v":"Select"},{"$f":"Import!E17863","v":0},{"$f":"Import!E17963","v":0},{"$f":"Import!E18063","v":0},{"$f":"Import!E18163","v":0},{"$f":"Import!E18263","v":0}]
[20,{"$f":"Import!E17564","v":"Select"},{"$f":"Import!E17664","v":"Select"},{"$f":"Import!E17764","v":"Select"},{"$f":"Import!E17864","v":0},{"$f":"Import!E17964","v":0},{"$f":"Import!E18064","v":0},{"$f":"Import!E18164","v":0},{"$f":"Import!E18264","v":0}]
[21,{"$f":"Import!E17565","v":"Select"},{"$f":"Import!E17665","v":"Select"},{"$f":"Import!E17765","v":"Select"},{"$f":"Import!E17865","v":0},{"$f":"Import!E17965","v":0},{"$f":"Import!E18065","v":0},{"$f":"Import!E18165","v":0},{"$f":"Import!E18265","v":0}]
[22,{"$f":"Import!E17566","v":"Select"},{"$f":"Import!E17666","v":"Select"},{"$f":"Import!E17766","v":"Select"},{"$f":"Import!E17866","v":0},{"$f":"Import!E17966","v":0},{"$f":"Import!E18066","v":0},{"$f":"Import!E18166","v":0},{"$f":"Import!E18266","v":0}]
[23,{"$f":"Import!E17567","v":"Select"},{"$f":"Import!E17667","v":"Select"},{"$f":"Import!E17767","v":"Select"},{"$f":"Import!E17867","v":0},{"$f":"Import!E17967","v":0},{"$f":"Import!E18067","v":0},{"$f":"Import!E18167","v":0},{"$f":"Import!E18267","v":0}]
[24,{"$f":"Import!E17568","v":"Select"},{"$f":"Import!E17668","v":"Select"},{"$f":"Import!E17768","v":"Select"},{"$f":"Import!E17868","v":0},{"$f":"Import!E17968","v":0},{"$f":"Import!E18068","v":0},{"$f":"Import!E18168","v":0},{"$f":"Import!E18268","v":0}]
[25,{"$f":"Import!E17569","v":"Select"},{"$f":"Import!E17669","v":"Select"},{"$f":"Import!E17769","v":"Select"},{"$f":"Import!E17869","v":0},{"$f":"Import!E17969","v":0},{"$f":"Import!E18069","v":0},{"$f":"Import!E18169","v":0},{"$f":"Import!E18269","v":0}]
[26,{"$f":"Import!E17570","v":"Select"},{"$f":"Import!E17670","v":"Select"},{"$f":"Import!E17770","v":"Select"},{"$f":"Import!E17870","v":0},{"$f":"Import!E17970","v":0},{"$f":"Import!E18070","v":0},{"$f":"Import!E18170","v":0},{"$f":"Import!E18270","v":0}]
[27,{"$f":"Import!E17571","v":"Select"},{"$f":"Import!E17671","v":"Select"},{"$f":"Import!E17771","v":"Select"},{"$f":"Import!E17871","v":0},{"$f":"Import!E17971","v":0},{"$f":"Import!E18071","v":0},{"$f":"Import!E18171","v":0},{"$f":"Import!E18271","v":0}]
[28,{"$f":"Import!E17572","v":"Select"},{"$f":"Import!E17672","v":"Select"},{"$f":"Import!E17772","v":"Select"},{"$f":"Import!E17872","v":0},{"$f":"Import!E17972","v":0},{"$f":"Import!E18072","v":0},{"$f":"Import!E18172","v":0},{"$f":"Import!E18272","v":0}]
[29,{"$f":"Import!E17573","v":"Select"},{"$f":"Import!E17673","v":"Select"},{"$f":"Import!E17773","v":"Select"},{"$f":"Import!E17873","v":0},{"$f":"Import!E17973","v":0},{"$f":"Import!E18073","v":0},{"$f":"Import!E18173","v":0},{"$f":"Import!E18273","v":0}]
[30,{"$f":"Import!E17574","v":"Select"},{"$f":"Import!E17674","v":"Select"},{"$f":"Import!E17774","v":"Select"},{"$f":"Import!E17874","v":0},{"$f":"Import!E17974","v":0},{"$f":"Import!E18074","v":0},{"$f":"Import!E18174","v":0},{"$f":"Import!E18274","v":0}]
[31,{"$f":"Import!E17575","v":"Select"},{"$f":"Import!E17675","v":"Select"},{"$f":"Import!E17775","v":"Select"},{"$f":"Import!E17875","v":0},{"$f":"Import!E17975","v":0},{"$f":"Import!E18075","v":0},{"$f":"Import!E18175","v":0},{"$f":"Import!E18275","v":0}]
[32,{"$f":"Import!E17576","v":"Select"},{"$f":"Import!E17676","v":"Select"},{"$f":"Import!E17776","v":"Select"},{"$f":"Import!E17876","v":0},{"$f":"Import!E17976","v":0},{"$f":"Import!E18076","v":0},{"$f":"Import!E18176","v":0},{"$f":"Import!E18276","v":0}]
[33,{"$f":"Import!E17577","v":"Select"},{"$f":"Import!E17677","v":"Select"},{"$f":"Import!E17777","v":"Select"},{"$f":"Import!E17877","v":0},{"$f":"Import!E17977","v":0},{"$f":"Import!E18077","v":0},{"$f":"Import!E18177","v":0},{"$f":"Import!E18277","v":0}]
[34,{"$f":"Import!E17578","v":"Select"},{"$f":"Import!E17678","v":"Select"},{"$f":"Import!E17778","v":"Select"},{"$f":"Import!E17878","v":0},{"$f":"Import!E17978","v":0},{"$f":"Import!E18078","v":0},{"$f":"Import!E18178","v":0},{"$f":"Import!E18278","v":0}]
[35,{"$f":"Import!E17579","v":"Select"},{"$f":"Import!E17679","v":"Select"},{"$f":"Import!E17779","v":"Select"},{"$f":"Import!E17879","v":0},{"$f":"Import!E17979","v":0},{"$f":"Import!E18079","v":0},{"$f":"Import!E18179","v":0},{"$f":"Import!E18279","v":0}]
[36,{"$f":"Import!E17580","v":"Select"},{"$f":"Import!E17680","v":"Select"},{"$f":"Import!E17780","v":"Select"},{"$f":"Import!E17880","v":0},{"$f":"Import!E17980","v":0},{"$f":"Import!E18080","v":0},{"$f":"Import!E18180","v":0},{"$f":"Import!E18280","v":0}]
[37,{"$f":"Import!E17581","v":"Select"},{"$f":"Import!E17681","v":"Select"},{"$f":"Import!E17781","v":"Select"},{"$f":"Import!E17881","v":0},{"$f":"Import!E17981","v":0},{"$f":"Import!E18081","v":0},{"$f":"Import!E18181","v":0},{"$f":"Import!E18281","v":0}]
[38,{"$f":"Import!E17582","v":"Select"},{"$f":"Import!E17682","v":"Select"},{"$f":"Import!E17782","v":"Select"},{"$f":"Import!E17882","v":0},{"$f":"Import!E17982","v":0},{"$f":"Import!E18082","v":0},{"$f":"Import!E18182","v":0},{"$f":"Import!E18282","v":0}]
[39,{"$f":"Import!E17583","v":"Select"},{"$f":"Import!E17683","v":"Select"},{"$f":"Import!E17783","v":"Select"},{"$f":"Import!E17883","v":0},{"$f":"Import!E17983","v":0},{"$f":"Import!E18083","v":0},{"$f":"Import!E18183","v":0},{"$f":"Import!E18283","v":0}]
[40,{"$f":"Import!E17584","v":"Select"},{"$f":"Import!E17684","v":"Select"},{"$f":"Import!E17784","v":"Select"},{"$f":"Import!E17884","v":0},{"$f":"Import!E17984","v":0},{"$f":"Import!E18084","v":0},{"$f":"Import!E18184","v":0},{"$f":"Import!E18284","v":0}]
[41,{"$f":"Import!E17585","v":"Select"},{"$f":"Import!E17685","v":"Select"},{"$f":"Import!E17785","v":"Select"},{"$f":"Import!E17885","v":0},{"$f":"Import!E17985","v":0},{"$f":"Import!E18085","v":0},{"$f":"Import!E18185","v":0},{"$f":"Import!E18285","v":0}]
[42,{"$f":"Import!E17586","v":"Select"},{"$f":"Import!E17686","v":"Select"},{"$f":"Import!E17786","v":"Select"},{"$f":"Import!E17886","v":0},{"$f":"Import!E17986","v":0},{"$f":"Import!E18086","v":0},{"$f":"Import!E18186","v":0},{"$f":"Import!E18286","v":0}]
[43,{"$f":"Import!E17587","v":"Select"},{"$f":"Import!E17687","v":"Select"},{"$f":"Import!E17787","v":"Select"},{"$f":"Import!E17887","v":0},{"$f":"Import!E17987","v":0},{"$f":"Import!E18087","v":0},{"$f":"Import!E18187","v":0},{"$f":"Import!E18287","v":0}]
[44,{"$f":"Import!E17588","v":"Select"},{"$f":"Import!E17688","v":"Select"},{"$f":"Import!E17788","v":"Select"},{"$f":"Import!E17888","v":0},{"$f":"Import!E17988","v":0},{"$f":"Import!E18088","v":0},{"$f":"Import!E18188","v":0},{"$f":"Import!E18288","v":0}]
[45,{"$f":"Import!E17589","v":"Select"},{"$f":"Import!E17689","v":"Select"},{"$f":"Import!E17789","v":"Select"},{"$f":"Import!E17889","v":0},{"$f":"Import!E17989","v":0},{"$f":"Import!E18089","v":0},{"$f":"Import!E18189","v":0},{"$f":"Import!E18289","v":0}]
[46,{"$f":"Import!E17590","v":"Select"},{"$f":"Import!E17690","v":"Select"},{"$f":"Import!E17790","v":"Select"},{"$f":"Import!E17890","v":0},{"$f":"Import!E17990","v":0},{"$f":"Import!E18090","v":0},{"$f":"Import!E18190","v":0},{"$f":"Import!E18290","v":0}]
[47,{"$f":"Import!E17591","v":"Select"},{"$f":"Import!E17691","v":"Select"},{"$f":"Import!E17791","v":"Select"},{"$f":"Import!E17891","v":0},{"$f":"Import!E17991","v":0},{"$f":"Import!E18091","v":0},{"$f":"Import!E18191","v":0},{"$f":"Import!E18291","v":0}]
[48,{"$f":"Import!E17592","v":"Select"},{"$f":"Import!E17692","v":"Select"},{"$f":"Import!E17792","v":"Select"},{"$f":"Import!E17892","v":0},{"$f":"Import!E17992","v":0},{"$f":"Import!E18092","v":0},{"$f":"Import!E18192","v":0},{"$f":"Import!E18292","v":0}]
[49,{"$f":"Import!E17593","v":"Select"},{"$f":"Import!E17693","v":"Select"},{"$f":"Import!E17793","v":"Select"},{"$f":"Import!E17893","v":0},{"$f":"Import!E17993","v":0},{"$f":"Import!E18093","v":0},{"$f":"Import!E18193","v":0},{"$f":"Import!E18293","v":0}]
[50,{"$f":"Import!E17594","v":"Select"},{"$f":"Import!E17694","v":"Select"},{"$f":"Import!E17794","v":"Select"},{"$f":"Import!E17894","v":0},{"$f":"Import!E17994","v":0},{"$f":"Import!E18094","v":0},{"$f":"Import!E18194","v":0},{"$f":"Import!E18294","v":0}]
[51,{"$f":"Import!E17595","v":"Select"},{"$f":"Import!E17695","v":"Select"},{"$f":"Import!E17795","v":"Select"},{"$f":"Import!E17895","v":0},{"$f":"Import!E17995","v":0},{"$f":"Import!E18095","v":0},{"$f":"Import!E18195","v":0},{"$f":"Import!E18295","v":0}]
[52,{"$f":"Import!E17596","v":"Select"},{"$f":"Import!E17696","v":"Select"},{"$f":"Import!E17796","v":"Select"},{"$f":"Import!E17896","v":0},{"$f":"Import!E17996","v":0},{"$f":"Import!E18096","v":0},{"$f":"Import!E18196","v":0},{"$f":"Import!E18296","v":0}]
[53,{"$f":"Import!E17597","v":"Select"},{"$f":"Import!E17697","v":"Select"},{"$f":"Import!E17797","v":"Select"},{"$f":"Import!E17897","v":0},{"$f":"Import!E17997","v":0},{"$f":"Import!E18097","v":0},{"$f":"Import!E18197","v":0},{"$f":"Import!E18297","v":0}]
[54,{"$f":"Import!E17598","v":"Select"},{"$f":"Import!E17698","v":"Select"},{"$f":"Import!E17798","v":"Select"},{"$f":"Import!E17898","v":0},{"$f":"Import!E17998","v":0},{"$f":"Import!E18098","v":0},{"$f":"Import!E18198","v":0},{"$f":"Import!E18298","v":0}]
[55,{"$f":"Import!E17599","v":"Select"},{"$f":"Import!E17699","v":"Select"},{"$f":"Import!E17799","v":"Select"},{"$f":"Import!E17899","v":0},{"$f":"Import!E17999","v":0},{"$f":"Import!E18099","v":0},{"$f":"Import!E18199","v":0},{"$f":"Import!E18299","v":0}]
[56,{"$f":"Import!E17600","v":"Select"},{"$f":"Import!E17700","v":"Select"},{"$f":"Import!E17800","v":"Select"},{"$f":"Import!E17900","v":0},{"$f":"Import!E18000","v":0},{"$f":"Import!E18100","v":0},{"$f":"Import!E18200","v":0},{"$f":"Import!E18300","v":0}]
[57,{"$f":"Import!E17601","v":"Select"},{"$f":"Import!E17701","v":"Select"},{"$f":"Import!E17801","v":"Select"},{"$f":"Import!E17901","v":0},{"$f":"Import!E18001","v":0},{"$f":"Import!E18101","v":0},{"$f":"Import!E18201","v":0},{"$f":"Import!E18301","v":0}]
[58,{"$f":"Import!E17602","v":"Select"},{"$f":"Import!E17702","v":"Select"},{"$f":"Import!E17802","v":"Select"},{"$f":"Import!E17902","v":0},{"$f":"Import!E18002","v":0},{"$f":"Import!E18102","v":0},{"$f":"Import!E18202","v":0},{"$f":"Import!E18302","v":0}]
[59,{"$f":"Import!E17603","v":"Select"},{"$f":"Import!E17703","v":"Select"},{"$f":"Import!E17803","v":"Select"},{"$f":"Import!E17903","v":0},{"$f":"Import!E18003","v":0},{"$f":"Import!E18103","v":0},{"$f":"Import!E18203","v":0},{"$f":"Import!E18303","v":0}]
[60,{"$f":"Import!E17604","v":"Select"},{"$f":"Import!E17704","v":"Select"},{"$f":"Import!E17804","v":"Select"},{"$f":"Import!E17904","v":0},{"$f":"Import!E18004","v":0},{"$f":"Import!E18104","v":0},{"$f":"Import!E18204","v":0},{"$f":"Import!E18304","v":0}]
[61,{"$f":"Import!E17605","v":"Select"},{"$f":"Import!E17705","v":"Select"},{"$f":"Import!E17805","v":"Select"},{"$f":"Import!E17905","v":0},{"$f":"Import!E18005","v":0},{"$f":"Import!E18105","v":0},{"$f":"Import!E18205","v":0},{"$f":"Import!E18305","v":0}]
[62,{"$f":"Import!E17606","v":"Select"},{"$f":"Import!E17706","v":"Select"},{"$f":"Import!E17806","v":"Select"},{"$f":"Import!E17906","v":0},{"$f":"Import!E18006","v":0},{"$f":"Import!E18106","v":0},{"$f":"Import!E18206","v":0},{"$f":"Import!E18306","v":0}]
[63,{"$f":"Import!E17607","v":"Select"},{"$f":"Import!E17707","v":"Select"},{"$f":"Import!E17807","v":"Select"},{"$f":"Import!E17907","v":0},{"$f":"Import!E18007","v":0},{"$f":"Import!E18107","v":0},{"$f":"Import!E18207","v":0},{"$f":"Import!E18307","v":0}]
[64,{"$f":"Import!E17608","v":"Select"},{"$f":"Import!E17708","v":"Select"},{"$f":"Import!E17808","v":"Select"},{"$f":"Import!E17908","v":0},{"$f":"Import!E18008","v":0},{"$f":"Import!E18108","v":0},{"$f":"Import!E18208","v":0},{"$f":"Import!E18308","v":0}]
[65,{"$f":"Import!E17609","v":"Select"},{"$f":"Import!E17709","v":"Select"},{"$f":"Import!E17809","v":"Select"},{"$f":"Import!E17909","v":0},{"$f":"Import!E18009","v":0},{"$f":"Import!E18109","v":0},{"$f":"Import!E18209","v":0},{"$f":"Import!E18309","v":0}]
[66,{"$f":"Import!E17610","v":"Select"},{"$f":"Import!E17710","v":"Select"},{"$f":"Import!E17810","v":"Select"},{"$f":"Import!E17910","v":0},{"$f":"Import!E18010","v":0},{"$f":"Import!E18110","v":0},{"$f":"Import!E18210","v":0},{"$f":"Import!E18310","v":0}]
[{"$f":"A1194+1","v":67},{"$f":"Import!E17611","v":"Select"},{"$f":"Import!E17711","v":"Select"},{"$f":"Import!E17811","v":"Select"},{"$f":"Import!E17911","v":0},{"$f":"Import!E18011","v":0},{"$f":"Import!E18111","v":0},{"$f":"Import!E18211","v":0},{"$f":"Import!E18311","v":0}]
[68,{"$f":"Import!E17612","v":"Select"},{"$f":"Import!E17712","v":"Select"},{"$f":"Import!E17812","v":"Select"},{"$f":"Import!E17912","v":0},{"$f":"Import!E18012","v":0},{"$f":"Import!E18112","v":0},{"$f":"Import!E18212","v":0},{"$f":"Import!E18312","v":0}]
[69,{"$f":"Import!E17613","v":"Select"},{"$f":"Import!E17713","v":"Select"},{"$f":"Import!E17813","v":"Select"},{"$f":"Import!E17913","v":0},{"$f":"Import!E18013","v":0},{"$f":"Import!E18113","v":0},{"$f":"Import!E18213","v":0},{"$f":"Import!E18313","v":0}]
[70,{"$f":"Import!E17614","v":"Select"},{"$f":"Import!E17714","v":"Select"},{"$f":"Import!E17814","v":"Select"},{"$f":"Import!E17914","v":0},{"$f":"Import!E18014","v":0},{"$f":"Import!E18114","v":0},{"$f":"Import!E18214","v":0},{"$f":"Import!E18314","v":0}]
[71,{"$f":"Import!E17615","v":"Select"},{"$f":"Import!E17715","v":"Select"},{"$f":"Import!E17815","v":"Select"},{"$f":"Import!E17915","v":0},{"$f":"Import!E18015","v":0},{"$f":"Import!E18115","v":0},{"$f":"Import!E18215","v":0},{"$f":"Import!E18315","v":0}]
[72,{"$f":"Import!E17616","v":"Select"},{"$f":"Import!E17716","v":"Select"},{"$f":"Import!E17816","v":"Select"},{"$f":"Import!E17916","v":0},{"$f":"Import!E18016","v":0},{"$f":"Import!E18116","v":0},{"$f":"Import!E18216","v":0},{"$f":"Import!E18316","v":0}]
[73,{"$f":"Import!E17617","v":"Select"},{"$f":"Import!E17717","v":"Select"},{"$f":"Import!E17817","v":"Select"},{"$f":"Import!E17917","v":0},{"$f":"Import!E18017","v":0},{"$f":"Import!E18117","v":0},{"$f":"Import!E18217","v":0},{"$f":"Import!E18317","v":0}]
[74,{"$f":"Import!E17618","v":"Select"},{"$f":"Import!E17718","v":"Select"},{"$f":"Import!E17818","v":"Select"},{"$f":"Import!E17918","v":0},{"$f":"Import!E18018","v":0},{"$f":"Import!E18118","v":0},{"$f":"Import!E18218","v":0},{"$f":"Import!E18318","v":0}]
[75,{"$f":"Import!E17619","v":"Select"},{"$f":"Import!E17719","v":"Select"},{"$f":"Import!E17819","v":"Select"},{"$f":"Import!E17919","v":0},{"$f":"Import!E18019","v":0},{"$f":"Import!E18119","v":0},{"$f":"Import!E18219","v":0},{"$f":"Import!E18319","v":0}]
[76,{"$f":"Import!E17620","v":"Select"},{"$f":"Import!E17720","v":"Select"},{"$f":"Import!E17820","v":"Select"},{"$f":"Import!E17920","v":0},{"$f":"Import!E18020","v":0},{"$f":"Import!E18120","v":0},{"$f":"Import!E18220","v":0},{"$f":"Import!E18320","v":0}]
[77,{"$f":"Import!E17621","v":"Select"},{"$f":"Import!E17721","v":"Select"},{"$f":"Import!E17821","v":"Select"},{"$f":"Import!E17921","v":0},{"$f":"Import!E18021","v":0},{"$f":"Import!E18121","v":0},{"$f":"Import!E18221","v":0},{"$f":"Import!E18321","v":0}]
[78,{"$f":"Import!E17622","v":"Select"},{"$f":"Import!E17722","v":"Select"},{"$f":"Import!E17822","v":"Select"},{"$f":"Import!E17922","v":0},{"$f":"Import!E18022","v":0},{"$f":"Import!E18122","v":0},{"$f":"Import!E18222","v":0},{"$f":"Import!E18322","v":0}]
[79,{"$f":"Import!E17623","v":"Select"},{"$f":"Import!E17723","v":"Select"},{"$f":"Import!E17823","v":"Select"},{"$f":"Import!E17923","v":0},{"$f":"Import!E18023","v":0},{"$f":"Import!E18123","v":0},{"$f":"Import!E18223","v":0},{"$f":"Import!E18323","v":0}]
[80,{"$f":"Import!E17624","v":"Select"},{"$f":"Import!E17724","v":"Select"},{"$f":"Import!E17824","v":"Select"},{"$f":"Import!E17924","v":0},{"$f":"Import!E18024","v":0},{"$f":"Import!E18124","v":0},{"$f":"Import!E18224","v":0},{"$f":"Import!E18324","v":0}]
[81,{"$f":"Import!E17625","v":"Select"},{"$f":"Import!E17725","v":"Select"},{"$f":"Import!E17825","v":"Select"},{"$f":"Import!E17925","v":0},{"$f":"Import!E18025","v":0},{"$f":"Import!E18125","v":0},{"$f":"Import!E18225","v":0},{"$f":"Import!E18325","v":0}]
[82,{"$f":"Import!E17626","v":"Select"},{"$f":"Import!E17726","v":"Select"},{"$f":"Import!E17826","v":"Select"},{"$f":"Import!E17926","v":0},{"$f":"Import!E18026","v":0},{"$f":"Import!E18126","v":0},{"$f":"Import!E18226","v":0},{"$f":"Import!E18326","v":0}]
[83,{"$f":"Import!E17627","v":"Select"},{"$f":"Import!E17727","v":"Select"},{"$f":"Import!E17827","v":"Select"},{"$f":"Import!E17927","v":0},{"$f":"Import!E18027","v":0},{"$f":"Import!E18127","v":0},{"$f":"Import!E18227","v":0},{"$f":"Import!E18327","v":0}]
[84,{"$f":"Import!E17628","v":"Select"},{"$f":"Import!E17728","v":"Select"},{"$f":"Import!E17828","v":"Select"},{"$f":"Import!E17928","v":0},{"$f":"Import!E18028","v":0},{"$f":"Import!E18128","v":0},{"$f":"Import!E18228","v":0},{"$f":"Import!E18328","v":0}]
[85,{"$f":"Import!E17629","v":"Select"},{"$f":"Import!E17729","v":"Select"},{"$f":"Import!E17829","v":"Select"},{"$f":"Import!E17929","v":0},{"$f":"Import!E18029","v":0},{"$f":"Import!E18129","v":0},{"$f":"Import!E18229","v":0},{"$f":"Import!E18329","v":0}]
[86,{"$f":"Import!E17630","v":"Select"},{"$f":"Import!E17730","v":"Select"},{"$f":"Import!E17830","v":"Select"},{"$f":"Import!E17930","v":0},{"$f":"Import!E18030","v":0},{"$f":"Import!E18130","v":0},{"$f":"Import!E18230","v":0},{"$f":"Import!E18330","v":0}]
[87,{"$f":"Import!E17631","v":"Select"},{"$f":"Import!E17731","v":"Select"},{"$f":"Import!E17831","v":"Select"},{"$f":"Import!E17931","v":0},{"$f":"Import!E18031","v":0},{"$f":"Import!E18131","v":0},{"$f":"Import!E18231","v":0},{"$f":"Import!E18331","v":0}]
[88,{"$f":"Import!E17632","v":"Select"},{"$f":"Import!E17732","v":"Select"},{"$f":"Import!E17832","v":"Select"},{"$f":"Import!E17932","v":0},{"$f":"Import!E18032","v":0},{"$f":"Import!E18132","v":0},{"$f":"Import!E18232","v":0},{"$f":"Import!E18332","v":0}]
[89,{"$f":"Import!E17633","v":"Select"},{"$f":"Import!E17733","v":"Select"},{"$f":"Import!E17833","v":"Select"},{"$f":"Import!E17933","v":0},{"$f":"Import!E18033","v":0},{"$f":"Import!E18133","v":0},{"$f":"Import!E18233","v":0},{"$f":"Import!E18333","v":0}]
[90,{"$f":"Import!E17634","v":"Select"},{"$f":"Import!E17734","v":"Select"},{"$f":"Import!E17834","v":"Select"},{"$f":"Import!E17934","v":0},{"$f":"Import!E18034","v":0},{"$f":"Import!E18134","v":0},{"$f":"Import!E18234","v":0},{"$f":"Import!E18334","v":0}]
[91,{"$f":"Import!E17635","v":"Select"},{"$f":"Import!E17735","v":"Select"},{"$f":"Import!E17835","v":"Select"},{"$f":"Import!E17935","v":0},{"$f":"Import!E18035","v":0},{"$f":"Import!E18135","v":0},{"$f":"Import!E18235","v":0},{"$f":"Import!E18335","v":0}]
[92,{"$f":"Import!E17636","v":"Select"},{"$f":"Import!E17736","v":"Select"},{"$f":"Import!E17836","v":"Select"},{"$f":"Import!E17936","v":0},{"$f":"Import!E18036","v":0},{"$f":"Import!E18136","v":0},{"$f":"Import!E18236","v":0},{"$f":"Import!E18336","v":0}]
[93,{"$f":"Import!E17637","v":"Select"},{"$f":"Import!E17737","v":"Select"},{"$f":"Import!E17837","v":"Select"},{"$f":"Import!E17937","v":0},{"$f":"Import!E18037","v":0},{"$f":"Import!E18137","v":0},{"$f":"Import!E18237","v":0},{"$f":"Import!E18337","v":0}]
[94,{"$f":"Import!E17638","v":"Select"},{"$f":"Import!E17738","v":"Select"},{"$f":"Import!E17838","v":"Select"},{"$f":"Import!E17938","v":0},{"$f":"Import!E18038","v":0},{"$f":"Import!E18138","v":0},{"$f":"Import!E18238","v":0},{"$f":"Import!E18338","v":0}]
[95,{"$f":"Import!E17639","v":"Select"},{"$f":"Import!E17739","v":"Select"},{"$f":"Import!E17839","v":"Select"},{"$f":"Import!E17939","v":0},{"$f":"Import!E18039","v":0},{"$f":"Import!E18139","v":0},{"$f":"Import!E18239","v":0},{"$f":"Import!E18339","v":0}]
[96,{"$f":"Import!E17640","v":"Select"},{"$f":"Import!E17740","v":"Select"},{"$f":"Import!E17840","v":"Select"},{"$f":"Import!E17940","v":0},{"$f":"Import!E18040","v":0},{"$f":"Import!E18140","v":0},{"$f":"Import!E18240","v":0},{"$f":"Import!E18340","v":0}]
[97,{"$f":"Import!E17641","v":"Select"},{"$f":"Import!E17741","v":"Select"},{"$f":"Import!E17841","v":"Select"},{"$f":"Import!E17941","v":0},{"$f":"Import!E18041","v":0},{"$f":"Import!E18141","v":0},{"$f":"Import!E18241","v":0},{"$f":"Import!E18341","v":0}]
[98,{"$f":"Import!E17642","v":"Select"},{"$f":"Import!E17742","v":"Select"},{"$f":"Import!E17842","v":"Select"},{"$f":"Import!E17942","v":0},{"$f":"Import!E18042","v":0},{"$f":"Import!E18142","v":0},{"$f":"Import!E18242","v":0},{"$f":"Import!E18342","v":0}]
[99,{"$f":"Import!E17643","v":"Select"},{"$f":"Import!E17743","v":"Select"},{"$f":"Import!E17843","v":"Select"},{"$f":"Import!E17943","v":0},{"$f":"Import!E18043","v":0},{"$f":"Import!E18143","v":0},{"$f":"Import!E18243","v":0},{"$f":"Import!E18343","v":0}]
[100,{"$f":"Import!E17644","v":"Select"},{"$f":"Import!E17744","v":"Select"},{"$f":"Import!E17844","v":"Select"},{"$f":"Import!E17944","v":0},{"$f":"Import!E18044","v":0},{"$f":"Import!E18144","v":0},{"$f":"Import!E18244","v":0},{"$f":"Import!E18344","v":0}]
[]
[null,"Total Preferred Equities",null,null,{"$f":"SUM(E1129:E1228)","v":0},{"$f":"SUM(F1129:F1228)","v":0},{"$f":"IFERROR(SUMPRODUCT(G1129:G1228,$F1129:$F1228)/SUM($F1129:$F1228),0)","v":0},{"$f":"IFERROR(SUMPRODUCT(H1129:H1228,$F1129:$F1228)/SUM($F1129:$F1228),0)","v":0}]
[]
[null,"(F) COMMON EQUITIES"]
[]
[null,null,"Enter # of Asset Types",{"$f":"Import!E18345","v":0}]
[null,null,null,null,{"$f":"YEAR($C$3)","v":2023}]
[null,"Asset Type","Currency","Country","Fair Value","Comments"]
[1,{"$f":"Import!E18346","v":"Select"},{"$f":"Import!E18446","v":"Select"},{"$f":"Import!E18546","v":"Select"},{"$f":"Import!E18646","v":0},{"$f":"Import!E18746","v":0}]
[{"$f":"A1237+1","v":2},{"$f":"Import!E18347","v":"Select"},{"$f":"Import!E18447","v":"Select"},{"$f":"Import!E18547","v":"Select"},{"$f":"Import!E18647","v":0},{"$f":"Import!E18747","v":0}]
[{"$f":"A1238+1","v":3},{"$f":"Import!E18348","v":"Select"},{"$f":"Import!E18448","v":"Select"},{"$f":"Import!E18548","v":"Select"},{"$f":"Import!E18648","v":0},{"$f":"Import!E18748","v":0}]
[4,{"$f":"Import!E18349","v":"Select"},{"$f":"Import!E18449","v":"Select"},{"$f":"Import!E18549","v":"Select"},{"$f":"Import!E18649","v":0},{"$f":"Import!E18749","v":0}]
[5,{"$f":"Import!E18350","v":"Select"},{"$f":"Import!E18450","v":"Select"},{"$f":"Import!E18550","v":"Select"},{"$f":"Import!E18650","v":0},{"$f":"Import!E18750","v":0}]
[6,{"$f":"Import!E18351","v":"Select"},{"$f":"Import!E18451","v":"Select"},{"$f":"Import!E18551","v":"Select"},{"$f":"Import!E18651","v":0},{"$f":"Import!E18751","v":0}]
[7,{"$f":"Import!E18352","v":"Select"},{"$f":"Import!E18452","v":"Select"},{"$f":"Import!E18552","v":"Select"},{"$f":"Import!E18652","v":0},{"$f":"Import!E18752","v":0}]
[8,{"$f":"Import!E18353","v":"Select"},{"$f":"Import!E18453","v":"Select"},{"$f":"Import!E18553","v":"Select"},{"$f":"Import!E18653","v":0},{"$f":"Import!E18753","v":0}]
[9,{"$f":"Import!E18354","v":"Select"},{"$f":"Import!E18454","v":"Select"},{"$f":"Import!E18554","v":"Select"},{"$f":"Import!E18654","v":0},{"$f":"Import!E18754","v":0}]
[10,{"$f":"Import!E18355","v":"Select"},{"$f":"Import!E18455","v":"Select"},{"$f":"Import!E18555","v":"Select"},{"$f":"Import!E18655","v":0},{"$f":"Import!E18755","v":0}]
[11,{"$f":"Import!E18356","v":"Select"},{"$f":"Import!E18456","v":"Select"},{"$f":"Import!E18556","v":"Select"},{"$f":"Import!E18656","v":0},{"$f":"Import!E18756","v":0}]
[12,{"$f":"Import!E18357","v":"Select"},{"$f":"Import!E18457","v":"Select"},{"$f":"Import!E18557","v":"Select"},{"$f":"Import!E18657","v":0},{"$f":"Import!E18757","v":0}]
[13,{"$f":"Import!E18358","v":"Select"},{"$f":"Import!E18458","v":"Select"},{"$f":"Import!E18558","v":"Select"},{"$f":"Import!E18658","v":0},{"$f":"Import!E18758","v":0}]
[14,{"$f":"Import!E18359","v":"Select"},{"$f":"Import!E18459","v":"Select"},{"$f":"Import!E18559","v":"Select"},{"$f":"Import!E18659","v":0},{"$f":"Import!E18759","v":0}]
[15,{"$f":"Import!E18360","v":"Select"},{"$f":"Import!E18460","v":"Select"},{"$f":"Import!E18560","v":"Select"},{"$f":"Import!E18660","v":0},{"$f":"Import!E18760","v":0}]
[16,{"$f":"Import!E18361","v":"Select"},{"$f":"Import!E18461","v":"Select"},{"$f":"Import!E18561","v":"Select"},{"$f":"Import!E18661","v":0},{"$f":"Import!E18761","v":0}]
[17,{"$f":"Import!E18362","v":"Select"},{"$f":"Import!E18462","v":"Select"},{"$f":"Import!E18562","v":"Select"},{"$f":"Import!E18662","v":0},{"$f":"Import!E18762","v":0}]
[18,{"$f":"Import!E18363","v":"Select"},{"$f":"Import!E18463","v":"Select"},{"$f":"Import!E18563","v":"Select"},{"$f":"Import!E18663","v":0},{"$f":"Import!E18763","v":0}]
[19,{"$f":"Import!E18364","v":"Select"},{"$f":"Import!E18464","v":"Select"},{"$f":"Import!E18564","v":"Select"},{"$f":"Import!E18664","v":0},{"$f":"Import!E18764","v":0}]
[20,{"$f":"Import!E18365","v":"Select"},{"$f":"Import!E18465","v":"Select"},{"$f":"Import!E18565","v":"Select"},{"$f":"Import!E18665","v":0},{"$f":"Import!E18765","v":0}]
[21,{"$f":"Import!E18366","v":"Select"},{"$f":"Import!E18466","v":"Select"},{"$f":"Import!E18566","v":"Select"},{"$f":"Import!E18666","v":0},{"$f":"Import!E18766","v":0}]
[22,{"$f":"Import!E18367","v":"Select"},{"$f":"Import!E18467","v":"Select"},{"$f":"Import!E18567","v":"Select"},{"$f":"Import!E18667","v":0},{"$f":"Import!E18767","v":0}]
[23,{"$f":"Import!E18368","v":"Select"},{"$f":"Import!E18468","v":"Select"},{"$f":"Import!E18568","v":"Select"},{"$f":"Import!E18668","v":0},{"$f":"Import!E18768","v":0}]
[24,{"$f":"Import!E18369","v":"Select"},{"$f":"Import!E18469","v":"Select"},{"$f":"Import!E18569","v":"Select"},{"$f":"Import!E18669","v":0},{"$f":"Import!E18769","v":0}]
[25,{"$f":"Import!E18370","v":"Select"},{"$f":"Import!E18470","v":"Select"},{"$f":"Import!E18570","v":"Select"},{"$f":"Import!E18670","v":0},{"$f":"Import!E18770","v":0}]
[26,{"$f":"Import!E18371","v":"Select"},{"$f":"Import!E18471","v":"Select"},{"$f":"Import!E18571","v":"Select"},{"$f":"Import!E18671","v":0},{"$f":"Import!E18771","v":0}]
[27,{"$f":"Import!E18372","v":"Select"},{"$f":"Import!E18472","v":"Select"},{"$f":"Import!E18572","v":"Select"},{"$f":"Import!E18672","v":0},{"$f":"Import!E18772","v":0}]
[28,{"$f":"Import!E18373","v":"Select"},{"$f":"Import!E18473","v":"Select"},{"$f":"Import!E18573","v":"Select"},{"$f":"Import!E18673","v":0},{"$f":"Import!E18773","v":0}]
[29,{"$f":"Import!E18374","v":"Select"},{"$f":"Import!E18474","v":"Select"},{"$f":"Import!E18574","v":"Select"},{"$f":"Import!E18674","v":0},{"$f":"Import!E18774","v":0}]
[30,{"$f":"Import!E18375","v":"Select"},{"$f":"Import!E18475","v":"Select"},{"$f":"Import!E18575","v":"Select"},{"$f":"Import!E18675","v":0},{"$f":"Import!E18775","v":0}]
[31,{"$f":"Import!E18376","v":"Select"},{"$f":"Import!E18476","v":"Select"},{"$f":"Import!E18576","v":"Select"},{"$f":"Import!E18676","v":0},{"$f":"Import!E18776","v":0}]
[32,{"$f":"Import!E18377","v":"Select"},{"$f":"Import!E18477","v":"Select"},{"$f":"Import!E18577","v":"Select"},{"$f":"Import!E18677","v":0},{"$f":"Import!E18777","v":0}]
[33,{"$f":"Import!E18378","v":"Select"},{"$f":"Import!E18478","v":"Select"},{"$f":"Import!E18578","v":"Select"},{"$f":"Import!E18678","v":0},{"$f":"Import!E18778","v":0}]
[34,{"$f":"Import!E18379","v":"Select"},{"$f":"Import!E18479","v":"Select"},{"$f":"Import!E18579","v":"Select"},{"$f":"Import!E18679","v":0},{"$f":"Import!E18779","v":0}]
[35,{"$f":"Import!E18380","v":"Select"},{"$f":"Import!E18480","v":"Select"},{"$f":"Import!E18580","v":"Select"},{"$f":"Import!E18680","v":0},{"$f":"Import!E18780","v":0}]
[36,{"$f":"Import!E18381","v":"Select"},{"$f":"Import!E18481","v":"Select"},{"$f":"Import!E18581","v":"Select"},{"$f":"Import!E18681","v":0},{"$f":"Import!E18781","v":0}]
[37,{"$f":"Import!E18382","v":"Select"},{"$f":"Import!E18482","v":"Select"},{"$f":"Import!E18582","v":"Select"},{"$f":"Import!E18682","v":0},{"$f":"Import!E18782","v":0}]
[38,{"$f":"Import!E18383","v":"Select"},{"$f":"Import!E18483","v":"Select"},{"$f":"Import!E18583","v":"Select"},{"$f":"Import!E18683","v":0},{"$f":"Import!E18783","v":0}]
[39,{"$f":"Import!E18384","v":"Select"},{"$f":"Import!E18484","v":"Select"},{"$f":"Import!E18584","v":"Select"},{"$f":"Import!E18684","v":0},{"$f":"Import!E18784","v":0}]
[40,{"$f":"Import!E18385","v":"Select"},{"$f":"Import!E18485","v":"Select"},{"$f":"Import!E18585","v":"Select"},{"$f":"Import!E18685","v":0},{"$f":"Import!E18785","v":0}]
[41,{"$f":"Import!E18386","v":"Select"},{"$f":"Import!E18486","v":"Select"},{"$f":"Import!E18586","v":"Select"},{"$f":"Import!E18686","v":0},{"$f":"Import!E18786","v":0}]
[42,{"$f":"Import!E18387","v":"Select"},{"$f":"Import!E18487","v":"Select"},{"$f":"Import!E18587","v":"Select"},{"$f":"Import!E18687","v":0},{"$f":"Import!E18787","v":0}]
[43,{"$f":"Import!E18388","v":"Select"},{"$f":"Import!E18488","v":"Select"},{"$f":"Import!E18588","v":"Select"},{"$f":"Import!E18688","v":0},{"$f":"Import!E18788","v":0}]
[44,{"$f":"Import!E18389","v":"Select"},{"$f":"Import!E18489","v":"Select"},{"$f":"Import!E18589","v":"Select"},{"$f":"Import!E18689","v":0},{"$f":"Import!E18789","v":0}]
[45,{"$f":"Import!E18390","v":"Select"},{"$f":"Import!E18490","v":"Select"},{"$f":"Import!E18590","v":"Select"},{"$f":"Import!E18690","v":0},{"$f":"Import!E18790","v":0}]
[46,{"$f":"Import!E18391","v":"Select"},{"$f":"Import!E18491","v":"Select"},{"$f":"Import!E18591","v":"Select"},{"$f":"Import!E18691","v":0},{"$f":"Import!E18791","v":0}]
[47,{"$f":"Import!E18392","v":"Select"},{"$f":"Import!E18492","v":"Select"},{"$f":"Import!E18592","v":"Select"},{"$f":"Import!E18692","v":0},{"$f":"Import!E18792","v":0}]
[48,{"$f":"Import!E18393","v":"Select"},{"$f":"Import!E18493","v":"Select"},{"$f":"Import!E18593","v":"Select"},{"$f":"Import!E18693","v":0},{"$f":"Import!E18793","v":0}]
[49,{"$f":"Import!E18394","v":"Select"},{"$f":"Import!E18494","v":"Select"},{"$f":"Import!E18594","v":"Select"},{"$f":"Import!E18694","v":0},{"$f":"Import!E18794","v":0}]
[50,{"$f":"Import!E18395","v":"Select"},{"$f":"Import!E18495","v":"Select"},{"$f":"Import!E18595","v":"Select"},{"$f":"Import!E18695","v":0},{"$f":"Import!E18795","v":0}]
[51,{"$f":"Import!E18396","v":"Select"},{"$f":"Import!E18496","v":"Select"},{"$f":"Import!E18596","v":"Select"},{"$f":"Import!E18696","v":0},{"$f":"Import!E18796","v":0}]
[52,{"$f":"Import!E18397","v":"Select"},{"$f":"Import!E18497","v":"Select"},{"$f":"Import!E18597","v":"Select"},{"$f":"Import!E18697","v":0},{"$f":"Import!E18797","v":0}]
[53,{"$f":"Import!E18398","v":"Select"},{"$f":"Import!E18498","v":"Select"},{"$f":"Import!E18598","v":"Select"},{"$f":"Import!E18698","v":0},{"$f":"Import!E18798","v":0}]
[54,{"$f":"Import!E18399","v":"Select"},{"$f":"Import!E18499","v":"Select"},{"$f":"Import!E18599","v":"Select"},{"$f":"Import!E18699","v":0},{"$f":"Import!E18799","v":0}]
[55,{"$f":"Import!E18400","v":"Select"},{"$f":"Import!E18500","v":"Select"},{"$f":"Import!E18600","v":"Select"},{"$f":"Import!E18700","v":0},{"$f":"Import!E18800","v":0}]
[56,{"$f":"Import!E18401","v":"Select"},{"$f":"Import!E18501","v":"Select"},{"$f":"Import!E18601","v":"Select"},{"$f":"Import!E18701","v":0},{"$f":"Import!E18801","v":0}]
[57,{"$f":"Import!E18402","v":"Select"},{"$f":"Import!E18502","v":"Select"},{"$f":"Import!E18602","v":"Select"},{"$f":"Import!E18702","v":0},{"$f":"Import!E18802","v":0}]
[58,{"$f":"Import!E18403","v":"Select"},{"$f":"Import!E18503","v":"Select"},{"$f":"Import!E18603","v":"Select"},{"$f":"Import!E18703","v":0},{"$f":"Import!E18803","v":0}]
[59,{"$f":"Import!E18404","v":"Select"},{"$f":"Import!E18504","v":"Select"},{"$f":"Import!E18604","v":"Select"},{"$f":"Import!E18704","v":0},{"$f":"Import!E18804","v":0}]
[60,{"$f":"Import!E18405","v":"Select"},{"$f":"Import!E18505","v":"Select"},{"$f":"Import!E18605","v":"Select"},{"$f":"Import!E18705","v":0},{"$f":"Import!E18805","v":0}]
[61,{"$f":"Import!E18406","v":"Select"},{"$f":"Import!E18506","v":"Select"},{"$f":"Import!E18606","v":"Select"},{"$f":"Import!E18706","v":0},{"$f":"Import!E18806","v":0}]
[62,{"$f":"Import!E18407","v":"Select"},{"$f":"Import!E18507","v":"Select"},{"$f":"Import!E18607","v":"Select"},{"$f":"Import!E18707","v":0},{"$f":"Import!E18807","v":0}]
[63,{"$f":"Import!E18408","v":"Select"},{"$f":"Import!E18508","v":"Select"},{"$f":"Import!E18608","v":"Select"},{"$f":"Import!E18708","v":0},{"$f":"Import!E18808","v":0}]
[64,{"$f":"Import!E18409","v":"Select"},{"$f":"Import!E18509","v":"Select"},{"$f":"Import!E18609","v":"Select"},{"$f":"Import!E18709","v":0},{"$f":"Import!E18809","v":0}]
[65,{"$f":"Import!E18410","v":"Select"},{"$f":"Import!E18510","v":"Select"},{"$f":"Import!E18610","v":"Select"},{"$f":"Import!E18710","v":0},{"$f":"Import!E18810","v":0}]
[66,{"$f":"Import!E18411","v":"Select"},{"$f":"Import!E18511","v":"Select"},{"$f":"Import!E18611","v":"Select"},{"$f":"Import!E18711","v":0},{"$f":"Import!E18811","v":0}]
[{"$f":"A1302+1","v":67},{"$f":"Import!E18412","v":"Select"},{"$f":"Import!E18512","v":"Select"},{"$f":"Import!E18612","v":"Select"},{"$f":"Import!E18712","v":0},{"$f":"Import!E18812","v":0}]
[68,{"$f":"Import!E18413","v":"Select"},{"$f":"Import!E18513","v":"Select"},{"$f":"Import!E18613","v":"Select"},{"$f":"Import!E18713","v":0},{"$f":"Import!E18813","v":0}]
[69,{"$f":"Import!E18414","v":"Select"},{"$f":"Import!E18514","v":"Select"},{"$f":"Import!E18614","v":"Select"},{"$f":"Import!E18714","v":0},{"$f":"Import!E18814","v":0}]
[70,{"$f":"Import!E18415","v":"Select"},{"$f":"Import!E18515","v":"Select"},{"$f":"Import!E18615","v":"Select"},{"$f":"Import!E18715","v":0},{"$f":"Import!E18815","v":0}]
[71,{"$f":"Import!E18416","v":"Select"},{"$f":"Import!E18516","v":"Select"},{"$f":"Import!E18616","v":"Select"},{"$f":"Import!E18716","v":0},{"$f":"Import!E18816","v":0}]
[72,{"$f":"Import!E18417","v":"Select"},{"$f":"Import!E18517","v":"Select"},{"$f":"Import!E18617","v":"Select"},{"$f":"Import!E18717","v":0},{"$f":"Import!E18817","v":0}]
[73,{"$f":"Import!E18418","v":"Select"},{"$f":"Import!E18518","v":"Select"},{"$f":"Import!E18618","v":"Select"},{"$f":"Import!E18718","v":0},{"$f":"Import!E18818","v":0}]
[74,{"$f":"Import!E18419","v":"Select"},{"$f":"Import!E18519","v":"Select"},{"$f":"Import!E18619","v":"Select"},{"$f":"Import!E18719","v":0},{"$f":"Import!E18819","v":0}]
[75,{"$f":"Import!E18420","v":"Select"},{"$f":"Import!E18520","v":"Select"},{"$f":"Import!E18620","v":"Select"},{"$f":"Import!E18720","v":0},{"$f":"Import!E18820","v":0}]
[76,{"$f":"Import!E18421","v":"Select"},{"$f":"Import!E18521","v":"Select"},{"$f":"Import!E18621","v":"Select"},{"$f":"Import!E18721","v":0},{"$f":"Import!E18821","v":0}]
[77,{"$f":"Import!E18422","v":"Select"},{"$f":"Import!E18522","v":"Select"},{"$f":"Import!E18622","v":"Select"},{"$f":"Import!E18722","v":0},{"$f":"Import!E18822","v":0}]
[78,{"$f":"Import!E18423","v":"Select"},{"$f":"Import!E18523","v":"Select"},{"$f":"Import!E18623","v":"Select"},{"$f":"Import!E18723","v":0},{"$f":"Import!E18823","v":0}]
[79,{"$f":"Import!E18424","v":"Select"},{"$f":"Import!E18524","v":"Select"},{"$f":"Import!E18624","v":"Select"},{"$f":"Import!E18724","v":0},{"$f":"Import!E18824","v":0}]
[80,{"$f":"Import!E18425","v":"Select"},{"$f":"Import!E18525","v":"Select"},{"$f":"Import!E18625","v":"Select"},{"$f":"Import!E18725","v":0},{"$f":"Import!E18825","v":0}]
[81,{"$f":"Import!E18426","v":"Select"},{"$f":"Import!E18526","v":"Select"},{"$f":"Import!E18626","v":"Select"},{"$f":"Import!E18726","v":0},{"$f":"Import!E18826","v":0}]
[82,{"$f":"Import!E18427","v":"Select"},{"$f":"Import!E18527","v":"Select"},{"$f":"Import!E18627","v":"Select"},{"$f":"Import!E18727","v":0},{"$f":"Import!E18827","v":0}]
[83,{"$f":"Import!E18428","v":"Select"},{"$f":"Import!E18528","v":"Select"},{"$f":"Import!E18628","v":"Select"},{"$f":"Import!E18728","v":0},{"$f":"Import!E18828","v":0}]
[84,{"$f":"Import!E18429","v":"Select"},{"$f":"Import!E18529","v":"Select"},{"$f":"Import!E18629","v":"Select"},{"$f":"Import!E18729","v":0},{"$f":"Import!E18829","v":0}]
[85,{"$f":"Import!E18430","v":"Select"},{"$f":"Import!E18530","v":"Select"},{"$f":"Import!E18630","v":"Select"},{"$f":"Import!E18730","v":0},{"$f":"Import!E18830","v":0}]
[86,{"$f":"Import!E18431","v":"Select"},{"$f":"Import!E18531","v":"Select"},{"$f":"Import!E18631","v":"Select"},{"$f":"Import!E18731","v":0},{"$f":"Import!E18831","v":0}]
[87,{"$f":"Import!E18432","v":"Select"},{"$f":"Import!E18532","v":"Select"},{"$f":"Import!E18632","v":"Select"},{"$f":"Import!E18732","v":0},{"$f":"Import!E18832","v":0}]
[88,{"$f":"Import!E18433","v":"Select"},{"$f":"Import!E18533","v":"Select"},{"$f":"Import!E18633","v":"Select"},{"$f":"Import!E18733","v":0},{"$f":"Import!E18833","v":0}]
[89,{"$f":"Import!E18434","v":"Select"},{"$f":"Import!E18534","v":"Select"},{"$f":"Import!E18634","v":"Select"},{"$f":"Import!E18734","v":0},{"$f":"Import!E18834","v":0}]
[90,{"$f":"Import!E18435","v":"Select"},{"$f":"Import!E18535","v":"Select"},{"$f":"Import!E18635","v":"Select"},{"$f":"Import!E18735","v":0},{"$f":"Import!E18835","v":0}]
[91,{"$f":"Import!E18436","v":"Select"},{"$f":"Import!E18536","v":"Select"},{"$f":"Import!E18636","v":"Select"},{"$f":"Import!E18736","v":0},{"$f":"Import!E18836","v":0}]
[92,{"$f":"Import!E18437","v":"Select"},{"$f":"Import!E18537","v":"Select"},{"$f":"Import!E18637","v":"Select"},{"$f":"Import!E18737","v":0},{"$f":"Import!E18837","v":0}]
[93,{"$f":"Import!E18438","v":"Select"},{"$f":"Import!E18538","v":"Select"},{"$f":"Import!E18638","v":"Select"},{"$f":"Import!E18738","v":0},{"$f":"Import!E18838","v":0}]
[94,{"$f":"Import!E18439","v":"Select"},{"$f":"Import!E18539","v":"Select"},{"$f":"Import!E18639","v":"Select"},{"$f":"Import!E18739","v":0},{"$f":"Import!E18839","v":0}]
[95,{"$f":"Import!E18440","v":"Select"},{"$f":"Import!E18540","v":"Select"},{"$f":"Import!E18640","v":"Select"},{"$f":"Import!E18740","v":0},{"$f":"Import!E18840","v":0}]
[96,{"$f":"Import!E18441","v":"Select"},{"$f":"Import!E18541","v":"Select"},{"$f":"Import!E18641","v":"Select"},{"$f":"Import!E18741","v":0},{"$f":"Import!E18841","v":0}]
[97,{"$f":"Import!E18442","v":"Select"},{"$f":"Import!E18542","v":"Select"},{"$f":"Import!E18642","v":"Select"},{"$f":"Import!E18742","v":0},{"$f":"Import!E18842","v":0}]
[98,{"$f":"Import!E18443","v":"Select"},{"$f":"Import!E18543","v":"Select"},{"$f":"Import!E18643","v":"Select"},{"$f":"Import!E18743","v":0},{"$f":"Import!E18843","v":0}]
[99,{"$f":"Import!E18444","v":"Select"},{"$f":"Import!E18544","v":"Select"},{"$f":"Import!E18644","v":"Select"},{"$f":"Import!E18744","v":0},{"$f":"Import!E18844","v":0}]
[100,{"$f":"Import!E18445","v":"Select"},{"$f":"Import!E18545","v":"Select"},{"$f":"Import!E18645","v":"Select"},{"$f":"Import!E18745","v":0},{"$f":"Import!E18845","v":0}]
[]
[null,"Total Common Equities",null,null,{"$f":"SUM(E1237:E1336)","v":0}]
[]
[null,"(G) REAL ESTATE"]
[]
[null,null,"Enter # of Asset Types",{"$f":"Import!E18846","v":0}]
[null,null,null,null,null,{"$f":"YEAR($C$3)","v":2023},2023]
[null,"Asset Type","Currency","Country","Purpose","Cost","Fair Value","Comments"]
[1,{"$f":"Import!E18847","v":"Select"},{"$f":"Import!E18947","v":"Select"},{"$f":"Import!E19047","v":"Select"},{"$f":"Import!E19147","v":"Select"},{"$f":"Import!E19247","v":0},{"$f":"Import!E19347","v":0},{"$f":"Import!E19447","v":0}]
[{"$f":"A1345+1","v":2},{"$f":"Import!E18848","v":"Select"},{"$f":"Import!E18948","v":"Select"},{"$f":"Import!E19048","v":"Select"},"Select",{"$f":"Import!E19248","v":0},{"$f":"Import!E19348","v":0},{"$f":"Import!E19448","v":0}]
[{"$f":"A1346+1","v":3},{"$f":"Import!E18849","v":"Select"},{"$f":"Import!E18949","v":"Select"},{"$f":"Import!E19049","v":"Select"},"Select",{"$f":"Import!E19249","v":0},{"$f":"Import!E19349","v":0},{"$f":"Import!E19449","v":0}]
[4,{"$f":"Import!E18850","v":"Select"},{"$f":"Import!E18950","v":"Select"},{"$f":"Import!E19050","v":"Select"},"Select",{"$f":"Import!E19250","v":0},{"$f":"Import!E19350","v":0},{"$f":"Import!E19450","v":0}]
[5,{"$f":"Import!E18851","v":"Select"},{"$f":"Import!E18951","v":"Select"},{"$f":"Import!E19051","v":"Select"},"Select",{"$f":"Import!E19251","v":0},{"$f":"Import!E19351","v":0},{"$f":"Import!E19451","v":0}]
[6,{"$f":"Import!E18852","v":"Select"},{"$f":"Import!E18952","v":"Select"},{"$f":"Import!E19052","v":"Select"},"Select",{"$f":"Import!E19252","v":0},{"$f":"Import!E19352","v":0},{"$f":"Import!E19452","v":0}]
[7,{"$f":"Import!E18853","v":"Select"},{"$f":"Import!E18953","v":"Select"},{"$f":"Import!E19053","v":"Select"},"Select",{"$f":"Import!E19253","v":0},{"$f":"Import!E19353","v":0},{"$f":"Import!E19453","v":0}]
[8,{"$f":"Import!E18854","v":"Select"},{"$f":"Import!E18954","v":"Select"},{"$f":"Import!E19054","v":"Select"},"Select",{"$f":"Import!E19254","v":0},{"$f":"Import!E19354","v":0},{"$f":"Import!E19454","v":0}]
[9,{"$f":"Import!E18855","v":"Select"},{"$f":"Import!E18955","v":"Select"},{"$f":"Import!E19055","v":"Select"},"Select",{"$f":"Import!E19255","v":0},{"$f":"Import!E19355","v":0},{"$f":"Import!E19455","v":0}]
[10,{"$f":"Import!E18856","v":"Select"},{"$f":"Import!E18956","v":"Select"},{"$f":"Import!E19056","v":"Select"},"Select",{"$f":"Import!E19256","v":0},{"$f":"Import!E19356","v":0},{"$f":"Import!E19456","v":0}]
[11,{"$f":"Import!E18857","v":"Select"},{"$f":"Import!E18957","v":"Select"},{"$f":"Import!E19057","v":"Select"},"Select",{"$f":"Import!E19257","v":0},{"$f":"Import!E19357","v":0},{"$f":"Import!E19457","v":0}]
[12,{"$f":"Import!E18858","v":"Select"},{"$f":"Import!E18958","v":"Select"},{"$f":"Import!E19058","v":"Select"},"Select",{"$f":"Import!E19258","v":0},{"$f":"Import!E19358","v":0},{"$f":"Import!E19458","v":0}]
[13,{"$f":"Import!E18859","v":"Select"},{"$f":"Import!E18959","v":"Select"},{"$f":"Import!E19059","v":"Select"},"Select",{"$f":"Import!E19259","v":0},{"$f":"Import!E19359","v":0},{"$f":"Import!E19459","v":0}]
[14,{"$f":"Import!E18860","v":"Select"},{"$f":"Import!E18960","v":"Select"},{"$f":"Import!E19060","v":"Select"},"Select",{"$f":"Import!E19260","v":0},{"$f":"Import!E19360","v":0},{"$f":"Import!E19460","v":0}]
[15,{"$f":"Import!E18861","v":"Select"},{"$f":"Import!E18961","v":"Select"},{"$f":"Import!E19061","v":"Select"},"Select",{"$f":"Import!E19261","v":0},{"$f":"Import!E19361","v":0},{"$f":"Import!E19461","v":0}]
[16,{"$f":"Import!E18862","v":"Select"},{"$f":"Import!E18962","v":"Select"},{"$f":"Import!E19062","v":"Select"},"Select",{"$f":"Import!E19262","v":0},{"$f":"Import!E19362","v":0},{"$f":"Import!E19462","v":0}]
[17,{"$f":"Import!E18863","v":"Select"},{"$f":"Import!E18963","v":"Select"},{"$f":"Import!E19063","v":"Select"},"Select",{"$f":"Import!E19263","v":0},{"$f":"Import!E19363","v":0},{"$f":"Import!E19463","v":0}]
[18,{"$f":"Import!E18864","v":"Select"},{"$f":"Import!E18964","v":"Select"},{"$f":"Import!E19064","v":"Select"},"Select",{"$f":"Import!E19264","v":0},{"$f":"Import!E19364","v":0},{"$f":"Import!E19464","v":0}]
[19,{"$f":"Import!E18865","v":"Select"},{"$f":"Import!E18965","v":"Select"},{"$f":"Import!E19065","v":"Select"},"Select",{"$f":"Import!E19265","v":0},{"$f":"Import!E19365","v":0},{"$f":"Import!E19465","v":0}]
[20,{"$f":"Import!E18866","v":"Select"},{"$f":"Import!E18966","v":"Select"},{"$f":"Import!E19066","v":"Select"},"Select",{"$f":"Import!E19266","v":0},{"$f":"Import!E19366","v":0},{"$f":"Import!E19466","v":0}]
[21,{"$f":"Import!E18867","v":"Select"},{"$f":"Import!E18967","v":"Select"},{"$f":"Import!E19067","v":"Select"},"Select",{"$f":"Import!E19267","v":0},{"$f":"Import!E19367","v":0},{"$f":"Import!E19467","v":0}]
[22,{"$f":"Import!E18868","v":"Select"},{"$f":"Import!E18968","v":"Select"},{"$f":"Import!E19068","v":"Select"},"Select",{"$f":"Import!E19268","v":0},{"$f":"Import!E19368","v":0},{"$f":"Import!E19468","v":0}]
[23,{"$f":"Import!E18869","v":"Select"},{"$f":"Import!E18969","v":"Select"},{"$f":"Import!E19069","v":"Select"},"Select",{"$f":"Import!E19269","v":0},{"$f":"Import!E19369","v":0},{"$f":"Import!E19469","v":0}]
[24,{"$f":"Import!E18870","v":"Select"},{"$f":"Import!E18970","v":"Select"},{"$f":"Import!E19070","v":"Select"},"Select",{"$f":"Import!E19270","v":0},{"$f":"Import!E19370","v":0},{"$f":"Import!E19470","v":0}]
[25,{"$f":"Import!E18871","v":"Select"},{"$f":"Import!E18971","v":"Select"},{"$f":"Import!E19071","v":"Select"},"Select",{"$f":"Import!E19271","v":0},{"$f":"Import!E19371","v":0},{"$f":"Import!E19471","v":0}]
[26,{"$f":"Import!E18872","v":"Select"},{"$f":"Import!E18972","v":"Select"},{"$f":"Import!E19072","v":"Select"},"Select",{"$f":"Import!E19272","v":0},{"$f":"Import!E19372","v":0},{"$f":"Import!E19472","v":0}]
[27,{"$f":"Import!E18873","v":"Select"},{"$f":"Import!E18973","v":"Select"},{"$f":"Import!E19073","v":"Select"},"Select",{"$f":"Import!E19273","v":0},{"$f":"Import!E19373","v":0},{"$f":"Import!E19473","v":0}]
[28,{"$f":"Import!E18874","v":"Select"},{"$f":"Import!E18974","v":"Select"},{"$f":"Import!E19074","v":"Select"},"Select",{"$f":"Import!E19274","v":0},{"$f":"Import!E19374","v":0},{"$f":"Import!E19474","v":0}]
[29,{"$f":"Import!E18875","v":"Select"},{"$f":"Import!E18975","v":"Select"},{"$f":"Import!E19075","v":"Select"},"Select",{"$f":"Import!E19275","v":0},{"$f":"Import!E19375","v":0},{"$f":"Import!E19475","v":0}]
[30,{"$f":"Import!E18876","v":"Select"},{"$f":"Import!E18976","v":"Select"},{"$f":"Import!E19076","v":"Select"},"Select",{"$f":"Import!E19276","v":0},{"$f":"Import!E19376","v":0},{"$f":"Import!E19476","v":0}]
[31,{"$f":"Import!E18877","v":"Select"},{"$f":"Import!E18977","v":"Select"},{"$f":"Import!E19077","v":"Select"},"Select",{"$f":"Import!E19277","v":0},{"$f":"Import!E19377","v":0},{"$f":"Import!E19477","v":0}]
[32,{"$f":"Import!E18878","v":"Select"},{"$f":"Import!E18978","v":"Select"},{"$f":"Import!E19078","v":"Select"},"Select",{"$f":"Import!E19278","v":0},{"$f":"Import!E19378","v":0},{"$f":"Import!E19478","v":0}]
[33,{"$f":"Import!E18879","v":"Select"},{"$f":"Import!E18979","v":"Select"},{"$f":"Import!E19079","v":"Select"},"Select",{"$f":"Import!E19279","v":0},{"$f":"Import!E19379","v":0},{"$f":"Import!E19479","v":0}]
[34,{"$f":"Import!E18880","v":"Select"},{"$f":"Import!E18980","v":"Select"},{"$f":"Import!E19080","v":"Select"},"Select",{"$f":"Import!E19280","v":0},{"$f":"Import!E19380","v":0},{"$f":"Import!E19480","v":0}]
[35,{"$f":"Import!E18881","v":"Select"},{"$f":"Import!E18981","v":"Select"},{"$f":"Import!E19081","v":"Select"},"Select",{"$f":"Import!E19281","v":0},{"$f":"Import!E19381","v":0},{"$f":"Import!E19481","v":0}]
[36,{"$f":"Import!E18882","v":"Select"},{"$f":"Import!E18982","v":"Select"},{"$f":"Import!E19082","v":"Select"},"Select",{"$f":"Import!E19282","v":0},{"$f":"Import!E19382","v":0},{"$f":"Import!E19482","v":0}]
[37,{"$f":"Import!E18883","v":"Select"},{"$f":"Import!E18983","v":"Select"},{"$f":"Import!E19083","v":"Select"},"Select",{"$f":"Import!E19283","v":0},{"$f":"Import!E19383","v":0},{"$f":"Import!E19483","v":0}]
[38,{"$f":"Import!E18884","v":"Select"},{"$f":"Import!E18984","v":"Select"},{"$f":"Import!E19084","v":"Select"},"Select",{"$f":"Import!E19284","v":0},{"$f":"Import!E19384","v":0},{"$f":"Import!E19484","v":0}]
[39,{"$f":"Import!E18885","v":"Select"},{"$f":"Import!E18985","v":"Select"},{"$f":"Import!E19085","v":"Select"},"Select",{"$f":"Import!E19285","v":0},{"$f":"Import!E19385","v":0},{"$f":"Import!E19485","v":0}]
[40,{"$f":"Import!E18886","v":"Select"},{"$f":"Import!E18986","v":"Select"},{"$f":"Import!E19086","v":"Select"},"Select",{"$f":"Import!E19286","v":0},{"$f":"Import!E19386","v":0},{"$f":"Import!E19486","v":0}]
[41,{"$f":"Import!E18887","v":"Select"},{"$f":"Import!E18987","v":"Select"},{"$f":"Import!E19087","v":"Select"},"Select",{"$f":"Import!E19287","v":0},{"$f":"Import!E19387","v":0},{"$f":"Import!E19487","v":0}]
[42,{"$f":"Import!E18888","v":"Select"},{"$f":"Import!E18988","v":"Select"},{"$f":"Import!E19088","v":"Select"},"Select",{"$f":"Import!E19288","v":0},{"$f":"Import!E19388","v":0},{"$f":"Import!E19488","v":0}]
[43,{"$f":"Import!E18889","v":"Select"},{"$f":"Import!E18989","v":"Select"},{"$f":"Import!E19089","v":"Select"},"Select",{"$f":"Import!E19289","v":0},{"$f":"Import!E19389","v":0},{"$f":"Import!E19489","v":0}]
[44,{"$f":"Import!E18890","v":"Select"},{"$f":"Import!E18990","v":"Select"},{"$f":"Import!E19090","v":"Select"},"Select",{"$f":"Import!E19290","v":0},{"$f":"Import!E19390","v":0},{"$f":"Import!E19490","v":0}]
[45,{"$f":"Import!E18891","v":"Select"},{"$f":"Import!E18991","v":"Select"},{"$f":"Import!E19091","v":"Select"},"Select",{"$f":"Import!E19291","v":0},{"$f":"Import!E19391","v":0},{"$f":"Import!E19491","v":0}]
[46,{"$f":"Import!E18892","v":"Select"},{"$f":"Import!E18992","v":"Select"},{"$f":"Import!E19092","v":"Select"},"Select",{"$f":"Import!E19292","v":0},{"$f":"Import!E19392","v":0},{"$f":"Import!E19492","v":0}]
[47,{"$f":"Import!E18893","v":"Select"},{"$f":"Import!E18993","v":"Select"},{"$f":"Import!E19093","v":"Select"},"Select",{"$f":"Import!E19293","v":0},{"$f":"Import!E19393","v":0},{"$f":"Import!E19493","v":0}]
[48,{"$f":"Import!E18894","v":"Select"},{"$f":"Import!E18994","v":"Select"},{"$f":"Import!E19094","v":"Select"},"Select",{"$f":"Import!E19294","v":0},{"$f":"Import!E19394","v":0},{"$f":"Import!E19494","v":0}]
[49,{"$f":"Import!E18895","v":"Select"},{"$f":"Import!E18995","v":"Select"},{"$f":"Import!E19095","v":"Select"},"Select",{"$f":"Import!E19295","v":0},{"$f":"Import!E19395","v":0},{"$f":"Import!E19495","v":0}]
[50,{"$f":"Import!E18896","v":"Select"},{"$f":"Import!E18996","v":"Select"},{"$f":"Import!E19096","v":"Select"},"Select",{"$f":"Import!E19296","v":0},{"$f":"Import!E19396","v":0},{"$f":"Import!E19496","v":0}]
[51,{"$f":"Import!E18897","v":"Select"},{"$f":"Import!E18997","v":"Select"},{"$f":"Import!E19097","v":"Select"},"Select",{"$f":"Import!E19297","v":0},{"$f":"Import!E19397","v":0},{"$f":"Import!E19497","v":0}]
[52,{"$f":"Import!E18898","v":"Select"},{"$f":"Import!E18998","v":"Select"},{"$f":"Import!E19098","v":"Select"},"Select",{"$f":"Import!E19298","v":0},{"$f":"Import!E19398","v":0},{"$f":"Import!E19498","v":0}]
[53,{"$f":"Import!E18899","v":"Select"},{"$f":"Import!E18999","v":"Select"},{"$f":"Import!E19099","v":"Select"},"Select",{"$f":"Import!E19299","v":0},{"$f":"Import!E19399","v":0},{"$f":"Import!E19499","v":0}]
[54,{"$f":"Import!E18900","v":"Select"},{"$f":"Import!E19000","v":"Select"},{"$f":"Import!E19100","v":"Select"},"Select",{"$f":"Import!E19300","v":0},{"$f":"Import!E19400","v":0},{"$f":"Import!E19500","v":0}]
[55,{"$f":"Import!E18901","v":"Select"},{"$f":"Import!E19001","v":"Select"},{"$f":"Import!E19101","v":"Select"},"Select",{"$f":"Import!E19301","v":0},{"$f":"Import!E19401","v":0},{"$f":"Import!E19501","v":0}]
[56,{"$f":"Import!E18902","v":"Select"},{"$f":"Import!E19002","v":"Select"},{"$f":"Import!E19102","v":"Select"},"Select",{"$f":"Import!E19302","v":0},{"$f":"Import!E19402","v":0},{"$f":"Import!E19502","v":0}]
[57,{"$f":"Import!E18903","v":"Select"},{"$f":"Import!E19003","v":"Select"},{"$f":"Import!E19103","v":"Select"},"Select",{"$f":"Import!E19303","v":0},{"$f":"Import!E19403","v":0},{"$f":"Import!E19503","v":0}]
[58,{"$f":"Import!E18904","v":"Select"},{"$f":"Import!E19004","v":"Select"},{"$f":"Import!E19104","v":"Select"},"Select",{"$f":"Import!E19304","v":0},{"$f":"Import!E19404","v":0},{"$f":"Import!E19504","v":0}]
[59,{"$f":"Import!E18905","v":"Select"},{"$f":"Import!E19005","v":"Select"},{"$f":"Import!E19105","v":"Select"},"Select",{"$f":"Import!E19305","v":0},{"$f":"Import!E19405","v":0},{"$f":"Import!E19505","v":0}]
[60,{"$f":"Import!E18906","v":"Select"},{"$f":"Import!E19006","v":"Select"},{"$f":"Import!E19106","v":"Select"},"Select",{"$f":"Import!E19306","v":0},{"$f":"Import!E19406","v":0},{"$f":"Import!E19506","v":0}]
[61,{"$f":"Import!E18907","v":"Select"},{"$f":"Import!E19007","v":"Select"},{"$f":"Import!E19107","v":"Select"},"Select",{"$f":"Import!E19307","v":0},{"$f":"Import!E19407","v":0},{"$f":"Import!E19507","v":0}]
[62,{"$f":"Import!E18908","v":"Select"},{"$f":"Import!E19008","v":"Select"},{"$f":"Import!E19108","v":"Select"},"Select",{"$f":"Import!E19308","v":0},{"$f":"Import!E19408","v":0},{"$f":"Import!E19508","v":0}]
[63,{"$f":"Import!E18909","v":"Select"},{"$f":"Import!E19009","v":"Select"},{"$f":"Import!E19109","v":"Select"},"Select",{"$f":"Import!E19309","v":0},{"$f":"Import!E19409","v":0},{"$f":"Import!E19509","v":0}]
[64,{"$f":"Import!E18910","v":"Select"},{"$f":"Import!E19010","v":"Select"},{"$f":"Import!E19110","v":"Select"},"Select",{"$f":"Import!E19310","v":0},{"$f":"Import!E19410","v":0},{"$f":"Import!E19510","v":0}]
[65,{"$f":"Import!E18911","v":"Select"},{"$f":"Import!E19011","v":"Select"},{"$f":"Import!E19111","v":"Select"},"Select",{"$f":"Import!E19311","v":0},{"$f":"Import!E19411","v":0},{"$f":"Import!E19511","v":0}]
[66,{"$f":"Import!E18912","v":"Select"},{"$f":"Import!E19012","v":"Select"},{"$f":"Import!E19112","v":"Select"},"Select",{"$f":"Import!E19312","v":0},{"$f":"Import!E19412","v":0},{"$f":"Import!E19512","v":0}]
[{"$f":"A1410+1","v":67},{"$f":"Import!E18913","v":"Select"},{"$f":"Import!E19013","v":"Select"},{"$f":"Import!E19113","v":"Select"},"Select",{"$f":"Import!E19313","v":0},{"$f":"Import!E19413","v":0},{"$f":"Import!E19513","v":0}]
[68,{"$f":"Import!E18914","v":"Select"},{"$f":"Import!E19014","v":"Select"},{"$f":"Import!E19114","v":"Select"},"Select",{"$f":"Import!E19314","v":0},{"$f":"Import!E19414","v":0},{"$f":"Import!E19514","v":0}]
[69,{"$f":"Import!E18915","v":"Select"},{"$f":"Import!E19015","v":"Select"},{"$f":"Import!E19115","v":"Select"},"Select",{"$f":"Import!E19315","v":0},{"$f":"Import!E19415","v":0},{"$f":"Import!E19515","v":0}]
[70,{"$f":"Import!E18916","v":"Select"},{"$f":"Import!E19016","v":"Select"},{"$f":"Import!E19116","v":"Select"},"Select",{"$f":"Import!E19316","v":0},{"$f":"Import!E19416","v":0},{"$f":"Import!E19516","v":0}]
[71,{"$f":"Import!E18917","v":"Select"},{"$f":"Import!E19017","v":"Select"},{"$f":"Import!E19117","v":"Select"},"Select",{"$f":"Import!E19317","v":0},{"$f":"Import!E19417","v":0},{"$f":"Import!E19517","v":0}]
[72,{"$f":"Import!E18918","v":"Select"},{"$f":"Import!E19018","v":"Select"},{"$f":"Import!E19118","v":"Select"},"Select",{"$f":"Import!E19318","v":0},{"$f":"Import!E19418","v":0},{"$f":"Import!E19518","v":0}]
[73,{"$f":"Import!E18919","v":"Select"},{"$f":"Import!E19019","v":"Select"},{"$f":"Import!E19119","v":"Select"},"Select",{"$f":"Import!E19319","v":0},{"$f":"Import!E19419","v":0},{"$f":"Import!E19519","v":0}]
[74,{"$f":"Import!E18920","v":"Select"},{"$f":"Import!E19020","v":"Select"},{"$f":"Import!E19120","v":"Select"},"Select",{"$f":"Import!E19320","v":0},{"$f":"Import!E19420","v":0},{"$f":"Import!E19520","v":0}]
[75,{"$f":"Import!E18921","v":"Select"},{"$f":"Import!E19021","v":"Select"},{"$f":"Import!E19121","v":"Select"},"Select",{"$f":"Import!E19321","v":0},{"$f":"Import!E19421","v":0},{"$f":"Import!E19521","v":0}]
[76,{"$f":"Import!E18922","v":"Select"},{"$f":"Import!E19022","v":"Select"},{"$f":"Import!E19122","v":"Select"},"Select",{"$f":"Import!E19322","v":0},{"$f":"Import!E19422","v":0},{"$f":"Import!E19522","v":0}]
[77,{"$f":"Import!E18923","v":"Select"},{"$f":"Import!E19023","v":"Select"},{"$f":"Import!E19123","v":"Select"},"Select",{"$f":"Import!E19323","v":0},{"$f":"Import!E19423","v":0},{"$f":"Import!E19523","v":0}]
[78,{"$f":"Import!E18924","v":"Select"},{"$f":"Import!E19024","v":"Select"},{"$f":"Import!E19124","v":"Select"},"Select",{"$f":"Import!E19324","v":0},{"$f":"Import!E19424","v":0},{"$f":"Import!E19524","v":0}]
[79,{"$f":"Import!E18925","v":"Select"},{"$f":"Import!E19025","v":"Select"},{"$f":"Import!E19125","v":"Select"},"Select",{"$f":"Import!E19325","v":0},{"$f":"Import!E19425","v":0},{"$f":"Import!E19525","v":0}]
[80,{"$f":"Import!E18926","v":"Select"},{"$f":"Import!E19026","v":"Select"},{"$f":"Import!E19126","v":"Select"},"Select",{"$f":"Import!E19326","v":0},{"$f":"Import!E19426","v":0},{"$f":"Import!E19526","v":0}]
[81,{"$f":"Import!E18927","v":"Select"},{"$f":"Import!E19027","v":"Select"},{"$f":"Import!E19127","v":"Select"},"Select",{"$f":"Import!E19327","v":0},{"$f":"Import!E19427","v":0},{"$f":"Import!E19527","v":0}]
[82,{"$f":"Import!E18928","v":"Select"},{"$f":"Import!E19028","v":"Select"},{"$f":"Import!E19128","v":"Select"},"Select",{"$f":"Import!E19328","v":0},{"$f":"Import!E19428","v":0},{"$f":"Import!E19528","v":0}]
[83,{"$f":"Import!E18929","v":"Select"},{"$f":"Import!E19029","v":"Select"},{"$f":"Import!E19129","v":"Select"},"Select",{"$f":"Import!E19329","v":0},{"$f":"Import!E19429","v":0},{"$f":"Import!E19529","v":0}]
[84,{"$f":"Import!E18930","v":"Select"},{"$f":"Import!E19030","v":"Select"},{"$f":"Import!E19130","v":"Select"},"Select",{"$f":"Import!E19330","v":0},{"$f":"Import!E19430","v":0},{"$f":"Import!E19530","v":0}]
[85,{"$f":"Import!E18931","v":"Select"},{"$f":"Import!E19031","v":"Select"},{"$f":"Import!E19131","v":"Select"},"Select",{"$f":"Import!E19331","v":0},{"$f":"Import!E19431","v":0},{"$f":"Import!E19531","v":0}]
[86,{"$f":"Import!E18932","v":"Select"},{"$f":"Import!E19032","v":"Select"},{"$f":"Import!E19132","v":"Select"},"Select",{"$f":"Import!E19332","v":0},{"$f":"Import!E19432","v":0},{"$f":"Import!E19532","v":0}]
[87,{"$f":"Import!E18933","v":"Select"},{"$f":"Import!E19033","v":"Select"},{"$f":"Import!E19133","v":"Select"},"Select",{"$f":"Import!E19333","v":0},{"$f":"Import!E19433","v":0},{"$f":"Import!E19533","v":0}]
[88,{"$f":"Import!E18934","v":"Select"},{"$f":"Import!E19034","v":"Select"},{"$f":"Import!E19134","v":"Select"},"Select",{"$f":"Import!E19334","v":0},{"$f":"Import!E19434","v":0},{"$f":"Import!E19534","v":0}]
[89,{"$f":"Import!E18935","v":"Select"},{"$f":"Import!E19035","v":"Select"},{"$f":"Import!E19135","v":"Select"},"Select",{"$f":"Import!E19335","v":0},{"$f":"Import!E19435","v":0},{"$f":"Import!E19535","v":0}]
[90,{"$f":"Import!E18936","v":"Select"},{"$f":"Import!E19036","v":"Select"},{"$f":"Import!E19136","v":"Select"},"Select",{"$f":"Import!E19336","v":0},{"$f":"Import!E19436","v":0},{"$f":"Import!E19536","v":0}]
[91,{"$f":"Import!E18937","v":"Select"},{"$f":"Import!E19037","v":"Select"},{"$f":"Import!E19137","v":"Select"},"Select",{"$f":"Import!E19337","v":0},{"$f":"Import!E19437","v":0},{"$f":"Import!E19537","v":0}]
[92,{"$f":"Import!E18938","v":"Select"},{"$f":"Import!E19038","v":"Select"},{"$f":"Import!E19138","v":"Select"},"Select",{"$f":"Import!E19338","v":0},{"$f":"Import!E19438","v":0},{"$f":"Import!E19538","v":0}]
[93,{"$f":"Import!E18939","v":"Select"},{"$f":"Import!E19039","v":"Select"},{"$f":"Import!E19139","v":"Select"},"Select",{"$f":"Import!E19339","v":0},{"$f":"Import!E19439","v":0},{"$f":"Import!E19539","v":0}]
[94,{"$f":"Import!E18940","v":"Select"},{"$f":"Import!E19040","v":"Select"},{"$f":"Import!E19140","v":"Select"},"Select",{"$f":"Import!E19340","v":0},{"$f":"Import!E19440","v":0},{"$f":"Import!E19540","v":0}]
[95,{"$f":"Import!E18941","v":"Select"},{"$f":"Import!E19041","v":"Select"},{"$f":"Import!E19141","v":"Select"},"Select",{"$f":"Import!E19341","v":0},{"$f":"Import!E19441","v":0},{"$f":"Import!E19541","v":0}]
[96,{"$f":"Import!E18942","v":"Select"},{"$f":"Import!E19042","v":"Select"},{"$f":"Import!E19142","v":"Select"},"Select",{"$f":"Import!E19342","v":0},{"$f":"Import!E19442","v":0},{"$f":"Import!E19542","v":0}]
[97,{"$f":"Import!E18943","v":"Select"},{"$f":"Import!E19043","v":"Select"},{"$f":"Import!E19143","v":"Select"},"Select",{"$f":"Import!E19343","v":0},{"$f":"Import!E19443","v":0},{"$f":"Import!E19543","v":0}]
[98,{"$f":"Import!E18944","v":"Select"},{"$f":"Import!E19044","v":"Select"},{"$f":"Import!E19144","v":"Select"},"Select",{"$f":"Import!E19344","v":0},{"$f":"Import!E19444","v":0},{"$f":"Import!E19544","v":0}]
[99,{"$f":"Import!E18945","v":"Select"},{"$f":"Import!E19045","v":"Select"},{"$f":"Import!E19145","v":"Select"},"Select",{"$f":"Import!E19345","v":0},{"$f":"Import!E19445","v":0},{"$f":"Import!E19545","v":0}]
[100,{"$f":"Import!E18946","v":"Select"},{"$f":"Import!E19046","v":"Select"},{"$f":"Import!E19146","v":"Select"},"Select",{"$f":"Import!E19346","v":0},{"$f":"Import!E19446","v":0},{"$f":"Import!E19546","v":0}]
[]
[null,"Total Real Estate",null,null,null,{"$f":"SUM(F1345:F1444)","v":0},{"$f":"SUM(G1345:G1444)","v":0}]
[]
[null,"(H) OTHER ALTERNATIVE INVESTMENTS"]
[]
[null,null,"Enter # of Asset Types",{"$f":"Import!E19547","v":0}]
[null,null,null,null,null,{"$f":"YEAR($C$3)","v":2023},2023,"Weighted"]
[null,"Asset Type","Currency","Country","BSCR Rating","Nominal Amount","Fair Value","Average YTM","Effective Duration","Comments"]
[1,{"$f":"Import!E19548","v":"Select"},{"$f":"Import!E19648","v":"Select"},{"$f":"Import!E19748","v":"Select"},{"$f":"Import!E19848","v":"Select"},{"$f":"Import!E19948","v":0},{"$f":"Import!E20048","v":0},{"$f":"Import!E20148","v":0},{"$f":"Import!E20248","v":0},{"$f":"Import!E20348","v":0}]
[{"$f":"A1453+1","v":2},{"$f":"Import!E19549","v":"Select"},{"$f":"Import!E19649","v":"Select"},{"$f":"Import!E19749","v":"Select"},{"$f":"Import!E19849","v":"Select"},{"$f":"Import!E19949","v":0},{"$f":"Import!E20049","v":0},{"$f":"Import!E20149","v":0},{"$f":"Import!E20249","v":0},{"$f":"Import!E20349","v":0}]
[{"$f":"A1454+1","v":3},{"$f":"Import!E19550","v":"Select"},{"$f":"Import!E19650","v":"Select"},{"$f":"Import!E19750","v":"Select"},{"$f":"Import!E19850","v":"Select"},{"$f":"Import!E19950","v":0},{"$f":"Import!E20050","v":0},{"$f":"Import!E20150","v":0},{"$f":"Import!E20250","v":0},{"$f":"Import!E20350","v":0}]
[4,{"$f":"Import!E19551","v":"Select"},{"$f":"Import!E19651","v":"Select"},{"$f":"Import!E19751","v":"Select"},{"$f":"Import!E19851","v":"Select"},{"$f":"Import!E19951","v":0},{"$f":"Import!E20051","v":0},{"$f":"Import!E20151","v":0},{"$f":"Import!E20251","v":0},{"$f":"Import!E20351","v":0}]
[5,{"$f":"Import!E19552","v":"Select"},{"$f":"Import!E19652","v":"Select"},{"$f":"Import!E19752","v":"Select"},{"$f":"Import!E19852","v":"Select"},{"$f":"Import!E19952","v":0},{"$f":"Import!E20052","v":0},{"$f":"Import!E20152","v":0},{"$f":"Import!E20252","v":0},{"$f":"Import!E20352","v":0}]
[6,{"$f":"Import!E19553","v":"Select"},{"$f":"Import!E19653","v":"Select"},{"$f":"Import!E19753","v":"Select"},{"$f":"Import!E19853","v":"Select"},{"$f":"Import!E19953","v":0},{"$f":"Import!E20053","v":0},{"$f":"Import!E20153","v":0},{"$f":"Import!E20253","v":0},{"$f":"Import!E20353","v":0}]
[7,{"$f":"Import!E19554","v":"Select"},{"$f":"Import!E19654","v":"Select"},{"$f":"Import!E19754","v":"Select"},{"$f":"Import!E19854","v":"Select"},{"$f":"Import!E19954","v":0},{"$f":"Import!E20054","v":0},{"$f":"Import!E20154","v":0},{"$f":"Import!E20254","v":0},{"$f":"Import!E20354","v":0}]
[8,{"$f":"Import!E19555","v":"Select"},{"$f":"Import!E19655","v":"Select"},{"$f":"Import!E19755","v":"Select"},{"$f":"Import!E19855","v":"Select"},{"$f":"Import!E19955","v":0},{"$f":"Import!E20055","v":0},{"$f":"Import!E20155","v":0},{"$f":"Import!E20255","v":0},{"$f":"Import!E20355","v":0}]
[9,{"$f":"Import!E19556","v":"Select"},{"$f":"Import!E19656","v":"Select"},{"$f":"Import!E19756","v":"Select"},{"$f":"Import!E19856","v":"Select"},{"$f":"Import!E19956","v":0},{"$f":"Import!E20056","v":0},{"$f":"Import!E20156","v":0},{"$f":"Import!E20256","v":0},{"$f":"Import!E20356","v":0}]
[10,{"$f":"Import!E19557","v":"Select"},{"$f":"Import!E19657","v":"Select"},{"$f":"Import!E19757","v":"Select"},{"$f":"Import!E19857","v":"Select"},{"$f":"Import!E19957","v":0},{"$f":"Import!E20057","v":0},{"$f":"Import!E20157","v":0},{"$f":"Import!E20257","v":0},{"$f":"Import!E20357","v":0}]
[11,{"$f":"Import!E19558","v":"Select"},{"$f":"Import!E19658","v":"Select"},{"$f":"Import!E19758","v":"Select"},{"$f":"Import!E19858","v":"Select"},{"$f":"Import!E19958","v":0},{"$f":"Import!E20058","v":0},{"$f":"Import!E20158","v":0},{"$f":"Import!E20258","v":0},{"$f":"Import!E20358","v":0}]
[12,{"$f":"Import!E19559","v":"Select"},{"$f":"Import!E19659","v":"Select"},{"$f":"Import!E19759","v":"Select"},{"$f":"Import!E19859","v":"Select"},{"$f":"Import!E19959","v":0},{"$f":"Import!E20059","v":0},{"$f":"Import!E20159","v":0},{"$f":"Import!E20259","v":0},{"$f":"Import!E20359","v":0}]
[13,{"$f":"Import!E19560","v":"Select"},{"$f":"Import!E19660","v":"Select"},{"$f":"Import!E19760","v":"Select"},{"$f":"Import!E19860","v":"Select"},{"$f":"Import!E19960","v":0},{"$f":"Import!E20060","v":0},{"$f":"Import!E20160","v":0},{"$f":"Import!E20260","v":0},{"$f":"Import!E20360","v":0}]
[14,{"$f":"Import!E19561","v":"Select"},{"$f":"Import!E19661","v":"Select"},{"$f":"Import!E19761","v":"Select"},{"$f":"Import!E19861","v":"Select"},{"$f":"Import!E19961","v":0},{"$f":"Import!E20061","v":0},{"$f":"Import!E20161","v":0},{"$f":"Import!E20261","v":0},{"$f":"Import!E20361","v":0}]
[15,{"$f":"Import!E19562","v":"Select"},{"$f":"Import!E19662","v":"Select"},{"$f":"Import!E19762","v":"Select"},{"$f":"Import!E19862","v":"Select"},{"$f":"Import!E19962","v":0},{"$f":"Import!E20062","v":0},{"$f":"Import!E20162","v":0},{"$f":"Import!E20262","v":0},{"$f":"Import!E20362","v":0}]
[16,{"$f":"Import!E19563","v":"Select"},{"$f":"Import!E19663","v":"Select"},{"$f":"Import!E19763","v":"Select"},{"$f":"Import!E19863","v":"Select"},{"$f":"Import!E19963","v":0},{"$f":"Import!E20063","v":0},{"$f":"Import!E20163","v":0},{"$f":"Import!E20263","v":0},{"$f":"Import!E20363","v":0}]
[17,{"$f":"Import!E19564","v":"Select"},{"$f":"Import!E19664","v":"Select"},{"$f":"Import!E19764","v":"Select"},{"$f":"Import!E19864","v":"Select"},{"$f":"Import!E19964","v":0},{"$f":"Import!E20064","v":0},{"$f":"Import!E20164","v":0},{"$f":"Import!E20264","v":0},{"$f":"Import!E20364","v":0}]
[18,{"$f":"Import!E19565","v":"Select"},{"$f":"Import!E19665","v":"Select"},{"$f":"Import!E19765","v":"Select"},{"$f":"Import!E19865","v":"Select"},{"$f":"Import!E19965","v":0},{"$f":"Import!E20065","v":0},{"$f":"Import!E20165","v":0},{"$f":"Import!E20265","v":0},{"$f":"Import!E20365","v":0}]
[19,{"$f":"Import!E19566","v":"Select"},{"$f":"Import!E19666","v":"Select"},{"$f":"Import!E19766","v":"Select"},{"$f":"Import!E19866","v":"Select"},{"$f":"Import!E19966","v":0},{"$f":"Import!E20066","v":0},{"$f":"Import!E20166","v":0},{"$f":"Import!E20266","v":0},{"$f":"Import!E20366","v":0}]
[20,{"$f":"Import!E19567","v":"Select"},{"$f":"Import!E19667","v":"Select"},{"$f":"Import!E19767","v":"Select"},{"$f":"Import!E19867","v":"Select"},{"$f":"Import!E19967","v":0},{"$f":"Import!E20067","v":0},{"$f":"Import!E20167","v":0},{"$f":"Import!E20267","v":0},{"$f":"Import!E20367","v":0}]
[21,{"$f":"Import!E19568","v":"Select"},{"$f":"Import!E19668","v":"Select"},{"$f":"Import!E19768","v":"Select"},{"$f":"Import!E19868","v":"Select"},{"$f":"Import!E19968","v":0},{"$f":"Import!E20068","v":0},{"$f":"Import!E20168","v":0},{"$f":"Import!E20268","v":0},{"$f":"Import!E20368","v":0}]
[22,{"$f":"Import!E19569","v":"Select"},{"$f":"Import!E19669","v":"Select"},{"$f":"Import!E19769","v":"Select"},{"$f":"Import!E19869","v":"Select"},{"$f":"Import!E19969","v":0},{"$f":"Import!E20069","v":0},{"$f":"Import!E20169","v":0},{"$f":"Import!E20269","v":0},{"$f":"Import!E20369","v":0}]
[23,{"$f":"Import!E19570","v":"Select"},{"$f":"Import!E19670","v":"Select"},{"$f":"Import!E19770","v":"Select"},{"$f":"Import!E19870","v":"Select"},{"$f":"Import!E19970","v":0},{"$f":"Import!E20070","v":0},{"$f":"Import!E20170","v":0},{"$f":"Import!E20270","v":0},{"$f":"Import!E20370","v":0}]
[24,{"$f":"Import!E19571","v":"Select"},{"$f":"Import!E19671","v":"Select"},{"$f":"Import!E19771","v":"Select"},{"$f":"Import!E19871","v":"Select"},{"$f":"Import!E19971","v":0},{"$f":"Import!E20071","v":0},{"$f":"Import!E20171","v":0},{"$f":"Import!E20271","v":0},{"$f":"Import!E20371","v":0}]
[25,{"$f":"Import!E19572","v":"Select"},{"$f":"Import!E19672","v":"Select"},{"$f":"Import!E19772","v":"Select"},{"$f":"Import!E19872","v":"Select"},{"$f":"Import!E19972","v":0},{"$f":"Import!E20072","v":0},{"$f":"Import!E20172","v":0},{"$f":"Import!E20272","v":0},{"$f":"Import!E20372","v":0}]
[26,{"$f":"Import!E19573","v":"Select"},{"$f":"Import!E19673","v":"Select"},{"$f":"Import!E19773","v":"Select"},{"$f":"Import!E19873","v":"Select"},{"$f":"Import!E19973","v":0},{"$f":"Import!E20073","v":0},{"$f":"Import!E20173","v":0},{"$f":"Import!E20273","v":0},{"$f":"Import!E20373","v":0}]
[27,{"$f":"Import!E19574","v":"Select"},{"$f":"Import!E19674","v":"Select"},{"$f":"Import!E19774","v":"Select"},{"$f":"Import!E19874","v":"Select"},{"$f":"Import!E19974","v":0},{"$f":"Import!E20074","v":0},{"$f":"Import!E20174","v":0},{"$f":"Import!E20274","v":0},{"$f":"Import!E20374","v":0}]
[28,{"$f":"Import!E19575","v":"Select"},{"$f":"Import!E19675","v":"Select"},{"$f":"Import!E19775","v":"Select"},{"$f":"Import!E19875","v":"Select"},{"$f":"Import!E19975","v":0},{"$f":"Import!E20075","v":0},{"$f":"Import!E20175","v":0},{"$f":"Import!E20275","v":0},{"$f":"Import!E20375","v":0}]
[29,{"$f":"Import!E19576","v":"Select"},{"$f":"Import!E19676","v":"Select"},{"$f":"Import!E19776","v":"Select"},{"$f":"Import!E19876","v":"Select"},{"$f":"Import!E19976","v":0},{"$f":"Import!E20076","v":0},{"$f":"Import!E20176","v":0},{"$f":"Import!E20276","v":0},{"$f":"Import!E20376","v":0}]
[30,{"$f":"Import!E19577","v":"Select"},{"$f":"Import!E19677","v":"Select"},{"$f":"Import!E19777","v":"Select"},{"$f":"Import!E19877","v":"Select"},{"$f":"Import!E19977","v":0},{"$f":"Import!E20077","v":0},{"$f":"Import!E20177","v":0},{"$f":"Import!E20277","v":0},{"$f":"Import!E20377","v":0}]
[31,{"$f":"Import!E19578","v":"Select"},{"$f":"Import!E19678","v":"Select"},{"$f":"Import!E19778","v":"Select"},{"$f":"Import!E19878","v":"Select"},{"$f":"Import!E19978","v":0},{"$f":"Import!E20078","v":0},{"$f":"Import!E20178","v":0},{"$f":"Import!E20278","v":0},{"$f":"Import!E20378","v":0}]
[32,{"$f":"Import!E19579","v":"Select"},{"$f":"Import!E19679","v":"Select"},{"$f":"Import!E19779","v":"Select"},{"$f":"Import!E19879","v":"Select"},{"$f":"Import!E19979","v":0},{"$f":"Import!E20079","v":0},{"$f":"Import!E20179","v":0},{"$f":"Import!E20279","v":0},{"$f":"Import!E20379","v":0}]
[33,{"$f":"Import!E19580","v":"Select"},{"$f":"Import!E19680","v":"Select"},{"$f":"Import!E19780","v":"Select"},{"$f":"Import!E19880","v":"Select"},{"$f":"Import!E19980","v":0},{"$f":"Import!E20080","v":0},{"$f":"Import!E20180","v":0},{"$f":"Import!E20280","v":0},{"$f":"Import!E20380","v":0}]
[34,{"$f":"Import!E19581","v":"Select"},{"$f":"Import!E19681","v":"Select"},{"$f":"Import!E19781","v":"Select"},{"$f":"Import!E19881","v":"Select"},{"$f":"Import!E19981","v":0},{"$f":"Import!E20081","v":0},{"$f":"Import!E20181","v":0},{"$f":"Import!E20281","v":0},{"$f":"Import!E20381","v":0}]
[35,{"$f":"Import!E19582","v":"Select"},{"$f":"Import!E19682","v":"Select"},{"$f":"Import!E19782","v":"Select"},{"$f":"Import!E19882","v":"Select"},{"$f":"Import!E19982","v":0},{"$f":"Import!E20082","v":0},{"$f":"Import!E20182","v":0},{"$f":"Import!E20282","v":0},{"$f":"Import!E20382","v":0}]
[36,{"$f":"Import!E19583","v":"Select"},{"$f":"Import!E19683","v":"Select"},{"$f":"Import!E19783","v":"Select"},{"$f":"Import!E19883","v":"Select"},{"$f":"Import!E19983","v":0},{"$f":"Import!E20083","v":0},{"$f":"Import!E20183","v":0},{"$f":"Import!E20283","v":0},{"$f":"Import!E20383","v":0}]
[37,{"$f":"Import!E19584","v":"Select"},{"$f":"Import!E19684","v":"Select"},{"$f":"Import!E19784","v":"Select"},{"$f":"Import!E19884","v":"Select"},{"$f":"Import!E19984","v":0},{"$f":"Import!E20084","v":0},{"$f":"Import!E20184","v":0},{"$f":"Import!E20284","v":0},{"$f":"Import!E20384","v":0}]
[38,{"$f":"Import!E19585","v":"Select"},{"$f":"Import!E19685","v":"Select"},{"$f":"Import!E19785","v":"Select"},{"$f":"Import!E19885","v":"Select"},{"$f":"Import!E19985","v":0},{"$f":"Import!E20085","v":0},{"$f":"Import!E20185","v":0},{"$f":"Import!E20285","v":0},{"$f":"Import!E20385","v":0}]
[39,{"$f":"Import!E19586","v":"Select"},{"$f":"Import!E19686","v":"Select"},{"$f":"Import!E19786","v":"Select"},{"$f":"Import!E19886","v":"Select"},{"$f":"Import!E19986","v":0},{"$f":"Import!E20086","v":0},{"$f":"Import!E20186","v":0},{"$f":"Import!E20286","v":0},{"$f":"Import!E20386","v":0}]
[40,{"$f":"Import!E19587","v":"Select"},{"$f":"Import!E19687","v":"Select"},{"$f":"Import!E19787","v":"Select"},{"$f":"Import!E19887","v":"Select"},{"$f":"Import!E19987","v":0},{"$f":"Import!E20087","v":0},{"$f":"Import!E20187","v":0},{"$f":"Import!E20287","v":0},{"$f":"Import!E20387","v":0}]
[41,{"$f":"Import!E19588","v":"Select"},{"$f":"Import!E19688","v":"Select"},{"$f":"Import!E19788","v":"Select"},{"$f":"Import!E19888","v":"Select"},{"$f":"Import!E19988","v":0},{"$f":"Import!E20088","v":0},{"$f":"Import!E20188","v":0},{"$f":"Import!E20288","v":0},{"$f":"Import!E20388","v":0}]
[42,{"$f":"Import!E19589","v":"Select"},{"$f":"Import!E19689","v":"Select"},{"$f":"Import!E19789","v":"Select"},{"$f":"Import!E19889","v":"Select"},{"$f":"Import!E19989","v":0},{"$f":"Import!E20089","v":0},{"$f":"Import!E20189","v":0},{"$f":"Import!E20289","v":0},{"$f":"Import!E20389","v":0}]
[43,{"$f":"Import!E19590","v":"Select"},{"$f":"Import!E19690","v":"Select"},{"$f":"Import!E19790","v":"Select"},{"$f":"Import!E19890","v":"Select"},{"$f":"Import!E19990","v":0},{"$f":"Import!E20090","v":0},{"$f":"Import!E20190","v":0},{"$f":"Import!E20290","v":0},{"$f":"Import!E20390","v":0}]
[44,{"$f":"Import!E19591","v":"Select"},{"$f":"Import!E19691","v":"Select"},{"$f":"Import!E19791","v":"Select"},{"$f":"Import!E19891","v":"Select"},{"$f":"Import!E19991","v":0},{"$f":"Import!E20091","v":0},{"$f":"Import!E20191","v":0},{"$f":"Import!E20291","v":0},{"$f":"Import!E20391","v":0}]
[45,{"$f":"Import!E19592","v":"Select"},{"$f":"Import!E19692","v":"Select"},{"$f":"Import!E19792","v":"Select"},{"$f":"Import!E19892","v":"Select"},{"$f":"Import!E19992","v":0},{"$f":"Import!E20092","v":0},{"$f":"Import!E20192","v":0},{"$f":"Import!E20292","v":0},{"$f":"Import!E20392","v":0}]
[46,{"$f":"Import!E19593","v":"Select"},{"$f":"Import!E19693","v":"Select"},{"$f":"Import!E19793","v":"Select"},{"$f":"Import!E19893","v":"Select"},{"$f":"Import!E19993","v":0},{"$f":"Import!E20093","v":0},{"$f":"Import!E20193","v":0},{"$f":"Import!E20293","v":0},{"$f":"Import!E20393","v":0}]
[47,{"$f":"Import!E19594","v":"Select"},{"$f":"Import!E19694","v":"Select"},{"$f":"Import!E19794","v":"Select"},{"$f":"Import!E19894","v":"Select"},{"$f":"Import!E19994","v":0},{"$f":"Import!E20094","v":0},{"$f":"Import!E20194","v":0},{"$f":"Import!E20294","v":0},{"$f":"Import!E20394","v":0}]
[48,{"$f":"Import!E19595","v":"Select"},{"$f":"Import!E19695","v":"Select"},{"$f":"Import!E19795","v":"Select"},{"$f":"Import!E19895","v":"Select"},{"$f":"Import!E19995","v":0},{"$f":"Import!E20095","v":0},{"$f":"Import!E20195","v":0},{"$f":"Import!E20295","v":0},{"$f":"Import!E20395","v":0}]
[49,{"$f":"Import!E19596","v":"Select"},{"$f":"Import!E19696","v":"Select"},{"$f":"Import!E19796","v":"Select"},{"$f":"Import!E19896","v":"Select"},{"$f":"Import!E19996","v":0},{"$f":"Import!E20096","v":0},{"$f":"Import!E20196","v":0},{"$f":"Import!E20296","v":0},{"$f":"Import!E20396","v":0}]
[50,{"$f":"Import!E19597","v":"Select"},{"$f":"Import!E19697","v":"Select"},{"$f":"Import!E19797","v":"Select"},{"$f":"Import!E19897","v":"Select"},{"$f":"Import!E19997","v":0},{"$f":"Import!E20097","v":0},{"$f":"Import!E20197","v":0},{"$f":"Import!E20297","v":0},{"$f":"Import!E20397","v":0}]
[51,{"$f":"Import!E19598","v":"Select"},{"$f":"Import!E19698","v":"Select"},{"$f":"Import!E19798","v":"Select"},{"$f":"Import!E19898","v":"Select"},{"$f":"Import!E19998","v":0},{"$f":"Import!E20098","v":0},{"$f":"Import!E20198","v":0},{"$f":"Import!E20298","v":0},{"$f":"Import!E20398","v":0}]
[52,{"$f":"Import!E19599","v":"Select"},{"$f":"Import!E19699","v":"Select"},{"$f":"Import!E19799","v":"Select"},{"$f":"Import!E19899","v":"Select"},{"$f":"Import!E19999","v":0},{"$f":"Import!E20099","v":0},{"$f":"Import!E20199","v":0},{"$f":"Import!E20299","v":0},{"$f":"Import!E20399","v":0}]
[53,{"$f":"Import!E19600","v":"Select"},{"$f":"Import!E19700","v":"Select"},{"$f":"Import!E19800","v":"Select"},{"$f":"Import!E19900","v":"Select"},{"$f":"Import!E20000","v":0},{"$f":"Import!E20100","v":0},{"$f":"Import!E20200","v":0},{"$f":"Import!E20300","v":0},{"$f":"Import!E20400","v":0}]
[54,{"$f":"Import!E19601","v":"Select"},{"$f":"Import!E19701","v":"Select"},{"$f":"Import!E19801","v":"Select"},{"$f":"Import!E19901","v":"Select"},{"$f":"Import!E20001","v":0},{"$f":"Import!E20101","v":0},{"$f":"Import!E20201","v":0},{"$f":"Import!E20301","v":0},{"$f":"Import!E20401","v":0}]
[55,{"$f":"Import!E19602","v":"Select"},{"$f":"Import!E19702","v":"Select"},{"$f":"Import!E19802","v":"Select"},{"$f":"Import!E19902","v":"Select"},{"$f":"Import!E20002","v":0},{"$f":"Import!E20102","v":0},{"$f":"Import!E20202","v":0},{"$f":"Import!E20302","v":0},{"$f":"Import!E20402","v":0}]
[56,{"$f":"Import!E19603","v":"Select"},{"$f":"Import!E19703","v":"Select"},{"$f":"Import!E19803","v":"Select"},{"$f":"Import!E19903","v":"Select"},{"$f":"Import!E20003","v":0},{"$f":"Import!E20103","v":0},{"$f":"Import!E20203","v":0},{"$f":"Import!E20303","v":0},{"$f":"Import!E20403","v":0}]
[57,{"$f":"Import!E19604","v":"Select"},{"$f":"Import!E19704","v":"Select"},{"$f":"Import!E19804","v":"Select"},{"$f":"Import!E19904","v":"Select"},{"$f":"Import!E20004","v":0},{"$f":"Import!E20104","v":0},{"$f":"Import!E20204","v":0},{"$f":"Import!E20304","v":0},{"$f":"Import!E20404","v":0}]
[58,{"$f":"Import!E19605","v":"Select"},{"$f":"Import!E19705","v":"Select"},{"$f":"Import!E19805","v":"Select"},{"$f":"Import!E19905","v":"Select"},{"$f":"Import!E20005","v":0},{"$f":"Import!E20105","v":0},{"$f":"Import!E20205","v":0},{"$f":"Import!E20305","v":0},{"$f":"Import!E20405","v":0}]
[59,{"$f":"Import!E19606","v":"Select"},{"$f":"Import!E19706","v":"Select"},{"$f":"Import!E19806","v":"Select"},{"$f":"Import!E19906","v":"Select"},{"$f":"Import!E20006","v":0},{"$f":"Import!E20106","v":0},{"$f":"Import!E20206","v":0},{"$f":"Import!E20306","v":0},{"$f":"Import!E20406","v":0}]
[60,{"$f":"Import!E19607","v":"Select"},{"$f":"Import!E19707","v":"Select"},{"$f":"Import!E19807","v":"Select"},{"$f":"Import!E19907","v":"Select"},{"$f":"Import!E20007","v":0},{"$f":"Import!E20107","v":0},{"$f":"Import!E20207","v":0},{"$f":"Import!E20307","v":0},{"$f":"Import!E20407","v":0}]
[61,{"$f":"Import!E19608","v":"Select"},{"$f":"Import!E19708","v":"Select"},{"$f":"Import!E19808","v":"Select"},{"$f":"Import!E19908","v":"Select"},{"$f":"Import!E20008","v":0},{"$f":"Import!E20108","v":0},{"$f":"Import!E20208","v":0},{"$f":"Import!E20308","v":0},{"$f":"Import!E20408","v":0}]
[62,{"$f":"Import!E19609","v":"Select"},{"$f":"Import!E19709","v":"Select"},{"$f":"Import!E19809","v":"Select"},{"$f":"Import!E19909","v":"Select"},{"$f":"Import!E20009","v":0},{"$f":"Import!E20109","v":0},{"$f":"Import!E20209","v":0},{"$f":"Import!E20309","v":0},{"$f":"Import!E20409","v":0}]
[63,{"$f":"Import!E19610","v":"Select"},{"$f":"Import!E19710","v":"Select"},{"$f":"Import!E19810","v":"Select"},{"$f":"Import!E19910","v":"Select"},{"$f":"Import!E20010","v":0},{"$f":"Import!E20110","v":0},{"$f":"Import!E20210","v":0},{"$f":"Import!E20310","v":0},{"$f":"Import!E20410","v":0}]
[64,{"$f":"Import!E19611","v":"Select"},{"$f":"Import!E19711","v":"Select"},{"$f":"Import!E19811","v":"Select"},{"$f":"Import!E19911","v":"Select"},{"$f":"Import!E20011","v":0},{"$f":"Import!E20111","v":0},{"$f":"Import!E20211","v":0},{"$f":"Import!E20311","v":0},{"$f":"Import!E20411","v":0}]
[65,{"$f":"Import!E19612","v":"Select"},{"$f":"Import!E19712","v":"Select"},{"$f":"Import!E19812","v":"Select"},{"$f":"Import!E19912","v":"Select"},{"$f":"Import!E20012","v":0},{"$f":"Import!E20112","v":0},{"$f":"Import!E20212","v":0},{"$f":"Import!E20312","v":0},{"$f":"Import!E20412","v":0}]
[66,{"$f":"Import!E19613","v":"Select"},{"$f":"Import!E19713","v":"Select"},{"$f":"Import!E19813","v":"Select"},{"$f":"Import!E19913","v":"Select"},{"$f":"Import!E20013","v":0},{"$f":"Import!E20113","v":0},{"$f":"Import!E20213","v":0},{"$f":"Import!E20313","v":0},{"$f":"Import!E20413","v":0}]
[{"$f":"A1518+1","v":67},{"$f":"Import!E19614","v":"Select"},{"$f":"Import!E19714","v":"Select"},{"$f":"Import!E19814","v":"Select"},{"$f":"Import!E19914","v":"Select"},{"$f":"Import!E20014","v":0},{"$f":"Import!E20114","v":0},{"$f":"Import!E20214","v":0},{"$f":"Import!E20314","v":0},{"$f":"Import!E20414","v":0}]
[68,{"$f":"Import!E19615","v":"Select"},{"$f":"Import!E19715","v":"Select"},{"$f":"Import!E19815","v":"Select"},{"$f":"Import!E19915","v":"Select"},{"$f":"Import!E20015","v":0},{"$f":"Import!E20115","v":0},{"$f":"Import!E20215","v":0},{"$f":"Import!E20315","v":0},{"$f":"Import!E20415","v":0}]
[69,{"$f":"Import!E19616","v":"Select"},{"$f":"Import!E19716","v":"Select"},{"$f":"Import!E19816","v":"Select"},{"$f":"Import!E19916","v":"Select"},{"$f":"Import!E20016","v":0},{"$f":"Import!E20116","v":0},{"$f":"Import!E20216","v":0},{"$f":"Import!E20316","v":0},{"$f":"Import!E20416","v":0}]
[70,{"$f":"Import!E19617","v":"Select"},{"$f":"Import!E19717","v":"Select"},{"$f":"Import!E19817","v":"Select"},{"$f":"Import!E19917","v":"Select"},{"$f":"Import!E20017","v":0},{"$f":"Import!E20117","v":0},{"$f":"Import!E20217","v":0},{"$f":"Import!E20317","v":0},{"$f":"Import!E20417","v":0}]
[71,{"$f":"Import!E19618","v":"Select"},{"$f":"Import!E19718","v":"Select"},{"$f":"Import!E19818","v":"Select"},{"$f":"Import!E19918","v":"Select"},{"$f":"Import!E20018","v":0},{"$f":"Import!E20118","v":0},{"$f":"Import!E20218","v":0},{"$f":"Import!E20318","v":0},{"$f":"Import!E20418","v":0}]
[72,{"$f":"Import!E19619","v":"Select"},{"$f":"Import!E19719","v":"Select"},{"$f":"Import!E19819","v":"Select"},{"$f":"Import!E19919","v":"Select"},{"$f":"Import!E20019","v":0},{"$f":"Import!E20119","v":0},{"$f":"Import!E20219","v":0},{"$f":"Import!E20319","v":0},{"$f":"Import!E20419","v":0}]
[73,{"$f":"Import!E19620","v":"Select"},{"$f":"Import!E19720","v":"Select"},{"$f":"Import!E19820","v":"Select"},{"$f":"Import!E19920","v":"Select"},{"$f":"Import!E20020","v":0},{"$f":"Import!E20120","v":0},{"$f":"Import!E20220","v":0},{"$f":"Import!E20320","v":0},{"$f":"Import!E20420","v":0}]
[74,{"$f":"Import!E19621","v":"Select"},{"$f":"Import!E19721","v":"Select"},{"$f":"Import!E19821","v":"Select"},{"$f":"Import!E19921","v":"Select"},{"$f":"Import!E20021","v":0},{"$f":"Import!E20121","v":0},{"$f":"Import!E20221","v":0},{"$f":"Import!E20321","v":0},{"$f":"Import!E20421","v":0}]
[75,{"$f":"Import!E19622","v":"Select"},{"$f":"Import!E19722","v":"Select"},{"$f":"Import!E19822","v":"Select"},{"$f":"Import!E19922","v":"Select"},{"$f":"Import!E20022","v":0},{"$f":"Import!E20122","v":0},{"$f":"Import!E20222","v":0},{"$f":"Import!E20322","v":0},{"$f":"Import!E20422","v":0}]
[76,{"$f":"Import!E19623","v":"Select"},{"$f":"Import!E19723","v":"Select"},{"$f":"Import!E19823","v":"Select"},{"$f":"Import!E19923","v":"Select"},{"$f":"Import!E20023","v":0},{"$f":"Import!E20123","v":0},{"$f":"Import!E20223","v":0},{"$f":"Import!E20323","v":0},{"$f":"Import!E20423","v":0}]
[77,{"$f":"Import!E19624","v":"Select"},{"$f":"Import!E19724","v":"Select"},{"$f":"Import!E19824","v":"Select"},{"$f":"Import!E19924","v":"Select"},{"$f":"Import!E20024","v":0},{"$f":"Import!E20124","v":0},{"$f":"Import!E20224","v":0},{"$f":"Import!E20324","v":0},{"$f":"Import!E20424","v":0}]
[78,{"$f":"Import!E19625","v":"Select"},{"$f":"Import!E19725","v":"Select"},{"$f":"Import!E19825","v":"Select"},{"$f":"Import!E19925","v":"Select"},{"$f":"Import!E20025","v":0},{"$f":"Import!E20125","v":0},{"$f":"Import!E20225","v":0},{"$f":"Import!E20325","v":0},{"$f":"Import!E20425","v":0}]
[79,{"$f":"Import!E19626","v":"Select"},{"$f":"Import!E19726","v":"Select"},{"$f":"Import!E19826","v":"Select"},{"$f":"Import!E19926","v":"Select"},{"$f":"Import!E20026","v":0},{"$f":"Import!E20126","v":0},{"$f":"Import!E20226","v":0},{"$f":"Import!E20326","v":0},{"$f":"Import!E20426","v":0}]
[80,{"$f":"Import!E19627","v":"Select"},{"$f":"Import!E19727","v":"Select"},{"$f":"Import!E19827","v":"Select"},{"$f":"Import!E19927","v":"Select"},{"$f":"Import!E20027","v":0},{"$f":"Import!E20127","v":0},{"$f":"Import!E20227","v":0},{"$f":"Import!E20327","v":0},{"$f":"Import!E20427","v":0}]
[81,{"$f":"Import!E19628","v":"Select"},{"$f":"Import!E19728","v":"Select"},{"$f":"Import!E19828","v":"Select"},{"$f":"Import!E19928","v":"Select"},{"$f":"Import!E20028","v":0},{"$f":"Import!E20128","v":0},{"$f":"Import!E20228","v":0},{"$f":"Import!E20328","v":0},{"$f":"Import!E20428","v":0}]
[82,{"$f":"Import!E19629","v":"Select"},{"$f":"Import!E19729","v":"Select"},{"$f":"Import!E19829","v":"Select"},{"$f":"Import!E19929","v":"Select"},{"$f":"Import!E20029","v":0},{"$f":"Import!E20129","v":0},{"$f":"Import!E20229","v":0},{"$f":"Import!E20329","v":0},{"$f":"Import!E20429","v":0}]
[83,{"$f":"Import!E19630","v":"Select"},{"$f":"Import!E19730","v":"Select"},{"$f":"Import!E19830","v":"Select"},{"$f":"Import!E19930","v":"Select"},{"$f":"Import!E20030","v":0},{"$f":"Import!E20130","v":0},{"$f":"Import!E20230","v":0},{"$f":"Import!E20330","v":0},{"$f":"Import!E20430","v":0}]
[84,{"$f":"Import!E19631","v":"Select"},{"$f":"Import!E19731","v":"Select"},{"$f":"Import!E19831","v":"Select"},{"$f":"Import!E19931","v":"Select"},{"$f":"Import!E20031","v":0},{"$f":"Import!E20131","v":0},{"$f":"Import!E20231","v":0},{"$f":"Import!E20331","v":0},{"$f":"Import!E20431","v":0}]
[85,{"$f":"Import!E19632","v":"Select"},{"$f":"Import!E19732","v":"Select"},{"$f":"Import!E19832","v":"Select"},{"$f":"Import!E19932","v":"Select"},{"$f":"Import!E20032","v":0},{"$f":"Import!E20132","v":0},{"$f":"Import!E20232","v":0},{"$f":"Import!E20332","v":0},{"$f":"Import!E20432","v":0}]
[86,{"$f":"Import!E19633","v":"Select"},{"$f":"Import!E19733","v":"Select"},{"$f":"Import!E19833","v":"Select"},{"$f":"Import!E19933","v":"Select"},{"$f":"Import!E20033","v":0},{"$f":"Import!E20133","v":0},{"$f":"Import!E20233","v":0},{"$f":"Import!E20333","v":0},{"$f":"Import!E20433","v":0}]
[87,{"$f":"Import!E19634","v":"Select"},{"$f":"Import!E19734","v":"Select"},{"$f":"Import!E19834","v":"Select"},{"$f":"Import!E19934","v":"Select"},{"$f":"Import!E20034","v":0},{"$f":"Import!E20134","v":0},{"$f":"Import!E20234","v":0},{"$f":"Import!E20334","v":0},{"$f":"Import!E20434","v":0}]
[88,{"$f":"Import!E19635","v":"Select"},{"$f":"Import!E19735","v":"Select"},{"$f":"Import!E19835","v":"Select"},{"$f":"Import!E19935","v":"Select"},{"$f":"Import!E20035","v":0},{"$f":"Import!E20135","v":0},{"$f":"Import!E20235","v":0},{"$f":"Import!E20335","v":0},{"$f":"Import!E20435","v":0}]
[89,{"$f":"Import!E19636","v":"Select"},{"$f":"Import!E19736","v":"Select"},{"$f":"Import!E19836","v":"Select"},{"$f":"Import!E19936","v":"Select"},{"$f":"Import!E20036","v":0},{"$f":"Import!E20136","v":0},{"$f":"Import!E20236","v":0},{"$f":"Import!E20336","v":0},{"$f":"Import!E20436","v":0}]
[90,{"$f":"Import!E19637","v":"Select"},{"$f":"Import!E19737","v":"Select"},{"$f":"Import!E19837","v":"Select"},{"$f":"Import!E19937","v":"Select"},{"$f":"Import!E20037","v":0},{"$f":"Import!E20137","v":0},{"$f":"Import!E20237","v":0},{"$f":"Import!E20337","v":0},{"$f":"Import!E20437","v":0}]
[91,{"$f":"Import!E19638","v":"Select"},{"$f":"Import!E19738","v":"Select"},{"$f":"Import!E19838","v":"Select"},{"$f":"Import!E19938","v":"Select"},{"$f":"Import!E20038","v":0},{"$f":"Import!E20138","v":0},{"$f":"Import!E20238","v":0},{"$f":"Import!E20338","v":0},{"$f":"Import!E20438","v":0}]
[92,{"$f":"Import!E19639","v":"Select"},{"$f":"Import!E19739","v":"Select"},{"$f":"Import!E19839","v":"Select"},{"$f":"Import!E19939","v":"Select"},{"$f":"Import!E20039","v":0},{"$f":"Import!E20139","v":0},{"$f":"Import!E20239","v":0},{"$f":"Import!E20339","v":0},{"$f":"Import!E20439","v":0}]
[93,{"$f":"Import!E19640","v":"Select"},{"$f":"Import!E19740","v":"Select"},{"$f":"Import!E19840","v":"Select"},{"$f":"Import!E19940","v":"Select"},{"$f":"Import!E20040","v":0},{"$f":"Import!E20140","v":0},{"$f":"Import!E20240","v":0},{"$f":"Import!E20340","v":0},{"$f":"Import!E20440","v":0}]
[94,{"$f":"Import!E19641","v":"Select"},{"$f":"Import!E19741","v":"Select"},{"$f":"Import!E19841","v":"Select"},{"$f":"Import!E19941","v":"Select"},{"$f":"Import!E20041","v":0},{"$f":"Import!E20141","v":0},{"$f":"Import!E20241","v":0},{"$f":"Import!E20341","v":0},{"$f":"Import!E20441","v":0}]
[95,{"$f":"Import!E19642","v":"Select"},{"$f":"Import!E19742","v":"Select"},{"$f":"Import!E19842","v":"Select"},{"$f":"Import!E19942","v":"Select"},{"$f":"Import!E20042","v":0},{"$f":"Import!E20142","v":0},{"$f":"Import!E20242","v":0},{"$f":"Import!E20342","v":0},{"$f":"Import!E20442","v":0}]
[96,{"$f":"Import!E19643","v":"Select"},{"$f":"Import!E19743","v":"Select"},{"$f":"Import!E19843","v":"Select"},{"$f":"Import!E19943","v":"Select"},{"$f":"Import!E20043","v":0},{"$f":"Import!E20143","v":0},{"$f":"Import!E20243","v":0},{"$f":"Import!E20343","v":0},{"$f":"Import!E20443","v":0}]
[97,{"$f":"Import!E19644","v":"Select"},{"$f":"Import!E19744","v":"Select"},{"$f":"Import!E19844","v":"Select"},{"$f":"Import!E19944","v":"Select"},{"$f":"Import!E20044","v":0},{"$f":"Import!E20144","v":0},{"$f":"Import!E20244","v":0},{"$f":"Import!E20344","v":0},{"$f":"Import!E20444","v":0}]
[98,{"$f":"Import!E19645","v":"Select"},{"$f":"Import!E19745","v":"Select"},{"$f":"Import!E19845","v":"Select"},{"$f":"Import!E19945","v":"Select"},{"$f":"Import!E20045","v":0},{"$f":"Import!E20145","v":0},{"$f":"Import!E20245","v":0},{"$f":"Import!E20345","v":0},{"$f":"Import!E20445","v":0}]
[99,{"$f":"Import!E19646","v":"Select"},{"$f":"Import!E19746","v":"Select"},{"$f":"Import!E19846","v":"Select"},{"$f":"Import!E19946","v":"Select"},{"$f":"Import!E20046","v":0},{"$f":"Import!E20146","v":0},{"$f":"Import!E20246","v":0},{"$f":"Import!E20346","v":0},{"$f":"Import!E20446","v":0}]
[100,{"$f":"Import!E19647","v":"Select"},{"$f":"Import!E19747","v":"Select"},{"$f":"Import!E19847","v":"Select"},{"$f":"Import!E19947","v":"Select"},{"$f":"Import!E20047","v":0},{"$f":"Import!E20147","v":0},{"$f":"Import!E20247","v":0},{"$f":"Import!E20347","v":0},{"$f":"Import!E20447","v":0}]
[]
[null,"Total Other Alternative Investments",null,null,null,{"$f":"SUM(F1453:F1552)","v":0},{"$f":"SUM(G1453:G1552)","v":0},{"$f":"IFERROR(SUMPRODUCT(H1453:H1552,$G1453:$G1552)/SUM($G1453:$G1552),0)","v":0},{"$f":"IFERROR(SUMPRODUCT(I1453:I1552,$G1453:$G1552)/SUM($G1453:$G1552),0)","v":0}]
[]
[null,"(I) DERIVATIVES"]
[]
[null,null,"Enter # of Derivative Types",{"$f":"Import!E20448","v":0}]
[null,"Derivative Type","Underlying","Currency","Trading Category","Purpose","Position","Confirm line contains only derivatives with:",{"$f":"YEAR($C$3)&\" \nMarket Value\"","v":"2023 \nMarket Value"},"Gross Notional Value","Net Notional Value","Exposure (Dollar Delta, DV01, CS01","Comments"]
[1,{"$f":"Import!E20449","v":"Select"},{"$f":"Import!E20649","v":"Select"},{"$f":"Import!E20849","v":"Select"},{"$f":"Import!E21049","v":"Select"},{"$f":"Import!E21249","v":"Select"},{"$f":"Import!E21449","v":"Select"},{"$f":"Import!E21649","v":"Select"},{"$f":"Import!E21849","v":0},{"$f":"Import!E22049","v":0},{"$f":"Import!E22249","v":0},{"$f":"Import!E22449","v":0},{"$f":"Import!E22649","v":0}]
[{"$f":"A1560+1","v":2},{"$f":"Import!E20450","v":"Select"},{"$f":"Import!E20650","v":"Select"},{"$f":"Import!E20850","v":"Select"},{"$f":"Import!E21050","v":"Select"},{"$f":"Import!E21250","v":"Select"},{"$f":"Import!E21450","v":"Select"},{"$f":"Import!E21650","v":"Select"},{"$f":"Import!E21850","v":0},{"$f":"Import!E22050","v":0},{"$f":"Import!E22250","v":0},{"$f":"Import!E22450","v":0},{"$f":"Import!E22650","v":0}]
[{"$f":"A1561+1","v":3},{"$f":"Import!E20451","v":"Select"},{"$f":"Import!E20651","v":"Select"},{"$f":"Import!E20851","v":"Select"},{"$f":"Import!E21051","v":"Select"},{"$f":"Import!E21251","v":"Select"},{"$f":"Import!E21451","v":"Select"},{"$f":"Import!E21651","v":"Select"},{"$f":"Import!E21851","v":0},{"$f":"Import!E22051","v":0},{"$f":"Import!E22251","v":0},{"$f":"Import!E22451","v":0},{"$f":"Import!E22651","v":0}]
[4,{"$f":"Import!E20452","v":"Select"},{"$f":"Import!E20652","v":"Select"},{"$f":"Import!E20852","v":"Select"},{"$f":"Import!E21052","v":"Select"},{"$f":"Import!E21252","v":"Select"},{"$f":"Import!E21452","v":"Select"},{"$f":"Import!E21652","v":"Select"},{"$f":"Import!E21852","v":0},{"$f":"Import!E22052","v":0},{"$f":"Import!E22252","v":0},{"$f":"Import!E22452","v":0},{"$f":"Import!E22652","v":0}]
[5,{"$f":"Import!E20453","v":"Select"},{"$f":"Import!E20653","v":"Select"},{"$f":"Import!E20853","v":"Select"},{"$f":"Import!E21053","v":"Select"},{"$f":"Import!E21253","v":"Select"},{"$f":"Import!E21453","v":"Select"},{"$f":"Import!E21653","v":"Select"},{"$f":"Import!E21853","v":0},{"$f":"Import!E22053","v":0},{"$f":"Import!E22253","v":0},{"$f":"Import!E22453","v":0},{"$f":"Import!E22653","v":0}]
[6,{"$f":"Import!E20454","v":"Select"},{"$f":"Import!E20654","v":"Select"},{"$f":"Import!E20854","v":"Select"},{"$f":"Import!E21054","v":"Select"},{"$f":"Import!E21254","v":"Select"},{"$f":"Import!E21454","v":"Select"},{"$f":"Import!E21654","v":"Select"},{"$f":"Import!E21854","v":0},{"$f":"Import!E22054","v":0},{"$f":"Import!E22254","v":0},{"$f":"Import!E22454","v":0},{"$f":"Import!E22654","v":0}]
[7,{"$f":"Import!E20455","v":"Select"},{"$f":"Import!E20655","v":"Select"},{"$f":"Import!E20855","v":"Select"},{"$f":"Import!E21055","v":"Select"},{"$f":"Import!E21255","v":"Select"},{"$f":"Import!E21455","v":"Select"},{"$f":"Import!E21655","v":"Select"},{"$f":"Import!E21855","v":0},{"$f":"Import!E22055","v":0},{"$f":"Import!E22255","v":0},{"$f":"Import!E22455","v":0},{"$f":"Import!E22655","v":0}]
[8,{"$f":"Import!E20456","v":"Select"},{"$f":"Import!E20656","v":"Select"},{"$f":"Import!E20856","v":"Select"},{"$f":"Import!E21056","v":"Select"},{"$f":"Import!E21256","v":"Select"},{"$f":"Import!E21456","v":"Select"},{"$f":"Import!E21656","v":"Select"},{"$f":"Import!E21856","v":0},{"$f":"Import!E22056","v":0},{"$f":"Import!E22256","v":0},{"$f":"Import!E22456","v":0},{"$f":"Import!E22656","v":0}]
[9,{"$f":"Import!E20457","v":"Select"},{"$f":"Import!E20657","v":"Select"},{"$f":"Import!E20857","v":"Select"},{"$f":"Import!E21057","v":"Select"},{"$f":"Import!E21257","v":"Select"},{"$f":"Import!E21457","v":"Select"},{"$f":"Import!E21657","v":"Select"},{"$f":"Import!E21857","v":0},{"$f":"Import!E22057","v":0},{"$f":"Import!E22257","v":0},{"$f":"Import!E22457","v":0},{"$f":"Import!E22657","v":0}]
[10,{"$f":"Import!E20458","v":"Select"},{"$f":"Import!E20658","v":"Select"},{"$f":"Import!E20858","v":"Select"},{"$f":"Import!E21058","v":"Select"},{"$f":"Import!E21258","v":"Select"},{"$f":"Import!E21458","v":"Select"},{"$f":"Import!E21658","v":"Select"},{"$f":"Import!E21858","v":0},{"$f":"Import!E22058","v":0},{"$f":"Import!E22258","v":0},{"$f":"Import!E22458","v":0},{"$f":"Import!E22658","v":0}]
[11,{"$f":"Import!E20459","v":"Select"},{"$f":"Import!E20659","v":"Select"},{"$f":"Import!E20859","v":"Select"},{"$f":"Import!E21059","v":"Select"},{"$f":"Import!E21259","v":"Select"},{"$f":"Import!E21459","v":"Select"},{"$f":"Import!E21659","v":"Select"},{"$f":"Import!E21859","v":0},{"$f":"Import!E22059","v":0},{"$f":"Import!E22259","v":0},{"$f":"Import!E22459","v":0},{"$f":"Import!E22659","v":0}]
[12,{"$f":"Import!E20460","v":"Select"},{"$f":"Import!E20660","v":"Select"},{"$f":"Import!E20860","v":"Select"},{"$f":"Import!E21060","v":"Select"},{"$f":"Import!E21260","v":"Select"},{"$f":"Import!E21460","v":"Select"},{"$f":"Import!E21660","v":"Select"},{"$f":"Import!E21860","v":0},{"$f":"Import!E22060","v":0},{"$f":"Import!E22260","v":0},{"$f":"Import!E22460","v":0},{"$f":"Import!E22660","v":0}]
[13,{"$f":"Import!E20461","v":"Select"},{"$f":"Import!E20661","v":"Select"},{"$f":"Import!E20861","v":"Select"},{"$f":"Import!E21061","v":"Select"},{"$f":"Import!E21261","v":"Select"},{"$f":"Import!E21461","v":"Select"},{"$f":"Import!E21661","v":"Select"},{"$f":"Import!E21861","v":0},{"$f":"Import!E22061","v":0},{"$f":"Import!E22261","v":0},{"$f":"Import!E22461","v":0},{"$f":"Import!E22661","v":0}]
[14,{"$f":"Import!E20462","v":"Select"},{"$f":"Import!E20662","v":"Select"},{"$f":"Import!E20862","v":"Select"},{"$f":"Import!E21062","v":"Select"},{"$f":"Import!E21262","v":"Select"},{"$f":"Import!E21462","v":"Select"},{"$f":"Import!E21662","v":"Select"},{"$f":"Import!E21862","v":0},{"$f":"Import!E22062","v":0},{"$f":"Import!E22262","v":0},{"$f":"Import!E22462","v":0},{"$f":"Import!E22662","v":0}]
[15,{"$f":"Import!E20463","v":"Select"},{"$f":"Import!E20663","v":"Select"},{"$f":"Import!E20863","v":"Select"},{"$f":"Import!E21063","v":"Select"},{"$f":"Import!E21263","v":"Select"},{"$f":"Import!E21463","v":"Select"},{"$f":"Import!E21663","v":"Select"},{"$f":"Import!E21863","v":0},{"$f":"Import!E22063","v":0},{"$f":"Import!E22263","v":0},{"$f":"Import!E22463","v":0},{"$f":"Import!E22663","v":0}]
[16,{"$f":"Import!E20464","v":"Select"},{"$f":"Import!E20664","v":"Select"},{"$f":"Import!E20864","v":"Select"},{"$f":"Import!E21064","v":"Select"},{"$f":"Import!E21264","v":"Select"},{"$f":"Import!E21464","v":"Select"},{"$f":"Import!E21664","v":"Select"},{"$f":"Import!E21864","v":0},{"$f":"Import!E22064","v":0},{"$f":"Import!E22264","v":0},{"$f":"Import!E22464","v":0},{"$f":"Import!E22664","v":0}]
[17,{"$f":"Import!E20465","v":"Select"},{"$f":"Import!E20665","v":"Select"},{"$f":"Import!E20865","v":"Select"},{"$f":"Import!E21065","v":"Select"},{"$f":"Import!E21265","v":"Select"},{"$f":"Import!E21465","v":"Select"},{"$f":"Import!E21665","v":"Select"},{"$f":"Import!E21865","v":0},{"$f":"Import!E22065","v":0},{"$f":"Import!E22265","v":0},{"$f":"Import!E22465","v":0},{"$f":"Import!E22665","v":0}]
[18,{"$f":"Import!E20466","v":"Select"},{"$f":"Import!E20666","v":"Select"},{"$f":"Import!E20866","v":"Select"},{"$f":"Import!E21066","v":"Select"},{"$f":"Import!E21266","v":"Select"},{"$f":"Import!E21466","v":"Select"},{"$f":"Import!E21666","v":"Select"},{"$f":"Import!E21866","v":0},{"$f":"Import!E22066","v":0},{"$f":"Import!E22266","v":0},{"$f":"Import!E22466","v":0},{"$f":"Import!E22666","v":0}]
[19,{"$f":"Import!E20467","v":"Select"},{"$f":"Import!E20667","v":"Select"},{"$f":"Import!E20867","v":"Select"},{"$f":"Import!E21067","v":"Select"},{"$f":"Import!E21267","v":"Select"},{"$f":"Import!E21467","v":"Select"},{"$f":"Import!E21667","v":"Select"},{"$f":"Import!E21867","v":0},{"$f":"Import!E22067","v":0},{"$f":"Import!E22267","v":0},{"$f":"Import!E22467","v":0},{"$f":"Import!E22667","v":0}]
[20,{"$f":"Import!E20468","v":"Select"},{"$f":"Import!E20668","v":"Select"},{"$f":"Import!E20868","v":"Select"},{"$f":"Import!E21068","v":"Select"},{"$f":"Import!E21268","v":"Select"},{"$f":"Import!E21468","v":"Select"},{"$f":"Import!E21668","v":"Select"},{"$f":"Import!E21868","v":0},{"$f":"Import!E22068","v":0},{"$f":"Import!E22268","v":0},{"$f":"Import!E22468","v":0},{"$f":"Import!E22668","v":0}]
[21,{"$f":"Import!E20469","v":"Select"},{"$f":"Import!E20669","v":"Select"},{"$f":"Import!E20869","v":"Select"},{"$f":"Import!E21069","v":"Select"},{"$f":"Import!E21269","v":"Select"},{"$f":"Import!E21469","v":"Select"},{"$f":"Import!E21669","v":"Select"},{"$f":"Import!E21869","v":0},{"$f":"Import!E22069","v":0},{"$f":"Import!E22269","v":0},{"$f":"Import!E22469","v":0},{"$f":"Import!E22669","v":0}]
[22,{"$f":"Import!E20470","v":"Select"},{"$f":"Import!E20670","v":"Select"},{"$f":"Import!E20870","v":"Select"},{"$f":"Import!E21070","v":"Select"},{"$f":"Import!E21270","v":"Select"},{"$f":"Import!E21470","v":"Select"},{"$f":"Import!E21670","v":"Select"},{"$f":"Import!E21870","v":0},{"$f":"Import!E22070","v":0},{"$f":"Import!E22270","v":0},{"$f":"Import!E22470","v":0},{"$f":"Import!E22670","v":0}]
[23,{"$f":"Import!E20471","v":"Select"},{"$f":"Import!E20671","v":"Select"},{"$f":"Import!E20871","v":"Select"},{"$f":"Import!E21071","v":"Select"},{"$f":"Import!E21271","v":"Select"},{"$f":"Import!E21471","v":"Select"},{"$f":"Import!E21671","v":"Select"},{"$f":"Import!E21871","v":0},{"$f":"Import!E22071","v":0},{"$f":"Import!E22271","v":0},{"$f":"Import!E22471","v":0},{"$f":"Import!E22671","v":0}]
[24,{"$f":"Import!E20472","v":"Select"},{"$f":"Import!E20672","v":"Select"},{"$f":"Import!E20872","v":"Select"},{"$f":"Import!E21072","v":"Select"},{"$f":"Import!E21272","v":"Select"},{"$f":"Import!E21472","v":"Select"},{"$f":"Import!E21672","v":"Select"},{"$f":"Import!E21872","v":0},{"$f":"Import!E22072","v":0},{"$f":"Import!E22272","v":0},{"$f":"Import!E22472","v":0},{"$f":"Import!E22672","v":0}]
[25,{"$f":"Import!E20473","v":"Select"},{"$f":"Import!E20673","v":"Select"},{"$f":"Import!E20873","v":"Select"},{"$f":"Import!E21073","v":"Select"},{"$f":"Import!E21273","v":"Select"},{"$f":"Import!E21473","v":"Select"},{"$f":"Import!E21673","v":"Select"},{"$f":"Import!E21873","v":0},{"$f":"Import!E22073","v":0},{"$f":"Import!E22273","v":0},{"$f":"Import!E22473","v":0},{"$f":"Import!E22673","v":0}]
[26,{"$f":"Import!E20474","v":"Select"},{"$f":"Import!E20674","v":"Select"},{"$f":"Import!E20874","v":"Select"},{"$f":"Import!E21074","v":"Select"},{"$f":"Import!E21274","v":"Select"},{"$f":"Import!E21474","v":"Select"},{"$f":"Import!E21674","v":"Select"},{"$f":"Import!E21874","v":0},{"$f":"Import!E22074","v":0},{"$f":"Import!E22274","v":0},{"$f":"Import!E22474","v":0},{"$f":"Import!E22674","v":0}]
[27,{"$f":"Import!E20475","v":"Select"},{"$f":"Import!E20675","v":"Select"},{"$f":"Import!E20875","v":"Select"},{"$f":"Import!E21075","v":"Select"},{"$f":"Import!E21275","v":"Select"},{"$f":"Import!E21475","v":"Select"},{"$f":"Import!E21675","v":"Select"},{"$f":"Import!E21875","v":0},{"$f":"Import!E22075","v":0},{"$f":"Import!E22275","v":0},{"$f":"Import!E22475","v":0},{"$f":"Import!E22675","v":0}]
[28,{"$f":"Import!E20476","v":"Select"},{"$f":"Import!E20676","v":"Select"},{"$f":"Import!E20876","v":"Select"},{"$f":"Import!E21076","v":"Select"},{"$f":"Import!E21276","v":"Select"},{"$f":"Import!E21476","v":"Select"},{"$f":"Import!E21676","v":"Select"},{"$f":"Import!E21876","v":0},{"$f":"Import!E22076","v":0},{"$f":"Import!E22276","v":0},{"$f":"Import!E22476","v":0},{"$f":"Import!E22676","v":0}]
[29,{"$f":"Import!E20477","v":"Select"},{"$f":"Import!E20677","v":"Select"},{"$f":"Import!E20877","v":"Select"},{"$f":"Import!E21077","v":"Select"},{"$f":"Import!E21277","v":"Select"},{"$f":"Import!E21477","v":"Select"},{"$f":"Import!E21677","v":"Select"},{"$f":"Import!E21877","v":0},{"$f":"Import!E22077","v":0},{"$f":"Import!E22277","v":0},{"$f":"Import!E22477","v":0},{"$f":"Import!E22677","v":0}]
[30,{"$f":"Import!E20478","v":"Select"},{"$f":"Import!E20678","v":"Select"},{"$f":"Import!E20878","v":"Select"},{"$f":"Import!E21078","v":"Select"},{"$f":"Import!E21278","v":"Select"},{"$f":"Import!E21478","v":"Select"},{"$f":"Import!E21678","v":"Select"},{"$f":"Import!E21878","v":0},{"$f":"Import!E22078","v":0},{"$f":"Import!E22278","v":0},{"$f":"Import!E22478","v":0},{"$f":"Import!E22678","v":0}]
[31,{"$f":"Import!E20479","v":"Select"},{"$f":"Import!E20679","v":"Select"},{"$f":"Import!E20879","v":"Select"},{"$f":"Import!E21079","v":"Select"},{"$f":"Import!E21279","v":"Select"},{"$f":"Import!E21479","v":"Select"},{"$f":"Import!E21679","v":"Select"},{"$f":"Import!E21879","v":0},{"$f":"Import!E22079","v":0},{"$f":"Import!E22279","v":0},{"$f":"Import!E22479","v":0},{"$f":"Import!E22679","v":0}]
[32,{"$f":"Import!E20480","v":"Select"},{"$f":"Import!E20680","v":"Select"},{"$f":"Import!E20880","v":"Select"},{"$f":"Import!E21080","v":"Select"},{"$f":"Import!E21280","v":"Select"},{"$f":"Import!E21480","v":"Select"},{"$f":"Import!E21680","v":"Select"},{"$f":"Import!E21880","v":0},{"$f":"Import!E22080","v":0},{"$f":"Import!E22280","v":0},{"$f":"Import!E22480","v":0},{"$f":"Import!E22680","v":0}]
[33,{"$f":"Import!E20481","v":"Select"},{"$f":"Import!E20681","v":"Select"},{"$f":"Import!E20881","v":"Select"},{"$f":"Import!E21081","v":"Select"},{"$f":"Import!E21281","v":"Select"},{"$f":"Import!E21481","v":"Select"},{"$f":"Import!E21681","v":"Select"},{"$f":"Import!E21881","v":0},{"$f":"Import!E22081","v":0},{"$f":"Import!E22281","v":0},{"$f":"Import!E22481","v":0},{"$f":"Import!E22681","v":0}]
[34,{"$f":"Import!E20482","v":"Select"},{"$f":"Import!E20682","v":"Select"},{"$f":"Import!E20882","v":"Select"},{"$f":"Import!E21082","v":"Select"},{"$f":"Import!E21282","v":"Select"},{"$f":"Import!E21482","v":"Select"},{"$f":"Import!E21682","v":"Select"},{"$f":"Import!E21882","v":0},{"$f":"Import!E22082","v":0},{"$f":"Import!E22282","v":0},{"$f":"Import!E22482","v":0},{"$f":"Import!E22682","v":0}]
[35,{"$f":"Import!E20483","v":"Select"},{"$f":"Import!E20683","v":"Select"},{"$f":"Import!E20883","v":"Select"},{"$f":"Import!E21083","v":"Select"},{"$f":"Import!E21283","v":"Select"},{"$f":"Import!E21483","v":"Select"},{"$f":"Import!E21683","v":"Select"},{"$f":"Import!E21883","v":0},{"$f":"Import!E22083","v":0},{"$f":"Import!E22283","v":0},{"$f":"Import!E22483","v":0},{"$f":"Import!E22683","v":0}]
[36,{"$f":"Import!E20484","v":"Select"},{"$f":"Import!E20684","v":"Select"},{"$f":"Import!E20884","v":"Select"},{"$f":"Import!E21084","v":"Select"},{"$f":"Import!E21284","v":"Select"},{"$f":"Import!E21484","v":"Select"},{"$f":"Import!E21684","v":"Select"},{"$f":"Import!E21884","v":0},{"$f":"Import!E22084","v":0},{"$f":"Import!E22284","v":0},{"$f":"Import!E22484","v":0},{"$f":"Import!E22684","v":0}]
[37,{"$f":"Import!E20485","v":"Select"},{"$f":"Import!E20685","v":"Select"},{"$f":"Import!E20885","v":"Select"},{"$f":"Import!E21085","v":"Select"},{"$f":"Import!E21285","v":"Select"},{"$f":"Import!E21485","v":"Select"},{"$f":"Import!E21685","v":"Select"},{"$f":"Import!E21885","v":0},{"$f":"Import!E22085","v":0},{"$f":"Import!E22285","v":0},{"$f":"Import!E22485","v":0},{"$f":"Import!E22685","v":0}]
[38,{"$f":"Import!E20486","v":"Select"},{"$f":"Import!E20686","v":"Select"},{"$f":"Import!E20886","v":"Select"},{"$f":"Import!E21086","v":"Select"},{"$f":"Import!E21286","v":"Select"},{"$f":"Import!E21486","v":"Select"},{"$f":"Import!E21686","v":"Select"},{"$f":"Import!E21886","v":0},{"$f":"Import!E22086","v":0},{"$f":"Import!E22286","v":0},{"$f":"Import!E22486","v":0},{"$f":"Import!E22686","v":0}]
[39,{"$f":"Import!E20487","v":"Select"},{"$f":"Import!E20687","v":"Select"},{"$f":"Import!E20887","v":"Select"},{"$f":"Import!E21087","v":"Select"},{"$f":"Import!E21287","v":"Select"},{"$f":"Import!E21487","v":"Select"},{"$f":"Import!E21687","v":"Select"},{"$f":"Import!E21887","v":0},{"$f":"Import!E22087","v":0},{"$f":"Import!E22287","v":0},{"$f":"Import!E22487","v":0},{"$f":"Import!E22687","v":0}]
[40,{"$f":"Import!E20488","v":"Select"},{"$f":"Import!E20688","v":"Select"},{"$f":"Import!E20888","v":"Select"},{"$f":"Import!E21088","v":"Select"},{"$f":"Import!E21288","v":"Select"},{"$f":"Import!E21488","v":"Select"},{"$f":"Import!E21688","v":"Select"},{"$f":"Import!E21888","v":0},{"$f":"Import!E22088","v":0},{"$f":"Import!E22288","v":0},{"$f":"Import!E22488","v":0},{"$f":"Import!E22688","v":0}]
[41,{"$f":"Import!E20489","v":"Select"},{"$f":"Import!E20689","v":"Select"},{"$f":"Import!E20889","v":"Select"},{"$f":"Import!E21089","v":"Select"},{"$f":"Import!E21289","v":"Select"},{"$f":"Import!E21489","v":"Select"},{"$f":"Import!E21689","v":"Select"},{"$f":"Import!E21889","v":0},{"$f":"Import!E22089","v":0},{"$f":"Import!E22289","v":0},{"$f":"Import!E22489","v":0},{"$f":"Import!E22689","v":0}]
[42,{"$f":"Import!E20490","v":"Select"},{"$f":"Import!E20690","v":"Select"},{"$f":"Import!E20890","v":"Select"},{"$f":"Import!E21090","v":"Select"},{"$f":"Import!E21290","v":"Select"},{"$f":"Import!E21490","v":"Select"},{"$f":"Import!E21690","v":"Select"},{"$f":"Import!E21890","v":0},{"$f":"Import!E22090","v":0},{"$f":"Import!E22290","v":0},{"$f":"Import!E22490","v":0},{"$f":"Import!E22690","v":0}]
[43,{"$f":"Import!E20491","v":"Select"},{"$f":"Import!E20691","v":"Select"},{"$f":"Import!E20891","v":"Select"},{"$f":"Import!E21091","v":"Select"},{"$f":"Import!E21291","v":"Select"},{"$f":"Import!E21491","v":"Select"},{"$f":"Import!E21691","v":"Select"},{"$f":"Import!E21891","v":0},{"$f":"Import!E22091","v":0},{"$f":"Import!E22291","v":0},{"$f":"Import!E22491","v":0},{"$f":"Import!E22691","v":0}]
[44,{"$f":"Import!E20492","v":"Select"},{"$f":"Import!E20692","v":"Select"},{"$f":"Import!E20892","v":"Select"},{"$f":"Import!E21092","v":"Select"},{"$f":"Import!E21292","v":"Select"},{"$f":"Import!E21492","v":"Select"},{"$f":"Import!E21692","v":"Select"},{"$f":"Import!E21892","v":0},{"$f":"Import!E22092","v":0},{"$f":"Import!E22292","v":0},{"$f":"Import!E22492","v":0},{"$f":"Import!E22692","v":0}]
[45,{"$f":"Import!E20493","v":"Select"},{"$f":"Import!E20693","v":"Select"},{"$f":"Import!E20893","v":"Select"},{"$f":"Import!E21093","v":"Select"},{"$f":"Import!E21293","v":"Select"},{"$f":"Import!E21493","v":"Select"},{"$f":"Import!E21693","v":"Select"},{"$f":"Import!E21893","v":0},{"$f":"Import!E22093","v":0},{"$f":"Import!E22293","v":0},{"$f":"Import!E22493","v":0},{"$f":"Import!E22693","v":0}]
[46,{"$f":"Import!E20494","v":"Select"},{"$f":"Import!E20694","v":"Select"},{"$f":"Import!E20894","v":"Select"},{"$f":"Import!E21094","v":"Select"},{"$f":"Import!E21294","v":"Select"},{"$f":"Import!E21494","v":"Select"},{"$f":"Import!E21694","v":"Select"},{"$f":"Import!E21894","v":0},{"$f":"Import!E22094","v":0},{"$f":"Import!E22294","v":0},{"$f":"Import!E22494","v":0},{"$f":"Import!E22694","v":0}]
[47,{"$f":"Import!E20495","v":"Select"},{"$f":"Import!E20695","v":"Select"},{"$f":"Import!E20895","v":"Select"},{"$f":"Import!E21095","v":"Select"},{"$f":"Import!E21295","v":"Select"},{"$f":"Import!E21495","v":"Select"},{"$f":"Import!E21695","v":"Select"},{"$f":"Import!E21895","v":0},{"$f":"Import!E22095","v":0},{"$f":"Import!E22295","v":0},{"$f":"Import!E22495","v":0},{"$f":"Import!E22695","v":0}]
[48,{"$f":"Import!E20496","v":"Select"},{"$f":"Import!E20696","v":"Select"},{"$f":"Import!E20896","v":"Select"},{"$f":"Import!E21096","v":"Select"},{"$f":"Import!E21296","v":"Select"},{"$f":"Import!E21496","v":"Select"},{"$f":"Import!E21696","v":"Select"},{"$f":"Import!E21896","v":0},{"$f":"Import!E22096","v":0},{"$f":"Import!E22296","v":0},{"$f":"Import!E22496","v":0},{"$f":"Import!E22696","v":0}]
[49,{"$f":"Import!E20497","v":"Select"},{"$f":"Import!E20697","v":"Select"},{"$f":"Import!E20897","v":"Select"},{"$f":"Import!E21097","v":"Select"},{"$f":"Import!E21297","v":"Select"},{"$f":"Import!E21497","v":"Select"},{"$f":"Import!E21697","v":"Select"},{"$f":"Import!E21897","v":0},{"$f":"Import!E22097","v":0},{"$f":"Import!E22297","v":0},{"$f":"Import!E22497","v":0},{"$f":"Import!E22697","v":0}]
[50,{"$f":"Import!E20498","v":"Select"},{"$f":"Import!E20698","v":"Select"},{"$f":"Import!E20898","v":"Select"},{"$f":"Import!E21098","v":"Select"},{"$f":"Import!E21298","v":"Select"},{"$f":"Import!E21498","v":"Select"},{"$f":"Import!E21698","v":"Select"},{"$f":"Import!E21898","v":0},{"$f":"Import!E22098","v":0},{"$f":"Import!E22298","v":0},{"$f":"Import!E22498","v":0},{"$f":"Import!E22698","v":0}]
[51,{"$f":"Import!E20499","v":"Select"},{"$f":"Import!E20699","v":"Select"},{"$f":"Import!E20899","v":"Select"},{"$f":"Import!E21099","v":"Select"},{"$f":"Import!E21299","v":"Select"},{"$f":"Import!E21499","v":"Select"},{"$f":"Import!E21699","v":"Select"},{"$f":"Import!E21899","v":0},{"$f":"Import!E22099","v":0},{"$f":"Import!E22299","v":0},{"$f":"Import!E22499","v":0},{"$f":"Import!E22699","v":0}]
[52,{"$f":"Import!E20500","v":"Select"},{"$f":"Import!E20700","v":"Select"},{"$f":"Import!E20900","v":"Select"},{"$f":"Import!E21100","v":"Select"},{"$f":"Import!E21300","v":"Select"},{"$f":"Import!E21500","v":"Select"},{"$f":"Import!E21700","v":"Select"},{"$f":"Import!E21900","v":0},{"$f":"Import!E22100","v":0},{"$f":"Import!E22300","v":0},{"$f":"Import!E22500","v":0},{"$f":"Import!E22700","v":0}]
[53,{"$f":"Import!E20501","v":"Select"},{"$f":"Import!E20701","v":"Select"},{"$f":"Import!E20901","v":"Select"},{"$f":"Import!E21101","v":"Select"},{"$f":"Import!E21301","v":"Select"},{"$f":"Import!E21501","v":"Select"},{"$f":"Import!E21701","v":"Select"},{"$f":"Import!E21901","v":0},{"$f":"Import!E22101","v":0},{"$f":"Import!E22301","v":0},{"$f":"Import!E22501","v":0},{"$f":"Import!E22701","v":0}]
[54,{"$f":"Import!E20502","v":"Select"},{"$f":"Import!E20702","v":"Select"},{"$f":"Import!E20902","v":"Select"},{"$f":"Import!E21102","v":"Select"},{"$f":"Import!E21302","v":"Select"},{"$f":"Import!E21502","v":"Select"},{"$f":"Import!E21702","v":"Select"},{"$f":"Import!E21902","v":0},{"$f":"Import!E22102","v":0},{"$f":"Import!E22302","v":0},{"$f":"Import!E22502","v":0},{"$f":"Import!E22702","v":0}]
[55,{"$f":"Import!E20503","v":"Select"},{"$f":"Import!E20703","v":"Select"},{"$f":"Import!E20903","v":"Select"},{"$f":"Import!E21103","v":"Select"},{"$f":"Import!E21303","v":"Select"},{"$f":"Import!E21503","v":"Select"},{"$f":"Import!E21703","v":"Select"},{"$f":"Import!E21903","v":0},{"$f":"Import!E22103","v":0},{"$f":"Import!E22303","v":0},{"$f":"Import!E22503","v":0},{"$f":"Import!E22703","v":0}]
[56,{"$f":"Import!E20504","v":"Select"},{"$f":"Import!E20704","v":"Select"},{"$f":"Import!E20904","v":"Select"},{"$f":"Import!E21104","v":"Select"},{"$f":"Import!E21304","v":"Select"},{"$f":"Import!E21504","v":"Select"},{"$f":"Import!E21704","v":"Select"},{"$f":"Import!E21904","v":0},{"$f":"Import!E22104","v":0},{"$f":"Import!E22304","v":0},{"$f":"Import!E22504","v":0},{"$f":"Import!E22704","v":0}]
[57,{"$f":"Import!E20505","v":"Select"},{"$f":"Import!E20705","v":"Select"},{"$f":"Import!E20905","v":"Select"},{"$f":"Import!E21105","v":"Select"},{"$f":"Import!E21305","v":"Select"},{"$f":"Import!E21505","v":"Select"},{"$f":"Import!E21705","v":"Select"},{"$f":"Import!E21905","v":0},{"$f":"Import!E22105","v":0},{"$f":"Import!E22305","v":0},{"$f":"Import!E22505","v":0},{"$f":"Import!E22705","v":0}]
[58,{"$f":"Import!E20506","v":"Select"},{"$f":"Import!E20706","v":"Select"},{"$f":"Import!E20906","v":"Select"},{"$f":"Import!E21106","v":"Select"},{"$f":"Import!E21306","v":"Select"},{"$f":"Import!E21506","v":"Select"},{"$f":"Import!E21706","v":"Select"},{"$f":"Import!E21906","v":0},{"$f":"Import!E22106","v":0},{"$f":"Import!E22306","v":0},{"$f":"Import!E22506","v":0},{"$f":"Import!E22706","v":0}]
[59,{"$f":"Import!E20507","v":"Select"},{"$f":"Import!E20707","v":"Select"},{"$f":"Import!E20907","v":"Select"},{"$f":"Import!E21107","v":"Select"},{"$f":"Import!E21307","v":"Select"},{"$f":"Import!E21507","v":"Select"},{"$f":"Import!E21707","v":"Select"},{"$f":"Import!E21907","v":0},{"$f":"Import!E22107","v":0},{"$f":"Import!E22307","v":0},{"$f":"Import!E22507","v":0},{"$f":"Import!E22707","v":0}]
[60,{"$f":"Import!E20508","v":"Select"},{"$f":"Import!E20708","v":"Select"},{"$f":"Import!E20908","v":"Select"},{"$f":"Import!E21108","v":"Select"},{"$f":"Import!E21308","v":"Select"},{"$f":"Import!E21508","v":"Select"},{"$f":"Import!E21708","v":"Select"},{"$f":"Import!E21908","v":0},{"$f":"Import!E22108","v":0},{"$f":"Import!E22308","v":0},{"$f":"Import!E22508","v":0},{"$f":"Import!E22708","v":0}]
[61,{"$f":"Import!E20509","v":"Select"},{"$f":"Import!E20709","v":"Select"},{"$f":"Import!E20909","v":"Select"},{"$f":"Import!E21109","v":"Select"},{"$f":"Import!E21309","v":"Select"},{"$f":"Import!E21509","v":"Select"},{"$f":"Import!E21709","v":"Select"},{"$f":"Import!E21909","v":0},{"$f":"Import!E22109","v":0},{"$f":"Import!E22309","v":0},{"$f":"Import!E22509","v":0},{"$f":"Import!E22709","v":0}]
[62,{"$f":"Import!E20510","v":"Select"},{"$f":"Import!E20710","v":"Select"},{"$f":"Import!E20910","v":"Select"},{"$f":"Import!E21110","v":"Select"},{"$f":"Import!E21310","v":"Select"},{"$f":"Import!E21510","v":"Select"},{"$f":"Import!E21710","v":"Select"},{"$f":"Import!E21910","v":0},{"$f":"Import!E22110","v":0},{"$f":"Import!E22310","v":0},{"$f":"Import!E22510","v":0},{"$f":"Import!E22710","v":0}]
[63,{"$f":"Import!E20511","v":"Select"},{"$f":"Import!E20711","v":"Select"},{"$f":"Import!E20911","v":"Select"},{"$f":"Import!E21111","v":"Select"},{"$f":"Import!E21311","v":"Select"},{"$f":"Import!E21511","v":"Select"},{"$f":"Import!E21711","v":"Select"},{"$f":"Import!E21911","v":0},{"$f":"Import!E22111","v":0},{"$f":"Import!E22311","v":0},{"$f":"Import!E22511","v":0},{"$f":"Import!E22711","v":0}]
[64,{"$f":"Import!E20512","v":"Select"},{"$f":"Import!E20712","v":"Select"},{"$f":"Import!E20912","v":"Select"},{"$f":"Import!E21112","v":"Select"},{"$f":"Import!E21312","v":"Select"},{"$f":"Import!E21512","v":"Select"},{"$f":"Import!E21712","v":"Select"},{"$f":"Import!E21912","v":0},{"$f":"Import!E22112","v":0},{"$f":"Import!E22312","v":0},{"$f":"Import!E22512","v":0},{"$f":"Import!E22712","v":0}]
[65,{"$f":"Import!E20513","v":"Select"},{"$f":"Import!E20713","v":"Select"},{"$f":"Import!E20913","v":"Select"},{"$f":"Import!E21113","v":"Select"},{"$f":"Import!E21313","v":"Select"},{"$f":"Import!E21513","v":"Select"},{"$f":"Import!E21713","v":"Select"},{"$f":"Import!E21913","v":0},{"$f":"Import!E22113","v":0},{"$f":"Import!E22313","v":0},{"$f":"Import!E22513","v":0},{"$f":"Import!E22713","v":0}]
[66,{"$f":"Import!E20514","v":"Select"},{"$f":"Import!E20714","v":"Select"},{"$f":"Import!E20914","v":"Select"},{"$f":"Import!E21114","v":"Select"},{"$f":"Import!E21314","v":"Select"},{"$f":"Import!E21514","v":"Select"},{"$f":"Import!E21714","v":"Select"},{"$f":"Import!E21914","v":0},{"$f":"Import!E22114","v":0},{"$f":"Import!E22314","v":0},{"$f":"Import!E22514","v":0},{"$f":"Import!E22714","v":0}]
[{"$f":"A1625+1","v":67},{"$f":"Import!E20515","v":"Select"},{"$f":"Import!E20715","v":"Select"},{"$f":"Import!E20915","v":"Select"},{"$f":"Import!E21115","v":"Select"},{"$f":"Import!E21315","v":"Select"},{"$f":"Import!E21515","v":"Select"},{"$f":"Import!E21715","v":"Select"},{"$f":"Import!E21915","v":0},{"$f":"Import!E22115","v":0},{"$f":"Import!E22315","v":0},{"$f":"Import!E22515","v":0},{"$f":"Import!E22715","v":0}]
[68,{"$f":"Import!E20516","v":"Select"},{"$f":"Import!E20716","v":"Select"},{"$f":"Import!E20916","v":"Select"},{"$f":"Import!E21116","v":"Select"},{"$f":"Import!E21316","v":"Select"},{"$f":"Import!E21516","v":"Select"},{"$f":"Import!E21716","v":"Select"},{"$f":"Import!E21916","v":0},{"$f":"Import!E22116","v":0},{"$f":"Import!E22316","v":0},{"$f":"Import!E22516","v":0},{"$f":"Import!E22716","v":0}]
[69,{"$f":"Import!E20517","v":"Select"},{"$f":"Import!E20717","v":"Select"},{"$f":"Import!E20917","v":"Select"},{"$f":"Import!E21117","v":"Select"},{"$f":"Import!E21317","v":"Select"},{"$f":"Import!E21517","v":"Select"},{"$f":"Import!E21717","v":"Select"},{"$f":"Import!E21917","v":0},{"$f":"Import!E22117","v":0},{"$f":"Import!E22317","v":0},{"$f":"Import!E22517","v":0},{"$f":"Import!E22717","v":0}]
[70,{"$f":"Import!E20518","v":"Select"},{"$f":"Import!E20718","v":"Select"},{"$f":"Import!E20918","v":"Select"},{"$f":"Import!E21118","v":"Select"},{"$f":"Import!E21318","v":"Select"},{"$f":"Import!E21518","v":"Select"},{"$f":"Import!E21718","v":"Select"},{"$f":"Import!E21918","v":0},{"$f":"Import!E22118","v":0},{"$f":"Import!E22318","v":0},{"$f":"Import!E22518","v":0},{"$f":"Import!E22718","v":0}]
[71,{"$f":"Import!E20519","v":"Select"},{"$f":"Import!E20719","v":"Select"},{"$f":"Import!E20919","v":"Select"},{"$f":"Import!E21119","v":"Select"},{"$f":"Import!E21319","v":"Select"},{"$f":"Import!E21519","v":"Select"},{"$f":"Import!E21719","v":"Select"},{"$f":"Import!E21919","v":0},{"$f":"Import!E22119","v":0},{"$f":"Import!E22319","v":0},{"$f":"Import!E22519","v":0},{"$f":"Import!E22719","v":0}]
[72,{"$f":"Import!E20520","v":"Select"},{"$f":"Import!E20720","v":"Select"},{"$f":"Import!E20920","v":"Select"},{"$f":"Import!E21120","v":"Select"},{"$f":"Import!E21320","v":"Select"},{"$f":"Import!E21520","v":"Select"},{"$f":"Import!E21720","v":"Select"},{"$f":"Import!E21920","v":0},{"$f":"Import!E22120","v":0},{"$f":"Import!E22320","v":0},{"$f":"Import!E22520","v":0},{"$f":"Import!E22720","v":0}]
[73,{"$f":"Import!E20521","v":"Select"},{"$f":"Import!E20721","v":"Select"},{"$f":"Import!E20921","v":"Select"},{"$f":"Import!E21121","v":"Select"},{"$f":"Import!E21321","v":"Select"},{"$f":"Import!E21521","v":"Select"},{"$f":"Import!E21721","v":"Select"},{"$f":"Import!E21921","v":0},{"$f":"Import!E22121","v":0},{"$f":"Import!E22321","v":0},{"$f":"Import!E22521","v":0},{"$f":"Import!E22721","v":0}]
[74,{"$f":"Import!E20522","v":"Select"},{"$f":"Import!E20722","v":"Select"},{"$f":"Import!E20922","v":"Select"},{"$f":"Import!E21122","v":"Select"},{"$f":"Import!E21322","v":"Select"},{"$f":"Import!E21522","v":"Select"},{"$f":"Import!E21722","v":"Select"},{"$f":"Import!E21922","v":0},{"$f":"Import!E22122","v":0},{"$f":"Import!E22322","v":0},{"$f":"Import!E22522","v":0},{"$f":"Import!E22722","v":0}]
[75,{"$f":"Import!E20523","v":"Select"},{"$f":"Import!E20723","v":"Select"},{"$f":"Import!E20923","v":"Select"},{"$f":"Import!E21123","v":"Select"},{"$f":"Import!E21323","v":"Select"},{"$f":"Import!E21523","v":"Select"},{"$f":"Import!E21723","v":"Select"},{"$f":"Import!E21923","v":0},{"$f":"Import!E22123","v":0},{"$f":"Import!E22323","v":0},{"$f":"Import!E22523","v":0},{"$f":"Import!E22723","v":0}]
[76,{"$f":"Import!E20524","v":"Select"},{"$f":"Import!E20724","v":"Select"},{"$f":"Import!E20924","v":"Select"},{"$f":"Import!E21124","v":"Select"},{"$f":"Import!E21324","v":"Select"},{"$f":"Import!E21524","v":"Select"},{"$f":"Import!E21724","v":"Select"},{"$f":"Import!E21924","v":0},{"$f":"Import!E22124","v":0},{"$f":"Import!E22324","v":0},{"$f":"Import!E22524","v":0},{"$f":"Import!E22724","v":0}]
[77,{"$f":"Import!E20525","v":"Select"},{"$f":"Import!E20725","v":"Select"},{"$f":"Import!E20925","v":"Select"},{"$f":"Import!E21125","v":"Select"},{"$f":"Import!E21325","v":"Select"},{"$f":"Import!E21525","v":"Select"},{"$f":"Import!E21725","v":"Select"},{"$f":"Import!E21925","v":0},{"$f":"Import!E22125","v":0},{"$f":"Import!E22325","v":0},{"$f":"Import!E22525","v":0},{"$f":"Import!E22725","v":0}]
[78,{"$f":"Import!E20526","v":"Select"},{"$f":"Import!E20726","v":"Select"},{"$f":"Import!E20926","v":"Select"},{"$f":"Import!E21126","v":"Select"},{"$f":"Import!E21326","v":"Select"},{"$f":"Import!E21526","v":"Select"},{"$f":"Import!E21726","v":"Select"},{"$f":"Import!E21926","v":0},{"$f":"Import!E22126","v":0},{"$f":"Import!E22326","v":0},{"$f":"Import!E22526","v":0},{"$f":"Import!E22726","v":0}]
[79,{"$f":"Import!E20527","v":"Select"},{"$f":"Import!E20727","v":"Select"},{"$f":"Import!E20927","v":"Select"},{"$f":"Import!E21127","v":"Select"},{"$f":"Import!E21327","v":"Select"},{"$f":"Import!E21527","v":"Select"},{"$f":"Import!E21727","v":"Select"},{"$f":"Import!E21927","v":0},{"$f":"Import!E22127","v":0},{"$f":"Import!E22327","v":0},{"$f":"Import!E22527","v":0},{"$f":"Import!E22727","v":0}]
[80,{"$f":"Import!E20528","v":"Select"},{"$f":"Import!E20728","v":"Select"},{"$f":"Import!E20928","v":"Select"},{"$f":"Import!E21128","v":"Select"},{"$f":"Import!E21328","v":"Select"},{"$f":"Import!E21528","v":"Select"},{"$f":"Import!E21728","v":"Select"},{"$f":"Import!E21928","v":0},{"$f":"Import!E22128","v":0},{"$f":"Import!E22328","v":0},{"$f":"Import!E22528","v":0},{"$f":"Import!E22728","v":0}]
[81,{"$f":"Import!E20529","v":"Select"},{"$f":"Import!E20729","v":"Select"},{"$f":"Import!E20929","v":"Select"},{"$f":"Import!E21129","v":"Select"},{"$f":"Import!E21329","v":"Select"},{"$f":"Import!E21529","v":"Select"},{"$f":"Import!E21729","v":"Select"},{"$f":"Import!E21929","v":0},{"$f":"Import!E22129","v":0},{"$f":"Import!E22329","v":0},{"$f":"Import!E22529","v":0},{"$f":"Import!E22729","v":0}]
[82,{"$f":"Import!E20530","v":"Select"},{"$f":"Import!E20730","v":"Select"},{"$f":"Import!E20930","v":"Select"},{"$f":"Import!E21130","v":"Select"},{"$f":"Import!E21330","v":"Select"},{"$f":"Import!E21530","v":"Select"},{"$f":"Import!E21730","v":"Select"},{"$f":"Import!E21930","v":0},{"$f":"Import!E22130","v":0},{"$f":"Import!E22330","v":0},{"$f":"Import!E22530","v":0},{"$f":"Import!E22730","v":0}]
[83,{"$f":"Import!E20531","v":"Select"},{"$f":"Import!E20731","v":"Select"},{"$f":"Import!E20931","v":"Select"},{"$f":"Import!E21131","v":"Select"},{"$f":"Import!E21331","v":"Select"},{"$f":"Import!E21531","v":"Select"},{"$f":"Import!E21731","v":"Select"},{"$f":"Import!E21931","v":0},{"$f":"Import!E22131","v":0},{"$f":"Import!E22331","v":0},{"$f":"Import!E22531","v":0},{"$f":"Import!E22731","v":0}]
[84,{"$f":"Import!E20532","v":"Select"},{"$f":"Import!E20732","v":"Select"},{"$f":"Import!E20932","v":"Select"},{"$f":"Import!E21132","v":"Select"},{"$f":"Import!E21332","v":"Select"},{"$f":"Import!E21532","v":"Select"},{"$f":"Import!E21732","v":"Select"},{"$f":"Import!E21932","v":0},{"$f":"Import!E22132","v":0},{"$f":"Import!E22332","v":0},{"$f":"Import!E22532","v":0},{"$f":"Import!E22732","v":0}]
[85,{"$f":"Import!E20533","v":"Select"},{"$f":"Import!E20733","v":"Select"},{"$f":"Import!E20933","v":"Select"},{"$f":"Import!E21133","v":"Select"},{"$f":"Import!E21333","v":"Select"},{"$f":"Import!E21533","v":"Select"},{"$f":"Import!E21733","v":"Select"},{"$f":"Import!E21933","v":0},{"$f":"Import!E22133","v":0},{"$f":"Import!E22333","v":0},{"$f":"Import!E22533","v":0},{"$f":"Import!E22733","v":0}]
[86,{"$f":"Import!E20534","v":"Select"},{"$f":"Import!E20734","v":"Select"},{"$f":"Import!E20934","v":"Select"},{"$f":"Import!E21134","v":"Select"},{"$f":"Import!E21334","v":"Select"},{"$f":"Import!E21534","v":"Select"},{"$f":"Import!E21734","v":"Select"},{"$f":"Import!E21934","v":0},{"$f":"Import!E22134","v":0},{"$f":"Import!E22334","v":0},{"$f":"Import!E22534","v":0},{"$f":"Import!E22734","v":0}]
[87,{"$f":"Import!E20535","v":"Select"},{"$f":"Import!E20735","v":"Select"},{"$f":"Import!E20935","v":"Select"},{"$f":"Import!E21135","v":"Select"},{"$f":"Import!E21335","v":"Select"},{"$f":"Import!E21535","v":"Select"},{"$f":"Import!E21735","v":"Select"},{"$f":"Import!E21935","v":0},{"$f":"Import!E22135","v":0},{"$f":"Import!E22335","v":0},{"$f":"Import!E22535","v":0},{"$f":"Import!E22735","v":0}]
[88,{"$f":"Import!E20536","v":"Select"},{"$f":"Import!E20736","v":"Select"},{"$f":"Import!E20936","v":"Select"},{"$f":"Import!E21136","v":"Select"},{"$f":"Import!E21336","v":"Select"},{"$f":"Import!E21536","v":"Select"},{"$f":"Import!E21736","v":"Select"},{"$f":"Import!E21936","v":0},{"$f":"Import!E22136","v":0},{"$f":"Import!E22336","v":0},{"$f":"Import!E22536","v":0},{"$f":"Import!E22736","v":0}]
[89,{"$f":"Import!E20537","v":"Select"},{"$f":"Import!E20737","v":"Select"},{"$f":"Import!E20937","v":"Select"},{"$f":"Import!E21137","v":"Select"},{"$f":"Import!E21337","v":"Select"},{"$f":"Import!E21537","v":"Select"},{"$f":"Import!E21737","v":"Select"},{"$f":"Import!E21937","v":0},{"$f":"Import!E22137","v":0},{"$f":"Import!E22337","v":0},{"$f":"Import!E22537","v":0},{"$f":"Import!E22737","v":0}]
[90,{"$f":"Import!E20538","v":"Select"},{"$f":"Import!E20738","v":"Select"},{"$f":"Import!E20938","v":"Select"},{"$f":"Import!E21138","v":"Select"},{"$f":"Import!E21338","v":"Select"},{"$f":"Import!E21538","v":"Select"},{"$f":"Import!E21738","v":"Select"},{"$f":"Import!E21938","v":0},{"$f":"Import!E22138","v":0},{"$f":"Import!E22338","v":0},{"$f":"Import!E22538","v":0},{"$f":"Import!E22738","v":0}]
[91,{"$f":"Import!E20539","v":"Select"},{"$f":"Import!E20739","v":"Select"},{"$f":"Import!E20939","v":"Select"},{"$f":"Import!E21139","v":"Select"},{"$f":"Import!E21339","v":"Select"},{"$f":"Import!E21539","v":"Select"},{"$f":"Import!E21739","v":"Select"},{"$f":"Import!E21939","v":0},{"$f":"Import!E22139","v":0},{"$f":"Import!E22339","v":0},{"$f":"Import!E22539","v":0},{"$f":"Import!E22739","v":0}]
[92,{"$f":"Import!E20540","v":"Select"},{"$f":"Import!E20740","v":"Select"},{"$f":"Import!E20940","v":"Select"},{"$f":"Import!E21140","v":"Select"},{"$f":"Import!E21340","v":"Select"},{"$f":"Import!E21540","v":"Select"},{"$f":"Import!E21740","v":"Select"},{"$f":"Import!E21940","v":0},{"$f":"Import!E22140","v":0},{"$f":"Import!E22340","v":0},{"$f":"Import!E22540","v":0},{"$f":"Import!E22740","v":0}]
[93,{"$f":"Import!E20541","v":"Select"},{"$f":"Import!E20741","v":"Select"},{"$f":"Import!E20941","v":"Select"},{"$f":"Import!E21141","v":"Select"},{"$f":"Import!E21341","v":"Select"},{"$f":"Import!E21541","v":"Select"},{"$f":"Import!E21741","v":"Select"},{"$f":"Import!E21941","v":0},{"$f":"Import!E22141","v":0},{"$f":"Import!E22341","v":0},{"$f":"Import!E22541","v":0},{"$f":"Import!E22741","v":0}]
[94,{"$f":"Import!E20542","v":"Select"},{"$f":"Import!E20742","v":"Select"},{"$f":"Import!E20942","v":"Select"},{"$f":"Import!E21142","v":"Select"},{"$f":"Import!E21342","v":"Select"},{"$f":"Import!E21542","v":"Select"},{"$f":"Import!E21742","v":"Select"},{"$f":"Import!E21942","v":0},{"$f":"Import!E22142","v":0},{"$f":"Import!E22342","v":0},{"$f":"Import!E22542","v":0},{"$f":"Import!E22742","v":0}]
[95,{"$f":"Import!E20543","v":"Select"},{"$f":"Import!E20743","v":"Select"},{"$f":"Import!E20943","v":"Select"},{"$f":"Import!E21143","v":"Select"},{"$f":"Import!E21343","v":"Select"},{"$f":"Import!E21543","v":"Select"},{"$f":"Import!E21743","v":"Select"},{"$f":"Import!E21943","v":0},{"$f":"Import!E22143","v":0},{"$f":"Import!E22343","v":0},{"$f":"Import!E22543","v":0},{"$f":"Import!E22743","v":0}]
[96,{"$f":"Import!E20544","v":"Select"},{"$f":"Import!E20744","v":"Select"},{"$f":"Import!E20944","v":"Select"},{"$f":"Import!E21144","v":"Select"},{"$f":"Import!E21344","v":"Select"},{"$f":"Import!E21544","v":"Select"},{"$f":"Import!E21744","v":"Select"},{"$f":"Import!E21944","v":0},{"$f":"Import!E22144","v":0},{"$f":"Import!E22344","v":0},{"$f":"Import!E22544","v":0},{"$f":"Import!E22744","v":0}]
[97,{"$f":"Import!E20545","v":"Select"},{"$f":"Import!E20745","v":"Select"},{"$f":"Import!E20945","v":"Select"},{"$f":"Import!E21145","v":"Select"},{"$f":"Import!E21345","v":"Select"},{"$f":"Import!E21545","v":"Select"},{"$f":"Import!E21745","v":"Select"},{"$f":"Import!E21945","v":0},{"$f":"Import!E22145","v":0},{"$f":"Import!E22345","v":0},{"$f":"Import!E22545","v":0},{"$f":"Import!E22745","v":0}]
[98,{"$f":"Import!E20546","v":"Select"},{"$f":"Import!E20746","v":"Select"},{"$f":"Import!E20946","v":"Select"},{"$f":"Import!E21146","v":"Select"},{"$f":"Import!E21346","v":"Select"},{"$f":"Import!E21546","v":"Select"},{"$f":"Import!E21746","v":"Select"},{"$f":"Import!E21946","v":0},{"$f":"Import!E22146","v":0},{"$f":"Import!E22346","v":0},{"$f":"Import!E22546","v":0},{"$f":"Import!E22746","v":0}]
[99,{"$f":"Import!E20547","v":"Select"},{"$f":"Import!E20747","v":"Select"},{"$f":"Import!E20947","v":"Select"},{"$f":"Import!E21147","v":"Select"},{"$f":"Import!E21347","v":"Select"},{"$f":"Import!E21547","v":"Select"},{"$f":"Import!E21747","v":"Select"},{"$f":"Import!E21947","v":0},{"$f":"Import!E22147","v":0},{"$f":"Import!E22347","v":0},{"$f":"Import!E22547","v":0},{"$f":"Import!E22747","v":0}]
[100,{"$f":"Import!E20548","v":"Select"},{"$f":"Import!E20748","v":"Select"},{"$f":"Import!E20948","v":"Select"},{"$f":"Import!E21148","v":"Select"},{"$f":"Import!E21348","v":"Select"},{"$f":"Import!E21548","v":"Select"},{"$f":"Import!E21748","v":"Select"},{"$f":"Import!E21948","v":0},{"$f":"Import!E22148","v":0},{"$f":"Import!E22348","v":0},{"$f":"Import!E22548","v":0},{"$f":"Import!E22748","v":0}]
[101,{"$f":"Import!E20549","v":"Select"},{"$f":"Import!E20749","v":"Select"},{"$f":"Import!E20949","v":"Select"},{"$f":"Import!E21149","v":"Select"},{"$f":"Import!E21349","v":"Select"},{"$f":"Import!E21549","v":"Select"},{"$f":"Import!E21749","v":"Select"},{"$f":"Import!E21949","v":0},{"$f":"Import!E22149","v":0},{"$f":"Import!E22349","v":0},{"$f":"Import!E22549","v":0},{"$f":"Import!E22749","v":0}]
[102,{"$f":"Import!E20550","v":"Select"},{"$f":"Import!E20750","v":"Select"},{"$f":"Import!E20950","v":"Select"},{"$f":"Import!E21150","v":"Select"},{"$f":"Import!E21350","v":"Select"},{"$f":"Import!E21550","v":"Select"},{"$f":"Import!E21750","v":"Select"},{"$f":"Import!E21950","v":0},{"$f":"Import!E22150","v":0},{"$f":"Import!E22350","v":0},{"$f":"Import!E22550","v":0},{"$f":"Import!E22750","v":0}]
[103,{"$f":"Import!E20551","v":"Select"},{"$f":"Import!E20751","v":"Select"},{"$f":"Import!E20951","v":"Select"},{"$f":"Import!E21151","v":"Select"},{"$f":"Import!E21351","v":"Select"},{"$f":"Import!E21551","v":"Select"},{"$f":"Import!E21751","v":"Select"},{"$f":"Import!E21951","v":0},{"$f":"Import!E22151","v":0},{"$f":"Import!E22351","v":0},{"$f":"Import!E22551","v":0},{"$f":"Import!E22751","v":0}]
[104,{"$f":"Import!E20552","v":"Select"},{"$f":"Import!E20752","v":"Select"},{"$f":"Import!E20952","v":"Select"},{"$f":"Import!E21152","v":"Select"},{"$f":"Import!E21352","v":"Select"},{"$f":"Import!E21552","v":"Select"},{"$f":"Import!E21752","v":"Select"},{"$f":"Import!E21952","v":0},{"$f":"Import!E22152","v":0},{"$f":"Import!E22352","v":0},{"$f":"Import!E22552","v":0},{"$f":"Import!E22752","v":0}]
[105,{"$f":"Import!E20553","v":"Select"},{"$f":"Import!E20753","v":"Select"},{"$f":"Import!E20953","v":"Select"},{"$f":"Import!E21153","v":"Select"},{"$f":"Import!E21353","v":"Select"},{"$f":"Import!E21553","v":"Select"},{"$f":"Import!E21753","v":"Select"},{"$f":"Import!E21953","v":0},{"$f":"Import!E22153","v":0},{"$f":"Import!E22353","v":0},{"$f":"Import!E22553","v":0},{"$f":"Import!E22753","v":0}]
[106,{"$f":"Import!E20554","v":"Select"},{"$f":"Import!E20754","v":"Select"},{"$f":"Import!E20954","v":"Select"},{"$f":"Import!E21154","v":"Select"},{"$f":"Import!E21354","v":"Select"},{"$f":"Import!E21554","v":"Select"},{"$f":"Import!E21754","v":"Select"},{"$f":"Import!E21954","v":0},{"$f":"Import!E22154","v":0},{"$f":"Import!E22354","v":0},{"$f":"Import!E22554","v":0},{"$f":"Import!E22754","v":0}]
[107,{"$f":"Import!E20555","v":"Select"},{"$f":"Import!E20755","v":"Select"},{"$f":"Import!E20955","v":"Select"},{"$f":"Import!E21155","v":"Select"},{"$f":"Import!E21355","v":"Select"},{"$f":"Import!E21555","v":"Select"},{"$f":"Import!E21755","v":"Select"},{"$f":"Import!E21955","v":0},{"$f":"Import!E22155","v":0},{"$f":"Import!E22355","v":0},{"$f":"Import!E22555","v":0},{"$f":"Import!E22755","v":0}]
[108,{"$f":"Import!E20556","v":"Select"},{"$f":"Import!E20756","v":"Select"},{"$f":"Import!E20956","v":"Select"},{"$f":"Import!E21156","v":"Select"},{"$f":"Import!E21356","v":"Select"},{"$f":"Import!E21556","v":"Select"},{"$f":"Import!E21756","v":"Select"},{"$f":"Import!E21956","v":0},{"$f":"Import!E22156","v":0},{"$f":"Import!E22356","v":0},{"$f":"Import!E22556","v":0},{"$f":"Import!E22756","v":0}]
[109,{"$f":"Import!E20557","v":"Select"},{"$f":"Import!E20757","v":"Select"},{"$f":"Import!E20957","v":"Select"},{"$f":"Import!E21157","v":"Select"},{"$f":"Import!E21357","v":"Select"},{"$f":"Import!E21557","v":"Select"},{"$f":"Import!E21757","v":"Select"},{"$f":"Import!E21957","v":0},{"$f":"Import!E22157","v":0},{"$f":"Import!E22357","v":0},{"$f":"Import!E22557","v":0},{"$f":"Import!E22757","v":0}]
[110,{"$f":"Import!E20558","v":"Select"},{"$f":"Import!E20758","v":"Select"},{"$f":"Import!E20958","v":"Select"},{"$f":"Import!E21158","v":"Select"},{"$f":"Import!E21358","v":"Select"},{"$f":"Import!E21558","v":"Select"},{"$f":"Import!E21758","v":"Select"},{"$f":"Import!E21958","v":0},{"$f":"Import!E22158","v":0},{"$f":"Import!E22358","v":0},{"$f":"Import!E22558","v":0},{"$f":"Import!E22758","v":0}]
[111,{"$f":"Import!E20559","v":"Select"},{"$f":"Import!E20759","v":"Select"},{"$f":"Import!E20959","v":"Select"},{"$f":"Import!E21159","v":"Select"},{"$f":"Import!E21359","v":"Select"},{"$f":"Import!E21559","v":"Select"},{"$f":"Import!E21759","v":"Select"},{"$f":"Import!E21959","v":0},{"$f":"Import!E22159","v":0},{"$f":"Import!E22359","v":0},{"$f":"Import!E22559","v":0},{"$f":"Import!E22759","v":0}]
[112,{"$f":"Import!E20560","v":"Select"},{"$f":"Import!E20760","v":"Select"},{"$f":"Import!E20960","v":"Select"},{"$f":"Import!E21160","v":"Select"},{"$f":"Import!E21360","v":"Select"},{"$f":"Import!E21560","v":"Select"},{"$f":"Import!E21760","v":"Select"},{"$f":"Import!E21960","v":0},{"$f":"Import!E22160","v":0},{"$f":"Import!E22360","v":0},{"$f":"Import!E22560","v":0},{"$f":"Import!E22760","v":0}]
[113,{"$f":"Import!E20561","v":"Select"},{"$f":"Import!E20761","v":"Select"},{"$f":"Import!E20961","v":"Select"},{"$f":"Import!E21161","v":"Select"},{"$f":"Import!E21361","v":"Select"},{"$f":"Import!E21561","v":"Select"},{"$f":"Import!E21761","v":"Select"},{"$f":"Import!E21961","v":0},{"$f":"Import!E22161","v":0},{"$f":"Import!E22361","v":0},{"$f":"Import!E22561","v":0},{"$f":"Import!E22761","v":0}]
[114,{"$f":"Import!E20562","v":"Select"},{"$f":"Import!E20762","v":"Select"},{"$f":"Import!E20962","v":"Select"},{"$f":"Import!E21162","v":"Select"},{"$f":"Import!E21362","v":"Select"},{"$f":"Import!E21562","v":"Select"},{"$f":"Import!E21762","v":"Select"},{"$f":"Import!E21962","v":0},{"$f":"Import!E22162","v":0},{"$f":"Import!E22362","v":0},{"$f":"Import!E22562","v":0},{"$f":"Import!E22762","v":0}]
[115,{"$f":"Import!E20563","v":"Select"},{"$f":"Import!E20763","v":"Select"},{"$f":"Import!E20963","v":"Select"},{"$f":"Import!E21163","v":"Select"},{"$f":"Import!E21363","v":"Select"},{"$f":"Import!E21563","v":"Select"},{"$f":"Import!E21763","v":"Select"},{"$f":"Import!E21963","v":0},{"$f":"Import!E22163","v":0},{"$f":"Import!E22363","v":0},{"$f":"Import!E22563","v":0},{"$f":"Import!E22763","v":0}]
[116,{"$f":"Import!E20564","v":"Select"},{"$f":"Import!E20764","v":"Select"},{"$f":"Import!E20964","v":"Select"},{"$f":"Import!E21164","v":"Select"},{"$f":"Import!E21364","v":"Select"},{"$f":"Import!E21564","v":"Select"},{"$f":"Import!E21764","v":"Select"},{"$f":"Import!E21964","v":0},{"$f":"Import!E22164","v":0},{"$f":"Import!E22364","v":0},{"$f":"Import!E22564","v":0},{"$f":"Import!E22764","v":0}]
[117,{"$f":"Import!E20565","v":"Select"},{"$f":"Import!E20765","v":"Select"},{"$f":"Import!E20965","v":"Select"},{"$f":"Import!E21165","v":"Select"},{"$f":"Import!E21365","v":"Select"},{"$f":"Import!E21565","v":"Select"},{"$f":"Import!E21765","v":"Select"},{"$f":"Import!E21965","v":0},{"$f":"Import!E22165","v":0},{"$f":"Import!E22365","v":0},{"$f":"Import!E22565","v":0},{"$f":"Import!E22765","v":0}]
[118,{"$f":"Import!E20566","v":"Select"},{"$f":"Import!E20766","v":"Select"},{"$f":"Import!E20966","v":"Select"},{"$f":"Import!E21166","v":"Select"},{"$f":"Import!E21366","v":"Select"},{"$f":"Import!E21566","v":"Select"},{"$f":"Import!E21766","v":"Select"},{"$f":"Import!E21966","v":0},{"$f":"Import!E22166","v":0},{"$f":"Import!E22366","v":0},{"$f":"Import!E22566","v":0},{"$f":"Import!E22766","v":0}]
[119,{"$f":"Import!E20567","v":"Select"},{"$f":"Import!E20767","v":"Select"},{"$f":"Import!E20967","v":"Select"},{"$f":"Import!E21167","v":"Select"},{"$f":"Import!E21367","v":"Select"},{"$f":"Import!E21567","v":"Select"},{"$f":"Import!E21767","v":"Select"},{"$f":"Import!E21967","v":0},{"$f":"Import!E22167","v":0},{"$f":"Import!E22367","v":0},{"$f":"Import!E22567","v":0},{"$f":"Import!E22767","v":0}]
[120,{"$f":"Import!E20568","v":"Select"},{"$f":"Import!E20768","v":"Select"},{"$f":"Import!E20968","v":"Select"},{"$f":"Import!E21168","v":"Select"},{"$f":"Import!E21368","v":"Select"},{"$f":"Import!E21568","v":"Select"},{"$f":"Import!E21768","v":"Select"},{"$f":"Import!E21968","v":0},{"$f":"Import!E22168","v":0},{"$f":"Import!E22368","v":0},{"$f":"Import!E22568","v":0},{"$f":"Import!E22768","v":0}]
[121,{"$f":"Import!E20569","v":"Select"},{"$f":"Import!E20769","v":"Select"},{"$f":"Import!E20969","v":"Select"},{"$f":"Import!E21169","v":"Select"},{"$f":"Import!E21369","v":"Select"},{"$f":"Import!E21569","v":"Select"},{"$f":"Import!E21769","v":"Select"},{"$f":"Import!E21969","v":0},{"$f":"Import!E22169","v":0},{"$f":"Import!E22369","v":0},{"$f":"Import!E22569","v":0},{"$f":"Import!E22769","v":0}]
[122,{"$f":"Import!E20570","v":"Select"},{"$f":"Import!E20770","v":"Select"},{"$f":"Import!E20970","v":"Select"},{"$f":"Import!E21170","v":"Select"},{"$f":"Import!E21370","v":"Select"},{"$f":"Import!E21570","v":"Select"},{"$f":"Import!E21770","v":"Select"},{"$f":"Import!E21970","v":0},{"$f":"Import!E22170","v":0},{"$f":"Import!E22370","v":0},{"$f":"Import!E22570","v":0},{"$f":"Import!E22770","v":0}]
[123,{"$f":"Import!E20571","v":"Select"},{"$f":"Import!E20771","v":"Select"},{"$f":"Import!E20971","v":"Select"},{"$f":"Import!E21171","v":"Select"},{"$f":"Import!E21371","v":"Select"},{"$f":"Import!E21571","v":"Select"},{"$f":"Import!E21771","v":"Select"},{"$f":"Import!E21971","v":0},{"$f":"Import!E22171","v":0},{"$f":"Import!E22371","v":0},{"$f":"Import!E22571","v":0},{"$f":"Import!E22771","v":0}]
[124,{"$f":"Import!E20572","v":"Select"},{"$f":"Import!E20772","v":"Select"},{"$f":"Import!E20972","v":"Select"},{"$f":"Import!E21172","v":"Select"},{"$f":"Import!E21372","v":"Select"},{"$f":"Import!E21572","v":"Select"},{"$f":"Import!E21772","v":"Select"},{"$f":"Import!E21972","v":0},{"$f":"Import!E22172","v":0},{"$f":"Import!E22372","v":0},{"$f":"Import!E22572","v":0},{"$f":"Import!E22772","v":0}]
[125,{"$f":"Import!E20573","v":"Select"},{"$f":"Import!E20773","v":"Select"},{"$f":"Import!E20973","v":"Select"},{"$f":"Import!E21173","v":"Select"},{"$f":"Import!E21373","v":"Select"},{"$f":"Import!E21573","v":"Select"},{"$f":"Import!E21773","v":"Select"},{"$f":"Import!E21973","v":0},{"$f":"Import!E22173","v":0},{"$f":"Import!E22373","v":0},{"$f":"Import!E22573","v":0},{"$f":"Import!E22773","v":0}]
[126,{"$f":"Import!E20574","v":"Select"},{"$f":"Import!E20774","v":"Select"},{"$f":"Import!E20974","v":"Select"},{"$f":"Import!E21174","v":"Select"},{"$f":"Import!E21374","v":"Select"},{"$f":"Import!E21574","v":"Select"},{"$f":"Import!E21774","v":"Select"},{"$f":"Import!E21974","v":0},{"$f":"Import!E22174","v":0},{"$f":"Import!E22374","v":0},{"$f":"Import!E22574","v":0},{"$f":"Import!E22774","v":0}]
[127,{"$f":"Import!E20575","v":"Select"},{"$f":"Import!E20775","v":"Select"},{"$f":"Import!E20975","v":"Select"},{"$f":"Import!E21175","v":"Select"},{"$f":"Import!E21375","v":"Select"},{"$f":"Import!E21575","v":"Select"},{"$f":"Import!E21775","v":"Select"},{"$f":"Import!E21975","v":0},{"$f":"Import!E22175","v":0},{"$f":"Import!E22375","v":0},{"$f":"Import!E22575","v":0},{"$f":"Import!E22775","v":0}]
[128,{"$f":"Import!E20576","v":"Select"},{"$f":"Import!E20776","v":"Select"},{"$f":"Import!E20976","v":"Select"},{"$f":"Import!E21176","v":"Select"},{"$f":"Import!E21376","v":"Select"},{"$f":"Import!E21576","v":"Select"},{"$f":"Import!E21776","v":"Select"},{"$f":"Import!E21976","v":0},{"$f":"Import!E22176","v":0},{"$f":"Import!E22376","v":0},{"$f":"Import!E22576","v":0},{"$f":"Import!E22776","v":0}]
[129,{"$f":"Import!E20577","v":"Select"},{"$f":"Import!E20777","v":"Select"},{"$f":"Import!E20977","v":"Select"},{"$f":"Import!E21177","v":"Select"},{"$f":"Import!E21377","v":"Select"},{"$f":"Import!E21577","v":"Select"},{"$f":"Import!E21777","v":"Select"},{"$f":"Import!E21977","v":0},{"$f":"Import!E22177","v":0},{"$f":"Import!E22377","v":0},{"$f":"Import!E22577","v":0},{"$f":"Import!E22777","v":0}]
[130,{"$f":"Import!E20578","v":"Select"},{"$f":"Import!E20778","v":"Select"},{"$f":"Import!E20978","v":"Select"},{"$f":"Import!E21178","v":"Select"},{"$f":"Import!E21378","v":"Select"},{"$f":"Import!E21578","v":"Select"},{"$f":"Import!E21778","v":"Select"},{"$f":"Import!E21978","v":0},{"$f":"Import!E22178","v":0},{"$f":"Import!E22378","v":0},{"$f":"Import!E22578","v":0},{"$f":"Import!E22778","v":0}]
[{"$f":"A1689+1","v":131},{"$f":"Import!E20579","v":"Select"},{"$f":"Import!E20779","v":"Select"},{"$f":"Import!E20979","v":"Select"},{"$f":"Import!E21179","v":"Select"},{"$f":"Import!E21379","v":"Select"},{"$f":"Import!E21579","v":"Select"},{"$f":"Import!E21779","v":"Select"},{"$f":"Import!E21979","v":0},{"$f":"Import!E22179","v":0},{"$f":"Import!E22379","v":0},{"$f":"Import!E22579","v":0},{"$f":"Import!E22779","v":0}]
[132,{"$f":"Import!E20580","v":"Select"},{"$f":"Import!E20780","v":"Select"},{"$f":"Import!E20980","v":"Select"},{"$f":"Import!E21180","v":"Select"},{"$f":"Import!E21380","v":"Select"},{"$f":"Import!E21580","v":"Select"},{"$f":"Import!E21780","v":"Select"},{"$f":"Import!E21980","v":0},{"$f":"Import!E22180","v":0},{"$f":"Import!E22380","v":0},{"$f":"Import!E22580","v":0},{"$f":"Import!E22780","v":0}]
[133,{"$f":"Import!E20581","v":"Select"},{"$f":"Import!E20781","v":"Select"},{"$f":"Import!E20981","v":"Select"},{"$f":"Import!E21181","v":"Select"},{"$f":"Import!E21381","v":"Select"},{"$f":"Import!E21581","v":"Select"},{"$f":"Import!E21781","v":"Select"},{"$f":"Import!E21981","v":0},{"$f":"Import!E22181","v":0},{"$f":"Import!E22381","v":0},{"$f":"Import!E22581","v":0},{"$f":"Import!E22781","v":0}]
[134,{"$f":"Import!E20582","v":"Select"},{"$f":"Import!E20782","v":"Select"},{"$f":"Import!E20982","v":"Select"},{"$f":"Import!E21182","v":"Select"},{"$f":"Import!E21382","v":"Select"},{"$f":"Import!E21582","v":"Select"},{"$f":"Import!E21782","v":"Select"},{"$f":"Import!E21982","v":0},{"$f":"Import!E22182","v":0},{"$f":"Import!E22382","v":0},{"$f":"Import!E22582","v":0},{"$f":"Import!E22782","v":0}]
[135,{"$f":"Import!E20583","v":"Select"},{"$f":"Import!E20783","v":"Select"},{"$f":"Import!E20983","v":"Select"},{"$f":"Import!E21183","v":"Select"},{"$f":"Import!E21383","v":"Select"},{"$f":"Import!E21583","v":"Select"},{"$f":"Import!E21783","v":"Select"},{"$f":"Import!E21983","v":0},{"$f":"Import!E22183","v":0},{"$f":"Import!E22383","v":0},{"$f":"Import!E22583","v":0},{"$f":"Import!E22783","v":0}]
[136,{"$f":"Import!E20584","v":"Select"},{"$f":"Import!E20784","v":"Select"},{"$f":"Import!E20984","v":"Select"},{"$f":"Import!E21184","v":"Select"},{"$f":"Import!E21384","v":"Select"},{"$f":"Import!E21584","v":"Select"},{"$f":"Import!E21784","v":"Select"},{"$f":"Import!E21984","v":0},{"$f":"Import!E22184","v":0},{"$f":"Import!E22384","v":0},{"$f":"Import!E22584","v":0},{"$f":"Import!E22784","v":0}]
[137,{"$f":"Import!E20585","v":"Select"},{"$f":"Import!E20785","v":"Select"},{"$f":"Import!E20985","v":"Select"},{"$f":"Import!E21185","v":"Select"},{"$f":"Import!E21385","v":"Select"},{"$f":"Import!E21585","v":"Select"},{"$f":"Import!E21785","v":"Select"},{"$f":"Import!E21985","v":0},{"$f":"Import!E22185","v":0},{"$f":"Import!E22385","v":0},{"$f":"Import!E22585","v":0},{"$f":"Import!E22785","v":0}]
[138,{"$f":"Import!E20586","v":"Select"},{"$f":"Import!E20786","v":"Select"},{"$f":"Import!E20986","v":"Select"},{"$f":"Import!E21186","v":"Select"},{"$f":"Import!E21386","v":"Select"},{"$f":"Import!E21586","v":"Select"},{"$f":"Import!E21786","v":"Select"},{"$f":"Import!E21986","v":0},{"$f":"Import!E22186","v":0},{"$f":"Import!E22386","v":0},{"$f":"Import!E22586","v":0},{"$f":"Import!E22786","v":0}]
[139,{"$f":"Import!E20587","v":"Select"},{"$f":"Import!E20787","v":"Select"},{"$f":"Import!E20987","v":"Select"},{"$f":"Import!E21187","v":"Select"},{"$f":"Import!E21387","v":"Select"},{"$f":"Import!E21587","v":"Select"},{"$f":"Import!E21787","v":"Select"},{"$f":"Import!E21987","v":0},{"$f":"Import!E22187","v":0},{"$f":"Import!E22387","v":0},{"$f":"Import!E22587","v":0},{"$f":"Import!E22787","v":0}]
[140,{"$f":"Import!E20588","v":"Select"},{"$f":"Import!E20788","v":"Select"},{"$f":"Import!E20988","v":"Select"},{"$f":"Import!E21188","v":"Select"},{"$f":"Import!E21388","v":"Select"},{"$f":"Import!E21588","v":"Select"},{"$f":"Import!E21788","v":"Select"},{"$f":"Import!E21988","v":0},{"$f":"Import!E22188","v":0},{"$f":"Import!E22388","v":0},{"$f":"Import!E22588","v":0},{"$f":"Import!E22788","v":0}]
[141,{"$f":"Import!E20589","v":"Select"},{"$f":"Import!E20789","v":"Select"},{"$f":"Import!E20989","v":"Select"},{"$f":"Import!E21189","v":"Select"},{"$f":"Import!E21389","v":"Select"},{"$f":"Import!E21589","v":"Select"},{"$f":"Import!E21789","v":"Select"},{"$f":"Import!E21989","v":0},{"$f":"Import!E22189","v":0},{"$f":"Import!E22389","v":0},{"$f":"Import!E22589","v":0},{"$f":"Import!E22789","v":0}]
[142,{"$f":"Import!E20590","v":"Select"},{"$f":"Import!E20790","v":"Select"},{"$f":"Import!E20990","v":"Select"},{"$f":"Import!E21190","v":"Select"},{"$f":"Import!E21390","v":"Select"},{"$f":"Import!E21590","v":"Select"},{"$f":"Import!E21790","v":"Select"},{"$f":"Import!E21990","v":0},{"$f":"Import!E22190","v":0},{"$f":"Import!E22390","v":0},{"$f":"Import!E22590","v":0},{"$f":"Import!E22790","v":0}]
[143,{"$f":"Import!E20591","v":"Select"},{"$f":"Import!E20791","v":"Select"},{"$f":"Import!E20991","v":"Select"},{"$f":"Import!E21191","v":"Select"},{"$f":"Import!E21391","v":"Select"},{"$f":"Import!E21591","v":"Select"},{"$f":"Import!E21791","v":"Select"},{"$f":"Import!E21991","v":0},{"$f":"Import!E22191","v":0},{"$f":"Import!E22391","v":0},{"$f":"Import!E22591","v":0},{"$f":"Import!E22791","v":0}]
[144,{"$f":"Import!E20592","v":"Select"},{"$f":"Import!E20792","v":"Select"},{"$f":"Import!E20992","v":"Select"},{"$f":"Import!E21192","v":"Select"},{"$f":"Import!E21392","v":"Select"},{"$f":"Import!E21592","v":"Select"},{"$f":"Import!E21792","v":"Select"},{"$f":"Import!E21992","v":0},{"$f":"Import!E22192","v":0},{"$f":"Import!E22392","v":0},{"$f":"Import!E22592","v":0},{"$f":"Import!E22792","v":0}]
[145,{"$f":"Import!E20593","v":"Select"},{"$f":"Import!E20793","v":"Select"},{"$f":"Import!E20993","v":"Select"},{"$f":"Import!E21193","v":"Select"},{"$f":"Import!E21393","v":"Select"},{"$f":"Import!E21593","v":"Select"},{"$f":"Import!E21793","v":"Select"},{"$f":"Import!E21993","v":0},{"$f":"Import!E22193","v":0},{"$f":"Import!E22393","v":0},{"$f":"Import!E22593","v":0},{"$f":"Import!E22793","v":0}]
[146,{"$f":"Import!E20594","v":"Select"},{"$f":"Import!E20794","v":"Select"},{"$f":"Import!E20994","v":"Select"},{"$f":"Import!E21194","v":"Select"},{"$f":"Import!E21394","v":"Select"},{"$f":"Import!E21594","v":"Select"},{"$f":"Import!E21794","v":"Select"},{"$f":"Import!E21994","v":0},{"$f":"Import!E22194","v":0},{"$f":"Import!E22394","v":0},{"$f":"Import!E22594","v":0},{"$f":"Import!E22794","v":0}]
[147,{"$f":"Import!E20595","v":"Select"},{"$f":"Import!E20795","v":"Select"},{"$f":"Import!E20995","v":"Select"},{"$f":"Import!E21195","v":"Select"},{"$f":"Import!E21395","v":"Select"},{"$f":"Import!E21595","v":"Select"},{"$f":"Import!E21795","v":"Select"},{"$f":"Import!E21995","v":0},{"$f":"Import!E22195","v":0},{"$f":"Import!E22395","v":0},{"$f":"Import!E22595","v":0},{"$f":"Import!E22795","v":0}]
[148,{"$f":"Import!E20596","v":"Select"},{"$f":"Import!E20796","v":"Select"},{"$f":"Import!E20996","v":"Select"},{"$f":"Import!E21196","v":"Select"},{"$f":"Import!E21396","v":"Select"},{"$f":"Import!E21596","v":"Select"},{"$f":"Import!E21796","v":"Select"},{"$f":"Import!E21996","v":0},{"$f":"Import!E22196","v":0},{"$f":"Import!E22396","v":0},{"$f":"Import!E22596","v":0},{"$f":"Import!E22796","v":0}]
[149,{"$f":"Import!E20597","v":"Select"},{"$f":"Import!E20797","v":"Select"},{"$f":"Import!E20997","v":"Select"},{"$f":"Import!E21197","v":"Select"},{"$f":"Import!E21397","v":"Select"},{"$f":"Import!E21597","v":"Select"},{"$f":"Import!E21797","v":"Select"},{"$f":"Import!E21997","v":0},{"$f":"Import!E22197","v":0},{"$f":"Import!E22397","v":0},{"$f":"Import!E22597","v":0},{"$f":"Import!E22797","v":0}]
[150,{"$f":"Import!E20598","v":"Select"},{"$f":"Import!E20798","v":"Select"},{"$f":"Import!E20998","v":"Select"},{"$f":"Import!E21198","v":"Select"},{"$f":"Import!E21398","v":"Select"},{"$f":"Import!E21598","v":"Select"},{"$f":"Import!E21798","v":"Select"},{"$f":"Import!E21998","v":0},{"$f":"Import!E22198","v":0},{"$f":"Import!E22398","v":0},{"$f":"Import!E22598","v":0},{"$f":"Import!E22798","v":0}]
[151,{"$f":"Import!E20599","v":"Select"},{"$f":"Import!E20799","v":"Select"},{"$f":"Import!E20999","v":"Select"},{"$f":"Import!E21199","v":"Select"},{"$f":"Import!E21399","v":"Select"},{"$f":"Import!E21599","v":"Select"},{"$f":"Import!E21799","v":"Select"},{"$f":"Import!E21999","v":0},{"$f":"Import!E22199","v":0},{"$f":"Import!E22399","v":0},{"$f":"Import!E22599","v":0},{"$f":"Import!E22799","v":0}]
[152,{"$f":"Import!E20600","v":"Select"},{"$f":"Import!E20800","v":"Select"},{"$f":"Import!E21000","v":"Select"},{"$f":"Import!E21200","v":"Select"},{"$f":"Import!E21400","v":"Select"},{"$f":"Import!E21600","v":"Select"},{"$f":"Import!E21800","v":"Select"},{"$f":"Import!E22000","v":0},{"$f":"Import!E22200","v":0},{"$f":"Import!E22400","v":0},{"$f":"Import!E22600","v":0},{"$f":"Import!E22800","v":0}]
[153,{"$f":"Import!E20601","v":"Select"},{"$f":"Import!E20801","v":"Select"},{"$f":"Import!E21001","v":"Select"},{"$f":"Import!E21201","v":"Select"},{"$f":"Import!E21401","v":"Select"},{"$f":"Import!E21601","v":"Select"},{"$f":"Import!E21801","v":"Select"},{"$f":"Import!E22001","v":0},{"$f":"Import!E22201","v":0},{"$f":"Import!E22401","v":0},{"$f":"Import!E22601","v":0},{"$f":"Import!E22801","v":0}]
[154,{"$f":"Import!E20602","v":"Select"},{"$f":"Import!E20802","v":"Select"},{"$f":"Import!E21002","v":"Select"},{"$f":"Import!E21202","v":"Select"},{"$f":"Import!E21402","v":"Select"},{"$f":"Import!E21602","v":"Select"},{"$f":"Import!E21802","v":"Select"},{"$f":"Import!E22002","v":0},{"$f":"Import!E22202","v":0},{"$f":"Import!E22402","v":0},{"$f":"Import!E22602","v":0},{"$f":"Import!E22802","v":0}]
[155,{"$f":"Import!E20603","v":"Select"},{"$f":"Import!E20803","v":"Select"},{"$f":"Import!E21003","v":"Select"},{"$f":"Import!E21203","v":"Select"},{"$f":"Import!E21403","v":"Select"},{"$f":"Import!E21603","v":"Select"},{"$f":"Import!E21803","v":"Select"},{"$f":"Import!E22003","v":0},{"$f":"Import!E22203","v":0},{"$f":"Import!E22403","v":0},{"$f":"Import!E22603","v":0},{"$f":"Import!E22803","v":0}]
[156,{"$f":"Import!E20604","v":"Select"},{"$f":"Import!E20804","v":"Select"},{"$f":"Import!E21004","v":"Select"},{"$f":"Import!E21204","v":"Select"},{"$f":"Import!E21404","v":"Select"},{"$f":"Import!E21604","v":"Select"},{"$f":"Import!E21804","v":"Select"},{"$f":"Import!E22004","v":0},{"$f":"Import!E22204","v":0},{"$f":"Import!E22404","v":0},{"$f":"Import!E22604","v":0},{"$f":"Import!E22804","v":0}]
[157,{"$f":"Import!E20605","v":"Select"},{"$f":"Import!E20805","v":"Select"},{"$f":"Import!E21005","v":"Select"},{"$f":"Import!E21205","v":"Select"},{"$f":"Import!E21405","v":"Select"},{"$f":"Import!E21605","v":"Select"},{"$f":"Import!E21805","v":"Select"},{"$f":"Import!E22005","v":0},{"$f":"Import!E22205","v":0},{"$f":"Import!E22405","v":0},{"$f":"Import!E22605","v":0},{"$f":"Import!E22805","v":0}]
[158,{"$f":"Import!E20606","v":"Select"},{"$f":"Import!E20806","v":"Select"},{"$f":"Import!E21006","v":"Select"},{"$f":"Import!E21206","v":"Select"},{"$f":"Import!E21406","v":"Select"},{"$f":"Import!E21606","v":"Select"},{"$f":"Import!E21806","v":"Select"},{"$f":"Import!E22006","v":0},{"$f":"Import!E22206","v":0},{"$f":"Import!E22406","v":0},{"$f":"Import!E22606","v":0},{"$f":"Import!E22806","v":0}]
[159,{"$f":"Import!E20607","v":"Select"},{"$f":"Import!E20807","v":"Select"},{"$f":"Import!E21007","v":"Select"},{"$f":"Import!E21207","v":"Select"},{"$f":"Import!E21407","v":"Select"},{"$f":"Import!E21607","v":"Select"},{"$f":"Import!E21807","v":"Select"},{"$f":"Import!E22007","v":0},{"$f":"Import!E22207","v":0},{"$f":"Import!E22407","v":0},{"$f":"Import!E22607","v":0},{"$f":"Import!E22807","v":0}]
[160,{"$f":"Import!E20608","v":"Select"},{"$f":"Import!E20808","v":"Select"},{"$f":"Import!E21008","v":"Select"},{"$f":"Import!E21208","v":"Select"},{"$f":"Import!E21408","v":"Select"},{"$f":"Import!E21608","v":"Select"},{"$f":"Import!E21808","v":"Select"},{"$f":"Import!E22008","v":0},{"$f":"Import!E22208","v":0},{"$f":"Import!E22408","v":0},{"$f":"Import!E22608","v":0},{"$f":"Import!E22808","v":0}]
[161,{"$f":"Import!E20609","v":"Select"},{"$f":"Import!E20809","v":"Select"},{"$f":"Import!E21009","v":"Select"},{"$f":"Import!E21209","v":"Select"},{"$f":"Import!E21409","v":"Select"},{"$f":"Import!E21609","v":"Select"},{"$f":"Import!E21809","v":"Select"},{"$f":"Import!E22009","v":0},{"$f":"Import!E22209","v":0},{"$f":"Import!E22409","v":0},{"$f":"Import!E22609","v":0},{"$f":"Import!E22809","v":0}]
[162,{"$f":"Import!E20610","v":"Select"},{"$f":"Import!E20810","v":"Select"},{"$f":"Import!E21010","v":"Select"},{"$f":"Import!E21210","v":"Select"},{"$f":"Import!E21410","v":"Select"},{"$f":"Import!E21610","v":"Select"},{"$f":"Import!E21810","v":"Select"},{"$f":"Import!E22010","v":0},{"$f":"Import!E22210","v":0},{"$f":"Import!E22410","v":0},{"$f":"Import!E22610","v":0},{"$f":"Import!E22810","v":0}]
[163,{"$f":"Import!E20611","v":"Select"},{"$f":"Import!E20811","v":"Select"},{"$f":"Import!E21011","v":"Select"},{"$f":"Import!E21211","v":"Select"},{"$f":"Import!E21411","v":"Select"},{"$f":"Import!E21611","v":"Select"},{"$f":"Import!E21811","v":"Select"},{"$f":"Import!E22011","v":0},{"$f":"Import!E22211","v":0},{"$f":"Import!E22411","v":0},{"$f":"Import!E22611","v":0},{"$f":"Import!E22811","v":0}]
[164,{"$f":"Import!E20612","v":"Select"},{"$f":"Import!E20812","v":"Select"},{"$f":"Import!E21012","v":"Select"},{"$f":"Import!E21212","v":"Select"},{"$f":"Import!E21412","v":"Select"},{"$f":"Import!E21612","v":"Select"},{"$f":"Import!E21812","v":"Select"},{"$f":"Import!E22012","v":0},{"$f":"Import!E22212","v":0},{"$f":"Import!E22412","v":0},{"$f":"Import!E22612","v":0},{"$f":"Import!E22812","v":0}]
[165,{"$f":"Import!E20613","v":"Select"},{"$f":"Import!E20813","v":"Select"},{"$f":"Import!E21013","v":"Select"},{"$f":"Import!E21213","v":"Select"},{"$f":"Import!E21413","v":"Select"},{"$f":"Import!E21613","v":"Select"},{"$f":"Import!E21813","v":"Select"},{"$f":"Import!E22013","v":0},{"$f":"Import!E22213","v":0},{"$f":"Import!E22413","v":0},{"$f":"Import!E22613","v":0},{"$f":"Import!E22813","v":0}]
[166,{"$f":"Import!E20614","v":"Select"},{"$f":"Import!E20814","v":"Select"},{"$f":"Import!E21014","v":"Select"},{"$f":"Import!E21214","v":"Select"},{"$f":"Import!E21414","v":"Select"},{"$f":"Import!E21614","v":"Select"},{"$f":"Import!E21814","v":"Select"},{"$f":"Import!E22014","v":0},{"$f":"Import!E22214","v":0},{"$f":"Import!E22414","v":0},{"$f":"Import!E22614","v":0},{"$f":"Import!E22814","v":0}]
[167,{"$f":"Import!E20615","v":"Select"},{"$f":"Import!E20815","v":"Select"},{"$f":"Import!E21015","v":"Select"},{"$f":"Import!E21215","v":"Select"},{"$f":"Import!E21415","v":"Select"},{"$f":"Import!E21615","v":"Select"},{"$f":"Import!E21815","v":"Select"},{"$f":"Import!E22015","v":0},{"$f":"Import!E22215","v":0},{"$f":"Import!E22415","v":0},{"$f":"Import!E22615","v":0},{"$f":"Import!E22815","v":0}]
[168,{"$f":"Import!E20616","v":"Select"},{"$f":"Import!E20816","v":"Select"},{"$f":"Import!E21016","v":"Select"},{"$f":"Import!E21216","v":"Select"},{"$f":"Import!E21416","v":"Select"},{"$f":"Import!E21616","v":"Select"},{"$f":"Import!E21816","v":"Select"},{"$f":"Import!E22016","v":0},{"$f":"Import!E22216","v":0},{"$f":"Import!E22416","v":0},{"$f":"Import!E22616","v":0},{"$f":"Import!E22816","v":0}]
[169,{"$f":"Import!E20617","v":"Select"},{"$f":"Import!E20817","v":"Select"},{"$f":"Import!E21017","v":"Select"},{"$f":"Import!E21217","v":"Select"},{"$f":"Import!E21417","v":"Select"},{"$f":"Import!E21617","v":"Select"},{"$f":"Import!E21817","v":"Select"},{"$f":"Import!E22017","v":0},{"$f":"Import!E22217","v":0},{"$f":"Import!E22417","v":0},{"$f":"Import!E22617","v":0},{"$f":"Import!E22817","v":0}]
[170,{"$f":"Import!E20618","v":"Select"},{"$f":"Import!E20818","v":"Select"},{"$f":"Import!E21018","v":"Select"},{"$f":"Import!E21218","v":"Select"},{"$f":"Import!E21418","v":"Select"},{"$f":"Import!E21618","v":"Select"},{"$f":"Import!E21818","v":"Select"},{"$f":"Import!E22018","v":0},{"$f":"Import!E22218","v":0},{"$f":"Import!E22418","v":0},{"$f":"Import!E22618","v":0},{"$f":"Import!E22818","v":0}]
[171,{"$f":"Import!E20619","v":"Select"},{"$f":"Import!E20819","v":"Select"},{"$f":"Import!E21019","v":"Select"},{"$f":"Import!E21219","v":"Select"},{"$f":"Import!E21419","v":"Select"},{"$f":"Import!E21619","v":"Select"},{"$f":"Import!E21819","v":"Select"},{"$f":"Import!E22019","v":0},{"$f":"Import!E22219","v":0},{"$f":"Import!E22419","v":0},{"$f":"Import!E22619","v":0},{"$f":"Import!E22819","v":0}]
[172,{"$f":"Import!E20620","v":"Select"},{"$f":"Import!E20820","v":"Select"},{"$f":"Import!E21020","v":"Select"},{"$f":"Import!E21220","v":"Select"},{"$f":"Import!E21420","v":"Select"},{"$f":"Import!E21620","v":"Select"},{"$f":"Import!E21820","v":"Select"},{"$f":"Import!E22020","v":0},{"$f":"Import!E22220","v":0},{"$f":"Import!E22420","v":0},{"$f":"Import!E22620","v":0},{"$f":"Import!E22820","v":0}]
[173,{"$f":"Import!E20621","v":"Select"},{"$f":"Import!E20821","v":"Select"},{"$f":"Import!E21021","v":"Select"},{"$f":"Import!E21221","v":"Select"},{"$f":"Import!E21421","v":"Select"},{"$f":"Import!E21621","v":"Select"},{"$f":"Import!E21821","v":"Select"},{"$f":"Import!E22021","v":0},{"$f":"Import!E22221","v":0},{"$f":"Import!E22421","v":0},{"$f":"Import!E22621","v":0},{"$f":"Import!E22821","v":0}]
[174,{"$f":"Import!E20622","v":"Select"},{"$f":"Import!E20822","v":"Select"},{"$f":"Import!E21022","v":"Select"},{"$f":"Import!E21222","v":"Select"},{"$f":"Import!E21422","v":"Select"},{"$f":"Import!E21622","v":"Select"},{"$f":"Import!E21822","v":"Select"},{"$f":"Import!E22022","v":0},{"$f":"Import!E22222","v":0},{"$f":"Import!E22422","v":0},{"$f":"Import!E22622","v":0},{"$f":"Import!E22822","v":0}]
[175,{"$f":"Import!E20623","v":"Select"},{"$f":"Import!E20823","v":"Select"},{"$f":"Import!E21023","v":"Select"},{"$f":"Import!E21223","v":"Select"},{"$f":"Import!E21423","v":"Select"},{"$f":"Import!E21623","v":"Select"},{"$f":"Import!E21823","v":"Select"},{"$f":"Import!E22023","v":0},{"$f":"Import!E22223","v":0},{"$f":"Import!E22423","v":0},{"$f":"Import!E22623","v":0},{"$f":"Import!E22823","v":0}]
[176,{"$f":"Import!E20624","v":"Select"},{"$f":"Import!E20824","v":"Select"},{"$f":"Import!E21024","v":"Select"},{"$f":"Import!E21224","v":"Select"},{"$f":"Import!E21424","v":"Select"},{"$f":"Import!E21624","v":"Select"},{"$f":"Import!E21824","v":"Select"},{"$f":"Import!E22024","v":0},{"$f":"Import!E22224","v":0},{"$f":"Import!E22424","v":0},{"$f":"Import!E22624","v":0},{"$f":"Import!E22824","v":0}]
[177,{"$f":"Import!E20625","v":"Select"},{"$f":"Import!E20825","v":"Select"},{"$f":"Import!E21025","v":"Select"},{"$f":"Import!E21225","v":"Select"},{"$f":"Import!E21425","v":"Select"},{"$f":"Import!E21625","v":"Select"},{"$f":"Import!E21825","v":"Select"},{"$f":"Import!E22025","v":0},{"$f":"Import!E22225","v":0},{"$f":"Import!E22425","v":0},{"$f":"Import!E22625","v":0},{"$f":"Import!E22825","v":0}]
[178,{"$f":"Import!E20626","v":"Select"},{"$f":"Import!E20826","v":"Select"},{"$f":"Import!E21026","v":"Select"},{"$f":"Import!E21226","v":"Select"},{"$f":"Import!E21426","v":"Select"},{"$f":"Import!E21626","v":"Select"},{"$f":"Import!E21826","v":"Select"},{"$f":"Import!E22026","v":0},{"$f":"Import!E22226","v":0},{"$f":"Import!E22426","v":0},{"$f":"Import!E22626","v":0},{"$f":"Import!E22826","v":0}]
[179,{"$f":"Import!E20627","v":"Select"},{"$f":"Import!E20827","v":"Select"},{"$f":"Import!E21027","v":"Select"},{"$f":"Import!E21227","v":"Select"},{"$f":"Import!E21427","v":"Select"},{"$f":"Import!E21627","v":"Select"},{"$f":"Import!E21827","v":"Select"},{"$f":"Import!E22027","v":0},{"$f":"Import!E22227","v":0},{"$f":"Import!E22427","v":0},{"$f":"Import!E22627","v":0},{"$f":"Import!E22827","v":0}]
[180,{"$f":"Import!E20628","v":"Select"},{"$f":"Import!E20828","v":"Select"},{"$f":"Import!E21028","v":"Select"},{"$f":"Import!E21228","v":"Select"},{"$f":"Import!E21428","v":"Select"},{"$f":"Import!E21628","v":"Select"},{"$f":"Import!E21828","v":"Select"},{"$f":"Import!E22028","v":0},{"$f":"Import!E22228","v":0},{"$f":"Import!E22428","v":0},{"$f":"Import!E22628","v":0},{"$f":"Import!E22828","v":0}]
[181,{"$f":"Import!E20629","v":"Select"},{"$f":"Import!E20829","v":"Select"},{"$f":"Import!E21029","v":"Select"},{"$f":"Import!E21229","v":"Select"},{"$f":"Import!E21429","v":"Select"},{"$f":"Import!E21629","v":"Select"},{"$f":"Import!E21829","v":"Select"},{"$f":"Import!E22029","v":0},{"$f":"Import!E22229","v":0},{"$f":"Import!E22429","v":0},{"$f":"Import!E22629","v":0},{"$f":"Import!E22829","v":0}]
[182,{"$f":"Import!E20630","v":"Select"},{"$f":"Import!E20830","v":"Select"},{"$f":"Import!E21030","v":"Select"},{"$f":"Import!E21230","v":"Select"},{"$f":"Import!E21430","v":"Select"},{"$f":"Import!E21630","v":"Select"},{"$f":"Import!E21830","v":"Select"},{"$f":"Import!E22030","v":0},{"$f":"Import!E22230","v":0},{"$f":"Import!E22430","v":0},{"$f":"Import!E22630","v":0},{"$f":"Import!E22830","v":0}]
[183,{"$f":"Import!E20631","v":"Select"},{"$f":"Import!E20831","v":"Select"},{"$f":"Import!E21031","v":"Select"},{"$f":"Import!E21231","v":"Select"},{"$f":"Import!E21431","v":"Select"},{"$f":"Import!E21631","v":"Select"},{"$f":"Import!E21831","v":"Select"},{"$f":"Import!E22031","v":0},{"$f":"Import!E22231","v":0},{"$f":"Import!E22431","v":0},{"$f":"Import!E22631","v":0},{"$f":"Import!E22831","v":0}]
[184,{"$f":"Import!E20632","v":"Select"},{"$f":"Import!E20832","v":"Select"},{"$f":"Import!E21032","v":"Select"},{"$f":"Import!E21232","v":"Select"},{"$f":"Import!E21432","v":"Select"},{"$f":"Import!E21632","v":"Select"},{"$f":"Import!E21832","v":"Select"},{"$f":"Import!E22032","v":0},{"$f":"Import!E22232","v":0},{"$f":"Import!E22432","v":0},{"$f":"Import!E22632","v":0},{"$f":"Import!E22832","v":0}]
[185,{"$f":"Import!E20633","v":"Select"},{"$f":"Import!E20833","v":"Select"},{"$f":"Import!E21033","v":"Select"},{"$f":"Import!E21233","v":"Select"},{"$f":"Import!E21433","v":"Select"},{"$f":"Import!E21633","v":"Select"},{"$f":"Import!E21833","v":"Select"},{"$f":"Import!E22033","v":0},{"$f":"Import!E22233","v":0},{"$f":"Import!E22433","v":0},{"$f":"Import!E22633","v":0},{"$f":"Import!E22833","v":0}]
[186,{"$f":"Import!E20634","v":"Select"},{"$f":"Import!E20834","v":"Select"},{"$f":"Import!E21034","v":"Select"},{"$f":"Import!E21234","v":"Select"},{"$f":"Import!E21434","v":"Select"},{"$f":"Import!E21634","v":"Select"},{"$f":"Import!E21834","v":"Select"},{"$f":"Import!E22034","v":0},{"$f":"Import!E22234","v":0},{"$f":"Import!E22434","v":0},{"$f":"Import!E22634","v":0},{"$f":"Import!E22834","v":0}]
[187,{"$f":"Import!E20635","v":"Select"},{"$f":"Import!E20835","v":"Select"},{"$f":"Import!E21035","v":"Select"},{"$f":"Import!E21235","v":"Select"},{"$f":"Import!E21435","v":"Select"},{"$f":"Import!E21635","v":"Select"},{"$f":"Import!E21835","v":"Select"},{"$f":"Import!E22035","v":0},{"$f":"Import!E22235","v":0},{"$f":"Import!E22435","v":0},{"$f":"Import!E22635","v":0},{"$f":"Import!E22835","v":0}]
[188,{"$f":"Import!E20636","v":"Select"},{"$f":"Import!E20836","v":"Select"},{"$f":"Import!E21036","v":"Select"},{"$f":"Import!E21236","v":"Select"},{"$f":"Import!E21436","v":"Select"},{"$f":"Import!E21636","v":"Select"},{"$f":"Import!E21836","v":"Select"},{"$f":"Import!E22036","v":0},{"$f":"Import!E22236","v":0},{"$f":"Import!E22436","v":0},{"$f":"Import!E22636","v":0},{"$f":"Import!E22836","v":0}]
[189,{"$f":"Import!E20637","v":"Select"},{"$f":"Import!E20837","v":"Select"},{"$f":"Import!E21037","v":"Select"},{"$f":"Import!E21237","v":"Select"},{"$f":"Import!E21437","v":"Select"},{"$f":"Import!E21637","v":"Select"},{"$f":"Import!E21837","v":"Select"},{"$f":"Import!E22037","v":0},{"$f":"Import!E22237","v":0},{"$f":"Import!E22437","v":0},{"$f":"Import!E22637","v":0},{"$f":"Import!E22837","v":0}]
[190,{"$f":"Import!E20638","v":"Select"},{"$f":"Import!E20838","v":"Select"},{"$f":"Import!E21038","v":"Select"},{"$f":"Import!E21238","v":"Select"},{"$f":"Import!E21438","v":"Select"},{"$f":"Import!E21638","v":"Select"},{"$f":"Import!E21838","v":"Select"},{"$f":"Import!E22038","v":0},{"$f":"Import!E22238","v":0},{"$f":"Import!E22438","v":0},{"$f":"Import!E22638","v":0},{"$f":"Import!E22838","v":0}]
[191,{"$f":"Import!E20639","v":"Select"},{"$f":"Import!E20839","v":"Select"},{"$f":"Import!E21039","v":"Select"},{"$f":"Import!E21239","v":"Select"},{"$f":"Import!E21439","v":"Select"},{"$f":"Import!E21639","v":"Select"},{"$f":"Import!E21839","v":"Select"},{"$f":"Import!E22039","v":0},{"$f":"Import!E22239","v":0},{"$f":"Import!E22439","v":0},{"$f":"Import!E22639","v":0},{"$f":"Import!E22839","v":0}]
[192,{"$f":"Import!E20640","v":"Select"},{"$f":"Import!E20840","v":"Select"},{"$f":"Import!E21040","v":"Select"},{"$f":"Import!E21240","v":"Select"},{"$f":"Import!E21440","v":"Select"},{"$f":"Import!E21640","v":"Select"},{"$f":"Import!E21840","v":"Select"},{"$f":"Import!E22040","v":0},{"$f":"Import!E22240","v":0},{"$f":"Import!E22440","v":0},{"$f":"Import!E22640","v":0},{"$f":"Import!E22840","v":0}]
[193,{"$f":"Import!E20641","v":"Select"},{"$f":"Import!E20841","v":"Select"},{"$f":"Import!E21041","v":"Select"},{"$f":"Import!E21241","v":"Select"},{"$f":"Import!E21441","v":"Select"},{"$f":"Import!E21641","v":"Select"},{"$f":"Import!E21841","v":"Select"},{"$f":"Import!E22041","v":0},{"$f":"Import!E22241","v":0},{"$f":"Import!E22441","v":0},{"$f":"Import!E22641","v":0},{"$f":"Import!E22841","v":0}]
[194,{"$f":"Import!E20642","v":"Select"},{"$f":"Import!E20842","v":"Select"},{"$f":"Import!E21042","v":"Select"},{"$f":"Import!E21242","v":"Select"},{"$f":"Import!E21442","v":"Select"},{"$f":"Import!E21642","v":"Select"},{"$f":"Import!E21842","v":"Select"},{"$f":"Import!E22042","v":0},{"$f":"Import!E22242","v":0},{"$f":"Import!E22442","v":0},{"$f":"Import!E22642","v":0},{"$f":"Import!E22842","v":0}]
[{"$f":"A1753+1","v":195},{"$f":"Import!E20643","v":"Select"},{"$f":"Import!E20843","v":"Select"},{"$f":"Import!E21043","v":"Select"},{"$f":"Import!E21243","v":"Select"},{"$f":"Import!E21443","v":"Select"},{"$f":"Import!E21643","v":"Select"},{"$f":"Import!E21843","v":"Select"},{"$f":"Import!E22043","v":0},{"$f":"Import!E22243","v":0},{"$f":"Import!E22443","v":0},{"$f":"Import!E22643","v":0},{"$f":"Import!E22843","v":0}]
[196,{"$f":"Import!E20644","v":"Select"},{"$f":"Import!E20844","v":"Select"},{"$f":"Import!E21044","v":"Select"},{"$f":"Import!E21244","v":"Select"},{"$f":"Import!E21444","v":"Select"},{"$f":"Import!E21644","v":"Select"},{"$f":"Import!E21844","v":"Select"},{"$f":"Import!E22044","v":0},{"$f":"Import!E22244","v":0},{"$f":"Import!E22444","v":0},{"$f":"Import!E22644","v":0},{"$f":"Import!E22844","v":0}]
[197,{"$f":"Import!E20645","v":"Select"},{"$f":"Import!E20845","v":"Select"},{"$f":"Import!E21045","v":"Select"},{"$f":"Import!E21245","v":"Select"},{"$f":"Import!E21445","v":"Select"},{"$f":"Import!E21645","v":"Select"},{"$f":"Import!E21845","v":"Select"},{"$f":"Import!E22045","v":0},{"$f":"Import!E22245","v":0},{"$f":"Import!E22445","v":0},{"$f":"Import!E22645","v":0},{"$f":"Import!E22845","v":0}]
[198,{"$f":"Import!E20646","v":"Select"},{"$f":"Import!E20846","v":"Select"},{"$f":"Import!E21046","v":"Select"},{"$f":"Import!E21246","v":"Select"},{"$f":"Import!E21446","v":"Select"},{"$f":"Import!E21646","v":"Select"},{"$f":"Import!E21846","v":"Select"},{"$f":"Import!E22046","v":0},{"$f":"Import!E22246","v":0},{"$f":"Import!E22446","v":0},{"$f":"Import!E22646","v":0},{"$f":"Import!E22846","v":0}]
[199,{"$f":"Import!E20647","v":"Select"},{"$f":"Import!E20847","v":"Select"},{"$f":"Import!E21047","v":"Select"},{"$f":"Import!E21247","v":"Select"},{"$f":"Import!E21447","v":"Select"},{"$f":"Import!E21647","v":"Select"},{"$f":"Import!E21847","v":"Select"},{"$f":"Import!E22047","v":0},{"$f":"Import!E22247","v":0},{"$f":"Import!E22447","v":0},{"$f":"Import!E22647","v":0},{"$f":"Import!E22847","v":0}]
[200,{"$f":"Import!E20648","v":"Select"},{"$f":"Import!E20848","v":"Select"},{"$f":"Import!E21048","v":"Select"},{"$f":"Import!E21248","v":"Select"},{"$f":"Import!E21448","v":"Select"},{"$f":"Import!E21648","v":"Select"},{"$f":"Import!E21848","v":"Select"},{"$f":"Import!E22048","v":0},{"$f":"Import!E22248","v":0},{"$f":"Import!E22448","v":0},{"$f":"Import!E22648","v":0},{"$f":"Import!E22848","v":0}]
[]
[null,"Total Derivatives",null,null,null,null,null,null,{"$f":"SUM(I1560:I1759)","v":0},{"$f":"SUM(J1560:J1759)","v":0},{"$f":"SUM(K1560:K1759)","v":0}]
[]
[null,"(J) INFORMATION ON EXPOSURES TO FINANCIAL INSTITUTIONS AND UNLISTED COUNTERPARTIES"]
[null,null,null,null,null,"Commercial Loans and Mortgages"]
[null,null,{"$f":"YEAR($C$3)","v":2023},"Fair Value",null,null,"Securitisations ","Other debt securities"]
[null,"Financial Institutions","Equities","Corporate Bonds","Corporate Loans",null,null,null,null,"Comments"]
[1,"Exposure to Financial Institutions (Banks, Insurance Companies, Other Financials) - Investment Grade, BSCR Rating 1-3",{"$f":"Import!E22849","v":0},{"$f":"Import!E22853","v":0},{"$f":"Import!E22857","v":0},{"$f":"Import!E22861","v":0},{"$f":"Import!E22865","v":0},{"$f":"Import!E22869","v":0},null,{"$f":"Import!E22873","v":0}]
[2,"Exposure to Financial Institutions (Banks, Insurance Companies, Other Financials) - Investment Grade, BSCR Rating 4",{"$f":"Import!E22850","v":0},{"$f":"Import!E22854","v":0},{"$f":"Import!E22858","v":0},{"$f":"Import!E22862","v":0},{"$f":"Import!E22866","v":0},{"$f":"Import!E22870","v":0},null,{"$f":"Import!E22874","v":0}]
[3,"Exposure to Financial Institutions (Banks, Insurance Companies, Other Financials) - Below Investment Grade",{"$f":"Import!E22851","v":0},{"$f":"Import!E22855","v":0},{"$f":"Import!E22859","v":0},{"$f":"Import!E22863","v":0},{"$f":"Import!E22867","v":0},{"$f":"Import!E22871","v":0},null,{"$f":"Import!E22875","v":0}]
[4,"Exposure to Financial Institutions (Banks, Insurance Companies, Other Financials) - Unrated",{"$f":"Import!E22852","v":0},{"$f":"Import!E22856","v":0},{"$f":"Import!E22860","v":0},{"$f":"Import!E22864","v":0},{"$f":"Import!E22868","v":0},{"$f":"Import!E22872","v":0},null,{"$f":"Import!E22876","v":0}]
[]
[null,"Total Exposures to Financial Institutions",{"$f":"SUM(C1767:C1770)","v":0},{"$f":"SUM(D1767:D1770)","v":0},0,0,0,0]
[]
[null,"Of which","Equities","Corporate Bonds","Corporate Loans","Other",null,null,null,"Comments"]
[5,"- exposures to Banks",{"$f":"Import!E22877","v":0},{"$f":"Import!E22880","v":0},{"$f":"Import!E22883","v":0},{"$f":"Import!E22886","v":0},null,null,null,{"$f":"Import!E22889","v":0}]
[6,"- exposures to Insurers",{"$f":"Import!E22878","v":0},{"$f":"Import!E22881","v":0},{"$f":"Import!E22884","v":0},{"$f":"Import!E22887","v":0},null,null,null,{"$f":"Import!E22890","v":0}]
[7,"- exposures to Other Financial Institutions",{"$f":"Import!E22879","v":0},{"$f":"Import!E22882","v":0},{"$f":"Import!E22885","v":0},{"$f":"Import!E22888","v":0},null,null,null,{"$f":"Import!E22891","v":0}]
[]
[null,"Total Exposures",{"$f":"SUM(C1775:C1777)","v":0},{"$f":"SUM(D1775:D1777)","v":0},{"$f":"SUM(E1775:E1777)","v":0},{"$f":"SUM(F1775:F1777)","v":0}]
[]
[null,null,{"$f":"YEAR($C$3)","v":2023},"Fair Value"]
[null,"Unlisted Counterparties","Equities","Corporate Bonds","Corporate Loans","Other",null,null,null,"Comments"]
[8,"Direct Exposure to Unlisted Counterparties - Investment Grade, BSCR Rating 1-3",{"$f":"Import!E22892","v":0},{"$f":"Import!E22896","v":0},{"$f":"Import!E22900","v":0},{"$f":"Import!E22904","v":0},null,null,null,{"$f":"Import!E22908","v":0}]
[9,"Direct Exposure to Unlisted Counterparties - Investment Grade, BSCR Rating 4",{"$f":"Import!E22893","v":0},{"$f":"Import!E22897","v":0},{"$f":"Import!E22901","v":0},{"$f":"Import!E22905","v":0},null,null,null,{"$f":"Import!E22909","v":0}]
[10,"Direct Exposure to Unlisted Counterparties - Below Investment Grade",{"$f":"Import!E22894","v":0},{"$f":"Import!E22898","v":0},{"$f":"Import!E22902","v":0},{"$f":"Import!E22906","v":0},null,null,null,{"$f":"Import!E22910","v":0}]
[11,"Direct Exposure to Unlisted Counterparties - Unrated",{"$f":"Import!E22895","v":0},{"$f":"Import!E22899","v":0},{"$f":"Import!E22903","v":0},{"$f":"Import!E22907","v":0},null,null,null,{"$f":"Import!E22911","v":0}]
[]
[null,"Total Direct Exposures to Unlisted Counterparties",{"$f":"SUM(C1783:C1786)","v":0},{"$f":"SUM(D1783:D1786)","v":0},0,0]
[]
[null,"(K) OTHER ASSETS"]
[]
[null,null,"Enter # of Asset Types",{"$f":"Import!E22912","v":0}]
[]
[null,null,null,null,{"$f":"YEAR($C$3)","v":2023},2023]
[null,"Asset Type","Currency","BSCR Rating","Nominal Amount","Fair Value","Comments"]
[1,{"$f":"Import!E22913","v":"Select"},{"$f":"Import!E23113","v":"Select"},{"$f":"Import!E23313","v":"Select"},{"$f":"Import!E23513","v":0},{"$f":"Import!E23713","v":0},{"$f":"Import!E23913","v":0}]
[{"$f":"A1796+1","v":2},{"$f":"Import!E22914","v":"Select"},{"$f":"Import!E23114","v":"Select"},{"$f":"Import!E23314","v":"Select"},{"$f":"Import!E23514","v":0},{"$f":"Import!E23714","v":0},{"$f":"Import!E23914","v":0}]
[{"$f":"A1797+1","v":3},{"$f":"Import!E22915","v":"Select"},{"$f":"Import!E23115","v":"Select"},{"$f":"Import!E23315","v":"Select"},{"$f":"Import!E23515","v":0},{"$f":"Import!E23715","v":0},{"$f":"Import!E23915","v":0}]
[4,{"$f":"Import!E22916","v":"Select"},{"$f":"Import!E23116","v":"Select"},{"$f":"Import!E23316","v":"Select"},{"$f":"Import!E23516","v":0},{"$f":"Import!E23716","v":0},{"$f":"Import!E23916","v":0}]
[5,{"$f":"Import!E22917","v":"Select"},{"$f":"Import!E23117","v":"Select"},{"$f":"Import!E23317","v":"Select"},{"$f":"Import!E23517","v":0},{"$f":"Import!E23717","v":0},{"$f":"Import!E23917","v":0}]
[6,{"$f":"Import!E22918","v":"Select"},{"$f":"Import!E23118","v":"Select"},{"$f":"Import!E23318","v":"Select"},{"$f":"Import!E23518","v":0},{"$f":"Import!E23718","v":0},{"$f":"Import!E23918","v":0}]
[7,{"$f":"Import!E22919","v":"Select"},{"$f":"Import!E23119","v":"Select"},{"$f":"Import!E23319","v":"Select"},{"$f":"Import!E23519","v":0},{"$f":"Import!E23719","v":0},{"$f":"Import!E23919","v":0}]
[8,{"$f":"Import!E22920","v":"Select"},{"$f":"Import!E23120","v":"Select"},{"$f":"Import!E23320","v":"Select"},{"$f":"Import!E23520","v":0},{"$f":"Import!E23720","v":0},{"$f":"Import!E23920","v":0}]
[9,{"$f":"Import!E22921","v":"Select"},{"$f":"Import!E23121","v":"Select"},{"$f":"Import!E23321","v":"Select"},{"$f":"Import!E23521","v":0},{"$f":"Import!E23721","v":0},{"$f":"Import!E23921","v":0}]
[10,{"$f":"Import!E22922","v":"Select"},{"$f":"Import!E23122","v":"Select"},{"$f":"Import!E23322","v":"Select"},{"$f":"Import!E23522","v":0},{"$f":"Import!E23722","v":0},{"$f":"Import!E23922","v":0}]
[11,{"$f":"Import!E22923","v":"Select"},{"$f":"Import!E23123","v":"Select"},{"$f":"Import!E23323","v":"Select"},{"$f":"Import!E23523","v":0},{"$f":"Import!E23723","v":0},{"$f":"Import!E23923","v":0}]
[12,{"$f":"Import!E22924","v":"Select"},{"$f":"Import!E23124","v":"Select"},{"$f":"Import!E23324","v":"Select"},{"$f":"Import!E23524","v":0},{"$f":"Import!E23724","v":0},{"$f":"Import!E23924","v":0}]
[13,{"$f":"Import!E22925","v":"Select"},{"$f":"Import!E23125","v":"Select"},{"$f":"Import!E23325","v":"Select"},{"$f":"Import!E23525","v":0},{"$f":"Import!E23725","v":0},{"$f":"Import!E23925","v":0}]
[14,{"$f":"Import!E22926","v":"Select"},{"$f":"Import!E23126","v":"Select"},{"$f":"Import!E23326","v":"Select"},{"$f":"Import!E23526","v":0},{"$f":"Import!E23726","v":0},{"$f":"Import!E23926","v":0}]
[15,{"$f":"Import!E22927","v":"Select"},{"$f":"Import!E23127","v":"Select"},{"$f":"Import!E23327","v":"Select"},{"$f":"Import!E23527","v":0},{"$f":"Import!E23727","v":0},{"$f":"Import!E23927","v":0}]
[16,{"$f":"Import!E22928","v":"Select"},{"$f":"Import!E23128","v":"Select"},{"$f":"Import!E23328","v":"Select"},{"$f":"Import!E23528","v":0},{"$f":"Import!E23728","v":0},{"$f":"Import!E23928","v":0}]
[17,{"$f":"Import!E22929","v":"Select"},{"$f":"Import!E23129","v":"Select"},{"$f":"Import!E23329","v":"Select"},{"$f":"Import!E23529","v":0},{"$f":"Import!E23729","v":0},{"$f":"Import!E23929","v":0}]
[18,{"$f":"Import!E22930","v":"Select"},{"$f":"Import!E23130","v":"Select"},{"$f":"Import!E23330","v":"Select"},{"$f":"Import!E23530","v":0},{"$f":"Import!E23730","v":0},{"$f":"Import!E23930","v":0}]
[19,{"$f":"Import!E22931","v":"Select"},{"$f":"Import!E23131","v":"Select"},{"$f":"Import!E23331","v":"Select"},{"$f":"Import!E23531","v":0},{"$f":"Import!E23731","v":0},{"$f":"Import!E23931","v":0}]
[20,{"$f":"Import!E22932","v":"Select"},{"$f":"Import!E23132","v":"Select"},{"$f":"Import!E23332","v":"Select"},{"$f":"Import!E23532","v":0},{"$f":"Import!E23732","v":0},{"$f":"Import!E23932","v":0}]
[21,{"$f":"Import!E22933","v":"Select"},{"$f":"Import!E23133","v":"Select"},{"$f":"Import!E23333","v":"Select"},{"$f":"Import!E23533","v":0},{"$f":"Import!E23733","v":0},{"$f":"Import!E23933","v":0}]
[22,{"$f":"Import!E22934","v":"Select"},{"$f":"Import!E23134","v":"Select"},{"$f":"Import!E23334","v":"Select"},{"$f":"Import!E23534","v":0},{"$f":"Import!E23734","v":0},{"$f":"Import!E23934","v":0}]
[23,{"$f":"Import!E22935","v":"Select"},{"$f":"Import!E23135","v":"Select"},{"$f":"Import!E23335","v":"Select"},{"$f":"Import!E23535","v":0},{"$f":"Import!E23735","v":0},{"$f":"Import!E23935","v":0}]
[24,{"$f":"Import!E22936","v":"Select"},{"$f":"Import!E23136","v":"Select"},{"$f":"Import!E23336","v":"Select"},{"$f":"Import!E23536","v":0},{"$f":"Import!E23736","v":0},{"$f":"Import!E23936","v":0}]
[25,{"$f":"Import!E22937","v":"Select"},{"$f":"Import!E23137","v":"Select"},{"$f":"Import!E23337","v":"Select"},{"$f":"Import!E23537","v":0},{"$f":"Import!E23737","v":0},{"$f":"Import!E23937","v":0}]
[26,{"$f":"Import!E22938","v":"Select"},{"$f":"Import!E23138","v":"Select"},{"$f":"Import!E23338","v":"Select"},{"$f":"Import!E23538","v":0},{"$f":"Import!E23738","v":0},{"$f":"Import!E23938","v":0}]
[27,{"$f":"Import!E22939","v":"Select"},{"$f":"Import!E23139","v":"Select"},{"$f":"Import!E23339","v":"Select"},{"$f":"Import!E23539","v":0},{"$f":"Import!E23739","v":0},{"$f":"Import!E23939","v":0}]
[28,{"$f":"Import!E22940","v":"Select"},{"$f":"Import!E23140","v":"Select"},{"$f":"Import!E23340","v":"Select"},{"$f":"Import!E23540","v":0},{"$f":"Import!E23740","v":0},{"$f":"Import!E23940","v":0}]
[29,{"$f":"Import!E22941","v":"Select"},{"$f":"Import!E23141","v":"Select"},{"$f":"Import!E23341","v":"Select"},{"$f":"Import!E23541","v":0},{"$f":"Import!E23741","v":0},{"$f":"Import!E23941","v":0}]
[30,{"$f":"Import!E22942","v":"Select"},{"$f":"Import!E23142","v":"Select"},{"$f":"Import!E23342","v":"Select"},{"$f":"Import!E23542","v":0},{"$f":"Import!E23742","v":0},{"$f":"Import!E23942","v":0}]
[31,{"$f":"Import!E22943","v":"Select"},{"$f":"Import!E23143","v":"Select"},{"$f":"Import!E23343","v":"Select"},{"$f":"Import!E23543","v":0},{"$f":"Import!E23743","v":0},{"$f":"Import!E23943","v":0}]
[32,{"$f":"Import!E22944","v":"Select"},{"$f":"Import!E23144","v":"Select"},{"$f":"Import!E23344","v":"Select"},{"$f":"Import!E23544","v":0},{"$f":"Import!E23744","v":0},{"$f":"Import!E23944","v":0}]
[33,{"$f":"Import!E22945","v":"Select"},{"$f":"Import!E23145","v":"Select"},{"$f":"Import!E23345","v":"Select"},{"$f":"Import!E23545","v":0},{"$f":"Import!E23745","v":0},{"$f":"Import!E23945","v":0}]
[34,{"$f":"Import!E22946","v":"Select"},{"$f":"Import!E23146","v":"Select"},{"$f":"Import!E23346","v":"Select"},{"$f":"Import!E23546","v":0},{"$f":"Import!E23746","v":0},{"$f":"Import!E23946","v":0}]
[35,{"$f":"Import!E22947","v":"Select"},{"$f":"Import!E23147","v":"Select"},{"$f":"Import!E23347","v":"Select"},{"$f":"Import!E23547","v":0},{"$f":"Import!E23747","v":0},{"$f":"Import!E23947","v":0}]
[36,{"$f":"Import!E22948","v":"Select"},{"$f":"Import!E23148","v":"Select"},{"$f":"Import!E23348","v":"Select"},{"$f":"Import!E23548","v":0},{"$f":"Import!E23748","v":0},{"$f":"Import!E23948","v":0}]
[37,{"$f":"Import!E22949","v":"Select"},{"$f":"Import!E23149","v":"Select"},{"$f":"Import!E23349","v":"Select"},{"$f":"Import!E23549","v":0},{"$f":"Import!E23749","v":0},{"$f":"Import!E23949","v":0}]
[38,{"$f":"Import!E22950","v":"Select"},{"$f":"Import!E23150","v":"Select"},{"$f":"Import!E23350","v":"Select"},{"$f":"Import!E23550","v":0},{"$f":"Import!E23750","v":0},{"$f":"Import!E23950","v":0}]
[39,{"$f":"Import!E22951","v":"Select"},{"$f":"Import!E23151","v":"Select"},{"$f":"Import!E23351","v":"Select"},{"$f":"Import!E23551","v":0},{"$f":"Import!E23751","v":0},{"$f":"Import!E23951","v":0}]
[40,{"$f":"Import!E22952","v":"Select"},{"$f":"Import!E23152","v":"Select"},{"$f":"Import!E23352","v":"Select"},{"$f":"Import!E23552","v":0},{"$f":"Import!E23752","v":0},{"$f":"Import!E23952","v":0}]
[41,{"$f":"Import!E22953","v":"Select"},{"$f":"Import!E23153","v":"Select"},{"$f":"Import!E23353","v":"Select"},{"$f":"Import!E23553","v":0},{"$f":"Import!E23753","v":0},{"$f":"Import!E23953","v":0}]
[42,{"$f":"Import!E22954","v":"Select"},{"$f":"Import!E23154","v":"Select"},{"$f":"Import!E23354","v":"Select"},{"$f":"Import!E23554","v":0},{"$f":"Import!E23754","v":0},{"$f":"Import!E23954","v":0}]
[43,{"$f":"Import!E22955","v":"Select"},{"$f":"Import!E23155","v":"Select"},{"$f":"Import!E23355","v":"Select"},{"$f":"Import!E23555","v":0},{"$f":"Import!E23755","v":0},{"$f":"Import!E23955","v":0}]
[44,{"$f":"Import!E22956","v":"Select"},{"$f":"Import!E23156","v":"Select"},{"$f":"Import!E23356","v":"Select"},{"$f":"Import!E23556","v":0},{"$f":"Import!E23756","v":0},{"$f":"Import!E23956","v":0}]
[45,{"$f":"Import!E22957","v":"Select"},{"$f":"Import!E23157","v":"Select"},{"$f":"Import!E23357","v":"Select"},{"$f":"Import!E23557","v":0},{"$f":"Import!E23757","v":0},{"$f":"Import!E23957","v":0}]
[46,{"$f":"Import!E22958","v":"Select"},{"$f":"Import!E23158","v":"Select"},{"$f":"Import!E23358","v":"Select"},{"$f":"Import!E23558","v":0},{"$f":"Import!E23758","v":0},{"$f":"Import!E23958","v":0}]
[47,{"$f":"Import!E22959","v":"Select"},{"$f":"Import!E23159","v":"Select"},{"$f":"Import!E23359","v":"Select"},{"$f":"Import!E23559","v":0},{"$f":"Import!E23759","v":0},{"$f":"Import!E23959","v":0}]
[48,{"$f":"Import!E22960","v":"Select"},{"$f":"Import!E23160","v":"Select"},{"$f":"Import!E23360","v":"Select"},{"$f":"Import!E23560","v":0},{"$f":"Import!E23760","v":0},{"$f":"Import!E23960","v":0}]
[49,{"$f":"Import!E22961","v":"Select"},{"$f":"Import!E23161","v":"Select"},{"$f":"Import!E23361","v":"Select"},{"$f":"Import!E23561","v":0},{"$f":"Import!E23761","v":0},{"$f":"Import!E23961","v":0}]
[50,{"$f":"Import!E22962","v":"Select"},{"$f":"Import!E23162","v":"Select"},{"$f":"Import!E23362","v":"Select"},{"$f":"Import!E23562","v":0},{"$f":"Import!E23762","v":0},{"$f":"Import!E23962","v":0}]
[51,{"$f":"Import!E22963","v":"Select"},{"$f":"Import!E23163","v":"Select"},{"$f":"Import!E23363","v":"Select"},{"$f":"Import!E23563","v":0},{"$f":"Import!E23763","v":0},{"$f":"Import!E23963","v":0}]
[52,{"$f":"Import!E22964","v":"Select"},{"$f":"Import!E23164","v":"Select"},{"$f":"Import!E23364","v":"Select"},{"$f":"Import!E23564","v":0},{"$f":"Import!E23764","v":0},{"$f":"Import!E23964","v":0}]
[53,{"$f":"Import!E22965","v":"Select"},{"$f":"Import!E23165","v":"Select"},{"$f":"Import!E23365","v":"Select"},{"$f":"Import!E23565","v":0},{"$f":"Import!E23765","v":0},{"$f":"Import!E23965","v":0}]
[54,{"$f":"Import!E22966","v":"Select"},{"$f":"Import!E23166","v":"Select"},{"$f":"Import!E23366","v":"Select"},{"$f":"Import!E23566","v":0},{"$f":"Import!E23766","v":0},{"$f":"Import!E23966","v":0}]
[55,{"$f":"Import!E22967","v":"Select"},{"$f":"Import!E23167","v":"Select"},{"$f":"Import!E23367","v":"Select"},{"$f":"Import!E23567","v":0},{"$f":"Import!E23767","v":0},{"$f":"Import!E23967","v":0}]
[56,{"$f":"Import!E22968","v":"Select"},{"$f":"Import!E23168","v":"Select"},{"$f":"Import!E23368","v":"Select"},{"$f":"Import!E23568","v":0},{"$f":"Import!E23768","v":0},{"$f":"Import!E23968","v":0}]
[57,{"$f":"Import!E22969","v":"Select"},{"$f":"Import!E23169","v":"Select"},{"$f":"Import!E23369","v":"Select"},{"$f":"Import!E23569","v":0},{"$f":"Import!E23769","v":0},{"$f":"Import!E23969","v":0}]
[58,{"$f":"Import!E22970","v":"Select"},{"$f":"Import!E23170","v":"Select"},{"$f":"Import!E23370","v":"Select"},{"$f":"Import!E23570","v":0},{"$f":"Import!E23770","v":0},{"$f":"Import!E23970","v":0}]
[59,{"$f":"Import!E22971","v":"Select"},{"$f":"Import!E23171","v":"Select"},{"$f":"Import!E23371","v":"Select"},{"$f":"Import!E23571","v":0},{"$f":"Import!E23771","v":0},{"$f":"Import!E23971","v":0}]
[60,{"$f":"Import!E22972","v":"Select"},{"$f":"Import!E23172","v":"Select"},{"$f":"Import!E23372","v":"Select"},{"$f":"Import!E23572","v":0},{"$f":"Import!E23772","v":0},{"$f":"Import!E23972","v":0}]
[61,{"$f":"Import!E22973","v":"Select"},{"$f":"Import!E23173","v":"Select"},{"$f":"Import!E23373","v":"Select"},{"$f":"Import!E23573","v":0},{"$f":"Import!E23773","v":0},{"$f":"Import!E23973","v":0}]
[62,{"$f":"Import!E22974","v":"Select"},{"$f":"Import!E23174","v":"Select"},{"$f":"Import!E23374","v":"Select"},{"$f":"Import!E23574","v":0},{"$f":"Import!E23774","v":0},{"$f":"Import!E23974","v":0}]
[63,{"$f":"Import!E22975","v":"Select"},{"$f":"Import!E23175","v":"Select"},{"$f":"Import!E23375","v":"Select"},{"$f":"Import!E23575","v":0},{"$f":"Import!E23775","v":0},{"$f":"Import!E23975","v":0}]
[64,{"$f":"Import!E22976","v":"Select"},{"$f":"Import!E23176","v":"Select"},{"$f":"Import!E23376","v":"Select"},{"$f":"Import!E23576","v":0},{"$f":"Import!E23776","v":0},{"$f":"Import!E23976","v":0}]
[65,{"$f":"Import!E22977","v":"Select"},{"$f":"Import!E23177","v":"Select"},{"$f":"Import!E23377","v":"Select"},{"$f":"Import!E23577","v":0},{"$f":"Import!E23777","v":0},{"$f":"Import!E23977","v":0}]
[66,{"$f":"Import!E22978","v":"Select"},{"$f":"Import!E23178","v":"Select"},{"$f":"Import!E23378","v":"Select"},{"$f":"Import!E23578","v":0},{"$f":"Import!E23778","v":0},{"$f":"Import!E23978","v":0}]
[{"$f":"A1861+1","v":67},{"$f":"Import!E22979","v":"Select"},{"$f":"Import!E23179","v":"Select"},{"$f":"Import!E23379","v":"Select"},{"$f":"Import!E23579","v":0},{"$f":"Import!E23779","v":0},{"$f":"Import!E23979","v":0}]
[68,{"$f":"Import!E22980","v":"Select"},{"$f":"Import!E23180","v":"Select"},{"$f":"Import!E23380","v":"Select"},{"$f":"Import!E23580","v":0},{"$f":"Import!E23780","v":0},{"$f":"Import!E23980","v":0}]
[69,{"$f":"Import!E22981","v":"Select"},{"$f":"Import!E23181","v":"Select"},{"$f":"Import!E23381","v":"Select"},{"$f":"Import!E23581","v":0},{"$f":"Import!E23781","v":0},{"$f":"Import!E23981","v":0}]
[70,{"$f":"Import!E22982","v":"Select"},{"$f":"Import!E23182","v":"Select"},{"$f":"Import!E23382","v":"Select"},{"$f":"Import!E23582","v":0},{"$f":"Import!E23782","v":0},{"$f":"Import!E23982","v":0}]
[71,{"$f":"Import!E22983","v":"Select"},{"$f":"Import!E23183","v":"Select"},{"$f":"Import!E23383","v":"Select"},{"$f":"Import!E23583","v":0},{"$f":"Import!E23783","v":0},{"$f":"Import!E23983","v":0}]
[72,{"$f":"Import!E22984","v":"Select"},{"$f":"Import!E23184","v":"Select"},{"$f":"Import!E23384","v":"Select"},{"$f":"Import!E23584","v":0},{"$f":"Import!E23784","v":0},{"$f":"Import!E23984","v":0}]
[73,{"$f":"Import!E22985","v":"Select"},{"$f":"Import!E23185","v":"Select"},{"$f":"Import!E23385","v":"Select"},{"$f":"Import!E23585","v":0},{"$f":"Import!E23785","v":0},{"$f":"Import!E23985","v":0}]
[74,{"$f":"Import!E22986","v":"Select"},{"$f":"Import!E23186","v":"Select"},{"$f":"Import!E23386","v":"Select"},{"$f":"Import!E23586","v":0},{"$f":"Import!E23786","v":0},{"$f":"Import!E23986","v":0}]
[75,{"$f":"Import!E22987","v":"Select"},{"$f":"Import!E23187","v":"Select"},{"$f":"Import!E23387","v":"Select"},{"$f":"Import!E23587","v":0},{"$f":"Import!E23787","v":0},{"$f":"Import!E23987","v":0}]
[76,{"$f":"Import!E22988","v":"Select"},{"$f":"Import!E23188","v":"Select"},{"$f":"Import!E23388","v":"Select"},{"$f":"Import!E23588","v":0},{"$f":"Import!E23788","v":0},{"$f":"Import!E23988","v":0}]
[77,{"$f":"Import!E22989","v":"Select"},{"$f":"Import!E23189","v":"Select"},{"$f":"Import!E23389","v":"Select"},{"$f":"Import!E23589","v":0},{"$f":"Import!E23789","v":0},{"$f":"Import!E23989","v":0}]
[78,{"$f":"Import!E22990","v":"Select"},{"$f":"Import!E23190","v":"Select"},{"$f":"Import!E23390","v":"Select"},{"$f":"Import!E23590","v":0},{"$f":"Import!E23790","v":0},{"$f":"Import!E23990","v":0}]
[79,{"$f":"Import!E22991","v":"Select"},{"$f":"Import!E23191","v":"Select"},{"$f":"Import!E23391","v":"Select"},{"$f":"Import!E23591","v":0},{"$f":"Import!E23791","v":0},{"$f":"Import!E23991","v":0}]
[80,{"$f":"Import!E22992","v":"Select"},{"$f":"Import!E23192","v":"Select"},{"$f":"Import!E23392","v":"Select"},{"$f":"Import!E23592","v":0},{"$f":"Import!E23792","v":0},{"$f":"Import!E23992","v":0}]
[81,{"$f":"Import!E22993","v":"Select"},{"$f":"Import!E23193","v":"Select"},{"$f":"Import!E23393","v":"Select"},{"$f":"Import!E23593","v":0},{"$f":"Import!E23793","v":0},{"$f":"Import!E23993","v":0}]
[82,{"$f":"Import!E22994","v":"Select"},{"$f":"Import!E23194","v":"Select"},{"$f":"Import!E23394","v":"Select"},{"$f":"Import!E23594","v":0},{"$f":"Import!E23794","v":0},{"$f":"Import!E23994","v":0}]
[83,{"$f":"Import!E22995","v":"Select"},{"$f":"Import!E23195","v":"Select"},{"$f":"Import!E23395","v":"Select"},{"$f":"Import!E23595","v":0},{"$f":"Import!E23795","v":0},{"$f":"Import!E23995","v":0}]
[84,{"$f":"Import!E22996","v":"Select"},{"$f":"Import!E23196","v":"Select"},{"$f":"Import!E23396","v":"Select"},{"$f":"Import!E23596","v":0},{"$f":"Import!E23796","v":0},{"$f":"Import!E23996","v":0}]
[85,{"$f":"Import!E22997","v":"Select"},{"$f":"Import!E23197","v":"Select"},{"$f":"Import!E23397","v":"Select"},{"$f":"Import!E23597","v":0},{"$f":"Import!E23797","v":0},{"$f":"Import!E23997","v":0}]
[86,{"$f":"Import!E22998","v":"Select"},{"$f":"Import!E23198","v":"Select"},{"$f":"Import!E23398","v":"Select"},{"$f":"Import!E23598","v":0},{"$f":"Import!E23798","v":0},{"$f":"Import!E23998","v":0}]
[87,{"$f":"Import!E22999","v":"Select"},{"$f":"Import!E23199","v":"Select"},{"$f":"Import!E23399","v":"Select"},{"$f":"Import!E23599","v":0},{"$f":"Import!E23799","v":0},{"$f":"Import!E23999","v":0}]
[88,{"$f":"Import!E23000","v":"Select"},{"$f":"Import!E23200","v":"Select"},{"$f":"Import!E23400","v":"Select"},{"$f":"Import!E23600","v":0},{"$f":"Import!E23800","v":0},{"$f":"Import!E24000","v":0}]
[89,{"$f":"Import!E23001","v":"Select"},{"$f":"Import!E23201","v":"Select"},{"$f":"Import!E23401","v":"Select"},{"$f":"Import!E23601","v":0},{"$f":"Import!E23801","v":0},{"$f":"Import!E24001","v":0}]
[90,{"$f":"Import!E23002","v":"Select"},{"$f":"Import!E23202","v":"Select"},{"$f":"Import!E23402","v":"Select"},{"$f":"Import!E23602","v":0},{"$f":"Import!E23802","v":0},{"$f":"Import!E24002","v":0}]
[91,{"$f":"Import!E23003","v":"Select"},{"$f":"Import!E23203","v":"Select"},{"$f":"Import!E23403","v":"Select"},{"$f":"Import!E23603","v":0},{"$f":"Import!E23803","v":0},{"$f":"Import!E24003","v":0}]
[92,{"$f":"Import!E23004","v":"Select"},{"$f":"Import!E23204","v":"Select"},{"$f":"Import!E23404","v":"Select"},{"$f":"Import!E23604","v":0},{"$f":"Import!E23804","v":0},{"$f":"Import!E24004","v":0}]
[93,{"$f":"Import!E23005","v":"Select"},{"$f":"Import!E23205","v":"Select"},{"$f":"Import!E23405","v":"Select"},{"$f":"Import!E23605","v":0},{"$f":"Import!E23805","v":0},{"$f":"Import!E24005","v":0}]
[94,{"$f":"Import!E23006","v":"Select"},{"$f":"Import!E23206","v":"Select"},{"$f":"Import!E23406","v":"Select"},{"$f":"Import!E23606","v":0},{"$f":"Import!E23806","v":0},{"$f":"Import!E24006","v":0}]
[95,{"$f":"Import!E23007","v":"Select"},{"$f":"Import!E23207","v":"Select"},{"$f":"Import!E23407","v":"Select"},{"$f":"Import!E23607","v":0},{"$f":"Import!E23807","v":0},{"$f":"Import!E24007","v":0}]
[96,{"$f":"Import!E23008","v":"Select"},{"$f":"Import!E23208","v":"Select"},{"$f":"Import!E23408","v":"Select"},{"$f":"Import!E23608","v":0},{"$f":"Import!E23808","v":0},{"$f":"Import!E24008","v":0}]
[97,{"$f":"Import!E23009","v":"Select"},{"$f":"Import!E23209","v":"Select"},{"$f":"Import!E23409","v":"Select"},{"$f":"Import!E23609","v":0},{"$f":"Import!E23809","v":0},{"$f":"Import!E24009","v":0}]
[98,{"$f":"Import!E23010","v":"Select"},{"$f":"Import!E23210","v":"Select"},{"$f":"Import!E23410","v":"Select"},{"$f":"Import!E23610","v":0},{"$f":"Import!E23810","v":0},{"$f":"Import!E24010","v":0}]
[99,{"$f":"Import!E23011","v":"Select"},{"$f":"Import!E23211","v":"Select"},{"$f":"Import!E23411","v":"Select"},{"$f":"Import!E23611","v":0},{"$f":"Import!E23811","v":0},{"$f":"Import!E24011","v":0}]
[100,{"$f":"Import!E23012","v":"Select"},{"$f":"Import!E23212","v":"Select"},{"$f":"Import!E23412","v":"Select"},{"$f":"Import!E23612","v":0},{"$f":"Import!E23812","v":0},{"$f":"Import!E24012","v":0}]
[101,{"$f":"Import!E23013","v":"Select"},{"$f":"Import!E23213","v":"Select"},{"$f":"Import!E23413","v":"Select"},{"$f":"Import!E23613","v":0},{"$f":"Import!E23813","v":0},{"$f":"Import!E24013","v":0}]
[102,{"$f":"Import!E23014","v":"Select"},{"$f":"Import!E23214","v":"Select"},{"$f":"Import!E23414","v":"Select"},{"$f":"Import!E23614","v":0},{"$f":"Import!E23814","v":0},{"$f":"Import!E24014","v":0}]
[103,{"$f":"Import!E23015","v":"Select"},{"$f":"Import!E23215","v":"Select"},{"$f":"Import!E23415","v":"Select"},{"$f":"Import!E23615","v":0},{"$f":"Import!E23815","v":0},{"$f":"Import!E24015","v":0}]
[104,{"$f":"Import!E23016","v":"Select"},{"$f":"Import!E23216","v":"Select"},{"$f":"Import!E23416","v":"Select"},{"$f":"Import!E23616","v":0},{"$f":"Import!E23816","v":0},{"$f":"Import!E24016","v":0}]
[105,{"$f":"Import!E23017","v":"Select"},{"$f":"Import!E23217","v":"Select"},{"$f":"Import!E23417","v":"Select"},{"$f":"Import!E23617","v":0},{"$f":"Import!E23817","v":0},{"$f":"Import!E24017","v":0}]
[106,{"$f":"Import!E23018","v":"Select"},{"$f":"Import!E23218","v":"Select"},{"$f":"Import!E23418","v":"Select"},{"$f":"Import!E23618","v":0},{"$f":"Import!E23818","v":0},{"$f":"Import!E24018","v":0}]
[107,{"$f":"Import!E23019","v":"Select"},{"$f":"Import!E23219","v":"Select"},{"$f":"Import!E23419","v":"Select"},{"$f":"Import!E23619","v":0},{"$f":"Import!E23819","v":0},{"$f":"Import!E24019","v":0}]
[108,{"$f":"Import!E23020","v":"Select"},{"$f":"Import!E23220","v":"Select"},{"$f":"Import!E23420","v":"Select"},{"$f":"Import!E23620","v":0},{"$f":"Import!E23820","v":0},{"$f":"Import!E24020","v":0}]
[109,{"$f":"Import!E23021","v":"Select"},{"$f":"Import!E23221","v":"Select"},{"$f":"Import!E23421","v":"Select"},{"$f":"Import!E23621","v":0},{"$f":"Import!E23821","v":0},{"$f":"Import!E24021","v":0}]
[110,{"$f":"Import!E23022","v":"Select"},{"$f":"Import!E23222","v":"Select"},{"$f":"Import!E23422","v":"Select"},{"$f":"Import!E23622","v":0},{"$f":"Import!E23822","v":0},{"$f":"Import!E24022","v":0}]
[111,{"$f":"Import!E23023","v":"Select"},{"$f":"Import!E23223","v":"Select"},{"$f":"Import!E23423","v":"Select"},{"$f":"Import!E23623","v":0},{"$f":"Import!E23823","v":0},{"$f":"Import!E24023","v":0}]
[112,{"$f":"Import!E23024","v":"Select"},{"$f":"Import!E23224","v":"Select"},{"$f":"Import!E23424","v":"Select"},{"$f":"Import!E23624","v":0},{"$f":"Import!E23824","v":0},{"$f":"Import!E24024","v":0}]
[113,{"$f":"Import!E23025","v":"Select"},{"$f":"Import!E23225","v":"Select"},{"$f":"Import!E23425","v":"Select"},{"$f":"Import!E23625","v":0},{"$f":"Import!E23825","v":0},{"$f":"Import!E24025","v":0}]
[114,{"$f":"Import!E23026","v":"Select"},{"$f":"Import!E23226","v":"Select"},{"$f":"Import!E23426","v":"Select"},{"$f":"Import!E23626","v":0},{"$f":"Import!E23826","v":0},{"$f":"Import!E24026","v":0}]
[115,{"$f":"Import!E23027","v":"Select"},{"$f":"Import!E23227","v":"Select"},{"$f":"Import!E23427","v":"Select"},{"$f":"Import!E23627","v":0},{"$f":"Import!E23827","v":0},{"$f":"Import!E24027","v":0}]
[116,{"$f":"Import!E23028","v":"Select"},{"$f":"Import!E23228","v":"Select"},{"$f":"Import!E23428","v":"Select"},{"$f":"Import!E23628","v":0},{"$f":"Import!E23828","v":0},{"$f":"Import!E24028","v":0}]
[117,{"$f":"Import!E23029","v":"Select"},{"$f":"Import!E23229","v":"Select"},{"$f":"Import!E23429","v":"Select"},{"$f":"Import!E23629","v":0},{"$f":"Import!E23829","v":0},{"$f":"Import!E24029","v":0}]
[118,{"$f":"Import!E23030","v":"Select"},{"$f":"Import!E23230","v":"Select"},{"$f":"Import!E23430","v":"Select"},{"$f":"Import!E23630","v":0},{"$f":"Import!E23830","v":0},{"$f":"Import!E24030","v":0}]
[119,{"$f":"Import!E23031","v":"Select"},{"$f":"Import!E23231","v":"Select"},{"$f":"Import!E23431","v":"Select"},{"$f":"Import!E23631","v":0},{"$f":"Import!E23831","v":0},{"$f":"Import!E24031","v":0}]
[120,{"$f":"Import!E23032","v":"Select"},{"$f":"Import!E23232","v":"Select"},{"$f":"Import!E23432","v":"Select"},{"$f":"Import!E23632","v":0},{"$f":"Import!E23832","v":0},{"$f":"Import!E24032","v":0}]
[121,{"$f":"Import!E23033","v":"Select"},{"$f":"Import!E23233","v":"Select"},{"$f":"Import!E23433","v":"Select"},{"$f":"Import!E23633","v":0},{"$f":"Import!E23833","v":0},{"$f":"Import!E24033","v":0}]
[122,{"$f":"Import!E23034","v":"Select"},{"$f":"Import!E23234","v":"Select"},{"$f":"Import!E23434","v":"Select"},{"$f":"Import!E23634","v":0},{"$f":"Import!E23834","v":0},{"$f":"Import!E24034","v":0}]
[123,{"$f":"Import!E23035","v":"Select"},{"$f":"Import!E23235","v":"Select"},{"$f":"Import!E23435","v":"Select"},{"$f":"Import!E23635","v":0},{"$f":"Import!E23835","v":0},{"$f":"Import!E24035","v":0}]
[124,{"$f":"Import!E23036","v":"Select"},{"$f":"Import!E23236","v":"Select"},{"$f":"Import!E23436","v":"Select"},{"$f":"Import!E23636","v":0},{"$f":"Import!E23836","v":0},{"$f":"Import!E24036","v":0}]
[125,{"$f":"Import!E23037","v":"Select"},{"$f":"Import!E23237","v":"Select"},{"$f":"Import!E23437","v":"Select"},{"$f":"Import!E23637","v":0},{"$f":"Import!E23837","v":0},{"$f":"Import!E24037","v":0}]
[126,{"$f":"Import!E23038","v":"Select"},{"$f":"Import!E23238","v":"Select"},{"$f":"Import!E23438","v":"Select"},{"$f":"Import!E23638","v":0},{"$f":"Import!E23838","v":0},{"$f":"Import!E24038","v":0}]
[127,{"$f":"Import!E23039","v":"Select"},{"$f":"Import!E23239","v":"Select"},{"$f":"Import!E23439","v":"Select"},{"$f":"Import!E23639","v":0},{"$f":"Import!E23839","v":0},{"$f":"Import!E24039","v":0}]
[128,{"$f":"Import!E23040","v":"Select"},{"$f":"Import!E23240","v":"Select"},{"$f":"Import!E23440","v":"Select"},{"$f":"Import!E23640","v":0},{"$f":"Import!E23840","v":0},{"$f":"Import!E24040","v":0}]
[129,{"$f":"Import!E23041","v":"Select"},{"$f":"Import!E23241","v":"Select"},{"$f":"Import!E23441","v":"Select"},{"$f":"Import!E23641","v":0},{"$f":"Import!E23841","v":0},{"$f":"Import!E24041","v":0}]
[130,{"$f":"Import!E23042","v":"Select"},{"$f":"Import!E23242","v":"Select"},{"$f":"Import!E23442","v":"Select"},{"$f":"Import!E23642","v":0},{"$f":"Import!E23842","v":0},{"$f":"Import!E24042","v":0}]
[{"$f":"A1925+1","v":131},{"$f":"Import!E23043","v":"Select"},{"$f":"Import!E23243","v":"Select"},{"$f":"Import!E23443","v":"Select"},{"$f":"Import!E23643","v":0},{"$f":"Import!E23843","v":0},{"$f":"Import!E24043","v":0}]
[132,{"$f":"Import!E23044","v":"Select"},{"$f":"Import!E23244","v":"Select"},{"$f":"Import!E23444","v":"Select"},{"$f":"Import!E23644","v":0},{"$f":"Import!E23844","v":0},{"$f":"Import!E24044","v":0}]
[133,{"$f":"Import!E23045","v":"Select"},{"$f":"Import!E23245","v":"Select"},{"$f":"Import!E23445","v":"Select"},{"$f":"Import!E23645","v":0},{"$f":"Import!E23845","v":0},{"$f":"Import!E24045","v":0}]
[134,{"$f":"Import!E23046","v":"Select"},{"$f":"Import!E23246","v":"Select"},{"$f":"Import!E23446","v":"Select"},{"$f":"Import!E23646","v":0},{"$f":"Import!E23846","v":0},{"$f":"Import!E24046","v":0}]
[135,{"$f":"Import!E23047","v":"Select"},{"$f":"Import!E23247","v":"Select"},{"$f":"Import!E23447","v":"Select"},{"$f":"Import!E23647","v":0},{"$f":"Import!E23847","v":0},{"$f":"Import!E24047","v":0}]
[136,{"$f":"Import!E23048","v":"Select"},{"$f":"Import!E23248","v":"Select"},{"$f":"Import!E23448","v":"Select"},{"$f":"Import!E23648","v":0},{"$f":"Import!E23848","v":0},{"$f":"Import!E24048","v":0}]
[137,{"$f":"Import!E23049","v":"Select"},{"$f":"Import!E23249","v":"Select"},{"$f":"Import!E23449","v":"Select"},{"$f":"Import!E23649","v":0},{"$f":"Import!E23849","v":0},{"$f":"Import!E24049","v":0}]
[138,{"$f":"Import!E23050","v":"Select"},{"$f":"Import!E23250","v":"Select"},{"$f":"Import!E23450","v":"Select"},{"$f":"Import!E23650","v":0},{"$f":"Import!E23850","v":0},{"$f":"Import!E24050","v":0}]
[139,{"$f":"Import!E23051","v":"Select"},{"$f":"Import!E23251","v":"Select"},{"$f":"Import!E23451","v":"Select"},{"$f":"Import!E23651","v":0},{"$f":"Import!E23851","v":0},{"$f":"Import!E24051","v":0}]
[140,{"$f":"Import!E23052","v":"Select"},{"$f":"Import!E23252","v":"Select"},{"$f":"Import!E23452","v":"Select"},{"$f":"Import!E23652","v":0},{"$f":"Import!E23852","v":0},{"$f":"Import!E24052","v":0}]
[141,{"$f":"Import!E23053","v":"Select"},{"$f":"Import!E23253","v":"Select"},{"$f":"Import!E23453","v":"Select"},{"$f":"Import!E23653","v":0},{"$f":"Import!E23853","v":0},{"$f":"Import!E24053","v":0}]
[142,{"$f":"Import!E23054","v":"Select"},{"$f":"Import!E23254","v":"Select"},{"$f":"Import!E23454","v":"Select"},{"$f":"Import!E23654","v":0},{"$f":"Import!E23854","v":0},{"$f":"Import!E24054","v":0}]
[143,{"$f":"Import!E23055","v":"Select"},{"$f":"Import!E23255","v":"Select"},{"$f":"Import!E23455","v":"Select"},{"$f":"Import!E23655","v":0},{"$f":"Import!E23855","v":0},{"$f":"Import!E24055","v":0}]
[144,{"$f":"Import!E23056","v":"Select"},{"$f":"Import!E23256","v":"Select"},{"$f":"Import!E23456","v":"Select"},{"$f":"Import!E23656","v":0},{"$f":"Import!E23856","v":0},{"$f":"Import!E24056","v":0}]
[145,{"$f":"Import!E23057","v":"Select"},{"$f":"Import!E23257","v":"Select"},{"$f":"Import!E23457","v":"Select"},{"$f":"Import!E23657","v":0},{"$f":"Import!E23857","v":0},{"$f":"Import!E24057","v":0}]
[146,{"$f":"Import!E23058","v":"Select"},{"$f":"Import!E23258","v":"Select"},{"$f":"Import!E23458","v":"Select"},{"$f":"Import!E23658","v":0},{"$f":"Import!E23858","v":0},{"$f":"Import!E24058","v":0}]
[147,{"$f":"Import!E23059","v":"Select"},{"$f":"Import!E23259","v":"Select"},{"$f":"Import!E23459","v":"Select"},{"$f":"Import!E23659","v":0},{"$f":"Import!E23859","v":0},{"$f":"Import!E24059","v":0}]
[148,{"$f":"Import!E23060","v":"Select"},{"$f":"Import!E23260","v":"Select"},{"$f":"Import!E23460","v":"Select"},{"$f":"Import!E23660","v":0},{"$f":"Import!E23860","v":0},{"$f":"Import!E24060","v":0}]
[149,{"$f":"Import!E23061","v":"Select"},{"$f":"Import!E23261","v":"Select"},{"$f":"Import!E23461","v":"Select"},{"$f":"Import!E23661","v":0},{"$f":"Import!E23861","v":0},{"$f":"Import!E24061","v":0}]
[150,{"$f":"Import!E23062","v":"Select"},{"$f":"Import!E23262","v":"Select"},{"$f":"Import!E23462","v":"Select"},{"$f":"Import!E23662","v":0},{"$f":"Import!E23862","v":0},{"$f":"Import!E24062","v":0}]
[151,{"$f":"Import!E23063","v":"Select"},{"$f":"Import!E23263","v":"Select"},{"$f":"Import!E23463","v":"Select"},{"$f":"Import!E23663","v":0},{"$f":"Import!E23863","v":0},{"$f":"Import!E24063","v":0}]
[152,{"$f":"Import!E23064","v":"Select"},{"$f":"Import!E23264","v":"Select"},{"$f":"Import!E23464","v":"Select"},{"$f":"Import!E23664","v":0},{"$f":"Import!E23864","v":0},{"$f":"Import!E24064","v":0}]
[153,{"$f":"Import!E23065","v":"Select"},{"$f":"Import!E23265","v":"Select"},{"$f":"Import!E23465","v":"Select"},{"$f":"Import!E23665","v":0},{"$f":"Import!E23865","v":0},{"$f":"Import!E24065","v":0}]
[154,{"$f":"Import!E23066","v":"Select"},{"$f":"Import!E23266","v":"Select"},{"$f":"Import!E23466","v":"Select"},{"$f":"Import!E23666","v":0},{"$f":"Import!E23866","v":0},{"$f":"Import!E24066","v":0}]
[155,{"$f":"Import!E23067","v":"Select"},{"$f":"Import!E23267","v":"Select"},{"$f":"Import!E23467","v":"Select"},{"$f":"Import!E23667","v":0},{"$f":"Import!E23867","v":0},{"$f":"Import!E24067","v":0}]
[156,{"$f":"Import!E23068","v":"Select"},{"$f":"Import!E23268","v":"Select"},{"$f":"Import!E23468","v":"Select"},{"$f":"Import!E23668","v":0},{"$f":"Import!E23868","v":0},{"$f":"Import!E24068","v":0}]
[157,{"$f":"Import!E23069","v":"Select"},{"$f":"Import!E23269","v":"Select"},{"$f":"Import!E23469","v":"Select"},{"$f":"Import!E23669","v":0},{"$f":"Import!E23869","v":0},{"$f":"Import!E24069","v":0}]
[158,{"$f":"Import!E23070","v":"Select"},{"$f":"Import!E23270","v":"Select"},{"$f":"Import!E23470","v":"Select"},{"$f":"Import!E23670","v":0},{"$f":"Import!E23870","v":0},{"$f":"Import!E24070","v":0}]
[159,{"$f":"Import!E23071","v":"Select"},{"$f":"Import!E23271","v":"Select"},{"$f":"Import!E23471","v":"Select"},{"$f":"Import!E23671","v":0},{"$f":"Import!E23871","v":0},{"$f":"Import!E24071","v":0}]
[160,{"$f":"Import!E23072","v":"Select"},{"$f":"Import!E23272","v":"Select"},{"$f":"Import!E23472","v":"Select"},{"$f":"Import!E23672","v":0},{"$f":"Import!E23872","v":0},{"$f":"Import!E24072","v":0}]
[161,{"$f":"Import!E23073","v":"Select"},{"$f":"Import!E23273","v":"Select"},{"$f":"Import!E23473","v":"Select"},{"$f":"Import!E23673","v":0},{"$f":"Import!E23873","v":0},{"$f":"Import!E24073","v":0}]
[162,{"$f":"Import!E23074","v":"Select"},{"$f":"Import!E23274","v":"Select"},{"$f":"Import!E23474","v":"Select"},{"$f":"Import!E23674","v":0},{"$f":"Import!E23874","v":0},{"$f":"Import!E24074","v":0}]
[163,{"$f":"Import!E23075","v":"Select"},{"$f":"Import!E23275","v":"Select"},{"$f":"Import!E23475","v":"Select"},{"$f":"Import!E23675","v":0},{"$f":"Import!E23875","v":0},{"$f":"Import!E24075","v":0}]
[164,{"$f":"Import!E23076","v":"Select"},{"$f":"Import!E23276","v":"Select"},{"$f":"Import!E23476","v":"Select"},{"$f":"Import!E23676","v":0},{"$f":"Import!E23876","v":0},{"$f":"Import!E24076","v":0}]
[165,{"$f":"Import!E23077","v":"Select"},{"$f":"Import!E23277","v":"Select"},{"$f":"Import!E23477","v":"Select"},{"$f":"Import!E23677","v":0},{"$f":"Import!E23877","v":0},{"$f":"Import!E24077","v":0}]
[166,{"$f":"Import!E23078","v":"Select"},{"$f":"Import!E23278","v":"Select"},{"$f":"Import!E23478","v":"Select"},{"$f":"Import!E23678","v":0},{"$f":"Import!E23878","v":0},{"$f":"Import!E24078","v":0}]
[167,{"$f":"Import!E23079","v":"Select"},{"$f":"Import!E23279","v":"Select"},{"$f":"Import!E23479","v":"Select"},{"$f":"Import!E23679","v":0},{"$f":"Import!E23879","v":0},{"$f":"Import!E24079","v":0}]
[168,{"$f":"Import!E23080","v":"Select"},{"$f":"Import!E23280","v":"Select"},{"$f":"Import!E23480","v":"Select"},{"$f":"Import!E23680","v":0},{"$f":"Import!E23880","v":0},{"$f":"Import!E24080","v":0}]
[169,{"$f":"Import!E23081","v":"Select"},{"$f":"Import!E23281","v":"Select"},{"$f":"Import!E23481","v":"Select"},{"$f":"Import!E23681","v":0},{"$f":"Import!E23881","v":0},{"$f":"Import!E24081","v":0}]
[170,{"$f":"Import!E23082","v":"Select"},{"$f":"Import!E23282","v":"Select"},{"$f":"Import!E23482","v":"Select"},{"$f":"Import!E23682","v":0},{"$f":"Import!E23882","v":0},{"$f":"Import!E24082","v":0}]
[171,{"$f":"Import!E23083","v":"Select"},{"$f":"Import!E23283","v":"Select"},{"$f":"Import!E23483","v":"Select"},{"$f":"Import!E23683","v":0},{"$f":"Import!E23883","v":0},{"$f":"Import!E24083","v":0}]
[172,{"$f":"Import!E23084","v":"Select"},{"$f":"Import!E23284","v":"Select"},{"$f":"Import!E23484","v":"Select"},{"$f":"Import!E23684","v":0},{"$f":"Import!E23884","v":0},{"$f":"Import!E24084","v":0}]
[173,{"$f":"Import!E23085","v":"Select"},{"$f":"Import!E23285","v":"Select"},{"$f":"Import!E23485","v":"Select"},{"$f":"Import!E23685","v":0},{"$f":"Import!E23885","v":0},{"$f":"Import!E24085","v":0}]
[174,{"$f":"Import!E23086","v":"Select"},{"$f":"Import!E23286","v":"Select"},{"$f":"Import!E23486","v":"Select"},{"$f":"Import!E23686","v":0},{"$f":"Import!E23886","v":0},{"$f":"Import!E24086","v":0}]
[175,{"$f":"Import!E23087","v":"Select"},{"$f":"Import!E23287","v":"Select"},{"$f":"Import!E23487","v":"Select"},{"$f":"Import!E23687","v":0},{"$f":"Import!E23887","v":0},{"$f":"Import!E24087","v":0}]
[176,{"$f":"Import!E23088","v":"Select"},{"$f":"Import!E23288","v":"Select"},{"$f":"Import!E23488","v":"Select"},{"$f":"Import!E23688","v":0},{"$f":"Import!E23888","v":0},{"$f":"Import!E24088","v":0}]
[177,{"$f":"Import!E23089","v":"Select"},{"$f":"Import!E23289","v":"Select"},{"$f":"Import!E23489","v":"Select"},{"$f":"Import!E23689","v":0},{"$f":"Import!E23889","v":0},{"$f":"Import!E24089","v":0}]
[178,{"$f":"Import!E23090","v":"Select"},{"$f":"Import!E23290","v":"Select"},{"$f":"Import!E23490","v":"Select"},{"$f":"Import!E23690","v":0},{"$f":"Import!E23890","v":0},{"$f":"Import!E24090","v":0}]
[179,{"$f":"Import!E23091","v":"Select"},{"$f":"Import!E23291","v":"Select"},{"$f":"Import!E23491","v":"Select"},{"$f":"Import!E23691","v":0},{"$f":"Import!E23891","v":0},{"$f":"Import!E24091","v":0}]
[180,{"$f":"Import!E23092","v":"Select"},{"$f":"Import!E23292","v":"Select"},{"$f":"Import!E23492","v":"Select"},{"$f":"Import!E23692","v":0},{"$f":"Import!E23892","v":0},{"$f":"Import!E24092","v":0}]
[181,{"$f":"Import!E23093","v":"Select"},{"$f":"Import!E23293","v":"Select"},{"$f":"Import!E23493","v":"Select"},{"$f":"Import!E23693","v":0},{"$f":"Import!E23893","v":0},{"$f":"Import!E24093","v":0}]
[182,{"$f":"Import!E23094","v":"Select"},{"$f":"Import!E23294","v":"Select"},{"$f":"Import!E23494","v":"Select"},{"$f":"Import!E23694","v":0},{"$f":"Import!E23894","v":0},{"$f":"Import!E24094","v":0}]
[183,{"$f":"Import!E23095","v":"Select"},{"$f":"Import!E23295","v":"Select"},{"$f":"Import!E23495","v":"Select"},{"$f":"Import!E23695","v":0},{"$f":"Import!E23895","v":0},{"$f":"Import!E24095","v":0}]
[184,{"$f":"Import!E23096","v":"Select"},{"$f":"Import!E23296","v":"Select"},{"$f":"Import!E23496","v":"Select"},{"$f":"Import!E23696","v":0},{"$f":"Import!E23896","v":0},{"$f":"Import!E24096","v":0}]
[185,{"$f":"Import!E23097","v":"Select"},{"$f":"Import!E23297","v":"Select"},{"$f":"Import!E23497","v":"Select"},{"$f":"Import!E23697","v":0},{"$f":"Import!E23897","v":0},{"$f":"Import!E24097","v":0}]
[186,{"$f":"Import!E23098","v":"Select"},{"$f":"Import!E23298","v":"Select"},{"$f":"Import!E23498","v":"Select"},{"$f":"Import!E23698","v":0},{"$f":"Import!E23898","v":0},{"$f":"Import!E24098","v":0}]
[187,{"$f":"Import!E23099","v":"Select"},{"$f":"Import!E23299","v":"Select"},{"$f":"Import!E23499","v":"Select"},{"$f":"Import!E23699","v":0},{"$f":"Import!E23899","v":0},{"$f":"Import!E24099","v":0}]
[188,{"$f":"Import!E23100","v":"Select"},{"$f":"Import!E23300","v":"Select"},{"$f":"Import!E23500","v":"Select"},{"$f":"Import!E23700","v":0},{"$f":"Import!E23900","v":0},{"$f":"Import!E24100","v":0}]
[189,{"$f":"Import!E23101","v":"Select"},{"$f":"Import!E23301","v":"Select"},{"$f":"Import!E23501","v":"Select"},{"$f":"Import!E23701","v":0},{"$f":"Import!E23901","v":0},{"$f":"Import!E24101","v":0}]
[190,{"$f":"Import!E23102","v":"Select"},{"$f":"Import!E23302","v":"Select"},{"$f":"Import!E23502","v":"Select"},{"$f":"Import!E23702","v":0},{"$f":"Import!E23902","v":0},{"$f":"Import!E24102","v":0}]
[191,{"$f":"Import!E23103","v":"Select"},{"$f":"Import!E23303","v":"Select"},{"$f":"Import!E23503","v":"Select"},{"$f":"Import!E23703","v":0},{"$f":"Import!E23903","v":0},{"$f":"Import!E24103","v":0}]
[192,{"$f":"Import!E23104","v":"Select"},{"$f":"Import!E23304","v":"Select"},{"$f":"Import!E23504","v":"Select"},{"$f":"Import!E23704","v":0},{"$f":"Import!E23904","v":0},{"$f":"Import!E24104","v":0}]
[193,{"$f":"Import!E23105","v":"Select"},{"$f":"Import!E23305","v":"Select"},{"$f":"Import!E23505","v":"Select"},{"$f":"Import!E23705","v":0},{"$f":"Import!E23905","v":0},{"$f":"Import!E24105","v":0}]
[194,{"$f":"Import!E23106","v":"Select"},{"$f":"Import!E23306","v":"Select"},{"$f":"Import!E23506","v":"Select"},{"$f":"Import!E23706","v":0},{"$f":"Import!E23906","v":0},{"$f":"Import!E24106","v":0}]
[{"$f":"A1989+1","v":195},{"$f":"Import!E23107","v":"Select"},{"$f":"Import!E23307","v":"Select"},{"$f":"Import!E23507","v":"Select"},{"$f":"Import!E23707","v":0},{"$f":"Import!E23907","v":0},{"$f":"Import!E24107","v":0}]
[196,{"$f":"Import!E23108","v":"Select"},{"$f":"Import!E23308","v":"Select"},{"$f":"Import!E23508","v":"Select"},{"$f":"Import!E23708","v":0},{"$f":"Import!E23908","v":0},{"$f":"Import!E24108","v":0}]
[197,{"$f":"Import!E23109","v":"Select"},{"$f":"Import!E23309","v":"Select"},{"$f":"Import!E23509","v":"Select"},{"$f":"Import!E23709","v":0},{"$f":"Import!E23909","v":0},{"$f":"Import!E24109","v":0}]
[198,{"$f":"Import!E23110","v":"Select"},{"$f":"Import!E23310","v":"Select"},{"$f":"Import!E23510","v":"Select"},{"$f":"Import!E23710","v":0},{"$f":"Import!E23910","v":0},{"$f":"Import!E24110","v":0}]
[199,{"$f":"Import!E23111","v":"Select"},{"$f":"Import!E23311","v":"Select"},{"$f":"Import!E23511","v":"Select"},{"$f":"Import!E23711","v":0},{"$f":"Import!E23911","v":0},{"$f":"Import!E24111","v":0}]
[200,{"$f":"Import!E23112","v":"Select"},{"$f":"Import!E23312","v":"Select"},{"$f":"Import!E23512","v":"Select"},{"$f":"Import!E23712","v":0},{"$f":"Import!E23912","v":0},{"$f":"Import!E24112","v":0}]
[]
[null,"Total Other Assets",null,null,null,{"$f":"SUM(F1796:F1995)","v":0}]
[]
[]
[null,"TOTAL ASSETS (Schedules VI and VIA)",null,null,null,{"$f":"F212+F620+F986+G1094+F1230+E1338+G1446+G1554+I1761+F1997+'Schedule VIA'!F2000","v":0}]
[]
[null,{"$f":"IF('Company Information'!$C$2=\"IFRS\",\"TOTAL ASSETS (Form 1ASFS Line 15)\",\"TOTAL ASSETS (Form 1SFS Line 15)\")","v":"TOTAL ASSETS (Form 1SFS Line 15)"},null,null,null,{"$f":"IF('Company Information'!$C$2=\"IFRS\",\nIF('Company Information'!$B$2=\"UNCONSOLIDATED BSCR MODEL\",'Form 1ASFS'!M88,'Form 1ASFS'!E88+'Form 1ASFS'!I88),\nIF('Company Information'!$B$2=\"UNCONSOLIDATED BSCR MODEL\",'Form 1SFS'!M100,'Form 1SFS'!E100+'Form 1SFS'!I100))","v":0}]
[]
[null,{"$f":"IF('Company Information'!$C$2=\"IFRS\",\"Check Form 1ASFS\",\"Check Form 1SFS\")","v":"Check Form 1SFS"},null,null,null,{"$f":"IF(F2006=0,\"TRUE\",\"FALSE\")","v":"TRUE"}]
[]
[null,"Difference",null,null,null,{"$f":"ROUND(F2002-F2000,0)","v":0}]
[]
[null,"(L) INFORMATION ON SECURITIES LENDING AND REPURCHASE TRANSACTIONS"]
[]
[null,null,{"$f":"YEAR($C$3)","v":2023}]
[null,null,"Notional Value","Fair Value",null,"Comments"]
[null,"Securities Lending transactions",{"$f":"Import!E24113","v":0},{"$f":"Import!E24115","v":0},null,{"$f":"Import!E24117","v":0}]
[null,"Repo / Reverse Repo transactions",{"$f":"Import!E24114","v":0},{"$f":"Import!E24116","v":0},null,{"$f":"Import!E24118","v":0}]
[]
[null,"Total",{"$f":"SUM(C2012:C2013)","v":0},{"$f":"SUM(D2012:D2013)","v":0}]
[]
[null,"(M) INFORMATION ON FAIR VALUATION HIERARCHY"]
[]
[null,null,{"$f":"YEAR($C$3)","v":2023},"Fair Value"]
[null,null,"Unaffiliated","Affiliated","Total","Comments"]
[null,"Level 1 Assets (according to Fair Value hierarchy)",{"$f":"Import!E24119","v":0},{"$f":"Import!E24122","v":0},{"$f":"SUM(C2021:D2021)","v":0},{"$f":"Import!E24125","v":0}]
[null,"Level 2 Assets (according to Fair Value hierarchy)",{"$f":"Import!E24120","v":0},{"$f":"Import!E24123","v":0},{"$f":"SUM(C2022:D2022)","v":0},{"$f":"Import!E24126","v":0}]
[null,"Level 3 Assets (according to Fair Value hierarchy)",{"$f":"Import!E24121","v":0},{"$f":"Import!E24124","v":0},{"$f":"SUM(C2023:D2023)","v":0},{"$f":"Import!E24127","v":0}]
[]
[null,"Total",{"$f":"SUM(C2021:C2023)","v":0},{"$f":"SUM(D2021:D2023)","v":0},{"$f":"SUM(E2021:E2023)","v":0}]
[]
[null,"Check Securities Allocated by Levels 1-3",null,null,{"$f":"F212+F620+F986+G1094+F1230+E1338+G1446+G1554","v":0}]
[]
[null,"Difference",null,null,{"$f":"ROUND(E2025-E2027,0)","v":0},{"$f":"IF(E2029=0,\"TRUE\",\"FALSE\")","v":"TRUE"}]
[]
[null,"EFFECTIVE DURATION",null,null,{"$f":"Import!E24128","v":0}]
[]
[null,"EFFECTIVE CONVEXITY",null,null,{"$f":"Import!E24129","v":0}]
[]
[null,"Fair Values",{"$f":"YEAR(C3)","v":2023}]
[null,null,null,null,null,null,null,null,"If Other Rating Agency is used, specify the name of such agency (if applicable)",{"$f":"Import!E24130","v":0},{"$f":"Import!E24131","v":0},{"$f":"Import!E24132","v":0},{"$f":"Import!E24133","v":0}]
[null,"Asset/Rating Category","BSCR Rating","Moody's Investor's Service","Standard and Poor's","Dominion Bond Rating Service","Kroll Bond Rating Agency","Egan Jones Rating Company","Japan Credit Rating Agency","BMA-approved Internal Ratings","Other BMA-approved Rating Agency 1","Other BMA-approved Rating Agency 2","Other BMA-approved Rating Agency 3","Total"]
[null,"Financial institutions, brokers and dealers",1,{"$f":"Import!E24134","v":0},{"$f":"Import!E24175","v":0},{"$f":"Import!E24216","v":0},{"$f":"Import!E24257","v":0},{"$f":"Import!E24298","v":0},{"$f":"Import!E24339","v":0},{"$f":"Import!E24380","v":0},{"$f":"Import!E24421","v":0},{"$f":"Import!E24462","v":0},{"$f":"Import!E24503","v":0},{"$f":"SUM(D2038:M2038)","v":0}]
[null,"Financial institutions, brokers and dealers",2,{"$f":"Import!E24135","v":0},{"$f":"Import!E24176","v":0},{"$f":"Import!E24217","v":0},{"$f":"Import!E24258","v":0},{"$f":"Import!E24299","v":0},{"$f":"Import!E24340","v":0},{"$f":"Import!E24381","v":0},{"$f":"Import!E24422","v":0},{"$f":"Import!E24463","v":0},{"$f":"Import!E24504","v":0},{"$f":"SUM(D2039:M2039)","v":0}]
[null,"Financial institutions, brokers and dealers",3,{"$f":"Import!E24136","v":0},{"$f":"Import!E24177","v":0},{"$f":"Import!E24218","v":0},{"$f":"Import!E24259","v":0},{"$f":"Import!E24300","v":0},{"$f":"Import!E24341","v":0},{"$f":"Import!E24382","v":0},{"$f":"Import!E24423","v":0},{"$f":"Import!E24464","v":0},{"$f":"Import!E24505","v":0},0]
[null,"Financial institutions, brokers and dealers",4,{"$f":"Import!E24137","v":0},{"$f":"Import!E24178","v":0},{"$f":"Import!E24219","v":0},{"$f":"Import!E24260","v":0},{"$f":"Import!E24301","v":0},{"$f":"Import!E24342","v":0},{"$f":"Import!E24383","v":0},{"$f":"Import!E24424","v":0},{"$f":"Import!E24465","v":0},{"$f":"Import!E24506","v":0},0]
[null,"Financial institutions, brokers and dealers",5,{"$f":"Import!E24138","v":0},{"$f":"Import!E24179","v":0},{"$f":"Import!E24220","v":0},{"$f":"Import!E24261","v":0},{"$f":"Import!E24302","v":0},{"$f":"Import!E24343","v":0},{"$f":"Import!E24384","v":0},{"$f":"Import!E24425","v":0},{"$f":"Import!E24466","v":0},{"$f":"Import!E24507","v":0},0]
[null,"Financial institutions, brokers and dealers",6,{"$f":"Import!E24139","v":0},{"$f":"Import!E24180","v":0},{"$f":"Import!E24221","v":0},{"$f":"Import!E24262","v":0},{"$f":"Import!E24303","v":0},{"$f":"Import!E24344","v":0},{"$f":"Import!E24385","v":0},{"$f":"Import!E24426","v":0},{"$f":"Import!E24467","v":0},{"$f":"Import!E24508","v":0},0]
[null,"Financial institutions, brokers and dealers",7,{"$f":"Import!E24140","v":0},{"$f":"Import!E24181","v":0},{"$f":"Import!E24222","v":0},{"$f":"Import!E24263","v":0},{"$f":"Import!E24304","v":0},{"$f":"Import!E24345","v":0},{"$f":"Import!E24386","v":0},{"$f":"Import!E24427","v":0},{"$f":"Import!E24468","v":0},{"$f":"Import!E24509","v":0},0]
[null,"Financial institutions, brokers and dealers",8,{"$f":"Import!E24141","v":0},{"$f":"Import!E24182","v":0},{"$f":"Import!E24223","v":0},{"$f":"Import!E24264","v":0},{"$f":"Import!E24305","v":0},{"$f":"Import!E24346","v":0},{"$f":"Import!E24387","v":0},{"$f":"Import!E24428","v":0},{"$f":"Import!E24469","v":0},{"$f":"Import!E24510","v":0},0]
[null,"Insurance companies",1,{"$f":"Import!E24142","v":0},{"$f":"Import!E24183","v":0},{"$f":"Import!E24224","v":0},{"$f":"Import!E24265","v":0},{"$f":"Import!E24306","v":0},{"$f":"Import!E24347","v":0},{"$f":"Import!E24388","v":0},{"$f":"Import!E24429","v":0},{"$f":"Import!E24470","v":0},{"$f":"Import!E24511","v":0},0]
[null,"Insurance companies",2,{"$f":"Import!E24143","v":0},{"$f":"Import!E24184","v":0},{"$f":"Import!E24225","v":0},{"$f":"Import!E24266","v":0},{"$f":"Import!E24307","v":0},{"$f":"Import!E24348","v":0},{"$f":"Import!E24389","v":0},{"$f":"Import!E24430","v":0},{"$f":"Import!E24471","v":0},{"$f":"Import!E24512","v":0},0]
[null,"Insurance companies",3,{"$f":"Import!E24144","v":0},{"$f":"Import!E24185","v":0},{"$f":"Import!E24226","v":0},{"$f":"Import!E24267","v":0},{"$f":"Import!E24308","v":0},{"$f":"Import!E24349","v":0},{"$f":"Import!E24390","v":0},{"$f":"Import!E24431","v":0},{"$f":"Import!E24472","v":0},{"$f":"Import!E24513","v":0},0]
[null,"Insurance companies",4,{"$f":"Import!E24145","v":0},{"$f":"Import!E24186","v":0},{"$f":"Import!E24227","v":0},{"$f":"Import!E24268","v":0},{"$f":"Import!E24309","v":0},{"$f":"Import!E24350","v":0},{"$f":"Import!E24391","v":0},{"$f":"Import!E24432","v":0},{"$f":"Import!E24473","v":0},{"$f":"Import!E24514","v":0},0]
[null,"Insurance companies",5,{"$f":"Import!E24146","v":0},{"$f":"Import!E24187","v":0},{"$f":"Import!E24228","v":0},{"$f":"Import!E24269","v":0},{"$f":"Import!E24310","v":0},{"$f":"Import!E24351","v":0},{"$f":"Import!E24392","v":0},{"$f":"Import!E24433","v":0},{"$f":"Import!E24474","v":0},{"$f":"Import!E24515","v":0},0]
[null,"Insurance companies",6,{"$f":"Import!E24147","v":0},{"$f":"Import!E24188","v":0},{"$f":"Import!E24229","v":0},{"$f":"Import!E24270","v":0},{"$f":"Import!E24311","v":0},{"$f":"Import!E24352","v":0},{"$f":"Import!E24393","v":0},{"$f":"Import!E24434","v":0},{"$f":"Import!E24475","v":0},{"$f":"Import!E24516","v":0},0]
[null,"Insurance companies",7,{"$f":"Import!E24148","v":0},{"$f":"Import!E24189","v":0},{"$f":"Import!E24230","v":0},{"$f":"Import!E24271","v":0},{"$f":"Import!E24312","v":0},{"$f":"Import!E24353","v":0},{"$f":"Import!E24394","v":0},{"$f":"Import!E24435","v":0},{"$f":"Import!E24476","v":0},{"$f":"Import!E24517","v":0},0]
[null,"Insurance companies",8,{"$f":"Import!E24149","v":0},{"$f":"Import!E24190","v":0},{"$f":"Import!E24231","v":0},{"$f":"Import!E24272","v":0},{"$f":"Import!E24313","v":0},{"$f":"Import!E24354","v":0},{"$f":"Import!E24395","v":0},{"$f":"Import!E24436","v":0},{"$f":"Import!E24477","v":0},{"$f":"Import!E24518","v":0},0]
[null,"Corporate issuers",1,{"$f":"Import!E24150","v":0},{"$f":"Import!E24191","v":0},{"$f":"Import!E24232","v":0},{"$f":"Import!E24273","v":0},{"$f":"Import!E24314","v":0},{"$f":"Import!E24355","v":0},{"$f":"Import!E24396","v":0},{"$f":"Import!E24437","v":0},{"$f":"Import!E24478","v":0},{"$f":"Import!E24519","v":0},0]
[null,"Corporate issuers",2,{"$f":"Import!E24151","v":0},{"$f":"Import!E24192","v":0},{"$f":"Import!E24233","v":0},{"$f":"Import!E24274","v":0},{"$f":"Import!E24315","v":0},{"$f":"Import!E24356","v":0},{"$f":"Import!E24397","v":0},{"$f":"Import!E24438","v":0},{"$f":"Import!E24479","v":0},{"$f":"Import!E24520","v":0},0]
[null,"Corporate issuers",3,{"$f":"Import!E24152","v":0},{"$f":"Import!E24193","v":0},{"$f":"Import!E24234","v":0},{"$f":"Import!E24275","v":0},{"$f":"Import!E24316","v":0},{"$f":"Import!E24357","v":0},{"$f":"Import!E24398","v":0},{"$f":"Import!E24439","v":0},{"$f":"Import!E24480","v":0},{"$f":"Import!E24521","v":0},0]
[null,"Corporate issuers",4,{"$f":"Import!E24153","v":0},{"$f":"Import!E24194","v":0},{"$f":"Import!E24235","v":0},{"$f":"Import!E24276","v":0},{"$f":"Import!E24317","v":0},{"$f":"Import!E24358","v":0},{"$f":"Import!E24399","v":0},{"$f":"Import!E24440","v":0},{"$f":"Import!E24481","v":0},{"$f":"Import!E24522","v":0},0]
[null,"Corporate issuers",5,{"$f":"Import!E24154","v":0},{"$f":"Import!E24195","v":0},{"$f":"Import!E24236","v":0},{"$f":"Import!E24277","v":0},{"$f":"Import!E24318","v":0},{"$f":"Import!E24359","v":0},{"$f":"Import!E24400","v":0},{"$f":"Import!E24441","v":0},{"$f":"Import!E24482","v":0},{"$f":"Import!E24523","v":0},0]
[null,"Corporate issuers",6,{"$f":"Import!E24155","v":0},{"$f":"Import!E24196","v":0},{"$f":"Import!E24237","v":0},{"$f":"Import!E24278","v":0},{"$f":"Import!E24319","v":0},{"$f":"Import!E24360","v":0},{"$f":"Import!E24401","v":0},{"$f":"Import!E24442","v":0},{"$f":"Import!E24483","v":0},{"$f":"Import!E24524","v":0},0]
[null,"Corporate issuers",7,{"$f":"Import!E24156","v":0},{"$f":"Import!E24197","v":0},{"$f":"Import!E24238","v":0},{"$f":"Import!E24279","v":0},{"$f":"Import!E24320","v":0},{"$f":"Import!E24361","v":0},{"$f":"Import!E24402","v":0},{"$f":"Import!E24443","v":0},{"$f":"Import!E24484","v":0},{"$f":"Import!E24525","v":0},0]
[null,"Corporate issuers",8,{"$f":"Import!E24157","v":0},{"$f":"Import!E24198","v":0},{"$f":"Import!E24239","v":0},{"$f":"Import!E24280","v":0},{"$f":"Import!E24321","v":0},{"$f":"Import!E24362","v":0},{"$f":"Import!E24403","v":0},{"$f":"Import!E24444","v":0},{"$f":"Import!E24485","v":0},{"$f":"Import!E24526","v":0},0]
[null,"Issuers of asset-backed securities",1,{"$f":"Import!E24158","v":0},{"$f":"Import!E24199","v":0},{"$f":"Import!E24240","v":0},{"$f":"Import!E24281","v":0},{"$f":"Import!E24322","v":0},{"$f":"Import!E24363","v":0},{"$f":"Import!E24404","v":0},{"$f":"Import!E24445","v":0},{"$f":"Import!E24486","v":0},{"$f":"Import!E24527","v":0},0]
[null,"Issuers of asset-backed securities",2,{"$f":"Import!E24159","v":0},{"$f":"Import!E24200","v":0},{"$f":"Import!E24241","v":0},{"$f":"Import!E24282","v":0},{"$f":"Import!E24323","v":0},{"$f":"Import!E24364","v":0},{"$f":"Import!E24405","v":0},{"$f":"Import!E24446","v":0},{"$f":"Import!E24487","v":0},{"$f":"Import!E24528","v":0},0]
[null,"Issuers of asset-backed securities",3,{"$f":"Import!E24160","v":0},{"$f":"Import!E24201","v":0},{"$f":"Import!E24242","v":0},{"$f":"Import!E24283","v":0},{"$f":"Import!E24324","v":0},{"$f":"Import!E24365","v":0},{"$f":"Import!E24406","v":0},{"$f":"Import!E24447","v":0},{"$f":"Import!E24488","v":0},{"$f":"Import!E24529","v":0},0]
[null,"Issuers of asset-backed securities",4,{"$f":"Import!E24161","v":0},{"$f":"Import!E24202","v":0},{"$f":"Import!E24243","v":0},{"$f":"Import!E24284","v":0},{"$f":"Import!E24325","v":0},{"$f":"Import!E24366","v":0},{"$f":"Import!E24407","v":0},{"$f":"Import!E24448","v":0},{"$f":"Import!E24489","v":0},{"$f":"Import!E24530","v":0},0]
[null,"Issuers of asset-backed securities",5,{"$f":"Import!E24162","v":0},{"$f":"Import!E24203","v":0},{"$f":"Import!E24244","v":0},{"$f":"Import!E24285","v":0},{"$f":"Import!E24326","v":0},{"$f":"Import!E24367","v":0},{"$f":"Import!E24408","v":0},{"$f":"Import!E24449","v":0},{"$f":"Import!E24490","v":0},{"$f":"Import!E24531","v":0},0]
[null,"Issuers of asset-backed securities",6,{"$f":"Import!E24163","v":0},{"$f":"Import!E24204","v":0},{"$f":"Import!E24245","v":0},{"$f":"Import!E24286","v":0},{"$f":"Import!E24327","v":0},{"$f":"Import!E24368","v":0},{"$f":"Import!E24409","v":0},{"$f":"Import!E24450","v":0},{"$f":"Import!E24491","v":0},{"$f":"Import!E24532","v":0},0]
[null,"Issuers of asset-backed securities",7,{"$f":"Import!E24164","v":0},{"$f":"Import!E24205","v":0},{"$f":"Import!E24246","v":0},{"$f":"Import!E24287","v":0},{"$f":"Import!E24328","v":0},{"$f":"Import!E24369","v":0},{"$f":"Import!E24410","v":0},{"$f":"Import!E24451","v":0},{"$f":"Import!E24492","v":0},{"$f":"Import!E24533","v":0},0]
[null,"Issuers of asset-backed securities",8,{"$f":"Import!E24165","v":0},{"$f":"Import!E24206","v":0},{"$f":"Import!E24247","v":0},{"$f":"Import!E24288","v":0},{"$f":"Import!E24329","v":0},{"$f":"Import!E24370","v":0},{"$f":"Import!E24411","v":0},{"$f":"Import!E24452","v":0},{"$f":"Import!E24493","v":0},{"$f":"Import!E24534","v":0},0]
[null,"Government securities, municipal securities, foreign government securities",0,{"$f":"Import!E24166","v":0},{"$f":"Import!E24207","v":0},{"$f":"Import!E24248","v":0},{"$f":"Import!E24289","v":0},{"$f":"Import!E24330","v":0},{"$f":"Import!E24371","v":0},{"$f":"Import!E24412","v":0},{"$f":"Import!E24453","v":0},{"$f":"Import!E24494","v":0},{"$f":"Import!E24535","v":0},0]
[null,"Government securities, municipal securities, foreign government securities",1,{"$f":"Import!E24167","v":0},{"$f":"Import!E24208","v":0},{"$f":"Import!E24249","v":0},{"$f":"Import!E24290","v":0},{"$f":"Import!E24331","v":0},{"$f":"Import!E24372","v":0},{"$f":"Import!E24413","v":0},{"$f":"Import!E24454","v":0},{"$f":"Import!E24495","v":0},{"$f":"Import!E24536","v":0},0]
[null,"Government securities, municipal securities, foreign government securities",2,{"$f":"Import!E24168","v":0},{"$f":"Import!E24209","v":0},{"$f":"Import!E24250","v":0},{"$f":"Import!E24291","v":0},{"$f":"Import!E24332","v":0},{"$f":"Import!E24373","v":0},{"$f":"Import!E24414","v":0},{"$f":"Import!E24455","v":0},{"$f":"Import!E24496","v":0},{"$f":"Import!E24537","v":0},0]
[null,"Government securities, municipal securities, foreign government securities",3,{"$f":"Import!E24169","v":0},{"$f":"Import!E24210","v":0},{"$f":"Import!E24251","v":0},{"$f":"Import!E24292","v":0},{"$f":"Import!E24333","v":0},{"$f":"Import!E24374","v":0},{"$f":"Import!E24415","v":0},{"$f":"Import!E24456","v":0},{"$f":"Import!E24497","v":0},{"$f":"Import!E24538","v":0},0]
[null,"Government securities, municipal securities, foreign government securities",4,{"$f":"Import!E24170","v":0},{"$f":"Import!E24211","v":0},{"$f":"Import!E24252","v":0},{"$f":"Import!E24293","v":0},{"$f":"Import!E24334","v":0},{"$f":"Import!E24375","v":0},{"$f":"Import!E24416","v":0},{"$f":"Import!E24457","v":0},{"$f":"Import!E24498","v":0},{"$f":"Import!E24539","v":0},0]
[null,"Government securities, municipal securities, foreign government securities",5,{"$f":"Import!E24171","v":0},{"$f":"Import!E24212","v":0},{"$f":"Import!E24253","v":0},{"$f":"Import!E24294","v":0},{"$f":"Import!E24335","v":0},{"$f":"Import!E24376","v":0},{"$f":"Import!E24417","v":0},{"$f":"Import!E24458","v":0},{"$f":"Import!E24499","v":0},{"$f":"Import!E24540","v":0},0]
[null,"Government securities, municipal securities, foreign government securities",6,{"$f":"Import!E24172","v":0},{"$f":"Import!E24213","v":0},{"$f":"Import!E24254","v":0},{"$f":"Import!E24295","v":0},{"$f":"Import!E24336","v":0},{"$f":"Import!E24377","v":0},{"$f":"Import!E24418","v":0},{"$f":"Import!E24459","v":0},{"$f":"Import!E24500","v":0},{"$f":"Import!E24541","v":0},0]
[null,"Government securities, municipal securities, foreign government securities",7,{"$f":"Import!E24173","v":0},{"$f":"Import!E24214","v":0},{"$f":"Import!E24255","v":0},{"$f":"Import!E24296","v":0},{"$f":"Import!E24337","v":0},{"$f":"Import!E24378","v":0},{"$f":"Import!E24419","v":0},{"$f":"Import!E24460","v":0},{"$f":"Import!E24501","v":0},{"$f":"Import!E24542","v":0},0]
[null,"Government securities, municipal securities, foreign government securities",8,{"$f":"Import!E24174","v":0},{"$f":"Import!E24215","v":0},{"$f":"Import!E24256","v":0},{"$f":"Import!E24297","v":0},{"$f":"Import!E24338","v":0},{"$f":"Import!E24379","v":0},{"$f":"Import!E24420","v":0},{"$f":"Import!E24461","v":0},{"$f":"Import!E24502","v":0},{"$f":"Import!E24543","v":0},0]
[null,null,null,null,null,null,null,null,null,null,null,null,"Total",{"$f":"SUM(N2038:N2078)","v":0}]
[]
[null,"Total rated assets","BSCR Rating","Moody's Investor's Service","Standard and Poor's","Dominion Bond Rating Service","Kroll Bond Rating Agency","Egan Jones Rating Company","Japan Credit Rating Agency","BMA-approved Internal Ratings","Other BMA-approved Rating Agency 1","Other BMA-approved Rating Agency 2","Other BMA-approved Rating Agency 3","Total"]
[null,"Total rated assets",0,{"$f":"D2070","v":0},{"$f":"E2070","v":0},0,0,0,0,0,0,0,0,{"$f":"SUM(D2082:M2082)","v":0}]
[null,"Total rated assets",1,{"$f":"D2038+D2046+D2054+D2062+D2071","v":0},{"$f":"E2038+E2046+E2054+E2062+E2071","v":0},0,0,0,0,0,0,0,0,{"$f":"SUM(D2083:M2083)","v":0}]
[null,"Total rated assets",2,{"$f":"D2039+D2047+D2055+D2063+D2072","v":0},0,0,0,0,0,0,0,0,0,0]
[null,"Total rated assets",3,0,0,0,0,0,0,0,0,0,0,0]
[null,"Total rated assets",4,0,0,0,0,0,0,0,0,0,0,0]
[null,"Total rated assets",5,0,0,0,0,0,0,0,0,0,0,0]
[null,"Total rated assets",6,0,0,0,0,0,0,0,0,0,0,0]
[null,"Total rated assets",7,0,0,0,0,0,0,0,0,0,0,0]
[null,"Total rated assets",8,0,0,0,0,0,0,0,0,0,0,0]
[null,"Total rated assets","Total",{"$f":"SUM(D2082:D2090)","v":0},{"$f":"SUM(E2082:E2090)","v":0},0,0,0,0,0,0,0,0,0]
[]
[null,"Asset/Rating Category","BSCR Rating","Unrated"]
[null,"Financial institutions, brokers and dealers",8,{"$f":"Import!E24544","v":0}]
[null,"Insurance companies",8,{"$f":"Import!E24545","v":0}]
[null,"Corporate issuers",8,{"$f":"Import!E24546","v":0}]
[null,"Issuers of asset-backed securities",8,{"$f":"Import!E24547","v":0}]
[null,"Government securities, municipal securities, foreign government securities",8,{"$f":"Import!E24548","v":0}]
[null,"Total unrated assets","Total",{"$f":"SUM(D2094:D2098)","v":0}]
[]
[null,"Asset/Rating Category","BSCR Rating","Financial institutions, brokers and dealers","Insurance companies","Corporate issuers","Issuers of asset-backed securities","Government securities, municipal securities, foreign government securities","Total"]
[null,"Total",0,null,null,null,null,{"$f":"N2070","v":0},{"$f":"SUM(H2102)","v":0}]
[null,"Total",1,{"$f":"N2038","v":0},{"$f":"N2046","v":0},{"$f":"N2054","v":0},{"$f":"N2062","v":0},0,{"$f":"SUM(D2103:H2103)","v":0}]
[null,"Total",2,0,0,0,0,0,{"$f":"SUM(D2104:H2104)","v":0}]
[null,"Total",3,0,0,0,0,0,0]
[null,"Total",4,0,0,0,0,0,0]
[null,"Total",5,0,0,0,0,0,0]
[null,"Total",6,0,0,0,0,0,0]
[null,"Total",7,0,0,0,0,0,0]
[null,"Total",8,{"$f":"N2045+D2094","v":0},{"$f":"N2053+D2095","v":0},{"$f":"N2061+D2096","v":0},{"$f":"N2069+D2097","v":0},{"$f":"N2078+D2098","v":0},0]
[null,"Total fixed income assets","Total",{"$f":"SUM(D2103:D2110)","v":0},{"$f":"SUM(E2103:E2110)","v":0},{"$f":"SUM(F2103:F2110)","v":0},{"$f":"SUM(G2103:G2110)","v":0},{"$f":"SUM(H2102:H2110)","v":0},{"$f":"SUM(D2111:H2111)","v":0}]
[null,"Unrated","- of which unrated",{"$f":"D2094","v":0},{"$f":"D2095","v":0},{"$f":"D2096","v":0},{"$f":"D2097","v":0},{"$f":"D2098","v":0},{"$f":"SUM(D2112:H2112)","v":0}]
[]
[]
["Cash","Sovereign Bonds","RMBS - Agency","Listed Preferred Equity - Direct","Hedge Funds","Investment Income Due and Accrued","Energy","Holding Entity","Significant Influence","United States Dollars","Positive market value",null,null,null,null,"Residential Mortgages",null,"United States of America"]
["Certificates of Deposit","Municipals","RMBS - Non-agency","Listed Preferred Equity - ETF","Equity investments in Infrastructure","Accounts and Premiums Receivable","Materials","Operating Entity","Control","Euro","Negative market value",null,null,null,null,"Other Residential Loans",null,"Bermuda"]
["Short-Term Commercial Paper","Supranationals (multilateral development banks and international organizations)","CMBS","Listed Preferred Equity - Mutual Fund","Commodities - Direct","Reinsurance Balance Receivable","Industrial","Branch","Select","Afghanistan Afghanis","Select",null,null,null,null,"Commercial and Farm Mortgages",null,"United Kingdom of Great Britain and Northern Ireland"]
["Money Market Funds","Corporate bonds","CLOs","Private Preferred Equity - Direct","Commodities - ETF","Funds Held by Ceding Reinsurers","Consumer Discretionary","Select",null,"Albania Leke",null,null,null,null,null,"Other Commercial Real Estate Loans",null,"Canada"]
["Other","Private Placements","CDOs","Private Preferred Equity - Fund","Commodities - Mutual Funds","SAC - long-term business - variable annuities","Consumer Staples",null,null,"Armenia Drams",null,null,null,null,null,"Middle Market Loans"]
["Select","Other - Secured Bonds","Auto Loan ABS","Other - Listed Preferred Equity","Catastrophe Bonds","SAC - long-term business - others","Healthcare",null,null,"Netherlands Antilles Guilders",null,null,null,null,null,"Leveraged Loans",null,"Afghanistan"]
[null,"Other - Unsecured Bonds","Student Loan ABS","Other - Private Preferred Equity","Other Insurance-Linked Securities","SAC - general business","Financial",null,null,"Angola Kwanza",null,null,null,null,null,"Other Direct Private Lending",null,"Aland Islands"]
[null,"Exchange-Traded Fund - Sovereigns","Credit Card Receivable ABS","Select","Advances to Affiliates","Deposit assets","Select",null,null,"Argentina Pesos",null,null,null,null,null,"Infrastructure Loans",null,"Albania"]
[null,"Mutual Fund - Sovereigns","Other ABS",null,"Investments in Affiliates","Other Sundry Assets",null,null,null,"Australia Dollars",null,null,null,null,null,"Collateral Loans",null,"Algeria"]
[null,"Exchange-Traded Fund - Corporates","Select",null,"Other","Letter of Credit, Guarantees and Other Instruments",null,null,null,"Aruba Guilders",null,null,null,null,null,"Equity Release / Reverse Mortgages",null,"American Samoa"]
[null,"Mutual Fund - Corporates",null,null,"Select","Other",null,null,null,"Azerbaijan New Manats",null,null,null,null,null,"Policy Loans",null,"Andorra"]
[null,"Other Funds",null,null,null,"Select",null,null,null,"Bosnia and Herzegovina Convertible Marka",null,null,null,null,null,"Other Direct Loans",null,"Angola"]
[null,"Select",null,null,null,null,null,null,null,"Barbados Dollars",null,null,null,null,null,"Mortgage Loan Fund - Residential",null,"Anguilla"]
[null,null,null,null,null,null,null,null,null,"Bangladesh Taka",null,null,null,null,null,"Mortgage Loan Fund - Commercial",null,"Antigua and Barbuda"]
[null,null,null,null,null,null,null,null,null,"Bulgaria Leva",null,null,null,null,null,"Private Credit Fund",null,"Argentina"]
[null,null,null,null,null,null,null,null,null,"Bahrain Dinars",null,null,null,null,null,"Other Loan Fund",null,"Armenia"]
["Listed options","Equity","Hedging","Long / Receive Fixed / Sell Protection","Private Equities","Investment Income Due and Accrued","Direct Real Estate - Residential",null,null,"Burundi Francs",null,null,null,null,null,"Select",null,"Aruba"]
["Futures","Debt","Speculative","Short / Receive Floating / Buy Protection","Investment Funds","Accounts and Premiums Receivable","Direct Real Estate - Commercial",null,null,"Bermuda Dollars",null,null,null,null,null,null,null,"Australia"]
["Forwards","Interest Rate","Select","Select","Hedge Funds","Reinsurance Balance Receivable","Direct Real-Estate - Industrial",null,null,"Brunei Dollars",null,null,null,null,null,"Insured/Guaranteed Mortgages",null,"Austria"]
["Swaps","Inflation",null,null,"Private Credit Funds","SAC - long-term business - variable annuities","Direct Real Estate - Land",null,null,"Bolivia Bolivianos",null,null,null,null,null,"Other Commercial and Farm Mortgages",null,"Azerbaijan"]
["Swaptions","Credit",null,null,"Catastrophe Bonds","SAC - long-term business - others","Real Estate Funds - Residential",null,null,"Brazil Reais",null,null,null,null,null,"Other Residential Mortgages",null,"Bahamas"]
["OTC options","Currencies","Yes","Exchange-traded","Other Insurance-Linked Securities","SAC - general business","Real Estate Funds - Commercial",null,null,"Bahamas Dollars",null,null,null,null,null,"Mortgages Not In Good Standing",null,"Bahrain"]
["Other","Commodities","No","OTC – Centrally-cleared","Infrastructure Debt","Deposit assets","Real-Estate Funds - Industrial",null,null,"Bhutan Ngultrum",null,null,null,null,null,"Collateral Loans",null,"Bangladesh"]
["Select","Other","Select","OTC – Not centrally-cleared","Equity Investments in Infrastructure","Other Sundry Assets","Real Estate Funds - Land",null,null,"Botswana Pulas",null,null,null,null,null,"Middle Market Loans",null,"Barbados"]
[null,"Select",null,"Select","Other","Letter of Credit, Guarantees and Other Instruments","Direct Real Estate - Other",null,null,"Belarus Rubles",null,null,null,null,null,"Other Direct Private Lending",null,"Belarus"]
[null,null,null,null,"Select","Other","Real Estate Funds - Other",null,null,"Belize Dollars",null,null,null,null,null,"Policy Loans",null,"Belgium"]
[null,null,null,null,null,"Select","Select",null,null,"Canada Dollars",null,null,null,null,null,"Other",null,"Belize"]
[null,null,null,null,null,null,null,null,null,"Congo/Kinshasa Francs",null,null,null,null,null,"Select",null,"Benin"]
[null,null,null,null,null,null,null,null,null,"Switzerland Francs",null,null,null,null,null,null,null,"Bhutan"]
["BSCR Rating",null,"Listed Equity - Direct",null,null,null,null,null,null,"Chile Pesos",null,null,null,null,null,null,null,"Bolivia (Plurinational State of)"]
["Select",null,"Listed Equity - ETF",null,null,null,"Investment",null,null,"China Yuan Renminbi",null,null,null,null,null,null,null,"Bonaire, Sint Eustatius and Saba"]
["BSCR Rating 0",null,"Listed Equity - Mutual Fund",null,null,null,"Owner-occupied",null,null,"Colombia Pesos",null,null,null,null,null,null,null,"Bosnia and Herzegovina"]
["BSCR Rating 1",null,"Private Equity - Direct",null,null,null,"Select",null,null,"Costa Rica Colones",null,null,null,null,null,null,null,"Botswana"]
["BSCR Rating 2",null,"Private Equity - Fund",null,null,null,null,null,null,"Cuba Convertible Pesos",null,null,null,null,null,null,null,"Brazil"]
["BSCR Rating 3",null,"Other - Listed Equity",null,null,null,null,null,null,"Cuba Pesos",null,null,null,null,null,null,null,"British Virgin Islands"]
["BSCR Rating 4",null,"Other - Private Equity",null,null,null,null,null,null,"Cape Verde Escudos",null,null,null,null,null,null,null,"Brunei Darussalam"]
["BSCR Rating 5",null,"Select",null,null,null,null,null,null,"Czech Republic Koruny",null,null,null,null,null,null,null,"Bulgaria"]
["BSCR Rating 6",null,null,null,null,null,null,null,null,"Djibouti Francs",null,null,null,null,null,null,null,"Burkina Faso"]
["BSCR Rating 7",null,null,null,null,null,null,null,null,"Denmark Kroner",null,null,null,null,null,null,null,"Burundi"]
["BSCR Rating 8",null,null,null,null,null,null,null,null,"Dominican Republic Pesos",null,null,null,null,null,null,null,"Cabo Verde (Cape Verde)"]
[null,null,null,null,null,null,null,null,null,"Algeria Dinars",null,null,null,null,null,null,null,"Cambodia"]
[null,null,null,null,null,null,null,null,null,"Estonia Krooni",null,null,null,null,null,null,null,"Cameroon"]
[null,null,null,null,null,null,null,null,null,"Egypt Pounds",null,null,null,null,null,null,null,"Cayman Islands"]
[null,null,null,null,null,null,null,null,null,"Eritrea Nakfa",null,null,null,null,null,null,null,"Central African Republic"]
[null,null,null,null,null,null,null,null,null,"Ethiopia Birr",null,null,null,null,null,null,null,"Chad"]
[null,null,null,null,null,null,null,null,null,"Fiji Dollars",null,null,null,null,null,null,null,"Chile"]
[null,null,null,null,null,null,null,null,null,"Falkland Islands Pounds",null,null,null,null,null,null,null,"China"]
[null,null,null,null,null,null,null,null,null,"United Kingdom Pounds",null,null,null,null,null,null,null,"China, Hong Kong SAR"]
[null,null,null,null,null,null,null,null,null,"Georgia Lari",null,null,null,null,null,null,null,"China, Macao SAR "]
[null,null,null,null,null,null,null,null,null,"Guernsey Pounds",null,null,null,null,null,null,null,"Colombia"]
[null,null,null,null,null,null,null,null,null,"Ghana Cedis",null,null,null,null,null,null,null,"Comoros"]
[null,null,null,null,null,null,null,null,null,"Gibraltar Pounds",null,null,null,null,null,null,null,"Congo"]
[null,null,null,null,null,null,null,null,null,"Gambia Dalasi",null,null,null,null,null,null,null,"Cook Islands"]
[null,null,null,null,null,null,null,null,null,"Guinea Francs",null,null,null,null,null,null,null,"Costa Rica"]
[null,null,null,null,null,null,null,null,null,"Guatemala Quetzales",null,null,null,null,null,null,null,"Cote d' Ivoire"]
[null,null,null,null,null,null,null,null,null,"Guyana Dollars",null,null,null,null,null,null,null,"Croatia"]
[null,null,null,null,null,null,null,null,null,"Hong Kong Dollars",null,null,null,null,null,null,null,"Cuba"]
[null,null,null,null,null,null,null,null,null,"Honduras Lempiras",null,null,null,null,null,null,null,"Curacao"]
[null,null,null,null,null,null,null,null,null,"Croatia Kuna",null,null,null,null,null,null,null,"Cyprus"]
[null,null,null,null,null,null,null,null,null,"Haiti Gourdes",null,null,null,null,null,null,null,"Czech Republic"]
[null,null,null,null,null,null,null,null,null,"Hungary Forint",null,null,null,null,null,null,null,"Democratic People's Republic of Korea (North Korea)"]
[null,null,null,null,null,null,null,null,null,"Indonesia Rupiahs",null,null,null,null,null,null,null,"Democratic Republic of the Congo"]
[null,null,null,null,null,null,null,null,null,"Israel New Shekels",null,null,null,null,null,null,null,"Denmark"]
[null,null,null,null,null,null,null,null,null,"Isle of Man Pounds",null,null,null,null,null,null,null,"Djibouti"]
[null,null,null,null,null,null,null,null,null,"India Rupees",null,null,null,null,null,null,null,"Dominica"]
[null,null,null,null,null,null,null,null,null,"Iraq Dinars",null,null,null,null,null,null,null,"Dominican Republic"]
[null,null,null,null,null,null,null,null,null,"Iran Rials",null,null,null,null,null,null,null,"Ecuador"]
[null,null,null,null,null,null,null,null,null,"Iceland Kronur",null,null,null,null,null,null,null,"Egypt"]
[null,null,null,null,null,null,null,null,null,"Jersey Pounds",null,null,null,null,null,null,null,"El Salvador"]
[null,null,null,null,null,null,null,null,null,"Jamaica Dollars",null,null,null,null,null,null,null,"Equatorial Guinea"]
[null,null,null,null,null,null,null,null,null,"Jordan Dinars",null,null,null,null,null,null,null,"Eritrea"]
[null,null,null,null,null,null,null,null,null,"Japan Yen",null,null,null,null,null,null,null,"Estonia"]
[null,null,null,null,null,null,null,null,null,"Kenya Shillings",null,null,null,null,null,null,null,"Eswatini (Kingdom of Swaziland)"]
[null,null,null,null,null,null,null,null,null,"Kyrgyzstan Soms",null,null,null,null,null,null,null,"Ethiopia"]
[null,null,null,null,null,null,null,null,null,"Cambodia Riels",null,null,null,null,null,null,null,"Falkland Islands"]
[null,null,null,null,null,null,null,null,null,"Comoros Francs",null,null,null,null,null,null,null,"Faroe Islands"]
[null,null,null,null,null,null,null,null,null,"North Korea Won",null,null,null,null,null,null,null,"Fiji"]
[null,null,null,null,null,null,null,null,null,"South Korea Won",null,null,null,null,null,null,null,"Finland"]
[null,null,null,null,null,null,null,null,null,"Kuwait Dinars",null,null,null,null,null,null,null,"France"]
[null,null,null,null,null,null,null,null,null,"Cayman Islands Dollars",null,null,null,null,null,null,null,"French Guiana"]
[null,null,null,null,null,null,null,null,null,"Kazakhstan Tenge",null,null,null,null,null,null,null,"French Polynesia"]
[null,null,null,null,null,null,null,null,null,"Laos Kips",null,null,null,null,null,null,null,"Gabon"]
[null,null,null,null,null,null,null,null,null,"Lebanon Pounds",null,null,null,null,null,null,null,"Gambia (Republic of The)"]
[null,null,null,null,null,null,null,null,null,"Sri Lanka Rupees",null,null,null,null,null,null,null,"Georgia"]
[null,null,null,null,null,null,null,null,null,"Liberia Dollars",null,null,null,null,null,null,null,"Germany"]
[null,null,null,null,null,null,null,null,null,"Lesotho Maloti",null,null,null,null,null,null,null,"Ghana"]
[null,null,null,null,null,null,null,null,null,"Lithuania Litai",null,null,null,null,null,null,null,"Gibraltar"]
[null,null,null,null,null,null,null,null,null,"Latvia Lati",null,null,null,null,null,null,null,"Greece"]
[null,null,null,null,null,null,null,null,null,"Libya Dinars",null,null,null,null,null,null,null,"Greenland"]
[null,null,null,null,null,null,null,null,null,"Morocco Dirhams",null,null,null,null,null,null,null,"Grenada"]
[null,null,null,null,null,null,null,null,null,"Moldova Lei",null,null,null,null,null,null,null,"Guadeloupe"]
[null,null,null,null,null,null,null,null,null,"Madagascar Ariary",null,null,null,null,null,null,null,"Guam"]
[null,null,null,null,null,null,null,null,null,"Macedonia Denars",null,null,null,null,null,null,null,"Guatemala"]
[null,null,null,null,null,null,null,null,null,"Myanmar Kyats",null,null,null,null,null,null,null,"Guernsey"]
[null,null,null,null,null,null,null,null,null,"Mongolia Tugriks",null,null,null,null,null,null,null,"Guinea"]
[null,null,null,null,null,null,null,null,null,"Macau Patacas",null,null,null,null,null,null,null,"Guinea-Bissau"]
[null,null,null,null,null,null,null,null,null,"Mauritania Ouguiyas",null,null,null,null,null,null,null,"Guyana"]
[null,null,null,null,null,null,null,null,null,"Mauritius Rupees",null,null,null,null,null,null,null,"Haiti"]
[null,null,null,null,null,null,null,null,null,"Maldives Rufiyaa",null,null,null,null,null,null,null,"Holy See"]
[null,null,null,null,null,null,null,null,null,"Malawi Kwachas",null,null,null,null,null,null,null,"Honduras"]
[null,null,null,null,null,null,null,null,null,"Mexico Pesos",null,null,null,null,null,null,null,"Hungary"]
[null,null,null,null,null,null,null,null,null,"Malaysia Ringgits",null,null,null,null,null,null,null,"Iceland"]
[null,null,null,null,null,null,null,null,null,"Mozambique Meticais",null,null,null,null,null,null,null,"India"]
[null,null,null,null,null,null,null,null,null,"Namibia Dollars",null,null,null,null,null,null,null,"Indonesia"]
[null,null,null,null,null,null,null,null,null,"Nigeria Nairas",null,null,null,null,null,null,null,"Iran (Islamic Republic of)"]
[null,null,null,null,null,null,null,null,null,"Nicaragua Cordobas",null,null,null,null,null,null,null,"Iraq"]
[null,null,null,null,null,null,null,null,null,"Norway Kroner",null,null,null,null,null,null,null,"Ireland"]
[null,null,null,null,null,null,null,null,null,"Nepal Rupees",null,null,null,null,null,null,null,"Isle of Man"]
[null,null,null,null,null,null,null,null,null,"New Zealand Dollars",null,null,null,null,null,null,null,"Israel"]
[null,null,null,null,null,null,null,null,null,"Oman Rials",null,null,null,null,null,null,null,"Italy"]
[null,null,null,null,null,null,null,null,null,"Panama Balboas",null,null,null,null,null,null,null,"Jamaica"]
[null,null,null,null,null,null,null,null,null,"Peru Nuevos Soles",null,null,null,null,null,null,null,"Japan"]
[null,null,null,null,null,null,null,null,null,"Papua New Guinea Kina",null,null,null,null,null,null,null,"Jersey"]
[null,null,null,null,null,null,null,null,null,"Philippines Pesos",null,null,null,null,null,null,null,"Jordan"]
[null,null,null,null,null,null,null,null,null,"Pakistan Rupees",null,null,null,null,null,null,null,"Kazakhstan"]
[null,null,null,null,null,null,null,null,null,"Poland Zlotych",null,null,null,null,null,null,null,"Kenya"]
[null,null,null,null,null,null,null,null,null,"Paraguay Guarani",null,null,null,null,null,null,null,"Kiribati"]
[null,null,null,null,null,null,null,null,null,"Qatar Riyals",null,null,null,null,null,null,null,"Kuwait"]
[null,null,null,null,null,null,null,null,null,"Romania New Lei",null,null,null,null,null,null,null,"Kyrgyzstan"]
[null,null,null,null,null,null,null,null,null,"Serbia Dinars",null,null,null,null,null,null,null,"Lao People's Democratic Republic"]
[null,null,null,null,null,null,null,null,null,"Russia Rubles",null,null,null,null,null,null,null,"Latvia"]
[null,null,null,null,null,null,null,null,null,"Rwanda Francs",null,null,null,null,null,null,null,"Lebanon"]
[null,null,null,null,null,null,null,null,null,"Saudi Arabia Riyals",null,null,null,null,null,null,null,"Lesotho"]
[null,null,null,null,null,null,null,null,null,"Solomon Islands Dollars",null,null,null,null,null,null,null,"Liberia"]
[null,null,null,null,null,null,null,null,null,"Seychelles Rupees",null,null,null,null,null,null,null,"Libya"]
[null,null,null,null,null,null,null,null,null,"Sudan Pounds",null,null,null,null,null,null,null,"Liechtenstein"]
[null,null,null,null,null,null,null,null,null,"Sweden Kronor",null,null,null,null,null,null,null,"Lithuania"]
[null,null,null,null,null,null,null,null,null,"Singapore Dollars",null,null,null,null,null,null,null,"Luxembourg"]
[null,null,null,null,null,null,null,null,null,"Saint Helena Pounds",null,null,null,null,null,null,null,"Madagascar"]
[null,null,null,null,null,null,null,null,null,"Slovakia Koruny",null,null,null,null,null,null,null,"Malawi"]
[null,null,null,null,null,null,null,null,null,"Sierra Leone Leones",null,null,null,null,null,null,null,"Malaysia"]
[null,null,null,null,null,null,null,null,null,"Somalia Shillings",null,null,null,null,null,null,null,"Maldives"]
[null,null,null,null,null,null,null,null,null,"Seborga Luigini",null,null,null,null,null,null,null,"Mali"]
[null,null,null,null,null,null,null,null,null,"Suriname Dollars",null,null,null,null,null,null,null,"Malta"]
[null,null,null,null,null,null,null,null,null,"São Tome and Principe Dobras",null,null,null,null,null,null,null,"Marshall Islands"]
[null,null,null,null,null,null,null,null,null,"El Salvador Colones",null,null,null,null,null,null,null,"Martinique"]
[null,null,null,null,null,null,null,null,null,"Syria Pounds",null,null,null,null,null,null,null,"Mauritania"]
[null,null,null,null,null,null,null,null,null,"Swaziland Emalangeni",null,null,null,null,null,null,null,"Mauritius"]
[null,null,null,null,null,null,null,null,null,"Thailand Baht",null,null,null,null,null,null,null,"Mayotte"]
[null,null,null,null,null,null,null,null,null,"Tajikistan Somoni",null,null,null,null,null,null,null,"Mexico"]
[null,null,null,null,null,null,null,null,null,"Turkmenistan Manats",null,null,null,null,null,null,null,"Micronesia (Federated States of)"]
[null,null,null,null,null,null,null,null,null,"Tunisia Dinars",null,null,null,null,null,null,null,"Monaco"]
[null,null,null,null,null,null,null,null,null,"Tonga Pa'anga",null,null,null,null,null,null,null,"Mongolia"]
[null,null,null,null,null,null,null,null,null,"Turkey New Lira",null,null,null,null,null,null,null,"Montenegro"]
[null,null,null,null,null,null,null,null,null,"Trinidad and Tobago Dollars",null,null,null,null,null,null,null,"Montserrat"]
[null,null,null,null,null,null,null,null,null,"Tuvalu Dollars",null,null,null,null,null,null,null,"Morocco"]
[null,null,null,null,null,null,null,null,null,"Taiwan New Dollars",null,null,null,null,null,null,null,"Mozambique"]
[null,null,null,null,null,null,null,null,null,"Tanzania Shillings",null,null,null,null,null,null,null,"Myanmar"]
[null,null,null,null,null,null,null,null,null,"Ukraine Hryvnia",null,null,null,null,null,null,null,"Namibia"]
[null,null,null,null,null,null,null,null,null,"Uganda Shillings",null,null,null,null,null,null,null,"Nauru"]
[null,null,null,null,null,null,null,null,null,"Uruguay Pesos",null,null,null,null,null,null,null,"Nepal"]
[null,null,null,null,null,null,null,null,null,"Uzbekistan Sums",null,null,null,null,null,null,null,"Netherlands"]
[null,null,null,null,null,null,null,null,null,"Venezuela Bolivares",null,null,null,null,null,null,null,"New Caledonia"]
[null,null,null,null,null,null,null,null,null,"Venezuela Bolivares Fuertes",null,null,null,null,null,null,null,"New Zealand"]
[null,null,null,null,null,null,null,null,null,"Vietnam Dong",null,null,null,null,null,null,null,"Nicaragua"]
[null,null,null,null,null,null,null,null,null,"Vanuatu Vatu",null,null,null,null,null,null,null,"Niger"]
[null,null,null,null,null,null,null,null,null,"Samoa Tala",null,null,null,null,null,null,null,"Nigeria"]
[null,null,null,null,null,null,null,null,null,"Communauté Financière Africaine Francs BEAC",null,null,null,null,null,null,null,"Niue"]
[null,null,null,null,null,null,null,null,null,"Silver Ounces",null,null,null,null,null,null,null,"Norfolk Island"]
[null,null,null,null,null,null,null,null,null,"Gold Ounces",null,null,null,null,null,null,null,"North Macedonia"]
[null,null,null,null,null,null,null,null,null,"East Caribbean Dollars",null,null,null,null,null,null,null,"Northern Mariana Islands"]
[null,null,null,null,null,null,null,null,null,"International Monetary Fund Special Drawing Rights",null,null,null,null,null,null,null,"Norway"]
[null,null,null,null,null,null,null,null,null,"Communauté Financière Africaine Francs BCEAO",null,null,null,null,null,null,null,"Oman"]
[null,null,null,null,null,null,null,null,null,"Palladium Ounces",null,null,null,null,null,null,null,"Pakistan"]
[null,null,null,null,null,null,null,null,null,"Comptoirs Français du Pacifique Francs",null,null,null,null,null,null,null,"Palau"]
[null,null,null,null,null,null,null,null,null,"Platinum Ounces",null,null,null,null,null,null,null,"Panama"]
[null,null,null,null,null,null,null,null,null,"Yemen Rials",null,null,null,null,null,null,null,"Papua New Guinea"]
[null,null,null,null,null,null,null,null,null,"South Africa Rand",null,null,null,null,null,null,null,"Paraguay"]
[null,null,null,null,null,null,null,null,null,"Zambia Kwacha",null,null,null,null,null,null,null,"Peru"]
[null,null,null,null,null,null,null,null,null,"Zimbabwe Dollars",null,null,null,null,null,null,null,"Philippines"]
[null,null,null,null,null,null,null,null,null,null,null,null,null,null,null,null,null,"Pitcairn"]
[null,null,null,null,null,null,null,null,null,null,null,null,null,null,null,null,null,"Poland"]
[null,null,null,null,null,null,null,null,null,null,null,null,null,null,null,null,null,"Portugal"]
[null,null,null,null,null,null,null,null,null,null,null,null,null,null,null,null,null,"Puerto Rico"]
[null,null,null,null,null,null,null,null,null,null,null,null,null,null,null,null,null,"Qatar"]
[null,null,null,null,null,null,null,null,null,null,null,null,null,null,null,null,null,"Republic of Korea (South Korea)"]
[null,null,null,null,null,null,null,null,null,null,null,null,null,null,null,null,null,"Republic of Moldova"]
[null,null,null,null,null,null,null,null,null,null,null,null,null,null,null,null,null,"Reunion"]
[null,null,null,null,null,null,null,null,null,null,null,null,null,null,null,null,null,"Romania"]
[null,null,null,null,null,null,null,null,null,null,null,null,null,null,null,null,null,"Russian Federation"]
[null,null,null,null,null,null,null,null,null,null,null,null,null,null,null,null,null,"Rwanda"]
[null,null,null,null,null,null,null,null,null,null,null,null,null,null,null,null,null,"Saint Barthelemy (St. Barts)"]
[null,null,null,null,null,null,null,null,null,null,null,null,null,null,null,null,null,"Saint Helena"]
[null,null,null,null,null,null,null,null,null,null,null,null,null,null,null,null,null,"Saint Kitts and Nevis"]
[null,null,null,null,null,null,null,null,null,null,null,null,null,null,null,null,null,"Saint Lucia"]
[null,null,null,null,null,null,null,null,null,null,null,null,null,null,null,null,null,"Saint Martin"]
[null,null,null,null,null,null,null,null,null,null,null,null,null,null,null,null,null,"Saint Pierre and Miquelon"]
[null,null,null,null,null,null,null,null,null,null,null,null,null,null,null,null,null,"Saint Vincent and The Grenadines"]
[null,null,null,null,null,null,null,null,null,null,null,null,null,null,null,null,null,"Samoa"]
[null,null,null,null,null,null,null,null,null,null,null,null,null,null,null,null,null,"San Marino"]
[null,null,null,null,null,null,null,null,null,null,null,null,null,null,null,null,null,"Sao Tome and Principe"]
[null,null,null,null,null,null,null,null,null,null,null,null,null,null,null,null,null,"Sark"]
[null,null,null,null,null,null,null,null,null,null,null,null,null,null,null,null,null,"Saudi Arabia"]
[null,null,null,null,null,null,null,null,null,null,null,null,null,null,null,null,null,"Senegal"]
[null,null,null,null,null,null,null,null,null,null,null,null,null,null,null,null,null,"Serbia"]
[null,null,null,null,null,null,null,null,null,null,null,null,null,null,null,null,null,"Seychelles"]
[null,null,null,null,null,null,null,null,null,null,null,null,null,null,null,null,null,"Sierra Leone"]
[null,null,null,null,null,null,null,null,null,null,null,null,null,null,null,null,null,"Singapore"]
[null,null,null,null,null,null,null,null,null,null,null,null,null,null,null,null,null,"Sint Maarten"]
[null,null,null,null,null,null,null,null,null,null,null,null,null,null,null,null,null,"Slovakia"]
[null,null,null,null,null,null,null,null,null,null,null,null,null,null,null,null,null,"Slovenia"]
[null,null,null,null,null,null,null,null,null,null,null,null,null,null,null,null,null,"Solomon Islands"]
[null,null,null,null,null,null,null,null,null,null,null,null,null,null,null,null,null,"Somalia"]
[null,null,null,null,null,null,null,null,null,null,null,null,null,null,null,null,null,"South Africa"]
[null,null,null,null,null,null,null,null,null,null,null,null,null,null,null,null,null,"South Sudan"]
[null,null,null,null,null,null,null,null,null,null,null,null,null,null,null,null,null,"Spain"]
[null,null,null,null,null,null,null,null,null,null,null,null,null,null,null,null,null,"Sri Lanka"]
[null,null,null,null,null,null,null,null,null,null,null,null,null,null,null,null,null,"State of Palestine"]
[null,null,null,null,null,null,null,null,null,null,null,null,null,null,null,null,null,"Sudan"]
[null,null,null,null,null,null,null,null,null,null,null,null,null,null,null,null,null,"Suriname"]
[null,null,null,null,null,null,null,null,null,null,null,null,null,null,null,null,null,"Svalbard, Jan Mayen"]
[null,null,null,null,null,null,null,null,null,null,null,null,null,null,null,null,null,"Sweden"]
[null,null,null,null,null,null,null,null,null,null,null,null,null,null,null,null,null,"Switzerland"]
[null,null,null,null,null,null,null,null,null,null,null,null,null,null,null,null,null,"Syrian Arab Republic"]
[null,null,null,null,null,null,null,null,null,null,null,null,null,null,null,null,null,"Taiwan"]
[null,null,null,null,null,null,null,null,null,null,null,null,null,null,null,null,null,"Tajikistan"]
[null,null,null,null,null,null,null,null,null,null,null,null,null,null,null,null,null,"Thailand"]
[null,null,null,null,null,null,null,null,null,null,null,null,null,null,null,null,null,"Timor-Leste"]
[null,null,null,null,null,null,null,null,null,null,null,null,null,null,null,null,null,"Togo"]
[null,null,null,null,null,null,null,null,null,null,null,null,null,null,null,null,null,"Tokelau"]
[null,null,null,null,null,null,null,null,null,null,null,null,null,null,null,null,null,"Tonga"]
[null,null,null,null,null,null,null,null,null,null,null,null,null,null,null,null,null,"Trinidad and Tobago"]
[null,null,null,null,null,null,null,null,null,null,null,null,null,null,null,null,null,"Tunisia"]
[null,null,null,null,null,null,null,null,null,null,null,null,null,null,null,null,null,"Turkey"]
[null,null,null,null,null,null,null,null,null,null,null,null,null,null,null,null,null,"Turkmenistan"]
[null,null,null,null,null,null,null,null,null,null,null,null,null,null,null,null,null,"Turks & Caicos Islands"]
[null,null,null,null,null,null,null,null,null,null,null,null,null,null,null,null,null,"Tuvalu"]
[null,null,null,null,null,null,null,null,null,null,null,null,null,null,null,null,null,"Uganda"]
[null,null,null,null,null,null,null,null,null,null,null,null,null,null,null,null,null,"Ukraine"]
[null,null,null,null,null,null,null,null,null,null,null,null,null,null,null,null,null,"United Arab Emirates"]
[null,null,null,null,null,null,null,null,null,null,null,null,null,null,null,null,null,"United Republic of Tanzania"]
[null,null,null,null,null,null,null,null,null,null,null,null,null,null,null,null,null,"Uruguay"]
[null,null,null,null,null,null,null,null,null,null,null,null,null,null,null,null,null,"US Virgin Islands"]
[null,null,null,null,null,null,null,null,null,null,null,null,null,null,null,null,null,"Uzbekistan"]
[null,null,null,null,null,null,null,null,null,null,null,null,null,null,null,null,null,"Vanuatu"]
[null,null,null,null,null,null,null,null,null,null,null,null,null,null,null,null,null,"Venezuela, Bolivarian Republic of "]
[null,null,null,null,null,null,null,null,null,null,null,null,null,null,null,null,null,"Vietnam"]
[null,null,null,null,null,null,null,null,null,null,null,null,null,null,null,null,null,"Wallis & Futuna Islands"]
[null,null,null,null,null,null,null,null,null,null,null,null,null,null,null,null,null,"Western Sahara"]
[null,null,null,null,null,null,null,null,null,null,null,null,null,null,null,null,null,"Yemen"]
[null,null,null,null,null,null,null,null,null,null,null,null,null,null,null,null,null,"Zambia"]
[null,null,null,null,null,null,null,null,null,null,null,null,null,null,null,null,null,"Zimbabwe"]
[null,null,null,null,null,null,null,null,null,null,null,null,null,null,null,null,null,"Select"]

{"sheet":"Schedule VIA","index":52,"n_rows":2357,"n_cols":18,"rows_kept":2357,"cut":false,"hidden":false,"merged":[[1339,1,1339,2],[5,1,5,2],[213,1,213,2],[216,1,216,2],[987,1,987,2],[990,1,990,2],[1095,1,1095,2],[1098,1,1098,2],[1123,1,1123,2],[1126,1,1126,2],[1231,1,1231,2],[1234,1,1234,2],[1764,6,1765,6],[1764,7,1765,7],[1789,1,1789,2],[1793,1,1793,2],[1342,1,1342,2],[1447,1,1447,2],[1450,1,1450,2],[1555,1,1555,2],[1763,5,1765,5]]}
[null,"SCHEDULE OF FUNDS HELD BY CEDING REINSURERS",null,null,null,null,null,null,null,null,null,null,null,{"$f":"HYPERLINK(\"#'Index'!A1\",\"Return to Index\")","v":"Return to Index"}]
[null,{"$f":"'Company Information'!C7","v":"Enter Company Name"}]
[null,"As at",{"$f":"'Company Information'!C3","v":"2023-12-31"},null,null,null,null,null,null,null,null,null,null,"Schedule VIA"]
[null,"expressed in ['000s]",{"$f":"'Form 1SFS'!C5","v":"United States Dollars"}]
[]
[null,"(A) CASH AND CASH EQUIVALENTS"]
[]
[null,null,"Enter # of Asset Types",{"$f":"Import!E24550","v":0}]
[null,null,null,null,{"$f":"YEAR($C$3)","v":2023},{"$f":"YEAR($C$3)","v":2023}]
[null,"Asset Type","Currency","BSCR Rating","Nominal Amount","Fair Value","Comments"]
[1,{"$f":"Import!E24551","v":"Select"},{"$f":"Import!E24751","v":"Select"},{"$f":"Import!E24951","v":"Select"},{"$f":"Import!E25151","v":0},{"$f":"Import!E25351","v":0},{"$f":"Import!E25551","v":0}]
[{"$f":"A11+1","v":2},{"$f":"Import!E24552","v":"Select"},{"$f":"Import!E24752","v":"Select"},{"$f":"Import!E24952","v":"Select"},{"$f":"Import!E25152","v":0},{"$f":"Import!E25352","v":0},{"$f":"Import!E25552","v":0}]
[{"$f":"A12+1","v":3},{"$f":"Import!E24553","v":"Select"},{"$f":"Import!E24753","v":"Select"},{"$f":"Import!E24953","v":"Select"},{"$f":"Import!E25153","v":0},{"$f":"Import!E25353","v":0},{"$f":"Import!E25553","v":0}]
[4,{"$f":"Import!E24554","v":"Select"},{"$f":"Import!E24754","v":"Select"},{"$f":"Import!E24954","v":"Select"},{"$f":"Import!E25154","v":0},{"$f":"Import!E25354","v":0},{"$f":"Import!E25554","v":0}]
[5,{"$f":"Import!E24555","v":"Select"},{"$f":"Import!E24755","v":"Select"},{"$f":"Import!E24955","v":"Select"},{"$f":"Import!E25155","v":0},{"$f":"Import!E25355","v":0},{"$f":"Import!E25555","v":0}]
[6,{"$f":"Import!E24556","v":"Select"},{"$f":"Import!E24756","v":"Select"},{"$f":"Import!E24956","v":"Select"},{"$f":"Import!E25156","v":0},{"$f":"Import!E25356","v":0},{"$f":"Import!E25556","v":0}]
[7,{"$f":"Import!E24557","v":"Select"},{"$f":"Import!E24757","v":"Select"},{"$f":"Import!E24957","v":"Select"},{"$f":"Import!E25157","v":0},{"$f":"Import!E25357","v":0},{"$f":"Import!E25557","v":0}]
[8,{"$f":"Import!E24558","v":"Select"},{"$f":"Import!E24758","v":"Select"},{"$f":"Import!E24958","v":"Select"},{"$f":"Import!E25158","v":0},{"$f":"Import!E25358","v":0},{"$f":"Import!E25558","v":0}]
[9,{"$f":"Import!E24559","v":"Select"},{"$f":"Import!E24759","v":"Select"},{"$f":"Import!E24959","v":"Select"},{"$f":"Import!E25159","v":0},{"$f":"Import!E25359","v":0},{"$f":"Import!E25559","v":0}]
[10,{"$f":"Import!E24560","v":"Select"},{"$f":"Import!E24760","v":"Select"},{"$f":"Import!E24960","v":"Select"},{"$f":"Import!E25160","v":0},{"$f":"Import!E25360","v":0},{"$f":"Import!E25560","v":0}]
[11,{"$f":"Import!E24561","v":"Select"},{"$f":"Import!E24761","v":"Select"},{"$f":"Import!E24961","v":"Select"},{"$f":"Import!E25161","v":0},{"$f":"Import!E25361","v":0},{"$f":"Import!E25561","v":0}]
[12,{"$f":"Import!E24562","v":"Select"},{"$f":"Import!E24762","v":"Select"},{"$f":"Import!E24962","v":"Select"},{"$f":"Import!E25162","v":0},{"$f":"Import!E25362","v":0},{"$f":"Import!E25562","v":0}]
[13,{"$f":"Import!E24563","v":"Select"},{"$f":"Import!E24763","v":"Select"},{"$f":"Import!E24963","v":"Select"},{"$f":"Import!E25163","v":0},{"$f":"Import!E25363","v":0},{"$f":"Import!E25563","v":0}]
[14,{"$f":"Import!E24564","v":"Select"},{"$f":"Import!E24764","v":"Select"},{"$f":"Import!E24964","v":"Select"},{"$f":"Import!E25164","v":0},{"$f":"Import!E25364","v":0},{"$f":"Import!E25564","v":0}]
[15,{"$f":"Import!E24565","v":"Select"},{"$f":"Import!E24765","v":"Select"},{"$f":"Import!E24965","v":"Select"},{"$f":"Import!E25165","v":0},{"$f":"Import!E25365","v":0},{"$f":"Import!E25565","v":0}]
[16,{"$f":"Import!E24566","v":"Select"},{"$f":"Import!E24766","v":"Select"},{"$f":"Import!E24966","v":"Select"},{"$f":"Import!E25166","v":0},{"$f":"Import!E25366","v":0},{"$f":"Import!E25566","v":0}]
[17,{"$f":"Import!E24567","v":"Select"},{"$f":"Import!E24767","v":"Select"},{"$f":"Import!E24967","v":"Select"},{"$f":"Import!E25167","v":0},{"$f":"Import!E25367","v":0},{"$f":"Import!E25567","v":0}]
[18,{"$f":"Import!E24568","v":"Select"},{"$f":"Import!E24768","v":"Select"},{"$f":"Import!E24968","v":"Select"},{"$f":"Import!E25168","v":0},{"$f":"Import!E25368","v":0},{"$f":"Import!E25568","v":0}]
[19,{"$f":"Import!E24569","v":"Select"},{"$f":"Import!E24769","v":"Select"},{"$f":"Import!E24969","v":"Select"},{"$f":"Import!E25169","v":0},{"$f":"Import!E25369","v":0},{"$f":"Import!E25569","v":0}]
[20,{"$f":"Import!E24570","v":"Select"},{"$f":"Import!E24770","v":"Select"},{"$f":"Import!E24970","v":"Select"},{"$f":"Import!E25170","v":0},{"$f":"Import!E25370","v":0},{"$f":"Import!E25570","v":0}]
[21,{"$f":"Import!E24571","v":"Select"},{"$f":"Import!E24771","v":"Select"},{"$f":"Import!E24971","v":"Select"},{"$f":"Import!E25171","v":0},{"$f":"Import!E25371","v":0},{"$f":"Import!E25571","v":0}]
[22,{"$f":"Import!E24572","v":"Select"},{"$f":"Import!E24772","v":"Select"},{"$f":"Import!E24972","v":"Select"},{"$f":"Import!E25172","v":0},{"$f":"Import!E25372","v":0},{"$f":"Import!E25572","v":0}]
[23,{"$f":"Import!E24573","v":"Select"},{"$f":"Import!E24773","v":"Select"},{"$f":"Import!E24973","v":"Select"},{"$f":"Import!E25173","v":0},{"$f":"Import!E25373","v":0},{"$f":"Import!E25573","v":0}]
[24,{"$f":"Import!E24574","v":"Select"},{"$f":"Import!E24774","v":"Select"},{"$f":"Import!E24974","v":"Select"},{"$f":"Import!E25174","v":0},{"$f":"Import!E25374","v":0},{"$f":"Import!E25574","v":0}]
[25,{"$f":"Import!E24575","v":"Select"},{"$f":"Import!E24775","v":"Select"},{"$f":"Import!E24975","v":"Select"},{"$f":"Import!E25175","v":0},{"$f":"Import!E25375","v":0},{"$f":"Import!E25575","v":0}]
[26,{"$f":"Import!E24576","v":"Select"},{"$f":"Import!E24776","v":"Select"},{"$f":"Import!E24976","v":"Select"},{"$f":"Import!E25176","v":0},{"$f":"Import!E25376","v":0},{"$f":"Import!E25576","v":0}]
[27,{"$f":"Import!E24577","v":"Select"},{"$f":"Import!E24777","v":"Select"},{"$f":"Import!E24977","v":"Select"},{"$f":"Import!E25177","v":0},{"$f":"Import!E25377","v":0},{"$f":"Import!E25577","v":0}]
[28,{"$f":"Import!E24578","v":"Select"},{"$f":"Import!E24778","v":"Select"},{"$f":"Import!E24978","v":"Select"},{"$f":"Import!E25178","v":0},{"$f":"Import!E25378","v":0},{"$f":"Import!E25578","v":0}]
[29,{"$f":"Import!E24579","v":"Select"},{"$f":"Import!E24779","v":"Select"},{"$f":"Import!E24979","v":"Select"},{"$f":"Import!E25179","v":0},{"$f":"Import!E25379","v":0},{"$f":"Import!E25579","v":0}]
[30,{"$f":"Import!E24580","v":"Select"},{"$f":"Import!E24780","v":"Select"},{"$f":"Import!E24980","v":"Select"},{"$f":"Import!E25180","v":0},{"$f":"Import!E25380","v":0},{"$f":"Import!E25580","v":0}]
[31,{"$f":"Import!E24581","v":"Select"},{"$f":"Import!E24781","v":"Select"},{"$f":"Import!E24981","v":"Select"},{"$f":"Import!E25181","v":0},{"$f":"Import!E25381","v":0},{"$f":"Import!E25581","v":0}]
[32,{"$f":"Import!E24582","v":"Select"},{"$f":"Import!E24782","v":"Select"},{"$f":"Import!E24982","v":"Select"},{"$f":"Import!E25182","v":0},{"$f":"Import!E25382","v":0},{"$f":"Import!E25582","v":0}]
[33,{"$f":"Import!E24583","v":"Select"},{"$f":"Import!E24783","v":"Select"},{"$f":"Import!E24983","v":"Select"},{"$f":"Import!E25183","v":0},{"$f":"Import!E25383","v":0},{"$f":"Import!E25583","v":0}]
[34,{"$f":"Import!E24584","v":"Select"},{"$f":"Import!E24784","v":"Select"},{"$f":"Import!E24984","v":"Select"},{"$f":"Import!E25184","v":0},{"$f":"Import!E25384","v":0},{"$f":"Import!E25584","v":0}]
[35,{"$f":"Import!E24585","v":"Select"},{"$f":"Import!E24785","v":"Select"},{"$f":"Import!E24985","v":"Select"},{"$f":"Import!E25185","v":0},{"$f":"Import!E25385","v":0},{"$f":"Import!E25585","v":0}]
[36,{"$f":"Import!E24586","v":"Select"},{"$f":"Import!E24786","v":"Select"},{"$f":"Import!E24986","v":"Select"},{"$f":"Import!E25186","v":0},{"$f":"Import!E25386","v":0},{"$f":"Import!E25586","v":0}]
[37,{"$f":"Import!E24587","v":"Select"},{"$f":"Import!E24787","v":"Select"},{"$f":"Import!E24987","v":"Select"},{"$f":"Import!E25187","v":0},{"$f":"Import!E25387","v":0},{"$f":"Import!E25587","v":0}]
[38,{"$f":"Import!E24588","v":"Select"},{"$f":"Import!E24788","v":"Select"},{"$f":"Import!E24988","v":"Select"},{"$f":"Import!E25188","v":0},{"$f":"Import!E25388","v":0},{"$f":"Import!E25588","v":0}]
[39,{"$f":"Import!E24589","v":"Select"},{"$f":"Import!E24789","v":"Select"},{"$f":"Import!E24989","v":"Select"},{"$f":"Import!E25189","v":0},{"$f":"Import!E25389","v":0},{"$f":"Import!E25589","v":0}]
[40,{"$f":"Import!E24590","v":"Select"},{"$f":"Import!E24790","v":"Select"},{"$f":"Import!E24990","v":"Select"},{"$f":"Import!E25190","v":0},{"$f":"Import!E25390","v":0},{"$f":"Import!E25590","v":0}]
[41,{"$f":"Import!E24591","v":"Select"},{"$f":"Import!E24791","v":"Select"},{"$f":"Import!E24991","v":"Select"},{"$f":"Import!E25191","v":0},{"$f":"Import!E25391","v":0},{"$f":"Import!E25591","v":0}]
[42,{"$f":"Import!E24592","v":"Select"},{"$f":"Import!E24792","v":"Select"},{"$f":"Import!E24992","v":"Select"},{"$f":"Import!E25192","v":0},{"$f":"Import!E25392","v":0},{"$f":"Import!E25592","v":0}]
[43,{"$f":"Import!E24593","v":"Select"},{"$f":"Import!E24793","v":"Select"},{"$f":"Import!E24993","v":"Select"},{"$f":"Import!E25193","v":0},{"$f":"Import!E25393","v":0},{"$f":"Import!E25593","v":0}]
[44,{"$f":"Import!E24594","v":"Select"},{"$f":"Import!E24794","v":"Select"},{"$f":"Import!E24994","v":"Select"},{"$f":"Import!E25194","v":0},{"$f":"Import!E25394","v":0},{"$f":"Import!E25594","v":0}]
[45,{"$f":"Import!E24595","v":"Select"},{"$f":"Import!E24795","v":"Select"},{"$f":"Import!E24995","v":"Select"},{"$f":"Import!E25195","v":0},{"$f":"Import!E25395","v":0},{"$f":"Import!E25595","v":0}]
[46,{"$f":"Import!E24596","v":"Select"},{"$f":"Import!E24796","v":"Select"},{"$f":"Import!E24996","v":"Select"},{"$f":"Import!E25196","v":0},{"$f":"Import!E25396","v":0},{"$f":"Import!E25596","v":0}]
[47,{"$f":"Import!E24597","v":"Select"},{"$f":"Import!E24797","v":"Select"},{"$f":"Import!E24997","v":"Select"},{"$f":"Import!E25197","v":0},{"$f":"Import!E25397","v":0},{"$f":"Import!E25597","v":0}]
[48,{"$f":"Import!E24598","v":"Select"},{"$f":"Import!E24798","v":"Select"},{"$f":"Import!E24998","v":"Select"},{"$f":"Import!E25198","v":0},{"$f":"Import!E25398","v":0},{"$f":"Import!E25598","v":0}]
[49,{"$f":"Import!E24599","v":"Select"},{"$f":"Import!E24799","v":"Select"},{"$f":"Import!E24999","v":"Select"},{"$f":"Import!E25199","v":0},{"$f":"Import!E25399","v":0},{"$f":"Import!E25599","v":0}]
[50,{"$f":"Import!E24600","v":"Select"},{"$f":"Import!E24800","v":"Select"},{"$f":"Import!E25000","v":"Select"},{"$f":"Import!E25200","v":0},{"$f":"Import!E25400","v":0},{"$f":"Import!E25600","v":0}]
[51,{"$f":"Import!E24601","v":"Select"},{"$f":"Import!E24801","v":"Select"},{"$f":"Import!E25001","v":"Select"},{"$f":"Import!E25201","v":0},{"$f":"Import!E25401","v":0},{"$f":"Import!E25601","v":0}]
[52,{"$f":"Import!E24602","v":"Select"},{"$f":"Import!E24802","v":"Select"},{"$f":"Import!E25002","v":"Select"},{"$f":"Import!E25202","v":0},{"$f":"Import!E25402","v":0},{"$f":"Import!E25602","v":0}]
[53,{"$f":"Import!E24603","v":"Select"},{"$f":"Import!E24803","v":"Select"},{"$f":"Import!E25003","v":"Select"},{"$f":"Import!E25203","v":0},{"$f":"Import!E25403","v":0},{"$f":"Import!E25603","v":0}]
[54,{"$f":"Import!E24604","v":"Select"},{"$f":"Import!E24804","v":"Select"},{"$f":"Import!E25004","v":"Select"},{"$f":"Import!E25204","v":0},{"$f":"Import!E25404","v":0},{"$f":"Import!E25604","v":0}]
[55,{"$f":"Import!E24605","v":"Select"},{"$f":"Import!E24805","v":"Select"},{"$f":"Import!E25005","v":"Select"},{"$f":"Import!E25205","v":0},{"$f":"Import!E25405","v":0},{"$f":"Import!E25605","v":0}]
[56,{"$f":"Import!E24606","v":"Select"},{"$f":"Import!E24806","v":"Select"},{"$f":"Import!E25006","v":"Select"},{"$f":"Import!E25206","v":0},{"$f":"Import!E25406","v":0},{"$f":"Import!E25606","v":0}]
[57,{"$f":"Import!E24607","v":"Select"},{"$f":"Import!E24807","v":"Select"},{"$f":"Import!E25007","v":"Select"},{"$f":"Import!E25207","v":0},{"$f":"Import!E25407","v":0},{"$f":"Import!E25607","v":0}]
[58,{"$f":"Import!E24608","v":"Select"},{"$f":"Import!E24808","v":"Select"},{"$f":"Import!E25008","v":"Select"},{"$f":"Import!E25208","v":0},{"$f":"Import!E25408","v":0},{"$f":"Import!E25608","v":0}]
[59,{"$f":"Import!E24609","v":"Select"},{"$f":"Import!E24809","v":"Select"},{"$f":"Import!E25009","v":"Select"},{"$f":"Import!E25209","v":0},{"$f":"Import!E25409","v":0},{"$f":"Import!E25609","v":0}]
[60,{"$f":"Import!E24610","v":"Select"},{"$f":"Import!E24810","v":"Select"},{"$f":"Import!E25010","v":"Select"},{"$f":"Import!E25210","v":0},{"$f":"Import!E25410","v":0},{"$f":"Import!E25610","v":0}]
[61,{"$f":"Import!E24611","v":"Select"},{"$f":"Import!E24811","v":"Select"},{"$f":"Import!E25011","v":"Select"},{"$f":"Import!E25211","v":0},{"$f":"Import!E25411","v":0},{"$f":"Import!E25611","v":0}]
[62,{"$f":"Import!E24612","v":"Select"},{"$f":"Import!E24812","v":"Select"},{"$f":"Import!E25012","v":"Select"},{"$f":"Import!E25212","v":0},{"$f":"Import!E25412","v":0},{"$f":"Import!E25612","v":0}]
[63,{"$f":"Import!E24613","v":"Select"},{"$f":"Import!E24813","v":"Select"},{"$f":"Import!E25013","v":"Select"},{"$f":"Import!E25213","v":0},{"$f":"Import!E25413","v":0},{"$f":"Import!E25613","v":0}]
[64,{"$f":"Import!E24614","v":"Select"},{"$f":"Import!E24814","v":"Select"},{"$f":"Import!E25014","v":"Select"},{"$f":"Import!E25214","v":0},{"$f":"Import!E25414","v":0},{"$f":"Import!E25614","v":0}]
[65,{"$f":"Import!E24615","v":"Select"},{"$f":"Import!E24815","v":"Select"},{"$f":"Import!E25015","v":"Select"},{"$f":"Import!E25215","v":0},{"$f":"Import!E25415","v":0},{"$f":"Import!E25615","v":0}]
[66,{"$f":"Import!E24616","v":"Select"},{"$f":"Import!E24816","v":"Select"},{"$f":"Import!E25016","v":"Select"},{"$f":"Import!E25216","v":0},{"$f":"Import!E25416","v":0},{"$f":"Import!E25616","v":0}]
[{"$f":"A76+1","v":67},{"$f":"Import!E24617","v":"Select"},{"$f":"Import!E24817","v":"Select"},{"$f":"Import!E25017","v":"Select"},{"$f":"Import!E25217","v":0},{"$f":"Import!E25417","v":0},{"$f":"Import!E25617","v":0}]
[68,{"$f":"Import!E24618","v":"Select"},{"$f":"Import!E24818","v":"Select"},{"$f":"Import!E25018","v":"Select"},{"$f":"Import!E25218","v":0},{"$f":"Import!E25418","v":0},{"$f":"Import!E25618","v":0}]
[69,{"$f":"Import!E24619","v":"Select"},{"$f":"Import!E24819","v":"Select"},{"$f":"Import!E25019","v":"Select"},{"$f":"Import!E25219","v":0},{"$f":"Import!E25419","v":0},{"$f":"Import!E25619","v":0}]
[70,{"$f":"Import!E24620","v":"Select"},{"$f":"Import!E24820","v":"Select"},{"$f":"Import!E25020","v":"Select"},{"$f":"Import!E25220","v":0},{"$f":"Import!E25420","v":0},{"$f":"Import!E25620","v":0}]
[71,{"$f":"Import!E24621","v":"Select"},{"$f":"Import!E24821","v":"Select"},{"$f":"Import!E25021","v":"Select"},{"$f":"Import!E25221","v":0},{"$f":"Import!E25421","v":0},{"$f":"Import!E25621","v":0}]
[72,{"$f":"Import!E24622","v":"Select"},{"$f":"Import!E24822","v":"Select"},{"$f":"Import!E25022","v":"Select"},{"$f":"Import!E25222","v":0},{"$f":"Import!E25422","v":0},{"$f":"Import!E25622","v":0}]
[73,{"$f":"Import!E24623","v":"Select"},{"$f":"Import!E24823","v":"Select"},{"$f":"Import!E25023","v":"Select"},{"$f":"Import!E25223","v":0},{"$f":"Import!E25423","v":0},{"$f":"Import!E25623","v":0}]
[74,{"$f":"Import!E24624","v":"Select"},{"$f":"Import!E24824","v":"Select"},{"$f":"Import!E25024","v":"Select"},{"$f":"Import!E25224","v":0},{"$f":"Import!E25424","v":0},{"$f":"Import!E25624","v":0}]
[75,{"$f":"Import!E24625","v":"Select"},{"$f":"Import!E24825","v":"Select"},{"$f":"Import!E25025","v":"Select"},{"$f":"Import!E25225","v":0},{"$f":"Import!E25425","v":0},{"$f":"Import!E25625","v":0}]
[76,{"$f":"Import!E24626","v":"Select"},{"$f":"Import!E24826","v":"Select"},{"$f":"Import!E25026","v":"Select"},{"$f":"Import!E25226","v":0},{"$f":"Import!E25426","v":0},{"$f":"Import!E25626","v":0}]
[77,{"$f":"Import!E24627","v":"Select"},{"$f":"Import!E24827","v":"Select"},{"$f":"Import!E25027","v":"Select"},{"$f":"Import!E25227","v":0},{"$f":"Import!E25427","v":0},{"$f":"Import!E25627","v":0}]
[78,{"$f":"Import!E24628","v":"Select"},{"$f":"Import!E24828","v":"Select"},{"$f":"Import!E25028","v":"Select"},{"$f":"Import!E25228","v":0},{"$f":"Import!E25428","v":0},{"$f":"Import!E25628","v":0}]
[79,{"$f":"Import!E24629","v":"Select"},{"$f":"Import!E24829","v":"Select"},{"$f":"Import!E25029","v":"Select"},{"$f":"Import!E25229","v":0},{"$f":"Import!E25429","v":0},{"$f":"Import!E25629","v":0}]
[80,{"$f":"Import!E24630","v":"Select"},{"$f":"Import!E24830","v":"Select"},{"$f":"Import!E25030","v":"Select"},{"$f":"Import!E25230","v":0},{"$f":"Import!E25430","v":0},{"$f":"Import!E25630","v":0}]
[81,{"$f":"Import!E24631","v":"Select"},{"$f":"Import!E24831","v":"Select"},{"$f":"Import!E25031","v":"Select"},{"$f":"Import!E25231","v":0},{"$f":"Import!E25431","v":0},{"$f":"Import!E25631","v":0}]
[82,{"$f":"Import!E24632","v":"Select"},{"$f":"Import!E24832","v":"Select"},{"$f":"Import!E25032","v":"Select"},{"$f":"Import!E25232","v":0},{"$f":"Import!E25432","v":0},{"$f":"Import!E25632","v":0}]
[83,{"$f":"Import!E24633","v":"Select"},{"$f":"Import!E24833","v":"Select"},{"$f":"Import!E25033","v":"Select"},{"$f":"Import!E25233","v":0},{"$f":"Import!E25433","v":0},{"$f":"Import!E25633","v":0}]
[84,{"$f":"Import!E24634","v":"Select"},{"$f":"Import!E24834","v":"Select"},{"$f":"Import!E25034","v":"Select"},{"$f":"Import!E25234","v":0},{"$f":"Import!E25434","v":0},{"$f":"Import!E25634","v":0}]
[85,{"$f":"Import!E24635","v":"Select"},{"$f":"Import!E24835","v":"Select"},{"$f":"Import!E25035","v":"Select"},{"$f":"Import!E25235","v":0},{"$f":"Import!E25435","v":0},{"$f":"Import!E25635","v":0}]
[86,{"$f":"Import!E24636","v":"Select"},{"$f":"Import!E24836","v":"Select"},{"$f":"Import!E25036","v":"Select"},{"$f":"Import!E25236","v":0},{"$f":"Import!E25436","v":0},{"$f":"Import!E25636","v":0}]
[87,{"$f":"Import!E24637","v":"Select"},{"$f":"Import!E24837","v":"Select"},{"$f":"Import!E25037","v":"Select"},{"$f":"Import!E25237","v":0},{"$f":"Import!E25437","v":0},{"$f":"Import!E25637","v":0}]
[88,{"$f":"Import!E24638","v":"Select"},{"$f":"Import!E24838","v":"Select"},{"$f":"Import!E25038","v":"Select"},{"$f":"Import!E25238","v":0},{"$f":"Import!E25438","v":0},{"$f":"Import!E25638","v":0}]
[89,{"$f":"Import!E24639","v":"Select"},{"$f":"Import!E24839","v":"Select"},{"$f":"Import!E25039","v":"Select"},{"$f":"Import!E25239","v":0},{"$f":"Import!E25439","v":0},{"$f":"Import!E25639","v":0}]
[90,{"$f":"Import!E24640","v":"Select"},{"$f":"Import!E24840","v":"Select"},{"$f":"Import!E25040","v":"Select"},{"$f":"Import!E25240","v":0},{"$f":"Import!E25440","v":0},{"$f":"Import!E25640","v":0}]
[91,{"$f":"Import!E24641","v":"Select"},{"$f":"Import!E24841","v":"Select"},{"$f":"Import!E25041","v":"Select"},{"$f":"Import!E25241","v":0},{"$f":"Import!E25441","v":0},{"$f":"Import!E25641","v":0}]
[92,{"$f":"Import!E24642","v":"Select"},{"$f":"Import!E24842","v":"Select"},{"$f":"Import!E25042","v":"Select"},{"$f":"Import!E25242","v":0},{"$f":"Import!E25442","v":0},{"$f":"Import!E25642","v":0}]
[93,{"$f":"Import!E24643","v":"Select"},{"$f":"Import!E24843","v":"Select"},{"$f":"Import!E25043","v":"Select"},{"$f":"Import!E25243","v":0},{"$f":"Import!E25443","v":0},{"$f":"Import!E25643","v":0}]
[94,{"$f":"Import!E24644","v":"Select"},{"$f":"Import!E24844","v":"Select"},{"$f":"Import!E25044","v":"Select"},{"$f":"Import!E25244","v":0},{"$f":"Import!E25444","v":0},{"$f":"Import!E25644","v":0}]
[95,{"$f":"Import!E24645","v":"Select"},{"$f":"Import!E24845","v":"Select"},{"$f":"Import!E25045","v":"Select"},{"$f":"Import!E25245","v":0},{"$f":"Import!E25445","v":0},{"$f":"Import!E25645","v":0}]
[96,{"$f":"Import!E24646","v":"Select"},{"$f":"Import!E24846","v":"Select"},{"$f":"Import!E25046","v":"Select"},{"$f":"Import!E25246","v":0},{"$f":"Import!E25446","v":0},{"$f":"Import!E25646","v":0}]
[97,{"$f":"Import!E24647","v":"Select"},{"$f":"Import!E24847","v":"Select"},{"$f":"Import!E25047","v":"Select"},{"$f":"Import!E25247","v":0},{"$f":"Import!E25447","v":0},{"$f":"Import!E25647","v":0}]
[98,{"$f":"Import!E24648","v":"Select"},{"$f":"Import!E24848","v":"Select"},{"$f":"Import!E25048","v":"Select"},{"$f":"Import!E25248","v":0},{"$f":"Import!E25448","v":0},{"$f":"Import!E25648","v":0}]
[99,{"$f":"Import!E24649","v":"Select"},{"$f":"Import!E24849","v":"Select"},{"$f":"Import!E25049","v":"Select"},{"$f":"Import!E25249","v":0},{"$f":"Import!E25449","v":0},{"$f":"Import!E25649","v":0}]
[100,{"$f":"Import!E24650","v":"Select"},{"$f":"Import!E24850","v":"Select"},{"$f":"Import!E25050","v":"Select"},{"$f":"Import!E25250","v":0},{"$f":"Import!E25450","v":0},{"$f":"Import!E25650","v":0}]
[101,{"$f":"Import!E24651","v":"Select"},{"$f":"Import!E24851","v":"Select"},{"$f":"Import!E25051","v":"Select"},{"$f":"Import!E25251","v":0},{"$f":"Import!E25451","v":0},{"$f":"Import!E25651","v":0}]
[102,{"$f":"Import!E24652","v":"Select"},{"$f":"Import!E24852","v":"Select"},{"$f":"Import!E25052","v":"Select"},{"$f":"Import!E25252","v":0},{"$f":"Import!E25452","v":0},{"$f":"Import!E25652","v":0}]
[103,{"$f":"Import!E24653","v":"Select"},{"$f":"Import!E24853","v":"Select"},{"$f":"Import!E25053","v":"Select"},{"$f":"Import!E25253","v":0},{"$f":"Import!E25453","v":0},{"$f":"Import!E25653","v":0}]
[104,{"$f":"Import!E24654","v":"Select"},{"$f":"Import!E24854","v":"Select"},{"$f":"Import!E25054","v":"Select"},{"$f":"Import!E25254","v":0},{"$f":"Import!E25454","v":0},{"$f":"Import!E25654","v":0}]
[105,{"$f":"Import!E24655","v":"Select"},{"$f":"Import!E24855","v":"Select"},{"$f":"Import!E25055","v":"Select"},{"$f":"Import!E25255","v":0},{"$f":"Import!E25455","v":0},{"$f":"Import!E25655","v":0}]
[106,{"$f":"Import!E24656","v":"Select"},{"$f":"Import!E24856","v":"Select"},{"$f":"Import!E25056","v":"Select"},{"$f":"Import!E25256","v":0},{"$f":"Import!E25456","v":0},{"$f":"Import!E25656","v":0}]
[107,{"$f":"Import!E24657","v":"Select"},{"$f":"Import!E24857","v":"Select"},{"$f":"Import!E25057","v":"Select"},{"$f":"Import!E25257","v":0},{"$f":"Import!E25457","v":0},{"$f":"Import!E25657","v":0}]
[108,{"$f":"Import!E24658","v":"Select"},{"$f":"Import!E24858","v":"Select"},{"$f":"Import!E25058","v":"Select"},{"$f":"Import!E25258","v":0},{"$f":"Import!E25458","v":0},{"$f":"Import!E25658","v":0}]
[109,{"$f":"Import!E24659","v":"Select"},{"$f":"Import!E24859","v":"Select"},{"$f":"Import!E25059","v":"Select"},{"$f":"Import!E25259","v":0},{"$f":"Import!E25459","v":0},{"$f":"Import!E25659","v":0}]
[110,{"$f":"Import!E24660","v":"Select"},{"$f":"Import!E24860","v":"Select"},{"$f":"Import!E25060","v":"Select"},{"$f":"Import!E25260","v":0},{"$f":"Import!E25460","v":0},{"$f":"Import!E25660","v":0}]
[111,{"$f":"Import!E24661","v":"Select"},{"$f":"Import!E24861","v":"Select"},{"$f":"Import!E25061","v":"Select"},{"$f":"Import!E25261","v":0},{"$f":"Import!E25461","v":0},{"$f":"Import!E25661","v":0}]
[112,{"$f":"Import!E24662","v":"Select"},{"$f":"Import!E24862","v":"Select"},{"$f":"Import!E25062","v":"Select"},{"$f":"Import!E25262","v":0},{"$f":"Import!E25462","v":0},{"$f":"Import!E25662","v":0}]
[113,{"$f":"Import!E24663","v":"Select"},{"$f":"Import!E24863","v":"Select"},{"$f":"Import!E25063","v":"Select"},{"$f":"Import!E25263","v":0},{"$f":"Import!E25463","v":0},{"$f":"Import!E25663","v":0}]
[114,{"$f":"Import!E24664","v":"Select"},{"$f":"Import!E24864","v":"Select"},{"$f":"Import!E25064","v":"Select"},{"$f":"Import!E25264","v":0},{"$f":"Import!E25464","v":0},{"$f":"Import!E25664","v":0}]
[115,{"$f":"Import!E24665","v":"Select"},{"$f":"Import!E24865","v":"Select"},{"$f":"Import!E25065","v":"Select"},{"$f":"Import!E25265","v":0},{"$f":"Import!E25465","v":0},{"$f":"Import!E25665","v":0}]
[116,{"$f":"Import!E24666","v":"Select"},{"$f":"Import!E24866","v":"Select"},{"$f":"Import!E25066","v":"Select"},{"$f":"Import!E25266","v":0},{"$f":"Import!E25466","v":0},{"$f":"Import!E25666","v":0}]
[117,{"$f":"Import!E24667","v":"Select"},{"$f":"Import!E24867","v":"Select"},{"$f":"Import!E25067","v":"Select"},{"$f":"Import!E25267","v":0},{"$f":"Import!E25467","v":0},{"$f":"Import!E25667","v":0}]
[118,{"$f":"Import!E24668","v":"Select"},{"$f":"Import!E24868","v":"Select"},{"$f":"Import!E25068","v":"Select"},{"$f":"Import!E25268","v":0},{"$f":"Import!E25468","v":0},{"$f":"Import!E25668","v":0}]
[119,{"$f":"Import!E24669","v":"Select"},{"$f":"Import!E24869","v":"Select"},{"$f":"Import!E25069","v":"Select"},{"$f":"Import!E25269","v":0},{"$f":"Import!E25469","v":0},{"$f":"Import!E25669","v":0}]
[120,{"$f":"Import!E24670","v":"Select"},{"$f":"Import!E24870","v":"Select"},{"$f":"Import!E25070","v":"Select"},{"$f":"Import!E25270","v":0},{"$f":"Import!E25470","v":0},{"$f":"Import!E25670","v":0}]
[121,{"$f":"Import!E24671","v":"Select"},{"$f":"Import!E24871","v":"Select"},{"$f":"Import!E25071","v":"Select"},{"$f":"Import!E25271","v":0},{"$f":"Import!E25471","v":0},{"$f":"Import!E25671","v":0}]
[122,{"$f":"Import!E24672","v":"Select"},{"$f":"Import!E24872","v":"Select"},{"$f":"Import!E25072","v":"Select"},{"$f":"Import!E25272","v":0},{"$f":"Import!E25472","v":0},{"$f":"Import!E25672","v":0}]
[123,{"$f":"Import!E24673","v":"Select"},{"$f":"Import!E24873","v":"Select"},{"$f":"Import!E25073","v":"Select"},{"$f":"Import!E25273","v":0},{"$f":"Import!E25473","v":0},{"$f":"Import!E25673","v":0}]
[124,{"$f":"Import!E24674","v":"Select"},{"$f":"Import!E24874","v":"Select"},{"$f":"Import!E25074","v":"Select"},{"$f":"Import!E25274","v":0},{"$f":"Import!E25474","v":0},{"$f":"Import!E25674","v":0}]
[125,{"$f":"Import!E24675","v":"Select"},{"$f":"Import!E24875","v":"Select"},{"$f":"Import!E25075","v":"Select"},{"$f":"Import!E25275","v":0},{"$f":"Import!E25475","v":0},{"$f":"Import!E25675","v":0}]
[126,{"$f":"Import!E24676","v":"Select"},{"$f":"Import!E24876","v":"Select"},{"$f":"Import!E25076","v":"Select"},{"$f":"Import!E25276","v":0},{"$f":"Import!E25476","v":0},{"$f":"Import!E25676","v":0}]
[127,{"$f":"Import!E24677","v":"Select"},{"$f":"Import!E24877","v":"Select"},{"$f":"Import!E25077","v":"Select"},{"$f":"Import!E25277","v":0},{"$f":"Import!E25477","v":0},{"$f":"Import!E25677","v":0}]
[128,{"$f":"Import!E24678","v":"Select"},{"$f":"Import!E24878","v":"Select"},{"$f":"Import!E25078","v":"Select"},{"$f":"Import!E25278","v":0},{"$f":"Import!E25478","v":0},{"$f":"Import!E25678","v":0}]
[129,{"$f":"Import!E24679","v":"Select"},{"$f":"Import!E24879","v":"Select"},{"$f":"Import!E25079","v":"Select"},{"$f":"Import!E25279","v":0},{"$f":"Import!E25479","v":0},{"$f":"Import!E25679","v":0}]
[130,{"$f":"Import!E24680","v":"Select"},{"$f":"Import!E24880","v":"Select"},{"$f":"Import!E25080","v":"Select"},{"$f":"Import!E25280","v":0},{"$f":"Import!E25480","v":0},{"$f":"Import!E25680","v":0}]
[{"$f":"A140+1","v":131},{"$f":"Import!E24681","v":"Select"},{"$f":"Import!E24881","v":"Select"},{"$f":"Import!E25081","v":"Select"},{"$f":"Import!E25281","v":0},{"$f":"Import!E25481","v":0},{"$f":"Import!E25681","v":0}]
[132,{"$f":"Import!E24682","v":"Select"},{"$f":"Import!E24882","v":"Select"},{"$f":"Import!E25082","v":"Select"},{"$f":"Import!E25282","v":0},{"$f":"Import!E25482","v":0},{"$f":"Import!E25682","v":0}]
[133,{"$f":"Import!E24683","v":"Select"},{"$f":"Import!E24883","v":"Select"},{"$f":"Import!E25083","v":"Select"},{"$f":"Import!E25283","v":0},{"$f":"Import!E25483","v":0},{"$f":"Import!E25683","v":0}]
[134,{"$f":"Import!E24684","v":"Select"},{"$f":"Import!E24884","v":"Select"},{"$f":"Import!E25084","v":"Select"},{"$f":"Import!E25284","v":0},{"$f":"Import!E25484","v":0},{"$f":"Import!E25684","v":0}]
[135,{"$f":"Import!E24685","v":"Select"},{"$f":"Import!E24885","v":"Select"},{"$f":"Import!E25085","v":"Select"},{"$f":"Import!E25285","v":0},{"$f":"Import!E25485","v":0},{"$f":"Import!E25685","v":0}]
[136,{"$f":"Import!E24686","v":"Select"},{"$f":"Import!E24886","v":"Select"},{"$f":"Import!E25086","v":"Select"},{"$f":"Import!E25286","v":0},{"$f":"Import!E25486","v":0},{"$f":"Import!E25686","v":0}]
[137,{"$f":"Import!E24687","v":"Select"},{"$f":"Import!E24887","v":"Select"},{"$f":"Import!E25087","v":"Select"},{"$f":"Import!E25287","v":0},{"$f":"Import!E25487","v":0},{"$f":"Import!E25687","v":0}]
[138,{"$f":"Import!E24688","v":"Select"},{"$f":"Import!E24888","v":"Select"},{"$f":"Import!E25088","v":"Select"},{"$f":"Import!E25288","v":0},{"$f":"Import!E25488","v":0},{"$f":"Import!E25688","v":0}]
[139,{"$f":"Import!E24689","v":"Select"},{"$f":"Import!E24889","v":"Select"},{"$f":"Import!E25089","v":"Select"},{"$f":"Import!E25289","v":0},{"$f":"Import!E25489","v":0},{"$f":"Import!E25689","v":0}]
[140,{"$f":"Import!E24690","v":"Select"},{"$f":"Import!E24890","v":"Select"},{"$f":"Import!E25090","v":"Select"},{"$f":"Import!E25290","v":0},{"$f":"Import!E25490","v":0},{"$f":"Import!E25690","v":0}]
[141,{"$f":"Import!E24691","v":"Select"},{"$f":"Import!E24891","v":"Select"},{"$f":"Import!E25091","v":"Select"},{"$f":"Import!E25291","v":0},{"$f":"Import!E25491","v":0},{"$f":"Import!E25691","v":0}]
[142,{"$f":"Import!E24692","v":"Select"},{"$f":"Import!E24892","v":"Select"},{"$f":"Import!E25092","v":"Select"},{"$f":"Import!E25292","v":0},{"$f":"Import!E25492","v":0},{"$f":"Import!E25692","v":0}]
[143,{"$f":"Import!E24693","v":"Select"},{"$f":"Import!E24893","v":"Select"},{"$f":"Import!E25093","v":"Select"},{"$f":"Import!E25293","v":0},{"$f":"Import!E25493","v":0},{"$f":"Import!E25693","v":0}]
[144,{"$f":"Import!E24694","v":"Select"},{"$f":"Import!E24894","v":"Select"},{"$f":"Import!E25094","v":"Select"},{"$f":"Import!E25294","v":0},{"$f":"Import!E25494","v":0},{"$f":"Import!E25694","v":0}]
[145,{"$f":"Import!E24695","v":"Select"},{"$f":"Import!E24895","v":"Select"},{"$f":"Import!E25095","v":"Select"},{"$f":"Import!E25295","v":0},{"$f":"Import!E25495","v":0},{"$f":"Import!E25695","v":0}]
[146,{"$f":"Import!E24696","v":"Select"},{"$f":"Import!E24896","v":"Select"},{"$f":"Import!E25096","v":"Select"},{"$f":"Import!E25296","v":0},{"$f":"Import!E25496","v":0},{"$f":"Import!E25696","v":0}]
[147,{"$f":"Import!E24697","v":"Select"},{"$f":"Import!E24897","v":"Select"},{"$f":"Import!E25097","v":"Select"},{"$f":"Import!E25297","v":0},{"$f":"Import!E25497","v":0},{"$f":"Import!E25697","v":0}]
[148,{"$f":"Import!E24698","v":"Select"},{"$f":"Import!E24898","v":"Select"},{"$f":"Import!E25098","v":"Select"},{"$f":"Import!E25298","v":0},{"$f":"Import!E25498","v":0},{"$f":"Import!E25698","v":0}]
[149,{"$f":"Import!E24699","v":"Select"},{"$f":"Import!E24899","v":"Select"},{"$f":"Import!E25099","v":"Select"},{"$f":"Import!E25299","v":0},{"$f":"Import!E25499","v":0},{"$f":"Import!E25699","v":0}]
[150,{"$f":"Import!E24700","v":"Select"},{"$f":"Import!E24900","v":"Select"},{"$f":"Import!E25100","v":"Select"},{"$f":"Import!E25300","v":0},{"$f":"Import!E25500","v":0},{"$f":"Import!E25700","v":0}]
[151,{"$f":"Import!E24701","v":"Select"},{"$f":"Import!E24901","v":"Select"},{"$f":"Import!E25101","v":"Select"},{"$f":"Import!E25301","v":0},{"$f":"Import!E25501","v":0},{"$f":"Import!E25701","v":0}]
[152,{"$f":"Import!E24702","v":"Select"},{"$f":"Import!E24902","v":"Select"},{"$f":"Import!E25102","v":"Select"},{"$f":"Import!E25302","v":0},{"$f":"Import!E25502","v":0},{"$f":"Import!E25702","v":0}]
[153,{"$f":"Import!E24703","v":"Select"},{"$f":"Import!E24903","v":"Select"},{"$f":"Import!E25103","v":"Select"},{"$f":"Import!E25303","v":0},{"$f":"Import!E25503","v":0},{"$f":"Import!E25703","v":0}]
[154,{"$f":"Import!E24704","v":"Select"},{"$f":"Import!E24904","v":"Select"},{"$f":"Import!E25104","v":"Select"},{"$f":"Import!E25304","v":0},{"$f":"Import!E25504","v":0},{"$f":"Import!E25704","v":0}]
[155,{"$f":"Import!E24705","v":"Select"},{"$f":"Import!E24905","v":"Select"},{"$f":"Import!E25105","v":"Select"},{"$f":"Import!E25305","v":0},{"$f":"Import!E25505","v":0},{"$f":"Import!E25705","v":0}]
[156,{"$f":"Import!E24706","v":"Select"},{"$f":"Import!E24906","v":"Select"},{"$f":"Import!E25106","v":"Select"},{"$f":"Import!E25306","v":0},{"$f":"Import!E25506","v":0},{"$f":"Import!E25706","v":0}]
[157,{"$f":"Import!E24707","v":"Select"},{"$f":"Import!E24907","v":"Select"},{"$f":"Import!E25107","v":"Select"},{"$f":"Import!E25307","v":0},{"$f":"Import!E25507","v":0},{"$f":"Import!E25707","v":0}]
[158,{"$f":"Import!E24708","v":"Select"},{"$f":"Import!E24908","v":"Select"},{"$f":"Import!E25108","v":"Select"},{"$f":"Import!E25308","v":0},{"$f":"Import!E25508","v":0},{"$f":"Import!E25708","v":0}]
[159,{"$f":"Import!E24709","v":"Select"},{"$f":"Import!E24909","v":"Select"},{"$f":"Import!E25109","v":"Select"},{"$f":"Import!E25309","v":0},{"$f":"Import!E25509","v":0},{"$f":"Import!E25709","v":0}]
[160,{"$f":"Import!E24710","v":"Select"},{"$f":"Import!E24910","v":"Select"},{"$f":"Import!E25110","v":"Select"},{"$f":"Import!E25310","v":0},{"$f":"Import!E25510","v":0},{"$f":"Import!E25710","v":0}]
[161,{"$f":"Import!E24711","v":"Select"},{"$f":"Import!E24911","v":"Select"},{"$f":"Import!E25111","v":"Select"},{"$f":"Import!E25311","v":0},{"$f":"Import!E25511","v":0},{"$f":"Import!E25711","v":0}]
[162,{"$f":"Import!E24712","v":"Select"},{"$f":"Import!E24912","v":"Select"},{"$f":"Import!E25112","v":"Select"},{"$f":"Import!E25312","v":0},{"$f":"Import!E25512","v":0},{"$f":"Import!E25712","v":0}]
[163,{"$f":"Import!E24713","v":"Select"},{"$f":"Import!E24913","v":"Select"},{"$f":"Import!E25113","v":"Select"},{"$f":"Import!E25313","v":0},{"$f":"Import!E25513","v":0},{"$f":"Import!E25713","v":0}]
[164,{"$f":"Import!E24714","v":"Select"},{"$f":"Import!E24914","v":"Select"},{"$f":"Import!E25114","v":"Select"},{"$f":"Import!E25314","v":0},{"$f":"Import!E25514","v":0},{"$f":"Import!E25714","v":0}]
[165,{"$f":"Import!E24715","v":"Select"},{"$f":"Import!E24915","v":"Select"},{"$f":"Import!E25115","v":"Select"},{"$f":"Import!E25315","v":0},{"$f":"Import!E25515","v":0},{"$f":"Import!E25715","v":0}]
[166,{"$f":"Import!E24716","v":"Select"},{"$f":"Import!E24916","v":"Select"},{"$f":"Import!E25116","v":"Select"},{"$f":"Import!E25316","v":0},{"$f":"Import!E25516","v":0},{"$f":"Import!E25716","v":0}]
[167,{"$f":"Import!E24717","v":"Select"},{"$f":"Import!E24917","v":"Select"},{"$f":"Import!E25117","v":"Select"},{"$f":"Import!E25317","v":0},{"$f":"Import!E25517","v":0},{"$f":"Import!E25717","v":0}]
[168,{"$f":"Import!E24718","v":"Select"},{"$f":"Import!E24918","v":"Select"},{"$f":"Import!E25118","v":"Select"},{"$f":"Import!E25318","v":0},{"$f":"Import!E25518","v":0},{"$f":"Import!E25718","v":0}]
[169,{"$f":"Import!E24719","v":"Select"},{"$f":"Import!E24919","v":"Select"},{"$f":"Import!E25119","v":"Select"},{"$f":"Import!E25319","v":0},{"$f":"Import!E25519","v":0},{"$f":"Import!E25719","v":0}]
[170,{"$f":"Import!E24720","v":"Select"},{"$f":"Import!E24920","v":"Select"},{"$f":"Import!E25120","v":"Select"},{"$f":"Import!E25320","v":0},{"$f":"Import!E25520","v":0},{"$f":"Import!E25720","v":0}]
[171,{"$f":"Import!E24721","v":"Select"},{"$f":"Import!E24921","v":"Select"},{"$f":"Import!E25121","v":"Select"},{"$f":"Import!E25321","v":0},{"$f":"Import!E25521","v":0},{"$f":"Import!E25721","v":0}]
[172,{"$f":"Import!E24722","v":"Select"},{"$f":"Import!E24922","v":"Select"},{"$f":"Import!E25122","v":"Select"},{"$f":"Import!E25322","v":0},{"$f":"Import!E25522","v":0},{"$f":"Import!E25722","v":0}]
[173,{"$f":"Import!E24723","v":"Select"},{"$f":"Import!E24923","v":"Select"},{"$f":"Import!E25123","v":"Select"},{"$f":"Import!E25323","v":0},{"$f":"Import!E25523","v":0},{"$f":"Import!E25723","v":0}]
[174,{"$f":"Import!E24724","v":"Select"},{"$f":"Import!E24924","v":"Select"},{"$f":"Import!E25124","v":"Select"},{"$f":"Import!E25324","v":0},{"$f":"Import!E25524","v":0},{"$f":"Import!E25724","v":0}]
[175,{"$f":"Import!E24725","v":"Select"},{"$f":"Import!E24925","v":"Select"},{"$f":"Import!E25125","v":"Select"},{"$f":"Import!E25325","v":0},{"$f":"Import!E25525","v":0},{"$f":"Import!E25725","v":0}]
[176,{"$f":"Import!E24726","v":"Select"},{"$f":"Import!E24926","v":"Select"},{"$f":"Import!E25126","v":"Select"},{"$f":"Import!E25326","v":0},{"$f":"Import!E25526","v":0},{"$f":"Import!E25726","v":0}]
[177,{"$f":"Import!E24727","v":"Select"},{"$f":"Import!E24927","v":"Select"},{"$f":"Import!E25127","v":"Select"},{"$f":"Import!E25327","v":0},{"$f":"Import!E25527","v":0},{"$f":"Import!E25727","v":0}]
[178,{"$f":"Import!E24728","v":"Select"},{"$f":"Import!E24928","v":"Select"},{"$f":"Import!E25128","v":"Select"},{"$f":"Import!E25328","v":0},{"$f":"Import!E25528","v":0},{"$f":"Import!E25728","v":0}]
[179,{"$f":"Import!E24729","v":"Select"},{"$f":"Import!E24929","v":"Select"},{"$f":"Import!E25129","v":"Select"},{"$f":"Import!E25329","v":0},{"$f":"Import!E25529","v":0},{"$f":"Import!E25729","v":0}]
[180,{"$f":"Import!E24730","v":"Select"},{"$f":"Import!E24930","v":"Select"},{"$f":"Import!E25130","v":"Select"},{"$f":"Import!E25330","v":0},{"$f":"Import!E25530","v":0},{"$f":"Import!E25730","v":0}]
[181,{"$f":"Import!E24731","v":"Select"},{"$f":"Import!E24931","v":"Select"},{"$f":"Import!E25131","v":"Select"},{"$f":"Import!E25331","v":0},{"$f":"Import!E25531","v":0},{"$f":"Import!E25731","v":0}]
[182,{"$f":"Import!E24732","v":"Select"},{"$f":"Import!E24932","v":"Select"},{"$f":"Import!E25132","v":"Select"},{"$f":"Import!E25332","v":0},{"$f":"Import!E25532","v":0},{"$f":"Import!E25732","v":0}]
[183,{"$f":"Import!E24733","v":"Select"},{"$f":"Import!E24933","v":"Select"},{"$f":"Import!E25133","v":"Select"},{"$f":"Import!E25333","v":0},{"$f":"Import!E25533","v":0},{"$f":"Import!E25733","v":0}]
[184,{"$f":"Import!E24734","v":"Select"},{"$f":"Import!E24934","v":"Select"},{"$f":"Import!E25134","v":"Select"},{"$f":"Import!E25334","v":0},{"$f":"Import!E25534","v":0},{"$f":"Import!E25734","v":0}]
[185,{"$f":"Import!E24735","v":"Select"},{"$f":"Import!E24935","v":"Select"},{"$f":"Import!E25135","v":"Select"},{"$f":"Import!E25335","v":0},{"$f":"Import!E25535","v":0},{"$f":"Import!E25735","v":0}]
[186,{"$f":"Import!E24736","v":"Select"},{"$f":"Import!E24936","v":"Select"},{"$f":"Import!E25136","v":"Select"},{"$f":"Import!E25336","v":0},{"$f":"Import!E25536","v":0},{"$f":"Import!E25736","v":0}]
[187,{"$f":"Import!E24737","v":"Select"},{"$f":"Import!E24937","v":"Select"},{"$f":"Import!E25137","v":"Select"},{"$f":"Import!E25337","v":0},{"$f":"Import!E25537","v":0},{"$f":"Import!E25737","v":0}]
[188,{"$f":"Import!E24738","v":"Select"},{"$f":"Import!E24938","v":"Select"},{"$f":"Import!E25138","v":"Select"},{"$f":"Import!E25338","v":0},{"$f":"Import!E25538","v":0},{"$f":"Import!E25738","v":0}]
[189,{"$f":"Import!E24739","v":"Select"},{"$f":"Import!E24939","v":"Select"},{"$f":"Import!E25139","v":"Select"},{"$f":"Import!E25339","v":0},{"$f":"Import!E25539","v":0},{"$f":"Import!E25739","v":0}]
[190,{"$f":"Import!E24740","v":"Select"},{"$f":"Import!E24940","v":"Select"},{"$f":"Import!E25140","v":"Select"},{"$f":"Import!E25340","v":0},{"$f":"Import!E25540","v":0},{"$f":"Import!E25740","v":0}]
[191,{"$f":"Import!E24741","v":"Select"},{"$f":"Import!E24941","v":"Select"},{"$f":"Import!E25141","v":"Select"},{"$f":"Import!E25341","v":0},{"$f":"Import!E25541","v":0},{"$f":"Import!E25741","v":0}]
[192,{"$f":"Import!E24742","v":"Select"},{"$f":"Import!E24942","v":"Select"},{"$f":"Import!E25142","v":"Select"},{"$f":"Import!E25342","v":0},{"$f":"Import!E25542","v":0},{"$f":"Import!E25742","v":0}]
[193,{"$f":"Import!E24743","v":"Select"},{"$f":"Import!E24943","v":"Select"},{"$f":"Import!E25143","v":"Select"},{"$f":"Import!E25343","v":0},{"$f":"Import!E25543","v":0},{"$f":"Import!E25743","v":0}]
[194,{"$f":"Import!E24744","v":"Select"},{"$f":"Import!E24944","v":"Select"},{"$f":"Import!E25144","v":"Select"},{"$f":"Import!E25344","v":0},{"$f":"Import!E25544","v":0},{"$f":"Import!E25744","v":0}]
[{"$f":"A204+1","v":195},{"$f":"Import!E24745","v":"Select"},{"$f":"Import!E24945","v":"Select"},{"$f":"Import!E25145","v":"Select"},{"$f":"Import!E25345","v":0},{"$f":"Import!E25545","v":0},{"$f":"Import!E25745","v":0}]
[196,{"$f":"Import!E24746","v":"Select"},{"$f":"Import!E24946","v":"Select"},{"$f":"Import!E25146","v":"Select"},{"$f":"Import!E25346","v":0},{"$f":"Import!E25546","v":0},{"$f":"Import!E25746","v":0}]
[197,{"$f":"Import!E24747","v":"Select"},{"$f":"Import!E24947","v":"Select"},{"$f":"Import!E25147","v":"Select"},{"$f":"Import!E25347","v":0},{"$f":"Import!E25547","v":0},{"$f":"Import!E25747","v":0}]
[198,{"$f":"Import!E24748","v":"Select"},{"$f":"Import!E24948","v":"Select"},{"$f":"Import!E25148","v":"Select"},{"$f":"Import!E25348","v":0},{"$f":"Import!E25548","v":0},{"$f":"Import!E25748","v":0}]
[199,{"$f":"Import!E24749","v":"Select"},{"$f":"Import!E24949","v":"Select"},{"$f":"Import!E25149","v":"Select"},{"$f":"Import!E25349","v":0},{"$f":"Import!E25549","v":0},{"$f":"Import!E25749","v":0}]
[200,{"$f":"Import!E24750","v":"Select"},{"$f":"Import!E24950","v":"Select"},{"$f":"Import!E25150","v":"Select"},{"$f":"Import!E25350","v":0},{"$f":"Import!E25550","v":0},{"$f":"Import!E25750","v":0}]
[]
[null,"Total Cash and Cash Equivalents",null,null,{"$f":"SUM(E11:E210)","v":0},{"$f":"SUM(F11:F210)","v":0}]
[]
[null,"(B) BONDS AND DEBENTURES"]
[]
[null,null,"Enter # of Asset Types",{"$f":"Import!E25751","v":0}]
[null,null,null,null,{"$f":"YEAR($C$3)","v":2023},2023,"Weighted"]
[null,"Asset Type","Currency","BSCR Rating","Nominal Amount","Fair Value","Average YTM","Effective Duration","Comments"]
[1,{"$f":"Import!E25752","v":"Select"},{"$f":"Import!E26152","v":"Select"},{"$f":"Import!E26552","v":"Select"},{"$f":"Import!E26952","v":0},{"$f":"Import!E27352","v":0},{"$f":"Import!E27752","v":0},{"$f":"Import!E28152","v":0},{"$f":"Import!E28552","v":0}]
[{"$f":"A219+1","v":2},{"$f":"Import!E25753","v":"Select"},{"$f":"Import!E26153","v":"Select"},{"$f":"Import!E26553","v":"Select"},{"$f":"Import!E26953","v":0},{"$f":"Import!E27353","v":0},{"$f":"Import!E27753","v":0},{"$f":"Import!E28153","v":0},{"$f":"Import!E28553","v":0}]
[{"$f":"A220+1","v":3},{"$f":"Import!E25754","v":"Select"},{"$f":"Import!E26154","v":"Select"},{"$f":"Import!E26554","v":"Select"},{"$f":"Import!E26954","v":0},{"$f":"Import!E27354","v":0},{"$f":"Import!E27754","v":0},{"$f":"Import!E28154","v":0},{"$f":"Import!E28554","v":0}]
[4,{"$f":"Import!E25755","v":"Select"},{"$f":"Import!E26155","v":"Select"},{"$f":"Import!E26555","v":"Select"},{"$f":"Import!E26955","v":0},{"$f":"Import!E27355","v":0},{"$f":"Import!E27755","v":0},{"$f":"Import!E28155","v":0},{"$f":"Import!E28555","v":0}]
[5,{"$f":"Import!E25756","v":"Select"},{"$f":"Import!E26156","v":"Select"},{"$f":"Import!E26556","v":"Select"},{"$f":"Import!E26956","v":0},{"$f":"Import!E27356","v":0},{"$f":"Import!E27756","v":0},{"$f":"Import!E28156","v":0},{"$f":"Import!E28556","v":0}]
[6,{"$f":"Import!E25757","v":"Select"},{"$f":"Import!E26157","v":"Select"},{"$f":"Import!E26557","v":"Select"},{"$f":"Import!E26957","v":0},{"$f":"Import!E27357","v":0},{"$f":"Import!E27757","v":0},{"$f":"Import!E28157","v":0},{"$f":"Import!E28557","v":0}]
[7,{"$f":"Import!E25758","v":"Select"},{"$f":"Import!E26158","v":"Select"},{"$f":"Import!E26558","v":"Select"},{"$f":"Import!E26958","v":0},{"$f":"Import!E27358","v":0},{"$f":"Import!E27758","v":0},{"$f":"Import!E28158","v":0},{"$f":"Import!E28558","v":0}]
[8,{"$f":"Import!E25759","v":"Select"},{"$f":"Import!E26159","v":"Select"},{"$f":"Import!E26559","v":"Select"},{"$f":"Import!E26959","v":0},{"$f":"Import!E27359","v":0},{"$f":"Import!E27759","v":0},{"$f":"Import!E28159","v":0},{"$f":"Import!E28559","v":0}]
[9,{"$f":"Import!E25760","v":"Select"},{"$f":"Import!E26160","v":"Select"},{"$f":"Import!E26560","v":"Select"},{"$f":"Import!E26960","v":0},{"$f":"Import!E27360","v":0},{"$f":"Import!E27760","v":0},{"$f":"Import!E28160","v":0},{"$f":"Import!E28560","v":0}]
[10,{"$f":"Import!E25761","v":"Select"},{"$f":"Import!E26161","v":"Select"},{"$f":"Import!E26561","v":"Select"},{"$f":"Import!E26961","v":0},{"$f":"Import!E27361","v":0},{"$f":"Import!E27761","v":0},{"$f":"Import!E28161","v":0},{"$f":"Import!E28561","v":0}]
[11,{"$f":"Import!E25762","v":"Select"},{"$f":"Import!E26162","v":"Select"},{"$f":"Import!E26562","v":"Select"},{"$f":"Import!E26962","v":0},{"$f":"Import!E27362","v":0},{"$f":"Import!E27762","v":0},{"$f":"Import!E28162","v":0},{"$f":"Import!E28562","v":0}]
[12,{"$f":"Import!E25763","v":"Select"},{"$f":"Import!E26163","v":"Select"},{"$f":"Import!E26563","v":"Select"},{"$f":"Import!E26963","v":0},{"$f":"Import!E27363","v":0},{"$f":"Import!E27763","v":0},{"$f":"Import!E28163","v":0},{"$f":"Import!E28563","v":0}]
[13,{"$f":"Import!E25764","v":"Select"},{"$f":"Import!E26164","v":"Select"},{"$f":"Import!E26564","v":"Select"},{"$f":"Import!E26964","v":0},{"$f":"Import!E27364","v":0},{"$f":"Import!E27764","v":0},{"$f":"Import!E28164","v":0},{"$f":"Import!E28564","v":0}]
[14,{"$f":"Import!E25765","v":"Select"},{"$f":"Import!E26165","v":"Select"},{"$f":"Import!E26565","v":"Select"},{"$f":"Import!E26965","v":0},{"$f":"Import!E27365","v":0},{"$f":"Import!E27765","v":0},{"$f":"Import!E28165","v":0},{"$f":"Import!E28565","v":0}]
[15,{"$f":"Import!E25766","v":"Select"},{"$f":"Import!E26166","v":"Select"},{"$f":"Import!E26566","v":"Select"},{"$f":"Import!E26966","v":0},{"$f":"Import!E27366","v":0},{"$f":"Import!E27766","v":0},{"$f":"Import!E28166","v":0},{"$f":"Import!E28566","v":0}]
[16,{"$f":"Import!E25767","v":"Select"},{"$f":"Import!E26167","v":"Select"},{"$f":"Import!E26567","v":"Select"},{"$f":"Import!E26967","v":0},{"$f":"Import!E27367","v":0},{"$f":"Import!E27767","v":0},{"$f":"Import!E28167","v":0},{"$f":"Import!E28567","v":0}]
[17,{"$f":"Import!E25768","v":"Select"},{"$f":"Import!E26168","v":"Select"},{"$f":"Import!E26568","v":"Select"},{"$f":"Import!E26968","v":0},{"$f":"Import!E27368","v":0},{"$f":"Import!E27768","v":0},{"$f":"Import!E28168","v":0},{"$f":"Import!E28568","v":0}]
[18,{"$f":"Import!E25769","v":"Select"},{"$f":"Import!E26169","v":"Select"},{"$f":"Import!E26569","v":"Select"},{"$f":"Import!E26969","v":0},{"$f":"Import!E27369","v":0},{"$f":"Import!E27769","v":0},{"$f":"Import!E28169","v":0},{"$f":"Import!E28569","v":0}]
[19,{"$f":"Import!E25770","v":"Select"},{"$f":"Import!E26170","v":"Select"},{"$f":"Import!E26570","v":"Select"},{"$f":"Import!E26970","v":0},{"$f":"Import!E27370","v":0},{"$f":"Import!E27770","v":0},{"$f":"Import!E28170","v":0},{"$f":"Import!E28570","v":0}]
[20,{"$f":"Import!E25771","v":"Select"},{"$f":"Import!E26171","v":"Select"},{"$f":"Import!E26571","v":"Select"},{"$f":"Import!E26971","v":0},{"$f":"Import!E27371","v":0},{"$f":"Import!E27771","v":0},{"$f":"Import!E28171","v":0},{"$f":"Import!E28571","v":0}]
[21,{"$f":"Import!E25772","v":"Select"},{"$f":"Import!E26172","v":"Select"},{"$f":"Import!E26572","v":"Select"},{"$f":"Import!E26972","v":0},{"$f":"Import!E27372","v":0},{"$f":"Import!E27772","v":0},{"$f":"Import!E28172","v":0},{"$f":"Import!E28572","v":0}]
[22,{"$f":"Import!E25773","v":"Select"},{"$f":"Import!E26173","v":"Select"},{"$f":"Import!E26573","v":"Select"},{"$f":"Import!E26973","v":0},{"$f":"Import!E27373","v":0},{"$f":"Import!E27773","v":0},{"$f":"Import!E28173","v":0},{"$f":"Import!E28573","v":0}]
[23,{"$f":"Import!E25774","v":"Select"},{"$f":"Import!E26174","v":"Select"},{"$f":"Import!E26574","v":"Select"},{"$f":"Import!E26974","v":0},{"$f":"Import!E27374","v":0},{"$f":"Import!E27774","v":0},{"$f":"Import!E28174","v":0},{"$f":"Import!E28574","v":0}]
[24,{"$f":"Import!E25775","v":"Select"},{"$f":"Import!E26175","v":"Select"},{"$f":"Import!E26575","v":"Select"},{"$f":"Import!E26975","v":0},{"$f":"Import!E27375","v":0},{"$f":"Import!E27775","v":0},{"$f":"Import!E28175","v":0},{"$f":"Import!E28575","v":0}]
[25,{"$f":"Import!E25776","v":"Select"},{"$f":"Import!E26176","v":"Select"},{"$f":"Import!E26576","v":"Select"},{"$f":"Import!E26976","v":0},{"$f":"Import!E27376","v":0},{"$f":"Import!E27776","v":0},{"$f":"Import!E28176","v":0},{"$f":"Import!E28576","v":0}]
[26,{"$f":"Import!E25777","v":"Select"},{"$f":"Import!E26177","v":"Select"},{"$f":"Import!E26577","v":"Select"},{"$f":"Import!E26977","v":0},{"$f":"Import!E27377","v":0},{"$f":"Import!E27777","v":0},{"$f":"Import!E28177","v":0},{"$f":"Import!E28577","v":0}]
[27,{"$f":"Import!E25778","v":"Select"},{"$f":"Import!E26178","v":"Select"},{"$f":"Import!E26578","v":"Select"},{"$f":"Import!E26978","v":0},{"$f":"Import!E27378","v":0},{"$f":"Import!E27778","v":0},{"$f":"Import!E28178","v":0},{"$f":"Import!E28578","v":0}]
[28,{"$f":"Import!E25779","v":"Select"},{"$f":"Import!E26179","v":"Select"},{"$f":"Import!E26579","v":"Select"},{"$f":"Import!E26979","v":0},{"$f":"Import!E27379","v":0},{"$f":"Import!E27779","v":0},{"$f":"Import!E28179","v":0},{"$f":"Import!E28579","v":0}]
[29,{"$f":"Import!E25780","v":"Select"},{"$f":"Import!E26180","v":"Select"},{"$f":"Import!E26580","v":"Select"},{"$f":"Import!E26980","v":0},{"$f":"Import!E27380","v":0},{"$f":"Import!E27780","v":0},{"$f":"Import!E28180","v":0},{"$f":"Import!E28580","v":0}]
[30,{"$f":"Import!E25781","v":"Select"},{"$f":"Import!E26181","v":"Select"},{"$f":"Import!E26581","v":"Select"},{"$f":"Import!E26981","v":0},{"$f":"Import!E27381","v":0},{"$f":"Import!E27781","v":0},{"$f":"Import!E28181","v":0},{"$f":"Import!E28581","v":0}]
[31,{"$f":"Import!E25782","v":"Select"},{"$f":"Import!E26182","v":"Select"},{"$f":"Import!E26582","v":"Select"},{"$f":"Import!E26982","v":0},{"$f":"Import!E27382","v":0},{"$f":"Import!E27782","v":0},{"$f":"Import!E28182","v":0},{"$f":"Import!E28582","v":0}]
[32,{"$f":"Import!E25783","v":"Select"},{"$f":"Import!E26183","v":"Select"},{"$f":"Import!E26583","v":"Select"},{"$f":"Import!E26983","v":0},{"$f":"Import!E27383","v":0},{"$f":"Import!E27783","v":0},{"$f":"Import!E28183","v":0},{"$f":"Import!E28583","v":0}]
[33,{"$f":"Import!E25784","v":"Select"},{"$f":"Import!E26184","v":"Select"},{"$f":"Import!E26584","v":"Select"},{"$f":"Import!E26984","v":0},{"$f":"Import!E27384","v":0},{"$f":"Import!E27784","v":0},{"$f":"Import!E28184","v":0},{"$f":"Import!E28584","v":0}]
[34,{"$f":"Import!E25785","v":"Select"},{"$f":"Import!E26185","v":"Select"},{"$f":"Import!E26585","v":"Select"},{"$f":"Import!E26985","v":0},{"$f":"Import!E27385","v":0},{"$f":"Import!E27785","v":0},{"$f":"Import!E28185","v":0},{"$f":"Import!E28585","v":0}]
[35,{"$f":"Import!E25786","v":"Select"},{"$f":"Import!E26186","v":"Select"},{"$f":"Import!E26586","v":"Select"},{"$f":"Import!E26986","v":0},{"$f":"Import!E27386","v":0},{"$f":"Import!E27786","v":0},{"$f":"Import!E28186","v":0},{"$f":"Import!E28586","v":0}]
[36,{"$f":"Import!E25787","v":"Select"},{"$f":"Import!E26187","v":"Select"},{"$f":"Import!E26587","v":"Select"},{"$f":"Import!E26987","v":0},{"$f":"Import!E27387","v":0},{"$f":"Import!E27787","v":0},{"$f":"Import!E28187","v":0},{"$f":"Import!E28587","v":0}]
[37,{"$f":"Import!E25788","v":"Select"},{"$f":"Import!E26188","v":"Select"},{"$f":"Import!E26588","v":"Select"},{"$f":"Import!E26988","v":0},{"$f":"Import!E27388","v":0},{"$f":"Import!E27788","v":0},{"$f":"Import!E28188","v":0},{"$f":"Import!E28588","v":0}]
[38,{"$f":"Import!E25789","v":"Select"},{"$f":"Import!E26189","v":"Select"},{"$f":"Import!E26589","v":"Select"},{"$f":"Import!E26989","v":0},{"$f":"Import!E27389","v":0},{"$f":"Import!E27789","v":0},{"$f":"Import!E28189","v":0},{"$f":"Import!E28589","v":0}]
[39,{"$f":"Import!E25790","v":"Select"},{"$f":"Import!E26190","v":"Select"},{"$f":"Import!E26590","v":"Select"},{"$f":"Import!E26990","v":0},{"$f":"Import!E27390","v":0},{"$f":"Import!E27790","v":0},{"$f":"Import!E28190","v":0},{"$f":"Import!E28590","v":0}]
[40,{"$f":"Import!E25791","v":"Select"},{"$f":"Import!E26191","v":"Select"},{"$f":"Import!E26591","v":"Select"},{"$f":"Import!E26991","v":0},{"$f":"Import!E27391","v":0},{"$f":"Import!E27791","v":0},{"$f":"Import!E28191","v":0},{"$f":"Import!E28591","v":0}]
[41,{"$f":"Import!E25792","v":"Select"},{"$f":"Import!E26192","v":"Select"},{"$f":"Import!E26592","v":"Select"},{"$f":"Import!E26992","v":0},{"$f":"Import!E27392","v":0},{"$f":"Import!E27792","v":0},{"$f":"Import!E28192","v":0},{"$f":"Import!E28592","v":0}]
[42,{"$f":"Import!E25793","v":"Select"},{"$f":"Import!E26193","v":"Select"},{"$f":"Import!E26593","v":"Select"},{"$f":"Import!E26993","v":0},{"$f":"Import!E27393","v":0},{"$f":"Import!E27793","v":0},{"$f":"Import!E28193","v":0},{"$f":"Import!E28593","v":0}]
[43,{"$f":"Import!E25794","v":"Select"},{"$f":"Import!E26194","v":"Select"},{"$f":"Import!E26594","v":"Select"},{"$f":"Import!E26994","v":0},{"$f":"Import!E27394","v":0},{"$f":"Import!E27794","v":0},{"$f":"Import!E28194","v":0},{"$f":"Import!E28594","v":0}]
[44,{"$f":"Import!E25795","v":"Select"},{"$f":"Import!E26195","v":"Select"},{"$f":"Import!E26595","v":"Select"},{"$f":"Import!E26995","v":0},{"$f":"Import!E27395","v":0},{"$f":"Import!E27795","v":0},{"$f":"Import!E28195","v":0},{"$f":"Import!E28595","v":0}]
[45,{"$f":"Import!E25796","v":"Select"},{"$f":"Import!E26196","v":"Select"},{"$f":"Import!E26596","v":"Select"},{"$f":"Import!E26996","v":0},{"$f":"Import!E27396","v":0},{"$f":"Import!E27796","v":0},{"$f":"Import!E28196","v":0},{"$f":"Import!E28596","v":0}]
[46,{"$f":"Import!E25797","v":"Select"},{"$f":"Import!E26197","v":"Select"},{"$f":"Import!E26597","v":"Select"},{"$f":"Import!E26997","v":0},{"$f":"Import!E27397","v":0},{"$f":"Import!E27797","v":0},{"$f":"Import!E28197","v":0},{"$f":"Import!E28597","v":0}]
[47,{"$f":"Import!E25798","v":"Select"},{"$f":"Import!E26198","v":"Select"},{"$f":"Import!E26598","v":"Select"},{"$f":"Import!E26998","v":0},{"$f":"Import!E27398","v":0},{"$f":"Import!E27798","v":0},{"$f":"Import!E28198","v":0},{"$f":"Import!E28598","v":0}]
[48,{"$f":"Import!E25799","v":"Select"},{"$f":"Import!E26199","v":"Select"},{"$f":"Import!E26599","v":"Select"},{"$f":"Import!E26999","v":0},{"$f":"Import!E27399","v":0},{"$f":"Import!E27799","v":0},{"$f":"Import!E28199","v":0},{"$f":"Import!E28599","v":0}]
[49,{"$f":"Import!E25800","v":"Select"},{"$f":"Import!E26200","v":"Select"},{"$f":"Import!E26600","v":"Select"},{"$f":"Import!E27000","v":0},{"$f":"Import!E27400","v":0},{"$f":"Import!E27800","v":0},{"$f":"Import!E28200","v":0},{"$f":"Import!E28600","v":0}]
[50,{"$f":"Import!E25801","v":"Select"},{"$f":"Import!E26201","v":"Select"},{"$f":"Import!E26601","v":"Select"},{"$f":"Import!E27001","v":0},{"$f":"Import!E27401","v":0},{"$f":"Import!E27801","v":0},{"$f":"Import!E28201","v":0},{"$f":"Import!E28601","v":0}]
[51,{"$f":"Import!E25802","v":"Select"},{"$f":"Import!E26202","v":"Select"},{"$f":"Import!E26602","v":"Select"},{"$f":"Import!E27002","v":0},{"$f":"Import!E27402","v":0},{"$f":"Import!E27802","v":0},{"$f":"Import!E28202","v":0},{"$f":"Import!E28602","v":0}]
[52,{"$f":"Import!E25803","v":"Select"},{"$f":"Import!E26203","v":"Select"},{"$f":"Import!E26603","v":"Select"},{"$f":"Import!E27003","v":0},{"$f":"Import!E27403","v":0},{"$f":"Import!E27803","v":0},{"$f":"Import!E28203","v":0},{"$f":"Import!E28603","v":0}]
[53,{"$f":"Import!E25804","v":"Select"},{"$f":"Import!E26204","v":"Select"},{"$f":"Import!E26604","v":"Select"},{"$f":"Import!E27004","v":0},{"$f":"Import!E27404","v":0},{"$f":"Import!E27804","v":0},{"$f":"Import!E28204","v":0},{"$f":"Import!E28604","v":0}]
[54,{"$f":"Import!E25805","v":"Select"},{"$f":"Import!E26205","v":"Select"},{"$f":"Import!E26605","v":"Select"},{"$f":"Import!E27005","v":0},{"$f":"Import!E27405","v":0},{"$f":"Import!E27805","v":0},{"$f":"Import!E28205","v":0},{"$f":"Import!E28605","v":0}]
[55,{"$f":"Import!E25806","v":"Select"},{"$f":"Import!E26206","v":"Select"},{"$f":"Import!E26606","v":"Select"},{"$f":"Import!E27006","v":0},{"$f":"Import!E27406","v":0},{"$f":"Import!E27806","v":0},{"$f":"Import!E28206","v":0},{"$f":"Import!E28606","v":0}]
[56,{"$f":"Import!E25807","v":"Select"},{"$f":"Import!E26207","v":"Select"},{"$f":"Import!E26607","v":"Select"},{"$f":"Import!E27007","v":0},{"$f":"Import!E27407","v":0},{"$f":"Import!E27807","v":0},{"$f":"Import!E28207","v":0},{"$f":"Import!E28607","v":0}]
[57,{"$f":"Import!E25808","v":"Select"},{"$f":"Import!E26208","v":"Select"},{"$f":"Import!E26608","v":"Select"},{"$f":"Import!E27008","v":0},{"$f":"Import!E27408","v":0},{"$f":"Import!E27808","v":0},{"$f":"Import!E28208","v":0},{"$f":"Import!E28608","v":0}]
[58,{"$f":"Import!E25809","v":"Select"},{"$f":"Import!E26209","v":"Select"},{"$f":"Import!E26609","v":"Select"},{"$f":"Import!E27009","v":0},{"$f":"Import!E27409","v":0},{"$f":"Import!E27809","v":0},{"$f":"Import!E28209","v":0},{"$f":"Import!E28609","v":0}]
[59,{"$f":"Import!E25810","v":"Select"},{"$f":"Import!E26210","v":"Select"},{"$f":"Import!E26610","v":"Select"},{"$f":"Import!E27010","v":0},{"$f":"Import!E27410","v":0},{"$f":"Import!E27810","v":0},{"$f":"Import!E28210","v":0},{"$f":"Import!E28610","v":0}]
[60,{"$f":"Import!E25811","v":"Select"},{"$f":"Import!E26211","v":"Select"},{"$f":"Import!E26611","v":"Select"},{"$f":"Import!E27011","v":0},{"$f":"Import!E27411","v":0},{"$f":"Import!E27811","v":0},{"$f":"Import!E28211","v":0},{"$f":"Import!E28611","v":0}]
[61,{"$f":"Import!E25812","v":"Select"},{"$f":"Import!E26212","v":"Select"},{"$f":"Import!E26612","v":"Select"},{"$f":"Import!E27012","v":0},{"$f":"Import!E27412","v":0},{"$f":"Import!E27812","v":0},{"$f":"Import!E28212","v":0},{"$f":"Import!E28612","v":0}]
[62,{"$f":"Import!E25813","v":"Select"},{"$f":"Import!E26213","v":"Select"},{"$f":"Import!E26613","v":"Select"},{"$f":"Import!E27013","v":0},{"$f":"Import!E27413","v":0},{"$f":"Import!E27813","v":0},{"$f":"Import!E28213","v":0},{"$f":"Import!E28613","v":0}]
[63,{"$f":"Import!E25814","v":"Select"},{"$f":"Import!E26214","v":"Select"},{"$f":"Import!E26614","v":"Select"},{"$f":"Import!E27014","v":0},{"$f":"Import!E27414","v":0},{"$f":"Import!E27814","v":0},{"$f":"Import!E28214","v":0},{"$f":"Import!E28614","v":0}]
[64,{"$f":"Import!E25815","v":"Select"},{"$f":"Import!E26215","v":"Select"},{"$f":"Import!E26615","v":"Select"},{"$f":"Import!E27015","v":0},{"$f":"Import!E27415","v":0},{"$f":"Import!E27815","v":0},{"$f":"Import!E28215","v":0},{"$f":"Import!E28615","v":0}]
[65,{"$f":"Import!E25816","v":"Select"},{"$f":"Import!E26216","v":"Select"},{"$f":"Import!E26616","v":"Select"},{"$f":"Import!E27016","v":0},{"$f":"Import!E27416","v":0},{"$f":"Import!E27816","v":0},{"$f":"Import!E28216","v":0},{"$f":"Import!E28616","v":0}]
[66,{"$f":"Import!E25817","v":"Select"},{"$f":"Import!E26217","v":"Select"},{"$f":"Import!E26617","v":"Select"},{"$f":"Import!E27017","v":0},{"$f":"Import!E27417","v":0},{"$f":"Import!E27817","v":0},{"$f":"Import!E28217","v":0},{"$f":"Import!E28617","v":0}]
[{"$f":"A284+1","v":67},{"$f":"Import!E25818","v":"Select"},{"$f":"Import!E26218","v":"Select"},{"$f":"Import!E26618","v":"Select"},{"$f":"Import!E27018","v":0},{"$f":"Import!E27418","v":0},{"$f":"Import!E27818","v":0},{"$f":"Import!E28218","v":0},{"$f":"Import!E28618","v":0}]
[68,{"$f":"Import!E25819","v":"Select"},{"$f":"Import!E26219","v":"Select"},{"$f":"Import!E26619","v":"Select"},{"$f":"Import!E27019","v":0},{"$f":"Import!E27419","v":0},{"$f":"Import!E27819","v":0},{"$f":"Import!E28219","v":0},{"$f":"Import!E28619","v":0}]
[69,{"$f":"Import!E25820","v":"Select"},{"$f":"Import!E26220","v":"Select"},{"$f":"Import!E26620","v":"Select"},{"$f":"Import!E27020","v":0},{"$f":"Import!E27420","v":0},{"$f":"Import!E27820","v":0},{"$f":"Import!E28220","v":0},{"$f":"Import!E28620","v":0}]
[70,{"$f":"Import!E25821","v":"Select"},{"$f":"Import!E26221","v":"Select"},{"$f":"Import!E26621","v":"Select"},{"$f":"Import!E27021","v":0},{"$f":"Import!E27421","v":0},{"$f":"Import!E27821","v":0},{"$f":"Import!E28221","v":0},{"$f":"Import!E28621","v":0}]
[71,{"$f":"Import!E25822","v":"Select"},{"$f":"Import!E26222","v":"Select"},{"$f":"Import!E26622","v":"Select"},{"$f":"Import!E27022","v":0},{"$f":"Import!E27422","v":0},{"$f":"Import!E27822","v":0},{"$f":"Import!E28222","v":0},{"$f":"Import!E28622","v":0}]
[72,{"$f":"Import!E25823","v":"Select"},{"$f":"Import!E26223","v":"Select"},{"$f":"Import!E26623","v":"Select"},{"$f":"Import!E27023","v":0},{"$f":"Import!E27423","v":0},{"$f":"Import!E27823","v":0},{"$f":"Import!E28223","v":0},{"$f":"Import!E28623","v":0}]
[73,{"$f":"Import!E25824","v":"Select"},{"$f":"Import!E26224","v":"Select"},{"$f":"Import!E26624","v":"Select"},{"$f":"Import!E27024","v":0},{"$f":"Import!E27424","v":0},{"$f":"Import!E27824","v":0},{"$f":"Import!E28224","v":0},{"$f":"Import!E28624","v":0}]
[74,{"$f":"Import!E25825","v":"Select"},{"$f":"Import!E26225","v":"Select"},{"$f":"Import!E26625","v":"Select"},{"$f":"Import!E27025","v":0},{"$f":"Import!E27425","v":0},{"$f":"Import!E27825","v":0},{"$f":"Import!E28225","v":0},{"$f":"Import!E28625","v":0}]
[75,{"$f":"Import!E25826","v":"Select"},{"$f":"Import!E26226","v":"Select"},{"$f":"Import!E26626","v":"Select"},{"$f":"Import!E27026","v":0},{"$f":"Import!E27426","v":0},{"$f":"Import!E27826","v":0},{"$f":"Import!E28226","v":0},{"$f":"Import!E28626","v":0}]
[76,{"$f":"Import!E25827","v":"Select"},{"$f":"Import!E26227","v":"Select"},{"$f":"Import!E26627","v":"Select"},{"$f":"Import!E27027","v":0},{"$f":"Import!E27427","v":0},{"$f":"Import!E27827","v":0},{"$f":"Import!E28227","v":0},{"$f":"Import!E28627","v":0}]
[77,{"$f":"Import!E25828","v":"Select"},{"$f":"Import!E26228","v":"Select"},{"$f":"Import!E26628","v":"Select"},{"$f":"Import!E27028","v":0},{"$f":"Import!E27428","v":0},{"$f":"Import!E27828","v":0},{"$f":"Import!E28228","v":0},{"$f":"Import!E28628","v":0}]
[78,{"$f":"Import!E25829","v":"Select"},{"$f":"Import!E26229","v":"Select"},{"$f":"Import!E26629","v":"Select"},{"$f":"Import!E27029","v":0},{"$f":"Import!E27429","v":0},{"$f":"Import!E27829","v":0},{"$f":"Import!E28229","v":0},{"$f":"Import!E28629","v":0}]
[79,{"$f":"Import!E25830","v":"Select"},{"$f":"Import!E26230","v":"Select"},{"$f":"Import!E26630","v":"Select"},{"$f":"Import!E27030","v":0},{"$f":"Import!E27430","v":0},{"$f":"Import!E27830","v":0},{"$f":"Import!E28230","v":0},{"$f":"Import!E28630","v":0}]
[80,{"$f":"Import!E25831","v":"Select"},{"$f":"Import!E26231","v":"Select"},{"$f":"Import!E26631","v":"Select"},{"$f":"Import!E27031","v":0},{"$f":"Import!E27431","v":0},{"$f":"Import!E27831","v":0},{"$f":"Import!E28231","v":0},{"$f":"Import!E28631","v":0}]
[81,{"$f":"Import!E25832","v":"Select"},{"$f":"Import!E26232","v":"Select"},{"$f":"Import!E26632","v":"Select"},{"$f":"Import!E27032","v":0},{"$f":"Import!E27432","v":0},{"$f":"Import!E27832","v":0},{"$f":"Import!E28232","v":0},{"$f":"Import!E28632","v":0}]
[82,{"$f":"Import!E25833","v":"Select"},{"$f":"Import!E26233","v":"Select"},{"$f":"Import!E26633","v":"Select"},{"$f":"Import!E27033","v":0},{"$f":"Import!E27433","v":0},{"$f":"Import!E27833","v":0},{"$f":"Import!E28233","v":0},{"$f":"Import!E28633","v":0}]
[83,{"$f":"Import!E25834","v":"Select"},{"$f":"Import!E26234","v":"Select"},{"$f":"Import!E26634","v":"Select"},{"$f":"Import!E27034","v":0},{"$f":"Import!E27434","v":0},{"$f":"Import!E27834","v":0},{"$f":"Import!E28234","v":0},{"$f":"Import!E28634","v":0}]
[84,{"$f":"Import!E25835","v":"Select"},{"$f":"Import!E26235","v":"Select"},{"$f":"Import!E26635","v":"Select"},{"$f":"Import!E27035","v":0},{"$f":"Import!E27435","v":0},{"$f":"Import!E27835","v":0},{"$f":"Import!E28235","v":0},{"$f":"Import!E28635","v":0}]
[85,{"$f":"Import!E25836","v":"Select"},{"$f":"Import!E26236","v":"Select"},{"$f":"Import!E26636","v":"Select"},{"$f":"Import!E27036","v":0},{"$f":"Import!E27436","v":0},{"$f":"Import!E27836","v":0},{"$f":"Import!E28236","v":0},{"$f":"Import!E28636","v":0}]
[86,{"$f":"Import!E25837","v":"Select"},{"$f":"Import!E26237","v":"Select"},{"$f":"Import!E26637","v":"Select"},{"$f":"Import!E27037","v":0},{"$f":"Import!E27437","v":0},{"$f":"Import!E27837","v":0},{"$f":"Import!E28237","v":0},{"$f":"Import!E28637","v":0}]
[87,{"$f":"Import!E25838","v":"Select"},{"$f":"Import!E26238","v":"Select"},{"$f":"Import!E26638","v":"Select"},{"$f":"Import!E27038","v":0},{"$f":"Import!E27438","v":0},{"$f":"Import!E27838","v":0},{"$f":"Import!E28238","v":0},{"$f":"Import!E28638","v":0}]
[88,{"$f":"Import!E25839","v":"Select"},{"$f":"Import!E26239","v":"Select"},{"$f":"Import!E26639","v":"Select"},{"$f":"Import!E27039","v":0},{"$f":"Import!E27439","v":0},{"$f":"Import!E27839","v":0},{"$f":"Import!E28239","v":0},{"$f":"Import!E28639","v":0}]
[89,{"$f":"Import!E25840","v":"Select"},{"$f":"Import!E26240","v":"Select"},{"$f":"Import!E26640","v":"Select"},{"$f":"Import!E27040","v":0},{"$f":"Import!E27440","v":0},{"$f":"Import!E27840","v":0},{"$f":"Import!E28240","v":0},{"$f":"Import!E28640","v":0}]
[90,{"$f":"Import!E25841","v":"Select"},{"$f":"Import!E26241","v":"Select"},{"$f":"Import!E26641","v":"Select"},{"$f":"Import!E27041","v":0},{"$f":"Import!E27441","v":0},{"$f":"Import!E27841","v":0},{"$f":"Import!E28241","v":0},{"$f":"Import!E28641","v":0}]
[91,{"$f":"Import!E25842","v":"Select"},{"$f":"Import!E26242","v":"Select"},{"$f":"Import!E26642","v":"Select"},{"$f":"Import!E27042","v":0},{"$f":"Import!E27442","v":0},{"$f":"Import!E27842","v":0},{"$f":"Import!E28242","v":0},{"$f":"Import!E28642","v":0}]
[92,{"$f":"Import!E25843","v":"Select"},{"$f":"Import!E26243","v":"Select"},{"$f":"Import!E26643","v":"Select"},{"$f":"Import!E27043","v":0},{"$f":"Import!E27443","v":0},{"$f":"Import!E27843","v":0},{"$f":"Import!E28243","v":0},{"$f":"Import!E28643","v":0}]
[93,{"$f":"Import!E25844","v":"Select"},{"$f":"Import!E26244","v":"Select"},{"$f":"Import!E26644","v":"Select"},{"$f":"Import!E27044","v":0},{"$f":"Import!E27444","v":0},{"$f":"Import!E27844","v":0},{"$f":"Import!E28244","v":0},{"$f":"Import!E28644","v":0}]
[94,{"$f":"Import!E25845","v":"Select"},{"$f":"Import!E26245","v":"Select"},{"$f":"Import!E26645","v":"Select"},{"$f":"Import!E27045","v":0},{"$f":"Import!E27445","v":0},{"$f":"Import!E27845","v":0},{"$f":"Import!E28245","v":0},{"$f":"Import!E28645","v":0}]
[95,{"$f":"Import!E25846","v":"Select"},{"$f":"Import!E26246","v":"Select"},{"$f":"Import!E26646","v":"Select"},{"$f":"Import!E27046","v":0},{"$f":"Import!E27446","v":0},{"$f":"Import!E27846","v":0},{"$f":"Import!E28246","v":0},{"$f":"Import!E28646","v":0}]
[96,{"$f":"Import!E25847","v":"Select"},{"$f":"Import!E26247","v":"Select"},{"$f":"Import!E26647","v":"Select"},{"$f":"Import!E27047","v":0},{"$f":"Import!E27447","v":0},{"$f":"Import!E27847","v":0},{"$f":"Import!E28247","v":0},{"$f":"Import!E28647","v":0}]
[97,{"$f":"Import!E25848","v":"Select"},{"$f":"Import!E26248","v":"Select"},{"$f":"Import!E26648","v":"Select"},{"$f":"Import!E27048","v":0},{"$f":"Import!E27448","v":0},{"$f":"Import!E27848","v":0},{"$f":"Import!E28248","v":0},{"$f":"Import!E28648","v":0}]
[98,{"$f":"Import!E25849","v":"Select"},{"$f":"Import!E26249","v":"Select"},{"$f":"Import!E26649","v":"Select"},{"$f":"Import!E27049","v":0},{"$f":"Import!E27449","v":0},{"$f":"Import!E27849","v":0},{"$f":"Import!E28249","v":0},{"$f":"Import!E28649","v":0}]
[99,{"$f":"Import!E25850","v":"Select"},{"$f":"Import!E26250","v":"Select"},{"$f":"Import!E26650","v":"Select"},{"$f":"Import!E27050","v":0},{"$f":"Import!E27450","v":0},{"$f":"Import!E27850","v":0},{"$f":"Import!E28250","v":0},{"$f":"Import!E28650","v":0}]
[100,{"$f":"Import!E25851","v":"Select"},{"$f":"Import!E26251","v":"Select"},{"$f":"Import!E26651","v":"Select"},{"$f":"Import!E27051","v":0},{"$f":"Import!E27451","v":0},{"$f":"Import!E27851","v":0},{"$f":"Import!E28251","v":0},{"$f":"Import!E28651","v":0}]
[101,{"$f":"Import!E25852","v":"Select"},{"$f":"Import!E26252","v":"Select"},{"$f":"Import!E26652","v":"Select"},{"$f":"Import!E27052","v":0},{"$f":"Import!E27452","v":0},{"$f":"Import!E27852","v":0},{"$f":"Import!E28252","v":0},{"$f":"Import!E28652","v":0}]
[102,{"$f":"Import!E25853","v":"Select"},{"$f":"Import!E26253","v":"Select"},{"$f":"Import!E26653","v":"Select"},{"$f":"Import!E27053","v":0},{"$f":"Import!E27453","v":0},{"$f":"Import!E27853","v":0},{"$f":"Import!E28253","v":0},{"$f":"Import!E28653","v":0}]
[103,{"$f":"Import!E25854","v":"Select"},{"$f":"Import!E26254","v":"Select"},{"$f":"Import!E26654","v":"Select"},{"$f":"Import!E27054","v":0},{"$f":"Import!E27454","v":0},{"$f":"Import!E27854","v":0},{"$f":"Import!E28254","v":0},{"$f":"Import!E28654","v":0}]
[104,{"$f":"Import!E25855","v":"Select"},{"$f":"Import!E26255","v":"Select"},{"$f":"Import!E26655","v":"Select"},{"$f":"Import!E27055","v":0},{"$f":"Import!E27455","v":0},{"$f":"Import!E27855","v":0},{"$f":"Import!E28255","v":0},{"$f":"Import!E28655","v":0}]
[105,{"$f":"Import!E25856","v":"Select"},{"$f":"Import!E26256","v":"Select"},{"$f":"Import!E26656","v":"Select"},{"$f":"Import!E27056","v":0},{"$f":"Import!E27456","v":0},{"$f":"Import!E27856","v":0},{"$f":"Import!E28256","v":0},{"$f":"Import!E28656","v":0}]
[106,{"$f":"Import!E25857","v":"Select"},{"$f":"Import!E26257","v":"Select"},{"$f":"Import!E26657","v":"Select"},{"$f":"Import!E27057","v":0},{"$f":"Import!E27457","v":0},{"$f":"Import!E27857","v":0},{"$f":"Import!E28257","v":0},{"$f":"Import!E28657","v":0}]
[107,{"$f":"Import!E25858","v":"Select"},{"$f":"Import!E26258","v":"Select"},{"$f":"Import!E26658","v":"Select"},{"$f":"Import!E27058","v":0},{"$f":"Import!E27458","v":0},{"$f":"Import!E27858","v":0},{"$f":"Import!E28258","v":0},{"$f":"Import!E28658","v":0}]
[108,{"$f":"Import!E25859","v":"Select"},{"$f":"Import!E26259","v":"Select"},{"$f":"Import!E26659","v":"Select"},{"$f":"Import!E27059","v":0},{"$f":"Import!E27459","v":0},{"$f":"Import!E27859","v":0},{"$f":"Import!E28259","v":0},{"$f":"Import!E28659","v":0}]
[109,{"$f":"Import!E25860","v":"Select"},{"$f":"Import!E26260","v":"Select"},{"$f":"Import!E26660","v":"Select"},{"$f":"Import!E27060","v":0},{"$f":"Import!E27460","v":0},{"$f":"Import!E27860","v":0},{"$f":"Import!E28260","v":0},{"$f":"Import!E28660","v":0}]
[110,{"$f":"Import!E25861","v":"Select"},{"$f":"Import!E26261","v":"Select"},{"$f":"Import!E26661","v":"Select"},{"$f":"Import!E27061","v":0},{"$f":"Import!E27461","v":0},{"$f":"Import!E27861","v":0},{"$f":"Import!E28261","v":0},{"$f":"Import!E28661","v":0}]
[111,{"$f":"Import!E25862","v":"Select"},{"$f":"Import!E26262","v":"Select"},{"$f":"Import!E26662","v":"Select"},{"$f":"Import!E27062","v":0},{"$f":"Import!E27462","v":0},{"$f":"Import!E27862","v":0},{"$f":"Import!E28262","v":0},{"$f":"Import!E28662","v":0}]
[112,{"$f":"Import!E25863","v":"Select"},{"$f":"Import!E26263","v":"Select"},{"$f":"Import!E26663","v":"Select"},{"$f":"Import!E27063","v":0},{"$f":"Import!E27463","v":0},{"$f":"Import!E27863","v":0},{"$f":"Import!E28263","v":0},{"$f":"Import!E28663","v":0}]
[113,{"$f":"Import!E25864","v":"Select"},{"$f":"Import!E26264","v":"Select"},{"$f":"Import!E26664","v":"Select"},{"$f":"Import!E27064","v":0},{"$f":"Import!E27464","v":0},{"$f":"Import!E27864","v":0},{"$f":"Import!E28264","v":0},{"$f":"Import!E28664","v":0}]
[114,{"$f":"Import!E25865","v":"Select"},{"$f":"Import!E26265","v":"Select"},{"$f":"Import!E26665","v":"Select"},{"$f":"Import!E27065","v":0},{"$f":"Import!E27465","v":0},{"$f":"Import!E27865","v":0},{"$f":"Import!E28265","v":0},{"$f":"Import!E28665","v":0}]
[115,{"$f":"Import!E25866","v":"Select"},{"$f":"Import!E26266","v":"Select"},{"$f":"Import!E26666","v":"Select"},{"$f":"Import!E27066","v":0},{"$f":"Import!E27466","v":0},{"$f":"Import!E27866","v":0},{"$f":"Import!E28266","v":0},{"$f":"Import!E28666","v":0}]
[116,{"$f":"Import!E25867","v":"Select"},{"$f":"Import!E26267","v":"Select"},{"$f":"Import!E26667","v":"Select"},{"$f":"Import!E27067","v":0},{"$f":"Import!E27467","v":0},{"$f":"Import!E27867","v":0},{"$f":"Import!E28267","v":0},{"$f":"Import!E28667","v":0}]
[117,{"$f":"Import!E25868","v":"Select"},{"$f":"Import!E26268","v":"Select"},{"$f":"Import!E26668","v":"Select"},{"$f":"Import!E27068","v":0},{"$f":"Import!E27468","v":0},{"$f":"Import!E27868","v":0},{"$f":"Import!E28268","v":0},{"$f":"Import!E28668","v":0}]
[118,{"$f":"Import!E25869","v":"Select"},{"$f":"Import!E26269","v":"Select"},{"$f":"Import!E26669","v":"Select"},{"$f":"Import!E27069","v":0},{"$f":"Import!E27469","v":0},{"$f":"Import!E27869","v":0},{"$f":"Import!E28269","v":0},{"$f":"Import!E28669","v":0}]
[119,{"$f":"Import!E25870","v":"Select"},{"$f":"Import!E26270","v":"Select"},{"$f":"Import!E26670","v":"Select"},{"$f":"Import!E27070","v":0},{"$f":"Import!E27470","v":0},{"$f":"Import!E27870","v":0},{"$f":"Import!E28270","v":0},{"$f":"Import!E28670","v":0}]
[120,{"$f":"Import!E25871","v":"Select"},{"$f":"Import!E26271","v":"Select"},{"$f":"Import!E26671","v":"Select"},{"$f":"Import!E27071","v":0},{"$f":"Import!E27471","v":0},{"$f":"Import!E27871","v":0},{"$f":"Import!E28271","v":0},{"$f":"Import!E28671","v":0}]
[121,{"$f":"Import!E25872","v":"Select"},{"$f":"Import!E26272","v":"Select"},{"$f":"Import!E26672","v":"Select"},{"$f":"Import!E27072","v":0},{"$f":"Import!E27472","v":0},{"$f":"Import!E27872","v":0},{"$f":"Import!E28272","v":0},{"$f":"Import!E28672","v":0}]
[122,{"$f":"Import!E25873","v":"Select"},{"$f":"Import!E26273","v":"Select"},{"$f":"Import!E26673","v":"Select"},{"$f":"Import!E27073","v":0},{"$f":"Import!E27473","v":0},{"$f":"Import!E27873","v":0},{"$f":"Import!E28273","v":0},{"$f":"Import!E28673","v":0}]
[123,{"$f":"Import!E25874","v":"Select"},{"$f":"Import!E26274","v":"Select"},{"$f":"Import!E26674","v":"Select"},{"$f":"Import!E27074","v":0},{"$f":"Import!E27474","v":0},{"$f":"Import!E27874","v":0},{"$f":"Import!E28274","v":0},{"$f":"Import!E28674","v":0}]
[124,{"$f":"Import!E25875","v":"Select"},{"$f":"Import!E26275","v":"Select"},{"$f":"Import!E26675","v":"Select"},{"$f":"Import!E27075","v":0},{"$f":"Import!E27475","v":0},{"$f":"Import!E27875","v":0},{"$f":"Import!E28275","v":0},{"$f":"Import!E28675","v":0}]
[125,{"$f":"Import!E25876","v":"Select"},{"$f":"Import!E26276","v":"Select"},{"$f":"Import!E26676","v":"Select"},{"$f":"Import!E27076","v":0},{"$f":"Import!E27476","v":0},{"$f":"Import!E27876","v":0},{"$f":"Import!E28276","v":0},{"$f":"Import!E28676","v":0}]
[126,{"$f":"Import!E25877","v":"Select"},{"$f":"Import!E26277","v":"Select"},{"$f":"Import!E26677","v":"Select"},{"$f":"Import!E27077","v":0},{"$f":"Import!E27477","v":0},{"$f":"Import!E27877","v":0},{"$f":"Import!E28277","v":0},{"$f":"Import!E28677","v":0}]
[127,{"$f":"Import!E25878","v":"Select"},{"$f":"Import!E26278","v":"Select"},{"$f":"Import!E26678","v":"Select"},{"$f":"Import!E27078","v":0},{"$f":"Import!E27478","v":0},{"$f":"Import!E27878","v":0},{"$f":"Import!E28278","v":0},{"$f":"Import!E28678","v":0}]
[128,{"$f":"Import!E25879","v":"Select"},{"$f":"Import!E26279","v":"Select"},{"$f":"Import!E26679","v":"Select"},{"$f":"Import!E27079","v":0},{"$f":"Import!E27479","v":0},{"$f":"Import!E27879","v":0},{"$f":"Import!E28279","v":0},{"$f":"Import!E28679","v":0}]
[129,{"$f":"Import!E25880","v":"Select"},{"$f":"Import!E26280","v":"Select"},{"$f":"Import!E26680","v":"Select"},{"$f":"Import!E27080","v":0},{"$f":"Import!E27480","v":0},{"$f":"Import!E27880","v":0},{"$f":"Import!E28280","v":0},{"$f":"Import!E28680","v":0}]
[130,{"$f":"Import!E25881","v":"Select"},{"$f":"Import!E26281","v":"Select"},{"$f":"Import!E26681","v":"Select"},{"$f":"Import!E27081","v":0},{"$f":"Import!E27481","v":0},{"$f":"Import!E27881","v":0},{"$f":"Import!E28281","v":0},{"$f":"Import!E28681","v":0}]
[{"$f":"A348+1","v":131},{"$f":"Import!E25882","v":"Select"},{"$f":"Import!E26282","v":"Select"},{"$f":"Import!E26682","v":"Select"},{"$f":"Import!E27082","v":0},{"$f":"Import!E27482","v":0},{"$f":"Import!E27882","v":0},{"$f":"Import!E28282","v":0},{"$f":"Import!E28682","v":0}]
[132,{"$f":"Import!E25883","v":"Select"},{"$f":"Import!E26283","v":"Select"},{"$f":"Import!E26683","v":"Select"},{"$f":"Import!E27083","v":0},{"$f":"Import!E27483","v":0},{"$f":"Import!E27883","v":0},{"$f":"Import!E28283","v":0},{"$f":"Import!E28683","v":0}]
[133,{"$f":"Import!E25884","v":"Select"},{"$f":"Import!E26284","v":"Select"},{"$f":"Import!E26684","v":"Select"},{"$f":"Import!E27084","v":0},{"$f":"Import!E27484","v":0},{"$f":"Import!E27884","v":0},{"$f":"Import!E28284","v":0},{"$f":"Import!E28684","v":0}]
[134,{"$f":"Import!E25885","v":"Select"},{"$f":"Import!E26285","v":"Select"},{"$f":"Import!E26685","v":"Select"},{"$f":"Import!E27085","v":0},{"$f":"Import!E27485","v":0},{"$f":"Import!E27885","v":0},{"$f":"Import!E28285","v":0},{"$f":"Import!E28685","v":0}]
[135,{"$f":"Import!E25886","v":"Select"},{"$f":"Import!E26286","v":"Select"},{"$f":"Import!E26686","v":"Select"},{"$f":"Import!E27086","v":0},{"$f":"Import!E27486","v":0},{"$f":"Import!E27886","v":0},{"$f":"Import!E28286","v":0},{"$f":"Import!E28686","v":0}]
[136,{"$f":"Import!E25887","v":"Select"},{"$f":"Import!E26287","v":"Select"},{"$f":"Import!E26687","v":"Select"},{"$f":"Import!E27087","v":0},{"$f":"Import!E27487","v":0},{"$f":"Import!E27887","v":0},{"$f":"Import!E28287","v":0},{"$f":"Import!E28687","v":0}]
[137,{"$f":"Import!E25888","v":"Select"},{"$f":"Import!E26288","v":"Select"},{"$f":"Import!E26688","v":"Select"},{"$f":"Import!E27088","v":0},{"$f":"Import!E27488","v":0},{"$f":"Import!E27888","v":0},{"$f":"Import!E28288","v":0},{"$f":"Import!E28688","v":0}]
[138,{"$f":"Import!E25889","v":"Select"},{"$f":"Import!E26289","v":"Select"},{"$f":"Import!E26689","v":"Select"},{"$f":"Import!E27089","v":0},{"$f":"Import!E27489","v":0},{"$f":"Import!E27889","v":0},{"$f":"Import!E28289","v":0},{"$f":"Import!E28689","v":0}]
[139,{"$f":"Import!E25890","v":"Select"},{"$f":"Import!E26290","v":"Select"},{"$f":"Import!E26690","v":"Select"},{"$f":"Import!E27090","v":0},{"$f":"Import!E27490","v":0},{"$f":"Import!E27890","v":0},{"$f":"Import!E28290","v":0},{"$f":"Import!E28690","v":0}]
[140,{"$f":"Import!E25891","v":"Select"},{"$f":"Import!E26291","v":"Select"},{"$f":"Import!E26691","v":"Select"},{"$f":"Import!E27091","v":0},{"$f":"Import!E27491","v":0},{"$f":"Import!E27891","v":0},{"$f":"Import!E28291","v":0},{"$f":"Import!E28691","v":0}]
[141,{"$f":"Import!E25892","v":"Select"},{"$f":"Import!E26292","v":"Select"},{"$f":"Import!E26692","v":"Select"},{"$f":"Import!E27092","v":0},{"$f":"Import!E27492","v":0},{"$f":"Import!E27892","v":0},{"$f":"Import!E28292","v":0},{"$f":"Import!E28692","v":0}]
[142,{"$f":"Import!E25893","v":"Select"},{"$f":"Import!E26293","v":"Select"},{"$f":"Import!E26693","v":"Select"},{"$f":"Import!E27093","v":0},{"$f":"Import!E27493","v":0},{"$f":"Import!E27893","v":0},{"$f":"Import!E28293","v":0},{"$f":"Import!E28693","v":0}]
[143,{"$f":"Import!E25894","v":"Select"},{"$f":"Import!E26294","v":"Select"},{"$f":"Import!E26694","v":"Select"},{"$f":"Import!E27094","v":0},{"$f":"Import!E27494","v":0},{"$f":"Import!E27894","v":0},{"$f":"Import!E28294","v":0},{"$f":"Import!E28694","v":0}]
[144,{"$f":"Import!E25895","v":"Select"},{"$f":"Import!E26295","v":"Select"},{"$f":"Import!E26695","v":"Select"},{"$f":"Import!E27095","v":0},{"$f":"Import!E27495","v":0},{"$f":"Import!E27895","v":0},{"$f":"Import!E28295","v":0},{"$f":"Import!E28695","v":0}]
[145,{"$f":"Import!E25896","v":"Select"},{"$f":"Import!E26296","v":"Select"},{"$f":"Import!E26696","v":"Select"},{"$f":"Import!E27096","v":0},{"$f":"Import!E27496","v":0},{"$f":"Import!E27896","v":0},{"$f":"Import!E28296","v":0},{"$f":"Import!E28696","v":0}]
[146,{"$f":"Import!E25897","v":"Select"},{"$f":"Import!E26297","v":"Select"},{"$f":"Import!E26697","v":"Select"},{"$f":"Import!E27097","v":0},{"$f":"Import!E27497","v":0},{"$f":"Import!E27897","v":0},{"$f":"Import!E28297","v":0},{"$f":"Import!E28697","v":0}]
[147,{"$f":"Import!E25898","v":"Select"},{"$f":"Import!E26298","v":"Select"},{"$f":"Import!E26698","v":"Select"},{"$f":"Import!E27098","v":0},{"$f":"Import!E27498","v":0},{"$f":"Import!E27898","v":0},{"$f":"Import!E28298","v":0},{"$f":"Import!E28698","v":0}]
[148,{"$f":"Import!E25899","v":"Select"},{"$f":"Import!E26299","v":"Select"},{"$f":"Import!E26699","v":"Select"},{"$f":"Import!E27099","v":0},{"$f":"Import!E27499","v":0},{"$f":"Import!E27899","v":0},{"$f":"Import!E28299","v":0},{"$f":"Import!E28699","v":0}]
[149,{"$f":"Import!E25900","v":"Select"},{"$f":"Import!E26300","v":"Select"},{"$f":"Import!E26700","v":"Select"},{"$f":"Import!E27100","v":0},{"$f":"Import!E27500","v":0},{"$f":"Import!E27900","v":0},{"$f":"Import!E28300","v":0},{"$f":"Import!E28700","v":0}]
[150,{"$f":"Import!E25901","v":"Select"},{"$f":"Import!E26301","v":"Select"},{"$f":"Import!E26701","v":"Select"},{"$f":"Import!E27101","v":0},{"$f":"Import!E27501","v":0},{"$f":"Import!E27901","v":0},{"$f":"Import!E28301","v":0},{"$f":"Import!E28701","v":0}]
[151,{"$f":"Import!E25902","v":"Select"},{"$f":"Import!E26302","v":"Select"},{"$f":"Import!E26702","v":"Select"},{"$f":"Import!E27102","v":0},{"$f":"Import!E27502","v":0},{"$f":"Import!E27902","v":0},{"$f":"Import!E28302","v":0},{"$f":"Import!E28702","v":0}]
[152,{"$f":"Import!E25903","v":"Select"},{"$f":"Import!E26303","v":"Select"},{"$f":"Import!E26703","v":"Select"},{"$f":"Import!E27103","v":0},{"$f":"Import!E27503","v":0},{"$f":"Import!E27903","v":0},{"$f":"Import!E28303","v":0},{"$f":"Import!E28703","v":0}]
[153,{"$f":"Import!E25904","v":"Select"},{"$f":"Import!E26304","v":"Select"},{"$f":"Import!E26704","v":"Select"},{"$f":"Import!E27104","v":0},{"$f":"Import!E27504","v":0},{"$f":"Import!E27904","v":0},{"$f":"Import!E28304","v":0},{"$f":"Import!E28704","v":0}]
[154,{"$f":"Import!E25905","v":"Select"},{"$f":"Import!E26305","v":"Select"},{"$f":"Import!E26705","v":"Select"},{"$f":"Import!E27105","v":0},{"$f":"Import!E27505","v":0},{"$f":"Import!E27905","v":0},{"$f":"Import!E28305","v":0},{"$f":"Import!E28705","v":0}]
[155,{"$f":"Import!E25906","v":"Select"},{"$f":"Import!E26306","v":"Select"},{"$f":"Import!E26706","v":"Select"},{"$f":"Import!E27106","v":0},{"$f":"Import!E27506","v":0},{"$f":"Import!E27906","v":0},{"$f":"Import!E28306","v":0},{"$f":"Import!E28706","v":0}]
[156,{"$f":"Import!E25907","v":"Select"},{"$f":"Import!E26307","v":"Select"},{"$f":"Import!E26707","v":"Select"},{"$f":"Import!E27107","v":0},{"$f":"Import!E27507","v":0},{"$f":"Import!E27907","v":0},{"$f":"Import!E28307","v":0},{"$f":"Import!E28707","v":0}]
[157,{"$f":"Import!E25908","v":"Select"},{"$f":"Import!E26308","v":"Select"},{"$f":"Import!E26708","v":"Select"},{"$f":"Import!E27108","v":0},{"$f":"Import!E27508","v":0},{"$f":"Import!E27908","v":0},{"$f":"Import!E28308","v":0},{"$f":"Import!E28708","v":0}]
[158,{"$f":"Import!E25909","v":"Select"},{"$f":"Import!E26309","v":"Select"},{"$f":"Import!E26709","v":"Select"},{"$f":"Import!E27109","v":0},{"$f":"Import!E27509","v":0},{"$f":"Import!E27909","v":0},{"$f":"Import!E28309","v":0},{"$f":"Import!E28709","v":0}]
[159,{"$f":"Import!E25910","v":"Select"},{"$f":"Import!E26310","v":"Select"},{"$f":"Import!E26710","v":"Select"},{"$f":"Import!E27110","v":0},{"$f":"Import!E27510","v":0},{"$f":"Import!E27910","v":0},{"$f":"Import!E28310","v":0},{"$f":"Import!E28710","v":0}]
[160,{"$f":"Import!E25911","v":"Select"},{"$f":"Import!E26311","v":"Select"},{"$f":"Import!E26711","v":"Select"},{"$f":"Import!E27111","v":0},{"$f":"Import!E27511","v":0},{"$f":"Import!E27911","v":0},{"$f":"Import!E28311","v":0},{"$f":"Import!E28711","v":0}]
[161,{"$f":"Import!E25912","v":"Select"},{"$f":"Import!E26312","v":"Select"},{"$f":"Import!E26712","v":"Select"},{"$f":"Import!E27112","v":0},{"$f":"Import!E27512","v":0},{"$f":"Import!E27912","v":0},{"$f":"Import!E28312","v":0},{"$f":"Import!E28712","v":0}]
[162,{"$f":"Import!E25913","v":"Select"},{"$f":"Import!E26313","v":"Select"},{"$f":"Import!E26713","v":"Select"},{"$f":"Import!E27113","v":0},{"$f":"Import!E27513","v":0},{"$f":"Import!E27913","v":0},{"$f":"Import!E28313","v":0},{"$f":"Import!E28713","v":0}]
[163,{"$f":"Import!E25914","v":"Select"},{"$f":"Import!E26314","v":"Select"},{"$f":"Import!E26714","v":"Select"},{"$f":"Import!E27114","v":0},{"$f":"Import!E27514","v":0},{"$f":"Import!E27914","v":0},{"$f":"Import!E28314","v":0},{"$f":"Import!E28714","v":0}]
[164,{"$f":"Import!E25915","v":"Select"},{"$f":"Import!E26315","v":"Select"},{"$f":"Import!E26715","v":"Select"},{"$f":"Import!E27115","v":0},{"$f":"Import!E27515","v":0},{"$f":"Import!E27915","v":0},{"$f":"Import!E28315","v":0},{"$f":"Import!E28715","v":0}]
[165,{"$f":"Import!E25916","v":"Select"},{"$f":"Import!E26316","v":"Select"},{"$f":"Import!E26716","v":"Select"},{"$f":"Import!E27116","v":0},{"$f":"Import!E27516","v":0},{"$f":"Import!E27916","v":0},{"$f":"Import!E28316","v":0},{"$f":"Import!E28716","v":0}]
[166,{"$f":"Import!E25917","v":"Select"},{"$f":"Import!E26317","v":"Select"},{"$f":"Import!E26717","v":"Select"},{"$f":"Import!E27117","v":0},{"$f":"Import!E27517","v":0},{"$f":"Import!E27917","v":0},{"$f":"Import!E28317","v":0},{"$f":"Import!E28717","v":0}]
[167,{"$f":"Import!E25918","v":"Select"},{"$f":"Import!E26318","v":"Select"},{"$f":"Import!E26718","v":"Select"},{"$f":"Import!E27118","v":0},{"$f":"Import!E27518","v":0},{"$f":"Import!E27918","v":0},{"$f":"Import!E28318","v":0},{"$f":"Import!E28718","v":0}]
[168,{"$f":"Import!E25919","v":"Select"},{"$f":"Import!E26319","v":"Select"},{"$f":"Import!E26719","v":"Select"},{"$f":"Import!E27119","v":0},{"$f":"Import!E27519","v":0},{"$f":"Import!E27919","v":0},{"$f":"Import!E28319","v":0},{"$f":"Import!E28719","v":0}]
[169,{"$f":"Import!E25920","v":"Select"},{"$f":"Import!E26320","v":"Select"},{"$f":"Import!E26720","v":"Select"},{"$f":"Import!E27120","v":0},{"$f":"Import!E27520","v":0},{"$f":"Import!E27920","v":0},{"$f":"Import!E28320","v":0},{"$f":"Import!E28720","v":0}]
[170,{"$f":"Import!E25921","v":"Select"},{"$f":"Import!E26321","v":"Select"},{"$f":"Import!E26721","v":"Select"},{"$f":"Import!E27121","v":0},{"$f":"Import!E27521","v":0},{"$f":"Import!E27921","v":0},{"$f":"Import!E28321","v":0},{"$f":"Import!E28721","v":0}]
[171,{"$f":"Import!E25922","v":"Select"},{"$f":"Import!E26322","v":"Select"},{"$f":"Import!E26722","v":"Select"},{"$f":"Import!E27122","v":0},{"$f":"Import!E27522","v":0},{"$f":"Import!E27922","v":0},{"$f":"Import!E28322","v":0},{"$f":"Import!E28722","v":0}]
[172,{"$f":"Import!E25923","v":"Select"},{"$f":"Import!E26323","v":"Select"},{"$f":"Import!E26723","v":"Select"},{"$f":"Import!E27123","v":0},{"$f":"Import!E27523","v":0},{"$f":"Import!E27923","v":0},{"$f":"Import!E28323","v":0},{"$f":"Import!E28723","v":0}]
[173,{"$f":"Import!E25924","v":"Select"},{"$f":"Import!E26324","v":"Select"},{"$f":"Import!E26724","v":"Select"},{"$f":"Import!E27124","v":0},{"$f":"Import!E27524","v":0},{"$f":"Import!E27924","v":0},{"$f":"Import!E28324","v":0},{"$f":"Import!E28724","v":0}]
[174,{"$f":"Import!E25925","v":"Select"},{"$f":"Import!E26325","v":"Select"},{"$f":"Import!E26725","v":"Select"},{"$f":"Import!E27125","v":0},{"$f":"Import!E27525","v":0},{"$f":"Import!E27925","v":0},{"$f":"Import!E28325","v":0},{"$f":"Import!E28725","v":0}]
[175,{"$f":"Import!E25926","v":"Select"},{"$f":"Import!E26326","v":"Select"},{"$f":"Import!E26726","v":"Select"},{"$f":"Import!E27126","v":0},{"$f":"Import!E27526","v":0},{"$f":"Import!E27926","v":0},{"$f":"Import!E28326","v":0},{"$f":"Import!E28726","v":0}]
[176,{"$f":"Import!E25927","v":"Select"},{"$f":"Import!E26327","v":"Select"},{"$f":"Import!E26727","v":"Select"},{"$f":"Import!E27127","v":0},{"$f":"Import!E27527","v":0},{"$f":"Import!E27927","v":0},{"$f":"Import!E28327","v":0},{"$f":"Import!E28727","v":0}]
[177,{"$f":"Import!E25928","v":"Select"},{"$f":"Import!E26328","v":"Select"},{"$f":"Import!E26728","v":"Select"},{"$f":"Import!E27128","v":0},{"$f":"Import!E27528","v":0},{"$f":"Import!E27928","v":0},{"$f":"Import!E28328","v":0},{"$f":"Import!E28728","v":0}]
[178,{"$f":"Import!E25929","v":"Select"},{"$f":"Import!E26329","v":"Select"},{"$f":"Import!E26729","v":"Select"},{"$f":"Import!E27129","v":0},{"$f":"Import!E27529","v":0},{"$f":"Import!E27929","v":0},{"$f":"Import!E28329","v":0},{"$f":"Import!E28729","v":0}]
[179,{"$f":"Import!E25930","v":"Select"},{"$f":"Import!E26330","v":"Select"},{"$f":"Import!E26730","v":"Select"},{"$f":"Import!E27130","v":0},{"$f":"Import!E27530","v":0},{"$f":"Import!E27930","v":0},{"$f":"Import!E28330","v":0},{"$f":"Import!E28730","v":0}]
[180,{"$f":"Import!E25931","v":"Select"},{"$f":"Import!E26331","v":"Select"},{"$f":"Import!E26731","v":"Select"},{"$f":"Import!E27131","v":0},{"$f":"Import!E27531","v":0},{"$f":"Import!E27931","v":0},{"$f":"Import!E28331","v":0},{"$f":"Import!E28731","v":0}]
[181,{"$f":"Import!E25932","v":"Select"},{"$f":"Import!E26332","v":"Select"},{"$f":"Import!E26732","v":"Select"},{"$f":"Import!E27132","v":0},{"$f":"Import!E27532","v":0},{"$f":"Import!E27932","v":0},{"$f":"Import!E28332","v":0},{"$f":"Import!E28732","v":0}]
[182,{"$f":"Import!E25933","v":"Select"},{"$f":"Import!E26333","v":"Select"},{"$f":"Import!E26733","v":"Select"},{"$f":"Import!E27133","v":0},{"$f":"Import!E27533","v":0},{"$f":"Import!E27933","v":0},{"$f":"Import!E28333","v":0},{"$f":"Import!E28733","v":0}]
[183,{"$f":"Import!E25934","v":"Select"},{"$f":"Import!E26334","v":"Select"},{"$f":"Import!E26734","v":"Select"},{"$f":"Import!E27134","v":0},{"$f":"Import!E27534","v":0},{"$f":"Import!E27934","v":0},{"$f":"Import!E28334","v":0},{"$f":"Import!E28734","v":0}]
[184,{"$f":"Import!E25935","v":"Select"},{"$f":"Import!E26335","v":"Select"},{"$f":"Import!E26735","v":"Select"},{"$f":"Import!E27135","v":0},{"$f":"Import!E27535","v":0},{"$f":"Import!E27935","v":0},{"$f":"Import!E28335","v":0},{"$f":"Import!E28735","v":0}]
[185,{"$f":"Import!E25936","v":"Select"},{"$f":"Import!E26336","v":"Select"},{"$f":"Import!E26736","v":"Select"},{"$f":"Import!E27136","v":0},{"$f":"Import!E27536","v":0},{"$f":"Import!E27936","v":0},{"$f":"Import!E28336","v":0},{"$f":"Import!E28736","v":0}]
[186,{"$f":"Import!E25937","v":"Select"},{"$f":"Import!E26337","v":"Select"},{"$f":"Import!E26737","v":"Select"},{"$f":"Import!E27137","v":0},{"$f":"Import!E27537","v":0},{"$f":"Import!E27937","v":0},{"$f":"Import!E28337","v":0},{"$f":"Import!E28737","v":0}]
[187,{"$f":"Import!E25938","v":"Select"},{"$f":"Import!E26338","v":"Select"},{"$f":"Import!E26738","v":"Select"},{"$f":"Import!E27138","v":0},{"$f":"Import!E27538","v":0},{"$f":"Import!E27938","v":0},{"$f":"Import!E28338","v":0},{"$f":"Import!E28738","v":0}]
[188,{"$f":"Import!E25939","v":"Select"},{"$f":"Import!E26339","v":"Select"},{"$f":"Import!E26739","v":"Select"},{"$f":"Import!E27139","v":0},{"$f":"Import!E27539","v":0},{"$f":"Import!E27939","v":0},{"$f":"Import!E28339","v":0},{"$f":"Import!E28739","v":0}]
[189,{"$f":"Import!E25940","v":"Select"},{"$f":"Import!E26340","v":"Select"},{"$f":"Import!E26740","v":"Select"},{"$f":"Import!E27140","v":0},{"$f":"Import!E27540","v":0},{"$f":"Import!E27940","v":0},{"$f":"Import!E28340","v":0},{"$f":"Import!E28740","v":0}]
[190,{"$f":"Import!E25941","v":"Select"},{"$f":"Import!E26341","v":"Select"},{"$f":"Import!E26741","v":"Select"},{"$f":"Import!E27141","v":0},{"$f":"Import!E27541","v":0},{"$f":"Import!E27941","v":0},{"$f":"Import!E28341","v":0},{"$f":"Import!E28741","v":0}]
[191,{"$f":"Import!E25942","v":"Select"},{"$f":"Import!E26342","v":"Select"},{"$f":"Import!E26742","v":"Select"},{"$f":"Import!E27142","v":0},{"$f":"Import!E27542","v":0},{"$f":"Import!E27942","v":0},{"$f":"Import!E28342","v":0},{"$f":"Import!E28742","v":0}]
[192,{"$f":"Import!E25943","v":"Select"},{"$f":"Import!E26343","v":"Select"},{"$f":"Import!E26743","v":"Select"},{"$f":"Import!E27143","v":0},{"$f":"Import!E27543","v":0},{"$f":"Import!E27943","v":0},{"$f":"Import!E28343","v":0},{"$f":"Import!E28743","v":0}]
[193,{"$f":"Import!E25944","v":"Select"},{"$f":"Import!E26344","v":"Select"},{"$f":"Import!E26744","v":"Select"},{"$f":"Import!E27144","v":0},{"$f":"Import!E27544","v":0},{"$f":"Import!E27944","v":0},{"$f":"Import!E28344","v":0},{"$f":"Import!E28744","v":0}]
[194,{"$f":"Import!E25945","v":"Select"},{"$f":"Import!E26345","v":"Select"},{"$f":"Import!E26745","v":"Select"},{"$f":"Import!E27145","v":0},{"$f":"Import!E27545","v":0},{"$f":"Import!E27945","v":0},{"$f":"Import!E28345","v":0},{"$f":"Import!E28745","v":0}]
[{"$f":"A412+1","v":195},{"$f":"Import!E25946","v":"Select"},{"$f":"Import!E26346","v":"Select"},{"$f":"Import!E26746","v":"Select"},{"$f":"Import!E27146","v":0},{"$f":"Import!E27546","v":0},{"$f":"Import!E27946","v":0},{"$f":"Import!E28346","v":0},{"$f":"Import!E28746","v":0}]
[196,{"$f":"Import!E25947","v":"Select"},{"$f":"Import!E26347","v":"Select"},{"$f":"Import!E26747","v":"Select"},{"$f":"Import!E27147","v":0},{"$f":"Import!E27547","v":0},{"$f":"Import!E27947","v":0},{"$f":"Import!E28347","v":0},{"$f":"Import!E28747","v":0}]
[197,{"$f":"Import!E25948","v":"Select"},{"$f":"Import!E26348","v":"Select"},{"$f":"Import!E26748","v":"Select"},{"$f":"Import!E27148","v":0},{"$f":"Import!E27548","v":0},{"$f":"Import!E27948","v":0},{"$f":"Import!E28348","v":0},{"$f":"Import!E28748","v":0}]
[198,{"$f":"Import!E25949","v":"Select"},{"$f":"Import!E26349","v":"Select"},{"$f":"Import!E26749","v":"Select"},{"$f":"Import!E27149","v":0},{"$f":"Import!E27549","v":0},{"$f":"Import!E27949","v":0},{"$f":"Import!E28349","v":0},{"$f":"Import!E28749","v":0}]
[199,{"$f":"Import!E25950","v":"Select"},{"$f":"Import!E26350","v":"Select"},{"$f":"Import!E26750","v":"Select"},{"$f":"Import!E27150","v":0},{"$f":"Import!E27550","v":0},{"$f":"Import!E27950","v":0},{"$f":"Import!E28350","v":0},{"$f":"Import!E28750","v":0}]
[200,{"$f":"Import!E25951","v":"Select"},{"$f":"Import!E26351","v":"Select"},{"$f":"Import!E26751","v":"Select"},{"$f":"Import!E27151","v":0},{"$f":"Import!E27551","v":0},{"$f":"Import!E27951","v":0},{"$f":"Import!E28351","v":0},{"$f":"Import!E28751","v":0}]
[201,{"$f":"Import!E25952","v":"Select"},{"$f":"Import!E26352","v":"Select"},{"$f":"Import!E26752","v":"Select"},{"$f":"Import!E27152","v":0},{"$f":"Import!E27552","v":0},{"$f":"Import!E27952","v":0},{"$f":"Import!E28352","v":0},{"$f":"Import!E28752","v":0}]
[202,{"$f":"Import!E25953","v":"Select"},{"$f":"Import!E26353","v":"Select"},{"$f":"Import!E26753","v":"Select"},{"$f":"Import!E27153","v":0},{"$f":"Import!E27553","v":0},{"$f":"Import!E27953","v":0},{"$f":"Import!E28353","v":0},{"$f":"Import!E28753","v":0}]
[203,{"$f":"Import!E25954","v":"Select"},{"$f":"Import!E26354","v":"Select"},{"$f":"Import!E26754","v":"Select"},{"$f":"Import!E27154","v":0},{"$f":"Import!E27554","v":0},{"$f":"Import!E27954","v":0},{"$f":"Import!E28354","v":0},{"$f":"Import!E28754","v":0}]
[204,{"$f":"Import!E25955","v":"Select"},{"$f":"Import!E26355","v":"Select"},{"$f":"Import!E26755","v":"Select"},{"$f":"Import!E27155","v":0},{"$f":"Import!E27555","v":0},{"$f":"Import!E27955","v":0},{"$f":"Import!E28355","v":0},{"$f":"Import!E28755","v":0}]
[205,{"$f":"Import!E25956","v":"Select"},{"$f":"Import!E26356","v":"Select"},{"$f":"Import!E26756","v":"Select"},{"$f":"Import!E27156","v":0},{"$f":"Import!E27556","v":0},{"$f":"Import!E27956","v":0},{"$f":"Import!E28356","v":0},{"$f":"Import!E28756","v":0}]
[206,{"$f":"Import!E25957","v":"Select"},{"$f":"Import!E26357","v":"Select"},{"$f":"Import!E26757","v":"Select"},{"$f":"Import!E27157","v":0},{"$f":"Import!E27557","v":0},{"$f":"Import!E27957","v":0},{"$f":"Import!E28357","v":0},{"$f":"Import!E28757","v":0}]
[207,{"$f":"Import!E25958","v":"Select"},{"$f":"Import!E26358","v":"Select"},{"$f":"Import!E26758","v":"Select"},{"$f":"Import!E27158","v":0},{"$f":"Import!E27558","v":0},{"$f":"Import!E27958","v":0},{"$f":"Import!E28358","v":0},{"$f":"Import!E28758","v":0}]
[208,{"$f":"Import!E25959","v":"Select"},{"$f":"Import!E26359","v":"Select"},{"$f":"Import!E26759","v":"Select"},{"$f":"Import!E27159","v":0},{"$f":"Import!E27559","v":0},{"$f":"Import!E27959","v":0},{"$f":"Import!E28359","v":0},{"$f":"Import!E28759","v":0}]
[209,{"$f":"Import!E25960","v":"Select"},{"$f":"Import!E26360","v":"Select"},{"$f":"Import!E26760","v":"Select"},{"$f":"Import!E27160","v":0},{"$f":"Import!E27560","v":0},{"$f":"Import!E27960","v":0},{"$f":"Import!E28360","v":0},{"$f":"Import!E28760","v":0}]
[210,{"$f":"Import!E25961","v":"Select"},{"$f":"Import!E26361","v":"Select"},{"$f":"Import!E26761","v":"Select"},{"$f":"Import!E27161","v":0},{"$f":"Import!E27561","v":0},{"$f":"Import!E27961","v":0},{"$f":"Import!E28361","v":0},{"$f":"Import!E28761","v":0}]
[211,{"$f":"Import!E25962","v":"Select"},{"$f":"Import!E26362","v":"Select"},{"$f":"Import!E26762","v":"Select"},{"$f":"Import!E27162","v":0},{"$f":"Import!E27562","v":0},{"$f":"Import!E27962","v":0},{"$f":"Import!E28362","v":0},{"$f":"Import!E28762","v":0}]
[212,{"$f":"Import!E25963","v":"Select"},{"$f":"Import!E26363","v":"Select"},{"$f":"Import!E26763","v":"Select"},{"$f":"Import!E27163","v":0},{"$f":"Import!E27563","v":0},{"$f":"Import!E27963","v":0},{"$f":"Import!E28363","v":0},{"$f":"Import!E28763","v":0}]
[213,{"$f":"Import!E25964","v":"Select"},{"$f":"Import!E26364","v":"Select"},{"$f":"Import!E26764","v":"Select"},{"$f":"Import!E27164","v":0},{"$f":"Import!E27564","v":0},{"$f":"Import!E27964","v":0},{"$f":"Import!E28364","v":0},{"$f":"Import!E28764","v":0}]
[214,{"$f":"Import!E25965","v":"Select"},{"$f":"Import!E26365","v":"Select"},{"$f":"Import!E26765","v":"Select"},{"$f":"Import!E27165","v":0},{"$f":"Import!E27565","v":0},{"$f":"Import!E27965","v":0},{"$f":"Import!E28365","v":0},{"$f":"Import!E28765","v":0}]
[215,{"$f":"Import!E25966","v":"Select"},{"$f":"Import!E26366","v":"Select"},{"$f":"Import!E26766","v":"Select"},{"$f":"Import!E27166","v":0},{"$f":"Import!E27566","v":0},{"$f":"Import!E27966","v":0},{"$f":"Import!E28366","v":0},{"$f":"Import!E28766","v":0}]
[216,{"$f":"Import!E25967","v":"Select"},{"$f":"Import!E26367","v":"Select"},{"$f":"Import!E26767","v":"Select"},{"$f":"Import!E27167","v":0},{"$f":"Import!E27567","v":0},{"$f":"Import!E27967","v":0},{"$f":"Import!E28367","v":0},{"$f":"Import!E28767","v":0}]
[217,{"$f":"Import!E25968","v":"Select"},{"$f":"Import!E26368","v":"Select"},{"$f":"Import!E26768","v":"Select"},{"$f":"Import!E27168","v":0},{"$f":"Import!E27568","v":0},{"$f":"Import!E27968","v":0},{"$f":"Import!E28368","v":0},{"$f":"Import!E28768","v":0}]
[218,{"$f":"Import!E25969","v":"Select"},{"$f":"Import!E26369","v":"Select"},{"$f":"Import!E26769","v":"Select"},{"$f":"Import!E27169","v":0},{"$f":"Import!E27569","v":0},{"$f":"Import!E27969","v":0},{"$f":"Import!E28369","v":0},{"$f":"Import!E28769","v":0}]
[219,{"$f":"Import!E25970","v":"Select"},{"$f":"Import!E26370","v":"Select"},{"$f":"Import!E26770","v":"Select"},{"$f":"Import!E27170","v":0},{"$f":"Import!E27570","v":0},{"$f":"Import!E27970","v":0},{"$f":"Import!E28370","v":0},{"$f":"Import!E28770","v":0}]
[220,{"$f":"Import!E25971","v":"Select"},{"$f":"Import!E26371","v":"Select"},{"$f":"Import!E26771","v":"Select"},{"$f":"Import!E27171","v":0},{"$f":"Import!E27571","v":0},{"$f":"Import!E27971","v":0},{"$f":"Import!E28371","v":0},{"$f":"Import!E28771","v":0}]
[221,{"$f":"Import!E25972","v":"Select"},{"$f":"Import!E26372","v":"Select"},{"$f":"Import!E26772","v":"Select"},{"$f":"Import!E27172","v":0},{"$f":"Import!E27572","v":0},{"$f":"Import!E27972","v":0},{"$f":"Import!E28372","v":0},{"$f":"Import!E28772","v":0}]
[222,{"$f":"Import!E25973","v":"Select"},{"$f":"Import!E26373","v":"Select"},{"$f":"Import!E26773","v":"Select"},{"$f":"Import!E27173","v":0},{"$f":"Import!E27573","v":0},{"$f":"Import!E27973","v":0},{"$f":"Import!E28373","v":0},{"$f":"Import!E28773","v":0}]
[223,{"$f":"Import!E25974","v":"Select"},{"$f":"Import!E26374","v":"Select"},{"$f":"Import!E26774","v":"Select"},{"$f":"Import!E27174","v":0},{"$f":"Import!E27574","v":0},{"$f":"Import!E27974","v":0},{"$f":"Import!E28374","v":0},{"$f":"Import!E28774","v":0}]
[224,{"$f":"Import!E25975","v":"Select"},{"$f":"Import!E26375","v":"Select"},{"$f":"Import!E26775","v":"Select"},{"$f":"Import!E27175","v":0},{"$f":"Import!E27575","v":0},{"$f":"Import!E27975","v":0},{"$f":"Import!E28375","v":0},{"$f":"Import!E28775","v":0}]
[225,{"$f":"Import!E25976","v":"Select"},{"$f":"Import!E26376","v":"Select"},{"$f":"Import!E26776","v":"Select"},{"$f":"Import!E27176","v":0},{"$f":"Import!E27576","v":0},{"$f":"Import!E27976","v":0},{"$f":"Import!E28376","v":0},{"$f":"Import!E28776","v":0}]
[226,{"$f":"Import!E25977","v":"Select"},{"$f":"Import!E26377","v":"Select"},{"$f":"Import!E26777","v":"Select"},{"$f":"Import!E27177","v":0},{"$f":"Import!E27577","v":0},{"$f":"Import!E27977","v":0},{"$f":"Import!E28377","v":0},{"$f":"Import!E28777","v":0}]
[227,{"$f":"Import!E25978","v":"Select"},{"$f":"Import!E26378","v":"Select"},{"$f":"Import!E26778","v":"Select"},{"$f":"Import!E27178","v":0},{"$f":"Import!E27578","v":0},{"$f":"Import!E27978","v":0},{"$f":"Import!E28378","v":0},{"$f":"Import!E28778","v":0}]
[228,{"$f":"Import!E25979","v":"Select"},{"$f":"Import!E26379","v":"Select"},{"$f":"Import!E26779","v":"Select"},{"$f":"Import!E27179","v":0},{"$f":"Import!E27579","v":0},{"$f":"Import!E27979","v":0},{"$f":"Import!E28379","v":0},{"$f":"Import!E28779","v":0}]
[229,{"$f":"Import!E25980","v":"Select"},{"$f":"Import!E26380","v":"Select"},{"$f":"Import!E26780","v":"Select"},{"$f":"Import!E27180","v":0},{"$f":"Import!E27580","v":0},{"$f":"Import!E27980","v":0},{"$f":"Import!E28380","v":0},{"$f":"Import!E28780","v":0}]
[230,{"$f":"Import!E25981","v":"Select"},{"$f":"Import!E26381","v":"Select"},{"$f":"Import!E26781","v":"Select"},{"$f":"Import!E27181","v":0},{"$f":"Import!E27581","v":0},{"$f":"Import!E27981","v":0},{"$f":"Import!E28381","v":0},{"$f":"Import!E28781","v":0}]
[231,{"$f":"Import!E25982","v":"Select"},{"$f":"Import!E26382","v":"Select"},{"$f":"Import!E26782","v":"Select"},{"$f":"Import!E27182","v":0},{"$f":"Import!E27582","v":0},{"$f":"Import!E27982","v":0},{"$f":"Import!E28382","v":0},{"$f":"Import!E28782","v":0}]
[232,{"$f":"Import!E25983","v":"Select"},{"$f":"Import!E26383","v":"Select"},{"$f":"Import!E26783","v":"Select"},{"$f":"Import!E27183","v":0},{"$f":"Import!E27583","v":0},{"$f":"Import!E27983","v":0},{"$f":"Import!E28383","v":0},{"$f":"Import!E28783","v":0}]
[233,{"$f":"Import!E25984","v":"Select"},{"$f":"Import!E26384","v":"Select"},{"$f":"Import!E26784","v":"Select"},{"$f":"Import!E27184","v":0},{"$f":"Import!E27584","v":0},{"$f":"Import!E27984","v":0},{"$f":"Import!E28384","v":0},{"$f":"Import!E28784","v":0}]
[234,{"$f":"Import!E25985","v":"Select"},{"$f":"Import!E26385","v":"Select"},{"$f":"Import!E26785","v":"Select"},{"$f":"Import!E27185","v":0},{"$f":"Import!E27585","v":0},{"$f":"Import!E27985","v":0},{"$f":"Import!E28385","v":0},{"$f":"Import!E28785","v":0}]
[235,{"$f":"Import!E25986","v":"Select"},{"$f":"Import!E26386","v":"Select"},{"$f":"Import!E26786","v":"Select"},{"$f":"Import!E27186","v":0},{"$f":"Import!E27586","v":0},{"$f":"Import!E27986","v":0},{"$f":"Import!E28386","v":0},{"$f":"Import!E28786","v":0}]
[236,{"$f":"Import!E25987","v":"Select"},{"$f":"Import!E26387","v":"Select"},{"$f":"Import!E26787","v":"Select"},{"$f":"Import!E27187","v":0},{"$f":"Import!E27587","v":0},{"$f":"Import!E27987","v":0},{"$f":"Import!E28387","v":0},{"$f":"Import!E28787","v":0}]
[237,{"$f":"Import!E25988","v":"Select"},{"$f":"Import!E26388","v":"Select"},{"$f":"Import!E26788","v":"Select"},{"$f":"Import!E27188","v":0},{"$f":"Import!E27588","v":0},{"$f":"Import!E27988","v":0},{"$f":"Import!E28388","v":0},{"$f":"Import!E28788","v":0}]
[238,{"$f":"Import!E25989","v":"Select"},{"$f":"Import!E26389","v":"Select"},{"$f":"Import!E26789","v":"Select"},{"$f":"Import!E27189","v":0},{"$f":"Import!E27589","v":0},{"$f":"Import!E27989","v":0},{"$f":"Import!E28389","v":0},{"$f":"Import!E28789","v":0}]
[239,{"$f":"Import!E25990","v":"Select"},{"$f":"Import!E26390","v":"Select"},{"$f":"Import!E26790","v":"Select"},{"$f":"Import!E27190","v":0},{"$f":"Import!E27590","v":0},{"$f":"Import!E27990","v":0},{"$f":"Import!E28390","v":0},{"$f":"Import!E28790","v":0}]
[240,{"$f":"Import!E25991","v":"Select"},{"$f":"Import!E26391","v":"Select"},{"$f":"Import!E26791","v":"Select"},{"$f":"Import!E27191","v":0},{"$f":"Import!E27591","v":0},{"$f":"Import!E27991","v":0},{"$f":"Import!E28391","v":0},{"$f":"Import!E28791","v":0}]
[241,{"$f":"Import!E25992","v":"Select"},{"$f":"Import!E26392","v":"Select"},{"$f":"Import!E26792","v":"Select"},{"$f":"Import!E27192","v":0},{"$f":"Import!E27592","v":0},{"$f":"Import!E27992","v":0},{"$f":"Import!E28392","v":0},{"$f":"Import!E28792","v":0}]
[242,{"$f":"Import!E25993","v":"Select"},{"$f":"Import!E26393","v":"Select"},{"$f":"Import!E26793","v":"Select"},{"$f":"Import!E27193","v":0},{"$f":"Import!E27593","v":0},{"$f":"Import!E27993","v":0},{"$f":"Import!E28393","v":0},{"$f":"Import!E28793","v":0}]
[243,{"$f":"Import!E25994","v":"Select"},{"$f":"Import!E26394","v":"Select"},{"$f":"Import!E26794","v":"Select"},{"$f":"Import!E27194","v":0},{"$f":"Import!E27594","v":0},{"$f":"Import!E27994","v":0},{"$f":"Import!E28394","v":0},{"$f":"Import!E28794","v":0}]
[244,{"$f":"Import!E25995","v":"Select"},{"$f":"Import!E26395","v":"Select"},{"$f":"Import!E26795","v":"Select"},{"$f":"Import!E27195","v":0},{"$f":"Import!E27595","v":0},{"$f":"Import!E27995","v":0},{"$f":"Import!E28395","v":0},{"$f":"Import!E28795","v":0}]
[245,{"$f":"Import!E25996","v":"Select"},{"$f":"Import!E26396","v":"Select"},{"$f":"Import!E26796","v":"Select"},{"$f":"Import!E27196","v":0},{"$f":"Import!E27596","v":0},{"$f":"Import!E27996","v":0},{"$f":"Import!E28396","v":0},{"$f":"Import!E28796","v":0}]
[246,{"$f":"Import!E25997","v":"Select"},{"$f":"Import!E26397","v":"Select"},{"$f":"Import!E26797","v":"Select"},{"$f":"Import!E27197","v":0},{"$f":"Import!E27597","v":0},{"$f":"Import!E27997","v":0},{"$f":"Import!E28397","v":0},{"$f":"Import!E28797","v":0}]
[247,{"$f":"Import!E25998","v":"Select"},{"$f":"Import!E26398","v":"Select"},{"$f":"Import!E26798","v":"Select"},{"$f":"Import!E27198","v":0},{"$f":"Import!E27598","v":0},{"$f":"Import!E27998","v":0},{"$f":"Import!E28398","v":0},{"$f":"Import!E28798","v":0}]
[248,{"$f":"Import!E25999","v":"Select"},{"$f":"Import!E26399","v":"Select"},{"$f":"Import!E26799","v":"Select"},{"$f":"Import!E27199","v":0},{"$f":"Import!E27599","v":0},{"$f":"Import!E27999","v":0},{"$f":"Import!E28399","v":0},{"$f":"Import!E28799","v":0}]
[249,{"$f":"Import!E26000","v":"Select"},{"$f":"Import!E26400","v":"Select"},{"$f":"Import!E26800","v":"Select"},{"$f":"Import!E27200","v":0},{"$f":"Import!E27600","v":0},{"$f":"Import!E28000","v":0},{"$f":"Import!E28400","v":0},{"$f":"Import!E28800","v":0}]
[250,{"$f":"Import!E26001","v":"Select"},{"$f":"Import!E26401","v":"Select"},{"$f":"Import!E26801","v":"Select"},{"$f":"Import!E27201","v":0},{"$f":"Import!E27601","v":0},{"$f":"Import!E28001","v":0},{"$f":"Import!E28401","v":0},{"$f":"Import!E28801","v":0}]
[251,{"$f":"Import!E26002","v":"Select"},{"$f":"Import!E26402","v":"Select"},{"$f":"Import!E26802","v":"Select"},{"$f":"Import!E27202","v":0},{"$f":"Import!E27602","v":0},{"$f":"Import!E28002","v":0},{"$f":"Import!E28402","v":0},{"$f":"Import!E28802","v":0}]
[252,{"$f":"Import!E26003","v":"Select"},{"$f":"Import!E26403","v":"Select"},{"$f":"Import!E26803","v":"Select"},{"$f":"Import!E27203","v":0},{"$f":"Import!E27603","v":0},{"$f":"Import!E28003","v":0},{"$f":"Import!E28403","v":0},{"$f":"Import!E28803","v":0}]
[253,{"$f":"Import!E26004","v":"Select"},{"$f":"Import!E26404","v":"Select"},{"$f":"Import!E26804","v":"Select"},{"$f":"Import!E27204","v":0},{"$f":"Import!E27604","v":0},{"$f":"Import!E28004","v":0},{"$f":"Import!E28404","v":0},{"$f":"Import!E28804","v":0}]
[254,{"$f":"Import!E26005","v":"Select"},{"$f":"Import!E26405","v":"Select"},{"$f":"Import!E26805","v":"Select"},{"$f":"Import!E27205","v":0},{"$f":"Import!E27605","v":0},{"$f":"Import!E28005","v":0},{"$f":"Import!E28405","v":0},{"$f":"Import!E28805","v":0}]
[255,{"$f":"Import!E26006","v":"Select"},{"$f":"Import!E26406","v":"Select"},{"$f":"Import!E26806","v":"Select"},{"$f":"Import!E27206","v":0},{"$f":"Import!E27606","v":0},{"$f":"Import!E28006","v":0},{"$f":"Import!E28406","v":0},{"$f":"Import!E28806","v":0}]
[256,{"$f":"Import!E26007","v":"Select"},{"$f":"Import!E26407","v":"Select"},{"$f":"Import!E26807","v":"Select"},{"$f":"Import!E27207","v":0},{"$f":"Import!E27607","v":0},{"$f":"Import!E28007","v":0},{"$f":"Import!E28407","v":0},{"$f":"Import!E28807","v":0}]
[257,{"$f":"Import!E26008","v":"Select"},{"$f":"Import!E26408","v":"Select"},{"$f":"Import!E26808","v":"Select"},{"$f":"Import!E27208","v":0},{"$f":"Import!E27608","v":0},{"$f":"Import!E28008","v":0},{"$f":"Import!E28408","v":0},{"$f":"Import!E28808","v":0}]
[258,{"$f":"Import!E26009","v":"Select"},{"$f":"Import!E26409","v":"Select"},{"$f":"Import!E26809","v":"Select"},{"$f":"Import!E27209","v":0},{"$f":"Import!E27609","v":0},{"$f":"Import!E28009","v":0},{"$f":"Import!E28409","v":0},{"$f":"Import!E28809","v":0}]
[{"$f":"A476+1","v":259},{"$f":"Import!E26010","v":"Select"},{"$f":"Import!E26410","v":"Select"},{"$f":"Import!E26810","v":"Select"},{"$f":"Import!E27210","v":0},{"$f":"Import!E27610","v":0},{"$f":"Import!E28010","v":0},{"$f":"Import!E28410","v":0},{"$f":"Import!E28810","v":0}]
[260,{"$f":"Import!E26011","v":"Select"},{"$f":"Import!E26411","v":"Select"},{"$f":"Import!E26811","v":"Select"},{"$f":"Import!E27211","v":0},{"$f":"Import!E27611","v":0},{"$f":"Import!E28011","v":0},{"$f":"Import!E28411","v":0},{"$f":"Import!E28811","v":0}]
[261,{"$f":"Import!E26012","v":"Select"},{"$f":"Import!E26412","v":"Select"},{"$f":"Import!E26812","v":"Select"},{"$f":"Import!E27212","v":0},{"$f":"Import!E27612","v":0},{"$f":"Import!E28012","v":0},{"$f":"Import!E28412","v":0},{"$f":"Import!E28812","v":0}]
[262,{"$f":"Import!E26013","v":"Select"},{"$f":"Import!E26413","v":"Select"},{"$f":"Import!E26813","v":"Select"},{"$f":"Import!E27213","v":0},{"$f":"Import!E27613","v":0},{"$f":"Import!E28013","v":0},{"$f":"Import!E28413","v":0},{"$f":"Import!E28813","v":0}]
[263,{"$f":"Import!E26014","v":"Select"},{"$f":"Import!E26414","v":"Select"},{"$f":"Import!E26814","v":"Select"},{"$f":"Import!E27214","v":0},{"$f":"Import!E27614","v":0},{"$f":"Import!E28014","v":0},{"$f":"Import!E28414","v":0},{"$f":"Import!E28814","v":0}]
[264,{"$f":"Import!E26015","v":"Select"},{"$f":"Import!E26415","v":"Select"},{"$f":"Import!E26815","v":"Select"},{"$f":"Import!E27215","v":0},{"$f":"Import!E27615","v":0},{"$f":"Import!E28015","v":0},{"$f":"Import!E28415","v":0},{"$f":"Import!E28815","v":0}]
[265,{"$f":"Import!E26016","v":"Select"},{"$f":"Import!E26416","v":"Select"},{"$f":"Import!E26816","v":"Select"},{"$f":"Import!E27216","v":0},{"$f":"Import!E27616","v":0},{"$f":"Import!E28016","v":0},{"$f":"Import!E28416","v":0},{"$f":"Import!E28816","v":0}]
[266,{"$f":"Import!E26017","v":"Select"},{"$f":"Import!E26417","v":"Select"},{"$f":"Import!E26817","v":"Select"},{"$f":"Import!E27217","v":0},{"$f":"Import!E27617","v":0},{"$f":"Import!E28017","v":0},{"$f":"Import!E28417","v":0},{"$f":"Import!E28817","v":0}]
[267,{"$f":"Import!E26018","v":"Select"},{"$f":"Import!E26418","v":"Select"},{"$f":"Import!E26818","v":"Select"},{"$f":"Import!E27218","v":0},{"$f":"Import!E27618","v":0},{"$f":"Import!E28018","v":0},{"$f":"Import!E28418","v":0},{"$f":"Import!E28818","v":0}]
[268,{"$f":"Import!E26019","v":"Select"},{"$f":"Import!E26419","v":"Select"},{"$f":"Import!E26819","v":"Select"},{"$f":"Import!E27219","v":0},{"$f":"Import!E27619","v":0},{"$f":"Import!E28019","v":0},{"$f":"Import!E28419","v":0},{"$f":"Import!E28819","v":0}]
[269,{"$f":"Import!E26020","v":"Select"},{"$f":"Import!E26420","v":"Select"},{"$f":"Import!E26820","v":"Select"},{"$f":"Import!E27220","v":0},{"$f":"Import!E27620","v":0},{"$f":"Import!E28020","v":0},{"$f":"Import!E28420","v":0},{"$f":"Import!E28820","v":0}]
[270,{"$f":"Import!E26021","v":"Select"},{"$f":"Import!E26421","v":"Select"},{"$f":"Import!E26821","v":"Select"},{"$f":"Import!E27221","v":0},{"$f":"Import!E27621","v":0},{"$f":"Import!E28021","v":0},{"$f":"Import!E28421","v":0},{"$f":"Import!E28821","v":0}]
[271,{"$f":"Import!E26022","v":"Select"},{"$f":"Import!E26422","v":"Select"},{"$f":"Import!E26822","v":"Select"},{"$f":"Import!E27222","v":0},{"$f":"Import!E27622","v":0},{"$f":"Import!E28022","v":0},{"$f":"Import!E28422","v":0},{"$f":"Import!E28822","v":0}]
[272,{"$f":"Import!E26023","v":"Select"},{"$f":"Import!E26423","v":"Select"},{"$f":"Import!E26823","v":"Select"},{"$f":"Import!E27223","v":0},{"$f":"Import!E27623","v":0},{"$f":"Import!E28023","v":0},{"$f":"Import!E28423","v":0},{"$f":"Import!E28823","v":0}]
[273,{"$f":"Import!E26024","v":"Select"},{"$f":"Import!E26424","v":"Select"},{"$f":"Import!E26824","v":"Select"},{"$f":"Import!E27224","v":0},{"$f":"Import!E27624","v":0},{"$f":"Import!E28024","v":0},{"$f":"Import!E28424","v":0},{"$f":"Import!E28824","v":0}]
[274,{"$f":"Import!E26025","v":"Select"},{"$f":"Import!E26425","v":"Select"},{"$f":"Import!E26825","v":"Select"},{"$f":"Import!E27225","v":0},{"$f":"Import!E27625","v":0},{"$f":"Import!E28025","v":0},{"$f":"Import!E28425","v":0},{"$f":"Import!E28825","v":0}]
[275,{"$f":"Import!E26026","v":"Select"},{"$f":"Import!E26426","v":"Select"},{"$f":"Import!E26826","v":"Select"},{"$f":"Import!E27226","v":0},{"$f":"Import!E27626","v":0},{"$f":"Import!E28026","v":0},{"$f":"Import!E28426","v":0},{"$f":"Import!E28826","v":0}]
[276,{"$f":"Import!E26027","v":"Select"},{"$f":"Import!E26427","v":"Select"},{"$f":"Import!E26827","v":"Select"},{"$f":"Import!E27227","v":0},{"$f":"Import!E27627","v":0},{"$f":"Import!E28027","v":0},{"$f":"Import!E28427","v":0},{"$f":"Import!E28827","v":0}]
[277,{"$f":"Import!E26028","v":"Select"},{"$f":"Import!E26428","v":"Select"},{"$f":"Import!E26828","v":"Select"},{"$f":"Import!E27228","v":0},{"$f":"Import!E27628","v":0},{"$f":"Import!E28028","v":0},{"$f":"Import!E28428","v":0},{"$f":"Import!E28828","v":0}]
[278,{"$f":"Import!E26029","v":"Select"},{"$f":"Import!E26429","v":"Select"},{"$f":"Import!E26829","v":"Select"},{"$f":"Import!E27229","v":0},{"$f":"Import!E27629","v":0},{"$f":"Import!E28029","v":0},{"$f":"Import!E28429","v":0},{"$f":"Import!E28829","v":0}]
[279,{"$f":"Import!E26030","v":"Select"},{"$f":"Import!E26430","v":"Select"},{"$f":"Import!E26830","v":"Select"},{"$f":"Import!E27230","v":0},{"$f":"Import!E27630","v":0},{"$f":"Import!E28030","v":0},{"$f":"Import!E28430","v":0},{"$f":"Import!E28830","v":0}]
[280,{"$f":"Import!E26031","v":"Select"},{"$f":"Import!E26431","v":"Select"},{"$f":"Import!E26831","v":"Select"},{"$f":"Import!E27231","v":0},{"$f":"Import!E27631","v":0},{"$f":"Import!E28031","v":0},{"$f":"Import!E28431","v":0},{"$f":"Import!E28831","v":0}]
[281,{"$f":"Import!E26032","v":"Select"},{"$f":"Import!E26432","v":"Select"},{"$f":"Import!E26832","v":"Select"},{"$f":"Import!E27232","v":0},{"$f":"Import!E27632","v":0},{"$f":"Import!E28032","v":0},{"$f":"Import!E28432","v":0},{"$f":"Import!E28832","v":0}]
[282,{"$f":"Import!E26033","v":"Select"},{"$f":"Import!E26433","v":"Select"},{"$f":"Import!E26833","v":"Select"},{"$f":"Import!E27233","v":0},{"$f":"Import!E27633","v":0},{"$f":"Import!E28033","v":0},{"$f":"Import!E28433","v":0},{"$f":"Import!E28833","v":0}]
[283,{"$f":"Import!E26034","v":"Select"},{"$f":"Import!E26434","v":"Select"},{"$f":"Import!E26834","v":"Select"},{"$f":"Import!E27234","v":0},{"$f":"Import!E27634","v":0},{"$f":"Import!E28034","v":0},{"$f":"Import!E28434","v":0},{"$f":"Import!E28834","v":0}]
[284,{"$f":"Import!E26035","v":"Select"},{"$f":"Import!E26435","v":"Select"},{"$f":"Import!E26835","v":"Select"},{"$f":"Import!E27235","v":0},{"$f":"Import!E27635","v":0},{"$f":"Import!E28035","v":0},{"$f":"Import!E28435","v":0},{"$f":"Import!E28835","v":0}]
[285,{"$f":"Import!E26036","v":"Select"},{"$f":"Import!E26436","v":"Select"},{"$f":"Import!E26836","v":"Select"},{"$f":"Import!E27236","v":0},{"$f":"Import!E27636","v":0},{"$f":"Import!E28036","v":0},{"$f":"Import!E28436","v":0},{"$f":"Import!E28836","v":0}]
[286,{"$f":"Import!E26037","v":"Select"},{"$f":"Import!E26437","v":"Select"},{"$f":"Import!E26837","v":"Select"},{"$f":"Import!E27237","v":0},{"$f":"Import!E27637","v":0},{"$f":"Import!E28037","v":0},{"$f":"Import!E28437","v":0},{"$f":"Import!E28837","v":0}]
[287,{"$f":"Import!E26038","v":"Select"},{"$f":"Import!E26438","v":"Select"},{"$f":"Import!E26838","v":"Select"},{"$f":"Import!E27238","v":0},{"$f":"Import!E27638","v":0},{"$f":"Import!E28038","v":0},{"$f":"Import!E28438","v":0},{"$f":"Import!E28838","v":0}]
[288,{"$f":"Import!E26039","v":"Select"},{"$f":"Import!E26439","v":"Select"},{"$f":"Import!E26839","v":"Select"},{"$f":"Import!E27239","v":0},{"$f":"Import!E27639","v":0},{"$f":"Import!E28039","v":0},{"$f":"Import!E28439","v":0},{"$f":"Import!E28839","v":0}]
[289,{"$f":"Import!E26040","v":"Select"},{"$f":"Import!E26440","v":"Select"},{"$f":"Import!E26840","v":"Select"},{"$f":"Import!E27240","v":0},{"$f":"Import!E27640","v":0},{"$f":"Import!E28040","v":0},{"$f":"Import!E28440","v":0},{"$f":"Import!E28840","v":0}]
[290,{"$f":"Import!E26041","v":"Select"},{"$f":"Import!E26441","v":"Select"},{"$f":"Import!E26841","v":"Select"},{"$f":"Import!E27241","v":0},{"$f":"Import!E27641","v":0},{"$f":"Import!E28041","v":0},{"$f":"Import!E28441","v":0},{"$f":"Import!E28841","v":0}]
[291,{"$f":"Import!E26042","v":"Select"},{"$f":"Import!E26442","v":"Select"},{"$f":"Import!E26842","v":"Select"},{"$f":"Import!E27242","v":0},{"$f":"Import!E27642","v":0},{"$f":"Import!E28042","v":0},{"$f":"Import!E28442","v":0},{"$f":"Import!E28842","v":0}]
[292,{"$f":"Import!E26043","v":"Select"},{"$f":"Import!E26443","v":"Select"},{"$f":"Import!E26843","v":"Select"},{"$f":"Import!E27243","v":0},{"$f":"Import!E27643","v":0},{"$f":"Import!E28043","v":0},{"$f":"Import!E28443","v":0},{"$f":"Import!E28843","v":0}]
[293,{"$f":"Import!E26044","v":"Select"},{"$f":"Import!E26444","v":"Select"},{"$f":"Import!E26844","v":"Select"},{"$f":"Import!E27244","v":0},{"$f":"Import!E27644","v":0},{"$f":"Import!E28044","v":0},{"$f":"Import!E28444","v":0},{"$f":"Import!E28844","v":0}]
[294,{"$f":"Import!E26045","v":"Select"},{"$f":"Import!E26445","v":"Select"},{"$f":"Import!E26845","v":"Select"},{"$f":"Import!E27245","v":0},{"$f":"Import!E27645","v":0},{"$f":"Import!E28045","v":0},{"$f":"Import!E28445","v":0},{"$f":"Import!E28845","v":0}]
[295,{"$f":"Import!E26046","v":"Select"},{"$f":"Import!E26446","v":"Select"},{"$f":"Import!E26846","v":"Select"},{"$f":"Import!E27246","v":0},{"$f":"Import!E27646","v":0},{"$f":"Import!E28046","v":0},{"$f":"Import!E28446","v":0},{"$f":"Import!E28846","v":0}]
[296,{"$f":"Import!E26047","v":"Select"},{"$f":"Import!E26447","v":"Select"},{"$f":"Import!E26847","v":"Select"},{"$f":"Import!E27247","v":0},{"$f":"Import!E27647","v":0},{"$f":"Import!E28047","v":0},{"$f":"Import!E28447","v":0},{"$f":"Import!E28847","v":0}]
[297,{"$f":"Import!E26048","v":"Select"},{"$f":"Import!E26448","v":"Select"},{"$f":"Import!E26848","v":"Select"},{"$f":"Import!E27248","v":0},{"$f":"Import!E27648","v":0},{"$f":"Import!E28048","v":0},{"$f":"Import!E28448","v":0},{"$f":"Import!E28848","v":0}]
[298,{"$f":"Import!E26049","v":"Select"},{"$f":"Import!E26449","v":"Select"},{"$f":"Import!E26849","v":"Select"},{"$f":"Import!E27249","v":0},{"$f":"Import!E27649","v":0},{"$f":"Import!E28049","v":0},{"$f":"Import!E28449","v":0},{"$f":"Import!E28849","v":0}]
[299,{"$f":"Import!E26050","v":"Select"},{"$f":"Import!E26450","v":"Select"},{"$f":"Import!E26850","v":"Select"},{"$f":"Import!E27250","v":0},{"$f":"Import!E27650","v":0},{"$f":"Import!E28050","v":0},{"$f":"Import!E28450","v":0},{"$f":"Import!E28850","v":0}]
[300,{"$f":"Import!E26051","v":"Select"},{"$f":"Import!E26451","v":"Select"},{"$f":"Import!E26851","v":"Select"},{"$f":"Import!E27251","v":0},{"$f":"Import!E27651","v":0},{"$f":"Import!E28051","v":0},{"$f":"Import!E28451","v":0},{"$f":"Import!E28851","v":0}]
[301,{"$f":"Import!E26052","v":"Select"},{"$f":"Import!E26452","v":"Select"},{"$f":"Import!E26852","v":"Select"},{"$f":"Import!E27252","v":0},{"$f":"Import!E27652","v":0},{"$f":"Import!E28052","v":0},{"$f":"Import!E28452","v":0},{"$f":"Import!E28852","v":0}]
[302,{"$f":"Import!E26053","v":"Select"},{"$f":"Import!E26453","v":"Select"},{"$f":"Import!E26853","v":"Select"},{"$f":"Import!E27253","v":0},{"$f":"Import!E27653","v":0},{"$f":"Import!E28053","v":0},{"$f":"Import!E28453","v":0},{"$f":"Import!E28853","v":0}]
[303,{"$f":"Import!E26054","v":"Select"},{"$f":"Import!E26454","v":"Select"},{"$f":"Import!E26854","v":"Select"},{"$f":"Import!E27254","v":0},{"$f":"Import!E27654","v":0},{"$f":"Import!E28054","v":0},{"$f":"Import!E28454","v":0},{"$f":"Import!E28854","v":0}]
[304,{"$f":"Import!E26055","v":"Select"},{"$f":"Import!E26455","v":"Select"},{"$f":"Import!E26855","v":"Select"},{"$f":"Import!E27255","v":0},{"$f":"Import!E27655","v":0},{"$f":"Import!E28055","v":0},{"$f":"Import!E28455","v":0},{"$f":"Import!E28855","v":0}]
[305,{"$f":"Import!E26056","v":"Select"},{"$f":"Import!E26456","v":"Select"},{"$f":"Import!E26856","v":"Select"},{"$f":"Import!E27256","v":0},{"$f":"Import!E27656","v":0},{"$f":"Import!E28056","v":0},{"$f":"Import!E28456","v":0},{"$f":"Import!E28856","v":0}]
[306,{"$f":"Import!E26057","v":"Select"},{"$f":"Import!E26457","v":"Select"},{"$f":"Import!E26857","v":"Select"},{"$f":"Import!E27257","v":0},{"$f":"Import!E27657","v":0},{"$f":"Import!E28057","v":0},{"$f":"Import!E28457","v":0},{"$f":"Import!E28857","v":0}]
[307,{"$f":"Import!E26058","v":"Select"},{"$f":"Import!E26458","v":"Select"},{"$f":"Import!E26858","v":"Select"},{"$f":"Import!E27258","v":0},{"$f":"Import!E27658","v":0},{"$f":"Import!E28058","v":0},{"$f":"Import!E28458","v":0},{"$f":"Import!E28858","v":0}]
[308,{"$f":"Import!E26059","v":"Select"},{"$f":"Import!E26459","v":"Select"},{"$f":"Import!E26859","v":"Select"},{"$f":"Import!E27259","v":0},{"$f":"Import!E27659","v":0},{"$f":"Import!E28059","v":0},{"$f":"Import!E28459","v":0},{"$f":"Import!E28859","v":0}]
[309,{"$f":"Import!E26060","v":"Select"},{"$f":"Import!E26460","v":"Select"},{"$f":"Import!E26860","v":"Select"},{"$f":"Import!E27260","v":0},{"$f":"Import!E27660","v":0},{"$f":"Import!E28060","v":0},{"$f":"Import!E28460","v":0},{"$f":"Import!E28860","v":0}]
[310,{"$f":"Import!E26061","v":"Select"},{"$f":"Import!E26461","v":"Select"},{"$f":"Import!E26861","v":"Select"},{"$f":"Import!E27261","v":0},{"$f":"Import!E27661","v":0},{"$f":"Import!E28061","v":0},{"$f":"Import!E28461","v":0},{"$f":"Import!E28861","v":0}]
[311,{"$f":"Import!E26062","v":"Select"},{"$f":"Import!E26462","v":"Select"},{"$f":"Import!E26862","v":"Select"},{"$f":"Import!E27262","v":0},{"$f":"Import!E27662","v":0},{"$f":"Import!E28062","v":0},{"$f":"Import!E28462","v":0},{"$f":"Import!E28862","v":0}]
[312,{"$f":"Import!E26063","v":"Select"},{"$f":"Import!E26463","v":"Select"},{"$f":"Import!E26863","v":"Select"},{"$f":"Import!E27263","v":0},{"$f":"Import!E27663","v":0},{"$f":"Import!E28063","v":0},{"$f":"Import!E28463","v":0},{"$f":"Import!E28863","v":0}]
[313,{"$f":"Import!E26064","v":"Select"},{"$f":"Import!E26464","v":"Select"},{"$f":"Import!E26864","v":"Select"},{"$f":"Import!E27264","v":0},{"$f":"Import!E27664","v":0},{"$f":"Import!E28064","v":0},{"$f":"Import!E28464","v":0},{"$f":"Import!E28864","v":0}]
[314,{"$f":"Import!E26065","v":"Select"},{"$f":"Import!E26465","v":"Select"},{"$f":"Import!E26865","v":"Select"},{"$f":"Import!E27265","v":0},{"$f":"Import!E27665","v":0},{"$f":"Import!E28065","v":0},{"$f":"Import!E28465","v":0},{"$f":"Import!E28865","v":0}]
[315,{"$f":"Import!E26066","v":"Select"},{"$f":"Import!E26466","v":"Select"},{"$f":"Import!E26866","v":"Select"},{"$f":"Import!E27266","v":0},{"$f":"Import!E27666","v":0},{"$f":"Import!E28066","v":0},{"$f":"Import!E28466","v":0},{"$f":"Import!E28866","v":0}]
[316,{"$f":"Import!E26067","v":"Select"},{"$f":"Import!E26467","v":"Select"},{"$f":"Import!E26867","v":"Select"},{"$f":"Import!E27267","v":0},{"$f":"Import!E27667","v":0},{"$f":"Import!E28067","v":0},{"$f":"Import!E28467","v":0},{"$f":"Import!E28867","v":0}]
[317,{"$f":"Import!E26068","v":"Select"},{"$f":"Import!E26468","v":"Select"},{"$f":"Import!E26868","v":"Select"},{"$f":"Import!E27268","v":0},{"$f":"Import!E27668","v":0},{"$f":"Import!E28068","v":0},{"$f":"Import!E28468","v":0},{"$f":"Import!E28868","v":0}]
[318,{"$f":"Import!E26069","v":"Select"},{"$f":"Import!E26469","v":"Select"},{"$f":"Import!E26869","v":"Select"},{"$f":"Import!E27269","v":0},{"$f":"Import!E27669","v":0},{"$f":"Import!E28069","v":0},{"$f":"Import!E28469","v":0},{"$f":"Import!E28869","v":0}]
[319,{"$f":"Import!E26070","v":"Select"},{"$f":"Import!E26470","v":"Select"},{"$f":"Import!E26870","v":"Select"},{"$f":"Import!E27270","v":0},{"$f":"Import!E27670","v":0},{"$f":"Import!E28070","v":0},{"$f":"Import!E28470","v":0},{"$f":"Import!E28870","v":0}]
[320,{"$f":"Import!E26071","v":"Select"},{"$f":"Import!E26471","v":"Select"},{"$f":"Import!E26871","v":"Select"},{"$f":"Import!E27271","v":0},{"$f":"Import!E27671","v":0},{"$f":"Import!E28071","v":0},{"$f":"Import!E28471","v":0},{"$f":"Import!E28871","v":0}]
[321,{"$f":"Import!E26072","v":"Select"},{"$f":"Import!E26472","v":"Select"},{"$f":"Import!E26872","v":"Select"},{"$f":"Import!E27272","v":0},{"$f":"Import!E27672","v":0},{"$f":"Import!E28072","v":0},{"$f":"Import!E28472","v":0},{"$f":"Import!E28872","v":0}]
[322,{"$f":"Import!E26073","v":"Select"},{"$f":"Import!E26473","v":"Select"},{"$f":"Import!E26873","v":"Select"},{"$f":"Import!E27273","v":0},{"$f":"Import!E27673","v":0},{"$f":"Import!E28073","v":0},{"$f":"Import!E28473","v":0},{"$f":"Import!E28873","v":0}]
[{"$f":"A540+1","v":323},{"$f":"Import!E26074","v":"Select"},{"$f":"Import!E26474","v":"Select"},{"$f":"Import!E26874","v":"Select"},{"$f":"Import!E27274","v":0},{"$f":"Import!E27674","v":0},{"$f":"Import!E28074","v":0},{"$f":"Import!E28474","v":0},{"$f":"Import!E28874","v":0}]
[324,{"$f":"Import!E26075","v":"Select"},{"$f":"Import!E26475","v":"Select"},{"$f":"Import!E26875","v":"Select"},{"$f":"Import!E27275","v":0},{"$f":"Import!E27675","v":0},{"$f":"Import!E28075","v":0},{"$f":"Import!E28475","v":0},{"$f":"Import!E28875","v":0}]
[325,{"$f":"Import!E26076","v":"Select"},{"$f":"Import!E26476","v":"Select"},{"$f":"Import!E26876","v":"Select"},{"$f":"Import!E27276","v":0},{"$f":"Import!E27676","v":0},{"$f":"Import!E28076","v":0},{"$f":"Import!E28476","v":0},{"$f":"Import!E28876","v":0}]
[326,{"$f":"Import!E26077","v":"Select"},{"$f":"Import!E26477","v":"Select"},{"$f":"Import!E26877","v":"Select"},{"$f":"Import!E27277","v":0},{"$f":"Import!E27677","v":0},{"$f":"Import!E28077","v":0},{"$f":"Import!E28477","v":0},{"$f":"Import!E28877","v":0}]
[327,{"$f":"Import!E26078","v":"Select"},{"$f":"Import!E26478","v":"Select"},{"$f":"Import!E26878","v":"Select"},{"$f":"Import!E27278","v":0},{"$f":"Import!E27678","v":0},{"$f":"Import!E28078","v":0},{"$f":"Import!E28478","v":0},{"$f":"Import!E28878","v":0}]
[328,{"$f":"Import!E26079","v":"Select"},{"$f":"Import!E26479","v":"Select"},{"$f":"Import!E26879","v":"Select"},{"$f":"Import!E27279","v":0},{"$f":"Import!E27679","v":0},{"$f":"Import!E28079","v":0},{"$f":"Import!E28479","v":0},{"$f":"Import!E28879","v":0}]
[329,{"$f":"Import!E26080","v":"Select"},{"$f":"Import!E26480","v":"Select"},{"$f":"Import!E26880","v":"Select"},{"$f":"Import!E27280","v":0},{"$f":"Import!E27680","v":0},{"$f":"Import!E28080","v":0},{"$f":"Import!E28480","v":0},{"$f":"Import!E28880","v":0}]
[330,{"$f":"Import!E26081","v":"Select"},{"$f":"Import!E26481","v":"Select"},{"$f":"Import!E26881","v":"Select"},{"$f":"Import!E27281","v":0},{"$f":"Import!E27681","v":0},{"$f":"Import!E28081","v":0},{"$f":"Import!E28481","v":0},{"$f":"Import!E28881","v":0}]
[331,{"$f":"Import!E26082","v":"Select"},{"$f":"Import!E26482","v":"Select"},{"$f":"Import!E26882","v":"Select"},{"$f":"Import!E27282","v":0},{"$f":"Import!E27682","v":0},{"$f":"Import!E28082","v":0},{"$f":"Import!E28482","v":0},{"$f":"Import!E28882","v":0}]
[332,{"$f":"Import!E26083","v":"Select"},{"$f":"Import!E26483","v":"Select"},{"$f":"Import!E26883","v":"Select"},{"$f":"Import!E27283","v":0},{"$f":"Import!E27683","v":0},{"$f":"Import!E28083","v":0},{"$f":"Import!E28483","v":0},{"$f":"Import!E28883","v":0}]
[333,{"$f":"Import!E26084","v":"Select"},{"$f":"Import!E26484","v":"Select"},{"$f":"Import!E26884","v":"Select"},{"$f":"Import!E27284","v":0},{"$f":"Import!E27684","v":0},{"$f":"Import!E28084","v":0},{"$f":"Import!E28484","v":0},{"$f":"Import!E28884","v":0}]
[334,{"$f":"Import!E26085","v":"Select"},{"$f":"Import!E26485","v":"Select"},{"$f":"Import!E26885","v":"Select"},{"$f":"Import!E27285","v":0},{"$f":"Import!E27685","v":0},{"$f":"Import!E28085","v":0},{"$f":"Import!E28485","v":0},{"$f":"Import!E28885","v":0}]
[335,{"$f":"Import!E26086","v":"Select"},{"$f":"Import!E26486","v":"Select"},{"$f":"Import!E26886","v":"Select"},{"$f":"Import!E27286","v":0},{"$f":"Import!E27686","v":0},{"$f":"Import!E28086","v":0},{"$f":"Import!E28486","v":0},{"$f":"Import!E28886","v":0}]
[336,{"$f":"Import!E26087","v":"Select"},{"$f":"Import!E26487","v":"Select"},{"$f":"Import!E26887","v":"Select"},{"$f":"Import!E27287","v":0},{"$f":"Import!E27687","v":0},{"$f":"Import!E28087","v":0},{"$f":"Import!E28487","v":0},{"$f":"Import!E28887","v":0}]
[337,{"$f":"Import!E26088","v":"Select"},{"$f":"Import!E26488","v":"Select"},{"$f":"Import!E26888","v":"Select"},{"$f":"Import!E27288","v":0},{"$f":"Import!E27688","v":0},{"$f":"Import!E28088","v":0},{"$f":"Import!E28488","v":0},{"$f":"Import!E28888","v":0}]
[338,{"$f":"Import!E26089","v":"Select"},{"$f":"Import!E26489","v":"Select"},{"$f":"Import!E26889","v":"Select"},{"$f":"Import!E27289","v":0},{"$f":"Import!E27689","v":0},{"$f":"Import!E28089","v":0},{"$f":"Import!E28489","v":0},{"$f":"Import!E28889","v":0}]
[339,{"$f":"Import!E26090","v":"Select"},{"$f":"Import!E26490","v":"Select"},{"$f":"Import!E26890","v":"Select"},{"$f":"Import!E27290","v":0},{"$f":"Import!E27690","v":0},{"$f":"Import!E28090","v":0},{"$f":"Import!E28490","v":0},{"$f":"Import!E28890","v":0}]
[340,{"$f":"Import!E26091","v":"Select"},{"$f":"Import!E26491","v":"Select"},{"$f":"Import!E26891","v":"Select"},{"$f":"Import!E27291","v":0},{"$f":"Import!E27691","v":0},{"$f":"Import!E28091","v":0},{"$f":"Import!E28491","v":0},{"$f":"Import!E28891","v":0}]
[341,{"$f":"Import!E26092","v":"Select"},{"$f":"Import!E26492","v":"Select"},{"$f":"Import!E26892","v":"Select"},{"$f":"Import!E27292","v":0},{"$f":"Import!E27692","v":0},{"$f":"Import!E28092","v":0},{"$f":"Import!E28492","v":0},{"$f":"Import!E28892","v":0}]
[342,{"$f":"Import!E26093","v":"Select"},{"$f":"Import!E26493","v":"Select"},{"$f":"Import!E26893","v":"Select"},{"$f":"Import!E27293","v":0},{"$f":"Import!E27693","v":0},{"$f":"Import!E28093","v":0},{"$f":"Import!E28493","v":0},{"$f":"Import!E28893","v":0}]
[343,{"$f":"Import!E26094","v":"Select"},{"$f":"Import!E26494","v":"Select"},{"$f":"Import!E26894","v":"Select"},{"$f":"Import!E27294","v":0},{"$f":"Import!E27694","v":0},{"$f":"Import!E28094","v":0},{"$f":"Import!E28494","v":0},{"$f":"Import!E28894","v":0}]
[344,{"$f":"Import!E26095","v":"Select"},{"$f":"Import!E26495","v":"Select"},{"$f":"Import!E26895","v":"Select"},{"$f":"Import!E27295","v":0},{"$f":"Import!E27695","v":0},{"$f":"Import!E28095","v":0},{"$f":"Import!E28495","v":0},{"$f":"Import!E28895","v":0}]
[345,{"$f":"Import!E26096","v":"Select"},{"$f":"Import!E26496","v":"Select"},{"$f":"Import!E26896","v":"Select"},{"$f":"Import!E27296","v":0},{"$f":"Import!E27696","v":0},{"$f":"Import!E28096","v":0},{"$f":"Import!E28496","v":0},{"$f":"Import!E28896","v":0}]
[346,{"$f":"Import!E26097","v":"Select"},{"$f":"Import!E26497","v":"Select"},{"$f":"Import!E26897","v":"Select"},{"$f":"Import!E27297","v":0},{"$f":"Import!E27697","v":0},{"$f":"Import!E28097","v":0},{"$f":"Import!E28497","v":0},{"$f":"Import!E28897","v":0}]
[347,{"$f":"Import!E26098","v":"Select"},{"$f":"Import!E26498","v":"Select"},{"$f":"Import!E26898","v":"Select"},{"$f":"Import!E27298","v":0},{"$f":"Import!E27698","v":0},{"$f":"Import!E28098","v":0},{"$f":"Import!E28498","v":0},{"$f":"Import!E28898","v":0}]
[348,{"$f":"Import!E26099","v":"Select"},{"$f":"Import!E26499","v":"Select"},{"$f":"Import!E26899","v":"Select"},{"$f":"Import!E27299","v":0},{"$f":"Import!E27699","v":0},{"$f":"Import!E28099","v":0},{"$f":"Import!E28499","v":0},{"$f":"Import!E28899","v":0}]
[349,{"$f":"Import!E26100","v":"Select"},{"$f":"Import!E26500","v":"Select"},{"$f":"Import!E26900","v":"Select"},{"$f":"Import!E27300","v":0},{"$f":"Import!E27700","v":0},{"$f":"Import!E28100","v":0},{"$f":"Import!E28500","v":0},{"$f":"Import!E28900","v":0}]
[350,{"$f":"Import!E26101","v":"Select"},{"$f":"Import!E26501","v":"Select"},{"$f":"Import!E26901","v":"Select"},{"$f":"Import!E27301","v":0},{"$f":"Import!E27701","v":0},{"$f":"Import!E28101","v":0},{"$f":"Import!E28501","v":0},{"$f":"Import!E28901","v":0}]
[351,{"$f":"Import!E26102","v":"Select"},{"$f":"Import!E26502","v":"Select"},{"$f":"Import!E26902","v":"Select"},{"$f":"Import!E27302","v":0},{"$f":"Import!E27702","v":0},{"$f":"Import!E28102","v":0},{"$f":"Import!E28502","v":0},{"$f":"Import!E28902","v":0}]
[352,{"$f":"Import!E26103","v":"Select"},{"$f":"Import!E26503","v":"Select"},{"$f":"Import!E26903","v":"Select"},{"$f":"Import!E27303","v":0},{"$f":"Import!E27703","v":0},{"$f":"Import!E28103","v":0},{"$f":"Import!E28503","v":0},{"$f":"Import!E28903","v":0}]
[353,{"$f":"Import!E26104","v":"Select"},{"$f":"Import!E26504","v":"Select"},{"$f":"Import!E26904","v":"Select"},{"$f":"Import!E27304","v":0},{"$f":"Import!E27704","v":0},{"$f":"Import!E28104","v":0},{"$f":"Import!E28504","v":0},{"$f":"Import!E28904","v":0}]
[354,{"$f":"Import!E26105","v":"Select"},{"$f":"Import!E26505","v":"Select"},{"$f":"Import!E26905","v":"Select"},{"$f":"Import!E27305","v":0},{"$f":"Import!E27705","v":0},{"$f":"Import!E28105","v":0},{"$f":"Import!E28505","v":0},{"$f":"Import!E28905","v":0}]
[355,{"$f":"Import!E26106","v":"Select"},{"$f":"Import!E26506","v":"Select"},{"$f":"Import!E26906","v":"Select"},{"$f":"Import!E27306","v":0},{"$f":"Import!E27706","v":0},{"$f":"Import!E28106","v":0},{"$f":"Import!E28506","v":0},{"$f":"Import!E28906","v":0}]
[356,{"$f":"Import!E26107","v":"Select"},{"$f":"Import!E26507","v":"Select"},{"$f":"Import!E26907","v":"Select"},{"$f":"Import!E27307","v":0},{"$f":"Import!E27707","v":0},{"$f":"Import!E28107","v":0},{"$f":"Import!E28507","v":0},{"$f":"Import!E28907","v":0}]
[357,{"$f":"Import!E26108","v":"Select"},{"$f":"Import!E26508","v":"Select"},{"$f":"Import!E26908","v":"Select"},{"$f":"Import!E27308","v":0},{"$f":"Import!E27708","v":0},{"$f":"Import!E28108","v":0},{"$f":"Import!E28508","v":0},{"$f":"Import!E28908","v":0}]
[358,{"$f":"Import!E26109","v":"Select"},{"$f":"Import!E26509","v":"Select"},{"$f":"Import!E26909","v":"Select"},{"$f":"Import!E27309","v":0},{"$f":"Import!E27709","v":0},{"$f":"Import!E28109","v":0},{"$f":"Import!E28509","v":0},{"$f":"Import!E28909","v":0}]
[359,{"$f":"Import!E26110","v":"Select"},{"$f":"Import!E26510","v":"Select"},{"$f":"Import!E26910","v":"Select"},{"$f":"Import!E27310","v":0},{"$f":"Import!E27710","v":0},{"$f":"Import!E28110","v":0},{"$f":"Import!E28510","v":0},{"$f":"Import!E28910","v":0}]
[360,{"$f":"Import!E26111","v":"Select"},{"$f":"Import!E26511","v":"Select"},{"$f":"Import!E26911","v":"Select"},{"$f":"Import!E27311","v":0},{"$f":"Import!E27711","v":0},{"$f":"Import!E28111","v":0},{"$f":"Import!E28511","v":0},{"$f":"Import!E28911","v":0}]
[361,{"$f":"Import!E26112","v":"Select"},{"$f":"Import!E26512","v":"Select"},{"$f":"Import!E26912","v":"Select"},{"$f":"Import!E27312","v":0},{"$f":"Import!E27712","v":0},{"$f":"Import!E28112","v":0},{"$f":"Import!E28512","v":0},{"$f":"Import!E28912","v":0}]
[362,{"$f":"Import!E26113","v":"Select"},{"$f":"Import!E26513","v":"Select"},{"$f":"Import!E26913","v":"Select"},{"$f":"Import!E27313","v":0},{"$f":"Import!E27713","v":0},{"$f":"Import!E28113","v":0},{"$f":"Import!E28513","v":0},{"$f":"Import!E28913","v":0}]
[363,{"$f":"Import!E26114","v":"Select"},{"$f":"Import!E26514","v":"Select"},{"$f":"Import!E26914","v":"Select"},{"$f":"Import!E27314","v":0},{"$f":"Import!E27714","v":0},{"$f":"Import!E28114","v":0},{"$f":"Import!E28514","v":0},{"$f":"Import!E28914","v":0}]
[364,{"$f":"Import!E26115","v":"Select"},{"$f":"Import!E26515","v":"Select"},{"$f":"Import!E26915","v":"Select"},{"$f":"Import!E27315","v":0},{"$f":"Import!E27715","v":0},{"$f":"Import!E28115","v":0},{"$f":"Import!E28515","v":0},{"$f":"Import!E28915","v":0}]
[365,{"$f":"Import!E26116","v":"Select"},{"$f":"Import!E26516","v":"Select"},{"$f":"Import!E26916","v":"Select"},{"$f":"Import!E27316","v":0},{"$f":"Import!E27716","v":0},{"$f":"Import!E28116","v":0},{"$f":"Import!E28516","v":0},{"$f":"Import!E28916","v":0}]
[366,{"$f":"Import!E26117","v":"Select"},{"$f":"Import!E26517","v":"Select"},{"$f":"Import!E26917","v":"Select"},{"$f":"Import!E27317","v":0},{"$f":"Import!E27717","v":0},{"$f":"Import!E28117","v":0},{"$f":"Import!E28517","v":0},{"$f":"Import!E28917","v":0}]
[367,{"$f":"Import!E26118","v":"Select"},{"$f":"Import!E26518","v":"Select"},{"$f":"Import!E26918","v":"Select"},{"$f":"Import!E27318","v":0},{"$f":"Import!E27718","v":0},{"$f":"Import!E28118","v":0},{"$f":"Import!E28518","v":0},{"$f":"Import!E28918","v":0}]
[368,{"$f":"Import!E26119","v":"Select"},{"$f":"Import!E26519","v":"Select"},{"$f":"Import!E26919","v":"Select"},{"$f":"Import!E27319","v":0},{"$f":"Import!E27719","v":0},{"$f":"Import!E28119","v":0},{"$f":"Import!E28519","v":0},{"$f":"Import!E28919","v":0}]
[369,{"$f":"Import!E26120","v":"Select"},{"$f":"Import!E26520","v":"Select"},{"$f":"Import!E26920","v":"Select"},{"$f":"Import!E27320","v":0},{"$f":"Import!E27720","v":0},{"$f":"Import!E28120","v":0},{"$f":"Import!E28520","v":0},{"$f":"Import!E28920","v":0}]
[370,{"$f":"Import!E26121","v":"Select"},{"$f":"Import!E26521","v":"Select"},{"$f":"Import!E26921","v":"Select"},{"$f":"Import!E27321","v":0},{"$f":"Import!E27721","v":0},{"$f":"Import!E28121","v":0},{"$f":"Import!E28521","v":0},{"$f":"Import!E28921","v":0}]
[371,{"$f":"Import!E26122","v":"Select"},{"$f":"Import!E26522","v":"Select"},{"$f":"Import!E26922","v":"Select"},{"$f":"Import!E27322","v":0},{"$f":"Import!E27722","v":0},{"$f":"Import!E28122","v":0},{"$f":"Import!E28522","v":0},{"$f":"Import!E28922","v":0}]
[372,{"$f":"Import!E26123","v":"Select"},{"$f":"Import!E26523","v":"Select"},{"$f":"Import!E26923","v":"Select"},{"$f":"Import!E27323","v":0},{"$f":"Import!E27723","v":0},{"$f":"Import!E28123","v":0},{"$f":"Import!E28523","v":0},{"$f":"Import!E28923","v":0}]
[373,{"$f":"Import!E26124","v":"Select"},{"$f":"Import!E26524","v":"Select"},{"$f":"Import!E26924","v":"Select"},{"$f":"Import!E27324","v":0},{"$f":"Import!E27724","v":0},{"$f":"Import!E28124","v":0},{"$f":"Import!E28524","v":0},{"$f":"Import!E28924","v":0}]
[374,{"$f":"Import!E26125","v":"Select"},{"$f":"Import!E26525","v":"Select"},{"$f":"Import!E26925","v":"Select"},{"$f":"Import!E27325","v":0},{"$f":"Import!E27725","v":0},{"$f":"Import!E28125","v":0},{"$f":"Import!E28525","v":0},{"$f":"Import!E28925","v":0}]
[375,{"$f":"Import!E26126","v":"Select"},{"$f":"Import!E26526","v":"Select"},{"$f":"Import!E26926","v":"Select"},{"$f":"Import!E27326","v":0},{"$f":"Import!E27726","v":0},{"$f":"Import!E28126","v":0},{"$f":"Import!E28526","v":0},{"$f":"Import!E28926","v":0}]
[376,{"$f":"Import!E26127","v":"Select"},{"$f":"Import!E26527","v":"Select"},{"$f":"Import!E26927","v":"Select"},{"$f":"Import!E27327","v":0},{"$f":"Import!E27727","v":0},{"$f":"Import!E28127","v":0},{"$f":"Import!E28527","v":0},{"$f":"Import!E28927","v":0}]
[377,{"$f":"Import!E26128","v":"Select"},{"$f":"Import!E26528","v":"Select"},{"$f":"Import!E26928","v":"Select"},{"$f":"Import!E27328","v":0},{"$f":"Import!E27728","v":0},{"$f":"Import!E28128","v":0},{"$f":"Import!E28528","v":0},{"$f":"Import!E28928","v":0}]
[378,{"$f":"Import!E26129","v":"Select"},{"$f":"Import!E26529","v":"Select"},{"$f":"Import!E26929","v":"Select"},{"$f":"Import!E27329","v":0},{"$f":"Import!E27729","v":0},{"$f":"Import!E28129","v":0},{"$f":"Import!E28529","v":0},{"$f":"Import!E28929","v":0}]
[379,{"$f":"Import!E26130","v":"Select"},{"$f":"Import!E26530","v":"Select"},{"$f":"Import!E26930","v":"Select"},{"$f":"Import!E27330","v":0},{"$f":"Import!E27730","v":0},{"$f":"Import!E28130","v":0},{"$f":"Import!E28530","v":0},{"$f":"Import!E28930","v":0}]
[380,{"$f":"Import!E26131","v":"Select"},{"$f":"Import!E26531","v":"Select"},{"$f":"Import!E26931","v":"Select"},{"$f":"Import!E27331","v":0},{"$f":"Import!E27731","v":0},{"$f":"Import!E28131","v":0},{"$f":"Import!E28531","v":0},{"$f":"Import!E28931","v":0}]
[381,{"$f":"Import!E26132","v":"Select"},{"$f":"Import!E26532","v":"Select"},{"$f":"Import!E26932","v":"Select"},{"$f":"Import!E27332","v":0},{"$f":"Import!E27732","v":0},{"$f":"Import!E28132","v":0},{"$f":"Import!E28532","v":0},{"$f":"Import!E28932","v":0}]
[382,{"$f":"Import!E26133","v":"Select"},{"$f":"Import!E26533","v":"Select"},{"$f":"Import!E26933","v":"Select"},{"$f":"Import!E27333","v":0},{"$f":"Import!E27733","v":0},{"$f":"Import!E28133","v":0},{"$f":"Import!E28533","v":0},{"$f":"Import!E28933","v":0}]
[383,{"$f":"Import!E26134","v":"Select"},{"$f":"Import!E26534","v":"Select"},{"$f":"Import!E26934","v":"Select"},{"$f":"Import!E27334","v":0},{"$f":"Import!E27734","v":0},{"$f":"Import!E28134","v":0},{"$f":"Import!E28534","v":0},{"$f":"Import!E28934","v":0}]
[384,{"$f":"Import!E26135","v":"Select"},{"$f":"Import!E26535","v":"Select"},{"$f":"Import!E26935","v":"Select"},{"$f":"Import!E27335","v":0},{"$f":"Import!E27735","v":0},{"$f":"Import!E28135","v":0},{"$f":"Import!E28535","v":0},{"$f":"Import!E28935","v":0}]
[385,{"$f":"Import!E26136","v":"Select"},{"$f":"Import!E26536","v":"Select"},{"$f":"Import!E26936","v":"Select"},{"$f":"Import!E27336","v":0},{"$f":"Import!E27736","v":0},{"$f":"Import!E28136","v":0},{"$f":"Import!E28536","v":0},{"$f":"Import!E28936","v":0}]
[386,{"$f":"Import!E26137","v":"Select"},{"$f":"Import!E26537","v":"Select"},{"$f":"Import!E26937","v":"Select"},{"$f":"Import!E27337","v":0},{"$f":"Import!E27737","v":0},{"$f":"Import!E28137","v":0},{"$f":"Import!E28537","v":0},{"$f":"Import!E28937","v":0}]
[{"$f":"A604+1","v":387},{"$f":"Import!E26138","v":"Select"},{"$f":"Import!E26538","v":"Select"},{"$f":"Import!E26938","v":"Select"},{"$f":"Import!E27338","v":0},{"$f":"Import!E27738","v":0},{"$f":"Import!E28138","v":0},{"$f":"Import!E28538","v":0},{"$f":"Import!E28938","v":0}]
[388,{"$f":"Import!E26139","v":"Select"},{"$f":"Import!E26539","v":"Select"},{"$f":"Import!E26939","v":"Select"},{"$f":"Import!E27339","v":0},{"$f":"Import!E27739","v":0},{"$f":"Import!E28139","v":0},{"$f":"Import!E28539","v":0},{"$f":"Import!E28939","v":0}]
[389,{"$f":"Import!E26140","v":"Select"},{"$f":"Import!E26540","v":"Select"},{"$f":"Import!E26940","v":"Select"},{"$f":"Import!E27340","v":0},{"$f":"Import!E27740","v":0},{"$f":"Import!E28140","v":0},{"$f":"Import!E28540","v":0},{"$f":"Import!E28940","v":0}]
[390,{"$f":"Import!E26141","v":"Select"},{"$f":"Import!E26541","v":"Select"},{"$f":"Import!E26941","v":"Select"},{"$f":"Import!E27341","v":0},{"$f":"Import!E27741","v":0},{"$f":"Import!E28141","v":0},{"$f":"Import!E28541","v":0},{"$f":"Import!E28941","v":0}]
[391,{"$f":"Import!E26142","v":"Select"},{"$f":"Import!E26542","v":"Select"},{"$f":"Import!E26942","v":"Select"},{"$f":"Import!E27342","v":0},{"$f":"Import!E27742","v":0},{"$f":"Import!E28142","v":0},{"$f":"Import!E28542","v":0},{"$f":"Import!E28942","v":0}]
[392,{"$f":"Import!E26143","v":"Select"},{"$f":"Import!E26543","v":"Select"},{"$f":"Import!E26943","v":"Select"},{"$f":"Import!E27343","v":0},{"$f":"Import!E27743","v":0},{"$f":"Import!E28143","v":0},{"$f":"Import!E28543","v":0},{"$f":"Import!E28943","v":0}]
[393,{"$f":"Import!E26144","v":"Select"},{"$f":"Import!E26544","v":"Select"},{"$f":"Import!E26944","v":"Select"},{"$f":"Import!E27344","v":0},{"$f":"Import!E27744","v":0},{"$f":"Import!E28144","v":0},{"$f":"Import!E28544","v":0},{"$f":"Import!E28944","v":0}]
[394,{"$f":"Import!E26145","v":"Select"},{"$f":"Import!E26545","v":"Select"},{"$f":"Import!E26945","v":"Select"},{"$f":"Import!E27345","v":0},{"$f":"Import!E27745","v":0},{"$f":"Import!E28145","v":0},{"$f":"Import!E28545","v":0},{"$f":"Import!E28945","v":0}]
[395,{"$f":"Import!E26146","v":"Select"},{"$f":"Import!E26546","v":"Select"},{"$f":"Import!E26946","v":"Select"},{"$f":"Import!E27346","v":0},{"$f":"Import!E27746","v":0},{"$f":"Import!E28146","v":0},{"$f":"Import!E28546","v":0},{"$f":"Import!E28946","v":0}]
[396,{"$f":"Import!E26147","v":"Select"},{"$f":"Import!E26547","v":"Select"},{"$f":"Import!E26947","v":"Select"},{"$f":"Import!E27347","v":0},{"$f":"Import!E27747","v":0},{"$f":"Import!E28147","v":0},{"$f":"Import!E28547","v":0},{"$f":"Import!E28947","v":0}]
[397,{"$f":"Import!E26148","v":"Select"},{"$f":"Import!E26548","v":"Select"},{"$f":"Import!E26948","v":"Select"},{"$f":"Import!E27348","v":0},{"$f":"Import!E27748","v":0},{"$f":"Import!E28148","v":0},{"$f":"Import!E28548","v":0},{"$f":"Import!E28948","v":0}]
[398,{"$f":"Import!E26149","v":"Select"},{"$f":"Import!E26549","v":"Select"},{"$f":"Import!E26949","v":"Select"},{"$f":"Import!E27349","v":0},{"$f":"Import!E27749","v":0},{"$f":"Import!E28149","v":0},{"$f":"Import!E28549","v":0},{"$f":"Import!E28949","v":0}]
[399,{"$f":"Import!E26150","v":"Select"},{"$f":"Import!E26550","v":"Select"},{"$f":"Import!E26950","v":"Select"},{"$f":"Import!E27350","v":0},{"$f":"Import!E27750","v":0},{"$f":"Import!E28150","v":0},{"$f":"Import!E28550","v":0},{"$f":"Import!E28950","v":0}]
[400,{"$f":"Import!E26151","v":"Select"},{"$f":"Import!E26551","v":"Select"},{"$f":"Import!E26951","v":"Select"},{"$f":"Import!E27351","v":0},{"$f":"Import!E27751","v":0},{"$f":"Import!E28151","v":0},{"$f":"Import!E28551","v":0},{"$f":"Import!E28951","v":0}]
[]
[null,"Total Bonds and Debentures",null,null,{"$f":"SUM(E219:E618)","v":0},{"$f":"SUM(F219:F618)","v":0},{"$f":"IFERROR(SUMPRODUCT(G219:G618,$F219:$F618)/SUM($F219:$F618),0)","v":0},{"$f":"IFERROR(SUMPRODUCT(H219:H618,$F219:$F618)/SUM($F219:$F618),0)","v":0}]
[]
[null,"- ADDITIONAL INFORMATION ON SOVEREIGN DEBT EXPOSURES"]
[]
[null,null,"Enter # of Asset Types",{"$f":"Import!E28952","v":0}]
[null,null,null,null,null,{"$f":"YEAR($C$3)","v":2023}]
[null,null,"Country","Currency","BSCR Rating","Fair Value","Comments"]
[null,1,{"$f":"Import!E28953","v":"Select"},{"$f":"Import!E29153","v":"Select"},{"$f":"Import!E29353","v":"Select"},{"$f":"Import!E29553","v":0},{"$f":"Import!E29753","v":0}]
[null,{"$f":"B627+1","v":2},{"$f":"Import!E28954","v":"Select"},{"$f":"Import!E29154","v":"Select"},{"$f":"Import!E29354","v":"Select"},{"$f":"Import!E29554","v":0},{"$f":"Import!E29754","v":0}]
[null,{"$f":"B628+1","v":3},{"$f":"Import!E28955","v":"Select"},{"$f":"Import!E29155","v":"Select"},{"$f":"Import!E29355","v":"Select"},{"$f":"Import!E29555","v":0},{"$f":"Import!E29755","v":0}]
[null,4,{"$f":"Import!E28956","v":"Select"},{"$f":"Import!E29156","v":"Select"},{"$f":"Import!E29356","v":"Select"},{"$f":"Import!E29556","v":0},{"$f":"Import!E29756","v":0}]
[null,5,{"$f":"Import!E28957","v":"Select"},{"$f":"Import!E29157","v":"Select"},{"$f":"Import!E29357","v":"Select"},{"$f":"Import!E29557","v":0},{"$f":"Import!E29757","v":0}]
[null,6,{"$f":"Import!E28958","v":"Select"},{"$f":"Import!E29158","v":"Select"},{"$f":"Import!E29358","v":"Select"},{"$f":"Import!E29558","v":0},{"$f":"Import!E29758","v":0}]
[null,7,{"$f":"Import!E28959","v":"Select"},{"$f":"Import!E29159","v":"Select"},{"$f":"Import!E29359","v":"Select"},{"$f":"Import!E29559","v":0},{"$f":"Import!E29759","v":0}]
[null,8,{"$f":"Import!E28960","v":"Select"},{"$f":"Import!E29160","v":"Select"},{"$f":"Import!E29360","v":"Select"},{"$f":"Import!E29560","v":0},{"$f":"Import!E29760","v":0}]
[null,9,{"$f":"Import!E28961","v":"Select"},{"$f":"Import!E29161","v":"Select"},{"$f":"Import!E29361","v":"Select"},{"$f":"Import!E29561","v":0},{"$f":"Import!E29761","v":0}]
[null,10,{"$f":"Import!E28962","v":"Select"},{"$f":"Import!E29162","v":"Select"},{"$f":"Import!E29362","v":"Select"},{"$f":"Import!E29562","v":0},{"$f":"Import!E29762","v":0}]
[null,11,{"$f":"Import!E28963","v":"Select"},{"$f":"Import!E29163","v":"Select"},{"$f":"Import!E29363","v":"Select"},{"$f":"Import!E29563","v":0},{"$f":"Import!E29763","v":0}]
[null,12,{"$f":"Import!E28964","v":"Select"},{"$f":"Import!E29164","v":"Select"},{"$f":"Import!E29364","v":"Select"},{"$f":"Import!E29564","v":0},{"$f":"Import!E29764","v":0}]
[null,13,{"$f":"Import!E28965","v":"Select"},{"$f":"Import!E29165","v":"Select"},{"$f":"Import!E29365","v":"Select"},{"$f":"Import!E29565","v":0},{"$f":"Import!E29765","v":0}]
[null,14,{"$f":"Import!E28966","v":"Select"},{"$f":"Import!E29166","v":"Select"},{"$f":"Import!E29366","v":"Select"},{"$f":"Import!E29566","v":0},{"$f":"Import!E29766","v":0}]
[null,15,{"$f":"Import!E28967","v":"Select"},{"$f":"Import!E29167","v":"Select"},{"$f":"Import!E29367","v":"Select"},{"$f":"Import!E29567","v":0},{"$f":"Import!E29767","v":0}]
[null,16,{"$f":"Import!E28968","v":"Select"},{"$f":"Import!E29168","v":"Select"},{"$f":"Import!E29368","v":"Select"},{"$f":"Import!E29568","v":0},{"$f":"Import!E29768","v":0}]
[null,17,{"$f":"Import!E28969","v":"Select"},{"$f":"Import!E29169","v":"Select"},{"$f":"Import!E29369","v":"Select"},{"$f":"Import!E29569","v":0},{"$f":"Import!E29769","v":0}]
[null,18,{"$f":"Import!E28970","v":"Select"},{"$f":"Import!E29170","v":"Select"},{"$f":"Import!E29370","v":"Select"},{"$f":"Import!E29570","v":0},{"$f":"Import!E29770","v":0}]
[null,19,{"$f":"Import!E28971","v":"Select"},{"$f":"Import!E29171","v":"Select"},{"$f":"Import!E29371","v":"Select"},{"$f":"Import!E29571","v":0},{"$f":"Import!E29771","v":0}]
[null,20,{"$f":"Import!E28972","v":"Select"},{"$f":"Import!E29172","v":"Select"},{"$f":"Import!E29372","v":"Select"},{"$f":"Import!E29572","v":0},{"$f":"Import!E29772","v":0}]
[null,21,{"$f":"Import!E28973","v":"Select"},{"$f":"Import!E29173","v":"Select"},{"$f":"Import!E29373","v":"Select"},{"$f":"Import!E29573","v":0},{"$f":"Import!E29773","v":0}]
[null,22,{"$f":"Import!E28974","v":"Select"},{"$f":"Import!E29174","v":"Select"},{"$f":"Import!E29374","v":"Select"},{"$f":"Import!E29574","v":0},{"$f":"Import!E29774","v":0}]
[null,23,{"$f":"Import!E28975","v":"Select"},{"$f":"Import!E29175","v":"Select"},{"$f":"Import!E29375","v":"Select"},{"$f":"Import!E29575","v":0},{"$f":"Import!E29775","v":0}]
[null,24,{"$f":"Import!E28976","v":"Select"},{"$f":"Import!E29176","v":"Select"},{"$f":"Import!E29376","v":"Select"},{"$f":"Import!E29576","v":0},{"$f":"Import!E29776","v":0}]
[null,25,{"$f":"Import!E28977","v":"Select"},{"$f":"Import!E29177","v":"Select"},{"$f":"Import!E29377","v":"Select"},{"$f":"Import!E29577","v":0},{"$f":"Import!E29777","v":0}]
[null,26,{"$f":"Import!E28978","v":"Select"},{"$f":"Import!E29178","v":"Select"},{"$f":"Import!E29378","v":"Select"},{"$f":"Import!E29578","v":0},{"$f":"Import!E29778","v":0}]
[null,27,{"$f":"Import!E28979","v":"Select"},{"$f":"Import!E29179","v":"Select"},{"$f":"Import!E29379","v":"Select"},{"$f":"Import!E29579","v":0},{"$f":"Import!E29779","v":0}]
[null,28,{"$f":"Import!E28980","v":"Select"},{"$f":"Import!E29180","v":"Select"},{"$f":"Import!E29380","v":"Select"},{"$f":"Import!E29580","v":0},{"$f":"Import!E29780","v":0}]
[null,29,{"$f":"Import!E28981","v":"Select"},{"$f":"Import!E29181","v":"Select"},{"$f":"Import!E29381","v":"Select"},{"$f":"Import!E29581","v":0},{"$f":"Import!E29781","v":0}]
[null,30,{"$f":"Import!E28982","v":"Select"},{"$f":"Import!E29182","v":"Select"},{"$f":"Import!E29382","v":"Select"},{"$f":"Import!E29582","v":0},{"$f":"Import!E29782","v":0}]
[null,31,{"$f":"Import!E28983","v":"Select"},{"$f":"Import!E29183","v":"Select"},{"$f":"Import!E29383","v":"Select"},{"$f":"Import!E29583","v":0},{"$f":"Import!E29783","v":0}]
[null,32,{"$f":"Import!E28984","v":"Select"},{"$f":"Import!E29184","v":"Select"},{"$f":"Import!E29384","v":"Select"},{"$f":"Import!E29584","v":0},{"$f":"Import!E29784","v":0}]
[null,33,{"$f":"Import!E28985","v":"Select"},{"$f":"Import!E29185","v":"Select"},{"$f":"Import!E29385","v":"Select"},{"$f":"Import!E29585","v":0},{"$f":"Import!E29785","v":0}]
[null,34,{"$f":"Import!E28986","v":"Select"},{"$f":"Import!E29186","v":"Select"},{"$f":"Import!E29386","v":"Select"},{"$f":"Import!E29586","v":0},{"$f":"Import!E29786","v":0}]
[null,35,{"$f":"Import!E28987","v":"Select"},{"$f":"Import!E29187","v":"Select"},{"$f":"Import!E29387","v":"Select"},{"$f":"Import!E29587","v":0},{"$f":"Import!E29787","v":0}]
[null,36,{"$f":"Import!E28988","v":"Select"},{"$f":"Import!E29188","v":"Select"},{"$f":"Import!E29388","v":"Select"},{"$f":"Import!E29588","v":0},{"$f":"Import!E29788","v":0}]
[null,37,{"$f":"Import!E28989","v":"Select"},{"$f":"Import!E29189","v":"Select"},{"$f":"Import!E29389","v":"Select"},{"$f":"Import!E29589","v":0},{"$f":"Import!E29789","v":0}]
[null,38,{"$f":"Import!E28990","v":"Select"},{"$f":"Import!E29190","v":"Select"},{"$f":"Import!E29390","v":"Select"},{"$f":"Import!E29590","v":0},{"$f":"Import!E29790","v":0}]
[null,39,{"$f":"Import!E28991","v":"Select"},{"$f":"Import!E29191","v":"Select"},{"$f":"Import!E29391","v":"Select"},{"$f":"Import!E29591","v":0},{"$f":"Import!E29791","v":0}]
[null,40,{"$f":"Import!E28992","v":"Select"},{"$f":"Import!E29192","v":"Select"},{"$f":"Import!E29392","v":"Select"},{"$f":"Import!E29592","v":0},{"$f":"Import!E29792","v":0}]
[null,41,{"$f":"Import!E28993","v":"Select"},{"$f":"Import!E29193","v":"Select"},{"$f":"Import!E29393","v":"Select"},{"$f":"Import!E29593","v":0},{"$f":"Import!E29793","v":0}]
[null,42,{"$f":"Import!E28994","v":"Select"},{"$f":"Import!E29194","v":"Select"},{"$f":"Import!E29394","v":"Select"},{"$f":"Import!E29594","v":0},{"$f":"Import!E29794","v":0}]
[null,43,{"$f":"Import!E28995","v":"Select"},{"$f":"Import!E29195","v":"Select"},{"$f":"Import!E29395","v":"Select"},{"$f":"Import!E29595","v":0},{"$f":"Import!E29795","v":0}]
[null,44,{"$f":"Import!E28996","v":"Select"},{"$f":"Import!E29196","v":"Select"},{"$f":"Import!E29396","v":"Select"},{"$f":"Import!E29596","v":0},{"$f":"Import!E29796","v":0}]
[null,45,{"$f":"Import!E28997","v":"Select"},{"$f":"Import!E29197","v":"Select"},{"$f":"Import!E29397","v":"Select"},{"$f":"Import!E29597","v":0},{"$f":"Import!E29797","v":0}]
[null,46,{"$f":"Import!E28998","v":"Select"},{"$f":"Import!E29198","v":"Select"},{"$f":"Import!E29398","v":"Select"},{"$f":"Import!E29598","v":0},{"$f":"Import!E29798","v":0}]
[null,47,{"$f":"Import!E28999","v":"Select"},{"$f":"Import!E29199","v":"Select"},{"$f":"Import!E29399","v":"Select"},{"$f":"Import!E29599","v":0},{"$f":"Import!E29799","v":0}]
[null,48,{"$f":"Import!E29000","v":"Select"},{"$f":"Import!E29200","v":"Select"},{"$f":"Import!E29400","v":"Select"},{"$f":"Import!E29600","v":0},{"$f":"Import!E29800","v":0}]
[null,49,{"$f":"Import!E29001","v":"Select"},{"$f":"Import!E29201","v":"Select"},{"$f":"Import!E29401","v":"Select"},{"$f":"Import!E29601","v":0},{"$f":"Import!E29801","v":0}]
[null,50,{"$f":"Import!E29002","v":"Select"},{"$f":"Import!E29202","v":"Select"},{"$f":"Import!E29402","v":"Select"},{"$f":"Import!E29602","v":0},{"$f":"Import!E29802","v":0}]
[null,51,{"$f":"Import!E29003","v":"Select"},{"$f":"Import!E29203","v":"Select"},{"$f":"Import!E29403","v":"Select"},{"$f":"Import!E29603","v":0},{"$f":"Import!E29803","v":0}]
[null,52,{"$f":"Import!E29004","v":"Select"},{"$f":"Import!E29204","v":"Select"},{"$f":"Import!E29404","v":"Select"},{"$f":"Import!E29604","v":0},{"$f":"Import!E29804","v":0}]
[null,53,{"$f":"Import!E29005","v":"Select"},{"$f":"Import!E29205","v":"Select"},{"$f":"Import!E29405","v":"Select"},{"$f":"Import!E29605","v":0},{"$f":"Import!E29805","v":0}]
[null,54,{"$f":"Import!E29006","v":"Select"},{"$f":"Import!E29206","v":"Select"},{"$f":"Import!E29406","v":"Select"},{"$f":"Import!E29606","v":0},{"$f":"Import!E29806","v":0}]
[null,55,{"$f":"Import!E29007","v":"Select"},{"$f":"Import!E29207","v":"Select"},{"$f":"Import!E29407","v":"Select"},{"$f":"Import!E29607","v":0},{"$f":"Import!E29807","v":0}]
[null,56,{"$f":"Import!E29008","v":"Select"},{"$f":"Import!E29208","v":"Select"},{"$f":"Import!E29408","v":"Select"},{"$f":"Import!E29608","v":0},{"$f":"Import!E29808","v":0}]
[null,57,{"$f":"Import!E29009","v":"Select"},{"$f":"Import!E29209","v":"Select"},{"$f":"Import!E29409","v":"Select"},{"$f":"Import!E29609","v":0},{"$f":"Import!E29809","v":0}]
[null,58,{"$f":"Import!E29010","v":"Select"},{"$f":"Import!E29210","v":"Select"},{"$f":"Import!E29410","v":"Select"},{"$f":"Import!E29610","v":0},{"$f":"Import!E29810","v":0}]
[null,59,{"$f":"Import!E29011","v":"Select"},{"$f":"Import!E29211","v":"Select"},{"$f":"Import!E29411","v":"Select"},{"$f":"Import!E29611","v":0},{"$f":"Import!E29811","v":0}]
[null,60,{"$f":"Import!E29012","v":"Select"},{"$f":"Import!E29212","v":"Select"},{"$f":"Import!E29412","v":"Select"},{"$f":"Import!E29612","v":0},{"$f":"Import!E29812","v":0}]
[null,61,{"$f":"Import!E29013","v":"Select"},{"$f":"Import!E29213","v":"Select"},{"$f":"Import!E29413","v":"Select"},{"$f":"Import!E29613","v":0},{"$f":"Import!E29813","v":0}]
[null,62,{"$f":"Import!E29014","v":"Select"},{"$f":"Import!E29214","v":"Select"},{"$f":"Import!E29414","v":"Select"},{"$f":"Import!E29614","v":0},{"$f":"Import!E29814","v":0}]
[null,63,{"$f":"Import!E29015","v":"Select"},{"$f":"Import!E29215","v":"Select"},{"$f":"Import!E29415","v":"Select"},{"$f":"Import!E29615","v":0},{"$f":"Import!E29815","v":0}]
[null,64,{"$f":"Import!E29016","v":"Select"},{"$f":"Import!E29216","v":"Select"},{"$f":"Import!E29416","v":"Select"},{"$f":"Import!E29616","v":0},{"$f":"Import!E29816","v":0}]
[null,65,{"$f":"Import!E29017","v":"Select"},{"$f":"Import!E29217","v":"Select"},{"$f":"Import!E29417","v":"Select"},{"$f":"Import!E29617","v":0},{"$f":"Import!E29817","v":0}]
[null,66,{"$f":"Import!E29018","v":"Select"},{"$f":"Import!E29218","v":"Select"},{"$f":"Import!E29418","v":"Select"},{"$f":"Import!E29618","v":0},{"$f":"Import!E29818","v":0}]
[null,{"$f":"B692+1","v":67},{"$f":"Import!E29019","v":"Select"},{"$f":"Import!E29219","v":"Select"},{"$f":"Import!E29419","v":"Select"},{"$f":"Import!E29619","v":0},{"$f":"Import!E29819","v":0}]
[null,68,{"$f":"Import!E29020","v":"Select"},{"$f":"Import!E29220","v":"Select"},{"$f":"Import!E29420","v":"Select"},{"$f":"Import!E29620","v":0},{"$f":"Import!E29820","v":0}]
[null,69,{"$f":"Import!E29021","v":"Select"},{"$f":"Import!E29221","v":"Select"},{"$f":"Import!E29421","v":"Select"},{"$f":"Import!E29621","v":0},{"$f":"Import!E29821","v":0}]
[null,70,{"$f":"Import!E29022","v":"Select"},{"$f":"Import!E29222","v":"Select"},{"$f":"Import!E29422","v":"Select"},{"$f":"Import!E29622","v":0},{"$f":"Import!E29822","v":0}]
[null,71,{"$f":"Import!E29023","v":"Select"},{"$f":"Import!E29223","v":"Select"},{"$f":"Import!E29423","v":"Select"},{"$f":"Import!E29623","v":0},{"$f":"Import!E29823","v":0}]
[null,72,{"$f":"Import!E29024","v":"Select"},{"$f":"Import!E29224","v":"Select"},{"$f":"Import!E29424","v":"Select"},{"$f":"Import!E29624","v":0},{"$f":"Import!E29824","v":0}]
[null,73,{"$f":"Import!E29025","v":"Select"},{"$f":"Import!E29225","v":"Select"},{"$f":"Import!E29425","v":"Select"},{"$f":"Import!E29625","v":0},{"$f":"Import!E29825","v":0}]
[null,74,{"$f":"Import!E29026","v":"Select"},{"$f":"Import!E29226","v":"Select"},{"$f":"Import!E29426","v":"Select"},{"$f":"Import!E29626","v":0},{"$f":"Import!E29826","v":0}]
[null,75,{"$f":"Import!E29027","v":"Select"},{"$f":"Import!E29227","v":"Select"},{"$f":"Import!E29427","v":"Select"},{"$f":"Import!E29627","v":0},{"$f":"Import!E29827","v":0}]
[null,76,{"$f":"Import!E29028","v":"Select"},{"$f":"Import!E29228","v":"Select"},{"$f":"Import!E29428","v":"Select"},{"$f":"Import!E29628","v":0},{"$f":"Import!E29828","v":0}]
[null,77,{"$f":"Import!E29029","v":"Select"},{"$f":"Import!E29229","v":"Select"},{"$f":"Import!E29429","v":"Select"},{"$f":"Import!E29629","v":0},{"$f":"Import!E29829","v":0}]
[null,78,{"$f":"Import!E29030","v":"Select"},{"$f":"Import!E29230","v":"Select"},{"$f":"Import!E29430","v":"Select"},{"$f":"Import!E29630","v":0},{"$f":"Import!E29830","v":0}]
[null,79,{"$f":"Import!E29031","v":"Select"},{"$f":"Import!E29231","v":"Select"},{"$f":"Import!E29431","v":"Select"},{"$f":"Import!E29631","v":0},{"$f":"Import!E29831","v":0}]
[null,80,{"$f":"Import!E29032","v":"Select"},{"$f":"Import!E29232","v":"Select"},{"$f":"Import!E29432","v":"Select"},{"$f":"Import!E29632","v":0},{"$f":"Import!E29832","v":0}]
[null,81,{"$f":"Import!E29033","v":"Select"},{"$f":"Import!E29233","v":"Select"},{"$f":"Import!E29433","v":"Select"},{"$f":"Import!E29633","v":0},{"$f":"Import!E29833","v":0}]
[null,82,{"$f":"Import!E29034","v":"Select"},{"$f":"Import!E29234","v":"Select"},{"$f":"Import!E29434","v":"Select"},{"$f":"Import!E29634","v":0},{"$f":"Import!E29834","v":0}]
[null,83,{"$f":"Import!E29035","v":"Select"},{"$f":"Import!E29235","v":"Select"},{"$f":"Import!E29435","v":"Select"},{"$f":"Import!E29635","v":0},{"$f":"Import!E29835","v":0}]
[null,84,{"$f":"Import!E29036","v":"Select"},{"$f":"Import!E29236","v":"Select"},{"$f":"Import!E29436","v":"Select"},{"$f":"Import!E29636","v":0},{"$f":"Import!E29836","v":0}]
[null,85,{"$f":"Import!E29037","v":"Select"},{"$f":"Import!E29237","v":"Select"},{"$f":"Import!E29437","v":"Select"},{"$f":"Import!E29637","v":0},{"$f":"Import!E29837","v":0}]
[null,86,{"$f":"Import!E29038","v":"Select"},{"$f":"Import!E29238","v":"Select"},{"$f":"Import!E29438","v":"Select"},{"$f":"Import!E29638","v":0},{"$f":"Import!E29838","v":0}]
[null,87,{"$f":"Import!E29039","v":"Select"},{"$f":"Import!E29239","v":"Select"},{"$f":"Import!E29439","v":"Select"},{"$f":"Import!E29639","v":0},{"$f":"Import!E29839","v":0}]
[null,88,{"$f":"Import!E29040","v":"Select"},{"$f":"Import!E29240","v":"Select"},{"$f":"Import!E29440","v":"Select"},{"$f":"Import!E29640","v":0},{"$f":"Import!E29840","v":0}]
[null,89,{"$f":"Import!E29041","v":"Select"},{"$f":"Import!E29241","v":"Select"},{"$f":"Import!E29441","v":"Select"},{"$f":"Import!E29641","v":0},{"$f":"Import!E29841","v":0}]
[null,90,{"$f":"Import!E29042","v":"Select"},{"$f":"Import!E29242","v":"Select"},{"$f":"Import!E29442","v":"Select"},{"$f":"Import!E29642","v":0},{"$f":"Import!E29842","v":0}]
[null,91,{"$f":"Import!E29043","v":"Select"},{"$f":"Import!E29243","v":"Select"},{"$f":"Import!E29443","v":"Select"},{"$f":"Import!E29643","v":0},{"$f":"Import!E29843","v":0}]
[null,92,{"$f":"Import!E29044","v":"Select"},{"$f":"Import!E29244","v":"Select"},{"$f":"Import!E29444","v":"Select"},{"$f":"Import!E29644","v":0},{"$f":"Import!E29844","v":0}]
[null,93,{"$f":"Import!E29045","v":"Select"},{"$f":"Import!E29245","v":"Select"},{"$f":"Import!E29445","v":"Select"},{"$f":"Import!E29645","v":0},{"$f":"Import!E29845","v":0}]
[null,94,{"$f":"Import!E29046","v":"Select"},{"$f":"Import!E29246","v":"Select"},{"$f":"Import!E29446","v":"Select"},{"$f":"Import!E29646","v":0},{"$f":"Import!E29846","v":0}]
[null,95,{"$f":"Import!E29047","v":"Select"},{"$f":"Import!E29247","v":"Select"},{"$f":"Import!E29447","v":"Select"},{"$f":"Import!E29647","v":0},{"$f":"Import!E29847","v":0}]
[null,96,{"$f":"Import!E29048","v":"Select"},{"$f":"Import!E29248","v":"Select"},{"$f":"Import!E29448","v":"Select"},{"$f":"Import!E29648","v":0},{"$f":"Import!E29848","v":0}]
[null,97,{"$f":"Import!E29049","v":"Select"},{"$f":"Import!E29249","v":"Select"},{"$f":"Import!E29449","v":"Select"},{"$f":"Import!E29649","v":0},{"$f":"Import!E29849","v":0}]
[null,98,{"$f":"Import!E29050","v":"Select"},{"$f":"Import!E29250","v":"Select"},{"$f":"Import!E29450","v":"Select"},{"$f":"Import!E29650","v":0},{"$f":"Import!E29850","v":0}]
[null,99,{"$f":"Import!E29051","v":"Select"},{"$f":"Import!E29251","v":"Select"},{"$f":"Import!E29451","v":"Select"},{"$f":"Import!E29651","v":0},{"$f":"Import!E29851","v":0}]
[null,100,{"$f":"Import!E29052","v":"Select"},{"$f":"Import!E29252","v":"Select"},{"$f":"Import!E29452","v":"Select"},{"$f":"Import!E29652","v":0},{"$f":"Import!E29852","v":0}]
[null,101,{"$f":"Import!E29053","v":"Select"},{"$f":"Import!E29253","v":"Select"},{"$f":"Import!E29453","v":"Select"},{"$f":"Import!E29653","v":0},{"$f":"Import!E29853","v":0}]
[null,102,{"$f":"Import!E29054","v":"Select"},{"$f":"Import!E29254","v":"Select"},{"$f":"Import!E29454","v":"Select"},{"$f":"Import!E29654","v":0},{"$f":"Import!E29854","v":0}]
[null,103,{"$f":"Import!E29055","v":"Select"},{"$f":"Import!E29255","v":"Select"},{"$f":"Import!E29455","v":"Select"},{"$f":"Import!E29655","v":0},{"$f":"Import!E29855","v":0}]
[null,104,{"$f":"Import!E29056","v":"Select"},{"$f":"Import!E29256","v":"Select"},{"$f":"Import!E29456","v":"Select"},{"$f":"Import!E29656","v":0},{"$f":"Import!E29856","v":0}]
[null,105,{"$f":"Import!E29057","v":"Select"},{"$f":"Import!E29257","v":"Select"},{"$f":"Import!E29457","v":"Select"},{"$f":"Import!E29657","v":0},{"$f":"Import!E29857","v":0}]
[null,106,{"$f":"Import!E29058","v":"Select"},{"$f":"Import!E29258","v":"Select"},{"$f":"Import!E29458","v":"Select"},{"$f":"Import!E29658","v":0},{"$f":"Import!E29858","v":0}]
[null,107,{"$f":"Import!E29059","v":"Select"},{"$f":"Import!E29259","v":"Select"},{"$f":"Import!E29459","v":"Select"},{"$f":"Import!E29659","v":0},{"$f":"Import!E29859","v":0}]
[null,108,{"$f":"Import!E29060","v":"Select"},{"$f":"Import!E29260","v":"Select"},{"$f":"Import!E29460","v":"Select"},{"$f":"Import!E29660","v":0},{"$f":"Import!E29860","v":0}]
[null,109,{"$f":"Import!E29061","v":"Select"},{"$f":"Import!E29261","v":"Select"},{"$f":"Import!E29461","v":"Select"},{"$f":"Import!E29661","v":0},{"$f":"Import!E29861","v":0}]
[null,110,{"$f":"Import!E29062","v":"Select"},{"$f":"Import!E29262","v":"Select"},{"$f":"Import!E29462","v":"Select"},{"$f":"Import!E29662","v":0},{"$f":"Import!E29862","v":0}]
[null,111,{"$f":"Import!E29063","v":"Select"},{"$f":"Import!E29263","v":"Select"},{"$f":"Import!E29463","v":"Select"},{"$f":"Import!E29663","v":0},{"$f":"Import!E29863","v":0}]
[null,112,{"$f":"Import!E29064","v":"Select"},{"$f":"Import!E29264","v":"Select"},{"$f":"Import!E29464","v":"Select"},{"$f":"Import!E29664","v":0},{"$f":"Import!E29864","v":0}]
[null,113,{"$f":"Import!E29065","v":"Select"},{"$f":"Import!E29265","v":"Select"},{"$f":"Import!E29465","v":"Select"},{"$f":"Import!E29665","v":0},{"$f":"Import!E29865","v":0}]
[null,114,{"$f":"Import!E29066","v":"Select"},{"$f":"Import!E29266","v":"Select"},{"$f":"Import!E29466","v":"Select"},{"$f":"Import!E29666","v":0},{"$f":"Import!E29866","v":0}]
[null,115,{"$f":"Import!E29067","v":"Select"},{"$f":"Import!E29267","v":"Select"},{"$f":"Import!E29467","v":"Select"},{"$f":"Import!E29667","v":0},{"$f":"Import!E29867","v":0}]
[null,116,{"$f":"Import!E29068","v":"Select"},{"$f":"Import!E29268","v":"Select"},{"$f":"Import!E29468","v":"Select"},{"$f":"Import!E29668","v":0},{"$f":"Import!E29868","v":0}]
[null,117,{"$f":"Import!E29069","v":"Select"},{"$f":"Import!E29269","v":"Select"},{"$f":"Import!E29469","v":"Select"},{"$f":"Import!E29669","v":0},{"$f":"Import!E29869","v":0}]
[null,118,{"$f":"Import!E29070","v":"Select"},{"$f":"Import!E29270","v":"Select"},{"$f":"Import!E29470","v":"Select"},{"$f":"Import!E29670","v":0},{"$f":"Import!E29870","v":0}]
[null,119,{"$f":"Import!E29071","v":"Select"},{"$f":"Import!E29271","v":"Select"},{"$f":"Import!E29471","v":"Select"},{"$f":"Import!E29671","v":0},{"$f":"Import!E29871","v":0}]
[null,120,{"$f":"Import!E29072","v":"Select"},{"$f":"Import!E29272","v":"Select"},{"$f":"Import!E29472","v":"Select"},{"$f":"Import!E29672","v":0},{"$f":"Import!E29872","v":0}]
[null,121,{"$f":"Import!E29073","v":"Select"},{"$f":"Import!E29273","v":"Select"},{"$f":"Import!E29473","v":"Select"},{"$f":"Import!E29673","v":0},{"$f":"Import!E29873","v":0}]
[null,122,{"$f":"Import!E29074","v":"Select"},{"$f":"Import!E29274","v":"Select"},{"$f":"Import!E29474","v":"Select"},{"$f":"Import!E29674","v":0},{"$f":"Import!E29874","v":0}]
[null,123,{"$f":"Import!E29075","v":"Select"},{"$f":"Import!E29275","v":"Select"},{"$f":"Import!E29475","v":"Select"},{"$f":"Import!E29675","v":0},{"$f":"Import!E29875","v":0}]
[null,124,{"$f":"Import!E29076","v":"Select"},{"$f":"Import!E29276","v":"Select"},{"$f":"Import!E29476","v":"Select"},{"$f":"Import!E29676","v":0},{"$f":"Import!E29876","v":0}]
[null,125,{"$f":"Import!E29077","v":"Select"},{"$f":"Import!E29277","v":"Select"},{"$f":"Import!E29477","v":"Select"},{"$f":"Import!E29677","v":0},{"$f":"Import!E29877","v":0}]
[null,126,{"$f":"Import!E29078","v":"Select"},{"$f":"Import!E29278","v":"Select"},{"$f":"Import!E29478","v":"Select"},{"$f":"Import!E29678","v":0},{"$f":"Import!E29878","v":0}]
[null,127,{"$f":"Import!E29079","v":"Select"},{"$f":"Import!E29279","v":"Select"},{"$f":"Import!E29479","v":"Select"},{"$f":"Import!E29679","v":0},{"$f":"Import!E29879","v":0}]
[null,128,{"$f":"Import!E29080","v":"Select"},{"$f":"Import!E29280","v":"Select"},{"$f":"Import!E29480","v":"Select"},{"$f":"Import!E29680","v":0},{"$f":"Import!E29880","v":0}]
[null,129,{"$f":"Import!E29081","v":"Select"},{"$f":"Import!E29281","v":"Select"},{"$f":"Import!E29481","v":"Select"},{"$f":"Import!E29681","v":0},{"$f":"Import!E29881","v":0}]
[null,130,{"$f":"Import!E29082","v":"Select"},{"$f":"Import!E29282","v":"Select"},{"$f":"Import!E29482","v":"Select"},{"$f":"Import!E29682","v":0},{"$f":"Import!E29882","v":0}]
[null,{"$f":"B756+1","v":131},{"$f":"Import!E29083","v":"Select"},{"$f":"Import!E29283","v":"Select"},{"$f":"Import!E29483","v":"Select"},{"$f":"Import!E29683","v":0},{"$f":"Import!E29883","v":0}]
[null,132,{"$f":"Import!E29084","v":"Select"},{"$f":"Import!E29284","v":"Select"},{"$f":"Import!E29484","v":"Select"},{"$f":"Import!E29684","v":0},{"$f":"Import!E29884","v":0}]
[null,133,{"$f":"Import!E29085","v":"Select"},{"$f":"Import!E29285","v":"Select"},{"$f":"Import!E29485","v":"Select"},{"$f":"Import!E29685","v":0},{"$f":"Import!E29885","v":0}]
[null,134,{"$f":"Import!E29086","v":"Select"},{"$f":"Import!E29286","v":"Select"},{"$f":"Import!E29486","v":"Select"},{"$f":"Import!E29686","v":0},{"$f":"Import!E29886","v":0}]
[null,135,{"$f":"Import!E29087","v":"Select"},{"$f":"Import!E29287","v":"Select"},{"$f":"Import!E29487","v":"Select"},{"$f":"Import!E29687","v":0},{"$f":"Import!E29887","v":0}]
[null,136,{"$f":"Import!E29088","v":"Select"},{"$f":"Import!E29288","v":"Select"},{"$f":"Import!E29488","v":"Select"},{"$f":"Import!E29688","v":0},{"$f":"Import!E29888","v":0}]
[null,137,{"$f":"Import!E29089","v":"Select"},{"$f":"Import!E29289","v":"Select"},{"$f":"Import!E29489","v":"Select"},{"$f":"Import!E29689","v":0},{"$f":"Import!E29889","v":0}]
[null,138,{"$f":"Import!E29090","v":"Select"},{"$f":"Import!E29290","v":"Select"},{"$f":"Import!E29490","v":"Select"},{"$f":"Import!E29690","v":0},{"$f":"Import!E29890","v":0}]
[null,139,{"$f":"Import!E29091","v":"Select"},{"$f":"Import!E29291","v":"Select"},{"$f":"Import!E29491","v":"Select"},{"$f":"Import!E29691","v":0},{"$f":"Import!E29891","v":0}]
[null,140,{"$f":"Import!E29092","v":"Select"},{"$f":"Import!E29292","v":"Select"},{"$f":"Import!E29492","v":"Select"},{"$f":"Import!E29692","v":0},{"$f":"Import!E29892","v":0}]
[null,141,{"$f":"Import!E29093","v":"Select"},{"$f":"Import!E29293","v":"Select"},{"$f":"Import!E29493","v":"Select"},{"$f":"Import!E29693","v":0},{"$f":"Import!E29893","v":0}]
[null,142,{"$f":"Import!E29094","v":"Select"},{"$f":"Import!E29294","v":"Select"},{"$f":"Import!E29494","v":"Select"},{"$f":"Import!E29694","v":0},{"$f":"Import!E29894","v":0}]
[null,143,{"$f":"Import!E29095","v":"Select"},{"$f":"Import!E29295","v":"Select"},{"$f":"Import!E29495","v":"Select"},{"$f":"Import!E29695","v":0},{"$f":"Import!E29895","v":0}]
[null,144,{"$f":"Import!E29096","v":"Select"},{"$f":"Import!E29296","v":"Select"},{"$f":"Import!E29496","v":"Select"},{"$f":"Import!E29696","v":0},{"$f":"Import!E29896","v":0}]
[null,145,{"$f":"Import!E29097","v":"Select"},{"$f":"Import!E29297","v":"Select"},{"$f":"Import!E29497","v":"Select"},{"$f":"Import!E29697","v":0},{"$f":"Import!E29897","v":0}]
[null,146,{"$f":"Import!E29098","v":"Select"},{"$f":"Import!E29298","v":"Select"},{"$f":"Import!E29498","v":"Select"},{"$f":"Import!E29698","v":0},{"$f":"Import!E29898","v":0}]
[null,147,{"$f":"Import!E29099","v":"Select"},{"$f":"Import!E29299","v":"Select"},{"$f":"Import!E29499","v":"Select"},{"$f":"Import!E29699","v":0},{"$f":"Import!E29899","v":0}]
[null,148,{"$f":"Import!E29100","v":"Select"},{"$f":"Import!E29300","v":"Select"},{"$f":"Import!E29500","v":"Select"},{"$f":"Import!E29700","v":0},{"$f":"Import!E29900","v":0}]
[null,149,{"$f":"Import!E29101","v":"Select"},{"$f":"Import!E29301","v":"Select"},{"$f":"Import!E29501","v":"Select"},{"$f":"Import!E29701","v":0},{"$f":"Import!E29901","v":0}]
[null,150,{"$f":"Import!E29102","v":"Select"},{"$f":"Import!E29302","v":"Select"},{"$f":"Import!E29502","v":"Select"},{"$f":"Import!E29702","v":0},{"$f":"Import!E29902","v":0}]
[null,151,{"$f":"Import!E29103","v":"Select"},{"$f":"Import!E29303","v":"Select"},{"$f":"Import!E29503","v":"Select"},{"$f":"Import!E29703","v":0},{"$f":"Import!E29903","v":0}]
[null,152,{"$f":"Import!E29104","v":"Select"},{"$f":"Import!E29304","v":"Select"},{"$f":"Import!E29504","v":"Select"},{"$f":"Import!E29704","v":0},{"$f":"Import!E29904","v":0}]
[null,153,{"$f":"Import!E29105","v":"Select"},{"$f":"Import!E29305","v":"Select"},{"$f":"Import!E29505","v":"Select"},{"$f":"Import!E29705","v":0},{"$f":"Import!E29905","v":0}]
[null,154,{"$f":"Import!E29106","v":"Select"},{"$f":"Import!E29306","v":"Select"},{"$f":"Import!E29506","v":"Select"},{"$f":"Import!E29706","v":0},{"$f":"Import!E29906","v":0}]
[null,155,{"$f":"Import!E29107","v":"Select"},{"$f":"Import!E29307","v":"Select"},{"$f":"Import!E29507","v":"Select"},{"$f":"Import!E29707","v":0},{"$f":"Import!E29907","v":0}]
[null,156,{"$f":"Import!E29108","v":"Select"},{"$f":"Import!E29308","v":"Select"},{"$f":"Import!E29508","v":"Select"},{"$f":"Import!E29708","v":0},{"$f":"Import!E29908","v":0}]
[null,157,{"$f":"Import!E29109","v":"Select"},{"$f":"Import!E29309","v":"Select"},{"$f":"Import!E29509","v":"Select"},{"$f":"Import!E29709","v":0},{"$f":"Import!E29909","v":0}]
[null,158,{"$f":"Import!E29110","v":"Select"},{"$f":"Import!E29310","v":"Select"},{"$f":"Import!E29510","v":"Select"},{"$f":"Import!E29710","v":0},{"$f":"Import!E29910","v":0}]
[null,159,{"$f":"Import!E29111","v":"Select"},{"$f":"Import!E29311","v":"Select"},{"$f":"Import!E29511","v":"Select"},{"$f":"Import!E29711","v":0},{"$f":"Import!E29911","v":0}]
[null,160,{"$f":"Import!E29112","v":"Select"},{"$f":"Import!E29312","v":"Select"},{"$f":"Import!E29512","v":"Select"},{"$f":"Import!E29712","v":0},{"$f":"Import!E29912","v":0}]
[null,161,{"$f":"Import!E29113","v":"Select"},{"$f":"Import!E29313","v":"Select"},{"$f":"Import!E29513","v":"Select"},{"$f":"Import!E29713","v":0},{"$f":"Import!E29913","v":0}]
[null,162,{"$f":"Import!E29114","v":"Select"},{"$f":"Import!E29314","v":"Select"},{"$f":"Import!E29514","v":"Select"},{"$f":"Import!E29714","v":0},{"$f":"Import!E29914","v":0}]
[null,163,{"$f":"Import!E29115","v":"Select"},{"$f":"Import!E29315","v":"Select"},{"$f":"Import!E29515","v":"Select"},{"$f":"Import!E29715","v":0},{"$f":"Import!E29915","v":0}]
[null,164,{"$f":"Import!E29116","v":"Select"},{"$f":"Import!E29316","v":"Select"},{"$f":"Import!E29516","v":"Select"},{"$f":"Import!E29716","v":0},{"$f":"Import!E29916","v":0}]
[null,165,{"$f":"Import!E29117","v":"Select"},{"$f":"Import!E29317","v":"Select"},{"$f":"Import!E29517","v":"Select"},{"$f":"Import!E29717","v":0},{"$f":"Import!E29917","v":0}]
[null,166,{"$f":"Import!E29118","v":"Select"},{"$f":"Import!E29318","v":"Select"},{"$f":"Import!E29518","v":"Select"},{"$f":"Import!E29718","v":0},{"$f":"Import!E29918","v":0}]
[null,167,{"$f":"Import!E29119","v":"Select"},{"$f":"Import!E29319","v":"Select"},{"$f":"Import!E29519","v":"Select"},{"$f":"Import!E29719","v":0},{"$f":"Import!E29919","v":0}]
[null,168,{"$f":"Import!E29120","v":"Select"},{"$f":"Import!E29320","v":"Select"},{"$f":"Import!E29520","v":"Select"},{"$f":"Import!E29720","v":0},{"$f":"Import!E29920","v":0}]
[null,169,{"$f":"Import!E29121","v":"Select"},{"$f":"Import!E29321","v":"Select"},{"$f":"Import!E29521","v":"Select"},{"$f":"Import!E29721","v":0},{"$f":"Import!E29921","v":0}]
[null,170,{"$f":"Import!E29122","v":"Select"},{"$f":"Import!E29322","v":"Select"},{"$f":"Import!E29522","v":"Select"},{"$f":"Import!E29722","v":0},{"$f":"Import!E29922","v":0}]
[null,171,{"$f":"Import!E29123","v":"Select"},{"$f":"Import!E29323","v":"Select"},{"$f":"Import!E29523","v":"Select"},{"$f":"Import!E29723","v":0},{"$f":"Import!E29923","v":0}]
[null,172,{"$f":"Import!E29124","v":"Select"},{"$f":"Import!E29324","v":"Select"},{"$f":"Import!E29524","v":"Select"},{"$f":"Import!E29724","v":0},{"$f":"Import!E29924","v":0}]
[null,173,{"$f":"Import!E29125","v":"Select"},{"$f":"Import!E29325","v":"Select"},{"$f":"Import!E29525","v":"Select"},{"$f":"Import!E29725","v":0},{"$f":"Import!E29925","v":0}]
[null,174,{"$f":"Import!E29126","v":"Select"},{"$f":"Import!E29326","v":"Select"},{"$f":"Import!E29526","v":"Select"},{"$f":"Import!E29726","v":0},{"$f":"Import!E29926","v":0}]
[null,175,{"$f":"Import!E29127","v":"Select"},{"$f":"Import!E29327","v":"Select"},{"$f":"Import!E29527","v":"Select"},{"$f":"Import!E29727","v":0},{"$f":"Import!E29927","v":0}]
[null,176,{"$f":"Import!E29128","v":"Select"},{"$f":"Import!E29328","v":"Select"},{"$f":"Import!E29528","v":"Select"},{"$f":"Import!E29728","v":0},{"$f":"Import!E29928","v":0}]
[null,177,{"$f":"Import!E29129","v":"Select"},{"$f":"Import!E29329","v":"Select"},{"$f":"Import!E29529","v":"Select"},{"$f":"Import!E29729","v":0},{"$f":"Import!E29929","v":0}]
[null,178,{"$f":"Import!E29130","v":"Select"},{"$f":"Import!E29330","v":"Select"},{"$f":"Import!E29530","v":"Select"},{"$f":"Import!E29730","v":0},{"$f":"Import!E29930","v":0}]
[null,179,{"$f":"Import!E29131","v":"Select"},{"$f":"Import!E29331","v":"Select"},{"$f":"Import!E29531","v":"Select"},{"$f":"Import!E29731","v":0},{"$f":"Import!E29931","v":0}]
[null,180,{"$f":"Import!E29132","v":"Select"},{"$f":"Import!E29332","v":"Select"},{"$f":"Import!E29532","v":"Select"},{"$f":"Import!E29732","v":0},{"$f":"Import!E29932","v":0}]
[null,181,{"$f":"Import!E29133","v":"Select"},{"$f":"Import!E29333","v":"Select"},{"$f":"Import!E29533","v":"Select"},{"$f":"Import!E29733","v":0},{"$f":"Import!E29933","v":0}]
[null,182,{"$f":"Import!E29134","v":"Select"},{"$f":"Import!E29334","v":"Select"},{"$f":"Import!E29534","v":"Select"},{"$f":"Import!E29734","v":0},{"$f":"Import!E29934","v":0}]
[null,183,{"$f":"Import!E29135","v":"Select"},{"$f":"Import!E29335","v":"Select"},{"$f":"Import!E29535","v":"Select"},{"$f":"Import!E29735","v":0},{"$f":"Import!E29935","v":0}]
[null,184,{"$f":"Import!E29136","v":"Select"},{"$f":"Import!E29336","v":"Select"},{"$f":"Import!E29536","v":"Select"},{"$f":"Import!E29736","v":0},{"$f":"Import!E29936","v":0}]
[null,185,{"$f":"Import!E29137","v":"Select"},{"$f":"Import!E29337","v":"Select"},{"$f":"Import!E29537","v":"Select"},{"$f":"Import!E29737","v":0},{"$f":"Import!E29937","v":0}]
[null,186,{"$f":"Import!E29138","v":"Select"},{"$f":"Import!E29338","v":"Select"},{"$f":"Import!E29538","v":"Select"},{"$f":"Import!E29738","v":0},{"$f":"Import!E29938","v":0}]
[null,187,{"$f":"Import!E29139","v":"Select"},{"$f":"Import!E29339","v":"Select"},{"$f":"Import!E29539","v":"Select"},{"$f":"Import!E29739","v":0},{"$f":"Import!E29939","v":0}]
[null,188,{"$f":"Import!E29140","v":"Select"},{"$f":"Import!E29340","v":"Select"},{"$f":"Import!E29540","v":"Select"},{"$f":"Import!E29740","v":0},{"$f":"Import!E29940","v":0}]
[null,189,{"$f":"Import!E29141","v":"Select"},{"$f":"Import!E29341","v":"Select"},{"$f":"Import!E29541","v":"Select"},{"$f":"Import!E29741","v":0},{"$f":"Import!E29941","v":0}]
[null,190,{"$f":"Import!E29142","v":"Select"},{"$f":"Import!E29342","v":"Select"},{"$f":"Import!E29542","v":"Select"},{"$f":"Import!E29742","v":0},{"$f":"Import!E29942","v":0}]
[null,191,{"$f":"Import!E29143","v":"Select"},{"$f":"Import!E29343","v":"Select"},{"$f":"Import!E29543","v":"Select"},{"$f":"Import!E29743","v":0},{"$f":"Import!E29943","v":0}]
[null,192,{"$f":"Import!E29144","v":"Select"},{"$f":"Import!E29344","v":"Select"},{"$f":"Import!E29544","v":"Select"},{"$f":"Import!E29744","v":0},{"$f":"Import!E29944","v":0}]
[null,193,{"$f":"Import!E29145","v":"Select"},{"$f":"Import!E29345","v":"Select"},{"$f":"Import!E29545","v":"Select"},{"$f":"Import!E29745","v":0},{"$f":"Import!E29945","v":0}]
[null,194,{"$f":"Import!E29146","v":"Select"},{"$f":"Import!E29346","v":"Select"},{"$f":"Import!E29546","v":"Select"},{"$f":"Import!E29746","v":0},{"$f":"Import!E29946","v":0}]
[null,{"$f":"B820+1","v":195},{"$f":"Import!E29147","v":"Select"},{"$f":"Import!E29347","v":"Select"},{"$f":"Import!E29547","v":"Select"},{"$f":"Import!E29747","v":0},{"$f":"Import!E29947","v":0}]
[null,196,{"$f":"Import!E29148","v":"Select"},{"$f":"Import!E29348","v":"Select"},{"$f":"Import!E29548","v":"Select"},{"$f":"Import!E29748","v":0},{"$f":"Import!E29948","v":0}]
[null,197,{"$f":"Import!E29149","v":"Select"},{"$f":"Import!E29349","v":"Select"},{"$f":"Import!E29549","v":"Select"},{"$f":"Import!E29749","v":0},{"$f":"Import!E29949","v":0}]
[null,198,{"$f":"Import!E29150","v":"Select"},{"$f":"Import!E29350","v":"Select"},{"$f":"Import!E29550","v":"Select"},{"$f":"Import!E29750","v":0},{"$f":"Import!E29950","v":0}]
[null,199,{"$f":"Import!E29151","v":"Select"},{"$f":"Import!E29351","v":"Select"},{"$f":"Import!E29551","v":"Select"},{"$f":"Import!E29751","v":0},{"$f":"Import!E29951","v":0}]
[null,200,{"$f":"Import!E29152","v":"Select"},{"$f":"Import!E29352","v":"Select"},{"$f":"Import!E29552","v":"Select"},{"$f":"Import!E29752","v":0},{"$f":"Import!E29952","v":0}]
[]
[null,null,null,null,null,{"$f":"SUM(F627:F826)","v":0}]
[]
[null,"(C) ASSET-BACKED AND STRUCTURED SECURITIES"]
[]
[null,null,"Enter # of Asset Types",{"$f":"Import!E29953","v":0}]
[null,null,null,null,{"$f":"YEAR($C$3)","v":2023},2023,"Weighted"]
[null,"Asset Type","Currency","BSCR Rating","Nominal Amount","Fair Value","Average YTM","Effective Duration","Comments"]
[1,{"$f":"Import!E29954","v":"Select"},{"$f":"Import!E30104","v":"Select"},{"$f":"Import!E30254","v":"Select"},{"$f":"Import!E30404","v":0},{"$f":"Import!E30554","v":0},{"$f":"Import!E30704","v":0},{"$f":"Import!E30854","v":0},{"$f":"Import!E31004","v":0}]
[{"$f":"A835+1","v":2},{"$f":"Import!E29955","v":"Select"},{"$f":"Import!E30105","v":"Select"},{"$f":"Import!E30255","v":"Select"},{"$f":"Import!E30405","v":0},{"$f":"Import!E30555","v":0},{"$f":"Import!E30705","v":0},{"$f":"Import!E30855","v":0},{"$f":"Import!E31005","v":0}]
[{"$f":"A836+1","v":3},{"$f":"Import!E29956","v":"Select"},{"$f":"Import!E30106","v":"Select"},{"$f":"Import!E30256","v":"Select"},{"$f":"Import!E30406","v":0},{"$f":"Import!E30556","v":0},{"$f":"Import!E30706","v":0},{"$f":"Import!E30856","v":0},{"$f":"Import!E31006","v":0}]
[4,{"$f":"Import!E29957","v":"Select"},{"$f":"Import!E30107","v":"Select"},{"$f":"Import!E30257","v":"Select"},{"$f":"Import!E30407","v":0},{"$f":"Import!E30557","v":0},{"$f":"Import!E30707","v":0},{"$f":"Import!E30857","v":0},{"$f":"Import!E31007","v":0}]
[5,{"$f":"Import!E29958","v":"Select"},{"$f":"Import!E30108","v":"Select"},{"$f":"Import!E30258","v":"Select"},{"$f":"Import!E30408","v":0},{"$f":"Import!E30558","v":0},{"$f":"Import!E30708","v":0},{"$f":"Import!E30858","v":0},{"$f":"Import!E31008","v":0}]
[6,{"$f":"Import!E29959","v":"Select"},{"$f":"Import!E30109","v":"Select"},{"$f":"Import!E30259","v":"Select"},{"$f":"Import!E30409","v":0},{"$f":"Import!E30559","v":0},{"$f":"Import!E30709","v":0},{"$f":"Import!E30859","v":0},{"$f":"Import!E31009","v":0}]
[7,{"$f":"Import!E29960","v":"Select"},{"$f":"Import!E30110","v":"Select"},{"$f":"Import!E30260","v":"Select"},{"$f":"Import!E30410","v":0},{"$f":"Import!E30560","v":0},{"$f":"Import!E30710","v":0},{"$f":"Import!E30860","v":0},{"$f":"Import!E31010","v":0}]
[8,{"$f":"Import!E29961","v":"Select"},{"$f":"Import!E30111","v":"Select"},{"$f":"Import!E30261","v":"Select"},{"$f":"Import!E30411","v":0},{"$f":"Import!E30561","v":0},{"$f":"Import!E30711","v":0},{"$f":"Import!E30861","v":0},{"$f":"Import!E31011","v":0}]
[9,{"$f":"Import!E29962","v":"Select"},{"$f":"Import!E30112","v":"Select"},{"$f":"Import!E30262","v":"Select"},{"$f":"Import!E30412","v":0},{"$f":"Import!E30562","v":0},{"$f":"Import!E30712","v":0},{"$f":"Import!E30862","v":0},{"$f":"Import!E31012","v":0}]
[10,{"$f":"Import!E29963","v":"Select"},{"$f":"Import!E30113","v":"Select"},{"$f":"Import!E30263","v":"Select"},{"$f":"Import!E30413","v":0},{"$f":"Import!E30563","v":0},{"$f":"Import!E30713","v":0},{"$f":"Import!E30863","v":0},{"$f":"Import!E31013","v":0}]
[11,{"$f":"Import!E29964","v":"Select"},{"$f":"Import!E30114","v":"Select"},{"$f":"Import!E30264","v":"Select"},{"$f":"Import!E30414","v":0},{"$f":"Import!E30564","v":0},{"$f":"Import!E30714","v":0},{"$f":"Import!E30864","v":0},{"$f":"Import!E31014","v":0}]
[12,{"$f":"Import!E29965","v":"Select"},{"$f":"Import!E30115","v":"Select"},{"$f":"Import!E30265","v":"Select"},{"$f":"Import!E30415","v":0},{"$f":"Import!E30565","v":0},{"$f":"Import!E30715","v":0},{"$f":"Import!E30865","v":0},{"$f":"Import!E31015","v":0}]
[13,{"$f":"Import!E29966","v":"Select"},{"$f":"Import!E30116","v":"Select"},{"$f":"Import!E30266","v":"Select"},{"$f":"Import!E30416","v":0},{"$f":"Import!E30566","v":0},{"$f":"Import!E30716","v":0},{"$f":"Import!E30866","v":0},{"$f":"Import!E31016","v":0}]
[14,{"$f":"Import!E29967","v":"Select"},{"$f":"Import!E30117","v":"Select"},{"$f":"Import!E30267","v":"Select"},{"$f":"Import!E30417","v":0},{"$f":"Import!E30567","v":0},{"$f":"Import!E30717","v":0},{"$f":"Import!E30867","v":0},{"$f":"Import!E31017","v":0}]
[15,{"$f":"Import!E29968","v":"Select"},{"$f":"Import!E30118","v":"Select"},{"$f":"Import!E30268","v":"Select"},{"$f":"Import!E30418","v":0},{"$f":"Import!E30568","v":0},{"$f":"Import!E30718","v":0},{"$f":"Import!E30868","v":0},{"$f":"Import!E31018","v":0}]
[16,{"$f":"Import!E29969","v":"Select"},{"$f":"Import!E30119","v":"Select"},{"$f":"Import!E30269","v":"Select"},{"$f":"Import!E30419","v":0},{"$f":"Import!E30569","v":0},{"$f":"Import!E30719","v":0},{"$f":"Import!E30869","v":0},{"$f":"Import!E31019","v":0}]
[17,{"$f":"Import!E29970","v":"Select"},{"$f":"Import!E30120","v":"Select"},{"$f":"Import!E30270","v":"Select"},{"$f":"Import!E30420","v":0},{"$f":"Import!E30570","v":0},{"$f":"Import!E30720","v":0},{"$f":"Import!E30870","v":0},{"$f":"Import!E31020","v":0}]
[18,{"$f":"Import!E29971","v":"Select"},{"$f":"Import!E30121","v":"Select"},{"$f":"Import!E30271","v":"Select"},{"$f":"Import!E30421","v":0},{"$f":"Import!E30571","v":0},{"$f":"Import!E30721","v":0},{"$f":"Import!E30871","v":0},{"$f":"Import!E31021","v":0}]
[19,{"$f":"Import!E29972","v":"Select"},{"$f":"Import!E30122","v":"Select"},{"$f":"Import!E30272","v":"Select"},{"$f":"Import!E30422","v":0},{"$f":"Import!E30572","v":0},{"$f":"Import!E30722","v":0},{"$f":"Import!E30872","v":0},{"$f":"Import!E31022","v":0}]
[20,{"$f":"Import!E29973","v":"Select"},{"$f":"Import!E30123","v":"Select"},{"$f":"Import!E30273","v":"Select"},{"$f":"Import!E30423","v":0},{"$f":"Import!E30573","v":0},{"$f":"Import!E30723","v":0},{"$f":"Import!E30873","v":0},{"$f":"Import!E31023","v":0}]
[21,{"$f":"Import!E29974","v":"Select"},{"$f":"Import!E30124","v":"Select"},{"$f":"Import!E30274","v":"Select"},{"$f":"Import!E30424","v":0},{"$f":"Import!E30574","v":0},{"$f":"Import!E30724","v":0},{"$f":"Import!E30874","v":0},{"$f":"Import!E31024","v":0}]
[22,{"$f":"Import!E29975","v":"Select"},{"$f":"Import!E30125","v":"Select"},{"$f":"Import!E30275","v":"Select"},{"$f":"Import!E30425","v":0},{"$f":"Import!E30575","v":0},{"$f":"Import!E30725","v":0},{"$f":"Import!E30875","v":0},{"$f":"Import!E31025","v":0}]
[23,{"$f":"Import!E29976","v":"Select"},{"$f":"Import!E30126","v":"Select"},{"$f":"Import!E30276","v":"Select"},{"$f":"Import!E30426","v":0},{"$f":"Import!E30576","v":0},{"$f":"Import!E30726","v":0},{"$f":"Import!E30876","v":0},{"$f":"Import!E31026","v":0}]
[24,{"$f":"Import!E29977","v":"Select"},{"$f":"Import!E30127","v":"Select"},{"$f":"Import!E30277","v":"Select"},{"$f":"Import!E30427","v":0},{"$f":"Import!E30577","v":0},{"$f":"Import!E30727","v":0},{"$f":"Import!E30877","v":0},{"$f":"Import!E31027","v":0}]
[25,{"$f":"Import!E29978","v":"Select"},{"$f":"Import!E30128","v":"Select"},{"$f":"Import!E30278","v":"Select"},{"$f":"Import!E30428","v":0},{"$f":"Import!E30578","v":0},{"$f":"Import!E30728","v":0},{"$f":"Import!E30878","v":0},{"$f":"Import!E31028","v":0}]
[26,{"$f":"Import!E29979","v":"Select"},{"$f":"Import!E30129","v":"Select"},{"$f":"Import!E30279","v":"Select"},{"$f":"Import!E30429","v":0},{"$f":"Import!E30579","v":0},{"$f":"Import!E30729","v":0},{"$f":"Import!E30879","v":0},{"$f":"Import!E31029","v":0}]
[27,{"$f":"Import!E29980","v":"Select"},{"$f":"Import!E30130","v":"Select"},{"$f":"Import!E30280","v":"Select"},{"$f":"Import!E30430","v":0},{"$f":"Import!E30580","v":0},{"$f":"Import!E30730","v":0},{"$f":"Import!E30880","v":0},{"$f":"Import!E31030","v":0}]
[28,{"$f":"Import!E29981","v":"Select"},{"$f":"Import!E30131","v":"Select"},{"$f":"Import!E30281","v":"Select"},{"$f":"Import!E30431","v":0},{"$f":"Import!E30581","v":0},{"$f":"Import!E30731","v":0},{"$f":"Import!E30881","v":0},{"$f":"Import!E31031","v":0}]
[29,{"$f":"Import!E29982","v":"Select"},{"$f":"Import!E30132","v":"Select"},{"$f":"Import!E30282","v":"Select"},{"$f":"Import!E30432","v":0},{"$f":"Import!E30582","v":0},{"$f":"Import!E30732","v":0},{"$f":"Import!E30882","v":0},{"$f":"Import!E31032","v":0}]
[30,{"$f":"Import!E29983","v":"Select"},{"$f":"Import!E30133","v":"Select"},{"$f":"Import!E30283","v":"Select"},{"$f":"Import!E30433","v":0},{"$f":"Import!E30583","v":0},{"$f":"Import!E30733","v":0},{"$f":"Import!E30883","v":0},{"$f":"Import!E31033","v":0}]
[31,{"$f":"Import!E29984","v":"Select"},{"$f":"Import!E30134","v":"Select"},{"$f":"Import!E30284","v":"Select"},{"$f":"Import!E30434","v":0},{"$f":"Import!E30584","v":0},{"$f":"Import!E30734","v":0},{"$f":"Import!E30884","v":0},{"$f":"Import!E31034","v":0}]
[32,{"$f":"Import!E29985","v":"Select"},{"$f":"Import!E30135","v":"Select"},{"$f":"Import!E30285","v":"Select"},{"$f":"Import!E30435","v":0},{"$f":"Import!E30585","v":0},{"$f":"Import!E30735","v":0},{"$f":"Import!E30885","v":0},{"$f":"Import!E31035","v":0}]
[33,{"$f":"Import!E29986","v":"Select"},{"$f":"Import!E30136","v":"Select"},{"$f":"Import!E30286","v":"Select"},{"$f":"Import!E30436","v":0},{"$f":"Import!E30586","v":0},{"$f":"Import!E30736","v":0},{"$f":"Import!E30886","v":0},{"$f":"Import!E31036","v":0}]
[34,{"$f":"Import!E29987","v":"Select"},{"$f":"Import!E30137","v":"Select"},{"$f":"Import!E30287","v":"Select"},{"$f":"Import!E30437","v":0},{"$f":"Import!E30587","v":0},{"$f":"Import!E30737","v":0},{"$f":"Import!E30887","v":0},{"$f":"Import!E31037","v":0}]
[35,{"$f":"Import!E29988","v":"Select"},{"$f":"Import!E30138","v":"Select"},{"$f":"Import!E30288","v":"Select"},{"$f":"Import!E30438","v":0},{"$f":"Import!E30588","v":0},{"$f":"Import!E30738","v":0},{"$f":"Import!E30888","v":0},{"$f":"Import!E31038","v":0}]
[36,{"$f":"Import!E29989","v":"Select"},{"$f":"Import!E30139","v":"Select"},{"$f":"Import!E30289","v":"Select"},{"$f":"Import!E30439","v":0},{"$f":"Import!E30589","v":0},{"$f":"Import!E30739","v":0},{"$f":"Import!E30889","v":0},{"$f":"Import!E31039","v":0}]
[37,{"$f":"Import!E29990","v":"Select"},{"$f":"Import!E30140","v":"Select"},{"$f":"Import!E30290","v":"Select"},{"$f":"Import!E30440","v":0},{"$f":"Import!E30590","v":0},{"$f":"Import!E30740","v":0},{"$f":"Import!E30890","v":0},{"$f":"Import!E31040","v":0}]
[38,{"$f":"Import!E29991","v":"Select"},{"$f":"Import!E30141","v":"Select"},{"$f":"Import!E30291","v":"Select"},{"$f":"Import!E30441","v":0},{"$f":"Import!E30591","v":0},{"$f":"Import!E30741","v":0},{"$f":"Import!E30891","v":0},{"$f":"Import!E31041","v":0}]
[39,{"$f":"Import!E29992","v":"Select"},{"$f":"Import!E30142","v":"Select"},{"$f":"Import!E30292","v":"Select"},{"$f":"Import!E30442","v":0},{"$f":"Import!E30592","v":0},{"$f":"Import!E30742","v":0},{"$f":"Import!E30892","v":0},{"$f":"Import!E31042","v":0}]
[40,{"$f":"Import!E29993","v":"Select"},{"$f":"Import!E30143","v":"Select"},{"$f":"Import!E30293","v":"Select"},{"$f":"Import!E30443","v":0},{"$f":"Import!E30593","v":0},{"$f":"Import!E30743","v":0},{"$f":"Import!E30893","v":0},{"$f":"Import!E31043","v":0}]
[41,{"$f":"Import!E29994","v":"Select"},{"$f":"Import!E30144","v":"Select"},{"$f":"Import!E30294","v":"Select"},{"$f":"Import!E30444","v":0},{"$f":"Import!E30594","v":0},{"$f":"Import!E30744","v":0},{"$f":"Import!E30894","v":0},{"$f":"Import!E31044","v":0}]
[42,{"$f":"Import!E29995","v":"Select"},{"$f":"Import!E30145","v":"Select"},{"$f":"Import!E30295","v":"Select"},{"$f":"Import!E30445","v":0},{"$f":"Import!E30595","v":0},{"$f":"Import!E30745","v":0},{"$f":"Import!E30895","v":0},{"$f":"Import!E31045","v":0}]
[43,{"$f":"Import!E29996","v":"Select"},{"$f":"Import!E30146","v":"Select"},{"$f":"Import!E30296","v":"Select"},{"$f":"Import!E30446","v":0},{"$f":"Import!E30596","v":0},{"$f":"Import!E30746","v":0},{"$f":"Import!E30896","v":0},{"$f":"Import!E31046","v":0}]
[44,{"$f":"Import!E29997","v":"Select"},{"$f":"Import!E30147","v":"Select"},{"$f":"Import!E30297","v":"Select"},{"$f":"Import!E30447","v":0},{"$f":"Import!E30597","v":0},{"$f":"Import!E30747","v":0},{"$f":"Import!E30897","v":0},{"$f":"Import!E31047","v":0}]
[45,{"$f":"Import!E29998","v":"Select"},{"$f":"Import!E30148","v":"Select"},{"$f":"Import!E30298","v":"Select"},{"$f":"Import!E30448","v":0},{"$f":"Import!E30598","v":0},{"$f":"Import!E30748","v":0},{"$f":"Import!E30898","v":0},{"$f":"Import!E31048","v":0}]
[46,{"$f":"Import!E29999","v":"Select"},{"$f":"Import!E30149","v":"Select"},{"$f":"Import!E30299","v":"Select"},{"$f":"Import!E30449","v":0},{"$f":"Import!E30599","v":0},{"$f":"Import!E30749","v":0},{"$f":"Import!E30899","v":0},{"$f":"Import!E31049","v":0}]
[47,{"$f":"Import!E30000","v":"Select"},{"$f":"Import!E30150","v":"Select"},{"$f":"Import!E30300","v":"Select"},{"$f":"Import!E30450","v":0},{"$f":"Import!E30600","v":0},{"$f":"Import!E30750","v":0},{"$f":"Import!E30900","v":0},{"$f":"Import!E31050","v":0}]
[48,{"$f":"Import!E30001","v":"Select"},{"$f":"Import!E30151","v":"Select"},{"$f":"Import!E30301","v":"Select"},{"$f":"Import!E30451","v":0},{"$f":"Import!E30601","v":0},{"$f":"Import!E30751","v":0},{"$f":"Import!E30901","v":0},{"$f":"Import!E31051","v":0}]
[49,{"$f":"Import!E30002","v":"Select"},{"$f":"Import!E30152","v":"Select"},{"$f":"Import!E30302","v":"Select"},{"$f":"Import!E30452","v":0},{"$f":"Import!E30602","v":0},{"$f":"Import!E30752","v":0},{"$f":"Import!E30902","v":0},{"$f":"Import!E31052","v":0}]
[50,{"$f":"Import!E30003","v":"Select"},{"$f":"Import!E30153","v":"Select"},{"$f":"Import!E30303","v":"Select"},{"$f":"Import!E30453","v":0},{"$f":"Import!E30603","v":0},{"$f":"Import!E30753","v":0},{"$f":"Import!E30903","v":0},{"$f":"Import!E31053","v":0}]
[51,{"$f":"Import!E30004","v":"Select"},{"$f":"Import!E30154","v":"Select"},{"$f":"Import!E30304","v":"Select"},{"$f":"Import!E30454","v":0},{"$f":"Import!E30604","v":0},{"$f":"Import!E30754","v":0},{"$f":"Import!E30904","v":0},{"$f":"Import!E31054","v":0}]
[52,{"$f":"Import!E30005","v":"Select"},{"$f":"Import!E30155","v":"Select"},{"$f":"Import!E30305","v":"Select"},{"$f":"Import!E30455","v":0},{"$f":"Import!E30605","v":0},{"$f":"Import!E30755","v":0},{"$f":"Import!E30905","v":0},{"$f":"Import!E31055","v":0}]
[53,{"$f":"Import!E30006","v":"Select"},{"$f":"Import!E30156","v":"Select"},{"$f":"Import!E30306","v":"Select"},{"$f":"Import!E30456","v":0},{"$f":"Import!E30606","v":0},{"$f":"Import!E30756","v":0},{"$f":"Import!E30906","v":0},{"$f":"Import!E31056","v":0}]
[54,{"$f":"Import!E30007","v":"Select"},{"$f":"Import!E30157","v":"Select"},{"$f":"Import!E30307","v":"Select"},{"$f":"Import!E30457","v":0},{"$f":"Import!E30607","v":0},{"$f":"Import!E30757","v":0},{"$f":"Import!E30907","v":0},{"$f":"Import!E31057","v":0}]
[55,{"$f":"Import!E30008","v":"Select"},{"$f":"Import!E30158","v":"Select"},{"$f":"Import!E30308","v":"Select"},{"$f":"Import!E30458","v":0},{"$f":"Import!E30608","v":0},{"$f":"Import!E30758","v":0},{"$f":"Import!E30908","v":0},{"$f":"Import!E31058","v":0}]
[56,{"$f":"Import!E30009","v":"Select"},{"$f":"Import!E30159","v":"Select"},{"$f":"Import!E30309","v":"Select"},{"$f":"Import!E30459","v":0},{"$f":"Import!E30609","v":0},{"$f":"Import!E30759","v":0},{"$f":"Import!E30909","v":0},{"$f":"Import!E31059","v":0}]
[57,{"$f":"Import!E30010","v":"Select"},{"$f":"Import!E30160","v":"Select"},{"$f":"Import!E30310","v":"Select"},{"$f":"Import!E30460","v":0},{"$f":"Import!E30610","v":0},{"$f":"Import!E30760","v":0},{"$f":"Import!E30910","v":0},{"$f":"Import!E31060","v":0}]
[58,{"$f":"Import!E30011","v":"Select"},{"$f":"Import!E30161","v":"Select"},{"$f":"Import!E30311","v":"Select"},{"$f":"Import!E30461","v":0},{"$f":"Import!E30611","v":0},{"$f":"Import!E30761","v":0},{"$f":"Import!E30911","v":0},{"$f":"Import!E31061","v":0}]
[59,{"$f":"Import!E30012","v":"Select"},{"$f":"Import!E30162","v":"Select"},{"$f":"Import!E30312","v":"Select"},{"$f":"Import!E30462","v":0},{"$f":"Import!E30612","v":0},{"$f":"Import!E30762","v":0},{"$f":"Import!E30912","v":0},{"$f":"Import!E31062","v":0}]
[60,{"$f":"Import!E30013","v":"Select"},{"$f":"Import!E30163","v":"Select"},{"$f":"Import!E30313","v":"Select"},{"$f":"Import!E30463","v":0},{"$f":"Import!E30613","v":0},{"$f":"Import!E30763","v":0},{"$f":"Import!E30913","v":0},{"$f":"Import!E31063","v":0}]
[61,{"$f":"Import!E30014","v":"Select"},{"$f":"Import!E30164","v":"Select"},{"$f":"Import!E30314","v":"Select"},{"$f":"Import!E30464","v":0},{"$f":"Import!E30614","v":0},{"$f":"Import!E30764","v":0},{"$f":"Import!E30914","v":0},{"$f":"Import!E31064","v":0}]
[62,{"$f":"Import!E30015","v":"Select"},{"$f":"Import!E30165","v":"Select"},{"$f":"Import!E30315","v":"Select"},{"$f":"Import!E30465","v":0},{"$f":"Import!E30615","v":0},{"$f":"Import!E30765","v":0},{"$f":"Import!E30915","v":0},{"$f":"Import!E31065","v":0}]
[63,{"$f":"Import!E30016","v":"Select"},{"$f":"Import!E30166","v":"Select"},{"$f":"Import!E30316","v":"Select"},{"$f":"Import!E30466","v":0},{"$f":"Import!E30616","v":0},{"$f":"Import!E30766","v":0},{"$f":"Import!E30916","v":0},{"$f":"Import!E31066","v":0}]
[64,{"$f":"Import!E30017","v":"Select"},{"$f":"Import!E30167","v":"Select"},{"$f":"Import!E30317","v":"Select"},{"$f":"Import!E30467","v":0},{"$f":"Import!E30617","v":0},{"$f":"Import!E30767","v":0},{"$f":"Import!E30917","v":0},{"$f":"Import!E31067","v":0}]
[65,{"$f":"Import!E30018","v":"Select"},{"$f":"Import!E30168","v":"Select"},{"$f":"Import!E30318","v":"Select"},{"$f":"Import!E30468","v":0},{"$f":"Import!E30618","v":0},{"$f":"Import!E30768","v":0},{"$f":"Import!E30918","v":0},{"$f":"Import!E31068","v":0}]
[66,{"$f":"Import!E30019","v":"Select"},{"$f":"Import!E30169","v":"Select"},{"$f":"Import!E30319","v":"Select"},{"$f":"Import!E30469","v":0},{"$f":"Import!E30619","v":0},{"$f":"Import!E30769","v":0},{"$f":"Import!E30919","v":0},{"$f":"Import!E31069","v":0}]
[{"$f":"A900+1","v":67},{"$f":"Import!E30020","v":"Select"},{"$f":"Import!E30170","v":"Select"},{"$f":"Import!E30320","v":"Select"},{"$f":"Import!E30470","v":0},{"$f":"Import!E30620","v":0},{"$f":"Import!E30770","v":0},{"$f":"Import!E30920","v":0},{"$f":"Import!E31070","v":0}]
[68,{"$f":"Import!E30021","v":"Select"},{"$f":"Import!E30171","v":"Select"},{"$f":"Import!E30321","v":"Select"},{"$f":"Import!E30471","v":0},{"$f":"Import!E30621","v":0},{"$f":"Import!E30771","v":0},{"$f":"Import!E30921","v":0},{"$f":"Import!E31071","v":0}]
[69,{"$f":"Import!E30022","v":"Select"},{"$f":"Import!E30172","v":"Select"},{"$f":"Import!E30322","v":"Select"},{"$f":"Import!E30472","v":0},{"$f":"Import!E30622","v":0},{"$f":"Import!E30772","v":0},{"$f":"Import!E30922","v":0},{"$f":"Import!E31072","v":0}]
[70,{"$f":"Import!E30023","v":"Select"},{"$f":"Import!E30173","v":"Select"},{"$f":"Import!E30323","v":"Select"},{"$f":"Import!E30473","v":0},{"$f":"Import!E30623","v":0},{"$f":"Import!E30773","v":0},{"$f":"Import!E30923","v":0},{"$f":"Import!E31073","v":0}]
[71,{"$f":"Import!E30024","v":"Select"},{"$f":"Import!E30174","v":"Select"},{"$f":"Import!E30324","v":"Select"},{"$f":"Import!E30474","v":0},{"$f":"Import!E30624","v":0},{"$f":"Import!E30774","v":0},{"$f":"Import!E30924","v":0},{"$f":"Import!E31074","v":0}]
[72,{"$f":"Import!E30025","v":"Select"},{"$f":"Import!E30175","v":"Select"},{"$f":"Import!E30325","v":"Select"},{"$f":"Import!E30475","v":0},{"$f":"Import!E30625","v":0},{"$f":"Import!E30775","v":0},{"$f":"Import!E30925","v":0},{"$f":"Import!E31075","v":0}]
[73,{"$f":"Import!E30026","v":"Select"},{"$f":"Import!E30176","v":"Select"},{"$f":"Import!E30326","v":"Select"},{"$f":"Import!E30476","v":0},{"$f":"Import!E30626","v":0},{"$f":"Import!E30776","v":0},{"$f":"Import!E30926","v":0},{"$f":"Import!E31076","v":0}]
[74,{"$f":"Import!E30027","v":"Select"},{"$f":"Import!E30177","v":"Select"},{"$f":"Import!E30327","v":"Select"},{"$f":"Import!E30477","v":0},{"$f":"Import!E30627","v":0},{"$f":"Import!E30777","v":0},{"$f":"Import!E30927","v":0},{"$f":"Import!E31077","v":0}]
[75,{"$f":"Import!E30028","v":"Select"},{"$f":"Import!E30178","v":"Select"},{"$f":"Import!E30328","v":"Select"},{"$f":"Import!E30478","v":0},{"$f":"Import!E30628","v":0},{"$f":"Import!E30778","v":0},{"$f":"Import!E30928","v":0},{"$f":"Import!E31078","v":0}]
[76,{"$f":"Import!E30029","v":"Select"},{"$f":"Import!E30179","v":"Select"},{"$f":"Import!E30329","v":"Select"},{"$f":"Import!E30479","v":0},{"$f":"Import!E30629","v":0},{"$f":"Import!E30779","v":0},{"$f":"Import!E30929","v":0},{"$f":"Import!E31079","v":0}]
[77,{"$f":"Import!E30030","v":"Select"},{"$f":"Import!E30180","v":"Select"},{"$f":"Import!E30330","v":"Select"},{"$f":"Import!E30480","v":0},{"$f":"Import!E30630","v":0},{"$f":"Import!E30780","v":0},{"$f":"Import!E30930","v":0},{"$f":"Import!E31080","v":0}]
[78,{"$f":"Import!E30031","v":"Select"},{"$f":"Import!E30181","v":"Select"},{"$f":"Import!E30331","v":"Select"},{"$f":"Import!E30481","v":0},{"$f":"Import!E30631","v":0},{"$f":"Import!E30781","v":0},{"$f":"Import!E30931","v":0},{"$f":"Import!E31081","v":0}]
[79,{"$f":"Import!E30032","v":"Select"},{"$f":"Import!E30182","v":"Select"},{"$f":"Import!E30332","v":"Select"},{"$f":"Import!E30482","v":0},{"$f":"Import!E30632","v":0},{"$f":"Import!E30782","v":0},{"$f":"Import!E30932","v":0},{"$f":"Import!E31082","v":0}]
[80,{"$f":"Import!E30033","v":"Select"},{"$f":"Import!E30183","v":"Select"},{"$f":"Import!E30333","v":"Select"},{"$f":"Import!E30483","v":0},{"$f":"Import!E30633","v":0},{"$f":"Import!E30783","v":0},{"$f":"Import!E30933","v":0},{"$f":"Import!E31083","v":0}]
[81,{"$f":"Import!E30034","v":"Select"},{"$f":"Import!E30184","v":"Select"},{"$f":"Import!E30334","v":"Select"},{"$f":"Import!E30484","v":0},{"$f":"Import!E30634","v":0},{"$f":"Import!E30784","v":0},{"$f":"Import!E30934","v":0},{"$f":"Import!E31084","v":0}]
[82,{"$f":"Import!E30035","v":"Select"},{"$f":"Import!E30185","v":"Select"},{"$f":"Import!E30335","v":"Select"},{"$f":"Import!E30485","v":0},{"$f":"Import!E30635","v":0},{"$f":"Import!E30785","v":0},{"$f":"Import!E30935","v":0},{"$f":"Import!E31085","v":0}]
[83,{"$f":"Import!E30036","v":"Select"},{"$f":"Import!E30186","v":"Select"},{"$f":"Import!E30336","v":"Select"},{"$f":"Import!E30486","v":0},{"$f":"Import!E30636","v":0},{"$f":"Import!E30786","v":0},{"$f":"Import!E30936","v":0},{"$f":"Import!E31086","v":0}]
[84,{"$f":"Import!E30037","v":"Select"},{"$f":"Import!E30187","v":"Select"},{"$f":"Import!E30337","v":"Select"},{"$f":"Import!E30487","v":0},{"$f":"Import!E30637","v":0},{"$f":"Import!E30787","v":0},{"$f":"Import!E30937","v":0},{"$f":"Import!E31087","v":0}]
[85,{"$f":"Import!E30038","v":"Select"},{"$f":"Import!E30188","v":"Select"},{"$f":"Import!E30338","v":"Select"},{"$f":"Import!E30488","v":0},{"$f":"Import!E30638","v":0},{"$f":"Import!E30788","v":0},{"$f":"Import!E30938","v":0},{"$f":"Import!E31088","v":0}]
[86,{"$f":"Import!E30039","v":"Select"},{"$f":"Import!E30189","v":"Select"},{"$f":"Import!E30339","v":"Select"},{"$f":"Import!E30489","v":0},{"$f":"Import!E30639","v":0},{"$f":"Import!E30789","v":0},{"$f":"Import!E30939","v":0},{"$f":"Import!E31089","v":0}]
[87,{"$f":"Import!E30040","v":"Select"},{"$f":"Import!E30190","v":"Select"},{"$f":"Import!E30340","v":"Select"},{"$f":"Import!E30490","v":0},{"$f":"Import!E30640","v":0},{"$f":"Import!E30790","v":0},{"$f":"Import!E30940","v":0},{"$f":"Import!E31090","v":0}]
[88,{"$f":"Import!E30041","v":"Select"},{"$f":"Import!E30191","v":"Select"},{"$f":"Import!E30341","v":"Select"},{"$f":"Import!E30491","v":0},{"$f":"Import!E30641","v":0},{"$f":"Import!E30791","v":0},{"$f":"Import!E30941","v":0},{"$f":"Import!E31091","v":0}]
[89,{"$f":"Import!E30042","v":"Select"},{"$f":"Import!E30192","v":"Select"},{"$f":"Import!E30342","v":"Select"},{"$f":"Import!E30492","v":0},{"$f":"Import!E30642","v":0},{"$f":"Import!E30792","v":0},{"$f":"Import!E30942","v":0},{"$f":"Import!E31092","v":0}]
[90,{"$f":"Import!E30043","v":"Select"},{"$f":"Import!E30193","v":"Select"},{"$f":"Import!E30343","v":"Select"},{"$f":"Import!E30493","v":0},{"$f":"Import!E30643","v":0},{"$f":"Import!E30793","v":0},{"$f":"Import!E30943","v":0},{"$f":"Import!E31093","v":0}]
[91,{"$f":"Import!E30044","v":"Select"},{"$f":"Import!E30194","v":"Select"},{"$f":"Import!E30344","v":"Select"},{"$f":"Import!E30494","v":0},{"$f":"Import!E30644","v":0},{"$f":"Import!E30794","v":0},{"$f":"Import!E30944","v":0},{"$f":"Import!E31094","v":0}]
[92,{"$f":"Import!E30045","v":"Select"},{"$f":"Import!E30195","v":"Select"},{"$f":"Import!E30345","v":"Select"},{"$f":"Import!E30495","v":0},{"$f":"Import!E30645","v":0},{"$f":"Import!E30795","v":0},{"$f":"Import!E30945","v":0},{"$f":"Import!E31095","v":0}]
[93,{"$f":"Import!E30046","v":"Select"},{"$f":"Import!E30196","v":"Select"},{"$f":"Import!E30346","v":"Select"},{"$f":"Import!E30496","v":0},{"$f":"Import!E30646","v":0},{"$f":"Import!E30796","v":0},{"$f":"Import!E30946","v":0},{"$f":"Import!E31096","v":0}]
[94,{"$f":"Import!E30047","v":"Select"},{"$f":"Import!E30197","v":"Select"},{"$f":"Import!E30347","v":"Select"},{"$f":"Import!E30497","v":0},{"$f":"Import!E30647","v":0},{"$f":"Import!E30797","v":0},{"$f":"Import!E30947","v":0},{"$f":"Import!E31097","v":0}]
[95,{"$f":"Import!E30048","v":"Select"},{"$f":"Import!E30198","v":"Select"},{"$f":"Import!E30348","v":"Select"},{"$f":"Import!E30498","v":0},{"$f":"Import!E30648","v":0},{"$f":"Import!E30798","v":0},{"$f":"Import!E30948","v":0},{"$f":"Import!E31098","v":0}]
[96,{"$f":"Import!E30049","v":"Select"},{"$f":"Import!E30199","v":"Select"},{"$f":"Import!E30349","v":"Select"},{"$f":"Import!E30499","v":0},{"$f":"Import!E30649","v":0},{"$f":"Import!E30799","v":0},{"$f":"Import!E30949","v":0},{"$f":"Import!E31099","v":0}]
[97,{"$f":"Import!E30050","v":"Select"},{"$f":"Import!E30200","v":"Select"},{"$f":"Import!E30350","v":"Select"},{"$f":"Import!E30500","v":0},{"$f":"Import!E30650","v":0},{"$f":"Import!E30800","v":0},{"$f":"Import!E30950","v":0},{"$f":"Import!E31100","v":0}]
[98,{"$f":"Import!E30051","v":"Select"},{"$f":"Import!E30201","v":"Select"},{"$f":"Import!E30351","v":"Select"},{"$f":"Import!E30501","v":0},{"$f":"Import!E30651","v":0},{"$f":"Import!E30801","v":0},{"$f":"Import!E30951","v":0},{"$f":"Import!E31101","v":0}]
[99,{"$f":"Import!E30052","v":"Select"},{"$f":"Import!E30202","v":"Select"},{"$f":"Import!E30352","v":"Select"},{"$f":"Import!E30502","v":0},{"$f":"Import!E30652","v":0},{"$f":"Import!E30802","v":0},{"$f":"Import!E30952","v":0},{"$f":"Import!E31102","v":0}]
[100,{"$f":"Import!E30053","v":"Select"},{"$f":"Import!E30203","v":"Select"},{"$f":"Import!E30353","v":"Select"},{"$f":"Import!E30503","v":0},{"$f":"Import!E30653","v":0},{"$f":"Import!E30803","v":0},{"$f":"Import!E30953","v":0},{"$f":"Import!E31103","v":0}]
[101,{"$f":"Import!E30054","v":"Select"},{"$f":"Import!E30204","v":"Select"},{"$f":"Import!E30354","v":"Select"},{"$f":"Import!E30504","v":0},{"$f":"Import!E30654","v":0},{"$f":"Import!E30804","v":0},{"$f":"Import!E30954","v":0},{"$f":"Import!E31104","v":0}]
[102,{"$f":"Import!E30055","v":"Select"},{"$f":"Import!E30205","v":"Select"},{"$f":"Import!E30355","v":"Select"},{"$f":"Import!E30505","v":0},{"$f":"Import!E30655","v":0},{"$f":"Import!E30805","v":0},{"$f":"Import!E30955","v":0},{"$f":"Import!E31105","v":0}]
[103,{"$f":"Import!E30056","v":"Select"},{"$f":"Import!E30206","v":"Select"},{"$f":"Import!E30356","v":"Select"},{"$f":"Import!E30506","v":0},{"$f":"Import!E30656","v":0},{"$f":"Import!E30806","v":0},{"$f":"Import!E30956","v":0},{"$f":"Import!E31106","v":0}]
[104,{"$f":"Import!E30057","v":"Select"},{"$f":"Import!E30207","v":"Select"},{"$f":"Import!E30357","v":"Select"},{"$f":"Import!E30507","v":0},{"$f":"Import!E30657","v":0},{"$f":"Import!E30807","v":0},{"$f":"Import!E30957","v":0},{"$f":"Import!E31107","v":0}]
[105,{"$f":"Import!E30058","v":"Select"},{"$f":"Import!E30208","v":"Select"},{"$f":"Import!E30358","v":"Select"},{"$f":"Import!E30508","v":0},{"$f":"Import!E30658","v":0},{"$f":"Import!E30808","v":0},{"$f":"Import!E30958","v":0},{"$f":"Import!E31108","v":0}]
[106,{"$f":"Import!E30059","v":"Select"},{"$f":"Import!E30209","v":"Select"},{"$f":"Import!E30359","v":"Select"},{"$f":"Import!E30509","v":0},{"$f":"Import!E30659","v":0},{"$f":"Import!E30809","v":0},{"$f":"Import!E30959","v":0},{"$f":"Import!E31109","v":0}]
[107,{"$f":"Import!E30060","v":"Select"},{"$f":"Import!E30210","v":"Select"},{"$f":"Import!E30360","v":"Select"},{"$f":"Import!E30510","v":0},{"$f":"Import!E30660","v":0},{"$f":"Import!E30810","v":0},{"$f":"Import!E30960","v":0},{"$f":"Import!E31110","v":0}]
[108,{"$f":"Import!E30061","v":"Select"},{"$f":"Import!E30211","v":"Select"},{"$f":"Import!E30361","v":"Select"},{"$f":"Import!E30511","v":0},{"$f":"Import!E30661","v":0},{"$f":"Import!E30811","v":0},{"$f":"Import!E30961","v":0},{"$f":"Import!E31111","v":0}]
[109,{"$f":"Import!E30062","v":"Select"},{"$f":"Import!E30212","v":"Select"},{"$f":"Import!E30362","v":"Select"},{"$f":"Import!E30512","v":0},{"$f":"Import!E30662","v":0},{"$f":"Import!E30812","v":0},{"$f":"Import!E30962","v":0},{"$f":"Import!E31112","v":0}]
[110,{"$f":"Import!E30063","v":"Select"},{"$f":"Import!E30213","v":"Select"},{"$f":"Import!E30363","v":"Select"},{"$f":"Import!E30513","v":0},{"$f":"Import!E30663","v":0},{"$f":"Import!E30813","v":0},{"$f":"Import!E30963","v":0},{"$f":"Import!E31113","v":0}]
[111,{"$f":"Import!E30064","v":"Select"},{"$f":"Import!E30214","v":"Select"},{"$f":"Import!E30364","v":"Select"},{"$f":"Import!E30514","v":0},{"$f":"Import!E30664","v":0},{"$f":"Import!E30814","v":0},{"$f":"Import!E30964","v":0},{"$f":"Import!E31114","v":0}]
[112,{"$f":"Import!E30065","v":"Select"},{"$f":"Import!E30215","v":"Select"},{"$f":"Import!E30365","v":"Select"},{"$f":"Import!E30515","v":0},{"$f":"Import!E30665","v":0},{"$f":"Import!E30815","v":0},{"$f":"Import!E30965","v":0},{"$f":"Import!E31115","v":0}]
[113,{"$f":"Import!E30066","v":"Select"},{"$f":"Import!E30216","v":"Select"},{"$f":"Import!E30366","v":"Select"},{"$f":"Import!E30516","v":0},{"$f":"Import!E30666","v":0},{"$f":"Import!E30816","v":0},{"$f":"Import!E30966","v":0},{"$f":"Import!E31116","v":0}]
[114,{"$f":"Import!E30067","v":"Select"},{"$f":"Import!E30217","v":"Select"},{"$f":"Import!E30367","v":"Select"},{"$f":"Import!E30517","v":0},{"$f":"Import!E30667","v":0},{"$f":"Import!E30817","v":0},{"$f":"Import!E30967","v":0},{"$f":"Import!E31117","v":0}]
[115,{"$f":"Import!E30068","v":"Select"},{"$f":"Import!E30218","v":"Select"},{"$f":"Import!E30368","v":"Select"},{"$f":"Import!E30518","v":0},{"$f":"Import!E30668","v":0},{"$f":"Import!E30818","v":0},{"$f":"Import!E30968","v":0},{"$f":"Import!E31118","v":0}]
[116,{"$f":"Import!E30069","v":"Select"},{"$f":"Import!E30219","v":"Select"},{"$f":"Import!E30369","v":"Select"},{"$f":"Import!E30519","v":0},{"$f":"Import!E30669","v":0},{"$f":"Import!E30819","v":0},{"$f":"Import!E30969","v":0},{"$f":"Import!E31119","v":0}]
[117,{"$f":"Import!E30070","v":"Select"},{"$f":"Import!E30220","v":"Select"},{"$f":"Import!E30370","v":"Select"},{"$f":"Import!E30520","v":0},{"$f":"Import!E30670","v":0},{"$f":"Import!E30820","v":0},{"$f":"Import!E30970","v":0},{"$f":"Import!E31120","v":0}]
[118,{"$f":"Import!E30071","v":"Select"},{"$f":"Import!E30221","v":"Select"},{"$f":"Import!E30371","v":"Select"},{"$f":"Import!E30521","v":0},{"$f":"Import!E30671","v":0},{"$f":"Import!E30821","v":0},{"$f":"Import!E30971","v":0},{"$f":"Import!E31121","v":0}]
[119,{"$f":"Import!E30072","v":"Select"},{"$f":"Import!E30222","v":"Select"},{"$f":"Import!E30372","v":"Select"},{"$f":"Import!E30522","v":0},{"$f":"Import!E30672","v":0},{"$f":"Import!E30822","v":0},{"$f":"Import!E30972","v":0},{"$f":"Import!E31122","v":0}]
[120,{"$f":"Import!E30073","v":"Select"},{"$f":"Import!E30223","v":"Select"},{"$f":"Import!E30373","v":"Select"},{"$f":"Import!E30523","v":0},{"$f":"Import!E30673","v":0},{"$f":"Import!E30823","v":0},{"$f":"Import!E30973","v":0},{"$f":"Import!E31123","v":0}]
[121,{"$f":"Import!E30074","v":"Select"},{"$f":"Import!E30224","v":"Select"},{"$f":"Import!E30374","v":"Select"},{"$f":"Import!E30524","v":0},{"$f":"Import!E30674","v":0},{"$f":"Import!E30824","v":0},{"$f":"Import!E30974","v":0},{"$f":"Import!E31124","v":0}]
[122,{"$f":"Import!E30075","v":"Select"},{"$f":"Import!E30225","v":"Select"},{"$f":"Import!E30375","v":"Select"},{"$f":"Import!E30525","v":0},{"$f":"Import!E30675","v":0},{"$f":"Import!E30825","v":0},{"$f":"Import!E30975","v":0},{"$f":"Import!E31125","v":0}]
[123,{"$f":"Import!E30076","v":"Select"},{"$f":"Import!E30226","v":"Select"},{"$f":"Import!E30376","v":"Select"},{"$f":"Import!E30526","v":0},{"$f":"Import!E30676","v":0},{"$f":"Import!E30826","v":0},{"$f":"Import!E30976","v":0},{"$f":"Import!E31126","v":0}]
[124,{"$f":"Import!E30077","v":"Select"},{"$f":"Import!E30227","v":"Select"},{"$f":"Import!E30377","v":"Select"},{"$f":"Import!E30527","v":0},{"$f":"Import!E30677","v":0},{"$f":"Import!E30827","v":0},{"$f":"Import!E30977","v":0},{"$f":"Import!E31127","v":0}]
[125,{"$f":"Import!E30078","v":"Select"},{"$f":"Import!E30228","v":"Select"},{"$f":"Import!E30378","v":"Select"},{"$f":"Import!E30528","v":0},{"$f":"Import!E30678","v":0},{"$f":"Import!E30828","v":0},{"$f":"Import!E30978","v":0},{"$f":"Import!E31128","v":0}]
[126,{"$f":"Import!E30079","v":"Select"},{"$f":"Import!E30229","v":"Select"},{"$f":"Import!E30379","v":"Select"},{"$f":"Import!E30529","v":0},{"$f":"Import!E30679","v":0},{"$f":"Import!E30829","v":0},{"$f":"Import!E30979","v":0},{"$f":"Import!E31129","v":0}]
[127,{"$f":"Import!E30080","v":"Select"},{"$f":"Import!E30230","v":"Select"},{"$f":"Import!E30380","v":"Select"},{"$f":"Import!E30530","v":0},{"$f":"Import!E30680","v":0},{"$f":"Import!E30830","v":0},{"$f":"Import!E30980","v":0},{"$f":"Import!E31130","v":0}]
[128,{"$f":"Import!E30081","v":"Select"},{"$f":"Import!E30231","v":"Select"},{"$f":"Import!E30381","v":"Select"},{"$f":"Import!E30531","v":0},{"$f":"Import!E30681","v":0},{"$f":"Import!E30831","v":0},{"$f":"Import!E30981","v":0},{"$f":"Import!E31131","v":0}]
[129,{"$f":"Import!E30082","v":"Select"},{"$f":"Import!E30232","v":"Select"},{"$f":"Import!E30382","v":"Select"},{"$f":"Import!E30532","v":0},{"$f":"Import!E30682","v":0},{"$f":"Import!E30832","v":0},{"$f":"Import!E30982","v":0},{"$f":"Import!E31132","v":0}]
[130,{"$f":"Import!E30083","v":"Select"},{"$f":"Import!E30233","v":"Select"},{"$f":"Import!E30383","v":"Select"},{"$f":"Import!E30533","v":0},{"$f":"Import!E30683","v":0},{"$f":"Import!E30833","v":0},{"$f":"Import!E30983","v":0},{"$f":"Import!E31133","v":0}]
[{"$f":"A964+1","v":131},{"$f":"Import!E30084","v":"Select"},{"$f":"Import!E30234","v":"Select"},{"$f":"Import!E30384","v":"Select"},{"$f":"Import!E30534","v":0},{"$f":"Import!E30684","v":0},{"$f":"Import!E30834","v":0},{"$f":"Import!E30984","v":0},{"$f":"Import!E31134","v":0}]
[132,{"$f":"Import!E30085","v":"Select"},{"$f":"Import!E30235","v":"Select"},{"$f":"Import!E30385","v":"Select"},{"$f":"Import!E30535","v":0},{"$f":"Import!E30685","v":0},{"$f":"Import!E30835","v":0},{"$f":"Import!E30985","v":0},{"$f":"Import!E31135","v":0}]
[133,{"$f":"Import!E30086","v":"Select"},{"$f":"Import!E30236","v":"Select"},{"$f":"Import!E30386","v":"Select"},{"$f":"Import!E30536","v":0},{"$f":"Import!E30686","v":0},{"$f":"Import!E30836","v":0},{"$f":"Import!E30986","v":0},{"$f":"Import!E31136","v":0}]
[134,{"$f":"Import!E30087","v":"Select"},{"$f":"Import!E30237","v":"Select"},{"$f":"Import!E30387","v":"Select"},{"$f":"Import!E30537","v":0},{"$f":"Import!E30687","v":0},{"$f":"Import!E30837","v":0},{"$f":"Import!E30987","v":0},{"$f":"Import!E31137","v":0}]
[135,{"$f":"Import!E30088","v":"Select"},{"$f":"Import!E30238","v":"Select"},{"$f":"Import!E30388","v":"Select"},{"$f":"Import!E30538","v":0},{"$f":"Import!E30688","v":0},{"$f":"Import!E30838","v":0},{"$f":"Import!E30988","v":0},{"$f":"Import!E31138","v":0}]
[136,{"$f":"Import!E30089","v":"Select"},{"$f":"Import!E30239","v":"Select"},{"$f":"Import!E30389","v":"Select"},{"$f":"Import!E30539","v":0},{"$f":"Import!E30689","v":0},{"$f":"Import!E30839","v":0},{"$f":"Import!E30989","v":0},{"$f":"Import!E31139","v":0}]
[137,{"$f":"Import!E30090","v":"Select"},{"$f":"Import!E30240","v":"Select"},{"$f":"Import!E30390","v":"Select"},{"$f":"Import!E30540","v":0},{"$f":"Import!E30690","v":0},{"$f":"Import!E30840","v":0},{"$f":"Import!E30990","v":0},{"$f":"Import!E31140","v":0}]
[138,{"$f":"Import!E30091","v":"Select"},{"$f":"Import!E30241","v":"Select"},{"$f":"Import!E30391","v":"Select"},{"$f":"Import!E30541","v":0},{"$f":"Import!E30691","v":0},{"$f":"Import!E30841","v":0},{"$f":"Import!E30991","v":0},{"$f":"Import!E31141","v":0}]
[139,{"$f":"Import!E30092","v":"Select"},{"$f":"Import!E30242","v":"Select"},{"$f":"Import!E30392","v":"Select"},{"$f":"Import!E30542","v":0},{"$f":"Import!E30692","v":0},{"$f":"Import!E30842","v":0},{"$f":"Import!E30992","v":0},{"$f":"Import!E31142","v":0}]
[140,{"$f":"Import!E30093","v":"Select"},{"$f":"Import!E30243","v":"Select"},{"$f":"Import!E30393","v":"Select"},{"$f":"Import!E30543","v":0},{"$f":"Import!E30693","v":0},{"$f":"Import!E30843","v":0},{"$f":"Import!E30993","v":0},{"$f":"Import!E31143","v":0}]
[141,{"$f":"Import!E30094","v":"Select"},{"$f":"Import!E30244","v":"Select"},{"$f":"Import!E30394","v":"Select"},{"$f":"Import!E30544","v":0},{"$f":"Import!E30694","v":0},{"$f":"Import!E30844","v":0},{"$f":"Import!E30994","v":0},{"$f":"Import!E31144","v":0}]
[142,{"$f":"Import!E30095","v":"Select"},{"$f":"Import!E30245","v":"Select"},{"$f":"Import!E30395","v":"Select"},{"$f":"Import!E30545","v":0},{"$f":"Import!E30695","v":0},{"$f":"Import!E30845","v":0},{"$f":"Import!E30995","v":0},{"$f":"Import!E31145","v":0}]
[143,{"$f":"Import!E30096","v":"Select"},{"$f":"Import!E30246","v":"Select"},{"$f":"Import!E30396","v":"Select"},{"$f":"Import!E30546","v":0},{"$f":"Import!E30696","v":0},{"$f":"Import!E30846","v":0},{"$f":"Import!E30996","v":0},{"$f":"Import!E31146","v":0}]
[144,{"$f":"Import!E30097","v":"Select"},{"$f":"Import!E30247","v":"Select"},{"$f":"Import!E30397","v":"Select"},{"$f":"Import!E30547","v":0},{"$f":"Import!E30697","v":0},{"$f":"Import!E30847","v":0},{"$f":"Import!E30997","v":0},{"$f":"Import!E31147","v":0}]
[145,{"$f":"Import!E30098","v":"Select"},{"$f":"Import!E30248","v":"Select"},{"$f":"Import!E30398","v":"Select"},{"$f":"Import!E30548","v":0},{"$f":"Import!E30698","v":0},{"$f":"Import!E30848","v":0},{"$f":"Import!E30998","v":0},{"$f":"Import!E31148","v":0}]
[146,{"$f":"Import!E30099","v":"Select"},{"$f":"Import!E30249","v":"Select"},{"$f":"Import!E30399","v":"Select"},{"$f":"Import!E30549","v":0},{"$f":"Import!E30699","v":0},{"$f":"Import!E30849","v":0},{"$f":"Import!E30999","v":0},{"$f":"Import!E31149","v":0}]
[147,{"$f":"Import!E30100","v":"Select"},{"$f":"Import!E30250","v":"Select"},{"$f":"Import!E30400","v":"Select"},{"$f":"Import!E30550","v":0},{"$f":"Import!E30700","v":0},{"$f":"Import!E30850","v":0},{"$f":"Import!E31000","v":0},{"$f":"Import!E31150","v":0}]
[148,{"$f":"Import!E30101","v":"Select"},{"$f":"Import!E30251","v":"Select"},{"$f":"Import!E30401","v":"Select"},{"$f":"Import!E30551","v":0},{"$f":"Import!E30701","v":0},{"$f":"Import!E30851","v":0},{"$f":"Import!E31001","v":0},{"$f":"Import!E31151","v":0}]
[149,{"$f":"Import!E30102","v":"Select"},{"$f":"Import!E30252","v":"Select"},{"$f":"Import!E30402","v":"Select"},{"$f":"Import!E30552","v":0},{"$f":"Import!E30702","v":0},{"$f":"Import!E30852","v":0},{"$f":"Import!E31002","v":0},{"$f":"Import!E31152","v":0}]
[150,{"$f":"Import!E30103","v":"Select"},{"$f":"Import!E30253","v":"Select"},{"$f":"Import!E30403","v":"Select"},{"$f":"Import!E30553","v":0},{"$f":"Import!E30703","v":0},{"$f":"Import!E30853","v":0},{"$f":"Import!E31003","v":0},{"$f":"Import!E31153","v":0}]
[]
[null,"Total Asset-Backed and Structured Securities",null,null,{"$f":"SUM(E835:E984)","v":0},{"$f":"SUM(F835:F984)","v":0},{"$f":"IFERROR(SUMPRODUCT(G835:G984,$F835:$F984)/SUM($F835:$F984),0)","v":0},{"$f":"IFERROR(SUMPRODUCT(H835:H984,$F835:$F984)/SUM($F835:$F984),0)","v":0}]
[]
[null,"(D) LOANS"]
[]
[null,null,"Enter # of Asset Types",{"$f":"Import!E31154","v":0}]
[null,null,null,null,null,{"$f":"YEAR($C$3)","v":2023},2023,"Weighted"]
[null,"Asset Type","Currency","Country","BSCR Rating","Nominal Amount","Fair Value","Average YTM","Effective Duration","Comments"]
[1,{"$f":"Import!E31155","v":"Select"},{"$f":"Import!E31255","v":"Select"},{"$f":"Import!E31355","v":"Select"},{"$f":"Import!E31455","v":"Select"},{"$f":"Import!E31555","v":0},{"$f":"Import!E31655","v":0},{"$f":"Import!E31755","v":0},{"$f":"Import!E31855","v":0},{"$f":"Import!E31955","v":0}]
[{"$f":"A993+1","v":2},{"$f":"Import!E31156","v":"Select"},{"$f":"Import!E31256","v":"Select"},{"$f":"Import!E31356","v":"Select"},{"$f":"Import!E31456","v":"Select"},{"$f":"Import!E31556","v":0},{"$f":"Import!E31656","v":0},{"$f":"Import!E31756","v":0},{"$f":"Import!E31856","v":0},{"$f":"Import!E31956","v":0}]
[{"$f":"A994+1","v":3},{"$f":"Import!E31157","v":"Select"},{"$f":"Import!E31257","v":"Select"},{"$f":"Import!E31357","v":"Select"},{"$f":"Import!E31457","v":"Select"},{"$f":"Import!E31557","v":0},{"$f":"Import!E31657","v":0},{"$f":"Import!E31757","v":0},{"$f":"Import!E31857","v":0},{"$f":"Import!E31957","v":0}]
[4,{"$f":"Import!E31158","v":"Select"},{"$f":"Import!E31258","v":"Select"},{"$f":"Import!E31358","v":"Select"},{"$f":"Import!E31458","v":"Select"},{"$f":"Import!E31558","v":0},{"$f":"Import!E31658","v":0},{"$f":"Import!E31758","v":0},{"$f":"Import!E31858","v":0},{"$f":"Import!E31958","v":0}]
[5,{"$f":"Import!E31159","v":"Select"},{"$f":"Import!E31259","v":"Select"},{"$f":"Import!E31359","v":"Select"},{"$f":"Import!E31459","v":"Select"},{"$f":"Import!E31559","v":0},{"$f":"Import!E31659","v":0},{"$f":"Import!E31759","v":0},{"$f":"Import!E31859","v":0},{"$f":"Import!E31959","v":0}]
[6,{"$f":"Import!E31160","v":"Select"},{"$f":"Import!E31260","v":"Select"},{"$f":"Import!E31360","v":"Select"},{"$f":"Import!E31460","v":"Select"},{"$f":"Import!E31560","v":0},{"$f":"Import!E31660","v":0},{"$f":"Import!E31760","v":0},{"$f":"Import!E31860","v":0},{"$f":"Import!E31960","v":0}]
[7,{"$f":"Import!E31161","v":"Select"},{"$f":"Import!E31261","v":"Select"},{"$f":"Import!E31361","v":"Select"},{"$f":"Import!E31461","v":"Select"},{"$f":"Import!E31561","v":0},{"$f":"Import!E31661","v":0},{"$f":"Import!E31761","v":0},{"$f":"Import!E31861","v":0},{"$f":"Import!E31961","v":0}]
[8,{"$f":"Import!E31162","v":"Select"},{"$f":"Import!E31262","v":"Select"},{"$f":"Import!E31362","v":"Select"},{"$f":"Import!E31462","v":"Select"},{"$f":"Import!E31562","v":0},{"$f":"Import!E31662","v":0},{"$f":"Import!E31762","v":0},{"$f":"Import!E31862","v":0},{"$f":"Import!E31962","v":0}]
[9,{"$f":"Import!E31163","v":"Select"},{"$f":"Import!E31263","v":"Select"},{"$f":"Import!E31363","v":"Select"},{"$f":"Import!E31463","v":"Select"},{"$f":"Import!E31563","v":0},{"$f":"Import!E31663","v":0},{"$f":"Import!E31763","v":0},{"$f":"Import!E31863","v":0},{"$f":"Import!E31963","v":0}]
[10,{"$f":"Import!E31164","v":"Select"},{"$f":"Import!E31264","v":"Select"},{"$f":"Import!E31364","v":"Select"},{"$f":"Import!E31464","v":"Select"},{"$f":"Import!E31564","v":0},{"$f":"Import!E31664","v":0},{"$f":"Import!E31764","v":0},{"$f":"Import!E31864","v":0},{"$f":"Import!E31964","v":0}]
[11,{"$f":"Import!E31165","v":"Select"},{"$f":"Import!E31265","v":"Select"},{"$f":"Import!E31365","v":"Select"},{"$f":"Import!E31465","v":"Select"},{"$f":"Import!E31565","v":0},{"$f":"Import!E31665","v":0},{"$f":"Import!E31765","v":0},{"$f":"Import!E31865","v":0},{"$f":"Import!E31965","v":0}]
[12,{"$f":"Import!E31166","v":"Select"},{"$f":"Import!E31266","v":"Select"},{"$f":"Import!E31366","v":"Select"},{"$f":"Import!E31466","v":"Select"},{"$f":"Import!E31566","v":0},{"$f":"Import!E31666","v":0},{"$f":"Import!E31766","v":0},{"$f":"Import!E31866","v":0},{"$f":"Import!E31966","v":0}]
[13,{"$f":"Import!E31167","v":"Select"},{"$f":"Import!E31267","v":"Select"},{"$f":"Import!E31367","v":"Select"},{"$f":"Import!E31467","v":"Select"},{"$f":"Import!E31567","v":0},{"$f":"Import!E31667","v":0},{"$f":"Import!E31767","v":0},{"$f":"Import!E31867","v":0},{"$f":"Import!E31967","v":0}]
[14,{"$f":"Import!E31168","v":"Select"},{"$f":"Import!E31268","v":"Select"},{"$f":"Import!E31368","v":"Select"},{"$f":"Import!E31468","v":"Select"},{"$f":"Import!E31568","v":0},{"$f":"Import!E31668","v":0},{"$f":"Import!E31768","v":0},{"$f":"Import!E31868","v":0},{"$f":"Import!E31968","v":0}]
[15,{"$f":"Import!E31169","v":"Select"},{"$f":"Import!E31269","v":"Select"},{"$f":"Import!E31369","v":"Select"},{"$f":"Import!E31469","v":"Select"},{"$f":"Import!E31569","v":0},{"$f":"Import!E31669","v":0},{"$f":"Import!E31769","v":0},{"$f":"Import!E31869","v":0},{"$f":"Import!E31969","v":0}]
[16,{"$f":"Import!E31170","v":"Select"},{"$f":"Import!E31270","v":"Select"},{"$f":"Import!E31370","v":"Select"},{"$f":"Import!E31470","v":"Select"},{"$f":"Import!E31570","v":0},{"$f":"Import!E31670","v":0},{"$f":"Import!E31770","v":0},{"$f":"Import!E31870","v":0},{"$f":"Import!E31970","v":0}]
[17,{"$f":"Import!E31171","v":"Select"},{"$f":"Import!E31271","v":"Select"},{"$f":"Import!E31371","v":"Select"},{"$f":"Import!E31471","v":"Select"},{"$f":"Import!E31571","v":0},{"$f":"Import!E31671","v":0},{"$f":"Import!E31771","v":0},{"$f":"Import!E31871","v":0},{"$f":"Import!E31971","v":0}]
[18,{"$f":"Import!E31172","v":"Select"},{"$f":"Import!E31272","v":"Select"},{"$f":"Import!E31372","v":"Select"},{"$f":"Import!E31472","v":"Select"},{"$f":"Import!E31572","v":0},{"$f":"Import!E31672","v":0},{"$f":"Import!E31772","v":0},{"$f":"Import!E31872","v":0},{"$f":"Import!E31972","v":0}]
[19,{"$f":"Import!E31173","v":"Select"},{"$f":"Import!E31273","v":"Select"},{"$f":"Import!E31373","v":"Select"},{"$f":"Import!E31473","v":"Select"},{"$f":"Import!E31573","v":0},{"$f":"Import!E31673","v":0},{"$f":"Import!E31773","v":0},{"$f":"Import!E31873","v":0},{"$f":"Import!E31973","v":0}]
[20,{"$f":"Import!E31174","v":"Select"},{"$f":"Import!E31274","v":"Select"},{"$f":"Import!E31374","v":"Select"},{"$f":"Import!E31474","v":"Select"},{"$f":"Import!E31574","v":0},{"$f":"Import!E31674","v":0},{"$f":"Import!E31774","v":0},{"$f":"Import!E31874","v":0},{"$f":"Import!E31974","v":0}]
[21,{"$f":"Import!E31175","v":"Select"},{"$f":"Import!E31275","v":"Select"},{"$f":"Import!E31375","v":"Select"},{"$f":"Import!E31475","v":"Select"},{"$f":"Import!E31575","v":0},{"$f":"Import!E31675","v":0},{"$f":"Import!E31775","v":0},{"$f":"Import!E31875","v":0},{"$f":"Import!E31975","v":0}]
[22,{"$f":"Import!E31176","v":"Select"},{"$f":"Import!E31276","v":"Select"},{"$f":"Import!E31376","v":"Select"},{"$f":"Import!E31476","v":"Select"},{"$f":"Import!E31576","v":0},{"$f":"Import!E31676","v":0},{"$f":"Import!E31776","v":0},{"$f":"Import!E31876","v":0},{"$f":"Import!E31976","v":0}]
[23,{"$f":"Import!E31177","v":"Select"},{"$f":"Import!E31277","v":"Select"},{"$f":"Import!E31377","v":"Select"},{"$f":"Import!E31477","v":"Select"},{"$f":"Import!E31577","v":0},{"$f":"Import!E31677","v":0},{"$f":"Import!E31777","v":0},{"$f":"Import!E31877","v":0},{"$f":"Import!E31977","v":0}]
[24,{"$f":"Import!E31178","v":"Select"},{"$f":"Import!E31278","v":"Select"},{"$f":"Import!E31378","v":"Select"},{"$f":"Import!E31478","v":"Select"},{"$f":"Import!E31578","v":0},{"$f":"Import!E31678","v":0},{"$f":"Import!E31778","v":0},{"$f":"Import!E31878","v":0},{"$f":"Import!E31978","v":0}]
[25,{"$f":"Import!E31179","v":"Select"},{"$f":"Import!E31279","v":"Select"},{"$f":"Import!E31379","v":"Select"},{"$f":"Import!E31479","v":"Select"},{"$f":"Import!E31579","v":0},{"$f":"Import!E31679","v":0},{"$f":"Import!E31779","v":0},{"$f":"Import!E31879","v":0},{"$f":"Import!E31979","v":0}]
[26,{"$f":"Import!E31180","v":"Select"},{"$f":"Import!E31280","v":"Select"},{"$f":"Import!E31380","v":"Select"},{"$f":"Import!E31480","v":"Select"},{"$f":"Import!E31580","v":0},{"$f":"Import!E31680","v":0},{"$f":"Import!E31780","v":0},{"$f":"Import!E31880","v":0},{"$f":"Import!E31980","v":0}]
[27,{"$f":"Import!E31181","v":"Select"},{"$f":"Import!E31281","v":"Select"},{"$f":"Import!E31381","v":"Select"},{"$f":"Import!E31481","v":"Select"},{"$f":"Import!E31581","v":0},{"$f":"Import!E31681","v":0},{"$f":"Import!E31781","v":0},{"$f":"Import!E31881","v":0},{"$f":"Import!E31981","v":0}]
[28,{"$f":"Import!E31182","v":"Select"},{"$f":"Import!E31282","v":"Select"},{"$f":"Import!E31382","v":"Select"},{"$f":"Import!E31482","v":"Select"},{"$f":"Import!E31582","v":0},{"$f":"Import!E31682","v":0},{"$f":"Import!E31782","v":0},{"$f":"Import!E31882","v":0},{"$f":"Import!E31982","v":0}]
[29,{"$f":"Import!E31183","v":"Select"},{"$f":"Import!E31283","v":"Select"},{"$f":"Import!E31383","v":"Select"},{"$f":"Import!E31483","v":"Select"},{"$f":"Import!E31583","v":0},{"$f":"Import!E31683","v":0},{"$f":"Import!E31783","v":0},{"$f":"Import!E31883","v":0},{"$f":"Import!E31983","v":0}]
[30,{"$f":"Import!E31184","v":"Select"},{"$f":"Import!E31284","v":"Select"},{"$f":"Import!E31384","v":"Select"},{"$f":"Import!E31484","v":"Select"},{"$f":"Import!E31584","v":0},{"$f":"Import!E31684","v":0},{"$f":"Import!E31784","v":0},{"$f":"Import!E31884","v":0},{"$f":"Import!E31984","v":0}]
[31,{"$f":"Import!E31185","v":"Select"},{"$f":"Import!E31285","v":"Select"},{"$f":"Import!E31385","v":"Select"},{"$f":"Import!E31485","v":"Select"},{"$f":"Import!E31585","v":0},{"$f":"Import!E31685","v":0},{"$f":"Import!E31785","v":0},{"$f":"Import!E31885","v":0},{"$f":"Import!E31985","v":0}]
[32,{"$f":"Import!E31186","v":"Select"},{"$f":"Import!E31286","v":"Select"},{"$f":"Import!E31386","v":"Select"},{"$f":"Import!E31486","v":"Select"},{"$f":"Import!E31586","v":0},{"$f":"Import!E31686","v":0},{"$f":"Import!E31786","v":0},{"$f":"Import!E31886","v":0},{"$f":"Import!E31986","v":0}]
[33,{"$f":"Import!E31187","v":"Select"},{"$f":"Import!E31287","v":"Select"},{"$f":"Import!E31387","v":"Select"},{"$f":"Import!E31487","v":"Select"},{"$f":"Import!E31587","v":0},{"$f":"Import!E31687","v":0},{"$f":"Import!E31787","v":0},{"$f":"Import!E31887","v":0},{"$f":"Import!E31987","v":0}]
[34,{"$f":"Import!E31188","v":"Select"},{"$f":"Import!E31288","v":"Select"},{"$f":"Import!E31388","v":"Select"},{"$f":"Import!E31488","v":"Select"},{"$f":"Import!E31588","v":0},{"$f":"Import!E31688","v":0},{"$f":"Import!E31788","v":0},{"$f":"Import!E31888","v":0},{"$f":"Import!E31988","v":0}]
[35,{"$f":"Import!E31189","v":"Select"},{"$f":"Import!E31289","v":"Select"},{"$f":"Import!E31389","v":"Select"},{"$f":"Import!E31489","v":"Select"},{"$f":"Import!E31589","v":0},{"$f":"Import!E31689","v":0},{"$f":"Import!E31789","v":0},{"$f":"Import!E31889","v":0},{"$f":"Import!E31989","v":0}]
[36,{"$f":"Import!E31190","v":"Select"},{"$f":"Import!E31290","v":"Select"},{"$f":"Import!E31390","v":"Select"},{"$f":"Import!E31490","v":"Select"},{"$f":"Import!E31590","v":0},{"$f":"Import!E31690","v":0},{"$f":"Import!E31790","v":0},{"$f":"Import!E31890","v":0},{"$f":"Import!E31990","v":0}]
[37,{"$f":"Import!E31191","v":"Select"},{"$f":"Import!E31291","v":"Select"},{"$f":"Import!E31391","v":"Select"},{"$f":"Import!E31491","v":"Select"},{"$f":"Import!E31591","v":0},{"$f":"Import!E31691","v":0},{"$f":"Import!E31791","v":0},{"$f":"Import!E31891","v":0},{"$f":"Import!E31991","v":0}]
[38,{"$f":"Import!E31192","v":"Select"},{"$f":"Import!E31292","v":"Select"},{"$f":"Import!E31392","v":"Select"},{"$f":"Import!E31492","v":"Select"},{"$f":"Import!E31592","v":0},{"$f":"Import!E31692","v":0},{"$f":"Import!E31792","v":0},{"$f":"Import!E31892","v":0},{"$f":"Import!E31992","v":0}]
[39,{"$f":"Import!E31193","v":"Select"},{"$f":"Import!E31293","v":"Select"},{"$f":"Import!E31393","v":"Select"},{"$f":"Import!E31493","v":"Select"},{"$f":"Import!E31593","v":0},{"$f":"Import!E31693","v":0},{"$f":"Import!E31793","v":0},{"$f":"Import!E31893","v":0},{"$f":"Import!E31993","v":0}]
[40,{"$f":"Import!E31194","v":"Select"},{"$f":"Import!E31294","v":"Select"},{"$f":"Import!E31394","v":"Select"},{"$f":"Import!E31494","v":"Select"},{"$f":"Import!E31594","v":0},{"$f":"Import!E31694","v":0},{"$f":"Import!E31794","v":0},{"$f":"Import!E31894","v":0},{"$f":"Import!E31994","v":0}]
[41,{"$f":"Import!E31195","v":"Select"},{"$f":"Import!E31295","v":"Select"},{"$f":"Import!E31395","v":"Select"},{"$f":"Import!E31495","v":"Select"},{"$f":"Import!E31595","v":0},{"$f":"Import!E31695","v":0},{"$f":"Import!E31795","v":0},{"$f":"Import!E31895","v":0},{"$f":"Import!E31995","v":0}]
[42,{"$f":"Import!E31196","v":"Select"},{"$f":"Import!E31296","v":"Select"},{"$f":"Import!E31396","v":"Select"},{"$f":"Import!E31496","v":"Select"},{"$f":"Import!E31596","v":0},{"$f":"Import!E31696","v":0},{"$f":"Import!E31796","v":0},{"$f":"Import!E31896","v":0},{"$f":"Import!E31996","v":0}]
[43,{"$f":"Import!E31197","v":"Select"},{"$f":"Import!E31297","v":"Select"},{"$f":"Import!E31397","v":"Select"},{"$f":"Import!E31497","v":"Select"},{"$f":"Import!E31597","v":0},{"$f":"Import!E31697","v":0},{"$f":"Import!E31797","v":0},{"$f":"Import!E31897","v":0},{"$f":"Import!E31997","v":0}]
[44,{"$f":"Import!E31198","v":"Select"},{"$f":"Import!E31298","v":"Select"},{"$f":"Import!E31398","v":"Select"},{"$f":"Import!E31498","v":"Select"},{"$f":"Import!E31598","v":0},{"$f":"Import!E31698","v":0},{"$f":"Import!E31798","v":0},{"$f":"Import!E31898","v":0},{"$f":"Import!E31998","v":0}]
[45,{"$f":"Import!E31199","v":"Select"},{"$f":"Import!E31299","v":"Select"},{"$f":"Import!E31399","v":"Select"},{"$f":"Import!E31499","v":"Select"},{"$f":"Import!E31599","v":0},{"$f":"Import!E31699","v":0},{"$f":"Import!E31799","v":0},{"$f":"Import!E31899","v":0},{"$f":"Import!E31999","v":0}]
[46,{"$f":"Import!E31200","v":"Select"},{"$f":"Import!E31300","v":"Select"},{"$f":"Import!E31400","v":"Select"},{"$f":"Import!E31500","v":"Select"},{"$f":"Import!E31600","v":0},{"$f":"Import!E31700","v":0},{"$f":"Import!E31800","v":0},{"$f":"Import!E31900","v":0},{"$f":"Import!E32000","v":0}]
[47,{"$f":"Import!E31201","v":"Select"},{"$f":"Import!E31301","v":"Select"},{"$f":"Import!E31401","v":"Select"},{"$f":"Import!E31501","v":"Select"},{"$f":"Import!E31601","v":0},{"$f":"Import!E31701","v":0},{"$f":"Import!E31801","v":0},{"$f":"Import!E31901","v":0},{"$f":"Import!E32001","v":0}]
[48,{"$f":"Import!E31202","v":"Select"},{"$f":"Import!E31302","v":"Select"},{"$f":"Import!E31402","v":"Select"},{"$f":"Import!E31502","v":"Select"},{"$f":"Import!E31602","v":0},{"$f":"Import!E31702","v":0},{"$f":"Import!E31802","v":0},{"$f":"Import!E31902","v":0},{"$f":"Import!E32002","v":0}]
[49,{"$f":"Import!E31203","v":"Select"},{"$f":"Import!E31303","v":"Select"},{"$f":"Import!E31403","v":"Select"},{"$f":"Import!E31503","v":"Select"},{"$f":"Import!E31603","v":0},{"$f":"Import!E31703","v":0},{"$f":"Import!E31803","v":0},{"$f":"Import!E31903","v":0},{"$f":"Import!E32003","v":0}]
[50,{"$f":"Import!E31204","v":"Select"},{"$f":"Import!E31304","v":"Select"},{"$f":"Import!E31404","v":"Select"},{"$f":"Import!E31504","v":"Select"},{"$f":"Import!E31604","v":0},{"$f":"Import!E31704","v":0},{"$f":"Import!E31804","v":0},{"$f":"Import!E31904","v":0},{"$f":"Import!E32004","v":0}]
[51,{"$f":"Import!E31205","v":"Select"},{"$f":"Import!E31305","v":"Select"},{"$f":"Import!E31405","v":"Select"},{"$f":"Import!E31505","v":"Select"},{"$f":"Import!E31605","v":0},{"$f":"Import!E31705","v":0},{"$f":"Import!E31805","v":0},{"$f":"Import!E31905","v":0},{"$f":"Import!E32005","v":0}]
[52,{"$f":"Import!E31206","v":"Select"},{"$f":"Import!E31306","v":"Select"},{"$f":"Import!E31406","v":"Select"},{"$f":"Import!E31506","v":"Select"},{"$f":"Import!E31606","v":0},{"$f":"Import!E31706","v":0},{"$f":"Import!E31806","v":0},{"$f":"Import!E31906","v":0},{"$f":"Import!E32006","v":0}]
[53,{"$f":"Import!E31207","v":"Select"},{"$f":"Import!E31307","v":"Select"},{"$f":"Import!E31407","v":"Select"},{"$f":"Import!E31507","v":"Select"},{"$f":"Import!E31607","v":0},{"$f":"Import!E31707","v":0},{"$f":"Import!E31807","v":0},{"$f":"Import!E31907","v":0},{"$f":"Import!E32007","v":0}]
[54,{"$f":"Import!E31208","v":"Select"},{"$f":"Import!E31308","v":"Select"},{"$f":"Import!E31408","v":"Select"},{"$f":"Import!E31508","v":"Select"},{"$f":"Import!E31608","v":0},{"$f":"Import!E31708","v":0},{"$f":"Import!E31808","v":0},{"$f":"Import!E31908","v":0},{"$f":"Import!E32008","v":0}]
[55,{"$f":"Import!E31209","v":"Select"},{"$f":"Import!E31309","v":"Select"},{"$f":"Import!E31409","v":"Select"},{"$f":"Import!E31509","v":"Select"},{"$f":"Import!E31609","v":0},{"$f":"Import!E31709","v":0},{"$f":"Import!E31809","v":0},{"$f":"Import!E31909","v":0},{"$f":"Import!E32009","v":0}]
[56,{"$f":"Import!E31210","v":"Select"},{"$f":"Import!E31310","v":"Select"},{"$f":"Import!E31410","v":"Select"},{"$f":"Import!E31510","v":"Select"},{"$f":"Import!E31610","v":0},{"$f":"Import!E31710","v":0},{"$f":"Import!E31810","v":0},{"$f":"Import!E31910","v":0},{"$f":"Import!E32010","v":0}]
[57,{"$f":"Import!E31211","v":"Select"},{"$f":"Import!E31311","v":"Select"},{"$f":"Import!E31411","v":"Select"},{"$f":"Import!E31511","v":"Select"},{"$f":"Import!E31611","v":0},{"$f":"Import!E31711","v":0},{"$f":"Import!E31811","v":0},{"$f":"Import!E31911","v":0},{"$f":"Import!E32011","v":0}]
[58,{"$f":"Import!E31212","v":"Select"},{"$f":"Import!E31312","v":"Select"},{"$f":"Import!E31412","v":"Select"},{"$f":"Import!E31512","v":"Select"},{"$f":"Import!E31612","v":0},{"$f":"Import!E31712","v":0},{"$f":"Import!E31812","v":0},{"$f":"Import!E31912","v":0},{"$f":"Import!E32012","v":0}]
[59,{"$f":"Import!E31213","v":"Select"},{"$f":"Import!E31313","v":"Select"},{"$f":"Import!E31413","v":"Select"},{"$f":"Import!E31513","v":"Select"},{"$f":"Import!E31613","v":0},{"$f":"Import!E31713","v":0},{"$f":"Import!E31813","v":0},{"$f":"Import!E31913","v":0},{"$f":"Import!E32013","v":0}]
[60,{"$f":"Import!E31214","v":"Select"},{"$f":"Import!E31314","v":"Select"},{"$f":"Import!E31414","v":"Select"},{"$f":"Import!E31514","v":"Select"},{"$f":"Import!E31614","v":0},{"$f":"Import!E31714","v":0},{"$f":"Import!E31814","v":0},{"$f":"Import!E31914","v":0},{"$f":"Import!E32014","v":0}]
[61,{"$f":"Import!E31215","v":"Select"},{"$f":"Import!E31315","v":"Select"},{"$f":"Import!E31415","v":"Select"},{"$f":"Import!E31515","v":"Select"},{"$f":"Import!E31615","v":0},{"$f":"Import!E31715","v":0},{"$f":"Import!E31815","v":0},{"$f":"Import!E31915","v":0},{"$f":"Import!E32015","v":0}]
[62,{"$f":"Import!E31216","v":"Select"},{"$f":"Import!E31316","v":"Select"},{"$f":"Import!E31416","v":"Select"},{"$f":"Import!E31516","v":"Select"},{"$f":"Import!E31616","v":0},{"$f":"Import!E31716","v":0},{"$f":"Import!E31816","v":0},{"$f":"Import!E31916","v":0},{"$f":"Import!E32016","v":0}]
[63,{"$f":"Import!E31217","v":"Select"},{"$f":"Import!E31317","v":"Select"},{"$f":"Import!E31417","v":"Select"},{"$f":"Import!E31517","v":"Select"},{"$f":"Import!E31617","v":0},{"$f":"Import!E31717","v":0},{"$f":"Import!E31817","v":0},{"$f":"Import!E31917","v":0},{"$f":"Import!E32017","v":0}]
[64,{"$f":"Import!E31218","v":"Select"},{"$f":"Import!E31318","v":"Select"},{"$f":"Import!E31418","v":"Select"},{"$f":"Import!E31518","v":"Select"},{"$f":"Import!E31618","v":0},{"$f":"Import!E31718","v":0},{"$f":"Import!E31818","v":0},{"$f":"Import!E31918","v":0},{"$f":"Import!E32018","v":0}]
[65,{"$f":"Import!E31219","v":"Select"},{"$f":"Import!E31319","v":"Select"},{"$f":"Import!E31419","v":"Select"},{"$f":"Import!E31519","v":"Select"},{"$f":"Import!E31619","v":0},{"$f":"Import!E31719","v":0},{"$f":"Import!E31819","v":0},{"$f":"Import!E31919","v":0},{"$f":"Import!E32019","v":0}]
[66,{"$f":"Import!E31220","v":"Select"},{"$f":"Import!E31320","v":"Select"},{"$f":"Import!E31420","v":"Select"},{"$f":"Import!E31520","v":"Select"},{"$f":"Import!E31620","v":0},{"$f":"Import!E31720","v":0},{"$f":"Import!E31820","v":0},{"$f":"Import!E31920","v":0},{"$f":"Import!E32020","v":0}]
[{"$f":"A1058+1","v":67},{"$f":"Import!E31221","v":"Select"},{"$f":"Import!E31321","v":"Select"},{"$f":"Import!E31421","v":"Select"},{"$f":"Import!E31521","v":"Select"},{"$f":"Import!E31621","v":0},{"$f":"Import!E31721","v":0},{"$f":"Import!E31821","v":0},{"$f":"Import!E31921","v":0},{"$f":"Import!E32021","v":0}]
[68,{"$f":"Import!E31222","v":"Select"},{"$f":"Import!E31322","v":"Select"},{"$f":"Import!E31422","v":"Select"},{"$f":"Import!E31522","v":"Select"},{"$f":"Import!E31622","v":0},{"$f":"Import!E31722","v":0},{"$f":"Import!E31822","v":0},{"$f":"Import!E31922","v":0},{"$f":"Import!E32022","v":0}]
[69,{"$f":"Import!E31223","v":"Select"},{"$f":"Import!E31323","v":"Select"},{"$f":"Import!E31423","v":"Select"},{"$f":"Import!E31523","v":"Select"},{"$f":"Import!E31623","v":0},{"$f":"Import!E31723","v":0},{"$f":"Import!E31823","v":0},{"$f":"Import!E31923","v":0},{"$f":"Import!E32023","v":0}]
[70,{"$f":"Import!E31224","v":"Select"},{"$f":"Import!E31324","v":"Select"},{"$f":"Import!E31424","v":"Select"},{"$f":"Import!E31524","v":"Select"},{"$f":"Import!E31624","v":0},{"$f":"Import!E31724","v":0},{"$f":"Import!E31824","v":0},{"$f":"Import!E31924","v":0},{"$f":"Import!E32024","v":0}]
[71,{"$f":"Import!E31225","v":"Select"},{"$f":"Import!E31325","v":"Select"},{"$f":"Import!E31425","v":"Select"},{"$f":"Import!E31525","v":"Select"},{"$f":"Import!E31625","v":0},{"$f":"Import!E31725","v":0},{"$f":"Import!E31825","v":0},{"$f":"Import!E31925","v":0},{"$f":"Import!E32025","v":0}]
[72,{"$f":"Import!E31226","v":"Select"},{"$f":"Import!E31326","v":"Select"},{"$f":"Import!E31426","v":"Select"},{"$f":"Import!E31526","v":"Select"},{"$f":"Import!E31626","v":0},{"$f":"Import!E31726","v":0},{"$f":"Import!E31826","v":0},{"$f":"Import!E31926","v":0},{"$f":"Import!E32026","v":0}]
[73,{"$f":"Import!E31227","v":"Select"},{"$f":"Import!E31327","v":"Select"},{"$f":"Import!E31427","v":"Select"},{"$f":"Import!E31527","v":"Select"},{"$f":"Import!E31627","v":0},{"$f":"Import!E31727","v":0},{"$f":"Import!E31827","v":0},{"$f":"Import!E31927","v":0},{"$f":"Import!E32027","v":0}]
[74,{"$f":"Import!E31228","v":"Select"},{"$f":"Import!E31328","v":"Select"},{"$f":"Import!E31428","v":"Select"},{"$f":"Import!E31528","v":"Select"},{"$f":"Import!E31628","v":0},{"$f":"Import!E31728","v":0},{"$f":"Import!E31828","v":0},{"$f":"Import!E31928","v":0},{"$f":"Import!E32028","v":0}]
[75,{"$f":"Import!E31229","v":"Select"},{"$f":"Import!E31329","v":"Select"},{"$f":"Import!E31429","v":"Select"},{"$f":"Import!E31529","v":"Select"},{"$f":"Import!E31629","v":0},{"$f":"Import!E31729","v":0},{"$f":"Import!E31829","v":0},{"$f":"Import!E31929","v":0},{"$f":"Import!E32029","v":0}]
[76,{"$f":"Import!E31230","v":"Select"},{"$f":"Import!E31330","v":"Select"},{"$f":"Import!E31430","v":"Select"},{"$f":"Import!E31530","v":"Select"},{"$f":"Import!E31630","v":0},{"$f":"Import!E31730","v":0},{"$f":"Import!E31830","v":0},{"$f":"Import!E31930","v":0},{"$f":"Import!E32030","v":0}]
[77,{"$f":"Import!E31231","v":"Select"},{"$f":"Import!E31331","v":"Select"},{"$f":"Import!E31431","v":"Select"},{"$f":"Import!E31531","v":"Select"},{"$f":"Import!E31631","v":0},{"$f":"Import!E31731","v":0},{"$f":"Import!E31831","v":0},{"$f":"Import!E31931","v":0},{"$f":"Import!E32031","v":0}]
[78,{"$f":"Import!E31232","v":"Select"},{"$f":"Import!E31332","v":"Select"},{"$f":"Import!E31432","v":"Select"},{"$f":"Import!E31532","v":"Select"},{"$f":"Import!E31632","v":0},{"$f":"Import!E31732","v":0},{"$f":"Import!E31832","v":0},{"$f":"Import!E31932","v":0},{"$f":"Import!E32032","v":0}]
[79,{"$f":"Import!E31233","v":"Select"},{"$f":"Import!E31333","v":"Select"},{"$f":"Import!E31433","v":"Select"},{"$f":"Import!E31533","v":"Select"},{"$f":"Import!E31633","v":0},{"$f":"Import!E31733","v":0},{"$f":"Import!E31833","v":0},{"$f":"Import!E31933","v":0},{"$f":"Import!E32033","v":0}]
[80,{"$f":"Import!E31234","v":"Select"},{"$f":"Import!E31334","v":"Select"},{"$f":"Import!E31434","v":"Select"},{"$f":"Import!E31534","v":"Select"},{"$f":"Import!E31634","v":0},{"$f":"Import!E31734","v":0},{"$f":"Import!E31834","v":0},{"$f":"Import!E31934","v":0},{"$f":"Import!E32034","v":0}]
[81,{"$f":"Import!E31235","v":"Select"},{"$f":"Import!E31335","v":"Select"},{"$f":"Import!E31435","v":"Select"},{"$f":"Import!E31535","v":"Select"},{"$f":"Import!E31635","v":0},{"$f":"Import!E31735","v":0},{"$f":"Import!E31835","v":0},{"$f":"Import!E31935","v":0},{"$f":"Import!E32035","v":0}]
[82,{"$f":"Import!E31236","v":"Select"},{"$f":"Import!E31336","v":"Select"},{"$f":"Import!E31436","v":"Select"},{"$f":"Import!E31536","v":"Select"},{"$f":"Import!E31636","v":0},{"$f":"Import!E31736","v":0},{"$f":"Import!E31836","v":0},{"$f":"Import!E31936","v":0},{"$f":"Import!E32036","v":0}]
[83,{"$f":"Import!E31237","v":"Select"},{"$f":"Import!E31337","v":"Select"},{"$f":"Import!E31437","v":"Select"},{"$f":"Import!E31537","v":"Select"},{"$f":"Import!E31637","v":0},{"$f":"Import!E31737","v":0},{"$f":"Import!E31837","v":0},{"$f":"Import!E31937","v":0},{"$f":"Import!E32037","v":0}]
[84,{"$f":"Import!E31238","v":"Select"},{"$f":"Import!E31338","v":"Select"},{"$f":"Import!E31438","v":"Select"},{"$f":"Import!E31538","v":"Select"},{"$f":"Import!E31638","v":0},{"$f":"Import!E31738","v":0},{"$f":"Import!E31838","v":0},{"$f":"Import!E31938","v":0},{"$f":"Import!E32038","v":0}]
[85,{"$f":"Import!E31239","v":"Select"},{"$f":"Import!E31339","v":"Select"},{"$f":"Import!E31439","v":"Select"},{"$f":"Import!E31539","v":"Select"},{"$f":"Import!E31639","v":0},{"$f":"Import!E31739","v":0},{"$f":"Import!E31839","v":0},{"$f":"Import!E31939","v":0},{"$f":"Import!E32039","v":0}]
[86,{"$f":"Import!E31240","v":"Select"},{"$f":"Import!E31340","v":"Select"},{"$f":"Import!E31440","v":"Select"},{"$f":"Import!E31540","v":"Select"},{"$f":"Import!E31640","v":0},{"$f":"Import!E31740","v":0},{"$f":"Import!E31840","v":0},{"$f":"Import!E31940","v":0},{"$f":"Import!E32040","v":0}]
[87,{"$f":"Import!E31241","v":"Select"},{"$f":"Import!E31341","v":"Select"},{"$f":"Import!E31441","v":"Select"},{"$f":"Import!E31541","v":"Select"},{"$f":"Import!E31641","v":0},{"$f":"Import!E31741","v":0},{"$f":"Import!E31841","v":0},{"$f":"Import!E31941","v":0},{"$f":"Import!E32041","v":0}]
[88,{"$f":"Import!E31242","v":"Select"},{"$f":"Import!E31342","v":"Select"},{"$f":"Import!E31442","v":"Select"},{"$f":"Import!E31542","v":"Select"},{"$f":"Import!E31642","v":0},{"$f":"Import!E31742","v":0},{"$f":"Import!E31842","v":0},{"$f":"Import!E31942","v":0},{"$f":"Import!E32042","v":0}]
[89,{"$f":"Import!E31243","v":"Select"},{"$f":"Import!E31343","v":"Select"},{"$f":"Import!E31443","v":"Select"},{"$f":"Import!E31543","v":"Select"},{"$f":"Import!E31643","v":0},{"$f":"Import!E31743","v":0},{"$f":"Import!E31843","v":0},{"$f":"Import!E31943","v":0},{"$f":"Import!E32043","v":0}]
[90,{"$f":"Import!E31244","v":"Select"},{"$f":"Import!E31344","v":"Select"},{"$f":"Import!E31444","v":"Select"},{"$f":"Import!E31544","v":"Select"},{"$f":"Import!E31644","v":0},{"$f":"Import!E31744","v":0},{"$f":"Import!E31844","v":0},{"$f":"Import!E31944","v":0},{"$f":"Import!E32044","v":0}]
[91,{"$f":"Import!E31245","v":"Select"},{"$f":"Import!E31345","v":"Select"},{"$f":"Import!E31445","v":"Select"},{"$f":"Import!E31545","v":"Select"},{"$f":"Import!E31645","v":0},{"$f":"Import!E31745","v":0},{"$f":"Import!E31845","v":0},{"$f":"Import!E31945","v":0},{"$f":"Import!E32045","v":0}]
[92,{"$f":"Import!E31246","v":"Select"},{"$f":"Import!E31346","v":"Select"},{"$f":"Import!E31446","v":"Select"},{"$f":"Import!E31546","v":"Select"},{"$f":"Import!E31646","v":0},{"$f":"Import!E31746","v":0},{"$f":"Import!E31846","v":0},{"$f":"Import!E31946","v":0},{"$f":"Import!E32046","v":0}]
[93,{"$f":"Import!E31247","v":"Select"},{"$f":"Import!E31347","v":"Select"},{"$f":"Import!E31447","v":"Select"},{"$f":"Import!E31547","v":"Select"},{"$f":"Import!E31647","v":0},{"$f":"Import!E31747","v":0},{"$f":"Import!E31847","v":0},{"$f":"Import!E31947","v":0},{"$f":"Import!E32047","v":0}]
[94,{"$f":"Import!E31248","v":"Select"},{"$f":"Import!E31348","v":"Select"},{"$f":"Import!E31448","v":"Select"},{"$f":"Import!E31548","v":"Select"},{"$f":"Import!E31648","v":0},{"$f":"Import!E31748","v":0},{"$f":"Import!E31848","v":0},{"$f":"Import!E31948","v":0},{"$f":"Import!E32048","v":0}]
[95,{"$f":"Import!E31249","v":"Select"},{"$f":"Import!E31349","v":"Select"},{"$f":"Import!E31449","v":"Select"},{"$f":"Import!E31549","v":"Select"},{"$f":"Import!E31649","v":0},{"$f":"Import!E31749","v":0},{"$f":"Import!E31849","v":0},{"$f":"Import!E31949","v":0},{"$f":"Import!E32049","v":0}]
[96,{"$f":"Import!E31250","v":"Select"},{"$f":"Import!E31350","v":"Select"},{"$f":"Import!E31450","v":"Select"},{"$f":"Import!E31550","v":"Select"},{"$f":"Import!E31650","v":0},{"$f":"Import!E31750","v":0},{"$f":"Import!E31850","v":0},{"$f":"Import!E31950","v":0},{"$f":"Import!E32050","v":0}]
[97,{"$f":"Import!E31251","v":"Select"},{"$f":"Import!E31351","v":"Select"},{"$f":"Import!E31451","v":"Select"},{"$f":"Import!E31551","v":"Select"},{"$f":"Import!E31651","v":0},{"$f":"Import!E31751","v":0},{"$f":"Import!E31851","v":0},{"$f":"Import!E31951","v":0},{"$f":"Import!E32051","v":0}]
[98,{"$f":"Import!E31252","v":"Select"},{"$f":"Import!E31352","v":"Select"},{"$f":"Import!E31452","v":"Select"},{"$f":"Import!E31552","v":"Select"},{"$f":"Import!E31652","v":0},{"$f":"Import!E31752","v":0},{"$f":"Import!E31852","v":0},{"$f":"Import!E31952","v":0},{"$f":"Import!E32052","v":0}]
[99,{"$f":"Import!E31253","v":"Select"},{"$f":"Import!E31353","v":"Select"},{"$f":"Import!E31453","v":"Select"},{"$f":"Import!E31553","v":"Select"},{"$f":"Import!E31653","v":0},{"$f":"Import!E31753","v":0},{"$f":"Import!E31853","v":0},{"$f":"Import!E31953","v":0},{"$f":"Import!E32053","v":0}]
[100,{"$f":"Import!E31254","v":"Select"},{"$f":"Import!E31354","v":"Select"},{"$f":"Import!E31454","v":"Select"},{"$f":"Import!E31554","v":"Select"},{"$f":"Import!E31654","v":0},{"$f":"Import!E31754","v":0},{"$f":"Import!E31854","v":0},{"$f":"Import!E31954","v":0},{"$f":"Import!E32054","v":0}]
[]
[null,"Total Loans",null,null,null,{"$f":"SUM(F993:F1092)","v":0},{"$f":"SUM(G993:G1092)","v":0},{"$f":"IFERROR(SUMPRODUCT(H993:H1092,$G993:$G1092)/SUM($G993:$G1092),0)","v":0},{"$f":"IFERROR(SUMPRODUCT(I993:I1092,$G993:$G1092)/SUM($G993:$G1092),0)","v":0}]
[]
[null,"- OF WHICH NON-PERFORMING LOANS"]
[]
[null,null,"Enter # of Asset Types",{"$f":"Import!E32055","v":0}]
[null,null,null,null,null,{"$f":"YEAR($C$3)","v":2023},2023]
[null,"Asset Type","Currency","Country","BSCR Rating","Nominal Amount","Fair Value","Comments"]
[1,{"$f":"Import!E32056","v":"Select"},{"$f":"Import!E32076","v":"Select"},{"$f":"Import!E32096","v":"Select"},{"$f":"Import!E32116","v":"Select"},{"$f":"Import!E32136","v":0},{"$f":"Import!E32156","v":0},{"$f":"Import!E32176","v":0}]
[{"$f":"A1101+1","v":2},{"$f":"Import!E32057","v":"Select"},{"$f":"Import!E32077","v":"Select"},{"$f":"Import!E32097","v":"Select"},{"$f":"Import!E32117","v":"Select"},{"$f":"Import!E32137","v":0},{"$f":"Import!E32157","v":0},{"$f":"Import!E32177","v":0}]
[{"$f":"A1102+1","v":3},{"$f":"Import!E32058","v":"Select"},{"$f":"Import!E32078","v":"Select"},{"$f":"Import!E32098","v":"Select"},{"$f":"Import!E32118","v":"Select"},{"$f":"Import!E32138","v":0},{"$f":"Import!E32158","v":0},{"$f":"Import!E32178","v":0}]
[4,{"$f":"Import!E32059","v":"Select"},{"$f":"Import!E32079","v":"Select"},{"$f":"Import!E32099","v":"Select"},{"$f":"Import!E32119","v":"Select"},{"$f":"Import!E32139","v":0},{"$f":"Import!E32159","v":0},{"$f":"Import!E32179","v":0}]
[5,{"$f":"Import!E32060","v":"Select"},{"$f":"Import!E32080","v":"Select"},{"$f":"Import!E32100","v":"Select"},{"$f":"Import!E32120","v":"Select"},{"$f":"Import!E32140","v":0},{"$f":"Import!E32160","v":0},{"$f":"Import!E32180","v":0}]
[6,{"$f":"Import!E32061","v":"Select"},{"$f":"Import!E32081","v":"Select"},{"$f":"Import!E32101","v":"Select"},{"$f":"Import!E32121","v":"Select"},{"$f":"Import!E32141","v":0},{"$f":"Import!E32161","v":0},{"$f":"Import!E32181","v":0}]
[7,{"$f":"Import!E32062","v":"Select"},{"$f":"Import!E32082","v":"Select"},{"$f":"Import!E32102","v":"Select"},{"$f":"Import!E32122","v":"Select"},{"$f":"Import!E32142","v":0},{"$f":"Import!E32162","v":0},{"$f":"Import!E32182","v":0}]
[8,{"$f":"Import!E32063","v":"Select"},{"$f":"Import!E32083","v":"Select"},{"$f":"Import!E32103","v":"Select"},{"$f":"Import!E32123","v":"Select"},{"$f":"Import!E32143","v":0},{"$f":"Import!E32163","v":0},{"$f":"Import!E32183","v":0}]
[9,{"$f":"Import!E32064","v":"Select"},{"$f":"Import!E32084","v":"Select"},{"$f":"Import!E32104","v":"Select"},{"$f":"Import!E32124","v":"Select"},{"$f":"Import!E32144","v":0},{"$f":"Import!E32164","v":0},{"$f":"Import!E32184","v":0}]
[10,{"$f":"Import!E32065","v":"Select"},{"$f":"Import!E32085","v":"Select"},{"$f":"Import!E32105","v":"Select"},{"$f":"Import!E32125","v":"Select"},{"$f":"Import!E32145","v":0},{"$f":"Import!E32165","v":0},{"$f":"Import!E32185","v":0}]
[11,{"$f":"Import!E32066","v":"Select"},{"$f":"Import!E32086","v":"Select"},{"$f":"Import!E32106","v":"Select"},{"$f":"Import!E32126","v":"Select"},{"$f":"Import!E32146","v":0},{"$f":"Import!E32166","v":0},{"$f":"Import!E32186","v":0}]
[12,{"$f":"Import!E32067","v":"Select"},{"$f":"Import!E32087","v":"Select"},{"$f":"Import!E32107","v":"Select"},{"$f":"Import!E32127","v":"Select"},{"$f":"Import!E32147","v":0},{"$f":"Import!E32167","v":0},{"$f":"Import!E32187","v":0}]
[13,{"$f":"Import!E32068","v":"Select"},{"$f":"Import!E32088","v":"Select"},{"$f":"Import!E32108","v":"Select"},{"$f":"Import!E32128","v":"Select"},{"$f":"Import!E32148","v":0},{"$f":"Import!E32168","v":0},{"$f":"Import!E32188","v":0}]
[14,{"$f":"Import!E32069","v":"Select"},{"$f":"Import!E32089","v":"Select"},{"$f":"Import!E32109","v":"Select"},{"$f":"Import!E32129","v":"Select"},{"$f":"Import!E32149","v":0},{"$f":"Import!E32169","v":0},{"$f":"Import!E32189","v":0}]
[15,{"$f":"Import!E32070","v":"Select"},{"$f":"Import!E32090","v":"Select"},{"$f":"Import!E32110","v":"Select"},{"$f":"Import!E32130","v":"Select"},{"$f":"Import!E32150","v":0},{"$f":"Import!E32170","v":0},{"$f":"Import!E32190","v":0}]
[16,{"$f":"Import!E32071","v":"Select"},{"$f":"Import!E32091","v":"Select"},{"$f":"Import!E32111","v":"Select"},{"$f":"Import!E32131","v":"Select"},{"$f":"Import!E32151","v":0},{"$f":"Import!E32171","v":0},{"$f":"Import!E32191","v":0}]
[17,{"$f":"Import!E32072","v":"Select"},{"$f":"Import!E32092","v":"Select"},{"$f":"Import!E32112","v":"Select"},{"$f":"Import!E32132","v":"Select"},{"$f":"Import!E32152","v":0},{"$f":"Import!E32172","v":0},{"$f":"Import!E32192","v":0}]
[18,{"$f":"Import!E32073","v":"Select"},{"$f":"Import!E32093","v":"Select"},{"$f":"Import!E32113","v":"Select"},{"$f":"Import!E32133","v":"Select"},{"$f":"Import!E32153","v":0},{"$f":"Import!E32173","v":0},{"$f":"Import!E32193","v":0}]
[19,{"$f":"Import!E32074","v":"Select"},{"$f":"Import!E32094","v":"Select"},{"$f":"Import!E32114","v":"Select"},{"$f":"Import!E32134","v":"Select"},{"$f":"Import!E32154","v":0},{"$f":"Import!E32174","v":0},{"$f":"Import!E32194","v":0}]
[20,{"$f":"Import!E32075","v":"Select"},{"$f":"Import!E32095","v":"Select"},{"$f":"Import!E32115","v":"Select"},{"$f":"Import!E32135","v":"Select"},{"$f":"Import!E32155","v":0},{"$f":"Import!E32175","v":0},{"$f":"Import!E32195","v":0}]
[]
[null,"Total Non-Performing Loans",null,null,null,{"$f":"SUM(F1101:F1120)","v":0},{"$f":"SUM(G1101:G1120)","v":0}]
[]
[null,"(E) PREFERRED EQUITIES"]
[]
[null,null,"Enter # of Asset Types",{"$f":"Import!E32196","v":0}]
[null,null,null,null,{"$f":"YEAR($C$3)","v":2023},2023,"Weighted"]
[null,"Asset Type","Currency","BSCR Rating","Nominal Amount","Fair Value","Average YTM","Effective Duration","Comments"]
[1,{"$f":"Import!E32197","v":"Select"},{"$f":"Import!E32297","v":"Select"},{"$f":"Import!E32397","v":"Select"},{"$f":"Import!E32497","v":0},{"$f":"Import!E32597","v":0},{"$f":"Import!E32697","v":0},{"$f":"Import!E32797","v":0},{"$f":"Import!E32897","v":0}]
[{"$f":"A1129+1","v":2},{"$f":"Import!E32198","v":"Select"},{"$f":"Import!E32298","v":"Select"},{"$f":"Import!E32398","v":"Select"},{"$f":"Import!E32498","v":0},{"$f":"Import!E32598","v":0},{"$f":"Import!E32698","v":0},{"$f":"Import!E32798","v":0},{"$f":"Import!E32898","v":0}]
[{"$f":"A1130+1","v":3},{"$f":"Import!E32199","v":"Select"},{"$f":"Import!E32299","v":"Select"},{"$f":"Import!E32399","v":"Select"},{"$f":"Import!E32499","v":0},{"$f":"Import!E32599","v":0},{"$f":"Import!E32699","v":0},{"$f":"Import!E32799","v":0},{"$f":"Import!E32899","v":0}]
[4,{"$f":"Import!E32200","v":"Select"},{"$f":"Import!E32300","v":"Select"},{"$f":"Import!E32400","v":"Select"},{"$f":"Import!E32500","v":0},{"$f":"Import!E32600","v":0},{"$f":"Import!E32700","v":0},{"$f":"Import!E32800","v":0},{"$f":"Import!E32900","v":0}]
[5,{"$f":"Import!E32201","v":"Select"},{"$f":"Import!E32301","v":"Select"},{"$f":"Import!E32401","v":"Select"},{"$f":"Import!E32501","v":0},{"$f":"Import!E32601","v":0},{"$f":"Import!E32701","v":0},{"$f":"Import!E32801","v":0},{"$f":"Import!E32901","v":0}]
[6,{"$f":"Import!E32202","v":"Select"},{"$f":"Import!E32302","v":"Select"},{"$f":"Import!E32402","v":"Select"},{"$f":"Import!E32502","v":0},{"$f":"Import!E32602","v":0},{"$f":"Import!E32702","v":0},{"$f":"Import!E32802","v":0},{"$f":"Import!E32902","v":0}]
[7,{"$f":"Import!E32203","v":"Select"},{"$f":"Import!E32303","v":"Select"},{"$f":"Import!E32403","v":"Select"},{"$f":"Import!E32503","v":0},{"$f":"Import!E32603","v":0},{"$f":"Import!E32703","v":0},{"$f":"Import!E32803","v":0},{"$f":"Import!E32903","v":0}]
[8,{"$f":"Import!E32204","v":"Select"},{"$f":"Import!E32304","v":"Select"},{"$f":"Import!E32404","v":"Select"},{"$f":"Import!E32504","v":0},{"$f":"Import!E32604","v":0},{"$f":"Import!E32704","v":0},{"$f":"Import!E32804","v":0},{"$f":"Import!E32904","v":0}]
[9,{"$f":"Import!E32205","v":"Select"},{"$f":"Import!E32305","v":"Select"},{"$f":"Import!E32405","v":"Select"},{"$f":"Import!E32505","v":0},{"$f":"Import!E32605","v":0},{"$f":"Import!E32705","v":0},{"$f":"Import!E32805","v":0},{"$f":"Import!E32905","v":0}]
[10,{"$f":"Import!E32206","v":"Select"},{"$f":"Import!E32306","v":"Select"},{"$f":"Import!E32406","v":"Select"},{"$f":"Import!E32506","v":0},{"$f":"Import!E32606","v":0},{"$f":"Import!E32706","v":0},{"$f":"Import!E32806","v":0},{"$f":"Import!E32906","v":0}]
[11,{"$f":"Import!E32207","v":"Select"},{"$f":"Import!E32307","v":"Select"},{"$f":"Import!E32407","v":"Select"},{"$f":"Import!E32507","v":0},{"$f":"Import!E32607","v":0},{"$f":"Import!E32707","v":0},{"$f":"Import!E32807","v":0},{"$f":"Import!E32907","v":0}]
[12,{"$f":"Import!E32208","v":"Select"},{"$f":"Import!E32308","v":"Select"},{"$f":"Import!E32408","v":"Select"},{"$f":"Import!E32508","v":0},{"$f":"Import!E32608","v":0},{"$f":"Import!E32708","v":0},{"$f":"Import!E32808","v":0},{"$f":"Import!E32908","v":0}]
[13,{"$f":"Import!E32209","v":"Select"},{"$f":"Import!E32309","v":"Select"},{"$f":"Import!E32409","v":"Select"},{"$f":"Import!E32509","v":0},{"$f":"Import!E32609","v":0},{"$f":"Import!E32709","v":0},{"$f":"Import!E32809","v":0},{"$f":"Import!E32909","v":0}]
[14,{"$f":"Import!E32210","v":"Select"},{"$f":"Import!E32310","v":"Select"},{"$f":"Import!E32410","v":"Select"},{"$f":"Import!E32510","v":0},{"$f":"Import!E32610","v":0},{"$f":"Import!E32710","v":0},{"$f":"Import!E32810","v":0},{"$f":"Import!E32910","v":0}]
[15,{"$f":"Import!E32211","v":"Select"},{"$f":"Import!E32311","v":"Select"},{"$f":"Import!E32411","v":"Select"},{"$f":"Import!E32511","v":0},{"$f":"Import!E32611","v":0},{"$f":"Import!E32711","v":0},{"$f":"Import!E32811","v":0},{"$f":"Import!E32911","v":0}]
[16,{"$f":"Import!E32212","v":"Select"},{"$f":"Import!E32312","v":"Select"},{"$f":"Import!E32412","v":"Select"},{"$f":"Import!E32512","v":0},{"$f":"Import!E32612","v":0},{"$f":"Import!E32712","v":0},{"$f":"Import!E32812","v":0},{"$f":"Import!E32912","v":0}]
[17,{"$f":"Import!E32213","v":"Select"},{"$f":"Import!E32313","v":"Select"},{"$f":"Import!E32413","v":"Select"},{"$f":"Import!E32513","v":0},{"$f":"Import!E32613","v":0},{"$f":"Import!E32713","v":0},{"$f":"Import!E32813","v":0},{"$f":"Import!E32913","v":0}]
[18,{"$f":"Import!E32214","v":"Select"},{"$f":"Import!E32314","v":"Select"},{"$f":"Import!E32414","v":"Select"},{"$f":"Import!E32514","v":0},{"$f":"Import!E32614","v":0},{"$f":"Import!E32714","v":0},{"$f":"Import!E32814","v":0},{"$f":"Import!E32914","v":0}]
[19,{"$f":"Import!E32215","v":"Select"},{"$f":"Import!E32315","v":"Select"},{"$f":"Import!E32415","v":"Select"},{"$f":"Import!E32515","v":0},{"$f":"Import!E32615","v":0},{"$f":"Import!E32715","v":0},{"$f":"Import!E32815","v":0},{"$f":"Import!E32915","v":0}]
[20,{"$f":"Import!E32216","v":"Select"},{"$f":"Import!E32316","v":"Select"},{"$f":"Import!E32416","v":"Select"},{"$f":"Import!E32516","v":0},{"$f":"Import!E32616","v":0},{"$f":"Import!E32716","v":0},{"$f":"Import!E32816","v":0},{"$f":"Import!E32916","v":0}]
[21,{"$f":"Import!E32217","v":"Select"},{"$f":"Import!E32317","v":"Select"},{"$f":"Import!E32417","v":"Select"},{"$f":"Import!E32517","v":0},{"$f":"Import!E32617","v":0},{"$f":"Import!E32717","v":0},{"$f":"Import!E32817","v":0},{"$f":"Import!E32917","v":0}]
[22,{"$f":"Import!E32218","v":"Select"},{"$f":"Import!E32318","v":"Select"},{"$f":"Import!E32418","v":"Select"},{"$f":"Import!E32518","v":0},{"$f":"Import!E32618","v":0},{"$f":"Import!E32718","v":0},{"$f":"Import!E32818","v":0},{"$f":"Import!E32918","v":0}]
[23,{"$f":"Import!E32219","v":"Select"},{"$f":"Import!E32319","v":"Select"},{"$f":"Import!E32419","v":"Select"},{"$f":"Import!E32519","v":0},{"$f":"Import!E32619","v":0},{"$f":"Import!E32719","v":0},{"$f":"Import!E32819","v":0},{"$f":"Import!E32919","v":0}]
[24,{"$f":"Import!E32220","v":"Select"},{"$f":"Import!E32320","v":"Select"},{"$f":"Import!E32420","v":"Select"},{"$f":"Import!E32520","v":0},{"$f":"Import!E32620","v":0},{"$f":"Import!E32720","v":0},{"$f":"Import!E32820","v":0},{"$f":"Import!E32920","v":0}]
[25,{"$f":"Import!E32221","v":"Select"},{"$f":"Import!E32321","v":"Select"},{"$f":"Import!E32421","v":"Select"},{"$f":"Import!E32521","v":0},{"$f":"Import!E32621","v":0},{"$f":"Import!E32721","v":0},{"$f":"Import!E32821","v":0},{"$f":"Import!E32921","v":0}]
[26,{"$f":"Import!E32222","v":"Select"},{"$f":"Import!E32322","v":"Select"},{"$f":"Import!E32422","v":"Select"},{"$f":"Import!E32522","v":0},{"$f":"Import!E32622","v":0},{"$f":"Import!E32722","v":0},{"$f":"Import!E32822","v":0},{"$f":"Import!E32922","v":0}]
[27,{"$f":"Import!E32223","v":"Select"},{"$f":"Import!E32323","v":"Select"},{"$f":"Import!E32423","v":"Select"},{"$f":"Import!E32523","v":0},{"$f":"Import!E32623","v":0},{"$f":"Import!E32723","v":0},{"$f":"Import!E32823","v":0},{"$f":"Import!E32923","v":0}]
[28,{"$f":"Import!E32224","v":"Select"},{"$f":"Import!E32324","v":"Select"},{"$f":"Import!E32424","v":"Select"},{"$f":"Import!E32524","v":0},{"$f":"Import!E32624","v":0},{"$f":"Import!E32724","v":0},{"$f":"Import!E32824","v":0},{"$f":"Import!E32924","v":0}]
[29,{"$f":"Import!E32225","v":"Select"},{"$f":"Import!E32325","v":"Select"},{"$f":"Import!E32425","v":"Select"},{"$f":"Import!E32525","v":0},{"$f":"Import!E32625","v":0},{"$f":"Import!E32725","v":0},{"$f":"Import!E32825","v":0},{"$f":"Import!E32925","v":0}]
[30,{"$f":"Import!E32226","v":"Select"},{"$f":"Import!E32326","v":"Select"},{"$f":"Import!E32426","v":"Select"},{"$f":"Import!E32526","v":0},{"$f":"Import!E32626","v":0},{"$f":"Import!E32726","v":0},{"$f":"Import!E32826","v":0},{"$f":"Import!E32926","v":0}]
[31,{"$f":"Import!E32227","v":"Select"},{"$f":"Import!E32327","v":"Select"},{"$f":"Import!E32427","v":"Select"},{"$f":"Import!E32527","v":0},{"$f":"Import!E32627","v":0},{"$f":"Import!E32727","v":0},{"$f":"Import!E32827","v":0},{"$f":"Import!E32927","v":0}]
[32,{"$f":"Import!E32228","v":"Select"},{"$f":"Import!E32328","v":"Select"},{"$f":"Import!E32428","v":"Select"},{"$f":"Import!E32528","v":0},{"$f":"Import!E32628","v":0},{"$f":"Import!E32728","v":0},{"$f":"Import!E32828","v":0},{"$f":"Import!E32928","v":0}]
[33,{"$f":"Import!E32229","v":"Select"},{"$f":"Import!E32329","v":"Select"},{"$f":"Import!E32429","v":"Select"},{"$f":"Import!E32529","v":0},{"$f":"Import!E32629","v":0},{"$f":"Import!E32729","v":0},{"$f":"Import!E32829","v":0},{"$f":"Import!E32929","v":0}]
[34,{"$f":"Import!E32230","v":"Select"},{"$f":"Import!E32330","v":"Select"},{"$f":"Import!E32430","v":"Select"},{"$f":"Import!E32530","v":0},{"$f":"Import!E32630","v":0},{"$f":"Import!E32730","v":0},{"$f":"Import!E32830","v":0},{"$f":"Import!E32930","v":0}]
[35,{"$f":"Import!E32231","v":"Select"},{"$f":"Import!E32331","v":"Select"},{"$f":"Import!E32431","v":"Select"},{"$f":"Import!E32531","v":0},{"$f":"Import!E32631","v":0},{"$f":"Import!E32731","v":0},{"$f":"Import!E32831","v":0},{"$f":"Import!E32931","v":0}]
[36,{"$f":"Import!E32232","v":"Select"},{"$f":"Import!E32332","v":"Select"},{"$f":"Import!E32432","v":"Select"},{"$f":"Import!E32532","v":0},{"$f":"Import!E32632","v":0},{"$f":"Import!E32732","v":0},{"$f":"Import!E32832","v":0},{"$f":"Import!E32932","v":0}]
[37,{"$f":"Import!E32233","v":"Select"},{"$f":"Import!E32333","v":"Select"},{"$f":"Import!E32433","v":"Select"},{"$f":"Import!E32533","v":0},{"$f":"Import!E32633","v":0},{"$f":"Import!E32733","v":0},{"$f":"Import!E32833","v":0},{"$f":"Import!E32933","v":0}]
[38,{"$f":"Import!E32234","v":"Select"},{"$f":"Import!E32334","v":"Select"},{"$f":"Import!E32434","v":"Select"},{"$f":"Import!E32534","v":0},{"$f":"Import!E32634","v":0},{"$f":"Import!E32734","v":0},{"$f":"Import!E32834","v":0},{"$f":"Import!E32934","v":0}]
[39,{"$f":"Import!E32235","v":"Select"},{"$f":"Import!E32335","v":"Select"},{"$f":"Import!E32435","v":"Select"},{"$f":"Import!E32535","v":0},{"$f":"Import!E32635","v":0},{"$f":"Import!E32735","v":0},{"$f":"Import!E32835","v":0},{"$f":"Import!E32935","v":0}]
[40,{"$f":"Import!E32236","v":"Select"},{"$f":"Import!E32336","v":"Select"},{"$f":"Import!E32436","v":"Select"},{"$f":"Import!E32536","v":0},{"$f":"Import!E32636","v":0},{"$f":"Import!E32736","v":0},{"$f":"Import!E32836","v":0},{"$f":"Import!E32936","v":0}]
[41,{"$f":"Import!E32237","v":"Select"},{"$f":"Import!E32337","v":"Select"},{"$f":"Import!E32437","v":"Select"},{"$f":"Import!E32537","v":0},{"$f":"Import!E32637","v":0},{"$f":"Import!E32737","v":0},{"$f":"Import!E32837","v":0},{"$f":"Import!E32937","v":0}]
[42,{"$f":"Import!E32238","v":"Select"},{"$f":"Import!E32338","v":"Select"},{"$f":"Import!E32438","v":"Select"},{"$f":"Import!E32538","v":0},{"$f":"Import!E32638","v":0},{"$f":"Import!E32738","v":0},{"$f":"Import!E32838","v":0},{"$f":"Import!E32938","v":0}]
[43,{"$f":"Import!E32239","v":"Select"},{"$f":"Import!E32339","v":"Select"},{"$f":"Import!E32439","v":"Select"},{"$f":"Import!E32539","v":0},{"$f":"Import!E32639","v":0},{"$f":"Import!E32739","v":0},{"$f":"Import!E32839","v":0},{"$f":"Import!E32939","v":0}]
[44,{"$f":"Import!E32240","v":"Select"},{"$f":"Import!E32340","v":"Select"},{"$f":"Import!E32440","v":"Select"},{"$f":"Import!E32540","v":0},{"$f":"Import!E32640","v":0},{"$f":"Import!E32740","v":0},{"$f":"Import!E32840","v":0},{"$f":"Import!E32940","v":0}]
[45,{"$f":"Import!E32241","v":"Select"},{"$f":"Import!E32341","v":"Select"},{"$f":"Import!E32441","v":"Select"},{"$f":"Import!E32541","v":0},{"$f":"Import!E32641","v":0},{"$f":"Import!E32741","v":0},{"$f":"Import!E32841","v":0},{"$f":"Import!E32941","v":0}]
[46,{"$f":"Import!E32242","v":"Select"},{"$f":"Import!E32342","v":"Select"},{"$f":"Import!E32442","v":"Select"},{"$f":"Import!E32542","v":0},{"$f":"Import!E32642","v":0},{"$f":"Import!E32742","v":0},{"$f":"Import!E32842","v":0},{"$f":"Import!E32942","v":0}]
[47,{"$f":"Import!E32243","v":"Select"},{"$f":"Import!E32343","v":"Select"},{"$f":"Import!E32443","v":"Select"},{"$f":"Import!E32543","v":0},{"$f":"Import!E32643","v":0},{"$f":"Import!E32743","v":0},{"$f":"Import!E32843","v":0},{"$f":"Import!E32943","v":0}]
[48,{"$f":"Import!E32244","v":"Select"},{"$f":"Import!E32344","v":"Select"},{"$f":"Import!E32444","v":"Select"},{"$f":"Import!E32544","v":0},{"$f":"Import!E32644","v":0},{"$f":"Import!E32744","v":0},{"$f":"Import!E32844","v":0},{"$f":"Import!E32944","v":0}]
[49,{"$f":"Import!E32245","v":"Select"},{"$f":"Import!E32345","v":"Select"},{"$f":"Import!E32445","v":"Select"},{"$f":"Import!E32545","v":0},{"$f":"Import!E32645","v":0},{"$f":"Import!E32745","v":0},{"$f":"Import!E32845","v":0},{"$f":"Import!E32945","v":0}]
[50,{"$f":"Import!E32246","v":"Select"},{"$f":"Import!E32346","v":"Select"},{"$f":"Import!E32446","v":"Select"},{"$f":"Import!E32546","v":0},{"$f":"Import!E32646","v":0},{"$f":"Import!E32746","v":0},{"$f":"Import!E32846","v":0},{"$f":"Import!E32946","v":0}]
[51,{"$f":"Import!E32247","v":"Select"},{"$f":"Import!E32347","v":"Select"},{"$f":"Import!E32447","v":"Select"},{"$f":"Import!E32547","v":0},{"$f":"Import!E32647","v":0},{"$f":"Import!E32747","v":0},{"$f":"Import!E32847","v":0},{"$f":"Import!E32947","v":0}]
[52,{"$f":"Import!E32248","v":"Select"},{"$f":"Import!E32348","v":"Select"},{"$f":"Import!E32448","v":"Select"},{"$f":"Import!E32548","v":0},{"$f":"Import!E32648","v":0},{"$f":"Import!E32748","v":0},{"$f":"Import!E32848","v":0},{"$f":"Import!E32948","v":0}]
[53,{"$f":"Import!E32249","v":"Select"},{"$f":"Import!E32349","v":"Select"},{"$f":"Import!E32449","v":"Select"},{"$f":"Import!E32549","v":0},{"$f":"Import!E32649","v":0},{"$f":"Import!E32749","v":0},{"$f":"Import!E32849","v":0},{"$f":"Import!E32949","v":0}]
[54,{"$f":"Import!E32250","v":"Select"},{"$f":"Import!E32350","v":"Select"},{"$f":"Import!E32450","v":"Select"},{"$f":"Import!E32550","v":0},{"$f":"Import!E32650","v":0},{"$f":"Import!E32750","v":0},{"$f":"Import!E32850","v":0},{"$f":"Import!E32950","v":0}]
[55,{"$f":"Import!E32251","v":"Select"},{"$f":"Import!E32351","v":"Select"},{"$f":"Import!E32451","v":"Select"},{"$f":"Import!E32551","v":0},{"$f":"Import!E32651","v":0},{"$f":"Import!E32751","v":0},{"$f":"Import!E32851","v":0},{"$f":"Import!E32951","v":0}]
[56,{"$f":"Import!E32252","v":"Select"},{"$f":"Import!E32352","v":"Select"},{"$f":"Import!E32452","v":"Select"},{"$f":"Import!E32552","v":0},{"$f":"Import!E32652","v":0},{"$f":"Import!E32752","v":0},{"$f":"Import!E32852","v":0},{"$f":"Import!E32952","v":0}]
[57,{"$f":"Import!E32253","v":"Select"},{"$f":"Import!E32353","v":"Select"},{"$f":"Import!E32453","v":"Select"},{"$f":"Import!E32553","v":0},{"$f":"Import!E32653","v":0},{"$f":"Import!E32753","v":0},{"$f":"Import!E32853","v":0},{"$f":"Import!E32953","v":0}]
[58,{"$f":"Import!E32254","v":"Select"},{"$f":"Import!E32354","v":"Select"},{"$f":"Import!E32454","v":"Select"},{"$f":"Import!E32554","v":0},{"$f":"Import!E32654","v":0},{"$f":"Import!E32754","v":0},{"$f":"Import!E32854","v":0},{"$f":"Import!E32954","v":0}]
[59,{"$f":"Import!E32255","v":"Select"},{"$f":"Import!E32355","v":"Select"},{"$f":"Import!E32455","v":"Select"},{"$f":"Import!E32555","v":0},{"$f":"Import!E32655","v":0},{"$f":"Import!E32755","v":0},{"$f":"Import!E32855","v":0},{"$f":"Import!E32955","v":0}]
[60,{"$f":"Import!E32256","v":"Select"},{"$f":"Import!E32356","v":"Select"},{"$f":"Import!E32456","v":"Select"},{"$f":"Import!E32556","v":0},{"$f":"Import!E32656","v":0},{"$f":"Import!E32756","v":0},{"$f":"Import!E32856","v":0},{"$f":"Import!E32956","v":0}]
[61,{"$f":"Import!E32257","v":"Select"},{"$f":"Import!E32357","v":"Select"},{"$f":"Import!E32457","v":"Select"},{"$f":"Import!E32557","v":0},{"$f":"Import!E32657","v":0},{"$f":"Import!E32757","v":0},{"$f":"Import!E32857","v":0},{"$f":"Import!E32957","v":0}]
[62,{"$f":"Import!E32258","v":"Select"},{"$f":"Import!E32358","v":"Select"},{"$f":"Import!E32458","v":"Select"},{"$f":"Import!E32558","v":0},{"$f":"Import!E32658","v":0},{"$f":"Import!E32758","v":0},{"$f":"Import!E32858","v":0},{"$f":"Import!E32958","v":0}]
[63,{"$f":"Import!E32259","v":"Select"},{"$f":"Import!E32359","v":"Select"},{"$f":"Import!E32459","v":"Select"},{"$f":"Import!E32559","v":0},{"$f":"Import!E32659","v":0},{"$f":"Import!E32759","v":0},{"$f":"Import!E32859","v":0},{"$f":"Import!E32959","v":0}]
[64,{"$f":"Import!E32260","v":"Select"},{"$f":"Import!E32360","v":"Select"},{"$f":"Import!E32460","v":"Select"},{"$f":"Import!E32560","v":0},{"$f":"Import!E32660","v":0},{"$f":"Import!E32760","v":0},{"$f":"Import!E32860","v":0},{"$f":"Import!E32960","v":0}]
[65,{"$f":"Import!E32261","v":"Select"},{"$f":"Import!E32361","v":"Select"},{"$f":"Import!E32461","v":"Select"},{"$f":"Import!E32561","v":0},{"$f":"Import!E32661","v":0},{"$f":"Import!E32761","v":0},{"$f":"Import!E32861","v":0},{"$f":"Import!E32961","v":0}]
[66,{"$f":"Import!E32262","v":"Select"},{"$f":"Import!E32362","v":"Select"},{"$f":"Import!E32462","v":"Select"},{"$f":"Import!E32562","v":0},{"$f":"Import!E32662","v":0},{"$f":"Import!E32762","v":0},{"$f":"Import!E32862","v":0},{"$f":"Import!E32962","v":0}]
[{"$f":"A1194+1","v":67},{"$f":"Import!E32263","v":"Select"},{"$f":"Import!E32363","v":"Select"},{"$f":"Import!E32463","v":"Select"},{"$f":"Import!E32563","v":0},{"$f":"Import!E32663","v":0},{"$f":"Import!E32763","v":0},{"$f":"Import!E32863","v":0},{"$f":"Import!E32963","v":0}]
[68,{"$f":"Import!E32264","v":"Select"},{"$f":"Import!E32364","v":"Select"},{"$f":"Import!E32464","v":"Select"},{"$f":"Import!E32564","v":0},{"$f":"Import!E32664","v":0},{"$f":"Import!E32764","v":0},{"$f":"Import!E32864","v":0},{"$f":"Import!E32964","v":0}]
[69,{"$f":"Import!E32265","v":"Select"},{"$f":"Import!E32365","v":"Select"},{"$f":"Import!E32465","v":"Select"},{"$f":"Import!E32565","v":0},{"$f":"Import!E32665","v":0},{"$f":"Import!E32765","v":0},{"$f":"Import!E32865","v":0},{"$f":"Import!E32965","v":0}]
[70,{"$f":"Import!E32266","v":"Select"},{"$f":"Import!E32366","v":"Select"},{"$f":"Import!E32466","v":"Select"},{"$f":"Import!E32566","v":0},{"$f":"Import!E32666","v":0},{"$f":"Import!E32766","v":0},{"$f":"Import!E32866","v":0},{"$f":"Import!E32966","v":0}]
[71,{"$f":"Import!E32267","v":"Select"},{"$f":"Import!E32367","v":"Select"},{"$f":"Import!E32467","v":"Select"},{"$f":"Import!E32567","v":0},{"$f":"Import!E32667","v":0},{"$f":"Import!E32767","v":0},{"$f":"Import!E32867","v":0},{"$f":"Import!E32967","v":0}]
[72,{"$f":"Import!E32268","v":"Select"},{"$f":"Import!E32368","v":"Select"},{"$f":"Import!E32468","v":"Select"},{"$f":"Import!E32568","v":0},{"$f":"Import!E32668","v":0},{"$f":"Import!E32768","v":0},{"$f":"Import!E32868","v":0},{"$f":"Import!E32968","v":0}]
[73,{"$f":"Import!E32269","v":"Select"},{"$f":"Import!E32369","v":"Select"},{"$f":"Import!E32469","v":"Select"},{"$f":"Import!E32569","v":0},{"$f":"Import!E32669","v":0},{"$f":"Import!E32769","v":0},{"$f":"Import!E32869","v":0},{"$f":"Import!E32969","v":0}]
[74,{"$f":"Import!E32270","v":"Select"},{"$f":"Import!E32370","v":"Select"},{"$f":"Import!E32470","v":"Select"},{"$f":"Import!E32570","v":0},{"$f":"Import!E32670","v":0},{"$f":"Import!E32770","v":0},{"$f":"Import!E32870","v":0},{"$f":"Import!E32970","v":0}]
[75,{"$f":"Import!E32271","v":"Select"},{"$f":"Import!E32371","v":"Select"},{"$f":"Import!E32471","v":"Select"},{"$f":"Import!E32571","v":0},{"$f":"Import!E32671","v":0},{"$f":"Import!E32771","v":0},{"$f":"Import!E32871","v":0},{"$f":"Import!E32971","v":0}]
[76,{"$f":"Import!E32272","v":"Select"},{"$f":"Import!E32372","v":"Select"},{"$f":"Import!E32472","v":"Select"},{"$f":"Import!E32572","v":0},{"$f":"Import!E32672","v":0},{"$f":"Import!E32772","v":0},{"$f":"Import!E32872","v":0},{"$f":"Import!E32972","v":0}]
[77,{"$f":"Import!E32273","v":"Select"},{"$f":"Import!E32373","v":"Select"},{"$f":"Import!E32473","v":"Select"},{"$f":"Import!E32573","v":0},{"$f":"Import!E32673","v":0},{"$f":"Import!E32773","v":0},{"$f":"Import!E32873","v":0},{"$f":"Import!E32973","v":0}]
[78,{"$f":"Import!E32274","v":"Select"},{"$f":"Import!E32374","v":"Select"},{"$f":"Import!E32474","v":"Select"},{"$f":"Import!E32574","v":0},{"$f":"Import!E32674","v":0},{"$f":"Import!E32774","v":0},{"$f":"Import!E32874","v":0},{"$f":"Import!E32974","v":0}]
[79,{"$f":"Import!E32275","v":"Select"},{"$f":"Import!E32375","v":"Select"},{"$f":"Import!E32475","v":"Select"},{"$f":"Import!E32575","v":0},{"$f":"Import!E32675","v":0},{"$f":"Import!E32775","v":0},{"$f":"Import!E32875","v":0},{"$f":"Import!E32975","v":0}]
[80,{"$f":"Import!E32276","v":"Select"},{"$f":"Import!E32376","v":"Select"},{"$f":"Import!E32476","v":"Select"},{"$f":"Import!E32576","v":0},{"$f":"Import!E32676","v":0},{"$f":"Import!E32776","v":0},{"$f":"Import!E32876","v":0},{"$f":"Import!E32976","v":0}]
[81,{"$f":"Import!E32277","v":"Select"},{"$f":"Import!E32377","v":"Select"},{"$f":"Import!E32477","v":"Select"},{"$f":"Import!E32577","v":0},{"$f":"Import!E32677","v":0},{"$f":"Import!E32777","v":0},{"$f":"Import!E32877","v":0},{"$f":"Import!E32977","v":0}]
[82,{"$f":"Import!E32278","v":"Select"},{"$f":"Import!E32378","v":"Select"},{"$f":"Import!E32478","v":"Select"},{"$f":"Import!E32578","v":0},{"$f":"Import!E32678","v":0},{"$f":"Import!E32778","v":0},{"$f":"Import!E32878","v":0},{"$f":"Import!E32978","v":0}]
[83,{"$f":"Import!E32279","v":"Select"},{"$f":"Import!E32379","v":"Select"},{"$f":"Import!E32479","v":"Select"},{"$f":"Import!E32579","v":0},{"$f":"Import!E32679","v":0},{"$f":"Import!E32779","v":0},{"$f":"Import!E32879","v":0},{"$f":"Import!E32979","v":0}]
[84,{"$f":"Import!E32280","v":"Select"},{"$f":"Import!E32380","v":"Select"},{"$f":"Import!E32480","v":"Select"},{"$f":"Import!E32580","v":0},{"$f":"Import!E32680","v":0},{"$f":"Import!E32780","v":0},{"$f":"Import!E32880","v":0},{"$f":"Import!E32980","v":0}]
[85,{"$f":"Import!E32281","v":"Select"},{"$f":"Import!E32381","v":"Select"},{"$f":"Import!E32481","v":"Select"},{"$f":"Import!E32581","v":0},{"$f":"Import!E32681","v":0},{"$f":"Import!E32781","v":0},{"$f":"Import!E32881","v":0},{"$f":"Import!E32981","v":0}]
[86,{"$f":"Import!E32282","v":"Select"},{"$f":"Import!E32382","v":"Select"},{"$f":"Import!E32482","v":"Select"},{"$f":"Import!E32582","v":0},{"$f":"Import!E32682","v":0},{"$f":"Import!E32782","v":0},{"$f":"Import!E32882","v":0},{"$f":"Import!E32982","v":0}]
[87,{"$f":"Import!E32283","v":"Select"},{"$f":"Import!E32383","v":"Select"},{"$f":"Import!E32483","v":"Select"},{"$f":"Import!E32583","v":0},{"$f":"Import!E32683","v":0},{"$f":"Import!E32783","v":0},{"$f":"Import!E32883","v":0},{"$f":"Import!E32983","v":0}]
[88,{"$f":"Import!E32284","v":"Select"},{"$f":"Import!E32384","v":"Select"},{"$f":"Import!E32484","v":"Select"},{"$f":"Import!E32584","v":0},{"$f":"Import!E32684","v":0},{"$f":"Import!E32784","v":0},{"$f":"Import!E32884","v":0},{"$f":"Import!E32984","v":0}]
[89,{"$f":"Import!E32285","v":"Select"},{"$f":"Import!E32385","v":"Select"},{"$f":"Import!E32485","v":"Select"},{"$f":"Import!E32585","v":0},{"$f":"Import!E32685","v":0},{"$f":"Import!E32785","v":0},{"$f":"Import!E32885","v":0},{"$f":"Import!E32985","v":0}]
[90,{"$f":"Import!E32286","v":"Select"},{"$f":"Import!E32386","v":"Select"},{"$f":"Import!E32486","v":"Select"},{"$f":"Import!E32586","v":0},{"$f":"Import!E32686","v":0},{"$f":"Import!E32786","v":0},{"$f":"Import!E32886","v":0},{"$f":"Import!E32986","v":0}]
[91,{"$f":"Import!E32287","v":"Select"},{"$f":"Import!E32387","v":"Select"},{"$f":"Import!E32487","v":"Select"},{"$f":"Import!E32587","v":0},{"$f":"Import!E32687","v":0},{"$f":"Import!E32787","v":0},{"$f":"Import!E32887","v":0},{"$f":"Import!E32987","v":0}]
[92,{"$f":"Import!E32288","v":"Select"},{"$f":"Import!E32388","v":"Select"},{"$f":"Import!E32488","v":"Select"},{"$f":"Import!E32588","v":0},{"$f":"Import!E32688","v":0},{"$f":"Import!E32788","v":0},{"$f":"Import!E32888","v":0},{"$f":"Import!E32988","v":0}]
[93,{"$f":"Import!E32289","v":"Select"},{"$f":"Import!E32389","v":"Select"},{"$f":"Import!E32489","v":"Select"},{"$f":"Import!E32589","v":0},{"$f":"Import!E32689","v":0},{"$f":"Import!E32789","v":0},{"$f":"Import!E32889","v":0},{"$f":"Import!E32989","v":0}]
[94,{"$f":"Import!E32290","v":"Select"},{"$f":"Import!E32390","v":"Select"},{"$f":"Import!E32490","v":"Select"},{"$f":"Import!E32590","v":0},{"$f":"Import!E32690","v":0},{"$f":"Import!E32790","v":0},{"$f":"Import!E32890","v":0},{"$f":"Import!E32990","v":0}]
[95,{"$f":"Import!E32291","v":"Select"},{"$f":"Import!E32391","v":"Select"},{"$f":"Import!E32491","v":"Select"},{"$f":"Import!E32591","v":0},{"$f":"Import!E32691","v":0},{"$f":"Import!E32791","v":0},{"$f":"Import!E32891","v":0},{"$f":"Import!E32991","v":0}]
[96,{"$f":"Import!E32292","v":"Select"},{"$f":"Import!E32392","v":"Select"},{"$f":"Import!E32492","v":"Select"},{"$f":"Import!E32592","v":0},{"$f":"Import!E32692","v":0},{"$f":"Import!E32792","v":0},{"$f":"Import!E32892","v":0},{"$f":"Import!E32992","v":0}]
[97,{"$f":"Import!E32293","v":"Select"},{"$f":"Import!E32393","v":"Select"},{"$f":"Import!E32493","v":"Select"},{"$f":"Import!E32593","v":0},{"$f":"Import!E32693","v":0},{"$f":"Import!E32793","v":0},{"$f":"Import!E32893","v":0},{"$f":"Import!E32993","v":0}]
[98,{"$f":"Import!E32294","v":"Select"},{"$f":"Import!E32394","v":"Select"},{"$f":"Import!E32494","v":"Select"},{"$f":"Import!E32594","v":0},{"$f":"Import!E32694","v":0},{"$f":"Import!E32794","v":0},{"$f":"Import!E32894","v":0},{"$f":"Import!E32994","v":0}]
[99,{"$f":"Import!E32295","v":"Select"},{"$f":"Import!E32395","v":"Select"},{"$f":"Import!E32495","v":"Select"},{"$f":"Import!E32595","v":0},{"$f":"Import!E32695","v":0},{"$f":"Import!E32795","v":0},{"$f":"Import!E32895","v":0},{"$f":"Import!E32995","v":0}]
[100,{"$f":"Import!E32296","v":"Select"},{"$f":"Import!E32396","v":"Select"},{"$f":"Import!E32496","v":"Select"},{"$f":"Import!E32596","v":0},{"$f":"Import!E32696","v":0},{"$f":"Import!E32796","v":0},{"$f":"Import!E32896","v":0},{"$f":"Import!E32996","v":0}]
[]
[null,"Total Preferred Equities",null,null,{"$f":"SUM(E1129:E1228)","v":0},{"$f":"SUM(F1129:F1228)","v":0},{"$f":"IFERROR(SUMPRODUCT(G1129:G1228,$F1129:$F1228)/SUM($F1129:$F1228),0)","v":0},{"$f":"IFERROR(SUMPRODUCT(H1129:H1228,$F1129:$F1228)/SUM($F1129:$F1228),0)","v":0}]
[]
[null,"(F) COMMON EQUITIES"]
[]
[null,null,"Enter # of Asset Types",{"$f":"Import!E32997","v":0}]
[null,null,null,null,{"$f":"YEAR($C$3)","v":2023}]
[null,"Asset Type","Currency","Country","Fair Value","Comments"]
[1,{"$f":"Import!E32998","v":"Select"},{"$f":"Import!E33098","v":"Select"},{"$f":"Import!E33198","v":"Select"},{"$f":"Import!E33298","v":0},{"$f":"Import!E33398","v":0}]
[{"$f":"A1237+1","v":2},{"$f":"Import!E32999","v":"Select"},{"$f":"Import!E33099","v":"Select"},{"$f":"Import!E33199","v":"Select"},{"$f":"Import!E33299","v":0},{"$f":"Import!E33399","v":0}]
[{"$f":"A1238+1","v":3},{"$f":"Import!E33000","v":"Select"},{"$f":"Import!E33100","v":"Select"},{"$f":"Import!E33200","v":"Select"},{"$f":"Import!E33300","v":0},{"$f":"Import!E33400","v":0}]
[4,{"$f":"Import!E33001","v":"Select"},{"$f":"Import!E33101","v":"Select"},{"$f":"Import!E33201","v":"Select"},{"$f":"Import!E33301","v":0},{"$f":"Import!E33401","v":0}]
[5,{"$f":"Import!E33002","v":"Select"},{"$f":"Import!E33102","v":"Select"},{"$f":"Import!E33202","v":"Select"},{"$f":"Import!E33302","v":0},{"$f":"Import!E33402","v":0}]
[6,{"$f":"Import!E33003","v":"Select"},{"$f":"Import!E33103","v":"Select"},{"$f":"Import!E33203","v":"Select"},{"$f":"Import!E33303","v":0},{"$f":"Import!E33403","v":0}]
[7,{"$f":"Import!E33004","v":"Select"},{"$f":"Import!E33104","v":"Select"},{"$f":"Import!E33204","v":"Select"},{"$f":"Import!E33304","v":0},{"$f":"Import!E33404","v":0}]
[8,{"$f":"Import!E33005","v":"Select"},{"$f":"Import!E33105","v":"Select"},{"$f":"Import!E33205","v":"Select"},{"$f":"Import!E33305","v":0},{"$f":"Import!E33405","v":0}]
[9,{"$f":"Import!E33006","v":"Select"},{"$f":"Import!E33106","v":"Select"},{"$f":"Import!E33206","v":"Select"},{"$f":"Import!E33306","v":0},{"$f":"Import!E33406","v":0}]
[10,{"$f":"Import!E33007","v":"Select"},{"$f":"Import!E33107","v":"Select"},{"$f":"Import!E33207","v":"Select"},{"$f":"Import!E33307","v":0},{"$f":"Import!E33407","v":0}]
[11,{"$f":"Import!E33008","v":"Select"},{"$f":"Import!E33108","v":"Select"},{"$f":"Import!E33208","v":"Select"},{"$f":"Import!E33308","v":0},{"$f":"Import!E33408","v":0}]
[12,{"$f":"Import!E33009","v":"Select"},{"$f":"Import!E33109","v":"Select"},{"$f":"Import!E33209","v":"Select"},{"$f":"Import!E33309","v":0},{"$f":"Import!E33409","v":0}]
[13,{"$f":"Import!E33010","v":"Select"},{"$f":"Import!E33110","v":"Select"},{"$f":"Import!E33210","v":"Select"},{"$f":"Import!E33310","v":0},{"$f":"Import!E33410","v":0}]
[14,{"$f":"Import!E33011","v":"Select"},{"$f":"Import!E33111","v":"Select"},{"$f":"Import!E33211","v":"Select"},{"$f":"Import!E33311","v":0},{"$f":"Import!E33411","v":0}]
[15,{"$f":"Import!E33012","v":"Select"},{"$f":"Import!E33112","v":"Select"},{"$f":"Import!E33212","v":"Select"},{"$f":"Import!E33312","v":0},{"$f":"Import!E33412","v":0}]
[16,{"$f":"Import!E33013","v":"Select"},{"$f":"Import!E33113","v":"Select"},{"$f":"Import!E33213","v":"Select"},{"$f":"Import!E33313","v":0},{"$f":"Import!E33413","v":0}]
[17,{"$f":"Import!E33014","v":"Select"},{"$f":"Import!E33114","v":"Select"},{"$f":"Import!E33214","v":"Select"},{"$f":"Import!E33314","v":0},{"$f":"Import!E33414","v":0}]
[18,{"$f":"Import!E33015","v":"Select"},{"$f":"Import!E33115","v":"Select"},{"$f":"Import!E33215","v":"Select"},{"$f":"Import!E33315","v":0},{"$f":"Import!E33415","v":0}]
[19,{"$f":"Import!E33016","v":"Select"},{"$f":"Import!E33116","v":"Select"},{"$f":"Import!E33216","v":"Select"},{"$f":"Import!E33316","v":0},{"$f":"Import!E33416","v":0}]
[20,{"$f":"Import!E33017","v":"Select"},{"$f":"Import!E33117","v":"Select"},{"$f":"Import!E33217","v":"Select"},{"$f":"Import!E33317","v":0},{"$f":"Import!E33417","v":0}]
[21,{"$f":"Import!E33018","v":"Select"},{"$f":"Import!E33118","v":"Select"},{"$f":"Import!E33218","v":"Select"},{"$f":"Import!E33318","v":0},{"$f":"Import!E33418","v":0}]
[22,{"$f":"Import!E33019","v":"Select"},{"$f":"Import!E33119","v":"Select"},{"$f":"Import!E33219","v":"Select"},{"$f":"Import!E33319","v":0},{"$f":"Import!E33419","v":0}]
[23,{"$f":"Import!E33020","v":"Select"},{"$f":"Import!E33120","v":"Select"},{"$f":"Import!E33220","v":"Select"},{"$f":"Import!E33320","v":0},{"$f":"Import!E33420","v":0}]
[24,{"$f":"Import!E33021","v":"Select"},{"$f":"Import!E33121","v":"Select"},{"$f":"Import!E33221","v":"Select"},{"$f":"Import!E33321","v":0},{"$f":"Import!E33421","v":0}]
[25,{"$f":"Import!E33022","v":"Select"},{"$f":"Import!E33122","v":"Select"},{"$f":"Import!E33222","v":"Select"},{"$f":"Import!E33322","v":0},{"$f":"Import!E33422","v":0}]
[26,{"$f":"Import!E33023","v":"Select"},{"$f":"Import!E33123","v":"Select"},{"$f":"Import!E33223","v":"Select"},{"$f":"Import!E33323","v":0},{"$f":"Import!E33423","v":0}]
[27,{"$f":"Import!E33024","v":"Select"},{"$f":"Import!E33124","v":"Select"},{"$f":"Import!E33224","v":"Select"},{"$f":"Import!E33324","v":0},{"$f":"Import!E33424","v":0}]
[28,{"$f":"Import!E33025","v":"Select"},{"$f":"Import!E33125","v":"Select"},{"$f":"Import!E33225","v":"Select"},{"$f":"Import!E33325","v":0},{"$f":"Import!E33425","v":0}]
[29,{"$f":"Import!E33026","v":"Select"},{"$f":"Import!E33126","v":"Select"},{"$f":"Import!E33226","v":"Select"},{"$f":"Import!E33326","v":0},{"$f":"Import!E33426","v":0}]
[30,{"$f":"Import!E33027","v":"Select"},{"$f":"Import!E33127","v":"Select"},{"$f":"Import!E33227","v":"Select"},{"$f":"Import!E33327","v":0},{"$f":"Import!E33427","v":0}]
[31,{"$f":"Import!E33028","v":"Select"},{"$f":"Import!E33128","v":"Select"},{"$f":"Import!E33228","v":"Select"},{"$f":"Import!E33328","v":0},{"$f":"Import!E33428","v":0}]
[32,{"$f":"Import!E33029","v":"Select"},{"$f":"Import!E33129","v":"Select"},{"$f":"Import!E33229","v":"Select"},{"$f":"Import!E33329","v":0},{"$f":"Import!E33429","v":0}]
[33,{"$f":"Import!E33030","v":"Select"},{"$f":"Import!E33130","v":"Select"},{"$f":"Import!E33230","v":"Select"},{"$f":"Import!E33330","v":0},{"$f":"Import!E33430","v":0}]
[34,{"$f":"Import!E33031","v":"Select"},{"$f":"Import!E33131","v":"Select"},{"$f":"Import!E33231","v":"Select"},{"$f":"Import!E33331","v":0},{"$f":"Import!E33431","v":0}]
[35,{"$f":"Import!E33032","v":"Select"},{"$f":"Import!E33132","v":"Select"},{"$f":"Import!E33232","v":"Select"},{"$f":"Import!E33332","v":0},{"$f":"Import!E33432","v":0}]
[36,{"$f":"Import!E33033","v":"Select"},{"$f":"Import!E33133","v":"Select"},{"$f":"Import!E33233","v":"Select"},{"$f":"Import!E33333","v":0},{"$f":"Import!E33433","v":0}]
[37,{"$f":"Import!E33034","v":"Select"},{"$f":"Import!E33134","v":"Select"},{"$f":"Import!E33234","v":"Select"},{"$f":"Import!E33334","v":0},{"$f":"Import!E33434","v":0}]
[38,{"$f":"Import!E33035","v":"Select"},{"$f":"Import!E33135","v":"Select"},{"$f":"Import!E33235","v":"Select"},{"$f":"Import!E33335","v":0},{"$f":"Import!E33435","v":0}]
[39,{"$f":"Import!E33036","v":"Select"},{"$f":"Import!E33136","v":"Select"},{"$f":"Import!E33236","v":"Select"},{"$f":"Import!E33336","v":0},{"$f":"Import!E33436","v":0}]
[40,{"$f":"Import!E33037","v":"Select"},{"$f":"Import!E33137","v":"Select"},{"$f":"Import!E33237","v":"Select"},{"$f":"Import!E33337","v":0},{"$f":"Import!E33437","v":0}]
[41,{"$f":"Import!E33038","v":"Select"},{"$f":"Import!E33138","v":"Select"},{"$f":"Import!E33238","v":"Select"},{"$f":"Import!E33338","v":0},{"$f":"Import!E33438","v":0}]
[42,{"$f":"Import!E33039","v":"Select"},{"$f":"Import!E33139","v":"Select"},{"$f":"Import!E33239","v":"Select"},{"$f":"Import!E33339","v":0},{"$f":"Import!E33439","v":0}]
[43,{"$f":"Import!E33040","v":"Select"},{"$f":"Import!E33140","v":"Select"},{"$f":"Import!E33240","v":"Select"},{"$f":"Import!E33340","v":0},{"$f":"Import!E33440","v":0}]
[44,{"$f":"Import!E33041","v":"Select"},{"$f":"Import!E33141","v":"Select"},{"$f":"Import!E33241","v":"Select"},{"$f":"Import!E33341","v":0},{"$f":"Import!E33441","v":0}]
[45,{"$f":"Import!E33042","v":"Select"},{"$f":"Import!E33142","v":"Select"},{"$f":"Import!E33242","v":"Select"},{"$f":"Import!E33342","v":0},{"$f":"Import!E33442","v":0}]
[46,{"$f":"Import!E33043","v":"Select"},{"$f":"Import!E33143","v":"Select"},{"$f":"Import!E33243","v":"Select"},{"$f":"Import!E33343","v":0},{"$f":"Import!E33443","v":0}]
[47,{"$f":"Import!E33044","v":"Select"},{"$f":"Import!E33144","v":"Select"},{"$f":"Import!E33244","v":"Select"},{"$f":"Import!E33344","v":0},{"$f":"Import!E33444","v":0}]
[48,{"$f":"Import!E33045","v":"Select"},{"$f":"Import!E33145","v":"Select"},{"$f":"Import!E33245","v":"Select"},{"$f":"Import!E33345","v":0},{"$f":"Import!E33445","v":0}]
[49,{"$f":"Import!E33046","v":"Select"},{"$f":"Import!E33146","v":"Select"},{"$f":"Import!E33246","v":"Select"},{"$f":"Import!E33346","v":0},{"$f":"Import!E33446","v":0}]
[50,{"$f":"Import!E33047","v":"Select"},{"$f":"Import!E33147","v":"Select"},{"$f":"Import!E33247","v":"Select"},{"$f":"Import!E33347","v":0},{"$f":"Import!E33447","v":0}]
[51,{"$f":"Import!E33048","v":"Select"},{"$f":"Import!E33148","v":"Select"},{"$f":"Import!E33248","v":"Select"},{"$f":"Import!E33348","v":0},{"$f":"Import!E33448","v":0}]
[52,{"$f":"Import!E33049","v":"Select"},{"$f":"Import!E33149","v":"Select"},{"$f":"Import!E33249","v":"Select"},{"$f":"Import!E33349","v":0},{"$f":"Import!E33449","v":0}]
[53,{"$f":"Import!E33050","v":"Select"},{"$f":"Import!E33150","v":"Select"},{"$f":"Import!E33250","v":"Select"},{"$f":"Import!E33350","v":0},{"$f":"Import!E33450","v":0}]
[54,{"$f":"Import!E33051","v":"Select"},{"$f":"Import!E33151","v":"Select"},{"$f":"Import!E33251","v":"Select"},{"$f":"Import!E33351","v":0},{"$f":"Import!E33451","v":0}]
[55,{"$f":"Import!E33052","v":"Select"},{"$f":"Import!E33152","v":"Select"},{"$f":"Import!E33252","v":"Select"},{"$f":"Import!E33352","v":0},{"$f":"Import!E33452","v":0}]
[56,{"$f":"Import!E33053","v":"Select"},{"$f":"Import!E33153","v":"Select"},{"$f":"Import!E33253","v":"Select"},{"$f":"Import!E33353","v":0},{"$f":"Import!E33453","v":0}]
[57,{"$f":"Import!E33054","v":"Select"},{"$f":"Import!E33154","v":"Select"},{"$f":"Import!E33254","v":"Select"},{"$f":"Import!E33354","v":0},{"$f":"Import!E33454","v":0}]
[58,{"$f":"Import!E33055","v":"Select"},{"$f":"Import!E33155","v":"Select"},{"$f":"Import!E33255","v":"Select"},{"$f":"Import!E33355","v":0},{"$f":"Import!E33455","v":0}]
[59,{"$f":"Import!E33056","v":"Select"},{"$f":"Import!E33156","v":"Select"},{"$f":"Import!E33256","v":"Select"},{"$f":"Import!E33356","v":0},{"$f":"Import!E33456","v":0}]
[60,{"$f":"Import!E33057","v":"Select"},{"$f":"Import!E33157","v":"Select"},{"$f":"Import!E33257","v":"Select"},{"$f":"Import!E33357","v":0},{"$f":"Import!E33457","v":0}]
[61,{"$f":"Import!E33058","v":"Select"},{"$f":"Import!E33158","v":"Select"},{"$f":"Import!E33258","v":"Select"},{"$f":"Import!E33358","v":0},{"$f":"Import!E33458","v":0}]
[62,{"$f":"Import!E33059","v":"Select"},{"$f":"Import!E33159","v":"Select"},{"$f":"Import!E33259","v":"Select"},{"$f":"Import!E33359","v":0},{"$f":"Import!E33459","v":0}]
[63,{"$f":"Import!E33060","v":"Select"},{"$f":"Import!E33160","v":"Select"},{"$f":"Import!E33260","v":"Select"},{"$f":"Import!E33360","v":0},{"$f":"Import!E33460","v":0}]
[64,{"$f":"Import!E33061","v":"Select"},{"$f":"Import!E33161","v":"Select"},{"$f":"Import!E33261","v":"Select"},{"$f":"Import!E33361","v":0},{"$f":"Import!E33461","v":0}]
[65,{"$f":"Import!E33062","v":"Select"},{"$f":"Import!E33162","v":"Select"},{"$f":"Import!E33262","v":"Select"},{"$f":"Import!E33362","v":0},{"$f":"Import!E33462","v":0}]
[66,{"$f":"Import!E33063","v":"Select"},{"$f":"Import!E33163","v":"Select"},{"$f":"Import!E33263","v":"Select"},{"$f":"Import!E33363","v":0},{"$f":"Import!E33463","v":0}]
[{"$f":"A1302+1","v":67},{"$f":"Import!E33064","v":"Select"},{"$f":"Import!E33164","v":"Select"},{"$f":"Import!E33264","v":"Select"},{"$f":"Import!E33364","v":0},{"$f":"Import!E33464","v":0}]
[68,{"$f":"Import!E33065","v":"Select"},{"$f":"Import!E33165","v":"Select"},{"$f":"Import!E33265","v":"Select"},{"$f":"Import!E33365","v":0},{"$f":"Import!E33465","v":0}]
[69,{"$f":"Import!E33066","v":"Select"},{"$f":"Import!E33166","v":"Select"},{"$f":"Import!E33266","v":"Select"},{"$f":"Import!E33366","v":0},{"$f":"Import!E33466","v":0}]
[70,{"$f":"Import!E33067","v":"Select"},{"$f":"Import!E33167","v":"Select"},{"$f":"Import!E33267","v":"Select"},{"$f":"Import!E33367","v":0},{"$f":"Import!E33467","v":0}]
[71,{"$f":"Import!E33068","v":"Select"},{"$f":"Import!E33168","v":"Select"},{"$f":"Import!E33268","v":"Select"},{"$f":"Import!E33368","v":0},{"$f":"Import!E33468","v":0}]
[72,{"$f":"Import!E33069","v":"Select"},{"$f":"Import!E33169","v":"Select"},{"$f":"Import!E33269","v":"Select"},{"$f":"Import!E33369","v":0},{"$f":"Import!E33469","v":0}]
[73,{"$f":"Import!E33070","v":"Select"},{"$f":"Import!E33170","v":"Select"},{"$f":"Import!E33270","v":"Select"},{"$f":"Import!E33370","v":0},{"$f":"Import!E33470","v":0}]
[74,{"$f":"Import!E33071","v":"Select"},{"$f":"Import!E33171","v":"Select"},{"$f":"Import!E33271","v":"Select"},{"$f":"Import!E33371","v":0},{"$f":"Import!E33471","v":0}]
[75,{"$f":"Import!E33072","v":"Select"},{"$f":"Import!E33172","v":"Select"},{"$f":"Import!E33272","v":"Select"},{"$f":"Import!E33372","v":0},{"$f":"Import!E33472","v":0}]
[76,{"$f":"Import!E33073","v":"Select"},{"$f":"Import!E33173","v":"Select"},{"$f":"Import!E33273","v":"Select"},{"$f":"Import!E33373","v":0},{"$f":"Import!E33473","v":0}]
[77,{"$f":"Import!E33074","v":"Select"},{"$f":"Import!E33174","v":"Select"},{"$f":"Import!E33274","v":"Select"},{"$f":"Import!E33374","v":0},{"$f":"Import!E33474","v":0}]
[78,{"$f":"Import!E33075","v":"Select"},{"$f":"Import!E33175","v":"Select"},{"$f":"Import!E33275","v":"Select"},{"$f":"Import!E33375","v":0},{"$f":"Import!E33475","v":0}]
[79,{"$f":"Import!E33076","v":"Select"},{"$f":"Import!E33176","v":"Select"},{"$f":"Import!E33276","v":"Select"},{"$f":"Import!E33376","v":0},{"$f":"Import!E33476","v":0}]
[80,{"$f":"Import!E33077","v":"Select"},{"$f":"Import!E33177","v":"Select"},{"$f":"Import!E33277","v":"Select"},{"$f":"Import!E33377","v":0},{"$f":"Import!E33477","v":0}]
[81,{"$f":"Import!E33078","v":"Select"},{"$f":"Import!E33178","v":"Select"},{"$f":"Import!E33278","v":"Select"},{"$f":"Import!E33378","v":0},{"$f":"Import!E33478","v":0}]
[82,{"$f":"Import!E33079","v":"Select"},{"$f":"Import!E33179","v":"Select"},{"$f":"Import!E33279","v":"Select"},{"$f":"Import!E33379","v":0},{"$f":"Import!E33479","v":0}]
[83,{"$f":"Import!E33080","v":"Select"},{"$f":"Import!E33180","v":"Select"},{"$f":"Import!E33280","v":"Select"},{"$f":"Import!E33380","v":0},{"$f":"Import!E33480","v":0}]
[84,{"$f":"Import!E33081","v":"Select"},{"$f":"Import!E33181","v":"Select"},{"$f":"Import!E33281","v":"Select"},{"$f":"Import!E33381","v":0},{"$f":"Import!E33481","v":0}]
[85,{"$f":"Import!E33082","v":"Select"},{"$f":"Import!E33182","v":"Select"},{"$f":"Import!E33282","v":"Select"},{"$f":"Import!E33382","v":0},{"$f":"Import!E33482","v":0}]
[86,{"$f":"Import!E33083","v":"Select"},{"$f":"Import!E33183","v":"Select"},{"$f":"Import!E33283","v":"Select"},{"$f":"Import!E33383","v":0},{"$f":"Import!E33483","v":0}]
[87,{"$f":"Import!E33084","v":"Select"},{"$f":"Import!E33184","v":"Select"},{"$f":"Import!E33284","v":"Select"},{"$f":"Import!E33384","v":0},{"$f":"Import!E33484","v":0}]
[88,{"$f":"Import!E33085","v":"Select"},{"$f":"Import!E33185","v":"Select"},{"$f":"Import!E33285","v":"Select"},{"$f":"Import!E33385","v":0},{"$f":"Import!E33485","v":0}]
[89,{"$f":"Import!E33086","v":"Select"},{"$f":"Import!E33186","v":"Select"},{"$f":"Import!E33286","v":"Select"},{"$f":"Import!E33386","v":0},{"$f":"Import!E33486","v":0}]
[90,{"$f":"Import!E33087","v":"Select"},{"$f":"Import!E33187","v":"Select"},{"$f":"Import!E33287","v":"Select"},{"$f":"Import!E33387","v":0},{"$f":"Import!E33487","v":0}]
[91,{"$f":"Import!E33088","v":"Select"},{"$f":"Import!E33188","v":"Select"},{"$f":"Import!E33288","v":"Select"},{"$f":"Import!E33388","v":0},{"$f":"Import!E33488","v":0}]
[92,{"$f":"Import!E33089","v":"Select"},{"$f":"Import!E33189","v":"Select"},{"$f":"Import!E33289","v":"Select"},{"$f":"Import!E33389","v":0},{"$f":"Import!E33489","v":0}]
[93,{"$f":"Import!E33090","v":"Select"},{"$f":"Import!E33190","v":"Select"},{"$f":"Import!E33290","v":"Select"},{"$f":"Import!E33390","v":0},{"$f":"Import!E33490","v":0}]
[94,{"$f":"Import!E33091","v":"Select"},{"$f":"Import!E33191","v":"Select"},{"$f":"Import!E33291","v":"Select"},{"$f":"Import!E33391","v":0},{"$f":"Import!E33491","v":0}]
[95,{"$f":"Import!E33092","v":"Select"},{"$f":"Import!E33192","v":"Select"},{"$f":"Import!E33292","v":"Select"},{"$f":"Import!E33392","v":0},{"$f":"Import!E33492","v":0}]
[96,{"$f":"Import!E33093","v":"Select"},{"$f":"Import!E33193","v":"Select"},{"$f":"Import!E33293","v":"Select"},{"$f":"Import!E33393","v":0},{"$f":"Import!E33493","v":0}]
[97,{"$f":"Import!E33094","v":"Select"},{"$f":"Import!E33194","v":"Select"},{"$f":"Import!E33294","v":"Select"},{"$f":"Import!E33394","v":0},{"$f":"Import!E33494","v":0}]
[98,{"$f":"Import!E33095","v":"Select"},{"$f":"Import!E33195","v":"Select"},{"$f":"Import!E33295","v":"Select"},{"$f":"Import!E33395","v":0},{"$f":"Import!E33495","v":0}]
[99,{"$f":"Import!E33096","v":"Select"},{"$f":"Import!E33196","v":"Select"},{"$f":"Import!E33296","v":"Select"},{"$f":"Import!E33396","v":0},{"$f":"Import!E33496","v":0}]
[100,{"$f":"Import!E33097","v":"Select"},{"$f":"Import!E33197","v":"Select"},{"$f":"Import!E33297","v":"Select"},{"$f":"Import!E33397","v":0},{"$f":"Import!E33497","v":0}]
[]
[null,"Total Common Equities",null,null,{"$f":"SUM(E1237:E1336)","v":0}]
[]
[null,"(G) REAL ESTATE"]
[]
[null,null,"Enter # of Asset Types",{"$f":"Import!E33498","v":0}]
[null,null,null,null,null,{"$f":"YEAR($C$3)","v":2023},2023]
[null,"Asset Type","Currency","Country","Purpose","Cost","Fair Value","Comments"]
[1,{"$f":"Import!E33499","v":"Select"},{"$f":"Import!E33599","v":"Select"},{"$f":"Import!E33699","v":"Select"},{"$f":"Import!E33799","v":"Select"},{"$f":"Import!E33899","v":0},{"$f":"Import!E33999","v":0},{"$f":"Import!E34099","v":0}]
[{"$f":"A1345+1","v":2},{"$f":"Import!E33500","v":"Select"},{"$f":"Import!E33600","v":"Select"},{"$f":"Import!E33700","v":"Select"},{"$f":"Import!E33800","v":"Select"},{"$f":"Import!E33900","v":0},{"$f":"Import!E34000","v":0},{"$f":"Import!E34100","v":0}]
[{"$f":"A1346+1","v":3},{"$f":"Import!E33501","v":"Select"},{"$f":"Import!E33601","v":"Select"},{"$f":"Import!E33701","v":"Select"},{"$f":"Import!E33801","v":"Select"},{"$f":"Import!E33901","v":0},{"$f":"Import!E34001","v":0},{"$f":"Import!E34101","v":0}]
[4,{"$f":"Import!E33502","v":"Select"},{"$f":"Import!E33602","v":"Select"},{"$f":"Import!E33702","v":"Select"},{"$f":"Import!E33802","v":"Select"},{"$f":"Import!E33902","v":0},{"$f":"Import!E34002","v":0},{"$f":"Import!E34102","v":0}]
[5,{"$f":"Import!E33503","v":"Select"},{"$f":"Import!E33603","v":"Select"},{"$f":"Import!E33703","v":"Select"},{"$f":"Import!E33803","v":"Select"},{"$f":"Import!E33903","v":0},{"$f":"Import!E34003","v":0},{"$f":"Import!E34103","v":0}]
[6,{"$f":"Import!E33504","v":"Select"},{"$f":"Import!E33604","v":"Select"},{"$f":"Import!E33704","v":"Select"},{"$f":"Import!E33804","v":"Select"},{"$f":"Import!E33904","v":0},{"$f":"Import!E34004","v":0},{"$f":"Import!E34104","v":0}]
[7,{"$f":"Import!E33505","v":"Select"},{"$f":"Import!E33605","v":"Select"},{"$f":"Import!E33705","v":"Select"},{"$f":"Import!E33805","v":"Select"},{"$f":"Import!E33905","v":0},{"$f":"Import!E34005","v":0},{"$f":"Import!E34105","v":0}]
[8,{"$f":"Import!E33506","v":"Select"},{"$f":"Import!E33606","v":"Select"},{"$f":"Import!E33706","v":"Select"},{"$f":"Import!E33806","v":"Select"},{"$f":"Import!E33906","v":0},{"$f":"Import!E34006","v":0},{"$f":"Import!E34106","v":0}]
[9,{"$f":"Import!E33507","v":"Select"},{"$f":"Import!E33607","v":"Select"},{"$f":"Import!E33707","v":"Select"},{"$f":"Import!E33807","v":"Select"},{"$f":"Import!E33907","v":0},{"$f":"Import!E34007","v":0},{"$f":"Import!E34107","v":0}]
[10,{"$f":"Import!E33508","v":"Select"},{"$f":"Import!E33608","v":"Select"},{"$f":"Import!E33708","v":"Select"},{"$f":"Import!E33808","v":"Select"},{"$f":"Import!E33908","v":0},{"$f":"Import!E34008","v":0},{"$f":"Import!E34108","v":0}]
[11,{"$f":"Import!E33509","v":"Select"},{"$f":"Import!E33609","v":"Select"},{"$f":"Import!E33709","v":"Select"},{"$f":"Import!E33809","v":"Select"},{"$f":"Import!E33909","v":0},{"$f":"Import!E34009","v":0},{"$f":"Import!E34109","v":0}]
[12,{"$f":"Import!E33510","v":"Select"},{"$f":"Import!E33610","v":"Select"},{"$f":"Import!E33710","v":"Select"},{"$f":"Import!E33810","v":"Select"},{"$f":"Import!E33910","v":0},{"$f":"Import!E34010","v":0},{"$f":"Import!E34110","v":0}]
[13,{"$f":"Import!E33511","v":"Select"},{"$f":"Import!E33611","v":"Select"},{"$f":"Import!E33711","v":"Select"},{"$f":"Import!E33811","v":"Select"},{"$f":"Import!E33911","v":0},{"$f":"Import!E34011","v":0},{"$f":"Import!E34111","v":0}]
[14,{"$f":"Import!E33512","v":"Select"},{"$f":"Import!E33612","v":"Select"},{"$f":"Import!E33712","v":"Select"},{"$f":"Import!E33812","v":"Select"},{"$f":"Import!E33912","v":0},{"$f":"Import!E34012","v":0},{"$f":"Import!E34112","v":0}]
[15,{"$f":"Import!E33513","v":"Select"},{"$f":"Import!E33613","v":"Select"},{"$f":"Import!E33713","v":"Select"},{"$f":"Import!E33813","v":"Select"},{"$f":"Import!E33913","v":0},{"$f":"Import!E34013","v":0},{"$f":"Import!E34113","v":0}]
[16,{"$f":"Import!E33514","v":"Select"},{"$f":"Import!E33614","v":"Select"},{"$f":"Import!E33714","v":"Select"},{"$f":"Import!E33814","v":"Select"},{"$f":"Import!E33914","v":0},{"$f":"Import!E34014","v":0},{"$f":"Import!E34114","v":0}]
[17,{"$f":"Import!E33515","v":"Select"},{"$f":"Import!E33615","v":"Select"},{"$f":"Import!E33715","v":"Select"},{"$f":"Import!E33815","v":"Select"},{"$f":"Import!E33915","v":0},{"$f":"Import!E34015","v":0},{"$f":"Import!E34115","v":0}]
[18,{"$f":"Import!E33516","v":"Select"},{"$f":"Import!E33616","v":"Select"},{"$f":"Import!E33716","v":"Select"},{"$f":"Import!E33816","v":"Select"},{"$f":"Import!E33916","v":0},{"$f":"Import!E34016","v":0},{"$f":"Import!E34116","v":0}]
[19,{"$f":"Import!E33517","v":"Select"},{"$f":"Import!E33617","v":"Select"},{"$f":"Import!E33717","v":"Select"},{"$f":"Import!E33817","v":"Select"},{"$f":"Import!E33917","v":0},{"$f":"Import!E34017","v":0},{"$f":"Import!E34117","v":0}]
[20,{"$f":"Import!E33518","v":"Select"},{"$f":"Import!E33618","v":"Select"},{"$f":"Import!E33718","v":"Select"},{"$f":"Import!E33818","v":"Select"},{"$f":"Import!E33918","v":0},{"$f":"Import!E34018","v":0},{"$f":"Import!E34118","v":0}]
[21,{"$f":"Import!E33519","v":"Select"},{"$f":"Import!E33619","v":"Select"},{"$f":"Import!E33719","v":"Select"},{"$f":"Import!E33819","v":"Select"},{"$f":"Import!E33919","v":0},{"$f":"Import!E34019","v":0},{"$f":"Import!E34119","v":0}]
[22,{"$f":"Import!E33520","v":"Select"},{"$f":"Import!E33620","v":"Select"},{"$f":"Import!E33720","v":"Select"},{"$f":"Import!E33820","v":"Select"},{"$f":"Import!E33920","v":0},{"$f":"Import!E34020","v":0},{"$f":"Import!E34120","v":0}]
[23,{"$f":"Import!E33521","v":"Select"},{"$f":"Import!E33621","v":"Select"},{"$f":"Import!E33721","v":"Select"},{"$f":"Import!E33821","v":"Select"},{"$f":"Import!E33921","v":0},{"$f":"Import!E34021","v":0},{"$f":"Import!E34121","v":0}]
[24,{"$f":"Import!E33522","v":"Select"},{"$f":"Import!E33622","v":"Select"},{"$f":"Import!E33722","v":"Select"},{"$f":"Import!E33822","v":"Select"},{"$f":"Import!E33922","v":0},{"$f":"Import!E34022","v":0},{"$f":"Import!E34122","v":0}]
[25,{"$f":"Import!E33523","v":"Select"},{"$f":"Import!E33623","v":"Select"},{"$f":"Import!E33723","v":"Select"},{"$f":"Import!E33823","v":"Select"},{"$f":"Import!E33923","v":0},{"$f":"Import!E34023","v":0},{"$f":"Import!E34123","v":0}]
[26,{"$f":"Import!E33524","v":"Select"},{"$f":"Import!E33624","v":"Select"},{"$f":"Import!E33724","v":"Select"},{"$f":"Import!E33824","v":"Select"},{"$f":"Import!E33924","v":0},{"$f":"Import!E34024","v":0},{"$f":"Import!E34124","v":0}]
[27,{"$f":"Import!E33525","v":"Select"},{"$f":"Import!E33625","v":"Select"},{"$f":"Import!E33725","v":"Select"},{"$f":"Import!E33825","v":"Select"},{"$f":"Import!E33925","v":0},{"$f":"Import!E34025","v":0},{"$f":"Import!E34125","v":0}]
[28,{"$f":"Import!E33526","v":"Select"},{"$f":"Import!E33626","v":"Select"},{"$f":"Import!E33726","v":"Select"},{"$f":"Import!E33826","v":"Select"},{"$f":"Import!E33926","v":0},{"$f":"Import!E34026","v":0},{"$f":"Import!E34126","v":0}]
[29,{"$f":"Import!E33527","v":"Select"},{"$f":"Import!E33627","v":"Select"},{"$f":"Import!E33727","v":"Select"},{"$f":"Import!E33827","v":"Select"},{"$f":"Import!E33927","v":0},{"$f":"Import!E34027","v":0},{"$f":"Import!E34127","v":0}]
[30,{"$f":"Import!E33528","v":"Select"},{"$f":"Import!E33628","v":"Select"},{"$f":"Import!E33728","v":"Select"},{"$f":"Import!E33828","v":"Select"},{"$f":"Import!E33928","v":0},{"$f":"Import!E34028","v":0},{"$f":"Import!E34128","v":0}]
[31,{"$f":"Import!E33529","v":"Select"},{"$f":"Import!E33629","v":"Select"},{"$f":"Import!E33729","v":"Select"},{"$f":"Import!E33829","v":"Select"},{"$f":"Import!E33929","v":0},{"$f":"Import!E34029","v":0},{"$f":"Import!E34129","v":0}]
[32,{"$f":"Import!E33530","v":"Select"},{"$f":"Import!E33630","v":"Select"},{"$f":"Import!E33730","v":"Select"},{"$f":"Import!E33830","v":"Select"},{"$f":"Import!E33930","v":0},{"$f":"Import!E34030","v":0},{"$f":"Import!E34130","v":0}]
[33,{"$f":"Import!E33531","v":"Select"},{"$f":"Import!E33631","v":"Select"},{"$f":"Import!E33731","v":"Select"},{"$f":"Import!E33831","v":"Select"},{"$f":"Import!E33931","v":0},{"$f":"Import!E34031","v":0},{"$f":"Import!E34131","v":0}]
[34,{"$f":"Import!E33532","v":"Select"},{"$f":"Import!E33632","v":"Select"},{"$f":"Import!E33732","v":"Select"},{"$f":"Import!E33832","v":"Select"},{"$f":"Import!E33932","v":0},{"$f":"Import!E34032","v":0},{"$f":"Import!E34132","v":0}]
[35,{"$f":"Import!E33533","v":"Select"},{"$f":"Import!E33633","v":"Select"},{"$f":"Import!E33733","v":"Select"},{"$f":"Import!E33833","v":"Select"},{"$f":"Import!E33933","v":0},{"$f":"Import!E34033","v":0},{"$f":"Import!E34133","v":0}]
[36,{"$f":"Import!E33534","v":"Select"},{"$f":"Import!E33634","v":"Select"},{"$f":"Import!E33734","v":"Select"},{"$f":"Import!E33834","v":"Select"},{"$f":"Import!E33934","v":0},{"$f":"Import!E34034","v":0},{"$f":"Import!E34134","v":0}]
[37,{"$f":"Import!E33535","v":"Select"},{"$f":"Import!E33635","v":"Select"},{"$f":"Import!E33735","v":"Select"},{"$f":"Import!E33835","v":"Select"},{"$f":"Import!E33935","v":0},{"$f":"Import!E34035","v":0},{"$f":"Import!E34135","v":0}]
[38,{"$f":"Import!E33536","v":"Select"},{"$f":"Import!E33636","v":"Select"},{"$f":"Import!E33736","v":"Select"},{"$f":"Import!E33836","v":"Select"},{"$f":"Import!E33936","v":0},{"$f":"Import!E34036","v":0},{"$f":"Import!E34136","v":0}]
[39,{"$f":"Import!E33537","v":"Select"},{"$f":"Import!E33637","v":"Select"},{"$f":"Import!E33737","v":"Select"},{"$f":"Import!E33837","v":"Select"},{"$f":"Import!E33937","v":0},{"$f":"Import!E34037","v":0},{"$f":"Import!E34137","v":0}]
[40,{"$f":"Import!E33538","v":"Select"},{"$f":"Import!E33638","v":"Select"},{"$f":"Import!E33738","v":"Select"},{"$f":"Import!E33838","v":"Select"},{"$f":"Import!E33938","v":0},{"$f":"Import!E34038","v":0},{"$f":"Import!E34138","v":0}]
[41,{"$f":"Import!E33539","v":"Select"},{"$f":"Import!E33639","v":"Select"},{"$f":"Import!E33739","v":"Select"},{"$f":"Import!E33839","v":"Select"},{"$f":"Import!E33939","v":0},{"$f":"Import!E34039","v":0},{"$f":"Import!E34139","v":0}]
[42,{"$f":"Import!E33540","v":"Select"},{"$f":"Import!E33640","v":"Select"},{"$f":"Import!E33740","v":"Select"},{"$f":"Import!E33840","v":"Select"},{"$f":"Import!E33940","v":0},{"$f":"Import!E34040","v":0},{"$f":"Import!E34140","v":0}]
[43,{"$f":"Import!E33541","v":"Select"},{"$f":"Import!E33641","v":"Select"},{"$f":"Import!E33741","v":"Select"},{"$f":"Import!E33841","v":"Select"},{"$f":"Import!E33941","v":0},{"$f":"Import!E34041","v":0},{"$f":"Import!E34141","v":0}]
[44,{"$f":"Import!E33542","v":"Select"},{"$f":"Import!E33642","v":"Select"},{"$f":"Import!E33742","v":"Select"},{"$f":"Import!E33842","v":"Select"},{"$f":"Import!E33942","v":0},{"$f":"Import!E34042","v":0},{"$f":"Import!E34142","v":0}]
[45,{"$f":"Import!E33543","v":"Select"},{"$f":"Import!E33643","v":"Select"},{"$f":"Import!E33743","v":"Select"},{"$f":"Import!E33843","v":"Select"},{"$f":"Import!E33943","v":0},{"$f":"Import!E34043","v":0},{"$f":"Import!E34143","v":0}]
[46,{"$f":"Import!E33544","v":"Select"},{"$f":"Import!E33644","v":"Select"},{"$f":"Import!E33744","v":"Select"},{"$f":"Import!E33844","v":"Select"},{"$f":"Import!E33944","v":0},{"$f":"Import!E34044","v":0},{"$f":"Import!E34144","v":0}]
[47,{"$f":"Import!E33545","v":"Select"},{"$f":"Import!E33645","v":"Select"},{"$f":"Import!E33745","v":"Select"},{"$f":"Import!E33845","v":"Select"},{"$f":"Import!E33945","v":0},{"$f":"Import!E34045","v":0},{"$f":"Import!E34145","v":0}]
[48,{"$f":"Import!E33546","v":"Select"},{"$f":"Import!E33646","v":"Select"},{"$f":"Import!E33746","v":"Select"},{"$f":"Import!E33846","v":"Select"},{"$f":"Import!E33946","v":0},{"$f":"Import!E34046","v":0},{"$f":"Import!E34146","v":0}]
[49,{"$f":"Import!E33547","v":"Select"},{"$f":"Import!E33647","v":"Select"},{"$f":"Import!E33747","v":"Select"},{"$f":"Import!E33847","v":"Select"},{"$f":"Import!E33947","v":0},{"$f":"Import!E34047","v":0},{"$f":"Import!E34147","v":0}]
[50,{"$f":"Import!E33548","v":"Select"},{"$f":"Import!E33648","v":"Select"},{"$f":"Import!E33748","v":"Select"},{"$f":"Import!E33848","v":"Select"},{"$f":"Import!E33948","v":0},{"$f":"Import!E34048","v":0},{"$f":"Import!E34148","v":0}]
[51,{"$f":"Import!E33549","v":"Select"},{"$f":"Import!E33649","v":"Select"},{"$f":"Import!E33749","v":"Select"},{"$f":"Import!E33849","v":"Select"},{"$f":"Import!E33949","v":0},{"$f":"Import!E34049","v":0},{"$f":"Import!E34149","v":0}]
[52,{"$f":"Import!E33550","v":"Select"},{"$f":"Import!E33650","v":"Select"},{"$f":"Import!E33750","v":"Select"},{"$f":"Import!E33850","v":"Select"},{"$f":"Import!E33950","v":0},{"$f":"Import!E34050","v":0},{"$f":"Import!E34150","v":0}]
[53,{"$f":"Import!E33551","v":"Select"},{"$f":"Import!E33651","v":"Select"},{"$f":"Import!E33751","v":"Select"},{"$f":"Import!E33851","v":"Select"},{"$f":"Import!E33951","v":0},{"$f":"Import!E34051","v":0},{"$f":"Import!E34151","v":0}]
[54,{"$f":"Import!E33552","v":"Select"},{"$f":"Import!E33652","v":"Select"},{"$f":"Import!E33752","v":"Select"},{"$f":"Import!E33852","v":"Select"},{"$f":"Import!E33952","v":0},{"$f":"Import!E34052","v":0},{"$f":"Import!E34152","v":0}]
[55,{"$f":"Import!E33553","v":"Select"},{"$f":"Import!E33653","v":"Select"},{"$f":"Import!E33753","v":"Select"},{"$f":"Import!E33853","v":"Select"},{"$f":"Import!E33953","v":0},{"$f":"Import!E34053","v":0},{"$f":"Import!E34153","v":0}]
[56,{"$f":"Import!E33554","v":"Select"},{"$f":"Import!E33654","v":"Select"},{"$f":"Import!E33754","v":"Select"},{"$f":"Import!E33854","v":"Select"},{"$f":"Import!E33954","v":0},{"$f":"Import!E34054","v":0},{"$f":"Import!E34154","v":0}]
[57,{"$f":"Import!E33555","v":"Select"},{"$f":"Import!E33655","v":"Select"},{"$f":"Import!E33755","v":"Select"},{"$f":"Import!E33855","v":"Select"},{"$f":"Import!E33955","v":0},{"$f":"Import!E34055","v":0},{"$f":"Import!E34155","v":0}]
[58,{"$f":"Import!E33556","v":"Select"},{"$f":"Import!E33656","v":"Select"},{"$f":"Import!E33756","v":"Select"},{"$f":"Import!E33856","v":"Select"},{"$f":"Import!E33956","v":0},{"$f":"Import!E34056","v":0},{"$f":"Import!E34156","v":0}]
[59,{"$f":"Import!E33557","v":"Select"},{"$f":"Import!E33657","v":"Select"},{"$f":"Import!E33757","v":"Select"},{"$f":"Import!E33857","v":"Select"},{"$f":"Import!E33957","v":0},{"$f":"Import!E34057","v":0},{"$f":"Import!E34157","v":0}]
[60,{"$f":"Import!E33558","v":"Select"},{"$f":"Import!E33658","v":"Select"},{"$f":"Import!E33758","v":"Select"},{"$f":"Import!E33858","v":"Select"},{"$f":"Import!E33958","v":0},{"$f":"Import!E34058","v":0},{"$f":"Import!E34158","v":0}]
[61,{"$f":"Import!E33559","v":"Select"},{"$f":"Import!E33659","v":"Select"},{"$f":"Import!E33759","v":"Select"},{"$f":"Import!E33859","v":"Select"},{"$f":"Import!E33959","v":0},{"$f":"Import!E34059","v":0},{"$f":"Import!E34159","v":0}]
[62,{"$f":"Import!E33560","v":"Select"},{"$f":"Import!E33660","v":"Select"},{"$f":"Import!E33760","v":"Select"},{"$f":"Import!E33860","v":"Select"},{"$f":"Import!E33960","v":0},{"$f":"Import!E34060","v":0},{"$f":"Import!E34160","v":0}]
[63,{"$f":"Import!E33561","v":"Select"},{"$f":"Import!E33661","v":"Select"},{"$f":"Import!E33761","v":"Select"},{"$f":"Import!E33861","v":"Select"},{"$f":"Import!E33961","v":0},{"$f":"Import!E34061","v":0},{"$f":"Import!E34161","v":0}]
[64,{"$f":"Import!E33562","v":"Select"},{"$f":"Import!E33662","v":"Select"},{"$f":"Import!E33762","v":"Select"},{"$f":"Import!E33862","v":"Select"},{"$f":"Import!E33962","v":0},{"$f":"Import!E34062","v":0},{"$f":"Import!E34162","v":0}]
[65,{"$f":"Import!E33563","v":"Select"},{"$f":"Import!E33663","v":"Select"},{"$f":"Import!E33763","v":"Select"},{"$f":"Import!E33863","v":"Select"},{"$f":"Import!E33963","v":0},{"$f":"Import!E34063","v":0},{"$f":"Import!E34163","v":0}]
[66,{"$f":"Import!E33564","v":"Select"},{"$f":"Import!E33664","v":"Select"},{"$f":"Import!E33764","v":"Select"},{"$f":"Import!E33864","v":"Select"},{"$f":"Import!E33964","v":0},{"$f":"Import!E34064","v":0},{"$f":"Import!E34164","v":0}]
[{"$f":"A1410+1","v":67},{"$f":"Import!E33565","v":"Select"},{"$f":"Import!E33665","v":"Select"},{"$f":"Import!E33765","v":"Select"},{"$f":"Import!E33865","v":"Select"},{"$f":"Import!E33965","v":0},{"$f":"Import!E34065","v":0},{"$f":"Import!E34165","v":0}]
[68,{"$f":"Import!E33566","v":"Select"},{"$f":"Import!E33666","v":"Select"},{"$f":"Import!E33766","v":"Select"},{"$f":"Import!E33866","v":"Select"},{"$f":"Import!E33966","v":0},{"$f":"Import!E34066","v":0},{"$f":"Import!E34166","v":0}]
[69,{"$f":"Import!E33567","v":"Select"},{"$f":"Import!E33667","v":"Select"},{"$f":"Import!E33767","v":"Select"},{"$f":"Import!E33867","v":"Select"},{"$f":"Import!E33967","v":0},{"$f":"Import!E34067","v":0},{"$f":"Import!E34167","v":0}]
[70,{"$f":"Import!E33568","v":"Select"},{"$f":"Import!E33668","v":"Select"},{"$f":"Import!E33768","v":"Select"},{"$f":"Import!E33868","v":"Select"},{"$f":"Import!E33968","v":0},{"$f":"Import!E34068","v":0},{"$f":"Import!E34168","v":0}]
[71,{"$f":"Import!E33569","v":"Select"},{"$f":"Import!E33669","v":"Select"},{"$f":"Import!E33769","v":"Select"},{"$f":"Import!E33869","v":"Select"},{"$f":"Import!E33969","v":0},{"$f":"Import!E34069","v":0},{"$f":"Import!E34169","v":0}]
[72,{"$f":"Import!E33570","v":"Select"},{"$f":"Import!E33670","v":"Select"},{"$f":"Import!E33770","v":"Select"},{"$f":"Import!E33870","v":"Select"},{"$f":"Import!E33970","v":0},{"$f":"Import!E34070","v":0},{"$f":"Import!E34170","v":0}]
[73,{"$f":"Import!E33571","v":"Select"},{"$f":"Import!E33671","v":"Select"},{"$f":"Import!E33771","v":"Select"},{"$f":"Import!E33871","v":"Select"},{"$f":"Import!E33971","v":0},{"$f":"Import!E34071","v":0},{"$f":"Import!E34171","v":0}]
[74,{"$f":"Import!E33572","v":"Select"},{"$f":"Import!E33672","v":"Select"},{"$f":"Import!E33772","v":"Select"},{"$f":"Import!E33872","v":"Select"},{"$f":"Import!E33972","v":0},{"$f":"Import!E34072","v":0},{"$f":"Import!E34172","v":0}]
[75,{"$f":"Import!E33573","v":"Select"},{"$f":"Import!E33673","v":"Select"},{"$f":"Import!E33773","v":"Select"},{"$f":"Import!E33873","v":"Select"},{"$f":"Import!E33973","v":0},{"$f":"Import!E34073","v":0},{"$f":"Import!E34173","v":0}]
[76,{"$f":"Import!E33574","v":"Select"},{"$f":"Import!E33674","v":"Select"},{"$f":"Import!E33774","v":"Select"},{"$f":"Import!E33874","v":"Select"},{"$f":"Import!E33974","v":0},{"$f":"Import!E34074","v":0},{"$f":"Import!E34174","v":0}]
[77,{"$f":"Import!E33575","v":"Select"},{"$f":"Import!E33675","v":"Select"},{"$f":"Import!E33775","v":"Select"},{"$f":"Import!E33875","v":"Select"},{"$f":"Import!E33975","v":0},{"$f":"Import!E34075","v":0},{"$f":"Import!E34175","v":0}]
[78,{"$f":"Import!E33576","v":"Select"},{"$f":"Import!E33676","v":"Select"},{"$f":"Import!E33776","v":"Select"},{"$f":"Import!E33876","v":"Select"},{"$f":"Import!E33976","v":0},{"$f":"Import!E34076","v":0},{"$f":"Import!E34176","v":0}]
[79,{"$f":"Import!E33577","v":"Select"},{"$f":"Import!E33677","v":"Select"},{"$f":"Import!E33777","v":"Select"},{"$f":"Import!E33877","v":"Select"},{"$f":"Import!E33977","v":0},{"$f":"Import!E34077","v":0},{"$f":"Import!E34177","v":0}]
[80,{"$f":"Import!E33578","v":"Select"},{"$f":"Import!E33678","v":"Select"},{"$f":"Import!E33778","v":"Select"},{"$f":"Import!E33878","v":"Select"},{"$f":"Import!E33978","v":0},{"$f":"Import!E34078","v":0},{"$f":"Import!E34178","v":0}]
[81,{"$f":"Import!E33579","v":"Select"},{"$f":"Import!E33679","v":"Select"},{"$f":"Import!E33779","v":"Select"},{"$f":"Import!E33879","v":"Select"},{"$f":"Import!E33979","v":0},{"$f":"Import!E34079","v":0},{"$f":"Import!E34179","v":0}]
[82,{"$f":"Import!E33580","v":"Select"},{"$f":"Import!E33680","v":"Select"},{"$f":"Import!E33780","v":"Select"},{"$f":"Import!E33880","v":"Select"},{"$f":"Import!E33980","v":0},{"$f":"Import!E34080","v":0},{"$f":"Import!E34180","v":0}]
[83,{"$f":"Import!E33581","v":"Select"},{"$f":"Import!E33681","v":"Select"},{"$f":"Import!E33781","v":"Select"},{"$f":"Import!E33881","v":"Select"},{"$f":"Import!E33981","v":0},{"$f":"Import!E34081","v":0},{"$f":"Import!E34181","v":0}]
[84,{"$f":"Import!E33582","v":"Select"},{"$f":"Import!E33682","v":"Select"},{"$f":"Import!E33782","v":"Select"},{"$f":"Import!E33882","v":"Select"},{"$f":"Import!E33982","v":0},{"$f":"Import!E34082","v":0},{"$f":"Import!E34182","v":0}]
[85,{"$f":"Import!E33583","v":"Select"},{"$f":"Import!E33683","v":"Select"},{"$f":"Import!E33783","v":"Select"},{"$f":"Import!E33883","v":"Select"},{"$f":"Import!E33983","v":0},{"$f":"Import!E34083","v":0},{"$f":"Import!E34183","v":0}]
[86,{"$f":"Import!E33584","v":"Select"},{"$f":"Import!E33684","v":"Select"},{"$f":"Import!E33784","v":"Select"},{"$f":"Import!E33884","v":"Select"},{"$f":"Import!E33984","v":0},{"$f":"Import!E34084","v":0},{"$f":"Import!E34184","v":0}]
[87,{"$f":"Import!E33585","v":"Select"},{"$f":"Import!E33685","v":"Select"},{"$f":"Import!E33785","v":"Select"},{"$f":"Import!E33885","v":"Select"},{"$f":"Import!E33985","v":0},{"$f":"Import!E34085","v":0},{"$f":"Import!E34185","v":0}]
[88,{"$f":"Import!E33586","v":"Select"},{"$f":"Import!E33686","v":"Select"},{"$f":"Import!E33786","v":"Select"},{"$f":"Import!E33886","v":"Select"},{"$f":"Import!E33986","v":0},{"$f":"Import!E34086","v":0},{"$f":"Import!E34186","v":0}]
[89,{"$f":"Import!E33587","v":"Select"},{"$f":"Import!E33687","v":"Select"},{"$f":"Import!E33787","v":"Select"},{"$f":"Import!E33887","v":"Select"},{"$f":"Import!E33987","v":0},{"$f":"Import!E34087","v":0},{"$f":"Import!E34187","v":0}]
[90,{"$f":"Import!E33588","v":"Select"},{"$f":"Import!E33688","v":"Select"},{"$f":"Import!E33788","v":"Select"},{"$f":"Import!E33888","v":"Select"},{"$f":"Import!E33988","v":0},{"$f":"Import!E34088","v":0},{"$f":"Import!E34188","v":0}]
[91,{"$f":"Import!E33589","v":"Select"},{"$f":"Import!E33689","v":"Select"},{"$f":"Import!E33789","v":"Select"},{"$f":"Import!E33889","v":"Select"},{"$f":"Import!E33989","v":0},{"$f":"Import!E34089","v":0},{"$f":"Import!E34189","v":0}]
[92,{"$f":"Import!E33590","v":"Select"},{"$f":"Import!E33690","v":"Select"},{"$f":"Import!E33790","v":"Select"},{"$f":"Import!E33890","v":"Select"},{"$f":"Import!E33990","v":0},{"$f":"Import!E34090","v":0},{"$f":"Import!E34190","v":0}]
[93,{"$f":"Import!E33591","v":"Select"},{"$f":"Import!E33691","v":"Select"},{"$f":"Import!E33791","v":"Select"},{"$f":"Import!E33891","v":"Select"},{"$f":"Import!E33991","v":0},{"$f":"Import!E34091","v":0},{"$f":"Import!E34191","v":0}]
[94,{"$f":"Import!E33592","v":"Select"},{"$f":"Import!E33692","v":"Select"},{"$f":"Import!E33792","v":"Select"},{"$f":"Import!E33892","v":"Select"},{"$f":"Import!E33992","v":0},{"$f":"Import!E34092","v":0},{"$f":"Import!E34192","v":0}]
[95,{"$f":"Import!E33593","v":"Select"},{"$f":"Import!E33693","v":"Select"},{"$f":"Import!E33793","v":"Select"},{"$f":"Import!E33893","v":"Select"},{"$f":"Import!E33993","v":0},{"$f":"Import!E34093","v":0},{"$f":"Import!E34193","v":0}]
[96,{"$f":"Import!E33594","v":"Select"},{"$f":"Import!E33694","v":"Select"},{"$f":"Import!E33794","v":"Select"},{"$f":"Import!E33894","v":"Select"},{"$f":"Import!E33994","v":0},{"$f":"Import!E34094","v":0},{"$f":"Import!E34194","v":0}]
[97,{"$f":"Import!E33595","v":"Select"},{"$f":"Import!E33695","v":"Select"},{"$f":"Import!E33795","v":"Select"},{"$f":"Import!E33895","v":"Select"},{"$f":"Import!E33995","v":0},{"$f":"Import!E34095","v":0},{"$f":"Import!E34195","v":0}]
[98,{"$f":"Import!E33596","v":"Select"},{"$f":"Import!E33696","v":"Select"},{"$f":"Import!E33796","v":"Select"},{"$f":"Import!E33896","v":"Select"},{"$f":"Import!E33996","v":0},{"$f":"Import!E34096","v":0},{"$f":"Import!E34196","v":0}]
[99,{"$f":"Import!E33597","v":"Select"},{"$f":"Import!E33697","v":"Select"},{"$f":"Import!E33797","v":"Select"},{"$f":"Import!E33897","v":"Select"},{"$f":"Import!E33997","v":0},{"$f":"Import!E34097","v":0},{"$f":"Import!E34197","v":0}]
[100,{"$f":"Import!E33598","v":"Select"},{"$f":"Import!E33698","v":"Select"},{"$f":"Import!E33798","v":"Select"},{"$f":"Import!E33898","v":"Select"},{"$f":"Import!E33998","v":0},{"$f":"Import!E34098","v":0},{"$f":"Import!E34198","v":0}]
[]
[null,"Total Real Estate",null,null,null,{"$f":"SUM(F1345:F1444)","v":0},{"$f":"SUM(G1345:G1444)","v":0}]
[]
[null,"(H) OTHER ALTERNATIVE INVESTMENTS"]
[]
[null,null,"Enter # of Asset Types",{"$f":"Import!E34199","v":0}]
[null,null,null,null,null,{"$f":"YEAR($C$3)","v":2023},2023,"Weighted"]
[null,"Asset Type","Currency","Country","BSCR Rating","Nominal Amount","Fair Value","Average YTM","Effective Duration","Comments"]
[1,{"$f":"Import!E34200","v":"Select"},{"$f":"Import!E34300","v":"Select"},{"$f":"Import!E34400","v":"Select"},{"$f":"Import!E34500","v":"Select"},{"$f":"Import!E34600","v":0},{"$f":"Import!E34700","v":0},{"$f":"Import!E34800","v":0},{"$f":"Import!E34900","v":0},{"$f":"Import!E35000","v":0}]
[{"$f":"A1453+1","v":2},{"$f":"Import!E34201","v":"Select"},{"$f":"Import!E34301","v":"Select"},{"$f":"Import!E34401","v":"Select"},{"$f":"Import!E34501","v":"Select"},{"$f":"Import!E34601","v":0},{"$f":"Import!E34701","v":0},{"$f":"Import!E34801","v":0},{"$f":"Import!E34901","v":0},{"$f":"Import!E35001","v":0}]
[{"$f":"A1454+1","v":3},{"$f":"Import!E34202","v":"Select"},{"$f":"Import!E34302","v":"Select"},{"$f":"Import!E34402","v":"Select"},{"$f":"Import!E34502","v":"Select"},{"$f":"Import!E34602","v":0},{"$f":"Import!E34702","v":0},{"$f":"Import!E34802","v":0},{"$f":"Import!E34902","v":0},{"$f":"Import!E35002","v":0}]
[4,{"$f":"Import!E34203","v":"Select"},{"$f":"Import!E34303","v":"Select"},{"$f":"Import!E34403","v":"Select"},{"$f":"Import!E34503","v":"Select"},{"$f":"Import!E34603","v":0},{"$f":"Import!E34703","v":0},{"$f":"Import!E34803","v":0},{"$f":"Import!E34903","v":0},{"$f":"Import!E35003","v":0}]
[5,{"$f":"Import!E34204","v":"Select"},{"$f":"Import!E34304","v":"Select"},{"$f":"Import!E34404","v":"Select"},{"$f":"Import!E34504","v":"Select"},{"$f":"Import!E34604","v":0},{"$f":"Import!E34704","v":0},{"$f":"Import!E34804","v":0},{"$f":"Import!E34904","v":0},{"$f":"Import!E35004","v":0}]
[6,{"$f":"Import!E34205","v":"Select"},{"$f":"Import!E34305","v":"Select"},{"$f":"Import!E34405","v":"Select"},{"$f":"Import!E34505","v":"Select"},{"$f":"Import!E34605","v":0},{"$f":"Import!E34705","v":0},{"$f":"Import!E34805","v":0},{"$f":"Import!E34905","v":0},{"$f":"Import!E35005","v":0}]
[7,{"$f":"Import!E34206","v":"Select"},{"$f":"Import!E34306","v":"Select"},{"$f":"Import!E34406","v":"Select"},{"$f":"Import!E34506","v":"Select"},{"$f":"Import!E34606","v":0},{"$f":"Import!E34706","v":0},{"$f":"Import!E34806","v":0},{"$f":"Import!E34906","v":0},{"$f":"Import!E35006","v":0}]
[8,{"$f":"Import!E34207","v":"Select"},{"$f":"Import!E34307","v":"Select"},{"$f":"Import!E34407","v":"Select"},{"$f":"Import!E34507","v":"Select"},{"$f":"Import!E34607","v":0},{"$f":"Import!E34707","v":0},{"$f":"Import!E34807","v":0},{"$f":"Import!E34907","v":0},{"$f":"Import!E35007","v":0}]
[9,{"$f":"Import!E34208","v":"Select"},{"$f":"Import!E34308","v":"Select"},{"$f":"Import!E34408","v":"Select"},{"$f":"Import!E34508","v":"Select"},{"$f":"Import!E34608","v":0},{"$f":"Import!E34708","v":0},{"$f":"Import!E34808","v":0},{"$f":"Import!E34908","v":0},{"$f":"Import!E35008","v":0}]
[10,{"$f":"Import!E34209","v":"Select"},{"$f":"Import!E34309","v":"Select"},{"$f":"Import!E34409","v":"Select"},{"$f":"Import!E34509","v":"Select"},{"$f":"Import!E34609","v":0},{"$f":"Import!E34709","v":0},{"$f":"Import!E34809","v":0},{"$f":"Import!E34909","v":0},{"$f":"Import!E35009","v":0}]
[11,{"$f":"Import!E34210","v":"Select"},{"$f":"Import!E34310","v":"Select"},{"$f":"Import!E34410","v":"Select"},{"$f":"Import!E34510","v":"Select"},{"$f":"Import!E34610","v":0},{"$f":"Import!E34710","v":0},{"$f":"Import!E34810","v":0},{"$f":"Import!E34910","v":0},{"$f":"Import!E35010","v":0}]
[12,{"$f":"Import!E34211","v":"Select"},{"$f":"Import!E34311","v":"Select"},{"$f":"Import!E34411","v":"Select"},{"$f":"Import!E34511","v":"Select"},{"$f":"Import!E34611","v":0},{"$f":"Import!E34711","v":0},{"$f":"Import!E34811","v":0},{"$f":"Import!E34911","v":0},{"$f":"Import!E35011","v":0}]
[13,{"$f":"Import!E34212","v":"Select"},{"$f":"Import!E34312","v":"Select"},{"$f":"Import!E34412","v":"Select"},{"$f":"Import!E34512","v":"Select"},{"$f":"Import!E34612","v":0},{"$f":"Import!E34712","v":0},{"$f":"Import!E34812","v":0},{"$f":"Import!E34912","v":0},{"$f":"Import!E35012","v":0}]
[14,{"$f":"Import!E34213","v":"Select"},{"$f":"Import!E34313","v":"Select"},{"$f":"Import!E34413","v":"Select"},{"$f":"Import!E34513","v":"Select"},{"$f":"Import!E34613","v":0},{"$f":"Import!E34713","v":0},{"$f":"Import!E34813","v":0},{"$f":"Import!E34913","v":0},{"$f":"Import!E35013","v":0}]
[15,{"$f":"Import!E34214","v":"Select"},{"$f":"Import!E34314","v":"Select"},{"$f":"Import!E34414","v":"Select"},{"$f":"Import!E34514","v":"Select"},{"$f":"Import!E34614","v":0},{"$f":"Import!E34714","v":0},{"$f":"Import!E34814","v":0},{"$f":"Import!E34914","v":0},{"$f":"Import!E35014","v":0}]
[16,{"$f":"Import!E34215","v":"Select"},{"$f":"Import!E34315","v":"Select"},{"$f":"Import!E34415","v":"Select"},{"$f":"Import!E34515","v":"Select"},{"$f":"Import!E34615","v":0},{"$f":"Import!E34715","v":0},{"$f":"Import!E34815","v":0},{"$f":"Import!E34915","v":0},{"$f":"Import!E35015","v":0}]
[17,{"$f":"Import!E34216","v":"Select"},{"$f":"Import!E34316","v":"Select"},{"$f":"Import!E34416","v":"Select"},{"$f":"Import!E34516","v":"Select"},{"$f":"Import!E34616","v":0},{"$f":"Import!E34716","v":0},{"$f":"Import!E34816","v":0},{"$f":"Import!E34916","v":0},{"$f":"Import!E35016","v":0}]
[18,{"$f":"Import!E34217","v":"Select"},{"$f":"Import!E34317","v":"Select"},{"$f":"Import!E34417","v":"Select"},{"$f":"Import!E34517","v":"Select"},{"$f":"Import!E34617","v":0},{"$f":"Import!E34717","v":0},{"$f":"Import!E34817","v":0},{"$f":"Import!E34917","v":0},{"$f":"Import!E35017","v":0}]
[19,{"$f":"Import!E34218","v":"Select"},{"$f":"Import!E34318","v":"Select"},{"$f":"Import!E34418","v":"Select"},{"$f":"Import!E34518","v":"Select"},{"$f":"Import!E34618","v":0},{"$f":"Import!E34718","v":0},{"$f":"Import!E34818","v":0},{"$f":"Import!E34918","v":0},{"$f":"Import!E35018","v":0}]
[20,{"$f":"Import!E34219","v":"Select"},{"$f":"Import!E34319","v":"Select"},{"$f":"Import!E34419","v":"Select"},{"$f":"Import!E34519","v":"Select"},{"$f":"Import!E34619","v":0},{"$f":"Import!E34719","v":0},{"$f":"Import!E34819","v":0},{"$f":"Import!E34919","v":0},{"$f":"Import!E35019","v":0}]
[21,{"$f":"Import!E34220","v":"Select"},{"$f":"Import!E34320","v":"Select"},{"$f":"Import!E34420","v":"Select"},{"$f":"Import!E34520","v":"Select"},{"$f":"Import!E34620","v":0},{"$f":"Import!E34720","v":0},{"$f":"Import!E34820","v":0},{"$f":"Import!E34920","v":0},{"$f":"Import!E35020","v":0}]
[22,{"$f":"Import!E34221","v":"Select"},{"$f":"Import!E34321","v":"Select"},{"$f":"Import!E34421","v":"Select"},{"$f":"Import!E34521","v":"Select"},{"$f":"Import!E34621","v":0},{"$f":"Import!E34721","v":0},{"$f":"Import!E34821","v":0},{"$f":"Import!E34921","v":0},{"$f":"Import!E35021","v":0}]
[23,{"$f":"Import!E34222","v":"Select"},{"$f":"Import!E34322","v":"Select"},{"$f":"Import!E34422","v":"Select"},{"$f":"Import!E34522","v":"Select"},{"$f":"Import!E34622","v":0},{"$f":"Import!E34722","v":0},{"$f":"Import!E34822","v":0},{"$f":"Import!E34922","v":0},{"$f":"Import!E35022","v":0}]
[24,{"$f":"Import!E34223","v":"Select"},{"$f":"Import!E34323","v":"Select"},{"$f":"Import!E34423","v":"Select"},{"$f":"Import!E34523","v":"Select"},{"$f":"Import!E34623","v":0},{"$f":"Import!E34723","v":0},{"$f":"Import!E34823","v":0},{"$f":"Import!E34923","v":0},{"$f":"Import!E35023","v":0}]
[25,{"$f":"Import!E34224","v":"Select"},{"$f":"Import!E34324","v":"Select"},{"$f":"Import!E34424","v":"Select"},{"$f":"Import!E34524","v":"Select"},{"$f":"Import!E34624","v":0},{"$f":"Import!E34724","v":0},{"$f":"Import!E34824","v":0},{"$f":"Import!E34924","v":0},{"$f":"Import!E35024","v":0}]
[26,{"$f":"Import!E34225","v":"Select"},{"$f":"Import!E34325","v":"Select"},{"$f":"Import!E34425","v":"Select"},{"$f":"Import!E34525","v":"Select"},{"$f":"Import!E34625","v":0},{"$f":"Import!E34725","v":0},{"$f":"Import!E34825","v":0},{"$f":"Import!E34925","v":0},{"$f":"Import!E35025","v":0}]
[27,{"$f":"Import!E34226","v":"Select"},{"$f":"Import!E34326","v":"Select"},{"$f":"Import!E34426","v":"Select"},{"$f":"Import!E34526","v":"Select"},{"$f":"Import!E34626","v":0},{"$f":"Import!E34726","v":0},{"$f":"Import!E34826","v":0},{"$f":"Import!E34926","v":0},{"$f":"Import!E35026","v":0}]
[28,{"$f":"Import!E34227","v":"Select"},{"$f":"Import!E34327","v":"Select"},{"$f":"Import!E34427","v":"Select"},{"$f":"Import!E34527","v":"Select"},{"$f":"Import!E34627","v":0},{"$f":"Import!E34727","v":0},{"$f":"Import!E34827","v":0},{"$f":"Import!E34927","v":0},{"$f":"Import!E35027","v":0}]
[29,{"$f":"Import!E34228","v":"Select"},{"$f":"Import!E34328","v":"Select"},{"$f":"Import!E34428","v":"Select"},{"$f":"Import!E34528","v":"Select"},{"$f":"Import!E34628","v":0},{"$f":"Import!E34728","v":0},{"$f":"Import!E34828","v":0},{"$f":"Import!E34928","v":0},{"$f":"Import!E35028","v":0}]
[30,{"$f":"Import!E34229","v":"Select"},{"$f":"Import!E34329","v":"Select"},{"$f":"Import!E34429","v":"Select"},{"$f":"Import!E34529","v":"Select"},{"$f":"Import!E34629","v":0},{"$f":"Import!E34729","v":0},{"$f":"Import!E34829","v":0},{"$f":"Import!E34929","v":0},{"$f":"Import!E35029","v":0}]
[31,{"$f":"Import!E34230","v":"Select"},{"$f":"Import!E34330","v":"Select"},{"$f":"Import!E34430","v":"Select"},{"$f":"Import!E34530","v":"Select"},{"$f":"Import!E34630","v":0},{"$f":"Import!E34730","v":0},{"$f":"Import!E34830","v":0},{"$f":"Import!E34930","v":0},{"$f":"Import!E35030","v":0}]
[32,{"$f":"Import!E34231","v":"Select"},{"$f":"Import!E34331","v":"Select"},{"$f":"Import!E34431","v":"Select"},{"$f":"Import!E34531","v":"Select"},{"$f":"Import!E34631","v":0},{"$f":"Import!E34731","v":0},{"$f":"Import!E34831","v":0},{"$f":"Import!E34931","v":0},{"$f":"Import!E35031","v":0}]
[33,{"$f":"Import!E34232","v":"Select"},{"$f":"Import!E34332","v":"Select"},{"$f":"Import!E34432","v":"Select"},{"$f":"Import!E34532","v":"Select"},{"$f":"Import!E34632","v":0},{"$f":"Import!E34732","v":0},{"$f":"Import!E34832","v":0},{"$f":"Import!E34932","v":0},{"$f":"Import!E35032","v":0}]
[34,{"$f":"Import!E34233","v":"Select"},{"$f":"Import!E34333","v":"Select"},{"$f":"Import!E34433","v":"Select"},{"$f":"Import!E34533","v":"Select"},{"$f":"Import!E34633","v":0},{"$f":"Import!E34733","v":0},{"$f":"Import!E34833","v":0},{"$f":"Import!E34933","v":0},{"$f":"Import!E35033","v":0}]
[35,{"$f":"Import!E34234","v":"Select"},{"$f":"Import!E34334","v":"Select"},{"$f":"Import!E34434","v":"Select"},{"$f":"Import!E34534","v":"Select"},{"$f":"Import!E34634","v":0},{"$f":"Import!E34734","v":0},{"$f":"Import!E34834","v":0},{"$f":"Import!E34934","v":0},{"$f":"Import!E35034","v":0}]
[36,{"$f":"Import!E34235","v":"Select"},{"$f":"Import!E34335","v":"Select"},{"$f":"Import!E34435","v":"Select"},{"$f":"Import!E34535","v":"Select"},{"$f":"Import!E34635","v":0},{"$f":"Import!E34735","v":0},{"$f":"Import!E34835","v":0},{"$f":"Import!E34935","v":0},{"$f":"Import!E35035","v":0}]
[37,{"$f":"Import!E34236","v":"Select"},{"$f":"Import!E34336","v":"Select"},{"$f":"Import!E34436","v":"Select"},{"$f":"Import!E34536","v":"Select"},{"$f":"Import!E34636","v":0},{"$f":"Import!E34736","v":0},{"$f":"Import!E34836","v":0},{"$f":"Import!E34936","v":0},{"$f":"Import!E35036","v":0}]
[38,{"$f":"Import!E34237","v":"Select"},{"$f":"Import!E34337","v":"Select"},{"$f":"Import!E34437","v":"Select"},{"$f":"Import!E34537","v":"Select"},{"$f":"Import!E34637","v":0},{"$f":"Import!E34737","v":0},{"$f":"Import!E34837","v":0},{"$f":"Import!E34937","v":0},{"$f":"Import!E35037","v":0}]
[39,{"$f":"Import!E34238","v":"Select"},{"$f":"Import!E34338","v":"Select"},{"$f":"Import!E34438","v":"Select"},{"$f":"Import!E34538","v":"Select"},{"$f":"Import!E34638","v":0},{"$f":"Import!E34738","v":0},{"$f":"Import!E34838","v":0},{"$f":"Import!E34938","v":0},{"$f":"Import!E35038","v":0}]
[40,{"$f":"Import!E34239","v":"Select"},{"$f":"Import!E34339","v":"Select"},{"$f":"Import!E34439","v":"Select"},{"$f":"Import!E34539","v":"Select"},{"$f":"Import!E34639","v":0},{"$f":"Import!E34739","v":0},{"$f":"Import!E34839","v":0},{"$f":"Import!E34939","v":0},{"$f":"Import!E35039","v":0}]
[41,{"$f":"Import!E34240","v":"Select"},{"$f":"Import!E34340","v":"Select"},{"$f":"Import!E34440","v":"Select"},{"$f":"Import!E34540","v":"Select"},{"$f":"Import!E34640","v":0},{"$f":"Import!E34740","v":0},{"$f":"Import!E34840","v":0},{"$f":"Import!E34940","v":0},{"$f":"Import!E35040","v":0}]
[42,{"$f":"Import!E34241","v":"Select"},{"$f":"Import!E34341","v":"Select"},{"$f":"Import!E34441","v":"Select"},{"$f":"Import!E34541","v":"Select"},{"$f":"Import!E34641","v":0},{"$f":"Import!E34741","v":0},{"$f":"Import!E34841","v":0},{"$f":"Import!E34941","v":0},{"$f":"Import!E35041","v":0}]
[43,{"$f":"Import!E34242","v":"Select"},{"$f":"Import!E34342","v":"Select"},{"$f":"Import!E34442","v":"Select"},{"$f":"Import!E34542","v":"Select"},{"$f":"Import!E34642","v":0},{"$f":"Import!E34742","v":0},{"$f":"Import!E34842","v":0},{"$f":"Import!E34942","v":0},{"$f":"Import!E35042","v":0}]
[44,{"$f":"Import!E34243","v":"Select"},{"$f":"Import!E34343","v":"Select"},{"$f":"Import!E34443","v":"Select"},{"$f":"Import!E34543","v":"Select"},{"$f":"Import!E34643","v":0},{"$f":"Import!E34743","v":0},{"$f":"Import!E34843","v":0},{"$f":"Import!E34943","v":0},{"$f":"Import!E35043","v":0}]
[45,{"$f":"Import!E34244","v":"Select"},{"$f":"Import!E34344","v":"Select"},{"$f":"Import!E34444","v":"Select"},{"$f":"Import!E34544","v":"Select"},{"$f":"Import!E34644","v":0},{"$f":"Import!E34744","v":0},{"$f":"Import!E34844","v":0},{"$f":"Import!E34944","v":0},{"$f":"Import!E35044","v":0}]
[46,{"$f":"Import!E34245","v":"Select"},{"$f":"Import!E34345","v":"Select"},{"$f":"Import!E34445","v":"Select"},{"$f":"Import!E34545","v":"Select"},{"$f":"Import!E34645","v":0},{"$f":"Import!E34745","v":0},{"$f":"Import!E34845","v":0},{"$f":"Import!E34945","v":0},{"$f":"Import!E35045","v":0}]
[47,{"$f":"Import!E34246","v":"Select"},{"$f":"Import!E34346","v":"Select"},{"$f":"Import!E34446","v":"Select"},{"$f":"Import!E34546","v":"Select"},{"$f":"Import!E34646","v":0},{"$f":"Import!E34746","v":0},{"$f":"Import!E34846","v":0},{"$f":"Import!E34946","v":0},{"$f":"Import!E35046","v":0}]
[48,{"$f":"Import!E34247","v":"Select"},{"$f":"Import!E34347","v":"Select"},{"$f":"Import!E34447","v":"Select"},{"$f":"Import!E34547","v":"Select"},{"$f":"Import!E34647","v":0},{"$f":"Import!E34747","v":0},{"$f":"Import!E34847","v":0},{"$f":"Import!E34947","v":0},{"$f":"Import!E35047","v":0}]
[49,{"$f":"Import!E34248","v":"Select"},{"$f":"Import!E34348","v":"Select"},{"$f":"Import!E34448","v":"Select"},{"$f":"Import!E34548","v":"Select"},{"$f":"Import!E34648","v":0},{"$f":"Import!E34748","v":0},{"$f":"Import!E34848","v":0},{"$f":"Import!E34948","v":0},{"$f":"Import!E35048","v":0}]
[50,{"$f":"Import!E34249","v":"Select"},{"$f":"Import!E34349","v":"Select"},{"$f":"Import!E34449","v":"Select"},{"$f":"Import!E34549","v":"Select"},{"$f":"Import!E34649","v":0},{"$f":"Import!E34749","v":0},{"$f":"Import!E34849","v":0},{"$f":"Import!E34949","v":0},{"$f":"Import!E35049","v":0}]
[51,{"$f":"Import!E34250","v":"Select"},{"$f":"Import!E34350","v":"Select"},{"$f":"Import!E34450","v":"Select"},{"$f":"Import!E34550","v":"Select"},{"$f":"Import!E34650","v":0},{"$f":"Import!E34750","v":0},{"$f":"Import!E34850","v":0},{"$f":"Import!E34950","v":0},{"$f":"Import!E35050","v":0}]
[52,{"$f":"Import!E34251","v":"Select"},{"$f":"Import!E34351","v":"Select"},{"$f":"Import!E34451","v":"Select"},{"$f":"Import!E34551","v":"Select"},{"$f":"Import!E34651","v":0},{"$f":"Import!E34751","v":0},{"$f":"Import!E34851","v":0},{"$f":"Import!E34951","v":0},{"$f":"Import!E35051","v":0}]
[53,{"$f":"Import!E34252","v":"Select"},{"$f":"Import!E34352","v":"Select"},{"$f":"Import!E34452","v":"Select"},{"$f":"Import!E34552","v":"Select"},{"$f":"Import!E34652","v":0},{"$f":"Import!E34752","v":0},{"$f":"Import!E34852","v":0},{"$f":"Import!E34952","v":0},{"$f":"Import!E35052","v":0}]
[54,{"$f":"Import!E34253","v":"Select"},{"$f":"Import!E34353","v":"Select"},{"$f":"Import!E34453","v":"Select"},{"$f":"Import!E34553","v":"Select"},{"$f":"Import!E34653","v":0},{"$f":"Import!E34753","v":0},{"$f":"Import!E34853","v":0},{"$f":"Import!E34953","v":0},{"$f":"Import!E35053","v":0}]
[55,{"$f":"Import!E34254","v":"Select"},{"$f":"Import!E34354","v":"Select"},{"$f":"Import!E34454","v":"Select"},{"$f":"Import!E34554","v":"Select"},{"$f":"Import!E34654","v":0},{"$f":"Import!E34754","v":0},{"$f":"Import!E34854","v":0},{"$f":"Import!E34954","v":0},{"$f":"Import!E35054","v":0}]
[56,{"$f":"Import!E34255","v":"Select"},{"$f":"Import!E34355","v":"Select"},{"$f":"Import!E34455","v":"Select"},{"$f":"Import!E34555","v":"Select"},{"$f":"Import!E34655","v":0},{"$f":"Import!E34755","v":0},{"$f":"Import!E34855","v":0},{"$f":"Import!E34955","v":0},{"$f":"Import!E35055","v":0}]
[57,{"$f":"Import!E34256","v":"Select"},{"$f":"Import!E34356","v":"Select"},{"$f":"Import!E34456","v":"Select"},{"$f":"Import!E34556","v":"Select"},{"$f":"Import!E34656","v":0},{"$f":"Import!E34756","v":0},{"$f":"Import!E34856","v":0},{"$f":"Import!E34956","v":0},{"$f":"Import!E35056","v":0}]
[58,{"$f":"Import!E34257","v":"Select"},{"$f":"Import!E34357","v":"Select"},{"$f":"Import!E34457","v":"Select"},{"$f":"Import!E34557","v":"Select"},{"$f":"Import!E34657","v":0},{"$f":"Import!E34757","v":0},{"$f":"Import!E34857","v":0},{"$f":"Import!E34957","v":0},{"$f":"Import!E35057","v":0}]
[59,{"$f":"Import!E34258","v":"Select"},{"$f":"Import!E34358","v":"Select"},{"$f":"Import!E34458","v":"Select"},{"$f":"Import!E34558","v":"Select"},{"$f":"Import!E34658","v":0},{"$f":"Import!E34758","v":0},{"$f":"Import!E34858","v":0},{"$f":"Import!E34958","v":0},{"$f":"Import!E35058","v":0}]
[60,{"$f":"Import!E34259","v":"Select"},{"$f":"Import!E34359","v":"Select"},{"$f":"Import!E34459","v":"Select"},{"$f":"Import!E34559","v":"Select"},{"$f":"Import!E34659","v":0},{"$f":"Import!E34759","v":0},{"$f":"Import!E34859","v":0},{"$f":"Import!E34959","v":0},{"$f":"Import!E35059","v":0}]
[61,{"$f":"Import!E34260","v":"Select"},{"$f":"Import!E34360","v":"Select"},{"$f":"Import!E34460","v":"Select"},{"$f":"Import!E34560","v":"Select"},{"$f":"Import!E34660","v":0},{"$f":"Import!E34760","v":0},{"$f":"Import!E34860","v":0},{"$f":"Import!E34960","v":0},{"$f":"Import!E35060","v":0}]
[62,{"$f":"Import!E34261","v":"Select"},{"$f":"Import!E34361","v":"Select"},{"$f":"Import!E34461","v":"Select"},{"$f":"Import!E34561","v":"Select"},{"$f":"Import!E34661","v":0},{"$f":"Import!E34761","v":0},{"$f":"Import!E34861","v":0},{"$f":"Import!E34961","v":0},{"$f":"Import!E35061","v":0}]
[63,{"$f":"Import!E34262","v":"Select"},{"$f":"Import!E34362","v":"Select"},{"$f":"Import!E34462","v":"Select"},{"$f":"Import!E34562","v":"Select"},{"$f":"Import!E34662","v":0},{"$f":"Import!E34762","v":0},{"$f":"Import!E34862","v":0},{"$f":"Import!E34962","v":0},{"$f":"Import!E35062","v":0}]
[64,{"$f":"Import!E34263","v":"Select"},{"$f":"Import!E34363","v":"Select"},{"$f":"Import!E34463","v":"Select"},{"$f":"Import!E34563","v":"Select"},{"$f":"Import!E34663","v":0},{"$f":"Import!E34763","v":0},{"$f":"Import!E34863","v":0},{"$f":"Import!E34963","v":0},{"$f":"Import!E35063","v":0}]
[65,{"$f":"Import!E34264","v":"Select"},{"$f":"Import!E34364","v":"Select"},{"$f":"Import!E34464","v":"Select"},{"$f":"Import!E34564","v":"Select"},{"$f":"Import!E34664","v":0},{"$f":"Import!E34764","v":0},{"$f":"Import!E34864","v":0},{"$f":"Import!E34964","v":0},{"$f":"Import!E35064","v":0}]
[66,{"$f":"Import!E34265","v":"Select"},{"$f":"Import!E34365","v":"Select"},{"$f":"Import!E34465","v":"Select"},{"$f":"Import!E34565","v":"Select"},{"$f":"Import!E34665","v":0},{"$f":"Import!E34765","v":0},{"$f":"Import!E34865","v":0},{"$f":"Import!E34965","v":0},{"$f":"Import!E35065","v":0}]
[{"$f":"A1518+1","v":67},{"$f":"Import!E34266","v":"Select"},{"$f":"Import!E34366","v":"Select"},{"$f":"Import!E34466","v":"Select"},{"$f":"Import!E34566","v":"Select"},{"$f":"Import!E34666","v":0},{"$f":"Import!E34766","v":0},{"$f":"Import!E34866","v":0},{"$f":"Import!E34966","v":0},{"$f":"Import!E35066","v":0}]
[68,{"$f":"Import!E34267","v":"Select"},{"$f":"Import!E34367","v":"Select"},{"$f":"Import!E34467","v":"Select"},{"$f":"Import!E34567","v":"Select"},{"$f":"Import!E34667","v":0},{"$f":"Import!E34767","v":0},{"$f":"Import!E34867","v":0},{"$f":"Import!E34967","v":0},{"$f":"Import!E35067","v":0}]
[69,{"$f":"Import!E34268","v":"Select"},{"$f":"Import!E34368","v":"Select"},{"$f":"Import!E34468","v":"Select"},{"$f":"Import!E34568","v":"Select"},{"$f":"Import!E34668","v":0},{"$f":"Import!E34768","v":0},{"$f":"Import!E34868","v":0},{"$f":"Import!E34968","v":0},{"$f":"Import!E35068","v":0}]
[70,{"$f":"Import!E34269","v":"Select"},{"$f":"Import!E34369","v":"Select"},{"$f":"Import!E34469","v":"Select"},{"$f":"Import!E34569","v":"Select"},{"$f":"Import!E34669","v":0},{"$f":"Import!E34769","v":0},{"$f":"Import!E34869","v":0},{"$f":"Import!E34969","v":0},{"$f":"Import!E35069","v":0}]
[71,{"$f":"Import!E34270","v":"Select"},{"$f":"Import!E34370","v":"Select"},{"$f":"Import!E34470","v":"Select"},{"$f":"Import!E34570","v":"Select"},{"$f":"Import!E34670","v":0},{"$f":"Import!E34770","v":0},{"$f":"Import!E34870","v":0},{"$f":"Import!E34970","v":0},{"$f":"Import!E35070","v":0}]
[72,{"$f":"Import!E34271","v":"Select"},{"$f":"Import!E34371","v":"Select"},{"$f":"Import!E34471","v":"Select"},{"$f":"Import!E34571","v":"Select"},{"$f":"Import!E34671","v":0},{"$f":"Import!E34771","v":0},{"$f":"Import!E34871","v":0},{"$f":"Import!E34971","v":0},{"$f":"Import!E35071","v":0}]
[73,{"$f":"Import!E34272","v":"Select"},{"$f":"Import!E34372","v":"Select"},{"$f":"Import!E34472","v":"Select"},{"$f":"Import!E34572","v":"Select"},{"$f":"Import!E34672","v":0},{"$f":"Import!E34772","v":0},{"$f":"Import!E34872","v":0},{"$f":"Import!E34972","v":0},{"$f":"Import!E35072","v":0}]
[74,{"$f":"Import!E34273","v":"Select"},{"$f":"Import!E34373","v":"Select"},{"$f":"Import!E34473","v":"Select"},{"$f":"Import!E34573","v":"Select"},{"$f":"Import!E34673","v":0},{"$f":"Import!E34773","v":0},{"$f":"Import!E34873","v":0},{"$f":"Import!E34973","v":0},{"$f":"Import!E35073","v":0}]
[75,{"$f":"Import!E34274","v":"Select"},{"$f":"Import!E34374","v":"Select"},{"$f":"Import!E34474","v":"Select"},{"$f":"Import!E34574","v":"Select"},{"$f":"Import!E34674","v":0},{"$f":"Import!E34774","v":0},{"$f":"Import!E34874","v":0},{"$f":"Import!E34974","v":0},{"$f":"Import!E35074","v":0}]
[76,{"$f":"Import!E34275","v":"Select"},{"$f":"Import!E34375","v":"Select"},{"$f":"Import!E34475","v":"Select"},{"$f":"Import!E34575","v":"Select"},{"$f":"Import!E34675","v":0},{"$f":"Import!E34775","v":0},{"$f":"Import!E34875","v":0},{"$f":"Import!E34975","v":0},{"$f":"Import!E35075","v":0}]
[77,{"$f":"Import!E34276","v":"Select"},{"$f":"Import!E34376","v":"Select"},{"$f":"Import!E34476","v":"Select"},{"$f":"Import!E34576","v":"Select"},{"$f":"Import!E34676","v":0},{"$f":"Import!E34776","v":0},{"$f":"Import!E34876","v":0},{"$f":"Import!E34976","v":0},{"$f":"Import!E35076","v":0}]
[78,{"$f":"Import!E34277","v":"Select"},{"$f":"Import!E34377","v":"Select"},{"$f":"Import!E34477","v":"Select"},{"$f":"Import!E34577","v":"Select"},{"$f":"Import!E34677","v":0},{"$f":"Import!E34777","v":0},{"$f":"Import!E34877","v":0},{"$f":"Import!E34977","v":0},{"$f":"Import!E35077","v":0}]
[79,{"$f":"Import!E34278","v":"Select"},{"$f":"Import!E34378","v":"Select"},{"$f":"Import!E34478","v":"Select"},{"$f":"Import!E34578","v":"Select"},{"$f":"Import!E34678","v":0},{"$f":"Import!E34778","v":0},{"$f":"Import!E34878","v":0},{"$f":"Import!E34978","v":0},{"$f":"Import!E35078","v":0}]
[80,{"$f":"Import!E34279","v":"Select"},{"$f":"Import!E34379","v":"Select"},{"$f":"Import!E34479","v":"Select"},{"$f":"Import!E34579","v":"Select"},{"$f":"Import!E34679","v":0},{"$f":"Import!E34779","v":0},{"$f":"Import!E34879","v":0},{"$f":"Import!E34979","v":0},{"$f":"Import!E35079","v":0}]
[81,{"$f":"Import!E34280","v":"Select"},{"$f":"Import!E34380","v":"Select"},{"$f":"Import!E34480","v":"Select"},{"$f":"Import!E34580","v":"Select"},{"$f":"Import!E34680","v":0},{"$f":"Import!E34780","v":0},{"$f":"Import!E34880","v":0},{"$f":"Import!E34980","v":0},{"$f":"Import!E35080","v":0}]
[82,{"$f":"Import!E34281","v":"Select"},{"$f":"Import!E34381","v":"Select"},{"$f":"Import!E34481","v":"Select"},{"$f":"Import!E34581","v":"Select"},{"$f":"Import!E34681","v":0},{"$f":"Import!E34781","v":0},{"$f":"Import!E34881","v":0},{"$f":"Import!E34981","v":0},{"$f":"Import!E35081","v":0}]
[83,{"$f":"Import!E34282","v":"Select"},{"$f":"Import!E34382","v":"Select"},{"$f":"Import!E34482","v":"Select"},{"$f":"Import!E34582","v":"Select"},{"$f":"Import!E34682","v":0},{"$f":"Import!E34782","v":0},{"$f":"Import!E34882","v":0},{"$f":"Import!E34982","v":0},{"$f":"Import!E35082","v":0}]
[84,{"$f":"Import!E34283","v":"Select"},{"$f":"Import!E34383","v":"Select"},{"$f":"Import!E34483","v":"Select"},{"$f":"Import!E34583","v":"Select"},{"$f":"Import!E34683","v":0},{"$f":"Import!E34783","v":0},{"$f":"Import!E34883","v":0},{"$f":"Import!E34983","v":0},{"$f":"Import!E35083","v":0}]
[85,{"$f":"Import!E34284","v":"Select"},{"$f":"Import!E34384","v":"Select"},{"$f":"Import!E34484","v":"Select"},{"$f":"Import!E34584","v":"Select"},{"$f":"Import!E34684","v":0},{"$f":"Import!E34784","v":0},{"$f":"Import!E34884","v":0},{"$f":"Import!E34984","v":0},{"$f":"Import!E35084","v":0}]
[86,{"$f":"Import!E34285","v":"Select"},{"$f":"Import!E34385","v":"Select"},{"$f":"Import!E34485","v":"Select"},{"$f":"Import!E34585","v":"Select"},{"$f":"Import!E34685","v":0},{"$f":"Import!E34785","v":0},{"$f":"Import!E34885","v":0},{"$f":"Import!E34985","v":0},{"$f":"Import!E35085","v":0}]
[87,{"$f":"Import!E34286","v":"Select"},{"$f":"Import!E34386","v":"Select"},{"$f":"Import!E34486","v":"Select"},{"$f":"Import!E34586","v":"Select"},{"$f":"Import!E34686","v":0},{"$f":"Import!E34786","v":0},{"$f":"Import!E34886","v":0},{"$f":"Import!E34986","v":0},{"$f":"Import!E35086","v":0}]
[88,{"$f":"Import!E34287","v":"Select"},{"$f":"Import!E34387","v":"Select"},{"$f":"Import!E34487","v":"Select"},{"$f":"Import!E34587","v":"Select"},{"$f":"Import!E34687","v":0},{"$f":"Import!E34787","v":0},{"$f":"Import!E34887","v":0},{"$f":"Import!E34987","v":0},{"$f":"Import!E35087","v":0}]
[89,{"$f":"Import!E34288","v":"Select"},{"$f":"Import!E34388","v":"Select"},{"$f":"Import!E34488","v":"Select"},{"$f":"Import!E34588","v":"Select"},{"$f":"Import!E34688","v":0},{"$f":"Import!E34788","v":0},{"$f":"Import!E34888","v":0},{"$f":"Import!E34988","v":0},{"$f":"Import!E35088","v":0}]
[90,{"$f":"Import!E34289","v":"Select"},{"$f":"Import!E34389","v":"Select"},{"$f":"Import!E34489","v":"Select"},{"$f":"Import!E34589","v":"Select"},{"$f":"Import!E34689","v":0},{"$f":"Import!E34789","v":0},{"$f":"Import!E34889","v":0},{"$f":"Import!E34989","v":0},{"$f":"Import!E35089","v":0}]
[91,{"$f":"Import!E34290","v":"Select"},{"$f":"Import!E34390","v":"Select"},{"$f":"Import!E34490","v":"Select"},{"$f":"Import!E34590","v":"Select"},{"$f":"Import!E34690","v":0},{"$f":"Import!E34790","v":0},{"$f":"Import!E34890","v":0},{"$f":"Import!E34990","v":0},{"$f":"Import!E35090","v":0}]
[92,{"$f":"Import!E34291","v":"Select"},{"$f":"Import!E34391","v":"Select"},{"$f":"Import!E34491","v":"Select"},{"$f":"Import!E34591","v":"Select"},{"$f":"Import!E34691","v":0},{"$f":"Import!E34791","v":0},{"$f":"Import!E34891","v":0},{"$f":"Import!E34991","v":0},{"$f":"Import!E35091","v":0}]
[93,{"$f":"Import!E34292","v":"Select"},{"$f":"Import!E34392","v":"Select"},{"$f":"Import!E34492","v":"Select"},{"$f":"Import!E34592","v":"Select"},{"$f":"Import!E34692","v":0},{"$f":"Import!E34792","v":0},{"$f":"Import!E34892","v":0},{"$f":"Import!E34992","v":0},{"$f":"Import!E35092","v":0}]
[94,{"$f":"Import!E34293","v":"Select"},{"$f":"Import!E34393","v":"Select"},{"$f":"Import!E34493","v":"Select"},{"$f":"Import!E34593","v":"Select"},{"$f":"Import!E34693","v":0},{"$f":"Import!E34793","v":0},{"$f":"Import!E34893","v":0},{"$f":"Import!E34993","v":0},{"$f":"Import!E35093","v":0}]
[95,{"$f":"Import!E34294","v":"Select"},{"$f":"Import!E34394","v":"Select"},{"$f":"Import!E34494","v":"Select"},{"$f":"Import!E34594","v":"Select"},{"$f":"Import!E34694","v":0},{"$f":"Import!E34794","v":0},{"$f":"Import!E34894","v":0},{"$f":"Import!E34994","v":0},{"$f":"Import!E35094","v":0}]
[96,{"$f":"Import!E34295","v":"Select"},{"$f":"Import!E34395","v":"Select"},{"$f":"Import!E34495","v":"Select"},{"$f":"Import!E34595","v":"Select"},{"$f":"Import!E34695","v":0},{"$f":"Import!E34795","v":0},{"$f":"Import!E34895","v":0},{"$f":"Import!E34995","v":0},{"$f":"Import!E35095","v":0}]
[97,{"$f":"Import!E34296","v":"Select"},{"$f":"Import!E34396","v":"Select"},{"$f":"Import!E34496","v":"Select"},{"$f":"Import!E34596","v":"Select"},{"$f":"Import!E34696","v":0},{"$f":"Import!E34796","v":0},{"$f":"Import!E34896","v":0},{"$f":"Import!E34996","v":0},{"$f":"Import!E35096","v":0}]
[98,{"$f":"Import!E34297","v":"Select"},{"$f":"Import!E34397","v":"Select"},{"$f":"Import!E34497","v":"Select"},{"$f":"Import!E34597","v":"Select"},{"$f":"Import!E34697","v":0},{"$f":"Import!E34797","v":0},{"$f":"Import!E34897","v":0},{"$f":"Import!E34997","v":0},{"$f":"Import!E35097","v":0}]
[99,{"$f":"Import!E34298","v":"Select"},{"$f":"Import!E34398","v":"Select"},{"$f":"Import!E34498","v":"Select"},{"$f":"Import!E34598","v":"Select"},{"$f":"Import!E34698","v":0},{"$f":"Import!E34798","v":0},{"$f":"Import!E34898","v":0},{"$f":"Import!E34998","v":0},{"$f":"Import!E35098","v":0}]
[100,{"$f":"Import!E34299","v":"Select"},{"$f":"Import!E34399","v":"Select"},{"$f":"Import!E34499","v":"Select"},{"$f":"Import!E34599","v":"Select"},{"$f":"Import!E34699","v":0},{"$f":"Import!E34799","v":0},{"$f":"Import!E34899","v":0},{"$f":"Import!E34999","v":0},{"$f":"Import!E35099","v":0}]
[]
[null,"Total Other Alternative Investments",null,null,null,{"$f":"SUM(F1453:F1552)","v":0},{"$f":"SUM(G1453:G1552)","v":0},{"$f":"IFERROR(SUMPRODUCT(H1453:H1552,$G1453:$G1552)/SUM($G1453:$G1552),0)","v":0},{"$f":"IFERROR(SUMPRODUCT(I1453:I1552,$G1453:$G1552)/SUM($G1453:$G1552),0)","v":0}]
[]
[null,"(I) DERIVATIVES"]
[]
[null,null,"Enter # of Derivative Types",{"$f":"Import!E35100","v":0}]
[null,"Derivative Type","Underlying","Currency","Trading Category","Purpose","Position","Confirm line contains only derivatives with:",{"$f":"YEAR($C$3)&\" \nMarket Value\"","v":"2023 \nMarket Value"},"Gross Notional Value","Net Notional Value","Exposure (Dollar Delta, DV01, CS01","Comments"]
[1,{"$f":"Import!E35101","v":"Select"},{"$f":"Import!E35301","v":"Select"},{"$f":"Import!E35501","v":"Select"},{"$f":"Import!E35701","v":"Select"},{"$f":"Import!E35901","v":"Select"},{"$f":"Import!E36101","v":"Select"},{"$f":"Import!E36301","v":"Select"},{"$f":"Import!E36501","v":0},{"$f":"Import!E36701","v":0},{"$f":"Import!E36901","v":0},{"$f":"Import!E37101","v":0},{"$f":"Import!E37301","v":0}]
[{"$f":"A1560+1","v":2},{"$f":"Import!E35102","v":"Select"},{"$f":"Import!E35302","v":"Select"},{"$f":"Import!E35502","v":"Select"},{"$f":"Import!E35702","v":"Select"},{"$f":"Import!E35902","v":"Select"},{"$f":"Import!E36102","v":"Select"},{"$f":"Import!E36302","v":"Select"},{"$f":"Import!E36502","v":0},{"$f":"Import!E36702","v":0},{"$f":"Import!E36902","v":0},{"$f":"Import!E37102","v":0},{"$f":"Import!E37302","v":0}]
[{"$f":"A1561+1","v":3},{"$f":"Import!E35103","v":"Select"},{"$f":"Import!E35303","v":"Select"},{"$f":"Import!E35503","v":"Select"},{"$f":"Import!E35703","v":"Select"},{"$f":"Import!E35903","v":"Select"},{"$f":"Import!E36103","v":"Select"},{"$f":"Import!E36303","v":"Select"},{"$f":"Import!E36503","v":0},{"$f":"Import!E36703","v":0},{"$f":"Import!E36903","v":0},{"$f":"Import!E37103","v":0},{"$f":"Import!E37303","v":0}]
[4,{"$f":"Import!E35104","v":"Select"},{"$f":"Import!E35304","v":"Select"},{"$f":"Import!E35504","v":"Select"},{"$f":"Import!E35704","v":"Select"},{"$f":"Import!E35904","v":"Select"},{"$f":"Import!E36104","v":"Select"},{"$f":"Import!E36304","v":"Select"},{"$f":"Import!E36504","v":0},{"$f":"Import!E36704","v":0},{"$f":"Import!E36904","v":0},{"$f":"Import!E37104","v":0},{"$f":"Import!E37304","v":0}]
[5,{"$f":"Import!E35105","v":"Select"},{"$f":"Import!E35305","v":"Select"},{"$f":"Import!E35505","v":"Select"},{"$f":"Import!E35705","v":"Select"},{"$f":"Import!E35905","v":"Select"},{"$f":"Import!E36105","v":"Select"},{"$f":"Import!E36305","v":"Select"},{"$f":"Import!E36505","v":0},{"$f":"Import!E36705","v":0},{"$f":"Import!E36905","v":0},{"$f":"Import!E37105","v":0},{"$f":"Import!E37305","v":0}]
[6,{"$f":"Import!E35106","v":"Select"},{"$f":"Import!E35306","v":"Select"},{"$f":"Import!E35506","v":"Select"},{"$f":"Import!E35706","v":"Select"},{"$f":"Import!E35906","v":"Select"},{"$f":"Import!E36106","v":"Select"},{"$f":"Import!E36306","v":"Select"},{"$f":"Import!E36506","v":0},{"$f":"Import!E36706","v":0},{"$f":"Import!E36906","v":0},{"$f":"Import!E37106","v":0},{"$f":"Import!E37306","v":0}]
[7,{"$f":"Import!E35107","v":"Select"},{"$f":"Import!E35307","v":"Select"},{"$f":"Import!E35507","v":"Select"},{"$f":"Import!E35707","v":"Select"},{"$f":"Import!E35907","v":"Select"},{"$f":"Import!E36107","v":"Select"},{"$f":"Import!E36307","v":"Select"},{"$f":"Import!E36507","v":0},{"$f":"Import!E36707","v":0},{"$f":"Import!E36907","v":0},{"$f":"Import!E37107","v":0},{"$f":"Import!E37307","v":0}]
[8,{"$f":"Import!E35108","v":"Select"},{"$f":"Import!E35308","v":"Select"},{"$f":"Import!E35508","v":"Select"},{"$f":"Import!E35708","v":"Select"},{"$f":"Import!E35908","v":"Select"},{"$f":"Import!E36108","v":"Select"},{"$f":"Import!E36308","v":"Select"},{"$f":"Import!E36508","v":0},{"$f":"Import!E36708","v":0},{"$f":"Import!E36908","v":0},{"$f":"Import!E37108","v":0},{"$f":"Import!E37308","v":0}]
[9,{"$f":"Import!E35109","v":"Select"},{"$f":"Import!E35309","v":"Select"},{"$f":"Import!E35509","v":"Select"},{"$f":"Import!E35709","v":"Select"},{"$f":"Import!E35909","v":"Select"},{"$f":"Import!E36109","v":"Select"},{"$f":"Import!E36309","v":"Select"},{"$f":"Import!E36509","v":0},{"$f":"Import!E36709","v":0},{"$f":"Import!E36909","v":0},{"$f":"Import!E37109","v":0},{"$f":"Import!E37309","v":0}]
[10,{"$f":"Import!E35110","v":"Select"},{"$f":"Import!E35310","v":"Select"},{"$f":"Import!E35510","v":"Select"},{"$f":"Import!E35710","v":"Select"},{"$f":"Import!E35910","v":"Select"},{"$f":"Import!E36110","v":"Select"},{"$f":"Import!E36310","v":"Select"},{"$f":"Import!E36510","v":0},{"$f":"Import!E36710","v":0},{"$f":"Import!E36910","v":0},{"$f":"Import!E37110","v":0},{"$f":"Import!E37310","v":0}]
[11,{"$f":"Import!E35111","v":"Select"},{"$f":"Import!E35311","v":"Select"},{"$f":"Import!E35511","v":"Select"},{"$f":"Import!E35711","v":"Select"},{"$f":"Import!E35911","v":"Select"},{"$f":"Import!E36111","v":"Select"},{"$f":"Import!E36311","v":"Select"},{"$f":"Import!E36511","v":0},{"$f":"Import!E36711","v":0},{"$f":"Import!E36911","v":0},{"$f":"Import!E37111","v":0},{"$f":"Import!E37311","v":0}]
[12,{"$f":"Import!E35112","v":"Select"},{"$f":"Import!E35312","v":"Select"},{"$f":"Import!E35512","v":"Select"},{"$f":"Import!E35712","v":"Select"},{"$f":"Import!E35912","v":"Select"},{"$f":"Import!E36112","v":"Select"},{"$f":"Import!E36312","v":"Select"},{"$f":"Import!E36512","v":0},{"$f":"Import!E36712","v":0},{"$f":"Import!E36912","v":0},{"$f":"Import!E37112","v":0},{"$f":"Import!E37312","v":0}]
[13,{"$f":"Import!E35113","v":"Select"},{"$f":"Import!E35313","v":"Select"},{"$f":"Import!E35513","v":"Select"},{"$f":"Import!E35713","v":"Select"},{"$f":"Import!E35913","v":"Select"},{"$f":"Import!E36113","v":"Select"},{"$f":"Import!E36313","v":"Select"},{"$f":"Import!E36513","v":0},{"$f":"Import!E36713","v":0},{"$f":"Import!E36913","v":0},{"$f":"Import!E37113","v":0},{"$f":"Import!E37313","v":0}]
[14,{"$f":"Import!E35114","v":"Select"},{"$f":"Import!E35314","v":"Select"},{"$f":"Import!E35514","v":"Select"},{"$f":"Import!E35714","v":"Select"},{"$f":"Import!E35914","v":"Select"},{"$f":"Import!E36114","v":"Select"},{"$f":"Import!E36314","v":"Select"},{"$f":"Import!E36514","v":0},{"$f":"Import!E36714","v":0},{"$f":"Import!E36914","v":0},{"$f":"Import!E37114","v":0},{"$f":"Import!E37314","v":0}]
[15,{"$f":"Import!E35115","v":"Select"},{"$f":"Import!E35315","v":"Select"},{"$f":"Import!E35515","v":"Select"},{"$f":"Import!E35715","v":"Select"},{"$f":"Import!E35915","v":"Select"},{"$f":"Import!E36115","v":"Select"},{"$f":"Import!E36315","v":"Select"},{"$f":"Import!E36515","v":0},{"$f":"Import!E36715","v":0},{"$f":"Import!E36915","v":0},{"$f":"Import!E37115","v":0},{"$f":"Import!E37315","v":0}]
[16,{"$f":"Import!E35116","v":"Select"},{"$f":"Import!E35316","v":"Select"},{"$f":"Import!E35516","v":"Select"},{"$f":"Import!E35716","v":"Select"},{"$f":"Import!E35916","v":"Select"},{"$f":"Import!E36116","v":"Select"},{"$f":"Import!E36316","v":"Select"},{"$f":"Import!E36516","v":0},{"$f":"Import!E36716","v":0},{"$f":"Import!E36916","v":0},{"$f":"Import!E37116","v":0},{"$f":"Import!E37316","v":0}]
[17,{"$f":"Import!E35117","v":"Select"},{"$f":"Import!E35317","v":"Select"},{"$f":"Import!E35517","v":"Select"},{"$f":"Import!E35717","v":"Select"},{"$f":"Import!E35917","v":"Select"},{"$f":"Import!E36117","v":"Select"},{"$f":"Import!E36317","v":"Select"},{"$f":"Import!E36517","v":0},{"$f":"Import!E36717","v":0},{"$f":"Import!E36917","v":0},{"$f":"Import!E37117","v":0},{"$f":"Import!E37317","v":0}]
[18,{"$f":"Import!E35118","v":"Select"},{"$f":"Import!E35318","v":"Select"},{"$f":"Import!E35518","v":"Select"},{"$f":"Import!E35718","v":"Select"},{"$f":"Import!E35918","v":"Select"},{"$f":"Import!E36118","v":"Select"},{"$f":"Import!E36318","v":"Select"},{"$f":"Import!E36518","v":0},{"$f":"Import!E36718","v":0},{"$f":"Import!E36918","v":0},{"$f":"Import!E37118","v":0},{"$f":"Import!E37318","v":0}]
[19,{"$f":"Import!E35119","v":"Select"},{"$f":"Import!E35319","v":"Select"},{"$f":"Import!E35519","v":"Select"},{"$f":"Import!E35719","v":"Select"},{"$f":"Import!E35919","v":"Select"},{"$f":"Import!E36119","v":"Select"},{"$f":"Import!E36319","v":"Select"},{"$f":"Import!E36519","v":0},{"$f":"Import!E36719","v":0},{"$f":"Import!E36919","v":0},{"$f":"Import!E37119","v":0},{"$f":"Import!E37319","v":0}]
[20,{"$f":"Import!E35120","v":"Select"},{"$f":"Import!E35320","v":"Select"},{"$f":"Import!E35520","v":"Select"},{"$f":"Import!E35720","v":"Select"},{"$f":"Import!E35920","v":"Select"},{"$f":"Import!E36120","v":"Select"},{"$f":"Import!E36320","v":"Select"},{"$f":"Import!E36520","v":0},{"$f":"Import!E36720","v":0},{"$f":"Import!E36920","v":0},{"$f":"Import!E37120","v":0},{"$f":"Import!E37320","v":0}]
[21,{"$f":"Import!E35121","v":"Select"},{"$f":"Import!E35321","v":"Select"},{"$f":"Import!E35521","v":"Select"},{"$f":"Import!E35721","v":"Select"},{"$f":"Import!E35921","v":"Select"},{"$f":"Import!E36121","v":"Select"},{"$f":"Import!E36321","v":"Select"},{"$f":"Import!E36521","v":0},{"$f":"Import!E36721","v":0},{"$f":"Import!E36921","v":0},{"$f":"Import!E37121","v":0},{"$f":"Import!E37321","v":0}]
[22,{"$f":"Import!E35122","v":"Select"},{"$f":"Import!E35322","v":"Select"},{"$f":"Import!E35522","v":"Select"},{"$f":"Import!E35722","v":"Select"},{"$f":"Import!E35922","v":"Select"},{"$f":"Import!E36122","v":"Select"},{"$f":"Import!E36322","v":"Select"},{"$f":"Import!E36522","v":0},{"$f":"Import!E36722","v":0},{"$f":"Import!E36922","v":0},{"$f":"Import!E37122","v":0},{"$f":"Import!E37322","v":0}]
[23,{"$f":"Import!E35123","v":"Select"},{"$f":"Import!E35323","v":"Select"},{"$f":"Import!E35523","v":"Select"},{"$f":"Import!E35723","v":"Select"},{"$f":"Import!E35923","v":"Select"},{"$f":"Import!E36123","v":"Select"},{"$f":"Import!E36323","v":"Select"},{"$f":"Import!E36523","v":0},{"$f":"Import!E36723","v":0},{"$f":"Import!E36923","v":0},{"$f":"Import!E37123","v":0},{"$f":"Import!E37323","v":0}]
[24,{"$f":"Import!E35124","v":"Select"},{"$f":"Import!E35324","v":"Select"},{"$f":"Import!E35524","v":"Select"},{"$f":"Import!E35724","v":"Select"},{"$f":"Import!E35924","v":"Select"},{"$f":"Import!E36124","v":"Select"},{"$f":"Import!E36324","v":"Select"},{"$f":"Import!E36524","v":0},{"$f":"Import!E36724","v":0},{"$f":"Import!E36924","v":0},{"$f":"Import!E37124","v":0},{"$f":"Import!E37324","v":0}]
[25,{"$f":"Import!E35125","v":"Select"},{"$f":"Import!E35325","v":"Select"},{"$f":"Import!E35525","v":"Select"},{"$f":"Import!E35725","v":"Select"},{"$f":"Import!E35925","v":"Select"},{"$f":"Import!E36125","v":"Select"},{"$f":"Import!E36325","v":"Select"},{"$f":"Import!E36525","v":0},{"$f":"Import!E36725","v":0},{"$f":"Import!E36925","v":0},{"$f":"Import!E37125","v":0},{"$f":"Import!E37325","v":0}]
[26,{"$f":"Import!E35126","v":"Select"},{"$f":"Import!E35326","v":"Select"},{"$f":"Import!E35526","v":"Select"},{"$f":"Import!E35726","v":"Select"},{"$f":"Import!E35926","v":"Select"},{"$f":"Import!E36126","v":"Select"},{"$f":"Import!E36326","v":"Select"},{"$f":"Import!E36526","v":0},{"$f":"Import!E36726","v":0},{"$f":"Import!E36926","v":0},{"$f":"Import!E37126","v":0},{"$f":"Import!E37326","v":0}]
[27,{"$f":"Import!E35127","v":"Select"},{"$f":"Import!E35327","v":"Select"},{"$f":"Import!E35527","v":"Select"},{"$f":"Import!E35727","v":"Select"},{"$f":"Import!E35927","v":"Select"},{"$f":"Import!E36127","v":"Select"},{"$f":"Import!E36327","v":"Select"},{"$f":"Import!E36527","v":0},{"$f":"Import!E36727","v":0},{"$f":"Import!E36927","v":0},{"$f":"Import!E37127","v":0},{"$f":"Import!E37327","v":0}]
[28,{"$f":"Import!E35128","v":"Select"},{"$f":"Import!E35328","v":"Select"},{"$f":"Import!E35528","v":"Select"},{"$f":"Import!E35728","v":"Select"},{"$f":"Import!E35928","v":"Select"},{"$f":"Import!E36128","v":"Select"},{"$f":"Import!E36328","v":"Select"},{"$f":"Import!E36528","v":0},{"$f":"Import!E36728","v":0},{"$f":"Import!E36928","v":0},{"$f":"Import!E37128","v":0},{"$f":"Import!E37328","v":0}]
[29,{"$f":"Import!E35129","v":"Select"},{"$f":"Import!E35329","v":"Select"},{"$f":"Import!E35529","v":"Select"},{"$f":"Import!E35729","v":"Select"},{"$f":"Import!E35929","v":"Select"},{"$f":"Import!E36129","v":"Select"},{"$f":"Import!E36329","v":"Select"},{"$f":"Import!E36529","v":0},{"$f":"Import!E36729","v":0},{"$f":"Import!E36929","v":0},{"$f":"Import!E37129","v":0},{"$f":"Import!E37329","v":0}]
[30,{"$f":"Import!E35130","v":"Select"},{"$f":"Import!E35330","v":"Select"},{"$f":"Import!E35530","v":"Select"},{"$f":"Import!E35730","v":"Select"},{"$f":"Import!E35930","v":"Select"},{"$f":"Import!E36130","v":"Select"},{"$f":"Import!E36330","v":"Select"},{"$f":"Import!E36530","v":0},{"$f":"Import!E36730","v":0},{"$f":"Import!E36930","v":0},{"$f":"Import!E37130","v":0},{"$f":"Import!E37330","v":0}]
[31,{"$f":"Import!E35131","v":"Select"},{"$f":"Import!E35331","v":"Select"},{"$f":"Import!E35531","v":"Select"},{"$f":"Import!E35731","v":"Select"},{"$f":"Import!E35931","v":"Select"},{"$f":"Import!E36131","v":"Select"},{"$f":"Import!E36331","v":"Select"},{"$f":"Import!E36531","v":0},{"$f":"Import!E36731","v":0},{"$f":"Import!E36931","v":0},{"$f":"Import!E37131","v":0},{"$f":"Import!E37331","v":0}]
[32,{"$f":"Import!E35132","v":"Select"},{"$f":"Import!E35332","v":"Select"},{"$f":"Import!E35532","v":"Select"},{"$f":"Import!E35732","v":"Select"},{"$f":"Import!E35932","v":"Select"},{"$f":"Import!E36132","v":"Select"},{"$f":"Import!E36332","v":"Select"},{"$f":"Import!E36532","v":0},{"$f":"Import!E36732","v":0},{"$f":"Import!E36932","v":0},{"$f":"Import!E37132","v":0},{"$f":"Import!E37332","v":0}]
[33,{"$f":"Import!E35133","v":"Select"},{"$f":"Import!E35333","v":"Select"},{"$f":"Import!E35533","v":"Select"},{"$f":"Import!E35733","v":"Select"},{"$f":"Import!E35933","v":"Select"},{"$f":"Import!E36133","v":"Select"},{"$f":"Import!E36333","v":"Select"},{"$f":"Import!E36533","v":0},{"$f":"Import!E36733","v":0},{"$f":"Import!E36933","v":0},{"$f":"Import!E37133","v":0},{"$f":"Import!E37333","v":0}]
[34,{"$f":"Import!E35134","v":"Select"},{"$f":"Import!E35334","v":"Select"},{"$f":"Import!E35534","v":"Select"},{"$f":"Import!E35734","v":"Select"},{"$f":"Import!E35934","v":"Select"},{"$f":"Import!E36134","v":"Select"},{"$f":"Import!E36334","v":"Select"},{"$f":"Import!E36534","v":0},{"$f":"Import!E36734","v":0},{"$f":"Import!E36934","v":0},{"$f":"Import!E37134","v":0},{"$f":"Import!E37334","v":0}]
[35,{"$f":"Import!E35135","v":"Select"},{"$f":"Import!E35335","v":"Select"},{"$f":"Import!E35535","v":"Select"},{"$f":"Import!E35735","v":"Select"},{"$f":"Import!E35935","v":"Select"},{"$f":"Import!E36135","v":"Select"},{"$f":"Import!E36335","v":"Select"},{"$f":"Import!E36535","v":0},{"$f":"Import!E36735","v":0},{"$f":"Import!E36935","v":0},{"$f":"Import!E37135","v":0},{"$f":"Import!E37335","v":0}]
[36,{"$f":"Import!E35136","v":"Select"},{"$f":"Import!E35336","v":"Select"},{"$f":"Import!E35536","v":"Select"},{"$f":"Import!E35736","v":"Select"},{"$f":"Import!E35936","v":"Select"},{"$f":"Import!E36136","v":"Select"},{"$f":"Import!E36336","v":"Select"},{"$f":"Import!E36536","v":0},{"$f":"Import!E36736","v":0},{"$f":"Import!E36936","v":0},{"$f":"Import!E37136","v":0},{"$f":"Import!E37336","v":0}]
[37,{"$f":"Import!E35137","v":"Select"},{"$f":"Import!E35337","v":"Select"},{"$f":"Import!E35537","v":"Select"},{"$f":"Import!E35737","v":"Select"},{"$f":"Import!E35937","v":"Select"},{"$f":"Import!E36137","v":"Select"},{"$f":"Import!E36337","v":"Select"},{"$f":"Import!E36537","v":0},{"$f":"Import!E36737","v":0},{"$f":"Import!E36937","v":0},{"$f":"Import!E37137","v":0},{"$f":"Import!E37337","v":0}]
[38,{"$f":"Import!E35138","v":"Select"},{"$f":"Import!E35338","v":"Select"},{"$f":"Import!E35538","v":"Select"},{"$f":"Import!E35738","v":"Select"},{"$f":"Import!E35938","v":"Select"},{"$f":"Import!E36138","v":"Select"},{"$f":"Import!E36338","v":"Select"},{"$f":"Import!E36538","v":0},{"$f":"Import!E36738","v":0},{"$f":"Import!E36938","v":0},{"$f":"Import!E37138","v":0},{"$f":"Import!E37338","v":0}]
[39,{"$f":"Import!E35139","v":"Select"},{"$f":"Import!E35339","v":"Select"},{"$f":"Import!E35539","v":"Select"},{"$f":"Import!E35739","v":"Select"},{"$f":"Import!E35939","v":"Select"},{"$f":"Import!E36139","v":"Select"},{"$f":"Import!E36339","v":"Select"},{"$f":"Import!E36539","v":0},{"$f":"Import!E36739","v":0},{"$f":"Import!E36939","v":0},{"$f":"Import!E37139","v":0},{"$f":"Import!E37339","v":0}]
[40,{"$f":"Import!E35140","v":"Select"},{"$f":"Import!E35340","v":"Select"},{"$f":"Import!E35540","v":"Select"},{"$f":"Import!E35740","v":"Select"},{"$f":"Import!E35940","v":"Select"},{"$f":"Import!E36140","v":"Select"},{"$f":"Import!E36340","v":"Select"},{"$f":"Import!E36540","v":0},{"$f":"Import!E36740","v":0},{"$f":"Import!E36940","v":0},{"$f":"Import!E37140","v":0},{"$f":"Import!E37340","v":0}]
[41,{"$f":"Import!E35141","v":"Select"},{"$f":"Import!E35341","v":"Select"},{"$f":"Import!E35541","v":"Select"},{"$f":"Import!E35741","v":"Select"},{"$f":"Import!E35941","v":"Select"},{"$f":"Import!E36141","v":"Select"},{"$f":"Import!E36341","v":"Select"},{"$f":"Import!E36541","v":0},{"$f":"Import!E36741","v":0},{"$f":"Import!E36941","v":0},{"$f":"Import!E37141","v":0},{"$f":"Import!E37341","v":0}]
[42,{"$f":"Import!E35142","v":"Select"},{"$f":"Import!E35342","v":"Select"},{"$f":"Import!E35542","v":"Select"},{"$f":"Import!E35742","v":"Select"},{"$f":"Import!E35942","v":"Select"},{"$f":"Import!E36142","v":"Select"},{"$f":"Import!E36342","v":"Select"},{"$f":"Import!E36542","v":0},{"$f":"Import!E36742","v":0},{"$f":"Import!E36942","v":0},{"$f":"Import!E37142","v":0},{"$f":"Import!E37342","v":0}]
[43,{"$f":"Import!E35143","v":"Select"},{"$f":"Import!E35343","v":"Select"},{"$f":"Import!E35543","v":"Select"},{"$f":"Import!E35743","v":"Select"},{"$f":"Import!E35943","v":"Select"},{"$f":"Import!E36143","v":"Select"},{"$f":"Import!E36343","v":"Select"},{"$f":"Import!E36543","v":0},{"$f":"Import!E36743","v":0},{"$f":"Import!E36943","v":0},{"$f":"Import!E37143","v":0},{"$f":"Import!E37343","v":0}]
[44,{"$f":"Import!E35144","v":"Select"},{"$f":"Import!E35344","v":"Select"},{"$f":"Import!E35544","v":"Select"},{"$f":"Import!E35744","v":"Select"},{"$f":"Import!E35944","v":"Select"},{"$f":"Import!E36144","v":"Select"},{"$f":"Import!E36344","v":"Select"},{"$f":"Import!E36544","v":0},{"$f":"Import!E36744","v":0},{"$f":"Import!E36944","v":0},{"$f":"Import!E37144","v":0},{"$f":"Import!E37344","v":0}]
[45,{"$f":"Import!E35145","v":"Select"},{"$f":"Import!E35345","v":"Select"},{"$f":"Import!E35545","v":"Select"},{"$f":"Import!E35745","v":"Select"},{"$f":"Import!E35945","v":"Select"},{"$f":"Import!E36145","v":"Select"},{"$f":"Import!E36345","v":"Select"},{"$f":"Import!E36545","v":0},{"$f":"Import!E36745","v":0},{"$f":"Import!E36945","v":0},{"$f":"Import!E37145","v":0},{"$f":"Import!E37345","v":0}]
[46,{"$f":"Import!E35146","v":"Select"},{"$f":"Import!E35346","v":"Select"},{"$f":"Import!E35546","v":"Select"},{"$f":"Import!E35746","v":"Select"},{"$f":"Import!E35946","v":"Select"},{"$f":"Import!E36146","v":"Select"},{"$f":"Import!E36346","v":"Select"},{"$f":"Import!E36546","v":0},{"$f":"Import!E36746","v":0},{"$f":"Import!E36946","v":0},{"$f":"Import!E37146","v":0},{"$f":"Import!E37346","v":0}]
[47,{"$f":"Import!E35147","v":"Select"},{"$f":"Import!E35347","v":"Select"},{"$f":"Import!E35547","v":"Select"},{"$f":"Import!E35747","v":"Select"},{"$f":"Import!E35947","v":"Select"},{"$f":"Import!E36147","v":"Select"},{"$f":"Import!E36347","v":"Select"},{"$f":"Import!E36547","v":0},{"$f":"Import!E36747","v":0},{"$f":"Import!E36947","v":0},{"$f":"Import!E37147","v":0},{"$f":"Import!E37347","v":0}]
[48,{"$f":"Import!E35148","v":"Select"},{"$f":"Import!E35348","v":"Select"},{"$f":"Import!E35548","v":"Select"},{"$f":"Import!E35748","v":"Select"},{"$f":"Import!E35948","v":"Select"},{"$f":"Import!E36148","v":"Select"},{"$f":"Import!E36348","v":"Select"},{"$f":"Import!E36548","v":0},{"$f":"Import!E36748","v":0},{"$f":"Import!E36948","v":0},{"$f":"Import!E37148","v":0},{"$f":"Import!E37348","v":0}]
[49,{"$f":"Import!E35149","v":"Select"},{"$f":"Import!E35349","v":"Select"},{"$f":"Import!E35549","v":"Select"},{"$f":"Import!E35749","v":"Select"},{"$f":"Import!E35949","v":"Select"},{"$f":"Import!E36149","v":"Select"},{"$f":"Import!E36349","v":"Select"},{"$f":"Import!E36549","v":0},{"$f":"Import!E36749","v":0},{"$f":"Import!E36949","v":0},{"$f":"Import!E37149","v":0},{"$f":"Import!E37349","v":0}]
[50,{"$f":"Import!E35150","v":"Select"},{"$f":"Import!E35350","v":"Select"},{"$f":"Import!E35550","v":"Select"},{"$f":"Import!E35750","v":"Select"},{"$f":"Import!E35950","v":"Select"},{"$f":"Import!E36150","v":"Select"},{"$f":"Import!E36350","v":"Select"},{"$f":"Import!E36550","v":0},{"$f":"Import!E36750","v":0},{"$f":"Import!E36950","v":0},{"$f":"Import!E37150","v":0},{"$f":"Import!E37350","v":0}]
[51,{"$f":"Import!E35151","v":"Select"},{"$f":"Import!E35351","v":"Select"},{"$f":"Import!E35551","v":"Select"},{"$f":"Import!E35751","v":"Select"},{"$f":"Import!E35951","v":"Select"},{"$f":"Import!E36151","v":"Select"},{"$f":"Import!E36351","v":"Select"},{"$f":"Import!E36551","v":0},{"$f":"Import!E36751","v":0},{"$f":"Import!E36951","v":0},{"$f":"Import!E37151","v":0},{"$f":"Import!E37351","v":0}]
[52,{"$f":"Import!E35152","v":"Select"},{"$f":"Import!E35352","v":"Select"},{"$f":"Import!E35552","v":"Select"},{"$f":"Import!E35752","v":"Select"},{"$f":"Import!E35952","v":"Select"},{"$f":"Import!E36152","v":"Select"},{"$f":"Import!E36352","v":"Select"},{"$f":"Import!E36552","v":0},{"$f":"Import!E36752","v":0},{"$f":"Import!E36952","v":0},{"$f":"Import!E37152","v":0},{"$f":"Import!E37352","v":0}]
[53,{"$f":"Import!E35153","v":"Select"},{"$f":"Import!E35353","v":"Select"},{"$f":"Import!E35553","v":"Select"},{"$f":"Import!E35753","v":"Select"},{"$f":"Import!E35953","v":"Select"},{"$f":"Import!E36153","v":"Select"},{"$f":"Import!E36353","v":"Select"},{"$f":"Import!E36553","v":0},{"$f":"Import!E36753","v":0},{"$f":"Import!E36953","v":0},{"$f":"Import!E37153","v":0},{"$f":"Import!E37353","v":0}]
[54,{"$f":"Import!E35154","v":"Select"},{"$f":"Import!E35354","v":"Select"},{"$f":"Import!E35554","v":"Select"},{"$f":"Import!E35754","v":"Select"},{"$f":"Import!E35954","v":"Select"},{"$f":"Import!E36154","v":"Select"},{"$f":"Import!E36354","v":"Select"},{"$f":"Import!E36554","v":0},{"$f":"Import!E36754","v":0},{"$f":"Import!E36954","v":0},{"$f":"Import!E37154","v":0},{"$f":"Import!E37354","v":0}]
[55,{"$f":"Import!E35155","v":"Select"},{"$f":"Import!E35355","v":"Select"},{"$f":"Import!E35555","v":"Select"},{"$f":"Import!E35755","v":"Select"},{"$f":"Import!E35955","v":"Select"},{"$f":"Import!E36155","v":"Select"},{"$f":"Import!E36355","v":"Select"},{"$f":"Import!E36555","v":0},{"$f":"Import!E36755","v":0},{"$f":"Import!E36955","v":0},{"$f":"Import!E37155","v":0},{"$f":"Import!E37355","v":0}]
[56,{"$f":"Import!E35156","v":"Select"},{"$f":"Import!E35356","v":"Select"},{"$f":"Import!E35556","v":"Select"},{"$f":"Import!E35756","v":"Select"},{"$f":"Import!E35956","v":"Select"},{"$f":"Import!E36156","v":"Select"},{"$f":"Import!E36356","v":"Select"},{"$f":"Import!E36556","v":0},{"$f":"Import!E36756","v":0},{"$f":"Import!E36956","v":0},{"$f":"Import!E37156","v":0},{"$f":"Import!E37356","v":0}]
[57,{"$f":"Import!E35157","v":"Select"},{"$f":"Import!E35357","v":"Select"},{"$f":"Import!E35557","v":"Select"},{"$f":"Import!E35757","v":"Select"},{"$f":"Import!E35957","v":"Select"},{"$f":"Import!E36157","v":"Select"},{"$f":"Import!E36357","v":"Select"},{"$f":"Import!E36557","v":0},{"$f":"Import!E36757","v":0},{"$f":"Import!E36957","v":0},{"$f":"Import!E37157","v":0},{"$f":"Import!E37357","v":0}]
[58,{"$f":"Import!E35158","v":"Select"},{"$f":"Import!E35358","v":"Select"},{"$f":"Import!E35558","v":"Select"},{"$f":"Import!E35758","v":"Select"},{"$f":"Import!E35958","v":"Select"},{"$f":"Import!E36158","v":"Select"},{"$f":"Import!E36358","v":"Select"},{"$f":"Import!E36558","v":0},{"$f":"Import!E36758","v":0},{"$f":"Import!E36958","v":0},{"$f":"Import!E37158","v":0},{"$f":"Import!E37358","v":0}]
[59,{"$f":"Import!E35159","v":"Select"},{"$f":"Import!E35359","v":"Select"},{"$f":"Import!E35559","v":"Select"},{"$f":"Import!E35759","v":"Select"},{"$f":"Import!E35959","v":"Select"},{"$f":"Import!E36159","v":"Select"},{"$f":"Import!E36359","v":"Select"},{"$f":"Import!E36559","v":0},{"$f":"Import!E36759","v":0},{"$f":"Import!E36959","v":0},{"$f":"Import!E37159","v":0},{"$f":"Import!E37359","v":0}]
[60,{"$f":"Import!E35160","v":"Select"},{"$f":"Import!E35360","v":"Select"},{"$f":"Import!E35560","v":"Select"},{"$f":"Import!E35760","v":"Select"},{"$f":"Import!E35960","v":"Select"},{"$f":"Import!E36160","v":"Select"},{"$f":"Import!E36360","v":"Select"},{"$f":"Import!E36560","v":0},{"$f":"Import!E36760","v":0},{"$f":"Import!E36960","v":0},{"$f":"Import!E37160","v":0},{"$f":"Import!E37360","v":0}]
[61,{"$f":"Import!E35161","v":"Select"},{"$f":"Import!E35361","v":"Select"},{"$f":"Import!E35561","v":"Select"},{"$f":"Import!E35761","v":"Select"},{"$f":"Import!E35961","v":"Select"},{"$f":"Import!E36161","v":"Select"},{"$f":"Import!E36361","v":"Select"},{"$f":"Import!E36561","v":0},{"$f":"Import!E36761","v":0},{"$f":"Import!E36961","v":0},{"$f":"Import!E37161","v":0},{"$f":"Import!E37361","v":0}]
[62,{"$f":"Import!E35162","v":"Select"},{"$f":"Import!E35362","v":"Select"},{"$f":"Import!E35562","v":"Select"},{"$f":"Import!E35762","v":"Select"},{"$f":"Import!E35962","v":"Select"},{"$f":"Import!E36162","v":"Select"},{"$f":"Import!E36362","v":"Select"},{"$f":"Import!E36562","v":0},{"$f":"Import!E36762","v":0},{"$f":"Import!E36962","v":0},{"$f":"Import!E37162","v":0},{"$f":"Import!E37362","v":0}]
[63,{"$f":"Import!E35163","v":"Select"},{"$f":"Import!E35363","v":"Select"},{"$f":"Import!E35563","v":"Select"},{"$f":"Import!E35763","v":"Select"},{"$f":"Import!E35963","v":"Select"},{"$f":"Import!E36163","v":"Select"},{"$f":"Import!E36363","v":"Select"},{"$f":"Import!E36563","v":0},{"$f":"Import!E36763","v":0},{"$f":"Import!E36963","v":0},{"$f":"Import!E37163","v":0},{"$f":"Import!E37363","v":0}]
[64,{"$f":"Import!E35164","v":"Select"},{"$f":"Import!E35364","v":"Select"},{"$f":"Import!E35564","v":"Select"},{"$f":"Import!E35764","v":"Select"},{"$f":"Import!E35964","v":"Select"},{"$f":"Import!E36164","v":"Select"},{"$f":"Import!E36364","v":"Select"},{"$f":"Import!E36564","v":0},{"$f":"Import!E36764","v":0},{"$f":"Import!E36964","v":0},{"$f":"Import!E37164","v":0},{"$f":"Import!E37364","v":0}]
[65,{"$f":"Import!E35165","v":"Select"},{"$f":"Import!E35365","v":"Select"},{"$f":"Import!E35565","v":"Select"},{"$f":"Import!E35765","v":"Select"},{"$f":"Import!E35965","v":"Select"},{"$f":"Import!E36165","v":"Select"},{"$f":"Import!E36365","v":"Select"},{"$f":"Import!E36565","v":0},{"$f":"Import!E36765","v":0},{"$f":"Import!E36965","v":0},{"$f":"Import!E37165","v":0},{"$f":"Import!E37365","v":0}]
[66,{"$f":"Import!E35166","v":"Select"},{"$f":"Import!E35366","v":"Select"},{"$f":"Import!E35566","v":"Select"},{"$f":"Import!E35766","v":"Select"},{"$f":"Import!E35966","v":"Select"},{"$f":"Import!E36166","v":"Select"},{"$f":"Import!E36366","v":"Select"},{"$f":"Import!E36566","v":0},{"$f":"Import!E36766","v":0},{"$f":"Import!E36966","v":0},{"$f":"Import!E37166","v":0},{"$f":"Import!E37366","v":0}]
[{"$f":"A1625+1","v":67},{"$f":"Import!E35167","v":"Select"},{"$f":"Import!E35367","v":"Select"},{"$f":"Import!E35567","v":"Select"},{"$f":"Import!E35767","v":"Select"},{"$f":"Import!E35967","v":"Select"},{"$f":"Import!E36167","v":"Select"},{"$f":"Import!E36367","v":"Select"},{"$f":"Import!E36567","v":0},{"$f":"Import!E36767","v":0},{"$f":"Import!E36967","v":0},{"$f":"Import!E37167","v":0},{"$f":"Import!E37367","v":0}]
[68,{"$f":"Import!E35168","v":"Select"},{"$f":"Import!E35368","v":"Select"},{"$f":"Import!E35568","v":"Select"},{"$f":"Import!E35768","v":"Select"},{"$f":"Import!E35968","v":"Select"},{"$f":"Import!E36168","v":"Select"},{"$f":"Import!E36368","v":"Select"},{"$f":"Import!E36568","v":0},{"$f":"Import!E36768","v":0},{"$f":"Import!E36968","v":0},{"$f":"Import!E37168","v":0},{"$f":"Import!E37368","v":0}]
[69,{"$f":"Import!E35169","v":"Select"},{"$f":"Import!E35369","v":"Select"},{"$f":"Import!E35569","v":"Select"},{"$f":"Import!E35769","v":"Select"},{"$f":"Import!E35969","v":"Select"},{"$f":"Import!E36169","v":"Select"},{"$f":"Import!E36369","v":"Select"},{"$f":"Import!E36569","v":0},{"$f":"Import!E36769","v":0},{"$f":"Import!E36969","v":0},{"$f":"Import!E37169","v":0},{"$f":"Import!E37369","v":0}]
[70,{"$f":"Import!E35170","v":"Select"},{"$f":"Import!E35370","v":"Select"},{"$f":"Import!E35570","v":"Select"},{"$f":"Import!E35770","v":"Select"},{"$f":"Import!E35970","v":"Select"},{"$f":"Import!E36170","v":"Select"},{"$f":"Import!E36370","v":"Select"},{"$f":"Import!E36570","v":0},{"$f":"Import!E36770","v":0},{"$f":"Import!E36970","v":0},{"$f":"Import!E37170","v":0},{"$f":"Import!E37370","v":0}]
[71,{"$f":"Import!E35171","v":"Select"},{"$f":"Import!E35371","v":"Select"},{"$f":"Import!E35571","v":"Select"},{"$f":"Import!E35771","v":"Select"},{"$f":"Import!E35971","v":"Select"},{"$f":"Import!E36171","v":"Select"},{"$f":"Import!E36371","v":"Select"},{"$f":"Import!E36571","v":0},{"$f":"Import!E36771","v":0},{"$f":"Import!E36971","v":0},{"$f":"Import!E37171","v":0},{"$f":"Import!E37371","v":0}]
[72,{"$f":"Import!E35172","v":"Select"},{"$f":"Import!E35372","v":"Select"},{"$f":"Import!E35572","v":"Select"},{"$f":"Import!E35772","v":"Select"},{"$f":"Import!E35972","v":"Select"},{"$f":"Import!E36172","v":"Select"},{"$f":"Import!E36372","v":"Select"},{"$f":"Import!E36572","v":0},{"$f":"Import!E36772","v":0},{"$f":"Import!E36972","v":0},{"$f":"Import!E37172","v":0},{"$f":"Import!E37372","v":0}]
[73,{"$f":"Import!E35173","v":"Select"},{"$f":"Import!E35373","v":"Select"},{"$f":"Import!E35573","v":"Select"},{"$f":"Import!E35773","v":"Select"},{"$f":"Import!E35973","v":"Select"},{"$f":"Import!E36173","v":"Select"},{"$f":"Import!E36373","v":"Select"},{"$f":"Import!E36573","v":0},{"$f":"Import!E36773","v":0},{"$f":"Import!E36973","v":0},{"$f":"Import!E37173","v":0},{"$f":"Import!E37373","v":0}]
[74,{"$f":"Import!E35174","v":"Select"},{"$f":"Import!E35374","v":"Select"},{"$f":"Import!E35574","v":"Select"},{"$f":"Import!E35774","v":"Select"},{"$f":"Import!E35974","v":"Select"},{"$f":"Import!E36174","v":"Select"},{"$f":"Import!E36374","v":"Select"},{"$f":"Import!E36574","v":0},{"$f":"Import!E36774","v":0},{"$f":"Import!E36974","v":0},{"$f":"Import!E37174","v":0},{"$f":"Import!E37374","v":0}]
[75,{"$f":"Import!E35175","v":"Select"},{"$f":"Import!E35375","v":"Select"},{"$f":"Import!E35575","v":"Select"},{"$f":"Import!E35775","v":"Select"},{"$f":"Import!E35975","v":"Select"},{"$f":"Import!E36175","v":"Select"},{"$f":"Import!E36375","v":"Select"},{"$f":"Import!E36575","v":0},{"$f":"Import!E36775","v":0},{"$f":"Import!E36975","v":0},{"$f":"Import!E37175","v":0},{"$f":"Import!E37375","v":0}]
[76,{"$f":"Import!E35176","v":"Select"},{"$f":"Import!E35376","v":"Select"},{"$f":"Import!E35576","v":"Select"},{"$f":"Import!E35776","v":"Select"},{"$f":"Import!E35976","v":"Select"},{"$f":"Import!E36176","v":"Select"},{"$f":"Import!E36376","v":"Select"},{"$f":"Import!E36576","v":0},{"$f":"Import!E36776","v":0},{"$f":"Import!E36976","v":0},{"$f":"Import!E37176","v":0},{"$f":"Import!E37376","v":0}]
[77,{"$f":"Import!E35177","v":"Select"},{"$f":"Import!E35377","v":"Select"},{"$f":"Import!E35577","v":"Select"},{"$f":"Import!E35777","v":"Select"},{"$f":"Import!E35977","v":"Select"},{"$f":"Import!E36177","v":"Select"},{"$f":"Import!E36377","v":"Select"},{"$f":"Import!E36577","v":0},{"$f":"Import!E36777","v":0},{"$f":"Import!E36977","v":0},{"$f":"Import!E37177","v":0},{"$f":"Import!E37377","v":0}]
[78,{"$f":"Import!E35178","v":"Select"},{"$f":"Import!E35378","v":"Select"},{"$f":"Import!E35578","v":"Select"},{"$f":"Import!E35778","v":"Select"},{"$f":"Import!E35978","v":"Select"},{"$f":"Import!E36178","v":"Select"},{"$f":"Import!E36378","v":"Select"},{"$f":"Import!E36578","v":0},{"$f":"Import!E36778","v":0},{"$f":"Import!E36978","v":0},{"$f":"Import!E37178","v":0},{"$f":"Import!E37378","v":0}]
[79,{"$f":"Import!E35179","v":"Select"},{"$f":"Import!E35379","v":"Select"},{"$f":"Import!E35579","v":"Select"},{"$f":"Import!E35779","v":"Select"},{"$f":"Import!E35979","v":"Select"},{"$f":"Import!E36179","v":"Select"},{"$f":"Import!E36379","v":"Select"},{"$f":"Import!E36579","v":0},{"$f":"Import!E36779","v":0},{"$f":"Import!E36979","v":0},{"$f":"Import!E37179","v":0},{"$f":"Import!E37379","v":0}]
[80,{"$f":"Import!E35180","v":"Select"},{"$f":"Import!E35380","v":"Select"},{"$f":"Import!E35580","v":"Select"},{"$f":"Import!E35780","v":"Select"},{"$f":"Import!E35980","v":"Select"},{"$f":"Import!E36180","v":"Select"},{"$f":"Import!E36380","v":"Select"},{"$f":"Import!E36580","v":0},{"$f":"Import!E36780","v":0},{"$f":"Import!E36980","v":0},{"$f":"Import!E37180","v":0},{"$f":"Import!E37380","v":0}]
[81,{"$f":"Import!E35181","v":"Select"},{"$f":"Import!E35381","v":"Select"},{"$f":"Import!E35581","v":"Select"},{"$f":"Import!E35781","v":"Select"},{"$f":"Import!E35981","v":"Select"},{"$f":"Import!E36181","v":"Select"},{"$f":"Import!E36381","v":"Select"},{"$f":"Import!E36581","v":0},{"$f":"Import!E36781","v":0},{"$f":"Import!E36981","v":0},{"$f":"Import!E37181","v":0},{"$f":"Import!E37381","v":0}]
[82,{"$f":"Import!E35182","v":"Select"},{"$f":"Import!E35382","v":"Select"},{"$f":"Import!E35582","v":"Select"},{"$f":"Import!E35782","v":"Select"},{"$f":"Import!E35982","v":"Select"},{"$f":"Import!E36182","v":"Select"},{"$f":"Import!E36382","v":"Select"},{"$f":"Import!E36582","v":0},{"$f":"Import!E36782","v":0},{"$f":"Import!E36982","v":0},{"$f":"Import!E37182","v":0},{"$f":"Import!E37382","v":0}]
[83,{"$f":"Import!E35183","v":"Select"},{"$f":"Import!E35383","v":"Select"},{"$f":"Import!E35583","v":"Select"},{"$f":"Import!E35783","v":"Select"},{"$f":"Import!E35983","v":"Select"},{"$f":"Import!E36183","v":"Select"},{"$f":"Import!E36383","v":"Select"},{"$f":"Import!E36583","v":0},{"$f":"Import!E36783","v":0},{"$f":"Import!E36983","v":0},{"$f":"Import!E37183","v":0},{"$f":"Import!E37383","v":0}]
[84,{"$f":"Import!E35184","v":"Select"},{"$f":"Import!E35384","v":"Select"},{"$f":"Import!E35584","v":"Select"},{"$f":"Import!E35784","v":"Select"},{"$f":"Import!E35984","v":"Select"},{"$f":"Import!E36184","v":"Select"},{"$f":"Import!E36384","v":"Select"},{"$f":"Import!E36584","v":0},{"$f":"Import!E36784","v":0},{"$f":"Import!E36984","v":0},{"$f":"Import!E37184","v":0},{"$f":"Import!E37384","v":0}]
[85,{"$f":"Import!E35185","v":"Select"},{"$f":"Import!E35385","v":"Select"},{"$f":"Import!E35585","v":"Select"},{"$f":"Import!E35785","v":"Select"},{"$f":"Import!E35985","v":"Select"},{"$f":"Import!E36185","v":"Select"},{"$f":"Import!E36385","v":"Select"},{"$f":"Import!E36585","v":0},{"$f":"Import!E36785","v":0},{"$f":"Import!E36985","v":0},{"$f":"Import!E37185","v":0},{"$f":"Import!E37385","v":0}]
[86,{"$f":"Import!E35186","v":"Select"},{"$f":"Import!E35386","v":"Select"},{"$f":"Import!E35586","v":"Select"},{"$f":"Import!E35786","v":"Select"},{"$f":"Import!E35986","v":"Select"},{"$f":"Import!E36186","v":"Select"},{"$f":"Import!E36386","v":"Select"},{"$f":"Import!E36586","v":0},{"$f":"Import!E36786","v":0},{"$f":"Import!E36986","v":0},{"$f":"Import!E37186","v":0},{"$f":"Import!E37386","v":0}]
[87,{"$f":"Import!E35187","v":"Select"},{"$f":"Import!E35387","v":"Select"},{"$f":"Import!E35587","v":"Select"},{"$f":"Import!E35787","v":"Select"},{"$f":"Import!E35987","v":"Select"},{"$f":"Import!E36187","v":"Select"},{"$f":"Import!E36387","v":"Select"},{"$f":"Import!E36587","v":0},{"$f":"Import!E36787","v":0},{"$f":"Import!E36987","v":0},{"$f":"Import!E37187","v":0},{"$f":"Import!E37387","v":0}]
[88,{"$f":"Import!E35188","v":"Select"},{"$f":"Import!E35388","v":"Select"},{"$f":"Import!E35588","v":"Select"},{"$f":"Import!E35788","v":"Select"},{"$f":"Import!E35988","v":"Select"},{"$f":"Import!E36188","v":"Select"},{"$f":"Import!E36388","v":"Select"},{"$f":"Import!E36588","v":0},{"$f":"Import!E36788","v":0},{"$f":"Import!E36988","v":0},{"$f":"Import!E37188","v":0},{"$f":"Import!E37388","v":0}]
[89,{"$f":"Import!E35189","v":"Select"},{"$f":"Import!E35389","v":"Select"},{"$f":"Import!E35589","v":"Select"},{"$f":"Import!E35789","v":"Select"},{"$f":"Import!E35989","v":"Select"},{"$f":"Import!E36189","v":"Select"},{"$f":"Import!E36389","v":"Select"},{"$f":"Import!E36589","v":0},{"$f":"Import!E36789","v":0},{"$f":"Import!E36989","v":0},{"$f":"Import!E37189","v":0},{"$f":"Import!E37389","v":0}]
[90,{"$f":"Import!E35190","v":"Select"},{"$f":"Import!E35390","v":"Select"},{"$f":"Import!E35590","v":"Select"},{"$f":"Import!E35790","v":"Select"},{"$f":"Import!E35990","v":"Select"},{"$f":"Import!E36190","v":"Select"},{"$f":"Import!E36390","v":"Select"},{"$f":"Import!E36590","v":0},{"$f":"Import!E36790","v":0},{"$f":"Import!E36990","v":0},{"$f":"Import!E37190","v":0},{"$f":"Import!E37390","v":0}]
[91,{"$f":"Import!E35191","v":"Select"},{"$f":"Import!E35391","v":"Select"},{"$f":"Import!E35591","v":"Select"},{"$f":"Import!E35791","v":"Select"},{"$f":"Import!E35991","v":"Select"},{"$f":"Import!E36191","v":"Select"},{"$f":"Import!E36391","v":"Select"},{"$f":"Import!E36591","v":0},{"$f":"Import!E36791","v":0},{"$f":"Import!E36991","v":0},{"$f":"Import!E37191","v":0},{"$f":"Import!E37391","v":0}]
[92,{"$f":"Import!E35192","v":"Select"},{"$f":"Import!E35392","v":"Select"},{"$f":"Import!E35592","v":"Select"},{"$f":"Import!E35792","v":"Select"},{"$f":"Import!E35992","v":"Select"},{"$f":"Import!E36192","v":"Select"},{"$f":"Import!E36392","v":"Select"},{"$f":"Import!E36592","v":0},{"$f":"Import!E36792","v":0},{"$f":"Import!E36992","v":0},{"$f":"Import!E37192","v":0},{"$f":"Import!E37392","v":0}]
[93,{"$f":"Import!E35193","v":"Select"},{"$f":"Import!E35393","v":"Select"},{"$f":"Import!E35593","v":"Select"},{"$f":"Import!E35793","v":"Select"},{"$f":"Import!E35993","v":"Select"},{"$f":"Import!E36193","v":"Select"},{"$f":"Import!E36393","v":"Select"},{"$f":"Import!E36593","v":0},{"$f":"Import!E36793","v":0},{"$f":"Import!E36993","v":0},{"$f":"Import!E37193","v":0},{"$f":"Import!E37393","v":0}]
[94,{"$f":"Import!E35194","v":"Select"},{"$f":"Import!E35394","v":"Select"},{"$f":"Import!E35594","v":"Select"},{"$f":"Import!E35794","v":"Select"},{"$f":"Import!E35994","v":"Select"},{"$f":"Import!E36194","v":"Select"},{"$f":"Import!E36394","v":"Select"},{"$f":"Import!E36594","v":0},{"$f":"Import!E36794","v":0},{"$f":"Import!E36994","v":0},{"$f":"Import!E37194","v":0},{"$f":"Import!E37394","v":0}]
[95,{"$f":"Import!E35195","v":"Select"},{"$f":"Import!E35395","v":"Select"},{"$f":"Import!E35595","v":"Select"},{"$f":"Import!E35795","v":"Select"},{"$f":"Import!E35995","v":"Select"},{"$f":"Import!E36195","v":"Select"},{"$f":"Import!E36395","v":"Select"},{"$f":"Import!E36595","v":0},{"$f":"Import!E36795","v":0},{"$f":"Import!E36995","v":0},{"$f":"Import!E37195","v":0},{"$f":"Import!E37395","v":0}]
[96,{"$f":"Import!E35196","v":"Select"},{"$f":"Import!E35396","v":"Select"},{"$f":"Import!E35596","v":"Select"},{"$f":"Import!E35796","v":"Select"},{"$f":"Import!E35996","v":"Select"},{"$f":"Import!E36196","v":"Select"},{"$f":"Import!E36396","v":"Select"},{"$f":"Import!E36596","v":0},{"$f":"Import!E36796","v":0},{"$f":"Import!E36996","v":0},{"$f":"Import!E37196","v":0},{"$f":"Import!E37396","v":0}]
[97,{"$f":"Import!E35197","v":"Select"},{"$f":"Import!E35397","v":"Select"},{"$f":"Import!E35597","v":"Select"},{"$f":"Import!E35797","v":"Select"},{"$f":"Import!E35997","v":"Select"},{"$f":"Import!E36197","v":"Select"},{"$f":"Import!E36397","v":"Select"},{"$f":"Import!E36597","v":0},{"$f":"Import!E36797","v":0},{"$f":"Import!E36997","v":0},{"$f":"Import!E37197","v":0},{"$f":"Import!E37397","v":0}]
[98,{"$f":"Import!E35198","v":"Select"},{"$f":"Import!E35398","v":"Select"},{"$f":"Import!E35598","v":"Select"},{"$f":"Import!E35798","v":"Select"},{"$f":"Import!E35998","v":"Select"},{"$f":"Import!E36198","v":"Select"},{"$f":"Import!E36398","v":"Select"},{"$f":"Import!E36598","v":0},{"$f":"Import!E36798","v":0},{"$f":"Import!E36998","v":0},{"$f":"Import!E37198","v":0},{"$f":"Import!E37398","v":0}]
[99,{"$f":"Import!E35199","v":"Select"},{"$f":"Import!E35399","v":"Select"},{"$f":"Import!E35599","v":"Select"},{"$f":"Import!E35799","v":"Select"},{"$f":"Import!E35999","v":"Select"},{"$f":"Import!E36199","v":"Select"},{"$f":"Import!E36399","v":"Select"},{"$f":"Import!E36599","v":0},{"$f":"Import!E36799","v":0},{"$f":"Import!E36999","v":0},{"$f":"Import!E37199","v":0},{"$f":"Import!E37399","v":0}]
[100,{"$f":"Import!E35200","v":"Select"},{"$f":"Import!E35400","v":"Select"},{"$f":"Import!E35600","v":"Select"},{"$f":"Import!E35800","v":"Select"},{"$f":"Import!E36000","v":"Select"},{"$f":"Import!E36200","v":"Select"},{"$f":"Import!E36400","v":"Select"},{"$f":"Import!E36600","v":0},{"$f":"Import!E36800","v":0},{"$f":"Import!E37000","v":0},{"$f":"Import!E37200","v":0},{"$f":"Import!E37400","v":0}]
[101,{"$f":"Import!E35201","v":"Select"},{"$f":"Import!E35401","v":"Select"},{"$f":"Import!E35601","v":"Select"},{"$f":"Import!E35801","v":"Select"},{"$f":"Import!E36001","v":"Select"},{"$f":"Import!E36201","v":"Select"},{"$f":"Import!E36401","v":"Select"},{"$f":"Import!E36601","v":0},{"$f":"Import!E36801","v":0},{"$f":"Import!E37001","v":0},{"$f":"Import!E37201","v":0},{"$f":"Import!E37401","v":0}]
[102,{"$f":"Import!E35202","v":"Select"},{"$f":"Import!E35402","v":"Select"},{"$f":"Import!E35602","v":"Select"},{"$f":"Import!E35802","v":"Select"},{"$f":"Import!E36002","v":"Select"},{"$f":"Import!E36202","v":"Select"},{"$f":"Import!E36402","v":"Select"},{"$f":"Import!E36602","v":0},{"$f":"Import!E36802","v":0},{"$f":"Import!E37002","v":0},{"$f":"Import!E37202","v":0},{"$f":"Import!E37402","v":0}]
[103,{"$f":"Import!E35203","v":"Select"},{"$f":"Import!E35403","v":"Select"},{"$f":"Import!E35603","v":"Select"},{"$f":"Import!E35803","v":"Select"},{"$f":"Import!E36003","v":"Select"},{"$f":"Import!E36203","v":"Select"},{"$f":"Import!E36403","v":"Select"},{"$f":"Import!E36603","v":0},{"$f":"Import!E36803","v":0},{"$f":"Import!E37003","v":0},{"$f":"Import!E37203","v":0},{"$f":"Import!E37403","v":0}]
[104,{"$f":"Import!E35204","v":"Select"},{"$f":"Import!E35404","v":"Select"},{"$f":"Import!E35604","v":"Select"},{"$f":"Import!E35804","v":"Select"},{"$f":"Import!E36004","v":"Select"},{"$f":"Import!E36204","v":"Select"},{"$f":"Import!E36404","v":"Select"},{"$f":"Import!E36604","v":0},{"$f":"Import!E36804","v":0},{"$f":"Import!E37004","v":0},{"$f":"Import!E37204","v":0},{"$f":"Import!E37404","v":0}]
[105,{"$f":"Import!E35205","v":"Select"},{"$f":"Import!E35405","v":"Select"},{"$f":"Import!E35605","v":"Select"},{"$f":"Import!E35805","v":"Select"},{"$f":"Import!E36005","v":"Select"},{"$f":"Import!E36205","v":"Select"},{"$f":"Import!E36405","v":"Select"},{"$f":"Import!E36605","v":0},{"$f":"Import!E36805","v":0},{"$f":"Import!E37005","v":0},{"$f":"Import!E37205","v":0},{"$f":"Import!E37405","v":0}]
[106,{"$f":"Import!E35206","v":"Select"},{"$f":"Import!E35406","v":"Select"},{"$f":"Import!E35606","v":"Select"},{"$f":"Import!E35806","v":"Select"},{"$f":"Import!E36006","v":"Select"},{"$f":"Import!E36206","v":"Select"},{"$f":"Import!E36406","v":"Select"},{"$f":"Import!E36606","v":0},{"$f":"Import!E36806","v":0},{"$f":"Import!E37006","v":0},{"$f":"Import!E37206","v":0},{"$f":"Import!E37406","v":0}]
[107,{"$f":"Import!E35207","v":"Select"},{"$f":"Import!E35407","v":"Select"},{"$f":"Import!E35607","v":"Select"},{"$f":"Import!E35807","v":"Select"},{"$f":"Import!E36007","v":"Select"},{"$f":"Import!E36207","v":"Select"},{"$f":"Import!E36407","v":"Select"},{"$f":"Import!E36607","v":0},{"$f":"Import!E36807","v":0},{"$f":"Import!E37007","v":0},{"$f":"Import!E37207","v":0},{"$f":"Import!E37407","v":0}]
[108,{"$f":"Import!E35208","v":"Select"},{"$f":"Import!E35408","v":"Select"},{"$f":"Import!E35608","v":"Select"},{"$f":"Import!E35808","v":"Select"},{"$f":"Import!E36008","v":"Select"},{"$f":"Import!E36208","v":"Select"},{"$f":"Import!E36408","v":"Select"},{"$f":"Import!E36608","v":0},{"$f":"Import!E36808","v":0},{"$f":"Import!E37008","v":0},{"$f":"Import!E37208","v":0},{"$f":"Import!E37408","v":0}]
[109,{"$f":"Import!E35209","v":"Select"},{"$f":"Import!E35409","v":"Select"},{"$f":"Import!E35609","v":"Select"},{"$f":"Import!E35809","v":"Select"},{"$f":"Import!E36009","v":"Select"},{"$f":"Import!E36209","v":"Select"},{"$f":"Import!E36409","v":"Select"},{"$f":"Import!E36609","v":0},{"$f":"Import!E36809","v":0},{"$f":"Import!E37009","v":0},{"$f":"Import!E37209","v":0},{"$f":"Import!E37409","v":0}]
[110,{"$f":"Import!E35210","v":"Select"},{"$f":"Import!E35410","v":"Select"},{"$f":"Import!E35610","v":"Select"},{"$f":"Import!E35810","v":"Select"},{"$f":"Import!E36010","v":"Select"},{"$f":"Import!E36210","v":"Select"},{"$f":"Import!E36410","v":"Select"},{"$f":"Import!E36610","v":0},{"$f":"Import!E36810","v":0},{"$f":"Import!E37010","v":0},{"$f":"Import!E37210","v":0},{"$f":"Import!E37410","v":0}]
[111,{"$f":"Import!E35211","v":"Select"},{"$f":"Import!E35411","v":"Select"},{"$f":"Import!E35611","v":"Select"},{"$f":"Import!E35811","v":"Select"},{"$f":"Import!E36011","v":"Select"},{"$f":"Import!E36211","v":"Select"},{"$f":"Import!E36411","v":"Select"},{"$f":"Import!E36611","v":0},{"$f":"Import!E36811","v":0},{"$f":"Import!E37011","v":0},{"$f":"Import!E37211","v":0},{"$f":"Import!E37411","v":0}]
[112,{"$f":"Import!E35212","v":"Select"},{"$f":"Import!E35412","v":"Select"},{"$f":"Import!E35612","v":"Select"},{"$f":"Import!E35812","v":"Select"},{"$f":"Import!E36012","v":"Select"},{"$f":"Import!E36212","v":"Select"},{"$f":"Import!E36412","v":"Select"},{"$f":"Import!E36612","v":0},{"$f":"Import!E36812","v":0},{"$f":"Import!E37012","v":0},{"$f":"Import!E37212","v":0},{"$f":"Import!E37412","v":0}]
[113,{"$f":"Import!E35213","v":"Select"},{"$f":"Import!E35413","v":"Select"},{"$f":"Import!E35613","v":"Select"},{"$f":"Import!E35813","v":"Select"},{"$f":"Import!E36013","v":"Select"},{"$f":"Import!E36213","v":"Select"},{"$f":"Import!E36413","v":"Select"},{"$f":"Import!E36613","v":0},{"$f":"Import!E36813","v":0},{"$f":"Import!E37013","v":0},{"$f":"Import!E37213","v":0},{"$f":"Import!E37413","v":0}]
[114,{"$f":"Import!E35214","v":"Select"},{"$f":"Import!E35414","v":"Select"},{"$f":"Import!E35614","v":"Select"},{"$f":"Import!E35814","v":"Select"},{"$f":"Import!E36014","v":"Select"},{"$f":"Import!E36214","v":"Select"},{"$f":"Import!E36414","v":"Select"},{"$f":"Import!E36614","v":0},{"$f":"Import!E36814","v":0},{"$f":"Import!E37014","v":0},{"$f":"Import!E37214","v":0},{"$f":"Import!E37414","v":0}]
[115,{"$f":"Import!E35215","v":"Select"},{"$f":"Import!E35415","v":"Select"},{"$f":"Import!E35615","v":"Select"},{"$f":"Import!E35815","v":"Select"},{"$f":"Import!E36015","v":"Select"},{"$f":"Import!E36215","v":"Select"},{"$f":"Import!E36415","v":"Select"},{"$f":"Import!E36615","v":0},{"$f":"Import!E36815","v":0},{"$f":"Import!E37015","v":0},{"$f":"Import!E37215","v":0},{"$f":"Import!E37415","v":0}]
[116,{"$f":"Import!E35216","v":"Select"},{"$f":"Import!E35416","v":"Select"},{"$f":"Import!E35616","v":"Select"},{"$f":"Import!E35816","v":"Select"},{"$f":"Import!E36016","v":"Select"},{"$f":"Import!E36216","v":"Select"},{"$f":"Import!E36416","v":"Select"},{"$f":"Import!E36616","v":0},{"$f":"Import!E36816","v":0},{"$f":"Import!E37016","v":0},{"$f":"Import!E37216","v":0},{"$f":"Import!E37416","v":0}]
[117,{"$f":"Import!E35217","v":"Select"},{"$f":"Import!E35417","v":"Select"},{"$f":"Import!E35617","v":"Select"},{"$f":"Import!E35817","v":"Select"},{"$f":"Import!E36017","v":"Select"},{"$f":"Import!E36217","v":"Select"},{"$f":"Import!E36417","v":"Select"},{"$f":"Import!E36617","v":0},{"$f":"Import!E36817","v":0},{"$f":"Import!E37017","v":0},{"$f":"Import!E37217","v":0},{"$f":"Import!E37417","v":0}]
[118,{"$f":"Import!E35218","v":"Select"},{"$f":"Import!E35418","v":"Select"},{"$f":"Import!E35618","v":"Select"},{"$f":"Import!E35818","v":"Select"},{"$f":"Import!E36018","v":"Select"},{"$f":"Import!E36218","v":"Select"},{"$f":"Import!E36418","v":"Select"},{"$f":"Import!E36618","v":0},{"$f":"Import!E36818","v":0},{"$f":"Import!E37018","v":0},{"$f":"Import!E37218","v":0},{"$f":"Import!E37418","v":0}]
[119,{"$f":"Import!E35219","v":"Select"},{"$f":"Import!E35419","v":"Select"},{"$f":"Import!E35619","v":"Select"},{"$f":"Import!E35819","v":"Select"},{"$f":"Import!E36019","v":"Select"},{"$f":"Import!E36219","v":"Select"},{"$f":"Import!E36419","v":"Select"},{"$f":"Import!E36619","v":0},{"$f":"Import!E36819","v":0},{"$f":"Import!E37019","v":0},{"$f":"Import!E37219","v":0},{"$f":"Import!E37419","v":0}]
[120,{"$f":"Import!E35220","v":"Select"},{"$f":"Import!E35420","v":"Select"},{"$f":"Import!E35620","v":"Select"},{"$f":"Import!E35820","v":"Select"},{"$f":"Import!E36020","v":"Select"},{"$f":"Import!E36220","v":"Select"},{"$f":"Import!E36420","v":"Select"},{"$f":"Import!E36620","v":0},{"$f":"Import!E36820","v":0},{"$f":"Import!E37020","v":0},{"$f":"Import!E37220","v":0},{"$f":"Import!E37420","v":0}]
[121,{"$f":"Import!E35221","v":"Select"},{"$f":"Import!E35421","v":"Select"},{"$f":"Import!E35621","v":"Select"},{"$f":"Import!E35821","v":"Select"},{"$f":"Import!E36021","v":"Select"},{"$f":"Import!E36221","v":"Select"},{"$f":"Import!E36421","v":"Select"},{"$f":"Import!E36621","v":0},{"$f":"Import!E36821","v":0},{"$f":"Import!E37021","v":0},{"$f":"Import!E37221","v":0},{"$f":"Import!E37421","v":0}]
[122,{"$f":"Import!E35222","v":"Select"},{"$f":"Import!E35422","v":"Select"},{"$f":"Import!E35622","v":"Select"},{"$f":"Import!E35822","v":"Select"},{"$f":"Import!E36022","v":"Select"},{"$f":"Import!E36222","v":"Select"},{"$f":"Import!E36422","v":"Select"},{"$f":"Import!E36622","v":0},{"$f":"Import!E36822","v":0},{"$f":"Import!E37022","v":0},{"$f":"Import!E37222","v":0},{"$f":"Import!E37422","v":0}]
[123,{"$f":"Import!E35223","v":"Select"},{"$f":"Import!E35423","v":"Select"},{"$f":"Import!E35623","v":"Select"},{"$f":"Import!E35823","v":"Select"},{"$f":"Import!E36023","v":"Select"},{"$f":"Import!E36223","v":"Select"},{"$f":"Import!E36423","v":"Select"},{"$f":"Import!E36623","v":0},{"$f":"Import!E36823","v":0},{"$f":"Import!E37023","v":0},{"$f":"Import!E37223","v":0},{"$f":"Import!E37423","v":0}]
[124,{"$f":"Import!E35224","v":"Select"},{"$f":"Import!E35424","v":"Select"},{"$f":"Import!E35624","v":"Select"},{"$f":"Import!E35824","v":"Select"},{"$f":"Import!E36024","v":"Select"},{"$f":"Import!E36224","v":"Select"},{"$f":"Import!E36424","v":"Select"},{"$f":"Import!E36624","v":0},{"$f":"Import!E36824","v":0},{"$f":"Import!E37024","v":0},{"$f":"Import!E37224","v":0},{"$f":"Import!E37424","v":0}]
[125,{"$f":"Import!E35225","v":"Select"},{"$f":"Import!E35425","v":"Select"},{"$f":"Import!E35625","v":"Select"},{"$f":"Import!E35825","v":"Select"},{"$f":"Import!E36025","v":"Select"},{"$f":"Import!E36225","v":"Select"},{"$f":"Import!E36425","v":"Select"},{"$f":"Import!E36625","v":0},{"$f":"Import!E36825","v":0},{"$f":"Import!E37025","v":0},{"$f":"Import!E37225","v":0},{"$f":"Import!E37425","v":0}]
[126,{"$f":"Import!E35226","v":"Select"},{"$f":"Import!E35426","v":"Select"},{"$f":"Import!E35626","v":"Select"},{"$f":"Import!E35826","v":"Select"},{"$f":"Import!E36026","v":"Select"},{"$f":"Import!E36226","v":"Select"},{"$f":"Import!E36426","v":"Select"},{"$f":"Import!E36626","v":0},{"$f":"Import!E36826","v":0},{"$f":"Import!E37026","v":0},{"$f":"Import!E37226","v":0},{"$f":"Import!E37426","v":0}]
[127,{"$f":"Import!E35227","v":"Select"},{"$f":"Import!E35427","v":"Select"},{"$f":"Import!E35627","v":"Select"},{"$f":"Import!E35827","v":"Select"},{"$f":"Import!E36027","v":"Select"},{"$f":"Import!E36227","v":"Select"},{"$f":"Import!E36427","v":"Select"},{"$f":"Import!E36627","v":0},{"$f":"Import!E36827","v":0},{"$f":"Import!E37027","v":0},{"$f":"Import!E37227","v":0},{"$f":"Import!E37427","v":0}]
[128,{"$f":"Import!E35228","v":"Select"},{"$f":"Import!E35428","v":"Select"},{"$f":"Import!E35628","v":"Select"},{"$f":"Import!E35828","v":"Select"},{"$f":"Import!E36028","v":"Select"},{"$f":"Import!E36228","v":"Select"},{"$f":"Import!E36428","v":"Select"},{"$f":"Import!E36628","v":0},{"$f":"Import!E36828","v":0},{"$f":"Import!E37028","v":0},{"$f":"Import!E37228","v":0},{"$f":"Import!E37428","v":0}]
[129,{"$f":"Import!E35229","v":"Select"},{"$f":"Import!E35429","v":"Select"},{"$f":"Import!E35629","v":"Select"},{"$f":"Import!E35829","v":"Select"},{"$f":"Import!E36029","v":"Select"},{"$f":"Import!E36229","v":"Select"},{"$f":"Import!E36429","v":"Select"},{"$f":"Import!E36629","v":0},{"$f":"Import!E36829","v":0},{"$f":"Import!E37029","v":0},{"$f":"Import!E37229","v":0},{"$f":"Import!E37429","v":0}]
[130,{"$f":"Import!E35230","v":"Select"},{"$f":"Import!E35430","v":"Select"},{"$f":"Import!E35630","v":"Select"},{"$f":"Import!E35830","v":"Select"},{"$f":"Import!E36030","v":"Select"},{"$f":"Import!E36230","v":"Select"},{"$f":"Import!E36430","v":"Select"},{"$f":"Import!E36630","v":0},{"$f":"Import!E36830","v":0},{"$f":"Import!E37030","v":0},{"$f":"Import!E37230","v":0},{"$f":"Import!E37430","v":0}]
[{"$f":"A1689+1","v":131},{"$f":"Import!E35231","v":"Select"},{"$f":"Import!E35431","v":"Select"},{"$f":"Import!E35631","v":"Select"},{"$f":"Import!E35831","v":"Select"},{"$f":"Import!E36031","v":"Select"},{"$f":"Import!E36231","v":"Select"},{"$f":"Import!E36431","v":"Select"},{"$f":"Import!E36631","v":0},{"$f":"Import!E36831","v":0},{"$f":"Import!E37031","v":0},{"$f":"Import!E37231","v":0},{"$f":"Import!E37431","v":0}]
[132,{"$f":"Import!E35232","v":"Select"},{"$f":"Import!E35432","v":"Select"},{"$f":"Import!E35632","v":"Select"},{"$f":"Import!E35832","v":"Select"},{"$f":"Import!E36032","v":"Select"},{"$f":"Import!E36232","v":"Select"},{"$f":"Import!E36432","v":"Select"},{"$f":"Import!E36632","v":0},{"$f":"Import!E36832","v":0},{"$f":"Import!E37032","v":0},{"$f":"Import!E37232","v":0},{"$f":"Import!E37432","v":0}]
[133,{"$f":"Import!E35233","v":"Select"},{"$f":"Import!E35433","v":"Select"},{"$f":"Import!E35633","v":"Select"},{"$f":"Import!E35833","v":"Select"},{"$f":"Import!E36033","v":"Select"},{"$f":"Import!E36233","v":"Select"},{"$f":"Import!E36433","v":"Select"},{"$f":"Import!E36633","v":0},{"$f":"Import!E36833","v":0},{"$f":"Import!E37033","v":0},{"$f":"Import!E37233","v":0},{"$f":"Import!E37433","v":0}]
[134,{"$f":"Import!E35234","v":"Select"},{"$f":"Import!E35434","v":"Select"},{"$f":"Import!E35634","v":"Select"},{"$f":"Import!E35834","v":"Select"},{"$f":"Import!E36034","v":"Select"},{"$f":"Import!E36234","v":"Select"},{"$f":"Import!E36434","v":"Select"},{"$f":"Import!E36634","v":0},{"$f":"Import!E36834","v":0},{"$f":"Import!E37034","v":0},{"$f":"Import!E37234","v":0},{"$f":"Import!E37434","v":0}]
[135,{"$f":"Import!E35235","v":"Select"},{"$f":"Import!E35435","v":"Select"},{"$f":"Import!E35635","v":"Select"},{"$f":"Import!E35835","v":"Select"},{"$f":"Import!E36035","v":"Select"},{"$f":"Import!E36235","v":"Select"},{"$f":"Import!E36435","v":"Select"},{"$f":"Import!E36635","v":0},{"$f":"Import!E36835","v":0},{"$f":"Import!E37035","v":0},{"$f":"Import!E37235","v":0},{"$f":"Import!E37435","v":0}]
[136,{"$f":"Import!E35236","v":"Select"},{"$f":"Import!E35436","v":"Select"},{"$f":"Import!E35636","v":"Select"},{"$f":"Import!E35836","v":"Select"},{"$f":"Import!E36036","v":"Select"},{"$f":"Import!E36236","v":"Select"},{"$f":"Import!E36436","v":"Select"},{"$f":"Import!E36636","v":0},{"$f":"Import!E36836","v":0},{"$f":"Import!E37036","v":0},{"$f":"Import!E37236","v":0},{"$f":"Import!E37436","v":0}]
[137,{"$f":"Import!E35237","v":"Select"},{"$f":"Import!E35437","v":"Select"},{"$f":"Import!E35637","v":"Select"},{"$f":"Import!E35837","v":"Select"},{"$f":"Import!E36037","v":"Select"},{"$f":"Import!E36237","v":"Select"},{"$f":"Import!E36437","v":"Select"},{"$f":"Import!E36637","v":0},{"$f":"Import!E36837","v":0},{"$f":"Import!E37037","v":0},{"$f":"Import!E37237","v":0},{"$f":"Import!E37437","v":0}]
[138,{"$f":"Import!E35238","v":"Select"},{"$f":"Import!E35438","v":"Select"},{"$f":"Import!E35638","v":"Select"},{"$f":"Import!E35838","v":"Select"},{"$f":"Import!E36038","v":"Select"},{"$f":"Import!E36238","v":"Select"},{"$f":"Import!E36438","v":"Select"},{"$f":"Import!E36638","v":0},{"$f":"Import!E36838","v":0},{"$f":"Import!E37038","v":0},{"$f":"Import!E37238","v":0},{"$f":"Import!E37438","v":0}]
[139,{"$f":"Import!E35239","v":"Select"},{"$f":"Import!E35439","v":"Select"},{"$f":"Import!E35639","v":"Select"},{"$f":"Import!E35839","v":"Select"},{"$f":"Import!E36039","v":"Select"},{"$f":"Import!E36239","v":"Select"},{"$f":"Import!E36439","v":"Select"},{"$f":"Import!E36639","v":0},{"$f":"Import!E36839","v":0},{"$f":"Import!E37039","v":0},{"$f":"Import!E37239","v":0},{"$f":"Import!E37439","v":0}]
[140,{"$f":"Import!E35240","v":"Select"},{"$f":"Import!E35440","v":"Select"},{"$f":"Import!E35640","v":"Select"},{"$f":"Import!E35840","v":"Select"},{"$f":"Import!E36040","v":"Select"},{"$f":"Import!E36240","v":"Select"},{"$f":"Import!E36440","v":"Select"},{"$f":"Import!E36640","v":0},{"$f":"Import!E36840","v":0},{"$f":"Import!E37040","v":0},{"$f":"Import!E37240","v":0},{"$f":"Import!E37440","v":0}]
[141,{"$f":"Import!E35241","v":"Select"},{"$f":"Import!E35441","v":"Select"},{"$f":"Import!E35641","v":"Select"},{"$f":"Import!E35841","v":"Select"},{"$f":"Import!E36041","v":"Select"},{"$f":"Import!E36241","v":"Select"},{"$f":"Import!E36441","v":"Select"},{"$f":"Import!E36641","v":0},{"$f":"Import!E36841","v":0},{"$f":"Import!E37041","v":0},{"$f":"Import!E37241","v":0},{"$f":"Import!E37441","v":0}]
[142,{"$f":"Import!E35242","v":"Select"},{"$f":"Import!E35442","v":"Select"},{"$f":"Import!E35642","v":"Select"},{"$f":"Import!E35842","v":"Select"},{"$f":"Import!E36042","v":"Select"},{"$f":"Import!E36242","v":"Select"},{"$f":"Import!E36442","v":"Select"},{"$f":"Import!E36642","v":0},{"$f":"Import!E36842","v":0},{"$f":"Import!E37042","v":0},{"$f":"Import!E37242","v":0},{"$f":"Import!E37442","v":0}]
[143,{"$f":"Import!E35243","v":"Select"},{"$f":"Import!E35443","v":"Select"},{"$f":"Import!E35643","v":"Select"},{"$f":"Import!E35843","v":"Select"},{"$f":"Import!E36043","v":"Select"},{"$f":"Import!E36243","v":"Select"},{"$f":"Import!E36443","v":"Select"},{"$f":"Import!E36643","v":0},{"$f":"Import!E36843","v":0},{"$f":"Import!E37043","v":0},{"$f":"Import!E37243","v":0},{"$f":"Import!E37443","v":0}]
[144,{"$f":"Import!E35244","v":"Select"},{"$f":"Import!E35444","v":"Select"},{"$f":"Import!E35644","v":"Select"},{"$f":"Import!E35844","v":"Select"},{"$f":"Import!E36044","v":"Select"},{"$f":"Import!E36244","v":"Select"},{"$f":"Import!E36444","v":"Select"},{"$f":"Import!E36644","v":0},{"$f":"Import!E36844","v":0},{"$f":"Import!E37044","v":0},{"$f":"Import!E37244","v":0},{"$f":"Import!E37444","v":0}]
[145,{"$f":"Import!E35245","v":"Select"},{"$f":"Import!E35445","v":"Select"},{"$f":"Import!E35645","v":"Select"},{"$f":"Import!E35845","v":"Select"},{"$f":"Import!E36045","v":"Select"},{"$f":"Import!E36245","v":"Select"},{"$f":"Import!E36445","v":"Select"},{"$f":"Import!E36645","v":0},{"$f":"Import!E36845","v":0},{"$f":"Import!E37045","v":0},{"$f":"Import!E37245","v":0},{"$f":"Import!E37445","v":0}]
[146,{"$f":"Import!E35246","v":"Select"},{"$f":"Import!E35446","v":"Select"},{"$f":"Import!E35646","v":"Select"},{"$f":"Import!E35846","v":"Select"},{"$f":"Import!E36046","v":"Select"},{"$f":"Import!E36246","v":"Select"},{"$f":"Import!E36446","v":"Select"},{"$f":"Import!E36646","v":0},{"$f":"Import!E36846","v":0},{"$f":"Import!E37046","v":0},{"$f":"Import!E37246","v":0},{"$f":"Import!E37446","v":0}]
[147,{"$f":"Import!E35247","v":"Select"},{"$f":"Import!E35447","v":"Select"},{"$f":"Import!E35647","v":"Select"},{"$f":"Import!E35847","v":"Select"},{"$f":"Import!E36047","v":"Select"},{"$f":"Import!E36247","v":"Select"},{"$f":"Import!E36447","v":"Select"},{"$f":"Import!E36647","v":0},{"$f":"Import!E36847","v":0},{"$f":"Import!E37047","v":0},{"$f":"Import!E37247","v":0},{"$f":"Import!E37447","v":0}]
[148,{"$f":"Import!E35248","v":"Select"},{"$f":"Import!E35448","v":"Select"},{"$f":"Import!E35648","v":"Select"},{"$f":"Import!E35848","v":"Select"},{"$f":"Import!E36048","v":"Select"},{"$f":"Import!E36248","v":"Select"},{"$f":"Import!E36448","v":"Select"},{"$f":"Import!E36648","v":0},{"$f":"Import!E36848","v":0},{"$f":"Import!E37048","v":0},{"$f":"Import!E37248","v":0},{"$f":"Import!E37448","v":0}]
[149,{"$f":"Import!E35249","v":"Select"},{"$f":"Import!E35449","v":"Select"},{"$f":"Import!E35649","v":"Select"},{"$f":"Import!E35849","v":"Select"},{"$f":"Import!E36049","v":"Select"},{"$f":"Import!E36249","v":"Select"},{"$f":"Import!E36449","v":"Select"},{"$f":"Import!E36649","v":0},{"$f":"Import!E36849","v":0},{"$f":"Import!E37049","v":0},{"$f":"Import!E37249","v":0},{"$f":"Import!E37449","v":0}]
[150,{"$f":"Import!E35250","v":"Select"},{"$f":"Import!E35450","v":"Select"},{"$f":"Import!E35650","v":"Select"},{"$f":"Import!E35850","v":"Select"},{"$f":"Import!E36050","v":"Select"},{"$f":"Import!E36250","v":"Select"},{"$f":"Import!E36450","v":"Select"},{"$f":"Import!E36650","v":0},{"$f":"Import!E36850","v":0},{"$f":"Import!E37050","v":0},{"$f":"Import!E37250","v":0},{"$f":"Import!E37450","v":0}]
[151,{"$f":"Import!E35251","v":"Select"},{"$f":"Import!E35451","v":"Select"},{"$f":"Import!E35651","v":"Select"},{"$f":"Import!E35851","v":"Select"},{"$f":"Import!E36051","v":"Select"},{"$f":"Import!E36251","v":"Select"},{"$f":"Import!E36451","v":"Select"},{"$f":"Import!E36651","v":0},{"$f":"Import!E36851","v":0},{"$f":"Import!E37051","v":0},{"$f":"Import!E37251","v":0},{"$f":"Import!E37451","v":0}]
[152,{"$f":"Import!E35252","v":"Select"},{"$f":"Import!E35452","v":"Select"},{"$f":"Import!E35652","v":"Select"},{"$f":"Import!E35852","v":"Select"},{"$f":"Import!E36052","v":"Select"},{"$f":"Import!E36252","v":"Select"},{"$f":"Import!E36452","v":"Select"},{"$f":"Import!E36652","v":0},{"$f":"Import!E36852","v":0},{"$f":"Import!E37052","v":0},{"$f":"Import!E37252","v":0},{"$f":"Import!E37452","v":0}]
[153,{"$f":"Import!E35253","v":"Select"},{"$f":"Import!E35453","v":"Select"},{"$f":"Import!E35653","v":"Select"},{"$f":"Import!E35853","v":"Select"},{"$f":"Import!E36053","v":"Select"},{"$f":"Import!E36253","v":"Select"},{"$f":"Import!E36453","v":"Select"},{"$f":"Import!E36653","v":0},{"$f":"Import!E36853","v":0},{"$f":"Import!E37053","v":0},{"$f":"Import!E37253","v":0},{"$f":"Import!E37453","v":0}]
[154,{"$f":"Import!E35254","v":"Select"},{"$f":"Import!E35454","v":"Select"},{"$f":"Import!E35654","v":"Select"},{"$f":"Import!E35854","v":"Select"},{"$f":"Import!E36054","v":"Select"},{"$f":"Import!E36254","v":"Select"},{"$f":"Import!E36454","v":"Select"},{"$f":"Import!E36654","v":0},{"$f":"Import!E36854","v":0},{"$f":"Import!E37054","v":0},{"$f":"Import!E37254","v":0},{"$f":"Import!E37454","v":0}]
[155,{"$f":"Import!E35255","v":"Select"},{"$f":"Import!E35455","v":"Select"},{"$f":"Import!E35655","v":"Select"},{"$f":"Import!E35855","v":"Select"},{"$f":"Import!E36055","v":"Select"},{"$f":"Import!E36255","v":"Select"},{"$f":"Import!E36455","v":"Select"},{"$f":"Import!E36655","v":0},{"$f":"Import!E36855","v":0},{"$f":"Import!E37055","v":0},{"$f":"Import!E37255","v":0},{"$f":"Import!E37455","v":0}]
[156,{"$f":"Import!E35256","v":"Select"},{"$f":"Import!E35456","v":"Select"},{"$f":"Import!E35656","v":"Select"},{"$f":"Import!E35856","v":"Select"},{"$f":"Import!E36056","v":"Select"},{"$f":"Import!E36256","v":"Select"},{"$f":"Import!E36456","v":"Select"},{"$f":"Import!E36656","v":0},{"$f":"Import!E36856","v":0},{"$f":"Import!E37056","v":0},{"$f":"Import!E37256","v":0},{"$f":"Import!E37456","v":0}]
[157,{"$f":"Import!E35257","v":"Select"},{"$f":"Import!E35457","v":"Select"},{"$f":"Import!E35657","v":"Select"},{"$f":"Import!E35857","v":"Select"},{"$f":"Import!E36057","v":"Select"},{"$f":"Import!E36257","v":"Select"},{"$f":"Import!E36457","v":"Select"},{"$f":"Import!E36657","v":0},{"$f":"Import!E36857","v":0},{"$f":"Import!E37057","v":0},{"$f":"Import!E37257","v":0},{"$f":"Import!E37457","v":0}]
[158,{"$f":"Import!E35258","v":"Select"},{"$f":"Import!E35458","v":"Select"},{"$f":"Import!E35658","v":"Select"},{"$f":"Import!E35858","v":"Select"},{"$f":"Import!E36058","v":"Select"},{"$f":"Import!E36258","v":"Select"},{"$f":"Import!E36458","v":"Select"},{"$f":"Import!E36658","v":0},{"$f":"Import!E36858","v":0},{"$f":"Import!E37058","v":0},{"$f":"Import!E37258","v":0},{"$f":"Import!E37458","v":0}]
[159,{"$f":"Import!E35259","v":"Select"},{"$f":"Import!E35459","v":"Select"},{"$f":"Import!E35659","v":"Select"},{"$f":"Import!E35859","v":"Select"},{"$f":"Import!E36059","v":"Select"},{"$f":"Import!E36259","v":"Select"},{"$f":"Import!E36459","v":"Select"},{"$f":"Import!E36659","v":0},{"$f":"Import!E36859","v":0},{"$f":"Import!E37059","v":0},{"$f":"Import!E37259","v":0},{"$f":"Import!E37459","v":0}]
[160,{"$f":"Import!E35260","v":"Select"},{"$f":"Import!E35460","v":"Select"},{"$f":"Import!E35660","v":"Select"},{"$f":"Import!E35860","v":"Select"},{"$f":"Import!E36060","v":"Select"},{"$f":"Import!E36260","v":"Select"},{"$f":"Import!E36460","v":"Select"},{"$f":"Import!E36660","v":0},{"$f":"Import!E36860","v":0},{"$f":"Import!E37060","v":0},{"$f":"Import!E37260","v":0},{"$f":"Import!E37460","v":0}]
[161,{"$f":"Import!E35261","v":"Select"},{"$f":"Import!E35461","v":"Select"},{"$f":"Import!E35661","v":"Select"},{"$f":"Import!E35861","v":"Select"},{"$f":"Import!E36061","v":"Select"},{"$f":"Import!E36261","v":"Select"},{"$f":"Import!E36461","v":"Select"},{"$f":"Import!E36661","v":0},{"$f":"Import!E36861","v":0},{"$f":"Import!E37061","v":0},{"$f":"Import!E37261","v":0},{"$f":"Import!E37461","v":0}]
[162,{"$f":"Import!E35262","v":"Select"},{"$f":"Import!E35462","v":"Select"},{"$f":"Import!E35662","v":"Select"},{"$f":"Import!E35862","v":"Select"},{"$f":"Import!E36062","v":"Select"},{"$f":"Import!E36262","v":"Select"},{"$f":"Import!E36462","v":"Select"},{"$f":"Import!E36662","v":0},{"$f":"Import!E36862","v":0},{"$f":"Import!E37062","v":0},{"$f":"Import!E37262","v":0},{"$f":"Import!E37462","v":0}]
[163,{"$f":"Import!E35263","v":"Select"},{"$f":"Import!E35463","v":"Select"},{"$f":"Import!E35663","v":"Select"},{"$f":"Import!E35863","v":"Select"},{"$f":"Import!E36063","v":"Select"},{"$f":"Import!E36263","v":"Select"},{"$f":"Import!E36463","v":"Select"},{"$f":"Import!E36663","v":0},{"$f":"Import!E36863","v":0},{"$f":"Import!E37063","v":0},{"$f":"Import!E37263","v":0},{"$f":"Import!E37463","v":0}]
[164,{"$f":"Import!E35264","v":"Select"},{"$f":"Import!E35464","v":"Select"},{"$f":"Import!E35664","v":"Select"},{"$f":"Import!E35864","v":"Select"},{"$f":"Import!E36064","v":"Select"},{"$f":"Import!E36264","v":"Select"},{"$f":"Import!E36464","v":"Select"},{"$f":"Import!E36664","v":0},{"$f":"Import!E36864","v":0},{"$f":"Import!E37064","v":0},{"$f":"Import!E37264","v":0},{"$f":"Import!E37464","v":0}]
[165,{"$f":"Import!E35265","v":"Select"},{"$f":"Import!E35465","v":"Select"},{"$f":"Import!E35665","v":"Select"},{"$f":"Import!E35865","v":"Select"},{"$f":"Import!E36065","v":"Select"},{"$f":"Import!E36265","v":"Select"},{"$f":"Import!E36465","v":"Select"},{"$f":"Import!E36665","v":0},{"$f":"Import!E36865","v":0},{"$f":"Import!E37065","v":0},{"$f":"Import!E37265","v":0},{"$f":"Import!E37465","v":0}]
[166,{"$f":"Import!E35266","v":"Select"},{"$f":"Import!E35466","v":"Select"},{"$f":"Import!E35666","v":"Select"},{"$f":"Import!E35866","v":"Select"},{"$f":"Import!E36066","v":"Select"},{"$f":"Import!E36266","v":"Select"},{"$f":"Import!E36466","v":"Select"},{"$f":"Import!E36666","v":0},{"$f":"Import!E36866","v":0},{"$f":"Import!E37066","v":0},{"$f":"Import!E37266","v":0},{"$f":"Import!E37466","v":0}]
[167,{"$f":"Import!E35267","v":"Select"},{"$f":"Import!E35467","v":"Select"},{"$f":"Import!E35667","v":"Select"},{"$f":"Import!E35867","v":"Select"},{"$f":"Import!E36067","v":"Select"},{"$f":"Import!E36267","v":"Select"},{"$f":"Import!E36467","v":"Select"},{"$f":"Import!E36667","v":0},{"$f":"Import!E36867","v":0},{"$f":"Import!E37067","v":0},{"$f":"Import!E37267","v":0},{"$f":"Import!E37467","v":0}]
[168,{"$f":"Import!E35268","v":"Select"},{"$f":"Import!E35468","v":"Select"},{"$f":"Import!E35668","v":"Select"},{"$f":"Import!E35868","v":"Select"},{"$f":"Import!E36068","v":"Select"},{"$f":"Import!E36268","v":"Select"},{"$f":"Import!E36468","v":"Select"},{"$f":"Import!E36668","v":0},{"$f":"Import!E36868","v":0},{"$f":"Import!E37068","v":0},{"$f":"Import!E37268","v":0},{"$f":"Import!E37468","v":0}]
[169,{"$f":"Import!E35269","v":"Select"},{"$f":"Import!E35469","v":"Select"},{"$f":"Import!E35669","v":"Select"},{"$f":"Import!E35869","v":"Select"},{"$f":"Import!E36069","v":"Select"},{"$f":"Import!E36269","v":"Select"},{"$f":"Import!E36469","v":"Select"},{"$f":"Import!E36669","v":0},{"$f":"Import!E36869","v":0},{"$f":"Import!E37069","v":0},{"$f":"Import!E37269","v":0},{"$f":"Import!E37469","v":0}]
[170,{"$f":"Import!E35270","v":"Select"},{"$f":"Import!E35470","v":"Select"},{"$f":"Import!E35670","v":"Select"},{"$f":"Import!E35870","v":"Select"},{"$f":"Import!E36070","v":"Select"},{"$f":"Import!E36270","v":"Select"},{"$f":"Import!E36470","v":"Select"},{"$f":"Import!E36670","v":0},{"$f":"Import!E36870","v":0},{"$f":"Import!E37070","v":0},{"$f":"Import!E37270","v":0},{"$f":"Import!E37470","v":0}]
[171,{"$f":"Import!E35271","v":"Select"},{"$f":"Import!E35471","v":"Select"},{"$f":"Import!E35671","v":"Select"},{"$f":"Import!E35871","v":"Select"},{"$f":"Import!E36071","v":"Select"},{"$f":"Import!E36271","v":"Select"},{"$f":"Import!E36471","v":"Select"},{"$f":"Import!E36671","v":0},{"$f":"Import!E36871","v":0},{"$f":"Import!E37071","v":0},{"$f":"Import!E37271","v":0},{"$f":"Import!E37471","v":0}]
[172,{"$f":"Import!E35272","v":"Select"},{"$f":"Import!E35472","v":"Select"},{"$f":"Import!E35672","v":"Select"},{"$f":"Import!E35872","v":"Select"},{"$f":"Import!E36072","v":"Select"},{"$f":"Import!E36272","v":"Select"},{"$f":"Import!E36472","v":"Select"},{"$f":"Import!E36672","v":0},{"$f":"Import!E36872","v":0},{"$f":"Import!E37072","v":0},{"$f":"Import!E37272","v":0},{"$f":"Import!E37472","v":0}]
[173,{"$f":"Import!E35273","v":"Select"},{"$f":"Import!E35473","v":"Select"},{"$f":"Import!E35673","v":"Select"},{"$f":"Import!E35873","v":"Select"},{"$f":"Import!E36073","v":"Select"},{"$f":"Import!E36273","v":"Select"},{"$f":"Import!E36473","v":"Select"},{"$f":"Import!E36673","v":0},{"$f":"Import!E36873","v":0},{"$f":"Import!E37073","v":0},{"$f":"Import!E37273","v":0},{"$f":"Import!E37473","v":0}]
[174,{"$f":"Import!E35274","v":"Select"},{"$f":"Import!E35474","v":"Select"},{"$f":"Import!E35674","v":"Select"},{"$f":"Import!E35874","v":"Select"},{"$f":"Import!E36074","v":"Select"},{"$f":"Import!E36274","v":"Select"},{"$f":"Import!E36474","v":"Select"},{"$f":"Import!E36674","v":0},{"$f":"Import!E36874","v":0},{"$f":"Import!E37074","v":0},{"$f":"Import!E37274","v":0},{"$f":"Import!E37474","v":0}]
[175,{"$f":"Import!E35275","v":"Select"},{"$f":"Import!E35475","v":"Select"},{"$f":"Import!E35675","v":"Select"},{"$f":"Import!E35875","v":"Select"},{"$f":"Import!E36075","v":"Select"},{"$f":"Import!E36275","v":"Select"},{"$f":"Import!E36475","v":"Select"},{"$f":"Import!E36675","v":0},{"$f":"Import!E36875","v":0},{"$f":"Import!E37075","v":0},{"$f":"Import!E37275","v":0},{"$f":"Import!E37475","v":0}]
[176,{"$f":"Import!E35276","v":"Select"},{"$f":"Import!E35476","v":"Select"},{"$f":"Import!E35676","v":"Select"},{"$f":"Import!E35876","v":"Select"},{"$f":"Import!E36076","v":"Select"},{"$f":"Import!E36276","v":"Select"},{"$f":"Import!E36476","v":"Select"},{"$f":"Import!E36676","v":0},{"$f":"Import!E36876","v":0},{"$f":"Import!E37076","v":0},{"$f":"Import!E37276","v":0},{"$f":"Import!E37476","v":0}]
[177,{"$f":"Import!E35277","v":"Select"},{"$f":"Import!E35477","v":"Select"},{"$f":"Import!E35677","v":"Select"},{"$f":"Import!E35877","v":"Select"},{"$f":"Import!E36077","v":"Select"},{"$f":"Import!E36277","v":"Select"},{"$f":"Import!E36477","v":"Select"},{"$f":"Import!E36677","v":0},{"$f":"Import!E36877","v":0},{"$f":"Import!E37077","v":0},{"$f":"Import!E37277","v":0},{"$f":"Import!E37477","v":0}]
[178,{"$f":"Import!E35278","v":"Select"},{"$f":"Import!E35478","v":"Select"},{"$f":"Import!E35678","v":"Select"},{"$f":"Import!E35878","v":"Select"},{"$f":"Import!E36078","v":"Select"},{"$f":"Import!E36278","v":"Select"},{"$f":"Import!E36478","v":"Select"},{"$f":"Import!E36678","v":0},{"$f":"Import!E36878","v":0},{"$f":"Import!E37078","v":0},{"$f":"Import!E37278","v":0},{"$f":"Import!E37478","v":0}]
[179,{"$f":"Import!E35279","v":"Select"},{"$f":"Import!E35479","v":"Select"},{"$f":"Import!E35679","v":"Select"},{"$f":"Import!E35879","v":"Select"},{"$f":"Import!E36079","v":"Select"},{"$f":"Import!E36279","v":"Select"},{"$f":"Import!E36479","v":"Select"},{"$f":"Import!E36679","v":0},{"$f":"Import!E36879","v":0},{"$f":"Import!E37079","v":0},{"$f":"Import!E37279","v":0},{"$f":"Import!E37479","v":0}]
[180,{"$f":"Import!E35280","v":"Select"},{"$f":"Import!E35480","v":"Select"},{"$f":"Import!E35680","v":"Select"},{"$f":"Import!E35880","v":"Select"},{"$f":"Import!E36080","v":"Select"},{"$f":"Import!E36280","v":"Select"},{"$f":"Import!E36480","v":"Select"},{"$f":"Import!E36680","v":0},{"$f":"Import!E36880","v":0},{"$f":"Import!E37080","v":0},{"$f":"Import!E37280","v":0},{"$f":"Import!E37480","v":0}]
[181,{"$f":"Import!E35281","v":"Select"},{"$f":"Import!E35481","v":"Select"},{"$f":"Import!E35681","v":"Select"},{"$f":"Import!E35881","v":"Select"},{"$f":"Import!E36081","v":"Select"},{"$f":"Import!E36281","v":"Select"},{"$f":"Import!E36481","v":"Select"},{"$f":"Import!E36681","v":0},{"$f":"Import!E36881","v":0},{"$f":"Import!E37081","v":0},{"$f":"Import!E37281","v":0},{"$f":"Import!E37481","v":0}]
[182,{"$f":"Import!E35282","v":"Select"},{"$f":"Import!E35482","v":"Select"},{"$f":"Import!E35682","v":"Select"},{"$f":"Import!E35882","v":"Select"},{"$f":"Import!E36082","v":"Select"},{"$f":"Import!E36282","v":"Select"},{"$f":"Import!E36482","v":"Select"},{"$f":"Import!E36682","v":0},{"$f":"Import!E36882","v":0},{"$f":"Import!E37082","v":0},{"$f":"Import!E37282","v":0},{"$f":"Import!E37482","v":0}]
[183,{"$f":"Import!E35283","v":"Select"},{"$f":"Import!E35483","v":"Select"},{"$f":"Import!E35683","v":"Select"},{"$f":"Import!E35883","v":"Select"},{"$f":"Import!E36083","v":"Select"},{"$f":"Import!E36283","v":"Select"},{"$f":"Import!E36483","v":"Select"},{"$f":"Import!E36683","v":0},{"$f":"Import!E36883","v":0},{"$f":"Import!E37083","v":0},{"$f":"Import!E37283","v":0},{"$f":"Import!E37483","v":0}]
[184,{"$f":"Import!E35284","v":"Select"},{"$f":"Import!E35484","v":"Select"},{"$f":"Import!E35684","v":"Select"},{"$f":"Import!E35884","v":"Select"},{"$f":"Import!E36084","v":"Select"},{"$f":"Import!E36284","v":"Select"},{"$f":"Import!E36484","v":"Select"},{"$f":"Import!E36684","v":0},{"$f":"Import!E36884","v":0},{"$f":"Import!E37084","v":0},{"$f":"Import!E37284","v":0},{"$f":"Import!E37484","v":0}]
[185,{"$f":"Import!E35285","v":"Select"},{"$f":"Import!E35485","v":"Select"},{"$f":"Import!E35685","v":"Select"},{"$f":"Import!E35885","v":"Select"},{"$f":"Import!E36085","v":"Select"},{"$f":"Import!E36285","v":"Select"},{"$f":"Import!E36485","v":"Select"},{"$f":"Import!E36685","v":0},{"$f":"Import!E36885","v":0},{"$f":"Import!E37085","v":0},{"$f":"Import!E37285","v":0},{"$f":"Import!E37485","v":0}]
[186,{"$f":"Import!E35286","v":"Select"},{"$f":"Import!E35486","v":"Select"},{"$f":"Import!E35686","v":"Select"},{"$f":"Import!E35886","v":"Select"},{"$f":"Import!E36086","v":"Select"},{"$f":"Import!E36286","v":"Select"},{"$f":"Import!E36486","v":"Select"},{"$f":"Import!E36686","v":0},{"$f":"Import!E36886","v":0},{"$f":"Import!E37086","v":0},{"$f":"Import!E37286","v":0},{"$f":"Import!E37486","v":0}]
[187,{"$f":"Import!E35287","v":"Select"},{"$f":"Import!E35487","v":"Select"},{"$f":"Import!E35687","v":"Select"},{"$f":"Import!E35887","v":"Select"},{"$f":"Import!E36087","v":"Select"},{"$f":"Import!E36287","v":"Select"},{"$f":"Import!E36487","v":"Select"},{"$f":"Import!E36687","v":0},{"$f":"Import!E36887","v":0},{"$f":"Import!E37087","v":0},{"$f":"Import!E37287","v":0},{"$f":"Import!E37487","v":0}]
[188,{"$f":"Import!E35288","v":"Select"},{"$f":"Import!E35488","v":"Select"},{"$f":"Import!E35688","v":"Select"},{"$f":"Import!E35888","v":"Select"},{"$f":"Import!E36088","v":"Select"},{"$f":"Import!E36288","v":"Select"},{"$f":"Import!E36488","v":"Select"},{"$f":"Import!E36688","v":0},{"$f":"Import!E36888","v":0},{"$f":"Import!E37088","v":0},{"$f":"Import!E37288","v":0},{"$f":"Import!E37488","v":0}]
[189,{"$f":"Import!E35289","v":"Select"},{"$f":"Import!E35489","v":"Select"},{"$f":"Import!E35689","v":"Select"},{"$f":"Import!E35889","v":"Select"},{"$f":"Import!E36089","v":"Select"},{"$f":"Import!E36289","v":"Select"},{"$f":"Import!E36489","v":"Select"},{"$f":"Import!E36689","v":0},{"$f":"Import!E36889","v":0},{"$f":"Import!E37089","v":0},{"$f":"Import!E37289","v":0},{"$f":"Import!E37489","v":0}]
[190,{"$f":"Import!E35290","v":"Select"},{"$f":"Import!E35490","v":"Select"},{"$f":"Import!E35690","v":"Select"},{"$f":"Import!E35890","v":"Select"},{"$f":"Import!E36090","v":"Select"},{"$f":"Import!E36290","v":"Select"},{"$f":"Import!E36490","v":"Select"},{"$f":"Import!E36690","v":0},{"$f":"Import!E36890","v":0},{"$f":"Import!E37090","v":0},{"$f":"Import!E37290","v":0},{"$f":"Import!E37490","v":0}]
[191,{"$f":"Import!E35291","v":"Select"},{"$f":"Import!E35491","v":"Select"},{"$f":"Import!E35691","v":"Select"},{"$f":"Import!E35891","v":"Select"},{"$f":"Import!E36091","v":"Select"},{"$f":"Import!E36291","v":"Select"},{"$f":"Import!E36491","v":"Select"},{"$f":"Import!E36691","v":0},{"$f":"Import!E36891","v":0},{"$f":"Import!E37091","v":0},{"$f":"Import!E37291","v":0},{"$f":"Import!E37491","v":0}]
[192,{"$f":"Import!E35292","v":"Select"},{"$f":"Import!E35492","v":"Select"},{"$f":"Import!E35692","v":"Select"},{"$f":"Import!E35892","v":"Select"},{"$f":"Import!E36092","v":"Select"},{"$f":"Import!E36292","v":"Select"},{"$f":"Import!E36492","v":"Select"},{"$f":"Import!E36692","v":0},{"$f":"Import!E36892","v":0},{"$f":"Import!E37092","v":0},{"$f":"Import!E37292","v":0},{"$f":"Import!E37492","v":0}]
[193,{"$f":"Import!E35293","v":"Select"},{"$f":"Import!E35493","v":"Select"},{"$f":"Import!E35693","v":"Select"},{"$f":"Import!E35893","v":"Select"},{"$f":"Import!E36093","v":"Select"},{"$f":"Import!E36293","v":"Select"},{"$f":"Import!E36493","v":"Select"},{"$f":"Import!E36693","v":0},{"$f":"Import!E36893","v":0},{"$f":"Import!E37093","v":0},{"$f":"Import!E37293","v":0},{"$f":"Import!E37493","v":0}]
[194,{"$f":"Import!E35294","v":"Select"},{"$f":"Import!E35494","v":"Select"},{"$f":"Import!E35694","v":"Select"},{"$f":"Import!E35894","v":"Select"},{"$f":"Import!E36094","v":"Select"},{"$f":"Import!E36294","v":"Select"},{"$f":"Import!E36494","v":"Select"},{"$f":"Import!E36694","v":0},{"$f":"Import!E36894","v":0},{"$f":"Import!E37094","v":0},{"$f":"Import!E37294","v":0},{"$f":"Import!E37494","v":0}]
[{"$f":"A1753+1","v":195},{"$f":"Import!E35295","v":"Select"},{"$f":"Import!E35495","v":"Select"},{"$f":"Import!E35695","v":"Select"},{"$f":"Import!E35895","v":"Select"},{"$f":"Import!E36095","v":"Select"},{"$f":"Import!E36295","v":"Select"},{"$f":"Import!E36495","v":"Select"},{"$f":"Import!E36695","v":0},{"$f":"Import!E36895","v":0},{"$f":"Import!E37095","v":0},{"$f":"Import!E37295","v":0},{"$f":"Import!E37495","v":0}]
[196,{"$f":"Import!E35296","v":"Select"},{"$f":"Import!E35496","v":"Select"},{"$f":"Import!E35696","v":"Select"},{"$f":"Import!E35896","v":"Select"},{"$f":"Import!E36096","v":"Select"},{"$f":"Import!E36296","v":"Select"},{"$f":"Import!E36496","v":"Select"},{"$f":"Import!E36696","v":0},{"$f":"Import!E36896","v":0},{"$f":"Import!E37096","v":0},{"$f":"Import!E37296","v":0},{"$f":"Import!E37496","v":0}]
[197,{"$f":"Import!E35297","v":"Select"},{"$f":"Import!E35497","v":"Select"},{"$f":"Import!E35697","v":"Select"},{"$f":"Import!E35897","v":"Select"},{"$f":"Import!E36097","v":"Select"},{"$f":"Import!E36297","v":"Select"},{"$f":"Import!E36497","v":"Select"},{"$f":"Import!E36697","v":0},{"$f":"Import!E36897","v":0},{"$f":"Import!E37097","v":0},{"$f":"Import!E37297","v":0},{"$f":"Import!E37497","v":0}]
[198,{"$f":"Import!E35298","v":"Select"},{"$f":"Import!E35498","v":"Select"},{"$f":"Import!E35698","v":"Select"},{"$f":"Import!E35898","v":"Select"},{"$f":"Import!E36098","v":"Select"},{"$f":"Import!E36298","v":"Select"},{"$f":"Import!E36498","v":"Select"},{"$f":"Import!E36698","v":0},{"$f":"Import!E36898","v":0},{"$f":"Import!E37098","v":0},{"$f":"Import!E37298","v":0},{"$f":"Import!E37498","v":0}]
[199,{"$f":"Import!E35299","v":"Select"},{"$f":"Import!E35499","v":"Select"},{"$f":"Import!E35699","v":"Select"},{"$f":"Import!E35899","v":"Select"},{"$f":"Import!E36099","v":"Select"},{"$f":"Import!E36299","v":"Select"},{"$f":"Import!E36499","v":"Select"},{"$f":"Import!E36699","v":0},{"$f":"Import!E36899","v":0},{"$f":"Import!E37099","v":0},{"$f":"Import!E37299","v":0},{"$f":"Import!E37499","v":0}]
[200,{"$f":"Import!E35300","v":"Select"},{"$f":"Import!E35500","v":"Select"},{"$f":"Import!E35700","v":"Select"},{"$f":"Import!E35900","v":"Select"},{"$f":"Import!E36100","v":"Select"},{"$f":"Import!E36300","v":"Select"},{"$f":"Import!E36500","v":"Select"},{"$f":"Import!E36700","v":0},{"$f":"Import!E36900","v":0},{"$f":"Import!E37100","v":0},{"$f":"Import!E37300","v":0},{"$f":"Import!E37500","v":0}]
[]
[null,"Total Derivatives",null,null,null,null,null,null,{"$f":"SUM(I1560:I1759)","v":0},{"$f":"SUM(J1560:J1759)","v":0},{"$f":"SUM(K1560:K1759)","v":0}]
[]
[null,"(J) INFORMATION ON EXPOSURES TO FINANCIAL INSTITUTIONS AND UNLISTED COUNTERPARTIES"]
[null,null,null,null,null,"Commercial Loans and Mortgages"]
[null,null,{"$f":"YEAR($C$3)","v":2023},"Fair Value",null,null,"Securitisations ","Other debt securities"]
[null,"Financial Institutions","Equities","Corporate Bonds","Corporate Loans",null,null,null,null,"Comments"]
[1,"Exposure to Financial Institutions (Banks, Insurance Companies, Other Financials) - Investment Grade, BSCR Rating 1-3",{"$f":"Import!E37501","v":0},{"$f":"Import!E37505","v":0},{"$f":"Import!E37509","v":0},{"$f":"Import!E37513","v":0},{"$f":"Import!E37517","v":0},{"$f":"Import!E37521","v":0},null,{"$f":"Import!E37525","v":0}]
[2,"Exposure to Financial Institutions (Banks, Insurance Companies, Other Financials) - Investment Grade, BSCR Rating 4",{"$f":"Import!E37502","v":0},{"$f":"Import!E37506","v":0},{"$f":"Import!E37510","v":0},{"$f":"Import!E37514","v":0},{"$f":"Import!E37518","v":0},{"$f":"Import!E37522","v":0},null,{"$f":"Import!E37526","v":0}]
[3,"Exposure to Financial Institutions (Banks, Insurance Companies, Other Financials) - Below Investment Grade",{"$f":"Import!E37503","v":0},{"$f":"Import!E37507","v":0},{"$f":"Import!E37511","v":0},{"$f":"Import!E37515","v":0},{"$f":"Import!E37519","v":0},{"$f":"Import!E37523","v":0},null,{"$f":"Import!E37527","v":0}]
[4,"Exposure to Financial Institutions (Banks, Insurance Companies, Other Financials) - Unrated",{"$f":"Import!E37504","v":0},{"$f":"Import!E37508","v":0},{"$f":"Import!E37512","v":0},{"$f":"Import!E37516","v":0},{"$f":"Import!E37520","v":0},{"$f":"Import!E37524","v":0},null,{"$f":"Import!E37528","v":0}]
[]
[null,"Total Exposures to Financial Institutions",{"$f":"SUM(C1767:C1770)","v":0},{"$f":"SUM(D1767:D1770)","v":0},0,0,0,0]
[]
[null,"Of which","Equities","Corporate Bonds","Corporate Loans","Other",null,null,null,"Comments"]
[5,"- exposures to Banks",{"$f":"Import!E37529","v":0},{"$f":"Import!E37532","v":0},{"$f":"Import!E37535","v":0},{"$f":"Import!E37538","v":0},null,null,null,{"$f":"Import!E37541","v":0}]
[6,"- exposures to Insurers",{"$f":"Import!E37530","v":0},{"$f":"Import!E37533","v":0},{"$f":"Import!E37536","v":0},{"$f":"Import!E37539","v":0},null,null,null,{"$f":"Import!E37542","v":0}]
[7,"- exposures to Other Financial Institutions",{"$f":"Import!E37531","v":0},{"$f":"Import!E37534","v":0},{"$f":"Import!E37537","v":0},{"$f":"Import!E37540","v":0},null,null,null,{"$f":"Import!E37543","v":0}]
[]
[null,"Total Exposures",{"$f":"SUM(C1775:C1777)","v":0},{"$f":"SUM(D1775:D1777)","v":0},{"$f":"SUM(E1775:E1777)","v":0},{"$f":"SUM(F1775:F1777)","v":0}]
[]
[null,null,{"$f":"YEAR($C$3)","v":2023},"Fair Value"]
[null,"Unlisted Counterparties","Equities","Corporate Bonds","Corporate Loans","Other",null,null,null,"Comments"]
[8,"Direct Exposure to Unlisted Counterparties - Investment Grade, BSCR Rating 1-3",{"$f":"Import!E37544","v":0},{"$f":"Import!E37548","v":0},{"$f":"Import!E37552","v":0},{"$f":"Import!E37556","v":0},null,null,null,{"$f":"Import!E37560","v":0}]
[9,"Direct Exposure to Unlisted Counterparties - Investment Grade, BSCR Rating 4",{"$f":"Import!E37545","v":0},{"$f":"Import!E37549","v":0},{"$f":"Import!E37553","v":0},{"$f":"Import!E37557","v":0},null,null,null,{"$f":"Import!E37561","v":0}]
[10,"Direct Exposure to Unlisted Counterparties - Below Investment Grade",{"$f":"Import!E37546","v":0},{"$f":"Import!E37550","v":0},{"$f":"Import!E37554","v":0},{"$f":"Import!E37558","v":0},null,null,null,{"$f":"Import!E37562","v":0}]
[11,"Direct Exposure to Unlisted Counterparties - Unrated",{"$f":"Import!E37547","v":0},{"$f":"Import!E37551","v":0},{"$f":"Import!E37555","v":0},{"$f":"Import!E37559","v":0},null,null,null,{"$f":"Import!E37563","v":0}]
[]
[null,"Total Direct Exposures to Unlisted Counterparties",{"$f":"SUM(C1783:C1786)","v":0},{"$f":"SUM(D1783:D1786)","v":0},0,0]
[]
[null,"(K) OTHER ASSETS"]
[]
[null,null,"Enter # of Asset Types",{"$f":"Import!E37564","v":0}]
[]
[null,null,null,null,{"$f":"YEAR($C$3)","v":2023},2023]
[null,"Asset Type","Currency","BSCR Rating","Nominal Amount","Fair Value","Comments"]
[1,{"$f":"Import!E37565","v":"Select"},{"$f":"Import!E37765","v":"Select"},{"$f":"Import!E37965","v":"Select"},{"$f":"Import!E38165","v":0},{"$f":"Import!E38365","v":0},{"$f":"Import!E38565","v":0}]
[{"$f":"A1796+1","v":2},{"$f":"Import!E37566","v":"Select"},{"$f":"Import!E37766","v":"Select"},{"$f":"Import!E37966","v":"Select"},{"$f":"Import!E38166","v":0},{"$f":"Import!E38366","v":0},{"$f":"Import!E38566","v":0}]
[{"$f":"A1797+1","v":3},{"$f":"Import!E37567","v":"Select"},{"$f":"Import!E37767","v":"Select"},{"$f":"Import!E37967","v":"Select"},{"$f":"Import!E38167","v":0},{"$f":"Import!E38367","v":0},{"$f":"Import!E38567","v":0}]
[4,{"$f":"Import!E37568","v":"Select"},{"$f":"Import!E37768","v":"Select"},{"$f":"Import!E37968","v":"Select"},{"$f":"Import!E38168","v":0},{"$f":"Import!E38368","v":0},{"$f":"Import!E38568","v":0}]
[5,{"$f":"Import!E37569","v":"Select"},{"$f":"Import!E37769","v":"Select"},{"$f":"Import!E37969","v":"Select"},{"$f":"Import!E38169","v":0},{"$f":"Import!E38369","v":0},{"$f":"Import!E38569","v":0}]
[6,{"$f":"Import!E37570","v":"Select"},{"$f":"Import!E37770","v":"Select"},{"$f":"Import!E37970","v":"Select"},{"$f":"Import!E38170","v":0},{"$f":"Import!E38370","v":0},{"$f":"Import!E38570","v":0}]
[7,{"$f":"Import!E37571","v":"Select"},{"$f":"Import!E37771","v":"Select"},{"$f":"Import!E37971","v":"Select"},{"$f":"Import!E38171","v":0},{"$f":"Import!E38371","v":0},{"$f":"Import!E38571","v":0}]
[8,{"$f":"Import!E37572","v":"Select"},{"$f":"Import!E37772","v":"Select"},{"$f":"Import!E37972","v":"Select"},{"$f":"Import!E38172","v":0},{"$f":"Import!E38372","v":0},{"$f":"Import!E38572","v":0}]
[9,{"$f":"Import!E37573","v":"Select"},{"$f":"Import!E37773","v":"Select"},{"$f":"Import!E37973","v":"Select"},{"$f":"Import!E38173","v":0},{"$f":"Import!E38373","v":0},{"$f":"Import!E38573","v":0}]
[10,{"$f":"Import!E37574","v":"Select"},{"$f":"Import!E37774","v":"Select"},{"$f":"Import!E37974","v":"Select"},{"$f":"Import!E38174","v":0},{"$f":"Import!E38374","v":0},{"$f":"Import!E38574","v":0}]
[11,{"$f":"Import!E37575","v":"Select"},{"$f":"Import!E37775","v":"Select"},{"$f":"Import!E37975","v":"Select"},{"$f":"Import!E38175","v":0},{"$f":"Import!E38375","v":0},{"$f":"Import!E38575","v":0}]
[12,{"$f":"Import!E37576","v":"Select"},{"$f":"Import!E37776","v":"Select"},{"$f":"Import!E37976","v":"Select"},{"$f":"Import!E38176","v":0},{"$f":"Import!E38376","v":0},{"$f":"Import!E38576","v":0}]
[13,{"$f":"Import!E37577","v":"Select"},{"$f":"Import!E37777","v":"Select"},{"$f":"Import!E37977","v":"Select"},{"$f":"Import!E38177","v":0},{"$f":"Import!E38377","v":0},{"$f":"Import!E38577","v":0}]
[14,{"$f":"Import!E37578","v":"Select"},{"$f":"Import!E37778","v":"Select"},{"$f":"Import!E37978","v":"Select"},{"$f":"Import!E38178","v":0},{"$f":"Import!E38378","v":0},{"$f":"Import!E38578","v":0}]
[15,{"$f":"Import!E37579","v":"Select"},{"$f":"Import!E37779","v":"Select"},{"$f":"Import!E37979","v":"Select"},{"$f":"Import!E38179","v":0},{"$f":"Import!E38379","v":0},{"$f":"Import!E38579","v":0}]
[16,{"$f":"Import!E37580","v":"Select"},{"$f":"Import!E37780","v":"Select"},{"$f":"Import!E37980","v":"Select"},{"$f":"Import!E38180","v":0},{"$f":"Import!E38380","v":0},{"$f":"Import!E38580","v":0}]
[17,{"$f":"Import!E37581","v":"Select"},{"$f":"Import!E37781","v":"Select"},{"$f":"Import!E37981","v":"Select"},{"$f":"Import!E38181","v":0},{"$f":"Import!E38381","v":0},{"$f":"Import!E38581","v":0}]
[18,{"$f":"Import!E37582","v":"Select"},{"$f":"Import!E37782","v":"Select"},{"$f":"Import!E37982","v":"Select"},{"$f":"Import!E38182","v":0},{"$f":"Import!E38382","v":0},{"$f":"Import!E38582","v":0}]
[19,{"$f":"Import!E37583","v":"Select"},{"$f":"Import!E37783","v":"Select"},{"$f":"Import!E37983","v":"Select"},{"$f":"Import!E38183","v":0},{"$f":"Import!E38383","v":0},{"$f":"Import!E38583","v":0}]
[20,{"$f":"Import!E37584","v":"Select"},{"$f":"Import!E37784","v":"Select"},{"$f":"Import!E37984","v":"Select"},{"$f":"Import!E38184","v":0},{"$f":"Import!E38384","v":0},{"$f":"Import!E38584","v":0}]
[21,{"$f":"Import!E37585","v":"Select"},{"$f":"Import!E37785","v":"Select"},{"$f":"Import!E37985","v":"Select"},{"$f":"Import!E38185","v":0},{"$f":"Import!E38385","v":0},{"$f":"Import!E38585","v":0}]
[22,{"$f":"Import!E37586","v":"Select"},{"$f":"Import!E37786","v":"Select"},{"$f":"Import!E37986","v":"Select"},{"$f":"Import!E38186","v":0},{"$f":"Import!E38386","v":0},{"$f":"Import!E38586","v":0}]
[23,{"$f":"Import!E37587","v":"Select"},{"$f":"Import!E37787","v":"Select"},{"$f":"Import!E37987","v":"Select"},{"$f":"Import!E38187","v":0},{"$f":"Import!E38387","v":0},{"$f":"Import!E38587","v":0}]
[24,{"$f":"Import!E37588","v":"Select"},{"$f":"Import!E37788","v":"Select"},{"$f":"Import!E37988","v":"Select"},{"$f":"Import!E38188","v":0},{"$f":"Import!E38388","v":0},{"$f":"Import!E38588","v":0}]
[25,{"$f":"Import!E37589","v":"Select"},{"$f":"Import!E37789","v":"Select"},{"$f":"Import!E37989","v":"Select"},{"$f":"Import!E38189","v":0},{"$f":"Import!E38389","v":0},{"$f":"Import!E38589","v":0}]
[26,{"$f":"Import!E37590","v":"Select"},{"$f":"Import!E37790","v":"Select"},{"$f":"Import!E37990","v":"Select"},{"$f":"Import!E38190","v":0},{"$f":"Import!E38390","v":0},{"$f":"Import!E38590","v":0}]
[27,{"$f":"Import!E37591","v":"Select"},{"$f":"Import!E37791","v":"Select"},{"$f":"Import!E37991","v":"Select"},{"$f":"Import!E38191","v":0},{"$f":"Import!E38391","v":0},{"$f":"Import!E38591","v":0}]
[28,{"$f":"Import!E37592","v":"Select"},{"$f":"Import!E37792","v":"Select"},{"$f":"Import!E37992","v":"Select"},{"$f":"Import!E38192","v":0},{"$f":"Import!E38392","v":0},{"$f":"Import!E38592","v":0}]
[29,{"$f":"Import!E37593","v":"Select"},{"$f":"Import!E37793","v":"Select"},{"$f":"Import!E37993","v":"Select"},{"$f":"Import!E38193","v":0},{"$f":"Import!E38393","v":0},{"$f":"Import!E38593","v":0}]
[30,{"$f":"Import!E37594","v":"Select"},{"$f":"Import!E37794","v":"Select"},{"$f":"Import!E37994","v":"Select"},{"$f":"Import!E38194","v":0},{"$f":"Import!E38394","v":0},{"$f":"Import!E38594","v":0}]
[31,{"$f":"Import!E37595","v":"Select"},{"$f":"Import!E37795","v":"Select"},{"$f":"Import!E37995","v":"Select"},{"$f":"Import!E38195","v":0},{"$f":"Import!E38395","v":0},{"$f":"Import!E38595","v":0}]
[32,{"$f":"Import!E37596","v":"Select"},{"$f":"Import!E37796","v":"Select"},{"$f":"Import!E37996","v":"Select"},{"$f":"Import!E38196","v":0},{"$f":"Import!E38396","v":0},{"$f":"Import!E38596","v":0}]
[33,{"$f":"Import!E37597","v":"Select"},{"$f":"Import!E37797","v":"Select"},{"$f":"Import!E37997","v":"Select"},{"$f":"Import!E38197","v":0},{"$f":"Import!E38397","v":0},{"$f":"Import!E38597","v":0}]
[34,{"$f":"Import!E37598","v":"Select"},{"$f":"Import!E37798","v":"Select"},{"$f":"Import!E37998","v":"Select"},{"$f":"Import!E38198","v":0},{"$f":"Import!E38398","v":0},{"$f":"Import!E38598","v":0}]
[35,{"$f":"Import!E37599","v":"Select"},{"$f":"Import!E37799","v":"Select"},{"$f":"Import!E37999","v":"Select"},{"$f":"Import!E38199","v":0},{"$f":"Import!E38399","v":0},{"$f":"Import!E38599","v":0}]
[36,{"$f":"Import!E37600","v":"Select"},{"$f":"Import!E37800","v":"Select"},{"$f":"Import!E38000","v":"Select"},{"$f":"Import!E38200","v":0},{"$f":"Import!E38400","v":0},{"$f":"Import!E38600","v":0}]
[37,{"$f":"Import!E37601","v":"Select"},{"$f":"Import!E37801","v":"Select"},{"$f":"Import!E38001","v":"Select"},{"$f":"Import!E38201","v":0},{"$f":"Import!E38401","v":0},{"$f":"Import!E38601","v":0}]
[38,{"$f":"Import!E37602","v":"Select"},{"$f":"Import!E37802","v":"Select"},{"$f":"Import!E38002","v":"Select"},{"$f":"Import!E38202","v":0},{"$f":"Import!E38402","v":0},{"$f":"Import!E38602","v":0}]
[39,{"$f":"Import!E37603","v":"Select"},{"$f":"Import!E37803","v":"Select"},{"$f":"Import!E38003","v":"Select"},{"$f":"Import!E38203","v":0},{"$f":"Import!E38403","v":0},{"$f":"Import!E38603","v":0}]
[40,{"$f":"Import!E37604","v":"Select"},{"$f":"Import!E37804","v":"Select"},{"$f":"Import!E38004","v":"Select"},{"$f":"Import!E38204","v":0},{"$f":"Import!E38404","v":0},{"$f":"Import!E38604","v":0}]
[41,{"$f":"Import!E37605","v":"Select"},{"$f":"Import!E37805","v":"Select"},{"$f":"Import!E38005","v":"Select"},{"$f":"Import!E38205","v":0},{"$f":"Import!E38405","v":0},{"$f":"Import!E38605","v":0}]
[42,{"$f":"Import!E37606","v":"Select"},{"$f":"Import!E37806","v":"Select"},{"$f":"Import!E38006","v":"Select"},{"$f":"Import!E38206","v":0},{"$f":"Import!E38406","v":0},{"$f":"Import!E38606","v":0}]
[43,{"$f":"Import!E37607","v":"Select"},{"$f":"Import!E37807","v":"Select"},{"$f":"Import!E38007","v":"Select"},{"$f":"Import!E38207","v":0},{"$f":"Import!E38407","v":0},{"$f":"Import!E38607","v":0}]
[44,{"$f":"Import!E37608","v":"Select"},{"$f":"Import!E37808","v":"Select"},{"$f":"Import!E38008","v":"Select"},{"$f":"Import!E38208","v":0},{"$f":"Import!E38408","v":0},{"$f":"Import!E38608","v":0}]
[45,{"$f":"Import!E37609","v":"Select"},{"$f":"Import!E37809","v":"Select"},{"$f":"Import!E38009","v":"Select"},{"$f":"Import!E38209","v":0},{"$f":"Import!E38409","v":0},{"$f":"Import!E38609","v":0}]
[46,{"$f":"Import!E37610","v":"Select"},{"$f":"Import!E37810","v":"Select"},{"$f":"Import!E38010","v":"Select"},{"$f":"Import!E38210","v":0},{"$f":"Import!E38410","v":0},{"$f":"Import!E38610","v":0}]
[47,{"$f":"Import!E37611","v":"Select"},{"$f":"Import!E37811","v":"Select"},{"$f":"Import!E38011","v":"Select"},{"$f":"Import!E38211","v":0},{"$f":"Import!E38411","v":0},{"$f":"Import!E38611","v":0}]
[48,{"$f":"Import!E37612","v":"Select"},{"$f":"Import!E37812","v":"Select"},{"$f":"Import!E38012","v":"Select"},{"$f":"Import!E38212","v":0},{"$f":"Import!E38412","v":0},{"$f":"Import!E38612","v":0}]
[49,{"$f":"Import!E37613","v":"Select"},{"$f":"Import!E37813","v":"Select"},{"$f":"Import!E38013","v":"Select"},{"$f":"Import!E38213","v":0},{"$f":"Import!E38413","v":0},{"$f":"Import!E38613","v":0}]
[50,{"$f":"Import!E37614","v":"Select"},{"$f":"Import!E37814","v":"Select"},{"$f":"Import!E38014","v":"Select"},{"$f":"Import!E38214","v":0},{"$f":"Import!E38414","v":0},{"$f":"Import!E38614","v":0}]
[51,{"$f":"Import!E37615","v":"Select"},{"$f":"Import!E37815","v":"Select"},{"$f":"Import!E38015","v":"Select"},{"$f":"Import!E38215","v":0},{"$f":"Import!E38415","v":0},{"$f":"Import!E38615","v":0}]
[52,{"$f":"Import!E37616","v":"Select"},{"$f":"Import!E37816","v":"Select"},{"$f":"Import!E38016","v":"Select"},{"$f":"Import!E38216","v":0},{"$f":"Import!E38416","v":0},{"$f":"Import!E38616","v":0}]
[53,{"$f":"Import!E37617","v":"Select"},{"$f":"Import!E37817","v":"Select"},{"$f":"Import!E38017","v":"Select"},{"$f":"Import!E38217","v":0},{"$f":"Import!E38417","v":0},{"$f":"Import!E38617","v":0}]
[54,{"$f":"Import!E37618","v":"Select"},{"$f":"Import!E37818","v":"Select"},{"$f":"Import!E38018","v":"Select"},{"$f":"Import!E38218","v":0},{"$f":"Import!E38418","v":0},{"$f":"Import!E38618","v":0}]
[55,{"$f":"Import!E37619","v":"Select"},{"$f":"Import!E37819","v":"Select"},{"$f":"Import!E38019","v":"Select"},{"$f":"Import!E38219","v":0},{"$f":"Import!E38419","v":0},{"$f":"Import!E38619","v":0}]
[56,{"$f":"Import!E37620","v":"Select"},{"$f":"Import!E37820","v":"Select"},{"$f":"Import!E38020","v":"Select"},{"$f":"Import!E38220","v":0},{"$f":"Import!E38420","v":0},{"$f":"Import!E38620","v":0}]
[57,{"$f":"Import!E37621","v":"Select"},{"$f":"Import!E37821","v":"Select"},{"$f":"Import!E38021","v":"Select"},{"$f":"Import!E38221","v":0},{"$f":"Import!E38421","v":0},{"$f":"Import!E38621","v":0}]
[58,{"$f":"Import!E37622","v":"Select"},{"$f":"Import!E37822","v":"Select"},{"$f":"Import!E38022","v":"Select"},{"$f":"Import!E38222","v":0},{"$f":"Import!E38422","v":0},{"$f":"Import!E38622","v":0}]
[59,{"$f":"Import!E37623","v":"Select"},{"$f":"Import!E37823","v":"Select"},{"$f":"Import!E38023","v":"Select"},{"$f":"Import!E38223","v":0},{"$f":"Import!E38423","v":0},{"$f":"Import!E38623","v":0}]
[60,{"$f":"Import!E37624","v":"Select"},{"$f":"Import!E37824","v":"Select"},{"$f":"Import!E38024","v":"Select"},{"$f":"Import!E38224","v":0},{"$f":"Import!E38424","v":0},{"$f":"Import!E38624","v":0}]
[61,{"$f":"Import!E37625","v":"Select"},{"$f":"Import!E37825","v":"Select"},{"$f":"Import!E38025","v":"Select"},{"$f":"Import!E38225","v":0},{"$f":"Import!E38425","v":0},{"$f":"Import!E38625","v":0}]
[62,{"$f":"Import!E37626","v":"Select"},{"$f":"Import!E37826","v":"Select"},{"$f":"Import!E38026","v":"Select"},{"$f":"Import!E38226","v":0},{"$f":"Import!E38426","v":0},{"$f":"Import!E38626","v":0}]
[63,{"$f":"Import!E37627","v":"Select"},{"$f":"Import!E37827","v":"Select"},{"$f":"Import!E38027","v":"Select"},{"$f":"Import!E38227","v":0},{"$f":"Import!E38427","v":0},{"$f":"Import!E38627","v":0}]
[64,{"$f":"Import!E37628","v":"Select"},{"$f":"Import!E37828","v":"Select"},{"$f":"Import!E38028","v":"Select"},{"$f":"Import!E38228","v":0},{"$f":"Import!E38428","v":0},{"$f":"Import!E38628","v":0}]
[65,{"$f":"Import!E37629","v":"Select"},{"$f":"Import!E37829","v":"Select"},{"$f":"Import!E38029","v":"Select"},{"$f":"Import!E38229","v":0},{"$f":"Import!E38429","v":0},{"$f":"Import!E38629","v":0}]
[66,{"$f":"Import!E37630","v":"Select"},{"$f":"Import!E37830","v":"Select"},{"$f":"Import!E38030","v":"Select"},{"$f":"Import!E38230","v":0},{"$f":"Import!E38430","v":0},{"$f":"Import!E38630","v":0}]
[{"$f":"A1861+1","v":67},{"$f":"Import!E37631","v":"Select"},{"$f":"Import!E37831","v":"Select"},{"$f":"Import!E38031","v":"Select"},{"$f":"Import!E38231","v":0},{"$f":"Import!E38431","v":0},{"$f":"Import!E38631","v":0}]
[68,{"$f":"Import!E37632","v":"Select"},{"$f":"Import!E37832","v":"Select"},{"$f":"Import!E38032","v":"Select"},{"$f":"Import!E38232","v":0},{"$f":"Import!E38432","v":0},{"$f":"Import!E38632","v":0}]
[69,{"$f":"Import!E37633","v":"Select"},{"$f":"Import!E37833","v":"Select"},{"$f":"Import!E38033","v":"Select"},{"$f":"Import!E38233","v":0},{"$f":"Import!E38433","v":0},{"$f":"Import!E38633","v":0}]
[70,{"$f":"Import!E37634","v":"Select"},{"$f":"Import!E37834","v":"Select"},{"$f":"Import!E38034","v":"Select"},{"$f":"Import!E38234","v":0},{"$f":"Import!E38434","v":0},{"$f":"Import!E38634","v":0}]
[71,{"$f":"Import!E37635","v":"Select"},{"$f":"Import!E37835","v":"Select"},{"$f":"Import!E38035","v":"Select"},{"$f":"Import!E38235","v":0},{"$f":"Import!E38435","v":0},{"$f":"Import!E38635","v":0}]
[72,{"$f":"Import!E37636","v":"Select"},{"$f":"Import!E37836","v":"Select"},{"$f":"Import!E38036","v":"Select"},{"$f":"Import!E38236","v":0},{"$f":"Import!E38436","v":0},{"$f":"Import!E38636","v":0}]
[73,{"$f":"Import!E37637","v":"Select"},{"$f":"Import!E37837","v":"Select"},{"$f":"Import!E38037","v":"Select"},{"$f":"Import!E38237","v":0},{"$f":"Import!E38437","v":0},{"$f":"Import!E38637","v":0}]
[74,{"$f":"Import!E37638","v":"Select"},{"$f":"Import!E37838","v":"Select"},{"$f":"Import!E38038","v":"Select"},{"$f":"Import!E38238","v":0},{"$f":"Import!E38438","v":0},{"$f":"Import!E38638","v":0}]
[75,{"$f":"Import!E37639","v":"Select"},{"$f":"Import!E37839","v":"Select"},{"$f":"Import!E38039","v":"Select"},{"$f":"Import!E38239","v":0},{"$f":"Import!E38439","v":0},{"$f":"Import!E38639","v":0}]
[76,{"$f":"Import!E37640","v":"Select"},{"$f":"Import!E37840","v":"Select"},{"$f":"Import!E38040","v":"Select"},{"$f":"Import!E38240","v":0},{"$f":"Import!E38440","v":0},{"$f":"Import!E38640","v":0}]
[77,{"$f":"Import!E37641","v":"Select"},{"$f":"Import!E37841","v":"Select"},{"$f":"Import!E38041","v":"Select"},{"$f":"Import!E38241","v":0},{"$f":"Import!E38441","v":0},{"$f":"Import!E38641","v":0}]
[78,{"$f":"Import!E37642","v":"Select"},{"$f":"Import!E37842","v":"Select"},{"$f":"Import!E38042","v":"Select"},{"$f":"Import!E38242","v":0},{"$f":"Import!E38442","v":0},{"$f":"Import!E38642","v":0}]
[79,{"$f":"Import!E37643","v":"Select"},{"$f":"Import!E37843","v":"Select"},{"$f":"Import!E38043","v":"Select"},{"$f":"Import!E38243","v":0},{"$f":"Import!E38443","v":0},{"$f":"Import!E38643","v":0}]
[80,{"$f":"Import!E37644","v":"Select"},{"$f":"Import!E37844","v":"Select"},{"$f":"Import!E38044","v":"Select"},{"$f":"Import!E38244","v":0},{"$f":"Import!E38444","v":0},{"$f":"Import!E38644","v":0}]
[81,{"$f":"Import!E37645","v":"Select"},{"$f":"Import!E37845","v":"Select"},{"$f":"Import!E38045","v":"Select"},{"$f":"Import!E38245","v":0},{"$f":"Import!E38445","v":0},{"$f":"Import!E38645","v":0}]
[82,{"$f":"Import!E37646","v":"Select"},{"$f":"Import!E37846","v":"Select"},{"$f":"Import!E38046","v":"Select"},{"$f":"Import!E38246","v":0},{"$f":"Import!E38446","v":0},{"$f":"Import!E38646","v":0}]
[83,{"$f":"Import!E37647","v":"Select"},{"$f":"Import!E37847","v":"Select"},{"$f":"Import!E38047","v":"Select"},{"$f":"Import!E38247","v":0},{"$f":"Import!E38447","v":0},{"$f":"Import!E38647","v":0}]
[84,{"$f":"Import!E37648","v":"Select"},{"$f":"Import!E37848","v":"Select"},{"$f":"Import!E38048","v":"Select"},{"$f":"Import!E38248","v":0},{"$f":"Import!E38448","v":0},{"$f":"Import!E38648","v":0}]
[85,{"$f":"Import!E37649","v":"Select"},{"$f":"Import!E37849","v":"Select"},{"$f":"Import!E38049","v":"Select"},{"$f":"Import!E38249","v":0},{"$f":"Import!E38449","v":0},{"$f":"Import!E38649","v":0}]
[86,{"$f":"Import!E37650","v":"Select"},{"$f":"Import!E37850","v":"Select"},{"$f":"Import!E38050","v":"Select"},{"$f":"Import!E38250","v":0},{"$f":"Import!E38450","v":0},{"$f":"Import!E38650","v":0}]
[87,{"$f":"Import!E37651","v":"Select"},{"$f":"Import!E37851","v":"Select"},{"$f":"Import!E38051","v":"Select"},{"$f":"Import!E38251","v":0},{"$f":"Import!E38451","v":0},{"$f":"Import!E38651","v":0}]
[88,{"$f":"Import!E37652","v":"Select"},{"$f":"Import!E37852","v":"Select"},{"$f":"Import!E38052","v":"Select"},{"$f":"Import!E38252","v":0},{"$f":"Import!E38452","v":0},{"$f":"Import!E38652","v":0}]
[89,{"$f":"Import!E37653","v":"Select"},{"$f":"Import!E37853","v":"Select"},{"$f":"Import!E38053","v":"Select"},{"$f":"Import!E38253","v":0},{"$f":"Import!E38453","v":0},{"$f":"Import!E38653","v":0}]
[90,{"$f":"Import!E37654","v":"Select"},{"$f":"Import!E37854","v":"Select"},{"$f":"Import!E38054","v":"Select"},{"$f":"Import!E38254","v":0},{"$f":"Import!E38454","v":0},{"$f":"Import!E38654","v":0}]
[91,{"$f":"Import!E37655","v":"Select"},{"$f":"Import!E37855","v":"Select"},{"$f":"Import!E38055","v":"Select"},{"$f":"Import!E38255","v":0},{"$f":"Import!E38455","v":0},{"$f":"Import!E38655","v":0}]
[92,{"$f":"Import!E37656","v":"Select"},{"$f":"Import!E37856","v":"Select"},{"$f":"Import!E38056","v":"Select"},{"$f":"Import!E38256","v":0},{"$f":"Import!E38456","v":0},{"$f":"Import!E38656","v":0}]
[93,{"$f":"Import!E37657","v":"Select"},{"$f":"Import!E37857","v":"Select"},{"$f":"Import!E38057","v":"Select"},{"$f":"Import!E38257","v":0},{"$f":"Import!E38457","v":0},{"$f":"Import!E38657","v":0}]
[94,{"$f":"Import!E37658","v":"Select"},{"$f":"Import!E37858","v":"Select"},{"$f":"Import!E38058","v":"Select"},{"$f":"Import!E38258","v":0},{"$f":"Import!E38458","v":0},{"$f":"Import!E38658","v":0}]
[95,{"$f":"Import!E37659","v":"Select"},{"$f":"Import!E37859","v":"Select"},{"$f":"Import!E38059","v":"Select"},{"$f":"Import!E38259","v":0},{"$f":"Import!E38459","v":0},{"$f":"Import!E38659","v":0}]
[96,{"$f":"Import!E37660","v":"Select"},{"$f":"Import!E37860","v":"Select"},{"$f":"Import!E38060","v":"Select"},{"$f":"Import!E38260","v":0},{"$f":"Import!E38460","v":0},{"$f":"Import!E38660","v":0}]
[97,{"$f":"Import!E37661","v":"Select"},{"$f":"Import!E37861","v":"Select"},{"$f":"Import!E38061","v":"Select"},{"$f":"Import!E38261","v":0},{"$f":"Import!E38461","v":0},{"$f":"Import!E38661","v":0}]
[98,{"$f":"Import!E37662","v":"Select"},{"$f":"Import!E37862","v":"Select"},{"$f":"Import!E38062","v":"Select"},{"$f":"Import!E38262","v":0},{"$f":"Import!E38462","v":0},{"$f":"Import!E38662","v":0}]
[99,{"$f":"Import!E37663","v":"Select"},{"$f":"Import!E37863","v":"Select"},{"$f":"Import!E38063","v":"Select"},{"$f":"Import!E38263","v":0},{"$f":"Import!E38463","v":0},{"$f":"Import!E38663","v":0}]
[100,{"$f":"Import!E37664","v":"Select"},{"$f":"Import!E37864","v":"Select"},{"$f":"Import!E38064","v":"Select"},{"$f":"Import!E38264","v":0},{"$f":"Import!E38464","v":0},{"$f":"Import!E38664","v":0}]
[101,{"$f":"Import!E37665","v":"Select"},{"$f":"Import!E37865","v":"Select"},{"$f":"Import!E38065","v":"Select"},{"$f":"Import!E38265","v":0},{"$f":"Import!E38465","v":0},{"$f":"Import!E38665","v":0}]
[102,{"$f":"Import!E37666","v":"Select"},{"$f":"Import!E37866","v":"Select"},{"$f":"Import!E38066","v":"Select"},{"$f":"Import!E38266","v":0},{"$f":"Import!E38466","v":0},{"$f":"Import!E38666","v":0}]
[103,{"$f":"Import!E37667","v":"Select"},{"$f":"Import!E37867","v":"Select"},{"$f":"Import!E38067","v":"Select"},{"$f":"Import!E38267","v":0},{"$f":"Import!E38467","v":0},{"$f":"Import!E38667","v":0}]
[104,{"$f":"Import!E37668","v":"Select"},{"$f":"Import!E37868","v":"Select"},{"$f":"Import!E38068","v":"Select"},{"$f":"Import!E38268","v":0},{"$f":"Import!E38468","v":0},{"$f":"Import!E38668","v":0}]
[105,{"$f":"Import!E37669","v":"Select"},{"$f":"Import!E37869","v":"Select"},{"$f":"Import!E38069","v":"Select"},{"$f":"Import!E38269","v":0},{"$f":"Import!E38469","v":0},{"$f":"Import!E38669","v":0}]
[106,{"$f":"Import!E37670","v":"Select"},{"$f":"Import!E37870","v":"Select"},{"$f":"Import!E38070","v":"Select"},{"$f":"Import!E38270","v":0},{"$f":"Import!E38470","v":0},{"$f":"Import!E38670","v":0}]
[107,{"$f":"Import!E37671","v":"Select"},{"$f":"Import!E37871","v":"Select"},{"$f":"Import!E38071","v":"Select"},{"$f":"Import!E38271","v":0},{"$f":"Import!E38471","v":0},{"$f":"Import!E38671","v":0}]
[108,{"$f":"Import!E37672","v":"Select"},{"$f":"Import!E37872","v":"Select"},{"$f":"Import!E38072","v":"Select"},{"$f":"Import!E38272","v":0},{"$f":"Import!E38472","v":0},{"$f":"Import!E38672","v":0}]
[109,{"$f":"Import!E37673","v":"Select"},{"$f":"Import!E37873","v":"Select"},{"$f":"Import!E38073","v":"Select"},{"$f":"Import!E38273","v":0},{"$f":"Import!E38473","v":0},{"$f":"Import!E38673","v":0}]
[110,{"$f":"Import!E37674","v":"Select"},{"$f":"Import!E37874","v":"Select"},{"$f":"Import!E38074","v":"Select"},{"$f":"Import!E38274","v":0},{"$f":"Import!E38474","v":0},{"$f":"Import!E38674","v":0}]
[111,{"$f":"Import!E37675","v":"Select"},{"$f":"Import!E37875","v":"Select"},{"$f":"Import!E38075","v":"Select"},{"$f":"Import!E38275","v":0},{"$f":"Import!E38475","v":0},{"$f":"Import!E38675","v":0}]
[112,{"$f":"Import!E37676","v":"Select"},{"$f":"Import!E37876","v":"Select"},{"$f":"Import!E38076","v":"Select"},{"$f":"Import!E38276","v":0},{"$f":"Import!E38476","v":0},{"$f":"Import!E38676","v":0}]
[113,{"$f":"Import!E37677","v":"Select"},{"$f":"Import!E37877","v":"Select"},{"$f":"Import!E38077","v":"Select"},{"$f":"Import!E38277","v":0},{"$f":"Import!E38477","v":0},{"$f":"Import!E38677","v":0}]
[114,{"$f":"Import!E37678","v":"Select"},{"$f":"Import!E37878","v":"Select"},{"$f":"Import!E38078","v":"Select"},{"$f":"Import!E38278","v":0},{"$f":"Import!E38478","v":0},{"$f":"Import!E38678","v":0}]
[115,{"$f":"Import!E37679","v":"Select"},{"$f":"Import!E37879","v":"Select"},{"$f":"Import!E38079","v":"Select"},{"$f":"Import!E38279","v":0},{"$f":"Import!E38479","v":0},{"$f":"Import!E38679","v":0}]
[116,{"$f":"Import!E37680","v":"Select"},{"$f":"Import!E37880","v":"Select"},{"$f":"Import!E38080","v":"Select"},{"$f":"Import!E38280","v":0},{"$f":"Import!E38480","v":0},{"$f":"Import!E38680","v":0}]
[117,{"$f":"Import!E37681","v":"Select"},{"$f":"Import!E37881","v":"Select"},{"$f":"Import!E38081","v":"Select"},{"$f":"Import!E38281","v":0},{"$f":"Import!E38481","v":0},{"$f":"Import!E38681","v":0}]
[118,{"$f":"Import!E37682","v":"Select"},{"$f":"Import!E37882","v":"Select"},{"$f":"Import!E38082","v":"Select"},{"$f":"Import!E38282","v":0},{"$f":"Import!E38482","v":0},{"$f":"Import!E38682","v":0}]
[119,{"$f":"Import!E37683","v":"Select"},{"$f":"Import!E37883","v":"Select"},{"$f":"Import!E38083","v":"Select"},{"$f":"Import!E38283","v":0},{"$f":"Import!E38483","v":0},{"$f":"Import!E38683","v":0}]
[120,{"$f":"Import!E37684","v":"Select"},{"$f":"Import!E37884","v":"Select"},{"$f":"Import!E38084","v":"Select"},{"$f":"Import!E38284","v":0},{"$f":"Import!E38484","v":0},{"$f":"Import!E38684","v":0}]
[121,{"$f":"Import!E37685","v":"Select"},{"$f":"Import!E37885","v":"Select"},{"$f":"Import!E38085","v":"Select"},{"$f":"Import!E38285","v":0},{"$f":"Import!E38485","v":0},{"$f":"Import!E38685","v":0}]
[122,{"$f":"Import!E37686","v":"Select"},{"$f":"Import!E37886","v":"Select"},{"$f":"Import!E38086","v":"Select"},{"$f":"Import!E38286","v":0},{"$f":"Import!E38486","v":0},{"$f":"Import!E38686","v":0}]
[123,{"$f":"Import!E37687","v":"Select"},{"$f":"Import!E37887","v":"Select"},{"$f":"Import!E38087","v":"Select"},{"$f":"Import!E38287","v":0},{"$f":"Import!E38487","v":0},{"$f":"Import!E38687","v":0}]
[124,{"$f":"Import!E37688","v":"Select"},{"$f":"Import!E37888","v":"Select"},{"$f":"Import!E38088","v":"Select"},{"$f":"Import!E38288","v":0},{"$f":"Import!E38488","v":0},{"$f":"Import!E38688","v":0}]
[125,{"$f":"Import!E37689","v":"Select"},{"$f":"Import!E37889","v":"Select"},{"$f":"Import!E38089","v":"Select"},{"$f":"Import!E38289","v":0},{"$f":"Import!E38489","v":0},{"$f":"Import!E38689","v":0}]
[126,{"$f":"Import!E37690","v":"Select"},{"$f":"Import!E37890","v":"Select"},{"$f":"Import!E38090","v":"Select"},{"$f":"Import!E38290","v":0},{"$f":"Import!E38490","v":0},{"$f":"Import!E38690","v":0}]
[127,{"$f":"Import!E37691","v":"Select"},{"$f":"Import!E37891","v":"Select"},{"$f":"Import!E38091","v":"Select"},{"$f":"Import!E38291","v":0},{"$f":"Import!E38491","v":0},{"$f":"Import!E38691","v":0}]
[128,{"$f":"Import!E37692","v":"Select"},{"$f":"Import!E37892","v":"Select"},{"$f":"Import!E38092","v":"Select"},{"$f":"Import!E38292","v":0},{"$f":"Import!E38492","v":0},{"$f":"Import!E38692","v":0}]
[129,{"$f":"Import!E37693","v":"Select"},{"$f":"Import!E37893","v":"Select"},{"$f":"Import!E38093","v":"Select"},{"$f":"Import!E38293","v":0},{"$f":"Import!E38493","v":0},{"$f":"Import!E38693","v":0}]
[130,{"$f":"Import!E37694","v":"Select"},{"$f":"Import!E37894","v":"Select"},{"$f":"Import!E38094","v":"Select"},{"$f":"Import!E38294","v":0},{"$f":"Import!E38494","v":0},{"$f":"Import!E38694","v":0}]
[{"$f":"A1925+1","v":131},{"$f":"Import!E37695","v":"Select"},{"$f":"Import!E37895","v":"Select"},{"$f":"Import!E38095","v":"Select"},{"$f":"Import!E38295","v":0},{"$f":"Import!E38495","v":0},{"$f":"Import!E38695","v":0}]
[132,{"$f":"Import!E37696","v":"Select"},{"$f":"Import!E37896","v":"Select"},{"$f":"Import!E38096","v":"Select"},{"$f":"Import!E38296","v":0},{"$f":"Import!E38496","v":0},{"$f":"Import!E38696","v":0}]
[133,{"$f":"Import!E37697","v":"Select"},{"$f":"Import!E37897","v":"Select"},{"$f":"Import!E38097","v":"Select"},{"$f":"Import!E38297","v":0},{"$f":"Import!E38497","v":0},{"$f":"Import!E38697","v":0}]
[134,{"$f":"Import!E37698","v":"Select"},{"$f":"Import!E37898","v":"Select"},{"$f":"Import!E38098","v":"Select"},{"$f":"Import!E38298","v":0},{"$f":"Import!E38498","v":0},{"$f":"Import!E38698","v":0}]
[135,{"$f":"Import!E37699","v":"Select"},{"$f":"Import!E37899","v":"Select"},{"$f":"Import!E38099","v":"Select"},{"$f":"Import!E38299","v":0},{"$f":"Import!E38499","v":0},{"$f":"Import!E38699","v":0}]
[136,{"$f":"Import!E37700","v":"Select"},{"$f":"Import!E37900","v":"Select"},{"$f":"Import!E38100","v":"Select"},{"$f":"Import!E38300","v":0},{"$f":"Import!E38500","v":0},{"$f":"Import!E38700","v":0}]
[137,{"$f":"Import!E37701","v":"Select"},{"$f":"Import!E37901","v":"Select"},{"$f":"Import!E38101","v":"Select"},{"$f":"Import!E38301","v":0},{"$f":"Import!E38501","v":0},{"$f":"Import!E38701","v":0}]
[138,{"$f":"Import!E37702","v":"Select"},{"$f":"Import!E37902","v":"Select"},{"$f":"Import!E38102","v":"Select"},{"$f":"Import!E38302","v":0},{"$f":"Import!E38502","v":0},{"$f":"Import!E38702","v":0}]
[139,{"$f":"Import!E37703","v":"Select"},{"$f":"Import!E37903","v":"Select"},{"$f":"Import!E38103","v":"Select"},{"$f":"Import!E38303","v":0},{"$f":"Import!E38503","v":0},{"$f":"Import!E38703","v":0}]
[140,{"$f":"Import!E37704","v":"Select"},{"$f":"Import!E37904","v":"Select"},{"$f":"Import!E38104","v":"Select"},{"$f":"Import!E38304","v":0},{"$f":"Import!E38504","v":0},{"$f":"Import!E38704","v":0}]
[141,{"$f":"Import!E37705","v":"Select"},{"$f":"Import!E37905","v":"Select"},{"$f":"Import!E38105","v":"Select"},{"$f":"Import!E38305","v":0},{"$f":"Import!E38505","v":0},{"$f":"Import!E38705","v":0}]
[142,{"$f":"Import!E37706","v":"Select"},{"$f":"Import!E37906","v":"Select"},{"$f":"Import!E38106","v":"Select"},{"$f":"Import!E38306","v":0},{"$f":"Import!E38506","v":0},{"$f":"Import!E38706","v":0}]
[143,{"$f":"Import!E37707","v":"Select"},{"$f":"Import!E37907","v":"Select"},{"$f":"Import!E38107","v":"Select"},{"$f":"Import!E38307","v":0},{"$f":"Import!E38507","v":0},{"$f":"Import!E38707","v":0}]
[144,{"$f":"Import!E37708","v":"Select"},{"$f":"Import!E37908","v":"Select"},{"$f":"Import!E38108","v":"Select"},{"$f":"Import!E38308","v":0},{"$f":"Import!E38508","v":0},{"$f":"Import!E38708","v":0}]
[145,{"$f":"Import!E37709","v":"Select"},{"$f":"Import!E37909","v":"Select"},{"$f":"Import!E38109","v":"Select"},{"$f":"Import!E38309","v":0},{"$f":"Import!E38509","v":0},{"$f":"Import!E38709","v":0}]
[146,{"$f":"Import!E37710","v":"Select"},{"$f":"Import!E37910","v":"Select"},{"$f":"Import!E38110","v":"Select"},{"$f":"Import!E38310","v":0},{"$f":"Import!E38510","v":0},{"$f":"Import!E38710","v":0}]
[147,{"$f":"Import!E37711","v":"Select"},{"$f":"Import!E37911","v":"Select"},{"$f":"Import!E38111","v":"Select"},{"$f":"Import!E38311","v":0},{"$f":"Import!E38511","v":0},{"$f":"Import!E38711","v":0}]
[148,{"$f":"Import!E37712","v":"Select"},{"$f":"Import!E37912","v":"Select"},{"$f":"Import!E38112","v":"Select"},{"$f":"Import!E38312","v":0},{"$f":"Import!E38512","v":0},{"$f":"Import!E38712","v":0}]
[149,{"$f":"Import!E37713","v":"Select"},{"$f":"Import!E37913","v":"Select"},{"$f":"Import!E38113","v":"Select"},{"$f":"Import!E38313","v":0},{"$f":"Import!E38513","v":0},{"$f":"Import!E38713","v":0}]
[150,{"$f":"Import!E37714","v":"Select"},{"$f":"Import!E37914","v":"Select"},{"$f":"Import!E38114","v":"Select"},{"$f":"Import!E38314","v":0},{"$f":"Import!E38514","v":0},{"$f":"Import!E38714","v":0}]
[151,{"$f":"Import!E37715","v":"Select"},{"$f":"Import!E37915","v":"Select"},{"$f":"Import!E38115","v":"Select"},{"$f":"Import!E38315","v":0},{"$f":"Import!E38515","v":0},{"$f":"Import!E38715","v":0}]
[152,{"$f":"Import!E37716","v":"Select"},{"$f":"Import!E37916","v":"Select"},{"$f":"Import!E38116","v":"Select"},{"$f":"Import!E38316","v":0},{"$f":"Import!E38516","v":0},{"$f":"Import!E38716","v":0}]
[153,{"$f":"Import!E37717","v":"Select"},{"$f":"Import!E37917","v":"Select"},{"$f":"Import!E38117","v":"Select"},{"$f":"Import!E38317","v":0},{"$f":"Import!E38517","v":0},{"$f":"Import!E38717","v":0}]
[154,{"$f":"Import!E37718","v":"Select"},{"$f":"Import!E37918","v":"Select"},{"$f":"Import!E38118","v":"Select"},{"$f":"Import!E38318","v":0},{"$f":"Import!E38518","v":0},{"$f":"Import!E38718","v":0}]
[155,{"$f":"Import!E37719","v":"Select"},{"$f":"Import!E37919","v":"Select"},{"$f":"Import!E38119","v":"Select"},{"$f":"Import!E38319","v":0},{"$f":"Import!E38519","v":0},{"$f":"Import!E38719","v":0}]
[156,{"$f":"Import!E37720","v":"Select"},{"$f":"Import!E37920","v":"Select"},{"$f":"Import!E38120","v":"Select"},{"$f":"Import!E38320","v":0},{"$f":"Import!E38520","v":0},{"$f":"Import!E38720","v":0}]
[157,{"$f":"Import!E37721","v":"Select"},{"$f":"Import!E37921","v":"Select"},{"$f":"Import!E38121","v":"Select"},{"$f":"Import!E38321","v":0},{"$f":"Import!E38521","v":0},{"$f":"Import!E38721","v":0}]
[158,{"$f":"Import!E37722","v":"Select"},{"$f":"Import!E37922","v":"Select"},{"$f":"Import!E38122","v":"Select"},{"$f":"Import!E38322","v":0},{"$f":"Import!E38522","v":0},{"$f":"Import!E38722","v":0}]
[159,{"$f":"Import!E37723","v":"Select"},{"$f":"Import!E37923","v":"Select"},{"$f":"Import!E38123","v":"Select"},{"$f":"Import!E38323","v":0},{"$f":"Import!E38523","v":0},{"$f":"Import!E38723","v":0}]
[160,{"$f":"Import!E37724","v":"Select"},{"$f":"Import!E37924","v":"Select"},{"$f":"Import!E38124","v":"Select"},{"$f":"Import!E38324","v":0},{"$f":"Import!E38524","v":0},{"$f":"Import!E38724","v":0}]
[161,{"$f":"Import!E37725","v":"Select"},{"$f":"Import!E37925","v":"Select"},{"$f":"Import!E38125","v":"Select"},{"$f":"Import!E38325","v":0},{"$f":"Import!E38525","v":0},{"$f":"Import!E38725","v":0}]
[162,{"$f":"Import!E37726","v":"Select"},{"$f":"Import!E37926","v":"Select"},{"$f":"Import!E38126","v":"Select"},{"$f":"Import!E38326","v":0},{"$f":"Import!E38526","v":0},{"$f":"Import!E38726","v":0}]
[163,{"$f":"Import!E37727","v":"Select"},{"$f":"Import!E37927","v":"Select"},{"$f":"Import!E38127","v":"Select"},{"$f":"Import!E38327","v":0},{"$f":"Import!E38527","v":0},{"$f":"Import!E38727","v":0}]
[164,{"$f":"Import!E37728","v":"Select"},{"$f":"Import!E37928","v":"Select"},{"$f":"Import!E38128","v":"Select"},{"$f":"Import!E38328","v":0},{"$f":"Import!E38528","v":0},{"$f":"Import!E38728","v":0}]
[165,{"$f":"Import!E37729","v":"Select"},{"$f":"Import!E37929","v":"Select"},{"$f":"Import!E38129","v":"Select"},{"$f":"Import!E38329","v":0},{"$f":"Import!E38529","v":0},{"$f":"Import!E38729","v":0}]
[166,{"$f":"Import!E37730","v":"Select"},{"$f":"Import!E37930","v":"Select"},{"$f":"Import!E38130","v":"Select"},{"$f":"Import!E38330","v":0},{"$f":"Import!E38530","v":0},{"$f":"Import!E38730","v":0}]
[167,{"$f":"Import!E37731","v":"Select"},{"$f":"Import!E37931","v":"Select"},{"$f":"Import!E38131","v":"Select"},{"$f":"Import!E38331","v":0},{"$f":"Import!E38531","v":0},{"$f":"Import!E38731","v":0}]
[168,{"$f":"Import!E37732","v":"Select"},{"$f":"Import!E37932","v":"Select"},{"$f":"Import!E38132","v":"Select"},{"$f":"Import!E38332","v":0},{"$f":"Import!E38532","v":0},{"$f":"Import!E38732","v":0}]
[169,{"$f":"Import!E37733","v":"Select"},{"$f":"Import!E37933","v":"Select"},{"$f":"Import!E38133","v":"Select"},{"$f":"Import!E38333","v":0},{"$f":"Import!E38533","v":0},{"$f":"Import!E38733","v":0}]
[170,{"$f":"Import!E37734","v":"Select"},{"$f":"Import!E37934","v":"Select"},{"$f":"Import!E38134","v":"Select"},{"$f":"Import!E38334","v":0},{"$f":"Import!E38534","v":0},{"$f":"Import!E38734","v":0}]
[171,{"$f":"Import!E37735","v":"Select"},{"$f":"Import!E37935","v":"Select"},{"$f":"Import!E38135","v":"Select"},{"$f":"Import!E38335","v":0},{"$f":"Import!E38535","v":0},{"$f":"Import!E38735","v":0}]
[172,{"$f":"Import!E37736","v":"Select"},{"$f":"Import!E37936","v":"Select"},{"$f":"Import!E38136","v":"Select"},{"$f":"Import!E38336","v":0},{"$f":"Import!E38536","v":0},{"$f":"Import!E38736","v":0}]
[173,{"$f":"Import!E37737","v":"Select"},{"$f":"Import!E37937","v":"Select"},{"$f":"Import!E38137","v":"Select"},{"$f":"Import!E38337","v":0},{"$f":"Import!E38537","v":0},{"$f":"Import!E38737","v":0}]
[174,{"$f":"Import!E37738","v":"Select"},{"$f":"Import!E37938","v":"Select"},{"$f":"Import!E38138","v":"Select"},{"$f":"Import!E38338","v":0},{"$f":"Import!E38538","v":0},{"$f":"Import!E38738","v":0}]
[175,{"$f":"Import!E37739","v":"Select"},{"$f":"Import!E37939","v":"Select"},{"$f":"Import!E38139","v":"Select"},{"$f":"Import!E38339","v":0},{"$f":"Import!E38539","v":0},{"$f":"Import!E38739","v":0}]
[176,{"$f":"Import!E37740","v":"Select"},{"$f":"Import!E37940","v":"Select"},{"$f":"Import!E38140","v":"Select"},{"$f":"Import!E38340","v":0},{"$f":"Import!E38540","v":0},{"$f":"Import!E38740","v":0}]
[177,{"$f":"Import!E37741","v":"Select"},{"$f":"Import!E37941","v":"Select"},{"$f":"Import!E38141","v":"Select"},{"$f":"Import!E38341","v":0},{"$f":"Import!E38541","v":0},{"$f":"Import!E38741","v":0}]
[178,{"$f":"Import!E37742","v":"Select"},{"$f":"Import!E37942","v":"Select"},{"$f":"Import!E38142","v":"Select"},{"$f":"Import!E38342","v":0},{"$f":"Import!E38542","v":0},{"$f":"Import!E38742","v":0}]
[179,{"$f":"Import!E37743","v":"Select"},{"$f":"Import!E37943","v":"Select"},{"$f":"Import!E38143","v":"Select"},{"$f":"Import!E38343","v":0},{"$f":"Import!E38543","v":0},{"$f":"Import!E38743","v":0}]
[180,{"$f":"Import!E37744","v":"Select"},{"$f":"Import!E37944","v":"Select"},{"$f":"Import!E38144","v":"Select"},{"$f":"Import!E38344","v":0},{"$f":"Import!E38544","v":0},{"$f":"Import!E38744","v":0}]
[181,{"$f":"Import!E37745","v":"Select"},{"$f":"Import!E37945","v":"Select"},{"$f":"Import!E38145","v":"Select"},{"$f":"Import!E38345","v":0},{"$f":"Import!E38545","v":0},{"$f":"Import!E38745","v":0}]
[182,{"$f":"Import!E37746","v":"Select"},{"$f":"Import!E37946","v":"Select"},{"$f":"Import!E38146","v":"Select"},{"$f":"Import!E38346","v":0},{"$f":"Import!E38546","v":0},{"$f":"Import!E38746","v":0}]
[183,{"$f":"Import!E37747","v":"Select"},{"$f":"Import!E37947","v":"Select"},{"$f":"Import!E38147","v":"Select"},{"$f":"Import!E38347","v":0},{"$f":"Import!E38547","v":0},{"$f":"Import!E38747","v":0}]
[184,{"$f":"Import!E37748","v":"Select"},{"$f":"Import!E37948","v":"Select"},{"$f":"Import!E38148","v":"Select"},{"$f":"Import!E38348","v":0},{"$f":"Import!E38548","v":0},{"$f":"Import!E38748","v":0}]
[185,{"$f":"Import!E37749","v":"Select"},{"$f":"Import!E37949","v":"Select"},{"$f":"Import!E38149","v":"Select"},{"$f":"Import!E38349","v":0},{"$f":"Import!E38549","v":0},{"$f":"Import!E38749","v":0}]
[186,{"$f":"Import!E37750","v":"Select"},{"$f":"Import!E37950","v":"Select"},{"$f":"Import!E38150","v":"Select"},{"$f":"Import!E38350","v":0},{"$f":"Import!E38550","v":0},{"$f":"Import!E38750","v":0}]
[187,{"$f":"Import!E37751","v":"Select"},{"$f":"Import!E37951","v":"Select"},{"$f":"Import!E38151","v":"Select"},{"$f":"Import!E38351","v":0},{"$f":"Import!E38551","v":0},{"$f":"Import!E38751","v":0}]
[188,{"$f":"Import!E37752","v":"Select"},{"$f":"Import!E37952","v":"Select"},{"$f":"Import!E38152","v":"Select"},{"$f":"Import!E38352","v":0},{"$f":"Import!E38552","v":0},{"$f":"Import!E38752","v":0}]
[189,{"$f":"Import!E37753","v":"Select"},{"$f":"Import!E37953","v":"Select"},{"$f":"Import!E38153","v":"Select"},{"$f":"Import!E38353","v":0},{"$f":"Import!E38553","v":0},{"$f":"Import!E38753","v":0}]
[190,{"$f":"Import!E37754","v":"Select"},{"$f":"Import!E37954","v":"Select"},{"$f":"Import!E38154","v":"Select"},{"$f":"Import!E38354","v":0},{"$f":"Import!E38554","v":0},{"$f":"Import!E38754","v":0}]
[191,{"$f":"Import!E37755","v":"Select"},{"$f":"Import!E37955","v":"Select"},{"$f":"Import!E38155","v":"Select"},{"$f":"Import!E38355","v":0},{"$f":"Import!E38555","v":0},{"$f":"Import!E38755","v":0}]
[192,{"$f":"Import!E37756","v":"Select"},{"$f":"Import!E37956","v":"Select"},{"$f":"Import!E38156","v":"Select"},{"$f":"Import!E38356","v":0},{"$f":"Import!E38556","v":0},{"$f":"Import!E38756","v":0}]
[193,{"$f":"Import!E37757","v":"Select"},{"$f":"Import!E37957","v":"Select"},{"$f":"Import!E38157","v":"Select"},{"$f":"Import!E38357","v":0},{"$f":"Import!E38557","v":0},{"$f":"Import!E38757","v":0}]
[194,{"$f":"Import!E37758","v":"Select"},{"$f":"Import!E37958","v":"Select"},{"$f":"Import!E38158","v":"Select"},{"$f":"Import!E38358","v":0},{"$f":"Import!E38558","v":0},{"$f":"Import!E38758","v":0}]
[{"$f":"A1989+1","v":195},{"$f":"Import!E37759","v":"Select"},{"$f":"Import!E37959","v":"Select"},{"$f":"Import!E38159","v":"Select"},{"$f":"Import!E38359","v":0},{"$f":"Import!E38559","v":0},{"$f":"Import!E38759","v":0}]
[196,{"$f":"Import!E37760","v":"Select"},{"$f":"Import!E37960","v":"Select"},{"$f":"Import!E38160","v":"Select"},{"$f":"Import!E38360","v":0},{"$f":"Import!E38560","v":0},{"$f":"Import!E38760","v":0}]
[197,{"$f":"Import!E37761","v":"Select"},{"$f":"Import!E37961","v":"Select"},{"$f":"Import!E38161","v":"Select"},{"$f":"Import!E38361","v":0},{"$f":"Import!E38561","v":0},{"$f":"Import!E38761","v":0}]
[198,{"$f":"Import!E37762","v":"Select"},{"$f":"Import!E37962","v":"Select"},{"$f":"Import!E38162","v":"Select"},{"$f":"Import!E38362","v":0},{"$f":"Import!E38562","v":0},{"$f":"Import!E38762","v":0}]
[199,{"$f":"Import!E37763","v":"Select"},{"$f":"Import!E37963","v":"Select"},{"$f":"Import!E38163","v":"Select"},{"$f":"Import!E38363","v":0},{"$f":"Import!E38563","v":0},{"$f":"Import!E38763","v":0}]
[200,{"$f":"Import!E37764","v":"Select"},{"$f":"Import!E37964","v":"Select"},{"$f":"Import!E38164","v":"Select"},{"$f":"Import!E38364","v":0},{"$f":"Import!E38564","v":0},{"$f":"Import!E38764","v":0}]
[]
[null,"Total Other Assets",null,null,null,{"$f":"SUM(F1796:F1995)","v":0}]
[]
[]
[null,"TOTAL ASSETS",null,null,null,{"$f":"F212+F620+F986+G1094+F1230+E1338+G1446+G1554+I1761+F1997","v":0}]
[]
[null,"TOTAL FUNDS HELD BY CEDING REINSURERS (Form 1SFS Line 12)",null,null,null,{"$f":"IF('Company Information'!$C$2=\"IFRS\",0,IF(SUM('Form 1SFS'!$E$100,'Form 1SFS'!$I$100)=0,'Form 1SFS'!M79,IF('Form 1SFS'!M79=0,('Form 1SFS'!E79+'Form 1SFS'!I79),'Form 1SFS'!M79)))","v":0}]
[]
[null,"Check Form 1SFS (Line 12)",null,null,null,{"$f":"IF(F2006=0,\"TRUE\",\"FALSE\")","v":"TRUE"}]
[]
[null,"Difference",null,null,null,{"$f":"ROUND(F2002-F2000,0)","v":0}]
[]
[null,"(L) INFORMATION ON SECURITIES LENDING AND REPURCHASE TRANSACTIONS"]
[]
[null,null,{"$f":"YEAR($C$3)","v":2023}]
[null,null,"Notional Value","Fair Value",null,"Comments"]
[null,"Securities Lending transactions",{"$f":"Import!E38765","v":0},{"$f":"Import!E38767","v":0},null,{"$f":"Import!E38769","v":0}]
[null,"Repo / Reverse Repo transactions",{"$f":"Import!E38766","v":0},{"$f":"Import!E38768","v":0},null,{"$f":"Import!E38770","v":0}]
[]
[null,"Total",{"$f":"SUM(C2012:C2013)","v":0},{"$f":"SUM(D2012:D2013)","v":0}]
[]
[null,"(M) INFORMATION ON FAIR VALUATION HIERARCHY"]
[]
[null,null,{"$f":"YEAR($C$3)","v":2023},"Fair Value"]
[null,null,"Unaffiliated","Affiliated","Total","Comments"]
[null,"Level 1 Assets (according to Fair Value hierarchy)",{"$f":"Import!E38771","v":0},{"$f":"Import!E38774","v":0},{"$f":"SUM(C2021:D2021)","v":0},{"$f":"Import!E38777","v":0}]
[null,"Level 2 Assets (according to Fair Value hierarchy)",{"$f":"Import!E38772","v":0},{"$f":"Import!E38775","v":0},{"$f":"SUM(C2022:D2022)","v":0},{"$f":"Import!E38778","v":0}]
[null,"Level 3 Assets (according to Fair Value hierarchy)",{"$f":"Import!E38773","v":0},{"$f":"Import!E38776","v":0},{"$f":"SUM(C2023:D2023)","v":0},{"$f":"Import!E38779","v":0}]
[]
[null,"Total",{"$f":"SUM(C2021:C2023)","v":0},{"$f":"SUM(D2021:D2023)","v":0},{"$f":"SUM(E2021:E2023)","v":0}]
[]
[null,"Check Securities Allocated by Levels 1-3",null,null,{"$f":"F212+F620+F986+G1094+F1230+E1338+G1446+G1554","v":0}]
[]
[null,"Difference",null,null,{"$f":"ROUND(E2025-E2027,0)","v":0},{"$f":"IF(E2029=0,\"TRUE\",\"FALSE\")","v":"TRUE"}]
[]
[null,"EFFECTIVE DURATION",null,null,{"$f":"Import!E38780","v":0}]
[]
[null,"EFFECTIVE CONVEXITY",null,null,{"$f":"Import!E38781","v":0}]
[]
[null,"Fair Values",{"$f":"YEAR(C3)","v":2023}]
[null,null,null,null,null,null,null,null,"If Other Rating Agency is used, specify the name of such agency (if applicable)",{"$f":"Import!E38782","v":0},{"$f":"Import!E38783","v":0},{"$f":"Import!E38784","v":0},{"$f":"Import!E38785","v":0}]
[null,"Asset/Rating Category","BSCR Rating","Moody's Investor's Service","Standard and Poor's","Dominion Bond Rating Service","Kroll Bond Rating Agency","Egan Jones Rating Company","Japan Credit Rating Agency","BMA-approved Internal Ratings","Other BMA-approved Rating Agency 1","Other BMA-approved Rating Agency 2","Other BMA-approved Rating Agency 3","Total"]
[null,"Financial institutions, brokers and dealers",1,{"$f":"Import!E38786","v":0},{"$f":"Import!E38827","v":0},{"$f":"Import!E38868","v":0},{"$f":"Import!E38909","v":0},{"$f":"Import!E38950","v":0},{"$f":"Import!E38991","v":0},{"$f":"Import!E39032","v":0},{"$f":"Import!E39073","v":0},{"$f":"Import!E39114","v":0},{"$f":"Import!E39155","v":0},{"$f":"SUM(D2038:M2038)","v":0}]
[null,"Financial institutions, brokers and dealers",2,{"$f":"Import!E38787","v":0},{"$f":"Import!E38828","v":0},{"$f":"Import!E38869","v":0},{"$f":"Import!E38910","v":0},{"$f":"Import!E38951","v":0},{"$f":"Import!E38992","v":0},{"$f":"Import!E39033","v":0},{"$f":"Import!E39074","v":0},{"$f":"Import!E39115","v":0},{"$f":"Import!E39156","v":0},{"$f":"SUM(D2039:M2039)","v":0}]
[null,"Financial institutions, brokers and dealers",3,{"$f":"Import!E38788","v":0},{"$f":"Import!E38829","v":0},{"$f":"Import!E38870","v":0},{"$f":"Import!E38911","v":0},{"$f":"Import!E38952","v":0},{"$f":"Import!E38993","v":0},{"$f":"Import!E39034","v":0},{"$f":"Import!E39075","v":0},{"$f":"Import!E39116","v":0},{"$f":"Import!E39157","v":0},0]
[null,"Financial institutions, brokers and dealers",4,{"$f":"Import!E38789","v":0},{"$f":"Import!E38830","v":0},{"$f":"Import!E38871","v":0},{"$f":"Import!E38912","v":0},{"$f":"Import!E38953","v":0},{"$f":"Import!E38994","v":0},{"$f":"Import!E39035","v":0},{"$f":"Import!E39076","v":0},{"$f":"Import!E39117","v":0},{"$f":"Import!E39158","v":0},0]
[null,"Financial institutions, brokers and dealers",5,{"$f":"Import!E38790","v":0},{"$f":"Import!E38831","v":0},{"$f":"Import!E38872","v":0},{"$f":"Import!E38913","v":0},{"$f":"Import!E38954","v":0},{"$f":"Import!E38995","v":0},{"$f":"Import!E39036","v":0},{"$f":"Import!E39077","v":0},{"$f":"Import!E39118","v":0},{"$f":"Import!E39159","v":0},0]
[null,"Financial institutions, brokers and dealers",6,{"$f":"Import!E38791","v":0},{"$f":"Import!E38832","v":0},{"$f":"Import!E38873","v":0},{"$f":"Import!E38914","v":0},{"$f":"Import!E38955","v":0},{"$f":"Import!E38996","v":0},{"$f":"Import!E39037","v":0},{"$f":"Import!E39078","v":0},{"$f":"Import!E39119","v":0},{"$f":"Import!E39160","v":0},0]
[null,"Financial institutions, brokers and dealers",7,{"$f":"Import!E38792","v":0},{"$f":"Import!E38833","v":0},{"$f":"Import!E38874","v":0},{"$f":"Import!E38915","v":0},{"$f":"Import!E38956","v":0},{"$f":"Import!E38997","v":0},{"$f":"Import!E39038","v":0},{"$f":"Import!E39079","v":0},{"$f":"Import!E39120","v":0},{"$f":"Import!E39161","v":0},0]
[null,"Financial institutions, brokers and dealers",8,{"$f":"Import!E38793","v":0},{"$f":"Import!E38834","v":0},{"$f":"Import!E38875","v":0},{"$f":"Import!E38916","v":0},{"$f":"Import!E38957","v":0},{"$f":"Import!E38998","v":0},{"$f":"Import!E39039","v":0},{"$f":"Import!E39080","v":0},{"$f":"Import!E39121","v":0},{"$f":"Import!E39162","v":0},0]
[null,"Insurance companies",1,{"$f":"Import!E38794","v":0},{"$f":"Import!E38835","v":0},{"$f":"Import!E38876","v":0},{"$f":"Import!E38917","v":0},{"$f":"Import!E38958","v":0},{"$f":"Import!E38999","v":0},{"$f":"Import!E39040","v":0},{"$f":"Import!E39081","v":0},{"$f":"Import!E39122","v":0},{"$f":"Import!E39163","v":0},0]
[null,"Insurance companies",2,{"$f":"Import!E38795","v":0},{"$f":"Import!E38836","v":0},{"$f":"Import!E38877","v":0},{"$f":"Import!E38918","v":0},{"$f":"Import!E38959","v":0},{"$f":"Import!E39000","v":0},{"$f":"Import!E39041","v":0},{"$f":"Import!E39082","v":0},{"$f":"Import!E39123","v":0},{"$f":"Import!E39164","v":0},0]
[null,"Insurance companies",3,{"$f":"Import!E38796","v":0},{"$f":"Import!E38837","v":0},{"$f":"Import!E38878","v":0},{"$f":"Import!E38919","v":0},{"$f":"Import!E38960","v":0},{"$f":"Import!E39001","v":0},{"$f":"Import!E39042","v":0},{"$f":"Import!E39083","v":0},{"$f":"Import!E39124","v":0},{"$f":"Import!E39165","v":0},0]
[null,"Insurance companies",4,{"$f":"Import!E38797","v":0},{"$f":"Import!E38838","v":0},{"$f":"Import!E38879","v":0},{"$f":"Import!E38920","v":0},{"$f":"Import!E38961","v":0},{"$f":"Import!E39002","v":0},{"$f":"Import!E39043","v":0},{"$f":"Import!E39084","v":0},{"$f":"Import!E39125","v":0},{"$f":"Import!E39166","v":0},0]
[null,"Insurance companies",5,{"$f":"Import!E38798","v":0},{"$f":"Import!E38839","v":0},{"$f":"Import!E38880","v":0},{"$f":"Import!E38921","v":0},{"$f":"Import!E38962","v":0},{"$f":"Import!E39003","v":0},{"$f":"Import!E39044","v":0},{"$f":"Import!E39085","v":0},{"$f":"Import!E39126","v":0},{"$f":"Import!E39167","v":0},0]
[null,"Insurance companies",6,{"$f":"Import!E38799","v":0},{"$f":"Import!E38840","v":0},{"$f":"Import!E38881","v":0},{"$f":"Import!E38922","v":0},{"$f":"Import!E38963","v":0},{"$f":"Import!E39004","v":0},{"$f":"Import!E39045","v":0},{"$f":"Import!E39086","v":0},{"$f":"Import!E39127","v":0},{"$f":"Import!E39168","v":0},0]
[null,"Insurance companies",7,{"$f":"Import!E38800","v":0},{"$f":"Import!E38841","v":0},{"$f":"Import!E38882","v":0},{"$f":"Import!E38923","v":0},{"$f":"Import!E38964","v":0},{"$f":"Import!E39005","v":0},{"$f":"Import!E39046","v":0},{"$f":"Import!E39087","v":0},{"$f":"Import!E39128","v":0},{"$f":"Import!E39169","v":0},0]
[null,"Insurance companies",8,{"$f":"Import!E38801","v":0},{"$f":"Import!E38842","v":0},{"$f":"Import!E38883","v":0},{"$f":"Import!E38924","v":0},{"$f":"Import!E38965","v":0},{"$f":"Import!E39006","v":0},{"$f":"Import!E39047","v":0},{"$f":"Import!E39088","v":0},{"$f":"Import!E39129","v":0},{"$f":"Import!E39170","v":0},0]
[null,"Corporate issuers",1,{"$f":"Import!E38802","v":0},{"$f":"Import!E38843","v":0},{"$f":"Import!E38884","v":0},{"$f":"Import!E38925","v":0},{"$f":"Import!E38966","v":0},{"$f":"Import!E39007","v":0},{"$f":"Import!E39048","v":0},{"$f":"Import!E39089","v":0},{"$f":"Import!E39130","v":0},{"$f":"Import!E39171","v":0},0]
[null,"Corporate issuers",2,{"$f":"Import!E38803","v":0},{"$f":"Import!E38844","v":0},{"$f":"Import!E38885","v":0},{"$f":"Import!E38926","v":0},{"$f":"Import!E38967","v":0},{"$f":"Import!E39008","v":0},{"$f":"Import!E39049","v":0},{"$f":"Import!E39090","v":0},{"$f":"Import!E39131","v":0},{"$f":"Import!E39172","v":0},0]
[null,"Corporate issuers",3,{"$f":"Import!E38804","v":0},{"$f":"Import!E38845","v":0},{"$f":"Import!E38886","v":0},{"$f":"Import!E38927","v":0},{"$f":"Import!E38968","v":0},{"$f":"Import!E39009","v":0},{"$f":"Import!E39050","v":0},{"$f":"Import!E39091","v":0},{"$f":"Import!E39132","v":0},{"$f":"Import!E39173","v":0},0]
[null,"Corporate issuers",4,{"$f":"Import!E38805","v":0},{"$f":"Import!E38846","v":0},{"$f":"Import!E38887","v":0},{"$f":"Import!E38928","v":0},{"$f":"Import!E38969","v":0},{"$f":"Import!E39010","v":0},{"$f":"Import!E39051","v":0},{"$f":"Import!E39092","v":0},{"$f":"Import!E39133","v":0},{"$f":"Import!E39174","v":0},0]
[null,"Corporate issuers",5,{"$f":"Import!E38806","v":0},{"$f":"Import!E38847","v":0},{"$f":"Import!E38888","v":0},{"$f":"Import!E38929","v":0},{"$f":"Import!E38970","v":0},{"$f":"Import!E39011","v":0},{"$f":"Import!E39052","v":0},{"$f":"Import!E39093","v":0},{"$f":"Import!E39134","v":0},{"$f":"Import!E39175","v":0},0]
[null,"Corporate issuers",6,{"$f":"Import!E38807","v":0},{"$f":"Import!E38848","v":0},{"$f":"Import!E38889","v":0},{"$f":"Import!E38930","v":0},{"$f":"Import!E38971","v":0},{"$f":"Import!E39012","v":0},{"$f":"Import!E39053","v":0},{"$f":"Import!E39094","v":0},{"$f":"Import!E39135","v":0},{"$f":"Import!E39176","v":0},0]
[null,"Corporate issuers",7,{"$f":"Import!E38808","v":0},{"$f":"Import!E38849","v":0},{"$f":"Import!E38890","v":0},{"$f":"Import!E38931","v":0},{"$f":"Import!E38972","v":0},{"$f":"Import!E39013","v":0},{"$f":"Import!E39054","v":0},{"$f":"Import!E39095","v":0},{"$f":"Import!E39136","v":0},{"$f":"Import!E39177","v":0},0]
[null,"Corporate issuers",8,{"$f":"Import!E38809","v":0},{"$f":"Import!E38850","v":0},{"$f":"Import!E38891","v":0},{"$f":"Import!E38932","v":0},{"$f":"Import!E38973","v":0},{"$f":"Import!E39014","v":0},{"$f":"Import!E39055","v":0},{"$f":"Import!E39096","v":0},{"$f":"Import!E39137","v":0},{"$f":"Import!E39178","v":0},0]
[null,"Issuers of asset-backed securities",1,{"$f":"Import!E38810","v":0},{"$f":"Import!E38851","v":0},{"$f":"Import!E38892","v":0},{"$f":"Import!E38933","v":0},{"$f":"Import!E38974","v":0},{"$f":"Import!E39015","v":0},{"$f":"Import!E39056","v":0},{"$f":"Import!E39097","v":0},{"$f":"Import!E39138","v":0},{"$f":"Import!E39179","v":0},0]
[null,"Issuers of asset-backed securities",2,{"$f":"Import!E38811","v":0},{"$f":"Import!E38852","v":0},{"$f":"Import!E38893","v":0},{"$f":"Import!E38934","v":0},{"$f":"Import!E38975","v":0},{"$f":"Import!E39016","v":0},{"$f":"Import!E39057","v":0},{"$f":"Import!E39098","v":0},{"$f":"Import!E39139","v":0},{"$f":"Import!E39180","v":0},0]
[null,"Issuers of asset-backed securities",3,{"$f":"Import!E38812","v":0},{"$f":"Import!E38853","v":0},{"$f":"Import!E38894","v":0},{"$f":"Import!E38935","v":0},{"$f":"Import!E38976","v":0},{"$f":"Import!E39017","v":0},{"$f":"Import!E39058","v":0},{"$f":"Import!E39099","v":0},{"$f":"Import!E39140","v":0},{"$f":"Import!E39181","v":0},0]
[null,"Issuers of asset-backed securities",4,{"$f":"Import!E38813","v":0},{"$f":"Import!E38854","v":0},{"$f":"Import!E38895","v":0},{"$f":"Import!E38936","v":0},{"$f":"Import!E38977","v":0},{"$f":"Import!E39018","v":0},{"$f":"Import!E39059","v":0},{"$f":"Import!E39100","v":0},{"$f":"Import!E39141","v":0},{"$f":"Import!E39182","v":0},0]
[null,"Issuers of asset-backed securities",5,{"$f":"Import!E38814","v":0},{"$f":"Import!E38855","v":0},{"$f":"Import!E38896","v":0},{"$f":"Import!E38937","v":0},{"$f":"Import!E38978","v":0},{"$f":"Import!E39019","v":0},{"$f":"Import!E39060","v":0},{"$f":"Import!E39101","v":0},{"$f":"Import!E39142","v":0},{"$f":"Import!E39183","v":0},0]
[null,"Issuers of asset-backed securities",6,{"$f":"Import!E38815","v":0},{"$f":"Import!E38856","v":0},{"$f":"Import!E38897","v":0},{"$f":"Import!E38938","v":0},{"$f":"Import!E38979","v":0},{"$f":"Import!E39020","v":0},{"$f":"Import!E39061","v":0},{"$f":"Import!E39102","v":0},{"$f":"Import!E39143","v":0},{"$f":"Import!E39184","v":0},0]
[null,"Issuers of asset-backed securities",7,{"$f":"Import!E38816","v":0},{"$f":"Import!E38857","v":0},{"$f":"Import!E38898","v":0},{"$f":"Import!E38939","v":0},{"$f":"Import!E38980","v":0},{"$f":"Import!E39021","v":0},{"$f":"Import!E39062","v":0},{"$f":"Import!E39103","v":0},{"$f":"Import!E39144","v":0},{"$f":"Import!E39185","v":0},0]
[null,"Issuers of asset-backed securities",8,{"$f":"Import!E38817","v":0},{"$f":"Import!E38858","v":0},{"$f":"Import!E38899","v":0},{"$f":"Import!E38940","v":0},{"$f":"Import!E38981","v":0},{"$f":"Import!E39022","v":0},{"$f":"Import!E39063","v":0},{"$f":"Import!E39104","v":0},{"$f":"Import!E39145","v":0},{"$f":"Import!E39186","v":0},0]
[null,"Government securities, municipal securities, foreign government securities",0,{"$f":"Import!E38818","v":0},{"$f":"Import!E38859","v":0},{"$f":"Import!E38900","v":0},{"$f":"Import!E38941","v":0},{"$f":"Import!E38982","v":0},{"$f":"Import!E39023","v":0},{"$f":"Import!E39064","v":0},{"$f":"Import!E39105","v":0},{"$f":"Import!E39146","v":0},{"$f":"Import!E39187","v":0},0]
[null,"Government securities, municipal securities, foreign government securities",1,{"$f":"Import!E38819","v":0},{"$f":"Import!E38860","v":0},{"$f":"Import!E38901","v":0},{"$f":"Import!E38942","v":0},{"$f":"Import!E38983","v":0},{"$f":"Import!E39024","v":0},{"$f":"Import!E39065","v":0},{"$f":"Import!E39106","v":0},{"$f":"Import!E39147","v":0},{"$f":"Import!E39188","v":0},0]
[null,"Government securities, municipal securities, foreign government securities",2,{"$f":"Import!E38820","v":0},{"$f":"Import!E38861","v":0},{"$f":"Import!E38902","v":0},{"$f":"Import!E38943","v":0},{"$f":"Import!E38984","v":0},{"$f":"Import!E39025","v":0},{"$f":"Import!E39066","v":0},{"$f":"Import!E39107","v":0},{"$f":"Import!E39148","v":0},{"$f":"Import!E39189","v":0},0]
[null,"Government securities, municipal securities, foreign government securities",3,{"$f":"Import!E38821","v":0},{"$f":"Import!E38862","v":0},{"$f":"Import!E38903","v":0},{"$f":"Import!E38944","v":0},{"$f":"Import!E38985","v":0},{"$f":"Import!E39026","v":0},{"$f":"Import!E39067","v":0},{"$f":"Import!E39108","v":0},{"$f":"Import!E39149","v":0},{"$f":"Import!E39190","v":0},0]
[null,"Government securities, municipal securities, foreign government securities",4,{"$f":"Import!E38822","v":0},{"$f":"Import!E38863","v":0},{"$f":"Import!E38904","v":0},{"$f":"Import!E38945","v":0},{"$f":"Import!E38986","v":0},{"$f":"Import!E39027","v":0},{"$f":"Import!E39068","v":0},{"$f":"Import!E39109","v":0},{"$f":"Import!E39150","v":0},{"$f":"Import!E39191","v":0},0]
[null,"Government securities, municipal securities, foreign government securities",5,{"$f":"Import!E38823","v":0},{"$f":"Import!E38864","v":0},{"$f":"Import!E38905","v":0},{"$f":"Import!E38946","v":0},{"$f":"Import!E38987","v":0},{"$f":"Import!E39028","v":0},{"$f":"Import!E39069","v":0},{"$f":"Import!E39110","v":0},{"$f":"Import!E39151","v":0},{"$f":"Import!E39192","v":0},0]
[null,"Government securities, municipal securities, foreign government securities",6,{"$f":"Import!E38824","v":0},{"$f":"Import!E38865","v":0},{"$f":"Import!E38906","v":0},{"$f":"Import!E38947","v":0},{"$f":"Import!E38988","v":0},{"$f":"Import!E39029","v":0},{"$f":"Import!E39070","v":0},{"$f":"Import!E39111","v":0},{"$f":"Import!E39152","v":0},{"$f":"Import!E39193","v":0},0]
[null,"Government securities, municipal securities, foreign government securities",7,{"$f":"Import!E38825","v":0},{"$f":"Import!E38866","v":0},{"$f":"Import!E38907","v":0},{"$f":"Import!E38948","v":0},{"$f":"Import!E38989","v":0},{"$f":"Import!E39030","v":0},{"$f":"Import!E39071","v":0},{"$f":"Import!E39112","v":0},{"$f":"Import!E39153","v":0},{"$f":"Import!E39194","v":0},0]
[null,"Government securities, municipal securities, foreign government securities",8,{"$f":"Import!E38826","v":0},{"$f":"Import!E38867","v":0},{"$f":"Import!E38908","v":0},{"$f":"Import!E38949","v":0},{"$f":"Import!E38990","v":0},{"$f":"Import!E39031","v":0},{"$f":"Import!E39072","v":0},{"$f":"Import!E39113","v":0},{"$f":"Import!E39154","v":0},{"$f":"Import!E39195","v":0},0]
[null,null,null,null,null,null,null,null,null,null,null,null,"Total",{"$f":"SUM(N2038:N2078)","v":0}]
[]
[null,"Total rated assets","BSCR Rating","Moody's Investor's Service","Standard and Poor's","Dominion Bond Rating Service","Kroll Bond Rating Agency","Egan Jones Rating Company","Japan Credit Rating Agency","BMA-approved Internal Ratings","Other BMA-approved Rating Agency 1","Other BMA-approved Rating Agency 2","Other BMA-approved Rating Agency 3","Total"]
[null,"Total rated assets",0,{"$f":"D2070","v":0},{"$f":"E2070","v":0},0,0,0,0,0,0,0,0,{"$f":"SUM(D2082:M2082)","v":0}]
[null,"Total rated assets",1,{"$f":"D2038+D2046+D2054+D2062+D2071","v":0},{"$f":"E2038+E2046+E2054+E2062+E2071","v":0},0,0,0,0,0,0,0,0,{"$f":"SUM(D2083:M2083)","v":0}]
[null,"Total rated assets",2,{"$f":"D2039+D2047+D2055+D2063+D2072","v":0},0,0,0,0,0,0,0,0,0,0]
[null,"Total rated assets",3,0,0,0,0,0,0,0,0,0,0,0]
[null,"Total rated assets",4,0,0,0,0,0,0,0,0,0,0,0]
[null,"Total rated assets",5,0,0,0,0,0,0,0,0,0,0,0]
[null,"Total rated assets",6,0,0,0,0,0,0,0,0,0,0,0]
[null,"Total rated assets",7,0,0,0,0,0,0,0,0,0,0,0]
[null,"Total rated assets",8,0,0,0,0,0,0,0,0,0,0,0]
[null,"Total rated assets","Total",{"$f":"SUM(D2082:D2090)","v":0},{"$f":"SUM(E2082:E2090)","v":0},0,0,0,0,0,0,0,0,0]
[]
[null,"Asset/Rating Category","BSCR Rating","Unrated"]
[null,"Financial institutions, brokers and dealers",8,{"$f":"Import!E39196","v":0}]
[null,"Insurance companies",8,{"$f":"Import!E39197","v":0}]
[null,"Corporate issuers",8,{"$f":"Import!E39198","v":0}]
[null,"Issuers of asset-backed securities",8,{"$f":"Import!E39199","v":0}]
[null,"Government securities, municipal securities, foreign government securities",8,{"$f":"Import!E39200","v":0}]
[null,"Total unrated assets","Total",{"$f":"SUM(D2094:D2098)","v":0}]
[]
[null,"Asset/Rating Category","BSCR Rating","Financial institutions, brokers and dealers","Insurance companies","Corporate issuers","Issuers of asset-backed securities","Government securities, municipal securities, foreign government securities","Total"]
[null,"Total",0,null,null,null,null,{"$f":"N2070","v":0},{"$f":"SUM(H2102)","v":0}]
[null,"Total",1,{"$f":"N2038","v":0},{"$f":"N2046","v":0},{"$f":"N2054","v":0},{"$f":"N2062","v":0},0,{"$f":"SUM(D2103:H2103)","v":0}]
[null,"Total",2,0,0,0,0,0,{"$f":"SUM(D2104:H2104)","v":0}]
[null,"Total",3,0,0,0,0,0,0]
[null,"Total",4,0,0,0,0,0,0]
[null,"Total",5,0,0,0,0,0,0]
[null,"Total",6,0,0,0,0,0,0]
[null,"Total",7,0,0,0,0,0,0]
[null,"Total",8,{"$f":"N2045+D2094","v":0},{"$f":"N2053+D2095","v":0},{"$f":"N2061+D2096","v":0},{"$f":"N2069+D2097","v":0},{"$f":"N2078+D2098","v":0},0]
[null,"Total fixed income assets","Total",{"$f":"SUM(D2103:D2110)","v":0},{"$f":"SUM(E2103:E2110)","v":0},{"$f":"SUM(F2103:F2110)","v":0},{"$f":"SUM(G2103:G2110)","v":0},{"$f":"SUM(H2102:H2110)","v":0},{"$f":"SUM(D2111:H2111)","v":0}]
[null,"Unrated","- of which unrated",{"$f":"D2094","v":0},{"$f":"D2095","v":0},{"$f":"D2096","v":0},{"$f":"D2097","v":0},{"$f":"D2098","v":0},{"$f":"SUM(D2112:H2112)","v":0}]
[]
[]
["Cash","Sovereign Bonds","RMBS - Agency","Listed Preferred Equity - Direct","Hedge Funds","Investment Income Due and Accrued","Energy","Holding Entity","Significant Influence","United States Dollars","Positive market value",null,null,null,null,"Residential Mortgages",null,"United States of America"]
["Certificates of Deposit","Municipals","RMBS - Non-agency","Listed Preferred Equity - ETF","Equity investments in Infrastructure","Accounts and Premiums Receivable","Materials","Operating Entity","Control","Euro","Negative market value",null,null,null,null,"Other Residential Loans",null,"Bermuda"]
["Short-Term Commercial Paper","Supranationals (multilateral development banks and international organizations)","CMBS","Listed Preferred Equity - Mutual Fund","Commodities - Direct","Reinsurance Balance Receivable","Industrial","Branch","Select","Afghanistan Afghanis","Select",null,null,null,null,"Commercial and Farm Mortgages",null,"United Kingdom of Great Britain and Northern Ireland"]
["Money Market Funds","Corporate bonds","CLOs","Private Preferred Equity - Direct","Commodities - ETF","Funds Held by Ceding Reinsurers","Consumer Discretionary","Select",null,"Albania Leke",null,null,null,null,null,"Other Commercial Real Estate Loans",null,"Canada"]
["Other","Private Placements","CDOs","Private Preferred Equity - Fund","Commodities - Mutual Funds","SAC - long-term business - variable annuities","Consumer Staples",null,null,"Armenia Drams",null,null,null,null,null,"Middle Market Loans"]
["Select","Other - Secured Bonds","Auto Loan ABS","Other - Listed Preferred Equity","Catastrophe Bonds","SAC - long-term business - others","Healthcare",null,null,"Netherlands Antilles Guilders",null,null,null,null,null,"Leveraged Loans",null,"Afghanistan"]
[null,"Other - Unsecured Bonds","Student Loan ABS","Other - Private Preferred Equity","Other Insurance-Linked Securities","SAC - general business","Financial",null,null,"Angola Kwanza",null,null,null,null,null,"Other Direct Private Lending",null,"Aland Islands"]
[null,"Exchange-Traded Fund - Sovereigns","Credit Card Receivable ABS","Select","Advances to Affiliates","Deposit assets","Select",null,null,"Argentina Pesos",null,null,null,null,null,"Infrastructure Loans",null,"Albania"]
[null,"Mutual Fund - Sovereigns","Other ABS",null,"Investments in Affiliates","Other Sundry Assets",null,null,null,"Australia Dollars",null,null,null,null,null,"Collateral Loans",null,"Algeria"]
[null,"Exchange-Traded Fund - Corporates","Select",null,"Other","Letter of Credit, Guarantees and Other Instruments",null,null,null,"Aruba Guilders",null,null,null,null,null,"Equity Release / Reverse Mortgages",null,"American Samoa"]
[null,"Mutual Fund - Corporates",null,null,"Select","Other",null,null,null,"Azerbaijan New Manats",null,null,null,null,null,"Policy Loans",null,"Andorra"]
[null,"Other Funds",null,null,null,"Select",null,null,null,"Bosnia and Herzegovina Convertible Marka",null,null,null,null,null,"Other Direct Loans",null,"Angola"]
[null,"Select",null,null,null,null,null,null,null,"Barbados Dollars",null,null,null,null,null,"Mortgage Loan Fund - Residential",null,"Anguilla"]
[null,null,null,null,null,null,null,null,null,"Bangladesh Taka",null,null,null,null,null,"Mortgage Loan Fund - Commercial",null,"Antigua and Barbuda"]
[null,null,null,null,null,null,null,null,null,"Bulgaria Leva",null,null,null,null,null,"Private Credit Fund",null,"Argentina"]
[null,null,null,null,null,null,null,null,null,"Bahrain Dinars",null,null,null,null,null,"Other Loan Fund",null,"Armenia"]
["Listed options","Equity","Hedging","Long / Receive Fixed / Sell Protection","Private Equities","Investment Income Due and Accrued","Direct Real Estate - Residential",null,null,"Burundi Francs",null,null,null,null,null,"Select",null,"Aruba"]
["Futures","Debt","Speculative","Short / Receive Floating / Buy Protection","Investment Funds","Accounts and Premiums Receivable","Direct Real Estate - Commercial",null,null,"Bermuda Dollars",null,null,null,null,null,null,null,"Australia"]
["Forwards","Interest Rate","Select","Select","Hedge Funds","Reinsurance Balance Receivable","Direct Real-Estate - Industrial",null,null,"Brunei Dollars",null,null,null,null,null,"Insured/Guaranteed Mortgages",null,"Austria"]
["Swaps","Inflation",null,null,"Private Credit Funds","SAC - long-term business - variable annuities","Direct Real Estate - Land",null,null,"Bolivia Bolivianos",null,null,null,null,null,"Other Commercial and Farm Mortgages",null,"Azerbaijan"]
["Swaptions","Credit",null,null,"Catastrophe Bonds","SAC - long-term business - others","Real Estate Funds - Residential",null,null,"Brazil Reais",null,null,null,null,null,"Other Residential Mortgages",null,"Bahamas"]
["OTC options","Currencies","Yes","Exchange-traded","Other Insurance-Linked Securities","SAC - general business","Real Estate Funds - Commercial",null,null,"Bahamas Dollars",null,null,null,null,null,"Mortgages Not In Good Standing",null,"Bahrain"]
["Other","Commodities","No","OTC – Centrally-cleared","Infrastructure Debt","Deposit assets","Real-Estate Funds - Industrial",null,null,"Bhutan Ngultrum",null,null,null,null,null,"Collateral Loans",null,"Bangladesh"]
["Select","Other","Select","OTC – Not centrally-cleared","Equity Investments in Infrastructure","Other Sundry Assets","Real Estate Funds - Land",null,null,"Botswana Pulas",null,null,null,null,null,"Middle Market Loans",null,"Barbados"]
[null,"Select",null,"Select","Other","Letter of Credit, Guarantees and Other Instruments","Direct Real Estate - Other",null,null,"Belarus Rubles",null,null,null,null,null,"Other Direct Private Lending",null,"Belarus"]
[null,null,null,null,"Select","Other","Real Estate Funds - Other",null,null,"Belize Dollars",null,null,null,null,null,"Policy Loans",null,"Belgium"]
[null,null,null,null,null,"Select","Select",null,null,"Canada Dollars",null,null,null,null,null,"Other",null,"Belize"]
[null,null,null,null,null,null,null,null,null,"Congo/Kinshasa Francs",null,null,null,null,null,"Select",null,"Benin"]
[null,null,null,null,null,null,null,null,null,"Switzerland Francs",null,null,null,null,null,null,null,"Bhutan"]
["BSCR Rating",null,"Listed Equity - Direct",null,null,null,null,null,null,"Chile Pesos",null,null,null,null,null,null,null,"Bolivia (Plurinational State of)"]
["Select",null,"Listed Equity - ETF",null,null,null,"Investment",null,null,"China Yuan Renminbi",null,null,null,null,null,null,null,"Bonaire, Sint Eustatius and Saba"]
["BSCR Rating 0",null,"Listed Equity - Mutual Fund",null,null,null,"Owner-occupied",null,null,"Colombia Pesos",null,null,null,null,null,null,null,"Bosnia and Herzegovina"]
["BSCR Rating 1",null,"Private Equity - Direct",null,null,null,"Select",null,null,"Costa Rica Colones",null,null,null,null,null,null,null,"Botswana"]
["BSCR Rating 2",null,"Private Equity - Fund",null,null,null,null,null,null,"Cuba Convertible Pesos",null,null,null,null,null,null,null,"Brazil"]
["BSCR Rating 3",null,"Other - Listed Equity",null,null,null,null,null,null,"Cuba Pesos",null,null,null,null,null,null,null,"British Virgin Islands"]
["BSCR Rating 4",null,"Other - Private Equity",null,null,null,null,null,null,"Cape Verde Escudos",null,null,null,null,null,null,null,"Brunei Darussalam"]
["BSCR Rating 5",null,"Select",null,null,null,null,null,null,"Czech Republic Koruny",null,null,null,null,null,null,null,"Bulgaria"]
["BSCR Rating 6",null,null,null,null,null,null,null,null,"Djibouti Francs",null,null,null,null,null,null,null,"Burkina Faso"]
["BSCR Rating 7",null,null,null,null,null,null,null,null,"Denmark Kroner",null,null,null,null,null,null,null,"Burundi"]
["BSCR Rating 8",null,null,null,null,null,null,null,null,"Dominican Republic Pesos",null,null,null,null,null,null,null,"Cabo Verde (Cape Verde)"]
[null,null,null,null,null,null,null,null,null,"Algeria Dinars",null,null,null,null,null,null,null,"Cambodia"]
[null,null,null,null,null,null,null,null,null,"Estonia Krooni",null,null,null,null,null,null,null,"Cameroon"]
[null,null,null,null,null,null,null,null,null,"Egypt Pounds",null,null,null,null,null,null,null,"Cayman Islands"]
[null,null,null,null,null,null,null,null,null,"Eritrea Nakfa",null,null,null,null,null,null,null,"Central African Republic"]
[null,null,null,null,null,null,null,null,null,"Ethiopia Birr",null,null,null,null,null,null,null,"Chad"]
[null,null,null,null,null,null,null,null,null,"Fiji Dollars",null,null,null,null,null,null,null,"Chile"]
[null,null,null,null,null,null,null,null,null,"Falkland Islands Pounds",null,null,null,null,null,null,null,"China"]
[null,null,null,null,null,null,null,null,null,"United Kingdom Pounds",null,null,null,null,null,null,null,"China, Hong Kong SAR"]
[null,null,null,null,null,null,null,null,null,"Georgia Lari",null,null,null,null,null,null,null,"China, Macao SAR "]
[null,null,null,null,null,null,null,null,null,"Guernsey Pounds",null,null,null,null,null,null,null,"Colombia"]
[null,null,null,null,null,null,null,null,null,"Ghana Cedis",null,null,null,null,null,null,null,"Comoros"]
[null,null,null,null,null,null,null,null,null,"Gibraltar Pounds",null,null,null,null,null,null,null,"Congo"]
[null,null,null,null,null,null,null,null,null,"Gambia Dalasi",null,null,null,null,null,null,null,"Cook Islands"]
[null,null,null,null,null,null,null,null,null,"Guinea Francs",null,null,null,null,null,null,null,"Costa Rica"]
[null,null,null,null,null,null,null,null,null,"Guatemala Quetzales",null,null,null,null,null,null,null,"Cote d' Ivoire"]
[null,null,null,null,null,null,null,null,null,"Guyana Dollars",null,null,null,null,null,null,null,"Croatia"]
[null,null,null,null,null,null,null,null,null,"Hong Kong Dollars",null,null,null,null,null,null,null,"Cuba"]
[null,null,null,null,null,null,null,null,null,"Honduras Lempiras",null,null,null,null,null,null,null,"Curacao"]
[null,null,null,null,null,null,null,null,null,"Croatia Kuna",null,null,null,null,null,null,null,"Cyprus"]
[null,null,null,null,null,null,null,null,null,"Haiti Gourdes",null,null,null,null,null,null,null,"Czech Republic"]
[null,null,null,null,null,null,null,null,null,"Hungary Forint",null,null,null,null,null,null,null,"Democratic People's Republic of Korea (North Korea)"]
[null,null,null,null,null,null,null,null,null,"Indonesia Rupiahs",null,null,null,null,null,null,null,"Democratic Republic of the Congo"]
[null,null,null,null,null,null,null,null,null,"Israel New Shekels",null,null,null,null,null,null,null,"Denmark"]
[null,null,null,null,null,null,null,null,null,"Isle of Man Pounds",null,null,null,null,null,null,null,"Djibouti"]
[null,null,null,null,null,null,null,null,null,"India Rupees",null,null,null,null,null,null,null,"Dominica"]
[null,null,null,null,null,null,null,null,null,"Iraq Dinars",null,null,null,null,null,null,null,"Dominican Republic"]
[null,null,null,null,null,null,null,null,null,"Iran Rials",null,null,null,null,null,null,null,"Ecuador"]
[null,null,null,null,null,null,null,null,null,"Iceland Kronur",null,null,null,null,null,null,null,"Egypt"]
[null,null,null,null,null,null,null,null,null,"Jersey Pounds",null,null,null,null,null,null,null,"El Salvador"]
[null,null,null,null,null,null,null,null,null,"Jamaica Dollars",null,null,null,null,null,null,null,"Equatorial Guinea"]
[null,null,null,null,null,null,null,null,null,"Jordan Dinars",null,null,null,null,null,null,null,"Eritrea"]
[null,null,null,null,null,null,null,null,null,"Japan Yen",null,null,null,null,null,null,null,"Estonia"]
[null,null,null,null,null,null,null,null,null,"Kenya Shillings",null,null,null,null,null,null,null,"Eswatini (Kingdom of Swaziland)"]
[null,null,null,null,null,null,null,null,null,"Kyrgyzstan Soms",null,null,null,null,null,null,null,"Ethiopia"]
[null,null,null,null,null,null,null,null,null,"Cambodia Riels",null,null,null,null,null,null,null,"Falkland Islands"]
[null,null,null,null,null,null,null,null,null,"Comoros Francs",null,null,null,null,null,null,null,"Faroe Islands"]
[null,null,null,null,null,null,null,null,null,"North Korea Won",null,null,null,null,null,null,null,"Fiji"]
[null,null,null,null,null,null,null,null,null,"South Korea Won",null,null,null,null,null,null,null,"Finland"]
[null,null,null,null,null,null,null,null,null,"Kuwait Dinars",null,null,null,null,null,null,null,"France"]
[null,null,null,null,null,null,null,null,null,"Cayman Islands Dollars",null,null,null,null,null,null,null,"French Guiana"]
[null,null,null,null,null,null,null,null,null,"Kazakhstan Tenge",null,null,null,null,null,null,null,"French Polynesia"]
[null,null,null,null,null,null,null,null,null,"Laos Kips",null,null,null,null,null,null,null,"Gabon"]
[null,null,null,null,null,null,null,null,null,"Lebanon Pounds",null,null,null,null,null,null,null,"Gambia (Republic of The)"]
[null,null,null,null,null,null,null,null,null,"Sri Lanka Rupees",null,null,null,null,null,null,null,"Georgia"]
[null,null,null,null,null,null,null,null,null,"Liberia Dollars",null,null,null,null,null,null,null,"Germany"]
[null,null,null,null,null,null,null,null,null,"Lesotho Maloti",null,null,null,null,null,null,null,"Ghana"]
[null,null,null,null,null,null,null,null,null,"Lithuania Litai",null,null,null,null,null,null,null,"Gibraltar"]
[null,null,null,null,null,null,null,null,null,"Latvia Lati",null,null,null,null,null,null,null,"Greece"]
[null,null,null,null,null,null,null,null,null,"Libya Dinars",null,null,null,null,null,null,null,"Greenland"]
[null,null,null,null,null,null,null,null,null,"Morocco Dirhams",null,null,null,null,null,null,null,"Grenada"]
[null,null,null,null,null,null,null,null,null,"Moldova Lei",null,null,null,null,null,null,null,"Guadeloupe"]
[null,null,null,null,null,null,null,null,null,"Madagascar Ariary",null,null,null,null,null,null,null,"Guam"]
[null,null,null,null,null,null,null,null,null,"Macedonia Denars",null,null,null,null,null,null,null,"Guatemala"]
[null,null,null,null,null,null,null,null,null,"Myanmar Kyats",null,null,null,null,null,null,null,"Guernsey"]
[null,null,null,null,null,null,null,null,null,"Mongolia Tugriks",null,null,null,null,null,null,null,"Guinea"]
[null,null,null,null,null,null,null,null,null,"Macau Patacas",null,null,null,null,null,null,null,"Guinea-Bissau"]
[null,null,null,null,null,null,null,null,null,"Mauritania Ouguiyas",null,null,null,null,null,null,null,"Guyana"]
[null,null,null,null,null,null,null,null,null,"Mauritius Rupees",null,null,null,null,null,null,null,"Haiti"]
[null,null,null,null,null,null,null,null,null,"Maldives Rufiyaa",null,null,null,null,null,null,null,"Holy See"]
[null,null,null,null,null,null,null,null,null,"Malawi Kwachas",null,null,null,null,null,null,null,"Honduras"]
[null,null,null,null,null,null,null,null,null,"Mexico Pesos",null,null,null,null,null,null,null,"Hungary"]
[null,null,null,null,null,null,null,null,null,"Malaysia Ringgits",null,null,null,null,null,null,null,"Iceland"]
[null,null,null,null,null,null,null,null,null,"Mozambique Meticais",null,null,null,null,null,null,null,"India"]
[null,null,null,null,null,null,null,null,null,"Namibia Dollars",null,null,null,null,null,null,null,"Indonesia"]
[null,null,null,null,null,null,null,null,null,"Nigeria Nairas",null,null,null,null,null,null,null,"Iran (Islamic Republic of)"]
[null,null,null,null,null,null,null,null,null,"Nicaragua Cordobas",null,null,null,null,null,null,null,"Iraq"]
[null,null,null,null,null,null,null,null,null,"Norway Kroner",null,null,null,null,null,null,null,"Ireland"]
[null,null,null,null,null,null,null,null,null,"Nepal Rupees",null,null,null,null,null,null,null,"Isle of Man"]
[null,null,null,null,null,null,null,null,null,"New Zealand Dollars",null,null,null,null,null,null,null,"Israel"]
[null,null,null,null,null,null,null,null,null,"Oman Rials",null,null,null,null,null,null,null,"Italy"]
[null,null,null,null,null,null,null,null,null,"Panama Balboas",null,null,null,null,null,null,null,"Jamaica"]
[null,null,null,null,null,null,null,null,null,"Peru Nuevos Soles",null,null,null,null,null,null,null,"Japan"]
[null,null,null,null,null,null,null,null,null,"Papua New Guinea Kina",null,null,null,null,null,null,null,"Jersey"]
[null,null,null,null,null,null,null,null,null,"Philippines Pesos",null,null,null,null,null,null,null,"Jordan"]
[null,null,null,null,null,null,null,null,null,"Pakistan Rupees",null,null,null,null,null,null,null,"Kazakhstan"]
[null,null,null,null,null,null,null,null,null,"Poland Zlotych",null,null,null,null,null,null,null,"Kenya"]
[null,null,null,null,null,null,null,null,null,"Paraguay Guarani",null,null,null,null,null,null,null,"Kiribati"]
[null,null,null,null,null,null,null,null,null,"Qatar Riyals",null,null,null,null,null,null,null,"Kuwait"]
[null,null,null,null,null,null,null,null,null,"Romania New Lei",null,null,null,null,null,null,null,"Kyrgyzstan"]
[null,null,null,null,null,null,null,null,null,"Serbia Dinars",null,null,null,null,null,null,null,"Lao People's Democratic Republic"]
[null,null,null,null,null,null,null,null,null,"Russia Rubles",null,null,null,null,null,null,null,"Latvia"]
[null,null,null,null,null,null,null,null,null,"Rwanda Francs",null,null,null,null,null,null,null,"Lebanon"]
[null,null,null,null,null,null,null,null,null,"Saudi Arabia Riyals",null,null,null,null,null,null,null,"Lesotho"]
[null,null,null,null,null,null,null,null,null,"Solomon Islands Dollars",null,null,null,null,null,null,null,"Liberia"]
[null,null,null,null,null,null,null,null,null,"Seychelles Rupees",null,null,null,null,null,null,null,"Libya"]
[null,null,null,null,null,null,null,null,null,"Sudan Pounds",null,null,null,null,null,null,null,"Liechtenstein"]
[null,null,null,null,null,null,null,null,null,"Sweden Kronor",null,null,null,null,null,null,null,"Lithuania"]
[null,null,null,null,null,null,null,null,null,"Singapore Dollars",null,null,null,null,null,null,null,"Luxembourg"]
[null,null,null,null,null,null,null,null,null,"Saint Helena Pounds",null,null,null,null,null,null,null,"Madagascar"]
[null,null,null,null,null,null,null,null,null,"Slovakia Koruny",null,null,null,null,null,null,null,"Malawi"]
[null,null,null,null,null,null,null,null,null,"Sierra Leone Leones",null,null,null,null,null,null,null,"Malaysia"]
[null,null,null,null,null,null,null,null,null,"Somalia Shillings",null,null,null,null,null,null,null,"Maldives"]
[null,null,null,null,null,null,null,null,null,"Seborga Luigini",null,null,null,null,null,null,null,"Mali"]
[null,null,null,null,null,null,null,null,null,"Suriname Dollars",null,null,null,null,null,null,null,"Malta"]
[null,null,null,null,null,null,null,null,null,"São Tome and Principe Dobras",null,null,null,null,null,null,null,"Marshall Islands"]
[null,null,null,null,null,null,null,null,null,"El Salvador Colones",null,null,null,null,null,null,null,"Martinique"]
[null,null,null,null,null,null,null,null,null,"Syria Pounds",null,null,null,null,null,null,null,"Mauritania"]
[null,null,null,null,null,null,null,null,null,"Swaziland Emalangeni",null,null,null,null,null,null,null,"Mauritius"]
[null,null,null,null,null,null,null,null,null,"Thailand Baht",null,null,null,null,null,null,null,"Mayotte"]
[null,null,null,null,null,null,null,null,null,"Tajikistan Somoni",null,null,null,null,null,null,null,"Mexico"]
[null,null,null,null,null,null,null,null,null,"Turkmenistan Manats",null,null,null,null,null,null,null,"Micronesia (Federated States of)"]
[null,null,null,null,null,null,null,null,null,"Tunisia Dinars",null,null,null,null,null,null,null,"Monaco"]
[null,null,null,null,null,null,null,null,null,"Tonga Pa'anga",null,null,null,null,null,null,null,"Mongolia"]
[null,null,null,null,null,null,null,null,null,"Turkey New Lira",null,null,null,null,null,null,null,"Montenegro"]
[null,null,null,null,null,null,null,null,null,"Trinidad and Tobago Dollars",null,null,null,null,null,null,null,"Montserrat"]
[null,null,null,null,null,null,null,null,null,"Tuvalu Dollars",null,null,null,null,null,null,null,"Morocco"]
[null,null,null,null,null,null,null,null,null,"Taiwan New Dollars",null,null,null,null,null,null,null,"Mozambique"]
[null,null,null,null,null,null,null,null,null,"Tanzania Shillings",null,null,null,null,null,null,null,"Myanmar"]
[null,null,null,null,null,null,null,null,null,"Ukraine Hryvnia",null,null,null,null,null,null,null,"Namibia"]
[null,null,null,null,null,null,null,null,null,"Uganda Shillings",null,null,null,null,null,null,null,"Nauru"]
[null,null,null,null,null,null,null,null,null,"Uruguay Pesos",null,null,null,null,null,null,null,"Nepal"]
[null,null,null,null,null,null,null,null,null,"Uzbekistan Sums",null,null,null,null,null,null,null,"Netherlands"]
[null,null,null,null,null,null,null,null,null,"Venezuela Bolivares",null,null,null,null,null,null,null,"New Caledonia"]
[null,null,null,null,null,null,null,null,null,"Venezuela Bolivares Fuertes",null,null,null,null,null,null,null,"New Zealand"]
[null,null,null,null,null,null,null,null,null,"Vietnam Dong",null,null,null,null,null,null,null,"Nicaragua"]
[null,null,null,null,null,null,null,null,null,"Vanuatu Vatu",null,null,null,null,null,null,null,"Niger"]
[null,null,null,null,null,null,null,null,null,"Samoa Tala",null,null,null,null,null,null,null,"Nigeria"]
[null,null,null,null,null,null,null,null,null,"Communauté Financière Africaine Francs BEAC",null,null,null,null,null,null,null,"Niue"]
[null,null,null,null,null,null,null,null,null,"Silver Ounces",null,null,null,null,null,null,null,"Norfolk Island"]
[null,null,null,null,null,null,null,null,null,"Gold Ounces",null,null,null,null,null,null,null,"North Macedonia"]
[null,null,null,null,null,null,null,null,null,"East Caribbean Dollars",null,null,null,null,null,null,null,"Northern Mariana Islands"]
[null,null,null,null,null,null,null,null,null,"International Monetary Fund Special Drawing Rights",null,null,null,null,null,null,null,"Norway"]
[null,null,null,null,null,null,null,null,null,"Communauté Financière Africaine Francs BCEAO",null,null,null,null,null,null,null,"Oman"]
[null,null,null,null,null,null,null,null,null,"Palladium Ounces",null,null,null,null,null,null,null,"Pakistan"]
[null,null,null,null,null,null,null,null,null,"Comptoirs Français du Pacifique Francs",null,null,null,null,null,null,null,"Palau"]
[null,null,null,null,null,null,null,null,null,"Platinum Ounces",null,null,null,null,null,null,null,"Panama"]
[null,null,null,null,null,null,null,null,null,"Yemen Rials",null,null,null,null,null,null,null,"Papua New Guinea"]
[null,null,null,null,null,null,null,null,null,"South Africa Rand",null,null,null,null,null,null,null,"Paraguay"]
[null,null,null,null,null,null,null,null,null,"Zambia Kwacha",null,null,null,null,null,null,null,"Peru"]
[null,null,null,null,null,null,null,null,null,"Zimbabwe Dollars",null,null,null,null,null,null,null,"Philippines"]
[null,null,null,null,null,null,null,null,null,null,null,null,null,null,null,null,null,"Pitcairn"]
[null,null,null,null,null,null,null,null,null,null,null,null,null,null,null,null,null,"Poland"]
[null,null,null,null,null,null,null,null,null,null,null,null,null,null,null,null,null,"Portugal"]
[null,null,null,null,null,null,null,null,null,null,null,null,null,null,null,null,null,"Puerto Rico"]
[null,null,null,null,null,null,null,null,null,null,null,null,null,null,null,null,null,"Qatar"]
[null,null,null,null,null,null,null,null,null,null,null,null,null,null,null,null,null,"Republic of Korea (South Korea)"]
[null,null,null,null,null,null,null,null,null,null,null,null,null,null,null,null,null,"Republic of Moldova"]
[null,null,null,null,null,null,null,null,null,null,null,null,null,null,null,null,null,"Reunion"]
[null,null,null,null,null,null,null,null,null,null,null,null,null,null,null,null,null,"Romania"]
[null,null,null,null,null,null,null,null,null,null,null,null,null,null,null,null,null,"Russian Federation"]
[null,null,null,null,null,null,null,null,null,null,null,null,null,null,null,null,null,"Rwanda"]
[null,null,null,null,null,null,null,null,null,null,null,null,null,null,null,null,null,"Saint Barthelemy (St. Barts)"]
[null,null,null,null,null,null,null,null,null,null,null,null,null,null,null,null,null,"Saint Helena"]
[null,null,null,null,null,null,null,null,null,null,null,null,null,null,null,null,null,"Saint Kitts and Nevis"]
[null,null,null,null,null,null,null,null,null,null,null,null,null,null,null,null,null,"Saint Lucia"]
[null,null,null,null,null,null,null,null,null,null,null,null,null,null,null,null,null,"Saint Martin"]
[null,null,null,null,null,null,null,null,null,null,null,null,null,null,null,null,null,"Saint Pierre and Miquelon"]
[null,null,null,null,null,null,null,null,null,null,null,null,null,null,null,null,null,"Saint Vincent and The Grenadines"]
[null,null,null,null,null,null,null,null,null,null,null,null,null,null,null,null,null,"Samoa"]
[null,null,null,null,null,null,null,null,null,null,null,null,null,null,null,null,null,"San Marino"]
[null,null,null,null,null,null,null,null,null,null,null,null,null,null,null,null,null,"Sao Tome and Principe"]
[null,null,null,null,null,null,null,null,null,null,null,null,null,null,null,null,null,"Sark"]
[null,null,null,null,null,null,null,null,null,null,null,null,null,null,null,null,null,"Saudi Arabia"]
[null,null,null,null,null,null,null,null,null,null,null,null,null,null,null,null,null,"Senegal"]
[null,null,null,null,null,null,null,null,null,null,null,null,null,null,null,null,null,"Serbia"]
[null,null,null,null,null,null,null,null,null,null,null,null,null,null,null,null,null,"Seychelles"]
[null,null,null,null,null,null,null,null,null,null,null,null,null,null,null,null,null,"Sierra Leone"]
[null,null,null,null,null,null,null,null,null,null,null,null,null,null,null,null,null,"Singapore"]
[null,null,null,null,null,null,null,null,null,null,null,null,null,null,null,null,null,"Sint Maarten"]
[null,null,null,null,null,null,null,null,null,null,null,null,null,null,null,null,null,"Slovakia"]
[null,null,null,null,null,null,null,null,null,null,null,null,null,null,null,null,null,"Slovenia"]
[null,null,null,null,null,null,null,null,null,null,null,null,null,null,null,null,null,"Solomon Islands"]
[null,null,null,null,null,null,null,null,null,null,null,null,null,null,null,null,null,"Somalia"]
[null,null,null,null,null,null,null,null,null,null,null,null,null,null,null,null,null,"South Africa"]
[null,null,null,null,null,null,null,null,null,null,null,null,null,null,null,null,null,"South Sudan"]
[null,null,null,null,null,null,null,null,null,null,null,null,null,null,null,null,null,"Spain"]
[null,null,null,null,null,null,null,null,null,null,null,null,null,null,null,null,null,"Sri Lanka"]
[null,null,null,null,null,null,null,null,null,null,null,null,null,null,null,null,null,"State of Palestine"]
[null,null,null,null,null,null,null,null,null,null,null,null,null,null,null,null,null,"Sudan"]
[null,null,null,null,null,null,null,null,null,null,null,null,null,null,null,null,null,"Suriname"]
[null,null,null,null,null,null,null,null,null,null,null,null,null,null,null,null,null,"Svalbard, Jan Mayen"]
[null,null,null,null,null,null,null,null,null,null,null,null,null,null,null,null,null,"Sweden"]
[null,null,null,null,null,null,null,null,null,null,null,null,null,null,null,null,null,"Switzerland"]
[null,null,null,null,null,null,null,null,null,null,null,null,null,null,null,null,null,"Syrian Arab Republic"]
[null,null,null,null,null,null,null,null,null,null,null,null,null,null,null,null,null,"Taiwan"]
[null,null,null,null,null,null,null,null,null,null,null,null,null,null,null,null,null,"Tajikistan"]
[null,null,null,null,null,null,null,null,null,null,null,null,null,null,null,null,null,"Thailand"]
[null,null,null,null,null,null,null,null,null,null,null,null,null,null,null,null,null,"Timor-Leste"]
[null,null,null,null,null,null,null,null,null,null,null,null,null,null,null,null,null,"Togo"]
[null,null,null,null,null,null,null,null,null,null,null,null,null,null,null,null,null,"Tokelau"]
[null,null,null,null,null,null,null,null,null,null,null,null,null,null,null,null,null,"Tonga"]
[null,null,null,null,null,null,null,null,null,null,null,null,null,null,null,null,null,"Trinidad and Tobago"]
[null,null,null,null,null,null,null,null,null,null,null,null,null,null,null,null,null,"Tunisia"]
[null,null,null,null,null,null,null,null,null,null,null,null,null,null,null,null,null,"Turkey"]
[null,null,null,null,null,null,null,null,null,null,null,null,null,null,null,null,null,"Turkmenistan"]
[null,null,null,null,null,null,null,null,null,null,null,null,null,null,null,null,null,"Turks & Caicos Islands"]
[null,null,null,null,null,null,null,null,null,null,null,null,null,null,null,null,null,"Tuvalu"]
[null,null,null,null,null,null,null,null,null,null,null,null,null,null,null,null,null,"Uganda"]
[null,null,null,null,null,null,null,null,null,null,null,null,null,null,null,null,null,"Ukraine"]
[null,null,null,null,null,null,null,null,null,null,null,null,null,null,null,null,null,"United Arab Emirates"]
[null,null,null,null,null,null,null,null,null,null,null,null,null,null,null,null,null,"United Republic of Tanzania"]
[null,null,null,null,null,null,null,null,null,null,null,null,null,null,null,null,null,"Uruguay"]
[null,null,null,null,null,null,null,null,null,null,null,null,null,null,null,null,null,"US Virgin Islands"]
[null,null,null,null,null,null,null,null,null,null,null,null,null,null,null,null,null,"Uzbekistan"]
[null,null,null,null,null,null,null,null,null,null,null,null,null,null,null,null,null,"Vanuatu"]
[null,null,null,null,null,null,null,null,null,null,null,null,null,null,null,null,null,"Venezuela, Bolivarian Republic of "]
[null,null,null,null,null,null,null,null,null,null,null,null,null,null,null,null,null,"Vietnam"]
[null,null,null,null,null,null,null,null,null,null,null,null,null,null,null,null,null,"Wallis & Futuna Islands"]
[null,null,null,null,null,null,null,null,null,null,null,null,null,null,null,null,null,"Western Sahara"]
[null,null,null,null,null,null,null,null,null,null,null,null,null,null,null,null,null,"Yemen"]
[null,null,null,null,null,null,null,null,null,null,null,null,null,null,null,null,null,"Zambia"]
[null,null,null,null,null,null,null,null,null,null,null,null,null,null,null,null,null,"Zimbabwe"]
[null,null,null,null,null,null,null,null,null,null,null,null,null,null,null,null,null,"Select"]

{"sheet":"Schedule VI (EBS)","index":53,"n_rows":2357,"n_cols":18,"rows_kept":2357,"cut":false,"hidden":false,"merged":[[1339,1,1339,2],[5,1,5,2],[213,1,213,2],[216,1,216,2],[987,1,987,2],[990,1,990,2],[1095,1,1095,2],[1098,1,1098,2],[1123,1,1123,2],[1126,1,1126,2],[1231,1,1231,2],[1234,1,1234,2],[1764,6,1765,6],[1764,7,1765,7],[1789,1,1789,2],[1793,1,1793,2],[1342,1,1342,2],[1447,1,1447,2],[1450,1,1450,2],[1555,1,1555,2],[1763,5,1765,5]]}
[null,"SCHEDULE OF ASSETS (EBS)",null,null,null,null,null,null,null,null,null,null,null,{"$f":"HYPERLINK(\"#'Index'!A1\",\"Return to Index\")","v":"Return to Index"}]
[null,{"$f":"'Company Information'!C7","v":"Enter Company Name"}]
[null,"As at",{"$f":"'Company Information'!C3","v":"2023-12-31"},null,null,null,null,null,null,null,null,null,null,"Schedule VI (EBS)"]
[null,"expressed in ['000s]",{"$f":"'Form 1SFS'!C5","v":"United States Dollars"}]
[]
[null,"(A) CASH AND CASH EQUIVALENTS"]
[]
[null,null,"Enter # of Asset Types",{"$f":"Import!M9898","v":0}]
[null,null,null,null,{"$f":"YEAR($C$3)","v":2023},{"$f":"YEAR($C$3)","v":2023}]
[null,"Asset Type","Currency","BSCR Rating","Nominal Amount","Fair Value","Comments"]
[1,{"$f":"Import!M9899","v":"Select"},{"$f":"Import!M10099","v":"Select"},{"$f":"Import!M10299","v":"Select"},{"$f":"Import!M10499","v":0},{"$f":"Import!M10699","v":0},{"$f":"Import!M10899","v":0}]
[{"$f":"A11+1","v":2},{"$f":"Import!M9900","v":"Select"},{"$f":"Import!M10100","v":"Select"},{"$f":"Import!M10300","v":"Select"},{"$f":"Import!M10500","v":0},{"$f":"Import!M10700","v":0},{"$f":"Import!M10900","v":0}]
[{"$f":"A12+1","v":3},{"$f":"Import!M9901","v":"Select"},{"$f":"Import!M10101","v":"Select"},{"$f":"Import!M10301","v":"Select"},{"$f":"Import!M10501","v":0},{"$f":"Import!M10701","v":0},{"$f":"Import!M10901","v":0}]
[4,{"$f":"Import!M9902","v":"Select"},{"$f":"Import!M10102","v":"Select"},{"$f":"Import!M10302","v":"Select"},{"$f":"Import!M10502","v":0},{"$f":"Import!M10702","v":0},{"$f":"Import!M10902","v":0}]
[5,{"$f":"Import!M9903","v":"Select"},{"$f":"Import!M10103","v":"Select"},{"$f":"Import!M10303","v":"Select"},{"$f":"Import!M10503","v":0},{"$f":"Import!M10703","v":0},{"$f":"Import!M10903","v":0}]
[6,{"$f":"Import!M9904","v":"Select"},{"$f":"Import!M10104","v":"Select"},{"$f":"Import!M10304","v":"Select"},{"$f":"Import!M10504","v":0},{"$f":"Import!M10704","v":0},{"$f":"Import!M10904","v":0}]
[7,{"$f":"Import!M9905","v":"Select"},{"$f":"Import!M10105","v":"Select"},{"$f":"Import!M10305","v":"Select"},{"$f":"Import!M10505","v":0},{"$f":"Import!M10705","v":0},{"$f":"Import!M10905","v":0}]
[8,{"$f":"Import!M9906","v":"Select"},{"$f":"Import!M10106","v":"Select"},{"$f":"Import!M10306","v":"Select"},{"$f":"Import!M10506","v":0},{"$f":"Import!M10706","v":0},{"$f":"Import!M10906","v":0}]
[9,{"$f":"Import!M9907","v":"Select"},{"$f":"Import!M10107","v":"Select"},{"$f":"Import!M10307","v":"Select"},{"$f":"Import!M10507","v":0},{"$f":"Import!M10707","v":0},{"$f":"Import!M10907","v":0}]
[10,{"$f":"Import!M9908","v":"Select"},{"$f":"Import!M10108","v":"Select"},{"$f":"Import!M10308","v":"Select"},{"$f":"Import!M10508","v":0},{"$f":"Import!M10708","v":0},{"$f":"Import!M10908","v":0}]
[11,{"$f":"Import!M9909","v":"Select"},{"$f":"Import!M10109","v":"Select"},{"$f":"Import!M10309","v":"Select"},{"$f":"Import!M10509","v":0},{"$f":"Import!M10709","v":0},{"$f":"Import!M10909","v":0}]
[12,{"$f":"Import!M9910","v":"Select"},{"$f":"Import!M10110","v":"Select"},{"$f":"Import!M10310","v":"Select"},{"$f":"Import!M10510","v":0},{"$f":"Import!M10710","v":0},{"$f":"Import!M10910","v":0}]
[13,{"$f":"Import!M9911","v":"Select"},{"$f":"Import!M10111","v":"Select"},{"$f":"Import!M10311","v":"Select"},{"$f":"Import!M10511","v":0},{"$f":"Import!M10711","v":0},{"$f":"Import!M10911","v":0}]
[14,{"$f":"Import!M9912","v":"Select"},{"$f":"Import!M10112","v":"Select"},{"$f":"Import!M10312","v":"Select"},{"$f":"Import!M10512","v":0},{"$f":"Import!M10712","v":0},{"$f":"Import!M10912","v":0}]
[15,{"$f":"Import!M9913","v":"Select"},{"$f":"Import!M10113","v":"Select"},{"$f":"Import!M10313","v":"Select"},{"$f":"Import!M10513","v":0},{"$f":"Import!M10713","v":0},{"$f":"Import!M10913","v":0}]
[16,{"$f":"Import!M9914","v":"Select"},{"$f":"Import!M10114","v":"Select"},{"$f":"Import!M10314","v":"Select"},{"$f":"Import!M10514","v":0},{"$f":"Import!M10714","v":0},{"$f":"Import!M10914","v":0}]
[17,{"$f":"Import!M9915","v":"Select"},{"$f":"Import!M10115","v":"Select"},{"$f":"Import!M10315","v":"Select"},{"$f":"Import!M10515","v":0},{"$f":"Import!M10715","v":0},{"$f":"Import!M10915","v":0}]
[18,{"$f":"Import!M9916","v":"Select"},{"$f":"Import!M10116","v":"Select"},{"$f":"Import!M10316","v":"Select"},{"$f":"Import!M10516","v":0},{"$f":"Import!M10716","v":0},{"$f":"Import!M10916","v":0}]
[19,{"$f":"Import!M9917","v":"Select"},{"$f":"Import!M10117","v":"Select"},{"$f":"Import!M10317","v":"Select"},{"$f":"Import!M10517","v":0},{"$f":"Import!M10717","v":0},{"$f":"Import!M10917","v":0}]
[20,{"$f":"Import!M9918","v":"Select"},{"$f":"Import!M10118","v":"Select"},{"$f":"Import!M10318","v":"Select"},{"$f":"Import!M10518","v":0},{"$f":"Import!M10718","v":0},{"$f":"Import!M10918","v":0}]
[21,{"$f":"Import!M9919","v":"Select"},{"$f":"Import!M10119","v":"Select"},{"$f":"Import!M10319","v":"Select"},{"$f":"Import!M10519","v":0},{"$f":"Import!M10719","v":0},{"$f":"Import!M10919","v":0}]
[22,{"$f":"Import!M9920","v":"Select"},{"$f":"Import!M10120","v":"Select"},{"$f":"Import!M10320","v":"Select"},{"$f":"Import!M10520","v":0},{"$f":"Import!M10720","v":0},{"$f":"Import!M10920","v":0}]
[23,{"$f":"Import!M9921","v":"Select"},{"$f":"Import!M10121","v":"Select"},{"$f":"Import!M10321","v":"Select"},{"$f":"Import!M10521","v":0},{"$f":"Import!M10721","v":0},{"$f":"Import!M10921","v":0}]
[24,{"$f":"Import!M9922","v":"Select"},{"$f":"Import!M10122","v":"Select"},{"$f":"Import!M10322","v":"Select"},{"$f":"Import!M10522","v":0},{"$f":"Import!M10722","v":0},{"$f":"Import!M10922","v":0}]
[25,{"$f":"Import!M9923","v":"Select"},{"$f":"Import!M10123","v":"Select"},{"$f":"Import!M10323","v":"Select"},{"$f":"Import!M10523","v":0},{"$f":"Import!M10723","v":0},{"$f":"Import!M10923","v":0}]
[26,{"$f":"Import!M9924","v":"Select"},{"$f":"Import!M10124","v":"Select"},{"$f":"Import!M10324","v":"Select"},{"$f":"Import!M10524","v":0},{"$f":"Import!M10724","v":0},{"$f":"Import!M10924","v":0}]
[27,{"$f":"Import!M9925","v":"Select"},{"$f":"Import!M10125","v":"Select"},{"$f":"Import!M10325","v":"Select"},{"$f":"Import!M10525","v":0},{"$f":"Import!M10725","v":0},{"$f":"Import!M10925","v":0}]
[28,{"$f":"Import!M9926","v":"Select"},{"$f":"Import!M10126","v":"Select"},{"$f":"Import!M10326","v":"Select"},{"$f":"Import!M10526","v":0},{"$f":"Import!M10726","v":0},{"$f":"Import!M10926","v":0}]
[29,{"$f":"Import!M9927","v":"Select"},{"$f":"Import!M10127","v":"Select"},{"$f":"Import!M10327","v":"Select"},{"$f":"Import!M10527","v":0},{"$f":"Import!M10727","v":0},{"$f":"Import!M10927","v":0}]
[30,{"$f":"Import!M9928","v":"Select"},{"$f":"Import!M10128","v":"Select"},{"$f":"Import!M10328","v":"Select"},{"$f":"Import!M10528","v":0},{"$f":"Import!M10728","v":0},{"$f":"Import!M10928","v":0}]
[31,{"$f":"Import!M9929","v":"Select"},{"$f":"Import!M10129","v":"Select"},{"$f":"Import!M10329","v":"Select"},{"$f":"Import!M10529","v":0},{"$f":"Import!M10729","v":0},{"$f":"Import!M10929","v":0}]
[32,{"$f":"Import!M9930","v":"Select"},{"$f":"Import!M10130","v":"Select"},{"$f":"Import!M10330","v":"Select"},{"$f":"Import!M10530","v":0},{"$f":"Import!M10730","v":0},{"$f":"Import!M10930","v":0}]
[33,{"$f":"Import!M9931","v":"Select"},{"$f":"Import!M10131","v":"Select"},{"$f":"Import!M10331","v":"Select"},{"$f":"Import!M10531","v":0},{"$f":"Import!M10731","v":0},{"$f":"Import!M10931","v":0}]
[34,{"$f":"Import!M9932","v":"Select"},{"$f":"Import!M10132","v":"Select"},{"$f":"Import!M10332","v":"Select"},{"$f":"Import!M10532","v":0},{"$f":"Import!M10732","v":0},{"$f":"Import!M10932","v":0}]
[35,{"$f":"Import!M9933","v":"Select"},{"$f":"Import!M10133","v":"Select"},{"$f":"Import!M10333","v":"Select"},{"$f":"Import!M10533","v":0},{"$f":"Import!M10733","v":0},{"$f":"Import!M10933","v":0}]
[36,{"$f":"Import!M9934","v":"Select"},{"$f":"Import!M10134","v":"Select"},{"$f":"Import!M10334","v":"Select"},{"$f":"Import!M10534","v":0},{"$f":"Import!M10734","v":0},{"$f":"Import!M10934","v":0}]
[37,{"$f":"Import!M9935","v":"Select"},{"$f":"Import!M10135","v":"Select"},{"$f":"Import!M10335","v":"Select"},{"$f":"Import!M10535","v":0},{"$f":"Import!M10735","v":0},{"$f":"Import!M10935","v":0}]
[38,{"$f":"Import!M9936","v":"Select"},{"$f":"Import!M10136","v":"Select"},{"$f":"Import!M10336","v":"Select"},{"$f":"Import!M10536","v":0},{"$f":"Import!M10736","v":0},{"$f":"Import!M10936","v":0}]
[39,{"$f":"Import!M9937","v":"Select"},{"$f":"Import!M10137","v":"Select"},{"$f":"Import!M10337","v":"Select"},{"$f":"Import!M10537","v":0},{"$f":"Import!M10737","v":0},{"$f":"Import!M10937","v":0}]
[40,{"$f":"Import!M9938","v":"Select"},{"$f":"Import!M10138","v":"Select"},{"$f":"Import!M10338","v":"Select"},{"$f":"Import!M10538","v":0},{"$f":"Import!M10738","v":0},{"$f":"Import!M10938","v":0}]
[41,{"$f":"Import!M9939","v":"Select"},{"$f":"Import!M10139","v":"Select"},{"$f":"Import!M10339","v":"Select"},{"$f":"Import!M10539","v":0},{"$f":"Import!M10739","v":0},{"$f":"Import!M10939","v":0}]
[42,{"$f":"Import!M9940","v":"Select"},{"$f":"Import!M10140","v":"Select"},{"$f":"Import!M10340","v":"Select"},{"$f":"Import!M10540","v":0},{"$f":"Import!M10740","v":0},{"$f":"Import!M10940","v":0}]
[43,{"$f":"Import!M9941","v":"Select"},{"$f":"Import!M10141","v":"Select"},{"$f":"Import!M10341","v":"Select"},{"$f":"Import!M10541","v":0},{"$f":"Import!M10741","v":0},{"$f":"Import!M10941","v":0}]
[44,{"$f":"Import!M9942","v":"Select"},{"$f":"Import!M10142","v":"Select"},{"$f":"Import!M10342","v":"Select"},{"$f":"Import!M10542","v":0},{"$f":"Import!M10742","v":0},{"$f":"Import!M10942","v":0}]
[45,{"$f":"Import!M9943","v":"Select"},{"$f":"Import!M10143","v":"Select"},{"$f":"Import!M10343","v":"Select"},{"$f":"Import!M10543","v":0},{"$f":"Import!M10743","v":0},{"$f":"Import!M10943","v":0}]
[46,{"$f":"Import!M9944","v":"Select"},{"$f":"Import!M10144","v":"Select"},{"$f":"Import!M10344","v":"Select"},{"$f":"Import!M10544","v":0},{"$f":"Import!M10744","v":0},{"$f":"Import!M10944","v":0}]
[47,{"$f":"Import!M9945","v":"Select"},{"$f":"Import!M10145","v":"Select"},{"$f":"Import!M10345","v":"Select"},{"$f":"Import!M10545","v":0},{"$f":"Import!M10745","v":0},{"$f":"Import!M10945","v":0}]
[48,{"$f":"Import!M9946","v":"Select"},{"$f":"Import!M10146","v":"Select"},{"$f":"Import!M10346","v":"Select"},{"$f":"Import!M10546","v":0},{"$f":"Import!M10746","v":0},{"$f":"Import!M10946","v":0}]
[49,{"$f":"Import!M9947","v":"Select"},{"$f":"Import!M10147","v":"Select"},{"$f":"Import!M10347","v":"Select"},{"$f":"Import!M10547","v":0},{"$f":"Import!M10747","v":0},{"$f":"Import!M10947","v":0}]
[50,{"$f":"Import!M9948","v":"Select"},{"$f":"Import!M10148","v":"Select"},{"$f":"Import!M10348","v":"Select"},{"$f":"Import!M10548","v":0},{"$f":"Import!M10748","v":0},{"$f":"Import!M10948","v":0}]
[51,{"$f":"Import!M9949","v":"Select"},{"$f":"Import!M10149","v":"Select"},{"$f":"Import!M10349","v":"Select"},{"$f":"Import!M10549","v":0},{"$f":"Import!M10749","v":0},{"$f":"Import!M10949","v":0}]
[52,{"$f":"Import!M9950","v":"Select"},{"$f":"Import!M10150","v":"Select"},{"$f":"Import!M10350","v":"Select"},{"$f":"Import!M10550","v":0},{"$f":"Import!M10750","v":0},{"$f":"Import!M10950","v":0}]
[53,{"$f":"Import!M9951","v":"Select"},{"$f":"Import!M10151","v":"Select"},{"$f":"Import!M10351","v":"Select"},{"$f":"Import!M10551","v":0},{"$f":"Import!M10751","v":0},{"$f":"Import!M10951","v":0}]
[54,{"$f":"Import!M9952","v":"Select"},{"$f":"Import!M10152","v":"Select"},{"$f":"Import!M10352","v":"Select"},{"$f":"Import!M10552","v":0},{"$f":"Import!M10752","v":0},{"$f":"Import!M10952","v":0}]
[55,{"$f":"Import!M9953","v":"Select"},{"$f":"Import!M10153","v":"Select"},{"$f":"Import!M10353","v":"Select"},{"$f":"Import!M10553","v":0},{"$f":"Import!M10753","v":0},{"$f":"Import!M10953","v":0}]
[56,{"$f":"Import!M9954","v":"Select"},{"$f":"Import!M10154","v":"Select"},{"$f":"Import!M10354","v":"Select"},{"$f":"Import!M10554","v":0},{"$f":"Import!M10754","v":0},{"$f":"Import!M10954","v":0}]
[57,{"$f":"Import!M9955","v":"Select"},{"$f":"Import!M10155","v":"Select"},{"$f":"Import!M10355","v":"Select"},{"$f":"Import!M10555","v":0},{"$f":"Import!M10755","v":0},{"$f":"Import!M10955","v":0}]
[58,{"$f":"Import!M9956","v":"Select"},{"$f":"Import!M10156","v":"Select"},{"$f":"Import!M10356","v":"Select"},{"$f":"Import!M10556","v":0},{"$f":"Import!M10756","v":0},{"$f":"Import!M10956","v":0}]
[59,{"$f":"Import!M9957","v":"Select"},{"$f":"Import!M10157","v":"Select"},{"$f":"Import!M10357","v":"Select"},{"$f":"Import!M10557","v":0},{"$f":"Import!M10757","v":0},{"$f":"Import!M10957","v":0}]
[60,{"$f":"Import!M9958","v":"Select"},{"$f":"Import!M10158","v":"Select"},{"$f":"Import!M10358","v":"Select"},{"$f":"Import!M10558","v":0},{"$f":"Import!M10758","v":0},{"$f":"Import!M10958","v":0}]
[61,{"$f":"Import!M9959","v":"Select"},{"$f":"Import!M10159","v":"Select"},{"$f":"Import!M10359","v":"Select"},{"$f":"Import!M10559","v":0},{"$f":"Import!M10759","v":0},{"$f":"Import!M10959","v":0}]
[62,{"$f":"Import!M9960","v":"Select"},{"$f":"Import!M10160","v":"Select"},{"$f":"Import!M10360","v":"Select"},{"$f":"Import!M10560","v":0},{"$f":"Import!M10760","v":0},{"$f":"Import!M10960","v":0}]
[63,{"$f":"Import!M9961","v":"Select"},{"$f":"Import!M10161","v":"Select"},{"$f":"Import!M10361","v":"Select"},{"$f":"Import!M10561","v":0},{"$f":"Import!M10761","v":0},{"$f":"Import!M10961","v":0}]
[64,{"$f":"Import!M9962","v":"Select"},{"$f":"Import!M10162","v":"Select"},{"$f":"Import!M10362","v":"Select"},{"$f":"Import!M10562","v":0},{"$f":"Import!M10762","v":0},{"$f":"Import!M10962","v":0}]
[65,{"$f":"Import!M9963","v":"Select"},{"$f":"Import!M10163","v":"Select"},{"$f":"Import!M10363","v":"Select"},{"$f":"Import!M10563","v":0},{"$f":"Import!M10763","v":0},{"$f":"Import!M10963","v":0}]
[66,{"$f":"Import!M9964","v":"Select"},{"$f":"Import!M10164","v":"Select"},{"$f":"Import!M10364","v":"Select"},{"$f":"Import!M10564","v":0},{"$f":"Import!M10764","v":0},{"$f":"Import!M10964","v":0}]
[{"$f":"A76+1","v":67},{"$f":"Import!M9965","v":"Select"},{"$f":"Import!M10165","v":"Select"},{"$f":"Import!M10365","v":"Select"},{"$f":"Import!M10565","v":0},{"$f":"Import!M10765","v":0},{"$f":"Import!M10965","v":0}]
[68,{"$f":"Import!M9966","v":"Select"},{"$f":"Import!M10166","v":"Select"},{"$f":"Import!M10366","v":"Select"},{"$f":"Import!M10566","v":0},{"$f":"Import!M10766","v":0},{"$f":"Import!M10966","v":0}]
[69,{"$f":"Import!M9967","v":"Select"},{"$f":"Import!M10167","v":"Select"},{"$f":"Import!M10367","v":"Select"},{"$f":"Import!M10567","v":0},{"$f":"Import!M10767","v":0},{"$f":"Import!M10967","v":0}]
[70,{"$f":"Import!M9968","v":"Select"},{"$f":"Import!M10168","v":"Select"},{"$f":"Import!M10368","v":"Select"},{"$f":"Import!M10568","v":0},{"$f":"Import!M10768","v":0},{"$f":"Import!M10968","v":0}]
[71,{"$f":"Import!M9969","v":"Select"},{"$f":"Import!M10169","v":"Select"},{"$f":"Import!M10369","v":"Select"},{"$f":"Import!M10569","v":0},{"$f":"Import!M10769","v":0},{"$f":"Import!M10969","v":0}]
[72,{"$f":"Import!M9970","v":"Select"},{"$f":"Import!M10170","v":"Select"},{"$f":"Import!M10370","v":"Select"},{"$f":"Import!M10570","v":0},{"$f":"Import!M10770","v":0},{"$f":"Import!M10970","v":0}]
[73,{"$f":"Import!M9971","v":"Select"},{"$f":"Import!M10171","v":"Select"},{"$f":"Import!M10371","v":"Select"},{"$f":"Import!M10571","v":0},{"$f":"Import!M10771","v":0},{"$f":"Import!M10971","v":0}]
[74,{"$f":"Import!M9972","v":"Select"},{"$f":"Import!M10172","v":"Select"},{"$f":"Import!M10372","v":"Select"},{"$f":"Import!M10572","v":0},{"$f":"Import!M10772","v":0},{"$f":"Import!M10972","v":0}]
[75,{"$f":"Import!M9973","v":"Select"},{"$f":"Import!M10173","v":"Select"},{"$f":"Import!M10373","v":"Select"},{"$f":"Import!M10573","v":0},{"$f":"Import!M10773","v":0},{"$f":"Import!M10973","v":0}]
[76,{"$f":"Import!M9974","v":"Select"},{"$f":"Import!M10174","v":"Select"},{"$f":"Import!M10374","v":"Select"},{"$f":"Import!M10574","v":0},{"$f":"Import!M10774","v":0},{"$f":"Import!M10974","v":0}]
[77,{"$f":"Import!M9975","v":"Select"},{"$f":"Import!M10175","v":"Select"},{"$f":"Import!M10375","v":"Select"},{"$f":"Import!M10575","v":0},{"$f":"Import!M10775","v":0},{"$f":"Import!M10975","v":0}]
[78,{"$f":"Import!M9976","v":"Select"},{"$f":"Import!M10176","v":"Select"},{"$f":"Import!M10376","v":"Select"},{"$f":"Import!M10576","v":0},{"$f":"Import!M10776","v":0},{"$f":"Import!M10976","v":0}]
[79,{"$f":"Import!M9977","v":"Select"},{"$f":"Import!M10177","v":"Select"},{"$f":"Import!M10377","v":"Select"},{"$f":"Import!M10577","v":0},{"$f":"Import!M10777","v":0},{"$f":"Import!M10977","v":0}]
[80,{"$f":"Import!M9978","v":"Select"},{"$f":"Import!M10178","v":"Select"},{"$f":"Import!M10378","v":"Select"},{"$f":"Import!M10578","v":0},{"$f":"Import!M10778","v":0},{"$f":"Import!M10978","v":0}]
[81,{"$f":"Import!M9979","v":"Select"},{"$f":"Import!M10179","v":"Select"},{"$f":"Import!M10379","v":"Select"},{"$f":"Import!M10579","v":0},{"$f":"Import!M10779","v":0},{"$f":"Import!M10979","v":0}]
[82,{"$f":"Import!M9980","v":"Select"},{"$f":"Import!M10180","v":"Select"},{"$f":"Import!M10380","v":"Select"},{"$f":"Import!M10580","v":0},{"$f":"Import!M10780","v":0},{"$f":"Import!M10980","v":0}]
[83,{"$f":"Import!M9981","v":"Select"},{"$f":"Import!M10181","v":"Select"},{"$f":"Import!M10381","v":"Select"},{"$f":"Import!M10581","v":0},{"$f":"Import!M10781","v":0},{"$f":"Import!M10981","v":0}]
[84,{"$f":"Import!M9982","v":"Select"},{"$f":"Import!M10182","v":"Select"},{"$f":"Import!M10382","v":"Select"},{"$f":"Import!M10582","v":0},{"$f":"Import!M10782","v":0},{"$f":"Import!M10982","v":0}]
[85,{"$f":"Import!M9983","v":"Select"},{"$f":"Import!M10183","v":"Select"},{"$f":"Import!M10383","v":"Select"},{"$f":"Import!M10583","v":0},{"$f":"Import!M10783","v":0},{"$f":"Import!M10983","v":0}]
[86,{"$f":"Import!M9984","v":"Select"},{"$f":"Import!M10184","v":"Select"},{"$f":"Import!M10384","v":"Select"},{"$f":"Import!M10584","v":0},{"$f":"Import!M10784","v":0},{"$f":"Import!M10984","v":0}]
[87,{"$f":"Import!M9985","v":"Select"},{"$f":"Import!M10185","v":"Select"},{"$f":"Import!M10385","v":"Select"},{"$f":"Import!M10585","v":0},{"$f":"Import!M10785","v":0},{"$f":"Import!M10985","v":0}]
[88,{"$f":"Import!M9986","v":"Select"},{"$f":"Import!M10186","v":"Select"},{"$f":"Import!M10386","v":"Select"},{"$f":"Import!M10586","v":0},{"$f":"Import!M10786","v":0},{"$f":"Import!M10986","v":0}]
[89,{"$f":"Import!M9987","v":"Select"},{"$f":"Import!M10187","v":"Select"},{"$f":"Import!M10387","v":"Select"},{"$f":"Import!M10587","v":0},{"$f":"Import!M10787","v":0},{"$f":"Import!M10987","v":0}]
[90,{"$f":"Import!M9988","v":"Select"},{"$f":"Import!M10188","v":"Select"},{"$f":"Import!M10388","v":"Select"},{"$f":"Import!M10588","v":0},{"$f":"Import!M10788","v":0},{"$f":"Import!M10988","v":0}]
[91,{"$f":"Import!M9989","v":"Select"},{"$f":"Import!M10189","v":"Select"},{"$f":"Import!M10389","v":"Select"},{"$f":"Import!M10589","v":0},{"$f":"Import!M10789","v":0},{"$f":"Import!M10989","v":0}]
[92,{"$f":"Import!M9990","v":"Select"},{"$f":"Import!M10190","v":"Select"},{"$f":"Import!M10390","v":"Select"},{"$f":"Import!M10590","v":0},{"$f":"Import!M10790","v":0},{"$f":"Import!M10990","v":0}]
[93,{"$f":"Import!M9991","v":"Select"},{"$f":"Import!M10191","v":"Select"},{"$f":"Import!M10391","v":"Select"},{"$f":"Import!M10591","v":0},{"$f":"Import!M10791","v":0},{"$f":"Import!M10991","v":0}]
[94,{"$f":"Import!M9992","v":"Select"},{"$f":"Import!M10192","v":"Select"},{"$f":"Import!M10392","v":"Select"},{"$f":"Import!M10592","v":0},{"$f":"Import!M10792","v":0},{"$f":"Import!M10992","v":0}]
[95,{"$f":"Import!M9993","v":"Select"},{"$f":"Import!M10193","v":"Select"},{"$f":"Import!M10393","v":"Select"},{"$f":"Import!M10593","v":0},{"$f":"Import!M10793","v":0},{"$f":"Import!M10993","v":0}]
[96,{"$f":"Import!M9994","v":"Select"},{"$f":"Import!M10194","v":"Select"},{"$f":"Import!M10394","v":"Select"},{"$f":"Import!M10594","v":0},{"$f":"Import!M10794","v":0},{"$f":"Import!M10994","v":0}]
[97,{"$f":"Import!M9995","v":"Select"},{"$f":"Import!M10195","v":"Select"},{"$f":"Import!M10395","v":"Select"},{"$f":"Import!M10595","v":0},{"$f":"Import!M10795","v":0},{"$f":"Import!M10995","v":0}]
[98,{"$f":"Import!M9996","v":"Select"},{"$f":"Import!M10196","v":"Select"},{"$f":"Import!M10396","v":"Select"},{"$f":"Import!M10596","v":0},{"$f":"Import!M10796","v":0},{"$f":"Import!M10996","v":0}]
[99,{"$f":"Import!M9997","v":"Select"},{"$f":"Import!M10197","v":"Select"},{"$f":"Import!M10397","v":"Select"},{"$f":"Import!M10597","v":0},{"$f":"Import!M10797","v":0},{"$f":"Import!M10997","v":0}]
[100,{"$f":"Import!M9998","v":"Select"},{"$f":"Import!M10198","v":"Select"},{"$f":"Import!M10398","v":"Select"},{"$f":"Import!M10598","v":0},{"$f":"Import!M10798","v":0},{"$f":"Import!M10998","v":0}]
[101,{"$f":"Import!M9999","v":"Select"},{"$f":"Import!M10199","v":"Select"},{"$f":"Import!M10399","v":"Select"},{"$f":"Import!M10599","v":0},{"$f":"Import!M10799","v":0},{"$f":"Import!M10999","v":0}]
[102,{"$f":"Import!M10000","v":"Select"},{"$f":"Import!M10200","v":"Select"},{"$f":"Import!M10400","v":"Select"},{"$f":"Import!M10600","v":0},{"$f":"Import!M10800","v":0},{"$f":"Import!M11000","v":0}]
[103,{"$f":"Import!M10001","v":"Select"},{"$f":"Import!M10201","v":"Select"},{"$f":"Import!M10401","v":"Select"},{"$f":"Import!M10601","v":0},{"$f":"Import!M10801","v":0},{"$f":"Import!M11001","v":0}]
[104,{"$f":"Import!M10002","v":"Select"},{"$f":"Import!M10202","v":"Select"},{"$f":"Import!M10402","v":"Select"},{"$f":"Import!M10602","v":0},{"$f":"Import!M10802","v":0},{"$f":"Import!M11002","v":0}]
[105,{"$f":"Import!M10003","v":"Select"},{"$f":"Import!M10203","v":"Select"},{"$f":"Import!M10403","v":"Select"},{"$f":"Import!M10603","v":0},{"$f":"Import!M10803","v":0},{"$f":"Import!M11003","v":0}]
[106,{"$f":"Import!M10004","v":"Select"},{"$f":"Import!M10204","v":"Select"},{"$f":"Import!M10404","v":"Select"},{"$f":"Import!M10604","v":0},{"$f":"Import!M10804","v":0},{"$f":"Import!M11004","v":0}]
[107,{"$f":"Import!M10005","v":"Select"},{"$f":"Import!M10205","v":"Select"},{"$f":"Import!M10405","v":"Select"},{"$f":"Import!M10605","v":0},{"$f":"Import!M10805","v":0},{"$f":"Import!M11005","v":0}]
[108,{"$f":"Import!M10006","v":"Select"},{"$f":"Import!M10206","v":"Select"},{"$f":"Import!M10406","v":"Select"},{"$f":"Import!M10606","v":0},{"$f":"Import!M10806","v":0},{"$f":"Import!M11006","v":0}]
[109,{"$f":"Import!M10007","v":"Select"},{"$f":"Import!M10207","v":"Select"},{"$f":"Import!M10407","v":"Select"},{"$f":"Import!M10607","v":0},{"$f":"Import!M10807","v":0},{"$f":"Import!M11007","v":0}]
[110,{"$f":"Import!M10008","v":"Select"},{"$f":"Import!M10208","v":"Select"},{"$f":"Import!M10408","v":"Select"},{"$f":"Import!M10608","v":0},{"$f":"Import!M10808","v":0},{"$f":"Import!M11008","v":0}]
[111,{"$f":"Import!M10009","v":"Select"},{"$f":"Import!M10209","v":"Select"},{"$f":"Import!M10409","v":"Select"},{"$f":"Import!M10609","v":0},{"$f":"Import!M10809","v":0},{"$f":"Import!M11009","v":0}]
[112,{"$f":"Import!M10010","v":"Select"},{"$f":"Import!M10210","v":"Select"},{"$f":"Import!M10410","v":"Select"},{"$f":"Import!M10610","v":0},{"$f":"Import!M10810","v":0},{"$f":"Import!M11010","v":0}]
[113,{"$f":"Import!M10011","v":"Select"},{"$f":"Import!M10211","v":"Select"},{"$f":"Import!M10411","v":"Select"},{"$f":"Import!M10611","v":0},{"$f":"Import!M10811","v":0},{"$f":"Import!M11011","v":0}]
[114,{"$f":"Import!M10012","v":"Select"},{"$f":"Import!M10212","v":"Select"},{"$f":"Import!M10412","v":"Select"},{"$f":"Import!M10612","v":0},{"$f":"Import!M10812","v":0},{"$f":"Import!M11012","v":0}]
[115,{"$f":"Import!M10013","v":"Select"},{"$f":"Import!M10213","v":"Select"},{"$f":"Import!M10413","v":"Select"},{"$f":"Import!M10613","v":0},{"$f":"Import!M10813","v":0},{"$f":"Import!M11013","v":0}]
[116,{"$f":"Import!M10014","v":"Select"},{"$f":"Import!M10214","v":"Select"},{"$f":"Import!M10414","v":"Select"},{"$f":"Import!M10614","v":0},{"$f":"Import!M10814","v":0},{"$f":"Import!M11014","v":0}]
[117,{"$f":"Import!M10015","v":"Select"},{"$f":"Import!M10215","v":"Select"},{"$f":"Import!M10415","v":"Select"},{"$f":"Import!M10615","v":0},{"$f":"Import!M10815","v":0},{"$f":"Import!M11015","v":0}]
[118,{"$f":"Import!M10016","v":"Select"},{"$f":"Import!M10216","v":"Select"},{"$f":"Import!M10416","v":"Select"},{"$f":"Import!M10616","v":0},{"$f":"Import!M10816","v":0},{"$f":"Import!M11016","v":0}]
[119,{"$f":"Import!M10017","v":"Select"},{"$f":"Import!M10217","v":"Select"},{"$f":"Import!M10417","v":"Select"},{"$f":"Import!M10617","v":0},{"$f":"Import!M10817","v":0},{"$f":"Import!M11017","v":0}]
[120,{"$f":"Import!M10018","v":"Select"},{"$f":"Import!M10218","v":"Select"},{"$f":"Import!M10418","v":"Select"},{"$f":"Import!M10618","v":0},{"$f":"Import!M10818","v":0},{"$f":"Import!M11018","v":0}]
[121,{"$f":"Import!M10019","v":"Select"},{"$f":"Import!M10219","v":"Select"},{"$f":"Import!M10419","v":"Select"},{"$f":"Import!M10619","v":0},{"$f":"Import!M10819","v":0},{"$f":"Import!M11019","v":0}]
[122,{"$f":"Import!M10020","v":"Select"},{"$f":"Import!M10220","v":"Select"},{"$f":"Import!M10420","v":"Select"},{"$f":"Import!M10620","v":0},{"$f":"Import!M10820","v":0},{"$f":"Import!M11020","v":0}]
[123,{"$f":"Import!M10021","v":"Select"},{"$f":"Import!M10221","v":"Select"},{"$f":"Import!M10421","v":"Select"},{"$f":"Import!M10621","v":0},{"$f":"Import!M10821","v":0},{"$f":"Import!M11021","v":0}]
[124,{"$f":"Import!M10022","v":"Select"},{"$f":"Import!M10222","v":"Select"},{"$f":"Import!M10422","v":"Select"},{"$f":"Import!M10622","v":0},{"$f":"Import!M10822","v":0},{"$f":"Import!M11022","v":0}]
[125,{"$f":"Import!M10023","v":"Select"},{"$f":"Import!M10223","v":"Select"},{"$f":"Import!M10423","v":"Select"},{"$f":"Import!M10623","v":0},{"$f":"Import!M10823","v":0},{"$f":"Import!M11023","v":0}]
[126,{"$f":"Import!M10024","v":"Select"},{"$f":"Import!M10224","v":"Select"},{"$f":"Import!M10424","v":"Select"},{"$f":"Import!M10624","v":0},{"$f":"Import!M10824","v":0},{"$f":"Import!M11024","v":0}]
[127,{"$f":"Import!M10025","v":"Select"},{"$f":"Import!M10225","v":"Select"},{"$f":"Import!M10425","v":"Select"},{"$f":"Import!M10625","v":0},{"$f":"Import!M10825","v":0},{"$f":"Import!M11025","v":0}]
[128,{"$f":"Import!M10026","v":"Select"},{"$f":"Import!M10226","v":"Select"},{"$f":"Import!M10426","v":"Select"},{"$f":"Import!M10626","v":0},{"$f":"Import!M10826","v":0},{"$f":"Import!M11026","v":0}]
[129,{"$f":"Import!M10027","v":"Select"},{"$f":"Import!M10227","v":"Select"},{"$f":"Import!M10427","v":"Select"},{"$f":"Import!M10627","v":0},{"$f":"Import!M10827","v":0},{"$f":"Import!M11027","v":0}]
[130,{"$f":"Import!M10028","v":"Select"},{"$f":"Import!M10228","v":"Select"},{"$f":"Import!M10428","v":"Select"},{"$f":"Import!M10628","v":0},{"$f":"Import!M10828","v":0},{"$f":"Import!M11028","v":0}]
[{"$f":"A140+1","v":131},{"$f":"Import!M10029","v":"Select"},{"$f":"Import!M10229","v":"Select"},{"$f":"Import!M10429","v":"Select"},{"$f":"Import!M10629","v":0},{"$f":"Import!M10829","v":0},{"$f":"Import!M11029","v":0}]
[132,{"$f":"Import!M10030","v":"Select"},{"$f":"Import!M10230","v":"Select"},{"$f":"Import!M10430","v":"Select"},{"$f":"Import!M10630","v":0},{"$f":"Import!M10830","v":0},{"$f":"Import!M11030","v":0}]
[133,{"$f":"Import!M10031","v":"Select"},{"$f":"Import!M10231","v":"Select"},{"$f":"Import!M10431","v":"Select"},{"$f":"Import!M10631","v":0},{"$f":"Import!M10831","v":0},{"$f":"Import!M11031","v":0}]
[134,{"$f":"Import!M10032","v":"Select"},{"$f":"Import!M10232","v":"Select"},{"$f":"Import!M10432","v":"Select"},{"$f":"Import!M10632","v":0},{"$f":"Import!M10832","v":0},{"$f":"Import!M11032","v":0}]
[135,{"$f":"Import!M10033","v":"Select"},{"$f":"Import!M10233","v":"Select"},{"$f":"Import!M10433","v":"Select"},{"$f":"Import!M10633","v":0},{"$f":"Import!M10833","v":0},{"$f":"Import!M11033","v":0}]
[136,{"$f":"Import!M10034","v":"Select"},{"$f":"Import!M10234","v":"Select"},{"$f":"Import!M10434","v":"Select"},{"$f":"Import!M10634","v":0},{"$f":"Import!M10834","v":0},{"$f":"Import!M11034","v":0}]
[137,{"$f":"Import!M10035","v":"Select"},{"$f":"Import!M10235","v":"Select"},{"$f":"Import!M10435","v":"Select"},{"$f":"Import!M10635","v":0},{"$f":"Import!M10835","v":0},{"$f":"Import!M11035","v":0}]
[138,{"$f":"Import!M10036","v":"Select"},{"$f":"Import!M10236","v":"Select"},{"$f":"Import!M10436","v":"Select"},{"$f":"Import!M10636","v":0},{"$f":"Import!M10836","v":0},{"$f":"Import!M11036","v":0}]
[139,{"$f":"Import!M10037","v":"Select"},{"$f":"Import!M10237","v":"Select"},{"$f":"Import!M10437","v":"Select"},{"$f":"Import!M10637","v":0},{"$f":"Import!M10837","v":0},{"$f":"Import!M11037","v":0}]
[140,{"$f":"Import!M10038","v":"Select"},{"$f":"Import!M10238","v":"Select"},{"$f":"Import!M10438","v":"Select"},{"$f":"Import!M10638","v":0},{"$f":"Import!M10838","v":0},{"$f":"Import!M11038","v":0}]
[141,{"$f":"Import!M10039","v":"Select"},{"$f":"Import!M10239","v":"Select"},{"$f":"Import!M10439","v":"Select"},{"$f":"Import!M10639","v":0},{"$f":"Import!M10839","v":0},{"$f":"Import!M11039","v":0}]
[142,{"$f":"Import!M10040","v":"Select"},{"$f":"Import!M10240","v":"Select"},{"$f":"Import!M10440","v":"Select"},{"$f":"Import!M10640","v":0},{"$f":"Import!M10840","v":0},{"$f":"Import!M11040","v":0}]
[143,{"$f":"Import!M10041","v":"Select"},{"$f":"Import!M10241","v":"Select"},{"$f":"Import!M10441","v":"Select"},{"$f":"Import!M10641","v":0},{"$f":"Import!M10841","v":0},{"$f":"Import!M11041","v":0}]
[144,{"$f":"Import!M10042","v":"Select"},{"$f":"Import!M10242","v":"Select"},{"$f":"Import!M10442","v":"Select"},{"$f":"Import!M10642","v":0},{"$f":"Import!M10842","v":0},{"$f":"Import!M11042","v":0}]
[145,{"$f":"Import!M10043","v":"Select"},{"$f":"Import!M10243","v":"Select"},{"$f":"Import!M10443","v":"Select"},{"$f":"Import!M10643","v":0},{"$f":"Import!M10843","v":0},{"$f":"Import!M11043","v":0}]
[146,{"$f":"Import!M10044","v":"Select"},{"$f":"Import!M10244","v":"Select"},{"$f":"Import!M10444","v":"Select"},{"$f":"Import!M10644","v":0},{"$f":"Import!M10844","v":0},{"$f":"Import!M11044","v":0}]
[147,{"$f":"Import!M10045","v":"Select"},{"$f":"Import!M10245","v":"Select"},{"$f":"Import!M10445","v":"Select"},{"$f":"Import!M10645","v":0},{"$f":"Import!M10845","v":0},{"$f":"Import!M11045","v":0}]
[148,{"$f":"Import!M10046","v":"Select"},{"$f":"Import!M10246","v":"Select"},{"$f":"Import!M10446","v":"Select"},{"$f":"Import!M10646","v":0},{"$f":"Import!M10846","v":0},{"$f":"Import!M11046","v":0}]
[149,{"$f":"Import!M10047","v":"Select"},{"$f":"Import!M10247","v":"Select"},{"$f":"Import!M10447","v":"Select"},{"$f":"Import!M10647","v":0},{"$f":"Import!M10847","v":0},{"$f":"Import!M11047","v":0}]
[150,{"$f":"Import!M10048","v":"Select"},{"$f":"Import!M10248","v":"Select"},{"$f":"Import!M10448","v":"Select"},{"$f":"Import!M10648","v":0},{"$f":"Import!M10848","v":0},{"$f":"Import!M11048","v":0}]
[151,{"$f":"Import!M10049","v":"Select"},{"$f":"Import!M10249","v":"Select"},{"$f":"Import!M10449","v":"Select"},{"$f":"Import!M10649","v":0},{"$f":"Import!M10849","v":0},{"$f":"Import!M11049","v":0}]
[152,{"$f":"Import!M10050","v":"Select"},{"$f":"Import!M10250","v":"Select"},{"$f":"Import!M10450","v":"Select"},{"$f":"Import!M10650","v":0},{"$f":"Import!M10850","v":0},{"$f":"Import!M11050","v":0}]
[153,{"$f":"Import!M10051","v":"Select"},{"$f":"Import!M10251","v":"Select"},{"$f":"Import!M10451","v":"Select"},{"$f":"Import!M10651","v":0},{"$f":"Import!M10851","v":0},{"$f":"Import!M11051","v":0}]
[154,{"$f":"Import!M10052","v":"Select"},{"$f":"Import!M10252","v":"Select"},{"$f":"Import!M10452","v":"Select"},{"$f":"Import!M10652","v":0},{"$f":"Import!M10852","v":0},{"$f":"Import!M11052","v":0}]
[155,{"$f":"Import!M10053","v":"Select"},{"$f":"Import!M10253","v":"Select"},{"$f":"Import!M10453","v":"Select"},{"$f":"Import!M10653","v":0},{"$f":"Import!M10853","v":0},{"$f":"Import!M11053","v":0}]
[156,{"$f":"Import!M10054","v":"Select"},{"$f":"Import!M10254","v":"Select"},{"$f":"Import!M10454","v":"Select"},{"$f":"Import!M10654","v":0},{"$f":"Import!M10854","v":0},{"$f":"Import!M11054","v":0}]
[157,{"$f":"Import!M10055","v":"Select"},{"$f":"Import!M10255","v":"Select"},{"$f":"Import!M10455","v":"Select"},{"$f":"Import!M10655","v":0},{"$f":"Import!M10855","v":0},{"$f":"Import!M11055","v":0}]
[158,{"$f":"Import!M10056","v":"Select"},{"$f":"Import!M10256","v":"Select"},{"$f":"Import!M10456","v":"Select"},{"$f":"Import!M10656","v":0},{"$f":"Import!M10856","v":0},{"$f":"Import!M11056","v":0}]
[159,{"$f":"Import!M10057","v":"Select"},{"$f":"Import!M10257","v":"Select"},{"$f":"Import!M10457","v":"Select"},{"$f":"Import!M10657","v":0},{"$f":"Import!M10857","v":0},{"$f":"Import!M11057","v":0}]
[160,{"$f":"Import!M10058","v":"Select"},{"$f":"Import!M10258","v":"Select"},{"$f":"Import!M10458","v":"Select"},{"$f":"Import!M10658","v":0},{"$f":"Import!M10858","v":0},{"$f":"Import!M11058","v":0}]
[161,{"$f":"Import!M10059","v":"Select"},{"$f":"Import!M10259","v":"Select"},{"$f":"Import!M10459","v":"Select"},{"$f":"Import!M10659","v":0},{"$f":"Import!M10859","v":0},{"$f":"Import!M11059","v":0}]
[162,{"$f":"Import!M10060","v":"Select"},{"$f":"Import!M10260","v":"Select"},{"$f":"Import!M10460","v":"Select"},{"$f":"Import!M10660","v":0},{"$f":"Import!M10860","v":0},{"$f":"Import!M11060","v":0}]
[163,{"$f":"Import!M10061","v":"Select"},{"$f":"Import!M10261","v":"Select"},{"$f":"Import!M10461","v":"Select"},{"$f":"Import!M10661","v":0},{"$f":"Import!M10861","v":0},{"$f":"Import!M11061","v":0}]
[164,{"$f":"Import!M10062","v":"Select"},{"$f":"Import!M10262","v":"Select"},{"$f":"Import!M10462","v":"Select"},{"$f":"Import!M10662","v":0},{"$f":"Import!M10862","v":0},{"$f":"Import!M11062","v":0}]
[165,{"$f":"Import!M10063","v":"Select"},{"$f":"Import!M10263","v":"Select"},{"$f":"Import!M10463","v":"Select"},{"$f":"Import!M10663","v":0},{"$f":"Import!M10863","v":0},{"$f":"Import!M11063","v":0}]
[166,{"$f":"Import!M10064","v":"Select"},{"$f":"Import!M10264","v":"Select"},{"$f":"Import!M10464","v":"Select"},{"$f":"Import!M10664","v":0},{"$f":"Import!M10864","v":0},{"$f":"Import!M11064","v":0}]
[167,{"$f":"Import!M10065","v":"Select"},{"$f":"Import!M10265","v":"Select"},{"$f":"Import!M10465","v":"Select"},{"$f":"Import!M10665","v":0},{"$f":"Import!M10865","v":0},{"$f":"Import!M11065","v":0}]
[168,{"$f":"Import!M10066","v":"Select"},{"$f":"Import!M10266","v":"Select"},{"$f":"Import!M10466","v":"Select"},{"$f":"Import!M10666","v":0},{"$f":"Import!M10866","v":0},{"$f":"Import!M11066","v":0}]
[169,{"$f":"Import!M10067","v":"Select"},{"$f":"Import!M10267","v":"Select"},{"$f":"Import!M10467","v":"Select"},{"$f":"Import!M10667","v":0},{"$f":"Import!M10867","v":0},{"$f":"Import!M11067","v":0}]
[170,{"$f":"Import!M10068","v":"Select"},{"$f":"Import!M10268","v":"Select"},{"$f":"Import!M10468","v":"Select"},{"$f":"Import!M10668","v":0},{"$f":"Import!M10868","v":0},{"$f":"Import!M11068","v":0}]
[171,{"$f":"Import!M10069","v":"Select"},{"$f":"Import!M10269","v":"Select"},{"$f":"Import!M10469","v":"Select"},{"$f":"Import!M10669","v":0},{"$f":"Import!M10869","v":0},{"$f":"Import!M11069","v":0}]
[172,{"$f":"Import!M10070","v":"Select"},{"$f":"Import!M10270","v":"Select"},{"$f":"Import!M10470","v":"Select"},{"$f":"Import!M10670","v":0},{"$f":"Import!M10870","v":0},{"$f":"Import!M11070","v":0}]
[173,{"$f":"Import!M10071","v":"Select"},{"$f":"Import!M10271","v":"Select"},{"$f":"Import!M10471","v":"Select"},{"$f":"Import!M10671","v":0},{"$f":"Import!M10871","v":0},{"$f":"Import!M11071","v":0}]
[174,{"$f":"Import!M10072","v":"Select"},{"$f":"Import!M10272","v":"Select"},{"$f":"Import!M10472","v":"Select"},{"$f":"Import!M10672","v":0},{"$f":"Import!M10872","v":0},{"$f":"Import!M11072","v":0}]
[175,{"$f":"Import!M10073","v":"Select"},{"$f":"Import!M10273","v":"Select"},{"$f":"Import!M10473","v":"Select"},{"$f":"Import!M10673","v":0},{"$f":"Import!M10873","v":0},{"$f":"Import!M11073","v":0}]
[176,{"$f":"Import!M10074","v":"Select"},{"$f":"Import!M10274","v":"Select"},{"$f":"Import!M10474","v":"Select"},{"$f":"Import!M10674","v":0},{"$f":"Import!M10874","v":0},{"$f":"Import!M11074","v":0}]
[177,{"$f":"Import!M10075","v":"Select"},{"$f":"Import!M10275","v":"Select"},{"$f":"Import!M10475","v":"Select"},{"$f":"Import!M10675","v":0},{"$f":"Import!M10875","v":0},{"$f":"Import!M11075","v":0}]
[178,{"$f":"Import!M10076","v":"Select"},{"$f":"Import!M10276","v":"Select"},{"$f":"Import!M10476","v":"Select"},{"$f":"Import!M10676","v":0},{"$f":"Import!M10876","v":0},{"$f":"Import!M11076","v":0}]
[179,{"$f":"Import!M10077","v":"Select"},{"$f":"Import!M10277","v":"Select"},{"$f":"Import!M10477","v":"Select"},{"$f":"Import!M10677","v":0},{"$f":"Import!M10877","v":0},{"$f":"Import!M11077","v":0}]
[180,{"$f":"Import!M10078","v":"Select"},{"$f":"Import!M10278","v":"Select"},{"$f":"Import!M10478","v":"Select"},{"$f":"Import!M10678","v":0},{"$f":"Import!M10878","v":0},{"$f":"Import!M11078","v":0}]
[181,{"$f":"Import!M10079","v":"Select"},{"$f":"Import!M10279","v":"Select"},{"$f":"Import!M10479","v":"Select"},{"$f":"Import!M10679","v":0},{"$f":"Import!M10879","v":0},{"$f":"Import!M11079","v":0}]
[182,{"$f":"Import!M10080","v":"Select"},{"$f":"Import!M10280","v":"Select"},{"$f":"Import!M10480","v":"Select"},{"$f":"Import!M10680","v":0},{"$f":"Import!M10880","v":0},{"$f":"Import!M11080","v":0}]
[183,{"$f":"Import!M10081","v":"Select"},{"$f":"Import!M10281","v":"Select"},{"$f":"Import!M10481","v":"Select"},{"$f":"Import!M10681","v":0},{"$f":"Import!M10881","v":0},{"$f":"Import!M11081","v":0}]
[184,{"$f":"Import!M10082","v":"Select"},{"$f":"Import!M10282","v":"Select"},{"$f":"Import!M10482","v":"Select"},{"$f":"Import!M10682","v":0},{"$f":"Import!M10882","v":0},{"$f":"Import!M11082","v":0}]
[185,{"$f":"Import!M10083","v":"Select"},{"$f":"Import!M10283","v":"Select"},{"$f":"Import!M10483","v":"Select"},{"$f":"Import!M10683","v":0},{"$f":"Import!M10883","v":0},{"$f":"Import!M11083","v":0}]
[186,{"$f":"Import!M10084","v":"Select"},{"$f":"Import!M10284","v":"Select"},{"$f":"Import!M10484","v":"Select"},{"$f":"Import!M10684","v":0},{"$f":"Import!M10884","v":0},{"$f":"Import!M11084","v":0}]
[187,{"$f":"Import!M10085","v":"Select"},{"$f":"Import!M10285","v":"Select"},{"$f":"Import!M10485","v":"Select"},{"$f":"Import!M10685","v":0},{"$f":"Import!M10885","v":0},{"$f":"Import!M11085","v":0}]
[188,{"$f":"Import!M10086","v":"Select"},{"$f":"Import!M10286","v":"Select"},{"$f":"Import!M10486","v":"Select"},{"$f":"Import!M10686","v":0},{"$f":"Import!M10886","v":0},{"$f":"Import!M11086","v":0}]
[189,{"$f":"Import!M10087","v":"Select"},{"$f":"Import!M10287","v":"Select"},{"$f":"Import!M10487","v":"Select"},{"$f":"Import!M10687","v":0},{"$f":"Import!M10887","v":0},{"$f":"Import!M11087","v":0}]
[190,{"$f":"Import!M10088","v":"Select"},{"$f":"Import!M10288","v":"Select"},{"$f":"Import!M10488","v":"Select"},{"$f":"Import!M10688","v":0},{"$f":"Import!M10888","v":0},{"$f":"Import!M11088","v":0}]
[191,{"$f":"Import!M10089","v":"Select"},{"$f":"Import!M10289","v":"Select"},{"$f":"Import!M10489","v":"Select"},{"$f":"Import!M10689","v":0},{"$f":"Import!M10889","v":0},{"$f":"Import!M11089","v":0}]
[192,{"$f":"Import!M10090","v":"Select"},{"$f":"Import!M10290","v":"Select"},{"$f":"Import!M10490","v":"Select"},{"$f":"Import!M10690","v":0},{"$f":"Import!M10890","v":0},{"$f":"Import!M11090","v":0}]
[193,{"$f":"Import!M10091","v":"Select"},{"$f":"Import!M10291","v":"Select"},{"$f":"Import!M10491","v":"Select"},{"$f":"Import!M10691","v":0},{"$f":"Import!M10891","v":0},{"$f":"Import!M11091","v":0}]
[194,{"$f":"Import!M10092","v":"Select"},{"$f":"Import!M10292","v":"Select"},{"$f":"Import!M10492","v":"Select"},{"$f":"Import!M10692","v":0},{"$f":"Import!M10892","v":0},{"$f":"Import!M11092","v":0}]
[{"$f":"A204+1","v":195},{"$f":"Import!M10093","v":"Select"},{"$f":"Import!M10293","v":"Select"},{"$f":"Import!M10493","v":"Select"},{"$f":"Import!M10693","v":0},{"$f":"Import!M10893","v":0},{"$f":"Import!M11093","v":0}]
[196,{"$f":"Import!M10094","v":"Select"},{"$f":"Import!M10294","v":"Select"},{"$f":"Import!M10494","v":"Select"},{"$f":"Import!M10694","v":0},{"$f":"Import!M10894","v":0},{"$f":"Import!M11094","v":0}]
[197,{"$f":"Import!M10095","v":"Select"},{"$f":"Import!M10295","v":"Select"},{"$f":"Import!M10495","v":"Select"},{"$f":"Import!M10695","v":0},{"$f":"Import!M10895","v":0},{"$f":"Import!M11095","v":0}]
[198,{"$f":"Import!M10096","v":"Select"},{"$f":"Import!M10296","v":"Select"},{"$f":"Import!M10496","v":"Select"},{"$f":"Import!M10696","v":0},{"$f":"Import!M10896","v":0},{"$f":"Import!M11096","v":0}]
[199,{"$f":"Import!M10097","v":"Select"},{"$f":"Import!M10297","v":"Select"},{"$f":"Import!M10497","v":"Select"},{"$f":"Import!M10697","v":0},{"$f":"Import!M10897","v":0},{"$f":"Import!M11097","v":0}]
[200,{"$f":"Import!M10098","v":"Select"},{"$f":"Import!M10298","v":"Select"},{"$f":"Import!M10498","v":"Select"},{"$f":"Import!M10698","v":0},{"$f":"Import!M10898","v":0},{"$f":"Import!M11098","v":0}]
[]
[null,"Total Cash and Cash Equivalents",null,null,{"$f":"SUM(E11:E210)","v":0},{"$f":"SUM(F11:F210)","v":0}]
[]
[null,"(B) BONDS AND DEBENTURES"]
[]
[null,null,"Enter # of Asset Types",{"$f":"Import!M11099","v":0}]
[null,null,null,null,{"$f":"YEAR($C$3)","v":2023},2023,"Weighted"]
[null,"Asset Type","Currency","BSCR Rating","Nominal Amount","Fair Value","Average YTM","Effective Duration","Comments"]
[1,{"$f":"Import!M11100","v":"Select"},{"$f":"Import!M11500","v":"Select"},{"$f":"Import!M11900","v":"Select"},{"$f":"Import!M12300","v":0},{"$f":"Import!M12700","v":0},{"$f":"Import!M13100","v":0},{"$f":"Import!M13500","v":0},{"$f":"Import!M13900","v":0}]
[{"$f":"A219+1","v":2},{"$f":"Import!M11101","v":"Select"},{"$f":"Import!M11501","v":"Select"},{"$f":"Import!M11901","v":"Select"},{"$f":"Import!M12301","v":0},{"$f":"Import!M12701","v":0},{"$f":"Import!M13101","v":0},{"$f":"Import!M13501","v":0},{"$f":"Import!M13901","v":0}]
[{"$f":"A220+1","v":3},{"$f":"Import!M11102","v":"Select"},{"$f":"Import!M11502","v":"Select"},{"$f":"Import!M11902","v":"Select"},{"$f":"Import!M12302","v":0},{"$f":"Import!M12702","v":0},{"$f":"Import!M13102","v":0},{"$f":"Import!M13502","v":0},{"$f":"Import!M13902","v":0}]
[4,{"$f":"Import!M11103","v":"Select"},{"$f":"Import!M11503","v":"Select"},{"$f":"Import!M11903","v":"Select"},{"$f":"Import!M12303","v":0},{"$f":"Import!M12703","v":0},{"$f":"Import!M13103","v":0},{"$f":"Import!M13503","v":0},{"$f":"Import!M13903","v":0}]
[5,{"$f":"Import!M11104","v":"Select"},{"$f":"Import!M11504","v":"Select"},{"$f":"Import!M11904","v":"Select"},{"$f":"Import!M12304","v":0},{"$f":"Import!M12704","v":0},{"$f":"Import!M13104","v":0},{"$f":"Import!M13504","v":0},{"$f":"Import!M13904","v":0}]
[6,{"$f":"Import!M11105","v":"Select"},{"$f":"Import!M11505","v":"Select"},{"$f":"Import!M11905","v":"Select"},{"$f":"Import!M12305","v":0},{"$f":"Import!M12705","v":0},{"$f":"Import!M13105","v":0},{"$f":"Import!M13505","v":0},{"$f":"Import!M13905","v":0}]
[7,{"$f":"Import!M11106","v":"Select"},{"$f":"Import!M11506","v":"Select"},{"$f":"Import!M11906","v":"Select"},{"$f":"Import!M12306","v":0},{"$f":"Import!M12706","v":0},{"$f":"Import!M13106","v":0},{"$f":"Import!M13506","v":0},{"$f":"Import!M13906","v":0}]
[8,{"$f":"Import!M11107","v":"Select"},{"$f":"Import!M11507","v":"Select"},{"$f":"Import!M11907","v":"Select"},{"$f":"Import!M12307","v":0},{"$f":"Import!M12707","v":0},{"$f":"Import!M13107","v":0},{"$f":"Import!M13507","v":0},{"$f":"Import!M13907","v":0}]
[9,{"$f":"Import!M11108","v":"Select"},{"$f":"Import!M11508","v":"Select"},{"$f":"Import!M11908","v":"Select"},{"$f":"Import!M12308","v":0},{"$f":"Import!M12708","v":0},{"$f":"Import!M13108","v":0},{"$f":"Import!M13508","v":0},{"$f":"Import!M13908","v":0}]
[10,{"$f":"Import!M11109","v":"Select"},{"$f":"Import!M11509","v":"Select"},{"$f":"Import!M11909","v":"Select"},{"$f":"Import!M12309","v":0},{"$f":"Import!M12709","v":0},{"$f":"Import!M13109","v":0},{"$f":"Import!M13509","v":0},{"$f":"Import!M13909","v":0}]
[11,{"$f":"Import!M11110","v":"Select"},{"$f":"Import!M11510","v":"Select"},{"$f":"Import!M11910","v":"Select"},{"$f":"Import!M12310","v":0},{"$f":"Import!M12710","v":0},{"$f":"Import!M13110","v":0},{"$f":"Import!M13510","v":0},{"$f":"Import!M13910","v":0}]
[12,{"$f":"Import!M11111","v":"Select"},{"$f":"Import!M11511","v":"Select"},{"$f":"Import!M11911","v":"Select"},{"$f":"Import!M12311","v":0},{"$f":"Import!M12711","v":0},{"$f":"Import!M13111","v":0},{"$f":"Import!M13511","v":0},{"$f":"Import!M13911","v":0}]
[13,{"$f":"Import!M11112","v":"Select"},{"$f":"Import!M11512","v":"Select"},{"$f":"Import!M11912","v":"Select"},{"$f":"Import!M12312","v":0},{"$f":"Import!M12712","v":0},{"$f":"Import!M13112","v":0},{"$f":"Import!M13512","v":0},{"$f":"Import!M13912","v":0}]
[14,{"$f":"Import!M11113","v":"Select"},{"$f":"Import!M11513","v":"Select"},{"$f":"Import!M11913","v":"Select"},{"$f":"Import!M12313","v":0},{"$f":"Import!M12713","v":0},{"$f":"Import!M13113","v":0},{"$f":"Import!M13513","v":0},{"$f":"Import!M13913","v":0}]
[15,{"$f":"Import!M11114","v":"Select"},{"$f":"Import!M11514","v":"Select"},{"$f":"Import!M11914","v":"Select"},{"$f":"Import!M12314","v":0},{"$f":"Import!M12714","v":0},{"$f":"Import!M13114","v":0},{"$f":"Import!M13514","v":0},{"$f":"Import!M13914","v":0}]
[16,{"$f":"Import!M11115","v":"Select"},{"$f":"Import!M11515","v":"Select"},{"$f":"Import!M11915","v":"Select"},{"$f":"Import!M12315","v":0},{"$f":"Import!M12715","v":0},{"$f":"Import!M13115","v":0},{"$f":"Import!M13515","v":0},{"$f":"Import!M13915","v":0}]
[17,{"$f":"Import!M11116","v":"Select"},{"$f":"Import!M11516","v":"Select"},{"$f":"Import!M11916","v":"Select"},{"$f":"Import!M12316","v":0},{"$f":"Import!M12716","v":0},{"$f":"Import!M13116","v":0},{"$f":"Import!M13516","v":0},{"$f":"Import!M13916","v":0}]
[18,{"$f":"Import!M11117","v":"Select"},{"$f":"Import!M11517","v":"Select"},{"$f":"Import!M11917","v":"Select"},{"$f":"Import!M12317","v":0},{"$f":"Import!M12717","v":0},{"$f":"Import!M13117","v":0},{"$f":"Import!M13517","v":0},{"$f":"Import!M13917","v":0}]
[19,{"$f":"Import!M11118","v":"Select"},{"$f":"Import!M11518","v":"Select"},{"$f":"Import!M11918","v":"Select"},{"$f":"Import!M12318","v":0},{"$f":"Import!M12718","v":0},{"$f":"Import!M13118","v":0},{"$f":"Import!M13518","v":0},{"$f":"Import!M13918","v":0}]
[20,{"$f":"Import!M11119","v":"Select"},{"$f":"Import!M11519","v":"Select"},{"$f":"Import!M11919","v":"Select"},{"$f":"Import!M12319","v":0},{"$f":"Import!M12719","v":0},{"$f":"Import!M13119","v":0},{"$f":"Import!M13519","v":0},{"$f":"Import!M13919","v":0}]
[21,{"$f":"Import!M11120","v":"Select"},{"$f":"Import!M11520","v":"Select"},{"$f":"Import!M11920","v":"Select"},{"$f":"Import!M12320","v":0},{"$f":"Import!M12720","v":0},{"$f":"Import!M13120","v":0},{"$f":"Import!M13520","v":0},{"$f":"Import!M13920","v":0}]
[22,{"$f":"Import!M11121","v":"Select"},{"$f":"Import!M11521","v":"Select"},{"$f":"Import!M11921","v":"Select"},{"$f":"Import!M12321","v":0},{"$f":"Import!M12721","v":0},{"$f":"Import!M13121","v":0},{"$f":"Import!M13521","v":0},{"$f":"Import!M13921","v":0}]
[23,{"$f":"Import!M11122","v":"Select"},{"$f":"Import!M11522","v":"Select"},{"$f":"Import!M11922","v":"Select"},{"$f":"Import!M12322","v":0},{"$f":"Import!M12722","v":0},{"$f":"Import!M13122","v":0},{"$f":"Import!M13522","v":0},{"$f":"Import!M13922","v":0}]
[24,{"$f":"Import!M11123","v":"Select"},{"$f":"Import!M11523","v":"Select"},{"$f":"Import!M11923","v":"Select"},{"$f":"Import!M12323","v":0},{"$f":"Import!M12723","v":0},{"$f":"Import!M13123","v":0},{"$f":"Import!M13523","v":0},{"$f":"Import!M13923","v":0}]
[25,{"$f":"Import!M11124","v":"Select"},{"$f":"Import!M11524","v":"Select"},{"$f":"Import!M11924","v":"Select"},{"$f":"Import!M12324","v":0},{"$f":"Import!M12724","v":0},{"$f":"Import!M13124","v":0},{"$f":"Import!M13524","v":0},{"$f":"Import!M13924","v":0}]
[26,{"$f":"Import!M11125","v":"Select"},{"$f":"Import!M11525","v":"Select"},{"$f":"Import!M11925","v":"Select"},{"$f":"Import!M12325","v":0},{"$f":"Import!M12725","v":0},{"$f":"Import!M13125","v":0},{"$f":"Import!M13525","v":0},{"$f":"Import!M13925","v":0}]
[27,{"$f":"Import!M11126","v":"Select"},{"$f":"Import!M11526","v":"Select"},{"$f":"Import!M11926","v":"Select"},{"$f":"Import!M12326","v":0},{"$f":"Import!M12726","v":0},{"$f":"Import!M13126","v":0},{"$f":"Import!M13526","v":0},{"$f":"Import!M13926","v":0}]
[28,{"$f":"Import!M11127","v":"Select"},{"$f":"Import!M11527","v":"Select"},{"$f":"Import!M11927","v":"Select"},{"$f":"Import!M12327","v":0},{"$f":"Import!M12727","v":0},{"$f":"Import!M13127","v":0},{"$f":"Import!M13527","v":0},{"$f":"Import!M13927","v":0}]
[29,{"$f":"Import!M11128","v":"Select"},{"$f":"Import!M11528","v":"Select"},{"$f":"Import!M11928","v":"Select"},{"$f":"Import!M12328","v":0},{"$f":"Import!M12728","v":0},{"$f":"Import!M13128","v":0},{"$f":"Import!M13528","v":0},{"$f":"Import!M13928","v":0}]
[30,{"$f":"Import!M11129","v":"Select"},{"$f":"Import!M11529","v":"Select"},{"$f":"Import!M11929","v":"Select"},{"$f":"Import!M12329","v":0},{"$f":"Import!M12729","v":0},{"$f":"Import!M13129","v":0},{"$f":"Import!M13529","v":0},{"$f":"Import!M13929","v":0}]
[31,{"$f":"Import!M11130","v":"Select"},{"$f":"Import!M11530","v":"Select"},{"$f":"Import!M11930","v":"Select"},{"$f":"Import!M12330","v":0},{"$f":"Import!M12730","v":0},{"$f":"Import!M13130","v":0},{"$f":"Import!M13530","v":0},{"$f":"Import!M13930","v":0}]
[32,{"$f":"Import!M11131","v":"Select"},{"$f":"Import!M11531","v":"Select"},{"$f":"Import!M11931","v":"Select"},{"$f":"Import!M12331","v":0},{"$f":"Import!M12731","v":0},{"$f":"Import!M13131","v":0},{"$f":"Import!M13531","v":0},{"$f":"Import!M13931","v":0}]
[33,{"$f":"Import!M11132","v":"Select"},{"$f":"Import!M11532","v":"Select"},{"$f":"Import!M11932","v":"Select"},{"$f":"Import!M12332","v":0},{"$f":"Import!M12732","v":0},{"$f":"Import!M13132","v":0},{"$f":"Import!M13532","v":0},{"$f":"Import!M13932","v":0}]
[34,{"$f":"Import!M11133","v":"Select"},{"$f":"Import!M11533","v":"Select"},{"$f":"Import!M11933","v":"Select"},{"$f":"Import!M12333","v":0},{"$f":"Import!M12733","v":0},{"$f":"Import!M13133","v":0},{"$f":"Import!M13533","v":0},{"$f":"Import!M13933","v":0}]
[35,{"$f":"Import!M11134","v":"Select"},{"$f":"Import!M11534","v":"Select"},{"$f":"Import!M11934","v":"Select"},{"$f":"Import!M12334","v":0},{"$f":"Import!M12734","v":0},{"$f":"Import!M13134","v":0},{"$f":"Import!M13534","v":0},{"$f":"Import!M13934","v":0}]
[36,{"$f":"Import!M11135","v":"Select"},{"$f":"Import!M11535","v":"Select"},{"$f":"Import!M11935","v":"Select"},{"$f":"Import!M12335","v":0},{"$f":"Import!M12735","v":0},{"$f":"Import!M13135","v":0},{"$f":"Import!M13535","v":0},{"$f":"Import!M13935","v":0}]
[37,{"$f":"Import!M11136","v":"Select"},{"$f":"Import!M11536","v":"Select"},{"$f":"Import!M11936","v":"Select"},{"$f":"Import!M12336","v":0},{"$f":"Import!M12736","v":0},{"$f":"Import!M13136","v":0},{"$f":"Import!M13536","v":0},{"$f":"Import!M13936","v":0}]
[38,{"$f":"Import!M11137","v":"Select"},{"$f":"Import!M11537","v":"Select"},{"$f":"Import!M11937","v":"Select"},{"$f":"Import!M12337","v":0},{"$f":"Import!M12737","v":0},{"$f":"Import!M13137","v":0},{"$f":"Import!M13537","v":0},{"$f":"Import!M13937","v":0}]
[39,{"$f":"Import!M11138","v":"Select"},{"$f":"Import!M11538","v":"Select"},{"$f":"Import!M11938","v":"Select"},{"$f":"Import!M12338","v":0},{"$f":"Import!M12738","v":0},{"$f":"Import!M13138","v":0},{"$f":"Import!M13538","v":0},{"$f":"Import!M13938","v":0}]
[40,{"$f":"Import!M11139","v":"Select"},{"$f":"Import!M11539","v":"Select"},{"$f":"Import!M11939","v":"Select"},{"$f":"Import!M12339","v":0},{"$f":"Import!M12739","v":0},{"$f":"Import!M13139","v":0},{"$f":"Import!M13539","v":0},{"$f":"Import!M13939","v":0}]
[41,{"$f":"Import!M11140","v":"Select"},{"$f":"Import!M11540","v":"Select"},{"$f":"Import!M11940","v":"Select"},{"$f":"Import!M12340","v":0},{"$f":"Import!M12740","v":0},{"$f":"Import!M13140","v":0},{"$f":"Import!M13540","v":0},{"$f":"Import!M13940","v":0}]
[42,{"$f":"Import!M11141","v":"Select"},{"$f":"Import!M11541","v":"Select"},{"$f":"Import!M11941","v":"Select"},{"$f":"Import!M12341","v":0},{"$f":"Import!M12741","v":0},{"$f":"Import!M13141","v":0},{"$f":"Import!M13541","v":0},{"$f":"Import!M13941","v":0}]
[43,{"$f":"Import!M11142","v":"Select"},{"$f":"Import!M11542","v":"Select"},{"$f":"Import!M11942","v":"Select"},{"$f":"Import!M12342","v":0},{"$f":"Import!M12742","v":0},{"$f":"Import!M13142","v":0},{"$f":"Import!M13542","v":0},{"$f":"Import!M13942","v":0}]
[44,{"$f":"Import!M11143","v":"Select"},{"$f":"Import!M11543","v":"Select"},{"$f":"Import!M11943","v":"Select"},{"$f":"Import!M12343","v":0},{"$f":"Import!M12743","v":0},{"$f":"Import!M13143","v":0},{"$f":"Import!M13543","v":0},{"$f":"Import!M13943","v":0}]
[45,{"$f":"Import!M11144","v":"Select"},{"$f":"Import!M11544","v":"Select"},{"$f":"Import!M11944","v":"Select"},{"$f":"Import!M12344","v":0},{"$f":"Import!M12744","v":0},{"$f":"Import!M13144","v":0},{"$f":"Import!M13544","v":0},{"$f":"Import!M13944","v":0}]
[46,{"$f":"Import!M11145","v":"Select"},{"$f":"Import!M11545","v":"Select"},{"$f":"Import!M11945","v":"Select"},{"$f":"Import!M12345","v":0},{"$f":"Import!M12745","v":0},{"$f":"Import!M13145","v":0},{"$f":"Import!M13545","v":0},{"$f":"Import!M13945","v":0}]
[47,{"$f":"Import!M11146","v":"Select"},{"$f":"Import!M11546","v":"Select"},{"$f":"Import!M11946","v":"Select"},{"$f":"Import!M12346","v":0},{"$f":"Import!M12746","v":0},{"$f":"Import!M13146","v":0},{"$f":"Import!M13546","v":0},{"$f":"Import!M13946","v":0}]
[48,{"$f":"Import!M11147","v":"Select"},{"$f":"Import!M11547","v":"Select"},{"$f":"Import!M11947","v":"Select"},{"$f":"Import!M12347","v":0},{"$f":"Import!M12747","v":0},{"$f":"Import!M13147","v":0},{"$f":"Import!M13547","v":0},{"$f":"Import!M13947","v":0}]
[49,{"$f":"Import!M11148","v":"Select"},{"$f":"Import!M11548","v":"Select"},{"$f":"Import!M11948","v":"Select"},{"$f":"Import!M12348","v":0},{"$f":"Import!M12748","v":0},{"$f":"Import!M13148","v":0},{"$f":"Import!M13548","v":0},{"$f":"Import!M13948","v":0}]
[50,{"$f":"Import!M11149","v":"Select"},{"$f":"Import!M11549","v":"Select"},{"$f":"Import!M11949","v":"Select"},{"$f":"Import!M12349","v":0},{"$f":"Import!M12749","v":0},{"$f":"Import!M13149","v":0},{"$f":"Import!M13549","v":0},{"$f":"Import!M13949","v":0}]
[51,{"$f":"Import!M11150","v":"Select"},{"$f":"Import!M11550","v":"Select"},{"$f":"Import!M11950","v":"Select"},{"$f":"Import!M12350","v":0},{"$f":"Import!M12750","v":0},{"$f":"Import!M13150","v":0},{"$f":"Import!M13550","v":0},{"$f":"Import!M13950","v":0}]
[52,{"$f":"Import!M11151","v":"Select"},{"$f":"Import!M11551","v":"Select"},{"$f":"Import!M11951","v":"Select"},{"$f":"Import!M12351","v":0},{"$f":"Import!M12751","v":0},{"$f":"Import!M13151","v":0},{"$f":"Import!M13551","v":0},{"$f":"Import!M13951","v":0}]
[53,{"$f":"Import!M11152","v":"Select"},{"$f":"Import!M11552","v":"Select"},{"$f":"Import!M11952","v":"Select"},{"$f":"Import!M12352","v":0},{"$f":"Import!M12752","v":0},{"$f":"Import!M13152","v":0},{"$f":"Import!M13552","v":0},{"$f":"Import!M13952","v":0}]
[54,{"$f":"Import!M11153","v":"Select"},{"$f":"Import!M11553","v":"Select"},{"$f":"Import!M11953","v":"Select"},{"$f":"Import!M12353","v":0},{"$f":"Import!M12753","v":0},{"$f":"Import!M13153","v":0},{"$f":"Import!M13553","v":0},{"$f":"Import!M13953","v":0}]
[55,{"$f":"Import!M11154","v":"Select"},{"$f":"Import!M11554","v":"Select"},{"$f":"Import!M11954","v":"Select"},{"$f":"Import!M12354","v":0},{"$f":"Import!M12754","v":0},{"$f":"Import!M13154","v":0},{"$f":"Import!M13554","v":0},{"$f":"Import!M13954","v":0}]
[56,{"$f":"Import!M11155","v":"Select"},{"$f":"Import!M11555","v":"Select"},{"$f":"Import!M11955","v":"Select"},{"$f":"Import!M12355","v":0},{"$f":"Import!M12755","v":0},{"$f":"Import!M13155","v":0},{"$f":"Import!M13555","v":0},{"$f":"Import!M13955","v":0}]
[57,{"$f":"Import!M11156","v":"Select"},{"$f":"Import!M11556","v":"Select"},{"$f":"Import!M11956","v":"Select"},{"$f":"Import!M12356","v":0},{"$f":"Import!M12756","v":0},{"$f":"Import!M13156","v":0},{"$f":"Import!M13556","v":0},{"$f":"Import!M13956","v":0}]
[58,{"$f":"Import!M11157","v":"Select"},{"$f":"Import!M11557","v":"Select"},{"$f":"Import!M11957","v":"Select"},{"$f":"Import!M12357","v":0},{"$f":"Import!M12757","v":0},{"$f":"Import!M13157","v":0},{"$f":"Import!M13557","v":0},{"$f":"Import!M13957","v":0}]
[59,{"$f":"Import!M11158","v":"Select"},{"$f":"Import!M11558","v":"Select"},{"$f":"Import!M11958","v":"Select"},{"$f":"Import!M12358","v":0},{"$f":"Import!M12758","v":0},{"$f":"Import!M13158","v":0},{"$f":"Import!M13558","v":0},{"$f":"Import!M13958","v":0}]
[60,{"$f":"Import!M11159","v":"Select"},{"$f":"Import!M11559","v":"Select"},{"$f":"Import!M11959","v":"Select"},{"$f":"Import!M12359","v":0},{"$f":"Import!M12759","v":0},{"$f":"Import!M13159","v":0},{"$f":"Import!M13559","v":0},{"$f":"Import!M13959","v":0}]
[61,{"$f":"Import!M11160","v":"Select"},{"$f":"Import!M11560","v":"Select"},{"$f":"Import!M11960","v":"Select"},{"$f":"Import!M12360","v":0},{"$f":"Import!M12760","v":0},{"$f":"Import!M13160","v":0},{"$f":"Import!M13560","v":0},{"$f":"Import!M13960","v":0}]
[62,{"$f":"Import!M11161","v":"Select"},{"$f":"Import!M11561","v":"Select"},{"$f":"Import!M11961","v":"Select"},{"$f":"Import!M12361","v":0},{"$f":"Import!M12761","v":0},{"$f":"Import!M13161","v":0},{"$f":"Import!M13561","v":0},{"$f":"Import!M13961","v":0}]
[63,{"$f":"Import!M11162","v":"Select"},{"$f":"Import!M11562","v":"Select"},{"$f":"Import!M11962","v":"Select"},{"$f":"Import!M12362","v":0},{"$f":"Import!M12762","v":0},{"$f":"Import!M13162","v":0},{"$f":"Import!M13562","v":0},{"$f":"Import!M13962","v":0}]
[64,{"$f":"Import!M11163","v":"Select"},{"$f":"Import!M11563","v":"Select"},{"$f":"Import!M11963","v":"Select"},{"$f":"Import!M12363","v":0},{"$f":"Import!M12763","v":0},{"$f":"Import!M13163","v":0},{"$f":"Import!M13563","v":0},{"$f":"Import!M13963","v":0}]
[65,{"$f":"Import!M11164","v":"Select"},{"$f":"Import!M11564","v":"Select"},{"$f":"Import!M11964","v":"Select"},{"$f":"Import!M12364","v":0},{"$f":"Import!M12764","v":0},{"$f":"Import!M13164","v":0},{"$f":"Import!M13564","v":0},{"$f":"Import!M13964","v":0}]
[66,{"$f":"Import!M11165","v":"Select"},{"$f":"Import!M11565","v":"Select"},{"$f":"Import!M11965","v":"Select"},{"$f":"Import!M12365","v":0},{"$f":"Import!M12765","v":0},{"$f":"Import!M13165","v":0},{"$f":"Import!M13565","v":0},{"$f":"Import!M13965","v":0}]
[{"$f":"A284+1","v":67},{"$f":"Import!M11166","v":"Select"},{"$f":"Import!M11566","v":"Select"},{"$f":"Import!M11966","v":"Select"},{"$f":"Import!M12366","v":0},{"$f":"Import!M12766","v":0},{"$f":"Import!M13166","v":0},{"$f":"Import!M13566","v":0},{"$f":"Import!M13966","v":0}]
[68,{"$f":"Import!M11167","v":"Select"},{"$f":"Import!M11567","v":"Select"},{"$f":"Import!M11967","v":"Select"},{"$f":"Import!M12367","v":0},{"$f":"Import!M12767","v":0},{"$f":"Import!M13167","v":0},{"$f":"Import!M13567","v":0},{"$f":"Import!M13967","v":0}]
[69,{"$f":"Import!M11168","v":"Select"},{"$f":"Import!M11568","v":"Select"},{"$f":"Import!M11968","v":"Select"},{"$f":"Import!M12368","v":0},{"$f":"Import!M12768","v":0},{"$f":"Import!M13168","v":0},{"$f":"Import!M13568","v":0},{"$f":"Import!M13968","v":0}]
[70,{"$f":"Import!M11169","v":"Select"},{"$f":"Import!M11569","v":"Select"},{"$f":"Import!M11969","v":"Select"},{"$f":"Import!M12369","v":0},{"$f":"Import!M12769","v":0},{"$f":"Import!M13169","v":0},{"$f":"Import!M13569","v":0},{"$f":"Import!M13969","v":0}]
[71,{"$f":"Import!M11170","v":"Select"},{"$f":"Import!M11570","v":"Select"},{"$f":"Import!M11970","v":"Select"},{"$f":"Import!M12370","v":0},{"$f":"Import!M12770","v":0},{"$f":"Import!M13170","v":0},{"$f":"Import!M13570","v":0},{"$f":"Import!M13970","v":0}]
[72,{"$f":"Import!M11171","v":"Select"},{"$f":"Import!M11571","v":"Select"},{"$f":"Import!M11971","v":"Select"},{"$f":"Import!M12371","v":0},{"$f":"Import!M12771","v":0},{"$f":"Import!M13171","v":0},{"$f":"Import!M13571","v":0},{"$f":"Import!M13971","v":0}]
[73,{"$f":"Import!M11172","v":"Select"},{"$f":"Import!M11572","v":"Select"},{"$f":"Import!M11972","v":"Select"},{"$f":"Import!M12372","v":0},{"$f":"Import!M12772","v":0},{"$f":"Import!M13172","v":0},{"$f":"Import!M13572","v":0},{"$f":"Import!M13972","v":0}]
[74,{"$f":"Import!M11173","v":"Select"},{"$f":"Import!M11573","v":"Select"},{"$f":"Import!M11973","v":"Select"},{"$f":"Import!M12373","v":0},{"$f":"Import!M12773","v":0},{"$f":"Import!M13173","v":0},{"$f":"Import!M13573","v":0},{"$f":"Import!M13973","v":0}]
[75,{"$f":"Import!M11174","v":"Select"},{"$f":"Import!M11574","v":"Select"},{"$f":"Import!M11974","v":"Select"},{"$f":"Import!M12374","v":0},{"$f":"Import!M12774","v":0},{"$f":"Import!M13174","v":0},{"$f":"Import!M13574","v":0},{"$f":"Import!M13974","v":0}]
[76,{"$f":"Import!M11175","v":"Select"},{"$f":"Import!M11575","v":"Select"},{"$f":"Import!M11975","v":"Select"},{"$f":"Import!M12375","v":0},{"$f":"Import!M12775","v":0},{"$f":"Import!M13175","v":0},{"$f":"Import!M13575","v":0},{"$f":"Import!M13975","v":0}]
[77,{"$f":"Import!M11176","v":"Select"},{"$f":"Import!M11576","v":"Select"},{"$f":"Import!M11976","v":"Select"},{"$f":"Import!M12376","v":0},{"$f":"Import!M12776","v":0},{"$f":"Import!M13176","v":0},{"$f":"Import!M13576","v":0},{"$f":"Import!M13976","v":0}]
[78,{"$f":"Import!M11177","v":"Select"},{"$f":"Import!M11577","v":"Select"},{"$f":"Import!M11977","v":"Select"},{"$f":"Import!M12377","v":0},{"$f":"Import!M12777","v":0},{"$f":"Import!M13177","v":0},{"$f":"Import!M13577","v":0},{"$f":"Import!M13977","v":0}]
[79,{"$f":"Import!M11178","v":"Select"},{"$f":"Import!M11578","v":"Select"},{"$f":"Import!M11978","v":"Select"},{"$f":"Import!M12378","v":0},{"$f":"Import!M12778","v":0},{"$f":"Import!M13178","v":0},{"$f":"Import!M13578","v":0},{"$f":"Import!M13978","v":0}]
[80,{"$f":"Import!M11179","v":"Select"},{"$f":"Import!M11579","v":"Select"},{"$f":"Import!M11979","v":"Select"},{"$f":"Import!M12379","v":0},{"$f":"Import!M12779","v":0},{"$f":"Import!M13179","v":0},{"$f":"Import!M13579","v":0},{"$f":"Import!M13979","v":0}]
[81,{"$f":"Import!M11180","v":"Select"},{"$f":"Import!M11580","v":"Select"},{"$f":"Import!M11980","v":"Select"},{"$f":"Import!M12380","v":0},{"$f":"Import!M12780","v":0},{"$f":"Import!M13180","v":0},{"$f":"Import!M13580","v":0},{"$f":"Import!M13980","v":0}]
[82,{"$f":"Import!M11181","v":"Select"},{"$f":"Import!M11581","v":"Select"},{"$f":"Import!M11981","v":"Select"},{"$f":"Import!M12381","v":0},{"$f":"Import!M12781","v":0},{"$f":"Import!M13181","v":0},{"$f":"Import!M13581","v":0},{"$f":"Import!M13981","v":0}]
[83,{"$f":"Import!M11182","v":"Select"},{"$f":"Import!M11582","v":"Select"},{"$f":"Import!M11982","v":"Select"},{"$f":"Import!M12382","v":0},{"$f":"Import!M12782","v":0},{"$f":"Import!M13182","v":0},{"$f":"Import!M13582","v":0},{"$f":"Import!M13982","v":0}]
[84,{"$f":"Import!M11183","v":"Select"},{"$f":"Import!M11583","v":"Select"},{"$f":"Import!M11983","v":"Select"},{"$f":"Import!M12383","v":0},{"$f":"Import!M12783","v":0},{"$f":"Import!M13183","v":0},{"$f":"Import!M13583","v":0},{"$f":"Import!M13983","v":0}]
[85,{"$f":"Import!M11184","v":"Select"},{"$f":"Import!M11584","v":"Select"},{"$f":"Import!M11984","v":"Select"},{"$f":"Import!M12384","v":0},{"$f":"Import!M12784","v":0},{"$f":"Import!M13184","v":0},{"$f":"Import!M13584","v":0},{"$f":"Import!M13984","v":0}]
[86,{"$f":"Import!M11185","v":"Select"},{"$f":"Import!M11585","v":"Select"},{"$f":"Import!M11985","v":"Select"},{"$f":"Import!M12385","v":0},{"$f":"Import!M12785","v":0},{"$f":"Import!M13185","v":0},{"$f":"Import!M13585","v":0},{"$f":"Import!M13985","v":0}]
[87,{"$f":"Import!M11186","v":"Select"},{"$f":"Import!M11586","v":"Select"},{"$f":"Import!M11986","v":"Select"},{"$f":"Import!M12386","v":0},{"$f":"Import!M12786","v":0},{"$f":"Import!M13186","v":0},{"$f":"Import!M13586","v":0},{"$f":"Import!M13986","v":0}]
[88,{"$f":"Import!M11187","v":"Select"},{"$f":"Import!M11587","v":"Select"},{"$f":"Import!M11987","v":"Select"},{"$f":"Import!M12387","v":0},{"$f":"Import!M12787","v":0},{"$f":"Import!M13187","v":0},{"$f":"Import!M13587","v":0},{"$f":"Import!M13987","v":0}]
[89,{"$f":"Import!M11188","v":"Select"},{"$f":"Import!M11588","v":"Select"},{"$f":"Import!M11988","v":"Select"},{"$f":"Import!M12388","v":0},{"$f":"Import!M12788","v":0},{"$f":"Import!M13188","v":0},{"$f":"Import!M13588","v":0},{"$f":"Import!M13988","v":0}]
[90,{"$f":"Import!M11189","v":"Select"},{"$f":"Import!M11589","v":"Select"},{"$f":"Import!M11989","v":"Select"},{"$f":"Import!M12389","v":0},{"$f":"Import!M12789","v":0},{"$f":"Import!M13189","v":0},{"$f":"Import!M13589","v":0},{"$f":"Import!M13989","v":0}]
[91,{"$f":"Import!M11190","v":"Select"},{"$f":"Import!M11590","v":"Select"},{"$f":"Import!M11990","v":"Select"},{"$f":"Import!M12390","v":0},{"$f":"Import!M12790","v":0},{"$f":"Import!M13190","v":0},{"$f":"Import!M13590","v":0},{"$f":"Import!M13990","v":0}]
[92,{"$f":"Import!M11191","v":"Select"},{"$f":"Import!M11591","v":"Select"},{"$f":"Import!M11991","v":"Select"},{"$f":"Import!M12391","v":0},{"$f":"Import!M12791","v":0},{"$f":"Import!M13191","v":0},{"$f":"Import!M13591","v":0},{"$f":"Import!M13991","v":0}]
[93,{"$f":"Import!M11192","v":"Select"},{"$f":"Import!M11592","v":"Select"},{"$f":"Import!M11992","v":"Select"},{"$f":"Import!M12392","v":0},{"$f":"Import!M12792","v":0},{"$f":"Import!M13192","v":0},{"$f":"Import!M13592","v":0},{"$f":"Import!M13992","v":0}]
[94,{"$f":"Import!M11193","v":"Select"},{"$f":"Import!M11593","v":"Select"},{"$f":"Import!M11993","v":"Select"},{"$f":"Import!M12393","v":0},{"$f":"Import!M12793","v":0},{"$f":"Import!M13193","v":0},{"$f":"Import!M13593","v":0},{"$f":"Import!M13993","v":0}]
[95,{"$f":"Import!M11194","v":"Select"},{"$f":"Import!M11594","v":"Select"},{"$f":"Import!M11994","v":"Select"},{"$f":"Import!M12394","v":0},{"$f":"Import!M12794","v":0},{"$f":"Import!M13194","v":0},{"$f":"Import!M13594","v":0},{"$f":"Import!M13994","v":0}]
[96,{"$f":"Import!M11195","v":"Select"},{"$f":"Import!M11595","v":"Select"},{"$f":"Import!M11995","v":"Select"},{"$f":"Import!M12395","v":0},{"$f":"Import!M12795","v":0},{"$f":"Import!M13195","v":0},{"$f":"Import!M13595","v":0},{"$f":"Import!M13995","v":0}]
[97,{"$f":"Import!M11196","v":"Select"},{"$f":"Import!M11596","v":"Select"},{"$f":"Import!M11996","v":"Select"},{"$f":"Import!M12396","v":0},{"$f":"Import!M12796","v":0},{"$f":"Import!M13196","v":0},{"$f":"Import!M13596","v":0},{"$f":"Import!M13996","v":0}]
[98,{"$f":"Import!M11197","v":"Select"},{"$f":"Import!M11597","v":"Select"},{"$f":"Import!M11997","v":"Select"},{"$f":"Import!M12397","v":0},{"$f":"Import!M12797","v":0},{"$f":"Import!M13197","v":0},{"$f":"Import!M13597","v":0},{"$f":"Import!M13997","v":0}]
[99,{"$f":"Import!M11198","v":"Select"},{"$f":"Import!M11598","v":"Select"},{"$f":"Import!M11998","v":"Select"},{"$f":"Import!M12398","v":0},{"$f":"Import!M12798","v":0},{"$f":"Import!M13198","v":0},{"$f":"Import!M13598","v":0},{"$f":"Import!M13998","v":0}]
[100,{"$f":"Import!M11199","v":"Select"},{"$f":"Import!M11599","v":"Select"},{"$f":"Import!M11999","v":"Select"},{"$f":"Import!M12399","v":0},{"$f":"Import!M12799","v":0},{"$f":"Import!M13199","v":0},{"$f":"Import!M13599","v":0},{"$f":"Import!M13999","v":0}]
[101,{"$f":"Import!M11200","v":"Select"},{"$f":"Import!M11600","v":"Select"},{"$f":"Import!M12000","v":"Select"},{"$f":"Import!M12400","v":0},{"$f":"Import!M12800","v":0},{"$f":"Import!M13200","v":0},{"$f":"Import!M13600","v":0},{"$f":"Import!M14000","v":0}]
[102,{"$f":"Import!M11201","v":"Select"},{"$f":"Import!M11601","v":"Select"},{"$f":"Import!M12001","v":"Select"},{"$f":"Import!M12401","v":0},{"$f":"Import!M12801","v":0},{"$f":"Import!M13201","v":0},{"$f":"Import!M13601","v":0},{"$f":"Import!M14001","v":0}]
[103,{"$f":"Import!M11202","v":"Select"},{"$f":"Import!M11602","v":"Select"},{"$f":"Import!M12002","v":"Select"},{"$f":"Import!M12402","v":0},{"$f":"Import!M12802","v":0},{"$f":"Import!M13202","v":0},{"$f":"Import!M13602","v":0},{"$f":"Import!M14002","v":0}]
[104,{"$f":"Import!M11203","v":"Select"},{"$f":"Import!M11603","v":"Select"},{"$f":"Import!M12003","v":"Select"},{"$f":"Import!M12403","v":0},{"$f":"Import!M12803","v":0},{"$f":"Import!M13203","v":0},{"$f":"Import!M13603","v":0},{"$f":"Import!M14003","v":0}]
[105,{"$f":"Import!M11204","v":"Select"},{"$f":"Import!M11604","v":"Select"},{"$f":"Import!M12004","v":"Select"},{"$f":"Import!M12404","v":0},{"$f":"Import!M12804","v":0},{"$f":"Import!M13204","v":0},{"$f":"Import!M13604","v":0},{"$f":"Import!M14004","v":0}]
[106,{"$f":"Import!M11205","v":"Select"},{"$f":"Import!M11605","v":"Select"},{"$f":"Import!M12005","v":"Select"},{"$f":"Import!M12405","v":0},{"$f":"Import!M12805","v":0},{"$f":"Import!M13205","v":0},{"$f":"Import!M13605","v":0},{"$f":"Import!M14005","v":0}]
[107,{"$f":"Import!M11206","v":"Select"},{"$f":"Import!M11606","v":"Select"},{"$f":"Import!M12006","v":"Select"},{"$f":"Import!M12406","v":0},{"$f":"Import!M12806","v":0},{"$f":"Import!M13206","v":0},{"$f":"Import!M13606","v":0},{"$f":"Import!M14006","v":0}]
[108,{"$f":"Import!M11207","v":"Select"},{"$f":"Import!M11607","v":"Select"},{"$f":"Import!M12007","v":"Select"},{"$f":"Import!M12407","v":0},{"$f":"Import!M12807","v":0},{"$f":"Import!M13207","v":0},{"$f":"Import!M13607","v":0},{"$f":"Import!M14007","v":0}]
[109,{"$f":"Import!M11208","v":"Select"},{"$f":"Import!M11608","v":"Select"},{"$f":"Import!M12008","v":"Select"},{"$f":"Import!M12408","v":0},{"$f":"Import!M12808","v":0},{"$f":"Import!M13208","v":0},{"$f":"Import!M13608","v":0},{"$f":"Import!M14008","v":0}]
[110,{"$f":"Import!M11209","v":"Select"},{"$f":"Import!M11609","v":"Select"},{"$f":"Import!M12009","v":"Select"},{"$f":"Import!M12409","v":0},{"$f":"Import!M12809","v":0},{"$f":"Import!M13209","v":0},{"$f":"Import!M13609","v":0},{"$f":"Import!M14009","v":0}]
[111,{"$f":"Import!M11210","v":"Select"},{"$f":"Import!M11610","v":"Select"},{"$f":"Import!M12010","v":"Select"},{"$f":"Import!M12410","v":0},{"$f":"Import!M12810","v":0},{"$f":"Import!M13210","v":0},{"$f":"Import!M13610","v":0},{"$f":"Import!M14010","v":0}]
[112,{"$f":"Import!M11211","v":"Select"},{"$f":"Import!M11611","v":"Select"},{"$f":"Import!M12011","v":"Select"},{"$f":"Import!M12411","v":0},{"$f":"Import!M12811","v":0},{"$f":"Import!M13211","v":0},{"$f":"Import!M13611","v":0},{"$f":"Import!M14011","v":0}]
[113,{"$f":"Import!M11212","v":"Select"},{"$f":"Import!M11612","v":"Select"},{"$f":"Import!M12012","v":"Select"},{"$f":"Import!M12412","v":0},{"$f":"Import!M12812","v":0},{"$f":"Import!M13212","v":0},{"$f":"Import!M13612","v":0},{"$f":"Import!M14012","v":0}]
[114,{"$f":"Import!M11213","v":"Select"},{"$f":"Import!M11613","v":"Select"},{"$f":"Import!M12013","v":"Select"},{"$f":"Import!M12413","v":0},{"$f":"Import!M12813","v":0},{"$f":"Import!M13213","v":0},{"$f":"Import!M13613","v":0},{"$f":"Import!M14013","v":0}]
[115,{"$f":"Import!M11214","v":"Select"},{"$f":"Import!M11614","v":"Select"},{"$f":"Import!M12014","v":"Select"},{"$f":"Import!M12414","v":0},{"$f":"Import!M12814","v":0},{"$f":"Import!M13214","v":0},{"$f":"Import!M13614","v":0},{"$f":"Import!M14014","v":0}]
[116,{"$f":"Import!M11215","v":"Select"},{"$f":"Import!M11615","v":"Select"},{"$f":"Import!M12015","v":"Select"},{"$f":"Import!M12415","v":0},{"$f":"Import!M12815","v":0},{"$f":"Import!M13215","v":0},{"$f":"Import!M13615","v":0},{"$f":"Import!M14015","v":0}]
[117,{"$f":"Import!M11216","v":"Select"},{"$f":"Import!M11616","v":"Select"},{"$f":"Import!M12016","v":"Select"},{"$f":"Import!M12416","v":0},{"$f":"Import!M12816","v":0},{"$f":"Import!M13216","v":0},{"$f":"Import!M13616","v":0},{"$f":"Import!M14016","v":0}]
[118,{"$f":"Import!M11217","v":"Select"},{"$f":"Import!M11617","v":"Select"},{"$f":"Import!M12017","v":"Select"},{"$f":"Import!M12417","v":0},{"$f":"Import!M12817","v":0},{"$f":"Import!M13217","v":0},{"$f":"Import!M13617","v":0},{"$f":"Import!M14017","v":0}]
[119,{"$f":"Import!M11218","v":"Select"},{"$f":"Import!M11618","v":"Select"},{"$f":"Import!M12018","v":"Select"},{"$f":"Import!M12418","v":0},{"$f":"Import!M12818","v":0},{"$f":"Import!M13218","v":0},{"$f":"Import!M13618","v":0},{"$f":"Import!M14018","v":0}]
[120,{"$f":"Import!M11219","v":"Select"},{"$f":"Import!M11619","v":"Select"},{"$f":"Import!M12019","v":"Select"},{"$f":"Import!M12419","v":0},{"$f":"Import!M12819","v":0},{"$f":"Import!M13219","v":0},{"$f":"Import!M13619","v":0},{"$f":"Import!M14019","v":0}]
[121,{"$f":"Import!M11220","v":"Select"},{"$f":"Import!M11620","v":"Select"},{"$f":"Import!M12020","v":"Select"},{"$f":"Import!M12420","v":0},{"$f":"Import!M12820","v":0},{"$f":"Import!M13220","v":0},{"$f":"Import!M13620","v":0},{"$f":"Import!M14020","v":0}]
[122,{"$f":"Import!M11221","v":"Select"},{"$f":"Import!M11621","v":"Select"},{"$f":"Import!M12021","v":"Select"},{"$f":"Import!M12421","v":0},{"$f":"Import!M12821","v":0},{"$f":"Import!M13221","v":0},{"$f":"Import!M13621","v":0},{"$f":"Import!M14021","v":0}]
[123,{"$f":"Import!M11222","v":"Select"},{"$f":"Import!M11622","v":"Select"},{"$f":"Import!M12022","v":"Select"},{"$f":"Import!M12422","v":0},{"$f":"Import!M12822","v":0},{"$f":"Import!M13222","v":0},{"$f":"Import!M13622","v":0},{"$f":"Import!M14022","v":0}]
[124,{"$f":"Import!M11223","v":"Select"},{"$f":"Import!M11623","v":"Select"},{"$f":"Import!M12023","v":"Select"},{"$f":"Import!M12423","v":0},{"$f":"Import!M12823","v":0},{"$f":"Import!M13223","v":0},{"$f":"Import!M13623","v":0},{"$f":"Import!M14023","v":0}]
[125,{"$f":"Import!M11224","v":"Select"},{"$f":"Import!M11624","v":"Select"},{"$f":"Import!M12024","v":"Select"},{"$f":"Import!M12424","v":0},{"$f":"Import!M12824","v":0},{"$f":"Import!M13224","v":0},{"$f":"Import!M13624","v":0},{"$f":"Import!M14024","v":0}]
[126,{"$f":"Import!M11225","v":"Select"},{"$f":"Import!M11625","v":"Select"},{"$f":"Import!M12025","v":"Select"},{"$f":"Import!M12425","v":0},{"$f":"Import!M12825","v":0},{"$f":"Import!M13225","v":0},{"$f":"Import!M13625","v":0},{"$f":"Import!M14025","v":0}]
[127,{"$f":"Import!M11226","v":"Select"},{"$f":"Import!M11626","v":"Select"},{"$f":"Import!M12026","v":"Select"},{"$f":"Import!M12426","v":0},{"$f":"Import!M12826","v":0},{"$f":"Import!M13226","v":0},{"$f":"Import!M13626","v":0},{"$f":"Import!M14026","v":0}]
[128,{"$f":"Import!M11227","v":"Select"},{"$f":"Import!M11627","v":"Select"},{"$f":"Import!M12027","v":"Select"},{"$f":"Import!M12427","v":0},{"$f":"Import!M12827","v":0},{"$f":"Import!M13227","v":0},{"$f":"Import!M13627","v":0},{"$f":"Import!M14027","v":0}]
[129,{"$f":"Import!M11228","v":"Select"},{"$f":"Import!M11628","v":"Select"},{"$f":"Import!M12028","v":"Select"},{"$f":"Import!M12428","v":0},{"$f":"Import!M12828","v":0},{"$f":"Import!M13228","v":0},{"$f":"Import!M13628","v":0},{"$f":"Import!M14028","v":0}]
[130,{"$f":"Import!M11229","v":"Select"},{"$f":"Import!M11629","v":"Select"},{"$f":"Import!M12029","v":"Select"},{"$f":"Import!M12429","v":0},{"$f":"Import!M12829","v":0},{"$f":"Import!M13229","v":0},{"$f":"Import!M13629","v":0},{"$f":"Import!M14029","v":0}]
[{"$f":"A348+1","v":131},{"$f":"Import!M11230","v":"Select"},{"$f":"Import!M11630","v":"Select"},{"$f":"Import!M12030","v":"Select"},{"$f":"Import!M12430","v":0},{"$f":"Import!M12830","v":0},{"$f":"Import!M13230","v":0},{"$f":"Import!M13630","v":0},{"$f":"Import!M14030","v":0}]
[132,{"$f":"Import!M11231","v":"Select"},{"$f":"Import!M11631","v":"Select"},{"$f":"Import!M12031","v":"Select"},{"$f":"Import!M12431","v":0},{"$f":"Import!M12831","v":0},{"$f":"Import!M13231","v":0},{"$f":"Import!M13631","v":0},{"$f":"Import!M14031","v":0}]
[133,{"$f":"Import!M11232","v":"Select"},{"$f":"Import!M11632","v":"Select"},{"$f":"Import!M12032","v":"Select"},{"$f":"Import!M12432","v":0},{"$f":"Import!M12832","v":0},{"$f":"Import!M13232","v":0},{"$f":"Import!M13632","v":0},{"$f":"Import!M14032","v":0}]
[134,{"$f":"Import!M11233","v":"Select"},{"$f":"Import!M11633","v":"Select"},{"$f":"Import!M12033","v":"Select"},{"$f":"Import!M12433","v":0},{"$f":"Import!M12833","v":0},{"$f":"Import!M13233","v":0},{"$f":"Import!M13633","v":0},{"$f":"Import!M14033","v":0}]
[135,{"$f":"Import!M11234","v":"Select"},{"$f":"Import!M11634","v":"Select"},{"$f":"Import!M12034","v":"Select"},{"$f":"Import!M12434","v":0},{"$f":"Import!M12834","v":0},{"$f":"Import!M13234","v":0},{"$f":"Import!M13634","v":0},{"$f":"Import!M14034","v":0}]
[136,{"$f":"Import!M11235","v":"Select"},{"$f":"Import!M11635","v":"Select"},{"$f":"Import!M12035","v":"Select"},{"$f":"Import!M12435","v":0},{"$f":"Import!M12835","v":0},{"$f":"Import!M13235","v":0},{"$f":"Import!M13635","v":0},{"$f":"Import!M14035","v":0}]
[137,{"$f":"Import!M11236","v":"Select"},{"$f":"Import!M11636","v":"Select"},{"$f":"Import!M12036","v":"Select"},{"$f":"Import!M12436","v":0},{"$f":"Import!M12836","v":0},{"$f":"Import!M13236","v":0},{"$f":"Import!M13636","v":0},{"$f":"Import!M14036","v":0}]
[138,{"$f":"Import!M11237","v":"Select"},{"$f":"Import!M11637","v":"Select"},{"$f":"Import!M12037","v":"Select"},{"$f":"Import!M12437","v":0},{"$f":"Import!M12837","v":0},{"$f":"Import!M13237","v":0},{"$f":"Import!M13637","v":0},{"$f":"Import!M14037","v":0}]
[139,{"$f":"Import!M11238","v":"Select"},{"$f":"Import!M11638","v":"Select"},{"$f":"Import!M12038","v":"Select"},{"$f":"Import!M12438","v":0},{"$f":"Import!M12838","v":0},{"$f":"Import!M13238","v":0},{"$f":"Import!M13638","v":0},{"$f":"Import!M14038","v":0}]
[140,{"$f":"Import!M11239","v":"Select"},{"$f":"Import!M11639","v":"Select"},{"$f":"Import!M12039","v":"Select"},{"$f":"Import!M12439","v":0},{"$f":"Import!M12839","v":0},{"$f":"Import!M13239","v":0},{"$f":"Import!M13639","v":0},{"$f":"Import!M14039","v":0}]
[141,{"$f":"Import!M11240","v":"Select"},{"$f":"Import!M11640","v":"Select"},{"$f":"Import!M12040","v":"Select"},{"$f":"Import!M12440","v":0},{"$f":"Import!M12840","v":0},{"$f":"Import!M13240","v":0},{"$f":"Import!M13640","v":0},{"$f":"Import!M14040","v":0}]
[142,{"$f":"Import!M11241","v":"Select"},{"$f":"Import!M11641","v":"Select"},{"$f":"Import!M12041","v":"Select"},{"$f":"Import!M12441","v":0},{"$f":"Import!M12841","v":0},{"$f":"Import!M13241","v":0},{"$f":"Import!M13641","v":0},{"$f":"Import!M14041","v":0}]
[143,{"$f":"Import!M11242","v":"Select"},{"$f":"Import!M11642","v":"Select"},{"$f":"Import!M12042","v":"Select"},{"$f":"Import!M12442","v":0},{"$f":"Import!M12842","v":0},{"$f":"Import!M13242","v":0},{"$f":"Import!M13642","v":0},{"$f":"Import!M14042","v":0}]
[144,{"$f":"Import!M11243","v":"Select"},{"$f":"Import!M11643","v":"Select"},{"$f":"Import!M12043","v":"Select"},{"$f":"Import!M12443","v":0},{"$f":"Import!M12843","v":0},{"$f":"Import!M13243","v":0},{"$f":"Import!M13643","v":0},{"$f":"Import!M14043","v":0}]
[145,{"$f":"Import!M11244","v":"Select"},{"$f":"Import!M11644","v":"Select"},{"$f":"Import!M12044","v":"Select"},{"$f":"Import!M12444","v":0},{"$f":"Import!M12844","v":0},{"$f":"Import!M13244","v":0},{"$f":"Import!M13644","v":0},{"$f":"Import!M14044","v":0}]
[146,{"$f":"Import!M11245","v":"Select"},{"$f":"Import!M11645","v":"Select"},{"$f":"Import!M12045","v":"Select"},{"$f":"Import!M12445","v":0},{"$f":"Import!M12845","v":0},{"$f":"Import!M13245","v":0},{"$f":"Import!M13645","v":0},{"$f":"Import!M14045","v":0}]
[147,{"$f":"Import!M11246","v":"Select"},{"$f":"Import!M11646","v":"Select"},{"$f":"Import!M12046","v":"Select"},{"$f":"Import!M12446","v":0},{"$f":"Import!M12846","v":0},{"$f":"Import!M13246","v":0},{"$f":"Import!M13646","v":0},{"$f":"Import!M14046","v":0}]
[148,{"$f":"Import!M11247","v":"Select"},{"$f":"Import!M11647","v":"Select"},{"$f":"Import!M12047","v":"Select"},{"$f":"Import!M12447","v":0},{"$f":"Import!M12847","v":0},{"$f":"Import!M13247","v":0},{"$f":"Import!M13647","v":0},{"$f":"Import!M14047","v":0}]
[149,{"$f":"Import!M11248","v":"Select"},{"$f":"Import!M11648","v":"Select"},{"$f":"Import!M12048","v":"Select"},{"$f":"Import!M12448","v":0},{"$f":"Import!M12848","v":0},{"$f":"Import!M13248","v":0},{"$f":"Import!M13648","v":0},{"$f":"Import!M14048","v":0}]
[150,{"$f":"Import!M11249","v":"Select"},{"$f":"Import!M11649","v":"Select"},{"$f":"Import!M12049","v":"Select"},{"$f":"Import!M12449","v":0},{"$f":"Import!M12849","v":0},{"$f":"Import!M13249","v":0},{"$f":"Import!M13649","v":0},{"$f":"Import!M14049","v":0}]
[151,{"$f":"Import!M11250","v":"Select"},{"$f":"Import!M11650","v":"Select"},{"$f":"Import!M12050","v":"Select"},{"$f":"Import!M12450","v":0},{"$f":"Import!M12850","v":0},{"$f":"Import!M13250","v":0},{"$f":"Import!M13650","v":0},{"$f":"Import!M14050","v":0}]
[152,{"$f":"Import!M11251","v":"Select"},{"$f":"Import!M11651","v":"Select"},{"$f":"Import!M12051","v":"Select"},{"$f":"Import!M12451","v":0},{"$f":"Import!M12851","v":0},{"$f":"Import!M13251","v":0},{"$f":"Import!M13651","v":0},{"$f":"Import!M14051","v":0}]
[153,{"$f":"Import!M11252","v":"Select"},{"$f":"Import!M11652","v":"Select"},{"$f":"Import!M12052","v":"Select"},{"$f":"Import!M12452","v":0},{"$f":"Import!M12852","v":0},{"$f":"Import!M13252","v":0},{"$f":"Import!M13652","v":0},{"$f":"Import!M14052","v":0}]
[154,{"$f":"Import!M11253","v":"Select"},{"$f":"Import!M11653","v":"Select"},{"$f":"Import!M12053","v":"Select"},{"$f":"Import!M12453","v":0},{"$f":"Import!M12853","v":0},{"$f":"Import!M13253","v":0},{"$f":"Import!M13653","v":0},{"$f":"Import!M14053","v":0}]
[155,{"$f":"Import!M11254","v":"Select"},{"$f":"Import!M11654","v":"Select"},{"$f":"Import!M12054","v":"Select"},{"$f":"Import!M12454","v":0},{"$f":"Import!M12854","v":0},{"$f":"Import!M13254","v":0},{"$f":"Import!M13654","v":0},{"$f":"Import!M14054","v":0}]
[156,{"$f":"Import!M11255","v":"Select"},{"$f":"Import!M11655","v":"Select"},{"$f":"Import!M12055","v":"Select"},{"$f":"Import!M12455","v":0},{"$f":"Import!M12855","v":0},{"$f":"Import!M13255","v":0},{"$f":"Import!M13655","v":0},{"$f":"Import!M14055","v":0}]
[157,{"$f":"Import!M11256","v":"Select"},{"$f":"Import!M11656","v":"Select"},{"$f":"Import!M12056","v":"Select"},{"$f":"Import!M12456","v":0},{"$f":"Import!M12856","v":0},{"$f":"Import!M13256","v":0},{"$f":"Import!M13656","v":0},{"$f":"Import!M14056","v":0}]
[158,{"$f":"Import!M11257","v":"Select"},{"$f":"Import!M11657","v":"Select"},{"$f":"Import!M12057","v":"Select"},{"$f":"Import!M12457","v":0},{"$f":"Import!M12857","v":0},{"$f":"Import!M13257","v":0},{"$f":"Import!M13657","v":0},{"$f":"Import!M14057","v":0}]
[159,{"$f":"Import!M11258","v":"Select"},{"$f":"Import!M11658","v":"Select"},{"$f":"Import!M12058","v":"Select"},{"$f":"Import!M12458","v":0},{"$f":"Import!M12858","v":0},{"$f":"Import!M13258","v":0},{"$f":"Import!M13658","v":0},{"$f":"Import!M14058","v":0}]
[160,{"$f":"Import!M11259","v":"Select"},{"$f":"Import!M11659","v":"Select"},{"$f":"Import!M12059","v":"Select"},{"$f":"Import!M12459","v":0},{"$f":"Import!M12859","v":0},{"$f":"Import!M13259","v":0},{"$f":"Import!M13659","v":0},{"$f":"Import!M14059","v":0}]
[161,{"$f":"Import!M11260","v":"Select"},{"$f":"Import!M11660","v":"Select"},{"$f":"Import!M12060","v":"Select"},{"$f":"Import!M12460","v":0},{"$f":"Import!M12860","v":0},{"$f":"Import!M13260","v":0},{"$f":"Import!M13660","v":0},{"$f":"Import!M14060","v":0}]
[162,{"$f":"Import!M11261","v":"Select"},{"$f":"Import!M11661","v":"Select"},{"$f":"Import!M12061","v":"Select"},{"$f":"Import!M12461","v":0},{"$f":"Import!M12861","v":0},{"$f":"Import!M13261","v":0},{"$f":"Import!M13661","v":0},{"$f":"Import!M14061","v":0}]
[163,{"$f":"Import!M11262","v":"Select"},{"$f":"Import!M11662","v":"Select"},{"$f":"Import!M12062","v":"Select"},{"$f":"Import!M12462","v":0},{"$f":"Import!M12862","v":0},{"$f":"Import!M13262","v":0},{"$f":"Import!M13662","v":0},{"$f":"Import!M14062","v":0}]
[164,{"$f":"Import!M11263","v":"Select"},{"$f":"Import!M11663","v":"Select"},{"$f":"Import!M12063","v":"Select"},{"$f":"Import!M12463","v":0},{"$f":"Import!M12863","v":0},{"$f":"Import!M13263","v":0},{"$f":"Import!M13663","v":0},{"$f":"Import!M14063","v":0}]
[165,{"$f":"Import!M11264","v":"Select"},{"$f":"Import!M11664","v":"Select"},{"$f":"Import!M12064","v":"Select"},{"$f":"Import!M12464","v":0},{"$f":"Import!M12864","v":0},{"$f":"Import!M13264","v":0},{"$f":"Import!M13664","v":0},{"$f":"Import!M14064","v":0}]
[166,{"$f":"Import!M11265","v":"Select"},{"$f":"Import!M11665","v":"Select"},{"$f":"Import!M12065","v":"Select"},{"$f":"Import!M12465","v":0},{"$f":"Import!M12865","v":0},{"$f":"Import!M13265","v":0},{"$f":"Import!M13665","v":0},{"$f":"Import!M14065","v":0}]
[167,{"$f":"Import!M11266","v":"Select"},{"$f":"Import!M11666","v":"Select"},{"$f":"Import!M12066","v":"Select"},{"$f":"Import!M12466","v":0},{"$f":"Import!M12866","v":0},{"$f":"Import!M13266","v":0},{"$f":"Import!M13666","v":0},{"$f":"Import!M14066","v":0}]
[168,{"$f":"Import!M11267","v":"Select"},{"$f":"Import!M11667","v":"Select"},{"$f":"Import!M12067","v":"Select"},{"$f":"Import!M12467","v":0},{"$f":"Import!M12867","v":0},{"$f":"Import!M13267","v":0},{"$f":"Import!M13667","v":0},{"$f":"Import!M14067","v":0}]
[169,{"$f":"Import!M11268","v":"Select"},{"$f":"Import!M11668","v":"Select"},{"$f":"Import!M12068","v":"Select"},{"$f":"Import!M12468","v":0},{"$f":"Import!M12868","v":0},{"$f":"Import!M13268","v":0},{"$f":"Import!M13668","v":0},{"$f":"Import!M14068","v":0}]
[170,{"$f":"Import!M11269","v":"Select"},{"$f":"Import!M11669","v":"Select"},{"$f":"Import!M12069","v":"Select"},{"$f":"Import!M12469","v":0},{"$f":"Import!M12869","v":0},{"$f":"Import!M13269","v":0},{"$f":"Import!M13669","v":0},{"$f":"Import!M14069","v":0}]
[171,{"$f":"Import!M11270","v":"Select"},{"$f":"Import!M11670","v":"Select"},{"$f":"Import!M12070","v":"Select"},{"$f":"Import!M12470","v":0},{"$f":"Import!M12870","v":0},{"$f":"Import!M13270","v":0},{"$f":"Import!M13670","v":0},{"$f":"Import!M14070","v":0}]
[172,{"$f":"Import!M11271","v":"Select"},{"$f":"Import!M11671","v":"Select"},{"$f":"Import!M12071","v":"Select"},{"$f":"Import!M12471","v":0},{"$f":"Import!M12871","v":0},{"$f":"Import!M13271","v":0},{"$f":"Import!M13671","v":0},{"$f":"Import!M14071","v":0}]
[173,{"$f":"Import!M11272","v":"Select"},{"$f":"Import!M11672","v":"Select"},{"$f":"Import!M12072","v":"Select"},{"$f":"Import!M12472","v":0},{"$f":"Import!M12872","v":0},{"$f":"Import!M13272","v":0},{"$f":"Import!M13672","v":0},{"$f":"Import!M14072","v":0}]
[174,{"$f":"Import!M11273","v":"Select"},{"$f":"Import!M11673","v":"Select"},{"$f":"Import!M12073","v":"Select"},{"$f":"Import!M12473","v":0},{"$f":"Import!M12873","v":0},{"$f":"Import!M13273","v":0},{"$f":"Import!M13673","v":0},{"$f":"Import!M14073","v":0}]
[175,{"$f":"Import!M11274","v":"Select"},{"$f":"Import!M11674","v":"Select"},{"$f":"Import!M12074","v":"Select"},{"$f":"Import!M12474","v":0},{"$f":"Import!M12874","v":0},{"$f":"Import!M13274","v":0},{"$f":"Import!M13674","v":0},{"$f":"Import!M14074","v":0}]
[176,{"$f":"Import!M11275","v":"Select"},{"$f":"Import!M11675","v":"Select"},{"$f":"Import!M12075","v":"Select"},{"$f":"Import!M12475","v":0},{"$f":"Import!M12875","v":0},{"$f":"Import!M13275","v":0},{"$f":"Import!M13675","v":0},{"$f":"Import!M14075","v":0}]
[177,{"$f":"Import!M11276","v":"Select"},{"$f":"Import!M11676","v":"Select"},{"$f":"Import!M12076","v":"Select"},{"$f":"Import!M12476","v":0},{"$f":"Import!M12876","v":0},{"$f":"Import!M13276","v":0},{"$f":"Import!M13676","v":0},{"$f":"Import!M14076","v":0}]
[178,{"$f":"Import!M11277","v":"Select"},{"$f":"Import!M11677","v":"Select"},{"$f":"Import!M12077","v":"Select"},{"$f":"Import!M12477","v":0},{"$f":"Import!M12877","v":0},{"$f":"Import!M13277","v":0},{"$f":"Import!M13677","v":0},{"$f":"Import!M14077","v":0}]
[179,{"$f":"Import!M11278","v":"Select"},{"$f":"Import!M11678","v":"Select"},{"$f":"Import!M12078","v":"Select"},{"$f":"Import!M12478","v":0},{"$f":"Import!M12878","v":0},{"$f":"Import!M13278","v":0},{"$f":"Import!M13678","v":0},{"$f":"Import!M14078","v":0}]
[180,{"$f":"Import!M11279","v":"Select"},{"$f":"Import!M11679","v":"Select"},{"$f":"Import!M12079","v":"Select"},{"$f":"Import!M12479","v":0},{"$f":"Import!M12879","v":0},{"$f":"Import!M13279","v":0},{"$f":"Import!M13679","v":0},{"$f":"Import!M14079","v":0}]
[181,{"$f":"Import!M11280","v":"Select"},{"$f":"Import!M11680","v":"Select"},{"$f":"Import!M12080","v":"Select"},{"$f":"Import!M12480","v":0},{"$f":"Import!M12880","v":0},{"$f":"Import!M13280","v":0},{"$f":"Import!M13680","v":0},{"$f":"Import!M14080","v":0}]
[182,{"$f":"Import!M11281","v":"Select"},{"$f":"Import!M11681","v":"Select"},{"$f":"Import!M12081","v":"Select"},{"$f":"Import!M12481","v":0},{"$f":"Import!M12881","v":0},{"$f":"Import!M13281","v":0},{"$f":"Import!M13681","v":0},{"$f":"Import!M14081","v":0}]
[183,{"$f":"Import!M11282","v":"Select"},{"$f":"Import!M11682","v":"Select"},{"$f":"Import!M12082","v":"Select"},{"$f":"Import!M12482","v":0},{"$f":"Import!M12882","v":0},{"$f":"Import!M13282","v":0},{"$f":"Import!M13682","v":0},{"$f":"Import!M14082","v":0}]
[184,{"$f":"Import!M11283","v":"Select"},{"$f":"Import!M11683","v":"Select"},{"$f":"Import!M12083","v":"Select"},{"$f":"Import!M12483","v":0},{"$f":"Import!M12883","v":0},{"$f":"Import!M13283","v":0},{"$f":"Import!M13683","v":0},{"$f":"Import!M14083","v":0}]
[185,{"$f":"Import!M11284","v":"Select"},{"$f":"Import!M11684","v":"Select"},{"$f":"Import!M12084","v":"Select"},{"$f":"Import!M12484","v":0},{"$f":"Import!M12884","v":0},{"$f":"Import!M13284","v":0},{"$f":"Import!M13684","v":0},{"$f":"Import!M14084","v":0}]
[186,{"$f":"Import!M11285","v":"Select"},{"$f":"Import!M11685","v":"Select"},{"$f":"Import!M12085","v":"Select"},{"$f":"Import!M12485","v":0},{"$f":"Import!M12885","v":0},{"$f":"Import!M13285","v":0},{"$f":"Import!M13685","v":0},{"$f":"Import!M14085","v":0}]
[187,{"$f":"Import!M11286","v":"Select"},{"$f":"Import!M11686","v":"Select"},{"$f":"Import!M12086","v":"Select"},{"$f":"Import!M12486","v":0},{"$f":"Import!M12886","v":0},{"$f":"Import!M13286","v":0},{"$f":"Import!M13686","v":0},{"$f":"Import!M14086","v":0}]
[188,{"$f":"Import!M11287","v":"Select"},{"$f":"Import!M11687","v":"Select"},{"$f":"Import!M12087","v":"Select"},{"$f":"Import!M12487","v":0},{"$f":"Import!M12887","v":0},{"$f":"Import!M13287","v":0},{"$f":"Import!M13687","v":0},{"$f":"Import!M14087","v":0}]
[189,{"$f":"Import!M11288","v":"Select"},{"$f":"Import!M11688","v":"Select"},{"$f":"Import!M12088","v":"Select"},{"$f":"Import!M12488","v":0},{"$f":"Import!M12888","v":0},{"$f":"Import!M13288","v":0},{"$f":"Import!M13688","v":0},{"$f":"Import!M14088","v":0}]
[190,{"$f":"Import!M11289","v":"Select"},{"$f":"Import!M11689","v":"Select"},{"$f":"Import!M12089","v":"Select"},{"$f":"Import!M12489","v":0},{"$f":"Import!M12889","v":0},{"$f":"Import!M13289","v":0},{"$f":"Import!M13689","v":0},{"$f":"Import!M14089","v":0}]
[191,{"$f":"Import!M11290","v":"Select"},{"$f":"Import!M11690","v":"Select"},{"$f":"Import!M12090","v":"Select"},{"$f":"Import!M12490","v":0},{"$f":"Import!M12890","v":0},{"$f":"Import!M13290","v":0},{"$f":"Import!M13690","v":0},{"$f":"Import!M14090","v":0}]
[192,{"$f":"Import!M11291","v":"Select"},{"$f":"Import!M11691","v":"Select"},{"$f":"Import!M12091","v":"Select"},{"$f":"Import!M12491","v":0},{"$f":"Import!M12891","v":0},{"$f":"Import!M13291","v":0},{"$f":"Import!M13691","v":0},{"$f":"Import!M14091","v":0}]
[193,{"$f":"Import!M11292","v":"Select"},{"$f":"Import!M11692","v":"Select"},{"$f":"Import!M12092","v":"Select"},{"$f":"Import!M12492","v":0},{"$f":"Import!M12892","v":0},{"$f":"Import!M13292","v":0},{"$f":"Import!M13692","v":0},{"$f":"Import!M14092","v":0}]
[194,{"$f":"Import!M11293","v":"Select"},{"$f":"Import!M11693","v":"Select"},{"$f":"Import!M12093","v":"Select"},{"$f":"Import!M12493","v":0},{"$f":"Import!M12893","v":0},{"$f":"Import!M13293","v":0},{"$f":"Import!M13693","v":0},{"$f":"Import!M14093","v":0}]
[{"$f":"A412+1","v":195},{"$f":"Import!M11294","v":"Select"},{"$f":"Import!M11694","v":"Select"},{"$f":"Import!M12094","v":"Select"},{"$f":"Import!M12494","v":0},{"$f":"Import!M12894","v":0},{"$f":"Import!M13294","v":0},{"$f":"Import!M13694","v":0},{"$f":"Import!M14094","v":0}]
[196,{"$f":"Import!M11295","v":"Select"},{"$f":"Import!M11695","v":"Select"},{"$f":"Import!M12095","v":"Select"},{"$f":"Import!M12495","v":0},{"$f":"Import!M12895","v":0},{"$f":"Import!M13295","v":0},{"$f":"Import!M13695","v":0},{"$f":"Import!M14095","v":0}]
[197,{"$f":"Import!M11296","v":"Select"},{"$f":"Import!M11696","v":"Select"},{"$f":"Import!M12096","v":"Select"},{"$f":"Import!M12496","v":0},{"$f":"Import!M12896","v":0},{"$f":"Import!M13296","v":0},{"$f":"Import!M13696","v":0},{"$f":"Import!M14096","v":0}]
[198,{"$f":"Import!M11297","v":"Select"},{"$f":"Import!M11697","v":"Select"},{"$f":"Import!M12097","v":"Select"},{"$f":"Import!M12497","v":0},{"$f":"Import!M12897","v":0},{"$f":"Import!M13297","v":0},{"$f":"Import!M13697","v":0},{"$f":"Import!M14097","v":0}]
[199,{"$f":"Import!M11298","v":"Select"},{"$f":"Import!M11698","v":"Select"},{"$f":"Import!M12098","v":"Select"},{"$f":"Import!M12498","v":0},{"$f":"Import!M12898","v":0},{"$f":"Import!M13298","v":0},{"$f":"Import!M13698","v":0},{"$f":"Import!M14098","v":0}]
[200,{"$f":"Import!M11299","v":"Select"},{"$f":"Import!M11699","v":"Select"},{"$f":"Import!M12099","v":"Select"},{"$f":"Import!M12499","v":0},{"$f":"Import!M12899","v":0},{"$f":"Import!M13299","v":0},{"$f":"Import!M13699","v":0},{"$f":"Import!M14099","v":0}]
[201,{"$f":"Import!M11300","v":"Select"},{"$f":"Import!M11700","v":"Select"},{"$f":"Import!M12100","v":"Select"},{"$f":"Import!M12500","v":0},{"$f":"Import!M12900","v":0},{"$f":"Import!M13300","v":0},{"$f":"Import!M13700","v":0},{"$f":"Import!M14100","v":0}]
[202,{"$f":"Import!M11301","v":"Select"},{"$f":"Import!M11701","v":"Select"},{"$f":"Import!M12101","v":"Select"},{"$f":"Import!M12501","v":0},{"$f":"Import!M12901","v":0},{"$f":"Import!M13301","v":0},{"$f":"Import!M13701","v":0},{"$f":"Import!M14101","v":0}]
[203,{"$f":"Import!M11302","v":"Select"},{"$f":"Import!M11702","v":"Select"},{"$f":"Import!M12102","v":"Select"},{"$f":"Import!M12502","v":0},{"$f":"Import!M12902","v":0},{"$f":"Import!M13302","v":0},{"$f":"Import!M13702","v":0},{"$f":"Import!M14102","v":0}]
[204,{"$f":"Import!M11303","v":"Select"},{"$f":"Import!M11703","v":"Select"},{"$f":"Import!M12103","v":"Select"},{"$f":"Import!M12503","v":0},{"$f":"Import!M12903","v":0},{"$f":"Import!M13303","v":0},{"$f":"Import!M13703","v":0},{"$f":"Import!M14103","v":0}]
[205,{"$f":"Import!M11304","v":"Select"},{"$f":"Import!M11704","v":"Select"},{"$f":"Import!M12104","v":"Select"},{"$f":"Import!M12504","v":0},{"$f":"Import!M12904","v":0},{"$f":"Import!M13304","v":0},{"$f":"Import!M13704","v":0},{"$f":"Import!M14104","v":0}]
[206,{"$f":"Import!M11305","v":"Select"},{"$f":"Import!M11705","v":"Select"},{"$f":"Import!M12105","v":"Select"},{"$f":"Import!M12505","v":0},{"$f":"Import!M12905","v":0},{"$f":"Import!M13305","v":0},{"$f":"Import!M13705","v":0},{"$f":"Import!M14105","v":0}]
[207,{"$f":"Import!M11306","v":"Select"},{"$f":"Import!M11706","v":"Select"},{"$f":"Import!M12106","v":"Select"},{"$f":"Import!M12506","v":0},{"$f":"Import!M12906","v":0},{"$f":"Import!M13306","v":0},{"$f":"Import!M13706","v":0},{"$f":"Import!M14106","v":0}]
[208,{"$f":"Import!M11307","v":"Select"},{"$f":"Import!M11707","v":"Select"},{"$f":"Import!M12107","v":"Select"},{"$f":"Import!M12507","v":0},{"$f":"Import!M12907","v":0},{"$f":"Import!M13307","v":0},{"$f":"Import!M13707","v":0},{"$f":"Import!M14107","v":0}]
[209,{"$f":"Import!M11308","v":"Select"},{"$f":"Import!M11708","v":"Select"},{"$f":"Import!M12108","v":"Select"},{"$f":"Import!M12508","v":0},{"$f":"Import!M12908","v":0},{"$f":"Import!M13308","v":0},{"$f":"Import!M13708","v":0},{"$f":"Import!M14108","v":0}]
[210,{"$f":"Import!M11309","v":"Select"},{"$f":"Import!M11709","v":"Select"},{"$f":"Import!M12109","v":"Select"},{"$f":"Import!M12509","v":0},{"$f":"Import!M12909","v":0},{"$f":"Import!M13309","v":0},{"$f":"Import!M13709","v":0},{"$f":"Import!M14109","v":0}]
[211,{"$f":"Import!M11310","v":"Select"},{"$f":"Import!M11710","v":"Select"},{"$f":"Import!M12110","v":"Select"},{"$f":"Import!M12510","v":0},{"$f":"Import!M12910","v":0},{"$f":"Import!M13310","v":0},{"$f":"Import!M13710","v":0},{"$f":"Import!M14110","v":0}]
[212,{"$f":"Import!M11311","v":"Select"},{"$f":"Import!M11711","v":"Select"},{"$f":"Import!M12111","v":"Select"},{"$f":"Import!M12511","v":0},{"$f":"Import!M12911","v":0},{"$f":"Import!M13311","v":0},{"$f":"Import!M13711","v":0},{"$f":"Import!M14111","v":0}]
[213,{"$f":"Import!M11312","v":"Select"},{"$f":"Import!M11712","v":"Select"},{"$f":"Import!M12112","v":"Select"},{"$f":"Import!M12512","v":0},{"$f":"Import!M12912","v":0},{"$f":"Import!M13312","v":0},{"$f":"Import!M13712","v":0},{"$f":"Import!M14112","v":0}]
[214,{"$f":"Import!M11313","v":"Select"},{"$f":"Import!M11713","v":"Select"},{"$f":"Import!M12113","v":"Select"},{"$f":"Import!M12513","v":0},{"$f":"Import!M12913","v":0},{"$f":"Import!M13313","v":0},{"$f":"Import!M13713","v":0},{"$f":"Import!M14113","v":0}]
[215,{"$f":"Import!M11314","v":"Select"},{"$f":"Import!M11714","v":"Select"},{"$f":"Import!M12114","v":"Select"},{"$f":"Import!M12514","v":0},{"$f":"Import!M12914","v":0},{"$f":"Import!M13314","v":0},{"$f":"Import!M13714","v":0},{"$f":"Import!M14114","v":0}]
[216,{"$f":"Import!M11315","v":"Select"},{"$f":"Import!M11715","v":"Select"},{"$f":"Import!M12115","v":"Select"},{"$f":"Import!M12515","v":0},{"$f":"Import!M12915","v":0},{"$f":"Import!M13315","v":0},{"$f":"Import!M13715","v":0},{"$f":"Import!M14115","v":0}]
[217,{"$f":"Import!M11316","v":"Select"},{"$f":"Import!M11716","v":"Select"},{"$f":"Import!M12116","v":"Select"},{"$f":"Import!M12516","v":0},{"$f":"Import!M12916","v":0},{"$f":"Import!M13316","v":0},{"$f":"Import!M13716","v":0},{"$f":"Import!M14116","v":0}]
[218,{"$f":"Import!M11317","v":"Select"},{"$f":"Import!M11717","v":"Select"},{"$f":"Import!M12117","v":"Select"},{"$f":"Import!M12517","v":0},{"$f":"Import!M12917","v":0},{"$f":"Import!M13317","v":0},{"$f":"Import!M13717","v":0},{"$f":"Import!M14117","v":0}]
[219,{"$f":"Import!M11318","v":"Select"},{"$f":"Import!M11718","v":"Select"},{"$f":"Import!M12118","v":"Select"},{"$f":"Import!M12518","v":0},{"$f":"Import!M12918","v":0},{"$f":"Import!M13318","v":0},{"$f":"Import!M13718","v":0},{"$f":"Import!M14118","v":0}]
[220,{"$f":"Import!M11319","v":"Select"},{"$f":"Import!M11719","v":"Select"},{"$f":"Import!M12119","v":"Select"},{"$f":"Import!M12519","v":0},{"$f":"Import!M12919","v":0},{"$f":"Import!M13319","v":0},{"$f":"Import!M13719","v":0},{"$f":"Import!M14119","v":0}]
[221,{"$f":"Import!M11320","v":"Select"},{"$f":"Import!M11720","v":"Select"},{"$f":"Import!M12120","v":"Select"},{"$f":"Import!M12520","v":0},{"$f":"Import!M12920","v":0},{"$f":"Import!M13320","v":0},{"$f":"Import!M13720","v":0},{"$f":"Import!M14120","v":0}]
[222,{"$f":"Import!M11321","v":"Select"},{"$f":"Import!M11721","v":"Select"},{"$f":"Import!M12121","v":"Select"},{"$f":"Import!M12521","v":0},{"$f":"Import!M12921","v":0},{"$f":"Import!M13321","v":0},{"$f":"Import!M13721","v":0},{"$f":"Import!M14121","v":0}]
[223,{"$f":"Import!M11322","v":"Select"},{"$f":"Import!M11722","v":"Select"},{"$f":"Import!M12122","v":"Select"},{"$f":"Import!M12522","v":0},{"$f":"Import!M12922","v":0},{"$f":"Import!M13322","v":0},{"$f":"Import!M13722","v":0},{"$f":"Import!M14122","v":0}]
[224,{"$f":"Import!M11323","v":"Select"},{"$f":"Import!M11723","v":"Select"},{"$f":"Import!M12123","v":"Select"},{"$f":"Import!M12523","v":0},{"$f":"Import!M12923","v":0},{"$f":"Import!M13323","v":0},{"$f":"Import!M13723","v":0},{"$f":"Import!M14123","v":0}]
[225,{"$f":"Import!M11324","v":"Select"},{"$f":"Import!M11724","v":"Select"},{"$f":"Import!M12124","v":"Select"},{"$f":"Import!M12524","v":0},{"$f":"Import!M12924","v":0},{"$f":"Import!M13324","v":0},{"$f":"Import!M13724","v":0},{"$f":"Import!M14124","v":0}]
[226,{"$f":"Import!M11325","v":"Select"},{"$f":"Import!M11725","v":"Select"},{"$f":"Import!M12125","v":"Select"},{"$f":"Import!M12525","v":0},{"$f":"Import!M12925","v":0},{"$f":"Import!M13325","v":0},{"$f":"Import!M13725","v":0},{"$f":"Import!M14125","v":0}]
[227,{"$f":"Import!M11326","v":"Select"},{"$f":"Import!M11726","v":"Select"},{"$f":"Import!M12126","v":"Select"},{"$f":"Import!M12526","v":0},{"$f":"Import!M12926","v":0},{"$f":"Import!M13326","v":0},{"$f":"Import!M13726","v":0},{"$f":"Import!M14126","v":0}]
[228,{"$f":"Import!M11327","v":"Select"},{"$f":"Import!M11727","v":"Select"},{"$f":"Import!M12127","v":"Select"},{"$f":"Import!M12527","v":0},{"$f":"Import!M12927","v":0},{"$f":"Import!M13327","v":0},{"$f":"Import!M13727","v":0},{"$f":"Import!M14127","v":0}]
[229,{"$f":"Import!M11328","v":"Select"},{"$f":"Import!M11728","v":"Select"},{"$f":"Import!M12128","v":"Select"},{"$f":"Import!M12528","v":0},{"$f":"Import!M12928","v":0},{"$f":"Import!M13328","v":0},{"$f":"Import!M13728","v":0},{"$f":"Import!M14128","v":0}]
[230,{"$f":"Import!M11329","v":"Select"},{"$f":"Import!M11729","v":"Select"},{"$f":"Import!M12129","v":"Select"},{"$f":"Import!M12529","v":0},{"$f":"Import!M12929","v":0},{"$f":"Import!M13329","v":0},{"$f":"Import!M13729","v":0},{"$f":"Import!M14129","v":0}]
[231,{"$f":"Import!M11330","v":"Select"},{"$f":"Import!M11730","v":"Select"},{"$f":"Import!M12130","v":"Select"},{"$f":"Import!M12530","v":0},{"$f":"Import!M12930","v":0},{"$f":"Import!M13330","v":0},{"$f":"Import!M13730","v":0},{"$f":"Import!M14130","v":0}]
[232,{"$f":"Import!M11331","v":"Select"},{"$f":"Import!M11731","v":"Select"},{"$f":"Import!M12131","v":"Select"},{"$f":"Import!M12531","v":0},{"$f":"Import!M12931","v":0},{"$f":"Import!M13331","v":0},{"$f":"Import!M13731","v":0},{"$f":"Import!M14131","v":0}]
[233,{"$f":"Import!M11332","v":"Select"},{"$f":"Import!M11732","v":"Select"},{"$f":"Import!M12132","v":"Select"},{"$f":"Import!M12532","v":0},{"$f":"Import!M12932","v":0},{"$f":"Import!M13332","v":0},{"$f":"Import!M13732","v":0},{"$f":"Import!M14132","v":0}]
[234,{"$f":"Import!M11333","v":"Select"},{"$f":"Import!M11733","v":"Select"},{"$f":"Import!M12133","v":"Select"},{"$f":"Import!M12533","v":0},{"$f":"Import!M12933","v":0},{"$f":"Import!M13333","v":0},{"$f":"Import!M13733","v":0},{"$f":"Import!M14133","v":0}]
[235,{"$f":"Import!M11334","v":"Select"},{"$f":"Import!M11734","v":"Select"},{"$f":"Import!M12134","v":"Select"},{"$f":"Import!M12534","v":0},{"$f":"Import!M12934","v":0},{"$f":"Import!M13334","v":0},{"$f":"Import!M13734","v":0},{"$f":"Import!M14134","v":0}]
[236,{"$f":"Import!M11335","v":"Select"},{"$f":"Import!M11735","v":"Select"},{"$f":"Import!M12135","v":"Select"},{"$f":"Import!M12535","v":0},{"$f":"Import!M12935","v":0},{"$f":"Import!M13335","v":0},{"$f":"Import!M13735","v":0},{"$f":"Import!M14135","v":0}]
[237,{"$f":"Import!M11336","v":"Select"},{"$f":"Import!M11736","v":"Select"},{"$f":"Import!M12136","v":"Select"},{"$f":"Import!M12536","v":0},{"$f":"Import!M12936","v":0},{"$f":"Import!M13336","v":0},{"$f":"Import!M13736","v":0},{"$f":"Import!M14136","v":0}]
[238,{"$f":"Import!M11337","v":"Select"},{"$f":"Import!M11737","v":"Select"},{"$f":"Import!M12137","v":"Select"},{"$f":"Import!M12537","v":0},{"$f":"Import!M12937","v":0},{"$f":"Import!M13337","v":0},{"$f":"Import!M13737","v":0},{"$f":"Import!M14137","v":0}]
[239,{"$f":"Import!M11338","v":"Select"},{"$f":"Import!M11738","v":"Select"},{"$f":"Import!M12138","v":"Select"},{"$f":"Import!M12538","v":0},{"$f":"Import!M12938","v":0},{"$f":"Import!M13338","v":0},{"$f":"Import!M13738","v":0},{"$f":"Import!M14138","v":0}]
[240,{"$f":"Import!M11339","v":"Select"},{"$f":"Import!M11739","v":"Select"},{"$f":"Import!M12139","v":"Select"},{"$f":"Import!M12539","v":0},{"$f":"Import!M12939","v":0},{"$f":"Import!M13339","v":0},{"$f":"Import!M13739","v":0},{"$f":"Import!M14139","v":0}]
[241,{"$f":"Import!M11340","v":"Select"},{"$f":"Import!M11740","v":"Select"},{"$f":"Import!M12140","v":"Select"},{"$f":"Import!M12540","v":0},{"$f":"Import!M12940","v":0},{"$f":"Import!M13340","v":0},{"$f":"Import!M13740","v":0},{"$f":"Import!M14140","v":0}]
[242,{"$f":"Import!M11341","v":"Select"},{"$f":"Import!M11741","v":"Select"},{"$f":"Import!M12141","v":"Select"},{"$f":"Import!M12541","v":0},{"$f":"Import!M12941","v":0},{"$f":"Import!M13341","v":0},{"$f":"Import!M13741","v":0},{"$f":"Import!M14141","v":0}]
[243,{"$f":"Import!M11342","v":"Select"},{"$f":"Import!M11742","v":"Select"},{"$f":"Import!M12142","v":"Select"},{"$f":"Import!M12542","v":0},{"$f":"Import!M12942","v":0},{"$f":"Import!M13342","v":0},{"$f":"Import!M13742","v":0},{"$f":"Import!M14142","v":0}]
[244,{"$f":"Import!M11343","v":"Select"},{"$f":"Import!M11743","v":"Select"},{"$f":"Import!M12143","v":"Select"},{"$f":"Import!M12543","v":0},{"$f":"Import!M12943","v":0},{"$f":"Import!M13343","v":0},{"$f":"Import!M13743","v":0},{"$f":"Import!M14143","v":0}]
[245,{"$f":"Import!M11344","v":"Select"},{"$f":"Import!M11744","v":"Select"},{"$f":"Import!M12144","v":"Select"},{"$f":"Import!M12544","v":0},{"$f":"Import!M12944","v":0},{"$f":"Import!M13344","v":0},{"$f":"Import!M13744","v":0},{"$f":"Import!M14144","v":0}]
[246,{"$f":"Import!M11345","v":"Select"},{"$f":"Import!M11745","v":"Select"},{"$f":"Import!M12145","v":"Select"},{"$f":"Import!M12545","v":0},{"$f":"Import!M12945","v":0},{"$f":"Import!M13345","v":0},{"$f":"Import!M13745","v":0},{"$f":"Import!M14145","v":0}]
[247,{"$f":"Import!M11346","v":"Select"},{"$f":"Import!M11746","v":"Select"},{"$f":"Import!M12146","v":"Select"},{"$f":"Import!M12546","v":0},{"$f":"Import!M12946","v":0},{"$f":"Import!M13346","v":0},{"$f":"Import!M13746","v":0},{"$f":"Import!M14146","v":0}]
[248,{"$f":"Import!M11347","v":"Select"},{"$f":"Import!M11747","v":"Select"},{"$f":"Import!M12147","v":"Select"},{"$f":"Import!M12547","v":0},{"$f":"Import!M12947","v":0},{"$f":"Import!M13347","v":0},{"$f":"Import!M13747","v":0},{"$f":"Import!M14147","v":0}]
[249,{"$f":"Import!M11348","v":"Select"},{"$f":"Import!M11748","v":"Select"},{"$f":"Import!M12148","v":"Select"},{"$f":"Import!M12548","v":0},{"$f":"Import!M12948","v":0},{"$f":"Import!M13348","v":0},{"$f":"Import!M13748","v":0},{"$f":"Import!M14148","v":0}]
[250,{"$f":"Import!M11349","v":"Select"},{"$f":"Import!M11749","v":"Select"},{"$f":"Import!M12149","v":"Select"},{"$f":"Import!M12549","v":0},{"$f":"Import!M12949","v":0},{"$f":"Import!M13349","v":0},{"$f":"Import!M13749","v":0},{"$f":"Import!M14149","v":0}]
[251,{"$f":"Import!M11350","v":"Select"},{"$f":"Import!M11750","v":"Select"},{"$f":"Import!M12150","v":"Select"},{"$f":"Import!M12550","v":0},{"$f":"Import!M12950","v":0},{"$f":"Import!M13350","v":0},{"$f":"Import!M13750","v":0},{"$f":"Import!M14150","v":0}]
[252,{"$f":"Import!M11351","v":"Select"},{"$f":"Import!M11751","v":"Select"},{"$f":"Import!M12151","v":"Select"},{"$f":"Import!M12551","v":0},{"$f":"Import!M12951","v":0},{"$f":"Import!M13351","v":0},{"$f":"Import!M13751","v":0},{"$f":"Import!M14151","v":0}]
[253,{"$f":"Import!M11352","v":"Select"},{"$f":"Import!M11752","v":"Select"},{"$f":"Import!M12152","v":"Select"},{"$f":"Import!M12552","v":0},{"$f":"Import!M12952","v":0},{"$f":"Import!M13352","v":0},{"$f":"Import!M13752","v":0},{"$f":"Import!M14152","v":0}]
[254,{"$f":"Import!M11353","v":"Select"},{"$f":"Import!M11753","v":"Select"},{"$f":"Import!M12153","v":"Select"},{"$f":"Import!M12553","v":0},{"$f":"Import!M12953","v":0},{"$f":"Import!M13353","v":0},{"$f":"Import!M13753","v":0},{"$f":"Import!M14153","v":0}]
[255,{"$f":"Import!M11354","v":"Select"},{"$f":"Import!M11754","v":"Select"},{"$f":"Import!M12154","v":"Select"},{"$f":"Import!M12554","v":0},{"$f":"Import!M12954","v":0},{"$f":"Import!M13354","v":0},{"$f":"Import!M13754","v":0},{"$f":"Import!M14154","v":0}]
[256,{"$f":"Import!M11355","v":"Select"},{"$f":"Import!M11755","v":"Select"},{"$f":"Import!M12155","v":"Select"},{"$f":"Import!M12555","v":0},{"$f":"Import!M12955","v":0},{"$f":"Import!M13355","v":0},{"$f":"Import!M13755","v":0},{"$f":"Import!M14155","v":0}]
[257,{"$f":"Import!M11356","v":"Select"},{"$f":"Import!M11756","v":"Select"},{"$f":"Import!M12156","v":"Select"},{"$f":"Import!M12556","v":0},{"$f":"Import!M12956","v":0},{"$f":"Import!M13356","v":0},{"$f":"Import!M13756","v":0},{"$f":"Import!M14156","v":0}]
[258,{"$f":"Import!M11357","v":"Select"},{"$f":"Import!M11757","v":"Select"},{"$f":"Import!M12157","v":"Select"},{"$f":"Import!M12557","v":0},{"$f":"Import!M12957","v":0},{"$f":"Import!M13357","v":0},{"$f":"Import!M13757","v":0},{"$f":"Import!M14157","v":0}]
[{"$f":"A476+1","v":259},{"$f":"Import!M11358","v":"Select"},{"$f":"Import!M11758","v":"Select"},{"$f":"Import!M12158","v":"Select"},{"$f":"Import!M12558","v":0},{"$f":"Import!M12958","v":0},{"$f":"Import!M13358","v":0},{"$f":"Import!M13758","v":0},{"$f":"Import!M14158","v":0}]
[260,{"$f":"Import!M11359","v":"Select"},{"$f":"Import!M11759","v":"Select"},{"$f":"Import!M12159","v":"Select"},{"$f":"Import!M12559","v":0},{"$f":"Import!M12959","v":0},{"$f":"Import!M13359","v":0},{"$f":"Import!M13759","v":0},{"$f":"Import!M14159","v":0}]
[261,{"$f":"Import!M11360","v":"Select"},{"$f":"Import!M11760","v":"Select"},{"$f":"Import!M12160","v":"Select"},{"$f":"Import!M12560","v":0},{"$f":"Import!M12960","v":0},{"$f":"Import!M13360","v":0},{"$f":"Import!M13760","v":0},{"$f":"Import!M14160","v":0}]
[262,{"$f":"Import!M11361","v":"Select"},{"$f":"Import!M11761","v":"Select"},{"$f":"Import!M12161","v":"Select"},{"$f":"Import!M12561","v":0},{"$f":"Import!M12961","v":0},{"$f":"Import!M13361","v":0},{"$f":"Import!M13761","v":0},{"$f":"Import!M14161","v":0}]
[263,{"$f":"Import!M11362","v":"Select"},{"$f":"Import!M11762","v":"Select"},{"$f":"Import!M12162","v":"Select"},{"$f":"Import!M12562","v":0},{"$f":"Import!M12962","v":0},{"$f":"Import!M13362","v":0},{"$f":"Import!M13762","v":0},{"$f":"Import!M14162","v":0}]
[264,{"$f":"Import!M11363","v":"Select"},{"$f":"Import!M11763","v":"Select"},{"$f":"Import!M12163","v":"Select"},{"$f":"Import!M12563","v":0},{"$f":"Import!M12963","v":0},{"$f":"Import!M13363","v":0},{"$f":"Import!M13763","v":0},{"$f":"Import!M14163","v":0}]
[265,{"$f":"Import!M11364","v":"Select"},{"$f":"Import!M11764","v":"Select"},{"$f":"Import!M12164","v":"Select"},{"$f":"Import!M12564","v":0},{"$f":"Import!M12964","v":0},{"$f":"Import!M13364","v":0},{"$f":"Import!M13764","v":0},{"$f":"Import!M14164","v":0}]
[266,{"$f":"Import!M11365","v":"Select"},{"$f":"Import!M11765","v":"Select"},{"$f":"Import!M12165","v":"Select"},{"$f":"Import!M12565","v":0},{"$f":"Import!M12965","v":0},{"$f":"Import!M13365","v":0},{"$f":"Import!M13765","v":0},{"$f":"Import!M14165","v":0}]
[267,{"$f":"Import!M11366","v":"Select"},{"$f":"Import!M11766","v":"Select"},{"$f":"Import!M12166","v":"Select"},{"$f":"Import!M12566","v":0},{"$f":"Import!M12966","v":0},{"$f":"Import!M13366","v":0},{"$f":"Import!M13766","v":0},{"$f":"Import!M14166","v":0}]
[268,{"$f":"Import!M11367","v":"Select"},{"$f":"Import!M11767","v":"Select"},{"$f":"Import!M12167","v":"Select"},{"$f":"Import!M12567","v":0},{"$f":"Import!M12967","v":0},{"$f":"Import!M13367","v":0},{"$f":"Import!M13767","v":0},{"$f":"Import!M14167","v":0}]
[269,{"$f":"Import!M11368","v":"Select"},{"$f":"Import!M11768","v":"Select"},{"$f":"Import!M12168","v":"Select"},{"$f":"Import!M12568","v":0},{"$f":"Import!M12968","v":0},{"$f":"Import!M13368","v":0},{"$f":"Import!M13768","v":0},{"$f":"Import!M14168","v":0}]
[270,{"$f":"Import!M11369","v":"Select"},{"$f":"Import!M11769","v":"Select"},{"$f":"Import!M12169","v":"Select"},{"$f":"Import!M12569","v":0},{"$f":"Import!M12969","v":0},{"$f":"Import!M13369","v":0},{"$f":"Import!M13769","v":0},{"$f":"Import!M14169","v":0}]
[271,{"$f":"Import!M11370","v":"Select"},{"$f":"Import!M11770","v":"Select"},{"$f":"Import!M12170","v":"Select"},{"$f":"Import!M12570","v":0},{"$f":"Import!M12970","v":0},{"$f":"Import!M13370","v":0},{"$f":"Import!M13770","v":0},{"$f":"Import!M14170","v":0}]
[272,{"$f":"Import!M11371","v":"Select"},{"$f":"Import!M11771","v":"Select"},{"$f":"Import!M12171","v":"Select"},{"$f":"Import!M12571","v":0},{"$f":"Import!M12971","v":0},{"$f":"Import!M13371","v":0},{"$f":"Import!M13771","v":0},{"$f":"Import!M14171","v":0}]
[273,{"$f":"Import!M11372","v":"Select"},{"$f":"Import!M11772","v":"Select"},{"$f":"Import!M12172","v":"Select"},{"$f":"Import!M12572","v":0},{"$f":"Import!M12972","v":0},{"$f":"Import!M13372","v":0},{"$f":"Import!M13772","v":0},{"$f":"Import!M14172","v":0}]
[274,{"$f":"Import!M11373","v":"Select"},{"$f":"Import!M11773","v":"Select"},{"$f":"Import!M12173","v":"Select"},{"$f":"Import!M12573","v":0},{"$f":"Import!M12973","v":0},{"$f":"Import!M13373","v":0},{"$f":"Import!M13773","v":0},{"$f":"Import!M14173","v":0}]
[275,{"$f":"Import!M11374","v":"Select"},{"$f":"Import!M11774","v":"Select"},{"$f":"Import!M12174","v":"Select"},{"$f":"Import!M12574","v":0},{"$f":"Import!M12974","v":0},{"$f":"Import!M13374","v":0},{"$f":"Import!M13774","v":0},{"$f":"Import!M14174","v":0}]
[276,{"$f":"Import!M11375","v":"Select"},{"$f":"Import!M11775","v":"Select"},{"$f":"Import!M12175","v":"Select"},{"$f":"Import!M12575","v":0},{"$f":"Import!M12975","v":0},{"$f":"Import!M13375","v":0},{"$f":"Import!M13775","v":0},{"$f":"Import!M14175","v":0}]
[277,{"$f":"Import!M11376","v":"Select"},{"$f":"Import!M11776","v":"Select"},{"$f":"Import!M12176","v":"Select"},{"$f":"Import!M12576","v":0},{"$f":"Import!M12976","v":0},{"$f":"Import!M13376","v":0},{"$f":"Import!M13776","v":0},{"$f":"Import!M14176","v":0}]
[278,{"$f":"Import!M11377","v":"Select"},{"$f":"Import!M11777","v":"Select"},{"$f":"Import!M12177","v":"Select"},{"$f":"Import!M12577","v":0},{"$f":"Import!M12977","v":0},{"$f":"Import!M13377","v":0},{"$f":"Import!M13777","v":0},{"$f":"Import!M14177","v":0}]
[279,{"$f":"Import!M11378","v":"Select"},{"$f":"Import!M11778","v":"Select"},{"$f":"Import!M12178","v":"Select"},{"$f":"Import!M12578","v":0},{"$f":"Import!M12978","v":0},{"$f":"Import!M13378","v":0},{"$f":"Import!M13778","v":0},{"$f":"Import!M14178","v":0}]
[280,{"$f":"Import!M11379","v":"Select"},{"$f":"Import!M11779","v":"Select"},{"$f":"Import!M12179","v":"Select"},{"$f":"Import!M12579","v":0},{"$f":"Import!M12979","v":0},{"$f":"Import!M13379","v":0},{"$f":"Import!M13779","v":0},{"$f":"Import!M14179","v":0}]
[281,{"$f":"Import!M11380","v":"Select"},{"$f":"Import!M11780","v":"Select"},{"$f":"Import!M12180","v":"Select"},{"$f":"Import!M12580","v":0},{"$f":"Import!M12980","v":0},{"$f":"Import!M13380","v":0},{"$f":"Import!M13780","v":0},{"$f":"Import!M14180","v":0}]
[282,{"$f":"Import!M11381","v":"Select"},{"$f":"Import!M11781","v":"Select"},{"$f":"Import!M12181","v":"Select"},{"$f":"Import!M12581","v":0},{"$f":"Import!M12981","v":0},{"$f":"Import!M13381","v":0},{"$f":"Import!M13781","v":0},{"$f":"Import!M14181","v":0}]
[283,{"$f":"Import!M11382","v":"Select"},{"$f":"Import!M11782","v":"Select"},{"$f":"Import!M12182","v":"Select"},{"$f":"Import!M12582","v":0},{"$f":"Import!M12982","v":0},{"$f":"Import!M13382","v":0},{"$f":"Import!M13782","v":0},{"$f":"Import!M14182","v":0}]
[284,{"$f":"Import!M11383","v":"Select"},{"$f":"Import!M11783","v":"Select"},{"$f":"Import!M12183","v":"Select"},{"$f":"Import!M12583","v":0},{"$f":"Import!M12983","v":0},{"$f":"Import!M13383","v":0},{"$f":"Import!M13783","v":0},{"$f":"Import!M14183","v":0}]
[285,{"$f":"Import!M11384","v":"Select"},{"$f":"Import!M11784","v":"Select"},{"$f":"Import!M12184","v":"Select"},{"$f":"Import!M12584","v":0},{"$f":"Import!M12984","v":0},{"$f":"Import!M13384","v":0},{"$f":"Import!M13784","v":0},{"$f":"Import!M14184","v":0}]
[286,{"$f":"Import!M11385","v":"Select"},{"$f":"Import!M11785","v":"Select"},{"$f":"Import!M12185","v":"Select"},{"$f":"Import!M12585","v":0},{"$f":"Import!M12985","v":0},{"$f":"Import!M13385","v":0},{"$f":"Import!M13785","v":0},{"$f":"Import!M14185","v":0}]
[287,{"$f":"Import!M11386","v":"Select"},{"$f":"Import!M11786","v":"Select"},{"$f":"Import!M12186","v":"Select"},{"$f":"Import!M12586","v":0},{"$f":"Import!M12986","v":0},{"$f":"Import!M13386","v":0},{"$f":"Import!M13786","v":0},{"$f":"Import!M14186","v":0}]
[288,{"$f":"Import!M11387","v":"Select"},{"$f":"Import!M11787","v":"Select"},{"$f":"Import!M12187","v":"Select"},{"$f":"Import!M12587","v":0},{"$f":"Import!M12987","v":0},{"$f":"Import!M13387","v":0},{"$f":"Import!M13787","v":0},{"$f":"Import!M14187","v":0}]
[289,{"$f":"Import!M11388","v":"Select"},{"$f":"Import!M11788","v":"Select"},{"$f":"Import!M12188","v":"Select"},{"$f":"Import!M12588","v":0},{"$f":"Import!M12988","v":0},{"$f":"Import!M13388","v":0},{"$f":"Import!M13788","v":0},{"$f":"Import!M14188","v":0}]
[290,{"$f":"Import!M11389","v":"Select"},{"$f":"Import!M11789","v":"Select"},{"$f":"Import!M12189","v":"Select"},{"$f":"Import!M12589","v":0},{"$f":"Import!M12989","v":0},{"$f":"Import!M13389","v":0},{"$f":"Import!M13789","v":0},{"$f":"Import!M14189","v":0}]
[291,{"$f":"Import!M11390","v":"Select"},{"$f":"Import!M11790","v":"Select"},{"$f":"Import!M12190","v":"Select"},{"$f":"Import!M12590","v":0},{"$f":"Import!M12990","v":0},{"$f":"Import!M13390","v":0},{"$f":"Import!M13790","v":0},{"$f":"Import!M14190","v":0}]
[292,{"$f":"Import!M11391","v":"Select"},{"$f":"Import!M11791","v":"Select"},{"$f":"Import!M12191","v":"Select"},{"$f":"Import!M12591","v":0},{"$f":"Import!M12991","v":0},{"$f":"Import!M13391","v":0},{"$f":"Import!M13791","v":0},{"$f":"Import!M14191","v":0}]
[293,{"$f":"Import!M11392","v":"Select"},{"$f":"Import!M11792","v":"Select"},{"$f":"Import!M12192","v":"Select"},{"$f":"Import!M12592","v":0},{"$f":"Import!M12992","v":0},{"$f":"Import!M13392","v":0},{"$f":"Import!M13792","v":0},{"$f":"Import!M14192","v":0}]
[294,{"$f":"Import!M11393","v":"Select"},{"$f":"Import!M11793","v":"Select"},{"$f":"Import!M12193","v":"Select"},{"$f":"Import!M12593","v":0},{"$f":"Import!M12993","v":0},{"$f":"Import!M13393","v":0},{"$f":"Import!M13793","v":0},{"$f":"Import!M14193","v":0}]
[295,{"$f":"Import!M11394","v":"Select"},{"$f":"Import!M11794","v":"Select"},{"$f":"Import!M12194","v":"Select"},{"$f":"Import!M12594","v":0},{"$f":"Import!M12994","v":0},{"$f":"Import!M13394","v":0},{"$f":"Import!M13794","v":0},{"$f":"Import!M14194","v":0}]
[296,{"$f":"Import!M11395","v":"Select"},{"$f":"Import!M11795","v":"Select"},{"$f":"Import!M12195","v":"Select"},{"$f":"Import!M12595","v":0},{"$f":"Import!M12995","v":0},{"$f":"Import!M13395","v":0},{"$f":"Import!M13795","v":0},{"$f":"Import!M14195","v":0}]
[297,{"$f":"Import!M11396","v":"Select"},{"$f":"Import!M11796","v":"Select"},{"$f":"Import!M12196","v":"Select"},{"$f":"Import!M12596","v":0},{"$f":"Import!M12996","v":0},{"$f":"Import!M13396","v":0},{"$f":"Import!M13796","v":0},{"$f":"Import!M14196","v":0}]
[298,{"$f":"Import!M11397","v":"Select"},{"$f":"Import!M11797","v":"Select"},{"$f":"Import!M12197","v":"Select"},{"$f":"Import!M12597","v":0},{"$f":"Import!M12997","v":0},{"$f":"Import!M13397","v":0},{"$f":"Import!M13797","v":0},{"$f":"Import!M14197","v":0}]
[299,{"$f":"Import!M11398","v":"Select"},{"$f":"Import!M11798","v":"Select"},{"$f":"Import!M12198","v":"Select"},{"$f":"Import!M12598","v":0},{"$f":"Import!M12998","v":0},{"$f":"Import!M13398","v":0},{"$f":"Import!M13798","v":0},{"$f":"Import!M14198","v":0}]
[300,{"$f":"Import!M11399","v":"Select"},{"$f":"Import!M11799","v":"Select"},{"$f":"Import!M12199","v":"Select"},{"$f":"Import!M12599","v":0},{"$f":"Import!M12999","v":0},{"$f":"Import!M13399","v":0},{"$f":"Import!M13799","v":0},{"$f":"Import!M14199","v":0}]
[301,{"$f":"Import!M11400","v":"Select"},{"$f":"Import!M11800","v":"Select"},{"$f":"Import!M12200","v":"Select"},{"$f":"Import!M12600","v":0},{"$f":"Import!M13000","v":0},{"$f":"Import!M13400","v":0},{"$f":"Import!M13800","v":0},{"$f":"Import!M14200","v":0}]
[302,{"$f":"Import!M11401","v":"Select"},{"$f":"Import!M11801","v":"Select"},{"$f":"Import!M12201","v":"Select"},{"$f":"Import!M12601","v":0},{"$f":"Import!M13001","v":0},{"$f":"Import!M13401","v":0},{"$f":"Import!M13801","v":0},{"$f":"Import!M14201","v":0}]
[303,{"$f":"Import!M11402","v":"Select"},{"$f":"Import!M11802","v":"Select"},{"$f":"Import!M12202","v":"Select"},{"$f":"Import!M12602","v":0},{"$f":"Import!M13002","v":0},{"$f":"Import!M13402","v":0},{"$f":"Import!M13802","v":0},{"$f":"Import!M14202","v":0}]
[304,{"$f":"Import!M11403","v":"Select"},{"$f":"Import!M11803","v":"Select"},{"$f":"Import!M12203","v":"Select"},{"$f":"Import!M12603","v":0},{"$f":"Import!M13003","v":0},{"$f":"Import!M13403","v":0},{"$f":"Import!M13803","v":0},{"$f":"Import!M14203","v":0}]
[305,{"$f":"Import!M11404","v":"Select"},{"$f":"Import!M11804","v":"Select"},{"$f":"Import!M12204","v":"Select"},{"$f":"Import!M12604","v":0},{"$f":"Import!M13004","v":0},{"$f":"Import!M13404","v":0},{"$f":"Import!M13804","v":0},{"$f":"Import!M14204","v":0}]
[306,{"$f":"Import!M11405","v":"Select"},{"$f":"Import!M11805","v":"Select"},{"$f":"Import!M12205","v":"Select"},{"$f":"Import!M12605","v":0},{"$f":"Import!M13005","v":0},{"$f":"Import!M13405","v":0},{"$f":"Import!M13805","v":0},{"$f":"Import!M14205","v":0}]
[307,{"$f":"Import!M11406","v":"Select"},{"$f":"Import!M11806","v":"Select"},{"$f":"Import!M12206","v":"Select"},{"$f":"Import!M12606","v":0},{"$f":"Import!M13006","v":0},{"$f":"Import!M13406","v":0},{"$f":"Import!M13806","v":0},{"$f":"Import!M14206","v":0}]
[308,{"$f":"Import!M11407","v":"Select"},{"$f":"Import!M11807","v":"Select"},{"$f":"Import!M12207","v":"Select"},{"$f":"Import!M12607","v":0},{"$f":"Import!M13007","v":0},{"$f":"Import!M13407","v":0},{"$f":"Import!M13807","v":0},{"$f":"Import!M14207","v":0}]
[309,{"$f":"Import!M11408","v":"Select"},{"$f":"Import!M11808","v":"Select"},{"$f":"Import!M12208","v":"Select"},{"$f":"Import!M12608","v":0},{"$f":"Import!M13008","v":0},{"$f":"Import!M13408","v":0},{"$f":"Import!M13808","v":0},{"$f":"Import!M14208","v":0}]
[310,{"$f":"Import!M11409","v":"Select"},{"$f":"Import!M11809","v":"Select"},{"$f":"Import!M12209","v":"Select"},{"$f":"Import!M12609","v":0},{"$f":"Import!M13009","v":0},{"$f":"Import!M13409","v":0},{"$f":"Import!M13809","v":0},{"$f":"Import!M14209","v":0}]
[311,{"$f":"Import!M11410","v":"Select"},{"$f":"Import!M11810","v":"Select"},{"$f":"Import!M12210","v":"Select"},{"$f":"Import!M12610","v":0},{"$f":"Import!M13010","v":0},{"$f":"Import!M13410","v":0},{"$f":"Import!M13810","v":0},{"$f":"Import!M14210","v":0}]
[312,{"$f":"Import!M11411","v":"Select"},{"$f":"Import!M11811","v":"Select"},{"$f":"Import!M12211","v":"Select"},{"$f":"Import!M12611","v":0},{"$f":"Import!M13011","v":0},{"$f":"Import!M13411","v":0},{"$f":"Import!M13811","v":0},{"$f":"Import!M14211","v":0}]
[313,{"$f":"Import!M11412","v":"Select"},{"$f":"Import!M11812","v":"Select"},{"$f":"Import!M12212","v":"Select"},{"$f":"Import!M12612","v":0},{"$f":"Import!M13012","v":0},{"$f":"Import!M13412","v":0},{"$f":"Import!M13812","v":0},{"$f":"Import!M14212","v":0}]
[314,{"$f":"Import!M11413","v":"Select"},{"$f":"Import!M11813","v":"Select"},{"$f":"Import!M12213","v":"Select"},{"$f":"Import!M12613","v":0},{"$f":"Import!M13013","v":0},{"$f":"Import!M13413","v":0},{"$f":"Import!M13813","v":0},{"$f":"Import!M14213","v":0}]
[315,{"$f":"Import!M11414","v":"Select"},{"$f":"Import!M11814","v":"Select"},{"$f":"Import!M12214","v":"Select"},{"$f":"Import!M12614","v":0},{"$f":"Import!M13014","v":0},{"$f":"Import!M13414","v":0},{"$f":"Import!M13814","v":0},{"$f":"Import!M14214","v":0}]
[316,{"$f":"Import!M11415","v":"Select"},{"$f":"Import!M11815","v":"Select"},{"$f":"Import!M12215","v":"Select"},{"$f":"Import!M12615","v":0},{"$f":"Import!M13015","v":0},{"$f":"Import!M13415","v":0},{"$f":"Import!M13815","v":0},{"$f":"Import!M14215","v":0}]
[317,{"$f":"Import!M11416","v":"Select"},{"$f":"Import!M11816","v":"Select"},{"$f":"Import!M12216","v":"Select"},{"$f":"Import!M12616","v":0},{"$f":"Import!M13016","v":0},{"$f":"Import!M13416","v":0},{"$f":"Import!M13816","v":0},{"$f":"Import!M14216","v":0}]
[318,{"$f":"Import!M11417","v":"Select"},{"$f":"Import!M11817","v":"Select"},{"$f":"Import!M12217","v":"Select"},{"$f":"Import!M12617","v":0},{"$f":"Import!M13017","v":0},{"$f":"Import!M13417","v":0},{"$f":"Import!M13817","v":0},{"$f":"Import!M14217","v":0}]
[319,{"$f":"Import!M11418","v":"Select"},{"$f":"Import!M11818","v":"Select"},{"$f":"Import!M12218","v":"Select"},{"$f":"Import!M12618","v":0},{"$f":"Import!M13018","v":0},{"$f":"Import!M13418","v":0},{"$f":"Import!M13818","v":0},{"$f":"Import!M14218","v":0}]
[320,{"$f":"Import!M11419","v":"Select"},{"$f":"Import!M11819","v":"Select"},{"$f":"Import!M12219","v":"Select"},{"$f":"Import!M12619","v":0},{"$f":"Import!M13019","v":0},{"$f":"Import!M13419","v":0},{"$f":"Import!M13819","v":0},{"$f":"Import!M14219","v":0}]
[321,{"$f":"Import!M11420","v":"Select"},{"$f":"Import!M11820","v":"Select"},{"$f":"Import!M12220","v":"Select"},{"$f":"Import!M12620","v":0},{"$f":"Import!M13020","v":0},{"$f":"Import!M13420","v":0},{"$f":"Import!M13820","v":0},{"$f":"Import!M14220","v":0}]
[322,{"$f":"Import!M11421","v":"Select"},{"$f":"Import!M11821","v":"Select"},{"$f":"Import!M12221","v":"Select"},{"$f":"Import!M12621","v":0},{"$f":"Import!M13021","v":0},{"$f":"Import!M13421","v":0},{"$f":"Import!M13821","v":0},{"$f":"Import!M14221","v":0}]
[{"$f":"A540+1","v":323},{"$f":"Import!M11422","v":"Select"},{"$f":"Import!M11822","v":"Select"},{"$f":"Import!M12222","v":"Select"},{"$f":"Import!M12622","v":0},{"$f":"Import!M13022","v":0},{"$f":"Import!M13422","v":0},{"$f":"Import!M13822","v":0},{"$f":"Import!M14222","v":0}]
[324,{"$f":"Import!M11423","v":"Select"},{"$f":"Import!M11823","v":"Select"},{"$f":"Import!M12223","v":"Select"},{"$f":"Import!M12623","v":0},{"$f":"Import!M13023","v":0},{"$f":"Import!M13423","v":0},{"$f":"Import!M13823","v":0},{"$f":"Import!M14223","v":0}]
[325,{"$f":"Import!M11424","v":"Select"},{"$f":"Import!M11824","v":"Select"},{"$f":"Import!M12224","v":"Select"},{"$f":"Import!M12624","v":0},{"$f":"Import!M13024","v":0},{"$f":"Import!M13424","v":0},{"$f":"Import!M13824","v":0},{"$f":"Import!M14224","v":0}]
[326,{"$f":"Import!M11425","v":"Select"},{"$f":"Import!M11825","v":"Select"},{"$f":"Import!M12225","v":"Select"},{"$f":"Import!M12625","v":0},{"$f":"Import!M13025","v":0},{"$f":"Import!M13425","v":0},{"$f":"Import!M13825","v":0},{"$f":"Import!M14225","v":0}]
[327,{"$f":"Import!M11426","v":"Select"},{"$f":"Import!M11826","v":"Select"},{"$f":"Import!M12226","v":"Select"},{"$f":"Import!M12626","v":0},{"$f":"Import!M13026","v":0},{"$f":"Import!M13426","v":0},{"$f":"Import!M13826","v":0},{"$f":"Import!M14226","v":0}]
[328,{"$f":"Import!M11427","v":"Select"},{"$f":"Import!M11827","v":"Select"},{"$f":"Import!M12227","v":"Select"},{"$f":"Import!M12627","v":0},{"$f":"Import!M13027","v":0},{"$f":"Import!M13427","v":0},{"$f":"Import!M13827","v":0},{"$f":"Import!M14227","v":0}]
[329,{"$f":"Import!M11428","v":"Select"},{"$f":"Import!M11828","v":"Select"},{"$f":"Import!M12228","v":"Select"},{"$f":"Import!M12628","v":0},{"$f":"Import!M13028","v":0},{"$f":"Import!M13428","v":0},{"$f":"Import!M13828","v":0},{"$f":"Import!M14228","v":0}]
[330,{"$f":"Import!M11429","v":"Select"},{"$f":"Import!M11829","v":"Select"},{"$f":"Import!M12229","v":"Select"},{"$f":"Import!M12629","v":0},{"$f":"Import!M13029","v":0},{"$f":"Import!M13429","v":0},{"$f":"Import!M13829","v":0},{"$f":"Import!M14229","v":0}]
[331,{"$f":"Import!M11430","v":"Select"},{"$f":"Import!M11830","v":"Select"},{"$f":"Import!M12230","v":"Select"},{"$f":"Import!M12630","v":0},{"$f":"Import!M13030","v":0},{"$f":"Import!M13430","v":0},{"$f":"Import!M13830","v":0},{"$f":"Import!M14230","v":0}]
[332,{"$f":"Import!M11431","v":"Select"},{"$f":"Import!M11831","v":"Select"},{"$f":"Import!M12231","v":"Select"},{"$f":"Import!M12631","v":0},{"$f":"Import!M13031","v":0},{"$f":"Import!M13431","v":0},{"$f":"Import!M13831","v":0},{"$f":"Import!M14231","v":0}]
[333,{"$f":"Import!M11432","v":"Select"},{"$f":"Import!M11832","v":"Select"},{"$f":"Import!M12232","v":"Select"},{"$f":"Import!M12632","v":0},{"$f":"Import!M13032","v":0},{"$f":"Import!M13432","v":0},{"$f":"Import!M13832","v":0},{"$f":"Import!M14232","v":0}]
[334,{"$f":"Import!M11433","v":"Select"},{"$f":"Import!M11833","v":"Select"},{"$f":"Import!M12233","v":"Select"},{"$f":"Import!M12633","v":0},{"$f":"Import!M13033","v":0},{"$f":"Import!M13433","v":0},{"$f":"Import!M13833","v":0},{"$f":"Import!M14233","v":0}]
[335,{"$f":"Import!M11434","v":"Select"},{"$f":"Import!M11834","v":"Select"},{"$f":"Import!M12234","v":"Select"},{"$f":"Import!M12634","v":0},{"$f":"Import!M13034","v":0},{"$f":"Import!M13434","v":0},{"$f":"Import!M13834","v":0},{"$f":"Import!M14234","v":0}]
[336,{"$f":"Import!M11435","v":"Select"},{"$f":"Import!M11835","v":"Select"},{"$f":"Import!M12235","v":"Select"},{"$f":"Import!M12635","v":0},{"$f":"Import!M13035","v":0},{"$f":"Import!M13435","v":0},{"$f":"Import!M13835","v":0},{"$f":"Import!M14235","v":0}]
[337,{"$f":"Import!M11436","v":"Select"},{"$f":"Import!M11836","v":"Select"},{"$f":"Import!M12236","v":"Select"},{"$f":"Import!M12636","v":0},{"$f":"Import!M13036","v":0},{"$f":"Import!M13436","v":0},{"$f":"Import!M13836","v":0},{"$f":"Import!M14236","v":0}]
[338,{"$f":"Import!M11437","v":"Select"},{"$f":"Import!M11837","v":"Select"},{"$f":"Import!M12237","v":"Select"},{"$f":"Import!M12637","v":0},{"$f":"Import!M13037","v":0},{"$f":"Import!M13437","v":0},{"$f":"Import!M13837","v":0},{"$f":"Import!M14237","v":0}]
[339,{"$f":"Import!M11438","v":"Select"},{"$f":"Import!M11838","v":"Select"},{"$f":"Import!M12238","v":"Select"},{"$f":"Import!M12638","v":0},{"$f":"Import!M13038","v":0},{"$f":"Import!M13438","v":0},{"$f":"Import!M13838","v":0},{"$f":"Import!M14238","v":0}]
[340,{"$f":"Import!M11439","v":"Select"},{"$f":"Import!M11839","v":"Select"},{"$f":"Import!M12239","v":"Select"},{"$f":"Import!M12639","v":0},{"$f":"Import!M13039","v":0},{"$f":"Import!M13439","v":0},{"$f":"Import!M13839","v":0},{"$f":"Import!M14239","v":0}]
[341,{"$f":"Import!M11440","v":"Select"},{"$f":"Import!M11840","v":"Select"},{"$f":"Import!M12240","v":"Select"},{"$f":"Import!M12640","v":0},{"$f":"Import!M13040","v":0},{"$f":"Import!M13440","v":0},{"$f":"Import!M13840","v":0},{"$f":"Import!M14240","v":0}]
[342,{"$f":"Import!M11441","v":"Select"},{"$f":"Import!M11841","v":"Select"},{"$f":"Import!M12241","v":"Select"},{"$f":"Import!M12641","v":0},{"$f":"Import!M13041","v":0},{"$f":"Import!M13441","v":0},{"$f":"Import!M13841","v":0},{"$f":"Import!M14241","v":0}]
[343,{"$f":"Import!M11442","v":"Select"},{"$f":"Import!M11842","v":"Select"},{"$f":"Import!M12242","v":"Select"},{"$f":"Import!M12642","v":0},{"$f":"Import!M13042","v":0},{"$f":"Import!M13442","v":0},{"$f":"Import!M13842","v":0},{"$f":"Import!M14242","v":0}]
[344,{"$f":"Import!M11443","v":"Select"},{"$f":"Import!M11843","v":"Select"},{"$f":"Import!M12243","v":"Select"},{"$f":"Import!M12643","v":0},{"$f":"Import!M13043","v":0},{"$f":"Import!M13443","v":0},{"$f":"Import!M13843","v":0},{"$f":"Import!M14243","v":0}]
[345,{"$f":"Import!M11444","v":"Select"},{"$f":"Import!M11844","v":"Select"},{"$f":"Import!M12244","v":"Select"},{"$f":"Import!M12644","v":0},{"$f":"Import!M13044","v":0},{"$f":"Import!M13444","v":0},{"$f":"Import!M13844","v":0},{"$f":"Import!M14244","v":0}]
[346,{"$f":"Import!M11445","v":"Select"},{"$f":"Import!M11845","v":"Select"},{"$f":"Import!M12245","v":"Select"},{"$f":"Import!M12645","v":0},{"$f":"Import!M13045","v":0},{"$f":"Import!M13445","v":0},{"$f":"Import!M13845","v":0},{"$f":"Import!M14245","v":0}]
[347,{"$f":"Import!M11446","v":"Select"},{"$f":"Import!M11846","v":"Select"},{"$f":"Import!M12246","v":"Select"},{"$f":"Import!M12646","v":0},{"$f":"Import!M13046","v":0},{"$f":"Import!M13446","v":0},{"$f":"Import!M13846","v":0},{"$f":"Import!M14246","v":0}]
[348,{"$f":"Import!M11447","v":"Select"},{"$f":"Import!M11847","v":"Select"},{"$f":"Import!M12247","v":"Select"},{"$f":"Import!M12647","v":0},{"$f":"Import!M13047","v":0},{"$f":"Import!M13447","v":0},{"$f":"Import!M13847","v":0},{"$f":"Import!M14247","v":0}]
[349,{"$f":"Import!M11448","v":"Select"},{"$f":"Import!M11848","v":"Select"},{"$f":"Import!M12248","v":"Select"},{"$f":"Import!M12648","v":0},{"$f":"Import!M13048","v":0},{"$f":"Import!M13448","v":0},{"$f":"Import!M13848","v":0},{"$f":"Import!M14248","v":0}]
[350,{"$f":"Import!M11449","v":"Select"},{"$f":"Import!M11849","v":"Select"},{"$f":"Import!M12249","v":"Select"},{"$f":"Import!M12649","v":0},{"$f":"Import!M13049","v":0},{"$f":"Import!M13449","v":0},{"$f":"Import!M13849","v":0},{"$f":"Import!M14249","v":0}]
[351,{"$f":"Import!M11450","v":"Select"},{"$f":"Import!M11850","v":"Select"},{"$f":"Import!M12250","v":"Select"},{"$f":"Import!M12650","v":0},{"$f":"Import!M13050","v":0},{"$f":"Import!M13450","v":0},{"$f":"Import!M13850","v":0},{"$f":"Import!M14250","v":0}]
[352,{"$f":"Import!M11451","v":"Select"},{"$f":"Import!M11851","v":"Select"},{"$f":"Import!M12251","v":"Select"},{"$f":"Import!M12651","v":0},{"$f":"Import!M13051","v":0},{"$f":"Import!M13451","v":0},{"$f":"Import!M13851","v":0},{"$f":"Import!M14251","v":0}]
[353,{"$f":"Import!M11452","v":"Select"},{"$f":"Import!M11852","v":"Select"},{"$f":"Import!M12252","v":"Select"},{"$f":"Import!M12652","v":0},{"$f":"Import!M13052","v":0},{"$f":"Import!M13452","v":0},{"$f":"Import!M13852","v":0},{"$f":"Import!M14252","v":0}]
[354,{"$f":"Import!M11453","v":"Select"},{"$f":"Import!M11853","v":"Select"},{"$f":"Import!M12253","v":"Select"},{"$f":"Import!M12653","v":0},{"$f":"Import!M13053","v":0},{"$f":"Import!M13453","v":0},{"$f":"Import!M13853","v":0},{"$f":"Import!M14253","v":0}]
[355,{"$f":"Import!M11454","v":"Select"},{"$f":"Import!M11854","v":"Select"},{"$f":"Import!M12254","v":"Select"},{"$f":"Import!M12654","v":0},{"$f":"Import!M13054","v":0},{"$f":"Import!M13454","v":0},{"$f":"Import!M13854","v":0},{"$f":"Import!M14254","v":0}]
[356,{"$f":"Import!M11455","v":"Select"},{"$f":"Import!M11855","v":"Select"},{"$f":"Import!M12255","v":"Select"},{"$f":"Import!M12655","v":0},{"$f":"Import!M13055","v":0},{"$f":"Import!M13455","v":0},{"$f":"Import!M13855","v":0},{"$f":"Import!M14255","v":0}]
[357,{"$f":"Import!M11456","v":"Select"},{"$f":"Import!M11856","v":"Select"},{"$f":"Import!M12256","v":"Select"},{"$f":"Import!M12656","v":0},{"$f":"Import!M13056","v":0},{"$f":"Import!M13456","v":0},{"$f":"Import!M13856","v":0},{"$f":"Import!M14256","v":0}]
[358,{"$f":"Import!M11457","v":"Select"},{"$f":"Import!M11857","v":"Select"},{"$f":"Import!M12257","v":"Select"},{"$f":"Import!M12657","v":0},{"$f":"Import!M13057","v":0},{"$f":"Import!M13457","v":0},{"$f":"Import!M13857","v":0},{"$f":"Import!M14257","v":0}]
[359,{"$f":"Import!M11458","v":"Select"},{"$f":"Import!M11858","v":"Select"},{"$f":"Import!M12258","v":"Select"},{"$f":"Import!M12658","v":0},{"$f":"Import!M13058","v":0},{"$f":"Import!M13458","v":0},{"$f":"Import!M13858","v":0},{"$f":"Import!M14258","v":0}]
[360,{"$f":"Import!M11459","v":"Select"},{"$f":"Import!M11859","v":"Select"},{"$f":"Import!M12259","v":"Select"},{"$f":"Import!M12659","v":0},{"$f":"Import!M13059","v":0},{"$f":"Import!M13459","v":0},{"$f":"Import!M13859","v":0},{"$f":"Import!M14259","v":0}]
[361,{"$f":"Import!M11460","v":"Select"},{"$f":"Import!M11860","v":"Select"},{"$f":"Import!M12260","v":"Select"},{"$f":"Import!M12660","v":0},{"$f":"Import!M13060","v":0},{"$f":"Import!M13460","v":0},{"$f":"Import!M13860","v":0},{"$f":"Import!M14260","v":0}]
[362,{"$f":"Import!M11461","v":"Select"},{"$f":"Import!M11861","v":"Select"},{"$f":"Import!M12261","v":"Select"},{"$f":"Import!M12661","v":0},{"$f":"Import!M13061","v":0},{"$f":"Import!M13461","v":0},{"$f":"Import!M13861","v":0},{"$f":"Import!M14261","v":0}]
[363,{"$f":"Import!M11462","v":"Select"},{"$f":"Import!M11862","v":"Select"},{"$f":"Import!M12262","v":"Select"},{"$f":"Import!M12662","v":0},{"$f":"Import!M13062","v":0},{"$f":"Import!M13462","v":0},{"$f":"Import!M13862","v":0},{"$f":"Import!M14262","v":0}]
[364,{"$f":"Import!M11463","v":"Select"},{"$f":"Import!M11863","v":"Select"},{"$f":"Import!M12263","v":"Select"},{"$f":"Import!M12663","v":0},{"$f":"Import!M13063","v":0},{"$f":"Import!M13463","v":0},{"$f":"Import!M13863","v":0},{"$f":"Import!M14263","v":0}]
[365,{"$f":"Import!M11464","v":"Select"},{"$f":"Import!M11864","v":"Select"},{"$f":"Import!M12264","v":"Select"},{"$f":"Import!M12664","v":0},{"$f":"Import!M13064","v":0},{"$f":"Import!M13464","v":0},{"$f":"Import!M13864","v":0},{"$f":"Import!M14264","v":0}]
[366,{"$f":"Import!M11465","v":"Select"},{"$f":"Import!M11865","v":"Select"},{"$f":"Import!M12265","v":"Select"},{"$f":"Import!M12665","v":0},{"$f":"Import!M13065","v":0},{"$f":"Import!M13465","v":0},{"$f":"Import!M13865","v":0},{"$f":"Import!M14265","v":0}]
[367,{"$f":"Import!M11466","v":"Select"},{"$f":"Import!M11866","v":"Select"},{"$f":"Import!M12266","v":"Select"},{"$f":"Import!M12666","v":0},{"$f":"Import!M13066","v":0},{"$f":"Import!M13466","v":0},{"$f":"Import!M13866","v":0},{"$f":"Import!M14266","v":0}]
[368,{"$f":"Import!M11467","v":"Select"},{"$f":"Import!M11867","v":"Select"},{"$f":"Import!M12267","v":"Select"},{"$f":"Import!M12667","v":0},{"$f":"Import!M13067","v":0},{"$f":"Import!M13467","v":0},{"$f":"Import!M13867","v":0},{"$f":"Import!M14267","v":0}]
[369,{"$f":"Import!M11468","v":"Select"},{"$f":"Import!M11868","v":"Select"},{"$f":"Import!M12268","v":"Select"},{"$f":"Import!M12668","v":0},{"$f":"Import!M13068","v":0},{"$f":"Import!M13468","v":0},{"$f":"Import!M13868","v":0},{"$f":"Import!M14268","v":0}]
[370,{"$f":"Import!M11469","v":"Select"},{"$f":"Import!M11869","v":"Select"},{"$f":"Import!M12269","v":"Select"},{"$f":"Import!M12669","v":0},{"$f":"Import!M13069","v":0},{"$f":"Import!M13469","v":0},{"$f":"Import!M13869","v":0},{"$f":"Import!M14269","v":0}]
[371,{"$f":"Import!M11470","v":"Select"},{"$f":"Import!M11870","v":"Select"},{"$f":"Import!M12270","v":"Select"},{"$f":"Import!M12670","v":0},{"$f":"Import!M13070","v":0},{"$f":"Import!M13470","v":0},{"$f":"Import!M13870","v":0},{"$f":"Import!M14270","v":0}]
[372,{"$f":"Import!M11471","v":"Select"},{"$f":"Import!M11871","v":"Select"},{"$f":"Import!M12271","v":"Select"},{"$f":"Import!M12671","v":0},{"$f":"Import!M13071","v":0},{"$f":"Import!M13471","v":0},{"$f":"Import!M13871","v":0},{"$f":"Import!M14271","v":0}]
[373,{"$f":"Import!M11472","v":"Select"},{"$f":"Import!M11872","v":"Select"},{"$f":"Import!M12272","v":"Select"},{"$f":"Import!M12672","v":0},{"$f":"Import!M13072","v":0},{"$f":"Import!M13472","v":0},{"$f":"Import!M13872","v":0},{"$f":"Import!M14272","v":0}]
[374,{"$f":"Import!M11473","v":"Select"},{"$f":"Import!M11873","v":"Select"},{"$f":"Import!M12273","v":"Select"},{"$f":"Import!M12673","v":0},{"$f":"Import!M13073","v":0},{"$f":"Import!M13473","v":0},{"$f":"Import!M13873","v":0},{"$f":"Import!M14273","v":0}]
[375,{"$f":"Import!M11474","v":"Select"},{"$f":"Import!M11874","v":"Select"},{"$f":"Import!M12274","v":"Select"},{"$f":"Import!M12674","v":0},{"$f":"Import!M13074","v":0},{"$f":"Import!M13474","v":0},{"$f":"Import!M13874","v":0},{"$f":"Import!M14274","v":0}]
[376,{"$f":"Import!M11475","v":"Select"},{"$f":"Import!M11875","v":"Select"},{"$f":"Import!M12275","v":"Select"},{"$f":"Import!M12675","v":0},{"$f":"Import!M13075","v":0},{"$f":"Import!M13475","v":0},{"$f":"Import!M13875","v":0},{"$f":"Import!M14275","v":0}]
[377,{"$f":"Import!M11476","v":"Select"},{"$f":"Import!M11876","v":"Select"},{"$f":"Import!M12276","v":"Select"},{"$f":"Import!M12676","v":0},{"$f":"Import!M13076","v":0},{"$f":"Import!M13476","v":0},{"$f":"Import!M13876","v":0},{"$f":"Import!M14276","v":0}]
[378,{"$f":"Import!M11477","v":"Select"},{"$f":"Import!M11877","v":"Select"},{"$f":"Import!M12277","v":"Select"},{"$f":"Import!M12677","v":0},{"$f":"Import!M13077","v":0},{"$f":"Import!M13477","v":0},{"$f":"Import!M13877","v":0},{"$f":"Import!M14277","v":0}]
[379,{"$f":"Import!M11478","v":"Select"},{"$f":"Import!M11878","v":"Select"},{"$f":"Import!M12278","v":"Select"},{"$f":"Import!M12678","v":0},{"$f":"Import!M13078","v":0},{"$f":"Import!M13478","v":0},{"$f":"Import!M13878","v":0},{"$f":"Import!M14278","v":0}]
[380,{"$f":"Import!M11479","v":"Select"},{"$f":"Import!M11879","v":"Select"},{"$f":"Import!M12279","v":"Select"},{"$f":"Import!M12679","v":0},{"$f":"Import!M13079","v":0},{"$f":"Import!M13479","v":0},{"$f":"Import!M13879","v":0},{"$f":"Import!M14279","v":0}]
[381,{"$f":"Import!M11480","v":"Select"},{"$f":"Import!M11880","v":"Select"},{"$f":"Import!M12280","v":"Select"},{"$f":"Import!M12680","v":0},{"$f":"Import!M13080","v":0},{"$f":"Import!M13480","v":0},{"$f":"Import!M13880","v":0},{"$f":"Import!M14280","v":0}]
[382,{"$f":"Import!M11481","v":"Select"},{"$f":"Import!M11881","v":"Select"},{"$f":"Import!M12281","v":"Select"},{"$f":"Import!M12681","v":0},{"$f":"Import!M13081","v":0},{"$f":"Import!M13481","v":0},{"$f":"Import!M13881","v":0},{"$f":"Import!M14281","v":0}]
[383,{"$f":"Import!M11482","v":"Select"},{"$f":"Import!M11882","v":"Select"},{"$f":"Import!M12282","v":"Select"},{"$f":"Import!M12682","v":0},{"$f":"Import!M13082","v":0},{"$f":"Import!M13482","v":0},{"$f":"Import!M13882","v":0},{"$f":"Import!M14282","v":0}]
[384,{"$f":"Import!M11483","v":"Select"},{"$f":"Import!M11883","v":"Select"},{"$f":"Import!M12283","v":"Select"},{"$f":"Import!M12683","v":0},{"$f":"Import!M13083","v":0},{"$f":"Import!M13483","v":0},{"$f":"Import!M13883","v":0},{"$f":"Import!M14283","v":0}]
[385,{"$f":"Import!M11484","v":"Select"},{"$f":"Import!M11884","v":"Select"},{"$f":"Import!M12284","v":"Select"},{"$f":"Import!M12684","v":0},{"$f":"Import!M13084","v":0},{"$f":"Import!M13484","v":0},{"$f":"Import!M13884","v":0},{"$f":"Import!M14284","v":0}]
[386,{"$f":"Import!M11485","v":"Select"},{"$f":"Import!M11885","v":"Select"},{"$f":"Import!M12285","v":"Select"},{"$f":"Import!M12685","v":0},{"$f":"Import!M13085","v":0},{"$f":"Import!M13485","v":0},{"$f":"Import!M13885","v":0},{"$f":"Import!M14285","v":0}]
[{"$f":"A604+1","v":387},{"$f":"Import!M11486","v":"Select"},{"$f":"Import!M11886","v":"Select"},{"$f":"Import!M12286","v":"Select"},{"$f":"Import!M12686","v":0},{"$f":"Import!M13086","v":0},{"$f":"Import!M13486","v":0},{"$f":"Import!M13886","v":0},{"$f":"Import!M14286","v":0}]
[388,{"$f":"Import!M11487","v":"Select"},{"$f":"Import!M11887","v":"Select"},{"$f":"Import!M12287","v":"Select"},{"$f":"Import!M12687","v":0},{"$f":"Import!M13087","v":0},{"$f":"Import!M13487","v":0},{"$f":"Import!M13887","v":0},{"$f":"Import!M14287","v":0}]
[389,{"$f":"Import!M11488","v":"Select"},{"$f":"Import!M11888","v":"Select"},{"$f":"Import!M12288","v":"Select"},{"$f":"Import!M12688","v":0},{"$f":"Import!M13088","v":0},{"$f":"Import!M13488","v":0},{"$f":"Import!M13888","v":0},{"$f":"Import!M14288","v":0}]
[390,{"$f":"Import!M11489","v":"Select"},{"$f":"Import!M11889","v":"Select"},{"$f":"Import!M12289","v":"Select"},{"$f":"Import!M12689","v":0},{"$f":"Import!M13089","v":0},{"$f":"Import!M13489","v":0},{"$f":"Import!M13889","v":0},{"$f":"Import!M14289","v":0}]
[391,{"$f":"Import!M11490","v":"Select"},{"$f":"Import!M11890","v":"Select"},{"$f":"Import!M12290","v":"Select"},{"$f":"Import!M12690","v":0},{"$f":"Import!M13090","v":0},{"$f":"Import!M13490","v":0},{"$f":"Import!M13890","v":0},{"$f":"Import!M14290","v":0}]
[392,{"$f":"Import!M11491","v":"Select"},{"$f":"Import!M11891","v":"Select"},{"$f":"Import!M12291","v":"Select"},{"$f":"Import!M12691","v":0},{"$f":"Import!M13091","v":0},{"$f":"Import!M13491","v":0},{"$f":"Import!M13891","v":0},{"$f":"Import!M14291","v":0}]
[393,{"$f":"Import!M11492","v":"Select"},{"$f":"Import!M11892","v":"Select"},{"$f":"Import!M12292","v":"Select"},{"$f":"Import!M12692","v":0},{"$f":"Import!M13092","v":0},{"$f":"Import!M13492","v":0},{"$f":"Import!M13892","v":0},{"$f":"Import!M14292","v":0}]
[394,{"$f":"Import!M11493","v":"Select"},{"$f":"Import!M11893","v":"Select"},{"$f":"Import!M12293","v":"Select"},{"$f":"Import!M12693","v":0},{"$f":"Import!M13093","v":0},{"$f":"Import!M13493","v":0},{"$f":"Import!M13893","v":0},{"$f":"Import!M14293","v":0}]
[395,{"$f":"Import!M11494","v":"Select"},{"$f":"Import!M11894","v":"Select"},{"$f":"Import!M12294","v":"Select"},{"$f":"Import!M12694","v":0},{"$f":"Import!M13094","v":0},{"$f":"Import!M13494","v":0},{"$f":"Import!M13894","v":0},{"$f":"Import!M14294","v":0}]
[396,{"$f":"Import!M11495","v":"Select"},{"$f":"Import!M11895","v":"Select"},{"$f":"Import!M12295","v":"Select"},{"$f":"Import!M12695","v":0},{"$f":"Import!M13095","v":0},{"$f":"Import!M13495","v":0},{"$f":"Import!M13895","v":0},{"$f":"Import!M14295","v":0}]
[397,{"$f":"Import!M11496","v":"Select"},{"$f":"Import!M11896","v":"Select"},{"$f":"Import!M12296","v":"Select"},{"$f":"Import!M12696","v":0},{"$f":"Import!M13096","v":0},{"$f":"Import!M13496","v":0},{"$f":"Import!M13896","v":0},{"$f":"Import!M14296","v":0}]
[398,{"$f":"Import!M11497","v":"Select"},{"$f":"Import!M11897","v":"Select"},{"$f":"Import!M12297","v":"Select"},{"$f":"Import!M12697","v":0},{"$f":"Import!M13097","v":0},{"$f":"Import!M13497","v":0},{"$f":"Import!M13897","v":0},{"$f":"Import!M14297","v":0}]
[399,{"$f":"Import!M11498","v":"Select"},{"$f":"Import!M11898","v":"Select"},{"$f":"Import!M12298","v":"Select"},{"$f":"Import!M12698","v":0},{"$f":"Import!M13098","v":0},{"$f":"Import!M13498","v":0},{"$f":"Import!M13898","v":0},{"$f":"Import!M14298","v":0}]
[400,{"$f":"Import!M11499","v":"Select"},{"$f":"Import!M11899","v":"Select"},{"$f":"Import!M12299","v":"Select"},{"$f":"Import!M12699","v":0},{"$f":"Import!M13099","v":0},{"$f":"Import!M13499","v":0},{"$f":"Import!M13899","v":0},{"$f":"Import!M14299","v":0}]
[]
[null,"Total Bonds and Debentures",null,null,{"$f":"SUM(E219:E618)","v":0},{"$f":"SUM(F219:F618)","v":0},{"$f":"IFERROR(SUMPRODUCT(G219:G618,$F219:$F618)/SUM($F219:$F618),0)","v":0},{"$f":"IFERROR(SUMPRODUCT(H219:H618,$F219:$F618)/SUM($F219:$F618),0)","v":0}]
[]
[null,"- ADDITIONAL INFORMATION ON SOVEREIGN DEBT EXPOSURES"]
[]
[null,null,"Enter # of Asset Types",{"$f":"Import!M14300","v":0}]
[null,null,null,null,null,{"$f":"YEAR($C$3)","v":2023}]
[null,null,"Country","Currency","BSCR Rating","Fair Value","Comments"]
[null,1,{"$f":"Import!M14301","v":"Select"},{"$f":"Import!M14501","v":"Select"},{"$f":"Import!M14701","v":"Select"},{"$f":"Import!M14901","v":0},{"$f":"Import!M15101","v":0}]
[null,{"$f":"B627+1","v":2},{"$f":"Import!M14302","v":"Select"},{"$f":"Import!M14502","v":"Select"},{"$f":"Import!M14702","v":"Select"},{"$f":"Import!M14902","v":0},{"$f":"Import!M15102","v":0}]
[null,{"$f":"B628+1","v":3},{"$f":"Import!M14303","v":"Select"},{"$f":"Import!M14503","v":"Select"},{"$f":"Import!M14703","v":"Select"},{"$f":"Import!M14903","v":0},{"$f":"Import!M15103","v":0}]
[null,4,{"$f":"Import!M14304","v":"Select"},{"$f":"Import!M14504","v":"Select"},{"$f":"Import!M14704","v":"Select"},{"$f":"Import!M14904","v":0},{"$f":"Import!M15104","v":0}]
[null,5,{"$f":"Import!M14305","v":"Select"},{"$f":"Import!M14505","v":"Select"},{"$f":"Import!M14705","v":"Select"},{"$f":"Import!M14905","v":0},{"$f":"Import!M15105","v":0}]
[null,6,{"$f":"Import!M14306","v":"Select"},{"$f":"Import!M14506","v":"Select"},{"$f":"Import!M14706","v":"Select"},{"$f":"Import!M14906","v":0},{"$f":"Import!M15106","v":0}]
[null,7,{"$f":"Import!M14307","v":"Select"},{"$f":"Import!M14507","v":"Select"},{"$f":"Import!M14707","v":"Select"},{"$f":"Import!M14907","v":0},{"$f":"Import!M15107","v":0}]
[null,8,{"$f":"Import!M14308","v":"Select"},{"$f":"Import!M14508","v":"Select"},{"$f":"Import!M14708","v":"Select"},{"$f":"Import!M14908","v":0},{"$f":"Import!M15108","v":0}]
[null,9,{"$f":"Import!M14309","v":"Select"},{"$f":"Import!M14509","v":"Select"},{"$f":"Import!M14709","v":"Select"},{"$f":"Import!M14909","v":0},{"$f":"Import!M15109","v":0}]
[null,10,{"$f":"Import!M14310","v":"Select"},{"$f":"Import!M14510","v":"Select"},{"$f":"Import!M14710","v":"Select"},{"$f":"Import!M14910","v":0},{"$f":"Import!M15110","v":0}]
[null,11,{"$f":"Import!M14311","v":"Select"},{"$f":"Import!M14511","v":"Select"},{"$f":"Import!M14711","v":"Select"},{"$f":"Import!M14911","v":0},{"$f":"Import!M15111","v":0}]
[null,12,{"$f":"Import!M14312","v":"Select"},{"$f":"Import!M14512","v":"Select"},{"$f":"Import!M14712","v":"Select"},{"$f":"Import!M14912","v":0},{"$f":"Import!M15112","v":0}]
[null,13,{"$f":"Import!M14313","v":"Select"},{"$f":"Import!M14513","v":"Select"},{"$f":"Import!M14713","v":"Select"},{"$f":"Import!M14913","v":0},{"$f":"Import!M15113","v":0}]
[null,14,{"$f":"Import!M14314","v":"Select"},{"$f":"Import!M14514","v":"Select"},{"$f":"Import!M14714","v":"Select"},{"$f":"Import!M14914","v":0},{"$f":"Import!M15114","v":0}]
[null,15,{"$f":"Import!M14315","v":"Select"},{"$f":"Import!M14515","v":"Select"},{"$f":"Import!M14715","v":"Select"},{"$f":"Import!M14915","v":0},{"$f":"Import!M15115","v":0}]
[null,16,{"$f":"Import!M14316","v":"Select"},{"$f":"Import!M14516","v":"Select"},{"$f":"Import!M14716","v":"Select"},{"$f":"Import!M14916","v":0},{"$f":"Import!M15116","v":0}]
[null,17,{"$f":"Import!M14317","v":"Select"},{"$f":"Import!M14517","v":"Select"},{"$f":"Import!M14717","v":"Select"},{"$f":"Import!M14917","v":0},{"$f":"Import!M15117","v":0}]
[null,18,{"$f":"Import!M14318","v":"Select"},{"$f":"Import!M14518","v":"Select"},{"$f":"Import!M14718","v":"Select"},{"$f":"Import!M14918","v":0},{"$f":"Import!M15118","v":0}]
[null,19,{"$f":"Import!M14319","v":"Select"},{"$f":"Import!M14519","v":"Select"},{"$f":"Import!M14719","v":"Select"},{"$f":"Import!M14919","v":0},{"$f":"Import!M15119","v":0}]
[null,20,{"$f":"Import!M14320","v":"Select"},{"$f":"Import!M14520","v":"Select"},{"$f":"Import!M14720","v":"Select"},{"$f":"Import!M14920","v":0},{"$f":"Import!M15120","v":0}]
[null,21,{"$f":"Import!M14321","v":"Select"},{"$f":"Import!M14521","v":"Select"},{"$f":"Import!M14721","v":"Select"},{"$f":"Import!M14921","v":0},{"$f":"Import!M15121","v":0}]
[null,22,{"$f":"Import!M14322","v":"Select"},{"$f":"Import!M14522","v":"Select"},{"$f":"Import!M14722","v":"Select"},{"$f":"Import!M14922","v":0},{"$f":"Import!M15122","v":0}]
[null,23,{"$f":"Import!M14323","v":"Select"},{"$f":"Import!M14523","v":"Select"},{"$f":"Import!M14723","v":"Select"},{"$f":"Import!M14923","v":0},{"$f":"Import!M15123","v":0}]
[null,24,{"$f":"Import!M14324","v":"Select"},{"$f":"Import!M14524","v":"Select"},{"$f":"Import!M14724","v":"Select"},{"$f":"Import!M14924","v":0},{"$f":"Import!M15124","v":0}]
[null,25,{"$f":"Import!M14325","v":"Select"},{"$f":"Import!M14525","v":"Select"},{"$f":"Import!M14725","v":"Select"},{"$f":"Import!M14925","v":0},{"$f":"Import!M15125","v":0}]
[null,26,{"$f":"Import!M14326","v":"Select"},{"$f":"Import!M14526","v":"Select"},{"$f":"Import!M14726","v":"Select"},{"$f":"Import!M14926","v":0},{"$f":"Import!M15126","v":0}]
[null,27,{"$f":"Import!M14327","v":"Select"},{"$f":"Import!M14527","v":"Select"},{"$f":"Import!M14727","v":"Select"},{"$f":"Import!M14927","v":0},{"$f":"Import!M15127","v":0}]
[null,28,{"$f":"Import!M14328","v":"Select"},{"$f":"Import!M14528","v":"Select"},{"$f":"Import!M14728","v":"Select"},{"$f":"Import!M14928","v":0},{"$f":"Import!M15128","v":0}]
[null,29,{"$f":"Import!M14329","v":"Select"},{"$f":"Import!M14529","v":"Select"},{"$f":"Import!M14729","v":"Select"},{"$f":"Import!M14929","v":0},{"$f":"Import!M15129","v":0}]
[null,30,{"$f":"Import!M14330","v":"Select"},{"$f":"Import!M14530","v":"Select"},{"$f":"Import!M14730","v":"Select"},{"$f":"Import!M14930","v":0},{"$f":"Import!M15130","v":0}]
[null,31,{"$f":"Import!M14331","v":"Select"},{"$f":"Import!M14531","v":"Select"},{"$f":"Import!M14731","v":"Select"},{"$f":"Import!M14931","v":0},{"$f":"Import!M15131","v":0}]
[null,32,{"$f":"Import!M14332","v":"Select"},{"$f":"Import!M14532","v":"Select"},{"$f":"Import!M14732","v":"Select"},{"$f":"Import!M14932","v":0},{"$f":"Import!M15132","v":0}]
[null,33,{"$f":"Import!M14333","v":"Select"},{"$f":"Import!M14533","v":"Select"},{"$f":"Import!M14733","v":"Select"},{"$f":"Import!M14933","v":0},{"$f":"Import!M15133","v":0}]
[null,34,{"$f":"Import!M14334","v":"Select"},{"$f":"Import!M14534","v":"Select"},{"$f":"Import!M14734","v":"Select"},{"$f":"Import!M14934","v":0},{"$f":"Import!M15134","v":0}]
[null,35,{"$f":"Import!M14335","v":"Select"},{"$f":"Import!M14535","v":"Select"},{"$f":"Import!M14735","v":"Select"},{"$f":"Import!M14935","v":0},{"$f":"Import!M15135","v":0}]
[null,36,{"$f":"Import!M14336","v":"Select"},{"$f":"Import!M14536","v":"Select"},{"$f":"Import!M14736","v":"Select"},{"$f":"Import!M14936","v":0},{"$f":"Import!M15136","v":0}]
[null,37,{"$f":"Import!M14337","v":"Select"},{"$f":"Import!M14537","v":"Select"},{"$f":"Import!M14737","v":"Select"},{"$f":"Import!M14937","v":0},{"$f":"Import!M15137","v":0}]
[null,38,{"$f":"Import!M14338","v":"Select"},{"$f":"Import!M14538","v":"Select"},{"$f":"Import!M14738","v":"Select"},{"$f":"Import!M14938","v":0},{"$f":"Import!M15138","v":0}]
[null,39,{"$f":"Import!M14339","v":"Select"},{"$f":"Import!M14539","v":"Select"},{"$f":"Import!M14739","v":"Select"},{"$f":"Import!M14939","v":0},{"$f":"Import!M15139","v":0}]
[null,40,{"$f":"Import!M14340","v":"Select"},{"$f":"Import!M14540","v":"Select"},{"$f":"Import!M14740","v":"Select"},{"$f":"Import!M14940","v":0},{"$f":"Import!M15140","v":0}]
[null,41,{"$f":"Import!M14341","v":"Select"},{"$f":"Import!M14541","v":"Select"},{"$f":"Import!M14741","v":"Select"},{"$f":"Import!M14941","v":0},{"$f":"Import!M15141","v":0}]
[null,42,{"$f":"Import!M14342","v":"Select"},{"$f":"Import!M14542","v":"Select"},{"$f":"Import!M14742","v":"Select"},{"$f":"Import!M14942","v":0},{"$f":"Import!M15142","v":0}]
[null,43,{"$f":"Import!M14343","v":"Select"},{"$f":"Import!M14543","v":"Select"},{"$f":"Import!M14743","v":"Select"},{"$f":"Import!M14943","v":0},{"$f":"Import!M15143","v":0}]
[null,44,{"$f":"Import!M14344","v":"Select"},{"$f":"Import!M14544","v":"Select"},{"$f":"Import!M14744","v":"Select"},{"$f":"Import!M14944","v":0},{"$f":"Import!M15144","v":0}]
[null,45,{"$f":"Import!M14345","v":"Select"},{"$f":"Import!M14545","v":"Select"},{"$f":"Import!M14745","v":"Select"},{"$f":"Import!M14945","v":0},{"$f":"Import!M15145","v":0}]
[null,46,{"$f":"Import!M14346","v":"Select"},{"$f":"Import!M14546","v":"Select"},{"$f":"Import!M14746","v":"Select"},{"$f":"Import!M14946","v":0},{"$f":"Import!M15146","v":0}]
[null,47,{"$f":"Import!M14347","v":"Select"},{"$f":"Import!M14547","v":"Select"},{"$f":"Import!M14747","v":"Select"},{"$f":"Import!M14947","v":0},{"$f":"Import!M15147","v":0}]
[null,48,{"$f":"Import!M14348","v":"Select"},{"$f":"Import!M14548","v":"Select"},{"$f":"Import!M14748","v":"Select"},{"$f":"Import!M14948","v":0},{"$f":"Import!M15148","v":0}]
[null,49,{"$f":"Import!M14349","v":"Select"},{"$f":"Import!M14549","v":"Select"},{"$f":"Import!M14749","v":"Select"},{"$f":"Import!M14949","v":0},{"$f":"Import!M15149","v":0}]
[null,50,{"$f":"Import!M14350","v":"Select"},{"$f":"Import!M14550","v":"Select"},{"$f":"Import!M14750","v":"Select"},{"$f":"Import!M14950","v":0},{"$f":"Import!M15150","v":0}]
[null,51,{"$f":"Import!M14351","v":"Select"},{"$f":"Import!M14551","v":"Select"},{"$f":"Import!M14751","v":"Select"},{"$f":"Import!M14951","v":0},{"$f":"Import!M15151","v":0}]
[null,52,{"$f":"Import!M14352","v":"Select"},{"$f":"Import!M14552","v":"Select"},{"$f":"Import!M14752","v":"Select"},{"$f":"Import!M14952","v":0},{"$f":"Import!M15152","v":0}]
[null,53,{"$f":"Import!M14353","v":"Select"},{"$f":"Import!M14553","v":"Select"},{"$f":"Import!M14753","v":"Select"},{"$f":"Import!M14953","v":0},{"$f":"Import!M15153","v":0}]
[null,54,{"$f":"Import!M14354","v":"Select"},{"$f":"Import!M14554","v":"Select"},{"$f":"Import!M14754","v":"Select"},{"$f":"Import!M14954","v":0},{"$f":"Import!M15154","v":0}]
[null,55,{"$f":"Import!M14355","v":"Select"},{"$f":"Import!M14555","v":"Select"},{"$f":"Import!M14755","v":"Select"},{"$f":"Import!M14955","v":0},{"$f":"Import!M15155","v":0}]
[null,56,{"$f":"Import!M14356","v":"Select"},{"$f":"Import!M14556","v":"Select"},{"$f":"Import!M14756","v":"Select"},{"$f":"Import!M14956","v":0},{"$f":"Import!M15156","v":0}]
[null,57,{"$f":"Import!M14357","v":"Select"},{"$f":"Import!M14557","v":"Select"},{"$f":"Import!M14757","v":"Select"},{"$f":"Import!M14957","v":0},{"$f":"Import!M15157","v":0}]
[null,58,{"$f":"Import!M14358","v":"Select"},{"$f":"Import!M14558","v":"Select"},{"$f":"Import!M14758","v":"Select"},{"$f":"Import!M14958","v":0},{"$f":"Import!M15158","v":0}]
[null,59,{"$f":"Import!M14359","v":"Select"},{"$f":"Import!M14559","v":"Select"},{"$f":"Import!M14759","v":"Select"},{"$f":"Import!M14959","v":0},{"$f":"Import!M15159","v":0}]
[null,60,{"$f":"Import!M14360","v":"Select"},{"$f":"Import!M14560","v":"Select"},{"$f":"Import!M14760","v":"Select"},{"$f":"Import!M14960","v":0},{"$f":"Import!M15160","v":0}]
[null,61,{"$f":"Import!M14361","v":"Select"},{"$f":"Import!M14561","v":"Select"},{"$f":"Import!M14761","v":"Select"},{"$f":"Import!M14961","v":0},{"$f":"Import!M15161","v":0}]
[null,62,{"$f":"Import!M14362","v":"Select"},{"$f":"Import!M14562","v":"Select"},{"$f":"Import!M14762","v":"Select"},{"$f":"Import!M14962","v":0},{"$f":"Import!M15162","v":0}]
[null,63,{"$f":"Import!M14363","v":"Select"},{"$f":"Import!M14563","v":"Select"},{"$f":"Import!M14763","v":"Select"},{"$f":"Import!M14963","v":0},{"$f":"Import!M15163","v":0}]
[null,64,{"$f":"Import!M14364","v":"Select"},{"$f":"Import!M14564","v":"Select"},{"$f":"Import!M14764","v":"Select"},{"$f":"Import!M14964","v":0},{"$f":"Import!M15164","v":0}]
[null,65,{"$f":"Import!M14365","v":"Select"},{"$f":"Import!M14565","v":"Select"},{"$f":"Import!M14765","v":"Select"},{"$f":"Import!M14965","v":0},{"$f":"Import!M15165","v":0}]
[null,66,{"$f":"Import!M14366","v":"Select"},{"$f":"Import!M14566","v":"Select"},{"$f":"Import!M14766","v":"Select"},{"$f":"Import!M14966","v":0},{"$f":"Import!M15166","v":0}]
[null,{"$f":"B692+1","v":67},{"$f":"Import!M14367","v":"Select"},{"$f":"Import!M14567","v":"Select"},{"$f":"Import!M14767","v":"Select"},{"$f":"Import!M14967","v":0},{"$f":"Import!M15167","v":0}]
[null,68,{"$f":"Import!M14368","v":"Select"},{"$f":"Import!M14568","v":"Select"},{"$f":"Import!M14768","v":"Select"},{"$f":"Import!M14968","v":0},{"$f":"Import!M15168","v":0}]
[null,69,{"$f":"Import!M14369","v":"Select"},{"$f":"Import!M14569","v":"Select"},{"$f":"Import!M14769","v":"Select"},{"$f":"Import!M14969","v":0},{"$f":"Import!M15169","v":0}]
[null,70,{"$f":"Import!M14370","v":"Select"},{"$f":"Import!M14570","v":"Select"},{"$f":"Import!M14770","v":"Select"},{"$f":"Import!M14970","v":0},{"$f":"Import!M15170","v":0}]
[null,71,{"$f":"Import!M14371","v":"Select"},{"$f":"Import!M14571","v":"Select"},{"$f":"Import!M14771","v":"Select"},{"$f":"Import!M14971","v":0},{"$f":"Import!M15171","v":0}]
[null,72,{"$f":"Import!M14372","v":"Select"},{"$f":"Import!M14572","v":"Select"},{"$f":"Import!M14772","v":"Select"},{"$f":"Import!M14972","v":0},{"$f":"Import!M15172","v":0}]
[null,73,{"$f":"Import!M14373","v":"Select"},{"$f":"Import!M14573","v":"Select"},{"$f":"Import!M14773","v":"Select"},{"$f":"Import!M14973","v":0},{"$f":"Import!M15173","v":0}]
[null,74,{"$f":"Import!M14374","v":"Select"},{"$f":"Import!M14574","v":"Select"},{"$f":"Import!M14774","v":"Select"},{"$f":"Import!M14974","v":0},{"$f":"Import!M15174","v":0}]
[null,75,{"$f":"Import!M14375","v":"Select"},{"$f":"Import!M14575","v":"Select"},{"$f":"Import!M14775","v":"Select"},{"$f":"Import!M14975","v":0},{"$f":"Import!M15175","v":0}]
[null,76,{"$f":"Import!M14376","v":"Select"},{"$f":"Import!M14576","v":"Select"},{"$f":"Import!M14776","v":"Select"},{"$f":"Import!M14976","v":0},{"$f":"Import!M15176","v":0}]
[null,77,{"$f":"Import!M14377","v":"Select"},{"$f":"Import!M14577","v":"Select"},{"$f":"Import!M14777","v":"Select"},{"$f":"Import!M14977","v":0},{"$f":"Import!M15177","v":0}]
[null,78,{"$f":"Import!M14378","v":"Select"},{"$f":"Import!M14578","v":"Select"},{"$f":"Import!M14778","v":"Select"},{"$f":"Import!M14978","v":0},{"$f":"Import!M15178","v":0}]
[null,79,{"$f":"Import!M14379","v":"Select"},{"$f":"Import!M14579","v":"Select"},{"$f":"Import!M14779","v":"Select"},{"$f":"Import!M14979","v":0},{"$f":"Import!M15179","v":0}]
[null,80,{"$f":"Import!M14380","v":"Select"},{"$f":"Import!M14580","v":"Select"},{"$f":"Import!M14780","v":"Select"},{"$f":"Import!M14980","v":0},{"$f":"Import!M15180","v":0}]
[null,81,{"$f":"Import!M14381","v":"Select"},{"$f":"Import!M14581","v":"Select"},{"$f":"Import!M14781","v":"Select"},{"$f":"Import!M14981","v":0},{"$f":"Import!M15181","v":0}]
[null,82,{"$f":"Import!M14382","v":"Select"},{"$f":"Import!M14582","v":"Select"},{"$f":"Import!M14782","v":"Select"},{"$f":"Import!M14982","v":0},{"$f":"Import!M15182","v":0}]
[null,83,{"$f":"Import!M14383","v":"Select"},{"$f":"Import!M14583","v":"Select"},{"$f":"Import!M14783","v":"Select"},{"$f":"Import!M14983","v":0},{"$f":"Import!M15183","v":0}]
[null,84,{"$f":"Import!M14384","v":"Select"},{"$f":"Import!M14584","v":"Select"},{"$f":"Import!M14784","v":"Select"},{"$f":"Import!M14984","v":0},{"$f":"Import!M15184","v":0}]
[null,85,{"$f":"Import!M14385","v":"Select"},{"$f":"Import!M14585","v":"Select"},{"$f":"Import!M14785","v":"Select"},{"$f":"Import!M14985","v":0},{"$f":"Import!M15185","v":0}]
[null,86,{"$f":"Import!M14386","v":"Select"},{"$f":"Import!M14586","v":"Select"},{"$f":"Import!M14786","v":"Select"},{"$f":"Import!M14986","v":0},{"$f":"Import!M15186","v":0}]
[null,87,{"$f":"Import!M14387","v":"Select"},{"$f":"Import!M14587","v":"Select"},{"$f":"Import!M14787","v":"Select"},{"$f":"Import!M14987","v":0},{"$f":"Import!M15187","v":0}]
[null,88,{"$f":"Import!M14388","v":"Select"},{"$f":"Import!M14588","v":"Select"},{"$f":"Import!M14788","v":"Select"},{"$f":"Import!M14988","v":0},{"$f":"Import!M15188","v":0}]
[null,89,{"$f":"Import!M14389","v":"Select"},{"$f":"Import!M14589","v":"Select"},{"$f":"Import!M14789","v":"Select"},{"$f":"Import!M14989","v":0},{"$f":"Import!M15189","v":0}]
[null,90,{"$f":"Import!M14390","v":"Select"},{"$f":"Import!M14590","v":"Select"},{"$f":"Import!M14790","v":"Select"},{"$f":"Import!M14990","v":0},{"$f":"Import!M15190","v":0}]
[null,91,{"$f":"Import!M14391","v":"Select"},{"$f":"Import!M14591","v":"Select"},{"$f":"Import!M14791","v":"Select"},{"$f":"Import!M14991","v":0},{"$f":"Import!M15191","v":0}]
[null,92,{"$f":"Import!M14392","v":"Select"},{"$f":"Import!M14592","v":"Select"},{"$f":"Import!M14792","v":"Select"},{"$f":"Import!M14992","v":0},{"$f":"Import!M15192","v":0}]
[null,93,{"$f":"Import!M14393","v":"Select"},{"$f":"Import!M14593","v":"Select"},{"$f":"Import!M14793","v":"Select"},{"$f":"Import!M14993","v":0},{"$f":"Import!M15193","v":0}]
[null,94,{"$f":"Import!M14394","v":"Select"},{"$f":"Import!M14594","v":"Select"},{"$f":"Import!M14794","v":"Select"},{"$f":"Import!M14994","v":0},{"$f":"Import!M15194","v":0}]
[null,95,{"$f":"Import!M14395","v":"Select"},{"$f":"Import!M14595","v":"Select"},{"$f":"Import!M14795","v":"Select"},{"$f":"Import!M14995","v":0},{"$f":"Import!M15195","v":0}]
[null,96,{"$f":"Import!M14396","v":"Select"},{"$f":"Import!M14596","v":"Select"},{"$f":"Import!M14796","v":"Select"},{"$f":"Import!M14996","v":0},{"$f":"Import!M15196","v":0}]
[null,97,{"$f":"Import!M14397","v":"Select"},{"$f":"Import!M14597","v":"Select"},{"$f":"Import!M14797","v":"Select"},{"$f":"Import!M14997","v":0},{"$f":"Import!M15197","v":0}]
[null,98,{"$f":"Import!M14398","v":"Select"},{"$f":"Import!M14598","v":"Select"},{"$f":"Import!M14798","v":"Select"},{"$f":"Import!M14998","v":0},{"$f":"Import!M15198","v":0}]
[null,99,{"$f":"Import!M14399","v":"Select"},{"$f":"Import!M14599","v":"Select"},{"$f":"Import!M14799","v":"Select"},{"$f":"Import!M14999","v":0},{"$f":"Import!M15199","v":0}]
[null,100,{"$f":"Import!M14400","v":"Select"},{"$f":"Import!M14600","v":"Select"},{"$f":"Import!M14800","v":"Select"},{"$f":"Import!M15000","v":0},{"$f":"Import!M15200","v":0}]
[null,101,{"$f":"Import!M14401","v":"Select"},{"$f":"Import!M14601","v":"Select"},{"$f":"Import!M14801","v":"Select"},{"$f":"Import!M15001","v":0},{"$f":"Import!M15201","v":0}]
[null,102,{"$f":"Import!M14402","v":"Select"},{"$f":"Import!M14602","v":"Select"},{"$f":"Import!M14802","v":"Select"},{"$f":"Import!M15002","v":0},{"$f":"Import!M15202","v":0}]
[null,103,{"$f":"Import!M14403","v":"Select"},{"$f":"Import!M14603","v":"Select"},{"$f":"Import!M14803","v":"Select"},{"$f":"Import!M15003","v":0},{"$f":"Import!M15203","v":0}]
[null,104,{"$f":"Import!M14404","v":"Select"},{"$f":"Import!M14604","v":"Select"},{"$f":"Import!M14804","v":"Select"},{"$f":"Import!M15004","v":0},{"$f":"Import!M15204","v":0}]
[null,105,{"$f":"Import!M14405","v":"Select"},{"$f":"Import!M14605","v":"Select"},{"$f":"Import!M14805","v":"Select"},{"$f":"Import!M15005","v":0},{"$f":"Import!M15205","v":0}]
[null,106,{"$f":"Import!M14406","v":"Select"},{"$f":"Import!M14606","v":"Select"},{"$f":"Import!M14806","v":"Select"},{"$f":"Import!M15006","v":0},{"$f":"Import!M15206","v":0}]
[null,107,{"$f":"Import!M14407","v":"Select"},{"$f":"Import!M14607","v":"Select"},{"$f":"Import!M14807","v":"Select"},{"$f":"Import!M15007","v":0},{"$f":"Import!M15207","v":0}]
[null,108,{"$f":"Import!M14408","v":"Select"},{"$f":"Import!M14608","v":"Select"},{"$f":"Import!M14808","v":"Select"},{"$f":"Import!M15008","v":0},{"$f":"Import!M15208","v":0}]
[null,109,{"$f":"Import!M14409","v":"Select"},{"$f":"Import!M14609","v":"Select"},{"$f":"Import!M14809","v":"Select"},{"$f":"Import!M15009","v":0},{"$f":"Import!M15209","v":0}]
[null,110,{"$f":"Import!M14410","v":"Select"},{"$f":"Import!M14610","v":"Select"},{"$f":"Import!M14810","v":"Select"},{"$f":"Import!M15010","v":0},{"$f":"Import!M15210","v":0}]
[null,111,{"$f":"Import!M14411","v":"Select"},{"$f":"Import!M14611","v":"Select"},{"$f":"Import!M14811","v":"Select"},{"$f":"Import!M15011","v":0},{"$f":"Import!M15211","v":0}]
[null,112,{"$f":"Import!M14412","v":"Select"},{"$f":"Import!M14612","v":"Select"},{"$f":"Import!M14812","v":"Select"},{"$f":"Import!M15012","v":0},{"$f":"Import!M15212","v":0}]
[null,113,{"$f":"Import!M14413","v":"Select"},{"$f":"Import!M14613","v":"Select"},{"$f":"Import!M14813","v":"Select"},{"$f":"Import!M15013","v":0},{"$f":"Import!M15213","v":0}]
[null,114,{"$f":"Import!M14414","v":"Select"},{"$f":"Import!M14614","v":"Select"},{"$f":"Import!M14814","v":"Select"},{"$f":"Import!M15014","v":0},{"$f":"Import!M15214","v":0}]
[null,115,{"$f":"Import!M14415","v":"Select"},{"$f":"Import!M14615","v":"Select"},{"$f":"Import!M14815","v":"Select"},{"$f":"Import!M15015","v":0},{"$f":"Import!M15215","v":0}]
[null,116,{"$f":"Import!M14416","v":"Select"},{"$f":"Import!M14616","v":"Select"},{"$f":"Import!M14816","v":"Select"},{"$f":"Import!M15016","v":0},{"$f":"Import!M15216","v":0}]
[null,117,{"$f":"Import!M14417","v":"Select"},{"$f":"Import!M14617","v":"Select"},{"$f":"Import!M14817","v":"Select"},{"$f":"Import!M15017","v":0},{"$f":"Import!M15217","v":0}]
[null,118,{"$f":"Import!M14418","v":"Select"},{"$f":"Import!M14618","v":"Select"},{"$f":"Import!M14818","v":"Select"},{"$f":"Import!M15018","v":0},{"$f":"Import!M15218","v":0}]
[null,119,{"$f":"Import!M14419","v":"Select"},{"$f":"Import!M14619","v":"Select"},{"$f":"Import!M14819","v":"Select"},{"$f":"Import!M15019","v":0},{"$f":"Import!M15219","v":0}]
[null,120,{"$f":"Import!M14420","v":"Select"},{"$f":"Import!M14620","v":"Select"},{"$f":"Import!M14820","v":"Select"},{"$f":"Import!M15020","v":0},{"$f":"Import!M15220","v":0}]
[null,121,{"$f":"Import!M14421","v":"Select"},{"$f":"Import!M14621","v":"Select"},{"$f":"Import!M14821","v":"Select"},{"$f":"Import!M15021","v":0},{"$f":"Import!M15221","v":0}]
[null,122,{"$f":"Import!M14422","v":"Select"},{"$f":"Import!M14622","v":"Select"},{"$f":"Import!M14822","v":"Select"},{"$f":"Import!M15022","v":0},{"$f":"Import!M15222","v":0}]
[null,123,{"$f":"Import!M14423","v":"Select"},{"$f":"Import!M14623","v":"Select"},{"$f":"Import!M14823","v":"Select"},{"$f":"Import!M15023","v":0},{"$f":"Import!M15223","v":0}]
[null,124,{"$f":"Import!M14424","v":"Select"},{"$f":"Import!M14624","v":"Select"},{"$f":"Import!M14824","v":"Select"},{"$f":"Import!M15024","v":0},{"$f":"Import!M15224","v":0}]
[null,125,{"$f":"Import!M14425","v":"Select"},{"$f":"Import!M14625","v":"Select"},{"$f":"Import!M14825","v":"Select"},{"$f":"Import!M15025","v":0},{"$f":"Import!M15225","v":0}]
[null,126,{"$f":"Import!M14426","v":"Select"},{"$f":"Import!M14626","v":"Select"},{"$f":"Import!M14826","v":"Select"},{"$f":"Import!M15026","v":0},{"$f":"Import!M15226","v":0}]
[null,127,{"$f":"Import!M14427","v":"Select"},{"$f":"Import!M14627","v":"Select"},{"$f":"Import!M14827","v":"Select"},{"$f":"Import!M15027","v":0},{"$f":"Import!M15227","v":0}]
[null,128,{"$f":"Import!M14428","v":"Select"},{"$f":"Import!M14628","v":"Select"},{"$f":"Import!M14828","v":"Select"},{"$f":"Import!M15028","v":0},{"$f":"Import!M15228","v":0}]
[null,129,{"$f":"Import!M14429","v":"Select"},{"$f":"Import!M14629","v":"Select"},{"$f":"Import!M14829","v":"Select"},{"$f":"Import!M15029","v":0},{"$f":"Import!M15229","v":0}]
[null,130,{"$f":"Import!M14430","v":"Select"},{"$f":"Import!M14630","v":"Select"},{"$f":"Import!M14830","v":"Select"},{"$f":"Import!M15030","v":0},{"$f":"Import!M15230","v":0}]
[null,{"$f":"B756+1","v":131},{"$f":"Import!M14431","v":"Select"},{"$f":"Import!M14631","v":"Select"},{"$f":"Import!M14831","v":"Select"},{"$f":"Import!M15031","v":0},{"$f":"Import!M15231","v":0}]
[null,132,{"$f":"Import!M14432","v":"Select"},{"$f":"Import!M14632","v":"Select"},{"$f":"Import!M14832","v":"Select"},{"$f":"Import!M15032","v":0},{"$f":"Import!M15232","v":0}]
[null,133,{"$f":"Import!M14433","v":"Select"},{"$f":"Import!M14633","v":"Select"},{"$f":"Import!M14833","v":"Select"},{"$f":"Import!M15033","v":0},{"$f":"Import!M15233","v":0}]
[null,134,{"$f":"Import!M14434","v":"Select"},{"$f":"Import!M14634","v":"Select"},{"$f":"Import!M14834","v":"Select"},{"$f":"Import!M15034","v":0},{"$f":"Import!M15234","v":0}]
[null,135,{"$f":"Import!M14435","v":"Select"},{"$f":"Import!M14635","v":"Select"},{"$f":"Import!M14835","v":"Select"},{"$f":"Import!M15035","v":0},{"$f":"Import!M15235","v":0}]
[null,136,{"$f":"Import!M14436","v":"Select"},{"$f":"Import!M14636","v":"Select"},{"$f":"Import!M14836","v":"Select"},{"$f":"Import!M15036","v":0},{"$f":"Import!M15236","v":0}]
[null,137,{"$f":"Import!M14437","v":"Select"},{"$f":"Import!M14637","v":"Select"},{"$f":"Import!M14837","v":"Select"},{"$f":"Import!M15037","v":0},{"$f":"Import!M15237","v":0}]
[null,138,{"$f":"Import!M14438","v":"Select"},{"$f":"Import!M14638","v":"Select"},{"$f":"Import!M14838","v":"Select"},{"$f":"Import!M15038","v":0},{"$f":"Import!M15238","v":0}]
[null,139,{"$f":"Import!M14439","v":"Select"},{"$f":"Import!M14639","v":"Select"},{"$f":"Import!M14839","v":"Select"},{"$f":"Import!M15039","v":0},{"$f":"Import!M15239","v":0}]
[null,140,{"$f":"Import!M14440","v":"Select"},{"$f":"Import!M14640","v":"Select"},{"$f":"Import!M14840","v":"Select"},{"$f":"Import!M15040","v":0},{"$f":"Import!M15240","v":0}]
[null,141,{"$f":"Import!M14441","v":"Select"},{"$f":"Import!M14641","v":"Select"},{"$f":"Import!M14841","v":"Select"},{"$f":"Import!M15041","v":0},{"$f":"Import!M15241","v":0}]
[null,142,{"$f":"Import!M14442","v":"Select"},{"$f":"Import!M14642","v":"Select"},{"$f":"Import!M14842","v":"Select"},{"$f":"Import!M15042","v":0},{"$f":"Import!M15242","v":0}]
[null,143,{"$f":"Import!M14443","v":"Select"},{"$f":"Import!M14643","v":"Select"},{"$f":"Import!M14843","v":"Select"},{"$f":"Import!M15043","v":0},{"$f":"Import!M15243","v":0}]
[null,144,{"$f":"Import!M14444","v":"Select"},{"$f":"Import!M14644","v":"Select"},{"$f":"Import!M14844","v":"Select"},{"$f":"Import!M15044","v":0},{"$f":"Import!M15244","v":0}]
[null,145,{"$f":"Import!M14445","v":"Select"},{"$f":"Import!M14645","v":"Select"},{"$f":"Import!M14845","v":"Select"},{"$f":"Import!M15045","v":0},{"$f":"Import!M15245","v":0}]
[null,146,{"$f":"Import!M14446","v":"Select"},{"$f":"Import!M14646","v":"Select"},{"$f":"Import!M14846","v":"Select"},{"$f":"Import!M15046","v":0},{"$f":"Import!M15246","v":0}]
[null,147,{"$f":"Import!M14447","v":"Select"},{"$f":"Import!M14647","v":"Select"},{"$f":"Import!M14847","v":"Select"},{"$f":"Import!M15047","v":0},{"$f":"Import!M15247","v":0}]
[null,148,{"$f":"Import!M14448","v":"Select"},{"$f":"Import!M14648","v":"Select"},{"$f":"Import!M14848","v":"Select"},{"$f":"Import!M15048","v":0},{"$f":"Import!M15248","v":0}]
[null,149,{"$f":"Import!M14449","v":"Select"},{"$f":"Import!M14649","v":"Select"},{"$f":"Import!M14849","v":"Select"},{"$f":"Import!M15049","v":0},{"$f":"Import!M15249","v":0}]
[null,150,{"$f":"Import!M14450","v":"Select"},{"$f":"Import!M14650","v":"Select"},{"$f":"Import!M14850","v":"Select"},{"$f":"Import!M15050","v":0},{"$f":"Import!M15250","v":0}]
[null,151,{"$f":"Import!M14451","v":"Select"},{"$f":"Import!M14651","v":"Select"},{"$f":"Import!M14851","v":"Select"},{"$f":"Import!M15051","v":0},{"$f":"Import!M15251","v":0}]
[null,152,{"$f":"Import!M14452","v":"Select"},{"$f":"Import!M14652","v":"Select"},{"$f":"Import!M14852","v":"Select"},{"$f":"Import!M15052","v":0},{"$f":"Import!M15252","v":0}]
[null,153,{"$f":"Import!M14453","v":"Select"},{"$f":"Import!M14653","v":"Select"},{"$f":"Import!M14853","v":"Select"},{"$f":"Import!M15053","v":0},{"$f":"Import!M15253","v":0}]
[null,154,{"$f":"Import!M14454","v":"Select"},{"$f":"Import!M14654","v":"Select"},{"$f":"Import!M14854","v":"Select"},{"$f":"Import!M15054","v":0},{"$f":"Import!M15254","v":0}]
[null,155,{"$f":"Import!M14455","v":"Select"},{"$f":"Import!M14655","v":"Select"},{"$f":"Import!M14855","v":"Select"},{"$f":"Import!M15055","v":0},{"$f":"Import!M15255","v":0}]
[null,156,{"$f":"Import!M14456","v":"Select"},{"$f":"Import!M14656","v":"Select"},{"$f":"Import!M14856","v":"Select"},{"$f":"Import!M15056","v":0},{"$f":"Import!M15256","v":0}]
[null,157,{"$f":"Import!M14457","v":"Select"},{"$f":"Import!M14657","v":"Select"},{"$f":"Import!M14857","v":"Select"},{"$f":"Import!M15057","v":0},{"$f":"Import!M15257","v":0}]
[null,158,{"$f":"Import!M14458","v":"Select"},{"$f":"Import!M14658","v":"Select"},{"$f":"Import!M14858","v":"Select"},{"$f":"Import!M15058","v":0},{"$f":"Import!M15258","v":0}]
[null,159,{"$f":"Import!M14459","v":"Select"},{"$f":"Import!M14659","v":"Select"},{"$f":"Import!M14859","v":"Select"},{"$f":"Import!M15059","v":0},{"$f":"Import!M15259","v":0}]
[null,160,{"$f":"Import!M14460","v":"Select"},{"$f":"Import!M14660","v":"Select"},{"$f":"Import!M14860","v":"Select"},{"$f":"Import!M15060","v":0},{"$f":"Import!M15260","v":0}]
[null,161,{"$f":"Import!M14461","v":"Select"},{"$f":"Import!M14661","v":"Select"},{"$f":"Import!M14861","v":"Select"},{"$f":"Import!M15061","v":0},{"$f":"Import!M15261","v":0}]
[null,162,{"$f":"Import!M14462","v":"Select"},{"$f":"Import!M14662","v":"Select"},{"$f":"Import!M14862","v":"Select"},{"$f":"Import!M15062","v":0},{"$f":"Import!M15262","v":0}]
[null,163,{"$f":"Import!M14463","v":"Select"},{"$f":"Import!M14663","v":"Select"},{"$f":"Import!M14863","v":"Select"},{"$f":"Import!M15063","v":0},{"$f":"Import!M15263","v":0}]
[null,164,{"$f":"Import!M14464","v":"Select"},{"$f":"Import!M14664","v":"Select"},{"$f":"Import!M14864","v":"Select"},{"$f":"Import!M15064","v":0},{"$f":"Import!M15264","v":0}]
[null,165,{"$f":"Import!M14465","v":"Select"},{"$f":"Import!M14665","v":"Select"},{"$f":"Import!M14865","v":"Select"},{"$f":"Import!M15065","v":0},{"$f":"Import!M15265","v":0}]
[null,166,{"$f":"Import!M14466","v":"Select"},{"$f":"Import!M14666","v":"Select"},{"$f":"Import!M14866","v":"Select"},{"$f":"Import!M15066","v":0},{"$f":"Import!M15266","v":0}]
[null,167,{"$f":"Import!M14467","v":"Select"},{"$f":"Import!M14667","v":"Select"},{"$f":"Import!M14867","v":"Select"},{"$f":"Import!M15067","v":0},{"$f":"Import!M15267","v":0}]
[null,168,{"$f":"Import!M14468","v":"Select"},{"$f":"Import!M14668","v":"Select"},{"$f":"Import!M14868","v":"Select"},{"$f":"Import!M15068","v":0},{"$f":"Import!M15268","v":0}]
[null,169,{"$f":"Import!M14469","v":"Select"},{"$f":"Import!M14669","v":"Select"},{"$f":"Import!M14869","v":"Select"},{"$f":"Import!M15069","v":0},{"$f":"Import!M15269","v":0}]
[null,170,{"$f":"Import!M14470","v":"Select"},{"$f":"Import!M14670","v":"Select"},{"$f":"Import!M14870","v":"Select"},{"$f":"Import!M15070","v":0},{"$f":"Import!M15270","v":0}]
[null,171,{"$f":"Import!M14471","v":"Select"},{"$f":"Import!M14671","v":"Select"},{"$f":"Import!M14871","v":"Select"},{"$f":"Import!M15071","v":0},{"$f":"Import!M15271","v":0}]
[null,172,{"$f":"Import!M14472","v":"Select"},{"$f":"Import!M14672","v":"Select"},{"$f":"Import!M14872","v":"Select"},{"$f":"Import!M15072","v":0},{"$f":"Import!M15272","v":0}]
[null,173,{"$f":"Import!M14473","v":"Select"},{"$f":"Import!M14673","v":"Select"},{"$f":"Import!M14873","v":"Select"},{"$f":"Import!M15073","v":0},{"$f":"Import!M15273","v":0}]
[null,174,{"$f":"Import!M14474","v":"Select"},{"$f":"Import!M14674","v":"Select"},{"$f":"Import!M14874","v":"Select"},{"$f":"Import!M15074","v":0},{"$f":"Import!M15274","v":0}]
[null,175,{"$f":"Import!M14475","v":"Select"},{"$f":"Import!M14675","v":"Select"},{"$f":"Import!M14875","v":"Select"},{"$f":"Import!M15075","v":0},{"$f":"Import!M15275","v":0}]
[null,176,{"$f":"Import!M14476","v":"Select"},{"$f":"Import!M14676","v":"Select"},{"$f":"Import!M14876","v":"Select"},{"$f":"Import!M15076","v":0},{"$f":"Import!M15276","v":0}]
[null,177,{"$f":"Import!M14477","v":"Select"},{"$f":"Import!M14677","v":"Select"},{"$f":"Import!M14877","v":"Select"},{"$f":"Import!M15077","v":0},{"$f":"Import!M15277","v":0}]
[null,178,{"$f":"Import!M14478","v":"Select"},{"$f":"Import!M14678","v":"Select"},{"$f":"Import!M14878","v":"Select"},{"$f":"Import!M15078","v":0},{"$f":"Import!M15278","v":0}]
[null,179,{"$f":"Import!M14479","v":"Select"},{"$f":"Import!M14679","v":"Select"},{"$f":"Import!M14879","v":"Select"},{"$f":"Import!M15079","v":0},{"$f":"Import!M15279","v":0}]
[null,180,{"$f":"Import!M14480","v":"Select"},{"$f":"Import!M14680","v":"Select"},{"$f":"Import!M14880","v":"Select"},{"$f":"Import!M15080","v":0},{"$f":"Import!M15280","v":0}]
[null,181,{"$f":"Import!M14481","v":"Select"},{"$f":"Import!M14681","v":"Select"},{"$f":"Import!M14881","v":"Select"},{"$f":"Import!M15081","v":0},{"$f":"Import!M15281","v":0}]
[null,182,{"$f":"Import!M14482","v":"Select"},{"$f":"Import!M14682","v":"Select"},{"$f":"Import!M14882","v":"Select"},{"$f":"Import!M15082","v":0},{"$f":"Import!M15282","v":0}]
[null,183,{"$f":"Import!M14483","v":"Select"},{"$f":"Import!M14683","v":"Select"},{"$f":"Import!M14883","v":"Select"},{"$f":"Import!M15083","v":0},{"$f":"Import!M15283","v":0}]
[null,184,{"$f":"Import!M14484","v":"Select"},{"$f":"Import!M14684","v":"Select"},{"$f":"Import!M14884","v":"Select"},{"$f":"Import!M15084","v":0},{"$f":"Import!M15284","v":0}]
[null,185,{"$f":"Import!M14485","v":"Select"},{"$f":"Import!M14685","v":"Select"},{"$f":"Import!M14885","v":"Select"},{"$f":"Import!M15085","v":0},{"$f":"Import!M15285","v":0}]
[null,186,{"$f":"Import!M14486","v":"Select"},{"$f":"Import!M14686","v":"Select"},{"$f":"Import!M14886","v":"Select"},{"$f":"Import!M15086","v":0},{"$f":"Import!M15286","v":0}]
[null,187,{"$f":"Import!M14487","v":"Select"},{"$f":"Import!M14687","v":"Select"},{"$f":"Import!M14887","v":"Select"},{"$f":"Import!M15087","v":0},{"$f":"Import!M15287","v":0}]
[null,188,{"$f":"Import!M14488","v":"Select"},{"$f":"Import!M14688","v":"Select"},{"$f":"Import!M14888","v":"Select"},{"$f":"Import!M15088","v":0},{"$f":"Import!M15288","v":0}]
[null,189,{"$f":"Import!M14489","v":"Select"},{"$f":"Import!M14689","v":"Select"},{"$f":"Import!M14889","v":"Select"},{"$f":"Import!M15089","v":0},{"$f":"Import!M15289","v":0}]
[null,190,{"$f":"Import!M14490","v":"Select"},{"$f":"Import!M14690","v":"Select"},{"$f":"Import!M14890","v":"Select"},{"$f":"Import!M15090","v":0},{"$f":"Import!M15290","v":0}]
[null,191,{"$f":"Import!M14491","v":"Select"},{"$f":"Import!M14691","v":"Select"},{"$f":"Import!M14891","v":"Select"},{"$f":"Import!M15091","v":0},{"$f":"Import!M15291","v":0}]
[null,192,{"$f":"Import!M14492","v":"Select"},{"$f":"Import!M14692","v":"Select"},{"$f":"Import!M14892","v":"Select"},{"$f":"Import!M15092","v":0},{"$f":"Import!M15292","v":0}]
[null,193,{"$f":"Import!M14493","v":"Select"},{"$f":"Import!M14693","v":"Select"},{"$f":"Import!M14893","v":"Select"},{"$f":"Import!M15093","v":0},{"$f":"Import!M15293","v":0}]
[null,194,{"$f":"Import!M14494","v":"Select"},{"$f":"Import!M14694","v":"Select"},{"$f":"Import!M14894","v":"Select"},{"$f":"Import!M15094","v":0},{"$f":"Import!M15294","v":0}]
[null,{"$f":"B820+1","v":195},{"$f":"Import!M14495","v":"Select"},{"$f":"Import!M14695","v":"Select"},{"$f":"Import!M14895","v":"Select"},{"$f":"Import!M15095","v":0},{"$f":"Import!M15295","v":0}]
[null,196,{"$f":"Import!M14496","v":"Select"},{"$f":"Import!M14696","v":"Select"},{"$f":"Import!M14896","v":"Select"},{"$f":"Import!M15096","v":0},{"$f":"Import!M15296","v":0}]
[null,197,{"$f":"Import!M14497","v":"Select"},{"$f":"Import!M14697","v":"Select"},{"$f":"Import!M14897","v":"Select"},{"$f":"Import!M15097","v":0},{"$f":"Import!M15297","v":0}]
[null,198,{"$f":"Import!M14498","v":"Select"},{"$f":"Import!M14698","v":"Select"},{"$f":"Import!M14898","v":"Select"},{"$f":"Import!M15098","v":0},{"$f":"Import!M15298","v":0}]
[null,199,{"$f":"Import!M14499","v":"Select"},{"$f":"Import!M14699","v":"Select"},{"$f":"Import!M14899","v":"Select"},{"$f":"Import!M15099","v":0},{"$f":"Import!M15299","v":0}]
[null,200,{"$f":"Import!M14500","v":"Select"},{"$f":"Import!M14700","v":"Select"},{"$f":"Import!M14900","v":"Select"},{"$f":"Import!M15100","v":0},{"$f":"Import!M15300","v":0}]
[]
[null,null,null,null,null,{"$f":"SUM(F627:F826)","v":0}]
[]
[null,"(C) ASSET-BACKED AND STRUCTURED SECURITIES"]
[]
[null,null,"Enter # of Asset Types",{"$f":"Import!M15301","v":0}]
[null,null,null,null,{"$f":"YEAR($C$3)","v":2023},2023,"Weighted"]
[null,"Asset Type","Currency","BSCR Rating","Nominal Amount","Fair Value","Average YTM","Effective Duration","Comments"]
[1,{"$f":"Import!M15302","v":"Select"},{"$f":"Import!M15452","v":"Select"},{"$f":"Import!M15602","v":"Select"},{"$f":"Import!M15752","v":0},{"$f":"Import!M15902","v":0},{"$f":"Import!M16052","v":0},{"$f":"Import!M16202","v":0},{"$f":"Import!M16352","v":0}]
[{"$f":"A835+1","v":2},{"$f":"Import!M15303","v":"Select"},{"$f":"Import!M15453","v":"Select"},{"$f":"Import!M15603","v":"Select"},{"$f":"Import!M15753","v":0},{"$f":"Import!M15903","v":0},{"$f":"Import!M16053","v":0},{"$f":"Import!M16203","v":0},{"$f":"Import!M16353","v":0}]
[{"$f":"A836+1","v":3},{"$f":"Import!M15304","v":"Select"},{"$f":"Import!M15454","v":"Select"},{"$f":"Import!M15604","v":"Select"},{"$f":"Import!M15754","v":0},{"$f":"Import!M15904","v":0},{"$f":"Import!M16054","v":0},{"$f":"Import!M16204","v":0},{"$f":"Import!M16354","v":0}]
[4,{"$f":"Import!M15305","v":"Select"},{"$f":"Import!M15455","v":"Select"},{"$f":"Import!M15605","v":"Select"},{"$f":"Import!M15755","v":0},{"$f":"Import!M15905","v":0},{"$f":"Import!M16055","v":0},{"$f":"Import!M16205","v":0},{"$f":"Import!M16355","v":0}]
[5,{"$f":"Import!M15306","v":"Select"},{"$f":"Import!M15456","v":"Select"},{"$f":"Import!M15606","v":"Select"},{"$f":"Import!M15756","v":0},{"$f":"Import!M15906","v":0},{"$f":"Import!M16056","v":0},{"$f":"Import!M16206","v":0},{"$f":"Import!M16356","v":0}]
[6,{"$f":"Import!M15307","v":"Select"},{"$f":"Import!M15457","v":"Select"},{"$f":"Import!M15607","v":"Select"},{"$f":"Import!M15757","v":0},{"$f":"Import!M15907","v":0},{"$f":"Import!M16057","v":0},{"$f":"Import!M16207","v":0},{"$f":"Import!M16357","v":0}]
[7,{"$f":"Import!M15308","v":"Select"},{"$f":"Import!M15458","v":"Select"},{"$f":"Import!M15608","v":"Select"},{"$f":"Import!M15758","v":0},{"$f":"Import!M15908","v":0},{"$f":"Import!M16058","v":0},{"$f":"Import!M16208","v":0},{"$f":"Import!M16358","v":0}]
[8,{"$f":"Import!M15309","v":"Select"},{"$f":"Import!M15459","v":"Select"},{"$f":"Import!M15609","v":"Select"},{"$f":"Import!M15759","v":0},{"$f":"Import!M15909","v":0},{"$f":"Import!M16059","v":0},{"$f":"Import!M16209","v":0},{"$f":"Import!M16359","v":0}]
[9,{"$f":"Import!M15310","v":"Select"},{"$f":"Import!M15460","v":"Select"},{"$f":"Import!M15610","v":"Select"},{"$f":"Import!M15760","v":0},{"$f":"Import!M15910","v":0},{"$f":"Import!M16060","v":0},{"$f":"Import!M16210","v":0},{"$f":"Import!M16360","v":0}]
[10,{"$f":"Import!M15311","v":"Select"},{"$f":"Import!M15461","v":"Select"},{"$f":"Import!M15611","v":"Select"},{"$f":"Import!M15761","v":0},{"$f":"Import!M15911","v":0},{"$f":"Import!M16061","v":0},{"$f":"Import!M16211","v":0},{"$f":"Import!M16361","v":0}]
[11,{"$f":"Import!M15312","v":"Select"},{"$f":"Import!M15462","v":"Select"},{"$f":"Import!M15612","v":"Select"},{"$f":"Import!M15762","v":0},{"$f":"Import!M15912","v":0},{"$f":"Import!M16062","v":0},{"$f":"Import!M16212","v":0},{"$f":"Import!M16362","v":0}]
[12,{"$f":"Import!M15313","v":"Select"},{"$f":"Import!M15463","v":"Select"},{"$f":"Import!M15613","v":"Select"},{"$f":"Import!M15763","v":0},{"$f":"Import!M15913","v":0},{"$f":"Import!M16063","v":0},{"$f":"Import!M16213","v":0},{"$f":"Import!M16363","v":0}]
[13,{"$f":"Import!M15314","v":"Select"},{"$f":"Import!M15464","v":"Select"},{"$f":"Import!M15614","v":"Select"},{"$f":"Import!M15764","v":0},{"$f":"Import!M15914","v":0},{"$f":"Import!M16064","v":0},{"$f":"Import!M16214","v":0},{"$f":"Import!M16364","v":0}]
[14,{"$f":"Import!M15315","v":"Select"},{"$f":"Import!M15465","v":"Select"},{"$f":"Import!M15615","v":"Select"},{"$f":"Import!M15765","v":0},{"$f":"Import!M15915","v":0},{"$f":"Import!M16065","v":0},{"$f":"Import!M16215","v":0},{"$f":"Import!M16365","v":0}]
[15,{"$f":"Import!M15316","v":"Select"},{"$f":"Import!M15466","v":"Select"},{"$f":"Import!M15616","v":"Select"},{"$f":"Import!M15766","v":0},{"$f":"Import!M15916","v":0},{"$f":"Import!M16066","v":0},{"$f":"Import!M16216","v":0},{"$f":"Import!M16366","v":0}]
[16,{"$f":"Import!M15317","v":"Select"},{"$f":"Import!M15467","v":"Select"},{"$f":"Import!M15617","v":"Select"},{"$f":"Import!M15767","v":0},{"$f":"Import!M15917","v":0},{"$f":"Import!M16067","v":0},{"$f":"Import!M16217","v":0},{"$f":"Import!M16367","v":0}]
[17,{"$f":"Import!M15318","v":"Select"},{"$f":"Import!M15468","v":"Select"},{"$f":"Import!M15618","v":"Select"},{"$f":"Import!M15768","v":0},{"$f":"Import!M15918","v":0},{"$f":"Import!M16068","v":0},{"$f":"Import!M16218","v":0},{"$f":"Import!M16368","v":0}]
[18,{"$f":"Import!M15319","v":"Select"},{"$f":"Import!M15469","v":"Select"},{"$f":"Import!M15619","v":"Select"},{"$f":"Import!M15769","v":0},{"$f":"Import!M15919","v":0},{"$f":"Import!M16069","v":0},{"$f":"Import!M16219","v":0},{"$f":"Import!M16369","v":0}]
[19,{"$f":"Import!M15320","v":"Select"},{"$f":"Import!M15470","v":"Select"},{"$f":"Import!M15620","v":"Select"},{"$f":"Import!M15770","v":0},{"$f":"Import!M15920","v":0},{"$f":"Import!M16070","v":0},{"$f":"Import!M16220","v":0},{"$f":"Import!M16370","v":0}]
[20,{"$f":"Import!M15321","v":"Select"},{"$f":"Import!M15471","v":"Select"},{"$f":"Import!M15621","v":"Select"},{"$f":"Import!M15771","v":0},{"$f":"Import!M15921","v":0},{"$f":"Import!M16071","v":0},{"$f":"Import!M16221","v":0},{"$f":"Import!M16371","v":0}]
[21,{"$f":"Import!M15322","v":"Select"},{"$f":"Import!M15472","v":"Select"},{"$f":"Import!M15622","v":"Select"},{"$f":"Import!M15772","v":0},{"$f":"Import!M15922","v":0},{"$f":"Import!M16072","v":0},{"$f":"Import!M16222","v":0},{"$f":"Import!M16372","v":0}]
[22,{"$f":"Import!M15323","v":"Select"},{"$f":"Import!M15473","v":"Select"},{"$f":"Import!M15623","v":"Select"},{"$f":"Import!M15773","v":0},{"$f":"Import!M15923","v":0},{"$f":"Import!M16073","v":0},{"$f":"Import!M16223","v":0},{"$f":"Import!M16373","v":0}]
[23,{"$f":"Import!M15324","v":"Select"},{"$f":"Import!M15474","v":"Select"},{"$f":"Import!M15624","v":"Select"},{"$f":"Import!M15774","v":0},{"$f":"Import!M15924","v":0},{"$f":"Import!M16074","v":0},{"$f":"Import!M16224","v":0},{"$f":"Import!M16374","v":0}]
[24,{"$f":"Import!M15325","v":"Select"},{"$f":"Import!M15475","v":"Select"},{"$f":"Import!M15625","v":"Select"},{"$f":"Import!M15775","v":0},{"$f":"Import!M15925","v":0},{"$f":"Import!M16075","v":0},{"$f":"Import!M16225","v":0},{"$f":"Import!M16375","v":0}]
[25,{"$f":"Import!M15326","v":"Select"},{"$f":"Import!M15476","v":"Select"},{"$f":"Import!M15626","v":"Select"},{"$f":"Import!M15776","v":0},{"$f":"Import!M15926","v":0},{"$f":"Import!M16076","v":0},{"$f":"Import!M16226","v":0},{"$f":"Import!M16376","v":0}]
[26,{"$f":"Import!M15327","v":"Select"},{"$f":"Import!M15477","v":"Select"},{"$f":"Import!M15627","v":"Select"},{"$f":"Import!M15777","v":0},{"$f":"Import!M15927","v":0},{"$f":"Import!M16077","v":0},{"$f":"Import!M16227","v":0},{"$f":"Import!M16377","v":0}]
[27,{"$f":"Import!M15328","v":"Select"},{"$f":"Import!M15478","v":"Select"},{"$f":"Import!M15628","v":"Select"},{"$f":"Import!M15778","v":0},{"$f":"Import!M15928","v":0},{"$f":"Import!M16078","v":0},{"$f":"Import!M16228","v":0},{"$f":"Import!M16378","v":0}]
[28,{"$f":"Import!M15329","v":"Select"},{"$f":"Import!M15479","v":"Select"},{"$f":"Import!M15629","v":"Select"},{"$f":"Import!M15779","v":0},{"$f":"Import!M15929","v":0},{"$f":"Import!M16079","v":0},{"$f":"Import!M16229","v":0},{"$f":"Import!M16379","v":0}]
[29,{"$f":"Import!M15330","v":"Select"},{"$f":"Import!M15480","v":"Select"},{"$f":"Import!M15630","v":"Select"},{"$f":"Import!M15780","v":0},{"$f":"Import!M15930","v":0},{"$f":"Import!M16080","v":0},{"$f":"Import!M16230","v":0},{"$f":"Import!M16380","v":0}]
[30,{"$f":"Import!M15331","v":"Select"},{"$f":"Import!M15481","v":"Select"},{"$f":"Import!M15631","v":"Select"},{"$f":"Import!M15781","v":0},{"$f":"Import!M15931","v":0},{"$f":"Import!M16081","v":0},{"$f":"Import!M16231","v":0},{"$f":"Import!M16381","v":0}]
[31,{"$f":"Import!M15332","v":"Select"},{"$f":"Import!M15482","v":"Select"},{"$f":"Import!M15632","v":"Select"},{"$f":"Import!M15782","v":0},{"$f":"Import!M15932","v":0},{"$f":"Import!M16082","v":0},{"$f":"Import!M16232","v":0},{"$f":"Import!M16382","v":0}]
[32,{"$f":"Import!M15333","v":"Select"},{"$f":"Import!M15483","v":"Select"},{"$f":"Import!M15633","v":"Select"},{"$f":"Import!M15783","v":0},{"$f":"Import!M15933","v":0},{"$f":"Import!M16083","v":0},{"$f":"Import!M16233","v":0},{"$f":"Import!M16383","v":0}]
[33,{"$f":"Import!M15334","v":"Select"},{"$f":"Import!M15484","v":"Select"},{"$f":"Import!M15634","v":"Select"},{"$f":"Import!M15784","v":0},{"$f":"Import!M15934","v":0},{"$f":"Import!M16084","v":0},{"$f":"Import!M16234","v":0},{"$f":"Import!M16384","v":0}]
[34,{"$f":"Import!M15335","v":"Select"},{"$f":"Import!M15485","v":"Select"},{"$f":"Import!M15635","v":"Select"},{"$f":"Import!M15785","v":0},{"$f":"Import!M15935","v":0},{"$f":"Import!M16085","v":0},{"$f":"Import!M16235","v":0},{"$f":"Import!M16385","v":0}]
[35,{"$f":"Import!M15336","v":"Select"},{"$f":"Import!M15486","v":"Select"},{"$f":"Import!M15636","v":"Select"},{"$f":"Import!M15786","v":0},{"$f":"Import!M15936","v":0},{"$f":"Import!M16086","v":0},{"$f":"Import!M16236","v":0},{"$f":"Import!M16386","v":0}]
[36,{"$f":"Import!M15337","v":"Select"},{"$f":"Import!M15487","v":"Select"},{"$f":"Import!M15637","v":"Select"},{"$f":"Import!M15787","v":0},{"$f":"Import!M15937","v":0},{"$f":"Import!M16087","v":0},{"$f":"Import!M16237","v":0},{"$f":"Import!M16387","v":0}]
[37,{"$f":"Import!M15338","v":"Select"},{"$f":"Import!M15488","v":"Select"},{"$f":"Import!M15638","v":"Select"},{"$f":"Import!M15788","v":0},{"$f":"Import!M15938","v":0},{"$f":"Import!M16088","v":0},{"$f":"Import!M16238","v":0},{"$f":"Import!M16388","v":0}]
[38,{"$f":"Import!M15339","v":"Select"},{"$f":"Import!M15489","v":"Select"},{"$f":"Import!M15639","v":"Select"},{"$f":"Import!M15789","v":0},{"$f":"Import!M15939","v":0},{"$f":"Import!M16089","v":0},{"$f":"Import!M16239","v":0},{"$f":"Import!M16389","v":0}]
[39,{"$f":"Import!M15340","v":"Select"},{"$f":"Import!M15490","v":"Select"},{"$f":"Import!M15640","v":"Select"},{"$f":"Import!M15790","v":0},{"$f":"Import!M15940","v":0},{"$f":"Import!M16090","v":0},{"$f":"Import!M16240","v":0},{"$f":"Import!M16390","v":0}]
[40,{"$f":"Import!M15341","v":"Select"},{"$f":"Import!M15491","v":"Select"},{"$f":"Import!M15641","v":"Select"},{"$f":"Import!M15791","v":0},{"$f":"Import!M15941","v":0},{"$f":"Import!M16091","v":0},{"$f":"Import!M16241","v":0},{"$f":"Import!M16391","v":0}]
[41,{"$f":"Import!M15342","v":"Select"},{"$f":"Import!M15492","v":"Select"},{"$f":"Import!M15642","v":"Select"},{"$f":"Import!M15792","v":0},{"$f":"Import!M15942","v":0},{"$f":"Import!M16092","v":0},{"$f":"Import!M16242","v":0},{"$f":"Import!M16392","v":0}]
[42,{"$f":"Import!M15343","v":"Select"},{"$f":"Import!M15493","v":"Select"},{"$f":"Import!M15643","v":"Select"},{"$f":"Import!M15793","v":0},{"$f":"Import!M15943","v":0},{"$f":"Import!M16093","v":0},{"$f":"Import!M16243","v":0},{"$f":"Import!M16393","v":0}]
[43,{"$f":"Import!M15344","v":"Select"},{"$f":"Import!M15494","v":"Select"},{"$f":"Import!M15644","v":"Select"},{"$f":"Import!M15794","v":0},{"$f":"Import!M15944","v":0},{"$f":"Import!M16094","v":0},{"$f":"Import!M16244","v":0},{"$f":"Import!M16394","v":0}]
[44,{"$f":"Import!M15345","v":"Select"},{"$f":"Import!M15495","v":"Select"},{"$f":"Import!M15645","v":"Select"},{"$f":"Import!M15795","v":0},{"$f":"Import!M15945","v":0},{"$f":"Import!M16095","v":0},{"$f":"Import!M16245","v":0},{"$f":"Import!M16395","v":0}]
[45,{"$f":"Import!M15346","v":"Select"},{"$f":"Import!M15496","v":"Select"},{"$f":"Import!M15646","v":"Select"},{"$f":"Import!M15796","v":0},{"$f":"Import!M15946","v":0},{"$f":"Import!M16096","v":0},{"$f":"Import!M16246","v":0},{"$f":"Import!M16396","v":0}]
[46,{"$f":"Import!M15347","v":"Select"},{"$f":"Import!M15497","v":"Select"},{"$f":"Import!M15647","v":"Select"},{"$f":"Import!M15797","v":0},{"$f":"Import!M15947","v":0},{"$f":"Import!M16097","v":0},{"$f":"Import!M16247","v":0},{"$f":"Import!M16397","v":0}]
[47,{"$f":"Import!M15348","v":"Select"},{"$f":"Import!M15498","v":"Select"},{"$f":"Import!M15648","v":"Select"},{"$f":"Import!M15798","v":0},{"$f":"Import!M15948","v":0},{"$f":"Import!M16098","v":0},{"$f":"Import!M16248","v":0},{"$f":"Import!M16398","v":0}]
[48,{"$f":"Import!M15349","v":"Select"},{"$f":"Import!M15499","v":"Select"},{"$f":"Import!M15649","v":"Select"},{"$f":"Import!M15799","v":0},{"$f":"Import!M15949","v":0},{"$f":"Import!M16099","v":0},{"$f":"Import!M16249","v":0},{"$f":"Import!M16399","v":0}]
[49,{"$f":"Import!M15350","v":"Select"},{"$f":"Import!M15500","v":"Select"},{"$f":"Import!M15650","v":"Select"},{"$f":"Import!M15800","v":0},{"$f":"Import!M15950","v":0},{"$f":"Import!M16100","v":0},{"$f":"Import!M16250","v":0},{"$f":"Import!M16400","v":0}]
[50,{"$f":"Import!M15351","v":"Select"},{"$f":"Import!M15501","v":"Select"},{"$f":"Import!M15651","v":"Select"},{"$f":"Import!M15801","v":0},{"$f":"Import!M15951","v":0},{"$f":"Import!M16101","v":0},{"$f":"Import!M16251","v":0},{"$f":"Import!M16401","v":0}]
[51,{"$f":"Import!M15352","v":"Select"},{"$f":"Import!M15502","v":"Select"},{"$f":"Import!M15652","v":"Select"},{"$f":"Import!M15802","v":0},{"$f":"Import!M15952","v":0},{"$f":"Import!M16102","v":0},{"$f":"Import!M16252","v":0},{"$f":"Import!M16402","v":0}]
[52,{"$f":"Import!M15353","v":"Select"},{"$f":"Import!M15503","v":"Select"},{"$f":"Import!M15653","v":"Select"},{"$f":"Import!M15803","v":0},{"$f":"Import!M15953","v":0},{"$f":"Import!M16103","v":0},{"$f":"Import!M16253","v":0},{"$f":"Import!M16403","v":0}]
[53,{"$f":"Import!M15354","v":"Select"},{"$f":"Import!M15504","v":"Select"},{"$f":"Import!M15654","v":"Select"},{"$f":"Import!M15804","v":0},{"$f":"Import!M15954","v":0},{"$f":"Import!M16104","v":0},{"$f":"Import!M16254","v":0},{"$f":"Import!M16404","v":0}]
[54,{"$f":"Import!M15355","v":"Select"},{"$f":"Import!M15505","v":"Select"},{"$f":"Import!M15655","v":"Select"},{"$f":"Import!M15805","v":0},{"$f":"Import!M15955","v":0},{"$f":"Import!M16105","v":0},{"$f":"Import!M16255","v":0},{"$f":"Import!M16405","v":0}]
[55,{"$f":"Import!M15356","v":"Select"},{"$f":"Import!M15506","v":"Select"},{"$f":"Import!M15656","v":"Select"},{"$f":"Import!M15806","v":0},{"$f":"Import!M15956","v":0},{"$f":"Import!M16106","v":0},{"$f":"Import!M16256","v":0},{"$f":"Import!M16406","v":0}]
[56,{"$f":"Import!M15357","v":"Select"},{"$f":"Import!M15507","v":"Select"},{"$f":"Import!M15657","v":"Select"},{"$f":"Import!M15807","v":0},{"$f":"Import!M15957","v":0},{"$f":"Import!M16107","v":0},{"$f":"Import!M16257","v":0},{"$f":"Import!M16407","v":0}]
[57,{"$f":"Import!M15358","v":"Select"},{"$f":"Import!M15508","v":"Select"},{"$f":"Import!M15658","v":"Select"},{"$f":"Import!M15808","v":0},{"$f":"Import!M15958","v":0},{"$f":"Import!M16108","v":0},{"$f":"Import!M16258","v":0},{"$f":"Import!M16408","v":0}]
[58,{"$f":"Import!M15359","v":"Select"},{"$f":"Import!M15509","v":"Select"},{"$f":"Import!M15659","v":"Select"},{"$f":"Import!M15809","v":0},{"$f":"Import!M15959","v":0},{"$f":"Import!M16109","v":0},{"$f":"Import!M16259","v":0},{"$f":"Import!M16409","v":0}]
[59,{"$f":"Import!M15360","v":"Select"},{"$f":"Import!M15510","v":"Select"},{"$f":"Import!M15660","v":"Select"},{"$f":"Import!M15810","v":0},{"$f":"Import!M15960","v":0},{"$f":"Import!M16110","v":0},{"$f":"Import!M16260","v":0},{"$f":"Import!M16410","v":0}]
[60,{"$f":"Import!M15361","v":"Select"},{"$f":"Import!M15511","v":"Select"},{"$f":"Import!M15661","v":"Select"},{"$f":"Import!M15811","v":0},{"$f":"Import!M15961","v":0},{"$f":"Import!M16111","v":0},{"$f":"Import!M16261","v":0},{"$f":"Import!M16411","v":0}]
[61,{"$f":"Import!M15362","v":"Select"},{"$f":"Import!M15512","v":"Select"},{"$f":"Import!M15662","v":"Select"},{"$f":"Import!M15812","v":0},{"$f":"Import!M15962","v":0},{"$f":"Import!M16112","v":0},{"$f":"Import!M16262","v":0},{"$f":"Import!M16412","v":0}]
[62,{"$f":"Import!M15363","v":"Select"},{"$f":"Import!M15513","v":"Select"},{"$f":"Import!M15663","v":"Select"},{"$f":"Import!M15813","v":0},{"$f":"Import!M15963","v":0},{"$f":"Import!M16113","v":0},{"$f":"Import!M16263","v":0},{"$f":"Import!M16413","v":0}]
[63,{"$f":"Import!M15364","v":"Select"},{"$f":"Import!M15514","v":"Select"},{"$f":"Import!M15664","v":"Select"},{"$f":"Import!M15814","v":0},{"$f":"Import!M15964","v":0},{"$f":"Import!M16114","v":0},{"$f":"Import!M16264","v":0},{"$f":"Import!M16414","v":0}]
[64,{"$f":"Import!M15365","v":"Select"},{"$f":"Import!M15515","v":"Select"},{"$f":"Import!M15665","v":"Select"},{"$f":"Import!M15815","v":0},{"$f":"Import!M15965","v":0},{"$f":"Import!M16115","v":0},{"$f":"Import!M16265","v":0},{"$f":"Import!M16415","v":0}]
[65,{"$f":"Import!M15366","v":"Select"},{"$f":"Import!M15516","v":"Select"},{"$f":"Import!M15666","v":"Select"},{"$f":"Import!M15816","v":0},{"$f":"Import!M15966","v":0},{"$f":"Import!M16116","v":0},{"$f":"Import!M16266","v":0},{"$f":"Import!M16416","v":0}]
[66,{"$f":"Import!M15367","v":"Select"},{"$f":"Import!M15517","v":"Select"},{"$f":"Import!M15667","v":"Select"},{"$f":"Import!M15817","v":0},{"$f":"Import!M15967","v":0},{"$f":"Import!M16117","v":0},{"$f":"Import!M16267","v":0},{"$f":"Import!M16417","v":0}]
[{"$f":"A900+1","v":67},{"$f":"Import!M15368","v":"Select"},{"$f":"Import!M15518","v":"Select"},{"$f":"Import!M15668","v":"Select"},{"$f":"Import!M15818","v":0},{"$f":"Import!M15968","v":0},{"$f":"Import!M16118","v":0},{"$f":"Import!M16268","v":0},{"$f":"Import!M16418","v":0}]
[68,{"$f":"Import!M15369","v":"Select"},{"$f":"Import!M15519","v":"Select"},{"$f":"Import!M15669","v":"Select"},{"$f":"Import!M15819","v":0},{"$f":"Import!M15969","v":0},{"$f":"Import!M16119","v":0},{"$f":"Import!M16269","v":0},{"$f":"Import!M16419","v":0}]
[69,{"$f":"Import!M15370","v":"Select"},{"$f":"Import!M15520","v":"Select"},{"$f":"Import!M15670","v":"Select"},{"$f":"Import!M15820","v":0},{"$f":"Import!M15970","v":0},{"$f":"Import!M16120","v":0},{"$f":"Import!M16270","v":0},{"$f":"Import!M16420","v":0}]
[70,{"$f":"Import!M15371","v":"Select"},{"$f":"Import!M15521","v":"Select"},{"$f":"Import!M15671","v":"Select"},{"$f":"Import!M15821","v":0},{"$f":"Import!M15971","v":0},{"$f":"Import!M16121","v":0},{"$f":"Import!M16271","v":0},{"$f":"Import!M16421","v":0}]
[71,{"$f":"Import!M15372","v":"Select"},{"$f":"Import!M15522","v":"Select"},{"$f":"Import!M15672","v":"Select"},{"$f":"Import!M15822","v":0},{"$f":"Import!M15972","v":0},{"$f":"Import!M16122","v":0},{"$f":"Import!M16272","v":0},{"$f":"Import!M16422","v":0}]
[72,{"$f":"Import!M15373","v":"Select"},{"$f":"Import!M15523","v":"Select"},{"$f":"Import!M15673","v":"Select"},{"$f":"Import!M15823","v":0},{"$f":"Import!M15973","v":0},{"$f":"Import!M16123","v":0},{"$f":"Import!M16273","v":0},{"$f":"Import!M16423","v":0}]
[73,{"$f":"Import!M15374","v":"Select"},{"$f":"Import!M15524","v":"Select"},{"$f":"Import!M15674","v":"Select"},{"$f":"Import!M15824","v":0},{"$f":"Import!M15974","v":0},{"$f":"Import!M16124","v":0},{"$f":"Import!M16274","v":0},{"$f":"Import!M16424","v":0}]
[74,{"$f":"Import!M15375","v":"Select"},{"$f":"Import!M15525","v":"Select"},{"$f":"Import!M15675","v":"Select"},{"$f":"Import!M15825","v":0},{"$f":"Import!M15975","v":0},{"$f":"Import!M16125","v":0},{"$f":"Import!M16275","v":0},{"$f":"Import!M16425","v":0}]
[75,{"$f":"Import!M15376","v":"Select"},{"$f":"Import!M15526","v":"Select"},{"$f":"Import!M15676","v":"Select"},{"$f":"Import!M15826","v":0},{"$f":"Import!M15976","v":0},{"$f":"Import!M16126","v":0},{"$f":"Import!M16276","v":0},{"$f":"Import!M16426","v":0}]
[76,{"$f":"Import!M15377","v":"Select"},{"$f":"Import!M15527","v":"Select"},{"$f":"Import!M15677","v":"Select"},{"$f":"Import!M15827","v":0},{"$f":"Import!M15977","v":0},{"$f":"Import!M16127","v":0},{"$f":"Import!M16277","v":0},{"$f":"Import!M16427","v":0}]
[77,{"$f":"Import!M15378","v":"Select"},{"$f":"Import!M15528","v":"Select"},{"$f":"Import!M15678","v":"Select"},{"$f":"Import!M15828","v":0},{"$f":"Import!M15978","v":0},{"$f":"Import!M16128","v":0},{"$f":"Import!M16278","v":0},{"$f":"Import!M16428","v":0}]
[78,{"$f":"Import!M15379","v":"Select"},{"$f":"Import!M15529","v":"Select"},{"$f":"Import!M15679","v":"Select"},{"$f":"Import!M15829","v":0},{"$f":"Import!M15979","v":0},{"$f":"Import!M16129","v":0},{"$f":"Import!M16279","v":0},{"$f":"Import!M16429","v":0}]
[79,{"$f":"Import!M15380","v":"Select"},{"$f":"Import!M15530","v":"Select"},{"$f":"Import!M15680","v":"Select"},{"$f":"Import!M15830","v":0},{"$f":"Import!M15980","v":0},{"$f":"Import!M16130","v":0},{"$f":"Import!M16280","v":0},{"$f":"Import!M16430","v":0}]
[80,{"$f":"Import!M15381","v":"Select"},{"$f":"Import!M15531","v":"Select"},{"$f":"Import!M15681","v":"Select"},{"$f":"Import!M15831","v":0},{"$f":"Import!M15981","v":0},{"$f":"Import!M16131","v":0},{"$f":"Import!M16281","v":0},{"$f":"Import!M16431","v":0}]
[81,{"$f":"Import!M15382","v":"Select"},{"$f":"Import!M15532","v":"Select"},{"$f":"Import!M15682","v":"Select"},{"$f":"Import!M15832","v":0},{"$f":"Import!M15982","v":0},{"$f":"Import!M16132","v":0},{"$f":"Import!M16282","v":0},{"$f":"Import!M16432","v":0}]
[82,{"$f":"Import!M15383","v":"Select"},{"$f":"Import!M15533","v":"Select"},{"$f":"Import!M15683","v":"Select"},{"$f":"Import!M15833","v":0},{"$f":"Import!M15983","v":0},{"$f":"Import!M16133","v":0},{"$f":"Import!M16283","v":0},{"$f":"Import!M16433","v":0}]
[83,{"$f":"Import!M15384","v":"Select"},{"$f":"Import!M15534","v":"Select"},{"$f":"Import!M15684","v":"Select"},{"$f":"Import!M15834","v":0},{"$f":"Import!M15984","v":0},{"$f":"Import!M16134","v":0},{"$f":"Import!M16284","v":0},{"$f":"Import!M16434","v":0}]
[84,{"$f":"Import!M15385","v":"Select"},{"$f":"Import!M15535","v":"Select"},{"$f":"Import!M15685","v":"Select"},{"$f":"Import!M15835","v":0},{"$f":"Import!M15985","v":0},{"$f":"Import!M16135","v":0},{"$f":"Import!M16285","v":0},{"$f":"Import!M16435","v":0}]
[85,{"$f":"Import!M15386","v":"Select"},{"$f":"Import!M15536","v":"Select"},{"$f":"Import!M15686","v":"Select"},{"$f":"Import!M15836","v":0},{"$f":"Import!M15986","v":0},{"$f":"Import!M16136","v":0},{"$f":"Import!M16286","v":0},{"$f":"Import!M16436","v":0}]
[86,{"$f":"Import!M15387","v":"Select"},{"$f":"Import!M15537","v":"Select"},{"$f":"Import!M15687","v":"Select"},{"$f":"Import!M15837","v":0},{"$f":"Import!M15987","v":0},{"$f":"Import!M16137","v":0},{"$f":"Import!M16287","v":0},{"$f":"Import!M16437","v":0}]
[87,{"$f":"Import!M15388","v":"Select"},{"$f":"Import!M15538","v":"Select"},{"$f":"Import!M15688","v":"Select"},{"$f":"Import!M15838","v":0},{"$f":"Import!M15988","v":0},{"$f":"Import!M16138","v":0},{"$f":"Import!M16288","v":0},{"$f":"Import!M16438","v":0}]
[88,{"$f":"Import!M15389","v":"Select"},{"$f":"Import!M15539","v":"Select"},{"$f":"Import!M15689","v":"Select"},{"$f":"Import!M15839","v":0},{"$f":"Import!M15989","v":0},{"$f":"Import!M16139","v":0},{"$f":"Import!M16289","v":0},{"$f":"Import!M16439","v":0}]
[89,{"$f":"Import!M15390","v":"Select"},{"$f":"Import!M15540","v":"Select"},{"$f":"Import!M15690","v":"Select"},{"$f":"Import!M15840","v":0},{"$f":"Import!M15990","v":0},{"$f":"Import!M16140","v":0},{"$f":"Import!M16290","v":0},{"$f":"Import!M16440","v":0}]
[90,{"$f":"Import!M15391","v":"Select"},{"$f":"Import!M15541","v":"Select"},{"$f":"Import!M15691","v":"Select"},{"$f":"Import!M15841","v":0},{"$f":"Import!M15991","v":0},{"$f":"Import!M16141","v":0},{"$f":"Import!M16291","v":0},{"$f":"Import!M16441","v":0}]
[91,{"$f":"Import!M15392","v":"Select"},{"$f":"Import!M15542","v":"Select"},{"$f":"Import!M15692","v":"Select"},{"$f":"Import!M15842","v":0},{"$f":"Import!M15992","v":0},{"$f":"Import!M16142","v":0},{"$f":"Import!M16292","v":0},{"$f":"Import!M16442","v":0}]
[92,{"$f":"Import!M15393","v":"Select"},{"$f":"Import!M15543","v":"Select"},{"$f":"Import!M15693","v":"Select"},{"$f":"Import!M15843","v":0},{"$f":"Import!M15993","v":0},{"$f":"Import!M16143","v":0},{"$f":"Import!M16293","v":0},{"$f":"Import!M16443","v":0}]
[93,{"$f":"Import!M15394","v":"Select"},{"$f":"Import!M15544","v":"Select"},{"$f":"Import!M15694","v":"Select"},{"$f":"Import!M15844","v":0},{"$f":"Import!M15994","v":0},{"$f":"Import!M16144","v":0},{"$f":"Import!M16294","v":0},{"$f":"Import!M16444","v":0}]
[94,{"$f":"Import!M15395","v":"Select"},{"$f":"Import!M15545","v":"Select"},{"$f":"Import!M15695","v":"Select"},{"$f":"Import!M15845","v":0},{"$f":"Import!M15995","v":0},{"$f":"Import!M16145","v":0},{"$f":"Import!M16295","v":0},{"$f":"Import!M16445","v":0}]
[95,{"$f":"Import!M15396","v":"Select"},{"$f":"Import!M15546","v":"Select"},{"$f":"Import!M15696","v":"Select"},{"$f":"Import!M15846","v":0},{"$f":"Import!M15996","v":0},{"$f":"Import!M16146","v":0},{"$f":"Import!M16296","v":0},{"$f":"Import!M16446","v":0}]
[96,{"$f":"Import!M15397","v":"Select"},{"$f":"Import!M15547","v":"Select"},{"$f":"Import!M15697","v":"Select"},{"$f":"Import!M15847","v":0},{"$f":"Import!M15997","v":0},{"$f":"Import!M16147","v":0},{"$f":"Import!M16297","v":0},{"$f":"Import!M16447","v":0}]
[97,{"$f":"Import!M15398","v":"Select"},{"$f":"Import!M15548","v":"Select"},{"$f":"Import!M15698","v":"Select"},{"$f":"Import!M15848","v":0},{"$f":"Import!M15998","v":0},{"$f":"Import!M16148","v":0},{"$f":"Import!M16298","v":0},{"$f":"Import!M16448","v":0}]
[98,{"$f":"Import!M15399","v":"Select"},{"$f":"Import!M15549","v":"Select"},{"$f":"Import!M15699","v":"Select"},{"$f":"Import!M15849","v":0},{"$f":"Import!M15999","v":0},{"$f":"Import!M16149","v":0},{"$f":"Import!M16299","v":0},{"$f":"Import!M16449","v":0}]
[99,{"$f":"Import!M15400","v":"Select"},{"$f":"Import!M15550","v":"Select"},{"$f":"Import!M15700","v":"Select"},{"$f":"Import!M15850","v":0},{"$f":"Import!M16000","v":0},{"$f":"Import!M16150","v":0},{"$f":"Import!M16300","v":0},{"$f":"Import!M16450","v":0}]
[100,{"$f":"Import!M15401","v":"Select"},{"$f":"Import!M15551","v":"Select"},{"$f":"Import!M15701","v":"Select"},{"$f":"Import!M15851","v":0},{"$f":"Import!M16001","v":0},{"$f":"Import!M16151","v":0},{"$f":"Import!M16301","v":0},{"$f":"Import!M16451","v":0}]
[101,{"$f":"Import!M15402","v":"Select"},{"$f":"Import!M15552","v":"Select"},{"$f":"Import!M15702","v":"Select"},{"$f":"Import!M15852","v":0},{"$f":"Import!M16002","v":0},{"$f":"Import!M16152","v":0},{"$f":"Import!M16302","v":0},{"$f":"Import!M16452","v":0}]
[102,{"$f":"Import!M15403","v":"Select"},{"$f":"Import!M15553","v":"Select"},{"$f":"Import!M15703","v":"Select"},{"$f":"Import!M15853","v":0},{"$f":"Import!M16003","v":0},{"$f":"Import!M16153","v":0},{"$f":"Import!M16303","v":0},{"$f":"Import!M16453","v":0}]
[103,{"$f":"Import!M15404","v":"Select"},{"$f":"Import!M15554","v":"Select"},{"$f":"Import!M15704","v":"Select"},{"$f":"Import!M15854","v":0},{"$f":"Import!M16004","v":0},{"$f":"Import!M16154","v":0},{"$f":"Import!M16304","v":0},{"$f":"Import!M16454","v":0}]
[104,{"$f":"Import!M15405","v":"Select"},{"$f":"Import!M15555","v":"Select"},{"$f":"Import!M15705","v":"Select"},{"$f":"Import!M15855","v":0},{"$f":"Import!M16005","v":0},{"$f":"Import!M16155","v":0},{"$f":"Import!M16305","v":0},{"$f":"Import!M16455","v":0}]
[105,{"$f":"Import!M15406","v":"Select"},{"$f":"Import!M15556","v":"Select"},{"$f":"Import!M15706","v":"Select"},{"$f":"Import!M15856","v":0},{"$f":"Import!M16006","v":0},{"$f":"Import!M16156","v":0},{"$f":"Import!M16306","v":0},{"$f":"Import!M16456","v":0}]
[106,{"$f":"Import!M15407","v":"Select"},{"$f":"Import!M15557","v":"Select"},{"$f":"Import!M15707","v":"Select"},{"$f":"Import!M15857","v":0},{"$f":"Import!M16007","v":0},{"$f":"Import!M16157","v":0},{"$f":"Import!M16307","v":0},{"$f":"Import!M16457","v":0}]
[107,{"$f":"Import!M15408","v":"Select"},{"$f":"Import!M15558","v":"Select"},{"$f":"Import!M15708","v":"Select"},{"$f":"Import!M15858","v":0},{"$f":"Import!M16008","v":0},{"$f":"Import!M16158","v":0},{"$f":"Import!M16308","v":0},{"$f":"Import!M16458","v":0}]
[108,{"$f":"Import!M15409","v":"Select"},{"$f":"Import!M15559","v":"Select"},{"$f":"Import!M15709","v":"Select"},{"$f":"Import!M15859","v":0},{"$f":"Import!M16009","v":0},{"$f":"Import!M16159","v":0},{"$f":"Import!M16309","v":0},{"$f":"Import!M16459","v":0}]
[109,{"$f":"Import!M15410","v":"Select"},{"$f":"Import!M15560","v":"Select"},{"$f":"Import!M15710","v":"Select"},{"$f":"Import!M15860","v":0},{"$f":"Import!M16010","v":0},{"$f":"Import!M16160","v":0},{"$f":"Import!M16310","v":0},{"$f":"Import!M16460","v":0}]
[110,{"$f":"Import!M15411","v":"Select"},{"$f":"Import!M15561","v":"Select"},{"$f":"Import!M15711","v":"Select"},{"$f":"Import!M15861","v":0},{"$f":"Import!M16011","v":0},{"$f":"Import!M16161","v":0},{"$f":"Import!M16311","v":0},{"$f":"Import!M16461","v":0}]
[111,{"$f":"Import!M15412","v":"Select"},{"$f":"Import!M15562","v":"Select"},{"$f":"Import!M15712","v":"Select"},{"$f":"Import!M15862","v":0},{"$f":"Import!M16012","v":0},{"$f":"Import!M16162","v":0},{"$f":"Import!M16312","v":0},{"$f":"Import!M16462","v":0}]
[112,{"$f":"Import!M15413","v":"Select"},{"$f":"Import!M15563","v":"Select"},{"$f":"Import!M15713","v":"Select"},{"$f":"Import!M15863","v":0},{"$f":"Import!M16013","v":0},{"$f":"Import!M16163","v":0},{"$f":"Import!M16313","v":0},{"$f":"Import!M16463","v":0}]
[113,{"$f":"Import!M15414","v":"Select"},{"$f":"Import!M15564","v":"Select"},{"$f":"Import!M15714","v":"Select"},{"$f":"Import!M15864","v":0},{"$f":"Import!M16014","v":0},{"$f":"Import!M16164","v":0},{"$f":"Import!M16314","v":0},{"$f":"Import!M16464","v":0}]
[114,{"$f":"Import!M15415","v":"Select"},{"$f":"Import!M15565","v":"Select"},{"$f":"Import!M15715","v":"Select"},{"$f":"Import!M15865","v":0},{"$f":"Import!M16015","v":0},{"$f":"Import!M16165","v":0},{"$f":"Import!M16315","v":0},{"$f":"Import!M16465","v":0}]
[115,{"$f":"Import!M15416","v":"Select"},{"$f":"Import!M15566","v":"Select"},{"$f":"Import!M15716","v":"Select"},{"$f":"Import!M15866","v":0},{"$f":"Import!M16016","v":0},{"$f":"Import!M16166","v":0},{"$f":"Import!M16316","v":0},{"$f":"Import!M16466","v":0}]
[116,{"$f":"Import!M15417","v":"Select"},{"$f":"Import!M15567","v":"Select"},{"$f":"Import!M15717","v":"Select"},{"$f":"Import!M15867","v":0},{"$f":"Import!M16017","v":0},{"$f":"Import!M16167","v":0},{"$f":"Import!M16317","v":0},{"$f":"Import!M16467","v":0}]
[117,{"$f":"Import!M15418","v":"Select"},{"$f":"Import!M15568","v":"Select"},{"$f":"Import!M15718","v":"Select"},{"$f":"Import!M15868","v":0},{"$f":"Import!M16018","v":0},{"$f":"Import!M16168","v":0},{"$f":"Import!M16318","v":0},{"$f":"Import!M16468","v":0}]
[118,{"$f":"Import!M15419","v":"Select"},{"$f":"Import!M15569","v":"Select"},{"$f":"Import!M15719","v":"Select"},{"$f":"Import!M15869","v":0},{"$f":"Import!M16019","v":0},{"$f":"Import!M16169","v":0},{"$f":"Import!M16319","v":0},{"$f":"Import!M16469","v":0}]
[119,{"$f":"Import!M15420","v":"Select"},{"$f":"Import!M15570","v":"Select"},{"$f":"Import!M15720","v":"Select"},{"$f":"Import!M15870","v":0},{"$f":"Import!M16020","v":0},{"$f":"Import!M16170","v":0},{"$f":"Import!M16320","v":0},{"$f":"Import!M16470","v":0}]
[120,{"$f":"Import!M15421","v":"Select"},{"$f":"Import!M15571","v":"Select"},{"$f":"Import!M15721","v":"Select"},{"$f":"Import!M15871","v":0},{"$f":"Import!M16021","v":0},{"$f":"Import!M16171","v":0},{"$f":"Import!M16321","v":0},{"$f":"Import!M16471","v":0}]
[121,{"$f":"Import!M15422","v":"Select"},{"$f":"Import!M15572","v":"Select"},{"$f":"Import!M15722","v":"Select"},{"$f":"Import!M15872","v":0},{"$f":"Import!M16022","v":0},{"$f":"Import!M16172","v":0},{"$f":"Import!M16322","v":0},{"$f":"Import!M16472","v":0}]
[122,{"$f":"Import!M15423","v":"Select"},{"$f":"Import!M15573","v":"Select"},{"$f":"Import!M15723","v":"Select"},{"$f":"Import!M15873","v":0},{"$f":"Import!M16023","v":0},{"$f":"Import!M16173","v":0},{"$f":"Import!M16323","v":0},{"$f":"Import!M16473","v":0}]
[123,{"$f":"Import!M15424","v":"Select"},{"$f":"Import!M15574","v":"Select"},{"$f":"Import!M15724","v":"Select"},{"$f":"Import!M15874","v":0},{"$f":"Import!M16024","v":0},{"$f":"Import!M16174","v":0},{"$f":"Import!M16324","v":0},{"$f":"Import!M16474","v":0}]
[124,{"$f":"Import!M15425","v":"Select"},{"$f":"Import!M15575","v":"Select"},{"$f":"Import!M15725","v":"Select"},{"$f":"Import!M15875","v":0},{"$f":"Import!M16025","v":0},{"$f":"Import!M16175","v":0},{"$f":"Import!M16325","v":0},{"$f":"Import!M16475","v":0}]
[125,{"$f":"Import!M15426","v":"Select"},{"$f":"Import!M15576","v":"Select"},{"$f":"Import!M15726","v":"Select"},{"$f":"Import!M15876","v":0},{"$f":"Import!M16026","v":0},{"$f":"Import!M16176","v":0},{"$f":"Import!M16326","v":0},{"$f":"Import!M16476","v":0}]
[126,{"$f":"Import!M15427","v":"Select"},{"$f":"Import!M15577","v":"Select"},{"$f":"Import!M15727","v":"Select"},{"$f":"Import!M15877","v":0},{"$f":"Import!M16027","v":0},{"$f":"Import!M16177","v":0},{"$f":"Import!M16327","v":0},{"$f":"Import!M16477","v":0}]
[127,{"$f":"Import!M15428","v":"Select"},{"$f":"Import!M15578","v":"Select"},{"$f":"Import!M15728","v":"Select"},{"$f":"Import!M15878","v":0},{"$f":"Import!M16028","v":0},{"$f":"Import!M16178","v":0},{"$f":"Import!M16328","v":0},{"$f":"Import!M16478","v":0}]
[128,{"$f":"Import!M15429","v":"Select"},{"$f":"Import!M15579","v":"Select"},{"$f":"Import!M15729","v":"Select"},{"$f":"Import!M15879","v":0},{"$f":"Import!M16029","v":0},{"$f":"Import!M16179","v":0},{"$f":"Import!M16329","v":0},{"$f":"Import!M16479","v":0}]
[129,{"$f":"Import!M15430","v":"Select"},{"$f":"Import!M15580","v":"Select"},{"$f":"Import!M15730","v":"Select"},{"$f":"Import!M15880","v":0},{"$f":"Import!M16030","v":0},{"$f":"Import!M16180","v":0},{"$f":"Import!M16330","v":0},{"$f":"Import!M16480","v":0}]
[130,{"$f":"Import!M15431","v":"Select"},{"$f":"Import!M15581","v":"Select"},{"$f":"Import!M15731","v":"Select"},{"$f":"Import!M15881","v":0},{"$f":"Import!M16031","v":0},{"$f":"Import!M16181","v":0},{"$f":"Import!M16331","v":0},{"$f":"Import!M16481","v":0}]
[{"$f":"A964+1","v":131},{"$f":"Import!M15432","v":"Select"},{"$f":"Import!M15582","v":"Select"},{"$f":"Import!M15732","v":"Select"},{"$f":"Import!M15882","v":0},{"$f":"Import!M16032","v":0},{"$f":"Import!M16182","v":0},{"$f":"Import!M16332","v":0},{"$f":"Import!M16482","v":0}]
[132,{"$f":"Import!M15433","v":"Select"},{"$f":"Import!M15583","v":"Select"},{"$f":"Import!M15733","v":"Select"},{"$f":"Import!M15883","v":0},{"$f":"Import!M16033","v":0},{"$f":"Import!M16183","v":0},{"$f":"Import!M16333","v":0},{"$f":"Import!M16483","v":0}]
[133,{"$f":"Import!M15434","v":"Select"},{"$f":"Import!M15584","v":"Select"},{"$f":"Import!M15734","v":"Select"},{"$f":"Import!M15884","v":0},{"$f":"Import!M16034","v":0},{"$f":"Import!M16184","v":0},{"$f":"Import!M16334","v":0},{"$f":"Import!M16484","v":0}]
[134,{"$f":"Import!M15435","v":"Select"},{"$f":"Import!M15585","v":"Select"},{"$f":"Import!M15735","v":"Select"},{"$f":"Import!M15885","v":0},{"$f":"Import!M16035","v":0},{"$f":"Import!M16185","v":0},{"$f":"Import!M16335","v":0},{"$f":"Import!M16485","v":0}]
[135,{"$f":"Import!M15436","v":"Select"},{"$f":"Import!M15586","v":"Select"},{"$f":"Import!M15736","v":"Select"},{"$f":"Import!M15886","v":0},{"$f":"Import!M16036","v":0},{"$f":"Import!M16186","v":0},{"$f":"Import!M16336","v":0},{"$f":"Import!M16486","v":0}]
[136,{"$f":"Import!M15437","v":"Select"},{"$f":"Import!M15587","v":"Select"},{"$f":"Import!M15737","v":"Select"},{"$f":"Import!M15887","v":0},{"$f":"Import!M16037","v":0},{"$f":"Import!M16187","v":0},{"$f":"Import!M16337","v":0},{"$f":"Import!M16487","v":0}]
[137,{"$f":"Import!M15438","v":"Select"},{"$f":"Import!M15588","v":"Select"},{"$f":"Import!M15738","v":"Select"},{"$f":"Import!M15888","v":0},{"$f":"Import!M16038","v":0},{"$f":"Import!M16188","v":0},{"$f":"Import!M16338","v":0},{"$f":"Import!M16488","v":0}]
[138,{"$f":"Import!M15439","v":"Select"},{"$f":"Import!M15589","v":"Select"},{"$f":"Import!M15739","v":"Select"},{"$f":"Import!M15889","v":0},{"$f":"Import!M16039","v":0},{"$f":"Import!M16189","v":0},{"$f":"Import!M16339","v":0},{"$f":"Import!M16489","v":0}]
[139,{"$f":"Import!M15440","v":"Select"},{"$f":"Import!M15590","v":"Select"},{"$f":"Import!M15740","v":"Select"},{"$f":"Import!M15890","v":0},{"$f":"Import!M16040","v":0},{"$f":"Import!M16190","v":0},{"$f":"Import!M16340","v":0},{"$f":"Import!M16490","v":0}]
[140,{"$f":"Import!M15441","v":"Select"},{"$f":"Import!M15591","v":"Select"},{"$f":"Import!M15741","v":"Select"},{"$f":"Import!M15891","v":0},{"$f":"Import!M16041","v":0},{"$f":"Import!M16191","v":0},{"$f":"Import!M16341","v":0},{"$f":"Import!M16491","v":0}]
[141,{"$f":"Import!M15442","v":"Select"},{"$f":"Import!M15592","v":"Select"},{"$f":"Import!M15742","v":"Select"},{"$f":"Import!M15892","v":0},{"$f":"Import!M16042","v":0},{"$f":"Import!M16192","v":0},{"$f":"Import!M16342","v":0},{"$f":"Import!M16492","v":0}]
[142,{"$f":"Import!M15443","v":"Select"},{"$f":"Import!M15593","v":"Select"},{"$f":"Import!M15743","v":"Select"},{"$f":"Import!M15893","v":0},{"$f":"Import!M16043","v":0},{"$f":"Import!M16193","v":0},{"$f":"Import!M16343","v":0},{"$f":"Import!M16493","v":0}]
[143,{"$f":"Import!M15444","v":"Select"},{"$f":"Import!M15594","v":"Select"},{"$f":"Import!M15744","v":"Select"},{"$f":"Import!M15894","v":0},{"$f":"Import!M16044","v":0},{"$f":"Import!M16194","v":0},{"$f":"Import!M16344","v":0},{"$f":"Import!M16494","v":0}]
[144,{"$f":"Import!M15445","v":"Select"},{"$f":"Import!M15595","v":"Select"},{"$f":"Import!M15745","v":"Select"},{"$f":"Import!M15895","v":0},{"$f":"Import!M16045","v":0},{"$f":"Import!M16195","v":0},{"$f":"Import!M16345","v":0},{"$f":"Import!M16495","v":0}]
[145,{"$f":"Import!M15446","v":"Select"},{"$f":"Import!M15596","v":"Select"},{"$f":"Import!M15746","v":"Select"},{"$f":"Import!M15896","v":0},{"$f":"Import!M16046","v":0},{"$f":"Import!M16196","v":0},{"$f":"Import!M16346","v":0},{"$f":"Import!M16496","v":0}]
[146,{"$f":"Import!M15447","v":"Select"},{"$f":"Import!M15597","v":"Select"},{"$f":"Import!M15747","v":"Select"},{"$f":"Import!M15897","v":0},{"$f":"Import!M16047","v":0},{"$f":"Import!M16197","v":0},{"$f":"Import!M16347","v":0},{"$f":"Import!M16497","v":0}]
[147,{"$f":"Import!M15448","v":"Select"},{"$f":"Import!M15598","v":"Select"},{"$f":"Import!M15748","v":"Select"},{"$f":"Import!M15898","v":0},{"$f":"Import!M16048","v":0},{"$f":"Import!M16198","v":0},{"$f":"Import!M16348","v":0},{"$f":"Import!M16498","v":0}]
[148,{"$f":"Import!M15449","v":"Select"},{"$f":"Import!M15599","v":"Select"},{"$f":"Import!M15749","v":"Select"},{"$f":"Import!M15899","v":0},{"$f":"Import!M16049","v":0},{"$f":"Import!M16199","v":0},{"$f":"Import!M16349","v":0},{"$f":"Import!M16499","v":0}]
[149,{"$f":"Import!M15450","v":"Select"},{"$f":"Import!M15600","v":"Select"},{"$f":"Import!M15750","v":"Select"},{"$f":"Import!M15900","v":0},{"$f":"Import!M16050","v":0},{"$f":"Import!M16200","v":0},{"$f":"Import!M16350","v":0},{"$f":"Import!M16500","v":0}]
[150,{"$f":"Import!M15451","v":"Select"},{"$f":"Import!M15601","v":"Select"},{"$f":"Import!M15751","v":"Select"},{"$f":"Import!M15901","v":0},{"$f":"Import!M16051","v":0},{"$f":"Import!M16201","v":0},{"$f":"Import!M16351","v":0},{"$f":"Import!M16501","v":0}]
[]
[null,"Total Asset-Backed and Structured Securities",null,null,{"$f":"SUM(E835:E984)","v":0},{"$f":"SUM(F835:F984)","v":0},{"$f":"IFERROR(SUMPRODUCT(G835:G984,$F835:$F984)/SUM($F835:$F984),0)","v":0},{"$f":"IFERROR(SUMPRODUCT(H835:H984,$F835:$F984)/SUM($F835:$F984),0)","v":0}]
[]
[null,"(D) LOANS"]
[]
[null,null,"Enter # of Asset Types",{"$f":"Import!M16502","v":0}]
[null,null,null,null,null,{"$f":"YEAR($C$3)","v":2023},2023,"Weighted"]
[null,"Asset Type","Currency","Country","BSCR Rating","Nominal Amount","Fair Value","Average YTM","Effective Duration","Comments"]
[1,{"$f":"Import!M16503","v":"Select"},{"$f":"Import!M16603","v":"Select"},{"$f":"Import!M16703","v":"Select"},{"$f":"Import!M16803","v":"Select"},{"$f":"Import!M16903","v":0},{"$f":"Import!M17003","v":0},{"$f":"Import!M17103","v":0},{"$f":"Import!M17203","v":0},{"$f":"Import!M17303","v":0}]
[{"$f":"A993+1","v":2},{"$f":"Import!M16504","v":"Select"},{"$f":"Import!M16604","v":"Select"},{"$f":"Import!M16704","v":"Select"},{"$f":"Import!M16804","v":"Select"},{"$f":"Import!M16904","v":0},{"$f":"Import!M17004","v":0},{"$f":"Import!M17104","v":0},{"$f":"Import!M17204","v":0},{"$f":"Import!M17304","v":0}]
[{"$f":"A994+1","v":3},{"$f":"Import!M16505","v":"Select"},{"$f":"Import!M16605","v":"Select"},{"$f":"Import!M16705","v":"Select"},{"$f":"Import!M16805","v":"Select"},{"$f":"Import!M16905","v":0},{"$f":"Import!M17005","v":0},{"$f":"Import!M17105","v":0},{"$f":"Import!M17205","v":0},{"$f":"Import!M17305","v":0}]
[4,{"$f":"Import!M16506","v":"Select"},{"$f":"Import!M16606","v":"Select"},{"$f":"Import!M16706","v":"Select"},{"$f":"Import!M16806","v":"Select"},{"$f":"Import!M16906","v":0},{"$f":"Import!M17006","v":0},{"$f":"Import!M17106","v":0},{"$f":"Import!M17206","v":0},{"$f":"Import!M17306","v":0}]
[5,{"$f":"Import!M16507","v":"Select"},{"$f":"Import!M16607","v":"Select"},{"$f":"Import!M16707","v":"Select"},{"$f":"Import!M16807","v":"Select"},{"$f":"Import!M16907","v":0},{"$f":"Import!M17007","v":0},{"$f":"Import!M17107","v":0},{"$f":"Import!M17207","v":0},{"$f":"Import!M17307","v":0}]
[6,{"$f":"Import!M16508","v":"Select"},{"$f":"Import!M16608","v":"Select"},{"$f":"Import!M16708","v":"Select"},{"$f":"Import!M16808","v":"Select"},{"$f":"Import!M16908","v":0},{"$f":"Import!M17008","v":0},{"$f":"Import!M17108","v":0},{"$f":"Import!M17208","v":0},{"$f":"Import!M17308","v":0}]
[7,{"$f":"Import!M16509","v":"Select"},{"$f":"Import!M16609","v":"Select"},{"$f":"Import!M16709","v":"Select"},{"$f":"Import!M16809","v":"Select"},{"$f":"Import!M16909","v":0},{"$f":"Import!M17009","v":0},{"$f":"Import!M17109","v":0},{"$f":"Import!M17209","v":0},{"$f":"Import!M17309","v":0}]
[8,{"$f":"Import!M16510","v":"Select"},{"$f":"Import!M16610","v":"Select"},{"$f":"Import!M16710","v":"Select"},{"$f":"Import!M16810","v":"Select"},{"$f":"Import!M16910","v":0},{"$f":"Import!M17010","v":0},{"$f":"Import!M17110","v":0},{"$f":"Import!M17210","v":0},{"$f":"Import!M17310","v":0}]
[9,{"$f":"Import!M16511","v":"Select"},{"$f":"Import!M16611","v":"Select"},{"$f":"Import!M16711","v":"Select"},{"$f":"Import!M16811","v":"Select"},{"$f":"Import!M16911","v":0},{"$f":"Import!M17011","v":0},{"$f":"Import!M17111","v":0},{"$f":"Import!M17211","v":0},{"$f":"Import!M17311","v":0}]
[10,{"$f":"Import!M16512","v":"Select"},{"$f":"Import!M16612","v":"Select"},{"$f":"Import!M16712","v":"Select"},{"$f":"Import!M16812","v":"Select"},{"$f":"Import!M16912","v":0},{"$f":"Import!M17012","v":0},{"$f":"Import!M17112","v":0},{"$f":"Import!M17212","v":0},{"$f":"Import!M17312","v":0}]
[11,{"$f":"Import!M16513","v":"Select"},{"$f":"Import!M16613","v":"Select"},{"$f":"Import!M16713","v":"Select"},{"$f":"Import!M16813","v":"Select"},{"$f":"Import!M16913","v":0},{"$f":"Import!M17013","v":0},{"$f":"Import!M17113","v":0},{"$f":"Import!M17213","v":0},{"$f":"Import!M17313","v":0}]
[12,{"$f":"Import!M16514","v":"Select"},{"$f":"Import!M16614","v":"Select"},{"$f":"Import!M16714","v":"Select"},{"$f":"Import!M16814","v":"Select"},{"$f":"Import!M16914","v":0},{"$f":"Import!M17014","v":0},{"$f":"Import!M17114","v":0},{"$f":"Import!M17214","v":0},{"$f":"Import!M17314","v":0}]
[13,{"$f":"Import!M16515","v":"Select"},{"$f":"Import!M16615","v":"Select"},{"$f":"Import!M16715","v":"Select"},{"$f":"Import!M16815","v":"Select"},{"$f":"Import!M16915","v":0},{"$f":"Import!M17015","v":0},{"$f":"Import!M17115","v":0},{"$f":"Import!M17215","v":0},{"$f":"Import!M17315","v":0}]
[14,{"$f":"Import!M16516","v":"Select"},{"$f":"Import!M16616","v":"Select"},{"$f":"Import!M16716","v":"Select"},{"$f":"Import!M16816","v":"Select"},{"$f":"Import!M16916","v":0},{"$f":"Import!M17016","v":0},{"$f":"Import!M17116","v":0},{"$f":"Import!M17216","v":0},{"$f":"Import!M17316","v":0}]
[15,{"$f":"Import!M16517","v":"Select"},{"$f":"Import!M16617","v":"Select"},{"$f":"Import!M16717","v":"Select"},{"$f":"Import!M16817","v":"Select"},{"$f":"Import!M16917","v":0},{"$f":"Import!M17017","v":0},{"$f":"Import!M17117","v":0},{"$f":"Import!M17217","v":0},{"$f":"Import!M17317","v":0}]
[16,{"$f":"Import!M16518","v":"Select"},{"$f":"Import!M16618","v":"Select"},{"$f":"Import!M16718","v":"Select"},{"$f":"Import!M16818","v":"Select"},{"$f":"Import!M16918","v":0},{"$f":"Import!M17018","v":0},{"$f":"Import!M17118","v":0},{"$f":"Import!M17218","v":0},{"$f":"Import!M17318","v":0}]
[17,{"$f":"Import!M16519","v":"Select"},{"$f":"Import!M16619","v":"Select"},{"$f":"Import!M16719","v":"Select"},{"$f":"Import!M16819","v":"Select"},{"$f":"Import!M16919","v":0},{"$f":"Import!M17019","v":0},{"$f":"Import!M17119","v":0},{"$f":"Import!M17219","v":0},{"$f":"Import!M17319","v":0}]
[18,{"$f":"Import!M16520","v":"Select"},{"$f":"Import!M16620","v":"Select"},{"$f":"Import!M16720","v":"Select"},{"$f":"Import!M16820","v":"Select"},{"$f":"Import!M16920","v":0},{"$f":"Import!M17020","v":0},{"$f":"Import!M17120","v":0},{"$f":"Import!M17220","v":0},{"$f":"Import!M17320","v":0}]
[19,{"$f":"Import!M16521","v":"Select"},{"$f":"Import!M16621","v":"Select"},{"$f":"Import!M16721","v":"Select"},{"$f":"Import!M16821","v":"Select"},{"$f":"Import!M16921","v":0},{"$f":"Import!M17021","v":0},{"$f":"Import!M17121","v":0},{"$f":"Import!M17221","v":0},{"$f":"Import!M17321","v":0}]
[20,{"$f":"Import!M16522","v":"Select"},{"$f":"Import!M16622","v":"Select"},{"$f":"Import!M16722","v":"Select"},{"$f":"Import!M16822","v":"Select"},{"$f":"Import!M16922","v":0},{"$f":"Import!M17022","v":0},{"$f":"Import!M17122","v":0},{"$f":"Import!M17222","v":0},{"$f":"Import!M17322","v":0}]
[21,{"$f":"Import!M16523","v":"Select"},{"$f":"Import!M16623","v":"Select"},{"$f":"Import!M16723","v":"Select"},{"$f":"Import!M16823","v":"Select"},{"$f":"Import!M16923","v":0},{"$f":"Import!M17023","v":0},{"$f":"Import!M17123","v":0},{"$f":"Import!M17223","v":0},{"$f":"Import!M17323","v":0}]
[22,{"$f":"Import!M16524","v":"Select"},{"$f":"Import!M16624","v":"Select"},{"$f":"Import!M16724","v":"Select"},{"$f":"Import!M16824","v":"Select"},{"$f":"Import!M16924","v":0},{"$f":"Import!M17024","v":0},{"$f":"Import!M17124","v":0},{"$f":"Import!M17224","v":0},{"$f":"Import!M17324","v":0}]
[23,{"$f":"Import!M16525","v":"Select"},{"$f":"Import!M16625","v":"Select"},{"$f":"Import!M16725","v":"Select"},{"$f":"Import!M16825","v":"Select"},{"$f":"Import!M16925","v":0},{"$f":"Import!M17025","v":0},{"$f":"Import!M17125","v":0},{"$f":"Import!M17225","v":0},{"$f":"Import!M17325","v":0}]
[24,{"$f":"Import!M16526","v":"Select"},{"$f":"Import!M16626","v":"Select"},{"$f":"Import!M16726","v":"Select"},{"$f":"Import!M16826","v":"Select"},{"$f":"Import!M16926","v":0},{"$f":"Import!M17026","v":0},{"$f":"Import!M17126","v":0},{"$f":"Import!M17226","v":0},{"$f":"Import!M17326","v":0}]
[25,{"$f":"Import!M16527","v":"Select"},{"$f":"Import!M16627","v":"Select"},{"$f":"Import!M16727","v":"Select"},{"$f":"Import!M16827","v":"Select"},{"$f":"Import!M16927","v":0},{"$f":"Import!M17027","v":0},{"$f":"Import!M17127","v":0},{"$f":"Import!M17227","v":0},{"$f":"Import!M17327","v":0}]
[26,{"$f":"Import!M16528","v":"Select"},{"$f":"Import!M16628","v":"Select"},{"$f":"Import!M16728","v":"Select"},{"$f":"Import!M16828","v":"Select"},{"$f":"Import!M16928","v":0},{"$f":"Import!M17028","v":0},{"$f":"Import!M17128","v":0},{"$f":"Import!M17228","v":0},{"$f":"Import!M17328","v":0}]
[27,{"$f":"Import!M16529","v":"Select"},{"$f":"Import!M16629","v":"Select"},{"$f":"Import!M16729","v":"Select"},{"$f":"Import!M16829","v":"Select"},{"$f":"Import!M16929","v":0},{"$f":"Import!M17029","v":0},{"$f":"Import!M17129","v":0},{"$f":"Import!M17229","v":0},{"$f":"Import!M17329","v":0}]
[28,{"$f":"Import!M16530","v":"Select"},{"$f":"Import!M16630","v":"Select"},{"$f":"Import!M16730","v":"Select"},{"$f":"Import!M16830","v":"Select"},{"$f":"Import!M16930","v":0},{"$f":"Import!M17030","v":0},{"$f":"Import!M17130","v":0},{"$f":"Import!M17230","v":0},{"$f":"Import!M17330","v":0}]
[29,{"$f":"Import!M16531","v":"Select"},{"$f":"Import!M16631","v":"Select"},{"$f":"Import!M16731","v":"Select"},{"$f":"Import!M16831","v":"Select"},{"$f":"Import!M16931","v":0},{"$f":"Import!M17031","v":0},{"$f":"Import!M17131","v":0},{"$f":"Import!M17231","v":0},{"$f":"Import!M17331","v":0}]
[30,{"$f":"Import!M16532","v":"Select"},{"$f":"Import!M16632","v":"Select"},{"$f":"Import!M16732","v":"Select"},{"$f":"Import!M16832","v":"Select"},{"$f":"Import!M16932","v":0},{"$f":"Import!M17032","v":0},{"$f":"Import!M17132","v":0},{"$f":"Import!M17232","v":0},{"$f":"Import!M17332","v":0}]
[31,{"$f":"Import!M16533","v":"Select"},{"$f":"Import!M16633","v":"Select"},{"$f":"Import!M16733","v":"Select"},{"$f":"Import!M16833","v":"Select"},{"$f":"Import!M16933","v":0},{"$f":"Import!M17033","v":0},{"$f":"Import!M17133","v":0},{"$f":"Import!M17233","v":0},{"$f":"Import!M17333","v":0}]
[32,{"$f":"Import!M16534","v":"Select"},{"$f":"Import!M16634","v":"Select"},{"$f":"Import!M16734","v":"Select"},{"$f":"Import!M16834","v":"Select"},{"$f":"Import!M16934","v":0},{"$f":"Import!M17034","v":0},{"$f":"Import!M17134","v":0},{"$f":"Import!M17234","v":0},{"$f":"Import!M17334","v":0}]
[33,{"$f":"Import!M16535","v":"Select"},{"$f":"Import!M16635","v":"Select"},{"$f":"Import!M16735","v":"Select"},{"$f":"Import!M16835","v":"Select"},{"$f":"Import!M16935","v":0},{"$f":"Import!M17035","v":0},{"$f":"Import!M17135","v":0},{"$f":"Import!M17235","v":0},{"$f":"Import!M17335","v":0}]
[34,{"$f":"Import!M16536","v":"Select"},{"$f":"Import!M16636","v":"Select"},{"$f":"Import!M16736","v":"Select"},{"$f":"Import!M16836","v":"Select"},{"$f":"Import!M16936","v":0},{"$f":"Import!M17036","v":0},{"$f":"Import!M17136","v":0},{"$f":"Import!M17236","v":0},{"$f":"Import!M17336","v":0}]
[35,{"$f":"Import!M16537","v":"Select"},{"$f":"Import!M16637","v":"Select"},{"$f":"Import!M16737","v":"Select"},{"$f":"Import!M16837","v":"Select"},{"$f":"Import!M16937","v":0},{"$f":"Import!M17037","v":0},{"$f":"Import!M17137","v":0},{"$f":"Import!M17237","v":0},{"$f":"Import!M17337","v":0}]
[36,{"$f":"Import!M16538","v":"Select"},{"$f":"Import!M16638","v":"Select"},{"$f":"Import!M16738","v":"Select"},{"$f":"Import!M16838","v":"Select"},{"$f":"Import!M16938","v":0},{"$f":"Import!M17038","v":0},{"$f":"Import!M17138","v":0},{"$f":"Import!M17238","v":0},{"$f":"Import!M17338","v":0}]
[37,{"$f":"Import!M16539","v":"Select"},{"$f":"Import!M16639","v":"Select"},{"$f":"Import!M16739","v":"Select"},{"$f":"Import!M16839","v":"Select"},{"$f":"Import!M16939","v":0},{"$f":"Import!M17039","v":0},{"$f":"Import!M17139","v":0},{"$f":"Import!M17239","v":0},{"$f":"Import!M17339","v":0}]
[38,{"$f":"Import!M16540","v":"Select"},{"$f":"Import!M16640","v":"Select"},{"$f":"Import!M16740","v":"Select"},{"$f":"Import!M16840","v":"Select"},{"$f":"Import!M16940","v":0},{"$f":"Import!M17040","v":0},{"$f":"Import!M17140","v":0},{"$f":"Import!M17240","v":0},{"$f":"Import!M17340","v":0}]
[39,{"$f":"Import!M16541","v":"Select"},{"$f":"Import!M16641","v":"Select"},{"$f":"Import!M16741","v":"Select"},{"$f":"Import!M16841","v":"Select"},{"$f":"Import!M16941","v":0},{"$f":"Import!M17041","v":0},{"$f":"Import!M17141","v":0},{"$f":"Import!M17241","v":0},{"$f":"Import!M17341","v":0}]
[40,{"$f":"Import!M16542","v":"Select"},{"$f":"Import!M16642","v":"Select"},{"$f":"Import!M16742","v":"Select"},{"$f":"Import!M16842","v":"Select"},{"$f":"Import!M16942","v":0},{"$f":"Import!M17042","v":0},{"$f":"Import!M17142","v":0},{"$f":"Import!M17242","v":0},{"$f":"Import!M17342","v":0}]
[41,{"$f":"Import!M16543","v":"Select"},{"$f":"Import!M16643","v":"Select"},{"$f":"Import!M16743","v":"Select"},{"$f":"Import!M16843","v":"Select"},{"$f":"Import!M16943","v":0},{"$f":"Import!M17043","v":0},{"$f":"Import!M17143","v":0},{"$f":"Import!M17243","v":0},{"$f":"Import!M17343","v":0}]
[42,{"$f":"Import!M16544","v":"Select"},{"$f":"Import!M16644","v":"Select"},{"$f":"Import!M16744","v":"Select"},{"$f":"Import!M16844","v":"Select"},{"$f":"Import!M16944","v":0},{"$f":"Import!M17044","v":0},{"$f":"Import!M17144","v":0},{"$f":"Import!M17244","v":0},{"$f":"Import!M17344","v":0}]
[43,{"$f":"Import!M16545","v":"Select"},{"$f":"Import!M16645","v":"Select"},{"$f":"Import!M16745","v":"Select"},{"$f":"Import!M16845","v":"Select"},{"$f":"Import!M16945","v":0},{"$f":"Import!M17045","v":0},{"$f":"Import!M17145","v":0},{"$f":"Import!M17245","v":0},{"$f":"Import!M17345","v":0}]
[44,{"$f":"Import!M16546","v":"Select"},{"$f":"Import!M16646","v":"Select"},{"$f":"Import!M16746","v":"Select"},{"$f":"Import!M16846","v":"Select"},{"$f":"Import!M16946","v":0},{"$f":"Import!M17046","v":0},{"$f":"Import!M17146","v":0},{"$f":"Import!M17246","v":0},{"$f":"Import!M17346","v":0}]
[45,{"$f":"Import!M16547","v":"Select"},{"$f":"Import!M16647","v":"Select"},{"$f":"Import!M16747","v":"Select"},{"$f":"Import!M16847","v":"Select"},{"$f":"Import!M16947","v":0},{"$f":"Import!M17047","v":0},{"$f":"Import!M17147","v":0},{"$f":"Import!M17247","v":0},{"$f":"Import!M17347","v":0}]
[46,{"$f":"Import!M16548","v":"Select"},{"$f":"Import!M16648","v":"Select"},{"$f":"Import!M16748","v":"Select"},{"$f":"Import!M16848","v":"Select"},{"$f":"Import!M16948","v":0},{"$f":"Import!M17048","v":0},{"$f":"Import!M17148","v":0},{"$f":"Import!M17248","v":0},{"$f":"Import!M17348","v":0}]
[47,{"$f":"Import!M16549","v":"Select"},{"$f":"Import!M16649","v":"Select"},{"$f":"Import!M16749","v":"Select"},{"$f":"Import!M16849","v":"Select"},{"$f":"Import!M16949","v":0},{"$f":"Import!M17049","v":0},{"$f":"Import!M17149","v":0},{"$f":"Import!M17249","v":0},{"$f":"Import!M17349","v":0}]
[48,{"$f":"Import!M16550","v":"Select"},{"$f":"Import!M16650","v":"Select"},{"$f":"Import!M16750","v":"Select"},{"$f":"Import!M16850","v":"Select"},{"$f":"Import!M16950","v":0},{"$f":"Import!M17050","v":0},{"$f":"Import!M17150","v":0},{"$f":"Import!M17250","v":0},{"$f":"Import!M17350","v":0}]
[49,{"$f":"Import!M16551","v":"Select"},{"$f":"Import!M16651","v":"Select"},{"$f":"Import!M16751","v":"Select"},{"$f":"Import!M16851","v":"Select"},{"$f":"Import!M16951","v":0},{"$f":"Import!M17051","v":0},{"$f":"Import!M17151","v":0},{"$f":"Import!M17251","v":0},{"$f":"Import!M17351","v":0}]
[50,{"$f":"Import!M16552","v":"Select"},{"$f":"Import!M16652","v":"Select"},{"$f":"Import!M16752","v":"Select"},{"$f":"Import!M16852","v":"Select"},{"$f":"Import!M16952","v":0},{"$f":"Import!M17052","v":0},{"$f":"Import!M17152","v":0},{"$f":"Import!M17252","v":0},{"$f":"Import!M17352","v":0}]
[51,{"$f":"Import!M16553","v":"Select"},{"$f":"Import!M16653","v":"Select"},{"$f":"Import!M16753","v":"Select"},{"$f":"Import!M16853","v":"Select"},{"$f":"Import!M16953","v":0},{"$f":"Import!M17053","v":0},{"$f":"Import!M17153","v":0},{"$f":"Import!M17253","v":0},{"$f":"Import!M17353","v":0}]
[52,{"$f":"Import!M16554","v":"Select"},{"$f":"Import!M16654","v":"Select"},{"$f":"Import!M16754","v":"Select"},{"$f":"Import!M16854","v":"Select"},{"$f":"Import!M16954","v":0},{"$f":"Import!M17054","v":0},{"$f":"Import!M17154","v":0},{"$f":"Import!M17254","v":0},{"$f":"Import!M17354","v":0}]
[53,{"$f":"Import!M16555","v":"Select"},{"$f":"Import!M16655","v":"Select"},{"$f":"Import!M16755","v":"Select"},{"$f":"Import!M16855","v":"Select"},{"$f":"Import!M16955","v":0},{"$f":"Import!M17055","v":0},{"$f":"Import!M17155","v":0},{"$f":"Import!M17255","v":0},{"$f":"Import!M17355","v":0}]
[54,{"$f":"Import!M16556","v":"Select"},{"$f":"Import!M16656","v":"Select"},{"$f":"Import!M16756","v":"Select"},{"$f":"Import!M16856","v":"Select"},{"$f":"Import!M16956","v":0},{"$f":"Import!M17056","v":0},{"$f":"Import!M17156","v":0},{"$f":"Import!M17256","v":0},{"$f":"Import!M17356","v":0}]
[55,{"$f":"Import!M16557","v":"Select"},{"$f":"Import!M16657","v":"Select"},{"$f":"Import!M16757","v":"Select"},{"$f":"Import!M16857","v":"Select"},{"$f":"Import!M16957","v":0},{"$f":"Import!M17057","v":0},{"$f":"Import!M17157","v":0},{"$f":"Import!M17257","v":0},{"$f":"Import!M17357","v":0}]
[56,{"$f":"Import!M16558","v":"Select"},{"$f":"Import!M16658","v":"Select"},{"$f":"Import!M16758","v":"Select"},{"$f":"Import!M16858","v":"Select"},{"$f":"Import!M16958","v":0},{"$f":"Import!M17058","v":0},{"$f":"Import!M17158","v":0},{"$f":"Import!M17258","v":0},{"$f":"Import!M17358","v":0}]
[57,{"$f":"Import!M16559","v":"Select"},{"$f":"Import!M16659","v":"Select"},{"$f":"Import!M16759","v":"Select"},{"$f":"Import!M16859","v":"Select"},{"$f":"Import!M16959","v":0},{"$f":"Import!M17059","v":0},{"$f":"Import!M17159","v":0},{"$f":"Import!M17259","v":0},{"$f":"Import!M17359","v":0}]
[58,{"$f":"Import!M16560","v":"Select"},{"$f":"Import!M16660","v":"Select"},{"$f":"Import!M16760","v":"Select"},{"$f":"Import!M16860","v":"Select"},{"$f":"Import!M16960","v":0},{"$f":"Import!M17060","v":0},{"$f":"Import!M17160","v":0},{"$f":"Import!M17260","v":0},{"$f":"Import!M17360","v":0}]
[59,{"$f":"Import!M16561","v":"Select"},{"$f":"Import!M16661","v":"Select"},{"$f":"Import!M16761","v":"Select"},{"$f":"Import!M16861","v":"Select"},{"$f":"Import!M16961","v":0},{"$f":"Import!M17061","v":0},{"$f":"Import!M17161","v":0},{"$f":"Import!M17261","v":0},{"$f":"Import!M17361","v":0}]
[60,{"$f":"Import!M16562","v":"Select"},{"$f":"Import!M16662","v":"Select"},{"$f":"Import!M16762","v":"Select"},{"$f":"Import!M16862","v":"Select"},{"$f":"Import!M16962","v":0},{"$f":"Import!M17062","v":0},{"$f":"Import!M17162","v":0},{"$f":"Import!M17262","v":0},{"$f":"Import!M17362","v":0}]
[61,{"$f":"Import!M16563","v":"Select"},{"$f":"Import!M16663","v":"Select"},{"$f":"Import!M16763","v":"Select"},{"$f":"Import!M16863","v":"Select"},{"$f":"Import!M16963","v":0},{"$f":"Import!M17063","v":0},{"$f":"Import!M17163","v":0},{"$f":"Import!M17263","v":0},{"$f":"Import!M17363","v":0}]
[62,{"$f":"Import!M16564","v":"Select"},{"$f":"Import!M16664","v":"Select"},{"$f":"Import!M16764","v":"Select"},{"$f":"Import!M16864","v":"Select"},{"$f":"Import!M16964","v":0},{"$f":"Import!M17064","v":0},{"$f":"Import!M17164","v":0},{"$f":"Import!M17264","v":0},{"$f":"Import!M17364","v":0}]
[63,{"$f":"Import!M16565","v":"Select"},{"$f":"Import!M16665","v":"Select"},{"$f":"Import!M16765","v":"Select"},{"$f":"Import!M16865","v":"Select"},{"$f":"Import!M16965","v":0},{"$f":"Import!M17065","v":0},{"$f":"Import!M17165","v":0},{"$f":"Import!M17265","v":0},{"$f":"Import!M17365","v":0}]
[64,{"$f":"Import!M16566","v":"Select"},{"$f":"Import!M16666","v":"Select"},{"$f":"Import!M16766","v":"Select"},{"$f":"Import!M16866","v":"Select"},{"$f":"Import!M16966","v":0},{"$f":"Import!M17066","v":0},{"$f":"Import!M17166","v":0},{"$f":"Import!M17266","v":0},{"$f":"Import!M17366","v":0}]
[65,{"$f":"Import!M16567","v":"Select"},{"$f":"Import!M16667","v":"Select"},{"$f":"Import!M16767","v":"Select"},{"$f":"Import!M16867","v":"Select"},{"$f":"Import!M16967","v":0},{"$f":"Import!M17067","v":0},{"$f":"Import!M17167","v":0},{"$f":"Import!M17267","v":0},{"$f":"Import!M17367","v":0}]
[66,{"$f":"Import!M16568","v":"Select"},{"$f":"Import!M16668","v":"Select"},{"$f":"Import!M16768","v":"Select"},{"$f":"Import!M16868","v":"Select"},{"$f":"Import!M16968","v":0},{"$f":"Import!M17068","v":0},{"$f":"Import!M17168","v":0},{"$f":"Import!M17268","v":0},{"$f":"Import!M17368","v":0}]
[{"$f":"A1058+1","v":67},{"$f":"Import!M16569","v":"Select"},{"$f":"Import!M16669","v":"Select"},{"$f":"Import!M16769","v":"Select"},{"$f":"Import!M16869","v":"Select"},{"$f":"Import!M16969","v":0},{"$f":"Import!M17069","v":0},{"$f":"Import!M17169","v":0},{"$f":"Import!M17269","v":0},{"$f":"Import!M17369","v":0}]
[68,{"$f":"Import!M16570","v":"Select"},{"$f":"Import!M16670","v":"Select"},{"$f":"Import!M16770","v":"Select"},{"$f":"Import!M16870","v":"Select"},{"$f":"Import!M16970","v":0},{"$f":"Import!M17070","v":0},{"$f":"Import!M17170","v":0},{"$f":"Import!M17270","v":0},{"$f":"Import!M17370","v":0}]
[69,{"$f":"Import!M16571","v":"Select"},{"$f":"Import!M16671","v":"Select"},{"$f":"Import!M16771","v":"Select"},{"$f":"Import!M16871","v":"Select"},{"$f":"Import!M16971","v":0},{"$f":"Import!M17071","v":0},{"$f":"Import!M17171","v":0},{"$f":"Import!M17271","v":0},{"$f":"Import!M17371","v":0}]
[70,{"$f":"Import!M16572","v":"Select"},{"$f":"Import!M16672","v":"Select"},{"$f":"Import!M16772","v":"Select"},{"$f":"Import!M16872","v":"Select"},{"$f":"Import!M16972","v":0},{"$f":"Import!M17072","v":0},{"$f":"Import!M17172","v":0},{"$f":"Import!M17272","v":0},{"$f":"Import!M17372","v":0}]
[71,{"$f":"Import!M16573","v":"Select"},{"$f":"Import!M16673","v":"Select"},{"$f":"Import!M16773","v":"Select"},{"$f":"Import!M16873","v":"Select"},{"$f":"Import!M16973","v":0},{"$f":"Import!M17073","v":0},{"$f":"Import!M17173","v":0},{"$f":"Import!M17273","v":0},{"$f":"Import!M17373","v":0}]
[72,{"$f":"Import!M16574","v":"Select"},{"$f":"Import!M16674","v":"Select"},{"$f":"Import!M16774","v":"Select"},{"$f":"Import!M16874","v":"Select"},{"$f":"Import!M16974","v":0},{"$f":"Import!M17074","v":0},{"$f":"Import!M17174","v":0},{"$f":"Import!M17274","v":0},{"$f":"Import!M17374","v":0}]
[73,{"$f":"Import!M16575","v":"Select"},{"$f":"Import!M16675","v":"Select"},{"$f":"Import!M16775","v":"Select"},{"$f":"Import!M16875","v":"Select"},{"$f":"Import!M16975","v":0},{"$f":"Import!M17075","v":0},{"$f":"Import!M17175","v":0},{"$f":"Import!M17275","v":0},{"$f":"Import!M17375","v":0}]
[74,{"$f":"Import!M16576","v":"Select"},{"$f":"Import!M16676","v":"Select"},{"$f":"Import!M16776","v":"Select"},{"$f":"Import!M16876","v":"Select"},{"$f":"Import!M16976","v":0},{"$f":"Import!M17076","v":0},{"$f":"Import!M17176","v":0},{"$f":"Import!M17276","v":0},{"$f":"Import!M17376","v":0}]
[75,{"$f":"Import!M16577","v":"Select"},{"$f":"Import!M16677","v":"Select"},{"$f":"Import!M16777","v":"Select"},{"$f":"Import!M16877","v":"Select"},{"$f":"Import!M16977","v":0},{"$f":"Import!M17077","v":0},{"$f":"Import!M17177","v":0},{"$f":"Import!M17277","v":0},{"$f":"Import!M17377","v":0}]
[76,{"$f":"Import!M16578","v":"Select"},{"$f":"Import!M16678","v":"Select"},{"$f":"Import!M16778","v":"Select"},{"$f":"Import!M16878","v":"Select"},{"$f":"Import!M16978","v":0},{"$f":"Import!M17078","v":0},{"$f":"Import!M17178","v":0},{"$f":"Import!M17278","v":0},{"$f":"Import!M17378","v":0}]
[77,{"$f":"Import!M16579","v":"Select"},{"$f":"Import!M16679","v":"Select"},{"$f":"Import!M16779","v":"Select"},{"$f":"Import!M16879","v":"Select"},{"$f":"Import!M16979","v":0},{"$f":"Import!M17079","v":0},{"$f":"Import!M17179","v":0},{"$f":"Import!M17279","v":0},{"$f":"Import!M17379","v":0}]
[78,{"$f":"Import!M16580","v":"Select"},{"$f":"Import!M16680","v":"Select"},{"$f":"Import!M16780","v":"Select"},{"$f":"Import!M16880","v":"Select"},{"$f":"Import!M16980","v":0},{"$f":"Import!M17080","v":0},{"$f":"Import!M17180","v":0},{"$f":"Import!M17280","v":0},{"$f":"Import!M17380","v":0}]
[79,{"$f":"Import!M16581","v":"Select"},{"$f":"Import!M16681","v":"Select"},{"$f":"Import!M16781","v":"Select"},{"$f":"Import!M16881","v":"Select"},{"$f":"Import!M16981","v":0},{"$f":"Import!M17081","v":0},{"$f":"Import!M17181","v":0},{"$f":"Import!M17281","v":0},{"$f":"Import!M17381","v":0}]
[80,{"$f":"Import!M16582","v":"Select"},{"$f":"Import!M16682","v":"Select"},{"$f":"Import!M16782","v":"Select"},{"$f":"Import!M16882","v":"Select"},{"$f":"Import!M16982","v":0},{"$f":"Import!M17082","v":0},{"$f":"Import!M17182","v":0},{"$f":"Import!M17282","v":0},{"$f":"Import!M17382","v":0}]
[81,{"$f":"Import!M16583","v":"Select"},{"$f":"Import!M16683","v":"Select"},{"$f":"Import!M16783","v":"Select"},{"$f":"Import!M16883","v":"Select"},{"$f":"Import!M16983","v":0},{"$f":"Import!M17083","v":0},{"$f":"Import!M17183","v":0},{"$f":"Import!M17283","v":0},{"$f":"Import!M17383","v":0}]
[82,{"$f":"Import!M16584","v":"Select"},{"$f":"Import!M16684","v":"Select"},{"$f":"Import!M16784","v":"Select"},{"$f":"Import!M16884","v":"Select"},{"$f":"Import!M16984","v":0},{"$f":"Import!M17084","v":0},{"$f":"Import!M17184","v":0},{"$f":"Import!M17284","v":0},{"$f":"Import!M17384","v":0}]
[83,{"$f":"Import!M16585","v":"Select"},{"$f":"Import!M16685","v":"Select"},{"$f":"Import!M16785","v":"Select"},{"$f":"Import!M16885","v":"Select"},{"$f":"Import!M16985","v":0},{"$f":"Import!M17085","v":0},{"$f":"Import!M17185","v":0},{"$f":"Import!M17285","v":0},{"$f":"Import!M17385","v":0}]
[84,{"$f":"Import!M16586","v":"Select"},{"$f":"Import!M16686","v":"Select"},{"$f":"Import!M16786","v":"Select"},{"$f":"Import!M16886","v":"Select"},{"$f":"Import!M16986","v":0},{"$f":"Import!M17086","v":0},{"$f":"Import!M17186","v":0},{"$f":"Import!M17286","v":0},{"$f":"Import!M17386","v":0}]
[85,{"$f":"Import!M16587","v":"Select"},{"$f":"Import!M16687","v":"Select"},{"$f":"Import!M16787","v":"Select"},{"$f":"Import!M16887","v":"Select"},{"$f":"Import!M16987","v":0},{"$f":"Import!M17087","v":0},{"$f":"Import!M17187","v":0},{"$f":"Import!M17287","v":0},{"$f":"Import!M17387","v":0}]
[86,{"$f":"Import!M16588","v":"Select"},{"$f":"Import!M16688","v":"Select"},{"$f":"Import!M16788","v":"Select"},{"$f":"Import!M16888","v":"Select"},{"$f":"Import!M16988","v":0},{"$f":"Import!M17088","v":0},{"$f":"Import!M17188","v":0},{"$f":"Import!M17288","v":0},{"$f":"Import!M17388","v":0}]
[87,{"$f":"Import!M16589","v":"Select"},{"$f":"Import!M16689","v":"Select"},{"$f":"Import!M16789","v":"Select"},{"$f":"Import!M16889","v":"Select"},{"$f":"Import!M16989","v":0},{"$f":"Import!M17089","v":0},{"$f":"Import!M17189","v":0},{"$f":"Import!M17289","v":0},{"$f":"Import!M17389","v":0}]
[88,{"$f":"Import!M16590","v":"Select"},{"$f":"Import!M16690","v":"Select"},{"$f":"Import!M16790","v":"Select"},{"$f":"Import!M16890","v":"Select"},{"$f":"Import!M16990","v":0},{"$f":"Import!M17090","v":0},{"$f":"Import!M17190","v":0},{"$f":"Import!M17290","v":0},{"$f":"Import!M17390","v":0}]
[89,{"$f":"Import!M16591","v":"Select"},{"$f":"Import!M16691","v":"Select"},{"$f":"Import!M16791","v":"Select"},{"$f":"Import!M16891","v":"Select"},{"$f":"Import!M16991","v":0},{"$f":"Import!M17091","v":0},{"$f":"Import!M17191","v":0},{"$f":"Import!M17291","v":0},{"$f":"Import!M17391","v":0}]
[90,{"$f":"Import!M16592","v":"Select"},{"$f":"Import!M16692","v":"Select"},{"$f":"Import!M16792","v":"Select"},{"$f":"Import!M16892","v":"Select"},{"$f":"Import!M16992","v":0},{"$f":"Import!M17092","v":0},{"$f":"Import!M17192","v":0},{"$f":"Import!M17292","v":0},{"$f":"Import!M17392","v":0}]
[91,{"$f":"Import!M16593","v":"Select"},{"$f":"Import!M16693","v":"Select"},{"$f":"Import!M16793","v":"Select"},{"$f":"Import!M16893","v":"Select"},{"$f":"Import!M16993","v":0},{"$f":"Import!M17093","v":0},{"$f":"Import!M17193","v":0},{"$f":"Import!M17293","v":0},{"$f":"Import!M17393","v":0}]
[92,{"$f":"Import!M16594","v":"Select"},{"$f":"Import!M16694","v":"Select"},{"$f":"Import!M16794","v":"Select"},{"$f":"Import!M16894","v":"Select"},{"$f":"Import!M16994","v":0},{"$f":"Import!M17094","v":0},{"$f":"Import!M17194","v":0},{"$f":"Import!M17294","v":0},{"$f":"Import!M17394","v":0}]
[93,{"$f":"Import!M16595","v":"Select"},{"$f":"Import!M16695","v":"Select"},{"$f":"Import!M16795","v":"Select"},{"$f":"Import!M16895","v":"Select"},{"$f":"Import!M16995","v":0},{"$f":"Import!M17095","v":0},{"$f":"Import!M17195","v":0},{"$f":"Import!M17295","v":0},{"$f":"Import!M17395","v":0}]
[94,{"$f":"Import!M16596","v":"Select"},{"$f":"Import!M16696","v":"Select"},{"$f":"Import!M16796","v":"Select"},{"$f":"Import!M16896","v":"Select"},{"$f":"Import!M16996","v":0},{"$f":"Import!M17096","v":0},{"$f":"Import!M17196","v":0},{"$f":"Import!M17296","v":0},{"$f":"Import!M17396","v":0}]
[95,{"$f":"Import!M16597","v":"Select"},{"$f":"Import!M16697","v":"Select"},{"$f":"Import!M16797","v":"Select"},{"$f":"Import!M16897","v":"Select"},{"$f":"Import!M16997","v":0},{"$f":"Import!M17097","v":0},{"$f":"Import!M17197","v":0},{"$f":"Import!M17297","v":0},{"$f":"Import!M17397","v":0}]
[96,{"$f":"Import!M16598","v":"Select"},{"$f":"Import!M16698","v":"Select"},{"$f":"Import!M16798","v":"Select"},{"$f":"Import!M16898","v":"Select"},{"$f":"Import!M16998","v":0},{"$f":"Import!M17098","v":0},{"$f":"Import!M17198","v":0},{"$f":"Import!M17298","v":0},{"$f":"Import!M17398","v":0}]
[97,{"$f":"Import!M16599","v":"Select"},{"$f":"Import!M16699","v":"Select"},{"$f":"Import!M16799","v":"Select"},{"$f":"Import!M16899","v":"Select"},{"$f":"Import!M16999","v":0},{"$f":"Import!M17099","v":0},{"$f":"Import!M17199","v":0},{"$f":"Import!M17299","v":0},{"$f":"Import!M17399","v":0}]
[98,{"$f":"Import!M16600","v":"Select"},{"$f":"Import!M16700","v":"Select"},{"$f":"Import!M16800","v":"Select"},{"$f":"Import!M16900","v":"Select"},{"$f":"Import!M17000","v":0},{"$f":"Import!M17100","v":0},{"$f":"Import!M17200","v":0},{"$f":"Import!M17300","v":0},{"$f":"Import!M17400","v":0}]
[99,{"$f":"Import!M16601","v":"Select"},{"$f":"Import!M16701","v":"Select"},{"$f":"Import!M16801","v":"Select"},{"$f":"Import!M16901","v":"Select"},{"$f":"Import!M17001","v":0},{"$f":"Import!M17101","v":0},{"$f":"Import!M17201","v":0},{"$f":"Import!M17301","v":0},{"$f":"Import!M17401","v":0}]
[100,{"$f":"Import!M16602","v":"Select"},{"$f":"Import!M16702","v":"Select"},{"$f":"Import!M16802","v":"Select"},{"$f":"Import!M16902","v":"Select"},{"$f":"Import!M17002","v":0},{"$f":"Import!M17102","v":0},{"$f":"Import!M17202","v":0},{"$f":"Import!M17302","v":0},{"$f":"Import!M17402","v":0}]
[]
[null,"Total Loans",null,null,null,{"$f":"SUM(F993:F1092)","v":0},{"$f":"SUM(G993:G1092)","v":0},{"$f":"IFERROR(SUMPRODUCT(H993:H1092,$G993:$G1092)/SUM($G993:$G1092),0)","v":0},{"$f":"IFERROR(SUMPRODUCT(I993:I1092,$G993:$G1092)/SUM($G993:$G1092),0)","v":0}]
[]
[null,"- OF WHICH NON-PERFORMING LOANS"]
[]
[null,null,"Enter # of Asset Types",{"$f":"Import!M17403","v":0}]
[null,null,null,null,null,{"$f":"YEAR($C$3)","v":2023},2023]
[null,"Asset Type","Currency","Country","BSCR Rating","Nominal Amount","Fair Value","Comments"]
[1,{"$f":"Import!M17404","v":"Select"},{"$f":"Import!M17424","v":"Select"},{"$f":"Import!M17444","v":"Select"},{"$f":"Import!M17464","v":"Select"},{"$f":"Import!M17484","v":0},{"$f":"Import!M17504","v":0},{"$f":"Import!M17524","v":0}]
[{"$f":"A1101+1","v":2},{"$f":"Import!M17405","v":"Select"},{"$f":"Import!M17425","v":"Select"},{"$f":"Import!M17445","v":"Select"},{"$f":"Import!M17465","v":"Select"},{"$f":"Import!M17485","v":0},{"$f":"Import!M17505","v":0},{"$f":"Import!M17525","v":0}]
[{"$f":"A1102+1","v":3},{"$f":"Import!M17406","v":"Select"},{"$f":"Import!M17426","v":"Select"},{"$f":"Import!M17446","v":"Select"},{"$f":"Import!M17466","v":"Select"},{"$f":"Import!M17486","v":0},{"$f":"Import!M17506","v":0},{"$f":"Import!M17526","v":0}]
[4,{"$f":"Import!M17407","v":"Select"},{"$f":"Import!M17427","v":"Select"},{"$f":"Import!M17447","v":"Select"},{"$f":"Import!M17467","v":"Select"},{"$f":"Import!M17487","v":0},{"$f":"Import!M17507","v":0},{"$f":"Import!M17527","v":0}]
[5,{"$f":"Import!M17408","v":"Select"},{"$f":"Import!M17428","v":"Select"},{"$f":"Import!M17448","v":"Select"},{"$f":"Import!M17468","v":"Select"},{"$f":"Import!M17488","v":0},{"$f":"Import!M17508","v":0},{"$f":"Import!M17528","v":0}]
[6,{"$f":"Import!M17409","v":"Select"},{"$f":"Import!M17429","v":"Select"},{"$f":"Import!M17449","v":"Select"},{"$f":"Import!M17469","v":"Select"},{"$f":"Import!M17489","v":0},{"$f":"Import!M17509","v":0},{"$f":"Import!M17529","v":0}]
[7,{"$f":"Import!M17410","v":"Select"},{"$f":"Import!M17430","v":"Select"},{"$f":"Import!M17450","v":"Select"},{"$f":"Import!M17470","v":"Select"},{"$f":"Import!M17490","v":0},{"$f":"Import!M17510","v":0},{"$f":"Import!M17530","v":0}]
[8,{"$f":"Import!M17411","v":"Select"},{"$f":"Import!M17431","v":"Select"},{"$f":"Import!M17451","v":"Select"},{"$f":"Import!M17471","v":"Select"},{"$f":"Import!M17491","v":0},{"$f":"Import!M17511","v":0},{"$f":"Import!M17531","v":0}]
[9,{"$f":"Import!M17412","v":"Select"},{"$f":"Import!M17432","v":"Select"},{"$f":"Import!M17452","v":"Select"},{"$f":"Import!M17472","v":"Select"},{"$f":"Import!M17492","v":0},{"$f":"Import!M17512","v":0},{"$f":"Import!M17532","v":0}]
[10,{"$f":"Import!M17413","v":"Select"},{"$f":"Import!M17433","v":"Select"},{"$f":"Import!M17453","v":"Select"},{"$f":"Import!M17473","v":"Select"},{"$f":"Import!M17493","v":0},{"$f":"Import!M17513","v":0},{"$f":"Import!M17533","v":0}]
[11,{"$f":"Import!M17414","v":"Select"},{"$f":"Import!M17434","v":"Select"},{"$f":"Import!M17454","v":"Select"},{"$f":"Import!M17474","v":"Select"},{"$f":"Import!M17494","v":0},{"$f":"Import!M17514","v":0},{"$f":"Import!M17534","v":0}]
[12,{"$f":"Import!M17415","v":"Select"},{"$f":"Import!M17435","v":"Select"},{"$f":"Import!M17455","v":"Select"},{"$f":"Import!M17475","v":"Select"},{"$f":"Import!M17495","v":0},{"$f":"Import!M17515","v":0},{"$f":"Import!M17535","v":0}]
[13,{"$f":"Import!M17416","v":"Select"},{"$f":"Import!M17436","v":"Select"},{"$f":"Import!M17456","v":"Select"},{"$f":"Import!M17476","v":"Select"},{"$f":"Import!M17496","v":0},{"$f":"Import!M17516","v":0},{"$f":"Import!M17536","v":0}]
[14,{"$f":"Import!M17417","v":"Select"},{"$f":"Import!M17437","v":"Select"},{"$f":"Import!M17457","v":"Select"},{"$f":"Import!M17477","v":"Select"},{"$f":"Import!M17497","v":0},{"$f":"Import!M17517","v":0},{"$f":"Import!M17537","v":0}]
[15,{"$f":"Import!M17418","v":"Select"},{"$f":"Import!M17438","v":"Select"},{"$f":"Import!M17458","v":"Select"},{"$f":"Import!M17478","v":"Select"},{"$f":"Import!M17498","v":0},{"$f":"Import!M17518","v":0},{"$f":"Import!M17538","v":0}]
[16,{"$f":"Import!M17419","v":"Select"},{"$f":"Import!M17439","v":"Select"},{"$f":"Import!M17459","v":"Select"},{"$f":"Import!M17479","v":"Select"},{"$f":"Import!M17499","v":0},{"$f":"Import!M17519","v":0},{"$f":"Import!M17539","v":0}]
[17,{"$f":"Import!M17420","v":"Select"},{"$f":"Import!M17440","v":"Select"},{"$f":"Import!M17460","v":"Select"},{"$f":"Import!M17480","v":"Select"},{"$f":"Import!M17500","v":0},{"$f":"Import!M17520","v":0},{"$f":"Import!M17540","v":0}]
[18,{"$f":"Import!M17421","v":"Select"},{"$f":"Import!M17441","v":"Select"},{"$f":"Import!M17461","v":"Select"},{"$f":"Import!M17481","v":"Select"},{"$f":"Import!M17501","v":0},{"$f":"Import!M17521","v":0},{"$f":"Import!M17541","v":0}]
[19,{"$f":"Import!M17422","v":"Select"},{"$f":"Import!M17442","v":"Select"},{"$f":"Import!M17462","v":"Select"},{"$f":"Import!M17482","v":"Select"},{"$f":"Import!M17502","v":0},{"$f":"Import!M17522","v":0},{"$f":"Import!M17542","v":0}]
[20,{"$f":"Import!M17423","v":"Select"},{"$f":"Import!M17443","v":"Select"},{"$f":"Import!M17463","v":"Select"},{"$f":"Import!M17483","v":"Select"},{"$f":"Import!M17503","v":0},{"$f":"Import!M17523","v":0},{"$f":"Import!M17543","v":0}]
[]
[null,"Total Non-Performing Loans",null,null,null,{"$f":"SUM(F1101:F1120)","v":0},{"$f":"SUM(G1101:G1120)","v":0}]
[]
[null,"(E) PREFERRED EQUITIES"]
[]
[null,null,"Enter # of Asset Types",{"$f":"Import!M17544","v":0}]
[null,null,null,null,{"$f":"YEAR($C$3)","v":2023},2023,"Weighted"]
[null,"Asset Type","Currency","BSCR Rating","Nominal Amount","Fair Value","Average YTM","Effective Duration","Comments"]
[1,{"$f":"Import!M17545","v":"Select"},{"$f":"Import!M17645","v":"Select"},{"$f":"Import!M17745","v":"Select"},{"$f":"Import!M17845","v":0},{"$f":"Import!M17945","v":0},{"$f":"Import!M18045","v":0},{"$f":"Import!M18145","v":0},{"$f":"Import!M18245","v":0}]
[{"$f":"A1129+1","v":2},{"$f":"Import!M17546","v":"Select"},{"$f":"Import!M17646","v":"Select"},{"$f":"Import!M17746","v":"Select"},{"$f":"Import!M17846","v":0},{"$f":"Import!M17946","v":0},{"$f":"Import!M18046","v":0},{"$f":"Import!M18146","v":0},{"$f":"Import!M18246","v":0}]
[{"$f":"A1130+1","v":3},{"$f":"Import!M17547","v":"Select"},{"$f":"Import!M17647","v":"Select"},{"$f":"Import!M17747","v":"Select"},{"$f":"Import!M17847","v":0},{"$f":"Import!M17947","v":0},{"$f":"Import!M18047","v":0},{"$f":"Import!M18147","v":0},{"$f":"Import!M18247","v":0}]
[4,{"$f":"Import!M17548","v":"Select"},{"$f":"Import!M17648","v":"Select"},{"$f":"Import!M17748","v":"Select"},{"$f":"Import!M17848","v":0},{"$f":"Import!M17948","v":0},{"$f":"Import!M18048","v":0},{"$f":"Import!M18148","v":0},{"$f":"Import!M18248","v":0}]
[5,{"$f":"Import!M17549","v":"Select"},{"$f":"Import!M17649","v":"Select"},{"$f":"Import!M17749","v":"Select"},{"$f":"Import!M17849","v":0},{"$f":"Import!M17949","v":0},{"$f":"Import!M18049","v":0},{"$f":"Import!M18149","v":0},{"$f":"Import!M18249","v":0}]
[6,{"$f":"Import!M17550","v":"Select"},{"$f":"Import!M17650","v":"Select"},{"$f":"Import!M17750","v":"Select"},{"$f":"Import!M17850","v":0},{"$f":"Import!M17950","v":0},{"$f":"Import!M18050","v":0},{"$f":"Import!M18150","v":0},{"$f":"Import!M18250","v":0}]
[7,{"$f":"Import!M17551","v":"Select"},{"$f":"Import!M17651","v":"Select"},{"$f":"Import!M17751","v":"Select"},{"$f":"Import!M17851","v":0},{"$f":"Import!M17951","v":0},{"$f":"Import!M18051","v":0},{"$f":"Import!M18151","v":0},{"$f":"Import!M18251","v":0}]
[8,{"$f":"Import!M17552","v":"Select"},{"$f":"Import!M17652","v":"Select"},{"$f":"Import!M17752","v":"Select"},{"$f":"Import!M17852","v":0},{"$f":"Import!M17952","v":0},{"$f":"Import!M18052","v":0},{"$f":"Import!M18152","v":0},{"$f":"Import!M18252","v":0}]
[9,{"$f":"Import!M17553","v":"Select"},{"$f":"Import!M17653","v":"Select"},{"$f":"Import!M17753","v":"Select"},{"$f":"Import!M17853","v":0},{"$f":"Import!M17953","v":0},{"$f":"Import!M18053","v":0},{"$f":"Import!M18153","v":0},{"$f":"Import!M18253","v":0}]
[10,{"$f":"Import!M17554","v":"Select"},{"$f":"Import!M17654","v":"Select"},{"$f":"Import!M17754","v":"Select"},{"$f":"Import!M17854","v":0},{"$f":"Import!M17954","v":0},{"$f":"Import!M18054","v":0},{"$f":"Import!M18154","v":0},{"$f":"Import!M18254","v":0}]
[11,{"$f":"Import!M17555","v":"Select"},{"$f":"Import!M17655","v":"Select"},{"$f":"Import!M17755","v":"Select"},{"$f":"Import!M17855","v":0},{"$f":"Import!M17955","v":0},{"$f":"Import!M18055","v":0},{"$f":"Import!M18155","v":0},{"$f":"Import!M18255","v":0}]
[12,{"$f":"Import!M17556","v":"Select"},{"$f":"Import!M17656","v":"Select"},{"$f":"Import!M17756","v":"Select"},{"$f":"Import!M17856","v":0},{"$f":"Import!M17956","v":0},{"$f":"Import!M18056","v":0},{"$f":"Import!M18156","v":0},{"$f":"Import!M18256","v":0}]
[13,{"$f":"Import!M17557","v":"Select"},{"$f":"Import!M17657","v":"Select"},{"$f":"Import!M17757","v":"Select"},{"$f":"Import!M17857","v":0},{"$f":"Import!M17957","v":0},{"$f":"Import!M18057","v":0},{"$f":"Import!M18157","v":0},{"$f":"Import!M18257","v":0}]
[14,{"$f":"Import!M17558","v":"Select"},{"$f":"Import!M17658","v":"Select"},{"$f":"Import!M17758","v":"Select"},{"$f":"Import!M17858","v":0},{"$f":"Import!M17958","v":0},{"$f":"Import!M18058","v":0},{"$f":"Import!M18158","v":0},{"$f":"Import!M18258","v":0}]
[15,{"$f":"Import!M17559","v":"Select"},{"$f":"Import!M17659","v":"Select"},{"$f":"Import!M17759","v":"Select"},{"$f":"Import!M17859","v":0},{"$f":"Import!M17959","v":0},{"$f":"Import!M18059","v":0},{"$f":"Import!M18159","v":0},{"$f":"Import!M18259","v":0}]
[16,{"$f":"Import!M17560","v":"Select"},{"$f":"Import!M17660","v":"Select"},{"$f":"Import!M17760","v":"Select"},{"$f":"Import!M17860","v":0},{"$f":"Import!M17960","v":0},{"$f":"Import!M18060","v":0},{"$f":"Import!M18160","v":0},{"$f":"Import!M18260","v":0}]
[17,{"$f":"Import!M17561","v":"Select"},{"$f":"Import!M17661","v":"Select"},{"$f":"Import!M17761","v":"Select"},{"$f":"Import!M17861","v":0},{"$f":"Import!M17961","v":0},{"$f":"Import!M18061","v":0},{"$f":"Import!M18161","v":0},{"$f":"Import!M18261","v":0}]
[18,{"$f":"Import!M17562","v":"Select"},{"$f":"Import!M17662","v":"Select"},{"$f":"Import!M17762","v":"Select"},{"$f":"Import!M17862","v":0},{"$f":"Import!M17962","v":0},{"$f":"Import!M18062","v":0},{"$f":"Import!M18162","v":0},{"$f":"Import!M18262","v":0}]
[19,{"$f":"Import!M17563","v":"Select"},{"$f":"Import!M17663","v":"Select"},{"$f":"Import!M17763","v":"Select"},{"$f":"Import!M17863","v":0},{"$f":"Import!M17963","v":0},{"$f":"Import!M18063","v":0},{"$f":"Import!M18163","v":0},{"$f":"Import!M18263","v":0}]
[20,{"$f":"Import!M17564","v":"Select"},{"$f":"Import!M17664","v":"Select"},{"$f":"Import!M17764","v":"Select"},{"$f":"Import!M17864","v":0},{"$f":"Import!M17964","v":0},{"$f":"Import!M18064","v":0},{"$f":"Import!M18164","v":0},{"$f":"Import!M18264","v":0}]
[21,{"$f":"Import!M17565","v":"Select"},{"$f":"Import!M17665","v":"Select"},{"$f":"Import!M17765","v":"Select"},{"$f":"Import!M17865","v":0},{"$f":"Import!M17965","v":0},{"$f":"Import!M18065","v":0},{"$f":"Import!M18165","v":0},{"$f":"Import!M18265","v":0}]
[22,{"$f":"Import!M17566","v":"Select"},{"$f":"Import!M17666","v":"Select"},{"$f":"Import!M17766","v":"Select"},{"$f":"Import!M17866","v":0},{"$f":"Import!M17966","v":0},{"$f":"Import!M18066","v":0},{"$f":"Import!M18166","v":0},{"$f":"Import!M18266","v":0}]
[23,{"$f":"Import!M17567","v":"Select"},{"$f":"Import!M17667","v":"Select"},{"$f":"Import!M17767","v":"Select"},{"$f":"Import!M17867","v":0},{"$f":"Import!M17967","v":0},{"$f":"Import!M18067","v":0},{"$f":"Import!M18167","v":0},{"$f":"Import!M18267","v":0}]
[24,{"$f":"Import!M17568","v":"Select"},{"$f":"Import!M17668","v":"Select"},{"$f":"Import!M17768","v":"Select"},{"$f":"Import!M17868","v":0},{"$f":"Import!M17968","v":0},{"$f":"Import!M18068","v":0},{"$f":"Import!M18168","v":0},{"$f":"Import!M18268","v":0}]
[25,{"$f":"Import!M17569","v":"Select"},{"$f":"Import!M17669","v":"Select"},{"$f":"Import!M17769","v":"Select"},{"$f":"Import!M17869","v":0},{"$f":"Import!M17969","v":0},{"$f":"Import!M18069","v":0},{"$f":"Import!M18169","v":0},{"$f":"Import!M18269","v":0}]
[26,{"$f":"Import!M17570","v":"Select"},{"$f":"Import!M17670","v":"Select"},{"$f":"Import!M17770","v":"Select"},{"$f":"Import!M17870","v":0},{"$f":"Import!M17970","v":0},{"$f":"Import!M18070","v":0},{"$f":"Import!M18170","v":0},{"$f":"Import!M18270","v":0}]
[27,{"$f":"Import!M17571","v":"Select"},{"$f":"Import!M17671","v":"Select"},{"$f":"Import!M17771","v":"Select"},{"$f":"Import!M17871","v":0},{"$f":"Import!M17971","v":0},{"$f":"Import!M18071","v":0},{"$f":"Import!M18171","v":0},{"$f":"Import!M18271","v":0}]
[28,{"$f":"Import!M17572","v":"Select"},{"$f":"Import!M17672","v":"Select"},{"$f":"Import!M17772","v":"Select"},{"$f":"Import!M17872","v":0},{"$f":"Import!M17972","v":0},{"$f":"Import!M18072","v":0},{"$f":"Import!M18172","v":0},{"$f":"Import!M18272","v":0}]
[29,{"$f":"Import!M17573","v":"Select"},{"$f":"Import!M17673","v":"Select"},{"$f":"Import!M17773","v":"Select"},{"$f":"Import!M17873","v":0},{"$f":"Import!M17973","v":0},{"$f":"Import!M18073","v":0},{"$f":"Import!M18173","v":0},{"$f":"Import!M18273","v":0}]
[30,{"$f":"Import!M17574","v":"Select"},{"$f":"Import!M17674","v":"Select"},{"$f":"Import!M17774","v":"Select"},{"$f":"Import!M17874","v":0},{"$f":"Import!M17974","v":0},{"$f":"Import!M18074","v":0},{"$f":"Import!M18174","v":0},{"$f":"Import!M18274","v":0}]
[31,{"$f":"Import!M17575","v":"Select"},{"$f":"Import!M17675","v":"Select"},{"$f":"Import!M17775","v":"Select"},{"$f":"Import!M17875","v":0},{"$f":"Import!M17975","v":0},{"$f":"Import!M18075","v":0},{"$f":"Import!M18175","v":0},{"$f":"Import!M18275","v":0}]
[32,{"$f":"Import!M17576","v":"Select"},{"$f":"Import!M17676","v":"Select"},{"$f":"Import!M17776","v":"Select"},{"$f":"Import!M17876","v":0},{"$f":"Import!M17976","v":0},{"$f":"Import!M18076","v":0},{"$f":"Import!M18176","v":0},{"$f":"Import!M18276","v":0}]
[33,{"$f":"Import!M17577","v":"Select"},{"$f":"Import!M17677","v":"Select"},{"$f":"Import!M17777","v":"Select"},{"$f":"Import!M17877","v":0},{"$f":"Import!M17977","v":0},{"$f":"Import!M18077","v":0},{"$f":"Import!M18177","v":0},{"$f":"Import!M18277","v":0}]
[34,{"$f":"Import!M17578","v":"Select"},{"$f":"Import!M17678","v":"Select"},{"$f":"Import!M17778","v":"Select"},{"$f":"Import!M17878","v":0},{"$f":"Import!M17978","v":0},{"$f":"Import!M18078","v":0},{"$f":"Import!M18178","v":0},{"$f":"Import!M18278","v":0}]
[35,{"$f":"Import!M17579","v":"Select"},{"$f":"Import!M17679","v":"Select"},{"$f":"Import!M17779","v":"Select"},{"$f":"Import!M17879","v":0},{"$f":"Import!M17979","v":0},{"$f":"Import!M18079","v":0},{"$f":"Import!M18179","v":0},{"$f":"Import!M18279","v":0}]
[36,{"$f":"Import!M17580","v":"Select"},{"$f":"Import!M17680","v":"Select"},{"$f":"Import!M17780","v":"Select"},{"$f":"Import!M17880","v":0},{"$f":"Import!M17980","v":0},{"$f":"Import!M18080","v":0},{"$f":"Import!M18180","v":0},{"$f":"Import!M18280","v":0}]
[37,{"$f":"Import!M17581","v":"Select"},{"$f":"Import!M17681","v":"Select"},{"$f":"Import!M17781","v":"Select"},{"$f":"Import!M17881","v":0},{"$f":"Import!M17981","v":0},{"$f":"Import!M18081","v":0},{"$f":"Import!M18181","v":0},{"$f":"Import!M18281","v":0}]
[38,{"$f":"Import!M17582","v":"Select"},{"$f":"Import!M17682","v":"Select"},{"$f":"Import!M17782","v":"Select"},{"$f":"Import!M17882","v":0},{"$f":"Import!M17982","v":0},{"$f":"Import!M18082","v":0},{"$f":"Import!M18182","v":0},{"$f":"Import!M18282","v":0}]
[39,{"$f":"Import!M17583","v":"Select"},{"$f":"Import!M17683","v":"Select"},{"$f":"Import!M17783","v":"Select"},{"$f":"Import!M17883","v":0},{"$f":"Import!M17983","v":0},{"$f":"Import!M18083","v":0},{"$f":"Import!M18183","v":0},{"$f":"Import!M18283","v":0}]
[40,{"$f":"Import!M17584","v":"Select"},{"$f":"Import!M17684","v":"Select"},{"$f":"Import!M17784","v":"Select"},{"$f":"Import!M17884","v":0},{"$f":"Import!M17984","v":0},{"$f":"Import!M18084","v":0},{"$f":"Import!M18184","v":0},{"$f":"Import!M18284","v":0}]
[41,{"$f":"Import!M17585","v":"Select"},{"$f":"Import!M17685","v":"Select"},{"$f":"Import!M17785","v":"Select"},{"$f":"Import!M17885","v":0},{"$f":"Import!M17985","v":0},{"$f":"Import!M18085","v":0},{"$f":"Import!M18185","v":0},{"$f":"Import!M18285","v":0}]
[42,{"$f":"Import!M17586","v":"Select"},{"$f":"Import!M17686","v":"Select"},{"$f":"Import!M17786","v":"Select"},{"$f":"Import!M17886","v":0},{"$f":"Import!M17986","v":0},{"$f":"Import!M18086","v":0},{"$f":"Import!M18186","v":0},{"$f":"Import!M18286","v":0}]
[43,{"$f":"Import!M17587","v":"Select"},{"$f":"Import!M17687","v":"Select"},{"$f":"Import!M17787","v":"Select"},{"$f":"Import!M17887","v":0},{"$f":"Import!M17987","v":0},{"$f":"Import!M18087","v":0},{"$f":"Import!M18187","v":0},{"$f":"Import!M18287","v":0}]
[44,{"$f":"Import!M17588","v":"Select"},{"$f":"Import!M17688","v":"Select"},{"$f":"Import!M17788","v":"Select"},{"$f":"Import!M17888","v":0},{"$f":"Import!M17988","v":0},{"$f":"Import!M18088","v":0},{"$f":"Import!M18188","v":0},{"$f":"Import!M18288","v":0}]
[45,{"$f":"Import!M17589","v":"Select"},{"$f":"Import!M17689","v":"Select"},{"$f":"Import!M17789","v":"Select"},{"$f":"Import!M17889","v":0},{"$f":"Import!M17989","v":0},{"$f":"Import!M18089","v":0},{"$f":"Import!M18189","v":0},{"$f":"Import!M18289","v":0}]
[46,{"$f":"Import!M17590","v":"Select"},{"$f":"Import!M17690","v":"Select"},{"$f":"Import!M17790","v":"Select"},{"$f":"Import!M17890","v":0},{"$f":"Import!M17990","v":0},{"$f":"Import!M18090","v":0},{"$f":"Import!M18190","v":0},{"$f":"Import!M18290","v":0}]
[47,{"$f":"Import!M17591","v":"Select"},{"$f":"Import!M17691","v":"Select"},{"$f":"Import!M17791","v":"Select"},{"$f":"Import!M17891","v":0},{"$f":"Import!M17991","v":0},{"$f":"Import!M18091","v":0},{"$f":"Import!M18191","v":0},{"$f":"Import!M18291","v":0}]
[48,{"$f":"Import!M17592","v":"Select"},{"$f":"Import!M17692","v":"Select"},{"$f":"Import!M17792","v":"Select"},{"$f":"Import!M17892","v":0},{"$f":"Import!M17992","v":0},{"$f":"Import!M18092","v":0},{"$f":"Import!M18192","v":0},{"$f":"Import!M18292","v":0}]
[49,{"$f":"Import!M17593","v":"Select"},{"$f":"Import!M17693","v":"Select"},{"$f":"Import!M17793","v":"Select"},{"$f":"Import!M17893","v":0},{"$f":"Import!M17993","v":0},{"$f":"Import!M18093","v":0},{"$f":"Import!M18193","v":0},{"$f":"Import!M18293","v":0}]
[50,{"$f":"Import!M17594","v":"Select"},{"$f":"Import!M17694","v":"Select"},{"$f":"Import!M17794","v":"Select"},{"$f":"Import!M17894","v":0},{"$f":"Import!M17994","v":0},{"$f":"Import!M18094","v":0},{"$f":"Import!M18194","v":0},{"$f":"Import!M18294","v":0}]
[51,{"$f":"Import!M17595","v":"Select"},{"$f":"Import!M17695","v":"Select"},{"$f":"Import!M17795","v":"Select"},{"$f":"Import!M17895","v":0},{"$f":"Import!M17995","v":0},{"$f":"Import!M18095","v":0},{"$f":"Import!M18195","v":0},{"$f":"Import!M18295","v":0}]
[52,{"$f":"Import!M17596","v":"Select"},{"$f":"Import!M17696","v":"Select"},{"$f":"Import!M17796","v":"Select"},{"$f":"Import!M17896","v":0},{"$f":"Import!M17996","v":0},{"$f":"Import!M18096","v":0},{"$f":"Import!M18196","v":0},{"$f":"Import!M18296","v":0}]
[53,{"$f":"Import!M17597","v":"Select"},{"$f":"Import!M17697","v":"Select"},{"$f":"Import!M17797","v":"Select"},{"$f":"Import!M17897","v":0},{"$f":"Import!M17997","v":0},{"$f":"Import!M18097","v":0},{"$f":"Import!M18197","v":0},{"$f":"Import!M18297","v":0}]
[54,{"$f":"Import!M17598","v":"Select"},{"$f":"Import!M17698","v":"Select"},{"$f":"Import!M17798","v":"Select"},{"$f":"Import!M17898","v":0},{"$f":"Import!M17998","v":0},{"$f":"Import!M18098","v":0},{"$f":"Import!M18198","v":0},{"$f":"Import!M18298","v":0}]
[55,{"$f":"Import!M17599","v":"Select"},{"$f":"Import!M17699","v":"Select"},{"$f":"Import!M17799","v":"Select"},{"$f":"Import!M17899","v":0},{"$f":"Import!M17999","v":0},{"$f":"Import!M18099","v":0},{"$f":"Import!M18199","v":0},{"$f":"Import!M18299","v":0}]
[56,{"$f":"Import!M17600","v":"Select"},{"$f":"Import!M17700","v":"Select"},{"$f":"Import!M17800","v":"Select"},{"$f":"Import!M17900","v":0},{"$f":"Import!M18000","v":0},{"$f":"Import!M18100","v":0},{"$f":"Import!M18200","v":0},{"$f":"Import!M18300","v":0}]
[57,{"$f":"Import!M17601","v":"Select"},{"$f":"Import!M17701","v":"Select"},{"$f":"Import!M17801","v":"Select"},{"$f":"Import!M17901","v":0},{"$f":"Import!M18001","v":0},{"$f":"Import!M18101","v":0},{"$f":"Import!M18201","v":0},{"$f":"Import!M18301","v":0}]
[58,{"$f":"Import!M17602","v":"Select"},{"$f":"Import!M17702","v":"Select"},{"$f":"Import!M17802","v":"Select"},{"$f":"Import!M17902","v":0},{"$f":"Import!M18002","v":0},{"$f":"Import!M18102","v":0},{"$f":"Import!M18202","v":0},{"$f":"Import!M18302","v":0}]
[59,{"$f":"Import!M17603","v":"Select"},{"$f":"Import!M17703","v":"Select"},{"$f":"Import!M17803","v":"Select"},{"$f":"Import!M17903","v":0},{"$f":"Import!M18003","v":0},{"$f":"Import!M18103","v":0},{"$f":"Import!M18203","v":0},{"$f":"Import!M18303","v":0}]
[60,{"$f":"Import!M17604","v":"Select"},{"$f":"Import!M17704","v":"Select"},{"$f":"Import!M17804","v":"Select"},{"$f":"Import!M17904","v":0},{"$f":"Import!M18004","v":0},{"$f":"Import!M18104","v":0},{"$f":"Import!M18204","v":0},{"$f":"Import!M18304","v":0}]
[61,{"$f":"Import!M17605","v":"Select"},{"$f":"Import!M17705","v":"Select"},{"$f":"Import!M17805","v":"Select"},{"$f":"Import!M17905","v":0},{"$f":"Import!M18005","v":0},{"$f":"Import!M18105","v":0},{"$f":"Import!M18205","v":0},{"$f":"Import!M18305","v":0}]
[62,{"$f":"Import!M17606","v":"Select"},{"$f":"Import!M17706","v":"Select"},{"$f":"Import!M17806","v":"Select"},{"$f":"Import!M17906","v":0},{"$f":"Import!M18006","v":0},{"$f":"Import!M18106","v":0},{"$f":"Import!M18206","v":0},{"$f":"Import!M18306","v":0}]
[63,{"$f":"Import!M17607","v":"Select"},{"$f":"Import!M17707","v":"Select"},{"$f":"Import!M17807","v":"Select"},{"$f":"Import!M17907","v":0},{"$f":"Import!M18007","v":0},{"$f":"Import!M18107","v":0},{"$f":"Import!M18207","v":0},{"$f":"Import!M18307","v":0}]
[64,{"$f":"Import!M17608","v":"Select"},{"$f":"Import!M17708","v":"Select"},{"$f":"Import!M17808","v":"Select"},{"$f":"Import!M17908","v":0},{"$f":"Import!M18008","v":0},{"$f":"Import!M18108","v":0},{"$f":"Import!M18208","v":0},{"$f":"Import!M18308","v":0}]
[65,{"$f":"Import!M17609","v":"Select"},{"$f":"Import!M17709","v":"Select"},{"$f":"Import!M17809","v":"Select"},{"$f":"Import!M17909","v":0},{"$f":"Import!M18009","v":0},{"$f":"Import!M18109","v":0},{"$f":"Import!M18209","v":0},{"$f":"Import!M18309","v":0}]
[66,{"$f":"Import!M17610","v":"Select"},{"$f":"Import!M17710","v":"Select"},{"$f":"Import!M17810","v":"Select"},{"$f":"Import!M17910","v":0},{"$f":"Import!M18010","v":0},{"$f":"Import!M18110","v":0},{"$f":"Import!M18210","v":0},{"$f":"Import!M18310","v":0}]
[{"$f":"A1194+1","v":67},{"$f":"Import!M17611","v":"Select"},{"$f":"Import!M17711","v":"Select"},{"$f":"Import!M17811","v":"Select"},{"$f":"Import!M17911","v":0},{"$f":"Import!M18011","v":0},{"$f":"Import!M18111","v":0},{"$f":"Import!M18211","v":0},{"$f":"Import!M18311","v":0}]
[68,{"$f":"Import!M17612","v":"Select"},{"$f":"Import!M17712","v":"Select"},{"$f":"Import!M17812","v":"Select"},{"$f":"Import!M17912","v":0},{"$f":"Import!M18012","v":0},{"$f":"Import!M18112","v":0},{"$f":"Import!M18212","v":0},{"$f":"Import!M18312","v":0}]
[69,{"$f":"Import!M17613","v":"Select"},{"$f":"Import!M17713","v":"Select"},{"$f":"Import!M17813","v":"Select"},{"$f":"Import!M17913","v":0},{"$f":"Import!M18013","v":0},{"$f":"Import!M18113","v":0},{"$f":"Import!M18213","v":0},{"$f":"Import!M18313","v":0}]
[70,{"$f":"Import!M17614","v":"Select"},{"$f":"Import!M17714","v":"Select"},{"$f":"Import!M17814","v":"Select"},{"$f":"Import!M17914","v":0},{"$f":"Import!M18014","v":0},{"$f":"Import!M18114","v":0},{"$f":"Import!M18214","v":0},{"$f":"Import!M18314","v":0}]
[71,{"$f":"Import!M17615","v":"Select"},{"$f":"Import!M17715","v":"Select"},{"$f":"Import!M17815","v":"Select"},{"$f":"Import!M17915","v":0},{"$f":"Import!M18015","v":0},{"$f":"Import!M18115","v":0},{"$f":"Import!M18215","v":0},{"$f":"Import!M18315","v":0}]
[72,{"$f":"Import!M17616","v":"Select"},{"$f":"Import!M17716","v":"Select"},{"$f":"Import!M17816","v":"Select"},{"$f":"Import!M17916","v":0},{"$f":"Import!M18016","v":0},{"$f":"Import!M18116","v":0},{"$f":"Import!M18216","v":0},{"$f":"Import!M18316","v":0}]
[73,{"$f":"Import!M17617","v":"Select"},{"$f":"Import!M17717","v":"Select"},{"$f":"Import!M17817","v":"Select"},{"$f":"Import!M17917","v":0},{"$f":"Import!M18017","v":0},{"$f":"Import!M18117","v":0},{"$f":"Import!M18217","v":0},{"$f":"Import!M18317","v":0}]
[74,{"$f":"Import!M17618","v":"Select"},{"$f":"Import!M17718","v":"Select"},{"$f":"Import!M17818","v":"Select"},{"$f":"Import!M17918","v":0},{"$f":"Import!M18018","v":0},{"$f":"Import!M18118","v":0},{"$f":"Import!M18218","v":0},{"$f":"Import!M18318","v":0}]
[75,{"$f":"Import!M17619","v":"Select"},{"$f":"Import!M17719","v":"Select"},{"$f":"Import!M17819","v":"Select"},{"$f":"Import!M17919","v":0},{"$f":"Import!M18019","v":0},{"$f":"Import!M18119","v":0},{"$f":"Import!M18219","v":0},{"$f":"Import!M18319","v":0}]
[76,{"$f":"Import!M17620","v":"Select"},{"$f":"Import!M17720","v":"Select"},{"$f":"Import!M17820","v":"Select"},{"$f":"Import!M17920","v":0},{"$f":"Import!M18020","v":0},{"$f":"Import!M18120","v":0},{"$f":"Import!M18220","v":0},{"$f":"Import!M18320","v":0}]
[77,{"$f":"Import!M17621","v":"Select"},{"$f":"Import!M17721","v":"Select"},{"$f":"Import!M17821","v":"Select"},{"$f":"Import!M17921","v":0},{"$f":"Import!M18021","v":0},{"$f":"Import!M18121","v":0},{"$f":"Import!M18221","v":0},{"$f":"Import!M18321","v":0}]
[78,{"$f":"Import!M17622","v":"Select"},{"$f":"Import!M17722","v":"Select"},{"$f":"Import!M17822","v":"Select"},{"$f":"Import!M17922","v":0},{"$f":"Import!M18022","v":0},{"$f":"Import!M18122","v":0},{"$f":"Import!M18222","v":0},{"$f":"Import!M18322","v":0}]
[79,{"$f":"Import!M17623","v":"Select"},{"$f":"Import!M17723","v":"Select"},{"$f":"Import!M17823","v":"Select"},{"$f":"Import!M17923","v":0},{"$f":"Import!M18023","v":0},{"$f":"Import!M18123","v":0},{"$f":"Import!M18223","v":0},{"$f":"Import!M18323","v":0}]
[80,{"$f":"Import!M17624","v":"Select"},{"$f":"Import!M17724","v":"Select"},{"$f":"Import!M17824","v":"Select"},{"$f":"Import!M17924","v":0},{"$f":"Import!M18024","v":0},{"$f":"Import!M18124","v":0},{"$f":"Import!M18224","v":0},{"$f":"Import!M18324","v":0}]
[81,{"$f":"Import!M17625","v":"Select"},{"$f":"Import!M17725","v":"Select"},{"$f":"Import!M17825","v":"Select"},{"$f":"Import!M17925","v":0},{"$f":"Import!M18025","v":0},{"$f":"Import!M18125","v":0},{"$f":"Import!M18225","v":0},{"$f":"Import!M18325","v":0}]
[82,{"$f":"Import!M17626","v":"Select"},{"$f":"Import!M17726","v":"Select"},{"$f":"Import!M17826","v":"Select"},{"$f":"Import!M17926","v":0},{"$f":"Import!M18026","v":0},{"$f":"Import!M18126","v":0},{"$f":"Import!M18226","v":0},{"$f":"Import!M18326","v":0}]
[83,{"$f":"Import!M17627","v":"Select"},{"$f":"Import!M17727","v":"Select"},{"$f":"Import!M17827","v":"Select"},{"$f":"Import!M17927","v":0},{"$f":"Import!M18027","v":0},{"$f":"Import!M18127","v":0},{"$f":"Import!M18227","v":0},{"$f":"Import!M18327","v":0}]
[84,{"$f":"Import!M17628","v":"Select"},{"$f":"Import!M17728","v":"Select"},{"$f":"Import!M17828","v":"Select"},{"$f":"Import!M17928","v":0},{"$f":"Import!M18028","v":0},{"$f":"Import!M18128","v":0},{"$f":"Import!M18228","v":0},{"$f":"Import!M18328","v":0}]
[85,{"$f":"Import!M17629","v":"Select"},{"$f":"Import!M17729","v":"Select"},{"$f":"Import!M17829","v":"Select"},{"$f":"Import!M17929","v":0},{"$f":"Import!M18029","v":0},{"$f":"Import!M18129","v":0},{"$f":"Import!M18229","v":0},{"$f":"Import!M18329","v":0}]
[86,{"$f":"Import!M17630","v":"Select"},{"$f":"Import!M17730","v":"Select"},{"$f":"Import!M17830","v":"Select"},{"$f":"Import!M17930","v":0},{"$f":"Import!M18030","v":0},{"$f":"Import!M18130","v":0},{"$f":"Import!M18230","v":0},{"$f":"Import!M18330","v":0}]
[87,{"$f":"Import!M17631","v":"Select"},{"$f":"Import!M17731","v":"Select"},{"$f":"Import!M17831","v":"Select"},{"$f":"Import!M17931","v":0},{"$f":"Import!M18031","v":0},{"$f":"Import!M18131","v":0},{"$f":"Import!M18231","v":0},{"$f":"Import!M18331","v":0}]
[88,{"$f":"Import!M17632","v":"Select"},{"$f":"Import!M17732","v":"Select"},{"$f":"Import!M17832","v":"Select"},{"$f":"Import!M17932","v":0},{"$f":"Import!M18032","v":0},{"$f":"Import!M18132","v":0},{"$f":"Import!M18232","v":0},{"$f":"Import!M18332","v":0}]
[89,{"$f":"Import!M17633","v":"Select"},{"$f":"Import!M17733","v":"Select"},{"$f":"Import!M17833","v":"Select"},{"$f":"Import!M17933","v":0},{"$f":"Import!M18033","v":0},{"$f":"Import!M18133","v":0},{"$f":"Import!M18233","v":0},{"$f":"Import!M18333","v":0}]
[90,{"$f":"Import!M17634","v":"Select"},{"$f":"Import!M17734","v":"Select"},{"$f":"Import!M17834","v":"Select"},{"$f":"Import!M17934","v":0},{"$f":"Import!M18034","v":0},{"$f":"Import!M18134","v":0},{"$f":"Import!M18234","v":0},{"$f":"Import!M18334","v":0}]
[91,{"$f":"Import!M17635","v":"Select"},{"$f":"Import!M17735","v":"Select"},{"$f":"Import!M17835","v":"Select"},{"$f":"Import!M17935","v":0},{"$f":"Import!M18035","v":0},{"$f":"Import!M18135","v":0},{"$f":"Import!M18235","v":0},{"$f":"Import!M18335","v":0}]
[92,{"$f":"Import!M17636","v":"Select"},{"$f":"Import!M17736","v":"Select"},{"$f":"Import!M17836","v":"Select"},{"$f":"Import!M17936","v":0},{"$f":"Import!M18036","v":0},{"$f":"Import!M18136","v":0},{"$f":"Import!M18236","v":0},{"$f":"Import!M18336","v":0}]
[93,{"$f":"Import!M17637","v":"Select"},{"$f":"Import!M17737","v":"Select"},{"$f":"Import!M17837","v":"Select"},{"$f":"Import!M17937","v":0},{"$f":"Import!M18037","v":0},{"$f":"Import!M18137","v":0},{"$f":"Import!M18237","v":0},{"$f":"Import!M18337","v":0}]
[94,{"$f":"Import!M17638","v":"Select"},{"$f":"Import!M17738","v":"Select"},{"$f":"Import!M17838","v":"Select"},{"$f":"Import!M17938","v":0},{"$f":"Import!M18038","v":0},{"$f":"Import!M18138","v":0},{"$f":"Import!M18238","v":0},{"$f":"Import!M18338","v":0}]
[95,{"$f":"Import!M17639","v":"Select"},{"$f":"Import!M17739","v":"Select"},{"$f":"Import!M17839","v":"Select"},{"$f":"Import!M17939","v":0},{"$f":"Import!M18039","v":0},{"$f":"Import!M18139","v":0},{"$f":"Import!M18239","v":0},{"$f":"Import!M18339","v":0}]
[96,{"$f":"Import!M17640","v":"Select"},{"$f":"Import!M17740","v":"Select"},{"$f":"Import!M17840","v":"Select"},{"$f":"Import!M17940","v":0},{"$f":"Import!M18040","v":0},{"$f":"Import!M18140","v":0},{"$f":"Import!M18240","v":0},{"$f":"Import!M18340","v":0}]
[97,{"$f":"Import!M17641","v":"Select"},{"$f":"Import!M17741","v":"Select"},{"$f":"Import!M17841","v":"Select"},{"$f":"Import!M17941","v":0},{"$f":"Import!M18041","v":0},{"$f":"Import!M18141","v":0},{"$f":"Import!M18241","v":0},{"$f":"Import!M18341","v":0}]
[98,{"$f":"Import!M17642","v":"Select"},{"$f":"Import!M17742","v":"Select"},{"$f":"Import!M17842","v":"Select"},{"$f":"Import!M17942","v":0},{"$f":"Import!M18042","v":0},{"$f":"Import!M18142","v":0},{"$f":"Import!M18242","v":0},{"$f":"Import!M18342","v":0}]
[99,{"$f":"Import!M17643","v":"Select"},{"$f":"Import!M17743","v":"Select"},{"$f":"Import!M17843","v":"Select"},{"$f":"Import!M17943","v":0},{"$f":"Import!M18043","v":0},{"$f":"Import!M18143","v":0},{"$f":"Import!M18243","v":0},{"$f":"Import!M18343","v":0}]
[100,{"$f":"Import!M17644","v":"Select"},{"$f":"Import!M17744","v":"Select"},{"$f":"Import!M17844","v":"Select"},{"$f":"Import!M17944","v":0},{"$f":"Import!M18044","v":0},{"$f":"Import!M18144","v":0},{"$f":"Import!M18244","v":0},{"$f":"Import!M18344","v":0}]
[]
[null,"Total Preferred Equities",null,null,{"$f":"SUM(E1129:E1228)","v":0},{"$f":"SUM(F1129:F1228)","v":0},{"$f":"IFERROR(SUMPRODUCT(G1129:G1228,$F1129:$F1228)/SUM($F1129:$F1228),0)","v":0},{"$f":"IFERROR(SUMPRODUCT(H1129:H1228,$F1129:$F1228)/SUM($F1129:$F1228),0)","v":0}]
[]
[null,"(F) COMMON EQUITIES"]
[]
[null,null,"Enter # of Asset Types",{"$f":"Import!M18345","v":0}]
[null,null,null,null,{"$f":"YEAR($C$3)","v":2023}]
[null,"Asset Type","Currency","Country","Fair Value","Comments"]
[1,{"$f":"Import!M18346","v":"Select"},{"$f":"Import!M18446","v":"Select"},{"$f":"Import!M18546","v":"Select"},{"$f":"Import!M18646","v":0},{"$f":"Import!M18746","v":0}]
[{"$f":"A1237+1","v":2},{"$f":"Import!M18347","v":"Select"},{"$f":"Import!M18447","v":"Select"},{"$f":"Import!M18547","v":"Select"},{"$f":"Import!M18647","v":0},{"$f":"Import!M18747","v":0}]
[{"$f":"A1238+1","v":3},{"$f":"Import!M18348","v":"Select"},{"$f":"Import!M18448","v":"Select"},{"$f":"Import!M18548","v":"Select"},{"$f":"Import!M18648","v":0},{"$f":"Import!M18748","v":0}]
[4,{"$f":"Import!M18349","v":"Select"},{"$f":"Import!M18449","v":"Select"},{"$f":"Import!M18549","v":"Select"},{"$f":"Import!M18649","v":0},{"$f":"Import!M18749","v":0}]
[5,{"$f":"Import!M18350","v":"Select"},{"$f":"Import!M18450","v":"Select"},{"$f":"Import!M18550","v":"Select"},{"$f":"Import!M18650","v":0},{"$f":"Import!M18750","v":0}]
[6,{"$f":"Import!M18351","v":"Select"},{"$f":"Import!M18451","v":"Select"},{"$f":"Import!M18551","v":"Select"},{"$f":"Import!M18651","v":0},{"$f":"Import!M18751","v":0}]
[7,{"$f":"Import!M18352","v":"Select"},{"$f":"Import!M18452","v":"Select"},{"$f":"Import!M18552","v":"Select"},{"$f":"Import!M18652","v":0},{"$f":"Import!M18752","v":0}]
[8,{"$f":"Import!M18353","v":"Select"},{"$f":"Import!M18453","v":"Select"},{"$f":"Import!M18553","v":"Select"},{"$f":"Import!M18653","v":0},{"$f":"Import!M18753","v":0}]
[9,{"$f":"Import!M18354","v":"Select"},{"$f":"Import!M18454","v":"Select"},{"$f":"Import!M18554","v":"Select"},{"$f":"Import!M18654","v":0},{"$f":"Import!M18754","v":0}]
[10,{"$f":"Import!M18355","v":"Select"},{"$f":"Import!M18455","v":"Select"},{"$f":"Import!M18555","v":"Select"},{"$f":"Import!M18655","v":0},{"$f":"Import!M18755","v":0}]
[11,{"$f":"Import!M18356","v":"Select"},{"$f":"Import!M18456","v":"Select"},{"$f":"Import!M18556","v":"Select"},{"$f":"Import!M18656","v":0},{"$f":"Import!M18756","v":0}]
[12,{"$f":"Import!M18357","v":"Select"},{"$f":"Import!M18457","v":"Select"},{"$f":"Import!M18557","v":"Select"},{"$f":"Import!M18657","v":0},{"$f":"Import!M18757","v":0}]
[13,{"$f":"Import!M18358","v":"Select"},{"$f":"Import!M18458","v":"Select"},{"$f":"Import!M18558","v":"Select"},{"$f":"Import!M18658","v":0},{"$f":"Import!M18758","v":0}]
[14,{"$f":"Import!M18359","v":"Select"},{"$f":"Import!M18459","v":"Select"},{"$f":"Import!M18559","v":"Select"},{"$f":"Import!M18659","v":0},{"$f":"Import!M18759","v":0}]
[15,{"$f":"Import!M18360","v":"Select"},{"$f":"Import!M18460","v":"Select"},{"$f":"Import!M18560","v":"Select"},{"$f":"Import!M18660","v":0},{"$f":"Import!M18760","v":0}]
[16,{"$f":"Import!M18361","v":"Select"},{"$f":"Import!M18461","v":"Select"},{"$f":"Import!M18561","v":"Select"},{"$f":"Import!M18661","v":0},{"$f":"Import!M18761","v":0}]
[17,{"$f":"Import!M18362","v":"Select"},{"$f":"Import!M18462","v":"Select"},{"$f":"Import!M18562","v":"Select"},{"$f":"Import!M18662","v":0},{"$f":"Import!M18762","v":0}]
[18,{"$f":"Import!M18363","v":"Select"},{"$f":"Import!M18463","v":"Select"},{"$f":"Import!M18563","v":"Select"},{"$f":"Import!M18663","v":0},{"$f":"Import!M18763","v":0}]
[19,{"$f":"Import!M18364","v":"Select"},{"$f":"Import!M18464","v":"Select"},{"$f":"Import!M18564","v":"Select"},{"$f":"Import!M18664","v":0},{"$f":"Import!M18764","v":0}]
[20,{"$f":"Import!M18365","v":"Select"},{"$f":"Import!M18465","v":"Select"},{"$f":"Import!M18565","v":"Select"},{"$f":"Import!M18665","v":0},{"$f":"Import!M18765","v":0}]
[21,{"$f":"Import!M18366","v":"Select"},{"$f":"Import!M18466","v":"Select"},{"$f":"Import!M18566","v":"Select"},{"$f":"Import!M18666","v":0},{"$f":"Import!M18766","v":0}]
[22,{"$f":"Import!M18367","v":"Select"},{"$f":"Import!M18467","v":"Select"},{"$f":"Import!M18567","v":"Select"},{"$f":"Import!M18667","v":0},{"$f":"Import!M18767","v":0}]
[23,{"$f":"Import!M18368","v":"Select"},{"$f":"Import!M18468","v":"Select"},{"$f":"Import!M18568","v":"Select"},{"$f":"Import!M18668","v":0},{"$f":"Import!M18768","v":0}]
[24,{"$f":"Import!M18369","v":"Select"},{"$f":"Import!M18469","v":"Select"},{"$f":"Import!M18569","v":"Select"},{"$f":"Import!M18669","v":0},{"$f":"Import!M18769","v":0}]
[25,{"$f":"Import!M18370","v":"Select"},{"$f":"Import!M18470","v":"Select"},{"$f":"Import!M18570","v":"Select"},{"$f":"Import!M18670","v":0},{"$f":"Import!M18770","v":0}]
[26,{"$f":"Import!M18371","v":"Select"},{"$f":"Import!M18471","v":"Select"},{"$f":"Import!M18571","v":"Select"},{"$f":"Import!M18671","v":0},{"$f":"Import!M18771","v":0}]
[27,{"$f":"Import!M18372","v":"Select"},{"$f":"Import!M18472","v":"Select"},{"$f":"Import!M18572","v":"Select"},{"$f":"Import!M18672","v":0},{"$f":"Import!M18772","v":0}]
[28,{"$f":"Import!M18373","v":"Select"},{"$f":"Import!M18473","v":"Select"},{"$f":"Import!M18573","v":"Select"},{"$f":"Import!M18673","v":0},{"$f":"Import!M18773","v":0}]
[29,{"$f":"Import!M18374","v":"Select"},{"$f":"Import!M18474","v":"Select"},{"$f":"Import!M18574","v":"Select"},{"$f":"Import!M18674","v":0},{"$f":"Import!M18774","v":0}]
[30,{"$f":"Import!M18375","v":"Select"},{"$f":"Import!M18475","v":"Select"},{"$f":"Import!M18575","v":"Select"},{"$f":"Import!M18675","v":0},{"$f":"Import!M18775","v":0}]
[31,{"$f":"Import!M18376","v":"Select"},{"$f":"Import!M18476","v":"Select"},{"$f":"Import!M18576","v":"Select"},{"$f":"Import!M18676","v":0},{"$f":"Import!M18776","v":0}]
[32,{"$f":"Import!M18377","v":"Select"},{"$f":"Import!M18477","v":"Select"},{"$f":"Import!M18577","v":"Select"},{"$f":"Import!M18677","v":0},{"$f":"Import!M18777","v":0}]
[33,{"$f":"Import!M18378","v":"Select"},{"$f":"Import!M18478","v":"Select"},{"$f":"Import!M18578","v":"Select"},{"$f":"Import!M18678","v":0},{"$f":"Import!M18778","v":0}]
[34,{"$f":"Import!M18379","v":"Select"},{"$f":"Import!M18479","v":"Select"},{"$f":"Import!M18579","v":"Select"},{"$f":"Import!M18679","v":0},{"$f":"Import!M18779","v":0}]
[35,{"$f":"Import!M18380","v":"Select"},{"$f":"Import!M18480","v":"Select"},{"$f":"Import!M18580","v":"Select"},{"$f":"Import!M18680","v":0},{"$f":"Import!M18780","v":0}]
[36,{"$f":"Import!M18381","v":"Select"},{"$f":"Import!M18481","v":"Select"},{"$f":"Import!M18581","v":"Select"},{"$f":"Import!M18681","v":0},{"$f":"Import!M18781","v":0}]
[37,{"$f":"Import!M18382","v":"Select"},{"$f":"Import!M18482","v":"Select"},{"$f":"Import!M18582","v":"Select"},{"$f":"Import!M18682","v":0},{"$f":"Import!M18782","v":0}]
[38,{"$f":"Import!M18383","v":"Select"},{"$f":"Import!M18483","v":"Select"},{"$f":"Import!M18583","v":"Select"},{"$f":"Import!M18683","v":0},{"$f":"Import!M18783","v":0}]
[39,{"$f":"Import!M18384","v":"Select"},{"$f":"Import!M18484","v":"Select"},{"$f":"Import!M18584","v":"Select"},{"$f":"Import!M18684","v":0},{"$f":"Import!M18784","v":0}]
[40,{"$f":"Import!M18385","v":"Select"},{"$f":"Import!M18485","v":"Select"},{"$f":"Import!M18585","v":"Select"},{"$f":"Import!M18685","v":0},{"$f":"Import!M18785","v":0}]
[41,{"$f":"Import!M18386","v":"Select"},{"$f":"Import!M18486","v":"Select"},{"$f":"Import!M18586","v":"Select"},{"$f":"Import!M18686","v":0},{"$f":"Import!M18786","v":0}]
[42,{"$f":"Import!M18387","v":"Select"},{"$f":"Import!M18487","v":"Select"},{"$f":"Import!M18587","v":"Select"},{"$f":"Import!M18687","v":0},{"$f":"Import!M18787","v":0}]
[43,{"$f":"Import!M18388","v":"Select"},{"$f":"Import!M18488","v":"Select"},{"$f":"Import!M18588","v":"Select"},{"$f":"Import!M18688","v":0},{"$f":"Import!M18788","v":0}]
[44,{"$f":"Import!M18389","v":"Select"},{"$f":"Import!M18489","v":"Select"},{"$f":"Import!M18589","v":"Select"},{"$f":"Import!M18689","v":0},{"$f":"Import!M18789","v":0}]
[45,{"$f":"Import!M18390","v":"Select"},{"$f":"Import!M18490","v":"Select"},{"$f":"Import!M18590","v":"Select"},{"$f":"Import!M18690","v":0},{"$f":"Import!M18790","v":0}]
[46,{"$f":"Import!M18391","v":"Select"},{"$f":"Import!M18491","v":"Select"},{"$f":"Import!M18591","v":"Select"},{"$f":"Import!M18691","v":0},{"$f":"Import!M18791","v":0}]
[47,{"$f":"Import!M18392","v":"Select"},{"$f":"Import!M18492","v":"Select"},{"$f":"Import!M18592","v":"Select"},{"$f":"Import!M18692","v":0},{"$f":"Import!M18792","v":0}]
[48,{"$f":"Import!M18393","v":"Select"},{"$f":"Import!M18493","v":"Select"},{"$f":"Import!M18593","v":"Select"},{"$f":"Import!M18693","v":0},{"$f":"Import!M18793","v":0}]
[49,{"$f":"Import!M18394","v":"Select"},{"$f":"Import!M18494","v":"Select"},{"$f":"Import!M18594","v":"Select"},{"$f":"Import!M18694","v":0},{"$f":"Import!M18794","v":0}]
[50,{"$f":"Import!M18395","v":"Select"},{"$f":"Import!M18495","v":"Select"},{"$f":"Import!M18595","v":"Select"},{"$f":"Import!M18695","v":0},{"$f":"Import!M18795","v":0}]
[51,{"$f":"Import!M18396","v":"Select"},{"$f":"Import!M18496","v":"Select"},{"$f":"Import!M18596","v":"Select"},{"$f":"Import!M18696","v":0},{"$f":"Import!M18796","v":0}]
[52,{"$f":"Import!M18397","v":"Select"},{"$f":"Import!M18497","v":"Select"},{"$f":"Import!M18597","v":"Select"},{"$f":"Import!M18697","v":0},{"$f":"Import!M18797","v":0}]
[53,{"$f":"Import!M18398","v":"Select"},{"$f":"Import!M18498","v":"Select"},{"$f":"Import!M18598","v":"Select"},{"$f":"Import!M18698","v":0},{"$f":"Import!M18798","v":0}]
[54,{"$f":"Import!M18399","v":"Select"},{"$f":"Import!M18499","v":"Select"},{"$f":"Import!M18599","v":"Select"},{"$f":"Import!M18699","v":0},{"$f":"Import!M18799","v":0}]
[55,{"$f":"Import!M18400","v":"Select"},{"$f":"Import!M18500","v":"Select"},{"$f":"Import!M18600","v":"Select"},{"$f":"Import!M18700","v":0},{"$f":"Import!M18800","v":0}]
[56,{"$f":"Import!M18401","v":"Select"},{"$f":"Import!M18501","v":"Select"},{"$f":"Import!M18601","v":"Select"},{"$f":"Import!M18701","v":0},{"$f":"Import!M18801","v":0}]
[57,{"$f":"Import!M18402","v":"Select"},{"$f":"Import!M18502","v":"Select"},{"$f":"Import!M18602","v":"Select"},{"$f":"Import!M18702","v":0},{"$f":"Import!M18802","v":0}]
[58,{"$f":"Import!M18403","v":"Select"},{"$f":"Import!M18503","v":"Select"},{"$f":"Import!M18603","v":"Select"},{"$f":"Import!M18703","v":0},{"$f":"Import!M18803","v":0}]
[59,{"$f":"Import!M18404","v":"Select"},{"$f":"Import!M18504","v":"Select"},{"$f":"Import!M18604","v":"Select"},{"$f":"Import!M18704","v":0},{"$f":"Import!M18804","v":0}]
[60,{"$f":"Import!M18405","v":"Select"},{"$f":"Import!M18505","v":"Select"},{"$f":"Import!M18605","v":"Select"},{"$f":"Import!M18705","v":0},{"$f":"Import!M18805","v":0}]
[61,{"$f":"Import!M18406","v":"Select"},{"$f":"Import!M18506","v":"Select"},{"$f":"Import!M18606","v":"Select"},{"$f":"Import!M18706","v":0},{"$f":"Import!M18806","v":0}]
[62,{"$f":"Import!M18407","v":"Select"},{"$f":"Import!M18507","v":"Select"},{"$f":"Import!M18607","v":"Select"},{"$f":"Import!M18707","v":0},{"$f":"Import!M18807","v":0}]
[63,{"$f":"Import!M18408","v":"Select"},{"$f":"Import!M18508","v":"Select"},{"$f":"Import!M18608","v":"Select"},{"$f":"Import!M18708","v":0},{"$f":"Import!M18808","v":0}]
[64,{"$f":"Import!M18409","v":"Select"},{"$f":"Import!M18509","v":"Select"},{"$f":"Import!M18609","v":"Select"},{"$f":"Import!M18709","v":0},{"$f":"Import!M18809","v":0}]
[65,{"$f":"Import!M18410","v":"Select"},{"$f":"Import!M18510","v":"Select"},{"$f":"Import!M18610","v":"Select"},{"$f":"Import!M18710","v":0},{"$f":"Import!M18810","v":0}]
[66,{"$f":"Import!M18411","v":"Select"},{"$f":"Import!M18511","v":"Select"},{"$f":"Import!M18611","v":"Select"},{"$f":"Import!M18711","v":0},{"$f":"Import!M18811","v":0}]
[{"$f":"A1302+1","v":67},{"$f":"Import!M18412","v":"Select"},{"$f":"Import!M18512","v":"Select"},{"$f":"Import!M18612","v":"Select"},{"$f":"Import!M18712","v":0},{"$f":"Import!M18812","v":0}]
[68,{"$f":"Import!M18413","v":"Select"},{"$f":"Import!M18513","v":"Select"},{"$f":"Import!M18613","v":"Select"},{"$f":"Import!M18713","v":0},{"$f":"Import!M18813","v":0}]
[69,{"$f":"Import!M18414","v":"Select"},{"$f":"Import!M18514","v":"Select"},{"$f":"Import!M18614","v":"Select"},{"$f":"Import!M18714","v":0},{"$f":"Import!M18814","v":0}]
[70,{"$f":"Import!M18415","v":"Select"},{"$f":"Import!M18515","v":"Select"},{"$f":"Import!M18615","v":"Select"},{"$f":"Import!M18715","v":0},{"$f":"Import!M18815","v":0}]
[71,{"$f":"Import!M18416","v":"Select"},{"$f":"Import!M18516","v":"Select"},{"$f":"Import!M18616","v":"Select"},{"$f":"Import!M18716","v":0},{"$f":"Import!M18816","v":0}]
[72,{"$f":"Import!M18417","v":"Select"},{"$f":"Import!M18517","v":"Select"},{"$f":"Import!M18617","v":"Select"},{"$f":"Import!M18717","v":0},{"$f":"Import!M18817","v":0}]
[73,{"$f":"Import!M18418","v":"Select"},{"$f":"Import!M18518","v":"Select"},{"$f":"Import!M18618","v":"Select"},{"$f":"Import!M18718","v":0},{"$f":"Import!M18818","v":0}]
[74,{"$f":"Import!M18419","v":"Select"},{"$f":"Import!M18519","v":"Select"},{"$f":"Import!M18619","v":"Select"},{"$f":"Import!M18719","v":0},{"$f":"Import!M18819","v":0}]
[75,{"$f":"Import!M18420","v":"Select"},{"$f":"Import!M18520","v":"Select"},{"$f":"Import!M18620","v":"Select"},{"$f":"Import!M18720","v":0},{"$f":"Import!M18820","v":0}]
[76,{"$f":"Import!M18421","v":"Select"},{"$f":"Import!M18521","v":"Select"},{"$f":"Import!M18621","v":"Select"},{"$f":"Import!M18721","v":0},{"$f":"Import!M18821","v":0}]
[77,{"$f":"Import!M18422","v":"Select"},{"$f":"Import!M18522","v":"Select"},{"$f":"Import!M18622","v":"Select"},{"$f":"Import!M18722","v":0},{"$f":"Import!M18822","v":0}]
[78,{"$f":"Import!M18423","v":"Select"},{"$f":"Import!M18523","v":"Select"},{"$f":"Import!M18623","v":"Select"},{"$f":"Import!M18723","v":0},{"$f":"Import!M18823","v":0}]
[79,{"$f":"Import!M18424","v":"Select"},{"$f":"Import!M18524","v":"Select"},{"$f":"Import!M18624","v":"Select"},{"$f":"Import!M18724","v":0},{"$f":"Import!M18824","v":0}]
[80,{"$f":"Import!M18425","v":"Select"},{"$f":"Import!M18525","v":"Select"},{"$f":"Import!M18625","v":"Select"},{"$f":"Import!M18725","v":0},{"$f":"Import!M18825","v":0}]
[81,{"$f":"Import!M18426","v":"Select"},{"$f":"Import!M18526","v":"Select"},{"$f":"Import!M18626","v":"Select"},{"$f":"Import!M18726","v":0},{"$f":"Import!M18826","v":0}]
[82,{"$f":"Import!M18427","v":"Select"},{"$f":"Import!M18527","v":"Select"},{"$f":"Import!M18627","v":"Select"},{"$f":"Import!M18727","v":0},{"$f":"Import!M18827","v":0}]
[83,{"$f":"Import!M18428","v":"Select"},{"$f":"Import!M18528","v":"Select"},{"$f":"Import!M18628","v":"Select"},{"$f":"Import!M18728","v":0},{"$f":"Import!M18828","v":0}]
[84,{"$f":"Import!M18429","v":"Select"},{"$f":"Import!M18529","v":"Select"},{"$f":"Import!M18629","v":"Select"},{"$f":"Import!M18729","v":0},{"$f":"Import!M18829","v":0}]
[85,{"$f":"Import!M18430","v":"Select"},{"$f":"Import!M18530","v":"Select"},{"$f":"Import!M18630","v":"Select"},{"$f":"Import!M18730","v":0},{"$f":"Import!M18830","v":0}]
[86,{"$f":"Import!M18431","v":"Select"},{"$f":"Import!M18531","v":"Select"},{"$f":"Import!M18631","v":"Select"},{"$f":"Import!M18731","v":0},{"$f":"Import!M18831","v":0}]
[87,{"$f":"Import!M18432","v":"Select"},{"$f":"Import!M18532","v":"Select"},{"$f":"Import!M18632","v":"Select"},{"$f":"Import!M18732","v":0},{"$f":"Import!M18832","v":0}]
[88,{"$f":"Import!M18433","v":"Select"},{"$f":"Import!M18533","v":"Select"},{"$f":"Import!M18633","v":"Select"},{"$f":"Import!M18733","v":0},{"$f":"Import!M18833","v":0}]
[89,{"$f":"Import!M18434","v":"Select"},{"$f":"Import!M18534","v":"Select"},{"$f":"Import!M18634","v":"Select"},{"$f":"Import!M18734","v":0},{"$f":"Import!M18834","v":0}]
[90,{"$f":"Import!M18435","v":"Select"},{"$f":"Import!M18535","v":"Select"},{"$f":"Import!M18635","v":"Select"},{"$f":"Import!M18735","v":0},{"$f":"Import!M18835","v":0}]
[91,{"$f":"Import!M18436","v":"Select"},{"$f":"Import!M18536","v":"Select"},{"$f":"Import!M18636","v":"Select"},{"$f":"Import!M18736","v":0},{"$f":"Import!M18836","v":0}]
[92,{"$f":"Import!M18437","v":"Select"},{"$f":"Import!M18537","v":"Select"},{"$f":"Import!M18637","v":"Select"},{"$f":"Import!M18737","v":0},{"$f":"Import!M18837","v":0}]
[93,{"$f":"Import!M18438","v":"Select"},{"$f":"Import!M18538","v":"Select"},{"$f":"Import!M18638","v":"Select"},{"$f":"Import!M18738","v":0},{"$f":"Import!M18838","v":0}]
[94,{"$f":"Import!M18439","v":"Select"},{"$f":"Import!M18539","v":"Select"},{"$f":"Import!M18639","v":"Select"},{"$f":"Import!M18739","v":0},{"$f":"Import!M18839","v":0}]
[95,{"$f":"Import!M18440","v":"Select"},{"$f":"Import!M18540","v":"Select"},{"$f":"Import!M18640","v":"Select"},{"$f":"Import!M18740","v":0},{"$f":"Import!M18840","v":0}]
[96,{"$f":"Import!M18441","v":"Select"},{"$f":"Import!M18541","v":"Select"},{"$f":"Import!M18641","v":"Select"},{"$f":"Import!M18741","v":0},{"$f":"Import!M18841","v":0}]
[97,{"$f":"Import!M18442","v":"Select"},{"$f":"Import!M18542","v":"Select"},{"$f":"Import!M18642","v":"Select"},{"$f":"Import!M18742","v":0},{"$f":"Import!M18842","v":0}]
[98,{"$f":"Import!M18443","v":"Select"},{"$f":"Import!M18543","v":"Select"},{"$f":"Import!M18643","v":"Select"},{"$f":"Import!M18743","v":0},{"$f":"Import!M18843","v":0}]
[99,{"$f":"Import!M18444","v":"Select"},{"$f":"Import!M18544","v":"Select"},{"$f":"Import!M18644","v":"Select"},{"$f":"Import!M18744","v":0},{"$f":"Import!M18844","v":0}]
[100,{"$f":"Import!M18445","v":"Select"},{"$f":"Import!M18545","v":"Select"},{"$f":"Import!M18645","v":"Select"},{"$f":"Import!M18745","v":0},{"$f":"Import!M18845","v":0}]
[]
[null,"Total Common Equities",null,null,{"$f":"SUM(E1237:E1336)","v":0}]
[]
[null,"(G) REAL ESTATE"]
[]
[null,null,"Enter # of Asset Types",{"$f":"Import!M18846","v":0}]
[null,null,null,null,null,{"$f":"YEAR($C$3)","v":2023},2023]
[null,"Asset Type","Currency","Country","Purpose","Cost","Fair Value","Comments"]
[1,{"$f":"Import!M18847","v":"Select"},{"$f":"Import!M18947","v":"Select"},{"$f":"Import!M19047","v":"Select"},{"$f":"Import!M19147","v":"Select"},{"$f":"Import!M19247","v":0},{"$f":"Import!M19347","v":0},{"$f":"Import!M19447","v":0}]
[{"$f":"A1345+1","v":2},{"$f":"Import!M18848","v":"Select"},{"$f":"Import!M18948","v":"Select"},{"$f":"Import!M19048","v":"Select"},{"$f":"Import!M19148","v":"Select"},{"$f":"Import!M19248","v":0},{"$f":"Import!M19348","v":0},{"$f":"Import!M19448","v":0}]
[{"$f":"A1346+1","v":3},{"$f":"Import!M18849","v":"Select"},{"$f":"Import!M18949","v":"Select"},{"$f":"Import!M19049","v":"Select"},{"$f":"Import!M19149","v":"Select"},{"$f":"Import!M19249","v":0},{"$f":"Import!M19349","v":0},{"$f":"Import!M19449","v":0}]
[4,{"$f":"Import!M18850","v":"Select"},{"$f":"Import!M18950","v":"Select"},{"$f":"Import!M19050","v":"Select"},{"$f":"Import!M19150","v":"Select"},{"$f":"Import!M19250","v":0},{"$f":"Import!M19350","v":0},{"$f":"Import!M19450","v":0}]
[5,{"$f":"Import!M18851","v":"Select"},{"$f":"Import!M18951","v":"Select"},{"$f":"Import!M19051","v":"Select"},{"$f":"Import!M19151","v":"Select"},{"$f":"Import!M19251","v":0},{"$f":"Import!M19351","v":0},{"$f":"Import!M19451","v":0}]
[6,{"$f":"Import!M18852","v":"Select"},{"$f":"Import!M18952","v":"Select"},{"$f":"Import!M19052","v":"Select"},{"$f":"Import!M19152","v":"Select"},{"$f":"Import!M19252","v":0},{"$f":"Import!M19352","v":0},{"$f":"Import!M19452","v":0}]
[7,{"$f":"Import!M18853","v":"Select"},{"$f":"Import!M18953","v":"Select"},{"$f":"Import!M19053","v":"Select"},{"$f":"Import!M19153","v":"Select"},{"$f":"Import!M19253","v":0},{"$f":"Import!M19353","v":0},{"$f":"Import!M19453","v":0}]
[8,{"$f":"Import!M18854","v":"Select"},{"$f":"Import!M18954","v":"Select"},{"$f":"Import!M19054","v":"Select"},{"$f":"Import!M19154","v":"Select"},{"$f":"Import!M19254","v":0},{"$f":"Import!M19354","v":0},{"$f":"Import!M19454","v":0}]
[9,{"$f":"Import!M18855","v":"Select"},{"$f":"Import!M18955","v":"Select"},{"$f":"Import!M19055","v":"Select"},{"$f":"Import!M19155","v":"Select"},{"$f":"Import!M19255","v":0},{"$f":"Import!M19355","v":0},{"$f":"Import!M19455","v":0}]
[10,{"$f":"Import!M18856","v":"Select"},{"$f":"Import!M18956","v":"Select"},{"$f":"Import!M19056","v":"Select"},{"$f":"Import!M19156","v":"Select"},{"$f":"Import!M19256","v":0},{"$f":"Import!M19356","v":0},{"$f":"Import!M19456","v":0}]
[11,{"$f":"Import!M18857","v":"Select"},{"$f":"Import!M18957","v":"Select"},{"$f":"Import!M19057","v":"Select"},{"$f":"Import!M19157","v":"Select"},{"$f":"Import!M19257","v":0},{"$f":"Import!M19357","v":0},{"$f":"Import!M19457","v":0}]
[12,{"$f":"Import!M18858","v":"Select"},{"$f":"Import!M18958","v":"Select"},{"$f":"Import!M19058","v":"Select"},{"$f":"Import!M19158","v":"Select"},{"$f":"Import!M19258","v":0},{"$f":"Import!M19358","v":0},{"$f":"Import!M19458","v":0}]
[13,{"$f":"Import!M18859","v":"Select"},{"$f":"Import!M18959","v":"Select"},{"$f":"Import!M19059","v":"Select"},{"$f":"Import!M19159","v":"Select"},{"$f":"Import!M19259","v":0},{"$f":"Import!M19359","v":0},{"$f":"Import!M19459","v":0}]
[14,{"$f":"Import!M18860","v":"Select"},{"$f":"Import!M18960","v":"Select"},{"$f":"Import!M19060","v":"Select"},{"$f":"Import!M19160","v":"Select"},{"$f":"Import!M19260","v":0},{"$f":"Import!M19360","v":0},{"$f":"Import!M19460","v":0}]
[15,{"$f":"Import!M18861","v":"Select"},{"$f":"Import!M18961","v":"Select"},{"$f":"Import!M19061","v":"Select"},{"$f":"Import!M19161","v":"Select"},{"$f":"Import!M19261","v":0},{"$f":"Import!M19361","v":0},{"$f":"Import!M19461","v":0}]
[16,{"$f":"Import!M18862","v":"Select"},{"$f":"Import!M18962","v":"Select"},{"$f":"Import!M19062","v":"Select"},{"$f":"Import!M19162","v":"Select"},{"$f":"Import!M19262","v":0},{"$f":"Import!M19362","v":0},{"$f":"Import!M19462","v":0}]
[17,{"$f":"Import!M18863","v":"Select"},{"$f":"Import!M18963","v":"Select"},{"$f":"Import!M19063","v":"Select"},{"$f":"Import!M19163","v":"Select"},{"$f":"Import!M19263","v":0},{"$f":"Import!M19363","v":0},{"$f":"Import!M19463","v":0}]
[18,{"$f":"Import!M18864","v":"Select"},{"$f":"Import!M18964","v":"Select"},{"$f":"Import!M19064","v":"Select"},{"$f":"Import!M19164","v":"Select"},{"$f":"Import!M19264","v":0},{"$f":"Import!M19364","v":0},{"$f":"Import!M19464","v":0}]
[19,{"$f":"Import!M18865","v":"Select"},{"$f":"Import!M18965","v":"Select"},{"$f":"Import!M19065","v":"Select"},{"$f":"Import!M19165","v":"Select"},{"$f":"Import!M19265","v":0},{"$f":"Import!M19365","v":0},{"$f":"Import!M19465","v":0}]
[20,{"$f":"Import!M18866","v":"Select"},{"$f":"Import!M18966","v":"Select"},{"$f":"Import!M19066","v":"Select"},{"$f":"Import!M19166","v":"Select"},{"$f":"Import!M19266","v":0},{"$f":"Import!M19366","v":0},{"$f":"Import!M19466","v":0}]
[21,{"$f":"Import!M18867","v":"Select"},{"$f":"Import!M18967","v":"Select"},{"$f":"Import!M19067","v":"Select"},{"$f":"Import!M19167","v":"Select"},{"$f":"Import!M19267","v":0},{"$f":"Import!M19367","v":0},{"$f":"Import!M19467","v":0}]
[22,{"$f":"Import!M18868","v":"Select"},{"$f":"Import!M18968","v":"Select"},{"$f":"Import!M19068","v":"Select"},{"$f":"Import!M19168","v":"Select"},{"$f":"Import!M19268","v":0},{"$f":"Import!M19368","v":0},{"$f":"Import!M19468","v":0}]
[23,{"$f":"Import!M18869","v":"Select"},{"$f":"Import!M18969","v":"Select"},{"$f":"Import!M19069","v":"Select"},{"$f":"Import!M19169","v":"Select"},{"$f":"Import!M19269","v":0},{"$f":"Import!M19369","v":0},{"$f":"Import!M19469","v":0}]
[24,{"$f":"Import!M18870","v":"Select"},{"$f":"Import!M18970","v":"Select"},{"$f":"Import!M19070","v":"Select"},{"$f":"Import!M19170","v":"Select"},{"$f":"Import!M19270","v":0},{"$f":"Import!M19370","v":0},{"$f":"Import!M19470","v":0}]
[25,{"$f":"Import!M18871","v":"Select"},{"$f":"Import!M18971","v":"Select"},{"$f":"Import!M19071","v":"Select"},{"$f":"Import!M19171","v":"Select"},{"$f":"Import!M19271","v":0},{"$f":"Import!M19371","v":0},{"$f":"Import!M19471","v":0}]
[26,{"$f":"Import!M18872","v":"Select"},{"$f":"Import!M18972","v":"Select"},{"$f":"Import!M19072","v":"Select"},{"$f":"Import!M19172","v":"Select"},{"$f":"Import!M19272","v":0},{"$f":"Import!M19372","v":0},{"$f":"Import!M19472","v":0}]
[27,{"$f":"Import!M18873","v":"Select"},{"$f":"Import!M18973","v":"Select"},{"$f":"Import!M19073","v":"Select"},{"$f":"Import!M19173","v":"Select"},{"$f":"Import!M19273","v":0},{"$f":"Import!M19373","v":0},{"$f":"Import!M19473","v":0}]
[28,{"$f":"Import!M18874","v":"Select"},{"$f":"Import!M18974","v":"Select"},{"$f":"Import!M19074","v":"Select"},{"$f":"Import!M19174","v":"Select"},{"$f":"Import!M19274","v":0},{"$f":"Import!M19374","v":0},{"$f":"Import!M19474","v":0}]
[29,{"$f":"Import!M18875","v":"Select"},{"$f":"Import!M18975","v":"Select"},{"$f":"Import!M19075","v":"Select"},{"$f":"Import!M19175","v":"Select"},{"$f":"Import!M19275","v":0},{"$f":"Import!M19375","v":0},{"$f":"Import!M19475","v":0}]
[30,{"$f":"Import!M18876","v":"Select"},{"$f":"Import!M18976","v":"Select"},{"$f":"Import!M19076","v":"Select"},{"$f":"Import!M19176","v":"Select"},{"$f":"Import!M19276","v":0},{"$f":"Import!M19376","v":0},{"$f":"Import!M19476","v":0}]
[31,{"$f":"Import!M18877","v":"Select"},{"$f":"Import!M18977","v":"Select"},{"$f":"Import!M19077","v":"Select"},{"$f":"Import!M19177","v":"Select"},{"$f":"Import!M19277","v":0},{"$f":"Import!M19377","v":0},{"$f":"Import!M19477","v":0}]
[32,{"$f":"Import!M18878","v":"Select"},{"$f":"Import!M18978","v":"Select"},{"$f":"Import!M19078","v":"Select"},{"$f":"Import!M19178","v":"Select"},{"$f":"Import!M19278","v":0},{"$f":"Import!M19378","v":0},{"$f":"Import!M19478","v":0}]
[33,{"$f":"Import!M18879","v":"Select"},{"$f":"Import!M18979","v":"Select"},{"$f":"Import!M19079","v":"Select"},{"$f":"Import!M19179","v":"Select"},{"$f":"Import!M19279","v":0},{"$f":"Import!M19379","v":0},{"$f":"Import!M19479","v":0}]
[34,{"$f":"Import!M18880","v":"Select"},{"$f":"Import!M18980","v":"Select"},{"$f":"Import!M19080","v":"Select"},{"$f":"Import!M19180","v":"Select"},{"$f":"Import!M19280","v":0},{"$f":"Import!M19380","v":0},{"$f":"Import!M19480","v":0}]
[35,{"$f":"Import!M18881","v":"Select"},{"$f":"Import!M18981","v":"Select"},{"$f":"Import!M19081","v":"Select"},{"$f":"Import!M19181","v":"Select"},{"$f":"Import!M19281","v":0},{"$f":"Import!M19381","v":0},{"$f":"Import!M19481","v":0}]
[36,{"$f":"Import!M18882","v":"Select"},{"$f":"Import!M18982","v":"Select"},{"$f":"Import!M19082","v":"Select"},{"$f":"Import!M19182","v":"Select"},{"$f":"Import!M19282","v":0},{"$f":"Import!M19382","v":0},{"$f":"Import!M19482","v":0}]
[37,{"$f":"Import!M18883","v":"Select"},{"$f":"Import!M18983","v":"Select"},{"$f":"Import!M19083","v":"Select"},{"$f":"Import!M19183","v":"Select"},{"$f":"Import!M19283","v":0},{"$f":"Import!M19383","v":0},{"$f":"Import!M19483","v":0}]
[38,{"$f":"Import!M18884","v":"Select"},{"$f":"Import!M18984","v":"Select"},{"$f":"Import!M19084","v":"Select"},{"$f":"Import!M19184","v":"Select"},{"$f":"Import!M19284","v":0},{"$f":"Import!M19384","v":0},{"$f":"Import!M19484","v":0}]
[39,{"$f":"Import!M18885","v":"Select"},{"$f":"Import!M18985","v":"Select"},{"$f":"Import!M19085","v":"Select"},{"$f":"Import!M19185","v":"Select"},{"$f":"Import!M19285","v":0},{"$f":"Import!M19385","v":0},{"$f":"Import!M19485","v":0}]
[40,{"$f":"Import!M18886","v":"Select"},{"$f":"Import!M18986","v":"Select"},{"$f":"Import!M19086","v":"Select"},{"$f":"Import!M19186","v":"Select"},{"$f":"Import!M19286","v":0},{"$f":"Import!M19386","v":0},{"$f":"Import!M19486","v":0}]
[41,{"$f":"Import!M18887","v":"Select"},{"$f":"Import!M18987","v":"Select"},{"$f":"Import!M19087","v":"Select"},{"$f":"Import!M19187","v":"Select"},{"$f":"Import!M19287","v":0},{"$f":"Import!M19387","v":0},{"$f":"Import!M19487","v":0}]
[42,{"$f":"Import!M18888","v":"Select"},{"$f":"Import!M18988","v":"Select"},{"$f":"Import!M19088","v":"Select"},{"$f":"Import!M19188","v":"Select"},{"$f":"Import!M19288","v":0},{"$f":"Import!M19388","v":0},{"$f":"Import!M19488","v":0}]
[43,{"$f":"Import!M18889","v":"Select"},{"$f":"Import!M18989","v":"Select"},{"$f":"Import!M19089","v":"Select"},{"$f":"Import!M19189","v":"Select"},{"$f":"Import!M19289","v":0},{"$f":"Import!M19389","v":0},{"$f":"Import!M19489","v":0}]
[44,{"$f":"Import!M18890","v":"Select"},{"$f":"Import!M18990","v":"Select"},{"$f":"Import!M19090","v":"Select"},{"$f":"Import!M19190","v":"Select"},{"$f":"Import!M19290","v":0},{"$f":"Import!M19390","v":0},{"$f":"Import!M19490","v":0}]
[45,{"$f":"Import!M18891","v":"Select"},{"$f":"Import!M18991","v":"Select"},{"$f":"Import!M19091","v":"Select"},{"$f":"Import!M19191","v":"Select"},{"$f":"Import!M19291","v":0},{"$f":"Import!M19391","v":0},{"$f":"Import!M19491","v":0}]
[46,{"$f":"Import!M18892","v":"Select"},{"$f":"Import!M18992","v":"Select"},{"$f":"Import!M19092","v":"Select"},{"$f":"Import!M19192","v":"Select"},{"$f":"Import!M19292","v":0},{"$f":"Import!M19392","v":0},{"$f":"Import!M19492","v":0}]
[47,{"$f":"Import!M18893","v":"Select"},{"$f":"Import!M18993","v":"Select"},{"$f":"Import!M19093","v":"Select"},{"$f":"Import!M19193","v":"Select"},{"$f":"Import!M19293","v":0},{"$f":"Import!M19393","v":0},{"$f":"Import!M19493","v":0}]
[48,{"$f":"Import!M18894","v":"Select"},{"$f":"Import!M18994","v":"Select"},{"$f":"Import!M19094","v":"Select"},{"$f":"Import!M19194","v":"Select"},{"$f":"Import!M19294","v":0},{"$f":"Import!M19394","v":0},{"$f":"Import!M19494","v":0}]
[49,{"$f":"Import!M18895","v":"Select"},{"$f":"Import!M18995","v":"Select"},{"$f":"Import!M19095","v":"Select"},{"$f":"Import!M19195","v":"Select"},{"$f":"Import!M19295","v":0},{"$f":"Import!M19395","v":0},{"$f":"Import!M19495","v":0}]
[50,{"$f":"Import!M18896","v":"Select"},{"$f":"Import!M18996","v":"Select"},{"$f":"Import!M19096","v":"Select"},{"$f":"Import!M19196","v":"Select"},{"$f":"Import!M19296","v":0},{"$f":"Import!M19396","v":0},{"$f":"Import!M19496","v":0}]
[51,{"$f":"Import!M18897","v":"Select"},{"$f":"Import!M18997","v":"Select"},{"$f":"Import!M19097","v":"Select"},{"$f":"Import!M19197","v":"Select"},{"$f":"Import!M19297","v":0},{"$f":"Import!M19397","v":0},{"$f":"Import!M19497","v":0}]
[52,{"$f":"Import!M18898","v":"Select"},{"$f":"Import!M18998","v":"Select"},{"$f":"Import!M19098","v":"Select"},{"$f":"Import!M19198","v":"Select"},{"$f":"Import!M19298","v":0},{"$f":"Import!M19398","v":0},{"$f":"Import!M19498","v":0}]
[53,{"$f":"Import!M18899","v":"Select"},{"$f":"Import!M18999","v":"Select"},{"$f":"Import!M19099","v":"Select"},{"$f":"Import!M19199","v":"Select"},{"$f":"Import!M19299","v":0},{"$f":"Import!M19399","v":0},{"$f":"Import!M19499","v":0}]
[54,{"$f":"Import!M18900","v":"Select"},{"$f":"Import!M19000","v":"Select"},{"$f":"Import!M19100","v":"Select"},{"$f":"Import!M19200","v":"Select"},{"$f":"Import!M19300","v":0},{"$f":"Import!M19400","v":0},{"$f":"Import!M19500","v":0}]
[55,{"$f":"Import!M18901","v":"Select"},{"$f":"Import!M19001","v":"Select"},{"$f":"Import!M19101","v":"Select"},{"$f":"Import!M19201","v":"Select"},{"$f":"Import!M19301","v":0},{"$f":"Import!M19401","v":0},{"$f":"Import!M19501","v":0}]
[56,{"$f":"Import!M18902","v":"Select"},{"$f":"Import!M19002","v":"Select"},{"$f":"Import!M19102","v":"Select"},{"$f":"Import!M19202","v":"Select"},{"$f":"Import!M19302","v":0},{"$f":"Import!M19402","v":0},{"$f":"Import!M19502","v":0}]
[57,{"$f":"Import!M18903","v":"Select"},{"$f":"Import!M19003","v":"Select"},{"$f":"Import!M19103","v":"Select"},{"$f":"Import!M19203","v":"Select"},{"$f":"Import!M19303","v":0},{"$f":"Import!M19403","v":0},{"$f":"Import!M19503","v":0}]
[58,{"$f":"Import!M18904","v":"Select"},{"$f":"Import!M19004","v":"Select"},{"$f":"Import!M19104","v":"Select"},{"$f":"Import!M19204","v":"Select"},{"$f":"Import!M19304","v":0},{"$f":"Import!M19404","v":0},{"$f":"Import!M19504","v":0}]
[59,{"$f":"Import!M18905","v":"Select"},{"$f":"Import!M19005","v":"Select"},{"$f":"Import!M19105","v":"Select"},{"$f":"Import!M19205","v":"Select"},{"$f":"Import!M19305","v":0},{"$f":"Import!M19405","v":0},{"$f":"Import!M19505","v":0}]
[60,{"$f":"Import!M18906","v":"Select"},{"$f":"Import!M19006","v":"Select"},{"$f":"Import!M19106","v":"Select"},{"$f":"Import!M19206","v":"Select"},{"$f":"Import!M19306","v":0},{"$f":"Import!M19406","v":0},{"$f":"Import!M19506","v":0}]
[61,{"$f":"Import!M18907","v":"Select"},{"$f":"Import!M19007","v":"Select"},{"$f":"Import!M19107","v":"Select"},{"$f":"Import!M19207","v":"Select"},{"$f":"Import!M19307","v":0},{"$f":"Import!M19407","v":0},{"$f":"Import!M19507","v":0}]
[62,{"$f":"Import!M18908","v":"Select"},{"$f":"Import!M19008","v":"Select"},{"$f":"Import!M19108","v":"Select"},{"$f":"Import!M19208","v":"Select"},{"$f":"Import!M19308","v":0},{"$f":"Import!M19408","v":0},{"$f":"Import!M19508","v":0}]
[63,{"$f":"Import!M18909","v":"Select"},{"$f":"Import!M19009","v":"Select"},{"$f":"Import!M19109","v":"Select"},{"$f":"Import!M19209","v":"Select"},{"$f":"Import!M19309","v":0},{"$f":"Import!M19409","v":0},{"$f":"Import!M19509","v":0}]
[64,{"$f":"Import!M18910","v":"Select"},{"$f":"Import!M19010","v":"Select"},{"$f":"Import!M19110","v":"Select"},{"$f":"Import!M19210","v":"Select"},{"$f":"Import!M19310","v":0},{"$f":"Import!M19410","v":0},{"$f":"Import!M19510","v":0}]
[65,{"$f":"Import!M18911","v":"Select"},{"$f":"Import!M19011","v":"Select"},{"$f":"Import!M19111","v":"Select"},{"$f":"Import!M19211","v":"Select"},{"$f":"Import!M19311","v":0},{"$f":"Import!M19411","v":0},{"$f":"Import!M19511","v":0}]
[66,{"$f":"Import!M18912","v":"Select"},{"$f":"Import!M19012","v":"Select"},{"$f":"Import!M19112","v":"Select"},{"$f":"Import!M19212","v":"Select"},{"$f":"Import!M19312","v":0},{"$f":"Import!M19412","v":0},{"$f":"Import!M19512","v":0}]
[{"$f":"A1410+1","v":67},{"$f":"Import!M18913","v":"Select"},{"$f":"Import!M19013","v":"Select"},{"$f":"Import!M19113","v":"Select"},{"$f":"Import!M19213","v":"Select"},{"$f":"Import!M19313","v":0},{"$f":"Import!M19413","v":0},{"$f":"Import!M19513","v":0}]
[68,{"$f":"Import!M18914","v":"Select"},{"$f":"Import!M19014","v":"Select"},{"$f":"Import!M19114","v":"Select"},{"$f":"Import!M19214","v":"Select"},{"$f":"Import!M19314","v":0},{"$f":"Import!M19414","v":0},{"$f":"Import!M19514","v":0}]
[69,{"$f":"Import!M18915","v":"Select"},{"$f":"Import!M19015","v":"Select"},{"$f":"Import!M19115","v":"Select"},{"$f":"Import!M19215","v":"Select"},{"$f":"Import!M19315","v":0},{"$f":"Import!M19415","v":0},{"$f":"Import!M19515","v":0}]
[70,{"$f":"Import!M18916","v":"Select"},{"$f":"Import!M19016","v":"Select"},{"$f":"Import!M19116","v":"Select"},{"$f":"Import!M19216","v":"Select"},{"$f":"Import!M19316","v":0},{"$f":"Import!M19416","v":0},{"$f":"Import!M19516","v":0}]
[71,{"$f":"Import!M18917","v":"Select"},{"$f":"Import!M19017","v":"Select"},{"$f":"Import!M19117","v":"Select"},{"$f":"Import!M19217","v":"Select"},{"$f":"Import!M19317","v":0},{"$f":"Import!M19417","v":0},{"$f":"Import!M19517","v":0}]
[72,{"$f":"Import!M18918","v":"Select"},{"$f":"Import!M19018","v":"Select"},{"$f":"Import!M19118","v":"Select"},{"$f":"Import!M19218","v":"Select"},{"$f":"Import!M19318","v":0},{"$f":"Import!M19418","v":0},{"$f":"Import!M19518","v":0}]
[73,{"$f":"Import!M18919","v":"Select"},{"$f":"Import!M19019","v":"Select"},{"$f":"Import!M19119","v":"Select"},{"$f":"Import!M19219","v":"Select"},{"$f":"Import!M19319","v":0},{"$f":"Import!M19419","v":0},{"$f":"Import!M19519","v":0}]
[74,{"$f":"Import!M18920","v":"Select"},{"$f":"Import!M19020","v":"Select"},{"$f":"Import!M19120","v":"Select"},{"$f":"Import!M19220","v":"Select"},{"$f":"Import!M19320","v":0},{"$f":"Import!M19420","v":0},{"$f":"Import!M19520","v":0}]
[75,{"$f":"Import!M18921","v":"Select"},{"$f":"Import!M19021","v":"Select"},{"$f":"Import!M19121","v":"Select"},{"$f":"Import!M19221","v":"Select"},{"$f":"Import!M19321","v":0},{"$f":"Import!M19421","v":0},{"$f":"Import!M19521","v":0}]
[76,{"$f":"Import!M18922","v":"Select"},{"$f":"Import!M19022","v":"Select"},{"$f":"Import!M19122","v":"Select"},{"$f":"Import!M19222","v":"Select"},{"$f":"Import!M19322","v":0},{"$f":"Import!M19422","v":0},{"$f":"Import!M19522","v":0}]
[77,{"$f":"Import!M18923","v":"Select"},{"$f":"Import!M19023","v":"Select"},{"$f":"Import!M19123","v":"Select"},{"$f":"Import!M19223","v":"Select"},{"$f":"Import!M19323","v":0},{"$f":"Import!M19423","v":0},{"$f":"Import!M19523","v":0}]
[78,{"$f":"Import!M18924","v":"Select"},{"$f":"Import!M19024","v":"Select"},{"$f":"Import!M19124","v":"Select"},{"$f":"Import!M19224","v":"Select"},{"$f":"Import!M19324","v":0},{"$f":"Import!M19424","v":0},{"$f":"Import!M19524","v":0}]
[79,{"$f":"Import!M18925","v":"Select"},{"$f":"Import!M19025","v":"Select"},{"$f":"Import!M19125","v":"Select"},{"$f":"Import!M19225","v":"Select"},{"$f":"Import!M19325","v":0},{"$f":"Import!M19425","v":0},{"$f":"Import!M19525","v":0}]
[80,{"$f":"Import!M18926","v":"Select"},{"$f":"Import!M19026","v":"Select"},{"$f":"Import!M19126","v":"Select"},{"$f":"Import!M19226","v":"Select"},{"$f":"Import!M19326","v":0},{"$f":"Import!M19426","v":0},{"$f":"Import!M19526","v":0}]
[81,{"$f":"Import!M18927","v":"Select"},{"$f":"Import!M19027","v":"Select"},{"$f":"Import!M19127","v":"Select"},{"$f":"Import!M19227","v":"Select"},{"$f":"Import!M19327","v":0},{"$f":"Import!M19427","v":0},{"$f":"Import!M19527","v":0}]
[82,{"$f":"Import!M18928","v":"Select"},{"$f":"Import!M19028","v":"Select"},{"$f":"Import!M19128","v":"Select"},{"$f":"Import!M19228","v":"Select"},{"$f":"Import!M19328","v":0},{"$f":"Import!M19428","v":0},{"$f":"Import!M19528","v":0}]
[83,{"$f":"Import!M18929","v":"Select"},{"$f":"Import!M19029","v":"Select"},{"$f":"Import!M19129","v":"Select"},{"$f":"Import!M19229","v":"Select"},{"$f":"Import!M19329","v":0},{"$f":"Import!M19429","v":0},{"$f":"Import!M19529","v":0}]
[84,{"$f":"Import!M18930","v":"Select"},{"$f":"Import!M19030","v":"Select"},{"$f":"Import!M19130","v":"Select"},{"$f":"Import!M19230","v":"Select"},{"$f":"Import!M19330","v":0},{"$f":"Import!M19430","v":0},{"$f":"Import!M19530","v":0}]
[85,{"$f":"Import!M18931","v":"Select"},{"$f":"Import!M19031","v":"Select"},{"$f":"Import!M19131","v":"Select"},{"$f":"Import!M19231","v":"Select"},{"$f":"Import!M19331","v":0},{"$f":"Import!M19431","v":0},{"$f":"Import!M19531","v":0}]
[86,{"$f":"Import!M18932","v":"Select"},{"$f":"Import!M19032","v":"Select"},{"$f":"Import!M19132","v":"Select"},{"$f":"Import!M19232","v":"Select"},{"$f":"Import!M19332","v":0},{"$f":"Import!M19432","v":0},{"$f":"Import!M19532","v":0}]
[87,{"$f":"Import!M18933","v":"Select"},{"$f":"Import!M19033","v":"Select"},{"$f":"Import!M19133","v":"Select"},{"$f":"Import!M19233","v":"Select"},{"$f":"Import!M19333","v":0},{"$f":"Import!M19433","v":0},{"$f":"Import!M19533","v":0}]
[88,{"$f":"Import!M18934","v":"Select"},{"$f":"Import!M19034","v":"Select"},{"$f":"Import!M19134","v":"Select"},{"$f":"Import!M19234","v":"Select"},{"$f":"Import!M19334","v":0},{"$f":"Import!M19434","v":0},{"$f":"Import!M19534","v":0}]
[89,{"$f":"Import!M18935","v":"Select"},{"$f":"Import!M19035","v":"Select"},{"$f":"Import!M19135","v":"Select"},{"$f":"Import!M19235","v":"Select"},{"$f":"Import!M19335","v":0},{"$f":"Import!M19435","v":0},{"$f":"Import!M19535","v":0}]
[90,{"$f":"Import!M18936","v":"Select"},{"$f":"Import!M19036","v":"Select"},{"$f":"Import!M19136","v":"Select"},{"$f":"Import!M19236","v":"Select"},{"$f":"Import!M19336","v":0},{"$f":"Import!M19436","v":0},{"$f":"Import!M19536","v":0}]
[91,{"$f":"Import!M18937","v":"Select"},{"$f":"Import!M19037","v":"Select"},{"$f":"Import!M19137","v":"Select"},{"$f":"Import!M19237","v":"Select"},{"$f":"Import!M19337","v":0},{"$f":"Import!M19437","v":0},{"$f":"Import!M19537","v":0}]
[92,{"$f":"Import!M18938","v":"Select"},{"$f":"Import!M19038","v":"Select"},{"$f":"Import!M19138","v":"Select"},{"$f":"Import!M19238","v":"Select"},{"$f":"Import!M19338","v":0},{"$f":"Import!M19438","v":0},{"$f":"Import!M19538","v":0}]
[93,{"$f":"Import!M18939","v":"Select"},{"$f":"Import!M19039","v":"Select"},{"$f":"Import!M19139","v":"Select"},{"$f":"Import!M19239","v":"Select"},{"$f":"Import!M19339","v":0},{"$f":"Import!M19439","v":0},{"$f":"Import!M19539","v":0}]
[94,{"$f":"Import!M18940","v":"Select"},{"$f":"Import!M19040","v":"Select"},{"$f":"Import!M19140","v":"Select"},{"$f":"Import!M19240","v":"Select"},{"$f":"Import!M19340","v":0},{"$f":"Import!M19440","v":0},{"$f":"Import!M19540","v":0}]
[95,{"$f":"Import!M18941","v":"Select"},{"$f":"Import!M19041","v":"Select"},{"$f":"Import!M19141","v":"Select"},{"$f":"Import!M19241","v":"Select"},{"$f":"Import!M19341","v":0},{"$f":"Import!M19441","v":0},{"$f":"Import!M19541","v":0}]
[96,{"$f":"Import!M18942","v":"Select"},{"$f":"Import!M19042","v":"Select"},{"$f":"Import!M19142","v":"Select"},{"$f":"Import!M19242","v":"Select"},{"$f":"Import!M19342","v":0},{"$f":"Import!M19442","v":0},{"$f":"Import!M19542","v":0}]
[97,{"$f":"Import!M18943","v":"Select"},{"$f":"Import!M19043","v":"Select"},{"$f":"Import!M19143","v":"Select"},{"$f":"Import!M19243","v":"Select"},{"$f":"Import!M19343","v":0},{"$f":"Import!M19443","v":0},{"$f":"Import!M19543","v":0}]
[98,{"$f":"Import!M18944","v":"Select"},{"$f":"Import!M19044","v":"Select"},{"$f":"Import!M19144","v":"Select"},{"$f":"Import!M19244","v":"Select"},{"$f":"Import!M19344","v":0},{"$f":"Import!M19444","v":0},{"$f":"Import!M19544","v":0}]
[99,{"$f":"Import!M18945","v":"Select"},{"$f":"Import!M19045","v":"Select"},{"$f":"Import!M19145","v":"Select"},{"$f":"Import!M19245","v":"Select"},{"$f":"Import!M19345","v":0},{"$f":"Import!M19445","v":0},{"$f":"Import!M19545","v":0}]
[100,{"$f":"Import!M18946","v":"Select"},{"$f":"Import!M19046","v":"Select"},{"$f":"Import!M19146","v":"Select"},{"$f":"Import!M19246","v":"Select"},{"$f":"Import!M19346","v":0},{"$f":"Import!M19446","v":0},{"$f":"Import!M19546","v":0}]
[]
[null,"Total Real Estate",null,null,null,{"$f":"SUM(F1345:F1444)","v":0},{"$f":"SUM(G1345:G1444)","v":0}]
[]
[null,"(H) OTHER ALTERNATIVE INVESTMENTS"]
[]
[null,null,"Enter # of Asset Types",{"$f":"Import!M19547","v":0}]
[null,null,null,null,null,{"$f":"YEAR($C$3)","v":2023},2023,"Weighted"]
[null,"Asset Type","Currency","Country","BSCR Rating","Nominal Amount","Fair Value","Average YTM","Effective Duration","Comments"]
[1,{"$f":"Import!M19548","v":"Select"},{"$f":"Import!M19648","v":"Select"},{"$f":"Import!M19748","v":"Select"},{"$f":"Import!M19848","v":"Select"},{"$f":"Import!M19948","v":0},{"$f":"Import!M20048","v":0},{"$f":"Import!M20148","v":0},{"$f":"Import!M20248","v":0},{"$f":"Import!M20348","v":0}]
[{"$f":"A1453+1","v":2},{"$f":"Import!M19549","v":"Select"},{"$f":"Import!M19649","v":"Select"},{"$f":"Import!M19749","v":"Select"},{"$f":"Import!M19849","v":"Select"},{"$f":"Import!M19949","v":0},{"$f":"Import!M20049","v":0},{"$f":"Import!M20149","v":0},{"$f":"Import!M20249","v":0},{"$f":"Import!M20349","v":0}]
[{"$f":"A1454+1","v":3},{"$f":"Import!M19550","v":"Select"},{"$f":"Import!M19650","v":"Select"},{"$f":"Import!M19750","v":"Select"},{"$f":"Import!M19850","v":"Select"},{"$f":"Import!M19950","v":0},{"$f":"Import!M20050","v":0},{"$f":"Import!M20150","v":0},{"$f":"Import!M20250","v":0},{"$f":"Import!M20350","v":0}]
[4,{"$f":"Import!M19551","v":"Select"},{"$f":"Import!M19651","v":"Select"},{"$f":"Import!M19751","v":"Select"},{"$f":"Import!M19851","v":"Select"},{"$f":"Import!M19951","v":0},{"$f":"Import!M20051","v":0},{"$f":"Import!M20151","v":0},{"$f":"Import!M20251","v":0},{"$f":"Import!M20351","v":0}]
[5,{"$f":"Import!M19552","v":"Select"},{"$f":"Import!M19652","v":"Select"},{"$f":"Import!M19752","v":"Select"},{"$f":"Import!M19852","v":"Select"},{"$f":"Import!M19952","v":0},{"$f":"Import!M20052","v":0},{"$f":"Import!M20152","v":0},{"$f":"Import!M20252","v":0},{"$f":"Import!M20352","v":0}]
[6,{"$f":"Import!M19553","v":"Select"},{"$f":"Import!M19653","v":"Select"},{"$f":"Import!M19753","v":"Select"},{"$f":"Import!M19853","v":"Select"},{"$f":"Import!M19953","v":0},{"$f":"Import!M20053","v":0},{"$f":"Import!M20153","v":0},{"$f":"Import!M20253","v":0},{"$f":"Import!M20353","v":0}]
[7,{"$f":"Import!M19554","v":"Select"},{"$f":"Import!M19654","v":"Select"},{"$f":"Import!M19754","v":"Select"},{"$f":"Import!M19854","v":"Select"},{"$f":"Import!M19954","v":0},{"$f":"Import!M20054","v":0},{"$f":"Import!M20154","v":0},{"$f":"Import!M20254","v":0},{"$f":"Import!M20354","v":0}]
[8,{"$f":"Import!M19555","v":"Select"},{"$f":"Import!M19655","v":"Select"},{"$f":"Import!M19755","v":"Select"},{"$f":"Import!M19855","v":"Select"},{"$f":"Import!M19955","v":0},{"$f":"Import!M20055","v":0},{"$f":"Import!M20155","v":0},{"$f":"Import!M20255","v":0},{"$f":"Import!M20355","v":0}]
[9,{"$f":"Import!M19556","v":"Select"},{"$f":"Import!M19656","v":"Select"},{"$f":"Import!M19756","v":"Select"},{"$f":"Import!M19856","v":"Select"},{"$f":"Import!M19956","v":0},{"$f":"Import!M20056","v":0},{"$f":"Import!M20156","v":0},{"$f":"Import!M20256","v":0},{"$f":"Import!M20356","v":0}]
[10,{"$f":"Import!M19557","v":"Select"},{"$f":"Import!M19657","v":"Select"},{"$f":"Import!M19757","v":"Select"},{"$f":"Import!M19857","v":"Select"},{"$f":"Import!M19957","v":0},{"$f":"Import!M20057","v":0},{"$f":"Import!M20157","v":0},{"$f":"Import!M20257","v":0},{"$f":"Import!M20357","v":0}]
[11,{"$f":"Import!M19558","v":"Select"},{"$f":"Import!M19658","v":"Select"},{"$f":"Import!M19758","v":"Select"},{"$f":"Import!M19858","v":"Select"},{"$f":"Import!M19958","v":0},{"$f":"Import!M20058","v":0},{"$f":"Import!M20158","v":0},{"$f":"Import!M20258","v":0},{"$f":"Import!M20358","v":0}]
[12,{"$f":"Import!M19559","v":"Select"},{"$f":"Import!M19659","v":"Select"},{"$f":"Import!M19759","v":"Select"},{"$f":"Import!M19859","v":"Select"},{"$f":"Import!M19959","v":0},{"$f":"Import!M20059","v":0},{"$f":"Import!M20159","v":0},{"$f":"Import!M20259","v":0},{"$f":"Import!M20359","v":0}]
[13,{"$f":"Import!M19560","v":"Select"},{"$f":"Import!M19660","v":"Select"},{"$f":"Import!M19760","v":"Select"},{"$f":"Import!M19860","v":"Select"},{"$f":"Import!M19960","v":0},{"$f":"Import!M20060","v":0},{"$f":"Import!M20160","v":0},{"$f":"Import!M20260","v":0},{"$f":"Import!M20360","v":0}]
[14,{"$f":"Import!M19561","v":"Select"},{"$f":"Import!M19661","v":"Select"},{"$f":"Import!M19761","v":"Select"},{"$f":"Import!M19861","v":"Select"},{"$f":"Import!M19961","v":0},{"$f":"Import!M20061","v":0},{"$f":"Import!M20161","v":0},{"$f":"Import!M20261","v":0},{"$f":"Import!M20361","v":0}]
[15,{"$f":"Import!M19562","v":"Select"},{"$f":"Import!M19662","v":"Select"},{"$f":"Import!M19762","v":"Select"},{"$f":"Import!M19862","v":"Select"},{"$f":"Import!M19962","v":0},{"$f":"Import!M20062","v":0},{"$f":"Import!M20162","v":0},{"$f":"Import!M20262","v":0},{"$f":"Import!M20362","v":0}]
[16,{"$f":"Import!M19563","v":"Select"},{"$f":"Import!M19663","v":"Select"},{"$f":"Import!M19763","v":"Select"},{"$f":"Import!M19863","v":"Select"},{"$f":"Import!M19963","v":0},{"$f":"Import!M20063","v":0},{"$f":"Import!M20163","v":0},{"$f":"Import!M20263","v":0},{"$f":"Import!M20363","v":0}]
[17,{"$f":"Import!M19564","v":"Select"},{"$f":"Import!M19664","v":"Select"},{"$f":"Import!M19764","v":"Select"},{"$f":"Import!M19864","v":"Select"},{"$f":"Import!M19964","v":0},{"$f":"Import!M20064","v":0},{"$f":"Import!M20164","v":0},{"$f":"Import!M20264","v":0},{"$f":"Import!M20364","v":0}]
[18,{"$f":"Import!M19565","v":"Select"},{"$f":"Import!M19665","v":"Select"},{"$f":"Import!M19765","v":"Select"},{"$f":"Import!M19865","v":"Select"},{"$f":"Import!M19965","v":0},{"$f":"Import!M20065","v":0},{"$f":"Import!M20165","v":0},{"$f":"Import!M20265","v":0},{"$f":"Import!M20365","v":0}]
[19,{"$f":"Import!M19566","v":"Select"},{"$f":"Import!M19666","v":"Select"},{"$f":"Import!M19766","v":"Select"},{"$f":"Import!M19866","v":"Select"},{"$f":"Import!M19966","v":0},{"$f":"Import!M20066","v":0},{"$f":"Import!M20166","v":0},{"$f":"Import!M20266","v":0},{"$f":"Import!M20366","v":0}]
[20,{"$f":"Import!M19567","v":"Select"},{"$f":"Import!M19667","v":"Select"},{"$f":"Import!M19767","v":"Select"},{"$f":"Import!M19867","v":"Select"},{"$f":"Import!M19967","v":0},{"$f":"Import!M20067","v":0},{"$f":"Import!M20167","v":0},{"$f":"Import!M20267","v":0},{"$f":"Import!M20367","v":0}]
[21,{"$f":"Import!M19568","v":"Select"},{"$f":"Import!M19668","v":"Select"},{"$f":"Import!M19768","v":"Select"},{"$f":"Import!M19868","v":"Select"},{"$f":"Import!M19968","v":0},{"$f":"Import!M20068","v":0},{"$f":"Import!M20168","v":0},{"$f":"Import!M20268","v":0},{"$f":"Import!M20368","v":0}]
[22,{"$f":"Import!M19569","v":"Select"},{"$f":"Import!M19669","v":"Select"},{"$f":"Import!M19769","v":"Select"},{"$f":"Import!M19869","v":"Select"},{"$f":"Import!M19969","v":0},{"$f":"Import!M20069","v":0},{"$f":"Import!M20169","v":0},{"$f":"Import!M20269","v":0},{"$f":"Import!M20369","v":0}]
[23,{"$f":"Import!M19570","v":"Select"},{"$f":"Import!M19670","v":"Select"},{"$f":"Import!M19770","v":"Select"},{"$f":"Import!M19870","v":"Select"},{"$f":"Import!M19970","v":0},{"$f":"Import!M20070","v":0},{"$f":"Import!M20170","v":0},{"$f":"Import!M20270","v":0},{"$f":"Import!M20370","v":0}]
[24,{"$f":"Import!M19571","v":"Select"},{"$f":"Import!M19671","v":"Select"},{"$f":"Import!M19771","v":"Select"},{"$f":"Import!M19871","v":"Select"},{"$f":"Import!M19971","v":0},{"$f":"Import!M20071","v":0},{"$f":"Import!M20171","v":0},{"$f":"Import!M20271","v":0},{"$f":"Import!M20371","v":0}]
[25,{"$f":"Import!M19572","v":"Select"},{"$f":"Import!M19672","v":"Select"},{"$f":"Import!M19772","v":"Select"},{"$f":"Import!M19872","v":"Select"},{"$f":"Import!M19972","v":0},{"$f":"Import!M20072","v":0},{"$f":"Import!M20172","v":0},{"$f":"Import!M20272","v":0},{"$f":"Import!M20372","v":0}]
[26,{"$f":"Import!M19573","v":"Select"},{"$f":"Import!M19673","v":"Select"},{"$f":"Import!M19773","v":"Select"},{"$f":"Import!M19873","v":"Select"},{"$f":"Import!M19973","v":0},{"$f":"Import!M20073","v":0},{"$f":"Import!M20173","v":0},{"$f":"Import!M20273","v":0},{"$f":"Import!M20373","v":0}]
[27,{"$f":"Import!M19574","v":"Select"},{"$f":"Import!M19674","v":"Select"},{"$f":"Import!M19774","v":"Select"},{"$f":"Import!M19874","v":"Select"},{"$f":"Import!M19974","v":0},{"$f":"Import!M20074","v":0},{"$f":"Import!M20174","v":0},{"$f":"Import!M20274","v":0},{"$f":"Import!M20374","v":0}]
[28,{"$f":"Import!M19575","v":"Select"},{"$f":"Import!M19675","v":"Select"},{"$f":"Import!M19775","v":"Select"},{"$f":"Import!M19875","v":"Select"},{"$f":"Import!M19975","v":0},{"$f":"Import!M20075","v":0},{"$f":"Import!M20175","v":0},{"$f":"Import!M20275","v":0},{"$f":"Import!M20375","v":0}]
[29,{"$f":"Import!M19576","v":"Select"},{"$f":"Import!M19676","v":"Select"},{"$f":"Import!M19776","v":"Select"},{"$f":"Import!M19876","v":"Select"},{"$f":"Import!M19976","v":0},{"$f":"Import!M20076","v":0},{"$f":"Import!M20176","v":0},{"$f":"Import!M20276","v":0},{"$f":"Import!M20376","v":0}]
[30,{"$f":"Import!M19577","v":"Select"},{"$f":"Import!M19677","v":"Select"},{"$f":"Import!M19777","v":"Select"},{"$f":"Import!M19877","v":"Select"},{"$f":"Import!M19977","v":0},{"$f":"Import!M20077","v":0},{"$f":"Import!M20177","v":0},{"$f":"Import!M20277","v":0},{"$f":"Import!M20377","v":0}]
[31,{"$f":"Import!M19578","v":"Select"},{"$f":"Import!M19678","v":"Select"},{"$f":"Import!M19778","v":"Select"},{"$f":"Import!M19878","v":"Select"},{"$f":"Import!M19978","v":0},{"$f":"Import!M20078","v":0},{"$f":"Import!M20178","v":0},{"$f":"Import!M20278","v":0},{"$f":"Import!M20378","v":0}]
[32,{"$f":"Import!M19579","v":"Select"},{"$f":"Import!M19679","v":"Select"},{"$f":"Import!M19779","v":"Select"},{"$f":"Import!M19879","v":"Select"},{"$f":"Import!M19979","v":0},{"$f":"Import!M20079","v":0},{"$f":"Import!M20179","v":0},{"$f":"Import!M20279","v":0},{"$f":"Import!M20379","v":0}]
[33,{"$f":"Import!M19580","v":"Select"},{"$f":"Import!M19680","v":"Select"},{"$f":"Import!M19780","v":"Select"},{"$f":"Import!M19880","v":"Select"},{"$f":"Import!M19980","v":0},{"$f":"Import!M20080","v":0},{"$f":"Import!M20180","v":0},{"$f":"Import!M20280","v":0},{"$f":"Import!M20380","v":0}]
[34,{"$f":"Import!M19581","v":"Select"},{"$f":"Import!M19681","v":"Select"},{"$f":"Import!M19781","v":"Select"},{"$f":"Import!M19881","v":"Select"},{"$f":"Import!M19981","v":0},{"$f":"Import!M20081","v":0},{"$f":"Import!M20181","v":0},{"$f":"Import!M20281","v":0},{"$f":"Import!M20381","v":0}]
[35,{"$f":"Import!M19582","v":"Select"},{"$f":"Import!M19682","v":"Select"},{"$f":"Import!M19782","v":"Select"},{"$f":"Import!M19882","v":"Select"},{"$f":"Import!M19982","v":0},{"$f":"Import!M20082","v":0},{"$f":"Import!M20182","v":0},{"$f":"Import!M20282","v":0},{"$f":"Import!M20382","v":0}]
[36,{"$f":"Import!M19583","v":"Select"},{"$f":"Import!M19683","v":"Select"},{"$f":"Import!M19783","v":"Select"},{"$f":"Import!M19883","v":"Select"},{"$f":"Import!M19983","v":0},{"$f":"Import!M20083","v":0},{"$f":"Import!M20183","v":0},{"$f":"Import!M20283","v":0},{"$f":"Import!M20383","v":0}]
[37,{"$f":"Import!M19584","v":"Select"},{"$f":"Import!M19684","v":"Select"},{"$f":"Import!M19784","v":"Select"},{"$f":"Import!M19884","v":"Select"},{"$f":"Import!M19984","v":0},{"$f":"Import!M20084","v":0},{"$f":"Import!M20184","v":0},{"$f":"Import!M20284","v":0},{"$f":"Import!M20384","v":0}]
[38,{"$f":"Import!M19585","v":"Select"},{"$f":"Import!M19685","v":"Select"},{"$f":"Import!M19785","v":"Select"},{"$f":"Import!M19885","v":"Select"},{"$f":"Import!M19985","v":0},{"$f":"Import!M20085","v":0},{"$f":"Import!M20185","v":0},{"$f":"Import!M20285","v":0},{"$f":"Import!M20385","v":0}]
[39,{"$f":"Import!M19586","v":"Select"},{"$f":"Import!M19686","v":"Select"},{"$f":"Import!M19786","v":"Select"},{"$f":"Import!M19886","v":"Select"},{"$f":"Import!M19986","v":0},{"$f":"Import!M20086","v":0},{"$f":"Import!M20186","v":0},{"$f":"Import!M20286","v":0},{"$f":"Import!M20386","v":0}]
[40,{"$f":"Import!M19587","v":"Select"},{"$f":"Import!M19687","v":"Select"},{"$f":"Import!M19787","v":"Select"},{"$f":"Import!M19887","v":"Select"},{"$f":"Import!M19987","v":0},{"$f":"Import!M20087","v":0},{"$f":"Import!M20187","v":0},{"$f":"Import!M20287","v":0},{"$f":"Import!M20387","v":0}]
[41,{"$f":"Import!M19588","v":"Select"},{"$f":"Import!M19688","v":"Select"},{"$f":"Import!M19788","v":"Select"},{"$f":"Import!M19888","v":"Select"},{"$f":"Import!M19988","v":0},{"$f":"Import!M20088","v":0},{"$f":"Import!M20188","v":0},{"$f":"Import!M20288","v":0},{"$f":"Import!M20388","v":0}]
[42,{"$f":"Import!M19589","v":"Select"},{"$f":"Import!M19689","v":"Select"},{"$f":"Import!M19789","v":"Select"},{"$f":"Import!M19889","v":"Select"},{"$f":"Import!M19989","v":0},{"$f":"Import!M20089","v":0},{"$f":"Import!M20189","v":0},{"$f":"Import!M20289","v":0},{"$f":"Import!M20389","v":0}]
[43,{"$f":"Import!M19590","v":"Select"},{"$f":"Import!M19690","v":"Select"},{"$f":"Import!M19790","v":"Select"},{"$f":"Import!M19890","v":"Select"},{"$f":"Import!M19990","v":0},{"$f":"Import!M20090","v":0},{"$f":"Import!M20190","v":0},{"$f":"Import!M20290","v":0},{"$f":"Import!M20390","v":0}]
[44,{"$f":"Import!M19591","v":"Select"},{"$f":"Import!M19691","v":"Select"},{"$f":"Import!M19791","v":"Select"},{"$f":"Import!M19891","v":"Select"},{"$f":"Import!M19991","v":0},{"$f":"Import!M20091","v":0},{"$f":"Import!M20191","v":0},{"$f":"Import!M20291","v":0},{"$f":"Import!M20391","v":0}]
[45,{"$f":"Import!M19592","v":"Select"},{"$f":"Import!M19692","v":"Select"},{"$f":"Import!M19792","v":"Select"},{"$f":"Import!M19892","v":"Select"},{"$f":"Import!M19992","v":0},{"$f":"Import!M20092","v":0},{"$f":"Import!M20192","v":0},{"$f":"Import!M20292","v":0},{"$f":"Import!M20392","v":0}]
[46,{"$f":"Import!M19593","v":"Select"},{"$f":"Import!M19693","v":"Select"},{"$f":"Import!M19793","v":"Select"},{"$f":"Import!M19893","v":"Select"},{"$f":"Import!M19993","v":0},{"$f":"Import!M20093","v":0},{"$f":"Import!M20193","v":0},{"$f":"Import!M20293","v":0},{"$f":"Import!M20393","v":0}]
[47,{"$f":"Import!M19594","v":"Select"},{"$f":"Import!M19694","v":"Select"},{"$f":"Import!M19794","v":"Select"},{"$f":"Import!M19894","v":"Select"},{"$f":"Import!M19994","v":0},{"$f":"Import!M20094","v":0},{"$f":"Import!M20194","v":0},{"$f":"Import!M20294","v":0},{"$f":"Import!M20394","v":0}]
[48,{"$f":"Import!M19595","v":"Select"},{"$f":"Import!M19695","v":"Select"},{"$f":"Import!M19795","v":"Select"},{"$f":"Import!M19895","v":"Select"},{"$f":"Import!M19995","v":0},{"$f":"Import!M20095","v":0},{"$f":"Import!M20195","v":0},{"$f":"Import!M20295","v":0},{"$f":"Import!M20395","v":0}]
[49,{"$f":"Import!M19596","v":"Select"},{"$f":"Import!M19696","v":"Select"},{"$f":"Import!M19796","v":"Select"},{"$f":"Import!M19896","v":"Select"},{"$f":"Import!M19996","v":0},{"$f":"Import!M20096","v":0},{"$f":"Import!M20196","v":0},{"$f":"Import!M20296","v":0},{"$f":"Import!M20396","v":0}]
[50,{"$f":"Import!M19597","v":"Select"},{"$f":"Import!M19697","v":"Select"},{"$f":"Import!M19797","v":"Select"},{"$f":"Import!M19897","v":"Select"},{"$f":"Import!M19997","v":0},{"$f":"Import!M20097","v":0},{"$f":"Import!M20197","v":0},{"$f":"Import!M20297","v":0},{"$f":"Import!M20397","v":0}]
[51,{"$f":"Import!M19598","v":"Select"},{"$f":"Import!M19698","v":"Select"},{"$f":"Import!M19798","v":"Select"},{"$f":"Import!M19898","v":"Select"},{"$f":"Import!M19998","v":0},{"$f":"Import!M20098","v":0},{"$f":"Import!M20198","v":0},{"$f":"Import!M20298","v":0},{"$f":"Import!M20398","v":0}]
[52,{"$f":"Import!M19599","v":"Select"},{"$f":"Import!M19699","v":"Select"},{"$f":"Import!M19799","v":"Select"},{"$f":"Import!M19899","v":"Select"},{"$f":"Import!M19999","v":0},{"$f":"Import!M20099","v":0},{"$f":"Import!M20199","v":0},{"$f":"Import!M20299","v":0},{"$f":"Import!M20399","v":0}]
[53,{"$f":"Import!M19600","v":"Select"},{"$f":"Import!M19700","v":"Select"},{"$f":"Import!M19800","v":"Select"},{"$f":"Import!M19900","v":"Select"},{"$f":"Import!M20000","v":0},{"$f":"Import!M20100","v":0},{"$f":"Import!M20200","v":0},{"$f":"Import!M20300","v":0},{"$f":"Import!M20400","v":0}]
[54,{"$f":"Import!M19601","v":"Select"},{"$f":"Import!M19701","v":"Select"},{"$f":"Import!M19801","v":"Select"},{"$f":"Import!M19901","v":"Select"},{"$f":"Import!M20001","v":0},{"$f":"Import!M20101","v":0},{"$f":"Import!M20201","v":0},{"$f":"Import!M20301","v":0},{"$f":"Import!M20401","v":0}]
[55,{"$f":"Import!M19602","v":"Select"},{"$f":"Import!M19702","v":"Select"},{"$f":"Import!M19802","v":"Select"},{"$f":"Import!M19902","v":"Select"},{"$f":"Import!M20002","v":0},{"$f":"Import!M20102","v":0},{"$f":"Import!M20202","v":0},{"$f":"Import!M20302","v":0},{"$f":"Import!M20402","v":0}]
[56,{"$f":"Import!M19603","v":"Select"},{"$f":"Import!M19703","v":"Select"},{"$f":"Import!M19803","v":"Select"},{"$f":"Import!M19903","v":"Select"},{"$f":"Import!M20003","v":0},{"$f":"Import!M20103","v":0},{"$f":"Import!M20203","v":0},{"$f":"Import!M20303","v":0},{"$f":"Import!M20403","v":0}]
[57,{"$f":"Import!M19604","v":"Select"},{"$f":"Import!M19704","v":"Select"},{"$f":"Import!M19804","v":"Select"},{"$f":"Import!M19904","v":"Select"},{"$f":"Import!M20004","v":0},{"$f":"Import!M20104","v":0},{"$f":"Import!M20204","v":0},{"$f":"Import!M20304","v":0},{"$f":"Import!M20404","v":0}]
[58,{"$f":"Import!M19605","v":"Select"},{"$f":"Import!M19705","v":"Select"},{"$f":"Import!M19805","v":"Select"},{"$f":"Import!M19905","v":"Select"},{"$f":"Import!M20005","v":0},{"$f":"Import!M20105","v":0},{"$f":"Import!M20205","v":0},{"$f":"Import!M20305","v":0},{"$f":"Import!M20405","v":0}]
[59,{"$f":"Import!M19606","v":"Select"},{"$f":"Import!M19706","v":"Select"},{"$f":"Import!M19806","v":"Select"},{"$f":"Import!M19906","v":"Select"},{"$f":"Import!M20006","v":0},{"$f":"Import!M20106","v":0},{"$f":"Import!M20206","v":0},{"$f":"Import!M20306","v":0},{"$f":"Import!M20406","v":0}]
[60,{"$f":"Import!M19607","v":"Select"},{"$f":"Import!M19707","v":"Select"},{"$f":"Import!M19807","v":"Select"},{"$f":"Import!M19907","v":"Select"},{"$f":"Import!M20007","v":0},{"$f":"Import!M20107","v":0},{"$f":"Import!M20207","v":0},{"$f":"Import!M20307","v":0},{"$f":"Import!M20407","v":0}]
[61,{"$f":"Import!M19608","v":"Select"},{"$f":"Import!M19708","v":"Select"},{"$f":"Import!M19808","v":"Select"},{"$f":"Import!M19908","v":"Select"},{"$f":"Import!M20008","v":0},{"$f":"Import!M20108","v":0},{"$f":"Import!M20208","v":0},{"$f":"Import!M20308","v":0},{"$f":"Import!M20408","v":0}]
[62,{"$f":"Import!M19609","v":"Select"},{"$f":"Import!M19709","v":"Select"},{"$f":"Import!M19809","v":"Select"},{"$f":"Import!M19909","v":"Select"},{"$f":"Import!M20009","v":0},{"$f":"Import!M20109","v":0},{"$f":"Import!M20209","v":0},{"$f":"Import!M20309","v":0},{"$f":"Import!M20409","v":0}]
[63,{"$f":"Import!M19610","v":"Select"},{"$f":"Import!M19710","v":"Select"},{"$f":"Import!M19810","v":"Select"},{"$f":"Import!M19910","v":"Select"},{"$f":"Import!M20010","v":0},{"$f":"Import!M20110","v":0},{"$f":"Import!M20210","v":0},{"$f":"Import!M20310","v":0},{"$f":"Import!M20410","v":0}]
[64,{"$f":"Import!M19611","v":"Select"},{"$f":"Import!M19711","v":"Select"},{"$f":"Import!M19811","v":"Select"},{"$f":"Import!M19911","v":"Select"},{"$f":"Import!M20011","v":0},{"$f":"Import!M20111","v":0},{"$f":"Import!M20211","v":0},{"$f":"Import!M20311","v":0},{"$f":"Import!M20411","v":0}]
[65,{"$f":"Import!M19612","v":"Select"},{"$f":"Import!M19712","v":"Select"},{"$f":"Import!M19812","v":"Select"},{"$f":"Import!M19912","v":"Select"},{"$f":"Import!M20012","v":0},{"$f":"Import!M20112","v":0},{"$f":"Import!M20212","v":0},{"$f":"Import!M20312","v":0},{"$f":"Import!M20412","v":0}]
[66,{"$f":"Import!M19613","v":"Select"},{"$f":"Import!M19713","v":"Select"},{"$f":"Import!M19813","v":"Select"},{"$f":"Import!M19913","v":"Select"},{"$f":"Import!M20013","v":0},{"$f":"Import!M20113","v":0},{"$f":"Import!M20213","v":0},{"$f":"Import!M20313","v":0},{"$f":"Import!M20413","v":0}]
[{"$f":"A1518+1","v":67},{"$f":"Import!M19614","v":"Select"},{"$f":"Import!M19714","v":"Select"},{"$f":"Import!M19814","v":"Select"},{"$f":"Import!M19914","v":"Select"},{"$f":"Import!M20014","v":0},{"$f":"Import!M20114","v":0},{"$f":"Import!M20214","v":0},{"$f":"Import!M20314","v":0},{"$f":"Import!M20414","v":0}]
[68,{"$f":"Import!M19615","v":"Select"},{"$f":"Import!M19715","v":"Select"},{"$f":"Import!M19815","v":"Select"},{"$f":"Import!M19915","v":"Select"},{"$f":"Import!M20015","v":0},{"$f":"Import!M20115","v":0},{"$f":"Import!M20215","v":0},{"$f":"Import!M20315","v":0},{"$f":"Import!M20415","v":0}]
[69,{"$f":"Import!M19616","v":"Select"},{"$f":"Import!M19716","v":"Select"},{"$f":"Import!M19816","v":"Select"},{"$f":"Import!M19916","v":"Select"},{"$f":"Import!M20016","v":0},{"$f":"Import!M20116","v":0},{"$f":"Import!M20216","v":0},{"$f":"Import!M20316","v":0},{"$f":"Import!M20416","v":0}]
[70,{"$f":"Import!M19617","v":"Select"},{"$f":"Import!M19717","v":"Select"},{"$f":"Import!M19817","v":"Select"},{"$f":"Import!M19917","v":"Select"},{"$f":"Import!M20017","v":0},{"$f":"Import!M20117","v":0},{"$f":"Import!M20217","v":0},{"$f":"Import!M20317","v":0},{"$f":"Import!M20417","v":0}]
[71,{"$f":"Import!M19618","v":"Select"},{"$f":"Import!M19718","v":"Select"},{"$f":"Import!M19818","v":"Select"},{"$f":"Import!M19918","v":"Select"},{"$f":"Import!M20018","v":0},{"$f":"Import!M20118","v":0},{"$f":"Import!M20218","v":0},{"$f":"Import!M20318","v":0},{"$f":"Import!M20418","v":0}]
[72,{"$f":"Import!M19619","v":"Select"},{"$f":"Import!M19719","v":"Select"},{"$f":"Import!M19819","v":"Select"},{"$f":"Import!M19919","v":"Select"},{"$f":"Import!M20019","v":0},{"$f":"Import!M20119","v":0},{"$f":"Import!M20219","v":0},{"$f":"Import!M20319","v":0},{"$f":"Import!M20419","v":0}]
[73,{"$f":"Import!M19620","v":"Select"},{"$f":"Import!M19720","v":"Select"},{"$f":"Import!M19820","v":"Select"},{"$f":"Import!M19920","v":"Select"},{"$f":"Import!M20020","v":0},{"$f":"Import!M20120","v":0},{"$f":"Import!M20220","v":0},{"$f":"Import!M20320","v":0},{"$f":"Import!M20420","v":0}]
[74,{"$f":"Import!M19621","v":"Select"},{"$f":"Import!M19721","v":"Select"},{"$f":"Import!M19821","v":"Select"},{"$f":"Import!M19921","v":"Select"},{"$f":"Import!M20021","v":0},{"$f":"Import!M20121","v":0},{"$f":"Import!M20221","v":0},{"$f":"Import!M20321","v":0},{"$f":"Import!M20421","v":0}]
[75,{"$f":"Import!M19622","v":"Select"},{"$f":"Import!M19722","v":"Select"},{"$f":"Import!M19822","v":"Select"},{"$f":"Import!M19922","v":"Select"},{"$f":"Import!M20022","v":0},{"$f":"Import!M20122","v":0},{"$f":"Import!M20222","v":0},{"$f":"Import!M20322","v":0},{"$f":"Import!M20422","v":0}]
[76,{"$f":"Import!M19623","v":"Select"},{"$f":"Import!M19723","v":"Select"},{"$f":"Import!M19823","v":"Select"},{"$f":"Import!M19923","v":"Select"},{"$f":"Import!M20023","v":0},{"$f":"Import!M20123","v":0},{"$f":"Import!M20223","v":0},{"$f":"Import!M20323","v":0},{"$f":"Import!M20423","v":0}]
[77,{"$f":"Import!M19624","v":"Select"},{"$f":"Import!M19724","v":"Select"},{"$f":"Import!M19824","v":"Select"},{"$f":"Import!M19924","v":"Select"},{"$f":"Import!M20024","v":0},{"$f":"Import!M20124","v":0},{"$f":"Import!M20224","v":0},{"$f":"Import!M20324","v":0},{"$f":"Import!M20424","v":0}]
[78,{"$f":"Import!M19625","v":"Select"},{"$f":"Import!M19725","v":"Select"},{"$f":"Import!M19825","v":"Select"},{"$f":"Import!M19925","v":"Select"},{"$f":"Import!M20025","v":0},{"$f":"Import!M20125","v":0},{"$f":"Import!M20225","v":0},{"$f":"Import!M20325","v":0},{"$f":"Import!M20425","v":0}]
[79,{"$f":"Import!M19626","v":"Select"},{"$f":"Import!M19726","v":"Select"},{"$f":"Import!M19826","v":"Select"},{"$f":"Import!M19926","v":"Select"},{"$f":"Import!M20026","v":0},{"$f":"Import!M20126","v":0},{"$f":"Import!M20226","v":0},{"$f":"Import!M20326","v":0},{"$f":"Import!M20426","v":0}]
[80,{"$f":"Import!M19627","v":"Select"},{"$f":"Import!M19727","v":"Select"},{"$f":"Import!M19827","v":"Select"},{"$f":"Import!M19927","v":"Select"},{"$f":"Import!M20027","v":0},{"$f":"Import!M20127","v":0},{"$f":"Import!M20227","v":0},{"$f":"Import!M20327","v":0},{"$f":"Import!M20427","v":0}]
[81,{"$f":"Import!M19628","v":"Select"},{"$f":"Import!M19728","v":"Select"},{"$f":"Import!M19828","v":"Select"},{"$f":"Import!M19928","v":"Select"},{"$f":"Import!M20028","v":0},{"$f":"Import!M20128","v":0},{"$f":"Import!M20228","v":0},{"$f":"Import!M20328","v":0},{"$f":"Import!M20428","v":0}]
[82,{"$f":"Import!M19629","v":"Select"},{"$f":"Import!M19729","v":"Select"},{"$f":"Import!M19829","v":"Select"},{"$f":"Import!M19929","v":"Select"},{"$f":"Import!M20029","v":0},{"$f":"Import!M20129","v":0},{"$f":"Import!M20229","v":0},{"$f":"Import!M20329","v":0},{"$f":"Import!M20429","v":0}]
[83,{"$f":"Import!M19630","v":"Select"},{"$f":"Import!M19730","v":"Select"},{"$f":"Import!M19830","v":"Select"},{"$f":"Import!M19930","v":"Select"},{"$f":"Import!M20030","v":0},{"$f":"Import!M20130","v":0},{"$f":"Import!M20230","v":0},{"$f":"Import!M20330","v":0},{"$f":"Import!M20430","v":0}]
[84,{"$f":"Import!M19631","v":"Select"},{"$f":"Import!M19731","v":"Select"},{"$f":"Import!M19831","v":"Select"},{"$f":"Import!M19931","v":"Select"},{"$f":"Import!M20031","v":0},{"$f":"Import!M20131","v":0},{"$f":"Import!M20231","v":0},{"$f":"Import!M20331","v":0},{"$f":"Import!M20431","v":0}]
[85,{"$f":"Import!M19632","v":"Select"},{"$f":"Import!M19732","v":"Select"},{"$f":"Import!M19832","v":"Select"},{"$f":"Import!M19932","v":"Select"},{"$f":"Import!M20032","v":0},{"$f":"Import!M20132","v":0},{"$f":"Import!M20232","v":0},{"$f":"Import!M20332","v":0},{"$f":"Import!M20432","v":0}]
[86,{"$f":"Import!M19633","v":"Select"},{"$f":"Import!M19733","v":"Select"},{"$f":"Import!M19833","v":"Select"},{"$f":"Import!M19933","v":"Select"},{"$f":"Import!M20033","v":0},{"$f":"Import!M20133","v":0},{"$f":"Import!M20233","v":0},{"$f":"Import!M20333","v":0},{"$f":"Import!M20433","v":0}]
[87,{"$f":"Import!M19634","v":"Select"},{"$f":"Import!M19734","v":"Select"},{"$f":"Import!M19834","v":"Select"},{"$f":"Import!M19934","v":"Select"},{"$f":"Import!M20034","v":0},{"$f":"Import!M20134","v":0},{"$f":"Import!M20234","v":0},{"$f":"Import!M20334","v":0},{"$f":"Import!M20434","v":0}]
[88,{"$f":"Import!M19635","v":"Select"},{"$f":"Import!M19735","v":"Select"},{"$f":"Import!M19835","v":"Select"},{"$f":"Import!M19935","v":"Select"},{"$f":"Import!M20035","v":0},{"$f":"Import!M20135","v":0},{"$f":"Import!M20235","v":0},{"$f":"Import!M20335","v":0},{"$f":"Import!M20435","v":0}]
[89,{"$f":"Import!M19636","v":"Select"},{"$f":"Import!M19736","v":"Select"},{"$f":"Import!M19836","v":"Select"},{"$f":"Import!M19936","v":"Select"},{"$f":"Import!M20036","v":0},{"$f":"Import!M20136","v":0},{"$f":"Import!M20236","v":0},{"$f":"Import!M20336","v":0},{"$f":"Import!M20436","v":0}]
[90,{"$f":"Import!M19637","v":"Select"},{"$f":"Import!M19737","v":"Select"},{"$f":"Import!M19837","v":"Select"},{"$f":"Import!M19937","v":"Select"},{"$f":"Import!M20037","v":0},{"$f":"Import!M20137","v":0},{"$f":"Import!M20237","v":0},{"$f":"Import!M20337","v":0},{"$f":"Import!M20437","v":0}]
[91,{"$f":"Import!M19638","v":"Select"},{"$f":"Import!M19738","v":"Select"},{"$f":"Import!M19838","v":"Select"},{"$f":"Import!M19938","v":"Select"},{"$f":"Import!M20038","v":0},{"$f":"Import!M20138","v":0},{"$f":"Import!M20238","v":0},{"$f":"Import!M20338","v":0},{"$f":"Import!M20438","v":0}]
[92,{"$f":"Import!M19639","v":"Select"},{"$f":"Import!M19739","v":"Select"},{"$f":"Import!M19839","v":"Select"},{"$f":"Import!M19939","v":"Select"},{"$f":"Import!M20039","v":0},{"$f":"Import!M20139","v":0},{"$f":"Import!M20239","v":0},{"$f":"Import!M20339","v":0},{"$f":"Import!M20439","v":0}]
[93,{"$f":"Import!M19640","v":"Select"},{"$f":"Import!M19740","v":"Select"},{"$f":"Import!M19840","v":"Select"},{"$f":"Import!M19940","v":"Select"},{"$f":"Import!M20040","v":0},{"$f":"Import!M20140","v":0},{"$f":"Import!M20240","v":0},{"$f":"Import!M20340","v":0},{"$f":"Import!M20440","v":0}]
[94,{"$f":"Import!M19641","v":"Select"},{"$f":"Import!M19741","v":"Select"},{"$f":"Import!M19841","v":"Select"},{"$f":"Import!M19941","v":"Select"},{"$f":"Import!M20041","v":0},{"$f":"Import!M20141","v":0},{"$f":"Import!M20241","v":0},{"$f":"Import!M20341","v":0},{"$f":"Import!M20441","v":0}]
[95,{"$f":"Import!M19642","v":"Select"},{"$f":"Import!M19742","v":"Select"},{"$f":"Import!M19842","v":"Select"},{"$f":"Import!M19942","v":"Select"},{"$f":"Import!M20042","v":0},{"$f":"Import!M20142","v":0},{"$f":"Import!M20242","v":0},{"$f":"Import!M20342","v":0},{"$f":"Import!M20442","v":0}]
[96,{"$f":"Import!M19643","v":"Select"},{"$f":"Import!M19743","v":"Select"},{"$f":"Import!M19843","v":"Select"},{"$f":"Import!M19943","v":"Select"},{"$f":"Import!M20043","v":0},{"$f":"Import!M20143","v":0},{"$f":"Import!M20243","v":0},{"$f":"Import!M20343","v":0},{"$f":"Import!M20443","v":0}]
[97,{"$f":"Import!M19644","v":"Select"},{"$f":"Import!M19744","v":"Select"},{"$f":"Import!M19844","v":"Select"},{"$f":"Import!M19944","v":"Select"},{"$f":"Import!M20044","v":0},{"$f":"Import!M20144","v":0},{"$f":"Import!M20244","v":0},{"$f":"Import!M20344","v":0},{"$f":"Import!M20444","v":0}]
[98,{"$f":"Import!M19645","v":"Select"},{"$f":"Import!M19745","v":"Select"},{"$f":"Import!M19845","v":"Select"},{"$f":"Import!M19945","v":"Select"},{"$f":"Import!M20045","v":0},{"$f":"Import!M20145","v":0},{"$f":"Import!M20245","v":0},{"$f":"Import!M20345","v":0},{"$f":"Import!M20445","v":0}]
[99,{"$f":"Import!M19646","v":"Select"},{"$f":"Import!M19746","v":"Select"},{"$f":"Import!M19846","v":"Select"},{"$f":"Import!M19946","v":"Select"},{"$f":"Import!M20046","v":0},{"$f":"Import!M20146","v":0},{"$f":"Import!M20246","v":0},{"$f":"Import!M20346","v":0},{"$f":"Import!M20446","v":0}]
[100,{"$f":"Import!M19647","v":"Select"},{"$f":"Import!M19747","v":"Select"},{"$f":"Import!M19847","v":"Select"},{"$f":"Import!M19947","v":"Select"},{"$f":"Import!M20047","v":0},{"$f":"Import!M20147","v":0},{"$f":"Import!M20247","v":0},{"$f":"Import!M20347","v":0},{"$f":"Import!M20447","v":0}]
[]
[null,"Total Other Alternative Investments",null,null,null,{"$f":"SUM(F1453:F1552)","v":0},{"$f":"SUM(G1453:G1552)","v":0},{"$f":"IFERROR(SUMPRODUCT(H1453:H1552,$G1453:$G1552)/SUM($G1453:$G1552),0)","v":0},{"$f":"IFERROR(SUMPRODUCT(I1453:I1552,$G1453:$G1552)/SUM($G1453:$G1552),0)","v":0}]
[]
[null,"(I) DERIVATIVES"]
[]
[null,null,"Enter # of Derivative Types",{"$f":"Import!M20448","v":0}]
[null,"Derivative Type","Underlying","Currency","Trading Category","Purpose","Position","Confirm line contains only derivatives with:",{"$f":"YEAR($C$3)&\" \nMarket Value\"","v":"2023 \nMarket Value"},"Gross Notional Value","Net Notional Value","Exposure (Dollar Delta, DV01, CS01","Comments"]
[1,{"$f":"Import!M20449","v":"Select"},{"$f":"Import!M20649","v":"Select"},{"$f":"Import!M20849","v":"Select"},{"$f":"Import!M21049","v":"Select"},{"$f":"Import!M21249","v":"Select"},{"$f":"Import!M21449","v":"Select"},{"$f":"Import!M21649","v":"Select"},{"$f":"Import!M21849","v":0},{"$f":"Import!M22049","v":0},{"$f":"Import!M22249","v":0},{"$f":"Import!M22449","v":0},{"$f":"Import!M22649","v":0}]
[{"$f":"A1560+1","v":2},{"$f":"Import!M20450","v":"Select"},{"$f":"Import!M20650","v":"Select"},{"$f":"Import!M20850","v":"Select"},{"$f":"Import!M21050","v":"Select"},{"$f":"Import!M21250","v":"Select"},{"$f":"Import!M21450","v":"Select"},{"$f":"Import!M21650","v":"Select"},{"$f":"Import!M21850","v":0},{"$f":"Import!M22050","v":0},{"$f":"Import!M22250","v":0},{"$f":"Import!M22450","v":0},{"$f":"Import!M22650","v":0}]
[{"$f":"A1561+1","v":3},{"$f":"Import!M20451","v":"Select"},{"$f":"Import!M20651","v":"Select"},{"$f":"Import!M20851","v":"Select"},{"$f":"Import!M21051","v":"Select"},{"$f":"Import!M21251","v":"Select"},{"$f":"Import!M21451","v":"Select"},{"$f":"Import!M21651","v":"Select"},{"$f":"Import!M21851","v":0},{"$f":"Import!M22051","v":0},{"$f":"Import!M22251","v":0},{"$f":"Import!M22451","v":0},{"$f":"Import!M22651","v":0}]
[4,{"$f":"Import!M20452","v":"Select"},{"$f":"Import!M20652","v":"Select"},{"$f":"Import!M20852","v":"Select"},{"$f":"Import!M21052","v":"Select"},{"$f":"Import!M21252","v":"Select"},{"$f":"Import!M21452","v":"Select"},{"$f":"Import!M21652","v":"Select"},{"$f":"Import!M21852","v":0},{"$f":"Import!M22052","v":0},{"$f":"Import!M22252","v":0},{"$f":"Import!M22452","v":0},{"$f":"Import!M22652","v":0}]
[5,{"$f":"Import!M20453","v":"Select"},{"$f":"Import!M20653","v":"Select"},{"$f":"Import!M20853","v":"Select"},{"$f":"Import!M21053","v":"Select"},{"$f":"Import!M21253","v":"Select"},{"$f":"Import!M21453","v":"Select"},{"$f":"Import!M21653","v":"Select"},{"$f":"Import!M21853","v":0},{"$f":"Import!M22053","v":0},{"$f":"Import!M22253","v":0},{"$f":"Import!M22453","v":0},{"$f":"Import!M22653","v":0}]
[6,{"$f":"Import!M20454","v":"Select"},{"$f":"Import!M20654","v":"Select"},{"$f":"Import!M20854","v":"Select"},{"$f":"Import!M21054","v":"Select"},{"$f":"Import!M21254","v":"Select"},{"$f":"Import!M21454","v":"Select"},{"$f":"Import!M21654","v":"Select"},{"$f":"Import!M21854","v":0},{"$f":"Import!M22054","v":0},{"$f":"Import!M22254","v":0},{"$f":"Import!M22454","v":0},{"$f":"Import!M22654","v":0}]
[7,{"$f":"Import!M20455","v":"Select"},{"$f":"Import!M20655","v":"Select"},{"$f":"Import!M20855","v":"Select"},{"$f":"Import!M21055","v":"Select"},{"$f":"Import!M21255","v":"Select"},{"$f":"Import!M21455","v":"Select"},{"$f":"Import!M21655","v":"Select"},{"$f":"Import!M21855","v":0},{"$f":"Import!M22055","v":0},{"$f":"Import!M22255","v":0},{"$f":"Import!M22455","v":0},{"$f":"Import!M22655","v":0}]
[8,{"$f":"Import!M20456","v":"Select"},{"$f":"Import!M20656","v":"Select"},{"$f":"Import!M20856","v":"Select"},{"$f":"Import!M21056","v":"Select"},{"$f":"Import!M21256","v":"Select"},{"$f":"Import!M21456","v":"Select"},{"$f":"Import!M21656","v":"Select"},{"$f":"Import!M21856","v":0},{"$f":"Import!M22056","v":0},{"$f":"Import!M22256","v":0},{"$f":"Import!M22456","v":0},{"$f":"Import!M22656","v":0}]
[9,{"$f":"Import!M20457","v":"Select"},{"$f":"Import!M20657","v":"Select"},{"$f":"Import!M20857","v":"Select"},{"$f":"Import!M21057","v":"Select"},{"$f":"Import!M21257","v":"Select"},{"$f":"Import!M21457","v":"Select"},{"$f":"Import!M21657","v":"Select"},{"$f":"Import!M21857","v":0},{"$f":"Import!M22057","v":0},{"$f":"Import!M22257","v":0},{"$f":"Import!M22457","v":0},{"$f":"Import!M22657","v":0}]
[10,{"$f":"Import!M20458","v":"Select"},{"$f":"Import!M20658","v":"Select"},{"$f":"Import!M20858","v":"Select"},{"$f":"Import!M21058","v":"Select"},{"$f":"Import!M21258","v":"Select"},{"$f":"Import!M21458","v":"Select"},{"$f":"Import!M21658","v":"Select"},{"$f":"Import!M21858","v":0},{"$f":"Import!M22058","v":0},{"$f":"Import!M22258","v":0},{"$f":"Import!M22458","v":0},{"$f":"Import!M22658","v":0}]
[11,{"$f":"Import!M20459","v":"Select"},{"$f":"Import!M20659","v":"Select"},{"$f":"Import!M20859","v":"Select"},{"$f":"Import!M21059","v":"Select"},{"$f":"Import!M21259","v":"Select"},{"$f":"Import!M21459","v":"Select"},{"$f":"Import!M21659","v":"Select"},{"$f":"Import!M21859","v":0},{"$f":"Import!M22059","v":0},{"$f":"Import!M22259","v":0},{"$f":"Import!M22459","v":0},{"$f":"Import!M22659","v":0}]
[12,{"$f":"Import!M20460","v":"Select"},{"$f":"Import!M20660","v":"Select"},{"$f":"Import!M20860","v":"Select"},{"$f":"Import!M21060","v":"Select"},{"$f":"Import!M21260","v":"Select"},{"$f":"Import!M21460","v":"Select"},{"$f":"Import!M21660","v":"Select"},{"$f":"Import!M21860","v":0},{"$f":"Import!M22060","v":0},{"$f":"Import!M22260","v":0},{"$f":"Import!M22460","v":0},{"$f":"Import!M22660","v":0}]
[13,{"$f":"Import!M20461","v":"Select"},{"$f":"Import!M20661","v":"Select"},{"$f":"Import!M20861","v":"Select"},{"$f":"Import!M21061","v":"Select"},{"$f":"Import!M21261","v":"Select"},{"$f":"Import!M21461","v":"Select"},{"$f":"Import!M21661","v":"Select"},{"$f":"Import!M21861","v":0},{"$f":"Import!M22061","v":0},{"$f":"Import!M22261","v":0},{"$f":"Import!M22461","v":0},{"$f":"Import!M22661","v":0}]
[14,{"$f":"Import!M20462","v":"Select"},{"$f":"Import!M20662","v":"Select"},{"$f":"Import!M20862","v":"Select"},{"$f":"Import!M21062","v":"Select"},{"$f":"Import!M21262","v":"Select"},{"$f":"Import!M21462","v":"Select"},{"$f":"Import!M21662","v":"Select"},{"$f":"Import!M21862","v":0},{"$f":"Import!M22062","v":0},{"$f":"Import!M22262","v":0},{"$f":"Import!M22462","v":0},{"$f":"Import!M22662","v":0}]
[15,{"$f":"Import!M20463","v":"Select"},{"$f":"Import!M20663","v":"Select"},{"$f":"Import!M20863","v":"Select"},{"$f":"Import!M21063","v":"Select"},{"$f":"Import!M21263","v":"Select"},{"$f":"Import!M21463","v":"Select"},{"$f":"Import!M21663","v":"Select"},{"$f":"Import!M21863","v":0},{"$f":"Import!M22063","v":0},{"$f":"Import!M22263","v":0},{"$f":"Import!M22463","v":0},{"$f":"Import!M22663","v":0}]
[16,{"$f":"Import!M20464","v":"Select"},{"$f":"Import!M20664","v":"Select"},{"$f":"Import!M20864","v":"Select"},{"$f":"Import!M21064","v":"Select"},{"$f":"Import!M21264","v":"Select"},{"$f":"Import!M21464","v":"Select"},{"$f":"Import!M21664","v":"Select"},{"$f":"Import!M21864","v":0},{"$f":"Import!M22064","v":0},{"$f":"Import!M22264","v":0},{"$f":"Import!M22464","v":0},{"$f":"Import!M22664","v":0}]
[17,{"$f":"Import!M20465","v":"Select"},{"$f":"Import!M20665","v":"Select"},{"$f":"Import!M20865","v":"Select"},{"$f":"Import!M21065","v":"Select"},{"$f":"Import!M21265","v":"Select"},{"$f":"Import!M21465","v":"Select"},{"$f":"Import!M21665","v":"Select"},{"$f":"Import!M21865","v":0},{"$f":"Import!M22065","v":0},{"$f":"Import!M22265","v":0},{"$f":"Import!M22465","v":0},{"$f":"Import!M22665","v":0}]
[18,{"$f":"Import!M20466","v":"Select"},{"$f":"Import!M20666","v":"Select"},{"$f":"Import!M20866","v":"Select"},{"$f":"Import!M21066","v":"Select"},{"$f":"Import!M21266","v":"Select"},{"$f":"Import!M21466","v":"Select"},{"$f":"Import!M21666","v":"Select"},{"$f":"Import!M21866","v":0},{"$f":"Import!M22066","v":0},{"$f":"Import!M22266","v":0},{"$f":"Import!M22466","v":0},{"$f":"Import!M22666","v":0}]
[19,{"$f":"Import!M20467","v":"Select"},{"$f":"Import!M20667","v":"Select"},{"$f":"Import!M20867","v":"Select"},{"$f":"Import!M21067","v":"Select"},{"$f":"Import!M21267","v":"Select"},{"$f":"Import!M21467","v":"Select"},{"$f":"Import!M21667","v":"Select"},{"$f":"Import!M21867","v":0},{"$f":"Import!M22067","v":0},{"$f":"Import!M22267","v":0},{"$f":"Import!M22467","v":0},{"$f":"Import!M22667","v":0}]
[20,{"$f":"Import!M20468","v":"Select"},{"$f":"Import!M20668","v":"Select"},{"$f":"Import!M20868","v":"Select"},{"$f":"Import!M21068","v":"Select"},{"$f":"Import!M21268","v":"Select"},{"$f":"Import!M21468","v":"Select"},{"$f":"Import!M21668","v":"Select"},{"$f":"Import!M21868","v":0},{"$f":"Import!M22068","v":0},{"$f":"Import!M22268","v":0},{"$f":"Import!M22468","v":0},{"$f":"Import!M22668","v":0}]
[21,{"$f":"Import!M20469","v":"Select"},{"$f":"Import!M20669","v":"Select"},{"$f":"Import!M20869","v":"Select"},{"$f":"Import!M21069","v":"Select"},{"$f":"Import!M21269","v":"Select"},{"$f":"Import!M21469","v":"Select"},{"$f":"Import!M21669","v":"Select"},{"$f":"Import!M21869","v":0},{"$f":"Import!M22069","v":0},{"$f":"Import!M22269","v":0},{"$f":"Import!M22469","v":0},{"$f":"Import!M22669","v":0}]
[22,{"$f":"Import!M20470","v":"Select"},{"$f":"Import!M20670","v":"Select"},{"$f":"Import!M20870","v":"Select"},{"$f":"Import!M21070","v":"Select"},{"$f":"Import!M21270","v":"Select"},{"$f":"Import!M21470","v":"Select"},{"$f":"Import!M21670","v":"Select"},{"$f":"Import!M21870","v":0},{"$f":"Import!M22070","v":0},{"$f":"Import!M22270","v":0},{"$f":"Import!M22470","v":0},{"$f":"Import!M22670","v":0}]
[23,{"$f":"Import!M20471","v":"Select"},{"$f":"Import!M20671","v":"Select"},{"$f":"Import!M20871","v":"Select"},{"$f":"Import!M21071","v":"Select"},{"$f":"Import!M21271","v":"Select"},{"$f":"Import!M21471","v":"Select"},{"$f":"Import!M21671","v":"Select"},{"$f":"Import!M21871","v":0},{"$f":"Import!M22071","v":0},{"$f":"Import!M22271","v":0},{"$f":"Import!M22471","v":0},{"$f":"Import!M22671","v":0}]
[24,{"$f":"Import!M20472","v":"Select"},{"$f":"Import!M20672","v":"Select"},{"$f":"Import!M20872","v":"Select"},{"$f":"Import!M21072","v":"Select"},{"$f":"Import!M21272","v":"Select"},{"$f":"Import!M21472","v":"Select"},{"$f":"Import!M21672","v":"Select"},{"$f":"Import!M21872","v":0},{"$f":"Import!M22072","v":0},{"$f":"Import!M22272","v":0},{"$f":"Import!M22472","v":0},{"$f":"Import!M22672","v":0}]
[25,{"$f":"Import!M20473","v":"Select"},{"$f":"Import!M20673","v":"Select"},{"$f":"Import!M20873","v":"Select"},{"$f":"Import!M21073","v":"Select"},{"$f":"Import!M21273","v":"Select"},{"$f":"Import!M21473","v":"Select"},{"$f":"Import!M21673","v":"Select"},{"$f":"Import!M21873","v":0},{"$f":"Import!M22073","v":0},{"$f":"Import!M22273","v":0},{"$f":"Import!M22473","v":0},{"$f":"Import!M22673","v":0}]
[26,{"$f":"Import!M20474","v":"Select"},{"$f":"Import!M20674","v":"Select"},{"$f":"Import!M20874","v":"Select"},{"$f":"Import!M21074","v":"Select"},{"$f":"Import!M21274","v":"Select"},{"$f":"Import!M21474","v":"Select"},{"$f":"Import!M21674","v":"Select"},{"$f":"Import!M21874","v":0},{"$f":"Import!M22074","v":0},{"$f":"Import!M22274","v":0},{"$f":"Import!M22474","v":0},{"$f":"Import!M22674","v":0}]
[27,{"$f":"Import!M20475","v":"Select"},{"$f":"Import!M20675","v":"Select"},{"$f":"Import!M20875","v":"Select"},{"$f":"Import!M21075","v":"Select"},{"$f":"Import!M21275","v":"Select"},{"$f":"Import!M21475","v":"Select"},{"$f":"Import!M21675","v":"Select"},{"$f":"Import!M21875","v":0},{"$f":"Import!M22075","v":0},{"$f":"Import!M22275","v":0},{"$f":"Import!M22475","v":0},{"$f":"Import!M22675","v":0}]
[28,{"$f":"Import!M20476","v":"Select"},{"$f":"Import!M20676","v":"Select"},{"$f":"Import!M20876","v":"Select"},{"$f":"Import!M21076","v":"Select"},{"$f":"Import!M21276","v":"Select"},{"$f":"Import!M21476","v":"Select"},{"$f":"Import!M21676","v":"Select"},{"$f":"Import!M21876","v":0},{"$f":"Import!M22076","v":0},{"$f":"Import!M22276","v":0},{"$f":"Import!M22476","v":0},{"$f":"Import!M22676","v":0}]
[29,{"$f":"Import!M20477","v":"Select"},{"$f":"Import!M20677","v":"Select"},{"$f":"Import!M20877","v":"Select"},{"$f":"Import!M21077","v":"Select"},{"$f":"Import!M21277","v":"Select"},{"$f":"Import!M21477","v":"Select"},{"$f":"Import!M21677","v":"Select"},{"$f":"Import!M21877","v":0},{"$f":"Import!M22077","v":0},{"$f":"Import!M22277","v":0},{"$f":"Import!M22477","v":0},{"$f":"Import!M22677","v":0}]
[30,{"$f":"Import!M20478","v":"Select"},{"$f":"Import!M20678","v":"Select"},{"$f":"Import!M20878","v":"Select"},{"$f":"Import!M21078","v":"Select"},{"$f":"Import!M21278","v":"Select"},{"$f":"Import!M21478","v":"Select"},{"$f":"Import!M21678","v":"Select"},{"$f":"Import!M21878","v":0},{"$f":"Import!M22078","v":0},{"$f":"Import!M22278","v":0},{"$f":"Import!M22478","v":0},{"$f":"Import!M22678","v":0}]
[31,{"$f":"Import!M20479","v":"Select"},{"$f":"Import!M20679","v":"Select"},{"$f":"Import!M20879","v":"Select"},{"$f":"Import!M21079","v":"Select"},{"$f":"Import!M21279","v":"Select"},{"$f":"Import!M21479","v":"Select"},{"$f":"Import!M21679","v":"Select"},{"$f":"Import!M21879","v":0},{"$f":"Import!M22079","v":0},{"$f":"Import!M22279","v":0},{"$f":"Import!M22479","v":0},{"$f":"Import!M22679","v":0}]
[32,{"$f":"Import!M20480","v":"Select"},{"$f":"Import!M20680","v":"Select"},{"$f":"Import!M20880","v":"Select"},{"$f":"Import!M21080","v":"Select"},{"$f":"Import!M21280","v":"Select"},{"$f":"Import!M21480","v":"Select"},{"$f":"Import!M21680","v":"Select"},{"$f":"Import!M21880","v":0},{"$f":"Import!M22080","v":0},{"$f":"Import!M22280","v":0},{"$f":"Import!M22480","v":0},{"$f":"Import!M22680","v":0}]
[33,{"$f":"Import!M20481","v":"Select"},{"$f":"Import!M20681","v":"Select"},{"$f":"Import!M20881","v":"Select"},{"$f":"Import!M21081","v":"Select"},{"$f":"Import!M21281","v":"Select"},{"$f":"Import!M21481","v":"Select"},{"$f":"Import!M21681","v":"Select"},{"$f":"Import!M21881","v":0},{"$f":"Import!M22081","v":0},{"$f":"Import!M22281","v":0},{"$f":"Import!M22481","v":0},{"$f":"Import!M22681","v":0}]
[34,{"$f":"Import!M20482","v":"Select"},{"$f":"Import!M20682","v":"Select"},{"$f":"Import!M20882","v":"Select"},{"$f":"Import!M21082","v":"Select"},{"$f":"Import!M21282","v":"Select"},{"$f":"Import!M21482","v":"Select"},{"$f":"Import!M21682","v":"Select"},{"$f":"Import!M21882","v":0},{"$f":"Import!M22082","v":0},{"$f":"Import!M22282","v":0},{"$f":"Import!M22482","v":0},{"$f":"Import!M22682","v":0}]
[35,{"$f":"Import!M20483","v":"Select"},{"$f":"Import!M20683","v":"Select"},{"$f":"Import!M20883","v":"Select"},{"$f":"Import!M21083","v":"Select"},{"$f":"Import!M21283","v":"Select"},{"$f":"Import!M21483","v":"Select"},{"$f":"Import!M21683","v":"Select"},{"$f":"Import!M21883","v":0},{"$f":"Import!M22083","v":0},{"$f":"Import!M22283","v":0},{"$f":"Import!M22483","v":0},{"$f":"Import!M22683","v":0}]
[36,{"$f":"Import!M20484","v":"Select"},{"$f":"Import!M20684","v":"Select"},{"$f":"Import!M20884","v":"Select"},{"$f":"Import!M21084","v":"Select"},{"$f":"Import!M21284","v":"Select"},{"$f":"Import!M21484","v":"Select"},{"$f":"Import!M21684","v":"Select"},{"$f":"Import!M21884","v":0},{"$f":"Import!M22084","v":0},{"$f":"Import!M22284","v":0},{"$f":"Import!M22484","v":0},{"$f":"Import!M22684","v":0}]
[37,{"$f":"Import!M20485","v":"Select"},{"$f":"Import!M20685","v":"Select"},{"$f":"Import!M20885","v":"Select"},{"$f":"Import!M21085","v":"Select"},{"$f":"Import!M21285","v":"Select"},{"$f":"Import!M21485","v":"Select"},{"$f":"Import!M21685","v":"Select"},{"$f":"Import!M21885","v":0},{"$f":"Import!M22085","v":0},{"$f":"Import!M22285","v":0},{"$f":"Import!M22485","v":0},{"$f":"Import!M22685","v":0}]
[38,{"$f":"Import!M20486","v":"Select"},{"$f":"Import!M20686","v":"Select"},{"$f":"Import!M20886","v":"Select"},{"$f":"Import!M21086","v":"Select"},{"$f":"Import!M21286","v":"Select"},{"$f":"Import!M21486","v":"Select"},{"$f":"Import!M21686","v":"Select"},{"$f":"Import!M21886","v":0},{"$f":"Import!M22086","v":0},{"$f":"Import!M22286","v":0},{"$f":"Import!M22486","v":0},{"$f":"Import!M22686","v":0}]
[39,{"$f":"Import!M20487","v":"Select"},{"$f":"Import!M20687","v":"Select"},{"$f":"Import!M20887","v":"Select"},{"$f":"Import!M21087","v":"Select"},{"$f":"Import!M21287","v":"Select"},{"$f":"Import!M21487","v":"Select"},{"$f":"Import!M21687","v":"Select"},{"$f":"Import!M21887","v":0},{"$f":"Import!M22087","v":0},{"$f":"Import!M22287","v":0},{"$f":"Import!M22487","v":0},{"$f":"Import!M22687","v":0}]
[40,{"$f":"Import!M20488","v":"Select"},{"$f":"Import!M20688","v":"Select"},{"$f":"Import!M20888","v":"Select"},{"$f":"Import!M21088","v":"Select"},{"$f":"Import!M21288","v":"Select"},{"$f":"Import!M21488","v":"Select"},{"$f":"Import!M21688","v":"Select"},{"$f":"Import!M21888","v":0},{"$f":"Import!M22088","v":0},{"$f":"Import!M22288","v":0},{"$f":"Import!M22488","v":0},{"$f":"Import!M22688","v":0}]
[41,{"$f":"Import!M20489","v":"Select"},{"$f":"Import!M20689","v":"Select"},{"$f":"Import!M20889","v":"Select"},{"$f":"Import!M21089","v":"Select"},{"$f":"Import!M21289","v":"Select"},{"$f":"Import!M21489","v":"Select"},{"$f":"Import!M21689","v":"Select"},{"$f":"Import!M21889","v":0},{"$f":"Import!M22089","v":0},{"$f":"Import!M22289","v":0},{"$f":"Import!M22489","v":0},{"$f":"Import!M22689","v":0}]
[42,{"$f":"Import!M20490","v":"Select"},{"$f":"Import!M20690","v":"Select"},{"$f":"Import!M20890","v":"Select"},{"$f":"Import!M21090","v":"Select"},{"$f":"Import!M21290","v":"Select"},{"$f":"Import!M21490","v":"Select"},{"$f":"Import!M21690","v":"Select"},{"$f":"Import!M21890","v":0},{"$f":"Import!M22090","v":0},{"$f":"Import!M22290","v":0},{"$f":"Import!M22490","v":0},{"$f":"Import!M22690","v":0}]
[43,{"$f":"Import!M20491","v":"Select"},{"$f":"Import!M20691","v":"Select"},{"$f":"Import!M20891","v":"Select"},{"$f":"Import!M21091","v":"Select"},{"$f":"Import!M21291","v":"Select"},{"$f":"Import!M21491","v":"Select"},{"$f":"Import!M21691","v":"Select"},{"$f":"Import!M21891","v":0},{"$f":"Import!M22091","v":0},{"$f":"Import!M22291","v":0},{"$f":"Import!M22491","v":0},{"$f":"Import!M22691","v":0}]
[44,{"$f":"Import!M20492","v":"Select"},{"$f":"Import!M20692","v":"Select"},{"$f":"Import!M20892","v":"Select"},{"$f":"Import!M21092","v":"Select"},{"$f":"Import!M21292","v":"Select"},{"$f":"Import!M21492","v":"Select"},{"$f":"Import!M21692","v":"Select"},{"$f":"Import!M21892","v":0},{"$f":"Import!M22092","v":0},{"$f":"Import!M22292","v":0},{"$f":"Import!M22492","v":0},{"$f":"Import!M22692","v":0}]
[45,{"$f":"Import!M20493","v":"Select"},{"$f":"Import!M20693","v":"Select"},{"$f":"Import!M20893","v":"Select"},{"$f":"Import!M21093","v":"Select"},{"$f":"Import!M21293","v":"Select"},{"$f":"Import!M21493","v":"Select"},{"$f":"Import!M21693","v":"Select"},{"$f":"Import!M21893","v":0},{"$f":"Import!M22093","v":0},{"$f":"Import!M22293","v":0},{"$f":"Import!M22493","v":0},{"$f":"Import!M22693","v":0}]
[46,{"$f":"Import!M20494","v":"Select"},{"$f":"Import!M20694","v":"Select"},{"$f":"Import!M20894","v":"Select"},{"$f":"Import!M21094","v":"Select"},{"$f":"Import!M21294","v":"Select"},{"$f":"Import!M21494","v":"Select"},{"$f":"Import!M21694","v":"Select"},{"$f":"Import!M21894","v":0},{"$f":"Import!M22094","v":0},{"$f":"Import!M22294","v":0},{"$f":"Import!M22494","v":0},{"$f":"Import!M22694","v":0}]
[47,{"$f":"Import!M20495","v":"Select"},{"$f":"Import!M20695","v":"Select"},{"$f":"Import!M20895","v":"Select"},{"$f":"Import!M21095","v":"Select"},{"$f":"Import!M21295","v":"Select"},{"$f":"Import!M21495","v":"Select"},{"$f":"Import!M21695","v":"Select"},{"$f":"Import!M21895","v":0},{"$f":"Import!M22095","v":0},{"$f":"Import!M22295","v":0},{"$f":"Import!M22495","v":0},{"$f":"Import!M22695","v":0}]
[48,{"$f":"Import!M20496","v":"Select"},{"$f":"Import!M20696","v":"Select"},{"$f":"Import!M20896","v":"Select"},{"$f":"Import!M21096","v":"Select"},{"$f":"Import!M21296","v":"Select"},{"$f":"Import!M21496","v":"Select"},{"$f":"Import!M21696","v":"Select"},{"$f":"Import!M21896","v":0},{"$f":"Import!M22096","v":0},{"$f":"Import!M22296","v":0},{"$f":"Import!M22496","v":0},{"$f":"Import!M22696","v":0}]
[49,{"$f":"Import!M20497","v":"Select"},{"$f":"Import!M20697","v":"Select"},{"$f":"Import!M20897","v":"Select"},{"$f":"Import!M21097","v":"Select"},{"$f":"Import!M21297","v":"Select"},{"$f":"Import!M21497","v":"Select"},{"$f":"Import!M21697","v":"Select"},{"$f":"Import!M21897","v":0},{"$f":"Import!M22097","v":0},{"$f":"Import!M22297","v":0},{"$f":"Import!M22497","v":0},{"$f":"Import!M22697","v":0}]
[50,{"$f":"Import!M20498","v":"Select"},{"$f":"Import!M20698","v":"Select"},{"$f":"Import!M20898","v":"Select"},{"$f":"Import!M21098","v":"Select"},{"$f":"Import!M21298","v":"Select"},{"$f":"Import!M21498","v":"Select"},{"$f":"Import!M21698","v":"Select"},{"$f":"Import!M21898","v":0},{"$f":"Import!M22098","v":0},{"$f":"Import!M22298","v":0},{"$f":"Import!M22498","v":0},{"$f":"Import!M22698","v":0}]
[51,{"$f":"Import!M20499","v":"Select"},{"$f":"Import!M20699","v":"Select"},{"$f":"Import!M20899","v":"Select"},{"$f":"Import!M21099","v":"Select"},{"$f":"Import!M21299","v":"Select"},{"$f":"Import!M21499","v":"Select"},{"$f":"Import!M21699","v":"Select"},{"$f":"Import!M21899","v":0},{"$f":"Import!M22099","v":0},{"$f":"Import!M22299","v":0},{"$f":"Import!M22499","v":0},{"$f":"Import!M22699","v":0}]
[52,{"$f":"Import!M20500","v":"Select"},{"$f":"Import!M20700","v":"Select"},{"$f":"Import!M20900","v":"Select"},{"$f":"Import!M21100","v":"Select"},{"$f":"Import!M21300","v":"Select"},{"$f":"Import!M21500","v":"Select"},{"$f":"Import!M21700","v":"Select"},{"$f":"Import!M21900","v":0},{"$f":"Import!M22100","v":0},{"$f":"Import!M22300","v":0},{"$f":"Import!M22500","v":0},{"$f":"Import!M22700","v":0}]
[53,{"$f":"Import!M20501","v":"Select"},{"$f":"Import!M20701","v":"Select"},{"$f":"Import!M20901","v":"Select"},{"$f":"Import!M21101","v":"Select"},{"$f":"Import!M21301","v":"Select"},{"$f":"Import!M21501","v":"Select"},{"$f":"Import!M21701","v":"Select"},{"$f":"Import!M21901","v":0},{"$f":"Import!M22101","v":0},{"$f":"Import!M22301","v":0},{"$f":"Import!M22501","v":0},{"$f":"Import!M22701","v":0}]
[54,{"$f":"Import!M20502","v":"Select"},{"$f":"Import!M20702","v":"Select"},{"$f":"Import!M20902","v":"Select"},{"$f":"Import!M21102","v":"Select"},{"$f":"Import!M21302","v":"Select"},{"$f":"Import!M21502","v":"Select"},{"$f":"Import!M21702","v":"Select"},{"$f":"Import!M21902","v":0},{"$f":"Import!M22102","v":0},{"$f":"Import!M22302","v":0},{"$f":"Import!M22502","v":0},{"$f":"Import!M22702","v":0}]
[55,{"$f":"Import!M20503","v":"Select"},{"$f":"Import!M20703","v":"Select"},{"$f":"Import!M20903","v":"Select"},{"$f":"Import!M21103","v":"Select"},{"$f":"Import!M21303","v":"Select"},{"$f":"Import!M21503","v":"Select"},{"$f":"Import!M21703","v":"Select"},{"$f":"Import!M21903","v":0},{"$f":"Import!M22103","v":0},{"$f":"Import!M22303","v":0},{"$f":"Import!M22503","v":0},{"$f":"Import!M22703","v":0}]
[56,{"$f":"Import!M20504","v":"Select"},{"$f":"Import!M20704","v":"Select"},{"$f":"Import!M20904","v":"Select"},{"$f":"Import!M21104","v":"Select"},{"$f":"Import!M21304","v":"Select"},{"$f":"Import!M21504","v":"Select"},{"$f":"Import!M21704","v":"Select"},{"$f":"Import!M21904","v":0},{"$f":"Import!M22104","v":0},{"$f":"Import!M22304","v":0},{"$f":"Import!M22504","v":0},{"$f":"Import!M22704","v":0}]
[57,{"$f":"Import!M20505","v":"Select"},{"$f":"Import!M20705","v":"Select"},{"$f":"Import!M20905","v":"Select"},{"$f":"Import!M21105","v":"Select"},{"$f":"Import!M21305","v":"Select"},{"$f":"Import!M21505","v":"Select"},{"$f":"Import!M21705","v":"Select"},{"$f":"Import!M21905","v":0},{"$f":"Import!M22105","v":0},{"$f":"Import!M22305","v":0},{"$f":"Import!M22505","v":0},{"$f":"Import!M22705","v":0}]
[58,{"$f":"Import!M20506","v":"Select"},{"$f":"Import!M20706","v":"Select"},{"$f":"Import!M20906","v":"Select"},{"$f":"Import!M21106","v":"Select"},{"$f":"Import!M21306","v":"Select"},{"$f":"Import!M21506","v":"Select"},{"$f":"Import!M21706","v":"Select"},{"$f":"Import!M21906","v":0},{"$f":"Import!M22106","v":0},{"$f":"Import!M22306","v":0},{"$f":"Import!M22506","v":0},{"$f":"Import!M22706","v":0}]
[59,{"$f":"Import!M20507","v":"Select"},{"$f":"Import!M20707","v":"Select"},{"$f":"Import!M20907","v":"Select"},{"$f":"Import!M21107","v":"Select"},{"$f":"Import!M21307","v":"Select"},{"$f":"Import!M21507","v":"Select"},{"$f":"Import!M21707","v":"Select"},{"$f":"Import!M21907","v":0},{"$f":"Import!M22107","v":0},{"$f":"Import!M22307","v":0},{"$f":"Import!M22507","v":0},{"$f":"Import!M22707","v":0}]
[60,{"$f":"Import!M20508","v":"Select"},{"$f":"Import!M20708","v":"Select"},{"$f":"Import!M20908","v":"Select"},{"$f":"Import!M21108","v":"Select"},{"$f":"Import!M21308","v":"Select"},{"$f":"Import!M21508","v":"Select"},{"$f":"Import!M21708","v":"Select"},{"$f":"Import!M21908","v":0},{"$f":"Import!M22108","v":0},{"$f":"Import!M22308","v":0},{"$f":"Import!M22508","v":0},{"$f":"Import!M22708","v":0}]
[61,{"$f":"Import!M20509","v":"Select"},{"$f":"Import!M20709","v":"Select"},{"$f":"Import!M20909","v":"Select"},{"$f":"Import!M21109","v":"Select"},{"$f":"Import!M21309","v":"Select"},{"$f":"Import!M21509","v":"Select"},{"$f":"Import!M21709","v":"Select"},{"$f":"Import!M21909","v":0},{"$f":"Import!M22109","v":0},{"$f":"Import!M22309","v":0},{"$f":"Import!M22509","v":0},{"$f":"Import!M22709","v":0}]
[62,{"$f":"Import!M20510","v":"Select"},{"$f":"Import!M20710","v":"Select"},{"$f":"Import!M20910","v":"Select"},{"$f":"Import!M21110","v":"Select"},{"$f":"Import!M21310","v":"Select"},{"$f":"Import!M21510","v":"Select"},{"$f":"Import!M21710","v":"Select"},{"$f":"Import!M21910","v":0},{"$f":"Import!M22110","v":0},{"$f":"Import!M22310","v":0},{"$f":"Import!M22510","v":0},{"$f":"Import!M22710","v":0}]
[63,{"$f":"Import!M20511","v":"Select"},{"$f":"Import!M20711","v":"Select"},{"$f":"Import!M20911","v":"Select"},{"$f":"Import!M21111","v":"Select"},{"$f":"Import!M21311","v":"Select"},{"$f":"Import!M21511","v":"Select"},{"$f":"Import!M21711","v":"Select"},{"$f":"Import!M21911","v":0},{"$f":"Import!M22111","v":0},{"$f":"Import!M22311","v":0},{"$f":"Import!M22511","v":0},{"$f":"Import!M22711","v":0}]
[64,{"$f":"Import!M20512","v":"Select"},{"$f":"Import!M20712","v":"Select"},{"$f":"Import!M20912","v":"Select"},{"$f":"Import!M21112","v":"Select"},{"$f":"Import!M21312","v":"Select"},{"$f":"Import!M21512","v":"Select"},{"$f":"Import!M21712","v":"Select"},{"$f":"Import!M21912","v":0},{"$f":"Import!M22112","v":0},{"$f":"Import!M22312","v":0},{"$f":"Import!M22512","v":0},{"$f":"Import!M22712","v":0}]
[65,{"$f":"Import!M20513","v":"Select"},{"$f":"Import!M20713","v":"Select"},{"$f":"Import!M20913","v":"Select"},{"$f":"Import!M21113","v":"Select"},{"$f":"Import!M21313","v":"Select"},{"$f":"Import!M21513","v":"Select"},{"$f":"Import!M21713","v":"Select"},{"$f":"Import!M21913","v":0},{"$f":"Import!M22113","v":0},{"$f":"Import!M22313","v":0},{"$f":"Import!M22513","v":0},{"$f":"Import!M22713","v":0}]
[66,{"$f":"Import!M20514","v":"Select"},{"$f":"Import!M20714","v":"Select"},{"$f":"Import!M20914","v":"Select"},{"$f":"Import!M21114","v":"Select"},{"$f":"Import!M21314","v":"Select"},{"$f":"Import!M21514","v":"Select"},{"$f":"Import!M21714","v":"Select"},{"$f":"Import!M21914","v":0},{"$f":"Import!M22114","v":0},{"$f":"Import!M22314","v":0},{"$f":"Import!M22514","v":0},{"$f":"Import!M22714","v":0}]
[{"$f":"A1625+1","v":67},{"$f":"Import!M20515","v":"Select"},{"$f":"Import!M20715","v":"Select"},{"$f":"Import!M20915","v":"Select"},{"$f":"Import!M21115","v":"Select"},{"$f":"Import!M21315","v":"Select"},{"$f":"Import!M21515","v":"Select"},{"$f":"Import!M21715","v":"Select"},{"$f":"Import!M21915","v":0},{"$f":"Import!M22115","v":0},{"$f":"Import!M22315","v":0},{"$f":"Import!M22515","v":0},{"$f":"Import!M22715","v":0}]
[68,{"$f":"Import!M20516","v":"Select"},{"$f":"Import!M20716","v":"Select"},{"$f":"Import!M20916","v":"Select"},{"$f":"Import!M21116","v":"Select"},{"$f":"Import!M21316","v":"Select"},{"$f":"Import!M21516","v":"Select"},{"$f":"Import!M21716","v":"Select"},{"$f":"Import!M21916","v":0},{"$f":"Import!M22116","v":0},{"$f":"Import!M22316","v":0},{"$f":"Import!M22516","v":0},{"$f":"Import!M22716","v":0}]
[69,{"$f":"Import!M20517","v":"Select"},{"$f":"Import!M20717","v":"Select"},{"$f":"Import!M20917","v":"Select"},{"$f":"Import!M21117","v":"Select"},{"$f":"Import!M21317","v":"Select"},{"$f":"Import!M21517","v":"Select"},{"$f":"Import!M21717","v":"Select"},{"$f":"Import!M21917","v":0},{"$f":"Import!M22117","v":0},{"$f":"Import!M22317","v":0},{"$f":"Import!M22517","v":0},{"$f":"Import!M22717","v":0}]
[70,{"$f":"Import!M20518","v":"Select"},{"$f":"Import!M20718","v":"Select"},{"$f":"Import!M20918","v":"Select"},{"$f":"Import!M21118","v":"Select"},{"$f":"Import!M21318","v":"Select"},{"$f":"Import!M21518","v":"Select"},{"$f":"Import!M21718","v":"Select"},{"$f":"Import!M21918","v":0},{"$f":"Import!M22118","v":0},{"$f":"Import!M22318","v":0},{"$f":"Import!M22518","v":0},{"$f":"Import!M22718","v":0}]
[71,{"$f":"Import!M20519","v":"Select"},{"$f":"Import!M20719","v":"Select"},{"$f":"Import!M20919","v":"Select"},{"$f":"Import!M21119","v":"Select"},{"$f":"Import!M21319","v":"Select"},{"$f":"Import!M21519","v":"Select"},{"$f":"Import!M21719","v":"Select"},{"$f":"Import!M21919","v":0},{"$f":"Import!M22119","v":0},{"$f":"Import!M22319","v":0},{"$f":"Import!M22519","v":0},{"$f":"Import!M22719","v":0}]
[72,{"$f":"Import!M20520","v":"Select"},{"$f":"Import!M20720","v":"Select"},{"$f":"Import!M20920","v":"Select"},{"$f":"Import!M21120","v":"Select"},{"$f":"Import!M21320","v":"Select"},{"$f":"Import!M21520","v":"Select"},{"$f":"Import!M21720","v":"Select"},{"$f":"Import!M21920","v":0},{"$f":"Import!M22120","v":0},{"$f":"Import!M22320","v":0},{"$f":"Import!M22520","v":0},{"$f":"Import!M22720","v":0}]
[73,{"$f":"Import!M20521","v":"Select"},{"$f":"Import!M20721","v":"Select"},{"$f":"Import!M20921","v":"Select"},{"$f":"Import!M21121","v":"Select"},{"$f":"Import!M21321","v":"Select"},{"$f":"Import!M21521","v":"Select"},{"$f":"Import!M21721","v":"Select"},{"$f":"Import!M21921","v":0},{"$f":"Import!M22121","v":0},{"$f":"Import!M22321","v":0},{"$f":"Import!M22521","v":0},{"$f":"Import!M22721","v":0}]
[74,{"$f":"Import!M20522","v":"Select"},{"$f":"Import!M20722","v":"Select"},{"$f":"Import!M20922","v":"Select"},{"$f":"Import!M21122","v":"Select"},{"$f":"Import!M21322","v":"Select"},{"$f":"Import!M21522","v":"Select"},{"$f":"Import!M21722","v":"Select"},{"$f":"Import!M21922","v":0},{"$f":"Import!M22122","v":0},{"$f":"Import!M22322","v":0},{"$f":"Import!M22522","v":0},{"$f":"Import!M22722","v":0}]
[75,{"$f":"Import!M20523","v":"Select"},{"$f":"Import!M20723","v":"Select"},{"$f":"Import!M20923","v":"Select"},{"$f":"Import!M21123","v":"Select"},{"$f":"Import!M21323","v":"Select"},{"$f":"Import!M21523","v":"Select"},{"$f":"Import!M21723","v":"Select"},{"$f":"Import!M21923","v":0},{"$f":"Import!M22123","v":0},{"$f":"Import!M22323","v":0},{"$f":"Import!M22523","v":0},{"$f":"Import!M22723","v":0}]
[76,{"$f":"Import!M20524","v":"Select"},{"$f":"Import!M20724","v":"Select"},{"$f":"Import!M20924","v":"Select"},{"$f":"Import!M21124","v":"Select"},{"$f":"Import!M21324","v":"Select"},{"$f":"Import!M21524","v":"Select"},{"$f":"Import!M21724","v":"Select"},{"$f":"Import!M21924","v":0},{"$f":"Import!M22124","v":0},{"$f":"Import!M22324","v":0},{"$f":"Import!M22524","v":0},{"$f":"Import!M22724","v":0}]
[77,{"$f":"Import!M20525","v":"Select"},{"$f":"Import!M20725","v":"Select"},{"$f":"Import!M20925","v":"Select"},{"$f":"Import!M21125","v":"Select"},{"$f":"Import!M21325","v":"Select"},{"$f":"Import!M21525","v":"Select"},{"$f":"Import!M21725","v":"Select"},{"$f":"Import!M21925","v":0},{"$f":"Import!M22125","v":0},{"$f":"Import!M22325","v":0},{"$f":"Import!M22525","v":0},{"$f":"Import!M22725","v":0}]
[78,{"$f":"Import!M20526","v":"Select"},{"$f":"Import!M20726","v":"Select"},{"$f":"Import!M20926","v":"Select"},{"$f":"Import!M21126","v":"Select"},{"$f":"Import!M21326","v":"Select"},{"$f":"Import!M21526","v":"Select"},{"$f":"Import!M21726","v":"Select"},{"$f":"Import!M21926","v":0},{"$f":"Import!M22126","v":0},{"$f":"Import!M22326","v":0},{"$f":"Import!M22526","v":0},{"$f":"Import!M22726","v":0}]
[79,{"$f":"Import!M20527","v":"Select"},{"$f":"Import!M20727","v":"Select"},{"$f":"Import!M20927","v":"Select"},{"$f":"Import!M21127","v":"Select"},{"$f":"Import!M21327","v":"Select"},{"$f":"Import!M21527","v":"Select"},{"$f":"Import!M21727","v":"Select"},{"$f":"Import!M21927","v":0},{"$f":"Import!M22127","v":0},{"$f":"Import!M22327","v":0},{"$f":"Import!M22527","v":0},{"$f":"Import!M22727","v":0}]
[80,{"$f":"Import!M20528","v":"Select"},{"$f":"Import!M20728","v":"Select"},{"$f":"Import!M20928","v":"Select"},{"$f":"Import!M21128","v":"Select"},{"$f":"Import!M21328","v":"Select"},{"$f":"Import!M21528","v":"Select"},{"$f":"Import!M21728","v":"Select"},{"$f":"Import!M21928","v":0},{"$f":"Import!M22128","v":0},{"$f":"Import!M22328","v":0},{"$f":"Import!M22528","v":0},{"$f":"Import!M22728","v":0}]
[81,{"$f":"Import!M20529","v":"Select"},{"$f":"Import!M20729","v":"Select"},{"$f":"Import!M20929","v":"Select"},{"$f":"Import!M21129","v":"Select"},{"$f":"Import!M21329","v":"Select"},{"$f":"Import!M21529","v":"Select"},{"$f":"Import!M21729","v":"Select"},{"$f":"Import!M21929","v":0},{"$f":"Import!M22129","v":0},{"$f":"Import!M22329","v":0},{"$f":"Import!M22529","v":0},{"$f":"Import!M22729","v":0}]
[82,{"$f":"Import!M20530","v":"Select"},{"$f":"Import!M20730","v":"Select"},{"$f":"Import!M20930","v":"Select"},{"$f":"Import!M21130","v":"Select"},{"$f":"Import!M21330","v":"Select"},{"$f":"Import!M21530","v":"Select"},{"$f":"Import!M21730","v":"Select"},{"$f":"Import!M21930","v":0},{"$f":"Import!M22130","v":0},{"$f":"Import!M22330","v":0},{"$f":"Import!M22530","v":0},{"$f":"Import!M22730","v":0}]
[83,{"$f":"Import!M20531","v":"Select"},{"$f":"Import!M20731","v":"Select"},{"$f":"Import!M20931","v":"Select"},{"$f":"Import!M21131","v":"Select"},{"$f":"Import!M21331","v":"Select"},{"$f":"Import!M21531","v":"Select"},{"$f":"Import!M21731","v":"Select"},{"$f":"Import!M21931","v":0},{"$f":"Import!M22131","v":0},{"$f":"Import!M22331","v":0},{"$f":"Import!M22531","v":0},{"$f":"Import!M22731","v":0}]
[84,{"$f":"Import!M20532","v":"Select"},{"$f":"Import!M20732","v":"Select"},{"$f":"Import!M20932","v":"Select"},{"$f":"Import!M21132","v":"Select"},{"$f":"Import!M21332","v":"Select"},{"$f":"Import!M21532","v":"Select"},{"$f":"Import!M21732","v":"Select"},{"$f":"Import!M21932","v":0},{"$f":"Import!M22132","v":0},{"$f":"Import!M22332","v":0},{"$f":"Import!M22532","v":0},{"$f":"Import!M22732","v":0}]
[85,{"$f":"Import!M20533","v":"Select"},{"$f":"Import!M20733","v":"Select"},{"$f":"Import!M20933","v":"Select"},{"$f":"Import!M21133","v":"Select"},{"$f":"Import!M21333","v":"Select"},{"$f":"Import!M21533","v":"Select"},{"$f":"Import!M21733","v":"Select"},{"$f":"Import!M21933","v":0},{"$f":"Import!M22133","v":0},{"$f":"Import!M22333","v":0},{"$f":"Import!M22533","v":0},{"$f":"Import!M22733","v":0}]
[86,{"$f":"Import!M20534","v":"Select"},{"$f":"Import!M20734","v":"Select"},{"$f":"Import!M20934","v":"Select"},{"$f":"Import!M21134","v":"Select"},{"$f":"Import!M21334","v":"Select"},{"$f":"Import!M21534","v":"Select"},{"$f":"Import!M21734","v":"Select"},{"$f":"Import!M21934","v":0},{"$f":"Import!M22134","v":0},{"$f":"Import!M22334","v":0},{"$f":"Import!M22534","v":0},{"$f":"Import!M22734","v":0}]
[87,{"$f":"Import!M20535","v":"Select"},{"$f":"Import!M20735","v":"Select"},{"$f":"Import!M20935","v":"Select"},{"$f":"Import!M21135","v":"Select"},{"$f":"Import!M21335","v":"Select"},{"$f":"Import!M21535","v":"Select"},{"$f":"Import!M21735","v":"Select"},{"$f":"Import!M21935","v":0},{"$f":"Import!M22135","v":0},{"$f":"Import!M22335","v":0},{"$f":"Import!M22535","v":0},{"$f":"Import!M22735","v":0}]
[88,{"$f":"Import!M20536","v":"Select"},{"$f":"Import!M20736","v":"Select"},{"$f":"Import!M20936","v":"Select"},{"$f":"Import!M21136","v":"Select"},{"$f":"Import!M21336","v":"Select"},{"$f":"Import!M21536","v":"Select"},{"$f":"Import!M21736","v":"Select"},{"$f":"Import!M21936","v":0},{"$f":"Import!M22136","v":0},{"$f":"Import!M22336","v":0},{"$f":"Import!M22536","v":0},{"$f":"Import!M22736","v":0}]
[89,{"$f":"Import!M20537","v":"Select"},{"$f":"Import!M20737","v":"Select"},{"$f":"Import!M20937","v":"Select"},{"$f":"Import!M21137","v":"Select"},{"$f":"Import!M21337","v":"Select"},{"$f":"Import!M21537","v":"Select"},{"$f":"Import!M21737","v":"Select"},{"$f":"Import!M21937","v":0},{"$f":"Import!M22137","v":0},{"$f":"Import!M22337","v":0},{"$f":"Import!M22537","v":0},{"$f":"Import!M22737","v":0}]
[90,{"$f":"Import!M20538","v":"Select"},{"$f":"Import!M20738","v":"Select"},{"$f":"Import!M20938","v":"Select"},{"$f":"Import!M21138","v":"Select"},{"$f":"Import!M21338","v":"Select"},{"$f":"Import!M21538","v":"Select"},{"$f":"Import!M21738","v":"Select"},{"$f":"Import!M21938","v":0},{"$f":"Import!M22138","v":0},{"$f":"Import!M22338","v":0},{"$f":"Import!M22538","v":0},{"$f":"Import!M22738","v":0}]
[91,{"$f":"Import!M20539","v":"Select"},{"$f":"Import!M20739","v":"Select"},{"$f":"Import!M20939","v":"Select"},{"$f":"Import!M21139","v":"Select"},{"$f":"Import!M21339","v":"Select"},{"$f":"Import!M21539","v":"Select"},{"$f":"Import!M21739","v":"Select"},{"$f":"Import!M21939","v":0},{"$f":"Import!M22139","v":0},{"$f":"Import!M22339","v":0},{"$f":"Import!M22539","v":0},{"$f":"Import!M22739","v":0}]
[92,{"$f":"Import!M20540","v":"Select"},{"$f":"Import!M20740","v":"Select"},{"$f":"Import!M20940","v":"Select"},{"$f":"Import!M21140","v":"Select"},{"$f":"Import!M21340","v":"Select"},{"$f":"Import!M21540","v":"Select"},{"$f":"Import!M21740","v":"Select"},{"$f":"Import!M21940","v":0},{"$f":"Import!M22140","v":0},{"$f":"Import!M22340","v":0},{"$f":"Import!M22540","v":0},{"$f":"Import!M22740","v":0}]
[93,{"$f":"Import!M20541","v":"Select"},{"$f":"Import!M20741","v":"Select"},{"$f":"Import!M20941","v":"Select"},{"$f":"Import!M21141","v":"Select"},{"$f":"Import!M21341","v":"Select"},{"$f":"Import!M21541","v":"Select"},{"$f":"Import!M21741","v":"Select"},{"$f":"Import!M21941","v":0},{"$f":"Import!M22141","v":0},{"$f":"Import!M22341","v":0},{"$f":"Import!M22541","v":0},{"$f":"Import!M22741","v":0}]
[94,{"$f":"Import!M20542","v":"Select"},{"$f":"Import!M20742","v":"Select"},{"$f":"Import!M20942","v":"Select"},{"$f":"Import!M21142","v":"Select"},{"$f":"Import!M21342","v":"Select"},{"$f":"Import!M21542","v":"Select"},{"$f":"Import!M21742","v":"Select"},{"$f":"Import!M21942","v":0},{"$f":"Import!M22142","v":0},{"$f":"Import!M22342","v":0},{"$f":"Import!M22542","v":0},{"$f":"Import!M22742","v":0}]
[95,{"$f":"Import!M20543","v":"Select"},{"$f":"Import!M20743","v":"Select"},{"$f":"Import!M20943","v":"Select"},{"$f":"Import!M21143","v":"Select"},{"$f":"Import!M21343","v":"Select"},{"$f":"Import!M21543","v":"Select"},{"$f":"Import!M21743","v":"Select"},{"$f":"Import!M21943","v":0},{"$f":"Import!M22143","v":0},{"$f":"Import!M22343","v":0},{"$f":"Import!M22543","v":0},{"$f":"Import!M22743","v":0}]
[96,{"$f":"Import!M20544","v":"Select"},{"$f":"Import!M20744","v":"Select"},{"$f":"Import!M20944","v":"Select"},{"$f":"Import!M21144","v":"Select"},{"$f":"Import!M21344","v":"Select"},{"$f":"Import!M21544","v":"Select"},{"$f":"Import!M21744","v":"Select"},{"$f":"Import!M21944","v":0},{"$f":"Import!M22144","v":0},{"$f":"Import!M22344","v":0},{"$f":"Import!M22544","v":0},{"$f":"Import!M22744","v":0}]
[97,{"$f":"Import!M20545","v":"Select"},{"$f":"Import!M20745","v":"Select"},{"$f":"Import!M20945","v":"Select"},{"$f":"Import!M21145","v":"Select"},{"$f":"Import!M21345","v":"Select"},{"$f":"Import!M21545","v":"Select"},{"$f":"Import!M21745","v":"Select"},{"$f":"Import!M21945","v":0},{"$f":"Import!M22145","v":0},{"$f":"Import!M22345","v":0},{"$f":"Import!M22545","v":0},{"$f":"Import!M22745","v":0}]
[98,{"$f":"Import!M20546","v":"Select"},{"$f":"Import!M20746","v":"Select"},{"$f":"Import!M20946","v":"Select"},{"$f":"Import!M21146","v":"Select"},{"$f":"Import!M21346","v":"Select"},{"$f":"Import!M21546","v":"Select"},{"$f":"Import!M21746","v":"Select"},{"$f":"Import!M21946","v":0},{"$f":"Import!M22146","v":0},{"$f":"Import!M22346","v":0},{"$f":"Import!M22546","v":0},{"$f":"Import!M22746","v":0}]
[99,{"$f":"Import!M20547","v":"Select"},{"$f":"Import!M20747","v":"Select"},{"$f":"Import!M20947","v":"Select"},{"$f":"Import!M21147","v":"Select"},{"$f":"Import!M21347","v":"Select"},{"$f":"Import!M21547","v":"Select"},{"$f":"Import!M21747","v":"Select"},{"$f":"Import!M21947","v":0},{"$f":"Import!M22147","v":0},{"$f":"Import!M22347","v":0},{"$f":"Import!M22547","v":0},{"$f":"Import!M22747","v":0}]
[100,{"$f":"Import!M20548","v":"Select"},{"$f":"Import!M20748","v":"Select"},{"$f":"Import!M20948","v":"Select"},{"$f":"Import!M21148","v":"Select"},{"$f":"Import!M21348","v":"Select"},{"$f":"Import!M21548","v":"Select"},{"$f":"Import!M21748","v":"Select"},{"$f":"Import!M21948","v":0},{"$f":"Import!M22148","v":0},{"$f":"Import!M22348","v":0},{"$f":"Import!M22548","v":0},{"$f":"Import!M22748","v":0}]
[101,{"$f":"Import!M20549","v":"Select"},{"$f":"Import!M20749","v":"Select"},{"$f":"Import!M20949","v":"Select"},{"$f":"Import!M21149","v":"Select"},{"$f":"Import!M21349","v":"Select"},{"$f":"Import!M21549","v":"Select"},{"$f":"Import!M21749","v":"Select"},{"$f":"Import!M21949","v":0},{"$f":"Import!M22149","v":0},{"$f":"Import!M22349","v":0},{"$f":"Import!M22549","v":0},{"$f":"Import!M22749","v":0}]
[102,{"$f":"Import!M20550","v":"Select"},{"$f":"Import!M20750","v":"Select"},{"$f":"Import!M20950","v":"Select"},{"$f":"Import!M21150","v":"Select"},{"$f":"Import!M21350","v":"Select"},{"$f":"Import!M21550","v":"Select"},{"$f":"Import!M21750","v":"Select"},{"$f":"Import!M21950","v":0},{"$f":"Import!M22150","v":0},{"$f":"Import!M22350","v":0},{"$f":"Import!M22550","v":0},{"$f":"Import!M22750","v":0}]
[103,{"$f":"Import!M20551","v":"Select"},{"$f":"Import!M20751","v":"Select"},{"$f":"Import!M20951","v":"Select"},{"$f":"Import!M21151","v":"Select"},{"$f":"Import!M21351","v":"Select"},{"$f":"Import!M21551","v":"Select"},{"$f":"Import!M21751","v":"Select"},{"$f":"Import!M21951","v":0},{"$f":"Import!M22151","v":0},{"$f":"Import!M22351","v":0},{"$f":"Import!M22551","v":0},{"$f":"Import!M22751","v":0}]
[104,{"$f":"Import!M20552","v":"Select"},{"$f":"Import!M20752","v":"Select"},{"$f":"Import!M20952","v":"Select"},{"$f":"Import!M21152","v":"Select"},{"$f":"Import!M21352","v":"Select"},{"$f":"Import!M21552","v":"Select"},{"$f":"Import!M21752","v":"Select"},{"$f":"Import!M21952","v":0},{"$f":"Import!M22152","v":0},{"$f":"Import!M22352","v":0},{"$f":"Import!M22552","v":0},{"$f":"Import!M22752","v":0}]
[105,{"$f":"Import!M20553","v":"Select"},{"$f":"Import!M20753","v":"Select"},{"$f":"Import!M20953","v":"Select"},{"$f":"Import!M21153","v":"Select"},{"$f":"Import!M21353","v":"Select"},{"$f":"Import!M21553","v":"Select"},{"$f":"Import!M21753","v":"Select"},{"$f":"Import!M21953","v":0},{"$f":"Import!M22153","v":0},{"$f":"Import!M22353","v":0},{"$f":"Import!M22553","v":0},{"$f":"Import!M22753","v":0}]
[106,{"$f":"Import!M20554","v":"Select"},{"$f":"Import!M20754","v":"Select"},{"$f":"Import!M20954","v":"Select"},{"$f":"Import!M21154","v":"Select"},{"$f":"Import!M21354","v":"Select"},{"$f":"Import!M21554","v":"Select"},{"$f":"Import!M21754","v":"Select"},{"$f":"Import!M21954","v":0},{"$f":"Import!M22154","v":0},{"$f":"Import!M22354","v":0},{"$f":"Import!M22554","v":0},{"$f":"Import!M22754","v":0}]
[107,{"$f":"Import!M20555","v":"Select"},{"$f":"Import!M20755","v":"Select"},{"$f":"Import!M20955","v":"Select"},{"$f":"Import!M21155","v":"Select"},{"$f":"Import!M21355","v":"Select"},{"$f":"Import!M21555","v":"Select"},{"$f":"Import!M21755","v":"Select"},{"$f":"Import!M21955","v":0},{"$f":"Import!M22155","v":0},{"$f":"Import!M22355","v":0},{"$f":"Import!M22555","v":0},{"$f":"Import!M22755","v":0}]
[108,{"$f":"Import!M20556","v":"Select"},{"$f":"Import!M20756","v":"Select"},{"$f":"Import!M20956","v":"Select"},{"$f":"Import!M21156","v":"Select"},{"$f":"Import!M21356","v":"Select"},{"$f":"Import!M21556","v":"Select"},{"$f":"Import!M21756","v":"Select"},{"$f":"Import!M21956","v":0},{"$f":"Import!M22156","v":0},{"$f":"Import!M22356","v":0},{"$f":"Import!M22556","v":0},{"$f":"Import!M22756","v":0}]
[109,{"$f":"Import!M20557","v":"Select"},{"$f":"Import!M20757","v":"Select"},{"$f":"Import!M20957","v":"Select"},{"$f":"Import!M21157","v":"Select"},{"$f":"Import!M21357","v":"Select"},{"$f":"Import!M21557","v":"Select"},{"$f":"Import!M21757","v":"Select"},{"$f":"Import!M21957","v":0},{"$f":"Import!M22157","v":0},{"$f":"Import!M22357","v":0},{"$f":"Import!M22557","v":0},{"$f":"Import!M22757","v":0}]
[110,{"$f":"Import!M20558","v":"Select"},{"$f":"Import!M20758","v":"Select"},{"$f":"Import!M20958","v":"Select"},{"$f":"Import!M21158","v":"Select"},{"$f":"Import!M21358","v":"Select"},{"$f":"Import!M21558","v":"Select"},{"$f":"Import!M21758","v":"Select"},{"$f":"Import!M21958","v":0},{"$f":"Import!M22158","v":0},{"$f":"Import!M22358","v":0},{"$f":"Import!M22558","v":0},{"$f":"Import!M22758","v":0}]
[111,{"$f":"Import!M20559","v":"Select"},{"$f":"Import!M20759","v":"Select"},{"$f":"Import!M20959","v":"Select"},{"$f":"Import!M21159","v":"Select"},{"$f":"Import!M21359","v":"Select"},{"$f":"Import!M21559","v":"Select"},{"$f":"Import!M21759","v":"Select"},{"$f":"Import!M21959","v":0},{"$f":"Import!M22159","v":0},{"$f":"Import!M22359","v":0},{"$f":"Import!M22559","v":0},{"$f":"Import!M22759","v":0}]
[112,{"$f":"Import!M20560","v":"Select"},{"$f":"Import!M20760","v":"Select"},{"$f":"Import!M20960","v":"Select"},{"$f":"Import!M21160","v":"Select"},{"$f":"Import!M21360","v":"Select"},{"$f":"Import!M21560","v":"Select"},{"$f":"Import!M21760","v":"Select"},{"$f":"Import!M21960","v":0},{"$f":"Import!M22160","v":0},{"$f":"Import!M22360","v":0},{"$f":"Import!M22560","v":0},{"$f":"Import!M22760","v":0}]
[113,{"$f":"Import!M20561","v":"Select"},{"$f":"Import!M20761","v":"Select"},{"$f":"Import!M20961","v":"Select"},{"$f":"Import!M21161","v":"Select"},{"$f":"Import!M21361","v":"Select"},{"$f":"Import!M21561","v":"Select"},{"$f":"Import!M21761","v":"Select"},{"$f":"Import!M21961","v":0},{"$f":"Import!M22161","v":0},{"$f":"Import!M22361","v":0},{"$f":"Import!M22561","v":0},{"$f":"Import!M22761","v":0}]
[114,{"$f":"Import!M20562","v":"Select"},{"$f":"Import!M20762","v":"Select"},{"$f":"Import!M20962","v":"Select"},{"$f":"Import!M21162","v":"Select"},{"$f":"Import!M21362","v":"Select"},{"$f":"Import!M21562","v":"Select"},{"$f":"Import!M21762","v":"Select"},{"$f":"Import!M21962","v":0},{"$f":"Import!M22162","v":0},{"$f":"Import!M22362","v":0},{"$f":"Import!M22562","v":0},{"$f":"Import!M22762","v":0}]
[115,{"$f":"Import!M20563","v":"Select"},{"$f":"Import!M20763","v":"Select"},{"$f":"Import!M20963","v":"Select"},{"$f":"Import!M21163","v":"Select"},{"$f":"Import!M21363","v":"Select"},{"$f":"Import!M21563","v":"Select"},{"$f":"Import!M21763","v":"Select"},{"$f":"Import!M21963","v":0},{"$f":"Import!M22163","v":0},{"$f":"Import!M22363","v":0},{"$f":"Import!M22563","v":0},{"$f":"Import!M22763","v":0}]
[116,{"$f":"Import!M20564","v":"Select"},{"$f":"Import!M20764","v":"Select"},{"$f":"Import!M20964","v":"Select"},{"$f":"Import!M21164","v":"Select"},{"$f":"Import!M21364","v":"Select"},{"$f":"Import!M21564","v":"Select"},{"$f":"Import!M21764","v":"Select"},{"$f":"Import!M21964","v":0},{"$f":"Import!M22164","v":0},{"$f":"Import!M22364","v":0},{"$f":"Import!M22564","v":0},{"$f":"Import!M22764","v":0}]
[117,{"$f":"Import!M20565","v":"Select"},{"$f":"Import!M20765","v":"Select"},{"$f":"Import!M20965","v":"Select"},{"$f":"Import!M21165","v":"Select"},{"$f":"Import!M21365","v":"Select"},{"$f":"Import!M21565","v":"Select"},{"$f":"Import!M21765","v":"Select"},{"$f":"Import!M21965","v":0},{"$f":"Import!M22165","v":0},{"$f":"Import!M22365","v":0},{"$f":"Import!M22565","v":0},{"$f":"Import!M22765","v":0}]
[118,{"$f":"Import!M20566","v":"Select"},{"$f":"Import!M20766","v":"Select"},{"$f":"Import!M20966","v":"Select"},{"$f":"Import!M21166","v":"Select"},{"$f":"Import!M21366","v":"Select"},{"$f":"Import!M21566","v":"Select"},{"$f":"Import!M21766","v":"Select"},{"$f":"Import!M21966","v":0},{"$f":"Import!M22166","v":0},{"$f":"Import!M22366","v":0},{"$f":"Import!M22566","v":0},{"$f":"Import!M22766","v":0}]
[119,{"$f":"Import!M20567","v":"Select"},{"$f":"Import!M20767","v":"Select"},{"$f":"Import!M20967","v":"Select"},{"$f":"Import!M21167","v":"Select"},{"$f":"Import!M21367","v":"Select"},{"$f":"Import!M21567","v":"Select"},{"$f":"Import!M21767","v":"Select"},{"$f":"Import!M21967","v":0},{"$f":"Import!M22167","v":0},{"$f":"Import!M22367","v":0},{"$f":"Import!M22567","v":0},{"$f":"Import!M22767","v":0}]
[120,{"$f":"Import!M20568","v":"Select"},{"$f":"Import!M20768","v":"Select"},{"$f":"Import!M20968","v":"Select"},{"$f":"Import!M21168","v":"Select"},{"$f":"Import!M21368","v":"Select"},{"$f":"Import!M21568","v":"Select"},{"$f":"Import!M21768","v":"Select"},{"$f":"Import!M21968","v":0},{"$f":"Import!M22168","v":0},{"$f":"Import!M22368","v":0},{"$f":"Import!M22568","v":0},{"$f":"Import!M22768","v":0}]
[121,{"$f":"Import!M20569","v":"Select"},{"$f":"Import!M20769","v":"Select"},{"$f":"Import!M20969","v":"Select"},{"$f":"Import!M21169","v":"Select"},{"$f":"Import!M21369","v":"Select"},{"$f":"Import!M21569","v":"Select"},{"$f":"Import!M21769","v":"Select"},{"$f":"Import!M21969","v":0},{"$f":"Import!M22169","v":0},{"$f":"Import!M22369","v":0},{"$f":"Import!M22569","v":0},{"$f":"Import!M22769","v":0}]
[122,{"$f":"Import!M20570","v":"Select"},{"$f":"Import!M20770","v":"Select"},{"$f":"Import!M20970","v":"Select"},{"$f":"Import!M21170","v":"Select"},{"$f":"Import!M21370","v":"Select"},{"$f":"Import!M21570","v":"Select"},{"$f":"Import!M21770","v":"Select"},{"$f":"Import!M21970","v":0},{"$f":"Import!M22170","v":0},{"$f":"Import!M22370","v":0},{"$f":"Import!M22570","v":0},{"$f":"Import!M22770","v":0}]
[123,{"$f":"Import!M20571","v":"Select"},{"$f":"Import!M20771","v":"Select"},{"$f":"Import!M20971","v":"Select"},{"$f":"Import!M21171","v":"Select"},{"$f":"Import!M21371","v":"Select"},{"$f":"Import!M21571","v":"Select"},{"$f":"Import!M21771","v":"Select"},{"$f":"Import!M21971","v":0},{"$f":"Import!M22171","v":0},{"$f":"Import!M22371","v":0},{"$f":"Import!M22571","v":0},{"$f":"Import!M22771","v":0}]
[124,{"$f":"Import!M20572","v":"Select"},{"$f":"Import!M20772","v":"Select"},{"$f":"Import!M20972","v":"Select"},{"$f":"Import!M21172","v":"Select"},{"$f":"Import!M21372","v":"Select"},{"$f":"Import!M21572","v":"Select"},{"$f":"Import!M21772","v":"Select"},{"$f":"Import!M21972","v":0},{"$f":"Import!M22172","v":0},{"$f":"Import!M22372","v":0},{"$f":"Import!M22572","v":0},{"$f":"Import!M22772","v":0}]
[125,{"$f":"Import!M20573","v":"Select"},{"$f":"Import!M20773","v":"Select"},{"$f":"Import!M20973","v":"Select"},{"$f":"Import!M21173","v":"Select"},{"$f":"Import!M21373","v":"Select"},{"$f":"Import!M21573","v":"Select"},{"$f":"Import!M21773","v":"Select"},{"$f":"Import!M21973","v":0},{"$f":"Import!M22173","v":0},{"$f":"Import!M22373","v":0},{"$f":"Import!M22573","v":0},{"$f":"Import!M22773","v":0}]
[126,{"$f":"Import!M20574","v":"Select"},{"$f":"Import!M20774","v":"Select"},{"$f":"Import!M20974","v":"Select"},{"$f":"Import!M21174","v":"Select"},{"$f":"Import!M21374","v":"Select"},{"$f":"Import!M21574","v":"Select"},{"$f":"Import!M21774","v":"Select"},{"$f":"Import!M21974","v":0},{"$f":"Import!M22174","v":0},{"$f":"Import!M22374","v":0},{"$f":"Import!M22574","v":0},{"$f":"Import!M22774","v":0}]
[127,{"$f":"Import!M20575","v":"Select"},{"$f":"Import!M20775","v":"Select"},{"$f":"Import!M20975","v":"Select"},{"$f":"Import!M21175","v":"Select"},{"$f":"Import!M21375","v":"Select"},{"$f":"Import!M21575","v":"Select"},{"$f":"Import!M21775","v":"Select"},{"$f":"Import!M21975","v":0},{"$f":"Import!M22175","v":0},{"$f":"Import!M22375","v":0},{"$f":"Import!M22575","v":0},{"$f":"Import!M22775","v":0}]
[128,{"$f":"Import!M20576","v":"Select"},{"$f":"Import!M20776","v":"Select"},{"$f":"Import!M20976","v":"Select"},{"$f":"Import!M21176","v":"Select"},{"$f":"Import!M21376","v":"Select"},{"$f":"Import!M21576","v":"Select"},{"$f":"Import!M21776","v":"Select"},{"$f":"Import!M21976","v":0},{"$f":"Import!M22176","v":0},{"$f":"Import!M22376","v":0},{"$f":"Import!M22576","v":0},{"$f":"Import!M22776","v":0}]
[129,{"$f":"Import!M20577","v":"Select"},{"$f":"Import!M20777","v":"Select"},{"$f":"Import!M20977","v":"Select"},{"$f":"Import!M21177","v":"Select"},{"$f":"Import!M21377","v":"Select"},{"$f":"Import!M21577","v":"Select"},{"$f":"Import!M21777","v":"Select"},{"$f":"Import!M21977","v":0},{"$f":"Import!M22177","v":0},{"$f":"Import!M22377","v":0},{"$f":"Import!M22577","v":0},{"$f":"Import!M22777","v":0}]
[130,{"$f":"Import!M20578","v":"Select"},{"$f":"Import!M20778","v":"Select"},{"$f":"Import!M20978","v":"Select"},{"$f":"Import!M21178","v":"Select"},{"$f":"Import!M21378","v":"Select"},{"$f":"Import!M21578","v":"Select"},{"$f":"Import!M21778","v":"Select"},{"$f":"Import!M21978","v":0},{"$f":"Import!M22178","v":0},{"$f":"Import!M22378","v":0},{"$f":"Import!M22578","v":0},{"$f":"Import!M22778","v":0}]
[{"$f":"A1689+1","v":131},{"$f":"Import!M20579","v":"Select"},{"$f":"Import!M20779","v":"Select"},{"$f":"Import!M20979","v":"Select"},{"$f":"Import!M21179","v":"Select"},{"$f":"Import!M21379","v":"Select"},{"$f":"Import!M21579","v":"Select"},{"$f":"Import!M21779","v":"Select"},{"$f":"Import!M21979","v":0},{"$f":"Import!M22179","v":0},{"$f":"Import!M22379","v":0},{"$f":"Import!M22579","v":0},{"$f":"Import!M22779","v":0}]
[132,{"$f":"Import!M20580","v":"Select"},{"$f":"Import!M20780","v":"Select"},{"$f":"Import!M20980","v":"Select"},{"$f":"Import!M21180","v":"Select"},{"$f":"Import!M21380","v":"Select"},{"$f":"Import!M21580","v":"Select"},{"$f":"Import!M21780","v":"Select"},{"$f":"Import!M21980","v":0},{"$f":"Import!M22180","v":0},{"$f":"Import!M22380","v":0},{"$f":"Import!M22580","v":0},{"$f":"Import!M22780","v":0}]
[133,{"$f":"Import!M20581","v":"Select"},{"$f":"Import!M20781","v":"Select"},{"$f":"Import!M20981","v":"Select"},{"$f":"Import!M21181","v":"Select"},{"$f":"Import!M21381","v":"Select"},{"$f":"Import!M21581","v":"Select"},{"$f":"Import!M21781","v":"Select"},{"$f":"Import!M21981","v":0},{"$f":"Import!M22181","v":0},{"$f":"Import!M22381","v":0},{"$f":"Import!M22581","v":0},{"$f":"Import!M22781","v":0}]
[134,{"$f":"Import!M20582","v":"Select"},{"$f":"Import!M20782","v":"Select"},{"$f":"Import!M20982","v":"Select"},{"$f":"Import!M21182","v":"Select"},{"$f":"Import!M21382","v":"Select"},{"$f":"Import!M21582","v":"Select"},{"$f":"Import!M21782","v":"Select"},{"$f":"Import!M21982","v":0},{"$f":"Import!M22182","v":0},{"$f":"Import!M22382","v":0},{"$f":"Import!M22582","v":0},{"$f":"Import!M22782","v":0}]
[135,{"$f":"Import!M20583","v":"Select"},{"$f":"Import!M20783","v":"Select"},{"$f":"Import!M20983","v":"Select"},{"$f":"Import!M21183","v":"Select"},{"$f":"Import!M21383","v":"Select"},{"$f":"Import!M21583","v":"Select"},{"$f":"Import!M21783","v":"Select"},{"$f":"Import!M21983","v":0},{"$f":"Import!M22183","v":0},{"$f":"Import!M22383","v":0},{"$f":"Import!M22583","v":0},{"$f":"Import!M22783","v":0}]
[136,{"$f":"Import!M20584","v":"Select"},{"$f":"Import!M20784","v":"Select"},{"$f":"Import!M20984","v":"Select"},{"$f":"Import!M21184","v":"Select"},{"$f":"Import!M21384","v":"Select"},{"$f":"Import!M21584","v":"Select"},{"$f":"Import!M21784","v":"Select"},{"$f":"Import!M21984","v":0},{"$f":"Import!M22184","v":0},{"$f":"Import!M22384","v":0},{"$f":"Import!M22584","v":0},{"$f":"Import!M22784","v":0}]
[137,{"$f":"Import!M20585","v":"Select"},{"$f":"Import!M20785","v":"Select"},{"$f":"Import!M20985","v":"Select"},{"$f":"Import!M21185","v":"Select"},{"$f":"Import!M21385","v":"Select"},{"$f":"Import!M21585","v":"Select"},{"$f":"Import!M21785","v":"Select"},{"$f":"Import!M21985","v":0},{"$f":"Import!M22185","v":0},{"$f":"Import!M22385","v":0},{"$f":"Import!M22585","v":0},{"$f":"Import!M22785","v":0}]
[138,{"$f":"Import!M20586","v":"Select"},{"$f":"Import!M20786","v":"Select"},{"$f":"Import!M20986","v":"Select"},{"$f":"Import!M21186","v":"Select"},{"$f":"Import!M21386","v":"Select"},{"$f":"Import!M21586","v":"Select"},{"$f":"Import!M21786","v":"Select"},{"$f":"Import!M21986","v":0},{"$f":"Import!M22186","v":0},{"$f":"Import!M22386","v":0},{"$f":"Import!M22586","v":0},{"$f":"Import!M22786","v":0}]
[139,{"$f":"Import!M20587","v":"Select"},{"$f":"Import!M20787","v":"Select"},{"$f":"Import!M20987","v":"Select"},{"$f":"Import!M21187","v":"Select"},{"$f":"Import!M21387","v":"Select"},{"$f":"Import!M21587","v":"Select"},{"$f":"Import!M21787","v":"Select"},{"$f":"Import!M21987","v":0},{"$f":"Import!M22187","v":0},{"$f":"Import!M22387","v":0},{"$f":"Import!M22587","v":0},{"$f":"Import!M22787","v":0}]
[140,{"$f":"Import!M20588","v":"Select"},{"$f":"Import!M20788","v":"Select"},{"$f":"Import!M20988","v":"Select"},{"$f":"Import!M21188","v":"Select"},{"$f":"Import!M21388","v":"Select"},{"$f":"Import!M21588","v":"Select"},{"$f":"Import!M21788","v":"Select"},{"$f":"Import!M21988","v":0},{"$f":"Import!M22188","v":0},{"$f":"Import!M22388","v":0},{"$f":"Import!M22588","v":0},{"$f":"Import!M22788","v":0}]
[141,{"$f":"Import!M20589","v":"Select"},{"$f":"Import!M20789","v":"Select"},{"$f":"Import!M20989","v":"Select"},{"$f":"Import!M21189","v":"Select"},{"$f":"Import!M21389","v":"Select"},{"$f":"Import!M21589","v":"Select"},{"$f":"Import!M21789","v":"Select"},{"$f":"Import!M21989","v":0},{"$f":"Import!M22189","v":0},{"$f":"Import!M22389","v":0},{"$f":"Import!M22589","v":0},{"$f":"Import!M22789","v":0}]
[142,{"$f":"Import!M20590","v":"Select"},{"$f":"Import!M20790","v":"Select"},{"$f":"Import!M20990","v":"Select"},{"$f":"Import!M21190","v":"Select"},{"$f":"Import!M21390","v":"Select"},{"$f":"Import!M21590","v":"Select"},{"$f":"Import!M21790","v":"Select"},{"$f":"Import!M21990","v":0},{"$f":"Import!M22190","v":0},{"$f":"Import!M22390","v":0},{"$f":"Import!M22590","v":0},{"$f":"Import!M22790","v":0}]
[143,{"$f":"Import!M20591","v":"Select"},{"$f":"Import!M20791","v":"Select"},{"$f":"Import!M20991","v":"Select"},{"$f":"Import!M21191","v":"Select"},{"$f":"Import!M21391","v":"Select"},{"$f":"Import!M21591","v":"Select"},{"$f":"Import!M21791","v":"Select"},{"$f":"Import!M21991","v":0},{"$f":"Import!M22191","v":0},{"$f":"Import!M22391","v":0},{"$f":"Import!M22591","v":0},{"$f":"Import!M22791","v":0}]
[144,{"$f":"Import!M20592","v":"Select"},{"$f":"Import!M20792","v":"Select"},{"$f":"Import!M20992","v":"Select"},{"$f":"Import!M21192","v":"Select"},{"$f":"Import!M21392","v":"Select"},{"$f":"Import!M21592","v":"Select"},{"$f":"Import!M21792","v":"Select"},{"$f":"Import!M21992","v":0},{"$f":"Import!M22192","v":0},{"$f":"Import!M22392","v":0},{"$f":"Import!M22592","v":0},{"$f":"Import!M22792","v":0}]
[145,{"$f":"Import!M20593","v":"Select"},{"$f":"Import!M20793","v":"Select"},{"$f":"Import!M20993","v":"Select"},{"$f":"Import!M21193","v":"Select"},{"$f":"Import!M21393","v":"Select"},{"$f":"Import!M21593","v":"Select"},{"$f":"Import!M21793","v":"Select"},{"$f":"Import!M21993","v":0},{"$f":"Import!M22193","v":0},{"$f":"Import!M22393","v":0},{"$f":"Import!M22593","v":0},{"$f":"Import!M22793","v":0}]
[146,{"$f":"Import!M20594","v":"Select"},{"$f":"Import!M20794","v":"Select"},{"$f":"Import!M20994","v":"Select"},{"$f":"Import!M21194","v":"Select"},{"$f":"Import!M21394","v":"Select"},{"$f":"Import!M21594","v":"Select"},{"$f":"Import!M21794","v":"Select"},{"$f":"Import!M21994","v":0},{"$f":"Import!M22194","v":0},{"$f":"Import!M22394","v":0},{"$f":"Import!M22594","v":0},{"$f":"Import!M22794","v":0}]
[147,{"$f":"Import!M20595","v":"Select"},{"$f":"Import!M20795","v":"Select"},{"$f":"Import!M20995","v":"Select"},{"$f":"Import!M21195","v":"Select"},{"$f":"Import!M21395","v":"Select"},{"$f":"Import!M21595","v":"Select"},{"$f":"Import!M21795","v":"Select"},{"$f":"Import!M21995","v":0},{"$f":"Import!M22195","v":0},{"$f":"Import!M22395","v":0},{"$f":"Import!M22595","v":0},{"$f":"Import!M22795","v":0}]
[148,{"$f":"Import!M20596","v":"Select"},{"$f":"Import!M20796","v":"Select"},{"$f":"Import!M20996","v":"Select"},{"$f":"Import!M21196","v":"Select"},{"$f":"Import!M21396","v":"Select"},{"$f":"Import!M21596","v":"Select"},{"$f":"Import!M21796","v":"Select"},{"$f":"Import!M21996","v":0},{"$f":"Import!M22196","v":0},{"$f":"Import!M22396","v":0},{"$f":"Import!M22596","v":0},{"$f":"Import!M22796","v":0}]
[149,{"$f":"Import!M20597","v":"Select"},{"$f":"Import!M20797","v":"Select"},{"$f":"Import!M20997","v":"Select"},{"$f":"Import!M21197","v":"Select"},{"$f":"Import!M21397","v":"Select"},{"$f":"Import!M21597","v":"Select"},{"$f":"Import!M21797","v":"Select"},{"$f":"Import!M21997","v":0},{"$f":"Import!M22197","v":0},{"$f":"Import!M22397","v":0},{"$f":"Import!M22597","v":0},{"$f":"Import!M22797","v":0}]
[150,{"$f":"Import!M20598","v":"Select"},{"$f":"Import!M20798","v":"Select"},{"$f":"Import!M20998","v":"Select"},{"$f":"Import!M21198","v":"Select"},{"$f":"Import!M21398","v":"Select"},{"$f":"Import!M21598","v":"Select"},{"$f":"Import!M21798","v":"Select"},{"$f":"Import!M21998","v":0},{"$f":"Import!M22198","v":0},{"$f":"Import!M22398","v":0},{"$f":"Import!M22598","v":0},{"$f":"Import!M22798","v":0}]
[151,{"$f":"Import!M20599","v":"Select"},{"$f":"Import!M20799","v":"Select"},{"$f":"Import!M20999","v":"Select"},{"$f":"Import!M21199","v":"Select"},{"$f":"Import!M21399","v":"Select"},{"$f":"Import!M21599","v":"Select"},{"$f":"Import!M21799","v":"Select"},{"$f":"Import!M21999","v":0},{"$f":"Import!M22199","v":0},{"$f":"Import!M22399","v":0},{"$f":"Import!M22599","v":0},{"$f":"Import!M22799","v":0}]
[152,{"$f":"Import!M20600","v":"Select"},{"$f":"Import!M20800","v":"Select"},{"$f":"Import!M21000","v":"Select"},{"$f":"Import!M21200","v":"Select"},{"$f":"Import!M21400","v":"Select"},{"$f":"Import!M21600","v":"Select"},{"$f":"Import!M21800","v":"Select"},{"$f":"Import!M22000","v":0},{"$f":"Import!M22200","v":0},{"$f":"Import!M22400","v":0},{"$f":"Import!M22600","v":0},{"$f":"Import!M22800","v":0}]
[153,{"$f":"Import!M20601","v":"Select"},{"$f":"Import!M20801","v":"Select"},{"$f":"Import!M21001","v":"Select"},{"$f":"Import!M21201","v":"Select"},{"$f":"Import!M21401","v":"Select"},{"$f":"Import!M21601","v":"Select"},{"$f":"Import!M21801","v":"Select"},{"$f":"Import!M22001","v":0},{"$f":"Import!M22201","v":0},{"$f":"Import!M22401","v":0},{"$f":"Import!M22601","v":0},{"$f":"Import!M22801","v":0}]
[154,{"$f":"Import!M20602","v":"Select"},{"$f":"Import!M20802","v":"Select"},{"$f":"Import!M21002","v":"Select"},{"$f":"Import!M21202","v":"Select"},{"$f":"Import!M21402","v":"Select"},{"$f":"Import!M21602","v":"Select"},{"$f":"Import!M21802","v":"Select"},{"$f":"Import!M22002","v":0},{"$f":"Import!M22202","v":0},{"$f":"Import!M22402","v":0},{"$f":"Import!M22602","v":0},{"$f":"Import!M22802","v":0}]
[155,{"$f":"Import!M20603","v":"Select"},{"$f":"Import!M20803","v":"Select"},{"$f":"Import!M21003","v":"Select"},{"$f":"Import!M21203","v":"Select"},{"$f":"Import!M21403","v":"Select"},{"$f":"Import!M21603","v":"Select"},{"$f":"Import!M21803","v":"Select"},{"$f":"Import!M22003","v":0},{"$f":"Import!M22203","v":0},{"$f":"Import!M22403","v":0},{"$f":"Import!M22603","v":0},{"$f":"Import!M22803","v":0}]
[156,{"$f":"Import!M20604","v":"Select"},{"$f":"Import!M20804","v":"Select"},{"$f":"Import!M21004","v":"Select"},{"$f":"Import!M21204","v":"Select"},{"$f":"Import!M21404","v":"Select"},{"$f":"Import!M21604","v":"Select"},{"$f":"Import!M21804","v":"Select"},{"$f":"Import!M22004","v":0},{"$f":"Import!M22204","v":0},{"$f":"Import!M22404","v":0},{"$f":"Import!M22604","v":0},{"$f":"Import!M22804","v":0}]
[157,{"$f":"Import!M20605","v":"Select"},{"$f":"Import!M20805","v":"Select"},{"$f":"Import!M21005","v":"Select"},{"$f":"Import!M21205","v":"Select"},{"$f":"Import!M21405","v":"Select"},{"$f":"Import!M21605","v":"Select"},{"$f":"Import!M21805","v":"Select"},{"$f":"Import!M22005","v":0},{"$f":"Import!M22205","v":0},{"$f":"Import!M22405","v":0},{"$f":"Import!M22605","v":0},{"$f":"Import!M22805","v":0}]
[158,{"$f":"Import!M20606","v":"Select"},{"$f":"Import!M20806","v":"Select"},{"$f":"Import!M21006","v":"Select"},{"$f":"Import!M21206","v":"Select"},{"$f":"Import!M21406","v":"Select"},{"$f":"Import!M21606","v":"Select"},{"$f":"Import!M21806","v":"Select"},{"$f":"Import!M22006","v":0},{"$f":"Import!M22206","v":0},{"$f":"Import!M22406","v":0},{"$f":"Import!M22606","v":0},{"$f":"Import!M22806","v":0}]
[159,{"$f":"Import!M20607","v":"Select"},{"$f":"Import!M20807","v":"Select"},{"$f":"Import!M21007","v":"Select"},{"$f":"Import!M21207","v":"Select"},{"$f":"Import!M21407","v":"Select"},{"$f":"Import!M21607","v":"Select"},{"$f":"Import!M21807","v":"Select"},{"$f":"Import!M22007","v":0},{"$f":"Import!M22207","v":0},{"$f":"Import!M22407","v":0},{"$f":"Import!M22607","v":0},{"$f":"Import!M22807","v":0}]
[160,{"$f":"Import!M20608","v":"Select"},{"$f":"Import!M20808","v":"Select"},{"$f":"Import!M21008","v":"Select"},{"$f":"Import!M21208","v":"Select"},{"$f":"Import!M21408","v":"Select"},{"$f":"Import!M21608","v":"Select"},{"$f":"Import!M21808","v":"Select"},{"$f":"Import!M22008","v":0},{"$f":"Import!M22208","v":0},{"$f":"Import!M22408","v":0},{"$f":"Import!M22608","v":0},{"$f":"Import!M22808","v":0}]
[161,{"$f":"Import!M20609","v":"Select"},{"$f":"Import!M20809","v":"Select"},{"$f":"Import!M21009","v":"Select"},{"$f":"Import!M21209","v":"Select"},{"$f":"Import!M21409","v":"Select"},{"$f":"Import!M21609","v":"Select"},{"$f":"Import!M21809","v":"Select"},{"$f":"Import!M22009","v":0},{"$f":"Import!M22209","v":0},{"$f":"Import!M22409","v":0},{"$f":"Import!M22609","v":0},{"$f":"Import!M22809","v":0}]
[162,{"$f":"Import!M20610","v":"Select"},{"$f":"Import!M20810","v":"Select"},{"$f":"Import!M21010","v":"Select"},{"$f":"Import!M21210","v":"Select"},{"$f":"Import!M21410","v":"Select"},{"$f":"Import!M21610","v":"Select"},{"$f":"Import!M21810","v":"Select"},{"$f":"Import!M22010","v":0},{"$f":"Import!M22210","v":0},{"$f":"Import!M22410","v":0},{"$f":"Import!M22610","v":0},{"$f":"Import!M22810","v":0}]
[163,{"$f":"Import!M20611","v":"Select"},{"$f":"Import!M20811","v":"Select"},{"$f":"Import!M21011","v":"Select"},{"$f":"Import!M21211","v":"Select"},{"$f":"Import!M21411","v":"Select"},{"$f":"Import!M21611","v":"Select"},{"$f":"Import!M21811","v":"Select"},{"$f":"Import!M22011","v":0},{"$f":"Import!M22211","v":0},{"$f":"Import!M22411","v":0},{"$f":"Import!M22611","v":0},{"$f":"Import!M22811","v":0}]
[164,{"$f":"Import!M20612","v":"Select"},{"$f":"Import!M20812","v":"Select"},{"$f":"Import!M21012","v":"Select"},{"$f":"Import!M21212","v":"Select"},{"$f":"Import!M21412","v":"Select"},{"$f":"Import!M21612","v":"Select"},{"$f":"Import!M21812","v":"Select"},{"$f":"Import!M22012","v":0},{"$f":"Import!M22212","v":0},{"$f":"Import!M22412","v":0},{"$f":"Import!M22612","v":0},{"$f":"Import!M22812","v":0}]
[165,{"$f":"Import!M20613","v":"Select"},{"$f":"Import!M20813","v":"Select"},{"$f":"Import!M21013","v":"Select"},{"$f":"Import!M21213","v":"Select"},{"$f":"Import!M21413","v":"Select"},{"$f":"Import!M21613","v":"Select"},{"$f":"Import!M21813","v":"Select"},{"$f":"Import!M22013","v":0},{"$f":"Import!M22213","v":0},{"$f":"Import!M22413","v":0},{"$f":"Import!M22613","v":0},{"$f":"Import!M22813","v":0}]
[166,{"$f":"Import!M20614","v":"Select"},{"$f":"Import!M20814","v":"Select"},{"$f":"Import!M21014","v":"Select"},{"$f":"Import!M21214","v":"Select"},{"$f":"Import!M21414","v":"Select"},{"$f":"Import!M21614","v":"Select"},{"$f":"Import!M21814","v":"Select"},{"$f":"Import!M22014","v":0},{"$f":"Import!M22214","v":0},{"$f":"Import!M22414","v":0},{"$f":"Import!M22614","v":0},{"$f":"Import!M22814","v":0}]
[167,{"$f":"Import!M20615","v":"Select"},{"$f":"Import!M20815","v":"Select"},{"$f":"Import!M21015","v":"Select"},{"$f":"Import!M21215","v":"Select"},{"$f":"Import!M21415","v":"Select"},{"$f":"Import!M21615","v":"Select"},{"$f":"Import!M21815","v":"Select"},{"$f":"Import!M22015","v":0},{"$f":"Import!M22215","v":0},{"$f":"Import!M22415","v":0},{"$f":"Import!M22615","v":0},{"$f":"Import!M22815","v":0}]
[168,{"$f":"Import!M20616","v":"Select"},{"$f":"Import!M20816","v":"Select"},{"$f":"Import!M21016","v":"Select"},{"$f":"Import!M21216","v":"Select"},{"$f":"Import!M21416","v":"Select"},{"$f":"Import!M21616","v":"Select"},{"$f":"Import!M21816","v":"Select"},{"$f":"Import!M22016","v":0},{"$f":"Import!M22216","v":0},{"$f":"Import!M22416","v":0},{"$f":"Import!M22616","v":0},{"$f":"Import!M22816","v":0}]
[169,{"$f":"Import!M20617","v":"Select"},{"$f":"Import!M20817","v":"Select"},{"$f":"Import!M21017","v":"Select"},{"$f":"Import!M21217","v":"Select"},{"$f":"Import!M21417","v":"Select"},{"$f":"Import!M21617","v":"Select"},{"$f":"Import!M21817","v":"Select"},{"$f":"Import!M22017","v":0},{"$f":"Import!M22217","v":0},{"$f":"Import!M22417","v":0},{"$f":"Import!M22617","v":0},{"$f":"Import!M22817","v":0}]
[170,{"$f":"Import!M20618","v":"Select"},{"$f":"Import!M20818","v":"Select"},{"$f":"Import!M21018","v":"Select"},{"$f":"Import!M21218","v":"Select"},{"$f":"Import!M21418","v":"Select"},{"$f":"Import!M21618","v":"Select"},{"$f":"Import!M21818","v":"Select"},{"$f":"Import!M22018","v":0},{"$f":"Import!M22218","v":0},{"$f":"Import!M22418","v":0},{"$f":"Import!M22618","v":0},{"$f":"Import!M22818","v":0}]
[171,{"$f":"Import!M20619","v":"Select"},{"$f":"Import!M20819","v":"Select"},{"$f":"Import!M21019","v":"Select"},{"$f":"Import!M21219","v":"Select"},{"$f":"Import!M21419","v":"Select"},{"$f":"Import!M21619","v":"Select"},{"$f":"Import!M21819","v":"Select"},{"$f":"Import!M22019","v":0},{"$f":"Import!M22219","v":0},{"$f":"Import!M22419","v":0},{"$f":"Import!M22619","v":0},{"$f":"Import!M22819","v":0}]
[172,{"$f":"Import!M20620","v":"Select"},{"$f":"Import!M20820","v":"Select"},{"$f":"Import!M21020","v":"Select"},{"$f":"Import!M21220","v":"Select"},{"$f":"Import!M21420","v":"Select"},{"$f":"Import!M21620","v":"Select"},{"$f":"Import!M21820","v":"Select"},{"$f":"Import!M22020","v":0},{"$f":"Import!M22220","v":0},{"$f":"Import!M22420","v":0},{"$f":"Import!M22620","v":0},{"$f":"Import!M22820","v":0}]
[173,{"$f":"Import!M20621","v":"Select"},{"$f":"Import!M20821","v":"Select"},{"$f":"Import!M21021","v":"Select"},{"$f":"Import!M21221","v":"Select"},{"$f":"Import!M21421","v":"Select"},{"$f":"Import!M21621","v":"Select"},{"$f":"Import!M21821","v":"Select"},{"$f":"Import!M22021","v":0},{"$f":"Import!M22221","v":0},{"$f":"Import!M22421","v":0},{"$f":"Import!M22621","v":0},{"$f":"Import!M22821","v":0}]
[174,{"$f":"Import!M20622","v":"Select"},{"$f":"Import!M20822","v":"Select"},{"$f":"Import!M21022","v":"Select"},{"$f":"Import!M21222","v":"Select"},{"$f":"Import!M21422","v":"Select"},{"$f":"Import!M21622","v":"Select"},{"$f":"Import!M21822","v":"Select"},{"$f":"Import!M22022","v":0},{"$f":"Import!M22222","v":0},{"$f":"Import!M22422","v":0},{"$f":"Import!M22622","v":0},{"$f":"Import!M22822","v":0}]
[175,{"$f":"Import!M20623","v":"Select"},{"$f":"Import!M20823","v":"Select"},{"$f":"Import!M21023","v":"Select"},{"$f":"Import!M21223","v":"Select"},{"$f":"Import!M21423","v":"Select"},{"$f":"Import!M21623","v":"Select"},{"$f":"Import!M21823","v":"Select"},{"$f":"Import!M22023","v":0},{"$f":"Import!M22223","v":0},{"$f":"Import!M22423","v":0},{"$f":"Import!M22623","v":0},{"$f":"Import!M22823","v":0}]
[176,{"$f":"Import!M20624","v":"Select"},{"$f":"Import!M20824","v":"Select"},{"$f":"Import!M21024","v":"Select"},{"$f":"Import!M21224","v":"Select"},{"$f":"Import!M21424","v":"Select"},{"$f":"Import!M21624","v":"Select"},{"$f":"Import!M21824","v":"Select"},{"$f":"Import!M22024","v":0},{"$f":"Import!M22224","v":0},{"$f":"Import!M22424","v":0},{"$f":"Import!M22624","v":0},{"$f":"Import!M22824","v":0}]
[177,{"$f":"Import!M20625","v":"Select"},{"$f":"Import!M20825","v":"Select"},{"$f":"Import!M21025","v":"Select"},{"$f":"Import!M21225","v":"Select"},{"$f":"Import!M21425","v":"Select"},{"$f":"Import!M21625","v":"Select"},{"$f":"Import!M21825","v":"Select"},{"$f":"Import!M22025","v":0},{"$f":"Import!M22225","v":0},{"$f":"Import!M22425","v":0},{"$f":"Import!M22625","v":0},{"$f":"Import!M22825","v":0}]
[178,{"$f":"Import!M20626","v":"Select"},{"$f":"Import!M20826","v":"Select"},{"$f":"Import!M21026","v":"Select"},{"$f":"Import!M21226","v":"Select"},{"$f":"Import!M21426","v":"Select"},{"$f":"Import!M21626","v":"Select"},{"$f":"Import!M21826","v":"Select"},{"$f":"Import!M22026","v":0},{"$f":"Import!M22226","v":0},{"$f":"Import!M22426","v":0},{"$f":"Import!M22626","v":0},{"$f":"Import!M22826","v":0}]
[179,{"$f":"Import!M20627","v":"Select"},{"$f":"Import!M20827","v":"Select"},{"$f":"Import!M21027","v":"Select"},{"$f":"Import!M21227","v":"Select"},{"$f":"Import!M21427","v":"Select"},{"$f":"Import!M21627","v":"Select"},{"$f":"Import!M21827","v":"Select"},{"$f":"Import!M22027","v":0},{"$f":"Import!M22227","v":0},{"$f":"Import!M22427","v":0},{"$f":"Import!M22627","v":0},{"$f":"Import!M22827","v":0}]
[180,{"$f":"Import!M20628","v":"Select"},{"$f":"Import!M20828","v":"Select"},{"$f":"Import!M21028","v":"Select"},{"$f":"Import!M21228","v":"Select"},{"$f":"Import!M21428","v":"Select"},{"$f":"Import!M21628","v":"Select"},{"$f":"Import!M21828","v":"Select"},{"$f":"Import!M22028","v":0},{"$f":"Import!M22228","v":0},{"$f":"Import!M22428","v":0},{"$f":"Import!M22628","v":0},{"$f":"Import!M22828","v":0}]
[181,{"$f":"Import!M20629","v":"Select"},{"$f":"Import!M20829","v":"Select"},{"$f":"Import!M21029","v":"Select"},{"$f":"Import!M21229","v":"Select"},{"$f":"Import!M21429","v":"Select"},{"$f":"Import!M21629","v":"Select"},{"$f":"Import!M21829","v":"Select"},{"$f":"Import!M22029","v":0},{"$f":"Import!M22229","v":0},{"$f":"Import!M22429","v":0},{"$f":"Import!M22629","v":0},{"$f":"Import!M22829","v":0}]
[182,{"$f":"Import!M20630","v":"Select"},{"$f":"Import!M20830","v":"Select"},{"$f":"Import!M21030","v":"Select"},{"$f":"Import!M21230","v":"Select"},{"$f":"Import!M21430","v":"Select"},{"$f":"Import!M21630","v":"Select"},{"$f":"Import!M21830","v":"Select"},{"$f":"Import!M22030","v":0},{"$f":"Import!M22230","v":0},{"$f":"Import!M22430","v":0},{"$f":"Import!M22630","v":0},{"$f":"Import!M22830","v":0}]
[183,{"$f":"Import!M20631","v":"Select"},{"$f":"Import!M20831","v":"Select"},{"$f":"Import!M21031","v":"Select"},{"$f":"Import!M21231","v":"Select"},{"$f":"Import!M21431","v":"Select"},{"$f":"Import!M21631","v":"Select"},{"$f":"Import!M21831","v":"Select"},{"$f":"Import!M22031","v":0},{"$f":"Import!M22231","v":0},{"$f":"Import!M22431","v":0},{"$f":"Import!M22631","v":0},{"$f":"Import!M22831","v":0}]
[184,{"$f":"Import!M20632","v":"Select"},{"$f":"Import!M20832","v":"Select"},{"$f":"Import!M21032","v":"Select"},{"$f":"Import!M21232","v":"Select"},{"$f":"Import!M21432","v":"Select"},{"$f":"Import!M21632","v":"Select"},{"$f":"Import!M21832","v":"Select"},{"$f":"Import!M22032","v":0},{"$f":"Import!M22232","v":0},{"$f":"Import!M22432","v":0},{"$f":"Import!M22632","v":0},{"$f":"Import!M22832","v":0}]
[185,{"$f":"Import!M20633","v":"Select"},{"$f":"Import!M20833","v":"Select"},{"$f":"Import!M21033","v":"Select"},{"$f":"Import!M21233","v":"Select"},{"$f":"Import!M21433","v":"Select"},{"$f":"Import!M21633","v":"Select"},{"$f":"Import!M21833","v":"Select"},{"$f":"Import!M22033","v":0},{"$f":"Import!M22233","v":0},{"$f":"Import!M22433","v":0},{"$f":"Import!M22633","v":0},{"$f":"Import!M22833","v":0}]
[186,{"$f":"Import!M20634","v":"Select"},{"$f":"Import!M20834","v":"Select"},{"$f":"Import!M21034","v":"Select"},{"$f":"Import!M21234","v":"Select"},{"$f":"Import!M21434","v":"Select"},{"$f":"Import!M21634","v":"Select"},{"$f":"Import!M21834","v":"Select"},{"$f":"Import!M22034","v":0},{"$f":"Import!M22234","v":0},{"$f":"Import!M22434","v":0},{"$f":"Import!M22634","v":0},{"$f":"Import!M22834","v":0}]
[187,{"$f":"Import!M20635","v":"Select"},{"$f":"Import!M20835","v":"Select"},{"$f":"Import!M21035","v":"Select"},{"$f":"Import!M21235","v":"Select"},{"$f":"Import!M21435","v":"Select"},{"$f":"Import!M21635","v":"Select"},{"$f":"Import!M21835","v":"Select"},{"$f":"Import!M22035","v":0},{"$f":"Import!M22235","v":0},{"$f":"Import!M22435","v":0},{"$f":"Import!M22635","v":0},{"$f":"Import!M22835","v":0}]
[188,{"$f":"Import!M20636","v":"Select"},{"$f":"Import!M20836","v":"Select"},{"$f":"Import!M21036","v":"Select"},{"$f":"Import!M21236","v":"Select"},{"$f":"Import!M21436","v":"Select"},{"$f":"Import!M21636","v":"Select"},{"$f":"Import!M21836","v":"Select"},{"$f":"Import!M22036","v":0},{"$f":"Import!M22236","v":0},{"$f":"Import!M22436","v":0},{"$f":"Import!M22636","v":0},{"$f":"Import!M22836","v":0}]
[189,{"$f":"Import!M20637","v":"Select"},{"$f":"Import!M20837","v":"Select"},{"$f":"Import!M21037","v":"Select"},{"$f":"Import!M21237","v":"Select"},{"$f":"Import!M21437","v":"Select"},{"$f":"Import!M21637","v":"Select"},{"$f":"Import!M21837","v":"Select"},{"$f":"Import!M22037","v":0},{"$f":"Import!M22237","v":0},{"$f":"Import!M22437","v":0},{"$f":"Import!M22637","v":0},{"$f":"Import!M22837","v":0}]
[190,{"$f":"Import!M20638","v":"Select"},{"$f":"Import!M20838","v":"Select"},{"$f":"Import!M21038","v":"Select"},{"$f":"Import!M21238","v":"Select"},{"$f":"Import!M21438","v":"Select"},{"$f":"Import!M21638","v":"Select"},{"$f":"Import!M21838","v":"Select"},{"$f":"Import!M22038","v":0},{"$f":"Import!M22238","v":0},{"$f":"Import!M22438","v":0},{"$f":"Import!M22638","v":0},{"$f":"Import!M22838","v":0}]
[191,{"$f":"Import!M20639","v":"Select"},{"$f":"Import!M20839","v":"Select"},{"$f":"Import!M21039","v":"Select"},{"$f":"Import!M21239","v":"Select"},{"$f":"Import!M21439","v":"Select"},{"$f":"Import!M21639","v":"Select"},{"$f":"Import!M21839","v":"Select"},{"$f":"Import!M22039","v":0},{"$f":"Import!M22239","v":0},{"$f":"Import!M22439","v":0},{"$f":"Import!M22639","v":0},{"$f":"Import!M22839","v":0}]
[192,{"$f":"Import!M20640","v":"Select"},{"$f":"Import!M20840","v":"Select"},{"$f":"Import!M21040","v":"Select"},{"$f":"Import!M21240","v":"Select"},{"$f":"Import!M21440","v":"Select"},{"$f":"Import!M21640","v":"Select"},{"$f":"Import!M21840","v":"Select"},{"$f":"Import!M22040","v":0},{"$f":"Import!M22240","v":0},{"$f":"Import!M22440","v":0},{"$f":"Import!M22640","v":0},{"$f":"Import!M22840","v":0}]
[193,{"$f":"Import!M20641","v":"Select"},{"$f":"Import!M20841","v":"Select"},{"$f":"Import!M21041","v":"Select"},{"$f":"Import!M21241","v":"Select"},{"$f":"Import!M21441","v":"Select"},{"$f":"Import!M21641","v":"Select"},{"$f":"Import!M21841","v":"Select"},{"$f":"Import!M22041","v":0},{"$f":"Import!M22241","v":0},{"$f":"Import!M22441","v":0},{"$f":"Import!M22641","v":0},{"$f":"Import!M22841","v":0}]
[194,{"$f":"Import!M20642","v":"Select"},{"$f":"Import!M20842","v":"Select"},{"$f":"Import!M21042","v":"Select"},{"$f":"Import!M21242","v":"Select"},{"$f":"Import!M21442","v":"Select"},{"$f":"Import!M21642","v":"Select"},{"$f":"Import!M21842","v":"Select"},{"$f":"Import!M22042","v":0},{"$f":"Import!M22242","v":0},{"$f":"Import!M22442","v":0},{"$f":"Import!M22642","v":0},{"$f":"Import!M22842","v":0}]
[{"$f":"A1753+1","v":195},{"$f":"Import!M20643","v":"Select"},{"$f":"Import!M20843","v":"Select"},{"$f":"Import!M21043","v":"Select"},{"$f":"Import!M21243","v":"Select"},{"$f":"Import!M21443","v":"Select"},{"$f":"Import!M21643","v":"Select"},{"$f":"Import!M21843","v":"Select"},{"$f":"Import!M22043","v":0},{"$f":"Import!M22243","v":0},{"$f":"Import!M22443","v":0},{"$f":"Import!M22643","v":0},{"$f":"Import!M22843","v":0}]
[196,{"$f":"Import!M20644","v":"Select"},{"$f":"Import!M20844","v":"Select"},{"$f":"Import!M21044","v":"Select"},{"$f":"Import!M21244","v":"Select"},{"$f":"Import!M21444","v":"Select"},{"$f":"Import!M21644","v":"Select"},{"$f":"Import!M21844","v":"Select"},{"$f":"Import!M22044","v":0},{"$f":"Import!M22244","v":0},{"$f":"Import!M22444","v":0},{"$f":"Import!M22644","v":0},{"$f":"Import!M22844","v":0}]
[197,{"$f":"Import!M20645","v":"Select"},{"$f":"Import!M20845","v":"Select"},{"$f":"Import!M21045","v":"Select"},{"$f":"Import!M21245","v":"Select"},{"$f":"Import!M21445","v":"Select"},{"$f":"Import!M21645","v":"Select"},{"$f":"Import!M21845","v":"Select"},{"$f":"Import!M22045","v":0},{"$f":"Import!M22245","v":0},{"$f":"Import!M22445","v":0},{"$f":"Import!M22645","v":0},{"$f":"Import!M22845","v":0}]
[198,{"$f":"Import!M20646","v":"Select"},{"$f":"Import!M20846","v":"Select"},{"$f":"Import!M21046","v":"Select"},{"$f":"Import!M21246","v":"Select"},{"$f":"Import!M21446","v":"Select"},{"$f":"Import!M21646","v":"Select"},{"$f":"Import!M21846","v":"Select"},{"$f":"Import!M22046","v":0},{"$f":"Import!M22246","v":0},{"$f":"Import!M22446","v":0},{"$f":"Import!M22646","v":0},{"$f":"Import!M22846","v":0}]
[199,{"$f":"Import!M20647","v":"Select"},{"$f":"Import!M20847","v":"Select"},{"$f":"Import!M21047","v":"Select"},{"$f":"Import!M21247","v":"Select"},{"$f":"Import!M21447","v":"Select"},{"$f":"Import!M21647","v":"Select"},{"$f":"Import!M21847","v":"Select"},{"$f":"Import!M22047","v":0},{"$f":"Import!M22247","v":0},{"$f":"Import!M22447","v":0},{"$f":"Import!M22647","v":0},{"$f":"Import!M22847","v":0}]
[200,{"$f":"Import!M20648","v":"Select"},{"$f":"Import!M20848","v":"Select"},{"$f":"Import!M21048","v":"Select"},{"$f":"Import!M21248","v":"Select"},{"$f":"Import!M21448","v":"Select"},{"$f":"Import!M21648","v":"Select"},{"$f":"Import!M21848","v":"Select"},{"$f":"Import!M22048","v":0},{"$f":"Import!M22248","v":0},{"$f":"Import!M22448","v":0},{"$f":"Import!M22648","v":0},{"$f":"Import!M22848","v":0}]
[]
[null,"Total Derivatives",null,null,null,null,null,null,{"$f":"SUM(I1560:I1759)","v":0},{"$f":"SUM(J1560:J1759)","v":0},{"$f":"SUM(K1560:K1759)","v":0}]
[]
[null,"(J) INFORMATION ON EXPOSURES TO FINANCIAL INSTITUTIONS AND UNLISTED COUNTERPARTIES"]
[null,null,null,null,null,"Commercial Loans and Mortgages"]
[null,null,{"$f":"YEAR($C$3)","v":2023},"Fair Value",null,null,"Securitisations ","Other debt securities"]
[null,"Financial Institutions","Equities","Corporate Bonds","Corporate Loans",null,null,null,null,"Comments"]
[1,"Exposure to Financial Institutions (Banks, Insurance Companies, Other Financials) - Investment Grade, BSCR Rating 1-3",{"$f":"Import!M22849","v":0},{"$f":"Import!M22853","v":0},{"$f":"Import!M22857","v":0},{"$f":"Import!M22861","v":0},{"$f":"Import!M22865","v":0},{"$f":"Import!M22869","v":0},null,{"$f":"Import!M22873","v":0}]
[2,"Exposure to Financial Institutions (Banks, Insurance Companies, Other Financials) - Investment Grade, BSCR Rating 4",{"$f":"Import!M22850","v":0},{"$f":"Import!M22854","v":0},{"$f":"Import!M22858","v":0},{"$f":"Import!M22862","v":0},{"$f":"Import!M22866","v":0},{"$f":"Import!M22870","v":0},null,{"$f":"Import!M22874","v":0}]
[3,"Exposure to Financial Institutions (Banks, Insurance Companies, Other Financials) - Below Investment Grade",{"$f":"Import!M22851","v":0},{"$f":"Import!M22855","v":0},{"$f":"Import!M22859","v":0},{"$f":"Import!M22863","v":0},{"$f":"Import!M22867","v":0},{"$f":"Import!M22871","v":0},null,{"$f":"Import!M22875","v":0}]
[4,"Exposure to Financial Institutions (Banks, Insurance Companies, Other Financials) - Unrated",{"$f":"Import!M22852","v":0},{"$f":"Import!M22856","v":0},{"$f":"Import!M22860","v":0},{"$f":"Import!M22864","v":0},{"$f":"Import!M22868","v":0},{"$f":"Import!M22872","v":0},null,{"$f":"Import!M22876","v":0}]
[]
[null,"Total Exposures to Financial Institutions",{"$f":"SUM(C1767:C1770)","v":0},{"$f":"SUM(D1767:D1770)","v":0},0,0,0,0]
[]
[null,"Of which","Equities","Corporate Bonds","Corporate Loans","Other",null,null,null,"Comments"]
[5,"- exposures to Banks",{"$f":"Import!M22877","v":0},{"$f":"Import!M22880","v":0},{"$f":"Import!M22883","v":0},{"$f":"Import!M22886","v":0},null,null,null,{"$f":"Import!M22889","v":0}]
[6,"- exposures to Insurers",{"$f":"Import!M22878","v":0},{"$f":"Import!M22881","v":0},{"$f":"Import!M22884","v":0},{"$f":"Import!M22887","v":0},null,null,null,{"$f":"Import!M22890","v":0}]
[7,"- exposures to Other Financial Institutions",{"$f":"Import!M22879","v":0},{"$f":"Import!M22882","v":0},{"$f":"Import!M22885","v":0},{"$f":"Import!M22888","v":0},null,null,null,{"$f":"Import!M22891","v":0}]
[]
[null,"Total Exposures",{"$f":"SUM(C1775:C1777)","v":0},{"$f":"SUM(D1775:D1777)","v":0},{"$f":"SUM(E1775:E1777)","v":0},{"$f":"SUM(F1775:F1777)","v":0}]
[]
[null,null,{"$f":"YEAR($C$3)","v":2023},"Fair Value"]
[null,"Unlisted Counterparties","Equities","Corporate Bonds","Corporate Loans","Other",null,null,null,"Comments"]
[8,"Direct Exposure to Unlisted Counterparties - Investment Grade, BSCR Rating 1-3",{"$f":"Import!M22892","v":0},{"$f":"Import!M22896","v":0},{"$f":"Import!M22900","v":0},{"$f":"Import!M22904","v":0},null,null,null,{"$f":"Import!M22908","v":0}]
[9,"Direct Exposure to Unlisted Counterparties - Investment Grade, BSCR Rating 4",{"$f":"Import!M22893","v":0},{"$f":"Import!M22897","v":0},{"$f":"Import!M22901","v":0},{"$f":"Import!M22905","v":0},null,null,null,{"$f":"Import!M22909","v":0}]
[10,"Direct Exposure to Unlisted Counterparties - Below Investment Grade",{"$f":"Import!M22894","v":0},{"$f":"Import!M22898","v":0},{"$f":"Import!M22902","v":0},{"$f":"Import!M22906","v":0},null,null,null,{"$f":"Import!M22910","v":0}]
[11,"Direct Exposure to Unlisted Counterparties - Unrated",{"$f":"Import!M22895","v":0},{"$f":"Import!M22899","v":0},{"$f":"Import!M22903","v":0},{"$f":"Import!M22907","v":0},null,null,null,{"$f":"Import!M22911","v":0}]
[]
[null,"Total Direct Exposures to Unlisted Counterparties",{"$f":"SUM(C1783:C1786)","v":0},{"$f":"SUM(D1783:D1786)","v":0},0,0]
[]
[null,"(K) OTHER ASSETS"]
[]
[null,null,"Enter # of Asset Types",{"$f":"Import!M22912","v":0}]
[]
[null,null,null,null,{"$f":"YEAR($C$3)","v":2023},2023]
[null,"Asset Type","Currency","BSCR Rating","Nominal Amount","Fair Value","Comments"]
[1,{"$f":"Import!M22913","v":"Select"},{"$f":"Import!M23113","v":"Select"},{"$f":"Import!M23313","v":"Select"},{"$f":"Import!M23513","v":0},{"$f":"Import!M23713","v":0},{"$f":"Import!M23913","v":0}]
[{"$f":"A1796+1","v":2},{"$f":"Import!M22914","v":"Select"},{"$f":"Import!M23114","v":"Select"},{"$f":"Import!M23314","v":"Select"},{"$f":"Import!M23514","v":0},{"$f":"Import!M23714","v":0},{"$f":"Import!M23914","v":0}]
[{"$f":"A1797+1","v":3},{"$f":"Import!M22915","v":"Select"},{"$f":"Import!M23115","v":"Select"},{"$f":"Import!M23315","v":"Select"},{"$f":"Import!M23515","v":0},{"$f":"Import!M23715","v":0},{"$f":"Import!M23915","v":0}]
[4,{"$f":"Import!M22916","v":"Select"},{"$f":"Import!M23116","v":"Select"},{"$f":"Import!M23316","v":"Select"},{"$f":"Import!M23516","v":0},{"$f":"Import!M23716","v":0},{"$f":"Import!M23916","v":0}]
[5,{"$f":"Import!M22917","v":"Select"},{"$f":"Import!M23117","v":"Select"},{"$f":"Import!M23317","v":"Select"},{"$f":"Import!M23517","v":0},{"$f":"Import!M23717","v":0},{"$f":"Import!M23917","v":0}]
[6,{"$f":"Import!M22918","v":"Select"},{"$f":"Import!M23118","v":"Select"},{"$f":"Import!M23318","v":"Select"},{"$f":"Import!M23518","v":0},{"$f":"Import!M23718","v":0},{"$f":"Import!M23918","v":0}]
[7,{"$f":"Import!M22919","v":"Select"},{"$f":"Import!M23119","v":"Select"},{"$f":"Import!M23319","v":"Select"},{"$f":"Import!M23519","v":0},{"$f":"Import!M23719","v":0},{"$f":"Import!M23919","v":0}]
[8,{"$f":"Import!M22920","v":"Select"},{"$f":"Import!M23120","v":"Select"},{"$f":"Import!M23320","v":"Select"},{"$f":"Import!M23520","v":0},{"$f":"Import!M23720","v":0},{"$f":"Import!M23920","v":0}]
[9,{"$f":"Import!M22921","v":"Select"},{"$f":"Import!M23121","v":"Select"},{"$f":"Import!M23321","v":"Select"},{"$f":"Import!M23521","v":0},{"$f":"Import!M23721","v":0},{"$f":"Import!M23921","v":0}]
[10,{"$f":"Import!M22922","v":"Select"},{"$f":"Import!M23122","v":"Select"},{"$f":"Import!M23322","v":"Select"},{"$f":"Import!M23522","v":0},{"$f":"Import!M23722","v":0},{"$f":"Import!M23922","v":0}]
[11,{"$f":"Import!M22923","v":"Select"},{"$f":"Import!M23123","v":"Select"},{"$f":"Import!M23323","v":"Select"},{"$f":"Import!M23523","v":0},{"$f":"Import!M23723","v":0},{"$f":"Import!M23923","v":0}]
[12,{"$f":"Import!M22924","v":"Select"},{"$f":"Import!M23124","v":"Select"},{"$f":"Import!M23324","v":"Select"},{"$f":"Import!M23524","v":0},{"$f":"Import!M23724","v":0},{"$f":"Import!M23924","v":0}]
[13,{"$f":"Import!M22925","v":"Select"},{"$f":"Import!M23125","v":"Select"},{"$f":"Import!M23325","v":"Select"},{"$f":"Import!M23525","v":0},{"$f":"Import!M23725","v":0},{"$f":"Import!M23925","v":0}]
[14,{"$f":"Import!M22926","v":"Select"},{"$f":"Import!M23126","v":"Select"},{"$f":"Import!M23326","v":"Select"},{"$f":"Import!M23526","v":0},{"$f":"Import!M23726","v":0},{"$f":"Import!M23926","v":0}]
[15,{"$f":"Import!M22927","v":"Select"},{"$f":"Import!M23127","v":"Select"},{"$f":"Import!M23327","v":"Select"},{"$f":"Import!M23527","v":0},{"$f":"Import!M23727","v":0},{"$f":"Import!M23927","v":0}]
[16,{"$f":"Import!M22928","v":"Select"},{"$f":"Import!M23128","v":"Select"},{"$f":"Import!M23328","v":"Select"},{"$f":"Import!M23528","v":0},{"$f":"Import!M23728","v":0},{"$f":"Import!M23928","v":0}]
[17,{"$f":"Import!M22929","v":"Select"},{"$f":"Import!M23129","v":"Select"},{"$f":"Import!M23329","v":"Select"},{"$f":"Import!M23529","v":0},{"$f":"Import!M23729","v":0},{"$f":"Import!M23929","v":0}]
[18,{"$f":"Import!M22930","v":"Select"},{"$f":"Import!M23130","v":"Select"},{"$f":"Import!M23330","v":"Select"},{"$f":"Import!M23530","v":0},{"$f":"Import!M23730","v":0},{"$f":"Import!M23930","v":0}]
[19,{"$f":"Import!M22931","v":"Select"},{"$f":"Import!M23131","v":"Select"},{"$f":"Import!M23331","v":"Select"},{"$f":"Import!M23531","v":0},{"$f":"Import!M23731","v":0},{"$f":"Import!M23931","v":0}]
[20,{"$f":"Import!M22932","v":"Select"},{"$f":"Import!M23132","v":"Select"},{"$f":"Import!M23332","v":"Select"},{"$f":"Import!M23532","v":0},{"$f":"Import!M23732","v":0},{"$f":"Import!M23932","v":0}]
[21,{"$f":"Import!M22933","v":"Select"},{"$f":"Import!M23133","v":"Select"},{"$f":"Import!M23333","v":"Select"},{"$f":"Import!M23533","v":0},{"$f":"Import!M23733","v":0},{"$f":"Import!M23933","v":0}]
[22,{"$f":"Import!M22934","v":"Select"},{"$f":"Import!M23134","v":"Select"},{"$f":"Import!M23334","v":"Select"},{"$f":"Import!M23534","v":0},{"$f":"Import!M23734","v":0},{"$f":"Import!M23934","v":0}]
[23,{"$f":"Import!M22935","v":"Select"},{"$f":"Import!M23135","v":"Select"},{"$f":"Import!M23335","v":"Select"},{"$f":"Import!M23535","v":0},{"$f":"Import!M23735","v":0},{"$f":"Import!M23935","v":0}]
[24,{"$f":"Import!M22936","v":"Select"},{"$f":"Import!M23136","v":"Select"},{"$f":"Import!M23336","v":"Select"},{"$f":"Import!M23536","v":0},{"$f":"Import!M23736","v":0},{"$f":"Import!M23936","v":0}]
[25,{"$f":"Import!M22937","v":"Select"},{"$f":"Import!M23137","v":"Select"},{"$f":"Import!M23337","v":"Select"},{"$f":"Import!M23537","v":0},{"$f":"Import!M23737","v":0},{"$f":"Import!M23937","v":0}]
[26,{"$f":"Import!M22938","v":"Select"},{"$f":"Import!M23138","v":"Select"},{"$f":"Import!M23338","v":"Select"},{"$f":"Import!M23538","v":0},{"$f":"Import!M23738","v":0},{"$f":"Import!M23938","v":0}]
[27,{"$f":"Import!M22939","v":"Select"},{"$f":"Import!M23139","v":"Select"},{"$f":"Import!M23339","v":"Select"},{"$f":"Import!M23539","v":0},{"$f":"Import!M23739","v":0},{"$f":"Import!M23939","v":0}]
[28,{"$f":"Import!M22940","v":"Select"},{"$f":"Import!M23140","v":"Select"},{"$f":"Import!M23340","v":"Select"},{"$f":"Import!M23540","v":0},{"$f":"Import!M23740","v":0},{"$f":"Import!M23940","v":0}]
[29,{"$f":"Import!M22941","v":"Select"},{"$f":"Import!M23141","v":"Select"},{"$f":"Import!M23341","v":"Select"},{"$f":"Import!M23541","v":0},{"$f":"Import!M23741","v":0},{"$f":"Import!M23941","v":0}]
[30,{"$f":"Import!M22942","v":"Select"},{"$f":"Import!M23142","v":"Select"},{"$f":"Import!M23342","v":"Select"},{"$f":"Import!M23542","v":0},{"$f":"Import!M23742","v":0},{"$f":"Import!M23942","v":0}]
[31,{"$f":"Import!M22943","v":"Select"},{"$f":"Import!M23143","v":"Select"},{"$f":"Import!M23343","v":"Select"},{"$f":"Import!M23543","v":0},{"$f":"Import!M23743","v":0},{"$f":"Import!M23943","v":0}]
[32,{"$f":"Import!M22944","v":"Select"},{"$f":"Import!M23144","v":"Select"},{"$f":"Import!M23344","v":"Select"},{"$f":"Import!M23544","v":0},{"$f":"Import!M23744","v":0},{"$f":"Import!M23944","v":0}]
[33,{"$f":"Import!M22945","v":"Select"},{"$f":"Import!M23145","v":"Select"},{"$f":"Import!M23345","v":"Select"},{"$f":"Import!M23545","v":0},{"$f":"Import!M23745","v":0},{"$f":"Import!M23945","v":0}]
[34,{"$f":"Import!M22946","v":"Select"},{"$f":"Import!M23146","v":"Select"},{"$f":"Import!M23346","v":"Select"},{"$f":"Import!M23546","v":0},{"$f":"Import!M23746","v":0},{"$f":"Import!M23946","v":0}]
[35,{"$f":"Import!M22947","v":"Select"},{"$f":"Import!M23147","v":"Select"},{"$f":"Import!M23347","v":"Select"},{"$f":"Import!M23547","v":0},{"$f":"Import!M23747","v":0},{"$f":"Import!M23947","v":0}]
[36,{"$f":"Import!M22948","v":"Select"},{"$f":"Import!M23148","v":"Select"},{"$f":"Import!M23348","v":"Select"},{"$f":"Import!M23548","v":0},{"$f":"Import!M23748","v":0},{"$f":"Import!M23948","v":0}]
[37,{"$f":"Import!M22949","v":"Select"},{"$f":"Import!M23149","v":"Select"},{"$f":"Import!M23349","v":"Select"},{"$f":"Import!M23549","v":0},{"$f":"Import!M23749","v":0},{"$f":"Import!M23949","v":0}]
[38,{"$f":"Import!M22950","v":"Select"},{"$f":"Import!M23150","v":"Select"},{"$f":"Import!M23350","v":"Select"},{"$f":"Import!M23550","v":0},{"$f":"Import!M23750","v":0},{"$f":"Import!M23950","v":0}]
[39,{"$f":"Import!M22951","v":"Select"},{"$f":"Import!M23151","v":"Select"},{"$f":"Import!M23351","v":"Select"},{"$f":"Import!M23551","v":0},{"$f":"Import!M23751","v":0},{"$f":"Import!M23951","v":0}]
[40,{"$f":"Import!M22952","v":"Select"},{"$f":"Import!M23152","v":"Select"},{"$f":"Import!M23352","v":"Select"},{"$f":"Import!M23552","v":0},{"$f":"Import!M23752","v":0},{"$f":"Import!M23952","v":0}]
[41,{"$f":"Import!M22953","v":"Select"},{"$f":"Import!M23153","v":"Select"},{"$f":"Import!M23353","v":"Select"},{"$f":"Import!M23553","v":0},{"$f":"Import!M23753","v":0},{"$f":"Import!M23953","v":0}]
[42,{"$f":"Import!M22954","v":"Select"},{"$f":"Import!M23154","v":"Select"},{"$f":"Import!M23354","v":"Select"},{"$f":"Import!M23554","v":0},{"$f":"Import!M23754","v":0},{"$f":"Import!M23954","v":0}]
[43,{"$f":"Import!M22955","v":"Select"},{"$f":"Import!M23155","v":"Select"},{"$f":"Import!M23355","v":"Select"},{"$f":"Import!M23555","v":0},{"$f":"Import!M23755","v":0},{"$f":"Import!M23955","v":0}]
[44,{"$f":"Import!M22956","v":"Select"},{"$f":"Import!M23156","v":"Select"},{"$f":"Import!M23356","v":"Select"},{"$f":"Import!M23556","v":0},{"$f":"Import!M23756","v":0},{"$f":"Import!M23956","v":0}]
[45,{"$f":"Import!M22957","v":"Select"},{"$f":"Import!M23157","v":"Select"},{"$f":"Import!M23357","v":"Select"},{"$f":"Import!M23557","v":0},{"$f":"Import!M23757","v":0},{"$f":"Import!M23957","v":0}]
[46,{"$f":"Import!M22958","v":"Select"},{"$f":"Import!M23158","v":"Select"},{"$f":"Import!M23358","v":"Select"},{"$f":"Import!M23558","v":0},{"$f":"Import!M23758","v":0},{"$f":"Import!M23958","v":0}]
[47,{"$f":"Import!M22959","v":"Select"},{"$f":"Import!M23159","v":"Select"},{"$f":"Import!M23359","v":"Select"},{"$f":"Import!M23559","v":0},{"$f":"Import!M23759","v":0},{"$f":"Import!M23959","v":0}]
[48,{"$f":"Import!M22960","v":"Select"},{"$f":"Import!M23160","v":"Select"},{"$f":"Import!M23360","v":"Select"},{"$f":"Import!M23560","v":0},{"$f":"Import!M23760","v":0},{"$f":"Import!M23960","v":0}]
[49,{"$f":"Import!M22961","v":"Select"},{"$f":"Import!M23161","v":"Select"},{"$f":"Import!M23361","v":"Select"},{"$f":"Import!M23561","v":0},{"$f":"Import!M23761","v":0},{"$f":"Import!M23961","v":0}]
[50,{"$f":"Import!M22962","v":"Select"},{"$f":"Import!M23162","v":"Select"},{"$f":"Import!M23362","v":"Select"},{"$f":"Import!M23562","v":0},{"$f":"Import!M23762","v":0},{"$f":"Import!M23962","v":0}]
[51,{"$f":"Import!M22963","v":"Select"},{"$f":"Import!M23163","v":"Select"},{"$f":"Import!M23363","v":"Select"},{"$f":"Import!M23563","v":0},{"$f":"Import!M23763","v":0},{"$f":"Import!M23963","v":0}]
[52,{"$f":"Import!M22964","v":"Select"},{"$f":"Import!M23164","v":"Select"},{"$f":"Import!M23364","v":"Select"},{"$f":"Import!M23564","v":0},{"$f":"Import!M23764","v":0},{"$f":"Import!M23964","v":0}]
[53,{"$f":"Import!M22965","v":"Select"},{"$f":"Import!M23165","v":"Select"},{"$f":"Import!M23365","v":"Select"},{"$f":"Import!M23565","v":0},{"$f":"Import!M23765","v":0},{"$f":"Import!M23965","v":0}]
[54,{"$f":"Import!M22966","v":"Select"},{"$f":"Import!M23166","v":"Select"},{"$f":"Import!M23366","v":"Select"},{"$f":"Import!M23566","v":0},{"$f":"Import!M23766","v":0},{"$f":"Import!M23966","v":0}]
[55,{"$f":"Import!M22967","v":"Select"},{"$f":"Import!M23167","v":"Select"},{"$f":"Import!M23367","v":"Select"},{"$f":"Import!M23567","v":0},{"$f":"Import!M23767","v":0},{"$f":"Import!M23967","v":0}]
[56,{"$f":"Import!M22968","v":"Select"},{"$f":"Import!M23168","v":"Select"},{"$f":"Import!M23368","v":"Select"},{"$f":"Import!M23568","v":0},{"$f":"Import!M23768","v":0},{"$f":"Import!M23968","v":0}]
[57,{"$f":"Import!M22969","v":"Select"},{"$f":"Import!M23169","v":"Select"},{"$f":"Import!M23369","v":"Select"},{"$f":"Import!M23569","v":0},{"$f":"Import!M23769","v":0},{"$f":"Import!M23969","v":0}]
[58,{"$f":"Import!M22970","v":"Select"},{"$f":"Import!M23170","v":"Select"},{"$f":"Import!M23370","v":"Select"},{"$f":"Import!M23570","v":0},{"$f":"Import!M23770","v":0},{"$f":"Import!M23970","v":0}]
[59,{"$f":"Import!M22971","v":"Select"},{"$f":"Import!M23171","v":"Select"},{"$f":"Import!M23371","v":"Select"},{"$f":"Import!M23571","v":0},{"$f":"Import!M23771","v":0},{"$f":"Import!M23971","v":0}]
[60,{"$f":"Import!M22972","v":"Select"},{"$f":"Import!M23172","v":"Select"},{"$f":"Import!M23372","v":"Select"},{"$f":"Import!M23572","v":0},{"$f":"Import!M23772","v":0},{"$f":"Import!M23972","v":0}]
[61,{"$f":"Import!M22973","v":"Select"},{"$f":"Import!M23173","v":"Select"},{"$f":"Import!M23373","v":"Select"},{"$f":"Import!M23573","v":0},{"$f":"Import!M23773","v":0},{"$f":"Import!M23973","v":0}]
[62,{"$f":"Import!M22974","v":"Select"},{"$f":"Import!M23174","v":"Select"},{"$f":"Import!M23374","v":"Select"},{"$f":"Import!M23574","v":0},{"$f":"Import!M23774","v":0},{"$f":"Import!M23974","v":0}]
[63,{"$f":"Import!M22975","v":"Select"},{"$f":"Import!M23175","v":"Select"},{"$f":"Import!M23375","v":"Select"},{"$f":"Import!M23575","v":0},{"$f":"Import!M23775","v":0},{"$f":"Import!M23975","v":0}]
[64,{"$f":"Import!M22976","v":"Select"},{"$f":"Import!M23176","v":"Select"},{"$f":"Import!M23376","v":"Select"},{"$f":"Import!M23576","v":0},{"$f":"Import!M23776","v":0},{"$f":"Import!M23976","v":0}]
[65,{"$f":"Import!M22977","v":"Select"},{"$f":"Import!M23177","v":"Select"},{"$f":"Import!M23377","v":"Select"},{"$f":"Import!M23577","v":0},{"$f":"Import!M23777","v":0},{"$f":"Import!M23977","v":0}]
[66,{"$f":"Import!M22978","v":"Select"},{"$f":"Import!M23178","v":"Select"},{"$f":"Import!M23378","v":"Select"},{"$f":"Import!M23578","v":0},{"$f":"Import!M23778","v":0},{"$f":"Import!M23978","v":0}]
[{"$f":"A1861+1","v":67},{"$f":"Import!M22979","v":"Select"},{"$f":"Import!M23179","v":"Select"},{"$f":"Import!M23379","v":"Select"},{"$f":"Import!M23579","v":0},{"$f":"Import!M23779","v":0},{"$f":"Import!M23979","v":0}]
[68,{"$f":"Import!M22980","v":"Select"},{"$f":"Import!M23180","v":"Select"},{"$f":"Import!M23380","v":"Select"},{"$f":"Import!M23580","v":0},{"$f":"Import!M23780","v":0},{"$f":"Import!M23980","v":0}]
[69,{"$f":"Import!M22981","v":"Select"},{"$f":"Import!M23181","v":"Select"},{"$f":"Import!M23381","v":"Select"},{"$f":"Import!M23581","v":0},{"$f":"Import!M23781","v":0},{"$f":"Import!M23981","v":0}]
[70,{"$f":"Import!M22982","v":"Select"},{"$f":"Import!M23182","v":"Select"},{"$f":"Import!M23382","v":"Select"},{"$f":"Import!M23582","v":0},{"$f":"Import!M23782","v":0},{"$f":"Import!M23982","v":0}]
[71,{"$f":"Import!M22983","v":"Select"},{"$f":"Import!M23183","v":"Select"},{"$f":"Import!M23383","v":"Select"},{"$f":"Import!M23583","v":0},{"$f":"Import!M23783","v":0},{"$f":"Import!M23983","v":0}]
[72,{"$f":"Import!M22984","v":"Select"},{"$f":"Import!M23184","v":"Select"},{"$f":"Import!M23384","v":"Select"},{"$f":"Import!M23584","v":0},{"$f":"Import!M23784","v":0},{"$f":"Import!M23984","v":0}]
[73,{"$f":"Import!M22985","v":"Select"},{"$f":"Import!M23185","v":"Select"},{"$f":"Import!M23385","v":"Select"},{"$f":"Import!M23585","v":0},{"$f":"Import!M23785","v":0},{"$f":"Import!M23985","v":0}]
[74,{"$f":"Import!M22986","v":"Select"},{"$f":"Import!M23186","v":"Select"},{"$f":"Import!M23386","v":"Select"},{"$f":"Import!M23586","v":0},{"$f":"Import!M23786","v":0},{"$f":"Import!M23986","v":0}]
[75,{"$f":"Import!M22987","v":"Select"},{"$f":"Import!M23187","v":"Select"},{"$f":"Import!M23387","v":"Select"},{"$f":"Import!M23587","v":0},{"$f":"Import!M23787","v":0},{"$f":"Import!M23987","v":0}]
[76,{"$f":"Import!M22988","v":"Select"},{"$f":"Import!M23188","v":"Select"},{"$f":"Import!M23388","v":"Select"},{"$f":"Import!M23588","v":0},{"$f":"Import!M23788","v":0},{"$f":"Import!M23988","v":0}]
[77,{"$f":"Import!M22989","v":"Select"},{"$f":"Import!M23189","v":"Select"},{"$f":"Import!M23389","v":"Select"},{"$f":"Import!M23589","v":0},{"$f":"Import!M23789","v":0},{"$f":"Import!M23989","v":0}]
[78,{"$f":"Import!M22990","v":"Select"},{"$f":"Import!M23190","v":"Select"},{"$f":"Import!M23390","v":"Select"},{"$f":"Import!M23590","v":0},{"$f":"Import!M23790","v":0},{"$f":"Import!M23990","v":0}]
[79,{"$f":"Import!M22991","v":"Select"},{"$f":"Import!M23191","v":"Select"},{"$f":"Import!M23391","v":"Select"},{"$f":"Import!M23591","v":0},{"$f":"Import!M23791","v":0},{"$f":"Import!M23991","v":0}]
[80,{"$f":"Import!M22992","v":"Select"},{"$f":"Import!M23192","v":"Select"},{"$f":"Import!M23392","v":"Select"},{"$f":"Import!M23592","v":0},{"$f":"Import!M23792","v":0},{"$f":"Import!M23992","v":0}]
[81,{"$f":"Import!M22993","v":"Select"},{"$f":"Import!M23193","v":"Select"},{"$f":"Import!M23393","v":"Select"},{"$f":"Import!M23593","v":0},{"$f":"Import!M23793","v":0},{"$f":"Import!M23993","v":0}]
[82,{"$f":"Import!M22994","v":"Select"},{"$f":"Import!M23194","v":"Select"},{"$f":"Import!M23394","v":"Select"},{"$f":"Import!M23594","v":0},{"$f":"Import!M23794","v":0},{"$f":"Import!M23994","v":0}]
[83,{"$f":"Import!M22995","v":"Select"},{"$f":"Import!M23195","v":"Select"},{"$f":"Import!M23395","v":"Select"},{"$f":"Import!M23595","v":0},{"$f":"Import!M23795","v":0},{"$f":"Import!M23995","v":0}]
[84,{"$f":"Import!M22996","v":"Select"},{"$f":"Import!M23196","v":"Select"},{"$f":"Import!M23396","v":"Select"},{"$f":"Import!M23596","v":0},{"$f":"Import!M23796","v":0},{"$f":"Import!M23996","v":0}]
[85,{"$f":"Import!M22997","v":"Select"},{"$f":"Import!M23197","v":"Select"},{"$f":"Import!M23397","v":"Select"},{"$f":"Import!M23597","v":0},{"$f":"Import!M23797","v":0},{"$f":"Import!M23997","v":0}]
[86,{"$f":"Import!M22998","v":"Select"},{"$f":"Import!M23198","v":"Select"},{"$f":"Import!M23398","v":"Select"},{"$f":"Import!M23598","v":0},{"$f":"Import!M23798","v":0},{"$f":"Import!M23998","v":0}]
[87,{"$f":"Import!M22999","v":"Select"},{"$f":"Import!M23199","v":"Select"},{"$f":"Import!M23399","v":"Select"},{"$f":"Import!M23599","v":0},{"$f":"Import!M23799","v":0},{"$f":"Import!M23999","v":0}]
[88,{"$f":"Import!M23000","v":"Select"},{"$f":"Import!M23200","v":"Select"},{"$f":"Import!M23400","v":"Select"},{"$f":"Import!M23600","v":0},{"$f":"Import!M23800","v":0},{"$f":"Import!M24000","v":0}]
[89,{"$f":"Import!M23001","v":"Select"},{"$f":"Import!M23201","v":"Select"},{"$f":"Import!M23401","v":"Select"},{"$f":"Import!M23601","v":0},{"$f":"Import!M23801","v":0},{"$f":"Import!M24001","v":0}]
[90,{"$f":"Import!M23002","v":"Select"},{"$f":"Import!M23202","v":"Select"},{"$f":"Import!M23402","v":"Select"},{"$f":"Import!M23602","v":0},{"$f":"Import!M23802","v":0},{"$f":"Import!M24002","v":0}]
[91,{"$f":"Import!M23003","v":"Select"},{"$f":"Import!M23203","v":"Select"},{"$f":"Import!M23403","v":"Select"},{"$f":"Import!M23603","v":0},{"$f":"Import!M23803","v":0},{"$f":"Import!M24003","v":0}]
[92,{"$f":"Import!M23004","v":"Select"},{"$f":"Import!M23204","v":"Select"},{"$f":"Import!M23404","v":"Select"},{"$f":"Import!M23604","v":0},{"$f":"Import!M23804","v":0},{"$f":"Import!M24004","v":0}]
[93,{"$f":"Import!M23005","v":"Select"},{"$f":"Import!M23205","v":"Select"},{"$f":"Import!M23405","v":"Select"},{"$f":"Import!M23605","v":0},{"$f":"Import!M23805","v":0},{"$f":"Import!M24005","v":0}]
[94,{"$f":"Import!M23006","v":"Select"},{"$f":"Import!M23206","v":"Select"},{"$f":"Import!M23406","v":"Select"},{"$f":"Import!M23606","v":0},{"$f":"Import!M23806","v":0},{"$f":"Import!M24006","v":0}]
[95,{"$f":"Import!M23007","v":"Select"},{"$f":"Import!M23207","v":"Select"},{"$f":"Import!M23407","v":"Select"},{"$f":"Import!M23607","v":0},{"$f":"Import!M23807","v":0},{"$f":"Import!M24007","v":0}]
[96,{"$f":"Import!M23008","v":"Select"},{"$f":"Import!M23208","v":"Select"},{"$f":"Import!M23408","v":"Select"},{"$f":"Import!M23608","v":0},{"$f":"Import!M23808","v":0},{"$f":"Import!M24008","v":0}]
[97,{"$f":"Import!M23009","v":"Select"},{"$f":"Import!M23209","v":"Select"},{"$f":"Import!M23409","v":"Select"},{"$f":"Import!M23609","v":0},{"$f":"Import!M23809","v":0},{"$f":"Import!M24009","v":0}]
[98,{"$f":"Import!M23010","v":"Select"},{"$f":"Import!M23210","v":"Select"},{"$f":"Import!M23410","v":"Select"},{"$f":"Import!M23610","v":0},{"$f":"Import!M23810","v":0},{"$f":"Import!M24010","v":0}]
[99,{"$f":"Import!M23011","v":"Select"},{"$f":"Import!M23211","v":"Select"},{"$f":"Import!M23411","v":"Select"},{"$f":"Import!M23611","v":0},{"$f":"Import!M23811","v":0},{"$f":"Import!M24011","v":0}]
[100,{"$f":"Import!M23012","v":"Select"},{"$f":"Import!M23212","v":"Select"},{"$f":"Import!M23412","v":"Select"},{"$f":"Import!M23612","v":0},{"$f":"Import!M23812","v":0},{"$f":"Import!M24012","v":0}]
[101,{"$f":"Import!M23013","v":"Select"},{"$f":"Import!M23213","v":"Select"},{"$f":"Import!M23413","v":"Select"},{"$f":"Import!M23613","v":0},{"$f":"Import!M23813","v":0},{"$f":"Import!M24013","v":0}]
[102,{"$f":"Import!M23014","v":"Select"},{"$f":"Import!M23214","v":"Select"},{"$f":"Import!M23414","v":"Select"},{"$f":"Import!M23614","v":0},{"$f":"Import!M23814","v":0},{"$f":"Import!M24014","v":0}]
[103,{"$f":"Import!M23015","v":"Select"},{"$f":"Import!M23215","v":"Select"},{"$f":"Import!M23415","v":"Select"},{"$f":"Import!M23615","v":0},{"$f":"Import!M23815","v":0},{"$f":"Import!M24015","v":0}]
[104,{"$f":"Import!M23016","v":"Select"},{"$f":"Import!M23216","v":"Select"},{"$f":"Import!M23416","v":"Select"},{"$f":"Import!M23616","v":0},{"$f":"Import!M23816","v":0},{"$f":"Import!M24016","v":0}]
[105,{"$f":"Import!M23017","v":"Select"},{"$f":"Import!M23217","v":"Select"},{"$f":"Import!M23417","v":"Select"},{"$f":"Import!M23617","v":0},{"$f":"Import!M23817","v":0},{"$f":"Import!M24017","v":0}]
[106,{"$f":"Import!M23018","v":"Select"},{"$f":"Import!M23218","v":"Select"},{"$f":"Import!M23418","v":"Select"},{"$f":"Import!M23618","v":0},{"$f":"Import!M23818","v":0},{"$f":"Import!M24018","v":0}]
[107,{"$f":"Import!M23019","v":"Select"},{"$f":"Import!M23219","v":"Select"},{"$f":"Import!M23419","v":"Select"},{"$f":"Import!M23619","v":0},{"$f":"Import!M23819","v":0},{"$f":"Import!M24019","v":0}]
[108,{"$f":"Import!M23020","v":"Select"},{"$f":"Import!M23220","v":"Select"},{"$f":"Import!M23420","v":"Select"},{"$f":"Import!M23620","v":0},{"$f":"Import!M23820","v":0},{"$f":"Import!M24020","v":0}]
[109,{"$f":"Import!M23021","v":"Select"},{"$f":"Import!M23221","v":"Select"},{"$f":"Import!M23421","v":"Select"},{"$f":"Import!M23621","v":0},{"$f":"Import!M23821","v":0},{"$f":"Import!M24021","v":0}]
[110,{"$f":"Import!M23022","v":"Select"},{"$f":"Import!M23222","v":"Select"},{"$f":"Import!M23422","v":"Select"},{"$f":"Import!M23622","v":0},{"$f":"Import!M23822","v":0},{"$f":"Import!M24022","v":0}]
[111,{"$f":"Import!M23023","v":"Select"},{"$f":"Import!M23223","v":"Select"},{"$f":"Import!M23423","v":"Select"},{"$f":"Import!M23623","v":0},{"$f":"Import!M23823","v":0},{"$f":"Import!M24023","v":0}]
[112,{"$f":"Import!M23024","v":"Select"},{"$f":"Import!M23224","v":"Select"},{"$f":"Import!M23424","v":"Select"},{"$f":"Import!M23624","v":0},{"$f":"Import!M23824","v":0},{"$f":"Import!M24024","v":0}]
[113,{"$f":"Import!M23025","v":"Select"},{"$f":"Import!M23225","v":"Select"},{"$f":"Import!M23425","v":"Select"},{"$f":"Import!M23625","v":0},{"$f":"Import!M23825","v":0},{"$f":"Import!M24025","v":0}]
[114,{"$f":"Import!M23026","v":"Select"},{"$f":"Import!M23226","v":"Select"},{"$f":"Import!M23426","v":"Select"},{"$f":"Import!M23626","v":0},{"$f":"Import!M23826","v":0},{"$f":"Import!M24026","v":0}]
[115,{"$f":"Import!M23027","v":"Select"},{"$f":"Import!M23227","v":"Select"},{"$f":"Import!M23427","v":"Select"},{"$f":"Import!M23627","v":0},{"$f":"Import!M23827","v":0},{"$f":"Import!M24027","v":0}]
[116,{"$f":"Import!M23028","v":"Select"},{"$f":"Import!M23228","v":"Select"},{"$f":"Import!M23428","v":"Select"},{"$f":"Import!M23628","v":0},{"$f":"Import!M23828","v":0},{"$f":"Import!M24028","v":0}]
[117,{"$f":"Import!M23029","v":"Select"},{"$f":"Import!M23229","v":"Select"},{"$f":"Import!M23429","v":"Select"},{"$f":"Import!M23629","v":0},{"$f":"Import!M23829","v":0},{"$f":"Import!M24029","v":0}]
[118,{"$f":"Import!M23030","v":"Select"},{"$f":"Import!M23230","v":"Select"},{"$f":"Import!M23430","v":"Select"},{"$f":"Import!M23630","v":0},{"$f":"Import!M23830","v":0},{"$f":"Import!M24030","v":0}]
[119,{"$f":"Import!M23031","v":"Select"},{"$f":"Import!M23231","v":"Select"},{"$f":"Import!M23431","v":"Select"},{"$f":"Import!M23631","v":0},{"$f":"Import!M23831","v":0},{"$f":"Import!M24031","v":0}]
[120,{"$f":"Import!M23032","v":"Select"},{"$f":"Import!M23232","v":"Select"},{"$f":"Import!M23432","v":"Select"},{"$f":"Import!M23632","v":0},{"$f":"Import!M23832","v":0},{"$f":"Import!M24032","v":0}]
[121,{"$f":"Import!M23033","v":"Select"},{"$f":"Import!M23233","v":"Select"},{"$f":"Import!M23433","v":"Select"},{"$f":"Import!M23633","v":0},{"$f":"Import!M23833","v":0},{"$f":"Import!M24033","v":0}]
[122,{"$f":"Import!M23034","v":"Select"},{"$f":"Import!M23234","v":"Select"},{"$f":"Import!M23434","v":"Select"},{"$f":"Import!M23634","v":0},{"$f":"Import!M23834","v":0},{"$f":"Import!M24034","v":0}]
[123,{"$f":"Import!M23035","v":"Select"},{"$f":"Import!M23235","v":"Select"},{"$f":"Import!M23435","v":"Select"},{"$f":"Import!M23635","v":0},{"$f":"Import!M23835","v":0},{"$f":"Import!M24035","v":0}]
[124,{"$f":"Import!M23036","v":"Select"},{"$f":"Import!M23236","v":"Select"},{"$f":"Import!M23436","v":"Select"},{"$f":"Import!M23636","v":0},{"$f":"Import!M23836","v":0},{"$f":"Import!M24036","v":0}]
[125,{"$f":"Import!M23037","v":"Select"},{"$f":"Import!M23237","v":"Select"},{"$f":"Import!M23437","v":"Select"},{"$f":"Import!M23637","v":0},{"$f":"Import!M23837","v":0},{"$f":"Import!M24037","v":0}]
[126,{"$f":"Import!M23038","v":"Select"},{"$f":"Import!M23238","v":"Select"},{"$f":"Import!M23438","v":"Select"},{"$f":"Import!M23638","v":0},{"$f":"Import!M23838","v":0},{"$f":"Import!M24038","v":0}]
[127,{"$f":"Import!M23039","v":"Select"},{"$f":"Import!M23239","v":"Select"},{"$f":"Import!M23439","v":"Select"},{"$f":"Import!M23639","v":0},{"$f":"Import!M23839","v":0},{"$f":"Import!M24039","v":0}]
[128,{"$f":"Import!M23040","v":"Select"},{"$f":"Import!M23240","v":"Select"},{"$f":"Import!M23440","v":"Select"},{"$f":"Import!M23640","v":0},{"$f":"Import!M23840","v":0},{"$f":"Import!M24040","v":0}]
[129,{"$f":"Import!M23041","v":"Select"},{"$f":"Import!M23241","v":"Select"},{"$f":"Import!M23441","v":"Select"},{"$f":"Import!M23641","v":0},{"$f":"Import!M23841","v":0},{"$f":"Import!M24041","v":0}]
[130,{"$f":"Import!M23042","v":"Select"},{"$f":"Import!M23242","v":"Select"},{"$f":"Import!M23442","v":"Select"},{"$f":"Import!M23642","v":0},{"$f":"Import!M23842","v":0},{"$f":"Import!M24042","v":0}]
[{"$f":"A1925+1","v":131},{"$f":"Import!M23043","v":"Select"},{"$f":"Import!M23243","v":"Select"},{"$f":"Import!M23443","v":"Select"},{"$f":"Import!M23643","v":0},{"$f":"Import!M23843","v":0},{"$f":"Import!M24043","v":0}]
[132,{"$f":"Import!M23044","v":"Select"},{"$f":"Import!M23244","v":"Select"},{"$f":"Import!M23444","v":"Select"},{"$f":"Import!M23644","v":0},{"$f":"Import!M23844","v":0},{"$f":"Import!M24044","v":0}]
[133,{"$f":"Import!M23045","v":"Select"},{"$f":"Import!M23245","v":"Select"},{"$f":"Import!M23445","v":"Select"},{"$f":"Import!M23645","v":0},{"$f":"Import!M23845","v":0},{"$f":"Import!M24045","v":0}]
[134,{"$f":"Import!M23046","v":"Select"},{"$f":"Import!M23246","v":"Select"},{"$f":"Import!M23446","v":"Select"},{"$f":"Import!M23646","v":0},{"$f":"Import!M23846","v":0},{"$f":"Import!M24046","v":0}]
[135,{"$f":"Import!M23047","v":"Select"},{"$f":"Import!M23247","v":"Select"},{"$f":"Import!M23447","v":"Select"},{"$f":"Import!M23647","v":0},{"$f":"Import!M23847","v":0},{"$f":"Import!M24047","v":0}]
[136,{"$f":"Import!M23048","v":"Select"},{"$f":"Import!M23248","v":"Select"},{"$f":"Import!M23448","v":"Select"},{"$f":"Import!M23648","v":0},{"$f":"Import!M23848","v":0},{"$f":"Import!M24048","v":0}]
[137,{"$f":"Import!M23049","v":"Select"},{"$f":"Import!M23249","v":"Select"},{"$f":"Import!M23449","v":"Select"},{"$f":"Import!M23649","v":0},{"$f":"Import!M23849","v":0},{"$f":"Import!M24049","v":0}]
[138,{"$f":"Import!M23050","v":"Select"},{"$f":"Import!M23250","v":"Select"},{"$f":"Import!M23450","v":"Select"},{"$f":"Import!M23650","v":0},{"$f":"Import!M23850","v":0},{"$f":"Import!M24050","v":0}]
[139,{"$f":"Import!M23051","v":"Select"},{"$f":"Import!M23251","v":"Select"},{"$f":"Import!M23451","v":"Select"},{"$f":"Import!M23651","v":0},{"$f":"Import!M23851","v":0},{"$f":"Import!M24051","v":0}]
[140,{"$f":"Import!M23052","v":"Select"},{"$f":"Import!M23252","v":"Select"},{"$f":"Import!M23452","v":"Select"},{"$f":"Import!M23652","v":0},{"$f":"Import!M23852","v":0},{"$f":"Import!M24052","v":0}]
[141,{"$f":"Import!M23053","v":"Select"},{"$f":"Import!M23253","v":"Select"},{"$f":"Import!M23453","v":"Select"},{"$f":"Import!M23653","v":0},{"$f":"Import!M23853","v":0},{"$f":"Import!M24053","v":0}]
[142,{"$f":"Import!M23054","v":"Select"},{"$f":"Import!M23254","v":"Select"},{"$f":"Import!M23454","v":"Select"},{"$f":"Import!M23654","v":0},{"$f":"Import!M23854","v":0},{"$f":"Import!M24054","v":0}]
[143,{"$f":"Import!M23055","v":"Select"},{"$f":"Import!M23255","v":"Select"},{"$f":"Import!M23455","v":"Select"},{"$f":"Import!M23655","v":0},{"$f":"Import!M23855","v":0},{"$f":"Import!M24055","v":0}]
[144,{"$f":"Import!M23056","v":"Select"},{"$f":"Import!M23256","v":"Select"},{"$f":"Import!M23456","v":"Select"},{"$f":"Import!M23656","v":0},{"$f":"Import!M23856","v":0},{"$f":"Import!M24056","v":0}]
[145,{"$f":"Import!M23057","v":"Select"},{"$f":"Import!M23257","v":"Select"},{"$f":"Import!M23457","v":"Select"},{"$f":"Import!M23657","v":0},{"$f":"Import!M23857","v":0},{"$f":"Import!M24057","v":0}]
[146,{"$f":"Import!M23058","v":"Select"},{"$f":"Import!M23258","v":"Select"},{"$f":"Import!M23458","v":"Select"},{"$f":"Import!M23658","v":0},{"$f":"Import!M23858","v":0},{"$f":"Import!M24058","v":0}]
[147,{"$f":"Import!M23059","v":"Select"},{"$f":"Import!M23259","v":"Select"},{"$f":"Import!M23459","v":"Select"},{"$f":"Import!M23659","v":0},{"$f":"Import!M23859","v":0},{"$f":"Import!M24059","v":0}]
[148,{"$f":"Import!M23060","v":"Select"},{"$f":"Import!M23260","v":"Select"},{"$f":"Import!M23460","v":"Select"},{"$f":"Import!M23660","v":0},{"$f":"Import!M23860","v":0},{"$f":"Import!M24060","v":0}]
[149,{"$f":"Import!M23061","v":"Select"},{"$f":"Import!M23261","v":"Select"},{"$f":"Import!M23461","v":"Select"},{"$f":"Import!M23661","v":0},{"$f":"Import!M23861","v":0},{"$f":"Import!M24061","v":0}]
[150,{"$f":"Import!M23062","v":"Select"},{"$f":"Import!M23262","v":"Select"},{"$f":"Import!M23462","v":"Select"},{"$f":"Import!M23662","v":0},{"$f":"Import!M23862","v":0},{"$f":"Import!M24062","v":0}]
[151,{"$f":"Import!M23063","v":"Select"},{"$f":"Import!M23263","v":"Select"},{"$f":"Import!M23463","v":"Select"},{"$f":"Import!M23663","v":0},{"$f":"Import!M23863","v":0},{"$f":"Import!M24063","v":0}]
[152,{"$f":"Import!M23064","v":"Select"},{"$f":"Import!M23264","v":"Select"},{"$f":"Import!M23464","v":"Select"},{"$f":"Import!M23664","v":0},{"$f":"Import!M23864","v":0},{"$f":"Import!M24064","v":0}]
[153,{"$f":"Import!M23065","v":"Select"},{"$f":"Import!M23265","v":"Select"},{"$f":"Import!M23465","v":"Select"},{"$f":"Import!M23665","v":0},{"$f":"Import!M23865","v":0},{"$f":"Import!M24065","v":0}]
[154,{"$f":"Import!M23066","v":"Select"},{"$f":"Import!M23266","v":"Select"},{"$f":"Import!M23466","v":"Select"},{"$f":"Import!M23666","v":0},{"$f":"Import!M23866","v":0},{"$f":"Import!M24066","v":0}]
[155,{"$f":"Import!M23067","v":"Select"},{"$f":"Import!M23267","v":"Select"},{"$f":"Import!M23467","v":"Select"},{"$f":"Import!M23667","v":0},{"$f":"Import!M23867","v":0},{"$f":"Import!M24067","v":0}]
[156,{"$f":"Import!M23068","v":"Select"},{"$f":"Import!M23268","v":"Select"},{"$f":"Import!M23468","v":"Select"},{"$f":"Import!M23668","v":0},{"$f":"Import!M23868","v":0},{"$f":"Import!M24068","v":0}]
[157,{"$f":"Import!M23069","v":"Select"},{"$f":"Import!M23269","v":"Select"},{"$f":"Import!M23469","v":"Select"},{"$f":"Import!M23669","v":0},{"$f":"Import!M23869","v":0},{"$f":"Import!M24069","v":0}]
[158,{"$f":"Import!M23070","v":"Select"},{"$f":"Import!M23270","v":"Select"},{"$f":"Import!M23470","v":"Select"},{"$f":"Import!M23670","v":0},{"$f":"Import!M23870","v":0},{"$f":"Import!M24070","v":0}]
[159,{"$f":"Import!M23071","v":"Select"},{"$f":"Import!M23271","v":"Select"},{"$f":"Import!M23471","v":"Select"},{"$f":"Import!M23671","v":0},{"$f":"Import!M23871","v":0},{"$f":"Import!M24071","v":0}]
[160,{"$f":"Import!M23072","v":"Select"},{"$f":"Import!M23272","v":"Select"},{"$f":"Import!M23472","v":"Select"},{"$f":"Import!M23672","v":0},{"$f":"Import!M23872","v":0},{"$f":"Import!M24072","v":0}]
[161,{"$f":"Import!M23073","v":"Select"},{"$f":"Import!M23273","v":"Select"},{"$f":"Import!M23473","v":"Select"},{"$f":"Import!M23673","v":0},{"$f":"Import!M23873","v":0},{"$f":"Import!M24073","v":0}]
[162,{"$f":"Import!M23074","v":"Select"},{"$f":"Import!M23274","v":"Select"},{"$f":"Import!M23474","v":"Select"},{"$f":"Import!M23674","v":0},{"$f":"Import!M23874","v":0},{"$f":"Import!M24074","v":0}]
[163,{"$f":"Import!M23075","v":"Select"},{"$f":"Import!M23275","v":"Select"},{"$f":"Import!M23475","v":"Select"},{"$f":"Import!M23675","v":0},{"$f":"Import!M23875","v":0},{"$f":"Import!M24075","v":0}]
[164,{"$f":"Import!M23076","v":"Select"},{"$f":"Import!M23276","v":"Select"},{"$f":"Import!M23476","v":"Select"},{"$f":"Import!M23676","v":0},{"$f":"Import!M23876","v":0},{"$f":"Import!M24076","v":0}]
[165,{"$f":"Import!M23077","v":"Select"},{"$f":"Import!M23277","v":"Select"},{"$f":"Import!M23477","v":"Select"},{"$f":"Import!M23677","v":0},{"$f":"Import!M23877","v":0},{"$f":"Import!M24077","v":0}]
[166,{"$f":"Import!M23078","v":"Select"},{"$f":"Import!M23278","v":"Select"},{"$f":"Import!M23478","v":"Select"},{"$f":"Import!M23678","v":0},{"$f":"Import!M23878","v":0},{"$f":"Import!M24078","v":0}]
[167,{"$f":"Import!M23079","v":"Select"},{"$f":"Import!M23279","v":"Select"},{"$f":"Import!M23479","v":"Select"},{"$f":"Import!M23679","v":0},{"$f":"Import!M23879","v":0},{"$f":"Import!M24079","v":0}]
[168,{"$f":"Import!M23080","v":"Select"},{"$f":"Import!M23280","v":"Select"},{"$f":"Import!M23480","v":"Select"},{"$f":"Import!M23680","v":0},{"$f":"Import!M23880","v":0},{"$f":"Import!M24080","v":0}]
[169,{"$f":"Import!M23081","v":"Select"},{"$f":"Import!M23281","v":"Select"},{"$f":"Import!M23481","v":"Select"},{"$f":"Import!M23681","v":0},{"$f":"Import!M23881","v":0},{"$f":"Import!M24081","v":0}]
[170,{"$f":"Import!M23082","v":"Select"},{"$f":"Import!M23282","v":"Select"},{"$f":"Import!M23482","v":"Select"},{"$f":"Import!M23682","v":0},{"$f":"Import!M23882","v":0},{"$f":"Import!M24082","v":0}]
[171,{"$f":"Import!M23083","v":"Select"},{"$f":"Import!M23283","v":"Select"},{"$f":"Import!M23483","v":"Select"},{"$f":"Import!M23683","v":0},{"$f":"Import!M23883","v":0},{"$f":"Import!M24083","v":0}]
[172,{"$f":"Import!M23084","v":"Select"},{"$f":"Import!M23284","v":"Select"},{"$f":"Import!M23484","v":"Select"},{"$f":"Import!M23684","v":0},{"$f":"Import!M23884","v":0},{"$f":"Import!M24084","v":0}]
[173,{"$f":"Import!M23085","v":"Select"},{"$f":"Import!M23285","v":"Select"},{"$f":"Import!M23485","v":"Select"},{"$f":"Import!M23685","v":0},{"$f":"Import!M23885","v":0},{"$f":"Import!M24085","v":0}]
[174,{"$f":"Import!M23086","v":"Select"},{"$f":"Import!M23286","v":"Select"},{"$f":"Import!M23486","v":"Select"},{"$f":"Import!M23686","v":0},{"$f":"Import!M23886","v":0},{"$f":"Import!M24086","v":0}]
[175,{"$f":"Import!M23087","v":"Select"},{"$f":"Import!M23287","v":"Select"},{"$f":"Import!M23487","v":"Select"},{"$f":"Import!M23687","v":0},{"$f":"Import!M23887","v":0},{"$f":"Import!M24087","v":0}]
[176,{"$f":"Import!M23088","v":"Select"},{"$f":"Import!M23288","v":"Select"},{"$f":"Import!M23488","v":"Select"},{"$f":"Import!M23688","v":0},{"$f":"Import!M23888","v":0},{"$f":"Import!M24088","v":0}]
[177,{"$f":"Import!M23089","v":"Select"},{"$f":"Import!M23289","v":"Select"},{"$f":"Import!M23489","v":"Select"},{"$f":"Import!M23689","v":0},{"$f":"Import!M23889","v":0},{"$f":"Import!M24089","v":0}]
[178,{"$f":"Import!M23090","v":"Select"},{"$f":"Import!M23290","v":"Select"},{"$f":"Import!M23490","v":"Select"},{"$f":"Import!M23690","v":0},{"$f":"Import!M23890","v":0},{"$f":"Import!M24090","v":0}]
[179,{"$f":"Import!M23091","v":"Select"},{"$f":"Import!M23291","v":"Select"},{"$f":"Import!M23491","v":"Select"},{"$f":"Import!M23691","v":0},{"$f":"Import!M23891","v":0},{"$f":"Import!M24091","v":0}]
[180,{"$f":"Import!M23092","v":"Select"},{"$f":"Import!M23292","v":"Select"},{"$f":"Import!M23492","v":"Select"},{"$f":"Import!M23692","v":0},{"$f":"Import!M23892","v":0},{"$f":"Import!M24092","v":0}]
[181,{"$f":"Import!M23093","v":"Select"},{"$f":"Import!M23293","v":"Select"},{"$f":"Import!M23493","v":"Select"},{"$f":"Import!M23693","v":0},{"$f":"Import!M23893","v":0},{"$f":"Import!M24093","v":0}]
[182,{"$f":"Import!M23094","v":"Select"},{"$f":"Import!M23294","v":"Select"},{"$f":"Import!M23494","v":"Select"},{"$f":"Import!M23694","v":0},{"$f":"Import!M23894","v":0},{"$f":"Import!M24094","v":0}]
[183,{"$f":"Import!M23095","v":"Select"},{"$f":"Import!M23295","v":"Select"},{"$f":"Import!M23495","v":"Select"},{"$f":"Import!M23695","v":0},{"$f":"Import!M23895","v":0},{"$f":"Import!M24095","v":0}]
[184,{"$f":"Import!M23096","v":"Select"},{"$f":"Import!M23296","v":"Select"},{"$f":"Import!M23496","v":"Select"},{"$f":"Import!M23696","v":0},{"$f":"Import!M23896","v":0},{"$f":"Import!M24096","v":0}]
[185,{"$f":"Import!M23097","v":"Select"},{"$f":"Import!M23297","v":"Select"},{"$f":"Import!M23497","v":"Select"},{"$f":"Import!M23697","v":0},{"$f":"Import!M23897","v":0},{"$f":"Import!M24097","v":0}]
[186,{"$f":"Import!M23098","v":"Select"},{"$f":"Import!M23298","v":"Select"},{"$f":"Import!M23498","v":"Select"},{"$f":"Import!M23698","v":0},{"$f":"Import!M23898","v":0},{"$f":"Import!M24098","v":0}]
[187,{"$f":"Import!M23099","v":"Select"},{"$f":"Import!M23299","v":"Select"},{"$f":"Import!M23499","v":"Select"},{"$f":"Import!M23699","v":0},{"$f":"Import!M23899","v":0},{"$f":"Import!M24099","v":0}]
[188,{"$f":"Import!M23100","v":"Select"},{"$f":"Import!M23300","v":"Select"},{"$f":"Import!M23500","v":"Select"},{"$f":"Import!M23700","v":0},{"$f":"Import!M23900","v":0},{"$f":"Import!M24100","v":0}]
[189,{"$f":"Import!M23101","v":"Select"},{"$f":"Import!M23301","v":"Select"},{"$f":"Import!M23501","v":"Select"},{"$f":"Import!M23701","v":0},{"$f":"Import!M23901","v":0},{"$f":"Import!M24101","v":0}]
[190,{"$f":"Import!M23102","v":"Select"},{"$f":"Import!M23302","v":"Select"},{"$f":"Import!M23502","v":"Select"},{"$f":"Import!M23702","v":0},{"$f":"Import!M23902","v":0},{"$f":"Import!M24102","v":0}]
[191,{"$f":"Import!M23103","v":"Select"},{"$f":"Import!M23303","v":"Select"},{"$f":"Import!M23503","v":"Select"},{"$f":"Import!M23703","v":0},{"$f":"Import!M23903","v":0},{"$f":"Import!M24103","v":0}]
[192,{"$f":"Import!M23104","v":"Select"},{"$f":"Import!M23304","v":"Select"},{"$f":"Import!M23504","v":"Select"},{"$f":"Import!M23704","v":0},{"$f":"Import!M23904","v":0},{"$f":"Import!M24104","v":0}]
[193,{"$f":"Import!M23105","v":"Select"},{"$f":"Import!M23305","v":"Select"},{"$f":"Import!M23505","v":"Select"},{"$f":"Import!M23705","v":0},{"$f":"Import!M23905","v":0},{"$f":"Import!M24105","v":0}]
[194,{"$f":"Import!M23106","v":"Select"},{"$f":"Import!M23306","v":"Select"},{"$f":"Import!M23506","v":"Select"},{"$f":"Import!M23706","v":0},{"$f":"Import!M23906","v":0},{"$f":"Import!M24106","v":0}]
[{"$f":"A1989+1","v":195},{"$f":"Import!M23107","v":"Select"},{"$f":"Import!M23307","v":"Select"},{"$f":"Import!M23507","v":"Select"},{"$f":"Import!M23707","v":0},{"$f":"Import!M23907","v":0},{"$f":"Import!M24107","v":0}]
[196,{"$f":"Import!M23108","v":"Select"},{"$f":"Import!M23308","v":"Select"},{"$f":"Import!M23508","v":"Select"},{"$f":"Import!M23708","v":0},{"$f":"Import!M23908","v":0},{"$f":"Import!M24108","v":0}]
[197,{"$f":"Import!M23109","v":"Select"},{"$f":"Import!M23309","v":"Select"},{"$f":"Import!M23509","v":"Select"},{"$f":"Import!M23709","v":0},{"$f":"Import!M23909","v":0},{"$f":"Import!M24109","v":0}]
[198,{"$f":"Import!M23110","v":"Select"},{"$f":"Import!M23310","v":"Select"},{"$f":"Import!M23510","v":"Select"},{"$f":"Import!M23710","v":0},{"$f":"Import!M23910","v":0},{"$f":"Import!M24110","v":0}]
[199,{"$f":"Import!M23111","v":"Select"},{"$f":"Import!M23311","v":"Select"},{"$f":"Import!M23511","v":"Select"},{"$f":"Import!M23711","v":0},{"$f":"Import!M23911","v":0},{"$f":"Import!M24111","v":0}]
[200,{"$f":"Import!M23112","v":"Select"},{"$f":"Import!M23312","v":"Select"},{"$f":"Import!M23512","v":"Select"},{"$f":"Import!M23712","v":0},{"$f":"Import!M23912","v":0},{"$f":"Import!M24112","v":0}]
[]
[null,"Total Other Assets",null,null,null,{"$f":"SUM(F1796:F1995)","v":0}]
[]
[]
[null,"TOTAL ASSETS (Schedules VI (EBS) and VIA (EBS))",null,null,null,{"$f":"F212+F620+F986+G1094+F1230+E1338+G1446+G1554+I1761+F1997+'Schedule VIA (EBS)'!F2000","v":0}]
[]
[null,"TOTAL ASSETS (Form 1EBS Line 15)",null,null,null,{"$f":"'Form 1EBS'!F90","v":0}]
[]
[null,"Check Form 1EBS",null,null,null,{"$f":"IF(F2006=0,\"TRUE\",\"FALSE\")","v":"TRUE"}]
[]
[null,"Difference",null,null,null,{"$f":"ROUND(F2002-F2000,0)","v":0}]
[]
[null,"(L) INFORMATION ON SECURITIES LENDING AND REPURCHASE TRANSACTIONS"]
[]
[null,null,{"$f":"YEAR($C$3)","v":2023}]
[null,null,"Notional Value","Fair Value",null,"Comments"]
[null,"Securities Lending transactions",{"$f":"Import!M24113","v":0},{"$f":"Import!M24115","v":0},null,{"$f":"Import!M24117","v":0}]
[null,"Repo / Reverse Repo transactions",{"$f":"Import!M24114","v":0},{"$f":"Import!M24116","v":0},null,{"$f":"Import!M24118","v":0}]
[]
[null,"Total",{"$f":"SUM(C2012:C2013)","v":0},{"$f":"SUM(D2012:D2013)","v":0}]
[]
[null,"(M) INFORMATION ON FAIR VALUATION HIERARCHY"]
[]
[null,null,{"$f":"YEAR($C$3)","v":2023},"Fair Value"]
[null,null,"Unaffiliated","Affiliated","Total","Comments"]
[null,"Level 1 Assets (according to Fair Value hierarchy)",{"$f":"Import!M24119","v":0},{"$f":"Import!M24122","v":0},{"$f":"SUM(C2021:D2021)","v":0},{"$f":"Import!M24125","v":0}]
[null,"Level 2 Assets (according to Fair Value hierarchy)",{"$f":"Import!M24120","v":0},{"$f":"Import!M24123","v":0},{"$f":"SUM(C2022:D2022)","v":0},{"$f":"Import!M24126","v":0}]
[null,"Level 3 Assets (according to Fair Value hierarchy)",{"$f":"Import!M24121","v":0},{"$f":"Import!M24124","v":0},{"$f":"SUM(C2023:D2023)","v":0},{"$f":"Import!M24127","v":0}]
[]
[null,"Total",{"$f":"SUM(C2021:C2023)","v":0},{"$f":"SUM(D2021:D2023)","v":0},{"$f":"SUM(E2021:E2023)","v":0}]
[]
[null,"Check Securities Allocated by Levels 1-3",null,null,{"$f":"F212+F620+F986+G1094+F1230+E1338+G1446+G1554","v":0}]
[]
[null,"Difference",null,null,{"$f":"ROUND(E2025-E2027,0)","v":0},{"$f":"IF(E2029=0,\"TRUE\",\"FALSE\")","v":"TRUE"}]
[]
[null,"EFFECTIVE DURATION",null,null,{"$f":"Import!M24128","v":0}]
[]
[null,"EFFECTIVE CONVEXITY",null,null,{"$f":"Import!M24129","v":0}]
[]
[null,"Fair Values",{"$f":"YEAR(C3)","v":2023}]
[null,null,null,null,null,null,null,null,"If Other Rating Agency is used, specify the name of such agency (if applicable)",{"$f":"Import!M24130","v":0},{"$f":"Import!M24131","v":0},{"$f":"Import!M24132","v":0},{"$f":"Import!M24133","v":0}]
[null,"Asset/Rating Category","BSCR Rating","Moody's Investor's Service","Standard and Poor's","Dominion Bond Rating Service","Kroll Bond Rating Agency","Egan Jones Rating Company","Japan Credit Rating Agency","BMA-approved Internal Ratings","Other BMA-approved Rating Agency 1","Other BMA-approved Rating Agency 2","Other BMA-approved Rating Agency 3","Total"]
[null,"Financial institutions, brokers and dealers",1,{"$f":"Import!M24134","v":0},{"$f":"Import!M24175","v":0},{"$f":"Import!M24216","v":0},{"$f":"Import!M24257","v":0},{"$f":"Import!M24298","v":0},{"$f":"Import!M24339","v":0},{"$f":"Import!M24380","v":0},{"$f":"Import!M24421","v":0},{"$f":"Import!M24462","v":0},{"$f":"Import!M24503","v":0},{"$f":"SUM(D2038:M2038)","v":0}]
[null,"Financial institutions, brokers and dealers",2,{"$f":"Import!M24135","v":0},{"$f":"Import!M24176","v":0},{"$f":"Import!M24217","v":0},{"$f":"Import!M24258","v":0},{"$f":"Import!M24299","v":0},{"$f":"Import!M24340","v":0},{"$f":"Import!M24381","v":0},{"$f":"Import!M24422","v":0},{"$f":"Import!M24463","v":0},{"$f":"Import!M24504","v":0},{"$f":"SUM(D2039:M2039)","v":0}]
[null,"Financial institutions, brokers and dealers",3,{"$f":"Import!M24136","v":0},{"$f":"Import!M24177","v":0},{"$f":"Import!M24218","v":0},{"$f":"Import!M24259","v":0},{"$f":"Import!M24300","v":0},{"$f":"Import!M24341","v":0},{"$f":"Import!M24382","v":0},{"$f":"Import!M24423","v":0},{"$f":"Import!M24464","v":0},{"$f":"Import!M24505","v":0},0]
[null,"Financial institutions, brokers and dealers",4,{"$f":"Import!M24137","v":0},{"$f":"Import!M24178","v":0},{"$f":"Import!M24219","v":0},{"$f":"Import!M24260","v":0},{"$f":"Import!M24301","v":0},{"$f":"Import!M24342","v":0},{"$f":"Import!M24383","v":0},{"$f":"Import!M24424","v":0},{"$f":"Import!M24465","v":0},{"$f":"Import!M24506","v":0},0]
[null,"Financial institutions, brokers and dealers",5,{"$f":"Import!M24138","v":0},{"$f":"Import!M24179","v":0},{"$f":"Import!M24220","v":0},{"$f":"Import!M24261","v":0},{"$f":"Import!M24302","v":0},{"$f":"Import!M24343","v":0},{"$f":"Import!M24384","v":0},{"$f":"Import!M24425","v":0},{"$f":"Import!M24466","v":0},{"$f":"Import!M24507","v":0},0]
[null,"Financial institutions, brokers and dealers",6,{"$f":"Import!M24139","v":0},{"$f":"Import!M24180","v":0},{"$f":"Import!M24221","v":0},{"$f":"Import!M24262","v":0},{"$f":"Import!M24303","v":0},{"$f":"Import!M24344","v":0},{"$f":"Import!M24385","v":0},{"$f":"Import!M24426","v":0},{"$f":"Import!M24467","v":0},{"$f":"Import!M24508","v":0},0]
[null,"Financial institutions, brokers and dealers",7,{"$f":"Import!M24140","v":0},{"$f":"Import!M24181","v":0},{"$f":"Import!M24222","v":0},{"$f":"Import!M24263","v":0},{"$f":"Import!M24304","v":0},{"$f":"Import!M24345","v":0},{"$f":"Import!M24386","v":0},{"$f":"Import!M24427","v":0},{"$f":"Import!M24468","v":0},{"$f":"Import!M24509","v":0},0]
[null,"Financial institutions, brokers and dealers",8,{"$f":"Import!M24141","v":0},{"$f":"Import!M24182","v":0},{"$f":"Import!M24223","v":0},{"$f":"Import!M24264","v":0},{"$f":"Import!M24305","v":0},{"$f":"Import!M24346","v":0},{"$f":"Import!M24387","v":0},{"$f":"Import!M24428","v":0},{"$f":"Import!M24469","v":0},{"$f":"Import!M24510","v":0},0]
[null,"Insurance companies",1,{"$f":"Import!M24142","v":0},{"$f":"Import!M24183","v":0},{"$f":"Import!M24224","v":0},{"$f":"Import!M24265","v":0},{"$f":"Import!M24306","v":0},{"$f":"Import!M24347","v":0},{"$f":"Import!M24388","v":0},{"$f":"Import!M24429","v":0},{"$f":"Import!M24470","v":0},{"$f":"Import!M24511","v":0},0]
[null,"Insurance companies",2,{"$f":"Import!M24143","v":0},{"$f":"Import!M24184","v":0},{"$f":"Import!M24225","v":0},{"$f":"Import!M24266","v":0},{"$f":"Import!M24307","v":0},{"$f":"Import!M24348","v":0},{"$f":"Import!M24389","v":0},{"$f":"Import!M24430","v":0},{"$f":"Import!M24471","v":0},{"$f":"Import!M24512","v":0},0]
[null,"Insurance companies",3,{"$f":"Import!M24144","v":0},{"$f":"Import!M24185","v":0},{"$f":"Import!M24226","v":0},{"$f":"Import!M24267","v":0},{"$f":"Import!M24308","v":0},{"$f":"Import!M24349","v":0},{"$f":"Import!M24390","v":0},{"$f":"Import!M24431","v":0},{"$f":"Import!M24472","v":0},{"$f":"Import!M24513","v":0},0]
[null,"Insurance companies",4,{"$f":"Import!M24145","v":0},{"$f":"Import!M24186","v":0},{"$f":"Import!M24227","v":0},{"$f":"Import!M24268","v":0},{"$f":"Import!M24309","v":0},{"$f":"Import!M24350","v":0},{"$f":"Import!M24391","v":0},{"$f":"Import!M24432","v":0},{"$f":"Import!M24473","v":0},{"$f":"Import!M24514","v":0},0]
[null,"Insurance companies",5,{"$f":"Import!M24146","v":0},{"$f":"Import!M24187","v":0},{"$f":"Import!M24228","v":0},{"$f":"Import!M24269","v":0},{"$f":"Import!M24310","v":0},{"$f":"Import!M24351","v":0},{"$f":"Import!M24392","v":0},{"$f":"Import!M24433","v":0},{"$f":"Import!M24474","v":0},{"$f":"Import!M24515","v":0},0]
[null,"Insurance companies",6,{"$f":"Import!M24147","v":0},{"$f":"Import!M24188","v":0},{"$f":"Import!M24229","v":0},{"$f":"Import!M24270","v":0},{"$f":"Import!M24311","v":0},{"$f":"Import!M24352","v":0},{"$f":"Import!M24393","v":0},{"$f":"Import!M24434","v":0},{"$f":"Import!M24475","v":0},{"$f":"Import!M24516","v":0},0]
[null,"Insurance companies",7,{"$f":"Import!M24148","v":0},{"$f":"Import!M24189","v":0},{"$f":"Import!M24230","v":0},{"$f":"Import!M24271","v":0},{"$f":"Import!M24312","v":0},{"$f":"Import!M24353","v":0},{"$f":"Import!M24394","v":0},{"$f":"Import!M24435","v":0},{"$f":"Import!M24476","v":0},{"$f":"Import!M24517","v":0},0]
[null,"Insurance companies",8,{"$f":"Import!M24149","v":0},{"$f":"Import!M24190","v":0},{"$f":"Import!M24231","v":0},{"$f":"Import!M24272","v":0},{"$f":"Import!M24313","v":0},{"$f":"Import!M24354","v":0},{"$f":"Import!M24395","v":0},{"$f":"Import!M24436","v":0},{"$f":"Import!M24477","v":0},{"$f":"Import!M24518","v":0},0]
[null,"Corporate issuers",1,{"$f":"Import!M24150","v":0},{"$f":"Import!M24191","v":0},{"$f":"Import!M24232","v":0},{"$f":"Import!M24273","v":0},{"$f":"Import!M24314","v":0},{"$f":"Import!M24355","v":0},{"$f":"Import!M24396","v":0},{"$f":"Import!M24437","v":0},{"$f":"Import!M24478","v":0},{"$f":"Import!M24519","v":0},0]
[null,"Corporate issuers",2,{"$f":"Import!M24151","v":0},{"$f":"Import!M24192","v":0},{"$f":"Import!M24233","v":0},{"$f":"Import!M24274","v":0},{"$f":"Import!M24315","v":0},{"$f":"Import!M24356","v":0},{"$f":"Import!M24397","v":0},{"$f":"Import!M24438","v":0},{"$f":"Import!M24479","v":0},{"$f":"Import!M24520","v":0},0]
[null,"Corporate issuers",3,{"$f":"Import!M24152","v":0},{"$f":"Import!M24193","v":0},{"$f":"Import!M24234","v":0},{"$f":"Import!M24275","v":0},{"$f":"Import!M24316","v":0},{"$f":"Import!M24357","v":0},{"$f":"Import!M24398","v":0},{"$f":"Import!M24439","v":0},{"$f":"Import!M24480","v":0},{"$f":"Import!M24521","v":0},0]
[null,"Corporate issuers",4,{"$f":"Import!M24153","v":0},{"$f":"Import!M24194","v":0},{"$f":"Import!M24235","v":0},{"$f":"Import!M24276","v":0},{"$f":"Import!M24317","v":0},{"$f":"Import!M24358","v":0},{"$f":"Import!M24399","v":0},{"$f":"Import!M24440","v":0},{"$f":"Import!M24481","v":0},{"$f":"Import!M24522","v":0},0]
[null,"Corporate issuers",5,{"$f":"Import!M24154","v":0},{"$f":"Import!M24195","v":0},{"$f":"Import!M24236","v":0},{"$f":"Import!M24277","v":0},{"$f":"Import!M24318","v":0},{"$f":"Import!M24359","v":0},{"$f":"Import!M24400","v":0},{"$f":"Import!M24441","v":0},{"$f":"Import!M24482","v":0},{"$f":"Import!M24523","v":0},0]
[null,"Corporate issuers",6,{"$f":"Import!M24155","v":0},{"$f":"Import!M24196","v":0},{"$f":"Import!M24237","v":0},{"$f":"Import!M24278","v":0},{"$f":"Import!M24319","v":0},{"$f":"Import!M24360","v":0},{"$f":"Import!M24401","v":0},{"$f":"Import!M24442","v":0},{"$f":"Import!M24483","v":0},{"$f":"Import!M24524","v":0},0]
[null,"Corporate issuers",7,{"$f":"Import!M24156","v":0},{"$f":"Import!M24197","v":0},{"$f":"Import!M24238","v":0},{"$f":"Import!M24279","v":0},{"$f":"Import!M24320","v":0},{"$f":"Import!M24361","v":0},{"$f":"Import!M24402","v":0},{"$f":"Import!M24443","v":0},{"$f":"Import!M24484","v":0},{"$f":"Import!M24525","v":0},0]
[null,"Corporate issuers",8,{"$f":"Import!M24157","v":0},{"$f":"Import!M24198","v":0},{"$f":"Import!M24239","v":0},{"$f":"Import!M24280","v":0},{"$f":"Import!M24321","v":0},{"$f":"Import!M24362","v":0},{"$f":"Import!M24403","v":0},{"$f":"Import!M24444","v":0},{"$f":"Import!M24485","v":0},{"$f":"Import!M24526","v":0},0]
[null,"Issuers of asset-backed securities",1,{"$f":"Import!M24158","v":0},{"$f":"Import!M24199","v":0},{"$f":"Import!M24240","v":0},{"$f":"Import!M24281","v":0},{"$f":"Import!M24322","v":0},{"$f":"Import!M24363","v":0},{"$f":"Import!M24404","v":0},{"$f":"Import!M24445","v":0},{"$f":"Import!M24486","v":0},{"$f":"Import!M24527","v":0},0]
[null,"Issuers of asset-backed securities",2,{"$f":"Import!M24159","v":0},{"$f":"Import!M24200","v":0},{"$f":"Import!M24241","v":0},{"$f":"Import!M24282","v":0},{"$f":"Import!M24323","v":0},{"$f":"Import!M24364","v":0},{"$f":"Import!M24405","v":0},{"$f":"Import!M24446","v":0},{"$f":"Import!M24487","v":0},{"$f":"Import!M24528","v":0},0]
[null,"Issuers of asset-backed securities",3,{"$f":"Import!M24160","v":0},{"$f":"Import!M24201","v":0},{"$f":"Import!M24242","v":0},{"$f":"Import!M24283","v":0},{"$f":"Import!M24324","v":0},{"$f":"Import!M24365","v":0},{"$f":"Import!M24406","v":0},{"$f":"Import!M24447","v":0},{"$f":"Import!M24488","v":0},{"$f":"Import!M24529","v":0},0]
[null,"Issuers of asset-backed securities",4,{"$f":"Import!M24161","v":0},{"$f":"Import!M24202","v":0},{"$f":"Import!M24243","v":0},{"$f":"Import!M24284","v":0},{"$f":"Import!M24325","v":0},{"$f":"Import!M24366","v":0},{"$f":"Import!M24407","v":0},{"$f":"Import!M24448","v":0},{"$f":"Import!M24489","v":0},{"$f":"Import!M24530","v":0},0]
[null,"Issuers of asset-backed securities",5,{"$f":"Import!M24162","v":0},{"$f":"Import!M24203","v":0},{"$f":"Import!M24244","v":0},{"$f":"Import!M24285","v":0},{"$f":"Import!M24326","v":0},{"$f":"Import!M24367","v":0},{"$f":"Import!M24408","v":0},{"$f":"Import!M24449","v":0},{"$f":"Import!M24490","v":0},{"$f":"Import!M24531","v":0},0]
[null,"Issuers of asset-backed securities",6,{"$f":"Import!M24163","v":0},{"$f":"Import!M24204","v":0},{"$f":"Import!M24245","v":0},{"$f":"Import!M24286","v":0},{"$f":"Import!M24327","v":0},{"$f":"Import!M24368","v":0},{"$f":"Import!M24409","v":0},{"$f":"Import!M24450","v":0},{"$f":"Import!M24491","v":0},{"$f":"Import!M24532","v":0},0]
[null,"Issuers of asset-backed securities",7,{"$f":"Import!M24164","v":0},{"$f":"Import!M24205","v":0},{"$f":"Import!M24246","v":0},{"$f":"Import!M24287","v":0},{"$f":"Import!M24328","v":0},{"$f":"Import!M24369","v":0},{"$f":"Import!M24410","v":0},{"$f":"Import!M24451","v":0},{"$f":"Import!M24492","v":0},{"$f":"Import!M24533","v":0},0]
[null,"Issuers of asset-backed securities",8,{"$f":"Import!M24165","v":0},{"$f":"Import!M24206","v":0},{"$f":"Import!M24247","v":0},{"$f":"Import!M24288","v":0},{"$f":"Import!M24329","v":0},{"$f":"Import!M24370","v":0},{"$f":"Import!M24411","v":0},{"$f":"Import!M24452","v":0},{"$f":"Import!M24493","v":0},{"$f":"Import!M24534","v":0},0]
[null,"Government securities, municipal securities, foreign government securities",0,{"$f":"Import!M24166","v":0},{"$f":"Import!M24207","v":0},{"$f":"Import!M24248","v":0},{"$f":"Import!M24289","v":0},{"$f":"Import!M24330","v":0},{"$f":"Import!M24371","v":0},{"$f":"Import!M24412","v":0},{"$f":"Import!M24453","v":0},{"$f":"Import!M24494","v":0},{"$f":"Import!M24535","v":0},0]
[null,"Government securities, municipal securities, foreign government securities",1,{"$f":"Import!M24167","v":0},{"$f":"Import!M24208","v":0},{"$f":"Import!M24249","v":0},{"$f":"Import!M24290","v":0},{"$f":"Import!M24331","v":0},{"$f":"Import!M24372","v":0},{"$f":"Import!M24413","v":0},{"$f":"Import!M24454","v":0},{"$f":"Import!M24495","v":0},{"$f":"Import!M24536","v":0},0]
[null,"Government securities, municipal securities, foreign government securities",2,{"$f":"Import!M24168","v":0},{"$f":"Import!M24209","v":0},{"$f":"Import!M24250","v":0},{"$f":"Import!M24291","v":0},{"$f":"Import!M24332","v":0},{"$f":"Import!M24373","v":0},{"$f":"Import!M24414","v":0},{"$f":"Import!M24455","v":0},{"$f":"Import!M24496","v":0},{"$f":"Import!M24537","v":0},0]
[null,"Government securities, municipal securities, foreign government securities",3,{"$f":"Import!M24169","v":0},{"$f":"Import!M24210","v":0},{"$f":"Import!M24251","v":0},{"$f":"Import!M24292","v":0},{"$f":"Import!M24333","v":0},{"$f":"Import!M24374","v":0},{"$f":"Import!M24415","v":0},{"$f":"Import!M24456","v":0},{"$f":"Import!M24497","v":0},{"$f":"Import!M24538","v":0},0]
[null,"Government securities, municipal securities, foreign government securities",4,{"$f":"Import!M24170","v":0},{"$f":"Import!M24211","v":0},{"$f":"Import!M24252","v":0},{"$f":"Import!M24293","v":0},{"$f":"Import!M24334","v":0},{"$f":"Import!M24375","v":0},{"$f":"Import!M24416","v":0},{"$f":"Import!M24457","v":0},{"$f":"Import!M24498","v":0},{"$f":"Import!M24539","v":0},0]
[null,"Government securities, municipal securities, foreign government securities",5,{"$f":"Import!M24171","v":0},{"$f":"Import!M24212","v":0},{"$f":"Import!M24253","v":0},{"$f":"Import!M24294","v":0},{"$f":"Import!M24335","v":0},{"$f":"Import!M24376","v":0},{"$f":"Import!M24417","v":0},{"$f":"Import!M24458","v":0},{"$f":"Import!M24499","v":0},{"$f":"Import!M24540","v":0},0]
[null,"Government securities, municipal securities, foreign government securities",6,{"$f":"Import!M24172","v":0},{"$f":"Import!M24213","v":0},{"$f":"Import!M24254","v":0},{"$f":"Import!M24295","v":0},{"$f":"Import!M24336","v":0},{"$f":"Import!M24377","v":0},{"$f":"Import!M24418","v":0},{"$f":"Import!M24459","v":0},{"$f":"Import!M24500","v":0},{"$f":"Import!M24541","v":0},0]
[null,"Government securities, municipal securities, foreign government securities",7,{"$f":"Import!M24173","v":0},{"$f":"Import!M24214","v":0},{"$f":"Import!M24255","v":0},{"$f":"Import!M24296","v":0},{"$f":"Import!M24337","v":0},{"$f":"Import!M24378","v":0},{"$f":"Import!M24419","v":0},{"$f":"Import!M24460","v":0},{"$f":"Import!M24501","v":0},{"$f":"Import!M24542","v":0},0]
[null,"Government securities, municipal securities, foreign government securities",8,{"$f":"Import!M24174","v":0},{"$f":"Import!M24215","v":0},{"$f":"Import!M24256","v":0},{"$f":"Import!M24297","v":0},{"$f":"Import!M24338","v":0},{"$f":"Import!M24379","v":0},{"$f":"Import!M24420","v":0},{"$f":"Import!M24461","v":0},{"$f":"Import!M24502","v":0},{"$f":"Import!M24543","v":0},0]
[null,null,null,null,null,null,null,null,null,null,null,null,"Total",{"$f":"SUM(N2038:N2078)","v":0}]
[]
[null,"Total rated assets","BSCR Rating","Moody's Investor's Service","Standard and Poor's","Dominion Bond Rating Service","Kroll Bond Rating Agency","Egan Jones Rating Company","Japan Credit Rating Agency","BMA-approved Internal Ratings","Other BMA-approved Rating Agency 1","Other BMA-approved Rating Agency 2","Other BMA-approved Rating Agency 3","Total"]
[null,"Total rated assets",0,{"$f":"D2070","v":0},{"$f":"E2070","v":0},0,0,0,0,0,0,0,0,{"$f":"SUM(D2082:M2082)","v":0}]
[null,"Total rated assets",1,{"$f":"D2038+D2046+D2054+D2062+D2071","v":0},{"$f":"E2038+E2046+E2054+E2062+E2071","v":0},0,0,0,0,0,0,0,0,{"$f":"SUM(D2083:M2083)","v":0}]
[null,"Total rated assets",2,{"$f":"D2039+D2047+D2055+D2063+D2072","v":0},0,0,0,0,0,0,0,0,0,0]
[null,"Total rated assets",3,0,0,0,0,0,0,0,0,0,0,0]
[null,"Total rated assets",4,0,0,0,0,0,0,0,0,0,0,0]
[null,"Total rated assets",5,0,0,0,0,0,0,0,0,0,0,0]
[null,"Total rated assets",6,0,0,0,0,0,0,0,0,0,0,0]
[null,"Total rated assets",7,0,0,0,0,0,0,0,0,0,0,0]
[null,"Total rated assets",8,0,0,0,0,0,0,0,0,0,0,0]
[null,"Total rated assets","Total",{"$f":"SUM(D2082:D2090)","v":0},{"$f":"SUM(E2082:E2090)","v":0},0,0,0,0,0,0,0,0,0]
[]
[null,"Asset/Rating Category","BSCR Rating","Unrated"]
[null,"Financial institutions, brokers and dealers",8,{"$f":"Import!M24544","v":0}]
[null,"Insurance companies",8,{"$f":"Import!M24545","v":0}]
[null,"Corporate issuers",8,{"$f":"Import!M24546","v":0}]
[null,"Issuers of asset-backed securities",8,{"$f":"Import!M24547","v":0}]
[null,"Government securities, municipal securities, foreign government securities",8,{"$f":"Import!M24548","v":0}]
[null,"Total unrated assets","Total",{"$f":"SUM(D2094:D2098)","v":0}]
[]
[null,"Asset/Rating Category","BSCR Rating","Financial institutions, brokers and dealers","Insurance companies","Corporate issuers","Issuers of asset-backed securities","Government securities, municipal securities, foreign government securities","Total"]
[null,"Total",0,null,null,null,null,{"$f":"N2070","v":0},{"$f":"SUM(H2102)","v":0}]
[null,"Total",1,{"$f":"N2038","v":0},{"$f":"N2046","v":0},{"$f":"N2054","v":0},{"$f":"N2062","v":0},0,{"$f":"SUM(D2103:H2103)","v":0}]
[null,"Total",2,0,0,0,0,0,{"$f":"SUM(D2104:H2104)","v":0}]
[null,"Total",3,0,0,0,0,0,0]
[null,"Total",4,0,0,0,0,0,0]
[null,"Total",5,0,0,0,0,0,0]
[null,"Total",6,0,0,0,0,0,0]
[null,"Total",7,0,0,0,0,0,0]
[null,"Total",8,{"$f":"N2045+D2094","v":0},{"$f":"N2053+D2095","v":0},{"$f":"N2061+D2096","v":0},{"$f":"N2069+D2097","v":0},{"$f":"N2078+D2098","v":0},0]
[null,"Total fixed income assets","Total",{"$f":"SUM(D2103:D2110)","v":0},{"$f":"SUM(E2103:E2110)","v":0},{"$f":"SUM(F2103:F2110)","v":0},{"$f":"SUM(G2103:G2110)","v":0},{"$f":"SUM(H2102:H2110)","v":0},{"$f":"SUM(D2111:H2111)","v":0}]
[null,"Unrated","- of which unrated",{"$f":"D2094","v":0},{"$f":"D2095","v":0},{"$f":"D2096","v":0},{"$f":"D2097","v":0},{"$f":"D2098","v":0},{"$f":"SUM(D2112:H2112)","v":0}]
[]
[]
["Cash","Sovereign Bonds","RMBS - Agency","Listed Preferred Equity - Direct","Hedge Funds","Investment Income Due and Accrued","Energy","Holding Entity","Significant Influence","United States Dollars","Positive market value",null,null,null,null,"Residential Mortgages",null,"United States of America"]
["Certificates of Deposit","Municipals","RMBS - Non-agency","Listed Preferred Equity - ETF","Equity investments in Infrastructure","Accounts and Premiums Receivable","Materials","Operating Entity","Control","Euro","Negative market value",null,null,null,null,"Other Residential Loans",null,"Bermuda"]
["Short-Term Commercial Paper","Supranationals (multilateral development banks and international organizations)","CMBS","Listed Preferred Equity - Mutual Fund","Commodities - Direct","Reinsurance Balance Receivable","Industrial","Branch","Select","Afghanistan Afghanis","Select",null,null,null,null,"Commercial and Farm Mortgages",null,"United Kingdom of Great Britain and Northern Ireland"]
["Money Market Funds","Corporate bonds","CLOs","Private Preferred Equity - Direct","Commodities - ETF","Funds Held by Ceding Reinsurers","Consumer Discretionary","Select",null,"Albania Leke",null,null,null,null,null,"Other Commercial Real Estate Loans",null,"Canada"]
["Other","Private Placements","CDOs","Private Preferred Equity - Fund","Commodities - Mutual Funds","SAC - long-term business - variable annuities","Consumer Staples",null,null,"Armenia Drams",null,null,null,null,null,"Middle Market Loans"]
["Select","Other - Secured Bonds","Auto Loan ABS","Other - Listed Preferred Equity","Catastrophe Bonds","SAC - long-term business - others","Healthcare",null,null,"Netherlands Antilles Guilders",null,null,null,null,null,"Leveraged Loans",null,"Afghanistan"]
[null,"Other - Unsecured Bonds","Student Loan ABS","Other - Private Preferred Equity","Other Insurance-Linked Securities","SAC - general business","Financial",null,null,"Angola Kwanza",null,null,null,null,null,"Other Direct Private Lending",null,"Aland Islands"]
[null,"Exchange-Traded Fund - Sovereigns","Credit Card Receivable ABS","Select","Advances to Affiliates","Deposit assets","Select",null,null,"Argentina Pesos",null,null,null,null,null,"Infrastructure Loans",null,"Albania"]
[null,"Mutual Fund - Sovereigns","Other ABS",null,"Investments in Affiliates","Other Sundry Assets",null,null,null,"Australia Dollars",null,null,null,null,null,"Collateral Loans",null,"Algeria"]
[null,"Exchange-Traded Fund - Corporates","Select",null,"Other","Letter of Credit, Guarantees and Other Instruments",null,null,null,"Aruba Guilders",null,null,null,null,null,"Equity Release / Reverse Mortgages",null,"American Samoa"]
[null,"Mutual Fund - Corporates",null,null,"Select","Other",null,null,null,"Azerbaijan New Manats",null,null,null,null,null,"Policy Loans",null,"Andorra"]
[null,"Other Funds",null,null,null,"Select",null,null,null,"Bosnia and Herzegovina Convertible Marka",null,null,null,null,null,"Other Direct Loans",null,"Angola"]
[null,"Select",null,null,null,null,null,null,null,"Barbados Dollars",null,null,null,null,null,"Mortgage Loan Fund - Residential",null,"Anguilla"]
[null,null,null,null,null,null,null,null,null,"Bangladesh Taka",null,null,null,null,null,"Mortgage Loan Fund - Commercial",null,"Antigua and Barbuda"]
[null,null,null,null,null,null,null,null,null,"Bulgaria Leva",null,null,null,null,null,"Private Credit Fund",null,"Argentina"]
[null,null,null,null,null,null,null,null,null,"Bahrain Dinars",null,null,null,null,null,"Other Loan Fund",null,"Armenia"]
["Listed options","Equity","Hedging","Long / Receive Fixed / Sell Protection","Private Equities","Investment Income Due and Accrued","Direct Real Estate - Residential",null,null,"Burundi Francs",null,null,null,null,null,"Select",null,"Aruba"]
["Futures","Debt","Speculative","Short / Receive Floating / Buy Protection","Investment Funds","Accounts and Premiums Receivable","Direct Real Estate - Commercial",null,null,"Bermuda Dollars",null,null,null,null,null,null,null,"Australia"]
["Forwards","Interest Rate","Select","Select","Hedge Funds","Reinsurance Balance Receivable","Direct Real-Estate - Industrial",null,null,"Brunei Dollars",null,null,null,null,null,"Insured/Guaranteed Mortgages",null,"Austria"]
["Swaps","Inflation",null,null,"Private Credit Funds","SAC - long-term business - variable annuities","Direct Real Estate - Land",null,null,"Bolivia Bolivianos",null,null,null,null,null,"Other Commercial and Farm Mortgages",null,"Azerbaijan"]
["Swaptions","Credit",null,null,"Catastrophe Bonds","SAC - long-term business - others","Real Estate Funds - Residential",null,null,"Brazil Reais",null,null,null,null,null,"Other Residential Mortgages",null,"Bahamas"]
["OTC options","Currencies","Yes","Exchange-traded","Other Insurance-Linked Securities","SAC - general business","Real Estate Funds - Commercial",null,null,"Bahamas Dollars",null,null,null,null,null,"Mortgages Not In Good Standing",null,"Bahrain"]
["Other","Commodities","No","OTC – Centrally-cleared","Infrastructure Debt","Deposit assets","Real-Estate Funds - Industrial",null,null,"Bhutan Ngultrum",null,null,null,null,null,"Collateral Loans",null,"Bangladesh"]
["Select","Other","Select","OTC – Not centrally-cleared","Equity Investments in Infrastructure","Other Sundry Assets","Real Estate Funds - Land",null,null,"Botswana Pulas",null,null,null,null,null,"Middle Market Loans",null,"Barbados"]
[null,"Select",null,"Select","Other","Letter of Credit, Guarantees and Other Instruments","Direct Real Estate - Other",null,null,"Belarus Rubles",null,null,null,null,null,"Other Direct Private Lending",null,"Belarus"]
[null,null,null,null,"Select","Other","Real Estate Funds - Other",null,null,"Belize Dollars",null,null,null,null,null,"Policy Loans",null,"Belgium"]
[null,null,null,null,null,"Select","Select",null,null,"Canada Dollars",null,null,null,null,null,"Other",null,"Belize"]
[null,null,null,null,null,null,null,null,null,"Congo/Kinshasa Francs",null,null,null,null,null,"Select",null,"Benin"]
[null,null,null,null,null,null,null,null,null,"Switzerland Francs",null,null,null,null,null,null,null,"Bhutan"]
["BSCR Rating",null,"Listed Equity - Direct",null,null,null,null,null,null,"Chile Pesos",null,null,null,null,null,null,null,"Bolivia (Plurinational State of)"]
["Select",null,"Listed Equity - ETF",null,null,null,"Investment",null,null,"China Yuan Renminbi",null,null,null,null,null,null,null,"Bonaire, Sint Eustatius and Saba"]
["BSCR Rating 0",null,"Listed Equity - Mutual Fund",null,null,null,"Owner-occupied",null,null,"Colombia Pesos",null,null,null,null,null,null,null,"Bosnia and Herzegovina"]
["BSCR Rating 1",null,"Private Equity - Direct",null,null,null,"Select",null,null,"Costa Rica Colones",null,null,null,null,null,null,null,"Botswana"]
["BSCR Rating 2",null,"Private Equity - Fund",null,null,null,null,null,null,"Cuba Convertible Pesos",null,null,null,null,null,null,null,"Brazil"]
["BSCR Rating 3",null,"Other - Listed Equity",null,null,null,null,null,null,"Cuba Pesos",null,null,null,null,null,null,null,"British Virgin Islands"]
["BSCR Rating 4",null,"Other - Private Equity",null,null,null,null,null,null,"Cape Verde Escudos",null,null,null,null,null,null,null,"Brunei Darussalam"]
["BSCR Rating 5",null,"Select",null,null,null,null,null,null,"Czech Republic Koruny",null,null,null,null,null,null,null,"Bulgaria"]
["BSCR Rating 6",null,null,null,null,null,null,null,null,"Djibouti Francs",null,null,null,null,null,null,null,"Burkina Faso"]
["BSCR Rating 7",null,null,null,null,null,null,null,null,"Denmark Kroner",null,null,null,null,null,null,null,"Burundi"]
["BSCR Rating 8",null,null,null,null,null,null,null,null,"Dominican Republic Pesos",null,null,null,null,null,null,null,"Cabo Verde (Cape Verde)"]
[null,null,null,null,null,null,null,null,null,"Algeria Dinars",null,null,null,null,null,null,null,"Cambodia"]
[null,null,null,null,null,null,null,null,null,"Estonia Krooni",null,null,null,null,null,null,null,"Cameroon"]
[null,null,null,null,null,null,null,null,null,"Egypt Pounds",null,null,null,null,null,null,null,"Cayman Islands"]
[null,null,null,null,null,null,null,null,null,"Eritrea Nakfa",null,null,null,null,null,null,null,"Central African Republic"]
[null,null,null,null,null,null,null,null,null,"Ethiopia Birr",null,null,null,null,null,null,null,"Chad"]
[null,null,null,null,null,null,null,null,null,"Fiji Dollars",null,null,null,null,null,null,null,"Chile"]
[null,null,null,null,null,null,null,null,null,"Falkland Islands Pounds",null,null,null,null,null,null,null,"China"]
[null,null,null,null,null,null,null,null,null,"United Kingdom Pounds",null,null,null,null,null,null,null,"China, Hong Kong SAR"]
[null,null,null,null,null,null,null,null,null,"Georgia Lari",null,null,null,null,null,null,null,"China, Macao SAR "]
[null,null,null,null,null,null,null,null,null,"Guernsey Pounds",null,null,null,null,null,null,null,"Colombia"]
[null,null,null,null,null,null,null,null,null,"Ghana Cedis",null,null,null,null,null,null,null,"Comoros"]
[null,null,null,null,null,null,null,null,null,"Gibraltar Pounds",null,null,null,null,null,null,null,"Congo"]
[null,null,null,null,null,null,null,null,null,"Gambia Dalasi",null,null,null,null,null,null,null,"Cook Islands"]
[null,null,null,null,null,null,null,null,null,"Guinea Francs",null,null,null,null,null,null,null,"Costa Rica"]
[null,null,null,null,null,null,null,null,null,"Guatemala Quetzales",null,null,null,null,null,null,null,"Cote d' Ivoire"]
[null,null,null,null,null,null,null,null,null,"Guyana Dollars",null,null,null,null,null,null,null,"Croatia"]
[null,null,null,null,null,null,null,null,null,"Hong Kong Dollars",null,null,null,null,null,null,null,"Cuba"]
[null,null,null,null,null,null,null,null,null,"Honduras Lempiras",null,null,null,null,null,null,null,"Curacao"]
[null,null,null,null,null,null,null,null,null,"Croatia Kuna",null,null,null,null,null,null,null,"Cyprus"]
[null,null,null,null,null,null,null,null,null,"Haiti Gourdes",null,null,null,null,null,null,null,"Czech Republic"]
[null,null,null,null,null,null,null,null,null,"Hungary Forint",null,null,null,null,null,null,null,"Democratic People's Republic of Korea (North Korea)"]
[null,null,null,null,null,null,null,null,null,"Indonesia Rupiahs",null,null,null,null,null,null,null,"Democratic Republic of the Congo"]
[null,null,null,null,null,null,null,null,null,"Israel New Shekels",null,null,null,null,null,null,null,"Denmark"]
[null,null,null,null,null,null,null,null,null,"Isle of Man Pounds",null,null,null,null,null,null,null,"Djibouti"]
[null,null,null,null,null,null,null,null,null,"India Rupees",null,null,null,null,null,null,null,"Dominica"]
[null,null,null,null,null,null,null,null,null,"Iraq Dinars",null,null,null,null,null,null,null,"Dominican Republic"]
[null,null,null,null,null,null,null,null,null,"Iran Rials",null,null,null,null,null,null,null,"Ecuador"]
[null,null,null,null,null,null,null,null,null,"Iceland Kronur",null,null,null,null,null,null,null,"Egypt"]
[null,null,null,null,null,null,null,null,null,"Jersey Pounds",null,null,null,null,null,null,null,"El Salvador"]
[null,null,null,null,null,null,null,null,null,"Jamaica Dollars",null,null,null,null,null,null,null,"Equatorial Guinea"]
[null,null,null,null,null,null,null,null,null,"Jordan Dinars",null,null,null,null,null,null,null,"Eritrea"]
[null,null,null,null,null,null,null,null,null,"Japan Yen",null,null,null,null,null,null,null,"Estonia"]
[null,null,null,null,null,null,null,null,null,"Kenya Shillings",null,null,null,null,null,null,null,"Eswatini (Kingdom of Swaziland)"]
[null,null,null,null,null,null,null,null,null,"Kyrgyzstan Soms",null,null,null,null,null,null,null,"Ethiopia"]
[null,null,null,null,null,null,null,null,null,"Cambodia Riels",null,null,null,null,null,null,null,"Falkland Islands"]
[null,null,null,null,null,null,null,null,null,"Comoros Francs",null,null,null,null,null,null,null,"Faroe Islands"]
[null,null,null,null,null,null,null,null,null,"North Korea Won",null,null,null,null,null,null,null,"Fiji"]
[null,null,null,null,null,null,null,null,null,"South Korea Won",null,null,null,null,null,null,null,"Finland"]
[null,null,null,null,null,null,null,null,null,"Kuwait Dinars",null,null,null,null,null,null,null,"France"]
[null,null,null,null,null,null,null,null,null,"Cayman Islands Dollars",null,null,null,null,null,null,null,"French Guiana"]
[null,null,null,null,null,null,null,null,null,"Kazakhstan Tenge",null,null,null,null,null,null,null,"French Polynesia"]
[null,null,null,null,null,null,null,null,null,"Laos Kips",null,null,null,null,null,null,null,"Gabon"]
[null,null,null,null,null,null,null,null,null,"Lebanon Pounds",null,null,null,null,null,null,null,"Gambia (Republic of The)"]
[null,null,null,null,null,null,null,null,null,"Sri Lanka Rupees",null,null,null,null,null,null,null,"Georgia"]
[null,null,null,null,null,null,null,null,null,"Liberia Dollars",null,null,null,null,null,null,null,"Germany"]
[null,null,null,null,null,null,null,null,null,"Lesotho Maloti",null,null,null,null,null,null,null,"Ghana"]
[null,null,null,null,null,null,null,null,null,"Lithuania Litai",null,null,null,null,null,null,null,"Gibraltar"]
[null,null,null,null,null,null,null,null,null,"Latvia Lati",null,null,null,null,null,null,null,"Greece"]
[null,null,null,null,null,null,null,null,null,"Libya Dinars",null,null,null,null,null,null,null,"Greenland"]
[null,null,null,null,null,null,null,null,null,"Morocco Dirhams",null,null,null,null,null,null,null,"Grenada"]
[null,null,null,null,null,null,null,null,null,"Moldova Lei",null,null,null,null,null,null,null,"Guadeloupe"]
[null,null,null,null,null,null,null,null,null,"Madagascar Ariary",null,null,null,null,null,null,null,"Guam"]
[null,null,null,null,null,null,null,null,null,"Macedonia Denars",null,null,null,null,null,null,null,"Guatemala"]
[null,null,null,null,null,null,null,null,null,"Myanmar Kyats",null,null,null,null,null,null,null,"Guernsey"]
[null,null,null,null,null,null,null,null,null,"Mongolia Tugriks",null,null,null,null,null,null,null,"Guinea"]
[null,null,null,null,null,null,null,null,null,"Macau Patacas",null,null,null,null,null,null,null,"Guinea-Bissau"]
[null,null,null,null,null,null,null,null,null,"Mauritania Ouguiyas",null,null,null,null,null,null,null,"Guyana"]
[null,null,null,null,null,null,null,null,null,"Mauritius Rupees",null,null,null,null,null,null,null,"Haiti"]
[null,null,null,null,null,null,null,null,null,"Maldives Rufiyaa",null,null,null,null,null,null,null,"Holy See"]
[null,null,null,null,null,null,null,null,null,"Malawi Kwachas",null,null,null,null,null,null,null,"Honduras"]
[null,null,null,null,null,null,null,null,null,"Mexico Pesos",null,null,null,null,null,null,null,"Hungary"]
[null,null,null,null,null,null,null,null,null,"Malaysia Ringgits",null,null,null,null,null,null,null,"Iceland"]
[null,null,null,null,null,null,null,null,null,"Mozambique Meticais",null,null,null,null,null,null,null,"India"]
[null,null,null,null,null,null,null,null,null,"Namibia Dollars",null,null,null,null,null,null,null,"Indonesia"]
[null,null,null,null,null,null,null,null,null,"Nigeria Nairas",null,null,null,null,null,null,null,"Iran (Islamic Republic of)"]
[null,null,null,null,null,null,null,null,null,"Nicaragua Cordobas",null,null,null,null,null,null,null,"Iraq"]
[null,null,null,null,null,null,null,null,null,"Norway Kroner",null,null,null,null,null,null,null,"Ireland"]
[null,null,null,null,null,null,null,null,null,"Nepal Rupees",null,null,null,null,null,null,null,"Isle of Man"]
[null,null,null,null,null,null,null,null,null,"New Zealand Dollars",null,null,null,null,null,null,null,"Israel"]
[null,null,null,null,null,null,null,null,null,"Oman Rials",null,null,null,null,null,null,null,"Italy"]
[null,null,null,null,null,null,null,null,null,"Panama Balboas",null,null,null,null,null,null,null,"Jamaica"]
[null,null,null,null,null,null,null,null,null,"Peru Nuevos Soles",null,null,null,null,null,null,null,"Japan"]
[null,null,null,null,null,null,null,null,null,"Papua New Guinea Kina",null,null,null,null,null,null,null,"Jersey"]
[null,null,null,null,null,null,null,null,null,"Philippines Pesos",null,null,null,null,null,null,null,"Jordan"]
[null,null,null,null,null,null,null,null,null,"Pakistan Rupees",null,null,null,null,null,null,null,"Kazakhstan"]
[null,null,null,null,null,null,null,null,null,"Poland Zlotych",null,null,null,null,null,null,null,"Kenya"]
[null,null,null,null,null,null,null,null,null,"Paraguay Guarani",null,null,null,null,null,null,null,"Kiribati"]
[null,null,null,null,null,null,null,null,null,"Qatar Riyals",null,null,null,null,null,null,null,"Kuwait"]
[null,null,null,null,null,null,null,null,null,"Romania New Lei",null,null,null,null,null,null,null,"Kyrgyzstan"]
[null,null,null,null,null,null,null,null,null,"Serbia Dinars",null,null,null,null,null,null,null,"Lao People's Democratic Republic"]
[null,null,null,null,null,null,null,null,null,"Russia Rubles",null,null,null,null,null,null,null,"Latvia"]
[null,null,null,null,null,null,null,null,null,"Rwanda Francs",null,null,null,null,null,null,null,"Lebanon"]
[null,null,null,null,null,null,null,null,null,"Saudi Arabia Riyals",null,null,null,null,null,null,null,"Lesotho"]
[null,null,null,null,null,null,null,null,null,"Solomon Islands Dollars",null,null,null,null,null,null,null,"Liberia"]
[null,null,null,null,null,null,null,null,null,"Seychelles Rupees",null,null,null,null,null,null,null,"Libya"]
[null,null,null,null,null,null,null,null,null,"Sudan Pounds",null,null,null,null,null,null,null,"Liechtenstein"]
[null,null,null,null,null,null,null,null,null,"Sweden Kronor",null,null,null,null,null,null,null,"Lithuania"]
[null,null,null,null,null,null,null,null,null,"Singapore Dollars",null,null,null,null,null,null,null,"Luxembourg"]
[null,null,null,null,null,null,null,null,null,"Saint Helena Pounds",null,null,null,null,null,null,null,"Madagascar"]
[null,null,null,null,null,null,null,null,null,"Slovakia Koruny",null,null,null,null,null,null,null,"Malawi"]
[null,null,null,null,null,null,null,null,null,"Sierra Leone Leones",null,null,null,null,null,null,null,"Malaysia"]
[null,null,null,null,null,null,null,null,null,"Somalia Shillings",null,null,null,null,null,null,null,"Maldives"]
[null,null,null,null,null,null,null,null,null,"Seborga Luigini",null,null,null,null,null,null,null,"Mali"]
[null,null,null,null,null,null,null,null,null,"Suriname Dollars",null,null,null,null,null,null,null,"Malta"]
[null,null,null,null,null,null,null,null,null,"São Tome and Principe Dobras",null,null,null,null,null,null,null,"Marshall Islands"]
[null,null,null,null,null,null,null,null,null,"El Salvador Colones",null,null,null,null,null,null,null,"Martinique"]
[null,null,null,null,null,null,null,null,null,"Syria Pounds",null,null,null,null,null,null,null,"Mauritania"]
[null,null,null,null,null,null,null,null,null,"Swaziland Emalangeni",null,null,null,null,null,null,null,"Mauritius"]
[null,null,null,null,null,null,null,null,null,"Thailand Baht",null,null,null,null,null,null,null,"Mayotte"]
[null,null,null,null,null,null,null,null,null,"Tajikistan Somoni",null,null,null,null,null,null,null,"Mexico"]
[null,null,null,null,null,null,null,null,null,"Turkmenistan Manats",null,null,null,null,null,null,null,"Micronesia (Federated States of)"]
[null,null,null,null,null,null,null,null,null,"Tunisia Dinars",null,null,null,null,null,null,null,"Monaco"]
[null,null,null,null,null,null,null,null,null,"Tonga Pa'anga",null,null,null,null,null,null,null,"Mongolia"]
[null,null,null,null,null,null,null,null,null,"Turkey New Lira",null,null,null,null,null,null,null,"Montenegro"]
[null,null,null,null,null,null,null,null,null,"Trinidad and Tobago Dollars",null,null,null,null,null,null,null,"Montserrat"]
[null,null,null,null,null,null,null,null,null,"Tuvalu Dollars",null,null,null,null,null,null,null,"Morocco"]
[null,null,null,null,null,null,null,null,null,"Taiwan New Dollars",null,null,null,null,null,null,null,"Mozambique"]
[null,null,null,null,null,null,null,null,null,"Tanzania Shillings",null,null,null,null,null,null,null,"Myanmar"]
[null,null,null,null,null,null,null,null,null,"Ukraine Hryvnia",null,null,null,null,null,null,null,"Namibia"]
[null,null,null,null,null,null,null,null,null,"Uganda Shillings",null,null,null,null,null,null,null,"Nauru"]
[null,null,null,null,null,null,null,null,null,"Uruguay Pesos",null,null,null,null,null,null,null,"Nepal"]
[null,null,null,null,null,null,null,null,null,"Uzbekistan Sums",null,null,null,null,null,null,null,"Netherlands"]
[null,null,null,null,null,null,null,null,null,"Venezuela Bolivares",null,null,null,null,null,null,null,"New Caledonia"]
[null,null,null,null,null,null,null,null,null,"Venezuela Bolivares Fuertes",null,null,null,null,null,null,null,"New Zealand"]
[null,null,null,null,null,null,null,null,null,"Vietnam Dong",null,null,null,null,null,null,null,"Nicaragua"]
[null,null,null,null,null,null,null,null,null,"Vanuatu Vatu",null,null,null,null,null,null,null,"Niger"]
[null,null,null,null,null,null,null,null,null,"Samoa Tala",null,null,null,null,null,null,null,"Nigeria"]
[null,null,null,null,null,null,null,null,null,"Communauté Financière Africaine Francs BEAC",null,null,null,null,null,null,null,"Niue"]
[null,null,null,null,null,null,null,null,null,"Silver Ounces",null,null,null,null,null,null,null,"Norfolk Island"]
[null,null,null,null,null,null,null,null,null,"Gold Ounces",null,null,null,null,null,null,null,"North Macedonia"]
[null,null,null,null,null,null,null,null,null,"East Caribbean Dollars",null,null,null,null,null,null,null,"Northern Mariana Islands"]
[null,null,null,null,null,null,null,null,null,"International Monetary Fund Special Drawing Rights",null,null,null,null,null,null,null,"Norway"]
[null,null,null,null,null,null,null,null,null,"Communauté Financière Africaine Francs BCEAO",null,null,null,null,null,null,null,"Oman"]
[null,null,null,null,null,null,null,null,null,"Palladium Ounces",null,null,null,null,null,null,null,"Pakistan"]
[null,null,null,null,null,null,null,null,null,"Comptoirs Français du Pacifique Francs",null,null,null,null,null,null,null,"Palau"]
[null,null,null,null,null,null,null,null,null,"Platinum Ounces",null,null,null,null,null,null,null,"Panama"]
[null,null,null,null,null,null,null,null,null,"Yemen Rials",null,null,null,null,null,null,null,"Papua New Guinea"]
[null,null,null,null,null,null,null,null,null,"South Africa Rand",null,null,null,null,null,null,null,"Paraguay"]
[null,null,null,null,null,null,null,null,null,"Zambia Kwacha",null,null,null,null,null,null,null,"Peru"]
[null,null,null,null,null,null,null,null,null,"Zimbabwe Dollars",null,null,null,null,null,null,null,"Philippines"]
[null,null,null,null,null,null,null,null,null,null,null,null,null,null,null,null,null,"Pitcairn"]
[null,null,null,null,null,null,null,null,null,null,null,null,null,null,null,null,null,"Poland"]
[null,null,null,null,null,null,null,null,null,null,null,null,null,null,null,null,null,"Portugal"]
[null,null,null,null,null,null,null,null,null,null,null,null,null,null,null,null,null,"Puerto Rico"]
[null,null,null,null,null,null,null,null,null,null,null,null,null,null,null,null,null,"Qatar"]
[null,null,null,null,null,null,null,null,null,null,null,null,null,null,null,null,null,"Republic of Korea (South Korea)"]
[null,null,null,null,null,null,null,null,null,null,null,null,null,null,null,null,null,"Republic of Moldova"]
[null,null,null,null,null,null,null,null,null,null,null,null,null,null,null,null,null,"Reunion"]
[null,null,null,null,null,null,null,null,null,null,null,null,null,null,null,null,null,"Romania"]
[null,null,null,null,null,null,null,null,null,null,null,null,null,null,null,null,null,"Russian Federation"]
[null,null,null,null,null,null,null,null,null,null,null,null,null,null,null,null,null,"Rwanda"]
[null,null,null,null,null,null,null,null,null,null,null,null,null,null,null,null,null,"Saint Barthelemy (St. Barts)"]
[null,null,null,null,null,null,null,null,null,null,null,null,null,null,null,null,null,"Saint Helena"]
[null,null,null,null,null,null,null,null,null,null,null,null,null,null,null,null,null,"Saint Kitts and Nevis"]
[null,null,null,null,null,null,null,null,null,null,null,null,null,null,null,null,null,"Saint Lucia"]
[null,null,null,null,null,null,null,null,null,null,null,null,null,null,null,null,null,"Saint Martin"]
[null,null,null,null,null,null,null,null,null,null,null,null,null,null,null,null,null,"Saint Pierre and Miquelon"]
[null,null,null,null,null,null,null,null,null,null,null,null,null,null,null,null,null,"Saint Vincent and The Grenadines"]
[null,null,null,null,null,null,null,null,null,null,null,null,null,null,null,null,null,"Samoa"]
[null,null,null,null,null,null,null,null,null,null,null,null,null,null,null,null,null,"San Marino"]
[null,null,null,null,null,null,null,null,null,null,null,null,null,null,null,null,null,"Sao Tome and Principe"]
[null,null,null,null,null,null,null,null,null,null,null,null,null,null,null,null,null,"Sark"]
[null,null,null,null,null,null,null,null,null,null,null,null,null,null,null,null,null,"Saudi Arabia"]
[null,null,null,null,null,null,null,null,null,null,null,null,null,null,null,null,null,"Senegal"]
[null,null,null,null,null,null,null,null,null,null,null,null,null,null,null,null,null,"Serbia"]
[null,null,null,null,null,null,null,null,null,null,null,null,null,null,null,null,null,"Seychelles"]
[null,null,null,null,null,null,null,null,null,null,null,null,null,null,null,null,null,"Sierra Leone"]
[null,null,null,null,null,null,null,null,null,null,null,null,null,null,null,null,null,"Singapore"]
[null,null,null,null,null,null,null,null,null,null,null,null,null,null,null,null,null,"Sint Maarten"]
[null,null,null,null,null,null,null,null,null,null,null,null,null,null,null,null,null,"Slovakia"]
[null,null,null,null,null,null,null,null,null,null,null,null,null,null,null,null,null,"Slovenia"]
[null,null,null,null,null,null,null,null,null,null,null,null,null,null,null,null,null,"Solomon Islands"]
[null,null,null,null,null,null,null,null,null,null,null,null,null,null,null,null,null,"Somalia"]
[null,null,null,null,null,null,null,null,null,null,null,null,null,null,null,null,null,"South Africa"]
[null,null,null,null,null,null,null,null,null,null,null,null,null,null,null,null,null,"South Sudan"]
[null,null,null,null,null,null,null,null,null,null,null,null,null,null,null,null,null,"Spain"]
[null,null,null,null,null,null,null,null,null,null,null,null,null,null,null,null,null,"Sri Lanka"]
[null,null,null,null,null,null,null,null,null,null,null,null,null,null,null,null,null,"State of Palestine"]
[null,null,null,null,null,null,null,null,null,null,null,null,null,null,null,null,null,"Sudan"]
[null,null,null,null,null,null,null,null,null,null,null,null,null,null,null,null,null,"Suriname"]
[null,null,null,null,null,null,null,null,null,null,null,null,null,null,null,null,null,"Svalbard, Jan Mayen"]
[null,null,null,null,null,null,null,null,null,null,null,null,null,null,null,null,null,"Sweden"]
[null,null,null,null,null,null,null,null,null,null,null,null,null,null,null,null,null,"Switzerland"]
[null,null,null,null,null,null,null,null,null,null,null,null,null,null,null,null,null,"Syrian Arab Republic"]
[null,null,null,null,null,null,null,null,null,null,null,null,null,null,null,null,null,"Taiwan"]
[null,null,null,null,null,null,null,null,null,null,null,null,null,null,null,null,null,"Tajikistan"]
[null,null,null,null,null,null,null,null,null,null,null,null,null,null,null,null,null,"Thailand"]
[null,null,null,null,null,null,null,null,null,null,null,null,null,null,null,null,null,"Timor-Leste"]
[null,null,null,null,null,null,null,null,null,null,null,null,null,null,null,null,null,"Togo"]
[null,null,null,null,null,null,null,null,null,null,null,null,null,null,null,null,null,"Tokelau"]
[null,null,null,null,null,null,null,null,null,null,null,null,null,null,null,null,null,"Tonga"]
[null,null,null,null,null,null,null,null,null,null,null,null,null,null,null,null,null,"Trinidad and Tobago"]
[null,null,null,null,null,null,null,null,null,null,null,null,null,null,null,null,null,"Tunisia"]
[null,null,null,null,null,null,null,null,null,null,null,null,null,null,null,null,null,"Turkey"]
[null,null,null,null,null,null,null,null,null,null,null,null,null,null,null,null,null,"Turkmenistan"]
[null,null,null,null,null,null,null,null,null,null,null,null,null,null,null,null,null,"Turks & Caicos Islands"]
[null,null,null,null,null,null,null,null,null,null,null,null,null,null,null,null,null,"Tuvalu"]
[null,null,null,null,null,null,null,null,null,null,null,null,null,null,null,null,null,"Uganda"]
[null,null,null,null,null,null,null,null,null,null,null,null,null,null,null,null,null,"Ukraine"]
[null,null,null,null,null,null,null,null,null,null,null,null,null,null,null,null,null,"United Arab Emirates"]
[null,null,null,null,null,null,null,null,null,null,null,null,null,null,null,null,null,"United Republic of Tanzania"]
[null,null,null,null,null,null,null,null,null,null,null,null,null,null,null,null,null,"Uruguay"]
[null,null,null,null,null,null,null,null,null,null,null,null,null,null,null,null,null,"US Virgin Islands"]
[null,null,null,null,null,null,null,null,null,null,null,null,null,null,null,null,null,"Uzbekistan"]
[null,null,null,null,null,null,null,null,null,null,null,null,null,null,null,null,null,"Vanuatu"]
[null,null,null,null,null,null,null,null,null,null,null,null,null,null,null,null,null,"Venezuela, Bolivarian Republic of "]
[null,null,null,null,null,null,null,null,null,null,null,null,null,null,null,null,null,"Vietnam"]
[null,null,null,null,null,null,null,null,null,null,null,null,null,null,null,null,null,"Wallis & Futuna Islands"]
[null,null,null,null,null,null,null,null,null,null,null,null,null,null,null,null,null,"Western Sahara"]
[null,null,null,null,null,null,null,null,null,null,null,null,null,null,null,null,null,"Yemen"]
[null,null,null,null,null,null,null,null,null,null,null,null,null,null,null,null,null,"Zambia"]
[null,null,null,null,null,null,null,null,null,null,null,null,null,null,null,null,null,"Zimbabwe"]
[null,null,null,null,null,null,null,null,null,null,null,null,null,null,null,null,null,"Select"]

{"sheet":"Schedule VIA (EBS)","index":54,"n_rows":2357,"n_cols":18,"rows_kept":2357,"cut":false,"hidden":false,"merged":[[1339,1,1339,2],[5,1,5,2],[213,1,213,2],[216,1,216,2],[987,1,987,2],[990,1,990,2],[1095,1,1095,2],[1098,1,1098,2],[1123,1,1123,2],[1126,1,1126,2],[1231,1,1231,2],[1234,1,1234,2],[1764,6,1765,6],[1764,7,1765,7],[1789,1,1789,2],[1793,1,1793,2],[1342,1,1342,2],[1447,1,1447,2],[1450,1,1450,2],[1555,1,1555,2],[1763,5,1765,5]]}
[null,"SCHEDULE OF FUNDS HELD BY CEDING REINSURERS (EBS)",null,null,null,null,null,null,null,null,null,null,null,{"$f":"HYPERLINK(\"#'Index'!A1\",\"Return to Index\")","v":"Return to Index"}]
[null,{"$f":"'Company Information'!C7","v":"Enter Company Name"}]
[null,"As at",{"$f":"'Company Information'!C3","v":"2023-12-31"},null,null,null,null,null,null,null,null,null,null,"Schedule VIA (EBS)"]
[null,"expressed in ['000s]",{"$f":"'Form 1SFS'!C5","v":"United States Dollars"}]
[]
[null,"(A) CASH AND CASH EQUIVALENTS"]
[]
[null,null,"Enter # of Asset Types",{"$f":"Import!M24550","v":0}]
[null,null,null,null,{"$f":"YEAR($C$3)","v":2023},{"$f":"YEAR($C$3)","v":2023}]
[null,"Asset Type","Currency","BSCR Rating","Nominal Amount","Fair Value","Comments"]
[1,{"$f":"Import!M24551","v":"Select"},{"$f":"Import!M24751","v":"Select"},{"$f":"Import!M24951","v":"Select"},{"$f":"Import!M25151","v":0},{"$f":"Import!M25351","v":0},{"$f":"Import!M25551","v":0}]
[{"$f":"A11+1","v":2},{"$f":"Import!M24552","v":"Select"},{"$f":"Import!M24752","v":"Select"},{"$f":"Import!M24952","v":"Select"},{"$f":"Import!M25152","v":0},{"$f":"Import!M25352","v":0},{"$f":"Import!M25552","v":0}]
[{"$f":"A12+1","v":3},{"$f":"Import!M24553","v":"Select"},{"$f":"Import!M24753","v":"Select"},{"$f":"Import!M24953","v":"Select"},{"$f":"Import!M25153","v":0},{"$f":"Import!M25353","v":0},{"$f":"Import!M25553","v":0}]
[4,{"$f":"Import!M24554","v":"Select"},{"$f":"Import!M24754","v":"Select"},{"$f":"Import!M24954","v":"Select"},{"$f":"Import!M25154","v":0},{"$f":"Import!M25354","v":0},{"$f":"Import!M25554","v":0}]
[5,{"$f":"Import!M24555","v":"Select"},{"$f":"Import!M24755","v":"Select"},{"$f":"Import!M24955","v":"Select"},{"$f":"Import!M25155","v":0},{"$f":"Import!M25355","v":0},{"$f":"Import!M25555","v":0}]
[6,{"$f":"Import!M24556","v":"Select"},{"$f":"Import!M24756","v":"Select"},{"$f":"Import!M24956","v":"Select"},{"$f":"Import!M25156","v":0},{"$f":"Import!M25356","v":0},{"$f":"Import!M25556","v":0}]
[7,{"$f":"Import!M24557","v":"Select"},{"$f":"Import!M24757","v":"Select"},{"$f":"Import!M24957","v":"Select"},{"$f":"Import!M25157","v":0},{"$f":"Import!M25357","v":0},{"$f":"Import!M25557","v":0}]
[8,{"$f":"Import!M24558","v":"Select"},{"$f":"Import!M24758","v":"Select"},{"$f":"Import!M24958","v":"Select"},{"$f":"Import!M25158","v":0},{"$f":"Import!M25358","v":0},{"$f":"Import!M25558","v":0}]
[9,{"$f":"Import!M24559","v":"Select"},{"$f":"Import!M24759","v":"Select"},{"$f":"Import!M24959","v":"Select"},{"$f":"Import!M25159","v":0},{"$f":"Import!M25359","v":0},{"$f":"Import!M25559","v":0}]
[10,{"$f":"Import!M24560","v":"Select"},{"$f":"Import!M24760","v":"Select"},{"$f":"Import!M24960","v":"Select"},{"$f":"Import!M25160","v":0},{"$f":"Import!M25360","v":0},{"$f":"Import!M25560","v":0}]
[11,{"$f":"Import!M24561","v":"Select"},{"$f":"Import!M24761","v":"Select"},{"$f":"Import!M24961","v":"Select"},{"$f":"Import!M25161","v":0},{"$f":"Import!M25361","v":0},{"$f":"Import!M25561","v":0}]
[12,{"$f":"Import!M24562","v":"Select"},{"$f":"Import!M24762","v":"Select"},{"$f":"Import!M24962","v":"Select"},{"$f":"Import!M25162","v":0},{"$f":"Import!M25362","v":0},{"$f":"Import!M25562","v":0}]
[13,{"$f":"Import!M24563","v":"Select"},{"$f":"Import!M24763","v":"Select"},{"$f":"Import!M24963","v":"Select"},{"$f":"Import!M25163","v":0},{"$f":"Import!M25363","v":0},{"$f":"Import!M25563","v":0}]
[14,{"$f":"Import!M24564","v":"Select"},{"$f":"Import!M24764","v":"Select"},{"$f":"Import!M24964","v":"Select"},{"$f":"Import!M25164","v":0},{"$f":"Import!M25364","v":0},{"$f":"Import!M25564","v":0}]
[15,{"$f":"Import!M24565","v":"Select"},{"$f":"Import!M24765","v":"Select"},{"$f":"Import!M24965","v":"Select"},{"$f":"Import!M25165","v":0},{"$f":"Import!M25365","v":0},{"$f":"Import!M25565","v":0}]
[16,{"$f":"Import!M24566","v":"Select"},{"$f":"Import!M24766","v":"Select"},{"$f":"Import!M24966","v":"Select"},{"$f":"Import!M25166","v":0},{"$f":"Import!M25366","v":0},{"$f":"Import!M25566","v":0}]
[17,{"$f":"Import!M24567","v":"Select"},{"$f":"Import!M24767","v":"Select"},{"$f":"Import!M24967","v":"Select"},{"$f":"Import!M25167","v":0},{"$f":"Import!M25367","v":0},{"$f":"Import!M25567","v":0}]
[18,{"$f":"Import!M24568","v":"Select"},{"$f":"Import!M24768","v":"Select"},{"$f":"Import!M24968","v":"Select"},{"$f":"Import!M25168","v":0},{"$f":"Import!M25368","v":0},{"$f":"Import!M25568","v":0}]
[19,{"$f":"Import!M24569","v":"Select"},{"$f":"Import!M24769","v":"Select"},{"$f":"Import!M24969","v":"Select"},{"$f":"Import!M25169","v":0},{"$f":"Import!M25369","v":0},{"$f":"Import!M25569","v":0}]
[20,{"$f":"Import!M24570","v":"Select"},{"$f":"Import!M24770","v":"Select"},{"$f":"Import!M24970","v":"Select"},{"$f":"Import!M25170","v":0},{"$f":"Import!M25370","v":0},{"$f":"Import!M25570","v":0}]
[21,{"$f":"Import!M24571","v":"Select"},{"$f":"Import!M24771","v":"Select"},{"$f":"Import!M24971","v":"Select"},{"$f":"Import!M25171","v":0},{"$f":"Import!M25371","v":0},{"$f":"Import!M25571","v":0}]
[22,{"$f":"Import!M24572","v":"Select"},{"$f":"Import!M24772","v":"Select"},{"$f":"Import!M24972","v":"Select"},{"$f":"Import!M25172","v":0},{"$f":"Import!M25372","v":0},{"$f":"Import!M25572","v":0}]
[23,{"$f":"Import!M24573","v":"Select"},{"$f":"Import!M24773","v":"Select"},{"$f":"Import!M24973","v":"Select"},{"$f":"Import!M25173","v":0},{"$f":"Import!M25373","v":0},{"$f":"Import!M25573","v":0}]
[24,{"$f":"Import!M24574","v":"Select"},{"$f":"Import!M24774","v":"Select"},{"$f":"Import!M24974","v":"Select"},{"$f":"Import!M25174","v":0},{"$f":"Import!M25374","v":0},{"$f":"Import!M25574","v":0}]
[25,{"$f":"Import!M24575","v":"Select"},{"$f":"Import!M24775","v":"Select"},{"$f":"Import!M24975","v":"Select"},{"$f":"Import!M25175","v":0},{"$f":"Import!M25375","v":0},{"$f":"Import!M25575","v":0}]
[26,{"$f":"Import!M24576","v":"Select"},{"$f":"Import!M24776","v":"Select"},{"$f":"Import!M24976","v":"Select"},{"$f":"Import!M25176","v":0},{"$f":"Import!M25376","v":0},{"$f":"Import!M25576","v":0}]
[27,{"$f":"Import!M24577","v":"Select"},{"$f":"Import!M24777","v":"Select"},{"$f":"Import!M24977","v":"Select"},{"$f":"Import!M25177","v":0},{"$f":"Import!M25377","v":0},{"$f":"Import!M25577","v":0}]
[28,{"$f":"Import!M24578","v":"Select"},{"$f":"Import!M24778","v":"Select"},{"$f":"Import!M24978","v":"Select"},{"$f":"Import!M25178","v":0},{"$f":"Import!M25378","v":0},{"$f":"Import!M25578","v":0}]
[29,{"$f":"Import!M24579","v":"Select"},{"$f":"Import!M24779","v":"Select"},{"$f":"Import!M24979","v":"Select"},{"$f":"Import!M25179","v":0},{"$f":"Import!M25379","v":0},{"$f":"Import!M25579","v":0}]
[30,{"$f":"Import!M24580","v":"Select"},{"$f":"Import!M24780","v":"Select"},{"$f":"Import!M24980","v":"Select"},{"$f":"Import!M25180","v":0},{"$f":"Import!M25380","v":0},{"$f":"Import!M25580","v":0}]
[31,{"$f":"Import!M24581","v":"Select"},{"$f":"Import!M24781","v":"Select"},{"$f":"Import!M24981","v":"Select"},{"$f":"Import!M25181","v":0},{"$f":"Import!M25381","v":0},{"$f":"Import!M25581","v":0}]
[32,{"$f":"Import!M24582","v":"Select"},{"$f":"Import!M24782","v":"Select"},{"$f":"Import!M24982","v":"Select"},{"$f":"Import!M25182","v":0},{"$f":"Import!M25382","v":0},{"$f":"Import!M25582","v":0}]
[33,{"$f":"Import!M24583","v":"Select"},{"$f":"Import!M24783","v":"Select"},{"$f":"Import!M24983","v":"Select"},{"$f":"Import!M25183","v":0},{"$f":"Import!M25383","v":0},{"$f":"Import!M25583","v":0}]
[34,{"$f":"Import!M24584","v":"Select"},{"$f":"Import!M24784","v":"Select"},{"$f":"Import!M24984","v":"Select"},{"$f":"Import!M25184","v":0},{"$f":"Import!M25384","v":0},{"$f":"Import!M25584","v":0}]
[35,{"$f":"Import!M24585","v":"Select"},{"$f":"Import!M24785","v":"Select"},{"$f":"Import!M24985","v":"Select"},{"$f":"Import!M25185","v":0},{"$f":"Import!M25385","v":0},{"$f":"Import!M25585","v":0}]
[36,{"$f":"Import!M24586","v":"Select"},{"$f":"Import!M24786","v":"Select"},{"$f":"Import!M24986","v":"Select"},{"$f":"Import!M25186","v":0},{"$f":"Import!M25386","v":0},{"$f":"Import!M25586","v":0}]
[37,{"$f":"Import!M24587","v":"Select"},{"$f":"Import!M24787","v":"Select"},{"$f":"Import!M24987","v":"Select"},{"$f":"Import!M25187","v":0},{"$f":"Import!M25387","v":0},{"$f":"Import!M25587","v":0}]
[38,{"$f":"Import!M24588","v":"Select"},{"$f":"Import!M24788","v":"Select"},{"$f":"Import!M24988","v":"Select"},{"$f":"Import!M25188","v":0},{"$f":"Import!M25388","v":0},{"$f":"Import!M25588","v":0}]
[39,{"$f":"Import!M24589","v":"Select"},{"$f":"Import!M24789","v":"Select"},{"$f":"Import!M24989","v":"Select"},{"$f":"Import!M25189","v":0},{"$f":"Import!M25389","v":0},{"$f":"Import!M25589","v":0}]
[40,{"$f":"Import!M24590","v":"Select"},{"$f":"Import!M24790","v":"Select"},{"$f":"Import!M24990","v":"Select"},{"$f":"Import!M25190","v":0},{"$f":"Import!M25390","v":0},{"$f":"Import!M25590","v":0}]
[41,{"$f":"Import!M24591","v":"Select"},{"$f":"Import!M24791","v":"Select"},{"$f":"Import!M24991","v":"Select"},{"$f":"Import!M25191","v":0},{"$f":"Import!M25391","v":0},{"$f":"Import!M25591","v":0}]
[42,{"$f":"Import!M24592","v":"Select"},{"$f":"Import!M24792","v":"Select"},{"$f":"Import!M24992","v":"Select"},{"$f":"Import!M25192","v":0},{"$f":"Import!M25392","v":0},{"$f":"Import!M25592","v":0}]
[43,{"$f":"Import!M24593","v":"Select"},{"$f":"Import!M24793","v":"Select"},{"$f":"Import!M24993","v":"Select"},{"$f":"Import!M25193","v":0},{"$f":"Import!M25393","v":0},{"$f":"Import!M25593","v":0}]
[44,{"$f":"Import!M24594","v":"Select"},{"$f":"Import!M24794","v":"Select"},{"$f":"Import!M24994","v":"Select"},{"$f":"Import!M25194","v":0},{"$f":"Import!M25394","v":0},{"$f":"Import!M25594","v":0}]
[45,{"$f":"Import!M24595","v":"Select"},{"$f":"Import!M24795","v":"Select"},{"$f":"Import!M24995","v":"Select"},{"$f":"Import!M25195","v":0},{"$f":"Import!M25395","v":0},{"$f":"Import!M25595","v":0}]
[46,{"$f":"Import!M24596","v":"Select"},{"$f":"Import!M24796","v":"Select"},{"$f":"Import!M24996","v":"Select"},{"$f":"Import!M25196","v":0},{"$f":"Import!M25396","v":0},{"$f":"Import!M25596","v":0}]
[47,{"$f":"Import!M24597","v":"Select"},{"$f":"Import!M24797","v":"Select"},{"$f":"Import!M24997","v":"Select"},{"$f":"Import!M25197","v":0},{"$f":"Import!M25397","v":0},{"$f":"Import!M25597","v":0}]
[48,{"$f":"Import!M24598","v":"Select"},{"$f":"Import!M24798","v":"Select"},{"$f":"Import!M24998","v":"Select"},{"$f":"Import!M25198","v":0},{"$f":"Import!M25398","v":0},{"$f":"Import!M25598","v":0}]
[49,{"$f":"Import!M24599","v":"Select"},{"$f":"Import!M24799","v":"Select"},{"$f":"Import!M24999","v":"Select"},{"$f":"Import!M25199","v":0},{"$f":"Import!M25399","v":0},{"$f":"Import!M25599","v":0}]
[50,{"$f":"Import!M24600","v":"Select"},{"$f":"Import!M24800","v":"Select"},{"$f":"Import!M25000","v":"Select"},{"$f":"Import!M25200","v":0},{"$f":"Import!M25400","v":0},{"$f":"Import!M25600","v":0}]
[51,{"$f":"Import!M24601","v":"Select"},{"$f":"Import!M24801","v":"Select"},{"$f":"Import!M25001","v":"Select"},{"$f":"Import!M25201","v":0},{"$f":"Import!M25401","v":0},{"$f":"Import!M25601","v":0}]
[52,{"$f":"Import!M24602","v":"Select"},{"$f":"Import!M24802","v":"Select"},{"$f":"Import!M25002","v":"Select"},{"$f":"Import!M25202","v":0},{"$f":"Import!M25402","v":0},{"$f":"Import!M25602","v":0}]
[53,{"$f":"Import!M24603","v":"Select"},{"$f":"Import!M24803","v":"Select"},{"$f":"Import!M25003","v":"Select"},{"$f":"Import!M25203","v":0},{"$f":"Import!M25403","v":0},{"$f":"Import!M25603","v":0}]
[54,{"$f":"Import!M24604","v":"Select"},{"$f":"Import!M24804","v":"Select"},{"$f":"Import!M25004","v":"Select"},{"$f":"Import!M25204","v":0},{"$f":"Import!M25404","v":0},{"$f":"Import!M25604","v":0}]
[55,{"$f":"Import!M24605","v":"Select"},{"$f":"Import!M24805","v":"Select"},{"$f":"Import!M25005","v":"Select"},{"$f":"Import!M25205","v":0},{"$f":"Import!M25405","v":0},{"$f":"Import!M25605","v":0}]
[56,{"$f":"Import!M24606","v":"Select"},{"$f":"Import!M24806","v":"Select"},{"$f":"Import!M25006","v":"Select"},{"$f":"Import!M25206","v":0},{"$f":"Import!M25406","v":0},{"$f":"Import!M25606","v":0}]
[57,{"$f":"Import!M24607","v":"Select"},{"$f":"Import!M24807","v":"Select"},{"$f":"Import!M25007","v":"Select"},{"$f":"Import!M25207","v":0},{"$f":"Import!M25407","v":0},{"$f":"Import!M25607","v":0}]
[58,{"$f":"Import!M24608","v":"Select"},{"$f":"Import!M24808","v":"Select"},{"$f":"Import!M25008","v":"Select"},{"$f":"Import!M25208","v":0},{"$f":"Import!M25408","v":0},{"$f":"Import!M25608","v":0}]
[59,{"$f":"Import!M24609","v":"Select"},{"$f":"Import!M24809","v":"Select"},{"$f":"Import!M25009","v":"Select"},{"$f":"Import!M25209","v":0},{"$f":"Import!M25409","v":0},{"$f":"Import!M25609","v":0}]
[60,{"$f":"Import!M24610","v":"Select"},{"$f":"Import!M24810","v":"Select"},{"$f":"Import!M25010","v":"Select"},{"$f":"Import!M25210","v":0},{"$f":"Import!M25410","v":0},{"$f":"Import!M25610","v":0}]
[61,{"$f":"Import!M24611","v":"Select"},{"$f":"Import!M24811","v":"Select"},{"$f":"Import!M25011","v":"Select"},{"$f":"Import!M25211","v":0},{"$f":"Import!M25411","v":0},{"$f":"Import!M25611","v":0}]
[62,{"$f":"Import!M24612","v":"Select"},{"$f":"Import!M24812","v":"Select"},{"$f":"Import!M25012","v":"Select"},{"$f":"Import!M25212","v":0},{"$f":"Import!M25412","v":0},{"$f":"Import!M25612","v":0}]
[63,{"$f":"Import!M24613","v":"Select"},{"$f":"Import!M24813","v":"Select"},{"$f":"Import!M25013","v":"Select"},{"$f":"Import!M25213","v":0},{"$f":"Import!M25413","v":0},{"$f":"Import!M25613","v":0}]
[64,{"$f":"Import!M24614","v":"Select"},{"$f":"Import!M24814","v":"Select"},{"$f":"Import!M25014","v":"Select"},{"$f":"Import!M25214","v":0},{"$f":"Import!M25414","v":0},{"$f":"Import!M25614","v":0}]
[65,{"$f":"Import!M24615","v":"Select"},{"$f":"Import!M24815","v":"Select"},{"$f":"Import!M25015","v":"Select"},{"$f":"Import!M25215","v":0},{"$f":"Import!M25415","v":0},{"$f":"Import!M25615","v":0}]
[66,{"$f":"Import!M24616","v":"Select"},{"$f":"Import!M24816","v":"Select"},{"$f":"Import!M25016","v":"Select"},{"$f":"Import!M25216","v":0},{"$f":"Import!M25416","v":0},{"$f":"Import!M25616","v":0}]
[{"$f":"A76+1","v":67},{"$f":"Import!M24617","v":"Select"},{"$f":"Import!M24817","v":"Select"},{"$f":"Import!M25017","v":"Select"},{"$f":"Import!M25217","v":0},{"$f":"Import!M25417","v":0},{"$f":"Import!M25617","v":0}]
[68,{"$f":"Import!M24618","v":"Select"},{"$f":"Import!M24818","v":"Select"},{"$f":"Import!M25018","v":"Select"},{"$f":"Import!M25218","v":0},{"$f":"Import!M25418","v":0},{"$f":"Import!M25618","v":0}]
[69,{"$f":"Import!M24619","v":"Select"},{"$f":"Import!M24819","v":"Select"},{"$f":"Import!M25019","v":"Select"},{"$f":"Import!M25219","v":0},{"$f":"Import!M25419","v":0},{"$f":"Import!M25619","v":0}]
[70,{"$f":"Import!M24620","v":"Select"},{"$f":"Import!M24820","v":"Select"},{"$f":"Import!M25020","v":"Select"},{"$f":"Import!M25220","v":0},{"$f":"Import!M25420","v":0},{"$f":"Import!M25620","v":0}]
[71,{"$f":"Import!M24621","v":"Select"},{"$f":"Import!M24821","v":"Select"},{"$f":"Import!M25021","v":"Select"},{"$f":"Import!M25221","v":0},{"$f":"Import!M25421","v":0},{"$f":"Import!M25621","v":0}]
[72,{"$f":"Import!M24622","v":"Select"},{"$f":"Import!M24822","v":"Select"},{"$f":"Import!M25022","v":"Select"},{"$f":"Import!M25222","v":0},{"$f":"Import!M25422","v":0},{"$f":"Import!M25622","v":0}]
[73,{"$f":"Import!M24623","v":"Select"},{"$f":"Import!M24823","v":"Select"},{"$f":"Import!M25023","v":"Select"},{"$f":"Import!M25223","v":0},{"$f":"Import!M25423","v":0},{"$f":"Import!M25623","v":0}]
[74,{"$f":"Import!M24624","v":"Select"},{"$f":"Import!M24824","v":"Select"},{"$f":"Import!M25024","v":"Select"},{"$f":"Import!M25224","v":0},{"$f":"Import!M25424","v":0},{"$f":"Import!M25624","v":0}]
[75,{"$f":"Import!M24625","v":"Select"},{"$f":"Import!M24825","v":"Select"},{"$f":"Import!M25025","v":"Select"},{"$f":"Import!M25225","v":0},{"$f":"Import!M25425","v":0},{"$f":"Import!M25625","v":0}]
[76,{"$f":"Import!M24626","v":"Select"},{"$f":"Import!M24826","v":"Select"},{"$f":"Import!M25026","v":"Select"},{"$f":"Import!M25226","v":0},{"$f":"Import!M25426","v":0},{"$f":"Import!M25626","v":0}]
[77,{"$f":"Import!M24627","v":"Select"},{"$f":"Import!M24827","v":"Select"},{"$f":"Import!M25027","v":"Select"},{"$f":"Import!M25227","v":0},{"$f":"Import!M25427","v":0},{"$f":"Import!M25627","v":0}]
[78,{"$f":"Import!M24628","v":"Select"},{"$f":"Import!M24828","v":"Select"},{"$f":"Import!M25028","v":"Select"},{"$f":"Import!M25228","v":0},{"$f":"Import!M25428","v":0},{"$f":"Import!M25628","v":0}]
[79,{"$f":"Import!M24629","v":"Select"},{"$f":"Import!M24829","v":"Select"},{"$f":"Import!M25029","v":"Select"},{"$f":"Import!M25229","v":0},{"$f":"Import!M25429","v":0},{"$f":"Import!M25629","v":0}]
[80,{"$f":"Import!M24630","v":"Select"},{"$f":"Import!M24830","v":"Select"},{"$f":"Import!M25030","v":"Select"},{"$f":"Import!M25230","v":0},{"$f":"Import!M25430","v":0},{"$f":"Import!M25630","v":0}]
[81,{"$f":"Import!M24631","v":"Select"},{"$f":"Import!M24831","v":"Select"},{"$f":"Import!M25031","v":"Select"},{"$f":"Import!M25231","v":0},{"$f":"Import!M25431","v":0},{"$f":"Import!M25631","v":0}]
[82,{"$f":"Import!M24632","v":"Select"},{"$f":"Import!M24832","v":"Select"},{"$f":"Import!M25032","v":"Select"},{"$f":"Import!M25232","v":0},{"$f":"Import!M25432","v":0},{"$f":"Import!M25632","v":0}]
[83,{"$f":"Import!M24633","v":"Select"},{"$f":"Import!M24833","v":"Select"},{"$f":"Import!M25033","v":"Select"},{"$f":"Import!M25233","v":0},{"$f":"Import!M25433","v":0},{"$f":"Import!M25633","v":0}]
[84,{"$f":"Import!M24634","v":"Select"},{"$f":"Import!M24834","v":"Select"},{"$f":"Import!M25034","v":"Select"},{"$f":"Import!M25234","v":0},{"$f":"Import!M25434","v":0},{"$f":"Import!M25634","v":0}]
[85,{"$f":"Import!M24635","v":"Select"},{"$f":"Import!M24835","v":"Select"},{"$f":"Import!M25035","v":"Select"},{"$f":"Import!M25235","v":0},{"$f":"Import!M25435","v":0},{"$f":"Import!M25635","v":0}]
[86,{"$f":"Import!M24636","v":"Select"},{"$f":"Import!M24836","v":"Select"},{"$f":"Import!M25036","v":"Select"},{"$f":"Import!M25236","v":0},{"$f":"Import!M25436","v":0},{"$f":"Import!M25636","v":0}]
[87,{"$f":"Import!M24637","v":"Select"},{"$f":"Import!M24837","v":"Select"},{"$f":"Import!M25037","v":"Select"},{"$f":"Import!M25237","v":0},{"$f":"Import!M25437","v":0},{"$f":"Import!M25637","v":0}]
[88,{"$f":"Import!M24638","v":"Select"},{"$f":"Import!M24838","v":"Select"},{"$f":"Import!M25038","v":"Select"},{"$f":"Import!M25238","v":0},{"$f":"Import!M25438","v":0},{"$f":"Import!M25638","v":0}]
[89,{"$f":"Import!M24639","v":"Select"},{"$f":"Import!M24839","v":"Select"},{"$f":"Import!M25039","v":"Select"},{"$f":"Import!M25239","v":0},{"$f":"Import!M25439","v":0},{"$f":"Import!M25639","v":0}]
[90,{"$f":"Import!M24640","v":"Select"},{"$f":"Import!M24840","v":"Select"},{"$f":"Import!M25040","v":"Select"},{"$f":"Import!M25240","v":0},{"$f":"Import!M25440","v":0},{"$f":"Import!M25640","v":0}]
[91,{"$f":"Import!M24641","v":"Select"},{"$f":"Import!M24841","v":"Select"},{"$f":"Import!M25041","v":"Select"},{"$f":"Import!M25241","v":0},{"$f":"Import!M25441","v":0},{"$f":"Import!M25641","v":0}]
[92,{"$f":"Import!M24642","v":"Select"},{"$f":"Import!M24842","v":"Select"},{"$f":"Import!M25042","v":"Select"},{"$f":"Import!M25242","v":0},{"$f":"Import!M25442","v":0},{"$f":"Import!M25642","v":0}]
[93,{"$f":"Import!M24643","v":"Select"},{"$f":"Import!M24843","v":"Select"},{"$f":"Import!M25043","v":"Select"},{"$f":"Import!M25243","v":0},{"$f":"Import!M25443","v":0},{"$f":"Import!M25643","v":0}]
[94,{"$f":"Import!M24644","v":"Select"},{"$f":"Import!M24844","v":"Select"},{"$f":"Import!M25044","v":"Select"},{"$f":"Import!M25244","v":0},{"$f":"Import!M25444","v":0},{"$f":"Import!M25644","v":0}]
[95,{"$f":"Import!M24645","v":"Select"},{"$f":"Import!M24845","v":"Select"},{"$f":"Import!M25045","v":"Select"},{"$f":"Import!M25245","v":0},{"$f":"Import!M25445","v":0},{"$f":"Import!M25645","v":0}]
[96,{"$f":"Import!M24646","v":"Select"},{"$f":"Import!M24846","v":"Select"},{"$f":"Import!M25046","v":"Select"},{"$f":"Import!M25246","v":0},{"$f":"Import!M25446","v":0},{"$f":"Import!M25646","v":0}]
[97,{"$f":"Import!M24647","v":"Select"},{"$f":"Import!M24847","v":"Select"},{"$f":"Import!M25047","v":"Select"},{"$f":"Import!M25247","v":0},{"$f":"Import!M25447","v":0},{"$f":"Import!M25647","v":0}]
[98,{"$f":"Import!M24648","v":"Select"},{"$f":"Import!M24848","v":"Select"},{"$f":"Import!M25048","v":"Select"},{"$f":"Import!M25248","v":0},{"$f":"Import!M25448","v":0},{"$f":"Import!M25648","v":0}]
[99,{"$f":"Import!M24649","v":"Select"},{"$f":"Import!M24849","v":"Select"},{"$f":"Import!M25049","v":"Select"},{"$f":"Import!M25249","v":0},{"$f":"Import!M25449","v":0},{"$f":"Import!M25649","v":0}]
[100,{"$f":"Import!M24650","v":"Select"},{"$f":"Import!M24850","v":"Select"},{"$f":"Import!M25050","v":"Select"},{"$f":"Import!M25250","v":0},{"$f":"Import!M25450","v":0},{"$f":"Import!M25650","v":0}]
[101,{"$f":"Import!M24651","v":"Select"},{"$f":"Import!M24851","v":"Select"},{"$f":"Import!M25051","v":"Select"},{"$f":"Import!M25251","v":0},{"$f":"Import!M25451","v":0},{"$f":"Import!M25651","v":0}]
[102,{"$f":"Import!M24652","v":"Select"},{"$f":"Import!M24852","v":"Select"},{"$f":"Import!M25052","v":"Select"},{"$f":"Import!M25252","v":0},{"$f":"Import!M25452","v":0},{"$f":"Import!M25652","v":0}]
[103,{"$f":"Import!M24653","v":"Select"},{"$f":"Import!M24853","v":"Select"},{"$f":"Import!M25053","v":"Select"},{"$f":"Import!M25253","v":0},{"$f":"Import!M25453","v":0},{"$f":"Import!M25653","v":0}]
[104,{"$f":"Import!M24654","v":"Select"},{"$f":"Import!M24854","v":"Select"},{"$f":"Import!M25054","v":"Select"},{"$f":"Import!M25254","v":0},{"$f":"Import!M25454","v":0},{"$f":"Import!M25654","v":0}]
[105,{"$f":"Import!M24655","v":"Select"},{"$f":"Import!M24855","v":"Select"},{"$f":"Import!M25055","v":"Select"},{"$f":"Import!M25255","v":0},{"$f":"Import!M25455","v":0},{"$f":"Import!M25655","v":0}]
[106,{"$f":"Import!M24656","v":"Select"},{"$f":"Import!M24856","v":"Select"},{"$f":"Import!M25056","v":"Select"},{"$f":"Import!M25256","v":0},{"$f":"Import!M25456","v":0},{"$f":"Import!M25656","v":0}]
[107,{"$f":"Import!M24657","v":"Select"},{"$f":"Import!M24857","v":"Select"},{"$f":"Import!M25057","v":"Select"},{"$f":"Import!M25257","v":0},{"$f":"Import!M25457","v":0},{"$f":"Import!M25657","v":0}]
[108,{"$f":"Import!M24658","v":"Select"},{"$f":"Import!M24858","v":"Select"},{"$f":"Import!M25058","v":"Select"},{"$f":"Import!M25258","v":0},{"$f":"Import!M25458","v":0},{"$f":"Import!M25658","v":0}]
[109,{"$f":"Import!M24659","v":"Select"},{"$f":"Import!M24859","v":"Select"},{"$f":"Import!M25059","v":"Select"},{"$f":"Import!M25259","v":0},{"$f":"Import!M25459","v":0},{"$f":"Import!M25659","v":0}]
[110,{"$f":"Import!M24660","v":"Select"},{"$f":"Import!M24860","v":"Select"},{"$f":"Import!M25060","v":"Select"},{"$f":"Import!M25260","v":0},{"$f":"Import!M25460","v":0},{"$f":"Import!M25660","v":0}]
[111,{"$f":"Import!M24661","v":"Select"},{"$f":"Import!M24861","v":"Select"},{"$f":"Import!M25061","v":"Select"},{"$f":"Import!M25261","v":0},{"$f":"Import!M25461","v":0},{"$f":"Import!M25661","v":0}]
[112,{"$f":"Import!M24662","v":"Select"},{"$f":"Import!M24862","v":"Select"},{"$f":"Import!M25062","v":"Select"},{"$f":"Import!M25262","v":0},{"$f":"Import!M25462","v":0},{"$f":"Import!M25662","v":0}]
[113,{"$f":"Import!M24663","v":"Select"},{"$f":"Import!M24863","v":"Select"},{"$f":"Import!M25063","v":"Select"},{"$f":"Import!M25263","v":0},{"$f":"Import!M25463","v":0},{"$f":"Import!M25663","v":0}]
[114,{"$f":"Import!M24664","v":"Select"},{"$f":"Import!M24864","v":"Select"},{"$f":"Import!M25064","v":"Select"},{"$f":"Import!M25264","v":0},{"$f":"Import!M25464","v":0},{"$f":"Import!M25664","v":0}]
[115,{"$f":"Import!M24665","v":"Select"},{"$f":"Import!M24865","v":"Select"},{"$f":"Import!M25065","v":"Select"},{"$f":"Import!M25265","v":0},{"$f":"Import!M25465","v":0},{"$f":"Import!M25665","v":0}]
[116,{"$f":"Import!M24666","v":"Select"},{"$f":"Import!M24866","v":"Select"},{"$f":"Import!M25066","v":"Select"},{"$f":"Import!M25266","v":0},{"$f":"Import!M25466","v":0},{"$f":"Import!M25666","v":0}]
[117,{"$f":"Import!M24667","v":"Select"},{"$f":"Import!M24867","v":"Select"},{"$f":"Import!M25067","v":"Select"},{"$f":"Import!M25267","v":0},{"$f":"Import!M25467","v":0},{"$f":"Import!M25667","v":0}]
[118,{"$f":"Import!M24668","v":"Select"},{"$f":"Import!M24868","v":"Select"},{"$f":"Import!M25068","v":"Select"},{"$f":"Import!M25268","v":0},{"$f":"Import!M25468","v":0},{"$f":"Import!M25668","v":0}]
[119,{"$f":"Import!M24669","v":"Select"},{"$f":"Import!M24869","v":"Select"},{"$f":"Import!M25069","v":"Select"},{"$f":"Import!M25269","v":0},{"$f":"Import!M25469","v":0},{"$f":"Import!M25669","v":0}]
[120,{"$f":"Import!M24670","v":"Select"},{"$f":"Import!M24870","v":"Select"},{"$f":"Import!M25070","v":"Select"},{"$f":"Import!M25270","v":0},{"$f":"Import!M25470","v":0},{"$f":"Import!M25670","v":0}]
[121,{"$f":"Import!M24671","v":"Select"},{"$f":"Import!M24871","v":"Select"},{"$f":"Import!M25071","v":"Select"},{"$f":"Import!M25271","v":0},{"$f":"Import!M25471","v":0},{"$f":"Import!M25671","v":0}]
[122,{"$f":"Import!M24672","v":"Select"},{"$f":"Import!M24872","v":"Select"},{"$f":"Import!M25072","v":"Select"},{"$f":"Import!M25272","v":0},{"$f":"Import!M25472","v":0},{"$f":"Import!M25672","v":0}]
[123,{"$f":"Import!M24673","v":"Select"},{"$f":"Import!M24873","v":"Select"},{"$f":"Import!M25073","v":"Select"},{"$f":"Import!M25273","v":0},{"$f":"Import!M25473","v":0},{"$f":"Import!M25673","v":0}]
[124,{"$f":"Import!M24674","v":"Select"},{"$f":"Import!M24874","v":"Select"},{"$f":"Import!M25074","v":"Select"},{"$f":"Import!M25274","v":0},{"$f":"Import!M25474","v":0},{"$f":"Import!M25674","v":0}]
[125,{"$f":"Import!M24675","v":"Select"},{"$f":"Import!M24875","v":"Select"},{"$f":"Import!M25075","v":"Select"},{"$f":"Import!M25275","v":0},{"$f":"Import!M25475","v":0},{"$f":"Import!M25675","v":0}]
[126,{"$f":"Import!M24676","v":"Select"},{"$f":"Import!M24876","v":"Select"},{"$f":"Import!M25076","v":"Select"},{"$f":"Import!M25276","v":0},{"$f":"Import!M25476","v":0},{"$f":"Import!M25676","v":0}]
[127,{"$f":"Import!M24677","v":"Select"},{"$f":"Import!M24877","v":"Select"},{"$f":"Import!M25077","v":"Select"},{"$f":"Import!M25277","v":0},{"$f":"Import!M25477","v":0},{"$f":"Import!M25677","v":0}]
[128,{"$f":"Import!M24678","v":"Select"},{"$f":"Import!M24878","v":"Select"},{"$f":"Import!M25078","v":"Select"},{"$f":"Import!M25278","v":0},{"$f":"Import!M25478","v":0},{"$f":"Import!M25678","v":0}]
[129,{"$f":"Import!M24679","v":"Select"},{"$f":"Import!M24879","v":"Select"},{"$f":"Import!M25079","v":"Select"},{"$f":"Import!M25279","v":0},{"$f":"Import!M25479","v":0},{"$f":"Import!M25679","v":0}]
[130,{"$f":"Import!M24680","v":"Select"},{"$f":"Import!M24880","v":"Select"},{"$f":"Import!M25080","v":"Select"},{"$f":"Import!M25280","v":0},{"$f":"Import!M25480","v":0},{"$f":"Import!M25680","v":0}]
[{"$f":"A140+1","v":131},{"$f":"Import!M24681","v":"Select"},{"$f":"Import!M24881","v":"Select"},{"$f":"Import!M25081","v":"Select"},{"$f":"Import!M25281","v":0},{"$f":"Import!M25481","v":0},{"$f":"Import!M25681","v":0}]
[132,{"$f":"Import!M24682","v":"Select"},{"$f":"Import!M24882","v":"Select"},{"$f":"Import!M25082","v":"Select"},{"$f":"Import!M25282","v":0},{"$f":"Import!M25482","v":0},{"$f":"Import!M25682","v":0}]
[133,{"$f":"Import!M24683","v":"Select"},{"$f":"Import!M24883","v":"Select"},{"$f":"Import!M25083","v":"Select"},{"$f":"Import!M25283","v":0},{"$f":"Import!M25483","v":0},{"$f":"Import!M25683","v":0}]
[134,{"$f":"Import!M24684","v":"Select"},{"$f":"Import!M24884","v":"Select"},{"$f":"Import!M25084","v":"Select"},{"$f":"Import!M25284","v":0},{"$f":"Import!M25484","v":0},{"$f":"Import!M25684","v":0}]
[135,{"$f":"Import!M24685","v":"Select"},{"$f":"Import!M24885","v":"Select"},{"$f":"Import!M25085","v":"Select"},{"$f":"Import!M25285","v":0},{"$f":"Import!M25485","v":0},{"$f":"Import!M25685","v":0}]
[136,{"$f":"Import!M24686","v":"Select"},{"$f":"Import!M24886","v":"Select"},{"$f":"Import!M25086","v":"Select"},{"$f":"Import!M25286","v":0},{"$f":"Import!M25486","v":0},{"$f":"Import!M25686","v":0}]
[137,{"$f":"Import!M24687","v":"Select"},{"$f":"Import!M24887","v":"Select"},{"$f":"Import!M25087","v":"Select"},{"$f":"Import!M25287","v":0},{"$f":"Import!M25487","v":0},{"$f":"Import!M25687","v":0}]
[138,{"$f":"Import!M24688","v":"Select"},{"$f":"Import!M24888","v":"Select"},{"$f":"Import!M25088","v":"Select"},{"$f":"Import!M25288","v":0},{"$f":"Import!M25488","v":0},{"$f":"Import!M25688","v":0}]
[139,{"$f":"Import!M24689","v":"Select"},{"$f":"Import!M24889","v":"Select"},{"$f":"Import!M25089","v":"Select"},{"$f":"Import!M25289","v":0},{"$f":"Import!M25489","v":0},{"$f":"Import!M25689","v":0}]
[140,{"$f":"Import!M24690","v":"Select"},{"$f":"Import!M24890","v":"Select"},{"$f":"Import!M25090","v":"Select"},{"$f":"Import!M25290","v":0},{"$f":"Import!M25490","v":0},{"$f":"Import!M25690","v":0}]
[141,{"$f":"Import!M24691","v":"Select"},{"$f":"Import!M24891","v":"Select"},{"$f":"Import!M25091","v":"Select"},{"$f":"Import!M25291","v":0},{"$f":"Import!M25491","v":0},{"$f":"Import!M25691","v":0}]
[142,{"$f":"Import!M24692","v":"Select"},{"$f":"Import!M24892","v":"Select"},{"$f":"Import!M25092","v":"Select"},{"$f":"Import!M25292","v":0},{"$f":"Import!M25492","v":0},{"$f":"Import!M25692","v":0}]
[143,{"$f":"Import!M24693","v":"Select"},{"$f":"Import!M24893","v":"Select"},{"$f":"Import!M25093","v":"Select"},{"$f":"Import!M25293","v":0},{"$f":"Import!M25493","v":0},{"$f":"Import!M25693","v":0}]
[144,{"$f":"Import!M24694","v":"Select"},{"$f":"Import!M24894","v":"Select"},{"$f":"Import!M25094","v":"Select"},{"$f":"Import!M25294","v":0},{"$f":"Import!M25494","v":0},{"$f":"Import!M25694","v":0}]
[145,{"$f":"Import!M24695","v":"Select"},{"$f":"Import!M24895","v":"Select"},{"$f":"Import!M25095","v":"Select"},{"$f":"Import!M25295","v":0},{"$f":"Import!M25495","v":0},{"$f":"Import!M25695","v":0}]
[146,{"$f":"Import!M24696","v":"Select"},{"$f":"Import!M24896","v":"Select"},{"$f":"Import!M25096","v":"Select"},{"$f":"Import!M25296","v":0},{"$f":"Import!M25496","v":0},{"$f":"Import!M25696","v":0}]
[147,{"$f":"Import!M24697","v":"Select"},{"$f":"Import!M24897","v":"Select"},{"$f":"Import!M25097","v":"Select"},{"$f":"Import!M25297","v":0},{"$f":"Import!M25497","v":0},{"$f":"Import!M25697","v":0}]
[148,{"$f":"Import!M24698","v":"Select"},{"$f":"Import!M24898","v":"Select"},{"$f":"Import!M25098","v":"Select"},{"$f":"Import!M25298","v":0},{"$f":"Import!M25498","v":0},{"$f":"Import!M25698","v":0}]
[149,{"$f":"Import!M24699","v":"Select"},{"$f":"Import!M24899","v":"Select"},{"$f":"Import!M25099","v":"Select"},{"$f":"Import!M25299","v":0},{"$f":"Import!M25499","v":0},{"$f":"Import!M25699","v":0}]
[150,{"$f":"Import!M24700","v":"Select"},{"$f":"Import!M24900","v":"Select"},{"$f":"Import!M25100","v":"Select"},{"$f":"Import!M25300","v":0},{"$f":"Import!M25500","v":0},{"$f":"Import!M25700","v":0}]
[151,{"$f":"Import!M24701","v":"Select"},{"$f":"Import!M24901","v":"Select"},{"$f":"Import!M25101","v":"Select"},{"$f":"Import!M25301","v":0},{"$f":"Import!M25501","v":0},{"$f":"Import!M25701","v":0}]
[152,{"$f":"Import!M24702","v":"Select"},{"$f":"Import!M24902","v":"Select"},{"$f":"Import!M25102","v":"Select"},{"$f":"Import!M25302","v":0},{"$f":"Import!M25502","v":0},{"$f":"Import!M25702","v":0}]
[153,{"$f":"Import!M24703","v":"Select"},{"$f":"Import!M24903","v":"Select"},{"$f":"Import!M25103","v":"Select"},{"$f":"Import!M25303","v":0},{"$f":"Import!M25503","v":0},{"$f":"Import!M25703","v":0}]
[154,{"$f":"Import!M24704","v":"Select"},{"$f":"Import!M24904","v":"Select"},{"$f":"Import!M25104","v":"Select"},{"$f":"Import!M25304","v":0},{"$f":"Import!M25504","v":0},{"$f":"Import!M25704","v":0}]
[155,{"$f":"Import!M24705","v":"Select"},{"$f":"Import!M24905","v":"Select"},{"$f":"Import!M25105","v":"Select"},{"$f":"Import!M25305","v":0},{"$f":"Import!M25505","v":0},{"$f":"Import!M25705","v":0}]
[156,{"$f":"Import!M24706","v":"Select"},{"$f":"Import!M24906","v":"Select"},{"$f":"Import!M25106","v":"Select"},{"$f":"Import!M25306","v":0},{"$f":"Import!M25506","v":0},{"$f":"Import!M25706","v":0}]
[157,{"$f":"Import!M24707","v":"Select"},{"$f":"Import!M24907","v":"Select"},{"$f":"Import!M25107","v":"Select"},{"$f":"Import!M25307","v":0},{"$f":"Import!M25507","v":0},{"$f":"Import!M25707","v":0}]
[158,{"$f":"Import!M24708","v":"Select"},{"$f":"Import!M24908","v":"Select"},{"$f":"Import!M25108","v":"Select"},{"$f":"Import!M25308","v":0},{"$f":"Import!M25508","v":0},{"$f":"Import!M25708","v":0}]
[159,{"$f":"Import!M24709","v":"Select"},{"$f":"Import!M24909","v":"Select"},{"$f":"Import!M25109","v":"Select"},{"$f":"Import!M25309","v":0},{"$f":"Import!M25509","v":0},{"$f":"Import!M25709","v":0}]
[160,{"$f":"Import!M24710","v":"Select"},{"$f":"Import!M24910","v":"Select"},{"$f":"Import!M25110","v":"Select"},{"$f":"Import!M25310","v":0},{"$f":"Import!M25510","v":0},{"$f":"Import!M25710","v":0}]
[161,{"$f":"Import!M24711","v":"Select"},{"$f":"Import!M24911","v":"Select"},{"$f":"Import!M25111","v":"Select"},{"$f":"Import!M25311","v":0},{"$f":"Import!M25511","v":0},{"$f":"Import!M25711","v":0}]
[162,{"$f":"Import!M24712","v":"Select"},{"$f":"Import!M24912","v":"Select"},{"$f":"Import!M25112","v":"Select"},{"$f":"Import!M25312","v":0},{"$f":"Import!M25512","v":0},{"$f":"Import!M25712","v":0}]
[163,{"$f":"Import!M24713","v":"Select"},{"$f":"Import!M24913","v":"Select"},{"$f":"Import!M25113","v":"Select"},{"$f":"Import!M25313","v":0},{"$f":"Import!M25513","v":0},{"$f":"Import!M25713","v":0}]
[164,{"$f":"Import!M24714","v":"Select"},{"$f":"Import!M24914","v":"Select"},{"$f":"Import!M25114","v":"Select"},{"$f":"Import!M25314","v":0},{"$f":"Import!M25514","v":0},{"$f":"Import!M25714","v":0}]
[165,{"$f":"Import!M24715","v":"Select"},{"$f":"Import!M24915","v":"Select"},{"$f":"Import!M25115","v":"Select"},{"$f":"Import!M25315","v":0},{"$f":"Import!M25515","v":0},{"$f":"Import!M25715","v":0}]
[166,{"$f":"Import!M24716","v":"Select"},{"$f":"Import!M24916","v":"Select"},{"$f":"Import!M25116","v":"Select"},{"$f":"Import!M25316","v":0},{"$f":"Import!M25516","v":0},{"$f":"Import!M25716","v":0}]
[167,{"$f":"Import!M24717","v":"Select"},{"$f":"Import!M24917","v":"Select"},{"$f":"Import!M25117","v":"Select"},{"$f":"Import!M25317","v":0},{"$f":"Import!M25517","v":0},{"$f":"Import!M25717","v":0}]
[168,{"$f":"Import!M24718","v":"Select"},{"$f":"Import!M24918","v":"Select"},{"$f":"Import!M25118","v":"Select"},{"$f":"Import!M25318","v":0},{"$f":"Import!M25518","v":0},{"$f":"Import!M25718","v":0}]
[169,{"$f":"Import!M24719","v":"Select"},{"$f":"Import!M24919","v":"Select"},{"$f":"Import!M25119","v":"Select"},{"$f":"Import!M25319","v":0},{"$f":"Import!M25519","v":0},{"$f":"Import!M25719","v":0}]
[170,{"$f":"Import!M24720","v":"Select"},{"$f":"Import!M24920","v":"Select"},{"$f":"Import!M25120","v":"Select"},{"$f":"Import!M25320","v":0},{"$f":"Import!M25520","v":0},{"$f":"Import!M25720","v":0}]
[171,{"$f":"Import!M24721","v":"Select"},{"$f":"Import!M24921","v":"Select"},{"$f":"Import!M25121","v":"Select"},{"$f":"Import!M25321","v":0},{"$f":"Import!M25521","v":0},{"$f":"Import!M25721","v":0}]
[172,{"$f":"Import!M24722","v":"Select"},{"$f":"Import!M24922","v":"Select"},{"$f":"Import!M25122","v":"Select"},{"$f":"Import!M25322","v":0},{"$f":"Import!M25522","v":0},{"$f":"Import!M25722","v":0}]
[173,{"$f":"Import!M24723","v":"Select"},{"$f":"Import!M24923","v":"Select"},{"$f":"Import!M25123","v":"Select"},{"$f":"Import!M25323","v":0},{"$f":"Import!M25523","v":0},{"$f":"Import!M25723","v":0}]
[174,{"$f":"Import!M24724","v":"Select"},{"$f":"Import!M24924","v":"Select"},{"$f":"Import!M25124","v":"Select"},{"$f":"Import!M25324","v":0},{"$f":"Import!M25524","v":0},{"$f":"Import!M25724","v":0}]
[175,{"$f":"Import!M24725","v":"Select"},{"$f":"Import!M24925","v":"Select"},{"$f":"Import!M25125","v":"Select"},{"$f":"Import!M25325","v":0},{"$f":"Import!M25525","v":0},{"$f":"Import!M25725","v":0}]
[176,{"$f":"Import!M24726","v":"Select"},{"$f":"Import!M24926","v":"Select"},{"$f":"Import!M25126","v":"Select"},{"$f":"Import!M25326","v":0},{"$f":"Import!M25526","v":0},{"$f":"Import!M25726","v":0}]
[177,{"$f":"Import!M24727","v":"Select"},{"$f":"Import!M24927","v":"Select"},{"$f":"Import!M25127","v":"Select"},{"$f":"Import!M25327","v":0},{"$f":"Import!M25527","v":0},{"$f":"Import!M25727","v":0}]
[178,{"$f":"Import!M24728","v":"Select"},{"$f":"Import!M24928","v":"Select"},{"$f":"Import!M25128","v":"Select"},{"$f":"Import!M25328","v":0},{"$f":"Import!M25528","v":0},{"$f":"Import!M25728","v":0}]
[179,{"$f":"Import!M24729","v":"Select"},{"$f":"Import!M24929","v":"Select"},{"$f":"Import!M25129","v":"Select"},{"$f":"Import!M25329","v":0},{"$f":"Import!M25529","v":0},{"$f":"Import!M25729","v":0}]
[180,{"$f":"Import!M24730","v":"Select"},{"$f":"Import!M24930","v":"Select"},{"$f":"Import!M25130","v":"Select"},{"$f":"Import!M25330","v":0},{"$f":"Import!M25530","v":0},{"$f":"Import!M25730","v":0}]
[181,{"$f":"Import!M24731","v":"Select"},{"$f":"Import!M24931","v":"Select"},{"$f":"Import!M25131","v":"Select"},{"$f":"Import!M25331","v":0},{"$f":"Import!M25531","v":0},{"$f":"Import!M25731","v":0}]
[182,{"$f":"Import!M24732","v":"Select"},{"$f":"Import!M24932","v":"Select"},{"$f":"Import!M25132","v":"Select"},{"$f":"Import!M25332","v":0},{"$f":"Import!M25532","v":0},{"$f":"Import!M25732","v":0}]
[183,{"$f":"Import!M24733","v":"Select"},{"$f":"Import!M24933","v":"Select"},{"$f":"Import!M25133","v":"Select"},{"$f":"Import!M25333","v":0},{"$f":"Import!M25533","v":0},{"$f":"Import!M25733","v":0}]
[184,{"$f":"Import!M24734","v":"Select"},{"$f":"Import!M24934","v":"Select"},{"$f":"Import!M25134","v":"Select"},{"$f":"Import!M25334","v":0},{"$f":"Import!M25534","v":0},{"$f":"Import!M25734","v":0}]
[185,{"$f":"Import!M24735","v":"Select"},{"$f":"Import!M24935","v":"Select"},{"$f":"Import!M25135","v":"Select"},{"$f":"Import!M25335","v":0},{"$f":"Import!M25535","v":0},{"$f":"Import!M25735","v":0}]
[186,{"$f":"Import!M24736","v":"Select"},{"$f":"Import!M24936","v":"Select"},{"$f":"Import!M25136","v":"Select"},{"$f":"Import!M25336","v":0},{"$f":"Import!M25536","v":0},{"$f":"Import!M25736","v":0}]
[187,{"$f":"Import!M24737","v":"Select"},{"$f":"Import!M24937","v":"Select"},{"$f":"Import!M25137","v":"Select"},{"$f":"Import!M25337","v":0},{"$f":"Import!M25537","v":0},{"$f":"Import!M25737","v":0}]
[188,{"$f":"Import!M24738","v":"Select"},{"$f":"Import!M24938","v":"Select"},{"$f":"Import!M25138","v":"Select"},{"$f":"Import!M25338","v":0},{"$f":"Import!M25538","v":0},{"$f":"Import!M25738","v":0}]
[189,{"$f":"Import!M24739","v":"Select"},{"$f":"Import!M24939","v":"Select"},{"$f":"Import!M25139","v":"Select"},{"$f":"Import!M25339","v":0},{"$f":"Import!M25539","v":0},{"$f":"Import!M25739","v":0}]
[190,{"$f":"Import!M24740","v":"Select"},{"$f":"Import!M24940","v":"Select"},{"$f":"Import!M25140","v":"Select"},{"$f":"Import!M25340","v":0},{"$f":"Import!M25540","v":0},{"$f":"Import!M25740","v":0}]
[191,{"$f":"Import!M24741","v":"Select"},{"$f":"Import!M24941","v":"Select"},{"$f":"Import!M25141","v":"Select"},{"$f":"Import!M25341","v":0},{"$f":"Import!M25541","v":0},{"$f":"Import!M25741","v":0}]
[192,{"$f":"Import!M24742","v":"Select"},{"$f":"Import!M24942","v":"Select"},{"$f":"Import!M25142","v":"Select"},{"$f":"Import!M25342","v":0},{"$f":"Import!M25542","v":0},{"$f":"Import!M25742","v":0}]
[193,{"$f":"Import!M24743","v":"Select"},{"$f":"Import!M24943","v":"Select"},{"$f":"Import!M25143","v":"Select"},{"$f":"Import!M25343","v":0},{"$f":"Import!M25543","v":0},{"$f":"Import!M25743","v":0}]
[194,{"$f":"Import!M24744","v":"Select"},{"$f":"Import!M24944","v":"Select"},{"$f":"Import!M25144","v":"Select"},{"$f":"Import!M25344","v":0},{"$f":"Import!M25544","v":0},{"$f":"Import!M25744","v":0}]
[{"$f":"A204+1","v":195},{"$f":"Import!M24745","v":"Select"},{"$f":"Import!M24945","v":"Select"},{"$f":"Import!M25145","v":"Select"},{"$f":"Import!M25345","v":0},{"$f":"Import!M25545","v":0},{"$f":"Import!M25745","v":0}]
[196,{"$f":"Import!M24746","v":"Select"},{"$f":"Import!M24946","v":"Select"},{"$f":"Import!M25146","v":"Select"},{"$f":"Import!M25346","v":0},{"$f":"Import!M25546","v":0},{"$f":"Import!M25746","v":0}]
[197,{"$f":"Import!M24747","v":"Select"},{"$f":"Import!M24947","v":"Select"},{"$f":"Import!M25147","v":"Select"},{"$f":"Import!M25347","v":0},{"$f":"Import!M25547","v":0},{"$f":"Import!M25747","v":0}]
[198,{"$f":"Import!M24748","v":"Select"},{"$f":"Import!M24948","v":"Select"},{"$f":"Import!M25148","v":"Select"},{"$f":"Import!M25348","v":0},{"$f":"Import!M25548","v":0},{"$f":"Import!M25748","v":0}]
[199,{"$f":"Import!M24749","v":"Select"},{"$f":"Import!M24949","v":"Select"},{"$f":"Import!M25149","v":"Select"},{"$f":"Import!M25349","v":0},{"$f":"Import!M25549","v":0},{"$f":"Import!M25749","v":0}]
[200,{"$f":"Import!M24750","v":"Select"},{"$f":"Import!M24950","v":"Select"},{"$f":"Import!M25150","v":"Select"},{"$f":"Import!M25350","v":0},{"$f":"Import!M25550","v":0},{"$f":"Import!M25750","v":0}]
[]
[null,"Total Cash and Cash Equivalents",null,null,{"$f":"SUM(E11:E210)","v":0},{"$f":"SUM(F11:F210)","v":0}]
[]
[null,"(B) BONDS AND DEBENTURES"]
[]
[null,null,"Enter # of Asset Types",{"$f":"Import!M25751","v":0}]
[null,null,null,null,{"$f":"YEAR($C$3)","v":2023},2023,"Weighted"]
[null,"Asset Type","Currency","BSCR Rating","Nominal Amount","Fair Value","Average YTM","Effective Duration","Comments"]
[1,{"$f":"Import!M25752","v":"Select"},{"$f":"Import!M26152","v":"Select"},{"$f":"Import!M26552","v":"Select"},{"$f":"Import!M26952","v":0},{"$f":"Import!M27352","v":0},{"$f":"Import!M27752","v":0},{"$f":"Import!M28152","v":0},{"$f":"Import!M28552","v":0}]
[{"$f":"A219+1","v":2},{"$f":"Import!M25753","v":"Select"},{"$f":"Import!M26153","v":"Select"},{"$f":"Import!M26553","v":"Select"},{"$f":"Import!M26953","v":0},{"$f":"Import!M27353","v":0},{"$f":"Import!M27753","v":0},{"$f":"Import!M28153","v":0},{"$f":"Import!M28553","v":0}]
[{"$f":"A220+1","v":3},{"$f":"Import!M25754","v":"Select"},{"$f":"Import!M26154","v":"Select"},{"$f":"Import!M26554","v":"Select"},{"$f":"Import!M26954","v":0},{"$f":"Import!M27354","v":0},{"$f":"Import!M27754","v":0},{"$f":"Import!M28154","v":0},{"$f":"Import!M28554","v":0}]
[4,{"$f":"Import!M25755","v":"Select"},{"$f":"Import!M26155","v":"Select"},{"$f":"Import!M26555","v":"Select"},{"$f":"Import!M26955","v":0},{"$f":"Import!M27355","v":0},{"$f":"Import!M27755","v":0},{"$f":"Import!M28155","v":0},{"$f":"Import!M28555","v":0}]
[5,{"$f":"Import!M25756","v":"Select"},{"$f":"Import!M26156","v":"Select"},{"$f":"Import!M26556","v":"Select"},{"$f":"Import!M26956","v":0},{"$f":"Import!M27356","v":0},{"$f":"Import!M27756","v":0},{"$f":"Import!M28156","v":0},{"$f":"Import!M28556","v":0}]
[6,{"$f":"Import!M25757","v":"Select"},{"$f":"Import!M26157","v":"Select"},{"$f":"Import!M26557","v":"Select"},{"$f":"Import!M26957","v":0},{"$f":"Import!M27357","v":0},{"$f":"Import!M27757","v":0},{"$f":"Import!M28157","v":0},{"$f":"Import!M28557","v":0}]
[7,{"$f":"Import!M25758","v":"Select"},{"$f":"Import!M26158","v":"Select"},{"$f":"Import!M26558","v":"Select"},{"$f":"Import!M26958","v":0},{"$f":"Import!M27358","v":0},{"$f":"Import!M27758","v":0},{"$f":"Import!M28158","v":0},{"$f":"Import!M28558","v":0}]
[8,{"$f":"Import!M25759","v":"Select"},{"$f":"Import!M26159","v":"Select"},{"$f":"Import!M26559","v":"Select"},{"$f":"Import!M26959","v":0},{"$f":"Import!M27359","v":0},{"$f":"Import!M27759","v":0},{"$f":"Import!M28159","v":0},{"$f":"Import!M28559","v":0}]
[9,{"$f":"Import!M25760","v":"Select"},{"$f":"Import!M26160","v":"Select"},{"$f":"Import!M26560","v":"Select"},{"$f":"Import!M26960","v":0},{"$f":"Import!M27360","v":0},{"$f":"Import!M27760","v":0},{"$f":"Import!M28160","v":0},{"$f":"Import!M28560","v":0}]
[10,{"$f":"Import!M25761","v":"Select"},{"$f":"Import!M26161","v":"Select"},{"$f":"Import!M26561","v":"Select"},{"$f":"Import!M26961","v":0},{"$f":"Import!M27361","v":0},{"$f":"Import!M27761","v":0},{"$f":"Import!M28161","v":0},{"$f":"Import!M28561","v":0}]
[11,{"$f":"Import!M25762","v":"Select"},{"$f":"Import!M26162","v":"Select"},{"$f":"Import!M26562","v":"Select"},{"$f":"Import!M26962","v":0},{"$f":"Import!M27362","v":0},{"$f":"Import!M27762","v":0},{"$f":"Import!M28162","v":0},{"$f":"Import!M28562","v":0}]
[12,{"$f":"Import!M25763","v":"Select"},{"$f":"Import!M26163","v":"Select"},{"$f":"Import!M26563","v":"Select"},{"$f":"Import!M26963","v":0},{"$f":"Import!M27363","v":0},{"$f":"Import!M27763","v":0},{"$f":"Import!M28163","v":0},{"$f":"Import!M28563","v":0}]
[13,{"$f":"Import!M25764","v":"Select"},{"$f":"Import!M26164","v":"Select"},{"$f":"Import!M26564","v":"Select"},{"$f":"Import!M26964","v":0},{"$f":"Import!M27364","v":0},{"$f":"Import!M27764","v":0},{"$f":"Import!M28164","v":0},{"$f":"Import!M28564","v":0}]
[14,{"$f":"Import!M25765","v":"Select"},{"$f":"Import!M26165","v":"Select"},{"$f":"Import!M26565","v":"Select"},{"$f":"Import!M26965","v":0},{"$f":"Import!M27365","v":0},{"$f":"Import!M27765","v":0},{"$f":"Import!M28165","v":0},{"$f":"Import!M28565","v":0}]
[15,{"$f":"Import!M25766","v":"Select"},{"$f":"Import!M26166","v":"Select"},{"$f":"Import!M26566","v":"Select"},{"$f":"Import!M26966","v":0},{"$f":"Import!M27366","v":0},{"$f":"Import!M27766","v":0},{"$f":"Import!M28166","v":0},{"$f":"Import!M28566","v":0}]
[16,{"$f":"Import!M25767","v":"Select"},{"$f":"Import!M26167","v":"Select"},{"$f":"Import!M26567","v":"Select"},{"$f":"Import!M26967","v":0},{"$f":"Import!M27367","v":0},{"$f":"Import!M27767","v":0},{"$f":"Import!M28167","v":0},{"$f":"Import!M28567","v":0}]
[17,{"$f":"Import!M25768","v":"Select"},{"$f":"Import!M26168","v":"Select"},{"$f":"Import!M26568","v":"Select"},{"$f":"Import!M26968","v":0},{"$f":"Import!M27368","v":0},{"$f":"Import!M27768","v":0},{"$f":"Import!M28168","v":0},{"$f":"Import!M28568","v":0}]
[18,{"$f":"Import!M25769","v":"Select"},{"$f":"Import!M26169","v":"Select"},{"$f":"Import!M26569","v":"Select"},{"$f":"Import!M26969","v":0},{"$f":"Import!M27369","v":0},{"$f":"Import!M27769","v":0},{"$f":"Import!M28169","v":0},{"$f":"Import!M28569","v":0}]
[19,{"$f":"Import!M25770","v":"Select"},{"$f":"Import!M26170","v":"Select"},{"$f":"Import!M26570","v":"Select"},{"$f":"Import!M26970","v":0},{"$f":"Import!M27370","v":0},{"$f":"Import!M27770","v":0},{"$f":"Import!M28170","v":0},{"$f":"Import!M28570","v":0}]
[20,{"$f":"Import!M25771","v":"Select"},{"$f":"Import!M26171","v":"Select"},{"$f":"Import!M26571","v":"Select"},{"$f":"Import!M26971","v":0},{"$f":"Import!M27371","v":0},{"$f":"Import!M27771","v":0},{"$f":"Import!M28171","v":0},{"$f":"Import!M28571","v":0}]
[21,{"$f":"Import!M25772","v":"Select"},{"$f":"Import!M26172","v":"Select"},{"$f":"Import!M26572","v":"Select"},{"$f":"Import!M26972","v":0},{"$f":"Import!M27372","v":0},{"$f":"Import!M27772","v":0},{"$f":"Import!M28172","v":0},{"$f":"Import!M28572","v":0}]
[22,{"$f":"Import!M25773","v":"Select"},{"$f":"Import!M26173","v":"Select"},{"$f":"Import!M26573","v":"Select"},{"$f":"Import!M26973","v":0},{"$f":"Import!M27373","v":0},{"$f":"Import!M27773","v":0},{"$f":"Import!M28173","v":0},{"$f":"Import!M28573","v":0}]
[23,{"$f":"Import!M25774","v":"Select"},{"$f":"Import!M26174","v":"Select"},{"$f":"Import!M26574","v":"Select"},{"$f":"Import!M26974","v":0},{"$f":"Import!M27374","v":0},{"$f":"Import!M27774","v":0},{"$f":"Import!M28174","v":0},{"$f":"Import!M28574","v":0}]
[24,{"$f":"Import!M25775","v":"Select"},{"$f":"Import!M26175","v":"Select"},{"$f":"Import!M26575","v":"Select"},{"$f":"Import!M26975","v":0},{"$f":"Import!M27375","v":0},{"$f":"Import!M27775","v":0},{"$f":"Import!M28175","v":0},{"$f":"Import!M28575","v":0}]
[25,{"$f":"Import!M25776","v":"Select"},{"$f":"Import!M26176","v":"Select"},{"$f":"Import!M26576","v":"Select"},{"$f":"Import!M26976","v":0},{"$f":"Import!M27376","v":0},{"$f":"Import!M27776","v":0},{"$f":"Import!M28176","v":0},{"$f":"Import!M28576","v":0}]
[26,{"$f":"Import!M25777","v":"Select"},{"$f":"Import!M26177","v":"Select"},{"$f":"Import!M26577","v":"Select"},{"$f":"Import!M26977","v":0},{"$f":"Import!M27377","v":0},{"$f":"Import!M27777","v":0},{"$f":"Import!M28177","v":0},{"$f":"Import!M28577","v":0}]
[27,{"$f":"Import!M25778","v":"Select"},{"$f":"Import!M26178","v":"Select"},{"$f":"Import!M26578","v":"Select"},{"$f":"Import!M26978","v":0},{"$f":"Import!M27378","v":0},{"$f":"Import!M27778","v":0},{"$f":"Import!M28178","v":0},{"$f":"Import!M28578","v":0}]
[28,{"$f":"Import!M25779","v":"Select"},{"$f":"Import!M26179","v":"Select"},{"$f":"Import!M26579","v":"Select"},{"$f":"Import!M26979","v":0},{"$f":"Import!M27379","v":0},{"$f":"Import!M27779","v":0},{"$f":"Import!M28179","v":0},{"$f":"Import!M28579","v":0}]
[29,{"$f":"Import!M25780","v":"Select"},{"$f":"Import!M26180","v":"Select"},{"$f":"Import!M26580","v":"Select"},{"$f":"Import!M26980","v":0},{"$f":"Import!M27380","v":0},{"$f":"Import!M27780","v":0},{"$f":"Import!M28180","v":0},{"$f":"Import!M28580","v":0}]
[30,{"$f":"Import!M25781","v":"Select"},{"$f":"Import!M26181","v":"Select"},{"$f":"Import!M26581","v":"Select"},{"$f":"Import!M26981","v":0},{"$f":"Import!M27381","v":0},{"$f":"Import!M27781","v":0},{"$f":"Import!M28181","v":0},{"$f":"Import!M28581","v":0}]
[31,{"$f":"Import!M25782","v":"Select"},{"$f":"Import!M26182","v":"Select"},{"$f":"Import!M26582","v":"Select"},{"$f":"Import!M26982","v":0},{"$f":"Import!M27382","v":0},{"$f":"Import!M27782","v":0},{"$f":"Import!M28182","v":0},{"$f":"Import!M28582","v":0}]
[32,{"$f":"Import!M25783","v":"Select"},{"$f":"Import!M26183","v":"Select"},{"$f":"Import!M26583","v":"Select"},{"$f":"Import!M26983","v":0},{"$f":"Import!M27383","v":0},{"$f":"Import!M27783","v":0},{"$f":"Import!M28183","v":0},{"$f":"Import!M28583","v":0}]
[33,{"$f":"Import!M25784","v":"Select"},{"$f":"Import!M26184","v":"Select"},{"$f":"Import!M26584","v":"Select"},{"$f":"Import!M26984","v":0},{"$f":"Import!M27384","v":0},{"$f":"Import!M27784","v":0},{"$f":"Import!M28184","v":0},{"$f":"Import!M28584","v":0}]
[34,{"$f":"Import!M25785","v":"Select"},{"$f":"Import!M26185","v":"Select"},{"$f":"Import!M26585","v":"Select"},{"$f":"Import!M26985","v":0},{"$f":"Import!M27385","v":0},{"$f":"Import!M27785","v":0},{"$f":"Import!M28185","v":0},{"$f":"Import!M28585","v":0}]
[35,{"$f":"Import!M25786","v":"Select"},{"$f":"Import!M26186","v":"Select"},{"$f":"Import!M26586","v":"Select"},{"$f":"Import!M26986","v":0},{"$f":"Import!M27386","v":0},{"$f":"Import!M27786","v":0},{"$f":"Import!M28186","v":0},{"$f":"Import!M28586","v":0}]
[36,{"$f":"Import!M25787","v":"Select"},{"$f":"Import!M26187","v":"Select"},{"$f":"Import!M26587","v":"Select"},{"$f":"Import!M26987","v":0},{"$f":"Import!M27387","v":0},{"$f":"Import!M27787","v":0},{"$f":"Import!M28187","v":0},{"$f":"Import!M28587","v":0}]
[37,{"$f":"Import!M25788","v":"Select"},{"$f":"Import!M26188","v":"Select"},{"$f":"Import!M26588","v":"Select"},{"$f":"Import!M26988","v":0},{"$f":"Import!M27388","v":0},{"$f":"Import!M27788","v":0},{"$f":"Import!M28188","v":0},{"$f":"Import!M28588","v":0}]
[38,{"$f":"Import!M25789","v":"Select"},{"$f":"Import!M26189","v":"Select"},{"$f":"Import!M26589","v":"Select"},{"$f":"Import!M26989","v":0},{"$f":"Import!M27389","v":0},{"$f":"Import!M27789","v":0},{"$f":"Import!M28189","v":0},{"$f":"Import!M28589","v":0}]
[39,{"$f":"Import!M25790","v":"Select"},{"$f":"Import!M26190","v":"Select"},{"$f":"Import!M26590","v":"Select"},{"$f":"Import!M26990","v":0},{"$f":"Import!M27390","v":0},{"$f":"Import!M27790","v":0},{"$f":"Import!M28190","v":0},{"$f":"Import!M28590","v":0}]
[40,{"$f":"Import!M25791","v":"Select"},{"$f":"Import!M26191","v":"Select"},{"$f":"Import!M26591","v":"Select"},{"$f":"Import!M26991","v":0},{"$f":"Import!M27391","v":0},{"$f":"Import!M27791","v":0},{"$f":"Import!M28191","v":0},{"$f":"Import!M28591","v":0}]
[41,{"$f":"Import!M25792","v":"Select"},{"$f":"Import!M26192","v":"Select"},{"$f":"Import!M26592","v":"Select"},{"$f":"Import!M26992","v":0},{"$f":"Import!M27392","v":0},{"$f":"Import!M27792","v":0},{"$f":"Import!M28192","v":0},{"$f":"Import!M28592","v":0}]
[42,{"$f":"Import!M25793","v":"Select"},{"$f":"Import!M26193","v":"Select"},{"$f":"Import!M26593","v":"Select"},{"$f":"Import!M26993","v":0},{"$f":"Import!M27393","v":0},{"$f":"Import!M27793","v":0},{"$f":"Import!M28193","v":0},{"$f":"Import!M28593","v":0}]
[43,{"$f":"Import!M25794","v":"Select"},{"$f":"Import!M26194","v":"Select"},{"$f":"Import!M26594","v":"Select"},{"$f":"Import!M26994","v":0},{"$f":"Import!M27394","v":0},{"$f":"Import!M27794","v":0},{"$f":"Import!M28194","v":0},{"$f":"Import!M28594","v":0}]
[44,{"$f":"Import!M25795","v":"Select"},{"$f":"Import!M26195","v":"Select"},{"$f":"Import!M26595","v":"Select"},{"$f":"Import!M26995","v":0},{"$f":"Import!M27395","v":0},{"$f":"Import!M27795","v":0},{"$f":"Import!M28195","v":0},{"$f":"Import!M28595","v":0}]
[45,{"$f":"Import!M25796","v":"Select"},{"$f":"Import!M26196","v":"Select"},{"$f":"Import!M26596","v":"Select"},{"$f":"Import!M26996","v":0},{"$f":"Import!M27396","v":0},{"$f":"Import!M27796","v":0},{"$f":"Import!M28196","v":0},{"$f":"Import!M28596","v":0}]
[46,{"$f":"Import!M25797","v":"Select"},{"$f":"Import!M26197","v":"Select"},{"$f":"Import!M26597","v":"Select"},{"$f":"Import!M26997","v":0},{"$f":"Import!M27397","v":0},{"$f":"Import!M27797","v":0},{"$f":"Import!M28197","v":0},{"$f":"Import!M28597","v":0}]
[47,{"$f":"Import!M25798","v":"Select"},{"$f":"Import!M26198","v":"Select"},{"$f":"Import!M26598","v":"Select"},{"$f":"Import!M26998","v":0},{"$f":"Import!M27398","v":0},{"$f":"Import!M27798","v":0},{"$f":"Import!M28198","v":0},{"$f":"Import!M28598","v":0}]
[48,{"$f":"Import!M25799","v":"Select"},{"$f":"Import!M26199","v":"Select"},{"$f":"Import!M26599","v":"Select"},{"$f":"Import!M26999","v":0},{"$f":"Import!M27399","v":0},{"$f":"Import!M27799","v":0},{"$f":"Import!M28199","v":0},{"$f":"Import!M28599","v":0}]
[49,{"$f":"Import!M25800","v":"Select"},{"$f":"Import!M26200","v":"Select"},{"$f":"Import!M26600","v":"Select"},{"$f":"Import!M27000","v":0},{"$f":"Import!M27400","v":0},{"$f":"Import!M27800","v":0},{"$f":"Import!M28200","v":0},{"$f":"Import!M28600","v":0}]
[50,{"$f":"Import!M25801","v":"Select"},{"$f":"Import!M26201","v":"Select"},{"$f":"Import!M26601","v":"Select"},{"$f":"Import!M27001","v":0},{"$f":"Import!M27401","v":0},{"$f":"Import!M27801","v":0},{"$f":"Import!M28201","v":0},{"$f":"Import!M28601","v":0}]
[51,{"$f":"Import!M25802","v":"Select"},{"$f":"Import!M26202","v":"Select"},{"$f":"Import!M26602","v":"Select"},{"$f":"Import!M27002","v":0},{"$f":"Import!M27402","v":0},{"$f":"Import!M27802","v":0},{"$f":"Import!M28202","v":0},{"$f":"Import!M28602","v":0}]
[52,{"$f":"Import!M25803","v":"Select"},{"$f":"Import!M26203","v":"Select"},{"$f":"Import!M26603","v":"Select"},{"$f":"Import!M27003","v":0},{"$f":"Import!M27403","v":0},{"$f":"Import!M27803","v":0},{"$f":"Import!M28203","v":0},{"$f":"Import!M28603","v":0}]
[53,{"$f":"Import!M25804","v":"Select"},{"$f":"Import!M26204","v":"Select"},{"$f":"Import!M26604","v":"Select"},{"$f":"Import!M27004","v":0},{"$f":"Import!M27404","v":0},{"$f":"Import!M27804","v":0},{"$f":"Import!M28204","v":0},{"$f":"Import!M28604","v":0}]
[54,{"$f":"Import!M25805","v":"Select"},{"$f":"Import!M26205","v":"Select"},{"$f":"Import!M26605","v":"Select"},{"$f":"Import!M27005","v":0},{"$f":"Import!M27405","v":0},{"$f":"Import!M27805","v":0},{"$f":"Import!M28205","v":0},{"$f":"Import!M28605","v":0}]
[55,{"$f":"Import!M25806","v":"Select"},{"$f":"Import!M26206","v":"Select"},{"$f":"Import!M26606","v":"Select"},{"$f":"Import!M27006","v":0},{"$f":"Import!M27406","v":0},{"$f":"Import!M27806","v":0},{"$f":"Import!M28206","v":0},{"$f":"Import!M28606","v":0}]
[56,{"$f":"Import!M25807","v":"Select"},{"$f":"Import!M26207","v":"Select"},{"$f":"Import!M26607","v":"Select"},{"$f":"Import!M27007","v":0},{"$f":"Import!M27407","v":0},{"$f":"Import!M27807","v":0},{"$f":"Import!M28207","v":0},{"$f":"Import!M28607","v":0}]
[57,{"$f":"Import!M25808","v":"Select"},{"$f":"Import!M26208","v":"Select"},{"$f":"Import!M26608","v":"Select"},{"$f":"Import!M27008","v":0},{"$f":"Import!M27408","v":0},{"$f":"Import!M27808","v":0},{"$f":"Import!M28208","v":0},{"$f":"Import!M28608","v":0}]
[58,{"$f":"Import!M25809","v":"Select"},{"$f":"Import!M26209","v":"Select"},{"$f":"Import!M26609","v":"Select"},{"$f":"Import!M27009","v":0},{"$f":"Import!M27409","v":0},{"$f":"Import!M27809","v":0},{"$f":"Import!M28209","v":0},{"$f":"Import!M28609","v":0}]
[59,{"$f":"Import!M25810","v":"Select"},{"$f":"Import!M26210","v":"Select"},{"$f":"Import!M26610","v":"Select"},{"$f":"Import!M27010","v":0},{"$f":"Import!M27410","v":0},{"$f":"Import!M27810","v":0},{"$f":"Import!M28210","v":0},{"$f":"Import!M28610","v":0}]
[60,{"$f":"Import!M25811","v":"Select"},{"$f":"Import!M26211","v":"Select"},{"$f":"Import!M26611","v":"Select"},{"$f":"Import!M27011","v":0},{"$f":"Import!M27411","v":0},{"$f":"Import!M27811","v":0},{"$f":"Import!M28211","v":0},{"$f":"Import!M28611","v":0}]
[61,{"$f":"Import!M25812","v":"Select"},{"$f":"Import!M26212","v":"Select"},{"$f":"Import!M26612","v":"Select"},{"$f":"Import!M27012","v":0},{"$f":"Import!M27412","v":0},{"$f":"Import!M27812","v":0},{"$f":"Import!M28212","v":0},{"$f":"Import!M28612","v":0}]
[62,{"$f":"Import!M25813","v":"Select"},{"$f":"Import!M26213","v":"Select"},{"$f":"Import!M26613","v":"Select"},{"$f":"Import!M27013","v":0},{"$f":"Import!M27413","v":0},{"$f":"Import!M27813","v":0},{"$f":"Import!M28213","v":0},{"$f":"Import!M28613","v":0}]
[63,{"$f":"Import!M25814","v":"Select"},{"$f":"Import!M26214","v":"Select"},{"$f":"Import!M26614","v":"Select"},{"$f":"Import!M27014","v":0},{"$f":"Import!M27414","v":0},{"$f":"Import!M27814","v":0},{"$f":"Import!M28214","v":0},{"$f":"Import!M28614","v":0}]
[64,{"$f":"Import!M25815","v":"Select"},{"$f":"Import!M26215","v":"Select"},{"$f":"Import!M26615","v":"Select"},{"$f":"Import!M27015","v":0},{"$f":"Import!M27415","v":0},{"$f":"Import!M27815","v":0},{"$f":"Import!M28215","v":0},{"$f":"Import!M28615","v":0}]
[65,{"$f":"Import!M25816","v":"Select"},{"$f":"Import!M26216","v":"Select"},{"$f":"Import!M26616","v":"Select"},{"$f":"Import!M27016","v":0},{"$f":"Import!M27416","v":0},{"$f":"Import!M27816","v":0},{"$f":"Import!M28216","v":0},{"$f":"Import!M28616","v":0}]
[66,{"$f":"Import!M25817","v":"Select"},{"$f":"Import!M26217","v":"Select"},{"$f":"Import!M26617","v":"Select"},{"$f":"Import!M27017","v":0},{"$f":"Import!M27417","v":0},{"$f":"Import!M27817","v":0},{"$f":"Import!M28217","v":0},{"$f":"Import!M28617","v":0}]
[{"$f":"A284+1","v":67},{"$f":"Import!M25818","v":"Select"},{"$f":"Import!M26218","v":"Select"},{"$f":"Import!M26618","v":"Select"},{"$f":"Import!M27018","v":0},{"$f":"Import!M27418","v":0},{"$f":"Import!M27818","v":0},{"$f":"Import!M28218","v":0},{"$f":"Import!M28618","v":0}]
[68,{"$f":"Import!M25819","v":"Select"},{"$f":"Import!M26219","v":"Select"},{"$f":"Import!M26619","v":"Select"},{"$f":"Import!M27019","v":0},{"$f":"Import!M27419","v":0},{"$f":"Import!M27819","v":0},{"$f":"Import!M28219","v":0},{"$f":"Import!M28619","v":0}]
[69,{"$f":"Import!M25820","v":"Select"},{"$f":"Import!M26220","v":"Select"},{"$f":"Import!M26620","v":"Select"},{"$f":"Import!M27020","v":0},{"$f":"Import!M27420","v":0},{"$f":"Import!M27820","v":0},{"$f":"Import!M28220","v":0},{"$f":"Import!M28620","v":0}]
[70,{"$f":"Import!M25821","v":"Select"},{"$f":"Import!M26221","v":"Select"},{"$f":"Import!M26621","v":"Select"},{"$f":"Import!M27021","v":0},{"$f":"Import!M27421","v":0},{"$f":"Import!M27821","v":0},{"$f":"Import!M28221","v":0},{"$f":"Import!M28621","v":0}]
[71,{"$f":"Import!M25822","v":"Select"},{"$f":"Import!M26222","v":"Select"},{"$f":"Import!M26622","v":"Select"},{"$f":"Import!M27022","v":0},{"$f":"Import!M27422","v":0},{"$f":"Import!M27822","v":0},{"$f":"Import!M28222","v":0},{"$f":"Import!M28622","v":0}]
[72,{"$f":"Import!M25823","v":"Select"},{"$f":"Import!M26223","v":"Select"},{"$f":"Import!M26623","v":"Select"},{"$f":"Import!M27023","v":0},{"$f":"Import!M27423","v":0},{"$f":"Import!M27823","v":0},{"$f":"Import!M28223","v":0},{"$f":"Import!M28623","v":0}]
[73,{"$f":"Import!M25824","v":"Select"},{"$f":"Import!M26224","v":"Select"},{"$f":"Import!M26624","v":"Select"},{"$f":"Import!M27024","v":0},{"$f":"Import!M27424","v":0},{"$f":"Import!M27824","v":0},{"$f":"Import!M28224","v":0},{"$f":"Import!M28624","v":0}]
[74,{"$f":"Import!M25825","v":"Select"},{"$f":"Import!M26225","v":"Select"},{"$f":"Import!M26625","v":"Select"},{"$f":"Import!M27025","v":0},{"$f":"Import!M27425","v":0},{"$f":"Import!M27825","v":0},{"$f":"Import!M28225","v":0},{"$f":"Import!M28625","v":0}]
[75,{"$f":"Import!M25826","v":"Select"},{"$f":"Import!M26226","v":"Select"},{"$f":"Import!M26626","v":"Select"},{"$f":"Import!M27026","v":0},{"$f":"Import!M27426","v":0},{"$f":"Import!M27826","v":0},{"$f":"Import!M28226","v":0},{"$f":"Import!M28626","v":0}]
[76,{"$f":"Import!M25827","v":"Select"},{"$f":"Import!M26227","v":"Select"},{"$f":"Import!M26627","v":"Select"},{"$f":"Import!M27027","v":0},{"$f":"Import!M27427","v":0},{"$f":"Import!M27827","v":0},{"$f":"Import!M28227","v":0},{"$f":"Import!M28627","v":0}]
[77,{"$f":"Import!M25828","v":"Select"},{"$f":"Import!M26228","v":"Select"},{"$f":"Import!M26628","v":"Select"},{"$f":"Import!M27028","v":0},{"$f":"Import!M27428","v":0},{"$f":"Import!M27828","v":0},{"$f":"Import!M28228","v":0},{"$f":"Import!M28628","v":0}]
[78,{"$f":"Import!M25829","v":"Select"},{"$f":"Import!M26229","v":"Select"},{"$f":"Import!M26629","v":"Select"},{"$f":"Import!M27029","v":0},{"$f":"Import!M27429","v":0},{"$f":"Import!M27829","v":0},{"$f":"Import!M28229","v":0},{"$f":"Import!M28629","v":0}]
[79,{"$f":"Import!M25830","v":"Select"},{"$f":"Import!M26230","v":"Select"},{"$f":"Import!M26630","v":"Select"},{"$f":"Import!M27030","v":0},{"$f":"Import!M27430","v":0},{"$f":"Import!M27830","v":0},{"$f":"Import!M28230","v":0},{"$f":"Import!M28630","v":0}]
[80,{"$f":"Import!M25831","v":"Select"},{"$f":"Import!M26231","v":"Select"},{"$f":"Import!M26631","v":"Select"},{"$f":"Import!M27031","v":0},{"$f":"Import!M27431","v":0},{"$f":"Import!M27831","v":0},{"$f":"Import!M28231","v":0},{"$f":"Import!M28631","v":0}]
[81,{"$f":"Import!M25832","v":"Select"},{"$f":"Import!M26232","v":"Select"},{"$f":"Import!M26632","v":"Select"},{"$f":"Import!M27032","v":0},{"$f":"Import!M27432","v":0},{"$f":"Import!M27832","v":0},{"$f":"Import!M28232","v":0},{"$f":"Import!M28632","v":0}]
[82,{"$f":"Import!M25833","v":"Select"},{"$f":"Import!M26233","v":"Select"},{"$f":"Import!M26633","v":"Select"},{"$f":"Import!M27033","v":0},{"$f":"Import!M27433","v":0},{"$f":"Import!M27833","v":0},{"$f":"Import!M28233","v":0},{"$f":"Import!M28633","v":0}]
[83,{"$f":"Import!M25834","v":"Select"},{"$f":"Import!M26234","v":"Select"},{"$f":"Import!M26634","v":"Select"},{"$f":"Import!M27034","v":0},{"$f":"Import!M27434","v":0},{"$f":"Import!M27834","v":0},{"$f":"Import!M28234","v":0},{"$f":"Import!M28634","v":0}]
[84,{"$f":"Import!M25835","v":"Select"},{"$f":"Import!M26235","v":"Select"},{"$f":"Import!M26635","v":"Select"},{"$f":"Import!M27035","v":0},{"$f":"Import!M27435","v":0},{"$f":"Import!M27835","v":0},{"$f":"Import!M28235","v":0},{"$f":"Import!M28635","v":0}]
[85,{"$f":"Import!M25836","v":"Select"},{"$f":"Import!M26236","v":"Select"},{"$f":"Import!M26636","v":"Select"},{"$f":"Import!M27036","v":0},{"$f":"Import!M27436","v":0},{"$f":"Import!M27836","v":0},{"$f":"Import!M28236","v":0},{"$f":"Import!M28636","v":0}]
[86,{"$f":"Import!M25837","v":"Select"},{"$f":"Import!M26237","v":"Select"},{"$f":"Import!M26637","v":"Select"},{"$f":"Import!M27037","v":0},{"$f":"Import!M27437","v":0},{"$f":"Import!M27837","v":0},{"$f":"Import!M28237","v":0},{"$f":"Import!M28637","v":0}]
[87,{"$f":"Import!M25838","v":"Select"},{"$f":"Import!M26238","v":"Select"},{"$f":"Import!M26638","v":"Select"},{"$f":"Import!M27038","v":0},{"$f":"Import!M27438","v":0},{"$f":"Import!M27838","v":0},{"$f":"Import!M28238","v":0},{"$f":"Import!M28638","v":0}]
[88,{"$f":"Import!M25839","v":"Select"},{"$f":"Import!M26239","v":"Select"},{"$f":"Import!M26639","v":"Select"},{"$f":"Import!M27039","v":0},{"$f":"Import!M27439","v":0},{"$f":"Import!M27839","v":0},{"$f":"Import!M28239","v":0},{"$f":"Import!M28639","v":0}]
[89,{"$f":"Import!M25840","v":"Select"},{"$f":"Import!M26240","v":"Select"},{"$f":"Import!M26640","v":"Select"},{"$f":"Import!M27040","v":0},{"$f":"Import!M27440","v":0},{"$f":"Import!M27840","v":0},{"$f":"Import!M28240","v":0},{"$f":"Import!M28640","v":0}]
[90,{"$f":"Import!M25841","v":"Select"},{"$f":"Import!M26241","v":"Select"},{"$f":"Import!M26641","v":"Select"},{"$f":"Import!M27041","v":0},{"$f":"Import!M27441","v":0},{"$f":"Import!M27841","v":0},{"$f":"Import!M28241","v":0},{"$f":"Import!M28641","v":0}]
[91,{"$f":"Import!M25842","v":"Select"},{"$f":"Import!M26242","v":"Select"},{"$f":"Import!M26642","v":"Select"},{"$f":"Import!M27042","v":0},{"$f":"Import!M27442","v":0},{"$f":"Import!M27842","v":0},{"$f":"Import!M28242","v":0},{"$f":"Import!M28642","v":0}]
[92,{"$f":"Import!M25843","v":"Select"},{"$f":"Import!M26243","v":"Select"},{"$f":"Import!M26643","v":"Select"},{"$f":"Import!M27043","v":0},{"$f":"Import!M27443","v":0},{"$f":"Import!M27843","v":0},{"$f":"Import!M28243","v":0},{"$f":"Import!M28643","v":0}]
[93,{"$f":"Import!M25844","v":"Select"},{"$f":"Import!M26244","v":"Select"},{"$f":"Import!M26644","v":"Select"},{"$f":"Import!M27044","v":0},{"$f":"Import!M27444","v":0},{"$f":"Import!M27844","v":0},{"$f":"Import!M28244","v":0},{"$f":"Import!M28644","v":0}]
[94,{"$f":"Import!M25845","v":"Select"},{"$f":"Import!M26245","v":"Select"},{"$f":"Import!M26645","v":"Select"},{"$f":"Import!M27045","v":0},{"$f":"Import!M27445","v":0},{"$f":"Import!M27845","v":0},{"$f":"Import!M28245","v":0},{"$f":"Import!M28645","v":0}]
[95,{"$f":"Import!M25846","v":"Select"},{"$f":"Import!M26246","v":"Select"},{"$f":"Import!M26646","v":"Select"},{"$f":"Import!M27046","v":0},{"$f":"Import!M27446","v":0},{"$f":"Import!M27846","v":0},{"$f":"Import!M28246","v":0},{"$f":"Import!M28646","v":0}]
[96,{"$f":"Import!M25847","v":"Select"},{"$f":"Import!M26247","v":"Select"},{"$f":"Import!M26647","v":"Select"},{"$f":"Import!M27047","v":0},{"$f":"Import!M27447","v":0},{"$f":"Import!M27847","v":0},{"$f":"Import!M28247","v":0},{"$f":"Import!M28647","v":0}]
[97,{"$f":"Import!M25848","v":"Select"},{"$f":"Import!M26248","v":"Select"},{"$f":"Import!M26648","v":"Select"},{"$f":"Import!M27048","v":0},{"$f":"Import!M27448","v":0},{"$f":"Import!M27848","v":0},{"$f":"Import!M28248","v":0},{"$f":"Import!M28648","v":0}]
[98,{"$f":"Import!M25849","v":"Select"},{"$f":"Import!M26249","v":"Select"},{"$f":"Import!M26649","v":"Select"},{"$f":"Import!M27049","v":0},{"$f":"Import!M27449","v":0},{"$f":"Import!M27849","v":0},{"$f":"Import!M28249","v":0},{"$f":"Import!M28649","v":0}]
[99,{"$f":"Import!M25850","v":"Select"},{"$f":"Import!M26250","v":"Select"},{"$f":"Import!M26650","v":"Select"},{"$f":"Import!M27050","v":0},{"$f":"Import!M27450","v":0},{"$f":"Import!M27850","v":0},{"$f":"Import!M28250","v":0},{"$f":"Import!M28650","v":0}]
[100,{"$f":"Import!M25851","v":"Select"},{"$f":"Import!M26251","v":"Select"},{"$f":"Import!M26651","v":"Select"},{"$f":"Import!M27051","v":0},{"$f":"Import!M27451","v":0},{"$f":"Import!M27851","v":0},{"$f":"Import!M28251","v":0},{"$f":"Import!M28651","v":0}]
[101,{"$f":"Import!M25852","v":"Select"},{"$f":"Import!M26252","v":"Select"},{"$f":"Import!M26652","v":"Select"},{"$f":"Import!M27052","v":0},{"$f":"Import!M27452","v":0},{"$f":"Import!M27852","v":0},{"$f":"Import!M28252","v":0},{"$f":"Import!M28652","v":0}]
[102,{"$f":"Import!M25853","v":"Select"},{"$f":"Import!M26253","v":"Select"},{"$f":"Import!M26653","v":"Select"},{"$f":"Import!M27053","v":0},{"$f":"Import!M27453","v":0},{"$f":"Import!M27853","v":0},{"$f":"Import!M28253","v":0},{"$f":"Import!M28653","v":0}]
[103,{"$f":"Import!M25854","v":"Select"},{"$f":"Import!M26254","v":"Select"},{"$f":"Import!M26654","v":"Select"},{"$f":"Import!M27054","v":0},{"$f":"Import!M27454","v":0},{"$f":"Import!M27854","v":0},{"$f":"Import!M28254","v":0},{"$f":"Import!M28654","v":0}]
[104,{"$f":"Import!M25855","v":"Select"},{"$f":"Import!M26255","v":"Select"},{"$f":"Import!M26655","v":"Select"},{"$f":"Import!M27055","v":0},{"$f":"Import!M27455","v":0},{"$f":"Import!M27855","v":0},{"$f":"Import!M28255","v":0},{"$f":"Import!M28655","v":0}]
[105,{"$f":"Import!M25856","v":"Select"},{"$f":"Import!M26256","v":"Select"},{"$f":"Import!M26656","v":"Select"},{"$f":"Import!M27056","v":0},{"$f":"Import!M27456","v":0},{"$f":"Import!M27856","v":0},{"$f":"Import!M28256","v":0},{"$f":"Import!M28656","v":0}]
[106,{"$f":"Import!M25857","v":"Select"},{"$f":"Import!M26257","v":"Select"},{"$f":"Import!M26657","v":"Select"},{"$f":"Import!M27057","v":0},{"$f":"Import!M27457","v":0},{"$f":"Import!M27857","v":0},{"$f":"Import!M28257","v":0},{"$f":"Import!M28657","v":0}]
[107,{"$f":"Import!M25858","v":"Select"},{"$f":"Import!M26258","v":"Select"},{"$f":"Import!M26658","v":"Select"},{"$f":"Import!M27058","v":0},{"$f":"Import!M27458","v":0},{"$f":"Import!M27858","v":0},{"$f":"Import!M28258","v":0},{"$f":"Import!M28658","v":0}]
[108,{"$f":"Import!M25859","v":"Select"},{"$f":"Import!M26259","v":"Select"},{"$f":"Import!M26659","v":"Select"},{"$f":"Import!M27059","v":0},{"$f":"Import!M27459","v":0},{"$f":"Import!M27859","v":0},{"$f":"Import!M28259","v":0},{"$f":"Import!M28659","v":0}]
[109,{"$f":"Import!M25860","v":"Select"},{"$f":"Import!M26260","v":"Select"},{"$f":"Import!M26660","v":"Select"},{"$f":"Import!M27060","v":0},{"$f":"Import!M27460","v":0},{"$f":"Import!M27860","v":0},{"$f":"Import!M28260","v":0},{"$f":"Import!M28660","v":0}]
[110,{"$f":"Import!M25861","v":"Select"},{"$f":"Import!M26261","v":"Select"},{"$f":"Import!M26661","v":"Select"},{"$f":"Import!M27061","v":0},{"$f":"Import!M27461","v":0},{"$f":"Import!M27861","v":0},{"$f":"Import!M28261","v":0},{"$f":"Import!M28661","v":0}]
[111,{"$f":"Import!M25862","v":"Select"},{"$f":"Import!M26262","v":"Select"},{"$f":"Import!M26662","v":"Select"},{"$f":"Import!M27062","v":0},{"$f":"Import!M27462","v":0},{"$f":"Import!M27862","v":0},{"$f":"Import!M28262","v":0},{"$f":"Import!M28662","v":0}]
[112,{"$f":"Import!M25863","v":"Select"},{"$f":"Import!M26263","v":"Select"},{"$f":"Import!M26663","v":"Select"},{"$f":"Import!M27063","v":0},{"$f":"Import!M27463","v":0},{"$f":"Import!M27863","v":0},{"$f":"Import!M28263","v":0},{"$f":"Import!M28663","v":0}]
[113,{"$f":"Import!M25864","v":"Select"},{"$f":"Import!M26264","v":"Select"},{"$f":"Import!M26664","v":"Select"},{"$f":"Import!M27064","v":0},{"$f":"Import!M27464","v":0},{"$f":"Import!M27864","v":0},{"$f":"Import!M28264","v":0},{"$f":"Import!M28664","v":0}]
[114,{"$f":"Import!M25865","v":"Select"},{"$f":"Import!M26265","v":"Select"},{"$f":"Import!M26665","v":"Select"},{"$f":"Import!M27065","v":0},{"$f":"Import!M27465","v":0},{"$f":"Import!M27865","v":0},{"$f":"Import!M28265","v":0},{"$f":"Import!M28665","v":0}]
[115,{"$f":"Import!M25866","v":"Select"},{"$f":"Import!M26266","v":"Select"},{"$f":"Import!M26666","v":"Select"},{"$f":"Import!M27066","v":0},{"$f":"Import!M27466","v":0},{"$f":"Import!M27866","v":0},{"$f":"Import!M28266","v":0},{"$f":"Import!M28666","v":0}]
[116,{"$f":"Import!M25867","v":"Select"},{"$f":"Import!M26267","v":"Select"},{"$f":"Import!M26667","v":"Select"},{"$f":"Import!M27067","v":0},{"$f":"Import!M27467","v":0},{"$f":"Import!M27867","v":0},{"$f":"Import!M28267","v":0},{"$f":"Import!M28667","v":0}]
[117,{"$f":"Import!M25868","v":"Select"},{"$f":"Import!M26268","v":"Select"},{"$f":"Import!M26668","v":"Select"},{"$f":"Import!M27068","v":0},{"$f":"Import!M27468","v":0},{"$f":"Import!M27868","v":0},{"$f":"Import!M28268","v":0},{"$f":"Import!M28668","v":0}]
[118,{"$f":"Import!M25869","v":"Select"},{"$f":"Import!M26269","v":"Select"},{"$f":"Import!M26669","v":"Select"},{"$f":"Import!M27069","v":0},{"$f":"Import!M27469","v":0},{"$f":"Import!M27869","v":0},{"$f":"Import!M28269","v":0},{"$f":"Import!M28669","v":0}]
[119,{"$f":"Import!M25870","v":"Select"},{"$f":"Import!M26270","v":"Select"},{"$f":"Import!M26670","v":"Select"},{"$f":"Import!M27070","v":0},{"$f":"Import!M27470","v":0},{"$f":"Import!M27870","v":0},{"$f":"Import!M28270","v":0},{"$f":"Import!M28670","v":0}]
[120,{"$f":"Import!M25871","v":"Select"},{"$f":"Import!M26271","v":"Select"},{"$f":"Import!M26671","v":"Select"},{"$f":"Import!M27071","v":0},{"$f":"Import!M27471","v":0},{"$f":"Import!M27871","v":0},{"$f":"Import!M28271","v":0},{"$f":"Import!M28671","v":0}]
[121,{"$f":"Import!M25872","v":"Select"},{"$f":"Import!M26272","v":"Select"},{"$f":"Import!M26672","v":"Select"},{"$f":"Import!M27072","v":0},{"$f":"Import!M27472","v":0},{"$f":"Import!M27872","v":0},{"$f":"Import!M28272","v":0},{"$f":"Import!M28672","v":0}]
[122,{"$f":"Import!M25873","v":"Select"},{"$f":"Import!M26273","v":"Select"},{"$f":"Import!M26673","v":"Select"},{"$f":"Import!M27073","v":0},{"$f":"Import!M27473","v":0},{"$f":"Import!M27873","v":0},{"$f":"Import!M28273","v":0},{"$f":"Import!M28673","v":0}]
[123,{"$f":"Import!M25874","v":"Select"},{"$f":"Import!M26274","v":"Select"},{"$f":"Import!M26674","v":"Select"},{"$f":"Import!M27074","v":0},{"$f":"Import!M27474","v":0},{"$f":"Import!M27874","v":0},{"$f":"Import!M28274","v":0},{"$f":"Import!M28674","v":0}]
[124,{"$f":"Import!M25875","v":"Select"},{"$f":"Import!M26275","v":"Select"},{"$f":"Import!M26675","v":"Select"},{"$f":"Import!M27075","v":0},{"$f":"Import!M27475","v":0},{"$f":"Import!M27875","v":0},{"$f":"Import!M28275","v":0},{"$f":"Import!M28675","v":0}]
[125,{"$f":"Import!M25876","v":"Select"},{"$f":"Import!M26276","v":"Select"},{"$f":"Import!M26676","v":"Select"},{"$f":"Import!M27076","v":0},{"$f":"Import!M27476","v":0},{"$f":"Import!M27876","v":0},{"$f":"Import!M28276","v":0},{"$f":"Import!M28676","v":0}]
[126,{"$f":"Import!M25877","v":"Select"},{"$f":"Import!M26277","v":"Select"},{"$f":"Import!M26677","v":"Select"},{"$f":"Import!M27077","v":0},{"$f":"Import!M27477","v":0},{"$f":"Import!M27877","v":0},{"$f":"Import!M28277","v":0},{"$f":"Import!M28677","v":0}]
[127,{"$f":"Import!M25878","v":"Select"},{"$f":"Import!M26278","v":"Select"},{"$f":"Import!M26678","v":"Select"},{"$f":"Import!M27078","v":0},{"$f":"Import!M27478","v":0},{"$f":"Import!M27878","v":0},{"$f":"Import!M28278","v":0},{"$f":"Import!M28678","v":0}]
[128,{"$f":"Import!M25879","v":"Select"},{"$f":"Import!M26279","v":"Select"},{"$f":"Import!M26679","v":"Select"},{"$f":"Import!M27079","v":0},{"$f":"Import!M27479","v":0},{"$f":"Import!M27879","v":0},{"$f":"Import!M28279","v":0},{"$f":"Import!M28679","v":0}]
[129,{"$f":"Import!M25880","v":"Select"},{"$f":"Import!M26280","v":"Select"},{"$f":"Import!M26680","v":"Select"},{"$f":"Import!M27080","v":0},{"$f":"Import!M27480","v":0},{"$f":"Import!M27880","v":0},{"$f":"Import!M28280","v":0},{"$f":"Import!M28680","v":0}]
[130,{"$f":"Import!M25881","v":"Select"},{"$f":"Import!M26281","v":"Select"},{"$f":"Import!M26681","v":"Select"},{"$f":"Import!M27081","v":0},{"$f":"Import!M27481","v":0},{"$f":"Import!M27881","v":0},{"$f":"Import!M28281","v":0},{"$f":"Import!M28681","v":0}]
[{"$f":"A348+1","v":131},{"$f":"Import!M25882","v":"Select"},{"$f":"Import!M26282","v":"Select"},{"$f":"Import!M26682","v":"Select"},{"$f":"Import!M27082","v":0},{"$f":"Import!M27482","v":0},{"$f":"Import!M27882","v":0},{"$f":"Import!M28282","v":0},{"$f":"Import!M28682","v":0}]
[132,{"$f":"Import!M25883","v":"Select"},{"$f":"Import!M26283","v":"Select"},{"$f":"Import!M26683","v":"Select"},{"$f":"Import!M27083","v":0},{"$f":"Import!M27483","v":0},{"$f":"Import!M27883","v":0},{"$f":"Import!M28283","v":0},{"$f":"Import!M28683","v":0}]
[133,{"$f":"Import!M25884","v":"Select"},{"$f":"Import!M26284","v":"Select"},{"$f":"Import!M26684","v":"Select"},{"$f":"Import!M27084","v":0},{"$f":"Import!M27484","v":0},{"$f":"Import!M27884","v":0},{"$f":"Import!M28284","v":0},{"$f":"Import!M28684","v":0}]
[134,{"$f":"Import!M25885","v":"Select"},{"$f":"Import!M26285","v":"Select"},{"$f":"Import!M26685","v":"Select"},{"$f":"Import!M27085","v":0},{"$f":"Import!M27485","v":0},{"$f":"Import!M27885","v":0},{"$f":"Import!M28285","v":0},{"$f":"Import!M28685","v":0}]
[135,{"$f":"Import!M25886","v":"Select"},{"$f":"Import!M26286","v":"Select"},{"$f":"Import!M26686","v":"Select"},{"$f":"Import!M27086","v":0},{"$f":"Import!M27486","v":0},{"$f":"Import!M27886","v":0},{"$f":"Import!M28286","v":0},{"$f":"Import!M28686","v":0}]
[136,{"$f":"Import!M25887","v":"Select"},{"$f":"Import!M26287","v":"Select"},{"$f":"Import!M26687","v":"Select"},{"$f":"Import!M27087","v":0},{"$f":"Import!M27487","v":0},{"$f":"Import!M27887","v":0},{"$f":"Import!M28287","v":0},{"$f":"Import!M28687","v":0}]
[137,{"$f":"Import!M25888","v":"Select"},{"$f":"Import!M26288","v":"Select"},{"$f":"Import!M26688","v":"Select"},{"$f":"Import!M27088","v":0},{"$f":"Import!M27488","v":0},{"$f":"Import!M27888","v":0},{"$f":"Import!M28288","v":0},{"$f":"Import!M28688","v":0}]
[138,{"$f":"Import!M25889","v":"Select"},{"$f":"Import!M26289","v":"Select"},{"$f":"Import!M26689","v":"Select"},{"$f":"Import!M27089","v":0},{"$f":"Import!M27489","v":0},{"$f":"Import!M27889","v":0},{"$f":"Import!M28289","v":0},{"$f":"Import!M28689","v":0}]
[139,{"$f":"Import!M25890","v":"Select"},{"$f":"Import!M26290","v":"Select"},{"$f":"Import!M26690","v":"Select"},{"$f":"Import!M27090","v":0},{"$f":"Import!M27490","v":0},{"$f":"Import!M27890","v":0},{"$f":"Import!M28290","v":0},{"$f":"Import!M28690","v":0}]
[140,{"$f":"Import!M25891","v":"Select"},{"$f":"Import!M26291","v":"Select"},{"$f":"Import!M26691","v":"Select"},{"$f":"Import!M27091","v":0},{"$f":"Import!M27491","v":0},{"$f":"Import!M27891","v":0},{"$f":"Import!M28291","v":0},{"$f":"Import!M28691","v":0}]
[141,{"$f":"Import!M25892","v":"Select"},{"$f":"Import!M26292","v":"Select"},{"$f":"Import!M26692","v":"Select"},{"$f":"Import!M27092","v":0},{"$f":"Import!M27492","v":0},{"$f":"Import!M27892","v":0},{"$f":"Import!M28292","v":0},{"$f":"Import!M28692","v":0}]
[142,{"$f":"Import!M25893","v":"Select"},{"$f":"Import!M26293","v":"Select"},{"$f":"Import!M26693","v":"Select"},{"$f":"Import!M27093","v":0},{"$f":"Import!M27493","v":0},{"$f":"Import!M27893","v":0},{"$f":"Import!M28293","v":0},{"$f":"Import!M28693","v":0}]
[143,{"$f":"Import!M25894","v":"Select"},{"$f":"Import!M26294","v":"Select"},{"$f":"Import!M26694","v":"Select"},{"$f":"Import!M27094","v":0},{"$f":"Import!M27494","v":0},{"$f":"Import!M27894","v":0},{"$f":"Import!M28294","v":0},{"$f":"Import!M28694","v":0}]
[144,{"$f":"Import!M25895","v":"Select"},{"$f":"Import!M26295","v":"Select"},{"$f":"Import!M26695","v":"Select"},{"$f":"Import!M27095","v":0},{"$f":"Import!M27495","v":0},{"$f":"Import!M27895","v":0},{"$f":"Import!M28295","v":0},{"$f":"Import!M28695","v":0}]
[145,{"$f":"Import!M25896","v":"Select"},{"$f":"Import!M26296","v":"Select"},{"$f":"Import!M26696","v":"Select"},{"$f":"Import!M27096","v":0},{"$f":"Import!M27496","v":0},{"$f":"Import!M27896","v":0},{"$f":"Import!M28296","v":0},{"$f":"Import!M28696","v":0}]
[146,{"$f":"Import!M25897","v":"Select"},{"$f":"Import!M26297","v":"Select"},{"$f":"Import!M26697","v":"Select"},{"$f":"Import!M27097","v":0},{"$f":"Import!M27497","v":0},{"$f":"Import!M27897","v":0},{"$f":"Import!M28297","v":0},{"$f":"Import!M28697","v":0}]
[147,{"$f":"Import!M25898","v":"Select"},{"$f":"Import!M26298","v":"Select"},{"$f":"Import!M26698","v":"Select"},{"$f":"Import!M27098","v":0},{"$f":"Import!M27498","v":0},{"$f":"Import!M27898","v":0},{"$f":"Import!M28298","v":0},{"$f":"Import!M28698","v":0}]
[148,{"$f":"Import!M25899","v":"Select"},{"$f":"Import!M26299","v":"Select"},{"$f":"Import!M26699","v":"Select"},{"$f":"Import!M27099","v":0},{"$f":"Import!M27499","v":0},{"$f":"Import!M27899","v":0},{"$f":"Import!M28299","v":0},{"$f":"Import!M28699","v":0}]
[149,{"$f":"Import!M25900","v":"Select"},{"$f":"Import!M26300","v":"Select"},{"$f":"Import!M26700","v":"Select"},{"$f":"Import!M27100","v":0},{"$f":"Import!M27500","v":0},{"$f":"Import!M27900","v":0},{"$f":"Import!M28300","v":0},{"$f":"Import!M28700","v":0}]
[150,{"$f":"Import!M25901","v":"Select"},{"$f":"Import!M26301","v":"Select"},{"$f":"Import!M26701","v":"Select"},{"$f":"Import!M27101","v":0},{"$f":"Import!M27501","v":0},{"$f":"Import!M27901","v":0},{"$f":"Import!M28301","v":0},{"$f":"Import!M28701","v":0}]
[151,{"$f":"Import!M25902","v":"Select"},{"$f":"Import!M26302","v":"Select"},{"$f":"Import!M26702","v":"Select"},{"$f":"Import!M27102","v":0},{"$f":"Import!M27502","v":0},{"$f":"Import!M27902","v":0},{"$f":"Import!M28302","v":0},{"$f":"Import!M28702","v":0}]
[152,{"$f":"Import!M25903","v":"Select"},{"$f":"Import!M26303","v":"Select"},{"$f":"Import!M26703","v":"Select"},{"$f":"Import!M27103","v":0},{"$f":"Import!M27503","v":0},{"$f":"Import!M27903","v":0},{"$f":"Import!M28303","v":0},{"$f":"Import!M28703","v":0}]
[153,{"$f":"Import!M25904","v":"Select"},{"$f":"Import!M26304","v":"Select"},{"$f":"Import!M26704","v":"Select"},{"$f":"Import!M27104","v":0},{"$f":"Import!M27504","v":0},{"$f":"Import!M27904","v":0},{"$f":"Import!M28304","v":0},{"$f":"Import!M28704","v":0}]
[154,{"$f":"Import!M25905","v":"Select"},{"$f":"Import!M26305","v":"Select"},{"$f":"Import!M26705","v":"Select"},{"$f":"Import!M27105","v":0},{"$f":"Import!M27505","v":0},{"$f":"Import!M27905","v":0},{"$f":"Import!M28305","v":0},{"$f":"Import!M28705","v":0}]
[155,{"$f":"Import!M25906","v":"Select"},{"$f":"Import!M26306","v":"Select"},{"$f":"Import!M26706","v":"Select"},{"$f":"Import!M27106","v":0},{"$f":"Import!M27506","v":0},{"$f":"Import!M27906","v":0},{"$f":"Import!M28306","v":0},{"$f":"Import!M28706","v":0}]
[156,{"$f":"Import!M25907","v":"Select"},{"$f":"Import!M26307","v":"Select"},{"$f":"Import!M26707","v":"Select"},{"$f":"Import!M27107","v":0},{"$f":"Import!M27507","v":0},{"$f":"Import!M27907","v":0},{"$f":"Import!M28307","v":0},{"$f":"Import!M28707","v":0}]
[157,{"$f":"Import!M25908","v":"Select"},{"$f":"Import!M26308","v":"Select"},{"$f":"Import!M26708","v":"Select"},{"$f":"Import!M27108","v":0},{"$f":"Import!M27508","v":0},{"$f":"Import!M27908","v":0},{"$f":"Import!M28308","v":0},{"$f":"Import!M28708","v":0}]
[158,{"$f":"Import!M25909","v":"Select"},{"$f":"Import!M26309","v":"Select"},{"$f":"Import!M26709","v":"Select"},{"$f":"Import!M27109","v":0},{"$f":"Import!M27509","v":0},{"$f":"Import!M27909","v":0},{"$f":"Import!M28309","v":0},{"$f":"Import!M28709","v":0}]
[159,{"$f":"Import!M25910","v":"Select"},{"$f":"Import!M26310","v":"Select"},{"$f":"Import!M26710","v":"Select"},{"$f":"Import!M27110","v":0},{"$f":"Import!M27510","v":0},{"$f":"Import!M27910","v":0},{"$f":"Import!M28310","v":0},{"$f":"Import!M28710","v":0}]
[160,{"$f":"Import!M25911","v":"Select"},{"$f":"Import!M26311","v":"Select"},{"$f":"Import!M26711","v":"Select"},{"$f":"Import!M27111","v":0},{"$f":"Import!M27511","v":0},{"$f":"Import!M27911","v":0},{"$f":"Import!M28311","v":0},{"$f":"Import!M28711","v":0}]
[161,{"$f":"Import!M25912","v":"Select"},{"$f":"Import!M26312","v":"Select"},{"$f":"Import!M26712","v":"Select"},{"$f":"Import!M27112","v":0},{"$f":"Import!M27512","v":0},{"$f":"Import!M27912","v":0},{"$f":"Import!M28312","v":0},{"$f":"Import!M28712","v":0}]
[162,{"$f":"Import!M25913","v":"Select"},{"$f":"Import!M26313","v":"Select"},{"$f":"Import!M26713","v":"Select"},{"$f":"Import!M27113","v":0},{"$f":"Import!M27513","v":0},{"$f":"Import!M27913","v":0},{"$f":"Import!M28313","v":0},{"$f":"Import!M28713","v":0}]
[163,{"$f":"Import!M25914","v":"Select"},{"$f":"Import!M26314","v":"Select"},{"$f":"Import!M26714","v":"Select"},{"$f":"Import!M27114","v":0},{"$f":"Import!M27514","v":0},{"$f":"Import!M27914","v":0},{"$f":"Import!M28314","v":0},{"$f":"Import!M28714","v":0}]
[164,{"$f":"Import!M25915","v":"Select"},{"$f":"Import!M26315","v":"Select"},{"$f":"Import!M26715","v":"Select"},{"$f":"Import!M27115","v":0},{"$f":"Import!M27515","v":0},{"$f":"Import!M27915","v":0},{"$f":"Import!M28315","v":0},{"$f":"Import!M28715","v":0}]
[165,{"$f":"Import!M25916","v":"Select"},{"$f":"Import!M26316","v":"Select"},{"$f":"Import!M26716","v":"Select"},{"$f":"Import!M27116","v":0},{"$f":"Import!M27516","v":0},{"$f":"Import!M27916","v":0},{"$f":"Import!M28316","v":0},{"$f":"Import!M28716","v":0}]
[166,{"$f":"Import!M25917","v":"Select"},{"$f":"Import!M26317","v":"Select"},{"$f":"Import!M26717","v":"Select"},{"$f":"Import!M27117","v":0},{"$f":"Import!M27517","v":0},{"$f":"Import!M27917","v":0},{"$f":"Import!M28317","v":0},{"$f":"Import!M28717","v":0}]
[167,{"$f":"Import!M25918","v":"Select"},{"$f":"Import!M26318","v":"Select"},{"$f":"Import!M26718","v":"Select"},{"$f":"Import!M27118","v":0},{"$f":"Import!M27518","v":0},{"$f":"Import!M27918","v":0},{"$f":"Import!M28318","v":0},{"$f":"Import!M28718","v":0}]
[168,{"$f":"Import!M25919","v":"Select"},{"$f":"Import!M26319","v":"Select"},{"$f":"Import!M26719","v":"Select"},{"$f":"Import!M27119","v":0},{"$f":"Import!M27519","v":0},{"$f":"Import!M27919","v":0},{"$f":"Import!M28319","v":0},{"$f":"Import!M28719","v":0}]
[169,{"$f":"Import!M25920","v":"Select"},{"$f":"Import!M26320","v":"Select"},{"$f":"Import!M26720","v":"Select"},{"$f":"Import!M27120","v":0},{"$f":"Import!M27520","v":0},{"$f":"Import!M27920","v":0},{"$f":"Import!M28320","v":0},{"$f":"Import!M28720","v":0}]
[170,{"$f":"Import!M25921","v":"Select"},{"$f":"Import!M26321","v":"Select"},{"$f":"Import!M26721","v":"Select"},{"$f":"Import!M27121","v":0},{"$f":"Import!M27521","v":0},{"$f":"Import!M27921","v":0},{"$f":"Import!M28321","v":0},{"$f":"Import!M28721","v":0}]
[171,{"$f":"Import!M25922","v":"Select"},{"$f":"Import!M26322","v":"Select"},{"$f":"Import!M26722","v":"Select"},{"$f":"Import!M27122","v":0},{"$f":"Import!M27522","v":0},{"$f":"Import!M27922","v":0},{"$f":"Import!M28322","v":0},{"$f":"Import!M28722","v":0}]
[172,{"$f":"Import!M25923","v":"Select"},{"$f":"Import!M26323","v":"Select"},{"$f":"Import!M26723","v":"Select"},{"$f":"Import!M27123","v":0},{"$f":"Import!M27523","v":0},{"$f":"Import!M27923","v":0},{"$f":"Import!M28323","v":0},{"$f":"Import!M28723","v":0}]
[173,{"$f":"Import!M25924","v":"Select"},{"$f":"Import!M26324","v":"Select"},{"$f":"Import!M26724","v":"Select"},{"$f":"Import!M27124","v":0},{"$f":"Import!M27524","v":0},{"$f":"Import!M27924","v":0},{"$f":"Import!M28324","v":0},{"$f":"Import!M28724","v":0}]
[174,{"$f":"Import!M25925","v":"Select"},{"$f":"Import!M26325","v":"Select"},{"$f":"Import!M26725","v":"Select"},{"$f":"Import!M27125","v":0},{"$f":"Import!M27525","v":0},{"$f":"Import!M27925","v":0},{"$f":"Import!M28325","v":0},{"$f":"Import!M28725","v":0}]
[175,{"$f":"Import!M25926","v":"Select"},{"$f":"Import!M26326","v":"Select"},{"$f":"Import!M26726","v":"Select"},{"$f":"Import!M27126","v":0},{"$f":"Import!M27526","v":0},{"$f":"Import!M27926","v":0},{"$f":"Import!M28326","v":0},{"$f":"Import!M28726","v":0}]
[176,{"$f":"Import!M25927","v":"Select"},{"$f":"Import!M26327","v":"Select"},{"$f":"Import!M26727","v":"Select"},{"$f":"Import!M27127","v":0},{"$f":"Import!M27527","v":0},{"$f":"Import!M27927","v":0},{"$f":"Import!M28327","v":0},{"$f":"Import!M28727","v":0}]
[177,{"$f":"Import!M25928","v":"Select"},{"$f":"Import!M26328","v":"Select"},{"$f":"Import!M26728","v":"Select"},{"$f":"Import!M27128","v":0},{"$f":"Import!M27528","v":0},{"$f":"Import!M27928","v":0},{"$f":"Import!M28328","v":0},{"$f":"Import!M28728","v":0}]
[178,{"$f":"Import!M25929","v":"Select"},{"$f":"Import!M26329","v":"Select"},{"$f":"Import!M26729","v":"Select"},{"$f":"Import!M27129","v":0},{"$f":"Import!M27529","v":0},{"$f":"Import!M27929","v":0},{"$f":"Import!M28329","v":0},{"$f":"Import!M28729","v":0}]
[179,{"$f":"Import!M25930","v":"Select"},{"$f":"Import!M26330","v":"Select"},{"$f":"Import!M26730","v":"Select"},{"$f":"Import!M27130","v":0},{"$f":"Import!M27530","v":0},{"$f":"Import!M27930","v":0},{"$f":"Import!M28330","v":0},{"$f":"Import!M28730","v":0}]
[180,{"$f":"Import!M25931","v":"Select"},{"$f":"Import!M26331","v":"Select"},{"$f":"Import!M26731","v":"Select"},{"$f":"Import!M27131","v":0},{"$f":"Import!M27531","v":0},{"$f":"Import!M27931","v":0},{"$f":"Import!M28331","v":0},{"$f":"Import!M28731","v":0}]
[181,{"$f":"Import!M25932","v":"Select"},{"$f":"Import!M26332","v":"Select"},{"$f":"Import!M26732","v":"Select"},{"$f":"Import!M27132","v":0},{"$f":"Import!M27532","v":0},{"$f":"Import!M27932","v":0},{"$f":"Import!M28332","v":0},{"$f":"Import!M28732","v":0}]
[182,{"$f":"Import!M25933","v":"Select"},{"$f":"Import!M26333","v":"Select"},{"$f":"Import!M26733","v":"Select"},{"$f":"Import!M27133","v":0},{"$f":"Import!M27533","v":0},{"$f":"Import!M27933","v":0},{"$f":"Import!M28333","v":0},{"$f":"Import!M28733","v":0}]
[183,{"$f":"Import!M25934","v":"Select"},{"$f":"Import!M26334","v":"Select"},{"$f":"Import!M26734","v":"Select"},{"$f":"Import!M27134","v":0},{"$f":"Import!M27534","v":0},{"$f":"Import!M27934","v":0},{"$f":"Import!M28334","v":0},{"$f":"Import!M28734","v":0}]
[184,{"$f":"Import!M25935","v":"Select"},{"$f":"Import!M26335","v":"Select"},{"$f":"Import!M26735","v":"Select"},{"$f":"Import!M27135","v":0},{"$f":"Import!M27535","v":0},{"$f":"Import!M27935","v":0},{"$f":"Import!M28335","v":0},{"$f":"Import!M28735","v":0}]
[185,{"$f":"Import!M25936","v":"Select"},{"$f":"Import!M26336","v":"Select"},{"$f":"Import!M26736","v":"Select"},{"$f":"Import!M27136","v":0},{"$f":"Import!M27536","v":0},{"$f":"Import!M27936","v":0},{"$f":"Import!M28336","v":0},{"$f":"Import!M28736","v":0}]
[186,{"$f":"Import!M25937","v":"Select"},{"$f":"Import!M26337","v":"Select"},{"$f":"Import!M26737","v":"Select"},{"$f":"Import!M27137","v":0},{"$f":"Import!M27537","v":0},{"$f":"Import!M27937","v":0},{"$f":"Import!M28337","v":0},{"$f":"Import!M28737","v":0}]
[187,{"$f":"Import!M25938","v":"Select"},{"$f":"Import!M26338","v":"Select"},{"$f":"Import!M26738","v":"Select"},{"$f":"Import!M27138","v":0},{"$f":"Import!M27538","v":0},{"$f":"Import!M27938","v":0},{"$f":"Import!M28338","v":0},{"$f":"Import!M28738","v":0}]
[188,{"$f":"Import!M25939","v":"Select"},{"$f":"Import!M26339","v":"Select"},{"$f":"Import!M26739","v":"Select"},{"$f":"Import!M27139","v":0},{"$f":"Import!M27539","v":0},{"$f":"Import!M27939","v":0},{"$f":"Import!M28339","v":0},{"$f":"Import!M28739","v":0}]
[189,{"$f":"Import!M25940","v":"Select"},{"$f":"Import!M26340","v":"Select"},{"$f":"Import!M26740","v":"Select"},{"$f":"Import!M27140","v":0},{"$f":"Import!M27540","v":0},{"$f":"Import!M27940","v":0},{"$f":"Import!M28340","v":0},{"$f":"Import!M28740","v":0}]
[190,{"$f":"Import!M25941","v":"Select"},{"$f":"Import!M26341","v":"Select"},{"$f":"Import!M26741","v":"Select"},{"$f":"Import!M27141","v":0},{"$f":"Import!M27541","v":0},{"$f":"Import!M27941","v":0},{"$f":"Import!M28341","v":0},{"$f":"Import!M28741","v":0}]
[191,{"$f":"Import!M25942","v":"Select"},{"$f":"Import!M26342","v":"Select"},{"$f":"Import!M26742","v":"Select"},{"$f":"Import!M27142","v":0},{"$f":"Import!M27542","v":0},{"$f":"Import!M27942","v":0},{"$f":"Import!M28342","v":0},{"$f":"Import!M28742","v":0}]
[192,{"$f":"Import!M25943","v":"Select"},{"$f":"Import!M26343","v":"Select"},{"$f":"Import!M26743","v":"Select"},{"$f":"Import!M27143","v":0},{"$f":"Import!M27543","v":0},{"$f":"Import!M27943","v":0},{"$f":"Import!M28343","v":0},{"$f":"Import!M28743","v":0}]
[193,{"$f":"Import!M25944","v":"Select"},{"$f":"Import!M26344","v":"Select"},{"$f":"Import!M26744","v":"Select"},{"$f":"Import!M27144","v":0},{"$f":"Import!M27544","v":0},{"$f":"Import!M27944","v":0},{"$f":"Import!M28344","v":0},{"$f":"Import!M28744","v":0}]
[194,{"$f":"Import!M25945","v":"Select"},{"$f":"Import!M26345","v":"Select"},{"$f":"Import!M26745","v":"Select"},{"$f":"Import!M27145","v":0},{"$f":"Import!M27545","v":0},{"$f":"Import!M27945","v":0},{"$f":"Import!M28345","v":0},{"$f":"Import!M28745","v":0}]
[{"$f":"A412+1","v":195},{"$f":"Import!M25946","v":"Select"},{"$f":"Import!M26346","v":"Select"},{"$f":"Import!M26746","v":"Select"},{"$f":"Import!M27146","v":0},{"$f":"Import!M27546","v":0},{"$f":"Import!M27946","v":0},{"$f":"Import!M28346","v":0},{"$f":"Import!M28746","v":0}]
[196,{"$f":"Import!M25947","v":"Select"},{"$f":"Import!M26347","v":"Select"},{"$f":"Import!M26747","v":"Select"},{"$f":"Import!M27147","v":0},{"$f":"Import!M27547","v":0},{"$f":"Import!M27947","v":0},{"$f":"Import!M28347","v":0},{"$f":"Import!M28747","v":0}]
[197,{"$f":"Import!M25948","v":"Select"},{"$f":"Import!M26348","v":"Select"},{"$f":"Import!M26748","v":"Select"},{"$f":"Import!M27148","v":0},{"$f":"Import!M27548","v":0},{"$f":"Import!M27948","v":0},{"$f":"Import!M28348","v":0},{"$f":"Import!M28748","v":0}]
[198,{"$f":"Import!M25949","v":"Select"},{"$f":"Import!M26349","v":"Select"},{"$f":"Import!M26749","v":"Select"},{"$f":"Import!M27149","v":0},{"$f":"Import!M27549","v":0},{"$f":"Import!M27949","v":0},{"$f":"Import!M28349","v":0},{"$f":"Import!M28749","v":0}]
[199,{"$f":"Import!M25950","v":"Select"},{"$f":"Import!M26350","v":"Select"},{"$f":"Import!M26750","v":"Select"},{"$f":"Import!M27150","v":0},{"$f":"Import!M27550","v":0},{"$f":"Import!M27950","v":0},{"$f":"Import!M28350","v":0},{"$f":"Import!M28750","v":0}]
[200,{"$f":"Import!M25951","v":"Select"},{"$f":"Import!M26351","v":"Select"},{"$f":"Import!M26751","v":"Select"},{"$f":"Import!M27151","v":0},{"$f":"Import!M27551","v":0},{"$f":"Import!M27951","v":0},{"$f":"Import!M28351","v":0},{"$f":"Import!M28751","v":0}]
[201,{"$f":"Import!M25952","v":"Select"},{"$f":"Import!M26352","v":"Select"},{"$f":"Import!M26752","v":"Select"},{"$f":"Import!M27152","v":0},{"$f":"Import!M27552","v":0},{"$f":"Import!M27952","v":0},{"$f":"Import!M28352","v":0},{"$f":"Import!M28752","v":0}]
[202,{"$f":"Import!M25953","v":"Select"},{"$f":"Import!M26353","v":"Select"},{"$f":"Import!M26753","v":"Select"},{"$f":"Import!M27153","v":0},{"$f":"Import!M27553","v":0},{"$f":"Import!M27953","v":0},{"$f":"Import!M28353","v":0},{"$f":"Import!M28753","v":0}]
[203,{"$f":"Import!M25954","v":"Select"},{"$f":"Import!M26354","v":"Select"},{"$f":"Import!M26754","v":"Select"},{"$f":"Import!M27154","v":0},{"$f":"Import!M27554","v":0},{"$f":"Import!M27954","v":0},{"$f":"Import!M28354","v":0},{"$f":"Import!M28754","v":0}]
[204,{"$f":"Import!M25955","v":"Select"},{"$f":"Import!M26355","v":"Select"},{"$f":"Import!M26755","v":"Select"},{"$f":"Import!M27155","v":0},{"$f":"Import!M27555","v":0},{"$f":"Import!M27955","v":0},{"$f":"Import!M28355","v":0},{"$f":"Import!M28755","v":0}]
[205,{"$f":"Import!M25956","v":"Select"},{"$f":"Import!M26356","v":"Select"},{"$f":"Import!M26756","v":"Select"},{"$f":"Import!M27156","v":0},{"$f":"Import!M27556","v":0},{"$f":"Import!M27956","v":0},{"$f":"Import!M28356","v":0},{"$f":"Import!M28756","v":0}]
[206,{"$f":"Import!M25957","v":"Select"},{"$f":"Import!M26357","v":"Select"},{"$f":"Import!M26757","v":"Select"},{"$f":"Import!M27157","v":0},{"$f":"Import!M27557","v":0},{"$f":"Import!M27957","v":0},{"$f":"Import!M28357","v":0},{"$f":"Import!M28757","v":0}]
[207,{"$f":"Import!M25958","v":"Select"},{"$f":"Import!M26358","v":"Select"},{"$f":"Import!M26758","v":"Select"},{"$f":"Import!M27158","v":0},{"$f":"Import!M27558","v":0},{"$f":"Import!M27958","v":0},{"$f":"Import!M28358","v":0},{"$f":"Import!M28758","v":0}]
[208,{"$f":"Import!M25959","v":"Select"},{"$f":"Import!M26359","v":"Select"},{"$f":"Import!M26759","v":"Select"},{"$f":"Import!M27159","v":0},{"$f":"Import!M27559","v":0},{"$f":"Import!M27959","v":0},{"$f":"Import!M28359","v":0},{"$f":"Import!M28759","v":0}]
[209,{"$f":"Import!M25960","v":"Select"},{"$f":"Import!M26360","v":"Select"},{"$f":"Import!M26760","v":"Select"},{"$f":"Import!M27160","v":0},{"$f":"Import!M27560","v":0},{"$f":"Import!M27960","v":0},{"$f":"Import!M28360","v":0},{"$f":"Import!M28760","v":0}]
[210,{"$f":"Import!M25961","v":"Select"},{"$f":"Import!M26361","v":"Select"},{"$f":"Import!M26761","v":"Select"},{"$f":"Import!M27161","v":0},{"$f":"Import!M27561","v":0},{"$f":"Import!M27961","v":0},{"$f":"Import!M28361","v":0},{"$f":"Import!M28761","v":0}]
[211,{"$f":"Import!M25962","v":"Select"},{"$f":"Import!M26362","v":"Select"},{"$f":"Import!M26762","v":"Select"},{"$f":"Import!M27162","v":0},{"$f":"Import!M27562","v":0},{"$f":"Import!M27962","v":0},{"$f":"Import!M28362","v":0},{"$f":"Import!M28762","v":0}]
[212,{"$f":"Import!M25963","v":"Select"},{"$f":"Import!M26363","v":"Select"},{"$f":"Import!M26763","v":"Select"},{"$f":"Import!M27163","v":0},{"$f":"Import!M27563","v":0},{"$f":"Import!M27963","v":0},{"$f":"Import!M28363","v":0},{"$f":"Import!M28763","v":0}]
[213,{"$f":"Import!M25964","v":"Select"},{"$f":"Import!M26364","v":"Select"},{"$f":"Import!M26764","v":"Select"},{"$f":"Import!M27164","v":0},{"$f":"Import!M27564","v":0},{"$f":"Import!M27964","v":0},{"$f":"Import!M28364","v":0},{"$f":"Import!M28764","v":0}]
[214,{"$f":"Import!M25965","v":"Select"},{"$f":"Import!M26365","v":"Select"},{"$f":"Import!M26765","v":"Select"},{"$f":"Import!M27165","v":0},{"$f":"Import!M27565","v":0},{"$f":"Import!M27965","v":0},{"$f":"Import!M28365","v":0},{"$f":"Import!M28765","v":0}]
[215,{"$f":"Import!M25966","v":"Select"},{"$f":"Import!M26366","v":"Select"},{"$f":"Import!M26766","v":"Select"},{"$f":"Import!M27166","v":0},{"$f":"Import!M27566","v":0},{"$f":"Import!M27966","v":0},{"$f":"Import!M28366","v":0},{"$f":"Import!M28766","v":0}]
[216,{"$f":"Import!M25967","v":"Select"},{"$f":"Import!M26367","v":"Select"},{"$f":"Import!M26767","v":"Select"},{"$f":"Import!M27167","v":0},{"$f":"Import!M27567","v":0},{"$f":"Import!M27967","v":0},{"$f":"Import!M28367","v":0},{"$f":"Import!M28767","v":0}]
[217,{"$f":"Import!M25968","v":"Select"},{"$f":"Import!M26368","v":"Select"},{"$f":"Import!M26768","v":"Select"},{"$f":"Import!M27168","v":0},{"$f":"Import!M27568","v":0},{"$f":"Import!M27968","v":0},{"$f":"Import!M28368","v":0},{"$f":"Import!M28768","v":0}]
[218,{"$f":"Import!M25969","v":"Select"},{"$f":"Import!M26369","v":"Select"},{"$f":"Import!M26769","v":"Select"},{"$f":"Import!M27169","v":0},{"$f":"Import!M27569","v":0},{"$f":"Import!M27969","v":0},{"$f":"Import!M28369","v":0},{"$f":"Import!M28769","v":0}]
[219,{"$f":"Import!M25970","v":"Select"},{"$f":"Import!M26370","v":"Select"},{"$f":"Import!M26770","v":"Select"},{"$f":"Import!M27170","v":0},{"$f":"Import!M27570","v":0},{"$f":"Import!M27970","v":0},{"$f":"Import!M28370","v":0},{"$f":"Import!M28770","v":0}]
[220,{"$f":"Import!M25971","v":"Select"},{"$f":"Import!M26371","v":"Select"},{"$f":"Import!M26771","v":"Select"},{"$f":"Import!M27171","v":0},{"$f":"Import!M27571","v":0},{"$f":"Import!M27971","v":0},{"$f":"Import!M28371","v":0},{"$f":"Import!M28771","v":0}]
[221,{"$f":"Import!M25972","v":"Select"},{"$f":"Import!M26372","v":"Select"},{"$f":"Import!M26772","v":"Select"},{"$f":"Import!M27172","v":0},{"$f":"Import!M27572","v":0},{"$f":"Import!M27972","v":0},{"$f":"Import!M28372","v":0},{"$f":"Import!M28772","v":0}]
[222,{"$f":"Import!M25973","v":"Select"},{"$f":"Import!M26373","v":"Select"},{"$f":"Import!M26773","v":"Select"},{"$f":"Import!M27173","v":0},{"$f":"Import!M27573","v":0},{"$f":"Import!M27973","v":0},{"$f":"Import!M28373","v":0},{"$f":"Import!M28773","v":0}]
[223,{"$f":"Import!M25974","v":"Select"},{"$f":"Import!M26374","v":"Select"},{"$f":"Import!M26774","v":"Select"},{"$f":"Import!M27174","v":0},{"$f":"Import!M27574","v":0},{"$f":"Import!M27974","v":0},{"$f":"Import!M28374","v":0},{"$f":"Import!M28774","v":0}]
[224,{"$f":"Import!M25975","v":"Select"},{"$f":"Import!M26375","v":"Select"},{"$f":"Import!M26775","v":"Select"},{"$f":"Import!M27175","v":0},{"$f":"Import!M27575","v":0},{"$f":"Import!M27975","v":0},{"$f":"Import!M28375","v":0},{"$f":"Import!M28775","v":0}]
[225,{"$f":"Import!M25976","v":"Select"},{"$f":"Import!M26376","v":"Select"},{"$f":"Import!M26776","v":"Select"},{"$f":"Import!M27176","v":0},{"$f":"Import!M27576","v":0},{"$f":"Import!M27976","v":0},{"$f":"Import!M28376","v":0},{"$f":"Import!M28776","v":0}]
[226,{"$f":"Import!M25977","v":"Select"},{"$f":"Import!M26377","v":"Select"},{"$f":"Import!M26777","v":"Select"},{"$f":"Import!M27177","v":0},{"$f":"Import!M27577","v":0},{"$f":"Import!M27977","v":0},{"$f":"Import!M28377","v":0},{"$f":"Import!M28777","v":0}]
[227,{"$f":"Import!M25978","v":"Select"},{"$f":"Import!M26378","v":"Select"},{"$f":"Import!M26778","v":"Select"},{"$f":"Import!M27178","v":0},{"$f":"Import!M27578","v":0},{"$f":"Import!M27978","v":0},{"$f":"Import!M28378","v":0},{"$f":"Import!M28778","v":0}]
[228,{"$f":"Import!M25979","v":"Select"},{"$f":"Import!M26379","v":"Select"},{"$f":"Import!M26779","v":"Select"},{"$f":"Import!M27179","v":0},{"$f":"Import!M27579","v":0},{"$f":"Import!M27979","v":0},{"$f":"Import!M28379","v":0},{"$f":"Import!M28779","v":0}]
[229,{"$f":"Import!M25980","v":"Select"},{"$f":"Import!M26380","v":"Select"},{"$f":"Import!M26780","v":"Select"},{"$f":"Import!M27180","v":0},{"$f":"Import!M27580","v":0},{"$f":"Import!M27980","v":0},{"$f":"Import!M28380","v":0},{"$f":"Import!M28780","v":0}]
[230,{"$f":"Import!M25981","v":"Select"},{"$f":"Import!M26381","v":"Select"},{"$f":"Import!M26781","v":"Select"},{"$f":"Import!M27181","v":0},{"$f":"Import!M27581","v":0},{"$f":"Import!M27981","v":0},{"$f":"Import!M28381","v":0},{"$f":"Import!M28781","v":0}]
[231,{"$f":"Import!M25982","v":"Select"},{"$f":"Import!M26382","v":"Select"},{"$f":"Import!M26782","v":"Select"},{"$f":"Import!M27182","v":0},{"$f":"Import!M27582","v":0},{"$f":"Import!M27982","v":0},{"$f":"Import!M28382","v":0},{"$f":"Import!M28782","v":0}]
[232,{"$f":"Import!M25983","v":"Select"},{"$f":"Import!M26383","v":"Select"},{"$f":"Import!M26783","v":"Select"},{"$f":"Import!M27183","v":0},{"$f":"Import!M27583","v":0},{"$f":"Import!M27983","v":0},{"$f":"Import!M28383","v":0},{"$f":"Import!M28783","v":0}]
[233,{"$f":"Import!M25984","v":"Select"},{"$f":"Import!M26384","v":"Select"},{"$f":"Import!M26784","v":"Select"},{"$f":"Import!M27184","v":0},{"$f":"Import!M27584","v":0},{"$f":"Import!M27984","v":0},{"$f":"Import!M28384","v":0},{"$f":"Import!M28784","v":0}]
[234,{"$f":"Import!M25985","v":"Select"},{"$f":"Import!M26385","v":"Select"},{"$f":"Import!M26785","v":"Select"},{"$f":"Import!M27185","v":0},{"$f":"Import!M27585","v":0},{"$f":"Import!M27985","v":0},{"$f":"Import!M28385","v":0},{"$f":"Import!M28785","v":0}]
[235,{"$f":"Import!M25986","v":"Select"},{"$f":"Import!M26386","v":"Select"},{"$f":"Import!M26786","v":"Select"},{"$f":"Import!M27186","v":0},{"$f":"Import!M27586","v":0},{"$f":"Import!M27986","v":0},{"$f":"Import!M28386","v":0},{"$f":"Import!M28786","v":0}]
[236,{"$f":"Import!M25987","v":"Select"},{"$f":"Import!M26387","v":"Select"},{"$f":"Import!M26787","v":"Select"},{"$f":"Import!M27187","v":0},{"$f":"Import!M27587","v":0},{"$f":"Import!M27987","v":0},{"$f":"Import!M28387","v":0},{"$f":"Import!M28787","v":0}]
[237,{"$f":"Import!M25988","v":"Select"},{"$f":"Import!M26388","v":"Select"},{"$f":"Import!M26788","v":"Select"},{"$f":"Import!M27188","v":0},{"$f":"Import!M27588","v":0},{"$f":"Import!M27988","v":0},{"$f":"Import!M28388","v":0},{"$f":"Import!M28788","v":0}]
[238,{"$f":"Import!M25989","v":"Select"},{"$f":"Import!M26389","v":"Select"},{"$f":"Import!M26789","v":"Select"},{"$f":"Import!M27189","v":0},{"$f":"Import!M27589","v":0},{"$f":"Import!M27989","v":0},{"$f":"Import!M28389","v":0},{"$f":"Import!M28789","v":0}]
[239,{"$f":"Import!M25990","v":"Select"},{"$f":"Import!M26390","v":"Select"},{"$f":"Import!M26790","v":"Select"},{"$f":"Import!M27190","v":0},{"$f":"Import!M27590","v":0},{"$f":"Import!M27990","v":0},{"$f":"Import!M28390","v":0},{"$f":"Import!M28790","v":0}]
[240,{"$f":"Import!M25991","v":"Select"},{"$f":"Import!M26391","v":"Select"},{"$f":"Import!M26791","v":"Select"},{"$f":"Import!M27191","v":0},{"$f":"Import!M27591","v":0},{"$f":"Import!M27991","v":0},{"$f":"Import!M28391","v":0},{"$f":"Import!M28791","v":0}]
[241,{"$f":"Import!M25992","v":"Select"},{"$f":"Import!M26392","v":"Select"},{"$f":"Import!M26792","v":"Select"},{"$f":"Import!M27192","v":0},{"$f":"Import!M27592","v":0},{"$f":"Import!M27992","v":0},{"$f":"Import!M28392","v":0},{"$f":"Import!M28792","v":0}]
[242,{"$f":"Import!M25993","v":"Select"},{"$f":"Import!M26393","v":"Select"},{"$f":"Import!M26793","v":"Select"},{"$f":"Import!M27193","v":0},{"$f":"Import!M27593","v":0},{"$f":"Import!M27993","v":0},{"$f":"Import!M28393","v":0},{"$f":"Import!M28793","v":0}]
[243,{"$f":"Import!M25994","v":"Select"},{"$f":"Import!M26394","v":"Select"},{"$f":"Import!M26794","v":"Select"},{"$f":"Import!M27194","v":0},{"$f":"Import!M27594","v":0},{"$f":"Import!M27994","v":0},{"$f":"Import!M28394","v":0},{"$f":"Import!M28794","v":0}]
[244,{"$f":"Import!M25995","v":"Select"},{"$f":"Import!M26395","v":"Select"},{"$f":"Import!M26795","v":"Select"},{"$f":"Import!M27195","v":0},{"$f":"Import!M27595","v":0},{"$f":"Import!M27995","v":0},{"$f":"Import!M28395","v":0},{"$f":"Import!M28795","v":0}]
[245,{"$f":"Import!M25996","v":"Select"},{"$f":"Import!M26396","v":"Select"},{"$f":"Import!M26796","v":"Select"},{"$f":"Import!M27196","v":0},{"$f":"Import!M27596","v":0},{"$f":"Import!M27996","v":0},{"$f":"Import!M28396","v":0},{"$f":"Import!M28796","v":0}]
[246,{"$f":"Import!M25997","v":"Select"},{"$f":"Import!M26397","v":"Select"},{"$f":"Import!M26797","v":"Select"},{"$f":"Import!M27197","v":0},{"$f":"Import!M27597","v":0},{"$f":"Import!M27997","v":0},{"$f":"Import!M28397","v":0},{"$f":"Import!M28797","v":0}]
[247,{"$f":"Import!M25998","v":"Select"},{"$f":"Import!M26398","v":"Select"},{"$f":"Import!M26798","v":"Select"},{"$f":"Import!M27198","v":0},{"$f":"Import!M27598","v":0},{"$f":"Import!M27998","v":0},{"$f":"Import!M28398","v":0},{"$f":"Import!M28798","v":0}]
[248,{"$f":"Import!M25999","v":"Select"},{"$f":"Import!M26399","v":"Select"},{"$f":"Import!M26799","v":"Select"},{"$f":"Import!M27199","v":0},{"$f":"Import!M27599","v":0},{"$f":"Import!M27999","v":0},{"$f":"Import!M28399","v":0},{"$f":"Import!M28799","v":0}]
[249,{"$f":"Import!M26000","v":"Select"},{"$f":"Import!M26400","v":"Select"},{"$f":"Import!M26800","v":"Select"},{"$f":"Import!M27200","v":0},{"$f":"Import!M27600","v":0},{"$f":"Import!M28000","v":0},{"$f":"Import!M28400","v":0},{"$f":"Import!M28800","v":0}]
[250,{"$f":"Import!M26001","v":"Select"},{"$f":"Import!M26401","v":"Select"},{"$f":"Import!M26801","v":"Select"},{"$f":"Import!M27201","v":0},{"$f":"Import!M27601","v":0},{"$f":"Import!M28001","v":0},{"$f":"Import!M28401","v":0},{"$f":"Import!M28801","v":0}]
[251,{"$f":"Import!M26002","v":"Select"},{"$f":"Import!M26402","v":"Select"},{"$f":"Import!M26802","v":"Select"},{"$f":"Import!M27202","v":0},{"$f":"Import!M27602","v":0},{"$f":"Import!M28002","v":0},{"$f":"Import!M28402","v":0},{"$f":"Import!M28802","v":0}]
[252,{"$f":"Import!M26003","v":"Select"},{"$f":"Import!M26403","v":"Select"},{"$f":"Import!M26803","v":"Select"},{"$f":"Import!M27203","v":0},{"$f":"Import!M27603","v":0},{"$f":"Import!M28003","v":0},{"$f":"Import!M28403","v":0},{"$f":"Import!M28803","v":0}]
[253,{"$f":"Import!M26004","v":"Select"},{"$f":"Import!M26404","v":"Select"},{"$f":"Import!M26804","v":"Select"},{"$f":"Import!M27204","v":0},{"$f":"Import!M27604","v":0},{"$f":"Import!M28004","v":0},{"$f":"Import!M28404","v":0},{"$f":"Import!M28804","v":0}]
[254,{"$f":"Import!M26005","v":"Select"},{"$f":"Import!M26405","v":"Select"},{"$f":"Import!M26805","v":"Select"},{"$f":"Import!M27205","v":0},{"$f":"Import!M27605","v":0},{"$f":"Import!M28005","v":0},{"$f":"Import!M28405","v":0},{"$f":"Import!M28805","v":0}]
[255,{"$f":"Import!M26006","v":"Select"},{"$f":"Import!M26406","v":"Select"},{"$f":"Import!M26806","v":"Select"},{"$f":"Import!M27206","v":0},{"$f":"Import!M27606","v":0},{"$f":"Import!M28006","v":0},{"$f":"Import!M28406","v":0},{"$f":"Import!M28806","v":0}]
[256,{"$f":"Import!M26007","v":"Select"},{"$f":"Import!M26407","v":"Select"},{"$f":"Import!M26807","v":"Select"},{"$f":"Import!M27207","v":0},{"$f":"Import!M27607","v":0},{"$f":"Import!M28007","v":0},{"$f":"Import!M28407","v":0},{"$f":"Import!M28807","v":0}]
[257,{"$f":"Import!M26008","v":"Select"},{"$f":"Import!M26408","v":"Select"},{"$f":"Import!M26808","v":"Select"},{"$f":"Import!M27208","v":0},{"$f":"Import!M27608","v":0},{"$f":"Import!M28008","v":0},{"$f":"Import!M28408","v":0},{"$f":"Import!M28808","v":0}]
[258,{"$f":"Import!M26009","v":"Select"},{"$f":"Import!M26409","v":"Select"},{"$f":"Import!M26809","v":"Select"},{"$f":"Import!M27209","v":0},{"$f":"Import!M27609","v":0},{"$f":"Import!M28009","v":0},{"$f":"Import!M28409","v":0},{"$f":"Import!M28809","v":0}]
[{"$f":"A476+1","v":259},{"$f":"Import!M26010","v":"Select"},{"$f":"Import!M26410","v":"Select"},{"$f":"Import!M26810","v":"Select"},{"$f":"Import!M27210","v":0},{"$f":"Import!M27610","v":0},{"$f":"Import!M28010","v":0},{"$f":"Import!M28410","v":0},{"$f":"Import!M28810","v":0}]
[260,{"$f":"Import!M26011","v":"Select"},{"$f":"Import!M26411","v":"Select"},{"$f":"Import!M26811","v":"Select"},{"$f":"Import!M27211","v":0},{"$f":"Import!M27611","v":0},{"$f":"Import!M28011","v":0},{"$f":"Import!M28411","v":0},{"$f":"Import!M28811","v":0}]
[261,{"$f":"Import!M26012","v":"Select"},{"$f":"Import!M26412","v":"Select"},{"$f":"Import!M26812","v":"Select"},{"$f":"Import!M27212","v":0},{"$f":"Import!M27612","v":0},{"$f":"Import!M28012","v":0},{"$f":"Import!M28412","v":0},{"$f":"Import!M28812","v":0}]
[262,{"$f":"Import!M26013","v":"Select"},{"$f":"Import!M26413","v":"Select"},{"$f":"Import!M26813","v":"Select"},{"$f":"Import!M27213","v":0},{"$f":"Import!M27613","v":0},{"$f":"Import!M28013","v":0},{"$f":"Import!M28413","v":0},{"$f":"Import!M28813","v":0}]
[263,{"$f":"Import!M26014","v":"Select"},{"$f":"Import!M26414","v":"Select"},{"$f":"Import!M26814","v":"Select"},{"$f":"Import!M27214","v":0},{"$f":"Import!M27614","v":0},{"$f":"Import!M28014","v":0},{"$f":"Import!M28414","v":0},{"$f":"Import!M28814","v":0}]
[264,{"$f":"Import!M26015","v":"Select"},{"$f":"Import!M26415","v":"Select"},{"$f":"Import!M26815","v":"Select"},{"$f":"Import!M27215","v":0},{"$f":"Import!M27615","v":0},{"$f":"Import!M28015","v":0},{"$f":"Import!M28415","v":0},{"$f":"Import!M28815","v":0}]
[265,{"$f":"Import!M26016","v":"Select"},{"$f":"Import!M26416","v":"Select"},{"$f":"Import!M26816","v":"Select"},{"$f":"Import!M27216","v":0},{"$f":"Import!M27616","v":0},{"$f":"Import!M28016","v":0},{"$f":"Import!M28416","v":0},{"$f":"Import!M28816","v":0}]
[266,{"$f":"Import!M26017","v":"Select"},{"$f":"Import!M26417","v":"Select"},{"$f":"Import!M26817","v":"Select"},{"$f":"Import!M27217","v":0},{"$f":"Import!M27617","v":0},{"$f":"Import!M28017","v":0},{"$f":"Import!M28417","v":0},{"$f":"Import!M28817","v":0}]
[267,{"$f":"Import!M26018","v":"Select"},{"$f":"Import!M26418","v":"Select"},{"$f":"Import!M26818","v":"Select"},{"$f":"Import!M27218","v":0},{"$f":"Import!M27618","v":0},{"$f":"Import!M28018","v":0},{"$f":"Import!M28418","v":0},{"$f":"Import!M28818","v":0}]
[268,{"$f":"Import!M26019","v":"Select"},{"$f":"Import!M26419","v":"Select"},{"$f":"Import!M26819","v":"Select"},{"$f":"Import!M27219","v":0},{"$f":"Import!M27619","v":0},{"$f":"Import!M28019","v":0},{"$f":"Import!M28419","v":0},{"$f":"Import!M28819","v":0}]
[269,{"$f":"Import!M26020","v":"Select"},{"$f":"Import!M26420","v":"Select"},{"$f":"Import!M26820","v":"Select"},{"$f":"Import!M27220","v":0},{"$f":"Import!M27620","v":0},{"$f":"Import!M28020","v":0},{"$f":"Import!M28420","v":0},{"$f":"Import!M28820","v":0}]
[270,{"$f":"Import!M26021","v":"Select"},{"$f":"Import!M26421","v":"Select"},{"$f":"Import!M26821","v":"Select"},{"$f":"Import!M27221","v":0},{"$f":"Import!M27621","v":0},{"$f":"Import!M28021","v":0},{"$f":"Import!M28421","v":0},{"$f":"Import!M28821","v":0}]
[271,{"$f":"Import!M26022","v":"Select"},{"$f":"Import!M26422","v":"Select"},{"$f":"Import!M26822","v":"Select"},{"$f":"Import!M27222","v":0},{"$f":"Import!M27622","v":0},{"$f":"Import!M28022","v":0},{"$f":"Import!M28422","v":0},{"$f":"Import!M28822","v":0}]
[272,{"$f":"Import!M26023","v":"Select"},{"$f":"Import!M26423","v":"Select"},{"$f":"Import!M26823","v":"Select"},{"$f":"Import!M27223","v":0},{"$f":"Import!M27623","v":0},{"$f":"Import!M28023","v":0},{"$f":"Import!M28423","v":0},{"$f":"Import!M28823","v":0}]
[273,{"$f":"Import!M26024","v":"Select"},{"$f":"Import!M26424","v":"Select"},{"$f":"Import!M26824","v":"Select"},{"$f":"Import!M27224","v":0},{"$f":"Import!M27624","v":0},{"$f":"Import!M28024","v":0},{"$f":"Import!M28424","v":0},{"$f":"Import!M28824","v":0}]
[274,{"$f":"Import!M26025","v":"Select"},{"$f":"Import!M26425","v":"Select"},{"$f":"Import!M26825","v":"Select"},{"$f":"Import!M27225","v":0},{"$f":"Import!M27625","v":0},{"$f":"Import!M28025","v":0},{"$f":"Import!M28425","v":0},{"$f":"Import!M28825","v":0}]
[275,{"$f":"Import!M26026","v":"Select"},{"$f":"Import!M26426","v":"Select"},{"$f":"Import!M26826","v":"Select"},{"$f":"Import!M27226","v":0},{"$f":"Import!M27626","v":0},{"$f":"Import!M28026","v":0},{"$f":"Import!M28426","v":0},{"$f":"Import!M28826","v":0}]
[276,{"$f":"Import!M26027","v":"Select"},{"$f":"Import!M26427","v":"Select"},{"$f":"Import!M26827","v":"Select"},{"$f":"Import!M27227","v":0},{"$f":"Import!M27627","v":0},{"$f":"Import!M28027","v":0},{"$f":"Import!M28427","v":0},{"$f":"Import!M28827","v":0}]
[277,{"$f":"Import!M26028","v":"Select"},{"$f":"Import!M26428","v":"Select"},{"$f":"Import!M26828","v":"Select"},{"$f":"Import!M27228","v":0},{"$f":"Import!M27628","v":0},{"$f":"Import!M28028","v":0},{"$f":"Import!M28428","v":0},{"$f":"Import!M28828","v":0}]
[278,{"$f":"Import!M26029","v":"Select"},{"$f":"Import!M26429","v":"Select"},{"$f":"Import!M26829","v":"Select"},{"$f":"Import!M27229","v":0},{"$f":"Import!M27629","v":0},{"$f":"Import!M28029","v":0},{"$f":"Import!M28429","v":0},{"$f":"Import!M28829","v":0}]
[279,{"$f":"Import!M26030","v":"Select"},{"$f":"Import!M26430","v":"Select"},{"$f":"Import!M26830","v":"Select"},{"$f":"Import!M27230","v":0},{"$f":"Import!M27630","v":0},{"$f":"Import!M28030","v":0},{"$f":"Import!M28430","v":0},{"$f":"Import!M28830","v":0}]
[280,{"$f":"Import!M26031","v":"Select"},{"$f":"Import!M26431","v":"Select"},{"$f":"Import!M26831","v":"Select"},{"$f":"Import!M27231","v":0},{"$f":"Import!M27631","v":0},{"$f":"Import!M28031","v":0},{"$f":"Import!M28431","v":0},{"$f":"Import!M28831","v":0}]
[281,{"$f":"Import!M26032","v":"Select"},{"$f":"Import!M26432","v":"Select"},{"$f":"Import!M26832","v":"Select"},{"$f":"Import!M27232","v":0},{"$f":"Import!M27632","v":0},{"$f":"Import!M28032","v":0},{"$f":"Import!M28432","v":0},{"$f":"Import!M28832","v":0}]
[282,{"$f":"Import!M26033","v":"Select"},{"$f":"Import!M26433","v":"Select"},{"$f":"Import!M26833","v":"Select"},{"$f":"Import!M27233","v":0},{"$f":"Import!M27633","v":0},{"$f":"Import!M28033","v":0},{"$f":"Import!M28433","v":0},{"$f":"Import!M28833","v":0}]
[283,{"$f":"Import!M26034","v":"Select"},{"$f":"Import!M26434","v":"Select"},{"$f":"Import!M26834","v":"Select"},{"$f":"Import!M27234","v":0},{"$f":"Import!M27634","v":0},{"$f":"Import!M28034","v":0},{"$f":"Import!M28434","v":0},{"$f":"Import!M28834","v":0}]
[284,{"$f":"Import!M26035","v":"Select"},{"$f":"Import!M26435","v":"Select"},{"$f":"Import!M26835","v":"Select"},{"$f":"Import!M27235","v":0},{"$f":"Import!M27635","v":0},{"$f":"Import!M28035","v":0},{"$f":"Import!M28435","v":0},{"$f":"Import!M28835","v":0}]
[285,{"$f":"Import!M26036","v":"Select"},{"$f":"Import!M26436","v":"Select"},{"$f":"Import!M26836","v":"Select"},{"$f":"Import!M27236","v":0},{"$f":"Import!M27636","v":0},{"$f":"Import!M28036","v":0},{"$f":"Import!M28436","v":0},{"$f":"Import!M28836","v":0}]
[286,{"$f":"Import!M26037","v":"Select"},{"$f":"Import!M26437","v":"Select"},{"$f":"Import!M26837","v":"Select"},{"$f":"Import!M27237","v":0},{"$f":"Import!M27637","v":0},{"$f":"Import!M28037","v":0},{"$f":"Import!M28437","v":0},{"$f":"Import!M28837","v":0}]
[287,{"$f":"Import!M26038","v":"Select"},{"$f":"Import!M26438","v":"Select"},{"$f":"Import!M26838","v":"Select"},{"$f":"Import!M27238","v":0},{"$f":"Import!M27638","v":0},{"$f":"Import!M28038","v":0},{"$f":"Import!M28438","v":0},{"$f":"Import!M28838","v":0}]
[288,{"$f":"Import!M26039","v":"Select"},{"$f":"Import!M26439","v":"Select"},{"$f":"Import!M26839","v":"Select"},{"$f":"Import!M27239","v":0},{"$f":"Import!M27639","v":0},{"$f":"Import!M28039","v":0},{"$f":"Import!M28439","v":0},{"$f":"Import!M28839","v":0}]
[289,{"$f":"Import!M26040","v":"Select"},{"$f":"Import!M26440","v":"Select"},{"$f":"Import!M26840","v":"Select"},{"$f":"Import!M27240","v":0},{"$f":"Import!M27640","v":0},{"$f":"Import!M28040","v":0},{"$f":"Import!M28440","v":0},{"$f":"Import!M28840","v":0}]
[290,{"$f":"Import!M26041","v":"Select"},{"$f":"Import!M26441","v":"Select"},{"$f":"Import!M26841","v":"Select"},{"$f":"Import!M27241","v":0},{"$f":"Import!M27641","v":0},{"$f":"Import!M28041","v":0},{"$f":"Import!M28441","v":0},{"$f":"Import!M28841","v":0}]
[291,{"$f":"Import!M26042","v":"Select"},{"$f":"Import!M26442","v":"Select"},{"$f":"Import!M26842","v":"Select"},{"$f":"Import!M27242","v":0},{"$f":"Import!M27642","v":0},{"$f":"Import!M28042","v":0},{"$f":"Import!M28442","v":0},{"$f":"Import!M28842","v":0}]
[292,{"$f":"Import!M26043","v":"Select"},{"$f":"Import!M26443","v":"Select"},{"$f":"Import!M26843","v":"Select"},{"$f":"Import!M27243","v":0},{"$f":"Import!M27643","v":0},{"$f":"Import!M28043","v":0},{"$f":"Import!M28443","v":0},{"$f":"Import!M28843","v":0}]
[293,{"$f":"Import!M26044","v":"Select"},{"$f":"Import!M26444","v":"Select"},{"$f":"Import!M26844","v":"Select"},{"$f":"Import!M27244","v":0},{"$f":"Import!M27644","v":0},{"$f":"Import!M28044","v":0},{"$f":"Import!M28444","v":0},{"$f":"Import!M28844","v":0}]
[294,{"$f":"Import!M26045","v":"Select"},{"$f":"Import!M26445","v":"Select"},{"$f":"Import!M26845","v":"Select"},{"$f":"Import!M27245","v":0},{"$f":"Import!M27645","v":0},{"$f":"Import!M28045","v":0},{"$f":"Import!M28445","v":0},{"$f":"Import!M28845","v":0}]
[295,{"$f":"Import!M26046","v":"Select"},{"$f":"Import!M26446","v":"Select"},{"$f":"Import!M26846","v":"Select"},{"$f":"Import!M27246","v":0},{"$f":"Import!M27646","v":0},{"$f":"Import!M28046","v":0},{"$f":"Import!M28446","v":0},{"$f":"Import!M28846","v":0}]
[296,{"$f":"Import!M26047","v":"Select"},{"$f":"Import!M26447","v":"Select"},{"$f":"Import!M26847","v":"Select"},{"$f":"Import!M27247","v":0},{"$f":"Import!M27647","v":0},{"$f":"Import!M28047","v":0},{"$f":"Import!M28447","v":0},{"$f":"Import!M28847","v":0}]
[297,{"$f":"Import!M26048","v":"Select"},{"$f":"Import!M26448","v":"Select"},{"$f":"Import!M26848","v":"Select"},{"$f":"Import!M27248","v":0},{"$f":"Import!M27648","v":0},{"$f":"Import!M28048","v":0},{"$f":"Import!M28448","v":0},{"$f":"Import!M28848","v":0}]
[298,{"$f":"Import!M26049","v":"Select"},{"$f":"Import!M26449","v":"Select"},{"$f":"Import!M26849","v":"Select"},{"$f":"Import!M27249","v":0},{"$f":"Import!M27649","v":0},{"$f":"Import!M28049","v":0},{"$f":"Import!M28449","v":0},{"$f":"Import!M28849","v":0}]
[299,{"$f":"Import!M26050","v":"Select"},{"$f":"Import!M26450","v":"Select"},{"$f":"Import!M26850","v":"Select"},{"$f":"Import!M27250","v":0},{"$f":"Import!M27650","v":0},{"$f":"Import!M28050","v":0},{"$f":"Import!M28450","v":0},{"$f":"Import!M28850","v":0}]
[300,{"$f":"Import!M26051","v":"Select"},{"$f":"Import!M26451","v":"Select"},{"$f":"Import!M26851","v":"Select"},{"$f":"Import!M27251","v":0},{"$f":"Import!M27651","v":0},{"$f":"Import!M28051","v":0},{"$f":"Import!M28451","v":0},{"$f":"Import!M28851","v":0}]
[301,{"$f":"Import!M26052","v":"Select"},{"$f":"Import!M26452","v":"Select"},{"$f":"Import!M26852","v":"Select"},{"$f":"Import!M27252","v":0},{"$f":"Import!M27652","v":0},{"$f":"Import!M28052","v":0},{"$f":"Import!M28452","v":0},{"$f":"Import!M28852","v":0}]
[302,{"$f":"Import!M26053","v":"Select"},{"$f":"Import!M26453","v":"Select"},{"$f":"Import!M26853","v":"Select"},{"$f":"Import!M27253","v":0},{"$f":"Import!M27653","v":0},{"$f":"Import!M28053","v":0},{"$f":"Import!M28453","v":0},{"$f":"Import!M28853","v":0}]
[303,{"$f":"Import!M26054","v":"Select"},{"$f":"Import!M26454","v":"Select"},{"$f":"Import!M26854","v":"Select"},{"$f":"Import!M27254","v":0},{"$f":"Import!M27654","v":0},{"$f":"Import!M28054","v":0},{"$f":"Import!M28454","v":0},{"$f":"Import!M28854","v":0}]
[304,{"$f":"Import!M26055","v":"Select"},{"$f":"Import!M26455","v":"Select"},{"$f":"Import!M26855","v":"Select"},{"$f":"Import!M27255","v":0},{"$f":"Import!M27655","v":0},{"$f":"Import!M28055","v":0},{"$f":"Import!M28455","v":0},{"$f":"Import!M28855","v":0}]
[305,{"$f":"Import!M26056","v":"Select"},{"$f":"Import!M26456","v":"Select"},{"$f":"Import!M26856","v":"Select"},{"$f":"Import!M27256","v":0},{"$f":"Import!M27656","v":0},{"$f":"Import!M28056","v":0},{"$f":"Import!M28456","v":0},{"$f":"Import!M28856","v":0}]
[306,{"$f":"Import!M26057","v":"Select"},{"$f":"Import!M26457","v":"Select"},{"$f":"Import!M26857","v":"Select"},{"$f":"Import!M27257","v":0},{"$f":"Import!M27657","v":0},{"$f":"Import!M28057","v":0},{"$f":"Import!M28457","v":0},{"$f":"Import!M28857","v":0}]
[307,{"$f":"Import!M26058","v":"Select"},{"$f":"Import!M26458","v":"Select"},{"$f":"Import!M26858","v":"Select"},{"$f":"Import!M27258","v":0},{"$f":"Import!M27658","v":0},{"$f":"Import!M28058","v":0},{"$f":"Import!M28458","v":0},{"$f":"Import!M28858","v":0}]
[308,{"$f":"Import!M26059","v":"Select"},{"$f":"Import!M26459","v":"Select"},{"$f":"Import!M26859","v":"Select"},{"$f":"Import!M27259","v":0},{"$f":"Import!M27659","v":0},{"$f":"Import!M28059","v":0},{"$f":"Import!M28459","v":0},{"$f":"Import!M28859","v":0}]
[309,{"$f":"Import!M26060","v":"Select"},{"$f":"Import!M26460","v":"Select"},{"$f":"Import!M26860","v":"Select"},{"$f":"Import!M27260","v":0},{"$f":"Import!M27660","v":0},{"$f":"Import!M28060","v":0},{"$f":"Import!M28460","v":0},{"$f":"Import!M28860","v":0}]
[310,{"$f":"Import!M26061","v":"Select"},{"$f":"Import!M26461","v":"Select"},{"$f":"Import!M26861","v":"Select"},{"$f":"Import!M27261","v":0},{"$f":"Import!M27661","v":0},{"$f":"Import!M28061","v":0},{"$f":"Import!M28461","v":0},{"$f":"Import!M28861","v":0}]
[311,{"$f":"Import!M26062","v":"Select"},{"$f":"Import!M26462","v":"Select"},{"$f":"Import!M26862","v":"Select"},{"$f":"Import!M27262","v":0},{"$f":"Import!M27662","v":0},{"$f":"Import!M28062","v":0},{"$f":"Import!M28462","v":0},{"$f":"Import!M28862","v":0}]
[312,{"$f":"Import!M26063","v":"Select"},{"$f":"Import!M26463","v":"Select"},{"$f":"Import!M26863","v":"Select"},{"$f":"Import!M27263","v":0},{"$f":"Import!M27663","v":0},{"$f":"Import!M28063","v":0},{"$f":"Import!M28463","v":0},{"$f":"Import!M28863","v":0}]
[313,{"$f":"Import!M26064","v":"Select"},{"$f":"Import!M26464","v":"Select"},{"$f":"Import!M26864","v":"Select"},{"$f":"Import!M27264","v":0},{"$f":"Import!M27664","v":0},{"$f":"Import!M28064","v":0},{"$f":"Import!M28464","v":0},{"$f":"Import!M28864","v":0}]
[314,{"$f":"Import!M26065","v":"Select"},{"$f":"Import!M26465","v":"Select"},{"$f":"Import!M26865","v":"Select"},{"$f":"Import!M27265","v":0},{"$f":"Import!M27665","v":0},{"$f":"Import!M28065","v":0},{"$f":"Import!M28465","v":0},{"$f":"Import!M28865","v":0}]
[315,{"$f":"Import!M26066","v":"Select"},{"$f":"Import!M26466","v":"Select"},{"$f":"Import!M26866","v":"Select"},{"$f":"Import!M27266","v":0},{"$f":"Import!M27666","v":0},{"$f":"Import!M28066","v":0},{"$f":"Import!M28466","v":0},{"$f":"Import!M28866","v":0}]
[316,{"$f":"Import!M26067","v":"Select"},{"$f":"Import!M26467","v":"Select"},{"$f":"Import!M26867","v":"Select"},{"$f":"Import!M27267","v":0},{"$f":"Import!M27667","v":0},{"$f":"Import!M28067","v":0},{"$f":"Import!M28467","v":0},{"$f":"Import!M28867","v":0}]
[317,{"$f":"Import!M26068","v":"Select"},{"$f":"Import!M26468","v":"Select"},{"$f":"Import!M26868","v":"Select"},{"$f":"Import!M27268","v":0},{"$f":"Import!M27668","v":0},{"$f":"Import!M28068","v":0},{"$f":"Import!M28468","v":0},{"$f":"Import!M28868","v":0}]
[318,{"$f":"Import!M26069","v":"Select"},{"$f":"Import!M26469","v":"Select"},{"$f":"Import!M26869","v":"Select"},{"$f":"Import!M27269","v":0},{"$f":"Import!M27669","v":0},{"$f":"Import!M28069","v":0},{"$f":"Import!M28469","v":0},{"$f":"Import!M28869","v":0}]
[319,{"$f":"Import!M26070","v":"Select"},{"$f":"Import!M26470","v":"Select"},{"$f":"Import!M26870","v":"Select"},{"$f":"Import!M27270","v":0},{"$f":"Import!M27670","v":0},{"$f":"Import!M28070","v":0},{"$f":"Import!M28470","v":0},{"$f":"Import!M28870","v":0}]
[320,{"$f":"Import!M26071","v":"Select"},{"$f":"Import!M26471","v":"Select"},{"$f":"Import!M26871","v":"Select"},{"$f":"Import!M27271","v":0},{"$f":"Import!M27671","v":0},{"$f":"Import!M28071","v":0},{"$f":"Import!M28471","v":0},{"$f":"Import!M28871","v":0}]
[321,{"$f":"Import!M26072","v":"Select"},{"$f":"Import!M26472","v":"Select"},{"$f":"Import!M26872","v":"Select"},{"$f":"Import!M27272","v":0},{"$f":"Import!M27672","v":0},{"$f":"Import!M28072","v":0},{"$f":"Import!M28472","v":0},{"$f":"Import!M28872","v":0}]
[322,{"$f":"Import!M26073","v":"Select"},{"$f":"Import!M26473","v":"Select"},{"$f":"Import!M26873","v":"Select"},{"$f":"Import!M27273","v":0},{"$f":"Import!M27673","v":0},{"$f":"Import!M28073","v":0},{"$f":"Import!M28473","v":0},{"$f":"Import!M28873","v":0}]
[{"$f":"A540+1","v":323},{"$f":"Import!M26074","v":"Select"},{"$f":"Import!M26474","v":"Select"},{"$f":"Import!M26874","v":"Select"},{"$f":"Import!M27274","v":0},{"$f":"Import!M27674","v":0},{"$f":"Import!M28074","v":0},{"$f":"Import!M28474","v":0},{"$f":"Import!M28874","v":0}]
[324,{"$f":"Import!M26075","v":"Select"},{"$f":"Import!M26475","v":"Select"},{"$f":"Import!M26875","v":"Select"},{"$f":"Import!M27275","v":0},{"$f":"Import!M27675","v":0},{"$f":"Import!M28075","v":0},{"$f":"Import!M28475","v":0},{"$f":"Import!M28875","v":0}]
[325,{"$f":"Import!M26076","v":"Select"},{"$f":"Import!M26476","v":"Select"},{"$f":"Import!M26876","v":"Select"},{"$f":"Import!M27276","v":0},{"$f":"Import!M27676","v":0},{"$f":"Import!M28076","v":0},{"$f":"Import!M28476","v":0},{"$f":"Import!M28876","v":0}]
[326,{"$f":"Import!M26077","v":"Select"},{"$f":"Import!M26477","v":"Select"},{"$f":"Import!M26877","v":"Select"},{"$f":"Import!M27277","v":0},{"$f":"Import!M27677","v":0},{"$f":"Import!M28077","v":0},{"$f":"Import!M28477","v":0},{"$f":"Import!M28877","v":0}]
[327,{"$f":"Import!M26078","v":"Select"},{"$f":"Import!M26478","v":"Select"},{"$f":"Import!M26878","v":"Select"},{"$f":"Import!M27278","v":0},{"$f":"Import!M27678","v":0},{"$f":"Import!M28078","v":0},{"$f":"Import!M28478","v":0},{"$f":"Import!M28878","v":0}]
[328,{"$f":"Import!M26079","v":"Select"},{"$f":"Import!M26479","v":"Select"},{"$f":"Import!M26879","v":"Select"},{"$f":"Import!M27279","v":0},{"$f":"Import!M27679","v":0},{"$f":"Import!M28079","v":0},{"$f":"Import!M28479","v":0},{"$f":"Import!M28879","v":0}]
[329,{"$f":"Import!M26080","v":"Select"},{"$f":"Import!M26480","v":"Select"},{"$f":"Import!M26880","v":"Select"},{"$f":"Import!M27280","v":0},{"$f":"Import!M27680","v":0},{"$f":"Import!M28080","v":0},{"$f":"Import!M28480","v":0},{"$f":"Import!M28880","v":0}]
[330,{"$f":"Import!M26081","v":"Select"},{"$f":"Import!M26481","v":"Select"},{"$f":"Import!M26881","v":"Select"},{"$f":"Import!M27281","v":0},{"$f":"Import!M27681","v":0},{"$f":"Import!M28081","v":0},{"$f":"Import!M28481","v":0},{"$f":"Import!M28881","v":0}]
[331,{"$f":"Import!M26082","v":"Select"},{"$f":"Import!M26482","v":"Select"},{"$f":"Import!M26882","v":"Select"},{"$f":"Import!M27282","v":0},{"$f":"Import!M27682","v":0},{"$f":"Import!M28082","v":0},{"$f":"Import!M28482","v":0},{"$f":"Import!M28882","v":0}]
[332,{"$f":"Import!M26083","v":"Select"},{"$f":"Import!M26483","v":"Select"},{"$f":"Import!M26883","v":"Select"},{"$f":"Import!M27283","v":0},{"$f":"Import!M27683","v":0},{"$f":"Import!M28083","v":0},{"$f":"Import!M28483","v":0},{"$f":"Import!M28883","v":0}]
[333,{"$f":"Import!M26084","v":"Select"},{"$f":"Import!M26484","v":"Select"},{"$f":"Import!M26884","v":"Select"},{"$f":"Import!M27284","v":0},{"$f":"Import!M27684","v":0},{"$f":"Import!M28084","v":0},{"$f":"Import!M28484","v":0},{"$f":"Import!M28884","v":0}]
[334,{"$f":"Import!M26085","v":"Select"},{"$f":"Import!M26485","v":"Select"},{"$f":"Import!M26885","v":"Select"},{"$f":"Import!M27285","v":0},{"$f":"Import!M27685","v":0},{"$f":"Import!M28085","v":0},{"$f":"Import!M28485","v":0},{"$f":"Import!M28885","v":0}]
[335,{"$f":"Import!M26086","v":"Select"},{"$f":"Import!M26486","v":"Select"},{"$f":"Import!M26886","v":"Select"},{"$f":"Import!M27286","v":0},{"$f":"Import!M27686","v":0},{"$f":"Import!M28086","v":0},{"$f":"Import!M28486","v":0},{"$f":"Import!M28886","v":0}]
[336,{"$f":"Import!M26087","v":"Select"},{"$f":"Import!M26487","v":"Select"},{"$f":"Import!M26887","v":"Select"},{"$f":"Import!M27287","v":0},{"$f":"Import!M27687","v":0},{"$f":"Import!M28087","v":0},{"$f":"Import!M28487","v":0},{"$f":"Import!M28887","v":0}]
[337,{"$f":"Import!M26088","v":"Select"},{"$f":"Import!M26488","v":"Select"},{"$f":"Import!M26888","v":"Select"},{"$f":"Import!M27288","v":0},{"$f":"Import!M27688","v":0},{"$f":"Import!M28088","v":0},{"$f":"Import!M28488","v":0},{"$f":"Import!M28888","v":0}]
[338,{"$f":"Import!M26089","v":"Select"},{"$f":"Import!M26489","v":"Select"},{"$f":"Import!M26889","v":"Select"},{"$f":"Import!M27289","v":0},{"$f":"Import!M27689","v":0},{"$f":"Import!M28089","v":0},{"$f":"Import!M28489","v":0},{"$f":"Import!M28889","v":0}]
[339,{"$f":"Import!M26090","v":"Select"},{"$f":"Import!M26490","v":"Select"},{"$f":"Import!M26890","v":"Select"},{"$f":"Import!M27290","v":0},{"$f":"Import!M27690","v":0},{"$f":"Import!M28090","v":0},{"$f":"Import!M28490","v":0},{"$f":"Import!M28890","v":0}]
[340,{"$f":"Import!M26091","v":"Select"},{"$f":"Import!M26491","v":"Select"},{"$f":"Import!M26891","v":"Select"},{"$f":"Import!M27291","v":0},{"$f":"Import!M27691","v":0},{"$f":"Import!M28091","v":0},{"$f":"Import!M28491","v":0},{"$f":"Import!M28891","v":0}]
[341,{"$f":"Import!M26092","v":"Select"},{"$f":"Import!M26492","v":"Select"},{"$f":"Import!M26892","v":"Select"},{"$f":"Import!M27292","v":0},{"$f":"Import!M27692","v":0},{"$f":"Import!M28092","v":0},{"$f":"Import!M28492","v":0},{"$f":"Import!M28892","v":0}]
[342,{"$f":"Import!M26093","v":"Select"},{"$f":"Import!M26493","v":"Select"},{"$f":"Import!M26893","v":"Select"},{"$f":"Import!M27293","v":0},{"$f":"Import!M27693","v":0},{"$f":"Import!M28093","v":0},{"$f":"Import!M28493","v":0},{"$f":"Import!M28893","v":0}]
[343,{"$f":"Import!M26094","v":"Select"},{"$f":"Import!M26494","v":"Select"},{"$f":"Import!M26894","v":"Select"},{"$f":"Import!M27294","v":0},{"$f":"Import!M27694","v":0},{"$f":"Import!M28094","v":0},{"$f":"Import!M28494","v":0},{"$f":"Import!M28894","v":0}]
[344,{"$f":"Import!M26095","v":"Select"},{"$f":"Import!M26495","v":"Select"},{"$f":"Import!M26895","v":"Select"},{"$f":"Import!M27295","v":0},{"$f":"Import!M27695","v":0},{"$f":"Import!M28095","v":0},{"$f":"Import!M28495","v":0},{"$f":"Import!M28895","v":0}]
[345,{"$f":"Import!M26096","v":"Select"},{"$f":"Import!M26496","v":"Select"},{"$f":"Import!M26896","v":"Select"},{"$f":"Import!M27296","v":0},{"$f":"Import!M27696","v":0},{"$f":"Import!M28096","v":0},{"$f":"Import!M28496","v":0},{"$f":"Import!M28896","v":0}]
[346,{"$f":"Import!M26097","v":"Select"},{"$f":"Import!M26497","v":"Select"},{"$f":"Import!M26897","v":"Select"},{"$f":"Import!M27297","v":0},{"$f":"Import!M27697","v":0},{"$f":"Import!M28097","v":0},{"$f":"Import!M28497","v":0},{"$f":"Import!M28897","v":0}]
[347,{"$f":"Import!M26098","v":"Select"},{"$f":"Import!M26498","v":"Select"},{"$f":"Import!M26898","v":"Select"},{"$f":"Import!M27298","v":0},{"$f":"Import!M27698","v":0},{"$f":"Import!M28098","v":0},{"$f":"Import!M28498","v":0},{"$f":"Import!M28898","v":0}]
[348,{"$f":"Import!M26099","v":"Select"},{"$f":"Import!M26499","v":"Select"},{"$f":"Import!M26899","v":"Select"},{"$f":"Import!M27299","v":0},{"$f":"Import!M27699","v":0},{"$f":"Import!M28099","v":0},{"$f":"Import!M28499","v":0},{"$f":"Import!M28899","v":0}]
[349,{"$f":"Import!M26100","v":"Select"},{"$f":"Import!M26500","v":"Select"},{"$f":"Import!M26900","v":"Select"},{"$f":"Import!M27300","v":0},{"$f":"Import!M27700","v":0},{"$f":"Import!M28100","v":0},{"$f":"Import!M28500","v":0},{"$f":"Import!M28900","v":0}]
[350,{"$f":"Import!M26101","v":"Select"},{"$f":"Import!M26501","v":"Select"},{"$f":"Import!M26901","v":"Select"},{"$f":"Import!M27301","v":0},{"$f":"Import!M27701","v":0},{"$f":"Import!M28101","v":0},{"$f":"Import!M28501","v":0},{"$f":"Import!M28901","v":0}]
[351,{"$f":"Import!M26102","v":"Select"},{"$f":"Import!M26502","v":"Select"},{"$f":"Import!M26902","v":"Select"},{"$f":"Import!M27302","v":0},{"$f":"Import!M27702","v":0},{"$f":"Import!M28102","v":0},{"$f":"Import!M28502","v":0},{"$f":"Import!M28902","v":0}]
[352,{"$f":"Import!M26103","v":"Select"},{"$f":"Import!M26503","v":"Select"},{"$f":"Import!M26903","v":"Select"},{"$f":"Import!M27303","v":0},{"$f":"Import!M27703","v":0},{"$f":"Import!M28103","v":0},{"$f":"Import!M28503","v":0},{"$f":"Import!M28903","v":0}]
[353,{"$f":"Import!M26104","v":"Select"},{"$f":"Import!M26504","v":"Select"},{"$f":"Import!M26904","v":"Select"},{"$f":"Import!M27304","v":0},{"$f":"Import!M27704","v":0},{"$f":"Import!M28104","v":0},{"$f":"Import!M28504","v":0},{"$f":"Import!M28904","v":0}]
[354,{"$f":"Import!M26105","v":"Select"},{"$f":"Import!M26505","v":"Select"},{"$f":"Import!M26905","v":"Select"},{"$f":"Import!M27305","v":0},{"$f":"Import!M27705","v":0},{"$f":"Import!M28105","v":0},{"$f":"Import!M28505","v":0},{"$f":"Import!M28905","v":0}]
[355,{"$f":"Import!M26106","v":"Select"},{"$f":"Import!M26506","v":"Select"},{"$f":"Import!M26906","v":"Select"},{"$f":"Import!M27306","v":0},{"$f":"Import!M27706","v":0},{"$f":"Import!M28106","v":0},{"$f":"Import!M28506","v":0},{"$f":"Import!M28906","v":0}]
[356,{"$f":"Import!M26107","v":"Select"},{"$f":"Import!M26507","v":"Select"},{"$f":"Import!M26907","v":"Select"},{"$f":"Import!M27307","v":0},{"$f":"Import!M27707","v":0},{"$f":"Import!M28107","v":0},{"$f":"Import!M28507","v":0},{"$f":"Import!M28907","v":0}]
[357,{"$f":"Import!M26108","v":"Select"},{"$f":"Import!M26508","v":"Select"},{"$f":"Import!M26908","v":"Select"},{"$f":"Import!M27308","v":0},{"$f":"Import!M27708","v":0},{"$f":"Import!M28108","v":0},{"$f":"Import!M28508","v":0},{"$f":"Import!M28908","v":0}]
[358,{"$f":"Import!M26109","v":"Select"},{"$f":"Import!M26509","v":"Select"},{"$f":"Import!M26909","v":"Select"},{"$f":"Import!M27309","v":0},{"$f":"Import!M27709","v":0},{"$f":"Import!M28109","v":0},{"$f":"Import!M28509","v":0},{"$f":"Import!M28909","v":0}]
[359,{"$f":"Import!M26110","v":"Select"},{"$f":"Import!M26510","v":"Select"},{"$f":"Import!M26910","v":"Select"},{"$f":"Import!M27310","v":0},{"$f":"Import!M27710","v":0},{"$f":"Import!M28110","v":0},{"$f":"Import!M28510","v":0},{"$f":"Import!M28910","v":0}]
[360,{"$f":"Import!M26111","v":"Select"},{"$f":"Import!M26511","v":"Select"},{"$f":"Import!M26911","v":"Select"},{"$f":"Import!M27311","v":0},{"$f":"Import!M27711","v":0},{"$f":"Import!M28111","v":0},{"$f":"Import!M28511","v":0},{"$f":"Import!M28911","v":0}]
[361,{"$f":"Import!M26112","v":"Select"},{"$f":"Import!M26512","v":"Select"},{"$f":"Import!M26912","v":"Select"},{"$f":"Import!M27312","v":0},{"$f":"Import!M27712","v":0},{"$f":"Import!M28112","v":0},{"$f":"Import!M28512","v":0},{"$f":"Import!M28912","v":0}]
[362,{"$f":"Import!M26113","v":"Select"},{"$f":"Import!M26513","v":"Select"},{"$f":"Import!M26913","v":"Select"},{"$f":"Import!M27313","v":0},{"$f":"Import!M27713","v":0},{"$f":"Import!M28113","v":0},{"$f":"Import!M28513","v":0},{"$f":"Import!M28913","v":0}]
[363,{"$f":"Import!M26114","v":"Select"},{"$f":"Import!M26514","v":"Select"},{"$f":"Import!M26914","v":"Select"},{"$f":"Import!M27314","v":0},{"$f":"Import!M27714","v":0},{"$f":"Import!M28114","v":0},{"$f":"Import!M28514","v":0},{"$f":"Import!M28914","v":0}]
[364,{"$f":"Import!M26115","v":"Select"},{"$f":"Import!M26515","v":"Select"},{"$f":"Import!M26915","v":"Select"},{"$f":"Import!M27315","v":0},{"$f":"Import!M27715","v":0},{"$f":"Import!M28115","v":0},{"$f":"Import!M28515","v":0},{"$f":"Import!M28915","v":0}]
[365,{"$f":"Import!M26116","v":"Select"},{"$f":"Import!M26516","v":"Select"},{"$f":"Import!M26916","v":"Select"},{"$f":"Import!M27316","v":0},{"$f":"Import!M27716","v":0},{"$f":"Import!M28116","v":0},{"$f":"Import!M28516","v":0},{"$f":"Import!M28916","v":0}]
[366,{"$f":"Import!M26117","v":"Select"},{"$f":"Import!M26517","v":"Select"},{"$f":"Import!M26917","v":"Select"},{"$f":"Import!M27317","v":0},{"$f":"Import!M27717","v":0},{"$f":"Import!M28117","v":0},{"$f":"Import!M28517","v":0},{"$f":"Import!M28917","v":0}]
[367,{"$f":"Import!M26118","v":"Select"},{"$f":"Import!M26518","v":"Select"},{"$f":"Import!M26918","v":"Select"},{"$f":"Import!M27318","v":0},{"$f":"Import!M27718","v":0},{"$f":"Import!M28118","v":0},{"$f":"Import!M28518","v":0},{"$f":"Import!M28918","v":0}]
[368,{"$f":"Import!M26119","v":"Select"},{"$f":"Import!M26519","v":"Select"},{"$f":"Import!M26919","v":"Select"},{"$f":"Import!M27319","v":0},{"$f":"Import!M27719","v":0},{"$f":"Import!M28119","v":0},{"$f":"Import!M28519","v":0},{"$f":"Import!M28919","v":0}]
[369,{"$f":"Import!M26120","v":"Select"},{"$f":"Import!M26520","v":"Select"},{"$f":"Import!M26920","v":"Select"},{"$f":"Import!M27320","v":0},{"$f":"Import!M27720","v":0},{"$f":"Import!M28120","v":0},{"$f":"Import!M28520","v":0},{"$f":"Import!M28920","v":0}]
[370,{"$f":"Import!M26121","v":"Select"},{"$f":"Import!M26521","v":"Select"},{"$f":"Import!M26921","v":"Select"},{"$f":"Import!M27321","v":0},{"$f":"Import!M27721","v":0},{"$f":"Import!M28121","v":0},{"$f":"Import!M28521","v":0},{"$f":"Import!M28921","v":0}]
[371,{"$f":"Import!M26122","v":"Select"},{"$f":"Import!M26522","v":"Select"},{"$f":"Import!M26922","v":"Select"},{"$f":"Import!M27322","v":0},{"$f":"Import!M27722","v":0},{"$f":"Import!M28122","v":0},{"$f":"Import!M28522","v":0},{"$f":"Import!M28922","v":0}]
[372,{"$f":"Import!M26123","v":"Select"},{"$f":"Import!M26523","v":"Select"},{"$f":"Import!M26923","v":"Select"},{"$f":"Import!M27323","v":0},{"$f":"Import!M27723","v":0},{"$f":"Import!M28123","v":0},{"$f":"Import!M28523","v":0},{"$f":"Import!M28923","v":0}]
[373,{"$f":"Import!M26124","v":"Select"},{"$f":"Import!M26524","v":"Select"},{"$f":"Import!M26924","v":"Select"},{"$f":"Import!M27324","v":0},{"$f":"Import!M27724","v":0},{"$f":"Import!M28124","v":0},{"$f":"Import!M28524","v":0},{"$f":"Import!M28924","v":0}]
[374,{"$f":"Import!M26125","v":"Select"},{"$f":"Import!M26525","v":"Select"},{"$f":"Import!M26925","v":"Select"},{"$f":"Import!M27325","v":0},{"$f":"Import!M27725","v":0},{"$f":"Import!M28125","v":0},{"$f":"Import!M28525","v":0},{"$f":"Import!M28925","v":0}]
[375,{"$f":"Import!M26126","v":"Select"},{"$f":"Import!M26526","v":"Select"},{"$f":"Import!M26926","v":"Select"},{"$f":"Import!M27326","v":0},{"$f":"Import!M27726","v":0},{"$f":"Import!M28126","v":0},{"$f":"Import!M28526","v":0},{"$f":"Import!M28926","v":0}]
[376,{"$f":"Import!M26127","v":"Select"},{"$f":"Import!M26527","v":"Select"},{"$f":"Import!M26927","v":"Select"},{"$f":"Import!M27327","v":0},{"$f":"Import!M27727","v":0},{"$f":"Import!M28127","v":0},{"$f":"Import!M28527","v":0},{"$f":"Import!M28927","v":0}]
[377,{"$f":"Import!M26128","v":"Select"},{"$f":"Import!M26528","v":"Select"},{"$f":"Import!M26928","v":"Select"},{"$f":"Import!M27328","v":0},{"$f":"Import!M27728","v":0},{"$f":"Import!M28128","v":0},{"$f":"Import!M28528","v":0},{"$f":"Import!M28928","v":0}]
[378,{"$f":"Import!M26129","v":"Select"},{"$f":"Import!M26529","v":"Select"},{"$f":"Import!M26929","v":"Select"},{"$f":"Import!M27329","v":0},{"$f":"Import!M27729","v":0},{"$f":"Import!M28129","v":0},{"$f":"Import!M28529","v":0},{"$f":"Import!M28929","v":0}]
[379,{"$f":"Import!M26130","v":"Select"},{"$f":"Import!M26530","v":"Select"},{"$f":"Import!M26930","v":"Select"},{"$f":"Import!M27330","v":0},{"$f":"Import!M27730","v":0},{"$f":"Import!M28130","v":0},{"$f":"Import!M28530","v":0},{"$f":"Import!M28930","v":0}]
[380,{"$f":"Import!M26131","v":"Select"},{"$f":"Import!M26531","v":"Select"},{"$f":"Import!M26931","v":"Select"},{"$f":"Import!M27331","v":0},{"$f":"Import!M27731","v":0},{"$f":"Import!M28131","v":0},{"$f":"Import!M28531","v":0},{"$f":"Import!M28931","v":0}]
[381,{"$f":"Import!M26132","v":"Select"},{"$f":"Import!M26532","v":"Select"},{"$f":"Import!M26932","v":"Select"},{"$f":"Import!M27332","v":0},{"$f":"Import!M27732","v":0},{"$f":"Import!M28132","v":0},{"$f":"Import!M28532","v":0},{"$f":"Import!M28932","v":0}]
[382,{"$f":"Import!M26133","v":"Select"},{"$f":"Import!M26533","v":"Select"},{"$f":"Import!M26933","v":"Select"},{"$f":"Import!M27333","v":0},{"$f":"Import!M27733","v":0},{"$f":"Import!M28133","v":0},{"$f":"Import!M28533","v":0},{"$f":"Import!M28933","v":0}]
[383,{"$f":"Import!M26134","v":"Select"},{"$f":"Import!M26534","v":"Select"},{"$f":"Import!M26934","v":"Select"},{"$f":"Import!M27334","v":0},{"$f":"Import!M27734","v":0},{"$f":"Import!M28134","v":0},{"$f":"Import!M28534","v":0},{"$f":"Import!M28934","v":0}]
[384,{"$f":"Import!M26135","v":"Select"},{"$f":"Import!M26535","v":"Select"},{"$f":"Import!M26935","v":"Select"},{"$f":"Import!M27335","v":0},{"$f":"Import!M27735","v":0},{"$f":"Import!M28135","v":0},{"$f":"Import!M28535","v":0},{"$f":"Import!M28935","v":0}]
[385,{"$f":"Import!M26136","v":"Select"},{"$f":"Import!M26536","v":"Select"},{"$f":"Import!M26936","v":"Select"},{"$f":"Import!M27336","v":0},{"$f":"Import!M27736","v":0},{"$f":"Import!M28136","v":0},{"$f":"Import!M28536","v":0},{"$f":"Import!M28936","v":0}]
[386,{"$f":"Import!M26137","v":"Select"},{"$f":"Import!M26537","v":"Select"},{"$f":"Import!M26937","v":"Select"},{"$f":"Import!M27337","v":0},{"$f":"Import!M27737","v":0},{"$f":"Import!M28137","v":0},{"$f":"Import!M28537","v":0},{"$f":"Import!M28937","v":0}]
[{"$f":"A604+1","v":387},{"$f":"Import!M26138","v":"Select"},{"$f":"Import!M26538","v":"Select"},{"$f":"Import!M26938","v":"Select"},{"$f":"Import!M27338","v":0},{"$f":"Import!M27738","v":0},{"$f":"Import!M28138","v":0},{"$f":"Import!M28538","v":0},{"$f":"Import!M28938","v":0}]
[388,{"$f":"Import!M26139","v":"Select"},{"$f":"Import!M26539","v":"Select"},{"$f":"Import!M26939","v":"Select"},{"$f":"Import!M27339","v":0},{"$f":"Import!M27739","v":0},{"$f":"Import!M28139","v":0},{"$f":"Import!M28539","v":0},{"$f":"Import!M28939","v":0}]
[389,{"$f":"Import!M26140","v":"Select"},{"$f":"Import!M26540","v":"Select"},{"$f":"Import!M26940","v":"Select"},{"$f":"Import!M27340","v":0},{"$f":"Import!M27740","v":0},{"$f":"Import!M28140","v":0},{"$f":"Import!M28540","v":0},{"$f":"Import!M28940","v":0}]
[390,{"$f":"Import!M26141","v":"Select"},{"$f":"Import!M26541","v":"Select"},{"$f":"Import!M26941","v":"Select"},{"$f":"Import!M27341","v":0},{"$f":"Import!M27741","v":0},{"$f":"Import!M28141","v":0},{"$f":"Import!M28541","v":0},{"$f":"Import!M28941","v":0}]
[391,{"$f":"Import!M26142","v":"Select"},{"$f":"Import!M26542","v":"Select"},{"$f":"Import!M26942","v":"Select"},{"$f":"Import!M27342","v":0},{"$f":"Import!M27742","v":0},{"$f":"Import!M28142","v":0},{"$f":"Import!M28542","v":0},{"$f":"Import!M28942","v":0}]
[392,{"$f":"Import!M26143","v":"Select"},{"$f":"Import!M26543","v":"Select"},{"$f":"Import!M26943","v":"Select"},{"$f":"Import!M27343","v":0},{"$f":"Import!M27743","v":0},{"$f":"Import!M28143","v":0},{"$f":"Import!M28543","v":0},{"$f":"Import!M28943","v":0}]
[393,{"$f":"Import!M26144","v":"Select"},{"$f":"Import!M26544","v":"Select"},{"$f":"Import!M26944","v":"Select"},{"$f":"Import!M27344","v":0},{"$f":"Import!M27744","v":0},{"$f":"Import!M28144","v":0},{"$f":"Import!M28544","v":0},{"$f":"Import!M28944","v":0}]
[394,{"$f":"Import!M26145","v":"Select"},{"$f":"Import!M26545","v":"Select"},{"$f":"Import!M26945","v":"Select"},{"$f":"Import!M27345","v":0},{"$f":"Import!M27745","v":0},{"$f":"Import!M28145","v":0},{"$f":"Import!M28545","v":0},{"$f":"Import!M28945","v":0}]
[395,{"$f":"Import!M26146","v":"Select"},{"$f":"Import!M26546","v":"Select"},{"$f":"Import!M26946","v":"Select"},{"$f":"Import!M27346","v":0},{"$f":"Import!M27746","v":0},{"$f":"Import!M28146","v":0},{"$f":"Import!M28546","v":0},{"$f":"Import!M28946","v":0}]
[396,{"$f":"Import!M26147","v":"Select"},{"$f":"Import!M26547","v":"Select"},{"$f":"Import!M26947","v":"Select"},{"$f":"Import!M27347","v":0},{"$f":"Import!M27747","v":0},{"$f":"Import!M28147","v":0},{"$f":"Import!M28547","v":0},{"$f":"Import!M28947","v":0}]
[397,{"$f":"Import!M26148","v":"Select"},{"$f":"Import!M26548","v":"Select"},{"$f":"Import!M26948","v":"Select"},{"$f":"Import!M27348","v":0},{"$f":"Import!M27748","v":0},{"$f":"Import!M28148","v":0},{"$f":"Import!M28548","v":0},{"$f":"Import!M28948","v":0}]
[398,{"$f":"Import!M26149","v":"Select"},{"$f":"Import!M26549","v":"Select"},{"$f":"Import!M26949","v":"Select"},{"$f":"Import!M27349","v":0},{"$f":"Import!M27749","v":0},{"$f":"Import!M28149","v":0},{"$f":"Import!M28549","v":0},{"$f":"Import!M28949","v":0}]
[399,{"$f":"Import!M26150","v":"Select"},{"$f":"Import!M26550","v":"Select"},{"$f":"Import!M26950","v":"Select"},{"$f":"Import!M27350","v":0},{"$f":"Import!M27750","v":0},{"$f":"Import!M28150","v":0},{"$f":"Import!M28550","v":0},{"$f":"Import!M28950","v":0}]
[400,{"$f":"Import!M26151","v":"Select"},{"$f":"Import!M26551","v":"Select"},{"$f":"Import!M26951","v":"Select"},{"$f":"Import!M27351","v":0},{"$f":"Import!M27751","v":0},{"$f":"Import!M28151","v":0},{"$f":"Import!M28551","v":0},{"$f":"Import!M28951","v":0}]
[]
[null,"Total Bonds and Debentures",null,null,{"$f":"SUM(E219:E618)","v":0},{"$f":"SUM(F219:F618)","v":0},{"$f":"IFERROR(SUMPRODUCT(G219:G618,$F219:$F618)/SUM($F219:$F618),0)","v":0},{"$f":"IFERROR(SUMPRODUCT(H219:H618,$F219:$F618)/SUM($F219:$F618),0)","v":0}]
[]
[null,"- ADDITIONAL INFORMATION ON SOVEREIGN DEBT EXPOSURES"]
[]
[null,null,"Enter # of Asset Types",{"$f":"Import!M28952","v":0}]
[null,null,null,null,null,{"$f":"YEAR($C$3)","v":2023}]
[null,null,"Country","Currency","BSCR Rating","Fair Value","Comments"]
[null,1,{"$f":"Import!M28953","v":"Select"},{"$f":"Import!M29153","v":"Select"},{"$f":"Import!M29353","v":"Select"},{"$f":"Import!M29553","v":0},{"$f":"Import!M29753","v":0}]
[null,{"$f":"B627+1","v":2},{"$f":"Import!M28954","v":"Select"},{"$f":"Import!M29154","v":"Select"},{"$f":"Import!M29354","v":"Select"},{"$f":"Import!M29554","v":0},{"$f":"Import!M29754","v":0}]
[null,{"$f":"B628+1","v":3},{"$f":"Import!M28955","v":"Select"},{"$f":"Import!M29155","v":"Select"},{"$f":"Import!M29355","v":"Select"},{"$f":"Import!M29555","v":0},{"$f":"Import!M29755","v":0}]
[null,4,{"$f":"Import!M28956","v":"Select"},{"$f":"Import!M29156","v":"Select"},{"$f":"Import!M29356","v":"Select"},{"$f":"Import!M29556","v":0},{"$f":"Import!M29756","v":0}]
[null,5,{"$f":"Import!M28957","v":"Select"},{"$f":"Import!M29157","v":"Select"},{"$f":"Import!M29357","v":"Select"},{"$f":"Import!M29557","v":0},{"$f":"Import!M29757","v":0}]
[null,6,{"$f":"Import!M28958","v":"Select"},{"$f":"Import!M29158","v":"Select"},{"$f":"Import!M29358","v":"Select"},{"$f":"Import!M29558","v":0},{"$f":"Import!M29758","v":0}]
[null,7,{"$f":"Import!M28959","v":"Select"},{"$f":"Import!M29159","v":"Select"},{"$f":"Import!M29359","v":"Select"},{"$f":"Import!M29559","v":0},{"$f":"Import!M29759","v":0}]
[null,8,{"$f":"Import!M28960","v":"Select"},{"$f":"Import!M29160","v":"Select"},{"$f":"Import!M29360","v":"Select"},{"$f":"Import!M29560","v":0},{"$f":"Import!M29760","v":0}]
[null,9,{"$f":"Import!M28961","v":"Select"},{"$f":"Import!M29161","v":"Select"},{"$f":"Import!M29361","v":"Select"},{"$f":"Import!M29561","v":0},{"$f":"Import!M29761","v":0}]
[null,10,{"$f":"Import!M28962","v":"Select"},{"$f":"Import!M29162","v":"Select"},{"$f":"Import!M29362","v":"Select"},{"$f":"Import!M29562","v":0},{"$f":"Import!M29762","v":0}]
[null,11,{"$f":"Import!M28963","v":"Select"},{"$f":"Import!M29163","v":"Select"},{"$f":"Import!M29363","v":"Select"},{"$f":"Import!M29563","v":0},{"$f":"Import!M29763","v":0}]
[null,12,{"$f":"Import!M28964","v":"Select"},{"$f":"Import!M29164","v":"Select"},{"$f":"Import!M29364","v":"Select"},{"$f":"Import!M29564","v":0},{"$f":"Import!M29764","v":0}]
[null,13,{"$f":"Import!M28965","v":"Select"},{"$f":"Import!M29165","v":"Select"},{"$f":"Import!M29365","v":"Select"},{"$f":"Import!M29565","v":0},{"$f":"Import!M29765","v":0}]
[null,14,{"$f":"Import!M28966","v":"Select"},{"$f":"Import!M29166","v":"Select"},{"$f":"Import!M29366","v":"Select"},{"$f":"Import!M29566","v":0},{"$f":"Import!M29766","v":0}]
[null,15,{"$f":"Import!M28967","v":"Select"},{"$f":"Import!M29167","v":"Select"},{"$f":"Import!M29367","v":"Select"},{"$f":"Import!M29567","v":0},{"$f":"Import!M29767","v":0}]
[null,16,{"$f":"Import!M28968","v":"Select"},{"$f":"Import!M29168","v":"Select"},{"$f":"Import!M29368","v":"Select"},{"$f":"Import!M29568","v":0},{"$f":"Import!M29768","v":0}]
[null,17,{"$f":"Import!M28969","v":"Select"},{"$f":"Import!M29169","v":"Select"},{"$f":"Import!M29369","v":"Select"},{"$f":"Import!M29569","v":0},{"$f":"Import!M29769","v":0}]
[null,18,{"$f":"Import!M28970","v":"Select"},{"$f":"Import!M29170","v":"Select"},{"$f":"Import!M29370","v":"Select"},{"$f":"Import!M29570","v":0},{"$f":"Import!M29770","v":0}]
[null,19,{"$f":"Import!M28971","v":"Select"},{"$f":"Import!M29171","v":"Select"},{"$f":"Import!M29371","v":"Select"},{"$f":"Import!M29571","v":0},{"$f":"Import!M29771","v":0}]
[null,20,{"$f":"Import!M28972","v":"Select"},{"$f":"Import!M29172","v":"Select"},{"$f":"Import!M29372","v":"Select"},{"$f":"Import!M29572","v":0},{"$f":"Import!M29772","v":0}]
[null,21,{"$f":"Import!M28973","v":"Select"},{"$f":"Import!M29173","v":"Select"},{"$f":"Import!M29373","v":"Select"},{"$f":"Import!M29573","v":0},{"$f":"Import!M29773","v":0}]
[null,22,{"$f":"Import!M28974","v":"Select"},{"$f":"Import!M29174","v":"Select"},{"$f":"Import!M29374","v":"Select"},{"$f":"Import!M29574","v":0},{"$f":"Import!M29774","v":0}]
[null,23,{"$f":"Import!M28975","v":"Select"},{"$f":"Import!M29175","v":"Select"},{"$f":"Import!M29375","v":"Select"},{"$f":"Import!M29575","v":0},{"$f":"Import!M29775","v":0}]
[null,24,{"$f":"Import!M28976","v":"Select"},{"$f":"Import!M29176","v":"Select"},{"$f":"Import!M29376","v":"Select"},{"$f":"Import!M29576","v":0},{"$f":"Import!M29776","v":0}]
[null,25,{"$f":"Import!M28977","v":"Select"},{"$f":"Import!M29177","v":"Select"},{"$f":"Import!M29377","v":"Select"},{"$f":"Import!M29577","v":0},{"$f":"Import!M29777","v":0}]
[null,26,{"$f":"Import!M28978","v":"Select"},{"$f":"Import!M29178","v":"Select"},{"$f":"Import!M29378","v":"Select"},{"$f":"Import!M29578","v":0},{"$f":"Import!M29778","v":0}]
[null,27,{"$f":"Import!M28979","v":"Select"},{"$f":"Import!M29179","v":"Select"},{"$f":"Import!M29379","v":"Select"},{"$f":"Import!M29579","v":0},{"$f":"Import!M29779","v":0}]
[null,28,{"$f":"Import!M28980","v":"Select"},{"$f":"Import!M29180","v":"Select"},{"$f":"Import!M29380","v":"Select"},{"$f":"Import!M29580","v":0},{"$f":"Import!M29780","v":0}]
[null,29,{"$f":"Import!M28981","v":"Select"},{"$f":"Import!M29181","v":"Select"},{"$f":"Import!M29381","v":"Select"},{"$f":"Import!M29581","v":0},{"$f":"Import!M29781","v":0}]
[null,30,{"$f":"Import!M28982","v":"Select"},{"$f":"Import!M29182","v":"Select"},{"$f":"Import!M29382","v":"Select"},{"$f":"Import!M29582","v":0},{"$f":"Import!M29782","v":0}]
[null,31,{"$f":"Import!M28983","v":"Select"},{"$f":"Import!M29183","v":"Select"},{"$f":"Import!M29383","v":"Select"},{"$f":"Import!M29583","v":0},{"$f":"Import!M29783","v":0}]
[null,32,{"$f":"Import!M28984","v":"Select"},{"$f":"Import!M29184","v":"Select"},{"$f":"Import!M29384","v":"Select"},{"$f":"Import!M29584","v":0},{"$f":"Import!M29784","v":0}]
[null,33,{"$f":"Import!M28985","v":"Select"},{"$f":"Import!M29185","v":"Select"},{"$f":"Import!M29385","v":"Select"},{"$f":"Import!M29585","v":0},{"$f":"Import!M29785","v":0}]
[null,34,{"$f":"Import!M28986","v":"Select"},{"$f":"Import!M29186","v":"Select"},{"$f":"Import!M29386","v":"Select"},{"$f":"Import!M29586","v":0},{"$f":"Import!M29786","v":0}]
[null,35,{"$f":"Import!M28987","v":"Select"},{"$f":"Import!M29187","v":"Select"},{"$f":"Import!M29387","v":"Select"},{"$f":"Import!M29587","v":0},{"$f":"Import!M29787","v":0}]
[null,36,{"$f":"Import!M28988","v":"Select"},{"$f":"Import!M29188","v":"Select"},{"$f":"Import!M29388","v":"Select"},{"$f":"Import!M29588","v":0},{"$f":"Import!M29788","v":0}]
[null,37,{"$f":"Import!M28989","v":"Select"},{"$f":"Import!M29189","v":"Select"},{"$f":"Import!M29389","v":"Select"},{"$f":"Import!M29589","v":0},{"$f":"Import!M29789","v":0}]
[null,38,{"$f":"Import!M28990","v":"Select"},{"$f":"Import!M29190","v":"Select"},{"$f":"Import!M29390","v":"Select"},{"$f":"Import!M29590","v":0},{"$f":"Import!M29790","v":0}]
[null,39,{"$f":"Import!M28991","v":"Select"},{"$f":"Import!M29191","v":"Select"},{"$f":"Import!M29391","v":"Select"},{"$f":"Import!M29591","v":0},{"$f":"Import!M29791","v":0}]
[null,40,{"$f":"Import!M28992","v":"Select"},{"$f":"Import!M29192","v":"Select"},{"$f":"Import!M29392","v":"Select"},{"$f":"Import!M29592","v":0},{"$f":"Import!M29792","v":0}]
[null,41,{"$f":"Import!M28993","v":"Select"},{"$f":"Import!M29193","v":"Select"},{"$f":"Import!M29393","v":"Select"},{"$f":"Import!M29593","v":0},{"$f":"Import!M29793","v":0}]
[null,42,{"$f":"Import!M28994","v":"Select"},{"$f":"Import!M29194","v":"Select"},{"$f":"Import!M29394","v":"Select"},{"$f":"Import!M29594","v":0},{"$f":"Import!M29794","v":0}]
[null,43,{"$f":"Import!M28995","v":"Select"},{"$f":"Import!M29195","v":"Select"},{"$f":"Import!M29395","v":"Select"},{"$f":"Import!M29595","v":0},{"$f":"Import!M29795","v":0}]
[null,44,{"$f":"Import!M28996","v":"Select"},{"$f":"Import!M29196","v":"Select"},{"$f":"Import!M29396","v":"Select"},{"$f":"Import!M29596","v":0},{"$f":"Import!M29796","v":0}]
[null,45,{"$f":"Import!M28997","v":"Select"},{"$f":"Import!M29197","v":"Select"},{"$f":"Import!M29397","v":"Select"},{"$f":"Import!M29597","v":0},{"$f":"Import!M29797","v":0}]
[null,46,{"$f":"Import!M28998","v":"Select"},{"$f":"Import!M29198","v":"Select"},{"$f":"Import!M29398","v":"Select"},{"$f":"Import!M29598","v":0},{"$f":"Import!M29798","v":0}]
[null,47,{"$f":"Import!M28999","v":"Select"},{"$f":"Import!M29199","v":"Select"},{"$f":"Import!M29399","v":"Select"},{"$f":"Import!M29599","v":0},{"$f":"Import!M29799","v":0}]
[null,48,{"$f":"Import!M29000","v":"Select"},{"$f":"Import!M29200","v":"Select"},{"$f":"Import!M29400","v":"Select"},{"$f":"Import!M29600","v":0},{"$f":"Import!M29800","v":0}]
[null,49,{"$f":"Import!M29001","v":"Select"},{"$f":"Import!M29201","v":"Select"},{"$f":"Import!M29401","v":"Select"},{"$f":"Import!M29601","v":0},{"$f":"Import!M29801","v":0}]
[null,50,{"$f":"Import!M29002","v":"Select"},{"$f":"Import!M29202","v":"Select"},{"$f":"Import!M29402","v":"Select"},{"$f":"Import!M29602","v":0},{"$f":"Import!M29802","v":0}]
[null,51,{"$f":"Import!M29003","v":"Select"},{"$f":"Import!M29203","v":"Select"},{"$f":"Import!M29403","v":"Select"},{"$f":"Import!M29603","v":0},{"$f":"Import!M29803","v":0}]
[null,52,{"$f":"Import!M29004","v":"Select"},{"$f":"Import!M29204","v":"Select"},{"$f":"Import!M29404","v":"Select"},{"$f":"Import!M29604","v":0},{"$f":"Import!M29804","v":0}]
[null,53,{"$f":"Import!M29005","v":"Select"},{"$f":"Import!M29205","v":"Select"},{"$f":"Import!M29405","v":"Select"},{"$f":"Import!M29605","v":0},{"$f":"Import!M29805","v":0}]
[null,54,{"$f":"Import!M29006","v":"Select"},{"$f":"Import!M29206","v":"Select"},{"$f":"Import!M29406","v":"Select"},{"$f":"Import!M29606","v":0},{"$f":"Import!M29806","v":0}]
[null,55,{"$f":"Import!M29007","v":"Select"},{"$f":"Import!M29207","v":"Select"},{"$f":"Import!M29407","v":"Select"},{"$f":"Import!M29607","v":0},{"$f":"Import!M29807","v":0}]
[null,56,{"$f":"Import!M29008","v":"Select"},{"$f":"Import!M29208","v":"Select"},{"$f":"Import!M29408","v":"Select"},{"$f":"Import!M29608","v":0},{"$f":"Import!M29808","v":0}]
[null,57,{"$f":"Import!M29009","v":"Select"},{"$f":"Import!M29209","v":"Select"},{"$f":"Import!M29409","v":"Select"},{"$f":"Import!M29609","v":0},{"$f":"Import!M29809","v":0}]
[null,58,{"$f":"Import!M29010","v":"Select"},{"$f":"Import!M29210","v":"Select"},{"$f":"Import!M29410","v":"Select"},{"$f":"Import!M29610","v":0},{"$f":"Import!M29810","v":0}]
[null,59,{"$f":"Import!M29011","v":"Select"},{"$f":"Import!M29211","v":"Select"},{"$f":"Import!M29411","v":"Select"},{"$f":"Import!M29611","v":0},{"$f":"Import!M29811","v":0}]
[null,60,{"$f":"Import!M29012","v":"Select"},{"$f":"Import!M29212","v":"Select"},{"$f":"Import!M29412","v":"Select"},{"$f":"Import!M29612","v":0},{"$f":"Import!M29812","v":0}]
[null,61,{"$f":"Import!M29013","v":"Select"},{"$f":"Import!M29213","v":"Select"},{"$f":"Import!M29413","v":"Select"},{"$f":"Import!M29613","v":0},{"$f":"Import!M29813","v":0}]
[null,62,{"$f":"Import!M29014","v":"Select"},{"$f":"Import!M29214","v":"Select"},{"$f":"Import!M29414","v":"Select"},{"$f":"Import!M29614","v":0},{"$f":"Import!M29814","v":0}]
[null,63,{"$f":"Import!M29015","v":"Select"},{"$f":"Import!M29215","v":"Select"},{"$f":"Import!M29415","v":"Select"},{"$f":"Import!M29615","v":0},{"$f":"Import!M29815","v":0}]
[null,64,{"$f":"Import!M29016","v":"Select"},{"$f":"Import!M29216","v":"Select"},{"$f":"Import!M29416","v":"Select"},{"$f":"Import!M29616","v":0},{"$f":"Import!M29816","v":0}]
[null,65,{"$f":"Import!M29017","v":"Select"},{"$f":"Import!M29217","v":"Select"},{"$f":"Import!M29417","v":"Select"},{"$f":"Import!M29617","v":0},{"$f":"Import!M29817","v":0}]
[null,66,{"$f":"Import!M29018","v":"Select"},{"$f":"Import!M29218","v":"Select"},{"$f":"Import!M29418","v":"Select"},{"$f":"Import!M29618","v":0},{"$f":"Import!M29818","v":0}]
[null,{"$f":"B692+1","v":67},{"$f":"Import!M29019","v":"Select"},{"$f":"Import!M29219","v":"Select"},{"$f":"Import!M29419","v":"Select"},{"$f":"Import!M29619","v":0},{"$f":"Import!M29819","v":0}]
[null,68,{"$f":"Import!M29020","v":"Select"},{"$f":"Import!M29220","v":"Select"},{"$f":"Import!M29420","v":"Select"},{"$f":"Import!M29620","v":0},{"$f":"Import!M29820","v":0}]
[null,69,{"$f":"Import!M29021","v":"Select"},{"$f":"Import!M29221","v":"Select"},{"$f":"Import!M29421","v":"Select"},{"$f":"Import!M29621","v":0},{"$f":"Import!M29821","v":0}]
[null,70,{"$f":"Import!M29022","v":"Select"},{"$f":"Import!M29222","v":"Select"},{"$f":"Import!M29422","v":"Select"},{"$f":"Import!M29622","v":0},{"$f":"Import!M29822","v":0}]
[null,71,{"$f":"Import!M29023","v":"Select"},{"$f":"Import!M29223","v":"Select"},{"$f":"Import!M29423","v":"Select"},{"$f":"Import!M29623","v":0},{"$f":"Import!M29823","v":0}]
[null,72,{"$f":"Import!M29024","v":"Select"},{"$f":"Import!M29224","v":"Select"},{"$f":"Import!M29424","v":"Select"},{"$f":"Import!M29624","v":0},{"$f":"Import!M29824","v":0}]
[null,73,{"$f":"Import!M29025","v":"Select"},{"$f":"Import!M29225","v":"Select"},{"$f":"Import!M29425","v":"Select"},{"$f":"Import!M29625","v":0},{"$f":"Import!M29825","v":0}]
[null,74,{"$f":"Import!M29026","v":"Select"},{"$f":"Import!M29226","v":"Select"},{"$f":"Import!M29426","v":"Select"},{"$f":"Import!M29626","v":0},{"$f":"Import!M29826","v":0}]
[null,75,{"$f":"Import!M29027","v":"Select"},{"$f":"Import!M29227","v":"Select"},{"$f":"Import!M29427","v":"Select"},{"$f":"Import!M29627","v":0},{"$f":"Import!M29827","v":0}]
[null,76,{"$f":"Import!M29028","v":"Select"},{"$f":"Import!M29228","v":"Select"},{"$f":"Import!M29428","v":"Select"},{"$f":"Import!M29628","v":0},{"$f":"Import!M29828","v":0}]
[null,77,{"$f":"Import!M29029","v":"Select"},{"$f":"Import!M29229","v":"Select"},{"$f":"Import!M29429","v":"Select"},{"$f":"Import!M29629","v":0},{"$f":"Import!M29829","v":0}]
[null,78,{"$f":"Import!M29030","v":"Select"},{"$f":"Import!M29230","v":"Select"},{"$f":"Import!M29430","v":"Select"},{"$f":"Import!M29630","v":0},{"$f":"Import!M29830","v":0}]
[null,79,{"$f":"Import!M29031","v":"Select"},{"$f":"Import!M29231","v":"Select"},{"$f":"Import!M29431","v":"Select"},{"$f":"Import!M29631","v":0},{"$f":"Import!M29831","v":0}]
[null,80,{"$f":"Import!M29032","v":"Select"},{"$f":"Import!M29232","v":"Select"},{"$f":"Import!M29432","v":"Select"},{"$f":"Import!M29632","v":0},{"$f":"Import!M29832","v":0}]
[null,81,{"$f":"Import!M29033","v":"Select"},{"$f":"Import!M29233","v":"Select"},{"$f":"Import!M29433","v":"Select"},{"$f":"Import!M29633","v":0},{"$f":"Import!M29833","v":0}]
[null,82,{"$f":"Import!M29034","v":"Select"},{"$f":"Import!M29234","v":"Select"},{"$f":"Import!M29434","v":"Select"},{"$f":"Import!M29634","v":0},{"$f":"Import!M29834","v":0}]
[null,83,{"$f":"Import!M29035","v":"Select"},{"$f":"Import!M29235","v":"Select"},{"$f":"Import!M29435","v":"Select"},{"$f":"Import!M29635","v":0},{"$f":"Import!M29835","v":0}]
[null,84,{"$f":"Import!M29036","v":"Select"},{"$f":"Import!M29236","v":"Select"},{"$f":"Import!M29436","v":"Select"},{"$f":"Import!M29636","v":0},{"$f":"Import!M29836","v":0}]
[null,85,{"$f":"Import!M29037","v":"Select"},{"$f":"Import!M29237","v":"Select"},{"$f":"Import!M29437","v":"Select"},{"$f":"Import!M29637","v":0},{"$f":"Import!M29837","v":0}]
[null,86,{"$f":"Import!M29038","v":"Select"},{"$f":"Import!M29238","v":"Select"},{"$f":"Import!M29438","v":"Select"},{"$f":"Import!M29638","v":0},{"$f":"Import!M29838","v":0}]
[null,87,{"$f":"Import!M29039","v":"Select"},{"$f":"Import!M29239","v":"Select"},{"$f":"Import!M29439","v":"Select"},{"$f":"Import!M29639","v":0},{"$f":"Import!M29839","v":0}]
[null,88,{"$f":"Import!M29040","v":"Select"},{"$f":"Import!M29240","v":"Select"},{"$f":"Import!M29440","v":"Select"},{"$f":"Import!M29640","v":0},{"$f":"Import!M29840","v":0}]
[null,89,{"$f":"Import!M29041","v":"Select"},{"$f":"Import!M29241","v":"Select"},{"$f":"Import!M29441","v":"Select"},{"$f":"Import!M29641","v":0},{"$f":"Import!M29841","v":0}]
[null,90,{"$f":"Import!M29042","v":"Select"},{"$f":"Import!M29242","v":"Select"},{"$f":"Import!M29442","v":"Select"},{"$f":"Import!M29642","v":0},{"$f":"Import!M29842","v":0}]
[null,91,{"$f":"Import!M29043","v":"Select"},{"$f":"Import!M29243","v":"Select"},{"$f":"Import!M29443","v":"Select"},{"$f":"Import!M29643","v":0},{"$f":"Import!M29843","v":0}]
[null,92,{"$f":"Import!M29044","v":"Select"},{"$f":"Import!M29244","v":"Select"},{"$f":"Import!M29444","v":"Select"},{"$f":"Import!M29644","v":0},{"$f":"Import!M29844","v":0}]
[null,93,{"$f":"Import!M29045","v":"Select"},{"$f":"Import!M29245","v":"Select"},{"$f":"Import!M29445","v":"Select"},{"$f":"Import!M29645","v":0},{"$f":"Import!M29845","v":0}]
[null,94,{"$f":"Import!M29046","v":"Select"},{"$f":"Import!M29246","v":"Select"},{"$f":"Import!M29446","v":"Select"},{"$f":"Import!M29646","v":0},{"$f":"Import!M29846","v":0}]
[null,95,{"$f":"Import!M29047","v":"Select"},{"$f":"Import!M29247","v":"Select"},{"$f":"Import!M29447","v":"Select"},{"$f":"Import!M29647","v":0},{"$f":"Import!M29847","v":0}]
[null,96,{"$f":"Import!M29048","v":"Select"},{"$f":"Import!M29248","v":"Select"},{"$f":"Import!M29448","v":"Select"},{"$f":"Import!M29648","v":0},{"$f":"Import!M29848","v":0}]
[null,97,{"$f":"Import!M29049","v":"Select"},{"$f":"Import!M29249","v":"Select"},{"$f":"Import!M29449","v":"Select"},{"$f":"Import!M29649","v":0},{"$f":"Import!M29849","v":0}]
[null,98,{"$f":"Import!M29050","v":"Select"},{"$f":"Import!M29250","v":"Select"},{"$f":"Import!M29450","v":"Select"},{"$f":"Import!M29650","v":0},{"$f":"Import!M29850","v":0}]
[null,99,{"$f":"Import!M29051","v":"Select"},{"$f":"Import!M29251","v":"Select"},{"$f":"Import!M29451","v":"Select"},{"$f":"Import!M29651","v":0},{"$f":"Import!M29851","v":0}]
[null,100,{"$f":"Import!M29052","v":"Select"},{"$f":"Import!M29252","v":"Select"},{"$f":"Import!M29452","v":"Select"},{"$f":"Import!M29652","v":0},{"$f":"Import!M29852","v":0}]
[null,101,{"$f":"Import!M29053","v":"Select"},{"$f":"Import!M29253","v":"Select"},{"$f":"Import!M29453","v":"Select"},{"$f":"Import!M29653","v":0},{"$f":"Import!M29853","v":0}]
[null,102,{"$f":"Import!M29054","v":"Select"},{"$f":"Import!M29254","v":"Select"},{"$f":"Import!M29454","v":"Select"},{"$f":"Import!M29654","v":0},{"$f":"Import!M29854","v":0}]
[null,103,{"$f":"Import!M29055","v":"Select"},{"$f":"Import!M29255","v":"Select"},{"$f":"Import!M29455","v":"Select"},{"$f":"Import!M29655","v":0},{"$f":"Import!M29855","v":0}]
[null,104,{"$f":"Import!M29056","v":"Select"},{"$f":"Import!M29256","v":"Select"},{"$f":"Import!M29456","v":"Select"},{"$f":"Import!M29656","v":0},{"$f":"Import!M29856","v":0}]
[null,105,{"$f":"Import!M29057","v":"Select"},{"$f":"Import!M29257","v":"Select"},{"$f":"Import!M29457","v":"Select"},{"$f":"Import!M29657","v":0},{"$f":"Import!M29857","v":0}]
[null,106,{"$f":"Import!M29058","v":"Select"},{"$f":"Import!M29258","v":"Select"},{"$f":"Import!M29458","v":"Select"},{"$f":"Import!M29658","v":0},{"$f":"Import!M29858","v":0}]
[null,107,{"$f":"Import!M29059","v":"Select"},{"$f":"Import!M29259","v":"Select"},{"$f":"Import!M29459","v":"Select"},{"$f":"Import!M29659","v":0},{"$f":"Import!M29859","v":0}]
[null,108,{"$f":"Import!M29060","v":"Select"},{"$f":"Import!M29260","v":"Select"},{"$f":"Import!M29460","v":"Select"},{"$f":"Import!M29660","v":0},{"$f":"Import!M29860","v":0}]
[null,109,{"$f":"Import!M29061","v":"Select"},{"$f":"Import!M29261","v":"Select"},{"$f":"Import!M29461","v":"Select"},{"$f":"Import!M29661","v":0},{"$f":"Import!M29861","v":0}]
[null,110,{"$f":"Import!M29062","v":"Select"},{"$f":"Import!M29262","v":"Select"},{"$f":"Import!M29462","v":"Select"},{"$f":"Import!M29662","v":0},{"$f":"Import!M29862","v":0}]
[null,111,{"$f":"Import!M29063","v":"Select"},{"$f":"Import!M29263","v":"Select"},{"$f":"Import!M29463","v":"Select"},{"$f":"Import!M29663","v":0},{"$f":"Import!M29863","v":0}]
[null,112,{"$f":"Import!M29064","v":"Select"},{"$f":"Import!M29264","v":"Select"},{"$f":"Import!M29464","v":"Select"},{"$f":"Import!M29664","v":0},{"$f":"Import!M29864","v":0}]
[null,113,{"$f":"Import!M29065","v":"Select"},{"$f":"Import!M29265","v":"Select"},{"$f":"Import!M29465","v":"Select"},{"$f":"Import!M29665","v":0},{"$f":"Import!M29865","v":0}]
[null,114,{"$f":"Import!M29066","v":"Select"},{"$f":"Import!M29266","v":"Select"},{"$f":"Import!M29466","v":"Select"},{"$f":"Import!M29666","v":0},{"$f":"Import!M29866","v":0}]
[null,115,{"$f":"Import!M29067","v":"Select"},{"$f":"Import!M29267","v":"Select"},{"$f":"Import!M29467","v":"Select"},{"$f":"Import!M29667","v":0},{"$f":"Import!M29867","v":0}]
[null,116,{"$f":"Import!M29068","v":"Select"},{"$f":"Import!M29268","v":"Select"},{"$f":"Import!M29468","v":"Select"},{"$f":"Import!M29668","v":0},{"$f":"Import!M29868","v":0}]
[null,117,{"$f":"Import!M29069","v":"Select"},{"$f":"Import!M29269","v":"Select"},{"$f":"Import!M29469","v":"Select"},{"$f":"Import!M29669","v":0},{"$f":"Import!M29869","v":0}]
[null,118,{"$f":"Import!M29070","v":"Select"},{"$f":"Import!M29270","v":"Select"},{"$f":"Import!M29470","v":"Select"},{"$f":"Import!M29670","v":0},{"$f":"Import!M29870","v":0}]
[null,119,{"$f":"Import!M29071","v":"Select"},{"$f":"Import!M29271","v":"Select"},{"$f":"Import!M29471","v":"Select"},{"$f":"Import!M29671","v":0},{"$f":"Import!M29871","v":0}]
[null,120,{"$f":"Import!M29072","v":"Select"},{"$f":"Import!M29272","v":"Select"},{"$f":"Import!M29472","v":"Select"},{"$f":"Import!M29672","v":0},{"$f":"Import!M29872","v":0}]
[null,121,{"$f":"Import!M29073","v":"Select"},{"$f":"Import!M29273","v":"Select"},{"$f":"Import!M29473","v":"Select"},{"$f":"Import!M29673","v":0},{"$f":"Import!M29873","v":0}]
[null,122,{"$f":"Import!M29074","v":"Select"},{"$f":"Import!M29274","v":"Select"},{"$f":"Import!M29474","v":"Select"},{"$f":"Import!M29674","v":0},{"$f":"Import!M29874","v":0}]
[null,123,{"$f":"Import!M29075","v":"Select"},{"$f":"Import!M29275","v":"Select"},{"$f":"Import!M29475","v":"Select"},{"$f":"Import!M29675","v":0},{"$f":"Import!M29875","v":0}]
[null,124,{"$f":"Import!M29076","v":"Select"},{"$f":"Import!M29276","v":"Select"},{"$f":"Import!M29476","v":"Select"},{"$f":"Import!M29676","v":0},{"$f":"Import!M29876","v":0}]
[null,125,{"$f":"Import!M29077","v":"Select"},{"$f":"Import!M29277","v":"Select"},{"$f":"Import!M29477","v":"Select"},{"$f":"Import!M29677","v":0},{"$f":"Import!M29877","v":0}]
[null,126,{"$f":"Import!M29078","v":"Select"},{"$f":"Import!M29278","v":"Select"},{"$f":"Import!M29478","v":"Select"},{"$f":"Import!M29678","v":0},{"$f":"Import!M29878","v":0}]
[null,127,{"$f":"Import!M29079","v":"Select"},{"$f":"Import!M29279","v":"Select"},{"$f":"Import!M29479","v":"Select"},{"$f":"Import!M29679","v":0},{"$f":"Import!M29879","v":0}]
[null,128,{"$f":"Import!M29080","v":"Select"},{"$f":"Import!M29280","v":"Select"},{"$f":"Import!M29480","v":"Select"},{"$f":"Import!M29680","v":0},{"$f":"Import!M29880","v":0}]
[null,129,{"$f":"Import!M29081","v":"Select"},{"$f":"Import!M29281","v":"Select"},{"$f":"Import!M29481","v":"Select"},{"$f":"Import!M29681","v":0},{"$f":"Import!M29881","v":0}]
[null,130,{"$f":"Import!M29082","v":"Select"},{"$f":"Import!M29282","v":"Select"},{"$f":"Import!M29482","v":"Select"},{"$f":"Import!M29682","v":0},{"$f":"Import!M29882","v":0}]
[null,{"$f":"B756+1","v":131},{"$f":"Import!M29083","v":"Select"},{"$f":"Import!M29283","v":"Select"},{"$f":"Import!M29483","v":"Select"},{"$f":"Import!M29683","v":0},{"$f":"Import!M29883","v":0}]
[null,132,{"$f":"Import!M29084","v":"Select"},{"$f":"Import!M29284","v":"Select"},{"$f":"Import!M29484","v":"Select"},{"$f":"Import!M29684","v":0},{"$f":"Import!M29884","v":0}]
[null,133,{"$f":"Import!M29085","v":"Select"},{"$f":"Import!M29285","v":"Select"},{"$f":"Import!M29485","v":"Select"},{"$f":"Import!M29685","v":0},{"$f":"Import!M29885","v":0}]
[null,134,{"$f":"Import!M29086","v":"Select"},{"$f":"Import!M29286","v":"Select"},{"$f":"Import!M29486","v":"Select"},{"$f":"Import!M29686","v":0},{"$f":"Import!M29886","v":0}]
[null,135,{"$f":"Import!M29087","v":"Select"},{"$f":"Import!M29287","v":"Select"},{"$f":"Import!M29487","v":"Select"},{"$f":"Import!M29687","v":0},{"$f":"Import!M29887","v":0}]
[null,136,{"$f":"Import!M29088","v":"Select"},{"$f":"Import!M29288","v":"Select"},{"$f":"Import!M29488","v":"Select"},{"$f":"Import!M29688","v":0},{"$f":"Import!M29888","v":0}]
[null,137,{"$f":"Import!M29089","v":"Select"},{"$f":"Import!M29289","v":"Select"},{"$f":"Import!M29489","v":"Select"},{"$f":"Import!M29689","v":0},{"$f":"Import!M29889","v":0}]
[null,138,{"$f":"Import!M29090","v":"Select"},{"$f":"Import!M29290","v":"Select"},{"$f":"Import!M29490","v":"Select"},{"$f":"Import!M29690","v":0},{"$f":"Import!M29890","v":0}]
[null,139,{"$f":"Import!M29091","v":"Select"},{"$f":"Import!M29291","v":"Select"},{"$f":"Import!M29491","v":"Select"},{"$f":"Import!M29691","v":0},{"$f":"Import!M29891","v":0}]
[null,140,{"$f":"Import!M29092","v":"Select"},{"$f":"Import!M29292","v":"Select"},{"$f":"Import!M29492","v":"Select"},{"$f":"Import!M29692","v":0},{"$f":"Import!M29892","v":0}]
[null,141,{"$f":"Import!M29093","v":"Select"},{"$f":"Import!M29293","v":"Select"},{"$f":"Import!M29493","v":"Select"},{"$f":"Import!M29693","v":0},{"$f":"Import!M29893","v":0}]
[null,142,{"$f":"Import!M29094","v":"Select"},{"$f":"Import!M29294","v":"Select"},{"$f":"Import!M29494","v":"Select"},{"$f":"Import!M29694","v":0},{"$f":"Import!M29894","v":0}]
[null,143,{"$f":"Import!M29095","v":"Select"},{"$f":"Import!M29295","v":"Select"},{"$f":"Import!M29495","v":"Select"},{"$f":"Import!M29695","v":0},{"$f":"Import!M29895","v":0}]
[null,144,{"$f":"Import!M29096","v":"Select"},{"$f":"Import!M29296","v":"Select"},{"$f":"Import!M29496","v":"Select"},{"$f":"Import!M29696","v":0},{"$f":"Import!M29896","v":0}]
[null,145,{"$f":"Import!M29097","v":"Select"},{"$f":"Import!M29297","v":"Select"},{"$f":"Import!M29497","v":"Select"},{"$f":"Import!M29697","v":0},{"$f":"Import!M29897","v":0}]
[null,146,{"$f":"Import!M29098","v":"Select"},{"$f":"Import!M29298","v":"Select"},{"$f":"Import!M29498","v":"Select"},{"$f":"Import!M29698","v":0},{"$f":"Import!M29898","v":0}]
[null,147,{"$f":"Import!M29099","v":"Select"},{"$f":"Import!M29299","v":"Select"},{"$f":"Import!M29499","v":"Select"},{"$f":"Import!M29699","v":0},{"$f":"Import!M29899","v":0}]
[null,148,{"$f":"Import!M29100","v":"Select"},{"$f":"Import!M29300","v":"Select"},{"$f":"Import!M29500","v":"Select"},{"$f":"Import!M29700","v":0},{"$f":"Import!M29900","v":0}]
[null,149,{"$f":"Import!M29101","v":"Select"},{"$f":"Import!M29301","v":"Select"},{"$f":"Import!M29501","v":"Select"},{"$f":"Import!M29701","v":0},{"$f":"Import!M29901","v":0}]
[null,150,{"$f":"Import!M29102","v":"Select"},{"$f":"Import!M29302","v":"Select"},{"$f":"Import!M29502","v":"Select"},{"$f":"Import!M29702","v":0},{"$f":"Import!M29902","v":0}]
[null,151,{"$f":"Import!M29103","v":"Select"},{"$f":"Import!M29303","v":"Select"},{"$f":"Import!M29503","v":"Select"},{"$f":"Import!M29703","v":0},{"$f":"Import!M29903","v":0}]
[null,152,{"$f":"Import!M29104","v":"Select"},{"$f":"Import!M29304","v":"Select"},{"$f":"Import!M29504","v":"Select"},{"$f":"Import!M29704","v":0},{"$f":"Import!M29904","v":0}]
[null,153,{"$f":"Import!M29105","v":"Select"},{"$f":"Import!M29305","v":"Select"},{"$f":"Import!M29505","v":"Select"},{"$f":"Import!M29705","v":0},{"$f":"Import!M29905","v":0}]
[null,154,{"$f":"Import!M29106","v":"Select"},{"$f":"Import!M29306","v":"Select"},{"$f":"Import!M29506","v":"Select"},{"$f":"Import!M29706","v":0},{"$f":"Import!M29906","v":0}]
[null,155,{"$f":"Import!M29107","v":"Select"},{"$f":"Import!M29307","v":"Select"},{"$f":"Import!M29507","v":"Select"},{"$f":"Import!M29707","v":0},{"$f":"Import!M29907","v":0}]
[null,156,{"$f":"Import!M29108","v":"Select"},{"$f":"Import!M29308","v":"Select"},{"$f":"Import!M29508","v":"Select"},{"$f":"Import!M29708","v":0},{"$f":"Import!M29908","v":0}]
[null,157,{"$f":"Import!M29109","v":"Select"},{"$f":"Import!M29309","v":"Select"},{"$f":"Import!M29509","v":"Select"},{"$f":"Import!M29709","v":0},{"$f":"Import!M29909","v":0}]
[null,158,{"$f":"Import!M29110","v":"Select"},{"$f":"Import!M29310","v":"Select"},{"$f":"Import!M29510","v":"Select"},{"$f":"Import!M29710","v":0},{"$f":"Import!M29910","v":0}]
[null,159,{"$f":"Import!M29111","v":"Select"},{"$f":"Import!M29311","v":"Select"},{"$f":"Import!M29511","v":"Select"},{"$f":"Import!M29711","v":0},{"$f":"Import!M29911","v":0}]
[null,160,{"$f":"Import!M29112","v":"Select"},{"$f":"Import!M29312","v":"Select"},{"$f":"Import!M29512","v":"Select"},{"$f":"Import!M29712","v":0},{"$f":"Import!M29912","v":0}]
[null,161,{"$f":"Import!M29113","v":"Select"},{"$f":"Import!M29313","v":"Select"},{"$f":"Import!M29513","v":"Select"},{"$f":"Import!M29713","v":0},{"$f":"Import!M29913","v":0}]
[null,162,{"$f":"Import!M29114","v":"Select"},{"$f":"Import!M29314","v":"Select"},{"$f":"Import!M29514","v":"Select"},{"$f":"Import!M29714","v":0},{"$f":"Import!M29914","v":0}]
[null,163,{"$f":"Import!M29115","v":"Select"},{"$f":"Import!M29315","v":"Select"},{"$f":"Import!M29515","v":"Select"},{"$f":"Import!M29715","v":0},{"$f":"Import!M29915","v":0}]
[null,164,{"$f":"Import!M29116","v":"Select"},{"$f":"Import!M29316","v":"Select"},{"$f":"Import!M29516","v":"Select"},{"$f":"Import!M29716","v":0},{"$f":"Import!M29916","v":0}]
[null,165,{"$f":"Import!M29117","v":"Select"},{"$f":"Import!M29317","v":"Select"},{"$f":"Import!M29517","v":"Select"},{"$f":"Import!M29717","v":0},{"$f":"Import!M29917","v":0}]
[null,166,{"$f":"Import!M29118","v":"Select"},{"$f":"Import!M29318","v":"Select"},{"$f":"Import!M29518","v":"Select"},{"$f":"Import!M29718","v":0},{"$f":"Import!M29918","v":0}]
[null,167,{"$f":"Import!M29119","v":"Select"},{"$f":"Import!M29319","v":"Select"},{"$f":"Import!M29519","v":"Select"},{"$f":"Import!M29719","v":0},{"$f":"Import!M29919","v":0}]
[null,168,{"$f":"Import!M29120","v":"Select"},{"$f":"Import!M29320","v":"Select"},{"$f":"Import!M29520","v":"Select"},{"$f":"Import!M29720","v":0},{"$f":"Import!M29920","v":0}]
[null,169,{"$f":"Import!M29121","v":"Select"},{"$f":"Import!M29321","v":"Select"},{"$f":"Import!M29521","v":"Select"},{"$f":"Import!M29721","v":0},{"$f":"Import!M29921","v":0}]
[null,170,{"$f":"Import!M29122","v":"Select"},{"$f":"Import!M29322","v":"Select"},{"$f":"Import!M29522","v":"Select"},{"$f":"Import!M29722","v":0},{"$f":"Import!M29922","v":0}]
[null,171,{"$f":"Import!M29123","v":"Select"},{"$f":"Import!M29323","v":"Select"},{"$f":"Import!M29523","v":"Select"},{"$f":"Import!M29723","v":0},{"$f":"Import!M29923","v":0}]
[null,172,{"$f":"Import!M29124","v":"Select"},{"$f":"Import!M29324","v":"Select"},{"$f":"Import!M29524","v":"Select"},{"$f":"Import!M29724","v":0},{"$f":"Import!M29924","v":0}]
[null,173,{"$f":"Import!M29125","v":"Select"},{"$f":"Import!M29325","v":"Select"},{"$f":"Import!M29525","v":"Select"},{"$f":"Import!M29725","v":0},{"$f":"Import!M29925","v":0}]
[null,174,{"$f":"Import!M29126","v":"Select"},{"$f":"Import!M29326","v":"Select"},{"$f":"Import!M29526","v":"Select"},{"$f":"Import!M29726","v":0},{"$f":"Import!M29926","v":0}]
[null,175,{"$f":"Import!M29127","v":"Select"},{"$f":"Import!M29327","v":"Select"},{"$f":"Import!M29527","v":"Select"},{"$f":"Import!M29727","v":0},{"$f":"Import!M29927","v":0}]
[null,176,{"$f":"Import!M29128","v":"Select"},{"$f":"Import!M29328","v":"Select"},{"$f":"Import!M29528","v":"Select"},{"$f":"Import!M29728","v":0},{"$f":"Import!M29928","v":0}]
[null,177,{"$f":"Import!M29129","v":"Select"},{"$f":"Import!M29329","v":"Select"},{"$f":"Import!M29529","v":"Select"},{"$f":"Import!M29729","v":0},{"$f":"Import!M29929","v":0}]
[null,178,{"$f":"Import!M29130","v":"Select"},{"$f":"Import!M29330","v":"Select"},{"$f":"Import!M29530","v":"Select"},{"$f":"Import!M29730","v":0},{"$f":"Import!M29930","v":0}]
[null,179,{"$f":"Import!M29131","v":"Select"},{"$f":"Import!M29331","v":"Select"},{"$f":"Import!M29531","v":"Select"},{"$f":"Import!M29731","v":0},{"$f":"Import!M29931","v":0}]
[null,180,{"$f":"Import!M29132","v":"Select"},{"$f":"Import!M29332","v":"Select"},{"$f":"Import!M29532","v":"Select"},{"$f":"Import!M29732","v":0},{"$f":"Import!M29932","v":0}]
[null,181,{"$f":"Import!M29133","v":"Select"},{"$f":"Import!M29333","v":"Select"},{"$f":"Import!M29533","v":"Select"},{"$f":"Import!M29733","v":0},{"$f":"Import!M29933","v":0}]
[null,182,{"$f":"Import!M29134","v":"Select"},{"$f":"Import!M29334","v":"Select"},{"$f":"Import!M29534","v":"Select"},{"$f":"Import!M29734","v":0},{"$f":"Import!M29934","v":0}]
[null,183,{"$f":"Import!M29135","v":"Select"},{"$f":"Import!M29335","v":"Select"},{"$f":"Import!M29535","v":"Select"},{"$f":"Import!M29735","v":0},{"$f":"Import!M29935","v":0}]
[null,184,{"$f":"Import!M29136","v":"Select"},{"$f":"Import!M29336","v":"Select"},{"$f":"Import!M29536","v":"Select"},{"$f":"Import!M29736","v":0},{"$f":"Import!M29936","v":0}]
[null,185,{"$f":"Import!M29137","v":"Select"},{"$f":"Import!M29337","v":"Select"},{"$f":"Import!M29537","v":"Select"},{"$f":"Import!M29737","v":0},{"$f":"Import!M29937","v":0}]
[null,186,{"$f":"Import!M29138","v":"Select"},{"$f":"Import!M29338","v":"Select"},{"$f":"Import!M29538","v":"Select"},{"$f":"Import!M29738","v":0},{"$f":"Import!M29938","v":0}]
[null,187,{"$f":"Import!M29139","v":"Select"},{"$f":"Import!M29339","v":"Select"},{"$f":"Import!M29539","v":"Select"},{"$f":"Import!M29739","v":0},{"$f":"Import!M29939","v":0}]
[null,188,{"$f":"Import!M29140","v":"Select"},{"$f":"Import!M29340","v":"Select"},{"$f":"Import!M29540","v":"Select"},{"$f":"Import!M29740","v":0},{"$f":"Import!M29940","v":0}]
[null,189,{"$f":"Import!M29141","v":"Select"},{"$f":"Import!M29341","v":"Select"},{"$f":"Import!M29541","v":"Select"},{"$f":"Import!M29741","v":0},{"$f":"Import!M29941","v":0}]
[null,190,{"$f":"Import!M29142","v":"Select"},{"$f":"Import!M29342","v":"Select"},{"$f":"Import!M29542","v":"Select"},{"$f":"Import!M29742","v":0},{"$f":"Import!M29942","v":0}]
[null,191,{"$f":"Import!M29143","v":"Select"},{"$f":"Import!M29343","v":"Select"},{"$f":"Import!M29543","v":"Select"},{"$f":"Import!M29743","v":0},{"$f":"Import!M29943","v":0}]
[null,192,{"$f":"Import!M29144","v":"Select"},{"$f":"Import!M29344","v":"Select"},{"$f":"Import!M29544","v":"Select"},{"$f":"Import!M29744","v":0},{"$f":"Import!M29944","v":0}]
[null,193,{"$f":"Import!M29145","v":"Select"},{"$f":"Import!M29345","v":"Select"},{"$f":"Import!M29545","v":"Select"},{"$f":"Import!M29745","v":0},{"$f":"Import!M29945","v":0}]
[null,194,{"$f":"Import!M29146","v":"Select"},{"$f":"Import!M29346","v":"Select"},{"$f":"Import!M29546","v":"Select"},{"$f":"Import!M29746","v":0},{"$f":"Import!M29946","v":0}]
[null,{"$f":"B820+1","v":195},{"$f":"Import!M29147","v":"Select"},{"$f":"Import!M29347","v":"Select"},{"$f":"Import!M29547","v":"Select"},{"$f":"Import!M29747","v":0},{"$f":"Import!M29947","v":0}]
[null,196,{"$f":"Import!M29148","v":"Select"},{"$f":"Import!M29348","v":"Select"},{"$f":"Import!M29548","v":"Select"},{"$f":"Import!M29748","v":0},{"$f":"Import!M29948","v":0}]
[null,197,{"$f":"Import!M29149","v":"Select"},{"$f":"Import!M29349","v":"Select"},{"$f":"Import!M29549","v":"Select"},{"$f":"Import!M29749","v":0},{"$f":"Import!M29949","v":0}]
[null,198,{"$f":"Import!M29150","v":"Select"},{"$f":"Import!M29350","v":"Select"},{"$f":"Import!M29550","v":"Select"},{"$f":"Import!M29750","v":0},{"$f":"Import!M29950","v":0}]
[null,199,{"$f":"Import!M29151","v":"Select"},{"$f":"Import!M29351","v":"Select"},{"$f":"Import!M29551","v":"Select"},{"$f":"Import!M29751","v":0},{"$f":"Import!M29951","v":0}]
[null,200,{"$f":"Import!M29152","v":"Select"},{"$f":"Import!M29352","v":"Select"},{"$f":"Import!M29552","v":"Select"},{"$f":"Import!M29752","v":0},{"$f":"Import!M29952","v":0}]
[]
[null,null,null,null,null,{"$f":"SUM(F627:F826)","v":0}]
[]
[null,"(C) ASSET-BACKED AND STRUCTURED SECURITIES"]
[]
[null,null,"Enter # of Asset Types",{"$f":"Import!M29953","v":0}]
[null,null,null,null,{"$f":"YEAR($C$3)","v":2023},2023,"Weighted"]
[null,"Asset Type","Currency","BSCR Rating","Nominal Amount","Fair Value","Average YTM","Effective Duration","Comments"]
[1,{"$f":"Import!M29954","v":"Select"},{"$f":"Import!M30104","v":"Select"},{"$f":"Import!M30254","v":"Select"},{"$f":"Import!M30404","v":0},{"$f":"Import!M30554","v":0},{"$f":"Import!M30704","v":0},{"$f":"Import!M30854","v":0},{"$f":"Import!M31004","v":0}]
[{"$f":"A835+1","v":2},{"$f":"Import!M29955","v":"Select"},{"$f":"Import!M30105","v":"Select"},{"$f":"Import!M30255","v":"Select"},{"$f":"Import!M30405","v":0},{"$f":"Import!M30555","v":0},{"$f":"Import!M30705","v":0},{"$f":"Import!M30855","v":0},{"$f":"Import!M31005","v":0}]
[{"$f":"A836+1","v":3},{"$f":"Import!M29956","v":"Select"},{"$f":"Import!M30106","v":"Select"},{"$f":"Import!M30256","v":"Select"},{"$f":"Import!M30406","v":0},{"$f":"Import!M30556","v":0},{"$f":"Import!M30706","v":0},{"$f":"Import!M30856","v":0},{"$f":"Import!M31006","v":0}]
[4,{"$f":"Import!M29957","v":"Select"},{"$f":"Import!M30107","v":"Select"},{"$f":"Import!M30257","v":"Select"},{"$f":"Import!M30407","v":0},{"$f":"Import!M30557","v":0},{"$f":"Import!M30707","v":0},{"$f":"Import!M30857","v":0},{"$f":"Import!M31007","v":0}]
[5,{"$f":"Import!M29958","v":"Select"},{"$f":"Import!M30108","v":"Select"},{"$f":"Import!M30258","v":"Select"},{"$f":"Import!M30408","v":0},{"$f":"Import!M30558","v":0},{"$f":"Import!M30708","v":0},{"$f":"Import!M30858","v":0},{"$f":"Import!M31008","v":0}]
[6,{"$f":"Import!M29959","v":"Select"},{"$f":"Import!M30109","v":"Select"},{"$f":"Import!M30259","v":"Select"},{"$f":"Import!M30409","v":0},{"$f":"Import!M30559","v":0},{"$f":"Import!M30709","v":0},{"$f":"Import!M30859","v":0},{"$f":"Import!M31009","v":0}]
[7,{"$f":"Import!M29960","v":"Select"},{"$f":"Import!M30110","v":"Select"},{"$f":"Import!M30260","v":"Select"},{"$f":"Import!M30410","v":0},{"$f":"Import!M30560","v":0},{"$f":"Import!M30710","v":0},{"$f":"Import!M30860","v":0},{"$f":"Import!M31010","v":0}]
[8,{"$f":"Import!M29961","v":"Select"},{"$f":"Import!M30111","v":"Select"},{"$f":"Import!M30261","v":"Select"},{"$f":"Import!M30411","v":0},{"$f":"Import!M30561","v":0},{"$f":"Import!M30711","v":0},{"$f":"Import!M30861","v":0},{"$f":"Import!M31011","v":0}]
[9,{"$f":"Import!M29962","v":"Select"},{"$f":"Import!M30112","v":"Select"},{"$f":"Import!M30262","v":"Select"},{"$f":"Import!M30412","v":0},{"$f":"Import!M30562","v":0},{"$f":"Import!M30712","v":0},{"$f":"Import!M30862","v":0},{"$f":"Import!M31012","v":0}]
[10,{"$f":"Import!M29963","v":"Select"},{"$f":"Import!M30113","v":"Select"},{"$f":"Import!M30263","v":"Select"},{"$f":"Import!M30413","v":0},{"$f":"Import!M30563","v":0},{"$f":"Import!M30713","v":0},{"$f":"Import!M30863","v":0},{"$f":"Import!M31013","v":0}]
[11,{"$f":"Import!M29964","v":"Select"},{"$f":"Import!M30114","v":"Select"},{"$f":"Import!M30264","v":"Select"},{"$f":"Import!M30414","v":0},{"$f":"Import!M30564","v":0},{"$f":"Import!M30714","v":0},{"$f":"Import!M30864","v":0},{"$f":"Import!M31014","v":0}]
[12,{"$f":"Import!M29965","v":"Select"},{"$f":"Import!M30115","v":"Select"},{"$f":"Import!M30265","v":"Select"},{"$f":"Import!M30415","v":0},{"$f":"Import!M30565","v":0},{"$f":"Import!M30715","v":0},{"$f":"Import!M30865","v":0},{"$f":"Import!M31015","v":0}]
[13,{"$f":"Import!M29966","v":"Select"},{"$f":"Import!M30116","v":"Select"},{"$f":"Import!M30266","v":"Select"},{"$f":"Import!M30416","v":0},{"$f":"Import!M30566","v":0},{"$f":"Import!M30716","v":0},{"$f":"Import!M30866","v":0},{"$f":"Import!M31016","v":0}]
[14,{"$f":"Import!M29967","v":"Select"},{"$f":"Import!M30117","v":"Select"},{"$f":"Import!M30267","v":"Select"},{"$f":"Import!M30417","v":0},{"$f":"Import!M30567","v":0},{"$f":"Import!M30717","v":0},{"$f":"Import!M30867","v":0},{"$f":"Import!M31017","v":0}]
[15,{"$f":"Import!M29968","v":"Select"},{"$f":"Import!M30118","v":"Select"},{"$f":"Import!M30268","v":"Select"},{"$f":"Import!M30418","v":0},{"$f":"Import!M30568","v":0},{"$f":"Import!M30718","v":0},{"$f":"Import!M30868","v":0},{"$f":"Import!M31018","v":0}]
[16,{"$f":"Import!M29969","v":"Select"},{"$f":"Import!M30119","v":"Select"},{"$f":"Import!M30269","v":"Select"},{"$f":"Import!M30419","v":0},{"$f":"Import!M30569","v":0},{"$f":"Import!M30719","v":0},{"$f":"Import!M30869","v":0},{"$f":"Import!M31019","v":0}]
[17,{"$f":"Import!M29970","v":"Select"},{"$f":"Import!M30120","v":"Select"},{"$f":"Import!M30270","v":"Select"},{"$f":"Import!M30420","v":0},{"$f":"Import!M30570","v":0},{"$f":"Import!M30720","v":0},{"$f":"Import!M30870","v":0},{"$f":"Import!M31020","v":0}]
[18,{"$f":"Import!M29971","v":"Select"},{"$f":"Import!M30121","v":"Select"},{"$f":"Import!M30271","v":"Select"},{"$f":"Import!M30421","v":0},{"$f":"Import!M30571","v":0},{"$f":"Import!M30721","v":0},{"$f":"Import!M30871","v":0},{"$f":"Import!M31021","v":0}]
[19,{"$f":"Import!M29972","v":"Select"},{"$f":"Import!M30122","v":"Select"},{"$f":"Import!M30272","v":"Select"},{"$f":"Import!M30422","v":0},{"$f":"Import!M30572","v":0},{"$f":"Import!M30722","v":0},{"$f":"Import!M30872","v":0},{"$f":"Import!M31022","v":0}]
[20,{"$f":"Import!M29973","v":"Select"},{"$f":"Import!M30123","v":"Select"},{"$f":"Import!M30273","v":"Select"},{"$f":"Import!M30423","v":0},{"$f":"Import!M30573","v":0},{"$f":"Import!M30723","v":0},{"$f":"Import!M30873","v":0},{"$f":"Import!M31023","v":0}]
[21,{"$f":"Import!M29974","v":"Select"},{"$f":"Import!M30124","v":"Select"},{"$f":"Import!M30274","v":"Select"},{"$f":"Import!M30424","v":0},{"$f":"Import!M30574","v":0},{"$f":"Import!M30724","v":0},{"$f":"Import!M30874","v":0},{"$f":"Import!M31024","v":0}]
[22,{"$f":"Import!M29975","v":"Select"},{"$f":"Import!M30125","v":"Select"},{"$f":"Import!M30275","v":"Select"},{"$f":"Import!M30425","v":0},{"$f":"Import!M30575","v":0},{"$f":"Import!M30725","v":0},{"$f":"Import!M30875","v":0},{"$f":"Import!M31025","v":0}]
[23,{"$f":"Import!M29976","v":"Select"},{"$f":"Import!M30126","v":"Select"},{"$f":"Import!M30276","v":"Select"},{"$f":"Import!M30426","v":0},{"$f":"Import!M30576","v":0},{"$f":"Import!M30726","v":0},{"$f":"Import!M30876","v":0},{"$f":"Import!M31026","v":0}]
[24,{"$f":"Import!M29977","v":"Select"},{"$f":"Import!M30127","v":"Select"},{"$f":"Import!M30277","v":"Select"},{"$f":"Import!M30427","v":0},{"$f":"Import!M30577","v":0},{"$f":"Import!M30727","v":0},{"$f":"Import!M30877","v":0},{"$f":"Import!M31027","v":0}]
[25,{"$f":"Import!M29978","v":"Select"},{"$f":"Import!M30128","v":"Select"},{"$f":"Import!M30278","v":"Select"},{"$f":"Import!M30428","v":0},{"$f":"Import!M30578","v":0},{"$f":"Import!M30728","v":0},{"$f":"Import!M30878","v":0},{"$f":"Import!M31028","v":0}]
[26,{"$f":"Import!M29979","v":"Select"},{"$f":"Import!M30129","v":"Select"},{"$f":"Import!M30279","v":"Select"},{"$f":"Import!M30429","v":0},{"$f":"Import!M30579","v":0},{"$f":"Import!M30729","v":0},{"$f":"Import!M30879","v":0},{"$f":"Import!M31029","v":0}]
[27,{"$f":"Import!M29980","v":"Select"},{"$f":"Import!M30130","v":"Select"},{"$f":"Import!M30280","v":"Select"},{"$f":"Import!M30430","v":0},{"$f":"Import!M30580","v":0},{"$f":"Import!M30730","v":0},{"$f":"Import!M30880","v":0},{"$f":"Import!M31030","v":0}]
[28,{"$f":"Import!M29981","v":"Select"},{"$f":"Import!M30131","v":"Select"},{"$f":"Import!M30281","v":"Select"},{"$f":"Import!M30431","v":0},{"$f":"Import!M30581","v":0},{"$f":"Import!M30731","v":0},{"$f":"Import!M30881","v":0},{"$f":"Import!M31031","v":0}]
[29,{"$f":"Import!M29982","v":"Select"},{"$f":"Import!M30132","v":"Select"},{"$f":"Import!M30282","v":"Select"},{"$f":"Import!M30432","v":0},{"$f":"Import!M30582","v":0},{"$f":"Import!M30732","v":0},{"$f":"Import!M30882","v":0},{"$f":"Import!M31032","v":0}]
[30,{"$f":"Import!M29983","v":"Select"},{"$f":"Import!M30133","v":"Select"},{"$f":"Import!M30283","v":"Select"},{"$f":"Import!M30433","v":0},{"$f":"Import!M30583","v":0},{"$f":"Import!M30733","v":0},{"$f":"Import!M30883","v":0},{"$f":"Import!M31033","v":0}]
[31,{"$f":"Import!M29984","v":"Select"},{"$f":"Import!M30134","v":"Select"},{"$f":"Import!M30284","v":"Select"},{"$f":"Import!M30434","v":0},{"$f":"Import!M30584","v":0},{"$f":"Import!M30734","v":0},{"$f":"Import!M30884","v":0},{"$f":"Import!M31034","v":0}]
[32,{"$f":"Import!M29985","v":"Select"},{"$f":"Import!M30135","v":"Select"},{"$f":"Import!M30285","v":"Select"},{"$f":"Import!M30435","v":0},{"$f":"Import!M30585","v":0},{"$f":"Import!M30735","v":0},{"$f":"Import!M30885","v":0},{"$f":"Import!M31035","v":0}]
[33,{"$f":"Import!M29986","v":"Select"},{"$f":"Import!M30136","v":"Select"},{"$f":"Import!M30286","v":"Select"},{"$f":"Import!M30436","v":0},{"$f":"Import!M30586","v":0},{"$f":"Import!M30736","v":0},{"$f":"Import!M30886","v":0},{"$f":"Import!M31036","v":0}]
[34,{"$f":"Import!M29987","v":"Select"},{"$f":"Import!M30137","v":"Select"},{"$f":"Import!M30287","v":"Select"},{"$f":"Import!M30437","v":0},{"$f":"Import!M30587","v":0},{"$f":"Import!M30737","v":0},{"$f":"Import!M30887","v":0},{"$f":"Import!M31037","v":0}]
[35,{"$f":"Import!M29988","v":"Select"},{"$f":"Import!M30138","v":"Select"},{"$f":"Import!M30288","v":"Select"},{"$f":"Import!M30438","v":0},{"$f":"Import!M30588","v":0},{"$f":"Import!M30738","v":0},{"$f":"Import!M30888","v":0},{"$f":"Import!M31038","v":0}]
[36,{"$f":"Import!M29989","v":"Select"},{"$f":"Import!M30139","v":"Select"},{"$f":"Import!M30289","v":"Select"},{"$f":"Import!M30439","v":0},{"$f":"Import!M30589","v":0},{"$f":"Import!M30739","v":0},{"$f":"Import!M30889","v":0},{"$f":"Import!M31039","v":0}]
[37,{"$f":"Import!M29990","v":"Select"},{"$f":"Import!M30140","v":"Select"},{"$f":"Import!M30290","v":"Select"},{"$f":"Import!M30440","v":0},{"$f":"Import!M30590","v":0},{"$f":"Import!M30740","v":0},{"$f":"Import!M30890","v":0},{"$f":"Import!M31040","v":0}]
[38,{"$f":"Import!M29991","v":"Select"},{"$f":"Import!M30141","v":"Select"},{"$f":"Import!M30291","v":"Select"},{"$f":"Import!M30441","v":0},{"$f":"Import!M30591","v":0},{"$f":"Import!M30741","v":0},{"$f":"Import!M30891","v":0},{"$f":"Import!M31041","v":0}]
[39,{"$f":"Import!M29992","v":"Select"},{"$f":"Import!M30142","v":"Select"},{"$f":"Import!M30292","v":"Select"},{"$f":"Import!M30442","v":0},{"$f":"Import!M30592","v":0},{"$f":"Import!M30742","v":0},{"$f":"Import!M30892","v":0},{"$f":"Import!M31042","v":0}]
[40,{"$f":"Import!M29993","v":"Select"},{"$f":"Import!M30143","v":"Select"},{"$f":"Import!M30293","v":"Select"},{"$f":"Import!M30443","v":0},{"$f":"Import!M30593","v":0},{"$f":"Import!M30743","v":0},{"$f":"Import!M30893","v":0},{"$f":"Import!M31043","v":0}]
[41,{"$f":"Import!M29994","v":"Select"},{"$f":"Import!M30144","v":"Select"},{"$f":"Import!M30294","v":"Select"},{"$f":"Import!M30444","v":0},{"$f":"Import!M30594","v":0},{"$f":"Import!M30744","v":0},{"$f":"Import!M30894","v":0},{"$f":"Import!M31044","v":0}]
[42,{"$f":"Import!M29995","v":"Select"},{"$f":"Import!M30145","v":"Select"},{"$f":"Import!M30295","v":"Select"},{"$f":"Import!M30445","v":0},{"$f":"Import!M30595","v":0},{"$f":"Import!M30745","v":0},{"$f":"Import!M30895","v":0},{"$f":"Import!M31045","v":0}]
[43,{"$f":"Import!M29996","v":"Select"},{"$f":"Import!M30146","v":"Select"},{"$f":"Import!M30296","v":"Select"},{"$f":"Import!M30446","v":0},{"$f":"Import!M30596","v":0},{"$f":"Import!M30746","v":0},{"$f":"Import!M30896","v":0},{"$f":"Import!M31046","v":0}]
[44,{"$f":"Import!M29997","v":"Select"},{"$f":"Import!M30147","v":"Select"},{"$f":"Import!M30297","v":"Select"},{"$f":"Import!M30447","v":0},{"$f":"Import!M30597","v":0},{"$f":"Import!M30747","v":0},{"$f":"Import!M30897","v":0},{"$f":"Import!M31047","v":0}]
[45,{"$f":"Import!M29998","v":"Select"},{"$f":"Import!M30148","v":"Select"},{"$f":"Import!M30298","v":"Select"},{"$f":"Import!M30448","v":0},{"$f":"Import!M30598","v":0},{"$f":"Import!M30748","v":0},{"$f":"Import!M30898","v":0},{"$f":"Import!M31048","v":0}]
[46,{"$f":"Import!M29999","v":"Select"},{"$f":"Import!M30149","v":"Select"},{"$f":"Import!M30299","v":"Select"},{"$f":"Import!M30449","v":0},{"$f":"Import!M30599","v":0},{"$f":"Import!M30749","v":0},{"$f":"Import!M30899","v":0},{"$f":"Import!M31049","v":0}]
[47,{"$f":"Import!M30000","v":"Select"},{"$f":"Import!M30150","v":"Select"},{"$f":"Import!M30300","v":"Select"},{"$f":"Import!M30450","v":0},{"$f":"Import!M30600","v":0},{"$f":"Import!M30750","v":0},{"$f":"Import!M30900","v":0},{"$f":"Import!M31050","v":0}]
[48,{"$f":"Import!M30001","v":"Select"},{"$f":"Import!M30151","v":"Select"},{"$f":"Import!M30301","v":"Select"},{"$f":"Import!M30451","v":0},{"$f":"Import!M30601","v":0},{"$f":"Import!M30751","v":0},{"$f":"Import!M30901","v":0},{"$f":"Import!M31051","v":0}]
[49,{"$f":"Import!M30002","v":"Select"},{"$f":"Import!M30152","v":"Select"},{"$f":"Import!M30302","v":"Select"},{"$f":"Import!M30452","v":0},{"$f":"Import!M30602","v":0},{"$f":"Import!M30752","v":0},{"$f":"Import!M30902","v":0},{"$f":"Import!M31052","v":0}]
[50,{"$f":"Import!M30003","v":"Select"},{"$f":"Import!M30153","v":"Select"},{"$f":"Import!M30303","v":"Select"},{"$f":"Import!M30453","v":0},{"$f":"Import!M30603","v":0},{"$f":"Import!M30753","v":0},{"$f":"Import!M30903","v":0},{"$f":"Import!M31053","v":0}]
[51,{"$f":"Import!M30004","v":"Select"},{"$f":"Import!M30154","v":"Select"},{"$f":"Import!M30304","v":"Select"},{"$f":"Import!M30454","v":0},{"$f":"Import!M30604","v":0},{"$f":"Import!M30754","v":0},{"$f":"Import!M30904","v":0},{"$f":"Import!M31054","v":0}]
[52,{"$f":"Import!M30005","v":"Select"},{"$f":"Import!M30155","v":"Select"},{"$f":"Import!M30305","v":"Select"},{"$f":"Import!M30455","v":0},{"$f":"Import!M30605","v":0},{"$f":"Import!M30755","v":0},{"$f":"Import!M30905","v":0},{"$f":"Import!M31055","v":0}]
[53,{"$f":"Import!M30006","v":"Select"},{"$f":"Import!M30156","v":"Select"},{"$f":"Import!M30306","v":"Select"},{"$f":"Import!M30456","v":0},{"$f":"Import!M30606","v":0},{"$f":"Import!M30756","v":0},{"$f":"Import!M30906","v":0},{"$f":"Import!M31056","v":0}]
[54,{"$f":"Import!M30007","v":"Select"},{"$f":"Import!M30157","v":"Select"},{"$f":"Import!M30307","v":"Select"},{"$f":"Import!M30457","v":0},{"$f":"Import!M30607","v":0},{"$f":"Import!M30757","v":0},{"$f":"Import!M30907","v":0},{"$f":"Import!M31057","v":0}]
[55,{"$f":"Import!M30008","v":"Select"},{"$f":"Import!M30158","v":"Select"},{"$f":"Import!M30308","v":"Select"},{"$f":"Import!M30458","v":0},{"$f":"Import!M30608","v":0},{"$f":"Import!M30758","v":0},{"$f":"Import!M30908","v":0},{"$f":"Import!M31058","v":0}]
[56,{"$f":"Import!M30009","v":"Select"},{"$f":"Import!M30159","v":"Select"},{"$f":"Import!M30309","v":"Select"},{"$f":"Import!M30459","v":0},{"$f":"Import!M30609","v":0},{"$f":"Import!M30759","v":0},{"$f":"Import!M30909","v":0},{"$f":"Import!M31059","v":0}]
[57,{"$f":"Import!M30010","v":"Select"},{"$f":"Import!M30160","v":"Select"},{"$f":"Import!M30310","v":"Select"},{"$f":"Import!M30460","v":0},{"$f":"Import!M30610","v":0},{"$f":"Import!M30760","v":0},{"$f":"Import!M30910","v":0},{"$f":"Import!M31060","v":0}]
[58,{"$f":"Import!M30011","v":"Select"},{"$f":"Import!M30161","v":"Select"},{"$f":"Import!M30311","v":"Select"},{"$f":"Import!M30461","v":0},{"$f":"Import!M30611","v":0},{"$f":"Import!M30761","v":0},{"$f":"Import!M30911","v":0},{"$f":"Import!M31061","v":0}]
[59,{"$f":"Import!M30012","v":"Select"},{"$f":"Import!M30162","v":"Select"},{"$f":"Import!M30312","v":"Select"},{"$f":"Import!M30462","v":0},{"$f":"Import!M30612","v":0},{"$f":"Import!M30762","v":0},{"$f":"Import!M30912","v":0},{"$f":"Import!M31062","v":0}]
[60,{"$f":"Import!M30013","v":"Select"},{"$f":"Import!M30163","v":"Select"},{"$f":"Import!M30313","v":"Select"},{"$f":"Import!M30463","v":0},{"$f":"Import!M30613","v":0},{"$f":"Import!M30763","v":0},{"$f":"Import!M30913","v":0},{"$f":"Import!M31063","v":0}]
[61,{"$f":"Import!M30014","v":"Select"},{"$f":"Import!M30164","v":"Select"},{"$f":"Import!M30314","v":"Select"},{"$f":"Import!M30464","v":0},{"$f":"Import!M30614","v":0},{"$f":"Import!M30764","v":0},{"$f":"Import!M30914","v":0},{"$f":"Import!M31064","v":0}]
[62,{"$f":"Import!M30015","v":"Select"},{"$f":"Import!M30165","v":"Select"},{"$f":"Import!M30315","v":"Select"},{"$f":"Import!M30465","v":0},{"$f":"Import!M30615","v":0},{"$f":"Import!M30765","v":0},{"$f":"Import!M30915","v":0},{"$f":"Import!M31065","v":0}]
[63,{"$f":"Import!M30016","v":"Select"},{"$f":"Import!M30166","v":"Select"},{"$f":"Import!M30316","v":"Select"},{"$f":"Import!M30466","v":0},{"$f":"Import!M30616","v":0},{"$f":"Import!M30766","v":0},{"$f":"Import!M30916","v":0},{"$f":"Import!M31066","v":0}]
[64,{"$f":"Import!M30017","v":"Select"},{"$f":"Import!M30167","v":"Select"},{"$f":"Import!M30317","v":"Select"},{"$f":"Import!M30467","v":0},{"$f":"Import!M30617","v":0},{"$f":"Import!M30767","v":0},{"$f":"Import!M30917","v":0},{"$f":"Import!M31067","v":0}]
[65,{"$f":"Import!M30018","v":"Select"},{"$f":"Import!M30168","v":"Select"},{"$f":"Import!M30318","v":"Select"},{"$f":"Import!M30468","v":0},{"$f":"Import!M30618","v":0},{"$f":"Import!M30768","v":0},{"$f":"Import!M30918","v":0},{"$f":"Import!M31068","v":0}]
[66,{"$f":"Import!M30019","v":"Select"},{"$f":"Import!M30169","v":"Select"},{"$f":"Import!M30319","v":"Select"},{"$f":"Import!M30469","v":0},{"$f":"Import!M30619","v":0},{"$f":"Import!M30769","v":0},{"$f":"Import!M30919","v":0},{"$f":"Import!M31069","v":0}]
[{"$f":"A900+1","v":67},{"$f":"Import!M30020","v":"Select"},{"$f":"Import!M30170","v":"Select"},{"$f":"Import!M30320","v":"Select"},{"$f":"Import!M30470","v":0},{"$f":"Import!M30620","v":0},{"$f":"Import!M30770","v":0},{"$f":"Import!M30920","v":0},{"$f":"Import!M31070","v":0}]
[68,{"$f":"Import!M30021","v":"Select"},{"$f":"Import!M30171","v":"Select"},{"$f":"Import!M30321","v":"Select"},{"$f":"Import!M30471","v":0},{"$f":"Import!M30621","v":0},{"$f":"Import!M30771","v":0},{"$f":"Import!M30921","v":0},{"$f":"Import!M31071","v":0}]
[69,{"$f":"Import!M30022","v":"Select"},{"$f":"Import!M30172","v":"Select"},{"$f":"Import!M30322","v":"Select"},{"$f":"Import!M30472","v":0},{"$f":"Import!M30622","v":0},{"$f":"Import!M30772","v":0},{"$f":"Import!M30922","v":0},{"$f":"Import!M31072","v":0}]
[70,{"$f":"Import!M30023","v":"Select"},{"$f":"Import!M30173","v":"Select"},{"$f":"Import!M30323","v":"Select"},{"$f":"Import!M30473","v":0},{"$f":"Import!M30623","v":0},{"$f":"Import!M30773","v":0},{"$f":"Import!M30923","v":0},{"$f":"Import!M31073","v":0}]
[71,{"$f":"Import!M30024","v":"Select"},{"$f":"Import!M30174","v":"Select"},{"$f":"Import!M30324","v":"Select"},{"$f":"Import!M30474","v":0},{"$f":"Import!M30624","v":0},{"$f":"Import!M30774","v":0},{"$f":"Import!M30924","v":0},{"$f":"Import!M31074","v":0}]
[72,{"$f":"Import!M30025","v":"Select"},{"$f":"Import!M30175","v":"Select"},{"$f":"Import!M30325","v":"Select"},{"$f":"Import!M30475","v":0},{"$f":"Import!M30625","v":0},{"$f":"Import!M30775","v":0},{"$f":"Import!M30925","v":0},{"$f":"Import!M31075","v":0}]
[73,{"$f":"Import!M30026","v":"Select"},{"$f":"Import!M30176","v":"Select"},{"$f":"Import!M30326","v":"Select"},{"$f":"Import!M30476","v":0},{"$f":"Import!M30626","v":0},{"$f":"Import!M30776","v":0},{"$f":"Import!M30926","v":0},{"$f":"Import!M31076","v":0}]
[74,{"$f":"Import!M30027","v":"Select"},{"$f":"Import!M30177","v":"Select"},{"$f":"Import!M30327","v":"Select"},{"$f":"Import!M30477","v":0},{"$f":"Import!M30627","v":0},{"$f":"Import!M30777","v":0},{"$f":"Import!M30927","v":0},{"$f":"Import!M31077","v":0}]
[75,{"$f":"Import!M30028","v":"Select"},{"$f":"Import!M30178","v":"Select"},{"$f":"Import!M30328","v":"Select"},{"$f":"Import!M30478","v":0},{"$f":"Import!M30628","v":0},{"$f":"Import!M30778","v":0},{"$f":"Import!M30928","v":0},{"$f":"Import!M31078","v":0}]
[76,{"$f":"Import!M30029","v":"Select"},{"$f":"Import!M30179","v":"Select"},{"$f":"Import!M30329","v":"Select"},{"$f":"Import!M30479","v":0},{"$f":"Import!M30629","v":0},{"$f":"Import!M30779","v":0},{"$f":"Import!M30929","v":0},{"$f":"Import!M31079","v":0}]
[77,{"$f":"Import!M30030","v":"Select"},{"$f":"Import!M30180","v":"Select"},{"$f":"Import!M30330","v":"Select"},{"$f":"Import!M30480","v":0},{"$f":"Import!M30630","v":0},{"$f":"Import!M30780","v":0},{"$f":"Import!M30930","v":0},{"$f":"Import!M31080","v":0}]
[78,{"$f":"Import!M30031","v":"Select"},{"$f":"Import!M30181","v":"Select"},{"$f":"Import!M30331","v":"Select"},{"$f":"Import!M30481","v":0},{"$f":"Import!M30631","v":0},{"$f":"Import!M30781","v":0},{"$f":"Import!M30931","v":0},{"$f":"Import!M31081","v":0}]
[79,{"$f":"Import!M30032","v":"Select"},{"$f":"Import!M30182","v":"Select"},{"$f":"Import!M30332","v":"Select"},{"$f":"Import!M30482","v":0},{"$f":"Import!M30632","v":0},{"$f":"Import!M30782","v":0},{"$f":"Import!M30932","v":0},{"$f":"Import!M31082","v":0}]
[80,{"$f":"Import!M30033","v":"Select"},{"$f":"Import!M30183","v":"Select"},{"$f":"Import!M30333","v":"Select"},{"$f":"Import!M30483","v":0},{"$f":"Import!M30633","v":0},{"$f":"Import!M30783","v":0},{"$f":"Import!M30933","v":0},{"$f":"Import!M31083","v":0}]
[81,{"$f":"Import!M30034","v":"Select"},{"$f":"Import!M30184","v":"Select"},{"$f":"Import!M30334","v":"Select"},{"$f":"Import!M30484","v":0},{"$f":"Import!M30634","v":0},{"$f":"Import!M30784","v":0},{"$f":"Import!M30934","v":0},{"$f":"Import!M31084","v":0}]
[82,{"$f":"Import!M30035","v":"Select"},{"$f":"Import!M30185","v":"Select"},{"$f":"Import!M30335","v":"Select"},{"$f":"Import!M30485","v":0},{"$f":"Import!M30635","v":0},{"$f":"Import!M30785","v":0},{"$f":"Import!M30935","v":0},{"$f":"Import!M31085","v":0}]
[83,{"$f":"Import!M30036","v":"Select"},{"$f":"Import!M30186","v":"Select"},{"$f":"Import!M30336","v":"Select"},{"$f":"Import!M30486","v":0},{"$f":"Import!M30636","v":0},{"$f":"Import!M30786","v":0},{"$f":"Import!M30936","v":0},{"$f":"Import!M31086","v":0}]
[84,{"$f":"Import!M30037","v":"Select"},{"$f":"Import!M30187","v":"Select"},{"$f":"Import!M30337","v":"Select"},{"$f":"Import!M30487","v":0},{"$f":"Import!M30637","v":0},{"$f":"Import!M30787","v":0},{"$f":"Import!M30937","v":0},{"$f":"Import!M31087","v":0}]
[85,{"$f":"Import!M30038","v":"Select"},{"$f":"Import!M30188","v":"Select"},{"$f":"Import!M30338","v":"Select"},{"$f":"Import!M30488","v":0},{"$f":"Import!M30638","v":0},{"$f":"Import!M30788","v":0},{"$f":"Import!M30938","v":0},{"$f":"Import!M31088","v":0}]
[86,{"$f":"Import!M30039","v":"Select"},{"$f":"Import!M30189","v":"Select"},{"$f":"Import!M30339","v":"Select"},{"$f":"Import!M30489","v":0},{"$f":"Import!M30639","v":0},{"$f":"Import!M30789","v":0},{"$f":"Import!M30939","v":0},{"$f":"Import!M31089","v":0}]
[87,{"$f":"Import!M30040","v":"Select"},{"$f":"Import!M30190","v":"Select"},{"$f":"Import!M30340","v":"Select"},{"$f":"Import!M30490","v":0},{"$f":"Import!M30640","v":0},{"$f":"Import!M30790","v":0},{"$f":"Import!M30940","v":0},{"$f":"Import!M31090","v":0}]
[88,{"$f":"Import!M30041","v":"Select"},{"$f":"Import!M30191","v":"Select"},{"$f":"Import!M30341","v":"Select"},{"$f":"Import!M30491","v":0},{"$f":"Import!M30641","v":0},{"$f":"Import!M30791","v":0},{"$f":"Import!M30941","v":0},{"$f":"Import!M31091","v":0}]
[89,{"$f":"Import!M30042","v":"Select"},{"$f":"Import!M30192","v":"Select"},{"$f":"Import!M30342","v":"Select"},{"$f":"Import!M30492","v":0},{"$f":"Import!M30642","v":0},{"$f":"Import!M30792","v":0},{"$f":"Import!M30942","v":0},{"$f":"Import!M31092","v":0}]
[90,{"$f":"Import!M30043","v":"Select"},{"$f":"Import!M30193","v":"Select"},{"$f":"Import!M30343","v":"Select"},{"$f":"Import!M30493","v":0},{"$f":"Import!M30643","v":0},{"$f":"Import!M30793","v":0},{"$f":"Import!M30943","v":0},{"$f":"Import!M31093","v":0}]
[91,{"$f":"Import!M30044","v":"Select"},{"$f":"Import!M30194","v":"Select"},{"$f":"Import!M30344","v":"Select"},{"$f":"Import!M30494","v":0},{"$f":"Import!M30644","v":0},{"$f":"Import!M30794","v":0},{"$f":"Import!M30944","v":0},{"$f":"Import!M31094","v":0}]
[92,{"$f":"Import!M30045","v":"Select"},{"$f":"Import!M30195","v":"Select"},{"$f":"Import!M30345","v":"Select"},{"$f":"Import!M30495","v":0},{"$f":"Import!M30645","v":0},{"$f":"Import!M30795","v":0},{"$f":"Import!M30945","v":0},{"$f":"Import!M31095","v":0}]
[93,{"$f":"Import!M30046","v":"Select"},{"$f":"Import!M30196","v":"Select"},{"$f":"Import!M30346","v":"Select"},{"$f":"Import!M30496","v":0},{"$f":"Import!M30646","v":0},{"$f":"Import!M30796","v":0},{"$f":"Import!M30946","v":0},{"$f":"Import!M31096","v":0}]
[94,{"$f":"Import!M30047","v":"Select"},{"$f":"Import!M30197","v":"Select"},{"$f":"Import!M30347","v":"Select"},{"$f":"Import!M30497","v":0},{"$f":"Import!M30647","v":0},{"$f":"Import!M30797","v":0},{"$f":"Import!M30947","v":0},{"$f":"Import!M31097","v":0}]
[95,{"$f":"Import!M30048","v":"Select"},{"$f":"Import!M30198","v":"Select"},{"$f":"Import!M30348","v":"Select"},{"$f":"Import!M30498","v":0},{"$f":"Import!M30648","v":0},{"$f":"Import!M30798","v":0},{"$f":"Import!M30948","v":0},{"$f":"Import!M31098","v":0}]
[96,{"$f":"Import!M30049","v":"Select"},{"$f":"Import!M30199","v":"Select"},{"$f":"Import!M30349","v":"Select"},{"$f":"Import!M30499","v":0},{"$f":"Import!M30649","v":0},{"$f":"Import!M30799","v":0},{"$f":"Import!M30949","v":0},{"$f":"Import!M31099","v":0}]
[97,{"$f":"Import!M30050","v":"Select"},{"$f":"Import!M30200","v":"Select"},{"$f":"Import!M30350","v":"Select"},{"$f":"Import!M30500","v":0},{"$f":"Import!M30650","v":0},{"$f":"Import!M30800","v":0},{"$f":"Import!M30950","v":0},{"$f":"Import!M31100","v":0}]
[98,{"$f":"Import!M30051","v":"Select"},{"$f":"Import!M30201","v":"Select"},{"$f":"Import!M30351","v":"Select"},{"$f":"Import!M30501","v":0},{"$f":"Import!M30651","v":0},{"$f":"Import!M30801","v":0},{"$f":"Import!M30951","v":0},{"$f":"Import!M31101","v":0}]
[99,{"$f":"Import!M30052","v":"Select"},{"$f":"Import!M30202","v":"Select"},{"$f":"Import!M30352","v":"Select"},{"$f":"Import!M30502","v":0},{"$f":"Import!M30652","v":0},{"$f":"Import!M30802","v":0},{"$f":"Import!M30952","v":0},{"$f":"Import!M31102","v":0}]
[100,{"$f":"Import!M30053","v":"Select"},{"$f":"Import!M30203","v":"Select"},{"$f":"Import!M30353","v":"Select"},{"$f":"Import!M30503","v":0},{"$f":"Import!M30653","v":0},{"$f":"Import!M30803","v":0},{"$f":"Import!M30953","v":0},{"$f":"Import!M31103","v":0}]
[101,{"$f":"Import!M30054","v":"Select"},{"$f":"Import!M30204","v":"Select"},{"$f":"Import!M30354","v":"Select"},{"$f":"Import!M30504","v":0},{"$f":"Import!M30654","v":0},{"$f":"Import!M30804","v":0},{"$f":"Import!M30954","v":0},{"$f":"Import!M31104","v":0}]
[102,{"$f":"Import!M30055","v":"Select"},{"$f":"Import!M30205","v":"Select"},{"$f":"Import!M30355","v":"Select"},{"$f":"Import!M30505","v":0},{"$f":"Import!M30655","v":0},{"$f":"Import!M30805","v":0},{"$f":"Import!M30955","v":0},{"$f":"Import!M31105","v":0}]
[103,{"$f":"Import!M30056","v":"Select"},{"$f":"Import!M30206","v":"Select"},{"$f":"Import!M30356","v":"Select"},{"$f":"Import!M30506","v":0},{"$f":"Import!M30656","v":0},{"$f":"Import!M30806","v":0},{"$f":"Import!M30956","v":0},{"$f":"Import!M31106","v":0}]
[104,{"$f":"Import!M30057","v":"Select"},{"$f":"Import!M30207","v":"Select"},{"$f":"Import!M30357","v":"Select"},{"$f":"Import!M30507","v":0},{"$f":"Import!M30657","v":0},{"$f":"Import!M30807","v":0},{"$f":"Import!M30957","v":0},{"$f":"Import!M31107","v":0}]
[105,{"$f":"Import!M30058","v":"Select"},{"$f":"Import!M30208","v":"Select"},{"$f":"Import!M30358","v":"Select"},{"$f":"Import!M30508","v":0},{"$f":"Import!M30658","v":0},{"$f":"Import!M30808","v":0},{"$f":"Import!M30958","v":0},{"$f":"Import!M31108","v":0}]
[106,{"$f":"Import!M30059","v":"Select"},{"$f":"Import!M30209","v":"Select"},{"$f":"Import!M30359","v":"Select"},{"$f":"Import!M30509","v":0},{"$f":"Import!M30659","v":0},{"$f":"Import!M30809","v":0},{"$f":"Import!M30959","v":0},{"$f":"Import!M31109","v":0}]
[107,{"$f":"Import!M30060","v":"Select"},{"$f":"Import!M30210","v":"Select"},{"$f":"Import!M30360","v":"Select"},{"$f":"Import!M30510","v":0},{"$f":"Import!M30660","v":0},{"$f":"Import!M30810","v":0},{"$f":"Import!M30960","v":0},{"$f":"Import!M31110","v":0}]
[108,{"$f":"Import!M30061","v":"Select"},{"$f":"Import!M30211","v":"Select"},{"$f":"Import!M30361","v":"Select"},{"$f":"Import!M30511","v":0},{"$f":"Import!M30661","v":0},{"$f":"Import!M30811","v":0},{"$f":"Import!M30961","v":0},{"$f":"Import!M31111","v":0}]
[109,{"$f":"Import!M30062","v":"Select"},{"$f":"Import!M30212","v":"Select"},{"$f":"Import!M30362","v":"Select"},{"$f":"Import!M30512","v":0},{"$f":"Import!M30662","v":0},{"$f":"Import!M30812","v":0},{"$f":"Import!M30962","v":0},{"$f":"Import!M31112","v":0}]
[110,{"$f":"Import!M30063","v":"Select"},{"$f":"Import!M30213","v":"Select"},{"$f":"Import!M30363","v":"Select"},{"$f":"Import!M30513","v":0},{"$f":"Import!M30663","v":0},{"$f":"Import!M30813","v":0},{"$f":"Import!M30963","v":0},{"$f":"Import!M31113","v":0}]
[111,{"$f":"Import!M30064","v":"Select"},{"$f":"Import!M30214","v":"Select"},{"$f":"Import!M30364","v":"Select"},{"$f":"Import!M30514","v":0},{"$f":"Import!M30664","v":0},{"$f":"Import!M30814","v":0},{"$f":"Import!M30964","v":0},{"$f":"Import!M31114","v":0}]
[112,{"$f":"Import!M30065","v":"Select"},{"$f":"Import!M30215","v":"Select"},{"$f":"Import!M30365","v":"Select"},{"$f":"Import!M30515","v":0},{"$f":"Import!M30665","v":0},{"$f":"Import!M30815","v":0},{"$f":"Import!M30965","v":0},{"$f":"Import!M31115","v":0}]
[113,{"$f":"Import!M30066","v":"Select"},{"$f":"Import!M30216","v":"Select"},{"$f":"Import!M30366","v":"Select"},{"$f":"Import!M30516","v":0},{"$f":"Import!M30666","v":0},{"$f":"Import!M30816","v":0},{"$f":"Import!M30966","v":0},{"$f":"Import!M31116","v":0}]
[114,{"$f":"Import!M30067","v":"Select"},{"$f":"Import!M30217","v":"Select"},{"$f":"Import!M30367","v":"Select"},{"$f":"Import!M30517","v":0},{"$f":"Import!M30667","v":0},{"$f":"Import!M30817","v":0},{"$f":"Import!M30967","v":0},{"$f":"Import!M31117","v":0}]
[115,{"$f":"Import!M30068","v":"Select"},{"$f":"Import!M30218","v":"Select"},{"$f":"Import!M30368","v":"Select"},{"$f":"Import!M30518","v":0},{"$f":"Import!M30668","v":0},{"$f":"Import!M30818","v":0},{"$f":"Import!M30968","v":0},{"$f":"Import!M31118","v":0}]
[116,{"$f":"Import!M30069","v":"Select"},{"$f":"Import!M30219","v":"Select"},{"$f":"Import!M30369","v":"Select"},{"$f":"Import!M30519","v":0},{"$f":"Import!M30669","v":0},{"$f":"Import!M30819","v":0},{"$f":"Import!M30969","v":0},{"$f":"Import!M31119","v":0}]
[117,{"$f":"Import!M30070","v":"Select"},{"$f":"Import!M30220","v":"Select"},{"$f":"Import!M30370","v":"Select"},{"$f":"Import!M30520","v":0},{"$f":"Import!M30670","v":0},{"$f":"Import!M30820","v":0},{"$f":"Import!M30970","v":0},{"$f":"Import!M31120","v":0}]
[118,{"$f":"Import!M30071","v":"Select"},{"$f":"Import!M30221","v":"Select"},{"$f":"Import!M30371","v":"Select"},{"$f":"Import!M30521","v":0},{"$f":"Import!M30671","v":0},{"$f":"Import!M30821","v":0},{"$f":"Import!M30971","v":0},{"$f":"Import!M31121","v":0}]
[119,{"$f":"Import!M30072","v":"Select"},{"$f":"Import!M30222","v":"Select"},{"$f":"Import!M30372","v":"Select"},{"$f":"Import!M30522","v":0},{"$f":"Import!M30672","v":0},{"$f":"Import!M30822","v":0},{"$f":"Import!M30972","v":0},{"$f":"Import!M31122","v":0}]
[120,{"$f":"Import!M30073","v":"Select"},{"$f":"Import!M30223","v":"Select"},{"$f":"Import!M30373","v":"Select"},{"$f":"Import!M30523","v":0},{"$f":"Import!M30673","v":0},{"$f":"Import!M30823","v":0},{"$f":"Import!M30973","v":0},{"$f":"Import!M31123","v":0}]
[121,{"$f":"Import!M30074","v":"Select"},{"$f":"Import!M30224","v":"Select"},{"$f":"Import!M30374","v":"Select"},{"$f":"Import!M30524","v":0},{"$f":"Import!M30674","v":0},{"$f":"Import!M30824","v":0},{"$f":"Import!M30974","v":0},{"$f":"Import!M31124","v":0}]
[122,{"$f":"Import!M30075","v":"Select"},{"$f":"Import!M30225","v":"Select"},{"$f":"Import!M30375","v":"Select"},{"$f":"Import!M30525","v":0},{"$f":"Import!M30675","v":0},{"$f":"Import!M30825","v":0},{"$f":"Import!M30975","v":0},{"$f":"Import!M31125","v":0}]
[123,{"$f":"Import!M30076","v":"Select"},{"$f":"Import!M30226","v":"Select"},{"$f":"Import!M30376","v":"Select"},{"$f":"Import!M30526","v":0},{"$f":"Import!M30676","v":0},{"$f":"Import!M30826","v":0},{"$f":"Import!M30976","v":0},{"$f":"Import!M31126","v":0}]
[124,{"$f":"Import!M30077","v":"Select"},{"$f":"Import!M30227","v":"Select"},{"$f":"Import!M30377","v":"Select"},{"$f":"Import!M30527","v":0},{"$f":"Import!M30677","v":0},{"$f":"Import!M30827","v":0},{"$f":"Import!M30977","v":0},{"$f":"Import!M31127","v":0}]
[125,{"$f":"Import!M30078","v":"Select"},{"$f":"Import!M30228","v":"Select"},{"$f":"Import!M30378","v":"Select"},{"$f":"Import!M30528","v":0},{"$f":"Import!M30678","v":0},{"$f":"Import!M30828","v":0},{"$f":"Import!M30978","v":0},{"$f":"Import!M31128","v":0}]
[126,{"$f":"Import!M30079","v":"Select"},{"$f":"Import!M30229","v":"Select"},{"$f":"Import!M30379","v":"Select"},{"$f":"Import!M30529","v":0},{"$f":"Import!M30679","v":0},{"$f":"Import!M30829","v":0},{"$f":"Import!M30979","v":0},{"$f":"Import!M31129","v":0}]
[127,{"$f":"Import!M30080","v":"Select"},{"$f":"Import!M30230","v":"Select"},{"$f":"Import!M30380","v":"Select"},{"$f":"Import!M30530","v":0},{"$f":"Import!M30680","v":0},{"$f":"Import!M30830","v":0},{"$f":"Import!M30980","v":0},{"$f":"Import!M31130","v":0}]
[128,{"$f":"Import!M30081","v":"Select"},{"$f":"Import!M30231","v":"Select"},{"$f":"Import!M30381","v":"Select"},{"$f":"Import!M30531","v":0},{"$f":"Import!M30681","v":0},{"$f":"Import!M30831","v":0},{"$f":"Import!M30981","v":0},{"$f":"Import!M31131","v":0}]
[129,{"$f":"Import!M30082","v":"Select"},{"$f":"Import!M30232","v":"Select"},{"$f":"Import!M30382","v":"Select"},{"$f":"Import!M30532","v":0},{"$f":"Import!M30682","v":0},{"$f":"Import!M30832","v":0},{"$f":"Import!M30982","v":0},{"$f":"Import!M31132","v":0}]
[130,{"$f":"Import!M30083","v":"Select"},{"$f":"Import!M30233","v":"Select"},{"$f":"Import!M30383","v":"Select"},{"$f":"Import!M30533","v":0},{"$f":"Import!M30683","v":0},{"$f":"Import!M30833","v":0},{"$f":"Import!M30983","v":0},{"$f":"Import!M31133","v":0}]
[{"$f":"A964+1","v":131},{"$f":"Import!M30084","v":"Select"},{"$f":"Import!M30234","v":"Select"},{"$f":"Import!M30384","v":"Select"},{"$f":"Import!M30534","v":0},{"$f":"Import!M30684","v":0},{"$f":"Import!M30834","v":0},{"$f":"Import!M30984","v":0},{"$f":"Import!M31134","v":0}]
[132,{"$f":"Import!M30085","v":"Select"},{"$f":"Import!M30235","v":"Select"},{"$f":"Import!M30385","v":"Select"},{"$f":"Import!M30535","v":0},{"$f":"Import!M30685","v":0},{"$f":"Import!M30835","v":0},{"$f":"Import!M30985","v":0},{"$f":"Import!M31135","v":0}]
[133,{"$f":"Import!M30086","v":"Select"},{"$f":"Import!M30236","v":"Select"},{"$f":"Import!M30386","v":"Select"},{"$f":"Import!M30536","v":0},{"$f":"Import!M30686","v":0},{"$f":"Import!M30836","v":0},{"$f":"Import!M30986","v":0},{"$f":"Import!M31136","v":0}]
[134,{"$f":"Import!M30087","v":"Select"},{"$f":"Import!M30237","v":"Select"},{"$f":"Import!M30387","v":"Select"},{"$f":"Import!M30537","v":0},{"$f":"Import!M30687","v":0},{"$f":"Import!M30837","v":0},{"$f":"Import!M30987","v":0},{"$f":"Import!M31137","v":0}]
[135,{"$f":"Import!M30088","v":"Select"},{"$f":"Import!M30238","v":"Select"},{"$f":"Import!M30388","v":"Select"},{"$f":"Import!M30538","v":0},{"$f":"Import!M30688","v":0},{"$f":"Import!M30838","v":0},{"$f":"Import!M30988","v":0},{"$f":"Import!M31138","v":0}]
[136,{"$f":"Import!M30089","v":"Select"},{"$f":"Import!M30239","v":"Select"},{"$f":"Import!M30389","v":"Select"},{"$f":"Import!M30539","v":0},{"$f":"Import!M30689","v":0},{"$f":"Import!M30839","v":0},{"$f":"Import!M30989","v":0},{"$f":"Import!M31139","v":0}]
[137,{"$f":"Import!M30090","v":"Select"},{"$f":"Import!M30240","v":"Select"},{"$f":"Import!M30390","v":"Select"},{"$f":"Import!M30540","v":0},{"$f":"Import!M30690","v":0},{"$f":"Import!M30840","v":0},{"$f":"Import!M30990","v":0},{"$f":"Import!M31140","v":0}]
[138,{"$f":"Import!M30091","v":"Select"},{"$f":"Import!M30241","v":"Select"},{"$f":"Import!M30391","v":"Select"},{"$f":"Import!M30541","v":0},{"$f":"Import!M30691","v":0},{"$f":"Import!M30841","v":0},{"$f":"Import!M30991","v":0},{"$f":"Import!M31141","v":0}]
[139,{"$f":"Import!M30092","v":"Select"},{"$f":"Import!M30242","v":"Select"},{"$f":"Import!M30392","v":"Select"},{"$f":"Import!M30542","v":0},{"$f":"Import!M30692","v":0},{"$f":"Import!M30842","v":0},{"$f":"Import!M30992","v":0},{"$f":"Import!M31142","v":0}]
[140,{"$f":"Import!M30093","v":"Select"},{"$f":"Import!M30243","v":"Select"},{"$f":"Import!M30393","v":"Select"},{"$f":"Import!M30543","v":0},{"$f":"Import!M30693","v":0},{"$f":"Import!M30843","v":0},{"$f":"Import!M30993","v":0},{"$f":"Import!M31143","v":0}]
[141,{"$f":"Import!M30094","v":"Select"},{"$f":"Import!M30244","v":"Select"},{"$f":"Import!M30394","v":"Select"},{"$f":"Import!M30544","v":0},{"$f":"Import!M30694","v":0},{"$f":"Import!M30844","v":0},{"$f":"Import!M30994","v":0},{"$f":"Import!M31144","v":0}]
[142,{"$f":"Import!M30095","v":"Select"},{"$f":"Import!M30245","v":"Select"},{"$f":"Import!M30395","v":"Select"},{"$f":"Import!M30545","v":0},{"$f":"Import!M30695","v":0},{"$f":"Import!M30845","v":0},{"$f":"Import!M30995","v":0},{"$f":"Import!M31145","v":0}]
[143,{"$f":"Import!M30096","v":"Select"},{"$f":"Import!M30246","v":"Select"},{"$f":"Import!M30396","v":"Select"},{"$f":"Import!M30546","v":0},{"$f":"Import!M30696","v":0},{"$f":"Import!M30846","v":0},{"$f":"Import!M30996","v":0},{"$f":"Import!M31146","v":0}]
[144,{"$f":"Import!M30097","v":"Select"},{"$f":"Import!M30247","v":"Select"},{"$f":"Import!M30397","v":"Select"},{"$f":"Import!M30547","v":0},{"$f":"Import!M30697","v":0},{"$f":"Import!M30847","v":0},{"$f":"Import!M30997","v":0},{"$f":"Import!M31147","v":0}]
[145,{"$f":"Import!M30098","v":"Select"},{"$f":"Import!M30248","v":"Select"},{"$f":"Import!M30398","v":"Select"},{"$f":"Import!M30548","v":0},{"$f":"Import!M30698","v":0},{"$f":"Import!M30848","v":0},{"$f":"Import!M30998","v":0},{"$f":"Import!M31148","v":0}]
[146,{"$f":"Import!M30099","v":"Select"},{"$f":"Import!M30249","v":"Select"},{"$f":"Import!M30399","v":"Select"},{"$f":"Import!M30549","v":0},{"$f":"Import!M30699","v":0},{"$f":"Import!M30849","v":0},{"$f":"Import!M30999","v":0},{"$f":"Import!M31149","v":0}]
[147,{"$f":"Import!M30100","v":"Select"},{"$f":"Import!M30250","v":"Select"},{"$f":"Import!M30400","v":"Select"},{"$f":"Import!M30550","v":0},{"$f":"Import!M30700","v":0},{"$f":"Import!M30850","v":0},{"$f":"Import!M31000","v":0},{"$f":"Import!M31150","v":0}]
[148,{"$f":"Import!M30101","v":"Select"},{"$f":"Import!M30251","v":"Select"},{"$f":"Import!M30401","v":"Select"},{"$f":"Import!M30551","v":0},{"$f":"Import!M30701","v":0},{"$f":"Import!M30851","v":0},{"$f":"Import!M31001","v":0},{"$f":"Import!M31151","v":0}]
[149,{"$f":"Import!M30102","v":"Select"},{"$f":"Import!M30252","v":"Select"},{"$f":"Import!M30402","v":"Select"},{"$f":"Import!M30552","v":0},{"$f":"Import!M30702","v":0},{"$f":"Import!M30852","v":0},{"$f":"Import!M31002","v":0},{"$f":"Import!M31152","v":0}]
[150,{"$f":"Import!M30103","v":"Select"},{"$f":"Import!M30253","v":"Select"},{"$f":"Import!M30403","v":"Select"},{"$f":"Import!M30553","v":0},{"$f":"Import!M30703","v":0},{"$f":"Import!M30853","v":0},{"$f":"Import!M31003","v":0},{"$f":"Import!M31153","v":0}]
[]
[null,"Total Asset-Backed and Structured Securities",null,null,{"$f":"SUM(E835:E984)","v":0},{"$f":"SUM(F835:F984)","v":0},{"$f":"IFERROR(SUMPRODUCT(G835:G984,$F835:$F984)/SUM($F835:$F984),0)","v":0},{"$f":"IFERROR(SUMPRODUCT(H835:H984,$F835:$F984)/SUM($F835:$F984),0)","v":0}]
[]
[null,"(D) LOANS"]
[]
[null,null,"Enter # of Asset Types",{"$f":"Import!M31154","v":0}]
[null,null,null,null,null,{"$f":"YEAR($C$3)","v":2023},2023,"Weighted"]
[null,"Asset Type","Currency","Country","BSCR Rating","Nominal Amount","Fair Value","Average YTM","Effective Duration","Comments"]
[1,{"$f":"Import!M31155","v":"Select"},{"$f":"Import!M31255","v":"Select"},{"$f":"Import!M31355","v":"Select"},{"$f":"Import!M31455","v":"Select"},{"$f":"Import!M31555","v":0},{"$f":"Import!M31655","v":0},{"$f":"Import!M31755","v":0},{"$f":"Import!M31855","v":0},{"$f":"Import!M31955","v":0}]
[{"$f":"A993+1","v":2},{"$f":"Import!M31156","v":"Select"},{"$f":"Import!M31256","v":"Select"},{"$f":"Import!M31356","v":"Select"},{"$f":"Import!M31456","v":"Select"},{"$f":"Import!M31556","v":0},{"$f":"Import!M31656","v":0},{"$f":"Import!M31756","v":0},{"$f":"Import!M31856","v":0},{"$f":"Import!M31956","v":0}]
[{"$f":"A994+1","v":3},{"$f":"Import!M31157","v":"Select"},{"$f":"Import!M31257","v":"Select"},{"$f":"Import!M31357","v":"Select"},{"$f":"Import!M31457","v":"Select"},{"$f":"Import!M31557","v":0},{"$f":"Import!M31657","v":0},{"$f":"Import!M31757","v":0},{"$f":"Import!M31857","v":0},{"$f":"Import!M31957","v":0}]
[4,{"$f":"Import!M31158","v":"Select"},{"$f":"Import!M31258","v":"Select"},{"$f":"Import!M31358","v":"Select"},{"$f":"Import!M31458","v":"Select"},{"$f":"Import!M31558","v":0},{"$f":"Import!M31658","v":0},{"$f":"Import!M31758","v":0},{"$f":"Import!M31858","v":0},{"$f":"Import!M31958","v":0}]
[5,{"$f":"Import!M31159","v":"Select"},{"$f":"Import!M31259","v":"Select"},{"$f":"Import!M31359","v":"Select"},{"$f":"Import!M31459","v":"Select"},{"$f":"Import!M31559","v":0},{"$f":"Import!M31659","v":0},{"$f":"Import!M31759","v":0},{"$f":"Import!M31859","v":0},{"$f":"Import!M31959","v":0}]
[6,{"$f":"Import!M31160","v":"Select"},{"$f":"Import!M31260","v":"Select"},{"$f":"Import!M31360","v":"Select"},{"$f":"Import!M31460","v":"Select"},{"$f":"Import!M31560","v":0},{"$f":"Import!M31660","v":0},{"$f":"Import!M31760","v":0},{"$f":"Import!M31860","v":0},{"$f":"Import!M31960","v":0}]
[7,{"$f":"Import!M31161","v":"Select"},{"$f":"Import!M31261","v":"Select"},{"$f":"Import!M31361","v":"Select"},{"$f":"Import!M31461","v":"Select"},{"$f":"Import!M31561","v":0},{"$f":"Import!M31661","v":0},{"$f":"Import!M31761","v":0},{"$f":"Import!M31861","v":0},{"$f":"Import!M31961","v":0}]
[8,{"$f":"Import!M31162","v":"Select"},{"$f":"Import!M31262","v":"Select"},{"$f":"Import!M31362","v":"Select"},{"$f":"Import!M31462","v":"Select"},{"$f":"Import!M31562","v":0},{"$f":"Import!M31662","v":0},{"$f":"Import!M31762","v":0},{"$f":"Import!M31862","v":0},{"$f":"Import!M31962","v":0}]
[9,{"$f":"Import!M31163","v":"Select"},{"$f":"Import!M31263","v":"Select"},{"$f":"Import!M31363","v":"Select"},{"$f":"Import!M31463","v":"Select"},{"$f":"Import!M31563","v":0},{"$f":"Import!M31663","v":0},{"$f":"Import!M31763","v":0},{"$f":"Import!M31863","v":0},{"$f":"Import!M31963","v":0}]
[10,{"$f":"Import!M31164","v":"Select"},{"$f":"Import!M31264","v":"Select"},{"$f":"Import!M31364","v":"Select"},{"$f":"Import!M31464","v":"Select"},{"$f":"Import!M31564","v":0},{"$f":"Import!M31664","v":0},{"$f":"Import!M31764","v":0},{"$f":"Import!M31864","v":0},{"$f":"Import!M31964","v":0}]
[11,{"$f":"Import!M31165","v":"Select"},{"$f":"Import!M31265","v":"Select"},{"$f":"Import!M31365","v":"Select"},{"$f":"Import!M31465","v":"Select"},{"$f":"Import!M31565","v":0},{"$f":"Import!M31665","v":0},{"$f":"Import!M31765","v":0},{"$f":"Import!M31865","v":0},{"$f":"Import!M31965","v":0}]
[12,{"$f":"Import!M31166","v":"Select"},{"$f":"Import!M31266","v":"Select"},{"$f":"Import!M31366","v":"Select"},{"$f":"Import!M31466","v":"Select"},{"$f":"Import!M31566","v":0},{"$f":"Import!M31666","v":0},{"$f":"Import!M31766","v":0},{"$f":"Import!M31866","v":0},{"$f":"Import!M31966","v":0}]
[13,{"$f":"Import!M31167","v":"Select"},{"$f":"Import!M31267","v":"Select"},{"$f":"Import!M31367","v":"Select"},{"$f":"Import!M31467","v":"Select"},{"$f":"Import!M31567","v":0},{"$f":"Import!M31667","v":0},{"$f":"Import!M31767","v":0},{"$f":"Import!M31867","v":0},{"$f":"Import!M31967","v":0}]
[14,{"$f":"Import!M31168","v":"Select"},{"$f":"Import!M31268","v":"Select"},{"$f":"Import!M31368","v":"Select"},{"$f":"Import!M31468","v":"Select"},{"$f":"Import!M31568","v":0},{"$f":"Import!M31668","v":0},{"$f":"Import!M31768","v":0},{"$f":"Import!M31868","v":0},{"$f":"Import!M31968","v":0}]
[15,{"$f":"Import!M31169","v":"Select"},{"$f":"Import!M31269","v":"Select"},{"$f":"Import!M31369","v":"Select"},{"$f":"Import!M31469","v":"Select"},{"$f":"Import!M31569","v":0},{"$f":"Import!M31669","v":0},{"$f":"Import!M31769","v":0},{"$f":"Import!M31869","v":0},{"$f":"Import!M31969","v":0}]
[16,{"$f":"Import!M31170","v":"Select"},{"$f":"Import!M31270","v":"Select"},{"$f":"Import!M31370","v":"Select"},{"$f":"Import!M31470","v":"Select"},{"$f":"Import!M31570","v":0},{"$f":"Import!M31670","v":0},{"$f":"Import!M31770","v":0},{"$f":"Import!M31870","v":0},{"$f":"Import!M31970","v":0}]
[17,{"$f":"Import!M31171","v":"Select"},{"$f":"Import!M31271","v":"Select"},{"$f":"Import!M31371","v":"Select"},{"$f":"Import!M31471","v":"Select"},{"$f":"Import!M31571","v":0},{"$f":"Import!M31671","v":0},{"$f":"Import!M31771","v":0},{"$f":"Import!M31871","v":0},{"$f":"Import!M31971","v":0}]
[18,{"$f":"Import!M31172","v":"Select"},{"$f":"Import!M31272","v":"Select"},{"$f":"Import!M31372","v":"Select"},{"$f":"Import!M31472","v":"Select"},{"$f":"Import!M31572","v":0},{"$f":"Import!M31672","v":0},{"$f":"Import!M31772","v":0},{"$f":"Import!M31872","v":0},{"$f":"Import!M31972","v":0}]
[19,{"$f":"Import!M31173","v":"Select"},{"$f":"Import!M31273","v":"Select"},{"$f":"Import!M31373","v":"Select"},{"$f":"Import!M31473","v":"Select"},{"$f":"Import!M31573","v":0},{"$f":"Import!M31673","v":0},{"$f":"Import!M31773","v":0},{"$f":"Import!M31873","v":0},{"$f":"Import!M31973","v":0}]
[20,{"$f":"Import!M31174","v":"Select"},{"$f":"Import!M31274","v":"Select"},{"$f":"Import!M31374","v":"Select"},{"$f":"Import!M31474","v":"Select"},{"$f":"Import!M31574","v":0},{"$f":"Import!M31674","v":0},{"$f":"Import!M31774","v":0},{"$f":"Import!M31874","v":0},{"$f":"Import!M31974","v":0}]
[21,{"$f":"Import!M31175","v":"Select"},{"$f":"Import!M31275","v":"Select"},{"$f":"Import!M31375","v":"Select"},{"$f":"Import!M31475","v":"Select"},{"$f":"Import!M31575","v":0},{"$f":"Import!M31675","v":0},{"$f":"Import!M31775","v":0},{"$f":"Import!M31875","v":0},{"$f":"Import!M31975","v":0}]
[22,{"$f":"Import!M31176","v":"Select"},{"$f":"Import!M31276","v":"Select"},{"$f":"Import!M31376","v":"Select"},{"$f":"Import!M31476","v":"Select"},{"$f":"Import!M31576","v":0},{"$f":"Import!M31676","v":0},{"$f":"Import!M31776","v":0},{"$f":"Import!M31876","v":0},{"$f":"Import!M31976","v":0}]
[23,{"$f":"Import!M31177","v":"Select"},{"$f":"Import!M31277","v":"Select"},{"$f":"Import!M31377","v":"Select"},{"$f":"Import!M31477","v":"Select"},{"$f":"Import!M31577","v":0},{"$f":"Import!M31677","v":0},{"$f":"Import!M31777","v":0},{"$f":"Import!M31877","v":0},{"$f":"Import!M31977","v":0}]
[24,{"$f":"Import!M31178","v":"Select"},{"$f":"Import!M31278","v":"Select"},{"$f":"Import!M31378","v":"Select"},{"$f":"Import!M31478","v":"Select"},{"$f":"Import!M31578","v":0},{"$f":"Import!M31678","v":0},{"$f":"Import!M31778","v":0},{"$f":"Import!M31878","v":0},{"$f":"Import!M31978","v":0}]
[25,{"$f":"Import!M31179","v":"Select"},{"$f":"Import!M31279","v":"Select"},{"$f":"Import!M31379","v":"Select"},{"$f":"Import!M31479","v":"Select"},{"$f":"Import!M31579","v":0},{"$f":"Import!M31679","v":0},{"$f":"Import!M31779","v":0},{"$f":"Import!M31879","v":0},{"$f":"Import!M31979","v":0}]
[26,{"$f":"Import!M31180","v":"Select"},{"$f":"Import!M31280","v":"Select"},{"$f":"Import!M31380","v":"Select"},{"$f":"Import!M31480","v":"Select"},{"$f":"Import!M31580","v":0},{"$f":"Import!M31680","v":0},{"$f":"Import!M31780","v":0},{"$f":"Import!M31880","v":0},{"$f":"Import!M31980","v":0}]
[27,{"$f":"Import!M31181","v":"Select"},{"$f":"Import!M31281","v":"Select"},{"$f":"Import!M31381","v":"Select"},{"$f":"Import!M31481","v":"Select"},{"$f":"Import!M31581","v":0},{"$f":"Import!M31681","v":0},{"$f":"Import!M31781","v":0},{"$f":"Import!M31881","v":0},{"$f":"Import!M31981","v":0}]
[28,{"$f":"Import!M31182","v":"Select"},{"$f":"Import!M31282","v":"Select"},{"$f":"Import!M31382","v":"Select"},{"$f":"Import!M31482","v":"Select"},{"$f":"Import!M31582","v":0},{"$f":"Import!M31682","v":0},{"$f":"Import!M31782","v":0},{"$f":"Import!M31882","v":0},{"$f":"Import!M31982","v":0}]
[29,{"$f":"Import!M31183","v":"Select"},{"$f":"Import!M31283","v":"Select"},{"$f":"Import!M31383","v":"Select"},{"$f":"Import!M31483","v":"Select"},{"$f":"Import!M31583","v":0},{"$f":"Import!M31683","v":0},{"$f":"Import!M31783","v":0},{"$f":"Import!M31883","v":0},{"$f":"Import!M31983","v":0}]
[30,{"$f":"Import!M31184","v":"Select"},{"$f":"Import!M31284","v":"Select"},{"$f":"Import!M31384","v":"Select"},{"$f":"Import!M31484","v":"Select"},{"$f":"Import!M31584","v":0},{"$f":"Import!M31684","v":0},{"$f":"Import!M31784","v":0},{"$f":"Import!M31884","v":0},{"$f":"Import!M31984","v":0}]
[31,{"$f":"Import!M31185","v":"Select"},{"$f":"Import!M31285","v":"Select"},{"$f":"Import!M31385","v":"Select"},{"$f":"Import!M31485","v":"Select"},{"$f":"Import!M31585","v":0},{"$f":"Import!M31685","v":0},{"$f":"Import!M31785","v":0},{"$f":"Import!M31885","v":0},{"$f":"Import!M31985","v":0}]
[32,{"$f":"Import!M31186","v":"Select"},{"$f":"Import!M31286","v":"Select"},{"$f":"Import!M31386","v":"Select"},{"$f":"Import!M31486","v":"Select"},{"$f":"Import!M31586","v":0},{"$f":"Import!M31686","v":0},{"$f":"Import!M31786","v":0},{"$f":"Import!M31886","v":0},{"$f":"Import!M31986","v":0}]
[33,{"$f":"Import!M31187","v":"Select"},{"$f":"Import!M31287","v":"Select"},{"$f":"Import!M31387","v":"Select"},{"$f":"Import!M31487","v":"Select"},{"$f":"Import!M31587","v":0},{"$f":"Import!M31687","v":0},{"$f":"Import!M31787","v":0},{"$f":"Import!M31887","v":0},{"$f":"Import!M31987","v":0}]
[34,{"$f":"Import!M31188","v":"Select"},{"$f":"Import!M31288","v":"Select"},{"$f":"Import!M31388","v":"Select"},{"$f":"Import!M31488","v":"Select"},{"$f":"Import!M31588","v":0},{"$f":"Import!M31688","v":0},{"$f":"Import!M31788","v":0},{"$f":"Import!M31888","v":0},{"$f":"Import!M31988","v":0}]
[35,{"$f":"Import!M31189","v":"Select"},{"$f":"Import!M31289","v":"Select"},{"$f":"Import!M31389","v":"Select"},{"$f":"Import!M31489","v":"Select"},{"$f":"Import!M31589","v":0},{"$f":"Import!M31689","v":0},{"$f":"Import!M31789","v":0},{"$f":"Import!M31889","v":0},{"$f":"Import!M31989","v":0}]
[36,{"$f":"Import!M31190","v":"Select"},{"$f":"Import!M31290","v":"Select"},{"$f":"Import!M31390","v":"Select"},{"$f":"Import!M31490","v":"Select"},{"$f":"Import!M31590","v":0},{"$f":"Import!M31690","v":0},{"$f":"Import!M31790","v":0},{"$f":"Import!M31890","v":0},{"$f":"Import!M31990","v":0}]
[37,{"$f":"Import!M31191","v":"Select"},{"$f":"Import!M31291","v":"Select"},{"$f":"Import!M31391","v":"Select"},{"$f":"Import!M31491","v":"Select"},{"$f":"Import!M31591","v":0},{"$f":"Import!M31691","v":0},{"$f":"Import!M31791","v":0},{"$f":"Import!M31891","v":0},{"$f":"Import!M31991","v":0}]
[38,{"$f":"Import!M31192","v":"Select"},{"$f":"Import!M31292","v":"Select"},{"$f":"Import!M31392","v":"Select"},{"$f":"Import!M31492","v":"Select"},{"$f":"Import!M31592","v":0},{"$f":"Import!M31692","v":0},{"$f":"Import!M31792","v":0},{"$f":"Import!M31892","v":0},{"$f":"Import!M31992","v":0}]
[39,{"$f":"Import!M31193","v":"Select"},{"$f":"Import!M31293","v":"Select"},{"$f":"Import!M31393","v":"Select"},{"$f":"Import!M31493","v":"Select"},{"$f":"Import!M31593","v":0},{"$f":"Import!M31693","v":0},{"$f":"Import!M31793","v":0},{"$f":"Import!M31893","v":0},{"$f":"Import!M31993","v":0}]
[40,{"$f":"Import!M31194","v":"Select"},{"$f":"Import!M31294","v":"Select"},{"$f":"Import!M31394","v":"Select"},{"$f":"Import!M31494","v":"Select"},{"$f":"Import!M31594","v":0},{"$f":"Import!M31694","v":0},{"$f":"Import!M31794","v":0},{"$f":"Import!M31894","v":0},{"$f":"Import!M31994","v":0}]
[41,{"$f":"Import!M31195","v":"Select"},{"$f":"Import!M31295","v":"Select"},{"$f":"Import!M31395","v":"Select"},{"$f":"Import!M31495","v":"Select"},{"$f":"Import!M31595","v":0},{"$f":"Import!M31695","v":0},{"$f":"Import!M31795","v":0},{"$f":"Import!M31895","v":0},{"$f":"Import!M31995","v":0}]
[42,{"$f":"Import!M31196","v":"Select"},{"$f":"Import!M31296","v":"Select"},{"$f":"Import!M31396","v":"Select"},{"$f":"Import!M31496","v":"Select"},{"$f":"Import!M31596","v":0},{"$f":"Import!M31696","v":0},{"$f":"Import!M31796","v":0},{"$f":"Import!M31896","v":0},{"$f":"Import!M31996","v":0}]
[43,{"$f":"Import!M31197","v":"Select"},{"$f":"Import!M31297","v":"Select"},{"$f":"Import!M31397","v":"Select"},{"$f":"Import!M31497","v":"Select"},{"$f":"Import!M31597","v":0},{"$f":"Import!M31697","v":0},{"$f":"Import!M31797","v":0},{"$f":"Import!M31897","v":0},{"$f":"Import!M31997","v":0}]
[44,{"$f":"Import!M31198","v":"Select"},{"$f":"Import!M31298","v":"Select"},{"$f":"Import!M31398","v":"Select"},{"$f":"Import!M31498","v":"Select"},{"$f":"Import!M31598","v":0},{"$f":"Import!M31698","v":0},{"$f":"Import!M31798","v":0},{"$f":"Import!M31898","v":0},{"$f":"Import!M31998","v":0}]
[45,{"$f":"Import!M31199","v":"Select"},{"$f":"Import!M31299","v":"Select"},{"$f":"Import!M31399","v":"Select"},{"$f":"Import!M31499","v":"Select"},{"$f":"Import!M31599","v":0},{"$f":"Import!M31699","v":0},{"$f":"Import!M31799","v":0},{"$f":"Import!M31899","v":0},{"$f":"Import!M31999","v":0}]
[46,{"$f":"Import!M31200","v":"Select"},{"$f":"Import!M31300","v":"Select"},{"$f":"Import!M31400","v":"Select"},{"$f":"Import!M31500","v":"Select"},{"$f":"Import!M31600","v":0},{"$f":"Import!M31700","v":0},{"$f":"Import!M31800","v":0},{"$f":"Import!M31900","v":0},{"$f":"Import!M32000","v":0}]
[47,{"$f":"Import!M31201","v":"Select"},{"$f":"Import!M31301","v":"Select"},{"$f":"Import!M31401","v":"Select"},{"$f":"Import!M31501","v":"Select"},{"$f":"Import!M31601","v":0},{"$f":"Import!M31701","v":0},{"$f":"Import!M31801","v":0},{"$f":"Import!M31901","v":0},{"$f":"Import!M32001","v":0}]
[48,{"$f":"Import!M31202","v":"Select"},{"$f":"Import!M31302","v":"Select"},{"$f":"Import!M31402","v":"Select"},{"$f":"Import!M31502","v":"Select"},{"$f":"Import!M31602","v":0},{"$f":"Import!M31702","v":0},{"$f":"Import!M31802","v":0},{"$f":"Import!M31902","v":0},{"$f":"Import!M32002","v":0}]
[49,{"$f":"Import!M31203","v":"Select"},{"$f":"Import!M31303","v":"Select"},{"$f":"Import!M31403","v":"Select"},{"$f":"Import!M31503","v":"Select"},{"$f":"Import!M31603","v":0},{"$f":"Import!M31703","v":0},{"$f":"Import!M31803","v":0},{"$f":"Import!M31903","v":0},{"$f":"Import!M32003","v":0}]
[50,{"$f":"Import!M31204","v":"Select"},{"$f":"Import!M31304","v":"Select"},{"$f":"Import!M31404","v":"Select"},{"$f":"Import!M31504","v":"Select"},{"$f":"Import!M31604","v":0},{"$f":"Import!M31704","v":0},{"$f":"Import!M31804","v":0},{"$f":"Import!M31904","v":0},{"$f":"Import!M32004","v":0}]
[51,{"$f":"Import!M31205","v":"Select"},{"$f":"Import!M31305","v":"Select"},{"$f":"Import!M31405","v":"Select"},{"$f":"Import!M31505","v":"Select"},{"$f":"Import!M31605","v":0},{"$f":"Import!M31705","v":0},{"$f":"Import!M31805","v":0},{"$f":"Import!M31905","v":0},{"$f":"Import!M32005","v":0}]
[52,{"$f":"Import!M31206","v":"Select"},{"$f":"Import!M31306","v":"Select"},{"$f":"Import!M31406","v":"Select"},{"$f":"Import!M31506","v":"Select"},{"$f":"Import!M31606","v":0},{"$f":"Import!M31706","v":0},{"$f":"Import!M31806","v":0},{"$f":"Import!M31906","v":0},{"$f":"Import!M32006","v":0}]
[53,{"$f":"Import!M31207","v":"Select"},{"$f":"Import!M31307","v":"Select"},{"$f":"Import!M31407","v":"Select"},{"$f":"Import!M31507","v":"Select"},{"$f":"Import!M31607","v":0},{"$f":"Import!M31707","v":0},{"$f":"Import!M31807","v":0},{"$f":"Import!M31907","v":0},{"$f":"Import!M32007","v":0}]
[54,{"$f":"Import!M31208","v":"Select"},{"$f":"Import!M31308","v":"Select"},{"$f":"Import!M31408","v":"Select"},{"$f":"Import!M31508","v":"Select"},{"$f":"Import!M31608","v":0},{"$f":"Import!M31708","v":0},{"$f":"Import!M31808","v":0},{"$f":"Import!M31908","v":0},{"$f":"Import!M32008","v":0}]
[55,{"$f":"Import!M31209","v":"Select"},{"$f":"Import!M31309","v":"Select"},{"$f":"Import!M31409","v":"Select"},{"$f":"Import!M31509","v":"Select"},{"$f":"Import!M31609","v":0},{"$f":"Import!M31709","v":0},{"$f":"Import!M31809","v":0},{"$f":"Import!M31909","v":0},{"$f":"Import!M32009","v":0}]
[56,{"$f":"Import!M31210","v":"Select"},{"$f":"Import!M31310","v":"Select"},{"$f":"Import!M31410","v":"Select"},{"$f":"Import!M31510","v":"Select"},{"$f":"Import!M31610","v":0},{"$f":"Import!M31710","v":0},{"$f":"Import!M31810","v":0},{"$f":"Import!M31910","v":0},{"$f":"Import!M32010","v":0}]
[57,{"$f":"Import!M31211","v":"Select"},{"$f":"Import!M31311","v":"Select"},{"$f":"Import!M31411","v":"Select"},{"$f":"Import!M31511","v":"Select"},{"$f":"Import!M31611","v":0},{"$f":"Import!M31711","v":0},{"$f":"Import!M31811","v":0},{"$f":"Import!M31911","v":0},{"$f":"Import!M32011","v":0}]
[58,{"$f":"Import!M31212","v":"Select"},{"$f":"Import!M31312","v":"Select"},{"$f":"Import!M31412","v":"Select"},{"$f":"Import!M31512","v":"Select"},{"$f":"Import!M31612","v":0},{"$f":"Import!M31712","v":0},{"$f":"Import!M31812","v":0},{"$f":"Import!M31912","v":0},{"$f":"Import!M32012","v":0}]
[59,{"$f":"Import!M31213","v":"Select"},{"$f":"Import!M31313","v":"Select"},{"$f":"Import!M31413","v":"Select"},{"$f":"Import!M31513","v":"Select"},{"$f":"Import!M31613","v":0},{"$f":"Import!M31713","v":0},{"$f":"Import!M31813","v":0},{"$f":"Import!M31913","v":0},{"$f":"Import!M32013","v":0}]
[60,{"$f":"Import!M31214","v":"Select"},{"$f":"Import!M31314","v":"Select"},{"$f":"Import!M31414","v":"Select"},{"$f":"Import!M31514","v":"Select"},{"$f":"Import!M31614","v":0},{"$f":"Import!M31714","v":0},{"$f":"Import!M31814","v":0},{"$f":"Import!M31914","v":0},{"$f":"Import!M32014","v":0}]
[61,{"$f":"Import!M31215","v":"Select"},{"$f":"Import!M31315","v":"Select"},{"$f":"Import!M31415","v":"Select"},{"$f":"Import!M31515","v":"Select"},{"$f":"Import!M31615","v":0},{"$f":"Import!M31715","v":0},{"$f":"Import!M31815","v":0},{"$f":"Import!M31915","v":0},{"$f":"Import!M32015","v":0}]
[62,{"$f":"Import!M31216","v":"Select"},{"$f":"Import!M31316","v":"Select"},{"$f":"Import!M31416","v":"Select"},{"$f":"Import!M31516","v":"Select"},{"$f":"Import!M31616","v":0},{"$f":"Import!M31716","v":0},{"$f":"Import!M31816","v":0},{"$f":"Import!M31916","v":0},{"$f":"Import!M32016","v":0}]
[63,{"$f":"Import!M31217","v":"Select"},{"$f":"Import!M31317","v":"Select"},{"$f":"Import!M31417","v":"Select"},{"$f":"Import!M31517","v":"Select"},{"$f":"Import!M31617","v":0},{"$f":"Import!M31717","v":0},{"$f":"Import!M31817","v":0},{"$f":"Import!M31917","v":0},{"$f":"Import!M32017","v":0}]
[64,{"$f":"Import!M31218","v":"Select"},{"$f":"Import!M31318","v":"Select"},{"$f":"Import!M31418","v":"Select"},{"$f":"Import!M31518","v":"Select"},{"$f":"Import!M31618","v":0},{"$f":"Import!M31718","v":0},{"$f":"Import!M31818","v":0},{"$f":"Import!M31918","v":0},{"$f":"Import!M32018","v":0}]
[65,{"$f":"Import!M31219","v":"Select"},{"$f":"Import!M31319","v":"Select"},{"$f":"Import!M31419","v":"Select"},{"$f":"Import!M31519","v":"Select"},{"$f":"Import!M31619","v":0},{"$f":"Import!M31719","v":0},{"$f":"Import!M31819","v":0},{"$f":"Import!M31919","v":0},{"$f":"Import!M32019","v":0}]
[66,{"$f":"Import!M31220","v":"Select"},{"$f":"Import!M31320","v":"Select"},{"$f":"Import!M31420","v":"Select"},{"$f":"Import!M31520","v":"Select"},{"$f":"Import!M31620","v":0},{"$f":"Import!M31720","v":0},{"$f":"Import!M31820","v":0},{"$f":"Import!M31920","v":0},{"$f":"Import!M32020","v":0}]
[{"$f":"A1058+1","v":67},{"$f":"Import!M31221","v":"Select"},{"$f":"Import!M31321","v":"Select"},{"$f":"Import!M31421","v":"Select"},{"$f":"Import!M31521","v":"Select"},{"$f":"Import!M31621","v":0},{"$f":"Import!M31721","v":0},{"$f":"Import!M31821","v":0},{"$f":"Import!M31921","v":0},{"$f":"Import!M32021","v":0}]
[68,{"$f":"Import!M31222","v":"Select"},{"$f":"Import!M31322","v":"Select"},{"$f":"Import!M31422","v":"Select"},{"$f":"Import!M31522","v":"Select"},{"$f":"Import!M31622","v":0},{"$f":"Import!M31722","v":0},{"$f":"Import!M31822","v":0},{"$f":"Import!M31922","v":0},{"$f":"Import!M32022","v":0}]
[69,{"$f":"Import!M31223","v":"Select"},{"$f":"Import!M31323","v":"Select"},{"$f":"Import!M31423","v":"Select"},{"$f":"Import!M31523","v":"Select"},{"$f":"Import!M31623","v":0},{"$f":"Import!M31723","v":0},{"$f":"Import!M31823","v":0},{"$f":"Import!M31923","v":0},{"$f":"Import!M32023","v":0}]
[70,{"$f":"Import!M31224","v":"Select"},{"$f":"Import!M31324","v":"Select"},{"$f":"Import!M31424","v":"Select"},{"$f":"Import!M31524","v":"Select"},{"$f":"Import!M31624","v":0},{"$f":"Import!M31724","v":0},{"$f":"Import!M31824","v":0},{"$f":"Import!M31924","v":0},{"$f":"Import!M32024","v":0}]
[71,{"$f":"Import!M31225","v":"Select"},{"$f":"Import!M31325","v":"Select"},{"$f":"Import!M31425","v":"Select"},{"$f":"Import!M31525","v":"Select"},{"$f":"Import!M31625","v":0},{"$f":"Import!M31725","v":0},{"$f":"Import!M31825","v":0},{"$f":"Import!M31925","v":0},{"$f":"Import!M32025","v":0}]
[72,{"$f":"Import!M31226","v":"Select"},{"$f":"Import!M31326","v":"Select"},{"$f":"Import!M31426","v":"Select"},{"$f":"Import!M31526","v":"Select"},{"$f":"Import!M31626","v":0},{"$f":"Import!M31726","v":0},{"$f":"Import!M31826","v":0},{"$f":"Import!M31926","v":0},{"$f":"Import!M32026","v":0}]
[73,{"$f":"Import!M31227","v":"Select"},{"$f":"Import!M31327","v":"Select"},{"$f":"Import!M31427","v":"Select"},{"$f":"Import!M31527","v":"Select"},{"$f":"Import!M31627","v":0},{"$f":"Import!M31727","v":0},{"$f":"Import!M31827","v":0},{"$f":"Import!M31927","v":0},{"$f":"Import!M32027","v":0}]
[74,{"$f":"Import!M31228","v":"Select"},{"$f":"Import!M31328","v":"Select"},{"$f":"Import!M31428","v":"Select"},{"$f":"Import!M31528","v":"Select"},{"$f":"Import!M31628","v":0},{"$f":"Import!M31728","v":0},{"$f":"Import!M31828","v":0},{"$f":"Import!M31928","v":0},{"$f":"Import!M32028","v":0}]
[75,{"$f":"Import!M31229","v":"Select"},{"$f":"Import!M31329","v":"Select"},{"$f":"Import!M31429","v":"Select"},{"$f":"Import!M31529","v":"Select"},{"$f":"Import!M31629","v":0},{"$f":"Import!M31729","v":0},{"$f":"Import!M31829","v":0},{"$f":"Import!M31929","v":0},{"$f":"Import!M32029","v":0}]
[76,{"$f":"Import!M31230","v":"Select"},{"$f":"Import!M31330","v":"Select"},{"$f":"Import!M31430","v":"Select"},{"$f":"Import!M31530","v":"Select"},{"$f":"Import!M31630","v":0},{"$f":"Import!M31730","v":0},{"$f":"Import!M31830","v":0},{"$f":"Import!M31930","v":0},{"$f":"Import!M32030","v":0}]
[77,{"$f":"Import!M31231","v":"Select"},{"$f":"Import!M31331","v":"Select"},{"$f":"Import!M31431","v":"Select"},{"$f":"Import!M31531","v":"Select"},{"$f":"Import!M31631","v":0},{"$f":"Import!M31731","v":0},{"$f":"Import!M31831","v":0},{"$f":"Import!M31931","v":0},{"$f":"Import!M32031","v":0}]
[78,{"$f":"Import!M31232","v":"Select"},{"$f":"Import!M31332","v":"Select"},{"$f":"Import!M31432","v":"Select"},{"$f":"Import!M31532","v":"Select"},{"$f":"Import!M31632","v":0},{"$f":"Import!M31732","v":0},{"$f":"Import!M31832","v":0},{"$f":"Import!M31932","v":0},{"$f":"Import!M32032","v":0}]
[79,{"$f":"Import!M31233","v":"Select"},{"$f":"Import!M31333","v":"Select"},{"$f":"Import!M31433","v":"Select"},{"$f":"Import!M31533","v":"Select"},{"$f":"Import!M31633","v":0},{"$f":"Import!M31733","v":0},{"$f":"Import!M31833","v":0},{"$f":"Import!M31933","v":0},{"$f":"Import!M32033","v":0}]
[80,{"$f":"Import!M31234","v":"Select"},{"$f":"Import!M31334","v":"Select"},{"$f":"Import!M31434","v":"Select"},{"$f":"Import!M31534","v":"Select"},{"$f":"Import!M31634","v":0},{"$f":"Import!M31734","v":0},{"$f":"Import!M31834","v":0},{"$f":"Import!M31934","v":0},{"$f":"Import!M32034","v":0}]
[81,{"$f":"Import!M31235","v":"Select"},{"$f":"Import!M31335","v":"Select"},{"$f":"Import!M31435","v":"Select"},{"$f":"Import!M31535","v":"Select"},{"$f":"Import!M31635","v":0},{"$f":"Import!M31735","v":0},{"$f":"Import!M31835","v":0},{"$f":"Import!M31935","v":0},{"$f":"Import!M32035","v":0}]
[82,{"$f":"Import!M31236","v":"Select"},{"$f":"Import!M31336","v":"Select"},{"$f":"Import!M31436","v":"Select"},{"$f":"Import!M31536","v":"Select"},{"$f":"Import!M31636","v":0},{"$f":"Import!M31736","v":0},{"$f":"Import!M31836","v":0},{"$f":"Import!M31936","v":0},{"$f":"Import!M32036","v":0}]
[83,{"$f":"Import!M31237","v":"Select"},{"$f":"Import!M31337","v":"Select"},{"$f":"Import!M31437","v":"Select"},{"$f":"Import!M31537","v":"Select"},{"$f":"Import!M31637","v":0},{"$f":"Import!M31737","v":0},{"$f":"Import!M31837","v":0},{"$f":"Import!M31937","v":0},{"$f":"Import!M32037","v":0}]
[84,{"$f":"Import!M31238","v":"Select"},{"$f":"Import!M31338","v":"Select"},{"$f":"Import!M31438","v":"Select"},{"$f":"Import!M31538","v":"Select"},{"$f":"Import!M31638","v":0},{"$f":"Import!M31738","v":0},{"$f":"Import!M31838","v":0},{"$f":"Import!M31938","v":0},{"$f":"Import!M32038","v":0}]
[85,{"$f":"Import!M31239","v":"Select"},{"$f":"Import!M31339","v":"Select"},{"$f":"Import!M31439","v":"Select"},{"$f":"Import!M31539","v":"Select"},{"$f":"Import!M31639","v":0},{"$f":"Import!M31739","v":0},{"$f":"Import!M31839","v":0},{"$f":"Import!M31939","v":0},{"$f":"Import!M32039","v":0}]
[86,{"$f":"Import!M31240","v":"Select"},{"$f":"Import!M31340","v":"Select"},{"$f":"Import!M31440","v":"Select"},{"$f":"Import!M31540","v":"Select"},{"$f":"Import!M31640","v":0},{"$f":"Import!M31740","v":0},{"$f":"Import!M31840","v":0},{"$f":"Import!M31940","v":0},{"$f":"Import!M32040","v":0}]
[87,{"$f":"Import!M31241","v":"Select"},{"$f":"Import!M31341","v":"Select"},{"$f":"Import!M31441","v":"Select"},{"$f":"Import!M31541","v":"Select"},{"$f":"Import!M31641","v":0},{"$f":"Import!M31741","v":0},{"$f":"Import!M31841","v":0},{"$f":"Import!M31941","v":0},{"$f":"Import!M32041","v":0}]
[88,{"$f":"Import!M31242","v":"Select"},{"$f":"Import!M31342","v":"Select"},{"$f":"Import!M31442","v":"Select"},{"$f":"Import!M31542","v":"Select"},{"$f":"Import!M31642","v":0},{"$f":"Import!M31742","v":0},{"$f":"Import!M31842","v":0},{"$f":"Import!M31942","v":0},{"$f":"Import!M32042","v":0}]
[89,{"$f":"Import!M31243","v":"Select"},{"$f":"Import!M31343","v":"Select"},{"$f":"Import!M31443","v":"Select"},{"$f":"Import!M31543","v":"Select"},{"$f":"Import!M31643","v":0},{"$f":"Import!M31743","v":0},{"$f":"Import!M31843","v":0},{"$f":"Import!M31943","v":0},{"$f":"Import!M32043","v":0}]
[90,{"$f":"Import!M31244","v":"Select"},{"$f":"Import!M31344","v":"Select"},{"$f":"Import!M31444","v":"Select"},{"$f":"Import!M31544","v":"Select"},{"$f":"Import!M31644","v":0},{"$f":"Import!M31744","v":0},{"$f":"Import!M31844","v":0},{"$f":"Import!M31944","v":0},{"$f":"Import!M32044","v":0}]
[91,{"$f":"Import!M31245","v":"Select"},{"$f":"Import!M31345","v":"Select"},{"$f":"Import!M31445","v":"Select"},{"$f":"Import!M31545","v":"Select"},{"$f":"Import!M31645","v":0},{"$f":"Import!M31745","v":0},{"$f":"Import!M31845","v":0},{"$f":"Import!M31945","v":0},{"$f":"Import!M32045","v":0}]
[92,{"$f":"Import!M31246","v":"Select"},{"$f":"Import!M31346","v":"Select"},{"$f":"Import!M31446","v":"Select"},{"$f":"Import!M31546","v":"Select"},{"$f":"Import!M31646","v":0},{"$f":"Import!M31746","v":0},{"$f":"Import!M31846","v":0},{"$f":"Import!M31946","v":0},{"$f":"Import!M32046","v":0}]
[93,{"$f":"Import!M31247","v":"Select"},{"$f":"Import!M31347","v":"Select"},{"$f":"Import!M31447","v":"Select"},{"$f":"Import!M31547","v":"Select"},{"$f":"Import!M31647","v":0},{"$f":"Import!M31747","v":0},{"$f":"Import!M31847","v":0},{"$f":"Import!M31947","v":0},{"$f":"Import!M32047","v":0}]
[94,{"$f":"Import!M31248","v":"Select"},{"$f":"Import!M31348","v":"Select"},{"$f":"Import!M31448","v":"Select"},{"$f":"Import!M31548","v":"Select"},{"$f":"Import!M31648","v":0},{"$f":"Import!M31748","v":0},{"$f":"Import!M31848","v":0},{"$f":"Import!M31948","v":0},{"$f":"Import!M32048","v":0}]
[95,{"$f":"Import!M31249","v":"Select"},{"$f":"Import!M31349","v":"Select"},{"$f":"Import!M31449","v":"Select"},{"$f":"Import!M31549","v":"Select"},{"$f":"Import!M31649","v":0},{"$f":"Import!M31749","v":0},{"$f":"Import!M31849","v":0},{"$f":"Import!M31949","v":0},{"$f":"Import!M32049","v":0}]
[96,{"$f":"Import!M31250","v":"Select"},{"$f":"Import!M31350","v":"Select"},{"$f":"Import!M31450","v":"Select"},{"$f":"Import!M31550","v":"Select"},{"$f":"Import!M31650","v":0},{"$f":"Import!M31750","v":0},{"$f":"Import!M31850","v":0},{"$f":"Import!M31950","v":0},{"$f":"Import!M32050","v":0}]
[97,{"$f":"Import!M31251","v":"Select"},{"$f":"Import!M31351","v":"Select"},{"$f":"Import!M31451","v":"Select"},{"$f":"Import!M31551","v":"Select"},{"$f":"Import!M31651","v":0},{"$f":"Import!M31751","v":0},{"$f":"Import!M31851","v":0},{"$f":"Import!M31951","v":0},{"$f":"Import!M32051","v":0}]
[98,{"$f":"Import!M31252","v":"Select"},{"$f":"Import!M31352","v":"Select"},{"$f":"Import!M31452","v":"Select"},{"$f":"Import!M31552","v":"Select"},{"$f":"Import!M31652","v":0},{"$f":"Import!M31752","v":0},{"$f":"Import!M31852","v":0},{"$f":"Import!M31952","v":0},{"$f":"Import!M32052","v":0}]
[99,{"$f":"Import!M31253","v":"Select"},{"$f":"Import!M31353","v":"Select"},{"$f":"Import!M31453","v":"Select"},{"$f":"Import!M31553","v":"Select"},{"$f":"Import!M31653","v":0},{"$f":"Import!M31753","v":0},{"$f":"Import!M31853","v":0},{"$f":"Import!M31953","v":0},{"$f":"Import!M32053","v":0}]
[100,{"$f":"Import!M31254","v":"Select"},{"$f":"Import!M31354","v":"Select"},{"$f":"Import!M31454","v":"Select"},{"$f":"Import!M31554","v":"Select"},{"$f":"Import!M31654","v":0},{"$f":"Import!M31754","v":0},{"$f":"Import!M31854","v":0},{"$f":"Import!M31954","v":0},{"$f":"Import!M32054","v":0}]
[]
[null,"Total Loans",null,null,null,{"$f":"SUM(F993:F1092)","v":0},{"$f":"SUM(G993:G1092)","v":0},{"$f":"IFERROR(SUMPRODUCT(H993:H1092,$G993:$G1092)/SUM($G993:$G1092),0)","v":0},{"$f":"IFERROR(SUMPRODUCT(I993:I1092,$G993:$G1092)/SUM($G993:$G1092),0)","v":0}]
[]
[null,"- OF WHICH NON-PERFORMING LOANS"]
[]
[null,null,"Enter # of Asset Types",{"$f":"Import!M32055","v":0}]
[null,null,null,null,null,{"$f":"YEAR($C$3)","v":2023},2023]
[null,"Asset Type","Currency","Country","BSCR Rating","Nominal Amount","Fair Value","Comments"]
[1,{"$f":"Import!M32056","v":"Select"},{"$f":"Import!M32076","v":"Select"},{"$f":"Import!M32096","v":"Select"},{"$f":"Import!M32116","v":"Select"},{"$f":"Import!M32136","v":0},{"$f":"Import!M32156","v":0},{"$f":"Import!M32176","v":0}]
[{"$f":"A1101+1","v":2},{"$f":"Import!M32057","v":"Select"},{"$f":"Import!M32077","v":"Select"},{"$f":"Import!M32097","v":"Select"},{"$f":"Import!M32117","v":"Select"},{"$f":"Import!M32137","v":0},{"$f":"Import!M32157","v":0},{"$f":"Import!M32177","v":0}]
[{"$f":"A1102+1","v":3},{"$f":"Import!M32058","v":"Select"},{"$f":"Import!M32078","v":"Select"},{"$f":"Import!M32098","v":"Select"},{"$f":"Import!M32118","v":"Select"},{"$f":"Import!M32138","v":0},{"$f":"Import!M32158","v":0},{"$f":"Import!M32178","v":0}]
[4,{"$f":"Import!M32059","v":"Select"},{"$f":"Import!M32079","v":"Select"},{"$f":"Import!M32099","v":"Select"},{"$f":"Import!M32119","v":"Select"},{"$f":"Import!M32139","v":0},{"$f":"Import!M32159","v":0},{"$f":"Import!M32179","v":0}]
[5,{"$f":"Import!M32060","v":"Select"},{"$f":"Import!M32080","v":"Select"},{"$f":"Import!M32100","v":"Select"},{"$f":"Import!M32120","v":"Select"},{"$f":"Import!M32140","v":0},{"$f":"Import!M32160","v":0},{"$f":"Import!M32180","v":0}]
[6,{"$f":"Import!M32061","v":"Select"},{"$f":"Import!M32081","v":"Select"},{"$f":"Import!M32101","v":"Select"},{"$f":"Import!M32121","v":"Select"},{"$f":"Import!M32141","v":0},{"$f":"Import!M32161","v":0},{"$f":"Import!M32181","v":0}]
[7,{"$f":"Import!M32062","v":"Select"},{"$f":"Import!M32082","v":"Select"},{"$f":"Import!M32102","v":"Select"},{"$f":"Import!M32122","v":"Select"},{"$f":"Import!M32142","v":0},{"$f":"Import!M32162","v":0},{"$f":"Import!M32182","v":0}]
[8,{"$f":"Import!M32063","v":"Select"},{"$f":"Import!M32083","v":"Select"},{"$f":"Import!M32103","v":"Select"},{"$f":"Import!M32123","v":"Select"},{"$f":"Import!M32143","v":0},{"$f":"Import!M32163","v":0},{"$f":"Import!M32183","v":0}]
[9,{"$f":"Import!M32064","v":"Select"},{"$f":"Import!M32084","v":"Select"},{"$f":"Import!M32104","v":"Select"},{"$f":"Import!M32124","v":"Select"},{"$f":"Import!M32144","v":0},{"$f":"Import!M32164","v":0},{"$f":"Import!M32184","v":0}]
[10,{"$f":"Import!M32065","v":"Select"},{"$f":"Import!M32085","v":"Select"},{"$f":"Import!M32105","v":"Select"},{"$f":"Import!M32125","v":"Select"},{"$f":"Import!M32145","v":0},{"$f":"Import!M32165","v":0},{"$f":"Import!M32185","v":0}]
[11,{"$f":"Import!M32066","v":"Select"},{"$f":"Import!M32086","v":"Select"},{"$f":"Import!M32106","v":"Select"},{"$f":"Import!M32126","v":"Select"},{"$f":"Import!M32146","v":0},{"$f":"Import!M32166","v":0},{"$f":"Import!M32186","v":0}]
[12,{"$f":"Import!M32067","v":"Select"},{"$f":"Import!M32087","v":"Select"},{"$f":"Import!M32107","v":"Select"},{"$f":"Import!M32127","v":"Select"},{"$f":"Import!M32147","v":0},{"$f":"Import!M32167","v":0},{"$f":"Import!M32187","v":0}]
[13,{"$f":"Import!M32068","v":"Select"},{"$f":"Import!M32088","v":"Select"},{"$f":"Import!M32108","v":"Select"},{"$f":"Import!M32128","v":"Select"},{"$f":"Import!M32148","v":0},{"$f":"Import!M32168","v":0},{"$f":"Import!M32188","v":0}]
[14,{"$f":"Import!M32069","v":"Select"},{"$f":"Import!M32089","v":"Select"},{"$f":"Import!M32109","v":"Select"},{"$f":"Import!M32129","v":"Select"},{"$f":"Import!M32149","v":0},{"$f":"Import!M32169","v":0},{"$f":"Import!M32189","v":0}]
[15,{"$f":"Import!M32070","v":"Select"},{"$f":"Import!M32090","v":"Select"},{"$f":"Import!M32110","v":"Select"},{"$f":"Import!M32130","v":"Select"},{"$f":"Import!M32150","v":0},{"$f":"Import!M32170","v":0},{"$f":"Import!M32190","v":0}]
[16,{"$f":"Import!M32071","v":"Select"},{"$f":"Import!M32091","v":"Select"},{"$f":"Import!M32111","v":"Select"},{"$f":"Import!M32131","v":"Select"},{"$f":"Import!M32151","v":0},{"$f":"Import!M32171","v":0},{"$f":"Import!M32191","v":0}]
[17,{"$f":"Import!M32072","v":"Select"},{"$f":"Import!M32092","v":"Select"},{"$f":"Import!M32112","v":"Select"},{"$f":"Import!M32132","v":"Select"},{"$f":"Import!M32152","v":0},{"$f":"Import!M32172","v":0},{"$f":"Import!M32192","v":0}]
[18,{"$f":"Import!M32073","v":"Select"},{"$f":"Import!M32093","v":"Select"},{"$f":"Import!M32113","v":"Select"},{"$f":"Import!M32133","v":"Select"},{"$f":"Import!M32153","v":0},{"$f":"Import!M32173","v":0},{"$f":"Import!M32193","v":0}]
[19,{"$f":"Import!M32074","v":"Select"},{"$f":"Import!M32094","v":"Select"},{"$f":"Import!M32114","v":"Select"},{"$f":"Import!M32134","v":"Select"},{"$f":"Import!M32154","v":0},{"$f":"Import!M32174","v":0},{"$f":"Import!M32194","v":0}]
[20,{"$f":"Import!M32075","v":"Select"},{"$f":"Import!M32095","v":"Select"},{"$f":"Import!M32115","v":"Select"},{"$f":"Import!M32135","v":"Select"},{"$f":"Import!M32155","v":0},{"$f":"Import!M32175","v":0},{"$f":"Import!M32195","v":0}]
[]
[null,"Total Non-Performing Loans",null,null,null,{"$f":"SUM(F1101:F1120)","v":0},{"$f":"SUM(G1101:G1120)","v":0}]
[]
[null,"(E) PREFERRED EQUITIES"]
[]
[null,null,"Enter # of Asset Types",{"$f":"Import!M32196","v":0}]
[null,null,null,null,{"$f":"YEAR($C$3)","v":2023},2023,"Weighted"]
[null,"Asset Type","Currency","BSCR Rating","Nominal Amount","Fair Value","Average YTM","Effective Duration","Comments"]
[1,{"$f":"Import!M32197","v":"Select"},{"$f":"Import!M32297","v":"Select"},{"$f":"Import!M32397","v":"Select"},{"$f":"Import!M32497","v":0},{"$f":"Import!M32597","v":0},{"$f":"Import!M32697","v":0},{"$f":"Import!M32797","v":0},{"$f":"Import!M32897","v":0}]
[{"$f":"A1129+1","v":2},{"$f":"Import!M32198","v":"Select"},{"$f":"Import!M32298","v":"Select"},{"$f":"Import!M32398","v":"Select"},{"$f":"Import!M32498","v":0},{"$f":"Import!M32598","v":0},{"$f":"Import!M32698","v":0},{"$f":"Import!M32798","v":0},{"$f":"Import!M32898","v":0}]
[{"$f":"A1130+1","v":3},{"$f":"Import!M32199","v":"Select"},{"$f":"Import!M32299","v":"Select"},{"$f":"Import!M32399","v":"Select"},{"$f":"Import!M32499","v":0},{"$f":"Import!M32599","v":0},{"$f":"Import!M32699","v":0},{"$f":"Import!M32799","v":0},{"$f":"Import!M32899","v":0}]
[4,{"$f":"Import!M32200","v":"Select"},{"$f":"Import!M32300","v":"Select"},{"$f":"Import!M32400","v":"Select"},{"$f":"Import!M32500","v":0},{"$f":"Import!M32600","v":0},{"$f":"Import!M32700","v":0},{"$f":"Import!M32800","v":0},{"$f":"Import!M32900","v":0}]
[5,{"$f":"Import!M32201","v":"Select"},{"$f":"Import!M32301","v":"Select"},{"$f":"Import!M32401","v":"Select"},{"$f":"Import!M32501","v":0},{"$f":"Import!M32601","v":0},{"$f":"Import!M32701","v":0},{"$f":"Import!M32801","v":0},{"$f":"Import!M32901","v":0}]
[6,{"$f":"Import!M32202","v":"Select"},{"$f":"Import!M32302","v":"Select"},{"$f":"Import!M32402","v":"Select"},{"$f":"Import!M32502","v":0},{"$f":"Import!M32602","v":0},{"$f":"Import!M32702","v":0},{"$f":"Import!M32802","v":0},{"$f":"Import!M32902","v":0}]
[7,{"$f":"Import!M32203","v":"Select"},{"$f":"Import!M32303","v":"Select"},{"$f":"Import!M32403","v":"Select"},{"$f":"Import!M32503","v":0},{"$f":"Import!M32603","v":0},{"$f":"Import!M32703","v":0},{"$f":"Import!M32803","v":0},{"$f":"Import!M32903","v":0}]
[8,{"$f":"Import!M32204","v":"Select"},{"$f":"Import!M32304","v":"Select"},{"$f":"Import!M32404","v":"Select"},{"$f":"Import!M32504","v":0},{"$f":"Import!M32604","v":0},{"$f":"Import!M32704","v":0},{"$f":"Import!M32804","v":0},{"$f":"Import!M32904","v":0}]
[9,{"$f":"Import!M32205","v":"Select"},{"$f":"Import!M32305","v":"Select"},{"$f":"Import!M32405","v":"Select"},{"$f":"Import!M32505","v":0},{"$f":"Import!M32605","v":0},{"$f":"Import!M32705","v":0},{"$f":"Import!M32805","v":0},{"$f":"Import!M32905","v":0}]
[10,{"$f":"Import!M32206","v":"Select"},{"$f":"Import!M32306","v":"Select"},{"$f":"Import!M32406","v":"Select"},{"$f":"Import!M32506","v":0},{"$f":"Import!M32606","v":0},{"$f":"Import!M32706","v":0},{"$f":"Import!M32806","v":0},{"$f":"Import!M32906","v":0}]
[11,{"$f":"Import!M32207","v":"Select"},{"$f":"Import!M32307","v":"Select"},{"$f":"Import!M32407","v":"Select"},{"$f":"Import!M32507","v":0},{"$f":"Import!M32607","v":0},{"$f":"Import!M32707","v":0},{"$f":"Import!M32807","v":0},{"$f":"Import!M32907","v":0}]
[12,{"$f":"Import!M32208","v":"Select"},{"$f":"Import!M32308","v":"Select"},{"$f":"Import!M32408","v":"Select"},{"$f":"Import!M32508","v":0},{"$f":"Import!M32608","v":0},{"$f":"Import!M32708","v":0},{"$f":"Import!M32808","v":0},{"$f":"Import!M32908","v":0}]
[13,{"$f":"Import!M32209","v":"Select"},{"$f":"Import!M32309","v":"Select"},{"$f":"Import!M32409","v":"Select"},{"$f":"Import!M32509","v":0},{"$f":"Import!M32609","v":0},{"$f":"Import!M32709","v":0},{"$f":"Import!M32809","v":0},{"$f":"Import!M32909","v":0}]
[14,{"$f":"Import!M32210","v":"Select"},{"$f":"Import!M32310","v":"Select"},{"$f":"Import!M32410","v":"Select"},{"$f":"Import!M32510","v":0},{"$f":"Import!M32610","v":0},{"$f":"Import!M32710","v":0},{"$f":"Import!M32810","v":0},{"$f":"Import!M32910","v":0}]
[15,{"$f":"Import!M32211","v":"Select"},{"$f":"Import!M32311","v":"Select"},{"$f":"Import!M32411","v":"Select"},{"$f":"Import!M32511","v":0},{"$f":"Import!M32611","v":0},{"$f":"Import!M32711","v":0},{"$f":"Import!M32811","v":0},{"$f":"Import!M32911","v":0}]
[16,{"$f":"Import!M32212","v":"Select"},{"$f":"Import!M32312","v":"Select"},{"$f":"Import!M32412","v":"Select"},{"$f":"Import!M32512","v":0},{"$f":"Import!M32612","v":0},{"$f":"Import!M32712","v":0},{"$f":"Import!M32812","v":0},{"$f":"Import!M32912","v":0}]
[17,{"$f":"Import!M32213","v":"Select"},{"$f":"Import!M32313","v":"Select"},{"$f":"Import!M32413","v":"Select"},{"$f":"Import!M32513","v":0},{"$f":"Import!M32613","v":0},{"$f":"Import!M32713","v":0},{"$f":"Import!M32813","v":0},{"$f":"Import!M32913","v":0}]
[18,{"$f":"Import!M32214","v":"Select"},{"$f":"Import!M32314","v":"Select"},{"$f":"Import!M32414","v":"Select"},{"$f":"Import!M32514","v":0},{"$f":"Import!M32614","v":0},{"$f":"Import!M32714","v":0},{"$f":"Import!M32814","v":0},{"$f":"Import!M32914","v":0}]
[19,{"$f":"Import!M32215","v":"Select"},{"$f":"Import!M32315","v":"Select"},{"$f":"Import!M32415","v":"Select"},{"$f":"Import!M32515","v":0},{"$f":"Import!M32615","v":0},{"$f":"Import!M32715","v":0},{"$f":"Import!M32815","v":0},{"$f":"Import!M32915","v":0}]
[20,{"$f":"Import!M32216","v":"Select"},{"$f":"Import!M32316","v":"Select"},{"$f":"Import!M32416","v":"Select"},{"$f":"Import!M32516","v":0},{"$f":"Import!M32616","v":0},{"$f":"Import!M32716","v":0},{"$f":"Import!M32816","v":0},{"$f":"Import!M32916","v":0}]
[21,{"$f":"Import!M32217","v":"Select"},{"$f":"Import!M32317","v":"Select"},{"$f":"Import!M32417","v":"Select"},{"$f":"Import!M32517","v":0},{"$f":"Import!M32617","v":0},{"$f":"Import!M32717","v":0},{"$f":"Import!M32817","v":0},{"$f":"Import!M32917","v":0}]
[22,{"$f":"Import!M32218","v":"Select"},{"$f":"Import!M32318","v":"Select"},{"$f":"Import!M32418","v":"Select"},{"$f":"Import!M32518","v":0},{"$f":"Import!M32618","v":0},{"$f":"Import!M32718","v":0},{"$f":"Import!M32818","v":0},{"$f":"Import!M32918","v":0}]
[23,{"$f":"Import!M32219","v":"Select"},{"$f":"Import!M32319","v":"Select"},{"$f":"Import!M32419","v":"Select"},{"$f":"Import!M32519","v":0},{"$f":"Import!M32619","v":0},{"$f":"Import!M32719","v":0},{"$f":"Import!M32819","v":0},{"$f":"Import!M32919","v":0}]
[24,{"$f":"Import!M32220","v":"Select"},{"$f":"Import!M32320","v":"Select"},{"$f":"Import!M32420","v":"Select"},{"$f":"Import!M32520","v":0},{"$f":"Import!M32620","v":0},{"$f":"Import!M32720","v":0},{"$f":"Import!M32820","v":0},{"$f":"Import!M32920","v":0}]
[25,{"$f":"Import!M32221","v":"Select"},{"$f":"Import!M32321","v":"Select"},{"$f":"Import!M32421","v":"Select"},{"$f":"Import!M32521","v":0},{"$f":"Import!M32621","v":0},{"$f":"Import!M32721","v":0},{"$f":"Import!M32821","v":0},{"$f":"Import!M32921","v":0}]
[26,{"$f":"Import!M32222","v":"Select"},{"$f":"Import!M32322","v":"Select"},{"$f":"Import!M32422","v":"Select"},{"$f":"Import!M32522","v":0},{"$f":"Import!M32622","v":0},{"$f":"Import!M32722","v":0},{"$f":"Import!M32822","v":0},{"$f":"Import!M32922","v":0}]
[27,{"$f":"Import!M32223","v":"Select"},{"$f":"Import!M32323","v":"Select"},{"$f":"Import!M32423","v":"Select"},{"$f":"Import!M32523","v":0},{"$f":"Import!M32623","v":0},{"$f":"Import!M32723","v":0},{"$f":"Import!M32823","v":0},{"$f":"Import!M32923","v":0}]
[28,{"$f":"Import!M32224","v":"Select"},{"$f":"Import!M32324","v":"Select"},{"$f":"Import!M32424","v":"Select"},{"$f":"Import!M32524","v":0},{"$f":"Import!M32624","v":0},{"$f":"Import!M32724","v":0},{"$f":"Import!M32824","v":0},{"$f":"Import!M32924","v":0}]
[29,{"$f":"Import!M32225","v":"Select"},{"$f":"Import!M32325","v":"Select"},{"$f":"Import!M32425","v":"Select"},{"$f":"Import!M32525","v":0},{"$f":"Import!M32625","v":0},{"$f":"Import!M32725","v":0},{"$f":"Import!M32825","v":0},{"$f":"Import!M32925","v":0}]
[30,{"$f":"Import!M32226","v":"Select"},{"$f":"Import!M32326","v":"Select"},{"$f":"Import!M32426","v":"Select"},{"$f":"Import!M32526","v":0},{"$f":"Import!M32626","v":0},{"$f":"Import!M32726","v":0},{"$f":"Import!M32826","v":0},{"$f":"Import!M32926","v":0}]
[31,{"$f":"Import!M32227","v":"Select"},{"$f":"Import!M32327","v":"Select"},{"$f":"Import!M32427","v":"Select"},{"$f":"Import!M32527","v":0},{"$f":"Import!M32627","v":0},{"$f":"Import!M32727","v":0},{"$f":"Import!M32827","v":0},{"$f":"Import!M32927","v":0}]
[32,{"$f":"Import!M32228","v":"Select"},{"$f":"Import!M32328","v":"Select"},{"$f":"Import!M32428","v":"Select"},{"$f":"Import!M32528","v":0},{"$f":"Import!M32628","v":0},{"$f":"Import!M32728","v":0},{"$f":"Import!M32828","v":0},{"$f":"Import!M32928","v":0}]
[33,{"$f":"Import!M32229","v":"Select"},{"$f":"Import!M32329","v":"Select"},{"$f":"Import!M32429","v":"Select"},{"$f":"Import!M32529","v":0},{"$f":"Import!M32629","v":0},{"$f":"Import!M32729","v":0},{"$f":"Import!M32829","v":0},{"$f":"Import!M32929","v":0}]
[34,{"$f":"Import!M32230","v":"Select"},{"$f":"Import!M32330","v":"Select"},{"$f":"Import!M32430","v":"Select"},{"$f":"Import!M32530","v":0},{"$f":"Import!M32630","v":0},{"$f":"Import!M32730","v":0},{"$f":"Import!M32830","v":0},{"$f":"Import!M32930","v":0}]
[35,{"$f":"Import!M32231","v":"Select"},{"$f":"Import!M32331","v":"Select"},{"$f":"Import!M32431","v":"Select"},{"$f":"Import!M32531","v":0},{"$f":"Import!M32631","v":0},{"$f":"Import!M32731","v":0},{"$f":"Import!M32831","v":0},{"$f":"Import!M32931","v":0}]
[36,{"$f":"Import!M32232","v":"Select"},{"$f":"Import!M32332","v":"Select"},{"$f":"Import!M32432","v":"Select"},{"$f":"Import!M32532","v":0},{"$f":"Import!M32632","v":0},{"$f":"Import!M32732","v":0},{"$f":"Import!M32832","v":0},{"$f":"Import!M32932","v":0}]
[37,{"$f":"Import!M32233","v":"Select"},{"$f":"Import!M32333","v":"Select"},{"$f":"Import!M32433","v":"Select"},{"$f":"Import!M32533","v":0},{"$f":"Import!M32633","v":0},{"$f":"Import!M32733","v":0},{"$f":"Import!M32833","v":0},{"$f":"Import!M32933","v":0}]
[38,{"$f":"Import!M32234","v":"Select"},{"$f":"Import!M32334","v":"Select"},{"$f":"Import!M32434","v":"Select"},{"$f":"Import!M32534","v":0},{"$f":"Import!M32634","v":0},{"$f":"Import!M32734","v":0},{"$f":"Import!M32834","v":0},{"$f":"Import!M32934","v":0}]
[39,{"$f":"Import!M32235","v":"Select"},{"$f":"Import!M32335","v":"Select"},{"$f":"Import!M32435","v":"Select"},{"$f":"Import!M32535","v":0},{"$f":"Import!M32635","v":0},{"$f":"Import!M32735","v":0},{"$f":"Import!M32835","v":0},{"$f":"Import!M32935","v":0}]
[40,{"$f":"Import!M32236","v":"Select"},{"$f":"Import!M32336","v":"Select"},{"$f":"Import!M32436","v":"Select"},{"$f":"Import!M32536","v":0},{"$f":"Import!M32636","v":0},{"$f":"Import!M32736","v":0},{"$f":"Import!M32836","v":0},{"$f":"Import!M32936","v":0}]
[41,{"$f":"Import!M32237","v":"Select"},{"$f":"Import!M32337","v":"Select"},{"$f":"Import!M32437","v":"Select"},{"$f":"Import!M32537","v":0},{"$f":"Import!M32637","v":0},{"$f":"Import!M32737","v":0},{"$f":"Import!M32837","v":0},{"$f":"Import!M32937","v":0}]
[42,{"$f":"Import!M32238","v":"Select"},{"$f":"Import!M32338","v":"Select"},{"$f":"Import!M32438","v":"Select"},{"$f":"Import!M32538","v":0},{"$f":"Import!M32638","v":0},{"$f":"Import!M32738","v":0},{"$f":"Import!M32838","v":0},{"$f":"Import!M32938","v":0}]
[43,{"$f":"Import!M32239","v":"Select"},{"$f":"Import!M32339","v":"Select"},{"$f":"Import!M32439","v":"Select"},{"$f":"Import!M32539","v":0},{"$f":"Import!M32639","v":0},{"$f":"Import!M32739","v":0},{"$f":"Import!M32839","v":0},{"$f":"Import!M32939","v":0}]
[44,{"$f":"Import!M32240","v":"Select"},{"$f":"Import!M32340","v":"Select"},{"$f":"Import!M32440","v":"Select"},{"$f":"Import!M32540","v":0},{"$f":"Import!M32640","v":0},{"$f":"Import!M32740","v":0},{"$f":"Import!M32840","v":0},{"$f":"Import!M32940","v":0}]
[45,{"$f":"Import!M32241","v":"Select"},{"$f":"Import!M32341","v":"Select"},{"$f":"Import!M32441","v":"Select"},{"$f":"Import!M32541","v":0},{"$f":"Import!M32641","v":0},{"$f":"Import!M32741","v":0},{"$f":"Import!M32841","v":0},{"$f":"Import!M32941","v":0}]
[46,{"$f":"Import!M32242","v":"Select"},{"$f":"Import!M32342","v":"Select"},{"$f":"Import!M32442","v":"Select"},{"$f":"Import!M32542","v":0},{"$f":"Import!M32642","v":0},{"$f":"Import!M32742","v":0},{"$f":"Import!M32842","v":0},{"$f":"Import!M32942","v":0}]
[47,{"$f":"Import!M32243","v":"Select"},{"$f":"Import!M32343","v":"Select"},{"$f":"Import!M32443","v":"Select"},{"$f":"Import!M32543","v":0},{"$f":"Import!M32643","v":0},{"$f":"Import!M32743","v":0},{"$f":"Import!M32843","v":0},{"$f":"Import!M32943","v":0}]
[48,{"$f":"Import!M32244","v":"Select"},{"$f":"Import!M32344","v":"Select"},{"$f":"Import!M32444","v":"Select"},{"$f":"Import!M32544","v":0},{"$f":"Import!M32644","v":0},{"$f":"Import!M32744","v":0},{"$f":"Import!M32844","v":0},{"$f":"Import!M32944","v":0}]
[49,{"$f":"Import!M32245","v":"Select"},{"$f":"Import!M32345","v":"Select"},{"$f":"Import!M32445","v":"Select"},{"$f":"Import!M32545","v":0},{"$f":"Import!M32645","v":0},{"$f":"Import!M32745","v":0},{"$f":"Import!M32845","v":0},{"$f":"Import!M32945","v":0}]
[50,{"$f":"Import!M32246","v":"Select"},{"$f":"Import!M32346","v":"Select"},{"$f":"Import!M32446","v":"Select"},{"$f":"Import!M32546","v":0},{"$f":"Import!M32646","v":0},{"$f":"Import!M32746","v":0},{"$f":"Import!M32846","v":0},{"$f":"Import!M32946","v":0}]
[51,{"$f":"Import!M32247","v":"Select"},{"$f":"Import!M32347","v":"Select"},{"$f":"Import!M32447","v":"Select"},{"$f":"Import!M32547","v":0},{"$f":"Import!M32647","v":0},{"$f":"Import!M32747","v":0},{"$f":"Import!M32847","v":0},{"$f":"Import!M32947","v":0}]
[52,{"$f":"Import!M32248","v":"Select"},{"$f":"Import!M32348","v":"Select"},{"$f":"Import!M32448","v":"Select"},{"$f":"Import!M32548","v":0},{"$f":"Import!M32648","v":0},{"$f":"Import!M32748","v":0},{"$f":"Import!M32848","v":0},{"$f":"Import!M32948","v":0}]
[53,{"$f":"Import!M32249","v":"Select"},{"$f":"Import!M32349","v":"Select"},{"$f":"Import!M32449","v":"Select"},{"$f":"Import!M32549","v":0},{"$f":"Import!M32649","v":0},{"$f":"Import!M32749","v":0},{"$f":"Import!M32849","v":0},{"$f":"Import!M32949","v":0}]
[54,{"$f":"Import!M32250","v":"Select"},{"$f":"Import!M32350","v":"Select"},{"$f":"Import!M32450","v":"Select"},{"$f":"Import!M32550","v":0},{"$f":"Import!M32650","v":0},{"$f":"Import!M32750","v":0},{"$f":"Import!M32850","v":0},{"$f":"Import!M32950","v":0}]
[55,{"$f":"Import!M32251","v":"Select"},{"$f":"Import!M32351","v":"Select"},{"$f":"Import!M32451","v":"Select"},{"$f":"Import!M32551","v":0},{"$f":"Import!M32651","v":0},{"$f":"Import!M32751","v":0},{"$f":"Import!M32851","v":0},{"$f":"Import!M32951","v":0}]
[56,{"$f":"Import!M32252","v":"Select"},{"$f":"Import!M32352","v":"Select"},{"$f":"Import!M32452","v":"Select"},{"$f":"Import!M32552","v":0},{"$f":"Import!M32652","v":0},{"$f":"Import!M32752","v":0},{"$f":"Import!M32852","v":0},{"$f":"Import!M32952","v":0}]
[57,{"$f":"Import!M32253","v":"Select"},{"$f":"Import!M32353","v":"Select"},{"$f":"Import!M32453","v":"Select"},{"$f":"Import!M32553","v":0},{"$f":"Import!M32653","v":0},{"$f":"Import!M32753","v":0},{"$f":"Import!M32853","v":0},{"$f":"Import!M32953","v":0}]
[58,{"$f":"Import!M32254","v":"Select"},{"$f":"Import!M32354","v":"Select"},{"$f":"Import!M32454","v":"Select"},{"$f":"Import!M32554","v":0},{"$f":"Import!M32654","v":0},{"$f":"Import!M32754","v":0},{"$f":"Import!M32854","v":0},{"$f":"Import!M32954","v":0}]
[59,{"$f":"Import!M32255","v":"Select"},{"$f":"Import!M32355","v":"Select"},{"$f":"Import!M32455","v":"Select"},{"$f":"Import!M32555","v":0},{"$f":"Import!M32655","v":0},{"$f":"Import!M32755","v":0},{"$f":"Import!M32855","v":0},{"$f":"Import!M32955","v":0}]
[60,{"$f":"Import!M32256","v":"Select"},{"$f":"Import!M32356","v":"Select"},{"$f":"Import!M32456","v":"Select"},{"$f":"Import!M32556","v":0},{"$f":"Import!M32656","v":0},{"$f":"Import!M32756","v":0},{"$f":"Import!M32856","v":0},{"$f":"Import!M32956","v":0}]
[61,{"$f":"Import!M32257","v":"Select"},{"$f":"Import!M32357","v":"Select"},{"$f":"Import!M32457","v":"Select"},{"$f":"Import!M32557","v":0},{"$f":"Import!M32657","v":0},{"$f":"Import!M32757","v":0},{"$f":"Import!M32857","v":0},{"$f":"Import!M32957","v":0}]
[62,{"$f":"Import!M32258","v":"Select"},{"$f":"Import!M32358","v":"Select"},{"$f":"Import!M32458","v":"Select"},{"$f":"Import!M32558","v":0},{"$f":"Import!M32658","v":0},{"$f":"Import!M32758","v":0},{"$f":"Import!M32858","v":0},{"$f":"Import!M32958","v":0}]
[63,{"$f":"Import!M32259","v":"Select"},{"$f":"Import!M32359","v":"Select"},{"$f":"Import!M32459","v":"Select"},{"$f":"Import!M32559","v":0},{"$f":"Import!M32659","v":0},{"$f":"Import!M32759","v":0},{"$f":"Import!M32859","v":0},{"$f":"Import!M32959","v":0}]
[64,{"$f":"Import!M32260","v":"Select"},{"$f":"Import!M32360","v":"Select"},{"$f":"Import!M32460","v":"Select"},{"$f":"Import!M32560","v":0},{"$f":"Import!M32660","v":0},{"$f":"Import!M32760","v":0},{"$f":"Import!M32860","v":0},{"$f":"Import!M32960","v":0}]
[65,{"$f":"Import!M32261","v":"Select"},{"$f":"Import!M32361","v":"Select"},{"$f":"Import!M32461","v":"Select"},{"$f":"Import!M32561","v":0},{"$f":"Import!M32661","v":0},{"$f":"Import!M32761","v":0},{"$f":"Import!M32861","v":0},{"$f":"Import!M32961","v":0}]
[66,{"$f":"Import!M32262","v":"Select"},{"$f":"Import!M32362","v":"Select"},{"$f":"Import!M32462","v":"Select"},{"$f":"Import!M32562","v":0},{"$f":"Import!M32662","v":0},{"$f":"Import!M32762","v":0},{"$f":"Import!M32862","v":0},{"$f":"Import!M32962","v":0}]
[{"$f":"A1194+1","v":67},{"$f":"Import!M32263","v":"Select"},{"$f":"Import!M32363","v":"Select"},{"$f":"Import!M32463","v":"Select"},{"$f":"Import!M32563","v":0},{"$f":"Import!M32663","v":0},{"$f":"Import!M32763","v":0},{"$f":"Import!M32863","v":0},{"$f":"Import!M32963","v":0}]
[68,{"$f":"Import!M32264","v":"Select"},{"$f":"Import!M32364","v":"Select"},{"$f":"Import!M32464","v":"Select"},{"$f":"Import!M32564","v":0},{"$f":"Import!M32664","v":0},{"$f":"Import!M32764","v":0},{"$f":"Import!M32864","v":0},{"$f":"Import!M32964","v":0}]
[69,{"$f":"Import!M32265","v":"Select"},{"$f":"Import!M32365","v":"Select"},{"$f":"Import!M32465","v":"Select"},{"$f":"Import!M32565","v":0},{"$f":"Import!M32665","v":0},{"$f":"Import!M32765","v":0},{"$f":"Import!M32865","v":0},{"$f":"Import!M32965","v":0}]
[70,{"$f":"Import!M32266","v":"Select"},{"$f":"Import!M32366","v":"Select"},{"$f":"Import!M32466","v":"Select"},{"$f":"Import!M32566","v":0},{"$f":"Import!M32666","v":0},{"$f":"Import!M32766","v":0},{"$f":"Import!M32866","v":0},{"$f":"Import!M32966","v":0}]
[71,{"$f":"Import!M32267","v":"Select"},{"$f":"Import!M32367","v":"Select"},{"$f":"Import!M32467","v":"Select"},{"$f":"Import!M32567","v":0},{"$f":"Import!M32667","v":0},{"$f":"Import!M32767","v":0},{"$f":"Import!M32867","v":0},{"$f":"Import!M32967","v":0}]
[72,{"$f":"Import!M32268","v":"Select"},{"$f":"Import!M32368","v":"Select"},{"$f":"Import!M32468","v":"Select"},{"$f":"Import!M32568","v":0},{"$f":"Import!M32668","v":0},{"$f":"Import!M32768","v":0},{"$f":"Import!M32868","v":0},{"$f":"Import!M32968","v":0}]
[73,{"$f":"Import!M32269","v":"Select"},{"$f":"Import!M32369","v":"Select"},{"$f":"Import!M32469","v":"Select"},{"$f":"Import!M32569","v":0},{"$f":"Import!M32669","v":0},{"$f":"Import!M32769","v":0},{"$f":"Import!M32869","v":0},{"$f":"Import!M32969","v":0}]
[74,{"$f":"Import!M32270","v":"Select"},{"$f":"Import!M32370","v":"Select"},{"$f":"Import!M32470","v":"Select"},{"$f":"Import!M32570","v":0},{"$f":"Import!M32670","v":0},{"$f":"Import!M32770","v":0},{"$f":"Import!M32870","v":0},{"$f":"Import!M32970","v":0}]
[75,{"$f":"Import!M32271","v":"Select"},{"$f":"Import!M32371","v":"Select"},{"$f":"Import!M32471","v":"Select"},{"$f":"Import!M32571","v":0},{"$f":"Import!M32671","v":0},{"$f":"Import!M32771","v":0},{"$f":"Import!M32871","v":0},{"$f":"Import!M32971","v":0}]
[76,{"$f":"Import!M32272","v":"Select"},{"$f":"Import!M32372","v":"Select"},{"$f":"Import!M32472","v":"Select"},{"$f":"Import!M32572","v":0},{"$f":"Import!M32672","v":0},{"$f":"Import!M32772","v":0},{"$f":"Import!M32872","v":0},{"$f":"Import!M32972","v":0}]
[77,{"$f":"Import!M32273","v":"Select"},{"$f":"Import!M32373","v":"Select"},{"$f":"Import!M32473","v":"Select"},{"$f":"Import!M32573","v":0},{"$f":"Import!M32673","v":0},{"$f":"Import!M32773","v":0},{"$f":"Import!M32873","v":0},{"$f":"Import!M32973","v":0}]
[78,{"$f":"Import!M32274","v":"Select"},{"$f":"Import!M32374","v":"Select"},{"$f":"Import!M32474","v":"Select"},{"$f":"Import!M32574","v":0},{"$f":"Import!M32674","v":0},{"$f":"Import!M32774","v":0},{"$f":"Import!M32874","v":0},{"$f":"Import!M32974","v":0}]
[79,{"$f":"Import!M32275","v":"Select"},{"$f":"Import!M32375","v":"Select"},{"$f":"Import!M32475","v":"Select"},{"$f":"Import!M32575","v":0},{"$f":"Import!M32675","v":0},{"$f":"Import!M32775","v":0},{"$f":"Import!M32875","v":0},{"$f":"Import!M32975","v":0}]
[80,{"$f":"Import!M32276","v":"Select"},{"$f":"Import!M32376","v":"Select"},{"$f":"Import!M32476","v":"Select"},{"$f":"Import!M32576","v":0},{"$f":"Import!M32676","v":0},{"$f":"Import!M32776","v":0},{"$f":"Import!M32876","v":0},{"$f":"Import!M32976","v":0}]
[81,{"$f":"Import!M32277","v":"Select"},{"$f":"Import!M32377","v":"Select"},{"$f":"Import!M32477","v":"Select"},{"$f":"Import!M32577","v":0},{"$f":"Import!M32677","v":0},{"$f":"Import!M32777","v":0},{"$f":"Import!M32877","v":0},{"$f":"Import!M32977","v":0}]
[82,{"$f":"Import!M32278","v":"Select"},{"$f":"Import!M32378","v":"Select"},{"$f":"Import!M32478","v":"Select"},{"$f":"Import!M32578","v":0},{"$f":"Import!M32678","v":0},{"$f":"Import!M32778","v":0},{"$f":"Import!M32878","v":0},{"$f":"Import!M32978","v":0}]
[83,{"$f":"Import!M32279","v":"Select"},{"$f":"Import!M32379","v":"Select"},{"$f":"Import!M32479","v":"Select"},{"$f":"Import!M32579","v":0},{"$f":"Import!M32679","v":0},{"$f":"Import!M32779","v":0},{"$f":"Import!M32879","v":0},{"$f":"Import!M32979","v":0}]
[84,{"$f":"Import!M32280","v":"Select"},{"$f":"Import!M32380","v":"Select"},{"$f":"Import!M32480","v":"Select"},{"$f":"Import!M32580","v":0},{"$f":"Import!M32680","v":0},{"$f":"Import!M32780","v":0},{"$f":"Import!M32880","v":0},{"$f":"Import!M32980","v":0}]
[85,{"$f":"Import!M32281","v":"Select"},{"$f":"Import!M32381","v":"Select"},{"$f":"Import!M32481","v":"Select"},{"$f":"Import!M32581","v":0},{"$f":"Import!M32681","v":0},{"$f":"Import!M32781","v":0},{"$f":"Import!M32881","v":0},{"$f":"Import!M32981","v":0}]
[86,{"$f":"Import!M32282","v":"Select"},{"$f":"Import!M32382","v":"Select"},{"$f":"Import!M32482","v":"Select"},{"$f":"Import!M32582","v":0},{"$f":"Import!M32682","v":0},{"$f":"Import!M32782","v":0},{"$f":"Import!M32882","v":0},{"$f":"Import!M32982","v":0}]
[87,{"$f":"Import!M32283","v":"Select"},{"$f":"Import!M32383","v":"Select"},{"$f":"Import!M32483","v":"Select"},{"$f":"Import!M32583","v":0},{"$f":"Import!M32683","v":0},{"$f":"Import!M32783","v":0},{"$f":"Import!M32883","v":0},{"$f":"Import!M32983","v":0}]
[88,{"$f":"Import!M32284","v":"Select"},{"$f":"Import!M32384","v":"Select"},{"$f":"Import!M32484","v":"Select"},{"$f":"Import!M32584","v":0},{"$f":"Import!M32684","v":0},{"$f":"Import!M32784","v":0},{"$f":"Import!M32884","v":0},{"$f":"Import!M32984","v":0}]
[89,{"$f":"Import!M32285","v":"Select"},{"$f":"Import!M32385","v":"Select"},{"$f":"Import!M32485","v":"Select"},{"$f":"Import!M32585","v":0},{"$f":"Import!M32685","v":0},{"$f":"Import!M32785","v":0},{"$f":"Import!M32885","v":0},{"$f":"Import!M32985","v":0}]
[90,{"$f":"Import!M32286","v":"Select"},{"$f":"Import!M32386","v":"Select"},{"$f":"Import!M32486","v":"Select"},{"$f":"Import!M32586","v":0},{"$f":"Import!M32686","v":0},{"$f":"Import!M32786","v":0},{"$f":"Import!M32886","v":0},{"$f":"Import!M32986","v":0}]
[91,{"$f":"Import!M32287","v":"Select"},{"$f":"Import!M32387","v":"Select"},{"$f":"Import!M32487","v":"Select"},{"$f":"Import!M32587","v":0},{"$f":"Import!M32687","v":0},{"$f":"Import!M32787","v":0},{"$f":"Import!M32887","v":0},{"$f":"Import!M32987","v":0}]
[92,{"$f":"Import!M32288","v":"Select"},{"$f":"Import!M32388","v":"Select"},{"$f":"Import!M32488","v":"Select"},{"$f":"Import!M32588","v":0},{"$f":"Import!M32688","v":0},{"$f":"Import!M32788","v":0},{"$f":"Import!M32888","v":0},{"$f":"Import!M32988","v":0}]
[93,{"$f":"Import!M32289","v":"Select"},{"$f":"Import!M32389","v":"Select"},{"$f":"Import!M32489","v":"Select"},{"$f":"Import!M32589","v":0},{"$f":"Import!M32689","v":0},{"$f":"Import!M32789","v":0},{"$f":"Import!M32889","v":0},{"$f":"Import!M32989","v":0}]
[94,{"$f":"Import!M32290","v":"Select"},{"$f":"Import!M32390","v":"Select"},{"$f":"Import!M32490","v":"Select"},{"$f":"Import!M32590","v":0},{"$f":"Import!M32690","v":0},{"$f":"Import!M32790","v":0},{"$f":"Import!M32890","v":0},{"$f":"Import!M32990","v":0}]
[95,{"$f":"Import!M32291","v":"Select"},{"$f":"Import!M32391","v":"Select"},{"$f":"Import!M32491","v":"Select"},{"$f":"Import!M32591","v":0},{"$f":"Import!M32691","v":0},{"$f":"Import!M32791","v":0},{"$f":"Import!M32891","v":0},{"$f":"Import!M32991","v":0}]
[96,{"$f":"Import!M32292","v":"Select"},{"$f":"Import!M32392","v":"Select"},{"$f":"Import!M32492","v":"Select"},{"$f":"Import!M32592","v":0},{"$f":"Import!M32692","v":0},{"$f":"Import!M32792","v":0},{"$f":"Import!M32892","v":0},{"$f":"Import!M32992","v":0}]
[97,{"$f":"Import!M32293","v":"Select"},{"$f":"Import!M32393","v":"Select"},{"$f":"Import!M32493","v":"Select"},{"$f":"Import!M32593","v":0},{"$f":"Import!M32693","v":0},{"$f":"Import!M32793","v":0},{"$f":"Import!M32893","v":0},{"$f":"Import!M32993","v":0}]
[98,{"$f":"Import!M32294","v":"Select"},{"$f":"Import!M32394","v":"Select"},{"$f":"Import!M32494","v":"Select"},{"$f":"Import!M32594","v":0},{"$f":"Import!M32694","v":0},{"$f":"Import!M32794","v":0},{"$f":"Import!M32894","v":0},{"$f":"Import!M32994","v":0}]
[99,{"$f":"Import!M32295","v":"Select"},{"$f":"Import!M32395","v":"Select"},{"$f":"Import!M32495","v":"Select"},{"$f":"Import!M32595","v":0},{"$f":"Import!M32695","v":0},{"$f":"Import!M32795","v":0},{"$f":"Import!M32895","v":0},{"$f":"Import!M32995","v":0}]
[100,{"$f":"Import!M32296","v":"Select"},{"$f":"Import!M32396","v":"Select"},{"$f":"Import!M32496","v":"Select"},{"$f":"Import!M32596","v":0},{"$f":"Import!M32696","v":0},{"$f":"Import!M32796","v":0},{"$f":"Import!M32896","v":0},{"$f":"Import!M32996","v":0}]
[]
[null,"Total Preferred Equities",null,null,{"$f":"SUM(E1129:E1228)","v":0},{"$f":"SUM(F1129:F1228)","v":0},{"$f":"IFERROR(SUMPRODUCT(G1129:G1228,$F1129:$F1228)/SUM($F1129:$F1228),0)","v":0},{"$f":"IFERROR(SUMPRODUCT(H1129:H1228,$F1129:$F1228)/SUM($F1129:$F1228),0)","v":0}]
[]
[null,"(F) COMMON EQUITIES"]
[]
[null,null,"Enter # of Asset Types",{"$f":"Import!M32997","v":0}]
[null,null,null,null,{"$f":"YEAR($C$3)","v":2023}]
[null,"Asset Type","Currency","Country","Fair Value","Comments"]
[1,{"$f":"Import!M32998","v":"Select"},{"$f":"Import!M33098","v":"Select"},{"$f":"Import!M33198","v":"Select"},{"$f":"Import!M33298","v":0},{"$f":"Import!M33398","v":0}]
[{"$f":"A1237+1","v":2},{"$f":"Import!M32999","v":"Select"},{"$f":"Import!M33099","v":"Select"},{"$f":"Import!M33199","v":"Select"},{"$f":"Import!M33299","v":0},{"$f":"Import!M33399","v":0}]
[{"$f":"A1238+1","v":3},{"$f":"Import!M33000","v":"Select"},{"$f":"Import!M33100","v":"Select"},{"$f":"Import!M33200","v":"Select"},{"$f":"Import!M33300","v":0},{"$f":"Import!M33400","v":0}]
[4,{"$f":"Import!M33001","v":"Select"},{"$f":"Import!M33101","v":"Select"},{"$f":"Import!M33201","v":"Select"},{"$f":"Import!M33301","v":0},{"$f":"Import!M33401","v":0}]
[5,{"$f":"Import!M33002","v":"Select"},{"$f":"Import!M33102","v":"Select"},{"$f":"Import!M33202","v":"Select"},{"$f":"Import!M33302","v":0},{"$f":"Import!M33402","v":0}]
[6,{"$f":"Import!M33003","v":"Select"},{"$f":"Import!M33103","v":"Select"},{"$f":"Import!M33203","v":"Select"},{"$f":"Import!M33303","v":0},{"$f":"Import!M33403","v":0}]
[7,{"$f":"Import!M33004","v":"Select"},{"$f":"Import!M33104","v":"Select"},{"$f":"Import!M33204","v":"Select"},{"$f":"Import!M33304","v":0},{"$f":"Import!M33404","v":0}]
[8,{"$f":"Import!M33005","v":"Select"},{"$f":"Import!M33105","v":"Select"},{"$f":"Import!M33205","v":"Select"},{"$f":"Import!M33305","v":0},{"$f":"Import!M33405","v":0}]
[9,{"$f":"Import!M33006","v":"Select"},{"$f":"Import!M33106","v":"Select"},{"$f":"Import!M33206","v":"Select"},{"$f":"Import!M33306","v":0},{"$f":"Import!M33406","v":0}]
[10,{"$f":"Import!M33007","v":"Select"},{"$f":"Import!M33107","v":"Select"},{"$f":"Import!M33207","v":"Select"},{"$f":"Import!M33307","v":0},{"$f":"Import!M33407","v":0}]
[11,{"$f":"Import!M33008","v":"Select"},{"$f":"Import!M33108","v":"Select"},{"$f":"Import!M33208","v":"Select"},{"$f":"Import!M33308","v":0},{"$f":"Import!M33408","v":0}]
[12,{"$f":"Import!M33009","v":"Select"},{"$f":"Import!M33109","v":"Select"},{"$f":"Import!M33209","v":"Select"},{"$f":"Import!M33309","v":0},{"$f":"Import!M33409","v":0}]
[13,{"$f":"Import!M33010","v":"Select"},{"$f":"Import!M33110","v":"Select"},{"$f":"Import!M33210","v":"Select"},{"$f":"Import!M33310","v":0},{"$f":"Import!M33410","v":0}]
[14,{"$f":"Import!M33011","v":"Select"},{"$f":"Import!M33111","v":"Select"},{"$f":"Import!M33211","v":"Select"},{"$f":"Import!M33311","v":0},{"$f":"Import!M33411","v":0}]
[15,{"$f":"Import!M33012","v":"Select"},{"$f":"Import!M33112","v":"Select"},{"$f":"Import!M33212","v":"Select"},{"$f":"Import!M33312","v":0},{"$f":"Import!M33412","v":0}]
[16,{"$f":"Import!M33013","v":"Select"},{"$f":"Import!M33113","v":"Select"},{"$f":"Import!M33213","v":"Select"},{"$f":"Import!M33313","v":0},{"$f":"Import!M33413","v":0}]
[17,{"$f":"Import!M33014","v":"Select"},{"$f":"Import!M33114","v":"Select"},{"$f":"Import!M33214","v":"Select"},{"$f":"Import!M33314","v":0},{"$f":"Import!M33414","v":0}]
[18,{"$f":"Import!M33015","v":"Select"},{"$f":"Import!M33115","v":"Select"},{"$f":"Import!M33215","v":"Select"},{"$f":"Import!M33315","v":0},{"$f":"Import!M33415","v":0}]
[19,{"$f":"Import!M33016","v":"Select"},{"$f":"Import!M33116","v":"Select"},{"$f":"Import!M33216","v":"Select"},{"$f":"Import!M33316","v":0},{"$f":"Import!M33416","v":0}]
[20,{"$f":"Import!M33017","v":"Select"},{"$f":"Import!M33117","v":"Select"},{"$f":"Import!M33217","v":"Select"},{"$f":"Import!M33317","v":0},{"$f":"Import!M33417","v":0}]
[21,{"$f":"Import!M33018","v":"Select"},{"$f":"Import!M33118","v":"Select"},{"$f":"Import!M33218","v":"Select"},{"$f":"Import!M33318","v":0},{"$f":"Import!M33418","v":0}]
[22,{"$f":"Import!M33019","v":"Select"},{"$f":"Import!M33119","v":"Select"},{"$f":"Import!M33219","v":"Select"},{"$f":"Import!M33319","v":0},{"$f":"Import!M33419","v":0}]
[23,{"$f":"Import!M33020","v":"Select"},{"$f":"Import!M33120","v":"Select"},{"$f":"Import!M33220","v":"Select"},{"$f":"Import!M33320","v":0},{"$f":"Import!M33420","v":0}]
[24,{"$f":"Import!M33021","v":"Select"},{"$f":"Import!M33121","v":"Select"},{"$f":"Import!M33221","v":"Select"},{"$f":"Import!M33321","v":0},{"$f":"Import!M33421","v":0}]
[25,{"$f":"Import!M33022","v":"Select"},{"$f":"Import!M33122","v":"Select"},{"$f":"Import!M33222","v":"Select"},{"$f":"Import!M33322","v":0},{"$f":"Import!M33422","v":0}]
[26,{"$f":"Import!M33023","v":"Select"},{"$f":"Import!M33123","v":"Select"},{"$f":"Import!M33223","v":"Select"},{"$f":"Import!M33323","v":0},{"$f":"Import!M33423","v":0}]
[27,{"$f":"Import!M33024","v":"Select"},{"$f":"Import!M33124","v":"Select"},{"$f":"Import!M33224","v":"Select"},{"$f":"Import!M33324","v":0},{"$f":"Import!M33424","v":0}]
[28,{"$f":"Import!M33025","v":"Select"},{"$f":"Import!M33125","v":"Select"},{"$f":"Import!M33225","v":"Select"},{"$f":"Import!M33325","v":0},{"$f":"Import!M33425","v":0}]
[29,{"$f":"Import!M33026","v":"Select"},{"$f":"Import!M33126","v":"Select"},{"$f":"Import!M33226","v":"Select"},{"$f":"Import!M33326","v":0},{"$f":"Import!M33426","v":0}]
[30,{"$f":"Import!M33027","v":"Select"},{"$f":"Import!M33127","v":"Select"},{"$f":"Import!M33227","v":"Select"},{"$f":"Import!M33327","v":0},{"$f":"Import!M33427","v":0}]
[31,{"$f":"Import!M33028","v":"Select"},{"$f":"Import!M33128","v":"Select"},{"$f":"Import!M33228","v":"Select"},{"$f":"Import!M33328","v":0},{"$f":"Import!M33428","v":0}]
[32,{"$f":"Import!M33029","v":"Select"},{"$f":"Import!M33129","v":"Select"},{"$f":"Import!M33229","v":"Select"},{"$f":"Import!M33329","v":0},{"$f":"Import!M33429","v":0}]
[33,{"$f":"Import!M33030","v":"Select"},{"$f":"Import!M33130","v":"Select"},{"$f":"Import!M33230","v":"Select"},{"$f":"Import!M33330","v":0},{"$f":"Import!M33430","v":0}]
[34,{"$f":"Import!M33031","v":"Select"},{"$f":"Import!M33131","v":"Select"},{"$f":"Import!M33231","v":"Select"},{"$f":"Import!M33331","v":0},{"$f":"Import!M33431","v":0}]
[35,{"$f":"Import!M33032","v":"Select"},{"$f":"Import!M33132","v":"Select"},{"$f":"Import!M33232","v":"Select"},{"$f":"Import!M33332","v":0},{"$f":"Import!M33432","v":0}]
[36,{"$f":"Import!M33033","v":"Select"},{"$f":"Import!M33133","v":"Select"},{"$f":"Import!M33233","v":"Select"},{"$f":"Import!M33333","v":0},{"$f":"Import!M33433","v":0}]
[37,{"$f":"Import!M33034","v":"Select"},{"$f":"Import!M33134","v":"Select"},{"$f":"Import!M33234","v":"Select"},{"$f":"Import!M33334","v":0},{"$f":"Import!M33434","v":0}]
[38,{"$f":"Import!M33035","v":"Select"},{"$f":"Import!M33135","v":"Select"},{"$f":"Import!M33235","v":"Select"},{"$f":"Import!M33335","v":0},{"$f":"Import!M33435","v":0}]
[39,{"$f":"Import!M33036","v":"Select"},{"$f":"Import!M33136","v":"Select"},{"$f":"Import!M33236","v":"Select"},{"$f":"Import!M33336","v":0},{"$f":"Import!M33436","v":0}]
[40,{"$f":"Import!M33037","v":"Select"},{"$f":"Import!M33137","v":"Select"},{"$f":"Import!M33237","v":"Select"},{"$f":"Import!M33337","v":0},{"$f":"Import!M33437","v":0}]
[41,{"$f":"Import!M33038","v":"Select"},{"$f":"Import!M33138","v":"Select"},{"$f":"Import!M33238","v":"Select"},{"$f":"Import!M33338","v":0},{"$f":"Import!M33438","v":0}]
[42,{"$f":"Import!M33039","v":"Select"},{"$f":"Import!M33139","v":"Select"},{"$f":"Import!M33239","v":"Select"},{"$f":"Import!M33339","v":0},{"$f":"Import!M33439","v":0}]
[43,{"$f":"Import!M33040","v":"Select"},{"$f":"Import!M33140","v":"Select"},{"$f":"Import!M33240","v":"Select"},{"$f":"Import!M33340","v":0},{"$f":"Import!M33440","v":0}]
[44,{"$f":"Import!M33041","v":"Select"},{"$f":"Import!M33141","v":"Select"},{"$f":"Import!M33241","v":"Select"},{"$f":"Import!M33341","v":0},{"$f":"Import!M33441","v":0}]
[45,{"$f":"Import!M33042","v":"Select"},{"$f":"Import!M33142","v":"Select"},{"$f":"Import!M33242","v":"Select"},{"$f":"Import!M33342","v":0},{"$f":"Import!M33442","v":0}]
[46,{"$f":"Import!M33043","v":"Select"},{"$f":"Import!M33143","v":"Select"},{"$f":"Import!M33243","v":"Select"},{"$f":"Import!M33343","v":0},{"$f":"Import!M33443","v":0}]
[47,{"$f":"Import!M33044","v":"Select"},{"$f":"Import!M33144","v":"Select"},{"$f":"Import!M33244","v":"Select"},{"$f":"Import!M33344","v":0},{"$f":"Import!M33444","v":0}]
[48,{"$f":"Import!M33045","v":"Select"},{"$f":"Import!M33145","v":"Select"},{"$f":"Import!M33245","v":"Select"},{"$f":"Import!M33345","v":0},{"$f":"Import!M33445","v":0}]
[49,{"$f":"Import!M33046","v":"Select"},{"$f":"Import!M33146","v":"Select"},{"$f":"Import!M33246","v":"Select"},{"$f":"Import!M33346","v":0},{"$f":"Import!M33446","v":0}]
[50,{"$f":"Import!M33047","v":"Select"},{"$f":"Import!M33147","v":"Select"},{"$f":"Import!M33247","v":"Select"},{"$f":"Import!M33347","v":0},{"$f":"Import!M33447","v":0}]
[51,{"$f":"Import!M33048","v":"Select"},{"$f":"Import!M33148","v":"Select"},{"$f":"Import!M33248","v":"Select"},{"$f":"Import!M33348","v":0},{"$f":"Import!M33448","v":0}]
[52,{"$f":"Import!M33049","v":"Select"},{"$f":"Import!M33149","v":"Select"},{"$f":"Import!M33249","v":"Select"},{"$f":"Import!M33349","v":0},{"$f":"Import!M33449","v":0}]
[53,{"$f":"Import!M33050","v":"Select"},{"$f":"Import!M33150","v":"Select"},{"$f":"Import!M33250","v":"Select"},{"$f":"Import!M33350","v":0},{"$f":"Import!M33450","v":0}]
[54,{"$f":"Import!M33051","v":"Select"},{"$f":"Import!M33151","v":"Select"},{"$f":"Import!M33251","v":"Select"},{"$f":"Import!M33351","v":0},{"$f":"Import!M33451","v":0}]
[55,{"$f":"Import!M33052","v":"Select"},{"$f":"Import!M33152","v":"Select"},{"$f":"Import!M33252","v":"Select"},{"$f":"Import!M33352","v":0},{"$f":"Import!M33452","v":0}]
[56,{"$f":"Import!M33053","v":"Select"},{"$f":"Import!M33153","v":"Select"},{"$f":"Import!M33253","v":"Select"},{"$f":"Import!M33353","v":0},{"$f":"Import!M33453","v":0}]
[57,{"$f":"Import!M33054","v":"Select"},{"$f":"Import!M33154","v":"Select"},{"$f":"Import!M33254","v":"Select"},{"$f":"Import!M33354","v":0},{"$f":"Import!M33454","v":0}]
[58,{"$f":"Import!M33055","v":"Select"},{"$f":"Import!M33155","v":"Select"},{"$f":"Import!M33255","v":"Select"},{"$f":"Import!M33355","v":0},{"$f":"Import!M33455","v":0}]
[59,{"$f":"Import!M33056","v":"Select"},{"$f":"Import!M33156","v":"Select"},{"$f":"Import!M33256","v":"Select"},{"$f":"Import!M33356","v":0},{"$f":"Import!M33456","v":0}]
[60,{"$f":"Import!M33057","v":"Select"},{"$f":"Import!M33157","v":"Select"},{"$f":"Import!M33257","v":"Select"},{"$f":"Import!M33357","v":0},{"$f":"Import!M33457","v":0}]
[61,{"$f":"Import!M33058","v":"Select"},{"$f":"Import!M33158","v":"Select"},{"$f":"Import!M33258","v":"Select"},{"$f":"Import!M33358","v":0},{"$f":"Import!M33458","v":0}]
[62,{"$f":"Import!M33059","v":"Select"},{"$f":"Import!M33159","v":"Select"},{"$f":"Import!M33259","v":"Select"},{"$f":"Import!M33359","v":0},{"$f":"Import!M33459","v":0}]
[63,{"$f":"Import!M33060","v":"Select"},{"$f":"Import!M33160","v":"Select"},{"$f":"Import!M33260","v":"Select"},{"$f":"Import!M33360","v":0},{"$f":"Import!M33460","v":0}]
[64,{"$f":"Import!M33061","v":"Select"},{"$f":"Import!M33161","v":"Select"},{"$f":"Import!M33261","v":"Select"},{"$f":"Import!M33361","v":0},{"$f":"Import!M33461","v":0}]
[65,{"$f":"Import!M33062","v":"Select"},{"$f":"Import!M33162","v":"Select"},{"$f":"Import!M33262","v":"Select"},{"$f":"Import!M33362","v":0},{"$f":"Import!M33462","v":0}]
[66,{"$f":"Import!M33063","v":"Select"},{"$f":"Import!M33163","v":"Select"},{"$f":"Import!M33263","v":"Select"},{"$f":"Import!M33363","v":0},{"$f":"Import!M33463","v":0}]
[{"$f":"A1302+1","v":67},{"$f":"Import!M33064","v":"Select"},{"$f":"Import!M33164","v":"Select"},{"$f":"Import!M33264","v":"Select"},{"$f":"Import!M33364","v":0},{"$f":"Import!M33464","v":0}]
[68,{"$f":"Import!M33065","v":"Select"},{"$f":"Import!M33165","v":"Select"},{"$f":"Import!M33265","v":"Select"},{"$f":"Import!M33365","v":0},{"$f":"Import!M33465","v":0}]
[69,{"$f":"Import!M33066","v":"Select"},{"$f":"Import!M33166","v":"Select"},{"$f":"Import!M33266","v":"Select"},{"$f":"Import!M33366","v":0},{"$f":"Import!M33466","v":0}]
[70,{"$f":"Import!M33067","v":"Select"},{"$f":"Import!M33167","v":"Select"},{"$f":"Import!M33267","v":"Select"},{"$f":"Import!M33367","v":0},{"$f":"Import!M33467","v":0}]
[71,{"$f":"Import!M33068","v":"Select"},{"$f":"Import!M33168","v":"Select"},{"$f":"Import!M33268","v":"Select"},{"$f":"Import!M33368","v":0},{"$f":"Import!M33468","v":0}]
[72,{"$f":"Import!M33069","v":"Select"},{"$f":"Import!M33169","v":"Select"},{"$f":"Import!M33269","v":"Select"},{"$f":"Import!M33369","v":0},{"$f":"Import!M33469","v":0}]
[73,{"$f":"Import!M33070","v":"Select"},{"$f":"Import!M33170","v":"Select"},{"$f":"Import!M33270","v":"Select"},{"$f":"Import!M33370","v":0},{"$f":"Import!M33470","v":0}]
[74,{"$f":"Import!M33071","v":"Select"},{"$f":"Import!M33171","v":"Select"},{"$f":"Import!M33271","v":"Select"},{"$f":"Import!M33371","v":0},{"$f":"Import!M33471","v":0}]
[75,{"$f":"Import!M33072","v":"Select"},{"$f":"Import!M33172","v":"Select"},{"$f":"Import!M33272","v":"Select"},{"$f":"Import!M33372","v":0},{"$f":"Import!M33472","v":0}]
[76,{"$f":"Import!M33073","v":"Select"},{"$f":"Import!M33173","v":"Select"},{"$f":"Import!M33273","v":"Select"},{"$f":"Import!M33373","v":0},{"$f":"Import!M33473","v":0}]
[77,{"$f":"Import!M33074","v":"Select"},{"$f":"Import!M33174","v":"Select"},{"$f":"Import!M33274","v":"Select"},{"$f":"Import!M33374","v":0},{"$f":"Import!M33474","v":0}]
[78,{"$f":"Import!M33075","v":"Select"},{"$f":"Import!M33175","v":"Select"},{"$f":"Import!M33275","v":"Select"},{"$f":"Import!M33375","v":0},{"$f":"Import!M33475","v":0}]
[79,{"$f":"Import!M33076","v":"Select"},{"$f":"Import!M33176","v":"Select"},{"$f":"Import!M33276","v":"Select"},{"$f":"Import!M33376","v":0},{"$f":"Import!M33476","v":0}]
[80,{"$f":"Import!M33077","v":"Select"},{"$f":"Import!M33177","v":"Select"},{"$f":"Import!M33277","v":"Select"},{"$f":"Import!M33377","v":0},{"$f":"Import!M33477","v":0}]
[81,{"$f":"Import!M33078","v":"Select"},{"$f":"Import!M33178","v":"Select"},{"$f":"Import!M33278","v":"Select"},{"$f":"Import!M33378","v":0},{"$f":"Import!M33478","v":0}]
[82,{"$f":"Import!M33079","v":"Select"},{"$f":"Import!M33179","v":"Select"},{"$f":"Import!M33279","v":"Select"},{"$f":"Import!M33379","v":0},{"$f":"Import!M33479","v":0}]
[83,{"$f":"Import!M33080","v":"Select"},{"$f":"Import!M33180","v":"Select"},{"$f":"Import!M33280","v":"Select"},{"$f":"Import!M33380","v":0},{"$f":"Import!M33480","v":0}]
[84,{"$f":"Import!M33081","v":"Select"},{"$f":"Import!M33181","v":"Select"},{"$f":"Import!M33281","v":"Select"},{"$f":"Import!M33381","v":0},{"$f":"Import!M33481","v":0}]
[85,{"$f":"Import!M33082","v":"Select"},{"$f":"Import!M33182","v":"Select"},{"$f":"Import!M33282","v":"Select"},{"$f":"Import!M33382","v":0},{"$f":"Import!M33482","v":0}]
[86,{"$f":"Import!M33083","v":"Select"},{"$f":"Import!M33183","v":"Select"},{"$f":"Import!M33283","v":"Select"},{"$f":"Import!M33383","v":0},{"$f":"Import!M33483","v":0}]
[87,{"$f":"Import!M33084","v":"Select"},{"$f":"Import!M33184","v":"Select"},{"$f":"Import!M33284","v":"Select"},{"$f":"Import!M33384","v":0},{"$f":"Import!M33484","v":0}]
[88,{"$f":"Import!M33085","v":"Select"},{"$f":"Import!M33185","v":"Select"},{"$f":"Import!M33285","v":"Select"},{"$f":"Import!M33385","v":0},{"$f":"Import!M33485","v":0}]
[89,{"$f":"Import!M33086","v":"Select"},{"$f":"Import!M33186","v":"Select"},{"$f":"Import!M33286","v":"Select"},{"$f":"Import!M33386","v":0},{"$f":"Import!M33486","v":0}]
[90,{"$f":"Import!M33087","v":"Select"},{"$f":"Import!M33187","v":"Select"},{"$f":"Import!M33287","v":"Select"},{"$f":"Import!M33387","v":0},{"$f":"Import!M33487","v":0}]
[91,{"$f":"Import!M33088","v":"Select"},{"$f":"Import!M33188","v":"Select"},{"$f":"Import!M33288","v":"Select"},{"$f":"Import!M33388","v":0},{"$f":"Import!M33488","v":0}]
[92,{"$f":"Import!M33089","v":"Select"},{"$f":"Import!M33189","v":"Select"},{"$f":"Import!M33289","v":"Select"},{"$f":"Import!M33389","v":0},{"$f":"Import!M33489","v":0}]
[93,{"$f":"Import!M33090","v":"Select"},{"$f":"Import!M33190","v":"Select"},{"$f":"Import!M33290","v":"Select"},{"$f":"Import!M33390","v":0},{"$f":"Import!M33490","v":0}]
[94,{"$f":"Import!M33091","v":"Select"},{"$f":"Import!M33191","v":"Select"},{"$f":"Import!M33291","v":"Select"},{"$f":"Import!M33391","v":0},{"$f":"Import!M33491","v":0}]
[95,{"$f":"Import!M33092","v":"Select"},{"$f":"Import!M33192","v":"Select"},{"$f":"Import!M33292","v":"Select"},{"$f":"Import!M33392","v":0},{"$f":"Import!M33492","v":0}]
[96,{"$f":"Import!M33093","v":"Select"},{"$f":"Import!M33193","v":"Select"},{"$f":"Import!M33293","v":"Select"},{"$f":"Import!M33393","v":0},{"$f":"Import!M33493","v":0}]
[97,{"$f":"Import!M33094","v":"Select"},{"$f":"Import!M33194","v":"Select"},{"$f":"Import!M33294","v":"Select"},{"$f":"Import!M33394","v":0},{"$f":"Import!M33494","v":0}]
[98,{"$f":"Import!M33095","v":"Select"},{"$f":"Import!M33195","v":"Select"},{"$f":"Import!M33295","v":"Select"},{"$f":"Import!M33395","v":0},{"$f":"Import!M33495","v":0}]
[99,{"$f":"Import!M33096","v":"Select"},{"$f":"Import!M33196","v":"Select"},{"$f":"Import!M33296","v":"Select"},{"$f":"Import!M33396","v":0},{"$f":"Import!M33496","v":0}]
[100,{"$f":"Import!M33097","v":"Select"},{"$f":"Import!M33197","v":"Select"},{"$f":"Import!M33297","v":"Select"},{"$f":"Import!M33397","v":0},{"$f":"Import!M33497","v":0}]
[]
[null,"Total Common Equities",null,null,{"$f":"SUM(E1237:E1336)","v":0}]
[]
[null,"(G) REAL ESTATE"]
[]
[null,null,"Enter # of Asset Types",{"$f":"Import!M33498","v":0}]
[null,null,null,null,null,{"$f":"YEAR($C$3)","v":2023},2023]
[null,"Asset Type","Currency","Country","Purpose","Cost","Fair Value","Comments"]
[1,{"$f":"Import!M33499","v":"Select"},{"$f":"Import!M33599","v":"Select"},{"$f":"Import!M33699","v":"Select"},{"$f":"Import!M33799","v":"Select"},{"$f":"Import!M33899","v":0},{"$f":"Import!M33999","v":0},{"$f":"Import!M34099","v":0}]
[{"$f":"A1345+1","v":2},{"$f":"Import!M33500","v":"Select"},{"$f":"Import!M33600","v":"Select"},{"$f":"Import!M33700","v":"Select"},{"$f":"Import!M33800","v":"Select"},{"$f":"Import!M33900","v":0},{"$f":"Import!M34000","v":0},{"$f":"Import!M34100","v":0}]
[{"$f":"A1346+1","v":3},{"$f":"Import!M33501","v":"Select"},{"$f":"Import!M33601","v":"Select"},{"$f":"Import!M33701","v":"Select"},{"$f":"Import!M33801","v":"Select"},{"$f":"Import!M33901","v":0},{"$f":"Import!M34001","v":0},{"$f":"Import!M34101","v":0}]
[4,{"$f":"Import!M33502","v":"Select"},{"$f":"Import!M33602","v":"Select"},{"$f":"Import!M33702","v":"Select"},{"$f":"Import!M33802","v":"Select"},{"$f":"Import!M33902","v":0},{"$f":"Import!M34002","v":0},{"$f":"Import!M34102","v":0}]
[5,{"$f":"Import!M33503","v":"Select"},{"$f":"Import!M33603","v":"Select"},{"$f":"Import!M33703","v":"Select"},{"$f":"Import!M33803","v":"Select"},{"$f":"Import!M33903","v":0},{"$f":"Import!M34003","v":0},{"$f":"Import!M34103","v":0}]
[6,{"$f":"Import!M33504","v":"Select"},{"$f":"Import!M33604","v":"Select"},{"$f":"Import!M33704","v":"Select"},{"$f":"Import!M33804","v":"Select"},{"$f":"Import!M33904","v":0},{"$f":"Import!M34004","v":0},{"$f":"Import!M34104","v":0}]
[7,{"$f":"Import!M33505","v":"Select"},{"$f":"Import!M33605","v":"Select"},{"$f":"Import!M33705","v":"Select"},{"$f":"Import!M33805","v":"Select"},{"$f":"Import!M33905","v":0},{"$f":"Import!M34005","v":0},{"$f":"Import!M34105","v":0}]
[8,{"$f":"Import!M33506","v":"Select"},{"$f":"Import!M33606","v":"Select"},{"$f":"Import!M33706","v":"Select"},{"$f":"Import!M33806","v":"Select"},{"$f":"Import!M33906","v":0},{"$f":"Import!M34006","v":0},{"$f":"Import!M34106","v":0}]
[9,{"$f":"Import!M33507","v":"Select"},{"$f":"Import!M33607","v":"Select"},{"$f":"Import!M33707","v":"Select"},{"$f":"Import!M33807","v":"Select"},{"$f":"Import!M33907","v":0},{"$f":"Import!M34007","v":0},{"$f":"Import!M34107","v":0}]
[10,{"$f":"Import!M33508","v":"Select"},{"$f":"Import!M33608","v":"Select"},{"$f":"Import!M33708","v":"Select"},{"$f":"Import!M33808","v":"Select"},{"$f":"Import!M33908","v":0},{"$f":"Import!M34008","v":0},{"$f":"Import!M34108","v":0}]
[11,{"$f":"Import!M33509","v":"Select"},{"$f":"Import!M33609","v":"Select"},{"$f":"Import!M33709","v":"Select"},{"$f":"Import!M33809","v":"Select"},{"$f":"Import!M33909","v":0},{"$f":"Import!M34009","v":0},{"$f":"Import!M34109","v":0}]
[12,{"$f":"Import!M33510","v":"Select"},{"$f":"Import!M33610","v":"Select"},{"$f":"Import!M33710","v":"Select"},{"$f":"Import!M33810","v":"Select"},{"$f":"Import!M33910","v":0},{"$f":"Import!M34010","v":0},{"$f":"Import!M34110","v":0}]
[13,{"$f":"Import!M33511","v":"Select"},{"$f":"Import!M33611","v":"Select"},{"$f":"Import!M33711","v":"Select"},{"$f":"Import!M33811","v":"Select"},{"$f":"Import!M33911","v":0},{"$f":"Import!M34011","v":0},{"$f":"Import!M34111","v":0}]
[14,{"$f":"Import!M33512","v":"Select"},{"$f":"Import!M33612","v":"Select"},{"$f":"Import!M33712","v":"Select"},{"$f":"Import!M33812","v":"Select"},{"$f":"Import!M33912","v":0},{"$f":"Import!M34012","v":0},{"$f":"Import!M34112","v":0}]
[15,{"$f":"Import!M33513","v":"Select"},{"$f":"Import!M33613","v":"Select"},{"$f":"Import!M33713","v":"Select"},{"$f":"Import!M33813","v":"Select"},{"$f":"Import!M33913","v":0},{"$f":"Import!M34013","v":0},{"$f":"Import!M34113","v":0}]
[16,{"$f":"Import!M33514","v":"Select"},{"$f":"Import!M33614","v":"Select"},{"$f":"Import!M33714","v":"Select"},{"$f":"Import!M33814","v":"Select"},{"$f":"Import!M33914","v":0},{"$f":"Import!M34014","v":0},{"$f":"Import!M34114","v":0}]
[17,{"$f":"Import!M33515","v":"Select"},{"$f":"Import!M33615","v":"Select"},{"$f":"Import!M33715","v":"Select"},{"$f":"Import!M33815","v":"Select"},{"$f":"Import!M33915","v":0},{"$f":"Import!M34015","v":0},{"$f":"Import!M34115","v":0}]
[18,{"$f":"Import!M33516","v":"Select"},{"$f":"Import!M33616","v":"Select"},{"$f":"Import!M33716","v":"Select"},{"$f":"Import!M33816","v":"Select"},{"$f":"Import!M33916","v":0},{"$f":"Import!M34016","v":0},{"$f":"Import!M34116","v":0}]
[19,{"$f":"Import!M33517","v":"Select"},{"$f":"Import!M33617","v":"Select"},{"$f":"Import!M33717","v":"Select"},{"$f":"Import!M33817","v":"Select"},{"$f":"Import!M33917","v":0},{"$f":"Import!M34017","v":0},{"$f":"Import!M34117","v":0}]
[20,{"$f":"Import!M33518","v":"Select"},{"$f":"Import!M33618","v":"Select"},{"$f":"Import!M33718","v":"Select"},{"$f":"Import!M33818","v":"Select"},{"$f":"Import!M33918","v":0},{"$f":"Import!M34018","v":0},{"$f":"Import!M34118","v":0}]
[21,{"$f":"Import!M33519","v":"Select"},{"$f":"Import!M33619","v":"Select"},{"$f":"Import!M33719","v":"Select"},{"$f":"Import!M33819","v":"Select"},{"$f":"Import!M33919","v":0},{"$f":"Import!M34019","v":0},{"$f":"Import!M34119","v":0}]
[22,{"$f":"Import!M33520","v":"Select"},{"$f":"Import!M33620","v":"Select"},{"$f":"Import!M33720","v":"Select"},{"$f":"Import!M33820","v":"Select"},{"$f":"Import!M33920","v":0},{"$f":"Import!M34020","v":0},{"$f":"Import!M34120","v":0}]
[23,{"$f":"Import!M33521","v":"Select"},{"$f":"Import!M33621","v":"Select"},{"$f":"Import!M33721","v":"Select"},{"$f":"Import!M33821","v":"Select"},{"$f":"Import!M33921","v":0},{"$f":"Import!M34021","v":0},{"$f":"Import!M34121","v":0}]
[24,{"$f":"Import!M33522","v":"Select"},{"$f":"Import!M33622","v":"Select"},{"$f":"Import!M33722","v":"Select"},{"$f":"Import!M33822","v":"Select"},{"$f":"Import!M33922","v":0},{"$f":"Import!M34022","v":0},{"$f":"Import!M34122","v":0}]
[25,{"$f":"Import!M33523","v":"Select"},{"$f":"Import!M33623","v":"Select"},{"$f":"Import!M33723","v":"Select"},{"$f":"Import!M33823","v":"Select"},{"$f":"Import!M33923","v":0},{"$f":"Import!M34023","v":0},{"$f":"Import!M34123","v":0}]
[26,{"$f":"Import!M33524","v":"Select"},{"$f":"Import!M33624","v":"Select"},{"$f":"Import!M33724","v":"Select"},{"$f":"Import!M33824","v":"Select"},{"$f":"Import!M33924","v":0},{"$f":"Import!M34024","v":0},{"$f":"Import!M34124","v":0}]
[27,{"$f":"Import!M33525","v":"Select"},{"$f":"Import!M33625","v":"Select"},{"$f":"Import!M33725","v":"Select"},{"$f":"Import!M33825","v":"Select"},{"$f":"Import!M33925","v":0},{"$f":"Import!M34025","v":0},{"$f":"Import!M34125","v":0}]
[28,{"$f":"Import!M33526","v":"Select"},{"$f":"Import!M33626","v":"Select"},{"$f":"Import!M33726","v":"Select"},{"$f":"Import!M33826","v":"Select"},{"$f":"Import!M33926","v":0},{"$f":"Import!M34026","v":0},{"$f":"Import!M34126","v":0}]
[29,{"$f":"Import!M33527","v":"Select"},{"$f":"Import!M33627","v":"Select"},{"$f":"Import!M33727","v":"Select"},{"$f":"Import!M33827","v":"Select"},{"$f":"Import!M33927","v":0},{"$f":"Import!M34027","v":0},{"$f":"Import!M34127","v":0}]
[30,{"$f":"Import!M33528","v":"Select"},{"$f":"Import!M33628","v":"Select"},{"$f":"Import!M33728","v":"Select"},{"$f":"Import!M33828","v":"Select"},{"$f":"Import!M33928","v":0},{"$f":"Import!M34028","v":0},{"$f":"Import!M34128","v":0}]
[31,{"$f":"Import!M33529","v":"Select"},{"$f":"Import!M33629","v":"Select"},{"$f":"Import!M33729","v":"Select"},{"$f":"Import!M33829","v":"Select"},{"$f":"Import!M33929","v":0},{"$f":"Import!M34029","v":0},{"$f":"Import!M34129","v":0}]
[32,{"$f":"Import!M33530","v":"Select"},{"$f":"Import!M33630","v":"Select"},{"$f":"Import!M33730","v":"Select"},{"$f":"Import!M33830","v":"Select"},{"$f":"Import!M33930","v":0},{"$f":"Import!M34030","v":0},{"$f":"Import!M34130","v":0}]
[33,{"$f":"Import!M33531","v":"Select"},{"$f":"Import!M33631","v":"Select"},{"$f":"Import!M33731","v":"Select"},{"$f":"Import!M33831","v":"Select"},{"$f":"Import!M33931","v":0},{"$f":"Import!M34031","v":0},{"$f":"Import!M34131","v":0}]
[34,{"$f":"Import!M33532","v":"Select"},{"$f":"Import!M33632","v":"Select"},{"$f":"Import!M33732","v":"Select"},{"$f":"Import!M33832","v":"Select"},{"$f":"Import!M33932","v":0},{"$f":"Import!M34032","v":0},{"$f":"Import!M34132","v":0}]
[35,{"$f":"Import!M33533","v":"Select"},{"$f":"Import!M33633","v":"Select"},{"$f":"Import!M33733","v":"Select"},{"$f":"Import!M33833","v":"Select"},{"$f":"Import!M33933","v":0},{"$f":"Import!M34033","v":0},{"$f":"Import!M34133","v":0}]
[36,{"$f":"Import!M33534","v":"Select"},{"$f":"Import!M33634","v":"Select"},{"$f":"Import!M33734","v":"Select"},{"$f":"Import!M33834","v":"Select"},{"$f":"Import!M33934","v":0},{"$f":"Import!M34034","v":0},{"$f":"Import!M34134","v":0}]
[37,{"$f":"Import!M33535","v":"Select"},{"$f":"Import!M33635","v":"Select"},{"$f":"Import!M33735","v":"Select"},{"$f":"Import!M33835","v":"Select"},{"$f":"Import!M33935","v":0},{"$f":"Import!M34035","v":0},{"$f":"Import!M34135","v":0}]
[38,{"$f":"Import!M33536","v":"Select"},{"$f":"Import!M33636","v":"Select"},{"$f":"Import!M33736","v":"Select"},{"$f":"Import!M33836","v":"Select"},{"$f":"Import!M33936","v":0},{"$f":"Import!M34036","v":0},{"$f":"Import!M34136","v":0}]
[39,{"$f":"Import!M33537","v":"Select"},{"$f":"Import!M33637","v":"Select"},{"$f":"Import!M33737","v":"Select"},{"$f":"Import!M33837","v":"Select"},{"$f":"Import!M33937","v":0},{"$f":"Import!M34037","v":0},{"$f":"Import!M34137","v":0}]
[40,{"$f":"Import!M33538","v":"Select"},{"$f":"Import!M33638","v":"Select"},{"$f":"Import!M33738","v":"Select"},{"$f":"Import!M33838","v":"Select"},{"$f":"Import!M33938","v":0},{"$f":"Import!M34038","v":0},{"$f":"Import!M34138","v":0}]
[41,{"$f":"Import!M33539","v":"Select"},{"$f":"Import!M33639","v":"Select"},{"$f":"Import!M33739","v":"Select"},{"$f":"Import!M33839","v":"Select"},{"$f":"Import!M33939","v":0},{"$f":"Import!M34039","v":0},{"$f":"Import!M34139","v":0}]
[42,{"$f":"Import!M33540","v":"Select"},{"$f":"Import!M33640","v":"Select"},{"$f":"Import!M33740","v":"Select"},{"$f":"Import!M33840","v":"Select"},{"$f":"Import!M33940","v":0},{"$f":"Import!M34040","v":0},{"$f":"Import!M34140","v":0}]
[43,{"$f":"Import!M33541","v":"Select"},{"$f":"Import!M33641","v":"Select"},{"$f":"Import!M33741","v":"Select"},{"$f":"Import!M33841","v":"Select"},{"$f":"Import!M33941","v":0},{"$f":"Import!M34041","v":0},{"$f":"Import!M34141","v":0}]
[44,{"$f":"Import!M33542","v":"Select"},{"$f":"Import!M33642","v":"Select"},{"$f":"Import!M33742","v":"Select"},{"$f":"Import!M33842","v":"Select"},{"$f":"Import!M33942","v":0},{"$f":"Import!M34042","v":0},{"$f":"Import!M34142","v":0}]
[45,{"$f":"Import!M33543","v":"Select"},{"$f":"Import!M33643","v":"Select"},{"$f":"Import!M33743","v":"Select"},{"$f":"Import!M33843","v":"Select"},{"$f":"Import!M33943","v":0},{"$f":"Import!M34043","v":0},{"$f":"Import!M34143","v":0}]
[46,{"$f":"Import!M33544","v":"Select"},{"$f":"Import!M33644","v":"Select"},{"$f":"Import!M33744","v":"Select"},{"$f":"Import!M33844","v":"Select"},{"$f":"Import!M33944","v":0},{"$f":"Import!M34044","v":0},{"$f":"Import!M34144","v":0}]
[47,{"$f":"Import!M33545","v":"Select"},{"$f":"Import!M33645","v":"Select"},{"$f":"Import!M33745","v":"Select"},{"$f":"Import!M33845","v":"Select"},{"$f":"Import!M33945","v":0},{"$f":"Import!M34045","v":0},{"$f":"Import!M34145","v":0}]
[48,{"$f":"Import!M33546","v":"Select"},{"$f":"Import!M33646","v":"Select"},{"$f":"Import!M33746","v":"Select"},{"$f":"Import!M33846","v":"Select"},{"$f":"Import!M33946","v":0},{"$f":"Import!M34046","v":0},{"$f":"Import!M34146","v":0}]
[49,{"$f":"Import!M33547","v":"Select"},{"$f":"Import!M33647","v":"Select"},{"$f":"Import!M33747","v":"Select"},{"$f":"Import!M33847","v":"Select"},{"$f":"Import!M33947","v":0},{"$f":"Import!M34047","v":0},{"$f":"Import!M34147","v":0}]
[50,{"$f":"Import!M33548","v":"Select"},{"$f":"Import!M33648","v":"Select"},{"$f":"Import!M33748","v":"Select"},{"$f":"Import!M33848","v":"Select"},{"$f":"Import!M33948","v":0},{"$f":"Import!M34048","v":0},{"$f":"Import!M34148","v":0}]
[51,{"$f":"Import!M33549","v":"Select"},{"$f":"Import!M33649","v":"Select"},{"$f":"Import!M33749","v":"Select"},{"$f":"Import!M33849","v":"Select"},{"$f":"Import!M33949","v":0},{"$f":"Import!M34049","v":0},{"$f":"Import!M34149","v":0}]
[52,{"$f":"Import!M33550","v":"Select"},{"$f":"Import!M33650","v":"Select"},{"$f":"Import!M33750","v":"Select"},{"$f":"Import!M33850","v":"Select"},{"$f":"Import!M33950","v":0},{"$f":"Import!M34050","v":0},{"$f":"Import!M34150","v":0}]
[53,{"$f":"Import!M33551","v":"Select"},{"$f":"Import!M33651","v":"Select"},{"$f":"Import!M33751","v":"Select"},{"$f":"Import!M33851","v":"Select"},{"$f":"Import!M33951","v":0},{"$f":"Import!M34051","v":0},{"$f":"Import!M34151","v":0}]
[54,{"$f":"Import!M33552","v":"Select"},{"$f":"Import!M33652","v":"Select"},{"$f":"Import!M33752","v":"Select"},{"$f":"Import!M33852","v":"Select"},{"$f":"Import!M33952","v":0},{"$f":"Import!M34052","v":0},{"$f":"Import!M34152","v":0}]
[55,{"$f":"Import!M33553","v":"Select"},{"$f":"Import!M33653","v":"Select"},{"$f":"Import!M33753","v":"Select"},{"$f":"Import!M33853","v":"Select"},{"$f":"Import!M33953","v":0},{"$f":"Import!M34053","v":0},{"$f":"Import!M34153","v":0}]
[56,{"$f":"Import!M33554","v":"Select"},{"$f":"Import!M33654","v":"Select"},{"$f":"Import!M33754","v":"Select"},{"$f":"Import!M33854","v":"Select"},{"$f":"Import!M33954","v":0},{"$f":"Import!M34054","v":0},{"$f":"Import!M34154","v":0}]
[57,{"$f":"Import!M33555","v":"Select"},{"$f":"Import!M33655","v":"Select"},{"$f":"Import!M33755","v":"Select"},{"$f":"Import!M33855","v":"Select"},{"$f":"Import!M33955","v":0},{"$f":"Import!M34055","v":0},{"$f":"Import!M34155","v":0}]
[58,{"$f":"Import!M33556","v":"Select"},{"$f":"Import!M33656","v":"Select"},{"$f":"Import!M33756","v":"Select"},{"$f":"Import!M33856","v":"Select"},{"$f":"Import!M33956","v":0},{"$f":"Import!M34056","v":0},{"$f":"Import!M34156","v":0}]
[59,{"$f":"Import!M33557","v":"Select"},{"$f":"Import!M33657","v":"Select"},{"$f":"Import!M33757","v":"Select"},{"$f":"Import!M33857","v":"Select"},{"$f":"Import!M33957","v":0},{"$f":"Import!M34057","v":0},{"$f":"Import!M34157","v":0}]
[60,{"$f":"Import!M33558","v":"Select"},{"$f":"Import!M33658","v":"Select"},{"$f":"Import!M33758","v":"Select"},{"$f":"Import!M33858","v":"Select"},{"$f":"Import!M33958","v":0},{"$f":"Import!M34058","v":0},{"$f":"Import!M34158","v":0}]
[61,{"$f":"Import!M33559","v":"Select"},{"$f":"Import!M33659","v":"Select"},{"$f":"Import!M33759","v":"Select"},{"$f":"Import!M33859","v":"Select"},{"$f":"Import!M33959","v":0},{"$f":"Import!M34059","v":0},{"$f":"Import!M34159","v":0}]
[62,{"$f":"Import!M33560","v":"Select"},{"$f":"Import!M33660","v":"Select"},{"$f":"Import!M33760","v":"Select"},{"$f":"Import!M33860","v":"Select"},{"$f":"Import!M33960","v":0},{"$f":"Import!M34060","v":0},{"$f":"Import!M34160","v":0}]
[63,{"$f":"Import!M33561","v":"Select"},{"$f":"Import!M33661","v":"Select"},{"$f":"Import!M33761","v":"Select"},{"$f":"Import!M33861","v":"Select"},{"$f":"Import!M33961","v":0},{"$f":"Import!M34061","v":0},{"$f":"Import!M34161","v":0}]
[64,{"$f":"Import!M33562","v":"Select"},{"$f":"Import!M33662","v":"Select"},{"$f":"Import!M33762","v":"Select"},{"$f":"Import!M33862","v":"Select"},{"$f":"Import!M33962","v":0},{"$f":"Import!M34062","v":0},{"$f":"Import!M34162","v":0}]
[65,{"$f":"Import!M33563","v":"Select"},{"$f":"Import!M33663","v":"Select"},{"$f":"Import!M33763","v":"Select"},{"$f":"Import!M33863","v":"Select"},{"$f":"Import!M33963","v":0},{"$f":"Import!M34063","v":0},{"$f":"Import!M34163","v":0}]
[66,{"$f":"Import!M33564","v":"Select"},{"$f":"Import!M33664","v":"Select"},{"$f":"Import!M33764","v":"Select"},{"$f":"Import!M33864","v":"Select"},{"$f":"Import!M33964","v":0},{"$f":"Import!M34064","v":0},{"$f":"Import!M34164","v":0}]
[{"$f":"A1410+1","v":67},{"$f":"Import!M33565","v":"Select"},{"$f":"Import!M33665","v":"Select"},{"$f":"Import!M33765","v":"Select"},{"$f":"Import!M33865","v":"Select"},{"$f":"Import!M33965","v":0},{"$f":"Import!M34065","v":0},{"$f":"Import!M34165","v":0}]
[68,{"$f":"Import!M33566","v":"Select"},{"$f":"Import!M33666","v":"Select"},{"$f":"Import!M33766","v":"Select"},{"$f":"Import!M33866","v":"Select"},{"$f":"Import!M33966","v":0},{"$f":"Import!M34066","v":0},{"$f":"Import!M34166","v":0}]
[69,{"$f":"Import!M33567","v":"Select"},{"$f":"Import!M33667","v":"Select"},{"$f":"Import!M33767","v":"Select"},{"$f":"Import!M33867","v":"Select"},{"$f":"Import!M33967","v":0},{"$f":"Import!M34067","v":0},{"$f":"Import!M34167","v":0}]
[70,{"$f":"Import!M33568","v":"Select"},{"$f":"Import!M33668","v":"Select"},{"$f":"Import!M33768","v":"Select"},{"$f":"Import!M33868","v":"Select"},{"$f":"Import!M33968","v":0},{"$f":"Import!M34068","v":0},{"$f":"Import!M34168","v":0}]
[71,{"$f":"Import!M33569","v":"Select"},{"$f":"Import!M33669","v":"Select"},{"$f":"Import!M33769","v":"Select"},{"$f":"Import!M33869","v":"Select"},{"$f":"Import!M33969","v":0},{"$f":"Import!M34069","v":0},{"$f":"Import!M34169","v":0}]
[72,{"$f":"Import!M33570","v":"Select"},{"$f":"Import!M33670","v":"Select"},{"$f":"Import!M33770","v":"Select"},{"$f":"Import!M33870","v":"Select"},{"$f":"Import!M33970","v":0},{"$f":"Import!M34070","v":0},{"$f":"Import!M34170","v":0}]
[73,{"$f":"Import!M33571","v":"Select"},{"$f":"Import!M33671","v":"Select"},{"$f":"Import!M33771","v":"Select"},{"$f":"Import!M33871","v":"Select"},{"$f":"Import!M33971","v":0},{"$f":"Import!M34071","v":0},{"$f":"Import!M34171","v":0}]
[74,{"$f":"Import!M33572","v":"Select"},{"$f":"Import!M33672","v":"Select"},{"$f":"Import!M33772","v":"Select"},{"$f":"Import!M33872","v":"Select"},{"$f":"Import!M33972","v":0},{"$f":"Import!M34072","v":0},{"$f":"Import!M34172","v":0}]
[75,{"$f":"Import!M33573","v":"Select"},{"$f":"Import!M33673","v":"Select"},{"$f":"Import!M33773","v":"Select"},{"$f":"Import!M33873","v":"Select"},{"$f":"Import!M33973","v":0},{"$f":"Import!M34073","v":0},{"$f":"Import!M34173","v":0}]
[76,{"$f":"Import!M33574","v":"Select"},{"$f":"Import!M33674","v":"Select"},{"$f":"Import!M33774","v":"Select"},{"$f":"Import!M33874","v":"Select"},{"$f":"Import!M33974","v":0},{"$f":"Import!M34074","v":0},{"$f":"Import!M34174","v":0}]
[77,{"$f":"Import!M33575","v":"Select"},{"$f":"Import!M33675","v":"Select"},{"$f":"Import!M33775","v":"Select"},{"$f":"Import!M33875","v":"Select"},{"$f":"Import!M33975","v":0},{"$f":"Import!M34075","v":0},{"$f":"Import!M34175","v":0}]
[78,{"$f":"Import!M33576","v":"Select"},{"$f":"Import!M33676","v":"Select"},{"$f":"Import!M33776","v":"Select"},{"$f":"Import!M33876","v":"Select"},{"$f":"Import!M33976","v":0},{"$f":"Import!M34076","v":0},{"$f":"Import!M34176","v":0}]
[79,{"$f":"Import!M33577","v":"Select"},{"$f":"Import!M33677","v":"Select"},{"$f":"Import!M33777","v":"Select"},{"$f":"Import!M33877","v":"Select"},{"$f":"Import!M33977","v":0},{"$f":"Import!M34077","v":0},{"$f":"Import!M34177","v":0}]
[80,{"$f":"Import!M33578","v":"Select"},{"$f":"Import!M33678","v":"Select"},{"$f":"Import!M33778","v":"Select"},{"$f":"Import!M33878","v":"Select"},{"$f":"Import!M33978","v":0},{"$f":"Import!M34078","v":0},{"$f":"Import!M34178","v":0}]
[81,{"$f":"Import!M33579","v":"Select"},{"$f":"Import!M33679","v":"Select"},{"$f":"Import!M33779","v":"Select"},{"$f":"Import!M33879","v":"Select"},{"$f":"Import!M33979","v":0},{"$f":"Import!M34079","v":0},{"$f":"Import!M34179","v":0}]
[82,{"$f":"Import!M33580","v":"Select"},{"$f":"Import!M33680","v":"Select"},{"$f":"Import!M33780","v":"Select"},{"$f":"Import!M33880","v":"Select"},{"$f":"Import!M33980","v":0},{"$f":"Import!M34080","v":0},{"$f":"Import!M34180","v":0}]
[83,{"$f":"Import!M33581","v":"Select"},{"$f":"Import!M33681","v":"Select"},{"$f":"Import!M33781","v":"Select"},{"$f":"Import!M33881","v":"Select"},{"$f":"Import!M33981","v":0},{"$f":"Import!M34081","v":0},{"$f":"Import!M34181","v":0}]
[84,{"$f":"Import!M33582","v":"Select"},{"$f":"Import!M33682","v":"Select"},{"$f":"Import!M33782","v":"Select"},{"$f":"Import!M33882","v":"Select"},{"$f":"Import!M33982","v":0},{"$f":"Import!M34082","v":0},{"$f":"Import!M34182","v":0}]
[85,{"$f":"Import!M33583","v":"Select"},{"$f":"Import!M33683","v":"Select"},{"$f":"Import!M33783","v":"Select"},{"$f":"Import!M33883","v":"Select"},{"$f":"Import!M33983","v":0},{"$f":"Import!M34083","v":0},{"$f":"Import!M34183","v":0}]
[86,{"$f":"Import!M33584","v":"Select"},{"$f":"Import!M33684","v":"Select"},{"$f":"Import!M33784","v":"Select"},{"$f":"Import!M33884","v":"Select"},{"$f":"Import!M33984","v":0},{"$f":"Import!M34084","v":0},{"$f":"Import!M34184","v":0}]
[87,{"$f":"Import!M33585","v":"Select"},{"$f":"Import!M33685","v":"Select"},{"$f":"Import!M33785","v":"Select"},{"$f":"Import!M33885","v":"Select"},{"$f":"Import!M33985","v":0},{"$f":"Import!M34085","v":0},{"$f":"Import!M34185","v":0}]
[88,{"$f":"Import!M33586","v":"Select"},{"$f":"Import!M33686","v":"Select"},{"$f":"Import!M33786","v":"Select"},{"$f":"Import!M33886","v":"Select"},{"$f":"Import!M33986","v":0},{"$f":"Import!M34086","v":0},{"$f":"Import!M34186","v":0}]
[89,{"$f":"Import!M33587","v":"Select"},{"$f":"Import!M33687","v":"Select"},{"$f":"Import!M33787","v":"Select"},{"$f":"Import!M33887","v":"Select"},{"$f":"Import!M33987","v":0},{"$f":"Import!M34087","v":0},{"$f":"Import!M34187","v":0}]
[90,{"$f":"Import!M33588","v":"Select"},{"$f":"Import!M33688","v":"Select"},{"$f":"Import!M33788","v":"Select"},{"$f":"Import!M33888","v":"Select"},{"$f":"Import!M33988","v":0},{"$f":"Import!M34088","v":0},{"$f":"Import!M34188","v":0}]
[91,{"$f":"Import!M33589","v":"Select"},{"$f":"Import!M33689","v":"Select"},{"$f":"Import!M33789","v":"Select"},{"$f":"Import!M33889","v":"Select"},{"$f":"Import!M33989","v":0},{"$f":"Import!M34089","v":0},{"$f":"Import!M34189","v":0}]
[92,{"$f":"Import!M33590","v":"Select"},{"$f":"Import!M33690","v":"Select"},{"$f":"Import!M33790","v":"Select"},{"$f":"Import!M33890","v":"Select"},{"$f":"Import!M33990","v":0},{"$f":"Import!M34090","v":0},{"$f":"Import!M34190","v":0}]
[93,{"$f":"Import!M33591","v":"Select"},{"$f":"Import!M33691","v":"Select"},{"$f":"Import!M33791","v":"Select"},{"$f":"Import!M33891","v":"Select"},{"$f":"Import!M33991","v":0},{"$f":"Import!M34091","v":0},{"$f":"Import!M34191","v":0}]
[94,{"$f":"Import!M33592","v":"Select"},{"$f":"Import!M33692","v":"Select"},{"$f":"Import!M33792","v":"Select"},{"$f":"Import!M33892","v":"Select"},{"$f":"Import!M33992","v":0},{"$f":"Import!M34092","v":0},{"$f":"Import!M34192","v":0}]
[95,{"$f":"Import!M33593","v":"Select"},{"$f":"Import!M33693","v":"Select"},{"$f":"Import!M33793","v":"Select"},{"$f":"Import!M33893","v":"Select"},{"$f":"Import!M33993","v":0},{"$f":"Import!M34093","v":0},{"$f":"Import!M34193","v":0}]
[96,{"$f":"Import!M33594","v":"Select"},{"$f":"Import!M33694","v":"Select"},{"$f":"Import!M33794","v":"Select"},{"$f":"Import!M33894","v":"Select"},{"$f":"Import!M33994","v":0},{"$f":"Import!M34094","v":0},{"$f":"Import!M34194","v":0}]
[97,{"$f":"Import!M33595","v":"Select"},{"$f":"Import!M33695","v":"Select"},{"$f":"Import!M33795","v":"Select"},{"$f":"Import!M33895","v":"Select"},{"$f":"Import!M33995","v":0},{"$f":"Import!M34095","v":0},{"$f":"Import!M34195","v":0}]
[98,{"$f":"Import!M33596","v":"Select"},{"$f":"Import!M33696","v":"Select"},{"$f":"Import!M33796","v":"Select"},{"$f":"Import!M33896","v":"Select"},{"$f":"Import!M33996","v":0},{"$f":"Import!M34096","v":0},{"$f":"Import!M34196","v":0}]
[99,{"$f":"Import!M33597","v":"Select"},{"$f":"Import!M33697","v":"Select"},{"$f":"Import!M33797","v":"Select"},{"$f":"Import!M33897","v":"Select"},{"$f":"Import!M33997","v":0},{"$f":"Import!M34097","v":0},{"$f":"Import!M34197","v":0}]
[100,{"$f":"Import!M33598","v":"Select"},{"$f":"Import!M33698","v":"Select"},{"$f":"Import!M33798","v":"Select"},{"$f":"Import!M33898","v":"Select"},{"$f":"Import!M33998","v":0},{"$f":"Import!M34098","v":0},{"$f":"Import!M34198","v":0}]
[]
[null,"Total Real Estate",null,null,null,{"$f":"SUM(F1345:F1444)","v":0},{"$f":"SUM(G1345:G1444)","v":0}]
[]
[null,"(H) OTHER ALTERNATIVE INVESTMENTS"]
[]
[null,null,"Enter # of Asset Types",{"$f":"Import!M34199","v":0}]
[null,null,null,null,null,{"$f":"YEAR($C$3)","v":2023},2023,"Weighted"]
[null,"Asset Type","Currency","Country","BSCR Rating","Nominal Amount","Fair Value","Average YTM","Effective Duration","Comments"]
[1,{"$f":"Import!M34200","v":"Select"},{"$f":"Import!M34300","v":"Select"},{"$f":"Import!M34400","v":"Select"},{"$f":"Import!M34500","v":"Select"},{"$f":"Import!M34600","v":0},{"$f":"Import!M34700","v":0},{"$f":"Import!M34800","v":0},{"$f":"Import!M34900","v":0},{"$f":"Import!M35000","v":0}]
[{"$f":"A1453+1","v":2},{"$f":"Import!M34201","v":"Select"},{"$f":"Import!M34301","v":"Select"},{"$f":"Import!M34401","v":"Select"},{"$f":"Import!M34501","v":"Select"},{"$f":"Import!M34601","v":0},{"$f":"Import!M34701","v":0},{"$f":"Import!M34801","v":0},{"$f":"Import!M34901","v":0},{"$f":"Import!M35001","v":0}]
[{"$f":"A1454+1","v":3},{"$f":"Import!M34202","v":"Select"},{"$f":"Import!M34302","v":"Select"},{"$f":"Import!M34402","v":"Select"},{"$f":"Import!M34502","v":"Select"},{"$f":"Import!M34602","v":0},{"$f":"Import!M34702","v":0},{"$f":"Import!M34802","v":0},{"$f":"Import!M34902","v":0},{"$f":"Import!M35002","v":0}]
[4,{"$f":"Import!M34203","v":"Select"},{"$f":"Import!M34303","v":"Select"},{"$f":"Import!M34403","v":"Select"},{"$f":"Import!M34503","v":"Select"},{"$f":"Import!M34603","v":0},{"$f":"Import!M34703","v":0},{"$f":"Import!M34803","v":0},{"$f":"Import!M34903","v":0},{"$f":"Import!M35003","v":0}]
[5,{"$f":"Import!M34204","v":"Select"},{"$f":"Import!M34304","v":"Select"},{"$f":"Import!M34404","v":"Select"},{"$f":"Import!M34504","v":"Select"},{"$f":"Import!M34604","v":0},{"$f":"Import!M34704","v":0},{"$f":"Import!M34804","v":0},{"$f":"Import!M34904","v":0},{"$f":"Import!M35004","v":0}]
[6,{"$f":"Import!M34205","v":"Select"},{"$f":"Import!M34305","v":"Select"},{"$f":"Import!M34405","v":"Select"},{"$f":"Import!M34505","v":"Select"},{"$f":"Import!M34605","v":0},{"$f":"Import!M34705","v":0},{"$f":"Import!M34805","v":0},{"$f":"Import!M34905","v":0},{"$f":"Import!M35005","v":0}]
[7,{"$f":"Import!M34206","v":"Select"},{"$f":"Import!M34306","v":"Select"},{"$f":"Import!M34406","v":"Select"},{"$f":"Import!M34506","v":"Select"},{"$f":"Import!M34606","v":0},{"$f":"Import!M34706","v":0},{"$f":"Import!M34806","v":0},{"$f":"Import!M34906","v":0},{"$f":"Import!M35006","v":0}]
[8,{"$f":"Import!M34207","v":"Select"},{"$f":"Import!M34307","v":"Select"},{"$f":"Import!M34407","v":"Select"},{"$f":"Import!M34507","v":"Select"},{"$f":"Import!M34607","v":0},{"$f":"Import!M34707","v":0},{"$f":"Import!M34807","v":0},{"$f":"Import!M34907","v":0},{"$f":"Import!M35007","v":0}]
[9,{"$f":"Import!M34208","v":"Select"},{"$f":"Import!M34308","v":"Select"},{"$f":"Import!M34408","v":"Select"},{"$f":"Import!M34508","v":"Select"},{"$f":"Import!M34608","v":0},{"$f":"Import!M34708","v":0},{"$f":"Import!M34808","v":0},{"$f":"Import!M34908","v":0},{"$f":"Import!M35008","v":0}]
[10,{"$f":"Import!M34209","v":"Select"},{"$f":"Import!M34309","v":"Select"},{"$f":"Import!M34409","v":"Select"},{"$f":"Import!M34509","v":"Select"},{"$f":"Import!M34609","v":0},{"$f":"Import!M34709","v":0},{"$f":"Import!M34809","v":0},{"$f":"Import!M34909","v":0},{"$f":"Import!M35009","v":0}]
[11,{"$f":"Import!M34210","v":"Select"},{"$f":"Import!M34310","v":"Select"},{"$f":"Import!M34410","v":"Select"},{"$f":"Import!M34510","v":"Select"},{"$f":"Import!M34610","v":0},{"$f":"Import!M34710","v":0},{"$f":"Import!M34810","v":0},{"$f":"Import!M34910","v":0},{"$f":"Import!M35010","v":0}]
[12,{"$f":"Import!M34211","v":"Select"},{"$f":"Import!M34311","v":"Select"},{"$f":"Import!M34411","v":"Select"},{"$f":"Import!M34511","v":"Select"},{"$f":"Import!M34611","v":0},{"$f":"Import!M34711","v":0},{"$f":"Import!M34811","v":0},{"$f":"Import!M34911","v":0},{"$f":"Import!M35011","v":0}]
[13,{"$f":"Import!M34212","v":"Select"},{"$f":"Import!M34312","v":"Select"},{"$f":"Import!M34412","v":"Select"},{"$f":"Import!M34512","v":"Select"},{"$f":"Import!M34612","v":0},{"$f":"Import!M34712","v":0},{"$f":"Import!M34812","v":0},{"$f":"Import!M34912","v":0},{"$f":"Import!M35012","v":0}]
[14,{"$f":"Import!M34213","v":"Select"},{"$f":"Import!M34313","v":"Select"},{"$f":"Import!M34413","v":"Select"},{"$f":"Import!M34513","v":"Select"},{"$f":"Import!M34613","v":0},{"$f":"Import!M34713","v":0},{"$f":"Import!M34813","v":0},{"$f":"Import!M34913","v":0},{"$f":"Import!M35013","v":0}]
[15,{"$f":"Import!M34214","v":"Select"},{"$f":"Import!M34314","v":"Select"},{"$f":"Import!M34414","v":"Select"},{"$f":"Import!M34514","v":"Select"},{"$f":"Import!M34614","v":0},{"$f":"Import!M34714","v":0},{"$f":"Import!M34814","v":0},{"$f":"Import!M34914","v":0},{"$f":"Import!M35014","v":0}]
[16,{"$f":"Import!M34215","v":"Select"},{"$f":"Import!M34315","v":"Select"},{"$f":"Import!M34415","v":"Select"},{"$f":"Import!M34515","v":"Select"},{"$f":"Import!M34615","v":0},{"$f":"Import!M34715","v":0},{"$f":"Import!M34815","v":0},{"$f":"Import!M34915","v":0},{"$f":"Import!M35015","v":0}]
[17,{"$f":"Import!M34216","v":"Select"},{"$f":"Import!M34316","v":"Select"},{"$f":"Import!M34416","v":"Select"},{"$f":"Import!M34516","v":"Select"},{"$f":"Import!M34616","v":0},{"$f":"Import!M34716","v":0},{"$f":"Import!M34816","v":0},{"$f":"Import!M34916","v":0},{"$f":"Import!M35016","v":0}]
[18,{"$f":"Import!M34217","v":"Select"},{"$f":"Import!M34317","v":"Select"},{"$f":"Import!M34417","v":"Select"},{"$f":"Import!M34517","v":"Select"},{"$f":"Import!M34617","v":0},{"$f":"Import!M34717","v":0},{"$f":"Import!M34817","v":0},{"$f":"Import!M34917","v":0},{"$f":"Import!M35017","v":0}]
[19,{"$f":"Import!M34218","v":"Select"},{"$f":"Import!M34318","v":"Select"},{"$f":"Import!M34418","v":"Select"},{"$f":"Import!M34518","v":"Select"},{"$f":"Import!M34618","v":0},{"$f":"Import!M34718","v":0},{"$f":"Import!M34818","v":0},{"$f":"Import!M34918","v":0},{"$f":"Import!M35018","v":0}]
[20,{"$f":"Import!M34219","v":"Select"},{"$f":"Import!M34319","v":"Select"},{"$f":"Import!M34419","v":"Select"},{"$f":"Import!M34519","v":"Select"},{"$f":"Import!M34619","v":0},{"$f":"Import!M34719","v":0},{"$f":"Import!M34819","v":0},{"$f":"Import!M34919","v":0},{"$f":"Import!M35019","v":0}]
[21,{"$f":"Import!M34220","v":"Select"},{"$f":"Import!M34320","v":"Select"},{"$f":"Import!M34420","v":"Select"},{"$f":"Import!M34520","v":"Select"},{"$f":"Import!M34620","v":0},{"$f":"Import!M34720","v":0},{"$f":"Import!M34820","v":0},{"$f":"Import!M34920","v":0},{"$f":"Import!M35020","v":0}]
[22,{"$f":"Import!M34221","v":"Select"},{"$f":"Import!M34321","v":"Select"},{"$f":"Import!M34421","v":"Select"},{"$f":"Import!M34521","v":"Select"},{"$f":"Import!M34621","v":0},{"$f":"Import!M34721","v":0},{"$f":"Import!M34821","v":0},{"$f":"Import!M34921","v":0},{"$f":"Import!M35021","v":0}]
[23,{"$f":"Import!M34222","v":"Select"},{"$f":"Import!M34322","v":"Select"},{"$f":"Import!M34422","v":"Select"},{"$f":"Import!M34522","v":"Select"},{"$f":"Import!M34622","v":0},{"$f":"Import!M34722","v":0},{"$f":"Import!M34822","v":0},{"$f":"Import!M34922","v":0},{"$f":"Import!M35022","v":0}]
[24,{"$f":"Import!M34223","v":"Select"},{"$f":"Import!M34323","v":"Select"},{"$f":"Import!M34423","v":"Select"},{"$f":"Import!M34523","v":"Select"},{"$f":"Import!M34623","v":0},{"$f":"Import!M34723","v":0},{"$f":"Import!M34823","v":0},{"$f":"Import!M34923","v":0},{"$f":"Import!M35023","v":0}]
[25,{"$f":"Import!M34224","v":"Select"},{"$f":"Import!M34324","v":"Select"},{"$f":"Import!M34424","v":"Select"},{"$f":"Import!M34524","v":"Select"},{"$f":"Import!M34624","v":0},{"$f":"Import!M34724","v":0},{"$f":"Import!M34824","v":0},{"$f":"Import!M34924","v":0},{"$f":"Import!M35024","v":0}]
[26,{"$f":"Import!M34225","v":"Select"},{"$f":"Import!M34325","v":"Select"},{"$f":"Import!M34425","v":"Select"},{"$f":"Import!M34525","v":"Select"},{"$f":"Import!M34625","v":0},{"$f":"Import!M34725","v":0},{"$f":"Import!M34825","v":0},{"$f":"Import!M34925","v":0},{"$f":"Import!M35025","v":0}]
[27,{"$f":"Import!M34226","v":"Select"},{"$f":"Import!M34326","v":"Select"},{"$f":"Import!M34426","v":"Select"},{"$f":"Import!M34526","v":"Select"},{"$f":"Import!M34626","v":0},{"$f":"Import!M34726","v":0},{"$f":"Import!M34826","v":0},{"$f":"Import!M34926","v":0},{"$f":"Import!M35026","v":0}]
[28,{"$f":"Import!M34227","v":"Select"},{"$f":"Import!M34327","v":"Select"},{"$f":"Import!M34427","v":"Select"},{"$f":"Import!M34527","v":"Select"},{"$f":"Import!M34627","v":0},{"$f":"Import!M34727","v":0},{"$f":"Import!M34827","v":0},{"$f":"Import!M34927","v":0},{"$f":"Import!M35027","v":0}]
[29,{"$f":"Import!M34228","v":"Select"},{"$f":"Import!M34328","v":"Select"},{"$f":"Import!M34428","v":"Select"},{"$f":"Import!M34528","v":"Select"},{"$f":"Import!M34628","v":0},{"$f":"Import!M34728","v":0},{"$f":"Import!M34828","v":0},{"$f":"Import!M34928","v":0},{"$f":"Import!M35028","v":0}]
[30,{"$f":"Import!M34229","v":"Select"},{"$f":"Import!M34329","v":"Select"},{"$f":"Import!M34429","v":"Select"},{"$f":"Import!M34529","v":"Select"},{"$f":"Import!M34629","v":0},{"$f":"Import!M34729","v":0},{"$f":"Import!M34829","v":0},{"$f":"Import!M34929","v":0},{"$f":"Import!M35029","v":0}]
[31,{"$f":"Import!M34230","v":"Select"},{"$f":"Import!M34330","v":"Select"},{"$f":"Import!M34430","v":"Select"},{"$f":"Import!M34530","v":"Select"},{"$f":"Import!M34630","v":0},{"$f":"Import!M34730","v":0},{"$f":"Import!M34830","v":0},{"$f":"Import!M34930","v":0},{"$f":"Import!M35030","v":0}]
[32,{"$f":"Import!M34231","v":"Select"},{"$f":"Import!M34331","v":"Select"},{"$f":"Import!M34431","v":"Select"},{"$f":"Import!M34531","v":"Select"},{"$f":"Import!M34631","v":0},{"$f":"Import!M34731","v":0},{"$f":"Import!M34831","v":0},{"$f":"Import!M34931","v":0},{"$f":"Import!M35031","v":0}]
[33,{"$f":"Import!M34232","v":"Select"},{"$f":"Import!M34332","v":"Select"},{"$f":"Import!M34432","v":"Select"},{"$f":"Import!M34532","v":"Select"},{"$f":"Import!M34632","v":0},{"$f":"Import!M34732","v":0},{"$f":"Import!M34832","v":0},{"$f":"Import!M34932","v":0},{"$f":"Import!M35032","v":0}]
[34,{"$f":"Import!M34233","v":"Select"},{"$f":"Import!M34333","v":"Select"},{"$f":"Import!M34433","v":"Select"},{"$f":"Import!M34533","v":"Select"},{"$f":"Import!M34633","v":0},{"$f":"Import!M34733","v":0},{"$f":"Import!M34833","v":0},{"$f":"Import!M34933","v":0},{"$f":"Import!M35033","v":0}]
[35,{"$f":"Import!M34234","v":"Select"},{"$f":"Import!M34334","v":"Select"},{"$f":"Import!M34434","v":"Select"},{"$f":"Import!M34534","v":"Select"},{"$f":"Import!M34634","v":0},{"$f":"Import!M34734","v":0},{"$f":"Import!M34834","v":0},{"$f":"Import!M34934","v":0},{"$f":"Import!M35034","v":0}]
[36,{"$f":"Import!M34235","v":"Select"},{"$f":"Import!M34335","v":"Select"},{"$f":"Import!M34435","v":"Select"},{"$f":"Import!M34535","v":"Select"},{"$f":"Import!M34635","v":0},{"$f":"Import!M34735","v":0},{"$f":"Import!M34835","v":0},{"$f":"Import!M34935","v":0},{"$f":"Import!M35035","v":0}]
[37,{"$f":"Import!M34236","v":"Select"},{"$f":"Import!M34336","v":"Select"},{"$f":"Import!M34436","v":"Select"},{"$f":"Import!M34536","v":"Select"},{"$f":"Import!M34636","v":0},{"$f":"Import!M34736","v":0},{"$f":"Import!M34836","v":0},{"$f":"Import!M34936","v":0},{"$f":"Import!M35036","v":0}]
[38,{"$f":"Import!M34237","v":"Select"},{"$f":"Import!M34337","v":"Select"},{"$f":"Import!M34437","v":"Select"},{"$f":"Import!M34537","v":"Select"},{"$f":"Import!M34637","v":0},{"$f":"Import!M34737","v":0},{"$f":"Import!M34837","v":0},{"$f":"Import!M34937","v":0},{"$f":"Import!M35037","v":0}]
[39,{"$f":"Import!M34238","v":"Select"},{"$f":"Import!M34338","v":"Select"},{"$f":"Import!M34438","v":"Select"},{"$f":"Import!M34538","v":"Select"},{"$f":"Import!M34638","v":0},{"$f":"Import!M34738","v":0},{"$f":"Import!M34838","v":0},{"$f":"Import!M34938","v":0},{"$f":"Import!M35038","v":0}]
[40,{"$f":"Import!M34239","v":"Select"},{"$f":"Import!M34339","v":"Select"},{"$f":"Import!M34439","v":"Select"},{"$f":"Import!M34539","v":"Select"},{"$f":"Import!M34639","v":0},{"$f":"Import!M34739","v":0},{"$f":"Import!M34839","v":0},{"$f":"Import!M34939","v":0},{"$f":"Import!M35039","v":0}]
[41,{"$f":"Import!M34240","v":"Select"},{"$f":"Import!M34340","v":"Select"},{"$f":"Import!M34440","v":"Select"},{"$f":"Import!M34540","v":"Select"},{"$f":"Import!M34640","v":0},{"$f":"Import!M34740","v":0},{"$f":"Import!M34840","v":0},{"$f":"Import!M34940","v":0},{"$f":"Import!M35040","v":0}]
[42,{"$f":"Import!M34241","v":"Select"},{"$f":"Import!M34341","v":"Select"},{"$f":"Import!M34441","v":"Select"},{"$f":"Import!M34541","v":"Select"},{"$f":"Import!M34641","v":0},{"$f":"Import!M34741","v":0},{"$f":"Import!M34841","v":0},{"$f":"Import!M34941","v":0},{"$f":"Import!M35041","v":0}]
[43,{"$f":"Import!M34242","v":"Select"},{"$f":"Import!M34342","v":"Select"},{"$f":"Import!M34442","v":"Select"},{"$f":"Import!M34542","v":"Select"},{"$f":"Import!M34642","v":0},{"$f":"Import!M34742","v":0},{"$f":"Import!M34842","v":0},{"$f":"Import!M34942","v":0},{"$f":"Import!M35042","v":0}]
[44,{"$f":"Import!M34243","v":"Select"},{"$f":"Import!M34343","v":"Select"},{"$f":"Import!M34443","v":"Select"},{"$f":"Import!M34543","v":"Select"},{"$f":"Import!M34643","v":0},{"$f":"Import!M34743","v":0},{"$f":"Import!M34843","v":0},{"$f":"Import!M34943","v":0},{"$f":"Import!M35043","v":0}]
[45,{"$f":"Import!M34244","v":"Select"},{"$f":"Import!M34344","v":"Select"},{"$f":"Import!M34444","v":"Select"},{"$f":"Import!M34544","v":"Select"},{"$f":"Import!M34644","v":0},{"$f":"Import!M34744","v":0},{"$f":"Import!M34844","v":0},{"$f":"Import!M34944","v":0},{"$f":"Import!M35044","v":0}]
[46,{"$f":"Import!M34245","v":"Select"},{"$f":"Import!M34345","v":"Select"},{"$f":"Import!M34445","v":"Select"},{"$f":"Import!M34545","v":"Select"},{"$f":"Import!M34645","v":0},{"$f":"Import!M34745","v":0},{"$f":"Import!M34845","v":0},{"$f":"Import!M34945","v":0},{"$f":"Import!M35045","v":0}]
[47,{"$f":"Import!M34246","v":"Select"},{"$f":"Import!M34346","v":"Select"},{"$f":"Import!M34446","v":"Select"},{"$f":"Import!M34546","v":"Select"},{"$f":"Import!M34646","v":0},{"$f":"Import!M34746","v":0},{"$f":"Import!M34846","v":0},{"$f":"Import!M34946","v":0},{"$f":"Import!M35046","v":0}]
[48,{"$f":"Import!M34247","v":"Select"},{"$f":"Import!M34347","v":"Select"},{"$f":"Import!M34447","v":"Select"},{"$f":"Import!M34547","v":"Select"},{"$f":"Import!M34647","v":0},{"$f":"Import!M34747","v":0},{"$f":"Import!M34847","v":0},{"$f":"Import!M34947","v":0},{"$f":"Import!M35047","v":0}]
[49,{"$f":"Import!M34248","v":"Select"},{"$f":"Import!M34348","v":"Select"},{"$f":"Import!M34448","v":"Select"},{"$f":"Import!M34548","v":"Select"},{"$f":"Import!M34648","v":0},{"$f":"Import!M34748","v":0},{"$f":"Import!M34848","v":0},{"$f":"Import!M34948","v":0},{"$f":"Import!M35048","v":0}]
[50,{"$f":"Import!M34249","v":"Select"},{"$f":"Import!M34349","v":"Select"},{"$f":"Import!M34449","v":"Select"},{"$f":"Import!M34549","v":"Select"},{"$f":"Import!M34649","v":0},{"$f":"Import!M34749","v":0},{"$f":"Import!M34849","v":0},{"$f":"Import!M34949","v":0},{"$f":"Import!M35049","v":0}]
[51,{"$f":"Import!M34250","v":"Select"},{"$f":"Import!M34350","v":"Select"},{"$f":"Import!M34450","v":"Select"},{"$f":"Import!M34550","v":"Select"},{"$f":"Import!M34650","v":0},{"$f":"Import!M34750","v":0},{"$f":"Import!M34850","v":0},{"$f":"Import!M34950","v":0},{"$f":"Import!M35050","v":0}]
[52,{"$f":"Import!M34251","v":"Select"},{"$f":"Import!M34351","v":"Select"},{"$f":"Import!M34451","v":"Select"},{"$f":"Import!M34551","v":"Select"},{"$f":"Import!M34651","v":0},{"$f":"Import!M34751","v":0},{"$f":"Import!M34851","v":0},{"$f":"Import!M34951","v":0},{"$f":"Import!M35051","v":0}]
[53,{"$f":"Import!M34252","v":"Select"},{"$f":"Import!M34352","v":"Select"},{"$f":"Import!M34452","v":"Select"},{"$f":"Import!M34552","v":"Select"},{"$f":"Import!M34652","v":0},{"$f":"Import!M34752","v":0},{"$f":"Import!M34852","v":0},{"$f":"Import!M34952","v":0},{"$f":"Import!M35052","v":0}]
[54,{"$f":"Import!M34253","v":"Select"},{"$f":"Import!M34353","v":"Select"},{"$f":"Import!M34453","v":"Select"},{"$f":"Import!M34553","v":"Select"},{"$f":"Import!M34653","v":0},{"$f":"Import!M34753","v":0},{"$f":"Import!M34853","v":0},{"$f":"Import!M34953","v":0},{"$f":"Import!M35053","v":0}]
[55,{"$f":"Import!M34254","v":"Select"},{"$f":"Import!M34354","v":"Select"},{"$f":"Import!M34454","v":"Select"},{"$f":"Import!M34554","v":"Select"},{"$f":"Import!M34654","v":0},{"$f":"Import!M34754","v":0},{"$f":"Import!M34854","v":0},{"$f":"Import!M34954","v":0},{"$f":"Import!M35054","v":0}]
[56,{"$f":"Import!M34255","v":"Select"},{"$f":"Import!M34355","v":"Select"},{"$f":"Import!M34455","v":"Select"},{"$f":"Import!M34555","v":"Select"},{"$f":"Import!M34655","v":0},{"$f":"Import!M34755","v":0},{"$f":"Import!M34855","v":0},{"$f":"Import!M34955","v":0},{"$f":"Import!M35055","v":0}]
[57,{"$f":"Import!M34256","v":"Select"},{"$f":"Import!M34356","v":"Select"},{"$f":"Import!M34456","v":"Select"},{"$f":"Import!M34556","v":"Select"},{"$f":"Import!M34656","v":0},{"$f":"Import!M34756","v":0},{"$f":"Import!M34856","v":0},{"$f":"Import!M34956","v":0},{"$f":"Import!M35056","v":0}]
[58,{"$f":"Import!M34257","v":"Select"},{"$f":"Import!M34357","v":"Select"},{"$f":"Import!M34457","v":"Select"},{"$f":"Import!M34557","v":"Select"},{"$f":"Import!M34657","v":0},{"$f":"Import!M34757","v":0},{"$f":"Import!M34857","v":0},{"$f":"Import!M34957","v":0},{"$f":"Import!M35057","v":0}]
[59,{"$f":"Import!M34258","v":"Select"},{"$f":"Import!M34358","v":"Select"},{"$f":"Import!M34458","v":"Select"},{"$f":"Import!M34558","v":"Select"},{"$f":"Import!M34658","v":0},{"$f":"Import!M34758","v":0},{"$f":"Import!M34858","v":0},{"$f":"Import!M34958","v":0},{"$f":"Import!M35058","v":0}]
[60,{"$f":"Import!M34259","v":"Select"},{"$f":"Import!M34359","v":"Select"},{"$f":"Import!M34459","v":"Select"},{"$f":"Import!M34559","v":"Select"},{"$f":"Import!M34659","v":0},{"$f":"Import!M34759","v":0},{"$f":"Import!M34859","v":0},{"$f":"Import!M34959","v":0},{"$f":"Import!M35059","v":0}]
[61,{"$f":"Import!M34260","v":"Select"},{"$f":"Import!M34360","v":"Select"},{"$f":"Import!M34460","v":"Select"},{"$f":"Import!M34560","v":"Select"},{"$f":"Import!M34660","v":0},{"$f":"Import!M34760","v":0},{"$f":"Import!M34860","v":0},{"$f":"Import!M34960","v":0},{"$f":"Import!M35060","v":0}]
[62,{"$f":"Import!M34261","v":"Select"},{"$f":"Import!M34361","v":"Select"},{"$f":"Import!M34461","v":"Select"},{"$f":"Import!M34561","v":"Select"},{"$f":"Import!M34661","v":0},{"$f":"Import!M34761","v":0},{"$f":"Import!M34861","v":0},{"$f":"Import!M34961","v":0},{"$f":"Import!M35061","v":0}]
[63,{"$f":"Import!M34262","v":"Select"},{"$f":"Import!M34362","v":"Select"},{"$f":"Import!M34462","v":"Select"},{"$f":"Import!M34562","v":"Select"},{"$f":"Import!M34662","v":0},{"$f":"Import!M34762","v":0},{"$f":"Import!M34862","v":0},{"$f":"Import!M34962","v":0},{"$f":"Import!M35062","v":0}]
[64,{"$f":"Import!M34263","v":"Select"},{"$f":"Import!M34363","v":"Select"},{"$f":"Import!M34463","v":"Select"},{"$f":"Import!M34563","v":"Select"},{"$f":"Import!M34663","v":0},{"$f":"Import!M34763","v":0},{"$f":"Import!M34863","v":0},{"$f":"Import!M34963","v":0},{"$f":"Import!M35063","v":0}]
[65,{"$f":"Import!M34264","v":"Select"},{"$f":"Import!M34364","v":"Select"},{"$f":"Import!M34464","v":"Select"},{"$f":"Import!M34564","v":"Select"},{"$f":"Import!M34664","v":0},{"$f":"Import!M34764","v":0},{"$f":"Import!M34864","v":0},{"$f":"Import!M34964","v":0},{"$f":"Import!M35064","v":0}]
[66,{"$f":"Import!M34265","v":"Select"},{"$f":"Import!M34365","v":"Select"},{"$f":"Import!M34465","v":"Select"},{"$f":"Import!M34565","v":"Select"},{"$f":"Import!M34665","v":0},{"$f":"Import!M34765","v":0},{"$f":"Import!M34865","v":0},{"$f":"Import!M34965","v":0},{"$f":"Import!M35065","v":0}]
[{"$f":"A1518+1","v":67},{"$f":"Import!M34266","v":"Select"},{"$f":"Import!M34366","v":"Select"},{"$f":"Import!M34466","v":"Select"},{"$f":"Import!M34566","v":"Select"},{"$f":"Import!M34666","v":0},{"$f":"Import!M34766","v":0},{"$f":"Import!M34866","v":0},{"$f":"Import!M34966","v":0},{"$f":"Import!M35066","v":0}]
[68,{"$f":"Import!M34267","v":"Select"},{"$f":"Import!M34367","v":"Select"},{"$f":"Import!M34467","v":"Select"},{"$f":"Import!M34567","v":"Select"},{"$f":"Import!M34667","v":0},{"$f":"Import!M34767","v":0},{"$f":"Import!M34867","v":0},{"$f":"Import!M34967","v":0},{"$f":"Import!M35067","v":0}]
[69,{"$f":"Import!M34268","v":"Select"},{"$f":"Import!M34368","v":"Select"},{"$f":"Import!M34468","v":"Select"},{"$f":"Import!M34568","v":"Select"},{"$f":"Import!M34668","v":0},{"$f":"Import!M34768","v":0},{"$f":"Import!M34868","v":0},{"$f":"Import!M34968","v":0},{"$f":"Import!M35068","v":0}]
[70,{"$f":"Import!M34269","v":"Select"},{"$f":"Import!M34369","v":"Select"},{"$f":"Import!M34469","v":"Select"},{"$f":"Import!M34569","v":"Select"},{"$f":"Import!M34669","v":0},{"$f":"Import!M34769","v":0},{"$f":"Import!M34869","v":0},{"$f":"Import!M34969","v":0},{"$f":"Import!M35069","v":0}]
[71,{"$f":"Import!M34270","v":"Select"},{"$f":"Import!M34370","v":"Select"},{"$f":"Import!M34470","v":"Select"},{"$f":"Import!M34570","v":"Select"},{"$f":"Import!M34670","v":0},{"$f":"Import!M34770","v":0},{"$f":"Import!M34870","v":0},{"$f":"Import!M34970","v":0},{"$f":"Import!M35070","v":0}]
[72,{"$f":"Import!M34271","v":"Select"},{"$f":"Import!M34371","v":"Select"},{"$f":"Import!M34471","v":"Select"},{"$f":"Import!M34571","v":"Select"},{"$f":"Import!M34671","v":0},{"$f":"Import!M34771","v":0},{"$f":"Import!M34871","v":0},{"$f":"Import!M34971","v":0},{"$f":"Import!M35071","v":0}]
[73,{"$f":"Import!M34272","v":"Select"},{"$f":"Import!M34372","v":"Select"},{"$f":"Import!M34472","v":"Select"},{"$f":"Import!M34572","v":"Select"},{"$f":"Import!M34672","v":0},{"$f":"Import!M34772","v":0},{"$f":"Import!M34872","v":0},{"$f":"Import!M34972","v":0},{"$f":"Import!M35072","v":0}]
[74,{"$f":"Import!M34273","v":"Select"},{"$f":"Import!M34373","v":"Select"},{"$f":"Import!M34473","v":"Select"},{"$f":"Import!M34573","v":"Select"},{"$f":"Import!M34673","v":0},{"$f":"Import!M34773","v":0},{"$f":"Import!M34873","v":0},{"$f":"Import!M34973","v":0},{"$f":"Import!M35073","v":0}]
[75,{"$f":"Import!M34274","v":"Select"},{"$f":"Import!M34374","v":"Select"},{"$f":"Import!M34474","v":"Select"},{"$f":"Import!M34574","v":"Select"},{"$f":"Import!M34674","v":0},{"$f":"Import!M34774","v":0},{"$f":"Import!M34874","v":0},{"$f":"Import!M34974","v":0},{"$f":"Import!M35074","v":0}]
[76,{"$f":"Import!M34275","v":"Select"},{"$f":"Import!M34375","v":"Select"},{"$f":"Import!M34475","v":"Select"},{"$f":"Import!M34575","v":"Select"},{"$f":"Import!M34675","v":0},{"$f":"Import!M34775","v":0},{"$f":"Import!M34875","v":0},{"$f":"Import!M34975","v":0},{"$f":"Import!M35075","v":0}]
[77,{"$f":"Import!M34276","v":"Select"},{"$f":"Import!M34376","v":"Select"},{"$f":"Import!M34476","v":"Select"},{"$f":"Import!M34576","v":"Select"},{"$f":"Import!M34676","v":0},{"$f":"Import!M34776","v":0},{"$f":"Import!M34876","v":0},{"$f":"Import!M34976","v":0},{"$f":"Import!M35076","v":0}]
[78,{"$f":"Import!M34277","v":"Select"},{"$f":"Import!M34377","v":"Select"},{"$f":"Import!M34477","v":"Select"},{"$f":"Import!M34577","v":"Select"},{"$f":"Import!M34677","v":0},{"$f":"Import!M34777","v":0},{"$f":"Import!M34877","v":0},{"$f":"Import!M34977","v":0},{"$f":"Import!M35077","v":0}]
[79,{"$f":"Import!M34278","v":"Select"},{"$f":"Import!M34378","v":"Select"},{"$f":"Import!M34478","v":"Select"},{"$f":"Import!M34578","v":"Select"},{"$f":"Import!M34678","v":0},{"$f":"Import!M34778","v":0},{"$f":"Import!M34878","v":0},{"$f":"Import!M34978","v":0},{"$f":"Import!M35078","v":0}]
[80,{"$f":"Import!M34279","v":"Select"},{"$f":"Import!M34379","v":"Select"},{"$f":"Import!M34479","v":"Select"},{"$f":"Import!M34579","v":"Select"},{"$f":"Import!M34679","v":0},{"$f":"Import!M34779","v":0},{"$f":"Import!M34879","v":0},{"$f":"Import!M34979","v":0},{"$f":"Import!M35079","v":0}]
[81,{"$f":"Import!M34280","v":"Select"},{"$f":"Import!M34380","v":"Select"},{"$f":"Import!M34480","v":"Select"},{"$f":"Import!M34580","v":"Select"},{"$f":"Import!M34680","v":0},{"$f":"Import!M34780","v":0},{"$f":"Import!M34880","v":0},{"$f":"Import!M34980","v":0},{"$f":"Import!M35080","v":0}]
[82,{"$f":"Import!M34281","v":"Select"},{"$f":"Import!M34381","v":"Select"},{"$f":"Import!M34481","v":"Select"},{"$f":"Import!M34581","v":"Select"},{"$f":"Import!M34681","v":0},{"$f":"Import!M34781","v":0},{"$f":"Import!M34881","v":0},{"$f":"Import!M34981","v":0},{"$f":"Import!M35081","v":0}]
[83,{"$f":"Import!M34282","v":"Select"},{"$f":"Import!M34382","v":"Select"},{"$f":"Import!M34482","v":"Select"},{"$f":"Import!M34582","v":"Select"},{"$f":"Import!M34682","v":0},{"$f":"Import!M34782","v":0},{"$f":"Import!M34882","v":0},{"$f":"Import!M34982","v":0},{"$f":"Import!M35082","v":0}]
[84,{"$f":"Import!M34283","v":"Select"},{"$f":"Import!M34383","v":"Select"},{"$f":"Import!M34483","v":"Select"},{"$f":"Import!M34583","v":"Select"},{"$f":"Import!M34683","v":0},{"$f":"Import!M34783","v":0},{"$f":"Import!M34883","v":0},{"$f":"Import!M34983","v":0},{"$f":"Import!M35083","v":0}]
[85,{"$f":"Import!M34284","v":"Select"},{"$f":"Import!M34384","v":"Select"},{"$f":"Import!M34484","v":"Select"},{"$f":"Import!M34584","v":"Select"},{"$f":"Import!M34684","v":0},{"$f":"Import!M34784","v":0},{"$f":"Import!M34884","v":0},{"$f":"Import!M34984","v":0},{"$f":"Import!M35084","v":0}]
[86,{"$f":"Import!M34285","v":"Select"},{"$f":"Import!M34385","v":"Select"},{"$f":"Import!M34485","v":"Select"},{"$f":"Import!M34585","v":"Select"},{"$f":"Import!M34685","v":0},{"$f":"Import!M34785","v":0},{"$f":"Import!M34885","v":0},{"$f":"Import!M34985","v":0},{"$f":"Import!M35085","v":0}]
[87,{"$f":"Import!M34286","v":"Select"},{"$f":"Import!M34386","v":"Select"},{"$f":"Import!M34486","v":"Select"},{"$f":"Import!M34586","v":"Select"},{"$f":"Import!M34686","v":0},{"$f":"Import!M34786","v":0},{"$f":"Import!M34886","v":0},{"$f":"Import!M34986","v":0},{"$f":"Import!M35086","v":0}]
[88,{"$f":"Import!M34287","v":"Select"},{"$f":"Import!M34387","v":"Select"},{"$f":"Import!M34487","v":"Select"},{"$f":"Import!M34587","v":"Select"},{"$f":"Import!M34687","v":0},{"$f":"Import!M34787","v":0},{"$f":"Import!M34887","v":0},{"$f":"Import!M34987","v":0},{"$f":"Import!M35087","v":0}]
[89,{"$f":"Import!M34288","v":"Select"},{"$f":"Import!M34388","v":"Select"},{"$f":"Import!M34488","v":"Select"},{"$f":"Import!M34588","v":"Select"},{"$f":"Import!M34688","v":0},{"$f":"Import!M34788","v":0},{"$f":"Import!M34888","v":0},{"$f":"Import!M34988","v":0},{"$f":"Import!M35088","v":0}]
[90,{"$f":"Import!M34289","v":"Select"},{"$f":"Import!M34389","v":"Select"},{"$f":"Import!M34489","v":"Select"},{"$f":"Import!M34589","v":"Select"},{"$f":"Import!M34689","v":0},{"$f":"Import!M34789","v":0},{"$f":"Import!M34889","v":0},{"$f":"Import!M34989","v":0},{"$f":"Import!M35089","v":0}]
[91,{"$f":"Import!M34290","v":"Select"},{"$f":"Import!M34390","v":"Select"},{"$f":"Import!M34490","v":"Select"},{"$f":"Import!M34590","v":"Select"},{"$f":"Import!M34690","v":0},{"$f":"Import!M34790","v":0},{"$f":"Import!M34890","v":0},{"$f":"Import!M34990","v":0},{"$f":"Import!M35090","v":0}]
[92,{"$f":"Import!M34291","v":"Select"},{"$f":"Import!M34391","v":"Select"},{"$f":"Import!M34491","v":"Select"},{"$f":"Import!M34591","v":"Select"},{"$f":"Import!M34691","v":0},{"$f":"Import!M34791","v":0},{"$f":"Import!M34891","v":0},{"$f":"Import!M34991","v":0},{"$f":"Import!M35091","v":0}]
[93,{"$f":"Import!M34292","v":"Select"},{"$f":"Import!M34392","v":"Select"},{"$f":"Import!M34492","v":"Select"},{"$f":"Import!M34592","v":"Select"},{"$f":"Import!M34692","v":0},{"$f":"Import!M34792","v":0},{"$f":"Import!M34892","v":0},{"$f":"Import!M34992","v":0},{"$f":"Import!M35092","v":0}]
[94,{"$f":"Import!M34293","v":"Select"},{"$f":"Import!M34393","v":"Select"},{"$f":"Import!M34493","v":"Select"},{"$f":"Import!M34593","v":"Select"},{"$f":"Import!M34693","v":0},{"$f":"Import!M34793","v":0},{"$f":"Import!M34893","v":0},{"$f":"Import!M34993","v":0},{"$f":"Import!M35093","v":0}]
[95,{"$f":"Import!M34294","v":"Select"},{"$f":"Import!M34394","v":"Select"},{"$f":"Import!M34494","v":"Select"},{"$f":"Import!M34594","v":"Select"},{"$f":"Import!M34694","v":0},{"$f":"Import!M34794","v":0},{"$f":"Import!M34894","v":0},{"$f":"Import!M34994","v":0},{"$f":"Import!M35094","v":0}]
[96,{"$f":"Import!M34295","v":"Select"},{"$f":"Import!M34395","v":"Select"},{"$f":"Import!M34495","v":"Select"},{"$f":"Import!M34595","v":"Select"},{"$f":"Import!M34695","v":0},{"$f":"Import!M34795","v":0},{"$f":"Import!M34895","v":0},{"$f":"Import!M34995","v":0},{"$f":"Import!M35095","v":0}]
[97,{"$f":"Import!M34296","v":"Select"},{"$f":"Import!M34396","v":"Select"},{"$f":"Import!M34496","v":"Select"},{"$f":"Import!M34596","v":"Select"},{"$f":"Import!M34696","v":0},{"$f":"Import!M34796","v":0},{"$f":"Import!M34896","v":0},{"$f":"Import!M34996","v":0},{"$f":"Import!M35096","v":0}]
[98,{"$f":"Import!M34297","v":"Select"},{"$f":"Import!M34397","v":"Select"},{"$f":"Import!M34497","v":"Select"},{"$f":"Import!M34597","v":"Select"},{"$f":"Import!M34697","v":0},{"$f":"Import!M34797","v":0},{"$f":"Import!M34897","v":0},{"$f":"Import!M34997","v":0},{"$f":"Import!M35097","v":0}]
[99,{"$f":"Import!M34298","v":"Select"},{"$f":"Import!M34398","v":"Select"},{"$f":"Import!M34498","v":"Select"},{"$f":"Import!M34598","v":"Select"},{"$f":"Import!M34698","v":0},{"$f":"Import!M34798","v":0},{"$f":"Import!M34898","v":0},{"$f":"Import!M34998","v":0},{"$f":"Import!M35098","v":0}]
[100,{"$f":"Import!M34299","v":"Select"},{"$f":"Import!M34399","v":"Select"},{"$f":"Import!M34499","v":"Select"},{"$f":"Import!M34599","v":"Select"},{"$f":"Import!M34699","v":0},{"$f":"Import!M34799","v":0},{"$f":"Import!M34899","v":0},{"$f":"Import!M34999","v":0},{"$f":"Import!M35099","v":0}]
[]
[null,"Total Other Alternative Investments",null,null,null,{"$f":"SUM(F1453:F1552)","v":0},{"$f":"SUM(G1453:G1552)","v":0},{"$f":"IFERROR(SUMPRODUCT(H1453:H1552,$G1453:$G1552)/SUM($G1453:$G1552),0)","v":0},{"$f":"IFERROR(SUMPRODUCT(I1453:I1552,$G1453:$G1552)/SUM($G1453:$G1552),0)","v":0}]
[]
[null,"(I) DERIVATIVES"]
[]
[null,null,"Enter # of Derivative Types",{"$f":"Import!M35100","v":0}]
[null,"Derivative Type","Underlying","Currency","Trading Category","Purpose","Position","Confirm line contains only derivatives with:",{"$f":"YEAR($C$3)&\" \nMarket Value\"","v":"2023 \nMarket Value"},"Gross Notional Value","Net Notional Value","Exposure (Dollar Delta, DV01, CS01","Comments"]
[1,{"$f":"Import!M35101","v":"Select"},{"$f":"Import!M35301","v":"Select"},{"$f":"Import!M35501","v":"Select"},{"$f":"Import!M35701","v":"Select"},{"$f":"Import!M35901","v":"Select"},{"$f":"Import!M36101","v":"Select"},{"$f":"Import!M36301","v":"Select"},{"$f":"Import!M36501","v":0},{"$f":"Import!M36701","v":0},{"$f":"Import!M36901","v":0},{"$f":"Import!M37101","v":0},{"$f":"Import!M37301","v":0}]
[{"$f":"A1560+1","v":2},{"$f":"Import!M35102","v":"Select"},{"$f":"Import!M35302","v":"Select"},{"$f":"Import!M35502","v":"Select"},{"$f":"Import!M35702","v":"Select"},{"$f":"Import!M35902","v":"Select"},{"$f":"Import!M36102","v":"Select"},{"$f":"Import!M36302","v":"Select"},{"$f":"Import!M36502","v":0},{"$f":"Import!M36702","v":0},{"$f":"Import!M36902","v":0},{"$f":"Import!M37102","v":0},{"$f":"Import!M37302","v":0}]
[{"$f":"A1561+1","v":3},{"$f":"Import!M35103","v":"Select"},{"$f":"Import!M35303","v":"Select"},{"$f":"Import!M35503","v":"Select"},{"$f":"Import!M35703","v":"Select"},{"$f":"Import!M35903","v":"Select"},{"$f":"Import!M36103","v":"Select"},{"$f":"Import!M36303","v":"Select"},{"$f":"Import!M36503","v":0},{"$f":"Import!M36703","v":0},{"$f":"Import!M36903","v":0},{"$f":"Import!M37103","v":0},{"$f":"Import!M37303","v":0}]
[4,{"$f":"Import!M35104","v":"Select"},{"$f":"Import!M35304","v":"Select"},{"$f":"Import!M35504","v":"Select"},{"$f":"Import!M35704","v":"Select"},{"$f":"Import!M35904","v":"Select"},{"$f":"Import!M36104","v":"Select"},{"$f":"Import!M36304","v":"Select"},{"$f":"Import!M36504","v":0},{"$f":"Import!M36704","v":0},{"$f":"Import!M36904","v":0},{"$f":"Import!M37104","v":0},{"$f":"Import!M37304","v":0}]
[5,{"$f":"Import!M35105","v":"Select"},{"$f":"Import!M35305","v":"Select"},{"$f":"Import!M35505","v":"Select"},{"$f":"Import!M35705","v":"Select"},{"$f":"Import!M35905","v":"Select"},{"$f":"Import!M36105","v":"Select"},{"$f":"Import!M36305","v":"Select"},{"$f":"Import!M36505","v":0},{"$f":"Import!M36705","v":0},{"$f":"Import!M36905","v":0},{"$f":"Import!M37105","v":0},{"$f":"Import!M37305","v":0}]
[6,{"$f":"Import!M35106","v":"Select"},{"$f":"Import!M35306","v":"Select"},{"$f":"Import!M35506","v":"Select"},{"$f":"Import!M35706","v":"Select"},{"$f":"Import!M35906","v":"Select"},{"$f":"Import!M36106","v":"Select"},{"$f":"Import!M36306","v":"Select"},{"$f":"Import!M36506","v":0},{"$f":"Import!M36706","v":0},{"$f":"Import!M36906","v":0},{"$f":"Import!M37106","v":0},{"$f":"Import!M37306","v":0}]
[7,{"$f":"Import!M35107","v":"Select"},{"$f":"Import!M35307","v":"Select"},{"$f":"Import!M35507","v":"Select"},{"$f":"Import!M35707","v":"Select"},{"$f":"Import!M35907","v":"Select"},{"$f":"Import!M36107","v":"Select"},{"$f":"Import!M36307","v":"Select"},{"$f":"Import!M36507","v":0},{"$f":"Import!M36707","v":0},{"$f":"Import!M36907","v":0},{"$f":"Import!M37107","v":0},{"$f":"Import!M37307","v":0}]
[8,{"$f":"Import!M35108","v":"Select"},{"$f":"Import!M35308","v":"Select"},{"$f":"Import!M35508","v":"Select"},{"$f":"Import!M35708","v":"Select"},{"$f":"Import!M35908","v":"Select"},{"$f":"Import!M36108","v":"Select"},{"$f":"Import!M36308","v":"Select"},{"$f":"Import!M36508","v":0},{"$f":"Import!M36708","v":0},{"$f":"Import!M36908","v":0},{"$f":"Import!M37108","v":0},{"$f":"Import!M37308","v":0}]
[9,{"$f":"Import!M35109","v":"Select"},{"$f":"Import!M35309","v":"Select"},{"$f":"Import!M35509","v":"Select"},{"$f":"Import!M35709","v":"Select"},{"$f":"Import!M35909","v":"Select"},{"$f":"Import!M36109","v":"Select"},{"$f":"Import!M36309","v":"Select"},{"$f":"Import!M36509","v":0},{"$f":"Import!M36709","v":0},{"$f":"Import!M36909","v":0},{"$f":"Import!M37109","v":0},{"$f":"Import!M37309","v":0}]
[10,{"$f":"Import!M35110","v":"Select"},{"$f":"Import!M35310","v":"Select"},{"$f":"Import!M35510","v":"Select"},{"$f":"Import!M35710","v":"Select"},{"$f":"Import!M35910","v":"Select"},{"$f":"Import!M36110","v":"Select"},{"$f":"Import!M36310","v":"Select"},{"$f":"Import!M36510","v":0},{"$f":"Import!M36710","v":0},{"$f":"Import!M36910","v":0},{"$f":"Import!M37110","v":0},{"$f":"Import!M37310","v":0}]
[11,{"$f":"Import!M35111","v":"Select"},{"$f":"Import!M35311","v":"Select"},{"$f":"Import!M35511","v":"Select"},{"$f":"Import!M35711","v":"Select"},{"$f":"Import!M35911","v":"Select"},{"$f":"Import!M36111","v":"Select"},{"$f":"Import!M36311","v":"Select"},{"$f":"Import!M36511","v":0},{"$f":"Import!M36711","v":0},{"$f":"Import!M36911","v":0},{"$f":"Import!M37111","v":0},{"$f":"Import!M37311","v":0}]
[12,{"$f":"Import!M35112","v":"Select"},{"$f":"Import!M35312","v":"Select"},{"$f":"Import!M35512","v":"Select"},{"$f":"Import!M35712","v":"Select"},{"$f":"Import!M35912","v":"Select"},{"$f":"Import!M36112","v":"Select"},{"$f":"Import!M36312","v":"Select"},{"$f":"Import!M36512","v":0},{"$f":"Import!M36712","v":0},{"$f":"Import!M36912","v":0},{"$f":"Import!M37112","v":0},{"$f":"Import!M37312","v":0}]
[13,{"$f":"Import!M35113","v":"Select"},{"$f":"Import!M35313","v":"Select"},{"$f":"Import!M35513","v":"Select"},{"$f":"Import!M35713","v":"Select"},{"$f":"Import!M35913","v":"Select"},{"$f":"Import!M36113","v":"Select"},{"$f":"Import!M36313","v":"Select"},{"$f":"Import!M36513","v":0},{"$f":"Import!M36713","v":0},{"$f":"Import!M36913","v":0},{"$f":"Import!M37113","v":0},{"$f":"Import!M37313","v":0}]
[14,{"$f":"Import!M35114","v":"Select"},{"$f":"Import!M35314","v":"Select"},{"$f":"Import!M35514","v":"Select"},{"$f":"Import!M35714","v":"Select"},{"$f":"Import!M35914","v":"Select"},{"$f":"Import!M36114","v":"Select"},{"$f":"Import!M36314","v":"Select"},{"$f":"Import!M36514","v":0},{"$f":"Import!M36714","v":0},{"$f":"Import!M36914","v":0},{"$f":"Import!M37114","v":0},{"$f":"Import!M37314","v":0}]
[15,{"$f":"Import!M35115","v":"Select"},{"$f":"Import!M35315","v":"Select"},{"$f":"Import!M35515","v":"Select"},{"$f":"Import!M35715","v":"Select"},{"$f":"Import!M35915","v":"Select"},{"$f":"Import!M36115","v":"Select"},{"$f":"Import!M36315","v":"Select"},{"$f":"Import!M36515","v":0},{"$f":"Import!M36715","v":0},{"$f":"Import!M36915","v":0},{"$f":"Import!M37115","v":0},{"$f":"Import!M37315","v":0}]
[16,{"$f":"Import!M35116","v":"Select"},{"$f":"Import!M35316","v":"Select"},{"$f":"Import!M35516","v":"Select"},{"$f":"Import!M35716","v":"Select"},{"$f":"Import!M35916","v":"Select"},{"$f":"Import!M36116","v":"Select"},{"$f":"Import!M36316","v":"Select"},{"$f":"Import!M36516","v":0},{"$f":"Import!M36716","v":0},{"$f":"Import!M36916","v":0},{"$f":"Import!M37116","v":0},{"$f":"Import!M37316","v":0}]
[17,{"$f":"Import!M35117","v":"Select"},{"$f":"Import!M35317","v":"Select"},{"$f":"Import!M35517","v":"Select"},{"$f":"Import!M35717","v":"Select"},{"$f":"Import!M35917","v":"Select"},{"$f":"Import!M36117","v":"Select"},{"$f":"Import!M36317","v":"Select"},{"$f":"Import!M36517","v":0},{"$f":"Import!M36717","v":0},{"$f":"Import!M36917","v":0},{"$f":"Import!M37117","v":0},{"$f":"Import!M37317","v":0}]
[18,{"$f":"Import!M35118","v":"Select"},{"$f":"Import!M35318","v":"Select"},{"$f":"Import!M35518","v":"Select"},{"$f":"Import!M35718","v":"Select"},{"$f":"Import!M35918","v":"Select"},{"$f":"Import!M36118","v":"Select"},{"$f":"Import!M36318","v":"Select"},{"$f":"Import!M36518","v":0},{"$f":"Import!M36718","v":0},{"$f":"Import!M36918","v":0},{"$f":"Import!M37118","v":0},{"$f":"Import!M37318","v":0}]
[19,{"$f":"Import!M35119","v":"Select"},{"$f":"Import!M35319","v":"Select"},{"$f":"Import!M35519","v":"Select"},{"$f":"Import!M35719","v":"Select"},{"$f":"Import!M35919","v":"Select"},{"$f":"Import!M36119","v":"Select"},{"$f":"Import!M36319","v":"Select"},{"$f":"Import!M36519","v":0},{"$f":"Import!M36719","v":0},{"$f":"Import!M36919","v":0},{"$f":"Import!M37119","v":0},{"$f":"Import!M37319","v":0}]
[20,{"$f":"Import!M35120","v":"Select"},{"$f":"Import!M35320","v":"Select"},{"$f":"Import!M35520","v":"Select"},{"$f":"Import!M35720","v":"Select"},{"$f":"Import!M35920","v":"Select"},{"$f":"Import!M36120","v":"Select"},{"$f":"Import!M36320","v":"Select"},{"$f":"Import!M36520","v":0},{"$f":"Import!M36720","v":0},{"$f":"Import!M36920","v":0},{"$f":"Import!M37120","v":0},{"$f":"Import!M37320","v":0}]
[21,{"$f":"Import!M35121","v":"Select"},{"$f":"Import!M35321","v":"Select"},{"$f":"Import!M35521","v":"Select"},{"$f":"Import!M35721","v":"Select"},{"$f":"Import!M35921","v":"Select"},{"$f":"Import!M36121","v":"Select"},{"$f":"Import!M36321","v":"Select"},{"$f":"Import!M36521","v":0},{"$f":"Import!M36721","v":0},{"$f":"Import!M36921","v":0},{"$f":"Import!M37121","v":0},{"$f":"Import!M37321","v":0}]
[22,{"$f":"Import!M35122","v":"Select"},{"$f":"Import!M35322","v":"Select"},{"$f":"Import!M35522","v":"Select"},{"$f":"Import!M35722","v":"Select"},{"$f":"Import!M35922","v":"Select"},{"$f":"Import!M36122","v":"Select"},{"$f":"Import!M36322","v":"Select"},{"$f":"Import!M36522","v":0},{"$f":"Import!M36722","v":0},{"$f":"Import!M36922","v":0},{"$f":"Import!M37122","v":0},{"$f":"Import!M37322","v":0}]
[23,{"$f":"Import!M35123","v":"Select"},{"$f":"Import!M35323","v":"Select"},{"$f":"Import!M35523","v":"Select"},{"$f":"Import!M35723","v":"Select"},{"$f":"Import!M35923","v":"Select"},{"$f":"Import!M36123","v":"Select"},{"$f":"Import!M36323","v":"Select"},{"$f":"Import!M36523","v":0},{"$f":"Import!M36723","v":0},{"$f":"Import!M36923","v":0},{"$f":"Import!M37123","v":0},{"$f":"Import!M37323","v":0}]
[24,{"$f":"Import!M35124","v":"Select"},{"$f":"Import!M35324","v":"Select"},{"$f":"Import!M35524","v":"Select"},{"$f":"Import!M35724","v":"Select"},{"$f":"Import!M35924","v":"Select"},{"$f":"Import!M36124","v":"Select"},{"$f":"Import!M36324","v":"Select"},{"$f":"Import!M36524","v":0},{"$f":"Import!M36724","v":0},{"$f":"Import!M36924","v":0},{"$f":"Import!M37124","v":0},{"$f":"Import!M37324","v":0}]
[25,{"$f":"Import!M35125","v":"Select"},{"$f":"Import!M35325","v":"Select"},{"$f":"Import!M35525","v":"Select"},{"$f":"Import!M35725","v":"Select"},{"$f":"Import!M35925","v":"Select"},{"$f":"Import!M36125","v":"Select"},{"$f":"Import!M36325","v":"Select"},{"$f":"Import!M36525","v":0},{"$f":"Import!M36725","v":0},{"$f":"Import!M36925","v":0},{"$f":"Import!M37125","v":0},{"$f":"Import!M37325","v":0}]
[26,{"$f":"Import!M35126","v":"Select"},{"$f":"Import!M35326","v":"Select"},{"$f":"Import!M35526","v":"Select"},{"$f":"Import!M35726","v":"Select"},{"$f":"Import!M35926","v":"Select"},{"$f":"Import!M36126","v":"Select"},{"$f":"Import!M36326","v":"Select"},{"$f":"Import!M36526","v":0},{"$f":"Import!M36726","v":0},{"$f":"Import!M36926","v":0},{"$f":"Import!M37126","v":0},{"$f":"Import!M37326","v":0}]
[27,{"$f":"Import!M35127","v":"Select"},{"$f":"Import!M35327","v":"Select"},{"$f":"Import!M35527","v":"Select"},{"$f":"Import!M35727","v":"Select"},{"$f":"Import!M35927","v":"Select"},{"$f":"Import!M36127","v":"Select"},{"$f":"Import!M36327","v":"Select"},{"$f":"Import!M36527","v":0},{"$f":"Import!M36727","v":0},{"$f":"Import!M36927","v":0},{"$f":"Import!M37127","v":0},{"$f":"Import!M37327","v":0}]
[28,{"$f":"Import!M35128","v":"Select"},{"$f":"Import!M35328","v":"Select"},{"$f":"Import!M35528","v":"Select"},{"$f":"Import!M35728","v":"Select"},{"$f":"Import!M35928","v":"Select"},{"$f":"Import!M36128","v":"Select"},{"$f":"Import!M36328","v":"Select"},{"$f":"Import!M36528","v":0},{"$f":"Import!M36728","v":0},{"$f":"Import!M36928","v":0},{"$f":"Import!M37128","v":0},{"$f":"Import!M37328","v":0}]
[29,{"$f":"Import!M35129","v":"Select"},{"$f":"Import!M35329","v":"Select"},{"$f":"Import!M35529","v":"Select"},{"$f":"Import!M35729","v":"Select"},{"$f":"Import!M35929","v":"Select"},{"$f":"Import!M36129","v":"Select"},{"$f":"Import!M36329","v":"Select"},{"$f":"Import!M36529","v":0},{"$f":"Import!M36729","v":0},{"$f":"Import!M36929","v":0},{"$f":"Import!M37129","v":0},{"$f":"Import!M37329","v":0}]
[30,{"$f":"Import!M35130","v":"Select"},{"$f":"Import!M35330","v":"Select"},{"$f":"Import!M35530","v":"Select"},{"$f":"Import!M35730","v":"Select"},{"$f":"Import!M35930","v":"Select"},{"$f":"Import!M36130","v":"Select"},{"$f":"Import!M36330","v":"Select"},{"$f":"Import!M36530","v":0},{"$f":"Import!M36730","v":0},{"$f":"Import!M36930","v":0},{"$f":"Import!M37130","v":0},{"$f":"Import!M37330","v":0}]
[31,{"$f":"Import!M35131","v":"Select"},{"$f":"Import!M35331","v":"Select"},{"$f":"Import!M35531","v":"Select"},{"$f":"Import!M35731","v":"Select"},{"$f":"Import!M35931","v":"Select"},{"$f":"Import!M36131","v":"Select"},{"$f":"Import!M36331","v":"Select"},{"$f":"Import!M36531","v":0},{"$f":"Import!M36731","v":0},{"$f":"Import!M36931","v":0},{"$f":"Import!M37131","v":0},{"$f":"Import!M37331","v":0}]
[32,{"$f":"Import!M35132","v":"Select"},{"$f":"Import!M35332","v":"Select"},{"$f":"Import!M35532","v":"Select"},{"$f":"Import!M35732","v":"Select"},{"$f":"Import!M35932","v":"Select"},{"$f":"Import!M36132","v":"Select"},{"$f":"Import!M36332","v":"Select"},{"$f":"Import!M36532","v":0},{"$f":"Import!M36732","v":0},{"$f":"Import!M36932","v":0},{"$f":"Import!M37132","v":0},{"$f":"Import!M37332","v":0}]
[33,{"$f":"Import!M35133","v":"Select"},{"$f":"Import!M35333","v":"Select"},{"$f":"Import!M35533","v":"Select"},{"$f":"Import!M35733","v":"Select"},{"$f":"Import!M35933","v":"Select"},{"$f":"Import!M36133","v":"Select"},{"$f":"Import!M36333","v":"Select"},{"$f":"Import!M36533","v":0},{"$f":"Import!M36733","v":0},{"$f":"Import!M36933","v":0},{"$f":"Import!M37133","v":0},{"$f":"Import!M37333","v":0}]
[34,{"$f":"Import!M35134","v":"Select"},{"$f":"Import!M35334","v":"Select"},{"$f":"Import!M35534","v":"Select"},{"$f":"Import!M35734","v":"Select"},{"$f":"Import!M35934","v":"Select"},{"$f":"Import!M36134","v":"Select"},{"$f":"Import!M36334","v":"Select"},{"$f":"Import!M36534","v":0},{"$f":"Import!M36734","v":0},{"$f":"Import!M36934","v":0},{"$f":"Import!M37134","v":0},{"$f":"Import!M37334","v":0}]
[35,{"$f":"Import!M35135","v":"Select"},{"$f":"Import!M35335","v":"Select"},{"$f":"Import!M35535","v":"Select"},{"$f":"Import!M35735","v":"Select"},{"$f":"Import!M35935","v":"Select"},{"$f":"Import!M36135","v":"Select"},{"$f":"Import!M36335","v":"Select"},{"$f":"Import!M36535","v":0},{"$f":"Import!M36735","v":0},{"$f":"Import!M36935","v":0},{"$f":"Import!M37135","v":0},{"$f":"Import!M37335","v":0}]
[36,{"$f":"Import!M35136","v":"Select"},{"$f":"Import!M35336","v":"Select"},{"$f":"Import!M35536","v":"Select"},{"$f":"Import!M35736","v":"Select"},{"$f":"Import!M35936","v":"Select"},{"$f":"Import!M36136","v":"Select"},{"$f":"Import!M36336","v":"Select"},{"$f":"Import!M36536","v":0},{"$f":"Import!M36736","v":0},{"$f":"Import!M36936","v":0},{"$f":"Import!M37136","v":0},{"$f":"Import!M37336","v":0}]
[37,{"$f":"Import!M35137","v":"Select"},{"$f":"Import!M35337","v":"Select"},{"$f":"Import!M35537","v":"Select"},{"$f":"Import!M35737","v":"Select"},{"$f":"Import!M35937","v":"Select"},{"$f":"Import!M36137","v":"Select"},{"$f":"Import!M36337","v":"Select"},{"$f":"Import!M36537","v":0},{"$f":"Import!M36737","v":0},{"$f":"Import!M36937","v":0},{"$f":"Import!M37137","v":0},{"$f":"Import!M37337","v":0}]
[38,{"$f":"Import!M35138","v":"Select"},{"$f":"Import!M35338","v":"Select"},{"$f":"Import!M35538","v":"Select"},{"$f":"Import!M35738","v":"Select"},{"$f":"Import!M35938","v":"Select"},{"$f":"Import!M36138","v":"Select"},{"$f":"Import!M36338","v":"Select"},{"$f":"Import!M36538","v":0},{"$f":"Import!M36738","v":0},{"$f":"Import!M36938","v":0},{"$f":"Import!M37138","v":0},{"$f":"Import!M37338","v":0}]
[39,{"$f":"Import!M35139","v":"Select"},{"$f":"Import!M35339","v":"Select"},{"$f":"Import!M35539","v":"Select"},{"$f":"Import!M35739","v":"Select"},{"$f":"Import!M35939","v":"Select"},{"$f":"Import!M36139","v":"Select"},{"$f":"Import!M36339","v":"Select"},{"$f":"Import!M36539","v":0},{"$f":"Import!M36739","v":0},{"$f":"Import!M36939","v":0},{"$f":"Import!M37139","v":0},{"$f":"Import!M37339","v":0}]
[40,{"$f":"Import!M35140","v":"Select"},{"$f":"Import!M35340","v":"Select"},{"$f":"Import!M35540","v":"Select"},{"$f":"Import!M35740","v":"Select"},{"$f":"Import!M35940","v":"Select"},{"$f":"Import!M36140","v":"Select"},{"$f":"Import!M36340","v":"Select"},{"$f":"Import!M36540","v":0},{"$f":"Import!M36740","v":0},{"$f":"Import!M36940","v":0},{"$f":"Import!M37140","v":0},{"$f":"Import!M37340","v":0}]
[41,{"$f":"Import!M35141","v":"Select"},{"$f":"Import!M35341","v":"Select"},{"$f":"Import!M35541","v":"Select"},{"$f":"Import!M35741","v":"Select"},{"$f":"Import!M35941","v":"Select"},{"$f":"Import!M36141","v":"Select"},{"$f":"Import!M36341","v":"Select"},{"$f":"Import!M36541","v":0},{"$f":"Import!M36741","v":0},{"$f":"Import!M36941","v":0},{"$f":"Import!M37141","v":0},{"$f":"Import!M37341","v":0}]
[42,{"$f":"Import!M35142","v":"Select"},{"$f":"Import!M35342","v":"Select"},{"$f":"Import!M35542","v":"Select"},{"$f":"Import!M35742","v":"Select"},{"$f":"Import!M35942","v":"Select"},{"$f":"Import!M36142","v":"Select"},{"$f":"Import!M36342","v":"Select"},{"$f":"Import!M36542","v":0},{"$f":"Import!M36742","v":0},{"$f":"Import!M36942","v":0},{"$f":"Import!M37142","v":0},{"$f":"Import!M37342","v":0}]
[43,{"$f":"Import!M35143","v":"Select"},{"$f":"Import!M35343","v":"Select"},{"$f":"Import!M35543","v":"Select"},{"$f":"Import!M35743","v":"Select"},{"$f":"Import!M35943","v":"Select"},{"$f":"Import!M36143","v":"Select"},{"$f":"Import!M36343","v":"Select"},{"$f":"Import!M36543","v":0},{"$f":"Import!M36743","v":0},{"$f":"Import!M36943","v":0},{"$f":"Import!M37143","v":0},{"$f":"Import!M37343","v":0}]
[44,{"$f":"Import!M35144","v":"Select"},{"$f":"Import!M35344","v":"Select"},{"$f":"Import!M35544","v":"Select"},{"$f":"Import!M35744","v":"Select"},{"$f":"Import!M35944","v":"Select"},{"$f":"Import!M36144","v":"Select"},{"$f":"Import!M36344","v":"Select"},{"$f":"Import!M36544","v":0},{"$f":"Import!M36744","v":0},{"$f":"Import!M36944","v":0},{"$f":"Import!M37144","v":0},{"$f":"Import!M37344","v":0}]
[45,{"$f":"Import!M35145","v":"Select"},{"$f":"Import!M35345","v":"Select"},{"$f":"Import!M35545","v":"Select"},{"$f":"Import!M35745","v":"Select"},{"$f":"Import!M35945","v":"Select"},{"$f":"Import!M36145","v":"Select"},{"$f":"Import!M36345","v":"Select"},{"$f":"Import!M36545","v":0},{"$f":"Import!M36745","v":0},{"$f":"Import!M36945","v":0},{"$f":"Import!M37145","v":0},{"$f":"Import!M37345","v":0}]
[46,{"$f":"Import!M35146","v":"Select"},{"$f":"Import!M35346","v":"Select"},{"$f":"Import!M35546","v":"Select"},{"$f":"Import!M35746","v":"Select"},{"$f":"Import!M35946","v":"Select"},{"$f":"Import!M36146","v":"Select"},{"$f":"Import!M36346","v":"Select"},{"$f":"Import!M36546","v":0},{"$f":"Import!M36746","v":0},{"$f":"Import!M36946","v":0},{"$f":"Import!M37146","v":0},{"$f":"Import!M37346","v":0}]
[47,{"$f":"Import!M35147","v":"Select"},{"$f":"Import!M35347","v":"Select"},{"$f":"Import!M35547","v":"Select"},{"$f":"Import!M35747","v":"Select"},{"$f":"Import!M35947","v":"Select"},{"$f":"Import!M36147","v":"Select"},{"$f":"Import!M36347","v":"Select"},{"$f":"Import!M36547","v":0},{"$f":"Import!M36747","v":0},{"$f":"Import!M36947","v":0},{"$f":"Import!M37147","v":0},{"$f":"Import!M37347","v":0}]
[48,{"$f":"Import!M35148","v":"Select"},{"$f":"Import!M35348","v":"Select"},{"$f":"Import!M35548","v":"Select"},{"$f":"Import!M35748","v":"Select"},{"$f":"Import!M35948","v":"Select"},{"$f":"Import!M36148","v":"Select"},{"$f":"Import!M36348","v":"Select"},{"$f":"Import!M36548","v":0},{"$f":"Import!M36748","v":0},{"$f":"Import!M36948","v":0},{"$f":"Import!M37148","v":0},{"$f":"Import!M37348","v":0}]
[49,{"$f":"Import!M35149","v":"Select"},{"$f":"Import!M35349","v":"Select"},{"$f":"Import!M35549","v":"Select"},{"$f":"Import!M35749","v":"Select"},{"$f":"Import!M35949","v":"Select"},{"$f":"Import!M36149","v":"Select"},{"$f":"Import!M36349","v":"Select"},{"$f":"Import!M36549","v":0},{"$f":"Import!M36749","v":0},{"$f":"Import!M36949","v":0},{"$f":"Import!M37149","v":0},{"$f":"Import!M37349","v":0}]
[50,{"$f":"Import!M35150","v":"Select"},{"$f":"Import!M35350","v":"Select"},{"$f":"Import!M35550","v":"Select"},{"$f":"Import!M35750","v":"Select"},{"$f":"Import!M35950","v":"Select"},{"$f":"Import!M36150","v":"Select"},{"$f":"Import!M36350","v":"Select"},{"$f":"Import!M36550","v":0},{"$f":"Import!M36750","v":0},{"$f":"Import!M36950","v":0},{"$f":"Import!M37150","v":0},{"$f":"Import!M37350","v":0}]
[51,{"$f":"Import!M35151","v":"Select"},{"$f":"Import!M35351","v":"Select"},{"$f":"Import!M35551","v":"Select"},{"$f":"Import!M35751","v":"Select"},{"$f":"Import!M35951","v":"Select"},{"$f":"Import!M36151","v":"Select"},{"$f":"Import!M36351","v":"Select"},{"$f":"Import!M36551","v":0},{"$f":"Import!M36751","v":0},{"$f":"Import!M36951","v":0},{"$f":"Import!M37151","v":0},{"$f":"Import!M37351","v":0}]
[52,{"$f":"Import!M35152","v":"Select"},{"$f":"Import!M35352","v":"Select"},{"$f":"Import!M35552","v":"Select"},{"$f":"Import!M35752","v":"Select"},{"$f":"Import!M35952","v":"Select"},{"$f":"Import!M36152","v":"Select"},{"$f":"Import!M36352","v":"Select"},{"$f":"Import!M36552","v":0},{"$f":"Import!M36752","v":0},{"$f":"Import!M36952","v":0},{"$f":"Import!M37152","v":0},{"$f":"Import!M37352","v":0}]
[53,{"$f":"Import!M35153","v":"Select"},{"$f":"Import!M35353","v":"Select"},{"$f":"Import!M35553","v":"Select"},{"$f":"Import!M35753","v":"Select"},{"$f":"Import!M35953","v":"Select"},{"$f":"Import!M36153","v":"Select"},{"$f":"Import!M36353","v":"Select"},{"$f":"Import!M36553","v":0},{"$f":"Import!M36753","v":0},{"$f":"Import!M36953","v":0},{"$f":"Import!M37153","v":0},{"$f":"Import!M37353","v":0}]
[54,{"$f":"Import!M35154","v":"Select"},{"$f":"Import!M35354","v":"Select"},{"$f":"Import!M35554","v":"Select"},{"$f":"Import!M35754","v":"Select"},{"$f":"Import!M35954","v":"Select"},{"$f":"Import!M36154","v":"Select"},{"$f":"Import!M36354","v":"Select"},{"$f":"Import!M36554","v":0},{"$f":"Import!M36754","v":0},{"$f":"Import!M36954","v":0},{"$f":"Import!M37154","v":0},{"$f":"Import!M37354","v":0}]
[55,{"$f":"Import!M35155","v":"Select"},{"$f":"Import!M35355","v":"Select"},{"$f":"Import!M35555","v":"Select"},{"$f":"Import!M35755","v":"Select"},{"$f":"Import!M35955","v":"Select"},{"$f":"Import!M36155","v":"Select"},{"$f":"Import!M36355","v":"Select"},{"$f":"Import!M36555","v":0},{"$f":"Import!M36755","v":0},{"$f":"Import!M36955","v":0},{"$f":"Import!M37155","v":0},{"$f":"Import!M37355","v":0}]
[56,{"$f":"Import!M35156","v":"Select"},{"$f":"Import!M35356","v":"Select"},{"$f":"Import!M35556","v":"Select"},{"$f":"Import!M35756","v":"Select"},{"$f":"Import!M35956","v":"Select"},{"$f":"Import!M36156","v":"Select"},{"$f":"Import!M36356","v":"Select"},{"$f":"Import!M36556","v":0},{"$f":"Import!M36756","v":0},{"$f":"Import!M36956","v":0},{"$f":"Import!M37156","v":0},{"$f":"Import!M37356","v":0}]
[57,{"$f":"Import!M35157","v":"Select"},{"$f":"Import!M35357","v":"Select"},{"$f":"Import!M35557","v":"Select"},{"$f":"Import!M35757","v":"Select"},{"$f":"Import!M35957","v":"Select"},{"$f":"Import!M36157","v":"Select"},{"$f":"Import!M36357","v":"Select"},{"$f":"Import!M36557","v":0},{"$f":"Import!M36757","v":0},{"$f":"Import!M36957","v":0},{"$f":"Import!M37157","v":0},{"$f":"Import!M37357","v":0}]
[58,{"$f":"Import!M35158","v":"Select"},{"$f":"Import!M35358","v":"Select"},{"$f":"Import!M35558","v":"Select"},{"$f":"Import!M35758","v":"Select"},{"$f":"Import!M35958","v":"Select"},{"$f":"Import!M36158","v":"Select"},{"$f":"Import!M36358","v":"Select"},{"$f":"Import!M36558","v":0},{"$f":"Import!M36758","v":0},{"$f":"Import!M36958","v":0},{"$f":"Import!M37158","v":0},{"$f":"Import!M37358","v":0}]
[59,{"$f":"Import!M35159","v":"Select"},{"$f":"Import!M35359","v":"Select"},{"$f":"Import!M35559","v":"Select"},{"$f":"Import!M35759","v":"Select"},{"$f":"Import!M35959","v":"Select"},{"$f":"Import!M36159","v":"Select"},{"$f":"Import!M36359","v":"Select"},{"$f":"Import!M36559","v":0},{"$f":"Import!M36759","v":0},{"$f":"Import!M36959","v":0},{"$f":"Import!M37159","v":0},{"$f":"Import!M37359","v":0}]
[60,{"$f":"Import!M35160","v":"Select"},{"$f":"Import!M35360","v":"Select"},{"$f":"Import!M35560","v":"Select"},{"$f":"Import!M35760","v":"Select"},{"$f":"Import!M35960","v":"Select"},{"$f":"Import!M36160","v":"Select"},{"$f":"Import!M36360","v":"Select"},{"$f":"Import!M36560","v":0},{"$f":"Import!M36760","v":0},{"$f":"Import!M36960","v":0},{"$f":"Import!M37160","v":0},{"$f":"Import!M37360","v":0}]
[61,{"$f":"Import!M35161","v":"Select"},{"$f":"Import!M35361","v":"Select"},{"$f":"Import!M35561","v":"Select"},{"$f":"Import!M35761","v":"Select"},{"$f":"Import!M35961","v":"Select"},{"$f":"Import!M36161","v":"Select"},{"$f":"Import!M36361","v":"Select"},{"$f":"Import!M36561","v":0},{"$f":"Import!M36761","v":0},{"$f":"Import!M36961","v":0},{"$f":"Import!M37161","v":0},{"$f":"Import!M37361","v":0}]
[62,{"$f":"Import!M35162","v":"Select"},{"$f":"Import!M35362","v":"Select"},{"$f":"Import!M35562","v":"Select"},{"$f":"Import!M35762","v":"Select"},{"$f":"Import!M35962","v":"Select"},{"$f":"Import!M36162","v":"Select"},{"$f":"Import!M36362","v":"Select"},{"$f":"Import!M36562","v":0},{"$f":"Import!M36762","v":0},{"$f":"Import!M36962","v":0},{"$f":"Import!M37162","v":0},{"$f":"Import!M37362","v":0}]
[63,{"$f":"Import!M35163","v":"Select"},{"$f":"Import!M35363","v":"Select"},{"$f":"Import!M35563","v":"Select"},{"$f":"Import!M35763","v":"Select"},{"$f":"Import!M35963","v":"Select"},{"$f":"Import!M36163","v":"Select"},{"$f":"Import!M36363","v":"Select"},{"$f":"Import!M36563","v":0},{"$f":"Import!M36763","v":0},{"$f":"Import!M36963","v":0},{"$f":"Import!M37163","v":0},{"$f":"Import!M37363","v":0}]
[64,{"$f":"Import!M35164","v":"Select"},{"$f":"Import!M35364","v":"Select"},{"$f":"Import!M35564","v":"Select"},{"$f":"Import!M35764","v":"Select"},{"$f":"Import!M35964","v":"Select"},{"$f":"Import!M36164","v":"Select"},{"$f":"Import!M36364","v":"Select"},{"$f":"Import!M36564","v":0},{"$f":"Import!M36764","v":0},{"$f":"Import!M36964","v":0},{"$f":"Import!M37164","v":0},{"$f":"Import!M37364","v":0}]
[65,{"$f":"Import!M35165","v":"Select"},{"$f":"Import!M35365","v":"Select"},{"$f":"Import!M35565","v":"Select"},{"$f":"Import!M35765","v":"Select"},{"$f":"Import!M35965","v":"Select"},{"$f":"Import!M36165","v":"Select"},{"$f":"Import!M36365","v":"Select"},{"$f":"Import!M36565","v":0},{"$f":"Import!M36765","v":0},{"$f":"Import!M36965","v":0},{"$f":"Import!M37165","v":0},{"$f":"Import!M37365","v":0}]
[66,{"$f":"Import!M35166","v":"Select"},{"$f":"Import!M35366","v":"Select"},{"$f":"Import!M35566","v":"Select"},{"$f":"Import!M35766","v":"Select"},{"$f":"Import!M35966","v":"Select"},{"$f":"Import!M36166","v":"Select"},{"$f":"Import!M36366","v":"Select"},{"$f":"Import!M36566","v":0},{"$f":"Import!M36766","v":0},{"$f":"Import!M36966","v":0},{"$f":"Import!M37166","v":0},{"$f":"Import!M37366","v":0}]
[{"$f":"A1625+1","v":67},{"$f":"Import!M35167","v":"Select"},{"$f":"Import!M35367","v":"Select"},{"$f":"Import!M35567","v":"Select"},{"$f":"Import!M35767","v":"Select"},{"$f":"Import!M35967","v":"Select"},{"$f":"Import!M36167","v":"Select"},{"$f":"Import!M36367","v":"Select"},{"$f":"Import!M36567","v":0},{"$f":"Import!M36767","v":0},{"$f":"Import!M36967","v":0},{"$f":"Import!M37167","v":0},{"$f":"Import!M37367","v":0}]
[68,{"$f":"Import!M35168","v":"Select"},{"$f":"Import!M35368","v":"Select"},{"$f":"Import!M35568","v":"Select"},{"$f":"Import!M35768","v":"Select"},{"$f":"Import!M35968","v":"Select"},{"$f":"Import!M36168","v":"Select"},{"$f":"Import!M36368","v":"Select"},{"$f":"Import!M36568","v":0},{"$f":"Import!M36768","v":0},{"$f":"Import!M36968","v":0},{"$f":"Import!M37168","v":0},{"$f":"Import!M37368","v":0}]
[69,{"$f":"Import!M35169","v":"Select"},{"$f":"Import!M35369","v":"Select"},{"$f":"Import!M35569","v":"Select"},{"$f":"Import!M35769","v":"Select"},{"$f":"Import!M35969","v":"Select"},{"$f":"Import!M36169","v":"Select"},{"$f":"Import!M36369","v":"Select"},{"$f":"Import!M36569","v":0},{"$f":"Import!M36769","v":0},{"$f":"Import!M36969","v":0},{"$f":"Import!M37169","v":0},{"$f":"Import!M37369","v":0}]
[70,{"$f":"Import!M35170","v":"Select"},{"$f":"Import!M35370","v":"Select"},{"$f":"Import!M35570","v":"Select"},{"$f":"Import!M35770","v":"Select"},{"$f":"Import!M35970","v":"Select"},{"$f":"Import!M36170","v":"Select"},{"$f":"Import!M36370","v":"Select"},{"$f":"Import!M36570","v":0},{"$f":"Import!M36770","v":0},{"$f":"Import!M36970","v":0},{"$f":"Import!M37170","v":0},{"$f":"Import!M37370","v":0}]
[71,{"$f":"Import!M35171","v":"Select"},{"$f":"Import!M35371","v":"Select"},{"$f":"Import!M35571","v":"Select"},{"$f":"Import!M35771","v":"Select"},{"$f":"Import!M35971","v":"Select"},{"$f":"Import!M36171","v":"Select"},{"$f":"Import!M36371","v":"Select"},{"$f":"Import!M36571","v":0},{"$f":"Import!M36771","v":0},{"$f":"Import!M36971","v":0},{"$f":"Import!M37171","v":0},{"$f":"Import!M37371","v":0}]
[72,{"$f":"Import!M35172","v":"Select"},{"$f":"Import!M35372","v":"Select"},{"$f":"Import!M35572","v":"Select"},{"$f":"Import!M35772","v":"Select"},{"$f":"Import!M35972","v":"Select"},{"$f":"Import!M36172","v":"Select"},{"$f":"Import!M36372","v":"Select"},{"$f":"Import!M36572","v":0},{"$f":"Import!M36772","v":0},{"$f":"Import!M36972","v":0},{"$f":"Import!M37172","v":0},{"$f":"Import!M37372","v":0}]
[73,{"$f":"Import!M35173","v":"Select"},{"$f":"Import!M35373","v":"Select"},{"$f":"Import!M35573","v":"Select"},{"$f":"Import!M35773","v":"Select"},{"$f":"Import!M35973","v":"Select"},{"$f":"Import!M36173","v":"Select"},{"$f":"Import!M36373","v":"Select"},{"$f":"Import!M36573","v":0},{"$f":"Import!M36773","v":0},{"$f":"Import!M36973","v":0},{"$f":"Import!M37173","v":0},{"$f":"Import!M37373","v":0}]
[74,{"$f":"Import!M35174","v":"Select"},{"$f":"Import!M35374","v":"Select"},{"$f":"Import!M35574","v":"Select"},{"$f":"Import!M35774","v":"Select"},{"$f":"Import!M35974","v":"Select"},{"$f":"Import!M36174","v":"Select"},{"$f":"Import!M36374","v":"Select"},{"$f":"Import!M36574","v":0},{"$f":"Import!M36774","v":0},{"$f":"Import!M36974","v":0},{"$f":"Import!M37174","v":0},{"$f":"Import!M37374","v":0}]
[75,{"$f":"Import!M35175","v":"Select"},{"$f":"Import!M35375","v":"Select"},{"$f":"Import!M35575","v":"Select"},{"$f":"Import!M35775","v":"Select"},{"$f":"Import!M35975","v":"Select"},{"$f":"Import!M36175","v":"Select"},{"$f":"Import!M36375","v":"Select"},{"$f":"Import!M36575","v":0},{"$f":"Import!M36775","v":0},{"$f":"Import!M36975","v":0},{"$f":"Import!M37175","v":0},{"$f":"Import!M37375","v":0}]
[76,{"$f":"Import!M35176","v":"Select"},{"$f":"Import!M35376","v":"Select"},{"$f":"Import!M35576","v":"Select"},{"$f":"Import!M35776","v":"Select"},{"$f":"Import!M35976","v":"Select"},{"$f":"Import!M36176","v":"Select"},{"$f":"Import!M36376","v":"Select"},{"$f":"Import!M36576","v":0},{"$f":"Import!M36776","v":0},{"$f":"Import!M36976","v":0},{"$f":"Import!M37176","v":0},{"$f":"Import!M37376","v":0}]
[77,{"$f":"Import!M35177","v":"Select"},{"$f":"Import!M35377","v":"Select"},{"$f":"Import!M35577","v":"Select"},{"$f":"Import!M35777","v":"Select"},{"$f":"Import!M35977","v":"Select"},{"$f":"Import!M36177","v":"Select"},{"$f":"Import!M36377","v":"Select"},{"$f":"Import!M36577","v":0},{"$f":"Import!M36777","v":0},{"$f":"Import!M36977","v":0},{"$f":"Import!M37177","v":0},{"$f":"Import!M37377","v":0}]
[78,{"$f":"Import!M35178","v":"Select"},{"$f":"Import!M35378","v":"Select"},{"$f":"Import!M35578","v":"Select"},{"$f":"Import!M35778","v":"Select"},{"$f":"Import!M35978","v":"Select"},{"$f":"Import!M36178","v":"Select"},{"$f":"Import!M36378","v":"Select"},{"$f":"Import!M36578","v":0},{"$f":"Import!M36778","v":0},{"$f":"Import!M36978","v":0},{"$f":"Import!M37178","v":0},{"$f":"Import!M37378","v":0}]
[79,{"$f":"Import!M35179","v":"Select"},{"$f":"Import!M35379","v":"Select"},{"$f":"Import!M35579","v":"Select"},{"$f":"Import!M35779","v":"Select"},{"$f":"Import!M35979","v":"Select"},{"$f":"Import!M36179","v":"Select"},{"$f":"Import!M36379","v":"Select"},{"$f":"Import!M36579","v":0},{"$f":"Import!M36779","v":0},{"$f":"Import!M36979","v":0},{"$f":"Import!M37179","v":0},{"$f":"Import!M37379","v":0}]
[80,{"$f":"Import!M35180","v":"Select"},{"$f":"Import!M35380","v":"Select"},{"$f":"Import!M35580","v":"Select"},{"$f":"Import!M35780","v":"Select"},{"$f":"Import!M35980","v":"Select"},{"$f":"Import!M36180","v":"Select"},{"$f":"Import!M36380","v":"Select"},{"$f":"Import!M36580","v":0},{"$f":"Import!M36780","v":0},{"$f":"Import!M36980","v":0},{"$f":"Import!M37180","v":0},{"$f":"Import!M37380","v":0}]
[81,{"$f":"Import!M35181","v":"Select"},{"$f":"Import!M35381","v":"Select"},{"$f":"Import!M35581","v":"Select"},{"$f":"Import!M35781","v":"Select"},{"$f":"Import!M35981","v":"Select"},{"$f":"Import!M36181","v":"Select"},{"$f":"Import!M36381","v":"Select"},{"$f":"Import!M36581","v":0},{"$f":"Import!M36781","v":0},{"$f":"Import!M36981","v":0},{"$f":"Import!M37181","v":0},{"$f":"Import!M37381","v":0}]
[82,{"$f":"Import!M35182","v":"Select"},{"$f":"Import!M35382","v":"Select"},{"$f":"Import!M35582","v":"Select"},{"$f":"Import!M35782","v":"Select"},{"$f":"Import!M35982","v":"Select"},{"$f":"Import!M36182","v":"Select"},{"$f":"Import!M36382","v":"Select"},{"$f":"Import!M36582","v":0},{"$f":"Import!M36782","v":0},{"$f":"Import!M36982","v":0},{"$f":"Import!M37182","v":0},{"$f":"Import!M37382","v":0}]
[83,{"$f":"Import!M35183","v":"Select"},{"$f":"Import!M35383","v":"Select"},{"$f":"Import!M35583","v":"Select"},{"$f":"Import!M35783","v":"Select"},{"$f":"Import!M35983","v":"Select"},{"$f":"Import!M36183","v":"Select"},{"$f":"Import!M36383","v":"Select"},{"$f":"Import!M36583","v":0},{"$f":"Import!M36783","v":0},{"$f":"Import!M36983","v":0},{"$f":"Import!M37183","v":0},{"$f":"Import!M37383","v":0}]
[84,{"$f":"Import!M35184","v":"Select"},{"$f":"Import!M35384","v":"Select"},{"$f":"Import!M35584","v":"Select"},{"$f":"Import!M35784","v":"Select"},{"$f":"Import!M35984","v":"Select"},{"$f":"Import!M36184","v":"Select"},{"$f":"Import!M36384","v":"Select"},{"$f":"Import!M36584","v":0},{"$f":"Import!M36784","v":0},{"$f":"Import!M36984","v":0},{"$f":"Import!M37184","v":0},{"$f":"Import!M37384","v":0}]
[85,{"$f":"Import!M35185","v":"Select"},{"$f":"Import!M35385","v":"Select"},{"$f":"Import!M35585","v":"Select"},{"$f":"Import!M35785","v":"Select"},{"$f":"Import!M35985","v":"Select"},{"$f":"Import!M36185","v":"Select"},{"$f":"Import!M36385","v":"Select"},{"$f":"Import!M36585","v":0},{"$f":"Import!M36785","v":0},{"$f":"Import!M36985","v":0},{"$f":"Import!M37185","v":0},{"$f":"Import!M37385","v":0}]
[86,{"$f":"Import!M35186","v":"Select"},{"$f":"Import!M35386","v":"Select"},{"$f":"Import!M35586","v":"Select"},{"$f":"Import!M35786","v":"Select"},{"$f":"Import!M35986","v":"Select"},{"$f":"Import!M36186","v":"Select"},{"$f":"Import!M36386","v":"Select"},{"$f":"Import!M36586","v":0},{"$f":"Import!M36786","v":0},{"$f":"Import!M36986","v":0},{"$f":"Import!M37186","v":0},{"$f":"Import!M37386","v":0}]
[87,{"$f":"Import!M35187","v":"Select"},{"$f":"Import!M35387","v":"Select"},{"$f":"Import!M35587","v":"Select"},{"$f":"Import!M35787","v":"Select"},{"$f":"Import!M35987","v":"Select"},{"$f":"Import!M36187","v":"Select"},{"$f":"Import!M36387","v":"Select"},{"$f":"Import!M36587","v":0},{"$f":"Import!M36787","v":0},{"$f":"Import!M36987","v":0},{"$f":"Import!M37187","v":0},{"$f":"Import!M37387","v":0}]
[88,{"$f":"Import!M35188","v":"Select"},{"$f":"Import!M35388","v":"Select"},{"$f":"Import!M35588","v":"Select"},{"$f":"Import!M35788","v":"Select"},{"$f":"Import!M35988","v":"Select"},{"$f":"Import!M36188","v":"Select"},{"$f":"Import!M36388","v":"Select"},{"$f":"Import!M36588","v":0},{"$f":"Import!M36788","v":0},{"$f":"Import!M36988","v":0},{"$f":"Import!M37188","v":0},{"$f":"Import!M37388","v":0}]
[89,{"$f":"Import!M35189","v":"Select"},{"$f":"Import!M35389","v":"Select"},{"$f":"Import!M35589","v":"Select"},{"$f":"Import!M35789","v":"Select"},{"$f":"Import!M35989","v":"Select"},{"$f":"Import!M36189","v":"Select"},{"$f":"Import!M36389","v":"Select"},{"$f":"Import!M36589","v":0},{"$f":"Import!M36789","v":0},{"$f":"Import!M36989","v":0},{"$f":"Import!M37189","v":0},{"$f":"Import!M37389","v":0}]
[90,{"$f":"Import!M35190","v":"Select"},{"$f":"Import!M35390","v":"Select"},{"$f":"Import!M35590","v":"Select"},{"$f":"Import!M35790","v":"Select"},{"$f":"Import!M35990","v":"Select"},{"$f":"Import!M36190","v":"Select"},{"$f":"Import!M36390","v":"Select"},{"$f":"Import!M36590","v":0},{"$f":"Import!M36790","v":0},{"$f":"Import!M36990","v":0},{"$f":"Import!M37190","v":0},{"$f":"Import!M37390","v":0}]
[91,{"$f":"Import!M35191","v":"Select"},{"$f":"Import!M35391","v":"Select"},{"$f":"Import!M35591","v":"Select"},{"$f":"Import!M35791","v":"Select"},{"$f":"Import!M35991","v":"Select"},{"$f":"Import!M36191","v":"Select"},{"$f":"Import!M36391","v":"Select"},{"$f":"Import!M36591","v":0},{"$f":"Import!M36791","v":0},{"$f":"Import!M36991","v":0},{"$f":"Import!M37191","v":0},{"$f":"Import!M37391","v":0}]
[92,{"$f":"Import!M35192","v":"Select"},{"$f":"Import!M35392","v":"Select"},{"$f":"Import!M35592","v":"Select"},{"$f":"Import!M35792","v":"Select"},{"$f":"Import!M35992","v":"Select"},{"$f":"Import!M36192","v":"Select"},{"$f":"Import!M36392","v":"Select"},{"$f":"Import!M36592","v":0},{"$f":"Import!M36792","v":0},{"$f":"Import!M36992","v":0},{"$f":"Import!M37192","v":0},{"$f":"Import!M37392","v":0}]
[93,{"$f":"Import!M35193","v":"Select"},{"$f":"Import!M35393","v":"Select"},{"$f":"Import!M35593","v":"Select"},{"$f":"Import!M35793","v":"Select"},{"$f":"Import!M35993","v":"Select"},{"$f":"Import!M36193","v":"Select"},{"$f":"Import!M36393","v":"Select"},{"$f":"Import!M36593","v":0},{"$f":"Import!M36793","v":0},{"$f":"Import!M36993","v":0},{"$f":"Import!M37193","v":0},{"$f":"Import!M37393","v":0}]
[94,{"$f":"Import!M35194","v":"Select"},{"$f":"Import!M35394","v":"Select"},{"$f":"Import!M35594","v":"Select"},{"$f":"Import!M35794","v":"Select"},{"$f":"Import!M35994","v":"Select"},{"$f":"Import!M36194","v":"Select"},{"$f":"Import!M36394","v":"Select"},{"$f":"Import!M36594","v":0},{"$f":"Import!M36794","v":0},{"$f":"Import!M36994","v":0},{"$f":"Import!M37194","v":0},{"$f":"Import!M37394","v":0}]
[95,{"$f":"Import!M35195","v":"Select"},{"$f":"Import!M35395","v":"Select"},{"$f":"Import!M35595","v":"Select"},{"$f":"Import!M35795","v":"Select"},{"$f":"Import!M35995","v":"Select"},{"$f":"Import!M36195","v":"Select"},{"$f":"Import!M36395","v":"Select"},{"$f":"Import!M36595","v":0},{"$f":"Import!M36795","v":0},{"$f":"Import!M36995","v":0},{"$f":"Import!M37195","v":0},{"$f":"Import!M37395","v":0}]
[96,{"$f":"Import!M35196","v":"Select"},{"$f":"Import!M35396","v":"Select"},{"$f":"Import!M35596","v":"Select"},{"$f":"Import!M35796","v":"Select"},{"$f":"Import!M35996","v":"Select"},{"$f":"Import!M36196","v":"Select"},{"$f":"Import!M36396","v":"Select"},{"$f":"Import!M36596","v":0},{"$f":"Import!M36796","v":0},{"$f":"Import!M36996","v":0},{"$f":"Import!M37196","v":0},{"$f":"Import!M37396","v":0}]
[97,{"$f":"Import!M35197","v":"Select"},{"$f":"Import!M35397","v":"Select"},{"$f":"Import!M35597","v":"Select"},{"$f":"Import!M35797","v":"Select"},{"$f":"Import!M35997","v":"Select"},{"$f":"Import!M36197","v":"Select"},{"$f":"Import!M36397","v":"Select"},{"$f":"Import!M36597","v":0},{"$f":"Import!M36797","v":0},{"$f":"Import!M36997","v":0},{"$f":"Import!M37197","v":0},{"$f":"Import!M37397","v":0}]
[98,{"$f":"Import!M35198","v":"Select"},{"$f":"Import!M35398","v":"Select"},{"$f":"Import!M35598","v":"Select"},{"$f":"Import!M35798","v":"Select"},{"$f":"Import!M35998","v":"Select"},{"$f":"Import!M36198","v":"Select"},{"$f":"Import!M36398","v":"Select"},{"$f":"Import!M36598","v":0},{"$f":"Import!M36798","v":0},{"$f":"Import!M36998","v":0},{"$f":"Import!M37198","v":0},{"$f":"Import!M37398","v":0}]
[99,{"$f":"Import!M35199","v":"Select"},{"$f":"Import!M35399","v":"Select"},{"$f":"Import!M35599","v":"Select"},{"$f":"Import!M35799","v":"Select"},{"$f":"Import!M35999","v":"Select"},{"$f":"Import!M36199","v":"Select"},{"$f":"Import!M36399","v":"Select"},{"$f":"Import!M36599","v":0},{"$f":"Import!M36799","v":0},{"$f":"Import!M36999","v":0},{"$f":"Import!M37199","v":0},{"$f":"Import!M37399","v":0}]
[100,{"$f":"Import!M35200","v":"Select"},{"$f":"Import!M35400","v":"Select"},{"$f":"Import!M35600","v":"Select"},{"$f":"Import!M35800","v":"Select"},{"$f":"Import!M36000","v":"Select"},{"$f":"Import!M36200","v":"Select"},{"$f":"Import!M36400","v":"Select"},{"$f":"Import!M36600","v":0},{"$f":"Import!M36800","v":0},{"$f":"Import!M37000","v":0},{"$f":"Import!M37200","v":0},{"$f":"Import!M37400","v":0}]
[101,{"$f":"Import!M35201","v":"Select"},{"$f":"Import!M35401","v":"Select"},{"$f":"Import!M35601","v":"Select"},{"$f":"Import!M35801","v":"Select"},{"$f":"Import!M36001","v":"Select"},{"$f":"Import!M36201","v":"Select"},{"$f":"Import!M36401","v":"Select"},{"$f":"Import!M36601","v":0},{"$f":"Import!M36801","v":0},{"$f":"Import!M37001","v":0},{"$f":"Import!M37201","v":0},{"$f":"Import!M37401","v":0}]
[102,{"$f":"Import!M35202","v":"Select"},{"$f":"Import!M35402","v":"Select"},{"$f":"Import!M35602","v":"Select"},{"$f":"Import!M35802","v":"Select"},{"$f":"Import!M36002","v":"Select"},{"$f":"Import!M36202","v":"Select"},{"$f":"Import!M36402","v":"Select"},{"$f":"Import!M36602","v":0},{"$f":"Import!M36802","v":0},{"$f":"Import!M37002","v":0},{"$f":"Import!M37202","v":0},{"$f":"Import!M37402","v":0}]
[103,{"$f":"Import!M35203","v":"Select"},{"$f":"Import!M35403","v":"Select"},{"$f":"Import!M35603","v":"Select"},{"$f":"Import!M35803","v":"Select"},{"$f":"Import!M36003","v":"Select"},{"$f":"Import!M36203","v":"Select"},{"$f":"Import!M36403","v":"Select"},{"$f":"Import!M36603","v":0},{"$f":"Import!M36803","v":0},{"$f":"Import!M37003","v":0},{"$f":"Import!M37203","v":0},{"$f":"Import!M37403","v":0}]
[104,{"$f":"Import!M35204","v":"Select"},{"$f":"Import!M35404","v":"Select"},{"$f":"Import!M35604","v":"Select"},{"$f":"Import!M35804","v":"Select"},{"$f":"Import!M36004","v":"Select"},{"$f":"Import!M36204","v":"Select"},{"$f":"Import!M36404","v":"Select"},{"$f":"Import!M36604","v":0},{"$f":"Import!M36804","v":0},{"$f":"Import!M37004","v":0},{"$f":"Import!M37204","v":0},{"$f":"Import!M37404","v":0}]
[105,{"$f":"Import!M35205","v":"Select"},{"$f":"Import!M35405","v":"Select"},{"$f":"Import!M35605","v":"Select"},{"$f":"Import!M35805","v":"Select"},{"$f":"Import!M36005","v":"Select"},{"$f":"Import!M36205","v":"Select"},{"$f":"Import!M36405","v":"Select"},{"$f":"Import!M36605","v":0},{"$f":"Import!M36805","v":0},{"$f":"Import!M37005","v":0},{"$f":"Import!M37205","v":0},{"$f":"Import!M37405","v":0}]
[106,{"$f":"Import!M35206","v":"Select"},{"$f":"Import!M35406","v":"Select"},{"$f":"Import!M35606","v":"Select"},{"$f":"Import!M35806","v":"Select"},{"$f":"Import!M36006","v":"Select"},{"$f":"Import!M36206","v":"Select"},{"$f":"Import!M36406","v":"Select"},{"$f":"Import!M36606","v":0},{"$f":"Import!M36806","v":0},{"$f":"Import!M37006","v":0},{"$f":"Import!M37206","v":0},{"$f":"Import!M37406","v":0}]
[107,{"$f":"Import!M35207","v":"Select"},{"$f":"Import!M35407","v":"Select"},{"$f":"Import!M35607","v":"Select"},{"$f":"Import!M35807","v":"Select"},{"$f":"Import!M36007","v":"Select"},{"$f":"Import!M36207","v":"Select"},{"$f":"Import!M36407","v":"Select"},{"$f":"Import!M36607","v":0},{"$f":"Import!M36807","v":0},{"$f":"Import!M37007","v":0},{"$f":"Import!M37207","v":0},{"$f":"Import!M37407","v":0}]
[108,{"$f":"Import!M35208","v":"Select"},{"$f":"Import!M35408","v":"Select"},{"$f":"Import!M35608","v":"Select"},{"$f":"Import!M35808","v":"Select"},{"$f":"Import!M36008","v":"Select"},{"$f":"Import!M36208","v":"Select"},{"$f":"Import!M36408","v":"Select"},{"$f":"Import!M36608","v":0},{"$f":"Import!M36808","v":0},{"$f":"Import!M37008","v":0},{"$f":"Import!M37208","v":0},{"$f":"Import!M37408","v":0}]
[109,{"$f":"Import!M35209","v":"Select"},{"$f":"Import!M35409","v":"Select"},{"$f":"Import!M35609","v":"Select"},{"$f":"Import!M35809","v":"Select"},{"$f":"Import!M36009","v":"Select"},{"$f":"Import!M36209","v":"Select"},{"$f":"Import!M36409","v":"Select"},{"$f":"Import!M36609","v":0},{"$f":"Import!M36809","v":0},{"$f":"Import!M37009","v":0},{"$f":"Import!M37209","v":0},{"$f":"Import!M37409","v":0}]
[110,{"$f":"Import!M35210","v":"Select"},{"$f":"Import!M35410","v":"Select"},{"$f":"Import!M35610","v":"Select"},{"$f":"Import!M35810","v":"Select"},{"$f":"Import!M36010","v":"Select"},{"$f":"Import!M36210","v":"Select"},{"$f":"Import!M36410","v":"Select"},{"$f":"Import!M36610","v":0},{"$f":"Import!M36810","v":0},{"$f":"Import!M37010","v":0},{"$f":"Import!M37210","v":0},{"$f":"Import!M37410","v":0}]
[111,{"$f":"Import!M35211","v":"Select"},{"$f":"Import!M35411","v":"Select"},{"$f":"Import!M35611","v":"Select"},{"$f":"Import!M35811","v":"Select"},{"$f":"Import!M36011","v":"Select"},{"$f":"Import!M36211","v":"Select"},{"$f":"Import!M36411","v":"Select"},{"$f":"Import!M36611","v":0},{"$f":"Import!M36811","v":0},{"$f":"Import!M37011","v":0},{"$f":"Import!M37211","v":0},{"$f":"Import!M37411","v":0}]
[112,{"$f":"Import!M35212","v":"Select"},{"$f":"Import!M35412","v":"Select"},{"$f":"Import!M35612","v":"Select"},{"$f":"Import!M35812","v":"Select"},{"$f":"Import!M36012","v":"Select"},{"$f":"Import!M36212","v":"Select"},{"$f":"Import!M36412","v":"Select"},{"$f":"Import!M36612","v":0},{"$f":"Import!M36812","v":0},{"$f":"Import!M37012","v":0},{"$f":"Import!M37212","v":0},{"$f":"Import!M37412","v":0}]
[113,{"$f":"Import!M35213","v":"Select"},{"$f":"Import!M35413","v":"Select"},{"$f":"Import!M35613","v":"Select"},{"$f":"Import!M35813","v":"Select"},{"$f":"Import!M36013","v":"Select"},{"$f":"Import!M36213","v":"Select"},{"$f":"Import!M36413","v":"Select"},{"$f":"Import!M36613","v":0},{"$f":"Import!M36813","v":0},{"$f":"Import!M37013","v":0},{"$f":"Import!M37213","v":0},{"$f":"Import!M37413","v":0}]
[114,{"$f":"Import!M35214","v":"Select"},{"$f":"Import!M35414","v":"Select"},{"$f":"Import!M35614","v":"Select"},{"$f":"Import!M35814","v":"Select"},{"$f":"Import!M36014","v":"Select"},{"$f":"Import!M36214","v":"Select"},{"$f":"Import!M36414","v":"Select"},{"$f":"Import!M36614","v":0},{"$f":"Import!M36814","v":0},{"$f":"Import!M37014","v":0},{"$f":"Import!M37214","v":0},{"$f":"Import!M37414","v":0}]
[115,{"$f":"Import!M35215","v":"Select"},{"$f":"Import!M35415","v":"Select"},{"$f":"Import!M35615","v":"Select"},{"$f":"Import!M35815","v":"Select"},{"$f":"Import!M36015","v":"Select"},{"$f":"Import!M36215","v":"Select"},{"$f":"Import!M36415","v":"Select"},{"$f":"Import!M36615","v":0},{"$f":"Import!M36815","v":0},{"$f":"Import!M37015","v":0},{"$f":"Import!M37215","v":0},{"$f":"Import!M37415","v":0}]
[116,{"$f":"Import!M35216","v":"Select"},{"$f":"Import!M35416","v":"Select"},{"$f":"Import!M35616","v":"Select"},{"$f":"Import!M35816","v":"Select"},{"$f":"Import!M36016","v":"Select"},{"$f":"Import!M36216","v":"Select"},{"$f":"Import!M36416","v":"Select"},{"$f":"Import!M36616","v":0},{"$f":"Import!M36816","v":0},{"$f":"Import!M37016","v":0},{"$f":"Import!M37216","v":0},{"$f":"Import!M37416","v":0}]
[117,{"$f":"Import!M35217","v":"Select"},{"$f":"Import!M35417","v":"Select"},{"$f":"Import!M35617","v":"Select"},{"$f":"Import!M35817","v":"Select"},{"$f":"Import!M36017","v":"Select"},{"$f":"Import!M36217","v":"Select"},{"$f":"Import!M36417","v":"Select"},{"$f":"Import!M36617","v":0},{"$f":"Import!M36817","v":0},{"$f":"Import!M37017","v":0},{"$f":"Import!M37217","v":0},{"$f":"Import!M37417","v":0}]
[118,{"$f":"Import!M35218","v":"Select"},{"$f":"Import!M35418","v":"Select"},{"$f":"Import!M35618","v":"Select"},{"$f":"Import!M35818","v":"Select"},{"$f":"Import!M36018","v":"Select"},{"$f":"Import!M36218","v":"Select"},{"$f":"Import!M36418","v":"Select"},{"$f":"Import!M36618","v":0},{"$f":"Import!M36818","v":0},{"$f":"Import!M37018","v":0},{"$f":"Import!M37218","v":0},{"$f":"Import!M37418","v":0}]
[119,{"$f":"Import!M35219","v":"Select"},{"$f":"Import!M35419","v":"Select"},{"$f":"Import!M35619","v":"Select"},{"$f":"Import!M35819","v":"Select"},{"$f":"Import!M36019","v":"Select"},{"$f":"Import!M36219","v":"Select"},{"$f":"Import!M36419","v":"Select"},{"$f":"Import!M36619","v":0},{"$f":"Import!M36819","v":0},{"$f":"Import!M37019","v":0},{"$f":"Import!M37219","v":0},{"$f":"Import!M37419","v":0}]
[120,{"$f":"Import!M35220","v":"Select"},{"$f":"Import!M35420","v":"Select"},{"$f":"Import!M35620","v":"Select"},{"$f":"Import!M35820","v":"Select"},{"$f":"Import!M36020","v":"Select"},{"$f":"Import!M36220","v":"Select"},{"$f":"Import!M36420","v":"Select"},{"$f":"Import!M36620","v":0},{"$f":"Import!M36820","v":0},{"$f":"Import!M37020","v":0},{"$f":"Import!M37220","v":0},{"$f":"Import!M37420","v":0}]
[121,{"$f":"Import!M35221","v":"Select"},{"$f":"Import!M35421","v":"Select"},{"$f":"Import!M35621","v":"Select"},{"$f":"Import!M35821","v":"Select"},{"$f":"Import!M36021","v":"Select"},{"$f":"Import!M36221","v":"Select"},{"$f":"Import!M36421","v":"Select"},{"$f":"Import!M36621","v":0},{"$f":"Import!M36821","v":0},{"$f":"Import!M37021","v":0},{"$f":"Import!M37221","v":0},{"$f":"Import!M37421","v":0}]
[122,{"$f":"Import!M35222","v":"Select"},{"$f":"Import!M35422","v":"Select"},{"$f":"Import!M35622","v":"Select"},{"$f":"Import!M35822","v":"Select"},{"$f":"Import!M36022","v":"Select"},{"$f":"Import!M36222","v":"Select"},{"$f":"Import!M36422","v":"Select"},{"$f":"Import!M36622","v":0},{"$f":"Import!M36822","v":0},{"$f":"Import!M37022","v":0},{"$f":"Import!M37222","v":0},{"$f":"Import!M37422","v":0}]
[123,{"$f":"Import!M35223","v":"Select"},{"$f":"Import!M35423","v":"Select"},{"$f":"Import!M35623","v":"Select"},{"$f":"Import!M35823","v":"Select"},{"$f":"Import!M36023","v":"Select"},{"$f":"Import!M36223","v":"Select"},{"$f":"Import!M36423","v":"Select"},{"$f":"Import!M36623","v":0},{"$f":"Import!M36823","v":0},{"$f":"Import!M37023","v":0},{"$f":"Import!M37223","v":0},{"$f":"Import!M37423","v":0}]
[124,{"$f":"Import!M35224","v":"Select"},{"$f":"Import!M35424","v":"Select"},{"$f":"Import!M35624","v":"Select"},{"$f":"Import!M35824","v":"Select"},{"$f":"Import!M36024","v":"Select"},{"$f":"Import!M36224","v":"Select"},{"$f":"Import!M36424","v":"Select"},{"$f":"Import!M36624","v":0},{"$f":"Import!M36824","v":0},{"$f":"Import!M37024","v":0},{"$f":"Import!M37224","v":0},{"$f":"Import!M37424","v":0}]
[125,{"$f":"Import!M35225","v":"Select"},{"$f":"Import!M35425","v":"Select"},{"$f":"Import!M35625","v":"Select"},{"$f":"Import!M35825","v":"Select"},{"$f":"Import!M36025","v":"Select"},{"$f":"Import!M36225","v":"Select"},{"$f":"Import!M36425","v":"Select"},{"$f":"Import!M36625","v":0},{"$f":"Import!M36825","v":0},{"$f":"Import!M37025","v":0},{"$f":"Import!M37225","v":0},{"$f":"Import!M37425","v":0}]
[126,{"$f":"Import!M35226","v":"Select"},{"$f":"Import!M35426","v":"Select"},{"$f":"Import!M35626","v":"Select"},{"$f":"Import!M35826","v":"Select"},{"$f":"Import!M36026","v":"Select"},{"$f":"Import!M36226","v":"Select"},{"$f":"Import!M36426","v":"Select"},{"$f":"Import!M36626","v":0},{"$f":"Import!M36826","v":0},{"$f":"Import!M37026","v":0},{"$f":"Import!M37226","v":0},{"$f":"Import!M37426","v":0}]
[127,{"$f":"Import!M35227","v":"Select"},{"$f":"Import!M35427","v":"Select"},{"$f":"Import!M35627","v":"Select"},{"$f":"Import!M35827","v":"Select"},{"$f":"Import!M36027","v":"Select"},{"$f":"Import!M36227","v":"Select"},{"$f":"Import!M36427","v":"Select"},{"$f":"Import!M36627","v":0},{"$f":"Import!M36827","v":0},{"$f":"Import!M37027","v":0},{"$f":"Import!M37227","v":0},{"$f":"Import!M37427","v":0}]
[128,{"$f":"Import!M35228","v":"Select"},{"$f":"Import!M35428","v":"Select"},{"$f":"Import!M35628","v":"Select"},{"$f":"Import!M35828","v":"Select"},{"$f":"Import!M36028","v":"Select"},{"$f":"Import!M36228","v":"Select"},{"$f":"Import!M36428","v":"Select"},{"$f":"Import!M36628","v":0},{"$f":"Import!M36828","v":0},{"$f":"Import!M37028","v":0},{"$f":"Import!M37228","v":0},{"$f":"Import!M37428","v":0}]
[129,{"$f":"Import!M35229","v":"Select"},{"$f":"Import!M35429","v":"Select"},{"$f":"Import!M35629","v":"Select"},{"$f":"Import!M35829","v":"Select"},{"$f":"Import!M36029","v":"Select"},{"$f":"Import!M36229","v":"Select"},{"$f":"Import!M36429","v":"Select"},{"$f":"Import!M36629","v":0},{"$f":"Import!M36829","v":0},{"$f":"Import!M37029","v":0},{"$f":"Import!M37229","v":0},{"$f":"Import!M37429","v":0}]
[130,{"$f":"Import!M35230","v":"Select"},{"$f":"Import!M35430","v":"Select"},{"$f":"Import!M35630","v":"Select"},{"$f":"Import!M35830","v":"Select"},{"$f":"Import!M36030","v":"Select"},{"$f":"Import!M36230","v":"Select"},{"$f":"Import!M36430","v":"Select"},{"$f":"Import!M36630","v":0},{"$f":"Import!M36830","v":0},{"$f":"Import!M37030","v":0},{"$f":"Import!M37230","v":0},{"$f":"Import!M37430","v":0}]
[{"$f":"A1689+1","v":131},{"$f":"Import!M35231","v":"Select"},{"$f":"Import!M35431","v":"Select"},{"$f":"Import!M35631","v":"Select"},{"$f":"Import!M35831","v":"Select"},{"$f":"Import!M36031","v":"Select"},{"$f":"Import!M36231","v":"Select"},{"$f":"Import!M36431","v":"Select"},{"$f":"Import!M36631","v":0},{"$f":"Import!M36831","v":0},{"$f":"Import!M37031","v":0},{"$f":"Import!M37231","v":0},{"$f":"Import!M37431","v":0}]
[132,{"$f":"Import!M35232","v":"Select"},{"$f":"Import!M35432","v":"Select"},{"$f":"Import!M35632","v":"Select"},{"$f":"Import!M35832","v":"Select"},{"$f":"Import!M36032","v":"Select"},{"$f":"Import!M36232","v":"Select"},{"$f":"Import!M36432","v":"Select"},{"$f":"Import!M36632","v":0},{"$f":"Import!M36832","v":0},{"$f":"Import!M37032","v":0},{"$f":"Import!M37232","v":0},{"$f":"Import!M37432","v":0}]
[133,{"$f":"Import!M35233","v":"Select"},{"$f":"Import!M35433","v":"Select"},{"$f":"Import!M35633","v":"Select"},{"$f":"Import!M35833","v":"Select"},{"$f":"Import!M36033","v":"Select"},{"$f":"Import!M36233","v":"Select"},{"$f":"Import!M36433","v":"Select"},{"$f":"Import!M36633","v":0},{"$f":"Import!M36833","v":0},{"$f":"Import!M37033","v":0},{"$f":"Import!M37233","v":0},{"$f":"Import!M37433","v":0}]
[134,{"$f":"Import!M35234","v":"Select"},{"$f":"Import!M35434","v":"Select"},{"$f":"Import!M35634","v":"Select"},{"$f":"Import!M35834","v":"Select"},{"$f":"Import!M36034","v":"Select"},{"$f":"Import!M36234","v":"Select"},{"$f":"Import!M36434","v":"Select"},{"$f":"Import!M36634","v":0},{"$f":"Import!M36834","v":0},{"$f":"Import!M37034","v":0},{"$f":"Import!M37234","v":0},{"$f":"Import!M37434","v":0}]
[135,{"$f":"Import!M35235","v":"Select"},{"$f":"Import!M35435","v":"Select"},{"$f":"Import!M35635","v":"Select"},{"$f":"Import!M35835","v":"Select"},{"$f":"Import!M36035","v":"Select"},{"$f":"Import!M36235","v":"Select"},{"$f":"Import!M36435","v":"Select"},{"$f":"Import!M36635","v":0},{"$f":"Import!M36835","v":0},{"$f":"Import!M37035","v":0},{"$f":"Import!M37235","v":0},{"$f":"Import!M37435","v":0}]
[136,{"$f":"Import!M35236","v":"Select"},{"$f":"Import!M35436","v":"Select"},{"$f":"Import!M35636","v":"Select"},{"$f":"Import!M35836","v":"Select"},{"$f":"Import!M36036","v":"Select"},{"$f":"Import!M36236","v":"Select"},{"$f":"Import!M36436","v":"Select"},{"$f":"Import!M36636","v":0},{"$f":"Import!M36836","v":0},{"$f":"Import!M37036","v":0},{"$f":"Import!M37236","v":0},{"$f":"Import!M37436","v":0}]
[137,{"$f":"Import!M35237","v":"Select"},{"$f":"Import!M35437","v":"Select"},{"$f":"Import!M35637","v":"Select"},{"$f":"Import!M35837","v":"Select"},{"$f":"Import!M36037","v":"Select"},{"$f":"Import!M36237","v":"Select"},{"$f":"Import!M36437","v":"Select"},{"$f":"Import!M36637","v":0},{"$f":"Import!M36837","v":0},{"$f":"Import!M37037","v":0},{"$f":"Import!M37237","v":0},{"$f":"Import!M37437","v":0}]
[138,{"$f":"Import!M35238","v":"Select"},{"$f":"Import!M35438","v":"Select"},{"$f":"Import!M35638","v":"Select"},{"$f":"Import!M35838","v":"Select"},{"$f":"Import!M36038","v":"Select"},{"$f":"Import!M36238","v":"Select"},{"$f":"Import!M36438","v":"Select"},{"$f":"Import!M36638","v":0},{"$f":"Import!M36838","v":0},{"$f":"Import!M37038","v":0},{"$f":"Import!M37238","v":0},{"$f":"Import!M37438","v":0}]
[139,{"$f":"Import!M35239","v":"Select"},{"$f":"Import!M35439","v":"Select"},{"$f":"Import!M35639","v":"Select"},{"$f":"Import!M35839","v":"Select"},{"$f":"Import!M36039","v":"Select"},{"$f":"Import!M36239","v":"Select"},{"$f":"Import!M36439","v":"Select"},{"$f":"Import!M36639","v":0},{"$f":"Import!M36839","v":0},{"$f":"Import!M37039","v":0},{"$f":"Import!M37239","v":0},{"$f":"Import!M37439","v":0}]
[140,{"$f":"Import!M35240","v":"Select"},{"$f":"Import!M35440","v":"Select"},{"$f":"Import!M35640","v":"Select"},{"$f":"Import!M35840","v":"Select"},{"$f":"Import!M36040","v":"Select"},{"$f":"Import!M36240","v":"Select"},{"$f":"Import!M36440","v":"Select"},{"$f":"Import!M36640","v":0},{"$f":"Import!M36840","v":0},{"$f":"Import!M37040","v":0},{"$f":"Import!M37240","v":0},{"$f":"Import!M37440","v":0}]
[141,{"$f":"Import!M35241","v":"Select"},{"$f":"Import!M35441","v":"Select"},{"$f":"Import!M35641","v":"Select"},{"$f":"Import!M35841","v":"Select"},{"$f":"Import!M36041","v":"Select"},{"$f":"Import!M36241","v":"Select"},{"$f":"Import!M36441","v":"Select"},{"$f":"Import!M36641","v":0},{"$f":"Import!M36841","v":0},{"$f":"Import!M37041","v":0},{"$f":"Import!M37241","v":0},{"$f":"Import!M37441","v":0}]
[142,{"$f":"Import!M35242","v":"Select"},{"$f":"Import!M35442","v":"Select"},{"$f":"Import!M35642","v":"Select"},{"$f":"Import!M35842","v":"Select"},{"$f":"Import!M36042","v":"Select"},{"$f":"Import!M36242","v":"Select"},{"$f":"Import!M36442","v":"Select"},{"$f":"Import!M36642","v":0},{"$f":"Import!M36842","v":0},{"$f":"Import!M37042","v":0},{"$f":"Import!M37242","v":0},{"$f":"Import!M37442","v":0}]
[143,{"$f":"Import!M35243","v":"Select"},{"$f":"Import!M35443","v":"Select"},{"$f":"Import!M35643","v":"Select"},{"$f":"Import!M35843","v":"Select"},{"$f":"Import!M36043","v":"Select"},{"$f":"Import!M36243","v":"Select"},{"$f":"Import!M36443","v":"Select"},{"$f":"Import!M36643","v":0},{"$f":"Import!M36843","v":0},{"$f":"Import!M37043","v":0},{"$f":"Import!M37243","v":0},{"$f":"Import!M37443","v":0}]
[144,{"$f":"Import!M35244","v":"Select"},{"$f":"Import!M35444","v":"Select"},{"$f":"Import!M35644","v":"Select"},{"$f":"Import!M35844","v":"Select"},{"$f":"Import!M36044","v":"Select"},{"$f":"Import!M36244","v":"Select"},{"$f":"Import!M36444","v":"Select"},{"$f":"Import!M36644","v":0},{"$f":"Import!M36844","v":0},{"$f":"Import!M37044","v":0},{"$f":"Import!M37244","v":0},{"$f":"Import!M37444","v":0}]
[145,{"$f":"Import!M35245","v":"Select"},{"$f":"Import!M35445","v":"Select"},{"$f":"Import!M35645","v":"Select"},{"$f":"Import!M35845","v":"Select"},{"$f":"Import!M36045","v":"Select"},{"$f":"Import!M36245","v":"Select"},{"$f":"Import!M36445","v":"Select"},{"$f":"Import!M36645","v":0},{"$f":"Import!M36845","v":0},{"$f":"Import!M37045","v":0},{"$f":"Import!M37245","v":0},{"$f":"Import!M37445","v":0}]
[146,{"$f":"Import!M35246","v":"Select"},{"$f":"Import!M35446","v":"Select"},{"$f":"Import!M35646","v":"Select"},{"$f":"Import!M35846","v":"Select"},{"$f":"Import!M36046","v":"Select"},{"$f":"Import!M36246","v":"Select"},{"$f":"Import!M36446","v":"Select"},{"$f":"Import!M36646","v":0},{"$f":"Import!M36846","v":0},{"$f":"Import!M37046","v":0},{"$f":"Import!M37246","v":0},{"$f":"Import!M37446","v":0}]
[147,{"$f":"Import!M35247","v":"Select"},{"$f":"Import!M35447","v":"Select"},{"$f":"Import!M35647","v":"Select"},{"$f":"Import!M35847","v":"Select"},{"$f":"Import!M36047","v":"Select"},{"$f":"Import!M36247","v":"Select"},{"$f":"Import!M36447","v":"Select"},{"$f":"Import!M36647","v":0},{"$f":"Import!M36847","v":0},{"$f":"Import!M37047","v":0},{"$f":"Import!M37247","v":0},{"$f":"Import!M37447","v":0}]
[148,{"$f":"Import!M35248","v":"Select"},{"$f":"Import!M35448","v":"Select"},{"$f":"Import!M35648","v":"Select"},{"$f":"Import!M35848","v":"Select"},{"$f":"Import!M36048","v":"Select"},{"$f":"Import!M36248","v":"Select"},{"$f":"Import!M36448","v":"Select"},{"$f":"Import!M36648","v":0},{"$f":"Import!M36848","v":0},{"$f":"Import!M37048","v":0},{"$f":"Import!M37248","v":0},{"$f":"Import!M37448","v":0}]
[149,{"$f":"Import!M35249","v":"Select"},{"$f":"Import!M35449","v":"Select"},{"$f":"Import!M35649","v":"Select"},{"$f":"Import!M35849","v":"Select"},{"$f":"Import!M36049","v":"Select"},{"$f":"Import!M36249","v":"Select"},{"$f":"Import!M36449","v":"Select"},{"$f":"Import!M36649","v":0},{"$f":"Import!M36849","v":0},{"$f":"Import!M37049","v":0},{"$f":"Import!M37249","v":0},{"$f":"Import!M37449","v":0}]
[150,{"$f":"Import!M35250","v":"Select"},{"$f":"Import!M35450","v":"Select"},{"$f":"Import!M35650","v":"Select"},{"$f":"Import!M35850","v":"Select"},{"$f":"Import!M36050","v":"Select"},{"$f":"Import!M36250","v":"Select"},{"$f":"Import!M36450","v":"Select"},{"$f":"Import!M36650","v":0},{"$f":"Import!M36850","v":0},{"$f":"Import!M37050","v":0},{"$f":"Import!M37250","v":0},{"$f":"Import!M37450","v":0}]
[151,{"$f":"Import!M35251","v":"Select"},{"$f":"Import!M35451","v":"Select"},{"$f":"Import!M35651","v":"Select"},{"$f":"Import!M35851","v":"Select"},{"$f":"Import!M36051","v":"Select"},{"$f":"Import!M36251","v":"Select"},{"$f":"Import!M36451","v":"Select"},{"$f":"Import!M36651","v":0},{"$f":"Import!M36851","v":0},{"$f":"Import!M37051","v":0},{"$f":"Import!M37251","v":0},{"$f":"Import!M37451","v":0}]
[152,{"$f":"Import!M35252","v":"Select"},{"$f":"Import!M35452","v":"Select"},{"$f":"Import!M35652","v":"Select"},{"$f":"Import!M35852","v":"Select"},{"$f":"Import!M36052","v":"Select"},{"$f":"Import!M36252","v":"Select"},{"$f":"Import!M36452","v":"Select"},{"$f":"Import!M36652","v":0},{"$f":"Import!M36852","v":0},{"$f":"Import!M37052","v":0},{"$f":"Import!M37252","v":0},{"$f":"Import!M37452","v":0}]
[153,{"$f":"Import!M35253","v":"Select"},{"$f":"Import!M35453","v":"Select"},{"$f":"Import!M35653","v":"Select"},{"$f":"Import!M35853","v":"Select"},{"$f":"Import!M36053","v":"Select"},{"$f":"Import!M36253","v":"Select"},{"$f":"Import!M36453","v":"Select"},{"$f":"Import!M36653","v":0},{"$f":"Import!M36853","v":0},{"$f":"Import!M37053","v":0},{"$f":"Import!M37253","v":0},{"$f":"Import!M37453","v":0}]
[154,{"$f":"Import!M35254","v":"Select"},{"$f":"Import!M35454","v":"Select"},{"$f":"Import!M35654","v":"Select"},{"$f":"Import!M35854","v":"Select"},{"$f":"Import!M36054","v":"Select"},{"$f":"Import!M36254","v":"Select"},{"$f":"Import!M36454","v":"Select"},{"$f":"Import!M36654","v":0},{"$f":"Import!M36854","v":0},{"$f":"Import!M37054","v":0},{"$f":"Import!M37254","v":0},{"$f":"Import!M37454","v":0}]
[155,{"$f":"Import!M35255","v":"Select"},{"$f":"Import!M35455","v":"Select"},{"$f":"Import!M35655","v":"Select"},{"$f":"Import!M35855","v":"Select"},{"$f":"Import!M36055","v":"Select"},{"$f":"Import!M36255","v":"Select"},{"$f":"Import!M36455","v":"Select"},{"$f":"Import!M36655","v":0},{"$f":"Import!M36855","v":0},{"$f":"Import!M37055","v":0},{"$f":"Import!M37255","v":0},{"$f":"Import!M37455","v":0}]
[156,{"$f":"Import!M35256","v":"Select"},{"$f":"Import!M35456","v":"Select"},{"$f":"Import!M35656","v":"Select"},{"$f":"Import!M35856","v":"Select"},{"$f":"Import!M36056","v":"Select"},{"$f":"Import!M36256","v":"Select"},{"$f":"Import!M36456","v":"Select"},{"$f":"Import!M36656","v":0},{"$f":"Import!M36856","v":0},{"$f":"Import!M37056","v":0},{"$f":"Import!M37256","v":0},{"$f":"Import!M37456","v":0}]
[157,{"$f":"Import!M35257","v":"Select"},{"$f":"Import!M35457","v":"Select"},{"$f":"Import!M35657","v":"Select"},{"$f":"Import!M35857","v":"Select"},{"$f":"Import!M36057","v":"Select"},{"$f":"Import!M36257","v":"Select"},{"$f":"Import!M36457","v":"Select"},{"$f":"Import!M36657","v":0},{"$f":"Import!M36857","v":0},{"$f":"Import!M37057","v":0},{"$f":"Import!M37257","v":0},{"$f":"Import!M37457","v":0}]
[158,{"$f":"Import!M35258","v":"Select"},{"$f":"Import!M35458","v":"Select"},{"$f":"Import!M35658","v":"Select"},{"$f":"Import!M35858","v":"Select"},{"$f":"Import!M36058","v":"Select"},{"$f":"Import!M36258","v":"Select"},{"$f":"Import!M36458","v":"Select"},{"$f":"Import!M36658","v":0},{"$f":"Import!M36858","v":0},{"$f":"Import!M37058","v":0},{"$f":"Import!M37258","v":0},{"$f":"Import!M37458","v":0}]
[159,{"$f":"Import!M35259","v":"Select"},{"$f":"Import!M35459","v":"Select"},{"$f":"Import!M35659","v":"Select"},{"$f":"Import!M35859","v":"Select"},{"$f":"Import!M36059","v":"Select"},{"$f":"Import!M36259","v":"Select"},{"$f":"Import!M36459","v":"Select"},{"$f":"Import!M36659","v":0},{"$f":"Import!M36859","v":0},{"$f":"Import!M37059","v":0},{"$f":"Import!M37259","v":0},{"$f":"Import!M37459","v":0}]
[160,{"$f":"Import!M35260","v":"Select"},{"$f":"Import!M35460","v":"Select"},{"$f":"Import!M35660","v":"Select"},{"$f":"Import!M35860","v":"Select"},{"$f":"Import!M36060","v":"Select"},{"$f":"Import!M36260","v":"Select"},{"$f":"Import!M36460","v":"Select"},{"$f":"Import!M36660","v":0},{"$f":"Import!M36860","v":0},{"$f":"Import!M37060","v":0},{"$f":"Import!M37260","v":0},{"$f":"Import!M37460","v":0}]
[161,{"$f":"Import!M35261","v":"Select"},{"$f":"Import!M35461","v":"Select"},{"$f":"Import!M35661","v":"Select"},{"$f":"Import!M35861","v":"Select"},{"$f":"Import!M36061","v":"Select"},{"$f":"Import!M36261","v":"Select"},{"$f":"Import!M36461","v":"Select"},{"$f":"Import!M36661","v":0},{"$f":"Import!M36861","v":0},{"$f":"Import!M37061","v":0},{"$f":"Import!M37261","v":0},{"$f":"Import!M37461","v":0}]
[162,{"$f":"Import!M35262","v":"Select"},{"$f":"Import!M35462","v":"Select"},{"$f":"Import!M35662","v":"Select"},{"$f":"Import!M35862","v":"Select"},{"$f":"Import!M36062","v":"Select"},{"$f":"Import!M36262","v":"Select"},{"$f":"Import!M36462","v":"Select"},{"$f":"Import!M36662","v":0},{"$f":"Import!M36862","v":0},{"$f":"Import!M37062","v":0},{"$f":"Import!M37262","v":0},{"$f":"Import!M37462","v":0}]
[163,{"$f":"Import!M35263","v":"Select"},{"$f":"Import!M35463","v":"Select"},{"$f":"Import!M35663","v":"Select"},{"$f":"Import!M35863","v":"Select"},{"$f":"Import!M36063","v":"Select"},{"$f":"Import!M36263","v":"Select"},{"$f":"Import!M36463","v":"Select"},{"$f":"Import!M36663","v":0},{"$f":"Import!M36863","v":0},{"$f":"Import!M37063","v":0},{"$f":"Import!M37263","v":0},{"$f":"Import!M37463","v":0}]
[164,{"$f":"Import!M35264","v":"Select"},{"$f":"Import!M35464","v":"Select"},{"$f":"Import!M35664","v":"Select"},{"$f":"Import!M35864","v":"Select"},{"$f":"Import!M36064","v":"Select"},{"$f":"Import!M36264","v":"Select"},{"$f":"Import!M36464","v":"Select"},{"$f":"Import!M36664","v":0},{"$f":"Import!M36864","v":0},{"$f":"Import!M37064","v":0},{"$f":"Import!M37264","v":0},{"$f":"Import!M37464","v":0}]
[165,{"$f":"Import!M35265","v":"Select"},{"$f":"Import!M35465","v":"Select"},{"$f":"Import!M35665","v":"Select"},{"$f":"Import!M35865","v":"Select"},{"$f":"Import!M36065","v":"Select"},{"$f":"Import!M36265","v":"Select"},{"$f":"Import!M36465","v":"Select"},{"$f":"Import!M36665","v":0},{"$f":"Import!M36865","v":0},{"$f":"Import!M37065","v":0},{"$f":"Import!M37265","v":0},{"$f":"Import!M37465","v":0}]
[166,{"$f":"Import!M35266","v":"Select"},{"$f":"Import!M35466","v":"Select"},{"$f":"Import!M35666","v":"Select"},{"$f":"Import!M35866","v":"Select"},{"$f":"Import!M36066","v":"Select"},{"$f":"Import!M36266","v":"Select"},{"$f":"Import!M36466","v":"Select"},{"$f":"Import!M36666","v":0},{"$f":"Import!M36866","v":0},{"$f":"Import!M37066","v":0},{"$f":"Import!M37266","v":0},{"$f":"Import!M37466","v":0}]
[167,{"$f":"Import!M35267","v":"Select"},{"$f":"Import!M35467","v":"Select"},{"$f":"Import!M35667","v":"Select"},{"$f":"Import!M35867","v":"Select"},{"$f":"Import!M36067","v":"Select"},{"$f":"Import!M36267","v":"Select"},{"$f":"Import!M36467","v":"Select"},{"$f":"Import!M36667","v":0},{"$f":"Import!M36867","v":0},{"$f":"Import!M37067","v":0},{"$f":"Import!M37267","v":0},{"$f":"Import!M37467","v":0}]
[168,{"$f":"Import!M35268","v":"Select"},{"$f":"Import!M35468","v":"Select"},{"$f":"Import!M35668","v":"Select"},{"$f":"Import!M35868","v":"Select"},{"$f":"Import!M36068","v":"Select"},{"$f":"Import!M36268","v":"Select"},{"$f":"Import!M36468","v":"Select"},{"$f":"Import!M36668","v":0},{"$f":"Import!M36868","v":0},{"$f":"Import!M37068","v":0},{"$f":"Import!M37268","v":0},{"$f":"Import!M37468","v":0}]
[169,{"$f":"Import!M35269","v":"Select"},{"$f":"Import!M35469","v":"Select"},{"$f":"Import!M35669","v":"Select"},{"$f":"Import!M35869","v":"Select"},{"$f":"Import!M36069","v":"Select"},{"$f":"Import!M36269","v":"Select"},{"$f":"Import!M36469","v":"Select"},{"$f":"Import!M36669","v":0},{"$f":"Import!M36869","v":0},{"$f":"Import!M37069","v":0},{"$f":"Import!M37269","v":0},{"$f":"Import!M37469","v":0}]
[170,{"$f":"Import!M35270","v":"Select"},{"$f":"Import!M35470","v":"Select"},{"$f":"Import!M35670","v":"Select"},{"$f":"Import!M35870","v":"Select"},{"$f":"Import!M36070","v":"Select"},{"$f":"Import!M36270","v":"Select"},{"$f":"Import!M36470","v":"Select"},{"$f":"Import!M36670","v":0},{"$f":"Import!M36870","v":0},{"$f":"Import!M37070","v":0},{"$f":"Import!M37270","v":0},{"$f":"Import!M37470","v":0}]
[171,{"$f":"Import!M35271","v":"Select"},{"$f":"Import!M35471","v":"Select"},{"$f":"Import!M35671","v":"Select"},{"$f":"Import!M35871","v":"Select"},{"$f":"Import!M36071","v":"Select"},{"$f":"Import!M36271","v":"Select"},{"$f":"Import!M36471","v":"Select"},{"$f":"Import!M36671","v":0},{"$f":"Import!M36871","v":0},{"$f":"Import!M37071","v":0},{"$f":"Import!M37271","v":0},{"$f":"Import!M37471","v":0}]
[172,{"$f":"Import!M35272","v":"Select"},{"$f":"Import!M35472","v":"Select"},{"$f":"Import!M35672","v":"Select"},{"$f":"Import!M35872","v":"Select"},{"$f":"Import!M36072","v":"Select"},{"$f":"Import!M36272","v":"Select"},{"$f":"Import!M36472","v":"Select"},{"$f":"Import!M36672","v":0},{"$f":"Import!M36872","v":0},{"$f":"Import!M37072","v":0},{"$f":"Import!M37272","v":0},{"$f":"Import!M37472","v":0}]
[173,{"$f":"Import!M35273","v":"Select"},{"$f":"Import!M35473","v":"Select"},{"$f":"Import!M35673","v":"Select"},{"$f":"Import!M35873","v":"Select"},{"$f":"Import!M36073","v":"Select"},{"$f":"Import!M36273","v":"Select"},{"$f":"Import!M36473","v":"Select"},{"$f":"Import!M36673","v":0},{"$f":"Import!M36873","v":0},{"$f":"Import!M37073","v":0},{"$f":"Import!M37273","v":0},{"$f":"Import!M37473","v":0}]
[174,{"$f":"Import!M35274","v":"Select"},{"$f":"Import!M35474","v":"Select"},{"$f":"Import!M35674","v":"Select"},{"$f":"Import!M35874","v":"Select"},{"$f":"Import!M36074","v":"Select"},{"$f":"Import!M36274","v":"Select"},{"$f":"Import!M36474","v":"Select"},{"$f":"Import!M36674","v":0},{"$f":"Import!M36874","v":0},{"$f":"Import!M37074","v":0},{"$f":"Import!M37274","v":0},{"$f":"Import!M37474","v":0}]
[175,{"$f":"Import!M35275","v":"Select"},{"$f":"Import!M35475","v":"Select"},{"$f":"Import!M35675","v":"Select"},{"$f":"Import!M35875","v":"Select"},{"$f":"Import!M36075","v":"Select"},{"$f":"Import!M36275","v":"Select"},{"$f":"Import!M36475","v":"Select"},{"$f":"Import!M36675","v":0},{"$f":"Import!M36875","v":0},{"$f":"Import!M37075","v":0},{"$f":"Import!M37275","v":0},{"$f":"Import!M37475","v":0}]
[176,{"$f":"Import!M35276","v":"Select"},{"$f":"Import!M35476","v":"Select"},{"$f":"Import!M35676","v":"Select"},{"$f":"Import!M35876","v":"Select"},{"$f":"Import!M36076","v":"Select"},{"$f":"Import!M36276","v":"Select"},{"$f":"Import!M36476","v":"Select"},{"$f":"Import!M36676","v":0},{"$f":"Import!M36876","v":0},{"$f":"Import!M37076","v":0},{"$f":"Import!M37276","v":0},{"$f":"Import!M37476","v":0}]
[177,{"$f":"Import!M35277","v":"Select"},{"$f":"Import!M35477","v":"Select"},{"$f":"Import!M35677","v":"Select"},{"$f":"Import!M35877","v":"Select"},{"$f":"Import!M36077","v":"Select"},{"$f":"Import!M36277","v":"Select"},{"$f":"Import!M36477","v":"Select"},{"$f":"Import!M36677","v":0},{"$f":"Import!M36877","v":0},{"$f":"Import!M37077","v":0},{"$f":"Import!M37277","v":0},{"$f":"Import!M37477","v":0}]
[178,{"$f":"Import!M35278","v":"Select"},{"$f":"Import!M35478","v":"Select"},{"$f":"Import!M35678","v":"Select"},{"$f":"Import!M35878","v":"Select"},{"$f":"Import!M36078","v":"Select"},{"$f":"Import!M36278","v":"Select"},{"$f":"Import!M36478","v":"Select"},{"$f":"Import!M36678","v":0},{"$f":"Import!M36878","v":0},{"$f":"Import!M37078","v":0},{"$f":"Import!M37278","v":0},{"$f":"Import!M37478","v":0}]
[179,{"$f":"Import!M35279","v":"Select"},{"$f":"Import!M35479","v":"Select"},{"$f":"Import!M35679","v":"Select"},{"$f":"Import!M35879","v":"Select"},{"$f":"Import!M36079","v":"Select"},{"$f":"Import!M36279","v":"Select"},{"$f":"Import!M36479","v":"Select"},{"$f":"Import!M36679","v":0},{"$f":"Import!M36879","v":0},{"$f":"Import!M37079","v":0},{"$f":"Import!M37279","v":0},{"$f":"Import!M37479","v":0}]
[180,{"$f":"Import!M35280","v":"Select"},{"$f":"Import!M35480","v":"Select"},{"$f":"Import!M35680","v":"Select"},{"$f":"Import!M35880","v":"Select"},{"$f":"Import!M36080","v":"Select"},{"$f":"Import!M36280","v":"Select"},{"$f":"Import!M36480","v":"Select"},{"$f":"Import!M36680","v":0},{"$f":"Import!M36880","v":0},{"$f":"Import!M37080","v":0},{"$f":"Import!M37280","v":0},{"$f":"Import!M37480","v":0}]
[181,{"$f":"Import!M35281","v":"Select"},{"$f":"Import!M35481","v":"Select"},{"$f":"Import!M35681","v":"Select"},{"$f":"Import!M35881","v":"Select"},{"$f":"Import!M36081","v":"Select"},{"$f":"Import!M36281","v":"Select"},{"$f":"Import!M36481","v":"Select"},{"$f":"Import!M36681","v":0},{"$f":"Import!M36881","v":0},{"$f":"Import!M37081","v":0},{"$f":"Import!M37281","v":0},{"$f":"Import!M37481","v":0}]
[182,{"$f":"Import!M35282","v":"Select"},{"$f":"Import!M35482","v":"Select"},{"$f":"Import!M35682","v":"Select"},{"$f":"Import!M35882","v":"Select"},{"$f":"Import!M36082","v":"Select"},{"$f":"Import!M36282","v":"Select"},{"$f":"Import!M36482","v":"Select"},{"$f":"Import!M36682","v":0},{"$f":"Import!M36882","v":0},{"$f":"Import!M37082","v":0},{"$f":"Import!M37282","v":0},{"$f":"Import!M37482","v":0}]
[183,{"$f":"Import!M35283","v":"Select"},{"$f":"Import!M35483","v":"Select"},{"$f":"Import!M35683","v":"Select"},{"$f":"Import!M35883","v":"Select"},{"$f":"Import!M36083","v":"Select"},{"$f":"Import!M36283","v":"Select"},{"$f":"Import!M36483","v":"Select"},{"$f":"Import!M36683","v":0},{"$f":"Import!M36883","v":0},{"$f":"Import!M37083","v":0},{"$f":"Import!M37283","v":0},{"$f":"Import!M37483","v":0}]
[184,{"$f":"Import!M35284","v":"Select"},{"$f":"Import!M35484","v":"Select"},{"$f":"Import!M35684","v":"Select"},{"$f":"Import!M35884","v":"Select"},{"$f":"Import!M36084","v":"Select"},{"$f":"Import!M36284","v":"Select"},{"$f":"Import!M36484","v":"Select"},{"$f":"Import!M36684","v":0},{"$f":"Import!M36884","v":0},{"$f":"Import!M37084","v":0},{"$f":"Import!M37284","v":0},{"$f":"Import!M37484","v":0}]
[185,{"$f":"Import!M35285","v":"Select"},{"$f":"Import!M35485","v":"Select"},{"$f":"Import!M35685","v":"Select"},{"$f":"Import!M35885","v":"Select"},{"$f":"Import!M36085","v":"Select"},{"$f":"Import!M36285","v":"Select"},{"$f":"Import!M36485","v":"Select"},{"$f":"Import!M36685","v":0},{"$f":"Import!M36885","v":0},{"$f":"Import!M37085","v":0},{"$f":"Import!M37285","v":0},{"$f":"Import!M37485","v":0}]
[186,{"$f":"Import!M35286","v":"Select"},{"$f":"Import!M35486","v":"Select"},{"$f":"Import!M35686","v":"Select"},{"$f":"Import!M35886","v":"Select"},{"$f":"Import!M36086","v":"Select"},{"$f":"Import!M36286","v":"Select"},{"$f":"Import!M36486","v":"Select"},{"$f":"Import!M36686","v":0},{"$f":"Import!M36886","v":0},{"$f":"Import!M37086","v":0},{"$f":"Import!M37286","v":0},{"$f":"Import!M37486","v":0}]
[187,{"$f":"Import!M35287","v":"Select"},{"$f":"Import!M35487","v":"Select"},{"$f":"Import!M35687","v":"Select"},{"$f":"Import!M35887","v":"Select"},{"$f":"Import!M36087","v":"Select"},{"$f":"Import!M36287","v":"Select"},{"$f":"Import!M36487","v":"Select"},{"$f":"Import!M36687","v":0},{"$f":"Import!M36887","v":0},{"$f":"Import!M37087","v":0},{"$f":"Import!M37287","v":0},{"$f":"Import!M37487","v":0}]
[188,{"$f":"Import!M35288","v":"Select"},{"$f":"Import!M35488","v":"Select"},{"$f":"Import!M35688","v":"Select"},{"$f":"Import!M35888","v":"Select"},{"$f":"Import!M36088","v":"Select"},{"$f":"Import!M36288","v":"Select"},{"$f":"Import!M36488","v":"Select"},{"$f":"Import!M36688","v":0},{"$f":"Import!M36888","v":0},{"$f":"Import!M37088","v":0},{"$f":"Import!M37288","v":0},{"$f":"Import!M37488","v":0}]
[189,{"$f":"Import!M35289","v":"Select"},{"$f":"Import!M35489","v":"Select"},{"$f":"Import!M35689","v":"Select"},{"$f":"Import!M35889","v":"Select"},{"$f":"Import!M36089","v":"Select"},{"$f":"Import!M36289","v":"Select"},{"$f":"Import!M36489","v":"Select"},{"$f":"Import!M36689","v":0},{"$f":"Import!M36889","v":0},{"$f":"Import!M37089","v":0},{"$f":"Import!M37289","v":0},{"$f":"Import!M37489","v":0}]
[190,{"$f":"Import!M35290","v":"Select"},{"$f":"Import!M35490","v":"Select"},{"$f":"Import!M35690","v":"Select"},{"$f":"Import!M35890","v":"Select"},{"$f":"Import!M36090","v":"Select"},{"$f":"Import!M36290","v":"Select"},{"$f":"Import!M36490","v":"Select"},{"$f":"Import!M36690","v":0},{"$f":"Import!M36890","v":0},{"$f":"Import!M37090","v":0},{"$f":"Import!M37290","v":0},{"$f":"Import!M37490","v":0}]
[191,{"$f":"Import!M35291","v":"Select"},{"$f":"Import!M35491","v":"Select"},{"$f":"Import!M35691","v":"Select"},{"$f":"Import!M35891","v":"Select"},{"$f":"Import!M36091","v":"Select"},{"$f":"Import!M36291","v":"Select"},{"$f":"Import!M36491","v":"Select"},{"$f":"Import!M36691","v":0},{"$f":"Import!M36891","v":0},{"$f":"Import!M37091","v":0},{"$f":"Import!M37291","v":0},{"$f":"Import!M37491","v":0}]
[192,{"$f":"Import!M35292","v":"Select"},{"$f":"Import!M35492","v":"Select"},{"$f":"Import!M35692","v":"Select"},{"$f":"Import!M35892","v":"Select"},{"$f":"Import!M36092","v":"Select"},{"$f":"Import!M36292","v":"Select"},{"$f":"Import!M36492","v":"Select"},{"$f":"Import!M36692","v":0},{"$f":"Import!M36892","v":0},{"$f":"Import!M37092","v":0},{"$f":"Import!M37292","v":0},{"$f":"Import!M37492","v":0}]
[193,{"$f":"Import!M35293","v":"Select"},{"$f":"Import!M35493","v":"Select"},{"$f":"Import!M35693","v":"Select"},{"$f":"Import!M35893","v":"Select"},{"$f":"Import!M36093","v":"Select"},{"$f":"Import!M36293","v":"Select"},{"$f":"Import!M36493","v":"Select"},{"$f":"Import!M36693","v":0},{"$f":"Import!M36893","v":0},{"$f":"Import!M37093","v":0},{"$f":"Import!M37293","v":0},{"$f":"Import!M37493","v":0}]
[194,{"$f":"Import!M35294","v":"Select"},{"$f":"Import!M35494","v":"Select"},{"$f":"Import!M35694","v":"Select"},{"$f":"Import!M35894","v":"Select"},{"$f":"Import!M36094","v":"Select"},{"$f":"Import!M36294","v":"Select"},{"$f":"Import!M36494","v":"Select"},{"$f":"Import!M36694","v":0},{"$f":"Import!M36894","v":0},{"$f":"Import!M37094","v":0},{"$f":"Import!M37294","v":0},{"$f":"Import!M37494","v":0}]
[{"$f":"A1753+1","v":195},{"$f":"Import!M35295","v":"Select"},{"$f":"Import!M35495","v":"Select"},{"$f":"Import!M35695","v":"Select"},{"$f":"Import!M35895","v":"Select"},{"$f":"Import!M36095","v":"Select"},{"$f":"Import!M36295","v":"Select"},{"$f":"Import!M36495","v":"Select"},{"$f":"Import!M36695","v":0},{"$f":"Import!M36895","v":0},{"$f":"Import!M37095","v":0},{"$f":"Import!M37295","v":0},{"$f":"Import!M37495","v":0}]
[196,{"$f":"Import!M35296","v":"Select"},{"$f":"Import!M35496","v":"Select"},{"$f":"Import!M35696","v":"Select"},{"$f":"Import!M35896","v":"Select"},{"$f":"Import!M36096","v":"Select"},{"$f":"Import!M36296","v":"Select"},{"$f":"Import!M36496","v":"Select"},{"$f":"Import!M36696","v":0},{"$f":"Import!M36896","v":0},{"$f":"Import!M37096","v":0},{"$f":"Import!M37296","v":0},{"$f":"Import!M37496","v":0}]
[197,{"$f":"Import!M35297","v":"Select"},{"$f":"Import!M35497","v":"Select"},{"$f":"Import!M35697","v":"Select"},{"$f":"Import!M35897","v":"Select"},{"$f":"Import!M36097","v":"Select"},{"$f":"Import!M36297","v":"Select"},{"$f":"Import!M36497","v":"Select"},{"$f":"Import!M36697","v":0},{"$f":"Import!M36897","v":0},{"$f":"Import!M37097","v":0},{"$f":"Import!M37297","v":0},{"$f":"Import!M37497","v":0}]
[198,{"$f":"Import!M35298","v":"Select"},{"$f":"Import!M35498","v":"Select"},{"$f":"Import!M35698","v":"Select"},{"$f":"Import!M35898","v":"Select"},{"$f":"Import!M36098","v":"Select"},{"$f":"Import!M36298","v":"Select"},{"$f":"Import!M36498","v":"Select"},{"$f":"Import!M36698","v":0},{"$f":"Import!M36898","v":0},{"$f":"Import!M37098","v":0},{"$f":"Import!M37298","v":0},{"$f":"Import!M37498","v":0}]
[199,{"$f":"Import!M35299","v":"Select"},{"$f":"Import!M35499","v":"Select"},{"$f":"Import!M35699","v":"Select"},{"$f":"Import!M35899","v":"Select"},{"$f":"Import!M36099","v":"Select"},{"$f":"Import!M36299","v":"Select"},{"$f":"Import!M36499","v":"Select"},{"$f":"Import!M36699","v":0},{"$f":"Import!M36899","v":0},{"$f":"Import!M37099","v":0},{"$f":"Import!M37299","v":0},{"$f":"Import!M37499","v":0}]
[200,{"$f":"Import!M35300","v":"Select"},{"$f":"Import!M35500","v":"Select"},{"$f":"Import!M35700","v":"Select"},{"$f":"Import!M35900","v":"Select"},{"$f":"Import!M36100","v":"Select"},{"$f":"Import!M36300","v":"Select"},{"$f":"Import!M36500","v":"Select"},{"$f":"Import!M36700","v":0},{"$f":"Import!M36900","v":0},{"$f":"Import!M37100","v":0},{"$f":"Import!M37300","v":0},{"$f":"Import!M37500","v":0}]
[]
[null,"Total Derivatives",null,null,null,null,null,null,{"$f":"SUM(I1560:I1759)","v":0},{"$f":"SUM(J1560:J1759)","v":0},{"$f":"SUM(K1560:K1759)","v":0}]
[]
[null,"(J) INFORMATION ON EXPOSURES TO FINANCIAL INSTITUTIONS AND UNLISTED COUNTERPARTIES"]
[null,null,null,null,null,"Commercial Loans and Mortgages"]
[null,null,{"$f":"YEAR($C$3)","v":2023},"Fair Value",null,null,"Securitisations ","Other debt securities"]
[null,"Financial Institutions","Equities","Corporate Bonds","Corporate Loans",null,null,null,null,"Comments"]
[1,"Exposure to Financial Institutions (Banks, Insurance Companies, Other Financials) - Investment Grade, BSCR Rating 1-3",{"$f":"Import!M37501","v":0},{"$f":"Import!M37505","v":0},{"$f":"Import!M37509","v":0},{"$f":"Import!M37513","v":0},{"$f":"Import!M37517","v":0},{"$f":"Import!M37521","v":0},null,{"$f":"Import!M37525","v":0}]
[2,"Exposure to Financial Institutions (Banks, Insurance Companies, Other Financials) - Investment Grade, BSCR Rating 4",{"$f":"Import!M37502","v":0},{"$f":"Import!M37506","v":0},{"$f":"Import!M37510","v":0},{"$f":"Import!M37514","v":0},{"$f":"Import!M37518","v":0},{"$f":"Import!M37522","v":0},null,{"$f":"Import!M37526","v":0}]
[3,"Exposure to Financial Institutions (Banks, Insurance Companies, Other Financials) - Below Investment Grade",{"$f":"Import!M37503","v":0},{"$f":"Import!M37507","v":0},{"$f":"Import!M37511","v":0},{"$f":"Import!M37515","v":0},{"$f":"Import!M37519","v":0},{"$f":"Import!M37523","v":0},null,{"$f":"Import!M37527","v":0}]
[4,"Exposure to Financial Institutions (Banks, Insurance Companies, Other Financials) - Unrated",{"$f":"Import!M37504","v":0},{"$f":"Import!M37508","v":0},{"$f":"Import!M37512","v":0},{"$f":"Import!M37516","v":0},{"$f":"Import!M37520","v":0},{"$f":"Import!M37524","v":0},null,{"$f":"Import!M37528","v":0}]
[]
[null,"Total Exposures to Financial Institutions",{"$f":"SUM(C1767:C1770)","v":0},{"$f":"SUM(D1767:D1770)","v":0},0,0,0,0]
[]
[null,"Of which","Equities","Corporate Bonds","Corporate Loans","Other",null,null,null,"Comments"]
[5,"- exposures to Banks",{"$f":"Import!M37529","v":0},{"$f":"Import!M37532","v":0},{"$f":"Import!M37535","v":0},{"$f":"Import!M37538","v":0},null,null,null,{"$f":"Import!M37541","v":0}]
[6,"- exposures to Insurers",{"$f":"Import!M37530","v":0},{"$f":"Import!M37533","v":0},{"$f":"Import!M37536","v":0},{"$f":"Import!M37539","v":0},null,null,null,{"$f":"Import!M37542","v":0}]
[7,"- exposures to Other Financial Institutions",{"$f":"Import!M37531","v":0},{"$f":"Import!M37534","v":0},{"$f":"Import!M37537","v":0},{"$f":"Import!M37540","v":0},null,null,null,{"$f":"Import!M37543","v":0}]
[]
[null,"Total Exposures",{"$f":"SUM(C1775:C1777)","v":0},{"$f":"SUM(D1775:D1777)","v":0},{"$f":"SUM(E1775:E1777)","v":0},{"$f":"SUM(F1775:F1777)","v":0}]
[]
[null,null,{"$f":"YEAR($C$3)","v":2023},"Fair Value"]
[null,"Unlisted Counterparties","Equities","Corporate Bonds","Corporate Loans","Other",null,null,null,"Comments"]
[8,"Direct Exposure to Unlisted Counterparties - Investment Grade, BSCR Rating 1-3",{"$f":"Import!M37544","v":0},{"$f":"Import!M37548","v":0},{"$f":"Import!M37552","v":0},{"$f":"Import!M37556","v":0},null,null,null,{"$f":"Import!M37560","v":0}]
[9,"Direct Exposure to Unlisted Counterparties - Investment Grade, BSCR Rating 4",{"$f":"Import!M37545","v":0},{"$f":"Import!M37549","v":0},{"$f":"Import!M37553","v":0},{"$f":"Import!M37557","v":0},null,null,null,{"$f":"Import!M37561","v":0}]
[10,"Direct Exposure to Unlisted Counterparties - Below Investment Grade",{"$f":"Import!M37546","v":0},{"$f":"Import!M37550","v":0},{"$f":"Import!M37554","v":0},{"$f":"Import!M37558","v":0},null,null,null,{"$f":"Import!M37562","v":0}]
[11,"Direct Exposure to Unlisted Counterparties - Unrated",{"$f":"Import!M37547","v":0},{"$f":"Import!M37551","v":0},{"$f":"Import!M37555","v":0},{"$f":"Import!M37559","v":0},null,null,null,{"$f":"Import!M37563","v":0}]
[]
[null,"Total Direct Exposures to Unlisted Counterparties",{"$f":"SUM(C1783:C1786)","v":0},{"$f":"SUM(D1783:D1786)","v":0},0,0]
[]
[null,"(K) OTHER ASSETS"]
[]
[null,null,"Enter # of Asset Types",{"$f":"Import!M37564","v":0}]
[]
[null,null,null,null,{"$f":"YEAR($C$3)","v":2023},2023]
[null,"Asset Type","Currency","BSCR Rating","Nominal Amount","Fair Value","Comments"]
[1,{"$f":"Import!M37565","v":"Select"},{"$f":"Import!M37765","v":"Select"},{"$f":"Import!M37965","v":"Select"},{"$f":"Import!M38165","v":0},{"$f":"Import!M38365","v":0},{"$f":"Import!M38565","v":0}]
[{"$f":"A1796+1","v":2},{"$f":"Import!M37566","v":"Select"},{"$f":"Import!M37766","v":"Select"},{"$f":"Import!M37966","v":"Select"},{"$f":"Import!M38166","v":0},{"$f":"Import!M38366","v":0},{"$f":"Import!M38566","v":0}]
[{"$f":"A1797+1","v":3},{"$f":"Import!M37567","v":"Select"},{"$f":"Import!M37767","v":"Select"},{"$f":"Import!M37967","v":"Select"},{"$f":"Import!M38167","v":0},{"$f":"Import!M38367","v":0},{"$f":"Import!M38567","v":0}]
[4,{"$f":"Import!M37568","v":"Select"},{"$f":"Import!M37768","v":"Select"},{"$f":"Import!M37968","v":"Select"},{"$f":"Import!M38168","v":0},{"$f":"Import!M38368","v":0},{"$f":"Import!M38568","v":0}]
[5,{"$f":"Import!M37569","v":"Select"},{"$f":"Import!M37769","v":"Select"},{"$f":"Import!M37969","v":"Select"},{"$f":"Import!M38169","v":0},{"$f":"Import!M38369","v":0},{"$f":"Import!M38569","v":0}]
[6,{"$f":"Import!M37570","v":"Select"},{"$f":"Import!M37770","v":"Select"},{"$f":"Import!M37970","v":"Select"},{"$f":"Import!M38170","v":0},{"$f":"Import!M38370","v":0},{"$f":"Import!M38570","v":0}]
[7,{"$f":"Import!M37571","v":"Select"},{"$f":"Import!M37771","v":"Select"},{"$f":"Import!M37971","v":"Select"},{"$f":"Import!M38171","v":0},{"$f":"Import!M38371","v":0},{"$f":"Import!M38571","v":0}]
[8,{"$f":"Import!M37572","v":"Select"},{"$f":"Import!M37772","v":"Select"},{"$f":"Import!M37972","v":"Select"},{"$f":"Import!M38172","v":0},{"$f":"Import!M38372","v":0},{"$f":"Import!M38572","v":0}]
[9,{"$f":"Import!M37573","v":"Select"},{"$f":"Import!M37773","v":"Select"},{"$f":"Import!M37973","v":"Select"},{"$f":"Import!M38173","v":0},{"$f":"Import!M38373","v":0},{"$f":"Import!M38573","v":0}]
[10,{"$f":"Import!M37574","v":"Select"},{"$f":"Import!M37774","v":"Select"},{"$f":"Import!M37974","v":"Select"},{"$f":"Import!M38174","v":0},{"$f":"Import!M38374","v":0},{"$f":"Import!M38574","v":0}]
[11,{"$f":"Import!M37575","v":"Select"},{"$f":"Import!M37775","v":"Select"},{"$f":"Import!M37975","v":"Select"},{"$f":"Import!M38175","v":0},{"$f":"Import!M38375","v":0},{"$f":"Import!M38575","v":0}]
[12,{"$f":"Import!M37576","v":"Select"},{"$f":"Import!M37776","v":"Select"},{"$f":"Import!M37976","v":"Select"},{"$f":"Import!M38176","v":0},{"$f":"Import!M38376","v":0},{"$f":"Import!M38576","v":0}]
[13,{"$f":"Import!M37577","v":"Select"},{"$f":"Import!M37777","v":"Select"},{"$f":"Import!M37977","v":"Select"},{"$f":"Import!M38177","v":0},{"$f":"Import!M38377","v":0},{"$f":"Import!M38577","v":0}]
[14,{"$f":"Import!M37578","v":"Select"},{"$f":"Import!M37778","v":"Select"},{"$f":"Import!M37978","v":"Select"},{"$f":"Import!M38178","v":0},{"$f":"Import!M38378","v":0},{"$f":"Import!M38578","v":0}]
[15,{"$f":"Import!M37579","v":"Select"},{"$f":"Import!M37779","v":"Select"},{"$f":"Import!M37979","v":"Select"},{"$f":"Import!M38179","v":0},{"$f":"Import!M38379","v":0},{"$f":"Import!M38579","v":0}]
[16,{"$f":"Import!M37580","v":"Select"},{"$f":"Import!M37780","v":"Select"},{"$f":"Import!M37980","v":"Select"},{"$f":"Import!M38180","v":0},{"$f":"Import!M38380","v":0},{"$f":"Import!M38580","v":0}]
[17,{"$f":"Import!M37581","v":"Select"},{"$f":"Import!M37781","v":"Select"},{"$f":"Import!M37981","v":"Select"},{"$f":"Import!M38181","v":0},{"$f":"Import!M38381","v":0},{"$f":"Import!M38581","v":0}]
[18,{"$f":"Import!M37582","v":"Select"},{"$f":"Import!M37782","v":"Select"},{"$f":"Import!M37982","v":"Select"},{"$f":"Import!M38182","v":0},{"$f":"Import!M38382","v":0},{"$f":"Import!M38582","v":0}]
[19,{"$f":"Import!M37583","v":"Select"},{"$f":"Import!M37783","v":"Select"},{"$f":"Import!M37983","v":"Select"},{"$f":"Import!M38183","v":0},{"$f":"Import!M38383","v":0},{"$f":"Import!M38583","v":0}]
[20,{"$f":"Import!M37584","v":"Select"},{"$f":"Import!M37784","v":"Select"},{"$f":"Import!M37984","v":"Select"},{"$f":"Import!M38184","v":0},{"$f":"Import!M38384","v":0},{"$f":"Import!M38584","v":0}]
[21,{"$f":"Import!M37585","v":"Select"},{"$f":"Import!M37785","v":"Select"},{"$f":"Import!M37985","v":"Select"},{"$f":"Import!M38185","v":0},{"$f":"Import!M38385","v":0},{"$f":"Import!M38585","v":0}]
[22,{"$f":"Import!M37586","v":"Select"},{"$f":"Import!M37786","v":"Select"},{"$f":"Import!M37986","v":"Select"},{"$f":"Import!M38186","v":0},{"$f":"Import!M38386","v":0},{"$f":"Import!M38586","v":0}]
[23,{"$f":"Import!M37587","v":"Select"},{"$f":"Import!M37787","v":"Select"},{"$f":"Import!M37987","v":"Select"},{"$f":"Import!M38187","v":0},{"$f":"Import!M38387","v":0},{"$f":"Import!M38587","v":0}]
[24,{"$f":"Import!M37588","v":"Select"},{"$f":"Import!M37788","v":"Select"},{"$f":"Import!M37988","v":"Select"},{"$f":"Import!M38188","v":0},{"$f":"Import!M38388","v":0},{"$f":"Import!M38588","v":0}]
[25,{"$f":"Import!M37589","v":"Select"},{"$f":"Import!M37789","v":"Select"},{"$f":"Import!M37989","v":"Select"},{"$f":"Import!M38189","v":0},{"$f":"Import!M38389","v":0},{"$f":"Import!M38589","v":0}]
[26,{"$f":"Import!M37590","v":"Select"},{"$f":"Import!M37790","v":"Select"},{"$f":"Import!M37990","v":"Select"},{"$f":"Import!M38190","v":0},{"$f":"Import!M38390","v":0},{"$f":"Import!M38590","v":0}]
[27,{"$f":"Import!M37591","v":"Select"},{"$f":"Import!M37791","v":"Select"},{"$f":"Import!M37991","v":"Select"},{"$f":"Import!M38191","v":0},{"$f":"Import!M38391","v":0},{"$f":"Import!M38591","v":0}]
[28,{"$f":"Import!M37592","v":"Select"},{"$f":"Import!M37792","v":"Select"},{"$f":"Import!M37992","v":"Select"},{"$f":"Import!M38192","v":0},{"$f":"Import!M38392","v":0},{"$f":"Import!M38592","v":0}]
[29,{"$f":"Import!M37593","v":"Select"},{"$f":"Import!M37793","v":"Select"},{"$f":"Import!M37993","v":"Select"},{"$f":"Import!M38193","v":0},{"$f":"Import!M38393","v":0},{"$f":"Import!M38593","v":0}]
[30,{"$f":"Import!M37594","v":"Select"},{"$f":"Import!M37794","v":"Select"},{"$f":"Import!M37994","v":"Select"},{"$f":"Import!M38194","v":0},{"$f":"Import!M38394","v":0},{"$f":"Import!M38594","v":0}]
[31,{"$f":"Import!M37595","v":"Select"},{"$f":"Import!M37795","v":"Select"},{"$f":"Import!M37995","v":"Select"},{"$f":"Import!M38195","v":0},{"$f":"Import!M38395","v":0},{"$f":"Import!M38595","v":0}]
[32,{"$f":"Import!M37596","v":"Select"},{"$f":"Import!M37796","v":"Select"},{"$f":"Import!M37996","v":"Select"},{"$f":"Import!M38196","v":0},{"$f":"Import!M38396","v":0},{"$f":"Import!M38596","v":0}]
[33,{"$f":"Import!M37597","v":"Select"},{"$f":"Import!M37797","v":"Select"},{"$f":"Import!M37997","v":"Select"},{"$f":"Import!M38197","v":0},{"$f":"Import!M38397","v":0},{"$f":"Import!M38597","v":0}]
[34,{"$f":"Import!M37598","v":"Select"},{"$f":"Import!M37798","v":"Select"},{"$f":"Import!M37998","v":"Select"},{"$f":"Import!M38198","v":0},{"$f":"Import!M38398","v":0},{"$f":"Import!M38598","v":0}]
[35,{"$f":"Import!M37599","v":"Select"},{"$f":"Import!M37799","v":"Select"},{"$f":"Import!M37999","v":"Select"},{"$f":"Import!M38199","v":0},{"$f":"Import!M38399","v":0},{"$f":"Import!M38599","v":0}]
[36,{"$f":"Import!M37600","v":"Select"},{"$f":"Import!M37800","v":"Select"},{"$f":"Import!M38000","v":"Select"},{"$f":"Import!M38200","v":0},{"$f":"Import!M38400","v":0},{"$f":"Import!M38600","v":0}]
[37,{"$f":"Import!M37601","v":"Select"},{"$f":"Import!M37801","v":"Select"},{"$f":"Import!M38001","v":"Select"},{"$f":"Import!M38201","v":0},{"$f":"Import!M38401","v":0},{"$f":"Import!M38601","v":0}]
[38,{"$f":"Import!M37602","v":"Select"},{"$f":"Import!M37802","v":"Select"},{"$f":"Import!M38002","v":"Select"},{"$f":"Import!M38202","v":0},{"$f":"Import!M38402","v":0},{"$f":"Import!M38602","v":0}]
[39,{"$f":"Import!M37603","v":"Select"},{"$f":"Import!M37803","v":"Select"},{"$f":"Import!M38003","v":"Select"},{"$f":"Import!M38203","v":0},{"$f":"Import!M38403","v":0},{"$f":"Import!M38603","v":0}]
[40,{"$f":"Import!M37604","v":"Select"},{"$f":"Import!M37804","v":"Select"},{"$f":"Import!M38004","v":"Select"},{"$f":"Import!M38204","v":0},{"$f":"Import!M38404","v":0},{"$f":"Import!M38604","v":0}]
[41,{"$f":"Import!M37605","v":"Select"},{"$f":"Import!M37805","v":"Select"},{"$f":"Import!M38005","v":"Select"},{"$f":"Import!M38205","v":0},{"$f":"Import!M38405","v":0},{"$f":"Import!M38605","v":0}]
[42,{"$f":"Import!M37606","v":"Select"},{"$f":"Import!M37806","v":"Select"},{"$f":"Import!M38006","v":"Select"},{"$f":"Import!M38206","v":0},{"$f":"Import!M38406","v":0},{"$f":"Import!M38606","v":0}]
[43,{"$f":"Import!M37607","v":"Select"},{"$f":"Import!M37807","v":"Select"},{"$f":"Import!M38007","v":"Select"},{"$f":"Import!M38207","v":0},{"$f":"Import!M38407","v":0},{"$f":"Import!M38607","v":0}]
[44,{"$f":"Import!M37608","v":"Select"},{"$f":"Import!M37808","v":"Select"},{"$f":"Import!M38008","v":"Select"},{"$f":"Import!M38208","v":0},{"$f":"Import!M38408","v":0},{"$f":"Import!M38608","v":0}]
[45,{"$f":"Import!M37609","v":"Select"},{"$f":"Import!M37809","v":"Select"},{"$f":"Import!M38009","v":"Select"},{"$f":"Import!M38209","v":0},{"$f":"Import!M38409","v":0},{"$f":"Import!M38609","v":0}]
[46,{"$f":"Import!M37610","v":"Select"},{"$f":"Import!M37810","v":"Select"},{"$f":"Import!M38010","v":"Select"},{"$f":"Import!M38210","v":0},{"$f":"Import!M38410","v":0},{"$f":"Import!M38610","v":0}]
[47,{"$f":"Import!M37611","v":"Select"},{"$f":"Import!M37811","v":"Select"},{"$f":"Import!M38011","v":"Select"},{"$f":"Import!M38211","v":0},{"$f":"Import!M38411","v":0},{"$f":"Import!M38611","v":0}]
[48,{"$f":"Import!M37612","v":"Select"},{"$f":"Import!M37812","v":"Select"},{"$f":"Import!M38012","v":"Select"},{"$f":"Import!M38212","v":0},{"$f":"Import!M38412","v":0},{"$f":"Import!M38612","v":0}]
[49,{"$f":"Import!M37613","v":"Select"},{"$f":"Import!M37813","v":"Select"},{"$f":"Import!M38013","v":"Select"},{"$f":"Import!M38213","v":0},{"$f":"Import!M38413","v":0},{"$f":"Import!M38613","v":0}]
[50,{"$f":"Import!M37614","v":"Select"},{"$f":"Import!M37814","v":"Select"},{"$f":"Import!M38014","v":"Select"},{"$f":"Import!M38214","v":0},{"$f":"Import!M38414","v":0},{"$f":"Import!M38614","v":0}]
[51,{"$f":"Import!M37615","v":"Select"},{"$f":"Import!M37815","v":"Select"},{"$f":"Import!M38015","v":"Select"},{"$f":"Import!M38215","v":0},{"$f":"Import!M38415","v":0},{"$f":"Import!M38615","v":0}]
[52,{"$f":"Import!M37616","v":"Select"},{"$f":"Import!M37816","v":"Select"},{"$f":"Import!M38016","v":"Select"},{"$f":"Import!M38216","v":0},{"$f":"Import!M38416","v":0},{"$f":"Import!M38616","v":0}]
[53,{"$f":"Import!M37617","v":"Select"},{"$f":"Import!M37817","v":"Select"},{"$f":"Import!M38017","v":"Select"},{"$f":"Import!M38217","v":0},{"$f":"Import!M38417","v":0},{"$f":"Import!M38617","v":0}]
[54,{"$f":"Import!M37618","v":"Select"},{"$f":"Import!M37818","v":"Select"},{"$f":"Import!M38018","v":"Select"},{"$f":"Import!M38218","v":0},{"$f":"Import!M38418","v":0},{"$f":"Import!M38618","v":0}]
[55,{"$f":"Import!M37619","v":"Select"},{"$f":"Import!M37819","v":"Select"},{"$f":"Import!M38019","v":"Select"},{"$f":"Import!M38219","v":0},{"$f":"Import!M38419","v":0},{"$f":"Import!M38619","v":0}]
[56,{"$f":"Import!M37620","v":"Select"},{"$f":"Import!M37820","v":"Select"},{"$f":"Import!M38020","v":"Select"},{"$f":"Import!M38220","v":0},{"$f":"Import!M38420","v":0},{"$f":"Import!M38620","v":0}]
[57,{"$f":"Import!M37621","v":"Select"},{"$f":"Import!M37821","v":"Select"},{"$f":"Import!M38021","v":"Select"},{"$f":"Import!M38221","v":0},{"$f":"Import!M38421","v":0},{"$f":"Import!M38621","v":0}]
[58,{"$f":"Import!M37622","v":"Select"},{"$f":"Import!M37822","v":"Select"},{"$f":"Import!M38022","v":"Select"},{"$f":"Import!M38222","v":0},{"$f":"Import!M38422","v":0},{"$f":"Import!M38622","v":0}]
[59,{"$f":"Import!M37623","v":"Select"},{"$f":"Import!M37823","v":"Select"},{"$f":"Import!M38023","v":"Select"},{"$f":"Import!M38223","v":0},{"$f":"Import!M38423","v":0},{"$f":"Import!M38623","v":0}]
[60,{"$f":"Import!M37624","v":"Select"},{"$f":"Import!M37824","v":"Select"},{"$f":"Import!M38024","v":"Select"},{"$f":"Import!M38224","v":0},{"$f":"Import!M38424","v":0},{"$f":"Import!M38624","v":0}]
[61,{"$f":"Import!M37625","v":"Select"},{"$f":"Import!M37825","v":"Select"},{"$f":"Import!M38025","v":"Select"},{"$f":"Import!M38225","v":0},{"$f":"Import!M38425","v":0},{"$f":"Import!M38625","v":0}]
[62,{"$f":"Import!M37626","v":"Select"},{"$f":"Import!M37826","v":"Select"},{"$f":"Import!M38026","v":"Select"},{"$f":"Import!M38226","v":0},{"$f":"Import!M38426","v":0},{"$f":"Import!M38626","v":0}]
[63,{"$f":"Import!M37627","v":"Select"},{"$f":"Import!M37827","v":"Select"},{"$f":"Import!M38027","v":"Select"},{"$f":"Import!M38227","v":0},{"$f":"Import!M38427","v":0},{"$f":"Import!M38627","v":0}]
[64,{"$f":"Import!M37628","v":"Select"},{"$f":"Import!M37828","v":"Select"},{"$f":"Import!M38028","v":"Select"},{"$f":"Import!M38228","v":0},{"$f":"Import!M38428","v":0},{"$f":"Import!M38628","v":0}]
[65,{"$f":"Import!M37629","v":"Select"},{"$f":"Import!M37829","v":"Select"},{"$f":"Import!M38029","v":"Select"},{"$f":"Import!M38229","v":0},{"$f":"Import!M38429","v":0},{"$f":"Import!M38629","v":0}]
[66,{"$f":"Import!M37630","v":"Select"},{"$f":"Import!M37830","v":"Select"},{"$f":"Import!M38030","v":"Select"},{"$f":"Import!M38230","v":0},{"$f":"Import!M38430","v":0},{"$f":"Import!M38630","v":0}]
[{"$f":"A1861+1","v":67},{"$f":"Import!M37631","v":"Select"},{"$f":"Import!M37831","v":"Select"},{"$f":"Import!M38031","v":"Select"},{"$f":"Import!M38231","v":0},{"$f":"Import!M38431","v":0},{"$f":"Import!M38631","v":0}]
[68,{"$f":"Import!M37632","v":"Select"},{"$f":"Import!M37832","v":"Select"},{"$f":"Import!M38032","v":"Select"},{"$f":"Import!M38232","v":0},{"$f":"Import!M38432","v":0},{"$f":"Import!M38632","v":0}]
[69,{"$f":"Import!M37633","v":"Select"},{"$f":"Import!M37833","v":"Select"},{"$f":"Import!M38033","v":"Select"},{"$f":"Import!M38233","v":0},{"$f":"Import!M38433","v":0},{"$f":"Import!M38633","v":0}]
[70,{"$f":"Import!M37634","v":"Select"},{"$f":"Import!M37834","v":"Select"},{"$f":"Import!M38034","v":"Select"},{"$f":"Import!M38234","v":0},{"$f":"Import!M38434","v":0},{"$f":"Import!M38634","v":0}]
[71,{"$f":"Import!M37635","v":"Select"},{"$f":"Import!M37835","v":"Select"},{"$f":"Import!M38035","v":"Select"},{"$f":"Import!M38235","v":0},{"$f":"Import!M38435","v":0},{"$f":"Import!M38635","v":0}]
[72,{"$f":"Import!M37636","v":"Select"},{"$f":"Import!M37836","v":"Select"},{"$f":"Import!M38036","v":"Select"},{"$f":"Import!M38236","v":0},{"$f":"Import!M38436","v":0},{"$f":"Import!M38636","v":0}]
[73,{"$f":"Import!M37637","v":"Select"},{"$f":"Import!M37837","v":"Select"},{"$f":"Import!M38037","v":"Select"},{"$f":"Import!M38237","v":0},{"$f":"Import!M38437","v":0},{"$f":"Import!M38637","v":0}]
[74,{"$f":"Import!M37638","v":"Select"},{"$f":"Import!M37838","v":"Select"},{"$f":"Import!M38038","v":"Select"},{"$f":"Import!M38238","v":0},{"$f":"Import!M38438","v":0},{"$f":"Import!M38638","v":0}]
[75,{"$f":"Import!M37639","v":"Select"},{"$f":"Import!M37839","v":"Select"},{"$f":"Import!M38039","v":"Select"},{"$f":"Import!M38239","v":0},{"$f":"Import!M38439","v":0},{"$f":"Import!M38639","v":0}]
[76,{"$f":"Import!M37640","v":"Select"},{"$f":"Import!M37840","v":"Select"},{"$f":"Import!M38040","v":"Select"},{"$f":"Import!M38240","v":0},{"$f":"Import!M38440","v":0},{"$f":"Import!M38640","v":0}]
[77,{"$f":"Import!M37641","v":"Select"},{"$f":"Import!M37841","v":"Select"},{"$f":"Import!M38041","v":"Select"},{"$f":"Import!M38241","v":0},{"$f":"Import!M38441","v":0},{"$f":"Import!M38641","v":0}]
[78,{"$f":"Import!M37642","v":"Select"},{"$f":"Import!M37842","v":"Select"},{"$f":"Import!M38042","v":"Select"},{"$f":"Import!M38242","v":0},{"$f":"Import!M38442","v":0},{"$f":"Import!M38642","v":0}]
[79,{"$f":"Import!M37643","v":"Select"},{"$f":"Import!M37843","v":"Select"},{"$f":"Import!M38043","v":"Select"},{"$f":"Import!M38243","v":0},{"$f":"Import!M38443","v":0},{"$f":"Import!M38643","v":0}]
[80,{"$f":"Import!M37644","v":"Select"},{"$f":"Import!M37844","v":"Select"},{"$f":"Import!M38044","v":"Select"},{"$f":"Import!M38244","v":0},{"$f":"Import!M38444","v":0},{"$f":"Import!M38644","v":0}]
[81,{"$f":"Import!M37645","v":"Select"},{"$f":"Import!M37845","v":"Select"},{"$f":"Import!M38045","v":"Select"},{"$f":"Import!M38245","v":0},{"$f":"Import!M38445","v":0},{"$f":"Import!M38645","v":0}]
[82,{"$f":"Import!M37646","v":"Select"},{"$f":"Import!M37846","v":"Select"},{"$f":"Import!M38046","v":"Select"},{"$f":"Import!M38246","v":0},{"$f":"Import!M38446","v":0},{"$f":"Import!M38646","v":0}]
[83,{"$f":"Import!M37647","v":"Select"},{"$f":"Import!M37847","v":"Select"},{"$f":"Import!M38047","v":"Select"},{"$f":"Import!M38247","v":0},{"$f":"Import!M38447","v":0},{"$f":"Import!M38647","v":0}]
[84,{"$f":"Import!M37648","v":"Select"},{"$f":"Import!M37848","v":"Select"},{"$f":"Import!M38048","v":"Select"},{"$f":"Import!M38248","v":0},{"$f":"Import!M38448","v":0},{"$f":"Import!M38648","v":0}]
[85,{"$f":"Import!M37649","v":"Select"},{"$f":"Import!M37849","v":"Select"},{"$f":"Import!M38049","v":"Select"},{"$f":"Import!M38249","v":0},{"$f":"Import!M38449","v":0},{"$f":"Import!M38649","v":0}]
[86,{"$f":"Import!M37650","v":"Select"},{"$f":"Import!M37850","v":"Select"},{"$f":"Import!M38050","v":"Select"},{"$f":"Import!M38250","v":0},{"$f":"Import!M38450","v":0},{"$f":"Import!M38650","v":0}]
[87,{"$f":"Import!M37651","v":"Select"},{"$f":"Import!M37851","v":"Select"},{"$f":"Import!M38051","v":"Select"},{"$f":"Import!M38251","v":0},{"$f":"Import!M38451","v":0},{"$f":"Import!M38651","v":0}]
[88,{"$f":"Import!M37652","v":"Select"},{"$f":"Import!M37852","v":"Select"},{"$f":"Import!M38052","v":"Select"},{"$f":"Import!M38252","v":0},{"$f":"Import!M38452","v":0},{"$f":"Import!M38652","v":0}]
[89,{"$f":"Import!M37653","v":"Select"},{"$f":"Import!M37853","v":"Select"},{"$f":"Import!M38053","v":"Select"},{"$f":"Import!M38253","v":0},{"$f":"Import!M38453","v":0},{"$f":"Import!M38653","v":0}]
[90,{"$f":"Import!M37654","v":"Select"},{"$f":"Import!M37854","v":"Select"},{"$f":"Import!M38054","v":"Select"},{"$f":"Import!M38254","v":0},{"$f":"Import!M38454","v":0},{"$f":"Import!M38654","v":0}]
[91,{"$f":"Import!M37655","v":"Select"},{"$f":"Import!M37855","v":"Select"},{"$f":"Import!M38055","v":"Select"},{"$f":"Import!M38255","v":0},{"$f":"Import!M38455","v":0},{"$f":"Import!M38655","v":0}]
[92,{"$f":"Import!M37656","v":"Select"},{"$f":"Import!M37856","v":"Select"},{"$f":"Import!M38056","v":"Select"},{"$f":"Import!M38256","v":0},{"$f":"Import!M38456","v":0},{"$f":"Import!M38656","v":0}]
[93,{"$f":"Import!M37657","v":"Select"},{"$f":"Import!M37857","v":"Select"},{"$f":"Import!M38057","v":"Select"},{"$f":"Import!M38257","v":0},{"$f":"Import!M38457","v":0},{"$f":"Import!M38657","v":0}]
[94,{"$f":"Import!M37658","v":"Select"},{"$f":"Import!M37858","v":"Select"},{"$f":"Import!M38058","v":"Select"},{"$f":"Import!M38258","v":0},{"$f":"Import!M38458","v":0},{"$f":"Import!M38658","v":0}]
[95,{"$f":"Import!M37659","v":"Select"},{"$f":"Import!M37859","v":"Select"},{"$f":"Import!M38059","v":"Select"},{"$f":"Import!M38259","v":0},{"$f":"Import!M38459","v":0},{"$f":"Import!M38659","v":0}]
[96,{"$f":"Import!M37660","v":"Select"},{"$f":"Import!M37860","v":"Select"},{"$f":"Import!M38060","v":"Select"},{"$f":"Import!M38260","v":0},{"$f":"Import!M38460","v":0},{"$f":"Import!M38660","v":0}]
[97,{"$f":"Import!M37661","v":"Select"},{"$f":"Import!M37861","v":"Select"},{"$f":"Import!M38061","v":"Select"},{"$f":"Import!M38261","v":0},{"$f":"Import!M38461","v":0},{"$f":"Import!M38661","v":0}]
[98,{"$f":"Import!M37662","v":"Select"},{"$f":"Import!M37862","v":"Select"},{"$f":"Import!M38062","v":"Select"},{"$f":"Import!M38262","v":0},{"$f":"Import!M38462","v":0},{"$f":"Import!M38662","v":0}]
[99,{"$f":"Import!M37663","v":"Select"},{"$f":"Import!M37863","v":"Select"},{"$f":"Import!M38063","v":"Select"},{"$f":"Import!M38263","v":0},{"$f":"Import!M38463","v":0},{"$f":"Import!M38663","v":0}]
[100,{"$f":"Import!M37664","v":"Select"},{"$f":"Import!M37864","v":"Select"},{"$f":"Import!M38064","v":"Select"},{"$f":"Import!M38264","v":0},{"$f":"Import!M38464","v":0},{"$f":"Import!M38664","v":0}]
[101,{"$f":"Import!M37665","v":"Select"},{"$f":"Import!M37865","v":"Select"},{"$f":"Import!M38065","v":"Select"},{"$f":"Import!M38265","v":0},{"$f":"Import!M38465","v":0},{"$f":"Import!M38665","v":0}]
[102,{"$f":"Import!M37666","v":"Select"},{"$f":"Import!M37866","v":"Select"},{"$f":"Import!M38066","v":"Select"},{"$f":"Import!M38266","v":0},{"$f":"Import!M38466","v":0},{"$f":"Import!M38666","v":0}]
[103,{"$f":"Import!M37667","v":"Select"},{"$f":"Import!M37867","v":"Select"},{"$f":"Import!M38067","v":"Select"},{"$f":"Import!M38267","v":0},{"$f":"Import!M38467","v":0},{"$f":"Import!M38667","v":0}]
[104,{"$f":"Import!M37668","v":"Select"},{"$f":"Import!M37868","v":"Select"},{"$f":"Import!M38068","v":"Select"},{"$f":"Import!M38268","v":0},{"$f":"Import!M38468","v":0},{"$f":"Import!M38668","v":0}]
[105,{"$f":"Import!M37669","v":"Select"},{"$f":"Import!M37869","v":"Select"},{"$f":"Import!M38069","v":"Select"},{"$f":"Import!M38269","v":0},{"$f":"Import!M38469","v":0},{"$f":"Import!M38669","v":0}]
[106,{"$f":"Import!M37670","v":"Select"},{"$f":"Import!M37870","v":"Select"},{"$f":"Import!M38070","v":"Select"},{"$f":"Import!M38270","v":0},{"$f":"Import!M38470","v":0},{"$f":"Import!M38670","v":0}]
[107,{"$f":"Import!M37671","v":"Select"},{"$f":"Import!M37871","v":"Select"},{"$f":"Import!M38071","v":"Select"},{"$f":"Import!M38271","v":0},{"$f":"Import!M38471","v":0},{"$f":"Import!M38671","v":0}]
[108,{"$f":"Import!M37672","v":"Select"},{"$f":"Import!M37872","v":"Select"},{"$f":"Import!M38072","v":"Select"},{"$f":"Import!M38272","v":0},{"$f":"Import!M38472","v":0},{"$f":"Import!M38672","v":0}]
[109,{"$f":"Import!M37673","v":"Select"},{"$f":"Import!M37873","v":"Select"},{"$f":"Import!M38073","v":"Select"},{"$f":"Import!M38273","v":0},{"$f":"Import!M38473","v":0},{"$f":"Import!M38673","v":0}]
[110,{"$f":"Import!M37674","v":"Select"},{"$f":"Import!M37874","v":"Select"},{"$f":"Import!M38074","v":"Select"},{"$f":"Import!M38274","v":0},{"$f":"Import!M38474","v":0},{"$f":"Import!M38674","v":0}]
[111,{"$f":"Import!M37675","v":"Select"},{"$f":"Import!M37875","v":"Select"},{"$f":"Import!M38075","v":"Select"},{"$f":"Import!M38275","v":0},{"$f":"Import!M38475","v":0},{"$f":"Import!M38675","v":0}]
[112,{"$f":"Import!M37676","v":"Select"},{"$f":"Import!M37876","v":"Select"},{"$f":"Import!M38076","v":"Select"},{"$f":"Import!M38276","v":0},{"$f":"Import!M38476","v":0},{"$f":"Import!M38676","v":0}]
[113,{"$f":"Import!M37677","v":"Select"},{"$f":"Import!M37877","v":"Select"},{"$f":"Import!M38077","v":"Select"},{"$f":"Import!M38277","v":0},{"$f":"Import!M38477","v":0},{"$f":"Import!M38677","v":0}]
[114,{"$f":"Import!M37678","v":"Select"},{"$f":"Import!M37878","v":"Select"},{"$f":"Import!M38078","v":"Select"},{"$f":"Import!M38278","v":0},{"$f":"Import!M38478","v":0},{"$f":"Import!M38678","v":0}]
[115,{"$f":"Import!M37679","v":"Select"},{"$f":"Import!M37879","v":"Select"},{"$f":"Import!M38079","v":"Select"},{"$f":"Import!M38279","v":0},{"$f":"Import!M38479","v":0},{"$f":"Import!M38679","v":0}]
[116,{"$f":"Import!M37680","v":"Select"},{"$f":"Import!M37880","v":"Select"},{"$f":"Import!M38080","v":"Select"},{"$f":"Import!M38280","v":0},{"$f":"Import!M38480","v":0},{"$f":"Import!M38680","v":0}]
[117,{"$f":"Import!M37681","v":"Select"},{"$f":"Import!M37881","v":"Select"},{"$f":"Import!M38081","v":"Select"},{"$f":"Import!M38281","v":0},{"$f":"Import!M38481","v":0},{"$f":"Import!M38681","v":0}]
[118,{"$f":"Import!M37682","v":"Select"},{"$f":"Import!M37882","v":"Select"},{"$f":"Import!M38082","v":"Select"},{"$f":"Import!M38282","v":0},{"$f":"Import!M38482","v":0},{"$f":"Import!M38682","v":0}]
[119,{"$f":"Import!M37683","v":"Select"},{"$f":"Import!M37883","v":"Select"},{"$f":"Import!M38083","v":"Select"},{"$f":"Import!M38283","v":0},{"$f":"Import!M38483","v":0},{"$f":"Import!M38683","v":0}]
[120,{"$f":"Import!M37684","v":"Select"},{"$f":"Import!M37884","v":"Select"},{"$f":"Import!M38084","v":"Select"},{"$f":"Import!M38284","v":0},{"$f":"Import!M38484","v":0},{"$f":"Import!M38684","v":0}]
[121,{"$f":"Import!M37685","v":"Select"},{"$f":"Import!M37885","v":"Select"},{"$f":"Import!M38085","v":"Select"},{"$f":"Import!M38285","v":0},{"$f":"Import!M38485","v":0},{"$f":"Import!M38685","v":0}]
[122,{"$f":"Import!M37686","v":"Select"},{"$f":"Import!M37886","v":"Select"},{"$f":"Import!M38086","v":"Select"},{"$f":"Import!M38286","v":0},{"$f":"Import!M38486","v":0},{"$f":"Import!M38686","v":0}]
[123,{"$f":"Import!M37687","v":"Select"},{"$f":"Import!M37887","v":"Select"},{"$f":"Import!M38087","v":"Select"},{"$f":"Import!M38287","v":0},{"$f":"Import!M38487","v":0},{"$f":"Import!M38687","v":0}]
[124,{"$f":"Import!M37688","v":"Select"},{"$f":"Import!M37888","v":"Select"},{"$f":"Import!M38088","v":"Select"},{"$f":"Import!M38288","v":0},{"$f":"Import!M38488","v":0},{"$f":"Import!M38688","v":0}]
[125,{"$f":"Import!M37689","v":"Select"},{"$f":"Import!M37889","v":"Select"},{"$f":"Import!M38089","v":"Select"},{"$f":"Import!M38289","v":0},{"$f":"Import!M38489","v":0},{"$f":"Import!M38689","v":0}]
[126,{"$f":"Import!M37690","v":"Select"},{"$f":"Import!M37890","v":"Select"},{"$f":"Import!M38090","v":"Select"},{"$f":"Import!M38290","v":0},{"$f":"Import!M38490","v":0},{"$f":"Import!M38690","v":0}]
[127,{"$f":"Import!M37691","v":"Select"},{"$f":"Import!M37891","v":"Select"},{"$f":"Import!M38091","v":"Select"},{"$f":"Import!M38291","v":0},{"$f":"Import!M38491","v":0},{"$f":"Import!M38691","v":0}]
[128,{"$f":"Import!M37692","v":"Select"},{"$f":"Import!M37892","v":"Select"},{"$f":"Import!M38092","v":"Select"},{"$f":"Import!M38292","v":0},{"$f":"Import!M38492","v":0},{"$f":"Import!M38692","v":0}]
[129,{"$f":"Import!M37693","v":"Select"},{"$f":"Import!M37893","v":"Select"},{"$f":"Import!M38093","v":"Select"},{"$f":"Import!M38293","v":0},{"$f":"Import!M38493","v":0},{"$f":"Import!M38693","v":0}]
[130,{"$f":"Import!M37694","v":"Select"},{"$f":"Import!M37894","v":"Select"},{"$f":"Import!M38094","v":"Select"},{"$f":"Import!M38294","v":0},{"$f":"Import!M38494","v":0},{"$f":"Import!M38694","v":0}]
[{"$f":"A1925+1","v":131},{"$f":"Import!M37695","v":"Select"},{"$f":"Import!M37895","v":"Select"},{"$f":"Import!M38095","v":"Select"},{"$f":"Import!M38295","v":0},{"$f":"Import!M38495","v":0},{"$f":"Import!M38695","v":0}]
[132,{"$f":"Import!M37696","v":"Select"},{"$f":"Import!M37896","v":"Select"},{"$f":"Import!M38096","v":"Select"},{"$f":"Import!M38296","v":0},{"$f":"Import!M38496","v":0},{"$f":"Import!M38696","v":0}]
[133,{"$f":"Import!M37697","v":"Select"},{"$f":"Import!M37897","v":"Select"},{"$f":"Import!M38097","v":"Select"},{"$f":"Import!M38297","v":0},{"$f":"Import!M38497","v":0},{"$f":"Import!M38697","v":0}]
[134,{"$f":"Import!M37698","v":"Select"},{"$f":"Import!M37898","v":"Select"},{"$f":"Import!M38098","v":"Select"},{"$f":"Import!M38298","v":0},{"$f":"Import!M38498","v":0},{"$f":"Import!M38698","v":0}]
[135,{"$f":"Import!M37699","v":"Select"},{"$f":"Import!M37899","v":"Select"},{"$f":"Import!M38099","v":"Select"},{"$f":"Import!M38299","v":0},{"$f":"Import!M38499","v":0},{"$f":"Import!M38699","v":0}]
[136,{"$f":"Import!M37700","v":"Select"},{"$f":"Import!M37900","v":"Select"},{"$f":"Import!M38100","v":"Select"},{"$f":"Import!M38300","v":0},{"$f":"Import!M38500","v":0},{"$f":"Import!M38700","v":0}]
[137,{"$f":"Import!M37701","v":"Select"},{"$f":"Import!M37901","v":"Select"},{"$f":"Import!M38101","v":"Select"},{"$f":"Import!M38301","v":0},{"$f":"Import!M38501","v":0},{"$f":"Import!M38701","v":0}]
[138,{"$f":"Import!M37702","v":"Select"},{"$f":"Import!M37902","v":"Select"},{"$f":"Import!M38102","v":"Select"},{"$f":"Import!M38302","v":0},{"$f":"Import!M38502","v":0},{"$f":"Import!M38702","v":0}]
[139,{"$f":"Import!M37703","v":"Select"},{"$f":"Import!M37903","v":"Select"},{"$f":"Import!M38103","v":"Select"},{"$f":"Import!M38303","v":0},{"$f":"Import!M38503","v":0},{"$f":"Import!M38703","v":0}]
[140,{"$f":"Import!M37704","v":"Select"},{"$f":"Import!M37904","v":"Select"},{"$f":"Import!M38104","v":"Select"},{"$f":"Import!M38304","v":0},{"$f":"Import!M38504","v":0},{"$f":"Import!M38704","v":0}]
[141,{"$f":"Import!M37705","v":"Select"},{"$f":"Import!M37905","v":"Select"},{"$f":"Import!M38105","v":"Select"},{"$f":"Import!M38305","v":0},{"$f":"Import!M38505","v":0},{"$f":"Import!M38705","v":0}]
[142,{"$f":"Import!M37706","v":"Select"},{"$f":"Import!M37906","v":"Select"},{"$f":"Import!M38106","v":"Select"},{"$f":"Import!M38306","v":0},{"$f":"Import!M38506","v":0},{"$f":"Import!M38706","v":0}]
[143,{"$f":"Import!M37707","v":"Select"},{"$f":"Import!M37907","v":"Select"},{"$f":"Import!M38107","v":"Select"},{"$f":"Import!M38307","v":0},{"$f":"Import!M38507","v":0},{"$f":"Import!M38707","v":0}]
[144,{"$f":"Import!M37708","v":"Select"},{"$f":"Import!M37908","v":"Select"},{"$f":"Import!M38108","v":"Select"},{"$f":"Import!M38308","v":0},{"$f":"Import!M38508","v":0},{"$f":"Import!M38708","v":0}]
[145,{"$f":"Import!M37709","v":"Select"},{"$f":"Import!M37909","v":"Select"},{"$f":"Import!M38109","v":"Select"},{"$f":"Import!M38309","v":0},{"$f":"Import!M38509","v":0},{"$f":"Import!M38709","v":0}]
[146,{"$f":"Import!M37710","v":"Select"},{"$f":"Import!M37910","v":"Select"},{"$f":"Import!M38110","v":"Select"},{"$f":"Import!M38310","v":0},{"$f":"Import!M38510","v":0},{"$f":"Import!M38710","v":0}]
[147,{"$f":"Import!M37711","v":"Select"},{"$f":"Import!M37911","v":"Select"},{"$f":"Import!M38111","v":"Select"},{"$f":"Import!M38311","v":0},{"$f":"Import!M38511","v":0},{"$f":"Import!M38711","v":0}]
[148,{"$f":"Import!M37712","v":"Select"},{"$f":"Import!M37912","v":"Select"},{"$f":"Import!M38112","v":"Select"},{"$f":"Import!M38312","v":0},{"$f":"Import!M38512","v":0},{"$f":"Import!M38712","v":0}]
[149,{"$f":"Import!M37713","v":"Select"},{"$f":"Import!M37913","v":"Select"},{"$f":"Import!M38113","v":"Select"},{"$f":"Import!M38313","v":0},{"$f":"Import!M38513","v":0},{"$f":"Import!M38713","v":0}]
[150,{"$f":"Import!M37714","v":"Select"},{"$f":"Import!M37914","v":"Select"},{"$f":"Import!M38114","v":"Select"},{"$f":"Import!M38314","v":0},{"$f":"Import!M38514","v":0},{"$f":"Import!M38714","v":0}]
[151,{"$f":"Import!M37715","v":"Select"},{"$f":"Import!M37915","v":"Select"},{"$f":"Import!M38115","v":"Select"},{"$f":"Import!M38315","v":0},{"$f":"Import!M38515","v":0},{"$f":"Import!M38715","v":0}]
[152,{"$f":"Import!M37716","v":"Select"},{"$f":"Import!M37916","v":"Select"},{"$f":"Import!M38116","v":"Select"},{"$f":"Import!M38316","v":0},{"$f":"Import!M38516","v":0},{"$f":"Import!M38716","v":0}]
[153,{"$f":"Import!M37717","v":"Select"},{"$f":"Import!M37917","v":"Select"},{"$f":"Import!M38117","v":"Select"},{"$f":"Import!M38317","v":0},{"$f":"Import!M38517","v":0},{"$f":"Import!M38717","v":0}]
[154,{"$f":"Import!M37718","v":"Select"},{"$f":"Import!M37918","v":"Select"},{"$f":"Import!M38118","v":"Select"},{"$f":"Import!M38318","v":0},{"$f":"Import!M38518","v":0},{"$f":"Import!M38718","v":0}]
[155,{"$f":"Import!M37719","v":"Select"},{"$f":"Import!M37919","v":"Select"},{"$f":"Import!M38119","v":"Select"},{"$f":"Import!M38319","v":0},{"$f":"Import!M38519","v":0},{"$f":"Import!M38719","v":0}]
[156,{"$f":"Import!M37720","v":"Select"},{"$f":"Import!M37920","v":"Select"},{"$f":"Import!M38120","v":"Select"},{"$f":"Import!M38320","v":0},{"$f":"Import!M38520","v":0},{"$f":"Import!M38720","v":0}]
[157,{"$f":"Import!M37721","v":"Select"},{"$f":"Import!M37921","v":"Select"},{"$f":"Import!M38121","v":"Select"},{"$f":"Import!M38321","v":0},{"$f":"Import!M38521","v":0},{"$f":"Import!M38721","v":0}]
[158,{"$f":"Import!M37722","v":"Select"},{"$f":"Import!M37922","v":"Select"},{"$f":"Import!M38122","v":"Select"},{"$f":"Import!M38322","v":0},{"$f":"Import!M38522","v":0},{"$f":"Import!M38722","v":0}]
[159,{"$f":"Import!M37723","v":"Select"},{"$f":"Import!M37923","v":"Select"},{"$f":"Import!M38123","v":"Select"},{"$f":"Import!M38323","v":0},{"$f":"Import!M38523","v":0},{"$f":"Import!M38723","v":0}]
[160,{"$f":"Import!M37724","v":"Select"},{"$f":"Import!M37924","v":"Select"},{"$f":"Import!M38124","v":"Select"},{"$f":"Import!M38324","v":0},{"$f":"Import!M38524","v":0},{"$f":"Import!M38724","v":0}]
[161,{"$f":"Import!M37725","v":"Select"},{"$f":"Import!M37925","v":"Select"},{"$f":"Import!M38125","v":"Select"},{"$f":"Import!M38325","v":0},{"$f":"Import!M38525","v":0},{"$f":"Import!M38725","v":0}]
[162,{"$f":"Import!M37726","v":"Select"},{"$f":"Import!M37926","v":"Select"},{"$f":"Import!M38126","v":"Select"},{"$f":"Import!M38326","v":0},{"$f":"Import!M38526","v":0},{"$f":"Import!M38726","v":0}]
[163,{"$f":"Import!M37727","v":"Select"},{"$f":"Import!M37927","v":"Select"},{"$f":"Import!M38127","v":"Select"},{"$f":"Import!M38327","v":0},{"$f":"Import!M38527","v":0},{"$f":"Import!M38727","v":0}]
[164,{"$f":"Import!M37728","v":"Select"},{"$f":"Import!M37928","v":"Select"},{"$f":"Import!M38128","v":"Select"},{"$f":"Import!M38328","v":0},{"$f":"Import!M38528","v":0},{"$f":"Import!M38728","v":0}]
[165,{"$f":"Import!M37729","v":"Select"},{"$f":"Import!M37929","v":"Select"},{"$f":"Import!M38129","v":"Select"},{"$f":"Import!M38329","v":0},{"$f":"Import!M38529","v":0},{"$f":"Import!M38729","v":0}]
[166,{"$f":"Import!M37730","v":"Select"},{"$f":"Import!M37930","v":"Select"},{"$f":"Import!M38130","v":"Select"},{"$f":"Import!M38330","v":0},{"$f":"Import!M38530","v":0},{"$f":"Import!M38730","v":0}]
[167,{"$f":"Import!M37731","v":"Select"},{"$f":"Import!M37931","v":"Select"},{"$f":"Import!M38131","v":"Select"},{"$f":"Import!M38331","v":0},{"$f":"Import!M38531","v":0},{"$f":"Import!M38731","v":0}]
[168,{"$f":"Import!M37732","v":"Select"},{"$f":"Import!M37932","v":"Select"},{"$f":"Import!M38132","v":"Select"},{"$f":"Import!M38332","v":0},{"$f":"Import!M38532","v":0},{"$f":"Import!M38732","v":0}]
[169,{"$f":"Import!M37733","v":"Select"},{"$f":"Import!M37933","v":"Select"},{"$f":"Import!M38133","v":"Select"},{"$f":"Import!M38333","v":0},{"$f":"Import!M38533","v":0},{"$f":"Import!M38733","v":0}]
[170,{"$f":"Import!M37734","v":"Select"},{"$f":"Import!M37934","v":"Select"},{"$f":"Import!M38134","v":"Select"},{"$f":"Import!M38334","v":0},{"$f":"Import!M38534","v":0},{"$f":"Import!M38734","v":0}]
[171,{"$f":"Import!M37735","v":"Select"},{"$f":"Import!M37935","v":"Select"},{"$f":"Import!M38135","v":"Select"},{"$f":"Import!M38335","v":0},{"$f":"Import!M38535","v":0},{"$f":"Import!M38735","v":0}]
[172,{"$f":"Import!M37736","v":"Select"},{"$f":"Import!M37936","v":"Select"},{"$f":"Import!M38136","v":"Select"},{"$f":"Import!M38336","v":0},{"$f":"Import!M38536","v":0},{"$f":"Import!M38736","v":0}]
[173,{"$f":"Import!M37737","v":"Select"},{"$f":"Import!M37937","v":"Select"},{"$f":"Import!M38137","v":"Select"},{"$f":"Import!M38337","v":0},{"$f":"Import!M38537","v":0},{"$f":"Import!M38737","v":0}]
[174,{"$f":"Import!M37738","v":"Select"},{"$f":"Import!M37938","v":"Select"},{"$f":"Import!M38138","v":"Select"},{"$f":"Import!M38338","v":0},{"$f":"Import!M38538","v":0},{"$f":"Import!M38738","v":0}]
[175,{"$f":"Import!M37739","v":"Select"},{"$f":"Import!M37939","v":"Select"},{"$f":"Import!M38139","v":"Select"},{"$f":"Import!M38339","v":0},{"$f":"Import!M38539","v":0},{"$f":"Import!M38739","v":0}]
[176,{"$f":"Import!M37740","v":"Select"},{"$f":"Import!M37940","v":"Select"},{"$f":"Import!M38140","v":"Select"},{"$f":"Import!M38340","v":0},{"$f":"Import!M38540","v":0},{"$f":"Import!M38740","v":0}]
[177,{"$f":"Import!M37741","v":"Select"},{"$f":"Import!M37941","v":"Select"},{"$f":"Import!M38141","v":"Select"},{"$f":"Import!M38341","v":0},{"$f":"Import!M38541","v":0},{"$f":"Import!M38741","v":0}]
[178,{"$f":"Import!M37742","v":"Select"},{"$f":"Import!M37942","v":"Select"},{"$f":"Import!M38142","v":"Select"},{"$f":"Import!M38342","v":0},{"$f":"Import!M38542","v":0},{"$f":"Import!M38742","v":0}]
[179,{"$f":"Import!M37743","v":"Select"},{"$f":"Import!M37943","v":"Select"},{"$f":"Import!M38143","v":"Select"},{"$f":"Import!M38343","v":0},{"$f":"Import!M38543","v":0},{"$f":"Import!M38743","v":0}]
[180,{"$f":"Import!M37744","v":"Select"},{"$f":"Import!M37944","v":"Select"},{"$f":"Import!M38144","v":"Select"},{"$f":"Import!M38344","v":0},{"$f":"Import!M38544","v":0},{"$f":"Import!M38744","v":0}]
[181,{"$f":"Import!M37745","v":"Select"},{"$f":"Import!M37945","v":"Select"},{"$f":"Import!M38145","v":"Select"},{"$f":"Import!M38345","v":0},{"$f":"Import!M38545","v":0},{"$f":"Import!M38745","v":0}]
[182,{"$f":"Import!M37746","v":"Select"},{"$f":"Import!M37946","v":"Select"},{"$f":"Import!M38146","v":"Select"},{"$f":"Import!M38346","v":0},{"$f":"Import!M38546","v":0},{"$f":"Import!M38746","v":0}]
[183,{"$f":"Import!M37747","v":"Select"},{"$f":"Import!M37947","v":"Select"},{"$f":"Import!M38147","v":"Select"},{"$f":"Import!M38347","v":0},{"$f":"Import!M38547","v":0},{"$f":"Import!M38747","v":0}]
[184,{"$f":"Import!M37748","v":"Select"},{"$f":"Import!M37948","v":"Select"},{"$f":"Import!M38148","v":"Select"},{"$f":"Import!M38348","v":0},{"$f":"Import!M38548","v":0},{"$f":"Import!M38748","v":0}]
[185,{"$f":"Import!M37749","v":"Select"},{"$f":"Import!M37949","v":"Select"},{"$f":"Import!M38149","v":"Select"},{"$f":"Import!M38349","v":0},{"$f":"Import!M38549","v":0},{"$f":"Import!M38749","v":0}]
[186,{"$f":"Import!M37750","v":"Select"},{"$f":"Import!M37950","v":"Select"},{"$f":"Import!M38150","v":"Select"},{"$f":"Import!M38350","v":0},{"$f":"Import!M38550","v":0},{"$f":"Import!M38750","v":0}]
[187,{"$f":"Import!M37751","v":"Select"},{"$f":"Import!M37951","v":"Select"},{"$f":"Import!M38151","v":"Select"},{"$f":"Import!M38351","v":0},{"$f":"Import!M38551","v":0},{"$f":"Import!M38751","v":0}]
[188,{"$f":"Import!M37752","v":"Select"},{"$f":"Import!M37952","v":"Select"},{"$f":"Import!M38152","v":"Select"},{"$f":"Import!M38352","v":0},{"$f":"Import!M38552","v":0},{"$f":"Import!M38752","v":0}]
[189,{"$f":"Import!M37753","v":"Select"},{"$f":"Import!M37953","v":"Select"},{"$f":"Import!M38153","v":"Select"},{"$f":"Import!M38353","v":0},{"$f":"Import!M38553","v":0},{"$f":"Import!M38753","v":0}]
[190,{"$f":"Import!M37754","v":"Select"},{"$f":"Import!M37954","v":"Select"},{"$f":"Import!M38154","v":"Select"},{"$f":"Import!M38354","v":0},{"$f":"Import!M38554","v":0},{"$f":"Import!M38754","v":0}]
[191,{"$f":"Import!M37755","v":"Select"},{"$f":"Import!M37955","v":"Select"},{"$f":"Import!M38155","v":"Select"},{"$f":"Import!M38355","v":0},{"$f":"Import!M38555","v":0},{"$f":"Import!M38755","v":0}]
[192,{"$f":"Import!M37756","v":"Select"},{"$f":"Import!M37956","v":"Select"},{"$f":"Import!M38156","v":"Select"},{"$f":"Import!M38356","v":0},{"$f":"Import!M38556","v":0},{"$f":"Import!M38756","v":0}]
[193,{"$f":"Import!M37757","v":"Select"},{"$f":"Import!M37957","v":"Select"},{"$f":"Import!M38157","v":"Select"},{"$f":"Import!M38357","v":0},{"$f":"Import!M38557","v":0},{"$f":"Import!M38757","v":0}]
[194,{"$f":"Import!M37758","v":"Select"},{"$f":"Import!M37958","v":"Select"},{"$f":"Import!M38158","v":"Select"},{"$f":"Import!M38358","v":0},{"$f":"Import!M38558","v":0},{"$f":"Import!M38758","v":0}]
[{"$f":"A1989+1","v":195},{"$f":"Import!M37759","v":"Select"},{"$f":"Import!M37959","v":"Select"},{"$f":"Import!M38159","v":"Select"},{"$f":"Import!M38359","v":0},{"$f":"Import!M38559","v":0},{"$f":"Import!M38759","v":0}]
[196,{"$f":"Import!M37760","v":"Select"},{"$f":"Import!M37960","v":"Select"},{"$f":"Import!M38160","v":"Select"},{"$f":"Import!M38360","v":0},{"$f":"Import!M38560","v":0},{"$f":"Import!M38760","v":0}]
[197,{"$f":"Import!M37761","v":"Select"},{"$f":"Import!M37961","v":"Select"},{"$f":"Import!M38161","v":"Select"},{"$f":"Import!M38361","v":0},{"$f":"Import!M38561","v":0},{"$f":"Import!M38761","v":0}]
[198,{"$f":"Import!M37762","v":"Select"},{"$f":"Import!M37962","v":"Select"},{"$f":"Import!M38162","v":"Select"},{"$f":"Import!M38362","v":0},{"$f":"Import!M38562","v":0},{"$f":"Import!M38762","v":0}]
[199,{"$f":"Import!M37763","v":"Select"},{"$f":"Import!M37963","v":"Select"},{"$f":"Import!M38163","v":"Select"},{"$f":"Import!M38363","v":0},{"$f":"Import!M38563","v":0},{"$f":"Import!M38763","v":0}]
[200,{"$f":"Import!M37764","v":"Select"},{"$f":"Import!M37964","v":"Select"},{"$f":"Import!M38164","v":"Select"},{"$f":"Import!M38364","v":0},{"$f":"Import!M38564","v":0},{"$f":"Import!M38764","v":0}]
[]
[null,"Total Other Assets",null,null,null,{"$f":"SUM(F1796:F1995)","v":0}]
[]
[]
[null,"TOTAL ASSETS",null,null,null,{"$f":"F212+F620+F986+G1094+F1230+E1338+G1446+G1554+I1761+F1997","v":0}]
[]
[null,"TOTAL FUNDS HELD BY CEDING REINSURERS (Form 1EBS Line 12)",null,null,null,{"$f":"'Form 1EBS'!F71","v":0}]
[]
[null,"Check Form 1EBS (Line 12)",null,null,null,{"$f":"IF(F2006=0,\"TRUE\",\"FALSE\")","v":"TRUE"}]
[]
[null,"Difference",null,null,null,{"$f":"ROUND(F2002-F2000,0)","v":0}]
[]
[null,"(L) INFORMATION ON SECURITIES LENDING AND REPURCHASE TRANSACTIONS"]
[]
[null,null,{"$f":"YEAR($C$3)","v":2023}]
[null,null,"Notional Value","Fair Value",null,"Comments"]
[null,"Securities Lending transactions",{"$f":"Import!M38765","v":0},{"$f":"Import!M38767","v":0},null,{"$f":"Import!M38769","v":0}]
[null,"Repo / Reverse Repo transactions",{"$f":"Import!M38766","v":0},{"$f":"Import!M38768","v":0},null,{"$f":"Import!M38770","v":0}]
[]
[null,"Total",{"$f":"SUM(C2012:C2013)","v":0},{"$f":"SUM(D2012:D2013)","v":0}]
[]
[null,"(M) INFORMATION ON FAIR VALUATION HIERARCHY"]
[]
[null,null,{"$f":"YEAR($C$3)","v":2023},"Fair Value"]
[null,null,"Unaffiliated","Affiliated","Total","Comments"]
[null,"Level 1 Assets (according to Fair Value hierarchy)",{"$f":"Import!M38771","v":0},{"$f":"Import!M38774","v":0},{"$f":"SUM(C2021:D2021)","v":0},{"$f":"Import!M38777","v":0}]
[null,"Level 2 Assets (according to Fair Value hierarchy)",{"$f":"Import!M38772","v":0},{"$f":"Import!M38775","v":0},{"$f":"SUM(C2022:D2022)","v":0},{"$f":"Import!M38778","v":0}]
[null,"Level 3 Assets (according to Fair Value hierarchy)",{"$f":"Import!M38773","v":0},{"$f":"Import!M38776","v":0},{"$f":"SUM(C2023:D2023)","v":0},{"$f":"Import!M38779","v":0}]
[]
[null,"Total",{"$f":"SUM(C2021:C2023)","v":0},{"$f":"SUM(D2021:D2023)","v":0},{"$f":"SUM(E2021:E2023)","v":0}]
[]
[null,"Check Securities Allocated by Levels 1-3",null,null,{"$f":"F212+F620+F986+G1094+F1230+E1338+G1446+G1554","v":0}]
[]
[null,"Difference",null,null,{"$f":"ROUND(E2025-E2027,0)","v":0},{"$f":"IF(E2029=0,\"TRUE\",\"FALSE\")","v":"TRUE"}]
[]
[null,"EFFECTIVE DURATION",null,null,{"$f":"Import!M38780","v":0}]
[]
[null,"EFFECTIVE CONVEXITY",null,null,{"$f":"Import!M38781","v":0}]
[]
[null,"Fair Values",{"$f":"YEAR(C3)","v":2023}]
[null,null,null,null,null,null,null,null,"If Other Rating Agency is used, specify the name of such agency (if applicable)",{"$f":"Import!M38782","v":0},{"$f":"Import!M38783","v":0},{"$f":"Import!M38784","v":0},{"$f":"Import!M38785","v":0}]
[null,"Asset/Rating Category","BSCR Rating","Moody's Investor's Service","Standard and Poor's","Dominion Bond Rating Service","Kroll Bond Rating Agency","Egan Jones Rating Company","Japan Credit Rating Agency","BMA-approved Internal Ratings","Other BMA-approved Rating Agency 1","Other BMA-approved Rating Agency 2","Other BMA-approved Rating Agency 3","Total"]
[null,"Financial institutions, brokers and dealers",1,{"$f":"Import!M38786","v":0},{"$f":"Import!M38827","v":0},{"$f":"Import!M38868","v":0},{"$f":"Import!M38909","v":0},{"$f":"Import!M38950","v":0},{"$f":"Import!M38991","v":0},{"$f":"Import!M39032","v":0},{"$f":"Import!M39073","v":0},{"$f":"Import!M39114","v":0},{"$f":"Import!M39155","v":0},{"$f":"SUM(D2038:M2038)","v":0}]
[null,"Financial institutions, brokers and dealers",2,{"$f":"Import!M38787","v":0},{"$f":"Import!M38828","v":0},{"$f":"Import!M38869","v":0},{"$f":"Import!M38910","v":0},{"$f":"Import!M38951","v":0},{"$f":"Import!M38992","v":0},{"$f":"Import!M39033","v":0},{"$f":"Import!M39074","v":0},{"$f":"Import!M39115","v":0},{"$f":"Import!M39156","v":0},{"$f":"SUM(D2039:M2039)","v":0}]
[null,"Financial institutions, brokers and dealers",3,{"$f":"Import!M38788","v":0},{"$f":"Import!M38829","v":0},{"$f":"Import!M38870","v":0},{"$f":"Import!M38911","v":0},{"$f":"Import!M38952","v":0},{"$f":"Import!M38993","v":0},{"$f":"Import!M39034","v":0},{"$f":"Import!M39075","v":0},{"$f":"Import!M39116","v":0},{"$f":"Import!M39157","v":0},0]
[null,"Financial institutions, brokers and dealers",4,{"$f":"Import!M38789","v":0},{"$f":"Import!M38830","v":0},{"$f":"Import!M38871","v":0},{"$f":"Import!M38912","v":0},{"$f":"Import!M38953","v":0},{"$f":"Import!M38994","v":0},{"$f":"Import!M39035","v":0},{"$f":"Import!M39076","v":0},{"$f":"Import!M39117","v":0},{"$f":"Import!M39158","v":0},0]
[null,"Financial institutions, brokers and dealers",5,{"$f":"Import!M38790","v":0},{"$f":"Import!M38831","v":0},{"$f":"Import!M38872","v":0},{"$f":"Import!M38913","v":0},{"$f":"Import!M38954","v":0},{"$f":"Import!M38995","v":0},{"$f":"Import!M39036","v":0},{"$f":"Import!M39077","v":0},{"$f":"Import!M39118","v":0},{"$f":"Import!M39159","v":0},0]
[null,"Financial institutions, brokers and dealers",6,{"$f":"Import!M38791","v":0},{"$f":"Import!M38832","v":0},{"$f":"Import!M38873","v":0},{"$f":"Import!M38914","v":0},{"$f":"Import!M38955","v":0},{"$f":"Import!M38996","v":0},{"$f":"Import!M39037","v":0},{"$f":"Import!M39078","v":0},{"$f":"Import!M39119","v":0},{"$f":"Import!M39160","v":0},0]
[null,"Financial institutions, brokers and dealers",7,{"$f":"Import!M38792","v":0},{"$f":"Import!M38833","v":0},{"$f":"Import!M38874","v":0},{"$f":"Import!M38915","v":0},{"$f":"Import!M38956","v":0},{"$f":"Import!M38997","v":0},{"$f":"Import!M39038","v":0},{"$f":"Import!M39079","v":0},{"$f":"Import!M39120","v":0},{"$f":"Import!M39161","v":0},0]
[null,"Financial institutions, brokers and dealers",8,{"$f":"Import!M38793","v":0},{"$f":"Import!M38834","v":0},{"$f":"Import!M38875","v":0},{"$f":"Import!M38916","v":0},{"$f":"Import!M38957","v":0},{"$f":"Import!M38998","v":0},{"$f":"Import!M39039","v":0},{"$f":"Import!M39080","v":0},{"$f":"Import!M39121","v":0},{"$f":"Import!M39162","v":0},0]
[null,"Insurance companies",1,{"$f":"Import!M38794","v":0},{"$f":"Import!M38835","v":0},{"$f":"Import!M38876","v":0},{"$f":"Import!M38917","v":0},{"$f":"Import!M38958","v":0},{"$f":"Import!M38999","v":0},{"$f":"Import!M39040","v":0},{"$f":"Import!M39081","v":0},{"$f":"Import!M39122","v":0},{"$f":"Import!M39163","v":0},0]
[null,"Insurance companies",2,{"$f":"Import!M38795","v":0},{"$f":"Import!M38836","v":0},{"$f":"Import!M38877","v":0},{"$f":"Import!M38918","v":0},{"$f":"Import!M38959","v":0},{"$f":"Import!M39000","v":0},{"$f":"Import!M39041","v":0},{"$f":"Import!M39082","v":0},{"$f":"Import!M39123","v":0},{"$f":"Import!M39164","v":0},0]
[null,"Insurance companies",3,{"$f":"Import!M38796","v":0},{"$f":"Import!M38837","v":0},{"$f":"Import!M38878","v":0},{"$f":"Import!M38919","v":0},{"$f":"Import!M38960","v":0},{"$f":"Import!M39001","v":0},{"$f":"Import!M39042","v":0},{"$f":"Import!M39083","v":0},{"$f":"Import!M39124","v":0},{"$f":"Import!M39165","v":0},0]
[null,"Insurance companies",4,{"$f":"Import!M38797","v":0},{"$f":"Import!M38838","v":0},{"$f":"Import!M38879","v":0},{"$f":"Import!M38920","v":0},{"$f":"Import!M38961","v":0},{"$f":"Import!M39002","v":0},{"$f":"Import!M39043","v":0},{"$f":"Import!M39084","v":0},{"$f":"Import!M39125","v":0},{"$f":"Import!M39166","v":0},0]
[null,"Insurance companies",5,{"$f":"Import!M38798","v":0},{"$f":"Import!M38839","v":0},{"$f":"Import!M38880","v":0},{"$f":"Import!M38921","v":0},{"$f":"Import!M38962","v":0},{"$f":"Import!M39003","v":0},{"$f":"Import!M39044","v":0},{"$f":"Import!M39085","v":0},{"$f":"Import!M39126","v":0},{"$f":"Import!M39167","v":0},0]
[null,"Insurance companies",6,{"$f":"Import!M38799","v":0},{"$f":"Import!M38840","v":0},{"$f":"Import!M38881","v":0},{"$f":"Import!M38922","v":0},{"$f":"Import!M38963","v":0},{"$f":"Import!M39004","v":0},{"$f":"Import!M39045","v":0},{"$f":"Import!M39086","v":0},{"$f":"Import!M39127","v":0},{"$f":"Import!M39168","v":0},0]
[null,"Insurance companies",7,{"$f":"Import!M38800","v":0},{"$f":"Import!M38841","v":0},{"$f":"Import!M38882","v":0},{"$f":"Import!M38923","v":0},{"$f":"Import!M38964","v":0},{"$f":"Import!M39005","v":0},{"$f":"Import!M39046","v":0},{"$f":"Import!M39087","v":0},{"$f":"Import!M39128","v":0},{"$f":"Import!M39169","v":0},0]
[null,"Insurance companies",8,{"$f":"Import!M38801","v":0},{"$f":"Import!M38842","v":0},{"$f":"Import!M38883","v":0},{"$f":"Import!M38924","v":0},{"$f":"Import!M38965","v":0},{"$f":"Import!M39006","v":0},{"$f":"Import!M39047","v":0},{"$f":"Import!M39088","v":0},{"$f":"Import!M39129","v":0},{"$f":"Import!M39170","v":0},0]
[null,"Corporate issuers",1,{"$f":"Import!M38802","v":0},{"$f":"Import!M38843","v":0},{"$f":"Import!M38884","v":0},{"$f":"Import!M38925","v":0},{"$f":"Import!M38966","v":0},{"$f":"Import!M39007","v":0},{"$f":"Import!M39048","v":0},{"$f":"Import!M39089","v":0},{"$f":"Import!M39130","v":0},{"$f":"Import!M39171","v":0},0]
[null,"Corporate issuers",2,{"$f":"Import!M38803","v":0},{"$f":"Import!M38844","v":0},{"$f":"Import!M38885","v":0},{"$f":"Import!M38926","v":0},{"$f":"Import!M38967","v":0},{"$f":"Import!M39008","v":0},{"$f":"Import!M39049","v":0},{"$f":"Import!M39090","v":0},{"$f":"Import!M39131","v":0},{"$f":"Import!M39172","v":0},0]
[null,"Corporate issuers",3,{"$f":"Import!M38804","v":0},{"$f":"Import!M38845","v":0},{"$f":"Import!M38886","v":0},{"$f":"Import!M38927","v":0},{"$f":"Import!M38968","v":0},{"$f":"Import!M39009","v":0},{"$f":"Import!M39050","v":0},{"$f":"Import!M39091","v":0},{"$f":"Import!M39132","v":0},{"$f":"Import!M39173","v":0},0]
[null,"Corporate issuers",4,{"$f":"Import!M38805","v":0},{"$f":"Import!M38846","v":0},{"$f":"Import!M38887","v":0},{"$f":"Import!M38928","v":0},{"$f":"Import!M38969","v":0},{"$f":"Import!M39010","v":0},{"$f":"Import!M39051","v":0},{"$f":"Import!M39092","v":0},{"$f":"Import!M39133","v":0},{"$f":"Import!M39174","v":0},0]
[null,"Corporate issuers",5,{"$f":"Import!M38806","v":0},{"$f":"Import!M38847","v":0},{"$f":"Import!M38888","v":0},{"$f":"Import!M38929","v":0},{"$f":"Import!M38970","v":0},{"$f":"Import!M39011","v":0},{"$f":"Import!M39052","v":0},{"$f":"Import!M39093","v":0},{"$f":"Import!M39134","v":0},{"$f":"Import!M39175","v":0},0]
[null,"Corporate issuers",6,{"$f":"Import!M38807","v":0},{"$f":"Import!M38848","v":0},{"$f":"Import!M38889","v":0},{"$f":"Import!M38930","v":0},{"$f":"Import!M38971","v":0},{"$f":"Import!M39012","v":0},{"$f":"Import!M39053","v":0},{"$f":"Import!M39094","v":0},{"$f":"Import!M39135","v":0},{"$f":"Import!M39176","v":0},0]
[null,"Corporate issuers",7,{"$f":"Import!M38808","v":0},{"$f":"Import!M38849","v":0},{"$f":"Import!M38890","v":0},{"$f":"Import!M38931","v":0},{"$f":"Import!M38972","v":0},{"$f":"Import!M39013","v":0},{"$f":"Import!M39054","v":0},{"$f":"Import!M39095","v":0},{"$f":"Import!M39136","v":0},{"$f":"Import!M39177","v":0},0]
[null,"Corporate issuers",8,{"$f":"Import!M38809","v":0},{"$f":"Import!M38850","v":0},{"$f":"Import!M38891","v":0},{"$f":"Import!M38932","v":0},{"$f":"Import!M38973","v":0},{"$f":"Import!M39014","v":0},{"$f":"Import!M39055","v":0},{"$f":"Import!M39096","v":0},{"$f":"Import!M39137","v":0},{"$f":"Import!M39178","v":0},0]
[null,"Issuers of asset-backed securities",1,{"$f":"Import!M38810","v":0},{"$f":"Import!M38851","v":0},{"$f":"Import!M38892","v":0},{"$f":"Import!M38933","v":0},{"$f":"Import!M38974","v":0},{"$f":"Import!M39015","v":0},{"$f":"Import!M39056","v":0},{"$f":"Import!M39097","v":0},{"$f":"Import!M39138","v":0},{"$f":"Import!M39179","v":0},0]
[null,"Issuers of asset-backed securities",2,{"$f":"Import!M38811","v":0},{"$f":"Import!M38852","v":0},{"$f":"Import!M38893","v":0},{"$f":"Import!M38934","v":0},{"$f":"Import!M38975","v":0},{"$f":"Import!M39016","v":0},{"$f":"Import!M39057","v":0},{"$f":"Import!M39098","v":0},{"$f":"Import!M39139","v":0},{"$f":"Import!M39180","v":0},0]
[null,"Issuers of asset-backed securities",3,{"$f":"Import!M38812","v":0},{"$f":"Import!M38853","v":0},{"$f":"Import!M38894","v":0},{"$f":"Import!M38935","v":0},{"$f":"Import!M38976","v":0},{"$f":"Import!M39017","v":0},{"$f":"Import!M39058","v":0},{"$f":"Import!M39099","v":0},{"$f":"Import!M39140","v":0},{"$f":"Import!M39181","v":0},0]
[null,"Issuers of asset-backed securities",4,{"$f":"Import!M38813","v":0},{"$f":"Import!M38854","v":0},{"$f":"Import!M38895","v":0},{"$f":"Import!M38936","v":0},{"$f":"Import!M38977","v":0},{"$f":"Import!M39018","v":0},{"$f":"Import!M39059","v":0},{"$f":"Import!M39100","v":0},{"$f":"Import!M39141","v":0},{"$f":"Import!M39182","v":0},0]
[null,"Issuers of asset-backed securities",5,{"$f":"Import!M38814","v":0},{"$f":"Import!M38855","v":0},{"$f":"Import!M38896","v":0},{"$f":"Import!M38937","v":0},{"$f":"Import!M38978","v":0},{"$f":"Import!M39019","v":0},{"$f":"Import!M39060","v":0},{"$f":"Import!M39101","v":0},{"$f":"Import!M39142","v":0},{"$f":"Import!M39183","v":0},0]
[null,"Issuers of asset-backed securities",6,{"$f":"Import!M38815","v":0},{"$f":"Import!M38856","v":0},{"$f":"Import!M38897","v":0},{"$f":"Import!M38938","v":0},{"$f":"Import!M38979","v":0},{"$f":"Import!M39020","v":0},{"$f":"Import!M39061","v":0},{"$f":"Import!M39102","v":0},{"$f":"Import!M39143","v":0},{"$f":"Import!M39184","v":0},0]
[null,"Issuers of asset-backed securities",7,{"$f":"Import!M38816","v":0},{"$f":"Import!M38857","v":0},{"$f":"Import!M38898","v":0},{"$f":"Import!M38939","v":0},{"$f":"Import!M38980","v":0},{"$f":"Import!M39021","v":0},{"$f":"Import!M39062","v":0},{"$f":"Import!M39103","v":0},{"$f":"Import!M39144","v":0},{"$f":"Import!M39185","v":0},0]
[null,"Issuers of asset-backed securities",8,{"$f":"Import!M38817","v":0},{"$f":"Import!M38858","v":0},{"$f":"Import!M38899","v":0},{"$f":"Import!M38940","v":0},{"$f":"Import!M38981","v":0},{"$f":"Import!M39022","v":0},{"$f":"Import!M39063","v":0},{"$f":"Import!M39104","v":0},{"$f":"Import!M39145","v":0},{"$f":"Import!M39186","v":0},0]
[null,"Government securities, municipal securities, foreign government securities",0,{"$f":"Import!M38818","v":0},{"$f":"Import!M38859","v":0},{"$f":"Import!M38900","v":0},{"$f":"Import!M38941","v":0},{"$f":"Import!M38982","v":0},{"$f":"Import!M39023","v":0},{"$f":"Import!M39064","v":0},{"$f":"Import!M39105","v":0},{"$f":"Import!M39146","v":0},{"$f":"Import!M39187","v":0},0]
[null,"Government securities, municipal securities, foreign government securities",1,{"$f":"Import!M38819","v":0},{"$f":"Import!M38860","v":0},{"$f":"Import!M38901","v":0},{"$f":"Import!M38942","v":0},{"$f":"Import!M38983","v":0},{"$f":"Import!M39024","v":0},{"$f":"Import!M39065","v":0},{"$f":"Import!M39106","v":0},{"$f":"Import!M39147","v":0},{"$f":"Import!M39188","v":0},0]
[null,"Government securities, municipal securities, foreign government securities",2,{"$f":"Import!M38820","v":0},{"$f":"Import!M38861","v":0},{"$f":"Import!M38902","v":0},{"$f":"Import!M38943","v":0},{"$f":"Import!M38984","v":0},{"$f":"Import!M39025","v":0},{"$f":"Import!M39066","v":0},{"$f":"Import!M39107","v":0},{"$f":"Import!M39148","v":0},{"$f":"Import!M39189","v":0},0]
[null,"Government securities, municipal securities, foreign government securities",3,{"$f":"Import!M38821","v":0},{"$f":"Import!M38862","v":0},{"$f":"Import!M38903","v":0},{"$f":"Import!M38944","v":0},{"$f":"Import!M38985","v":0},{"$f":"Import!M39026","v":0},{"$f":"Import!M39067","v":0},{"$f":"Import!M39108","v":0},{"$f":"Import!M39149","v":0},{"$f":"Import!M39190","v":0},0]
[null,"Government securities, municipal securities, foreign government securities",4,{"$f":"Import!M38822","v":0},{"$f":"Import!M38863","v":0},{"$f":"Import!M38904","v":0},{"$f":"Import!M38945","v":0},{"$f":"Import!M38986","v":0},{"$f":"Import!M39027","v":0},{"$f":"Import!M39068","v":0},{"$f":"Import!M39109","v":0},{"$f":"Import!M39150","v":0},{"$f":"Import!M39191","v":0},0]
[null,"Government securities, municipal securities, foreign government securities",5,{"$f":"Import!M38823","v":0},{"$f":"Import!M38864","v":0},{"$f":"Import!M38905","v":0},{"$f":"Import!M38946","v":0},{"$f":"Import!M38987","v":0},{"$f":"Import!M39028","v":0},{"$f":"Import!M39069","v":0},{"$f":"Import!M39110","v":0},{"$f":"Import!M39151","v":0},{"$f":"Import!M39192","v":0},0]
[null,"Government securities, municipal securities, foreign government securities",6,{"$f":"Import!M38824","v":0},{"$f":"Import!M38865","v":0},{"$f":"Import!M38906","v":0},{"$f":"Import!M38947","v":0},{"$f":"Import!M38988","v":0},{"$f":"Import!M39029","v":0},{"$f":"Import!M39070","v":0},{"$f":"Import!M39111","v":0},{"$f":"Import!M39152","v":0},{"$f":"Import!M39193","v":0},0]
[null,"Government securities, municipal securities, foreign government securities",7,{"$f":"Import!M38825","v":0},{"$f":"Import!M38866","v":0},{"$f":"Import!M38907","v":0},{"$f":"Import!M38948","v":0},{"$f":"Import!M38989","v":0},{"$f":"Import!M39030","v":0},{"$f":"Import!M39071","v":0},{"$f":"Import!M39112","v":0},{"$f":"Import!M39153","v":0},{"$f":"Import!M39194","v":0},0]
[null,"Government securities, municipal securities, foreign government securities",8,{"$f":"Import!M38826","v":0},{"$f":"Import!M38867","v":0},{"$f":"Import!M38908","v":0},{"$f":"Import!M38949","v":0},{"$f":"Import!M38990","v":0},{"$f":"Import!M39031","v":0},{"$f":"Import!M39072","v":0},{"$f":"Import!M39113","v":0},{"$f":"Import!M39154","v":0},{"$f":"Import!M39195","v":0},0]
[null,null,null,null,null,null,null,null,null,null,null,null,"Total",{"$f":"SUM(N2038:N2078)","v":0}]
[]
[null,"Total rated assets","BSCR Rating","Moody's Investor's Service","Standard and Poor's","Dominion Bond Rating Service","Kroll Bond Rating Agency","Egan Jones Rating Company","Japan Credit Rating Agency","BMA-approved Internal Ratings","Other BMA-approved Rating Agency 1","Other BMA-approved Rating Agency 2","Other BMA-approved Rating Agency 3","Total"]
[null,"Total rated assets",0,{"$f":"D2070","v":0},{"$f":"E2070","v":0},0,0,0,0,0,0,0,0,{"$f":"SUM(D2082:M2082)","v":0}]
[null,"Total rated assets",1,{"$f":"D2038+D2046+D2054+D2062+D2071","v":0},{"$f":"E2038+E2046+E2054+E2062+E2071","v":0},0,0,0,0,0,0,0,0,{"$f":"SUM(D2083:M2083)","v":0}]
[null,"Total rated assets",2,{"$f":"D2039+D2047+D2055+D2063+D2072","v":0},0,0,0,0,0,0,0,0,0,0]
[null,"Total rated assets",3,0,0,0,0,0,0,0,0,0,0,0]
[null,"Total rated assets",4,0,0,0,0,0,0,0,0,0,0,0]
[null,"Total rated assets",5,0,0,0,0,0,0,0,0,0,0,0]
[null,"Total rated assets",6,0,0,0,0,0,0,0,0,0,0,0]
[null,"Total rated assets",7,0,0,0,0,0,0,0,0,0,0,0]
[null,"Total rated assets",8,0,0,0,0,0,0,0,0,0,0,0]
[null,"Total rated assets","Total",{"$f":"SUM(D2082:D2090)","v":0},{"$f":"SUM(E2082:E2090)","v":0},0,0,0,0,0,0,0,0,0]
[]
[null,"Asset/Rating Category","BSCR Rating","Unrated"]
[null,"Financial institutions, brokers and dealers",8,{"$f":"Import!M39196","v":0}]
[null,"Insurance companies",8,{"$f":"Import!M39197","v":0}]
[null,"Corporate issuers",8,{"$f":"Import!M39198","v":0}]
[null,"Issuers of asset-backed securities",8,{"$f":"Import!M39199","v":0}]
[null,"Government securities, municipal securities, foreign government securities",8,{"$f":"Import!M39200","v":0}]
[null,"Total unrated assets","Total",{"$f":"SUM(D2094:D2098)","v":0}]
[]
[null,"Asset/Rating Category","BSCR Rating","Financial institutions, brokers and dealers","Insurance companies","Corporate issuers","Issuers of asset-backed securities","Government securities, municipal securities, foreign government securities","Total"]
[null,"Total",0,null,null,null,null,{"$f":"N2070","v":0},{"$f":"SUM(H2102)","v":0}]
[null,"Total",1,{"$f":"N2038","v":0},{"$f":"N2046","v":0},{"$f":"N2054","v":0},{"$f":"N2062","v":0},0,{"$f":"SUM(D2103:H2103)","v":0}]
[null,"Total",2,0,0,0,0,0,{"$f":"SUM(D2104:H2104)","v":0}]
[null,"Total",3,0,0,0,0,0,0]
[null,"Total",4,0,0,0,0,0,0]
[null,"Total",5,0,0,0,0,0,0]
[null,"Total",6,0,0,0,0,0,0]
[null,"Total",7,0,0,0,0,0,0]
[null,"Total",8,{"$f":"N2045+D2094","v":0},{"$f":"N2053+D2095","v":0},{"$f":"N2061+D2096","v":0},{"$f":"N2069+D2097","v":0},{"$f":"N2078+D2098","v":0},0]
[null,"Total fixed income assets","Total",{"$f":"SUM(D2103:D2110)","v":0},{"$f":"SUM(E2103:E2110)","v":0},{"$f":"SUM(F2103:F2110)","v":0},{"$f":"SUM(G2103:G2110)","v":0},{"$f":"SUM(H2102:H2110)","v":0},{"$f":"SUM(D2111:H2111)","v":0}]
[null,"Unrated","- of which unrated",{"$f":"D2094","v":0},{"$f":"D2095","v":0},{"$f":"D2096","v":0},{"$f":"D2097","v":0},{"$f":"D2098","v":0},{"$f":"SUM(D2112:H2112)","v":0}]
[]
[]
["Cash","Sovereign Bonds","RMBS - Agency","Listed Preferred Equity - Direct","Hedge Funds","Investment Income Due and Accrued","Energy","Holding Entity","Significant Influence","United States Dollars","Positive market value",null,null,null,null,"Residential Mortgages",null,"United States of America"]
["Certificates of Deposit","Municipals","RMBS - Non-agency","Listed Preferred Equity - ETF","Equity investments in Infrastructure","Accounts and Premiums Receivable","Materials","Operating Entity","Control","Euro","Negative market value",null,null,null,null,"Other Residential Loans",null,"Bermuda"]
["Short-Term Commercial Paper","Supranationals (multilateral development banks and international organizations)","CMBS","Listed Preferred Equity - Mutual Fund","Commodities - Direct","Reinsurance Balance Receivable","Industrial","Branch","Select","Afghanistan Afghanis","Select",null,null,null,null,"Commercial and Farm Mortgages",null,"United Kingdom of Great Britain and Northern Ireland"]
["Money Market Funds","Corporate bonds","CLOs","Private Preferred Equity - Direct","Commodities - ETF","Funds Held by Ceding Reinsurers","Consumer Discretionary","Select",null,"Albania Leke",null,null,null,null,null,"Other Commercial Real Estate Loans",null,"Canada"]
["Other","Private Placements","CDOs","Private Preferred Equity - Fund","Commodities - Mutual Funds","SAC - long-term business - variable annuities","Consumer Staples",null,null,"Armenia Drams",null,null,null,null,null,"Middle Market Loans"]
["Select","Other - Secured Bonds","Auto Loan ABS","Other - Listed Preferred Equity","Catastrophe Bonds","SAC - long-term business - others","Healthcare",null,null,"Netherlands Antilles Guilders",null,null,null,null,null,"Leveraged Loans",null,"Afghanistan"]
[null,"Other - Unsecured Bonds","Student Loan ABS","Other - Private Preferred Equity","Other Insurance-Linked Securities","SAC - general business","Financial",null,null,"Angola Kwanza",null,null,null,null,null,"Other Direct Private Lending",null,"Aland Islands"]
[null,"Exchange-Traded Fund - Sovereigns","Credit Card Receivable ABS","Select","Advances to Affiliates","Deposit assets","Select",null,null,"Argentina Pesos",null,null,null,null,null,"Infrastructure Loans",null,"Albania"]
[null,"Mutual Fund - Sovereigns","Other ABS",null,"Investments in Affiliates","Other Sundry Assets",null,null,null,"Australia Dollars",null,null,null,null,null,"Collateral Loans",null,"Algeria"]
[null,"Exchange-Traded Fund - Corporates","Select",null,"Other","Letter of Credit, Guarantees and Other Instruments",null,null,null,"Aruba Guilders",null,null,null,null,null,"Equity Release / Reverse Mortgages",null,"American Samoa"]
[null,"Mutual Fund - Corporates",null,null,"Select","Other",null,null,null,"Azerbaijan New Manats",null,null,null,null,null,"Policy Loans",null,"Andorra"]
[null,"Other Funds",null,null,null,"Select",null,null,null,"Bosnia and Herzegovina Convertible Marka",null,null,null,null,null,"Other Direct Loans",null,"Angola"]
[null,"Select",null,null,null,null,null,null,null,"Barbados Dollars",null,null,null,null,null,"Mortgage Loan Fund - Residential",null,"Anguilla"]
[null,null,null,null,null,null,null,null,null,"Bangladesh Taka",null,null,null,null,null,"Mortgage Loan Fund - Commercial",null,"Antigua and Barbuda"]
[null,null,null,null,null,null,null,null,null,"Bulgaria Leva",null,null,null,null,null,"Private Credit Fund",null,"Argentina"]
[null,null,null,null,null,null,null,null,null,"Bahrain Dinars",null,null,null,null,null,"Other Loan Fund",null,"Armenia"]
["Listed options","Equity","Hedging","Long / Receive Fixed / Sell Protection","Private Equities","Investment Income Due and Accrued","Direct Real Estate - Residential",null,null,"Burundi Francs",null,null,null,null,null,"Select",null,"Aruba"]
["Futures","Debt","Speculative","Short / Receive Floating / Buy Protection","Investment Funds","Accounts and Premiums Receivable","Direct Real Estate - Commercial",null,null,"Bermuda Dollars",null,null,null,null,null,null,null,"Australia"]
["Forwards","Interest Rate","Select","Select","Hedge Funds","Reinsurance Balance Receivable","Direct Real-Estate - Industrial",null,null,"Brunei Dollars",null,null,null,null,null,"Insured/Guaranteed Mortgages",null,"Austria"]
["Swaps","Inflation",null,null,"Private Credit Funds","SAC - long-term business - variable annuities","Direct Real Estate - Land",null,null,"Bolivia Bolivianos",null,null,null,null,null,"Other Commercial and Farm Mortgages",null,"Azerbaijan"]
["Swaptions","Credit",null,null,"Catastrophe Bonds","SAC - long-term business - others","Real Estate Funds - Residential",null,null,"Brazil Reais",null,null,null,null,null,"Other Residential Mortgages",null,"Bahamas"]
["OTC options","Currencies","Yes","Exchange-traded","Other Insurance-Linked Securities","SAC - general business","Real Estate Funds - Commercial",null,null,"Bahamas Dollars",null,null,null,null,null,"Mortgages Not In Good Standing",null,"Bahrain"]
["Other","Commodities","No","OTC – Centrally-cleared","Infrastructure Debt","Deposit assets","Real-Estate Funds - Industrial",null,null,"Bhutan Ngultrum",null,null,null,null,null,"Collateral Loans",null,"Bangladesh"]
["Select","Other","Select","OTC – Not centrally-cleared","Equity Investments in Infrastructure","Other Sundry Assets","Real Estate Funds - Land",null,null,"Botswana Pulas",null,null,null,null,null,"Middle Market Loans",null,"Barbados"]
[null,"Select",null,"Select","Other","Letter of Credit, Guarantees and Other Instruments","Direct Real Estate - Other",null,null,"Belarus Rubles",null,null,null,null,null,"Other Direct Private Lending",null,"Belarus"]
[null,null,null,null,"Select","Other","Real Estate Funds - Other",null,null,"Belize Dollars",null,null,null,null,null,"Policy Loans",null,"Belgium"]
[null,null,null,null,null,"Select","Select",null,null,"Canada Dollars",null,null,null,null,null,"Other",null,"Belize"]
[null,null,null,null,null,null,null,null,null,"Congo/Kinshasa Francs",null,null,null,null,null,"Select",null,"Benin"]
[null,null,null,null,null,null,null,null,null,"Switzerland Francs",null,null,null,null,null,null,null,"Bhutan"]
["BSCR Rating",null,"Listed Equity - Direct",null,null,null,null,null,null,"Chile Pesos",null,null,null,null,null,null,null,"Bolivia (Plurinational State of)"]
["Select",null,"Listed Equity - ETF",null,null,null,"Investment",null,null,"China Yuan Renminbi",null,null,null,null,null,null,null,"Bonaire, Sint Eustatius and Saba"]
["BSCR Rating 0",null,"Listed Equity - Mutual Fund",null,null,null,"Owner-occupied",null,null,"Colombia Pesos",null,null,null,null,null,null,null,"Bosnia and Herzegovina"]
["BSCR Rating 1",null,"Private Equity - Direct",null,null,null,"Select",null,null,"Costa Rica Colones",null,null,null,null,null,null,null,"Botswana"]
["BSCR Rating 2",null,"Private Equity - Fund",null,null,null,null,null,null,"Cuba Convertible Pesos",null,null,null,null,null,null,null,"Brazil"]
["BSCR Rating 3",null,"Other - Listed Equity",null,null,null,null,null,null,"Cuba Pesos",null,null,null,null,null,null,null,"British Virgin Islands"]
["BSCR Rating 4",null,"Other - Private Equity",null,null,null,null,null,null,"Cape Verde Escudos",null,null,null,null,null,null,null,"Brunei Darussalam"]
["BSCR Rating 5",null,"Select",null,null,null,null,null,null,"Czech Republic Koruny",null,null,null,null,null,null,null,"Bulgaria"]
["BSCR Rating 6",null,null,null,null,null,null,null,null,"Djibouti Francs",null,null,null,null,null,null,null,"Burkina Faso"]
["BSCR Rating 7",null,null,null,null,null,null,null,null,"Denmark Kroner",null,null,null,null,null,null,null,"Burundi"]
["BSCR Rating 8",null,null,null,null,null,null,null,null,"Dominican Republic Pesos",null,null,null,null,null,null,null,"Cabo Verde (Cape Verde)"]
[null,null,null,null,null,null,null,null,null,"Algeria Dinars",null,null,null,null,null,null,null,"Cambodia"]
[null,null,null,null,null,null,null,null,null,"Estonia Krooni",null,null,null,null,null,null,null,"Cameroon"]
[null,null,null,null,null,null,null,null,null,"Egypt Pounds",null,null,null,null,null,null,null,"Cayman Islands"]
[null,null,null,null,null,null,null,null,null,"Eritrea Nakfa",null,null,null,null,null,null,null,"Central African Republic"]
[null,null,null,null,null,null,null,null,null,"Ethiopia Birr",null,null,null,null,null,null,null,"Chad"]
[null,null,null,null,null,null,null,null,null,"Fiji Dollars",null,null,null,null,null,null,null,"Chile"]
[null,null,null,null,null,null,null,null,null,"Falkland Islands Pounds",null,null,null,null,null,null,null,"China"]
[null,null,null,null,null,null,null,null,null,"United Kingdom Pounds",null,null,null,null,null,null,null,"China, Hong Kong SAR"]
[null,null,null,null,null,null,null,null,null,"Georgia Lari",null,null,null,null,null,null,null,"China, Macao SAR "]
[null,null,null,null,null,null,null,null,null,"Guernsey Pounds",null,null,null,null,null,null,null,"Colombia"]
[null,null,null,null,null,null,null,null,null,"Ghana Cedis",null,null,null,null,null,null,null,"Comoros"]
[null,null,null,null,null,null,null,null,null,"Gibraltar Pounds",null,null,null,null,null,null,null,"Congo"]
[null,null,null,null,null,null,null,null,null,"Gambia Dalasi",null,null,null,null,null,null,null,"Cook Islands"]
[null,null,null,null,null,null,null,null,null,"Guinea Francs",null,null,null,null,null,null,null,"Costa Rica"]
[null,null,null,null,null,null,null,null,null,"Guatemala Quetzales",null,null,null,null,null,null,null,"Cote d' Ivoire"]
[null,null,null,null,null,null,null,null,null,"Guyana Dollars",null,null,null,null,null,null,null,"Croatia"]
[null,null,null,null,null,null,null,null,null,"Hong Kong Dollars",null,null,null,null,null,null,null,"Cuba"]
[null,null,null,null,null,null,null,null,null,"Honduras Lempiras",null,null,null,null,null,null,null,"Curacao"]
[null,null,null,null,null,null,null,null,null,"Croatia Kuna",null,null,null,null,null,null,null,"Cyprus"]
[null,null,null,null,null,null,null,null,null,"Haiti Gourdes",null,null,null,null,null,null,null,"Czech Republic"]
[null,null,null,null,null,null,null,null,null,"Hungary Forint",null,null,null,null,null,null,null,"Democratic People's Republic of Korea (North Korea)"]
[null,null,null,null,null,null,null,null,null,"Indonesia Rupiahs",null,null,null,null,null,null,null,"Democratic Republic of the Congo"]
[null,null,null,null,null,null,null,null,null,"Israel New Shekels",null,null,null,null,null,null,null,"Denmark"]
[null,null,null,null,null,null,null,null,null,"Isle of Man Pounds",null,null,null,null,null,null,null,"Djibouti"]
[null,null,null,null,null,null,null,null,null,"India Rupees",null,null,null,null,null,null,null,"Dominica"]
[null,null,null,null,null,null,null,null,null,"Iraq Dinars",null,null,null,null,null,null,null,"Dominican Republic"]
[null,null,null,null,null,null,null,null,null,"Iran Rials",null,null,null,null,null,null,null,"Ecuador"]
[null,null,null,null,null,null,null,null,null,"Iceland Kronur",null,null,null,null,null,null,null,"Egypt"]
[null,null,null,null,null,null,null,null,null,"Jersey Pounds",null,null,null,null,null,null,null,"El Salvador"]
[null,null,null,null,null,null,null,null,null,"Jamaica Dollars",null,null,null,null,null,null,null,"Equatorial Guinea"]
[null,null,null,null,null,null,null,null,null,"Jordan Dinars",null,null,null,null,null,null,null,"Eritrea"]
[null,null,null,null,null,null,null,null,null,"Japan Yen",null,null,null,null,null,null,null,"Estonia"]
[null,null,null,null,null,null,null,null,null,"Kenya Shillings",null,null,null,null,null,null,null,"Eswatini (Kingdom of Swaziland)"]
[null,null,null,null,null,null,null,null,null,"Kyrgyzstan Soms",null,null,null,null,null,null,null,"Ethiopia"]
[null,null,null,null,null,null,null,null,null,"Cambodia Riels",null,null,null,null,null,null,null,"Falkland Islands"]
[null,null,null,null,null,null,null,null,null,"Comoros Francs",null,null,null,null,null,null,null,"Faroe Islands"]
[null,null,null,null,null,null,null,null,null,"North Korea Won",null,null,null,null,null,null,null,"Fiji"]
[null,null,null,null,null,null,null,null,null,"South Korea Won",null,null,null,null,null,null,null,"Finland"]
[null,null,null,null,null,null,null,null,null,"Kuwait Dinars",null,null,null,null,null,null,null,"France"]
[null,null,null,null,null,null,null,null,null,"Cayman Islands Dollars",null,null,null,null,null,null,null,"French Guiana"]
[null,null,null,null,null,null,null,null,null,"Kazakhstan Tenge",null,null,null,null,null,null,null,"French Polynesia"]
[null,null,null,null,null,null,null,null,null,"Laos Kips",null,null,null,null,null,null,null,"Gabon"]
[null,null,null,null,null,null,null,null,null,"Lebanon Pounds",null,null,null,null,null,null,null,"Gambia (Republic of The)"]
[null,null,null,null,null,null,null,null,null,"Sri Lanka Rupees",null,null,null,null,null,null,null,"Georgia"]
[null,null,null,null,null,null,null,null,null,"Liberia Dollars",null,null,null,null,null,null,null,"Germany"]
[null,null,null,null,null,null,null,null,null,"Lesotho Maloti",null,null,null,null,null,null,null,"Ghana"]
[null,null,null,null,null,null,null,null,null,"Lithuania Litai",null,null,null,null,null,null,null,"Gibraltar"]
[null,null,null,null,null,null,null,null,null,"Latvia Lati",null,null,null,null,null,null,null,"Greece"]
[null,null,null,null,null,null,null,null,null,"Libya Dinars",null,null,null,null,null,null,null,"Greenland"]
[null,null,null,null,null,null,null,null,null,"Morocco Dirhams",null,null,null,null,null,null,null,"Grenada"]
[null,null,null,null,null,null,null,null,null,"Moldova Lei",null,null,null,null,null,null,null,"Guadeloupe"]
[null,null,null,null,null,null,null,null,null,"Madagascar Ariary",null,null,null,null,null,null,null,"Guam"]
[null,null,null,null,null,null,null,null,null,"Macedonia Denars",null,null,null,null,null,null,null,"Guatemala"]
[null,null,null,null,null,null,null,null,null,"Myanmar Kyats",null,null,null,null,null,null,null,"Guernsey"]
[null,null,null,null,null,null,null,null,null,"Mongolia Tugriks",null,null,null,null,null,null,null,"Guinea"]
[null,null,null,null,null,null,null,null,null,"Macau Patacas",null,null,null,null,null,null,null,"Guinea-Bissau"]
[null,null,null,null,null,null,null,null,null,"Mauritania Ouguiyas",null,null,null,null,null,null,null,"Guyana"]
[null,null,null,null,null,null,null,null,null,"Mauritius Rupees",null,null,null,null,null,null,null,"Haiti"]
[null,null,null,null,null,null,null,null,null,"Maldives Rufiyaa",null,null,null,null,null,null,null,"Holy See"]
[null,null,null,null,null,null,null,null,null,"Malawi Kwachas",null,null,null,null,null,null,null,"Honduras"]
[null,null,null,null,null,null,null,null,null,"Mexico Pesos",null,null,null,null,null,null,null,"Hungary"]
[null,null,null,null,null,null,null,null,null,"Malaysia Ringgits",null,null,null,null,null,null,null,"Iceland"]
[null,null,null,null,null,null,null,null,null,"Mozambique Meticais",null,null,null,null,null,null,null,"India"]
[null,null,null,null,null,null,null,null,null,"Namibia Dollars",null,null,null,null,null,null,null,"Indonesia"]
[null,null,null,null,null,null,null,null,null,"Nigeria Nairas",null,null,null,null,null,null,null,"Iran (Islamic Republic of)"]
[null,null,null,null,null,null,null,null,null,"Nicaragua Cordobas",null,null,null,null,null,null,null,"Iraq"]
[null,null,null,null,null,null,null,null,null,"Norway Kroner",null,null,null,null,null,null,null,"Ireland"]
[null,null,null,null,null,null,null,null,null,"Nepal Rupees",null,null,null,null,null,null,null,"Isle of Man"]
[null,null,null,null,null,null,null,null,null,"New Zealand Dollars",null,null,null,null,null,null,null,"Israel"]
[null,null,null,null,null,null,null,null,null,"Oman Rials",null,null,null,null,null,null,null,"Italy"]
[null,null,null,null,null,null,null,null,null,"Panama Balboas",null,null,null,null,null,null,null,"Jamaica"]
[null,null,null,null,null,null,null,null,null,"Peru Nuevos Soles",null,null,null,null,null,null,null,"Japan"]
[null,null,null,null,null,null,null,null,null,"Papua New Guinea Kina",null,null,null,null,null,null,null,"Jersey"]
[null,null,null,null,null,null,null,null,null,"Philippines Pesos",null,null,null,null,null,null,null,"Jordan"]
[null,null,null,null,null,null,null,null,null,"Pakistan Rupees",null,null,null,null,null,null,null,"Kazakhstan"]
[null,null,null,null,null,null,null,null,null,"Poland Zlotych",null,null,null,null,null,null,null,"Kenya"]
[null,null,null,null,null,null,null,null,null,"Paraguay Guarani",null,null,null,null,null,null,null,"Kiribati"]
[null,null,null,null,null,null,null,null,null,"Qatar Riyals",null,null,null,null,null,null,null,"Kuwait"]
[null,null,null,null,null,null,null,null,null,"Romania New Lei",null,null,null,null,null,null,null,"Kyrgyzstan"]
[null,null,null,null,null,null,null,null,null,"Serbia Dinars",null,null,null,null,null,null,null,"Lao People's Democratic Republic"]
[null,null,null,null,null,null,null,null,null,"Russia Rubles",null,null,null,null,null,null,null,"Latvia"]
[null,null,null,null,null,null,null,null,null,"Rwanda Francs",null,null,null,null,null,null,null,"Lebanon"]
[null,null,null,null,null,null,null,null,null,"Saudi Arabia Riyals",null,null,null,null,null,null,null,"Lesotho"]
[null,null,null,null,null,null,null,null,null,"Solomon Islands Dollars",null,null,null,null,null,null,null,"Liberia"]
[null,null,null,null,null,null,null,null,null,"Seychelles Rupees",null,null,null,null,null,null,null,"Libya"]
[null,null,null,null,null,null,null,null,null,"Sudan Pounds",null,null,null,null,null,null,null,"Liechtenstein"]
[null,null,null,null,null,null,null,null,null,"Sweden Kronor",null,null,null,null,null,null,null,"Lithuania"]
[null,null,null,null,null,null,null,null,null,"Singapore Dollars",null,null,null,null,null,null,null,"Luxembourg"]
[null,null,null,null,null,null,null,null,null,"Saint Helena Pounds",null,null,null,null,null,null,null,"Madagascar"]
[null,null,null,null,null,null,null,null,null,"Slovakia Koruny",null,null,null,null,null,null,null,"Malawi"]
[null,null,null,null,null,null,null,null,null,"Sierra Leone Leones",null,null,null,null,null,null,null,"Malaysia"]
[null,null,null,null,null,null,null,null,null,"Somalia Shillings",null,null,null,null,null,null,null,"Maldives"]
[null,null,null,null,null,null,null,null,null,"Seborga Luigini",null,null,null,null,null,null,null,"Mali"]
[null,null,null,null,null,null,null,null,null,"Suriname Dollars",null,null,null,null,null,null,null,"Malta"]
[null,null,null,null,null,null,null,null,null,"São Tome and Principe Dobras",null,null,null,null,null,null,null,"Marshall Islands"]
[null,null,null,null,null,null,null,null,null,"El Salvador Colones",null,null,null,null,null,null,null,"Martinique"]
[null,null,null,null,null,null,null,null,null,"Syria Pounds",null,null,null,null,null,null,null,"Mauritania"]
[null,null,null,null,null,null,null,null,null,"Swaziland Emalangeni",null,null,null,null,null,null,null,"Mauritius"]
[null,null,null,null,null,null,null,null,null,"Thailand Baht",null,null,null,null,null,null,null,"Mayotte"]
[null,null,null,null,null,null,null,null,null,"Tajikistan Somoni",null,null,null,null,null,null,null,"Mexico"]
[null,null,null,null,null,null,null,null,null,"Turkmenistan Manats",null,null,null,null,null,null,null,"Micronesia (Federated States of)"]
[null,null,null,null,null,null,null,null,null,"Tunisia Dinars",null,null,null,null,null,null,null,"Monaco"]
[null,null,null,null,null,null,null,null,null,"Tonga Pa'anga",null,null,null,null,null,null,null,"Mongolia"]
[null,null,null,null,null,null,null,null,null,"Turkey New Lira",null,null,null,null,null,null,null,"Montenegro"]
[null,null,null,null,null,null,null,null,null,"Trinidad and Tobago Dollars",null,null,null,null,null,null,null,"Montserrat"]
[null,null,null,null,null,null,null,null,null,"Tuvalu Dollars",null,null,null,null,null,null,null,"Morocco"]
[null,null,null,null,null,null,null,null,null,"Taiwan New Dollars",null,null,null,null,null,null,null,"Mozambique"]
[null,null,null,null,null,null,null,null,null,"Tanzania Shillings",null,null,null,null,null,null,null,"Myanmar"]
[null,null,null,null,null,null,null,null,null,"Ukraine Hryvnia",null,null,null,null,null,null,null,"Namibia"]
[null,null,null,null,null,null,null,null,null,"Uganda Shillings",null,null,null,null,null,null,null,"Nauru"]
[null,null,null,null,null,null,null,null,null,"Uruguay Pesos",null,null,null,null,null,null,null,"Nepal"]
[null,null,null,null,null,null,null,null,null,"Uzbekistan Sums",null,null,null,null,null,null,null,"Netherlands"]
[null,null,null,null,null,null,null,null,null,"Venezuela Bolivares",null,null,null,null,null,null,null,"New Caledonia"]
[null,null,null,null,null,null,null,null,null,"Venezuela Bolivares Fuertes",null,null,null,null,null,null,null,"New Zealand"]
[null,null,null,null,null,null,null,null,null,"Vietnam Dong",null,null,null,null,null,null,null,"Nicaragua"]
[null,null,null,null,null,null,null,null,null,"Vanuatu Vatu",null,null,null,null,null,null,null,"Niger"]
[null,null,null,null,null,null,null,null,null,"Samoa Tala",null,null,null,null,null,null,null,"Nigeria"]
[null,null,null,null,null,null,null,null,null,"Communauté Financière Africaine Francs BEAC",null,null,null,null,null,null,null,"Niue"]
[null,null,null,null,null,null,null,null,null,"Silver Ounces",null,null,null,null,null,null,null,"Norfolk Island"]
[null,null,null,null,null,null,null,null,null,"Gold Ounces",null,null,null,null,null,null,null,"North Macedonia"]
[null,null,null,null,null,null,null,null,null,"East Caribbean Dollars",null,null,null,null,null,null,null,"Northern Mariana Islands"]
[null,null,null,null,null,null,null,null,null,"International Monetary Fund Special Drawing Rights",null,null,null,null,null,null,null,"Norway"]
[null,null,null,null,null,null,null,null,null,"Communauté Financière Africaine Francs BCEAO",null,null,null,null,null,null,null,"Oman"]
[null,null,null,null,null,null,null,null,null,"Palladium Ounces",null,null,null,null,null,null,null,"Pakistan"]
[null,null,null,null,null,null,null,null,null,"Comptoirs Français du Pacifique Francs",null,null,null,null,null,null,null,"Palau"]
[null,null,null,null,null,null,null,null,null,"Platinum Ounces",null,null,null,null,null,null,null,"Panama"]
[null,null,null,null,null,null,null,null,null,"Yemen Rials",null,null,null,null,null,null,null,"Papua New Guinea"]
[null,null,null,null,null,null,null,null,null,"South Africa Rand",null,null,null,null,null,null,null,"Paraguay"]
[null,null,null,null,null,null,null,null,null,"Zambia Kwacha",null,null,null,null,null,null,null,"Peru"]
[null,null,null,null,null,null,null,null,null,"Zimbabwe Dollars",null,null,null,null,null,null,null,"Philippines"]
[null,null,null,null,null,null,null,null,null,null,null,null,null,null,null,null,null,"Pitcairn"]
[null,null,null,null,null,null,null,null,null,null,null,null,null,null,null,null,null,"Poland"]
[null,null,null,null,null,null,null,null,null,null,null,null,null,null,null,null,null,"Portugal"]
[null,null,null,null,null,null,null,null,null,null,null,null,null,null,null,null,null,"Puerto Rico"]
[null,null,null,null,null,null,null,null,null,null,null,null,null,null,null,null,null,"Qatar"]
[null,null,null,null,null,null,null,null,null,null,null,null,null,null,null,null,null,"Republic of Korea (South Korea)"]
[null,null,null,null,null,null,null,null,null,null,null,null,null,null,null,null,null,"Republic of Moldova"]
[null,null,null,null,null,null,null,null,null,null,null,null,null,null,null,null,null,"Reunion"]
[null,null,null,null,null,null,null,null,null,null,null,null,null,null,null,null,null,"Romania"]
[null,null,null,null,null,null,null,null,null,null,null,null,null,null,null,null,null,"Russian Federation"]
[null,null,null,null,null,null,null,null,null,null,null,null,null,null,null,null,null,"Rwanda"]
[null,null,null,null,null,null,null,null,null,null,null,null,null,null,null,null,null,"Saint Barthelemy (St. Barts)"]
[null,null,null,null,null,null,null,null,null,null,null,null,null,null,null,null,null,"Saint Helena"]
[null,null,null,null,null,null,null,null,null,null,null,null,null,null,null,null,null,"Saint Kitts and Nevis"]
[null,null,null,null,null,null,null,null,null,null,null,null,null,null,null,null,null,"Saint Lucia"]
[null,null,null,null,null,null,null,null,null,null,null,null,null,null,null,null,null,"Saint Martin"]
[null,null,null,null,null,null,null,null,null,null,null,null,null,null,null,null,null,"Saint Pierre and Miquelon"]
[null,null,null,null,null,null,null,null,null,null,null,null,null,null,null,null,null,"Saint Vincent and The Grenadines"]
[null,null,null,null,null,null,null,null,null,null,null,null,null,null,null,null,null,"Samoa"]
[null,null,null,null,null,null,null,null,null,null,null,null,null,null,null,null,null,"San Marino"]
[null,null,null,null,null,null,null,null,null,null,null,null,null,null,null,null,null,"Sao Tome and Principe"]
[null,null,null,null,null,null,null,null,null,null,null,null,null,null,null,null,null,"Sark"]
[null,null,null,null,null,null,null,null,null,null,null,null,null,null,null,null,null,"Saudi Arabia"]
[null,null,null,null,null,null,null,null,null,null,null,null,null,null,null,null,null,"Senegal"]
[null,null,null,null,null,null,null,null,null,null,null,null,null,null,null,null,null,"Serbia"]
[null,null,null,null,null,null,null,null,null,null,null,null,null,null,null,null,null,"Seychelles"]
[null,null,null,null,null,null,null,null,null,null,null,null,null,null,null,null,null,"Sierra Leone"]
[null,null,null,null,null,null,null,null,null,null,null,null,null,null,null,null,null,"Singapore"]
[null,null,null,null,null,null,null,null,null,null,null,null,null,null,null,null,null,"Sint Maarten"]
[null,null,null,null,null,null,null,null,null,null,null,null,null,null,null,null,null,"Slovakia"]
[null,null,null,null,null,null,null,null,null,null,null,null,null,null,null,null,null,"Slovenia"]
[null,null,null,null,null,null,null,null,null,null,null,null,null,null,null,null,null,"Solomon Islands"]
[null,null,null,null,null,null,null,null,null,null,null,null,null,null,null,null,null,"Somalia"]
[null,null,null,null,null,null,null,null,null,null,null,null,null,null,null,null,null,"South Africa"]
[null,null,null,null,null,null,null,null,null,null,null,null,null,null,null,null,null,"South Sudan"]
[null,null,null,null,null,null,null,null,null,null,null,null,null,null,null,null,null,"Spain"]
[null,null,null,null,null,null,null,null,null,null,null,null,null,null,null,null,null,"Sri Lanka"]
[null,null,null,null,null,null,null,null,null,null,null,null,null,null,null,null,null,"State of Palestine"]
[null,null,null,null,null,null,null,null,null,null,null,null,null,null,null,null,null,"Sudan"]
[null,null,null,null,null,null,null,null,null,null,null,null,null,null,null,null,null,"Suriname"]
[null,null,null,null,null,null,null,null,null,null,null,null,null,null,null,null,null,"Svalbard, Jan Mayen"]
[null,null,null,null,null,null,null,null,null,null,null,null,null,null,null,null,null,"Sweden"]
[null,null,null,null,null,null,null,null,null,null,null,null,null,null,null,null,null,"Switzerland"]
[null,null,null,null,null,null,null,null,null,null,null,null,null,null,null,null,null,"Syrian Arab Republic"]
[null,null,null,null,null,null,null,null,null,null,null,null,null,null,null,null,null,"Taiwan"]
[null,null,null,null,null,null,null,null,null,null,null,null,null,null,null,null,null,"Tajikistan"]
[null,null,null,null,null,null,null,null,null,null,null,null,null,null,null,null,null,"Thailand"]
[null,null,null,null,null,null,null,null,null,null,null,null,null,null,null,null,null,"Timor-Leste"]
[null,null,null,null,null,null,null,null,null,null,null,null,null,null,null,null,null,"Togo"]
[null,null,null,null,null,null,null,null,null,null,null,null,null,null,null,null,null,"Tokelau"]
[null,null,null,null,null,null,null,null,null,null,null,null,null,null,null,null,null,"Tonga"]
[null,null,null,null,null,null,null,null,null,null,null,null,null,null,null,null,null,"Trinidad and Tobago"]
[null,null,null,null,null,null,null,null,null,null,null,null,null,null,null,null,null,"Tunisia"]
[null,null,null,null,null,null,null,null,null,null,null,null,null,null,null,null,null,"Turkey"]
[null,null,null,null,null,null,null,null,null,null,null,null,null,null,null,null,null,"Turkmenistan"]
[null,null,null,null,null,null,null,null,null,null,null,null,null,null,null,null,null,"Turks & Caicos Islands"]
[null,null,null,null,null,null,null,null,null,null,null,null,null,null,null,null,null,"Tuvalu"]
[null,null,null,null,null,null,null,null,null,null,null,null,null,null,null,null,null,"Uganda"]
[null,null,null,null,null,null,null,null,null,null,null,null,null,null,null,null,null,"Ukraine"]
[null,null,null,null,null,null,null,null,null,null,null,null,null,null,null,null,null,"United Arab Emirates"]
[null,null,null,null,null,null,null,null,null,null,null,null,null,null,null,null,null,"United Republic of Tanzania"]
[null,null,null,null,null,null,null,null,null,null,null,null,null,null,null,null,null,"Uruguay"]
[null,null,null,null,null,null,null,null,null,null,null,null,null,null,null,null,null,"US Virgin Islands"]
[null,null,null,null,null,null,null,null,null,null,null,null,null,null,null,null,null,"Uzbekistan"]
[null,null,null,null,null,null,null,null,null,null,null,null,null,null,null,null,null,"Vanuatu"]
[null,null,null,null,null,null,null,null,null,null,null,null,null,null,null,null,null,"Venezuela, Bolivarian Republic of "]
[null,null,null,null,null,null,null,null,null,null,null,null,null,null,null,null,null,"Vietnam"]
[null,null,null,null,null,null,null,null,null,null,null,null,null,null,null,null,null,"Wallis & Futuna Islands"]
[null,null,null,null,null,null,null,null,null,null,null,null,null,null,null,null,null,"Western Sahara"]
[null,null,null,null,null,null,null,null,null,null,null,null,null,null,null,null,null,"Yemen"]
[null,null,null,null,null,null,null,null,null,null,null,null,null,null,null,null,null,"Zambia"]
[null,null,null,null,null,null,null,null,null,null,null,null,null,null,null,null,null,"Zimbabwe"]
[null,null,null,null,null,null,null,null,null,null,null,null,null,null,null,null,null,"Select"]

{"sheet":"Schedule VI.","index":55,"n_rows":314,"n_cols":9,"rows_kept":314,"cut":false,"hidden":true,"merged":[[235,1,235,2],[267,1,267,2],[271,1,271,2],[134,1,134,2],[138,1,138,2],[168,1,168,2],[172,1,172,2],[201,1,201,2],[205,1,205,2],[105,1,105,2],[6,1,6,2],[39,1,39,2],[43,1,43,2],[68,1,68,2],[101,1,101,2]]}
[null,"SCHEDULE OF ASSETS",null,null,null,null,null,null,{"$f":"HYPERLINK(\"#'Index'!A1\",\"Return to Index\")","v":"Return to Index"}]
[null,{"$f":"'Form 1SFS'!B3","v":"Enter Company Name"}]
[null,"As at",{"$f":" TEXT('Company Information'!C3,\"d mmmm yyyy\")","v":"31 December 2023"}]
[null,"expressed in ['000s]",{"$f":"'Form 1SFS'!C5","v":"United States Dollars"}]
[]
[]
[null,"(A) CASH AND CASH EQUIVALENTS"]
[]
[null,null,"Enter # of Asset Types"]
[]
[null,null,null,null,2021,2021]
[null,"Asset Type","Jurisdiction","BSCR Rating","Face Value","Fair Value"]
[1,{"$f":"Import!#REF!","v":{"$error":"#REF!"}},{"$f":"Import!#REF!","v":{"$error":"#REF!"}},{"$f":"Import!#REF!","v":{"$error":"#REF!"}},{"$f":"Import!#REF!","v":{"$error":"#REF!"}},{"$f":"Import!#REF!","v":{"$error":"#REF!"}}]
[2,{"$f":"Import!#REF!","v":{"$error":"#REF!"}},{"$f":"Import!#REF!","v":{"$error":"#REF!"}},{"$f":"Import!#REF!","v":{"$error":"#REF!"}},{"$f":"Import!#REF!","v":{"$error":"#REF!"}},{"$f":"Import!#REF!","v":{"$error":"#REF!"}}]
[3,{"$f":"Import!#REF!","v":{"$error":"#REF!"}},{"$f":"Import!#REF!","v":{"$error":"#REF!"}},{"$f":"Import!#REF!","v":{"$error":"#REF!"}},{"$f":"Import!#REF!","v":{"$error":"#REF!"}},{"$f":"Import!#REF!","v":{"$error":"#REF!"}}]
[4,{"$f":"Import!#REF!","v":{"$error":"#REF!"}},{"$f":"Import!#REF!","v":{"$error":"#REF!"}},{"$f":"Import!#REF!","v":{"$error":"#REF!"}},{"$f":"Import!#REF!","v":{"$error":"#REF!"}},{"$f":"Import!#REF!","v":{"$error":"#REF!"}}]
[5,{"$f":"Import!#REF!","v":{"$error":"#REF!"}},{"$f":"Import!#REF!","v":{"$error":"#REF!"}},{"$f":"Import!#REF!","v":{"$error":"#REF!"}},{"$f":"Import!#REF!","v":{"$error":"#REF!"}},{"$f":"Import!#REF!","v":{"$error":"#REF!"}}]
[6,{"$f":"Import!#REF!","v":{"$error":"#REF!"}},{"$f":"Import!#REF!","v":{"$error":"#REF!"}},{"$f":"Import!#REF!","v":{"$error":"#REF!"}},{"$f":"Import!#REF!","v":{"$error":"#REF!"}},{"$f":"Import!#REF!","v":{"$error":"#REF!"}}]
[7,{"$f":"Import!#REF!","v":{"$error":"#REF!"}},{"$f":"Import!#REF!","v":{"$error":"#REF!"}},{"$f":"Import!#REF!","v":{"$error":"#REF!"}},{"$f":"Import!#REF!","v":{"$error":"#REF!"}},{"$f":"Import!#REF!","v":{"$error":"#REF!"}}]
[8,{"$f":"Import!#REF!","v":{"$error":"#REF!"}},{"$f":"Import!#REF!","v":{"$error":"#REF!"}},{"$f":"Import!#REF!","v":{"$error":"#REF!"}},{"$f":"Import!#REF!","v":{"$error":"#REF!"}},{"$f":"Import!#REF!","v":{"$error":"#REF!"}}]
[9,{"$f":"Import!#REF!","v":{"$error":"#REF!"}},{"$f":"Import!#REF!","v":{"$error":"#REF!"}},{"$f":"Import!#REF!","v":{"$error":"#REF!"}},{"$f":"Import!#REF!","v":{"$error":"#REF!"}},{"$f":"Import!#REF!","v":{"$error":"#REF!"}}]
[10,{"$f":"Import!#REF!","v":{"$error":"#REF!"}},{"$f":"Import!#REF!","v":{"$error":"#REF!"}},{"$f":"Import!#REF!","v":{"$error":"#REF!"}},{"$f":"Import!#REF!","v":{"$error":"#REF!"}},{"$f":"Import!#REF!","v":{"$error":"#REF!"}}]
[11,{"$f":"Import!#REF!","v":{"$error":"#REF!"}},{"$f":"Import!#REF!","v":{"$error":"#REF!"}},{"$f":"Import!#REF!","v":{"$error":"#REF!"}},{"$f":"Import!#REF!","v":{"$error":"#REF!"}},{"$f":"Import!#REF!","v":{"$error":"#REF!"}}]
[12,{"$f":"Import!#REF!","v":{"$error":"#REF!"}},{"$f":"Import!#REF!","v":{"$error":"#REF!"}},{"$f":"Import!#REF!","v":{"$error":"#REF!"}},{"$f":"Import!#REF!","v":{"$error":"#REF!"}},{"$f":"Import!#REF!","v":{"$error":"#REF!"}}]
[13,{"$f":"Import!#REF!","v":{"$error":"#REF!"}},{"$f":"Import!#REF!","v":{"$error":"#REF!"}},{"$f":"Import!#REF!","v":{"$error":"#REF!"}},{"$f":"Import!#REF!","v":{"$error":"#REF!"}},{"$f":"Import!#REF!","v":{"$error":"#REF!"}}]
[14,{"$f":"Import!#REF!","v":{"$error":"#REF!"}},{"$f":"Import!#REF!","v":{"$error":"#REF!"}},{"$f":"Import!#REF!","v":{"$error":"#REF!"}},{"$f":"Import!#REF!","v":{"$error":"#REF!"}},{"$f":"Import!#REF!","v":{"$error":"#REF!"}}]
[15,{"$f":"Import!#REF!","v":{"$error":"#REF!"}},{"$f":"Import!#REF!","v":{"$error":"#REF!"}},{"$f":"Import!#REF!","v":{"$error":"#REF!"}},{"$f":"Import!#REF!","v":{"$error":"#REF!"}},{"$f":"Import!#REF!","v":{"$error":"#REF!"}}]
[16,{"$f":"Import!#REF!","v":{"$error":"#REF!"}},{"$f":"Import!#REF!","v":{"$error":"#REF!"}},{"$f":"Import!#REF!","v":{"$error":"#REF!"}},{"$f":"Import!#REF!","v":{"$error":"#REF!"}},{"$f":"Import!#REF!","v":{"$error":"#REF!"}}]
[17,{"$f":"Import!#REF!","v":{"$error":"#REF!"}},{"$f":"Import!#REF!","v":{"$error":"#REF!"}},{"$f":"Import!#REF!","v":{"$error":"#REF!"}},{"$f":"Import!#REF!","v":{"$error":"#REF!"}},{"$f":"Import!#REF!","v":{"$error":"#REF!"}}]
[18,{"$f":"Import!#REF!","v":{"$error":"#REF!"}},{"$f":"Import!#REF!","v":{"$error":"#REF!"}},{"$f":"Import!#REF!","v":{"$error":"#REF!"}},{"$f":"Import!#REF!","v":{"$error":"#REF!"}},{"$f":"Import!#REF!","v":{"$error":"#REF!"}}]
[19,{"$f":"Import!#REF!","v":{"$error":"#REF!"}},{"$f":"Import!#REF!","v":{"$error":"#REF!"}},{"$f":"Import!#REF!","v":{"$error":"#REF!"}},{"$f":"Import!#REF!","v":{"$error":"#REF!"}},{"$f":"Import!#REF!","v":{"$error":"#REF!"}}]
[20,{"$f":"Import!#REF!","v":{"$error":"#REF!"}},{"$f":"Import!#REF!","v":{"$error":"#REF!"}},{"$f":"Import!#REF!","v":{"$error":"#REF!"}},{"$f":"Import!#REF!","v":{"$error":"#REF!"}},{"$f":"Import!#REF!","v":{"$error":"#REF!"}}]
[]
[null,"Total Cash & Cash Equivalents",null,null,{"$f":"SUM(E13:E32)","v":{"$error":"#REF!"}},{"$f":"SUM(F13:F32)","v":{"$error":"#REF!"}}]
[]
[null,"Form 1SFS Line 1 Cash and Cash Equivalents",null,null,null,{"$f":"IF(('Form 1SFS'!$E$100+'Form 1SFS'!$I$100)= 0,'Form 1SFS'!M$12,'Form 1SFS'!E$12+'Form 1SFS'!I$12)","v":0}]
[]
[null,"Check Section A",null,null,null,{"$f":"ROUND((F34-F36),0)","v":{"$error":"#REF!"}},{"$f":"IF(F38=0,\"TRUE\",\"FALSE\")","v":{"$error":"#REF!"}}]
[]
[null,"(B) BONDS AND DEBENTURES"]
[]
[null,null,"Enter # of Asset Types"]
[]
[null,null,null,null,2021,2021]
[null,"Asset Type","Jurisdiction","BSCR Rating","Face Value","Fair Value","Average YTM","Effective Duration","Effective Convexity"]
[1,{"$f":"Import!#REF!","v":{"$error":"#REF!"}},{"$f":"Import!#REF!","v":{"$error":"#REF!"}},{"$f":"Import!#REF!","v":{"$error":"#REF!"}},{"$f":"Import!#REF!","v":{"$error":"#REF!"}},{"$f":"Import!#REF!","v":{"$error":"#REF!"}},{"$f":"Import!#REF!","v":{"$error":"#REF!"}},{"$f":"Import!#REF!","v":{"$error":"#REF!"}},{"$f":"Import!#REF!","v":{"$error":"#REF!"}}]
[2,{"$f":"Import!#REF!","v":{"$error":"#REF!"}},{"$f":"Import!#REF!","v":{"$error":"#REF!"}},{"$f":"Import!#REF!","v":{"$error":"#REF!"}},{"$f":"Import!#REF!","v":{"$error":"#REF!"}},{"$f":"Import!#REF!","v":{"$error":"#REF!"}},{"$f":"Import!#REF!","v":{"$error":"#REF!"}},{"$f":"Import!#REF!","v":{"$error":"#REF!"}},{"$f":"Import!#REF!","v":{"$error":"#REF!"}}]
[3,{"$f":"Import!#REF!","v":{"$error":"#REF!"}},{"$f":"Import!#REF!","v":{"$error":"#REF!"}},{"$f":"Import!#REF!","v":{"$error":"#REF!"}},{"$f":"Import!#REF!","v":{"$error":"#REF!"}},{"$f":"Import!#REF!","v":{"$error":"#REF!"}},{"$f":"Import!#REF!","v":{"$error":"#REF!"}},{"$f":"Import!#REF!","v":{"$error":"#REF!"}},{"$f":"Import!#REF!","v":{"$error":"#REF!"}}]
[4,{"$f":"Import!#REF!","v":{"$error":"#REF!"}},{"$f":"Import!#REF!","v":{"$error":"#REF!"}},{"$f":"Import!#REF!","v":{"$error":"#REF!"}},{"$f":"Import!#REF!","v":{"$error":"#REF!"}},{"$f":"Import!#REF!","v":{"$error":"#REF!"}},{"$f":"Import!#REF!","v":{"$error":"#REF!"}},{"$f":"Import!#REF!","v":{"$error":"#REF!"}},{"$f":"Import!#REF!","v":{"$error":"#REF!"}}]
[5,{"$f":"Import!#REF!","v":{"$error":"#REF!"}},{"$f":"Import!#REF!","v":{"$error":"#REF!"}},{"$f":"Import!#REF!","v":{"$error":"#REF!"}},{"$f":"Import!#REF!","v":{"$error":"#REF!"}},{"$f":"Import!#REF!","v":{"$error":"#REF!"}},{"$f":"Import!#REF!","v":{"$error":"#REF!"}},{"$f":"Import!#REF!","v":{"$error":"#REF!"}},{"$f":"Import!#REF!","v":{"$error":"#REF!"}}]
[6,{"$f":"Import!#REF!","v":{"$error":"#REF!"}},{"$f":"Import!#REF!","v":{"$error":"#REF!"}},{"$f":"Import!#REF!","v":{"$error":"#REF!"}},{"$f":"Import!#REF!","v":{"$error":"#REF!"}},{"$f":"Import!#REF!","v":{"$error":"#REF!"}},{"$f":"Import!#REF!","v":{"$error":"#REF!"}},{"$f":"Import!#REF!","v":{"$error":"#REF!"}},{"$f":"Import!#REF!","v":{"$error":"#REF!"}}]
[7,{"$f":"Import!#REF!","v":{"$error":"#REF!"}},{"$f":"Import!#REF!","v":{"$error":"#REF!"}},{"$f":"Import!#REF!","v":{"$error":"#REF!"}},{"$f":"Import!#REF!","v":{"$error":"#REF!"}},{"$f":"Import!#REF!","v":{"$error":"#REF!"}},{"$f":"Import!#REF!","v":{"$error":"#REF!"}},{"$f":"Import!#REF!","v":{"$error":"#REF!"}},{"$f":"Import!#REF!","v":{"$error":"#REF!"}}]
[8,{"$f":"Import!#REF!","v":{"$error":"#REF!"}},{"$f":"Import!#REF!","v":{"$error":"#REF!"}},{"$f":"Import!#REF!","v":{"$error":"#REF!"}},{"$f":"Import!#REF!","v":{"$error":"#REF!"}},{"$f":"Import!#REF!","v":{"$error":"#REF!"}},{"$f":"Import!#REF!","v":{"$error":"#REF!"}},{"$f":"Import!#REF!","v":{"$error":"#REF!"}},{"$f":"Import!#REF!","v":{"$error":"#REF!"}}]
[9,{"$f":"Import!#REF!","v":{"$error":"#REF!"}},{"$f":"Import!#REF!","v":{"$error":"#REF!"}},{"$f":"Import!#REF!","v":{"$error":"#REF!"}},{"$f":"Import!#REF!","v":{"$error":"#REF!"}},{"$f":"Import!#REF!","v":{"$error":"#REF!"}},{"$f":"Import!#REF!","v":{"$error":"#REF!"}},{"$f":"Import!#REF!","v":{"$error":"#REF!"}},{"$f":"Import!#REF!","v":{"$error":"#REF!"}}]
[10,{"$f":"Import!#REF!","v":{"$error":"#REF!"}},{"$f":"Import!#REF!","v":{"$error":"#REF!"}},{"$f":"Import!#REF!","v":{"$error":"#REF!"}},{"$f":"Import!#REF!","v":{"$error":"#REF!"}},{"$f":"Import!#REF!","v":{"$error":"#REF!"}},{"$f":"Import!#REF!","v":{"$error":"#REF!"}},{"$f":"Import!#REF!","v":{"$error":"#REF!"}},{"$f":"Import!#REF!","v":{"$error":"#REF!"}}]
[11,{"$f":"Import!#REF!","v":{"$error":"#REF!"}},{"$f":"Import!#REF!","v":{"$error":"#REF!"}},{"$f":"Import!#REF!","v":{"$error":"#REF!"}},{"$f":"Import!#REF!","v":{"$error":"#REF!"}},{"$f":"Import!#REF!","v":{"$error":"#REF!"}},{"$f":"Import!#REF!","v":{"$error":"#REF!"}},{"$f":"Import!#REF!","v":{"$error":"#REF!"}},{"$f":"Import!#REF!","v":{"$error":"#REF!"}}]
[12,{"$f":"Import!#REF!","v":{"$error":"#REF!"}},{"$f":"Import!#REF!","v":{"$error":"#REF!"}},{"$f":"Import!#REF!","v":{"$error":"#REF!"}},{"$f":"Import!#REF!","v":{"$error":"#REF!"}},{"$f":"Import!#REF!","v":{"$error":"#REF!"}},{"$f":"Import!#REF!","v":{"$error":"#REF!"}},{"$f":"Import!#REF!","v":{"$error":"#REF!"}},{"$f":"Import!#REF!","v":{"$error":"#REF!"}}]
[13,{"$f":"Import!#REF!","v":{"$error":"#REF!"}},{"$f":"Import!#REF!","v":{"$error":"#REF!"}},{"$f":"Import!#REF!","v":{"$error":"#REF!"}},{"$f":"Import!#REF!","v":{"$error":"#REF!"}},{"$f":"Import!#REF!","v":{"$error":"#REF!"}},{"$f":"Import!#REF!","v":{"$error":"#REF!"}},{"$f":"Import!#REF!","v":{"$error":"#REF!"}},{"$f":"Import!#REF!","v":{"$error":"#REF!"}}]
[14,{"$f":"Import!#REF!","v":{"$error":"#REF!"}},{"$f":"Import!#REF!","v":{"$error":"#REF!"}},{"$f":"Import!#REF!","v":{"$error":"#REF!"}},{"$f":"Import!#REF!","v":{"$error":"#REF!"}},{"$f":"Import!#REF!","v":{"$error":"#REF!"}},{"$f":"Import!#REF!","v":{"$error":"#REF!"}},{"$f":"Import!#REF!","v":{"$error":"#REF!"}},{"$f":"Import!#REF!","v":{"$error":"#REF!"}}]
[15,{"$f":"Import!#REF!","v":{"$error":"#REF!"}},{"$f":"Import!#REF!","v":{"$error":"#REF!"}},{"$f":"Import!#REF!","v":{"$error":"#REF!"}},{"$f":"Import!#REF!","v":{"$error":"#REF!"}},{"$f":"Import!#REF!","v":{"$error":"#REF!"}},{"$f":"Import!#REF!","v":{"$error":"#REF!"}},{"$f":"Import!#REF!","v":{"$error":"#REF!"}},{"$f":"Import!#REF!","v":{"$error":"#REF!"}}]
[16,{"$f":"Import!#REF!","v":{"$error":"#REF!"}},{"$f":"Import!#REF!","v":{"$error":"#REF!"}},{"$f":"Import!#REF!","v":{"$error":"#REF!"}},{"$f":"Import!#REF!","v":{"$error":"#REF!"}},{"$f":"Import!#REF!","v":{"$error":"#REF!"}},{"$f":"Import!#REF!","v":{"$error":"#REF!"}},{"$f":"Import!#REF!","v":{"$error":"#REF!"}},{"$f":"Import!#REF!","v":{"$error":"#REF!"}}]
[17,{"$f":"Import!#REF!","v":{"$error":"#REF!"}},{"$f":"Import!#REF!","v":{"$error":"#REF!"}},{"$f":"Import!#REF!","v":{"$error":"#REF!"}},{"$f":"Import!#REF!","v":{"$error":"#REF!"}},{"$f":"Import!#REF!","v":{"$error":"#REF!"}},{"$f":"Import!#REF!","v":{"$error":"#REF!"}},{"$f":"Import!#REF!","v":{"$error":"#REF!"}},{"$f":"Import!#REF!","v":{"$error":"#REF!"}}]
[18,{"$f":"Import!#REF!","v":{"$error":"#REF!"}},{"$f":"Import!#REF!","v":{"$error":"#REF!"}},{"$f":"Import!#REF!","v":{"$error":"#REF!"}},{"$f":"Import!#REF!","v":{"$error":"#REF!"}},{"$f":"Import!#REF!","v":{"$error":"#REF!"}},{"$f":"Import!#REF!","v":{"$error":"#REF!"}},{"$f":"Import!#REF!","v":{"$error":"#REF!"}},{"$f":"Import!#REF!","v":{"$error":"#REF!"}}]
[19,{"$f":"Import!#REF!","v":{"$error":"#REF!"}},{"$f":"Import!#REF!","v":{"$error":"#REF!"}},{"$f":"Import!#REF!","v":{"$error":"#REF!"}},{"$f":"Import!#REF!","v":{"$error":"#REF!"}},{"$f":"Import!#REF!","v":{"$error":"#REF!"}},{"$f":"Import!#REF!","v":{"$error":"#REF!"}},{"$f":"Import!#REF!","v":{"$error":"#REF!"}},{"$f":"Import!#REF!","v":{"$error":"#REF!"}}]
[20,{"$f":"Import!#REF!","v":{"$error":"#REF!"}},{"$f":"Import!#REF!","v":{"$error":"#REF!"}},{"$f":"Import!#REF!","v":{"$error":"#REF!"}},{"$f":"Import!#REF!","v":{"$error":"#REF!"}},{"$f":"Import!#REF!","v":{"$error":"#REF!"}},{"$f":"Import!#REF!","v":{"$error":"#REF!"}},{"$f":"Import!#REF!","v":{"$error":"#REF!"}},{"$f":"Import!#REF!","v":{"$error":"#REF!"}}]
[]
[null,"Total Bonds & Debentures",null,null,{"$f":"SUM(E46:E65)","v":{"$error":"#REF!"}},{"$f":"SUM(F46:F65)","v":{"$error":"#REF!"}},0,0,0]
[]
[null,"(C) SECURITIES/ASSET-BASED SECURITIES"]
[]
[null,null,"Enter # of Asset Types"]
[]
[null,null,null,null,2021,2021]
[null,"Asset Type","Jurisdiction","BSCR Rating","Face Value","Fair Value","Average YTM","Effective Duration","Effective Convexity"]
[1,{"$f":"Import!#REF!","v":{"$error":"#REF!"}},{"$f":"Import!#REF!","v":{"$error":"#REF!"}},{"$f":"Import!#REF!","v":{"$error":"#REF!"}},{"$f":"Import!#REF!","v":{"$error":"#REF!"}},{"$f":"Import!#REF!","v":{"$error":"#REF!"}},{"$f":"Import!#REF!","v":{"$error":"#REF!"}},{"$f":"Import!#REF!","v":{"$error":"#REF!"}},{"$f":"Import!#REF!","v":{"$error":"#REF!"}}]
[2,{"$f":"Import!#REF!","v":{"$error":"#REF!"}},{"$f":"Import!#REF!","v":{"$error":"#REF!"}},{"$f":"Import!#REF!","v":{"$error":"#REF!"}},{"$f":"Import!#REF!","v":{"$error":"#REF!"}},{"$f":"Import!#REF!","v":{"$error":"#REF!"}},{"$f":"Import!#REF!","v":{"$error":"#REF!"}},{"$f":"Import!#REF!","v":{"$error":"#REF!"}},{"$f":"Import!#REF!","v":{"$error":"#REF!"}}]
[3,{"$f":"Import!#REF!","v":{"$error":"#REF!"}},{"$f":"Import!#REF!","v":{"$error":"#REF!"}},{"$f":"Import!#REF!","v":{"$error":"#REF!"}},{"$f":"Import!#REF!","v":{"$error":"#REF!"}},{"$f":"Import!#REF!","v":{"$error":"#REF!"}},{"$f":"Import!#REF!","v":{"$error":"#REF!"}},{"$f":"Import!#REF!","v":{"$error":"#REF!"}},{"$f":"Import!#REF!","v":{"$error":"#REF!"}}]
[4,{"$f":"Import!#REF!","v":{"$error":"#REF!"}},{"$f":"Import!#REF!","v":{"$error":"#REF!"}},{"$f":"Import!#REF!","v":{"$error":"#REF!"}},{"$f":"Import!#REF!","v":{"$error":"#REF!"}},{"$f":"Import!#REF!","v":{"$error":"#REF!"}},{"$f":"Import!#REF!","v":{"$error":"#REF!"}},{"$f":"Import!#REF!","v":{"$error":"#REF!"}},{"$f":"Import!#REF!","v":{"$error":"#REF!"}}]
[5,{"$f":"Import!#REF!","v":{"$error":"#REF!"}},{"$f":"Import!#REF!","v":{"$error":"#REF!"}},{"$f":"Import!#REF!","v":{"$error":"#REF!"}},{"$f":"Import!#REF!","v":{"$error":"#REF!"}},{"$f":"Import!#REF!","v":{"$error":"#REF!"}},{"$f":"Import!#REF!","v":{"$error":"#REF!"}},{"$f":"Import!#REF!","v":{"$error":"#REF!"}},{"$f":"Import!#REF!","v":{"$error":"#REF!"}}]
[6,{"$f":"Import!#REF!","v":{"$error":"#REF!"}},{"$f":"Import!#REF!","v":{"$error":"#REF!"}},{"$f":"Import!#REF!","v":{"$error":"#REF!"}},{"$f":"Import!#REF!","v":{"$error":"#REF!"}},{"$f":"Import!#REF!","v":{"$error":"#REF!"}},{"$f":"Import!#REF!","v":{"$error":"#REF!"}},{"$f":"Import!#REF!","v":{"$error":"#REF!"}},{"$f":"Import!#REF!","v":{"$error":"#REF!"}}]
[7,{"$f":"Import!#REF!","v":{"$error":"#REF!"}},{"$f":"Import!#REF!","v":{"$error":"#REF!"}},{"$f":"Import!#REF!","v":{"$error":"#REF!"}},{"$f":"Import!#REF!","v":{"$error":"#REF!"}},{"$f":"Import!#REF!","v":{"$error":"#REF!"}},{"$f":"Import!#REF!","v":{"$error":"#REF!"}},{"$f":"Import!#REF!","v":{"$error":"#REF!"}},{"$f":"Import!#REF!","v":{"$error":"#REF!"}}]
[8,{"$f":"Import!#REF!","v":{"$error":"#REF!"}},{"$f":"Import!#REF!","v":{"$error":"#REF!"}},{"$f":"Import!#REF!","v":{"$error":"#REF!"}},{"$f":"Import!#REF!","v":{"$error":"#REF!"}},{"$f":"Import!#REF!","v":{"$error":"#REF!"}},{"$f":"Import!#REF!","v":{"$error":"#REF!"}},{"$f":"Import!#REF!","v":{"$error":"#REF!"}},{"$f":"Import!#REF!","v":{"$error":"#REF!"}}]
[9,{"$f":"Import!#REF!","v":{"$error":"#REF!"}},{"$f":"Import!#REF!","v":{"$error":"#REF!"}},{"$f":"Import!#REF!","v":{"$error":"#REF!"}},{"$f":"Import!#REF!","v":{"$error":"#REF!"}},{"$f":"Import!#REF!","v":{"$error":"#REF!"}},{"$f":"Import!#REF!","v":{"$error":"#REF!"}},{"$f":"Import!#REF!","v":{"$error":"#REF!"}},{"$f":"Import!#REF!","v":{"$error":"#REF!"}}]
[10,{"$f":"Import!#REF!","v":{"$error":"#REF!"}},{"$f":"Import!#REF!","v":{"$error":"#REF!"}},{"$f":"Import!#REF!","v":{"$error":"#REF!"}},{"$f":"Import!#REF!","v":{"$error":"#REF!"}},{"$f":"Import!#REF!","v":{"$error":"#REF!"}},{"$f":"Import!#REF!","v":{"$error":"#REF!"}},{"$f":"Import!#REF!","v":{"$error":"#REF!"}},{"$f":"Import!#REF!","v":{"$error":"#REF!"}}]
[11,{"$f":"Import!#REF!","v":{"$error":"#REF!"}},{"$f":"Import!#REF!","v":{"$error":"#REF!"}},{"$f":"Import!#REF!","v":{"$error":"#REF!"}},{"$f":"Import!#REF!","v":{"$error":"#REF!"}},{"$f":"Import!#REF!","v":{"$error":"#REF!"}},{"$f":"Import!#REF!","v":{"$error":"#REF!"}},{"$f":"Import!#REF!","v":{"$error":"#REF!"}},{"$f":"Import!#REF!","v":{"$error":"#REF!"}}]
[12,{"$f":"Import!#REF!","v":{"$error":"#REF!"}},{"$f":"Import!#REF!","v":{"$error":"#REF!"}},{"$f":"Import!#REF!","v":{"$error":"#REF!"}},{"$f":"Import!#REF!","v":{"$error":"#REF!"}},{"$f":"Import!#REF!","v":{"$error":"#REF!"}},{"$f":"Import!#REF!","v":{"$error":"#REF!"}},{"$f":"Import!#REF!","v":{"$error":"#REF!"}},{"$f":"Import!#REF!","v":{"$error":"#REF!"}}]
[13,{"$f":"Import!#REF!","v":{"$error":"#REF!"}},{"$f":"Import!#REF!","v":{"$error":"#REF!"}},{"$f":"Import!#REF!","v":{"$error":"#REF!"}},{"$f":"Import!#REF!","v":{"$error":"#REF!"}},{"$f":"Import!#REF!","v":{"$error":"#REF!"}},{"$f":"Import!#REF!","v":{"$error":"#REF!"}},{"$f":"Import!#REF!","v":{"$error":"#REF!"}},{"$f":"Import!#REF!","v":{"$error":"#REF!"}}]
[14,{"$f":"Import!#REF!","v":{"$error":"#REF!"}},{"$f":"Import!#REF!","v":{"$error":"#REF!"}},{"$f":"Import!#REF!","v":{"$error":"#REF!"}},{"$f":"Import!#REF!","v":{"$error":"#REF!"}},{"$f":"Import!#REF!","v":{"$error":"#REF!"}},{"$f":"Import!#REF!","v":{"$error":"#REF!"}},{"$f":"Import!#REF!","v":{"$error":"#REF!"}},{"$f":"Import!#REF!","v":{"$error":"#REF!"}}]
[15,{"$f":"Import!#REF!","v":{"$error":"#REF!"}},{"$f":"Import!#REF!","v":{"$error":"#REF!"}},{"$f":"Import!#REF!","v":{"$error":"#REF!"}},{"$f":"Import!#REF!","v":{"$error":"#REF!"}},{"$f":"Import!#REF!","v":{"$error":"#REF!"}},{"$f":"Import!#REF!","v":{"$error":"#REF!"}},{"$f":"Import!#REF!","v":{"$error":"#REF!"}},{"$f":"Import!#REF!","v":{"$error":"#REF!"}}]
[16,{"$f":"Import!#REF!","v":{"$error":"#REF!"}},{"$f":"Import!#REF!","v":{"$error":"#REF!"}},{"$f":"Import!#REF!","v":{"$error":"#REF!"}},{"$f":"Import!#REF!","v":{"$error":"#REF!"}},{"$f":"Import!#REF!","v":{"$error":"#REF!"}},{"$f":"Import!#REF!","v":{"$error":"#REF!"}},{"$f":"Import!#REF!","v":{"$error":"#REF!"}},{"$f":"Import!#REF!","v":{"$error":"#REF!"}}]
[17,{"$f":"Import!#REF!","v":{"$error":"#REF!"}},{"$f":"Import!#REF!","v":{"$error":"#REF!"}},{"$f":"Import!#REF!","v":{"$error":"#REF!"}},{"$f":"Import!#REF!","v":{"$error":"#REF!"}},{"$f":"Import!#REF!","v":{"$error":"#REF!"}},{"$f":"Import!#REF!","v":{"$error":"#REF!"}},{"$f":"Import!#REF!","v":{"$error":"#REF!"}},{"$f":"Import!#REF!","v":{"$error":"#REF!"}}]
[18,{"$f":"Import!#REF!","v":{"$error":"#REF!"}},{"$f":"Import!#REF!","v":{"$error":"#REF!"}},{"$f":"Import!#REF!","v":{"$error":"#REF!"}},{"$f":"Import!#REF!","v":{"$error":"#REF!"}},{"$f":"Import!#REF!","v":{"$error":"#REF!"}},{"$f":"Import!#REF!","v":{"$error":"#REF!"}},{"$f":"Import!#REF!","v":{"$error":"#REF!"}},{"$f":"Import!#REF!","v":{"$error":"#REF!"}}]
[19,{"$f":"Import!#REF!","v":{"$error":"#REF!"}},{"$f":"Import!#REF!","v":{"$error":"#REF!"}},{"$f":"Import!#REF!","v":{"$error":"#REF!"}},{"$f":"Import!#REF!","v":{"$error":"#REF!"}},{"$f":"Import!#REF!","v":{"$error":"#REF!"}},{"$f":"Import!#REF!","v":{"$error":"#REF!"}},{"$f":"Import!#REF!","v":{"$error":"#REF!"}},{"$f":"Import!#REF!","v":{"$error":"#REF!"}}]
[20,{"$f":"Import!#REF!","v":{"$error":"#REF!"}},{"$f":"Import!#REF!","v":{"$error":"#REF!"}},{"$f":"Import!#REF!","v":{"$error":"#REF!"}},{"$f":"Import!#REF!","v":{"$error":"#REF!"}},{"$f":"Import!#REF!","v":{"$error":"#REF!"}},{"$f":"Import!#REF!","v":{"$error":"#REF!"}},{"$f":"Import!#REF!","v":{"$error":"#REF!"}},{"$f":"Import!#REF!","v":{"$error":"#REF!"}}]
[]
[null,"Total Securities/Asset-Backed Securities",null,null,{"$f":"SUM(E75:E94)","v":{"$error":"#REF!"}},{"$f":"SUM(F75:F94)","v":{"$error":"#REF!"}},0,0,0]
[]
[null,"Form 1SFS Lines 2(b) & 3(b) Bonds & Debentures",null,null,null,{"$f":"IF(('Form 1SFS'!$E$100+'Form 1SFS'!$I$100)= 0,'Form 1SFS'!M$18+'Form 1SFS'!M$31,'Form 1SFS'!E$18+'Form 1SFS'!I$18+'Form 1SFS'!E$31+'Form 1SFS'!I$31)","v":0}]
[]
[null,"Check Sections B & C",null,null,null,{"$f":"ROUND(((F96+F67)-F98),0)","v":{"$error":"#REF!"}},{"$f":"IF(F100=0,\"TRUE\",\"FALSE\")","v":{"$error":"#REF!"}}]
[]
[null,"(D) LISTED EQUITIES AND PREFERENCE SHARES"]
[]
[null,null,"Enter # of Asset Types"]
[]
[null,null,null,null,2021,2021]
[null,"Asset Type","Stock Exchange","BSCR Rating","Face Value","Fair Value"]
[1,{"$f":"Import!#REF!","v":{"$error":"#REF!"}},{"$f":"Import!#REF!","v":{"$error":"#REF!"}},{"$f":"Import!#REF!","v":{"$error":"#REF!"}},{"$f":"Import!#REF!","v":{"$error":"#REF!"}},{"$f":"Import!#REF!","v":{"$error":"#REF!"}}]
[2,{"$f":"Import!#REF!","v":{"$error":"#REF!"}},{"$f":"Import!#REF!","v":{"$error":"#REF!"}},{"$f":"Import!#REF!","v":{"$error":"#REF!"}},{"$f":"Import!#REF!","v":{"$error":"#REF!"}},{"$f":"Import!#REF!","v":{"$error":"#REF!"}}]
[3,{"$f":"Import!#REF!","v":{"$error":"#REF!"}},{"$f":"Import!#REF!","v":{"$error":"#REF!"}},{"$f":"Import!#REF!","v":{"$error":"#REF!"}},{"$f":"Import!#REF!","v":{"$error":"#REF!"}},{"$f":"Import!#REF!","v":{"$error":"#REF!"}}]
[4,{"$f":"Import!#REF!","v":{"$error":"#REF!"}},{"$f":"Import!#REF!","v":{"$error":"#REF!"}},{"$f":"Import!#REF!","v":{"$error":"#REF!"}},{"$f":"Import!#REF!","v":{"$error":"#REF!"}},{"$f":"Import!#REF!","v":{"$error":"#REF!"}}]
[5,{"$f":"Import!#REF!","v":{"$error":"#REF!"}},{"$f":"Import!#REF!","v":{"$error":"#REF!"}},{"$f":"Import!#REF!","v":{"$error":"#REF!"}},{"$f":"Import!#REF!","v":{"$error":"#REF!"}},{"$f":"Import!#REF!","v":{"$error":"#REF!"}}]
[6,{"$f":"Import!#REF!","v":{"$error":"#REF!"}},{"$f":"Import!#REF!","v":{"$error":"#REF!"}},{"$f":"Import!#REF!","v":{"$error":"#REF!"}},{"$f":"Import!#REF!","v":{"$error":"#REF!"}},{"$f":"Import!#REF!","v":{"$error":"#REF!"}}]
[7,{"$f":"Import!#REF!","v":{"$error":"#REF!"}},{"$f":"Import!#REF!","v":{"$error":"#REF!"}},{"$f":"Import!#REF!","v":{"$error":"#REF!"}},{"$f":"Import!#REF!","v":{"$error":"#REF!"}},{"$f":"Import!#REF!","v":{"$error":"#REF!"}}]
[8,{"$f":"Import!#REF!","v":{"$error":"#REF!"}},{"$f":"Import!#REF!","v":{"$error":"#REF!"}},{"$f":"Import!#REF!","v":{"$error":"#REF!"}},{"$f":"Import!#REF!","v":{"$error":"#REF!"}},{"$f":"Import!#REF!","v":{"$error":"#REF!"}}]
[9,{"$f":"Import!#REF!","v":{"$error":"#REF!"}},{"$f":"Import!#REF!","v":{"$error":"#REF!"}},{"$f":"Import!#REF!","v":{"$error":"#REF!"}},{"$f":"Import!#REF!","v":{"$error":"#REF!"}},{"$f":"Import!#REF!","v":{"$error":"#REF!"}}]
[10,{"$f":"Import!#REF!","v":{"$error":"#REF!"}},{"$f":"Import!#REF!","v":{"$error":"#REF!"}},{"$f":"Import!#REF!","v":{"$error":"#REF!"}},{"$f":"Import!#REF!","v":{"$error":"#REF!"}},{"$f":"Import!#REF!","v":{"$error":"#REF!"}}]
[11,{"$f":"Import!#REF!","v":{"$error":"#REF!"}},{"$f":"Import!#REF!","v":{"$error":"#REF!"}},{"$f":"Import!#REF!","v":{"$error":"#REF!"}},{"$f":"Import!#REF!","v":{"$error":"#REF!"}},{"$f":"Import!#REF!","v":{"$error":"#REF!"}}]
[12,{"$f":"Import!#REF!","v":{"$error":"#REF!"}},{"$f":"Import!#REF!","v":{"$error":"#REF!"}},{"$f":"Import!#REF!","v":{"$error":"#REF!"}},{"$f":"Import!#REF!","v":{"$error":"#REF!"}},{"$f":"Import!#REF!","v":{"$error":"#REF!"}}]
[13,{"$f":"Import!#REF!","v":{"$error":"#REF!"}},{"$f":"Import!#REF!","v":{"$error":"#REF!"}},{"$f":"Import!#REF!","v":{"$error":"#REF!"}},{"$f":"Import!#REF!","v":{"$error":"#REF!"}},{"$f":"Import!#REF!","v":{"$error":"#REF!"}}]
[14,{"$f":"Import!#REF!","v":{"$error":"#REF!"}},{"$f":"Import!#REF!","v":{"$error":"#REF!"}},{"$f":"Import!#REF!","v":{"$error":"#REF!"}},{"$f":"Import!#REF!","v":{"$error":"#REF!"}},{"$f":"Import!#REF!","v":{"$error":"#REF!"}}]
[15,{"$f":"Import!#REF!","v":{"$error":"#REF!"}},{"$f":"Import!#REF!","v":{"$error":"#REF!"}},{"$f":"Import!#REF!","v":{"$error":"#REF!"}},{"$f":"Import!#REF!","v":{"$error":"#REF!"}},{"$f":"Import!#REF!","v":{"$error":"#REF!"}}]
[16,{"$f":"Import!#REF!","v":{"$error":"#REF!"}},{"$f":"Import!#REF!","v":{"$error":"#REF!"}},{"$f":"Import!#REF!","v":{"$error":"#REF!"}},{"$f":"Import!#REF!","v":{"$error":"#REF!"}},{"$f":"Import!#REF!","v":{"$error":"#REF!"}}]
[17,{"$f":"Import!#REF!","v":{"$error":"#REF!"}},{"$f":"Import!#REF!","v":{"$error":"#REF!"}},{"$f":"Import!#REF!","v":{"$error":"#REF!"}},{"$f":"Import!#REF!","v":{"$error":"#REF!"}},{"$f":"Import!#REF!","v":{"$error":"#REF!"}}]
[18,{"$f":"Import!#REF!","v":{"$error":"#REF!"}},{"$f":"Import!#REF!","v":{"$error":"#REF!"}},{"$f":"Import!#REF!","v":{"$error":"#REF!"}},{"$f":"Import!#REF!","v":{"$error":"#REF!"}},{"$f":"Import!#REF!","v":{"$error":"#REF!"}}]
[19,{"$f":"Import!#REF!","v":{"$error":"#REF!"}},{"$f":"Import!#REF!","v":{"$error":"#REF!"}},{"$f":"Import!#REF!","v":{"$error":"#REF!"}},{"$f":"Import!#REF!","v":{"$error":"#REF!"}},{"$f":"Import!#REF!","v":{"$error":"#REF!"}}]
[20,{"$f":"Import!#REF!","v":{"$error":"#REF!"}},{"$f":"Import!#REF!","v":{"$error":"#REF!"}},{"$f":"Import!#REF!","v":{"$error":"#REF!"}},{"$f":"Import!#REF!","v":{"$error":"#REF!"}},{"$f":"Import!#REF!","v":{"$error":"#REF!"}}]
[]
[null,"Total Listed Equities & Preference Shares",null,null,{"$f":"SUM(E108:E127)","v":{"$error":"#REF!"}},{"$f":"SUM(F108:F127)","v":{"$error":"#REF!"}}]
[]
[null,"Form 1SFS Lines 2(d) & 3(d) Equities & Preference Shares",null,null,null,{"$f":"IF(('Form 1SFS'!$E$100+'Form 1SFS'!$I$100)= 0,'Form 1SFS'!M$23+'Form 1SFS'!M$36,'Form 1SFS'!E$23+'Form 1SFS'!I$23+'Form 1SFS'!E$36+'Form 1SFS'!I$36)","v":0}]
[]
[null,"Check Section D",null,null,null,{"$f":"ROUND((F129-F131),0)","v":{"$error":"#REF!"}},{"$f":"IF(F133=0,\"TRUE\",\"FALSE\")","v":{"$error":"#REF!"}}]
[]
[null,"(E) ALTERNATIVE INVESTMENTS"]
[]
[null,null,"Enter # of Asset Types"]
[]
[null,null,null,null,2021,2021]
[]
[null,"Asset Type","Jurisdiction","BSCR Rating","Face Value","Fair Value","Average YTM","Effective Duration","Effective Convexity"]
[1,{"$f":"Import!#REF!","v":{"$error":"#REF!"}},{"$f":"Import!#REF!","v":{"$error":"#REF!"}},{"$f":"Import!#REF!","v":{"$error":"#REF!"}},{"$f":"Import!#REF!","v":{"$error":"#REF!"}},{"$f":"Import!#REF!","v":{"$error":"#REF!"}},{"$f":"Import!#REF!","v":{"$error":"#REF!"}},{"$f":"Import!#REF!","v":{"$error":"#REF!"}},{"$f":"Import!#REF!","v":{"$error":"#REF!"}}]
[2,{"$f":"Import!#REF!","v":{"$error":"#REF!"}},{"$f":"Import!#REF!","v":{"$error":"#REF!"}},{"$f":"Import!#REF!","v":{"$error":"#REF!"}},{"$f":"Import!#REF!","v":{"$error":"#REF!"}},{"$f":"Import!#REF!","v":{"$error":"#REF!"}},{"$f":"Import!#REF!","v":{"$error":"#REF!"}},{"$f":"Import!#REF!","v":{"$error":"#REF!"}},{"$f":"Import!#REF!","v":{"$error":"#REF!"}}]
[3,{"$f":"Import!#REF!","v":{"$error":"#REF!"}},{"$f":"Import!#REF!","v":{"$error":"#REF!"}},{"$f":"Import!#REF!","v":{"$error":"#REF!"}},{"$f":"Import!#REF!","v":{"$error":"#REF!"}},{"$f":"Import!#REF!","v":{"$error":"#REF!"}},{"$f":"Import!#REF!","v":{"$error":"#REF!"}},{"$f":"Import!#REF!","v":{"$error":"#REF!"}},{"$f":"Import!#REF!","v":{"$error":"#REF!"}}]
[4,{"$f":"Import!#REF!","v":{"$error":"#REF!"}},{"$f":"Import!#REF!","v":{"$error":"#REF!"}},{"$f":"Import!#REF!","v":{"$error":"#REF!"}},{"$f":"Import!#REF!","v":{"$error":"#REF!"}},{"$f":"Import!#REF!","v":{"$error":"#REF!"}},{"$f":"Import!#REF!","v":{"$error":"#REF!"}},{"$f":"Import!#REF!","v":{"$error":"#REF!"}},{"$f":"Import!#REF!","v":{"$error":"#REF!"}}]
[5,{"$f":"Import!#REF!","v":{"$error":"#REF!"}},{"$f":"Import!#REF!","v":{"$error":"#REF!"}},{"$f":"Import!#REF!","v":{"$error":"#REF!"}},{"$f":"Import!#REF!","v":{"$error":"#REF!"}},{"$f":"Import!#REF!","v":{"$error":"#REF!"}},{"$f":"Import!#REF!","v":{"$error":"#REF!"}},{"$f":"Import!#REF!","v":{"$error":"#REF!"}},{"$f":"Import!#REF!","v":{"$error":"#REF!"}}]
[6,{"$f":"Import!#REF!","v":{"$error":"#REF!"}},{"$f":"Import!#REF!","v":{"$error":"#REF!"}},{"$f":"Import!#REF!","v":{"$error":"#REF!"}},{"$f":"Import!#REF!","v":{"$error":"#REF!"}},{"$f":"Import!#REF!","v":{"$error":"#REF!"}},{"$f":"Import!#REF!","v":{"$error":"#REF!"}},{"$f":"Import!#REF!","v":{"$error":"#REF!"}},{"$f":"Import!#REF!","v":{"$error":"#REF!"}}]
[7,{"$f":"Import!#REF!","v":{"$error":"#REF!"}},{"$f":"Import!#REF!","v":{"$error":"#REF!"}},{"$f":"Import!#REF!","v":{"$error":"#REF!"}},{"$f":"Import!#REF!","v":{"$error":"#REF!"}},{"$f":"Import!#REF!","v":{"$error":"#REF!"}},{"$f":"Import!#REF!","v":{"$error":"#REF!"}},{"$f":"Import!#REF!","v":{"$error":"#REF!"}},{"$f":"Import!#REF!","v":{"$error":"#REF!"}}]
[8,{"$f":"Import!#REF!","v":{"$error":"#REF!"}},{"$f":"Import!#REF!","v":{"$error":"#REF!"}},{"$f":"Import!#REF!","v":{"$error":"#REF!"}},{"$f":"Import!#REF!","v":{"$error":"#REF!"}},{"$f":"Import!#REF!","v":{"$error":"#REF!"}},{"$f":"Import!#REF!","v":{"$error":"#REF!"}},{"$f":"Import!#REF!","v":{"$error":"#REF!"}},{"$f":"Import!#REF!","v":{"$error":"#REF!"}}]
[9,{"$f":"Import!#REF!","v":{"$error":"#REF!"}},{"$f":"Import!#REF!","v":{"$error":"#REF!"}},{"$f":"Import!#REF!","v":{"$error":"#REF!"}},{"$f":"Import!#REF!","v":{"$error":"#REF!"}},{"$f":"Import!#REF!","v":{"$error":"#REF!"}},{"$f":"Import!#REF!","v":{"$error":"#REF!"}},{"$f":"Import!#REF!","v":{"$error":"#REF!"}},{"$f":"Import!#REF!","v":{"$error":"#REF!"}}]
[10,{"$f":"Import!#REF!","v":{"$error":"#REF!"}},{"$f":"Import!#REF!","v":{"$error":"#REF!"}},{"$f":"Import!#REF!","v":{"$error":"#REF!"}},{"$f":"Import!#REF!","v":{"$error":"#REF!"}},{"$f":"Import!#REF!","v":{"$error":"#REF!"}},{"$f":"Import!#REF!","v":{"$error":"#REF!"}},{"$f":"Import!#REF!","v":{"$error":"#REF!"}},{"$f":"Import!#REF!","v":{"$error":"#REF!"}}]
[11,{"$f":"Import!#REF!","v":{"$error":"#REF!"}},{"$f":"Import!#REF!","v":{"$error":"#REF!"}},{"$f":"Import!#REF!","v":{"$error":"#REF!"}},{"$f":"Import!#REF!","v":{"$error":"#REF!"}},{"$f":"Import!#REF!","v":{"$error":"#REF!"}},{"$f":"Import!#REF!","v":{"$error":"#REF!"}},{"$f":"Import!#REF!","v":{"$error":"#REF!"}},{"$f":"Import!#REF!","v":{"$error":"#REF!"}}]
[12,{"$f":"Import!#REF!","v":{"$error":"#REF!"}},{"$f":"Import!#REF!","v":{"$error":"#REF!"}},{"$f":"Import!#REF!","v":{"$error":"#REF!"}},{"$f":"Import!#REF!","v":{"$error":"#REF!"}},{"$f":"Import!#REF!","v":{"$error":"#REF!"}},{"$f":"Import!#REF!","v":{"$error":"#REF!"}},{"$f":"Import!#REF!","v":{"$error":"#REF!"}},{"$f":"Import!#REF!","v":{"$error":"#REF!"}}]
[13,{"$f":"Import!#REF!","v":{"$error":"#REF!"}},{"$f":"Import!#REF!","v":{"$error":"#REF!"}},{"$f":"Import!#REF!","v":{"$error":"#REF!"}},{"$f":"Import!#REF!","v":{"$error":"#REF!"}},{"$f":"Import!#REF!","v":{"$error":"#REF!"}},{"$f":"Import!#REF!","v":{"$error":"#REF!"}},{"$f":"Import!#REF!","v":{"$error":"#REF!"}},{"$f":"Import!#REF!","v":{"$error":"#REF!"}}]
[14,{"$f":"Import!#REF!","v":{"$error":"#REF!"}},{"$f":"Import!#REF!","v":{"$error":"#REF!"}},{"$f":"Import!#REF!","v":{"$error":"#REF!"}},{"$f":"Import!#REF!","v":{"$error":"#REF!"}},{"$f":"Import!#REF!","v":{"$error":"#REF!"}},{"$f":"Import!#REF!","v":{"$error":"#REF!"}},{"$f":"Import!#REF!","v":{"$error":"#REF!"}},{"$f":"Import!#REF!","v":{"$error":"#REF!"}}]
[15,{"$f":"Import!#REF!","v":{"$error":"#REF!"}},{"$f":"Import!#REF!","v":{"$error":"#REF!"}},{"$f":"Import!#REF!","v":{"$error":"#REF!"}},{"$f":"Import!#REF!","v":{"$error":"#REF!"}},{"$f":"Import!#REF!","v":{"$error":"#REF!"}},{"$f":"Import!#REF!","v":{"$error":"#REF!"}},{"$f":"Import!#REF!","v":{"$error":"#REF!"}},{"$f":"Import!#REF!","v":{"$error":"#REF!"}}]
[16,{"$f":"Import!#REF!","v":{"$error":"#REF!"}},{"$f":"Import!#REF!","v":{"$error":"#REF!"}},{"$f":"Import!#REF!","v":{"$error":"#REF!"}},{"$f":"Import!#REF!","v":{"$error":"#REF!"}},{"$f":"Import!#REF!","v":{"$error":"#REF!"}},{"$f":"Import!#REF!","v":{"$error":"#REF!"}},{"$f":"Import!#REF!","v":{"$error":"#REF!"}},{"$f":"Import!#REF!","v":{"$error":"#REF!"}}]
[17,{"$f":"Import!#REF!","v":{"$error":"#REF!"}},{"$f":"Import!#REF!","v":{"$error":"#REF!"}},{"$f":"Import!#REF!","v":{"$error":"#REF!"}},{"$f":"Import!#REF!","v":{"$error":"#REF!"}},{"$f":"Import!#REF!","v":{"$error":"#REF!"}},{"$f":"Import!#REF!","v":{"$error":"#REF!"}},{"$f":"Import!#REF!","v":{"$error":"#REF!"}},{"$f":"Import!#REF!","v":{"$error":"#REF!"}}]
[18,{"$f":"Import!#REF!","v":{"$error":"#REF!"}},{"$f":"Import!#REF!","v":{"$error":"#REF!"}},{"$f":"Import!#REF!","v":{"$error":"#REF!"}},{"$f":"Import!#REF!","v":{"$error":"#REF!"}},{"$f":"Import!#REF!","v":{"$error":"#REF!"}},{"$f":"Import!#REF!","v":{"$error":"#REF!"}},{"$f":"Import!#REF!","v":{"$error":"#REF!"}},{"$f":"Import!#REF!","v":{"$error":"#REF!"}}]
[19,{"$f":"Import!#REF!","v":{"$error":"#REF!"}},{"$f":"Import!#REF!","v":{"$error":"#REF!"}},{"$f":"Import!#REF!","v":{"$error":"#REF!"}},{"$f":"Import!#REF!","v":{"$error":"#REF!"}},{"$f":"Import!#REF!","v":{"$error":"#REF!"}},{"$f":"Import!#REF!","v":{"$error":"#REF!"}},{"$f":"Import!#REF!","v":{"$error":"#REF!"}},{"$f":"Import!#REF!","v":{"$error":"#REF!"}}]
[20,{"$f":"Import!#REF!","v":{"$error":"#REF!"}},{"$f":"Import!#REF!","v":{"$error":"#REF!"}},{"$f":"Import!#REF!","v":{"$error":"#REF!"}},{"$f":"Import!#REF!","v":{"$error":"#REF!"}},{"$f":"Import!#REF!","v":{"$error":"#REF!"}},{"$f":"Import!#REF!","v":{"$error":"#REF!"}},{"$f":"Import!#REF!","v":{"$error":"#REF!"}},{"$f":"Import!#REF!","v":{"$error":"#REF!"}}]
[]
[null,"Total Alternative Investments",null,null,{"$f":"SUM(E142:E161)","v":{"$error":"#REF!"}},{"$f":"SUM(F142:F161)","v":{"$error":"#REF!"}},0,0,0]
[]
[null,"Form 1SFS Lines 2(e) & 3(e) Alternative Investments",null,null,null,{"$f":"IF(('Form 1SFS'!$E$100+'Form 1SFS'!$I$100)= 0,'Form 1SFS'!M$24+'Form 1SFS'!M$37,'Form 1SFS'!E$24+'Form 1SFS'!I$24+'Form 1SFS'!E$37+'Form 1SFS'!I$37)","v":0}]
[]
[null,"Check Section E",null,null,null,{"$f":"ROUND((F163-F165),0)","v":{"$error":"#REF!"}},{"$f":"IF(F167=0,\"TRUE\",\"FALSE\")","v":{"$error":"#REF!"}}]
[]
[null,"(F) LOANS"]
[]
[null,null,"Enter # of Asset Types"]
[]
[null,null,null,null,2021,2021]
[null,"Asset Type","Jurisdiction","BSCR Rating","Face Value","Fair Value","Average YTM","Effective Duration","Effective Convexity"]
[null,{"$f":"Import!#REF!","v":{"$error":"#REF!"}},{"$f":"Import!#REF!","v":{"$error":"#REF!"}},{"$f":"Import!#REF!","v":{"$error":"#REF!"}},{"$f":"Import!#REF!","v":{"$error":"#REF!"}},{"$f":"Import!#REF!","v":{"$error":"#REF!"}},{"$f":"Import!#REF!","v":{"$error":"#REF!"}},{"$f":"Import!#REF!","v":{"$error":"#REF!"}},{"$f":"Import!#REF!","v":{"$error":"#REF!"}}]
[null,{"$f":"Import!#REF!","v":{"$error":"#REF!"}},{"$f":"Import!#REF!","v":{"$error":"#REF!"}},{"$f":"Import!#REF!","v":{"$error":"#REF!"}},{"$f":"Import!#REF!","v":{"$error":"#REF!"}},{"$f":"Import!#REF!","v":{"$error":"#REF!"}},{"$f":"Import!#REF!","v":{"$error":"#REF!"}},{"$f":"Import!#REF!","v":{"$error":"#REF!"}},{"$f":"Import!#REF!","v":{"$error":"#REF!"}}]
[null,{"$f":"Import!#REF!","v":{"$error":"#REF!"}},{"$f":"Import!#REF!","v":{"$error":"#REF!"}},{"$f":"Import!#REF!","v":{"$error":"#REF!"}},{"$f":"Import!#REF!","v":{"$error":"#REF!"}},{"$f":"Import!#REF!","v":{"$error":"#REF!"}},{"$f":"Import!#REF!","v":{"$error":"#REF!"}},{"$f":"Import!#REF!","v":{"$error":"#REF!"}},{"$f":"Import!#REF!","v":{"$error":"#REF!"}}]
[null,{"$f":"Import!#REF!","v":{"$error":"#REF!"}},{"$f":"Import!#REF!","v":{"$error":"#REF!"}},{"$f":"Import!#REF!","v":{"$error":"#REF!"}},{"$f":"Import!#REF!","v":{"$error":"#REF!"}},{"$f":"Import!#REF!","v":{"$error":"#REF!"}},{"$f":"Import!#REF!","v":{"$error":"#REF!"}},{"$f":"Import!#REF!","v":{"$error":"#REF!"}},{"$f":"Import!#REF!","v":{"$error":"#REF!"}}]
[null,{"$f":"Import!#REF!","v":{"$error":"#REF!"}},{"$f":"Import!#REF!","v":{"$error":"#REF!"}},{"$f":"Import!#REF!","v":{"$error":"#REF!"}},{"$f":"Import!#REF!","v":{"$error":"#REF!"}},{"$f":"Import!#REF!","v":{"$error":"#REF!"}},{"$f":"Import!#REF!","v":{"$error":"#REF!"}},{"$f":"Import!#REF!","v":{"$error":"#REF!"}},{"$f":"Import!#REF!","v":{"$error":"#REF!"}}]
[null,{"$f":"Import!#REF!","v":{"$error":"#REF!"}},{"$f":"Import!#REF!","v":{"$error":"#REF!"}},{"$f":"Import!#REF!","v":{"$error":"#REF!"}},{"$f":"Import!#REF!","v":{"$error":"#REF!"}},{"$f":"Import!#REF!","v":{"$error":"#REF!"}},{"$f":"Import!#REF!","v":{"$error":"#REF!"}},{"$f":"Import!#REF!","v":{"$error":"#REF!"}},{"$f":"Import!#REF!","v":{"$error":"#REF!"}}]
[null,{"$f":"Import!#REF!","v":{"$error":"#REF!"}},{"$f":"Import!#REF!","v":{"$error":"#REF!"}},{"$f":"Import!#REF!","v":{"$error":"#REF!"}},{"$f":"Import!#REF!","v":{"$error":"#REF!"}},{"$f":"Import!#REF!","v":{"$error":"#REF!"}},{"$f":"Import!#REF!","v":{"$error":"#REF!"}},{"$f":"Import!#REF!","v":{"$error":"#REF!"}},{"$f":"Import!#REF!","v":{"$error":"#REF!"}}]
[null,{"$f":"Import!#REF!","v":{"$error":"#REF!"}},{"$f":"Import!#REF!","v":{"$error":"#REF!"}},{"$f":"Import!#REF!","v":{"$error":"#REF!"}},{"$f":"Import!#REF!","v":{"$error":"#REF!"}},{"$f":"Import!#REF!","v":{"$error":"#REF!"}},{"$f":"Import!#REF!","v":{"$error":"#REF!"}},{"$f":"Import!#REF!","v":{"$error":"#REF!"}},{"$f":"Import!#REF!","v":{"$error":"#REF!"}}]
[null,{"$f":"Import!#REF!","v":{"$error":"#REF!"}},{"$f":"Import!#REF!","v":{"$error":"#REF!"}},{"$f":"Import!#REF!","v":{"$error":"#REF!"}},{"$f":"Import!#REF!","v":{"$error":"#REF!"}},{"$f":"Import!#REF!","v":{"$error":"#REF!"}},{"$f":"Import!#REF!","v":{"$error":"#REF!"}},{"$f":"Import!#REF!","v":{"$error":"#REF!"}},{"$f":"Import!#REF!","v":{"$error":"#REF!"}}]
[null,{"$f":"Import!#REF!","v":{"$error":"#REF!"}},{"$f":"Import!#REF!","v":{"$error":"#REF!"}},{"$f":"Import!#REF!","v":{"$error":"#REF!"}},{"$f":"Import!#REF!","v":{"$error":"#REF!"}},{"$f":"Import!#REF!","v":{"$error":"#REF!"}},{"$f":"Import!#REF!","v":{"$error":"#REF!"}},{"$f":"Import!#REF!","v":{"$error":"#REF!"}},{"$f":"Import!#REF!","v":{"$error":"#REF!"}}]
[null,{"$f":"Import!#REF!","v":{"$error":"#REF!"}},{"$f":"Import!#REF!","v":{"$error":"#REF!"}},{"$f":"Import!#REF!","v":{"$error":"#REF!"}},{"$f":"Import!#REF!","v":{"$error":"#REF!"}},{"$f":"Import!#REF!","v":{"$error":"#REF!"}},{"$f":"Import!#REF!","v":{"$error":"#REF!"}},{"$f":"Import!#REF!","v":{"$error":"#REF!"}},{"$f":"Import!#REF!","v":{"$error":"#REF!"}}]
[null,{"$f":"Import!#REF!","v":{"$error":"#REF!"}},{"$f":"Import!#REF!","v":{"$error":"#REF!"}},{"$f":"Import!#REF!","v":{"$error":"#REF!"}},{"$f":"Import!#REF!","v":{"$error":"#REF!"}},{"$f":"Import!#REF!","v":{"$error":"#REF!"}},{"$f":"Import!#REF!","v":{"$error":"#REF!"}},{"$f":"Import!#REF!","v":{"$error":"#REF!"}},{"$f":"Import!#REF!","v":{"$error":"#REF!"}}]
[null,{"$f":"Import!#REF!","v":{"$error":"#REF!"}},{"$f":"Import!#REF!","v":{"$error":"#REF!"}},{"$f":"Import!#REF!","v":{"$error":"#REF!"}},{"$f":"Import!#REF!","v":{"$error":"#REF!"}},{"$f":"Import!#REF!","v":{"$error":"#REF!"}},{"$f":"Import!#REF!","v":{"$error":"#REF!"}},{"$f":"Import!#REF!","v":{"$error":"#REF!"}},{"$f":"Import!#REF!","v":{"$error":"#REF!"}}]
[null,{"$f":"Import!#REF!","v":{"$error":"#REF!"}},{"$f":"Import!#REF!","v":{"$error":"#REF!"}},{"$f":"Import!#REF!","v":{"$error":"#REF!"}},{"$f":"Import!#REF!","v":{"$error":"#REF!"}},{"$f":"Import!#REF!","v":{"$error":"#REF!"}},{"$f":"Import!#REF!","v":{"$error":"#REF!"}},{"$f":"Import!#REF!","v":{"$error":"#REF!"}},{"$f":"Import!#REF!","v":{"$error":"#REF!"}}]
[null,{"$f":"Import!#REF!","v":{"$error":"#REF!"}},{"$f":"Import!#REF!","v":{"$error":"#REF!"}},{"$f":"Import!#REF!","v":{"$error":"#REF!"}},{"$f":"Import!#REF!","v":{"$error":"#REF!"}},{"$f":"Import!#REF!","v":{"$error":"#REF!"}},{"$f":"Import!#REF!","v":{"$error":"#REF!"}},{"$f":"Import!#REF!","v":{"$error":"#REF!"}},{"$f":"Import!#REF!","v":{"$error":"#REF!"}}]
[null,{"$f":"Import!#REF!","v":{"$error":"#REF!"}},{"$f":"Import!#REF!","v":{"$error":"#REF!"}},{"$f":"Import!#REF!","v":{"$error":"#REF!"}},{"$f":"Import!#REF!","v":{"$error":"#REF!"}},{"$f":"Import!#REF!","v":{"$error":"#REF!"}},{"$f":"Import!#REF!","v":{"$error":"#REF!"}},{"$f":"Import!#REF!","v":{"$error":"#REF!"}},{"$f":"Import!#REF!","v":{"$error":"#REF!"}}]
[null,{"$f":"Import!#REF!","v":{"$error":"#REF!"}},{"$f":"Import!#REF!","v":{"$error":"#REF!"}},{"$f":"Import!#REF!","v":{"$error":"#REF!"}},{"$f":"Import!#REF!","v":{"$error":"#REF!"}},{"$f":"Import!#REF!","v":{"$error":"#REF!"}},{"$f":"Import!#REF!","v":{"$error":"#REF!"}},{"$f":"Import!#REF!","v":{"$error":"#REF!"}},{"$f":"Import!#REF!","v":{"$error":"#REF!"}}]
[null,{"$f":"Import!#REF!","v":{"$error":"#REF!"}},{"$f":"Import!#REF!","v":{"$error":"#REF!"}},{"$f":"Import!#REF!","v":{"$error":"#REF!"}},{"$f":"Import!#REF!","v":{"$error":"#REF!"}},{"$f":"Import!#REF!","v":{"$error":"#REF!"}},{"$f":"Import!#REF!","v":{"$error":"#REF!"}},{"$f":"Import!#REF!","v":{"$error":"#REF!"}},{"$f":"Import!#REF!","v":{"$error":"#REF!"}}]
[null,{"$f":"Import!#REF!","v":{"$error":"#REF!"}},{"$f":"Import!#REF!","v":{"$error":"#REF!"}},{"$f":"Import!#REF!","v":{"$error":"#REF!"}},{"$f":"Import!#REF!","v":{"$error":"#REF!"}},{"$f":"Import!#REF!","v":{"$error":"#REF!"}},{"$f":"Import!#REF!","v":{"$error":"#REF!"}},{"$f":"Import!#REF!","v":{"$error":"#REF!"}},{"$f":"Import!#REF!","v":{"$error":"#REF!"}}]
[null,{"$f":"Import!#REF!","v":{"$error":"#REF!"}},{"$f":"Import!#REF!","v":{"$error":"#REF!"}},{"$f":"Import!#REF!","v":{"$error":"#REF!"}},{"$f":"Import!#REF!","v":{"$error":"#REF!"}},{"$f":"Import!#REF!","v":{"$error":"#REF!"}},{"$f":"Import!#REF!","v":{"$error":"#REF!"}},{"$f":"Import!#REF!","v":{"$error":"#REF!"}},{"$f":"Import!#REF!","v":{"$error":"#REF!"}}]
[]
[null,"Total Loans",null,null,{"$f":"SUM(E175:E194)","v":{"$error":"#REF!"}},{"$f":"SUM(F175:F194)","v":{"$error":"#REF!"}},0,0,0]
[]
[null,"Form 1SFS Line 5(c) Mortgage Loans",null,null,null,{"$f":"IF(('Form 1SFS'!$E$100+'Form 1SFS'!$I$100)= 0,'Form 1SFS'!M$53,'Form 1SFS'!E$53+'Form 1SFS'!I$53)","v":0}]
[]
[null,"Check Section F",null,null,null,{"$f":"ROUND((F196-F198),0)","v":{"$error":"#REF!"}},{"$f":"IF(F200=0,\"TRUE\",\"FALSE\")","v":{"$error":"#REF!"}}]
[]
[null,"(G) REAL ESTATE"]
[]
[null,null,"Enter # of Asset Types"]
[]
[null,null,null,null,2021,2021]
[]
[null,"Asset Type","Jurisdiction","Purpose","Face Value","Fair Value"]
[null,{"$f":"Import!#REF!","v":{"$error":"#REF!"}},{"$f":"Import!#REF!","v":{"$error":"#REF!"}},{"$f":"Import!#REF!","v":{"$error":"#REF!"}},{"$f":"Import!#REF!","v":{"$error":"#REF!"}},{"$f":"Import!#REF!","v":{"$error":"#REF!"}}]
[null,{"$f":"Import!#REF!","v":{"$error":"#REF!"}},{"$f":"Import!#REF!","v":{"$error":"#REF!"}},{"$f":"Import!#REF!","v":{"$error":"#REF!"}},{"$f":"Import!#REF!","v":{"$error":"#REF!"}},{"$f":"Import!#REF!","v":{"$error":"#REF!"}}]
[null,{"$f":"Import!#REF!","v":{"$error":"#REF!"}},{"$f":"Import!#REF!","v":{"$error":"#REF!"}},{"$f":"Import!#REF!","v":{"$error":"#REF!"}},{"$f":"Import!#REF!","v":{"$error":"#REF!"}},{"$f":"Import!#REF!","v":{"$error":"#REF!"}}]
[null,{"$f":"Import!#REF!","v":{"$error":"#REF!"}},{"$f":"Import!#REF!","v":{"$error":"#REF!"}},{"$f":"Import!#REF!","v":{"$error":"#REF!"}},{"$f":"Import!#REF!","v":{"$error":"#REF!"}},{"$f":"Import!#REF!","v":{"$error":"#REF!"}}]
[null,{"$f":"Import!#REF!","v":{"$error":"#REF!"}},{"$f":"Import!#REF!","v":{"$error":"#REF!"}},{"$f":"Import!#REF!","v":{"$error":"#REF!"}},{"$f":"Import!#REF!","v":{"$error":"#REF!"}},{"$f":"Import!#REF!","v":{"$error":"#REF!"}}]
[null,{"$f":"Import!#REF!","v":{"$error":"#REF!"}},{"$f":"Import!#REF!","v":{"$error":"#REF!"}},{"$f":"Import!#REF!","v":{"$error":"#REF!"}},{"$f":"Import!#REF!","v":{"$error":"#REF!"}},{"$f":"Import!#REF!","v":{"$error":"#REF!"}}]
[null,{"$f":"Import!#REF!","v":{"$error":"#REF!"}},{"$f":"Import!#REF!","v":{"$error":"#REF!"}},{"$f":"Import!#REF!","v":{"$error":"#REF!"}},{"$f":"Import!#REF!","v":{"$error":"#REF!"}},{"$f":"Import!#REF!","v":{"$error":"#REF!"}}]
[null,{"$f":"Import!#REF!","v":{"$error":"#REF!"}},{"$f":"Import!#REF!","v":{"$error":"#REF!"}},{"$f":"Import!#REF!","v":{"$error":"#REF!"}},{"$f":"Import!#REF!","v":{"$error":"#REF!"}},{"$f":"Import!#REF!","v":{"$error":"#REF!"}}]
[null,{"$f":"Import!#REF!","v":{"$error":"#REF!"}},{"$f":"Import!#REF!","v":{"$error":"#REF!"}},{"$f":"Import!#REF!","v":{"$error":"#REF!"}},{"$f":"Import!#REF!","v":{"$error":"#REF!"}},{"$f":"Import!#REF!","v":{"$error":"#REF!"}}]
[null,{"$f":"Import!#REF!","v":{"$error":"#REF!"}},{"$f":"Import!#REF!","v":{"$error":"#REF!"}},{"$f":"Import!#REF!","v":{"$error":"#REF!"}},{"$f":"Import!#REF!","v":{"$error":"#REF!"}},{"$f":"Import!#REF!","v":{"$error":"#REF!"}}]
[null,{"$f":"Import!#REF!","v":{"$error":"#REF!"}},{"$f":"Import!#REF!","v":{"$error":"#REF!"}},{"$f":"Import!#REF!","v":{"$error":"#REF!"}},{"$f":"Import!#REF!","v":{"$error":"#REF!"}},{"$f":"Import!#REF!","v":{"$error":"#REF!"}}]
[null,{"$f":"Import!#REF!","v":{"$error":"#REF!"}},{"$f":"Import!#REF!","v":{"$error":"#REF!"}},{"$f":"Import!#REF!","v":{"$error":"#REF!"}},{"$f":"Import!#REF!","v":{"$error":"#REF!"}},{"$f":"Import!#REF!","v":{"$error":"#REF!"}}]
[null,{"$f":"Import!#REF!","v":{"$error":"#REF!"}},{"$f":"Import!#REF!","v":{"$error":"#REF!"}},{"$f":"Import!#REF!","v":{"$error":"#REF!"}},{"$f":"Import!#REF!","v":{"$error":"#REF!"}},{"$f":"Import!#REF!","v":{"$error":"#REF!"}}]
[null,{"$f":"Import!#REF!","v":{"$error":"#REF!"}},{"$f":"Import!#REF!","v":{"$error":"#REF!"}},{"$f":"Import!#REF!","v":{"$error":"#REF!"}},{"$f":"Import!#REF!","v":{"$error":"#REF!"}},{"$f":"Import!#REF!","v":{"$error":"#REF!"}}]
[null,{"$f":"Import!#REF!","v":{"$error":"#REF!"}},{"$f":"Import!#REF!","v":{"$error":"#REF!"}},{"$f":"Import!#REF!","v":{"$error":"#REF!"}},{"$f":"Import!#REF!","v":{"$error":"#REF!"}},{"$f":"Import!#REF!","v":{"$error":"#REF!"}}]
[null,{"$f":"Import!#REF!","v":{"$error":"#REF!"}},{"$f":"Import!#REF!","v":{"$error":"#REF!"}},{"$f":"Import!#REF!","v":{"$error":"#REF!"}},{"$f":"Import!#REF!","v":{"$error":"#REF!"}},{"$f":"Import!#REF!","v":{"$error":"#REF!"}}]
[null,{"$f":"Import!#REF!","v":{"$error":"#REF!"}},{"$f":"Import!#REF!","v":{"$error":"#REF!"}},{"$f":"Import!#REF!","v":{"$error":"#REF!"}},{"$f":"Import!#REF!","v":{"$error":"#REF!"}},{"$f":"Import!#REF!","v":{"$error":"#REF!"}}]
[null,{"$f":"Import!#REF!","v":{"$error":"#REF!"}},{"$f":"Import!#REF!","v":{"$error":"#REF!"}},{"$f":"Import!#REF!","v":{"$error":"#REF!"}},{"$f":"Import!#REF!","v":{"$error":"#REF!"}},{"$f":"Import!#REF!","v":{"$error":"#REF!"}}]
[null,{"$f":"Import!#REF!","v":{"$error":"#REF!"}},{"$f":"Import!#REF!","v":{"$error":"#REF!"}},{"$f":"Import!#REF!","v":{"$error":"#REF!"}},{"$f":"Import!#REF!","v":{"$error":"#REF!"}},{"$f":"Import!#REF!","v":{"$error":"#REF!"}}]
[null,{"$f":"Import!#REF!","v":{"$error":"#REF!"}},{"$f":"Import!#REF!","v":{"$error":"#REF!"}},{"$f":"Import!#REF!","v":{"$error":"#REF!"}},{"$f":"Import!#REF!","v":{"$error":"#REF!"}},{"$f":"Import!#REF!","v":{"$error":"#REF!"}}]
[]
[null,"Total Real Estate",null,null,{"$f":"SUM(E209:E228)","v":{"$error":"#REF!"}},{"$f":"SUM(F209:F228)","v":{"$error":"#REF!"}}]
[]
[null,"Form 1SFS Line 7(c) Real Estate",null,null,null,{"$f":"IF(('Form 1SFS'!$E$100+'Form 1SFS'!$I$100)= 0,'Form 1SFS'!M$60,'Form 1SFS'!E$60+'Form 1SFS'!I$60)","v":0}]
[]
[null,"Check Section G",null,null,null,{"$f":"ROUND((F230-F232),0)","v":{"$error":"#REF!"}},{"$f":"IF(F234=0,\"TRUE\",\"FALSE\")","v":{"$error":"#REF!"}}]
[]
[null,"(H) DERIVATIVES"]
[]
[null,null,"Enter # of Derivative Types"]
[]
[null,"Derivative Type","Underlying","Purpose","Position"," 2021       Market Value","Centrally Cleared","Notional Value","Exposure (Dollar Delta, DV01, CS01"]
[null,{"$f":"Import!#REF!","v":{"$error":"#REF!"}},{"$f":"Import!#REF!","v":{"$error":"#REF!"}},{"$f":"Import!#REF!","v":{"$error":"#REF!"}},{"$f":"Import!#REF!","v":{"$error":"#REF!"}},{"$f":"Import!#REF!","v":{"$error":"#REF!"}},{"$f":"Import!#REF!","v":{"$error":"#REF!"}},{"$f":"Import!#REF!","v":{"$error":"#REF!"}},{"$f":"Import!#REF!","v":{"$error":"#REF!"}}]
[null,{"$f":"Import!#REF!","v":{"$error":"#REF!"}},{"$f":"Import!#REF!","v":{"$error":"#REF!"}},{"$f":"Import!#REF!","v":{"$error":"#REF!"}},{"$f":"Import!#REF!","v":{"$error":"#REF!"}},{"$f":"Import!#REF!","v":{"$error":"#REF!"}},{"$f":"Import!#REF!","v":{"$error":"#REF!"}},{"$f":"Import!#REF!","v":{"$error":"#REF!"}},{"$f":"Import!#REF!","v":{"$error":"#REF!"}}]
[null,{"$f":"Import!#REF!","v":{"$error":"#REF!"}},{"$f":"Import!#REF!","v":{"$error":"#REF!"}},{"$f":"Import!#REF!","v":{"$error":"#REF!"}},{"$f":"Import!#REF!","v":{"$error":"#REF!"}},{"$f":"Import!#REF!","v":{"$error":"#REF!"}},{"$f":"Import!#REF!","v":{"$error":"#REF!"}},{"$f":"Import!#REF!","v":{"$error":"#REF!"}},{"$f":"Import!#REF!","v":{"$error":"#REF!"}}]
[null,{"$f":"Import!#REF!","v":{"$error":"#REF!"}},{"$f":"Import!#REF!","v":{"$error":"#REF!"}},{"$f":"Import!#REF!","v":{"$error":"#REF!"}},{"$f":"Import!#REF!","v":{"$error":"#REF!"}},{"$f":"Import!#REF!","v":{"$error":"#REF!"}},{"$f":"Import!#REF!","v":{"$error":"#REF!"}},{"$f":"Import!#REF!","v":{"$error":"#REF!"}},{"$f":"Import!#REF!","v":{"$error":"#REF!"}}]
[null,{"$f":"Import!#REF!","v":{"$error":"#REF!"}},{"$f":"Import!#REF!","v":{"$error":"#REF!"}},{"$f":"Import!#REF!","v":{"$error":"#REF!"}},{"$f":"Import!#REF!","v":{"$error":"#REF!"}},{"$f":"Import!#REF!","v":{"$error":"#REF!"}},{"$f":"Import!#REF!","v":{"$error":"#REF!"}},{"$f":"Import!#REF!","v":{"$error":"#REF!"}},{"$f":"Import!#REF!","v":{"$error":"#REF!"}}]
[null,{"$f":"Import!#REF!","v":{"$error":"#REF!"}},{"$f":"Import!#REF!","v":{"$error":"#REF!"}},{"$f":"Import!#REF!","v":{"$error":"#REF!"}},{"$f":"Import!#REF!","v":{"$error":"#REF!"}},{"$f":"Import!#REF!","v":{"$error":"#REF!"}},{"$f":"Import!#REF!","v":{"$error":"#REF!"}},{"$f":"Import!#REF!","v":{"$error":"#REF!"}},{"$f":"Import!#REF!","v":{"$error":"#REF!"}}]
[null,{"$f":"Import!#REF!","v":{"$error":"#REF!"}},{"$f":"Import!#REF!","v":{"$error":"#REF!"}},{"$f":"Import!#REF!","v":{"$error":"#REF!"}},{"$f":"Import!#REF!","v":{"$error":"#REF!"}},{"$f":"Import!#REF!","v":{"$error":"#REF!"}},{"$f":"Import!#REF!","v":{"$error":"#REF!"}},{"$f":"Import!#REF!","v":{"$error":"#REF!"}},{"$f":"Import!#REF!","v":{"$error":"#REF!"}}]
[null,{"$f":"Import!#REF!","v":{"$error":"#REF!"}},{"$f":"Import!#REF!","v":{"$error":"#REF!"}},{"$f":"Import!#REF!","v":{"$error":"#REF!"}},{"$f":"Import!#REF!","v":{"$error":"#REF!"}},{"$f":"Import!#REF!","v":{"$error":"#REF!"}},{"$f":"Import!#REF!","v":{"$error":"#REF!"}},{"$f":"Import!#REF!","v":{"$error":"#REF!"}},{"$f":"Import!#REF!","v":{"$error":"#REF!"}}]
[null,{"$f":"Import!#REF!","v":{"$error":"#REF!"}},{"$f":"Import!#REF!","v":{"$error":"#REF!"}},{"$f":"Import!#REF!","v":{"$error":"#REF!"}},{"$f":"Import!#REF!","v":{"$error":"#REF!"}},{"$f":"Import!#REF!","v":{"$error":"#REF!"}},{"$f":"Import!#REF!","v":{"$error":"#REF!"}},{"$f":"Import!#REF!","v":{"$error":"#REF!"}},{"$f":"Import!#REF!","v":{"$error":"#REF!"}}]
[null,{"$f":"Import!#REF!","v":{"$error":"#REF!"}},{"$f":"Import!#REF!","v":{"$error":"#REF!"}},{"$f":"Import!#REF!","v":{"$error":"#REF!"}},{"$f":"Import!#REF!","v":{"$error":"#REF!"}},{"$f":"Import!#REF!","v":{"$error":"#REF!"}},{"$f":"Import!#REF!","v":{"$error":"#REF!"}},{"$f":"Import!#REF!","v":{"$error":"#REF!"}},{"$f":"Import!#REF!","v":{"$error":"#REF!"}}]
[null,{"$f":"Import!#REF!","v":{"$error":"#REF!"}},{"$f":"Import!#REF!","v":{"$error":"#REF!"}},{"$f":"Import!#REF!","v":{"$error":"#REF!"}},{"$f":"Import!#REF!","v":{"$error":"#REF!"}},{"$f":"Import!#REF!","v":{"$error":"#REF!"}},{"$f":"Import!#REF!","v":{"$error":"#REF!"}},{"$f":"Import!#REF!","v":{"$error":"#REF!"}},{"$f":"Import!#REF!","v":{"$error":"#REF!"}}]
[null,{"$f":"Import!#REF!","v":{"$error":"#REF!"}},{"$f":"Import!#REF!","v":{"$error":"#REF!"}},{"$f":"Import!#REF!","v":{"$error":"#REF!"}},{"$f":"Import!#REF!","v":{"$error":"#REF!"}},{"$f":"Import!#REF!","v":{"$error":"#REF!"}},{"$f":"Import!#REF!","v":{"$error":"#REF!"}},{"$f":"Import!#REF!","v":{"$error":"#REF!"}},{"$f":"Import!#REF!","v":{"$error":"#REF!"}}]
[null,{"$f":"Import!#REF!","v":{"$error":"#REF!"}},{"$f":"Import!#REF!","v":{"$error":"#REF!"}},{"$f":"Import!#REF!","v":{"$error":"#REF!"}},{"$f":"Import!#REF!","v":{"$error":"#REF!"}},{"$f":"Import!#REF!","v":{"$error":"#REF!"}},{"$f":"Import!#REF!","v":{"$error":"#REF!"}},{"$f":"Import!#REF!","v":{"$error":"#REF!"}},{"$f":"Import!#REF!","v":{"$error":"#REF!"}}]
[null,{"$f":"Import!#REF!","v":{"$error":"#REF!"}},{"$f":"Import!#REF!","v":{"$error":"#REF!"}},{"$f":"Import!#REF!","v":{"$error":"#REF!"}},{"$f":"Import!#REF!","v":{"$error":"#REF!"}},{"$f":"Import!#REF!","v":{"$error":"#REF!"}},{"$f":"Import!#REF!","v":{"$error":"#REF!"}},{"$f":"Import!#REF!","v":{"$error":"#REF!"}},{"$f":"Import!#REF!","v":{"$error":"#REF!"}}]
[null,{"$f":"Import!#REF!","v":{"$error":"#REF!"}},{"$f":"Import!#REF!","v":{"$error":"#REF!"}},{"$f":"Import!#REF!","v":{"$error":"#REF!"}},{"$f":"Import!#REF!","v":{"$error":"#REF!"}},{"$f":"Import!#REF!","v":{"$error":"#REF!"}},{"$f":"Import!#REF!","v":{"$error":"#REF!"}},{"$f":"Import!#REF!","v":{"$error":"#REF!"}},{"$f":"Import!#REF!","v":{"$error":"#REF!"}}]
[null,{"$f":"Import!#REF!","v":{"$error":"#REF!"}},{"$f":"Import!#REF!","v":{"$error":"#REF!"}},{"$f":"Import!#REF!","v":{"$error":"#REF!"}},{"$f":"Import!#REF!","v":{"$error":"#REF!"}},{"$f":"Import!#REF!","v":{"$error":"#REF!"}},{"$f":"Import!#REF!","v":{"$error":"#REF!"}},{"$f":"Import!#REF!","v":{"$error":"#REF!"}},{"$f":"Import!#REF!","v":{"$error":"#REF!"}}]
[null,{"$f":"Import!#REF!","v":{"$error":"#REF!"}},{"$f":"Import!#REF!","v":{"$error":"#REF!"}},{"$f":"Import!#REF!","v":{"$error":"#REF!"}},{"$f":"Import!#REF!","v":{"$error":"#REF!"}},{"$f":"Import!#REF!","v":{"$error":"#REF!"}},{"$f":"Import!#REF!","v":{"$error":"#REF!"}},{"$f":"Import!#REF!","v":{"$error":"#REF!"}},{"$f":"Import!#REF!","v":{"$error":"#REF!"}}]
[null,{"$f":"Import!#REF!","v":{"$error":"#REF!"}},{"$f":"Import!#REF!","v":{"$error":"#REF!"}},{"$f":"Import!#REF!","v":{"$error":"#REF!"}},{"$f":"Import!#REF!","v":{"$error":"#REF!"}},{"$f":"Import!#REF!","v":{"$error":"#REF!"}},{"$f":"Import!#REF!","v":{"$error":"#REF!"}},{"$f":"Import!#REF!","v":{"$error":"#REF!"}},{"$f":"Import!#REF!","v":{"$error":"#REF!"}}]
[null,{"$f":"Import!#REF!","v":{"$error":"#REF!"}},{"$f":"Import!#REF!","v":{"$error":"#REF!"}},{"$f":"Import!#REF!","v":{"$error":"#REF!"}},{"$f":"Import!#REF!","v":{"$error":"#REF!"}},{"$f":"Import!#REF!","v":{"$error":"#REF!"}},{"$f":"Import!#REF!","v":{"$error":"#REF!"}},{"$f":"Import!#REF!","v":{"$error":"#REF!"}},{"$f":"Import!#REF!","v":{"$error":"#REF!"}}]
[null,{"$f":"Import!#REF!","v":{"$error":"#REF!"}},{"$f":"Import!#REF!","v":{"$error":"#REF!"}},{"$f":"Import!#REF!","v":{"$error":"#REF!"}},{"$f":"Import!#REF!","v":{"$error":"#REF!"}},{"$f":"Import!#REF!","v":{"$error":"#REF!"}},{"$f":"Import!#REF!","v":{"$error":"#REF!"}},{"$f":"Import!#REF!","v":{"$error":"#REF!"}},{"$f":"Import!#REF!","v":{"$error":"#REF!"}}]
[]
[null,"Total Derivatives",null,null,null,{"$f":"SUM(F241:F260)","v":{"$error":"#REF!"}},null,0,0]
[]
[null,"Form 1SFS Line 13(a) Derivatives",null,null,null,{"$f":"IF(('Form 1SFS'!$E$100+'Form 1SFS'!$I$100)= 0,'Form 1SFS'!M$82,'Form 1SFS'!E$82+'Form 1SFS'!I$82)","v":0}]
[]
[null,"Check Section H",null,null,null,{"$f":"ROUND((F262-F264),0)","v":{"$error":"#REF!"}},{"$f":"IF(F266=0,\"TRUE\",\"FALSE\")","v":{"$error":"#REF!"}}]
[]
[null,"(I) OTHER ASSETS"]
[]
[null,null,"Enter # of Asset Types"]
[]
[null,null,null,null,2021,2021]
[]
[null,"Asset Type","Jurisdiction","BSCR Rating","Face Value","Fair Value"]
[1,{"$f":"Import!#REF!","v":{"$error":"#REF!"}},{"$f":"Import!#REF!","v":{"$error":"#REF!"}},{"$f":"Import!#REF!","v":{"$error":"#REF!"}},{"$f":"Import!#REF!","v":{"$error":"#REF!"}},{"$f":"Import!#REF!","v":{"$error":"#REF!"}}]
[2,{"$f":"Import!#REF!","v":{"$error":"#REF!"}},{"$f":"Import!#REF!","v":{"$error":"#REF!"}},{"$f":"Import!#REF!","v":{"$error":"#REF!"}},{"$f":"Import!#REF!","v":{"$error":"#REF!"}},{"$f":"Import!#REF!","v":{"$error":"#REF!"}}]
[3,{"$f":"Import!#REF!","v":{"$error":"#REF!"}},{"$f":"Import!#REF!","v":{"$error":"#REF!"}},{"$f":"Import!#REF!","v":{"$error":"#REF!"}},{"$f":"Import!#REF!","v":{"$error":"#REF!"}},{"$f":"Import!#REF!","v":{"$error":"#REF!"}}]
[4,{"$f":"Import!#REF!","v":{"$error":"#REF!"}},{"$f":"Import!#REF!","v":{"$error":"#REF!"}},{"$f":"Import!#REF!","v":{"$error":"#REF!"}},{"$f":"Import!#REF!","v":{"$error":"#REF!"}},{"$f":"Import!#REF!","v":{"$error":"#REF!"}}]
[5,{"$f":"Import!#REF!","v":{"$error":"#REF!"}},{"$f":"Import!#REF!","v":{"$error":"#REF!"}},{"$f":"Import!#REF!","v":{"$error":"#REF!"}},{"$f":"Import!#REF!","v":{"$error":"#REF!"}},{"$f":"Import!#REF!","v":{"$error":"#REF!"}}]
[6,{"$f":"Import!#REF!","v":{"$error":"#REF!"}},{"$f":"Import!#REF!","v":{"$error":"#REF!"}},{"$f":"Import!#REF!","v":{"$error":"#REF!"}},{"$f":"Import!#REF!","v":{"$error":"#REF!"}},{"$f":"Import!#REF!","v":{"$error":"#REF!"}}]
[7,{"$f":"Import!#REF!","v":{"$error":"#REF!"}},{"$f":"Import!#REF!","v":{"$error":"#REF!"}},{"$f":"Import!#REF!","v":{"$error":"#REF!"}},{"$f":"Import!#REF!","v":{"$error":"#REF!"}},{"$f":"Import!#REF!","v":{"$error":"#REF!"}}]
[8,{"$f":"Import!#REF!","v":{"$error":"#REF!"}},{"$f":"Import!#REF!","v":{"$error":"#REF!"}},{"$f":"Import!#REF!","v":{"$error":"#REF!"}},{"$f":"Import!#REF!","v":{"$error":"#REF!"}},{"$f":"Import!#REF!","v":{"$error":"#REF!"}}]
[9,{"$f":"Import!#REF!","v":{"$error":"#REF!"}},{"$f":"Import!#REF!","v":{"$error":"#REF!"}},{"$f":"Import!#REF!","v":{"$error":"#REF!"}},{"$f":"Import!#REF!","v":{"$error":"#REF!"}},{"$f":"Import!#REF!","v":{"$error":"#REF!"}}]
[10,{"$f":"Import!#REF!","v":{"$error":"#REF!"}},{"$f":"Import!#REF!","v":{"$error":"#REF!"}},{"$f":"Import!#REF!","v":{"$error":"#REF!"}},{"$f":"Import!#REF!","v":{"$error":"#REF!"}},{"$f":"Import!#REF!","v":{"$error":"#REF!"}}]
[11,{"$f":"Import!#REF!","v":{"$error":"#REF!"}},{"$f":"Import!#REF!","v":{"$error":"#REF!"}},{"$f":"Import!#REF!","v":{"$error":"#REF!"}},{"$f":"Import!#REF!","v":{"$error":"#REF!"}},{"$f":"Import!#REF!","v":{"$error":"#REF!"}}]
[12,{"$f":"Import!#REF!","v":{"$error":"#REF!"}},{"$f":"Import!#REF!","v":{"$error":"#REF!"}},{"$f":"Import!#REF!","v":{"$error":"#REF!"}},{"$f":"Import!#REF!","v":{"$error":"#REF!"}},{"$f":"Import!#REF!","v":{"$error":"#REF!"}}]
[13,{"$f":"Import!#REF!","v":{"$error":"#REF!"}},{"$f":"Import!#REF!","v":{"$error":"#REF!"}},{"$f":"Import!#REF!","v":{"$error":"#REF!"}},{"$f":"Import!#REF!","v":{"$error":"#REF!"}},{"$f":"Import!#REF!","v":{"$error":"#REF!"}}]
[14,{"$f":"Import!#REF!","v":{"$error":"#REF!"}},{"$f":"Import!#REF!","v":{"$error":"#REF!"}},{"$f":"Import!#REF!","v":{"$error":"#REF!"}},{"$f":"Import!#REF!","v":{"$error":"#REF!"}},{"$f":"Import!#REF!","v":{"$error":"#REF!"}}]
[15,{"$f":"Import!#REF!","v":{"$error":"#REF!"}},{"$f":"Import!#REF!","v":{"$error":"#REF!"}},{"$f":"Import!#REF!","v":{"$error":"#REF!"}},{"$f":"Import!#REF!","v":{"$error":"#REF!"}},{"$f":"Import!#REF!","v":{"$error":"#REF!"}}]
[16,{"$f":"Import!#REF!","v":{"$error":"#REF!"}},{"$f":"Import!#REF!","v":{"$error":"#REF!"}},{"$f":"Import!#REF!","v":{"$error":"#REF!"}},{"$f":"Import!#REF!","v":{"$error":"#REF!"}},{"$f":"Import!#REF!","v":{"$error":"#REF!"}}]
[17,{"$f":"Import!#REF!","v":{"$error":"#REF!"}},{"$f":"Import!#REF!","v":{"$error":"#REF!"}},{"$f":"Import!#REF!","v":{"$error":"#REF!"}},{"$f":"Import!#REF!","v":{"$error":"#REF!"}},{"$f":"Import!#REF!","v":{"$error":"#REF!"}}]
[18,{"$f":"Import!#REF!","v":{"$error":"#REF!"}},{"$f":"Import!#REF!","v":{"$error":"#REF!"}},{"$f":"Import!#REF!","v":{"$error":"#REF!"}},{"$f":"Import!#REF!","v":{"$error":"#REF!"}},{"$f":"Import!#REF!","v":{"$error":"#REF!"}}]
[19,{"$f":"Import!#REF!","v":{"$error":"#REF!"}},{"$f":"Import!#REF!","v":{"$error":"#REF!"}},{"$f":"Import!#REF!","v":{"$error":"#REF!"}},{"$f":"Import!#REF!","v":{"$error":"#REF!"}},{"$f":"Import!#REF!","v":{"$error":"#REF!"}}]
[20,{"$f":"Import!#REF!","v":{"$error":"#REF!"}},{"$f":"Import!#REF!","v":{"$error":"#REF!"}},{"$f":"Import!#REF!","v":{"$error":"#REF!"}},{"$f":"Import!#REF!","v":{"$error":"#REF!"}},{"$f":"Import!#REF!","v":{"$error":"#REF!"}}]
[]
[null,"Total Other Assets",null,null,null,{"$f":"SUM(F275:F294)","v":{"$error":"#REF!"}}]
[]
[null,"Form 1SFS Lines X(x) Other Assets",null,null,null,{"$f":"IF(('Form 1SFS'!$E$100+'Form 1SFS'!$I$100)= 0,'Form 1SFS'!$M$48+'Form 1SFS'!$M$55+'Form 1SFS'!$M$62+'Form 1SFS'!$M$64+'Form 1SFS'!$M$70+'Form 1SFS'!$M$77+'Form 1SFS'!$M$79+'Form 1SFS'!$M$92-'Form 1SFS'!$M$82+'Form 1SFS'!$M$98,0+'Form 1SFS'!$E$48+'Form 1SFS'!$E$55+'Form 1SFS'!$E$62+'Form 1SFS'!$E$64+'Form 1SFS'!$E$70+'Form 1SFS'!$E$77+'Form 1SFS'!$E$79+'Form 1SFS'!$E$92-'Form 1SFS'!$E$82+'Form 1SFS'!$E$98+'Form 1SFS'!$I$48+'Form 1SFS'!$I$55+'Form 1SFS'!$I$62+'Form 1SFS'!$I$64+'Form 1SFS'!$I$70+'Form 1SFS'!$I$77+'Form 1SFS'!$I$79+'Form 1SFS'!$I$92-'Form 1SFS'!$I$82+'Form 1SFS'!$I$98)","v":0}]
[]
[null,"Check Section I",null,null,null,{"$f":"ROUND((F296-F298),0)","v":{"$error":"#REF!"}},{"$f":"IF(F300=0,\"TRUE\",\"FALSE\")","v":{"$error":"#REF!"}}]
[]
[]
[null,"TOTAL ASSETS",null,null,null,{"$f":"F34+F67+F96+F129+F163+F196+F230+F262+F296","v":{"$error":"#REF!"}}]
[]
[null,"TOTAL ASSETS (Form 1SFS Line 15)",null,null,null,{"$f":"F36+F98+F131+F165+F198+F232+F264+F298","v":0}]
[]
[null,"Check Form 1SFS",null,null,null,{"$f":"IF(F309=0,\"TRUE\",\"FALSE\")","v":{"$error":"#REF!"}}]
[null,null,null,null,null,{"$f":"IF(ROUND((F303-(0)),0)=0,\"TRUE\",\"FALSE\")","v":{"$error":"#REF!"}}]
[null,"Difference",null,null,null,{"$f":"ROUND(F305-F303,0)","v":{"$error":"#REF!"}}]
[]
[]
[null,"EFFECTIVE DURATION",null,null,{"$f":"Import!#REF!","v":{"$error":"#REF!"}}]
[]
[null,"EFFECTIVE CONVEXITY",null,null,{"$f":"Import!#REF!","v":{"$error":"#REF!"}}]

{"sheet":"Schedule VI (EBS).","index":56,"n_rows":314,"n_cols":9,"rows_kept":314,"cut":false,"hidden":true,"merged":[[235,1,235,2],[267,1,267,2],[271,1,271,2],[134,1,134,2],[138,1,138,2],[168,1,168,2],[172,1,172,2],[201,1,201,2],[205,1,205,2],[105,1,105,2],[6,1,6,2],[39,1,39,2],[43,1,43,2],[68,1,68,2],[101,1,101,2]]}
[null,"SCHEDULE OF ASSETS (EBS)",null,null,null,null,null,null,{"$f":"HYPERLINK(\"#'Index'!A1\",\"Return to Index\")","v":"Return to Index"}]
[null,{"$f":"'Form 1SFS'!B3","v":"Enter Company Name"}]
[null,"As at",{"$f":" TEXT('Company Information'!C3,\"d mmmm yyyy\")","v":"31 December 2023"}]
[null,"expressed in ['000s]",{"$f":"'Form 1SFS'!C5","v":"United States Dollars"}]
[]
[]
[null,"(A) CASH AND CASH EQUIVALENTS"]
[]
[null,null,"Enter # of Asset Types",4]
[]
[null,null,null,null,2021,2021]
[null,"Asset Type","Jurisdiction","BSCR Rating","Face Value","Fair Value"]
[1,{"$f":"Import!#REF!","v":{"$error":"#REF!"}},{"$f":"Import!#REF!","v":{"$error":"#REF!"}},{"$f":"Import!#REF!","v":{"$error":"#REF!"}},{"$f":"Import!#REF!","v":{"$error":"#REF!"}},{"$f":"Import!#REF!","v":{"$error":"#REF!"}}]
[2,{"$f":"Import!#REF!","v":{"$error":"#REF!"}},{"$f":"Import!#REF!","v":{"$error":"#REF!"}},{"$f":"Import!#REF!","v":{"$error":"#REF!"}},{"$f":"Import!#REF!","v":{"$error":"#REF!"}},{"$f":"Import!#REF!","v":{"$error":"#REF!"}}]
[3,{"$f":"Import!#REF!","v":{"$error":"#REF!"}},{"$f":"Import!#REF!","v":{"$error":"#REF!"}},{"$f":"Import!#REF!","v":{"$error":"#REF!"}},{"$f":"Import!#REF!","v":{"$error":"#REF!"}},{"$f":"Import!#REF!","v":{"$error":"#REF!"}}]
[4,{"$f":"Import!#REF!","v":{"$error":"#REF!"}},{"$f":"Import!#REF!","v":{"$error":"#REF!"}},{"$f":"Import!#REF!","v":{"$error":"#REF!"}},{"$f":"Import!#REF!","v":{"$error":"#REF!"}},{"$f":"Import!#REF!","v":{"$error":"#REF!"}}]
[5,{"$f":"Import!#REF!","v":{"$error":"#REF!"}},{"$f":"Import!#REF!","v":{"$error":"#REF!"}},{"$f":"Import!#REF!","v":{"$error":"#REF!"}},{"$f":"Import!#REF!","v":{"$error":"#REF!"}},{"$f":"Import!#REF!","v":{"$error":"#REF!"}}]
[6,{"$f":"Import!#REF!","v":{"$error":"#REF!"}},{"$f":"Import!#REF!","v":{"$error":"#REF!"}},{"$f":"Import!#REF!","v":{"$error":"#REF!"}},{"$f":"Import!#REF!","v":{"$error":"#REF!"}},{"$f":"Import!#REF!","v":{"$error":"#REF!"}}]
[7,{"$f":"Import!#REF!","v":{"$error":"#REF!"}},{"$f":"Import!#REF!","v":{"$error":"#REF!"}},{"$f":"Import!#REF!","v":{"$error":"#REF!"}},{"$f":"Import!#REF!","v":{"$error":"#REF!"}},{"$f":"Import!#REF!","v":{"$error":"#REF!"}}]
[8,{"$f":"Import!#REF!","v":{"$error":"#REF!"}},{"$f":"Import!#REF!","v":{"$error":"#REF!"}},{"$f":"Import!#REF!","v":{"$error":"#REF!"}},{"$f":"Import!#REF!","v":{"$error":"#REF!"}},{"$f":"Import!#REF!","v":{"$error":"#REF!"}}]
[9,{"$f":"Import!#REF!","v":{"$error":"#REF!"}},{"$f":"Import!#REF!","v":{"$error":"#REF!"}},{"$f":"Import!#REF!","v":{"$error":"#REF!"}},{"$f":"Import!#REF!","v":{"$error":"#REF!"}},{"$f":"Import!#REF!","v":{"$error":"#REF!"}}]
[10,{"$f":"Import!#REF!","v":{"$error":"#REF!"}},{"$f":"Import!#REF!","v":{"$error":"#REF!"}},{"$f":"Import!#REF!","v":{"$error":"#REF!"}},{"$f":"Import!#REF!","v":{"$error":"#REF!"}},{"$f":"Import!#REF!","v":{"$error":"#REF!"}}]
[11,{"$f":"Import!#REF!","v":{"$error":"#REF!"}},{"$f":"Import!#REF!","v":{"$error":"#REF!"}},{"$f":"Import!#REF!","v":{"$error":"#REF!"}},{"$f":"Import!#REF!","v":{"$error":"#REF!"}},{"$f":"Import!#REF!","v":{"$error":"#REF!"}}]
[12,{"$f":"Import!#REF!","v":{"$error":"#REF!"}},{"$f":"Import!#REF!","v":{"$error":"#REF!"}},{"$f":"Import!#REF!","v":{"$error":"#REF!"}},{"$f":"Import!#REF!","v":{"$error":"#REF!"}},{"$f":"Import!#REF!","v":{"$error":"#REF!"}}]
[13,{"$f":"Import!#REF!","v":{"$error":"#REF!"}},{"$f":"Import!#REF!","v":{"$error":"#REF!"}},{"$f":"Import!#REF!","v":{"$error":"#REF!"}},{"$f":"Import!#REF!","v":{"$error":"#REF!"}},{"$f":"Import!#REF!","v":{"$error":"#REF!"}}]
[14,{"$f":"Import!#REF!","v":{"$error":"#REF!"}},{"$f":"Import!#REF!","v":{"$error":"#REF!"}},{"$f":"Import!#REF!","v":{"$error":"#REF!"}},{"$f":"Import!#REF!","v":{"$error":"#REF!"}},{"$f":"Import!#REF!","v":{"$error":"#REF!"}}]
[15,{"$f":"Import!#REF!","v":{"$error":"#REF!"}},{"$f":"Import!#REF!","v":{"$error":"#REF!"}},{"$f":"Import!#REF!","v":{"$error":"#REF!"}},{"$f":"Import!#REF!","v":{"$error":"#REF!"}},{"$f":"Import!#REF!","v":{"$error":"#REF!"}}]
[16,{"$f":"Import!#REF!","v":{"$error":"#REF!"}},{"$f":"Import!#REF!","v":{"$error":"#REF!"}},{"$f":"Import!#REF!","v":{"$error":"#REF!"}},{"$f":"Import!#REF!","v":{"$error":"#REF!"}},{"$f":"Import!#REF!","v":{"$error":"#REF!"}}]
[17,{"$f":"Import!#REF!","v":{"$error":"#REF!"}},{"$f":"Import!#REF!","v":{"$error":"#REF!"}},{"$f":"Import!#REF!","v":{"$error":"#REF!"}},{"$f":"Import!#REF!","v":{"$error":"#REF!"}},{"$f":"Import!#REF!","v":{"$error":"#REF!"}}]
[18,{"$f":"Import!#REF!","v":{"$error":"#REF!"}},{"$f":"Import!#REF!","v":{"$error":"#REF!"}},{"$f":"Import!#REF!","v":{"$error":"#REF!"}},{"$f":"Import!#REF!","v":{"$error":"#REF!"}},{"$f":"Import!#REF!","v":{"$error":"#REF!"}}]
[19,{"$f":"Import!#REF!","v":{"$error":"#REF!"}},{"$f":"Import!#REF!","v":{"$error":"#REF!"}},{"$f":"Import!#REF!","v":{"$error":"#REF!"}},{"$f":"Import!#REF!","v":{"$error":"#REF!"}},{"$f":"Import!#REF!","v":{"$error":"#REF!"}}]
[20,{"$f":"Import!#REF!","v":{"$error":"#REF!"}},{"$f":"Import!#REF!","v":{"$error":"#REF!"}},{"$f":"Import!#REF!","v":{"$error":"#REF!"}},{"$f":"Import!#REF!","v":{"$error":"#REF!"}},{"$f":"Import!#REF!","v":{"$error":"#REF!"}}]
[]
[null,"Total Cash & Cash Equivalents",null,null,{"$f":"SUM(E13:E32)","v":{"$error":"#REF!"}},{"$f":"SUM(F13:F32)","v":{"$error":"#REF!"}}]
[]
[null,"Form 1EBS Line 1 Cash and Cash Equivalents",null,null,null,{"$f":"'Form 1EBS'!F$10","v":0}]
[]
[null,"Check Section A",null,null,null,{"$f":"ROUND((F34-F36),0)","v":{"$error":"#REF!"}},{"$f":"IF(F38=0,\"TRUE\",\"FALSE\")","v":{"$error":"#REF!"}}]
[]
[null,"(B) BONDS AND DEBENTURES"]
[]
[null,null,"Enter # of Asset Types",4]
[]
[null,null,null,null,2021,2021]
[null,"Asset Type","Jurisdiction","BSCR Rating","Face Value","Fair Value","Average YTM","Effective Duration","Effective Convexity"]
[1,{"$f":"Import!#REF!","v":{"$error":"#REF!"}},{"$f":"Import!#REF!","v":{"$error":"#REF!"}},{"$f":"Import!#REF!","v":{"$error":"#REF!"}},{"$f":"Import!#REF!","v":{"$error":"#REF!"}},{"$f":"Import!#REF!","v":{"$error":"#REF!"}},{"$f":"Import!#REF!","v":{"$error":"#REF!"}},{"$f":"Import!#REF!","v":{"$error":"#REF!"}},{"$f":"Import!#REF!","v":{"$error":"#REF!"}}]
[2,{"$f":"Import!#REF!","v":{"$error":"#REF!"}},{"$f":"Import!#REF!","v":{"$error":"#REF!"}},{"$f":"Import!#REF!","v":{"$error":"#REF!"}},{"$f":"Import!#REF!","v":{"$error":"#REF!"}},{"$f":"Import!#REF!","v":{"$error":"#REF!"}},{"$f":"Import!#REF!","v":{"$error":"#REF!"}},{"$f":"Import!#REF!","v":{"$error":"#REF!"}},{"$f":"Import!#REF!","v":{"$error":"#REF!"}}]
[3,{"$f":"Import!#REF!","v":{"$error":"#REF!"}},{"$f":"Import!#REF!","v":{"$error":"#REF!"}},{"$f":"Import!#REF!","v":{"$error":"#REF!"}},{"$f":"Import!#REF!","v":{"$error":"#REF!"}},{"$f":"Import!#REF!","v":{"$error":"#REF!"}},{"$f":"Import!#REF!","v":{"$error":"#REF!"}},{"$f":"Import!#REF!","v":{"$error":"#REF!"}},{"$f":"Import!#REF!","v":{"$error":"#REF!"}}]
[4,{"$f":"Import!#REF!","v":{"$error":"#REF!"}},{"$f":"Import!#REF!","v":{"$error":"#REF!"}},{"$f":"Import!#REF!","v":{"$error":"#REF!"}},{"$f":"Import!#REF!","v":{"$error":"#REF!"}},{"$f":"Import!#REF!","v":{"$error":"#REF!"}},{"$f":"Import!#REF!","v":{"$error":"#REF!"}},{"$f":"Import!#REF!","v":{"$error":"#REF!"}},{"$f":"Import!#REF!","v":{"$error":"#REF!"}}]
[5,{"$f":"Import!#REF!","v":{"$error":"#REF!"}},{"$f":"Import!#REF!","v":{"$error":"#REF!"}},{"$f":"Import!#REF!","v":{"$error":"#REF!"}},{"$f":"Import!#REF!","v":{"$error":"#REF!"}},{"$f":"Import!#REF!","v":{"$error":"#REF!"}},{"$f":"Import!#REF!","v":{"$error":"#REF!"}},{"$f":"Import!#REF!","v":{"$error":"#REF!"}},{"$f":"Import!#REF!","v":{"$error":"#REF!"}}]
[6,{"$f":"Import!#REF!","v":{"$error":"#REF!"}},{"$f":"Import!#REF!","v":{"$error":"#REF!"}},{"$f":"Import!#REF!","v":{"$error":"#REF!"}},{"$f":"Import!#REF!","v":{"$error":"#REF!"}},{"$f":"Import!#REF!","v":{"$error":"#REF!"}},{"$f":"Import!#REF!","v":{"$error":"#REF!"}},{"$f":"Import!#REF!","v":{"$error":"#REF!"}},{"$f":"Import!#REF!","v":{"$error":"#REF!"}}]
[7,{"$f":"Import!#REF!","v":{"$error":"#REF!"}},{"$f":"Import!#REF!","v":{"$error":"#REF!"}},{"$f":"Import!#REF!","v":{"$error":"#REF!"}},{"$f":"Import!#REF!","v":{"$error":"#REF!"}},{"$f":"Import!#REF!","v":{"$error":"#REF!"}},{"$f":"Import!#REF!","v":{"$error":"#REF!"}},{"$f":"Import!#REF!","v":{"$error":"#REF!"}},{"$f":"Import!#REF!","v":{"$error":"#REF!"}}]
[8,{"$f":"Import!#REF!","v":{"$error":"#REF!"}},{"$f":"Import!#REF!","v":{"$error":"#REF!"}},{"$f":"Import!#REF!","v":{"$error":"#REF!"}},{"$f":"Import!#REF!","v":{"$error":"#REF!"}},{"$f":"Import!#REF!","v":{"$error":"#REF!"}},{"$f":"Import!#REF!","v":{"$error":"#REF!"}},{"$f":"Import!#REF!","v":{"$error":"#REF!"}},{"$f":"Import!#REF!","v":{"$error":"#REF!"}}]
[9,{"$f":"Import!#REF!","v":{"$error":"#REF!"}},{"$f":"Import!#REF!","v":{"$error":"#REF!"}},{"$f":"Import!#REF!","v":{"$error":"#REF!"}},{"$f":"Import!#REF!","v":{"$error":"#REF!"}},{"$f":"Import!#REF!","v":{"$error":"#REF!"}},{"$f":"Import!#REF!","v":{"$error":"#REF!"}},{"$f":"Import!#REF!","v":{"$error":"#REF!"}},{"$f":"Import!#REF!","v":{"$error":"#REF!"}}]
[10,{"$f":"Import!#REF!","v":{"$error":"#REF!"}},{"$f":"Import!#REF!","v":{"$error":"#REF!"}},{"$f":"Import!#REF!","v":{"$error":"#REF!"}},{"$f":"Import!#REF!","v":{"$error":"#REF!"}},{"$f":"Import!#REF!","v":{"$error":"#REF!"}},{"$f":"Import!#REF!","v":{"$error":"#REF!"}},{"$f":"Import!#REF!","v":{"$error":"#REF!"}},{"$f":"Import!#REF!","v":{"$error":"#REF!"}}]
[11,{"$f":"Import!#REF!","v":{"$error":"#REF!"}},{"$f":"Import!#REF!","v":{"$error":"#REF!"}},{"$f":"Import!#REF!","v":{"$error":"#REF!"}},{"$f":"Import!#REF!","v":{"$error":"#REF!"}},{"$f":"Import!#REF!","v":{"$error":"#REF!"}},{"$f":"Import!#REF!","v":{"$error":"#REF!"}},{"$f":"Import!#REF!","v":{"$error":"#REF!"}},{"$f":"Import!#REF!","v":{"$error":"#REF!"}}]
[12,{"$f":"Import!#REF!","v":{"$error":"#REF!"}},{"$f":"Import!#REF!","v":{"$error":"#REF!"}},{"$f":"Import!#REF!","v":{"$error":"#REF!"}},{"$f":"Import!#REF!","v":{"$error":"#REF!"}},{"$f":"Import!#REF!","v":{"$error":"#REF!"}},{"$f":"Import!#REF!","v":{"$error":"#REF!"}},{"$f":"Import!#REF!","v":{"$error":"#REF!"}},{"$f":"Import!#REF!","v":{"$error":"#REF!"}}]
[13,{"$f":"Import!#REF!","v":{"$error":"#REF!"}},{"$f":"Import!#REF!","v":{"$error":"#REF!"}},{"$f":"Import!#REF!","v":{"$error":"#REF!"}},{"$f":"Import!#REF!","v":{"$error":"#REF!"}},{"$f":"Import!#REF!","v":{"$error":"#REF!"}},{"$f":"Import!#REF!","v":{"$error":"#REF!"}},{"$f":"Import!#REF!","v":{"$error":"#REF!"}},{"$f":"Import!#REF!","v":{"$error":"#REF!"}}]
[14,{"$f":"Import!#REF!","v":{"$error":"#REF!"}},{"$f":"Import!#REF!","v":{"$error":"#REF!"}},{"$f":"Import!#REF!","v":{"$error":"#REF!"}},{"$f":"Import!#REF!","v":{"$error":"#REF!"}},{"$f":"Import!#REF!","v":{"$error":"#REF!"}},{"$f":"Import!#REF!","v":{"$error":"#REF!"}},{"$f":"Import!#REF!","v":{"$error":"#REF!"}},{"$f":"Import!#REF!","v":{"$error":"#REF!"}}]
[15,{"$f":"Import!#REF!","v":{"$error":"#REF!"}},{"$f":"Import!#REF!","v":{"$error":"#REF!"}},{"$f":"Import!#REF!","v":{"$error":"#REF!"}},{"$f":"Import!#REF!","v":{"$error":"#REF!"}},{"$f":"Import!#REF!","v":{"$error":"#REF!"}},{"$f":"Import!#REF!","v":{"$error":"#REF!"}},{"$f":"Import!#REF!","v":{"$error":"#REF!"}},{"$f":"Import!#REF!","v":{"$error":"#REF!"}}]
[16,{"$f":"Import!#REF!","v":{"$error":"#REF!"}},{"$f":"Import!#REF!","v":{"$error":"#REF!"}},{"$f":"Import!#REF!","v":{"$error":"#REF!"}},{"$f":"Import!#REF!","v":{"$error":"#REF!"}},{"$f":"Import!#REF!","v":{"$error":"#REF!"}},{"$f":"Import!#REF!","v":{"$error":"#REF!"}},{"$f":"Import!#REF!","v":{"$error":"#REF!"}},{"$f":"Import!#REF!","v":{"$error":"#REF!"}}]
[17,{"$f":"Import!#REF!","v":{"$error":"#REF!"}},{"$f":"Import!#REF!","v":{"$error":"#REF!"}},{"$f":"Import!#REF!","v":{"$error":"#REF!"}},{"$f":"Import!#REF!","v":{"$error":"#REF!"}},{"$f":"Import!#REF!","v":{"$error":"#REF!"}},{"$f":"Import!#REF!","v":{"$error":"#REF!"}},{"$f":"Import!#REF!","v":{"$error":"#REF!"}},{"$f":"Import!#REF!","v":{"$error":"#REF!"}}]
[18,{"$f":"Import!#REF!","v":{"$error":"#REF!"}},{"$f":"Import!#REF!","v":{"$error":"#REF!"}},{"$f":"Import!#REF!","v":{"$error":"#REF!"}},{"$f":"Import!#REF!","v":{"$error":"#REF!"}},{"$f":"Import!#REF!","v":{"$error":"#REF!"}},{"$f":"Import!#REF!","v":{"$error":"#REF!"}},{"$f":"Import!#REF!","v":{"$error":"#REF!"}},{"$f":"Import!#REF!","v":{"$error":"#REF!"}}]
[19,{"$f":"Import!#REF!","v":{"$error":"#REF!"}},{"$f":"Import!#REF!","v":{"$error":"#REF!"}},{"$f":"Import!#REF!","v":{"$error":"#REF!"}},{"$f":"Import!#REF!","v":{"$error":"#REF!"}},{"$f":"Import!#REF!","v":{"$error":"#REF!"}},{"$f":"Import!#REF!","v":{"$error":"#REF!"}},{"$f":"Import!#REF!","v":{"$error":"#REF!"}},{"$f":"Import!#REF!","v":{"$error":"#REF!"}}]
[20,{"$f":"Import!#REF!","v":{"$error":"#REF!"}},{"$f":"Import!#REF!","v":{"$error":"#REF!"}},{"$f":"Import!#REF!","v":{"$error":"#REF!"}},{"$f":"Import!#REF!","v":{"$error":"#REF!"}},{"$f":"Import!#REF!","v":{"$error":"#REF!"}},{"$f":"Import!#REF!","v":{"$error":"#REF!"}},{"$f":"Import!#REF!","v":{"$error":"#REF!"}},{"$f":"Import!#REF!","v":{"$error":"#REF!"}}]
[]
[null,"Total Bonds & Debentures",null,null,{"$f":"SUM(E46:E65)","v":{"$error":"#REF!"}},{"$f":"SUM(F46:F65)","v":{"$error":"#REF!"}},0,0,0]
[]
[null,"(C) SECURITIES/ASSET-BASED SECURITIES"]
[]
[null,null,"Enter # of Asset Types",4]
[]
[null,null,null,null,2021,2021]
[null,"Asset Type","Jurisdiction","BSCR Rating","Face Value","Fair Value","Average YTM","Effective Duration","Effective Convexity"]
[1,{"$f":"Import!#REF!","v":{"$error":"#REF!"}},{"$f":"Import!#REF!","v":{"$error":"#REF!"}},{"$f":"Import!#REF!","v":{"$error":"#REF!"}},{"$f":"Import!#REF!","v":{"$error":"#REF!"}},{"$f":"Import!#REF!","v":{"$error":"#REF!"}},{"$f":"Import!#REF!","v":{"$error":"#REF!"}},{"$f":"Import!#REF!","v":{"$error":"#REF!"}},{"$f":"Import!#REF!","v":{"$error":"#REF!"}}]
[2,{"$f":"Import!#REF!","v":{"$error":"#REF!"}},{"$f":"Import!#REF!","v":{"$error":"#REF!"}},{"$f":"Import!#REF!","v":{"$error":"#REF!"}},{"$f":"Import!#REF!","v":{"$error":"#REF!"}},{"$f":"Import!#REF!","v":{"$error":"#REF!"}},{"$f":"Import!#REF!","v":{"$error":"#REF!"}},{"$f":"Import!#REF!","v":{"$error":"#REF!"}},{"$f":"Import!#REF!","v":{"$error":"#REF!"}}]
[3,{"$f":"Import!#REF!","v":{"$error":"#REF!"}},{"$f":"Import!#REF!","v":{"$error":"#REF!"}},{"$f":"Import!#REF!","v":{"$error":"#REF!"}},{"$f":"Import!#REF!","v":{"$error":"#REF!"}},{"$f":"Import!#REF!","v":{"$error":"#REF!"}},{"$f":"Import!#REF!","v":{"$error":"#REF!"}},{"$f":"Import!#REF!","v":{"$error":"#REF!"}},{"$f":"Import!#REF!","v":{"$error":"#REF!"}}]
[4,{"$f":"Import!#REF!","v":{"$error":"#REF!"}},{"$f":"Import!#REF!","v":{"$error":"#REF!"}},{"$f":"Import!#REF!","v":{"$error":"#REF!"}},{"$f":"Import!#REF!","v":{"$error":"#REF!"}},{"$f":"Import!#REF!","v":{"$error":"#REF!"}},{"$f":"Import!#REF!","v":{"$error":"#REF!"}},{"$f":"Import!#REF!","v":{"$error":"#REF!"}},{"$f":"Import!#REF!","v":{"$error":"#REF!"}}]
[5,{"$f":"Import!#REF!","v":{"$error":"#REF!"}},{"$f":"Import!#REF!","v":{"$error":"#REF!"}},{"$f":"Import!#REF!","v":{"$error":"#REF!"}},{"$f":"Import!#REF!","v":{"$error":"#REF!"}},{"$f":"Import!#REF!","v":{"$error":"#REF!"}},{"$f":"Import!#REF!","v":{"$error":"#REF!"}},{"$f":"Import!#REF!","v":{"$error":"#REF!"}},{"$f":"Import!#REF!","v":{"$error":"#REF!"}}]
[6,{"$f":"Import!#REF!","v":{"$error":"#REF!"}},{"$f":"Import!#REF!","v":{"$error":"#REF!"}},{"$f":"Import!#REF!","v":{"$error":"#REF!"}},{"$f":"Import!#REF!","v":{"$error":"#REF!"}},{"$f":"Import!#REF!","v":{"$error":"#REF!"}},{"$f":"Import!#REF!","v":{"$error":"#REF!"}},{"$f":"Import!#REF!","v":{"$error":"#REF!"}},{"$f":"Import!#REF!","v":{"$error":"#REF!"}}]
[7,{"$f":"Import!#REF!","v":{"$error":"#REF!"}},{"$f":"Import!#REF!","v":{"$error":"#REF!"}},{"$f":"Import!#REF!","v":{"$error":"#REF!"}},{"$f":"Import!#REF!","v":{"$error":"#REF!"}},{"$f":"Import!#REF!","v":{"$error":"#REF!"}},{"$f":"Import!#REF!","v":{"$error":"#REF!"}},{"$f":"Import!#REF!","v":{"$error":"#REF!"}},{"$f":"Import!#REF!","v":{"$error":"#REF!"}}]
[8,{"$f":"Import!#REF!","v":{"$error":"#REF!"}},{"$f":"Import!#REF!","v":{"$error":"#REF!"}},{"$f":"Import!#REF!","v":{"$error":"#REF!"}},{"$f":"Import!#REF!","v":{"$error":"#REF!"}},{"$f":"Import!#REF!","v":{"$error":"#REF!"}},{"$f":"Import!#REF!","v":{"$error":"#REF!"}},{"$f":"Import!#REF!","v":{"$error":"#REF!"}},{"$f":"Import!#REF!","v":{"$error":"#REF!"}}]
[9,{"$f":"Import!#REF!","v":{"$error":"#REF!"}},{"$f":"Import!#REF!","v":{"$error":"#REF!"}},{"$f":"Import!#REF!","v":{"$error":"#REF!"}},{"$f":"Import!#REF!","v":{"$error":"#REF!"}},{"$f":"Import!#REF!","v":{"$error":"#REF!"}},{"$f":"Import!#REF!","v":{"$error":"#REF!"}},{"$f":"Import!#REF!","v":{"$error":"#REF!"}},{"$f":"Import!#REF!","v":{"$error":"#REF!"}}]
[10,{"$f":"Import!#REF!","v":{"$error":"#REF!"}},{"$f":"Import!#REF!","v":{"$error":"#REF!"}},{"$f":"Import!#REF!","v":{"$error":"#REF!"}},{"$f":"Import!#REF!","v":{"$error":"#REF!"}},{"$f":"Import!#REF!","v":{"$error":"#REF!"}},{"$f":"Import!#REF!","v":{"$error":"#REF!"}},{"$f":"Import!#REF!","v":{"$error":"#REF!"}},{"$f":"Import!#REF!","v":{"$error":"#REF!"}}]
[11,{"$f":"Import!#REF!","v":{"$error":"#REF!"}},{"$f":"Import!#REF!","v":{"$error":"#REF!"}},{"$f":"Import!#REF!","v":{"$error":"#REF!"}},{"$f":"Import!#REF!","v":{"$error":"#REF!"}},{"$f":"Import!#REF!","v":{"$error":"#REF!"}},{"$f":"Import!#REF!","v":{"$error":"#REF!"}},{"$f":"Import!#REF!","v":{"$error":"#REF!"}},{"$f":"Import!#REF!","v":{"$error":"#REF!"}}]
[12,{"$f":"Import!#REF!","v":{"$error":"#REF!"}},{"$f":"Import!#REF!","v":{"$error":"#REF!"}},{"$f":"Import!#REF!","v":{"$error":"#REF!"}},{"$f":"Import!#REF!","v":{"$error":"#REF!"}},{"$f":"Import!#REF!","v":{"$error":"#REF!"}},{"$f":"Import!#REF!","v":{"$error":"#REF!"}},{"$f":"Import!#REF!","v":{"$error":"#REF!"}},{"$f":"Import!#REF!","v":{"$error":"#REF!"}}]
[13,{"$f":"Import!#REF!","v":{"$error":"#REF!"}},{"$f":"Import!#REF!","v":{"$error":"#REF!"}},{"$f":"Import!#REF!","v":{"$error":"#REF!"}},{"$f":"Import!#REF!","v":{"$error":"#REF!"}},{"$f":"Import!#REF!","v":{"$error":"#REF!"}},{"$f":"Import!#REF!","v":{"$error":"#REF!"}},{"$f":"Import!#REF!","v":{"$error":"#REF!"}},{"$f":"Import!#REF!","v":{"$error":"#REF!"}}]
[14,{"$f":"Import!#REF!","v":{"$error":"#REF!"}},{"$f":"Import!#REF!","v":{"$error":"#REF!"}},{"$f":"Import!#REF!","v":{"$error":"#REF!"}},{"$f":"Import!#REF!","v":{"$error":"#REF!"}},{"$f":"Import!#REF!","v":{"$error":"#REF!"}},{"$f":"Import!#REF!","v":{"$error":"#REF!"}},{"$f":"Import!#REF!","v":{"$error":"#REF!"}},{"$f":"Import!#REF!","v":{"$error":"#REF!"}}]
[15,{"$f":"Import!#REF!","v":{"$error":"#REF!"}},{"$f":"Import!#REF!","v":{"$error":"#REF!"}},{"$f":"Import!#REF!","v":{"$error":"#REF!"}},{"$f":"Import!#REF!","v":{"$error":"#REF!"}},{"$f":"Import!#REF!","v":{"$error":"#REF!"}},{"$f":"Import!#REF!","v":{"$error":"#REF!"}},{"$f":"Import!#REF!","v":{"$error":"#REF!"}},{"$f":"Import!#REF!","v":{"$error":"#REF!"}}]
[16,{"$f":"Import!#REF!","v":{"$error":"#REF!"}},{"$f":"Import!#REF!","v":{"$error":"#REF!"}},{"$f":"Import!#REF!","v":{"$error":"#REF!"}},{"$f":"Import!#REF!","v":{"$error":"#REF!"}},{"$f":"Import!#REF!","v":{"$error":"#REF!"}},{"$f":"Import!#REF!","v":{"$error":"#REF!"}},{"$f":"Import!#REF!","v":{"$error":"#REF!"}},{"$f":"Import!#REF!","v":{"$error":"#REF!"}}]
[17,{"$f":"Import!#REF!","v":{"$error":"#REF!"}},{"$f":"Import!#REF!","v":{"$error":"#REF!"}},{"$f":"Import!#REF!","v":{"$error":"#REF!"}},{"$f":"Import!#REF!","v":{"$error":"#REF!"}},{"$f":"Import!#REF!","v":{"$error":"#REF!"}},{"$f":"Import!#REF!","v":{"$error":"#REF!"}},{"$f":"Import!#REF!","v":{"$error":"#REF!"}},{"$f":"Import!#REF!","v":{"$error":"#REF!"}}]
[18,{"$f":"Import!#REF!","v":{"$error":"#REF!"}},{"$f":"Import!#REF!","v":{"$error":"#REF!"}},{"$f":"Import!#REF!","v":{"$error":"#REF!"}},{"$f":"Import!#REF!","v":{"$error":"#REF!"}},{"$f":"Import!#REF!","v":{"$error":"#REF!"}},{"$f":"Import!#REF!","v":{"$error":"#REF!"}},{"$f":"Import!#REF!","v":{"$error":"#REF!"}},{"$f":"Import!#REF!","v":{"$error":"#REF!"}}]
[19,{"$f":"Import!#REF!","v":{"$error":"#REF!"}},{"$f":"Import!#REF!","v":{"$error":"#REF!"}},{"$f":"Import!#REF!","v":{"$error":"#REF!"}},{"$f":"Import!#REF!","v":{"$error":"#REF!"}},{"$f":"Import!#REF!","v":{"$error":"#REF!"}},{"$f":"Import!#REF!","v":{"$error":"#REF!"}},{"$f":"Import!#REF!","v":{"$error":"#REF!"}},{"$f":"Import!#REF!","v":{"$error":"#REF!"}}]
[20,{"$f":"Import!#REF!","v":{"$error":"#REF!"}},{"$f":"Import!#REF!","v":{"$error":"#REF!"}},{"$f":"Import!#REF!","v":{"$error":"#REF!"}},{"$f":"Import!#REF!","v":{"$error":"#REF!"}},{"$f":"Import!#REF!","v":{"$error":"#REF!"}},{"$f":"Import!#REF!","v":{"$error":"#REF!"}},{"$f":"Import!#REF!","v":{"$error":"#REF!"}},{"$f":"Import!#REF!","v":{"$error":"#REF!"}}]
[]
[null,"Total Securities/Asset-Backed Securities",null,null,{"$f":"SUM(E75:E94)","v":{"$error":"#REF!"}},{"$f":"SUM(F75:F94)","v":{"$error":"#REF!"}},0,0,0]
[]
[null,"Form 1EBS Lines 2(b) & 3(b) Bonds & Debentures",null,null,null,{"$f":"'Form 1EBS'!F$13+'Form 1EBS'!F$23","v":0}]
[]
[null,"Check Sections B & C",null,null,null,{"$f":"ROUND(((F96+F67)-F98),0)","v":{"$error":"#REF!"}},{"$f":"IF(F100=0,\"TRUE\",\"FALSE\")","v":{"$error":"#REF!"}}]
[]
[null,"(D) LISTED EQUITIES AND PREFERENCE SHARES"]
[]
[null,null,"Enter # of Asset Types",4]
[]
[null,null,null,null,2021,2021]
[null,"Asset Type","Stock Exchange","BSCR Rating","Face Value","Fair Value"]
[1,{"$f":"Import!#REF!","v":{"$error":"#REF!"}},{"$f":"Import!#REF!","v":{"$error":"#REF!"}},{"$f":"Import!#REF!","v":{"$error":"#REF!"}},{"$f":"Import!#REF!","v":{"$error":"#REF!"}},{"$f":"Import!#REF!","v":{"$error":"#REF!"}}]
[2,{"$f":"Import!#REF!","v":{"$error":"#REF!"}},{"$f":"Import!#REF!","v":{"$error":"#REF!"}},{"$f":"Import!#REF!","v":{"$error":"#REF!"}},{"$f":"Import!#REF!","v":{"$error":"#REF!"}},{"$f":"Import!#REF!","v":{"$error":"#REF!"}}]
[3,{"$f":"Import!#REF!","v":{"$error":"#REF!"}},{"$f":"Import!#REF!","v":{"$error":"#REF!"}},{"$f":"Import!#REF!","v":{"$error":"#REF!"}},{"$f":"Import!#REF!","v":{"$error":"#REF!"}},{"$f":"Import!#REF!","v":{"$error":"#REF!"}}]
[4,{"$f":"Import!#REF!","v":{"$error":"#REF!"}},{"$f":"Import!#REF!","v":{"$error":"#REF!"}},{"$f":"Import!#REF!","v":{"$error":"#REF!"}},{"$f":"Import!#REF!","v":{"$error":"#REF!"}},{"$f":"Import!#REF!","v":{"$error":"#REF!"}}]
[5,{"$f":"Import!#REF!","v":{"$error":"#REF!"}},{"$f":"Import!#REF!","v":{"$error":"#REF!"}},{"$f":"Import!#REF!","v":{"$error":"#REF!"}},{"$f":"Import!#REF!","v":{"$error":"#REF!"}},{"$f":"Import!#REF!","v":{"$error":"#REF!"}}]
[6,{"$f":"Import!#REF!","v":{"$error":"#REF!"}},{"$f":"Import!#REF!","v":{"$error":"#REF!"}},{"$f":"Import!#REF!","v":{"$error":"#REF!"}},{"$f":"Import!#REF!","v":{"$error":"#REF!"}},{"$f":"Import!#REF!","v":{"$error":"#REF!"}}]
[7,{"$f":"Import!#REF!","v":{"$error":"#REF!"}},{"$f":"Import!#REF!","v":{"$error":"#REF!"}},{"$f":"Import!#REF!","v":{"$error":"#REF!"}},{"$f":"Import!#REF!","v":{"$error":"#REF!"}},{"$f":"Import!#REF!","v":{"$error":"#REF!"}}]
[8,{"$f":"Import!#REF!","v":{"$error":"#REF!"}},{"$f":"Import!#REF!","v":{"$error":"#REF!"}},{"$f":"Import!#REF!","v":{"$error":"#REF!"}},{"$f":"Import!#REF!","v":{"$error":"#REF!"}},{"$f":"Import!#REF!","v":{"$error":"#REF!"}}]
[9,{"$f":"Import!#REF!","v":{"$error":"#REF!"}},{"$f":"Import!#REF!","v":{"$error":"#REF!"}},{"$f":"Import!#REF!","v":{"$error":"#REF!"}},{"$f":"Import!#REF!","v":{"$error":"#REF!"}},{"$f":"Import!#REF!","v":{"$error":"#REF!"}}]
[10,{"$f":"Import!#REF!","v":{"$error":"#REF!"}},{"$f":"Import!#REF!","v":{"$error":"#REF!"}},{"$f":"Import!#REF!","v":{"$error":"#REF!"}},{"$f":"Import!#REF!","v":{"$error":"#REF!"}},{"$f":"Import!#REF!","v":{"$error":"#REF!"}}]
[11,{"$f":"Import!#REF!","v":{"$error":"#REF!"}},{"$f":"Import!#REF!","v":{"$error":"#REF!"}},{"$f":"Import!#REF!","v":{"$error":"#REF!"}},{"$f":"Import!#REF!","v":{"$error":"#REF!"}},{"$f":"Import!#REF!","v":{"$error":"#REF!"}}]
[12,{"$f":"Import!#REF!","v":{"$error":"#REF!"}},{"$f":"Import!#REF!","v":{"$error":"#REF!"}},{"$f":"Import!#REF!","v":{"$error":"#REF!"}},{"$f":"Import!#REF!","v":{"$error":"#REF!"}},{"$f":"Import!#REF!","v":{"$error":"#REF!"}}]
[13,{"$f":"Import!#REF!","v":{"$error":"#REF!"}},{"$f":"Import!#REF!","v":{"$error":"#REF!"}},{"$f":"Import!#REF!","v":{"$error":"#REF!"}},{"$f":"Import!#REF!","v":{"$error":"#REF!"}},{"$f":"Import!#REF!","v":{"$error":"#REF!"}}]
[14,{"$f":"Import!#REF!","v":{"$error":"#REF!"}},{"$f":"Import!#REF!","v":{"$error":"#REF!"}},{"$f":"Import!#REF!","v":{"$error":"#REF!"}},{"$f":"Import!#REF!","v":{"$error":"#REF!"}},{"$f":"Import!#REF!","v":{"$error":"#REF!"}}]
[15,{"$f":"Import!#REF!","v":{"$error":"#REF!"}},{"$f":"Import!#REF!","v":{"$error":"#REF!"}},{"$f":"Import!#REF!","v":{"$error":"#REF!"}},{"$f":"Import!#REF!","v":{"$error":"#REF!"}},{"$f":"Import!#REF!","v":{"$error":"#REF!"}}]
[16,{"$f":"Import!#REF!","v":{"$error":"#REF!"}},{"$f":"Import!#REF!","v":{"$error":"#REF!"}},{"$f":"Import!#REF!","v":{"$error":"#REF!"}},{"$f":"Import!#REF!","v":{"$error":"#REF!"}},{"$f":"Import!#REF!","v":{"$error":"#REF!"}}]
[17,{"$f":"Import!#REF!","v":{"$error":"#REF!"}},{"$f":"Import!#REF!","v":{"$error":"#REF!"}},{"$f":"Import!#REF!","v":{"$error":"#REF!"}},{"$f":"Import!#REF!","v":{"$error":"#REF!"}},{"$f":"Import!#REF!","v":{"$error":"#REF!"}}]
[18,{"$f":"Import!#REF!","v":{"$error":"#REF!"}},{"$f":"Import!#REF!","v":{"$error":"#REF!"}},{"$f":"Import!#REF!","v":{"$error":"#REF!"}},{"$f":"Import!#REF!","v":{"$error":"#REF!"}},{"$f":"Import!#REF!","v":{"$error":"#REF!"}}]
[19,{"$f":"Import!#REF!","v":{"$error":"#REF!"}},{"$f":"Import!#REF!","v":{"$error":"#REF!"}},{"$f":"Import!#REF!","v":{"$error":"#REF!"}},{"$f":"Import!#REF!","v":{"$error":"#REF!"}},{"$f":"Import!#REF!","v":{"$error":"#REF!"}}]
[20,{"$f":"Import!#REF!","v":{"$error":"#REF!"}},{"$f":"Import!#REF!","v":{"$error":"#REF!"}},{"$f":"Import!#REF!","v":{"$error":"#REF!"}},{"$f":"Import!#REF!","v":{"$error":"#REF!"}},{"$f":"Import!#REF!","v":{"$error":"#REF!"}}]
[]
[null,"Total Listed Equities & Preference Shares",null,null,{"$f":"SUM(E108:E127)","v":{"$error":"#REF!"}},{"$f":"SUM(F108:F127)","v":{"$error":"#REF!"}}]
[]
[null,"Form 1EBS Lines 2(d) & 3(d) Equities & Preference Shares",null,null,null,{"$f":"'Form 1EBS'!F$18+'Form 1EBS'!F$28","v":0}]
[]
[null,"Check Section D",null,null,null,{"$f":"ROUND((F129-F131),0)","v":{"$error":"#REF!"}},{"$f":"IF(F133=0,\"TRUE\",\"FALSE\")","v":{"$error":"#REF!"}}]
[]
[null,"(E) ALTERNATIVE INVESTMENTS"]
[]
[null,null,"Enter # of Asset Types",4]
[]
[null,null,null,null,2021,2021]
[]
[null,"Asset Type","Jurisdiction","BSCR Rating","Face Value","Fair Value","Average YTM","Effective Duration","Effective Convexity"]
[1,{"$f":"Import!#REF!","v":{"$error":"#REF!"}},{"$f":"Import!#REF!","v":{"$error":"#REF!"}},{"$f":"Import!#REF!","v":{"$error":"#REF!"}},{"$f":"Import!#REF!","v":{"$error":"#REF!"}},{"$f":"Import!#REF!","v":{"$error":"#REF!"}},{"$f":"Import!#REF!","v":{"$error":"#REF!"}},{"$f":"Import!#REF!","v":{"$error":"#REF!"}},{"$f":"Import!#REF!","v":{"$error":"#REF!"}}]
[2,{"$f":"Import!#REF!","v":{"$error":"#REF!"}},{"$f":"Import!#REF!","v":{"$error":"#REF!"}},{"$f":"Import!#REF!","v":{"$error":"#REF!"}},{"$f":"Import!#REF!","v":{"$error":"#REF!"}},{"$f":"Import!#REF!","v":{"$error":"#REF!"}},{"$f":"Import!#REF!","v":{"$error":"#REF!"}},{"$f":"Import!#REF!","v":{"$error":"#REF!"}},{"$f":"Import!#REF!","v":{"$error":"#REF!"}}]
[3,{"$f":"Import!#REF!","v":{"$error":"#REF!"}},{"$f":"Import!#REF!","v":{"$error":"#REF!"}},{"$f":"Import!#REF!","v":{"$error":"#REF!"}},{"$f":"Import!#REF!","v":{"$error":"#REF!"}},{"$f":"Import!#REF!","v":{"$error":"#REF!"}},{"$f":"Import!#REF!","v":{"$error":"#REF!"}},{"$f":"Import!#REF!","v":{"$error":"#REF!"}},{"$f":"Import!#REF!","v":{"$error":"#REF!"}}]
[4,{"$f":"Import!#REF!","v":{"$error":"#REF!"}},{"$f":"Import!#REF!","v":{"$error":"#REF!"}},{"$f":"Import!#REF!","v":{"$error":"#REF!"}},{"$f":"Import!#REF!","v":{"$error":"#REF!"}},{"$f":"Import!#REF!","v":{"$error":"#REF!"}},{"$f":"Import!#REF!","v":{"$error":"#REF!"}},{"$f":"Import!#REF!","v":{"$error":"#REF!"}},{"$f":"Import!#REF!","v":{"$error":"#REF!"}}]
[5,{"$f":"Import!#REF!","v":{"$error":"#REF!"}},{"$f":"Import!#REF!","v":{"$error":"#REF!"}},{"$f":"Import!#REF!","v":{"$error":"#REF!"}},{"$f":"Import!#REF!","v":{"$error":"#REF!"}},{"$f":"Import!#REF!","v":{"$error":"#REF!"}},{"$f":"Import!#REF!","v":{"$error":"#REF!"}},{"$f":"Import!#REF!","v":{"$error":"#REF!"}},{"$f":"Import!#REF!","v":{"$error":"#REF!"}}]
[6,{"$f":"Import!#REF!","v":{"$error":"#REF!"}},{"$f":"Import!#REF!","v":{"$error":"#REF!"}},{"$f":"Import!#REF!","v":{"$error":"#REF!"}},{"$f":"Import!#REF!","v":{"$error":"#REF!"}},{"$f":"Import!#REF!","v":{"$error":"#REF!"}},{"$f":"Import!#REF!","v":{"$error":"#REF!"}},{"$f":"Import!#REF!","v":{"$error":"#REF!"}},{"$f":"Import!#REF!","v":{"$error":"#REF!"}}]
[7,{"$f":"Import!#REF!","v":{"$error":"#REF!"}},{"$f":"Import!#REF!","v":{"$error":"#REF!"}},{"$f":"Import!#REF!","v":{"$error":"#REF!"}},{"$f":"Import!#REF!","v":{"$error":"#REF!"}},{"$f":"Import!#REF!","v":{"$error":"#REF!"}},{"$f":"Import!#REF!","v":{"$error":"#REF!"}},{"$f":"Import!#REF!","v":{"$error":"#REF!"}},{"$f":"Import!#REF!","v":{"$error":"#REF!"}}]
[8,{"$f":"Import!#REF!","v":{"$error":"#REF!"}},{"$f":"Import!#REF!","v":{"$error":"#REF!"}},{"$f":"Import!#REF!","v":{"$error":"#REF!"}},{"$f":"Import!#REF!","v":{"$error":"#REF!"}},{"$f":"Import!#REF!","v":{"$error":"#REF!"}},{"$f":"Import!#REF!","v":{"$error":"#REF!"}},{"$f":"Import!#REF!","v":{"$error":"#REF!"}},{"$f":"Import!#REF!","v":{"$error":"#REF!"}}]
[9,{"$f":"Import!#REF!","v":{"$error":"#REF!"}},{"$f":"Import!#REF!","v":{"$error":"#REF!"}},{"$f":"Import!#REF!","v":{"$error":"#REF!"}},{"$f":"Import!#REF!","v":{"$error":"#REF!"}},{"$f":"Import!#REF!","v":{"$error":"#REF!"}},{"$f":"Import!#REF!","v":{"$error":"#REF!"}},{"$f":"Import!#REF!","v":{"$error":"#REF!"}},{"$f":"Import!#REF!","v":{"$error":"#REF!"}}]
[10,{"$f":"Import!#REF!","v":{"$error":"#REF!"}},{"$f":"Import!#REF!","v":{"$error":"#REF!"}},{"$f":"Import!#REF!","v":{"$error":"#REF!"}},{"$f":"Import!#REF!","v":{"$error":"#REF!"}},{"$f":"Import!#REF!","v":{"$error":"#REF!"}},{"$f":"Import!#REF!","v":{"$error":"#REF!"}},{"$f":"Import!#REF!","v":{"$error":"#REF!"}},{"$f":"Import!#REF!","v":{"$error":"#REF!"}}]
[11,{"$f":"Import!#REF!","v":{"$error":"#REF!"}},{"$f":"Import!#REF!","v":{"$error":"#REF!"}},{"$f":"Import!#REF!","v":{"$error":"#REF!"}},{"$f":"Import!#REF!","v":{"$error":"#REF!"}},{"$f":"Import!#REF!","v":{"$error":"#REF!"}},{"$f":"Import!#REF!","v":{"$error":"#REF!"}},{"$f":"Import!#REF!","v":{"$error":"#REF!"}},{"$f":"Import!#REF!","v":{"$error":"#REF!"}}]
[12,{"$f":"Import!#REF!","v":{"$error":"#REF!"}},{"$f":"Import!#REF!","v":{"$error":"#REF!"}},{"$f":"Import!#REF!","v":{"$error":"#REF!"}},{"$f":"Import!#REF!","v":{"$error":"#REF!"}},{"$f":"Import!#REF!","v":{"$error":"#REF!"}},{"$f":"Import!#REF!","v":{"$error":"#REF!"}},{"$f":"Import!#REF!","v":{"$error":"#REF!"}},{"$f":"Import!#REF!","v":{"$error":"#REF!"}}]
[13,{"$f":"Import!#REF!","v":{"$error":"#REF!"}},{"$f":"Import!#REF!","v":{"$error":"#REF!"}},{"$f":"Import!#REF!","v":{"$error":"#REF!"}},{"$f":"Import!#REF!","v":{"$error":"#REF!"}},{"$f":"Import!#REF!","v":{"$error":"#REF!"}},{"$f":"Import!#REF!","v":{"$error":"#REF!"}},{"$f":"Import!#REF!","v":{"$error":"#REF!"}},{"$f":"Import!#REF!","v":{"$error":"#REF!"}}]
[14,{"$f":"Import!#REF!","v":{"$error":"#REF!"}},{"$f":"Import!#REF!","v":{"$error":"#REF!"}},{"$f":"Import!#REF!","v":{"$error":"#REF!"}},{"$f":"Import!#REF!","v":{"$error":"#REF!"}},{"$f":"Import!#REF!","v":{"$error":"#REF!"}},{"$f":"Import!#REF!","v":{"$error":"#REF!"}},{"$f":"Import!#REF!","v":{"$error":"#REF!"}},{"$f":"Import!#REF!","v":{"$error":"#REF!"}}]
[15,{"$f":"Import!#REF!","v":{"$error":"#REF!"}},{"$f":"Import!#REF!","v":{"$error":"#REF!"}},{"$f":"Import!#REF!","v":{"$error":"#REF!"}},{"$f":"Import!#REF!","v":{"$error":"#REF!"}},{"$f":"Import!#REF!","v":{"$error":"#REF!"}},{"$f":"Import!#REF!","v":{"$error":"#REF!"}},{"$f":"Import!#REF!","v":{"$error":"#REF!"}},{"$f":"Import!#REF!","v":{"$error":"#REF!"}}]
[16,{"$f":"Import!#REF!","v":{"$error":"#REF!"}},{"$f":"Import!#REF!","v":{"$error":"#REF!"}},{"$f":"Import!#REF!","v":{"$error":"#REF!"}},{"$f":"Import!#REF!","v":{"$error":"#REF!"}},{"$f":"Import!#REF!","v":{"$error":"#REF!"}},{"$f":"Import!#REF!","v":{"$error":"#REF!"}},{"$f":"Import!#REF!","v":{"$error":"#REF!"}},{"$f":"Import!#REF!","v":{"$error":"#REF!"}}]
[17,{"$f":"Import!#REF!","v":{"$error":"#REF!"}},{"$f":"Import!#REF!","v":{"$error":"#REF!"}},{"$f":"Import!#REF!","v":{"$error":"#REF!"}},{"$f":"Import!#REF!","v":{"$error":"#REF!"}},{"$f":"Import!#REF!","v":{"$error":"#REF!"}},{"$f":"Import!#REF!","v":{"$error":"#REF!"}},{"$f":"Import!#REF!","v":{"$error":"#REF!"}},{"$f":"Import!#REF!","v":{"$error":"#REF!"}}]
[18,{"$f":"Import!#REF!","v":{"$error":"#REF!"}},{"$f":"Import!#REF!","v":{"$error":"#REF!"}},{"$f":"Import!#REF!","v":{"$error":"#REF!"}},{"$f":"Import!#REF!","v":{"$error":"#REF!"}},{"$f":"Import!#REF!","v":{"$error":"#REF!"}},{"$f":"Import!#REF!","v":{"$error":"#REF!"}},{"$f":"Import!#REF!","v":{"$error":"#REF!"}},{"$f":"Import!#REF!","v":{"$error":"#REF!"}}]
[19,{"$f":"Import!#REF!","v":{"$error":"#REF!"}},{"$f":"Import!#REF!","v":{"$error":"#REF!"}},{"$f":"Import!#REF!","v":{"$error":"#REF!"}},{"$f":"Import!#REF!","v":{"$error":"#REF!"}},{"$f":"Import!#REF!","v":{"$error":"#REF!"}},{"$f":"Import!#REF!","v":{"$error":"#REF!"}},{"$f":"Import!#REF!","v":{"$error":"#REF!"}},{"$f":"Import!#REF!","v":{"$error":"#REF!"}}]
[20,{"$f":"Import!#REF!","v":{"$error":"#REF!"}},{"$f":"Import!#REF!","v":{"$error":"#REF!"}},{"$f":"Import!#REF!","v":{"$error":"#REF!"}},{"$f":"Import!#REF!","v":{"$error":"#REF!"}},{"$f":"Import!#REF!","v":{"$error":"#REF!"}},{"$f":"Import!#REF!","v":{"$error":"#REF!"}},{"$f":"Import!#REF!","v":{"$error":"#REF!"}},{"$f":"Import!#REF!","v":{"$error":"#REF!"}}]
[]
[null,"Total Alternative Investments",null,null,{"$f":"SUM(E142:E161)","v":{"$error":"#REF!"}},{"$f":"SUM(F142:F161)","v":{"$error":"#REF!"}},0,0,0]
[]
[null,"Form 1EBS Lines 2(e) & 3(e) Alternative Investments",null,null,null,{"$f":"'Form 1EBS'!F$19+'Form 1EBS'!F$29","v":0}]
[]
[null,"Check Section E",null,null,null,{"$f":"ROUND((F163-F165),0)","v":{"$error":"#REF!"}},{"$f":"IF(F167=0,\"TRUE\",\"FALSE\")","v":{"$error":"#REF!"}}]
[]
[null,"(F) LOANS"]
[]
[null,null,"Enter # of Asset Types",4]
[]
[null,null,null,null,2021,2021]
[null,"Asset Type","Jurisdiction","BSCR Rating","Face Value","Fair Value","Average YTM","Effective Duration","Effective Convexity"]
[null,{"$f":"Import!#REF!","v":{"$error":"#REF!"}},{"$f":"Import!#REF!","v":{"$error":"#REF!"}},{"$f":"Import!#REF!","v":{"$error":"#REF!"}},{"$f":"Import!#REF!","v":{"$error":"#REF!"}},{"$f":"Import!#REF!","v":{"$error":"#REF!"}},{"$f":"Import!#REF!","v":{"$error":"#REF!"}},{"$f":"Import!#REF!","v":{"$error":"#REF!"}},{"$f":"Import!#REF!","v":{"$error":"#REF!"}}]
[null,{"$f":"Import!#REF!","v":{"$error":"#REF!"}},{"$f":"Import!#REF!","v":{"$error":"#REF!"}},{"$f":"Import!#REF!","v":{"$error":"#REF!"}},{"$f":"Import!#REF!","v":{"$error":"#REF!"}},{"$f":"Import!#REF!","v":{"$error":"#REF!"}},{"$f":"Import!#REF!","v":{"$error":"#REF!"}},{"$f":"Import!#REF!","v":{"$error":"#REF!"}},{"$f":"Import!#REF!","v":{"$error":"#REF!"}}]
[null,{"$f":"Import!#REF!","v":{"$error":"#REF!"}},{"$f":"Import!#REF!","v":{"$error":"#REF!"}},{"$f":"Import!#REF!","v":{"$error":"#REF!"}},{"$f":"Import!#REF!","v":{"$error":"#REF!"}},{"$f":"Import!#REF!","v":{"$error":"#REF!"}},{"$f":"Import!#REF!","v":{"$error":"#REF!"}},{"$f":"Import!#REF!","v":{"$error":"#REF!"}},{"$f":"Import!#REF!","v":{"$error":"#REF!"}}]
[null,{"$f":"Import!#REF!","v":{"$error":"#REF!"}},{"$f":"Import!#REF!","v":{"$error":"#REF!"}},{"$f":"Import!#REF!","v":{"$error":"#REF!"}},{"$f":"Import!#REF!","v":{"$error":"#REF!"}},{"$f":"Import!#REF!","v":{"$error":"#REF!"}},{"$f":"Import!#REF!","v":{"$error":"#REF!"}},{"$f":"Import!#REF!","v":{"$error":"#REF!"}},{"$f":"Import!#REF!","v":{"$error":"#REF!"}}]
[null,{"$f":"Import!#REF!","v":{"$error":"#REF!"}},{"$f":"Import!#REF!","v":{"$error":"#REF!"}},{"$f":"Import!#REF!","v":{"$error":"#REF!"}},{"$f":"Import!#REF!","v":{"$error":"#REF!"}},{"$f":"Import!#REF!","v":{"$error":"#REF!"}},{"$f":"Import!#REF!","v":{"$error":"#REF!"}},{"$f":"Import!#REF!","v":{"$error":"#REF!"}},{"$f":"Import!#REF!","v":{"$error":"#REF!"}}]
[null,{"$f":"Import!#REF!","v":{"$error":"#REF!"}},{"$f":"Import!#REF!","v":{"$error":"#REF!"}},{"$f":"Import!#REF!","v":{"$error":"#REF!"}},{"$f":"Import!#REF!","v":{"$error":"#REF!"}},{"$f":"Import!#REF!","v":{"$error":"#REF!"}},{"$f":"Import!#REF!","v":{"$error":"#REF!"}},{"$f":"Import!#REF!","v":{"$error":"#REF!"}},{"$f":"Import!#REF!","v":{"$error":"#REF!"}}]
[null,{"$f":"Import!#REF!","v":{"$error":"#REF!"}},{"$f":"Import!#REF!","v":{"$error":"#REF!"}},{"$f":"Import!#REF!","v":{"$error":"#REF!"}},{"$f":"Import!#REF!","v":{"$error":"#REF!"}},{"$f":"Import!#REF!","v":{"$error":"#REF!"}},{"$f":"Import!#REF!","v":{"$error":"#REF!"}},{"$f":"Import!#REF!","v":{"$error":"#REF!"}},{"$f":"Import!#REF!","v":{"$error":"#REF!"}}]
[null,{"$f":"Import!#REF!","v":{"$error":"#REF!"}},{"$f":"Import!#REF!","v":{"$error":"#REF!"}},{"$f":"Import!#REF!","v":{"$error":"#REF!"}},{"$f":"Import!#REF!","v":{"$error":"#REF!"}},{"$f":"Import!#REF!","v":{"$error":"#REF!"}},{"$f":"Import!#REF!","v":{"$error":"#REF!"}},{"$f":"Import!#REF!","v":{"$error":"#REF!"}},{"$f":"Import!#REF!","v":{"$error":"#REF!"}}]
[null,{"$f":"Import!#REF!","v":{"$error":"#REF!"}},{"$f":"Import!#REF!","v":{"$error":"#REF!"}},{"$f":"Import!#REF!","v":{"$error":"#REF!"}},{"$f":"Import!#REF!","v":{"$error":"#REF!"}},{"$f":"Import!#REF!","v":{"$error":"#REF!"}},{"$f":"Import!#REF!","v":{"$error":"#REF!"}},{"$f":"Import!#REF!","v":{"$error":"#REF!"}},{"$f":"Import!#REF!","v":{"$error":"#REF!"}}]
[null,{"$f":"Import!#REF!","v":{"$error":"#REF!"}},{"$f":"Import!#REF!","v":{"$error":"#REF!"}},{"$f":"Import!#REF!","v":{"$error":"#REF!"}},{"$f":"Import!#REF!","v":{"$error":"#REF!"}},{"$f":"Import!#REF!","v":{"$error":"#REF!"}},{"$f":"Import!#REF!","v":{"$error":"#REF!"}},{"$f":"Import!#REF!","v":{"$error":"#REF!"}},{"$f":"Import!#REF!","v":{"$error":"#REF!"}}]
[null,{"$f":"Import!#REF!","v":{"$error":"#REF!"}},{"$f":"Import!#REF!","v":{"$error":"#REF!"}},{"$f":"Import!#REF!","v":{"$error":"#REF!"}},{"$f":"Import!#REF!","v":{"$error":"#REF!"}},{"$f":"Import!#REF!","v":{"$error":"#REF!"}},{"$f":"Import!#REF!","v":{"$error":"#REF!"}},{"$f":"Import!#REF!","v":{"$error":"#REF!"}},{"$f":"Import!#REF!","v":{"$error":"#REF!"}}]
[null,{"$f":"Import!#REF!","v":{"$error":"#REF!"}},{"$f":"Import!#REF!","v":{"$error":"#REF!"}},{"$f":"Import!#REF!","v":{"$error":"#REF!"}},{"$f":"Import!#REF!","v":{"$error":"#REF!"}},{"$f":"Import!#REF!","v":{"$error":"#REF!"}},{"$f":"Import!#REF!","v":{"$error":"#REF!"}},{"$f":"Import!#REF!","v":{"$error":"#REF!"}},{"$f":"Import!#REF!","v":{"$error":"#REF!"}}]
[null,{"$f":"Import!#REF!","v":{"$error":"#REF!"}},{"$f":"Import!#REF!","v":{"$error":"#REF!"}},{"$f":"Import!#REF!","v":{"$error":"#REF!"}},{"$f":"Import!#REF!","v":{"$error":"#REF!"}},{"$f":"Import!#REF!","v":{"$error":"#REF!"}},{"$f":"Import!#REF!","v":{"$error":"#REF!"}},{"$f":"Import!#REF!","v":{"$error":"#REF!"}},{"$f":"Import!#REF!","v":{"$error":"#REF!"}}]
[null,{"$f":"Import!#REF!","v":{"$error":"#REF!"}},{"$f":"Import!#REF!","v":{"$error":"#REF!"}},{"$f":"Import!#REF!","v":{"$error":"#REF!"}},{"$f":"Import!#REF!","v":{"$error":"#REF!"}},{"$f":"Import!#REF!","v":{"$error":"#REF!"}},{"$f":"Import!#REF!","v":{"$error":"#REF!"}},{"$f":"Import!#REF!","v":{"$error":"#REF!"}},{"$f":"Import!#REF!","v":{"$error":"#REF!"}}]
[null,{"$f":"Import!#REF!","v":{"$error":"#REF!"}},{"$f":"Import!#REF!","v":{"$error":"#REF!"}},{"$f":"Import!#REF!","v":{"$error":"#REF!"}},{"$f":"Import!#REF!","v":{"$error":"#REF!"}},{"$f":"Import!#REF!","v":{"$error":"#REF!"}},{"$f":"Import!#REF!","v":{"$error":"#REF!"}},{"$f":"Import!#REF!","v":{"$error":"#REF!"}},{"$f":"Import!#REF!","v":{"$error":"#REF!"}}]
[null,{"$f":"Import!#REF!","v":{"$error":"#REF!"}},{"$f":"Import!#REF!","v":{"$error":"#REF!"}},{"$f":"Import!#REF!","v":{"$error":"#REF!"}},{"$f":"Import!#REF!","v":{"$error":"#REF!"}},{"$f":"Import!#REF!","v":{"$error":"#REF!"}},{"$f":"Import!#REF!","v":{"$error":"#REF!"}},{"$f":"Import!#REF!","v":{"$error":"#REF!"}},{"$f":"Import!#REF!","v":{"$error":"#REF!"}}]
[null,{"$f":"Import!#REF!","v":{"$error":"#REF!"}},{"$f":"Import!#REF!","v":{"$error":"#REF!"}},{"$f":"Import!#REF!","v":{"$error":"#REF!"}},{"$f":"Import!#REF!","v":{"$error":"#REF!"}},{"$f":"Import!#REF!","v":{"$error":"#REF!"}},{"$f":"Import!#REF!","v":{"$error":"#REF!"}},{"$f":"Import!#REF!","v":{"$error":"#REF!"}},{"$f":"Import!#REF!","v":{"$error":"#REF!"}}]
[null,{"$f":"Import!#REF!","v":{"$error":"#REF!"}},{"$f":"Import!#REF!","v":{"$error":"#REF!"}},{"$f":"Import!#REF!","v":{"$error":"#REF!"}},{"$f":"Import!#REF!","v":{"$error":"#REF!"}},{"$f":"Import!#REF!","v":{"$error":"#REF!"}},{"$f":"Import!#REF!","v":{"$error":"#REF!"}},{"$f":"Import!#REF!","v":{"$error":"#REF!"}},{"$f":"Import!#REF!","v":{"$error":"#REF!"}}]
[null,{"$f":"Import!#REF!","v":{"$error":"#REF!"}},{"$f":"Import!#REF!","v":{"$error":"#REF!"}},{"$f":"Import!#REF!","v":{"$error":"#REF!"}},{"$f":"Import!#REF!","v":{"$error":"#REF!"}},{"$f":"Import!#REF!","v":{"$error":"#REF!"}},{"$f":"Import!#REF!","v":{"$error":"#REF!"}},{"$f":"Import!#REF!","v":{"$error":"#REF!"}},{"$f":"Import!#REF!","v":{"$error":"#REF!"}}]
[null,{"$f":"Import!#REF!","v":{"$error":"#REF!"}},{"$f":"Import!#REF!","v":{"$error":"#REF!"}},{"$f":"Import!#REF!","v":{"$error":"#REF!"}},{"$f":"Import!#REF!","v":{"$error":"#REF!"}},{"$f":"Import!#REF!","v":{"$error":"#REF!"}},{"$f":"Import!#REF!","v":{"$error":"#REF!"}},{"$f":"Import!#REF!","v":{"$error":"#REF!"}},{"$f":"Import!#REF!","v":{"$error":"#REF!"}}]
[]
[null,"Total Loans",null,null,{"$f":"SUM(E175:E194)","v":{"$error":"#REF!"}},{"$f":"SUM(F175:F194)","v":{"$error":"#REF!"}},0,0,0]
[]
[null,"Form 1EBS Line 5(c) Mortgage Loans",null,null,null,{"$f":"'Form 1EBS'!F$45","v":0}]
[]
[null,"Check Section F",null,null,null,{"$f":"ROUND((F196-F198),0)","v":{"$error":"#REF!"}},{"$f":"IF(F200=0,\"TRUE\",\"FALSE\")","v":{"$error":"#REF!"}}]
[]
[null,"(G) REAL ESTATE"]
[]
[null,null,"Enter # of Asset Types",4]
[]
[null,null,null,null,2021,2021]
[]
[null,"Asset Type","Jurisdiction","Purpose","Face Value","Fair Value"]
[null,{"$f":"Import!#REF!","v":{"$error":"#REF!"}},{"$f":"Import!#REF!","v":{"$error":"#REF!"}},{"$f":"Import!#REF!","v":{"$error":"#REF!"}},{"$f":"Import!#REF!","v":{"$error":"#REF!"}},{"$f":"Import!#REF!","v":{"$error":"#REF!"}}]
[null,{"$f":"Import!#REF!","v":{"$error":"#REF!"}},{"$f":"Import!#REF!","v":{"$error":"#REF!"}},{"$f":"Import!#REF!","v":{"$error":"#REF!"}},{"$f":"Import!#REF!","v":{"$error":"#REF!"}},{"$f":"Import!#REF!","v":{"$error":"#REF!"}}]
[null,{"$f":"Import!#REF!","v":{"$error":"#REF!"}},{"$f":"Import!#REF!","v":{"$error":"#REF!"}},{"$f":"Import!#REF!","v":{"$error":"#REF!"}},{"$f":"Import!#REF!","v":{"$error":"#REF!"}},{"$f":"Import!#REF!","v":{"$error":"#REF!"}}]
[null,{"$f":"Import!#REF!","v":{"$error":"#REF!"}},{"$f":"Import!#REF!","v":{"$error":"#REF!"}},{"$f":"Import!#REF!","v":{"$error":"#REF!"}},{"$f":"Import!#REF!","v":{"$error":"#REF!"}},{"$f":"Import!#REF!","v":{"$error":"#REF!"}}]
[null,{"$f":"Import!#REF!","v":{"$error":"#REF!"}},{"$f":"Import!#REF!","v":{"$error":"#REF!"}},{"$f":"Import!#REF!","v":{"$error":"#REF!"}},{"$f":"Import!#REF!","v":{"$error":"#REF!"}},{"$f":"Import!#REF!","v":{"$error":"#REF!"}}]
[null,{"$f":"Import!#REF!","v":{"$error":"#REF!"}},{"$f":"Import!#REF!","v":{"$error":"#REF!"}},{"$f":"Import!#REF!","v":{"$error":"#REF!"}},{"$f":"Import!#REF!","v":{"$error":"#REF!"}},{"$f":"Import!#REF!","v":{"$error":"#REF!"}}]
[null,{"$f":"Import!#REF!","v":{"$error":"#REF!"}},{"$f":"Import!#REF!","v":{"$error":"#REF!"}},{"$f":"Import!#REF!","v":{"$error":"#REF!"}},{"$f":"Import!#REF!","v":{"$error":"#REF!"}},{"$f":"Import!#REF!","v":{"$error":"#REF!"}}]
[null,{"$f":"Import!#REF!","v":{"$error":"#REF!"}},{"$f":"Import!#REF!","v":{"$error":"#REF!"}},{"$f":"Import!#REF!","v":{"$error":"#REF!"}},{"$f":"Import!#REF!","v":{"$error":"#REF!"}},{"$f":"Import!#REF!","v":{"$error":"#REF!"}}]
[null,{"$f":"Import!#REF!","v":{"$error":"#REF!"}},{"$f":"Import!#REF!","v":{"$error":"#REF!"}},{"$f":"Import!#REF!","v":{"$error":"#REF!"}},{"$f":"Import!#REF!","v":{"$error":"#REF!"}},{"$f":"Import!#REF!","v":{"$error":"#REF!"}}]
[null,{"$f":"Import!#REF!","v":{"$error":"#REF!"}},{"$f":"Import!#REF!","v":{"$error":"#REF!"}},{"$f":"Import!#REF!","v":{"$error":"#REF!"}},{"$f":"Import!#REF!","v":{"$error":"#REF!"}},{"$f":"Import!#REF!","v":{"$error":"#REF!"}}]
[null,{"$f":"Import!#REF!","v":{"$error":"#REF!"}},{"$f":"Import!#REF!","v":{"$error":"#REF!"}},{"$f":"Import!#REF!","v":{"$error":"#REF!"}},{"$f":"Import!#REF!","v":{"$error":"#REF!"}},{"$f":"Import!#REF!","v":{"$error":"#REF!"}}]
[null,{"$f":"Import!#REF!","v":{"$error":"#REF!"}},{"$f":"Import!#REF!","v":{"$error":"#REF!"}},{"$f":"Import!#REF!","v":{"$error":"#REF!"}},{"$f":"Import!#REF!","v":{"$error":"#REF!"}},{"$f":"Import!#REF!","v":{"$error":"#REF!"}}]
[null,{"$f":"Import!#REF!","v":{"$error":"#REF!"}},{"$f":"Import!#REF!","v":{"$error":"#REF!"}},{"$f":"Import!#REF!","v":{"$error":"#REF!"}},{"$f":"Import!#REF!","v":{"$error":"#REF!"}},{"$f":"Import!#REF!","v":{"$error":"#REF!"}}]
[null,{"$f":"Import!#REF!","v":{"$error":"#REF!"}},{"$f":"Import!#REF!","v":{"$error":"#REF!"}},{"$f":"Import!#REF!","v":{"$error":"#REF!"}},{"$f":"Import!#REF!","v":{"$error":"#REF!"}},{"$f":"Import!#REF!","v":{"$error":"#REF!"}}]
[null,{"$f":"Import!#REF!","v":{"$error":"#REF!"}},{"$f":"Import!#REF!","v":{"$error":"#REF!"}},{"$f":"Import!#REF!","v":{"$error":"#REF!"}},{"$f":"Import!#REF!","v":{"$error":"#REF!"}},{"$f":"Import!#REF!","v":{"$error":"#REF!"}}]
[null,{"$f":"Import!#REF!","v":{"$error":"#REF!"}},{"$f":"Import!#REF!","v":{"$error":"#REF!"}},{"$f":"Import!#REF!","v":{"$error":"#REF!"}},{"$f":"Import!#REF!","v":{"$error":"#REF!"}},{"$f":"Import!#REF!","v":{"$error":"#REF!"}}]
[null,{"$f":"Import!#REF!","v":{"$error":"#REF!"}},{"$f":"Import!#REF!","v":{"$error":"#REF!"}},{"$f":"Import!#REF!","v":{"$error":"#REF!"}},{"$f":"Import!#REF!","v":{"$error":"#REF!"}},{"$f":"Import!#REF!","v":{"$error":"#REF!"}}]
[null,{"$f":"Import!#REF!","v":{"$error":"#REF!"}},{"$f":"Import!#REF!","v":{"$error":"#REF!"}},{"$f":"Import!#REF!","v":{"$error":"#REF!"}},{"$f":"Import!#REF!","v":{"$error":"#REF!"}},{"$f":"Import!#REF!","v":{"$error":"#REF!"}}]
[null,{"$f":"Import!#REF!","v":{"$error":"#REF!"}},{"$f":"Import!#REF!","v":{"$error":"#REF!"}},{"$f":"Import!#REF!","v":{"$error":"#REF!"}},{"$f":"Import!#REF!","v":{"$error":"#REF!"}},{"$f":"Import!#REF!","v":{"$error":"#REF!"}}]
[null,{"$f":"Import!#REF!","v":{"$error":"#REF!"}},{"$f":"Import!#REF!","v":{"$error":"#REF!"}},{"$f":"Import!#REF!","v":{"$error":"#REF!"}},{"$f":"Import!#REF!","v":{"$error":"#REF!"}},{"$f":"Import!#REF!","v":{"$error":"#REF!"}}]
[]
[null,"Total Real Estate",null,null,{"$f":"SUM(E209:E228)","v":{"$error":"#REF!"}},{"$f":"SUM(F209:F228)","v":{"$error":"#REF!"}}]
[]
[null,"Form 1EBS Line 7(c) Real Estate",null,null,null,{"$f":"'Form 1EBS'!F$50","v":0}]
[]
[null,"Check Section G",null,null,null,{"$f":"ROUND((F230-F232),0)","v":{"$error":"#REF!"}},{"$f":"IF(F234=0,\"TRUE\",\"FALSE\")","v":{"$error":"#REF!"}}]
[]
[null,"(H) DERIVATIVES"]
[]
[null,null,"Enter # of Derivative Types",4]
[]
[null,"Derivative Type","Underlying","Purpose","Position"," 2021       Market Value","Centrally Cleared","Notional Value","Exposure (Dollar Delta, DV01, CS01"]
[null,{"$f":"Import!#REF!","v":{"$error":"#REF!"}},{"$f":"Import!#REF!","v":{"$error":"#REF!"}},{"$f":"Import!#REF!","v":{"$error":"#REF!"}},{"$f":"Import!#REF!","v":{"$error":"#REF!"}},{"$f":"Import!#REF!","v":{"$error":"#REF!"}},{"$f":"Import!#REF!","v":{"$error":"#REF!"}},{"$f":"Import!#REF!","v":{"$error":"#REF!"}},{"$f":"Import!#REF!","v":{"$error":"#REF!"}}]
[null,{"$f":"Import!#REF!","v":{"$error":"#REF!"}},{"$f":"Import!#REF!","v":{"$error":"#REF!"}},{"$f":"Import!#REF!","v":{"$error":"#REF!"}},{"$f":"Import!#REF!","v":{"$error":"#REF!"}},{"$f":"Import!#REF!","v":{"$error":"#REF!"}},{"$f":"Import!#REF!","v":{"$error":"#REF!"}},{"$f":"Import!#REF!","v":{"$error":"#REF!"}},{"$f":"Import!#REF!","v":{"$error":"#REF!"}}]
[null,{"$f":"Import!#REF!","v":{"$error":"#REF!"}},{"$f":"Import!#REF!","v":{"$error":"#REF!"}},{"$f":"Import!#REF!","v":{"$error":"#REF!"}},{"$f":"Import!#REF!","v":{"$error":"#REF!"}},{"$f":"Import!#REF!","v":{"$error":"#REF!"}},{"$f":"Import!#REF!","v":{"$error":"#REF!"}},{"$f":"Import!#REF!","v":{"$error":"#REF!"}},{"$f":"Import!#REF!","v":{"$error":"#REF!"}}]
[null,{"$f":"Import!#REF!","v":{"$error":"#REF!"}},{"$f":"Import!#REF!","v":{"$error":"#REF!"}},{"$f":"Import!#REF!","v":{"$error":"#REF!"}},{"$f":"Import!#REF!","v":{"$error":"#REF!"}},{"$f":"Import!#REF!","v":{"$error":"#REF!"}},{"$f":"Import!#REF!","v":{"$error":"#REF!"}},{"$f":"Import!#REF!","v":{"$error":"#REF!"}},{"$f":"Import!#REF!","v":{"$error":"#REF!"}}]
[null,{"$f":"Import!#REF!","v":{"$error":"#REF!"}},{"$f":"Import!#REF!","v":{"$error":"#REF!"}},{"$f":"Import!#REF!","v":{"$error":"#REF!"}},{"$f":"Import!#REF!","v":{"$error":"#REF!"}},{"$f":"Import!#REF!","v":{"$error":"#REF!"}},{"$f":"Import!#REF!","v":{"$error":"#REF!"}},{"$f":"Import!#REF!","v":{"$error":"#REF!"}},{"$f":"Import!#REF!","v":{"$error":"#REF!"}}]
[null,{"$f":"Import!#REF!","v":{"$error":"#REF!"}},{"$f":"Import!#REF!","v":{"$error":"#REF!"}},{"$f":"Import!#REF!","v":{"$error":"#REF!"}},{"$f":"Import!#REF!","v":{"$error":"#REF!"}},{"$f":"Import!#REF!","v":{"$error":"#REF!"}},{"$f":"Import!#REF!","v":{"$error":"#REF!"}},{"$f":"Import!#REF!","v":{"$error":"#REF!"}},{"$f":"Import!#REF!","v":{"$error":"#REF!"}}]
[null,{"$f":"Import!#REF!","v":{"$error":"#REF!"}},{"$f":"Import!#REF!","v":{"$error":"#REF!"}},{"$f":"Import!#REF!","v":{"$error":"#REF!"}},{"$f":"Import!#REF!","v":{"$error":"#REF!"}},{"$f":"Import!#REF!","v":{"$error":"#REF!"}},{"$f":"Import!#REF!","v":{"$error":"#REF!"}},{"$f":"Import!#REF!","v":{"$error":"#REF!"}},{"$f":"Import!#REF!","v":{"$error":"#REF!"}}]
[null,{"$f":"Import!#REF!","v":{"$error":"#REF!"}},{"$f":"Import!#REF!","v":{"$error":"#REF!"}},{"$f":"Import!#REF!","v":{"$error":"#REF!"}},{"$f":"Import!#REF!","v":{"$error":"#REF!"}},{"$f":"Import!#REF!","v":{"$error":"#REF!"}},{"$f":"Import!#REF!","v":{"$error":"#REF!"}},{"$f":"Import!#REF!","v":{"$error":"#REF!"}},{"$f":"Import!#REF!","v":{"$error":"#REF!"}}]
[null,{"$f":"Import!#REF!","v":{"$error":"#REF!"}},{"$f":"Import!#REF!","v":{"$error":"#REF!"}},{"$f":"Import!#REF!","v":{"$error":"#REF!"}},{"$f":"Import!#REF!","v":{"$error":"#REF!"}},{"$f":"Import!#REF!","v":{"$error":"#REF!"}},{"$f":"Import!#REF!","v":{"$error":"#REF!"}},{"$f":"Import!#REF!","v":{"$error":"#REF!"}},{"$f":"Import!#REF!","v":{"$error":"#REF!"}}]
[null,{"$f":"Import!#REF!","v":{"$error":"#REF!"}},{"$f":"Import!#REF!","v":{"$error":"#REF!"}},{"$f":"Import!#REF!","v":{"$error":"#REF!"}},{"$f":"Import!#REF!","v":{"$error":"#REF!"}},{"$f":"Import!#REF!","v":{"$error":"#REF!"}},{"$f":"Import!#REF!","v":{"$error":"#REF!"}},{"$f":"Import!#REF!","v":{"$error":"#REF!"}},{"$f":"Import!#REF!","v":{"$error":"#REF!"}}]
[null,{"$f":"Import!#REF!","v":{"$error":"#REF!"}},{"$f":"Import!#REF!","v":{"$error":"#REF!"}},{"$f":"Import!#REF!","v":{"$error":"#REF!"}},{"$f":"Import!#REF!","v":{"$error":"#REF!"}},{"$f":"Import!#REF!","v":{"$error":"#REF!"}},{"$f":"Import!#REF!","v":{"$error":"#REF!"}},{"$f":"Import!#REF!","v":{"$error":"#REF!"}},{"$f":"Import!#REF!","v":{"$error":"#REF!"}}]
[null,{"$f":"Import!#REF!","v":{"$error":"#REF!"}},{"$f":"Import!#REF!","v":{"$error":"#REF!"}},{"$f":"Import!#REF!","v":{"$error":"#REF!"}},{"$f":"Import!#REF!","v":{"$error":"#REF!"}},{"$f":"Import!#REF!","v":{"$error":"#REF!"}},{"$f":"Import!#REF!","v":{"$error":"#REF!"}},{"$f":"Import!#REF!","v":{"$error":"#REF!"}},{"$f":"Import!#REF!","v":{"$error":"#REF!"}}]
[null,{"$f":"Import!#REF!","v":{"$error":"#REF!"}},{"$f":"Import!#REF!","v":{"$error":"#REF!"}},{"$f":"Import!#REF!","v":{"$error":"#REF!"}},{"$f":"Import!#REF!","v":{"$error":"#REF!"}},{"$f":"Import!#REF!","v":{"$error":"#REF!"}},{"$f":"Import!#REF!","v":{"$error":"#REF!"}},{"$f":"Import!#REF!","v":{"$error":"#REF!"}},{"$f":"Import!#REF!","v":{"$error":"#REF!"}}]
[null,{"$f":"Import!#REF!","v":{"$error":"#REF!"}},{"$f":"Import!#REF!","v":{"$error":"#REF!"}},{"$f":"Import!#REF!","v":{"$error":"#REF!"}},{"$f":"Import!#REF!","v":{"$error":"#REF!"}},{"$f":"Import!#REF!","v":{"$error":"#REF!"}},{"$f":"Import!#REF!","v":{"$error":"#REF!"}},{"$f":"Import!#REF!","v":{"$error":"#REF!"}},{"$f":"Import!#REF!","v":{"$error":"#REF!"}}]
[null,{"$f":"Import!#REF!","v":{"$error":"#REF!"}},{"$f":"Import!#REF!","v":{"$error":"#REF!"}},{"$f":"Import!#REF!","v":{"$error":"#REF!"}},{"$f":"Import!#REF!","v":{"$error":"#REF!"}},{"$f":"Import!#REF!","v":{"$error":"#REF!"}},{"$f":"Import!#REF!","v":{"$error":"#REF!"}},{"$f":"Import!#REF!","v":{"$error":"#REF!"}},{"$f":"Import!#REF!","v":{"$error":"#REF!"}}]
[null,{"$f":"Import!#REF!","v":{"$error":"#REF!"}},{"$f":"Import!#REF!","v":{"$error":"#REF!"}},{"$f":"Import!#REF!","v":{"$error":"#REF!"}},{"$f":"Import!#REF!","v":{"$error":"#REF!"}},{"$f":"Import!#REF!","v":{"$error":"#REF!"}},{"$f":"Import!#REF!","v":{"$error":"#REF!"}},{"$f":"Import!#REF!","v":{"$error":"#REF!"}},{"$f":"Import!#REF!","v":{"$error":"#REF!"}}]
[null,{"$f":"Import!#REF!","v":{"$error":"#REF!"}},{"$f":"Import!#REF!","v":{"$error":"#REF!"}},{"$f":"Import!#REF!","v":{"$error":"#REF!"}},{"$f":"Import!#REF!","v":{"$error":"#REF!"}},{"$f":"Import!#REF!","v":{"$error":"#REF!"}},{"$f":"Import!#REF!","v":{"$error":"#REF!"}},{"$f":"Import!#REF!","v":{"$error":"#REF!"}},{"$f":"Import!#REF!","v":{"$error":"#REF!"}}]
[null,{"$f":"Import!#REF!","v":{"$error":"#REF!"}},{"$f":"Import!#REF!","v":{"$error":"#REF!"}},{"$f":"Import!#REF!","v":{"$error":"#REF!"}},{"$f":"Import!#REF!","v":{"$error":"#REF!"}},{"$f":"Import!#REF!","v":{"$error":"#REF!"}},{"$f":"Import!#REF!","v":{"$error":"#REF!"}},{"$f":"Import!#REF!","v":{"$error":"#REF!"}},{"$f":"Import!#REF!","v":{"$error":"#REF!"}}]
[null,{"$f":"Import!#REF!","v":{"$error":"#REF!"}},{"$f":"Import!#REF!","v":{"$error":"#REF!"}},{"$f":"Import!#REF!","v":{"$error":"#REF!"}},{"$f":"Import!#REF!","v":{"$error":"#REF!"}},{"$f":"Import!#REF!","v":{"$error":"#REF!"}},{"$f":"Import!#REF!","v":{"$error":"#REF!"}},{"$f":"Import!#REF!","v":{"$error":"#REF!"}},{"$f":"Import!#REF!","v":{"$error":"#REF!"}}]
[null,{"$f":"Import!#REF!","v":{"$error":"#REF!"}},{"$f":"Import!#REF!","v":{"$error":"#REF!"}},{"$f":"Import!#REF!","v":{"$error":"#REF!"}},{"$f":"Import!#REF!","v":{"$error":"#REF!"}},{"$f":"Import!#REF!","v":{"$error":"#REF!"}},{"$f":"Import!#REF!","v":{"$error":"#REF!"}},{"$f":"Import!#REF!","v":{"$error":"#REF!"}},{"$f":"Import!#REF!","v":{"$error":"#REF!"}}]
[]
[null,"Total Derivatives",null,null,null,{"$f":"SUM(F241:F260)","v":{"$error":"#REF!"}},null,0,0]
[]
[null,"Form 1EBS Line 13(a) Derivatives",null,null,null,{"$f":"'Form 1EBS'!F$74","v":0}]
[]
[null,"Check Section H",null,null,null,{"$f":"ROUND((F262-F264),0)","v":{"$error":"#REF!"}},{"$f":"IF(F266=0,\"TRUE\",\"FALSE\")","v":{"$error":"#REF!"}}]
[]
[null,"(I) OTHER ASSETS"]
[]
[null,null,"Enter # of Asset Types",4]
[]
[null,null,null,null,2021,2021]
[]
[null,"Asset Type","Jurisdiction","BSCR Rating","Face Value","Fair Value"]
[1,{"$f":"Import!#REF!","v":{"$error":"#REF!"}},{"$f":"Import!#REF!","v":{"$error":"#REF!"}},{"$f":"Import!#REF!","v":{"$error":"#REF!"}},{"$f":"Import!#REF!","v":{"$error":"#REF!"}},{"$f":"Import!#REF!","v":{"$error":"#REF!"}}]
[2,{"$f":"Import!#REF!","v":{"$error":"#REF!"}},{"$f":"Import!#REF!","v":{"$error":"#REF!"}},{"$f":"Import!#REF!","v":{"$error":"#REF!"}},{"$f":"Import!#REF!","v":{"$error":"#REF!"}},{"$f":"Import!#REF!","v":{"$error":"#REF!"}}]
[3,{"$f":"Import!#REF!","v":{"$error":"#REF!"}},{"$f":"Import!#REF!","v":{"$error":"#REF!"}},{"$f":"Import!#REF!","v":{"$error":"#REF!"}},{"$f":"Import!#REF!","v":{"$error":"#REF!"}},{"$f":"Import!#REF!","v":{"$error":"#REF!"}}]
[4,{"$f":"Import!#REF!","v":{"$error":"#REF!"}},{"$f":"Import!#REF!","v":{"$error":"#REF!"}},{"$f":"Import!#REF!","v":{"$error":"#REF!"}},{"$f":"Import!#REF!","v":{"$error":"#REF!"}},{"$f":"Import!#REF!","v":{"$error":"#REF!"}}]
[5,{"$f":"Import!#REF!","v":{"$error":"#REF!"}},{"$f":"Import!#REF!","v":{"$error":"#REF!"}},{"$f":"Import!#REF!","v":{"$error":"#REF!"}},{"$f":"Import!#REF!","v":{"$error":"#REF!"}},{"$f":"Import!#REF!","v":{"$error":"#REF!"}}]
[6,{"$f":"Import!#REF!","v":{"$error":"#REF!"}},{"$f":"Import!#REF!","v":{"$error":"#REF!"}},{"$f":"Import!#REF!","v":{"$error":"#REF!"}},{"$f":"Import!#REF!","v":{"$error":"#REF!"}},{"$f":"Import!#REF!","v":{"$error":"#REF!"}}]
[7,{"$f":"Import!#REF!","v":{"$error":"#REF!"}},{"$f":"Import!#REF!","v":{"$error":"#REF!"}},{"$f":"Import!#REF!","v":{"$error":"#REF!"}},{"$f":"Import!#REF!","v":{"$error":"#REF!"}},{"$f":"Import!#REF!","v":{"$error":"#REF!"}}]
[8,{"$f":"Import!#REF!","v":{"$error":"#REF!"}},{"$f":"Import!#REF!","v":{"$error":"#REF!"}},{"$f":"Import!#REF!","v":{"$error":"#REF!"}},{"$f":"Import!#REF!","v":{"$error":"#REF!"}},{"$f":"Import!#REF!","v":{"$error":"#REF!"}}]
[9,{"$f":"Import!#REF!","v":{"$error":"#REF!"}},{"$f":"Import!#REF!","v":{"$error":"#REF!"}},{"$f":"Import!#REF!","v":{"$error":"#REF!"}},{"$f":"Import!#REF!","v":{"$error":"#REF!"}},{"$f":"Import!#REF!","v":{"$error":"#REF!"}}]
[10,{"$f":"Import!#REF!","v":{"$error":"#REF!"}},{"$f":"Import!#REF!","v":{"$error":"#REF!"}},{"$f":"Import!#REF!","v":{"$error":"#REF!"}},{"$f":"Import!#REF!","v":{"$error":"#REF!"}},{"$f":"Import!#REF!","v":{"$error":"#REF!"}}]
[11,{"$f":"Import!#REF!","v":{"$error":"#REF!"}},{"$f":"Import!#REF!","v":{"$error":"#REF!"}},{"$f":"Import!#REF!","v":{"$error":"#REF!"}},{"$f":"Import!#REF!","v":{"$error":"#REF!"}},{"$f":"Import!#REF!","v":{"$error":"#REF!"}}]
[12,{"$f":"Import!#REF!","v":{"$error":"#REF!"}},{"$f":"Import!#REF!","v":{"$error":"#REF!"}},{"$f":"Import!#REF!","v":{"$error":"#REF!"}},{"$f":"Import!#REF!","v":{"$error":"#REF!"}},{"$f":"Import!#REF!","v":{"$error":"#REF!"}}]
[13,{"$f":"Import!#REF!","v":{"$error":"#REF!"}},{"$f":"Import!#REF!","v":{"$error":"#REF!"}},{"$f":"Import!#REF!","v":{"$error":"#REF!"}},{"$f":"Import!#REF!","v":{"$error":"#REF!"}},{"$f":"Import!#REF!","v":{"$error":"#REF!"}}]
[14,{"$f":"Import!#REF!","v":{"$error":"#REF!"}},{"$f":"Import!#REF!","v":{"$error":"#REF!"}},{"$f":"Import!#REF!","v":{"$error":"#REF!"}},{"$f":"Import!#REF!","v":{"$error":"#REF!"}},{"$f":"Import!#REF!","v":{"$error":"#REF!"}}]
[15,{"$f":"Import!#REF!","v":{"$error":"#REF!"}},{"$f":"Import!#REF!","v":{"$error":"#REF!"}},{"$f":"Import!#REF!","v":{"$error":"#REF!"}},{"$f":"Import!#REF!","v":{"$error":"#REF!"}},{"$f":"Import!#REF!","v":{"$error":"#REF!"}}]
[16,{"$f":"Import!#REF!","v":{"$error":"#REF!"}},{"$f":"Import!#REF!","v":{"$error":"#REF!"}},{"$f":"Import!#REF!","v":{"$error":"#REF!"}},{"$f":"Import!#REF!","v":{"$error":"#REF!"}},{"$f":"Import!#REF!","v":{"$error":"#REF!"}}]
[17,{"$f":"Import!#REF!","v":{"$error":"#REF!"}},{"$f":"Import!#REF!","v":{"$error":"#REF!"}},{"$f":"Import!#REF!","v":{"$error":"#REF!"}},{"$f":"Import!#REF!","v":{"$error":"#REF!"}},{"$f":"Import!#REF!","v":{"$error":"#REF!"}}]
[18,{"$f":"Import!#REF!","v":{"$error":"#REF!"}},{"$f":"Import!#REF!","v":{"$error":"#REF!"}},{"$f":"Import!#REF!","v":{"$error":"#REF!"}},{"$f":"Import!#REF!","v":{"$error":"#REF!"}},{"$f":"Import!#REF!","v":{"$error":"#REF!"}}]
[19,{"$f":"Import!#REF!","v":{"$error":"#REF!"}},{"$f":"Import!#REF!","v":{"$error":"#REF!"}},{"$f":"Import!#REF!","v":{"$error":"#REF!"}},{"$f":"Import!#REF!","v":{"$error":"#REF!"}},{"$f":"Import!#REF!","v":{"$error":"#REF!"}}]
[20,{"$f":"Import!#REF!","v":{"$error":"#REF!"}},{"$f":"Import!#REF!","v":{"$error":"#REF!"}},{"$f":"Import!#REF!","v":{"$error":"#REF!"}},{"$f":"Import!#REF!","v":{"$error":"#REF!"}},{"$f":"Import!#REF!","v":{"$error":"#REF!"}}]
[]
[null,"Total Other Assets",null,null,null,{"$f":"SUM(F275:F294)","v":{"$error":"#REF!"}}]
[]
[null,"Form 1EBS Lines X(x) Other Assets",null,null,null,{"$f":"'Form 1EBS'!F$40+'Form 1EBS'!F$52+'Form 1EBS'!F$54+'Form 1EBS'!F$59+'Form 1EBS'!F$66+'Form 1EBS'!F$71+'Form 1EBS'!F$82-'Form 1EBS'!F$74+'Form 1EBS'!F$88","v":0}]
[]
[null,"Check Section I",null,null,null,{"$f":"ROUND((F296-F298),0)","v":{"$error":"#REF!"}},{"$f":"IF(F300=0,\"TRUE\",\"FALSE\")","v":{"$error":"#REF!"}}]
[]
[]
[null,"TOTAL ASSETS",null,null,null,{"$f":"F34+F67+F96+F129+F163+F196+F230+F262+F296","v":{"$error":"#REF!"}}]
[]
[null,"TOTAL ASSETS (Form 1EBS Line 15)",null,null,null,{"$f":"F36+F98+F131+F165+F198+F232+F264+F298","v":0}]
[]
[null,"Check Form 1EBS",null,null,null,{"$f":"IF(F309=0,\"TRUE\",\"FALSE\")","v":{"$error":"#REF!"}}]
[]
[null,"Difference",null,null,null,{"$f":"ROUND(F305-F303,0)","v":{"$error":"#REF!"}}]
[]
[]
[null,"EFFECTIVE DURATION",null,null,{"$f":"Import!#REF!","v":{"$error":"#REF!"}}]
[]
[null,"EFFECTIVE CONVEXITY",null,null,{"$f":"Import!#REF!","v":{"$error":"#REF!"}}]

{"sheet":"Schedule VIA.","index":57,"n_rows":310,"n_cols":9,"rows_kept":310,"cut":false,"hidden":true,"merged":[[235,1,235,2],[267,1,267,2],[271,1,271,2],[134,1,134,2],[138,1,138,2],[168,1,168,2],[172,1,172,2],[201,1,201,2],[205,1,205,2],[105,1,105,2],[6,1,6,2],[39,1,39,2],[43,1,43,2],[68,1,68,2],[101,1,101,2]]}
[null,"SCHEDULE OF FUNDS HELD BY CEDING REINSURERS",null,null,null,null,null,null,{"$f":"HYPERLINK(\"#'Index'!A1\",\"Return to Index\")","v":"Return to Index"}]
[null,{"$f":"'Form 1SFS'!B3","v":"Enter Company Name"}]
[null,"As at",{"$f":" TEXT('Company Information'!C3,\"d mmmm yyyy\")","v":"31 December 2023"}]
[null,"expressed in ['000s]",{"$f":"'Form 1SFS'!C5","v":"United States Dollars"}]
[]
[]
[null,"(A) CASH AND CASH EQUIVALENTS"]
[]
[null,null,"Enter # of Asset Types",4]
[]
[null,null,null,null,2021,2021]
[null,"Asset Type","Jurisdiction","BSCR Rating","Face Value","Fair Value"]
[1,{"$f":"Import!#REF!","v":{"$error":"#REF!"}},{"$f":"Import!#REF!","v":{"$error":"#REF!"}},{"$f":"Import!#REF!","v":{"$error":"#REF!"}},{"$f":"Import!#REF!","v":{"$error":"#REF!"}},{"$f":"Import!#REF!","v":{"$error":"#REF!"}}]
[2,{"$f":"Import!#REF!","v":{"$error":"#REF!"}},{"$f":"Import!#REF!","v":{"$error":"#REF!"}},{"$f":"Import!#REF!","v":{"$error":"#REF!"}},{"$f":"Import!#REF!","v":{"$error":"#REF!"}},{"$f":"Import!#REF!","v":{"$error":"#REF!"}}]
[3,{"$f":"Import!#REF!","v":{"$error":"#REF!"}},{"$f":"Import!#REF!","v":{"$error":"#REF!"}},{"$f":"Import!#REF!","v":{"$error":"#REF!"}},{"$f":"Import!#REF!","v":{"$error":"#REF!"}},{"$f":"Import!#REF!","v":{"$error":"#REF!"}}]
[4,{"$f":"Import!#REF!","v":{"$error":"#REF!"}},{"$f":"Import!#REF!","v":{"$error":"#REF!"}},{"$f":"Import!#REF!","v":{"$error":"#REF!"}},{"$f":"Import!#REF!","v":{"$error":"#REF!"}},{"$f":"Import!#REF!","v":{"$error":"#REF!"}}]
[5,{"$f":"Import!#REF!","v":{"$error":"#REF!"}},{"$f":"Import!#REF!","v":{"$error":"#REF!"}},{"$f":"Import!#REF!","v":{"$error":"#REF!"}},{"$f":"Import!#REF!","v":{"$error":"#REF!"}},{"$f":"Import!#REF!","v":{"$error":"#REF!"}}]
[6,{"$f":"Import!#REF!","v":{"$error":"#REF!"}},{"$f":"Import!#REF!","v":{"$error":"#REF!"}},{"$f":"Import!#REF!","v":{"$error":"#REF!"}},{"$f":"Import!#REF!","v":{"$error":"#REF!"}},{"$f":"Import!#REF!","v":{"$error":"#REF!"}}]
[7,{"$f":"Import!#REF!","v":{"$error":"#REF!"}},{"$f":"Import!#REF!","v":{"$error":"#REF!"}},{"$f":"Import!#REF!","v":{"$error":"#REF!"}},{"$f":"Import!#REF!","v":{"$error":"#REF!"}},{"$f":"Import!#REF!","v":{"$error":"#REF!"}}]
[8,{"$f":"Import!#REF!","v":{"$error":"#REF!"}},{"$f":"Import!#REF!","v":{"$error":"#REF!"}},{"$f":"Import!#REF!","v":{"$error":"#REF!"}},{"$f":"Import!#REF!","v":{"$error":"#REF!"}},{"$f":"Import!#REF!","v":{"$error":"#REF!"}}]
[9,{"$f":"Import!#REF!","v":{"$error":"#REF!"}},{"$f":"Import!#REF!","v":{"$error":"#REF!"}},{"$f":"Import!#REF!","v":{"$error":"#REF!"}},{"$f":"Import!#REF!","v":{"$error":"#REF!"}},{"$f":"Import!#REF!","v":{"$error":"#REF!"}}]
[10,{"$f":"Import!#REF!","v":{"$error":"#REF!"}},{"$f":"Import!#REF!","v":{"$error":"#REF!"}},{"$f":"Import!#REF!","v":{"$error":"#REF!"}},{"$f":"Import!#REF!","v":{"$error":"#REF!"}},{"$f":"Import!#REF!","v":{"$error":"#REF!"}}]
[11,{"$f":"Import!#REF!","v":{"$error":"#REF!"}},{"$f":"Import!#REF!","v":{"$error":"#REF!"}},{"$f":"Import!#REF!","v":{"$error":"#REF!"}},{"$f":"Import!#REF!","v":{"$error":"#REF!"}},{"$f":"Import!#REF!","v":{"$error":"#REF!"}}]
[12,{"$f":"Import!#REF!","v":{"$error":"#REF!"}},{"$f":"Import!#REF!","v":{"$error":"#REF!"}},{"$f":"Import!#REF!","v":{"$error":"#REF!"}},{"$f":"Import!#REF!","v":{"$error":"#REF!"}},{"$f":"Import!#REF!","v":{"$error":"#REF!"}}]
[13,{"$f":"Import!#REF!","v":{"$error":"#REF!"}},{"$f":"Import!#REF!","v":{"$error":"#REF!"}},{"$f":"Import!#REF!","v":{"$error":"#REF!"}},{"$f":"Import!#REF!","v":{"$error":"#REF!"}},{"$f":"Import!#REF!","v":{"$error":"#REF!"}}]
[14,{"$f":"Import!#REF!","v":{"$error":"#REF!"}},{"$f":"Import!#REF!","v":{"$error":"#REF!"}},{"$f":"Import!#REF!","v":{"$error":"#REF!"}},{"$f":"Import!#REF!","v":{"$error":"#REF!"}},{"$f":"Import!#REF!","v":{"$error":"#REF!"}}]
[15,{"$f":"Import!#REF!","v":{"$error":"#REF!"}},{"$f":"Import!#REF!","v":{"$error":"#REF!"}},{"$f":"Import!#REF!","v":{"$error":"#REF!"}},{"$f":"Import!#REF!","v":{"$error":"#REF!"}},{"$f":"Import!#REF!","v":{"$error":"#REF!"}}]
[16,{"$f":"Import!#REF!","v":{"$error":"#REF!"}},{"$f":"Import!#REF!","v":{"$error":"#REF!"}},{"$f":"Import!#REF!","v":{"$error":"#REF!"}},{"$f":"Import!#REF!","v":{"$error":"#REF!"}},{"$f":"Import!#REF!","v":{"$error":"#REF!"}}]
[17,{"$f":"Import!#REF!","v":{"$error":"#REF!"}},{"$f":"Import!#REF!","v":{"$error":"#REF!"}},{"$f":"Import!#REF!","v":{"$error":"#REF!"}},{"$f":"Import!#REF!","v":{"$error":"#REF!"}},{"$f":"Import!#REF!","v":{"$error":"#REF!"}}]
[18,{"$f":"Import!#REF!","v":{"$error":"#REF!"}},{"$f":"Import!#REF!","v":{"$error":"#REF!"}},{"$f":"Import!#REF!","v":{"$error":"#REF!"}},{"$f":"Import!#REF!","v":{"$error":"#REF!"}},{"$f":"Import!#REF!","v":{"$error":"#REF!"}}]
[19,{"$f":"Import!#REF!","v":{"$error":"#REF!"}},{"$f":"Import!#REF!","v":{"$error":"#REF!"}},{"$f":"Import!#REF!","v":{"$error":"#REF!"}},{"$f":"Import!#REF!","v":{"$error":"#REF!"}},{"$f":"Import!#REF!","v":{"$error":"#REF!"}}]
[20,{"$f":"Import!#REF!","v":{"$error":"#REF!"}},{"$f":"Import!#REF!","v":{"$error":"#REF!"}},{"$f":"Import!#REF!","v":{"$error":"#REF!"}},{"$f":"Import!#REF!","v":{"$error":"#REF!"}},{"$f":"Import!#REF!","v":{"$error":"#REF!"}}]
[]
[null,"Total Cash & Cash Equivalents",null,null,{"$f":"SUM(E13:E32)","v":{"$error":"#REF!"}},{"$f":"SUM(F13:F32)","v":{"$error":"#REF!"}}]
[]
[]
[]
[]
[]
[null,"(B) BONDS AND DEBENTURES"]
[]
[null,null,"Enter # of Asset Types",4]
[]
[null,null,null,null,2021,2021]
[null,"Asset Type","Jurisdiction","BSCR Rating","Face Value","Fair Value","Average YTM","Effective Duration","Effective Convexity"]
[1,{"$f":"Import!#REF!","v":{"$error":"#REF!"}},{"$f":"Import!#REF!","v":{"$error":"#REF!"}},{"$f":"Import!#REF!","v":{"$error":"#REF!"}},{"$f":"Import!#REF!","v":{"$error":"#REF!"}},{"$f":"Import!#REF!","v":{"$error":"#REF!"}},{"$f":"Import!#REF!","v":{"$error":"#REF!"}},{"$f":"Import!#REF!","v":{"$error":"#REF!"}},{"$f":"Import!#REF!","v":{"$error":"#REF!"}}]
[2,{"$f":"Import!#REF!","v":{"$error":"#REF!"}},{"$f":"Import!#REF!","v":{"$error":"#REF!"}},{"$f":"Import!#REF!","v":{"$error":"#REF!"}},{"$f":"Import!#REF!","v":{"$error":"#REF!"}},{"$f":"Import!#REF!","v":{"$error":"#REF!"}},{"$f":"Import!#REF!","v":{"$error":"#REF!"}},{"$f":"Import!#REF!","v":{"$error":"#REF!"}},{"$f":"Import!#REF!","v":{"$error":"#REF!"}}]
[3,{"$f":"Import!#REF!","v":{"$error":"#REF!"}},{"$f":"Import!#REF!","v":{"$error":"#REF!"}},{"$f":"Import!#REF!","v":{"$error":"#REF!"}},{"$f":"Import!#REF!","v":{"$error":"#REF!"}},{"$f":"Import!#REF!","v":{"$error":"#REF!"}},{"$f":"Import!#REF!","v":{"$error":"#REF!"}},{"$f":"Import!#REF!","v":{"$error":"#REF!"}},{"$f":"Import!#REF!","v":{"$error":"#REF!"}}]
[4,{"$f":"Import!#REF!","v":{"$error":"#REF!"}},{"$f":"Import!#REF!","v":{"$error":"#REF!"}},{"$f":"Import!#REF!","v":{"$error":"#REF!"}},{"$f":"Import!#REF!","v":{"$error":"#REF!"}},{"$f":"Import!#REF!","v":{"$error":"#REF!"}},{"$f":"Import!#REF!","v":{"$error":"#REF!"}},{"$f":"Import!#REF!","v":{"$error":"#REF!"}},{"$f":"Import!#REF!","v":{"$error":"#REF!"}}]
[5,{"$f":"Import!#REF!","v":{"$error":"#REF!"}},{"$f":"Import!#REF!","v":{"$error":"#REF!"}},{"$f":"Import!#REF!","v":{"$error":"#REF!"}},{"$f":"Import!#REF!","v":{"$error":"#REF!"}},{"$f":"Import!#REF!","v":{"$error":"#REF!"}},{"$f":"Import!#REF!","v":{"$error":"#REF!"}},{"$f":"Import!#REF!","v":{"$error":"#REF!"}},{"$f":"Import!#REF!","v":{"$error":"#REF!"}}]
[6,{"$f":"Import!#REF!","v":{"$error":"#REF!"}},{"$f":"Import!#REF!","v":{"$error":"#REF!"}},{"$f":"Import!#REF!","v":{"$error":"#REF!"}},{"$f":"Import!#REF!","v":{"$error":"#REF!"}},{"$f":"Import!#REF!","v":{"$error":"#REF!"}},{"$f":"Import!#REF!","v":{"$error":"#REF!"}},{"$f":"Import!#REF!","v":{"$error":"#REF!"}},{"$f":"Import!#REF!","v":{"$error":"#REF!"}}]
[7,{"$f":"Import!#REF!","v":{"$error":"#REF!"}},{"$f":"Import!#REF!","v":{"$error":"#REF!"}},{"$f":"Import!#REF!","v":{"$error":"#REF!"}},{"$f":"Import!#REF!","v":{"$error":"#REF!"}},{"$f":"Import!#REF!","v":{"$error":"#REF!"}},{"$f":"Import!#REF!","v":{"$error":"#REF!"}},{"$f":"Import!#REF!","v":{"$error":"#REF!"}},{"$f":"Import!#REF!","v":{"$error":"#REF!"}}]
[8,{"$f":"Import!#REF!","v":{"$error":"#REF!"}},{"$f":"Import!#REF!","v":{"$error":"#REF!"}},{"$f":"Import!#REF!","v":{"$error":"#REF!"}},{"$f":"Import!#REF!","v":{"$error":"#REF!"}},{"$f":"Import!#REF!","v":{"$error":"#REF!"}},{"$f":"Import!#REF!","v":{"$error":"#REF!"}},{"$f":"Import!#REF!","v":{"$error":"#REF!"}},{"$f":"Import!#REF!","v":{"$error":"#REF!"}}]
[9,{"$f":"Import!#REF!","v":{"$error":"#REF!"}},{"$f":"Import!#REF!","v":{"$error":"#REF!"}},{"$f":"Import!#REF!","v":{"$error":"#REF!"}},{"$f":"Import!#REF!","v":{"$error":"#REF!"}},{"$f":"Import!#REF!","v":{"$error":"#REF!"}},{"$f":"Import!#REF!","v":{"$error":"#REF!"}},{"$f":"Import!#REF!","v":{"$error":"#REF!"}},{"$f":"Import!#REF!","v":{"$error":"#REF!"}}]
[10,{"$f":"Import!#REF!","v":{"$error":"#REF!"}},{"$f":"Import!#REF!","v":{"$error":"#REF!"}},{"$f":"Import!#REF!","v":{"$error":"#REF!"}},{"$f":"Import!#REF!","v":{"$error":"#REF!"}},{"$f":"Import!#REF!","v":{"$error":"#REF!"}},{"$f":"Import!#REF!","v":{"$error":"#REF!"}},{"$f":"Import!#REF!","v":{"$error":"#REF!"}},{"$f":"Import!#REF!","v":{"$error":"#REF!"}}]
[11,{"$f":"Import!#REF!","v":{"$error":"#REF!"}},{"$f":"Import!#REF!","v":{"$error":"#REF!"}},{"$f":"Import!#REF!","v":{"$error":"#REF!"}},{"$f":"Import!#REF!","v":{"$error":"#REF!"}},{"$f":"Import!#REF!","v":{"$error":"#REF!"}},{"$f":"Import!#REF!","v":{"$error":"#REF!"}},{"$f":"Import!#REF!","v":{"$error":"#REF!"}},{"$f":"Import!#REF!","v":{"$error":"#REF!"}}]
[12,{"$f":"Import!#REF!","v":{"$error":"#REF!"}},{"$f":"Import!#REF!","v":{"$error":"#REF!"}},{"$f":"Import!#REF!","v":{"$error":"#REF!"}},{"$f":"Import!#REF!","v":{"$error":"#REF!"}},{"$f":"Import!#REF!","v":{"$error":"#REF!"}},{"$f":"Import!#REF!","v":{"$error":"#REF!"}},{"$f":"Import!#REF!","v":{"$error":"#REF!"}},{"$f":"Import!#REF!","v":{"$error":"#REF!"}}]
[13,{"$f":"Import!#REF!","v":{"$error":"#REF!"}},{"$f":"Import!#REF!","v":{"$error":"#REF!"}},{"$f":"Import!#REF!","v":{"$error":"#REF!"}},{"$f":"Import!#REF!","v":{"$error":"#REF!"}},{"$f":"Import!#REF!","v":{"$error":"#REF!"}},{"$f":"Import!#REF!","v":{"$error":"#REF!"}},{"$f":"Import!#REF!","v":{"$error":"#REF!"}},{"$f":"Import!#REF!","v":{"$error":"#REF!"}}]
[14,{"$f":"Import!#REF!","v":{"$error":"#REF!"}},{"$f":"Import!#REF!","v":{"$error":"#REF!"}},{"$f":"Import!#REF!","v":{"$error":"#REF!"}},{"$f":"Import!#REF!","v":{"$error":"#REF!"}},{"$f":"Import!#REF!","v":{"$error":"#REF!"}},{"$f":"Import!#REF!","v":{"$error":"#REF!"}},{"$f":"Import!#REF!","v":{"$error":"#REF!"}},{"$f":"Import!#REF!","v":{"$error":"#REF!"}}]
[15,{"$f":"Import!#REF!","v":{"$error":"#REF!"}},{"$f":"Import!#REF!","v":{"$error":"#REF!"}},{"$f":"Import!#REF!","v":{"$error":"#REF!"}},{"$f":"Import!#REF!","v":{"$error":"#REF!"}},{"$f":"Import!#REF!","v":{"$error":"#REF!"}},{"$f":"Import!#REF!","v":{"$error":"#REF!"}},{"$f":"Import!#REF!","v":{"$error":"#REF!"}},{"$f":"Import!#REF!","v":{"$error":"#REF!"}}]
[16,{"$f":"Import!#REF!","v":{"$error":"#REF!"}},{"$f":"Import!#REF!","v":{"$error":"#REF!"}},{"$f":"Import!#REF!","v":{"$error":"#REF!"}},{"$f":"Import!#REF!","v":{"$error":"#REF!"}},{"$f":"Import!#REF!","v":{"$error":"#REF!"}},{"$f":"Import!#REF!","v":{"$error":"#REF!"}},{"$f":"Import!#REF!","v":{"$error":"#REF!"}},{"$f":"Import!#REF!","v":{"$error":"#REF!"}}]
[17,{"$f":"Import!#REF!","v":{"$error":"#REF!"}},{"$f":"Import!#REF!","v":{"$error":"#REF!"}},{"$f":"Import!#REF!","v":{"$error":"#REF!"}},{"$f":"Import!#REF!","v":{"$error":"#REF!"}},{"$f":"Import!#REF!","v":{"$error":"#REF!"}},{"$f":"Import!#REF!","v":{"$error":"#REF!"}},{"$f":"Import!#REF!","v":{"$error":"#REF!"}},{"$f":"Import!#REF!","v":{"$error":"#REF!"}}]
[18,{"$f":"Import!#REF!","v":{"$error":"#REF!"}},{"$f":"Import!#REF!","v":{"$error":"#REF!"}},{"$f":"Import!#REF!","v":{"$error":"#REF!"}},{"$f":"Import!#REF!","v":{"$error":"#REF!"}},{"$f":"Import!#REF!","v":{"$error":"#REF!"}},{"$f":"Import!#REF!","v":{"$error":"#REF!"}},{"$f":"Import!#REF!","v":{"$error":"#REF!"}},{"$f":"Import!#REF!","v":{"$error":"#REF!"}}]
[19,{"$f":"Import!#REF!","v":{"$error":"#REF!"}},{"$f":"Import!#REF!","v":{"$error":"#REF!"}},{"$f":"Import!#REF!","v":{"$error":"#REF!"}},{"$f":"Import!#REF!","v":{"$error":"#REF!"}},{"$f":"Import!#REF!","v":{"$error":"#REF!"}},{"$f":"Import!#REF!","v":{"$error":"#REF!"}},{"$f":"Import!#REF!","v":{"$error":"#REF!"}},{"$f":"Import!#REF!","v":{"$error":"#REF!"}}]
[20,{"$f":"Import!#REF!","v":{"$error":"#REF!"}},{"$f":"Import!#REF!","v":{"$error":"#REF!"}},{"$f":"Import!#REF!","v":{"$error":"#REF!"}},{"$f":"Import!#REF!","v":{"$error":"#REF!"}},{"$f":"Import!#REF!","v":{"$error":"#REF!"}},{"$f":"Import!#REF!","v":{"$error":"#REF!"}},{"$f":"Import!#REF!","v":{"$error":"#REF!"}},{"$f":"Import!#REF!","v":{"$error":"#REF!"}}]
[]
[null,"Total Bonds & Debentures",null,null,{"$f":"SUM(E46:E65)","v":{"$error":"#REF!"}},{"$f":"SUM(F46:F65)","v":{"$error":"#REF!"}},0,0,0]
[]
[null,"(C) SECURITIES/ASSET-BASED SECURITIES"]
[]
[null,null,"Enter # of Asset Types",4]
[]
[null,null,null,null,2021,2021]
[null,"Asset Type","Jurisdiction","BSCR Rating","Face Value","Fair Value","Average YTM","Effective Duration","Effective Convexity"]
[1,{"$f":"Import!#REF!","v":{"$error":"#REF!"}},{"$f":"Import!#REF!","v":{"$error":"#REF!"}},{"$f":"Import!#REF!","v":{"$error":"#REF!"}},{"$f":"Import!#REF!","v":{"$error":"#REF!"}},{"$f":"Import!#REF!","v":{"$error":"#REF!"}},{"$f":"Import!#REF!","v":{"$error":"#REF!"}},{"$f":"Import!#REF!","v":{"$error":"#REF!"}},{"$f":"Import!#REF!","v":{"$error":"#REF!"}}]
[2,{"$f":"Import!#REF!","v":{"$error":"#REF!"}},{"$f":"Import!#REF!","v":{"$error":"#REF!"}},{"$f":"Import!#REF!","v":{"$error":"#REF!"}},{"$f":"Import!#REF!","v":{"$error":"#REF!"}},{"$f":"Import!#REF!","v":{"$error":"#REF!"}},{"$f":"Import!#REF!","v":{"$error":"#REF!"}},{"$f":"Import!#REF!","v":{"$error":"#REF!"}},{"$f":"Import!#REF!","v":{"$error":"#REF!"}}]
[3,{"$f":"Import!#REF!","v":{"$error":"#REF!"}},{"$f":"Import!#REF!","v":{"$error":"#REF!"}},{"$f":"Import!#REF!","v":{"$error":"#REF!"}},{"$f":"Import!#REF!","v":{"$error":"#REF!"}},{"$f":"Import!#REF!","v":{"$error":"#REF!"}},{"$f":"Import!#REF!","v":{"$error":"#REF!"}},{"$f":"Import!#REF!","v":{"$error":"#REF!"}},{"$f":"Import!#REF!","v":{"$error":"#REF!"}}]
[4,{"$f":"Import!#REF!","v":{"$error":"#REF!"}},{"$f":"Import!#REF!","v":{"$error":"#REF!"}},{"$f":"Import!#REF!","v":{"$error":"#REF!"}},{"$f":"Import!#REF!","v":{"$error":"#REF!"}},{"$f":"Import!#REF!","v":{"$error":"#REF!"}},{"$f":"Import!#REF!","v":{"$error":"#REF!"}},{"$f":"Import!#REF!","v":{"$error":"#REF!"}},{"$f":"Import!#REF!","v":{"$error":"#REF!"}}]
[5,{"$f":"Import!#REF!","v":{"$error":"#REF!"}},{"$f":"Import!#REF!","v":{"$error":"#REF!"}},{"$f":"Import!#REF!","v":{"$error":"#REF!"}},{"$f":"Import!#REF!","v":{"$error":"#REF!"}},{"$f":"Import!#REF!","v":{"$error":"#REF!"}},{"$f":"Import!#REF!","v":{"$error":"#REF!"}},{"$f":"Import!#REF!","v":{"$error":"#REF!"}},{"$f":"Import!#REF!","v":{"$error":"#REF!"}}]
[6,{"$f":"Import!#REF!","v":{"$error":"#REF!"}},{"$f":"Import!#REF!","v":{"$error":"#REF!"}},{"$f":"Import!#REF!","v":{"$error":"#REF!"}},{"$f":"Import!#REF!","v":{"$error":"#REF!"}},{"$f":"Import!#REF!","v":{"$error":"#REF!"}},{"$f":"Import!#REF!","v":{"$error":"#REF!"}},{"$f":"Import!#REF!","v":{"$error":"#REF!"}},{"$f":"Import!#REF!","v":{"$error":"#REF!"}}]
[7,{"$f":"Import!#REF!","v":{"$error":"#REF!"}},{"$f":"Import!#REF!","v":{"$error":"#REF!"}},{"$f":"Import!#REF!","v":{"$error":"#REF!"}},{"$f":"Import!#REF!","v":{"$error":"#REF!"}},{"$f":"Import!#REF!","v":{"$error":"#REF!"}},{"$f":"Import!#REF!","v":{"$error":"#REF!"}},{"$f":"Import!#REF!","v":{"$error":"#REF!"}},{"$f":"Import!#REF!","v":{"$error":"#REF!"}}]
[8,{"$f":"Import!#REF!","v":{"$error":"#REF!"}},{"$f":"Import!#REF!","v":{"$error":"#REF!"}},{"$f":"Import!#REF!","v":{"$error":"#REF!"}},{"$f":"Import!#REF!","v":{"$error":"#REF!"}},{"$f":"Import!#REF!","v":{"$error":"#REF!"}},{"$f":"Import!#REF!","v":{"$error":"#REF!"}},{"$f":"Import!#REF!","v":{"$error":"#REF!"}},{"$f":"Import!#REF!","v":{"$error":"#REF!"}}]
[9,{"$f":"Import!#REF!","v":{"$error":"#REF!"}},{"$f":"Import!#REF!","v":{"$error":"#REF!"}},{"$f":"Import!#REF!","v":{"$error":"#REF!"}},{"$f":"Import!#REF!","v":{"$error":"#REF!"}},{"$f":"Import!#REF!","v":{"$error":"#REF!"}},{"$f":"Import!#REF!","v":{"$error":"#REF!"}},{"$f":"Import!#REF!","v":{"$error":"#REF!"}},{"$f":"Import!#REF!","v":{"$error":"#REF!"}}]
[10,{"$f":"Import!#REF!","v":{"$error":"#REF!"}},{"$f":"Import!#REF!","v":{"$error":"#REF!"}},{"$f":"Import!#REF!","v":{"$error":"#REF!"}},{"$f":"Import!#REF!","v":{"$error":"#REF!"}},{"$f":"Import!#REF!","v":{"$error":"#REF!"}},{"$f":"Import!#REF!","v":{"$error":"#REF!"}},{"$f":"Import!#REF!","v":{"$error":"#REF!"}},{"$f":"Import!#REF!","v":{"$error":"#REF!"}}]
[11,{"$f":"Import!#REF!","v":{"$error":"#REF!"}},{"$f":"Import!#REF!","v":{"$error":"#REF!"}},{"$f":"Import!#REF!","v":{"$error":"#REF!"}},{"$f":"Import!#REF!","v":{"$error":"#REF!"}},{"$f":"Import!#REF!","v":{"$error":"#REF!"}},{"$f":"Import!#REF!","v":{"$error":"#REF!"}},{"$f":"Import!#REF!","v":{"$error":"#REF!"}},{"$f":"Import!#REF!","v":{"$error":"#REF!"}}]
[12,{"$f":"Import!#REF!","v":{"$error":"#REF!"}},{"$f":"Import!#REF!","v":{"$error":"#REF!"}},{"$f":"Import!#REF!","v":{"$error":"#REF!"}},{"$f":"Import!#REF!","v":{"$error":"#REF!"}},{"$f":"Import!#REF!","v":{"$error":"#REF!"}},{"$f":"Import!#REF!","v":{"$error":"#REF!"}},{"$f":"Import!#REF!","v":{"$error":"#REF!"}},{"$f":"Import!#REF!","v":{"$error":"#REF!"}}]
[13,{"$f":"Import!#REF!","v":{"$error":"#REF!"}},{"$f":"Import!#REF!","v":{"$error":"#REF!"}},{"$f":"Import!#REF!","v":{"$error":"#REF!"}},{"$f":"Import!#REF!","v":{"$error":"#REF!"}},{"$f":"Import!#REF!","v":{"$error":"#REF!"}},{"$f":"Import!#REF!","v":{"$error":"#REF!"}},{"$f":"Import!#REF!","v":{"$error":"#REF!"}},{"$f":"Import!#REF!","v":{"$error":"#REF!"}}]
[14,{"$f":"Import!#REF!","v":{"$error":"#REF!"}},{"$f":"Import!#REF!","v":{"$error":"#REF!"}},{"$f":"Import!#REF!","v":{"$error":"#REF!"}},{"$f":"Import!#REF!","v":{"$error":"#REF!"}},{"$f":"Import!#REF!","v":{"$error":"#REF!"}},{"$f":"Import!#REF!","v":{"$error":"#REF!"}},{"$f":"Import!#REF!","v":{"$error":"#REF!"}},{"$f":"Import!#REF!","v":{"$error":"#REF!"}}]
[15,{"$f":"Import!#REF!","v":{"$error":"#REF!"}},{"$f":"Import!#REF!","v":{"$error":"#REF!"}},{"$f":"Import!#REF!","v":{"$error":"#REF!"}},{"$f":"Import!#REF!","v":{"$error":"#REF!"}},{"$f":"Import!#REF!","v":{"$error":"#REF!"}},{"$f":"Import!#REF!","v":{"$error":"#REF!"}},{"$f":"Import!#REF!","v":{"$error":"#REF!"}},{"$f":"Import!#REF!","v":{"$error":"#REF!"}}]
[16,{"$f":"Import!#REF!","v":{"$error":"#REF!"}},{"$f":"Import!#REF!","v":{"$error":"#REF!"}},{"$f":"Import!#REF!","v":{"$error":"#REF!"}},{"$f":"Import!#REF!","v":{"$error":"#REF!"}},{"$f":"Import!#REF!","v":{"$error":"#REF!"}},{"$f":"Import!#REF!","v":{"$error":"#REF!"}},{"$f":"Import!#REF!","v":{"$error":"#REF!"}},{"$f":"Import!#REF!","v":{"$error":"#REF!"}}]
[17,{"$f":"Import!#REF!","v":{"$error":"#REF!"}},{"$f":"Import!#REF!","v":{"$error":"#REF!"}},{"$f":"Import!#REF!","v":{"$error":"#REF!"}},{"$f":"Import!#REF!","v":{"$error":"#REF!"}},{"$f":"Import!#REF!","v":{"$error":"#REF!"}},{"$f":"Import!#REF!","v":{"$error":"#REF!"}},{"$f":"Import!#REF!","v":{"$error":"#REF!"}},{"$f":"Import!#REF!","v":{"$error":"#REF!"}}]
[18,{"$f":"Import!#REF!","v":{"$error":"#REF!"}},{"$f":"Import!#REF!","v":{"$error":"#REF!"}},{"$f":"Import!#REF!","v":{"$error":"#REF!"}},{"$f":"Import!#REF!","v":{"$error":"#REF!"}},{"$f":"Import!#REF!","v":{"$error":"#REF!"}},{"$f":"Import!#REF!","v":{"$error":"#REF!"}},{"$f":"Import!#REF!","v":{"$error":"#REF!"}},{"$f":"Import!#REF!","v":{"$error":"#REF!"}}]
[19,{"$f":"Import!#REF!","v":{"$error":"#REF!"}},{"$f":"Import!#REF!","v":{"$error":"#REF!"}},{"$f":"Import!#REF!","v":{"$error":"#REF!"}},{"$f":"Import!#REF!","v":{"$error":"#REF!"}},{"$f":"Import!#REF!","v":{"$error":"#REF!"}},{"$f":"Import!#REF!","v":{"$error":"#REF!"}},{"$f":"Import!#REF!","v":{"$error":"#REF!"}},{"$f":"Import!#REF!","v":{"$error":"#REF!"}}]
[20,{"$f":"Import!#REF!","v":{"$error":"#REF!"}},{"$f":"Import!#REF!","v":{"$error":"#REF!"}},{"$f":"Import!#REF!","v":{"$error":"#REF!"}},{"$f":"Import!#REF!","v":{"$error":"#REF!"}},{"$f":"Import!#REF!","v":{"$error":"#REF!"}},{"$f":"Import!#REF!","v":{"$error":"#REF!"}},{"$f":"Import!#REF!","v":{"$error":"#REF!"}},{"$f":"Import!#REF!","v":{"$error":"#REF!"}}]
[]
[null,"Total Securities/Asset-Backed Securities",null,null,{"$f":"SUM(E75:E94)","v":{"$error":"#REF!"}},{"$f":"SUM(F75:F94)","v":{"$error":"#REF!"}},0,0,0]
[]
[]
[]
[]
[]
[null,"(D) LISTED EQUITIES AND PREFERENCE SHARES"]
[]
[null,null,"Enter # of Asset Types",4]
[]
[null,null,null,null,2021,2021]
[null,"Asset Type","Stock Exchange","BSCR Rating","Face Value","Fair Value"]
[1,{"$f":"Import!#REF!","v":{"$error":"#REF!"}},{"$f":"Import!#REF!","v":{"$error":"#REF!"}},{"$f":"Import!#REF!","v":{"$error":"#REF!"}},{"$f":"Import!#REF!","v":{"$error":"#REF!"}},{"$f":"Import!#REF!","v":{"$error":"#REF!"}}]
[2,{"$f":"Import!#REF!","v":{"$error":"#REF!"}},{"$f":"Import!#REF!","v":{"$error":"#REF!"}},{"$f":"Import!#REF!","v":{"$error":"#REF!"}},{"$f":"Import!#REF!","v":{"$error":"#REF!"}},{"$f":"Import!#REF!","v":{"$error":"#REF!"}}]
[3,{"$f":"Import!#REF!","v":{"$error":"#REF!"}},{"$f":"Import!#REF!","v":{"$error":"#REF!"}},{"$f":"Import!#REF!","v":{"$error":"#REF!"}},{"$f":"Import!#REF!","v":{"$error":"#REF!"}},{"$f":"Import!#REF!","v":{"$error":"#REF!"}}]
[4,{"$f":"Import!#REF!","v":{"$error":"#REF!"}},{"$f":"Import!#REF!","v":{"$error":"#REF!"}},{"$f":"Import!#REF!","v":{"$error":"#REF!"}},{"$f":"Import!#REF!","v":{"$error":"#REF!"}},{"$f":"Import!#REF!","v":{"$error":"#REF!"}}]
[5,{"$f":"Import!#REF!","v":{"$error":"#REF!"}},{"$f":"Import!#REF!","v":{"$error":"#REF!"}},{"$f":"Import!#REF!","v":{"$error":"#REF!"}},{"$f":"Import!#REF!","v":{"$error":"#REF!"}},{"$f":"Import!#REF!","v":{"$error":"#REF!"}}]
[6,{"$f":"Import!#REF!","v":{"$error":"#REF!"}},{"$f":"Import!#REF!","v":{"$error":"#REF!"}},{"$f":"Import!#REF!","v":{"$error":"#REF!"}},{"$f":"Import!#REF!","v":{"$error":"#REF!"}},{"$f":"Import!#REF!","v":{"$error":"#REF!"}}]
[7,{"$f":"Import!#REF!","v":{"$error":"#REF!"}},{"$f":"Import!#REF!","v":{"$error":"#REF!"}},{"$f":"Import!#REF!","v":{"$error":"#REF!"}},{"$f":"Import!#REF!","v":{"$error":"#REF!"}},{"$f":"Import!#REF!","v":{"$error":"#REF!"}}]
[8,{"$f":"Import!#REF!","v":{"$error":"#REF!"}},{"$f":"Import!#REF!","v":{"$error":"#REF!"}},{"$f":"Import!#REF!","v":{"$error":"#REF!"}},{"$f":"Import!#REF!","v":{"$error":"#REF!"}},{"$f":"Import!#REF!","v":{"$error":"#REF!"}}]
[9,{"$f":"Import!#REF!","v":{"$error":"#REF!"}},{"$f":"Import!#REF!","v":{"$error":"#REF!"}},{"$f":"Import!#REF!","v":{"$error":"#REF!"}},{"$f":"Import!#REF!","v":{"$error":"#REF!"}},{"$f":"Import!#REF!","v":{"$error":"#REF!"}}]
[10,{"$f":"Import!#REF!","v":{"$error":"#REF!"}},{"$f":"Import!#REF!","v":{"$error":"#REF!"}},{"$f":"Import!#REF!","v":{"$error":"#REF!"}},{"$f":"Import!#REF!","v":{"$error":"#REF!"}},{"$f":"Import!#REF!","v":{"$error":"#REF!"}}]
[11,{"$f":"Import!#REF!","v":{"$error":"#REF!"}},{"$f":"Import!#REF!","v":{"$error":"#REF!"}},{"$f":"Import!#REF!","v":{"$error":"#REF!"}},{"$f":"Import!#REF!","v":{"$error":"#REF!"}},{"$f":"Import!#REF!","v":{"$error":"#REF!"}}]
[12,{"$f":"Import!#REF!","v":{"$error":"#REF!"}},{"$f":"Import!#REF!","v":{"$error":"#REF!"}},{"$f":"Import!#REF!","v":{"$error":"#REF!"}},{"$f":"Import!#REF!","v":{"$error":"#REF!"}},{"$f":"Import!#REF!","v":{"$error":"#REF!"}}]
[13,{"$f":"Import!#REF!","v":{"$error":"#REF!"}},{"$f":"Import!#REF!","v":{"$error":"#REF!"}},{"$f":"Import!#REF!","v":{"$error":"#REF!"}},{"$f":"Import!#REF!","v":{"$error":"#REF!"}},{"$f":"Import!#REF!","v":{"$error":"#REF!"}}]
[14,{"$f":"Import!#REF!","v":{"$error":"#REF!"}},{"$f":"Import!#REF!","v":{"$error":"#REF!"}},{"$f":"Import!#REF!","v":{"$error":"#REF!"}},{"$f":"Import!#REF!","v":{"$error":"#REF!"}},{"$f":"Import!#REF!","v":{"$error":"#REF!"}}]
[15,{"$f":"Import!#REF!","v":{"$error":"#REF!"}},{"$f":"Import!#REF!","v":{"$error":"#REF!"}},{"$f":"Import!#REF!","v":{"$error":"#REF!"}},{"$f":"Import!#REF!","v":{"$error":"#REF!"}},{"$f":"Import!#REF!","v":{"$error":"#REF!"}}]
[16,{"$f":"Import!#REF!","v":{"$error":"#REF!"}},{"$f":"Import!#REF!","v":{"$error":"#REF!"}},{"$f":"Import!#REF!","v":{"$error":"#REF!"}},{"$f":"Import!#REF!","v":{"$error":"#REF!"}},{"$f":"Import!#REF!","v":{"$error":"#REF!"}}]
[17,{"$f":"Import!#REF!","v":{"$error":"#REF!"}},{"$f":"Import!#REF!","v":{"$error":"#REF!"}},{"$f":"Import!#REF!","v":{"$error":"#REF!"}},{"$f":"Import!#REF!","v":{"$error":"#REF!"}},{"$f":"Import!#REF!","v":{"$error":"#REF!"}}]
[18,{"$f":"Import!#REF!","v":{"$error":"#REF!"}},{"$f":"Import!#REF!","v":{"$error":"#REF!"}},{"$f":"Import!#REF!","v":{"$error":"#REF!"}},{"$f":"Import!#REF!","v":{"$error":"#REF!"}},{"$f":"Import!#REF!","v":{"$error":"#REF!"}}]
[19,{"$f":"Import!#REF!","v":{"$error":"#REF!"}},{"$f":"Import!#REF!","v":{"$error":"#REF!"}},{"$f":"Import!#REF!","v":{"$error":"#REF!"}},{"$f":"Import!#REF!","v":{"$error":"#REF!"}},{"$f":"Import!#REF!","v":{"$error":"#REF!"}}]
[20,{"$f":"Import!#REF!","v":{"$error":"#REF!"}},{"$f":"Import!#REF!","v":{"$error":"#REF!"}},{"$f":"Import!#REF!","v":{"$error":"#REF!"}},{"$f":"Import!#REF!","v":{"$error":"#REF!"}},{"$f":"Import!#REF!","v":{"$error":"#REF!"}}]
[]
[null,"Total Listed Equities & Preference Shares",null,null,{"$f":"SUM(E108:E127)","v":{"$error":"#REF!"}},{"$f":"SUM(F108:F127)","v":{"$error":"#REF!"}}]
[]
[]
[]
[]
[]
[null,"(E) ALTERNATIVE INVESTMENTS"]
[]
[null,null,"Enter # of Asset Types",4]
[]
[null,null,null,null,2021,2021]
[]
[null,"Asset Type","Jurisdiction","BSCR Rating","Face Value","Fair Value","Average YTM","Effective Duration","Effective Convexity"]
[1,{"$f":"Import!#REF!","v":{"$error":"#REF!"}},{"$f":"Import!#REF!","v":{"$error":"#REF!"}},{"$f":"Import!#REF!","v":{"$error":"#REF!"}},{"$f":"Import!#REF!","v":{"$error":"#REF!"}},{"$f":"Import!#REF!","v":{"$error":"#REF!"}},{"$f":"Import!#REF!","v":{"$error":"#REF!"}},{"$f":"Import!#REF!","v":{"$error":"#REF!"}},{"$f":"Import!#REF!","v":{"$error":"#REF!"}}]
[2,{"$f":"Import!#REF!","v":{"$error":"#REF!"}},{"$f":"Import!#REF!","v":{"$error":"#REF!"}},{"$f":"Import!#REF!","v":{"$error":"#REF!"}},{"$f":"Import!#REF!","v":{"$error":"#REF!"}},{"$f":"Import!#REF!","v":{"$error":"#REF!"}},{"$f":"Import!#REF!","v":{"$error":"#REF!"}},{"$f":"Import!#REF!","v":{"$error":"#REF!"}},{"$f":"Import!#REF!","v":{"$error":"#REF!"}}]
[3,{"$f":"Import!#REF!","v":{"$error":"#REF!"}},{"$f":"Import!#REF!","v":{"$error":"#REF!"}},{"$f":"Import!#REF!","v":{"$error":"#REF!"}},{"$f":"Import!#REF!","v":{"$error":"#REF!"}},{"$f":"Import!#REF!","v":{"$error":"#REF!"}},{"$f":"Import!#REF!","v":{"$error":"#REF!"}},{"$f":"Import!#REF!","v":{"$error":"#REF!"}},{"$f":"Import!#REF!","v":{"$error":"#REF!"}}]
[4,{"$f":"Import!#REF!","v":{"$error":"#REF!"}},{"$f":"Import!#REF!","v":{"$error":"#REF!"}},{"$f":"Import!#REF!","v":{"$error":"#REF!"}},{"$f":"Import!#REF!","v":{"$error":"#REF!"}},{"$f":"Import!#REF!","v":{"$error":"#REF!"}},{"$f":"Import!#REF!","v":{"$error":"#REF!"}},{"$f":"Import!#REF!","v":{"$error":"#REF!"}},{"$f":"Import!#REF!","v":{"$error":"#REF!"}}]
[5,{"$f":"Import!#REF!","v":{"$error":"#REF!"}},{"$f":"Import!#REF!","v":{"$error":"#REF!"}},{"$f":"Import!#REF!","v":{"$error":"#REF!"}},{"$f":"Import!#REF!","v":{"$error":"#REF!"}},{"$f":"Import!#REF!","v":{"$error":"#REF!"}},{"$f":"Import!#REF!","v":{"$error":"#REF!"}},{"$f":"Import!#REF!","v":{"$error":"#REF!"}},{"$f":"Import!#REF!","v":{"$error":"#REF!"}}]
[6,{"$f":"Import!#REF!","v":{"$error":"#REF!"}},{"$f":"Import!#REF!","v":{"$error":"#REF!"}},{"$f":"Import!#REF!","v":{"$error":"#REF!"}},{"$f":"Import!#REF!","v":{"$error":"#REF!"}},{"$f":"Import!#REF!","v":{"$error":"#REF!"}},{"$f":"Import!#REF!","v":{"$error":"#REF!"}},{"$f":"Import!#REF!","v":{"$error":"#REF!"}},{"$f":"Import!#REF!","v":{"$error":"#REF!"}}]
[7,{"$f":"Import!#REF!","v":{"$error":"#REF!"}},{"$f":"Import!#REF!","v":{"$error":"#REF!"}},{"$f":"Import!#REF!","v":{"$error":"#REF!"}},{"$f":"Import!#REF!","v":{"$error":"#REF!"}},{"$f":"Import!#REF!","v":{"$error":"#REF!"}},{"$f":"Import!#REF!","v":{"$error":"#REF!"}},{"$f":"Import!#REF!","v":{"$error":"#REF!"}},{"$f":"Import!#REF!","v":{"$error":"#REF!"}}]
[8,{"$f":"Import!#REF!","v":{"$error":"#REF!"}},{"$f":"Import!#REF!","v":{"$error":"#REF!"}},{"$f":"Import!#REF!","v":{"$error":"#REF!"}},{"$f":"Import!#REF!","v":{"$error":"#REF!"}},{"$f":"Import!#REF!","v":{"$error":"#REF!"}},{"$f":"Import!#REF!","v":{"$error":"#REF!"}},{"$f":"Import!#REF!","v":{"$error":"#REF!"}},{"$f":"Import!#REF!","v":{"$error":"#REF!"}}]
[9,{"$f":"Import!#REF!","v":{"$error":"#REF!"}},{"$f":"Import!#REF!","v":{"$error":"#REF!"}},{"$f":"Import!#REF!","v":{"$error":"#REF!"}},{"$f":"Import!#REF!","v":{"$error":"#REF!"}},{"$f":"Import!#REF!","v":{"$error":"#REF!"}},{"$f":"Import!#REF!","v":{"$error":"#REF!"}},{"$f":"Import!#REF!","v":{"$error":"#REF!"}},{"$f":"Import!#REF!","v":{"$error":"#REF!"}}]
[10,{"$f":"Import!#REF!","v":{"$error":"#REF!"}},{"$f":"Import!#REF!","v":{"$error":"#REF!"}},{"$f":"Import!#REF!","v":{"$error":"#REF!"}},{"$f":"Import!#REF!","v":{"$error":"#REF!"}},{"$f":"Import!#REF!","v":{"$error":"#REF!"}},{"$f":"Import!#REF!","v":{"$error":"#REF!"}},{"$f":"Import!#REF!","v":{"$error":"#REF!"}},{"$f":"Import!#REF!","v":{"$error":"#REF!"}}]
[11,{"$f":"Import!#REF!","v":{"$error":"#REF!"}},{"$f":"Import!#REF!","v":{"$error":"#REF!"}},{"$f":"Import!#REF!","v":{"$error":"#REF!"}},{"$f":"Import!#REF!","v":{"$error":"#REF!"}},{"$f":"Import!#REF!","v":{"$error":"#REF!"}},{"$f":"Import!#REF!","v":{"$error":"#REF!"}},{"$f":"Import!#REF!","v":{"$error":"#REF!"}},{"$f":"Import!#REF!","v":{"$error":"#REF!"}}]
[12,{"$f":"Import!#REF!","v":{"$error":"#REF!"}},{"$f":"Import!#REF!","v":{"$error":"#REF!"}},{"$f":"Import!#REF!","v":{"$error":"#REF!"}},{"$f":"Import!#REF!","v":{"$error":"#REF!"}},{"$f":"Import!#REF!","v":{"$error":"#REF!"}},{"$f":"Import!#REF!","v":{"$error":"#REF!"}},{"$f":"Import!#REF!","v":{"$error":"#REF!"}},{"$f":"Import!#REF!","v":{"$error":"#REF!"}}]
[13,{"$f":"Import!#REF!","v":{"$error":"#REF!"}},{"$f":"Import!#REF!","v":{"$error":"#REF!"}},{"$f":"Import!#REF!","v":{"$error":"#REF!"}},{"$f":"Import!#REF!","v":{"$error":"#REF!"}},{"$f":"Import!#REF!","v":{"$error":"#REF!"}},{"$f":"Import!#REF!","v":{"$error":"#REF!"}},{"$f":"Import!#REF!","v":{"$error":"#REF!"}},{"$f":"Import!#REF!","v":{"$error":"#REF!"}}]
[14,{"$f":"Import!#REF!","v":{"$error":"#REF!"}},{"$f":"Import!#REF!","v":{"$error":"#REF!"}},{"$f":"Import!#REF!","v":{"$error":"#REF!"}},{"$f":"Import!#REF!","v":{"$error":"#REF!"}},{"$f":"Import!#REF!","v":{"$error":"#REF!"}},{"$f":"Import!#REF!","v":{"$error":"#REF!"}},{"$f":"Import!#REF!","v":{"$error":"#REF!"}},{"$f":"Import!#REF!","v":{"$error":"#REF!"}}]
[15,{"$f":"Import!#REF!","v":{"$error":"#REF!"}},{"$f":"Import!#REF!","v":{"$error":"#REF!"}},{"$f":"Import!#REF!","v":{"$error":"#REF!"}},{"$f":"Import!#REF!","v":{"$error":"#REF!"}},{"$f":"Import!#REF!","v":{"$error":"#REF!"}},{"$f":"Import!#REF!","v":{"$error":"#REF!"}},{"$f":"Import!#REF!","v":{"$error":"#REF!"}},{"$f":"Import!#REF!","v":{"$error":"#REF!"}}]
[16,{"$f":"Import!#REF!","v":{"$error":"#REF!"}},{"$f":"Import!#REF!","v":{"$error":"#REF!"}},{"$f":"Import!#REF!","v":{"$error":"#REF!"}},{"$f":"Import!#REF!","v":{"$error":"#REF!"}},{"$f":"Import!#REF!","v":{"$error":"#REF!"}},{"$f":"Import!#REF!","v":{"$error":"#REF!"}},{"$f":"Import!#REF!","v":{"$error":"#REF!"}},{"$f":"Import!#REF!","v":{"$error":"#REF!"}}]
[17,{"$f":"Import!#REF!","v":{"$error":"#REF!"}},{"$f":"Import!#REF!","v":{"$error":"#REF!"}},{"$f":"Import!#REF!","v":{"$error":"#REF!"}},{"$f":"Import!#REF!","v":{"$error":"#REF!"}},{"$f":"Import!#REF!","v":{"$error":"#REF!"}},{"$f":"Import!#REF!","v":{"$error":"#REF!"}},{"$f":"Import!#REF!","v":{"$error":"#REF!"}},{"$f":"Import!#REF!","v":{"$error":"#REF!"}}]
[18,{"$f":"Import!#REF!","v":{"$error":"#REF!"}},{"$f":"Import!#REF!","v":{"$error":"#REF!"}},{"$f":"Import!#REF!","v":{"$error":"#REF!"}},{"$f":"Import!#REF!","v":{"$error":"#REF!"}},{"$f":"Import!#REF!","v":{"$error":"#REF!"}},{"$f":"Import!#REF!","v":{"$error":"#REF!"}},{"$f":"Import!#REF!","v":{"$error":"#REF!"}},{"$f":"Import!#REF!","v":{"$error":"#REF!"}}]
[19,{"$f":"Import!#REF!","v":{"$error":"#REF!"}},{"$f":"Import!#REF!","v":{"$error":"#REF!"}},{"$f":"Import!#REF!","v":{"$error":"#REF!"}},{"$f":"Import!#REF!","v":{"$error":"#REF!"}},{"$f":"Import!#REF!","v":{"$error":"#REF!"}},{"$f":"Import!#REF!","v":{"$error":"#REF!"}},{"$f":"Import!#REF!","v":{"$error":"#REF!"}},{"$f":"Import!#REF!","v":{"$error":"#REF!"}}]
[20,{"$f":"Import!#REF!","v":{"$error":"#REF!"}},{"$f":"Import!#REF!","v":{"$error":"#REF!"}},{"$f":"Import!#REF!","v":{"$error":"#REF!"}},{"$f":"Import!#REF!","v":{"$error":"#REF!"}},{"$f":"Import!#REF!","v":{"$error":"#REF!"}},{"$f":"Import!#REF!","v":{"$error":"#REF!"}},{"$f":"Import!#REF!","v":{"$error":"#REF!"}},{"$f":"Import!#REF!","v":{"$error":"#REF!"}}]
[]
[null,"Total Alternative Investments",null,null,{"$f":"SUM(E142:E161)","v":{"$error":"#REF!"}},{"$f":"SUM(F142:F161)","v":{"$error":"#REF!"}},0,0,0]
[]
[]
[]
[]
[]
[null,"(F) LOANS"]
[]
[null,null,"Enter # of Asset Types",4]
[]
[null,null,null,null,2021,2021]
[null,"Asset Type","Jurisdiction","BSCR Rating","Face Value","Fair Value","Average YTM","Effective Duration","Effective Convexity"]
[null,{"$f":"Import!#REF!","v":{"$error":"#REF!"}},{"$f":"Import!#REF!","v":{"$error":"#REF!"}},{"$f":"Import!#REF!","v":{"$error":"#REF!"}},{"$f":"Import!#REF!","v":{"$error":"#REF!"}},{"$f":"Import!#REF!","v":{"$error":"#REF!"}},{"$f":"Import!#REF!","v":{"$error":"#REF!"}},{"$f":"Import!#REF!","v":{"$error":"#REF!"}},{"$f":"Import!#REF!","v":{"$error":"#REF!"}}]
[null,{"$f":"Import!#REF!","v":{"$error":"#REF!"}},{"$f":"Import!#REF!","v":{"$error":"#REF!"}},{"$f":"Import!#REF!","v":{"$error":"#REF!"}},{"$f":"Import!#REF!","v":{"$error":"#REF!"}},{"$f":"Import!#REF!","v":{"$error":"#REF!"}},{"$f":"Import!#REF!","v":{"$error":"#REF!"}},{"$f":"Import!#REF!","v":{"$error":"#REF!"}},{"$f":"Import!#REF!","v":{"$error":"#REF!"}}]
[null,{"$f":"Import!#REF!","v":{"$error":"#REF!"}},{"$f":"Import!#REF!","v":{"$error":"#REF!"}},{"$f":"Import!#REF!","v":{"$error":"#REF!"}},{"$f":"Import!#REF!","v":{"$error":"#REF!"}},{"$f":"Import!#REF!","v":{"$error":"#REF!"}},{"$f":"Import!#REF!","v":{"$error":"#REF!"}},{"$f":"Import!#REF!","v":{"$error":"#REF!"}},{"$f":"Import!#REF!","v":{"$error":"#REF!"}}]
[null,{"$f":"Import!#REF!","v":{"$error":"#REF!"}},{"$f":"Import!#REF!","v":{"$error":"#REF!"}},{"$f":"Import!#REF!","v":{"$error":"#REF!"}},{"$f":"Import!#REF!","v":{"$error":"#REF!"}},{"$f":"Import!#REF!","v":{"$error":"#REF!"}},{"$f":"Import!#REF!","v":{"$error":"#REF!"}},{"$f":"Import!#REF!","v":{"$error":"#REF!"}},{"$f":"Import!#REF!","v":{"$error":"#REF!"}}]
[null,{"$f":"Import!#REF!","v":{"$error":"#REF!"}},{"$f":"Import!#REF!","v":{"$error":"#REF!"}},{"$f":"Import!#REF!","v":{"$error":"#REF!"}},{"$f":"Import!#REF!","v":{"$error":"#REF!"}},{"$f":"Import!#REF!","v":{"$error":"#REF!"}},{"$f":"Import!#REF!","v":{"$error":"#REF!"}},{"$f":"Import!#REF!","v":{"$error":"#REF!"}},{"$f":"Import!#REF!","v":{"$error":"#REF!"}}]
[null,{"$f":"Import!#REF!","v":{"$error":"#REF!"}},{"$f":"Import!#REF!","v":{"$error":"#REF!"}},{"$f":"Import!#REF!","v":{"$error":"#REF!"}},{"$f":"Import!#REF!","v":{"$error":"#REF!"}},{"$f":"Import!#REF!","v":{"$error":"#REF!"}},{"$f":"Import!#REF!","v":{"$error":"#REF!"}},{"$f":"Import!#REF!","v":{"$error":"#REF!"}},{"$f":"Import!#REF!","v":{"$error":"#REF!"}}]
[null,{"$f":"Import!#REF!","v":{"$error":"#REF!"}},{"$f":"Import!#REF!","v":{"$error":"#REF!"}},{"$f":"Import!#REF!","v":{"$error":"#REF!"}},{"$f":"Import!#REF!","v":{"$error":"#REF!"}},{"$f":"Import!#REF!","v":{"$error":"#REF!"}},{"$f":"Import!#REF!","v":{"$error":"#REF!"}},{"$f":"Import!#REF!","v":{"$error":"#REF!"}},{"$f":"Import!#REF!","v":{"$error":"#REF!"}}]
[null,{"$f":"Import!#REF!","v":{"$error":"#REF!"}},{"$f":"Import!#REF!","v":{"$error":"#REF!"}},{"$f":"Import!#REF!","v":{"$error":"#REF!"}},{"$f":"Import!#REF!","v":{"$error":"#REF!"}},{"$f":"Import!#REF!","v":{"$error":"#REF!"}},{"$f":"Import!#REF!","v":{"$error":"#REF!"}},{"$f":"Import!#REF!","v":{"$error":"#REF!"}},{"$f":"Import!#REF!","v":{"$error":"#REF!"}}]
[null,{"$f":"Import!#REF!","v":{"$error":"#REF!"}},{"$f":"Import!#REF!","v":{"$error":"#REF!"}},{"$f":"Import!#REF!","v":{"$error":"#REF!"}},{"$f":"Import!#REF!","v":{"$error":"#REF!"}},{"$f":"Import!#REF!","v":{"$error":"#REF!"}},{"$f":"Import!#REF!","v":{"$error":"#REF!"}},{"$f":"Import!#REF!","v":{"$error":"#REF!"}},{"$f":"Import!#REF!","v":{"$error":"#REF!"}}]
[null,{"$f":"Import!#REF!","v":{"$error":"#REF!"}},{"$f":"Import!#REF!","v":{"$error":"#REF!"}},{"$f":"Import!#REF!","v":{"$error":"#REF!"}},{"$f":"Import!#REF!","v":{"$error":"#REF!"}},{"$f":"Import!#REF!","v":{"$error":"#REF!"}},{"$f":"Import!#REF!","v":{"$error":"#REF!"}},{"$f":"Import!#REF!","v":{"$error":"#REF!"}},{"$f":"Import!#REF!","v":{"$error":"#REF!"}}]
[null,{"$f":"Import!#REF!","v":{"$error":"#REF!"}},{"$f":"Import!#REF!","v":{"$error":"#REF!"}},{"$f":"Import!#REF!","v":{"$error":"#REF!"}},{"$f":"Import!#REF!","v":{"$error":"#REF!"}},{"$f":"Import!#REF!","v":{"$error":"#REF!"}},{"$f":"Import!#REF!","v":{"$error":"#REF!"}},{"$f":"Import!#REF!","v":{"$error":"#REF!"}},{"$f":"Import!#REF!","v":{"$error":"#REF!"}}]
[null,{"$f":"Import!#REF!","v":{"$error":"#REF!"}},{"$f":"Import!#REF!","v":{"$error":"#REF!"}},{"$f":"Import!#REF!","v":{"$error":"#REF!"}},{"$f":"Import!#REF!","v":{"$error":"#REF!"}},{"$f":"Import!#REF!","v":{"$error":"#REF!"}},{"$f":"Import!#REF!","v":{"$error":"#REF!"}},{"$f":"Import!#REF!","v":{"$error":"#REF!"}},{"$f":"Import!#REF!","v":{"$error":"#REF!"}}]
[null,{"$f":"Import!#REF!","v":{"$error":"#REF!"}},{"$f":"Import!#REF!","v":{"$error":"#REF!"}},{"$f":"Import!#REF!","v":{"$error":"#REF!"}},{"$f":"Import!#REF!","v":{"$error":"#REF!"}},{"$f":"Import!#REF!","v":{"$error":"#REF!"}},{"$f":"Import!#REF!","v":{"$error":"#REF!"}},{"$f":"Import!#REF!","v":{"$error":"#REF!"}},{"$f":"Import!#REF!","v":{"$error":"#REF!"}}]
[null,{"$f":"Import!#REF!","v":{"$error":"#REF!"}},{"$f":"Import!#REF!","v":{"$error":"#REF!"}},{"$f":"Import!#REF!","v":{"$error":"#REF!"}},{"$f":"Import!#REF!","v":{"$error":"#REF!"}},{"$f":"Import!#REF!","v":{"$error":"#REF!"}},{"$f":"Import!#REF!","v":{"$error":"#REF!"}},{"$f":"Import!#REF!","v":{"$error":"#REF!"}},{"$f":"Import!#REF!","v":{"$error":"#REF!"}}]
[null,{"$f":"Import!#REF!","v":{"$error":"#REF!"}},{"$f":"Import!#REF!","v":{"$error":"#REF!"}},{"$f":"Import!#REF!","v":{"$error":"#REF!"}},{"$f":"Import!#REF!","v":{"$error":"#REF!"}},{"$f":"Import!#REF!","v":{"$error":"#REF!"}},{"$f":"Import!#REF!","v":{"$error":"#REF!"}},{"$f":"Import!#REF!","v":{"$error":"#REF!"}},{"$f":"Import!#REF!","v":{"$error":"#REF!"}}]
[null,{"$f":"Import!#REF!","v":{"$error":"#REF!"}},{"$f":"Import!#REF!","v":{"$error":"#REF!"}},{"$f":"Import!#REF!","v":{"$error":"#REF!"}},{"$f":"Import!#REF!","v":{"$error":"#REF!"}},{"$f":"Import!#REF!","v":{"$error":"#REF!"}},{"$f":"Import!#REF!","v":{"$error":"#REF!"}},{"$f":"Import!#REF!","v":{"$error":"#REF!"}},{"$f":"Import!#REF!","v":{"$error":"#REF!"}}]
[null,{"$f":"Import!#REF!","v":{"$error":"#REF!"}},{"$f":"Import!#REF!","v":{"$error":"#REF!"}},{"$f":"Import!#REF!","v":{"$error":"#REF!"}},{"$f":"Import!#REF!","v":{"$error":"#REF!"}},{"$f":"Import!#REF!","v":{"$error":"#REF!"}},{"$f":"Import!#REF!","v":{"$error":"#REF!"}},{"$f":"Import!#REF!","v":{"$error":"#REF!"}},{"$f":"Import!#REF!","v":{"$error":"#REF!"}}]
[null,{"$f":"Import!#REF!","v":{"$error":"#REF!"}},{"$f":"Import!#REF!","v":{"$error":"#REF!"}},{"$f":"Import!#REF!","v":{"$error":"#REF!"}},{"$f":"Import!#REF!","v":{"$error":"#REF!"}},{"$f":"Import!#REF!","v":{"$error":"#REF!"}},{"$f":"Import!#REF!","v":{"$error":"#REF!"}},{"$f":"Import!#REF!","v":{"$error":"#REF!"}},{"$f":"Import!#REF!","v":{"$error":"#REF!"}}]
[null,{"$f":"Import!#REF!","v":{"$error":"#REF!"}},{"$f":"Import!#REF!","v":{"$error":"#REF!"}},{"$f":"Import!#REF!","v":{"$error":"#REF!"}},{"$f":"Import!#REF!","v":{"$error":"#REF!"}},{"$f":"Import!#REF!","v":{"$error":"#REF!"}},{"$f":"Import!#REF!","v":{"$error":"#REF!"}},{"$f":"Import!#REF!","v":{"$error":"#REF!"}},{"$f":"Import!#REF!","v":{"$error":"#REF!"}}]
[null,{"$f":"Import!#REF!","v":{"$error":"#REF!"}},{"$f":"Import!#REF!","v":{"$error":"#REF!"}},{"$f":"Import!#REF!","v":{"$error":"#REF!"}},{"$f":"Import!#REF!","v":{"$error":"#REF!"}},{"$f":"Import!#REF!","v":{"$error":"#REF!"}},{"$f":"Import!#REF!","v":{"$error":"#REF!"}},{"$f":"Import!#REF!","v":{"$error":"#REF!"}},{"$f":"Import!#REF!","v":{"$error":"#REF!"}}]
[]
[null,"Total Loans",null,null,{"$f":"SUM(E175:E194)","v":{"$error":"#REF!"}},{"$f":"SUM(F175:F194)","v":{"$error":"#REF!"}},0,0,0]
[]
[]
[]
[]
[]
[null,"(G) REAL ESTATE"]
[]
[null,null,"Enter # of Asset Types",4]
[]
[null,null,null,null,2021,2021]
[]
[null,"Asset Type","Jurisdiction","Purpose","Face Value","Fair Value"]
[null,{"$f":"Import!#REF!","v":{"$error":"#REF!"}},{"$f":"Import!#REF!","v":{"$error":"#REF!"}},{"$f":"Import!#REF!","v":{"$error":"#REF!"}},{"$f":"Import!#REF!","v":{"$error":"#REF!"}},{"$f":"Import!#REF!","v":{"$error":"#REF!"}}]
[null,{"$f":"Import!#REF!","v":{"$error":"#REF!"}},{"$f":"Import!#REF!","v":{"$error":"#REF!"}},{"$f":"Import!#REF!","v":{"$error":"#REF!"}},{"$f":"Import!#REF!","v":{"$error":"#REF!"}},{"$f":"Import!#REF!","v":{"$error":"#REF!"}}]
[null,{"$f":"Import!#REF!","v":{"$error":"#REF!"}},{"$f":"Import!#REF!","v":{"$error":"#REF!"}},{"$f":"Import!#REF!","v":{"$error":"#REF!"}},{"$f":"Import!#REF!","v":{"$error":"#REF!"}},{"$f":"Import!#REF!","v":{"$error":"#REF!"}}]
[null,{"$f":"Import!#REF!","v":{"$error":"#REF!"}},{"$f":"Import!#REF!","v":{"$error":"#REF!"}},{"$f":"Import!#REF!","v":{"$error":"#REF!"}},{"$f":"Import!#REF!","v":{"$error":"#REF!"}},{"$f":"Import!#REF!","v":{"$error":"#REF!"}}]
[null,{"$f":"Import!#REF!","v":{"$error":"#REF!"}},{"$f":"Import!#REF!","v":{"$error":"#REF!"}},{"$f":"Import!#REF!","v":{"$error":"#REF!"}},{"$f":"Import!#REF!","v":{"$error":"#REF!"}},{"$f":"Import!#REF!","v":{"$error":"#REF!"}}]
[null,{"$f":"Import!#REF!","v":{"$error":"#REF!"}},{"$f":"Import!#REF!","v":{"$error":"#REF!"}},{"$f":"Import!#REF!","v":{"$error":"#REF!"}},{"$f":"Import!#REF!","v":{"$error":"#REF!"}},{"$f":"Import!#REF!","v":{"$error":"#REF!"}}]
[null,{"$f":"Import!#REF!","v":{"$error":"#REF!"}},{"$f":"Import!#REF!","v":{"$error":"#REF!"}},{"$f":"Import!#REF!","v":{"$error":"#REF!"}},{"$f":"Import!#REF!","v":{"$error":"#REF!"}},{"$f":"Import!#REF!","v":{"$error":"#REF!"}}]
[null,{"$f":"Import!#REF!","v":{"$error":"#REF!"}},{"$f":"Import!#REF!","v":{"$error":"#REF!"}},{"$f":"Import!#REF!","v":{"$error":"#REF!"}},{"$f":"Import!#REF!","v":{"$error":"#REF!"}},{"$f":"Import!#REF!","v":{"$error":"#REF!"}}]
[null,{"$f":"Import!#REF!","v":{"$error":"#REF!"}},{"$f":"Import!#REF!","v":{"$error":"#REF!"}},{"$f":"Import!#REF!","v":{"$error":"#REF!"}},{"$f":"Import!#REF!","v":{"$error":"#REF!"}},{"$f":"Import!#REF!","v":{"$error":"#REF!"}}]
[null,{"$f":"Import!#REF!","v":{"$error":"#REF!"}},{"$f":"Import!#REF!","v":{"$error":"#REF!"}},{"$f":"Import!#REF!","v":{"$error":"#REF!"}},{"$f":"Import!#REF!","v":{"$error":"#REF!"}},{"$f":"Import!#REF!","v":{"$error":"#REF!"}}]
[null,{"$f":"Import!#REF!","v":{"$error":"#REF!"}},{"$f":"Import!#REF!","v":{"$error":"#REF!"}},{"$f":"Import!#REF!","v":{"$error":"#REF!"}},{"$f":"Import!#REF!","v":{"$error":"#REF!"}},{"$f":"Import!#REF!","v":{"$error":"#REF!"}}]
[null,{"$f":"Import!#REF!","v":{"$error":"#REF!"}},{"$f":"Import!#REF!","v":{"$error":"#REF!"}},{"$f":"Import!#REF!","v":{"$error":"#REF!"}},{"$f":"Import!#REF!","v":{"$error":"#REF!"}},{"$f":"Import!#REF!","v":{"$error":"#REF!"}}]
[null,{"$f":"Import!#REF!","v":{"$error":"#REF!"}},{"$f":"Import!#REF!","v":{"$error":"#REF!"}},{"$f":"Import!#REF!","v":{"$error":"#REF!"}},{"$f":"Import!#REF!","v":{"$error":"#REF!"}},{"$f":"Import!#REF!","v":{"$error":"#REF!"}}]
[null,{"$f":"Import!#REF!","v":{"$error":"#REF!"}},{"$f":"Import!#REF!","v":{"$error":"#REF!"}},{"$f":"Import!#REF!","v":{"$error":"#REF!"}},{"$f":"Import!#REF!","v":{"$error":"#REF!"}},{"$f":"Import!#REF!","v":{"$error":"#REF!"}}]
[null,{"$f":"Import!#REF!","v":{"$error":"#REF!"}},{"$f":"Import!#REF!","v":{"$error":"#REF!"}},{"$f":"Import!#REF!","v":{"$error":"#REF!"}},{"$f":"Import!#REF!","v":{"$error":"#REF!"}},{"$f":"Import!#REF!","v":{"$error":"#REF!"}}]
[null,{"$f":"Import!#REF!","v":{"$error":"#REF!"}},{"$f":"Import!#REF!","v":{"$error":"#REF!"}},{"$f":"Import!#REF!","v":{"$error":"#REF!"}},{"$f":"Import!#REF!","v":{"$error":"#REF!"}},{"$f":"Import!#REF!","v":{"$error":"#REF!"}}]
[null,{"$f":"Import!#REF!","v":{"$error":"#REF!"}},{"$f":"Import!#REF!","v":{"$error":"#REF!"}},{"$f":"Import!#REF!","v":{"$error":"#REF!"}},{"$f":"Import!#REF!","v":{"$error":"#REF!"}},{"$f":"Import!#REF!","v":{"$error":"#REF!"}}]
[null,{"$f":"Import!#REF!","v":{"$error":"#REF!"}},{"$f":"Import!#REF!","v":{"$error":"#REF!"}},{"$f":"Import!#REF!","v":{"$error":"#REF!"}},{"$f":"Import!#REF!","v":{"$error":"#REF!"}},{"$f":"Import!#REF!","v":{"$error":"#REF!"}}]
[null,{"$f":"Import!#REF!","v":{"$error":"#REF!"}},{"$f":"Import!#REF!","v":{"$error":"#REF!"}},{"$f":"Import!#REF!","v":{"$error":"#REF!"}},{"$f":"Import!#REF!","v":{"$error":"#REF!"}},{"$f":"Import!#REF!","v":{"$error":"#REF!"}}]
[null,{"$f":"Import!#REF!","v":{"$error":"#REF!"}},{"$f":"Import!#REF!","v":{"$error":"#REF!"}},{"$f":"Import!#REF!","v":{"$error":"#REF!"}},{"$f":"Import!#REF!","v":{"$error":"#REF!"}},{"$f":"Import!#REF!","v":{"$error":"#REF!"}}]
[]
[null,"Total Real Estate",null,null,{"$f":"SUM(E209:E228)","v":{"$error":"#REF!"}},{"$f":"SUM(F209:F228)","v":{"$error":"#REF!"}}]
[]
[]
[]
[]
[]
[null,"(H) DERIVATIVES"]
[]
[null,null,"Enter # of Derivative Types",4]
[]
[null,"Derivative Type","Underlying","Purpose","Position"," 2021       Market Value","Centrally Cleared","Notional Value","Exposure (Dollar Delta, DV01, CS01"]
[null,{"$f":"Import!#REF!","v":{"$error":"#REF!"}},{"$f":"Import!#REF!","v":{"$error":"#REF!"}},{"$f":"Import!#REF!","v":{"$error":"#REF!"}},{"$f":"Import!#REF!","v":{"$error":"#REF!"}},{"$f":"Import!#REF!","v":{"$error":"#REF!"}},{"$f":"Import!#REF!","v":{"$error":"#REF!"}},{"$f":"Import!#REF!","v":{"$error":"#REF!"}},{"$f":"Import!#REF!","v":{"$error":"#REF!"}}]
[null,{"$f":"Import!#REF!","v":{"$error":"#REF!"}},{"$f":"Import!#REF!","v":{"$error":"#REF!"}},{"$f":"Import!#REF!","v":{"$error":"#REF!"}},{"$f":"Import!#REF!","v":{"$error":"#REF!"}},{"$f":"Import!#REF!","v":{"$error":"#REF!"}},{"$f":"Import!#REF!","v":{"$error":"#REF!"}},{"$f":"Import!#REF!","v":{"$error":"#REF!"}},{"$f":"Import!#REF!","v":{"$error":"#REF!"}}]
[null,{"$f":"Import!#REF!","v":{"$error":"#REF!"}},{"$f":"Import!#REF!","v":{"$error":"#REF!"}},{"$f":"Import!#REF!","v":{"$error":"#REF!"}},{"$f":"Import!#REF!","v":{"$error":"#REF!"}},{"$f":"Import!#REF!","v":{"$error":"#REF!"}},{"$f":"Import!#REF!","v":{"$error":"#REF!"}},{"$f":"Import!#REF!","v":{"$error":"#REF!"}},{"$f":"Import!#REF!","v":{"$error":"#REF!"}}]
[null,{"$f":"Import!#REF!","v":{"$error":"#REF!"}},{"$f":"Import!#REF!","v":{"$error":"#REF!"}},{"$f":"Import!#REF!","v":{"$error":"#REF!"}},{"$f":"Import!#REF!","v":{"$error":"#REF!"}},{"$f":"Import!#REF!","v":{"$error":"#REF!"}},{"$f":"Import!#REF!","v":{"$error":"#REF!"}},{"$f":"Import!#REF!","v":{"$error":"#REF!"}},{"$f":"Import!#REF!","v":{"$error":"#REF!"}}]
[null,{"$f":"Import!#REF!","v":{"$error":"#REF!"}},{"$f":"Import!#REF!","v":{"$error":"#REF!"}},{"$f":"Import!#REF!","v":{"$error":"#REF!"}},{"$f":"Import!#REF!","v":{"$error":"#REF!"}},{"$f":"Import!#REF!","v":{"$error":"#REF!"}},{"$f":"Import!#REF!","v":{"$error":"#REF!"}},{"$f":"Import!#REF!","v":{"$error":"#REF!"}},{"$f":"Import!#REF!","v":{"$error":"#REF!"}}]
[null,{"$f":"Import!#REF!","v":{"$error":"#REF!"}},{"$f":"Import!#REF!","v":{"$error":"#REF!"}},{"$f":"Import!#REF!","v":{"$error":"#REF!"}},{"$f":"Import!#REF!","v":{"$error":"#REF!"}},{"$f":"Import!#REF!","v":{"$error":"#REF!"}},{"$f":"Import!#REF!","v":{"$error":"#REF!"}},{"$f":"Import!#REF!","v":{"$error":"#REF!"}},{"$f":"Import!#REF!","v":{"$error":"#REF!"}}]
[null,{"$f":"Import!#REF!","v":{"$error":"#REF!"}},{"$f":"Import!#REF!","v":{"$error":"#REF!"}},{"$f":"Import!#REF!","v":{"$error":"#REF!"}},{"$f":"Import!#REF!","v":{"$error":"#REF!"}},{"$f":"Import!#REF!","v":{"$error":"#REF!"}},{"$f":"Import!#REF!","v":{"$error":"#REF!"}},{"$f":"Import!#REF!","v":{"$error":"#REF!"}},{"$f":"Import!#REF!","v":{"$error":"#REF!"}}]
[null,{"$f":"Import!#REF!","v":{"$error":"#REF!"}},{"$f":"Import!#REF!","v":{"$error":"#REF!"}},{"$f":"Import!#REF!","v":{"$error":"#REF!"}},{"$f":"Import!#REF!","v":{"$error":"#REF!"}},{"$f":"Import!#REF!","v":{"$error":"#REF!"}},{"$f":"Import!#REF!","v":{"$error":"#REF!"}},{"$f":"Import!#REF!","v":{"$error":"#REF!"}},{"$f":"Import!#REF!","v":{"$error":"#REF!"}}]
[null,{"$f":"Import!#REF!","v":{"$error":"#REF!"}},{"$f":"Import!#REF!","v":{"$error":"#REF!"}},{"$f":"Import!#REF!","v":{"$error":"#REF!"}},{"$f":"Import!#REF!","v":{"$error":"#REF!"}},{"$f":"Import!#REF!","v":{"$error":"#REF!"}},{"$f":"Import!#REF!","v":{"$error":"#REF!"}},{"$f":"Import!#REF!","v":{"$error":"#REF!"}},{"$f":"Import!#REF!","v":{"$error":"#REF!"}}]
[null,{"$f":"Import!#REF!","v":{"$error":"#REF!"}},{"$f":"Import!#REF!","v":{"$error":"#REF!"}},{"$f":"Import!#REF!","v":{"$error":"#REF!"}},{"$f":"Import!#REF!","v":{"$error":"#REF!"}},{"$f":"Import!#REF!","v":{"$error":"#REF!"}},{"$f":"Import!#REF!","v":{"$error":"#REF!"}},{"$f":"Import!#REF!","v":{"$error":"#REF!"}},{"$f":"Import!#REF!","v":{"$error":"#REF!"}}]
[null,{"$f":"Import!#REF!","v":{"$error":"#REF!"}},{"$f":"Import!#REF!","v":{"$error":"#REF!"}},{"$f":"Import!#REF!","v":{"$error":"#REF!"}},{"$f":"Import!#REF!","v":{"$error":"#REF!"}},{"$f":"Import!#REF!","v":{"$error":"#REF!"}},{"$f":"Import!#REF!","v":{"$error":"#REF!"}},{"$f":"Import!#REF!","v":{"$error":"#REF!"}},{"$f":"Import!#REF!","v":{"$error":"#REF!"}}]
[null,{"$f":"Import!#REF!","v":{"$error":"#REF!"}},{"$f":"Import!#REF!","v":{"$error":"#REF!"}},{"$f":"Import!#REF!","v":{"$error":"#REF!"}},{"$f":"Import!#REF!","v":{"$error":"#REF!"}},{"$f":"Import!#REF!","v":{"$error":"#REF!"}},{"$f":"Import!#REF!","v":{"$error":"#REF!"}},{"$f":"Import!#REF!","v":{"$error":"#REF!"}},{"$f":"Import!#REF!","v":{"$error":"#REF!"}}]
[null,{"$f":"Import!#REF!","v":{"$error":"#REF!"}},{"$f":"Import!#REF!","v":{"$error":"#REF!"}},{"$f":"Import!#REF!","v":{"$error":"#REF!"}},{"$f":"Import!#REF!","v":{"$error":"#REF!"}},{"$f":"Import!#REF!","v":{"$error":"#REF!"}},{"$f":"Import!#REF!","v":{"$error":"#REF!"}},{"$f":"Import!#REF!","v":{"$error":"#REF!"}},{"$f":"Import!#REF!","v":{"$error":"#REF!"}}]
[null,{"$f":"Import!#REF!","v":{"$error":"#REF!"}},{"$f":"Import!#REF!","v":{"$error":"#REF!"}},{"$f":"Import!#REF!","v":{"$error":"#REF!"}},{"$f":"Import!#REF!","v":{"$error":"#REF!"}},{"$f":"Import!#REF!","v":{"$error":"#REF!"}},{"$f":"Import!#REF!","v":{"$error":"#REF!"}},{"$f":"Import!#REF!","v":{"$error":"#REF!"}},{"$f":"Import!#REF!","v":{"$error":"#REF!"}}]
[null,{"$f":"Import!#REF!","v":{"$error":"#REF!"}},{"$f":"Import!#REF!","v":{"$error":"#REF!"}},{"$f":"Import!#REF!","v":{"$error":"#REF!"}},{"$f":"Import!#REF!","v":{"$error":"#REF!"}},{"$f":"Import!#REF!","v":{"$error":"#REF!"}},{"$f":"Import!#REF!","v":{"$error":"#REF!"}},{"$f":"Import!#REF!","v":{"$error":"#REF!"}},{"$f":"Import!#REF!","v":{"$error":"#REF!"}}]
[null,{"$f":"Import!#REF!","v":{"$error":"#REF!"}},{"$f":"Import!#REF!","v":{"$error":"#REF!"}},{"$f":"Import!#REF!","v":{"$error":"#REF!"}},{"$f":"Import!#REF!","v":{"$error":"#REF!"}},{"$f":"Import!#REF!","v":{"$error":"#REF!"}},{"$f":"Import!#REF!","v":{"$error":"#REF!"}},{"$f":"Import!#REF!","v":{"$error":"#REF!"}},{"$f":"Import!#REF!","v":{"$error":"#REF!"}}]
[null,{"$f":"Import!#REF!","v":{"$error":"#REF!"}},{"$f":"Import!#REF!","v":{"$error":"#REF!"}},{"$f":"Import!#REF!","v":{"$error":"#REF!"}},{"$f":"Import!#REF!","v":{"$error":"#REF!"}},{"$f":"Import!#REF!","v":{"$error":"#REF!"}},{"$f":"Import!#REF!","v":{"$error":"#REF!"}},{"$f":"Import!#REF!","v":{"$error":"#REF!"}},{"$f":"Import!#REF!","v":{"$error":"#REF!"}}]
[null,{"$f":"Import!#REF!","v":{"$error":"#REF!"}},{"$f":"Import!#REF!","v":{"$error":"#REF!"}},{"$f":"Import!#REF!","v":{"$error":"#REF!"}},{"$f":"Import!#REF!","v":{"$error":"#REF!"}},{"$f":"Import!#REF!","v":{"$error":"#REF!"}},{"$f":"Import!#REF!","v":{"$error":"#REF!"}},{"$f":"Import!#REF!","v":{"$error":"#REF!"}},{"$f":"Import!#REF!","v":{"$error":"#REF!"}}]
[null,{"$f":"Import!#REF!","v":{"$error":"#REF!"}},{"$f":"Import!#REF!","v":{"$error":"#REF!"}},{"$f":"Import!#REF!","v":{"$error":"#REF!"}},{"$f":"Import!#REF!","v":{"$error":"#REF!"}},{"$f":"Import!#REF!","v":{"$error":"#REF!"}},{"$f":"Import!#REF!","v":{"$error":"#REF!"}},{"$f":"Import!#REF!","v":{"$error":"#REF!"}},{"$f":"Import!#REF!","v":{"$error":"#REF!"}}]
[null,{"$f":"Import!#REF!","v":{"$error":"#REF!"}},{"$f":"Import!#REF!","v":{"$error":"#REF!"}},{"$f":"Import!#REF!","v":{"$error":"#REF!"}},{"$f":"Import!#REF!","v":{"$error":"#REF!"}},{"$f":"Import!#REF!","v":{"$error":"#REF!"}},{"$f":"Import!#REF!","v":{"$error":"#REF!"}},{"$f":"Import!#REF!","v":{"$error":"#REF!"}},{"$f":"Import!#REF!","v":{"$error":"#REF!"}}]
[]
[null,"Total Derivatives",null,null,null,{"$f":"SUM(F241:F260)","v":{"$error":"#REF!"}},null,0,0]
[]
[]
[]
[]
[]
[null,"(I) OTHER ASSETS"]
[]
[null,null,"Enter # of Asset Types",4]
[]
[null,null,null,null,2021,2021]
[]
[null,"Asset Type","Jurisdiction","BSCR Rating","Face Value","Fair Value"]
[1,{"$f":"Import!#REF!","v":{"$error":"#REF!"}},{"$f":"Import!#REF!","v":{"$error":"#REF!"}},{"$f":"Import!#REF!","v":{"$error":"#REF!"}},{"$f":"Import!#REF!","v":{"$error":"#REF!"}},{"$f":"Import!#REF!","v":{"$error":"#REF!"}}]
[2,{"$f":"Import!#REF!","v":{"$error":"#REF!"}},{"$f":"Import!#REF!","v":{"$error":"#REF!"}},{"$f":"Import!#REF!","v":{"$error":"#REF!"}},{"$f":"Import!#REF!","v":{"$error":"#REF!"}},{"$f":"Import!#REF!","v":{"$error":"#REF!"}}]
[3,{"$f":"Import!#REF!","v":{"$error":"#REF!"}},{"$f":"Import!#REF!","v":{"$error":"#REF!"}},{"$f":"Import!#REF!","v":{"$error":"#REF!"}},{"$f":"Import!#REF!","v":{"$error":"#REF!"}},{"$f":"Import!#REF!","v":{"$error":"#REF!"}}]
[4,{"$f":"Import!#REF!","v":{"$error":"#REF!"}},{"$f":"Import!#REF!","v":{"$error":"#REF!"}},{"$f":"Import!#REF!","v":{"$error":"#REF!"}},{"$f":"Import!#REF!","v":{"$error":"#REF!"}},{"$f":"Import!#REF!","v":{"$error":"#REF!"}}]
[5,{"$f":"Import!#REF!","v":{"$error":"#REF!"}},{"$f":"Import!#REF!","v":{"$error":"#REF!"}},{"$f":"Import!#REF!","v":{"$error":"#REF!"}},{"$f":"Import!#REF!","v":{"$error":"#REF!"}},{"$f":"Import!#REF!","v":{"$error":"#REF!"}}]
[6,{"$f":"Import!#REF!","v":{"$error":"#REF!"}},{"$f":"Import!#REF!","v":{"$error":"#REF!"}},{"$f":"Import!#REF!","v":{"$error":"#REF!"}},{"$f":"Import!#REF!","v":{"$error":"#REF!"}},{"$f":"Import!#REF!","v":{"$error":"#REF!"}}]
[7,{"$f":"Import!#REF!","v":{"$error":"#REF!"}},{"$f":"Import!#REF!","v":{"$error":"#REF!"}},{"$f":"Import!#REF!","v":{"$error":"#REF!"}},{"$f":"Import!#REF!","v":{"$error":"#REF!"}},{"$f":"Import!#REF!","v":{"$error":"#REF!"}}]
[8,{"$f":"Import!#REF!","v":{"$error":"#REF!"}},{"$f":"Import!#REF!","v":{"$error":"#REF!"}},{"$f":"Import!#REF!","v":{"$error":"#REF!"}},{"$f":"Import!#REF!","v":{"$error":"#REF!"}},{"$f":"Import!#REF!","v":{"$error":"#REF!"}}]
[9,{"$f":"Import!#REF!","v":{"$error":"#REF!"}},{"$f":"Import!#REF!","v":{"$error":"#REF!"}},{"$f":"Import!#REF!","v":{"$error":"#REF!"}},{"$f":"Import!#REF!","v":{"$error":"#REF!"}},{"$f":"Import!#REF!","v":{"$error":"#REF!"}}]
[10,{"$f":"Import!#REF!","v":{"$error":"#REF!"}},{"$f":"Import!#REF!","v":{"$error":"#REF!"}},{"$f":"Import!#REF!","v":{"$error":"#REF!"}},{"$f":"Import!#REF!","v":{"$error":"#REF!"}},{"$f":"Import!#REF!","v":{"$error":"#REF!"}}]
[11,{"$f":"Import!#REF!","v":{"$error":"#REF!"}},{"$f":"Import!#REF!","v":{"$error":"#REF!"}},{"$f":"Import!#REF!","v":{"$error":"#REF!"}},{"$f":"Import!#REF!","v":{"$error":"#REF!"}},{"$f":"Import!#REF!","v":{"$error":"#REF!"}}]
[12,{"$f":"Import!#REF!","v":{"$error":"#REF!"}},{"$f":"Import!#REF!","v":{"$error":"#REF!"}},{"$f":"Import!#REF!","v":{"$error":"#REF!"}},{"$f":"Import!#REF!","v":{"$error":"#REF!"}},{"$f":"Import!#REF!","v":{"$error":"#REF!"}}]
[13,{"$f":"Import!#REF!","v":{"$error":"#REF!"}},{"$f":"Import!#REF!","v":{"$error":"#REF!"}},{"$f":"Import!#REF!","v":{"$error":"#REF!"}},{"$f":"Import!#REF!","v":{"$error":"#REF!"}},{"$f":"Import!#REF!","v":{"$error":"#REF!"}}]
[14,{"$f":"Import!#REF!","v":{"$error":"#REF!"}},{"$f":"Import!#REF!","v":{"$error":"#REF!"}},{"$f":"Import!#REF!","v":{"$error":"#REF!"}},{"$f":"Import!#REF!","v":{"$error":"#REF!"}},{"$f":"Import!#REF!","v":{"$error":"#REF!"}}]
[15,{"$f":"Import!#REF!","v":{"$error":"#REF!"}},{"$f":"Import!#REF!","v":{"$error":"#REF!"}},{"$f":"Import!#REF!","v":{"$error":"#REF!"}},{"$f":"Import!#REF!","v":{"$error":"#REF!"}},{"$f":"Import!#REF!","v":{"$error":"#REF!"}}]
[16,{"$f":"Import!#REF!","v":{"$error":"#REF!"}},{"$f":"Import!#REF!","v":{"$error":"#REF!"}},{"$f":"Import!#REF!","v":{"$error":"#REF!"}},{"$f":"Import!#REF!","v":{"$error":"#REF!"}},{"$f":"Import!#REF!","v":{"$error":"#REF!"}}]
[17,{"$f":"Import!#REF!","v":{"$error":"#REF!"}},{"$f":"Import!#REF!","v":{"$error":"#REF!"}},{"$f":"Import!#REF!","v":{"$error":"#REF!"}},{"$f":"Import!#REF!","v":{"$error":"#REF!"}},{"$f":"Import!#REF!","v":{"$error":"#REF!"}}]
[18,{"$f":"Import!#REF!","v":{"$error":"#REF!"}},{"$f":"Import!#REF!","v":{"$error":"#REF!"}},{"$f":"Import!#REF!","v":{"$error":"#REF!"}},{"$f":"Import!#REF!","v":{"$error":"#REF!"}},{"$f":"Import!#REF!","v":{"$error":"#REF!"}}]
[19,{"$f":"Import!#REF!","v":{"$error":"#REF!"}},{"$f":"Import!#REF!","v":{"$error":"#REF!"}},{"$f":"Import!#REF!","v":{"$error":"#REF!"}},{"$f":"Import!#REF!","v":{"$error":"#REF!"}},{"$f":"Import!#REF!","v":{"$error":"#REF!"}}]
[20,{"$f":"Import!#REF!","v":{"$error":"#REF!"}},{"$f":"Import!#REF!","v":{"$error":"#REF!"}},{"$f":"Import!#REF!","v":{"$error":"#REF!"}},{"$f":"Import!#REF!","v":{"$error":"#REF!"}},{"$f":"Import!#REF!","v":{"$error":"#REF!"}}]
[]
[null,"Total Other Assets",null,null,null,{"$f":"SUM(F275:F294)","v":{"$error":"#REF!"}}]
[]
[]
[null,"TOTAL ASSETS",null,null,null,{"$f":"F34+F67+F96+F129+F163+F196+F230+F262+F296","v":{"$error":"#REF!"}}]
[]
[null,"TOTAL FUNDS HELD BY CEDING REINSURERS (Form 1SFS Line 12)",null,null,null,{"$f":"'Form 1SFS'!E79+'Form 1SFS'!I79","v":0}]
[]
[null,"Check Form 1SFS (Line 12)",null,null,null,{"$f":"IF(F304=\"TRUE\",HYPERLINK(\"#'Form 1SFS'!E16:M31\",\"TRUE\"),HYPERLINK(\"#'Form 1SFS'!E16:M31\",\"FALSE\"))","v":{"$error":"#REF!"}}]
[null,null,null,null,null,{"$f":"IF(ROUND((F299-F301),0)=0,\"TRUE\",\"FALSE\")","v":{"$error":"#REF!"}}]
[null,"Difference",null,null,null,{"$f":"ROUND(F301-F299,0)","v":{"$error":"#REF!"}}]
[]
[]
[null,"EFFECTIVE DURATION",null,null,{"$f":"Import!#REF!","v":{"$error":"#REF!"}}]
[]
[null,"EFFECTIVE CONVEXITY",null,null,{"$f":"Import!#REF!","v":{"$error":"#REF!"}}]

{"sheet":"Schedule VIA (EBS).","index":58,"n_rows":310,"n_cols":9,"rows_kept":310,"cut":false,"hidden":true,"merged":[[235,1,235,2],[267,1,267,2],[271,1,271,2],[134,1,134,2],[138,1,138,2],[168,1,168,2],[172,1,172,2],[201,1,201,2],[205,1,205,2],[105,1,105,2],[6,1,6,2],[39,1,39,2],[43,1,43,2],[68,1,68,2],[101,1,101,2]]}
[null,"SCHEDULE OF FUNDS HELD BY CEDING REINSURERS (EBS)",null,null,null,null,null,null,{"$f":"HYPERLINK(\"#'Index'!A1\",\"Return to Index\")","v":"Return to Index"}]
[null,{"$f":"'Form 1SFS'!B3","v":"Enter Company Name"}]
[null,"As at",{"$f":" TEXT('Company Information'!C3,\"d mmmm yyyy\")","v":"31 December 2023"}]
[null,"expressed in ['000s]",{"$f":"'Form 1SFS'!C5","v":"United States Dollars"}]
[]
[]
[null,"(A) CASH AND CASH EQUIVALENTS"]
[]
[null,null,"Enter # of Asset Types",4]
[]
[null,null,null,null,2021,2021]
[null,"Asset Type","Jurisdiction","BSCR Rating","Face Value","Fair Value"]
[1,{"$f":"Import!#REF!","v":{"$error":"#REF!"}},{"$f":"Import!#REF!","v":{"$error":"#REF!"}},{"$f":"Import!#REF!","v":{"$error":"#REF!"}},{"$f":"Import!#REF!","v":{"$error":"#REF!"}},{"$f":"Import!#REF!","v":{"$error":"#REF!"}}]
[2,{"$f":"Import!#REF!","v":{"$error":"#REF!"}},{"$f":"Import!#REF!","v":{"$error":"#REF!"}},{"$f":"Import!#REF!","v":{"$error":"#REF!"}},{"$f":"Import!#REF!","v":{"$error":"#REF!"}},{"$f":"Import!#REF!","v":{"$error":"#REF!"}}]
[3,{"$f":"Import!#REF!","v":{"$error":"#REF!"}},{"$f":"Import!#REF!","v":{"$error":"#REF!"}},{"$f":"Import!#REF!","v":{"$error":"#REF!"}},{"$f":"Import!#REF!","v":{"$error":"#REF!"}},{"$f":"Import!#REF!","v":{"$error":"#REF!"}}]
[4,{"$f":"Import!#REF!","v":{"$error":"#REF!"}},{"$f":"Import!#REF!","v":{"$error":"#REF!"}},{"$f":"Import!#REF!","v":{"$error":"#REF!"}},{"$f":"Import!#REF!","v":{"$error":"#REF!"}},{"$f":"Import!#REF!","v":{"$error":"#REF!"}}]
[5,{"$f":"Import!#REF!","v":{"$error":"#REF!"}},{"$f":"Import!#REF!","v":{"$error":"#REF!"}},{"$f":"Import!#REF!","v":{"$error":"#REF!"}},{"$f":"Import!#REF!","v":{"$error":"#REF!"}},{"$f":"Import!#REF!","v":{"$error":"#REF!"}}]
[6,{"$f":"Import!#REF!","v":{"$error":"#REF!"}},{"$f":"Import!#REF!","v":{"$error":"#REF!"}},{"$f":"Import!#REF!","v":{"$error":"#REF!"}},{"$f":"Import!#REF!","v":{"$error":"#REF!"}},{"$f":"Import!#REF!","v":{"$error":"#REF!"}}]
[7,{"$f":"Import!#REF!","v":{"$error":"#REF!"}},{"$f":"Import!#REF!","v":{"$error":"#REF!"}},{"$f":"Import!#REF!","v":{"$error":"#REF!"}},{"$f":"Import!#REF!","v":{"$error":"#REF!"}},{"$f":"Import!#REF!","v":{"$error":"#REF!"}}]
[8,{"$f":"Import!#REF!","v":{"$error":"#REF!"}},{"$f":"Import!#REF!","v":{"$error":"#REF!"}},{"$f":"Import!#REF!","v":{"$error":"#REF!"}},{"$f":"Import!#REF!","v":{"$error":"#REF!"}},{"$f":"Import!#REF!","v":{"$error":"#REF!"}}]
[9,{"$f":"Import!#REF!","v":{"$error":"#REF!"}},{"$f":"Import!#REF!","v":{"$error":"#REF!"}},{"$f":"Import!#REF!","v":{"$error":"#REF!"}},{"$f":"Import!#REF!","v":{"$error":"#REF!"}},{"$f":"Import!#REF!","v":{"$error":"#REF!"}}]
[10,{"$f":"Import!#REF!","v":{"$error":"#REF!"}},{"$f":"Import!#REF!","v":{"$error":"#REF!"}},{"$f":"Import!#REF!","v":{"$error":"#REF!"}},{"$f":"Import!#REF!","v":{"$error":"#REF!"}},{"$f":"Import!#REF!","v":{"$error":"#REF!"}}]
[11,{"$f":"Import!#REF!","v":{"$error":"#REF!"}},{"$f":"Import!#REF!","v":{"$error":"#REF!"}},{"$f":"Import!#REF!","v":{"$error":"#REF!"}},{"$f":"Import!#REF!","v":{"$error":"#REF!"}},{"$f":"Import!#REF!","v":{"$error":"#REF!"}}]
[12,{"$f":"Import!#REF!","v":{"$error":"#REF!"}},{"$f":"Import!#REF!","v":{"$error":"#REF!"}},{"$f":"Import!#REF!","v":{"$error":"#REF!"}},{"$f":"Import!#REF!","v":{"$error":"#REF!"}},{"$f":"Import!#REF!","v":{"$error":"#REF!"}}]
[13,{"$f":"Import!#REF!","v":{"$error":"#REF!"}},{"$f":"Import!#REF!","v":{"$error":"#REF!"}},{"$f":"Import!#REF!","v":{"$error":"#REF!"}},{"$f":"Import!#REF!","v":{"$error":"#REF!"}},{"$f":"Import!#REF!","v":{"$error":"#REF!"}}]
[14,{"$f":"Import!#REF!","v":{"$error":"#REF!"}},{"$f":"Import!#REF!","v":{"$error":"#REF!"}},{"$f":"Import!#REF!","v":{"$error":"#REF!"}},{"$f":"Import!#REF!","v":{"$error":"#REF!"}},{"$f":"Import!#REF!","v":{"$error":"#REF!"}}]
[15,{"$f":"Import!#REF!","v":{"$error":"#REF!"}},{"$f":"Import!#REF!","v":{"$error":"#REF!"}},{"$f":"Import!#REF!","v":{"$error":"#REF!"}},{"$f":"Import!#REF!","v":{"$error":"#REF!"}},{"$f":"Import!#REF!","v":{"$error":"#REF!"}}]
[16,{"$f":"Import!#REF!","v":{"$error":"#REF!"}},{"$f":"Import!#REF!","v":{"$error":"#REF!"}},{"$f":"Import!#REF!","v":{"$error":"#REF!"}},{"$f":"Import!#REF!","v":{"$error":"#REF!"}},{"$f":"Import!#REF!","v":{"$error":"#REF!"}}]
[17,{"$f":"Import!#REF!","v":{"$error":"#REF!"}},{"$f":"Import!#REF!","v":{"$error":"#REF!"}},{"$f":"Import!#REF!","v":{"$error":"#REF!"}},{"$f":"Import!#REF!","v":{"$error":"#REF!"}},{"$f":"Import!#REF!","v":{"$error":"#REF!"}}]
[18,{"$f":"Import!#REF!","v":{"$error":"#REF!"}},{"$f":"Import!#REF!","v":{"$error":"#REF!"}},{"$f":"Import!#REF!","v":{"$error":"#REF!"}},{"$f":"Import!#REF!","v":{"$error":"#REF!"}},{"$f":"Import!#REF!","v":{"$error":"#REF!"}}]
[19,{"$f":"Import!#REF!","v":{"$error":"#REF!"}},{"$f":"Import!#REF!","v":{"$error":"#REF!"}},{"$f":"Import!#REF!","v":{"$error":"#REF!"}},{"$f":"Import!#REF!","v":{"$error":"#REF!"}},{"$f":"Import!#REF!","v":{"$error":"#REF!"}}]
[20,{"$f":"Import!#REF!","v":{"$error":"#REF!"}},{"$f":"Import!#REF!","v":{"$error":"#REF!"}},{"$f":"Import!#REF!","v":{"$error":"#REF!"}},{"$f":"Import!#REF!","v":{"$error":"#REF!"}},{"$f":"Import!#REF!","v":{"$error":"#REF!"}}]
[]
[null,"Total Cash & Cash Equivalents",null,null,{"$f":"SUM(E13:E32)","v":{"$error":"#REF!"}},{"$f":"SUM(F13:F32)","v":{"$error":"#REF!"}}]
[]
[]
[]
[]
[]
[null,"(B) BONDS AND DEBENTURES"]
[]
[null,null,"Enter # of Asset Types",4]
[]
[null,null,null,null,2021,2021]
[null,"Asset Type","Jurisdiction","BSCR Rating","Face Value","Fair Value","Average YTM","Effective Duration","Effective Convexity"]
[1,{"$f":"Import!#REF!","v":{"$error":"#REF!"}},{"$f":"Import!#REF!","v":{"$error":"#REF!"}},{"$f":"Import!#REF!","v":{"$error":"#REF!"}},{"$f":"Import!#REF!","v":{"$error":"#REF!"}},{"$f":"Import!#REF!","v":{"$error":"#REF!"}},{"$f":"Import!#REF!","v":{"$error":"#REF!"}},{"$f":"Import!#REF!","v":{"$error":"#REF!"}},{"$f":"Import!#REF!","v":{"$error":"#REF!"}}]
[2,{"$f":"Import!#REF!","v":{"$error":"#REF!"}},{"$f":"Import!#REF!","v":{"$error":"#REF!"}},{"$f":"Import!#REF!","v":{"$error":"#REF!"}},{"$f":"Import!#REF!","v":{"$error":"#REF!"}},{"$f":"Import!#REF!","v":{"$error":"#REF!"}},{"$f":"Import!#REF!","v":{"$error":"#REF!"}},{"$f":"Import!#REF!","v":{"$error":"#REF!"}},{"$f":"Import!#REF!","v":{"$error":"#REF!"}}]
[3,{"$f":"Import!#REF!","v":{"$error":"#REF!"}},{"$f":"Import!#REF!","v":{"$error":"#REF!"}},{"$f":"Import!#REF!","v":{"$error":"#REF!"}},{"$f":"Import!#REF!","v":{"$error":"#REF!"}},{"$f":"Import!#REF!","v":{"$error":"#REF!"}},{"$f":"Import!#REF!","v":{"$error":"#REF!"}},{"$f":"Import!#REF!","v":{"$error":"#REF!"}},{"$f":"Import!#REF!","v":{"$error":"#REF!"}}]
[4,{"$f":"Import!#REF!","v":{"$error":"#REF!"}},{"$f":"Import!#REF!","v":{"$error":"#REF!"}},{"$f":"Import!#REF!","v":{"$error":"#REF!"}},{"$f":"Import!#REF!","v":{"$error":"#REF!"}},{"$f":"Import!#REF!","v":{"$error":"#REF!"}},{"$f":"Import!#REF!","v":{"$error":"#REF!"}},{"$f":"Import!#REF!","v":{"$error":"#REF!"}},{"$f":"Import!#REF!","v":{"$error":"#REF!"}}]
[5,{"$f":"Import!#REF!","v":{"$error":"#REF!"}},{"$f":"Import!#REF!","v":{"$error":"#REF!"}},{"$f":"Import!#REF!","v":{"$error":"#REF!"}},{"$f":"Import!#REF!","v":{"$error":"#REF!"}},{"$f":"Import!#REF!","v":{"$error":"#REF!"}},{"$f":"Import!#REF!","v":{"$error":"#REF!"}},{"$f":"Import!#REF!","v":{"$error":"#REF!"}},{"$f":"Import!#REF!","v":{"$error":"#REF!"}}]
[6,{"$f":"Import!#REF!","v":{"$error":"#REF!"}},{"$f":"Import!#REF!","v":{"$error":"#REF!"}},{"$f":"Import!#REF!","v":{"$error":"#REF!"}},{"$f":"Import!#REF!","v":{"$error":"#REF!"}},{"$f":"Import!#REF!","v":{"$error":"#REF!"}},{"$f":"Import!#REF!","v":{"$error":"#REF!"}},{"$f":"Import!#REF!","v":{"$error":"#REF!"}},{"$f":"Import!#REF!","v":{"$error":"#REF!"}}]
[7,{"$f":"Import!#REF!","v":{"$error":"#REF!"}},{"$f":"Import!#REF!","v":{"$error":"#REF!"}},{"$f":"Import!#REF!","v":{"$error":"#REF!"}},{"$f":"Import!#REF!","v":{"$error":"#REF!"}},{"$f":"Import!#REF!","v":{"$error":"#REF!"}},{"$f":"Import!#REF!","v":{"$error":"#REF!"}},{"$f":"Import!#REF!","v":{"$error":"#REF!"}},{"$f":"Import!#REF!","v":{"$error":"#REF!"}}]
[8,{"$f":"Import!#REF!","v":{"$error":"#REF!"}},{"$f":"Import!#REF!","v":{"$error":"#REF!"}},{"$f":"Import!#REF!","v":{"$error":"#REF!"}},{"$f":"Import!#REF!","v":{"$error":"#REF!"}},{"$f":"Import!#REF!","v":{"$error":"#REF!"}},{"$f":"Import!#REF!","v":{"$error":"#REF!"}},{"$f":"Import!#REF!","v":{"$error":"#REF!"}},{"$f":"Import!#REF!","v":{"$error":"#REF!"}}]
[9,{"$f":"Import!#REF!","v":{"$error":"#REF!"}},{"$f":"Import!#REF!","v":{"$error":"#REF!"}},{"$f":"Import!#REF!","v":{"$error":"#REF!"}},{"$f":"Import!#REF!","v":{"$error":"#REF!"}},{"$f":"Import!#REF!","v":{"$error":"#REF!"}},{"$f":"Import!#REF!","v":{"$error":"#REF!"}},{"$f":"Import!#REF!","v":{"$error":"#REF!"}},{"$f":"Import!#REF!","v":{"$error":"#REF!"}}]
[10,{"$f":"Import!#REF!","v":{"$error":"#REF!"}},{"$f":"Import!#REF!","v":{"$error":"#REF!"}},{"$f":"Import!#REF!","v":{"$error":"#REF!"}},{"$f":"Import!#REF!","v":{"$error":"#REF!"}},{"$f":"Import!#REF!","v":{"$error":"#REF!"}},{"$f":"Import!#REF!","v":{"$error":"#REF!"}},{"$f":"Import!#REF!","v":{"$error":"#REF!"}},{"$f":"Import!#REF!","v":{"$error":"#REF!"}}]
[11,{"$f":"Import!#REF!","v":{"$error":"#REF!"}},{"$f":"Import!#REF!","v":{"$error":"#REF!"}},{"$f":"Import!#REF!","v":{"$error":"#REF!"}},{"$f":"Import!#REF!","v":{"$error":"#REF!"}},{"$f":"Import!#REF!","v":{"$error":"#REF!"}},{"$f":"Import!#REF!","v":{"$error":"#REF!"}},{"$f":"Import!#REF!","v":{"$error":"#REF!"}},{"$f":"Import!#REF!","v":{"$error":"#REF!"}}]
[12,{"$f":"Import!#REF!","v":{"$error":"#REF!"}},{"$f":"Import!#REF!","v":{"$error":"#REF!"}},{"$f":"Import!#REF!","v":{"$error":"#REF!"}},{"$f":"Import!#REF!","v":{"$error":"#REF!"}},{"$f":"Import!#REF!","v":{"$error":"#REF!"}},{"$f":"Import!#REF!","v":{"$error":"#REF!"}},{"$f":"Import!#REF!","v":{"$error":"#REF!"}},{"$f":"Import!#REF!","v":{"$error":"#REF!"}}]
[13,{"$f":"Import!#REF!","v":{"$error":"#REF!"}},{"$f":"Import!#REF!","v":{"$error":"#REF!"}},{"$f":"Import!#REF!","v":{"$error":"#REF!"}},{"$f":"Import!#REF!","v":{"$error":"#REF!"}},{"$f":"Import!#REF!","v":{"$error":"#REF!"}},{"$f":"Import!#REF!","v":{"$error":"#REF!"}},{"$f":"Import!#REF!","v":{"$error":"#REF!"}},{"$f":"Import!#REF!","v":{"$error":"#REF!"}}]
[14,{"$f":"Import!#REF!","v":{"$error":"#REF!"}},{"$f":"Import!#REF!","v":{"$error":"#REF!"}},{"$f":"Import!#REF!","v":{"$error":"#REF!"}},{"$f":"Import!#REF!","v":{"$error":"#REF!"}},{"$f":"Import!#REF!","v":{"$error":"#REF!"}},{"$f":"Import!#REF!","v":{"$error":"#REF!"}},{"$f":"Import!#REF!","v":{"$error":"#REF!"}},{"$f":"Import!#REF!","v":{"$error":"#REF!"}}]
[15,{"$f":"Import!#REF!","v":{"$error":"#REF!"}},{"$f":"Import!#REF!","v":{"$error":"#REF!"}},{"$f":"Import!#REF!","v":{"$error":"#REF!"}},{"$f":"Import!#REF!","v":{"$error":"#REF!"}},{"$f":"Import!#REF!","v":{"$error":"#REF!"}},{"$f":"Import!#REF!","v":{"$error":"#REF!"}},{"$f":"Import!#REF!","v":{"$error":"#REF!"}},{"$f":"Import!#REF!","v":{"$error":"#REF!"}}]
[16,{"$f":"Import!#REF!","v":{"$error":"#REF!"}},{"$f":"Import!#REF!","v":{"$error":"#REF!"}},{"$f":"Import!#REF!","v":{"$error":"#REF!"}},{"$f":"Import!#REF!","v":{"$error":"#REF!"}},{"$f":"Import!#REF!","v":{"$error":"#REF!"}},{"$f":"Import!#REF!","v":{"$error":"#REF!"}},{"$f":"Import!#REF!","v":{"$error":"#REF!"}},{"$f":"Import!#REF!","v":{"$error":"#REF!"}}]
[17,{"$f":"Import!#REF!","v":{"$error":"#REF!"}},{"$f":"Import!#REF!","v":{"$error":"#REF!"}},{"$f":"Import!#REF!","v":{"$error":"#REF!"}},{"$f":"Import!#REF!","v":{"$error":"#REF!"}},{"$f":"Import!#REF!","v":{"$error":"#REF!"}},{"$f":"Import!#REF!","v":{"$error":"#REF!"}},{"$f":"Import!#REF!","v":{"$error":"#REF!"}},{"$f":"Import!#REF!","v":{"$error":"#REF!"}}]
[18,{"$f":"Import!#REF!","v":{"$error":"#REF!"}},{"$f":"Import!#REF!","v":{"$error":"#REF!"}},{"$f":"Import!#REF!","v":{"$error":"#REF!"}},{"$f":"Import!#REF!","v":{"$error":"#REF!"}},{"$f":"Import!#REF!","v":{"$error":"#REF!"}},{"$f":"Import!#REF!","v":{"$error":"#REF!"}},{"$f":"Import!#REF!","v":{"$error":"#REF!"}},{"$f":"Import!#REF!","v":{"$error":"#REF!"}}]
[19,{"$f":"Import!#REF!","v":{"$error":"#REF!"}},{"$f":"Import!#REF!","v":{"$error":"#REF!"}},{"$f":"Import!#REF!","v":{"$error":"#REF!"}},{"$f":"Import!#REF!","v":{"$error":"#REF!"}},{"$f":"Import!#REF!","v":{"$error":"#REF!"}},{"$f":"Import!#REF!","v":{"$error":"#REF!"}},{"$f":"Import!#REF!","v":{"$error":"#REF!"}},{"$f":"Import!#REF!","v":{"$error":"#REF!"}}]
[20,{"$f":"Import!#REF!","v":{"$error":"#REF!"}},{"$f":"Import!#REF!","v":{"$error":"#REF!"}},{"$f":"Import!#REF!","v":{"$error":"#REF!"}},{"$f":"Import!#REF!","v":{"$error":"#REF!"}},{"$f":"Import!#REF!","v":{"$error":"#REF!"}},{"$f":"Import!#REF!","v":{"$error":"#REF!"}},{"$f":"Import!#REF!","v":{"$error":"#REF!"}},{"$f":"Import!#REF!","v":{"$error":"#REF!"}}]
[]
[null,"Total Bonds & Debentures",null,null,{"$f":"SUM(E46:E65)","v":{"$error":"#REF!"}},{"$f":"SUM(F46:F65)","v":{"$error":"#REF!"}},0,0,0]
[]
[null,"(C) SECURITIES/ASSET-BASED SECURITIES"]
[]
[null,null,"Enter # of Asset Types",4]
[]
[null,null,null,null,2021,2021]
[null,"Asset Type","Jurisdiction","BSCR Rating","Face Value","Fair Value","Average YTM","Effective Duration","Effective Convexity"]
[1,{"$f":"Import!#REF!","v":{"$error":"#REF!"}},{"$f":"Import!#REF!","v":{"$error":"#REF!"}},{"$f":"Import!#REF!","v":{"$error":"#REF!"}},{"$f":"Import!#REF!","v":{"$error":"#REF!"}},{"$f":"Import!#REF!","v":{"$error":"#REF!"}},{"$f":"Import!#REF!","v":{"$error":"#REF!"}},{"$f":"Import!#REF!","v":{"$error":"#REF!"}},{"$f":"Import!#REF!","v":{"$error":"#REF!"}}]
[2,{"$f":"Import!#REF!","v":{"$error":"#REF!"}},{"$f":"Import!#REF!","v":{"$error":"#REF!"}},{"$f":"Import!#REF!","v":{"$error":"#REF!"}},{"$f":"Import!#REF!","v":{"$error":"#REF!"}},{"$f":"Import!#REF!","v":{"$error":"#REF!"}},{"$f":"Import!#REF!","v":{"$error":"#REF!"}},{"$f":"Import!#REF!","v":{"$error":"#REF!"}},{"$f":"Import!#REF!","v":{"$error":"#REF!"}}]
[3,{"$f":"Import!#REF!","v":{"$error":"#REF!"}},{"$f":"Import!#REF!","v":{"$error":"#REF!"}},{"$f":"Import!#REF!","v":{"$error":"#REF!"}},{"$f":"Import!#REF!","v":{"$error":"#REF!"}},{"$f":"Import!#REF!","v":{"$error":"#REF!"}},{"$f":"Import!#REF!","v":{"$error":"#REF!"}},{"$f":"Import!#REF!","v":{"$error":"#REF!"}},{"$f":"Import!#REF!","v":{"$error":"#REF!"}}]
[4,{"$f":"Import!#REF!","v":{"$error":"#REF!"}},{"$f":"Import!#REF!","v":{"$error":"#REF!"}},{"$f":"Import!#REF!","v":{"$error":"#REF!"}},{"$f":"Import!#REF!","v":{"$error":"#REF!"}},{"$f":"Import!#REF!","v":{"$error":"#REF!"}},{"$f":"Import!#REF!","v":{"$error":"#REF!"}},{"$f":"Import!#REF!","v":{"$error":"#REF!"}},{"$f":"Import!#REF!","v":{"$error":"#REF!"}}]
[5,{"$f":"Import!#REF!","v":{"$error":"#REF!"}},{"$f":"Import!#REF!","v":{"$error":"#REF!"}},{"$f":"Import!#REF!","v":{"$error":"#REF!"}},{"$f":"Import!#REF!","v":{"$error":"#REF!"}},{"$f":"Import!#REF!","v":{"$error":"#REF!"}},{"$f":"Import!#REF!","v":{"$error":"#REF!"}},{"$f":"Import!#REF!","v":{"$error":"#REF!"}},{"$f":"Import!#REF!","v":{"$error":"#REF!"}}]
[6,{"$f":"Import!#REF!","v":{"$error":"#REF!"}},{"$f":"Import!#REF!","v":{"$error":"#REF!"}},{"$f":"Import!#REF!","v":{"$error":"#REF!"}},{"$f":"Import!#REF!","v":{"$error":"#REF!"}},{"$f":"Import!#REF!","v":{"$error":"#REF!"}},{"$f":"Import!#REF!","v":{"$error":"#REF!"}},{"$f":"Import!#REF!","v":{"$error":"#REF!"}},{"$f":"Import!#REF!","v":{"$error":"#REF!"}}]
[7,{"$f":"Import!#REF!","v":{"$error":"#REF!"}},{"$f":"Import!#REF!","v":{"$error":"#REF!"}},{"$f":"Import!#REF!","v":{"$error":"#REF!"}},{"$f":"Import!#REF!","v":{"$error":"#REF!"}},{"$f":"Import!#REF!","v":{"$error":"#REF!"}},{"$f":"Import!#REF!","v":{"$error":"#REF!"}},{"$f":"Import!#REF!","v":{"$error":"#REF!"}},{"$f":"Import!#REF!","v":{"$error":"#REF!"}}]
[8,{"$f":"Import!#REF!","v":{"$error":"#REF!"}},{"$f":"Import!#REF!","v":{"$error":"#REF!"}},{"$f":"Import!#REF!","v":{"$error":"#REF!"}},{"$f":"Import!#REF!","v":{"$error":"#REF!"}},{"$f":"Import!#REF!","v":{"$error":"#REF!"}},{"$f":"Import!#REF!","v":{"$error":"#REF!"}},{"$f":"Import!#REF!","v":{"$error":"#REF!"}},{"$f":"Import!#REF!","v":{"$error":"#REF!"}}]
[9,{"$f":"Import!#REF!","v":{"$error":"#REF!"}},{"$f":"Import!#REF!","v":{"$error":"#REF!"}},{"$f":"Import!#REF!","v":{"$error":"#REF!"}},{"$f":"Import!#REF!","v":{"$error":"#REF!"}},{"$f":"Import!#REF!","v":{"$error":"#REF!"}},{"$f":"Import!#REF!","v":{"$error":"#REF!"}},{"$f":"Import!#REF!","v":{"$error":"#REF!"}},{"$f":"Import!#REF!","v":{"$error":"#REF!"}}]
[10,{"$f":"Import!#REF!","v":{"$error":"#REF!"}},{"$f":"Import!#REF!","v":{"$error":"#REF!"}},{"$f":"Import!#REF!","v":{"$error":"#REF!"}},{"$f":"Import!#REF!","v":{"$error":"#REF!"}},{"$f":"Import!#REF!","v":{"$error":"#REF!"}},{"$f":"Import!#REF!","v":{"$error":"#REF!"}},{"$f":"Import!#REF!","v":{"$error":"#REF!"}},{"$f":"Import!#REF!","v":{"$error":"#REF!"}}]
[11,{"$f":"Import!#REF!","v":{"$error":"#REF!"}},{"$f":"Import!#REF!","v":{"$error":"#REF!"}},{"$f":"Import!#REF!","v":{"$error":"#REF!"}},{"$f":"Import!#REF!","v":{"$error":"#REF!"}},{"$f":"Import!#REF!","v":{"$error":"#REF!"}},{"$f":"Import!#REF!","v":{"$error":"#REF!"}},{"$f":"Import!#REF!","v":{"$error":"#REF!"}},{"$f":"Import!#REF!","v":{"$error":"#REF!"}}]
[12,{"$f":"Import!#REF!","v":{"$error":"#REF!"}},{"$f":"Import!#REF!","v":{"$error":"#REF!"}},{"$f":"Import!#REF!","v":{"$error":"#REF!"}},{"$f":"Import!#REF!","v":{"$error":"#REF!"}},{"$f":"Import!#REF!","v":{"$error":"#REF!"}},{"$f":"Import!#REF!","v":{"$error":"#REF!"}},{"$f":"Import!#REF!","v":{"$error":"#REF!"}},{"$f":"Import!#REF!","v":{"$error":"#REF!"}}]
[13,{"$f":"Import!#REF!","v":{"$error":"#REF!"}},{"$f":"Import!#REF!","v":{"$error":"#REF!"}},{"$f":"Import!#REF!","v":{"$error":"#REF!"}},{"$f":"Import!#REF!","v":{"$error":"#REF!"}},{"$f":"Import!#REF!","v":{"$error":"#REF!"}},{"$f":"Import!#REF!","v":{"$error":"#REF!"}},{"$f":"Import!#REF!","v":{"$error":"#REF!"}},{"$f":"Import!#REF!","v":{"$error":"#REF!"}}]
[14,{"$f":"Import!#REF!","v":{"$error":"#REF!"}},{"$f":"Import!#REF!","v":{"$error":"#REF!"}},{"$f":"Import!#REF!","v":{"$error":"#REF!"}},{"$f":"Import!#REF!","v":{"$error":"#REF!"}},{"$f":"Import!#REF!","v":{"$error":"#REF!"}},{"$f":"Import!#REF!","v":{"$error":"#REF!"}},{"$f":"Import!#REF!","v":{"$error":"#REF!"}},{"$f":"Import!#REF!","v":{"$error":"#REF!"}}]
[15,{"$f":"Import!#REF!","v":{"$error":"#REF!"}},{"$f":"Import!#REF!","v":{"$error":"#REF!"}},{"$f":"Import!#REF!","v":{"$error":"#REF!"}},{"$f":"Import!#REF!","v":{"$error":"#REF!"}},{"$f":"Import!#REF!","v":{"$error":"#REF!"}},{"$f":"Import!#REF!","v":{"$error":"#REF!"}},{"$f":"Import!#REF!","v":{"$error":"#REF!"}},{"$f":"Import!#REF!","v":{"$error":"#REF!"}}]
[16,{"$f":"Import!#REF!","v":{"$error":"#REF!"}},{"$f":"Import!#REF!","v":{"$error":"#REF!"}},{"$f":"Import!#REF!","v":{"$error":"#REF!"}},{"$f":"Import!#REF!","v":{"$error":"#REF!"}},{"$f":"Import!#REF!","v":{"$error":"#REF!"}},{"$f":"Import!#REF!","v":{"$error":"#REF!"}},{"$f":"Import!#REF!","v":{"$error":"#REF!"}},{"$f":"Import!#REF!","v":{"$error":"#REF!"}}]
[17,{"$f":"Import!#REF!","v":{"$error":"#REF!"}},{"$f":"Import!#REF!","v":{"$error":"#REF!"}},{"$f":"Import!#REF!","v":{"$error":"#REF!"}},{"$f":"Import!#REF!","v":{"$error":"#REF!"}},{"$f":"Import!#REF!","v":{"$error":"#REF!"}},{"$f":"Import!#REF!","v":{"$error":"#REF!"}},{"$f":"Import!#REF!","v":{"$error":"#REF!"}},{"$f":"Import!#REF!","v":{"$error":"#REF!"}}]
[18,{"$f":"Import!#REF!","v":{"$error":"#REF!"}},{"$f":"Import!#REF!","v":{"$error":"#REF!"}},{"$f":"Import!#REF!","v":{"$error":"#REF!"}},{"$f":"Import!#REF!","v":{"$error":"#REF!"}},{"$f":"Import!#REF!","v":{"$error":"#REF!"}},{"$f":"Import!#REF!","v":{"$error":"#REF!"}},{"$f":"Import!#REF!","v":{"$error":"#REF!"}},{"$f":"Import!#REF!","v":{"$error":"#REF!"}}]
[19,{"$f":"Import!#REF!","v":{"$error":"#REF!"}},{"$f":"Import!#REF!","v":{"$error":"#REF!"}},{"$f":"Import!#REF!","v":{"$error":"#REF!"}},{"$f":"Import!#REF!","v":{"$error":"#REF!"}},{"$f":"Import!#REF!","v":{"$error":"#REF!"}},{"$f":"Import!#REF!","v":{"$error":"#REF!"}},{"$f":"Import!#REF!","v":{"$error":"#REF!"}},{"$f":"Import!#REF!","v":{"$error":"#REF!"}}]
[20,{"$f":"Import!#REF!","v":{"$error":"#REF!"}},{"$f":"Import!#REF!","v":{"$error":"#REF!"}},{"$f":"Import!#REF!","v":{"$error":"#REF!"}},{"$f":"Import!#REF!","v":{"$error":"#REF!"}},{"$f":"Import!#REF!","v":{"$error":"#REF!"}},{"$f":"Import!#REF!","v":{"$error":"#REF!"}},{"$f":"Import!#REF!","v":{"$error":"#REF!"}},{"$f":"Import!#REF!","v":{"$error":"#REF!"}}]
[]
[null,"Total Securities/Asset-Backed Securities",null,null,{"$f":"SUM(E75:E94)","v":{"$error":"#REF!"}},{"$f":"SUM(F75:F94)","v":{"$error":"#REF!"}},0,0,0]
[]
[]
[]
[]
[]
[null,"(D) LISTED EQUITIES AND PREFERENCE SHARES"]
[]
[null,null,"Enter # of Asset Types",4]
[]
[null,null,null,null,2021,2021]
[null,"Asset Type","Stock Exchange","BSCR Rating","Face Value","Fair Value"]
[1,{"$f":"Import!#REF!","v":{"$error":"#REF!"}},{"$f":"Import!#REF!","v":{"$error":"#REF!"}},{"$f":"Import!#REF!","v":{"$error":"#REF!"}},{"$f":"Import!#REF!","v":{"$error":"#REF!"}},{"$f":"Import!#REF!","v":{"$error":"#REF!"}}]
[2,{"$f":"Import!#REF!","v":{"$error":"#REF!"}},{"$f":"Import!#REF!","v":{"$error":"#REF!"}},{"$f":"Import!#REF!","v":{"$error":"#REF!"}},{"$f":"Import!#REF!","v":{"$error":"#REF!"}},{"$f":"Import!#REF!","v":{"$error":"#REF!"}}]
[3,{"$f":"Import!#REF!","v":{"$error":"#REF!"}},{"$f":"Import!#REF!","v":{"$error":"#REF!"}},{"$f":"Import!#REF!","v":{"$error":"#REF!"}},{"$f":"Import!#REF!","v":{"$error":"#REF!"}},{"$f":"Import!#REF!","v":{"$error":"#REF!"}}]
[4,{"$f":"Import!#REF!","v":{"$error":"#REF!"}},{"$f":"Import!#REF!","v":{"$error":"#REF!"}},{"$f":"Import!#REF!","v":{"$error":"#REF!"}},{"$f":"Import!#REF!","v":{"$error":"#REF!"}},{"$f":"Import!#REF!","v":{"$error":"#REF!"}}]
[5,{"$f":"Import!#REF!","v":{"$error":"#REF!"}},{"$f":"Import!#REF!","v":{"$error":"#REF!"}},{"$f":"Import!#REF!","v":{"$error":"#REF!"}},{"$f":"Import!#REF!","v":{"$error":"#REF!"}},{"$f":"Import!#REF!","v":{"$error":"#REF!"}}]
[6,{"$f":"Import!#REF!","v":{"$error":"#REF!"}},{"$f":"Import!#REF!","v":{"$error":"#REF!"}},{"$f":"Import!#REF!","v":{"$error":"#REF!"}},{"$f":"Import!#REF!","v":{"$error":"#REF!"}},{"$f":"Import!#REF!","v":{"$error":"#REF!"}}]
[7,{"$f":"Import!#REF!","v":{"$error":"#REF!"}},{"$f":"Import!#REF!","v":{"$error":"#REF!"}},{"$f":"Import!#REF!","v":{"$error":"#REF!"}},{"$f":"Import!#REF!","v":{"$error":"#REF!"}},{"$f":"Import!#REF!","v":{"$error":"#REF!"}}]
[8,{"$f":"Import!#REF!","v":{"$error":"#REF!"}},{"$f":"Import!#REF!","v":{"$error":"#REF!"}},{"$f":"Import!#REF!","v":{"$error":"#REF!"}},{"$f":"Import!#REF!","v":{"$error":"#REF!"}},{"$f":"Import!#REF!","v":{"$error":"#REF!"}}]
[9,{"$f":"Import!#REF!","v":{"$error":"#REF!"}},{"$f":"Import!#REF!","v":{"$error":"#REF!"}},{"$f":"Import!#REF!","v":{"$error":"#REF!"}},{"$f":"Import!#REF!","v":{"$error":"#REF!"}},{"$f":"Import!#REF!","v":{"$error":"#REF!"}}]
[10,{"$f":"Import!#REF!","v":{"$error":"#REF!"}},{"$f":"Import!#REF!","v":{"$error":"#REF!"}},{"$f":"Import!#REF!","v":{"$error":"#REF!"}},{"$f":"Import!#REF!","v":{"$error":"#REF!"}},{"$f":"Import!#REF!","v":{"$error":"#REF!"}}]
[11,{"$f":"Import!#REF!","v":{"$error":"#REF!"}},{"$f":"Import!#REF!","v":{"$error":"#REF!"}},{"$f":"Import!#REF!","v":{"$error":"#REF!"}},{"$f":"Import!#REF!","v":{"$error":"#REF!"}},{"$f":"Import!#REF!","v":{"$error":"#REF!"}}]
[12,{"$f":"Import!#REF!","v":{"$error":"#REF!"}},{"$f":"Import!#REF!","v":{"$error":"#REF!"}},{"$f":"Import!#REF!","v":{"$error":"#REF!"}},{"$f":"Import!#REF!","v":{"$error":"#REF!"}},{"$f":"Import!#REF!","v":{"$error":"#REF!"}}]
[13,{"$f":"Import!#REF!","v":{"$error":"#REF!"}},{"$f":"Import!#REF!","v":{"$error":"#REF!"}},{"$f":"Import!#REF!","v":{"$error":"#REF!"}},{"$f":"Import!#REF!","v":{"$error":"#REF!"}},{"$f":"Import!#REF!","v":{"$error":"#REF!"}}]
[14,{"$f":"Import!#REF!","v":{"$error":"#REF!"}},{"$f":"Import!#REF!","v":{"$error":"#REF!"}},{"$f":"Import!#REF!","v":{"$error":"#REF!"}},{"$f":"Import!#REF!","v":{"$error":"#REF!"}},{"$f":"Import!#REF!","v":{"$error":"#REF!"}}]
[15,{"$f":"Import!#REF!","v":{"$error":"#REF!"}},{"$f":"Import!#REF!","v":{"$error":"#REF!"}},{"$f":"Import!#REF!","v":{"$error":"#REF!"}},{"$f":"Import!#REF!","v":{"$error":"#REF!"}},{"$f":"Import!#REF!","v":{"$error":"#REF!"}}]
[16,{"$f":"Import!#REF!","v":{"$error":"#REF!"}},{"$f":"Import!#REF!","v":{"$error":"#REF!"}},{"$f":"Import!#REF!","v":{"$error":"#REF!"}},{"$f":"Import!#REF!","v":{"$error":"#REF!"}},{"$f":"Import!#REF!","v":{"$error":"#REF!"}}]
[17,{"$f":"Import!#REF!","v":{"$error":"#REF!"}},{"$f":"Import!#REF!","v":{"$error":"#REF!"}},{"$f":"Import!#REF!","v":{"$error":"#REF!"}},{"$f":"Import!#REF!","v":{"$error":"#REF!"}},{"$f":"Import!#REF!","v":{"$error":"#REF!"}}]
[18,{"$f":"Import!#REF!","v":{"$error":"#REF!"}},{"$f":"Import!#REF!","v":{"$error":"#REF!"}},{"$f":"Import!#REF!","v":{"$error":"#REF!"}},{"$f":"Import!#REF!","v":{"$error":"#REF!"}},{"$f":"Import!#REF!","v":{"$error":"#REF!"}}]
[19,{"$f":"Import!#REF!","v":{"$error":"#REF!"}},{"$f":"Import!#REF!","v":{"$error":"#REF!"}},{"$f":"Import!#REF!","v":{"$error":"#REF!"}},{"$f":"Import!#REF!","v":{"$error":"#REF!"}},{"$f":"Import!#REF!","v":{"$error":"#REF!"}}]
[20,{"$f":"Import!#REF!","v":{"$error":"#REF!"}},{"$f":"Import!#REF!","v":{"$error":"#REF!"}},{"$f":"Import!#REF!","v":{"$error":"#REF!"}},{"$f":"Import!#REF!","v":{"$error":"#REF!"}},{"$f":"Import!#REF!","v":{"$error":"#REF!"}}]
[]
[null,"Total Listed Equities & Preference Shares",null,null,{"$f":"SUM(E108:E127)","v":{"$error":"#REF!"}},{"$f":"SUM(F108:F127)","v":{"$error":"#REF!"}}]
[]
[]
[]
[]
[]
[null,"(E) ALTERNATIVE INVESTMENTS"]
[]
[null,null,"Enter # of Asset Types",4]
[]
[null,null,null,null,2021,2021]
[]
[null,"Asset Type","Jurisdiction","BSCR Rating","Face Value","Fair Value","Average YTM","Effective Duration","Effective Convexity"]
[1,{"$f":"Import!#REF!","v":{"$error":"#REF!"}},{"$f":"Import!#REF!","v":{"$error":"#REF!"}},{"$f":"Import!#REF!","v":{"$error":"#REF!"}},{"$f":"Import!#REF!","v":{"$error":"#REF!"}},{"$f":"Import!#REF!","v":{"$error":"#REF!"}},{"$f":"Import!#REF!","v":{"$error":"#REF!"}},{"$f":"Import!#REF!","v":{"$error":"#REF!"}},{"$f":"Import!#REF!","v":{"$error":"#REF!"}}]
[2,{"$f":"Import!#REF!","v":{"$error":"#REF!"}},{"$f":"Import!#REF!","v":{"$error":"#REF!"}},{"$f":"Import!#REF!","v":{"$error":"#REF!"}},{"$f":"Import!#REF!","v":{"$error":"#REF!"}},{"$f":"Import!#REF!","v":{"$error":"#REF!"}},{"$f":"Import!#REF!","v":{"$error":"#REF!"}},{"$f":"Import!#REF!","v":{"$error":"#REF!"}},{"$f":"Import!#REF!","v":{"$error":"#REF!"}}]
[3,{"$f":"Import!#REF!","v":{"$error":"#REF!"}},{"$f":"Import!#REF!","v":{"$error":"#REF!"}},{"$f":"Import!#REF!","v":{"$error":"#REF!"}},{"$f":"Import!#REF!","v":{"$error":"#REF!"}},{"$f":"Import!#REF!","v":{"$error":"#REF!"}},{"$f":"Import!#REF!","v":{"$error":"#REF!"}},{"$f":"Import!#REF!","v":{"$error":"#REF!"}},{"$f":"Import!#REF!","v":{"$error":"#REF!"}}]
[4,{"$f":"Import!#REF!","v":{"$error":"#REF!"}},{"$f":"Import!#REF!","v":{"$error":"#REF!"}},{"$f":"Import!#REF!","v":{"$error":"#REF!"}},{"$f":"Import!#REF!","v":{"$error":"#REF!"}},{"$f":"Import!#REF!","v":{"$error":"#REF!"}},{"$f":"Import!#REF!","v":{"$error":"#REF!"}},{"$f":"Import!#REF!","v":{"$error":"#REF!"}},{"$f":"Import!#REF!","v":{"$error":"#REF!"}}]
[5,{"$f":"Import!#REF!","v":{"$error":"#REF!"}},{"$f":"Import!#REF!","v":{"$error":"#REF!"}},{"$f":"Import!#REF!","v":{"$error":"#REF!"}},{"$f":"Import!#REF!","v":{"$error":"#REF!"}},{"$f":"Import!#REF!","v":{"$error":"#REF!"}},{"$f":"Import!#REF!","v":{"$error":"#REF!"}},{"$f":"Import!#REF!","v":{"$error":"#REF!"}},{"$f":"Import!#REF!","v":{"$error":"#REF!"}}]
[6,{"$f":"Import!#REF!","v":{"$error":"#REF!"}},{"$f":"Import!#REF!","v":{"$error":"#REF!"}},{"$f":"Import!#REF!","v":{"$error":"#REF!"}},{"$f":"Import!#REF!","v":{"$error":"#REF!"}},{"$f":"Import!#REF!","v":{"$error":"#REF!"}},{"$f":"Import!#REF!","v":{"$error":"#REF!"}},{"$f":"Import!#REF!","v":{"$error":"#REF!"}},{"$f":"Import!#REF!","v":{"$error":"#REF!"}}]
[7,{"$f":"Import!#REF!","v":{"$error":"#REF!"}},{"$f":"Import!#REF!","v":{"$error":"#REF!"}},{"$f":"Import!#REF!","v":{"$error":"#REF!"}},{"$f":"Import!#REF!","v":{"$error":"#REF!"}},{"$f":"Import!#REF!","v":{"$error":"#REF!"}},{"$f":"Import!#REF!","v":{"$error":"#REF!"}},{"$f":"Import!#REF!","v":{"$error":"#REF!"}},{"$f":"Import!#REF!","v":{"$error":"#REF!"}}]
[8,{"$f":"Import!#REF!","v":{"$error":"#REF!"}},{"$f":"Import!#REF!","v":{"$error":"#REF!"}},{"$f":"Import!#REF!","v":{"$error":"#REF!"}},{"$f":"Import!#REF!","v":{"$error":"#REF!"}},{"$f":"Import!#REF!","v":{"$error":"#REF!"}},{"$f":"Import!#REF!","v":{"$error":"#REF!"}},{"$f":"Import!#REF!","v":{"$error":"#REF!"}},{"$f":"Import!#REF!","v":{"$error":"#REF!"}}]
[9,{"$f":"Import!#REF!","v":{"$error":"#REF!"}},{"$f":"Import!#REF!","v":{"$error":"#REF!"}},{"$f":"Import!#REF!","v":{"$error":"#REF!"}},{"$f":"Import!#REF!","v":{"$error":"#REF!"}},{"$f":"Import!#REF!","v":{"$error":"#REF!"}},{"$f":"Import!#REF!","v":{"$error":"#REF!"}},{"$f":"Import!#REF!","v":{"$error":"#REF!"}},{"$f":"Import!#REF!","v":{"$error":"#REF!"}}]
[10,{"$f":"Import!#REF!","v":{"$error":"#REF!"}},{"$f":"Import!#REF!","v":{"$error":"#REF!"}},{"$f":"Import!#REF!","v":{"$error":"#REF!"}},{"$f":"Import!#REF!","v":{"$error":"#REF!"}},{"$f":"Import!#REF!","v":{"$error":"#REF!"}},{"$f":"Import!#REF!","v":{"$error":"#REF!"}},{"$f":"Import!#REF!","v":{"$error":"#REF!"}},{"$f":"Import!#REF!","v":{"$error":"#REF!"}}]
[11,{"$f":"Import!#REF!","v":{"$error":"#REF!"}},{"$f":"Import!#REF!","v":{"$error":"#REF!"}},{"$f":"Import!#REF!","v":{"$error":"#REF!"}},{"$f":"Import!#REF!","v":{"$error":"#REF!"}},{"$f":"Import!#REF!","v":{"$error":"#REF!"}},{"$f":"Import!#REF!","v":{"$error":"#REF!"}},{"$f":"Import!#REF!","v":{"$error":"#REF!"}},{"$f":"Import!#REF!","v":{"$error":"#REF!"}}]
[12,{"$f":"Import!#REF!","v":{"$error":"#REF!"}},{"$f":"Import!#REF!","v":{"$error":"#REF!"}},{"$f":"Import!#REF!","v":{"$error":"#REF!"}},{"$f":"Import!#REF!","v":{"$error":"#REF!"}},{"$f":"Import!#REF!","v":{"$error":"#REF!"}},{"$f":"Import!#REF!","v":{"$error":"#REF!"}},{"$f":"Import!#REF!","v":{"$error":"#REF!"}},{"$f":"Import!#REF!","v":{"$error":"#REF!"}}]
[13,{"$f":"Import!#REF!","v":{"$error":"#REF!"}},{"$f":"Import!#REF!","v":{"$error":"#REF!"}},{"$f":"Import!#REF!","v":{"$error":"#REF!"}},{"$f":"Import!#REF!","v":{"$error":"#REF!"}},{"$f":"Import!#REF!","v":{"$error":"#REF!"}},{"$f":"Import!#REF!","v":{"$error":"#REF!"}},{"$f":"Import!#REF!","v":{"$error":"#REF!"}},{"$f":"Import!#REF!","v":{"$error":"#REF!"}}]
[14,{"$f":"Import!#REF!","v":{"$error":"#REF!"}},{"$f":"Import!#REF!","v":{"$error":"#REF!"}},{"$f":"Import!#REF!","v":{"$error":"#REF!"}},{"$f":"Import!#REF!","v":{"$error":"#REF!"}},{"$f":"Import!#REF!","v":{"$error":"#REF!"}},{"$f":"Import!#REF!","v":{"$error":"#REF!"}},{"$f":"Import!#REF!","v":{"$error":"#REF!"}},{"$f":"Import!#REF!","v":{"$error":"#REF!"}}]
[15,{"$f":"Import!#REF!","v":{"$error":"#REF!"}},{"$f":"Import!#REF!","v":{"$error":"#REF!"}},{"$f":"Import!#REF!","v":{"$error":"#REF!"}},{"$f":"Import!#REF!","v":{"$error":"#REF!"}},{"$f":"Import!#REF!","v":{"$error":"#REF!"}},{"$f":"Import!#REF!","v":{"$error":"#REF!"}},{"$f":"Import!#REF!","v":{"$error":"#REF!"}},{"$f":"Import!#REF!","v":{"$error":"#REF!"}}]
[16,{"$f":"Import!#REF!","v":{"$error":"#REF!"}},{"$f":"Import!#REF!","v":{"$error":"#REF!"}},{"$f":"Import!#REF!","v":{"$error":"#REF!"}},{"$f":"Import!#REF!","v":{"$error":"#REF!"}},{"$f":"Import!#REF!","v":{"$error":"#REF!"}},{"$f":"Import!#REF!","v":{"$error":"#REF!"}},{"$f":"Import!#REF!","v":{"$error":"#REF!"}},{"$f":"Import!#REF!","v":{"$error":"#REF!"}}]
[17,{"$f":"Import!#REF!","v":{"$error":"#REF!"}},{"$f":"Import!#REF!","v":{"$error":"#REF!"}},{"$f":"Import!#REF!","v":{"$error":"#REF!"}},{"$f":"Import!#REF!","v":{"$error":"#REF!"}},{"$f":"Import!#REF!","v":{"$error":"#REF!"}},{"$f":"Import!#REF!","v":{"$error":"#REF!"}},{"$f":"Import!#REF!","v":{"$error":"#REF!"}},{"$f":"Import!#REF!","v":{"$error":"#REF!"}}]
[18,{"$f":"Import!#REF!","v":{"$error":"#REF!"}},{"$f":"Import!#REF!","v":{"$error":"#REF!"}},{"$f":"Import!#REF!","v":{"$error":"#REF!"}},{"$f":"Import!#REF!","v":{"$error":"#REF!"}},{"$f":"Import!#REF!","v":{"$error":"#REF!"}},{"$f":"Import!#REF!","v":{"$error":"#REF!"}},{"$f":"Import!#REF!","v":{"$error":"#REF!"}},{"$f":"Import!#REF!","v":{"$error":"#REF!"}}]
[19,{"$f":"Import!#REF!","v":{"$error":"#REF!"}},{"$f":"Import!#REF!","v":{"$error":"#REF!"}},{"$f":"Import!#REF!","v":{"$error":"#REF!"}},{"$f":"Import!#REF!","v":{"$error":"#REF!"}},{"$f":"Import!#REF!","v":{"$error":"#REF!"}},{"$f":"Import!#REF!","v":{"$error":"#REF!"}},{"$f":"Import!#REF!","v":{"$error":"#REF!"}},{"$f":"Import!#REF!","v":{"$error":"#REF!"}}]
[20,{"$f":"Import!#REF!","v":{"$error":"#REF!"}},{"$f":"Import!#REF!","v":{"$error":"#REF!"}},{"$f":"Import!#REF!","v":{"$error":"#REF!"}},{"$f":"Import!#REF!","v":{"$error":"#REF!"}},{"$f":"Import!#REF!","v":{"$error":"#REF!"}},{"$f":"Import!#REF!","v":{"$error":"#REF!"}},{"$f":"Import!#REF!","v":{"$error":"#REF!"}},{"$f":"Import!#REF!","v":{"$error":"#REF!"}}]
[]
[null,"Total Alternative Investments",null,null,{"$f":"SUM(E142:E161)","v":{"$error":"#REF!"}},{"$f":"SUM(F142:F161)","v":{"$error":"#REF!"}},0,0,0]
[]
[]
[]
[]
[]
[null,"(F) LOANS"]
[]
[null,null,"Enter # of Asset Types",4]
[]
[null,null,null,null,2021,2021]
[null,"Asset Type","Jurisdiction","BSCR Rating","Face Value","Fair Value","Average YTM","Effective Duration","Effective Convexity"]
[null,{"$f":"Import!#REF!","v":{"$error":"#REF!"}},{"$f":"Import!#REF!","v":{"$error":"#REF!"}},{"$f":"Import!#REF!","v":{"$error":"#REF!"}},{"$f":"Import!#REF!","v":{"$error":"#REF!"}},{"$f":"Import!#REF!","v":{"$error":"#REF!"}},{"$f":"Import!#REF!","v":{"$error":"#REF!"}},{"$f":"Import!#REF!","v":{"$error":"#REF!"}},{"$f":"Import!#REF!","v":{"$error":"#REF!"}}]
[null,{"$f":"Import!#REF!","v":{"$error":"#REF!"}},{"$f":"Import!#REF!","v":{"$error":"#REF!"}},{"$f":"Import!#REF!","v":{"$error":"#REF!"}},{"$f":"Import!#REF!","v":{"$error":"#REF!"}},{"$f":"Import!#REF!","v":{"$error":"#REF!"}},{"$f":"Import!#REF!","v":{"$error":"#REF!"}},{"$f":"Import!#REF!","v":{"$error":"#REF!"}},{"$f":"Import!#REF!","v":{"$error":"#REF!"}}]
[null,{"$f":"Import!#REF!","v":{"$error":"#REF!"}},{"$f":"Import!#REF!","v":{"$error":"#REF!"}},{"$f":"Import!#REF!","v":{"$error":"#REF!"}},{"$f":"Import!#REF!","v":{"$error":"#REF!"}},{"$f":"Import!#REF!","v":{"$error":"#REF!"}},{"$f":"Import!#REF!","v":{"$error":"#REF!"}},{"$f":"Import!#REF!","v":{"$error":"#REF!"}},{"$f":"Import!#REF!","v":{"$error":"#REF!"}}]
[null,{"$f":"Import!#REF!","v":{"$error":"#REF!"}},{"$f":"Import!#REF!","v":{"$error":"#REF!"}},{"$f":"Import!#REF!","v":{"$error":"#REF!"}},{"$f":"Import!#REF!","v":{"$error":"#REF!"}},{"$f":"Import!#REF!","v":{"$error":"#REF!"}},{"$f":"Import!#REF!","v":{"$error":"#REF!"}},{"$f":"Import!#REF!","v":{"$error":"#REF!"}},{"$f":"Import!#REF!","v":{"$error":"#REF!"}}]
[null,{"$f":"Import!#REF!","v":{"$error":"#REF!"}},{"$f":"Import!#REF!","v":{"$error":"#REF!"}},{"$f":"Import!#REF!","v":{"$error":"#REF!"}},{"$f":"Import!#REF!","v":{"$error":"#REF!"}},{"$f":"Import!#REF!","v":{"$error":"#REF!"}},{"$f":"Import!#REF!","v":{"$error":"#REF!"}},{"$f":"Import!#REF!","v":{"$error":"#REF!"}},{"$f":"Import!#REF!","v":{"$error":"#REF!"}}]
[null,{"$f":"Import!#REF!","v":{"$error":"#REF!"}},{"$f":"Import!#REF!","v":{"$error":"#REF!"}},{"$f":"Import!#REF!","v":{"$error":"#REF!"}},{"$f":"Import!#REF!","v":{"$error":"#REF!"}},{"$f":"Import!#REF!","v":{"$error":"#REF!"}},{"$f":"Import!#REF!","v":{"$error":"#REF!"}},{"$f":"Import!#REF!","v":{"$error":"#REF!"}},{"$f":"Import!#REF!","v":{"$error":"#REF!"}}]
[null,{"$f":"Import!#REF!","v":{"$error":"#REF!"}},{"$f":"Import!#REF!","v":{"$error":"#REF!"}},{"$f":"Import!#REF!","v":{"$error":"#REF!"}},{"$f":"Import!#REF!","v":{"$error":"#REF!"}},{"$f":"Import!#REF!","v":{"$error":"#REF!"}},{"$f":"Import!#REF!","v":{"$error":"#REF!"}},{"$f":"Import!#REF!","v":{"$error":"#REF!"}},{"$f":"Import!#REF!","v":{"$error":"#REF!"}}]
[null,{"$f":"Import!#REF!","v":{"$error":"#REF!"}},{"$f":"Import!#REF!","v":{"$error":"#REF!"}},{"$f":"Import!#REF!","v":{"$error":"#REF!"}},{"$f":"Import!#REF!","v":{"$error":"#REF!"}},{"$f":"Import!#REF!","v":{"$error":"#REF!"}},{"$f":"Import!#REF!","v":{"$error":"#REF!"}},{"$f":"Import!#REF!","v":{"$error":"#REF!"}},{"$f":"Import!#REF!","v":{"$error":"#REF!"}}]
[null,{"$f":"Import!#REF!","v":{"$error":"#REF!"}},{"$f":"Import!#REF!","v":{"$error":"#REF!"}},{"$f":"Import!#REF!","v":{"$error":"#REF!"}},{"$f":"Import!#REF!","v":{"$error":"#REF!"}},{"$f":"Import!#REF!","v":{"$error":"#REF!"}},{"$f":"Import!#REF!","v":{"$error":"#REF!"}},{"$f":"Import!#REF!","v":{"$error":"#REF!"}},{"$f":"Import!#REF!","v":{"$error":"#REF!"}}]
[null,{"$f":"Import!#REF!","v":{"$error":"#REF!"}},{"$f":"Import!#REF!","v":{"$error":"#REF!"}},{"$f":"Import!#REF!","v":{"$error":"#REF!"}},{"$f":"Import!#REF!","v":{"$error":"#REF!"}},{"$f":"Import!#REF!","v":{"$error":"#REF!"}},{"$f":"Import!#REF!","v":{"$error":"#REF!"}},{"$f":"Import!#REF!","v":{"$error":"#REF!"}},{"$f":"Import!#REF!","v":{"$error":"#REF!"}}]
[null,{"$f":"Import!#REF!","v":{"$error":"#REF!"}},{"$f":"Import!#REF!","v":{"$error":"#REF!"}},{"$f":"Import!#REF!","v":{"$error":"#REF!"}},{"$f":"Import!#REF!","v":{"$error":"#REF!"}},{"$f":"Import!#REF!","v":{"$error":"#REF!"}},{"$f":"Import!#REF!","v":{"$error":"#REF!"}},{"$f":"Import!#REF!","v":{"$error":"#REF!"}},{"$f":"Import!#REF!","v":{"$error":"#REF!"}}]
[null,{"$f":"Import!#REF!","v":{"$error":"#REF!"}},{"$f":"Import!#REF!","v":{"$error":"#REF!"}},{"$f":"Import!#REF!","v":{"$error":"#REF!"}},{"$f":"Import!#REF!","v":{"$error":"#REF!"}},{"$f":"Import!#REF!","v":{"$error":"#REF!"}},{"$f":"Import!#REF!","v":{"$error":"#REF!"}},{"$f":"Import!#REF!","v":{"$error":"#REF!"}},{"$f":"Import!#REF!","v":{"$error":"#REF!"}}]
[null,{"$f":"Import!#REF!","v":{"$error":"#REF!"}},{"$f":"Import!#REF!","v":{"$error":"#REF!"}},{"$f":"Import!#REF!","v":{"$error":"#REF!"}},{"$f":"Import!#REF!","v":{"$error":"#REF!"}},{"$f":"Import!#REF!","v":{"$error":"#REF!"}},{"$f":"Import!#REF!","v":{"$error":"#REF!"}},{"$f":"Import!#REF!","v":{"$error":"#REF!"}},{"$f":"Import!#REF!","v":{"$error":"#REF!"}}]
[null,{"$f":"Import!#REF!","v":{"$error":"#REF!"}},{"$f":"Import!#REF!","v":{"$error":"#REF!"}},{"$f":"Import!#REF!","v":{"$error":"#REF!"}},{"$f":"Import!#REF!","v":{"$error":"#REF!"}},{"$f":"Import!#REF!","v":{"$error":"#REF!"}},{"$f":"Import!#REF!","v":{"$error":"#REF!"}},{"$f":"Import!#REF!","v":{"$error":"#REF!"}},{"$f":"Import!#REF!","v":{"$error":"#REF!"}}]
[null,{"$f":"Import!#REF!","v":{"$error":"#REF!"}},{"$f":"Import!#REF!","v":{"$error":"#REF!"}},{"$f":"Import!#REF!","v":{"$error":"#REF!"}},{"$f":"Import!#REF!","v":{"$error":"#REF!"}},{"$f":"Import!#REF!","v":{"$error":"#REF!"}},{"$f":"Import!#REF!","v":{"$error":"#REF!"}},{"$f":"Import!#REF!","v":{"$error":"#REF!"}},{"$f":"Import!#REF!","v":{"$error":"#REF!"}}]
[null,{"$f":"Import!#REF!","v":{"$error":"#REF!"}},{"$f":"Import!#REF!","v":{"$error":"#REF!"}},{"$f":"Import!#REF!","v":{"$error":"#REF!"}},{"$f":"Import!#REF!","v":{"$error":"#REF!"}},{"$f":"Import!#REF!","v":{"$error":"#REF!"}},{"$f":"Import!#REF!","v":{"$error":"#REF!"}},{"$f":"Import!#REF!","v":{"$error":"#REF!"}},{"$f":"Import!#REF!","v":{"$error":"#REF!"}}]
[null,{"$f":"Import!#REF!","v":{"$error":"#REF!"}},{"$f":"Import!#REF!","v":{"$error":"#REF!"}},{"$f":"Import!#REF!","v":{"$error":"#REF!"}},{"$f":"Import!#REF!","v":{"$error":"#REF!"}},{"$f":"Import!#REF!","v":{"$error":"#REF!"}},{"$f":"Import!#REF!","v":{"$error":"#REF!"}},{"$f":"Import!#REF!","v":{"$error":"#REF!"}},{"$f":"Import!#REF!","v":{"$error":"#REF!"}}]
[null,{"$f":"Import!#REF!","v":{"$error":"#REF!"}},{"$f":"Import!#REF!","v":{"$error":"#REF!"}},{"$f":"Import!#REF!","v":{"$error":"#REF!"}},{"$f":"Import!#REF!","v":{"$error":"#REF!"}},{"$f":"Import!#REF!","v":{"$error":"#REF!"}},{"$f":"Import!#REF!","v":{"$error":"#REF!"}},{"$f":"Import!#REF!","v":{"$error":"#REF!"}},{"$f":"Import!#REF!","v":{"$error":"#REF!"}}]
[null,{"$f":"Import!#REF!","v":{"$error":"#REF!"}},{"$f":"Import!#REF!","v":{"$error":"#REF!"}},{"$f":"Import!#REF!","v":{"$error":"#REF!"}},{"$f":"Import!#REF!","v":{"$error":"#REF!"}},{"$f":"Import!#REF!","v":{"$error":"#REF!"}},{"$f":"Import!#REF!","v":{"$error":"#REF!"}},{"$f":"Import!#REF!","v":{"$error":"#REF!"}},{"$f":"Import!#REF!","v":{"$error":"#REF!"}}]
[null,{"$f":"Import!#REF!","v":{"$error":"#REF!"}},{"$f":"Import!#REF!","v":{"$error":"#REF!"}},{"$f":"Import!#REF!","v":{"$error":"#REF!"}},{"$f":"Import!#REF!","v":{"$error":"#REF!"}},{"$f":"Import!#REF!","v":{"$error":"#REF!"}},{"$f":"Import!#REF!","v":{"$error":"#REF!"}},{"$f":"Import!#REF!","v":{"$error":"#REF!"}},{"$f":"Import!#REF!","v":{"$error":"#REF!"}}]
[]
[null,"Total Loans",null,null,{"$f":"SUM(E175:E194)","v":{"$error":"#REF!"}},{"$f":"SUM(F175:F194)","v":{"$error":"#REF!"}},0,0,0]
[]
[]
[]
[]
[]
[null,"(G) REAL ESTATE"]
[]
[null,null,"Enter # of Asset Types",4]
[]
[null,null,null,null,2021,2021]
[]
[null,"Asset Type","Jurisdiction","Purpose","Face Value","Fair Value"]
[null,{"$f":"Import!#REF!","v":{"$error":"#REF!"}},{"$f":"Import!#REF!","v":{"$error":"#REF!"}},{"$f":"Import!#REF!","v":{"$error":"#REF!"}},{"$f":"Import!#REF!","v":{"$error":"#REF!"}},{"$f":"Import!#REF!","v":{"$error":"#REF!"}}]
[null,{"$f":"Import!#REF!","v":{"$error":"#REF!"}},{"$f":"Import!#REF!","v":{"$error":"#REF!"}},{"$f":"Import!#REF!","v":{"$error":"#REF!"}},{"$f":"Import!#REF!","v":{"$error":"#REF!"}},{"$f":"Import!#REF!","v":{"$error":"#REF!"}}]
[null,{"$f":"Import!#REF!","v":{"$error":"#REF!"}},{"$f":"Import!#REF!","v":{"$error":"#REF!"}},{"$f":"Import!#REF!","v":{"$error":"#REF!"}},{"$f":"Import!#REF!","v":{"$error":"#REF!"}},{"$f":"Import!#REF!","v":{"$error":"#REF!"}}]
[null,{"$f":"Import!#REF!","v":{"$error":"#REF!"}},{"$f":"Import!#REF!","v":{"$error":"#REF!"}},{"$f":"Import!#REF!","v":{"$error":"#REF!"}},{"$f":"Import!#REF!","v":{"$error":"#REF!"}},{"$f":"Import!#REF!","v":{"$error":"#REF!"}}]
[null,{"$f":"Import!#REF!","v":{"$error":"#REF!"}},{"$f":"Import!#REF!","v":{"$error":"#REF!"}},{"$f":"Import!#REF!","v":{"$error":"#REF!"}},{"$f":"Import!#REF!","v":{"$error":"#REF!"}},{"$f":"Import!#REF!","v":{"$error":"#REF!"}}]
[null,{"$f":"Import!#REF!","v":{"$error":"#REF!"}},{"$f":"Import!#REF!","v":{"$error":"#REF!"}},{"$f":"Import!#REF!","v":{"$error":"#REF!"}},{"$f":"Import!#REF!","v":{"$error":"#REF!"}},{"$f":"Import!#REF!","v":{"$error":"#REF!"}}]
[null,{"$f":"Import!#REF!","v":{"$error":"#REF!"}},{"$f":"Import!#REF!","v":{"$error":"#REF!"}},{"$f":"Import!#REF!","v":{"$error":"#REF!"}},{"$f":"Import!#REF!","v":{"$error":"#REF!"}},{"$f":"Import!#REF!","v":{"$error":"#REF!"}}]
[null,{"$f":"Import!#REF!","v":{"$error":"#REF!"}},{"$f":"Import!#REF!","v":{"$error":"#REF!"}},{"$f":"Import!#REF!","v":{"$error":"#REF!"}},{"$f":"Import!#REF!","v":{"$error":"#REF!"}},{"$f":"Import!#REF!","v":{"$error":"#REF!"}}]
[null,{"$f":"Import!#REF!","v":{"$error":"#REF!"}},{"$f":"Import!#REF!","v":{"$error":"#REF!"}},{"$f":"Import!#REF!","v":{"$error":"#REF!"}},{"$f":"Import!#REF!","v":{"$error":"#REF!"}},{"$f":"Import!#REF!","v":{"$error":"#REF!"}}]
[null,{"$f":"Import!#REF!","v":{"$error":"#REF!"}},{"$f":"Import!#REF!","v":{"$error":"#REF!"}},{"$f":"Import!#REF!","v":{"$error":"#REF!"}},{"$f":"Import!#REF!","v":{"$error":"#REF!"}},{"$f":"Import!#REF!","v":{"$error":"#REF!"}}]
[null,{"$f":"Import!#REF!","v":{"$error":"#REF!"}},{"$f":"Import!#REF!","v":{"$error":"#REF!"}},{"$f":"Import!#REF!","v":{"$error":"#REF!"}},{"$f":"Import!#REF!","v":{"$error":"#REF!"}},{"$f":"Import!#REF!","v":{"$error":"#REF!"}}]
[null,{"$f":"Import!#REF!","v":{"$error":"#REF!"}},{"$f":"Import!#REF!","v":{"$error":"#REF!"}},{"$f":"Import!#REF!","v":{"$error":"#REF!"}},{"$f":"Import!#REF!","v":{"$error":"#REF!"}},{"$f":"Import!#REF!","v":{"$error":"#REF!"}}]
[null,{"$f":"Import!#REF!","v":{"$error":"#REF!"}},{"$f":"Import!#REF!","v":{"$error":"#REF!"}},{"$f":"Import!#REF!","v":{"$error":"#REF!"}},{"$f":"Import!#REF!","v":{"$error":"#REF!"}},{"$f":"Import!#REF!","v":{"$error":"#REF!"}}]
[null,{"$f":"Import!#REF!","v":{"$error":"#REF!"}},{"$f":"Import!#REF!","v":{"$error":"#REF!"}},{"$f":"Import!#REF!","v":{"$error":"#REF!"}},{"$f":"Import!#REF!","v":{"$error":"#REF!"}},{"$f":"Import!#REF!","v":{"$error":"#REF!"}}]
[null,{"$f":"Import!#REF!","v":{"$error":"#REF!"}},{"$f":"Import!#REF!","v":{"$error":"#REF!"}},{"$f":"Import!#REF!","v":{"$error":"#REF!"}},{"$f":"Import!#REF!","v":{"$error":"#REF!"}},{"$f":"Import!#REF!","v":{"$error":"#REF!"}}]
[null,{"$f":"Import!#REF!","v":{"$error":"#REF!"}},{"$f":"Import!#REF!","v":{"$error":"#REF!"}},{"$f":"Import!#REF!","v":{"$error":"#REF!"}},{"$f":"Import!#REF!","v":{"$error":"#REF!"}},{"$f":"Import!#REF!","v":{"$error":"#REF!"}}]
[null,{"$f":"Import!#REF!","v":{"$error":"#REF!"}},{"$f":"Import!#REF!","v":{"$error":"#REF!"}},{"$f":"Import!#REF!","v":{"$error":"#REF!"}},{"$f":"Import!#REF!","v":{"$error":"#REF!"}},{"$f":"Import!#REF!","v":{"$error":"#REF!"}}]
[null,{"$f":"Import!#REF!","v":{"$error":"#REF!"}},{"$f":"Import!#REF!","v":{"$error":"#REF!"}},{"$f":"Import!#REF!","v":{"$error":"#REF!"}},{"$f":"Import!#REF!","v":{"$error":"#REF!"}},{"$f":"Import!#REF!","v":{"$error":"#REF!"}}]
[null,{"$f":"Import!#REF!","v":{"$error":"#REF!"}},{"$f":"Import!#REF!","v":{"$error":"#REF!"}},{"$f":"Import!#REF!","v":{"$error":"#REF!"}},{"$f":"Import!#REF!","v":{"$error":"#REF!"}},{"$f":"Import!#REF!","v":{"$error":"#REF!"}}]
[null,{"$f":"Import!#REF!","v":{"$error":"#REF!"}},{"$f":"Import!#REF!","v":{"$error":"#REF!"}},{"$f":"Import!#REF!","v":{"$error":"#REF!"}},{"$f":"Import!#REF!","v":{"$error":"#REF!"}},{"$f":"Import!#REF!","v":{"$error":"#REF!"}}]
[]
[null,"Total Real Estate",null,null,{"$f":"SUM(E209:E228)","v":{"$error":"#REF!"}},{"$f":"SUM(F209:F228)","v":{"$error":"#REF!"}}]
[]
[]
[]
[]
[]
[null,"(H) DERIVATIVES"]
[]
[null,null,"Enter # of Derivative Types",4]
[]
[null,"Derivative Type","Underlying","Purpose","Position"," 2021       Market Value","Centrally Cleared","Notional Value","Exposure (Dollar Delta, DV01, CS01"]
[null,{"$f":"Import!#REF!","v":{"$error":"#REF!"}},{"$f":"Import!#REF!","v":{"$error":"#REF!"}},{"$f":"Import!#REF!","v":{"$error":"#REF!"}},{"$f":"Import!#REF!","v":{"$error":"#REF!"}},{"$f":"Import!#REF!","v":{"$error":"#REF!"}},{"$f":"Import!#REF!","v":{"$error":"#REF!"}},{"$f":"Import!#REF!","v":{"$error":"#REF!"}},{"$f":"Import!#REF!","v":{"$error":"#REF!"}}]
[null,{"$f":"Import!#REF!","v":{"$error":"#REF!"}},{"$f":"Import!#REF!","v":{"$error":"#REF!"}},{"$f":"Import!#REF!","v":{"$error":"#REF!"}},{"$f":"Import!#REF!","v":{"$error":"#REF!"}},{"$f":"Import!#REF!","v":{"$error":"#REF!"}},{"$f":"Import!#REF!","v":{"$error":"#REF!"}},{"$f":"Import!#REF!","v":{"$error":"#REF!"}},{"$f":"Import!#REF!","v":{"$error":"#REF!"}}]
[null,{"$f":"Import!#REF!","v":{"$error":"#REF!"}},{"$f":"Import!#REF!","v":{"$error":"#REF!"}},{"$f":"Import!#REF!","v":{"$error":"#REF!"}},{"$f":"Import!#REF!","v":{"$error":"#REF!"}},{"$f":"Import!#REF!","v":{"$error":"#REF!"}},{"$f":"Import!#REF!","v":{"$error":"#REF!"}},{"$f":"Import!#REF!","v":{"$error":"#REF!"}},{"$f":"Import!#REF!","v":{"$error":"#REF!"}}]
[null,{"$f":"Import!#REF!","v":{"$error":"#REF!"}},{"$f":"Import!#REF!","v":{"$error":"#REF!"}},{"$f":"Import!#REF!","v":{"$error":"#REF!"}},{"$f":"Import!#REF!","v":{"$error":"#REF!"}},{"$f":"Import!#REF!","v":{"$error":"#REF!"}},{"$f":"Import!#REF!","v":{"$error":"#REF!"}},{"$f":"Import!#REF!","v":{"$error":"#REF!"}},{"$f":"Import!#REF!","v":{"$error":"#REF!"}}]
[null,{"$f":"Import!#REF!","v":{"$error":"#REF!"}},{"$f":"Import!#REF!","v":{"$error":"#REF!"}},{"$f":"Import!#REF!","v":{"$error":"#REF!"}},{"$f":"Import!#REF!","v":{"$error":"#REF!"}},{"$f":"Import!#REF!","v":{"$error":"#REF!"}},{"$f":"Import!#REF!","v":{"$error":"#REF!"}},{"$f":"Import!#REF!","v":{"$error":"#REF!"}},{"$f":"Import!#REF!","v":{"$error":"#REF!"}}]
[null,{"$f":"Import!#REF!","v":{"$error":"#REF!"}},{"$f":"Import!#REF!","v":{"$error":"#REF!"}},{"$f":"Import!#REF!","v":{"$error":"#REF!"}},{"$f":"Import!#REF!","v":{"$error":"#REF!"}},{"$f":"Import!#REF!","v":{"$error":"#REF!"}},{"$f":"Import!#REF!","v":{"$error":"#REF!"}},{"$f":"Import!#REF!","v":{"$error":"#REF!"}},{"$f":"Import!#REF!","v":{"$error":"#REF!"}}]
[null,{"$f":"Import!#REF!","v":{"$error":"#REF!"}},{"$f":"Import!#REF!","v":{"$error":"#REF!"}},{"$f":"Import!#REF!","v":{"$error":"#REF!"}},{"$f":"Import!#REF!","v":{"$error":"#REF!"}},{"$f":"Import!#REF!","v":{"$error":"#REF!"}},{"$f":"Import!#REF!","v":{"$error":"#REF!"}},{"$f":"Import!#REF!","v":{"$error":"#REF!"}},{"$f":"Import!#REF!","v":{"$error":"#REF!"}}]
[null,{"$f":"Import!#REF!","v":{"$error":"#REF!"}},{"$f":"Import!#REF!","v":{"$error":"#REF!"}},{"$f":"Import!#REF!","v":{"$error":"#REF!"}},{"$f":"Import!#REF!","v":{"$error":"#REF!"}},{"$f":"Import!#REF!","v":{"$error":"#REF!"}},{"$f":"Import!#REF!","v":{"$error":"#REF!"}},{"$f":"Import!#REF!","v":{"$error":"#REF!"}},{"$f":"Import!#REF!","v":{"$error":"#REF!"}}]
[null,{"$f":"Import!#REF!","v":{"$error":"#REF!"}},{"$f":"Import!#REF!","v":{"$error":"#REF!"}},{"$f":"Import!#REF!","v":{"$error":"#REF!"}},{"$f":"Import!#REF!","v":{"$error":"#REF!"}},{"$f":"Import!#REF!","v":{"$error":"#REF!"}},{"$f":"Import!#REF!","v":{"$error":"#REF!"}},{"$f":"Import!#REF!","v":{"$error":"#REF!"}},{"$f":"Import!#REF!","v":{"$error":"#REF!"}}]
[null,{"$f":"Import!#REF!","v":{"$error":"#REF!"}},{"$f":"Import!#REF!","v":{"$error":"#REF!"}},{"$f":"Import!#REF!","v":{"$error":"#REF!"}},{"$f":"Import!#REF!","v":{"$error":"#REF!"}},{"$f":"Import!#REF!","v":{"$error":"#REF!"}},{"$f":"Import!#REF!","v":{"$error":"#REF!"}},{"$f":"Import!#REF!","v":{"$error":"#REF!"}},{"$f":"Import!#REF!","v":{"$error":"#REF!"}}]
[null,{"$f":"Import!#REF!","v":{"$error":"#REF!"}},{"$f":"Import!#REF!","v":{"$error":"#REF!"}},{"$f":"Import!#REF!","v":{"$error":"#REF!"}},{"$f":"Import!#REF!","v":{"$error":"#REF!"}},{"$f":"Import!#REF!","v":{"$error":"#REF!"}},{"$f":"Import!#REF!","v":{"$error":"#REF!"}},{"$f":"Import!#REF!","v":{"$error":"#REF!"}},{"$f":"Import!#REF!","v":{"$error":"#REF!"}}]
[null,{"$f":"Import!#REF!","v":{"$error":"#REF!"}},{"$f":"Import!#REF!","v":{"$error":"#REF!"}},{"$f":"Import!#REF!","v":{"$error":"#REF!"}},{"$f":"Import!#REF!","v":{"$error":"#REF!"}},{"$f":"Import!#REF!","v":{"$error":"#REF!"}},{"$f":"Import!#REF!","v":{"$error":"#REF!"}},{"$f":"Import!#REF!","v":{"$error":"#REF!"}},{"$f":"Import!#REF!","v":{"$error":"#REF!"}}]
[null,{"$f":"Import!#REF!","v":{"$error":"#REF!"}},{"$f":"Import!#REF!","v":{"$error":"#REF!"}},{"$f":"Import!#REF!","v":{"$error":"#REF!"}},{"$f":"Import!#REF!","v":{"$error":"#REF!"}},{"$f":"Import!#REF!","v":{"$error":"#REF!"}},{"$f":"Import!#REF!","v":{"$error":"#REF!"}},{"$f":"Import!#REF!","v":{"$error":"#REF!"}},{"$f":"Import!#REF!","v":{"$error":"#REF!"}}]
[null,{"$f":"Import!#REF!","v":{"$error":"#REF!"}},{"$f":"Import!#REF!","v":{"$error":"#REF!"}},{"$f":"Import!#REF!","v":{"$error":"#REF!"}},{"$f":"Import!#REF!","v":{"$error":"#REF!"}},{"$f":"Import!#REF!","v":{"$error":"#REF!"}},{"$f":"Import!#REF!","v":{"$error":"#REF!"}},{"$f":"Import!#REF!","v":{"$error":"#REF!"}},{"$f":"Import!#REF!","v":{"$error":"#REF!"}}]
[null,{"$f":"Import!#REF!","v":{"$error":"#REF!"}},{"$f":"Import!#REF!","v":{"$error":"#REF!"}},{"$f":"Import!#REF!","v":{"$error":"#REF!"}},{"$f":"Import!#REF!","v":{"$error":"#REF!"}},{"$f":"Import!#REF!","v":{"$error":"#REF!"}},{"$f":"Import!#REF!","v":{"$error":"#REF!"}},{"$f":"Import!#REF!","v":{"$error":"#REF!"}},{"$f":"Import!#REF!","v":{"$error":"#REF!"}}]
[null,{"$f":"Import!#REF!","v":{"$error":"#REF!"}},{"$f":"Import!#REF!","v":{"$error":"#REF!"}},{"$f":"Import!#REF!","v":{"$error":"#REF!"}},{"$f":"Import!#REF!","v":{"$error":"#REF!"}},{"$f":"Import!#REF!","v":{"$error":"#REF!"}},{"$f":"Import!#REF!","v":{"$error":"#REF!"}},{"$f":"Import!#REF!","v":{"$error":"#REF!"}},{"$f":"Import!#REF!","v":{"$error":"#REF!"}}]
[null,{"$f":"Import!#REF!","v":{"$error":"#REF!"}},{"$f":"Import!#REF!","v":{"$error":"#REF!"}},{"$f":"Import!#REF!","v":{"$error":"#REF!"}},{"$f":"Import!#REF!","v":{"$error":"#REF!"}},{"$f":"Import!#REF!","v":{"$error":"#REF!"}},{"$f":"Import!#REF!","v":{"$error":"#REF!"}},{"$f":"Import!#REF!","v":{"$error":"#REF!"}},{"$f":"Import!#REF!","v":{"$error":"#REF!"}}]
[null,{"$f":"Import!#REF!","v":{"$error":"#REF!"}},{"$f":"Import!#REF!","v":{"$error":"#REF!"}},{"$f":"Import!#REF!","v":{"$error":"#REF!"}},{"$f":"Import!#REF!","v":{"$error":"#REF!"}},{"$f":"Import!#REF!","v":{"$error":"#REF!"}},{"$f":"Import!#REF!","v":{"$error":"#REF!"}},{"$f":"Import!#REF!","v":{"$error":"#REF!"}},{"$f":"Import!#REF!","v":{"$error":"#REF!"}}]
[null,{"$f":"Import!#REF!","v":{"$error":"#REF!"}},{"$f":"Import!#REF!","v":{"$error":"#REF!"}},{"$f":"Import!#REF!","v":{"$error":"#REF!"}},{"$f":"Import!#REF!","v":{"$error":"#REF!"}},{"$f":"Import!#REF!","v":{"$error":"#REF!"}},{"$f":"Import!#REF!","v":{"$error":"#REF!"}},{"$f":"Import!#REF!","v":{"$error":"#REF!"}},{"$f":"Import!#REF!","v":{"$error":"#REF!"}}]
[null,{"$f":"Import!#REF!","v":{"$error":"#REF!"}},{"$f":"Import!#REF!","v":{"$error":"#REF!"}},{"$f":"Import!#REF!","v":{"$error":"#REF!"}},{"$f":"Import!#REF!","v":{"$error":"#REF!"}},{"$f":"Import!#REF!","v":{"$error":"#REF!"}},{"$f":"Import!#REF!","v":{"$error":"#REF!"}},{"$f":"Import!#REF!","v":{"$error":"#REF!"}},{"$f":"Import!#REF!","v":{"$error":"#REF!"}}]
[]
[null,"Total Derivatives",null,null,null,{"$f":"SUM(F241:F260)","v":{"$error":"#REF!"}},null,0,0]
[]
[]
[]
[]
[]
[null,"(I) OTHER ASSETS"]
[]
[null,null,"Enter # of Asset Types",4]
[]
[null,null,null,null,2021,2021]
[]
[null,"Asset Type","Jurisdiction","BSCR Rating","Face Value","Fair Value"]
[1,{"$f":"Import!#REF!","v":{"$error":"#REF!"}},{"$f":"Import!#REF!","v":{"$error":"#REF!"}},{"$f":"Import!#REF!","v":{"$error":"#REF!"}},{"$f":"Import!#REF!","v":{"$error":"#REF!"}},{"$f":"Import!#REF!","v":{"$error":"#REF!"}}]
[2,{"$f":"Import!#REF!","v":{"$error":"#REF!"}},{"$f":"Import!#REF!","v":{"$error":"#REF!"}},{"$f":"Import!#REF!","v":{"$error":"#REF!"}},{"$f":"Import!#REF!","v":{"$error":"#REF!"}},{"$f":"Import!#REF!","v":{"$error":"#REF!"}}]
[3,{"$f":"Import!#REF!","v":{"$error":"#REF!"}},{"$f":"Import!#REF!","v":{"$error":"#REF!"}},{"$f":"Import!#REF!","v":{"$error":"#REF!"}},{"$f":"Import!#REF!","v":{"$error":"#REF!"}},{"$f":"Import!#REF!","v":{"$error":"#REF!"}}]
[4,{"$f":"Import!#REF!","v":{"$error":"#REF!"}},{"$f":"Import!#REF!","v":{"$error":"#REF!"}},{"$f":"Import!#REF!","v":{"$error":"#REF!"}},{"$f":"Import!#REF!","v":{"$error":"#REF!"}},{"$f":"Import!#REF!","v":{"$error":"#REF!"}}]
[5,{"$f":"Import!#REF!","v":{"$error":"#REF!"}},{"$f":"Import!#REF!","v":{"$error":"#REF!"}},{"$f":"Import!#REF!","v":{"$error":"#REF!"}},{"$f":"Import!#REF!","v":{"$error":"#REF!"}},{"$f":"Import!#REF!","v":{"$error":"#REF!"}}]
[6,{"$f":"Import!#REF!","v":{"$error":"#REF!"}},{"$f":"Import!#REF!","v":{"$error":"#REF!"}},{"$f":"Import!#REF!","v":{"$error":"#REF!"}},{"$f":"Import!#REF!","v":{"$error":"#REF!"}},{"$f":"Import!#REF!","v":{"$error":"#REF!"}}]
[7,{"$f":"Import!#REF!","v":{"$error":"#REF!"}},{"$f":"Import!#REF!","v":{"$error":"#REF!"}},{"$f":"Import!#REF!","v":{"$error":"#REF!"}},{"$f":"Import!#REF!","v":{"$error":"#REF!"}},{"$f":"Import!#REF!","v":{"$error":"#REF!"}}]
[8,{"$f":"Import!#REF!","v":{"$error":"#REF!"}},{"$f":"Import!#REF!","v":{"$error":"#REF!"}},{"$f":"Import!#REF!","v":{"$error":"#REF!"}},{"$f":"Import!#REF!","v":{"$error":"#REF!"}},{"$f":"Import!#REF!","v":{"$error":"#REF!"}}]
[9,{"$f":"Import!#REF!","v":{"$error":"#REF!"}},{"$f":"Import!#REF!","v":{"$error":"#REF!"}},{"$f":"Import!#REF!","v":{"$error":"#REF!"}},{"$f":"Import!#REF!","v":{"$error":"#REF!"}},{"$f":"Import!#REF!","v":{"$error":"#REF!"}}]
[10,{"$f":"Import!#REF!","v":{"$error":"#REF!"}},{"$f":"Import!#REF!","v":{"$error":"#REF!"}},{"$f":"Import!#REF!","v":{"$error":"#REF!"}},{"$f":"Import!#REF!","v":{"$error":"#REF!"}},{"$f":"Import!#REF!","v":{"$error":"#REF!"}}]
[11,{"$f":"Import!#REF!","v":{"$error":"#REF!"}},{"$f":"Import!#REF!","v":{"$error":"#REF!"}},{"$f":"Import!#REF!","v":{"$error":"#REF!"}},{"$f":"Import!#REF!","v":{"$error":"#REF!"}},{"$f":"Import!#REF!","v":{"$error":"#REF!"}}]
[12,{"$f":"Import!#REF!","v":{"$error":"#REF!"}},{"$f":"Import!#REF!","v":{"$error":"#REF!"}},{"$f":"Import!#REF!","v":{"$error":"#REF!"}},{"$f":"Import!#REF!","v":{"$error":"#REF!"}},{"$f":"Import!#REF!","v":{"$error":"#REF!"}}]
[13,{"$f":"Import!#REF!","v":{"$error":"#REF!"}},{"$f":"Import!#REF!","v":{"$error":"#REF!"}},{"$f":"Import!#REF!","v":{"$error":"#REF!"}},{"$f":"Import!#REF!","v":{"$error":"#REF!"}},{"$f":"Import!#REF!","v":{"$error":"#REF!"}}]
[14,{"$f":"Import!#REF!","v":{"$error":"#REF!"}},{"$f":"Import!#REF!","v":{"$error":"#REF!"}},{"$f":"Import!#REF!","v":{"$error":"#REF!"}},{"$f":"Import!#REF!","v":{"$error":"#REF!"}},{"$f":"Import!#REF!","v":{"$error":"#REF!"}}]
[15,{"$f":"Import!#REF!","v":{"$error":"#REF!"}},{"$f":"Import!#REF!","v":{"$error":"#REF!"}},{"$f":"Import!#REF!","v":{"$error":"#REF!"}},{"$f":"Import!#REF!","v":{"$error":"#REF!"}},{"$f":"Import!#REF!","v":{"$error":"#REF!"}}]
[16,{"$f":"Import!#REF!","v":{"$error":"#REF!"}},{"$f":"Import!#REF!","v":{"$error":"#REF!"}},{"$f":"Import!#REF!","v":{"$error":"#REF!"}},{"$f":"Import!#REF!","v":{"$error":"#REF!"}},{"$f":"Import!#REF!","v":{"$error":"#REF!"}}]
[17,{"$f":"Import!#REF!","v":{"$error":"#REF!"}},{"$f":"Import!#REF!","v":{"$error":"#REF!"}},{"$f":"Import!#REF!","v":{"$error":"#REF!"}},{"$f":"Import!#REF!","v":{"$error":"#REF!"}},{"$f":"Import!#REF!","v":{"$error":"#REF!"}}]
[18,{"$f":"Import!#REF!","v":{"$error":"#REF!"}},{"$f":"Import!#REF!","v":{"$error":"#REF!"}},{"$f":"Import!#REF!","v":{"$error":"#REF!"}},{"$f":"Import!#REF!","v":{"$error":"#REF!"}},{"$f":"Import!#REF!","v":{"$error":"#REF!"}}]
[19,{"$f":"Import!#REF!","v":{"$error":"#REF!"}},{"$f":"Import!#REF!","v":{"$error":"#REF!"}},{"$f":"Import!#REF!","v":{"$error":"#REF!"}},{"$f":"Import!#REF!","v":{"$error":"#REF!"}},{"$f":"Import!#REF!","v":{"$error":"#REF!"}}]
[20,{"$f":"Import!#REF!","v":{"$error":"#REF!"}},{"$f":"Import!#REF!","v":{"$error":"#REF!"}},{"$f":"Import!#REF!","v":{"$error":"#REF!"}},{"$f":"Import!#REF!","v":{"$error":"#REF!"}},{"$f":"Import!#REF!","v":{"$error":"#REF!"}}]
[]
[null,"Total Other Assets",null,null,null,{"$f":"SUM(F275:F294)","v":{"$error":"#REF!"}}]
[]
[]
[null,"TOTAL ASSETS",null,null,null,{"$f":"F34+F67+F96+F129+F163+F196+F230+F262+F296","v":{"$error":"#REF!"}}]
[]
[null,"TOTAL FUNDS HELD BY CEDING REINSURERS (Form 1EBS Line 12)",null,null,null,{"$f":"'Form 1EBS'!F71","v":0}]
[]
[null,"Check Form 1EBS (Line 12)",null,null,null,{"$f":"IF(F304=\"TRUE\",HYPERLINK(\"#'Form 1SFS'!E16:M31\",\"TRUE\"),HYPERLINK(\"#'Form 1SFS'!E16:M31\",\"FALSE\"))","v":{"$error":"#REF!"}}]
[null,null,null,null,null,{"$f":"IF(ROUND((F299-F301),0)=0,\"TRUE\",\"FALSE\")","v":{"$error":"#REF!"}}]
[null,"Difference",null,null,null,{"$f":"ROUND(F301-F299,0)","v":{"$error":"#REF!"}}]
[]
[]
[null,"EFFECTIVE DURATION",null,null,{"$f":"Import!#REF!","v":{"$error":"#REF!"}}]
[]
[null,"EFFECTIVE CONVEXITY",null,null,{"$f":"Import!#REF!","v":{"$error":"#REF!"}}]

{"sheet":"Schedule IX(a)","index":59,"n_rows":121,"n_cols":7,"rows_kept":121,"cut":false,"hidden":false,"merged":[[104,1,104,3],[2,1,2,3],[3,1,3,2],[29,1,29,6],[70,1,70,4],[31,1,31,6],[35,1,35,6],[16,1,16,2],[84,1,84,3],[0,1,0,5],[69,1,69,5],[80,1,80,6],[72,1,72,6],[76,1,76,6]]}
[null,"SCHEDULE OF COMMERCIAL INSURER'S SOLVENCY SELF ASSESSMENT (CISSA) CAPITAL SUMMARY (TABLE 8)",null,null,null,null,{"$f":"HYPERLINK(\"#'Index'!A1\",\"Return to Index\")","v":"Return to Index"}]
[null,{"$f":"'Company Information'!C7","v":"Enter Company Name"}]
[null,{"$f":" TEXT('Company Information'!C3,\"d mmmm yyyy\")","v":"31 December 2023"},null,null,null,null,"SCHEDULE IX(a)"]
[null,{"$f":"\"expressed in\"& IF(CONFIGURATION!$B$12>1,\" ['\"&MID(CONFIGURATION!$B$12,2,LEN(CONFIGURATION!$B$12))&\"s]\",\"\")","v":"expressed in ['000s]"},null,{"$f":"'Form 1EBS'!C4","v":"United States Dollars"}]
[]
[null,"Note: Documents supporting the CISSA filing should be retained for such period as specified in the [Rules]"]
[]
[null,"Risk Categories",null,null,"a) CISSA capital",null,"b) Regulatory capital "]
[]
[null,{"$f":"IF('Company Information'!$F$11=\"Class 3A\",\"Underwriting Risk\",\"Premium risk\")","v":"Underwriting Risk"},null,null,{"$f":"Import!M39202","v":0},null,{"$f":"IF('Company Information'!$F$11=\"Class 3A\",SUM('Company Specific Parameters'!L683:L685),'Company Specific Parameters'!L683)","v":0}]
[null,"Reserve risk",null,null,{"$f":"Import!M39203","v":0},null,{"$f":"IF('Company Information'!$F$11=\"Class 3A\",0,'Company Specific Parameters'!L684)","v":0}]
[null,"Catastrophe risk",null,null,{"$f":"Import!M39204","v":0},null,{"$f":"IF('Company Information'!$F$11=\"Class 3A\",0,'Company Specific Parameters'!L685)","v":0}]
[null,"Market risk",null,null,{"$f":"Import!M39205","v":0},null,{"$f":"'Company Specific Parameters'!K677+'Company Specific Parameters'!K678+'Company Specific Parameters'!K680","v":0}]
[null,"Credit risk",null,null,{"$f":"Import!M39206","v":0},null,{"$f":"'Company Specific Parameters'!L682","v":0}]
[null,"Liquidity risk",null,null,{"$f":"Import!M39207","v":0},null,{"$f":"'Company Specific Parameters'!K679","v":0}]
[null,"Group, Concentration, Reputational and Strategic risk",null,null,{"$f":"Import!M39208","v":0},null,{"$f":"'Company Specific Parameters'!K681","v":0}]
[null,"Other (specify)",null,null,{"$f":"Import!M39209","v":0},null,0]
[]
[null,"Total capital pre-diversification between risk categories",null,null,{"$f":"SUM(E10:E17)","v":0},null,{"$f":"SUM(G10:G17)","v":0}]
[]
[null,"Diversification credit between risk categories",null,null,{"$f":"Import!M39211","v":0},null,{"$f":"G19-G23","v":0}]
[]
[null,"Total capital after diversification between risk catagories before operational risk",null,null,{"$f":"E19-E21","v":0},null,{"$f":"Summary!N90-Summary!N78","v":0}]
[]
[null,"Operational risk",null,null,{"$f":"Import!M39213","v":0},null,{"$f":"'Company Specific Parameters'!L693","v":0}]
[]
[null,"Total capital after diversification and operational risk",null,null,{"$f":"E23+E25","v":0},null,{"$f":"G23+G25","v":0}]
[]
[null,"Where:"]
["a)","CISSA capital is the amount of capital the insurer has determined that it requires to achieve its strategic goals upon undertaking an assessment of all material (reasonably foreseeable) risks arising from its operations or operating environment; and"]
[]
["b)","Regulatory capital is determined by the BSCR or an approved internal capital model at 99.0% Tail Value-at-Risk (TVaR) over a one year time horizon. "]
[]
[null,"ADDITIONAL INFORMATION"]
[]
[null,"The insurer should review the following statements and select from the drop-down list as applicable and/or provide a brief description or an attachment.  Where an attachment is provided, include references (e.g. page number, paragraph number) of where the information is located in the comments box in the attachments tab."]
[]
[1,"What is the primary reason(s) (select multiple responses where applicable) for aiming at the disclosed  CISSA Capital amount? (select all that apply by choosing Yes/No )"]
[]
[null,{"$f":"Import!E39215","v":"Select Yes/No"}," Target agency rating (e.g. \"A-\", \"AA\", etc) "]
[null,{"$f":"Import!E39216","v":"Select Yes/No"}," Market share "]
[null,{"$f":"Import!E39217","v":"Select Yes/No"}," Business expansion "]
[null,{"$f":"Import!E39218","v":"Select Yes/No"}," Nature of product(s) (e.g. risk characteristics) "]
[null,{"$f":"Import!E39219","v":"Select Yes/No"}," Manage downgrade risk"]
[null,{"$f":"Import!E39220","v":"Select Yes/No"}," Regulatory capital requirements"]
[null,{"$f":"Import!E39221","v":"Select Yes/No"}," Others ",{"$f":"Import!E39222","v":0}]
[]
[2,"What methodology is used to aggregate the risk categories in deriving the CISSA capital? (select all that apply by choosing Yes/No)"]
[]
[null,{"$f":"Import!E39223","v":"Select Yes/No"}," Correlation matrix"]
[null,{"$f":"Import!E39224","v":"Select Yes/No"}," Linear correlations"]
[null,{"$f":"Import!E39225","v":"Select Yes/No"}," T copulas"]
[null,{"$f":"Import!E39226","v":"Select Yes/No"}," Gumbel copulas"]
[null,{"$f":"Import!E39227","v":"Select Yes/No"}," Clayton copulas"]
[null,{"$f":"Import!E39228","v":"Select Yes/No"}," Causal drivers approach e.g. inflation, cycles"]
[null,{"$f":"Import!E39229","v":"Select Yes/No"}," Others",{"$f":"Import!E39230","v":0}]
[]
[3,"What contingency plans are in place for raising additional capital under stress situations? (select all that apply by choosing Yes/No)"]
[]
[null,{"$f":"Import!E39231","v":"Select Yes/No"}," Parental guarantees"]
[null,{"$f":"Import!E39232","v":"Select Yes/No"}," Revolving letters of credit"]
[null,{"$f":"Import!E39233","v":"Select Yes/No"}," Issue subordinated debt"]
[null,{"$f":"Import!E39234","v":"Select Yes/No"}," Issue preference shares"]
[null,{"$f":"Import!E39235","v":"Select Yes/No"}," Float additional shares"]
[null,{"$f":"Import!E39236","v":"Select Yes/No"}," Capital injections from parent"]
[null,{"$f":"Import!E39237","v":"Select Yes/No"}," Contingent surplus notes"]
[null,{"$f":"Import!E39238","v":"Select Yes/No"}," Catastrophe derivatives (e.g. bonds, swaps and options)"]
[null,{"$f":"Import!E39239","v":"Select Yes/No"}," Others ",{"$f":"Import!E39240","v":0}]
[]
[4,"Does the insurer have arrangements/ contractual commitments to provide support including forward purchase, arrangements or guarantees to affiliates/other ",null,null,null,null,{"$f":"Import!E39241","v":"Select Yes/No"}]
[null,"companies in stressed situations? (Yes or No)"]
[null,"If yes, briefly describe the arrangement(s) and the aggregate exposure."]
[null,{"$f":"Import!E39242","v":0}]
[]
[5,"Has the insurer down streamed debt to establish equity positions (participations), or engaged in double or multiple gearing? (Yes or No)",null,null,null,null,{"$f":"Import!E39243","v":"Select Yes/No"}]
[null,"If yes, provide details and amount of capital ."]
[null,{"$f":"Import!E39244","v":0}]
[]
[6,"Has debt been down streamed to establish equity positions in the insurer, or is the insurer using capital that is double or multiple geared? (Yes or No)",null,null,null,null,{"$f":"Import!E39245","v":"Select Yes/No"}]
[null,"If yes, provide details and amount of capital."]
[null,{"$f":"Import!E39246","v":0}]
[]
[7,"Are there any assets of a subsidiary of the insurer that are restricted for use that cannot be transferred to another subsidiary or the insurer, that were not included in ",null,null,null,null,{"$f":"Import!E39247","v":"Select Yes/No"}]
[null,"the encumbered assets (both for policyholder obligations and not for policyholder obligations) reported in the Schedule of Eligible Capital? (Yes or No)"]
[null,{"$f":"HYPERLINK(\"#'Attachments'!G115\",\"Provide details in the CISSA Attachments section if there are any restrictions of movement of assets/payment of dividends:\")","v":"Provide details in the CISSA Attachments section if there are any restrictions of movement of assets/payment of dividends:"}]
[null,null,null,null,null,"Total restricted assets",{"$f":"Import!E39248","v":0}]
[null,null,null,null,null,"Less: Regulatory capital requirements for members for which the assets pertain",{"$f":"Import!E39249","v":0}]
[null,null,null,null,null,"Restricted assets in excess of capital requirements to the extent that these amounts are not included in "]
[null,null,null,null,null,"the encumbered assets reported in the Eligible Capital Schedule",{"$f":"G86-G87","v":0}]
[]
[null,null,null,"Yes"]
[null,null,null,"No","Contingency plans for additional capital"]
[]
[null,null,null,null,"Parental guarantees"]
[null,null,null,null,"revolving letters of credit"]
[null,null,null,null,"Contingent capital arrangements"]
[null,null,null,null,"Issue subordinated debt"]
[null,null,null,null,"Issue preference shares"]
[null,null,null,null,"Float additional shares"]
[null,null,null,null,"Capital injections from parent"]
[]
[]
[null,null,null,null,"Correlation matrix "]
[null,null,null,null,"Linear correlations"]
[null,null,null,null,"T copulas"]
[null,null,null,null,"Gumbel copulas"]
[null,null,null,null,"Clayton copulas"]
[null,null,null,null,"Causal drivers approach e.g. inflation, cycles"]
[null,null,null,null,"Other"]
[]
[]
[null,null,null,null,"Not applicable"]
[]
[]
[]
[]
[]
[]
[]
[null,null,null,null,"Yes"]
[null,null,null,null,"No"]

{"sheet":"Schedule IX(b)","index":60,"n_rows":100,"n_cols":8,"rows_kept":100,"cut":false,"hidden":false,"merged":[[68,1,68,5],[10,1,10,4],[11,1,11,4],[12,1,12,4],[13,1,13,4],[25,1,25,4],[26,2,26,4],[19,1,19,4],[20,1,20,4],[21,1,21,4],[22,1,22,4],[23,1,23,4],[24,1,24,4],[31,1,31,3],[32,1,32,3],[33,2,33,3],[0,1,0,3],[2,1,2,2],[58,1,58,4],[6,1,6,3],[42,1,42,3],[43,1,43,3],[44,1,44,3],[53,1,53,3],[57,1,57,5],[54,1,54,3],[45,1,45,3],[46,1,46,3],[47,1,47,3],[48,1,48,3],[49,1,49,3],[60,1,60,4],[62,1,62,3],[64,1,64,4],[18,1,18,4],[4,1,4,5],[14,1,14,4],[15,1,15,4],[16,1,16,4],[17,1,17,4]]}
[null,"SCHEDULE OF COMMERCIAL INSURER'S SOLVENCY SELF ASSESSMENT (CISSA) GENERAL QUESTIONS (TABLE 8A)",null,null,null,null,null,{"$f":"HYPERLINK(\"#'Index'!A1\",\"Return to Index\")","v":"Return to Index"}]
[null,{"$f":"'Company Information'!C7","v":"Enter Company Name"}]
[null,{"$f":" TEXT('Company Information'!C3,\"d mmmm yyyy\")","v":"31 December 2023"},null,null,null,null,null,"SCHEDULE IX(b)"]
[]
[null,"The insurer should review the following statements and select from the drop-down list as applicable and/or provide a brief description or an attachment. Where an attachment is provided, include references (e.g. page number, paragraph number) of where the information is located within the attachment."]
[]
[1,"Is the CISSA and its underlying information integrated (i.e. considered when making key strategic decisions) into  the insurer's strategic and risk management decision-making processes? (Yes or No)",null,null,null,{"$f":"Import!E39252","v":"Select Yes/No"}]
[]
[null,"If Yes, how is CISSA and its underlying information used? (select all that apply by choosing Yes/No )"]
[]
[null,"Strategic planning",null,null,null,{"$f":"Import!E39253","v":"Select Yes/No"}]
[null,"Annual business planning",null,null,null,{"$f":"Import!E39254","v":"Select Yes/No"}]
[null,"Setting risk limits",null,null,null,{"$f":"Import!E39255","v":"Select Yes/No"}]
[null,"Defining risk appetite",null,null,null,{"$f":"Import!E39256","v":"Select Yes/No"}]
[null,"Evaluation of capital adequacy",null,null,null,{"$f":"Import!E39257","v":"Select Yes/No"}]
[null,"Allocation of capital to business segments and lines of business",null,null,null,{"$f":"Import!E39258","v":"Select Yes/No"}]
[null,"Capital management",null,null,null,{"$f":"Import!E39259","v":"Select Yes/No"}]
[null,"Determination of rates of return for pricing and underwriting guidelines",null,null,null,{"$f":"Import!E39260","v":"Select Yes/No"}]
[null,"Reinsurance purchase",null,null,null,{"$f":"Import!E39261","v":"Select Yes/No"}]
[null,"Determination of investment policies and strategies",null,null,null,{"$f":"Import!E39262","v":"Select Yes/No"}]
[null,"Meeting regulatory requirements",null,null,null,{"$f":"Import!E39263","v":"Select Yes/No"}]
[null,"Improving credit rating",null,null,null,{"$f":"Import!E39264","v":"Select Yes/No"}]
[null,"Improving investor relations",null,null,null,{"$f":"Import!E39265","v":"Select Yes/No"}]
[null,"Assessing risk adjusted product profitability",null,null,null,{"$f":"Import!E39266","v":"Select Yes/No"}]
[null,"Performance measurement and assessment",null,null,null,{"$f":"Import!E39267","v":"Select Yes/No"}]
[null,"Improving mergers and acquisition decisions",null,null,null,{"$f":"Import!E39268","v":"Select Yes/No"}]
[null,"Others",{"$f":"Import!E39270","v":0},null,null,{"$f":"Import!E39269","v":"Select Yes/No"}]
[]
[2,"CISSA Mitigation Risk:"]
[null,"The section will automatically score and aggregate the results."]
[]
[null,"Questions",null,null,"Yes/No",null,null,"Score"]
[null,"Is there a potential for the insurer to have an accumulation of losses to material lines of business outside of the property catastrophe line that will threaten the solvency of the insurer? ",null,null,null,null,null,{"$f":"IF(E33=\"No\", (900/9),0)","v":0}]
[null,null,"If yes, what are the potential cause(s) of the accumulation of losses?"]
[null,null,null,"(a) A severe event"]
[null,null,null,"(b) Series of many small events or individual claims"]
[null,null,null,"(c) Over concentration of exposure to one product"]
[null,null,null,"(d) Over concentration to one source of business"]
[null,null,null,"(e) Over concentration to one line of business"]
[null,null,null,"(f) A common cause across many underwriting years (e.g., asbestos, pollution, silicon, etc.)"]
[null,null,null,"(g) Others (list)"]
[]
[null,"Does the insurer have absolute limitations set on individual policies or groups of policies to avoid threatening its solvency (such as limitations on a geographical basis, product basis, line of business basis, source of business basis, etc.)?",null,null,null,null,null,{"$f":"IF(E43=\"Yes\", (900/9), 0)","v":0}]
[null,"If yes to the above, are the limitations assessed for reasonableness and effectiveness in reducing the threat to solvency?",null,null,null,null,null,{"$f":"IF(E44=\"Yes\", (900/9), 0)","v":0}]
[null,"Does the insurer have procedures in place to assess the adequacy of the reinsurance purchased both from a severity and frequency perspective for solvency purposes, and ensure that there are no significant mismatches between the policies issued by the insurer and the reinsurance programme (e.g. that basis risk does not exist, etc.)?",null,null,null,null,null,0]
[null,"Does the insurer have access to additional capital and surplus to cover loss and loss adjustment expenses (eg. letters of credit, parental guarantees, other contingent capital sources, etc.)?",null,null,null,null,null,0]
[null,"Are policies, processes and procedures in place that employ benchmarking and stress and scenario testing to assess, review, and approve underwriting strategies and tolerance limits? ",null,null,null,null,null,0]
[null,"Are policies, processes and procedures in place to ensure that underwriting strategies are effectively aligned with risk tolerance levels? ",null,null,null,null,null,0]
[null,"Are policies, processes and procedures in place to identify, evaluate, and monitor risks arising from insurance policies, and ensure compliance with risk tolerance levels?",null,null,null,null,null,0]
[null,"Are systems in place to capture, maintain, and analyse underwriting data; and ensure that relevant and accurate data is used to price underwriting contracts, establish adequate reserves, and appropriately settle claims? ",null,null,null,null,null,{"$f":"IF(E50=\"Yes\", (900/9), 0)","v":0}]
[null,null,null,null,null,null,null,{"$f":"SUM(H33:H50)","v":0}]
[3,"Related Business:"]
[]
[null,"Questions",null,null,"%",null,null,"Charge"]
[null,"What percentage of the gross premiums written cover an ultimate related policyholder?",null,null,null,null,null,{"$f":"E55","v":0}]
[]
[null,"Comments (optionally, the insurer may provide comments in the box below to support its responses above):"]
[]
[{"$f":"IF('Company Information'!$F$11=\"Class 3A\",4,2)","v":4},"Has the insurer applied reverse stress testing to both identify the scenarios that could cause business failure and the required actions to manage such situations? (Yes or No)",null,null,null,{"$f":"Import!E39271","v":"Select Yes/No"}]
[]
[{"$f":"IF('Company Information'!$F$11=\"Class 3A\",5,3)","v":5},"Is the CISSA process clearly documented and regularly amended for changes in strategic direction, risk management framework, and market developments? (Yes or No)",null,null,null,{"$f":"Import!E39272","v":"Select Yes/No"}]
[]
[{"$f":"IF('Company Information'!$F$11=\"Class 3A\",6,4)","v":6},"How often is the information underlying CISSA discussed and reviewed by the board and chief and senior executives?",null,null,null,{"$f":"Import!E39273","v":"Select"}]
[]
[{"$f":"IF('Company Information'!$F$11=\"Class 3A\",7,5)","v":7},"Have the board and chief and senior executives ensured that an appropriate oversight process is in place, including an appropriate level of independent verification, whereby material deficiencies are reported on a timely basis and suitable actions taken? (Yes or No)",null,null,null,{"$f":"Import!E39274","v":"Select Yes/No"}]
[]
[null,"Optionally, the insurer may provide brief comments."]
[]
[null,{"$f":"Import!E39275","v":0}]
[]
[]
[]
[]
[]
[]
[]
[]
[]
[]
[]
[null,null,null,"Select Yes/No"]
[null,null,null,"Yes"]
[null,null,null,"No"]
[null,null,null,"Select"]
[null,null,null,"Annually"]
[null,null,null,"Semi-annually"]
[null,null,null,"Quarterly"]
[null,null,null,"Monthly"]
[null,null,null,"Bi-monthly"]
[null,null,null,"Ad-hoc"]
[null,null,null,"Other"]
[null,null,null,"Select"]
[null,null,null,"Strong"]
[null,null,null,"Moderate"]
[null,null,null,"Weak"]
[]
[null,null,null,"Select"]
[null,null,null,"Fully documented"]
[null,null,null,"Partially documented"]
[null,null,null,"Other"]

{"sheet":"Schedule IX(c)","index":61,"n_rows":111,"n_cols":8,"rows_kept":111,"cut":false,"hidden":false,"merged":[[19,1,19,5],[21,1,21,5],[23,1,23,5],[25,1,25,5],[64,12,64,14],[65,1,65,3],[65,12,65,14],[59,2,59,5],[61,1,61,5],[63,1,63,5],[2,1,2,3],[11,1,11,5],[81,4,81,5],[81,1,81,3],[66,1,66,3],[68,1,68,3],[67,1,67,3],[72,1,72,3],[13,1,13,5],[4,1,5,5],[7,2,8,5],[9,2,9,5],[33,1,33,5],[57,2,57,5],[27,1,27,5],[29,1,29,5],[11,6,13,6],[11,7,13,7],[0,1,0,4],[80,1,80,3],[80,4,80,5],[78,1,78,3],[79,1,79,3],[76,1,76,3],[77,1,77,3],[74,1,74,3],[75,1,75,3],[73,1,73,3],[69,1,69,3],[70,1,70,3],[71,1,71,3],[1,1,1,3]]}
[null,"SCHEDULE OF COMMERCIAL INSURER'S SOLVENCY SELF ASSESSMENT (CISSA) ASSESSMENT OF MATERIAL RISKS OF THE INSURER (TABLE 8B)",null,null,null,null,null,{"$f":"HYPERLINK(\"#'Index'!A1\",\"Return to Index\")","v":"Return to Index"}]
[null,{"$f":"'Company Information'!C7","v":"Enter Company Name"}]
[null,{"$f":" TEXT('Company Information'!C3,\"d mmmm yyyy\")","v":"31 December 2023"},null,null,null,null,null,"SCHEDULE IX(c)"]
[]
[null,"The board must review policies, processes, and procedures to assess its material risks and self-determine the capital requirement it would need to support its insurance undertaking, at least annually. Minimally, the assessment should:"]
[]
[null,"•","Be an integral part of the insurer's risk management framework"]
[null,"•","Be clearly documented, reviewed, and evaluated regularly by the board and the chief and senior executives to ensure continual advancement in light of changes in the strategic direction, risk management framework, and market developments; and"]
[]
[null,"•","Ensure an appropriate oversight process whereby material deficiencies are reported on a timely basis and suitable actions taken."]
[]
[null,"The insurer shall undertake and file with the Authority the insurer's most recent report (\"insurer-specific report\") comprising of a solvency self-assessment of its material risks and the determination of both the quality (types of capital) and quantity of CISSA capital required to cover these risks, while remaining solvent and achieving the insurer's business goals.",null,null,null,null,"Doc. No","Page. No"]
[]
[null,"The insurer-specific report should minimally include:"]
[]
[1,"Date the assessment was completed and the insurer-specific report last updated."]
[]
[2,"A description of the insurer's business and strategy."]
[]
[3,"The identification and assessment of all reasonably foreseeable material risks, including those specified in the Insurance Code of Conduct (i.e. insurance underwriting risk; investment, liquidity and concentration risk; market risk; credit risk; operational risk; group risk; strategic risk; reputational risk; and legal risk)."]
[]
[4,"The identification of the relationships of the material risks with one another, and the quantity and type of capital required to cover the risks."]
[]
[5,"A description of the insurer's risk appetite, including limits imposed and how they are enforced, and their key performance indicators."]
[]
[6,"Assumptions and methodology used to assess and aggregate risks."]
[]
[7,"A forward looking analysis of the risks faced by the insurer over its planning horizon and an analysis demonstrating the ability to manage its business and capital needs in adverse circumstances and still meet regulatory capital requirements."]
[]
[8,"An evaluation of whether the insurer has sufficient capital and liquidity available, including an assessment of whether capital is fungible and assets are transferable, to achieve its strategic goals over its planning horizon and any potential adverse consequences if insufficient."]
[]
[9,"A description of business continuity and disaster plans."]
[]
[10,"A description of how the results of the self-assessment are integrated into the management and strategic decision making process."]
[]
[11,"Approval and signed declaration of the CISSA assessment by two members of the Board of Directors."]
[]
[11,{"$f":"IF('Company Information'!$F$11=\"Class 3A\",\"The risk measure, time horizon, and confidence level (if any) used to determine the CISSA capital.\",\"For each material risk identified under 3 above, the submission should minimally include:\")","v":"The risk measure, time horizon, and confidence level (if any) used to determine the CISSA capital."}]
[]
[null,"a)","Identification of the risk owner, qualifications and responsibilities."]
[]
[null,"b) ","The key performance indicators used to monitor compliance with the risk appetite."]
[]
[null,"c)","The risk drivers (e.g. for catastrophe risk the drivers could be US earthquake, European windstorm, terrorism etc)?"]
[]
[null,"d) ","The primary model(s)/tool(s) used to calculate the CISSA capital for the risk, where applicable."]
[]
[null,"e)","The primary sources of data used as inputs to the model(s)/tool(s)."]
[]
[null,"f)","The key assumptions used in the assessment of the risk."]
[]
[null,"g)","A description and quantitative impact of stress and scenarios test on capital (if any) including key assumptions."]
[]
[null,"h)","A description of measures taken to transfer or otherwise mitigate the risk."]
[]
[null,"i)","Quantification of the risk if the insurer is holding capital against it both pre and post diversification."]
[]
[{"$f":"IF('Company Information'!$F$11=\"Class 3A\",12,\"\")","v":12},{"$f":"IF('Company Information'!$F$11=\"Class 3A\",\"\",\"j)\")","v":""},"An explanation of the primary reasons for any material deviations between the CISSA capital as it pertains to the risk (if holding capital against the risk) and the regulatory capital charge for the risk, if the deviation is greater than 15%."]
[]
[null,"(*)","Where attachments are submitted, include references (e.g. page number, paragraph number) of where the information is located in the comments box in the attachments tab."]
[]
[null,"The insurer shall select the appropriate response. Where an optional attachment is provided to disclose additional information,  the insurer shall include references (e.g. page number, paragraph number) of where the information is located in the comments box in the attachments tab."]
[]
[12,"Model(s)/tool(s) used to calculate the CISSA capital "]
[]
[null,"Governance",null,null,"Select","Comments"]
["a)","Does the board of directors, chief and senior executives approve the design, maintenance and use of the model(s)/tool(s)?",null,null,{"$f":"Import!E39277","v":"Select Yes/No"},{"$f":"Import!E39288","v":0}]
["b)","How often does the board or relevant board committees review outputs, changes and issues arising from the model(s)/tool(s) (review should be documented  e.g.  minutes, presentations etc)?",null,null,{"$f":"Import!E39278","v":"Select"},{"$f":"Import!E39289","v":0}]
["c)","Does the board and chief and senior executives have a  general understanding of the key assumptions/elements and the implications of the outputs (including limitations) of the model(s)/tool(s)?",null,null,{"$f":"Import!E39279","v":"Select Yes/No"},{"$f":"Import!E39290","v":0}]
[null,"Validation",null,null,"Select","Comments"]
["d)","Is the model(s)/tool(s) subject to a regular cycle of validation, which includes the monitoring of performance, review appropriateness of model specifications and testing of forecast results against actual results?",null,null,{"$f":"Import!E39280","v":"Select Yes/No"},{"$f":"Import!E39291","v":0}]
["e)","How often is the validation of the model(s)/tool(s) performed?",null,null,{"$f":"Import!E39281","v":"Select"},{"$f":"Import!E39292","v":0}]
["f)","Does the validation process demonstrate that the model(s)/tool(s) remains suitable during changing conditions (e.g. changes in inflation, interest rate, etc)? If no, provide comments.",null,null,{"$f":"Import!E39282","v":"Select Yes/No"},{"$f":"Import!E39293","v":0}]
[null,"Documentation",null,null,"Select","Comments"]
["g)","Does the insurer have formal documentation of the structure, design, operational details, input assumptions, parameters, governance process and controls of the model(s)/tool(s)?",null,null,{"$f":"Import!E39283","v":"Select Yes/No"},{"$f":"Import!E39294","v":0}]
["h)","If yes, to what extent is the model(s)/tool(s) documented such that it can be used by new personnel with limited user experience? (include comments for partial or no documentations)",null,null,{"$f":"Import!E39284","v":"Select"},{"$f":"Import!E39295","v":0}]
["i)","How often does the board of directors or chief and senior executives review and approve the model/input documentation?",null,null,{"$f":"Import!E39285","v":"Select"},{"$f":"Import!E39296","v":0}]
[null,"Internal controls",null,null,"Select","Comments"]
["j)","How does the insurer rate the effectiveness of the controls in place to monitor and evaluate the operation and maintenance of the model(s)/tool(s)?",null,null,{"$f":"Import!E39286","v":"Select"},{"$f":"Import!E39297","v":0}]
["k)","Are there strict protocols in place restricting access to the model(s)/tool(s) and ability to make adjustments thereto?",null,null,{"$f":"Import!E39287","v":"Select Yes/No"},{"$f":"Import!E39298","v":0}]
[null,"Others",null,null,"List"]
["l)","What is the risk measure (VaR,TVaR etc), confidence interval (95%, 99.95% etc)  and time horizon (1 year, 3 years etc) used to derive CISSA capital?",null,null,{"$f":"Import!E39299","v":0}]
[]
[]
[]
[]
[]
[]
[]
[]
[]
[null,null,null,null,null,"Select Yes/No"]
[null,null,null,null,null,"Yes"]
[null,null,null,null,null,"No"]
[null,null,null,null,null,"Select"]
[null,null,null,null,null,"Annually"]
[null,null,null,null,null,"Semi-annually"]
[null,null,null,null,null,"Quarterly"]
[null,null,null,null,null,"Monthly"]
[null,null,null,null,null,"Bi-monthly"]
[null,null,null,null,null,"Ad-hoc"]
[null,null,null,null,null,"Other"]
[null,null,null,null,null,"Select"]
[null,null,null,null,null,"Strong"]
[null,null,null,null,null,"Moderate"]
[null,null,null,null,null,"Weak"]
[]
[null,null,null,null,null,"Select"]
[null,null,null,null,null,"Fully documented"]
[null,null,null,null,null,"Partially documented"]
[null,null,null,null,null,"Other"]

{"sheet":"Schedule X(a)","index":62,"n_rows":81,"n_cols":10,"rows_kept":81,"cut":false,"hidden":false,"merged":[[35,4,35,6],[35,8,35,10],[32,8,32,10],[38,4,38,6],[38,8,38,10],[33,8,33,10],[34,4,34,6],[34,8,34,10],[36,4,36,6],[36,8,36,10],[37,4,37,6],[37,8,37,10],[2,1,2,2],[5,4,5,5],[5,6,5,7],[30,8,30,10],[31,8,31,10],[39,4,39,6],[39,8,39,10],[40,4,40,6],[40,8,40,10],[42,4,42,6],[42,8,42,10],[41,4,41,6],[41,8,41,10],[52,4,52,6],[52,8,52,10],[43,4,43,6],[43,8,43,10],[44,4,44,6],[44,8,44,10],[45,4,45,6],[45,8,45,10],[50,4,50,6],[50,8,50,10],[51,4,51,6],[51,8,51,10],[48,4,48,6],[48,8,48,10],[49,4,49,6],[49,8,49,10],[55,4,55,6],[55,8,55,10],[56,4,56,6],[56,8,56,10],[63,8,63,10],[59,4,59,6],[59,8,59,10],[60,4,60,6],[60,8,60,10],[61,4,61,6],[61,8,61,10],[62,4,62,6],[62,8,62,10],[63,4,63,6],[64,8,64,10],[67,8,67,10],[70,8,70,10],[71,4,71,5],[71,8,71,10],[68,8,68,10],[69,8,69,10],[80,6,81,7],[72,4,72,5],[72,8,72,10],[73,8,73,10],[74,8,74,10]]}
[null,"CATASTROPHE RISK RETURN: EP CURVE TOTAL (TABLE 9)",null,null,null,null,null,null,null,{"$f":"HYPERLINK(\"#'Index'!A1\",\"Return to Index\")","v":"Return to Index"}]
[null,{"$f":"'Company Information'!C7","v":"Enter Company Name"}]
[null,{"$f":" TEXT('Company Information'!C3+1,\"d mmmm yyyy\")","v":"1 January 2024"},null,null,null,null,null,null,null,"SCHEDULE X(a)"]
[]
[null,"1. Exceedance probability information:"]
[null,null,null,null," Gross loss",null,"Net loss"]
[null,null,null,"Loss return period (years)","Gross per occurrence loss TVaR","Gross aggregate TVaR","Net per occurrence loss TVaR","Net aggregate TVaR "]
[null,null,null,null," (US$M)"," (US$M)"," (US$M)"," (US$M)"]
[null,null,null,50,{"$f":"Import!I39301","v":0},{"$f":"Import!I39306","v":0},{"$f":"Import!I39311","v":0},{"$f":"Import!I39316","v":0}]
[null,null,null,100,{"$f":"Import!I39302","v":0},{"$f":"Import!I39307","v":0},{"$f":"Import!I39312","v":0},{"$f":"Import!I39317","v":0}]
[null,null,null,250,{"$f":"Import!I39303","v":0},{"$f":"Import!I39308","v":0},{"$f":"Import!I39313","v":0},{"$f":"Import!I39318","v":0}]
[null,null,null,500,{"$f":"Import!I39304","v":0},{"$f":"Import!I39309","v":0},{"$f":"Import!I39314","v":0},{"$f":"Import!I39319","v":0}]
[null,null,null,1000,{"$f":"Import!I39305","v":0},{"$f":"Import!I39310","v":0},{"$f":"Import!I39315","v":0},{"$f":"Import!I39320","v":0}]
[]
[null,null,null,null," Gross Loss (US$M)",null,null,null,null," Net Loss (US$M)"]
[null,null,null,"Annual average aggregate gross loss",{"$f":"Import!I39321","v":0},null,null,null,"Annual average aggregate net loss (net of reinstatements terms)",{"$f":"Import!I39331","v":0}]
[null,null,null,null,null,null,null,null,"Reinstatement terms included in Annual average aggregated net loss",{"$f":"Import!I39332","v":0}]
[null,null,null,"Standard deviation of annual aggregate gross loss",{"$f":"Import!I39322","v":0},null,null,null,"Standard deviation of annual aggregate net loss (net of reinstatements terms)",{"$f":"Import!I39333","v":0}]
[]
[null,null,null,"Total gross statutory property catastrophe premium modeled ",{"$f":"Import!I39323","v":0},null,null,null,"Total net statutory property catastrophe premium modeled",{"$f":"Import!I39334","v":0}]
[null,null,null,"Total gross all other catastrophe premium modeled",{"$f":"Import!I39324","v":0},null,null,null,"Total net all other catastrophe premium modeled",{"$f":"Import!I39335","v":0}]
[]
[null,null,null,"Total gross statutory property catastrophe limits exposed - modeled",{"$f":"Import!I39325","v":0},null,null,null,"Total net statutory property catastrophe limits exposed – modeled",{"$f":"Import!I39336","v":0}]
[null,null,null,"Total gross statutory property catastrophe limits exposed - not modeled",{"$f":"Import!I39326","v":0},null,null,null,"Total net statutory property catastrophe limits exposed– not modeled",{"$f":"Import!I39337","v":0}]
[null,null,null,"Total gross all other lines limits exposed - modeled",{"$f":"Import!I39327","v":0},null,null,null,"Total net all other lines limits exposed – modeled",{"$f":"Import!I39338","v":0}]
[null,null,null,"Total gross all other lines limits exposed  - not modeled",{"$f":"Import!I39328","v":0},null,null,null,"Total net all other lines limits exposed - not modeled",{"$f":"Import!I39339","v":0}]
[null,null,null,"Total gross premium without an occurrence or aggregate limit:",{"$f":"Import!I39329","v":0},null,null,null,"Total net premium without an occurrence or aggregate limit",{"$f":"Import!I39340","v":0}]
[null,null,null,"Total gross premium with non determinable Total Insured Value (“TIV”):",{"$f":"Import!I39330","v":0},null,null,null,"Total net premium with non-determinable TIV:",{"$f":"Import!I39341","v":0}]
[]
[null,"2. Significant sources of catastrophe risk and associated loss included in the EP Curves"]
[null,null,null,"Allocated loss adjustment expense",{"$f":"Import!I39342","v":"Select Yes/No"},null,null,{"$f":"IF(E31=\"No\",\"If no, why not:\",\"\")","v":""}]
[null,null,null,"Property - buildings",{"$f":"Import!I39343","v":"Select Yes/No"},null,null,""]
[null,null,null,"Property - contents",{"$f":"Import!I39344","v":"Select Yes/No"},null,null,""]
[null,null,null,"Additional living expenses",{"$f":"Import!I39345","v":"Select Yes/No"},null,null,""]
[null,null,null,"Business interruption",{"$f":"Import!I39346","v":"Select"},null,null,""]
[null,null,null,"Auto physical damage",{"$f":"Import!I39347","v":"Select"},null,null,""]
[null,null,null,"Worker's compensation",{"$f":"Import!I39348","v":"Select"},null,null,""]
[null,null,null,"Personal accident",{"$f":"Import!I39349","v":"Select"},null,null,""]
[null,null,null,"Life insurance",{"$f":"Import!I39350","v":"Select"},null,null,""]
[null,null,null,"Onshore energy",{"$f":"Import!I39351","v":"Select"},null,null,""]
[null,null,null,"Offshore energy",{"$f":"Import!I39352","v":"Select"},null,null,""]
[null,null,null,"Ocean marine",{"$f":"Import!I39353","v":"Select"},null,null,""]
[null,null,null,"Inland marine",{"$f":"Import!I39354","v":"Select"},null,null,""]
[null,null,null,"Flood",{"$f":"Import!I39355","v":"Select"},null,null,""]
[null,null,null,"Crop",{"$f":"Import!I39356","v":"Select"},null,null,""]
[null,null,null,"Other primary insurance",{"$f":"Import!I39357","v":"Select"},null,null,""]
[]
[null,"3. Assumed reinsurance information:"]
[null,null,null,"Proportional - quota share",{"$f":"Import!I39358","v":"Select"},null,null,{"$f":"IF(E49=\"No\",\"If no, why not:\",\"\")","v":""}]
[null,null,null,"Proportional - surplus share",{"$f":"Import!I39359","v":"Select"},null,null,{"$f":"IF(E50=\"No\",\"If no, why not:\",\"\")","v":""}]
[null,null,null,"Non-proportional - catastrophe",{"$f":"Import!I39360","v":"Select"},null,null,{"$f":"IF(E51=\"No\",\"If no, why not:\",\"\")","v":""}]
[null,null,null,"Non-proportional - per risk",{"$f":"Import!I39361","v":"Select"},null,null,{"$f":"IF(E52=\"No\",\"If no, why not:\",\"\")","v":""}]
[null,null,null,"Other reinsurance assumed",{"$f":"Import!I39362","v":"Select"},null,null,{"$f":"IF(E53=\"No\",\"If no, why not:\",\"\")","v":""}]
[]
[null,"4. Pools and assessments information:"]
[null,null,null,"Voluntary pools and/or assessments",{"$f":"Import!I39363","v":"Select"},null,null,{"$f":"IF(E56=\"No\",\"If no, why not:\",\"\")","v":""}]
[null,null,null,"Involuntary pools and/or assessments",{"$f":"Import!I39364","v":"Select"},null,null,{"$f":"IF(E57=\"No\",\"If no, why not:\",\"\")","v":""}]
[]
[null,"5. Supplemental perils and model options:"]
[null,null,null,"Fire following",{"$f":"Import!I39365","v":"Select"},null,null,{"$f":"IF(E60=\"No\",\"If no, why not:\",\"\")","v":""}]
[null,null,null,"Sprinkler leakage",{"$f":"Import!I39366","v":"Select"},null,null,{"$f":"IF(E61=\"No\",\"If no, why not:\",\"\")","v":""}]
[null,null,null,"Storm surge",{"$f":"Import!I39367","v":"Select"},null,null,{"$f":"IF(E62=\"No\",\"If no, why not:\",\"\")","v":""}]
[null,null,null,"Demand surge",{"$f":"Import!I39368","v":"Select"},null,null,{"$f":"IF(E63=\"No\",\"If no, why not:\",\"\")","v":""}]
[null,null,null,"Secondary uncertainty",{"$f":"Import!I39369","v":"Select"},null,null,{"$f":"IF(E64=\"No\",\"If no, why not:\",\"\")","v":""}]
[null,null,null,"Atlantic multi-decadal oscillation selection",{"$f":"Import!I39370","v":"Select"},null,null,{"$f":"IF(E65=\"Long-term frequency\",\"If long-term frequency, why:\",\"\")","v":""}]
[]
[null,"6. Other adjustments information:"]
[null,null,null,"Adjustments for exposure data quality",{"$f":"Import!I39371","v":"Select Yes/No"},null,null,{"$f":"IF(E68=\"No\",\"If no, why not:\",\"\")","v":""}]
[null,null,null,"Adjustments for insurance to value",{"$f":"Import!I39372","v":"Select Yes/No"},null,null,""]
[null,null,null,"Adjustments for exposure growth",{"$f":"Import!I39373","v":"Select Yes/No"},null,null,""]
[null,null,null,"Supplemental losses for non-modeled line of business",{"$f":"Import!I39374","v":"Select Yes/No"},null,null,""]
[null,null,null,"Adjustments for model deficiencies – severity",{"$f":"Import!I39375","v":"Select"},null,null,""]
[null,null,null,"Adjustments for model deficiencies - frequency",{"$f":"Import!I39376","v":"Select"},null,null,""]
[null,null,null,"Additional demand surge loadings",{"$f":"Import!I39377","v":"Select Yes/No"},null,null,""]
[null,null,null,"Other factors for prudence",{"$f":"Import!I39378","v":"Select Yes/No"},null,null,""]
[]
[null,null,null,null,null,"Average loading factor applied to ground up loss for all adjustments applied:",{"$f":"Import!I39379","v":0}]
[null,null,null,null,null,"Is this average loading factor determined analytically or estimated?",{"$f":"Import!I39380","v":"Select"}]
[]
[null,null,null,null,null,"Which vendor catastrophe models (\"cat model\") do you include in this modeling?",{"$f":"Import!I39381","v":"Select Cat Model(s)"}]
[null,null,null,null,null,"Which version of the model or version of the region-peril models are used for each vendor catastrophe model as appropriate?",{"$f":"Import!I39382","v":0}]

{"sheet":"Schedule X(b)","index":63,"n_rows":191,"n_cols":10,"rows_kept":191,"cut":false,"hidden":false,"merged":[[62,8,62,10],[64,4,64,6],[64,8,64,10],[65,4,65,6],[65,8,65,10],[63,8,63,10],[73,4,73,5],[73,8,73,10],[71,8,71,10],[72,8,72,10],[70,8,70,10],[52,4,52,6],[52,8,52,10],[53,4,53,6],[53,8,53,10],[69,8,69,10],[54,4,54,6],[54,8,54,10],[57,4,57,6],[57,8,57,10],[63,4,63,6],[58,4,58,6],[58,8,58,10],[61,4,61,6],[61,8,61,10],[66,8,66,10],[62,4,62,6],[82,6,83,7],[74,4,74,5],[74,8,74,10],[75,8,75,10],[76,8,76,10],[50,4,50,6],[50,8,50,10],[51,4,51,6],[39,8,39,10],[40,4,40,6],[40,8,40,10],[47,4,47,6],[47,8,47,10],[42,4,42,6],[42,8,42,10],[45,4,45,6],[45,8,45,10],[46,4,46,6],[46,8,46,10],[51,8,51,10],[43,4,43,6],[44,4,44,6],[41,4,41,6],[41,8,41,10],[44,8,44,10],[43,8,43,10],[38,4,38,6],[38,8,38,10],[39,4,39,6],[35,8,35,10],[36,4,36,6],[36,8,36,10],[37,4,37,6],[37,8,37,10],[33,8,33,10],[34,8,34,10],[7,4,7,5],[7,6,7,7],[32,8,32,10]]}
[null,"CATASTROPHE RISK RETURN: EP CURVE INSURANCE (TABLE 9A)",null,null,null,null,null,null,null,{"$f":"HYPERLINK(\"#'Index'!A1\",\"Return to Index\")","v":"Return to Index"}]
[null,{"$f":"'Company Information'!C7","v":"Enter Company Name"}]
[null,{"$f":" TEXT('Company Information'!C3+1,\"d mmmm yyyy\")","v":"1 January 2024"},null,null,null,null,null,null,null,"SCHEDULE X(b) "]
[]
[null,"Note:The EP curve for insurance will be required only when the percentage of net insurance premiums written is greater than 10% of total net premiums written."]
[]
[null,null,"1. Exceedance probability information:"]
[null,null,null,null," Gross loss",null,"Net loss"]
[null,null,null,"Loss Return period (years)","Gross per occurrence loss TVaR","Gross aggregate TVaR","Net per occurrence loss TVaR","Net aggregate TVaR "]
[null,null,null,null," (US$M)"," (US$M)"," (US$M)"," (US$M)"]
[null,null,null,50,{"$f":"Import!I39384","v":0},{"$f":"Import!I39389","v":0},{"$f":"Import!I39394","v":0},{"$f":"Import!I39399","v":0}]
[null,null,null,100,{"$f":"Import!I39385","v":0},{"$f":"Import!I39390","v":0},{"$f":"Import!I39395","v":0},{"$f":"Import!I39400","v":0}]
[null,null,null,250,{"$f":"Import!I39386","v":0},{"$f":"Import!I39391","v":0},{"$f":"Import!I39396","v":0},{"$f":"Import!I39401","v":0}]
[null,null,null,500,{"$f":"Import!I39387","v":0},{"$f":"Import!I39392","v":0},{"$f":"Import!I39397","v":0},{"$f":"Import!I39402","v":0}]
[null,null,null,1000,{"$f":"Import!I39388","v":0},{"$f":"Import!I39393","v":0},{"$f":"Import!I39398","v":0},{"$f":"Import!I39403","v":0}]
[]
[null,null,null,null," Gross Loss (US$M)",null,null,null,null," Net Loss (US$M)"]
[null,null,null,"Annual average aggregate gross loss ",{"$f":"Import!I39404","v":0},null,null,null,"Annual average aggregate net loss (net of reinstatements terms)",{"$f":"Import!I39414","v":0}]
[null,null,null,null,null,null,null,null,"Reinstatement terms included in Annual average aggregated net loss",{"$f":"Import!I39415","v":0}]
[null,null,null,"Standard deviation of annual aggregate gross loss ",{"$f":"Import!I39405","v":0},null,null,null,"Standard deviation of annual aggregate net loss (net of reinstatements terms)",{"$f":"Import!I39416","v":0}]
[]
[null,null,null,"Total gross statutory property catastrophe premium modeled ",{"$f":"Import!I39406","v":0},null,null,null,"Total net statutory property catastrophe premium modeled",{"$f":"Import!I39417","v":0}]
[null,null,null,"Total gross all other catastrophe premium modeled ",{"$f":"Import!I39407","v":0},null,null,null,"Total net all other catastrophe premium modeled",{"$f":"Import!I39418","v":0}]
[]
[null,null,null,"Total gross statutory property catastrophe limits exposed - modeled",{"$f":"Import!I39408","v":0},null,null,null,"Total net statutory property catastrophe limits exposed – modeled",{"$f":"Import!I39419","v":0}]
[null,null,null,"Total gross statutory property catastrophe limits exposed - not modeled",{"$f":"Import!I39409","v":0},null,null,null,"Total net statutory property catastrophe limits exposed– not modeled",{"$f":"Import!I39420","v":0}]
[null,null,null,"Total gross all other lines limits exposed- modeled",{"$f":"Import!I39410","v":0},null,null,null,"Total net all other lines limits exposed – modeled",{"$f":"Import!I39421","v":0}]
[null,null,null,"Total gross all other lines limits exposed - not modeled",{"$f":"Import!I39411","v":0},null,null,null,"Total net all other lines limits exposed - not modeled",{"$f":"Import!I39422","v":0}]
[null,null,null,"Total gross premium without an occurrence or aggregate limit",{"$f":"Import!I39412","v":0},null,null,null,"Total net premium without an occurrence or aggregate limit",{"$f":"Import!I39423","v":0}]
[null,null,null,"Total gross premium with non determinable Total Insured Value (“TIV”)",{"$f":"Import!I39413","v":0},null,null,null,"Total net premium with non-determinable TIV:",{"$f":"Import!I39424","v":0}]
[]
[null,null,"2. Significant sources of catastrophe risk and associated loss included in the EP Curves:"]
[null,null,null,"Allocated loss adjustment expense",{"$f":"IF(+'Schedule X(a)'!E31=\"\",\"\",+'Schedule X(a)'!E31)","v":"Select Yes/No"},null,null,{"$f":"IF(E33=\"No\",\"If no, why not:\",\"\")","v":""},{"$f":"IF(+'Schedule X(a)'!I31=\"\",\"\",+'Schedule X(a)'!I31)","v":""}]
[null,null,null,"Property - buildings",{"$f":"IF(+'Schedule X(a)'!E32=\"\",\"\",+'Schedule X(a)'!E32)","v":"Select Yes/No"},null,null,"",{"$f":"IF(+'Schedule X(a)'!I32=\"\",\"\",+'Schedule X(a)'!I32)","v":""}]
[null,null,null,"Property - contents",{"$f":"IF(+'Schedule X(a)'!E33=\"\",\"\",+'Schedule X(a)'!E33)","v":"Select Yes/No"},null,null,"",{"$f":"IF(+'Schedule X(a)'!I33=\"\",\"\",+'Schedule X(a)'!I33)","v":""}]
[null,null,null,"Additional living expenses",{"$f":"IF(+'Schedule X(a)'!E34=\"\",\"\",+'Schedule X(a)'!E34)","v":"Select Yes/No"},null,null,"",{"$f":"IF(+'Schedule X(a)'!I34=\"\",\"\",+'Schedule X(a)'!I34)","v":""}]
[null,null,null,"Business interruption",null,null,null,"",{"$f":"IF(+'Schedule X(a)'!I35=\"\",\"\",+'Schedule X(a)'!I35)","v":""}]
[null,null,null,"Auto physical damage",{"$f":"IF(+'Schedule X(a)'!E36=\"\",\"\",+'Schedule X(a)'!E36)","v":"Select"},null,null,"",{"$f":"IF(+'Schedule X(a)'!I36=\"\",\"\",+'Schedule X(a)'!I36)","v":""}]
[null,null,null,"Worker's compensation",{"$f":"IF(+'Schedule X(a)'!E37=\"\",\"\",+'Schedule X(a)'!E37)","v":"Select"},null,null,"",{"$f":"IF(+'Schedule X(a)'!I37=\"\",\"\",+'Schedule X(a)'!I37)","v":""}]
[null,null,null,"Personal accident",{"$f":"IF(+'Schedule X(a)'!E38=\"\",\"\",+'Schedule X(a)'!E38)","v":"Select"},null,null,"",{"$f":"IF(+'Schedule X(a)'!I38=\"\",\"\",+'Schedule X(a)'!I38)","v":""}]
[null,null,null,"Life insurance",{"$f":"IF(+'Schedule X(a)'!E39=\"\",\"\",+'Schedule X(a)'!E39)","v":"Select"},null,null,"",{"$f":"IF(+'Schedule X(a)'!I39=\"\",\"\",+'Schedule X(a)'!I39)","v":""}]
[null,null,null,"Onshore Energy",{"$f":"IF(+'Schedule X(a)'!E40=\"\",\"\",+'Schedule X(a)'!E40)","v":"Select"},null,null,"",{"$f":"IF(+'Schedule X(a)'!I40=\"\",\"\",+'Schedule X(a)'!I40)","v":""}]
[null,null,null,"Offshore Energy",{"$f":"IF(+'Schedule X(a)'!E41=\"\",\"\",+'Schedule X(a)'!E41)","v":"Select"},null,null,"",{"$f":"IF(+'Schedule X(a)'!I41=\"\",\"\",+'Schedule X(a)'!I41)","v":""}]
[null,null,null,"Ocean marine",{"$f":"IF(+'Schedule X(a)'!E42=\"\",\"\",+'Schedule X(a)'!E42)","v":"Select"},null,null,"",{"$f":"IF(+'Schedule X(a)'!I42=\"\",\"\",+'Schedule X(a)'!I42)","v":""}]
[null,null,null,"Inland marine",{"$f":"IF(+'Schedule X(a)'!E43=\"\",\"\",+'Schedule X(a)'!E43)","v":"Select"},null,null,"",{"$f":"IF(+'Schedule X(a)'!I43=\"\",\"\",+'Schedule X(a)'!I43)","v":""}]
[null,null,null,"Flood",{"$f":"IF(+'Schedule X(a)'!E44=\"\",\"\",+'Schedule X(a)'!E44)","v":"Select"},null,null,"",{"$f":"IF(+'Schedule X(a)'!I44=\"\",\"\",+'Schedule X(a)'!I44)","v":""}]
[null,null,null,"Crop",{"$f":"IF(+'Schedule X(a)'!E45=\"\",\"\",+'Schedule X(a)'!E45)","v":"Select"},null,null,"",{"$f":"IF(+'Schedule X(a)'!I45=\"\",\"\",+'Schedule X(a)'!I45)","v":""}]
[null,null,null,"Other primary insurance",{"$f":"IF(+'Schedule X(a)'!E46=\"\",\"\",+'Schedule X(a)'!E46)","v":"Select"},null,null,"",{"$f":"IF(+'Schedule X(a)'!I46=\"\",\"\",+'Schedule X(a)'!I46)","v":""}]
[]
[null,null,"3. Assumed reinsurance information:"]
[null,null,null,"Proportional - quota share",{"$f":"IF(+'Schedule X(a)'!E49=\"\",\"\",+'Schedule X(a)'!E49)","v":"Select"},null,null,{"$f":"IF(E51=\"No\",\"If no, why not:\",\"\")","v":""},{"$f":"IF(+'Schedule X(a)'!I49=\"\",\"\",+'Schedule X(a)'!I49)","v":""}]
[null,null,null,"Proportional - surplus share",{"$f":"IF(+'Schedule X(a)'!E50=\"\",\"\",+'Schedule X(a)'!E50)","v":"Select"},null,null,{"$f":"IF(E52=\"No\",\"If no, why not:\",\"\")","v":""},{"$f":"IF(+'Schedule X(a)'!I50=\"\",\"\",+'Schedule X(a)'!I50)","v":""}]
[null,null,null,"Non-proportional - catastrophe",{"$f":"IF(+'Schedule X(a)'!E51=\"\",\"\",+'Schedule X(a)'!E51)","v":"Select"},null,null,{"$f":"IF(E53=\"No\",\"If no, why not:\",\"\")","v":""},{"$f":"IF(+'Schedule X(a)'!I51=\"\",\"\",+'Schedule X(a)'!I51)","v":""}]
[null,null,null,"Non-proportional - per risk",null,null,null,{"$f":"IF(E54=\"No\",\"If no, why not:\",\"\")","v":""},{"$f":"IF(+'Schedule X(a)'!I52=\"\",\"\",+'Schedule X(a)'!I52)","v":""}]
[null,null,null,"Other reinsurance assumed",{"$f":"IF(+'Schedule X(a)'!E53=\"\",\"\",+'Schedule X(a)'!E53)","v":"Select"},null,null,{"$f":"IF(E55=\"No\",\"If no, why not:\",\"\")","v":""},{"$f":"IF(+'Schedule X(a)'!I53=\"\",\"\",+'Schedule X(a)'!I53)","v":""}]
[]
[null,null,"4. Pools and assessments information:"]
[null,null,null,"Voluntary pools and/or assessments",{"$f":"IF(+'Schedule X(a)'!E56=\"\",\"\",+'Schedule X(a)'!E56)","v":"Select"},null,null,{"$f":"IF(E58=\"No\",\"If no, why not:\",\"\")","v":""},{"$f":"IF(+'Schedule X(a)'!I56=\"\",\"\",+'Schedule X(a)'!I56)","v":""}]
[null,null,null,"Involuntary pools and/or assessments",{"$f":"IF(+'Schedule X(a)'!E57=\"\",\"\",+'Schedule X(a)'!E57)","v":"Select"},null,null,{"$f":"IF(E59=\"No\",\"If no, why not:\",\"\")","v":""},{"$f":"IF(+'Schedule X(a)'!I57=\"\",\"\",+'Schedule X(a)'!I57)","v":""}]
[]
[null,null,"5. Supplemental perils and model options:"]
[null,null,null,"Fire following",{"$f":"IF(+'Schedule X(a)'!E60=\"\",\"\",+'Schedule X(a)'!E60)","v":"Select"},null,null,{"$f":"IF(E62=\"No\",\"If no, why not:\",\"\")","v":""},{"$f":"IF(+'Schedule X(a)'!I60=\"\",\"\",+'Schedule X(a)'!I60)","v":""}]
[null,null,null,"Sprinkler leakage",{"$f":"IF(+'Schedule X(a)'!E61=\"\",\"\",+'Schedule X(a)'!E61)","v":"Select"},null,null,{"$f":"IF(E63=\"No\",\"If no, why not:\",\"\")","v":""},{"$f":"IF(+'Schedule X(a)'!I61=\"\",\"\",+'Schedule X(a)'!I61)","v":""}]
[null,null,null,"Storm surge",{"$f":"IF(+'Schedule X(a)'!E62=\"\",\"\",+'Schedule X(a)'!E62)","v":"Select"},null,null,{"$f":"IF(E64=\"No\",\"If no, why not:\",\"\")","v":""},{"$f":"IF(+'Schedule X(a)'!I62=\"\",\"\",+'Schedule X(a)'!I62)","v":""}]
[null,null,null,"Demand surge",{"$f":"IF(+'Schedule X(a)'!E63=\"\",\"\",+'Schedule X(a)'!E63)","v":"Select"},null,null,{"$f":"IF(E65=\"No\",\"If no, why not:\",\"\")","v":""},{"$f":"IF(+'Schedule X(a)'!I63=\"\",\"\",+'Schedule X(a)'!I63)","v":""}]
[null,null,null,"Secondary uncertainty",{"$f":"IF(+'Schedule X(a)'!E64=\"\",\"\",+'Schedule X(a)'!E64)","v":"Select"},null,null,{"$f":"IF(E66=\"No\",\"If no, why not:\",\"\")","v":""},{"$f":"IF(+'Schedule X(a)'!I64=\"\",\"\",+'Schedule X(a)'!I64)","v":""}]
[null,null,null,"Atlantic multi-decadal oscillation selection",{"$f":"IF(+'Schedule X(a)'!E65=\"\",\"\",+'Schedule X(a)'!E65)","v":"Select"},{"$f":"IF(+'Schedule X(a)'!F65=\"\",\"\",+'Schedule X(a)'!F65)","v":""},{"$f":"IF(+'Schedule X(a)'!G65=\"\",\"\",+'Schedule X(a)'!G65)","v":""},{"$f":"IF(E67=\"Long-term frequency\",\"If long-term frequency, why:\",\"\")","v":""},{"$f":"IF(+'Schedule X(a)'!I65=\"\",\"\",+'Schedule X(a)'!I65)","v":""}]
[]
[null,null,"6. Other adjustments information:"]
[null,null,null,"Adjustments for exposure data quality",{"$f":"IF(+'Schedule X(a)'!E68=\"\",\"\",+'Schedule X(a)'!E68)","v":"Select Yes/No"},null,null,{"$f":"IF(E70=\"No\",\"If no, why not:\",\"\")","v":""},{"$f":"IF(+'Schedule X(a)'!I68=\"\",\"\",+'Schedule X(a)'!I68)","v":""}]
[null,null,null,"Adjustments for insurance to value",{"$f":"IF(+'Schedule X(a)'!E69=\"\",\"\",+'Schedule X(a)'!E69)","v":"Select Yes/No"},null,null,"",{"$f":"IF(+'Schedule X(a)'!I69=\"\",\"\",+'Schedule X(a)'!I69)","v":""}]
[null,null,null,"Adjustments for exposure growth",{"$f":"IF(+'Schedule X(a)'!E70=\"\",\"\",+'Schedule X(a)'!E70)","v":"Select Yes/No"},null,null,"",{"$f":"IF(+'Schedule X(a)'!I70=\"\",\"\",+'Schedule X(a)'!I70)","v":""}]
[null,null,null,"Supplemental losses for non-modeled line of business",{"$f":"IF(+'Schedule X(a)'!E71=\"\",\"\",+'Schedule X(a)'!E71)","v":"Select Yes/No"},null,null,"",{"$f":"IF(+'Schedule X(a)'!I71=\"\",\"\",+'Schedule X(a)'!I71)","v":""}]
[null,null,null,"Adjustments for model deficiencies – severity",{"$f":"IF(+'Schedule X(a)'!E72=\"\",\"\",+'Schedule X(a)'!E72)","v":"Select"},null,null,"",{"$f":"IF(+'Schedule X(a)'!I72=\"\",\"\",+'Schedule X(a)'!I72)","v":""}]
[null,null,null,"Adjustments for model deficiencies - frequency",{"$f":"IF(+'Schedule X(a)'!E73=\"\",\"\",+'Schedule X(a)'!E73)","v":"Select"},null,null,"",{"$f":"IF(+'Schedule X(a)'!I73=\"\",\"\",+'Schedule X(a)'!I73)","v":""}]
[null,null,null,"Additional demand surge loadings",{"$f":"IF(+'Schedule X(a)'!E74=\"\",\"\",+'Schedule X(a)'!E74)","v":"Select Yes/No"},{"$f":"IF(+'Schedule X(a)'!F74=\"\",\"\",+'Schedule X(a)'!F74)","v":""},null,"",{"$f":"IF(+'Schedule X(a)'!I74=\"\",\"\",+'Schedule X(a)'!I74)","v":""}]
[null,null,null,"Other factors for prudence",{"$f":"IF(+'Schedule X(a)'!E75=\"\",\"\",+'Schedule X(a)'!E75)","v":"Select Yes/No"},null,null,"",{"$f":"IF(+'Schedule X(a)'!I75=\"\",\"\",+'Schedule X(a)'!I75)","v":""}]
[]
[null,null,null,null,null,"Average loading factor applied to ground up loss for all adjustments applied",{"$f":"IF(+'Schedule X(a)'!G77=\"\",\"\",+'Schedule X(a)'!G77)","v":0}]
[null,null,null,null,null,"Is this average loading factor determined analytically or estimated?",{"$f":"IF(+'Schedule X(a)'!G78=\"\",\"\",+'Schedule X(a)'!G78)","v":"Select"}]
[]
[null,null,null,null,null,"Which cat model do you include in this modeling?",{"$f":"IF(+'Schedule X(a)'!G80=\"\",\"\",+'Schedule X(a)'!G80)","v":"Select Cat Model(s)"}]
[null,null,null,null,null,"Which version of the model or version of the region-peril models are used for each cat model as appropriate?",{"$f":"IF(+'Schedule X(a)'!G81=\"\",\"\",+'Schedule X(a)'!G81)","v":0}]
[]
[]
[]
[]
[]
[]
[]
[]
[]
[]
[]
[]
[]
[]
[]
[]
[]
[]
[]
[]
[]
[]
[]
[]
[]
[]
[]
[]
[]
[]
[]
[]
[]
[]
[]
[]
[]
[]
[]
[]
[]
[]
[]
[]
[]
[]
[]
[]
[]
[]
[]
[]
[]
[]
[]
[]
[]
[]
[]
[]
[]
[]
[]
[]
[]
[]
[]
[]
[]
[]
[]
[]
[]
[]
[]
[]
[]
[]
[]
[]
[]
[]
[]
[]
[]
[]
[]
[]
[]
[]
[]
[]
[]
[]
[]
[]
[]
[]
[]
[]
[null,null,null,null,"Which vendor catastrophe models do you include in this modeling:"]
[null,null,null,null,"AIR only"]
[null,null,null,null,"EQECAT only"]
[null,null,null,null,"RMS only"]
[null,null,null,null,"AIR and RMS"]
[null,null,null,null,"AIR and EQECAT"]
[null,null,null,null,"EQECAT and RMS"]
[null,null,null,null,"AIR, EQECAT and RMS"]

{"sheet":"Schedule X(c)","index":64,"n_rows":167,"n_cols":7,"rows_kept":167,"cut":false,"hidden":false,"merged":[[110,2,110,3],[111,2,111,3],[112,2,112,3],[113,2,113,3],[114,2,114,3],[109,2,109,3],[46,2,46,3],[47,2,47,3],[48,2,48,3],[65,2,65,3],[66,2,66,3],[67,2,67,3],[100,3,100,4],[88,2,88,3],[89,2,89,3],[90,2,90,3],[91,2,91,3],[43,2,43,3],[44,2,44,3],[45,2,45,3],[34,3,34,4],[92,2,92,3],[100,5,100,6],[56,3,56,4],[56,5,56,6],[78,3,78,4],[78,5,78,6],[68,2,68,3],[69,2,69,3],[70,2,70,3],[87,2,87,3],[34,5,34,6],[0,1,0,5],[12,3,12,4],[12,5,12,6],[4,2,4,6],[21,2,21,3],[22,2,22,3],[23,2,23,3],[24,2,24,3],[25,2,25,3],[26,2,26,3],[2,1,2,3]]}
[null,"CATASTROPHE RISK RETURN: EXCEEDANCE PROBABILITY  (EP) CURVE  FOR REGIONS-PERILS (TABLE 9B)",null,null,null,null,{"$f":"HYPERLINK(\"#'Index'!A1\",\"Return to Index\")","v":"Return to Index"}]
[null,{"$f":"'Company Information'!C7","v":"Enter Company Name"}]
[null,{"$f":" TEXT('Company Information'!C3+1,\"d mmmm yyyy\")","v":"1 January 2024"},null,null,null,null,"SCHEDULE X(c)"]
[]
[null,null,"Provide Exceedance Probability information on the following perils in the templates provided below."]
[]
[null,"a)","EP CURVE ATLANTIC BASIN HURRICANE"]
[]
[null,null,"Which model(s) is used for  EP Curve Atlantic basin hurricane",null,null,{"$f":"Import!I39426","v":"Select Cat Model(s)"}]
[null,null,"Indicate the model version",null,null,{"$f":"Import!I39427","v":0}]
[]
[null,null,"Exceedance probability information:"]
[null,null,null," Gross loss",null," Net loss"]
[null,null,"Loss Return period (years)","Gross per occurrence loss TVaR","Gross aggregate \nTVaR ","Net per occurrence loss TVaR","Net aggregate\nTVaR"]
[null,null,null," (US$M)"," (US$M)"," (US$M)"," (US$M)"]
[null,null,50,{"$f":"Import!I39428","v":0},{"$f":"Import!I39433","v":0},{"$f":"Import!I39438","v":0},{"$f":"Import!I39443","v":0}]
[null,null,100,{"$f":"Import!I39429","v":0},{"$f":"Import!I39434","v":0},{"$f":"Import!I39439","v":0},{"$f":"Import!I39444","v":0}]
[null,null,250,{"$f":"Import!I39430","v":0},{"$f":"Import!I39435","v":0},{"$f":"Import!I39440","v":0},{"$f":"Import!I39445","v":0}]
[null,null,500,{"$f":"Import!I39431","v":0},{"$f":"Import!I39436","v":0},{"$f":"Import!I39441","v":0},{"$f":"Import!I39446","v":0}]
[null,null,1000,{"$f":"Import!I39432","v":0},{"$f":"Import!I39437","v":0},{"$f":"Import!I39442","v":0},{"$f":"Import!I39447","v":0}]
[]
[null,null,"Exposure to Atlantic Basin Hurricane",null,"Gross","Net"]
[null,null,null,null," (US$M)"," (US$M)"]
[null,null,"Total statutory property catastrophe premium",null,{"$f":"Import!I39448","v":0},{"$f":"Import!I39452","v":0}]
[null,null,"Total all other statutory premium",null,{"$f":"Import!I39449","v":0},{"$f":"Import!I39453","v":0}]
[null,null,"Total statutory property catastrophe limits",null,{"$f":"Import!I39450","v":0},{"$f":"Import!I39454","v":0}]
[null,null,"Total all other statutory limits",null,{"$f":"Import!I39451","v":0},{"$f":"Import!I39455","v":0}]
[]
[null,"b)","EP CURVE NORTH AMERICAN EARTHQUAKE"]
[]
[null,null,"Which model(s) is used for  EP Curve North American earthquake",null,null,{"$f":"Import!I39456","v":"Select Cat Model(s)"}]
[null,null,"Indicate the model version",null,null,{"$f":"Import!I39457","v":0}]
[]
[null,null,"Exceedance probability information:"]
[null,null,null," Gross loss",null," Net loss"]
[null,null,"Loss Return period (years)","Gross per occurrence loss TVaR","Gross aggregate \nTVaR ","Net per occurrence loss TVaR","Net aggregate\nTVaR"]
[null,null,null," (US$M)"," (US$M)"," (US$M)"," (US$M)"]
[null,null,50,{"$f":"Import!I39458","v":0},{"$f":"Import!I39463","v":0},{"$f":"Import!I39468","v":0},{"$f":"Import!I39473","v":0}]
[null,null,100,{"$f":"Import!I39459","v":0},{"$f":"Import!I39464","v":0},{"$f":"Import!I39469","v":0},{"$f":"Import!I39474","v":0}]
[null,null,250,{"$f":"Import!I39460","v":0},{"$f":"Import!I39465","v":0},{"$f":"Import!I39470","v":0},{"$f":"Import!I39475","v":0}]
[null,null,500,{"$f":"Import!I39461","v":0},{"$f":"Import!I39466","v":0},{"$f":"Import!I39471","v":0},{"$f":"Import!I39476","v":0}]
[null,null,1000,{"$f":"Import!I39462","v":0},{"$f":"Import!I39467","v":0},{"$f":"Import!I39472","v":0},{"$f":"Import!I39477","v":0}]
[]
[null,null,"Exposure to North American Earthquake",null,"Gross","Net"]
[null,null,null,null," (US$M)"," (US$M)"]
[null,null,"Total statutory property catastrophe premium",null,{"$f":"Import!I39478","v":0},{"$f":"Import!I39482","v":0}]
[null,null,"Total all other statutory premium",null,{"$f":"Import!I39479","v":0},{"$f":"Import!I39483","v":0}]
[null,null,"Total statutory property catastrophe limits",null,{"$f":"Import!I39480","v":0},{"$f":"Import!I39484","v":0}]
[null,null,"Total all other statutory limits",null,{"$f":"Import!I39481","v":0},{"$f":"Import!I39485","v":0}]
[]
[null,"c)","EP CURVE EUROPEAN WINDSTORM"]
[]
[null,null,"Which model(s) is used for  EP Curve European windstorm",null,null,{"$f":"Import!I39486","v":"Select Cat Model(s)"}]
[null,null,"Indicate the model version",null,null,{"$f":"Import!I39487","v":0}]
[]
[null,null,"Exceedance probability information:"]
[null,null,null," Gross loss",null," Net loss"]
[null,null,"Loss Return period (years)","Gross per occurrence loss TVaR","Gross aggregate \nTVaR ","Net per occurrence loss TVaR","Net aggregate\nTVaR"]
[null,null,null," (US$M)"," (US$M)"," (US$M)"," (US$M)"]
[null,null,50,{"$f":"Import!I39488","v":0},{"$f":"Import!I39493","v":0},{"$f":"Import!I39498","v":0},{"$f":"Import!I39503","v":0}]
[null,null,100,{"$f":"Import!I39489","v":0},{"$f":"Import!I39494","v":0},{"$f":"Import!I39499","v":0},{"$f":"Import!I39504","v":0}]
[null,null,250,{"$f":"Import!I39490","v":0},{"$f":"Import!I39495","v":0},{"$f":"Import!I39500","v":0},{"$f":"Import!I39505","v":0}]
[null,null,500,{"$f":"Import!I39491","v":0},{"$f":"Import!I39496","v":0},{"$f":"Import!I39501","v":0},{"$f":"Import!I39506","v":0}]
[null,null,1000,{"$f":"Import!I39492","v":0},{"$f":"Import!I39497","v":0},{"$f":"Import!I39502","v":0},{"$f":"Import!I39507","v":0}]
[]
[null,null,"Exposure to European Windstorm",null,"Gross","Net"]
[null,null,null,null," (US$M)"," (US$M)"]
[null,null,"Total statutory property catastrophe premium",null,{"$f":"Import!I39508","v":0},{"$f":"Import!I39512","v":0}]
[null,null,"Total all other statutory premium",null,{"$f":"Import!I39509","v":0},{"$f":"Import!I39513","v":0}]
[null,null,"Total statutory property catastrophe limits",null,{"$f":"Import!I39510","v":0},{"$f":"Import!I39514","v":0}]
[null,null,"Total all other statutory limits",null,{"$f":"Import!I39511","v":0},{"$f":"Import!I39515","v":0}]
[]
[null,"d)","EP CURVE JAPANESE EARTH QUAKE"]
[]
[null,null,"Which model(s) is used for  EP Curve Japanese earthquake",null,null,{"$f":"Import!I39516","v":"Select Cat Model(s)"}]
[null,null,"Indicate the model version",null,null,{"$f":"Import!I39517","v":0}]
[]
[null,null,"Exceedance probability information:"]
[null,null,null," Gross loss",null," Net loss"]
[null,null,"Loss Return period (years)","Gross per occurrence loss TVaR","Gross aggregate \nTVaR ","Net per occurrence loss TVaR","Net aggregate\nTVaR"]
[null,null,null," (US$M)"," (US$M)"," (US$M)"," (US$M)"]
[null,null,50,{"$f":"Import!I39518","v":0},{"$f":"Import!I39523","v":0},{"$f":"Import!I39528","v":0},{"$f":"Import!I39533","v":0}]
[null,null,100,{"$f":"Import!I39519","v":0},{"$f":"Import!I39524","v":0},{"$f":"Import!I39529","v":0},{"$f":"Import!I39534","v":0}]
[null,null,250,{"$f":"Import!I39520","v":0},{"$f":"Import!I39525","v":0},{"$f":"Import!I39530","v":0},{"$f":"Import!I39535","v":0}]
[null,null,500,{"$f":"Import!I39521","v":0},{"$f":"Import!I39526","v":0},{"$f":"Import!I39531","v":0},{"$f":"Import!I39536","v":0}]
[null,null,1000,{"$f":"Import!I39522","v":0},{"$f":"Import!I39527","v":0},{"$f":"Import!I39532","v":0},{"$f":"Import!I39537","v":0}]
[]
[null,null,"Exposure to Japanese Earthquake",null,"Gross","Net"]
[null,null,null,null," (US$M)"," (US$M)"]
[null,null,"Total statutory property catastrophe premium",null,{"$f":"Import!I39538","v":0},{"$f":"Import!I39542","v":0}]
[null,null,"Total all other statutory premium",null,{"$f":"Import!I39539","v":0},{"$f":"Import!I39543","v":0}]
[null,null,"Total statutory property catastrophe limits",null,{"$f":"Import!I39540","v":0},{"$f":"Import!I39544","v":0}]
[null,null,"Total all other statutory limits",null,{"$f":"Import!I39541","v":0},{"$f":"Import!I39545","v":0}]
[]
[null,"e)","EP CURVE JAPANESE TYPHOON"]
[]
[null,null,"Which model(s) is used for  EP Curve Japanese typhoon ",null,null,{"$f":"Import!I39546","v":"Select Cat Model(s)"}]
[null,null,"Indicate the model version",null,null,{"$f":"Import!I39547","v":0}]
[]
[null,null,"Exceedance probability information:"]
[null,null,null," Gross loss",null," Net loss"]
[null,null,"Loss Return period (years)","Gross per occurrence loss TVaR","Gross aggregate \nTVaR ","Net per occurrence loss TVaR","Net aggregate\nTVaR"]
[null,null,null," (US$M)"," (US$M)"," (US$M)"," (US$M)"]
[null,null,50,{"$f":"Import!I39548","v":0},{"$f":"Import!I39553","v":0},{"$f":"Import!I39558","v":0},{"$f":"Import!I39563","v":0}]
[null,null,100,{"$f":"Import!I39549","v":0},{"$f":"Import!I39554","v":0},{"$f":"Import!I39559","v":0},{"$f":"Import!I39564","v":0}]
[null,null,250,{"$f":"Import!I39550","v":0},{"$f":"Import!I39555","v":0},{"$f":"Import!I39560","v":0},{"$f":"Import!I39565","v":0}]
[null,null,500,{"$f":"Import!I39551","v":0},{"$f":"Import!I39556","v":0},{"$f":"Import!I39561","v":0},{"$f":"Import!I39566","v":0}]
[null,null,1000,{"$f":"Import!I39552","v":0},{"$f":"Import!I39557","v":0},{"$f":"Import!I39562","v":0},{"$f":"Import!I39567","v":0}]
[]
[null,null,"Exposure to Japanese Typhoon",null,"Gross","Net"]
[null,null,null,null," (US$M)"," (US$M)"]
[null,null,"Total statutory property catastrophe premium",null,{"$f":"Import!I39568","v":0},{"$f":"Import!I39572","v":0}]
[null,null,"Total all other statutory premium",null,{"$f":"Import!I39569","v":0},{"$f":"Import!I39573","v":0}]
[null,null,"Total statutory property catastrophe limits",null,{"$f":"Import!I39570","v":0},{"$f":"Import!I39574","v":0}]
[null,null,"Total all other statutory limits",null,{"$f":"Import!I39571","v":0},{"$f":"Import!I39575","v":0}]
[]
[]
[]
[]
[]
[]
[null,null,null,"Select Cat Model(s)"]
[null,null,null,"AIR only"]
[null,null,null,"EQECAT only"]
[null,null,null,"RMS only"]
[null,null,null,"AIR and RMS"]
[null,null,null,"AIR and EQECAT"]
[null,null,null,"EQECAT and RMS"]
[null,null,null,"AIR, EQECAT and RMS"]
[null,null,null,"Other"]
[]
[]
[]
[]
[]
[]
[]
[]
[]
[]
[]
[]
[]
[]
[]
[]
[]
[]
[]
[]
[]
[]
[]
[]
[]
[]
[]
[]
[]
[null,null,null,"Which vendor catastrophe models do you include in this modeling:"]
[null,null,null,"AIR only"]
[null,null,null,"EQECAT only"]
[null,null,null,"RMS only"]
[null,null,null,"AIR and RMS"]
[null,null,null,"AIR and EQECAT"]
[null,null,null,"EQECAT and RMS"]
[null,null,null,"AIR, EQECAT and RMS"]

{"sheet":"Schedule X(d)","index":65,"n_rows":48,"n_cols":8,"rows_kept":48,"cut":false,"hidden":false,"merged":[[2,0,2,2],[0,0,0,6],[4,1,4,7]]}
["CATASTROPHE RISK RETURN: REGION-PERIL EXPOSURE TO ZONES AND STATUTORY LINES OF BUSINESS (TABLE 9C)",null,null,null,null,null,null,{"$f":"HYPERLINK(\"#'Index'!A1\",\"Return to Index\")","v":"Return to Index"}]
[{"$f":"'Company Information'!C7","v":"Enter Company Name"}]
[{"$f":" TEXT('Company Information'!C3+1,\"d mmmm yyyy\")","v":"1 January 2024"},null,null,null,null,null,null,"SCHEDULE X(d)"]
[]
[null,{"$f":"IF('Company Information'!F11=\"Class 3A\",\"Which statutory zones (paragraph V(n) of the Prudential Standard Rules) and statutory lines of business (Schedule IV) is the insurer exposed to with regards to the region-perils? \n(select all that apply)\",\"Which statutory zones (paragraph V(r) of the Prudential Standard Rules) and statutory lines of business (Schedule IV) is the insurer exposed to with regards to the region-perils? \n(select all that apply)\")","v":"Which statutory zones (paragraph V(n) of the Prudential Standard Rules) and statutory lines of business (Schedule IV) is the insurer exposed to with regards to the region-perils? \n(select all that apply)"}]
[]
[{"$f":"IF('Company Information'!F11=\"Class 3A\",\"a)  Exposure to statutory zones (requirement of paragraph V(n) of the Prudential Standard Rules)\",\"a)  Exposure to statutory zones (requirement of paragraph V(r) of the Prudential Standards Rules)\")","v":"a)  Exposure to statutory zones (requirement of paragraph V(n) of the Prudential Standard Rules)"}]
[null,null,"EP Curve Atlantic Basin Hurricane","EP Curve North American Earthquake","EP Curve European Windstorm","EP Curve Japanese Earthquake","EP Curve Japanese Typhoon","EP Curve All Other Perils"]
[null,"Zone 1",{"$f":"Import!I39577","v":"Select Yes/No"},{"$f":"Import!I39590","v":"Select Yes/No"},{"$f":"Import!I39603","v":"Select Yes/No"},{"$f":"Import!I39616","v":"Select Yes/No"},{"$f":"Import!I39629","v":"Select Yes/No"},{"$f":"Import!I39642","v":"Select Yes/No"}]
[null,"Zone 2",{"$f":"Import!I39578","v":"Select Yes/No"},{"$f":"Import!I39591","v":"Select Yes/No"},{"$f":"Import!I39604","v":"Select Yes/No"},{"$f":"Import!I39617","v":"Select Yes/No"},{"$f":"Import!I39630","v":"Select Yes/No"},{"$f":"Import!I39643","v":"Select Yes/No"}]
[null,"Zone 3",{"$f":"Import!I39579","v":"Select Yes/No"},{"$f":"Import!I39592","v":"Select Yes/No"},{"$f":"Import!I39605","v":"Select Yes/No"},{"$f":"Import!I39618","v":"Select Yes/No"},{"$f":"Import!I39631","v":"Select Yes/No"},{"$f":"Import!I39644","v":"Select Yes/No"}]
[null,"Zone 4",{"$f":"Import!I39580","v":"Select Yes/No"},{"$f":"Import!I39593","v":"Select Yes/No"},{"$f":"Import!I39606","v":"Select Yes/No"},{"$f":"Import!I39619","v":"Select Yes/No"},{"$f":"Import!I39632","v":"Select Yes/No"},{"$f":"Import!I39645","v":"Select Yes/No"}]
[null,"Zone 5",{"$f":"Import!I39581","v":"Select Yes/No"},{"$f":"Import!I39594","v":"Select Yes/No"},{"$f":"Import!I39607","v":"Select Yes/No"},{"$f":"Import!I39620","v":"Select Yes/No"},{"$f":"Import!I39633","v":"Select Yes/No"},{"$f":"Import!I39646","v":"Select Yes/No"}]
[null,"Zone 6",{"$f":"Import!I39582","v":"Select Yes/No"},{"$f":"Import!I39595","v":"Select Yes/No"},{"$f":"Import!I39608","v":"Select Yes/No"},{"$f":"Import!I39621","v":"Select Yes/No"},{"$f":"Import!I39634","v":"Select Yes/No"},{"$f":"Import!I39647","v":"Select Yes/No"}]
[null,"Zone 7",{"$f":"Import!I39583","v":"Select Yes/No"},{"$f":"Import!I39596","v":"Select Yes/No"},{"$f":"Import!I39609","v":"Select Yes/No"},{"$f":"Import!I39622","v":"Select Yes/No"},{"$f":"Import!I39635","v":"Select Yes/No"},{"$f":"Import!I39648","v":"Select Yes/No"}]
[null,"Zone 8",{"$f":"Import!I39584","v":"Select Yes/No"},{"$f":"Import!I39597","v":"Select Yes/No"},{"$f":"Import!I39610","v":"Select Yes/No"},{"$f":"Import!I39623","v":"Select Yes/No"},{"$f":"Import!I39636","v":"Select Yes/No"},{"$f":"Import!I39649","v":"Select Yes/No"}]
[null,"Zone 9",{"$f":"Import!I39585","v":"Select Yes/No"},{"$f":"Import!I39598","v":"Select Yes/No"},{"$f":"Import!I39611","v":"Select Yes/No"},{"$f":"Import!I39624","v":"Select Yes/No"},{"$f":"Import!I39637","v":"Select Yes/No"},{"$f":"Import!I39650","v":"Select Yes/No"}]
[null,"Zone 10",{"$f":"Import!I39586","v":"Select Yes/No"},{"$f":"Import!I39599","v":"Select Yes/No"},{"$f":"Import!I39612","v":"Select Yes/No"},{"$f":"Import!I39625","v":"Select Yes/No"},{"$f":"Import!I39638","v":"Select Yes/No"},{"$f":"Import!I39651","v":"Select Yes/No"}]
[null,"Zone 11",{"$f":"Import!I39587","v":"Select Yes/No"},{"$f":"Import!I39600","v":"Select Yes/No"},{"$f":"Import!I39613","v":"Select Yes/No"},{"$f":"Import!I39626","v":"Select Yes/No"},{"$f":"Import!I39639","v":"Select Yes/No"},{"$f":"Import!I39652","v":"Select Yes/No"}]
[null,"Zone 12",{"$f":"Import!I39588","v":"Select Yes/No"},{"$f":"Import!I39601","v":"Select Yes/No"},{"$f":"Import!I39614","v":"Select Yes/No"},{"$f":"Import!I39627","v":"Select Yes/No"},{"$f":"Import!I39640","v":"Select Yes/No"},{"$f":"Import!I39653","v":"Select Yes/No"}]
[null,"Zone 13",{"$f":"Import!I39589","v":"Select Yes/No"},{"$f":"Import!I39602","v":"Select Yes/No"},{"$f":"Import!I39615","v":"Select Yes/No"},{"$f":"Import!I39628","v":"Select Yes/No"},{"$f":"Import!I39641","v":"Select Yes/No"},{"$f":"Import!I39654","v":"Select Yes/No"}]
[]
["b) Exposure to statutory lines of business (Schedule IV)"]
[null,null,"EP Curve Atlantic Basin Hurricane","EP Curve North American Earthquake","EP Curve European Windstorm","EP Curve Japanese Earthquake","EP Curve Japanese Typhoon","EP Curve - All Other Perils"]
[null,"Line 1",{"$f":"Import!I39655","v":"Select Yes/No"},{"$f":"Import!I39679","v":"Select Yes/No"},{"$f":"Import!I39703","v":"Select Yes/No"},{"$f":"Import!I39727","v":"Select Yes/No"},{"$f":"Import!I39751","v":"Select Yes/No"},{"$f":"Import!I39775","v":"Select Yes/No"}]
[null,"Line 2",{"$f":"Import!I39656","v":"Select Yes/No"},{"$f":"Import!I39680","v":"Select Yes/No"},{"$f":"Import!I39704","v":"Select Yes/No"},{"$f":"Import!I39728","v":"Select Yes/No"},{"$f":"Import!I39752","v":"Select Yes/No"},{"$f":"Import!I39776","v":"Select Yes/No"}]
[null,"Line 3",{"$f":"Import!I39657","v":"Select Yes/No"},{"$f":"Import!I39681","v":"Select Yes/No"},{"$f":"Import!I39705","v":"Select Yes/No"},{"$f":"Import!I39729","v":"Select Yes/No"},{"$f":"Import!I39753","v":"Select Yes/No"},{"$f":"Import!I39777","v":"Select Yes/No"}]
[null,"Line 4",{"$f":"Import!I39658","v":"Select Yes/No"},{"$f":"Import!I39682","v":"Select Yes/No"},{"$f":"Import!I39706","v":"Select Yes/No"},{"$f":"Import!I39730","v":"Select Yes/No"},{"$f":"Import!I39754","v":"Select Yes/No"},{"$f":"Import!I39778","v":"Select Yes/No"}]
[null,"Line 5",{"$f":"Import!I39659","v":"Select Yes/No"},{"$f":"Import!I39683","v":"Select Yes/No"},{"$f":"Import!I39707","v":"Select Yes/No"},{"$f":"Import!I39731","v":"Select Yes/No"},{"$f":"Import!I39755","v":"Select Yes/No"},{"$f":"Import!I39779","v":"Select Yes/No"}]
[null,"Line 6",{"$f":"Import!I39660","v":"Select Yes/No"},{"$f":"Import!I39684","v":"Select Yes/No"},{"$f":"Import!I39708","v":"Select Yes/No"},{"$f":"Import!I39732","v":"Select Yes/No"},{"$f":"Import!I39756","v":"Select Yes/No"},{"$f":"Import!I39780","v":"Select Yes/No"}]
[null,"Line 7",{"$f":"Import!I39661","v":"Select Yes/No"},{"$f":"Import!I39685","v":"Select Yes/No"},{"$f":"Import!I39709","v":"Select Yes/No"},{"$f":"Import!I39733","v":"Select Yes/No"},{"$f":"Import!I39757","v":"Select Yes/No"},{"$f":"Import!I39781","v":"Select Yes/No"}]
[null,"Line 8",{"$f":"Import!I39662","v":"Select Yes/No"},{"$f":"Import!I39686","v":"Select Yes/No"},{"$f":"Import!I39710","v":"Select Yes/No"},{"$f":"Import!I39734","v":"Select Yes/No"},{"$f":"Import!I39758","v":"Select Yes/No"},{"$f":"Import!I39782","v":"Select Yes/No"}]
[null,"Line 9",{"$f":"Import!I39663","v":"Select Yes/No"},{"$f":"Import!I39687","v":"Select Yes/No"},{"$f":"Import!I39711","v":"Select Yes/No"},{"$f":"Import!I39735","v":"Select Yes/No"},{"$f":"Import!I39759","v":"Select Yes/No"},{"$f":"Import!I39783","v":"Select Yes/No"}]
[null,"Line 10",{"$f":"Import!I39664","v":"Select Yes/No"},{"$f":"Import!I39688","v":"Select Yes/No"},{"$f":"Import!I39712","v":"Select Yes/No"},{"$f":"Import!I39736","v":"Select Yes/No"},{"$f":"Import!I39760","v":"Select Yes/No"},{"$f":"Import!I39784","v":"Select Yes/No"}]
[null,"Line 11",{"$f":"Import!I39665","v":"Select Yes/No"},{"$f":"Import!I39689","v":"Select Yes/No"},{"$f":"Import!I39713","v":"Select Yes/No"},{"$f":"Import!I39737","v":"Select Yes/No"},{"$f":"Import!I39761","v":"Select Yes/No"},{"$f":"Import!I39785","v":"Select Yes/No"}]
[null,"Line 12",{"$f":"Import!I39666","v":"Select Yes/No"},{"$f":"Import!I39690","v":"Select Yes/No"},{"$f":"Import!I39714","v":"Select Yes/No"},{"$f":"Import!I39738","v":"Select Yes/No"},{"$f":"Import!I39762","v":"Select Yes/No"},{"$f":"Import!I39786","v":"Select Yes/No"}]
[null,"Line 13",{"$f":"Import!I39667","v":"Select Yes/No"},{"$f":"Import!I39691","v":"Select Yes/No"},{"$f":"Import!I39715","v":"Select Yes/No"},{"$f":"Import!I39739","v":"Select Yes/No"},{"$f":"Import!I39763","v":"Select Yes/No"},{"$f":"Import!I39787","v":"Select Yes/No"}]
[null,"Line 14",{"$f":"Import!I39668","v":"Select Yes/No"},{"$f":"Import!I39692","v":"Select Yes/No"},{"$f":"Import!I39716","v":"Select Yes/No"},{"$f":"Import!I39740","v":"Select Yes/No"},{"$f":"Import!I39764","v":"Select Yes/No"},{"$f":"Import!I39788","v":"Select Yes/No"}]
[null,"Line 15",{"$f":"Import!I39669","v":"Select Yes/No"},{"$f":"Import!I39693","v":"Select Yes/No"},{"$f":"Import!I39717","v":"Select Yes/No"},{"$f":"Import!I39741","v":"Select Yes/No"},{"$f":"Import!I39765","v":"Select Yes/No"},{"$f":"Import!I39789","v":"Select Yes/No"}]
[null,"Line 16",{"$f":"Import!I39670","v":"Select Yes/No"},{"$f":"Import!I39694","v":"Select Yes/No"},{"$f":"Import!I39718","v":"Select Yes/No"},{"$f":"Import!I39742","v":"Select Yes/No"},{"$f":"Import!I39766","v":"Select Yes/No"},{"$f":"Import!I39790","v":"Select Yes/No"}]
[null,"Line 17",{"$f":"Import!I39671","v":"Select Yes/No"},{"$f":"Import!I39695","v":"Select Yes/No"},{"$f":"Import!I39719","v":"Select Yes/No"},{"$f":"Import!I39743","v":"Select Yes/No"},{"$f":"Import!I39767","v":"Select Yes/No"},{"$f":"Import!I39791","v":"Select Yes/No"}]
[null,"Line 18",{"$f":"Import!I39672","v":"Select Yes/No"},{"$f":"Import!I39696","v":"Select Yes/No"},{"$f":"Import!I39720","v":"Select Yes/No"},{"$f":"Import!I39744","v":"Select Yes/No"},{"$f":"Import!I39768","v":"Select Yes/No"},{"$f":"Import!I39792","v":"Select Yes/No"}]
[null,"Line 19",{"$f":"Import!I39673","v":"Select Yes/No"},{"$f":"Import!I39697","v":"Select Yes/No"},{"$f":"Import!I39721","v":"Select Yes/No"},{"$f":"Import!I39745","v":"Select Yes/No"},{"$f":"Import!I39769","v":"Select Yes/No"},{"$f":"Import!I39793","v":"Select Yes/No"}]
[null,"Line 20",{"$f":"Import!I39674","v":"Select Yes/No"},{"$f":"Import!I39698","v":"Select Yes/No"},{"$f":"Import!I39722","v":"Select Yes/No"},{"$f":"Import!I39746","v":"Select Yes/No"},{"$f":"Import!I39770","v":"Select Yes/No"},{"$f":"Import!I39794","v":"Select Yes/No"}]
[null,"Line 21",{"$f":"Import!I39675","v":"Select Yes/No"},{"$f":"Import!I39699","v":"Select Yes/No"},{"$f":"Import!I39723","v":"Select Yes/No"},{"$f":"Import!I39747","v":"Select Yes/No"},{"$f":"Import!I39771","v":"Select Yes/No"},{"$f":"Import!I39795","v":"Select Yes/No"}]
[null,"Line 22",{"$f":"Import!I39676","v":"Select Yes/No"},{"$f":"Import!I39700","v":"Select Yes/No"},{"$f":"Import!I39724","v":"Select Yes/No"},{"$f":"Import!I39748","v":"Select Yes/No"},{"$f":"Import!I39772","v":"Select Yes/No"},{"$f":"Import!I39796","v":"Select Yes/No"}]
[null,"Line 23",{"$f":"Import!I39677","v":"Select Yes/No"},{"$f":"Import!I39701","v":"Select Yes/No"},{"$f":"Import!I39725","v":"Select Yes/No"},{"$f":"Import!I39749","v":"Select Yes/No"},{"$f":"Import!I39773","v":"Select Yes/No"},{"$f":"Import!I39797","v":"Select Yes/No"}]
[null,"Line 24",{"$f":"Import!I39678","v":"Select Yes/No"},{"$f":"Import!I39702","v":"Select Yes/No"},{"$f":"Import!I39726","v":"Select Yes/No"},{"$f":"Import!I39750","v":"Select Yes/No"},{"$f":"Import!I39774","v":"Select Yes/No"},{"$f":"Import!I39798","v":"Select Yes/No"}]

{"sheet":"Schedule X(e)","index":66,"n_rows":160,"n_cols":18,"rows_kept":160,"cut":false,"hidden":false,"merged":[[0,17,0,18],[38,2,39,18],[2,2,2,3],[42,2,42,18],[21,2,21,18],[24,2,25,18],[28,2,28,10],[31,2,31,6],[18,2,18,7],[34,2,34,6],[5,2,5,4],[8,2,9,18],[12,2,12,4],[2,17,2,18]]}
[null,null,"CATASTROPHE RISK RETURN: ACCUMULATIONS OVERVIEW (TABLE 9D)",null,null,null,null,null,null,null,null,null,null,null,null,null,null,{"$f":"HYPERLINK(\"#'Index'!A1\",\"Return to Index\")","v":"Return to Index"}]
[null,null,{"$f":"'Company Information'!C7","v":"Enter Company Name"}]
[null,null,{"$f":" TEXT('Company Information'!C3+1,\"d mmmm yyyy\")","v":"1 January 2024"},null,null,null,null,null,null,null,null,null,null,null,null,null,null,"SCHEDULE X(e) "]
[]
[null,1,{"$f":"+G87","v":"What frequency best describes the update process of accumulations?"}]
[null,null,{"$f":"Import!I39800","v":"Select"}]
[]
[null,2,"Are there any differences in the frequency of accumulations for various business units? ",null,null,null,null,null,null,null,null,{"$f":"Import!I39801","v":"Select Yes/No"}," If yes, briefly describe."]
[null,null,{"$f":"Import!I39802","v":0}]
[]
[]
[null,3,"Which vendor catastrophe models does the insurer license?"]
[null,null,{"$f":"Import!I39803","v":"Select"}]
[]
[null,4,"Does the insurer incorporate internally developed stochastic catastrophe models within the accumulations that capture correlation across contracts or lines of business?"]
[null,null,{"$f":"Import!I39804","v":"Select Yes/No"}]
[]
[null,5,"Which methodology best describes the insurer's accumulation methodology?"]
[null,null,{"$f":"Import!I39805","v":"Select"}]
[]
[null,6,{"$f":"+G118","v":"Where more than one catastrophe model is used in the accumulations, which methodology best describes how multiple models are considered?"}]
[null,null,{"$f":"Import!I39806","v":"Select"}]
[]
[null,null,"If other selected, provide details:"]
[null,null,{"$f":"Import!I39807","v":0}]
[]
[]
[null,7,"Is the insurer's pricing and accumulations fully consistent?"]
[null,null,{"$f":"Import!I39808","v":"Select"}]
[]
[null,8,{"$f":"+G137","v":"What percentage of the total premium (other than insurance business) is written without occurrence limits?"}]
[null,null,{"$f":"Import!I39809","v":"Select"}]
[]
[null,9,"Does the insurer provide reinsurance to both affiliated companies and unaffiliated companies?"]
[null,null,{"$f":"Import!I39810","v":"Select"}]
[]
[null,10,"If there is more than 2.5% of premiums written without occurrence limits (other than insurance business) briefly describe this business, including information on "]
[null,null,"territorial exposure, potential for correlation of losses across contracts/policies and the assessment of maximum loss potential for these exposures."]
[null,null,{"$f":"Import!I39811","v":0}]
[]
[]
[null,11,{"$f":"+G148","v":"How are outwards reinsurance protections considered in accumulation calculations?"}]
[null,null,{"$f":"Import!I39812","v":"Select"}]
[]
[]
[]
[]
[]
[]
[]
[]
[]
[]
[]
[]
[]
[]
[]
[]
[]
[]
[]
[]
[]
[]
[]
[]
[]
[]
[]
[]
[]
[]
[]
[]
[]
[]
[]
[]
[]
[]
[]
[]
[]
[]
[]
[null,null,null,null,null,null,"What frequency best describes the update process of accumulations?",null,null,null,null,null,null,null,"Notes"]
[null,null,null,null,null,null,"Select",null,null,null,null,null,null,null,"Guidance if there is a different frequency of updates for insurance and reinsurance or other"]
[null,null,null,null,null,null,"Ad-hoc"]
[null,null,null,null,null,null,"Annual"]
[null,null,null,null,null,null,"Semi-annual"]
[null,null,null,null,null,null,"Quarterly"]
[null,null,null,null,null,null,"Monthly"]
[null,null,null,null,null,null,"Weekly"]
[null,null,null,null,null,null,"Daily"]
[null,null,null,null,null,null,"Real time"]
[]
[null,null,null,null,null,null,"Which vendor catastrophe models do the members of the insurance group license?"]
[null,null,null,null,null,null,"Select"]
[null,null,null,null,null,null,"AIR only"]
[null,null,null,null,null,null,"EQECAT only"]
[null,null,null,null,null,null,"RMS only"]
[null,null,null,null,null,null,"AIR and RMS"]
[null,null,null,null,null,null,"AIR and EQECAT"]
[null,null,null,null,null,null,"EQECAT and RMS"]
[null,null,null,null,null,null,"AIR, EQECAT and RMS"]
[]
[null,null,null,null,null,null,"Does the insurance group incorporate internally developed stochastic catastrophe models within the accumulations that capture correlation across contracts or lines of business?"]
[]
[]
[null,null,null,null,null,null,"Which methodology best describes the insurance group's accumulation methodology?",null,null,null,null,null,null,null,"Notes"]
[null,null,null,null,null,null,"Select",null,null,null,null,null,null,null,"Define catastrophe model as AIR, RMS, EQEcatastrophe and other, not the region-peril models"]
[null,null,null,null,null,null,"One catastrophe model is used in the accumulations"]
[null,null,null,null,null,null,"Two catastrophe models are used in the accumulations"]
[null,null,null,null,null,null,"Three catastrophe models are used in the accumulations"]
[null,null,null,null,null,null,"More than three catastrophe models are used in the accumulations"]
[]
[null,null,null,null,null,null,"Where more than one catastrophe model is used in the accumulations, which methodology best describes how multiple models are considered?"]
[null,null,null,null,null,null,"Select"]
[null,null,null,null,null,null,"A full portfolio is kept in all models"]
[null,null,null,null,null,null,"A full portfolio is kept in all models and a blended portfolio is kept where underwriters determine on a deal by deal basis the proportions of each model included in the blend."]
[null,null,null,null,null,null,"A full portfolio is kept in all models and a blended portfolio is kept where management determine the proportion of each model included in the blend."]
[null,null,null,null,null,null,"A full portfolio is kept in all models and a blended portfolio is kept where management determine the proportion of each model included in the blend specific by region-peril."]
[null,null,null,null,null,null,"Only a blended portfolio is kept where underwriters determine the proportion of each model included in the blend on a deal by deal basis."]
[null,null,null,null,null,null,"Only a blended portfolio is kept where management determine the proportion of each model included in the blend."]
[null,null,null,null,null,null,"Only a blended portfolio is kept where management determine the proportion of each model included in the blend specific by region-peril."]
[null,null,null,null,null,null,"Other"]
[null,null,null,null,null,null,"Not applicable"]
[]
[null,null,null,null,null,null,"Are the insurance group's pricing and accumulations fully consistent?"]
[null,null,null,null,null,null,"Select"]
[null,null,null,null,null,null,"Yes - for all forms of exposure where there is the potential for catastrophe loss"]
[null,null,null,null,null,null,"Yes - though only where data and/or vendor catastrophe models are available to run a catastrophe model"]
[null,null,null,null,null,null,"No - not all catastrophe exposure that is modeled for pricing purposes are included in accumulations"]
[null,null,null,null,null,null,"No - there is a difference in the pricing and accumulation methodology"]
[]
[null,null,null,null,null,null,"What percentage of the total premium (other than insurance business) is written without occurrence limits?"]
[null,null,null,null,null,null,"Select"]
[null,null,null,null,null,null,"None"]
[null,null,null,null,null,null,"Not applicable (only write insurance business)"]
[null,null,null,null,null,null,"0% to 2.49%"]
[null,null,null,null,null,null,"2.5% to 4.9%"]
[null,null,null,null,null,null,"5.0% to 9.9%"]
[null,null,null,null,null,null,"10.0% to 14.9%"]
[null,null,null,null,null,null,"15.0% to 19.9%"]
[null,null,null,null,null,null,"Greater than or equal to 20.0%"]
[]
[null,null,null,null,null,null,"How are outwards reinsurance protections considered in accumulation calculations?"]
[null,null,null,null,null,null,"Select"]
[null,null,null,null,null,null,"The company has minimal catastrophe exposure protection and as such gross is effectively net."]
[null,null,null,null,null,null,"They are not, the accumulations are calculated on a gross basis with reinsurance protections calculated approximately outside the system."]
[null,null,null,null,null,null,"They are not, the accumulations are calculated on a gross basis with reinsurance protections calculated explicitly outside the system."]
[null,null,null,null,null,null,"The accumulations are calculated on a gross basis with the effect of reinsurance protections calculated explicitly for some types of protection within the system."]
[null,null,null,null,null,null,"The accumulations are calculated on a gross basis with the effect of reinsurance protections calculated explicitly for each type of protection within the system."]
[]
[null,null,null,null,null,null,"Does the company provide reinsurance to both affiliated companies and unaffiliated companies?"]
[null,null,null,null,null,null,"Select"]
[null,null,null,null,null,null,"Affiliated companies only"]
[null,null,null,null,null,null,"Unaffiliated companies only"]
[null,null,null,null,null,null,"Both affiliated and unaffiliated companies"]

{"sheet":"Schedule X(f)","index":67,"n_rows":78,"n_cols":13,"rows_kept":78,"cut":false,"hidden":false,"merged":[[2,1,2,4],[24,4,24,6],[24,7,24,9],[39,4,39,6],[30,2,30,3],[39,7,39,9],[35,2,35,12],[29,2,29,3],[6,10,6,12],[15,10,15,12],[6,4,6,6],[6,7,6,9],[15,4,15,6],[15,7,15,9],[39,10,39,12],[27,2,27,3],[28,2,28,3],[73,2,73,12],[24,10,24,12],[77,2,77,12],[48,2,48,12],[52,2,52,12],[56,10,56,12],[66,2,67,12],[75,2,75,12],[56,4,56,6],[56,7,56,9]]}
[null,"CATASTROPHE RISK RETURN: DATA  ANALYSIS (TABLE 9E)",null,null,null,null,null,null,null,null,null,null,{"$f":"HYPERLINK(\"#'Index'!A1\",\"Return to Index\")","v":"Return to Index"}]
[null,{"$f":"'Company Information'!C7","v":"Enter Company Name"}]
[null,{"$f":" TEXT('Company Information'!C3+1,\"d mmmm yyyy\")","v":"1 January 2024"},null,null,null,null,null,null,null,null,null,null,"SCHEDULE X(f)"]
[]
[null,1,"For all contracts written by the insurer, provide splits of those that are:"]
[]
[null,null,null,null,"U.S. specific contracts - all exposures",null,null,"All other contracts - all exposures",null,null,"Total"]
[null,null,null,null,"Contract count","Gross Limit provided ","Net limit provided ","Contract count","Gross Limit provided ","Net limit provided ","Contract count","Gross Limit provided ","Net limit provided "]
[null,null,null,null,null,"US$M","US$M",null,"US$M","US$M",null,"US$M","US$M"]
[null,null,null,"Modelable",{"$f":"Import!I39814","v":0},{"$f":"Import!I39817","v":0},{"$f":"Import!I39820","v":0},{"$f":"Import!I39823","v":0},{"$f":"Import!I39826","v":0},{"$f":"Import!I39829","v":0},{"$f":"H10+E10","v":0},0,0]
[null,null,null,"Not modelable",{"$f":"Import!I39815","v":0},{"$f":"Import!I39818","v":0},{"$f":"Import!I39821","v":0},{"$f":"Import!I39824","v":0},{"$f":"Import!I39827","v":0},{"$f":"Import!I39830","v":0},0,0,0]
[null,null,null,"Total",{"$f":"SUM(E10:E11)","v":0},0,0,0,0,0,0,{"$f":"I12+F12","v":0},0]
[]
[null,2,"For those contracts that are written by the insurer that may be modeled, provide splits of those that are:"]
[]
[null,null,null,null,{"$f":"+E7","v":"U.S. specific contracts - all exposures"},null,null,{"$f":"+H7","v":"All other contracts - all exposures"},null,null,"Total"]
[null,null,null,null,"Contract count","Gross Limit provided ","Net limit provided ","Contract count","Gross Limit provided ","Net limit provided ","Contract count","Gross Limit provided ","Net limit provided "]
[null,null,null,null,null,"US$M","US$M",null,"US$M","US$M",null,"US$M","US$M"]
[null,null,null,"Modeled",{"$f":"Import!I39832","v":0},{"$f":"Import!I39835","v":0},{"$f":"Import!I39838","v":0},{"$f":"Import!I39841","v":0},{"$f":"Import!I39844","v":0},{"$f":"Import!I39847","v":0},{"$f":"H19+E19","v":0},0,{"$f":"J19+G19","v":0}]
[null,null,null,"Not modeled",{"$f":"Import!I39833","v":0},{"$f":"Import!I39836","v":0},{"$f":"Import!I39839","v":0},{"$f":"Import!I39842","v":0},{"$f":"Import!I39845","v":0},{"$f":"Import!I39848","v":0},0,0,{"$f":"J20+G20","v":0}]
[null,null,null,"Total",{"$f":"SUM(E19:E20)","v":0},0,0,0,0,0,0,0,0]
[]
[null,3,"For those contracts that are written by the insurer that are modeled, provide splits of those that are:"]
[]
[null,null,null,null,{"$f":"+E7","v":"U.S. specific contracts - all exposures"},null,null,{"$f":"+H7","v":"All other contracts - all exposures"},null,null,"Total"]
[null,null,null,null,"Contract count","Gross Limit provided ","Net limit provided ","Contract count","Gross Limit provided ","Net limit provided ","Contract count","Gross Limit provided ","Net limit provided "]
[null,null,null,null,null,"US$M","US$M",null,"US$M","US$M",null,"US$M","US$M"]
[null,null,"Detailed exposure data",null,{"$f":"Import!I39850","v":0},{"$f":"Import!I39856","v":0},{"$f":"Import!I39862","v":0},{"$f":"Import!I39868","v":0},{"$f":"Import!I39874","v":0},{"$f":"Import!I39880","v":0},{"$f":"H28+E28","v":0},0,{"$f":"J28+G28","v":0}]
[null,null,"Aggregate exposure data",null,{"$f":"Import!I39851","v":0},{"$f":"Import!I39857","v":0},{"$f":"Import!I39863","v":0},{"$f":"Import!I39869","v":0},{"$f":"Import!I39875","v":0},{"$f":"Import!I39881","v":0},0,0,{"$f":"J29+G29","v":0}]
[null,null,"A proxy peer insurer is selected and losses are derived from this insurer",null,{"$f":"Import!I39852","v":0},{"$f":"Import!I39858","v":0},{"$f":"Import!I39864","v":0},{"$f":"Import!I39870","v":0},{"$f":"Import!I39876","v":0},{"$f":"Import!I39882","v":0},0,0,{"$f":"J30+G30","v":0}]
[null,null,"Derived from an industry loss curve utilizing market share",null,{"$f":"Import!I39853","v":0},{"$f":"Import!I39859","v":0},{"$f":"Import!I39865","v":0},{"$f":"Import!I39871","v":0},{"$f":"Import!I39877","v":0},{"$f":"Import!I39883","v":0},0,0,{"$f":"J31+G31","v":0}]
[null,null,null,"Other",{"$f":"Import!I39854","v":0},{"$f":"Import!I39860","v":0},{"$f":"Import!I39866","v":0},{"$f":"Import!I39872","v":0},{"$f":"Import!I39878","v":0},{"$f":"Import!I39884","v":0},0,0,{"$f":"J32+G32","v":0}]
[null,null,null,"Total",{"$f":"SUM(E28:E32)","v":0},0,0,0,0,0,0,{"$f":"I33+F33","v":0},0]
[]
[null,null,"If other is selected, describe the methodology as appropriate:"]
[null,null,{"$f":"Import!I39886","v":0}]
[]
[null,4,"For those contracts that are written by the insurer that may be modeled (but are not modeled), provide splits of those that are: "]
[]
[null,null,null,null,{"$f":"+E7","v":"U.S. specific contracts - all exposures"},null,null,{"$f":"+H7","v":"All other contracts - all exposures"},null,null,"Total"]
[null,null,null,null,"Contract count","Gross Limit provided ","Net limit provided ","Contract count","Gross Limit provided ","Net limit provided ","Contract count","Gross Limit provided ","Net limit provided "]
[null,null,null,null,null,"US$M","US$M",null,"US$M","US$M",null,"US$M","US$M"]
[null,null,null,"Data deficient",{"$f":"Import!I39887","v":0},{"$f":"Import!I39891","v":0},{"$f":"Import!I39895","v":0},{"$f":"Import!I39899","v":0},{"$f":"Import!I39903","v":0},{"$f":"Import!I39907","v":0},{"$f":"H43+E43","v":0},0,{"$f":"J43+G43","v":0}]
[null,null,null,"Model deficient",{"$f":"Import!I39888","v":0},{"$f":"Import!I39892","v":0},{"$f":"Import!I39896","v":0},{"$f":"Import!I39900","v":0},{"$f":"Import!I39904","v":0},{"$f":"Import!I39908","v":0},0,0,{"$f":"J44+G44","v":0}]
[null,null,null,"Other",{"$f":"Import!I39889","v":0},{"$f":"Import!I39893","v":0},{"$f":"Import!I39897","v":0},{"$f":"Import!I39901","v":0},{"$f":"Import!I39905","v":0},{"$f":"Import!I39909","v":0},0,0,{"$f":"J45+G45","v":0}]
[null,null,null,"Total",{"$f":"SUM(E43:E45)","v":0},0,0,0,0,0,0,{"$f":"I46+F46","v":0},0]
[]
[null,null,"If other is selected, describe the reasons for not modeling the contract(s):"]
[null,null,{"$f":"Import!I39911","v":0}]
[]
[null,5,"For contracts that are written by the insurer that may be modeled but are not modeled, describe what the insurer does from an accumulation perspective."]
[]
[null,null,{"$f":"Import!I39912","v":0}]
[]
[null,6,"For contracts that are written by the insurer that are unable to be modeled, provide splits of those that are:"]
[]
[null,null,null,null,{"$f":"+E7","v":"U.S. specific contracts - all exposures"},null,null,{"$f":"+H7","v":"All other contracts - all exposures"},null,null,"Total"]
[null,null,null,null,"Contract count","Gross Limit provided ","Net limit provided ","Contract count","Gross Limit provided ","Net limit provided ","Contract count","Gross Limit provided ","Net limit provided "]
[null,null,null,null,null,"US$M","US$M",null,"US$M","US$M",null,"US$M","US$M"]
[null,null,null,"Data deficient",{"$f":"Import!I39913","v":0},{"$f":"Import!I39918","v":0},{"$f":"Import!I39923","v":0},{"$f":"Import!I39928","v":0},{"$f":"Import!I39933","v":0},{"$f":"Import!I39938","v":0},{"$f":"H60+E60","v":0},0,{"$f":"J60+G60","v":0}]
[null,null,null,"No catastrophe model exists",{"$f":"Import!I39914","v":0},{"$f":"Import!I39919","v":0},{"$f":"Import!I39924","v":0},{"$f":"Import!I39929","v":0},{"$f":"Import!I39934","v":0},{"$f":"Import!I39939","v":0},0,0,{"$f":"J61+G61","v":0}]
[null,null,null,"Model deficient",{"$f":"Import!I39915","v":0},{"$f":"Import!I39920","v":0},{"$f":"Import!I39925","v":0},{"$f":"Import!I39930","v":0},{"$f":"Import!I39935","v":0},{"$f":"Import!I39940","v":0},0,0,{"$f":"+J62+G62","v":0}]
[null,null,null,"Other",{"$f":"Import!I39916","v":0},{"$f":"Import!I39921","v":0},{"$f":"Import!I39926","v":0},{"$f":"Import!I39931","v":0},{"$f":"Import!I39936","v":0},{"$f":"Import!I39941","v":0},0,0,{"$f":"+J63+G63","v":0}]
[null,null,null,"Total",{"$f":"SUM(E60:E63)","v":0},0,0,0,0,0,0,{"$f":"I64+F64","v":0},0]
[]
[null,null,"If other is selected, describe the reasons for not modeling the contract(s):"]
[null,null,{"$f":"Import!I39943","v":0}]
[]
[]
[null,7,"What percentage of total net premiums written represents contracts with no limits?",null,null,null,null,null,{"$f":"Import!I39944","v":0}]
[]
[null,8,"For contracts that are written by the insurer that are not modelable, describe what the insurer does from an accumulation perspective."]
[]
[null,null,{"$f":"Import!I39945","v":0}]
[]
[null,9,"If there are contracts that are written by the insurer that have no occurrence limits or where TIV has not been included in the exposure in the above exhibits, describe how this exposure is included in the above data."]
[]
[null,null,{"$f":"Import!I39946","v":0}]

{"sheet":"Schedule X(g)","index":68,"n_rows":25,"n_cols":9,"rows_kept":25,"cut":false,"hidden":false,"merged":[[0,1,0,4],[0,7,0,8],[20,1,22,8],[24,2,24,8],[2,1,2,2],[6,3,6,4],[6,5,6,6],[6,7,6,8]]}
[null,"CATASTROPHE RISK RETURN: REINSURANCE DISCLOSURES (TABLE 9F)",null,null,null,null,null,{"$f":"HYPERLINK(\"#'Index'!A1\",\"Return to Index\")","v":"Return to Index"}]
[null,{"$f":"'Company Information'!C7","v":"Enter Company Name"}]
[null,{"$f":" TEXT('Company Information'!C3+1,\"d mmmm yyyy\")","v":"1 January 2024"},null,null,null,null,null,null,"SCHEDULE X(g)"]
[]
[null,null,"Reinsurance or Retro information:"]
[]
[null,null,null,"U.S. specific contracts",null,"Worldwide contracts",null,"All other contracts"]
[null,null,null,"Premium ","Occurrence Limit Provided ","Premium ","Occurrence Limit provided ","Premium ","Occurrence Limit provided "]
[null,null,null,"US$M","US$M","US$M","US$M","US$M","US$M"]
[null,null,"Insurance linked securities protection",{"$f":"Import!I39948","v":0},{"$f":"Import!I39958","v":0},{"$f":"Import!I39968","v":0},{"$f":"Import!I39978","v":0},{"$f":"Import!I39988","v":0},{"$f":"Import!I39998","v":0}]
[null,null,"Industry loss warranty contracts",{"$f":"Import!I39949","v":0},{"$f":"Import!I39959","v":0},{"$f":"Import!I39969","v":0},{"$f":"Import!I39979","v":0},{"$f":"Import!I39989","v":0},{"$f":"Import!I39999","v":0}]
[null,null,"Other contracts and non-traditional methods of risk mitigation/assumption",{"$f":"Import!I39950","v":0},{"$f":"Import!I39960","v":0},{"$f":"Import!I39970","v":0},{"$f":"Import!I39980","v":0},{"$f":"Import!I39990","v":0},{"$f":"Import!I40000","v":0}]
[null,null,"Property catastrophe contracts",{"$f":"Import!I39951","v":0},{"$f":"Import!I39961","v":0},{"$f":"Import!I39971","v":0},{"$f":"Import!I39981","v":0},{"$f":"Import!I39991","v":0},{"$f":"Import!I40001","v":0}]
[null,null,"Catastrophe swaps",{"$f":"Import!I39952","v":0},{"$f":"Import!I39962","v":0},{"$f":"Import!I39972","v":0},{"$f":"Import!I39982","v":0},{"$f":"Import!I39992","v":0},{"$f":"Import!I40002","v":0}]
[null,null,"Property per risk contracts",{"$f":"Import!I39953","v":0},{"$f":"Import!I39963","v":0},{"$f":"Import!I39973","v":0},{"$f":"Import!I39983","v":0},{"$f":"Import!I39993","v":0},{"$f":"Import!I40003","v":0}]
[null,null,"Property retro contracts",{"$f":"Import!I39954","v":0},{"$f":"Import!I39964","v":0},{"$f":"Import!I39974","v":0},{"$f":"Import!I39984","v":0},{"$f":"Import!I39994","v":0},{"$f":"Import!I40004","v":0}]
[null,null,"Quota share contracts",{"$f":"Import!I39955","v":0},{"$f":"Import!I39965","v":0},{"$f":"Import!I39975","v":0},{"$f":"Import!I39985","v":0},{"$f":"Import!I39995","v":0},{"$f":"Import!I40005","v":0}]
[null,null,"Surplus share contracts",{"$f":"Import!I39956","v":0},{"$f":"Import!I39966","v":0},{"$f":"Import!I39976","v":0},{"$f":"Import!I39986","v":0},{"$f":"Import!I39996","v":0},{"$f":"Import!I40006","v":0}]
[null,null,"Total",{"$f":"SUM(D10:D18)","v":0},0,0,0,0,0]
[]
[null,"If there are reinsurance or retro contracts that are purchased by the insurer that have no occurrence or aggregate limits, provide details below for the total premiums ceded, description of the underlying lines of business covered, territorial coverage limitations and details of the natural, man-made and pandemic perils covered on aggregate basis."]
[]
[]
[]
[null,null,{"$f":"Import!I40008","v":0}]

{"sheet":"Schedule X(h)","index":69,"n_rows":33,"n_cols":11,"rows_kept":33,"cut":false,"hidden":false,"merged":[[8,1,17,1],[2,1,2,2],[23,1,32,1],[2,9,2,10]]}
[null,"CATASTROPHE RISK RETURN: INSURANCE TERROR EXPOSURE (TABLE 9G)",null,null,null,null,null,null,null,null,{"$f":"HYPERLINK(\"#'Index'!A1\",\"Return to Index\")","v":"Return to Index"}]
[null,{"$f":"'Company Information'!C7","v":"Enter Company Name"}]
[null,{"$f":" TEXT('Company Information'!C3+1,\"d mmmm yyyy\")","v":"1 January 2024"},null,null,null,null,null,null,null,"SCHEDULE X(h) "]
[]
[null,"CONVENTIONAL INSURANCE TERRORISM EXPOSURE - 150M DEFINED GEOGRAPHICAL RADIUS "]
[]
[null,null,null,"U.S. State / Province                  (if applicable)","Country","Direct terrorism property exposure","Total gross exposure ","TRIP or other terror pool recoverables if any ","Reinsurance recoveries if any","Total net exposure ","Target location (if known)"]
[null,null,null,null,null,"US$M","US$M","US$M","US$M","US$M"]
[null,"Conventional terrorism exposure",1,{"$f":"Import!I40010","v":0},{"$f":"Import!I40020","v":0},{"$f":"Import!I40030","v":0},{"$f":"Import!I40040","v":0},{"$f":"Import!I40050","v":0},{"$f":"Import!I40060","v":0},{"$f":"G9-H9-I9","v":0},{"$f":"Import!I40080","v":0}]
[null,null,{"$f":"C9+1","v":2},{"$f":"Import!I40011","v":0},{"$f":"Import!I40021","v":0},{"$f":"Import!I40031","v":0},{"$f":"Import!I40041","v":0},{"$f":"Import!I40051","v":0},{"$f":"Import!I40061","v":0},0,{"$f":"Import!I40081","v":0}]
[null,null,3,{"$f":"Import!I40012","v":0},{"$f":"Import!I40022","v":0},{"$f":"Import!I40032","v":0},{"$f":"Import!I40042","v":0},{"$f":"Import!I40052","v":0},{"$f":"Import!I40062","v":0},0,{"$f":"Import!I40082","v":0}]
[null,null,4,{"$f":"Import!I40013","v":0},{"$f":"Import!I40023","v":0},{"$f":"Import!I40033","v":0},{"$f":"Import!I40043","v":0},{"$f":"Import!I40053","v":0},{"$f":"Import!I40063","v":0},0,{"$f":"Import!I40083","v":0}]
[null,null,5,{"$f":"Import!I40014","v":0},{"$f":"Import!I40024","v":0},{"$f":"Import!I40034","v":0},{"$f":"Import!I40044","v":0},{"$f":"Import!I40054","v":0},{"$f":"Import!I40064","v":0},0,{"$f":"Import!I40084","v":0}]
[null,null,6,{"$f":"Import!I40015","v":0},{"$f":"Import!I40025","v":0},{"$f":"Import!I40035","v":0},{"$f":"Import!I40045","v":0},{"$f":"Import!I40055","v":0},{"$f":"Import!I40065","v":0},0,{"$f":"Import!I40085","v":0}]
[null,null,7,{"$f":"Import!I40016","v":0},{"$f":"Import!I40026","v":0},{"$f":"Import!I40036","v":0},{"$f":"Import!I40046","v":0},{"$f":"Import!I40056","v":0},{"$f":"Import!I40066","v":0},0,{"$f":"Import!I40086","v":0}]
[null,null,8,{"$f":"Import!I40017","v":0},{"$f":"Import!I40027","v":0},{"$f":"Import!I40037","v":0},{"$f":"Import!I40047","v":0},{"$f":"Import!I40057","v":0},{"$f":"Import!I40067","v":0},0,{"$f":"Import!I40087","v":0}]
[null,null,9,{"$f":"Import!I40018","v":0},{"$f":"Import!I40028","v":0},{"$f":"Import!I40038","v":0},{"$f":"Import!I40048","v":0},{"$f":"Import!I40058","v":0},{"$f":"Import!I40068","v":0},0,{"$f":"Import!I40088","v":0}]
[null,null,10,{"$f":"Import!I40019","v":0},{"$f":"Import!I40029","v":0},{"$f":"Import!I40039","v":0},{"$f":"Import!I40049","v":0},{"$f":"Import!I40059","v":0},{"$f":"Import!I40069","v":0},0,{"$f":"Import!I40089","v":0}]
[]
[null,"NBCR INSURANCE TERRORISM EXPOSURE - STATE/COUNTRY"]
[]
[null,null,null,"U.S. State / Province                  (if applicable)","Country","Direct terrorism property exposure","Total gross exposure ","TRIP or other sovereign terror pool recoverables if any","Reinsurance recoverable limits if any","Total net exposure "]
[null,null,null,null,null,"US$M","US$M","US$M","US$M","US$M"]
[null,"NBCR terrorism exposure",1,{"$f":"Import!I40090","v":0},{"$f":"Import!I40100","v":0},{"$f":"Import!I40110","v":0},{"$f":"Import!I40120","v":0},{"$f":"Import!I40130","v":0},{"$f":"Import!I40140","v":0},{"$f":"G24-H24-I24","v":0}]
[null,null,{"$f":"C24+1","v":2},{"$f":"Import!I40091","v":0},{"$f":"Import!I40101","v":0},{"$f":"Import!I40111","v":0},{"$f":"Import!I40121","v":0},{"$f":"Import!I40131","v":0},{"$f":"Import!I40141","v":0},{"$f":"G25-H25-I25","v":0}]
[null,null,3,{"$f":"Import!I40092","v":0},{"$f":"Import!I40102","v":0},{"$f":"Import!I40112","v":0},{"$f":"Import!I40122","v":0},{"$f":"Import!I40132","v":0},{"$f":"Import!I40142","v":0},0]
[null,null,4,{"$f":"Import!I40093","v":0},{"$f":"Import!I40103","v":0},{"$f":"Import!I40113","v":0},{"$f":"Import!I40123","v":0},{"$f":"Import!I40133","v":0},{"$f":"Import!I40143","v":0},0]
[null,null,5,{"$f":"Import!I40094","v":0},{"$f":"Import!I40104","v":0},{"$f":"Import!I40114","v":0},{"$f":"Import!I40124","v":0},{"$f":"Import!I40134","v":0},{"$f":"Import!I40144","v":0},0]
[null,null,6,{"$f":"Import!I40095","v":0},{"$f":"Import!I40105","v":0},{"$f":"Import!I40115","v":0},{"$f":"Import!I40125","v":0},{"$f":"Import!I40135","v":0},{"$f":"Import!I40145","v":0},0]
[null,null,7,{"$f":"Import!I40096","v":0},{"$f":"Import!I40106","v":0},{"$f":"Import!I40116","v":0},{"$f":"Import!I40126","v":0},{"$f":"Import!I40136","v":0},{"$f":"Import!I40146","v":0},0]
[null,null,8,{"$f":"Import!I40097","v":0},{"$f":"Import!I40107","v":0},{"$f":"Import!I40117","v":0},{"$f":"Import!I40127","v":0},{"$f":"Import!I40137","v":0},{"$f":"Import!I40147","v":0},0]
[null,null,9,{"$f":"Import!I40098","v":0},{"$f":"Import!I40108","v":0},{"$f":"Import!I40118","v":0},{"$f":"Import!I40128","v":0},{"$f":"Import!I40138","v":0},{"$f":"Import!I40148","v":0},0]
[null,null,10,{"$f":"Import!I40099","v":0},{"$f":"Import!I40109","v":0},{"$f":"Import!I40119","v":0},{"$f":"Import!I40129","v":0},{"$f":"Import!I40139","v":0},{"$f":"Import!I40149","v":0},0]

{"sheet":"Schedule X(i)","index":70,"n_rows":33,"n_cols":11,"rows_kept":33,"cut":false,"hidden":false,"merged":[[8,2,17,2],[23,2,32,2],[2,1,2,4]]}
[null,"CATASTROPHE RISK RETURN: REINSURANCE TERRORISM LIMITS (TABLE 9H) ",null,null,null,null,null,null,null,null,{"$f":"HYPERLINK(\"#'Index'!A1\",\"Return to Index\")","v":"Return to Index"}]
[null,{"$f":"'Company Information'!C7","v":"Enter Company Name"}]
[null,{"$f":" TEXT('Company Information'!C3+1,\"d mmmm yyyy\")","v":"1 January 2024"},null,null,null,null,null,null,null,null,"SCHEDULE X(i) "]
[]
[null,"CONVENTIONAL REINSURANCE TERRORISM EXPOSURE - 150M DEFINED GEOGRAPHICAL RADIUS "]
[]
[null,null,null,null,"U.S. State / Province                  (if applicable)","Country","Direct reinsurance limits exposed to terrorism","Total gross reinsurance limits exposed to terrorism ","TRIP or other terror pool recoverables if any ","Reinsurance or retro recoveries if any","Total net reinsurance limits exposed to terrorism "]
[null,null,null,null,null,null,"US$M","US$M","US$M","US$M","US$M"]
[null,null,"Conventional terrorism exposure",1,{"$f":"Import!I40161","v":0},{"$f":"Import!I40171","v":0},{"$f":"Import!I40181","v":0},{"$f":"Import!I40191","v":0},{"$f":"Import!I40201","v":0},{"$f":"Import!I40211","v":0},{"$f":"H9-I9-J9","v":0}]
[null,null,null,{"$f":"D9+1","v":2},{"$f":"Import!I40162","v":0},{"$f":"Import!I40172","v":0},{"$f":"Import!I40182","v":0},{"$f":"Import!I40192","v":0},{"$f":"Import!I40202","v":0},{"$f":"Import!I40212","v":0},0]
[null,null,null,3,{"$f":"Import!I40163","v":0},{"$f":"Import!I40173","v":0},{"$f":"Import!I40183","v":0},{"$f":"Import!I40193","v":0},{"$f":"Import!I40203","v":0},{"$f":"Import!I40213","v":0},0]
[null,null,null,4,{"$f":"Import!I40164","v":0},{"$f":"Import!I40174","v":0},{"$f":"Import!I40184","v":0},{"$f":"Import!I40194","v":0},{"$f":"Import!I40204","v":0},{"$f":"Import!I40214","v":0},0]
[null,null,null,5,{"$f":"Import!I40165","v":0},{"$f":"Import!I40175","v":0},{"$f":"Import!I40185","v":0},{"$f":"Import!I40195","v":0},{"$f":"Import!I40205","v":0},{"$f":"Import!I40215","v":0},0]
[null,null,null,6,{"$f":"Import!I40166","v":0},{"$f":"Import!I40176","v":0},{"$f":"Import!I40186","v":0},{"$f":"Import!I40196","v":0},{"$f":"Import!I40206","v":0},{"$f":"Import!I40216","v":0},0]
[null,null,null,7,{"$f":"Import!I40167","v":0},{"$f":"Import!I40177","v":0},{"$f":"Import!I40187","v":0},{"$f":"Import!I40197","v":0},{"$f":"Import!I40207","v":0},{"$f":"Import!I40217","v":0},0]
[null,null,null,8,{"$f":"Import!I40168","v":0},{"$f":"Import!I40178","v":0},{"$f":"Import!I40188","v":0},{"$f":"Import!I40198","v":0},{"$f":"Import!I40208","v":0},{"$f":"Import!I40218","v":0},0]
[null,null,null,9,{"$f":"Import!I40169","v":0},{"$f":"Import!I40179","v":0},{"$f":"Import!I40189","v":0},{"$f":"Import!I40199","v":0},{"$f":"Import!I40209","v":0},{"$f":"Import!I40219","v":0},0]
[null,null,null,10,{"$f":"Import!I40170","v":0},{"$f":"Import!I40180","v":0},{"$f":"Import!I40190","v":0},{"$f":"Import!I40200","v":0},{"$f":"Import!I40210","v":0},{"$f":"Import!I40220","v":0},0]
[]
[null,"NBCR REINSURANCE TERRORISM EXPOSURE - STATE/COUNTRY"]
[]
[null,null,null,null,"U.S. State / Province                  (if applicable)","Country","Direct reinsurance limits exposed to terrorism","Total gross reinsurance limits exposed to terrorism","TRIP or other terror pool recoverables if any ","Reinsurance or retro recoveries if any ","Total net reinsurance limits exposed to terrorism "]
[null,null,null,null,null,null,"US$M","US$M","US$M","US$M","US$M"]
[null,null,"NBCR terrorism exposure",1,{"$f":"Import!I40231","v":0},{"$f":"Import!I40241","v":0},{"$f":"Import!I40251","v":0},{"$f":"Import!I40261","v":0},{"$f":"Import!I40271","v":0},{"$f":"Import!I40281","v":0},{"$f":"H24-I24-J24","v":0}]
[null,null,null,{"$f":"D24+1","v":2},{"$f":"Import!I40232","v":0},{"$f":"Import!I40242","v":0},{"$f":"Import!I40252","v":0},{"$f":"Import!I40262","v":0},{"$f":"Import!I40272","v":0},{"$f":"Import!I40282","v":0},0]
[null,null,null,3,{"$f":"Import!I40233","v":0},{"$f":"Import!I40243","v":0},{"$f":"Import!I40253","v":0},{"$f":"Import!I40263","v":0},{"$f":"Import!I40273","v":0},{"$f":"Import!I40283","v":0},0]
[null,null,null,4,{"$f":"Import!I40234","v":0},{"$f":"Import!I40244","v":0},{"$f":"Import!I40254","v":0},{"$f":"Import!I40264","v":0},{"$f":"Import!I40274","v":0},{"$f":"Import!I40284","v":0},0]
[null,null,null,5,{"$f":"Import!I40235","v":0},{"$f":"Import!I40245","v":0},{"$f":"Import!I40255","v":0},{"$f":"Import!I40265","v":0},{"$f":"Import!I40275","v":0},{"$f":"Import!I40285","v":0},0]
[null,null,null,6,{"$f":"Import!I40236","v":0},{"$f":"Import!I40246","v":0},{"$f":"Import!I40256","v":0},{"$f":"Import!I40266","v":0},{"$f":"Import!I40276","v":0},{"$f":"Import!I40286","v":0},0]
[null,null,null,7,{"$f":"Import!I40237","v":0},{"$f":"Import!I40247","v":0},{"$f":"Import!I40257","v":0},{"$f":"Import!I40267","v":0},{"$f":"Import!I40277","v":0},{"$f":"Import!I40287","v":0},0]
[null,null,null,8,{"$f":"Import!I40238","v":0},{"$f":"Import!I40248","v":0},{"$f":"Import!I40258","v":0},{"$f":"Import!I40268","v":0},{"$f":"Import!I40278","v":0},{"$f":"Import!I40288","v":0},0]
[null,null,null,9,{"$f":"Import!I40239","v":0},{"$f":"Import!I40249","v":0},{"$f":"Import!I40259","v":0},{"$f":"Import!I40269","v":0},{"$f":"Import!I40279","v":0},{"$f":"Import!I40289","v":0},0]
[null,null,null,10,{"$f":"Import!I40240","v":0},{"$f":"Import!I40250","v":0},{"$f":"Import!I40260","v":0},{"$f":"Import!I40270","v":0},{"$f":"Import!I40280","v":0},{"$f":"Import!I40290","v":0},0]

{"sheet":"Schedule X(j)","index":71,"n_rows":19,"n_cols":5,"rows_kept":19,"cut":false,"hidden":false,"merged":[[2,1,2,2],[0,1,0,3],[4,1,4,4]]}
[null,"CATASTROPHE RISK RETURN: ASSUMED EXCHANGE RATES  (TABLE 9I) ",null,null,{"$f":"HYPERLINK(\"#'Index'!A1\",\"Return to Index\")","v":"Return to Index"}]
[null,{"$f":"'Company Information'!C7","v":"Enter Company Name"}]
[null,{"$f":" TEXT('Company Information'!C3+1,\"d mmmm yyyy\")","v":"1 January 2024"},null,null,"SCHEDULE X(j) "]
[]
[null,"Insurer shall input the exchange rate(s) used to translate the \"EP Curves Total\" (all region-perils combined) to US$."]
[]
[null,null,"Currency","EP Curve - Total all region-perils combined"]
[null,null,"USD",1]
[null,null,"USD:EUR",{"$f":"Import!I40314","v":0}]
[null,null,"USD:GBP",{"$f":"Import!I40315","v":0}]
[null,null,"USD:Yen",{"$f":"Import!I40316","v":0}]
[null,null,"USD:CHF",{"$f":"Import!I40317","v":0}]
[null,null,{"$f":"Import!I40307","v":"USD:"},{"$f":"Import!I40318","v":0}]
[null,null,{"$f":"Import!I40308","v":"USD:"},{"$f":"Import!I40319","v":0}]
[null,null,{"$f":"Import!I40309","v":"USD:"},{"$f":"Import!I40320","v":0}]
[null,null,{"$f":"Import!I40310","v":"USD:"},{"$f":"Import!I40321","v":0}]
[null,null,{"$f":"Import!I40311","v":"USD:"},{"$f":"Import!I40322","v":0}]
[null,null,{"$f":"Import!I40312","v":"USD:"},{"$f":"Import!I40323","v":0}]
[null,null,"USD:"]

{"sheet":"Schedule XI","index":72,"n_rows":30,"n_cols":6,"rows_kept":30,"cut":false,"hidden":true,"merged":[[1,1,1,5]]}
[null,"SCHEDULE OF LOSS TRIANGLES OR RECONCILIATION OF NET LOSS RESERVES ",null,null,null,{"$f":"HYPERLINK(\"#'Index'!A1\",\"Return to Index\")","v":"Return to Index"}]
[null,"The insurer shall provide either loss triangles - Schedule XI(a) - or a reconciliation of its beginning and ending net loss reserve balances - Schedule XI(b) -  for the following 8 statutory lines of business:"]
[]
[null,"Lines of business mapped into statutory lines of business"]
[]
[null,"Number","Loss triangle lines of business","Number","Statutory line of business"]
[null,1,"Property Catastrophe",1,"Property Catastrophe"]
[null,2,"Property  ",2,"Property  "]
[null,null,null,6,"Aviation"]
[null,null,null,10,"Energy Offshore / Marine"]
[null,null,null,18,"International Motor"]
[null,null,null,22,"Retro Property"]
[null,3,"Property Non-Proportional",3,"Property Non-Proportional"]
[null,null,null,7,"Aviation Non-Proportional"]
[null,null,null,11,"Energy Offshore / Marine Non-Proportional"]
[null,null,null,19,"International Motor Non-Proportional"]
[null,4,"Casualty",4,"Personal Accident"]
[null,null,null,12,"US Casualty   "]
[null,null,null,14,"US Professional"]
[null,null,null,20,"International Casualty Non-Motor"]
[null,null,null,24,"Health"]
[null,5,"Casualty Non-Proportional",5,"Personal Accident Non-Proportional"]
[null,null,null,13,"US Casualty Non-Proportional"]
[null,null,null,15,"US Professional Non-Proportional"]
[null,null,null,21,"International Casualty Non-Motor Non-Proportional"]
[null,6,"Financial Lines",8,"Credit / Surety"]
[null,null,null,9,"Credit / Surety Non-Proporational"]
[null,7,"Other Specialty Lines",16,"US Specialty"]
[null,null,null,17,"US Specialty Non-Proportional"]
[null,8,"Structured/Finite Lines",23,"Structured / Finite Reinsurance"]

{"sheet":"Schedule XI(a)","index":73,"n_rows":78,"n_cols":15,"rows_kept":78,"cut":false,"hidden":true,"merged":[[6,12,8,12],[0,13,0,14],[1,13,1,14],[2,13,2,14],[2,1,2,2],[60,6,60,7],[23,2,23,11],[5,2,5,11],[41,2,41,11],[60,9,65,9],[60,10,65,10],[61,11,65,11],[59,6,59,7]]}
[null,"SCHEDULE OF LOSS TRIANGLES (COMBINED FOR ALL LINES)",null,null,null,null,null,null,null,null,null,null,null,{"$f":"HYPERLINK(\"#'Index'!A1\",\"Return to Index\")","v":"Return to Index"}]
[null,{"$f":"'Company Information'!C7","v":"Enter Company Name"}]
[null,{"$f":" TEXT('Company Information'!C3,\"d mmmm yyyy\")","v":"31 December 2023"},null,null,null,null,null,null,null,null,null,null,null,"SCHEDULE XI(a)"]
[null,{"$f":"\"expressed in\"& IF(1000>1,\" ['\"&MID(1000,2,LEN(1000))&\"s]\",\"\")&\" \"&'Form 1EBS'!$C$4","v":"expressed in ['000s] United States Dollars"}]
[]
[null,null,"INCURRED (ESTIMATED ULTIMATE) NET LOSSES AND ALLOCATED LOSS ADJUSTMENT EXPENSES REPORTED AT YEAR END ($000)",null,null,null,null,null,null,null,null,null,11,12,13]
[null,null,null,null,null,null,null,null,null,null,null,null,"Estimated Ultimate Catastrophe Losses","Development","Development"]
[null,"Years in Which",1,2,3,4,5,6,7,8,9,10]
[null,"Losses Were",null,null,null,null,null,null,null,null,null,null,null,"One Year","Two Year"]
[null,"Incurred",{"$f":"D10-1","v":2014},2015,2016,2017,2018,2019,2020,2021,{"$f":"L10-1","v":2022},{"$f":"YEAR('Company Information'!C3)","v":2023},{"$f":"L10","v":2023},"Development","Development"]
["L1","Prior",{"$f":"'Sch XI(a)(i)'!C11+'Sch XI(a)(ii)'!C11+'Sch XI(a)(iii)'!C11+'Sch XI(a)(iv)'!C11+'Sch XI(a)(v)'!C11+'Sch XI(a)(vi)'!C11+'Sch XI(a)(vii)'!C11+'Sch XI(a)(viii)'!C11","v":0},{"$f":"'Sch XI(a)(i)'!D11+'Sch XI(a)(ii)'!D11+'Sch XI(a)(iii)'!D11+'Sch XI(a)(iv)'!D11+'Sch XI(a)(v)'!D11+'Sch XI(a)(vi)'!D11+'Sch XI(a)(vii)'!D11+'Sch XI(a)(viii)'!D11","v":0},{"$f":"'Sch XI(a)(i)'!E11+'Sch XI(a)(ii)'!E11+'Sch XI(a)(iii)'!E11+'Sch XI(a)(iv)'!E11+'Sch XI(a)(v)'!E11+'Sch XI(a)(vi)'!E11+'Sch XI(a)(vii)'!E11+'Sch XI(a)(viii)'!E11","v":0},{"$f":"'Sch XI(a)(i)'!F11+'Sch XI(a)(ii)'!F11+'Sch XI(a)(iii)'!F11+'Sch XI(a)(iv)'!F11+'Sch XI(a)(v)'!F11+'Sch XI(a)(vi)'!F11+'Sch XI(a)(vii)'!F11+'Sch XI(a)(viii)'!F11","v":0},{"$f":"'Sch XI(a)(i)'!G11+'Sch XI(a)(ii)'!G11+'Sch XI(a)(iii)'!G11+'Sch XI(a)(iv)'!G11+'Sch XI(a)(v)'!G11+'Sch XI(a)(vi)'!G11+'Sch XI(a)(vii)'!G11+'Sch XI(a)(viii)'!G11","v":0},{"$f":"'Sch XI(a)(i)'!H11+'Sch XI(a)(ii)'!H11+'Sch XI(a)(iii)'!H11+'Sch XI(a)(iv)'!H11+'Sch XI(a)(v)'!H11+'Sch XI(a)(vi)'!H11+'Sch XI(a)(vii)'!H11+'Sch XI(a)(viii)'!H11","v":0},{"$f":"'Sch XI(a)(i)'!I11+'Sch XI(a)(ii)'!I11+'Sch XI(a)(iii)'!I11+'Sch XI(a)(iv)'!I11+'Sch XI(a)(v)'!I11+'Sch XI(a)(vi)'!I11+'Sch XI(a)(vii)'!I11+'Sch XI(a)(viii)'!I11","v":0},{"$f":"'Sch XI(a)(i)'!J11+'Sch XI(a)(ii)'!J11+'Sch XI(a)(iii)'!J11+'Sch XI(a)(iv)'!J11+'Sch XI(a)(v)'!J11+'Sch XI(a)(vi)'!J11+'Sch XI(a)(vii)'!J11+'Sch XI(a)(viii)'!J11","v":0},{"$f":"'Sch XI(a)(i)'!K11+'Sch XI(a)(ii)'!K11+'Sch XI(a)(iii)'!K11+'Sch XI(a)(iv)'!K11+'Sch XI(a)(v)'!K11+'Sch XI(a)(vi)'!K11+'Sch XI(a)(vii)'!K11+'Sch XI(a)(viii)'!K11","v":0},{"$f":"'Sch XI(a)(i)'!L11+'Sch XI(a)(ii)'!L11+'Sch XI(a)(iii)'!L11+'Sch XI(a)(iv)'!L11+'Sch XI(a)(v)'!L11+'Sch XI(a)(vi)'!L11+'Sch XI(a)(vii)'!L11+'Sch XI(a)(viii)'!L11","v":0},{"$f":"'Sch XI(a)(i)'!M11+'Sch XI(a)(ii)'!M11+'Sch XI(a)(iii)'!M11+'Sch XI(a)(iv)'!M11+'Sch XI(a)(v)'!M11+'Sch XI(a)(vi)'!M11+'Sch XI(a)(vii)'!M11+'Sch XI(a)(viii)'!M11","v":0},{"$f":"K11-L11","v":0},{"$f":"J11-L11","v":0}]
["L2",{"$f":"B13-1","v":2014},{"$f":"'Sch XI(a)(i)'!C12+'Sch XI(a)(ii)'!C12+'Sch XI(a)(iii)'!C12+'Sch XI(a)(iv)'!C12+'Sch XI(a)(v)'!C12+'Sch XI(a)(vi)'!C12+'Sch XI(a)(vii)'!C12+'Sch XI(a)(viii)'!C12","v":0},{"$f":"'Sch XI(a)(i)'!D12+'Sch XI(a)(ii)'!D12+'Sch XI(a)(iii)'!D12+'Sch XI(a)(iv)'!D12+'Sch XI(a)(v)'!D12+'Sch XI(a)(vi)'!D12+'Sch XI(a)(vii)'!D12+'Sch XI(a)(viii)'!D12","v":0},{"$f":"'Sch XI(a)(i)'!E12+'Sch XI(a)(ii)'!E12+'Sch XI(a)(iii)'!E12+'Sch XI(a)(iv)'!E12+'Sch XI(a)(v)'!E12+'Sch XI(a)(vi)'!E12+'Sch XI(a)(vii)'!E12+'Sch XI(a)(viii)'!E12","v":0},{"$f":"'Sch XI(a)(i)'!F12+'Sch XI(a)(ii)'!F12+'Sch XI(a)(iii)'!F12+'Sch XI(a)(iv)'!F12+'Sch XI(a)(v)'!F12+'Sch XI(a)(vi)'!F12+'Sch XI(a)(vii)'!F12+'Sch XI(a)(viii)'!F12","v":0},{"$f":"'Sch XI(a)(i)'!G12+'Sch XI(a)(ii)'!G12+'Sch XI(a)(iii)'!G12+'Sch XI(a)(iv)'!G12+'Sch XI(a)(v)'!G12+'Sch XI(a)(vi)'!G12+'Sch XI(a)(vii)'!G12+'Sch XI(a)(viii)'!G12","v":0},{"$f":"'Sch XI(a)(i)'!H12+'Sch XI(a)(ii)'!H12+'Sch XI(a)(iii)'!H12+'Sch XI(a)(iv)'!H12+'Sch XI(a)(v)'!H12+'Sch XI(a)(vi)'!H12+'Sch XI(a)(vii)'!H12+'Sch XI(a)(viii)'!H12","v":0},{"$f":"'Sch XI(a)(i)'!I12+'Sch XI(a)(ii)'!I12+'Sch XI(a)(iii)'!I12+'Sch XI(a)(iv)'!I12+'Sch XI(a)(v)'!I12+'Sch XI(a)(vi)'!I12+'Sch XI(a)(vii)'!I12+'Sch XI(a)(viii)'!I12","v":0},{"$f":"'Sch XI(a)(i)'!J12+'Sch XI(a)(ii)'!J12+'Sch XI(a)(iii)'!J12+'Sch XI(a)(iv)'!J12+'Sch XI(a)(v)'!J12+'Sch XI(a)(vi)'!J12+'Sch XI(a)(vii)'!J12+'Sch XI(a)(viii)'!J12","v":0},{"$f":"'Sch XI(a)(i)'!K12+'Sch XI(a)(ii)'!K12+'Sch XI(a)(iii)'!K12+'Sch XI(a)(iv)'!K12+'Sch XI(a)(v)'!K12+'Sch XI(a)(vi)'!K12+'Sch XI(a)(vii)'!K12+'Sch XI(a)(viii)'!K12","v":0},{"$f":"'Sch XI(a)(i)'!L12+'Sch XI(a)(ii)'!L12+'Sch XI(a)(iii)'!L12+'Sch XI(a)(iv)'!L12+'Sch XI(a)(v)'!L12+'Sch XI(a)(vi)'!L12+'Sch XI(a)(vii)'!L12+'Sch XI(a)(viii)'!L12","v":0},{"$f":"'Sch XI(a)(i)'!M12+'Sch XI(a)(ii)'!M12+'Sch XI(a)(iii)'!M12+'Sch XI(a)(iv)'!M12+'Sch XI(a)(v)'!M12+'Sch XI(a)(vi)'!M12+'Sch XI(a)(vii)'!M12+'Sch XI(a)(viii)'!M12","v":0},0,0]
["L3",2015,"XXX",{"$f":"'Sch XI(a)(i)'!D13+'Sch XI(a)(ii)'!D13+'Sch XI(a)(iii)'!D13+'Sch XI(a)(iv)'!D13+'Sch XI(a)(v)'!D13+'Sch XI(a)(vi)'!D13+'Sch XI(a)(vii)'!D13+'Sch XI(a)(viii)'!D13","v":0},{"$f":"'Sch XI(a)(i)'!E13+'Sch XI(a)(ii)'!E13+'Sch XI(a)(iii)'!E13+'Sch XI(a)(iv)'!E13+'Sch XI(a)(v)'!E13+'Sch XI(a)(vi)'!E13+'Sch XI(a)(vii)'!E13+'Sch XI(a)(viii)'!E13","v":0},{"$f":"'Sch XI(a)(i)'!F13+'Sch XI(a)(ii)'!F13+'Sch XI(a)(iii)'!F13+'Sch XI(a)(iv)'!F13+'Sch XI(a)(v)'!F13+'Sch XI(a)(vi)'!F13+'Sch XI(a)(vii)'!F13+'Sch XI(a)(viii)'!F13","v":0},{"$f":"'Sch XI(a)(i)'!G13+'Sch XI(a)(ii)'!G13+'Sch XI(a)(iii)'!G13+'Sch XI(a)(iv)'!G13+'Sch XI(a)(v)'!G13+'Sch XI(a)(vi)'!G13+'Sch XI(a)(vii)'!G13+'Sch XI(a)(viii)'!G13","v":0},{"$f":"'Sch XI(a)(i)'!H13+'Sch XI(a)(ii)'!H13+'Sch XI(a)(iii)'!H13+'Sch XI(a)(iv)'!H13+'Sch XI(a)(v)'!H13+'Sch XI(a)(vi)'!H13+'Sch XI(a)(vii)'!H13+'Sch XI(a)(viii)'!H13","v":0},{"$f":"'Sch XI(a)(i)'!I13+'Sch XI(a)(ii)'!I13+'Sch XI(a)(iii)'!I13+'Sch XI(a)(iv)'!I13+'Sch XI(a)(v)'!I13+'Sch XI(a)(vi)'!I13+'Sch XI(a)(vii)'!I13+'Sch XI(a)(viii)'!I13","v":0},{"$f":"'Sch XI(a)(i)'!J13+'Sch XI(a)(ii)'!J13+'Sch XI(a)(iii)'!J13+'Sch XI(a)(iv)'!J13+'Sch XI(a)(v)'!J13+'Sch XI(a)(vi)'!J13+'Sch XI(a)(vii)'!J13+'Sch XI(a)(viii)'!J13","v":0},{"$f":"'Sch XI(a)(i)'!K13+'Sch XI(a)(ii)'!K13+'Sch XI(a)(iii)'!K13+'Sch XI(a)(iv)'!K13+'Sch XI(a)(v)'!K13+'Sch XI(a)(vi)'!K13+'Sch XI(a)(vii)'!K13+'Sch XI(a)(viii)'!K13","v":0},{"$f":"'Sch XI(a)(i)'!L13+'Sch XI(a)(ii)'!L13+'Sch XI(a)(iii)'!L13+'Sch XI(a)(iv)'!L13+'Sch XI(a)(v)'!L13+'Sch XI(a)(vi)'!L13+'Sch XI(a)(vii)'!L13+'Sch XI(a)(viii)'!L13","v":0},{"$f":"'Sch XI(a)(i)'!M13+'Sch XI(a)(ii)'!M13+'Sch XI(a)(iii)'!M13+'Sch XI(a)(iv)'!M13+'Sch XI(a)(v)'!M13+'Sch XI(a)(vi)'!M13+'Sch XI(a)(vii)'!M13+'Sch XI(a)(viii)'!M13","v":0},0,0]
["L4",2016,"XXX","XXX",{"$f":"'Sch XI(a)(i)'!E14+'Sch XI(a)(ii)'!E14+'Sch XI(a)(iii)'!E14+'Sch XI(a)(iv)'!E14+'Sch XI(a)(v)'!E14+'Sch XI(a)(vi)'!E14+'Sch XI(a)(vii)'!E14+'Sch XI(a)(viii)'!E14","v":0},{"$f":"'Sch XI(a)(i)'!F14+'Sch XI(a)(ii)'!F14+'Sch XI(a)(iii)'!F14+'Sch XI(a)(iv)'!F14+'Sch XI(a)(v)'!F14+'Sch XI(a)(vi)'!F14+'Sch XI(a)(vii)'!F14+'Sch XI(a)(viii)'!F14","v":0},{"$f":"'Sch XI(a)(i)'!G14+'Sch XI(a)(ii)'!G14+'Sch XI(a)(iii)'!G14+'Sch XI(a)(iv)'!G14+'Sch XI(a)(v)'!G14+'Sch XI(a)(vi)'!G14+'Sch XI(a)(vii)'!G14+'Sch XI(a)(viii)'!G14","v":0},{"$f":"'Sch XI(a)(i)'!H14+'Sch XI(a)(ii)'!H14+'Sch XI(a)(iii)'!H14+'Sch XI(a)(iv)'!H14+'Sch XI(a)(v)'!H14+'Sch XI(a)(vi)'!H14+'Sch XI(a)(vii)'!H14+'Sch XI(a)(viii)'!H14","v":0},{"$f":"'Sch XI(a)(i)'!I14+'Sch XI(a)(ii)'!I14+'Sch XI(a)(iii)'!I14+'Sch XI(a)(iv)'!I14+'Sch XI(a)(v)'!I14+'Sch XI(a)(vi)'!I14+'Sch XI(a)(vii)'!I14+'Sch XI(a)(viii)'!I14","v":0},{"$f":"'Sch XI(a)(i)'!J14+'Sch XI(a)(ii)'!J14+'Sch XI(a)(iii)'!J14+'Sch XI(a)(iv)'!J14+'Sch XI(a)(v)'!J14+'Sch XI(a)(vi)'!J14+'Sch XI(a)(vii)'!J14+'Sch XI(a)(viii)'!J14","v":0},{"$f":"'Sch XI(a)(i)'!K14+'Sch XI(a)(ii)'!K14+'Sch XI(a)(iii)'!K14+'Sch XI(a)(iv)'!K14+'Sch XI(a)(v)'!K14+'Sch XI(a)(vi)'!K14+'Sch XI(a)(vii)'!K14+'Sch XI(a)(viii)'!K14","v":0},{"$f":"'Sch XI(a)(i)'!L14+'Sch XI(a)(ii)'!L14+'Sch XI(a)(iii)'!L14+'Sch XI(a)(iv)'!L14+'Sch XI(a)(v)'!L14+'Sch XI(a)(vi)'!L14+'Sch XI(a)(vii)'!L14+'Sch XI(a)(viii)'!L14","v":0},{"$f":"'Sch XI(a)(i)'!M14+'Sch XI(a)(ii)'!M14+'Sch XI(a)(iii)'!M14+'Sch XI(a)(iv)'!M14+'Sch XI(a)(v)'!M14+'Sch XI(a)(vi)'!M14+'Sch XI(a)(vii)'!M14+'Sch XI(a)(viii)'!M14","v":0},0,0]
["L5",2017,"XXX","XXX","XXX",{"$f":"'Sch XI(a)(i)'!F15+'Sch XI(a)(ii)'!F15+'Sch XI(a)(iii)'!F15+'Sch XI(a)(iv)'!F15+'Sch XI(a)(v)'!F15+'Sch XI(a)(vi)'!F15+'Sch XI(a)(vii)'!F15+'Sch XI(a)(viii)'!F15","v":0},{"$f":"'Sch XI(a)(i)'!G15+'Sch XI(a)(ii)'!G15+'Sch XI(a)(iii)'!G15+'Sch XI(a)(iv)'!G15+'Sch XI(a)(v)'!G15+'Sch XI(a)(vi)'!G15+'Sch XI(a)(vii)'!G15+'Sch XI(a)(viii)'!G15","v":0},{"$f":"'Sch XI(a)(i)'!H15+'Sch XI(a)(ii)'!H15+'Sch XI(a)(iii)'!H15+'Sch XI(a)(iv)'!H15+'Sch XI(a)(v)'!H15+'Sch XI(a)(vi)'!H15+'Sch XI(a)(vii)'!H15+'Sch XI(a)(viii)'!H15","v":0},{"$f":"'Sch XI(a)(i)'!I15+'Sch XI(a)(ii)'!I15+'Sch XI(a)(iii)'!I15+'Sch XI(a)(iv)'!I15+'Sch XI(a)(v)'!I15+'Sch XI(a)(vi)'!I15+'Sch XI(a)(vii)'!I15+'Sch XI(a)(viii)'!I15","v":0},{"$f":"'Sch XI(a)(i)'!J15+'Sch XI(a)(ii)'!J15+'Sch XI(a)(iii)'!J15+'Sch XI(a)(iv)'!J15+'Sch XI(a)(v)'!J15+'Sch XI(a)(vi)'!J15+'Sch XI(a)(vii)'!J15+'Sch XI(a)(viii)'!J15","v":0},{"$f":"'Sch XI(a)(i)'!K15+'Sch XI(a)(ii)'!K15+'Sch XI(a)(iii)'!K15+'Sch XI(a)(iv)'!K15+'Sch XI(a)(v)'!K15+'Sch XI(a)(vi)'!K15+'Sch XI(a)(vii)'!K15+'Sch XI(a)(viii)'!K15","v":0},{"$f":"'Sch XI(a)(i)'!L15+'Sch XI(a)(ii)'!L15+'Sch XI(a)(iii)'!L15+'Sch XI(a)(iv)'!L15+'Sch XI(a)(v)'!L15+'Sch XI(a)(vi)'!L15+'Sch XI(a)(vii)'!L15+'Sch XI(a)(viii)'!L15","v":0},{"$f":"'Sch XI(a)(i)'!M15+'Sch XI(a)(ii)'!M15+'Sch XI(a)(iii)'!M15+'Sch XI(a)(iv)'!M15+'Sch XI(a)(v)'!M15+'Sch XI(a)(vi)'!M15+'Sch XI(a)(vii)'!M15+'Sch XI(a)(viii)'!M15","v":0},0,0]
["L6",2018,"XXX","XXX","XXX","XXX",{"$f":"'Sch XI(a)(i)'!G16+'Sch XI(a)(ii)'!G16+'Sch XI(a)(iii)'!G16+'Sch XI(a)(iv)'!G16+'Sch XI(a)(v)'!G16+'Sch XI(a)(vi)'!G16+'Sch XI(a)(vii)'!G16+'Sch XI(a)(viii)'!G16","v":0},{"$f":"'Sch XI(a)(i)'!H16+'Sch XI(a)(ii)'!H16+'Sch XI(a)(iii)'!H16+'Sch XI(a)(iv)'!H16+'Sch XI(a)(v)'!H16+'Sch XI(a)(vi)'!H16+'Sch XI(a)(vii)'!H16+'Sch XI(a)(viii)'!H16","v":0},{"$f":"'Sch XI(a)(i)'!I16+'Sch XI(a)(ii)'!I16+'Sch XI(a)(iii)'!I16+'Sch XI(a)(iv)'!I16+'Sch XI(a)(v)'!I16+'Sch XI(a)(vi)'!I16+'Sch XI(a)(vii)'!I16+'Sch XI(a)(viii)'!I16","v":0},{"$f":"'Sch XI(a)(i)'!J16+'Sch XI(a)(ii)'!J16+'Sch XI(a)(iii)'!J16+'Sch XI(a)(iv)'!J16+'Sch XI(a)(v)'!J16+'Sch XI(a)(vi)'!J16+'Sch XI(a)(vii)'!J16+'Sch XI(a)(viii)'!J16","v":0},{"$f":"'Sch XI(a)(i)'!K16+'Sch XI(a)(ii)'!K16+'Sch XI(a)(iii)'!K16+'Sch XI(a)(iv)'!K16+'Sch XI(a)(v)'!K16+'Sch XI(a)(vi)'!K16+'Sch XI(a)(vii)'!K16+'Sch XI(a)(viii)'!K16","v":0},{"$f":"'Sch XI(a)(i)'!L16+'Sch XI(a)(ii)'!L16+'Sch XI(a)(iii)'!L16+'Sch XI(a)(iv)'!L16+'Sch XI(a)(v)'!L16+'Sch XI(a)(vi)'!L16+'Sch XI(a)(vii)'!L16+'Sch XI(a)(viii)'!L16","v":0},{"$f":"'Sch XI(a)(i)'!M16+'Sch XI(a)(ii)'!M16+'Sch XI(a)(iii)'!M16+'Sch XI(a)(iv)'!M16+'Sch XI(a)(v)'!M16+'Sch XI(a)(vi)'!M16+'Sch XI(a)(vii)'!M16+'Sch XI(a)(viii)'!M16","v":0},0,0]
["L7",2019,"XXX","XXX","XXX","XXX","XXX",{"$f":"'Sch XI(a)(i)'!H17+'Sch XI(a)(ii)'!H17+'Sch XI(a)(iii)'!H17+'Sch XI(a)(iv)'!H17+'Sch XI(a)(v)'!H17+'Sch XI(a)(vi)'!H17+'Sch XI(a)(vii)'!H17+'Sch XI(a)(viii)'!H17","v":0},{"$f":"'Sch XI(a)(i)'!I17+'Sch XI(a)(ii)'!I17+'Sch XI(a)(iii)'!I17+'Sch XI(a)(iv)'!I17+'Sch XI(a)(v)'!I17+'Sch XI(a)(vi)'!I17+'Sch XI(a)(vii)'!I17+'Sch XI(a)(viii)'!I17","v":0},{"$f":"'Sch XI(a)(i)'!J17+'Sch XI(a)(ii)'!J17+'Sch XI(a)(iii)'!J17+'Sch XI(a)(iv)'!J17+'Sch XI(a)(v)'!J17+'Sch XI(a)(vi)'!J17+'Sch XI(a)(vii)'!J17+'Sch XI(a)(viii)'!J17","v":0},{"$f":"'Sch XI(a)(i)'!K17+'Sch XI(a)(ii)'!K17+'Sch XI(a)(iii)'!K17+'Sch XI(a)(iv)'!K17+'Sch XI(a)(v)'!K17+'Sch XI(a)(vi)'!K17+'Sch XI(a)(vii)'!K17+'Sch XI(a)(viii)'!K17","v":0},{"$f":"'Sch XI(a)(i)'!L17+'Sch XI(a)(ii)'!L17+'Sch XI(a)(iii)'!L17+'Sch XI(a)(iv)'!L17+'Sch XI(a)(v)'!L17+'Sch XI(a)(vi)'!L17+'Sch XI(a)(vii)'!L17+'Sch XI(a)(viii)'!L17","v":0},{"$f":"'Sch XI(a)(i)'!M17+'Sch XI(a)(ii)'!M17+'Sch XI(a)(iii)'!M17+'Sch XI(a)(iv)'!M17+'Sch XI(a)(v)'!M17+'Sch XI(a)(vi)'!M17+'Sch XI(a)(vii)'!M17+'Sch XI(a)(viii)'!M17","v":0},0,0]
["L8",2020,"XXX","XXX","XXX","XXX","XXX","XXX",{"$f":"'Sch XI(a)(i)'!I18+'Sch XI(a)(ii)'!I18+'Sch XI(a)(iii)'!I18+'Sch XI(a)(iv)'!I18+'Sch XI(a)(v)'!I18+'Sch XI(a)(vi)'!I18+'Sch XI(a)(vii)'!I18+'Sch XI(a)(viii)'!I18","v":0},{"$f":"'Sch XI(a)(i)'!J18+'Sch XI(a)(ii)'!J18+'Sch XI(a)(iii)'!J18+'Sch XI(a)(iv)'!J18+'Sch XI(a)(v)'!J18+'Sch XI(a)(vi)'!J18+'Sch XI(a)(vii)'!J18+'Sch XI(a)(viii)'!J18","v":0},{"$f":"'Sch XI(a)(i)'!K18+'Sch XI(a)(ii)'!K18+'Sch XI(a)(iii)'!K18+'Sch XI(a)(iv)'!K18+'Sch XI(a)(v)'!K18+'Sch XI(a)(vi)'!K18+'Sch XI(a)(vii)'!K18+'Sch XI(a)(viii)'!K18","v":0},{"$f":"'Sch XI(a)(i)'!L18+'Sch XI(a)(ii)'!L18+'Sch XI(a)(iii)'!L18+'Sch XI(a)(iv)'!L18+'Sch XI(a)(v)'!L18+'Sch XI(a)(vi)'!L18+'Sch XI(a)(vii)'!L18+'Sch XI(a)(viii)'!L18","v":0},{"$f":"'Sch XI(a)(i)'!M18+'Sch XI(a)(ii)'!M18+'Sch XI(a)(iii)'!M18+'Sch XI(a)(iv)'!M18+'Sch XI(a)(v)'!M18+'Sch XI(a)(vi)'!M18+'Sch XI(a)(vii)'!M18+'Sch XI(a)(viii)'!M18","v":0},0,0]
["L9",2021,"XXX","XXX","XXX","XXX","XXX","XXX","XXX",{"$f":"'Sch XI(a)(i)'!J19+'Sch XI(a)(ii)'!J19+'Sch XI(a)(iii)'!J19+'Sch XI(a)(iv)'!J19+'Sch XI(a)(v)'!J19+'Sch XI(a)(vi)'!J19+'Sch XI(a)(vii)'!J19+'Sch XI(a)(viii)'!J19","v":0},{"$f":"'Sch XI(a)(i)'!K19+'Sch XI(a)(ii)'!K19+'Sch XI(a)(iii)'!K19+'Sch XI(a)(iv)'!K19+'Sch XI(a)(v)'!K19+'Sch XI(a)(vi)'!K19+'Sch XI(a)(vii)'!K19+'Sch XI(a)(viii)'!K19","v":0},{"$f":"'Sch XI(a)(i)'!L19+'Sch XI(a)(ii)'!L19+'Sch XI(a)(iii)'!L19+'Sch XI(a)(iv)'!L19+'Sch XI(a)(v)'!L19+'Sch XI(a)(vi)'!L19+'Sch XI(a)(vii)'!L19+'Sch XI(a)(viii)'!L19","v":0},{"$f":"'Sch XI(a)(i)'!M19+'Sch XI(a)(ii)'!M19+'Sch XI(a)(iii)'!M19+'Sch XI(a)(iv)'!M19+'Sch XI(a)(v)'!M19+'Sch XI(a)(vi)'!M19+'Sch XI(a)(vii)'!M19+'Sch XI(a)(viii)'!M19","v":0},0,0]
["L10",2022,"XXX","XXX","XXX","XXX","XXX","XXX","XXX","XXX",{"$f":"'Sch XI(a)(i)'!K20+'Sch XI(a)(ii)'!K20+'Sch XI(a)(iii)'!K20+'Sch XI(a)(iv)'!K20+'Sch XI(a)(v)'!K20+'Sch XI(a)(vi)'!K20+'Sch XI(a)(vii)'!K20+'Sch XI(a)(viii)'!K20","v":0},{"$f":"'Sch XI(a)(i)'!L20+'Sch XI(a)(ii)'!L20+'Sch XI(a)(iii)'!L20+'Sch XI(a)(iv)'!L20+'Sch XI(a)(v)'!L20+'Sch XI(a)(vi)'!L20+'Sch XI(a)(vii)'!L20+'Sch XI(a)(viii)'!L20","v":0},{"$f":"'Sch XI(a)(i)'!M20+'Sch XI(a)(ii)'!M20+'Sch XI(a)(iii)'!M20+'Sch XI(a)(iv)'!M20+'Sch XI(a)(v)'!M20+'Sch XI(a)(vi)'!M20+'Sch XI(a)(vii)'!M20+'Sch XI(a)(viii)'!M20","v":0},0,"XXX"]
["L11",{"$f":"L10","v":2023},"XXX","XXX","XXX","XXX","XXX","XXX","XXX","XXX","XXX",{"$f":"'Sch XI(a)(i)'!L21+'Sch XI(a)(ii)'!L21+'Sch XI(a)(iii)'!L21+'Sch XI(a)(iv)'!L21+'Sch XI(a)(v)'!L21+'Sch XI(a)(vi)'!L21+'Sch XI(a)(vii)'!L21+'Sch XI(a)(viii)'!L21","v":0},{"$f":"'Sch XI(a)(i)'!M21+'Sch XI(a)(ii)'!M21+'Sch XI(a)(iii)'!M21+'Sch XI(a)(iv)'!M21+'Sch XI(a)(v)'!M21+'Sch XI(a)(vi)'!M21+'Sch XI(a)(vii)'!M21+'Sch XI(a)(viii)'!M21","v":0},"XXX","XXX"]
["L12","Totals",null,null,null,null,null,null,null,null,null,null,{"$f":"SUM(M11:M21)","v":0},{"$f":"SUM(N11:N21)","v":0},{"$f":"SUM(O11:O21)","v":0}]
[]
[null,null,"CUMULATIVE PAID NET LOSSES AND ALLOCATED LOSS ADJUSTMENT EXPENSES REPORTED AT YEAR END ($000)",null,null,null,null,null,null,null,null,null,24]
[null,null,null,null,null,null,null,null,null,null,null,null,"Paid"]
[null,"Years in Which",14,15,16,17,18,19,20,21,22,23,"Catastrophe"]
[null,"Policies Were",null,null,null,null,null,null,null,null,null,null,"Losses"]
[null,"Written",{"$f":"D28-1","v":2014},2015,2016,2017,2018,2019,2020,2021,2022,{"$f":"L10","v":2023},{"$f":"L28","v":2023}]
["L13","Prior",{"$f":"'Sch XI(a)(i)'!C29+'Sch XI(a)(ii)'!C29+'Sch XI(a)(iii)'!C29+'Sch XI(a)(iv)'!C29+'Sch XI(a)(v)'!C29+'Sch XI(a)(vi)'!C29+'Sch XI(a)(vii)'!C29+'Sch XI(a)(viii)'!C29","v":0},{"$f":"'Sch XI(a)(i)'!D29+'Sch XI(a)(ii)'!D29+'Sch XI(a)(iii)'!D29+'Sch XI(a)(iv)'!D29+'Sch XI(a)(v)'!D29+'Sch XI(a)(vi)'!D29+'Sch XI(a)(vii)'!D29+'Sch XI(a)(viii)'!D29","v":0},{"$f":"'Sch XI(a)(i)'!E29+'Sch XI(a)(ii)'!E29+'Sch XI(a)(iii)'!E29+'Sch XI(a)(iv)'!E29+'Sch XI(a)(v)'!E29+'Sch XI(a)(vi)'!E29+'Sch XI(a)(vii)'!E29+'Sch XI(a)(viii)'!E29","v":0},{"$f":"'Sch XI(a)(i)'!F29+'Sch XI(a)(ii)'!F29+'Sch XI(a)(iii)'!F29+'Sch XI(a)(iv)'!F29+'Sch XI(a)(v)'!F29+'Sch XI(a)(vi)'!F29+'Sch XI(a)(vii)'!F29+'Sch XI(a)(viii)'!F29","v":0},{"$f":"'Sch XI(a)(i)'!G29+'Sch XI(a)(ii)'!G29+'Sch XI(a)(iii)'!G29+'Sch XI(a)(iv)'!G29+'Sch XI(a)(v)'!G29+'Sch XI(a)(vi)'!G29+'Sch XI(a)(vii)'!G29+'Sch XI(a)(viii)'!G29","v":0},{"$f":"'Sch XI(a)(i)'!H29+'Sch XI(a)(ii)'!H29+'Sch XI(a)(iii)'!H29+'Sch XI(a)(iv)'!H29+'Sch XI(a)(v)'!H29+'Sch XI(a)(vi)'!H29+'Sch XI(a)(vii)'!H29+'Sch XI(a)(viii)'!H29","v":0},{"$f":"'Sch XI(a)(i)'!I29+'Sch XI(a)(ii)'!I29+'Sch XI(a)(iii)'!I29+'Sch XI(a)(iv)'!I29+'Sch XI(a)(v)'!I29+'Sch XI(a)(vi)'!I29+'Sch XI(a)(vii)'!I29+'Sch XI(a)(viii)'!I29","v":0},{"$f":"'Sch XI(a)(i)'!J29+'Sch XI(a)(ii)'!J29+'Sch XI(a)(iii)'!J29+'Sch XI(a)(iv)'!J29+'Sch XI(a)(v)'!J29+'Sch XI(a)(vi)'!J29+'Sch XI(a)(vii)'!J29+'Sch XI(a)(viii)'!J29","v":0},{"$f":"'Sch XI(a)(i)'!K29+'Sch XI(a)(ii)'!K29+'Sch XI(a)(iii)'!K29+'Sch XI(a)(iv)'!K29+'Sch XI(a)(v)'!K29+'Sch XI(a)(vi)'!K29+'Sch XI(a)(vii)'!K29+'Sch XI(a)(viii)'!K29","v":0},{"$f":"'Sch XI(a)(i)'!L29+'Sch XI(a)(ii)'!L29+'Sch XI(a)(iii)'!L29+'Sch XI(a)(iv)'!L29+'Sch XI(a)(v)'!L29+'Sch XI(a)(vi)'!L29+'Sch XI(a)(vii)'!L29+'Sch XI(a)(viii)'!L29","v":0},{"$f":"'Sch XI(a)(i)'!M29+'Sch XI(a)(ii)'!M29+'Sch XI(a)(iii)'!M29+'Sch XI(a)(iv)'!M29+'Sch XI(a)(v)'!M29+'Sch XI(a)(vi)'!M29+'Sch XI(a)(vii)'!M29+'Sch XI(a)(viii)'!M29","v":0}]
["L14",{"$f":"B31-1","v":2014},{"$f":"'Sch XI(a)(i)'!C30+'Sch XI(a)(ii)'!C30+'Sch XI(a)(iii)'!C30+'Sch XI(a)(iv)'!C30+'Sch XI(a)(v)'!C30+'Sch XI(a)(vi)'!C30+'Sch XI(a)(vii)'!C30+'Sch XI(a)(viii)'!C30","v":0},{"$f":"'Sch XI(a)(i)'!D30+'Sch XI(a)(ii)'!D30+'Sch XI(a)(iii)'!D30+'Sch XI(a)(iv)'!D30+'Sch XI(a)(v)'!D30+'Sch XI(a)(vi)'!D30+'Sch XI(a)(vii)'!D30+'Sch XI(a)(viii)'!D30","v":0},{"$f":"'Sch XI(a)(i)'!E30+'Sch XI(a)(ii)'!E30+'Sch XI(a)(iii)'!E30+'Sch XI(a)(iv)'!E30+'Sch XI(a)(v)'!E30+'Sch XI(a)(vi)'!E30+'Sch XI(a)(vii)'!E30+'Sch XI(a)(viii)'!E30","v":0},{"$f":"'Sch XI(a)(i)'!F30+'Sch XI(a)(ii)'!F30+'Sch XI(a)(iii)'!F30+'Sch XI(a)(iv)'!F30+'Sch XI(a)(v)'!F30+'Sch XI(a)(vi)'!F30+'Sch XI(a)(vii)'!F30+'Sch XI(a)(viii)'!F30","v":0},{"$f":"'Sch XI(a)(i)'!G30+'Sch XI(a)(ii)'!G30+'Sch XI(a)(iii)'!G30+'Sch XI(a)(iv)'!G30+'Sch XI(a)(v)'!G30+'Sch XI(a)(vi)'!G30+'Sch XI(a)(vii)'!G30+'Sch XI(a)(viii)'!G30","v":0},{"$f":"'Sch XI(a)(i)'!H30+'Sch XI(a)(ii)'!H30+'Sch XI(a)(iii)'!H30+'Sch XI(a)(iv)'!H30+'Sch XI(a)(v)'!H30+'Sch XI(a)(vi)'!H30+'Sch XI(a)(vii)'!H30+'Sch XI(a)(viii)'!H30","v":0},{"$f":"'Sch XI(a)(i)'!I30+'Sch XI(a)(ii)'!I30+'Sch XI(a)(iii)'!I30+'Sch XI(a)(iv)'!I30+'Sch XI(a)(v)'!I30+'Sch XI(a)(vi)'!I30+'Sch XI(a)(vii)'!I30+'Sch XI(a)(viii)'!I30","v":0},{"$f":"'Sch XI(a)(i)'!J30+'Sch XI(a)(ii)'!J30+'Sch XI(a)(iii)'!J30+'Sch XI(a)(iv)'!J30+'Sch XI(a)(v)'!J30+'Sch XI(a)(vi)'!J30+'Sch XI(a)(vii)'!J30+'Sch XI(a)(viii)'!J30","v":0},{"$f":"'Sch XI(a)(i)'!K30+'Sch XI(a)(ii)'!K30+'Sch XI(a)(iii)'!K30+'Sch XI(a)(iv)'!K30+'Sch XI(a)(v)'!K30+'Sch XI(a)(vi)'!K30+'Sch XI(a)(vii)'!K30+'Sch XI(a)(viii)'!K30","v":0},{"$f":"'Sch XI(a)(i)'!L30+'Sch XI(a)(ii)'!L30+'Sch XI(a)(iii)'!L30+'Sch XI(a)(iv)'!L30+'Sch XI(a)(v)'!L30+'Sch XI(a)(vi)'!L30+'Sch XI(a)(vii)'!L30+'Sch XI(a)(viii)'!L30","v":0},{"$f":"'Sch XI(a)(i)'!M30+'Sch XI(a)(ii)'!M30+'Sch XI(a)(iii)'!M30+'Sch XI(a)(iv)'!M30+'Sch XI(a)(v)'!M30+'Sch XI(a)(vi)'!M30+'Sch XI(a)(vii)'!M30+'Sch XI(a)(viii)'!M30","v":0}]
["L15",2015,"XXX",{"$f":"'Sch XI(a)(i)'!D31+'Sch XI(a)(ii)'!D31+'Sch XI(a)(iii)'!D31+'Sch XI(a)(iv)'!D31+'Sch XI(a)(v)'!D31+'Sch XI(a)(vi)'!D31+'Sch XI(a)(vii)'!D31+'Sch XI(a)(viii)'!D31","v":0},{"$f":"'Sch XI(a)(i)'!E31+'Sch XI(a)(ii)'!E31+'Sch XI(a)(iii)'!E31+'Sch XI(a)(iv)'!E31+'Sch XI(a)(v)'!E31+'Sch XI(a)(vi)'!E31+'Sch XI(a)(vii)'!E31+'Sch XI(a)(viii)'!E31","v":0},{"$f":"'Sch XI(a)(i)'!F31+'Sch XI(a)(ii)'!F31+'Sch XI(a)(iii)'!F31+'Sch XI(a)(iv)'!F31+'Sch XI(a)(v)'!F31+'Sch XI(a)(vi)'!F31+'Sch XI(a)(vii)'!F31+'Sch XI(a)(viii)'!F31","v":0},{"$f":"'Sch XI(a)(i)'!G31+'Sch XI(a)(ii)'!G31+'Sch XI(a)(iii)'!G31+'Sch XI(a)(iv)'!G31+'Sch XI(a)(v)'!G31+'Sch XI(a)(vi)'!G31+'Sch XI(a)(vii)'!G31+'Sch XI(a)(viii)'!G31","v":0},{"$f":"'Sch XI(a)(i)'!H31+'Sch XI(a)(ii)'!H31+'Sch XI(a)(iii)'!H31+'Sch XI(a)(iv)'!H31+'Sch XI(a)(v)'!H31+'Sch XI(a)(vi)'!H31+'Sch XI(a)(vii)'!H31+'Sch XI(a)(viii)'!H31","v":0},{"$f":"'Sch XI(a)(i)'!I31+'Sch XI(a)(ii)'!I31+'Sch XI(a)(iii)'!I31+'Sch XI(a)(iv)'!I31+'Sch XI(a)(v)'!I31+'Sch XI(a)(vi)'!I31+'Sch XI(a)(vii)'!I31+'Sch XI(a)(viii)'!I31","v":0},{"$f":"'Sch XI(a)(i)'!J31+'Sch XI(a)(ii)'!J31+'Sch XI(a)(iii)'!J31+'Sch XI(a)(iv)'!J31+'Sch XI(a)(v)'!J31+'Sch XI(a)(vi)'!J31+'Sch XI(a)(vii)'!J31+'Sch XI(a)(viii)'!J31","v":0},{"$f":"'Sch XI(a)(i)'!K31+'Sch XI(a)(ii)'!K31+'Sch XI(a)(iii)'!K31+'Sch XI(a)(iv)'!K31+'Sch XI(a)(v)'!K31+'Sch XI(a)(vi)'!K31+'Sch XI(a)(vii)'!K31+'Sch XI(a)(viii)'!K31","v":0},{"$f":"'Sch XI(a)(i)'!L31+'Sch XI(a)(ii)'!L31+'Sch XI(a)(iii)'!L31+'Sch XI(a)(iv)'!L31+'Sch XI(a)(v)'!L31+'Sch XI(a)(vi)'!L31+'Sch XI(a)(vii)'!L31+'Sch XI(a)(viii)'!L31","v":0},{"$f":"'Sch XI(a)(i)'!M31+'Sch XI(a)(ii)'!M31+'Sch XI(a)(iii)'!M31+'Sch XI(a)(iv)'!M31+'Sch XI(a)(v)'!M31+'Sch XI(a)(vi)'!M31+'Sch XI(a)(vii)'!M31+'Sch XI(a)(viii)'!M31","v":0}]
["L16",2016,"XXX","XXX",{"$f":"'Sch XI(a)(i)'!E32+'Sch XI(a)(ii)'!E32+'Sch XI(a)(iii)'!E32+'Sch XI(a)(iv)'!E32+'Sch XI(a)(v)'!E32+'Sch XI(a)(vi)'!E32+'Sch XI(a)(vii)'!E32+'Sch XI(a)(viii)'!E32","v":0},{"$f":"'Sch XI(a)(i)'!F32+'Sch XI(a)(ii)'!F32+'Sch XI(a)(iii)'!F32+'Sch XI(a)(iv)'!F32+'Sch XI(a)(v)'!F32+'Sch XI(a)(vi)'!F32+'Sch XI(a)(vii)'!F32+'Sch XI(a)(viii)'!F32","v":0},{"$f":"'Sch XI(a)(i)'!G32+'Sch XI(a)(ii)'!G32+'Sch XI(a)(iii)'!G32+'Sch XI(a)(iv)'!G32+'Sch XI(a)(v)'!G32+'Sch XI(a)(vi)'!G32+'Sch XI(a)(vii)'!G32+'Sch XI(a)(viii)'!G32","v":0},{"$f":"'Sch XI(a)(i)'!H32+'Sch XI(a)(ii)'!H32+'Sch XI(a)(iii)'!H32+'Sch XI(a)(iv)'!H32+'Sch XI(a)(v)'!H32+'Sch XI(a)(vi)'!H32+'Sch XI(a)(vii)'!H32+'Sch XI(a)(viii)'!H32","v":0},{"$f":"'Sch XI(a)(i)'!I32+'Sch XI(a)(ii)'!I32+'Sch XI(a)(iii)'!I32+'Sch XI(a)(iv)'!I32+'Sch XI(a)(v)'!I32+'Sch XI(a)(vi)'!I32+'Sch XI(a)(vii)'!I32+'Sch XI(a)(viii)'!I32","v":0},{"$f":"'Sch XI(a)(i)'!J32+'Sch XI(a)(ii)'!J32+'Sch XI(a)(iii)'!J32+'Sch XI(a)(iv)'!J32+'Sch XI(a)(v)'!J32+'Sch XI(a)(vi)'!J32+'Sch XI(a)(vii)'!J32+'Sch XI(a)(viii)'!J32","v":0},{"$f":"'Sch XI(a)(i)'!K32+'Sch XI(a)(ii)'!K32+'Sch XI(a)(iii)'!K32+'Sch XI(a)(iv)'!K32+'Sch XI(a)(v)'!K32+'Sch XI(a)(vi)'!K32+'Sch XI(a)(vii)'!K32+'Sch XI(a)(viii)'!K32","v":0},{"$f":"'Sch XI(a)(i)'!L32+'Sch XI(a)(ii)'!L32+'Sch XI(a)(iii)'!L32+'Sch XI(a)(iv)'!L32+'Sch XI(a)(v)'!L32+'Sch XI(a)(vi)'!L32+'Sch XI(a)(vii)'!L32+'Sch XI(a)(viii)'!L32","v":0},{"$f":"'Sch XI(a)(i)'!M32+'Sch XI(a)(ii)'!M32+'Sch XI(a)(iii)'!M32+'Sch XI(a)(iv)'!M32+'Sch XI(a)(v)'!M32+'Sch XI(a)(vi)'!M32+'Sch XI(a)(vii)'!M32+'Sch XI(a)(viii)'!M32","v":0}]
["L17",2017,"XXX","XXX","XXX",{"$f":"'Sch XI(a)(i)'!F33+'Sch XI(a)(ii)'!F33+'Sch XI(a)(iii)'!F33+'Sch XI(a)(iv)'!F33+'Sch XI(a)(v)'!F33+'Sch XI(a)(vi)'!F33+'Sch XI(a)(vii)'!F33+'Sch XI(a)(viii)'!F33","v":0},{"$f":"'Sch XI(a)(i)'!G33+'Sch XI(a)(ii)'!G33+'Sch XI(a)(iii)'!G33+'Sch XI(a)(iv)'!G33+'Sch XI(a)(v)'!G33+'Sch XI(a)(vi)'!G33+'Sch XI(a)(vii)'!G33+'Sch XI(a)(viii)'!G33","v":0},{"$f":"'Sch XI(a)(i)'!H33+'Sch XI(a)(ii)'!H33+'Sch XI(a)(iii)'!H33+'Sch XI(a)(iv)'!H33+'Sch XI(a)(v)'!H33+'Sch XI(a)(vi)'!H33+'Sch XI(a)(vii)'!H33+'Sch XI(a)(viii)'!H33","v":0},{"$f":"'Sch XI(a)(i)'!I33+'Sch XI(a)(ii)'!I33+'Sch XI(a)(iii)'!I33+'Sch XI(a)(iv)'!I33+'Sch XI(a)(v)'!I33+'Sch XI(a)(vi)'!I33+'Sch XI(a)(vii)'!I33+'Sch XI(a)(viii)'!I33","v":0},{"$f":"'Sch XI(a)(i)'!J33+'Sch XI(a)(ii)'!J33+'Sch XI(a)(iii)'!J33+'Sch XI(a)(iv)'!J33+'Sch XI(a)(v)'!J33+'Sch XI(a)(vi)'!J33+'Sch XI(a)(vii)'!J33+'Sch XI(a)(viii)'!J33","v":0},{"$f":"'Sch XI(a)(i)'!K33+'Sch XI(a)(ii)'!K33+'Sch XI(a)(iii)'!K33+'Sch XI(a)(iv)'!K33+'Sch XI(a)(v)'!K33+'Sch XI(a)(vi)'!K33+'Sch XI(a)(vii)'!K33+'Sch XI(a)(viii)'!K33","v":0},{"$f":"'Sch XI(a)(i)'!L33+'Sch XI(a)(ii)'!L33+'Sch XI(a)(iii)'!L33+'Sch XI(a)(iv)'!L33+'Sch XI(a)(v)'!L33+'Sch XI(a)(vi)'!L33+'Sch XI(a)(vii)'!L33+'Sch XI(a)(viii)'!L33","v":0},{"$f":"'Sch XI(a)(i)'!M33+'Sch XI(a)(ii)'!M33+'Sch XI(a)(iii)'!M33+'Sch XI(a)(iv)'!M33+'Sch XI(a)(v)'!M33+'Sch XI(a)(vi)'!M33+'Sch XI(a)(vii)'!M33+'Sch XI(a)(viii)'!M33","v":0}]
["L18",2018,"XXX","XXX","XXX","XXX",{"$f":"'Sch XI(a)(i)'!G34+'Sch XI(a)(ii)'!G34+'Sch XI(a)(iii)'!G34+'Sch XI(a)(iv)'!G34+'Sch XI(a)(v)'!G34+'Sch XI(a)(vi)'!G34+'Sch XI(a)(vii)'!G34+'Sch XI(a)(viii)'!G34","v":0},{"$f":"'Sch XI(a)(i)'!H34+'Sch XI(a)(ii)'!H34+'Sch XI(a)(iii)'!H34+'Sch XI(a)(iv)'!H34+'Sch XI(a)(v)'!H34+'Sch XI(a)(vi)'!H34+'Sch XI(a)(vii)'!H34+'Sch XI(a)(viii)'!H34","v":0},{"$f":"'Sch XI(a)(i)'!I34+'Sch XI(a)(ii)'!I34+'Sch XI(a)(iii)'!I34+'Sch XI(a)(iv)'!I34+'Sch XI(a)(v)'!I34+'Sch XI(a)(vi)'!I34+'Sch XI(a)(vii)'!I34+'Sch XI(a)(viii)'!I34","v":0},{"$f":"'Sch XI(a)(i)'!J34+'Sch XI(a)(ii)'!J34+'Sch XI(a)(iii)'!J34+'Sch XI(a)(iv)'!J34+'Sch XI(a)(v)'!J34+'Sch XI(a)(vi)'!J34+'Sch XI(a)(vii)'!J34+'Sch XI(a)(viii)'!J34","v":0},{"$f":"'Sch XI(a)(i)'!K34+'Sch XI(a)(ii)'!K34+'Sch XI(a)(iii)'!K34+'Sch XI(a)(iv)'!K34+'Sch XI(a)(v)'!K34+'Sch XI(a)(vi)'!K34+'Sch XI(a)(vii)'!K34+'Sch XI(a)(viii)'!K34","v":0},{"$f":"'Sch XI(a)(i)'!L34+'Sch XI(a)(ii)'!L34+'Sch XI(a)(iii)'!L34+'Sch XI(a)(iv)'!L34+'Sch XI(a)(v)'!L34+'Sch XI(a)(vi)'!L34+'Sch XI(a)(vii)'!L34+'Sch XI(a)(viii)'!L34","v":0},{"$f":"'Sch XI(a)(i)'!M34+'Sch XI(a)(ii)'!M34+'Sch XI(a)(iii)'!M34+'Sch XI(a)(iv)'!M34+'Sch XI(a)(v)'!M34+'Sch XI(a)(vi)'!M34+'Sch XI(a)(vii)'!M34+'Sch XI(a)(viii)'!M34","v":0}]
["L19",2019,"XXX","XXX","XXX","XXX","XXX",{"$f":"'Sch XI(a)(i)'!H35+'Sch XI(a)(ii)'!H35+'Sch XI(a)(iii)'!H35+'Sch XI(a)(iv)'!H35+'Sch XI(a)(v)'!H35+'Sch XI(a)(vi)'!H35+'Sch XI(a)(vii)'!H35+'Sch XI(a)(viii)'!H35","v":0},{"$f":"'Sch XI(a)(i)'!I35+'Sch XI(a)(ii)'!I35+'Sch XI(a)(iii)'!I35+'Sch XI(a)(iv)'!I35+'Sch XI(a)(v)'!I35+'Sch XI(a)(vi)'!I35+'Sch XI(a)(vii)'!I35+'Sch XI(a)(viii)'!I35","v":0},{"$f":"'Sch XI(a)(i)'!J35+'Sch XI(a)(ii)'!J35+'Sch XI(a)(iii)'!J35+'Sch XI(a)(iv)'!J35+'Sch XI(a)(v)'!J35+'Sch XI(a)(vi)'!J35+'Sch XI(a)(vii)'!J35+'Sch XI(a)(viii)'!J35","v":0},{"$f":"'Sch XI(a)(i)'!K35+'Sch XI(a)(ii)'!K35+'Sch XI(a)(iii)'!K35+'Sch XI(a)(iv)'!K35+'Sch XI(a)(v)'!K35+'Sch XI(a)(vi)'!K35+'Sch XI(a)(vii)'!K35+'Sch XI(a)(viii)'!K35","v":0},{"$f":"'Sch XI(a)(i)'!L35+'Sch XI(a)(ii)'!L35+'Sch XI(a)(iii)'!L35+'Sch XI(a)(iv)'!L35+'Sch XI(a)(v)'!L35+'Sch XI(a)(vi)'!L35+'Sch XI(a)(vii)'!L35+'Sch XI(a)(viii)'!L35","v":0},{"$f":"'Sch XI(a)(i)'!M35+'Sch XI(a)(ii)'!M35+'Sch XI(a)(iii)'!M35+'Sch XI(a)(iv)'!M35+'Sch XI(a)(v)'!M35+'Sch XI(a)(vi)'!M35+'Sch XI(a)(vii)'!M35+'Sch XI(a)(viii)'!M35","v":0}]
["L20",2020,"XXX","XXX","XXX","XXX","XXX","XXX",{"$f":"'Sch XI(a)(i)'!I36+'Sch XI(a)(ii)'!I36+'Sch XI(a)(iii)'!I36+'Sch XI(a)(iv)'!I36+'Sch XI(a)(v)'!I36+'Sch XI(a)(vi)'!I36+'Sch XI(a)(vii)'!I36+'Sch XI(a)(viii)'!I36","v":0},{"$f":"'Sch XI(a)(i)'!J36+'Sch XI(a)(ii)'!J36+'Sch XI(a)(iii)'!J36+'Sch XI(a)(iv)'!J36+'Sch XI(a)(v)'!J36+'Sch XI(a)(vi)'!J36+'Sch XI(a)(vii)'!J36+'Sch XI(a)(viii)'!J36","v":0},{"$f":"'Sch XI(a)(i)'!K36+'Sch XI(a)(ii)'!K36+'Sch XI(a)(iii)'!K36+'Sch XI(a)(iv)'!K36+'Sch XI(a)(v)'!K36+'Sch XI(a)(vi)'!K36+'Sch XI(a)(vii)'!K36+'Sch XI(a)(viii)'!K36","v":0},{"$f":"'Sch XI(a)(i)'!L36+'Sch XI(a)(ii)'!L36+'Sch XI(a)(iii)'!L36+'Sch XI(a)(iv)'!L36+'Sch XI(a)(v)'!L36+'Sch XI(a)(vi)'!L36+'Sch XI(a)(vii)'!L36+'Sch XI(a)(viii)'!L36","v":0},{"$f":"'Sch XI(a)(i)'!M36+'Sch XI(a)(ii)'!M36+'Sch XI(a)(iii)'!M36+'Sch XI(a)(iv)'!M36+'Sch XI(a)(v)'!M36+'Sch XI(a)(vi)'!M36+'Sch XI(a)(vii)'!M36+'Sch XI(a)(viii)'!M36","v":0}]
["L21",2021,"XXX","XXX","XXX","XXX","XXX","XXX","XXX",{"$f":"'Sch XI(a)(i)'!J37+'Sch XI(a)(ii)'!J37+'Sch XI(a)(iii)'!J37+'Sch XI(a)(iv)'!J37+'Sch XI(a)(v)'!J37+'Sch XI(a)(vi)'!J37+'Sch XI(a)(vii)'!J37+'Sch XI(a)(viii)'!J37","v":0},{"$f":"'Sch XI(a)(i)'!K37+'Sch XI(a)(ii)'!K37+'Sch XI(a)(iii)'!K37+'Sch XI(a)(iv)'!K37+'Sch XI(a)(v)'!K37+'Sch XI(a)(vi)'!K37+'Sch XI(a)(vii)'!K37+'Sch XI(a)(viii)'!K37","v":0},{"$f":"'Sch XI(a)(i)'!L37+'Sch XI(a)(ii)'!L37+'Sch XI(a)(iii)'!L37+'Sch XI(a)(iv)'!L37+'Sch XI(a)(v)'!L37+'Sch XI(a)(vi)'!L37+'Sch XI(a)(vii)'!L37+'Sch XI(a)(viii)'!L37","v":0},{"$f":"'Sch XI(a)(i)'!M37+'Sch XI(a)(ii)'!M37+'Sch XI(a)(iii)'!M37+'Sch XI(a)(iv)'!M37+'Sch XI(a)(v)'!M37+'Sch XI(a)(vi)'!M37+'Sch XI(a)(vii)'!M37+'Sch XI(a)(viii)'!M37","v":0}]
["L22",{"$f":"B39-1","v":2022},"XXX","XXX","XXX","XXX","XXX","XXX","XXX","XXX",{"$f":"'Sch XI(a)(i)'!K38+'Sch XI(a)(ii)'!K38+'Sch XI(a)(iii)'!K38+'Sch XI(a)(iv)'!K38+'Sch XI(a)(v)'!K38+'Sch XI(a)(vi)'!K38+'Sch XI(a)(vii)'!K38+'Sch XI(a)(viii)'!K38","v":0},{"$f":"'Sch XI(a)(i)'!L38+'Sch XI(a)(ii)'!L38+'Sch XI(a)(iii)'!L38+'Sch XI(a)(iv)'!L38+'Sch XI(a)(v)'!L38+'Sch XI(a)(vi)'!L38+'Sch XI(a)(vii)'!L38+'Sch XI(a)(viii)'!L38","v":0},{"$f":"'Sch XI(a)(i)'!M38+'Sch XI(a)(ii)'!M38+'Sch XI(a)(iii)'!M38+'Sch XI(a)(iv)'!M38+'Sch XI(a)(v)'!M38+'Sch XI(a)(vi)'!M38+'Sch XI(a)(vii)'!M38+'Sch XI(a)(viii)'!M38","v":0}]
["L23",{"$f":"L28","v":2023},"XXX","XXX","XXX","XXX","XXX","XXX","XXX","XXX","XXX",{"$f":"'Sch XI(a)(i)'!L39+'Sch XI(a)(ii)'!L39+'Sch XI(a)(iii)'!L39+'Sch XI(a)(iv)'!L39+'Sch XI(a)(v)'!L39+'Sch XI(a)(vi)'!L39+'Sch XI(a)(vii)'!L39+'Sch XI(a)(viii)'!L39","v":0},{"$f":"'Sch XI(a)(i)'!M39+'Sch XI(a)(ii)'!M39+'Sch XI(a)(iii)'!M39+'Sch XI(a)(iv)'!M39+'Sch XI(a)(v)'!M39+'Sch XI(a)(vi)'!M39+'Sch XI(a)(vii)'!M39+'Sch XI(a)(viii)'!M39","v":0}]
["L24","Totals",null,null,null,null,null,null,null,null,null,null,{"$f":"SUM(M29:M39)","v":0}]
[]
[null,null,"BULK & IBNR RESERVES ON NET LOSSES AND ALLOCATED LOSS ADJUSTMENT EXPENSES REPORTED AT YEAR END ($000)",null,null,null,null,null,null,null,null,null,35]
[null,null,null,null,null,null,null,null,null,null,null,null,"Losses"]
[null,"Years in Which",25,26,27,28,29,30,31,32,33,34,"Bulk & IBNR"]
[null,"Policies Were",null,null,null,null,null,null,null,null,null,null,"Reserves"]
[null,"Written",{"$f":"D46-1","v":2014},2015,2016,2017,2018,2019,2020,2021,2022,{"$f":"L28","v":2023},{"$f":"L28","v":2023}]
["L25","Prior",{"$f":"'Sch XI(a)(i)'!C47+'Sch XI(a)(ii)'!C47+'Sch XI(a)(iii)'!C47+'Sch XI(a)(iv)'!C47+'Sch XI(a)(v)'!C47+'Sch XI(a)(vi)'!C47+'Sch XI(a)(vii)'!C47+'Sch XI(a)(viii)'!C47","v":0},{"$f":"'Sch XI(a)(i)'!D47+'Sch XI(a)(ii)'!D47+'Sch XI(a)(iii)'!D47+'Sch XI(a)(iv)'!D47+'Sch XI(a)(v)'!D47+'Sch XI(a)(vi)'!D47+'Sch XI(a)(vii)'!D47+'Sch XI(a)(viii)'!D47","v":0},{"$f":"'Sch XI(a)(i)'!E47+'Sch XI(a)(ii)'!E47+'Sch XI(a)(iii)'!E47+'Sch XI(a)(iv)'!E47+'Sch XI(a)(v)'!E47+'Sch XI(a)(vi)'!E47+'Sch XI(a)(vii)'!E47+'Sch XI(a)(viii)'!E47","v":0},{"$f":"'Sch XI(a)(i)'!F47+'Sch XI(a)(ii)'!F47+'Sch XI(a)(iii)'!F47+'Sch XI(a)(iv)'!F47+'Sch XI(a)(v)'!F47+'Sch XI(a)(vi)'!F47+'Sch XI(a)(vii)'!F47+'Sch XI(a)(viii)'!F47","v":0},{"$f":"'Sch XI(a)(i)'!G47+'Sch XI(a)(ii)'!G47+'Sch XI(a)(iii)'!G47+'Sch XI(a)(iv)'!G47+'Sch XI(a)(v)'!G47+'Sch XI(a)(vi)'!G47+'Sch XI(a)(vii)'!G47+'Sch XI(a)(viii)'!G47","v":0},{"$f":"'Sch XI(a)(i)'!H47+'Sch XI(a)(ii)'!H47+'Sch XI(a)(iii)'!H47+'Sch XI(a)(iv)'!H47+'Sch XI(a)(v)'!H47+'Sch XI(a)(vi)'!H47+'Sch XI(a)(vii)'!H47+'Sch XI(a)(viii)'!H47","v":0},{"$f":"'Sch XI(a)(i)'!I47+'Sch XI(a)(ii)'!I47+'Sch XI(a)(iii)'!I47+'Sch XI(a)(iv)'!I47+'Sch XI(a)(v)'!I47+'Sch XI(a)(vi)'!I47+'Sch XI(a)(vii)'!I47+'Sch XI(a)(viii)'!I47","v":0},{"$f":"'Sch XI(a)(i)'!J47+'Sch XI(a)(ii)'!J47+'Sch XI(a)(iii)'!J47+'Sch XI(a)(iv)'!J47+'Sch XI(a)(v)'!J47+'Sch XI(a)(vi)'!J47+'Sch XI(a)(vii)'!J47+'Sch XI(a)(viii)'!J47","v":0},{"$f":"'Sch XI(a)(i)'!K47+'Sch XI(a)(ii)'!K47+'Sch XI(a)(iii)'!K47+'Sch XI(a)(iv)'!K47+'Sch XI(a)(v)'!K47+'Sch XI(a)(vi)'!K47+'Sch XI(a)(vii)'!K47+'Sch XI(a)(viii)'!K47","v":0},{"$f":"'Sch XI(a)(i)'!L47+'Sch XI(a)(ii)'!L47+'Sch XI(a)(iii)'!L47+'Sch XI(a)(iv)'!L47+'Sch XI(a)(v)'!L47+'Sch XI(a)(vi)'!L47+'Sch XI(a)(vii)'!L47+'Sch XI(a)(viii)'!L47","v":0},{"$f":"'Sch XI(a)(i)'!M47+'Sch XI(a)(ii)'!M47+'Sch XI(a)(iii)'!M47+'Sch XI(a)(iv)'!M47+'Sch XI(a)(v)'!M47+'Sch XI(a)(vi)'!M47+'Sch XI(a)(vii)'!M47+'Sch XI(a)(viii)'!M47","v":0}]
["L26",{"$f":"B49-1","v":2014},{"$f":"'Sch XI(a)(i)'!C48+'Sch XI(a)(ii)'!C48+'Sch XI(a)(iii)'!C48+'Sch XI(a)(iv)'!C48+'Sch XI(a)(v)'!C48+'Sch XI(a)(vi)'!C48+'Sch XI(a)(vii)'!C48+'Sch XI(a)(viii)'!C48","v":0},{"$f":"'Sch XI(a)(i)'!D48+'Sch XI(a)(ii)'!D48+'Sch XI(a)(iii)'!D48+'Sch XI(a)(iv)'!D48+'Sch XI(a)(v)'!D48+'Sch XI(a)(vi)'!D48+'Sch XI(a)(vii)'!D48+'Sch XI(a)(viii)'!D48","v":0},{"$f":"'Sch XI(a)(i)'!E48+'Sch XI(a)(ii)'!E48+'Sch XI(a)(iii)'!E48+'Sch XI(a)(iv)'!E48+'Sch XI(a)(v)'!E48+'Sch XI(a)(vi)'!E48+'Sch XI(a)(vii)'!E48+'Sch XI(a)(viii)'!E48","v":0},{"$f":"'Sch XI(a)(i)'!F48+'Sch XI(a)(ii)'!F48+'Sch XI(a)(iii)'!F48+'Sch XI(a)(iv)'!F48+'Sch XI(a)(v)'!F48+'Sch XI(a)(vi)'!F48+'Sch XI(a)(vii)'!F48+'Sch XI(a)(viii)'!F48","v":0},{"$f":"'Sch XI(a)(i)'!G48+'Sch XI(a)(ii)'!G48+'Sch XI(a)(iii)'!G48+'Sch XI(a)(iv)'!G48+'Sch XI(a)(v)'!G48+'Sch XI(a)(vi)'!G48+'Sch XI(a)(vii)'!G48+'Sch XI(a)(viii)'!G48","v":0},{"$f":"'Sch XI(a)(i)'!H48+'Sch XI(a)(ii)'!H48+'Sch XI(a)(iii)'!H48+'Sch XI(a)(iv)'!H48+'Sch XI(a)(v)'!H48+'Sch XI(a)(vi)'!H48+'Sch XI(a)(vii)'!H48+'Sch XI(a)(viii)'!H48","v":0},{"$f":"'Sch XI(a)(i)'!I48+'Sch XI(a)(ii)'!I48+'Sch XI(a)(iii)'!I48+'Sch XI(a)(iv)'!I48+'Sch XI(a)(v)'!I48+'Sch XI(a)(vi)'!I48+'Sch XI(a)(vii)'!I48+'Sch XI(a)(viii)'!I48","v":0},{"$f":"'Sch XI(a)(i)'!J48+'Sch XI(a)(ii)'!J48+'Sch XI(a)(iii)'!J48+'Sch XI(a)(iv)'!J48+'Sch XI(a)(v)'!J48+'Sch XI(a)(vi)'!J48+'Sch XI(a)(vii)'!J48+'Sch XI(a)(viii)'!J48","v":0},{"$f":"'Sch XI(a)(i)'!K48+'Sch XI(a)(ii)'!K48+'Sch XI(a)(iii)'!K48+'Sch XI(a)(iv)'!K48+'Sch XI(a)(v)'!K48+'Sch XI(a)(vi)'!K48+'Sch XI(a)(vii)'!K48+'Sch XI(a)(viii)'!K48","v":0},{"$f":"'Sch XI(a)(i)'!L48+'Sch XI(a)(ii)'!L48+'Sch XI(a)(iii)'!L48+'Sch XI(a)(iv)'!L48+'Sch XI(a)(v)'!L48+'Sch XI(a)(vi)'!L48+'Sch XI(a)(vii)'!L48+'Sch XI(a)(viii)'!L48","v":0},{"$f":"'Sch XI(a)(i)'!M48+'Sch XI(a)(ii)'!M48+'Sch XI(a)(iii)'!M48+'Sch XI(a)(iv)'!M48+'Sch XI(a)(v)'!M48+'Sch XI(a)(vi)'!M48+'Sch XI(a)(vii)'!M48+'Sch XI(a)(viii)'!M48","v":0}]
["L27",2015,"XXX",{"$f":"'Sch XI(a)(i)'!D49+'Sch XI(a)(ii)'!D49+'Sch XI(a)(iii)'!D49+'Sch XI(a)(iv)'!D49+'Sch XI(a)(v)'!D49+'Sch XI(a)(vi)'!D49+'Sch XI(a)(vii)'!D49+'Sch XI(a)(viii)'!D49","v":0},{"$f":"'Sch XI(a)(i)'!E49+'Sch XI(a)(ii)'!E49+'Sch XI(a)(iii)'!E49+'Sch XI(a)(iv)'!E49+'Sch XI(a)(v)'!E49+'Sch XI(a)(vi)'!E49+'Sch XI(a)(vii)'!E49+'Sch XI(a)(viii)'!E49","v":0},{"$f":"'Sch XI(a)(i)'!F49+'Sch XI(a)(ii)'!F49+'Sch XI(a)(iii)'!F49+'Sch XI(a)(iv)'!F49+'Sch XI(a)(v)'!F49+'Sch XI(a)(vi)'!F49+'Sch XI(a)(vii)'!F49+'Sch XI(a)(viii)'!F49","v":0},{"$f":"'Sch XI(a)(i)'!G49+'Sch XI(a)(ii)'!G49+'Sch XI(a)(iii)'!G49+'Sch XI(a)(iv)'!G49+'Sch XI(a)(v)'!G49+'Sch XI(a)(vi)'!G49+'Sch XI(a)(vii)'!G49+'Sch XI(a)(viii)'!G49","v":0},{"$f":"'Sch XI(a)(i)'!H49+'Sch XI(a)(ii)'!H49+'Sch XI(a)(iii)'!H49+'Sch XI(a)(iv)'!H49+'Sch XI(a)(v)'!H49+'Sch XI(a)(vi)'!H49+'Sch XI(a)(vii)'!H49+'Sch XI(a)(viii)'!H49","v":0},{"$f":"'Sch XI(a)(i)'!I49+'Sch XI(a)(ii)'!I49+'Sch XI(a)(iii)'!I49+'Sch XI(a)(iv)'!I49+'Sch XI(a)(v)'!I49+'Sch XI(a)(vi)'!I49+'Sch XI(a)(vii)'!I49+'Sch XI(a)(viii)'!I49","v":0},{"$f":"'Sch XI(a)(i)'!J49+'Sch XI(a)(ii)'!J49+'Sch XI(a)(iii)'!J49+'Sch XI(a)(iv)'!J49+'Sch XI(a)(v)'!J49+'Sch XI(a)(vi)'!J49+'Sch XI(a)(vii)'!J49+'Sch XI(a)(viii)'!J49","v":0},{"$f":"'Sch XI(a)(i)'!K49+'Sch XI(a)(ii)'!K49+'Sch XI(a)(iii)'!K49+'Sch XI(a)(iv)'!K49+'Sch XI(a)(v)'!K49+'Sch XI(a)(vi)'!K49+'Sch XI(a)(vii)'!K49+'Sch XI(a)(viii)'!K49","v":0},{"$f":"'Sch XI(a)(i)'!L49+'Sch XI(a)(ii)'!L49+'Sch XI(a)(iii)'!L49+'Sch XI(a)(iv)'!L49+'Sch XI(a)(v)'!L49+'Sch XI(a)(vi)'!L49+'Sch XI(a)(vii)'!L49+'Sch XI(a)(viii)'!L49","v":0},{"$f":"'Sch XI(a)(i)'!M49+'Sch XI(a)(ii)'!M49+'Sch XI(a)(iii)'!M49+'Sch XI(a)(iv)'!M49+'Sch XI(a)(v)'!M49+'Sch XI(a)(vi)'!M49+'Sch XI(a)(vii)'!M49+'Sch XI(a)(viii)'!M49","v":0}]
["L28",2016,"XXX","XXX",{"$f":"'Sch XI(a)(i)'!E50+'Sch XI(a)(ii)'!E50+'Sch XI(a)(iii)'!E50+'Sch XI(a)(iv)'!E50+'Sch XI(a)(v)'!E50+'Sch XI(a)(vi)'!E50+'Sch XI(a)(vii)'!E50+'Sch XI(a)(viii)'!E50","v":0},{"$f":"'Sch XI(a)(i)'!F50+'Sch XI(a)(ii)'!F50+'Sch XI(a)(iii)'!F50+'Sch XI(a)(iv)'!F50+'Sch XI(a)(v)'!F50+'Sch XI(a)(vi)'!F50+'Sch XI(a)(vii)'!F50+'Sch XI(a)(viii)'!F50","v":0},{"$f":"'Sch XI(a)(i)'!G50+'Sch XI(a)(ii)'!G50+'Sch XI(a)(iii)'!G50+'Sch XI(a)(iv)'!G50+'Sch XI(a)(v)'!G50+'Sch XI(a)(vi)'!G50+'Sch XI(a)(vii)'!G50+'Sch XI(a)(viii)'!G50","v":0},{"$f":"'Sch XI(a)(i)'!H50+'Sch XI(a)(ii)'!H50+'Sch XI(a)(iii)'!H50+'Sch XI(a)(iv)'!H50+'Sch XI(a)(v)'!H50+'Sch XI(a)(vi)'!H50+'Sch XI(a)(vii)'!H50+'Sch XI(a)(viii)'!H50","v":0},{"$f":"'Sch XI(a)(i)'!I50+'Sch XI(a)(ii)'!I50+'Sch XI(a)(iii)'!I50+'Sch XI(a)(iv)'!I50+'Sch XI(a)(v)'!I50+'Sch XI(a)(vi)'!I50+'Sch XI(a)(vii)'!I50+'Sch XI(a)(viii)'!I50","v":0},{"$f":"'Sch XI(a)(i)'!J50+'Sch XI(a)(ii)'!J50+'Sch XI(a)(iii)'!J50+'Sch XI(a)(iv)'!J50+'Sch XI(a)(v)'!J50+'Sch XI(a)(vi)'!J50+'Sch XI(a)(vii)'!J50+'Sch XI(a)(viii)'!J50","v":0},{"$f":"'Sch XI(a)(i)'!K50+'Sch XI(a)(ii)'!K50+'Sch XI(a)(iii)'!K50+'Sch XI(a)(iv)'!K50+'Sch XI(a)(v)'!K50+'Sch XI(a)(vi)'!K50+'Sch XI(a)(vii)'!K50+'Sch XI(a)(viii)'!K50","v":0},{"$f":"'Sch XI(a)(i)'!L50+'Sch XI(a)(ii)'!L50+'Sch XI(a)(iii)'!L50+'Sch XI(a)(iv)'!L50+'Sch XI(a)(v)'!L50+'Sch XI(a)(vi)'!L50+'Sch XI(a)(vii)'!L50+'Sch XI(a)(viii)'!L50","v":0},{"$f":"'Sch XI(a)(i)'!M50+'Sch XI(a)(ii)'!M50+'Sch XI(a)(iii)'!M50+'Sch XI(a)(iv)'!M50+'Sch XI(a)(v)'!M50+'Sch XI(a)(vi)'!M50+'Sch XI(a)(vii)'!M50+'Sch XI(a)(viii)'!M50","v":0}]
["L29",2017,"XXX","XXX","XXX",{"$f":"'Sch XI(a)(i)'!F51+'Sch XI(a)(ii)'!F51+'Sch XI(a)(iii)'!F51+'Sch XI(a)(iv)'!F51+'Sch XI(a)(v)'!F51+'Sch XI(a)(vi)'!F51+'Sch XI(a)(vii)'!F51+'Sch XI(a)(viii)'!F51","v":0},{"$f":"'Sch XI(a)(i)'!G51+'Sch XI(a)(ii)'!G51+'Sch XI(a)(iii)'!G51+'Sch XI(a)(iv)'!G51+'Sch XI(a)(v)'!G51+'Sch XI(a)(vi)'!G51+'Sch XI(a)(vii)'!G51+'Sch XI(a)(viii)'!G51","v":0},{"$f":"'Sch XI(a)(i)'!H51+'Sch XI(a)(ii)'!H51+'Sch XI(a)(iii)'!H51+'Sch XI(a)(iv)'!H51+'Sch XI(a)(v)'!H51+'Sch XI(a)(vi)'!H51+'Sch XI(a)(vii)'!H51+'Sch XI(a)(viii)'!H51","v":0},{"$f":"'Sch XI(a)(i)'!I51+'Sch XI(a)(ii)'!I51+'Sch XI(a)(iii)'!I51+'Sch XI(a)(iv)'!I51+'Sch XI(a)(v)'!I51+'Sch XI(a)(vi)'!I51+'Sch XI(a)(vii)'!I51+'Sch XI(a)(viii)'!I51","v":0},{"$f":"'Sch XI(a)(i)'!J51+'Sch XI(a)(ii)'!J51+'Sch XI(a)(iii)'!J51+'Sch XI(a)(iv)'!J51+'Sch XI(a)(v)'!J51+'Sch XI(a)(vi)'!J51+'Sch XI(a)(vii)'!J51+'Sch XI(a)(viii)'!J51","v":0},{"$f":"'Sch XI(a)(i)'!K51+'Sch XI(a)(ii)'!K51+'Sch XI(a)(iii)'!K51+'Sch XI(a)(iv)'!K51+'Sch XI(a)(v)'!K51+'Sch XI(a)(vi)'!K51+'Sch XI(a)(vii)'!K51+'Sch XI(a)(viii)'!K51","v":0},{"$f":"'Sch XI(a)(i)'!L51+'Sch XI(a)(ii)'!L51+'Sch XI(a)(iii)'!L51+'Sch XI(a)(iv)'!L51+'Sch XI(a)(v)'!L51+'Sch XI(a)(vi)'!L51+'Sch XI(a)(vii)'!L51+'Sch XI(a)(viii)'!L51","v":0},{"$f":"'Sch XI(a)(i)'!M51+'Sch XI(a)(ii)'!M51+'Sch XI(a)(iii)'!M51+'Sch XI(a)(iv)'!M51+'Sch XI(a)(v)'!M51+'Sch XI(a)(vi)'!M51+'Sch XI(a)(vii)'!M51+'Sch XI(a)(viii)'!M51","v":0}]
["L30",2018,"XXX","XXX","XXX","XXX",{"$f":"'Sch XI(a)(i)'!G52+'Sch XI(a)(ii)'!G52+'Sch XI(a)(iii)'!G52+'Sch XI(a)(iv)'!G52+'Sch XI(a)(v)'!G52+'Sch XI(a)(vi)'!G52+'Sch XI(a)(vii)'!G52+'Sch XI(a)(viii)'!G52","v":0},{"$f":"'Sch XI(a)(i)'!H52+'Sch XI(a)(ii)'!H52+'Sch XI(a)(iii)'!H52+'Sch XI(a)(iv)'!H52+'Sch XI(a)(v)'!H52+'Sch XI(a)(vi)'!H52+'Sch XI(a)(vii)'!H52+'Sch XI(a)(viii)'!H52","v":0},{"$f":"'Sch XI(a)(i)'!I52+'Sch XI(a)(ii)'!I52+'Sch XI(a)(iii)'!I52+'Sch XI(a)(iv)'!I52+'Sch XI(a)(v)'!I52+'Sch XI(a)(vi)'!I52+'Sch XI(a)(vii)'!I52+'Sch XI(a)(viii)'!I52","v":0},{"$f":"'Sch XI(a)(i)'!J52+'Sch XI(a)(ii)'!J52+'Sch XI(a)(iii)'!J52+'Sch XI(a)(iv)'!J52+'Sch XI(a)(v)'!J52+'Sch XI(a)(vi)'!J52+'Sch XI(a)(vii)'!J52+'Sch XI(a)(viii)'!J52","v":0},{"$f":"'Sch XI(a)(i)'!K52+'Sch XI(a)(ii)'!K52+'Sch XI(a)(iii)'!K52+'Sch XI(a)(iv)'!K52+'Sch XI(a)(v)'!K52+'Sch XI(a)(vi)'!K52+'Sch XI(a)(vii)'!K52+'Sch XI(a)(viii)'!K52","v":0},{"$f":"'Sch XI(a)(i)'!L52+'Sch XI(a)(ii)'!L52+'Sch XI(a)(iii)'!L52+'Sch XI(a)(iv)'!L52+'Sch XI(a)(v)'!L52+'Sch XI(a)(vi)'!L52+'Sch XI(a)(vii)'!L52+'Sch XI(a)(viii)'!L52","v":0},{"$f":"'Sch XI(a)(i)'!M52+'Sch XI(a)(ii)'!M52+'Sch XI(a)(iii)'!M52+'Sch XI(a)(iv)'!M52+'Sch XI(a)(v)'!M52+'Sch XI(a)(vi)'!M52+'Sch XI(a)(vii)'!M52+'Sch XI(a)(viii)'!M52","v":0}]
["L31",2019,"XXX","XXX","XXX","XXX","XXX",{"$f":"'Sch XI(a)(i)'!H53+'Sch XI(a)(ii)'!H53+'Sch XI(a)(iii)'!H53+'Sch XI(a)(iv)'!H53+'Sch XI(a)(v)'!H53+'Sch XI(a)(vi)'!H53+'Sch XI(a)(vii)'!H53+'Sch XI(a)(viii)'!H53","v":0},{"$f":"'Sch XI(a)(i)'!I53+'Sch XI(a)(ii)'!I53+'Sch XI(a)(iii)'!I53+'Sch XI(a)(iv)'!I53+'Sch XI(a)(v)'!I53+'Sch XI(a)(vi)'!I53+'Sch XI(a)(vii)'!I53+'Sch XI(a)(viii)'!I53","v":0},{"$f":"'Sch XI(a)(i)'!J53+'Sch XI(a)(ii)'!J53+'Sch XI(a)(iii)'!J53+'Sch XI(a)(iv)'!J53+'Sch XI(a)(v)'!J53+'Sch XI(a)(vi)'!J53+'Sch XI(a)(vii)'!J53+'Sch XI(a)(viii)'!J53","v":0},{"$f":"'Sch XI(a)(i)'!K53+'Sch XI(a)(ii)'!K53+'Sch XI(a)(iii)'!K53+'Sch XI(a)(iv)'!K53+'Sch XI(a)(v)'!K53+'Sch XI(a)(vi)'!K53+'Sch XI(a)(vii)'!K53+'Sch XI(a)(viii)'!K53","v":0},{"$f":"'Sch XI(a)(i)'!L53+'Sch XI(a)(ii)'!L53+'Sch XI(a)(iii)'!L53+'Sch XI(a)(iv)'!L53+'Sch XI(a)(v)'!L53+'Sch XI(a)(vi)'!L53+'Sch XI(a)(vii)'!L53+'Sch XI(a)(viii)'!L53","v":0},{"$f":"'Sch XI(a)(i)'!M53+'Sch XI(a)(ii)'!M53+'Sch XI(a)(iii)'!M53+'Sch XI(a)(iv)'!M53+'Sch XI(a)(v)'!M53+'Sch XI(a)(vi)'!M53+'Sch XI(a)(vii)'!M53+'Sch XI(a)(viii)'!M53","v":0}]
["L32",2020,"XXX","XXX","XXX","XXX","XXX","XXX",{"$f":"'Sch XI(a)(i)'!I54+'Sch XI(a)(ii)'!I54+'Sch XI(a)(iii)'!I54+'Sch XI(a)(iv)'!I54+'Sch XI(a)(v)'!I54+'Sch XI(a)(vi)'!I54+'Sch XI(a)(vii)'!I54+'Sch XI(a)(viii)'!I54","v":0},{"$f":"'Sch XI(a)(i)'!J54+'Sch XI(a)(ii)'!J54+'Sch XI(a)(iii)'!J54+'Sch XI(a)(iv)'!J54+'Sch XI(a)(v)'!J54+'Sch XI(a)(vi)'!J54+'Sch XI(a)(vii)'!J54+'Sch XI(a)(viii)'!J54","v":0},{"$f":"'Sch XI(a)(i)'!K54+'Sch XI(a)(ii)'!K54+'Sch XI(a)(iii)'!K54+'Sch XI(a)(iv)'!K54+'Sch XI(a)(v)'!K54+'Sch XI(a)(vi)'!K54+'Sch XI(a)(vii)'!K54+'Sch XI(a)(viii)'!K54","v":0},{"$f":"'Sch XI(a)(i)'!L54+'Sch XI(a)(ii)'!L54+'Sch XI(a)(iii)'!L54+'Sch XI(a)(iv)'!L54+'Sch XI(a)(v)'!L54+'Sch XI(a)(vi)'!L54+'Sch XI(a)(vii)'!L54+'Sch XI(a)(viii)'!L54","v":0},{"$f":"'Sch XI(a)(i)'!M54+'Sch XI(a)(ii)'!M54+'Sch XI(a)(iii)'!M54+'Sch XI(a)(iv)'!M54+'Sch XI(a)(v)'!M54+'Sch XI(a)(vi)'!M54+'Sch XI(a)(vii)'!M54+'Sch XI(a)(viii)'!M54","v":0}]
["L33",2021,"XXX","XXX","XXX","XXX","XXX","XXX","XXX",{"$f":"'Sch XI(a)(i)'!J55+'Sch XI(a)(ii)'!J55+'Sch XI(a)(iii)'!J55+'Sch XI(a)(iv)'!J55+'Sch XI(a)(v)'!J55+'Sch XI(a)(vi)'!J55+'Sch XI(a)(vii)'!J55+'Sch XI(a)(viii)'!J55","v":0},{"$f":"'Sch XI(a)(i)'!K55+'Sch XI(a)(ii)'!K55+'Sch XI(a)(iii)'!K55+'Sch XI(a)(iv)'!K55+'Sch XI(a)(v)'!K55+'Sch XI(a)(vi)'!K55+'Sch XI(a)(vii)'!K55+'Sch XI(a)(viii)'!K55","v":0},{"$f":"'Sch XI(a)(i)'!L55+'Sch XI(a)(ii)'!L55+'Sch XI(a)(iii)'!L55+'Sch XI(a)(iv)'!L55+'Sch XI(a)(v)'!L55+'Sch XI(a)(vi)'!L55+'Sch XI(a)(vii)'!L55+'Sch XI(a)(viii)'!L55","v":0},{"$f":"'Sch XI(a)(i)'!M55+'Sch XI(a)(ii)'!M55+'Sch XI(a)(iii)'!M55+'Sch XI(a)(iv)'!M55+'Sch XI(a)(v)'!M55+'Sch XI(a)(vi)'!M55+'Sch XI(a)(vii)'!M55+'Sch XI(a)(viii)'!M55","v":0}]
["L34",2022,"XXX","XXX","XXX","XXX","XXX","XXX","XXX","XXX",{"$f":"'Sch XI(a)(i)'!K56+'Sch XI(a)(ii)'!K56+'Sch XI(a)(iii)'!K56+'Sch XI(a)(iv)'!K56+'Sch XI(a)(v)'!K56+'Sch XI(a)(vi)'!K56+'Sch XI(a)(vii)'!K56+'Sch XI(a)(viii)'!K56","v":0},{"$f":"'Sch XI(a)(i)'!L56+'Sch XI(a)(ii)'!L56+'Sch XI(a)(iii)'!L56+'Sch XI(a)(iv)'!L56+'Sch XI(a)(v)'!L56+'Sch XI(a)(vi)'!L56+'Sch XI(a)(vii)'!L56+'Sch XI(a)(viii)'!L56","v":0},{"$f":"'Sch XI(a)(i)'!M56+'Sch XI(a)(ii)'!M56+'Sch XI(a)(iii)'!M56+'Sch XI(a)(iv)'!M56+'Sch XI(a)(v)'!M56+'Sch XI(a)(vi)'!M56+'Sch XI(a)(vii)'!M56+'Sch XI(a)(viii)'!M56","v":0}]
["L35",{"$f":"L46","v":2023},"XXX","XXX","XXX","XXX","XXX","XXX","XXX","XXX","XXX",{"$f":"'Sch XI(a)(i)'!L57+'Sch XI(a)(ii)'!L57+'Sch XI(a)(iii)'!L57+'Sch XI(a)(iv)'!L57+'Sch XI(a)(v)'!L57+'Sch XI(a)(vi)'!L57+'Sch XI(a)(vii)'!L57+'Sch XI(a)(viii)'!L57","v":0},{"$f":"'Sch XI(a)(i)'!M57+'Sch XI(a)(ii)'!M57+'Sch XI(a)(iii)'!M57+'Sch XI(a)(iv)'!M57+'Sch XI(a)(v)'!M57+'Sch XI(a)(vi)'!M57+'Sch XI(a)(vii)'!M57+'Sch XI(a)(viii)'!M57","v":0}]
["L36","Totals",null,null,null,null,null,null,null,null,null,null,{"$f":"SUM(M47:M57)","v":0}]
[]
[null,null,36,37,38,39,"Unallocated Loss",null,null,42,43,44,45]
[null,"Years in Which",null,null,null,null,"Adjustment Expenses",null,null,"Commission and Brokerage Expense (Form 2A, Line 9)","General and Administrative Expense (Form 2A, Line 10)"]
[null,"Premiums",null,null,null,null,40,41,null,null,null,"Personnel Costs (Form 2A, Line 11)"]
[null,"Were"]
[null,"Earned and","Gross","Gross","Net","Net",null,null,null,null,null,null,"Other"]
[null,"Losses Were","Premiums","Premiums","Premiums","Premiums",null,null,"Calendar",null,null,null,"Expense"]
[null,"Incurred","Written","Earned","Written","Earned","Paid","Incurred","Year",null,null,null,"(Form 2A, Line 12)"]
["L37","Prior","XXX",{"$f":"C67","v":"XXX"},"XXX",{"$f":"E67","v":"XXX"},{"$f":"'Sch XI(a)(i)'!G67+'Sch XI(a)(ii)'!G67+'Sch XI(a)(iii)'!G67+'Sch XI(a)(iv)'!G67+'Sch XI(a)(v)'!G67+'Sch XI(a)(vi)'!G67+'Sch XI(a)(vii)'!G67+'Sch XI(a)(viii)'!G67","v":0},{"$f":"'Sch XI(a)(i)'!H67+'Sch XI(a)(ii)'!H67+'Sch XI(a)(iii)'!H67+'Sch XI(a)(iv)'!H67+'Sch XI(a)(v)'!H67+'Sch XI(a)(vi)'!H67+'Sch XI(a)(vii)'!H67+'Sch XI(a)(viii)'!H67","v":0},"Prior",{"$f":"'Sch XI(a)(i)'!J67+'Sch XI(a)(ii)'!J67+'Sch XI(a)(iii)'!J67+'Sch XI(a)(iv)'!J67+'Sch XI(a)(v)'!J67+'Sch XI(a)(vi)'!J67+'Sch XI(a)(vii)'!J67+'Sch XI(a)(viii)'!J67","v":0},{"$f":"'Sch XI(a)(i)'!K67+'Sch XI(a)(ii)'!K67+'Sch XI(a)(iii)'!K67+'Sch XI(a)(iv)'!K67+'Sch XI(a)(v)'!K67+'Sch XI(a)(vi)'!K67+'Sch XI(a)(vii)'!K67+'Sch XI(a)(viii)'!K67","v":0},{"$f":"'Sch XI(a)(i)'!L67+'Sch XI(a)(ii)'!L67+'Sch XI(a)(iii)'!L67+'Sch XI(a)(iv)'!L67+'Sch XI(a)(v)'!L67+'Sch XI(a)(vi)'!L67+'Sch XI(a)(vii)'!L67+'Sch XI(a)(viii)'!L67","v":0},{"$f":"'Sch XI(a)(i)'!M67+'Sch XI(a)(ii)'!M67+'Sch XI(a)(iii)'!M67+'Sch XI(a)(iv)'!M67+'Sch XI(a)(v)'!M67+'Sch XI(a)(vi)'!M67+'Sch XI(a)(vii)'!M67+'Sch XI(a)(viii)'!M67","v":0}]
["L38",{"$f":"B69-1","v":2014},{"$f":"'Sch XI(a)(i)'!C68+'Sch XI(a)(ii)'!C68+'Sch XI(a)(iii)'!C68+'Sch XI(a)(iv)'!C68+'Sch XI(a)(v)'!C68+'Sch XI(a)(vi)'!C68+'Sch XI(a)(vii)'!C68+'Sch XI(a)(viii)'!C68","v":0},{"$f":"'Sch XI(a)(i)'!D68+'Sch XI(a)(ii)'!D68+'Sch XI(a)(iii)'!D68+'Sch XI(a)(iv)'!D68+'Sch XI(a)(v)'!D68+'Sch XI(a)(vi)'!D68+'Sch XI(a)(vii)'!D68+'Sch XI(a)(viii)'!D68","v":0},{"$f":"'Sch XI(a)(i)'!E68+'Sch XI(a)(ii)'!E68+'Sch XI(a)(iii)'!E68+'Sch XI(a)(iv)'!E68+'Sch XI(a)(v)'!E68+'Sch XI(a)(vi)'!E68+'Sch XI(a)(vii)'!E68+'Sch XI(a)(viii)'!E68","v":0},{"$f":"'Sch XI(a)(i)'!F68+'Sch XI(a)(ii)'!F68+'Sch XI(a)(iii)'!F68+'Sch XI(a)(iv)'!F68+'Sch XI(a)(v)'!F68+'Sch XI(a)(vi)'!F68+'Sch XI(a)(vii)'!F68+'Sch XI(a)(viii)'!F68","v":0},{"$f":"'Sch XI(a)(i)'!G68+'Sch XI(a)(ii)'!G68+'Sch XI(a)(iii)'!G68+'Sch XI(a)(iv)'!G68+'Sch XI(a)(v)'!G68+'Sch XI(a)(vi)'!G68+'Sch XI(a)(vii)'!G68+'Sch XI(a)(viii)'!G68","v":0},{"$f":"'Sch XI(a)(i)'!H68+'Sch XI(a)(ii)'!H68+'Sch XI(a)(iii)'!H68+'Sch XI(a)(iv)'!H68+'Sch XI(a)(v)'!H68+'Sch XI(a)(vi)'!H68+'Sch XI(a)(vii)'!H68+'Sch XI(a)(viii)'!H68","v":0},{"$f":"B68","v":2014},{"$f":"'Sch XI(a)(i)'!J68+'Sch XI(a)(ii)'!J68+'Sch XI(a)(iii)'!J68+'Sch XI(a)(iv)'!J68+'Sch XI(a)(v)'!J68+'Sch XI(a)(vi)'!J68+'Sch XI(a)(vii)'!J68+'Sch XI(a)(viii)'!J68","v":0},{"$f":"'Sch XI(a)(i)'!K68+'Sch XI(a)(ii)'!K68+'Sch XI(a)(iii)'!K68+'Sch XI(a)(iv)'!K68+'Sch XI(a)(v)'!K68+'Sch XI(a)(vi)'!K68+'Sch XI(a)(vii)'!K68+'Sch XI(a)(viii)'!K68","v":0},{"$f":"'Sch XI(a)(i)'!L68+'Sch XI(a)(ii)'!L68+'Sch XI(a)(iii)'!L68+'Sch XI(a)(iv)'!L68+'Sch XI(a)(v)'!L68+'Sch XI(a)(vi)'!L68+'Sch XI(a)(vii)'!L68+'Sch XI(a)(viii)'!L68","v":0},{"$f":"'Sch XI(a)(i)'!M68+'Sch XI(a)(ii)'!M68+'Sch XI(a)(iii)'!M68+'Sch XI(a)(iv)'!M68+'Sch XI(a)(v)'!M68+'Sch XI(a)(vi)'!M68+'Sch XI(a)(vii)'!M68+'Sch XI(a)(viii)'!M68","v":0}]
["L39",2015,{"$f":"'Sch XI(a)(i)'!C69+'Sch XI(a)(ii)'!C69+'Sch XI(a)(iii)'!C69+'Sch XI(a)(iv)'!C69+'Sch XI(a)(v)'!C69+'Sch XI(a)(vi)'!C69+'Sch XI(a)(vii)'!C69+'Sch XI(a)(viii)'!C69","v":0},{"$f":"'Sch XI(a)(i)'!D69+'Sch XI(a)(ii)'!D69+'Sch XI(a)(iii)'!D69+'Sch XI(a)(iv)'!D69+'Sch XI(a)(v)'!D69+'Sch XI(a)(vi)'!D69+'Sch XI(a)(vii)'!D69+'Sch XI(a)(viii)'!D69","v":0},{"$f":"'Sch XI(a)(i)'!E69+'Sch XI(a)(ii)'!E69+'Sch XI(a)(iii)'!E69+'Sch XI(a)(iv)'!E69+'Sch XI(a)(v)'!E69+'Sch XI(a)(vi)'!E69+'Sch XI(a)(vii)'!E69+'Sch XI(a)(viii)'!E69","v":0},{"$f":"'Sch XI(a)(i)'!F69+'Sch XI(a)(ii)'!F69+'Sch XI(a)(iii)'!F69+'Sch XI(a)(iv)'!F69+'Sch XI(a)(v)'!F69+'Sch XI(a)(vi)'!F69+'Sch XI(a)(vii)'!F69+'Sch XI(a)(viii)'!F69","v":0},{"$f":"'Sch XI(a)(i)'!G69+'Sch XI(a)(ii)'!G69+'Sch XI(a)(iii)'!G69+'Sch XI(a)(iv)'!G69+'Sch XI(a)(v)'!G69+'Sch XI(a)(vi)'!G69+'Sch XI(a)(vii)'!G69+'Sch XI(a)(viii)'!G69","v":0},{"$f":"'Sch XI(a)(i)'!H69+'Sch XI(a)(ii)'!H69+'Sch XI(a)(iii)'!H69+'Sch XI(a)(iv)'!H69+'Sch XI(a)(v)'!H69+'Sch XI(a)(vi)'!H69+'Sch XI(a)(vii)'!H69+'Sch XI(a)(viii)'!H69","v":0},2015,{"$f":"'Sch XI(a)(i)'!J69+'Sch XI(a)(ii)'!J69+'Sch XI(a)(iii)'!J69+'Sch XI(a)(iv)'!J69+'Sch XI(a)(v)'!J69+'Sch XI(a)(vi)'!J69+'Sch XI(a)(vii)'!J69+'Sch XI(a)(viii)'!J69","v":0},{"$f":"'Sch XI(a)(i)'!K69+'Sch XI(a)(ii)'!K69+'Sch XI(a)(iii)'!K69+'Sch XI(a)(iv)'!K69+'Sch XI(a)(v)'!K69+'Sch XI(a)(vi)'!K69+'Sch XI(a)(vii)'!K69+'Sch XI(a)(viii)'!K69","v":0},{"$f":"'Sch XI(a)(i)'!L69+'Sch XI(a)(ii)'!L69+'Sch XI(a)(iii)'!L69+'Sch XI(a)(iv)'!L69+'Sch XI(a)(v)'!L69+'Sch XI(a)(vi)'!L69+'Sch XI(a)(vii)'!L69+'Sch XI(a)(viii)'!L69","v":0},{"$f":"'Sch XI(a)(i)'!M69+'Sch XI(a)(ii)'!M69+'Sch XI(a)(iii)'!M69+'Sch XI(a)(iv)'!M69+'Sch XI(a)(v)'!M69+'Sch XI(a)(vi)'!M69+'Sch XI(a)(vii)'!M69+'Sch XI(a)(viii)'!M69","v":0}]
["L40",2016,{"$f":"'Sch XI(a)(i)'!C70+'Sch XI(a)(ii)'!C70+'Sch XI(a)(iii)'!C70+'Sch XI(a)(iv)'!C70+'Sch XI(a)(v)'!C70+'Sch XI(a)(vi)'!C70+'Sch XI(a)(vii)'!C70+'Sch XI(a)(viii)'!C70","v":0},{"$f":"'Sch XI(a)(i)'!D70+'Sch XI(a)(ii)'!D70+'Sch XI(a)(iii)'!D70+'Sch XI(a)(iv)'!D70+'Sch XI(a)(v)'!D70+'Sch XI(a)(vi)'!D70+'Sch XI(a)(vii)'!D70+'Sch XI(a)(viii)'!D70","v":0},{"$f":"'Sch XI(a)(i)'!E70+'Sch XI(a)(ii)'!E70+'Sch XI(a)(iii)'!E70+'Sch XI(a)(iv)'!E70+'Sch XI(a)(v)'!E70+'Sch XI(a)(vi)'!E70+'Sch XI(a)(vii)'!E70+'Sch XI(a)(viii)'!E70","v":0},{"$f":"'Sch XI(a)(i)'!F70+'Sch XI(a)(ii)'!F70+'Sch XI(a)(iii)'!F70+'Sch XI(a)(iv)'!F70+'Sch XI(a)(v)'!F70+'Sch XI(a)(vi)'!F70+'Sch XI(a)(vii)'!F70+'Sch XI(a)(viii)'!F70","v":0},{"$f":"'Sch XI(a)(i)'!G70+'Sch XI(a)(ii)'!G70+'Sch XI(a)(iii)'!G70+'Sch XI(a)(iv)'!G70+'Sch XI(a)(v)'!G70+'Sch XI(a)(vi)'!G70+'Sch XI(a)(vii)'!G70+'Sch XI(a)(viii)'!G70","v":0},{"$f":"'Sch XI(a)(i)'!H70+'Sch XI(a)(ii)'!H70+'Sch XI(a)(iii)'!H70+'Sch XI(a)(iv)'!H70+'Sch XI(a)(v)'!H70+'Sch XI(a)(vi)'!H70+'Sch XI(a)(vii)'!H70+'Sch XI(a)(viii)'!H70","v":0},2016,{"$f":"'Sch XI(a)(i)'!J70+'Sch XI(a)(ii)'!J70+'Sch XI(a)(iii)'!J70+'Sch XI(a)(iv)'!J70+'Sch XI(a)(v)'!J70+'Sch XI(a)(vi)'!J70+'Sch XI(a)(vii)'!J70+'Sch XI(a)(viii)'!J70","v":0},{"$f":"'Sch XI(a)(i)'!K70+'Sch XI(a)(ii)'!K70+'Sch XI(a)(iii)'!K70+'Sch XI(a)(iv)'!K70+'Sch XI(a)(v)'!K70+'Sch XI(a)(vi)'!K70+'Sch XI(a)(vii)'!K70+'Sch XI(a)(viii)'!K70","v":0},{"$f":"'Sch XI(a)(i)'!L70+'Sch XI(a)(ii)'!L70+'Sch XI(a)(iii)'!L70+'Sch XI(a)(iv)'!L70+'Sch XI(a)(v)'!L70+'Sch XI(a)(vi)'!L70+'Sch XI(a)(vii)'!L70+'Sch XI(a)(viii)'!L70","v":0},{"$f":"'Sch XI(a)(i)'!M70+'Sch XI(a)(ii)'!M70+'Sch XI(a)(iii)'!M70+'Sch XI(a)(iv)'!M70+'Sch XI(a)(v)'!M70+'Sch XI(a)(vi)'!M70+'Sch XI(a)(vii)'!M70+'Sch XI(a)(viii)'!M70","v":0}]
["L41",2017,{"$f":"'Sch XI(a)(i)'!C71+'Sch XI(a)(ii)'!C71+'Sch XI(a)(iii)'!C71+'Sch XI(a)(iv)'!C71+'Sch XI(a)(v)'!C71+'Sch XI(a)(vi)'!C71+'Sch XI(a)(vii)'!C71+'Sch XI(a)(viii)'!C71","v":0},{"$f":"'Sch XI(a)(i)'!D71+'Sch XI(a)(ii)'!D71+'Sch XI(a)(iii)'!D71+'Sch XI(a)(iv)'!D71+'Sch XI(a)(v)'!D71+'Sch XI(a)(vi)'!D71+'Sch XI(a)(vii)'!D71+'Sch XI(a)(viii)'!D71","v":0},{"$f":"'Sch XI(a)(i)'!E71+'Sch XI(a)(ii)'!E71+'Sch XI(a)(iii)'!E71+'Sch XI(a)(iv)'!E71+'Sch XI(a)(v)'!E71+'Sch XI(a)(vi)'!E71+'Sch XI(a)(vii)'!E71+'Sch XI(a)(viii)'!E71","v":0},{"$f":"'Sch XI(a)(i)'!F71+'Sch XI(a)(ii)'!F71+'Sch XI(a)(iii)'!F71+'Sch XI(a)(iv)'!F71+'Sch XI(a)(v)'!F71+'Sch XI(a)(vi)'!F71+'Sch XI(a)(vii)'!F71+'Sch XI(a)(viii)'!F71","v":0},{"$f":"'Sch XI(a)(i)'!G71+'Sch XI(a)(ii)'!G71+'Sch XI(a)(iii)'!G71+'Sch XI(a)(iv)'!G71+'Sch XI(a)(v)'!G71+'Sch XI(a)(vi)'!G71+'Sch XI(a)(vii)'!G71+'Sch XI(a)(viii)'!G71","v":0},{"$f":"'Sch XI(a)(i)'!H71+'Sch XI(a)(ii)'!H71+'Sch XI(a)(iii)'!H71+'Sch XI(a)(iv)'!H71+'Sch XI(a)(v)'!H71+'Sch XI(a)(vi)'!H71+'Sch XI(a)(vii)'!H71+'Sch XI(a)(viii)'!H71","v":0},2017,{"$f":"'Sch XI(a)(i)'!J71+'Sch XI(a)(ii)'!J71+'Sch XI(a)(iii)'!J71+'Sch XI(a)(iv)'!J71+'Sch XI(a)(v)'!J71+'Sch XI(a)(vi)'!J71+'Sch XI(a)(vii)'!J71+'Sch XI(a)(viii)'!J71","v":0},{"$f":"'Sch XI(a)(i)'!K71+'Sch XI(a)(ii)'!K71+'Sch XI(a)(iii)'!K71+'Sch XI(a)(iv)'!K71+'Sch XI(a)(v)'!K71+'Sch XI(a)(vi)'!K71+'Sch XI(a)(vii)'!K71+'Sch XI(a)(viii)'!K71","v":0},{"$f":"'Sch XI(a)(i)'!L71+'Sch XI(a)(ii)'!L71+'Sch XI(a)(iii)'!L71+'Sch XI(a)(iv)'!L71+'Sch XI(a)(v)'!L71+'Sch XI(a)(vi)'!L71+'Sch XI(a)(vii)'!L71+'Sch XI(a)(viii)'!L71","v":0},{"$f":"'Sch XI(a)(i)'!M71+'Sch XI(a)(ii)'!M71+'Sch XI(a)(iii)'!M71+'Sch XI(a)(iv)'!M71+'Sch XI(a)(v)'!M71+'Sch XI(a)(vi)'!M71+'Sch XI(a)(vii)'!M71+'Sch XI(a)(viii)'!M71","v":0}]
["L42",2018,{"$f":"'Sch XI(a)(i)'!C72+'Sch XI(a)(ii)'!C72+'Sch XI(a)(iii)'!C72+'Sch XI(a)(iv)'!C72+'Sch XI(a)(v)'!C72+'Sch XI(a)(vi)'!C72+'Sch XI(a)(vii)'!C72+'Sch XI(a)(viii)'!C72","v":0},{"$f":"'Sch XI(a)(i)'!D72+'Sch XI(a)(ii)'!D72+'Sch XI(a)(iii)'!D72+'Sch XI(a)(iv)'!D72+'Sch XI(a)(v)'!D72+'Sch XI(a)(vi)'!D72+'Sch XI(a)(vii)'!D72+'Sch XI(a)(viii)'!D72","v":0},{"$f":"'Sch XI(a)(i)'!E72+'Sch XI(a)(ii)'!E72+'Sch XI(a)(iii)'!E72+'Sch XI(a)(iv)'!E72+'Sch XI(a)(v)'!E72+'Sch XI(a)(vi)'!E72+'Sch XI(a)(vii)'!E72+'Sch XI(a)(viii)'!E72","v":0},{"$f":"'Sch XI(a)(i)'!F72+'Sch XI(a)(ii)'!F72+'Sch XI(a)(iii)'!F72+'Sch XI(a)(iv)'!F72+'Sch XI(a)(v)'!F72+'Sch XI(a)(vi)'!F72+'Sch XI(a)(vii)'!F72+'Sch XI(a)(viii)'!F72","v":0},{"$f":"'Sch XI(a)(i)'!G72+'Sch XI(a)(ii)'!G72+'Sch XI(a)(iii)'!G72+'Sch XI(a)(iv)'!G72+'Sch XI(a)(v)'!G72+'Sch XI(a)(vi)'!G72+'Sch XI(a)(vii)'!G72+'Sch XI(a)(viii)'!G72","v":0},{"$f":"'Sch XI(a)(i)'!H72+'Sch XI(a)(ii)'!H72+'Sch XI(a)(iii)'!H72+'Sch XI(a)(iv)'!H72+'Sch XI(a)(v)'!H72+'Sch XI(a)(vi)'!H72+'Sch XI(a)(vii)'!H72+'Sch XI(a)(viii)'!H72","v":0},2018,{"$f":"'Sch XI(a)(i)'!J72+'Sch XI(a)(ii)'!J72+'Sch XI(a)(iii)'!J72+'Sch XI(a)(iv)'!J72+'Sch XI(a)(v)'!J72+'Sch XI(a)(vi)'!J72+'Sch XI(a)(vii)'!J72+'Sch XI(a)(viii)'!J72","v":0},{"$f":"'Sch XI(a)(i)'!K72+'Sch XI(a)(ii)'!K72+'Sch XI(a)(iii)'!K72+'Sch XI(a)(iv)'!K72+'Sch XI(a)(v)'!K72+'Sch XI(a)(vi)'!K72+'Sch XI(a)(vii)'!K72+'Sch XI(a)(viii)'!K72","v":0},{"$f":"'Sch XI(a)(i)'!L72+'Sch XI(a)(ii)'!L72+'Sch XI(a)(iii)'!L72+'Sch XI(a)(iv)'!L72+'Sch XI(a)(v)'!L72+'Sch XI(a)(vi)'!L72+'Sch XI(a)(vii)'!L72+'Sch XI(a)(viii)'!L72","v":0},{"$f":"'Sch XI(a)(i)'!M72+'Sch XI(a)(ii)'!M72+'Sch XI(a)(iii)'!M72+'Sch XI(a)(iv)'!M72+'Sch XI(a)(v)'!M72+'Sch XI(a)(vi)'!M72+'Sch XI(a)(vii)'!M72+'Sch XI(a)(viii)'!M72","v":0}]
["L43",2019,{"$f":"'Sch XI(a)(i)'!C73+'Sch XI(a)(ii)'!C73+'Sch XI(a)(iii)'!C73+'Sch XI(a)(iv)'!C73+'Sch XI(a)(v)'!C73+'Sch XI(a)(vi)'!C73+'Sch XI(a)(vii)'!C73+'Sch XI(a)(viii)'!C73","v":0},{"$f":"'Sch XI(a)(i)'!D73+'Sch XI(a)(ii)'!D73+'Sch XI(a)(iii)'!D73+'Sch XI(a)(iv)'!D73+'Sch XI(a)(v)'!D73+'Sch XI(a)(vi)'!D73+'Sch XI(a)(vii)'!D73+'Sch XI(a)(viii)'!D73","v":0},{"$f":"'Sch XI(a)(i)'!E73+'Sch XI(a)(ii)'!E73+'Sch XI(a)(iii)'!E73+'Sch XI(a)(iv)'!E73+'Sch XI(a)(v)'!E73+'Sch XI(a)(vi)'!E73+'Sch XI(a)(vii)'!E73+'Sch XI(a)(viii)'!E73","v":0},{"$f":"'Sch XI(a)(i)'!F73+'Sch XI(a)(ii)'!F73+'Sch XI(a)(iii)'!F73+'Sch XI(a)(iv)'!F73+'Sch XI(a)(v)'!F73+'Sch XI(a)(vi)'!F73+'Sch XI(a)(vii)'!F73+'Sch XI(a)(viii)'!F73","v":0},{"$f":"'Sch XI(a)(i)'!G73+'Sch XI(a)(ii)'!G73+'Sch XI(a)(iii)'!G73+'Sch XI(a)(iv)'!G73+'Sch XI(a)(v)'!G73+'Sch XI(a)(vi)'!G73+'Sch XI(a)(vii)'!G73+'Sch XI(a)(viii)'!G73","v":0},{"$f":"'Sch XI(a)(i)'!H73+'Sch XI(a)(ii)'!H73+'Sch XI(a)(iii)'!H73+'Sch XI(a)(iv)'!H73+'Sch XI(a)(v)'!H73+'Sch XI(a)(vi)'!H73+'Sch XI(a)(vii)'!H73+'Sch XI(a)(viii)'!H73","v":0},2019,{"$f":"'Sch XI(a)(i)'!J73+'Sch XI(a)(ii)'!J73+'Sch XI(a)(iii)'!J73+'Sch XI(a)(iv)'!J73+'Sch XI(a)(v)'!J73+'Sch XI(a)(vi)'!J73+'Sch XI(a)(vii)'!J73+'Sch XI(a)(viii)'!J73","v":0},{"$f":"'Sch XI(a)(i)'!K73+'Sch XI(a)(ii)'!K73+'Sch XI(a)(iii)'!K73+'Sch XI(a)(iv)'!K73+'Sch XI(a)(v)'!K73+'Sch XI(a)(vi)'!K73+'Sch XI(a)(vii)'!K73+'Sch XI(a)(viii)'!K73","v":0},{"$f":"'Sch XI(a)(i)'!L73+'Sch XI(a)(ii)'!L73+'Sch XI(a)(iii)'!L73+'Sch XI(a)(iv)'!L73+'Sch XI(a)(v)'!L73+'Sch XI(a)(vi)'!L73+'Sch XI(a)(vii)'!L73+'Sch XI(a)(viii)'!L73","v":0},{"$f":"'Sch XI(a)(i)'!M73+'Sch XI(a)(ii)'!M73+'Sch XI(a)(iii)'!M73+'Sch XI(a)(iv)'!M73+'Sch XI(a)(v)'!M73+'Sch XI(a)(vi)'!M73+'Sch XI(a)(vii)'!M73+'Sch XI(a)(viii)'!M73","v":0}]
["L44",2020,{"$f":"'Sch XI(a)(i)'!C74+'Sch XI(a)(ii)'!C74+'Sch XI(a)(iii)'!C74+'Sch XI(a)(iv)'!C74+'Sch XI(a)(v)'!C74+'Sch XI(a)(vi)'!C74+'Sch XI(a)(vii)'!C74+'Sch XI(a)(viii)'!C74","v":0},{"$f":"'Sch XI(a)(i)'!D74+'Sch XI(a)(ii)'!D74+'Sch XI(a)(iii)'!D74+'Sch XI(a)(iv)'!D74+'Sch XI(a)(v)'!D74+'Sch XI(a)(vi)'!D74+'Sch XI(a)(vii)'!D74+'Sch XI(a)(viii)'!D74","v":0},{"$f":"'Sch XI(a)(i)'!E74+'Sch XI(a)(ii)'!E74+'Sch XI(a)(iii)'!E74+'Sch XI(a)(iv)'!E74+'Sch XI(a)(v)'!E74+'Sch XI(a)(vi)'!E74+'Sch XI(a)(vii)'!E74+'Sch XI(a)(viii)'!E74","v":0},{"$f":"'Sch XI(a)(i)'!F74+'Sch XI(a)(ii)'!F74+'Sch XI(a)(iii)'!F74+'Sch XI(a)(iv)'!F74+'Sch XI(a)(v)'!F74+'Sch XI(a)(vi)'!F74+'Sch XI(a)(vii)'!F74+'Sch XI(a)(viii)'!F74","v":0},{"$f":"'Sch XI(a)(i)'!G74+'Sch XI(a)(ii)'!G74+'Sch XI(a)(iii)'!G74+'Sch XI(a)(iv)'!G74+'Sch XI(a)(v)'!G74+'Sch XI(a)(vi)'!G74+'Sch XI(a)(vii)'!G74+'Sch XI(a)(viii)'!G74","v":0},{"$f":"'Sch XI(a)(i)'!H74+'Sch XI(a)(ii)'!H74+'Sch XI(a)(iii)'!H74+'Sch XI(a)(iv)'!H74+'Sch XI(a)(v)'!H74+'Sch XI(a)(vi)'!H74+'Sch XI(a)(vii)'!H74+'Sch XI(a)(viii)'!H74","v":0},2020,{"$f":"'Sch XI(a)(i)'!J74+'Sch XI(a)(ii)'!J74+'Sch XI(a)(iii)'!J74+'Sch XI(a)(iv)'!J74+'Sch XI(a)(v)'!J74+'Sch XI(a)(vi)'!J74+'Sch XI(a)(vii)'!J74+'Sch XI(a)(viii)'!J74","v":0},{"$f":"'Sch XI(a)(i)'!K74+'Sch XI(a)(ii)'!K74+'Sch XI(a)(iii)'!K74+'Sch XI(a)(iv)'!K74+'Sch XI(a)(v)'!K74+'Sch XI(a)(vi)'!K74+'Sch XI(a)(vii)'!K74+'Sch XI(a)(viii)'!K74","v":0},{"$f":"'Sch XI(a)(i)'!L74+'Sch XI(a)(ii)'!L74+'Sch XI(a)(iii)'!L74+'Sch XI(a)(iv)'!L74+'Sch XI(a)(v)'!L74+'Sch XI(a)(vi)'!L74+'Sch XI(a)(vii)'!L74+'Sch XI(a)(viii)'!L74","v":0},{"$f":"'Sch XI(a)(i)'!M74+'Sch XI(a)(ii)'!M74+'Sch XI(a)(iii)'!M74+'Sch XI(a)(iv)'!M74+'Sch XI(a)(v)'!M74+'Sch XI(a)(vi)'!M74+'Sch XI(a)(vii)'!M74+'Sch XI(a)(viii)'!M74","v":0}]
["L45",2021,{"$f":"'Sch XI(a)(i)'!C75+'Sch XI(a)(ii)'!C75+'Sch XI(a)(iii)'!C75+'Sch XI(a)(iv)'!C75+'Sch XI(a)(v)'!C75+'Sch XI(a)(vi)'!C75+'Sch XI(a)(vii)'!C75+'Sch XI(a)(viii)'!C75","v":0},{"$f":"'Sch XI(a)(i)'!D75+'Sch XI(a)(ii)'!D75+'Sch XI(a)(iii)'!D75+'Sch XI(a)(iv)'!D75+'Sch XI(a)(v)'!D75+'Sch XI(a)(vi)'!D75+'Sch XI(a)(vii)'!D75+'Sch XI(a)(viii)'!D75","v":0},{"$f":"'Sch XI(a)(i)'!E75+'Sch XI(a)(ii)'!E75+'Sch XI(a)(iii)'!E75+'Sch XI(a)(iv)'!E75+'Sch XI(a)(v)'!E75+'Sch XI(a)(vi)'!E75+'Sch XI(a)(vii)'!E75+'Sch XI(a)(viii)'!E75","v":0},{"$f":"'Sch XI(a)(i)'!F75+'Sch XI(a)(ii)'!F75+'Sch XI(a)(iii)'!F75+'Sch XI(a)(iv)'!F75+'Sch XI(a)(v)'!F75+'Sch XI(a)(vi)'!F75+'Sch XI(a)(vii)'!F75+'Sch XI(a)(viii)'!F75","v":0},{"$f":"'Sch XI(a)(i)'!G75+'Sch XI(a)(ii)'!G75+'Sch XI(a)(iii)'!G75+'Sch XI(a)(iv)'!G75+'Sch XI(a)(v)'!G75+'Sch XI(a)(vi)'!G75+'Sch XI(a)(vii)'!G75+'Sch XI(a)(viii)'!G75","v":0},{"$f":"'Sch XI(a)(i)'!H75+'Sch XI(a)(ii)'!H75+'Sch XI(a)(iii)'!H75+'Sch XI(a)(iv)'!H75+'Sch XI(a)(v)'!H75+'Sch XI(a)(vi)'!H75+'Sch XI(a)(vii)'!H75+'Sch XI(a)(viii)'!H75","v":0},2021,{"$f":"'Sch XI(a)(i)'!J75+'Sch XI(a)(ii)'!J75+'Sch XI(a)(iii)'!J75+'Sch XI(a)(iv)'!J75+'Sch XI(a)(v)'!J75+'Sch XI(a)(vi)'!J75+'Sch XI(a)(vii)'!J75+'Sch XI(a)(viii)'!J75","v":0},{"$f":"'Sch XI(a)(i)'!K75+'Sch XI(a)(ii)'!K75+'Sch XI(a)(iii)'!K75+'Sch XI(a)(iv)'!K75+'Sch XI(a)(v)'!K75+'Sch XI(a)(vi)'!K75+'Sch XI(a)(vii)'!K75+'Sch XI(a)(viii)'!K75","v":0},{"$f":"'Sch XI(a)(i)'!L75+'Sch XI(a)(ii)'!L75+'Sch XI(a)(iii)'!L75+'Sch XI(a)(iv)'!L75+'Sch XI(a)(v)'!L75+'Sch XI(a)(vi)'!L75+'Sch XI(a)(vii)'!L75+'Sch XI(a)(viii)'!L75","v":0},{"$f":"'Sch XI(a)(i)'!M75+'Sch XI(a)(ii)'!M75+'Sch XI(a)(iii)'!M75+'Sch XI(a)(iv)'!M75+'Sch XI(a)(v)'!M75+'Sch XI(a)(vi)'!M75+'Sch XI(a)(vii)'!M75+'Sch XI(a)(viii)'!M75","v":0}]
["L46",2022,{"$f":"'Sch XI(a)(i)'!C76+'Sch XI(a)(ii)'!C76+'Sch XI(a)(iii)'!C76+'Sch XI(a)(iv)'!C76+'Sch XI(a)(v)'!C76+'Sch XI(a)(vi)'!C76+'Sch XI(a)(vii)'!C76+'Sch XI(a)(viii)'!C76","v":0},{"$f":"'Sch XI(a)(i)'!D76+'Sch XI(a)(ii)'!D76+'Sch XI(a)(iii)'!D76+'Sch XI(a)(iv)'!D76+'Sch XI(a)(v)'!D76+'Sch XI(a)(vi)'!D76+'Sch XI(a)(vii)'!D76+'Sch XI(a)(viii)'!D76","v":0},{"$f":"'Sch XI(a)(i)'!E76+'Sch XI(a)(ii)'!E76+'Sch XI(a)(iii)'!E76+'Sch XI(a)(iv)'!E76+'Sch XI(a)(v)'!E76+'Sch XI(a)(vi)'!E76+'Sch XI(a)(vii)'!E76+'Sch XI(a)(viii)'!E76","v":0},{"$f":"'Sch XI(a)(i)'!F76+'Sch XI(a)(ii)'!F76+'Sch XI(a)(iii)'!F76+'Sch XI(a)(iv)'!F76+'Sch XI(a)(v)'!F76+'Sch XI(a)(vi)'!F76+'Sch XI(a)(vii)'!F76+'Sch XI(a)(viii)'!F76","v":0},{"$f":"'Sch XI(a)(i)'!G76+'Sch XI(a)(ii)'!G76+'Sch XI(a)(iii)'!G76+'Sch XI(a)(iv)'!G76+'Sch XI(a)(v)'!G76+'Sch XI(a)(vi)'!G76+'Sch XI(a)(vii)'!G76+'Sch XI(a)(viii)'!G76","v":0},{"$f":"'Sch XI(a)(i)'!H76+'Sch XI(a)(ii)'!H76+'Sch XI(a)(iii)'!H76+'Sch XI(a)(iv)'!H76+'Sch XI(a)(v)'!H76+'Sch XI(a)(vi)'!H76+'Sch XI(a)(vii)'!H76+'Sch XI(a)(viii)'!H76","v":0},2022,{"$f":"'Sch XI(a)(i)'!J76+'Sch XI(a)(ii)'!J76+'Sch XI(a)(iii)'!J76+'Sch XI(a)(iv)'!J76+'Sch XI(a)(v)'!J76+'Sch XI(a)(vi)'!J76+'Sch XI(a)(vii)'!J76+'Sch XI(a)(viii)'!J76","v":0},{"$f":"'Sch XI(a)(i)'!K76+'Sch XI(a)(ii)'!K76+'Sch XI(a)(iii)'!K76+'Sch XI(a)(iv)'!K76+'Sch XI(a)(v)'!K76+'Sch XI(a)(vi)'!K76+'Sch XI(a)(vii)'!K76+'Sch XI(a)(viii)'!K76","v":0},{"$f":"'Sch XI(a)(i)'!L76+'Sch XI(a)(ii)'!L76+'Sch XI(a)(iii)'!L76+'Sch XI(a)(iv)'!L76+'Sch XI(a)(v)'!L76+'Sch XI(a)(vi)'!L76+'Sch XI(a)(vii)'!L76+'Sch XI(a)(viii)'!L76","v":0},{"$f":"'Sch XI(a)(i)'!M76+'Sch XI(a)(ii)'!M76+'Sch XI(a)(iii)'!M76+'Sch XI(a)(iv)'!M76+'Sch XI(a)(v)'!M76+'Sch XI(a)(vi)'!M76+'Sch XI(a)(vii)'!M76+'Sch XI(a)(viii)'!M76","v":0}]
["L47",{"$f":"B39","v":2023},{"$f":"'Sch XI(a)(i)'!C77+'Sch XI(a)(ii)'!C77+'Sch XI(a)(iii)'!C77+'Sch XI(a)(iv)'!C77+'Sch XI(a)(v)'!C77+'Sch XI(a)(vi)'!C77+'Sch XI(a)(vii)'!C77+'Sch XI(a)(viii)'!C77","v":0},{"$f":"'Sch XI(a)(i)'!D77+'Sch XI(a)(ii)'!D77+'Sch XI(a)(iii)'!D77+'Sch XI(a)(iv)'!D77+'Sch XI(a)(v)'!D77+'Sch XI(a)(vi)'!D77+'Sch XI(a)(vii)'!D77+'Sch XI(a)(viii)'!D77","v":0},{"$f":"'Sch XI(a)(i)'!E77+'Sch XI(a)(ii)'!E77+'Sch XI(a)(iii)'!E77+'Sch XI(a)(iv)'!E77+'Sch XI(a)(v)'!E77+'Sch XI(a)(vi)'!E77+'Sch XI(a)(vii)'!E77+'Sch XI(a)(viii)'!E77","v":0},{"$f":"'Sch XI(a)(i)'!F77+'Sch XI(a)(ii)'!F77+'Sch XI(a)(iii)'!F77+'Sch XI(a)(iv)'!F77+'Sch XI(a)(v)'!F77+'Sch XI(a)(vi)'!F77+'Sch XI(a)(vii)'!F77+'Sch XI(a)(viii)'!F77","v":0},{"$f":"'Sch XI(a)(i)'!G77+'Sch XI(a)(ii)'!G77+'Sch XI(a)(iii)'!G77+'Sch XI(a)(iv)'!G77+'Sch XI(a)(v)'!G77+'Sch XI(a)(vi)'!G77+'Sch XI(a)(vii)'!G77+'Sch XI(a)(viii)'!G77","v":0},{"$f":"'Sch XI(a)(i)'!H77+'Sch XI(a)(ii)'!H77+'Sch XI(a)(iii)'!H77+'Sch XI(a)(iv)'!H77+'Sch XI(a)(v)'!H77+'Sch XI(a)(vi)'!H77+'Sch XI(a)(vii)'!H77+'Sch XI(a)(viii)'!H77","v":0},2023,{"$f":"'Sch XI(a)(i)'!J77+'Sch XI(a)(ii)'!J77+'Sch XI(a)(iii)'!J77+'Sch XI(a)(iv)'!J77+'Sch XI(a)(v)'!J77+'Sch XI(a)(vi)'!J77+'Sch XI(a)(vii)'!J77+'Sch XI(a)(viii)'!J77","v":0},{"$f":"'Sch XI(a)(i)'!K77+'Sch XI(a)(ii)'!K77+'Sch XI(a)(iii)'!K77+'Sch XI(a)(iv)'!K77+'Sch XI(a)(v)'!K77+'Sch XI(a)(vi)'!K77+'Sch XI(a)(vii)'!K77+'Sch XI(a)(viii)'!K77","v":0},{"$f":"'Sch XI(a)(i)'!L77+'Sch XI(a)(ii)'!L77+'Sch XI(a)(iii)'!L77+'Sch XI(a)(iv)'!L77+'Sch XI(a)(v)'!L77+'Sch XI(a)(vi)'!L77+'Sch XI(a)(vii)'!L77+'Sch XI(a)(viii)'!L77","v":0},{"$f":"'Sch XI(a)(i)'!M77+'Sch XI(a)(ii)'!M77+'Sch XI(a)(iii)'!M77+'Sch XI(a)(iv)'!M77+'Sch XI(a)(v)'!M77+'Sch XI(a)(vi)'!M77+'Sch XI(a)(vii)'!M77+'Sch XI(a)(viii)'!M77","v":0}]
["L48","Totals","XXX",{"$f":"C78","v":"XXX"},"XXX",{"$f":"E78","v":"XXX"},{"$f":"SUM(G67:G77)","v":0},{"$f":"SUM(H67:H77)","v":0},"Totals",{"$f":"SUM(J67:J77)","v":0},{"$f":"SUM(K67:K77)","v":0},{"$f":"SUM(L67:L77)","v":0},{"$f":"SUM(M67:M77)","v":0}]

{"sheet":"Sch XI(a)(i)","index":74,"n_rows":300,"n_cols":20,"rows_kept":300,"cut":false,"hidden":true,"merged":[[80,1,82,12],[5,2,5,11],[23,2,23,11],[41,2,41,11],[0,13,0,14],[2,13,2,14],[2,1,2,2],[59,6,59,7],[60,6,60,7]]}
[null,"SCHEDULE OF LOSS TRIANGLES (LINE 1 - PROPERTY CATASTROPHE)",null,null,null,null,null,null,null,null,null,null,null,{"$f":"HYPERLINK(\"#'Index'!A1\",\"Return to Index\")","v":"Return to Index"}]
[null,{"$f":"'Company Information'!C7","v":"Enter Company Name"}]
[null,{"$f":" TEXT('Company Information'!C3,\"d mmmm yyyy\")","v":"31 December 2023"},null,null,null,null,null,null,null,null,null,null,null,"SCHEDULE XI(a)(i)"]
[null,{"$f":"\"expressed in\"& IF(1000>1,\" ['\"&MID(1000,2,LEN(1000))&\"s]\",\"\")&\" \"&'Form 1EBS'!$C$4","v":"expressed in ['000s] United States Dollars"}]
[]
[null,"Accounting Basis: ","INCURRED (ESTIMATED ULTIMATE) NET LOSSES AND ALLOCATED LOSS ADJUSTMENT EXPENSES REPORTED AT YEAR END ($000)",null,null,null,null,null,null,null,null,null,11,12,13,null,"AcctBasis",{"$f":"B7","v":"Accident Year"}]
[null,"Accident Year",null,null,null,null,null,null,null,null,null,null,"Ultimate","Development","Development",null,{"$f":"\"UltCY\"&C$10&\"AY\"&B11","v":"UltCY2014AYPrior"},{"$f":"C11","v":0},{"$f":"\"CATUltCY\"&L$10&\"AY\"&B11","v":"CATUltCY2023AYPrior"},{"$f":"M11","v":0}]
[null,"Years in Which",1,2,3,4,5,6,7,8,9,10,"Catastrophe",null,null,null,{"$f":"\"UltCY\"&C$10&\"AY\"&B12","v":"UltCY2014AY2014"},{"$f":"C12","v":0},"CATUltCY2023AY2014",0]
[null,"Losses Were",null,null,null,null,null,null,null,null,null,null,"Losses","One Year","Two Year",null,{"$f":"\"UltCY\"&D$10&\"AY\"&B11","v":"UltCY2015AYPrior"},{"$f":"D11","v":0},"CATUltCY2023AY2015",0]
[null,"Incurred",{"$f":"D10-1","v":2014},2015,2016,2017,2018,2019,2020,2021,2022,{"$f":"YEAR('Company Information'!C3)","v":2023},{"$f":"L10","v":2023},"Development","Development",null,{"$f":"\"UltCY\"&D$10&\"AY\"&B12","v":"UltCY2015AY2014"},{"$f":"D12","v":0},"CATUltCY2023AY2016",0]
["L1","Prior",{"$f":"Import!I40325","v":0},{"$f":"Import!I40327","v":0},{"$f":"Import!I40330","v":0},{"$f":"Import!I40334","v":0},{"$f":"Import!I40339","v":0},{"$f":"Import!I40345","v":0},{"$f":"Import!I40352","v":0},{"$f":"Import!I40360","v":0},{"$f":"Import!I40369","v":0},{"$f":"Import!I40379","v":0},{"$f":"Import!I40390","v":0},{"$f":"K11-L11","v":0},{"$f":"J11-L11","v":0},null,{"$f":"\"UltCY\"&D$10&\"AY\"&B13","v":"UltCY2015AY2015"},{"$f":"D13","v":0},"CATUltCY2023AY2017",0]
["L2",{"$f":"B13-1","v":2014},{"$f":"Import!I40326","v":0},{"$f":"Import!I40328","v":0},{"$f":"Import!I40331","v":0},{"$f":"Import!I40335","v":0},{"$f":"Import!I40340","v":0},{"$f":"Import!I40346","v":0},{"$f":"Import!I40353","v":0},{"$f":"Import!I40361","v":0},{"$f":"Import!I40370","v":0},{"$f":"Import!I40380","v":0},{"$f":"Import!I40391","v":0},0,0,null,{"$f":"\"UltCY\"&E$10&\"AY\"&B11","v":"UltCY2016AYPrior"},{"$f":"E11","v":0},"CATUltCY2023AY2018",0]
["L3",2015,"XXX",{"$f":"Import!I40329","v":0},{"$f":"Import!I40332","v":0},{"$f":"Import!I40336","v":0},{"$f":"Import!I40341","v":0},{"$f":"Import!I40347","v":0},{"$f":"Import!I40354","v":0},{"$f":"Import!I40362","v":0},{"$f":"Import!I40371","v":0},{"$f":"Import!I40381","v":0},{"$f":"Import!I40392","v":0},0,0,null,{"$f":"\"UltCY\"&E$10&\"AY\"&B12","v":"UltCY2016AY2014"},{"$f":"E12","v":0},"CATUltCY2023AY2019",0]
["L4",2016,"XXX","XXX",{"$f":"Import!I40333","v":0},{"$f":"Import!I40337","v":0},{"$f":"Import!I40342","v":0},{"$f":"Import!I40348","v":0},{"$f":"Import!I40355","v":0},{"$f":"Import!I40363","v":0},{"$f":"Import!I40372","v":0},{"$f":"Import!I40382","v":0},{"$f":"Import!I40393","v":0},0,0,null,{"$f":"\"UltCY\"&E$10&\"AY\"&B13","v":"UltCY2016AY2015"},{"$f":"E13","v":0},"CATUltCY2023AY2020",0]
["L5",2017,"XXX","XXX","XXX",{"$f":"Import!I40338","v":0},{"$f":"Import!I40343","v":0},{"$f":"Import!I40349","v":0},{"$f":"Import!I40356","v":0},{"$f":"Import!I40364","v":0},{"$f":"Import!I40373","v":0},{"$f":"Import!I40383","v":0},{"$f":"Import!I40394","v":0},0,0,null,{"$f":"\"UltCY\"&E$10&\"AY\"&B14","v":"UltCY2016AY2016"},{"$f":"E14","v":0},"CATUltCY2023AY2021",0]
["L6",2018,"XXX","XXX","XXX","XXX",{"$f":"Import!I40344","v":0},{"$f":"Import!I40350","v":0},{"$f":"Import!I40357","v":0},{"$f":"Import!I40365","v":0},{"$f":"Import!I40374","v":0},{"$f":"Import!I40384","v":0},{"$f":"Import!I40395","v":0},0,0,null,{"$f":"\"UltCY\"&F$10&\"AY\"&B11","v":"UltCY2017AYPrior"},{"$f":"F11","v":0},"CATUltCY2023AY2022",0]
["L7",2019,"XXX","XXX","XXX","XXX","XXX",{"$f":"Import!I40351","v":0},{"$f":"Import!I40358","v":0},{"$f":"Import!I40366","v":0},{"$f":"Import!I40375","v":0},{"$f":"Import!I40385","v":0},{"$f":"Import!I40396","v":0},0,0,null,{"$f":"\"UltCY\"&F$10&\"AY\"&B12","v":"UltCY2017AY2014"},{"$f":"F12","v":0},{"$f":"\"CATUltCY\"&L$10&\"AY\"&B21","v":"CATUltCY2023AY2023"},{"$f":"M21","v":0}]
["L8",2020,"XXX","XXX","XXX","XXX","XXX","XXX",{"$f":"Import!I40359","v":0},{"$f":"Import!I40367","v":0},{"$f":"Import!I40376","v":0},{"$f":"Import!I40386","v":0},{"$f":"Import!I40397","v":0},0,0,null,{"$f":"\"UltCY\"&F$10&\"AY\"&B13","v":"UltCY2017AY2015"},{"$f":"F13","v":0},{"$f":"\"CATPaidCY\"&L$10&\"AY\"&B29","v":"CATPaidCY2023AYPrior"},{"$f":"M29","v":0}]
["L9",2021,"XXX","XXX","XXX","XXX","XXX","XXX","XXX",{"$f":"Import!I40368","v":0},{"$f":"Import!I40377","v":0},{"$f":"Import!I40387","v":0},{"$f":"Import!I40398","v":0},0,0,null,{"$f":"\"UltCY\"&F$10&\"AY\"&B14","v":"UltCY2017AY2016"},{"$f":"F14","v":0},"CATPaidCY2023AY2014",0]
["L10",{"$f":"B21-1","v":2022},"XXX","XXX","XXX","XXX","XXX","XXX","XXX","XXX",{"$f":"Import!I40378","v":0},{"$f":"Import!I40388","v":0},{"$f":"Import!I40399","v":0},0,"XXX",null,{"$f":"\"UltCY\"&F$10&\"AY\"&B15","v":"UltCY2017AY2017"},{"$f":"F15","v":0},"CATPaidCY2023AY2015",0]
["L11",{"$f":"L10","v":2023},"XXX","XXX","XXX","XXX","XXX","XXX","XXX","XXX","XXX",{"$f":"Import!I40389","v":0},{"$f":"Import!I40400","v":0},"XXX","XXX",null,{"$f":"\"UltCY\"&G$10&\"AY\"&B11","v":"UltCY2018AYPrior"},{"$f":"G11","v":0},"CATPaidCY2023AY2016",0]
["L12","Totals",null,null,null,null,null,null,null,null,null,null,{"$f":"SUM(M11:M21)","v":0},{"$f":"SUM(N11:N21)","v":0},{"$f":"SUM(O11:O21)","v":0},null,{"$f":"\"UltCY\"&G$10&\"AY\"&B12","v":"UltCY2018AY2014"},{"$f":"G12","v":0},"CATPaidCY2023AY2017",0]
[null,null,null,null,null,null,null,null,null,null,null,null,null,null,null,null,{"$f":"\"UltCY\"&G$10&\"AY\"&B13","v":"UltCY2018AY2015"},{"$f":"G13","v":0},"CATPaidCY2023AY2018",0]
[null,null,"CUMULATIVE PAID NET LOSSES AND ALLOCATED LOSS ADJUSTMENT EXPENSES REPORTED AT YEAR END ($000)",null,null,null,null,null,null,null,null,null,24,null,null,null,{"$f":"\"UltCY\"&G$10&\"AY\"&B15","v":"UltCY2018AY2017"},{"$f":"G15","v":0},{"$f":"\"CATPaidCY\"&L$10&\"AY\"&B36","v":"CATPaidCY2023AY2020"},{"$f":"M36","v":0}]
[null,null,null,null,null,null,null,null,null,null,null,null,"Paid",null,null,null,{"$f":"\"UltCY\"&G$10&\"AY\"&B16","v":"UltCY2018AY2018"},{"$f":"G16","v":0},{"$f":"\"CATPaidCY\"&L$10&\"AY\"&B37","v":"CATPaidCY2023AY2021"},{"$f":"M37","v":0}]
[null,"Years in Which",14,15,16,17,18,19,20,21,22,23,"Catastrophe",null,null,null,{"$f":"\"UltCY\"&H$10&\"AY\"&B11","v":"UltCY2019AYPrior"},{"$f":"H11","v":0},{"$f":"\"CATPaidCY\"&L$10&\"AY\"&B38","v":"CATPaidCY2023AY2022"},{"$f":"M38","v":0}]
[null,"Policies Were",null,null,null,null,null,null,null,null,null,null,"Losses",null,null,null,"UltCY2019AY2014",0,{"$f":"\"CATPaidCY\"&L$10&\"AY\"&B39","v":"CATPaidCY2023AY2023"},{"$f":"M39","v":0}]
[null,"Written",{"$f":"D28-1","v":2014},2015,2016,2017,2018,2019,2020,2021,2022,{"$f":"L10","v":2023},{"$f":"L28","v":2023},null,null,null,"UltCY2019AY2015",0,{"$f":"\"CATIBNRCY\"&L$10&\"AY\"&B47","v":"CATIBNRCY2023AYPrior"},{"$f":"M47","v":0}]
["L13","Prior",{"$f":"Import!I40401","v":0},{"$f":"Import!I40403","v":0},{"$f":"Import!I40406","v":0},{"$f":"Import!I40410","v":0},{"$f":"Import!I40415","v":0},{"$f":"Import!I40421","v":0},{"$f":"Import!I40428","v":0},{"$f":"Import!I40436","v":0},{"$f":"Import!I40445","v":0},{"$f":"Import!I40455","v":0},{"$f":"Import!I40466","v":0},null,null,null,"UltCY2019AY2016",0,"CATIBNRCY2023AY2014",0]
["L14",{"$f":"B31-1","v":2014},{"$f":"Import!I40402","v":0},{"$f":"Import!I40404","v":0},{"$f":"Import!I40407","v":0},{"$f":"Import!I40411","v":0},{"$f":"Import!I40416","v":0},{"$f":"Import!I40422","v":0},{"$f":"Import!I40429","v":0},{"$f":"Import!I40437","v":0},{"$f":"Import!I40446","v":0},{"$f":"Import!I40456","v":0},{"$f":"Import!I40467","v":0},null,null,null,"UltCY2019AY2017",0,"CATIBNRCY2023AY2015",0]
["L15",2015,"XXX",{"$f":"Import!I40405","v":0},{"$f":"Import!I40408","v":0},{"$f":"Import!I40412","v":0},{"$f":"Import!I40417","v":0},{"$f":"Import!I40423","v":0},{"$f":"Import!I40430","v":0},{"$f":"Import!I40438","v":0},{"$f":"Import!I40447","v":0},{"$f":"Import!I40457","v":0},{"$f":"Import!I40468","v":0},null,null,null,"UltCY2019AY2018",0,"CATIBNRCY2023AY2016",0]
["L16",2016,"XXX","XXX",{"$f":"Import!I40409","v":0},{"$f":"Import!I40413","v":0},{"$f":"Import!I40418","v":0},{"$f":"Import!I40424","v":0},{"$f":"Import!I40431","v":0},{"$f":"Import!I40439","v":0},{"$f":"Import!I40448","v":0},{"$f":"Import!I40458","v":0},{"$f":"Import!I40469","v":0},null,null,null,"UltCY2019AY2019",0,"CATIBNRCY2023AY2017",0]
["L17",2017,"XXX","XXX","XXX",{"$f":"Import!I40414","v":0},{"$f":"Import!I40419","v":0},{"$f":"Import!I40425","v":0},{"$f":"Import!I40432","v":0},{"$f":"Import!I40440","v":0},{"$f":"Import!I40449","v":0},{"$f":"Import!I40459","v":0},{"$f":"Import!I40470","v":0},null,null,null,{"$f":"\"UltCY\"&I$10&\"AY\"&B11","v":"UltCY2020AYPrior"},{"$f":"I11","v":0},"CATIBNRCY2023AY2018",0]
["L18",2018,"XXX","XXX","XXX","XXX",{"$f":"Import!I40420","v":0},{"$f":"Import!I40426","v":0},{"$f":"Import!I40433","v":0},{"$f":"Import!I40441","v":0},{"$f":"Import!I40450","v":0},{"$f":"Import!I40460","v":0},{"$f":"Import!I40471","v":0},null,null,null,"UltCY2020AY2014",0,"CATIBNRCY2023AY2019",0]
["L19",2019,"XXX","XXX","XXX","XXX","XXX",{"$f":"Import!I40427","v":0},{"$f":"Import!I40434","v":0},{"$f":"Import!I40442","v":0},{"$f":"Import!I40451","v":0},{"$f":"Import!I40461","v":0},{"$f":"Import!I40472","v":0},null,null,null,"UltCY2020AY2015",0,"CATIBNRCY2023AY2020",0]
["L20",2020,"XXX","XXX","XXX","XXX","XXX","XXX",{"$f":"Import!I40435","v":0},{"$f":"Import!I40443","v":0},{"$f":"Import!I40452","v":0},{"$f":"Import!I40462","v":0},{"$f":"Import!I40473","v":0},null,null,null,"UltCY2020AY2016",0,"CATIBNRCY2023AY2021",0]
["L21",2021,"XXX","XXX","XXX","XXX","XXX","XXX","XXX",{"$f":"Import!I40444","v":0},{"$f":"Import!I40453","v":0},{"$f":"Import!I40463","v":0},{"$f":"Import!I40474","v":0},null,null,null,"UltCY2020AY2017",0,"CATIBNRCY2023AY2022",0]
["L22",2022,"XXX","XXX","XXX","XXX","XXX","XXX","XXX","XXX",{"$f":"Import!I40454","v":0},{"$f":"Import!I40464","v":0},{"$f":"Import!I40475","v":0},null,null,null,"UltCY2020AY2018",0,"CATIBNRCY2023AY2023",0]
["L23",{"$f":"L28","v":2023},"XXX","XXX","XXX","XXX","XXX","XXX","XXX","XXX","XXX",{"$f":"Import!I40465","v":0},{"$f":"Import!I40476","v":0},null,null,null,"UltCY2020AY2019",0]
["L24","Totals",null,null,null,null,null,null,null,null,null,null,{"$f":"SUM(M29:M39)","v":0},null,null,null,"UltCY2020AY2020",0]
[null,null,null,null,null,null,null,null,null,null,null,null,null,null,null,null,{"$f":"\"UltCY\"&J$10&\"AY\"&B11","v":"UltCY2021AYPrior"},{"$f":"J11","v":0}]
[null,null,"BULK & IBNR RESERVES ON NET LOSSES AND ALLOCATED LOSS ADJUSTMENT EXPENSES REPORTED AT YEAR END ($000)",null,null,null,null,null,null,null,null,null,35,null,null,null,{"$f":"\"UltCY\"&J$10&\"AY\"&B13","v":"UltCY2021AY2015"},{"$f":"J13","v":0}]
[null,null,null,null,null,null,null,null,null,null,null,null,"Losses",null,null,null,"UltCY2021AY2016",0]
[null,"Years in Which",25,26,27,28,29,30,31,32,33,34,"Bulk & IBNR",null,null,null,"UltCY2021AY2017",0]
[null,"Policies Were",null,null,null,null,null,null,null,null,null,null,"Reserves",null,null,null,"UltCY2021AY2018",0]
[null,"Written",{"$f":"D46-1","v":2014},2015,2016,2017,2018,2019,2020,2021,2022,{"$f":"L28","v":2023},{"$f":"L46","v":2023},null,null,null,"UltCY2021AY2019",0]
["L25","Prior",{"$f":"Import!I40477","v":0},{"$f":"Import!I40479","v":0},{"$f":"Import!I40482","v":0},{"$f":"Import!I40486","v":0},{"$f":"Import!I40491","v":0},{"$f":"Import!I40497","v":0},{"$f":"Import!I40504","v":0},{"$f":"Import!I40512","v":0},{"$f":"Import!I40521","v":0},{"$f":"Import!I40531","v":0},{"$f":"Import!I40542","v":0},null,null,null,"UltCY2021AY2020",0]
["L26",{"$f":"B49-1","v":2014},{"$f":"Import!I40478","v":0},{"$f":"Import!I40480","v":0},{"$f":"Import!I40483","v":0},{"$f":"Import!I40487","v":0},{"$f":"Import!I40492","v":0},{"$f":"Import!I40498","v":0},{"$f":"Import!I40505","v":0},{"$f":"Import!I40513","v":0},{"$f":"Import!I40522","v":0},{"$f":"Import!I40532","v":0},{"$f":"Import!I40543","v":0},null,null,null,"UltCY2021AY2021",0]
["L27",2015,"XXX",{"$f":"Import!I40481","v":0},{"$f":"Import!I40484","v":0},{"$f":"Import!I40488","v":0},{"$f":"Import!I40493","v":0},{"$f":"Import!I40499","v":0},{"$f":"Import!I40506","v":0},{"$f":"Import!I40514","v":0},{"$f":"Import!I40523","v":0},{"$f":"Import!I40533","v":0},{"$f":"Import!I40544","v":0},null,null,null,{"$f":"\"UltCY\"&K$10&\"AY\"&B11","v":"UltCY2022AYPrior"},{"$f":"K11","v":0}]
["L28",2016,"XXX","XXX",{"$f":"Import!I40485","v":0},{"$f":"Import!I40489","v":0},{"$f":"Import!I40494","v":0},{"$f":"Import!I40500","v":0},{"$f":"Import!I40507","v":0},{"$f":"Import!I40515","v":0},{"$f":"Import!I40524","v":0},{"$f":"Import!I40534","v":0},{"$f":"Import!I40545","v":0},null,null,null,"UltCY2022AY2014",0]
["L29",2017,"XXX","XXX","XXX",{"$f":"Import!I40490","v":0},{"$f":"Import!I40495","v":0},{"$f":"Import!I40501","v":0},{"$f":"Import!I40508","v":0},{"$f":"Import!I40516","v":0},{"$f":"Import!I40525","v":0},{"$f":"Import!I40535","v":0},{"$f":"Import!I40546","v":0},null,null,null,"UltCY2022AY2015",0]
["L30",2018,"XXX","XXX","XXX","XXX",{"$f":"Import!I40496","v":0},{"$f":"Import!I40502","v":0},{"$f":"Import!I40509","v":0},{"$f":"Import!I40517","v":0},{"$f":"Import!I40526","v":0},{"$f":"Import!I40536","v":0},{"$f":"Import!I40547","v":0},null,null,null,"UltCY2022AY2016",0]
["L31",2019,"XXX","XXX","XXX","XXX","XXX",{"$f":"Import!I40503","v":0},{"$f":"Import!I40510","v":0},{"$f":"Import!I40518","v":0},{"$f":"Import!I40527","v":0},{"$f":"Import!I40537","v":0},{"$f":"Import!I40548","v":0},null,null,null,"UltCY2022AY2017",0]
["L32",2020,"XXX","XXX","XXX","XXX","XXX","XXX",{"$f":"Import!I40511","v":0},{"$f":"Import!I40519","v":0},{"$f":"Import!I40528","v":0},{"$f":"Import!I40538","v":0},{"$f":"Import!I40549","v":0},null,null,null,"UltCY2022AY2018",0]
["L33",2021,"XXX","XXX","XXX","XXX","XXX","XXX","XXX",{"$f":"Import!I40520","v":0},{"$f":"Import!I40529","v":0},{"$f":"Import!I40539","v":0},{"$f":"Import!I40550","v":0},null,null,null,"UltCY2022AY2019",0]
["L34",2022,"XXX","XXX","XXX","XXX","XXX","XXX","XXX","XXX",{"$f":"Import!I40530","v":0},{"$f":"Import!I40540","v":0},{"$f":"Import!I40551","v":0},null,null,null,"UltCY2022AY2020",0]
["L35",{"$f":"L46","v":2023},"XXX","XXX","XXX","XXX","XXX","XXX","XXX","XXX","XXX",{"$f":"Import!I40541","v":0},{"$f":"Import!I40552","v":0},null,null,null,"UltCY2022AY2021",0]
["L36","Totals",null,null,null,null,null,null,null,null,null,null,{"$f":"SUM(M47:M57)","v":0},null,null,null,"UltCY2022AY2022",0]
[null,null,null,null,null,null,null,null,null,null,null,null,null,null,null,null,{"$f":"\"UltCY\"&L$10&\"AY\"&B11","v":"UltCY2023AYPrior"},{"$f":"L11","v":0}]
[null,null,36,37,38,39,"Unallocated Loss",null,null,42,43,44,45,null,null,null,{"$f":"\"UltCY\"&L$10&\"AY\"&B13","v":"UltCY2023AY2015"},{"$f":"L13","v":0}]
[null,"Years in Which",null,null,null,null,"Adjustment Expenses",null,null,null,null,null,null,null,null,null,"UltCY2023AY2016",0]
[null,"Premiums",null,null,null,null,40,41,null,null,null,null,null,null,null,null,"UltCY2023AY2017",0]
[null,"Were",null,null,null,null,null,null,null,"Commission and","General and",null,null,null,null,null,"UltCY2023AY2018",0]
[null,"Earned and","Gross","Gross","Net","Net",null,null,null,"Brokerage","Administrative","Personnel","Other",null,null,null,"UltCY2023AY2019",0]
[null,"Losses Were","Premiums","Premiums","Premiums","Premiums",null,null,"Calendar","Expense","Expense","Costs","Expense",null,null,null,"UltCY2023AY2020",0]
[null,"Incurred","Written","Earned","Written","Earned","Paid","Incurred","Year","(Form 2A, Line 9)","(Form 2A, Line 10)","(Form 2A, Line 11)","(Form 2A, Line 12)",null,null,null,"UltCY2023AY2021",0]
["L37","Prior","XXX",{"$f":"C67","v":"XXX"},"XXX",{"$f":"E67","v":"XXX"},{"$f":"Import!I40597","v":0},{"$f":"Import!I40608","v":0},"Prior",{"$f":"Import!I40619","v":0},{"$f":"Import!I40630","v":0},{"$f":"Import!I40641","v":0},{"$f":"Import!I40652","v":0},null,null,null,"UltCY2023AY2022",0]
["L38",{"$f":"B69-1","v":2014},{"$f":"Import!I40554","v":0},{"$f":"Import!I40565","v":0},{"$f":"Import!I40576","v":0},{"$f":"Import!I40587","v":0},{"$f":"Import!I40598","v":0},{"$f":"Import!I40609","v":0},{"$f":"B68","v":2014},{"$f":"Import!I40620","v":0},{"$f":"Import!I40631","v":0},{"$f":"Import!I40642","v":0},{"$f":"Import!I40653","v":0},null,null,null,"UltCY2023AY2023",0]
["L39",2015,{"$f":"Import!I40555","v":0},{"$f":"Import!I40566","v":0},{"$f":"Import!I40577","v":0},{"$f":"Import!I40588","v":0},{"$f":"Import!I40599","v":0},{"$f":"Import!I40610","v":0},2015,{"$f":"Import!I40621","v":0},{"$f":"Import!I40632","v":0},{"$f":"Import!I40643","v":0},{"$f":"Import!I40654","v":0},null,null,null,{"$f":"\"PaidCY\"&C$10&\"AY\"&B29","v":"PaidCY2014AYPrior"},{"$f":"C29","v":0}]
["L40",2016,{"$f":"Import!I40556","v":0},{"$f":"Import!I40567","v":0},{"$f":"Import!I40578","v":0},{"$f":"Import!I40589","v":0},{"$f":"Import!I40600","v":0},{"$f":"Import!I40611","v":0},2016,{"$f":"Import!I40622","v":0},{"$f":"Import!I40633","v":0},{"$f":"Import!I40644","v":0},{"$f":"Import!I40655","v":0},null,null,null,{"$f":"\"PaidCY\"&C$10&\"AY\"&B30","v":"PaidCY2014AY2014"},{"$f":"C30","v":0}]
["L41",2017,{"$f":"Import!I40557","v":0},{"$f":"Import!I40568","v":0},{"$f":"Import!I40579","v":0},{"$f":"Import!I40590","v":0},{"$f":"Import!I40601","v":0},{"$f":"Import!I40612","v":0},2017,{"$f":"Import!I40623","v":0},{"$f":"Import!I40634","v":0},{"$f":"Import!I40645","v":0},{"$f":"Import!I40656","v":0},null,null,null,{"$f":"\"PaidCY\"&D$10&\"AY\"&B29","v":"PaidCY2015AYPrior"},{"$f":"D29","v":0}]
["L42",2018,{"$f":"Import!I40558","v":0},{"$f":"Import!I40569","v":0},{"$f":"Import!I40580","v":0},{"$f":"Import!I40591","v":0},{"$f":"Import!I40602","v":0},{"$f":"Import!I40613","v":0},2018,{"$f":"Import!I40624","v":0},{"$f":"Import!I40635","v":0},{"$f":"Import!I40646","v":0},{"$f":"Import!I40657","v":0},null,null,null,{"$f":"\"PaidCY\"&D$10&\"AY\"&B30","v":"PaidCY2015AY2014"},{"$f":"D30","v":0}]
["L43",2019,{"$f":"Import!I40559","v":0},{"$f":"Import!I40570","v":0},{"$f":"Import!I40581","v":0},{"$f":"Import!I40592","v":0},{"$f":"Import!I40603","v":0},{"$f":"Import!I40614","v":0},2019,{"$f":"Import!I40625","v":0},{"$f":"Import!I40636","v":0},{"$f":"Import!I40647","v":0},{"$f":"Import!I40658","v":0},null,null,null,{"$f":"\"PaidCY\"&D$10&\"AY\"&B31","v":"PaidCY2015AY2015"},{"$f":"D31","v":0}]
["L44",2020,{"$f":"Import!I40560","v":0},{"$f":"Import!I40571","v":0},{"$f":"Import!I40582","v":0},{"$f":"Import!I40593","v":0},{"$f":"Import!I40604","v":0},{"$f":"Import!I40615","v":0},2020,{"$f":"Import!I40626","v":0},{"$f":"Import!I40637","v":0},{"$f":"Import!I40648","v":0},{"$f":"Import!I40659","v":0},null,null,null,{"$f":"\"PaidCY\"&E$10&\"AY\"&B29","v":"PaidCY2016AYPrior"},{"$f":"E29","v":0}]
["L45",2021,{"$f":"Import!I40561","v":0},{"$f":"Import!I40572","v":0},{"$f":"Import!I40583","v":0},{"$f":"Import!I40594","v":0},{"$f":"Import!I40605","v":0},{"$f":"Import!I40616","v":0},2021,{"$f":"Import!I40627","v":0},{"$f":"Import!I40638","v":0},{"$f":"Import!I40649","v":0},{"$f":"Import!I40660","v":0},null,null,null,{"$f":"\"PaidCY\"&E$10&\"AY\"&B30","v":"PaidCY2016AY2014"},{"$f":"E30","v":0}]
["L46",2022,{"$f":"Import!I40562","v":0},{"$f":"Import!I40573","v":0},{"$f":"Import!I40584","v":0},{"$f":"Import!I40595","v":0},{"$f":"Import!I40606","v":0},{"$f":"Import!I40617","v":0},2022,{"$f":"Import!I40628","v":0},{"$f":"Import!I40639","v":0},{"$f":"Import!I40650","v":0},{"$f":"Import!I40661","v":0},null,null,null,{"$f":"\"PaidCY\"&E$10&\"AY\"&B31","v":"PaidCY2016AY2015"},{"$f":"E31","v":0}]
["L47",{"$f":"B39","v":2023},{"$f":"Import!I40563","v":0},{"$f":"Import!I40574","v":0},{"$f":"Import!I40585","v":0},{"$f":"Import!I40596","v":0},{"$f":"Import!I40607","v":0},{"$f":"Import!I40618","v":0},2023,{"$f":"Import!I40629","v":0},{"$f":"Import!I40640","v":0},{"$f":"Import!I40651","v":0},{"$f":"Import!I40662","v":0},null,null,null,{"$f":"\"PaidCY\"&E$10&\"AY\"&B32","v":"PaidCY2016AY2016"},{"$f":"E32","v":0}]
["L48","Totals","XXX",{"$f":"C78","v":"XXX"},"XXX",{"$f":"E78","v":"XXX"},{"$f":"SUM(G67:G77)","v":0},{"$f":"SUM(H67:H77)","v":0},"Totals",{"$f":"SUM(J67:J77)","v":0},{"$f":"SUM(K67:K77)","v":0},{"$f":"SUM(L67:L77)","v":0},{"$f":"SUM(M67:M77)","v":0},null,null,null,{"$f":"\"PaidCY\"&F$10&\"AY\"&B29","v":"PaidCY2017AYPrior"},{"$f":"F29","v":0}]
[null,null,null,null,null,null,null,null,null,null,null,null,null,null,null,null,{"$f":"\"PaidCY\"&F$10&\"AY\"&B30","v":"PaidCY2017AY2014"},{"$f":"F30","v":0}]
[null,"COMMENTS",null,null,null,null,null,null,null,null,null,null,null,null,null,null,{"$f":"\"PaidCY\"&F$10&\"AY\"&B31","v":"PaidCY2017AY2015"},{"$f":"F31","v":0}]
[null,{"$f":"Import!I40663","v":0},null,null,null,null,null,null,null,null,null,null,null,null,null,null,{"$f":"\"PaidCY\"&G$10&\"AY\"&B30","v":"PaidCY2018AY2014"},{"$f":"G30","v":0}]
[null,null,null,null,null,null,null,null,null,null,null,null,null,null,null,null,{"$f":"\"PaidCY\"&G$10&\"AY\"&B31","v":"PaidCY2018AY2015"},{"$f":"G31","v":0}]
[null,null,null,null,null,null,null,null,null,null,null,null,null,null,null,null,{"$f":"\"PaidCY\"&G$10&\"AY\"&B32","v":"PaidCY2018AY2016"},{"$f":"G32","v":0}]
[null,null,null,null,null,null,null,null,null,null,null,null,null,null,null,null,{"$f":"\"PaidCY\"&G$10&\"AY\"&B34","v":"PaidCY2018AY2018"},{"$f":"G34","v":0}]
[]
[]
[]
[]
[]
[null,null,null,"Accident Year",null,null,null,null,null,null,null,null,null,null,null,null,{"$f":"\"PaidCY\"&H$10&\"AY\"&B34","v":"PaidCY2019AY2018"},{"$f":"H34","v":0}]
[null,null,null,"Underwriting Year",null,null,null,null,null,null,null,null,null,null,null,null,"PaidCY2019AY2019",0]
[]
[]
[]
[]
[]
[]
[]
[]
[]
[]
[]
[]
[]
[]
[]
[]
[]
[]
[]
[]
[]
[]
[]
[]
[]
[]
[]
[]
[]
[]
[]
[]
[]
[]
[]
[]
[]
[]
[]
[]
[]
[]
[]
[]
[]
[]
[]
[]
[]
[]
[]
[]
[]
[]
[]
[]
[]
[]
[]
[]
[]
[]
[]
[]
[]
[]
[]
[]
[]
[]
[]
[]
[]
[]
[]
[]
[]
[]
[]
[]
[]
[]
[]
[]
[]
[]
[]
[]
[]
[]
[]
[]
[]
[]
[]
[]
[]
[]
[]
[]
[]
[]
[]
[]
[]
[]
[]
[]
[]
[]
[]
[]
[]
[]
[]
[]
[]
[]
[]
[]
[]
[]
[]
[]
[]
[]
[]
[]
[]
[]
[]
[]
[]
[]
[]
[]
[]
[]
[]
[]
[]
[]
[]
[]
[]
[]
[]
[]
[]
[]
[]
[null,null,null,null,null,null,null,null,null,null,null,null,null,null,null,null,{"$f":"\"NetAOEPaid\"&$B75","v":"NetAOEPaid2021"},{"$f":"G75","v":0}]
[null,null,null,null,null,null,null,null,null,null,null,null,null,null,null,null,"NetAOEPaid2022",0]
[null,null,null,null,null,null,null,null,null,null,null,null,null,null,null,null,"NetAOEPaid2023",0]
[null,null,null,null,null,null,null,null,null,null,null,null,null,null,null,null,{"$f":"\"NetAOEIncurred\"&$B67","v":"NetAOEIncurredPrior"},{"$f":"H67","v":0}]
[null,null,null,null,null,null,null,null,null,null,null,null,null,null,null,null,"NetAOEIncurred2014",0]
[null,null,null,null,null,null,null,null,null,null,null,null,null,null,null,null,"NetAOEIncurred2015",0]
[null,null,null,null,null,null,null,null,null,null,null,null,null,null,null,null,"NetAOEIncurred2016",0]
[null,null,null,null,null,null,null,null,null,null,null,null,null,null,null,null,"NetAOEIncurred2017",0]
[null,null,null,null,null,null,null,null,null,null,null,null,null,null,null,null,"NetAOEIncurred2018",0]
[null,null,null,null,null,null,null,null,null,null,null,null,null,null,null,null,"NetAOEIncurred2019",0]
[null,null,null,null,null,null,null,null,null,null,null,null,null,null,null,null,"NetAOEIncurred2020",0]
[null,null,null,null,null,null,null,null,null,null,null,null,null,null,null,null,"NetAOEIncurred2021",0]
[null,null,null,null,null,null,null,null,null,null,null,null,null,null,null,null,"NetAOEIncurred2022",0]
[null,null,null,null,null,null,null,null,null,null,null,null,null,null,null,null,"NetAOEIncurred2023",0]
[null,null,null,null,null,null,null,null,null,null,null,null,null,null,null,null,{"$f":"\"Commission\"&$B67","v":"CommissionPrior"},{"$f":"J67","v":0}]
[null,null,null,null,null,null,null,null,null,null,null,null,null,null,null,null,"Commission2014",0]
[null,null,null,null,null,null,null,null,null,null,null,null,null,null,null,null,"Commission2015",0]
[null,null,null,null,null,null,null,null,null,null,null,null,null,null,null,null,"Commission2016",0]
[null,null,null,null,null,null,null,null,null,null,null,null,null,null,null,null,"Commission2017",0]
[null,null,null,null,null,null,null,null,null,null,null,null,null,null,null,null,"Commission2018",0]
[null,null,null,null,null,null,null,null,null,null,null,null,null,null,null,null,"Commission2019",0]
[null,null,null,null,null,null,null,null,null,null,null,null,null,null,null,null,"Commission2020",0]
[null,null,null,null,null,null,null,null,null,null,null,null,null,null,null,null,"Commission2021",0]
[null,null,null,null,null,null,null,null,null,null,null,null,null,null,null,null,"Commission2022",0]
[null,null,null,null,null,null,null,null,null,null,null,null,null,null,null,null,"Commission2023",0]
[null,null,null,null,null,null,null,null,null,null,null,null,null,null,null,null,{"$f":"\"AcqExp\"&$B67","v":"AcqExpPrior"},{"$f":"K67","v":0}]
[null,null,null,null,null,null,null,null,null,null,null,null,null,null,null,null,"AcqExp2014",0]
[null,null,null,null,null,null,null,null,null,null,null,null,null,null,null,null,"AcqExp2015",0]
[null,null,null,null,null,null,null,null,null,null,null,null,null,null,null,null,"AcqExp2016",0]
[null,null,null,null,null,null,null,null,null,null,null,null,null,null,null,null,"AcqExp2017",0]
[null,null,null,null,null,null,null,null,null,null,null,null,null,null,null,null,"AcqExp2018",0]
[null,null,null,null,null,null,null,null,null,null,null,null,null,null,null,null,"AcqExp2019",0]
[null,null,null,null,null,null,null,null,null,null,null,null,null,null,null,null,"AcqExp2020",0]
[null,null,null,null,null,null,null,null,null,null,null,null,null,null,null,null,"AcqExp2021",0]
[null,null,null,null,null,null,null,null,null,null,null,null,null,null,null,null,"AcqExp2022",0]
[null,null,null,null,null,null,null,null,null,null,null,null,null,null,null,null,"AcqExp2023",0]
[null,null,null,null,null,null,null,null,null,null,null,null,null,null,null,null,{"$f":"\"Taxes\"&$B67","v":"TaxesPrior"},{"$f":"L67","v":0}]
[null,null,null,null,null,null,null,null,null,null,null,null,null,null,null,null,"Taxes2014",0]
[null,null,null,null,null,null,null,null,null,null,null,null,null,null,null,null,"Taxes2015",0]
[null,null,null,null,null,null,null,null,null,null,null,null,null,null,null,null,"Taxes2016",0]
[null,null,null,null,null,null,null,null,null,null,null,null,null,null,null,null,"Taxes2017",0]
[null,null,null,null,null,null,null,null,null,null,null,null,null,null,null,null,"Taxes2018",0]
[null,null,null,null,null,null,null,null,null,null,null,null,null,null,null,null,"Taxes2019",0]
[null,null,null,null,null,null,null,null,null,null,null,null,null,null,null,null,"Taxes2020",0]
[null,null,null,null,null,null,null,null,null,null,null,null,null,null,null,null,"Taxes2021",0]
[null,null,null,null,null,null,null,null,null,null,null,null,null,null,null,null,"Taxes2022",0]
[null,null,null,null,null,null,null,null,null,null,null,null,null,null,null,null,"Taxes2023",0]
[null,null,null,null,null,null,null,null,null,null,null,null,null,null,null,null,{"$f":"\"GeneralOver\"&$B67","v":"GeneralOverPrior"},{"$f":"M67","v":0}]
[null,null,null,null,null,null,null,null,null,null,null,null,null,null,null,null,"GeneralOver2014",0]
[null,null,null,null,null,null,null,null,null,null,null,null,null,null,null,null,"GeneralOver2015",0]
[null,null,null,null,null,null,null,null,null,null,null,null,null,null,null,null,"GeneralOver2016",0]
[null,null,null,null,null,null,null,null,null,null,null,null,null,null,null,null,"GeneralOver2017",0]
[null,null,null,null,null,null,null,null,null,null,null,null,null,null,null,null,"GeneralOver2018",0]
[null,null,null,null,null,null,null,null,null,null,null,null,null,null,null,null,"GeneralOver2019",0]
[null,null,null,null,null,null,null,null,null,null,null,null,null,null,null,null,"GeneralOver2020",0]
[null,null,null,null,null,null,null,null,null,null,null,null,null,null,null,null,"GeneralOver2021",0]
[null,null,null,null,null,null,null,null,null,null,null,null,null,null,null,null,"GeneralOver2022",0]
[null,null,null,null,null,null,null,null,null,null,null,null,null,null,null,null,"GeneralOver2023",0]

{"sheet":"Sch XI(a)(ii)","index":75,"n_rows":94,"n_cols":20,"rows_kept":94,"cut":false,"hidden":true,"merged":[[80,1,82,12],[5,2,5,11],[59,6,59,7],[41,2,41,11],[0,13,0,14],[2,13,2,14],[2,1,2,2],[60,6,60,7],[23,2,23,11]]}
[null,"SCHEDULE OF LOSS TRIANGLES (LINE 2 - PROPERTY)",null,null,null,null,null,null,null,null,null,null,null,{"$f":"HYPERLINK(\"#'Index'!A1\",\"Return to Index\")","v":"Return to Index"}]
[null,{"$f":"'Company Information'!C7","v":"Enter Company Name"}]
[null,{"$f":" TEXT('Company Information'!C3,\"d mmmm yyyy\")","v":"31 December 2023"},null,null,null,null,null,null,null,null,null,null,null,"SCHEDULE XI(a)(ii)"]
[null,{"$f":"\"expressed in\"& IF(1000>1,\" ['\"&MID(1000,2,LEN(1000))&\"s]\",\"\")&\" \"&'Form 1EBS'!$C$4","v":"expressed in ['000s] United States Dollars"}]
[]
[null,"Accounting Basis: ","INCURRED (ESTIMATED ULTIMATE) NET LOSSES AND ALLOCATED LOSS ADJUSTMENT EXPENSES REPORTED AT YEAR END ($000)",null,null,null,null,null,null,null,null,null,11,12,13,null,"AcctBasis",{"$f":"B7","v":"Accident Year"}]
[null,"Accident Year",null,null,null,null,null,null,null,null,null,null,"Ultimate","Development","Development",null,{"$f":"\"UltCY\"&C$10&\"AY\"&B11","v":"UltCY2014AYPrior"},{"$f":"C11","v":0},{"$f":"\"CATUltCY\"&L$10&\"AY\"&B11","v":"CATUltCY2023AYPrior"},{"$f":"M11","v":0}]
[null,"Years in Which",1,2,3,4,5,6,7,8,9,10,"Catastrophe",null,null,null,{"$f":"\"UltCY\"&C$10&\"AY\"&B12","v":"UltCY2014AY2014"},{"$f":"C12","v":0},"CATUltCY2023AY2014",0]
[null,"Losses Were",null,null,null,null,null,null,null,null,null,null,"Losses","One Year","Two Year",null,{"$f":"\"UltCY\"&D$10&\"AY\"&B11","v":"UltCY2015AYPrior"},{"$f":"D11","v":0},"CATUltCY2023AY2015",0]
[null,"Incurred",{"$f":"D10-1","v":2014},2015,2016,2017,2018,2019,2020,2021,2022,{"$f":"YEAR('Company Information'!C3)","v":2023},{"$f":"L10","v":2023},"Development","Development",null,{"$f":"\"UltCY\"&D$10&\"AY\"&B12","v":"UltCY2015AY2014"},{"$f":"D12","v":0},"CATUltCY2023AY2016",0]
["L1","Prior",{"$f":"Import!I40664","v":0},{"$f":"Import!I40666","v":0},{"$f":"Import!I40669","v":0},{"$f":"Import!I40673","v":0},{"$f":"Import!I40678","v":0},{"$f":"Import!I40684","v":0},{"$f":"Import!I40691","v":0},{"$f":"Import!I40699","v":0},{"$f":"Import!I40708","v":0},{"$f":"Import!I40718","v":0},{"$f":"Import!I40729","v":0},{"$f":"K11-L11","v":0},{"$f":"J11-L11","v":0},null,{"$f":"\"UltCY\"&D$10&\"AY\"&B13","v":"UltCY2015AY2015"},{"$f":"D13","v":0},"CATUltCY2023AY2017",0]
["L2",{"$f":"B13-1","v":2014},{"$f":"Import!I40665","v":0},{"$f":"Import!I40667","v":0},{"$f":"Import!I40670","v":0},{"$f":"Import!I40674","v":0},{"$f":"Import!I40679","v":0},{"$f":"Import!I40685","v":0},{"$f":"Import!I40692","v":0},{"$f":"Import!I40700","v":0},{"$f":"Import!I40709","v":0},{"$f":"Import!I40719","v":0},{"$f":"Import!I40730","v":0},0,0,null,{"$f":"\"UltCY\"&E$10&\"AY\"&B11","v":"UltCY2016AYPrior"},{"$f":"E11","v":0},"CATUltCY2023AY2018",0]
["L3",2015,"XXX",{"$f":"Import!I40668","v":0},{"$f":"Import!I40671","v":0},{"$f":"Import!I40675","v":0},{"$f":"Import!I40680","v":0},{"$f":"Import!I40686","v":0},{"$f":"Import!I40693","v":0},{"$f":"Import!I40701","v":0},{"$f":"Import!I40710","v":0},{"$f":"Import!I40720","v":0},{"$f":"Import!I40731","v":0},0,0,null,{"$f":"\"UltCY\"&E$10&\"AY\"&B12","v":"UltCY2016AY2014"},{"$f":"E12","v":0},"CATUltCY2023AY2019",0]
["L4",2016,"XXX","XXX",{"$f":"Import!I40672","v":0},{"$f":"Import!I40676","v":0},{"$f":"Import!I40681","v":0},{"$f":"Import!I40687","v":0},{"$f":"Import!I40694","v":0},{"$f":"Import!I40702","v":0},{"$f":"Import!I40711","v":0},{"$f":"Import!I40721","v":0},{"$f":"Import!I40732","v":0},0,0,null,{"$f":"\"UltCY\"&E$10&\"AY\"&B13","v":"UltCY2016AY2015"},{"$f":"E13","v":0},"CATUltCY2023AY2020",0]
["L5",2017,"XXX","XXX","XXX",{"$f":"Import!I40677","v":0},{"$f":"Import!I40682","v":0},{"$f":"Import!I40688","v":0},{"$f":"Import!I40695","v":0},{"$f":"Import!I40703","v":0},{"$f":"Import!I40712","v":0},{"$f":"Import!I40722","v":0},{"$f":"Import!I40733","v":0},0,0,null,{"$f":"\"UltCY\"&E$10&\"AY\"&B14","v":"UltCY2016AY2016"},{"$f":"E14","v":0},"CATUltCY2023AY2021",0]
["L6",2018,"XXX","XXX","XXX","XXX",{"$f":"Import!I40683","v":0},{"$f":"Import!I40689","v":0},{"$f":"Import!I40696","v":0},{"$f":"Import!I40704","v":0},{"$f":"Import!I40713","v":0},{"$f":"Import!I40723","v":0},{"$f":"Import!I40734","v":0},0,0,null,{"$f":"\"UltCY\"&F$10&\"AY\"&B11","v":"UltCY2017AYPrior"},{"$f":"F11","v":0},"CATUltCY2023AY2022",0]
["L7",2019,"XXX","XXX","XXX","XXX","XXX",{"$f":"Import!I40690","v":0},{"$f":"Import!I40697","v":0},{"$f":"Import!I40705","v":0},{"$f":"Import!I40714","v":0},{"$f":"Import!I40724","v":0},{"$f":"Import!I40735","v":0},0,0,null,{"$f":"\"UltCY\"&F$10&\"AY\"&B12","v":"UltCY2017AY2014"},{"$f":"F12","v":0},"CATUltCY2023AY2023",0]
["L8",2020,"XXX","XXX","XXX","XXX","XXX","XXX",{"$f":"Import!I40698","v":0},{"$f":"Import!I40706","v":0},{"$f":"Import!I40715","v":0},{"$f":"Import!I40725","v":0},{"$f":"Import!I40736","v":0},0,0,null,{"$f":"\"UltCY\"&F$10&\"AY\"&B13","v":"UltCY2017AY2015"},{"$f":"F13","v":0},{"$f":"\"CATPaidCY\"&L$10&\"AY\"&B29","v":"CATPaidCY2023AYPrior"},{"$f":"M29","v":0}]
["L9",2021,"XXX","XXX","XXX","XXX","XXX","XXX","XXX",{"$f":"Import!I40707","v":0},{"$f":"Import!I40716","v":0},{"$f":"Import!I40726","v":0},{"$f":"Import!I40737","v":0},0,0,null,{"$f":"\"UltCY\"&F$10&\"AY\"&B14","v":"UltCY2017AY2016"},{"$f":"F14","v":0},"CATPaidCY2023AY2014",0]
["L10",{"$f":"B21-1","v":2022},"XXX","XXX","XXX","XXX","XXX","XXX","XXX","XXX",{"$f":"Import!I40717","v":0},{"$f":"Import!I40727","v":0},{"$f":"Import!I40738","v":0},0,"XXX",null,{"$f":"\"UltCY\"&F$10&\"AY\"&B15","v":"UltCY2017AY2017"},{"$f":"F15","v":0},"CATPaidCY2023AY2015",0]
["L11",{"$f":"L10","v":2023},"XXX","XXX","XXX","XXX","XXX","XXX","XXX","XXX","XXX",{"$f":"Import!I40728","v":0},{"$f":"Import!I40739","v":0},"XXX","XXX",null,{"$f":"\"UltCY\"&G$10&\"AY\"&B11","v":"UltCY2018AYPrior"},{"$f":"G11","v":0},"CATPaidCY2023AY2016",0]
["L13","Totals",null,null,null,null,null,null,null,null,null,null,{"$f":"SUM(M11:M21)","v":0},{"$f":"SUM(N11:N21)","v":0},{"$f":"SUM(O11:O21)","v":0},null,{"$f":"\"UltCY\"&G$10&\"AY\"&B12","v":"UltCY2018AY2014"},{"$f":"G12","v":0},"CATPaidCY2023AY2017",0]
[null,null,null,null,null,null,null,null,null,null,null,null,null,null,null,null,{"$f":"\"UltCY\"&G$10&\"AY\"&B13","v":"UltCY2018AY2015"},{"$f":"G13","v":0},"CATPaidCY2023AY2018",0]
[null,null,"CUMULATIVE PAID NET LOSSES AND ALLOCATED LOSS ADJUSTMENT EXPENSES REPORTED AT YEAR END ($000)",null,null,null,null,null,null,null,null,null,24,null,null,null,{"$f":"\"UltCY\"&G$10&\"AY\"&B15","v":"UltCY2018AY2017"},{"$f":"G15","v":0},{"$f":"\"CATPaidCY\"&L$10&\"AY\"&B36","v":"CATPaidCY2023AY2020"},{"$f":"M36","v":0}]
[null,null,null,null,null,null,null,null,null,null,null,null,"Paid",null,null,null,{"$f":"\"UltCY\"&G$10&\"AY\"&B16","v":"UltCY2018AY2018"},{"$f":"G16","v":0},{"$f":"\"CATPaidCY\"&L$10&\"AY\"&B37","v":"CATPaidCY2023AY2021"},{"$f":"M37","v":0}]
[null,"Years in Which",14,15,16,17,18,19,20,21,22,23,"Catastrophe",null,null,null,{"$f":"\"UltCY\"&H$10&\"AY\"&B11","v":"UltCY2019AYPrior"},{"$f":"H11","v":0},{"$f":"\"CATPaidCY\"&L$10&\"AY\"&B38","v":"CATPaidCY2023AY2022"},{"$f":"M38","v":0}]
[null,"Policies Were",null,null,null,null,null,null,null,null,null,null,"Losses",null,null,null,"UltCY2019AY2014",0,{"$f":"\"CATPaidCY\"&L$10&\"AY\"&B39","v":"CATPaidCY2023AY2023"},{"$f":"M39","v":0}]
[null,"Written",{"$f":"D28-1","v":2014},2015,2016,2017,2018,2019,2020,2021,2022,{"$f":"L10","v":2023},{"$f":"L28","v":2023},null,null,null,"UltCY2019AY2015",0,{"$f":"\"CATIBNRCY\"&L$10&\"AY\"&B47","v":"CATIBNRCY2023AYPrior"},{"$f":"M47","v":0}]
["L14","Prior",{"$f":"Import!I40740","v":0},{"$f":"Import!I40742","v":0},{"$f":"Import!I40745","v":0},{"$f":"Import!I40749","v":0},{"$f":"Import!I40754","v":0},{"$f":"Import!I40760","v":0},{"$f":"Import!I40767","v":0},{"$f":"Import!I40775","v":0},{"$f":"Import!I40784","v":0},{"$f":"Import!I40794","v":0},{"$f":"Import!I40805","v":0},null,null,null,"UltCY2019AY2016",0,"CATIBNRCY2023AY2014",0]
["L15",{"$f":"B31-1","v":2014},{"$f":"Import!I40741","v":0},{"$f":"Import!I40743","v":0},{"$f":"Import!I40746","v":0},{"$f":"Import!I40750","v":0},{"$f":"Import!I40755","v":0},{"$f":"Import!I40761","v":0},{"$f":"Import!I40768","v":0},{"$f":"Import!I40776","v":0},{"$f":"Import!I40785","v":0},{"$f":"Import!I40795","v":0},{"$f":"Import!I40806","v":0},null,null,null,"UltCY2019AY2017",0,"CATIBNRCY2023AY2015",0]
["L16",2015,"XXX",{"$f":"Import!I40744","v":0},{"$f":"Import!I40747","v":0},{"$f":"Import!I40751","v":0},{"$f":"Import!I40756","v":0},{"$f":"Import!I40762","v":0},{"$f":"Import!I40769","v":0},{"$f":"Import!I40777","v":0},{"$f":"Import!I40786","v":0},{"$f":"Import!I40796","v":0},{"$f":"Import!I40807","v":0},null,null,null,"UltCY2019AY2018",0,"CATIBNRCY2023AY2016",0]
["L17",2016,"XXX","XXX",{"$f":"Import!I40748","v":0},{"$f":"Import!I40752","v":0},{"$f":"Import!I40757","v":0},{"$f":"Import!I40763","v":0},{"$f":"Import!I40770","v":0},{"$f":"Import!I40778","v":0},{"$f":"Import!I40787","v":0},{"$f":"Import!I40797","v":0},{"$f":"Import!I40808","v":0},null,null,null,"UltCY2019AY2019",0,"CATIBNRCY2023AY2017",0]
["L18",2017,"XXX","XXX","XXX",{"$f":"Import!I40753","v":0},{"$f":"Import!I40758","v":0},{"$f":"Import!I40764","v":0},{"$f":"Import!I40771","v":0},{"$f":"Import!I40779","v":0},{"$f":"Import!I40788","v":0},{"$f":"Import!I40798","v":0},{"$f":"Import!I40809","v":0},null,null,null,{"$f":"\"UltCY\"&I$10&\"AY\"&B11","v":"UltCY2020AYPrior"},{"$f":"I11","v":0},"CATIBNRCY2023AY2018",0]
["L19",2018,"XXX","XXX","XXX","XXX",{"$f":"Import!I40759","v":0},{"$f":"Import!I40765","v":0},{"$f":"Import!I40772","v":0},{"$f":"Import!I40780","v":0},{"$f":"Import!I40789","v":0},{"$f":"Import!I40799","v":0},{"$f":"Import!I40810","v":0},null,null,null,"UltCY2020AY2014",0,"CATIBNRCY2023AY2019",0]
["L20",2019,"XXX","XXX","XXX","XXX","XXX",{"$f":"Import!I40766","v":0},{"$f":"Import!I40773","v":0},{"$f":"Import!I40781","v":0},{"$f":"Import!I40790","v":0},{"$f":"Import!I40800","v":0},{"$f":"Import!I40811","v":0},null,null,null,"UltCY2020AY2015",0,"CATIBNRCY2023AY2020",0]
["L21",2020,"XXX","XXX","XXX","XXX","XXX","XXX",{"$f":"Import!I40774","v":0},{"$f":"Import!I40782","v":0},{"$f":"Import!I40791","v":0},{"$f":"Import!I40801","v":0},{"$f":"Import!I40812","v":0},null,null,null,"UltCY2020AY2016",0,"CATIBNRCY2023AY2021",0]
["L22",2021,"XXX","XXX","XXX","XXX","XXX","XXX","XXX",{"$f":"Import!I40783","v":0},{"$f":"Import!I40792","v":0},{"$f":"Import!I40802","v":0},{"$f":"Import!I40813","v":0},null,null,null,"UltCY2020AY2017",0,"CATIBNRCY2023AY2022",0]
["L23",2022,"XXX","XXX","XXX","XXX","XXX","XXX","XXX","XXX",{"$f":"Import!I40793","v":0},{"$f":"Import!I40803","v":0},{"$f":"Import!I40814","v":0},null,null,null,"UltCY2020AY2018",0,"CATIBNRCY2023AY2023",0]
["L24",{"$f":"L28","v":2023},"XXX","XXX","XXX","XXX","XXX","XXX","XXX","XXX","XXX",{"$f":"Import!I40804","v":0},{"$f":"Import!I40815","v":0},null,null,null,"UltCY2020AY2019",0]
["L25","Totals",null,null,null,null,null,null,null,null,null,null,{"$f":"SUM(M29:M39)","v":0},null,null,null,"UltCY2020AY2020",0]
[null,null,null,null,null,null,null,null,null,null,null,null,null,null,null,null,{"$f":"\"UltCY\"&J$10&\"AY\"&B11","v":"UltCY2021AYPrior"},{"$f":"J11","v":0}]
[null,null,"BULK & IBNR RESERVES ON NET LOSSES AND ALLOCATED LOSS ADJUSTMENT EXPENSES REPORTED AT YEAR END ($000)",null,null,null,null,null,null,null,null,null,35,null,null,null,{"$f":"\"UltCY\"&J$10&\"AY\"&B13","v":"UltCY2021AY2015"},{"$f":"J13","v":0}]
[null,null,null,null,null,null,null,null,null,null,null,null,"Losses",null,null,null,"UltCY2021AY2016",0]
[null,"Years in Which",25,26,27,28,29,30,31,32,33,34,"Bulk & IBNR",null,null,null,"UltCY2021AY2017",0]
[null,"Policies Were",null,null,null,null,null,null,null,null,null,null,"Reserves",null,null,null,"UltCY2021AY2018",0]
[null,"Written",{"$f":"D46-1","v":2014},2015,2016,2017,2018,2019,2020,2021,2022,{"$f":"L28","v":2023},{"$f":"L46","v":2023},null,null,null,"UltCY2021AY2019",0]
["L26","Prior",{"$f":"Import!I40816","v":0},{"$f":"Import!I40818","v":0},{"$f":"Import!I40821","v":0},{"$f":"Import!I40825","v":0},{"$f":"Import!I40830","v":0},{"$f":"Import!I40836","v":0},{"$f":"Import!I40843","v":0},{"$f":"Import!I40851","v":0},{"$f":"Import!I40860","v":0},{"$f":"Import!I40870","v":0},{"$f":"Import!I40881","v":0},null,null,null,"UltCY2021AY2020",0]
["L27",{"$f":"B49-1","v":2014},{"$f":"Import!I40817","v":0},{"$f":"Import!I40819","v":0},{"$f":"Import!I40822","v":0},{"$f":"Import!I40826","v":0},{"$f":"Import!I40831","v":0},{"$f":"Import!I40837","v":0},{"$f":"Import!I40844","v":0},{"$f":"Import!I40852","v":0},{"$f":"Import!I40861","v":0},{"$f":"Import!I40871","v":0},{"$f":"Import!I40882","v":0},null,null,null,"UltCY2021AY2021",0]
["L28",2015,"XXX",{"$f":"Import!I40820","v":0},{"$f":"Import!I40823","v":0},{"$f":"Import!I40827","v":0},{"$f":"Import!I40832","v":0},{"$f":"Import!I40838","v":0},{"$f":"Import!I40845","v":0},{"$f":"Import!I40853","v":0},{"$f":"Import!I40862","v":0},{"$f":"Import!I40872","v":0},{"$f":"Import!I40883","v":0},null,null,null,{"$f":"\"UltCY\"&K$10&\"AY\"&B11","v":"UltCY2022AYPrior"},{"$f":"K11","v":0}]
["L29",2016,"XXX","XXX",{"$f":"Import!I40824","v":0},{"$f":"Import!I40828","v":0},{"$f":"Import!I40833","v":0},{"$f":"Import!I40839","v":0},{"$f":"Import!I40846","v":0},{"$f":"Import!I40854","v":0},{"$f":"Import!I40863","v":0},{"$f":"Import!I40873","v":0},{"$f":"Import!I40884","v":0},null,null,null,"UltCY2022AY2014",0]
["L30",2017,"XXX","XXX","XXX",{"$f":"Import!I40829","v":0},{"$f":"Import!I40834","v":0},{"$f":"Import!I40840","v":0},{"$f":"Import!I40847","v":0},{"$f":"Import!I40855","v":0},{"$f":"Import!I40864","v":0},{"$f":"Import!I40874","v":0},{"$f":"Import!I40885","v":0},null,null,null,"UltCY2022AY2015",0]
["L31",2018,"XXX","XXX","XXX","XXX",{"$f":"Import!I40835","v":0},{"$f":"Import!I40841","v":0},{"$f":"Import!I40848","v":0},{"$f":"Import!I40856","v":0},{"$f":"Import!I40865","v":0},{"$f":"Import!I40875","v":0},{"$f":"Import!I40886","v":0},null,null,null,"UltCY2022AY2016",0]
["L32",2019,"XXX","XXX","XXX","XXX","XXX",{"$f":"Import!I40842","v":0},{"$f":"Import!I40849","v":0},{"$f":"Import!I40857","v":0},{"$f":"Import!I40866","v":0},{"$f":"Import!I40876","v":0},{"$f":"Import!I40887","v":0},null,null,null,"UltCY2022AY2017",0]
["L33",2020,"XXX","XXX","XXX","XXX","XXX","XXX",{"$f":"Import!I40850","v":0},{"$f":"Import!I40858","v":0},{"$f":"Import!I40867","v":0},{"$f":"Import!I40877","v":0},{"$f":"Import!I40888","v":0},null,null,null,"UltCY2022AY2018",0]
["L34",2021,"XXX","XXX","XXX","XXX","XXX","XXX","XXX",{"$f":"Import!I40859","v":0},{"$f":"Import!I40868","v":0},{"$f":"Import!I40878","v":0},{"$f":"Import!I40889","v":0},null,null,null,"UltCY2022AY2019",0]
["L35",2022,"XXX","XXX","XXX","XXX","XXX","XXX","XXX","XXX",{"$f":"Import!I40869","v":0},{"$f":"Import!I40879","v":0},{"$f":"Import!I40890","v":0},null,null,null,"UltCY2022AY2020",0]
["L36",{"$f":"L46","v":2023},"XXX","XXX","XXX","XXX","XXX","XXX","XXX","XXX","XXX",{"$f":"Import!I40880","v":0},{"$f":"Import!I40891","v":0},null,null,null,"UltCY2022AY2021",0]
["L38","Totals",null,null,null,null,null,null,null,null,null,null,{"$f":"SUM(M47:M57)","v":0},null,null,null,"UltCY2022AY2022",0]
[null,null,null,null,null,null,null,null,null,null,null,null,null,null,null,null,{"$f":"\"UltCY\"&L$10&\"AY\"&B11","v":"UltCY2023AYPrior"},{"$f":"L11","v":0}]
[null,null,36,37,38,39,"Unallocated Loss",null,null,42,43,44,45,null,null,null,{"$f":"\"UltCY\"&L$10&\"AY\"&B13","v":"UltCY2023AY2015"},{"$f":"L13","v":0}]
[null,"Years in Which",null,null,null,null,"Adjustment Expenses",null,null,null,null,null,null,null,null,null,"UltCY2023AY2016",0]
[null,"Premiums",null,null,null,null,40,41,null,null,null,null,null,null,null,null,"UltCY2023AY2017",0]
[null,"Were",null,null,null,null,null,null,null,"Commission and","General and",null,null,null,null,null,"UltCY2023AY2018",0]
[null,"Earned and","Gross","Gross","Net","Net",null,null,null,"Brokerage","Administrative","Personnel","Other",null,null,null,"UltCY2023AY2019",0]
[null,"Losses Were","Premiums","Premiums","Premiums","Premiums",null,null,"Calendar","Expense","Expense","Costs","Expense",null,null,null,"UltCY2023AY2020",0]
[null,"Incurred","Written","Earned","Written","Earned","Paid","Incurred","Year","(Form 2A, Line 9)","(Form 2A, Line 10)","(Form 2A, Line 11)","(Form 2A, Line 12)",null,null,null,"UltCY2023AY2021",0]
["L39","Prior","XXX",{"$f":"C67","v":"XXX"},"XXX",{"$f":"E67","v":"XXX"},{"$f":"Import!I40936","v":0},{"$f":"Import!I40947","v":0},"Prior",{"$f":"Import!I40958","v":0},{"$f":"Import!I40969","v":0},{"$f":"Import!I40980","v":0},{"$f":"Import!I40991","v":0},null,null,null,"UltCY2023AY2022",0]
["L40",{"$f":"B69-1","v":2014},{"$f":"Import!I40893","v":0},{"$f":"Import!I40904","v":0},{"$f":"Import!I40915","v":0},{"$f":"Import!I40926","v":0},{"$f":"Import!I40937","v":0},{"$f":"Import!I40948","v":0},{"$f":"B68","v":2014},{"$f":"Import!I40959","v":0},{"$f":"Import!I40970","v":0},{"$f":"Import!I40981","v":0},{"$f":"Import!I40992","v":0},null,null,null,"UltCY2023AY2023",0]
["L41",2015,{"$f":"Import!I40894","v":0},{"$f":"Import!I40905","v":0},{"$f":"Import!I40916","v":0},{"$f":"Import!I40927","v":0},{"$f":"Import!I40938","v":0},{"$f":"Import!I40949","v":0},2015,{"$f":"Import!I40960","v":0},{"$f":"Import!I40971","v":0},{"$f":"Import!I40982","v":0},{"$f":"Import!I40993","v":0},null,null,null,{"$f":"\"PaidCY\"&C$10&\"AY\"&B29","v":"PaidCY2014AYPrior"},{"$f":"C29","v":0}]
["L42",2016,{"$f":"Import!I40895","v":0},{"$f":"Import!I40906","v":0},{"$f":"Import!I40917","v":0},{"$f":"Import!I40928","v":0},{"$f":"Import!I40939","v":0},{"$f":"Import!I40950","v":0},2016,{"$f":"Import!I40961","v":0},{"$f":"Import!I40972","v":0},{"$f":"Import!I40983","v":0},{"$f":"Import!I40994","v":0},null,null,null,{"$f":"\"PaidCY\"&C$10&\"AY\"&B30","v":"PaidCY2014AY2014"},{"$f":"C30","v":0}]
["L43",2017,{"$f":"Import!I40896","v":0},{"$f":"Import!I40907","v":0},{"$f":"Import!I40918","v":0},{"$f":"Import!I40929","v":0},{"$f":"Import!I40940","v":0},{"$f":"Import!I40951","v":0},2017,{"$f":"Import!I40962","v":0},{"$f":"Import!I40973","v":0},{"$f":"Import!I40984","v":0},{"$f":"Import!I40995","v":0},null,null,null,{"$f":"\"PaidCY\"&D$10&\"AY\"&B29","v":"PaidCY2015AYPrior"},{"$f":"D29","v":0}]
["L44",2018,{"$f":"Import!I40897","v":0},{"$f":"Import!I40908","v":0},{"$f":"Import!I40919","v":0},{"$f":"Import!I40930","v":0},{"$f":"Import!I40941","v":0},{"$f":"Import!I40952","v":0},2018,{"$f":"Import!I40963","v":0},{"$f":"Import!I40974","v":0},{"$f":"Import!I40985","v":0},{"$f":"Import!I40996","v":0},null,null,null,{"$f":"\"PaidCY\"&D$10&\"AY\"&B30","v":"PaidCY2015AY2014"},{"$f":"D30","v":0}]
["L45",2019,{"$f":"Import!I40898","v":0},{"$f":"Import!I40909","v":0},{"$f":"Import!I40920","v":0},{"$f":"Import!I40931","v":0},{"$f":"Import!I40942","v":0},{"$f":"Import!I40953","v":0},2019,{"$f":"Import!I40964","v":0},{"$f":"Import!I40975","v":0},{"$f":"Import!I40986","v":0},{"$f":"Import!I40997","v":0},null,null,null,{"$f":"\"PaidCY\"&D$10&\"AY\"&B31","v":"PaidCY2015AY2015"},{"$f":"D31","v":0}]
["L46",2020,{"$f":"Import!I40899","v":0},{"$f":"Import!I40910","v":0},{"$f":"Import!I40921","v":0},{"$f":"Import!I40932","v":0},{"$f":"Import!I40943","v":0},{"$f":"Import!I40954","v":0},2020,{"$f":"Import!I40965","v":0},{"$f":"Import!I40976","v":0},{"$f":"Import!I40987","v":0},{"$f":"Import!I40998","v":0},null,null,null,{"$f":"\"PaidCY\"&E$10&\"AY\"&B29","v":"PaidCY2016AYPrior"},{"$f":"E29","v":0}]
["L47",2021,{"$f":"Import!I40900","v":0},{"$f":"Import!I40911","v":0},{"$f":"Import!I40922","v":0},{"$f":"Import!I40933","v":0},{"$f":"Import!I40944","v":0},{"$f":"Import!I40955","v":0},2021,{"$f":"Import!I40966","v":0},{"$f":"Import!I40977","v":0},{"$f":"Import!I40988","v":0},{"$f":"Import!I40999","v":0},null,null,null,{"$f":"\"PaidCY\"&E$10&\"AY\"&B30","v":"PaidCY2016AY2014"},{"$f":"E30","v":0}]
["L48",2022,{"$f":"Import!I40901","v":0},{"$f":"Import!I40912","v":0},{"$f":"Import!I40923","v":0},{"$f":"Import!I40934","v":0},{"$f":"Import!I40945","v":0},{"$f":"Import!I40956","v":0},2022,{"$f":"Import!I40967","v":0},{"$f":"Import!I40978","v":0},{"$f":"Import!I40989","v":0},{"$f":"Import!I41000","v":0},null,null,null,{"$f":"\"PaidCY\"&E$10&\"AY\"&B31","v":"PaidCY2016AY2015"},{"$f":"E31","v":0}]
["L49",{"$f":"B39","v":2023},{"$f":"Import!I40902","v":0},{"$f":"Import!I40913","v":0},{"$f":"Import!I40924","v":0},{"$f":"Import!I40935","v":0},{"$f":"Import!I40946","v":0},{"$f":"Import!I40957","v":0},2023,{"$f":"Import!I40968","v":0},{"$f":"Import!I40979","v":0},{"$f":"Import!I40990","v":0},{"$f":"Import!I41001","v":0},null,null,null,{"$f":"\"PaidCY\"&E$10&\"AY\"&B32","v":"PaidCY2016AY2016"},{"$f":"E32","v":0}]
["L51","Totals","XXX",{"$f":"C78","v":"XXX"},"XXX",{"$f":"E78","v":"XXX"},{"$f":"SUM(G67:G77)","v":0},{"$f":"SUM(H67:H77)","v":0},"Totals",{"$f":"SUM(J67:J77)","v":0},{"$f":"SUM(K67:K77)","v":0},{"$f":"SUM(L67:L77)","v":0},{"$f":"SUM(M67:M77)","v":0},null,null,null,{"$f":"\"PaidCY\"&F$10&\"AY\"&B29","v":"PaidCY2017AYPrior"},{"$f":"F29","v":0}]
[null,null,null,null,null,null,null,null,null,null,null,null,null,null,null,null,{"$f":"\"PaidCY\"&F$10&\"AY\"&B30","v":"PaidCY2017AY2014"},{"$f":"F30","v":0}]
[null,"COMMENTS",null,null,null,null,null,null,null,null,null,null,null,null,null,null,{"$f":"\"PaidCY\"&F$10&\"AY\"&B31","v":"PaidCY2017AY2015"},{"$f":"F31","v":0}]
[null,{"$f":"Import!I41002","v":0},null,null,null,null,null,null,null,null,null,null,null,null,null,null,{"$f":"\"PaidCY\"&G$10&\"AY\"&B30","v":"PaidCY2018AY2014"},{"$f":"G30","v":0}]
[null,null,null,null,null,null,null,null,null,null,null,null,null,null,null,null,{"$f":"\"PaidCY\"&G$10&\"AY\"&B31","v":"PaidCY2018AY2015"},{"$f":"G31","v":0}]
[null,null,null,null,null,null,null,null,null,null,null,null,null,null,null,null,{"$f":"\"PaidCY\"&G$10&\"AY\"&B32","v":"PaidCY2018AY2016"},{"$f":"G32","v":0}]
[null,null,null,null,null,null,null,null,null,null,null,null,null,null,null,null,{"$f":"\"PaidCY\"&G$10&\"AY\"&B34","v":"PaidCY2018AY2018"},{"$f":"G34","v":0}]
[]
[]
[]
[]
[]
[null,null,null,"Accident Year",null,null,null,null,null,null,null,null,null,null,null,null,{"$f":"\"PaidCY\"&H$10&\"AY\"&B34","v":"PaidCY2019AY2018"},{"$f":"H34","v":0}]
[null,null,null,"Underwriting Year",null,null,null,null,null,null,null,null,null,null,null,null,"PaidCY2019AY2019",0]
[null,null,null,null,null,null,null,null,null,null,null,null,null,null,null,null,{"$f":"\"PaidCY\"&I$10&\"AY\"&B29","v":"PaidCY2020AYPrior"},{"$f":"I29","v":0}]
[null,null,null,null,null,null,null,null,null,null,null,null,null,null,null,null,"PaidCY2020AY2014",0]
[null,null,null,null,null,null,null,null,null,null,null,null,null,null,null,null,"PaidCY2020AY2015",0]

{"sheet":"Sch XI(a)(iii)","index":76,"n_rows":91,"n_cols":20,"rows_kept":91,"cut":false,"hidden":true,"merged":[[80,1,82,12],[5,2,5,11],[59,6,59,7],[41,2,41,11],[0,13,0,14],[2,13,2,14],[2,1,2,2],[60,6,60,7],[23,2,23,11]]}
[null,"SCHEDULE OF LOSS TRIANGLES (LINE 3 - PROPERTY NON-PROPORTIONAL)",null,null,null,null,null,null,null,null,null,null,null,{"$f":"HYPERLINK(\"#'Index'!A1\",\"Return to Index\")","v":"Return to Index"}]
[null,{"$f":"'Company Information'!C7","v":"Enter Company Name"}]
[null,{"$f":" TEXT('Company Information'!C3,\"d mmmm yyyy\")","v":"31 December 2023"},null,null,null,null,null,null,null,null,null,null,null,"SCHEDULE XI(a)(iii)"]
[null,{"$f":"\"expressed in\"& IF(1000>1,\" ['\"&MID(1000,2,LEN(1000))&\"s]\",\"\")&\" \"&'Form 1EBS'!$C$4","v":"expressed in ['000s] United States Dollars"}]
[]
[null,"Accounting Basis: *","INCURRED (ESTIMATED ULTIMATE) NET LOSSES AND ALLOCATED LOSS ADJUSTMENT EXPENSES REPORTED AT YEAR END ($000)",null,null,null,null,null,null,null,null,null,11,12,13,null,"AcctBasis",{"$f":"B7","v":"Accident Year"}]
[null,"Accident Year",null,null,null,null,null,null,null,null,null,null,"Ultimate","Development","Development",null,{"$f":"\"UltCY\"&C$10&\"AY\"&B11","v":"UltCY2014AYPrior"},{"$f":"C11","v":0},{"$f":"\"CATUltCY\"&L$10&\"AY\"&B11","v":"CATUltCY2023AYPrior"},{"$f":"M11","v":0}]
[null,"Years in Which",1,2,3,4,5,6,7,8,9,10,"Catastrophe",null,null,null,{"$f":"\"UltCY\"&C$10&\"AY\"&B12","v":"UltCY2014AY2014"},{"$f":"C12","v":0},"CATUltCY2023AY2014",0]
[null,"Losses Were",null,null,null,null,null,null,null,null,null,null,"Losses","One Year","Two Year",null,{"$f":"\"UltCY\"&D$10&\"AY\"&B11","v":"UltCY2015AYPrior"},{"$f":"D11","v":0},"CATUltCY2023AY2015",0]
[null,"Incurred",{"$f":"D10-1","v":2014},2015,2016,2017,2018,2019,2020,2021,2022,{"$f":"YEAR('Company Information'!C3)","v":2023},{"$f":"L10","v":2023},"Development","Development",null,{"$f":"\"UltCY\"&D$10&\"AY\"&B12","v":"UltCY2015AY2014"},{"$f":"D12","v":0},"CATUltCY2023AY2016",0]
["L1","Prior",{"$f":"Import!I41003","v":0},{"$f":"Import!I41005","v":0},{"$f":"Import!I41008","v":0},{"$f":"Import!I41012","v":0},{"$f":"Import!I41017","v":0},{"$f":"Import!I41023","v":0},{"$f":"Import!I41030","v":0},{"$f":"Import!I41038","v":0},{"$f":"Import!I41047","v":0},{"$f":"Import!I41057","v":0},{"$f":"Import!I41068","v":0},{"$f":"K11-L11","v":0},{"$f":"J11-L11","v":0},null,{"$f":"\"UltCY\"&D$10&\"AY\"&B13","v":"UltCY2015AY2015"},{"$f":"D13","v":0},"CATUltCY2023AY2017",0]
["L2",{"$f":"B13-1","v":2014},{"$f":"Import!I41004","v":0},{"$f":"Import!I41006","v":0},{"$f":"Import!I41009","v":0},{"$f":"Import!I41013","v":0},{"$f":"Import!I41018","v":0},{"$f":"Import!I41024","v":0},{"$f":"Import!I41031","v":0},{"$f":"Import!I41039","v":0},{"$f":"Import!I41048","v":0},{"$f":"Import!I41058","v":0},{"$f":"Import!I41069","v":0},0,0,null,{"$f":"\"UltCY\"&E$10&\"AY\"&B11","v":"UltCY2016AYPrior"},{"$f":"E11","v":0},"CATUltCY2023AY2018",0]
["L3",2015,"XXX",{"$f":"Import!I41007","v":0},{"$f":"Import!I41010","v":0},{"$f":"Import!I41014","v":0},{"$f":"Import!I41019","v":0},{"$f":"Import!I41025","v":0},{"$f":"Import!I41032","v":0},{"$f":"Import!I41040","v":0},{"$f":"Import!I41049","v":0},{"$f":"Import!I41059","v":0},{"$f":"Import!I41070","v":0},0,0,null,{"$f":"\"UltCY\"&E$10&\"AY\"&B12","v":"UltCY2016AY2014"},{"$f":"E12","v":0},"CATUltCY2023AY2019",0]
["L4",2016,"XXX","XXX",{"$f":"Import!I41011","v":0},{"$f":"Import!I41015","v":0},{"$f":"Import!I41020","v":0},{"$f":"Import!I41026","v":0},{"$f":"Import!I41033","v":0},{"$f":"Import!I41041","v":0},{"$f":"Import!I41050","v":0},{"$f":"Import!I41060","v":0},{"$f":"Import!I41071","v":0},0,0,null,{"$f":"\"UltCY\"&E$10&\"AY\"&B13","v":"UltCY2016AY2015"},{"$f":"E13","v":0},"CATUltCY2023AY2020",0]
["L5",2017,"XXX","XXX","XXX",{"$f":"Import!I41016","v":0},{"$f":"Import!I41021","v":0},{"$f":"Import!I41027","v":0},{"$f":"Import!I41034","v":0},{"$f":"Import!I41042","v":0},{"$f":"Import!I41051","v":0},{"$f":"Import!I41061","v":0},{"$f":"Import!I41072","v":0},0,0,null,{"$f":"\"UltCY\"&E$10&\"AY\"&B14","v":"UltCY2016AY2016"},{"$f":"E14","v":0},"CATUltCY2023AY2021",0]
["L6",2018,"XXX","XXX","XXX","XXX",{"$f":"Import!I41022","v":0},{"$f":"Import!I41028","v":0},{"$f":"Import!I41035","v":0},{"$f":"Import!I41043","v":0},{"$f":"Import!I41052","v":0},{"$f":"Import!I41062","v":0},{"$f":"Import!I41073","v":0},0,0,null,{"$f":"\"UltCY\"&F$10&\"AY\"&B11","v":"UltCY2017AYPrior"},{"$f":"F11","v":0},"CATUltCY2023AY2022",0]
["L7",2019,"XXX","XXX","XXX","XXX","XXX",{"$f":"Import!I41029","v":0},{"$f":"Import!I41036","v":0},{"$f":"Import!I41044","v":0},{"$f":"Import!I41053","v":0},{"$f":"Import!I41063","v":0},{"$f":"Import!I41074","v":0},0,0,null,{"$f":"\"UltCY\"&F$10&\"AY\"&B12","v":"UltCY2017AY2014"},{"$f":"F12","v":0},"CATUltCY2023AY2023",0]
["L8",2020,"XXX","XXX","XXX","XXX","XXX","XXX",{"$f":"Import!I41037","v":0},{"$f":"Import!I41045","v":0},{"$f":"Import!I41054","v":0},{"$f":"Import!I41064","v":0},{"$f":"Import!I41075","v":0},0,0,null,{"$f":"\"UltCY\"&F$10&\"AY\"&B13","v":"UltCY2017AY2015"},{"$f":"F13","v":0},{"$f":"\"CATPaidCY\"&L$10&\"AY\"&B29","v":"CATPaidCY2023AYPrior"},{"$f":"M29","v":0}]
["L9",2021,"XXX","XXX","XXX","XXX","XXX","XXX","XXX",{"$f":"Import!I41046","v":0},{"$f":"Import!I41055","v":0},{"$f":"Import!I41065","v":0},{"$f":"Import!I41076","v":0},0,0,null,{"$f":"\"UltCY\"&F$10&\"AY\"&B14","v":"UltCY2017AY2016"},{"$f":"F14","v":0},"CATPaidCY2023AY2014",0]
["L10",2022,"XXX","XXX","XXX","XXX","XXX","XXX","XXX","XXX",{"$f":"Import!I41056","v":0},{"$f":"Import!I41066","v":0},{"$f":"Import!I41077","v":0},0,"XXX",null,{"$f":"\"UltCY\"&F$10&\"AY\"&B15","v":"UltCY2017AY2017"},{"$f":"F15","v":0},"CATPaidCY2023AY2015",0]
["L11",{"$f":"L10","v":2023},"XXX","XXX","XXX","XXX","XXX","XXX","XXX","XXX","XXX",{"$f":"Import!I41067","v":0},{"$f":"Import!I41078","v":0},"XXX","XXX",null,{"$f":"\"UltCY\"&G$10&\"AY\"&B11","v":"UltCY2018AYPrior"},{"$f":"G11","v":0},"CATPaidCY2023AY2016",0]
["L12","Totals",null,null,null,null,null,null,null,null,null,null,{"$f":"SUM(M11:M21)","v":0},{"$f":"SUM(N11:N21)","v":0},{"$f":"SUM(O11:O21)","v":0},null,{"$f":"\"UltCY\"&G$10&\"AY\"&B12","v":"UltCY2018AY2014"},{"$f":"G12","v":0},"CATPaidCY2023AY2017",0]
[null,null,null,null,null,null,null,null,null,null,null,null,null,null,null,null,{"$f":"\"UltCY\"&G$10&\"AY\"&B13","v":"UltCY2018AY2015"},{"$f":"G13","v":0},"CATPaidCY2023AY2018",0]
[null,null,"CUMULATIVE PAID NET LOSSES AND ALLOCATED LOSS ADJUSTMENT EXPENSES REPORTED AT YEAR END ($000)",null,null,null,null,null,null,null,null,null,24,null,null,null,{"$f":"\"UltCY\"&G$10&\"AY\"&B15","v":"UltCY2018AY2017"},{"$f":"G15","v":0},{"$f":"\"CATPaidCY\"&L$10&\"AY\"&B36","v":"CATPaidCY2023AY2020"},{"$f":"M36","v":0}]
[null,null,null,null,null,null,null,null,null,null,null,null,"Paid",null,null,null,{"$f":"\"UltCY\"&G$10&\"AY\"&B16","v":"UltCY2018AY2018"},{"$f":"G16","v":0},{"$f":"\"CATPaidCY\"&L$10&\"AY\"&B37","v":"CATPaidCY2023AY2021"},{"$f":"M37","v":0}]
[null,"Years in Which",14,15,16,17,18,19,20,21,22,23,"Catastrophe",null,null,null,{"$f":"\"UltCY\"&H$10&\"AY\"&B11","v":"UltCY2019AYPrior"},{"$f":"H11","v":0},{"$f":"\"CATPaidCY\"&L$10&\"AY\"&B38","v":"CATPaidCY2023AY2022"},{"$f":"M38","v":0}]
[null,"Policies Were",null,null,null,null,null,null,null,null,null,null,"Losses",null,null,null,"UltCY2019AY2014",0,{"$f":"\"CATPaidCY\"&L$10&\"AY\"&B39","v":"CATPaidCY2023AY2023"},{"$f":"M39","v":0}]
[null,"Written",{"$f":"D28-1","v":2014},2015,2016,2017,2018,2019,2020,2021,2022,{"$f":"L10","v":2023},{"$f":"L28","v":2023},null,null,null,"UltCY2019AY2015",0,{"$f":"\"CATIBNRCY\"&L$10&\"AY\"&B47","v":"CATIBNRCY2023AYPrior"},{"$f":"M47","v":0}]
["L13","Prior",{"$f":"Import!I41079","v":0},{"$f":"Import!I41081","v":0},{"$f":"Import!I41084","v":0},{"$f":"Import!I41088","v":0},{"$f":"Import!I41093","v":0},{"$f":"Import!I41099","v":0},{"$f":"Import!I41106","v":0},{"$f":"Import!I41114","v":0},{"$f":"Import!I41123","v":0},{"$f":"Import!I41133","v":0},{"$f":"Import!I41144","v":0},null,null,null,"UltCY2019AY2016",0,"CATIBNRCY2023AY2014",0]
["L14",{"$f":"B31-1","v":2014},{"$f":"Import!I41080","v":0},{"$f":"Import!I41082","v":0},{"$f":"Import!I41085","v":0},{"$f":"Import!I41089","v":0},{"$f":"Import!I41094","v":0},{"$f":"Import!I41100","v":0},{"$f":"Import!I41107","v":0},{"$f":"Import!I41115","v":0},{"$f":"Import!I41124","v":0},{"$f":"Import!I41134","v":0},{"$f":"Import!I41145","v":0},null,null,null,"UltCY2019AY2017",0,"CATIBNRCY2023AY2015",0]
["L15",2015,"XXX",{"$f":"Import!I41083","v":0},{"$f":"Import!I41086","v":0},{"$f":"Import!I41090","v":0},{"$f":"Import!I41095","v":0},{"$f":"Import!I41101","v":0},{"$f":"Import!I41108","v":0},{"$f":"Import!I41116","v":0},{"$f":"Import!I41125","v":0},{"$f":"Import!I41135","v":0},{"$f":"Import!I41146","v":0},null,null,null,"UltCY2019AY2018",0,"CATIBNRCY2023AY2016",0]
["L16",2016,"XXX","XXX",{"$f":"Import!I41087","v":0},{"$f":"Import!I41091","v":0},{"$f":"Import!I41096","v":0},{"$f":"Import!I41102","v":0},{"$f":"Import!I41109","v":0},{"$f":"Import!I41117","v":0},{"$f":"Import!I41126","v":0},{"$f":"Import!I41136","v":0},{"$f":"Import!I41147","v":0},null,null,null,"UltCY2019AY2019",0,"CATIBNRCY2023AY2017",0]
["L17",2017,"XXX","XXX","XXX",{"$f":"Import!I41092","v":0},{"$f":"Import!I41097","v":0},{"$f":"Import!I41103","v":0},{"$f":"Import!I41110","v":0},{"$f":"Import!I41118","v":0},{"$f":"Import!I41127","v":0},{"$f":"Import!I41137","v":0},{"$f":"Import!I41148","v":0},null,null,null,{"$f":"\"UltCY\"&I$10&\"AY\"&B11","v":"UltCY2020AYPrior"},{"$f":"I11","v":0},"CATIBNRCY2023AY2018",0]
["L18",2018,"XXX","XXX","XXX","XXX",{"$f":"Import!I41098","v":0},{"$f":"Import!I41104","v":0},{"$f":"Import!I41111","v":0},{"$f":"Import!I41119","v":0},{"$f":"Import!I41128","v":0},{"$f":"Import!I41138","v":0},{"$f":"Import!I41149","v":0},null,null,null,"UltCY2020AY2014",0,"CATIBNRCY2023AY2019",0]
["L19",2019,"XXX","XXX","XXX","XXX","XXX",{"$f":"Import!I41105","v":0},{"$f":"Import!I41112","v":0},{"$f":"Import!I41120","v":0},{"$f":"Import!I41129","v":0},{"$f":"Import!I41139","v":0},{"$f":"Import!I41150","v":0},null,null,null,"UltCY2020AY2015",0,"CATIBNRCY2023AY2020",0]
["L20",2020,"XXX","XXX","XXX","XXX","XXX","XXX",{"$f":"Import!I41113","v":0},{"$f":"Import!I41121","v":0},{"$f":"Import!I41130","v":0},{"$f":"Import!I41140","v":0},{"$f":"Import!I41151","v":0},null,null,null,"UltCY2020AY2016",0,"CATIBNRCY2023AY2021",0]
["L21",2021,"XXX","XXX","XXX","XXX","XXX","XXX","XXX",{"$f":"Import!I41122","v":0},{"$f":"Import!I41131","v":0},{"$f":"Import!I41141","v":0},{"$f":"Import!I41152","v":0},null,null,null,"UltCY2020AY2017",0,"CATIBNRCY2023AY2022",0]
["L22",2022,"XXX","XXX","XXX","XXX","XXX","XXX","XXX","XXX",{"$f":"Import!I41132","v":0},{"$f":"Import!I41142","v":0},{"$f":"Import!I41153","v":0},null,null,null,"UltCY2020AY2018",0,"CATIBNRCY2023AY2023",0]
["L23",{"$f":"L28","v":2023},"XXX","XXX","XXX","XXX","XXX","XXX","XXX","XXX","XXX",{"$f":"Import!I41143","v":0},{"$f":"Import!I41154","v":0},null,null,null,"UltCY2020AY2019",0]
["L24","Totals",null,null,null,null,null,null,null,null,null,null,{"$f":"SUM(M29:M39)","v":0},null,null,null,"UltCY2020AY2020",0]
[null,null,null,null,null,null,null,null,null,null,null,null,null,null,null,null,{"$f":"\"UltCY\"&J$10&\"AY\"&B11","v":"UltCY2021AYPrior"},{"$f":"J11","v":0}]
[null,null,"BULK & IBNR RESERVES ON NET LOSSES AND ALLOCATED LOSS ADJUSTMENT EXPENSES REPORTED AT YEAR END ($000)",null,null,null,null,null,null,null,null,null,35,null,null,null,{"$f":"\"UltCY\"&J$10&\"AY\"&B13","v":"UltCY2021AY2015"},{"$f":"J13","v":0}]
[null,null,null,null,null,null,null,null,null,null,null,null,"Losses",null,null,null,"UltCY2021AY2016",0]
[null,"Years in Which",25,26,27,28,29,30,31,32,33,34,"Bulk & IBNR",null,null,null,"UltCY2021AY2017",0]
[null,"Policies Were",null,null,null,null,null,null,null,null,null,null,"Reserves",null,null,null,"UltCY2021AY2018",0]
[null,"Written",{"$f":"D46-1","v":2014},2015,2016,2017,2018,2019,2020,2021,2022,{"$f":"L28","v":2023},{"$f":"L46","v":2023},null,null,null,"UltCY2021AY2019",0]
["L25","Prior",{"$f":"Import!I41155","v":0},{"$f":"Import!I41157","v":0},{"$f":"Import!I41160","v":0},{"$f":"Import!I41164","v":0},{"$f":"Import!I41169","v":0},{"$f":"Import!I41175","v":0},{"$f":"Import!I41182","v":0},{"$f":"Import!I41190","v":0},{"$f":"Import!I41199","v":0},{"$f":"Import!I41209","v":0},{"$f":"Import!I41220","v":0},null,null,null,"UltCY2021AY2020",0]
["L26",{"$f":"B49-1","v":2014},{"$f":"Import!I41156","v":0},{"$f":"Import!I41158","v":0},{"$f":"Import!I41161","v":0},{"$f":"Import!I41165","v":0},{"$f":"Import!I41170","v":0},{"$f":"Import!I41176","v":0},{"$f":"Import!I41183","v":0},{"$f":"Import!I41191","v":0},{"$f":"Import!I41200","v":0},{"$f":"Import!I41210","v":0},{"$f":"Import!I41221","v":0},null,null,null,"UltCY2021AY2021",0]
["L27",2015,"XXX",{"$f":"Import!I41159","v":0},{"$f":"Import!I41162","v":0},{"$f":"Import!I41166","v":0},{"$f":"Import!I41171","v":0},{"$f":"Import!I41177","v":0},{"$f":"Import!I41184","v":0},{"$f":"Import!I41192","v":0},{"$f":"Import!I41201","v":0},{"$f":"Import!I41211","v":0},{"$f":"Import!I41222","v":0},null,null,null,{"$f":"\"UltCY\"&K$10&\"AY\"&B11","v":"UltCY2022AYPrior"},{"$f":"K11","v":0}]
["L28",2016,"XXX","XXX",{"$f":"Import!I41163","v":0},{"$f":"Import!I41167","v":0},{"$f":"Import!I41172","v":0},{"$f":"Import!I41178","v":0},{"$f":"Import!I41185","v":0},{"$f":"Import!I41193","v":0},{"$f":"Import!I41202","v":0},{"$f":"Import!I41212","v":0},{"$f":"Import!I41223","v":0},null,null,null,"UltCY2022AY2014",0]
["L29",2017,"XXX","XXX","XXX",{"$f":"Import!I41168","v":0},{"$f":"Import!I41173","v":0},{"$f":"Import!I41179","v":0},{"$f":"Import!I41186","v":0},{"$f":"Import!I41194","v":0},{"$f":"Import!I41203","v":0},{"$f":"Import!I41213","v":0},{"$f":"Import!I41224","v":0},null,null,null,"UltCY2022AY2015",0]
["L30",2018,"XXX","XXX","XXX","XXX",{"$f":"Import!I41174","v":0},{"$f":"Import!I41180","v":0},{"$f":"Import!I41187","v":0},{"$f":"Import!I41195","v":0},{"$f":"Import!I41204","v":0},{"$f":"Import!I41214","v":0},{"$f":"Import!I41225","v":0},null,null,null,"UltCY2022AY2016",0]
["L31",2019,"XXX","XXX","XXX","XXX","XXX",{"$f":"Import!I41181","v":0},{"$f":"Import!I41188","v":0},{"$f":"Import!I41196","v":0},{"$f":"Import!I41205","v":0},{"$f":"Import!I41215","v":0},{"$f":"Import!I41226","v":0},null,null,null,"UltCY2022AY2017",0]
["L32",2020,"XXX","XXX","XXX","XXX","XXX","XXX",{"$f":"Import!I41189","v":0},{"$f":"Import!I41197","v":0},{"$f":"Import!I41206","v":0},{"$f":"Import!I41216","v":0},{"$f":"Import!I41227","v":0},null,null,null,"UltCY2022AY2018",0]
["L33",2021,"XXX","XXX","XXX","XXX","XXX","XXX","XXX",{"$f":"Import!I41198","v":0},{"$f":"Import!I41207","v":0},{"$f":"Import!I41217","v":0},{"$f":"Import!I41228","v":0},null,null,null,"UltCY2022AY2019",0]
["L34",2022,"XXX","XXX","XXX","XXX","XXX","XXX","XXX","XXX",{"$f":"Import!I41208","v":0},{"$f":"Import!I41218","v":0},{"$f":"Import!I41229","v":0},null,null,null,"UltCY2022AY2020",0]
["L35",{"$f":"L46","v":2023},"XXX","XXX","XXX","XXX","XXX","XXX","XXX","XXX","XXX",{"$f":"Import!I41219","v":0},{"$f":"Import!I41230","v":0},null,null,null,"UltCY2022AY2021",0]
["L36","Totals",null,null,null,null,null,null,null,null,null,null,{"$f":"SUM(M47:M57)","v":0},null,null,null,"UltCY2022AY2022",0]
[null,null,null,null,null,null,null,null,null,null,null,null,null,null,null,null,{"$f":"\"UltCY\"&L$10&\"AY\"&B11","v":"UltCY2023AYPrior"},{"$f":"L11","v":0}]
[null,null,36,37,38,39,"Unallocated Loss",null,null,42,43,44,45,null,null,null,{"$f":"\"UltCY\"&L$10&\"AY\"&B13","v":"UltCY2023AY2015"},{"$f":"L13","v":0}]
[null,"Years in Which",null,null,null,null,"Adjustment Expenses",null,null,null,null,null,null,null,null,null,"UltCY2023AY2016",0]
[null,"Premiums",null,null,null,null,40,41,null,null,null,null,null,null,null,null,"UltCY2023AY2017",0]
[null,"Were",null,null,null,null,null,null,null,"Commission and","General and",null,null,null,null,null,"UltCY2023AY2018",0]
[null,"Earned and","Gross","Gross","Net","Net",null,null,null,"Brokerage","Administrative","Personnel","Other",null,null,null,"UltCY2023AY2019",0]
[null,"Losses Were","Premiums","Premiums","Premiums","Premiums",null,null,"Calendar","Expense","Expense","Costs","Expense",null,null,null,"UltCY2023AY2020",0]
[null,"Incurred","Written","Earned","Written","Earned","Paid","Incurred","Year","(Form 2A, Line 9)","(Form 2A, Line 10)","(Form 2A, Line 11)","(Form 2A, Line 12)",null,null,null,"UltCY2023AY2021",0]
["L37","Prior","XXX",{"$f":"C67","v":"XXX"},"XXX",{"$f":"E67","v":"XXX"},{"$f":"Import!I41275","v":0},{"$f":"Import!I41286","v":0},"Prior",{"$f":"Import!I41297","v":0},{"$f":"Import!I41308","v":0},{"$f":"Import!I41319","v":0},{"$f":"Import!I41330","v":0},null,null,null,"UltCY2023AY2022",0]
["L38",{"$f":"B69-1","v":2014},{"$f":"Import!I41232","v":0},{"$f":"Import!I41243","v":0},{"$f":"Import!I41254","v":0},{"$f":"Import!I41265","v":0},{"$f":"Import!I41276","v":0},{"$f":"Import!I41287","v":0},{"$f":"B68","v":2014},{"$f":"Import!I41298","v":0},{"$f":"Import!I41309","v":0},{"$f":"Import!I41320","v":0},{"$f":"Import!I41331","v":0},null,null,null,"UltCY2023AY2023",0]
["L39",2015,{"$f":"Import!I41233","v":0},{"$f":"Import!I41244","v":0},{"$f":"Import!I41255","v":0},{"$f":"Import!I41266","v":0},{"$f":"Import!I41277","v":0},{"$f":"Import!I41288","v":0},2015,{"$f":"Import!I41299","v":0},{"$f":"Import!I41310","v":0},{"$f":"Import!I41321","v":0},{"$f":"Import!I41332","v":0},null,null,null,{"$f":"\"PaidCY\"&C$10&\"AY\"&B29","v":"PaidCY2014AYPrior"},{"$f":"C29","v":0}]
["L40",2016,{"$f":"Import!I41234","v":0},{"$f":"Import!I41245","v":0},{"$f":"Import!I41256","v":0},{"$f":"Import!I41267","v":0},{"$f":"Import!I41278","v":0},{"$f":"Import!I41289","v":0},2016,{"$f":"Import!I41300","v":0},{"$f":"Import!I41311","v":0},{"$f":"Import!I41322","v":0},{"$f":"Import!I41333","v":0},null,null,null,{"$f":"\"PaidCY\"&C$10&\"AY\"&B30","v":"PaidCY2014AY2014"},{"$f":"C30","v":0}]
["L41",2017,{"$f":"Import!I41235","v":0},{"$f":"Import!I41246","v":0},{"$f":"Import!I41257","v":0},{"$f":"Import!I41268","v":0},{"$f":"Import!I41279","v":0},{"$f":"Import!I41290","v":0},2017,{"$f":"Import!I41301","v":0},{"$f":"Import!I41312","v":0},{"$f":"Import!I41323","v":0},{"$f":"Import!I41334","v":0},null,null,null,{"$f":"\"PaidCY\"&D$10&\"AY\"&B29","v":"PaidCY2015AYPrior"},{"$f":"D29","v":0}]
["L42",2018,{"$f":"Import!I41236","v":0},{"$f":"Import!I41247","v":0},{"$f":"Import!I41258","v":0},{"$f":"Import!I41269","v":0},{"$f":"Import!I41280","v":0},{"$f":"Import!I41291","v":0},2018,{"$f":"Import!I41302","v":0},{"$f":"Import!I41313","v":0},{"$f":"Import!I41324","v":0},{"$f":"Import!I41335","v":0},null,null,null,{"$f":"\"PaidCY\"&D$10&\"AY\"&B30","v":"PaidCY2015AY2014"},{"$f":"D30","v":0}]
["L43",2019,{"$f":"Import!I41237","v":0},{"$f":"Import!I41248","v":0},{"$f":"Import!I41259","v":0},{"$f":"Import!I41270","v":0},{"$f":"Import!I41281","v":0},{"$f":"Import!I41292","v":0},2019,{"$f":"Import!I41303","v":0},{"$f":"Import!I41314","v":0},{"$f":"Import!I41325","v":0},{"$f":"Import!I41336","v":0},null,null,null,{"$f":"\"PaidCY\"&D$10&\"AY\"&B31","v":"PaidCY2015AY2015"},{"$f":"D31","v":0}]
["L44",2020,{"$f":"Import!I41238","v":0},{"$f":"Import!I41249","v":0},{"$f":"Import!I41260","v":0},{"$f":"Import!I41271","v":0},{"$f":"Import!I41282","v":0},{"$f":"Import!I41293","v":0},2020,{"$f":"Import!I41304","v":0},{"$f":"Import!I41315","v":0},{"$f":"Import!I41326","v":0},{"$f":"Import!I41337","v":0},null,null,null,{"$f":"\"PaidCY\"&E$10&\"AY\"&B29","v":"PaidCY2016AYPrior"},{"$f":"E29","v":0}]
["L45",2021,{"$f":"Import!I41239","v":0},{"$f":"Import!I41250","v":0},{"$f":"Import!I41261","v":0},{"$f":"Import!I41272","v":0},{"$f":"Import!I41283","v":0},{"$f":"Import!I41294","v":0},2021,{"$f":"Import!I41305","v":0},{"$f":"Import!I41316","v":0},{"$f":"Import!I41327","v":0},{"$f":"Import!I41338","v":0},null,null,null,{"$f":"\"PaidCY\"&E$10&\"AY\"&B30","v":"PaidCY2016AY2014"},{"$f":"E30","v":0}]
["L46",2022,{"$f":"Import!I41240","v":0},{"$f":"Import!I41251","v":0},{"$f":"Import!I41262","v":0},{"$f":"Import!I41273","v":0},{"$f":"Import!I41284","v":0},{"$f":"Import!I41295","v":0},2022,{"$f":"Import!I41306","v":0},{"$f":"Import!I41317","v":0},{"$f":"Import!I41328","v":0},{"$f":"Import!I41339","v":0},null,null,null,{"$f":"\"PaidCY\"&E$10&\"AY\"&B31","v":"PaidCY2016AY2015"},{"$f":"E31","v":0}]
["L47",{"$f":"B39","v":2023},{"$f":"Import!I41241","v":0},{"$f":"Import!I41252","v":0},{"$f":"Import!I41263","v":0},{"$f":"Import!I41274","v":0},{"$f":"Import!I41285","v":0},{"$f":"Import!I41296","v":0},2023,{"$f":"Import!I41307","v":0},{"$f":"Import!I41318","v":0},{"$f":"Import!I41329","v":0},{"$f":"Import!I41340","v":0},null,null,null,{"$f":"\"PaidCY\"&E$10&\"AY\"&B32","v":"PaidCY2016AY2016"},{"$f":"E32","v":0}]
["L48","Totals","XXX",{"$f":"C78","v":"XXX"},"XXX",{"$f":"E78","v":"XXX"},{"$f":"SUM(G67:G77)","v":0},{"$f":"SUM(H67:H77)","v":0},"Totals",{"$f":"SUM(J67:J77)","v":0},{"$f":"SUM(K67:K77)","v":0},{"$f":"SUM(L67:L77)","v":0},{"$f":"SUM(M67:M77)","v":0},null,null,null,{"$f":"\"PaidCY\"&F$10&\"AY\"&B29","v":"PaidCY2017AYPrior"},{"$f":"F29","v":0}]
[null,null,null,null,null,null,null,null,null,null,null,null,null,null,null,null,{"$f":"\"PaidCY\"&F$10&\"AY\"&B30","v":"PaidCY2017AY2014"},{"$f":"F30","v":0}]
[null,"COMMENTS",null,null,null,null,null,null,null,null,null,null,null,null,null,null,{"$f":"\"PaidCY\"&F$10&\"AY\"&B31","v":"PaidCY2017AY2015"},{"$f":"F31","v":0}]
[null,{"$f":"Import!I41341","v":0},null,null,null,null,null,null,null,null,null,null,null,null,null,null,{"$f":"\"PaidCY\"&G$10&\"AY\"&B30","v":"PaidCY2018AY2014"},{"$f":"G30","v":0}]
[null,null,null,null,null,null,null,null,null,null,null,null,null,null,null,null,{"$f":"\"PaidCY\"&G$10&\"AY\"&B31","v":"PaidCY2018AY2015"},{"$f":"G31","v":0}]
[null,null,null,null,null,null,null,null,null,null,null,null,null,null,null,null,{"$f":"\"PaidCY\"&G$10&\"AY\"&B32","v":"PaidCY2018AY2016"},{"$f":"G32","v":0}]
[null,null,null,null,null,null,null,null,null,null,null,null,null,null,null,null,{"$f":"\"PaidCY\"&G$10&\"AY\"&B34","v":"PaidCY2018AY2018"},{"$f":"G34","v":0}]
[]
[]
[]
[]
[]
[null,null,null,null,"Accident Year",null,null,null,null,null,null,null,null,null,null,null,{"$f":"\"PaidCY\"&H$10&\"AY\"&B34","v":"PaidCY2019AY2018"},{"$f":"H34","v":0}]
[null,null,null,null,"Underwriting Year",null,null,null,null,null,null,null,null,null,null,null,"PaidCY2019AY2019",0]

{"sheet":"Sch XI(a)(iv)","index":77,"n_rows":95,"n_cols":20,"rows_kept":95,"cut":false,"hidden":true,"merged":[[80,1,82,12],[5,2,5,11],[59,6,59,7],[41,2,41,11],[0,13,0,14],[2,13,2,14],[2,1,2,2],[60,6,60,7],[23,2,23,11]]}
[null,"SCHEDULE OF LOSS TRIANGLES (LINE 4 - CASUALTY)",null,null,null,null,null,null,null,null,null,null,null,{"$f":"HYPERLINK(\"#'Index'!A1\",\"Return to Index\")","v":"Return to Index"}]
[null,{"$f":"'Company Information'!C7","v":"Enter Company Name"}]
[null,{"$f":" TEXT('Company Information'!C3,\"d mmmm yyyy\")","v":"31 December 2023"},null,null,null,null,null,null,null,null,null,null,null,"SCHEDULE XI(a)(iv)"]
[null,{"$f":"\"expressed in\"& IF(1000>1,\" ['\"&MID(1000,2,LEN(1000))&\"s]\",\"\")&\" \"&'Form 1EBS'!$C$4","v":"expressed in ['000s] United States Dollars"}]
[]
[null,"Accounting Basis: *","INCURRED (ESTIMATED ULTIMATE) NET LOSSES AND ALLOCATED LOSS ADJUSTMENT EXPENSES REPORTED AT YEAR END ($000)",null,null,null,null,null,null,null,null,null,11,12,13,null,"AcctBasis",{"$f":"B7","v":"Accident Year"}]
[null,"Accident Year",null,null,null,null,null,null,null,null,null,null,"Ultimate","Development","Development",null,{"$f":"\"UltCY\"&C$10&\"AY\"&B11","v":"UltCY2014AYPrior"},{"$f":"C11","v":0},{"$f":"\"CATUltCY\"&L$10&\"AY\"&B11","v":"CATUltCY2023AYPrior"},{"$f":"M11","v":0}]
[null,"Years in Which",1,2,3,4,5,6,7,8,9,10,"Catastrophe",null,null,null,{"$f":"\"UltCY\"&C$10&\"AY\"&B12","v":"UltCY2014AY2014"},{"$f":"C12","v":0},"CATUltCY2023AY2014",0]
[null,"Losses Were",null,null,null,null,null,null,null,null,null,null,"Losses","One Year","Two Year",null,{"$f":"\"UltCY\"&D$10&\"AY\"&B11","v":"UltCY2015AYPrior"},{"$f":"D11","v":0},"CATUltCY2023AY2015",0]
[null,"Incurred",{"$f":"D10-1","v":2014},2015,2016,2017,2018,2019,2020,2021,2022,{"$f":"YEAR('Company Information'!C3)","v":2023},{"$f":"L10","v":2023},"Development","Development",null,{"$f":"\"UltCY\"&D$10&\"AY\"&B12","v":"UltCY2015AY2014"},{"$f":"D12","v":0},"CATUltCY2023AY2016",0]
["L1","Prior",{"$f":"Import!I41342","v":0},{"$f":"Import!I41344","v":0},{"$f":"Import!I41347","v":0},{"$f":"Import!I41351","v":0},{"$f":"Import!I41356","v":0},{"$f":"Import!I41362","v":0},{"$f":"Import!I41369","v":0},{"$f":"Import!I41377","v":0},{"$f":"Import!I41386","v":0},{"$f":"Import!I41396","v":0},{"$f":"Import!I41407","v":0},{"$f":"K11-L11","v":0},{"$f":"J11-L11","v":0},null,{"$f":"\"UltCY\"&D$10&\"AY\"&B13","v":"UltCY2015AY2015"},{"$f":"D13","v":0},"CATUltCY2023AY2017",0]
["L2",{"$f":"B13-1","v":2014},{"$f":"Import!I41343","v":0},{"$f":"Import!I41345","v":0},{"$f":"Import!I41348","v":0},{"$f":"Import!I41352","v":0},{"$f":"Import!I41357","v":0},{"$f":"Import!I41363","v":0},{"$f":"Import!I41370","v":0},{"$f":"Import!I41378","v":0},{"$f":"Import!I41387","v":0},{"$f":"Import!I41397","v":0},{"$f":"Import!I41408","v":0},0,0,null,{"$f":"\"UltCY\"&E$10&\"AY\"&B11","v":"UltCY2016AYPrior"},{"$f":"E11","v":0},"CATUltCY2023AY2018",0]
["L3",2015,"XXX",{"$f":"Import!I41346","v":0},{"$f":"Import!I41349","v":0},{"$f":"Import!I41353","v":0},{"$f":"Import!I41358","v":0},{"$f":"Import!I41364","v":0},{"$f":"Import!I41371","v":0},{"$f":"Import!I41379","v":0},{"$f":"Import!I41388","v":0},{"$f":"Import!I41398","v":0},{"$f":"Import!I41409","v":0},0,0,null,{"$f":"\"UltCY\"&E$10&\"AY\"&B12","v":"UltCY2016AY2014"},{"$f":"E12","v":0},"CATUltCY2023AY2019",0]
["L4",2016,"XXX","XXX",{"$f":"Import!I41350","v":0},{"$f":"Import!I41354","v":0},{"$f":"Import!I41359","v":0},{"$f":"Import!I41365","v":0},{"$f":"Import!I41372","v":0},{"$f":"Import!I41380","v":0},{"$f":"Import!I41389","v":0},{"$f":"Import!I41399","v":0},{"$f":"Import!I41410","v":0},0,0,null,{"$f":"\"UltCY\"&E$10&\"AY\"&B13","v":"UltCY2016AY2015"},{"$f":"E13","v":0},"CATUltCY2023AY2020",0]
["L5",2017,"XXX","XXX","XXX",{"$f":"Import!I41355","v":0},{"$f":"Import!I41360","v":0},{"$f":"Import!I41366","v":0},{"$f":"Import!I41373","v":0},{"$f":"Import!I41381","v":0},{"$f":"Import!I41390","v":0},{"$f":"Import!I41400","v":0},{"$f":"Import!I41411","v":0},0,0,null,{"$f":"\"UltCY\"&E$10&\"AY\"&B14","v":"UltCY2016AY2016"},{"$f":"E14","v":0},"CATUltCY2023AY2021",0]
["L6",2018,"XXX","XXX","XXX","XXX",{"$f":"Import!I41361","v":0},{"$f":"Import!I41367","v":0},{"$f":"Import!I41374","v":0},{"$f":"Import!I41382","v":0},{"$f":"Import!I41391","v":0},{"$f":"Import!I41401","v":0},{"$f":"Import!I41412","v":0},0,0,null,{"$f":"\"UltCY\"&F$10&\"AY\"&B11","v":"UltCY2017AYPrior"},{"$f":"F11","v":0},"CATUltCY2023AY2022",0]
["L7",2019,"XXX","XXX","XXX","XXX","XXX",{"$f":"Import!I41368","v":0},{"$f":"Import!I41375","v":0},{"$f":"Import!I41383","v":0},{"$f":"Import!I41392","v":0},{"$f":"Import!I41402","v":0},{"$f":"Import!I41413","v":0},0,0,null,{"$f":"\"UltCY\"&F$10&\"AY\"&B12","v":"UltCY2017AY2014"},{"$f":"F12","v":0},"CATUltCY2023AY2023",0]
["L8",2020,"XXX","XXX","XXX","XXX","XXX","XXX",{"$f":"Import!I41376","v":0},{"$f":"Import!I41384","v":0},{"$f":"Import!I41393","v":0},{"$f":"Import!I41403","v":0},{"$f":"Import!I41414","v":0},0,0,null,{"$f":"\"UltCY\"&F$10&\"AY\"&B13","v":"UltCY2017AY2015"},{"$f":"F13","v":0},{"$f":"\"CATPaidCY\"&L$10&\"AY\"&B29","v":"CATPaidCY2023AYPrior"},{"$f":"M29","v":0}]
["L9",2021,"XXX","XXX","XXX","XXX","XXX","XXX","XXX",{"$f":"Import!I41385","v":0},{"$f":"Import!I41394","v":0},{"$f":"Import!I41404","v":0},{"$f":"Import!I41415","v":0},0,0,null,{"$f":"\"UltCY\"&F$10&\"AY\"&B14","v":"UltCY2017AY2016"},{"$f":"F14","v":0},"CATPaidCY2023AY2014",0]
["L10",2022,"XXX","XXX","XXX","XXX","XXX","XXX","XXX","XXX",{"$f":"Import!I41395","v":0},{"$f":"Import!I41405","v":0},{"$f":"Import!I41416","v":0},0,"XXX",null,{"$f":"\"UltCY\"&F$10&\"AY\"&B15","v":"UltCY2017AY2017"},{"$f":"F15","v":0},"CATPaidCY2023AY2015",0]
["L11",{"$f":"L10","v":2023},"XXX","XXX","XXX","XXX","XXX","XXX","XXX","XXX","XXX",{"$f":"Import!I41406","v":0},{"$f":"Import!I41417","v":0},"XXX","XXX",null,{"$f":"\"UltCY\"&G$10&\"AY\"&B11","v":"UltCY2018AYPrior"},{"$f":"G11","v":0},"CATPaidCY2023AY2016",0]
["L12","Totals",null,null,null,null,null,null,null,null,null,null,{"$f":"SUM(M11:M21)","v":0},{"$f":"SUM(N11:N21)","v":0},{"$f":"SUM(O11:O21)","v":0},null,{"$f":"\"UltCY\"&G$10&\"AY\"&B12","v":"UltCY2018AY2014"},{"$f":"G12","v":0},"CATPaidCY2023AY2017",0]
[null,null,null,null,null,null,null,null,null,null,null,null,null,null,null,null,{"$f":"\"UltCY\"&G$10&\"AY\"&B13","v":"UltCY2018AY2015"},{"$f":"G13","v":0},"CATPaidCY2023AY2018",0]
[null,null,"CUMULATIVE PAID NET LOSSES AND ALLOCATED LOSS ADJUSTMENT EXPENSES REPORTED AT YEAR END ($000)",null,null,null,null,null,null,null,null,null,24,null,null,null,{"$f":"\"UltCY\"&G$10&\"AY\"&B15","v":"UltCY2018AY2017"},{"$f":"G15","v":0},{"$f":"\"CATPaidCY\"&L$10&\"AY\"&B36","v":"CATPaidCY2023AY2020"},{"$f":"M36","v":0}]
[null,null,null,null,null,null,null,null,null,null,null,null,"Paid",null,null,null,{"$f":"\"UltCY\"&G$10&\"AY\"&B16","v":"UltCY2018AY2018"},{"$f":"G16","v":0},{"$f":"\"CATPaidCY\"&L$10&\"AY\"&B37","v":"CATPaidCY2023AY2021"},{"$f":"M37","v":0}]
[null,"Years in Which",14,15,16,17,18,19,20,21,22,23,"Catastrophe",null,null,null,{"$f":"\"UltCY\"&H$10&\"AY\"&B11","v":"UltCY2019AYPrior"},{"$f":"H11","v":0},{"$f":"\"CATPaidCY\"&L$10&\"AY\"&B38","v":"CATPaidCY2023AY2022"},{"$f":"M38","v":0}]
[null,"Policies Were",null,null,null,null,null,null,null,null,null,null,"Losses",null,null,null,"UltCY2019AY2014",0,{"$f":"\"CATPaidCY\"&L$10&\"AY\"&B39","v":"CATPaidCY2023AY2023"},{"$f":"M39","v":0}]
[null,"Written",{"$f":"D28-1","v":2014},2015,2016,2017,2018,2019,2020,2021,2022,{"$f":"L10","v":2023},{"$f":"L28","v":2023},null,null,null,"UltCY2019AY2015",0,{"$f":"\"CATIBNRCY\"&L$10&\"AY\"&B47","v":"CATIBNRCY2023AYPrior"},{"$f":"M47","v":0}]
["L13","Prior",{"$f":"Import!I41418","v":0},{"$f":"Import!I41420","v":0},{"$f":"Import!I41423","v":0},{"$f":"Import!I41427","v":0},{"$f":"Import!I41432","v":0},{"$f":"Import!I41438","v":0},{"$f":"Import!I41445","v":0},{"$f":"Import!I41453","v":0},{"$f":"Import!I41462","v":0},{"$f":"Import!I41472","v":0},{"$f":"Import!I41483","v":0},null,null,null,"UltCY2019AY2016",0,"CATIBNRCY2023AY2014",0]
["L14",{"$f":"B31-1","v":2014},{"$f":"Import!I41419","v":0},{"$f":"Import!I41421","v":0},{"$f":"Import!I41424","v":0},{"$f":"Import!I41428","v":0},{"$f":"Import!I41433","v":0},{"$f":"Import!I41439","v":0},{"$f":"Import!I41446","v":0},{"$f":"Import!I41454","v":0},{"$f":"Import!I41463","v":0},{"$f":"Import!I41473","v":0},{"$f":"Import!I41484","v":0},null,null,null,"UltCY2019AY2017",0,"CATIBNRCY2023AY2015",0]
["L15",2015,"XXX",{"$f":"Import!I41422","v":0},{"$f":"Import!I41425","v":0},{"$f":"Import!I41429","v":0},{"$f":"Import!I41434","v":0},{"$f":"Import!I41440","v":0},{"$f":"Import!I41447","v":0},{"$f":"Import!I41455","v":0},{"$f":"Import!I41464","v":0},{"$f":"Import!I41474","v":0},{"$f":"Import!I41485","v":0},null,null,null,"UltCY2019AY2018",0,"CATIBNRCY2023AY2016",0]
["L16",2016,"XXX","XXX",{"$f":"Import!I41426","v":0},{"$f":"Import!I41430","v":0},{"$f":"Import!I41435","v":0},{"$f":"Import!I41441","v":0},{"$f":"Import!I41448","v":0},{"$f":"Import!I41456","v":0},{"$f":"Import!I41465","v":0},{"$f":"Import!I41475","v":0},{"$f":"Import!I41486","v":0},null,null,null,"UltCY2019AY2019",0,"CATIBNRCY2023AY2017",0]
["L17",2017,"XXX","XXX","XXX",{"$f":"Import!I41431","v":0},{"$f":"Import!I41436","v":0},{"$f":"Import!I41442","v":0},{"$f":"Import!I41449","v":0},{"$f":"Import!I41457","v":0},{"$f":"Import!I41466","v":0},{"$f":"Import!I41476","v":0},{"$f":"Import!I41487","v":0},null,null,null,{"$f":"\"UltCY\"&I$10&\"AY\"&B11","v":"UltCY2020AYPrior"},{"$f":"I11","v":0},"CATIBNRCY2023AY2018",0]
["L18",2018,"XXX","XXX","XXX","XXX",{"$f":"Import!I41437","v":0},{"$f":"Import!I41443","v":0},{"$f":"Import!I41450","v":0},{"$f":"Import!I41458","v":0},{"$f":"Import!I41467","v":0},{"$f":"Import!I41477","v":0},{"$f":"Import!I41488","v":0},null,null,null,"UltCY2020AY2014",0,"CATIBNRCY2023AY2019",0]
["L19",2019,"XXX","XXX","XXX","XXX","XXX",{"$f":"Import!I41444","v":0},{"$f":"Import!I41451","v":0},{"$f":"Import!I41459","v":0},{"$f":"Import!I41468","v":0},{"$f":"Import!I41478","v":0},{"$f":"Import!I41489","v":0},null,null,null,"UltCY2020AY2015",0,"CATIBNRCY2023AY2020",0]
["L20",2020,"XXX","XXX","XXX","XXX","XXX","XXX",{"$f":"Import!I41452","v":0},{"$f":"Import!I41460","v":0},{"$f":"Import!I41469","v":0},{"$f":"Import!I41479","v":0},{"$f":"Import!I41490","v":0},null,null,null,"UltCY2020AY2016",0,"CATIBNRCY2023AY2021",0]
["L21",2021,"XXX","XXX","XXX","XXX","XXX","XXX","XXX",{"$f":"Import!I41461","v":0},{"$f":"Import!I41470","v":0},{"$f":"Import!I41480","v":0},{"$f":"Import!I41491","v":0},null,null,null,"UltCY2020AY2017",0,"CATIBNRCY2023AY2022",0]
["L22",2022,"XXX","XXX","XXX","XXX","XXX","XXX","XXX","XXX",{"$f":"Import!I41471","v":0},{"$f":"Import!I41481","v":0},{"$f":"Import!I41492","v":0},null,null,null,"UltCY2020AY2018",0,"CATIBNRCY2023AY2023",0]
["L23",{"$f":"L28","v":2023},"XXX","XXX","XXX","XXX","XXX","XXX","XXX","XXX","XXX",{"$f":"Import!I41482","v":0},{"$f":"Import!I41493","v":0},null,null,null,"UltCY2020AY2019",0]
["L24","Totals",null,null,null,null,null,null,null,null,null,null,{"$f":"SUM(M29:M39)","v":0},null,null,null,"UltCY2020AY2020",0]
[null,null,null,null,null,null,null,null,null,null,null,null,null,null,null,null,{"$f":"\"UltCY\"&J$10&\"AY\"&B11","v":"UltCY2021AYPrior"},{"$f":"J11","v":0}]
[null,null,"BULK & IBNR RESERVES ON NET LOSSES AND ALLOCATED LOSS ADJUSTMENT EXPENSES REPORTED AT YEAR END ($000)",null,null,null,null,null,null,null,null,null,35,null,null,null,{"$f":"\"UltCY\"&J$10&\"AY\"&B13","v":"UltCY2021AY2015"},{"$f":"J13","v":0}]
[null,null,null,null,null,null,null,null,null,null,null,null,"Losses",null,null,null,"UltCY2021AY2016",0]
[null,"Years in Which",25,26,27,28,29,30,31,32,33,34,"Bulk & IBNR",null,null,null,"UltCY2021AY2017",0]
[null,"Policies Were",null,null,null,null,null,null,null,null,null,null,"Reserves",null,null,null,"UltCY2021AY2018",0]
[null,"Written",{"$f":"D46-1","v":2014},2015,2016,2017,2018,2019,2020,2021,2022,{"$f":"L28","v":2023},{"$f":"L46","v":2023},null,null,null,"UltCY2021AY2019",0]
["L25","Prior",{"$f":"Import!I41494","v":0},{"$f":"Import!I41496","v":0},{"$f":"Import!I41499","v":0},{"$f":"Import!I41503","v":0},{"$f":"Import!I41508","v":0},{"$f":"Import!I41514","v":0},{"$f":"Import!I41521","v":0},{"$f":"Import!I41529","v":0},{"$f":"Import!I41538","v":0},{"$f":"Import!I41548","v":0},{"$f":"Import!I41559","v":0},null,null,null,"UltCY2021AY2020",0]
["L26",{"$f":"B49-1","v":2014},{"$f":"Import!I41495","v":0},{"$f":"Import!I41497","v":0},{"$f":"Import!I41500","v":0},{"$f":"Import!I41504","v":0},{"$f":"Import!I41509","v":0},{"$f":"Import!I41515","v":0},{"$f":"Import!I41522","v":0},{"$f":"Import!I41530","v":0},{"$f":"Import!I41539","v":0},{"$f":"Import!I41549","v":0},{"$f":"Import!I41560","v":0},null,null,null,"UltCY2021AY2021",0]
["L27",2015,"XXX",{"$f":"Import!I41498","v":0},{"$f":"Import!I41501","v":0},{"$f":"Import!I41505","v":0},{"$f":"Import!I41510","v":0},{"$f":"Import!I41516","v":0},{"$f":"Import!I41523","v":0},{"$f":"Import!I41531","v":0},{"$f":"Import!I41540","v":0},{"$f":"Import!I41550","v":0},{"$f":"Import!I41561","v":0},null,null,null,{"$f":"\"UltCY\"&K$10&\"AY\"&B11","v":"UltCY2022AYPrior"},{"$f":"K11","v":0}]
["L28",2016,"XXX","XXX",{"$f":"Import!I41502","v":0},{"$f":"Import!I41506","v":0},{"$f":"Import!I41511","v":0},{"$f":"Import!I41517","v":0},{"$f":"Import!I41524","v":0},{"$f":"Import!I41532","v":0},{"$f":"Import!I41541","v":0},{"$f":"Import!I41551","v":0},{"$f":"Import!I41562","v":0},null,null,null,"UltCY2022AY2014",0]
["L29",2017,"XXX","XXX","XXX",{"$f":"Import!I41507","v":0},{"$f":"Import!I41512","v":0},{"$f":"Import!I41518","v":0},{"$f":"Import!I41525","v":0},{"$f":"Import!I41533","v":0},{"$f":"Import!I41542","v":0},{"$f":"Import!I41552","v":0},{"$f":"Import!I41563","v":0},null,null,null,"UltCY2022AY2015",0]
["L30",2018,"XXX","XXX","XXX","XXX",{"$f":"Import!I41513","v":0},{"$f":"Import!I41519","v":0},{"$f":"Import!I41526","v":0},{"$f":"Import!I41534","v":0},{"$f":"Import!I41543","v":0},{"$f":"Import!I41553","v":0},{"$f":"Import!I41564","v":0},null,null,null,"UltCY2022AY2016",0]
["L31",2019,"XXX","XXX","XXX","XXX","XXX",{"$f":"Import!I41520","v":0},{"$f":"Import!I41527","v":0},{"$f":"Import!I41535","v":0},{"$f":"Import!I41544","v":0},{"$f":"Import!I41554","v":0},{"$f":"Import!I41565","v":0},null,null,null,"UltCY2022AY2017",0]
["L32",2020,"XXX","XXX","XXX","XXX","XXX","XXX",{"$f":"Import!I41528","v":0},{"$f":"Import!I41536","v":0},{"$f":"Import!I41545","v":0},{"$f":"Import!I41555","v":0},{"$f":"Import!I41566","v":0},null,null,null,"UltCY2022AY2018",0]
["L33",2021,"XXX","XXX","XXX","XXX","XXX","XXX","XXX",{"$f":"Import!I41537","v":0},{"$f":"Import!I41546","v":0},{"$f":"Import!I41556","v":0},{"$f":"Import!I41567","v":0},null,null,null,"UltCY2022AY2019",0]
["L34",2022,"XXX","XXX","XXX","XXX","XXX","XXX","XXX","XXX",{"$f":"Import!I41547","v":0},{"$f":"Import!I41557","v":0},{"$f":"Import!I41568","v":0},null,null,null,"UltCY2022AY2020",0]
["L35",{"$f":"L46","v":2023},"XXX","XXX","XXX","XXX","XXX","XXX","XXX","XXX","XXX",{"$f":"Import!I41558","v":0},{"$f":"Import!I41569","v":0},null,null,null,"UltCY2022AY2021",0]
["L36","Totals",null,null,null,null,null,null,null,null,null,null,{"$f":"SUM(M47:M57)","v":0},null,null,null,"UltCY2022AY2022",0]
[null,null,null,null,null,null,null,null,null,null,null,null,null,null,null,null,{"$f":"\"UltCY\"&L$10&\"AY\"&B11","v":"UltCY2023AYPrior"},{"$f":"L11","v":0}]
[null,null,36,37,38,39,"Unallocated Loss",null,null,42,43,44,45,null,null,null,{"$f":"\"UltCY\"&L$10&\"AY\"&B13","v":"UltCY2023AY2015"},{"$f":"L13","v":0}]
[null,"Years in Which",null,null,null,null,"Adjustment Expenses",null,null,null,null,null,null,null,null,null,"UltCY2023AY2016",0]
[null,"Premiums",null,null,null,null,40,41,null,null,null,null,null,null,null,null,"UltCY2023AY2017",0]
[null,"Were",null,null,null,null,null,null,null,"Commission and","General and",null,null,null,null,null,"UltCY2023AY2018",0]
[null,"Earned and","Gross","Gross","Net","Net",null,null,null,"Brokerage","Administrative","Personnel","Other",null,null,null,"UltCY2023AY2019",0]
[null,"Losses Were","Premiums","Premiums","Premiums","Premiums",null,null,"Calendar","Expense","Expense","Costs","Expense",null,null,null,"UltCY2023AY2020",0]
[null,"Incurred","Written","Earned","Written","Earned","Paid","Incurred","Year","(Form 2A, Line 9)","(Form 2A, Line 10)","(Form 2A, Line 11)","(Form 2A, Line 12)",null,null,null,"UltCY2023AY2021",0]
["L37","Prior","XXX",{"$f":"C67","v":"XXX"},"XXX",{"$f":"E67","v":"XXX"},{"$f":"Import!I41614","v":0},{"$f":"Import!I41625","v":0},"Prior",{"$f":"Import!I41636","v":0},{"$f":"Import!I41647","v":0},{"$f":"Import!I41658","v":0},{"$f":"Import!I41669","v":0},null,null,null,"UltCY2023AY2022",0]
["L38",{"$f":"B69-1","v":2014},{"$f":"Import!I41571","v":0},{"$f":"Import!I41582","v":0},{"$f":"Import!I41593","v":0},{"$f":"Import!I41604","v":0},{"$f":"Import!I41615","v":0},{"$f":"Import!I41626","v":0},{"$f":"B68","v":2014},{"$f":"Import!I41637","v":0},{"$f":"Import!I41648","v":0},{"$f":"Import!I41659","v":0},{"$f":"Import!I41670","v":0},null,null,null,"UltCY2023AY2023",0]
["L39",2015,{"$f":"Import!I41572","v":0},{"$f":"Import!I41583","v":0},{"$f":"Import!I41594","v":0},{"$f":"Import!I41605","v":0},{"$f":"Import!I41616","v":0},{"$f":"Import!I41627","v":0},2015,{"$f":"Import!I41638","v":0},{"$f":"Import!I41649","v":0},{"$f":"Import!I41660","v":0},{"$f":"Import!I41671","v":0},null,null,null,{"$f":"\"PaidCY\"&C$10&\"AY\"&B29","v":"PaidCY2014AYPrior"},{"$f":"C29","v":0}]
["L40",2016,{"$f":"Import!I41573","v":0},{"$f":"Import!I41584","v":0},{"$f":"Import!I41595","v":0},{"$f":"Import!I41606","v":0},{"$f":"Import!I41617","v":0},{"$f":"Import!I41628","v":0},2016,{"$f":"Import!I41639","v":0},{"$f":"Import!I41650","v":0},{"$f":"Import!I41661","v":0},{"$f":"Import!I41672","v":0},null,null,null,{"$f":"\"PaidCY\"&C$10&\"AY\"&B30","v":"PaidCY2014AY2014"},{"$f":"C30","v":0}]
["L41",2017,{"$f":"Import!I41574","v":0},{"$f":"Import!I41585","v":0},{"$f":"Import!I41596","v":0},{"$f":"Import!I41607","v":0},{"$f":"Import!I41618","v":0},{"$f":"Import!I41629","v":0},2017,{"$f":"Import!I41640","v":0},{"$f":"Import!I41651","v":0},{"$f":"Import!I41662","v":0},{"$f":"Import!I41673","v":0},null,null,null,{"$f":"\"PaidCY\"&D$10&\"AY\"&B29","v":"PaidCY2015AYPrior"},{"$f":"D29","v":0}]
["L42",2018,{"$f":"Import!I41575","v":0},{"$f":"Import!I41586","v":0},{"$f":"Import!I41597","v":0},{"$f":"Import!I41608","v":0},{"$f":"Import!I41619","v":0},{"$f":"Import!I41630","v":0},2018,{"$f":"Import!I41641","v":0},{"$f":"Import!I41652","v":0},{"$f":"Import!I41663","v":0},{"$f":"Import!I41674","v":0},null,null,null,{"$f":"\"PaidCY\"&D$10&\"AY\"&B30","v":"PaidCY2015AY2014"},{"$f":"D30","v":0}]
["L43",2019,{"$f":"Import!I41576","v":0},{"$f":"Import!I41587","v":0},{"$f":"Import!I41598","v":0},{"$f":"Import!I41609","v":0},{"$f":"Import!I41620","v":0},{"$f":"Import!I41631","v":0},2019,{"$f":"Import!I41642","v":0},{"$f":"Import!I41653","v":0},{"$f":"Import!I41664","v":0},{"$f":"Import!I41675","v":0},null,null,null,{"$f":"\"PaidCY\"&D$10&\"AY\"&B31","v":"PaidCY2015AY2015"},{"$f":"D31","v":0}]
["L44",2020,{"$f":"Import!I41577","v":0},{"$f":"Import!I41588","v":0},{"$f":"Import!I41599","v":0},{"$f":"Import!I41610","v":0},{"$f":"Import!I41621","v":0},{"$f":"Import!I41632","v":0},2020,{"$f":"Import!I41643","v":0},{"$f":"Import!I41654","v":0},{"$f":"Import!I41665","v":0},{"$f":"Import!I41676","v":0},null,null,null,{"$f":"\"PaidCY\"&E$10&\"AY\"&B29","v":"PaidCY2016AYPrior"},{"$f":"E29","v":0}]
["L45",2021,{"$f":"Import!I41578","v":0},{"$f":"Import!I41589","v":0},{"$f":"Import!I41600","v":0},{"$f":"Import!I41611","v":0},{"$f":"Import!I41622","v":0},{"$f":"Import!I41633","v":0},2021,{"$f":"Import!I41644","v":0},{"$f":"Import!I41655","v":0},{"$f":"Import!I41666","v":0},{"$f":"Import!I41677","v":0},null,null,null,{"$f":"\"PaidCY\"&E$10&\"AY\"&B30","v":"PaidCY2016AY2014"},{"$f":"E30","v":0}]
["L46",2022,{"$f":"Import!I41579","v":0},{"$f":"Import!I41590","v":0},{"$f":"Import!I41601","v":0},{"$f":"Import!I41612","v":0},{"$f":"Import!I41623","v":0},{"$f":"Import!I41634","v":0},2022,{"$f":"Import!I41645","v":0},{"$f":"Import!I41656","v":0},{"$f":"Import!I41667","v":0},{"$f":"Import!I41678","v":0},null,null,null,{"$f":"\"PaidCY\"&E$10&\"AY\"&B31","v":"PaidCY2016AY2015"},{"$f":"E31","v":0}]
["L47",{"$f":"B39","v":2023},{"$f":"Import!I41580","v":0},{"$f":"Import!I41591","v":0},{"$f":"Import!I41602","v":0},{"$f":"Import!I41613","v":0},{"$f":"Import!I41624","v":0},{"$f":"Import!I41635","v":0},2023,{"$f":"Import!I41646","v":0},{"$f":"Import!I41657","v":0},{"$f":"Import!I41668","v":0},{"$f":"Import!I41679","v":0},null,null,null,{"$f":"\"PaidCY\"&E$10&\"AY\"&B32","v":"PaidCY2016AY2016"},{"$f":"E32","v":0}]
["L48","Totals","XXX",{"$f":"C78","v":"XXX"},"XXX",{"$f":"E78","v":"XXX"},{"$f":"SUM(G67:G77)","v":0},{"$f":"SUM(H67:H77)","v":0},"Totals",{"$f":"SUM(J67:J77)","v":0},{"$f":"SUM(K67:K77)","v":0},{"$f":"SUM(L67:L77)","v":0},{"$f":"SUM(M67:M77)","v":0},null,null,null,{"$f":"\"PaidCY\"&F$10&\"AY\"&B29","v":"PaidCY2017AYPrior"},{"$f":"F29","v":0}]
[null,null,null,null,null,null,null,null,null,null,null,null,null,null,null,null,{"$f":"\"PaidCY\"&F$10&\"AY\"&B30","v":"PaidCY2017AY2014"},{"$f":"F30","v":0}]
[null,"COMMENTS",null,null,null,null,null,null,null,null,null,null,null,null,null,null,{"$f":"\"PaidCY\"&F$10&\"AY\"&B31","v":"PaidCY2017AY2015"},{"$f":"F31","v":0}]
[null,{"$f":"Import!I41680","v":0},null,null,null,null,null,null,null,null,null,null,null,null,null,null,{"$f":"\"PaidCY\"&G$10&\"AY\"&B30","v":"PaidCY2018AY2014"},{"$f":"G30","v":0}]
[null,null,null,null,null,null,null,null,null,null,null,null,null,null,null,null,{"$f":"\"PaidCY\"&G$10&\"AY\"&B31","v":"PaidCY2018AY2015"},{"$f":"G31","v":0}]
[null,null,null,null,null,null,null,null,null,null,null,null,null,null,null,null,{"$f":"\"PaidCY\"&G$10&\"AY\"&B32","v":"PaidCY2018AY2016"},{"$f":"G32","v":0}]
[null,null,null,null,null,null,null,null,null,null,null,null,null,null,null,null,{"$f":"\"PaidCY\"&G$10&\"AY\"&B33","v":"PaidCY2018AY2017"},{"$f":"G33","v":0}]
[]
[]
[]
[]
[]
[null,null,null,"Accident Year",null,null,null,null,null,null,null,null,null,null,null,null,{"$f":"\"PaidCY\"&H$10&\"AY\"&B33","v":"PaidCY2019AY2017"},{"$f":"H33","v":0}]
[null,null,null,"Underwriting Year",null,null,null,null,null,null,null,null,null,null,null,null,"PaidCY2019AY2018",0]
[null,null,null,null,null,null,null,null,null,null,null,null,null,null,null,null,"PaidCY2019AY2019",0]
[null,null,null,null,null,null,null,null,null,null,null,null,null,null,null,null,{"$f":"\"PaidCY\"&I$10&\"AY\"&B29","v":"PaidCY2020AYPrior"},{"$f":"I29","v":0}]
[null,null,null,null,null,null,null,null,null,null,null,null,null,null,null,null,"PaidCY2020AY2014",0]
[null,null,null,null,null,null,null,null,null,null,null,null,null,null,null,null,"PaidCY2020AY2015",0]

{"sheet":"Sch XI(a)(v)","index":78,"n_rows":87,"n_cols":20,"rows_kept":87,"cut":false,"hidden":true,"merged":[[80,1,82,12],[5,2,5,11],[23,2,23,11],[41,2,41,11],[0,13,0,14],[2,13,2,14],[2,1,2,2],[59,6,59,7],[60,6,60,7]]}
[null,"SCHEDULE OF LOSS TRIANGLES (LINE 5 - CASUALTY NON-PROPORTIONAL)",null,null,null,null,null,null,null,null,null,null,null,{"$f":"HYPERLINK(\"#'Index'!A1\",\"Return to Index\")","v":"Return to Index"}]
[null,{"$f":"'Company Information'!C7","v":"Enter Company Name"}]
[null,{"$f":" TEXT('Company Information'!C3,\"d mmmm yyyy\")","v":"31 December 2023"},null,null,null,null,null,null,null,null,null,null,null,"SCHEDULE XI(a)(v)"]
[null,{"$f":"\"expressed in\"& IF(1000>1,\" ['\"&MID(1000,2,LEN(1000))&\"s]\",\"\")&\" \"&'Form 1EBS'!$C$4","v":"expressed in ['000s] United States Dollars"}]
[]
[null,"Accounting Basis: ","INCURRED (ESTIMATED ULTIMATE) NET LOSSES AND ALLOCATED LOSS ADJUSTMENT EXPENSES REPORTED AT YEAR END ($000)",null,null,null,null,null,null,null,null,null,11,12,13,null,"AcctBasis",{"$f":"B7","v":"Accident Year"}]
[null,"Accident Year",null,null,null,null,null,null,null,null,null,null,"Ultimate","Development","Development",null,{"$f":"\"UltCY\"&C$10&\"AY\"&B11","v":"UltCY2014AYPrior"},{"$f":"C11","v":0},{"$f":"\"CATUltCY\"&L$10&\"AY\"&B11","v":"CATUltCY2023AYPrior"},{"$f":"M11","v":0}]
[null,"Years in Which",1,2,3,4,5,6,7,8,9,10,"Catastrophe",null,null,null,{"$f":"\"UltCY\"&C$10&\"AY\"&B12","v":"UltCY2014AY2014"},{"$f":"C12","v":0},"CATUltCY2023AY2014",0]
[null,"Losses Were",null,null,null,null,null,null,null,null,null,null,"Losses","One Year","Two Year",null,{"$f":"\"UltCY\"&D$10&\"AY\"&B11","v":"UltCY2015AYPrior"},{"$f":"D11","v":0},"CATUltCY2023AY2015",0]
[null,"Incurred",{"$f":"D10-1","v":2014},2015,2016,2017,2018,2019,2020,2021,2022,{"$f":"YEAR('Company Information'!C3)","v":2023},{"$f":"L10","v":2023},"Development","Development",null,{"$f":"\"UltCY\"&D$10&\"AY\"&B12","v":"UltCY2015AY2014"},{"$f":"D12","v":0},"CATUltCY2023AY2016",0]
["L1","Prior",{"$f":"Import!I41681","v":0},{"$f":"Import!I41683","v":0},{"$f":"Import!I41686","v":0},{"$f":"Import!I41690","v":0},{"$f":"Import!I41695","v":0},{"$f":"Import!I41701","v":0},{"$f":"Import!I41708","v":0},{"$f":"Import!I41716","v":0},{"$f":"Import!I41725","v":0},{"$f":"Import!I41735","v":0},{"$f":"Import!I41746","v":0},{"$f":"K11-L11","v":0},{"$f":"J11-L11","v":0},null,{"$f":"\"UltCY\"&D$10&\"AY\"&B13","v":"UltCY2015AY2015"},{"$f":"D13","v":0},"CATUltCY2023AY2017",0]
["L2",{"$f":"B13-1","v":2014},{"$f":"Import!I41682","v":0},{"$f":"Import!I41684","v":0},{"$f":"Import!I41687","v":0},{"$f":"Import!I41691","v":0},{"$f":"Import!I41696","v":0},{"$f":"Import!I41702","v":0},{"$f":"Import!I41709","v":0},{"$f":"Import!I41717","v":0},{"$f":"Import!I41726","v":0},{"$f":"Import!I41736","v":0},{"$f":"Import!I41747","v":0},0,0,null,{"$f":"\"UltCY\"&E$10&\"AY\"&B11","v":"UltCY2016AYPrior"},{"$f":"E11","v":0},"CATUltCY2023AY2018",0]
["L3",2015,"XXX",{"$f":"Import!I41685","v":0},{"$f":"Import!I41688","v":0},{"$f":"Import!I41692","v":0},{"$f":"Import!I41697","v":0},{"$f":"Import!I41703","v":0},{"$f":"Import!I41710","v":0},{"$f":"Import!I41718","v":0},{"$f":"Import!I41727","v":0},{"$f":"Import!I41737","v":0},{"$f":"Import!I41748","v":0},0,0,null,{"$f":"\"UltCY\"&E$10&\"AY\"&B12","v":"UltCY2016AY2014"},{"$f":"E12","v":0},"CATUltCY2023AY2019",0]
["L4",2016,"XXX","XXX",{"$f":"Import!I41689","v":0},{"$f":"Import!I41693","v":0},{"$f":"Import!I41698","v":0},{"$f":"Import!I41704","v":0},{"$f":"Import!I41711","v":0},{"$f":"Import!I41719","v":0},{"$f":"Import!I41728","v":0},{"$f":"Import!I41738","v":0},{"$f":"Import!I41749","v":0},0,0,null,{"$f":"\"UltCY\"&E$10&\"AY\"&B13","v":"UltCY2016AY2015"},{"$f":"E13","v":0},"CATUltCY2023AY2020",0]
["L5",2017,"XXX","XXX","XXX",{"$f":"Import!I41694","v":0},{"$f":"Import!I41699","v":0},{"$f":"Import!I41705","v":0},{"$f":"Import!I41712","v":0},{"$f":"Import!I41720","v":0},{"$f":"Import!I41729","v":0},{"$f":"Import!I41739","v":0},{"$f":"Import!I41750","v":0},0,0,null,{"$f":"\"UltCY\"&E$10&\"AY\"&B14","v":"UltCY2016AY2016"},{"$f":"E14","v":0},"CATUltCY2023AY2021",0]
["L6",2018,"XXX","XXX","XXX","XXX",{"$f":"Import!I41700","v":0},{"$f":"Import!I41706","v":0},{"$f":"Import!I41713","v":0},{"$f":"Import!I41721","v":0},{"$f":"Import!I41730","v":0},{"$f":"Import!I41740","v":0},{"$f":"Import!I41751","v":0},0,0,null,{"$f":"\"UltCY\"&F$10&\"AY\"&B11","v":"UltCY2017AYPrior"},{"$f":"F11","v":0},"CATUltCY2023AY2022",0]
["L7",2019,"XXX","XXX","XXX","XXX","XXX",{"$f":"Import!I41707","v":0},{"$f":"Import!I41714","v":0},{"$f":"Import!I41722","v":0},{"$f":"Import!I41731","v":0},{"$f":"Import!I41741","v":0},{"$f":"Import!I41752","v":0},0,0,null,{"$f":"\"UltCY\"&F$10&\"AY\"&B12","v":"UltCY2017AY2014"},{"$f":"F12","v":0},"CATUltCY2023AY2023",0]
["L8",2020,"XXX","XXX","XXX","XXX","XXX","XXX",{"$f":"Import!I41715","v":0},{"$f":"Import!I41723","v":0},{"$f":"Import!I41732","v":0},{"$f":"Import!I41742","v":0},{"$f":"Import!I41753","v":0},0,0,null,{"$f":"\"UltCY\"&F$10&\"AY\"&B13","v":"UltCY2017AY2015"},{"$f":"F13","v":0},{"$f":"\"CATPaidCY\"&L$10&\"AY\"&B29","v":"CATPaidCY2023AYPrior"},{"$f":"M29","v":0}]
["L9",2021,"XXX","XXX","XXX","XXX","XXX","XXX","XXX",{"$f":"Import!I41724","v":0},{"$f":"Import!I41733","v":0},{"$f":"Import!I41743","v":0},{"$f":"Import!I41754","v":0},0,0,null,{"$f":"\"UltCY\"&F$10&\"AY\"&B14","v":"UltCY2017AY2016"},{"$f":"F14","v":0},"CATPaidCY2023AY2014",0]
["L10",2022,"XXX","XXX","XXX","XXX","XXX","XXX","XXX","XXX",{"$f":"Import!I41734","v":0},{"$f":"Import!I41744","v":0},{"$f":"Import!I41755","v":0},0,"XXX",null,{"$f":"\"UltCY\"&F$10&\"AY\"&B15","v":"UltCY2017AY2017"},{"$f":"F15","v":0},"CATPaidCY2023AY2015",0]
["L11",{"$f":"L10","v":2023},"XXX","XXX","XXX","XXX","XXX","XXX","XXX","XXX","XXX",{"$f":"Import!I41745","v":0},{"$f":"Import!I41756","v":0},"XXX","XXX",null,{"$f":"\"UltCY\"&G$10&\"AY\"&B11","v":"UltCY2018AYPrior"},{"$f":"G11","v":0},"CATPaidCY2023AY2016",0]
["L12","Totals",null,null,null,null,null,null,null,null,null,null,{"$f":"SUM(M11:M21)","v":0},{"$f":"SUM(N11:N21)","v":0},{"$f":"SUM(O11:O21)","v":0},null,{"$f":"\"UltCY\"&G$10&\"AY\"&B12","v":"UltCY2018AY2014"},{"$f":"G12","v":0},"CATPaidCY2023AY2017",0]
[null,null,null,null,null,null,null,null,null,null,null,null,null,null,null,null,{"$f":"\"UltCY\"&G$10&\"AY\"&B13","v":"UltCY2018AY2015"},{"$f":"G13","v":0},"CATPaidCY2023AY2018",0]
[null,null,"CUMULATIVE PAID NET LOSSES AND ALLOCATED LOSS ADJUSTMENT EXPENSES REPORTED AT YEAR END ($000)",null,null,null,null,null,null,null,null,null,24,null,null,null,{"$f":"\"UltCY\"&G$10&\"AY\"&B15","v":"UltCY2018AY2017"},{"$f":"G15","v":0},{"$f":"\"CATPaidCY\"&L$10&\"AY\"&B36","v":"CATPaidCY2023AY2020"},{"$f":"M36","v":0}]
[null,null,null,null,null,null,null,null,null,null,null,null,"Paid",null,null,null,{"$f":"\"UltCY\"&G$10&\"AY\"&B16","v":"UltCY2018AY2018"},{"$f":"G16","v":0},{"$f":"\"CATPaidCY\"&L$10&\"AY\"&B37","v":"CATPaidCY2023AY2021"},{"$f":"M37","v":0}]
[null,"Years in Which",14,15,16,17,18,19,20,21,22,23,"Catastrophe",null,null,null,{"$f":"\"UltCY\"&H$10&\"AY\"&B11","v":"UltCY2019AYPrior"},{"$f":"H11","v":0},{"$f":"\"CATPaidCY\"&L$10&\"AY\"&B38","v":"CATPaidCY2023AY2022"},{"$f":"M38","v":0}]
[null,"Policies Were",null,null,null,null,null,null,null,null,null,null,"Losses",null,null,null,"UltCY2019AY2014",0,{"$f":"\"CATPaidCY\"&L$10&\"AY\"&B39","v":"CATPaidCY2023AY2023"},{"$f":"M39","v":0}]
[null,"Written",{"$f":"D28-1","v":2014},2015,2016,2017,2018,2019,2020,2021,2022,{"$f":"L10","v":2023},{"$f":"L28","v":2023},null,null,null,"UltCY2019AY2015",0,{"$f":"\"CATIBNRCY\"&L$10&\"AY\"&B47","v":"CATIBNRCY2023AYPrior"},{"$f":"M47","v":0}]
["L13","Prior",{"$f":"Import!I41757","v":0},{"$f":"Import!I41759","v":0},{"$f":"Import!I41762","v":0},{"$f":"Import!I41766","v":0},{"$f":"Import!I41771","v":0},{"$f":"Import!I41777","v":0},{"$f":"Import!I41784","v":0},{"$f":"Import!I41792","v":0},{"$f":"Import!I41801","v":0},{"$f":"Import!I41811","v":0},{"$f":"Import!I41822","v":0},null,null,null,"UltCY2019AY2016",0,"CATIBNRCY2023AY2014",0]
["L14",{"$f":"B31-1","v":2014},{"$f":"Import!I41758","v":0},{"$f":"Import!I41760","v":0},{"$f":"Import!I41763","v":0},{"$f":"Import!I41767","v":0},{"$f":"Import!I41772","v":0},{"$f":"Import!I41778","v":0},{"$f":"Import!I41785","v":0},{"$f":"Import!I41793","v":0},{"$f":"Import!I41802","v":0},{"$f":"Import!I41812","v":0},{"$f":"Import!I41823","v":0},null,null,null,"UltCY2019AY2017",0,"CATIBNRCY2023AY2015",0]
["L15",2015,"XXX",{"$f":"Import!I41761","v":0},{"$f":"Import!I41764","v":0},{"$f":"Import!I41768","v":0},{"$f":"Import!I41773","v":0},{"$f":"Import!I41779","v":0},{"$f":"Import!I41786","v":0},{"$f":"Import!I41794","v":0},{"$f":"Import!I41803","v":0},{"$f":"Import!I41813","v":0},{"$f":"Import!I41824","v":0},null,null,null,"UltCY2019AY2018",0,"CATIBNRCY2023AY2016",0]
["L16",2016,"XXX","XXX",{"$f":"Import!I41765","v":0},{"$f":"Import!I41769","v":0},{"$f":"Import!I41774","v":0},{"$f":"Import!I41780","v":0},{"$f":"Import!I41787","v":0},{"$f":"Import!I41795","v":0},{"$f":"Import!I41804","v":0},{"$f":"Import!I41814","v":0},{"$f":"Import!I41825","v":0},null,null,null,"UltCY2019AY2019",0,"CATIBNRCY2023AY2017",0]
["L17",2017,"XXX","XXX","XXX",{"$f":"Import!I41770","v":0},{"$f":"Import!I41775","v":0},{"$f":"Import!I41781","v":0},{"$f":"Import!I41788","v":0},{"$f":"Import!I41796","v":0},{"$f":"Import!I41805","v":0},{"$f":"Import!I41815","v":0},{"$f":"Import!I41826","v":0},null,null,null,{"$f":"\"UltCY\"&I$10&\"AY\"&B11","v":"UltCY2020AYPrior"},{"$f":"I11","v":0},"CATIBNRCY2023AY2018",0]
["L18",2018,"XXX","XXX","XXX","XXX",{"$f":"Import!I41776","v":0},{"$f":"Import!I41782","v":0},{"$f":"Import!I41789","v":0},{"$f":"Import!I41797","v":0},{"$f":"Import!I41806","v":0},{"$f":"Import!I41816","v":0},{"$f":"Import!I41827","v":0},null,null,null,"UltCY2020AY2014",0,"CATIBNRCY2023AY2019",0]
["L19",2019,"XXX","XXX","XXX","XXX","XXX",{"$f":"Import!I41783","v":0},{"$f":"Import!I41790","v":0},{"$f":"Import!I41798","v":0},{"$f":"Import!I41807","v":0},{"$f":"Import!I41817","v":0},{"$f":"Import!I41828","v":0},null,null,null,"UltCY2020AY2015",0,"CATIBNRCY2023AY2020",0]
["L20",2020,"XXX","XXX","XXX","XXX","XXX","XXX",{"$f":"Import!I41791","v":0},{"$f":"Import!I41799","v":0},{"$f":"Import!I41808","v":0},{"$f":"Import!I41818","v":0},{"$f":"Import!I41829","v":0},null,null,null,"UltCY2020AY2016",0,"CATIBNRCY2023AY2021",0]
["L21",2021,"XXX","XXX","XXX","XXX","XXX","XXX","XXX",{"$f":"Import!I41800","v":0},{"$f":"Import!I41809","v":0},{"$f":"Import!I41819","v":0},{"$f":"Import!I41830","v":0},null,null,null,"UltCY2020AY2017",0,"CATIBNRCY2023AY2022",0]
["L22",2022,"XXX","XXX","XXX","XXX","XXX","XXX","XXX","XXX",{"$f":"Import!I41810","v":0},{"$f":"Import!I41820","v":0},{"$f":"Import!I41831","v":0},null,null,null,"UltCY2020AY2018",0,"CATIBNRCY2023AY2023",0]
["L23",{"$f":"L28","v":2023},"XXX","XXX","XXX","XXX","XXX","XXX","XXX","XXX","XXX",{"$f":"Import!I41821","v":0},{"$f":"Import!I41832","v":0},null,null,null,"UltCY2020AY2019",0]
["L24","Totals",null,null,null,null,null,null,null,null,null,null,{"$f":"SUM(M29:M39)","v":0},null,null,null,"UltCY2020AY2020",0]
[null,null,null,null,null,null,null,null,null,null,null,null,null,null,null,null,{"$f":"\"UltCY\"&J$10&\"AY\"&B11","v":"UltCY2021AYPrior"},{"$f":"J11","v":0}]
[null,null,"BULK & IBNR RESERVES ON NET LOSSES AND ALLOCATED LOSS ADJUSTMENT EXPENSES REPORTED AT YEAR END ($000)",null,null,null,null,null,null,null,null,null,35,null,null,null,{"$f":"\"UltCY\"&J$10&\"AY\"&B13","v":"UltCY2021AY2015"},{"$f":"J13","v":0}]
[null,null,null,null,null,null,null,null,null,null,null,null,"Losses",null,null,null,"UltCY2021AY2016",0]
[null,"Years in Which",25,26,27,28,29,30,31,32,33,34,"Bulk & IBNR",null,null,null,"UltCY2021AY2017",0]
[null,"Policies Were",null,null,null,null,null,null,null,null,null,null,"Reserves",null,null,null,"UltCY2021AY2018",0]
[null,"Written",{"$f":"D46-1","v":2014},2015,2016,2017,2018,2019,2020,2021,2022,{"$f":"L28","v":2023},{"$f":"L46","v":2023},null,null,null,"UltCY2021AY2019",0]
["L25","Prior",{"$f":"Import!I41833","v":0},{"$f":"Import!I41835","v":0},{"$f":"Import!I41838","v":0},{"$f":"Import!I41842","v":0},{"$f":"Import!I41847","v":0},{"$f":"Import!I41853","v":0},{"$f":"Import!I41860","v":0},{"$f":"Import!I41868","v":0},{"$f":"Import!I41877","v":0},{"$f":"Import!I41887","v":0},{"$f":"Import!I41898","v":0},null,null,null,"UltCY2021AY2020",0]
["L26",{"$f":"B49-1","v":2014},{"$f":"Import!I41834","v":0},{"$f":"Import!I41836","v":0},{"$f":"Import!I41839","v":0},{"$f":"Import!I41843","v":0},{"$f":"Import!I41848","v":0},{"$f":"Import!I41854","v":0},{"$f":"Import!I41861","v":0},{"$f":"Import!I41869","v":0},{"$f":"Import!I41878","v":0},{"$f":"Import!I41888","v":0},{"$f":"Import!I41899","v":0},null,null,null,"UltCY2021AY2021",0]
["L27",2015,"XXX",{"$f":"Import!I41837","v":0},{"$f":"Import!I41840","v":0},{"$f":"Import!I41844","v":0},{"$f":"Import!I41849","v":0},{"$f":"Import!I41855","v":0},{"$f":"Import!I41862","v":0},{"$f":"Import!I41870","v":0},{"$f":"Import!I41879","v":0},{"$f":"Import!I41889","v":0},{"$f":"Import!I41900","v":0},null,null,null,{"$f":"\"UltCY\"&K$10&\"AY\"&B11","v":"UltCY2022AYPrior"},{"$f":"K11","v":0}]
["L28",2016,"XXX","XXX",{"$f":"Import!I41841","v":0},{"$f":"Import!I41845","v":0},{"$f":"Import!I41850","v":0},{"$f":"Import!I41856","v":0},{"$f":"Import!I41863","v":0},{"$f":"Import!I41871","v":0},{"$f":"Import!I41880","v":0},{"$f":"Import!I41890","v":0},{"$f":"Import!I41901","v":0},null,null,null,"UltCY2022AY2014",0]
["L29",2017,"XXX","XXX","XXX",{"$f":"Import!I41846","v":0},{"$f":"Import!I41851","v":0},{"$f":"Import!I41857","v":0},{"$f":"Import!I41864","v":0},{"$f":"Import!I41872","v":0},{"$f":"Import!I41881","v":0},{"$f":"Import!I41891","v":0},{"$f":"Import!I41902","v":0},null,null,null,"UltCY2022AY2015",0]
["L30",2018,"XXX","XXX","XXX","XXX",{"$f":"Import!I41852","v":0},{"$f":"Import!I41858","v":0},{"$f":"Import!I41865","v":0},{"$f":"Import!I41873","v":0},{"$f":"Import!I41882","v":0},{"$f":"Import!I41892","v":0},{"$f":"Import!I41903","v":0},null,null,null,"UltCY2022AY2016",0]
["L31",2019,"XXX","XXX","XXX","XXX","XXX",{"$f":"Import!I41859","v":0},{"$f":"Import!I41866","v":0},{"$f":"Import!I41874","v":0},{"$f":"Import!I41883","v":0},{"$f":"Import!I41893","v":0},{"$f":"Import!I41904","v":0},null,null,null,"UltCY2022AY2017",0]
["L32",2020,"XXX","XXX","XXX","XXX","XXX","XXX",{"$f":"Import!I41867","v":0},{"$f":"Import!I41875","v":0},{"$f":"Import!I41884","v":0},{"$f":"Import!I41894","v":0},{"$f":"Import!I41905","v":0},null,null,null,"UltCY2022AY2018",0]
["L33",2021,"XXX","XXX","XXX","XXX","XXX","XXX","XXX",{"$f":"Import!I41876","v":0},{"$f":"Import!I41885","v":0},{"$f":"Import!I41895","v":0},{"$f":"Import!I41906","v":0},null,null,null,"UltCY2022AY2019",0]
["L34",2022,"XXX","XXX","XXX","XXX","XXX","XXX","XXX","XXX",{"$f":"Import!I41886","v":0},{"$f":"Import!I41896","v":0},{"$f":"Import!I41907","v":0},null,null,null,"UltCY2022AY2020",0]
["L35",{"$f":"L46","v":2023},"XXX","XXX","XXX","XXX","XXX","XXX","XXX","XXX","XXX",{"$f":"Import!I41897","v":0},{"$f":"Import!I41908","v":0},null,null,null,"UltCY2022AY2021",0]
["L36","Totals",null,null,null,null,null,null,null,null,null,null,{"$f":"SUM(M47:M57)","v":0},null,null,null,"UltCY2022AY2022",0]
[null,null,null,null,null,null,null,null,null,null,null,null,null,null,null,null,{"$f":"\"UltCY\"&L$10&\"AY\"&B11","v":"UltCY2023AYPrior"},{"$f":"L11","v":0}]
[null,null,36,37,38,39,"Unallocated Loss",null,null,42,43,44,45,null,null,null,{"$f":"\"UltCY\"&L$10&\"AY\"&B13","v":"UltCY2023AY2015"},{"$f":"L13","v":0}]
[null,"Years in Which",null,null,null,null,"Adjustment Expenses",null,null,null,null,null,null,null,null,null,"UltCY2023AY2016",0]
[null,"Premiums",null,null,null,null,40,41,null,null,null,null,null,null,null,null,"UltCY2023AY2017",0]
[null,"Were",null,null,null,null,null,null,null,"Commission and","General and",null,null,null,null,null,"UltCY2023AY2018",0]
[null,"Earned and","Gross","Gross","Net","Net",null,null,null,"Brokerage","Administrative","Personnel","Other",null,null,null,"UltCY2023AY2019",0]
[null,"Losses Were","Premiums","Premiums","Premiums","Premiums",null,null,"Calendar","Expense","Expense","Costs","Expense",null,null,null,"UltCY2023AY2020",0]
[null,"Incurred","Written","Earned","Written","Earned","Paid","Incurred","Year","(Form 2A, Line 9)","(Form 2A, Line 10)","(Form 2A, Line 11)","(Form 2A, Line 12)",null,null,null,"UltCY2023AY2021",0]
["L37","Prior","XXX",{"$f":"C67","v":"XXX"},"XXX",{"$f":"E67","v":"XXX"},{"$f":"Import!I41953","v":0},{"$f":"Import!I41964","v":0},"Prior",{"$f":"Import!I41975","v":0},{"$f":"Import!I41986","v":0},{"$f":"Import!I41997","v":0},{"$f":"Import!I42008","v":0},null,null,null,"UltCY2023AY2022",0]
["L38",{"$f":"B69-1","v":2014},{"$f":"Import!I41910","v":0},{"$f":"Import!I41921","v":0},{"$f":"Import!I41932","v":0},{"$f":"Import!I41943","v":0},{"$f":"Import!I41954","v":0},{"$f":"Import!I41965","v":0},{"$f":"B68","v":2014},{"$f":"Import!I41976","v":0},{"$f":"Import!I41987","v":0},{"$f":"Import!I41998","v":0},{"$f":"Import!I42009","v":0},null,null,null,"UltCY2023AY2023",0]
["L39",2015,{"$f":"Import!I41911","v":0},{"$f":"Import!I41922","v":0},{"$f":"Import!I41933","v":0},{"$f":"Import!I41944","v":0},{"$f":"Import!I41955","v":0},{"$f":"Import!I41966","v":0},2015,{"$f":"Import!I41977","v":0},{"$f":"Import!I41988","v":0},{"$f":"Import!I41999","v":0},{"$f":"Import!I42010","v":0},null,null,null,{"$f":"\"PaidCY\"&C$10&\"AY\"&B29","v":"PaidCY2014AYPrior"},{"$f":"C29","v":0}]
["L40",2016,{"$f":"Import!I41912","v":0},{"$f":"Import!I41923","v":0},{"$f":"Import!I41934","v":0},{"$f":"Import!I41945","v":0},{"$f":"Import!I41956","v":0},{"$f":"Import!I41967","v":0},2016,{"$f":"Import!I41978","v":0},{"$f":"Import!I41989","v":0},{"$f":"Import!I42000","v":0},{"$f":"Import!I42011","v":0},null,null,null,{"$f":"\"PaidCY\"&C$10&\"AY\"&B30","v":"PaidCY2014AY2014"},{"$f":"C30","v":0}]
["L41",2017,{"$f":"Import!I41913","v":0},{"$f":"Import!I41924","v":0},{"$f":"Import!I41935","v":0},{"$f":"Import!I41946","v":0},{"$f":"Import!I41957","v":0},{"$f":"Import!I41968","v":0},2017,{"$f":"Import!I41979","v":0},{"$f":"Import!I41990","v":0},{"$f":"Import!I42001","v":0},{"$f":"Import!I42012","v":0},null,null,null,{"$f":"\"PaidCY\"&D$10&\"AY\"&B29","v":"PaidCY2015AYPrior"},{"$f":"D29","v":0}]
["L42",2018,{"$f":"Import!I41914","v":0},{"$f":"Import!I41925","v":0},{"$f":"Import!I41936","v":0},{"$f":"Import!I41947","v":0},{"$f":"Import!I41958","v":0},{"$f":"Import!I41969","v":0},2018,{"$f":"Import!I41980","v":0},{"$f":"Import!I41991","v":0},{"$f":"Import!I42002","v":0},{"$f":"Import!I42013","v":0},null,null,null,{"$f":"\"PaidCY\"&D$10&\"AY\"&B30","v":"PaidCY2015AY2014"},{"$f":"D30","v":0}]
["L43",2019,{"$f":"Import!I41915","v":0},{"$f":"Import!I41926","v":0},{"$f":"Import!I41937","v":0},{"$f":"Import!I41948","v":0},{"$f":"Import!I41959","v":0},{"$f":"Import!I41970","v":0},2019,{"$f":"Import!I41981","v":0},{"$f":"Import!I41992","v":0},{"$f":"Import!I42003","v":0},{"$f":"Import!I42014","v":0},null,null,null,{"$f":"\"PaidCY\"&D$10&\"AY\"&B31","v":"PaidCY2015AY2015"},{"$f":"D31","v":0}]
["L44",2020,{"$f":"Import!I41916","v":0},{"$f":"Import!I41927","v":0},{"$f":"Import!I41938","v":0},{"$f":"Import!I41949","v":0},{"$f":"Import!I41960","v":0},{"$f":"Import!I41971","v":0},2020,{"$f":"Import!I41982","v":0},{"$f":"Import!I41993","v":0},{"$f":"Import!I42004","v":0},{"$f":"Import!I42015","v":0},null,null,null,{"$f":"\"PaidCY\"&E$10&\"AY\"&B29","v":"PaidCY2016AYPrior"},{"$f":"E29","v":0}]
["L45",2021,{"$f":"Import!I41917","v":0},{"$f":"Import!I41928","v":0},{"$f":"Import!I41939","v":0},{"$f":"Import!I41950","v":0},{"$f":"Import!I41961","v":0},{"$f":"Import!I41972","v":0},2021,{"$f":"Import!I41983","v":0},{"$f":"Import!I41994","v":0},{"$f":"Import!I42005","v":0},{"$f":"Import!I42016","v":0},null,null,null,{"$f":"\"PaidCY\"&E$10&\"AY\"&B30","v":"PaidCY2016AY2014"},{"$f":"E30","v":0}]
["L46",2022,{"$f":"Import!I41918","v":0},{"$f":"Import!I41929","v":0},{"$f":"Import!I41940","v":0},{"$f":"Import!I41951","v":0},{"$f":"Import!I41962","v":0},{"$f":"Import!I41973","v":0},2022,{"$f":"Import!I41984","v":0},{"$f":"Import!I41995","v":0},{"$f":"Import!I42006","v":0},{"$f":"Import!I42017","v":0},null,null,null,{"$f":"\"PaidCY\"&E$10&\"AY\"&B31","v":"PaidCY2016AY2015"},{"$f":"E31","v":0}]
["L47",{"$f":"B39","v":2023},{"$f":"Import!I41919","v":0},{"$f":"Import!I41930","v":0},{"$f":"Import!I41941","v":0},{"$f":"Import!I41952","v":0},{"$f":"Import!I41963","v":0},{"$f":"Import!I41974","v":0},2023,{"$f":"Import!I41985","v":0},{"$f":"Import!I41996","v":0},{"$f":"Import!I42007","v":0},{"$f":"Import!I42018","v":0},null,null,null,{"$f":"\"PaidCY\"&E$10&\"AY\"&B32","v":"PaidCY2016AY2016"},{"$f":"E32","v":0}]
["L48","Totals","XXX",{"$f":"C78","v":"XXX"},"XXX",{"$f":"E78","v":"XXX"},{"$f":"SUM(G67:G77)","v":0},{"$f":"SUM(H67:H77)","v":0},"Totals",{"$f":"SUM(J67:J77)","v":0},{"$f":"SUM(K67:K77)","v":0},{"$f":"SUM(L67:L77)","v":0},{"$f":"SUM(M67:M77)","v":0},null,null,null,{"$f":"\"PaidCY\"&F$10&\"AY\"&B29","v":"PaidCY2017AYPrior"},{"$f":"F29","v":0}]
[null,null,null,null,null,null,null,null,null,null,null,null,null,null,null,null,{"$f":"\"PaidCY\"&F$10&\"AY\"&B30","v":"PaidCY2017AY2014"},{"$f":"F30","v":0}]
[null,"COMMENTS",null,null,null,null,null,null,null,null,null,null,null,null,null,null,{"$f":"\"PaidCY\"&F$10&\"AY\"&B31","v":"PaidCY2017AY2015"},{"$f":"F31","v":0}]
[null,{"$f":"Import!I42019","v":0},null,null,null,null,null,null,null,null,null,null,null,null,null,null,{"$f":"\"PaidCY\"&G$10&\"AY\"&B30","v":"PaidCY2018AY2014"},{"$f":"G30","v":0}]
[null,null,null,null,null,null,null,null,null,null,null,null,null,null,null,null,{"$f":"\"PaidCY\"&G$10&\"AY\"&B31","v":"PaidCY2018AY2015"},{"$f":"G31","v":0}]
[null,null,null,null,null,null,null,null,null,null,null,null,null,null,null,null,{"$f":"\"PaidCY\"&G$10&\"AY\"&B32","v":"PaidCY2018AY2016"},{"$f":"G32","v":0}]
[null,null,null,null,null,null,null,null,null,null,null,null,null,null,null,null,{"$f":"\"PaidCY\"&G$10&\"AY\"&B34","v":"PaidCY2018AY2018"},{"$f":"G34","v":0}]
[null,null,null,null,null,null,null,null,null,null,null,null,null,null,null,null,{"$f":"\"PaidCY\"&H$10&\"AY\"&B29","v":"PaidCY2019AYPrior"},{"$f":"H29","v":0}]
[null,null,"Accident Year",null,null,null,null,null,null,null,null,null,null,null,null,null,{"$f":"\"PaidCY\"&H$10&\"AY\"&B30","v":"PaidCY2019AY2014"},{"$f":"H30","v":0}]
[null,null,"Underwriting Year",null,null,null,null,null,null,null,null,null,null,null,null,null,{"$f":"\"PaidCY\"&H$10&\"AY\"&B31","v":"PaidCY2019AY2015"},{"$f":"H31","v":0}]

{"sheet":"Sch XI(a)(vi)","index":79,"n_rows":94,"n_cols":20,"rows_kept":94,"cut":false,"hidden":true,"merged":[[80,1,82,12],[5,2,5,11],[59,6,59,7],[41,2,41,11],[0,13,0,14],[2,13,2,14],[2,1,2,2],[60,6,60,7],[23,2,23,11]]}
[null,"SCHEDULE OF LOSS TRIANGLES (LINE 6 - FINANCIAL LINES)",null,null,null,null,null,null,null,null,null,null,null,{"$f":"HYPERLINK(\"#'Index'!A1\",\"Return to Index\")","v":"Return to Index"}]
[null,{"$f":"'Company Information'!C7","v":"Enter Company Name"}]
[null,{"$f":" TEXT('Company Information'!C3,\"d mmmm yyyy\")","v":"31 December 2023"},null,null,null,null,null,null,null,null,null,null,null,"SCHEDULE XI(a)(vi)"]
[null,{"$f":"\"expressed in\"& IF(1000>1,\" ['\"&MID(1000,2,LEN(1000))&\"s]\",\"\")&\" \"&'Form 1EBS'!$C$4","v":"expressed in ['000s] United States Dollars"}]
[]
[null,"Accounting Basis: *","INCURRED (ESTIMATED ULTIMATE) NET LOSSES AND ALLOCATED LOSS ADJUSTMENT EXPENSES REPORTED AT YEAR END ($000)",null,null,null,null,null,null,null,null,null,11,12,13,null,"AcctBasis",{"$f":"B7","v":"Accident Year"}]
[null,"Accident Year",null,null,null,null,null,null,null,null,null,null,"Ultimate","Development","Development",null,{"$f":"\"UltCY\"&C$10&\"AY\"&B11","v":"UltCY2014AYPrior"},{"$f":"C11","v":0},{"$f":"\"CATUltCY\"&L$10&\"AY\"&B11","v":"CATUltCY2023AYPrior"},{"$f":"M11","v":0}]
[null,"Years in Which",1,2,3,4,5,6,7,8,9,10,"Catastrophe",null,null,null,{"$f":"\"UltCY\"&C$10&\"AY\"&B12","v":"UltCY2014AY2014"},{"$f":"C12","v":0},"CATUltCY2023AY2014",0]
[null,"Losses Were",null,null,null,null,null,null,null,null,null,null,"Losses","One Year","Two Year",null,{"$f":"\"UltCY\"&D$10&\"AY\"&B11","v":"UltCY2015AYPrior"},{"$f":"D11","v":0},"CATUltCY2023AY2015",0]
[null,"Incurred",{"$f":"D10-1","v":2014},2015,2016,2017,2018,2019,2020,2021,2022,{"$f":"YEAR('Company Information'!C3)","v":2023},{"$f":"L10","v":2023},"Development","Development",null,{"$f":"\"UltCY\"&D$10&\"AY\"&B12","v":"UltCY2015AY2014"},{"$f":"D12","v":0},"CATUltCY2023AY2016",0]
["L1","Prior",{"$f":"Import!I42020","v":0},{"$f":"Import!I42022","v":0},{"$f":"Import!I42025","v":0},{"$f":"Import!I42029","v":0},{"$f":"Import!I42034","v":0},{"$f":"Import!I42040","v":0},{"$f":"Import!I42047","v":0},{"$f":"Import!I42055","v":0},{"$f":"Import!I42064","v":0},{"$f":"Import!I42074","v":0},{"$f":"Import!I42085","v":0},{"$f":"K11-L11","v":0},{"$f":"J11-L11","v":0},null,{"$f":"\"UltCY\"&D$10&\"AY\"&B13","v":"UltCY2015AY2015"},{"$f":"D13","v":0},"CATUltCY2023AY2017",0]
["L2",{"$f":"B13-1","v":2014},{"$f":"Import!I42021","v":0},{"$f":"Import!I42023","v":0},{"$f":"Import!I42026","v":0},{"$f":"Import!I42030","v":0},{"$f":"Import!I42035","v":0},{"$f":"Import!I42041","v":0},{"$f":"Import!I42048","v":0},{"$f":"Import!I42056","v":0},{"$f":"Import!I42065","v":0},{"$f":"Import!I42075","v":0},{"$f":"Import!I42086","v":0},0,0,null,{"$f":"\"UltCY\"&E$10&\"AY\"&B11","v":"UltCY2016AYPrior"},{"$f":"E11","v":0},"CATUltCY2023AY2018",0]
["L3",2015,"XXX",{"$f":"Import!I42024","v":0},{"$f":"Import!I42027","v":0},{"$f":"Import!I42031","v":0},{"$f":"Import!I42036","v":0},{"$f":"Import!I42042","v":0},{"$f":"Import!I42049","v":0},{"$f":"Import!I42057","v":0},{"$f":"Import!I42066","v":0},{"$f":"Import!I42076","v":0},{"$f":"Import!I42087","v":0},0,0,null,{"$f":"\"UltCY\"&E$10&\"AY\"&B12","v":"UltCY2016AY2014"},{"$f":"E12","v":0},"CATUltCY2023AY2019",0]
["L4",2016,"XXX","XXX",{"$f":"Import!I42028","v":0},{"$f":"Import!I42032","v":0},{"$f":"Import!I42037","v":0},{"$f":"Import!I42043","v":0},{"$f":"Import!I42050","v":0},{"$f":"Import!I42058","v":0},{"$f":"Import!I42067","v":0},{"$f":"Import!I42077","v":0},{"$f":"Import!I42088","v":0},0,0,null,{"$f":"\"UltCY\"&E$10&\"AY\"&B13","v":"UltCY2016AY2015"},{"$f":"E13","v":0},"CATUltCY2023AY2020",0]
["L5",2017,"XXX","XXX","XXX",{"$f":"Import!I42033","v":0},{"$f":"Import!I42038","v":0},{"$f":"Import!I42044","v":0},{"$f":"Import!I42051","v":0},{"$f":"Import!I42059","v":0},{"$f":"Import!I42068","v":0},{"$f":"Import!I42078","v":0},{"$f":"Import!I42089","v":0},0,0,null,{"$f":"\"UltCY\"&E$10&\"AY\"&B14","v":"UltCY2016AY2016"},{"$f":"E14","v":0},"CATUltCY2023AY2021",0]
["L6",2018,"XXX","XXX","XXX","XXX",{"$f":"Import!I42039","v":0},{"$f":"Import!I42045","v":0},{"$f":"Import!I42052","v":0},{"$f":"Import!I42060","v":0},{"$f":"Import!I42069","v":0},{"$f":"Import!I42079","v":0},{"$f":"Import!I42090","v":0},0,0,null,{"$f":"\"UltCY\"&F$10&\"AY\"&B11","v":"UltCY2017AYPrior"},{"$f":"F11","v":0},"CATUltCY2023AY2022",0]
["L7",2019,"XXX","XXX","XXX","XXX","XXX",{"$f":"Import!I42046","v":0},{"$f":"Import!I42053","v":0},{"$f":"Import!I42061","v":0},{"$f":"Import!I42070","v":0},{"$f":"Import!I42080","v":0},{"$f":"Import!I42091","v":0},0,0,null,{"$f":"\"UltCY\"&F$10&\"AY\"&B12","v":"UltCY2017AY2014"},{"$f":"F12","v":0},"CATUltCY2023AY2023",0]
["L8",2020,"XXX","XXX","XXX","XXX","XXX","XXX",{"$f":"Import!I42054","v":0},{"$f":"Import!I42062","v":0},{"$f":"Import!I42071","v":0},{"$f":"Import!I42081","v":0},{"$f":"Import!I42092","v":0},0,0,null,{"$f":"\"UltCY\"&F$10&\"AY\"&B13","v":"UltCY2017AY2015"},{"$f":"F13","v":0},{"$f":"\"CATPaidCY\"&L$10&\"AY\"&B29","v":"CATPaidCY2023AYPrior"},{"$f":"M29","v":0}]
["L9",2021,"XXX","XXX","XXX","XXX","XXX","XXX","XXX",{"$f":"Import!I42063","v":0},{"$f":"Import!I42072","v":0},{"$f":"Import!I42082","v":0},{"$f":"Import!I42093","v":0},0,0,null,{"$f":"\"UltCY\"&F$10&\"AY\"&B14","v":"UltCY2017AY2016"},{"$f":"F14","v":0},"CATPaidCY2023AY2014",0]
["L10",2022,"XXX","XXX","XXX","XXX","XXX","XXX","XXX","XXX",{"$f":"Import!I42073","v":0},{"$f":"Import!I42083","v":0},{"$f":"Import!I42094","v":0},0,"XXX",null,{"$f":"\"UltCY\"&F$10&\"AY\"&B15","v":"UltCY2017AY2017"},{"$f":"F15","v":0},"CATPaidCY2023AY2015",0]
["L11",{"$f":"L10","v":2023},"XXX","XXX","XXX","XXX","XXX","XXX","XXX","XXX","XXX",{"$f":"Import!I42084","v":0},{"$f":"Import!I42095","v":0},"XXX","XXX",null,{"$f":"\"UltCY\"&G$10&\"AY\"&B11","v":"UltCY2018AYPrior"},{"$f":"G11","v":0},"CATPaidCY2023AY2016",0]
["L12","Totals",null,null,null,null,null,null,null,null,null,null,{"$f":"SUM(M11:M21)","v":0},{"$f":"SUM(N11:N21)","v":0},{"$f":"SUM(O11:O21)","v":0},null,{"$f":"\"UltCY\"&G$10&\"AY\"&B12","v":"UltCY2018AY2014"},{"$f":"G12","v":0},"CATPaidCY2023AY2017",0]
[null,null,null,null,null,null,null,null,null,null,null,null,null,null,null,null,{"$f":"\"UltCY\"&G$10&\"AY\"&B13","v":"UltCY2018AY2015"},{"$f":"G13","v":0},"CATPaidCY2023AY2018",0]
[null,null,"CUMULATIVE PAID NET LOSSES AND ALLOCATED LOSS ADJUSTMENT EXPENSES REPORTED AT YEAR END ($000)",null,null,null,null,null,null,null,null,null,24,null,null,null,{"$f":"\"UltCY\"&G$10&\"AY\"&B15","v":"UltCY2018AY2017"},{"$f":"G15","v":0},{"$f":"\"CATPaidCY\"&L$10&\"AY\"&B36","v":"CATPaidCY2023AY2020"},{"$f":"M36","v":0}]
[null,null,null,null,null,null,null,null,null,null,null,null,"Paid",null,null,null,{"$f":"\"UltCY\"&G$10&\"AY\"&B16","v":"UltCY2018AY2018"},{"$f":"G16","v":0},{"$f":"\"CATPaidCY\"&L$10&\"AY\"&B37","v":"CATPaidCY2023AY2021"},{"$f":"M37","v":0}]
[null,"Years in Which",14,15,16,17,18,19,20,21,22,23,"Catastrophe",null,null,null,{"$f":"\"UltCY\"&H$10&\"AY\"&B11","v":"UltCY2019AYPrior"},{"$f":"H11","v":0},{"$f":"\"CATPaidCY\"&L$10&\"AY\"&B38","v":"CATPaidCY2023AY2022"},{"$f":"M38","v":0}]
[null,"Policies Were",null,null,null,null,null,null,null,null,null,null,"Losses",null,null,null,"UltCY2019AY2014",0,{"$f":"\"CATPaidCY\"&L$10&\"AY\"&B39","v":"CATPaidCY2023AY2023"},{"$f":"M39","v":0}]
[null,"Written",{"$f":"D28-1","v":2014},2015,2016,2017,2018,2019,2020,2021,2022,{"$f":"L10","v":2023},{"$f":"L28","v":2023},null,null,null,"UltCY2019AY2015",0,{"$f":"\"CATIBNRCY\"&L$10&\"AY\"&B47","v":"CATIBNRCY2023AYPrior"},{"$f":"M47","v":0}]
["L13","Prior",{"$f":"Import!I42096","v":0},{"$f":"Import!I42098","v":0},{"$f":"Import!I42101","v":0},{"$f":"Import!I42105","v":0},{"$f":"Import!I42110","v":0},{"$f":"Import!I42116","v":0},{"$f":"Import!I42123","v":0},{"$f":"Import!I42131","v":0},{"$f":"Import!I42140","v":0},{"$f":"Import!I42150","v":0},{"$f":"Import!I42161","v":0},null,null,null,"UltCY2019AY2016",0,"CATIBNRCY2023AY2014",0]
["L14",{"$f":"B31-1","v":2014},{"$f":"Import!I42097","v":0},{"$f":"Import!I42099","v":0},{"$f":"Import!I42102","v":0},{"$f":"Import!I42106","v":0},{"$f":"Import!I42111","v":0},{"$f":"Import!I42117","v":0},{"$f":"Import!I42124","v":0},{"$f":"Import!I42132","v":0},{"$f":"Import!I42141","v":0},{"$f":"Import!I42151","v":0},{"$f":"Import!I42162","v":0},null,null,null,"UltCY2019AY2017",0,"CATIBNRCY2023AY2015",0]
["L15",2015,"XXX",{"$f":"Import!I42100","v":0},{"$f":"Import!I42103","v":0},{"$f":"Import!I42107","v":0},{"$f":"Import!I42112","v":0},{"$f":"Import!I42118","v":0},{"$f":"Import!I42125","v":0},{"$f":"Import!I42133","v":0},{"$f":"Import!I42142","v":0},{"$f":"Import!I42152","v":0},{"$f":"Import!I42163","v":0},null,null,null,"UltCY2019AY2018",0,"CATIBNRCY2023AY2016",0]
["L16",2016,"XXX","XXX",{"$f":"Import!I42104","v":0},{"$f":"Import!I42108","v":0},{"$f":"Import!I42113","v":0},{"$f":"Import!I42119","v":0},{"$f":"Import!I42126","v":0},{"$f":"Import!I42134","v":0},{"$f":"Import!I42143","v":0},{"$f":"Import!I42153","v":0},{"$f":"Import!I42164","v":0},null,null,null,"UltCY2019AY2019",0,"CATIBNRCY2023AY2017",0]
["L17",2017,"XXX","XXX","XXX",{"$f":"Import!I42109","v":0},{"$f":"Import!I42114","v":0},{"$f":"Import!I42120","v":0},{"$f":"Import!I42127","v":0},{"$f":"Import!I42135","v":0},{"$f":"Import!I42144","v":0},{"$f":"Import!I42154","v":0},{"$f":"Import!I42165","v":0},null,null,null,{"$f":"\"UltCY\"&I$10&\"AY\"&B11","v":"UltCY2020AYPrior"},{"$f":"I11","v":0},"CATIBNRCY2023AY2018",0]
["L18",2018,"XXX","XXX","XXX","XXX",{"$f":"Import!I42115","v":0},{"$f":"Import!I42121","v":0},{"$f":"Import!I42128","v":0},{"$f":"Import!I42136","v":0},{"$f":"Import!I42145","v":0},{"$f":"Import!I42155","v":0},{"$f":"Import!I42166","v":0},null,null,null,"UltCY2020AY2014",0,"CATIBNRCY2023AY2019",0]
["L19",2019,"XXX","XXX","XXX","XXX","XXX",{"$f":"Import!I42122","v":0},{"$f":"Import!I42129","v":0},{"$f":"Import!I42137","v":0},{"$f":"Import!I42146","v":0},{"$f":"Import!I42156","v":0},{"$f":"Import!I42167","v":0},null,null,null,"UltCY2020AY2015",0,"CATIBNRCY2023AY2020",0]
["L20",2020,"XXX","XXX","XXX","XXX","XXX","XXX",{"$f":"Import!I42130","v":0},{"$f":"Import!I42138","v":0},{"$f":"Import!I42147","v":0},{"$f":"Import!I42157","v":0},{"$f":"Import!I42168","v":0},null,null,null,"UltCY2020AY2016",0,"CATIBNRCY2023AY2021",0]
["L21",2021,"XXX","XXX","XXX","XXX","XXX","XXX","XXX",{"$f":"Import!I42139","v":0},{"$f":"Import!I42148","v":0},{"$f":"Import!I42158","v":0},{"$f":"Import!I42169","v":0},null,null,null,"UltCY2020AY2017",0,"CATIBNRCY2023AY2022",0]
["L22",2022,"XXX","XXX","XXX","XXX","XXX","XXX","XXX","XXX",{"$f":"Import!I42149","v":0},{"$f":"Import!I42159","v":0},{"$f":"Import!I42170","v":0},null,null,null,"UltCY2020AY2018",0,"CATIBNRCY2023AY2023",0]
["L23",{"$f":"L28","v":2023},"XXX","XXX","XXX","XXX","XXX","XXX","XXX","XXX","XXX",{"$f":"Import!I42160","v":0},{"$f":"Import!I42171","v":0},null,null,null,"UltCY2020AY2019",0]
["L24","Totals",null,null,null,null,null,null,null,null,null,null,{"$f":"SUM(M29:M39)","v":0},null,null,null,"UltCY2020AY2020",0]
[null,null,null,null,null,null,null,null,null,null,null,null,null,null,null,null,{"$f":"\"UltCY\"&J$10&\"AY\"&B11","v":"UltCY2021AYPrior"},{"$f":"J11","v":0}]
[null,null,"BULK & IBNR RESERVES ON NET LOSSES AND ALLOCATED LOSS ADJUSTMENT EXPENSES REPORTED AT YEAR END ($000)",null,null,null,null,null,null,null,null,null,35,null,null,null,{"$f":"\"UltCY\"&J$10&\"AY\"&B13","v":"UltCY2021AY2015"},{"$f":"J13","v":0}]
[null,null,null,null,null,null,null,null,null,null,null,null,"Losses",null,null,null,"UltCY2021AY2016",0]
[null,"Years in Which",25,26,27,28,29,30,31,32,33,34,"Bulk & IBNR",null,null,null,"UltCY2021AY2017",0]
[null,"Policies Were",null,null,null,null,null,null,null,null,null,null,"Reserves",null,null,null,"UltCY2021AY2018",0]
[null,"Written",{"$f":"D46-1","v":2014},2015,2016,2017,2018,2019,2020,2021,2022,{"$f":"L28","v":2023},{"$f":"L46","v":2023},null,null,null,"UltCY2021AY2019",0]
["L25","Prior",{"$f":"Import!I42172","v":0},{"$f":"Import!I42174","v":0},{"$f":"Import!I42177","v":0},{"$f":"Import!I42181","v":0},{"$f":"Import!I42186","v":0},{"$f":"Import!I42192","v":0},{"$f":"Import!I42199","v":0},{"$f":"Import!I42207","v":0},{"$f":"Import!I42216","v":0},{"$f":"Import!I42226","v":0},{"$f":"Import!I42237","v":0},null,null,null,"UltCY2021AY2020",0]
["L26",{"$f":"B49-1","v":2014},{"$f":"Import!I42173","v":0},{"$f":"Import!I42175","v":0},{"$f":"Import!I42178","v":0},{"$f":"Import!I42182","v":0},{"$f":"Import!I42187","v":0},{"$f":"Import!I42193","v":0},{"$f":"Import!I42200","v":0},{"$f":"Import!I42208","v":0},{"$f":"Import!I42217","v":0},{"$f":"Import!I42227","v":0},{"$f":"Import!I42238","v":0},null,null,null,"UltCY2021AY2021",0]
["L27",2015,"XXX",{"$f":"Import!I42176","v":0},{"$f":"Import!I42179","v":0},{"$f":"Import!I42183","v":0},{"$f":"Import!I42188","v":0},{"$f":"Import!I42194","v":0},{"$f":"Import!I42201","v":0},{"$f":"Import!I42209","v":0},{"$f":"Import!I42218","v":0},{"$f":"Import!I42228","v":0},{"$f":"Import!I42239","v":0},null,null,null,{"$f":"\"UltCY\"&K$10&\"AY\"&B11","v":"UltCY2022AYPrior"},{"$f":"K11","v":0}]
["L28",2016,"XXX","XXX",{"$f":"Import!I42180","v":0},{"$f":"Import!I42184","v":0},{"$f":"Import!I42189","v":0},{"$f":"Import!I42195","v":0},{"$f":"Import!I42202","v":0},{"$f":"Import!I42210","v":0},{"$f":"Import!I42219","v":0},{"$f":"Import!I42229","v":0},{"$f":"Import!I42240","v":0},null,null,null,"UltCY2022AY2014",0]
["L29",2017,"XXX","XXX","XXX",{"$f":"Import!I42185","v":0},{"$f":"Import!I42190","v":0},{"$f":"Import!I42196","v":0},{"$f":"Import!I42203","v":0},{"$f":"Import!I42211","v":0},{"$f":"Import!I42220","v":0},{"$f":"Import!I42230","v":0},{"$f":"Import!I42241","v":0},null,null,null,"UltCY2022AY2015",0]
["L30",2018,"XXX","XXX","XXX","XXX",{"$f":"Import!I42191","v":0},{"$f":"Import!I42197","v":0},{"$f":"Import!I42204","v":0},{"$f":"Import!I42212","v":0},{"$f":"Import!I42221","v":0},{"$f":"Import!I42231","v":0},{"$f":"Import!I42242","v":0},null,null,null,"UltCY2022AY2016",0]
["L31",2019,"XXX","XXX","XXX","XXX","XXX",{"$f":"Import!I42198","v":0},{"$f":"Import!I42205","v":0},{"$f":"Import!I42213","v":0},{"$f":"Import!I42222","v":0},{"$f":"Import!I42232","v":0},{"$f":"Import!I42243","v":0},null,null,null,"UltCY2022AY2017",0]
["L32",2020,"XXX","XXX","XXX","XXX","XXX","XXX",{"$f":"Import!I42206","v":0},{"$f":"Import!I42214","v":0},{"$f":"Import!I42223","v":0},{"$f":"Import!I42233","v":0},{"$f":"Import!I42244","v":0},null,null,null,"UltCY2022AY2018",0]
["L33",2021,"XXX","XXX","XXX","XXX","XXX","XXX","XXX",{"$f":"Import!I42215","v":0},{"$f":"Import!I42224","v":0},{"$f":"Import!I42234","v":0},{"$f":"Import!I42245","v":0},null,null,null,"UltCY2022AY2019",0]
["L34",2022,"XXX","XXX","XXX","XXX","XXX","XXX","XXX","XXX",{"$f":"Import!I42225","v":0},{"$f":"Import!I42235","v":0},{"$f":"Import!I42246","v":0},null,null,null,"UltCY2022AY2020",0]
["L35",{"$f":"L46","v":2023},"XXX","XXX","XXX","XXX","XXX","XXX","XXX","XXX","XXX",{"$f":"Import!I42236","v":0},{"$f":"Import!I42247","v":0},null,null,null,"UltCY2022AY2021",0]
["L36","Totals",null,null,null,null,null,null,null,null,null,null,{"$f":"SUM(M47:M57)","v":0},null,null,null,"UltCY2022AY2022",0]
[null,null,null,null,null,null,null,null,null,null,null,null,null,null,null,null,{"$f":"\"UltCY\"&L$10&\"AY\"&B11","v":"UltCY2023AYPrior"},{"$f":"L11","v":0}]
[null,null,36,37,38,39,"Unallocated Loss",null,null,42,43,44,45,null,null,null,{"$f":"\"UltCY\"&L$10&\"AY\"&B13","v":"UltCY2023AY2015"},{"$f":"L13","v":0}]
[null,"Years in Which",null,null,null,null,"Adjustment Expenses",null,null,null,null,null,null,null,null,null,"UltCY2023AY2016",0]
[null,"Premiums",null,null,null,null,40,41,null,null,null,null,null,null,null,null,"UltCY2023AY2017",0]
[null,"Were",null,null,null,null,null,null,null,"Commission and","General and",null,null,null,null,null,"UltCY2023AY2018",0]
[null,"Earned and","Gross","Gross","Net","Net",null,null,null,"Brokerage","Administrative","Personnel","Other",null,null,null,"UltCY2023AY2019",0]
[null,"Losses Were","Premiums","Premiums","Premiums","Premiums",null,null,"Calendar","Expense","Expense","Costs","Expense",null,null,null,"UltCY2023AY2020",0]
[null,"Incurred","Written","Earned","Written","Earned","Paid","Incurred","Year","(Form 2A, Line 9)","(Form 2A, Line 10)","(Form 2A, Line 11)","(Form 2A, Line 12)",null,null,null,"UltCY2023AY2021",0]
["L37","Prior","XXX",{"$f":"C67","v":"XXX"},"XXX",{"$f":"E67","v":"XXX"},{"$f":"Import!I42292","v":0},{"$f":"Import!I42303","v":0},"Prior",{"$f":"Import!I42314","v":0},{"$f":"Import!I42325","v":0},{"$f":"Import!I42336","v":0},{"$f":"Import!I42347","v":0},null,null,null,"UltCY2023AY2022",0]
["L38",{"$f":"B69-1","v":2014},{"$f":"Import!I42249","v":0},{"$f":"Import!I42260","v":0},{"$f":"Import!I42271","v":0},{"$f":"Import!I42282","v":0},{"$f":"Import!I42293","v":0},{"$f":"Import!I42304","v":0},{"$f":"B68","v":2014},{"$f":"Import!I42315","v":0},{"$f":"Import!I42326","v":0},{"$f":"Import!I42337","v":0},{"$f":"Import!I42348","v":0},null,null,null,"UltCY2023AY2023",0]
["L39",2015,{"$f":"Import!I42250","v":0},{"$f":"Import!I42261","v":0},{"$f":"Import!I42272","v":0},{"$f":"Import!I42283","v":0},{"$f":"Import!I42294","v":0},{"$f":"Import!I42305","v":0},2015,{"$f":"Import!I42316","v":0},{"$f":"Import!I42327","v":0},{"$f":"Import!I42338","v":0},{"$f":"Import!I42349","v":0},null,null,null,{"$f":"\"PaidCY\"&C$10&\"AY\"&B29","v":"PaidCY2014AYPrior"},{"$f":"C29","v":0}]
["L40",2016,{"$f":"Import!I42251","v":0},{"$f":"Import!I42262","v":0},{"$f":"Import!I42273","v":0},{"$f":"Import!I42284","v":0},{"$f":"Import!I42295","v":0},{"$f":"Import!I42306","v":0},2016,{"$f":"Import!I42317","v":0},{"$f":"Import!I42328","v":0},{"$f":"Import!I42339","v":0},{"$f":"Import!I42350","v":0},null,null,null,{"$f":"\"PaidCY\"&C$10&\"AY\"&B30","v":"PaidCY2014AY2014"},{"$f":"C30","v":0}]
["L41",2017,{"$f":"Import!I42252","v":0},{"$f":"Import!I42263","v":0},{"$f":"Import!I42274","v":0},{"$f":"Import!I42285","v":0},{"$f":"Import!I42296","v":0},{"$f":"Import!I42307","v":0},2017,{"$f":"Import!I42318","v":0},{"$f":"Import!I42329","v":0},{"$f":"Import!I42340","v":0},{"$f":"Import!I42351","v":0},null,null,null,{"$f":"\"PaidCY\"&D$10&\"AY\"&B29","v":"PaidCY2015AYPrior"},{"$f":"D29","v":0}]
["L42",2018,{"$f":"Import!I42253","v":0},{"$f":"Import!I42264","v":0},{"$f":"Import!I42275","v":0},{"$f":"Import!I42286","v":0},{"$f":"Import!I42297","v":0},{"$f":"Import!I42308","v":0},2018,{"$f":"Import!I42319","v":0},{"$f":"Import!I42330","v":0},{"$f":"Import!I42341","v":0},{"$f":"Import!I42352","v":0},null,null,null,{"$f":"\"PaidCY\"&D$10&\"AY\"&B30","v":"PaidCY2015AY2014"},{"$f":"D30","v":0}]
["L43",2019,{"$f":"Import!I42254","v":0},{"$f":"Import!I42265","v":0},{"$f":"Import!I42276","v":0},{"$f":"Import!I42287","v":0},{"$f":"Import!I42298","v":0},{"$f":"Import!I42309","v":0},2019,{"$f":"Import!I42320","v":0},{"$f":"Import!I42331","v":0},{"$f":"Import!I42342","v":0},{"$f":"Import!I42353","v":0},null,null,null,{"$f":"\"PaidCY\"&D$10&\"AY\"&B31","v":"PaidCY2015AY2015"},{"$f":"D31","v":0}]
["L44",2020,{"$f":"Import!I42255","v":0},{"$f":"Import!I42266","v":0},{"$f":"Import!I42277","v":0},{"$f":"Import!I42288","v":0},{"$f":"Import!I42299","v":0},{"$f":"Import!I42310","v":0},2020,{"$f":"Import!I42321","v":0},{"$f":"Import!I42332","v":0},{"$f":"Import!I42343","v":0},{"$f":"Import!I42354","v":0},null,null,null,{"$f":"\"PaidCY\"&E$10&\"AY\"&B29","v":"PaidCY2016AYPrior"},{"$f":"E29","v":0}]
["L45",2021,{"$f":"Import!I42256","v":0},{"$f":"Import!I42267","v":0},{"$f":"Import!I42278","v":0},{"$f":"Import!I42289","v":0},{"$f":"Import!I42300","v":0},{"$f":"Import!I42311","v":0},2021,{"$f":"Import!I42322","v":0},{"$f":"Import!I42333","v":0},{"$f":"Import!I42344","v":0},{"$f":"Import!I42355","v":0},null,null,null,{"$f":"\"PaidCY\"&E$10&\"AY\"&B30","v":"PaidCY2016AY2014"},{"$f":"E30","v":0}]
["L46",2022,{"$f":"Import!I42257","v":0},{"$f":"Import!I42268","v":0},{"$f":"Import!I42279","v":0},{"$f":"Import!I42290","v":0},{"$f":"Import!I42301","v":0},{"$f":"Import!I42312","v":0},2022,{"$f":"Import!I42323","v":0},{"$f":"Import!I42334","v":0},{"$f":"Import!I42345","v":0},{"$f":"Import!I42356","v":0},null,null,null,{"$f":"\"PaidCY\"&E$10&\"AY\"&B31","v":"PaidCY2016AY2015"},{"$f":"E31","v":0}]
["L47",{"$f":"B39","v":2023},{"$f":"Import!I42258","v":0},{"$f":"Import!I42269","v":0},{"$f":"Import!I42280","v":0},{"$f":"Import!I42291","v":0},{"$f":"Import!I42302","v":0},{"$f":"Import!I42313","v":0},2023,{"$f":"Import!I42324","v":0},{"$f":"Import!I42335","v":0},{"$f":"Import!I42346","v":0},{"$f":"Import!I42357","v":0},null,null,null,{"$f":"\"PaidCY\"&E$10&\"AY\"&B32","v":"PaidCY2016AY2016"},{"$f":"E32","v":0}]
["L48","Totals","XXX",{"$f":"C78","v":"XXX"},"XXX",{"$f":"E78","v":"XXX"},{"$f":"SUM(G67:G77)","v":0},{"$f":"SUM(H67:H77)","v":0},"Totals",{"$f":"SUM(J67:J77)","v":0},{"$f":"SUM(K67:K77)","v":0},{"$f":"SUM(L67:L77)","v":0},{"$f":"SUM(M67:M77)","v":0},null,null,null,{"$f":"\"PaidCY\"&F$10&\"AY\"&B29","v":"PaidCY2017AYPrior"},{"$f":"F29","v":0}]
[null,null,null,null,null,null,null,null,null,null,null,null,null,null,null,null,{"$f":"\"PaidCY\"&F$10&\"AY\"&B30","v":"PaidCY2017AY2014"},{"$f":"F30","v":0}]
[null,"COMMENTS",null,null,null,null,null,null,null,null,null,null,null,null,null,null,{"$f":"\"PaidCY\"&F$10&\"AY\"&B31","v":"PaidCY2017AY2015"},{"$f":"F31","v":0}]
[null,{"$f":"Import!I42358","v":0},null,null,null,null,null,null,null,null,null,null,null,null,null,null,{"$f":"\"PaidCY\"&G$10&\"AY\"&B30","v":"PaidCY2018AY2014"},{"$f":"G30","v":0}]
[null,null,null,null,null,null,null,null,null,null,null,null,null,null,null,null,{"$f":"\"PaidCY\"&G$10&\"AY\"&B31","v":"PaidCY2018AY2015"},{"$f":"G31","v":0}]
[null,null,null,null,null,null,null,null,null,null,null,null,null,null,null,null,{"$f":"\"PaidCY\"&G$10&\"AY\"&B32","v":"PaidCY2018AY2016"},{"$f":"G32","v":0}]
[null,null,null,null,null,null,null,null,null,null,null,null,null,null,null,null,{"$f":"\"PaidCY\"&G$10&\"AY\"&B34","v":"PaidCY2018AY2018"},{"$f":"G34","v":0}]
[]
[]
[]
[]
[]
[null,null,null,null,null,null,null,null,null,null,null,null,null,null,null,null,{"$f":"\"PaidCY\"&H$10&\"AY\"&B34","v":"PaidCY2019AY2018"},{"$f":"H34","v":0}]
[null,null,"Accident Year",null,null,null,null,null,null,null,null,null,null,null,null,null,"PaidCY2019AY2019",0]
[null,null,"Underwriting Year",null,null,null,null,null,null,null,null,null,null,null,null,null,{"$f":"\"PaidCY\"&I$10&\"AY\"&B29","v":"PaidCY2020AYPrior"},{"$f":"I29","v":0}]
[null,null,null,null,null,null,null,null,null,null,null,null,null,null,null,null,"PaidCY2020AY2014",0]
[null,null,null,null,null,null,null,null,null,null,null,null,null,null,null,null,"PaidCY2020AY2015",0]

{"sheet":"Sch XI(a)(vii)","index":80,"n_rows":91,"n_cols":20,"rows_kept":91,"cut":false,"hidden":true,"merged":[[80,1,82,12],[5,2,5,11],[59,6,59,7],[41,2,41,11],[0,13,0,14],[2,13,2,14],[2,1,2,2],[60,6,60,7],[23,2,23,11]]}
[null,"SCHEDULE OF LOSS TRIANGLES (LINE 7 - OTHER SPECIALTY LINES)",null,null,null,null,null,null,null,null,null,null,null,{"$f":"HYPERLINK(\"#'Index'!A1\",\"Return to Index\")","v":"Return to Index"}]
[null,{"$f":"'Company Information'!C7","v":"Enter Company Name"}]
[null,{"$f":" TEXT('Company Information'!C3,\"d mmmm yyyy\")","v":"31 December 2023"},null,null,null,null,null,null,null,null,null,null,null,"SCHEDULE XI(a)(vii)"]
[null,{"$f":"\"expressed in\"& IF(1000>1,\" ['\"&MID(1000,2,LEN(1000))&\"s]\",\"\")&\" \"&'Form 1EBS'!$C$4","v":"expressed in ['000s] United States Dollars"}]
[]
[null,"Accounting Basis: *","INCURRED (ESTIMATED ULTIMATE) NET LOSSES AND ALLOCATED LOSS ADJUSTMENT EXPENSES REPORTED AT YEAR END ($000)",null,null,null,null,null,null,null,null,null,11,12,13,null,"AcctBasis",{"$f":"B7","v":"Accident Year"}]
[null,"Accident Year",null,null,null,null,null,null,null,null,null,null,"Ultimate","Development","Development",null,{"$f":"\"UltCY\"&C$10&\"AY\"&B11","v":"UltCY2014AYPrior"},{"$f":"C11","v":0},{"$f":"\"CATUltCY\"&L$10&\"AY\"&B11","v":"CATUltCY2023AYPrior"},{"$f":"M11","v":0}]
[null,"Years in Which",1,2,3,4,5,6,7,8,9,10,"Catastrophe",null,null,null,{"$f":"\"UltCY\"&C$10&\"AY\"&B12","v":"UltCY2014AY2014"},{"$f":"C12","v":0},"CATUltCY2023AY2014",0]
[null,"Losses Were",null,null,null,null,null,null,null,null,null,null,"Losses","One Year","Two Year",null,{"$f":"\"UltCY\"&D$10&\"AY\"&B11","v":"UltCY2015AYPrior"},{"$f":"D11","v":0},"CATUltCY2023AY2015",0]
[null,"Incurred",{"$f":"D10-1","v":2014},2015,2016,2017,2018,2019,2020,2021,2022,{"$f":"YEAR('Company Information'!C3)","v":2023},{"$f":"L10","v":2023},"Development","Development",null,{"$f":"\"UltCY\"&D$10&\"AY\"&B12","v":"UltCY2015AY2014"},{"$f":"D12","v":0},"CATUltCY2023AY2016",0]
["L1","Prior",{"$f":"Import!I42359","v":0},{"$f":"Import!I42361","v":0},{"$f":"Import!I42364","v":0},{"$f":"Import!I42368","v":0},{"$f":"Import!I42373","v":0},{"$f":"Import!I42379","v":0},{"$f":"Import!I42386","v":0},{"$f":"Import!I42394","v":0},{"$f":"Import!I42403","v":0},{"$f":"Import!I42413","v":0},{"$f":"Import!I42424","v":0},{"$f":"K11-L11","v":0},{"$f":"J11-L11","v":0},null,{"$f":"\"UltCY\"&D$10&\"AY\"&B13","v":"UltCY2015AY2015"},{"$f":"D13","v":0},"CATUltCY2023AY2017",0]
["L2",{"$f":"B13-1","v":2014},{"$f":"Import!I42360","v":0},{"$f":"Import!I42362","v":0},{"$f":"Import!I42365","v":0},{"$f":"Import!I42369","v":0},{"$f":"Import!I42374","v":0},{"$f":"Import!I42380","v":0},{"$f":"Import!I42387","v":0},{"$f":"Import!I42395","v":0},{"$f":"Import!I42404","v":0},{"$f":"Import!I42414","v":0},{"$f":"Import!I42425","v":0},0,0,null,{"$f":"\"UltCY\"&E$10&\"AY\"&B11","v":"UltCY2016AYPrior"},{"$f":"E11","v":0},"CATUltCY2023AY2018",0]
["L3",2015,"XXX",{"$f":"Import!I42363","v":0},{"$f":"Import!I42366","v":0},{"$f":"Import!I42370","v":0},{"$f":"Import!I42375","v":0},{"$f":"Import!I42381","v":0},{"$f":"Import!I42388","v":0},{"$f":"Import!I42396","v":0},{"$f":"Import!I42405","v":0},{"$f":"Import!I42415","v":0},{"$f":"Import!I42426","v":0},0,0,null,{"$f":"\"UltCY\"&E$10&\"AY\"&B12","v":"UltCY2016AY2014"},{"$f":"E12","v":0},"CATUltCY2023AY2019",0]
["L4",2016,"XXX","XXX",{"$f":"Import!I42367","v":0},{"$f":"Import!I42371","v":0},{"$f":"Import!I42376","v":0},{"$f":"Import!I42382","v":0},{"$f":"Import!I42389","v":0},{"$f":"Import!I42397","v":0},{"$f":"Import!I42406","v":0},{"$f":"Import!I42416","v":0},{"$f":"Import!I42427","v":0},0,0,null,{"$f":"\"UltCY\"&E$10&\"AY\"&B13","v":"UltCY2016AY2015"},{"$f":"E13","v":0},"CATUltCY2023AY2020",0]
["L5",2017,"XXX","XXX","XXX",{"$f":"Import!I42372","v":0},{"$f":"Import!I42377","v":0},{"$f":"Import!I42383","v":0},{"$f":"Import!I42390","v":0},{"$f":"Import!I42398","v":0},{"$f":"Import!I42407","v":0},{"$f":"Import!I42417","v":0},{"$f":"Import!I42428","v":0},0,0,null,{"$f":"\"UltCY\"&E$10&\"AY\"&B14","v":"UltCY2016AY2016"},{"$f":"E14","v":0},"CATUltCY2023AY2021",0]
["L6",2018,"XXX","XXX","XXX","XXX",{"$f":"Import!I42378","v":0},{"$f":"Import!I42384","v":0},{"$f":"Import!I42391","v":0},{"$f":"Import!I42399","v":0},{"$f":"Import!I42408","v":0},{"$f":"Import!I42418","v":0},{"$f":"Import!I42429","v":0},0,0,null,{"$f":"\"UltCY\"&F$10&\"AY\"&B11","v":"UltCY2017AYPrior"},{"$f":"F11","v":0},"CATUltCY2023AY2022",0]
["L7",2019,"XXX","XXX","XXX","XXX","XXX",{"$f":"Import!I42385","v":0},{"$f":"Import!I42392","v":0},{"$f":"Import!I42400","v":0},{"$f":"Import!I42409","v":0},{"$f":"Import!I42419","v":0},{"$f":"Import!I42430","v":0},0,0,null,{"$f":"\"UltCY\"&F$10&\"AY\"&B12","v":"UltCY2017AY2014"},{"$f":"F12","v":0},"CATUltCY2023AY2023",0]
["L8",2020,"XXX","XXX","XXX","XXX","XXX","XXX",{"$f":"Import!I42393","v":0},{"$f":"Import!I42401","v":0},{"$f":"Import!I42410","v":0},{"$f":"Import!I42420","v":0},{"$f":"Import!I42431","v":0},0,0,null,{"$f":"\"UltCY\"&F$10&\"AY\"&B13","v":"UltCY2017AY2015"},{"$f":"F13","v":0},{"$f":"\"CATPaidCY\"&L$10&\"AY\"&B29","v":"CATPaidCY2023AYPrior"},{"$f":"M29","v":0}]
["L9",2021,"XXX","XXX","XXX","XXX","XXX","XXX","XXX",{"$f":"Import!I42402","v":0},{"$f":"Import!I42411","v":0},{"$f":"Import!I42421","v":0},{"$f":"Import!I42432","v":0},0,0,null,{"$f":"\"UltCY\"&F$10&\"AY\"&B14","v":"UltCY2017AY2016"},{"$f":"F14","v":0},"CATPaidCY2023AY2014",0]
["L10",2022,"XXX","XXX","XXX","XXX","XXX","XXX","XXX","XXX",{"$f":"Import!I42412","v":0},{"$f":"Import!I42422","v":0},{"$f":"Import!I42433","v":0},0,"XXX",null,{"$f":"\"UltCY\"&F$10&\"AY\"&B15","v":"UltCY2017AY2017"},{"$f":"F15","v":0},"CATPaidCY2023AY2015",0]
["L11",{"$f":"L10","v":2023},"XXX","XXX","XXX","XXX","XXX","XXX","XXX","XXX","XXX",{"$f":"Import!I42423","v":0},{"$f":"Import!I42434","v":0},"XXX","XXX",null,{"$f":"\"UltCY\"&G$10&\"AY\"&B11","v":"UltCY2018AYPrior"},{"$f":"G11","v":0},"CATPaidCY2023AY2016",0]
["L12","Totals",null,null,null,null,null,null,null,null,null,null,{"$f":"SUM(M11:M21)","v":0},{"$f":"SUM(N11:N21)","v":0},{"$f":"SUM(O11:O21)","v":0},null,{"$f":"\"UltCY\"&G$10&\"AY\"&B12","v":"UltCY2018AY2014"},{"$f":"G12","v":0},"CATPaidCY2023AY2017",0]
[null,null,null,null,null,null,null,null,null,null,null,null,null,null,null,null,{"$f":"\"UltCY\"&G$10&\"AY\"&B13","v":"UltCY2018AY2015"},{"$f":"G13","v":0},"CATPaidCY2023AY2018",0]
[null,null,"CUMULATIVE PAID NET LOSSES AND ALLOCATED LOSS ADJUSTMENT EXPENSES REPORTED AT YEAR END ($000)",null,null,null,null,null,null,null,null,null,24,null,null,null,{"$f":"\"UltCY\"&G$10&\"AY\"&B15","v":"UltCY2018AY2017"},{"$f":"G15","v":0},{"$f":"\"CATPaidCY\"&L$10&\"AY\"&B36","v":"CATPaidCY2023AY2020"},{"$f":"M36","v":0}]
[null,null,null,null,null,null,null,null,null,null,null,null,"Paid",null,null,null,{"$f":"\"UltCY\"&G$10&\"AY\"&B16","v":"UltCY2018AY2018"},{"$f":"G16","v":0},{"$f":"\"CATPaidCY\"&L$10&\"AY\"&B37","v":"CATPaidCY2023AY2021"},{"$f":"M37","v":0}]
[null,"Years in Which",14,15,16,17,18,19,20,21,22,23,"Catastrophe",null,null,null,{"$f":"\"UltCY\"&H$10&\"AY\"&B11","v":"UltCY2019AYPrior"},{"$f":"H11","v":0},{"$f":"\"CATPaidCY\"&L$10&\"AY\"&B38","v":"CATPaidCY2023AY2022"},{"$f":"M38","v":0}]
[null,"Policies Were",null,null,null,null,null,null,null,null,null,null,"Losses",null,null,null,"UltCY2019AY2014",0,{"$f":"\"CATPaidCY\"&L$10&\"AY\"&B39","v":"CATPaidCY2023AY2023"},{"$f":"M39","v":0}]
[null,"Written",{"$f":"D28-1","v":2014},2015,2016,2017,2018,2019,2020,2021,2022,{"$f":"L10","v":2023},{"$f":"L28","v":2023},null,null,null,"UltCY2019AY2015",0,{"$f":"\"CATIBNRCY\"&L$10&\"AY\"&B47","v":"CATIBNRCY2023AYPrior"},{"$f":"M47","v":0}]
["L13","Prior",{"$f":"Import!I42435","v":0},{"$f":"Import!I42437","v":0},{"$f":"Import!I42440","v":0},{"$f":"Import!I42444","v":0},{"$f":"Import!I42449","v":0},{"$f":"Import!I42455","v":0},{"$f":"Import!I42462","v":0},{"$f":"Import!I42470","v":0},{"$f":"Import!I42479","v":0},{"$f":"Import!I42489","v":0},{"$f":"Import!I42500","v":0},null,null,null,"UltCY2019AY2016",0,"CATIBNRCY2023AY2014",0]
["L14",{"$f":"B31-1","v":2014},{"$f":"Import!I42436","v":0},{"$f":"Import!I42438","v":0},{"$f":"Import!I42441","v":0},{"$f":"Import!I42445","v":0},{"$f":"Import!I42450","v":0},{"$f":"Import!I42456","v":0},{"$f":"Import!I42463","v":0},{"$f":"Import!I42471","v":0},{"$f":"Import!I42480","v":0},{"$f":"Import!I42490","v":0},{"$f":"Import!I42501","v":0},null,null,null,"UltCY2019AY2017",0,"CATIBNRCY2023AY2015",0]
["L15",2015,"XXX",{"$f":"Import!I42439","v":0},{"$f":"Import!I42442","v":0},{"$f":"Import!I42446","v":0},{"$f":"Import!I42451","v":0},{"$f":"Import!I42457","v":0},{"$f":"Import!I42464","v":0},{"$f":"Import!I42472","v":0},{"$f":"Import!I42481","v":0},{"$f":"Import!I42491","v":0},{"$f":"Import!I42502","v":0},null,null,null,"UltCY2019AY2018",0,"CATIBNRCY2023AY2016",0]
["L16",2016,"XXX","XXX",{"$f":"Import!I42443","v":0},{"$f":"Import!I42447","v":0},{"$f":"Import!I42452","v":0},{"$f":"Import!I42458","v":0},{"$f":"Import!I42465","v":0},{"$f":"Import!I42473","v":0},{"$f":"Import!I42482","v":0},{"$f":"Import!I42492","v":0},{"$f":"Import!I42503","v":0},null,null,null,"UltCY2019AY2019",0,"CATIBNRCY2023AY2017",0]
["L17",2017,"XXX","XXX","XXX",{"$f":"Import!I42448","v":0},{"$f":"Import!I42453","v":0},{"$f":"Import!I42459","v":0},{"$f":"Import!I42466","v":0},{"$f":"Import!I42474","v":0},{"$f":"Import!I42483","v":0},{"$f":"Import!I42493","v":0},{"$f":"Import!I42504","v":0},null,null,null,{"$f":"\"UltCY\"&I$10&\"AY\"&B11","v":"UltCY2020AYPrior"},{"$f":"I11","v":0},"CATIBNRCY2023AY2018",0]
["L18",2018,"XXX","XXX","XXX","XXX",{"$f":"Import!I42454","v":0},{"$f":"Import!I42460","v":0},{"$f":"Import!I42467","v":0},{"$f":"Import!I42475","v":0},{"$f":"Import!I42484","v":0},{"$f":"Import!I42494","v":0},{"$f":"Import!I42505","v":0},null,null,null,"UltCY2020AY2014",0,"CATIBNRCY2023AY2019",0]
["L19",2019,"XXX","XXX","XXX","XXX","XXX",{"$f":"Import!I42461","v":0},{"$f":"Import!I42468","v":0},{"$f":"Import!I42476","v":0},{"$f":"Import!I42485","v":0},{"$f":"Import!I42495","v":0},{"$f":"Import!I42506","v":0},null,null,null,"UltCY2020AY2015",0,"CATIBNRCY2023AY2020",0]
["L20",2020,"XXX","XXX","XXX","XXX","XXX","XXX",{"$f":"Import!I42469","v":0},{"$f":"Import!I42477","v":0},{"$f":"Import!I42486","v":0},{"$f":"Import!I42496","v":0},{"$f":"Import!I42507","v":0},null,null,null,"UltCY2020AY2016",0,"CATIBNRCY2023AY2021",0]
["L21",2021,"XXX","XXX","XXX","XXX","XXX","XXX","XXX",{"$f":"Import!I42478","v":0},{"$f":"Import!I42487","v":0},{"$f":"Import!I42497","v":0},{"$f":"Import!I42508","v":0},null,null,null,"UltCY2020AY2017",0,"CATIBNRCY2023AY2022",0]
["L22",2022,"XXX","XXX","XXX","XXX","XXX","XXX","XXX","XXX",{"$f":"Import!I42488","v":0},{"$f":"Import!I42498","v":0},{"$f":"Import!I42509","v":0},null,null,null,"UltCY2020AY2018",0,"CATIBNRCY2023AY2023",0]
["L23",{"$f":"L28","v":2023},"XXX","XXX","XXX","XXX","XXX","XXX","XXX","XXX","XXX",{"$f":"Import!I42499","v":0},{"$f":"Import!I42510","v":0},null,null,null,"UltCY2020AY2019",0]
["L24","Totals",null,null,null,null,null,null,null,null,null,null,{"$f":"SUM(M29:M39)","v":0},null,null,null,"UltCY2020AY2020",0]
[null,null,null,null,null,null,null,null,null,null,null,null,null,null,null,null,{"$f":"\"UltCY\"&J$10&\"AY\"&B11","v":"UltCY2021AYPrior"},{"$f":"J11","v":0}]
[null,null,"BULK & IBNR RESERVES ON NET LOSSES AND ALLOCATED LOSS ADJUSTMENT EXPENSES REPORTED AT YEAR END ($000)",null,null,null,null,null,null,null,null,null,35,null,null,null,{"$f":"\"UltCY\"&J$10&\"AY\"&B13","v":"UltCY2021AY2015"},{"$f":"J13","v":0}]
[null,null,null,null,null,null,null,null,null,null,null,null,"Losses",null,null,null,"UltCY2021AY2016",0]
[null,"Years in Which",25,26,27,28,29,30,31,32,33,34,"Bulk & IBNR",null,null,null,"UltCY2021AY2017",0]
[null,"Policies Were",null,null,null,null,null,null,null,null,null,null,"Reserves",null,null,null,"UltCY2021AY2018",0]
[null,"Written",{"$f":"D46-1","v":2014},2015,2016,2017,2018,2019,2020,2021,2022,{"$f":"L28","v":2023},{"$f":"L46","v":2023},null,null,null,"UltCY2021AY2019",0]
["L25","Prior",{"$f":"Import!I42511","v":0},{"$f":"Import!I42513","v":0},{"$f":"Import!I42516","v":0},{"$f":"Import!I42520","v":0},{"$f":"Import!I42525","v":0},{"$f":"Import!I42531","v":0},{"$f":"Import!I42538","v":0},{"$f":"Import!I42546","v":0},{"$f":"Import!I42555","v":0},{"$f":"Import!I42565","v":0},{"$f":"Import!I42576","v":0},null,null,null,"UltCY2021AY2020",0]
["L26",{"$f":"B49-1","v":2014},{"$f":"Import!I42512","v":0},{"$f":"Import!I42514","v":0},{"$f":"Import!I42517","v":0},{"$f":"Import!I42521","v":0},{"$f":"Import!I42526","v":0},{"$f":"Import!I42532","v":0},{"$f":"Import!I42539","v":0},{"$f":"Import!I42547","v":0},{"$f":"Import!I42556","v":0},{"$f":"Import!I42566","v":0},{"$f":"Import!I42577","v":0},null,null,null,"UltCY2021AY2021",0]
["L27",2015,"XXX",{"$f":"Import!I42515","v":0},{"$f":"Import!I42518","v":0},{"$f":"Import!I42522","v":0},{"$f":"Import!I42527","v":0},{"$f":"Import!I42533","v":0},{"$f":"Import!I42540","v":0},{"$f":"Import!I42548","v":0},{"$f":"Import!I42557","v":0},{"$f":"Import!I42567","v":0},{"$f":"Import!I42578","v":0},null,null,null,{"$f":"\"UltCY\"&K$10&\"AY\"&B11","v":"UltCY2022AYPrior"},{"$f":"K11","v":0}]
["L28",2016,"XXX","XXX",{"$f":"Import!I42519","v":0},{"$f":"Import!I42523","v":0},{"$f":"Import!I42528","v":0},{"$f":"Import!I42534","v":0},{"$f":"Import!I42541","v":0},{"$f":"Import!I42549","v":0},{"$f":"Import!I42558","v":0},{"$f":"Import!I42568","v":0},{"$f":"Import!I42579","v":0},null,null,null,"UltCY2022AY2014",0]
["L29",2017,"XXX","XXX","XXX",{"$f":"Import!I42524","v":0},{"$f":"Import!I42529","v":0},{"$f":"Import!I42535","v":0},{"$f":"Import!I42542","v":0},{"$f":"Import!I42550","v":0},{"$f":"Import!I42559","v":0},{"$f":"Import!I42569","v":0},{"$f":"Import!I42580","v":0},null,null,null,"UltCY2022AY2015",0]
["L30",2018,"XXX","XXX","XXX","XXX",{"$f":"Import!I42530","v":0},{"$f":"Import!I42536","v":0},{"$f":"Import!I42543","v":0},{"$f":"Import!I42551","v":0},{"$f":"Import!I42560","v":0},{"$f":"Import!I42570","v":0},{"$f":"Import!I42581","v":0},null,null,null,"UltCY2022AY2016",0]
["L31",2019,"XXX","XXX","XXX","XXX","XXX",{"$f":"Import!I42537","v":0},{"$f":"Import!I42544","v":0},{"$f":"Import!I42552","v":0},{"$f":"Import!I42561","v":0},{"$f":"Import!I42571","v":0},{"$f":"Import!I42582","v":0},null,null,null,"UltCY2022AY2017",0]
["L32",2020,"XXX","XXX","XXX","XXX","XXX","XXX",{"$f":"Import!I42545","v":0},{"$f":"Import!I42553","v":0},{"$f":"Import!I42562","v":0},{"$f":"Import!I42572","v":0},{"$f":"Import!I42583","v":0},null,null,null,"UltCY2022AY2018",0]
["L33",2021,"XXX","XXX","XXX","XXX","XXX","XXX","XXX",{"$f":"Import!I42554","v":0},{"$f":"Import!I42563","v":0},{"$f":"Import!I42573","v":0},{"$f":"Import!I42584","v":0},null,null,null,"UltCY2022AY2019",0]
["L34",2022,"XXX","XXX","XXX","XXX","XXX","XXX","XXX","XXX",{"$f":"Import!I42564","v":0},{"$f":"Import!I42574","v":0},{"$f":"Import!I42585","v":0},null,null,null,"UltCY2022AY2020",0]
["L35",{"$f":"L46","v":2023},"XXX","XXX","XXX","XXX","XXX","XXX","XXX","XXX","XXX",{"$f":"Import!I42575","v":0},{"$f":"Import!I42586","v":0},null,null,null,"UltCY2022AY2021",0]
["L36","Totals",null,null,null,null,null,null,null,null,null,null,{"$f":"SUM(M47:M57)","v":0},null,null,null,"UltCY2022AY2022",0]
[null,null,null,null,null,null,null,null,null,null,null,null,null,null,null,null,{"$f":"\"UltCY\"&L$10&\"AY\"&B11","v":"UltCY2023AYPrior"},{"$f":"L11","v":0}]
[null,null,36,37,38,39,"Unallocated Loss",null,null,42,43,44,45,null,null,null,{"$f":"\"UltCY\"&L$10&\"AY\"&B13","v":"UltCY2023AY2015"},{"$f":"L13","v":0}]
[null,"Years in Which",null,null,null,null,"Adjustment Expenses",null,null,null,null,null,null,null,null,null,"UltCY2023AY2016",0]
[null,"Premiums",null,null,null,null,40,41,null,null,null,null,null,null,null,null,"UltCY2023AY2017",0]
[null,"Were",null,null,null,null,null,null,null,"Commission and","General and",null,null,null,null,null,"UltCY2023AY2018",0]
[null,"Earned and","Gross","Gross","Net","Net",null,null,null,"Brokerage","Administrative","Personnel","Other",null,null,null,"UltCY2023AY2019",0]
[null,"Losses Were","Premiums","Premiums","Premiums","Premiums",null,null,"Calendar","Expense","Expense","Costs","Expense",null,null,null,"UltCY2023AY2020",0]
[null,"Incurred","Written","Earned","Written","Earned","Paid","Incurred","Year","(Form 2A, Line 9)","(Form 2A, Line 10)","(Form 2A, Line 11)","(Form 2A, Line 12)",null,null,null,"UltCY2023AY2021",0]
["L37","Prior","XXX",{"$f":"C67","v":"XXX"},"XXX",{"$f":"E67","v":"XXX"},{"$f":"Import!I42631","v":0},{"$f":"Import!I42642","v":0},"Prior",{"$f":"Import!I42653","v":0},{"$f":"Import!I42664","v":0},{"$f":"Import!I42675","v":0},{"$f":"Import!I42686","v":0},null,null,null,"UltCY2023AY2022",0]
["L38",{"$f":"B69-1","v":2014},{"$f":"Import!I42588","v":0},{"$f":"Import!I42599","v":0},{"$f":"Import!I42610","v":0},{"$f":"Import!I42621","v":0},{"$f":"Import!I42632","v":0},{"$f":"Import!I42643","v":0},{"$f":"B68","v":2014},{"$f":"Import!I42654","v":0},{"$f":"Import!I42665","v":0},{"$f":"Import!I42676","v":0},{"$f":"Import!I42687","v":0},null,null,null,"UltCY2023AY2023",0]
["L39",2015,{"$f":"Import!I42589","v":0},{"$f":"Import!I42600","v":0},{"$f":"Import!I42611","v":0},{"$f":"Import!I42622","v":0},{"$f":"Import!I42633","v":0},{"$f":"Import!I42644","v":0},2015,{"$f":"Import!I42655","v":0},{"$f":"Import!I42666","v":0},{"$f":"Import!I42677","v":0},{"$f":"Import!I42688","v":0},null,null,null,{"$f":"\"PaidCY\"&C$10&\"AY\"&B29","v":"PaidCY2014AYPrior"},{"$f":"C29","v":0}]
["L40",2016,{"$f":"Import!I42590","v":0},{"$f":"Import!I42601","v":0},{"$f":"Import!I42612","v":0},{"$f":"Import!I42623","v":0},{"$f":"Import!I42634","v":0},{"$f":"Import!I42645","v":0},2016,{"$f":"Import!I42656","v":0},{"$f":"Import!I42667","v":0},{"$f":"Import!I42678","v":0},{"$f":"Import!I42689","v":0},null,null,null,{"$f":"\"PaidCY\"&C$10&\"AY\"&B30","v":"PaidCY2014AY2014"},{"$f":"C30","v":0}]
["L41",2017,{"$f":"Import!I42591","v":0},{"$f":"Import!I42602","v":0},{"$f":"Import!I42613","v":0},{"$f":"Import!I42624","v":0},{"$f":"Import!I42635","v":0},{"$f":"Import!I42646","v":0},2017,{"$f":"Import!I42657","v":0},{"$f":"Import!I42668","v":0},{"$f":"Import!I42679","v":0},{"$f":"Import!I42690","v":0},null,null,null,{"$f":"\"PaidCY\"&D$10&\"AY\"&B29","v":"PaidCY2015AYPrior"},{"$f":"D29","v":0}]
["L42",2018,{"$f":"Import!I42592","v":0},{"$f":"Import!I42603","v":0},{"$f":"Import!I42614","v":0},{"$f":"Import!I42625","v":0},{"$f":"Import!I42636","v":0},{"$f":"Import!I42647","v":0},2018,{"$f":"Import!I42658","v":0},{"$f":"Import!I42669","v":0},{"$f":"Import!I42680","v":0},{"$f":"Import!I42691","v":0},null,null,null,{"$f":"\"PaidCY\"&D$10&\"AY\"&B30","v":"PaidCY2015AY2014"},{"$f":"D30","v":0}]
["L43",2019,{"$f":"Import!I42593","v":0},{"$f":"Import!I42604","v":0},{"$f":"Import!I42615","v":0},{"$f":"Import!I42626","v":0},{"$f":"Import!I42637","v":0},{"$f":"Import!I42648","v":0},2019,{"$f":"Import!I42659","v":0},{"$f":"Import!I42670","v":0},{"$f":"Import!I42681","v":0},{"$f":"Import!I42692","v":0},null,null,null,{"$f":"\"PaidCY\"&D$10&\"AY\"&B31","v":"PaidCY2015AY2015"},{"$f":"D31","v":0}]
["L44",2020,{"$f":"Import!I42594","v":0},{"$f":"Import!I42605","v":0},{"$f":"Import!I42616","v":0},{"$f":"Import!I42627","v":0},{"$f":"Import!I42638","v":0},{"$f":"Import!I42649","v":0},2020,{"$f":"Import!I42660","v":0},{"$f":"Import!I42671","v":0},{"$f":"Import!I42682","v":0},{"$f":"Import!I42693","v":0},null,null,null,{"$f":"\"PaidCY\"&E$10&\"AY\"&B29","v":"PaidCY2016AYPrior"},{"$f":"E29","v":0}]
["L45",2021,{"$f":"Import!I42595","v":0},{"$f":"Import!I42606","v":0},{"$f":"Import!I42617","v":0},{"$f":"Import!I42628","v":0},{"$f":"Import!I42639","v":0},{"$f":"Import!I42650","v":0},2021,{"$f":"Import!I42661","v":0},{"$f":"Import!I42672","v":0},{"$f":"Import!I42683","v":0},{"$f":"Import!I42694","v":0},null,null,null,{"$f":"\"PaidCY\"&E$10&\"AY\"&B30","v":"PaidCY2016AY2014"},{"$f":"E30","v":0}]
["L46",2022,{"$f":"Import!I42596","v":0},{"$f":"Import!I42607","v":0},{"$f":"Import!I42618","v":0},{"$f":"Import!I42629","v":0},{"$f":"Import!I42640","v":0},{"$f":"Import!I42651","v":0},2022,{"$f":"Import!I42662","v":0},{"$f":"Import!I42673","v":0},{"$f":"Import!I42684","v":0},{"$f":"Import!I42695","v":0},null,null,null,{"$f":"\"PaidCY\"&E$10&\"AY\"&B31","v":"PaidCY2016AY2015"},{"$f":"E31","v":0}]
["L47",{"$f":"B39","v":2023},{"$f":"Import!I42597","v":0},{"$f":"Import!I42608","v":0},{"$f":"Import!I42619","v":0},{"$f":"Import!I42630","v":0},{"$f":"Import!I42641","v":0},{"$f":"Import!I42652","v":0},2023,{"$f":"Import!I42663","v":0},{"$f":"Import!I42674","v":0},{"$f":"Import!I42685","v":0},{"$f":"Import!I42696","v":0},null,null,null,{"$f":"\"PaidCY\"&E$10&\"AY\"&B32","v":"PaidCY2016AY2016"},{"$f":"E32","v":0}]
["L48","Totals","XXX",{"$f":"C78","v":"XXX"},"XXX",{"$f":"E78","v":"XXX"},{"$f":"SUM(G67:G77)","v":0},{"$f":"SUM(H67:H77)","v":0},"Totals",{"$f":"SUM(J67:J77)","v":0},{"$f":"SUM(K67:K77)","v":0},{"$f":"SUM(L67:L77)","v":0},{"$f":"SUM(M67:M77)","v":0},null,null,null,{"$f":"\"PaidCY\"&F$10&\"AY\"&B29","v":"PaidCY2017AYPrior"},{"$f":"F29","v":0}]
[null,null,null,null,null,null,null,null,null,null,null,null,null,null,null,null,{"$f":"\"PaidCY\"&F$10&\"AY\"&B30","v":"PaidCY2017AY2014"},{"$f":"F30","v":0}]
[null,"COMMENTS",null,null,null,null,null,null,null,null,null,null,null,null,null,null,{"$f":"\"PaidCY\"&F$10&\"AY\"&B31","v":"PaidCY2017AY2015"},{"$f":"F31","v":0}]
[null,{"$f":"Import!I42697","v":0},null,null,null,null,null,null,null,null,null,null,null,null,null,null,{"$f":"\"PaidCY\"&G$10&\"AY\"&B30","v":"PaidCY2018AY2014"},{"$f":"G30","v":0}]
[null,null,null,null,null,null,null,null,null,null,null,null,null,null,null,null,{"$f":"\"PaidCY\"&G$10&\"AY\"&B31","v":"PaidCY2018AY2015"},{"$f":"G31","v":0}]
[null,null,null,null,null,null,null,null,null,null,null,null,null,null,null,null,{"$f":"\"PaidCY\"&G$10&\"AY\"&B32","v":"PaidCY2018AY2016"},{"$f":"G32","v":0}]
[null,null,null,null,null,null,null,null,null,null,null,null,null,null,null,null,{"$f":"\"PaidCY\"&G$10&\"AY\"&B34","v":"PaidCY2018AY2018"},{"$f":"G34","v":0}]
[]
[]
[]
[]
[]
[null,null,"Accident Year",null,null,null,null,null,null,null,null,null,null,null,null,null,{"$f":"\"PaidCY\"&H$10&\"AY\"&B34","v":"PaidCY2019AY2018"},{"$f":"H34","v":0}]
[null,null,"Underwriting Year",null,null,null,null,null,null,null,null,null,null,null,null,null,"PaidCY2019AY2019",0]

{"sheet":"Sch XI(a)(viii)","index":81,"n_rows":94,"n_cols":20,"rows_kept":94,"cut":false,"hidden":true,"merged":[[0,13,0,14],[2,1,2,2],[60,6,60,7],[23,2,23,11],[80,1,82,12],[5,2,5,11],[59,6,59,7],[41,2,41,11]]}
[null,"SCHEDULE OF LOSS TRIANGLES (LINE 8 - STRUCTURED/FINITE LINES)",null,null,null,null,null,null,null,null,null,null,null,{"$f":"HYPERLINK(\"#'Index'!A1\",\"Return to Index\")","v":"Return to Index"}]
[null,{"$f":"'Company Information'!C7","v":"Enter Company Name"}]
[null,{"$f":" TEXT('Company Information'!C3,\"d mmmm yyyy\")","v":"31 December 2023"},null,null,null,null,null,null,null,null,null,null,null,null,"SCHEDULE XI(a)(viii)"]
[null,{"$f":"\"expressed in\"& IF(1000>1,\" ['\"&MID(1000,2,LEN(1000))&\"s]\",\"\")&\" \"&'Form 1EBS'!$C$4","v":"expressed in ['000s] United States Dollars"}]
[]
[null,"Accounting Basis: *","INCURRED (ESTIMATED ULTIMATE) NET LOSSES AND ALLOCATED LOSS ADJUSTMENT EXPENSES REPORTED AT YEAR END ($000)",null,null,null,null,null,null,null,null,null,11,12,13,null,"AcctBasis",{"$f":"B7","v":"Accident Year"}]
[null,"Accident Year",null,null,null,null,null,null,null,null,null,null,"Ultimate","Development","Development",null,{"$f":"\"UltCY\"&C$10&\"AY\"&B11","v":"UltCY2014AYPrior"},{"$f":"C11","v":0},{"$f":"\"CATUltCY\"&L$10&\"AY\"&B11","v":"CATUltCY2023AYPrior"},{"$f":"M11","v":0}]
[null,"Years in Which",1,2,3,4,5,6,7,8,9,10,"Catastrophe",null,null,null,{"$f":"\"UltCY\"&C$10&\"AY\"&B12","v":"UltCY2014AY2014"},{"$f":"C12","v":0},"CATUltCY2023AY2014",0]
[null,"Losses Were",null,null,null,null,null,null,null,null,null,null,"Losses","One Year","Two Year",null,{"$f":"\"UltCY\"&D$10&\"AY\"&B11","v":"UltCY2015AYPrior"},{"$f":"D11","v":0},"CATUltCY2023AY2015",0]
[null,"Incurred",{"$f":"D10-1","v":2014},2015,2016,2017,2018,2019,2020,2021,2022,{"$f":"YEAR('Company Information'!C3)","v":2023},{"$f":"L10","v":2023},"Development","Development",null,{"$f":"\"UltCY\"&D$10&\"AY\"&B12","v":"UltCY2015AY2014"},{"$f":"D12","v":0},"CATUltCY2023AY2016",0]
["L1","Prior",{"$f":"Import!I42698","v":0},{"$f":"Import!I42700","v":0},{"$f":"Import!I42703","v":0},{"$f":"Import!I42707","v":0},{"$f":"Import!I42712","v":0},{"$f":"Import!I42718","v":0},{"$f":"Import!I42725","v":0},{"$f":"Import!I42733","v":0},{"$f":"Import!I42742","v":0},{"$f":"Import!I42752","v":0},{"$f":"Import!I42763","v":0},{"$f":"K11-L11","v":0},{"$f":"J11-L11","v":0},null,{"$f":"\"UltCY\"&D$10&\"AY\"&B13","v":"UltCY2015AY2015"},{"$f":"D13","v":0},"CATUltCY2023AY2017",0]
["L2",{"$f":"B13-1","v":2014},{"$f":"Import!I42699","v":0},{"$f":"Import!I42701","v":0},{"$f":"Import!I42704","v":0},{"$f":"Import!I42708","v":0},{"$f":"Import!I42713","v":0},{"$f":"Import!I42719","v":0},{"$f":"Import!I42726","v":0},{"$f":"Import!I42734","v":0},{"$f":"Import!I42743","v":0},{"$f":"Import!I42753","v":0},{"$f":"Import!I42764","v":0},0,0,null,{"$f":"\"UltCY\"&E$10&\"AY\"&B11","v":"UltCY2016AYPrior"},{"$f":"E11","v":0},"CATUltCY2023AY2018",0]
["L3",2015,"XXX",{"$f":"Import!I42702","v":0},{"$f":"Import!I42705","v":0},{"$f":"Import!I42709","v":0},{"$f":"Import!I42714","v":0},{"$f":"Import!I42720","v":0},{"$f":"Import!I42727","v":0},{"$f":"Import!I42735","v":0},{"$f":"Import!I42744","v":0},{"$f":"Import!I42754","v":0},{"$f":"Import!I42765","v":0},0,0,null,{"$f":"\"UltCY\"&E$10&\"AY\"&B12","v":"UltCY2016AY2014"},{"$f":"E12","v":0},"CATUltCY2023AY2019",0]
["L4",2016,"XXX","XXX",{"$f":"Import!I42706","v":0},{"$f":"Import!I42710","v":0},{"$f":"Import!I42715","v":0},{"$f":"Import!I42721","v":0},{"$f":"Import!I42728","v":0},{"$f":"Import!I42736","v":0},{"$f":"Import!I42745","v":0},{"$f":"Import!I42755","v":0},{"$f":"Import!I42766","v":0},0,0,null,{"$f":"\"UltCY\"&E$10&\"AY\"&B13","v":"UltCY2016AY2015"},{"$f":"E13","v":0},"CATUltCY2023AY2020",0]
["L5",2017,"XXX","XXX","XXX",{"$f":"Import!I42711","v":0},{"$f":"Import!I42716","v":0},{"$f":"Import!I42722","v":0},{"$f":"Import!I42729","v":0},{"$f":"Import!I42737","v":0},{"$f":"Import!I42746","v":0},{"$f":"Import!I42756","v":0},{"$f":"Import!I42767","v":0},0,0,null,{"$f":"\"UltCY\"&E$10&\"AY\"&B14","v":"UltCY2016AY2016"},{"$f":"E14","v":0},"CATUltCY2023AY2021",0]
["L6",2018,"XXX","XXX","XXX","XXX",{"$f":"Import!I42717","v":0},{"$f":"Import!I42723","v":0},{"$f":"Import!I42730","v":0},{"$f":"Import!I42738","v":0},{"$f":"Import!I42747","v":0},{"$f":"Import!I42757","v":0},{"$f":"Import!I42768","v":0},0,0,null,{"$f":"\"UltCY\"&F$10&\"AY\"&B11","v":"UltCY2017AYPrior"},{"$f":"F11","v":0},"CATUltCY2023AY2022",0]
["L7",2019,"XXX","XXX","XXX","XXX","XXX",{"$f":"Import!I42724","v":0},{"$f":"Import!I42731","v":0},{"$f":"Import!I42739","v":0},{"$f":"Import!I42748","v":0},{"$f":"Import!I42758","v":0},{"$f":"Import!I42769","v":0},0,0,null,{"$f":"\"UltCY\"&F$10&\"AY\"&B12","v":"UltCY2017AY2014"},{"$f":"F12","v":0},"CATUltCY2023AY2023",0]
["L8",2020,"XXX","XXX","XXX","XXX","XXX","XXX",{"$f":"Import!I42732","v":0},{"$f":"Import!I42740","v":0},{"$f":"Import!I42749","v":0},{"$f":"Import!I42759","v":0},{"$f":"Import!I42770","v":0},0,0,null,{"$f":"\"UltCY\"&F$10&\"AY\"&B13","v":"UltCY2017AY2015"},{"$f":"F13","v":0},{"$f":"\"CATPaidCY\"&L$10&\"AY\"&B29","v":"CATPaidCY2023AYPrior"},{"$f":"M29","v":0}]
["L9",2021,"XXX","XXX","XXX","XXX","XXX","XXX","XXX",{"$f":"Import!I42741","v":0},{"$f":"Import!I42750","v":0},{"$f":"Import!I42760","v":0},{"$f":"Import!I42771","v":0},0,0,null,{"$f":"\"UltCY\"&F$10&\"AY\"&B14","v":"UltCY2017AY2016"},{"$f":"F14","v":0},"CATPaidCY2023AY2014",0]
["L10",2022,"XXX","XXX","XXX","XXX","XXX","XXX","XXX","XXX",{"$f":"Import!I42751","v":0},{"$f":"Import!I42761","v":0},{"$f":"Import!I42772","v":0},0,"XXX",null,{"$f":"\"UltCY\"&F$10&\"AY\"&B15","v":"UltCY2017AY2017"},{"$f":"F15","v":0},"CATPaidCY2023AY2015",0]
["L11",{"$f":"L10","v":2023},"XXX","XXX","XXX","XXX","XXX","XXX","XXX","XXX","XXX",{"$f":"Import!I42762","v":0},{"$f":"Import!I42773","v":0},"XXX","XXX",null,{"$f":"\"UltCY\"&G$10&\"AY\"&B11","v":"UltCY2018AYPrior"},{"$f":"G11","v":0},"CATPaidCY2023AY2016",0]
["L12","Totals",null,null,null,null,null,null,null,null,null,null,{"$f":"SUM(M11:M21)","v":0},{"$f":"SUM(N11:N21)","v":0},{"$f":"SUM(O11:O21)","v":0},null,{"$f":"\"UltCY\"&G$10&\"AY\"&B12","v":"UltCY2018AY2014"},{"$f":"G12","v":0},"CATPaidCY2023AY2017",0]
[null,null,null,null,null,null,null,null,null,null,null,null,null,null,null,null,{"$f":"\"UltCY\"&G$10&\"AY\"&B13","v":"UltCY2018AY2015"},{"$f":"G13","v":0},"CATPaidCY2023AY2018",0]
[null,null,"CUMULATIVE PAID NET LOSSES AND ALLOCATED LOSS ADJUSTMENT EXPENSES REPORTED AT YEAR END ($000)",null,null,null,null,null,null,null,null,null,24,null,null,null,{"$f":"\"UltCY\"&G$10&\"AY\"&B15","v":"UltCY2018AY2017"},{"$f":"G15","v":0},{"$f":"\"CATPaidCY\"&L$10&\"AY\"&B36","v":"CATPaidCY2023AY2020"},{"$f":"M36","v":0}]
[null,null,null,null,null,null,null,null,null,null,null,null,"Paid",null,null,null,{"$f":"\"UltCY\"&G$10&\"AY\"&B16","v":"UltCY2018AY2018"},{"$f":"G16","v":0},{"$f":"\"CATPaidCY\"&L$10&\"AY\"&B37","v":"CATPaidCY2023AY2021"},{"$f":"M37","v":0}]
[null,"Years in Which",14,15,16,17,18,19,20,21,22,23,"Catastrophe",null,null,null,{"$f":"\"UltCY\"&H$10&\"AY\"&B11","v":"UltCY2019AYPrior"},{"$f":"H11","v":0},{"$f":"\"CATPaidCY\"&L$10&\"AY\"&B38","v":"CATPaidCY2023AY2022"},{"$f":"M38","v":0}]
[null,"Policies Were",null,null,null,null,null,null,null,null,null,null,"Losses",null,null,null,"UltCY2019AY2014",0,{"$f":"\"CATPaidCY\"&L$10&\"AY\"&B39","v":"CATPaidCY2023AY2023"},{"$f":"M39","v":0}]
[null,"Written",{"$f":"D28-1","v":2014},2015,2016,2017,2018,2019,2020,2021,2022,{"$f":"L10","v":2023},{"$f":"L28","v":2023},null,null,null,"UltCY2019AY2015",0,{"$f":"\"CATIBNRCY\"&L$10&\"AY\"&B47","v":"CATIBNRCY2023AYPrior"},{"$f":"M47","v":0}]
["L13","Prior",{"$f":"Import!I42774","v":0},{"$f":"Import!I42776","v":0},{"$f":"Import!I42779","v":0},{"$f":"Import!I42783","v":0},{"$f":"Import!I42788","v":0},{"$f":"Import!I42794","v":0},{"$f":"Import!I42801","v":0},{"$f":"Import!I42809","v":0},{"$f":"Import!I42818","v":0},{"$f":"Import!I42828","v":0},{"$f":"Import!I42839","v":0},null,null,null,"UltCY2019AY2016",0,"CATIBNRCY2023AY2014",0]
["L14",{"$f":"B31-1","v":2014},{"$f":"Import!I42775","v":0},{"$f":"Import!I42777","v":0},{"$f":"Import!I42780","v":0},{"$f":"Import!I42784","v":0},{"$f":"Import!I42789","v":0},{"$f":"Import!I42795","v":0},{"$f":"Import!I42802","v":0},{"$f":"Import!I42810","v":0},{"$f":"Import!I42819","v":0},{"$f":"Import!I42829","v":0},{"$f":"Import!I42840","v":0},null,null,null,"UltCY2019AY2017",0,"CATIBNRCY2023AY2015",0]
["L15",2015,"XXX",{"$f":"Import!I42778","v":0},{"$f":"Import!I42781","v":0},{"$f":"Import!I42785","v":0},{"$f":"Import!I42790","v":0},{"$f":"Import!I42796","v":0},{"$f":"Import!I42803","v":0},{"$f":"Import!I42811","v":0},{"$f":"Import!I42820","v":0},{"$f":"Import!I42830","v":0},{"$f":"Import!I42841","v":0},null,null,null,"UltCY2019AY2018",0,"CATIBNRCY2023AY2016",0]
["L16",2016,"XXX","XXX",{"$f":"Import!I42782","v":0},{"$f":"Import!I42786","v":0},{"$f":"Import!I42791","v":0},{"$f":"Import!I42797","v":0},{"$f":"Import!I42804","v":0},{"$f":"Import!I42812","v":0},{"$f":"Import!I42821","v":0},{"$f":"Import!I42831","v":0},{"$f":"Import!I42842","v":0},null,null,null,"UltCY2019AY2019",0,"CATIBNRCY2023AY2017",0]
["L17",2017,"XXX","XXX","XXX",{"$f":"Import!I42787","v":0},{"$f":"Import!I42792","v":0},{"$f":"Import!I42798","v":0},{"$f":"Import!I42805","v":0},{"$f":"Import!I42813","v":0},{"$f":"Import!I42822","v":0},{"$f":"Import!I42832","v":0},{"$f":"Import!I42843","v":0},null,null,null,{"$f":"\"UltCY\"&I$10&\"AY\"&B11","v":"UltCY2020AYPrior"},{"$f":"I11","v":0},"CATIBNRCY2023AY2018",0]
["L18",2018,"XXX","XXX","XXX","XXX",{"$f":"Import!I42793","v":0},{"$f":"Import!I42799","v":0},{"$f":"Import!I42806","v":0},{"$f":"Import!I42814","v":0},{"$f":"Import!I42823","v":0},{"$f":"Import!I42833","v":0},{"$f":"Import!I42844","v":0},null,null,null,"UltCY2020AY2014",0,"CATIBNRCY2023AY2019",0]
["L19",2019,"XXX","XXX","XXX","XXX","XXX",{"$f":"Import!I42800","v":0},{"$f":"Import!I42807","v":0},{"$f":"Import!I42815","v":0},{"$f":"Import!I42824","v":0},{"$f":"Import!I42834","v":0},{"$f":"Import!I42845","v":0},null,null,null,"UltCY2020AY2015",0,"CATIBNRCY2023AY2020",0]
["L20",2020,"XXX","XXX","XXX","XXX","XXX","XXX",{"$f":"Import!I42808","v":0},{"$f":"Import!I42816","v":0},{"$f":"Import!I42825","v":0},{"$f":"Import!I42835","v":0},{"$f":"Import!I42846","v":0},null,null,null,"UltCY2020AY2016",0,"CATIBNRCY2023AY2021",0]
["L21",2021,"XXX","XXX","XXX","XXX","XXX","XXX","XXX",{"$f":"Import!I42817","v":0},{"$f":"Import!I42826","v":0},{"$f":"Import!I42836","v":0},{"$f":"Import!I42847","v":0},null,null,null,"UltCY2020AY2017",0,"CATIBNRCY2023AY2022",0]
["L22",2022,"XXX","XXX","XXX","XXX","XXX","XXX","XXX","XXX",{"$f":"Import!I42827","v":0},{"$f":"Import!I42837","v":0},{"$f":"Import!I42848","v":0},null,null,null,"UltCY2020AY2018",0,"CATIBNRCY2023AY2023",0]
["L23",{"$f":"L28","v":2023},"XXX","XXX","XXX","XXX","XXX","XXX","XXX","XXX","XXX",{"$f":"Import!I42838","v":0},{"$f":"Import!I42849","v":0},null,null,null,"UltCY2020AY2019",0]
["L24","Totals",null,null,null,null,null,null,null,null,null,null,{"$f":"SUM(M29:M39)","v":0},null,null,null,"UltCY2020AY2020",0]
[null,null,null,null,null,null,null,null,null,null,null,null,null,null,null,null,{"$f":"\"UltCY\"&J$10&\"AY\"&B11","v":"UltCY2021AYPrior"},{"$f":"J11","v":0}]
[null,null,"BULK & IBNR RESERVES ON NET LOSSES AND ALLOCATED LOSS ADJUSTMENT EXPENSES REPORTED AT YEAR END ($000)",null,null,null,null,null,null,null,null,null,35,null,null,null,{"$f":"\"UltCY\"&J$10&\"AY\"&B13","v":"UltCY2021AY2015"},{"$f":"J13","v":0}]
[null,null,null,null,null,null,null,null,null,null,null,null,"Losses",null,null,null,"UltCY2021AY2016",0]
[null,"Years in Which",25,26,27,28,29,30,31,32,33,34,"Bulk & IBNR",null,null,null,"UltCY2021AY2017",0]
[null,"Policies Were",null,null,null,null,null,null,null,null,null,null,"Reserves",null,null,null,"UltCY2021AY2018",0]
[null,"Written",{"$f":"D46-1","v":2014},2015,2016,2017,2018,2019,2020,2021,2022,{"$f":"L28","v":2023},{"$f":"L46","v":2023},null,null,null,"UltCY2021AY2019",0]
["L25","Prior",{"$f":"Import!I42850","v":0},{"$f":"Import!I42852","v":0},{"$f":"Import!I42855","v":0},{"$f":"Import!I42859","v":0},{"$f":"Import!I42864","v":0},{"$f":"Import!I42870","v":0},{"$f":"Import!I42877","v":0},{"$f":"Import!I42885","v":0},{"$f":"Import!I42894","v":0},{"$f":"Import!I42904","v":0},{"$f":"Import!I42915","v":0},null,null,null,"UltCY2021AY2020",0]
["L26",{"$f":"B49-1","v":2014},{"$f":"Import!I42851","v":0},{"$f":"Import!I42853","v":0},{"$f":"Import!I42856","v":0},{"$f":"Import!I42860","v":0},{"$f":"Import!I42865","v":0},{"$f":"Import!I42871","v":0},{"$f":"Import!I42878","v":0},{"$f":"Import!I42886","v":0},{"$f":"Import!I42895","v":0},{"$f":"Import!I42905","v":0},{"$f":"Import!I42916","v":0},null,null,null,"UltCY2021AY2021",0]
["L27",2015,"XXX",{"$f":"Import!I42854","v":0},{"$f":"Import!I42857","v":0},{"$f":"Import!I42861","v":0},{"$f":"Import!I42866","v":0},{"$f":"Import!I42872","v":0},{"$f":"Import!I42879","v":0},{"$f":"Import!I42887","v":0},{"$f":"Import!I42896","v":0},{"$f":"Import!I42906","v":0},{"$f":"Import!I42917","v":0},null,null,null,{"$f":"\"UltCY\"&K$10&\"AY\"&B11","v":"UltCY2022AYPrior"},{"$f":"K11","v":0}]
["L28",2016,"XXX","XXX",{"$f":"Import!I42858","v":0},{"$f":"Import!I42862","v":0},{"$f":"Import!I42867","v":0},{"$f":"Import!I42873","v":0},{"$f":"Import!I42880","v":0},{"$f":"Import!I42888","v":0},{"$f":"Import!I42897","v":0},{"$f":"Import!I42907","v":0},{"$f":"Import!I42918","v":0},null,null,null,"UltCY2022AY2014",0]
["L29",2017,"XXX","XXX","XXX",{"$f":"Import!I42863","v":0},{"$f":"Import!I42868","v":0},{"$f":"Import!I42874","v":0},{"$f":"Import!I42881","v":0},{"$f":"Import!I42889","v":0},{"$f":"Import!I42898","v":0},{"$f":"Import!I42908","v":0},{"$f":"Import!I42919","v":0},null,null,null,"UltCY2022AY2015",0]
["L30",2018,"XXX","XXX","XXX","XXX",{"$f":"Import!I42869","v":0},{"$f":"Import!I42875","v":0},{"$f":"Import!I42882","v":0},{"$f":"Import!I42890","v":0},{"$f":"Import!I42899","v":0},{"$f":"Import!I42909","v":0},{"$f":"Import!I42920","v":0},null,null,null,"UltCY2022AY2016",0]
["L31",2019,"XXX","XXX","XXX","XXX","XXX",{"$f":"Import!I42876","v":0},{"$f":"Import!I42883","v":0},{"$f":"Import!I42891","v":0},{"$f":"Import!I42900","v":0},{"$f":"Import!I42910","v":0},{"$f":"Import!I42921","v":0},null,null,null,"UltCY2022AY2017",0]
["L32",2020,"XXX","XXX","XXX","XXX","XXX","XXX",{"$f":"Import!I42884","v":0},{"$f":"Import!I42892","v":0},{"$f":"Import!I42901","v":0},{"$f":"Import!I42911","v":0},{"$f":"Import!I42922","v":0},null,null,null,"UltCY2022AY2018",0]
["L33",2021,"XXX","XXX","XXX","XXX","XXX","XXX","XXX",{"$f":"Import!I42893","v":0},{"$f":"Import!I42902","v":0},{"$f":"Import!I42912","v":0},{"$f":"Import!I42923","v":0},null,null,null,"UltCY2022AY2019",0]
["L34",2022,"XXX","XXX","XXX","XXX","XXX","XXX","XXX","XXX",{"$f":"Import!I42903","v":0},{"$f":"Import!I42913","v":0},{"$f":"Import!I42924","v":0},null,null,null,"UltCY2022AY2020",0]
["L35",{"$f":"L46","v":2023},"XXX","XXX","XXX","XXX","XXX","XXX","XXX","XXX","XXX",{"$f":"Import!I42914","v":0},{"$f":"Import!I42925","v":0},null,null,null,"UltCY2022AY2021",0]
["L36","Totals",null,null,null,null,null,null,null,null,null,null,{"$f":"SUM(M47:M57)","v":0},null,null,null,"UltCY2022AY2022",0]
[null,null,null,null,null,null,null,null,null,null,null,null,null,null,null,null,{"$f":"\"UltCY\"&L$10&\"AY\"&B11","v":"UltCY2023AYPrior"},{"$f":"L11","v":0}]
[null,null,36,37,38,39,"Unallocated Loss",null,null,42,43,44,45,null,null,null,{"$f":"\"UltCY\"&L$10&\"AY\"&B13","v":"UltCY2023AY2015"},{"$f":"L13","v":0}]
[null,"Years in Which",null,null,null,null,"Adjustment Expenses",null,null,null,null,null,null,null,null,null,"UltCY2023AY2016",0]
[null,"Premiums",null,null,null,null,40,41,null,null,null,null,null,null,null,null,"UltCY2023AY2017",0]
[null,"Were",null,null,null,null,null,null,null,"Commission and","General and",null,null,null,null,null,"UltCY2023AY2018",0]
[null,"Earned and","Gross","Gross","Net","Net",null,null,null,"Brokerage","Administrative","Personnel","Other",null,null,null,"UltCY2023AY2019",0]
[null,"Losses Were","Premiums","Premiums","Premiums","Premiums",null,null,"Calendar","Expense","Expense","Costs","Expense",null,null,null,"UltCY2023AY2020",0]
[null,"Incurred","Written","Earned","Written","Earned","Paid","Incurred","Year","(Form 2A, Line 9)","(Form 2A, Line 10)","(Form 2A, Line 11)","(Form 2A, Line 12)",null,null,null,"UltCY2023AY2021",0]
["L37","Prior","XXX",{"$f":"C67","v":"XXX"},"XXX",{"$f":"E67","v":"XXX"},{"$f":"Import!I42970","v":0},{"$f":"Import!I42981","v":0},"Prior",{"$f":"Import!I42992","v":0},{"$f":"Import!I43003","v":0},{"$f":"Import!I43014","v":0},{"$f":"Import!I43025","v":0},null,null,null,"UltCY2023AY2022",0]
["L38",{"$f":"B69-1","v":2014},{"$f":"Import!I42927","v":0},{"$f":"Import!I42938","v":0},{"$f":"Import!I42949","v":0},{"$f":"Import!I42960","v":0},{"$f":"Import!I42971","v":0},{"$f":"Import!I42982","v":0},{"$f":"B68","v":2014},{"$f":"Import!I42993","v":0},{"$f":"Import!I43004","v":0},{"$f":"Import!I43015","v":0},{"$f":"Import!I43026","v":0},null,null,null,"UltCY2023AY2023",0]
["L39",2015,{"$f":"Import!I42928","v":0},{"$f":"Import!I42939","v":0},{"$f":"Import!I42950","v":0},{"$f":"Import!I42961","v":0},{"$f":"Import!I42972","v":0},{"$f":"Import!I42983","v":0},2015,{"$f":"Import!I42994","v":0},{"$f":"Import!I43005","v":0},{"$f":"Import!I43016","v":0},{"$f":"Import!I43027","v":0},null,null,null,{"$f":"\"PaidCY\"&C$10&\"AY\"&B29","v":"PaidCY2014AYPrior"},{"$f":"C29","v":0}]
["L40",2016,{"$f":"Import!I42929","v":0},{"$f":"Import!I42940","v":0},{"$f":"Import!I42951","v":0},{"$f":"Import!I42962","v":0},{"$f":"Import!I42973","v":0},{"$f":"Import!I42984","v":0},2016,{"$f":"Import!I42995","v":0},{"$f":"Import!I43006","v":0},{"$f":"Import!I43017","v":0},{"$f":"Import!I43028","v":0},null,null,null,{"$f":"\"PaidCY\"&C$10&\"AY\"&B30","v":"PaidCY2014AY2014"},{"$f":"C30","v":0}]
["L41",2017,{"$f":"Import!I42930","v":0},{"$f":"Import!I42941","v":0},{"$f":"Import!I42952","v":0},{"$f":"Import!I42963","v":0},{"$f":"Import!I42974","v":0},{"$f":"Import!I42985","v":0},2017,{"$f":"Import!I42996","v":0},{"$f":"Import!I43007","v":0},{"$f":"Import!I43018","v":0},{"$f":"Import!I43029","v":0},null,null,null,{"$f":"\"PaidCY\"&D$10&\"AY\"&B29","v":"PaidCY2015AYPrior"},{"$f":"D29","v":0}]
["L42",2018,{"$f":"Import!I42931","v":0},{"$f":"Import!I42942","v":0},{"$f":"Import!I42953","v":0},{"$f":"Import!I42964","v":0},{"$f":"Import!I42975","v":0},{"$f":"Import!I42986","v":0},2018,{"$f":"Import!I42997","v":0},{"$f":"Import!I43008","v":0},{"$f":"Import!I43019","v":0},{"$f":"Import!I43030","v":0},null,null,null,{"$f":"\"PaidCY\"&D$10&\"AY\"&B30","v":"PaidCY2015AY2014"},{"$f":"D30","v":0}]
["L43",2019,{"$f":"Import!I42932","v":0},{"$f":"Import!I42943","v":0},{"$f":"Import!I42954","v":0},{"$f":"Import!I42965","v":0},{"$f":"Import!I42976","v":0},{"$f":"Import!I42987","v":0},2019,{"$f":"Import!I42998","v":0},{"$f":"Import!I43009","v":0},{"$f":"Import!I43020","v":0},{"$f":"Import!I43031","v":0},null,null,null,{"$f":"\"PaidCY\"&D$10&\"AY\"&B31","v":"PaidCY2015AY2015"},{"$f":"D31","v":0}]
["L44",2020,{"$f":"Import!I42933","v":0},{"$f":"Import!I42944","v":0},{"$f":"Import!I42955","v":0},{"$f":"Import!I42966","v":0},{"$f":"Import!I42977","v":0},{"$f":"Import!I42988","v":0},2020,{"$f":"Import!I42999","v":0},{"$f":"Import!I43010","v":0},{"$f":"Import!I43021","v":0},{"$f":"Import!I43032","v":0},null,null,null,{"$f":"\"PaidCY\"&E$10&\"AY\"&B29","v":"PaidCY2016AYPrior"},{"$f":"E29","v":0}]
["L45",2021,{"$f":"Import!I42934","v":0},{"$f":"Import!I42945","v":0},{"$f":"Import!I42956","v":0},{"$f":"Import!I42967","v":0},{"$f":"Import!I42978","v":0},{"$f":"Import!I42989","v":0},2021,{"$f":"Import!I43000","v":0},{"$f":"Import!I43011","v":0},{"$f":"Import!I43022","v":0},{"$f":"Import!I43033","v":0},null,null,null,{"$f":"\"PaidCY\"&E$10&\"AY\"&B30","v":"PaidCY2016AY2014"},{"$f":"E30","v":0}]
["L46",2022,{"$f":"Import!I42935","v":0},{"$f":"Import!I42946","v":0},{"$f":"Import!I42957","v":0},{"$f":"Import!I42968","v":0},{"$f":"Import!I42979","v":0},{"$f":"Import!I42990","v":0},2022,{"$f":"Import!I43001","v":0},{"$f":"Import!I43012","v":0},{"$f":"Import!I43023","v":0},{"$f":"Import!I43034","v":0},null,null,null,{"$f":"\"PaidCY\"&E$10&\"AY\"&B31","v":"PaidCY2016AY2015"},{"$f":"E31","v":0}]
["L47",{"$f":"B39","v":2023},{"$f":"Import!I42936","v":0},{"$f":"Import!I42947","v":0},{"$f":"Import!I42958","v":0},{"$f":"Import!I42969","v":0},{"$f":"Import!I42980","v":0},{"$f":"Import!I42991","v":0},2023,{"$f":"Import!I43002","v":0},{"$f":"Import!I43013","v":0},{"$f":"Import!I43024","v":0},{"$f":"Import!I43035","v":0},null,null,null,{"$f":"\"PaidCY\"&E$10&\"AY\"&B32","v":"PaidCY2016AY2016"},{"$f":"E32","v":0}]
["L48","Totals","XXX",{"$f":"C78","v":"XXX"},"XXX",{"$f":"E78","v":"XXX"},{"$f":"SUM(G67:G77)","v":0},{"$f":"SUM(H67:H77)","v":0},"Totals",{"$f":"SUM(J67:J77)","v":0},{"$f":"SUM(K67:K77)","v":0},{"$f":"SUM(L67:L77)","v":0},{"$f":"SUM(M67:M77)","v":0},null,null,null,{"$f":"\"PaidCY\"&F$10&\"AY\"&B29","v":"PaidCY2017AYPrior"},{"$f":"F29","v":0}]
[null,null,null,null,null,null,null,null,null,null,null,null,null,null,null,null,{"$f":"\"PaidCY\"&F$10&\"AY\"&B30","v":"PaidCY2017AY2014"},{"$f":"F30","v":0}]
[null,"COMMENTS",null,null,null,null,null,null,null,null,null,null,null,null,null,null,{"$f":"\"PaidCY\"&F$10&\"AY\"&B31","v":"PaidCY2017AY2015"},{"$f":"F31","v":0}]
[null,{"$f":"Import!I43036","v":0},null,null,null,null,null,null,null,null,null,null,null,null,null,null,{"$f":"\"PaidCY\"&G$10&\"AY\"&B30","v":"PaidCY2018AY2014"},{"$f":"G30","v":0}]
[null,null,null,null,null,null,null,null,null,null,null,null,null,null,null,null,{"$f":"\"PaidCY\"&G$10&\"AY\"&B31","v":"PaidCY2018AY2015"},{"$f":"G31","v":0}]
[null,null,null,null,null,null,null,null,null,null,null,null,null,null,null,null,{"$f":"\"PaidCY\"&G$10&\"AY\"&B32","v":"PaidCY2018AY2016"},{"$f":"G32","v":0}]
[null,null,null,null,null,null,null,null,null,null,null,null,null,null,null,null,{"$f":"\"PaidCY\"&G$10&\"AY\"&B34","v":"PaidCY2018AY2018"},{"$f":"G34","v":0}]
[]
[]
[]
[]
[]
[]
[]
[null,null,"Accident Year",null,null,null,null,null,null,null,null,null,null,null,null,null,{"$f":"\"PaidCY\"&I$10&\"AY\"&B29","v":"PaidCY2020AYPrior"},{"$f":"I29","v":0}]
[null,null,"Underwriting Year",null,null,null,null,null,null,null,null,null,null,null,null,null,"PaidCY2020AY2014",0]
[null,null,null,null,null,null,null,null,null,null,null,null,null,null,null,null,"PaidCY2020AY2015",0]

{"sheet":"Schedule XI(b)","index":82,"n_rows":30,"n_cols":6,"rows_kept":30,"cut":false,"hidden":true,"merged":[[5,1,5,5],[0,1,0,4],[2,1,2,2]]}
[null,"SCHEDULE OF RECONCILIATION OF NET LOSS RESERVES BY LINES OF BUSINESS (COMBINED FOR ALL LINES)",null,null,null,{"$f":"HYPERLINK(\"#'Index'!A1\",\"Return to Index\")","v":"Return to Index"}]
[null,{"$f":"'Company Information'!C7","v":"Enter Company Name"}]
[null,{"$f":" TEXT('Company Information'!C3,\"d mmmm yyyy\")","v":"31 December 2023"},null,null,null,"SCHEDULE XI(b) (EBS)"]
[null,{"$f":"\"expressed in\"& IF(1000>1,\" ['\"&MID(1000,2,LEN(1000))&\"s]\",\"\")","v":"expressed in ['000s]"},{"$f":"'Form 1EBS'!$C$4","v":"United States Dollars"}]
[]
[null,"Note:  The insurer shall provide a reconciliation of its beginning and ending net loss reserve balances for the 8 statutory lines of business, as an alternative to the loss triangles - Schedule XI(a)."]
[]
[null,null,null,{"$f":"'Form 1EBS'!F7","v":"2023-12-31"},null,{"$f":"'Form 1EBS'!H7","v":"2022-12-31"}]
[]
[null,"Net best estimate loss and loss expense provisions at start of year",null,{"$f":"'Sch XI(b)(i)'!D10+'Sch XI(b)(ii)'!D10+'Sch XI(b)(iii)'!D10+'Sch XI(b)(iv)'!D10+'Sch XI(b)(v)'!D10+'Sch XI(b)(vi)'!D10+'Sch XI(b)(vii)'!D10+'Sch XI(b)(viii)'!D10","v":0},null,{"$f":"'Sch XI(b)(i)'!F10+'Sch XI(b)(ii)'!F10+'Sch XI(b)(iii)'!F10+'Sch XI(b)(iv)'!F10+'Sch XI(b)(v)'!F10+'Sch XI(b)(vi)'!F10+'Sch XI(b)(vii)'!F10+'Sch XI(b)(viii)'!F10","v":0}]
[]
[null,"Unwind of discount (start year discount curve)",null,{"$f":"'Sch XI(b)(i)'!D12+'Sch XI(b)(ii)'!D12+'Sch XI(b)(iii)'!D12+'Sch XI(b)(iv)'!D12+'Sch XI(b)(v)'!D12+'Sch XI(b)(vi)'!D12+'Sch XI(b)(vii)'!D12+'Sch XI(b)(viii)'!D12","v":0},null,{"$f":"'Sch XI(b)(i)'!F12+'Sch XI(b)(ii)'!F12+'Sch XI(b)(iii)'!F12+'Sch XI(b)(iv)'!F12+'Sch XI(b)(v)'!F12+'Sch XI(b)(vi)'!F12+'Sch XI(b)(vii)'!F12+'Sch XI(b)(viii)'!F12","v":0}]
[null,"Net losses and loss expenses paid or payable related to prior years",null,{"$f":"'Sch XI(b)(i)'!D13+'Sch XI(b)(ii)'!D13+'Sch XI(b)(iii)'!D13+'Sch XI(b)(iv)'!D13+'Sch XI(b)(v)'!D13+'Sch XI(b)(vi)'!D13+'Sch XI(b)(vii)'!D13+'Sch XI(b)(viii)'!D13","v":0},null,{"$f":"'Sch XI(b)(i)'!F13+'Sch XI(b)(ii)'!F13+'Sch XI(b)(iii)'!F13+'Sch XI(b)(iv)'!F13+'Sch XI(b)(v)'!F13+'Sch XI(b)(vi)'!F13+'Sch XI(b)(vii)'!F13+'Sch XI(b)(viii)'!F13","v":0}]
[null,"Net losses incurred and net loss expenses incurred related to prior years",null,{"$f":"'Sch XI(b)(i)'!D14+'Sch XI(b)(ii)'!D14+'Sch XI(b)(iii)'!D14+'Sch XI(b)(iv)'!D14+'Sch XI(b)(v)'!D14+'Sch XI(b)(vi)'!D14+'Sch XI(b)(vii)'!D14+'Sch XI(b)(viii)'!D14","v":0},null,{"$f":"'Sch XI(b)(i)'!F14+'Sch XI(b)(ii)'!F14+'Sch XI(b)(iii)'!F14+'Sch XI(b)(iv)'!F14+'Sch XI(b)(v)'!F14+'Sch XI(b)(vi)'!F14+'Sch XI(b)(vii)'!F14+'Sch XI(b)(viii)'!F14","v":0}]
[null,"Undiscounted net best estimate loss and loss expense provisions at end of year related to prior years.",null,{"$f":"'Sch XI(b)(i)'!D15+'Sch XI(b)(ii)'!D15+'Sch XI(b)(iii)'!D15+'Sch XI(b)(iv)'!D15+'Sch XI(b)(v)'!D15+'Sch XI(b)(vi)'!D15+'Sch XI(b)(vii)'!D15+'Sch XI(b)(viii)'!D15","v":0},null,{"$f":"'Sch XI(b)(i)'!F15+'Sch XI(b)(ii)'!F15+'Sch XI(b)(iii)'!F15+'Sch XI(b)(iv)'!F15+'Sch XI(b)(v)'!F15+'Sch XI(b)(vi)'!F15+'Sch XI(b)(vii)'!F15+'Sch XI(b)(viii)'!F15","v":0}]
[]
[null,"Net losses incurred and net loss expenses incurred related to current year",null,{"$f":"'Sch XI(b)(i)'!D17+'Sch XI(b)(ii)'!D17+'Sch XI(b)(iii)'!D17+'Sch XI(b)(iv)'!D17+'Sch XI(b)(v)'!D17+'Sch XI(b)(vi)'!D17+'Sch XI(b)(vii)'!D17+'Sch XI(b)(viii)'!D17","v":0},null,{"$f":"'Sch XI(b)(i)'!F17+'Sch XI(b)(ii)'!F17+'Sch XI(b)(iii)'!F17+'Sch XI(b)(iv)'!F17+'Sch XI(b)(v)'!F17+'Sch XI(b)(vi)'!F17+'Sch XI(b)(vii)'!F17+'Sch XI(b)(viii)'!F17","v":0}]
[null,"Net losses and loss expenses paid or payable related to current year",null,{"$f":"'Sch XI(b)(i)'!D18+'Sch XI(b)(ii)'!D18+'Sch XI(b)(iii)'!D18+'Sch XI(b)(iv)'!D18+'Sch XI(b)(v)'!D18+'Sch XI(b)(vi)'!D18+'Sch XI(b)(vii)'!D18+'Sch XI(b)(viii)'!D18","v":0},null,{"$f":"'Sch XI(b)(i)'!F18+'Sch XI(b)(ii)'!F18+'Sch XI(b)(iii)'!F18+'Sch XI(b)(iv)'!F18+'Sch XI(b)(v)'!F18+'Sch XI(b)(vi)'!F18+'Sch XI(b)(vii)'!F18+'Sch XI(b)(viii)'!F18","v":0}]
[null,"Foreign exchange and other adjustments",null,{"$f":"'Sch XI(b)(i)'!D19+'Sch XI(b)(ii)'!D19+'Sch XI(b)(iii)'!D19+'Sch XI(b)(iv)'!D19+'Sch XI(b)(v)'!D19+'Sch XI(b)(vi)'!D19+'Sch XI(b)(vii)'!D19+'Sch XI(b)(viii)'!D19","v":0},null,{"$f":"'Sch XI(b)(i)'!F19+'Sch XI(b)(ii)'!F19+'Sch XI(b)(iii)'!F19+'Sch XI(b)(iv)'!F19+'Sch XI(b)(v)'!F19+'Sch XI(b)(vi)'!F19+'Sch XI(b)(vii)'!F19+'Sch XI(b)(viii)'!F19","v":0}]
[null,"Undiscounted net best estimate loss and loss expense provisions at end of year related to current year.",null,{"$f":"'Sch XI(b)(i)'!D20+'Sch XI(b)(ii)'!D20+'Sch XI(b)(iii)'!D20+'Sch XI(b)(iv)'!D20+'Sch XI(b)(v)'!D20+'Sch XI(b)(vi)'!D20+'Sch XI(b)(vii)'!D20+'Sch XI(b)(viii)'!D20","v":0},null,{"$f":"'Sch XI(b)(i)'!F20+'Sch XI(b)(ii)'!F20+'Sch XI(b)(iii)'!F20+'Sch XI(b)(iv)'!F20+'Sch XI(b)(v)'!F20+'Sch XI(b)(vi)'!F20+'Sch XI(b)(vii)'!F20+'Sch XI(b)(viii)'!F20","v":0}]
[]
[null,"Impact of change in discount curve",null,{"$f":"'Sch XI(b)(i)'!D22+'Sch XI(b)(ii)'!D22+'Sch XI(b)(iii)'!D22+'Sch XI(b)(iv)'!D22+'Sch XI(b)(v)'!D22+'Sch XI(b)(vi)'!D22+'Sch XI(b)(vii)'!D22+'Sch XI(b)(viii)'!D22","v":0},null,{"$f":"'Sch XI(b)(i)'!F22+'Sch XI(b)(ii)'!F22+'Sch XI(b)(iii)'!F22+'Sch XI(b)(iv)'!F22+'Sch XI(b)(v)'!F22+'Sch XI(b)(vi)'!F22+'Sch XI(b)(vii)'!F22+'Sch XI(b)(viii)'!F22","v":0}]
[]
[null,"Net best estimate loss and loss expense provisions at end of year",null,{"$f":"D15+D20+D22","v":0},null,{"$f":"F15+F20+F22","v":0}]
[]
[null,null,null,{"$f":"IF(D27=\"TRUE\",HYPERLINK(\"#'Form 1EBS'!F115\",\"TRUE\"),HYPERLINK(\"#'Form 1EBS'!F115\",\"FALSE\"))","v":"TRUE"},null,{"$f":"IF(F27=\"TRUE\",HYPERLINK(\"#'Form 1EBS'!H115\",\"TRUE\"),HYPERLINK(\"#'Form 1EBS'!H115\",\"FALSE\"))","v":"TRUE"}]
[null,null,null,{"$f":"IF(ROUND((D24-'Form 1EBS'!F115),0)=0,\"TRUE\",\"FALSE\")","v":"TRUE"},null,{"$f":"IF(ROUND((F24-'Form 1EBS'!H115),0)=0,\"TRUE\",\"FALSE\")","v":"TRUE"}]
[null,null,null,{"$f":"ROUND('Form 1EBS'!F115-D24,0)","v":0},null,{"$f":"ROUND('Form 1EBS'!H115-F24,0)","v":0}]
[]
[null,null,null,{"$f":"IF(D26=\"False\",\"Does not equal Form 1EBS Line 17(d)\",\"\")","v":""},null,{"$f":"IF(F26=\"False\",\"Does not equal Form 1EBS Line 17(d)\",\"\")","v":""}]

{"sheet":"Sch XI(b)(i)","index":83,"n_rows":24,"n_cols":6,"rows_kept":24,"cut":false,"hidden":true,"merged":[[0,1,0,4],[2,1,2,2]]}
[null,"SCHEDULE OF RECONCILIATION OF NET LOSS RESERVES BY LINES OF BUSINESS \n(LINE 1 - PROPERTY CATASTROPHE)",null,null,null,{"$f":"HYPERLINK(\"#'Index'!A1\",\"Return to Index\")","v":"Return to Index"}]
[null,{"$f":"'Company Information'!C7","v":"Enter Company Name"}]
[null,{"$f":" TEXT('Company Information'!C3,\"d mmmm yyyy\")","v":"31 December 2023"},null,null,null,"SCHEDULE XI(b)(i) (EBS)"]
[null,{"$f":"\"expressed in\"& IF(1000>1,\" ['\"&MID(1000,2,LEN(1000))&\"s]\",\"\")","v":"expressed in ['000s]"},{"$f":"'Form 1EBS'!$C$4","v":"United States Dollars"}]
[]
[]
[]
[null,null,null,{"$f":"'Schedule XI(b)'!D8","v":"2023-12-31"},null,{"$f":"'Schedule XI(b)'!F8","v":"2022-12-31"}]
[]
[null,"Net best estimate loss and loss expense provisions at start of year",null,{"$f":"Import!M43038","v":0},null,{"$f":"Import!O43038","v":0}]
[]
[null,"Unwind of discount (start year discount curve)",null,{"$f":"Import!M43039","v":0},null,{"$f":"Import!O43039","v":0}]
[null,"Net losses and loss expenses paid or payable related to prior years",null,{"$f":"Import!M43040","v":0},null,{"$f":"Import!O43040","v":0}]
[null,"Net losses incurred and net loss expenses incurred related to prior years",null,{"$f":"Import!M43041","v":0},null,{"$f":"Import!O43041","v":0}]
[null,"Undiscounted net best estimate loss and loss expense provisions at end of year related to prior years.",null,{"$f":"SUM(D10:D14)","v":0},null,{"$f":"SUM(F10:F14)","v":0}]
[]
[null,"Net losses incurred and net loss expenses incurred related to current year",null,{"$f":"Import!M43043","v":0},null,{"$f":"Import!O43043","v":0}]
[null,"Net losses and loss expenses paid or payable related to current year",null,{"$f":"Import!M43044","v":0},null,{"$f":"Import!O43044","v":0}]
[null,"Foreign exchange and other adjustments",null,{"$f":"Import!M43045","v":0},null,{"$f":"Import!O43045","v":0}]
[null,"Undiscounted net best estimate loss and loss expense provisions at end of year related to current year.",null,{"$f":"SUM(D17:D19)","v":0},null,{"$f":"SUM(F17:F19)","v":0}]
[]
[null,"Impact of change in discount curve",null,{"$f":"Import!M43047","v":0},null,{"$f":"Import!O43047","v":0}]
[]
[null,"Net best estimate loss and loss expense provisions at end of year",null,{"$f":"D15+D20+D22","v":0},null,{"$f":"F15+F20+F22","v":0}]

{"sheet":"Sch XI(b)(ii)","index":84,"n_rows":24,"n_cols":6,"rows_kept":24,"cut":false,"hidden":true,"merged":[[0,1,0,4]]}
[null,"SCHEDULE OF RECONCILIATION OF NET LOSS RESERVES BY LINES OF BUSINESS\n(LINE 2 - PROPERTY)",null,null,null,{"$f":"HYPERLINK(\"#'Index'!A1\",\"Return to Index\")","v":"Return to Index"}]
[null,{"$f":"'Company Information'!C7","v":"Enter Company Name"}]
[null,{"$f":" TEXT('Company Information'!C3,\"d mmmm yyyy\")","v":"31 December 2023"},null,null,null,"SCHEDULE XI(b)(ii) (EBS)"]
[null,{"$f":"\"expressed in\"& IF(1000>1,\" ['\"&MID(1000,2,LEN(1000))&\"s]\",\"\")","v":"expressed in ['000s]"},{"$f":"'Form 1EBS'!$C$4","v":"United States Dollars"}]
[]
[]
[]
[null,null,null,{"$f":"'Sch XI(b)(i)'!D8","v":"2023-12-31"},null,{"$f":"'Sch XI(b)(i)'!F8","v":"2022-12-31"}]
[]
[null,"Net best estimate loss and loss expense provisions at start of year",null,{"$f":"Import!M43049","v":0},null,{"$f":"Import!O43049","v":0}]
[]
[null,"Unwind of discount (start year discount curve)",null,{"$f":"Import!M43050","v":0},null,{"$f":"Import!O43050","v":0}]
[null,"Net losses and loss expenses paid or payable related to prior years",null,{"$f":"Import!M43051","v":0},null,{"$f":"Import!O43051","v":0}]
[null,"Net losses incurred and net loss expenses incurred related to prior years",null,{"$f":"Import!M43052","v":0},null,{"$f":"Import!O43052","v":0}]
[null,"Undiscounted net best estimate loss and loss expense provisions at end of year related to prior years.",null,{"$f":"SUM(D10:D14)","v":0},null,{"$f":"SUM(F10:F14)","v":0}]
[]
[null,"Net losses incurred and net loss expenses incurred related to current year",null,{"$f":"Import!M43054","v":0},null,{"$f":"Import!O43054","v":0}]
[null,"Net losses and loss expenses paid or payable related to current year",null,{"$f":"Import!M43055","v":0},null,{"$f":"Import!O43055","v":0}]
[null,"Foreign exchange and other adjustments",null,{"$f":"Import!M43056","v":0},null,{"$f":"Import!O43056","v":0}]
[null,"Undiscounted net best estimate loss and loss expense provisions at end of year related to current year.",null,{"$f":"SUM(D17:D19)","v":0},null,{"$f":"SUM(F17:F19)","v":0}]
[]
[null,"Impact of change in discount curve",null,{"$f":"Import!M43058","v":0},null,{"$f":"Import!O43058","v":0}]
[]
[null,"Net best estimate loss and loss expense provisions at end of year",null,{"$f":"D15+D20+D22","v":0},null,{"$f":"F15+F20+F22","v":0}]

{"sheet":"Sch XI(b)(iii)","index":85,"n_rows":24,"n_cols":6,"rows_kept":24,"cut":false,"hidden":true,"merged":[[0,1,0,4]]}
[null,"SCHEDULE OF RECONCILIATION OF NET LOSS RESERVES BY LINES OF BUSINESS\n(LINE 3 - PROPERTY NON-PROPORTIONAL)",null,null,null,{"$f":"HYPERLINK(\"#'Index'!A1\",\"Return to Index\")","v":"Return to Index"}]
[null,{"$f":"'Company Information'!C7","v":"Enter Company Name"}]
[null,{"$f":" TEXT('Company Information'!C3,\"d mmmm yyyy\")","v":"31 December 2023"},null,null,null,"SCHEDULE XI(b)(iii) (EBS)"]
[null,{"$f":"\"expressed in\"& IF(1000>1,\" ['\"&MID(1000,2,LEN(1000))&\"s]\",\"\")","v":"expressed in ['000s]"},{"$f":"'Form 1EBS'!$C$4","v":"United States Dollars"}]
[]
[]
[]
[null,null,null,{"$f":"'Sch XI(b)(i)'!D8","v":"2023-12-31"},null,{"$f":"'Sch XI(b)(i)'!F8","v":"2022-12-31"}]
[]
[null,"Net best estimate loss and loss expense provisions at start of year",null,{"$f":"Import!M43060","v":0},null,{"$f":"Import!O43060","v":0}]
[]
[null,"Unwind of discount (start year discount curve)",null,{"$f":"Import!M43061","v":0},null,{"$f":"Import!O43061","v":0}]
[null,"Net losses and loss expenses paid or payable related to prior years",null,{"$f":"Import!M43062","v":0},null,{"$f":"Import!O43062","v":0}]
[null,"Net losses incurred and net loss expenses incurred related to prior years",null,{"$f":"Import!M43063","v":0},null,{"$f":"Import!O43063","v":0}]
[null,"Undiscounted net best estimate loss and loss expense provisions at end of year related to prior years.",null,{"$f":"SUM(D10:D14)","v":0},null,{"$f":"SUM(F10:F14)","v":0}]
[]
[null,"Net losses incurred and net loss expenses incurred related to current year",null,{"$f":"Import!M43065","v":0},null,{"$f":"Import!O43065","v":0}]
[null,"Net losses and loss expenses paid or payable related to current year",null,{"$f":"Import!M43066","v":0},null,{"$f":"Import!O43066","v":0}]
[null,"Foreign exchange and other adjustments",null,{"$f":"Import!M43067","v":0},null,{"$f":"Import!O43067","v":0}]
[null,"Undiscounted net best estimate loss and loss expense provisions at end of year related to current year.",null,{"$f":"SUM(D17:D19)","v":0},null,{"$f":"SUM(F17:F19)","v":0}]
[]
[null,"Impact of change in discount curve",null,{"$f":"Import!M43069","v":0},null,{"$f":"Import!O43069","v":0}]
[]
[null,"Net best estimate loss and loss expense provisions at end of year",null,{"$f":"D15+D20+D22","v":0},null,{"$f":"F15+F20+F22","v":0}]

{"sheet":"Sch XI(b)(iv)","index":86,"n_rows":24,"n_cols":6,"rows_kept":24,"cut":false,"hidden":true,"merged":[[0,1,0,4]]}
[null,"SCHEDULE OF RECONCILIATION OF NET LOSS RESERVES BY LINES OF BUSINESS \n(LINE 4 - CASUALTY)",null,null,null,{"$f":"HYPERLINK(\"#'Index'!A1\",\"Return to Index\")","v":"Return to Index"}]
[null,{"$f":"'Company Information'!C7","v":"Enter Company Name"}]
[null,{"$f":" TEXT('Company Information'!C3,\"d mmmm yyyy\")","v":"31 December 2023"},null,null,null,"SCHEDULE XI(b)(iv) (EBS)"]
[null,{"$f":"\"expressed in\"& IF(1000>1,\" ['\"&MID(1000,2,LEN(1000))&\"s]\",\"\")","v":"expressed in ['000s]"},{"$f":"'Form 1EBS'!$C$4","v":"United States Dollars"}]
[]
[]
[]
[null,null,null,{"$f":"'Sch XI(b)(i)'!D8","v":"2023-12-31"},null,{"$f":"'Sch XI(b)(i)'!F8","v":"2022-12-31"}]
[]
[null,"Net best estimate loss and loss expense provisions at start of year",null,{"$f":"Import!M43071","v":0},null,{"$f":"Import!O43071","v":0}]
[]
[null,"Unwind of discount (start year discount curve)",null,{"$f":"Import!M43072","v":0},null,{"$f":"Import!O43072","v":0}]
[null,"Net losses and loss expenses paid or payable related to prior years",null,{"$f":"Import!M43073","v":0},null,{"$f":"Import!O43073","v":0}]
[null,"Net losses incurred and net loss expenses incurred related to prior years",null,{"$f":"Import!M43074","v":0},null,{"$f":"Import!O43074","v":0}]
[null,"Undiscounted net best estimate loss and loss expense provisions at end of year related to prior years.",null,{"$f":"SUM(D10:D14)","v":0},null,{"$f":"SUM(F10:F14)","v":0}]
[]
[null,"Net losses incurred and net loss expenses incurred related to current year",null,{"$f":"Import!M43076","v":0},null,{"$f":"Import!O43076","v":0}]
[null,"Net losses and loss expenses paid or payable related to current year",null,{"$f":"Import!M43077","v":0},null,{"$f":"Import!O43077","v":0}]
[null,"Foreign exchange and other adjustments",null,{"$f":"Import!M43078","v":0},null,{"$f":"Import!O43078","v":0}]
[null,"Undiscounted net best estimate loss and loss expense provisions at end of year related to current year.",null,{"$f":"SUM(D17:D19)","v":0},null,{"$f":"SUM(F17:F19)","v":0}]
[]
[null,"Impact of change in discount curve",null,{"$f":"Import!M43080","v":0},null,{"$f":"Import!O43080","v":0}]
[]
[null,"Net best estimate loss and loss expense provisions at end of year",null,{"$f":"D15+D20+D22","v":0},null,{"$f":"F15+F20+F22","v":0}]

{"sheet":"Sch XI(b)(v)","index":87,"n_rows":24,"n_cols":6,"rows_kept":24,"cut":false,"hidden":true,"merged":[[0,1,0,4]]}
[null,"SCHEDULE OF RECONCILIATION OF NET LOSS RESERVES BY LINES OF BUSINESS \n(LINE 5 - CASUALTY NON-PROPORTIONAL)",null,null,null,{"$f":"HYPERLINK(\"#'Index'!A1\",\"Return to Index\")","v":"Return to Index"}]
[null,{"$f":"'Company Information'!C7","v":"Enter Company Name"}]
[null,{"$f":" TEXT('Company Information'!C3,\"d mmmm yyyy\")","v":"31 December 2023"},null,null,null,"SCHEDULE XI(b)(v) (EBS)"]
[null,{"$f":"\"expressed in\"& IF(1000>1,\" ['\"&MID(1000,2,LEN(1000))&\"s]\",\"\")","v":"expressed in ['000s]"},{"$f":"'Form 1EBS'!$C$4","v":"United States Dollars"}]
[]
[]
[]
[null,null,null,{"$f":"'Sch XI(b)(i)'!D8","v":"2023-12-31"},null,{"$f":"'Sch XI(b)(i)'!F8","v":"2022-12-31"}]
[]
[null,"Net best estimate loss and loss expense provisions at start of year",null,{"$f":"Import!M43082","v":0},null,{"$f":"Import!O43082","v":0}]
[]
[null,"Unwind of discount (start year discount curve)",null,{"$f":"Import!M43083","v":0},null,{"$f":"Import!O43083","v":0}]
[null,"Net losses and loss expenses paid or payable related to prior years",null,{"$f":"Import!M43084","v":0},null,{"$f":"Import!O43084","v":0}]
[null,"Net losses incurred and net loss expenses incurred related to prior years",null,{"$f":"Import!M43085","v":0},null,{"$f":"Import!O43085","v":0}]
[null,"Undiscounted net best estimate loss and loss expense provisions at end of year related to prior years.",null,{"$f":"SUM(D10:D14)","v":0},null,{"$f":"SUM(F10:F14)","v":0}]
[]
[null,"Net losses incurred and net loss expenses incurred related to current year",null,{"$f":"Import!M43087","v":0},null,{"$f":"Import!O43087","v":0}]
[null,"Net losses and loss expenses paid or payable related to current year",null,{"$f":"Import!M43088","v":0},null,{"$f":"Import!O43088","v":0}]
[null,"Foreign exchange and other adjustments",null,{"$f":"Import!M43089","v":0},null,{"$f":"Import!O43089","v":0}]
[null,"Undiscounted net best estimate loss and loss expense provisions at end of year related to current year.",null,{"$f":"SUM(D17:D19)","v":0},null,{"$f":"SUM(F17:F19)","v":0}]
[]
[null,"Impact of change in discount curve",null,{"$f":"Import!M43091","v":0},null,{"$f":"Import!O43091","v":0}]
[]
[null,"Net best estimate loss and loss expense provisions at end of year",null,{"$f":"D15+D20+D22","v":0},null,{"$f":"F15+F20+F22","v":0}]

{"sheet":"Sch XI(b)(vi)","index":88,"n_rows":24,"n_cols":6,"rows_kept":24,"cut":false,"hidden":true,"merged":[[0,1,0,4]]}
[null,"SCHEDULE OF RECONCILIATION OF NET LOSS RESERVES BY LINES OF BUSINESS \n(LINE 6 - FINANCIAL LINES)",null,null,null,{"$f":"HYPERLINK(\"#'Index'!A1\",\"Return to Index\")","v":"Return to Index"}]
[null,{"$f":"'Company Information'!C7","v":"Enter Company Name"}]
[null,{"$f":" TEXT('Company Information'!C3,\"d mmmm yyyy\")","v":"31 December 2023"},null,null,null,"SCHEDULE XI(b)(vi) (EBS)"]
[null,{"$f":"\"expressed in\"& IF(1000>1,\" ['\"&MID(1000,2,LEN(1000))&\"s]\",\"\")","v":"expressed in ['000s]"},{"$f":"'Form 1EBS'!$C$4","v":"United States Dollars"}]
[]
[]
[]
[null,null,null,{"$f":"'Sch XI(b)(i)'!D8","v":"2023-12-31"},null,{"$f":"'Sch XI(b)(i)'!F8","v":"2022-12-31"}]
[]
[null,"Net best estimate loss and loss expense provisions at start of year",null,{"$f":"Import!M43093","v":0},null,{"$f":"Import!O43093","v":0}]
[]
[null,"Unwind of discount (start year discount curve)",null,{"$f":"Import!M43094","v":0},null,{"$f":"Import!O43094","v":0}]
[null,"Net losses and loss expenses paid or payable related to prior years",null,{"$f":"Import!M43095","v":0},null,{"$f":"Import!O43095","v":0}]
[null,"Net losses incurred and net loss expenses incurred related to prior years",null,{"$f":"Import!M43096","v":0},null,{"$f":"Import!O43096","v":0}]
[null,"Undiscounted net best estimate loss and loss expense provisions at end of year related to prior years.",null,{"$f":"SUM(D10:D14)","v":0},null,{"$f":"SUM(F10:F14)","v":0}]
[]
[null,"Net losses incurred and net loss expenses incurred related to current year",null,{"$f":"Import!M43098","v":0},null,{"$f":"Import!O43098","v":0}]
[null,"Net losses and loss expenses paid or payable related to current year",null,{"$f":"Import!M43099","v":0},null,{"$f":"Import!O43099","v":0}]
[null,"Foreign exchange and other adjustments",null,{"$f":"Import!M43100","v":0},null,{"$f":"Import!O43100","v":0}]
[null,"Undiscounted net best estimate loss and loss expense provisions at end of year related to current year.",null,{"$f":"SUM(D17:D19)","v":0},null,{"$f":"SUM(F17:F19)","v":0}]
[]
[null,"Impact of change in discount curve",null,{"$f":"Import!M43102","v":0},null,{"$f":"Import!O43102","v":0}]
[]
[null,"Net best estimate loss and loss expense provisions at end of year",null,{"$f":"D15+D20+D22","v":0},null,{"$f":"F15+F20+F22","v":0}]

{"sheet":"Sch XI(b)(vii)","index":89,"n_rows":24,"n_cols":6,"rows_kept":24,"cut":false,"hidden":true,"merged":[[0,1,0,4]]}
[null,"SCHEDULE OF RECONCILIATION OF NET LOSS RESERVES BY LINES OF BUSINESS \n(LINE 7 - OTHER SPECIALTY LINES)",null,null,null,{"$f":"HYPERLINK(\"#'Index'!A1\",\"Return to Index\")","v":"Return to Index"}]
[null,{"$f":"'Company Information'!C7","v":"Enter Company Name"}]
[null,{"$f":" TEXT('Company Information'!C3,\"d mmmm yyyy\")","v":"31 December 2023"},null,null,null,"SCHEDULE XI(b)(vii) (EBS)"]
[null,{"$f":"\"expressed in\"& IF(1000>1,\" ['\"&MID(1000,2,LEN(1000))&\"s]\",\"\")","v":"expressed in ['000s]"},{"$f":"'Form 1EBS'!$C$4","v":"United States Dollars"}]
[]
[]
[]
[null,null,null,{"$f":"'Sch XI(b)(i)'!D8","v":"2023-12-31"},null,{"$f":"'Sch XI(b)(i)'!F8","v":"2022-12-31"}]
[]
[null,"Net best estimate loss and loss expense provisions at start of year",null,{"$f":"Import!M43104","v":0},null,{"$f":"Import!O43104","v":0}]
[]
[null,"Unwind of discount (start year discount curve)",null,{"$f":"Import!M43105","v":0},null,{"$f":"Import!O43105","v":0}]
[null,"Net losses and loss expenses paid or payable related to prior years",null,{"$f":"Import!M43106","v":0},null,{"$f":"Import!O43106","v":0}]
[null,"Net losses incurred and net loss expenses incurred related to prior years",null,{"$f":"Import!M43107","v":0},null,{"$f":"Import!O43107","v":0}]
[null,"Undiscounted net best estimate loss and loss expense provisions at end of year related to prior years.",null,{"$f":"SUM(D10:D14)","v":0},null,{"$f":"SUM(F10:F14)","v":0}]
[]
[null,"Net losses incurred and net loss expenses incurred related to current year",null,{"$f":"Import!M43109","v":0},null,{"$f":"Import!O43109","v":0}]
[null,"Net losses and loss expenses paid or payable related to current year",null,{"$f":"Import!M43110","v":0},null,{"$f":"Import!O43110","v":0}]
[null,"Foreign exchange and other adjustments",null,{"$f":"Import!M43111","v":0},null,{"$f":"Import!O43111","v":0}]
[null,"Undiscounted net best estimate loss and loss expense provisions at end of year related to current year.",null,{"$f":"SUM(D17:D19)","v":0},null,{"$f":"SUM(F17:F19)","v":0}]
[]
[null,"Impact of change in discount curve",null,{"$f":"Import!M43113","v":0},null,{"$f":"Import!O43113","v":0}]
[]
[null,"Net best estimate loss and loss expense provisions at end of year",null,{"$f":"D15+D20+D22","v":0},null,{"$f":"F15+F20+F22","v":0}]

{"sheet":"Sch XI(b)(viii)","index":90,"n_rows":24,"n_cols":6,"rows_kept":24,"cut":false,"hidden":true,"merged":[[0,1,0,4]]}
["  ","SCHEDULE OF RECONCILIATION OF NET LOSS RESERVES BY LINES OF BUSINESS \n(LINE 8 - STRUCTURED/FINITE LINES)",null,null,null,{"$f":"HYPERLINK(\"#'Index'!A1\",\"Return to Index\")","v":"Return to Index"}]
[null,{"$f":"'Company Information'!C7","v":"Enter Company Name"}]
[null,{"$f":" TEXT('Company Information'!C3,\"d mmmm yyyy\")","v":"31 December 2023"},null,null,null,"SCHEDULE XI(b)(viii) (EBS)"]
[null,{"$f":"\"expressed in\"& IF(1000>1,\" ['\"&MID(1000,2,LEN(1000))&\"s]\",\"\")","v":"expressed in ['000s]"},{"$f":"'Form 1EBS'!$C$4","v":"United States Dollars"}]
[]
[]
[]
[null,null,null,{"$f":"'Sch XI(b)(i)'!D8","v":"2023-12-31"},null,{"$f":"'Sch XI(b)(i)'!F8","v":"2022-12-31"}]
[]
[null,"Net best estimate loss and loss expense provisions at start of year",null,{"$f":"Import!M43115","v":0},null,{"$f":"Import!O43115","v":0}]
[]
[null,"Unwind of discount (start year discount curve)",null,{"$f":"Import!M43116","v":0},null,{"$f":"Import!O43116","v":0}]
[null,"Net losses and loss expenses paid or payable related to prior years",null,{"$f":"Import!M43117","v":0},null,{"$f":"Import!O43117","v":0}]
[null,"Net losses incurred and net loss expenses incurred related to prior years",null,{"$f":"Import!M43118","v":0},null,{"$f":"Import!O43118","v":0}]
[null,"Undiscounted net best estimate loss and loss expense provisions at end of year related to prior years.",null,{"$f":"SUM(D10:D14)","v":0},null,{"$f":"SUM(F10:F14)","v":0}]
[]
[null,"Net losses incurred and net loss expenses incurred related to current year",null,{"$f":"Import!M43120","v":0},null,{"$f":"Import!O43120","v":0}]
[null,"Net losses and loss expenses paid or payable related to current year",null,{"$f":"Import!M43122","v":0},null,{"$f":"Import!O43122","v":0}]
[null,"Foreign exchange and other adjustments",null,{"$f":"Import!M43121","v":0},null,{"$f":"Import!O43121","v":0}]
[null,"Undiscounted net best estimate loss and loss expense provisions at end of year related to current year.",null,{"$f":"SUM(D17:D19)","v":0},null,{"$f":"SUM(F17:F19)","v":0}]
[]
[null,"Impact of change in discount curve",null,{"$f":"Import!M43124","v":0},null,{"$f":"Import!O43124","v":0}]
[]
[null,"Net best estimate loss and loss expense provisions at end of year",null,{"$f":"D15+D20+D22","v":0},null,{"$f":"F15+F20+F22","v":0}]

{"sheet":"Schedule XII(a)","index":91,"n_rows":126,"n_cols":12,"rows_kept":126,"cut":false,"hidden":false,"merged":[[84,8,84,9],[59,4,59,6],[0,8,0,9],[2,1,2,3],[16,4,16,6],[38,3,38,7],[39,3,39,7],[51,2,52,7]]}
[null,"SCHEDULE OF ELIGIBLE CAPITAL",null,null,null,null,null,null,{"$f":"HYPERLINK(\"#'Index'!A1\",\"Return to Index\")","v":"Return to Index"}]
[null,{"$f":"'Company Information'!C7","v":"Enter Company Name"}]
[null,{"$f":" TEXT('Company Information'!C3,\"d mmmm yyyy\")","v":"31 December 2023"},null,null,null,null,null,null,null,"SCHEDULE XII(a) (EBS)"]
[null,{"$f":"\"expressed in\"& IF(CONFIGURATION!$B$12>1,\" ['\"&MID(CONFIGURATION!$B$12,2,LEN(CONFIGURATION!$B$12))&\"s]\",\"\")","v":"expressed in ['000s]"},null,null,{"$f":"'Form 1EBS'!$C$4","v":"United States Dollars"}]
[null,null,null,null,null,null,null,null,null," "]
[null,"Total statutory economic capital and surplus (Form 1EBS, line 40 plus applicable adjustments)",null,null,null,null,null,null,null,{"$f":"+Summary!N100","v":0}]
[null," ","Less: Encumbered assets (not securing policyholders' obligations) (Notes to Form 1EBS, STMT LINE 15) - Note 1",null,null,null,null,null,{"$f":"+'Form 1EBS'!F202","v":0}]
[null,null,"            Less: relative liability or contingent liability (Form 1EBS) for which the encumbered assets are held ",null,null,null,null,null,{"$f":"Import!M43127","v":0},{"$f":"MAX(0,I7-I8)","v":0}]
[null,null,"Subtotal:",null,null,null,null,null,null,{"$f":"J6-J8","v":0}]
[]
[null,"TIER 1 BASIC CAPITAL"]
[null," ","(a) Fully paid common shares (Form 8SFS/8ASFS, STMT LINE 1(a)(i))",null,null,null,null,null,null,{"$f":"IF('Company Information'!$C$2=\"IFRS\",'Form 8ASFS'!O12,\nIF('Form 8SFS'!O12=0,('Form 8SFS'!G11+'Form 8SFS'!K11),'Form 8SFS'!O12))","v":0}]
[null," ","(b) Contributed surplus or share premium (Form 8SFS/8ASFS, STMT LINE 1(b))",null,null,null,null,null,null,{"$f":"IF('Company Information'!$C$2=\"IFRS\",'Form 8ASFS'!O29,\nIF('Form 8SFS'!O29=0,('Form 8SFS'!G29+'Form 8SFS'!K29),'Form 8SFS'!O29))","v":0}]
[null," ","(c) Statutory economic surplus – End of Year (Form 4EBS, line 40 less Form 8SFS/8ASFS, line 1(d))",null,null,null,null,null,null,{"$f":"IF('Company Information'!$C$2=\"IFRS\",'Form 1EBS'!F167-'Form 8ASFS'!O36,\nIF(SUM('Form 1SFS'!$E$100,'Form 1SFS'!$I$100)=0,'Form 1EBS'!F167-'Form 8SFS'!O36,'Form 1EBS'!F167-'Form 8SFS'!G36))","v":0}]
[null,null,"(d) Capital adjustments",null,null,null,null,null,null,{"$f":"Import!M43129","v":0}]
[null,null,"(e) Hybrid capital instruments: Perpetual or fixed term preference shares (Form 8SFS/8ASFS, STMT LINE 1a(ii))",null,null,null,null,null,null,{"$f":"Import!M43130","v":0}]
[null,null,"(f) Other:",null,null,null,null,null,null,{"$f":"Import!M43131","v":0}]
[null,null,"(g) Less: Treasury shares (Form 8SFS/8ASFS, STMT LINE 1(a)(iii))",null,null,null,null,null,null,{"$f":"IF('Company Information'!$C$2=\"IFRS\",'Form 8ASFS'!O25,'Form 8SFS'!O25)","v":0}]
[null,null,"(h) Less: Difference between encumbered assets for policyholder obligations and policyholder obligations, calculated as follows:"]
[]
[null,null,null,null,null,null,"(A)","(B)"]
[null,null,null,null,null,null,"Policyholder","Encumbered"]
[null,null,null,null,null,null,"obligations","(pledged) assets"]
[null,null,"(i)","Contracts where pledged assets exceed the policyholder obligations",null,null,{"$f":"Import!M43132","v":0},{"$f":"Import!M43137","v":0}]
[null,null,"(ii)","Contracts where pledged assets are equal to the policyholder obligations",null,null,{"$f":"Import!M43133","v":0},{"$f":"Import!M43138","v":0}]
[null,null,"(iii)","Contracts where pledged assets are less than the policyholder obligations",null,null,{"$f":"Import!M43134","v":0},{"$f":"Import!M43139","v":0}]
[null,null,"(iv)","Contracts where policyholder obligations are not collateralized",null,null,{"$f":"Import!M43135","v":0}]
[null,null,"(v)","Total",null,null,{"$f":"SUM(G24:G27)","v":0},{"$f":"SUM(H24:H27)","v":0}]
[]
[null,null,null,"Form 1EBS Lines 16(a), and 17(a) for policyholder obligations",null,null,null,{"$f":"'Form 1EBS'!F98+'Form 1EBS'!F108","v":0}]
[]
[null,null,null,"Difference",null,null,null,{"$f":"H30-G28","v":0}]
[]
[null,null,null,"Notes to Form 1EBS Line 15 encumbered assets for policyholder obligations",null,null,null,{"$f":"'Form 1EBS'!F193","v":0}]
[]
[null,null,null,"Difference",null,null,null,{"$f":"H34-H28","v":0}]
[]
[null,null,"(vi)","Excess encumbered assets i.e. Contracts where pledged assets exceed the policyholder obligations ((B)(i)-(A)(i))",null,null,null,null,{"$f":"H24-G24","v":0},null,null,{"$f":"H24-G24","v":0}]
[null,null,"(vii)","Capital requirement applicable to the encumbered assets under (i) above (equal to the contribution of the pledged assets to the ECR)",null,null,null,null,{"$f":"Import!M43141","v":0},null,null,{"$f":"I39*J88/J89","v":0}]
[null,null,"(viii)","Capital requirement applicable to the policyholder obligations under (i) above (equal to the contribution of the policyholder obligations to the ECR)",null,null,null,null,{"$f":"Import!M43142","v":0},null,null,{"$f":"I40*J88/J89","v":0}]
[null,null,"(ix)"," Excess encumbered assets transferrable to Tier 2 ((vi) - (vii) - (viii))",null,null,null,null,{"$f":"MAX(0,(I38-I39-I40))","v":0},null,null,{"$f":"MAX(0,(L38-L39-L40))","v":0}]
[]
[null,null,"(x)","Policyholder obligations that are fully collateralized ((A)(i) + (A)(ii) + (B)(iii))",null,null,null,null,{"$f":"G24+G25+H26","v":0},null,null,{"$f":"G24+G25+H26","v":0}]
[null,null,"(xi)","Total Policyholder obligations ((A)(v))",null,null,null,null,{"$f":"G28","v":0},null,null,{"$f":"G28","v":0}]
[]
[null,null,"(xii)","Proportion of policyholder obligations that are NOT collateralized (1-(x)/(xi))",null,null,null,null,{"$f":"IF(I44=0,0,1-I43/I44)","v":0},null,null,{"$f":"IF(L44=0,0,1-L43/L44)","v":0}]
[]
[null,null,"(xiii)","Excess encumbered assets transferred to Tier 2 ((ix) x (xii))",null,null,null,null,null,{"$f":"(I41*I46)+'Schedule IX(a)'!G89","v":0},null,{"$f":"L46*L41","v":0}]
[]
[null,null,"(i) Encumbered assets not securing policyholder obligations (Notes to Form 1EBS, STMT LINE 15)"]
[null,null,"    Less: relative liability or contingent liability (Form 1EBS) for which the encumbered assets are held ",null,null,null,null,null,null,{"$f":"J8","v":0}]
[null,null,"(j) Less: Restricted assets in excess of capital requirements, reported in CISSA, to the extent that these amounts are not included in the encumbered assets both for policyholder obligations and not for securing policyholder obligations"]
[null,null,null,null,null,null,null,null,null,{"$f":"Import!M43143","v":0}]
[null,"TIER 1 ANCILLARY CAPITAL"]
[null,null,"Perpetual or fixed term subordinated debt (Form 8, STMT LINE 1(c) (i))",null,null,null,null,null,null,{"$f":"Import!M43144","v":0}]
[null,"TOTAL TIER 1 AVAILABLE CAPITAL",null,null,null,null,null,null,null,{"$f":"J12+J13+J14+J15+J16+J17-J18-J48-J51-J53+J55","v":0}," ",{"$f":"J12+J13+J14+J15+J16+J17-J18-L48-J51-J53+J55","v":0}]
[]
[null,"TIER 2 BASIC CAPITAL"]
[null,null,"(a) Hybrid capital instruments: Perpetual or fixed term preference shares (Form 8, STMT LINE 1(a) (ii))",null,null,null,null,null,null,{"$f":"Import!M43146","v":0}]
[null,null,"(b) Other:  ",null,{"$f":"Import!M43147","v":0},null,null,null,null,{"$f":"Import!M43148","v":0}]
[null,null,"(c) Add: Difference between encumbered assets for policyholder obligations and policyholder obligations deducted from Tier 1",null,null,null,null,null,null,{"$f":"+J48","v":0},null,{"$f":"+L48","v":0}]
[null,"TIER 2 ANCILLARY CAPITAL"]
[null,null,"(a) Unpaid and callable common shares (Form 8, STMT LINE 1(c) (i))",null,null,null,null,null,null,{"$f":"Import!M43149","v":0}]
[null,null,"(b) Qualifying unpaid and callable hybrid capital (Form 8, STMT LINE 1(c) (i))",null,null,null,null,null,null,{"$f":"Import!M43150","v":0}]
[null,null,"(c) Qualifying unpaid and callable perpetual or fixed term preference shares (Form 8, STMT LINE 1(c) (i))",null,null,null,null,null,null,{"$f":"Import!M43151","v":0}]
[null,null,"(d) Perpetual or fixed term subordinated debt (Form 8, STMT LINE 1(c) (i))",null,null,null,null,null,null,{"$f":"Import!M43152","v":0}]
[null,null,"(e) Approved letters of credit (Form 8, STMT LINE 1(c) (ii))",null,null,null,null,null,null,{"$f":"Import!M43153","v":0}]
[null,null,"(f) Approved guarantees (Form 8, STMT LINE 1(c) (ii))",null,null,null,null,null,null,{"$f":"Import!M43154","v":0}]
[null,"TOTAL TIER 2 AVAILABLE CAPITAL",null,null,null,null,null,null,null,{"$f":"J59+J63+J60+J61+J64+J65+J66+J67+J68","v":0}," ",{"$f":"J59+J63+J60+L61+J64+J65+J66+J67+J68","v":0}]
[]
[null,"TIER 3 BASIC CAPITAL"]
[null,null,"Short-term hybrid capital instruments: Perpetual or fixed term preference shares (Form 8, STMT LINE 1a (ii))",null,null,null,null,null,null,{"$f":"Import!M43156","v":0}]
[null,"TIER 3 ANCILLARY CAPITAL"]
[null,null,"(a) Short-term subordinated debt (Form 8, STMT LINE 1(c) (i))",null,null,null,null,null,null,{"$f":"Import!M43157","v":0}]
[null,null,"(b) Approved letters of credit (Form 8, STMT LINE 1(c) (ii))",null,null,null,null,null,null,{"$f":"Import!M43158","v":0}]
[null,null,"(c) Approved guarantees (Form 8, STMT LINE 1(c) (ii))",null,null,null,null,null,null,{"$f":"Import!M43159","v":0}]
[null,"TOTAL TIER 3 AVAILABLE CAPITAL",null,null,null,null,null,null,null,{"$f":"J72+J74+J75+J76","v":0}," "]
[]
[null,"TOTAL ELIGIBLE CAPITAL ",null,null,null,null,null,null,null,{"$f":"J56+J69+J77","v":0}," "]
[]
[null,null,null,null,null,null,null,null,null,{"$f":"IF(J82=\"TRUE\",HYPERLINK(\"#'Schedule XII(a)'!J9\",\"TRUE\"),HYPERLINK(\"#'Schedule XII(a)'!J9\",\"FALSE\"))","v":"TRUE"}]
[null,null,null,null,null,null,null,null,null,{"$f":"IF(ROUND((J9-J79),0)=0,\"TRUE\",\"FALSE\")","v":"TRUE"}]
[null,null,null,null,null,null,null,null,null,{"$f":"ROUND(J9-J79,0)","v":0}]
[]
[null,null,null,null,null,null,null,null,{"$f":"IF(J81=\"False\",\"Reconciliation does not equal Total Eligible Capital\",\"\")","v":""}]
[]
[null,"REGULATORY CAPITAL LEVELS"]
[null,null,"Minimum Margin of Solvency",null,null,null,null,null,null,{"$f":"+Summary!N106","v":1000}]
[null,null,"Enhanced Capital Requirement",null,null,null,null,null,null,{"$f":"Summary!N112","v":1000}]
[]
[null,null,null,"Limits","MSM","ECR","Applied to MSM","Met - Y/N","Applied to ECR","Met - Y/N"]
[null,null,"Tier 1","min",0.8,{"$f":"IF('Company Information'!F11=\"Class 3A\",50%,60%)","v":0.5},{"$f":"MAX(0,(IF(I40<G24,J56,L56)))","v":0},{"$f":"IF(J56>=E92*J88,\"Yes\",\"No\")","v":"No"},{"$f":"MAX(0,J56)","v":0},{"$f":"IF(J56>=F92*J89,\"Yes\",\"No\")","v":"No"}]
[null,null,"Tier 2 ","max",0.25,{"$f":"IF('Company Information'!F11=\"Class 3A\",50%,66.67%)","v":0.5},{"$f":"MAX(0,(IF(I40<G24,MIN(J69,G92*0.25),MIN(L69,G92*0.25))))","v":0},null,{"$f":"IF('Company Information'!F11=\"Class 3A\",MIN(J69,I92),MIN(J69,I92*0.667))","v":0}]
[null,null,"Tier 3 ",null,null,0.17649999999999999,null,null,{"$f":"MAX(0,MIN(J77,((I92+I93)*0.1765),((0.667*I92-I93))))","v":0}]
[null,null,"Eligible Capital",null,null,null,{"$f":"SUM(G92:G94)","v":0},{"$f":"IF(G95>=J88,\"Yes\",\"No\")","v":"No"},{"$f":"SUM(I92:I94)","v":0},{"$f":"IF(I95>=J89,\"Yes\",\"No\")","v":"No"}]
[]
[null,null,"Note 1 - No deduction from Tier 1 would be required where an insurer can demonstrate that the assets are encumbered for its own risk management purposes."]
[]
[]
[]
[]
[]
[]
[]
[]
[]
[]
[]
[]
[]
[]
[]
[]
[]
[]
[]
[]
[]
[]
[]
[]
[]
[]
[]
[]
[null,"*¹"]

{"sheet":"Schedule XII(b)","index":92,"n_rows":219,"n_cols":7,"rows_kept":219,"cut":false,"hidden":false,"merged":[]}
["SCHEDULE OF ELIGIBLE CAPITAL - ADDITIONAL DETAILS (TABLE 12)",null,null,null,null,null,{"$f":"HYPERLINK(\"#'Index'!A1\",\"Return to Index\")","v":"Return to Index"}]
[]
[null,{"$f":"'Company Information'!C7","v":"Enter Company Name"}]
[null,"For the year ending",{"$f":" TEXT('Company Information'!C3,\"d mmmm yyyy\")","v":"31 December 2023"},null,null,null,"SCHEDULE XII(b)"]
[null,{"$f":"\"expressed in\"& IF(CONFIGURATION!$B$12>1,\" ['\"&MID(CONFIGURATION!$B$12,2,LEN(CONFIGURATION!$B$12))&\"s]\",\"\")","v":"expressed in ['000s]"},{"$f":"'Form 1EBS'!C4","v":"United States Dollars"}]
[]
[null,"1) Enter number of capital instruments ",{"$f":"Import!E43163","v":0}]
[null,"2) Enter description of each capital instrument"]
[]
[null,"Description of capital instrument","Date of issue","Maturity date (as applicable)","Date approved by the Authority","Eligible Capital value of instrument","Eligible capital tier"]
[1,{"$f":"Import!E43164","v":0},{"$f":"Import!E43184","v":"00:00:00"},{"$f":"Import!E43204","v":"00:00:00"},{"$f":"Import!E43224","v":"00:00:00"},{"$f":"Import!E43244","v":0},{"$f":"Import!E43264","v":0}]
[2,{"$f":"Import!E43165","v":0},{"$f":"Import!E43185","v":"00:00:00"},{"$f":"Import!E43205","v":"00:00:00"},{"$f":"Import!E43225","v":"00:00:00"},{"$f":"Import!E43245","v":0},{"$f":"Import!E43265","v":0}]
[3,{"$f":"Import!E43166","v":0},{"$f":"Import!E43186","v":"00:00:00"},{"$f":"Import!E43206","v":"00:00:00"},{"$f":"Import!E43226","v":"00:00:00"},{"$f":"Import!E43246","v":0},{"$f":"Import!E43266","v":0}]
[4,{"$f":"Import!E43167","v":0},{"$f":"Import!E43187","v":"00:00:00"},{"$f":"Import!E43207","v":"00:00:00"},{"$f":"Import!E43227","v":"00:00:00"},{"$f":"Import!E43247","v":0},{"$f":"Import!E43267","v":0}]
[5,{"$f":"Import!E43168","v":0},{"$f":"Import!E43188","v":"00:00:00"},{"$f":"Import!E43208","v":"00:00:00"},{"$f":"Import!E43228","v":"00:00:00"},{"$f":"Import!E43248","v":0},{"$f":"Import!E43268","v":0}]
[6,{"$f":"Import!E43169","v":0},{"$f":"Import!E43189","v":"00:00:00"},{"$f":"Import!E43209","v":"00:00:00"},{"$f":"Import!E43229","v":"00:00:00"},{"$f":"Import!E43249","v":0},{"$f":"Import!E43269","v":0}]
[7,{"$f":"Import!E43170","v":0},{"$f":"Import!E43190","v":"00:00:00"},{"$f":"Import!E43210","v":"00:00:00"},{"$f":"Import!E43230","v":"00:00:00"},{"$f":"Import!E43250","v":0},{"$f":"Import!E43270","v":0}]
[8,{"$f":"Import!E43171","v":0},{"$f":"Import!E43191","v":"00:00:00"},{"$f":"Import!E43211","v":"00:00:00"},{"$f":"Import!E43231","v":"00:00:00"},{"$f":"Import!E43251","v":0},{"$f":"Import!E43271","v":0}]
[9,{"$f":"Import!E43172","v":0},{"$f":"Import!E43192","v":"00:00:00"},{"$f":"Import!E43212","v":"00:00:00"},{"$f":"Import!E43232","v":"00:00:00"},{"$f":"Import!E43252","v":0},{"$f":"Import!E43272","v":0}]
[10,{"$f":"Import!E43173","v":0},{"$f":"Import!E43193","v":"00:00:00"},{"$f":"Import!E43213","v":"00:00:00"},{"$f":"Import!E43233","v":"00:00:00"},{"$f":"Import!E43253","v":0},{"$f":"Import!E43273","v":0}]
[11,{"$f":"Import!E43174","v":0},{"$f":"Import!E43194","v":"00:00:00"},{"$f":"Import!E43214","v":"00:00:00"},{"$f":"Import!E43234","v":"00:00:00"},{"$f":"Import!E43254","v":0},{"$f":"Import!E43274","v":0}]
[12,{"$f":"Import!E43175","v":0},{"$f":"Import!E43195","v":"00:00:00"},{"$f":"Import!E43215","v":"00:00:00"},{"$f":"Import!E43235","v":"00:00:00"},{"$f":"Import!E43255","v":0},{"$f":"Import!E43275","v":0}]
[13,{"$f":"Import!E43176","v":0},{"$f":"Import!E43196","v":"00:00:00"},{"$f":"Import!E43216","v":"00:00:00"},{"$f":"Import!E43236","v":"00:00:00"},{"$f":"Import!E43256","v":0},{"$f":"Import!E43276","v":0}]
[14,{"$f":"Import!E43177","v":0},{"$f":"Import!E43197","v":"00:00:00"},{"$f":"Import!E43217","v":"00:00:00"},{"$f":"Import!E43237","v":"00:00:00"},{"$f":"Import!E43257","v":0},{"$f":"Import!E43277","v":0}]
[15,{"$f":"Import!E43178","v":0},{"$f":"Import!E43198","v":"00:00:00"},{"$f":"Import!E43218","v":"00:00:00"},{"$f":"Import!E43238","v":"00:00:00"},{"$f":"Import!E43258","v":0},{"$f":"Import!E43278","v":0}]
[16,{"$f":"Import!E43179","v":0},{"$f":"Import!E43199","v":"00:00:00"},{"$f":"Import!E43219","v":"00:00:00"},{"$f":"Import!E43239","v":"00:00:00"},{"$f":"Import!E43259","v":0},{"$f":"Import!E43279","v":0}]
[17,{"$f":"Import!E43180","v":0},{"$f":"Import!E43200","v":"00:00:00"},{"$f":"Import!E43220","v":"00:00:00"},{"$f":"Import!E43240","v":"00:00:00"},{"$f":"Import!E43260","v":0},{"$f":"Import!E43280","v":0}]
[18,{"$f":"Import!E43181","v":0},{"$f":"Import!E43201","v":"00:00:00"},{"$f":"Import!E43221","v":"00:00:00"},{"$f":"Import!E43241","v":"00:00:00"},{"$f":"Import!E43261","v":0},{"$f":"Import!E43281","v":0}]
[19,{"$f":"Import!E43182","v":0},{"$f":"Import!E43202","v":"00:00:00"},{"$f":"Import!E43222","v":"00:00:00"},{"$f":"Import!E43242","v":"00:00:00"},{"$f":"Import!E43262","v":0},{"$f":"Import!E43282","v":0}]
[20,{"$f":"Import!E43183","v":0},{"$f":"Import!E43203","v":"00:00:00"},{"$f":"Import!E43223","v":"00:00:00"},{"$f":"Import!E43243","v":"00:00:00"},{"$f":"Import!E43263","v":0},{"$f":"Import!E43283","v":0}]
[21]
[22]
[23]
[24]
[25]
[26]
[27]
[28]
[29]
[30]
[31]
[32]
[33]
[34]
[35]
[36]
[37]
[38]
[39]
[40]
[41]
[42]
[43]
[44]
[45]
[46]
[47]
[48]
[49]
[50]
[51]
[52]
[53]
[54]
[55]
[56]
[57]
[58]
[59]
[60]
[61]
[62]
[63]
[64]
[65]
[66]
[67]
[68]
[69]
[70]
[71]
[72]
[73]
[74]
[75]
[76]
[77]
[78]
[79]
[80]
[81]
[82]
[83]
[84]
[85]
[86]
[87]
[88]
[89]
[90]
[91]
[92]
[93]
[94]
[95]
[96]
[97]
[98]
[99]
[100]
[101]
[102]
[103]
[104]
[105]
[106]
[107]
[108]
[109]
[110]
[111]
[112]
[113]
[114]
[115]
[116]
[117]
[118]
[119]
[120]
[121]
[122]
[123]
[124]
[125]
[126]
[127]
[128]
[129]
[130]
[131]
[132]
[133]
[134]
[135]
[136]
[137]
[138]
[139]
[140]
[141]
[142]
[143]
[144]
[145]
[146]
[147]
[148]
[149]
[150]
[151]
[152]
[153]
[154]
[155]
[156]
[157]
[158]
[159]
[160]
[161]
[162]
[163]
[164]
[165]
[166]
[167]
[168]
[169]
[170]
[171]
[172]
[173]
[174]
[175]
[176]
[177]
[178]
[179]
[180]
[181]
[182]
[183]
[184]
[185]
[186]
[187]
[188]
[189]
[190]
[191]
[192]
[193]
[194]
[195]
[196]
[197]
[198]
[199]
[200]
[null,"Total Preferred Shares, Treasury Shares and Other Fixed Capital",null,null,null,{"$f":"SUM(F11:F210)","v":0}]
[]
[null,null,null,null,null,{"$f":"IF('Company Information'!$C$2=\"IFRS\",'Form 8ASFS'!O17-'Form 8ASFS'!O25+'Form 8ASFS'!O34,\n'Form 8SFS'!O17-'Form 8SFS'!O25+'Form 8SFS'!O34)","v":0}]
[]
[null,null,null,null,null,{"$f":"IF(F216=\"TRUE\",HYPERLINK(\"#'Form 8SFS'!O17:O34\",\"TRUE\"),HYPERLINK(\"#'Form 8SFS'!O17:O34\",\"FALSE\"))","v":"TRUE"}]
[null,null,null,null,null,{"$f":"IF(ROUND((F211-F213),0)=0,\"TRUE\",\"FALSE\")","v":"TRUE"}]
[null,null,null,null,null,{"$f":"ROUND((F213-F211),0)","v":0}]
[]
[null,null,null,null,null,{"$f":"IF(F215=\"False\",\"Does not equal Form 8SFS Lines 1(a)(ii), 1(a)(iii) & 1(c)(iii)\",\"\")","v":""}]

{"sheet":"Schedule XVI","index":93,"n_rows":211,"n_cols":17,"rows_kept":211,"cut":false,"hidden":false,"merged":[[3,2,3,3]]}
["SCHEDULE OF REGULATED NON-INSURANCE FINANCIAL OPERATING ENTITIES",null,null,null,null,null,null,null,null,null,null,null,{"$f":"HYPERLINK(\"#'Index'!A1\",\"Return to Index\")","v":"Return to Index"}]
[]
[null,{"$f":"'Company Information'!C7","v":"Enter Company Name"}]
[null,"For the year ending",{"$f":" TEXT('Company Information'!C3,\"d mmmm yyyy\")","v":"31 December 2023"},null,null,null,null,null,null,null,null,null,"SCHEDULE XVI"]
[null,{"$f":"\"expressed in\"& IF(CONFIGURATION!$B$12>1,\" ['\"&MID(CONFIGURATION!$B$12,2,LEN(CONFIGURATION!$B$12))&\"s]\",\"\")","v":"expressed in ['000s]"},{"$f":"'Form 1EBS'!C4","v":"United States Dollars"},null,null,null,null,null,null,null,null,null,null,null,"Select","Select","Select"]
[null,null,null,null,null,null,null,null,null,null,null,null,null,null,"Energy","Holding Entity","Significant Influence"]
[null," Enter Number of Regulated Non-Insurance Entities",{"$f":"Import!I43285","v":0},null,null,null,null,null,null,null,null,null,null,null,"Materials","Operating Entity","Control"]
[null," Enter information for each entity",null,null,null,null,null,null,null,null,null,null,null,null,"Industrial","Branch"]
[null,null,null,null,null,null,null,null,null,null,null,null,null,null,"Consumer Discretionary"]
[null,"Entity name","Jurisdiction","Sector Classification (Select from drop-down list)","Strategic Purpose","Entity Type (Select from drop-down list)","Products & Services Offered","Participation (Select from drop-down list)","Percent of Participating Interest","Assets","Investment Amount (equity method)","Regulatory Capital Requirement for Regulated Entities (RCR) (100%)","Applicable Share of the RCR",null,"Consumer Staples"]
[1,{"$f":"Import!I43286","v":0},{"$f":"+Import!I43301","v":0},{"$f":"Import!I43316","v":"Select"},{"$f":"Import!I43331","v":0},{"$f":"Import!I43346","v":"Select"},{"$f":"Import!I43361","v":0},{"$f":"Import!I43376","v":"Select"},{"$f":"Import!I43391","v":0},{"$f":"Import!I43406","v":0},{"$f":"Import!I43422","v":0},{"$f":"Import!I43438","v":0},{"$f":"MAX(0,L11*I11)","v":0},null,"Healthcare"]
[2,{"$f":"Import!I43287","v":0},{"$f":"+Import!I43302","v":0},{"$f":"Import!I43317","v":"Select"},{"$f":"Import!I43332","v":0},{"$f":"Import!I43347","v":"Select"},{"$f":"Import!I43362","v":0},{"$f":"Import!I43377","v":"Select"},{"$f":"Import!I43392","v":0},{"$f":"Import!I43407","v":0},{"$f":"Import!I43423","v":0},{"$f":"Import!I43439","v":0},{"$f":"MAX(0,L12*I12)","v":0},null,"Financial"]
[3,{"$f":"Import!I43288","v":0},{"$f":"+Import!I43303","v":0},{"$f":"Import!I43318","v":"Select"},{"$f":"Import!I43333","v":0},{"$f":"Import!I43348","v":"Select"},{"$f":"Import!I43363","v":0},{"$f":"Import!I43378","v":"Select"},{"$f":"Import!I43393","v":0},{"$f":"Import!I43408","v":0},{"$f":"Import!I43424","v":0},{"$f":"Import!I43440","v":0},0]
[4,{"$f":"Import!I43289","v":0},{"$f":"+Import!I43304","v":0},{"$f":"Import!I43319","v":"Select"},{"$f":"Import!I43334","v":0},{"$f":"Import!I43349","v":"Select"},{"$f":"Import!I43364","v":0},{"$f":"Import!I43379","v":"Select"},{"$f":"Import!I43394","v":0},{"$f":"Import!I43409","v":0},{"$f":"Import!I43425","v":0},{"$f":"Import!I43441","v":0},0]
[5,{"$f":"Import!I43290","v":0},{"$f":"+Import!I43305","v":0},{"$f":"Import!I43320","v":"Select"},{"$f":"Import!I43335","v":0},{"$f":"Import!I43350","v":"Select"},{"$f":"Import!I43365","v":0},{"$f":"Import!I43380","v":"Select"},{"$f":"Import!I43395","v":0},{"$f":"Import!I43410","v":0},{"$f":"Import!I43426","v":0},{"$f":"Import!I43442","v":0},0]
[6,{"$f":"Import!I43291","v":0},{"$f":"+Import!I43306","v":0},{"$f":"Import!I43321","v":"Select"},{"$f":"Import!I43336","v":0},{"$f":"Import!I43351","v":"Select"},{"$f":"Import!I43366","v":0},{"$f":"Import!I43381","v":"Select"},{"$f":"Import!I43396","v":0},{"$f":"Import!I43411","v":0},{"$f":"Import!I43427","v":0},{"$f":"Import!I43443","v":0},0]
[7,{"$f":"Import!I43292","v":0},{"$f":"+Import!I43307","v":0},{"$f":"Import!I43322","v":"Select"},{"$f":"Import!I43337","v":0},{"$f":"Import!I43352","v":"Select"},{"$f":"Import!I43367","v":0},{"$f":"Import!I43382","v":"Select"},{"$f":"Import!I43397","v":0},{"$f":"Import!I43412","v":0},{"$f":"Import!I43428","v":0},{"$f":"Import!I43444","v":0},0]
[8,{"$f":"Import!I43293","v":0},{"$f":"+Import!I43308","v":0},{"$f":"Import!I43323","v":"Select"},{"$f":"Import!I43338","v":0},{"$f":"Import!I43353","v":"Select"},{"$f":"Import!I43368","v":0},{"$f":"Import!I43383","v":"Select"},{"$f":"Import!I43398","v":0},{"$f":"Import!I43413","v":0},{"$f":"Import!I43429","v":0},{"$f":"Import!I43445","v":0},0]
[9,{"$f":"Import!I43294","v":0},{"$f":"+Import!I43309","v":0},{"$f":"Import!I43324","v":"Select"},{"$f":"Import!I43339","v":0},{"$f":"Import!I43354","v":"Select"},{"$f":"Import!I43369","v":0},{"$f":"Import!I43384","v":"Select"},{"$f":"Import!I43399","v":0},{"$f":"Import!I43414","v":0},{"$f":"Import!I43430","v":0},{"$f":"Import!I43446","v":0},0]
[10,{"$f":"Import!I43295","v":0},{"$f":"+Import!I43310","v":0},{"$f":"Import!I43325","v":"Select"},{"$f":"Import!I43340","v":0},{"$f":"Import!I43355","v":"Select"},{"$f":"Import!I43370","v":0},{"$f":"Import!I43385","v":"Select"},{"$f":"Import!I43400","v":0},{"$f":"Import!I43415","v":0},{"$f":"Import!I43431","v":0},{"$f":"Import!I43447","v":0},0]
[11,{"$f":"Import!I43296","v":0},{"$f":"+Import!I43311","v":0},{"$f":"Import!I43326","v":"Select"},{"$f":"Import!I43341","v":0},{"$f":"Import!I43356","v":"Select"},{"$f":"Import!I43371","v":0},{"$f":"Import!I43386","v":"Select"},{"$f":"Import!I43401","v":0},{"$f":"Import!I43416","v":0},{"$f":"Import!I43432","v":0},{"$f":"Import!I43448","v":0},0]
[12,{"$f":"Import!I43297","v":0},{"$f":"+Import!I43312","v":0},{"$f":"Import!I43327","v":"Select"},{"$f":"Import!I43342","v":0},{"$f":"Import!I43357","v":"Select"},{"$f":"Import!I43372","v":0},{"$f":"Import!I43387","v":"Select"},{"$f":"Import!I43402","v":0},{"$f":"Import!I43417","v":0},{"$f":"Import!I43433","v":0},{"$f":"Import!I43449","v":0},0]
[13,{"$f":"Import!I43298","v":0},{"$f":"+Import!I43313","v":0},{"$f":"Import!I43328","v":"Select"},{"$f":"Import!I43343","v":0},{"$f":"Import!I43358","v":"Select"},{"$f":"Import!I43373","v":0},{"$f":"Import!I43388","v":"Select"},{"$f":"Import!I43403","v":0},{"$f":"Import!I43418","v":0},{"$f":"Import!I43434","v":0},{"$f":"Import!I43450","v":0},0]
[14,{"$f":"Import!I43299","v":0},{"$f":"+Import!I43314","v":0},{"$f":"Import!I43329","v":"Select"},{"$f":"Import!I43344","v":0},{"$f":"Import!I43359","v":"Select"},{"$f":"Import!I43374","v":0},{"$f":"Import!I43389","v":"Select"},{"$f":"Import!I43404","v":0},{"$f":"Import!I43419","v":0},{"$f":"Import!I43435","v":0},{"$f":"Import!I43451","v":0},0]
[15,{"$f":"Import!I43300","v":0},{"$f":"+Import!I43315","v":0},{"$f":"Import!I43330","v":"Select"},{"$f":"Import!I43345","v":0},{"$f":"Import!I43360","v":"Select"},{"$f":"Import!I43375","v":0},{"$f":"Import!I43390","v":"Select"},{"$f":"Import!I43405","v":0},{"$f":"Import!I43420","v":0},{"$f":"Import!I43436","v":0},{"$f":"Import!I43452","v":0},0]
[16,null,null,null,null,null,null,null,null,null,null,null,0]
[17,null,null,null,null,null,null,null,null,null,null,null,0]
[18,null,null,null,null,null,null,null,null,null,null,null,0]
[19,null,null,null,null,null,null,null,null,null,null,null,0]
[20,null,null,null,null,null,null,null,null,null,null,null,0]
[21,null,null,null,null,null,null,null,null,null,null,null,0]
[22,null,null,null,null,null,null,null,null,null,null,null,0]
[23,null,null,null,null,null,null,null,null,null,null,null,0]
[24,null,null,null,null,null,null,null,null,null,null,null,0]
[25,null,null,null,null,null,null,null,null,null,null,null,0]
[26,null,null,null,null,null,null,null,null,null,null,null,0]
[27,null,null,null,null,null,null,null,null,null,null,null,0]
[28,null,null,null,null,null,null,null,null,null,null,null,0]
[29,null,null,null,null,null,null,null,null,null,null,null,0]
[30,null,null,null,null,null,null,null,null,null,null,null,0]
[31,null,null,null,null,null,null,null,null,null,null,null,0]
[32,null,null,null,null,null,null,null,null,null,null,null,0]
[33,null,null,null,null,null,null,null,null,null,null,null,0]
[34,null,null,null,null,null,null,null,null,null,null,null,0]
[35,null,null,null,null,null,null,null,null,null,null,null,0]
[36,null,null,null,null,null,null,null,null,null,null,null,0]
[37,null,null,null,null,null,null,null,null,null,null,null,0]
[38,null,null,null,null,null,null,null,null,null,null,null,0]
[39,null,null,null,null,null,null,null,null,null,null,null,0]
[40,null,null,null,null,null,null,null,null,null,null,null,0]
[41,null,null,null,null,null,null,null,null,null,null,null,0]
[42,null,null,null,null,null,null,null,null,null,null,null,0]
[43,null,null,null,null,null,null,null,null,null,null,null,0]
[44,null,null,null,null,null,null,null,null,null,null,null,0]
[45,null,null,null,null,null,null,null,null,null,null,null,0]
[46,null,null,null,null,null,null,null,null,null,null,null,0]
[47,null,null,null,null,null,null,null,null,null,null,null,0]
[48,null,null,null,null,null,null,null,null,null,null,null,0]
[49,null,null,null,null,null,null,null,null,null,null,null,0]
[50,null,null,null,null,null,null,null,null,null,null,null,0]
[51,null,null,null,null,null,null,null,null,null,null,null,0]
[52,null,null,null,null,null,null,null,null,null,null,null,0]
[53,null,null,null,null,null,null,null,null,null,null,null,0]
[54,null,null,null,null,null,null,null,null,null,null,null,0]
[55,null,null,null,null,null,null,null,null,null,null,null,0]
[56,null,null,null,null,null,null,null,null,null,null,null,0]
[57,null,null,null,null,null,null,null,null,null,null,null,0]
[58,null,null,null,null,null,null,null,null,null,null,null,0]
[59,null,null,null,null,null,null,null,null,null,null,null,0]
[60,null,null,null,null,null,null,null,null,null,null,null,0]
[61,null,null,null,null,null,null,null,null,null,null,null,0]
[62,null,null,null,null,null,null,null,null,null,null,null,0]
[63,null,null,null,null,null,null,null,null,null,null,null,0]
[64,null,null,null,null,null,null,null,null,null,null,null,0]
[65,null,null,null,null,null,null,null,null,null,null,null,0]
[66,null,null,null,null,null,null,null,null,null,null,null,{"$f":"MAX(0,L76*I76)","v":0}]
[67,null,null,null,null,null,null,null,null,null,null,null,0]
[68,null,null,null,null,null,null,null,null,null,null,null,0]
[69,null,null,null,null,null,null,null,null,null,null,null,0]
[70,null,null,null,null,null,null,null,null,null,null,null,0]
[71,null,null,null,null,null,null,null,null,null,null,null,0]
[72,null,null,null,null,null,null,null,null,null,null,null,0]
[73,null,null,null,null,null,null,null,null,null,null,null,0]
[74,null,null,null,null,null,null,null,null,null,null,null,0]
[75,null,null,null,null,null,null,null,null,null,null,null,0]
[76,null,null,null,null,null,null,null,null,null,null,null,0]
[77,null,null,null,null,null,null,null,null,null,null,null,0]
[78,null,null,null,null,null,null,null,null,null,null,null,0]
[79,null,null,null,null,null,null,null,null,null,null,null,0]
[80,null,null,null,null,null,null,null,null,null,null,null,0]
[81,null,null,null,null,null,null,null,null,null,null,null,0]
[82,null,null,null,null,null,null,null,null,null,null,null,0]
[83,null,null,null,null,null,null,null,null,null,null,null,0]
[84,null,null,null,null,null,null,null,null,null,null,null,0]
[85,null,null,null,null,null,null,null,null,null,null,null,0]
[86,null,null,null,null,null,null,null,null,null,null,null,0]
[87,null,null,null,null,null,null,null,null,null,null,null,0]
[88,null,null,null,null,null,null,null,null,null,null,null,0]
[89,null,null,null,null,null,null,null,null,null,null,null,0]
[90,null,null,null,null,null,null,null,null,null,null,null,0]
[91,null,null,null,null,null,null,null,null,null,null,null,0]
[92,null,null,null,null,null,null,null,null,null,null,null,0]
[93,null,null,null,null,null,null,null,null,null,null,null,0]
[94,null,null,null,null,null,null,null,null,null,null,null,0]
[95,null,null,null,null,null,null,null,null,null,null,null,0]
[96,null,null,null,null,null,null,null,null,null,null,null,0]
[97,null,null,null,null,null,null,null,null,null,null,null,0]
[98,null,null,null,null,null,null,null,null,null,null,null,0]
[99,null,null,null,null,null,null,null,null,null,null,null,0]
[100,null,null,null,null,null,null,null,null,null,null,null,0]
[101,null,null,null,null,null,null,null,null,null,null,null,0]
[102,null,null,null,null,null,null,null,null,null,null,null,0]
[103,null,null,null,null,null,null,null,null,null,null,null,0]
[104,null,null,null,null,null,null,null,null,null,null,null,0]
[105,null,null,null,null,null,null,null,null,null,null,null,0]
[106,null,null,null,null,null,null,null,null,null,null,null,0]
[107,null,null,null,null,null,null,null,null,null,null,null,0]
[108,null,null,null,null,null,null,null,null,null,null,null,0]
[109,null,null,null,null,null,null,null,null,null,null,null,0]
[110,null,null,null,null,null,null,null,null,null,null,null,0]
[111,null,null,null,null,null,null,null,null,null,null,null,0]
[112,null,null,null,null,null,null,null,null,null,null,null,0]
[113,null,null,null,null,null,null,null,null,null,null,null,0]
[114,null,null,null,null,null,null,null,null,null,null,null,0]
[115,null,null,null,null,null,null,null,null,null,null,null,0]
[116,null,null,null,null,null,null,null,null,null,null,null,0]
[117,null,null,null,null,null,null,null,null,null,null,null,0]
[118,null,null,null,null,null,null,null,null,null,null,null,0]
[119,null,null,null,null,null,null,null,null,null,null,null,0]
[120,null,null,null,null,null,null,null,null,null,null,null,0]
[121,null,null,null,null,null,null,null,null,null,null,null,0]
[122,null,null,null,null,null,null,null,null,null,null,null,0]
[123,null,null,null,null,null,null,null,null,null,null,null,0]
[124,null,null,null,null,null,null,null,null,null,null,null,0]
[125,null,null,null,null,null,null,null,null,null,null,null,0]
[126,null,null,null,null,null,null,null,null,null,null,null,0]
[127,null,null,null,null,null,null,null,null,null,null,null,0]
[128,null,null,null,null,null,null,null,null,null,null,null,0]
[129,null,null,null,null,null,null,null,null,null,null,null,0]
[130,null,null,null,null,null,null,null,null,null,null,null,{"$f":"MAX(0,L140*I140)","v":0}]
[131,null,null,null,null,null,null,null,null,null,null,null,0]
[132,null,null,null,null,null,null,null,null,null,null,null,0]
[133,null,null,null,null,null,null,null,null,null,null,null,0]
[134,null,null,null,null,null,null,null,null,null,null,null,0]
[135,null,null,null,null,null,null,null,null,null,null,null,0]
[136,null,null,null,null,null,null,null,null,null,null,null,0]
[137,null,null,null,null,null,null,null,null,null,null,null,0]
[138,null,null,null,null,null,null,null,null,null,null,null,0]
[139,null,null,null,null,null,null,null,null,null,null,null,0]
[140,null,null,null,null,null,null,null,null,null,null,null,0]
[141,null,null,null,null,null,null,null,null,null,null,null,0]
[142,null,null,null,null,null,null,null,null,null,null,null,0]
[143,null,null,null,null,null,null,null,null,null,null,null,0]
[144,null,null,null,null,null,null,null,null,null,null,null,0]
[145,null,null,null,null,null,null,null,null,null,null,null,0]
[146,null,null,null,null,null,null,null,null,null,null,null,0]
[147,null,null,null,null,null,null,null,null,null,null,null,0]
[148,null,null,null,null,null,null,null,null,null,null,null,0]
[149,null,null,null,null,null,null,null,null,null,null,null,0]
[150,null,null,null,null,null,null,null,null,null,null,null,0]
[151,null,null,null,null,null,null,null,null,null,null,null,0]
[152,null,null,null,null,null,null,null,null,null,null,null,0]
[153,null,null,null,null,null,null,null,null,null,null,null,0]
[154,null,null,null,null,null,null,null,null,null,null,null,0]
[155,null,null,null,null,null,null,null,null,null,null,null,0]
[156,null,null,null,null,null,null,null,null,null,null,null,0]
[157,null,null,null,null,null,null,null,null,null,null,null,0]
[158,null,null,null,null,null,null,null,null,null,null,null,0]
[159,null,null,null,null,null,null,null,null,null,null,null,0]
[160,null,null,null,null,null,null,null,null,null,null,null,0]
[161,null,null,null,null,null,null,null,null,null,null,null,0]
[162,null,null,null,null,null,null,null,null,null,null,null,0]
[163,null,null,null,null,null,null,null,null,null,null,null,0]
[164,null,null,null,null,null,null,null,null,null,null,null,0]
[165,null,null,null,null,null,null,null,null,null,null,null,0]
[166,null,null,null,null,null,null,null,null,null,null,null,0]
[167,null,null,null,null,null,null,null,null,null,null,null,0]
[168,null,null,null,null,null,null,null,null,null,null,null,0]
[169,null,null,null,null,null,null,null,null,null,null,null,0]
[170,null,null,null,null,null,null,null,null,null,null,null,0]
[171,null,null,null,null,null,null,null,null,null,null,null,0]
[172,null,null,null,null,null,null,null,null,null,null,null,0]
[173,null,null,null,null,null,null,null,null,null,null,null,0]
[174,null,null,null,null,null,null,null,null,null,null,null,0]
[175,null,null,null,null,null,null,null,null,null,null,null,0]
[176,null,null,null,null,null,null,null,null,null,null,null,0]
[177,null,null,null,null,null,null,null,null,null,null,null,0]
[178,null,null,null,null,null,null,null,null,null,null,null,0]
[179,null,null,null,null,null,null,null,null,null,null,null,0]
[180,null,null,null,null,null,null,null,null,null,null,null,0]
[181,null,null,null,null,null,null,null,null,null,null,null,0]
[182,null,null,null,null,null,null,null,null,null,null,null,0]
[183,null,null,null,null,null,null,null,null,null,null,null,0]
[184,null,null,null,null,null,null,null,null,null,null,null,0]
[185,null,null,null,null,null,null,null,null,null,null,null,0]
[186,null,null,null,null,null,null,null,null,null,null,null,0]
[187,null,null,null,null,null,null,null,null,null,null,null,0]
[188,null,null,null,null,null,null,null,null,null,null,null,0]
[189,null,null,null,null,null,null,null,null,null,null,null,0]
[190,null,null,null,null,null,null,null,null,null,null,null,0]
[191,null,null,null,null,null,null,null,null,null,null,null,0]
[192,null,null,null,null,null,null,null,null,null,null,null,0]
[193,null,null,null,null,null,null,null,null,null,null,null,0]
[194,null,null,null,null,null,null,null,null,null,null,null,{"$f":"MAX(0,L204*I204)","v":0}]
[195,null,null,null,null,null,null,null,null,null,null,null,0]
[196,null,null,null,null,null,null,null,null,null,null,null,0]
[197,null,null,null,null,null,null,null,null,null,null,null,0]
[198,null,null,null,null,null,null,null,null,null,null,null,0]
[199,null,null,null,null,null,null,null,null,null,null,null,0]
[200,null,null,null,null,null,null,null,null,null,null,null,0]
[null,null,null,null,null,null,null,null,null,{"$f":"SUM(J11:J210)","v":0},{"$f":"SUM(K11:K210)","v":0},null,{"$f":"SUM(M11:M210)","v":0}]

{"sheet":"Schedule XVII","index":94,"n_rows":219,"n_cols":14,"rows_kept":219,"cut":false,"hidden":false,"merged":[[3,2,3,3]]}
[null,"SCHEDULE OF SOLVENCY",null,null,null,null,null,null,null,{"$f":"HYPERLINK(\"#'Index'!A1\",\"Return to Index\")","v":"Return to Index"}]
[]
[null,{"$f":"'Company Information'!C7","v":"Enter Company Name"}]
[null,"For the year ending",{"$f":" TEXT('Company Information'!C3,\"d mmmm yyyy\")","v":"31 December 2023"},null,null,null,null,null,null,"SCHEDULE XVII"]
[null,{"$f":"\"expressed in\"& IF(CONFIGURATION!$B$12>1,\" ['\"&MID(CONFIGURATION!$B$12,2,LEN(CONFIGURATION!$B$12))&\"s]\",\"\")","v":"expressed in ['000s]"},{"$f":"'Form 1EBS'!C4","v":"United States Dollars"},null,null,null,null,null,null,null,null,null,"Select"]
[null,null,null,null,null,null,null,null,null,null,null,"Energy","Holding Entity","Significant Influence"]
[null,"Enter Number of Entities ",{"$f":"Import!I43470","v":0},null,null,null,null,null,null,null,null,"Materials","Operating Entity","Control"]
[null," Enter information for each entity",null,null,null,null,null,null,null,null,null,"Industrial","Branch"]
[null,"(1)","(2)","(3)","(4)","(5)","(6)","(7)","(8)","(9)",null,"Consumer Discretionary"]
[null,"Affiliate name","Jurisdiction","Entity Type","Percent of Participating Interest","Gross Premiums Written","Net Premiums Written","Total Assets ","Net Assets","Regulatory Capital Requirement (ECR Equivalent)",null,"Consumer Staples"]
[1,{"$f":"Import!I43471","v":0},{"$f":"+Import!I43501","v":0},{"$f":"Import!I43531","v":"Select"},{"$f":"Import!I43561","v":0},{"$f":"Import!I43591","v":0},{"$f":"Import!I43622","v":0},{"$f":"Import!I43653","v":0},{"$f":"Import!I43684","v":0},{"$f":"Import!I43715","v":0},null,"Healthcare"]
[2,{"$f":"Import!I43472","v":0},{"$f":"+Import!I43502","v":0},{"$f":"Import!I43532","v":"Select"},{"$f":"Import!I43562","v":0},{"$f":"Import!I43592","v":0},{"$f":"Import!I43623","v":0},{"$f":"Import!I43654","v":0},{"$f":"Import!I43685","v":0},{"$f":"Import!I43716","v":0},null,"Financial"]
[3,{"$f":"Import!I43473","v":0},{"$f":"+Import!I43503","v":0},{"$f":"Import!I43533","v":"Select"},{"$f":"Import!I43563","v":0},{"$f":"Import!I43593","v":0},{"$f":"Import!I43624","v":0},{"$f":"Import!I43655","v":0},{"$f":"Import!I43686","v":0},{"$f":"Import!I43717","v":0}]
[4,{"$f":"Import!I43474","v":0},{"$f":"+Import!I43504","v":0},{"$f":"Import!I43534","v":"Select"},{"$f":"Import!I43564","v":0},{"$f":"Import!I43594","v":0},{"$f":"Import!I43625","v":0},{"$f":"Import!I43656","v":0},{"$f":"Import!I43687","v":0},{"$f":"Import!I43718","v":0}]
[5,{"$f":"Import!I43475","v":0},{"$f":"+Import!I43505","v":0},{"$f":"Import!I43535","v":"Select"},{"$f":"Import!I43565","v":0},{"$f":"Import!I43595","v":0},{"$f":"Import!I43626","v":0},{"$f":"Import!I43657","v":0},{"$f":"Import!I43688","v":0},{"$f":"Import!I43719","v":0}]
[6,{"$f":"Import!I43476","v":0},{"$f":"+Import!I43506","v":0},{"$f":"Import!I43536","v":"Select"},{"$f":"Import!I43566","v":0},{"$f":"Import!I43596","v":0},{"$f":"Import!I43627","v":0},{"$f":"Import!I43658","v":0},{"$f":"Import!I43689","v":0},{"$f":"Import!I43720","v":0}]
[7,{"$f":"Import!I43477","v":0},{"$f":"+Import!I43507","v":0},{"$f":"Import!I43537","v":"Select"},{"$f":"Import!I43567","v":0},{"$f":"Import!I43597","v":0},{"$f":"Import!I43628","v":0},{"$f":"Import!I43659","v":0},{"$f":"Import!I43690","v":0},{"$f":"Import!I43721","v":0}]
[8,{"$f":"Import!I43478","v":0},{"$f":"+Import!I43508","v":0},{"$f":"Import!I43538","v":"Select"},{"$f":"Import!I43568","v":0},{"$f":"Import!I43598","v":0},{"$f":"Import!I43629","v":0},{"$f":"Import!I43660","v":0},{"$f":"Import!I43691","v":0},{"$f":"Import!I43722","v":0}]
[9,{"$f":"Import!I43479","v":0},{"$f":"+Import!I43509","v":0},{"$f":"Import!I43539","v":"Select"},{"$f":"Import!I43569","v":0},{"$f":"Import!I43599","v":0},{"$f":"Import!I43630","v":0},{"$f":"Import!I43661","v":0},{"$f":"Import!I43692","v":0},{"$f":"Import!I43723","v":0}]
[10,{"$f":"Import!I43480","v":0},{"$f":"+Import!I43510","v":0},{"$f":"Import!I43540","v":"Select"},{"$f":"Import!I43570","v":0},{"$f":"Import!I43600","v":0},{"$f":"Import!I43631","v":0},{"$f":"Import!I43662","v":0},{"$f":"Import!I43693","v":0},{"$f":"Import!I43724","v":0}]
[11,{"$f":"Import!I43481","v":0},{"$f":"+Import!I43511","v":0},{"$f":"Import!I43541","v":"Select"},{"$f":"Import!I43571","v":0},{"$f":"Import!I43601","v":0},{"$f":"Import!I43632","v":0},{"$f":"Import!I43663","v":0},{"$f":"Import!I43694","v":0},{"$f":"Import!I43725","v":0}]
[12,{"$f":"Import!I43482","v":0},{"$f":"+Import!I43512","v":0},{"$f":"Import!I43542","v":"Select"},{"$f":"Import!I43572","v":0},{"$f":"Import!I43602","v":0},{"$f":"Import!I43633","v":0},{"$f":"Import!I43664","v":0},{"$f":"Import!I43695","v":0},{"$f":"Import!I43726","v":0}]
[13,{"$f":"Import!I43483","v":0},{"$f":"+Import!I43513","v":0},{"$f":"Import!I43543","v":"Select"},{"$f":"Import!I43573","v":0},{"$f":"Import!I43603","v":0},{"$f":"Import!I43634","v":0},{"$f":"Import!I43665","v":0},{"$f":"Import!I43696","v":0},{"$f":"Import!I43727","v":0}]
[14,{"$f":"Import!I43484","v":0},{"$f":"+Import!I43514","v":0},{"$f":"Import!I43544","v":"Select"},{"$f":"Import!I43574","v":0},{"$f":"Import!I43604","v":0},{"$f":"Import!I43635","v":0},{"$f":"Import!I43666","v":0},{"$f":"Import!I43697","v":0},{"$f":"Import!I43728","v":0}]
[15,{"$f":"Import!I43485","v":0},{"$f":"+Import!I43515","v":0},{"$f":"Import!I43545","v":"Select"},{"$f":"Import!I43575","v":0},{"$f":"Import!I43605","v":0},{"$f":"Import!I43636","v":0},{"$f":"Import!I43667","v":0},{"$f":"Import!I43698","v":0},{"$f":"Import!I43729","v":0}]
[16,{"$f":"Import!I43486","v":0},{"$f":"+Import!I43516","v":0},{"$f":"Import!I43546","v":"Select"},{"$f":"Import!I43576","v":0},{"$f":"Import!I43606","v":0},{"$f":"Import!I43637","v":0},{"$f":"Import!I43668","v":0},{"$f":"Import!I43699","v":0},{"$f":"Import!I43730","v":0}]
[17,{"$f":"Import!I43487","v":0},{"$f":"+Import!I43517","v":0},{"$f":"Import!I43547","v":"Select"},{"$f":"Import!I43577","v":0},{"$f":"Import!I43607","v":0},{"$f":"Import!I43638","v":0},{"$f":"Import!I43669","v":0},{"$f":"Import!I43700","v":0},{"$f":"Import!I43731","v":0}]
[18,{"$f":"Import!I43488","v":0},{"$f":"+Import!I43518","v":0},{"$f":"Import!I43548","v":"Select"},{"$f":"Import!I43578","v":0},{"$f":"Import!I43608","v":0},{"$f":"Import!I43639","v":0},{"$f":"Import!I43670","v":0},{"$f":"Import!I43701","v":0},{"$f":"Import!I43732","v":0}]
[19,{"$f":"Import!I43489","v":0},{"$f":"+Import!I43519","v":0},{"$f":"Import!I43549","v":"Select"},{"$f":"Import!I43579","v":0},{"$f":"Import!I43609","v":0},{"$f":"Import!I43640","v":0},{"$f":"Import!I43671","v":0},{"$f":"Import!I43702","v":0},{"$f":"Import!I43733","v":0}]
[20,{"$f":"Import!I43490","v":0},{"$f":"+Import!I43520","v":0},{"$f":"Import!I43550","v":"Select"},{"$f":"Import!I43580","v":0},{"$f":"Import!I43610","v":0},{"$f":"Import!I43641","v":0},{"$f":"Import!I43672","v":0},{"$f":"Import!I43703","v":0},{"$f":"Import!I43734","v":0}]
[21,{"$f":"Import!I43491","v":0},{"$f":"+Import!I43521","v":0},{"$f":"Import!I43551","v":"Select"},{"$f":"Import!I43581","v":0},{"$f":"Import!I43611","v":0},{"$f":"Import!I43642","v":0},{"$f":"Import!I43673","v":0},{"$f":"Import!I43704","v":0},{"$f":"Import!I43735","v":0}]
[22,{"$f":"Import!I43492","v":0},{"$f":"+Import!I43522","v":0},{"$f":"Import!I43552","v":"Select"},{"$f":"Import!I43582","v":0},{"$f":"Import!I43612","v":0},{"$f":"Import!I43643","v":0},{"$f":"Import!I43674","v":0},{"$f":"Import!I43705","v":0},{"$f":"Import!I43736","v":0}]
[23,{"$f":"Import!I43493","v":0},{"$f":"+Import!I43523","v":0},{"$f":"Import!I43553","v":"Select"},{"$f":"Import!I43583","v":0},{"$f":"Import!I43613","v":0},{"$f":"Import!I43644","v":0},{"$f":"Import!I43675","v":0},{"$f":"Import!I43706","v":0},{"$f":"Import!I43737","v":0}]
[24,{"$f":"Import!I43494","v":0},{"$f":"+Import!I43524","v":0},{"$f":"Import!I43554","v":"Select"},{"$f":"Import!I43584","v":0},{"$f":"Import!I43614","v":0},{"$f":"Import!I43645","v":0},{"$f":"Import!I43676","v":0},{"$f":"Import!I43707","v":0},{"$f":"Import!I43738","v":0}]
[25,{"$f":"Import!I43495","v":0},{"$f":"+Import!I43525","v":0},{"$f":"Import!I43555","v":"Select"},{"$f":"Import!I43585","v":0},{"$f":"Import!I43615","v":0},{"$f":"Import!I43646","v":0},{"$f":"Import!I43677","v":0},{"$f":"Import!I43708","v":0},{"$f":"Import!I43739","v":0}]
[26,{"$f":"Import!I43496","v":0},{"$f":"+Import!I43526","v":0},{"$f":"Import!I43556","v":"Select"},{"$f":"Import!I43586","v":0},{"$f":"Import!I43616","v":0},{"$f":"Import!I43647","v":0},{"$f":"Import!I43678","v":0},{"$f":"Import!I43709","v":0},{"$f":"Import!I43740","v":0}]
[27,{"$f":"Import!I43497","v":0},{"$f":"+Import!I43527","v":0},{"$f":"Import!I43557","v":"Select"},{"$f":"Import!I43587","v":0},{"$f":"Import!I43617","v":0},{"$f":"Import!I43648","v":0},{"$f":"Import!I43679","v":0},{"$f":"Import!I43710","v":0},{"$f":"Import!I43741","v":0}]
[28,{"$f":"Import!I43498","v":0},{"$f":"+Import!I43528","v":0},{"$f":"Import!I43558","v":"Select"},{"$f":"Import!I43588","v":0},{"$f":"Import!I43618","v":0},{"$f":"Import!I43649","v":0},{"$f":"Import!I43680","v":0},{"$f":"Import!I43711","v":0},{"$f":"Import!I43742","v":0}]
[29,{"$f":"Import!I43499","v":0},{"$f":"+Import!I43529","v":0},{"$f":"Import!I43559","v":"Select"},{"$f":"Import!I43589","v":0},{"$f":"Import!I43619","v":0},{"$f":"Import!I43650","v":0},{"$f":"Import!I43681","v":0},{"$f":"Import!I43712","v":0},{"$f":"Import!I43743","v":0}]
[30,{"$f":"Import!I43500","v":0},{"$f":"+Import!I43530","v":0},{"$f":"Import!I43560","v":"Select"},{"$f":"Import!I43590","v":0},{"$f":"Import!I43620","v":0},{"$f":"Import!I43651","v":0},{"$f":"Import!I43682","v":0},{"$f":"Import!I43713","v":0},{"$f":"Import!I43744","v":0}]
[31]
[32]
[33]
[34]
[35]
[36]
[37]
[38]
[39]
[40]
[41]
[42]
[43]
[44]
[45]
[46]
[47]
[48]
[49]
[50]
[51]
[52]
[53]
[54]
[55]
[56]
[57]
[58]
[59]
[60]
[61]
[62]
[63]
[64]
[65]
[66]
[67]
[68]
[69]
[70]
[71]
[72]
[73]
[74]
[75]
[76]
[77]
[78]
[79]
[80]
[81]
[82]
[83]
[84]
[85]
[86]
[87]
[88]
[89]
[90]
[91]
[92]
[93]
[94]
[95]
[96]
[97]
[98]
[99]
[100]
[101]
[102]
[103]
[104]
[105]
[106]
[107]
[108]
[109]
[110]
[111]
[112]
[113]
[114]
[115]
[116]
[117]
[118]
[119]
[120]
[121]
[122]
[123]
[124]
[125]
[126]
[127]
[128]
[129]
[130]
[131]
[132]
[133]
[134]
[135]
[136]
[137]
[138]
[139]
[140]
[141]
[142]
[143]
[144]
[145]
[146]
[147]
[148]
[149]
[150]
[151]
[152]
[153]
[154]
[155]
[156]
[157]
[158]
[159]
[160]
[161]
[162]
[163]
[164]
[165]
[166]
[167]
[168]
[169]
[170]
[171]
[172]
[173]
[174]
[175]
[176]
[177]
[178]
[179]
[180]
[181]
[182]
[183]
[184]
[185]
[186]
[187]
[188]
[189]
[190]
[191]
[192]
[193]
[194]
[195]
[196]
[197]
[198]
[199]
[200]
[null,null,null,null,null,{"$f":"SUM(F11:F210)","v":0},{"$f":"SUM(G11:G210)","v":0},{"$f":"SUM(H11:H210)","v":0},{"$f":"SUM(I11:I210)","v":0},{"$f":"SUM(J11:J210)","v":0}]
[]
[]
[]
[null,null,null,"Select"]
[null,null,null,"Holding Entity"]
[null,null,null,"Operating Entity"]
[null,null,null,"Branch"]
[null,null,null,"Other"]

{"sheet":"Schedule XVIII","index":95,"n_rows":104,"n_cols":15,"rows_kept":104,"cut":false,"hidden":false,"merged":[[22,2,22,3],[0,2,0,10],[8,2,8,14],[13,2,13,3],[14,2,14,3],[15,2,15,3],[16,2,16,3],[17,2,17,3],[18,2,18,3],[19,2,19,3],[20,2,20,3],[21,2,21,3],[34,2,34,3],[23,2,23,3],[24,2,24,3],[25,2,25,3],[26,2,26,3],[27,2,27,3],[28,2,28,3],[29,2,29,3],[30,2,30,3],[31,2,31,3],[32,2,32,3],[33,2,33,3],[46,2,46,3],[35,2,35,3],[36,2,36,3],[37,2,37,3],[38,2,38,3],[39,2,39,3],[40,2,40,3],[41,2,41,3],[42,2,42,3],[43,2,43,3],[44,2,44,3],[45,2,45,3],[60,3,60,4],[47,2,47,3],[48,2,48,3],[49,2,49,3],[50,2,50,3],[51,2,51,3],[52,2,52,3],[53,2,53,3],[56,3,56,4],[57,3,57,4],[58,3,58,4],[59,3,59,4],[90,3,90,4],[61,3,61,4],[62,3,62,4],[63,3,63,4],[64,3,64,4],[65,3,65,4],[70,3,71,4],[83,3,84,14],[86,3,86,4],[87,3,87,4],[88,3,88,4],[89,3,89,4],[91,3,91,4],[92,3,92,4],[93,3,93,4],[94,3,94,4],[98,3,99,14]]}
[null,null,"SCHEDULE OF PARTICULARS OF CEDED REINSURANCE",null,null,null,null,null,null,null,null,null,null,null,{"$f":"HYPERLINK(\"#'Index'!A1\",\"Return to Index\")","v":"Return to Index"}]
[]
[null,null,{"$f":"+'Company Information'!C7","v":"Enter Company Name"}]
[null,null,{"$f":" TEXT('Company Information'!C3,\"d mmmm yyyy\")","v":"31 December 2023"}]
[null,null,{"$f":"+'Form 1EBS'!B4","v":"expressed in ['000s]"},null,null,null,null,null,null,null,null,null,null,null,"SCHEDULE XVIII"]
[]
[null,null,"Particulars of reinsurance balances "]
[]
[null,null,"Enter at Least the 10 Largest Reinsurance Exposures with the Remaining Reinsurance Exposures Grouped According to BSCR Ratings and/or a Single Consolidated Reinsurance Exposure"]
[]
[null,null,"Enter Number of Entities",null,{"$f":"Import!E43747","v":0}]
[]
[null,null,"Exposure by Reinsurer",null,null,null,"(A)",null,"(B)",null,"(C)",null,"(D)",null,"(E)"]
[null,null,"Name of Reinsurer",null,"BSCR Rating",null,"Reinsurance Assets\nForm 1SFS Lines 11(e), 12(c) and 17(c) \n(Include Form 1A, Line 12(c) Only to the Extent That They Are Not Already Included Under Schedule IIA)",null,"Reinsurance Payable\nForm 1SFS Lines 28, 29, 33 and 34(c) ",null,"Collateral\nNotes to Form 1SFS Line 11(e) and Line 17(c) ",null,"Qualifying Collateral\nMax(0,Min(C,(A-B)/.98))",null,"Net Qualifying Exposure\nMax (0, (A - B - D x 98%))"]
[null,1,{"$f":"Import!E43748","v":0},null,{"$f":"Import!E43778","v":"Select"},null,{"$f":"Import!E43808","v":0},null,{"$f":"Import!E43839","v":0},null,{"$f":"Import!E43870","v":0},null,{"$f":"IF(K15=0,0,MAX(0,MIN(K15,(G15-I15)/0.98)))","v":0},null,{"$f":"MAX(0,(G15-I15-M15*98%))","v":0}]
[null,2,{"$f":"Import!E43749","v":0},null,{"$f":"Import!E43779","v":"Select"},null,{"$f":"Import!E43809","v":0},null,{"$f":"Import!E43840","v":0},null,{"$f":"Import!E43871","v":0},null,{"$f":"IF(K16=0,0,MAX(0,MIN(K16,(G16-I16)/0.98)))","v":0},null,{"$f":"MAX(0,(G16-I16-M16*98%))","v":0}]
[null,3,{"$f":"Import!E43750","v":0},null,{"$f":"Import!E43780","v":"Select"},null,{"$f":"Import!E43810","v":0},null,{"$f":"Import!E43841","v":0},null,{"$f":"Import!E43872","v":0},null,0,null,{"$f":"MAX(0,(G17-I17-M17*98%))","v":0}]
[null,4,{"$f":"Import!E43751","v":0},null,{"$f":"Import!E43781","v":"Select"},null,{"$f":"Import!E43811","v":0},null,{"$f":"Import!E43842","v":0},null,{"$f":"Import!E43873","v":0},null,0,null,0]
[null,5,{"$f":"Import!E43752","v":0},null,{"$f":"Import!E43782","v":"Select"},null,{"$f":"Import!E43812","v":0},null,{"$f":"Import!E43843","v":0},null,{"$f":"Import!E43874","v":0},null,0,null,0]
[null,6,{"$f":"Import!E43753","v":0},null,{"$f":"Import!E43783","v":"Select"},null,{"$f":"Import!E43813","v":0},null,{"$f":"Import!E43844","v":0},null,{"$f":"Import!E43875","v":0},null,0,null,0]
[null,7,{"$f":"Import!E43754","v":0},null,{"$f":"Import!E43784","v":"Select"},null,{"$f":"Import!E43814","v":0},null,{"$f":"Import!E43845","v":0},null,{"$f":"Import!E43876","v":0},null,0,null,0]
[null,8,{"$f":"Import!E43755","v":0},null,{"$f":"Import!E43785","v":"Select"},null,{"$f":"Import!E43815","v":0},null,{"$f":"Import!E43846","v":0},null,{"$f":"Import!E43877","v":0},null,0,null,0]
[null,9,{"$f":"Import!E43756","v":0},null,{"$f":"Import!E43786","v":"Select"},null,{"$f":"Import!E43816","v":0},null,{"$f":"Import!E43847","v":0},null,{"$f":"Import!E43878","v":0},null,0,null,0]
[null,10,{"$f":"Import!E43757","v":0},null,{"$f":"Import!E43787","v":"Select"},null,{"$f":"Import!E43817","v":0},null,{"$f":"Import!E43848","v":0},null,{"$f":"Import!E43879","v":0},null,0,null,0]
[null,11,{"$f":"Import!E43758","v":0},null,{"$f":"Import!E43788","v":"Select"},null,{"$f":"Import!E43818","v":0},null,{"$f":"Import!E43849","v":0},null,{"$f":"Import!E43880","v":0},null,0,null,0]
[null,12,{"$f":"Import!E43759","v":0},null,{"$f":"Import!E43789","v":"Select"},null,{"$f":"Import!E43819","v":0},null,{"$f":"Import!E43850","v":0},null,{"$f":"Import!E43881","v":0},null,0,null,0]
[null,13,{"$f":"Import!E43760","v":0},null,{"$f":"Import!E43790","v":"Select"},null,{"$f":"Import!E43820","v":0},null,{"$f":"Import!E43851","v":0},null,{"$f":"Import!E43882","v":0},null,0,null,0]
[null,14,{"$f":"Import!E43761","v":0},null,{"$f":"Import!E43791","v":"Select"},null,{"$f":"Import!E43821","v":0},null,{"$f":"Import!E43852","v":0},null,{"$f":"Import!E43883","v":0},null,0,null,0]
[null,15,{"$f":"Import!E43762","v":0},null,{"$f":"Import!E43792","v":"Select"},null,{"$f":"Import!E43822","v":0},null,{"$f":"Import!E43853","v":0},null,{"$f":"Import!E43884","v":0},null,0,null,0]
[null,16,{"$f":"Import!E43763","v":0},null,{"$f":"Import!E43793","v":"Select"},null,{"$f":"Import!E43823","v":0},null,{"$f":"Import!E43854","v":0},null,{"$f":"Import!E43885","v":0},null,0,null,0]
[null,17,{"$f":"Import!E43764","v":0},null,{"$f":"Import!E43794","v":"Select"},null,{"$f":"Import!E43824","v":0},null,{"$f":"Import!E43855","v":0},null,{"$f":"Import!E43886","v":0},null,0,null,0]
[null,18,{"$f":"Import!E43765","v":0},null,{"$f":"Import!E43795","v":"Select"},null,{"$f":"Import!E43825","v":0},null,{"$f":"Import!E43856","v":0},null,{"$f":"Import!E43887","v":0},null,0,null,0]
[null,19,{"$f":"Import!E43766","v":0},null,{"$f":"Import!E43796","v":"Select"},null,{"$f":"Import!E43826","v":0},null,{"$f":"Import!E43857","v":0},null,{"$f":"Import!E43888","v":0},null,0,null,0]
[null,20,{"$f":"Import!E43767","v":0},null,{"$f":"Import!E43797","v":"Select"},null,{"$f":"Import!E43827","v":0},null,{"$f":"Import!E43858","v":0},null,{"$f":"Import!E43889","v":0},null,0,null,0]
[null,21,{"$f":"Import!E43768","v":0},null,{"$f":"Import!E43798","v":"Select"},null,{"$f":"Import!E43828","v":0},null,{"$f":"Import!E43859","v":0},null,{"$f":"Import!E43890","v":0},null,0,null,0]
[null,22,{"$f":"Import!E43769","v":0},null,{"$f":"Import!E43799","v":"Select"},null,{"$f":"Import!E43829","v":0},null,{"$f":"Import!E43860","v":0},null,{"$f":"Import!E43891","v":0},null,0,null,0]
[null,23,{"$f":"Import!E43770","v":0},null,{"$f":"Import!E43800","v":"Select"},null,{"$f":"Import!E43830","v":0},null,{"$f":"Import!E43861","v":0},null,{"$f":"Import!E43892","v":0},null,0,null,0]
[null,24,{"$f":"Import!E43771","v":0},null,{"$f":"Import!E43801","v":"Select"},null,{"$f":"Import!E43831","v":0},null,{"$f":"Import!E43862","v":0},null,{"$f":"Import!E43893","v":0},null,0,null,0]
[null,25,{"$f":"Import!E43772","v":0},null,{"$f":"Import!E43802","v":"Select"},null,{"$f":"Import!E43832","v":0},null,{"$f":"Import!E43863","v":0},null,{"$f":"Import!E43894","v":0},null,0,null,0]
[null,26,{"$f":"Import!E43773","v":0},null,{"$f":"Import!E43803","v":"Select"},null,{"$f":"Import!E43833","v":0},null,{"$f":"Import!E43864","v":0},null,{"$f":"Import!E43895","v":0},null,0,null,0]
[null,27,{"$f":"Import!E43774","v":0},null,{"$f":"Import!E43804","v":"Select"},null,{"$f":"Import!E43834","v":0},null,{"$f":"Import!E43865","v":0},null,{"$f":"Import!E43896","v":0},null,0,null,0]
[null,28,{"$f":"Import!E43775","v":0},null,{"$f":"Import!E43805","v":"Select"},null,{"$f":"Import!E43835","v":0},null,{"$f":"Import!E43866","v":0},null,{"$f":"Import!E43897","v":0},null,0,null,0]
[null,29,{"$f":"Import!E43776","v":0},null,{"$f":"Import!E43806","v":"Select"},null,{"$f":"Import!E43836","v":0},null,{"$f":"Import!E43867","v":0},null,{"$f":"Import!E43898","v":0},null,0,null,0]
[null,30,{"$f":"Import!E43777","v":0},null,{"$f":"Import!E43807","v":"Select"},null,{"$f":"Import!E43837","v":0},null,{"$f":"Import!E43868","v":0},null,{"$f":"Import!E43899","v":0},null,0,null,0]
[null,31,null,null,null,null,null,null,null,null,null,null,0,null,0]
[null,32,null,null,null,null,null,null,null,null,null,null,0,null,0]
[null,33,null,null,null,null,null,null,null,null,null,null,0,null,0]
[null,34,null,null,null,null,null,null,null,null,null,null,0,null,0]
[null,35,null,null,null,null,null,null,null,null,null,null,0,null,0]
[null,36,null,null,null,null,null,null,null,null,null,null,0,null,0]
[null,37,null,null,null,null,null,null,null,null,null,null,0,null,0]
[null,38,null,null,null,null,null,null,null,null,null,null,0,null,0]
[null,39,null,null,null,null,null,null,null,null,null,null,0,null,0]
[null,40,null,null,null,null,null,null,null,null,null,null,0,null,0]
[null,null,"Total Exposure By Reinsurer",null,null,null,{"$f":"SUM(G15:G54)","v":0},null,{"$f":"SUM(I15:I54)","v":0},null,{"$f":"SUM(K15:K54)","v":0},null,{"$f":"SUM(M15:M54)","v":0},null,{"$f":"SUM(O15:O54)","v":0}]
[]
[null,null,null,"Exposure by BSCR Rating"]
[null,null,null,"BSCR Rating 0 (Domestic Affiliates)",null,null,{"$f":"Import!E43901","v":0},null,{"$f":"Import!E43912","v":0},null,{"$f":"Import!E43923","v":0},null,{"$f":"IF(K58=0,0,MAX(0,MIN(K58,(G58-I58)/0.98)))","v":0},null,{"$f":"MAX(0,(G58-I58-M58*98%))","v":0}]
[null,null,null,"BSCR Rating 1",null,null,{"$f":"Import!E43902","v":0},null,{"$f":"Import!E43913","v":0},null,{"$f":"Import!E43924","v":0},null,0,null,0]
[null,null,null,"BSCR Rating 2",null,null,{"$f":"Import!E43903","v":0},null,{"$f":"Import!E43914","v":0},null,{"$f":"Import!E43925","v":0},null,0,null,{"$f":"MAX(0,(G60-I60-M60*98%))","v":0}]
[null,null,null,"BSCR Rating 3",null,null,{"$f":"Import!E43904","v":0},null,{"$f":"Import!E43915","v":0},null,{"$f":"Import!E43926","v":0},null,0,null,{"$f":"MAX(0,(G61-I61-M61*98%))","v":0}]
[null,null,null,"BSCR Rating 4",null,null,{"$f":"Import!E43905","v":0},null,{"$f":"Import!E43916","v":0},null,{"$f":"Import!E43927","v":0},null,0,null,0]
[null,null,null,"BSCR Rating 5",null,null,{"$f":"Import!E43906","v":0},null,{"$f":"Import!E43917","v":0},null,{"$f":"Import!E43928","v":0},null,0,null,0]
[null,null,null,"BSCR Rating 6",null,null,{"$f":"Import!E43907","v":0},null,{"$f":"Import!E43918","v":0},null,{"$f":"Import!E43929","v":0},null,0,null,0]
[null,null,null,"BSCR Rating 7",null,null,{"$f":"Import!E43908","v":0},null,{"$f":"Import!E43919","v":0},null,{"$f":"Import!E43930","v":0},null,0,null,0]
[null,null,null,"BSCR Rating 8",null,null,{"$f":"Import!E43909","v":0},null,{"$f":"Import!E43920","v":0},null,{"$f":"Import!E43931","v":0},null,0,null,{"$f":"MAX(0,(G66-I66-M66*98%))","v":0}]
[null,null,null,"Total Exposure By BSCR Rating",null,null,{"$f":"SUM(G58:G66)","v":0},null,{"$f":"SUM(I58:I66)","v":0},null,{"$f":"SUM(K58:K66)","v":0},null,{"$f":"SUM(M58:M66)","v":0},null,{"$f":"SUM(O58:O66)","v":0}]
[]
[null,null,null,"Single Consolidated Exposure",null,null,{"$f":"IF('Company Information'!$C$2=\"IFRS\",0,'Form 1SFS'!E77+'Form 1SFS'!I77+'Form 1SFS'!E79+'Form 1SFS'!I79+'Form 1SFS'!E123+'Form 1SFS'!I153-'Schedule IIA'!D74-G55-G67)","v":0},null,null,null,null,null,{"$f":"IF(K69=0,0,MAX(0,MIN(K69,(G69-I69)/0.98)))","v":0},null,{"$f":"MAX(0,(G69-I69-M69*98%))","v":0}]
[]
[null,null,null,"Total Balance Sheet Adjusted for Schedule IIA, Line 28, Column (1)"]
[null,null,null,null,null,null,{"$f":"IF('Company Information'!$C$2=\"IFRS\",0,'Form 1SFS'!E77+'Form 1SFS'!I77+'Form 1SFS'!E79+'Form 1SFS'!I79+'Form 1SFS'!E123+'Form 1SFS'!I153-'Schedule IIA'!D74)","v":0}]
[]
[null,null,null,"Total Collateral",null,null,null,null,null,null,{"$f":"IF('Company Information'!$C$2=\"IFRS\",0,'Form 1SFS'!M212+'Form 1SFS'!M214)","v":0}]
[]
[null,null,null,null,null,null,{"$f":"IF('Company Information'!$C$2=\"IFRS\",\"TRUE\",IF(ROUND((G55+G67+G69-G72),0)=0,\"TRUE\",\"FALSE\"))","v":"TRUE"},null,null,null,{"$f":"IF('Company Information'!$C$2=\"IFRS\",\"TRUE\",IF(ROUND((K55+K67+K69-K74),0)=0,\"TRUE\",\"FALSE\"))","v":"TRUE"}]
[]
[null,null,null,"Difference",null,null,{"$f":"ROUND(G72-G55-G67-G69,0)","v":0},null,null,null,{"$f":"ROUND(K74-K55-K67-K69,0)","v":0}]
[]
[null,null,null,"Total Qualifying Collateral",null,null,null,null,null,null,null,null,{"$f":"IF(K74=0,0,MAX(0,MIN(K74,(G72)/0.98)))","v":0}]
[]
[null,null,null,"Total Net Qualifying Exposure",null,null,null,null,null,null,null,null,null,null,{"$f":"O55+O67+O69","v":0}]
[]
[null,null,null,"Particulars of Reinsurance Balances by BSCR Rating"]
[]
[null,null,null,"Select",null,null,"Reinsurance Assets",null,"Reinsurance Payable",null,"Collateral",null,"Qualifying Collateral",null,"Net Qualifying Exposure"]
[null,null,null,"BSCR Rating 0 (Domestic Affiliates)",null,null,{"$f":"SUMPRODUCT(G$15:G$54,($E$15:$E$54=D87)*1)+G58","v":0},null,{"$f":"SUMPRODUCT(I$15:I$54,($E$15:$E$54=D87)*1)+I58","v":0},null,{"$f":"SUMPRODUCT(K$15:K$54,($E$15:$E$54=D87)*1)+K58","v":0},null,{"$f":"SUMPRODUCT(M$15:M$54,($E$15:$E$54=D87)*1)+M58","v":0},null,{"$f":"SUMPRODUCT(O$15:O$54,($E$15:$E$54=D87)*1)+O58","v":0}]
[null,null,null,"BSCR Rating 1",null,null,0,null,0,null,0,null,0,null,0]
[null,null,null,"BSCR Rating 2",null,null,0,null,0,null,0,null,0,null,0]
[null,null,null,"BSCR Rating 3",null,null,0,null,0,null,0,null,0,null,0]
[null,null,null,"BSCR Rating 4",null,null,0,null,0,null,0,null,0,null,0]
[null,null,null,"BSCR Rating 5",null,null,0,null,0,null,0,null,0,null,0]
[null,null,null,"BSCR Rating 6",null,null,0,null,0,null,0,null,0,null,0]
[null,null,null,"BSCR Rating 7",null,null,0,null,0,null,0,null,0,null,0]
[null,null,null,"BSCR Rating 8",null,null,{"$f":"SUMPRODUCT(G$15:G$54,($E$15:$E$54=D95)*1)+G66+G69","v":0},null,{"$f":"SUMPRODUCT(I$15:I$54,($E$15:$E$54=D95)*1)+I66+I69","v":0},null,{"$f":"SUMPRODUCT(K$15:K$54,($E$15:$E$54=D95)*1)+K66+K69","v":0},null,{"$f":"SUMPRODUCT(M$15:M$54,($E$15:$E$54=D95)*1)+M66+M69","v":0},null,{"$f":"SUMPRODUCT(O$15:O$54,($E$15:$E$54=D95)*1)+O66+O69","v":0}]
[null,null,null,"Total",null,null,{"$f":"SUM(G87:G95)","v":0},null,{"$f":"SUM(I87:I95)","v":0},null,{"$f":"SUM(K87:K95)","v":0},null,{"$f":"SUM(M87:M95)","v":0},null,{"$f":"SUM(O87:O95)","v":0}]
[]
[]
[null,null,null,"Diversification Adjustment Calculation On a Net Qualifying Exposure Basis"]
[]
[null,null,null,"Maximum Net Qualifying Exposure Balance On a Single Reinsurer Basis",null,null,null,null,null,null,null,null,null,null,{"$f":"MAX(O15:O54)","v":0}]
[null,null,null,"Total Net Qualifying Exposure",null,null,null,null,null,null,null,null,null,null,{"$f":"O82","v":0}]
[null,null,null,"Percentage",null,null,null,null,null,null,null,null,null,null,{"$f":"IF(O102=0,0,O101/O102)","v":0}]
[null,null,null,"Diversification Adjustment up to 40%",null,null,null,null,null,null,null,null,null,null,{"$f":"IF(O101=0,0,(1-O103)*40%)","v":0}]

{"sheet":"Schedule XVIII (EBS)","index":96,"n_rows":104,"n_cols":15,"rows_kept":104,"cut":false,"hidden":false,"merged":[[91,3,91,4],[92,3,92,4],[93,3,93,4],[94,3,94,4],[98,3,99,14],[58,3,58,4],[59,3,59,4],[60,3,60,4],[90,3,90,4],[61,3,61,4],[62,3,62,4],[63,3,63,4],[64,3,64,4],[65,3,65,4],[70,3,71,4],[83,3,84,14],[86,3,86,4],[87,3,87,4],[88,3,88,4],[89,3,89,4],[51,2,51,3],[52,2,52,3],[53,2,53,3],[56,3,56,4],[57,3,57,4],[46,2,46,3],[47,2,47,3],[48,2,48,3],[49,2,49,3],[50,2,50,3],[41,2,41,3],[42,2,42,3],[43,2,43,3],[44,2,44,3],[45,2,45,3],[36,2,36,3],[37,2,37,3],[38,2,38,3],[39,2,39,3],[40,2,40,3],[31,2,31,3],[32,2,32,3],[33,2,33,3],[34,2,34,3],[35,2,35,3],[26,2,26,3],[27,2,27,3],[28,2,28,3],[29,2,29,3],[30,2,30,3],[21,2,21,3],[22,2,22,3],[23,2,23,3],[24,2,24,3],[25,2,25,3],[16,2,16,3],[17,2,17,3],[18,2,18,3],[19,2,19,3],[20,2,20,3],[0,2,0,10],[8,2,8,14],[13,2,13,3],[14,2,14,3],[15,2,15,3]]}
[null,null,"SCHEDULE OF PARTICULARS OF CEDED REINSURANCE",null,null,null,null,null,null,null,null,null,null,null,{"$f":"HYPERLINK(\"#'Index'!A1\",\"Return to Index\")","v":"Return to Index"}]
[]
[null,null,{"$f":"+'Company Information'!C7","v":"Enter Company Name"}]
[null,null,{"$f":" TEXT('Company Information'!C3,\"d mmmm yyyy\")","v":"31 December 2023"}]
[null,null,{"$f":"+'Form 1EBS'!B4","v":"expressed in ['000s]"},null,null,null,null,null,null,null,null,null,null,null,"SCHEDULE XVIII (EBS)"]
[]
[null,null,"Particulars of reinsurance balances "]
[]
[null,null,"Enter at Least the 10 Largest Reinsurance Exposures with the Remaining Reinsurance Exposures Grouped According to BSCR Ratings and/or a Single Consolidated Reinsurance Exposure"]
[]
[null,null,"Enter Number of Entities",null,{"$f":"Import!M43747","v":0}]
[]
[null,null,"Exposure by Reinsurer",null,null,null,"(A)",null,"(B)",null,"(C)",null,"(D)",null,"(E)"]
[null,null,"Name of Reinsurer",null,"BSCR Rating",null,"Reinsurance Assets\nForm 1EBS Lines 11(e), 12(c) and 17(c) \n(Include Form 1EBS, Line 12(c) Only to the Extent That They Are Not Already Included Under Schedule IIA)",null,"Reinsurance Payable\nForm 1EBS Lines 28, 29, 33 and 34(c) ",null,"Collateral\nNotes to Form 1EBS Line 11(e) and Line 17(c) ",null,"Qualifying Collateral\nMax(0,Min(C,(A-B)/.98))",null,"Net Qualifying Exposure\nMax (0, (A - B - D x 98%))"]
[null,1,{"$f":"Import!M43748","v":0},null,{"$f":"Import!M43778","v":"Select"},null,{"$f":"Import!M43808","v":0},null,{"$f":"Import!M43839","v":0},null,{"$f":"Import!M43870","v":0},null,{"$f":"IF(K15=0,0,MAX(0,MIN(K15,(G15-I15)/0.98)))","v":0},null,{"$f":"MAX(0,(G15-I15-M15*98%))","v":0}]
[null,2,{"$f":"Import!M43749","v":0},null,{"$f":"Import!M43779","v":"Select"},null,{"$f":"Import!M43809","v":0},null,{"$f":"Import!M43840","v":0},null,{"$f":"Import!M43871","v":0},null,{"$f":"IF(K16=0,0,MAX(0,MIN(K16,(G16-I16)/0.98)))","v":0},null,{"$f":"MAX(0,(G16-I16-M16*98%))","v":0}]
[null,3,{"$f":"Import!M43750","v":0},null,{"$f":"Import!M43780","v":"Select"},null,{"$f":"Import!M43810","v":0},null,{"$f":"Import!M43841","v":0},null,{"$f":"Import!M43872","v":0},null,0,null,{"$f":"MAX(0,(G17-I17-M17*98%))","v":0}]
[null,4,{"$f":"Import!M43751","v":0},null,{"$f":"Import!M43781","v":"Select"},null,{"$f":"Import!M43811","v":0},null,{"$f":"Import!M43842","v":0},null,{"$f":"Import!M43873","v":0},null,0,null,0]
[null,5,{"$f":"Import!M43752","v":0},null,{"$f":"Import!M43782","v":"Select"},null,{"$f":"Import!M43812","v":0},null,{"$f":"Import!M43843","v":0},null,{"$f":"Import!M43874","v":0},null,0,null,0]
[null,6,{"$f":"Import!M43753","v":0},null,{"$f":"Import!M43783","v":"Select"},null,{"$f":"Import!M43813","v":0},null,{"$f":"Import!M43844","v":0},null,{"$f":"Import!M43875","v":0},null,0,null,0]
[null,7,{"$f":"Import!M43754","v":0},null,{"$f":"Import!M43784","v":"Select"},null,{"$f":"Import!M43814","v":0},null,{"$f":"Import!M43845","v":0},null,{"$f":"Import!M43876","v":0},null,0,null,0]
[null,8,{"$f":"Import!M43755","v":0},null,{"$f":"Import!M43785","v":"Select"},null,{"$f":"Import!M43815","v":0},null,{"$f":"Import!M43846","v":0},null,{"$f":"Import!M43877","v":0},null,0,null,0]
[null,9,{"$f":"Import!M43756","v":0},null,{"$f":"Import!M43786","v":"Select"},null,{"$f":"Import!M43816","v":0},null,{"$f":"Import!M43847","v":0},null,{"$f":"Import!M43878","v":0},null,0,null,0]
[null,10,{"$f":"Import!M43757","v":0},null,{"$f":"Import!M43787","v":"Select"},null,{"$f":"Import!M43817","v":0},null,{"$f":"Import!M43848","v":0},null,{"$f":"Import!M43879","v":0},null,0,null,0]
[null,11,{"$f":"Import!M43758","v":0},null,{"$f":"Import!M43788","v":"Select"},null,{"$f":"Import!M43818","v":0},null,{"$f":"Import!M43849","v":0},null,{"$f":"Import!M43880","v":0},null,0,null,0]
[null,12,{"$f":"Import!M43759","v":0},null,{"$f":"Import!M43789","v":"Select"},null,{"$f":"Import!M43819","v":0},null,{"$f":"Import!M43850","v":0},null,{"$f":"Import!M43881","v":0},null,0,null,0]
[null,13,{"$f":"Import!M43760","v":0},null,{"$f":"Import!M43790","v":"Select"},null,{"$f":"Import!M43820","v":0},null,{"$f":"Import!M43851","v":0},null,{"$f":"Import!M43882","v":0},null,0,null,0]
[null,14,{"$f":"Import!M43761","v":0},null,{"$f":"Import!M43791","v":"Select"},null,{"$f":"Import!M43821","v":0},null,{"$f":"Import!M43852","v":0},null,{"$f":"Import!M43883","v":0},null,0,null,0]
[null,15,{"$f":"Import!M43762","v":0},null,{"$f":"Import!M43792","v":"Select"},null,{"$f":"Import!M43822","v":0},null,{"$f":"Import!M43853","v":0},null,{"$f":"Import!M43884","v":0},null,0,null,0]
[null,16,{"$f":"Import!M43763","v":0},null,{"$f":"Import!M43793","v":"Select"},null,{"$f":"Import!M43823","v":0},null,{"$f":"Import!M43854","v":0},null,{"$f":"Import!M43885","v":0},null,0,null,0]
[null,17,{"$f":"Import!M43764","v":0},null,{"$f":"Import!M43794","v":"Select"},null,{"$f":"Import!M43824","v":0},null,{"$f":"Import!M43855","v":0},null,{"$f":"Import!M43886","v":0},null,0,null,0]
[null,18,{"$f":"Import!M43765","v":0},null,{"$f":"Import!M43795","v":"Select"},null,{"$f":"Import!M43825","v":0},null,{"$f":"Import!M43856","v":0},null,{"$f":"Import!M43887","v":0},null,0,null,0]
[null,19,{"$f":"Import!M43766","v":0},null,{"$f":"Import!M43796","v":"Select"},null,{"$f":"Import!M43826","v":0},null,{"$f":"Import!M43857","v":0},null,{"$f":"Import!M43888","v":0},null,0,null,0]
[null,20,{"$f":"Import!M43767","v":0},null,{"$f":"Import!M43797","v":"Select"},null,{"$f":"Import!M43827","v":0},null,{"$f":"Import!M43858","v":0},null,{"$f":"Import!M43889","v":0},null,0,null,0]
[null,21,{"$f":"Import!M43768","v":0},null,{"$f":"Import!M43798","v":"Select"},null,{"$f":"Import!M43828","v":0},null,{"$f":"Import!M43859","v":0},null,{"$f":"Import!M43890","v":0},null,0,null,0]
[null,22,{"$f":"Import!M43769","v":0},null,{"$f":"Import!M43799","v":"Select"},null,{"$f":"Import!M43829","v":0},null,{"$f":"Import!M43860","v":0},null,{"$f":"Import!M43891","v":0},null,0,null,0]
[null,23,{"$f":"Import!M43770","v":0},null,{"$f":"Import!M43800","v":"Select"},null,{"$f":"Import!M43830","v":0},null,{"$f":"Import!M43861","v":0},null,{"$f":"Import!M43892","v":0},null,0,null,0]
[null,24,{"$f":"Import!M43771","v":0},null,{"$f":"Import!M43801","v":"Select"},null,{"$f":"Import!M43831","v":0},null,{"$f":"Import!M43862","v":0},null,{"$f":"Import!M43893","v":0},null,0,null,0]
[null,25,{"$f":"Import!M43772","v":0},null,{"$f":"Import!M43802","v":"Select"},null,{"$f":"Import!M43832","v":0},null,{"$f":"Import!M43863","v":0},null,{"$f":"Import!M43894","v":0},null,0,null,0]
[null,26,{"$f":"Import!M43773","v":0},null,{"$f":"Import!M43803","v":"Select"},null,{"$f":"Import!M43833","v":0},null,{"$f":"Import!M43864","v":0},null,{"$f":"Import!M43895","v":0},null,0,null,0]
[null,27,{"$f":"Import!M43774","v":0},null,{"$f":"Import!M43804","v":"Select"},null,{"$f":"Import!M43834","v":0},null,{"$f":"Import!M43865","v":0},null,{"$f":"Import!M43896","v":0},null,0,null,0]
[null,28,{"$f":"Import!M43775","v":0},null,{"$f":"Import!M43805","v":"Select"},null,{"$f":"Import!M43835","v":0},null,{"$f":"Import!M43866","v":0},null,{"$f":"Import!M43897","v":0},null,0,null,0]
[null,29,{"$f":"Import!M43776","v":0},null,{"$f":"Import!M43806","v":"Select"},null,{"$f":"Import!M43836","v":0},null,{"$f":"Import!M43867","v":0},null,{"$f":"Import!M43898","v":0},null,0,null,0]
[null,30,{"$f":"Import!M43777","v":0},null,{"$f":"Import!M43807","v":"Select"},null,{"$f":"Import!M43837","v":0},null,{"$f":"Import!M43868","v":0},null,{"$f":"Import!M43899","v":0},null,0,null,0]
[null,31,null,null,null,null,null,null,null,null,null,null,0,null,0]
[null,32,null,null,null,null,null,null,null,null,null,null,0,null,0]
[null,33,null,null,null,null,null,null,null,null,null,null,0,null,0]
[null,34,null,null,null,null,null,null,null,null,null,null,0,null,0]
[null,35,null,null,null,null,null,null,null,null,null,null,0,null,0]
[null,36,null,null,null,null,null,null,null,null,null,null,0,null,0]
[null,37,null,null,null,null,null,null,null,null,null,null,0,null,0]
[null,38,null,null,null,null,null,null,null,null,null,null,0,null,0]
[null,39,null,null,null,null,null,null,null,null,null,null,0,null,0]
[null,40,null,null,null,null,null,null,null,null,null,null,0,null,0]
[null,null,"Total Exposure By Reinsurer",null,null,null,{"$f":"SUM(G15:G54)","v":0},null,{"$f":"SUM(I15:I54)","v":0},null,{"$f":"SUM(K15:K54)","v":0},null,{"$f":"SUM(M15:M54)","v":0},null,{"$f":"SUM(O15:O54)","v":0}]
[]
[null,null,null,"Exposure by BSCR Rating"]
[null,null,null,"BSCR Rating 0 (Domestic Affiliates)",null,null,{"$f":"Import!M43901","v":0},null,{"$f":"Import!M43912","v":0},null,{"$f":"Import!M43923","v":0},null,{"$f":"IF(K58=0,0,MAX(0,MIN(K58,(G58-I58)/0.98)))","v":0},null,{"$f":"MAX(0,(G58-I58-M58*98%))","v":0}]
[null,null,null,"BSCR Rating 1",null,null,{"$f":"Import!M43902","v":0},null,{"$f":"Import!M43913","v":0},null,{"$f":"Import!M43924","v":0},null,0,null,0]
[null,null,null,"BSCR Rating 2",null,null,{"$f":"Import!M43903","v":0},null,{"$f":"Import!M43914","v":0},null,{"$f":"Import!M43925","v":0},null,0,null,{"$f":"MAX(0,(G60-I60-M60*98%))","v":0}]
[null,null,null,"BSCR Rating 3",null,null,{"$f":"Import!M43904","v":0},null,{"$f":"Import!M43915","v":0},null,{"$f":"Import!M43926","v":0},null,0,null,{"$f":"MAX(0,(G61-I61-M61*98%))","v":0}]
[null,null,null,"BSCR Rating 4",null,null,{"$f":"Import!M43905","v":0},null,{"$f":"Import!M43916","v":0},null,{"$f":"Import!M43927","v":0},null,0,null,0]
[null,null,null,"BSCR Rating 5",null,null,{"$f":"Import!M43906","v":0},null,{"$f":"Import!M43917","v":0},null,{"$f":"Import!M43928","v":0},null,0,null,0]
[null,null,null,"BSCR Rating 6",null,null,{"$f":"Import!M43907","v":0},null,{"$f":"Import!M43918","v":0},null,{"$f":"Import!M43929","v":0},null,0,null,0]
[null,null,null,"BSCR Rating 7",null,null,{"$f":"Import!M43908","v":0},null,{"$f":"Import!M43919","v":0},null,{"$f":"Import!M43930","v":0},null,0,null,0]
[null,null,null,"BSCR Rating 8",null,null,{"$f":"Import!M43909","v":0},null,{"$f":"Import!M43920","v":0},null,{"$f":"Import!M43931","v":0},null,0,null,{"$f":"MAX(0,(G66-I66-M66*98%))","v":0}]
[null,null,null,"Total Exposure By BSCR Rating",null,null,{"$f":"SUM(G58:G66)","v":0},null,{"$f":"SUM(I58:I66)","v":0},null,{"$f":"SUM(K58:K66)","v":0},null,{"$f":"SUM(M58:M66)","v":0},null,{"$f":"SUM(O58:O66)","v":0}]
[]
[null,null,null,"Single Consolidated Exposure",null,null,{"$f":"'Form 1EBS'!F66+'Form 1EBS'!F71+'Form 1EBS'!F114-'Schedule IIC (EBS)'!D97-G55-G67","v":0},null,{"$f":"Import!M43922","v":0},null,null,null,{"$f":"IF(K69=0,0,MAX(0,MIN(K69,(G69-I69)/0.98)))","v":0},null,{"$f":"MAX(0,(G69-I69-M69*98%))","v":0}]
[]
[null,null,null,"Total Balance Sheet Adjusted for Schedule IIA, Line 28, Column (1)"]
[null,null,null,null,null,null,{"$f":"'Form 1EBS'!F66+'Form 1EBS'!F71+'Form 1EBS'!F114-'Schedule IIC (EBS)'!D97","v":0}]
[]
[null,null,null,"Total Collateral",null,null,null,null,null,null,{"$f":"+'Form 1EBS'!F180+'Form 1EBS'!F181","v":0}]
[]
[null,null,null,null,null,null,{"$f":"IF(ROUND((G55+G67+G69-G72),0)=0,\"TRUE\",\"FALSE\")","v":"TRUE"},null,null,null,{"$f":"IF(ROUND((K55+K67+K69-K74),0)=0,\"TRUE\",\"FALSE\")","v":"TRUE"}]
[]
[null,null,null,"Difference",null,null,{"$f":"ROUND(G72-G55-G67-G69,0)","v":0},null,null,null,{"$f":"ROUND(K74-K55-K67-K69,0)","v":0}]
[]
[null,null,null,"Total Qualifying Collateral",null,null,null,null,null,null,null,null,{"$f":"IF(K74=0,0,MAX(0,MIN(K74,(G72)/0.98)))","v":0}]
[]
[null,null,null,"Total Net Qualifying Exposure",null,null,null,null,null,null,null,null,null,null,{"$f":"O55+O67+O69","v":0}]
[]
[null,null,null,"Particulars of Reinsurance Balances by BSCR Rating"]
[]
[null,null,null,"Select",null,null,"Reinsurance Assets",null,"Reinsurance Payable",null,"Collateral",null,"Qualifying Collateral",null,"Net Qualifying Exposure"]
[null,null,null,"BSCR Rating 0 (Domestic Affiliates)",null,null,{"$f":"SUMPRODUCT(G$15:G$54,($E$15:$E$54=D87)*1)+G58","v":0},null,{"$f":"SUMPRODUCT(I$15:I$54,($E$15:$E$54=D87)*1)+I58","v":0},null,{"$f":"SUMPRODUCT(K$15:K$54,($E$15:$E$54=D87)*1)+K58","v":0},null,{"$f":"SUMPRODUCT(M$15:M$54,($E$15:$E$54=D87)*1)+M58","v":0},null,{"$f":"SUMPRODUCT(O$15:O$54,($E$15:$E$54=D87)*1)+O58","v":0}]
[null,null,null,"BSCR Rating 1",null,null,0,null,0,null,0,null,0,null,0]
[null,null,null,"BSCR Rating 2",null,null,0,null,0,null,0,null,0,null,0]
[null,null,null,"BSCR Rating 3",null,null,0,null,0,null,0,null,0,null,0]
[null,null,null,"BSCR Rating 4",null,null,0,null,0,null,0,null,0,null,0]
[null,null,null,"BSCR Rating 5",null,null,0,null,0,null,0,null,0,null,0]
[null,null,null,"BSCR Rating 6",null,null,0,null,0,null,0,null,0,null,0]
[null,null,null,"BSCR Rating 7",null,null,0,null,0,null,0,null,0,null,0]
[null,null,null,"BSCR Rating 8",null,null,{"$f":"SUMPRODUCT(G$15:G$54,($E$15:$E$54=D95)*1)+G66+G69","v":0},null,{"$f":"SUMPRODUCT(I$15:I$54,($E$15:$E$54=D95)*1)+I66+I69","v":0},null,{"$f":"SUMPRODUCT(K$15:K$54,($E$15:$E$54=D95)*1)+K66+K69","v":0},null,{"$f":"SUMPRODUCT(M$15:M$54,($E$15:$E$54=D95)*1)+M66+M69","v":0},null,{"$f":"SUMPRODUCT(O$15:O$54,($E$15:$E$54=D95)*1)+O66+O69","v":0}]
[null,null,null,"Total",null,null,{"$f":"SUM(G87:G95)","v":0},null,{"$f":"SUM(I87:I95)","v":0},null,{"$f":"SUM(K87:K95)","v":0},null,{"$f":"SUM(M87:M95)","v":0},null,{"$f":"SUM(O87:O95)","v":0}]
[]
[]
[null,null,null,"Diversification Adjustment Calculation On a Net Qualifying Exposure Basis"]
[]
[null,null,null,"Maximum Net Qualifying Exposure Balance On a Single Reinsurer Basis",null,null,null,null,null,null,null,null,null,null,{"$f":"MAX(O15:O54)","v":0}]
[null,null,null,"Total Net Qualifying Exposure",null,null,null,null,null,null,null,null,null,null,{"$f":"O82","v":0}]
[null,null,null,"Percentage",null,null,null,null,null,null,null,null,null,null,{"$f":"IF(O102=0,0,O101/O102)","v":0}]
[null,null,null,"Diversification Adjustment up to 40%",null,null,null,null,null,null,null,null,null,null,{"$f":"IF(O101=0,0,(1-O103)*40%)","v":0}]

{"sheet":"Schedule XIX","index":97,"n_rows":98,"n_cols":8,"rows_kept":98,"cut":false,"hidden":true,"merged":[[85,2,85,3],[86,2,86,3],[87,2,87,3],[88,2,88,3],[80,2,80,3],[81,2,81,3],[82,2,82,3],[83,2,83,3],[84,2,84,3],[77,2,78,7],[0,2,0,3],[7,2,7,7],[56,2,56,3],[57,2,57,3],[58,2,58,3],[59,2,59,3],[60,2,60,3],[61,2,61,3],[62,2,62,3],[63,2,63,3],[64,2,64,3],[1,5,6,6]]}
[null,null,"SCHEDULE OF RISK MANAGEMENT -  CASH AND CASH EQUIVALENTS COUNTERPARTY ANALYSIS",null,null,null,null,{"$f":"HYPERLINK(\"#'Index'!A1\",\"Return to Index\")","v":"Return to Index"}]
[null,null,{"$f":"+'Company Information'!C7","v":"Enter Company Name"},null,null,"Note if an insurer does not have any entities to consolidate, enter EBS Valuation information only \n(This cell is editable for deletion)"]
[null,null,{"$f":"+'Company Information'!C3","v":"2023-12-31"}]
[null,null,{"$f":"+'Form 1EBS'!B4","v":"expressed in ['000s]"},null,null,null,null,"SCHEDULE XIX"]
[]
[null,null,"Cash and cash equivalent countparty balances"]
[]
[null,null,"Enter at Least the 10 Largest Balances for Cash and Cash Equivalents with the Remaining Balances Grouped According to BSCR Ratings and/or a Single Consolidated Cash Balance"]
[]
[null,null,"Enter Number of Balances",{"$f":"Import!E45144","v":0},null,"Unconsolidated SFS",null,"EBS Valuation"]
[]
[null,null,"Cash and Cash Equivalent Counterparty Balance",null,null,"(A)",null,"(B)"]
[null,null,"Name of Cash and Cash Equivalent Counterparty Balance","BSCR Rating",null,"Cash and Cash Equivalent Balance\n(Form 1SFS, Line 1 & Schedule IIA Line 27)",null,"Cash and Cash Equivalent Balance\n(Form 1EBS, Line 1 & Schedule IIA Line 27)"]
[null,1,{"$f":"Import!E45145","v":0},{"$f":"Import!E45165","v":"Select"},null,{"$f":"Import!E45185","v":0},null,{"$f":"Import!M45185","v":0}]
[null,2,{"$f":"Import!E45146","v":0},{"$f":"Import!E45166","v":"Select"},null,{"$f":"Import!E45186","v":0},null,{"$f":"Import!M45186","v":0}]
[null,3,{"$f":"Import!E45147","v":0},{"$f":"Import!E45167","v":"Select"},null,{"$f":"Import!E45187","v":0},null,{"$f":"Import!M45187","v":0}]
[null,4,{"$f":"Import!E45148","v":0},{"$f":"Import!E45168","v":"Select"},null,{"$f":"Import!E45188","v":0},null,{"$f":"Import!M45188","v":0}]
[null,5,{"$f":"Import!E45149","v":0},{"$f":"Import!E45169","v":"Select"},null,{"$f":"Import!E45189","v":0},null,{"$f":"Import!M45189","v":0}]
[null,6,{"$f":"Import!E45150","v":0},{"$f":"Import!E45170","v":"Select"},null,{"$f":"Import!E45190","v":0},null,{"$f":"Import!M45190","v":0}]
[null,7,{"$f":"Import!E45151","v":0},{"$f":"Import!E45171","v":"Select"},null,{"$f":"Import!E45191","v":0},null,{"$f":"Import!M45191","v":0}]
[null,8,{"$f":"Import!E45152","v":0},{"$f":"Import!E45172","v":"Select"},null,{"$f":"Import!E45192","v":0},null,{"$f":"Import!M45192","v":0}]
[null,9,{"$f":"Import!E45153","v":0},{"$f":"Import!E45173","v":"Select"},null,{"$f":"Import!E45193","v":0},null,{"$f":"Import!M45193","v":0}]
[null,10,{"$f":"Import!E45154","v":0},{"$f":"Import!E45174","v":"Select"},null,{"$f":"Import!E45194","v":0},null,{"$f":"Import!M45194","v":0}]
[null,11,{"$f":"Import!E45155","v":0},{"$f":"Import!E45175","v":"Select"},null,{"$f":"Import!E45195","v":0},null,{"$f":"Import!M45195","v":0}]
[null,12,{"$f":"Import!E45156","v":0},{"$f":"Import!E45176","v":"Select"},null,{"$f":"Import!E45196","v":0},null,{"$f":"Import!M45196","v":0}]
[null,13,{"$f":"Import!E45157","v":0},{"$f":"Import!E45177","v":"Select"},null,{"$f":"Import!E45197","v":0},null,{"$f":"Import!M45197","v":0}]
[null,14,{"$f":"Import!E45158","v":0},{"$f":"Import!E45178","v":"Select"},null,{"$f":"Import!E45198","v":0},null,{"$f":"Import!M45198","v":0}]
[null,15,{"$f":"Import!E45159","v":0},{"$f":"Import!E45179","v":"Select"},null,{"$f":"Import!E45199","v":0},null,{"$f":"Import!M45199","v":0}]
[null,16,{"$f":"Import!E45160","v":0},{"$f":"Import!E45180","v":"Select"},null,{"$f":"Import!E45200","v":0},null,{"$f":"Import!M45200","v":0}]
[null,17,{"$f":"Import!E45161","v":0},{"$f":"Import!E45181","v":"Select"},null,{"$f":"Import!E45201","v":0},null,{"$f":"Import!M45201","v":0}]
[null,18,{"$f":"Import!E45162","v":0},{"$f":"Import!E45182","v":"Select"},null,{"$f":"Import!E45202","v":0},null,{"$f":"Import!M45202","v":0}]
[null,19,{"$f":"Import!E45163","v":0},{"$f":"Import!E45183","v":"Select"},null,{"$f":"Import!E45203","v":0},null,{"$f":"Import!M45203","v":0}]
[null,20,{"$f":"Import!E45164","v":0},{"$f":"Import!E45184","v":"Select"},null,{"$f":"Import!E45204","v":0},null,{"$f":"Import!M45204","v":0}]
[null,21]
[null,22]
[null,23]
[null,24]
[null,25]
[null,26]
[null,27]
[null,28]
[null,29]
[null,30]
[null,31]
[null,32]
[null,33]
[null,34]
[null,35]
[null,36]
[null,37]
[null,38]
[null,39]
[null,40]
[null,null,"Total Cash and Cash Equivalent Counterparty Balance",null,null,{"$f":"SUM(F14:F53)","v":0},null,{"$f":"SUM(H14:H53)","v":0}]
[]
[null,null,"Exposure by BSCR Rating"]
[null,null,"BSCR Rating 0 (Domestic Affiliates)",null,null,{"$f":"Import!E45206","v":0},null,{"$f":"Import!M45206","v":0}]
[null,null,"BSCR Rating 1",null,null,{"$f":"Import!E45207","v":0},null,{"$f":"Import!M45207","v":0}]
[null,null,"BSCR Rating 2",null,null,{"$f":"Import!E45208","v":0},null,{"$f":"Import!M45208","v":0}]
[null,null,"BSCR Rating 3",null,null,{"$f":"Import!E45209","v":0},null,{"$f":"Import!M45209","v":0}]
[null,null,"BSCR Rating 4",null,null,{"$f":"Import!E45210","v":0},null,{"$f":"Import!M45210","v":0}]
[null,null,"BSCR Rating 5",null,null,{"$f":"Import!E45211","v":0},null,{"$f":"Import!M45211","v":0}]
[null,null,"BSCR Rating 6",null,null,{"$f":"Import!E45212","v":0},null,{"$f":"Import!M45212","v":0}]
[null,null,"BSCR Rating 7",null,null,{"$f":"Import!E45213","v":0},null,{"$f":"Import!M45213","v":0}]
[null,null,"BSCR Rating 8",null,null,{"$f":"Import!E45214","v":0},null,{"$f":"Import!M45214","v":0}]
[null,null,"Total Exposure By BSCR Rating",null,null,{"$f":"SUM(F57:F65)","v":0},null,{"$f":"SUM(H57:H65)","v":0}]
[]
[null,null,"Single Consolidated Exposure",null,null,{"$f":"'Form 1SFS'!E12+'Form 1SFS'!I12+'Schedule IIA'!D68-F54-F66","v":0},null,{"$f":"'Form 1EBS'!F10+'Schedule IIA (EBS)'!D68-H54-H66","v":0}]
[]
[null,null,"Total Cash and Cash Equivalent Balance",null,null,{"$f":"F54+F66+F68","v":0},null,{"$f":"H54+H66+H68","v":0}]
[]
[null,null,"Cash and Cash Equivalent Check",null,null,{"$f":"'Form 1SFS'!E12+'Form 1SFS'!I12+'Schedule IIA'!D68","v":0},null,{"$f":"'Form 1EBS'!F10+'Schedule IIA (EBS)'!D68","v":0}]
[]
[null,null,null,null,null,{"$f":"IF(F75=\"TRUE\",HYPERLINK(\"#'Form 1SFS'!E12:M12\",\"TRUE\"),HYPERLINK(\"#'Form 1SFS'!E12:M12\",\"FALSE\"))","v":"TRUE"},null,{"$f":"IF(H75=\"TRUE\",HYPERLINK(\"#'Form 1EBS'!F10\",\"TRUE\"),HYPERLINK(\"#'Form 1EBS'!F10\",\"FALSE\"))","v":"TRUE"}]
[null,null,null,null,null,{"$f":"IF(ROUND((F70-F72),0)=0,\"True\",\"False\")","v":"True"},null,{"$f":"IF(ROUND((H70-H72),0)=0,\"True\",\"False\")","v":"True"}]
[null,null,"Difference",null,null,{"$f":"ROUND(F70-F72,0)","v":0},null,{"$f":"ROUND(H70-H72,0)","v":0}]
[]
[null,null,"Cash and Cash Equivalents Counterparty Balance by BSCR Rating"]
[]
[null,null,"Select",null,null,null,null,"Cash and Cash Equivalent Exposure"]
[null,null,"BSCR Rating 0 (Domestic Affiliates)",null,null,null,null,{"$f":"SUMPRODUCT(H$14:H$53,($D$14:$D$53=C81)*1)+H57","v":0}]
[null,null,"BSCR Rating 1",null,null,null,null,0]
[null,null,"BSCR Rating 2",null,null,null,null,0]
[null,null,"BSCR Rating 3",null,null,null,null,0]
[null,null,"BSCR Rating 4",null,null,null,null,0]
[null,null,"BSCR Rating 5",null,null,null,null,0]
[null,null,"BSCR Rating 6",null,null,null,null,0]
[null,null,"BSCR Rating 7",null,null,null,null,0]
[null,null,"BSCR Rating 8",null,null,null,null,{"$f":"SUMPRODUCT(H$14:H$53,($D$14:$D$53=C89)*1)+H65+H68","v":0}]
[null,null,"Total",null,null,null,null,{"$f":"SUM(H81:H89)","v":0}]
[]
[]
[null,null,"Diversification Adjustment Calculation On an Exposure Basis"]
[]
[null,null,"Maximum Cash and Cash Equivalent Counterparty Balance On a Single Exposure Basis",null,null,null,null,{"$f":"MAX(H14:H53)","v":0}]
[null,null,"Total Cash and Cash Equivalent Counterparty Balance",null,null,null,null,{"$f":"+H72","v":0}]
[null,null,"Percentage",null,null,null,null,{"$f":"IF(H96=0,0,H95/H96)","v":0}]
[null,null,"Diversification Adjustment up to 40%",null,null,null,null,{"$f":"IF(H95=0,0,(1-H97)*40%)","v":0}]

{"sheet":"Schedule XIXA","index":98,"n_rows":98,"n_cols":6,"rows_kept":98,"cut":false,"hidden":false,"merged":[[85,2,85,3],[86,2,86,3],[87,2,87,3],[88,2,88,3],[77,2,78,5],[80,2,80,3],[81,2,81,3],[82,2,82,3],[83,2,83,3],[84,2,84,3],[64,2,64,3],[0,2,0,3],[7,2,7,5],[56,2,56,3],[57,2,57,3],[58,2,58,3],[59,2,59,3],[60,2,60,3],[61,2,61,3],[62,2,62,3],[63,2,63,3]]}
[null,null,"SCHEDULE OF RISK MANAGEMENT -  CASH AND CASH EQUIVALENTS COUNTERPARTY ANALYSIS",null,null,{"$f":"HYPERLINK(\"#'Index'!A1\",\"Return to Index\")","v":"Return to Index"}]
[null,null,{"$f":"+'Company Information'!C7","v":"Enter Company Name"}]
[null,null,{"$f":" TEXT('Company Information'!C3,\"d mmmm yyyy\")","v":"31 December 2023"}]
[null,null,{"$f":"+'Form 1EBS'!B4","v":"expressed in ['000s]"},null,null,"SCHEDULE XIXA"]
[]
[null,null,"Cash and cash equivalent countparty balances"]
[]
[null,null,"Enter at Least the 10 Largest Balances for Cash and Cash Equivalents with the Remaining Balances Grouped According to BSCR Ratings and/or a Single Consolidated Cash Balance"]
[]
[null,null,"Enter Number of Balances",{"$f":"Import!M43934","v":0},null,"EBS Valuation"]
[]
[null,null,"Cash and Cash Equivalent Counterparty Balance",null,null,"(A)"]
[null,null,"Name of Cash and Cash Equivalent Counterparty Balance","BSCR Rating",null,"Cash and Cash Equivalent Balance\n(Form 1EBS Line 1 & Schedule IIB-IIF Line 58)"]
[null,1,{"$f":"Import!M43935","v":0},{"$f":"Import!M43955","v":"Select"},null,{"$f":"Import!M43975","v":0}]
[null,2,{"$f":"Import!M43936","v":0},{"$f":"Import!M43956","v":"Select"},null,{"$f":"Import!M43976","v":0}]
[null,3,{"$f":"Import!M43937","v":0},{"$f":"Import!M43957","v":"Select"},null,{"$f":"Import!M43977","v":0}]
[null,4,{"$f":"Import!M43938","v":0},{"$f":"Import!M43958","v":"Select"},null,{"$f":"Import!M43978","v":0}]
[null,5,{"$f":"Import!M43939","v":0},{"$f":"Import!M43959","v":"Select"},null,{"$f":"Import!M43979","v":0}]
[null,6,{"$f":"Import!M43940","v":0},{"$f":"Import!M43960","v":"Select"},null,{"$f":"Import!M43980","v":0}]
[null,7,{"$f":"Import!M43941","v":0},{"$f":"Import!M43961","v":"Select"},null,{"$f":"Import!M43981","v":0}]
[null,8,{"$f":"Import!M43942","v":0},{"$f":"Import!M43962","v":"Select"},null,{"$f":"Import!M43982","v":0}]
[null,9,{"$f":"Import!M43943","v":0},{"$f":"Import!M43963","v":"Select"},null,{"$f":"Import!M43983","v":0}]
[null,10,{"$f":"Import!M43944","v":0},{"$f":"Import!M43964","v":"Select"},null,{"$f":"Import!M43984","v":0}]
[null,11,{"$f":"Import!M43945","v":0},{"$f":"Import!M43965","v":"Select"},null,{"$f":"Import!M43985","v":0}]
[null,12,{"$f":"Import!M43946","v":0},{"$f":"Import!M43966","v":"Select"},null,{"$f":"Import!M43986","v":0}]
[null,13,{"$f":"Import!M43947","v":0},{"$f":"Import!M43967","v":"Select"},null,{"$f":"Import!M43987","v":0}]
[null,14,{"$f":"Import!M43948","v":0},{"$f":"Import!M43968","v":"Select"},null,{"$f":"Import!M43988","v":0}]
[null,15,{"$f":"Import!M43949","v":0},{"$f":"Import!M43969","v":"Select"},null,{"$f":"Import!M43989","v":0}]
[null,16,{"$f":"Import!M43950","v":0},{"$f":"Import!M43970","v":"Select"},null,{"$f":"Import!M43990","v":0}]
[null,17,{"$f":"Import!M43951","v":0},{"$f":"Import!M43971","v":"Select"},null,{"$f":"Import!M43991","v":0}]
[null,18,{"$f":"Import!M43952","v":0},{"$f":"Import!M43972","v":"Select"},null,{"$f":"Import!M43992","v":0}]
[null,19,{"$f":"Import!M43953","v":0},{"$f":"Import!M43973","v":"Select"},null,{"$f":"Import!M43993","v":0}]
[null,20,{"$f":"Import!M43954","v":0},{"$f":"Import!M43974","v":"Select"},null,{"$f":"Import!M43994","v":0}]
[null,21]
[null,22]
[null,23]
[null,24]
[null,25]
[null,26]
[null,27]
[null,28]
[null,29]
[null,30]
[null,31]
[null,32]
[null,33]
[null,34]
[null,35]
[null,36]
[null,37]
[null,38]
[null,39]
[null,40]
[null,null,"Total Cash and Cash Equivalent Counterparty Balance",null,null,{"$f":"SUM(F14:F53)","v":0}]
[]
[null,null,"Exposure by BSCR Rating"]
[null,null,"BSCR Rating 0 (Domestic Affiliates)",null,null,{"$f":"Import!M43996","v":0}]
[null,null,"BSCR Rating 1",null,null,{"$f":"Import!M43997","v":0}]
[null,null,"BSCR Rating 2",null,null,{"$f":"Import!M43998","v":0}]
[null,null,"BSCR Rating 3",null,null,{"$f":"Import!M43999","v":0}]
[null,null,"BSCR Rating 4",null,null,{"$f":"Import!M44000","v":0}]
[null,null,"BSCR Rating 5",null,null,{"$f":"Import!M44001","v":0}]
[null,null,"BSCR Rating 6",null,null,{"$f":"Import!M44002","v":0}]
[null,null,"BSCR Rating 7",null,null,{"$f":"Import!M44003","v":0}]
[null,null,"BSCR Rating 8",null,null,{"$f":"Import!M44004","v":0}]
[null,null,"Total Exposure By BSCR Rating",null,null,{"$f":"SUM(F57:F65)","v":0}]
[]
[null,null,"Single Consolidated Exposure",null,null,{"$f":"'Form 1EBS'!F10+'Schedule IIB (EBS)'!D95+'Schedule IIC (EBS)'!D95+'Schedule IID (EBS)'!D95+'Schedule IIE (EBS)'!D95+'Schedule IIF (EBS)'!D95-F54-F66","v":0}]
[]
[null,null,"Total Cash and Cash Equivalent Balance",null,null,{"$f":"F54+F66+F68","v":0}]
[]
[null,null,"Cash and Cash Equivalent Check",null,null,{"$f":"'Form 1EBS'!F10+'Schedule IIB (EBS)'!D95+'Schedule IIC (EBS)'!D95+'Schedule IID (EBS)'!D95+'Schedule IIE (EBS)'!D95+'Schedule IIF (EBS)'!D95","v":0}]
[]
[null,null,null,null,null,{"$f":"IF(ROUND((F70-F72),0)=0,\"True\",\"False\")","v":"True"}]
[]
[null,null,"Difference",null,null,{"$f":"F70-F72","v":0}]
[]
[null,null,"Cash and Cash Equivalents Counterparty Balance by BSCR Rating"]
[]
[null,null,"Select",null,null,"Cash and Cash Equivalent Exposure"]
[null,null,"BSCR Rating 0 (Domestic Affiliates)",null,null,{"$f":"SUMPRODUCT(F$14:F$53,($D$14:$D$53=C81)*1)+F57","v":0}]
[null,null,"BSCR Rating 1",null,null,0]
[null,null,"BSCR Rating 2",null,null,0]
[null,null,"BSCR Rating 3",null,null,0]
[null,null,"BSCR Rating 4",null,null,0]
[null,null,"BSCR Rating 5",null,null,0]
[null,null,"BSCR Rating 6",null,null,0]
[null,null,"BSCR Rating 7",null,null,0]
[null,null,"BSCR Rating 8",null,null,{"$f":"SUMPRODUCT(F$14:F$53,($D$14:$D$53=C89)*1)+F65+F68","v":0}]
[null,null,"Total",null,null,{"$f":"SUM(F81:F89)","v":0}]
[]
[]
[null,null,"Diversification Adjustment Calculation On an Exposure Basis"]
[]
[null,null,"Maximum Cash and Cash Equivalent Counterparty Balance On a Single Exposure Basis",null,null,{"$f":"MAX(F14:F53)","v":0}]
[null,null,"Total Cash and Cash Equivalent Counterparty Balance",null,null,{"$f":"+F72","v":0}]
[null,null,"Percentage",null,null,{"$f":"IF(F96=0,0,F95/F96)","v":0}]
[null,null,"Diversification Adjustment up to 40%",null,null,{"$f":"IF(F95=0,0,(1-F97)*40%)","v":0}]

{"sheet":"Schedule XX","index":99,"n_rows":38,"n_cols":20,"rows_kept":38,"cut":false,"hidden":true,"merged":[[4,3,4,9],[4,11,4,17],[2,3,3,9]]}
[null,"SCHEDULE OF CURRENCY RISK",null,null,null,null,null,null,null,null,null,null,null,null,null,null,null,null,null,{"$f":"HYPERLINK(\"#'Index'!A1\",\"Return to Index\")","v":"Return to Index"}]
[null,{"$f":"'Company Information'!C7","v":"Enter Company Name"}]
[null,{"$f":"'Form 1EBS'!C3","v":"2023-12-31"},null,"Note if an insurer does not have any entities to consolidate, enter EBS Valuation information only (This cell is editable for deletion)",null,null,null,null,null,null,null,null,null,null,null,null,null,null,null,"SCHEDULE XX"]
[null,{"$f":"IF(CONFIGURATION!$B$12>1,\" ['\"&MID(CONFIGURATION!$B$12,2,LEN(CONFIGURATION!$B$12))&\"s]\",\"\")&'Form 1EBS'!C4","v":" ['000s]United States Dollars"}]
[null,null,null,"Unconsolidated SFS",null,null,null,null,null,null,null,"EBS Valuation"]
[]
[null,"Currency",null,"Assets",null,"Assets with Hedging Arrangements",null,"Liabilities",null,"Liabilities with Hedging Arrangements",null,"Assets",null,"Assets with Hedging Arrangements",null,"Liabilities",null,"Liabilities with Hedging Arrangements",null,"Net Asset Value"]
[]
[null,{"$f":"'Form 1EBS'!C4","v":"United States Dollars"},null,{"$f":"Import!E45216","v":0},null,{"$f":"Import!E45232","v":0},null,{"$f":"Import!E45248","v":0},null,{"$f":"Import!E45264","v":0},null,{"$f":"Import!M45216","v":0},null,{"$f":"Import!M45232","v":0},null,{"$f":"Import!M45248","v":0},null,{"$f":"Import!M45264","v":0},null,{"$f":"L9-P9","v":0}]
[null,{"$f":"IF($B$9=\"Euro\",\"United States Dollar\",\"Euro\")","v":"Euro"},null,{"$f":"Import!E45217","v":0},null,{"$f":"Import!E45233","v":0},null,{"$f":"Import!E45249","v":0},null,{"$f":"Import!E45265","v":0},null,{"$f":"Import!M45217","v":0},null,{"$f":"Import!M45233","v":0},null,{"$f":"Import!M45249","v":0},null,{"$f":"Import!M45265","v":0},null,0]
[null,{"$f":"IF($B$9=\"United Kingdom Pounds\",\"United States Dollar\",\"United Kingdom Pounds\")","v":"United Kingdom Pounds"},null,{"$f":"Import!E45218","v":0},null,{"$f":"Import!E45234","v":0},null,{"$f":"Import!E45250","v":0},null,{"$f":"Import!E45266","v":0},null,{"$f":"Import!M45218","v":0},null,{"$f":"Import!M45234","v":0},null,{"$f":"Import!M45250","v":0},null,{"$f":"Import!M45266","v":0},null,0]
[null,{"$f":"IF($B$9=\"Canada Dollars\",\"United States Dollar\",\"Canada Dollars\")","v":"Canada Dollars"},null,{"$f":"Import!E45219","v":0},null,{"$f":"Import!E45235","v":0},null,{"$f":"Import!E45251","v":0},null,{"$f":"Import!E45267","v":0},null,{"$f":"Import!M45219","v":0},null,{"$f":"Import!M45235","v":0},null,{"$f":"Import!M45251","v":0},null,{"$f":"Import!M45267","v":0},null,0]
[null,{"$f":"IF($B$9=\"Japan Yen\",\"United States Dollar\",\"Japan Yen\")","v":"Japan Yen"},null,{"$f":"Import!E45220","v":0},null,{"$f":"Import!E45236","v":0},null,{"$f":"Import!E45252","v":0},null,{"$f":"Import!E45268","v":0},null,{"$f":"Import!M45220","v":0},null,{"$f":"Import!M45236","v":0},null,{"$f":"Import!M45252","v":0},null,{"$f":"Import!M45268","v":0},null,0]
[null,"Other currency 1",null,{"$f":"Import!E45221","v":0},null,{"$f":"Import!E45237","v":0},null,{"$f":"Import!E45253","v":0},null,{"$f":"Import!E45269","v":0},null,{"$f":"Import!M45221","v":0},null,{"$f":"Import!M45237","v":0},null,{"$f":"Import!M45253","v":0},null,{"$f":"Import!M45269","v":0},null,0]
[null,"Other currency 2",null,{"$f":"Import!E45222","v":0},null,{"$f":"Import!E45238","v":0},null,{"$f":"Import!E45254","v":0},null,{"$f":"Import!E45270","v":0},null,{"$f":"Import!M45222","v":0},null,{"$f":"Import!M45238","v":0},null,{"$f":"Import!M45254","v":0},null,{"$f":"Import!M45270","v":0},null,0]
[null,"Other currency 3",null,{"$f":"Import!E45223","v":0},null,{"$f":"Import!E45239","v":0},null,{"$f":"Import!E45255","v":0},null,{"$f":"Import!E45271","v":0},null,{"$f":"Import!M45223","v":0},null,{"$f":"Import!M45239","v":0},null,{"$f":"Import!M45255","v":0},null,{"$f":"Import!M45271","v":0},null,0]
[null,"Other currency 4",null,{"$f":"Import!E45224","v":0},null,{"$f":"Import!E45240","v":0},null,{"$f":"Import!E45256","v":0},null,{"$f":"Import!E45272","v":0},null,{"$f":"Import!M45224","v":0},null,{"$f":"Import!M45240","v":0},null,{"$f":"Import!M45256","v":0},null,{"$f":"Import!M45272","v":0},null,0]
[null,"Other currency 5",null,{"$f":"Import!E45225","v":0},null,{"$f":"Import!E45241","v":0},null,{"$f":"Import!E45257","v":0},null,{"$f":"Import!E45273","v":0},null,{"$f":"Import!M45225","v":0},null,{"$f":"Import!M45241","v":0},null,{"$f":"Import!M45257","v":0},null,{"$f":"Import!M45273","v":0},null,0]
[null,"Other currency 6",null,{"$f":"Import!E45226","v":0},null,{"$f":"Import!E45242","v":0},null,{"$f":"Import!E45258","v":0},null,{"$f":"Import!E45274","v":0},null,{"$f":"Import!M45226","v":0},null,{"$f":"Import!M45242","v":0},null,{"$f":"Import!M45258","v":0},null,{"$f":"Import!M45274","v":0},null,0]
[null,"Other currency 7",null,{"$f":"Import!E45227","v":0},null,{"$f":"Import!E45243","v":0},null,{"$f":"Import!E45259","v":0},null,{"$f":"Import!E45275","v":0},null,{"$f":"Import!M45227","v":0},null,{"$f":"Import!M45243","v":0},null,{"$f":"Import!M45259","v":0},null,{"$f":"Import!M45275","v":0},null,0]
[null,"Other currency 8",null,{"$f":"Import!E45228","v":0},null,{"$f":"Import!E45244","v":0},null,{"$f":"Import!E45260","v":0},null,{"$f":"Import!E45276","v":0},null,{"$f":"Import!M45228","v":0},null,{"$f":"Import!M45244","v":0},null,{"$f":"Import!M45260","v":0},null,{"$f":"Import!M45276","v":0},null,0]
[null,"Other currency 9",null,{"$f":"Import!E45229","v":0},null,{"$f":"Import!E45245","v":0},null,{"$f":"Import!E45261","v":0},null,{"$f":"Import!E45277","v":0},null,{"$f":"Import!M45229","v":0},null,{"$f":"Import!M45245","v":0},null,{"$f":"Import!M45261","v":0},null,{"$f":"Import!M45277","v":0},null,0]
[null,"Other currency 10",null,{"$f":"Import!E45230","v":0},null,{"$f":"Import!E45246","v":0},null,{"$f":"Import!E45262","v":0},null,{"$f":"Import!E45278","v":0},null,{"$f":"Import!M45230","v":0},null,{"$f":"Import!M45246","v":0},null,{"$f":"Import!M45262","v":0},null,{"$f":"Import!M45278","v":0},null,{"$f":"L23-P23","v":0}]
[null,"Currency Total",null,{"$f":"SUM(D9:D23)","v":0},null,{"$f":"SUM(F9:F23)","v":0},null,{"$f":"SUM(H9:H23)","v":0},null,{"$f":"SUM(J9:J23)","v":0},null,{"$f":"SUM(L9:L23)","v":0},null,{"$f":"SUM(N9:N23)","v":0},null,{"$f":"SUM(P9:P23)","v":0},null,{"$f":"SUM(R9:R23)","v":0},null,{"$f":"SUM(T9:T23)","v":0}]
[]
[null,null,null,null,null,null,null,null,null,null,null,"Form 1EBS Line 15",null,null,null,"Form 1EBS Line 39"]
[null,"Balance Sheet Total",null,null,null,null,null,null,null,null,null,{"$f":"+'Form 1EBS'!F90","v":0},null,null,null,{"$f":"+'Form 1EBS'!F163","v":0}]
[null,"% of Balance Sheet Total",null,null,null,null,null,null,null,null,null,{"$f":"IF(L27=0,0,L24/L27)","v":0},null,null,null,{"$f":"IF(P27=0,0,P24/P27)","v":0}]
[]
[null,"95% Minimum Test Met",null,null,null,null,null,null,null,null,null,{"$f":"IF(L27=0,\"Form 1EBS is Blank\",IF(L28<=95%,\"False\",IF(L28>100%,\"False\",\"True\")))","v":"Form 1EBS is Blank"},null,null,null,{"$f":"IF(P27=0,\"Form 1EBS is Blank\",IF(P28<=95%,\"False\",IF(P28>100%,\"False\",\"True\")))","v":"Form 1EBS is Blank"}]
[]
[null,null,null,null,null,null,null,null,null,null,null,"Liabilities",null,null,null,"ECR Charge",null,"Ratio",null,"Assessment*"]
[null,null,null,null,null,null,null,null,null,null,null,"Form 1EBS, Line 39",null,null,null,"Summary tab"]
[null,{"$f":"'Form 1EBS'!H7","v":"2022-12-31"},null,null,null,null,null,null,null,null,null,{"$f":"Import!M45280","v":0},null,null,null,{"$f":"Import!M45283","v":0},null,{"$f":"IF(P34=0,\"\",P34/L34)","v":""}]
[null,{"$f":"DATE(YEAR(B34)-1,MONTH(B34),DAY(B34))","v":"2021-12-31"},null,null,null,null,null,null,null,null,null,{"$f":"Import!M45281","v":0},null,null,null,{"$f":"Import!M45284","v":0},null,{"$f":"IF(P35=0,\"\",P35/L35)","v":""}]
[null,{"$f":"DATE(YEAR(B35)-1,MONTH(B35),DAY(B35))","v":"2020-12-31"},null,null,null,null,null,null,null,null,null,{"$f":"Import!M45282","v":0},null,null,null,{"$f":"Import!M45285","v":0},null,{"$f":"IF(P36=0,\"\",P36/L36)","v":""},null,{"$f":"IF(SUM(R34:R36)=0,IF(P34=0,0%,R34),MAX(R34,AVERAGE(R34:R36)))","v":0}]
[]
[null,"*If there are no amounts for previous years, enter the results from the current year without taking currency risk into account into the prior year"]

{"sheet":"Schedule XXA","index":100,"n_rows":47,"n_cols":34,"rows_kept":47,"cut":false,"hidden":false,"merged":[[6,5,6,7],[6,9,6,11],[6,23,6,25],[6,27,6,29],[2,3,3,3],[4,3,4,33],[5,21,5,33],[5,3,5,14]]}
[null,"SCHEDULE OF CURRENCY RISK",null,null,null,null,null,null,null,null,null,null,null,null,null,null,null,null,null,null,null,null,null,null,null,null,null,null,null,null,null,null,null,{"$f":"HYPERLINK(\"#'Index'!A1\",\"Return to Index\")","v":"Return to Index"}]
[null,{"$f":"'Company Information'!C7","v":"Enter Company Name"}]
[null,{"$f":" TEXT('Company Information'!C3,\"d mmmm yyyy\")","v":"31 December 2023"},null,null,null,null,null,null,null,null,null,null,null,null,null,null,null,null,null,null,null,null,null,null,null,null,null,null,null,null,null,null,null,"SCHEDULE XXA"]
[null,{"$f":"IF(CONFIGURATION!$B$12>1,\" ['\"&MID(CONFIGURATION!$B$12,2,LEN(CONFIGURATION!$B$12))&\"s]\",\"\")&'Form 1EBS'!C4","v":" ['000s]United States Dollars"}]
[null,null,null,"EBS Valuation"]
[null,null,null,"MARKET VALUE BEFORE SHOCK",null,null,null,null,null,null,null,null,null,null,null,null,null,null,null,null,null,"MARKET VALUE AFTER SHOCK"]
[null,null,null,null,null,"Long Exposures",null,null,null,"Short Exposures",null,null,null,null,null,null,null,null,null,null,null,null,null,"Long Exposures",null,null,null,"Short Exposures"]
[null,"Currency",null,"Assets - Excluding currency- derivatives",null,"Currency Derivatives Qualifying as held for risk-mitigation purposes",null,"Currency Derivatives Not Qualifying as held for risk-mitigation purposes",null,"Currency Derivatives Qualifying as held for risk-mitigation purposes",null,"Currency Derivatives Not Qualifying as held for risk-mitigation purposes",null,"Best Estimate Liabilities without Management Actions",null,"Proxy BSCR",null,"Surplus Assets",null,"Shock",null,"Assets - Excluding currency- derivatives",null,"Currency Derivatives Qualifying as held for risk-mitigation purposes",null,"Currency Derivatives Not Qualifying as held for risk-mitigation purposes",null,"Currency Derivatives Qualifying as held for risk-mitigation purposes",null,"Currency Derivatives Not Qualifying as held for risk-mitigation purposes",null,"Best Estimate Liabilities without Management Actions",null,"Best Estimate Liabilities with Management Actions"]
[null,null,null,"(A)",null,"(B)",null,"(C)",null,"(D)",null,"(E)",null,"(F)",null,null,null,null,null,null,null,"(G)",null,"(H)",null,"(I)",null,"(J)",null,"(K)",null,"(L)",null,"(M)"]
[null,{"$f":"'Form 1EBS'!C4","v":"United States Dollars"},null,{"$f":"Import!M44016","v":0},null,{"$f":"Import!M44039","v":0},null,{"$f":"Import!M44062","v":0},null,{"$f":"Import!M44085","v":0},null,{"$f":"Import!M44108","v":0},null,{"$f":"Import!M44131","v":0},null,{"$f":"$P$45*N10","v":0},null,{"$f":"D10+F10+H10+J10+L10-N10-P10","v":0},null,0,null,{"$f":"IF(OR(Import!M44154=0,Import!M44154=\"\"),(1+T10)*D10,Import!M44154)","v":0},null,{"$f":"Import!M44177","v":0},null,{"$f":"Import!M44200","v":0},null,{"$f":"Import!M44223","v":0},null,{"$f":"Import!M44246","v":0},null,{"$f":"IF(OR(Import!M44269=0,Import!M44269=\"\"),(1+T10)*N10,Import!M44269)","v":0},null,{"$f":"IF(OR(Import!M44292=0,Import!M44292=\"\"),AF10,Import!M44292)","v":0}]
[null,{"$f":"IF($B$10=\"Bermuda Dollars\",\"United States Dollar\",\"Bermuda Dollars\")","v":"Bermuda Dollars"},null,{"$f":"Import!M44017","v":0},null,{"$f":"Import!M44040","v":0},null,{"$f":"Import!M44063","v":0},null,{"$f":"Import!M44086","v":0},null,{"$f":"Import!M44109","v":0},null,{"$f":"Import!M44132","v":0},null,{"$f":"$P$45*N11","v":0},null,{"$f":"D11+F11+H11+J11+L11-N11-P11","v":0},null,{"$f":"IF($B$10=\"Bermuda Dollars\",0%,IF($B$10=\"United States Dollars\",0%,IF((D11+F11+H11+J11+L11)>(N11+P11),0%,25%)))","v":0},null,{"$f":"IF(OR(Import!M44155=0,Import!M44155=\"\"),(1+T11)*D11,Import!M44155)","v":0},null,{"$f":"Import!M44178","v":0},null,{"$f":"Import!M44201","v":0},null,{"$f":"Import!M44224","v":0},null,{"$f":"Import!M44247","v":0},null,{"$f":"IF(OR(Import!M44270=0,Import!M44270=\"\"),(1+T11)*N11,Import!M44270)","v":0},null,{"$f":"IF(OR(Import!M44293=0,Import!M44293=\"\"),AF11,Import!M44293)","v":0}]
[null,{"$f":"IF($B$10=\"Qatar Riyals\",\"United States Dollar\",\"Qatar Riyals\")","v":"Qatar Riyals"},null,{"$f":"Import!M44018","v":0},null,{"$f":"Import!M44041","v":0},null,{"$f":"Import!M44064","v":0},null,{"$f":"Import!M44087","v":0},null,{"$f":"Import!M44110","v":0},null,{"$f":"Import!M44133","v":0},null,0,null,0,null,{"$f":"IF($B$10=\"Qatar Riyals\",IF((D12+F12+H12+J12+L12)>(N12+P12),0%,5%),IF($B$10=\"United States Dollars\",IF((D12+F12+H12+J12+L12)>(N12+P12),0%,5%),IF((D12+F12+H12+J12+L12)>(N12+P12),0%,25%)))","v":0.05},null,{"$f":"IF(OR(Import!M44156=0,Import!M44156=\"\"),(1+T12)*D12,Import!M44156)","v":0},null,{"$f":"Import!M44179","v":0},null,{"$f":"Import!M44202","v":0},null,{"$f":"Import!M44225","v":0},null,{"$f":"Import!M44248","v":0},null,{"$f":"IF(OR(Import!M44271=0,Import!M44271=\"\"),(1+T12)*N12,Import!M44271)","v":0},null,{"$f":"IF(OR(Import!M44294=0,Import!M44294=\"\"),AF12,Import!M44294)","v":0}]
[null,{"$f":"IF($B$10=\"Hong Kong Dollars\",\"United States Dollar\",\"Hong Kong Dollars\")","v":"Hong Kong Dollars"},null,{"$f":"Import!M44019","v":0},null,{"$f":"Import!M44042","v":0},null,{"$f":"Import!M44065","v":0},null,{"$f":"Import!M44088","v":0},null,{"$f":"Import!M44111","v":0},null,{"$f":"Import!M44134","v":0},null,0,null,0,null,{"$f":"IF($B$10=\"Hong Kong Dollars\",IF((D13+F13+H13+J13+L13)>(N13+P13),0%,1%),IF($B$10=\"United States Dollars\",IF((D13+F13+H13+J13+L13)>(N13+P13),0%,1%),IF((D13+F13+H13+J13+L13)>(N13+P13),0%,25%)))","v":0.01},null,{"$f":"IF(OR(Import!M44157=0,Import!M44157=\"\"),(1+T13)*D13,Import!M44157)","v":0},null,{"$f":"Import!M44180","v":0},null,{"$f":"Import!M44203","v":0},null,{"$f":"Import!M44226","v":0},null,{"$f":"Import!M44249","v":0},null,{"$f":"IF(OR(Import!M44272=0,Import!M44272=\"\"),(1+T13)*N13,Import!M44272)","v":0},null,{"$f":"IF(OR(Import!M44295=0,Import!M44295=\"\"),AF13,Import!M44295)","v":0}]
[null,{"$f":"IF($B$10=\"Euro\",\"United States Dollar\",\"Euro\")","v":"Euro"},null,{"$f":"Import!M44020","v":0},null,{"$f":"Import!M44043","v":0},null,{"$f":"Import!M44066","v":0},null,{"$f":"Import!M44089","v":0},null,{"$f":"Import!M44112","v":0},null,{"$f":"Import!M44135","v":0},null,0,null,0,null,{"$f":"IF($B$10=\"Denmark Kroner\",IF((D14+F14+H14+J14+L14)>(N14+P14),0%,0.39%),IF($B$10=\"Bulgaria Leva\",IF((D14+F14+H14+J14+L14)>(N14+P14),0%,1.81%),IF($B$10=\"West African CFA Francs\",IF((D14+F14+H14+J14+L14)>(N14+P14),0%,2.18%),IF($B$10=\"Central African CFA Francs\",IF((D14+F14+H14+J14+L14)>(N14+P14),0%,1.96%),IF($B$10=\"Comorian Francs\",IF((D14+F14+H14+J14+L14)>(N14+P14),0%,2%),IF((D14+F14+H14+J14+L14)>(N14+P14),0%,25%))))))","v":0.25},null,{"$f":"IF(OR(Import!M44158=0,Import!M44158=\"\"),(1+T14)*D14,Import!M44158)","v":0},null,{"$f":"Import!M44181","v":0},null,{"$f":"Import!M44204","v":0},null,{"$f":"Import!M44227","v":0},null,{"$f":"Import!M44250","v":0},null,{"$f":"IF(OR(Import!M44273=0,Import!M44273=\"\"),(1+T14)*N14,Import!M44273)","v":0},null,{"$f":"IF(OR(Import!M44296=0,Import!M44296=\"\"),AF14,Import!M44296)","v":0}]
[null,{"$f":"IF($B$10=\"Denmark Kroner\",\"United States Dollar\",\"Denmark Kroner\")","v":"Denmark Kroner"},null,{"$f":"Import!M44021","v":0},null,{"$f":"Import!M44044","v":0},null,{"$f":"Import!M44067","v":0},null,{"$f":"Import!M44090","v":0},null,{"$f":"Import!M44113","v":0},null,{"$f":"Import!M44136","v":0},null,0,null,0,null,{"$f":"IF($B$10=\"Euro\",IF((D15+F15+H15+J15+L15)>(N15+P15),0%,0.39%),IF((D15+F15+H15+J15+L15)>(N15+P15),0%,25%))","v":0.25},null,{"$f":"IF(OR(Import!M44159=0,Import!M44159=\"\"),(1+T15)*D15,Import!M44159)","v":0},null,{"$f":"Import!M44182","v":0},null,{"$f":"Import!M44205","v":0},null,{"$f":"Import!M44228","v":0},null,{"$f":"Import!M44251","v":0},null,{"$f":"IF(OR(Import!M44274=0,Import!M44274=\"\"),(1+T15)*N15,Import!M44274)","v":0},null,{"$f":"IF(OR(Import!M44297=0,Import!M44297=\"\"),AF15,Import!M44297)","v":0}]
[null,{"$f":"IF($B$10=\"Bulgaria Leva\",\"United States Dollar\",\"Bulgaria Leva\")","v":"Bulgaria Leva"},null,{"$f":"Import!M44022","v":0},null,{"$f":"Import!M44045","v":0},null,{"$f":"Import!M44068","v":0},null,{"$f":"Import!M44091","v":0},null,{"$f":"Import!M44114","v":0},null,{"$f":"Import!M44137","v":0},null,0,null,0,null,{"$f":"IF($B$10=\"Euro\",IF((D16+F16+H16+J16+L16)>(N16+P16),0%,1.81%),IF((D16+F16+H16+J16+L16)>(N16+P16),0%,25%))","v":0.25},null,{"$f":"IF(OR(Import!M44160=0,Import!M44160=\"\"),(1+T16)*D16,Import!M44160)","v":0},null,{"$f":"Import!M44183","v":0},null,{"$f":"Import!M44206","v":0},null,{"$f":"Import!M44229","v":0},null,{"$f":"Import!M44252","v":0},null,{"$f":"IF(OR(Import!M44275=0,Import!M44275=\"\"),(1+T16)*N16,Import!M44275)","v":0},null,{"$f":"IF(OR(Import!M44298=0,Import!M44298=\"\"),AF16,Import!M44298)","v":0}]
[null,{"$f":"IF($B$10=\"West African CFA Francs\",\"United States Dollar\",\"West African CFA Francs\")","v":"West African CFA Francs"},null,{"$f":"Import!M44023","v":0},null,{"$f":"Import!M44046","v":0},null,{"$f":"Import!M44069","v":0},null,{"$f":"Import!M44092","v":0},null,{"$f":"Import!M44115","v":0},null,{"$f":"Import!M44138","v":0},null,0,null,0,null,{"$f":"IF($B$10=\"Euro\",IF((D17+F17+H17+J17+L17)>(N17+P17),0%,2.18%),IF((D17+F17+H17+J17+L17)>(N17+P17),0%,25%))","v":0.25},null,{"$f":"IF(OR(Import!M44161=0,Import!M44161=\"\"),(1+T17)*D17,Import!M44161)","v":0},null,{"$f":"Import!M44184","v":0},null,{"$f":"Import!M44207","v":0},null,{"$f":"Import!M44230","v":0},null,{"$f":"Import!M44253","v":0},null,{"$f":"IF(OR(Import!M44276=0,Import!M44276=\"\"),(1+T17)*N17,Import!M44276)","v":0},null,{"$f":"IF(OR(Import!M44299=0,Import!M44299=\"\"),AF17,Import!M44299)","v":0}]
[null,{"$f":"IF($B$10=\"Central African CFA Francs\",\"United States Dollar\",\"Central African CFA Francs\")","v":"Central African CFA Francs"},null,{"$f":"Import!M44024","v":0},null,{"$f":"Import!M44047","v":0},null,{"$f":"Import!M44070","v":0},null,{"$f":"Import!M44093","v":0},null,{"$f":"Import!M44116","v":0},null,{"$f":"Import!M44139","v":0},null,0,null,0,null,{"$f":"IF($B$10=\"Euro\",IF((D18+F18+H18+J18+L18)>(N18+P18),0%,1.96%),IF((D18+F18+H18+J18+L18)>(N18+P18),0%,25%))","v":0.25},null,{"$f":"IF(OR(Import!M44162=0,Import!M44162=\"\"),(1+T18)*D18,Import!M44162)","v":0},null,{"$f":"Import!M44185","v":0},null,{"$f":"Import!M44208","v":0},null,{"$f":"Import!M44231","v":0},null,{"$f":"Import!M44254","v":0},null,{"$f":"IF(OR(Import!M44277=0,Import!M44277=\"\"),(1+T18)*N18,Import!M44277)","v":0},null,{"$f":"IF(OR(Import!M44300=0,Import!M44300=\"\"),AF18,Import!M44300)","v":0}]
[null,{"$f":"IF($B$10=\"Comorian Francs\",\"United States Dollar\",\"Comorian Francs\")","v":"Comorian Francs"},null,{"$f":"Import!M44025","v":0},null,{"$f":"Import!M44048","v":0},null,{"$f":"Import!M44071","v":0},null,{"$f":"Import!M44094","v":0},null,{"$f":"Import!M44117","v":0},null,{"$f":"Import!M44140","v":0},null,0,null,0,null,{"$f":"IF($B$10=\"Euro\",IF((D19+F19+H19+J19+L19)>(N19+P19),0%,2%),IF((D19+F19+H19+J19+L19)>(N19+P19),0%,25%))","v":0.25},null,{"$f":"IF(OR(Import!M44163=0,Import!M44163=\"\"),(1+T19)*D19,Import!M44163)","v":0},null,{"$f":"Import!M44186","v":0},null,{"$f":"Import!M44209","v":0},null,{"$f":"Import!M44232","v":0},null,{"$f":"Import!M44255","v":0},null,{"$f":"IF(OR(Import!M44278=0,Import!M44278=\"\"),(1+T19)*N19,Import!M44278)","v":0},null,{"$f":"IF(OR(Import!M44301=0,Import!M44301=\"\"),AF19,Import!M44301)","v":0}]
[null,{"$f":"IF($B$10=\"United Kingdom Pounds\",\"United States Dollar\",\"United Kingdom Pounds\")","v":"United Kingdom Pounds"},null,{"$f":"Import!M44026","v":0},null,{"$f":"Import!M44049","v":0},null,{"$f":"Import!M44072","v":0},null,{"$f":"Import!M44095","v":0},null,{"$f":"Import!M44118","v":0},null,{"$f":"Import!M44141","v":0},null,0,null,0,null,{"$f":"IF((D20+F20+H20+J20+L20)>(N20+P20),0%,25%)","v":0.25},null,{"$f":"IF(OR(Import!M44164=0,Import!M44164=\"\"),(1+T20)*D20,Import!M44164)","v":0},null,{"$f":"Import!M44187","v":0},null,{"$f":"Import!M44210","v":0},null,{"$f":"Import!M44233","v":0},null,{"$f":"Import!M44256","v":0},null,{"$f":"IF(OR(Import!M44279=0,Import!M44279=\"\"),(1+T20)*N20,Import!M44279)","v":0},null,{"$f":"IF(OR(Import!M44302=0,Import!M44302=\"\"),AF20,Import!M44302)","v":0}]
[null,{"$f":"IF($B$10=\"Canada Dollars\",\"United States Dollar\",\"Canada Dollars\")","v":"Canada Dollars"},null,{"$f":"Import!M44027","v":0},null,{"$f":"Import!M44050","v":0},null,{"$f":"Import!M44073","v":0},null,{"$f":"Import!M44096","v":0},null,{"$f":"Import!M44119","v":0},null,{"$f":"Import!M44142","v":0},null,0,null,0,null,{"$f":"IF((D21+F21+H21+J21+L21)>(N21+P21),0%,25%)","v":0.25},null,{"$f":"IF(OR(Import!M44165=0,Import!M44165=\"\"),(1+T21)*D21,Import!M44165)","v":0},null,{"$f":"Import!M44188","v":0},null,{"$f":"Import!M44211","v":0},null,{"$f":"Import!M44234","v":0},null,{"$f":"Import!M44257","v":0},null,{"$f":"IF(OR(Import!M44280=0,Import!M44280=\"\"),(1+T21)*N21,Import!M44280)","v":0},null,{"$f":"IF(OR(Import!M44303=0,Import!M44303=\"\"),AF21,Import!M44303)","v":0}]
[null,{"$f":"IF($B$10=\"Japan Yen\",\"United States Dollar\",\"Japan Yen\")","v":"Japan Yen"},null,{"$f":"Import!M44028","v":0},null,{"$f":"Import!M44051","v":0},null,{"$f":"Import!M44074","v":0},null,{"$f":"Import!M44097","v":0},null,{"$f":"Import!M44120","v":0},null,{"$f":"Import!M44143","v":0},null,0,null,0,null,0.25,null,{"$f":"IF(OR(Import!M44166=0,Import!M44166=\"\"),(1+T22)*D22,Import!M44166)","v":0},null,{"$f":"Import!M44189","v":0},null,{"$f":"Import!M44212","v":0},null,{"$f":"Import!M44235","v":0},null,{"$f":"Import!M44258","v":0},null,{"$f":"IF(OR(Import!M44281=0,Import!M44281=\"\"),(1+T22)*N22,Import!M44281)","v":0},null,{"$f":"IF(OR(Import!M44304=0,Import!M44304=\"\"),AF22,Import!M44304)","v":0}]
[null,{"$f":"Import!M44006","v":"Other currency 1"},null,{"$f":"Import!M44029","v":0},null,{"$f":"Import!M44052","v":0},null,{"$f":"Import!M44075","v":0},null,{"$f":"Import!M44098","v":0},null,{"$f":"Import!M44121","v":0},null,{"$f":"Import!M44144","v":0},null,0,null,0,null,0.25,null,{"$f":"IF(OR(Import!M44167=0,Import!M44167=\"\"),(1+T23)*D23,Import!M44167)","v":0},null,{"$f":"Import!M44190","v":0},null,{"$f":"Import!M44213","v":0},null,{"$f":"Import!M44236","v":0},null,{"$f":"Import!M44259","v":0},null,{"$f":"IF(OR(Import!M44282=0,Import!M44282=\"\"),(1+T23)*N23,Import!M44282)","v":0},null,{"$f":"IF(OR(Import!M44305=0,Import!M44305=\"\"),AF23,Import!M44305)","v":0}]
[null,{"$f":"Import!M44007","v":"Other currency 2"},null,{"$f":"Import!M44030","v":0},null,{"$f":"Import!M44053","v":0},null,{"$f":"Import!M44076","v":0},null,{"$f":"Import!M44099","v":0},null,{"$f":"Import!M44122","v":0},null,{"$f":"Import!M44145","v":0},null,0,null,0,null,0.25,null,{"$f":"IF(OR(Import!M44168=0,Import!M44168=\"\"),(1+T24)*D24,Import!M44168)","v":0},null,{"$f":"Import!M44191","v":0},null,{"$f":"Import!M44214","v":0},null,{"$f":"Import!M44237","v":0},null,{"$f":"Import!M44260","v":0},null,{"$f":"IF(OR(Import!M44283=0,Import!M44283=\"\"),(1+T24)*N24,Import!M44283)","v":0},null,{"$f":"IF(OR(Import!M44306=0,Import!M44306=\"\"),AF24,Import!M44306)","v":0}]
[null,{"$f":"Import!M44008","v":"Other currency 3"},null,{"$f":"Import!M44031","v":0},null,{"$f":"Import!M44054","v":0},null,{"$f":"Import!M44077","v":0},null,{"$f":"Import!M44100","v":0},null,{"$f":"Import!M44123","v":0},null,{"$f":"Import!M44146","v":0},null,0,null,0,null,0.25,null,{"$f":"IF(OR(Import!M44169=0,Import!M44169=\"\"),(1+T25)*D25,Import!M44169)","v":0},null,{"$f":"Import!M44192","v":0},null,{"$f":"Import!M44215","v":0},null,{"$f":"Import!M44238","v":0},null,{"$f":"Import!M44261","v":0},null,{"$f":"IF(OR(Import!M44284=0,Import!M44284=\"\"),(1+T25)*N25,Import!M44284)","v":0},null,{"$f":"IF(OR(Import!M44307=0,Import!M44307=\"\"),AF25,Import!M44307)","v":0}]
[null,{"$f":"Import!M44009","v":"Other currency 4"},null,{"$f":"Import!M44032","v":0},null,{"$f":"Import!M44055","v":0},null,{"$f":"Import!M44078","v":0},null,{"$f":"Import!M44101","v":0},null,{"$f":"Import!M44124","v":0},null,{"$f":"Import!M44147","v":0},null,0,null,0,null,0.25,null,{"$f":"IF(OR(Import!M44170=0,Import!M44170=\"\"),(1+T26)*D26,Import!M44170)","v":0},null,{"$f":"Import!M44193","v":0},null,{"$f":"Import!M44216","v":0},null,{"$f":"Import!M44239","v":0},null,{"$f":"Import!M44262","v":0},null,{"$f":"IF(OR(Import!M44285=0,Import!M44285=\"\"),(1+T26)*N26,Import!M44285)","v":0},null,{"$f":"IF(OR(Import!M44308=0,Import!M44308=\"\"),AF26,Import!M44308)","v":0}]
[null,{"$f":"Import!M44010","v":"Other currency 5"},null,{"$f":"Import!M44033","v":0},null,{"$f":"Import!M44056","v":0},null,{"$f":"Import!M44079","v":0},null,{"$f":"Import!M44102","v":0},null,{"$f":"Import!M44125","v":0},null,{"$f":"Import!M44148","v":0},null,0,null,0,null,0.25,null,{"$f":"IF(OR(Import!M44171=0,Import!M44171=\"\"),(1+T27)*D27,Import!M44171)","v":0},null,{"$f":"Import!M44194","v":0},null,{"$f":"Import!M44217","v":0},null,{"$f":"Import!M44240","v":0},null,{"$f":"Import!M44263","v":0},null,{"$f":"IF(OR(Import!M44286=0,Import!M44286=\"\"),(1+T27)*N27,Import!M44286)","v":0},null,{"$f":"IF(OR(Import!M44309=0,Import!M44309=\"\"),AF27,Import!M44309)","v":0}]
[null,{"$f":"Import!M44011","v":"Other currency 6"},null,{"$f":"Import!M44034","v":0},null,{"$f":"Import!M44057","v":0},null,{"$f":"Import!M44080","v":0},null,{"$f":"Import!M44103","v":0},null,{"$f":"Import!M44126","v":0},null,{"$f":"Import!M44149","v":0},null,0,null,0,null,0.25,null,{"$f":"IF(OR(Import!M44172=0,Import!M44172=\"\"),(1+T28)*D28,Import!M44172)","v":0},null,{"$f":"Import!M44195","v":0},null,{"$f":"Import!M44218","v":0},null,{"$f":"Import!M44241","v":0},null,{"$f":"Import!M44264","v":0},null,{"$f":"IF(OR(Import!M44287=0,Import!M44287=\"\"),(1+T28)*N28,Import!M44287)","v":0},null,{"$f":"IF(OR(Import!M44310=0,Import!M44310=\"\"),AF28,Import!M44310)","v":0}]
[null,{"$f":"Import!M44012","v":"Other currency 7"},null,{"$f":"Import!M44035","v":0},null,{"$f":"Import!M44058","v":0},null,{"$f":"Import!M44081","v":0},null,{"$f":"Import!M44104","v":0},null,{"$f":"Import!M44127","v":0},null,{"$f":"Import!M44150","v":0},null,0,null,0,null,0.25,null,{"$f":"IF(OR(Import!M44173=0,Import!M44173=\"\"),(1+T29)*D29,Import!M44173)","v":0},null,{"$f":"Import!M44196","v":0},null,{"$f":"Import!M44219","v":0},null,{"$f":"Import!M44242","v":0},null,{"$f":"Import!M44265","v":0},null,{"$f":"IF(OR(Import!M44288=0,Import!M44288=\"\"),(1+T29)*N29,Import!M44288)","v":0},null,{"$f":"IF(OR(Import!M44311=0,Import!M44311=\"\"),AF29,Import!M44311)","v":0}]
[null,{"$f":"Import!M44013","v":"Other currency 8"},null,{"$f":"Import!M44036","v":0},null,{"$f":"Import!M44059","v":0},null,{"$f":"Import!M44082","v":0},null,{"$f":"Import!M44105","v":0},null,{"$f":"Import!M44128","v":0},null,{"$f":"Import!M44151","v":0},null,0,null,0,null,0.25,null,{"$f":"IF(OR(Import!M44174=0,Import!M44174=\"\"),(1+T30)*D30,Import!M44174)","v":0},null,{"$f":"Import!M44197","v":0},null,{"$f":"Import!M44220","v":0},null,{"$f":"Import!M44243","v":0},null,{"$f":"Import!M44266","v":0},null,{"$f":"IF(OR(Import!M44289=0,Import!M44289=\"\"),(1+T30)*N30,Import!M44289)","v":0},null,{"$f":"IF(OR(Import!M44312=0,Import!M44312=\"\"),AF30,Import!M44312)","v":0}]
[null,{"$f":"Import!M44014","v":"Other currency 9"},null,{"$f":"Import!M44037","v":0},null,{"$f":"Import!M44060","v":0},null,{"$f":"Import!M44083","v":0},null,{"$f":"Import!M44106","v":0},null,{"$f":"Import!M44129","v":0},null,{"$f":"Import!M44152","v":0},null,0,null,0,null,0.25,null,{"$f":"IF(OR(Import!M44175=0,Import!M44175=\"\"),(1+T31)*D31,Import!M44175)","v":0},null,{"$f":"Import!M44198","v":0},null,{"$f":"Import!M44221","v":0},null,{"$f":"Import!M44244","v":0},null,{"$f":"Import!M44267","v":0},null,{"$f":"IF(OR(Import!M44290=0,Import!M44290=\"\"),(1+T31)*N31,Import!M44290)","v":0},null,{"$f":"IF(OR(Import!M44313=0,Import!M44313=\"\"),AF31,Import!M44313)","v":0}]
[null,{"$f":"Import!M44015","v":"Other currency 10"},null,{"$f":"Import!M44038","v":0},null,{"$f":"Import!M44061","v":0},null,{"$f":"Import!M44084","v":0},null,{"$f":"Import!M44107","v":0},null,{"$f":"Import!M44130","v":0},null,{"$f":"Import!M44153","v":0},null,0,null,0,null,0.25,null,{"$f":"IF(OR(Import!M44176=0,Import!M44176=\"\"),(1+T32)*D32,Import!M44176)","v":0},null,{"$f":"Import!M44199","v":0},null,{"$f":"Import!M44222","v":0},null,{"$f":"Import!M44245","v":0},null,{"$f":"Import!M44268","v":0},null,{"$f":"IF(OR(Import!M44291=0,Import!M44291=\"\"),(1+T32)*N32,Import!M44291)","v":0},null,{"$f":"IF(OR(Import!M44314=0,Import!M44314=\"\"),AF32,Import!M44314)","v":0}]
[null,"Currency Total",null,{"$f":"SUM(D10:D32)","v":0},null,{"$f":"SUM(F10:F32)","v":0},null,{"$f":"SUM(H10:H32)","v":0},null,{"$f":"SUM(J10:J32)","v":0},null,{"$f":"SUM(L10:L32)","v":0},null,{"$f":"SUM(N10:N32)","v":0},null,null,null,null,null,null,null,{"$f":"SUM(V10:V32)","v":0},null,{"$f":"SUM(X10:X32)","v":0},null,{"$f":"SUM(Z10:Z32)","v":0},null,{"$f":"SUM(AB10:AB32)","v":0},null,{"$f":"SUM(AD10:AD32)","v":0},null,{"$f":"SUM(AF10:AF32)","v":0},null,{"$f":"SUM(AH10:AH32)","v":0}]
[]
[null,null,null,"Form 1EBS Line 15",null,null,null,null,null,null,null,null,null,"Form 1EBS Line 39"]
[null,"Balance Sheet Total",null,{"$f":"+'Form 1EBS'!F90","v":0},null,null,null,null,null,null,null,null,null,{"$f":"+'Form 1EBS'!F163","v":0}]
[null,"% of Balance Sheet Total",null,{"$f":"IF(D36=0,0,(SUM(D33:L33))/D36)","v":0},null,null,null,null,null,null,null,null,null,{"$f":"IF(N36=0,0,N33/N36)","v":0}]
[]
[null,"95% Minimum Test Met",null,{"$f":"IF(D36=0,\"Form 1EBS is Blank\",IF(D37<=95%,\"False\",IF(D37>100%,\"False\",\"True\")))","v":"Form 1EBS is Blank"},null,null,null,null,null,null,null,null,null,{"$f":"IF(N36=0,\"Form 1EBS is Blank\",IF(N37<=95%,\"False\",IF(N37>100%,\"False\",\"True\")))","v":"Form 1EBS is Blank"}]
[]
[null,null,null,"Liabilities",null,null,null,"ECR Charge",null,null,null,null,null,"Ratio",null,"Assessment*"]
[null,null,null,"Form 1EBS, Line 39",null,null,null,"Summary tab"]
[null,{"$f":"'Form 1EBS'!H7","v":"2022-12-31"},null,{"$f":"Import!M44315","v":0},null,null,null,{"$f":"Import!M44318","v":0},null,null,null,null,null,{"$f":"IF(H43=0,\"\",H43/D43)","v":""}]
[null,{"$f":"DATE(YEAR(B43)-1,MONTH(B43),DAY(B43))","v":"2021-12-31"},null,{"$f":"Import!M44316","v":0},null,null,null,{"$f":"Import!M44319","v":0},null,null,null,null,null,{"$f":"IF(H44=0,\"\",H44/D44)","v":""}]
[null,{"$f":"DATE(YEAR(B44)-1,MONTH(B44),DAY(B44))","v":"2020-12-31"},null,{"$f":"Import!M44317","v":0},null,null,null,{"$f":"Import!M44320","v":0},null,null,null,null,null,{"$f":"IF(H45=0,\"\",H45/D45)","v":""},null,{"$f":"IF(SUM(N43:N45)=0,IF(H43=0,0%,N43),MAX(,N43,AVERAGE(N43:N45)))","v":0}]
[]
[null,"*If there are no amounts for previous years, enter the results from the current year without taking currency risk into account into the prior year"]

{"sheet":"Schedule XXI","index":101,"n_rows":77,"n_cols":13,"rows_kept":77,"cut":false,"hidden":true,"merged":[[4,4,4,7],[4,9,4,12],[61,9,62,12]]}
[null,null,"SCHEDULE OF CONCENTRATION RISK",null,null,null,null,null,null,null,null,null,{"$f":"HYPERLINK(\"#'Index'!A1\",\"Return to Index\")","v":"Return to Index"}]
[null,null,{"$f":"'Company Information'!C7","v":"Enter Company Name"}]
[null,null,{"$f":"'Form 1EBS'!C3","v":"2023-12-31"},null,null,null,null,null,null,{"$f":"Import!E45287","v":0},null,"Enter # of Rows","SCHEDULE XXI"]
[null,null,{"$f":"IF(CONFIGURATION!$B$12>1,\" ['\"&MID(CONFIGURATION!$B$12,2,LEN(CONFIGURATION!$B$12))&\"s]\",\"\")&'Form 1EBS'!C4","v":" ['000s]United States Dollars"}]
[null,null,null,null,"Unconsolidated SFS",null,null,null,null,"EBS Valuation"]
[null,null,null,null,"(A)","(B)","(C)","(D)",null,"(E)","(F)","(G)","(H)"]
[null,null,"Name of Exposure",null,"Asset Type","Bond / Mortgage Loan Type","BSCR Rating","Asset Value",null,"Asset Type","Bond / Mortgage Loan Type","BSCR Rating","Asset Value"]
[null,1,{"$f":"Import!E45288","v":0},null,{"$f":"Import!E45338","v":"Select"},{"$f":"Import!E45388","v":"Select"},{"$f":"Import!E45438","v":"Select"},{"$f":"Import!E45488","v":0},null,{"$f":"Import!M45338","v":"Select"},{"$f":"Import!M45388","v":"Select"},{"$f":"Import!M45438","v":"Select"},{"$f":"Import!M45488","v":0}]
[null,{"$f":"B8+1","v":2},{"$f":"Import!E45289","v":0},null,{"$f":"Import!E45339","v":"Select"},{"$f":"Import!E45389","v":"Select"},{"$f":"Import!E45439","v":"Select"},{"$f":"Import!E45489","v":0},null,{"$f":"Import!M45339","v":"Select"},{"$f":"Import!M45389","v":"Select"},{"$f":"Import!M45439","v":"Select"},{"$f":"Import!M45489","v":0}]
[null,{"$f":"B9+1","v":3},{"$f":"Import!E45290","v":0},null,{"$f":"Import!E45340","v":"Select"},{"$f":"Import!E45390","v":"Select"},{"$f":"Import!E45440","v":"Select"},{"$f":"Import!E45490","v":0},null,{"$f":"Import!M45340","v":"Select"},{"$f":"Import!M45390","v":"Select"},{"$f":"Import!M45440","v":"Select"},{"$f":"Import!M45490","v":0}]
[null,4,{"$f":"Import!E45291","v":0},null,{"$f":"Import!E45341","v":"Select"},{"$f":"Import!E45391","v":"Select"},{"$f":"Import!E45441","v":"Select"},{"$f":"Import!E45491","v":0},null,{"$f":"Import!M45341","v":"Select"},{"$f":"Import!M45391","v":"Select"},{"$f":"Import!M45441","v":"Select"},{"$f":"Import!M45491","v":0}]
[null,5,{"$f":"Import!E45292","v":0},null,{"$f":"Import!E45342","v":"Select"},{"$f":"Import!E45392","v":"Select"},{"$f":"Import!E45442","v":"Select"},{"$f":"Import!E45492","v":0},null,{"$f":"Import!M45342","v":"Select"},{"$f":"Import!M45392","v":"Select"},{"$f":"Import!M45442","v":"Select"},{"$f":"Import!M45492","v":0}]
[null,6,{"$f":"Import!E45293","v":0},null,{"$f":"Import!E45343","v":"Select"},{"$f":"Import!E45393","v":"Select"},{"$f":"Import!E45443","v":"Select"},{"$f":"Import!E45493","v":0},null,{"$f":"Import!M45343","v":"Select"},{"$f":"Import!M45393","v":"Select"},{"$f":"Import!M45443","v":"Select"},{"$f":"Import!M45493","v":0}]
[null,7,{"$f":"Import!E45294","v":0},null,{"$f":"Import!E45344","v":"Select"},{"$f":"Import!E45394","v":"Select"},{"$f":"Import!E45444","v":"Select"},{"$f":"Import!E45494","v":0},null,{"$f":"Import!M45344","v":"Select"},{"$f":"Import!M45394","v":"Select"},{"$f":"Import!M45444","v":"Select"},{"$f":"Import!M45494","v":0}]
[null,8,{"$f":"Import!E45295","v":0},null,{"$f":"Import!E45345","v":"Select"},{"$f":"Import!E45395","v":"Select"},{"$f":"Import!E45445","v":"Select"},{"$f":"Import!E45495","v":0},null,{"$f":"Import!M45345","v":"Select"},{"$f":"Import!M45395","v":"Select"},{"$f":"Import!M45445","v":"Select"},{"$f":"Import!M45495","v":0}]
[null,9,{"$f":"Import!E45296","v":0},null,{"$f":"Import!E45346","v":"Select"},{"$f":"Import!E45396","v":"Select"},{"$f":"Import!E45446","v":"Select"},{"$f":"Import!E45496","v":0},null,{"$f":"Import!M45346","v":"Select"},{"$f":"Import!M45396","v":"Select"},{"$f":"Import!M45446","v":"Select"},{"$f":"Import!M45496","v":0}]
[null,10,{"$f":"Import!E45297","v":0},null,{"$f":"Import!E45347","v":"Select"},{"$f":"Import!E45397","v":"Select"},{"$f":"Import!E45447","v":"Select"},{"$f":"Import!E45497","v":0},null,{"$f":"Import!M45347","v":"Select"},{"$f":"Import!M45397","v":"Select"},{"$f":"Import!M45447","v":"Select"},{"$f":"Import!M45497","v":0}]
[null,11,{"$f":"Import!E45298","v":0},null,{"$f":"Import!E45348","v":"Select"},{"$f":"Import!E45398","v":"Select"},{"$f":"Import!E45448","v":"Select"},{"$f":"Import!E45498","v":0},null,{"$f":"Import!M45348","v":"Select"},{"$f":"Import!M45398","v":"Select"},{"$f":"Import!M45448","v":"Select"},{"$f":"Import!M45498","v":0}]
[null,12,{"$f":"Import!E45299","v":0},null,{"$f":"Import!E45349","v":"Select"},{"$f":"Import!E45399","v":"Select"},{"$f":"Import!E45449","v":"Select"},{"$f":"Import!E45499","v":0},null,{"$f":"Import!M45349","v":"Select"},{"$f":"Import!M45399","v":"Select"},{"$f":"Import!M45449","v":"Select"},{"$f":"Import!M45499","v":0}]
[null,13,{"$f":"Import!E45300","v":0},null,{"$f":"Import!E45350","v":"Select"},{"$f":"Import!E45400","v":"Select"},{"$f":"Import!E45450","v":"Select"},{"$f":"Import!E45500","v":0},null,{"$f":"Import!M45350","v":"Select"},{"$f":"Import!M45400","v":"Select"},{"$f":"Import!M45450","v":"Select"},{"$f":"Import!M45500","v":0}]
[null,14,{"$f":"Import!E45301","v":0},null,{"$f":"Import!E45351","v":"Select"},{"$f":"Import!E45401","v":"Select"},{"$f":"Import!E45451","v":"Select"},{"$f":"Import!E45501","v":0},null,{"$f":"Import!M45351","v":"Select"},{"$f":"Import!M45401","v":"Select"},{"$f":"Import!M45451","v":"Select"},{"$f":"Import!M45501","v":0}]
[null,15,{"$f":"Import!E45302","v":0},null,{"$f":"Import!E45352","v":"Select"},{"$f":"Import!E45402","v":"Select"},{"$f":"Import!E45452","v":"Select"},{"$f":"Import!E45502","v":0},null,{"$f":"Import!M45352","v":"Select"},{"$f":"Import!M45402","v":"Select"},{"$f":"Import!M45452","v":"Select"},{"$f":"Import!M45502","v":0}]
[null,16,{"$f":"Import!E45303","v":0},null,{"$f":"Import!E45353","v":"Select"},{"$f":"Import!E45403","v":"Select"},{"$f":"Import!E45453","v":"Select"},{"$f":"Import!E45503","v":0},null,{"$f":"Import!M45353","v":"Select"},{"$f":"Import!M45403","v":"Select"},{"$f":"Import!M45453","v":"Select"},{"$f":"Import!M45503","v":0}]
[null,17,{"$f":"Import!E45304","v":0},null,{"$f":"Import!E45354","v":"Select"},{"$f":"Import!E45404","v":"Select"},{"$f":"Import!E45454","v":"Select"},{"$f":"Import!E45504","v":0},null,{"$f":"Import!M45354","v":"Select"},{"$f":"Import!M45404","v":"Select"},{"$f":"Import!M45454","v":"Select"},{"$f":"Import!M45504","v":0}]
[null,18,{"$f":"Import!E45305","v":0},null,{"$f":"Import!E45355","v":"Select"},{"$f":"Import!E45405","v":"Select"},{"$f":"Import!E45455","v":"Select"},{"$f":"Import!E45505","v":0},null,{"$f":"Import!M45355","v":"Select"},{"$f":"Import!M45405","v":"Select"},{"$f":"Import!M45455","v":"Select"},{"$f":"Import!M45505","v":0}]
[null,19,{"$f":"Import!E45306","v":0},null,{"$f":"Import!E45356","v":"Select"},{"$f":"Import!E45406","v":"Select"},{"$f":"Import!E45456","v":"Select"},{"$f":"Import!E45506","v":0},null,{"$f":"Import!M45356","v":"Select"},{"$f":"Import!M45406","v":"Select"},{"$f":"Import!M45456","v":"Select"},{"$f":"Import!M45506","v":0}]
[null,20,{"$f":"Import!E45307","v":0},null,{"$f":"Import!E45357","v":"Select"},{"$f":"Import!E45407","v":"Select"},{"$f":"Import!E45457","v":"Select"},{"$f":"Import!E45507","v":0},null,{"$f":"Import!M45357","v":"Select"},{"$f":"Import!M45407","v":"Select"},{"$f":"Import!M45457","v":"Select"},{"$f":"Import!M45507","v":0}]
[null,21,{"$f":"Import!E45308","v":0},null,{"$f":"Import!E45358","v":"Select"},{"$f":"Import!E45408","v":"Select"},{"$f":"Import!E45458","v":"Select"},{"$f":"Import!E45508","v":0},null,{"$f":"Import!M45358","v":"Select"},{"$f":"Import!M45408","v":"Select"},{"$f":"Import!M45458","v":"Select"},{"$f":"Import!M45508","v":0}]
[null,22,{"$f":"Import!E45309","v":0},null,{"$f":"Import!E45359","v":"Select"},{"$f":"Import!E45409","v":"Select"},{"$f":"Import!E45459","v":"Select"},{"$f":"Import!E45509","v":0},null,{"$f":"Import!M45359","v":"Select"},{"$f":"Import!M45409","v":"Select"},{"$f":"Import!M45459","v":"Select"},{"$f":"Import!M45509","v":0}]
[null,23,{"$f":"Import!E45310","v":0},null,{"$f":"Import!E45360","v":"Select"},{"$f":"Import!E45410","v":"Select"},{"$f":"Import!E45460","v":"Select"},{"$f":"Import!E45510","v":0},null,{"$f":"Import!M45360","v":"Select"},{"$f":"Import!M45410","v":"Select"},{"$f":"Import!M45460","v":"Select"},{"$f":"Import!M45510","v":0}]
[null,24,{"$f":"Import!E45311","v":0},null,{"$f":"Import!E45361","v":"Select"},{"$f":"Import!E45411","v":"Select"},{"$f":"Import!E45461","v":"Select"},{"$f":"Import!E45511","v":0},null,{"$f":"Import!M45361","v":"Select"},{"$f":"Import!M45411","v":"Select"},{"$f":"Import!M45461","v":"Select"},{"$f":"Import!M45511","v":0}]
[null,25,{"$f":"Import!E45312","v":0},null,{"$f":"Import!E45362","v":"Select"},{"$f":"Import!E45412","v":"Select"},{"$f":"Import!E45462","v":"Select"},{"$f":"Import!E45512","v":0},null,{"$f":"Import!M45362","v":"Select"},{"$f":"Import!M45412","v":"Select"},{"$f":"Import!M45462","v":"Select"},{"$f":"Import!M45512","v":0}]
[null,26,{"$f":"Import!E45313","v":0},null,{"$f":"Import!E45363","v":"Select"},{"$f":"Import!E45413","v":"Select"},{"$f":"Import!E45463","v":"Select"},{"$f":"Import!E45513","v":0},null,{"$f":"Import!M45363","v":"Select"},{"$f":"Import!M45413","v":"Select"},{"$f":"Import!M45463","v":"Select"},{"$f":"Import!M45513","v":0}]
[null,27,{"$f":"Import!E45314","v":0},null,{"$f":"Import!E45364","v":"Select"},{"$f":"Import!E45414","v":"Select"},{"$f":"Import!E45464","v":"Select"},{"$f":"Import!E45514","v":0},null,{"$f":"Import!M45364","v":"Select"},{"$f":"Import!M45414","v":"Select"},{"$f":"Import!M45464","v":"Select"},{"$f":"Import!M45514","v":0}]
[null,28,{"$f":"Import!E45315","v":0},null,{"$f":"Import!E45365","v":"Select"},{"$f":"Import!E45415","v":"Select"},{"$f":"Import!E45465","v":"Select"},{"$f":"Import!E45515","v":0},null,{"$f":"Import!M45365","v":"Select"},{"$f":"Import!M45415","v":"Select"},{"$f":"Import!M45465","v":"Select"},{"$f":"Import!M45515","v":0}]
[null,29,{"$f":"Import!E45316","v":0},null,{"$f":"Import!E45366","v":"Select"},{"$f":"Import!E45416","v":"Select"},{"$f":"Import!E45466","v":"Select"},{"$f":"Import!E45516","v":0},null,{"$f":"Import!M45366","v":"Select"},{"$f":"Import!M45416","v":"Select"},{"$f":"Import!M45466","v":"Select"},{"$f":"Import!M45516","v":0}]
[null,30,{"$f":"Import!E45317","v":0},null,{"$f":"Import!E45367","v":"Select"},{"$f":"Import!E45417","v":"Select"},{"$f":"Import!E45467","v":"Select"},{"$f":"Import!E45517","v":0},null,{"$f":"Import!M45367","v":"Select"},{"$f":"Import!M45417","v":"Select"},{"$f":"Import!M45467","v":"Select"},{"$f":"Import!M45517","v":0}]
[null,31,{"$f":"Import!E45318","v":0},null,{"$f":"Import!E45368","v":"Select"},{"$f":"Import!E45418","v":"Select"},{"$f":"Import!E45468","v":"Select"},{"$f":"Import!E45518","v":0},null,{"$f":"Import!M45368","v":"Select"},{"$f":"Import!M45418","v":"Select"},{"$f":"Import!M45468","v":"Select"},{"$f":"Import!M45518","v":0}]
[null,32,{"$f":"Import!E45319","v":0},null,{"$f":"Import!E45369","v":"Select"},{"$f":"Import!E45419","v":"Select"},{"$f":"Import!E45469","v":"Select"},{"$f":"Import!E45519","v":0},null,{"$f":"Import!M45369","v":"Select"},{"$f":"Import!M45419","v":"Select"},{"$f":"Import!M45469","v":"Select"},{"$f":"Import!M45519","v":0}]
[null,33,{"$f":"Import!E45320","v":0},null,{"$f":"Import!E45370","v":"Select"},{"$f":"Import!E45420","v":"Select"},{"$f":"Import!E45470","v":"Select"},{"$f":"Import!E45520","v":0},null,{"$f":"Import!M45370","v":"Select"},{"$f":"Import!M45420","v":"Select"},{"$f":"Import!M45470","v":"Select"},{"$f":"Import!M45520","v":0}]
[null,34,{"$f":"Import!E45321","v":0},null,{"$f":"Import!E45371","v":"Select"},{"$f":"Import!E45421","v":"Select"},{"$f":"Import!E45471","v":"Select"},{"$f":"Import!E45521","v":0},null,{"$f":"Import!M45371","v":"Select"},{"$f":"Import!M45421","v":"Select"},{"$f":"Import!M45471","v":"Select"},{"$f":"Import!M45521","v":0}]
[null,35,{"$f":"Import!E45322","v":0},null,{"$f":"Import!E45372","v":"Select"},{"$f":"Import!E45422","v":"Select"},{"$f":"Import!E45472","v":"Select"},{"$f":"Import!E45522","v":0},null,{"$f":"Import!M45372","v":"Select"},{"$f":"Import!M45422","v":"Select"},{"$f":"Import!M45472","v":"Select"},{"$f":"Import!M45522","v":0}]
[null,36,{"$f":"Import!E45323","v":0},null,{"$f":"Import!E45373","v":"Select"},{"$f":"Import!E45423","v":"Select"},{"$f":"Import!E45473","v":"Select"},{"$f":"Import!E45523","v":0},null,{"$f":"Import!M45373","v":"Select"},{"$f":"Import!M45423","v":"Select"},{"$f":"Import!M45473","v":"Select"},{"$f":"Import!M45523","v":0}]
[null,37,{"$f":"Import!E45324","v":0},null,{"$f":"Import!E45374","v":"Select"},{"$f":"Import!E45424","v":"Select"},{"$f":"Import!E45474","v":"Select"},{"$f":"Import!E45524","v":0},null,{"$f":"Import!M45374","v":"Select"},{"$f":"Import!M45424","v":"Select"},{"$f":"Import!M45474","v":"Select"},{"$f":"Import!M45524","v":0}]
[null,38,{"$f":"Import!E45325","v":0},null,{"$f":"Import!E45375","v":"Select"},{"$f":"Import!E45425","v":"Select"},{"$f":"Import!E45475","v":"Select"},{"$f":"Import!E45525","v":0},null,{"$f":"Import!M45375","v":"Select"},{"$f":"Import!M45425","v":"Select"},{"$f":"Import!M45475","v":"Select"},{"$f":"Import!M45525","v":0}]
[null,39,{"$f":"Import!E45326","v":0},null,{"$f":"Import!E45376","v":"Select"},{"$f":"Import!E45426","v":"Select"},{"$f":"Import!E45476","v":"Select"},{"$f":"Import!E45526","v":0},null,{"$f":"Import!M45376","v":"Select"},{"$f":"Import!M45426","v":"Select"},{"$f":"Import!M45476","v":"Select"},{"$f":"Import!M45526","v":0}]
[null,40,{"$f":"Import!E45327","v":0},null,{"$f":"Import!E45377","v":"Select"},{"$f":"Import!E45427","v":"Select"},{"$f":"Import!E45477","v":"Select"},{"$f":"Import!E45527","v":0},null,{"$f":"Import!M45377","v":"Select"},{"$f":"Import!M45427","v":"Select"},{"$f":"Import!M45477","v":"Select"},{"$f":"Import!M45527","v":0}]
[null,41,{"$f":"Import!E45328","v":0},null,{"$f":"Import!E45378","v":"Select"},{"$f":"Import!E45428","v":"Select"},{"$f":"Import!E45478","v":"Select"},{"$f":"Import!E45528","v":0},null,{"$f":"Import!M45378","v":"Select"},{"$f":"Import!M45428","v":"Select"},{"$f":"Import!M45478","v":"Select"},{"$f":"Import!M45528","v":0}]
[null,42,{"$f":"Import!E45329","v":0},null,{"$f":"Import!E45379","v":"Select"},{"$f":"Import!E45429","v":"Select"},{"$f":"Import!E45479","v":"Select"},{"$f":"Import!E45529","v":0},null,{"$f":"Import!M45379","v":"Select"},{"$f":"Import!M45429","v":"Select"},{"$f":"Import!M45479","v":"Select"},{"$f":"Import!M45529","v":0}]
[null,43,{"$f":"Import!E45330","v":0},null,{"$f":"Import!E45380","v":"Select"},{"$f":"Import!E45430","v":"Select"},{"$f":"Import!E45480","v":"Select"},{"$f":"Import!E45530","v":0},null,{"$f":"Import!M45380","v":"Select"},{"$f":"Import!M45430","v":"Select"},{"$f":"Import!M45480","v":"Select"},{"$f":"Import!M45530","v":0}]
[null,44,{"$f":"Import!E45331","v":0},null,{"$f":"Import!E45381","v":"Select"},{"$f":"Import!E45431","v":"Select"},{"$f":"Import!E45481","v":"Select"},{"$f":"Import!E45531","v":0},null,{"$f":"Import!M45381","v":"Select"},{"$f":"Import!M45431","v":"Select"},{"$f":"Import!M45481","v":"Select"},{"$f":"Import!M45531","v":0}]
[null,45,{"$f":"Import!E45332","v":0},null,{"$f":"Import!E45382","v":"Select"},{"$f":"Import!E45432","v":"Select"},{"$f":"Import!E45482","v":"Select"},{"$f":"Import!E45532","v":0},null,{"$f":"Import!M45382","v":"Select"},{"$f":"Import!M45432","v":"Select"},{"$f":"Import!M45482","v":"Select"},{"$f":"Import!M45532","v":0}]
[null,46,{"$f":"Import!E45333","v":0},null,{"$f":"Import!E45383","v":"Select"},{"$f":"Import!E45433","v":"Select"},{"$f":"Import!E45483","v":"Select"},{"$f":"Import!E45533","v":0},null,{"$f":"Import!M45383","v":"Select"},{"$f":"Import!M45433","v":"Select"},{"$f":"Import!M45483","v":"Select"},{"$f":"Import!M45533","v":0}]
[null,47,{"$f":"Import!E45334","v":0},null,{"$f":"Import!E45384","v":"Select"},{"$f":"Import!E45434","v":"Select"},{"$f":"Import!E45484","v":"Select"},{"$f":"Import!E45534","v":0},null,{"$f":"Import!M45384","v":"Select"},{"$f":"Import!M45434","v":"Select"},{"$f":"Import!M45484","v":"Select"},{"$f":"Import!M45534","v":0}]
[null,48,{"$f":"Import!E45335","v":0},null,{"$f":"Import!E45385","v":"Select"},{"$f":"Import!E45435","v":"Select"},{"$f":"Import!E45485","v":"Select"},{"$f":"Import!E45535","v":0},null,{"$f":"Import!M45385","v":"Select"},{"$f":"Import!M45435","v":"Select"},{"$f":"Import!M45485","v":"Select"},{"$f":"Import!M45535","v":0}]
[null,49,{"$f":"Import!E45336","v":0},null,{"$f":"Import!E45386","v":"Select"},{"$f":"Import!E45436","v":"Select"},{"$f":"Import!E45486","v":"Select"},{"$f":"Import!E45536","v":0},null,{"$f":"Import!M45386","v":"Select"},{"$f":"Import!M45436","v":"Select"},{"$f":"Import!M45486","v":"Select"},{"$f":"Import!M45536","v":0}]
[null,50,{"$f":"Import!E45337","v":0},null,{"$f":"Import!E45387","v":"Select"},{"$f":"Import!E45437","v":"Select"},{"$f":"Import!E45487","v":"Select"},{"$f":"Import!E45537","v":0},null,{"$f":"Import!M45387","v":"Select"},{"$f":"Import!M45437","v":"Select"},{"$f":"Import!M45487","v":"Select"},{"$f":"Import!M45537","v":0}]
[null,null,"TOTAL CONCENTRATION RISK",null,null,null,null,{"$f":"SUM(H8:H57)","v":0},null,null,null,null,{"$f":"SUM(M8:M57)","v":0}]
[]
[null,null,"Asset Type",null,null,"Bond Types",null,"BSCR Rating Reference"]
[null,null,"Select",null,null,"Select",null,"Select"]
[null,null,"Cash and Cash Equivalent",null,null,"Corporate & Sovereign Bonds",null,"BSCR Rating 0",null,"Note if an insurer does not have any entities to consolidate, enter consolidated information only (This cell is editable for deletion)"]
[null,null,"BondTypes",null,null,"Residential Mortgage-Backed Securities",null,"BSCR Rating 1"]
[null,null,"Preferred Shares",null,null,"Commercial Mortgage-Backed Securities",null,"BSCR Rating 2"]
[null,null,"MortgageLoanTypes",null,null,"Bond Mutual Funds",null,"BSCR Rating 3"]
[null,null,"Common Stock and Mutual Funds",null,null,null,null,"BSCR Rating 4"]
[null,null,"Other Investments",null,null,"Mortgage Loan Categories",null,"BSCR Rating 5"]
[null,null,"Investment in Affiliates – Unregulated entities that conduct ancillary services",null,null,"Select",null,"BSCR Rating 6"]
[null,null,"Investment in Affiliates - Unregulated non-financial operating entities",null,null,"Insured/Guaranteed Mortgages",null,"BSCR Rating 7"]
[null,null,"Investment in Affiliates - Unregulated financial operating entities",null,null,"Other Commercial and Farm Mortgages",null,"BSCR Rating 8"]
[null,null,"Investment in Affiliates - Regulated non-insurance financial operating entities",null,null,"Other Residential Mortgages"]
[null,null,"Investment in Affiliates - Regulated insurance financial operating entities",null,null,"Mortgages Not In Good Standing"]
[null,null,"Advances to Affiliates - "]
[null,null,"Policy Loans"]
[null,null,"Real Estate: Occupied by company"]
[null,null,"Real Estate: Other properties"]
[null,null,"Collateral Loans"]

{"sheet":"Schedule XXIA","index":102,"n_rows":76,"n_cols":13,"rows_kept":76,"cut":false,"hidden":false,"merged":[[4,4,4,7],[4,9,4,12],[61,9,62,12]]}
[null,null,"SCHEDULE OF CONCENTRATION RISK",null,null,null,null,null,null,null,null,null,{"$f":"HYPERLINK(\"#'Index'!A1\",\"Return to Index\")","v":"Return to Index"}]
[null,null,{"$f":"'Company Information'!C7","v":"Enter Company Name"}]
[null,null,{"$f":" TEXT('Company Information'!C3,\"d mmmm yyyy\")","v":"31 December 2023"},null,null,null,null,null,null,{"$f":"Import!E44322","v":0},"Enter Number of Rows Required",null,"SCHEDULE XXIA"]
[null,null,{"$f":"IF(CONFIGURATION!$B$12>1,\" ['\"&MID(CONFIGURATION!$B$12,2,LEN(CONFIGURATION!$B$12))&\"s]\",\"\")&'Form 1EBS'!C4","v":" ['000s]United States Dollars"}]
[null,null,null,null,"Unconsolidated SFS",null,null,null,null,"EBS Valuation"]
[null,null,null,null,"(A)","(B)","(C)","(D)",null,"(E)","(F)","(G)","(H)"]
[null,null,"Name of Exposure",null,"Asset Type","Bond / Mortgage Loan Type","BSCR Rating","Asset Value",null,"Asset Type","Bond / Mortgage Loan Type","BSCR Rating","Asset Value"]
[null,1,{"$f":"Import!E44323","v":0},null,{"$f":"Import!E44373","v":"Select"},{"$f":"Import!E44423","v":"Select"},{"$f":"Import!E44473","v":"Select"},{"$f":"Import!E44523","v":0},null,{"$f":"Import!M44373","v":"Select"},{"$f":"Import!M44423","v":"Select"},{"$f":"Import!M44473","v":"Select"},{"$f":"Import!M44523","v":0}]
[null,{"$f":"B8+1","v":2},{"$f":"Import!E44324","v":0},null,{"$f":"Import!E44374","v":"Select"},{"$f":"Import!E44424","v":"Select"},{"$f":"Import!E44474","v":"Select"},{"$f":"Import!E44524","v":0},null,{"$f":"Import!M44374","v":"Select"},{"$f":"Import!M44424","v":"Select"},{"$f":"Import!M44474","v":"Select"},{"$f":"Import!M44524","v":0}]
[null,{"$f":"B9+1","v":3},{"$f":"Import!E44325","v":0},null,{"$f":"Import!E44375","v":"Select"},{"$f":"Import!E44425","v":"Select"},{"$f":"Import!E44475","v":"Select"},{"$f":"Import!E44525","v":0},null,{"$f":"Import!M44375","v":"Select"},{"$f":"Import!M44425","v":"Select"},{"$f":"Import!M44475","v":"Select"},{"$f":"Import!M44525","v":0}]
[null,4,{"$f":"Import!E44326","v":0},null,{"$f":"Import!E44376","v":"Select"},{"$f":"Import!E44426","v":"Select"},{"$f":"Import!E44476","v":"Select"},{"$f":"Import!E44526","v":0},null,{"$f":"Import!M44376","v":"Select"},{"$f":"Import!M44426","v":"Select"},{"$f":"Import!M44476","v":"Select"},{"$f":"Import!M44526","v":0}]
[null,5,{"$f":"Import!E44327","v":0},null,{"$f":"Import!E44377","v":"Select"},{"$f":"Import!E44427","v":"Select"},{"$f":"Import!E44477","v":"Select"},{"$f":"Import!E44527","v":0},null,{"$f":"Import!M44377","v":"Select"},{"$f":"Import!M44427","v":"Select"},{"$f":"Import!M44477","v":"Select"},{"$f":"Import!M44527","v":0}]
[null,6,{"$f":"Import!E44328","v":0},null,{"$f":"Import!E44378","v":"Select"},{"$f":"Import!E44428","v":"Select"},{"$f":"Import!E44478","v":"Select"},{"$f":"Import!E44528","v":0},null,{"$f":"Import!M44378","v":"Select"},{"$f":"Import!M44428","v":"Select"},{"$f":"Import!M44478","v":"Select"},{"$f":"Import!M44528","v":0}]
[null,7,{"$f":"Import!E44329","v":0},null,{"$f":"Import!E44379","v":"Select"},{"$f":"Import!E44429","v":"Select"},{"$f":"Import!E44479","v":"Select"},{"$f":"Import!E44529","v":0},null,{"$f":"Import!M44379","v":"Select"},{"$f":"Import!M44429","v":"Select"},{"$f":"Import!M44479","v":"Select"},{"$f":"Import!M44529","v":0}]
[null,8,{"$f":"Import!E44330","v":0},null,{"$f":"Import!E44380","v":"Select"},{"$f":"Import!E44430","v":"Select"},{"$f":"Import!E44480","v":"Select"},{"$f":"Import!E44530","v":0},null,{"$f":"Import!M44380","v":"Select"},{"$f":"Import!M44430","v":"Select"},{"$f":"Import!M44480","v":"Select"},{"$f":"Import!M44530","v":0}]
[null,9,{"$f":"Import!E44331","v":0},null,{"$f":"Import!E44381","v":"Select"},{"$f":"Import!E44431","v":"Select"},{"$f":"Import!E44481","v":"Select"},{"$f":"Import!E44531","v":0},null,{"$f":"Import!M44381","v":"Select"},{"$f":"Import!M44431","v":"Select"},{"$f":"Import!M44481","v":"Select"},{"$f":"Import!M44531","v":0}]
[null,10,{"$f":"Import!E44332","v":0},null,{"$f":"Import!E44382","v":"Select"},{"$f":"Import!E44432","v":"Select"},{"$f":"Import!E44482","v":"Select"},{"$f":"Import!E44532","v":0},null,{"$f":"Import!M44382","v":"Select"},{"$f":"Import!M44432","v":"Select"},{"$f":"Import!M44482","v":"Select"},{"$f":"Import!M44532","v":0}]
[null,11,{"$f":"Import!E44333","v":0},null,{"$f":"Import!E44383","v":"Select"},{"$f":"Import!E44433","v":"Select"},{"$f":"Import!E44483","v":"Select"},{"$f":"Import!E44533","v":0},null,{"$f":"Import!M44383","v":"Select"},{"$f":"Import!M44433","v":"Select"},{"$f":"Import!M44483","v":"Select"},{"$f":"Import!M44533","v":0}]
[null,12,{"$f":"Import!E44334","v":0},null,{"$f":"Import!E44384","v":"Select"},{"$f":"Import!E44434","v":"Select"},{"$f":"Import!E44484","v":"Select"},{"$f":"Import!E44534","v":0},null,{"$f":"Import!M44384","v":"Select"},{"$f":"Import!M44434","v":"Select"},{"$f":"Import!M44484","v":"Select"},{"$f":"Import!M44534","v":0}]
[null,13,{"$f":"Import!E44335","v":0},null,{"$f":"Import!E44385","v":"Select"},{"$f":"Import!E44435","v":"Select"},{"$f":"Import!E44485","v":"Select"},{"$f":"Import!E44535","v":0},null,{"$f":"Import!M44385","v":"Select"},{"$f":"Import!M44435","v":"Select"},{"$f":"Import!M44485","v":"Select"},{"$f":"Import!M44535","v":0}]
[null,14,{"$f":"Import!E44336","v":0},null,{"$f":"Import!E44386","v":"Select"},{"$f":"Import!E44436","v":"Select"},{"$f":"Import!E44486","v":"Select"},{"$f":"Import!E44536","v":0},null,{"$f":"Import!M44386","v":"Select"},{"$f":"Import!M44436","v":"Select"},{"$f":"Import!M44486","v":"Select"},{"$f":"Import!M44536","v":0}]
[null,15,{"$f":"Import!E44337","v":0},null,{"$f":"Import!E44387","v":"Select"},{"$f":"Import!E44437","v":"Select"},{"$f":"Import!E44487","v":"Select"},{"$f":"Import!E44537","v":0},null,{"$f":"Import!M44387","v":"Select"},{"$f":"Import!M44437","v":"Select"},{"$f":"Import!M44487","v":"Select"},{"$f":"Import!M44537","v":0}]
[null,16,{"$f":"Import!E44338","v":0},null,{"$f":"Import!E44388","v":"Select"},{"$f":"Import!E44438","v":"Select"},{"$f":"Import!E44488","v":"Select"},{"$f":"Import!E44538","v":0},null,{"$f":"Import!M44388","v":"Select"},{"$f":"Import!M44438","v":"Select"},{"$f":"Import!M44488","v":"Select"},{"$f":"Import!M44538","v":0}]
[null,17,{"$f":"Import!E44339","v":0},null,{"$f":"Import!E44389","v":"Select"},{"$f":"Import!E44439","v":"Select"},{"$f":"Import!E44489","v":"Select"},{"$f":"Import!E44539","v":0},null,{"$f":"Import!M44389","v":"Select"},{"$f":"Import!M44439","v":"Select"},{"$f":"Import!M44489","v":"Select"},{"$f":"Import!M44539","v":0}]
[null,18,{"$f":"Import!E44340","v":0},null,{"$f":"Import!E44390","v":"Select"},{"$f":"Import!E44440","v":"Select"},{"$f":"Import!E44490","v":"Select"},{"$f":"Import!E44540","v":0},null,{"$f":"Import!M44390","v":"Select"},{"$f":"Import!M44440","v":"Select"},{"$f":"Import!M44490","v":"Select"},{"$f":"Import!M44540","v":0}]
[null,19,{"$f":"Import!E44341","v":0},null,{"$f":"Import!E44391","v":"Select"},{"$f":"Import!E44441","v":"Select"},{"$f":"Import!E44491","v":"Select"},{"$f":"Import!E44541","v":0},null,{"$f":"Import!M44391","v":"Select"},{"$f":"Import!M44441","v":"Select"},{"$f":"Import!M44491","v":"Select"},{"$f":"Import!M44541","v":0}]
[null,20,{"$f":"Import!E44342","v":0},null,{"$f":"Import!E44392","v":"Select"},{"$f":"Import!E44442","v":"Select"},{"$f":"Import!E44492","v":"Select"},{"$f":"Import!E44542","v":0},null,{"$f":"Import!M44392","v":"Select"},{"$f":"Import!M44442","v":"Select"},{"$f":"Import!M44492","v":"Select"},{"$f":"Import!M44542","v":0}]
[null,21,{"$f":"Import!E44343","v":0},null,{"$f":"Import!E44393","v":"Select"},{"$f":"Import!E44443","v":"Select"},{"$f":"Import!E44493","v":"Select"},{"$f":"Import!E44543","v":0},null,{"$f":"Import!M44393","v":"Select"},{"$f":"Import!M44443","v":"Select"},{"$f":"Import!M44493","v":"Select"},{"$f":"Import!M44543","v":0}]
[null,22,{"$f":"Import!E44344","v":0},null,{"$f":"Import!E44394","v":"Select"},{"$f":"Import!E44444","v":"Select"},{"$f":"Import!E44494","v":"Select"},{"$f":"Import!E44544","v":0},null,{"$f":"Import!M44394","v":"Select"},{"$f":"Import!M44444","v":"Select"},{"$f":"Import!M44494","v":"Select"},{"$f":"Import!M44544","v":0}]
[null,23,{"$f":"Import!E44345","v":0},null,{"$f":"Import!E44395","v":"Select"},{"$f":"Import!E44445","v":"Select"},{"$f":"Import!E44495","v":"Select"},{"$f":"Import!E44545","v":0},null,{"$f":"Import!M44395","v":"Select"},{"$f":"Import!M44445","v":"Select"},{"$f":"Import!M44495","v":"Select"},{"$f":"Import!M44545","v":0}]
[null,24,{"$f":"Import!E44346","v":0},null,{"$f":"Import!E44396","v":"Select"},{"$f":"Import!E44446","v":"Select"},{"$f":"Import!E44496","v":"Select"},{"$f":"Import!E44546","v":0},null,{"$f":"Import!M44396","v":"Select"},{"$f":"Import!M44446","v":"Select"},{"$f":"Import!M44496","v":"Select"},{"$f":"Import!M44546","v":0}]
[null,25,{"$f":"Import!E44347","v":0},null,{"$f":"Import!E44397","v":"Select"},{"$f":"Import!E44447","v":"Select"},{"$f":"Import!E44497","v":"Select"},{"$f":"Import!E44547","v":0},null,{"$f":"Import!M44397","v":"Select"},{"$f":"Import!M44447","v":"Select"},{"$f":"Import!M44497","v":"Select"},{"$f":"Import!M44547","v":0}]
[null,26,{"$f":"Import!E44348","v":0},null,{"$f":"Import!E44398","v":"Select"},{"$f":"Import!E44448","v":"Select"},{"$f":"Import!E44498","v":"Select"},{"$f":"Import!E44548","v":0},null,{"$f":"Import!M44398","v":"Select"},{"$f":"Import!M44448","v":"Select"},{"$f":"Import!M44498","v":"Select"},{"$f":"Import!M44548","v":0}]
[null,27,{"$f":"Import!E44349","v":0},null,{"$f":"Import!E44399","v":"Select"},{"$f":"Import!E44449","v":"Select"},{"$f":"Import!E44499","v":"Select"},{"$f":"Import!E44549","v":0},null,{"$f":"Import!M44399","v":"Select"},{"$f":"Import!M44449","v":"Select"},{"$f":"Import!M44499","v":"Select"},{"$f":"Import!M44549","v":0}]
[null,28,{"$f":"Import!E44350","v":0},null,{"$f":"Import!E44400","v":"Select"},{"$f":"Import!E44450","v":"Select"},{"$f":"Import!E44500","v":"Select"},{"$f":"Import!E44550","v":0},null,{"$f":"Import!M44400","v":"Select"},{"$f":"Import!M44450","v":"Select"},{"$f":"Import!M44500","v":"Select"},{"$f":"Import!M44550","v":0}]
[null,29,{"$f":"Import!E44351","v":0},null,{"$f":"Import!E44401","v":"Select"},{"$f":"Import!E44451","v":"Select"},{"$f":"Import!E44501","v":"Select"},{"$f":"Import!E44551","v":0},null,{"$f":"Import!M44401","v":"Select"},{"$f":"Import!M44451","v":"Select"},{"$f":"Import!M44501","v":"Select"},{"$f":"Import!M44551","v":0}]
[null,30,{"$f":"Import!E44352","v":0},null,{"$f":"Import!E44402","v":"Select"},{"$f":"Import!E44452","v":"Select"},{"$f":"Import!E44502","v":"Select"},{"$f":"Import!E44552","v":0},null,{"$f":"Import!M44402","v":"Select"},{"$f":"Import!M44452","v":"Select"},{"$f":"Import!M44502","v":"Select"},{"$f":"Import!M44552","v":0}]
[null,31,{"$f":"Import!E44353","v":0},null,{"$f":"Import!E44403","v":"Select"},{"$f":"Import!E44453","v":"Select"},{"$f":"Import!E44503","v":"Select"},{"$f":"Import!E44553","v":0},null,{"$f":"Import!M44403","v":"Select"},{"$f":"Import!M44453","v":"Select"},{"$f":"Import!M44503","v":"Select"},{"$f":"Import!M44553","v":0}]
[null,32,{"$f":"Import!E44354","v":0},null,{"$f":"Import!E44404","v":"Select"},{"$f":"Import!E44454","v":"Select"},{"$f":"Import!E44504","v":"Select"},{"$f":"Import!E44554","v":0},null,{"$f":"Import!M44404","v":"Select"},{"$f":"Import!M44454","v":"Select"},{"$f":"Import!M44504","v":"Select"},{"$f":"Import!M44554","v":0}]
[null,33,{"$f":"Import!E44355","v":0},null,{"$f":"Import!E44405","v":"Select"},{"$f":"Import!E44455","v":"Select"},{"$f":"Import!E44505","v":"Select"},{"$f":"Import!E44555","v":0},null,{"$f":"Import!M44405","v":"Select"},{"$f":"Import!M44455","v":"Select"},{"$f":"Import!M44505","v":"Select"},{"$f":"Import!M44555","v":0}]
[null,34,{"$f":"Import!E44356","v":0},null,{"$f":"Import!E44406","v":"Select"},{"$f":"Import!E44456","v":"Select"},{"$f":"Import!E44506","v":"Select"},{"$f":"Import!E44556","v":0},null,{"$f":"Import!M44406","v":"Select"},{"$f":"Import!M44456","v":"Select"},{"$f":"Import!M44506","v":"Select"},{"$f":"Import!M44556","v":0}]
[null,35,{"$f":"Import!E44357","v":0},null,{"$f":"Import!E44407","v":"Select"},{"$f":"Import!E44457","v":"Select"},{"$f":"Import!E44507","v":"Select"},{"$f":"Import!E44557","v":0},null,{"$f":"Import!M44407","v":"Select"},{"$f":"Import!M44457","v":"Select"},{"$f":"Import!M44507","v":"Select"},{"$f":"Import!M44557","v":0}]
[null,36,{"$f":"Import!E44358","v":0},null,{"$f":"Import!E44408","v":"Select"},{"$f":"Import!E44458","v":"Select"},{"$f":"Import!E44508","v":"Select"},{"$f":"Import!E44558","v":0},null,{"$f":"Import!M44408","v":"Select"},{"$f":"Import!M44458","v":"Select"},{"$f":"Import!M44508","v":"Select"},{"$f":"Import!M44558","v":0}]
[null,37,{"$f":"Import!E44359","v":0},null,{"$f":"Import!E44409","v":"Select"},{"$f":"Import!E44459","v":"Select"},{"$f":"Import!E44509","v":"Select"},{"$f":"Import!E44559","v":0},null,{"$f":"Import!M44409","v":"Select"},{"$f":"Import!M44459","v":"Select"},{"$f":"Import!M44509","v":"Select"},{"$f":"Import!M44559","v":0}]
[null,38,{"$f":"Import!E44360","v":0},null,{"$f":"Import!E44410","v":"Select"},{"$f":"Import!E44460","v":"Select"},{"$f":"Import!E44510","v":"Select"},{"$f":"Import!E44560","v":0},null,{"$f":"Import!M44410","v":"Select"},{"$f":"Import!M44460","v":"Select"},{"$f":"Import!M44510","v":"Select"},{"$f":"Import!M44560","v":0}]
[null,39,{"$f":"Import!E44361","v":0},null,{"$f":"Import!E44411","v":"Select"},{"$f":"Import!E44461","v":"Select"},{"$f":"Import!E44511","v":"Select"},{"$f":"Import!E44561","v":0},null,{"$f":"Import!M44411","v":"Select"},{"$f":"Import!M44461","v":"Select"},{"$f":"Import!M44511","v":"Select"},{"$f":"Import!M44561","v":0}]
[null,40,{"$f":"Import!E44362","v":0},null,{"$f":"Import!E44412","v":"Select"},{"$f":"Import!E44462","v":"Select"},{"$f":"Import!E44512","v":"Select"},{"$f":"Import!E44562","v":0},null,{"$f":"Import!M44412","v":"Select"},{"$f":"Import!M44462","v":"Select"},{"$f":"Import!M44512","v":"Select"},{"$f":"Import!M44562","v":0}]
[null,41,{"$f":"Import!E44363","v":0},null,{"$f":"Import!E44413","v":"Select"},{"$f":"Import!E44463","v":"Select"},{"$f":"Import!E44513","v":"Select"},{"$f":"Import!E44563","v":0},null,{"$f":"Import!M44413","v":"Select"},{"$f":"Import!M44463","v":"Select"},{"$f":"Import!M44513","v":"Select"},{"$f":"Import!M44563","v":0}]
[null,42,{"$f":"Import!E44364","v":0},null,{"$f":"Import!E44414","v":"Select"},{"$f":"Import!E44464","v":"Select"},{"$f":"Import!E44514","v":"Select"},{"$f":"Import!E44564","v":0},null,{"$f":"Import!M44414","v":"Select"},{"$f":"Import!M44464","v":"Select"},{"$f":"Import!M44514","v":"Select"},{"$f":"Import!M44564","v":0}]
[null,43,{"$f":"Import!E44365","v":0},null,{"$f":"Import!E44415","v":"Select"},{"$f":"Import!E44465","v":"Select"},{"$f":"Import!E44515","v":"Select"},{"$f":"Import!E44565","v":0},null,{"$f":"Import!M44415","v":"Select"},{"$f":"Import!M44465","v":"Select"},{"$f":"Import!M44515","v":"Select"},{"$f":"Import!M44565","v":0}]
[null,44,{"$f":"Import!E44366","v":0},null,{"$f":"Import!E44416","v":"Select"},{"$f":"Import!E44466","v":"Select"},{"$f":"Import!E44516","v":"Select"},{"$f":"Import!E44566","v":0},null,{"$f":"Import!M44416","v":"Select"},{"$f":"Import!M44466","v":"Select"},{"$f":"Import!M44516","v":"Select"},{"$f":"Import!M44566","v":0}]
[null,45,{"$f":"Import!E44367","v":0},null,{"$f":"Import!E44417","v":"Select"},{"$f":"Import!E44467","v":"Select"},{"$f":"Import!E44517","v":"Select"},{"$f":"Import!E44567","v":0},null,{"$f":"Import!M44417","v":"Select"},{"$f":"Import!M44467","v":"Select"},{"$f":"Import!M44517","v":"Select"},{"$f":"Import!M44567","v":0}]
[null,46,{"$f":"Import!E44368","v":0},null,{"$f":"Import!E44418","v":"Select"},{"$f":"Import!E44468","v":"Select"},{"$f":"Import!E44518","v":"Select"},{"$f":"Import!E44568","v":0},null,{"$f":"Import!M44418","v":"Select"},{"$f":"Import!M44468","v":"Select"},{"$f":"Import!M44518","v":"Select"},{"$f":"Import!M44568","v":0}]
[null,47,{"$f":"Import!E44369","v":0},null,{"$f":"Import!E44419","v":"Select"},{"$f":"Import!E44469","v":"Select"},{"$f":"Import!E44519","v":"Select"},{"$f":"Import!E44569","v":0},null,{"$f":"Import!M44419","v":"Select"},{"$f":"Import!M44469","v":"Select"},{"$f":"Import!M44519","v":"Select"},{"$f":"Import!M44569","v":0}]
[null,48,{"$f":"Import!E44370","v":0},null,{"$f":"Import!E44420","v":"Select"},{"$f":"Import!E44470","v":"Select"},{"$f":"Import!E44520","v":"Select"},{"$f":"Import!E44570","v":0},null,{"$f":"Import!M44420","v":"Select"},{"$f":"Import!M44470","v":"Select"},{"$f":"Import!M44520","v":"Select"},{"$f":"Import!M44570","v":0}]
[null,49,{"$f":"Import!E44371","v":0},null,{"$f":"Import!E44421","v":"Select"},{"$f":"Import!E44471","v":"Select"},{"$f":"Import!E44521","v":"Select"},{"$f":"Import!E44571","v":0},null,{"$f":"Import!M44421","v":"Select"},{"$f":"Import!M44471","v":"Select"},{"$f":"Import!M44521","v":"Select"},{"$f":"Import!M44571","v":0}]
[null,50,{"$f":"Import!E44372","v":0},null,{"$f":"Import!E44422","v":"Select"},{"$f":"Import!E44472","v":"Select"},{"$f":"Import!E44522","v":"Select"},{"$f":"Import!E44572","v":0},null,{"$f":"Import!M44422","v":"Select"},{"$f":"Import!M44472","v":"Select"},{"$f":"Import!M44522","v":"Select"},{"$f":"Import!M44572","v":0}]
[null,null,"TOTAL CONCENTRATION RISK",null,null,null,null,{"$f":"SUM(H8:H57)","v":0},null,null,null,null,{"$f":"SUM(M8:M57)","v":0}]
[]
[null,null,"Asset Type",null,null,"Bond Types",null,"BSCR Rating Reference"]
[null,null,"Select",null,null,"Select",null,"Select"]
[null,null,"Cash and Cash Equivalent",null,null,"Corporate & Sovereign Bonds",null,"BSCR Rating 0",null,"Note if an insurer does not have any entities to consolidate, enter consolidated information only (This cell is editable for deletion)"]
[null,null,"BondTypes",null,null,"Residential Mortgage-Backed Securities",null,"BSCR Rating 1"]
[null,null,"Preferred Shares",null,null,"Commercial Mortgage-Backed Securities",null,"BSCR Rating 2"]
[null,null,"MortgageLoanTypes",null,null,"Bond Mutual Funds",null,"BSCR Rating 3"]
[null,null,"Infrastructure (Non-affiliate holdings, non-duration based)",null,null,null,null,"BSCR Rating 4"]
[null,null,"Listed Equity Securities in Developed Markets",null,null,"Mortgage Loan Categories",null,"BSCR Rating 5"]
[null,null,"Other Equities",null,null,"Select",null,"BSCR Rating 6"]
[null,null,"Strategic Holdings",null,null,"Insured/Guaranteed Mortgages",null,"BSCR Rating 7"]
[null,null,"Duration Based",null,null,"Other Commercial and Farm Mortgages",null,"BSCR Rating 8"]
[null,null,"Letters of Credit",null,null,"Other Residential Mortgages"]
[null,null,"Advances to Affiliates - ",null,null,"Mortgages Not In Good Standing"]
[null,null,"Policy Loans"]
[null,null,"Equity Real Estate 1"]
[null,null,"Equity Real Estate 2"]
[null,null,"Collateral Loans"]

{"sheet":"Schedule XXIII","index":103,"n_rows":56,"n_cols":22,"rows_kept":56,"cut":false,"hidden":false,"merged":[[2,4,3,4],[4,4,4,21],[5,12,5,21],[6,4,6,5],[5,4,5,10],[6,12,6,13],[6,15,6,16],[31,4,31,5],[31,12,31,13],[31,15,31,16],[29,4,29,21],[30,12,30,21],[30,4,30,10]]}
[null,null,"SCHEDULE OF INTEREST RATE SENSITIVE ASSETS AND LIABILITIES",null,null,null,null,null,null,null,null,null,null,null,null,null,null,null,null,null,null,{"$f":"HYPERLINK(\"#'Index'!A1\",\"Return to Index\")","v":"Return to Index"}]
[null,null,{"$f":"'Company Information'!C7","v":"Enter Company Name"}]
[null,null,{"$f":" TEXT('Company Information'!C3,\"d mmmm yyyy\")","v":"31 December 2023"},null,null,null,null,null,null,null,null,null,null,null,null,null,null,null,null,null,null,"SCHEDULE XXIII"]
[null,null,{"$f":"IF(CONFIGURATION!$B$12>1,\" ['\"&MID(CONFIGURATION!$B$12,2,LEN(CONFIGURATION!$B$12))&\"s]\",\"\")&'Form 1EBS'!C4","v":" ['000s]United States Dollars"}]
[null,null,null,null,"INTEREST RATE DOWN SHOCK"]
[null,null,null,null,"Exposures other than derivatives",null,null,null,null,null,null,null,"Derivative exposures"]
[null,null,"Currency",null,"Assets",null,null,"Liabilities","Liabilities without Management Actions",null,"Liabilities with Management Actions",null,"Assets - Qualifying as held for risk-mitigation purposes",null,null,"Assets - Not Qualifying as held for risk-mitigation purposes",null,null,"Liabilities","Liabilities without Management Actions",null,"Liabilities with Management Actions"]
[null,null,null,null,"Before Shock","After Shock",null,"Before Shock","After Shock",null,"After Shock",null,"Before Shock","After Shock",null,"Before Shock","After Shock",null,"Before Shock","After Shock",null,"After Shock"]
[null,null,null,null,"(A)","(B)",null,"(C)","(D)",null,"(E)",null,"(F)","(G)",null,"(H)","(I)",null,"(J)","(K)",null,"(L)"]
[null,1,"United States Dollars",null,{"$f":"Import!M44585","v":0},{"$f":"Import!M44604","v":0},null,{"$f":"Import!M44623","v":0},{"$f":"Import!M44642","v":0},null,{"$f":"Import!M44661","v":0},null,{"$f":"Import!M44680","v":0},{"$f":"Import!M44699","v":0},null,{"$f":"Import!M44718","v":0},{"$f":"Import!M44737","v":0},null,{"$f":"Import!M44756","v":0},{"$f":"Import!M44775","v":0},null,{"$f":"Import!M44794","v":0}]
[null,{"$f":"B10+1","v":2},"Euro",null,{"$f":"Import!M44586","v":0},{"$f":"Import!M44605","v":0},null,{"$f":"Import!M44624","v":0},{"$f":"Import!M44643","v":0},null,{"$f":"Import!M44662","v":0},null,{"$f":"Import!M44681","v":0},{"$f":"Import!M44700","v":0},null,{"$f":"Import!M44719","v":0},{"$f":"Import!M44738","v":0},null,{"$f":"Import!M44757","v":0},{"$f":"Import!M44776","v":0},null,{"$f":"Import!M44795","v":0}]
[null,{"$f":"B11+1","v":3},"United Kingdom Pounds",null,{"$f":"Import!M44587","v":0},{"$f":"Import!M44606","v":0},null,{"$f":"Import!M44625","v":0},{"$f":"Import!M44644","v":0},null,{"$f":"Import!M44663","v":0},null,{"$f":"Import!M44682","v":0},{"$f":"Import!M44701","v":0},null,{"$f":"Import!M44720","v":0},{"$f":"Import!M44739","v":0},null,{"$f":"Import!M44758","v":0},{"$f":"Import!M44777","v":0},null,{"$f":"Import!M44796","v":0}]
[null,4,"Japan Yen",null,{"$f":"Import!M44588","v":0},{"$f":"Import!M44607","v":0},null,{"$f":"Import!M44626","v":0},{"$f":"Import!M44645","v":0},null,{"$f":"Import!M44664","v":0},null,{"$f":"Import!M44683","v":0},{"$f":"Import!M44702","v":0},null,{"$f":"Import!M44721","v":0},{"$f":"Import!M44740","v":0},null,{"$f":"Import!M44759","v":0},{"$f":"Import!M44778","v":0},null,{"$f":"Import!M44797","v":0}]
[null,5,"Canada Dollars",null,{"$f":"Import!M44589","v":0},{"$f":"Import!M44608","v":0},null,{"$f":"Import!M44627","v":0},{"$f":"Import!M44646","v":0},null,{"$f":"Import!M44665","v":0},null,{"$f":"Import!M44684","v":0},{"$f":"Import!M44703","v":0},null,{"$f":"Import!M44722","v":0},{"$f":"Import!M44741","v":0},null,{"$f":"Import!M44760","v":0},{"$f":"Import!M44779","v":0},null,{"$f":"Import!M44798","v":0}]
[null,6,"Swiss Francs",null,{"$f":"Import!M44590","v":0},{"$f":"Import!M44609","v":0},null,{"$f":"Import!M44628","v":0},{"$f":"Import!M44647","v":0},null,{"$f":"Import!M44666","v":0},null,{"$f":"Import!M44685","v":0},{"$f":"Import!M44704","v":0},null,{"$f":"Import!M44723","v":0},{"$f":"Import!M44742","v":0},null,{"$f":"Import!M44761","v":0},{"$f":"Import!M44780","v":0},null,{"$f":"Import!M44799","v":0}]
[null,7,"Australia Dollar",null,{"$f":"Import!M44591","v":0},{"$f":"Import!M44610","v":0},null,{"$f":"Import!M44629","v":0},{"$f":"Import!M44648","v":0},null,{"$f":"Import!M44667","v":0},null,{"$f":"Import!M44686","v":0},{"$f":"Import!M44705","v":0},null,{"$f":"Import!M44724","v":0},{"$f":"Import!M44743","v":0},null,{"$f":"Import!M44762","v":0},{"$f":"Import!M44781","v":0},null,{"$f":"Import!M44800","v":0}]
[null,8,"New Zealand Dollar",null,{"$f":"Import!M44592","v":0},{"$f":"Import!M44611","v":0},null,{"$f":"Import!M44630","v":0},{"$f":"Import!M44649","v":0},null,{"$f":"Import!M44668","v":0},null,{"$f":"Import!M44687","v":0},{"$f":"Import!M44706","v":0},null,{"$f":"Import!M44725","v":0},{"$f":"Import!M44744","v":0},null,{"$f":"Import!M44763","v":0},{"$f":"Import!M44782","v":0},null,{"$f":"Import!M44801","v":0}]
[null,9,{"$f":"Import!M44575","v":"Other currency 1"},null,{"$f":"Import!M44593","v":0},{"$f":"Import!M44612","v":0},null,{"$f":"Import!M44631","v":0},{"$f":"Import!M44650","v":0},null,{"$f":"Import!M44669","v":0},null,{"$f":"Import!M44688","v":0},{"$f":"Import!M44707","v":0},null,{"$f":"Import!M44726","v":0},{"$f":"Import!M44745","v":0},null,{"$f":"Import!M44764","v":0},{"$f":"Import!M44783","v":0},null,{"$f":"Import!M44802","v":0}]
[null,10,{"$f":"Import!M44576","v":"Other currency 2"},null,{"$f":"Import!M44594","v":0},{"$f":"Import!M44613","v":0},null,{"$f":"Import!M44632","v":0},{"$f":"Import!M44651","v":0},null,{"$f":"Import!M44670","v":0},null,{"$f":"Import!M44689","v":0},{"$f":"Import!M44708","v":0},null,{"$f":"Import!M44727","v":0},{"$f":"Import!M44746","v":0},null,{"$f":"Import!M44765","v":0},{"$f":"Import!M44784","v":0},null,{"$f":"Import!M44803","v":0}]
[null,11,{"$f":"Import!M44577","v":"Other currency 3"},null,{"$f":"Import!M44595","v":0},{"$f":"Import!M44614","v":0},null,{"$f":"Import!M44633","v":0},{"$f":"Import!M44652","v":0},null,{"$f":"Import!M44671","v":0},null,{"$f":"Import!M44690","v":0},{"$f":"Import!M44709","v":0},null,{"$f":"Import!M44728","v":0},{"$f":"Import!M44747","v":0},null,{"$f":"Import!M44766","v":0},{"$f":"Import!M44785","v":0},null,{"$f":"Import!M44804","v":0}]
[null,12,{"$f":"Import!M44578","v":"Other currency 4"},null,{"$f":"Import!M44596","v":0},{"$f":"Import!M44615","v":0},null,{"$f":"Import!M44634","v":0},{"$f":"Import!M44653","v":0},null,{"$f":"Import!M44672","v":0},null,{"$f":"Import!M44691","v":0},{"$f":"Import!M44710","v":0},null,{"$f":"Import!M44729","v":0},{"$f":"Import!M44748","v":0},null,{"$f":"Import!M44767","v":0},{"$f":"Import!M44786","v":0},null,{"$f":"Import!M44805","v":0}]
[null,13,{"$f":"Import!M44579","v":"Other currency 5"},null,{"$f":"Import!M44597","v":0},{"$f":"Import!M44616","v":0},null,{"$f":"Import!M44635","v":0},{"$f":"Import!M44654","v":0},null,{"$f":"Import!M44673","v":0},null,{"$f":"Import!M44692","v":0},{"$f":"Import!M44711","v":0},null,{"$f":"Import!M44730","v":0},{"$f":"Import!M44749","v":0},null,{"$f":"Import!M44768","v":0},{"$f":"Import!M44787","v":0},null,{"$f":"Import!M44806","v":0}]
[null,14,{"$f":"Import!M44580","v":"Other currency 6"},null,{"$f":"Import!M44598","v":0},{"$f":"Import!M44617","v":0},null,{"$f":"Import!M44636","v":0},{"$f":"Import!M44655","v":0},null,{"$f":"Import!M44674","v":0},null,{"$f":"Import!M44693","v":0},{"$f":"Import!M44712","v":0},null,{"$f":"Import!M44731","v":0},{"$f":"Import!M44750","v":0},null,{"$f":"Import!M44769","v":0},{"$f":"Import!M44788","v":0},null,{"$f":"Import!M44807","v":0}]
[null,15,{"$f":"Import!M44581","v":"Other currency 7"},null,{"$f":"Import!M44599","v":0},{"$f":"Import!M44618","v":0},null,{"$f":"Import!M44637","v":0},{"$f":"Import!M44656","v":0},null,{"$f":"Import!M44675","v":0},null,{"$f":"Import!M44694","v":0},{"$f":"Import!M44713","v":0},null,{"$f":"Import!M44732","v":0},{"$f":"Import!M44751","v":0},null,{"$f":"Import!M44770","v":0},{"$f":"Import!M44789","v":0},null,{"$f":"Import!M44808","v":0}]
[null,16,{"$f":"Import!M44582","v":"Other currency 8"},null,{"$f":"Import!M44600","v":0},{"$f":"Import!M44619","v":0},null,{"$f":"Import!M44638","v":0},{"$f":"Import!M44657","v":0},null,{"$f":"Import!M44676","v":0},null,{"$f":"Import!M44695","v":0},{"$f":"Import!M44714","v":0},null,{"$f":"Import!M44733","v":0},{"$f":"Import!M44752","v":0},null,{"$f":"Import!M44771","v":0},{"$f":"Import!M44790","v":0},null,{"$f":"Import!M44809","v":0}]
[null,17,{"$f":"Import!M44583","v":"Other currency 9"},null,{"$f":"Import!M44601","v":0},{"$f":"Import!M44620","v":0},null,{"$f":"Import!M44639","v":0},{"$f":"Import!M44658","v":0},null,{"$f":"Import!M44677","v":0},null,{"$f":"Import!M44696","v":0},{"$f":"Import!M44715","v":0},null,{"$f":"Import!M44734","v":0},{"$f":"Import!M44753","v":0},null,{"$f":"Import!M44772","v":0},{"$f":"Import!M44791","v":0},null,{"$f":"Import!M44810","v":0}]
[null,18,{"$f":"Import!M44584","v":"Other currency 10"},null,{"$f":"Import!M44602","v":0},{"$f":"Import!M44621","v":0},null,{"$f":"Import!M44640","v":0},{"$f":"Import!M44659","v":0},null,{"$f":"Import!M44678","v":0},null,{"$f":"Import!M44697","v":0},{"$f":"Import!M44716","v":0},null,{"$f":"Import!M44735","v":0},{"$f":"Import!M44754","v":0},null,{"$f":"Import!M44773","v":0},{"$f":"Import!M44792","v":0},null,{"$f":"Import!M44811","v":0}]
[null,19,"IR Down Shock Total",null,{"$f":"SUM(E10:E27)","v":0},{"$f":"SUM(F10:F27)","v":0},null,{"$f":"SUM(H10:H27)","v":0},{"$f":"SUM(I10:I27)","v":0},null,{"$f":"SUM(K10:K27)","v":0},null,{"$f":"SUM(M10:M27)","v":0},{"$f":"SUM(N10:N27)","v":0},null,{"$f":"SUM(P10:P27)","v":0},{"$f":"SUM(Q10:Q27)","v":0},null,{"$f":"SUM(S10:S27)","v":0},{"$f":"SUM(T10:T27)","v":0},null,{"$f":"SUM(V10:V27)","v":0}]
[]
[null,null,null,null,"INTEREST RATE UP SHOCK"]
[null,null,null,null,"Exposures other than derivatives",null,null,null,null,null,null,null,"Derivative exposures"]
[null,null,"Currency",null,"Assets",null,null,"Liabilities","Liabilities without Management Actions",null,"Liabilities with Management Actions",null,"Assets - Qualifying as held for risk-mitigation purposes",null,null,"Assets - Not Qualifying as held for risk-mitigation purposes",null,null,"Liabilities","Liabilities without Management Actions",null,"Liabilities with Management Actions"]
[null,null,null,null,"Before Shock","After Shock",null,"Before Shock","After Shock",null,"After Shock",null,"Before Shock","After Shock",null,"Before Shock","After Shock",null,"Before Shock","After Shock",null,"After Shock"]
[null,null,null,null,"(A)","(B)",null,"(C)","(D)",null,"(E)",null,"(F)","(G)",null,"(H)","(I)",null,"(J)","(K)",null,"(L)"]
[null,{"$f":"B28+1","v":20},"United States Dollars",null,{"$f":"Import!M44823","v":0},{"$f":"Import!M44842","v":0},null,{"$f":"Import!M44861","v":0},{"$f":"Import!M44880","v":0},null,{"$f":"Import!M44899","v":0},null,{"$f":"Import!M44918","v":0},{"$f":"Import!M44937","v":0},null,{"$f":"Import!M44956","v":0},{"$f":"Import!M44975","v":0},null,{"$f":"Import!M44994","v":0},{"$f":"Import!M45013","v":0},null,{"$f":"Import!M45032","v":0}]
[null,{"$f":"B35+1","v":21},"Euro",null,{"$f":"Import!M44824","v":0},{"$f":"Import!M44843","v":0},null,{"$f":"Import!M44862","v":0},{"$f":"Import!M44881","v":0},null,{"$f":"Import!M44900","v":0},null,{"$f":"Import!M44919","v":0},{"$f":"Import!M44938","v":0},null,{"$f":"Import!M44957","v":0},{"$f":"Import!M44976","v":0},null,{"$f":"Import!M44995","v":0},{"$f":"Import!M45014","v":0},null,{"$f":"Import!M45033","v":0}]
[null,{"$f":"B36+1","v":22},"United Kingdom Pounds",null,{"$f":"Import!M44825","v":0},{"$f":"Import!M44844","v":0},null,{"$f":"Import!M44863","v":0},{"$f":"Import!M44882","v":0},null,{"$f":"Import!M44901","v":0},null,{"$f":"Import!M44920","v":0},{"$f":"Import!M44939","v":0},null,{"$f":"Import!M44958","v":0},{"$f":"Import!M44977","v":0},null,{"$f":"Import!M44996","v":0},{"$f":"Import!M45015","v":0},null,{"$f":"Import!M45034","v":0}]
[null,23,"Japan Yen",null,{"$f":"Import!M44826","v":0},{"$f":"Import!M44845","v":0},null,{"$f":"Import!M44864","v":0},{"$f":"Import!M44883","v":0},null,{"$f":"Import!M44902","v":0},null,{"$f":"Import!M44921","v":0},{"$f":"Import!M44940","v":0},null,{"$f":"Import!M44959","v":0},{"$f":"Import!M44978","v":0},null,{"$f":"Import!M44997","v":0},{"$f":"Import!M45016","v":0},null,{"$f":"Import!M45035","v":0}]
[null,24,"Canada Dollars",null,{"$f":"Import!M44827","v":0},{"$f":"Import!M44846","v":0},null,{"$f":"Import!M44865","v":0},{"$f":"Import!M44884","v":0},null,{"$f":"Import!M44903","v":0},null,{"$f":"Import!M44922","v":0},{"$f":"Import!M44941","v":0},null,{"$f":"Import!M44960","v":0},{"$f":"Import!M44979","v":0},null,{"$f":"Import!M44998","v":0},{"$f":"Import!M45017","v":0},null,{"$f":"Import!M45036","v":0}]
[null,25,"Swiss Francs",null,{"$f":"Import!M44828","v":0},{"$f":"Import!M44847","v":0},null,{"$f":"Import!M44866","v":0},{"$f":"Import!M44885","v":0},null,{"$f":"Import!M44904","v":0},null,{"$f":"Import!M44923","v":0},{"$f":"Import!M44942","v":0},null,{"$f":"Import!M44961","v":0},{"$f":"Import!M44980","v":0},null,{"$f":"Import!M44999","v":0},{"$f":"Import!M45018","v":0},null,{"$f":"Import!M45037","v":0}]
[null,26,"Australia Dollar",null,{"$f":"Import!M44829","v":0},{"$f":"Import!M44848","v":0},null,{"$f":"Import!M44867","v":0},{"$f":"Import!M44886","v":0},null,{"$f":"Import!M44905","v":0},null,{"$f":"Import!M44924","v":0},{"$f":"Import!M44943","v":0},null,{"$f":"Import!M44962","v":0},{"$f":"Import!M44981","v":0},null,{"$f":"Import!M45000","v":0},{"$f":"Import!M45019","v":0},null,{"$f":"Import!M45038","v":0}]
[null,27,"New Zealand Dollar",null,{"$f":"Import!M44830","v":0},{"$f":"Import!M44849","v":0},null,{"$f":"Import!M44868","v":0},{"$f":"Import!M44887","v":0},null,{"$f":"Import!M44906","v":0},null,{"$f":"Import!M44925","v":0},{"$f":"Import!M44944","v":0},null,{"$f":"Import!M44963","v":0},{"$f":"Import!M44982","v":0},null,{"$f":"Import!M45001","v":0},{"$f":"Import!M45020","v":0},null,{"$f":"Import!M45039","v":0}]
[null,28,{"$f":"Import!M44813","v":"Other currency 1"},null,{"$f":"Import!M44831","v":0},{"$f":"Import!M44850","v":0},null,{"$f":"Import!M44869","v":0},{"$f":"Import!M44888","v":0},null,{"$f":"Import!M44907","v":0},null,{"$f":"Import!M44926","v":0},{"$f":"Import!M44945","v":0},null,{"$f":"Import!M44964","v":0},{"$f":"Import!M44983","v":0},null,{"$f":"Import!M45002","v":0},{"$f":"Import!M45021","v":0},null,{"$f":"Import!M45040","v":0}]
[null,29,{"$f":"Import!M44814","v":"Other currency 2"},null,{"$f":"Import!M44832","v":0},{"$f":"Import!M44851","v":0},null,{"$f":"Import!M44870","v":0},{"$f":"Import!M44889","v":0},null,{"$f":"Import!M44908","v":0},null,{"$f":"Import!M44927","v":0},{"$f":"Import!M44946","v":0},null,{"$f":"Import!M44965","v":0},{"$f":"Import!M44984","v":0},null,{"$f":"Import!M45003","v":0},{"$f":"Import!M45022","v":0},null,{"$f":"Import!M45041","v":0}]
[null,30,{"$f":"Import!M44815","v":"Other currency 3"},null,{"$f":"Import!M44833","v":0},{"$f":"Import!M44852","v":0},null,{"$f":"Import!M44871","v":0},{"$f":"Import!M44890","v":0},null,{"$f":"Import!M44909","v":0},null,{"$f":"Import!M44928","v":0},{"$f":"Import!M44947","v":0},null,{"$f":"Import!M44966","v":0},{"$f":"Import!M44985","v":0},null,{"$f":"Import!M45004","v":0},{"$f":"Import!M45023","v":0},null,{"$f":"Import!M45042","v":0}]
[null,31,{"$f":"Import!M44816","v":"Other currency 4"},null,{"$f":"Import!M44834","v":0},{"$f":"Import!M44853","v":0},null,{"$f":"Import!M44872","v":0},{"$f":"Import!M44891","v":0},null,{"$f":"Import!M44910","v":0},null,{"$f":"Import!M44929","v":0},{"$f":"Import!M44948","v":0},null,{"$f":"Import!M44967","v":0},{"$f":"Import!M44986","v":0},null,{"$f":"Import!M45005","v":0},{"$f":"Import!M45024","v":0},null,{"$f":"Import!M45043","v":0}]
[null,32,{"$f":"Import!M44817","v":"Other currency 5"},null,{"$f":"Import!M44835","v":0},{"$f":"Import!M44854","v":0},null,{"$f":"Import!M44873","v":0},{"$f":"Import!M44892","v":0},null,{"$f":"Import!M44911","v":0},null,{"$f":"Import!M44930","v":0},{"$f":"Import!M44949","v":0},null,{"$f":"Import!M44968","v":0},{"$f":"Import!M44987","v":0},null,{"$f":"Import!M45006","v":0},{"$f":"Import!M45025","v":0},null,{"$f":"Import!M45044","v":0}]
[null,33,{"$f":"Import!M44818","v":"Other currency 6"},null,{"$f":"Import!M44836","v":0},{"$f":"Import!M44855","v":0},null,{"$f":"Import!M44874","v":0},{"$f":"Import!M44893","v":0},null,{"$f":"Import!M44912","v":0},null,{"$f":"Import!M44931","v":0},{"$f":"Import!M44950","v":0},null,{"$f":"Import!M44969","v":0},{"$f":"Import!M44988","v":0},null,{"$f":"Import!M45007","v":0},{"$f":"Import!M45026","v":0},null,{"$f":"Import!M45045","v":0}]
[null,34,{"$f":"Import!M44819","v":"Other currency 7"},null,{"$f":"Import!M44837","v":0},{"$f":"Import!M44856","v":0},null,{"$f":"Import!M44875","v":0},{"$f":"Import!M44894","v":0},null,{"$f":"Import!M44913","v":0},null,{"$f":"Import!M44932","v":0},{"$f":"Import!M44951","v":0},null,{"$f":"Import!M44970","v":0},{"$f":"Import!M44989","v":0},null,{"$f":"Import!M45008","v":0},{"$f":"Import!M45027","v":0},null,{"$f":"Import!M45046","v":0}]
[null,35,{"$f":"Import!M44820","v":"Other currency 8"},null,{"$f":"Import!M44838","v":0},{"$f":"Import!M44857","v":0},null,{"$f":"Import!M44876","v":0},{"$f":"Import!M44895","v":0},null,{"$f":"Import!M44914","v":0},null,{"$f":"Import!M44933","v":0},{"$f":"Import!M44952","v":0},null,{"$f":"Import!M44971","v":0},{"$f":"Import!M44990","v":0},null,{"$f":"Import!M45009","v":0},{"$f":"Import!M45028","v":0},null,{"$f":"Import!M45047","v":0}]
[null,36,{"$f":"Import!M44821","v":"Other currency 9"},null,{"$f":"Import!M44839","v":0},{"$f":"Import!M44858","v":0},null,{"$f":"Import!M44877","v":0},{"$f":"Import!M44896","v":0},null,{"$f":"Import!M44915","v":0},null,{"$f":"Import!M44934","v":0},{"$f":"Import!M44953","v":0},null,{"$f":"Import!M44972","v":0},{"$f":"Import!M44991","v":0},null,{"$f":"Import!M45010","v":0},{"$f":"Import!M45029","v":0},null,{"$f":"Import!M45048","v":0}]
[null,37,{"$f":"Import!M44822","v":"Other currency 10"},null,{"$f":"Import!M44840","v":0},{"$f":"Import!M44859","v":0},null,{"$f":"Import!M44878","v":0},{"$f":"Import!M44897","v":0},null,{"$f":"Import!M44916","v":0},null,{"$f":"Import!M44935","v":0},{"$f":"Import!M44954","v":0},null,{"$f":"Import!M44973","v":0},{"$f":"Import!M44992","v":0},null,{"$f":"Import!M45011","v":0},{"$f":"Import!M45030","v":0},null,{"$f":"Import!M45049","v":0}]
[null,38,"IR UP Shock Total",null,{"$f":"SUM(E35:E52)","v":0},{"$f":"SUM(F35:F52)","v":0},null,{"$f":"SUM(H35:H52)","v":0},{"$f":"SUM(I35:I52)","v":0},null,{"$f":"SUM(K35:K52)","v":0},null,{"$f":"SUM(M35:M52)","v":0},{"$f":"SUM(N35:N52)","v":0},null,{"$f":"SUM(P35:P52)","v":0},{"$f":"SUM(Q35:Q52)","v":0},null,{"$f":"SUM(S35:S52)","v":0},{"$f":"SUM(T35:T52)","v":0},null,{"$f":"SUM(V35:V52)","v":0}]
[]
[null,null,"Interest Rate Check",null,{"$f":"IF(ROUND(E28-E53,0)=0,\"Yes\",\"No\")","v":"Yes"},null,null,{"$f":"IF(ROUND(H28-H53,0)=0,\"Yes\",\"No\")","v":"Yes"},null,null,null,null,{"$f":"IF(ROUND(M28-M53,0)=0,\"Yes\",\"No\")","v":"Yes"},null,null,{"$f":"IF(ROUND(P28-P53,0)=0,\"Yes\",\"No\")","v":"Yes"},null,null,{"$f":"IF(ROUND(S28-S53,0)=0,\"Yes\",\"No\")","v":"Yes"}]
[null,null,"Difference",null,{"$f":"ROUND(E28-E53,0)","v":0},null,null,{"$f":"ROUND(H28-H53,0)","v":0},null,null,null,null,{"$f":"ROUND(M28-M53,0)","v":0},null,null,{"$f":"ROUND(P28-P53,0)","v":0},null,null,{"$f":"ROUND(S28-S53,0)","v":0}]

{"sheet":"Corp Gov","index":104,"n_rows":19,"n_cols":4,"rows_kept":19,"cut":false,"hidden":false,"merged":[[4,1,4,3],[19,1,19,3],[18,1,18,4]]}
[null,"CORPORATE GOVERNANCE",null,{"$f":"HYPERLINK(\"#'Index'!A1\",\"Return to Index\")","v":"Return to Index"}]
[null,{"$f":"'Company Information'!C7","v":"Enter Company Name"}]
[null,{"$f":" TEXT('Company Information'!C3,\"d mmmm yyyy\")","v":"31 December 2023"}]
[]
[null,"The insurer is to review the following statements below.  The insurer is to place an “X” in the column “Implemented” where the Corporate Governance function meets the criteria (200 points for each fulfilled criteria).  The worksheet will automatically aggregate all scores."]
[]
[null,"The Board of Directors:"]
[]
[null,"Description","Implemented","Score"]
[null,{"$f":"IF('Company Information'!$F$11=\"Class 3A\",\"Sets risk policies, practices and tolerance limits for all material foreseeable operational risks at least annually \",\"Sets risk policies, practices and tolerance limits for all material foreseeable operational risks at least annually and ensures they are communicated to relevant business units\")","v":"Sets risk policies, practices and tolerance limits for all material foreseeable operational risks at least annually "},null,{"$f":"IF(C10=\"\",Import!I45052,IF(C10=\"X\", 200, 0))","v":0}]
[null,"Ensures they are communicated to relevant business units",null,{"$f":"IF(C11=\"\",Import!I45053,IF(C11=\"X\", 200, 0))","v":0}]
[null,"Monitors adherence to operational risk tolerance limits more regularly than annually",null,{"$f":"IF(C12=\"\",Import!I45054,IF(C12=\"X\", 200, 0))","v":0}]
[null,"Receives, at least annually, reports on the effectiveness of material operational risk internal controls as well as management’s plans to address related weaknesses",null,{"$f":"IF(C13=\"\",Import!I45055,IF(C13=\"X\", 200, 0))","v":0}]
[null,"Ensures that systems and/or procedures are in place to identify, report and promptly address internal control deficiencies related to operational risks",null,{"$f":"IF(C14=\"\",Import!I45056,IF(C14=\"X\", 200, 0))","v":0}]
[null,"Promotes full, open and timely disclosure from senior management on all significant issues related to operational risk",null,{"$f":"IF(C15=\"\",Import!I45057,IF(C15=\"X\", 200, 0))","v":0}]
[null,"Ensures that periodic independent reviews of the risk management function are performed and receives the findings of the review",null,{"$f":"IF(C16=\"\",Import!I45058,IF(C16=\"X\", 200, 0))","v":0}]
[null,null,null,{"$f":"SUM(D10:D16)","v":0}]
[]
[null,"Comments (optionally, the insurer may provide comments in the box below to support its responses above):"]

{"sheet":"Risk Man","index":105,"n_rows":20,"n_cols":4,"rows_kept":20,"cut":false,"hidden":false,"merged":[[5,1,5,3],[20,1,20,3]]}
[null,"RISK MANAGEMENT FUNCTION",null,{"$f":"HYPERLINK(\"#'Index'!A1\",\"Return to Index\")","v":"Return to Index"}]
[]
[null,{"$f":"'Company Information'!C7","v":"Enter Company Name"}]
[null,{"$f":" TEXT('Company Information'!C3,\"d mmmm yyyy\")","v":"31 December 2023"},null,{"$f":"IF('Company Information'!$F$11=\"Class 3A\",200,150)","v":200}]
[]
[null,{"$f":"\"The insurer is to review the following statements below.  The insurer is to place an X in the column Implemented where the Risk Management function meets the criteria (\"&D4 &\" points for each fulfilled criteria).  The worksheet will automatically aggregate all scores.\"","v":"The insurer is to review the following statements below.  The insurer is to place an X in the column Implemented where the Risk Management function meets the criteria (200 points for each fulfilled criteria).  The worksheet will automatically aggregate all scores."}]
[]
[null,"The Risk Management Function:"]
[]
[null,"Description","Implemented","Score"]
[null,"Is independent of other operational units and has direct access to the Board of Directors",null,{"$f":"IF(C11=\"\",Import!I45059,IF('Company Information'!$F$11=\"Class 3A\",IF(C11=\"X\", 200, 0),IF(C11=\"X\", 150, 0)))","v":0}]
[null,"Is entrenched in strategic planning, decision making and budgeting process",null,{"$f":"IF(C12=\"\",Import!I45060,IF('Company Information'!$F$11=\"Class 3A\",IF(C12=\"X\", 200, 0),IF(C12=\"X\", 150, 0)))","v":0}]
[null,"Ensures that the risk management procedures and policies are well documented and approved by the Board of Directors",null,{"$f":"IF(C13=\"\",Import!I45061,IF('Company Information'!$F$11=\"Class 3A\",IF(C13=\"X\", 200, 0),IF(C13=\"X\", 150, 0)))","v":0}]
[null,"Ensures the risk management policies and procedures are communicated throughout the organisation.",null,{"$f":"IF(C14=\"\",Import!I45062,IF('Company Information'!$F$11=\"Class 3A\",IF(C14=\"X\", 200, 0),IF(C14=\"X\", 150, 0)))","v":0}]
[null,"Reviews operational risk management processes and procedures at least annually",null,{"$f":"IF(C15=\"\",Import!I45063,IF('Company Information'!$F$11=\"Class 3A\",IF(C15=\"X\", 200, 0),IF(C15=\"X\", 150, 0)))","v":0}]
[null,"Ensures that loss events arising from operational risks are documented and loss event data is integrated into enterprise risk management ",null,{"$f":"IF(C16=\"\",Import!I45064,IF('Company Information'!$F$11=\"Class 3A\",IF(C16=\"X\", 200, 0),IF(C16=\"X\", 150, 0)))","v":0}]
[null,"Documents its risk management recommendations for operational units, ensures that deficiencies have remedial plans and progress on the execution of such plans are reported to the Board of Directors at least annually",null,{"$f":"IF(C17=\"\",Import!I45065,IF('Company Information'!$F$11=\"Class 3A\",IF(C17=\"X\", 200, 0),IF(C17=\"X\", 150, 0)))","v":0}]
[null,null,null,{"$f":"SUM(D11:D17)","v":0}]
[]
[null,"Comments (optionally, the insurer may provide comments in the box below to support its responses above):"]

{"sheet":"Identification","index":106,"n_rows":40,"n_cols":14,"rows_kept":40,"cut":false,"hidden":true,"merged":[[2,1,2,3],[1,1,1,3],[21,1,21,12],[12,1,12,2],[12,3,13,3],[12,4,12,12],[20,1,20,7],[4,1,4,12],[6,1,6,10],[6,11,6,12]]}
[null,"RISK IDENTIFICATION",null,null,null,null,null,null,null,null,null,null,{"$f":"HYPERLINK(\"#'Index'!A1\",\"Return to Index\")","v":"Return to Index"}]
[null,{"$f":"'Company Information'!C7","v":"Enter Company Name"}]
[null,{"$f":" TEXT('Company Information'!C3,\"d mmmm yyyy\")","v":"31 December 2023"}]
[]
[null,"The insurer is to answer the following question.  If the answer to the question is \"No\" then the insurer does not have to complete the matrix/grid.  If the answer to the question is \"Yes\" then the insurer is to identify the stage of progression of each Operational Risk Area based upon the Dimension descriptor.  The insurer is then to input an “X” in the grid corresponding to the stage in the matrix table under the relevant Operational Risk Area."]
[]
[null,"Has your company taken steps to identify material risks arising from the Operational Risk Areas identified below? (Y/N) "]
[]
[null,"If \"Y\", identify the stage of each Operational Risk Area and input an \"X\" in the appropriate grid under each area."]
[]
[null,"Risk Identification Processes are:"]
[]
[null,"Progression",null,"Dimension","Operational Risk Areas"]
[null,"Stage","Scoring",null,"Fraud","Human Resources","Outsourcing","Distribution Channels","Business Processes","Business Continuity","Information Systems","Compliance","Total (Si)"]
[null,1,50,"“ad hoc”"]
[null,2,100,"Implemented but not standardized across the organization"]
[null,3,150,"Implemented, well documented policies and procedures that are understood by relevant staff, and standardized across the entire organization"]
[null,4,200,"In addition to Stage 3, processes are reviewed at least annually with the view to assessing effectiveness and introducing improvements"]
[null,null,null,null,{"$f":"IF(COUNTA(E15:E18)=0,Import!$I45066,IF(E15=\"X\", 50, IF(E16=\"X\", 100, IF(E17=\"X\", 150, IF(E18=\"X\", 200, 0)))))","v":0},{"$f":"IF(COUNTA(F15:F18)=0,Import!$I45067,IF(F15=\"X\", 50, IF(F16=\"X\", 100, IF(F17=\"X\", 150, IF(F18=\"X\", 200, 0)))))","v":0},{"$f":"IF(COUNTA(G15:G18)=0,Import!$I45068,IF(G15=\"X\", 50, IF(G16=\"X\", 100, IF(G17=\"X\", 150, IF(G18=\"X\", 200, 0)))))","v":0},{"$f":"IF(COUNTA(H15:H18)=0,Import!$I45069,IF(H15=\"X\", 50, IF(H16=\"X\", 100, IF(H17=\"X\", 150, IF(H18=\"X\", 200, 0)))))","v":0},{"$f":"IF(COUNTA(I15:I18)=0,Import!$I45070,IF(I15=\"X\", 50, IF(I16=\"X\", 100, IF(I17=\"X\", 150, IF(I18=\"X\", 200, 0)))))","v":0},{"$f":"IF(COUNTA(J15:J18)=0,Import!$I45071,IF(J15=\"X\", 50, IF(J16=\"X\", 100, IF(J17=\"X\", 150, IF(J18=\"X\", 200, 0)))))","v":0},{"$f":"IF(COUNTA(K15:K18)=0,Import!$I45072,IF(K15=\"X\", 50, IF(K16=\"X\", 100, IF(K17=\"X\", 150, IF(K18=\"X\", 200, 0)))))","v":0},{"$f":"IF(COUNTA(L15:L18)=0,Import!$I45073,IF(L15=\"X\", 50, IF(L16=\"X\", 100, IF(L17=\"X\", 150, IF(L18=\"X\", 200, 0)))))","v":0},{"$f":"SUM(E19:L19)","v":0},{"$f":"IF(M19>1600, \"ERR\", \"OK\")","v":"OK"}]
[]
[null,"Comments (optionally, the insurer may provide comments in the box below to support its responses above):"]
[]
[]
[]
[]
[]
[]
[]
[]
[]
[]
[]
[]
[]
[]
[]
[]
[]
[null,null,null,null,"Yes"]
[null,null,null,null,"No"]

{"sheet":"Measurement","index":107,"n_rows":40,"n_cols":14,"rows_kept":40,"cut":false,"hidden":true,"merged":[[1,1,1,3],[20,1,20,7],[21,1,23,12],[4,1,4,12],[6,10,6,11],[12,1,12,2],[12,3,13,3],[12,4,12,12],[2,1,2,3]]}
[null,"RISK MEASUREMENT",null,null,null,null,null,null,null,null,null,null,{"$f":"HYPERLINK(\"#'Index'!A1\",\"Return to Index\")","v":"Return to Index"}]
[null,{"$f":"'Company Information'!C7","v":"Enter Company Name"}]
[null,{"$f":" TEXT('Company Information'!C3,\"d mmmm yyyy\")","v":"31 December 2023"}]
[]
[null,"The insurer is to answer the following question.  If the answer to the question is \"No\" then the insurer does not have to complete the matrix/grid.  If the answer to the question is \"Yes\" then the insurer is to identify the stage of progression of each Operational Risk Area based upon the Dimension descriptor.  The insurer is then to input an “X” in the grid corresponding to the stage in the matrix table under the relevant Operational Risk Area."]
[]
[null,"Has your company taken steps to measure material risks arising from the Operational Risk Areas identified below? (Y/N) "]
[]
[null,"If \"Y\", identify the stage of each Operational Risk Area and input an \"X\" in the appropriate grid under each area."]
[]
[null,"Risk Measurement processes are:"]
[]
[null,"Progression",null,"Dimension","Operational Risk Areas"]
[null,"Stage","Scoring",null,"Fraud","Human Resources","Outsourcing","Distribution Channels","Business Processes","Business Continuity","Information Systems","Compliance","Total (Si)"]
[null,1,50,"“ad hoc”"]
[null,2,100,"Implemented but not standardized across the organization"]
[null,3,150,"Implemented, well documented policies and procedures that are understood by relevant staff, and standardized across the entire organization"]
[null,4,200,"In addition to Stage 3, processes are reviewed at least annually with the view to assessing effectiveness and introducing improvements"]
[null,null,null,null,{"$f":"IF(COUNTA(E15:E18)=0,Import!$I45074,IF(E15=\"X\", 50, IF(E16=\"X\", 100, IF(E17=\"X\", 150, IF(E18=\"X\", 200, 0)))))","v":0},{"$f":"IF(COUNTA(F15:F18)=0,Import!$I45075,IF(F15=\"X\", 50, IF(F16=\"X\", 100, IF(F17=\"X\", 150, IF(F18=\"X\", 200, 0)))))","v":0},{"$f":"IF(COUNTA(G15:G18)=0,Import!$I45076,IF(G15=\"X\", 50, IF(G16=\"X\", 100, IF(G17=\"X\", 150, IF(G18=\"X\", 200, 0)))))","v":0},{"$f":"IF(COUNTA(H15:H18)=0,Import!$I45077,IF(H15=\"X\", 50, IF(H16=\"X\", 100, IF(H17=\"X\", 150, IF(H18=\"X\", 200, 0)))))","v":0},{"$f":"IF(COUNTA(I15:I18)=0,Import!$I45078,IF(I15=\"X\", 50, IF(I16=\"X\", 100, IF(I17=\"X\", 150, IF(I18=\"X\", 200, 0)))))","v":0},{"$f":"IF(COUNTA(J15:J18)=0,Import!$I45079,IF(J15=\"X\", 50, IF(J16=\"X\", 100, IF(J17=\"X\", 150, IF(J18=\"X\", 200, 0)))))","v":0},{"$f":"IF(COUNTA(K15:K18)=0,Import!$I45080,IF(K15=\"X\", 50, IF(K16=\"X\", 100, IF(K17=\"X\", 150, IF(K18=\"X\", 200, 0)))))","v":0},{"$f":"IF(COUNTA(L15:L18)=0,Import!$I45081,IF(L15=\"X\", 50, IF(L16=\"X\", 100, IF(L17=\"X\", 150, IF(L18=\"X\", 200, 0)))))","v":0},{"$f":"SUM(E19:L19)","v":0},{"$f":"IF(M19>1600, \"ERR\", \"OK\")","v":"OK"}]
[]
[null,"Comments (optionally, the insurer may provide comments in the box below to support its responses above):"]
[]
[]
[]
[]
[]
[]
[]
[]
[]
[]
[]
[]
[]
[]
[]
[]
[]
[null,null,null,null,"Yes"]
[null,null,null,null,"No"]

{"sheet":"Response","index":108,"n_rows":40,"n_cols":14,"rows_kept":40,"cut":false,"hidden":true,"merged":[[0,1,0,3],[20,1,20,7],[21,1,21,12],[4,1,4,12],[6,11,6,12],[12,1,12,2],[12,3,13,3],[12,4,12,12],[2,1,2,3]]}
[null,"RISK RESPONSE",null,null,null,null,null,null,null,null,null,null,{"$f":"HYPERLINK(\"#'Index'!A1\",\"Return to Index\")","v":"Return to Index"}]
[null,{"$f":"'Company Information'!C7","v":"Enter Company Name"}]
[null,{"$f":" TEXT('Company Information'!C3,\"d mmmm yyyy\")","v":"31 December 2023"}]
[]
[null,"The insurer is to answer the following question.  If the answer to the question is \"No\" then the insurer does not have to complete the matrix/grid.  If the answer to the question is \"Yes\" then the insurer is to identify the stage of progression of each Operational Risk Area based upon the Dimension descriptor.  The insurer is then to input an “X” in the grid corresponding to the stage in the matrix table under the relevant Operational Risk Area."]
[]
[null,"Has your company taken steps to control and/or mitigate material risks arising from the Operational Risk Areas identified below? (Y/N)"]
[]
[null,"If \"Y\", identify the stage of each Operational Risk Area and input an \"X\" in the appropriate grid under each area."]
[]
[null,"Risk Response processes are:"]
[]
[null,"Progression",null,"Dimension","Operational Risk Areas"]
[null,"Stage","Scoring",null,"Fraud","Human Resources","Outsourcing","Distribution Channels","Business Processes","Business Continuity","Information Systems","Compliance","Total (Si)"]
[null,1,50,"“ad hoc”"]
[null,2,100,"Implemented but not standardized across the organization"]
[null,3,150,"Implemented, well documented policies and procedures that are understood by relevant staff, and standardized across the entire organization"]
[null,4,200,"In addition to Stage 3, processes are reviewed at least annually with the view to assessing effectiveness and introducing improvements"]
[null,null,null,null,{"$f":"IF(COUNTA(E15:E18)=0,Import!$I45082,IF(E15=\"X\", 50, IF(E16=\"X\", 100, IF(E17=\"X\", 150, IF(E18=\"X\", 200, 0)))))","v":0},{"$f":"IF(COUNTA(F15:F18)=0,Import!$I45083,IF(F15=\"X\", 50, IF(F16=\"X\", 100, IF(F17=\"X\", 150, IF(F18=\"X\", 200, 0)))))","v":0},{"$f":"IF(COUNTA(G15:G18)=0,Import!$I45084,IF(G15=\"X\", 50, IF(G16=\"X\", 100, IF(G17=\"X\", 150, IF(G18=\"X\", 200, 0)))))","v":0},{"$f":"IF(COUNTA(H15:H18)=0,Import!$I45085,IF(H15=\"X\", 50, IF(H16=\"X\", 100, IF(H17=\"X\", 150, IF(H18=\"X\", 200, 0)))))","v":0},{"$f":"IF(COUNTA(I15:I18)=0,Import!$I45086,IF(I15=\"X\", 50, IF(I16=\"X\", 100, IF(I17=\"X\", 150, IF(I18=\"X\", 200, 0)))))","v":0},{"$f":"IF(COUNTA(J15:J18)=0,Import!$I45087,IF(J15=\"X\", 50, IF(J16=\"X\", 100, IF(J17=\"X\", 150, IF(J18=\"X\", 200, 0)))))","v":0},{"$f":"IF(COUNTA(K15:K18)=0,Import!$I45088,IF(K15=\"X\", 50, IF(K16=\"X\", 100, IF(K17=\"X\", 150, IF(K18=\"X\", 200, 0)))))","v":0},{"$f":"IF(COUNTA(L15:L18)=0,Import!$I45089,IF(L15=\"X\", 50, IF(L16=\"X\", 100, IF(L17=\"X\", 150, IF(L18=\"X\", 200, 0)))))","v":0},{"$f":"SUM(E19:L19)","v":0},{"$f":"IF(M19>1600, \"ERR\", \"OK\")","v":"OK"}]
[]
[null,"Comments (optionally, the insurer may provide comments in the box below to support its responses above):"]
[]
[]
[]
[]
[]
[]
[]
[]
[]
[]
[]
[]
[]
[]
[]
[]
[]
[null,null,null,null,"Yes"]
[null,null,null,null,"No"]

{"sheet":"Monitoring & Reporting","index":109,"n_rows":38,"n_cols":14,"rows_kept":38,"cut":false,"hidden":true,"merged":[[1,1,1,3],[0,1,0,3],[20,1,20,7],[21,1,21,12],[4,1,4,12],[6,10,6,11],[12,1,12,2],[12,3,13,3],[12,4,12,12],[2,1,2,3]]}
[null,"RISK MONITORING & REPORTING",null,null,null,null,null,null,null,null,null,null,{"$f":"HYPERLINK(\"#'Index'!A1\",\"Return to Index\")","v":"Return to Index"}]
[null,{"$f":"'Company Information'!C7","v":"Enter Company Name"}]
[null,{"$f":" TEXT('Company Information'!C3,\"d mmmm yyyy\")","v":"31 December 2023"}]
[]
[null,"The insurer is to answer the following question.  If the answer to the question is \"No\" then the insurer does not have to complete the matrix/grid.  If the answer to the question is \"Yes\" then the insurer is to identify the stage of progression of each Operational Risk Area based upon the Dimension descriptor.  The insurer is then to input an “X” in the grid corresponding to the stage in the matrix table under the relevant Operational Risk Area."]
[]
[null,"Has your company taken steps to monitor and report material risks arising from the Operational Risk Areas identified below? (Y/N)"]
[]
[null,"If \"Y\", identify the stage of each Operational Risk Area and input an \"X\" in the appropriate grid under each area."]
[]
[null,"Risk Monitoring & Reporting processes are:"]
[]
[null,"Progression",null,"Dimension","Operational Risk Areas"]
[null,"Stage","Scoring",null,"Fraud","Human Resources","Outsourcing","Distribution Channels","Business Processes","Business Continuity","Information Systems","Compliance","Total (Si)"]
[null,1,50,"“ad hoc”"]
[null,2,100,"Implemented but not standardized across the organization"]
[null,3,150,"Implemented, well documented policies and procedures that are understood by relevant staff, and standardized across the entire organization"]
[null,4,200,"In addition to Stage 3, processes are reviewed at least annually with the view to assessing effectiveness and introducing improvements"]
[null,null,null,null,{"$f":"IF(COUNTA(E15:E18)=0,Import!$I45090,IF(E15=\"X\", 50, IF(E16=\"X\", 100, IF(E17=\"X\", 150, IF(E18=\"X\", 200, 0)))))","v":0},{"$f":"IF(COUNTA(F15:F18)=0,Import!$I45091,IF(F15=\"X\", 50, IF(F16=\"X\", 100, IF(F17=\"X\", 150, IF(F18=\"X\", 200, 0)))))","v":0},{"$f":"IF(COUNTA(G15:G18)=0,Import!$I45092,IF(G15=\"X\", 50, IF(G16=\"X\", 100, IF(G17=\"X\", 150, IF(G18=\"X\", 200, 0)))))","v":0},{"$f":"IF(COUNTA(H15:H18)=0,Import!$I45093,IF(H15=\"X\", 50, IF(H16=\"X\", 100, IF(H17=\"X\", 150, IF(H18=\"X\", 200, 0)))))","v":0},{"$f":"IF(COUNTA(I15:I18)=0,Import!$I45094,IF(I15=\"X\", 50, IF(I16=\"X\", 100, IF(I17=\"X\", 150, IF(I18=\"X\", 200, 0)))))","v":0},{"$f":"IF(COUNTA(J15:J18)=0,Import!$I45095,IF(J15=\"X\", 50, IF(J16=\"X\", 100, IF(J17=\"X\", 150, IF(J18=\"X\", 200, 0)))))","v":0},{"$f":"IF(COUNTA(K15:K18)=0,Import!$I45096,IF(K15=\"X\", 50, IF(K16=\"X\", 100, IF(K17=\"X\", 150, IF(K18=\"X\", 200, 0)))))","v":0},{"$f":"IF(COUNTA(L15:L18)=0,Import!$I45097,IF(L15=\"X\", 50, IF(L16=\"X\", 100, IF(L17=\"X\", 150, IF(L18=\"X\", 200, 0)))))","v":0},{"$f":"SUM(E19:L19)","v":0},{"$f":"IF(M19>1600, \"ERR\", \"OK\")","v":"OK"}]
[]
[null,"Comments (optionally, the insurer may provide comments in the box below to support its responses above):"]
[]
[]
[]
[]
[]
[]
[]
[]
[]
[]
[]
[]
[]
[]
[]
[null,null,null,null,"Yes"]
[null,null,null,null,"No"]

{"sheet":"Op Risk (Original)","index":110,"n_rows":46,"n_cols":9,"rows_kept":46,"cut":false,"hidden":true,"merged":[[1,1,1,7],[0,1,0,5],[45,3,45,7],[32,3,32,7],[34,3,34,7],[27,3,27,7],[29,3,29,7],[36,3,36,7],[39,3,39,7]]}
[null,"OPERATIONAL RISK CHARGE CALCULATION INSTRUCTIONS",null,null,null,null,null,{"$f":"HYPERLINK(\"#'Index'!A1\",\"Return to Index\")","v":"Return to Index"}]
[null,"Subject to the Authority applying a re-assessment upon onsite inspection, the “Total Operational Risk Capital Charge” below will be applied to the insurer’s BSCR (After Covariance Adjustment) sub-total in the BSCR model for purposes of arriving at its Enhanced Capital Requirement for the year-end filing."]
[]
[null,null,"Overall CIRA Score",{"$f":"'Corp Gov'!D17+'Risk Man'!D18+Identification!M19+Measurement!M19+'Monitoring & Reporting'!M19+Response!M19","v":0}]
[]
[null,null,"CIRA Scoring Grid"]
[]
[null,null,"OVERALL SCORE","APPLICABLE OPERATIONAL RISK CHARGE % OF \"BSCR AFTER COVARIANCE ADJUSTMENT\""]
[]
[null,null,{"$f":"IF('Company Information'!F11=\"Class 3A\",\"<=800\",\"<=5,200\")","v":"<=800"},0.1]
[null,null,{"$f":"IF('Company Information'!F11=\"Class 3A\",\"> 800 <= 1,200\",\"> 5,200 <= 6,000\")","v":"> 800 <= 1,200"},0.09]
[null,null,{"$f":"IF('Company Information'!F11=\"Class 3A\",\"> 1,200 <= 1,400\",\"> 6,000 <= 6,650\")","v":"> 1,200 <= 1,400"},0.08]
[null,null,{"$f":"IF('Company Information'!F11=\"Class 3A\",\"> 1,400 <= 1,600\",\"> 6,650 <= 7,250\")","v":"> 1,400 <= 1,600"},7.0000000000000007E-2]
[null,null,{"$f":"IF('Company Information'!F11=\"Class 3A\",\"> 1,600 <= 1,800\",\"> 7,250 <= 7,650\")","v":"> 1,600 <= 1,800"},0.06]
[null,null,{"$f":"IF('Company Information'!F11=\"Class 3A\",\"> 1,800 <= 2,000\",\"> 7,650 <= 7,850\")","v":"> 1,800 <= 2,000"},0.05]
[null,null,{"$f":"IF('Company Information'!F11=\"Class 3A\",\"> 2,000 <= 2,200\",\"> 7,850 <= 8,050\")","v":"> 2,000 <= 2,200"},0.04]
[null,null,{"$f":"IF('Company Information'!F11=\"Class 3A\",\"> 2,200 <= 2,400\",\"> 8,050 <= 8,250\")","v":"> 2,200 <= 2,400"},0.03]
[null,null,{"$f":"IF('Company Information'!F11=\"Class 3A\",\"> 2,400 <= 2,600\",\"> 8,250 <= 8,450\")","v":"> 2,400 <= 2,600"},0.02]
[null,null,{"$f":"IF('Company Information'!F11=\"Class 3A\",\">2,600\",\"> 8,450\")","v":">2,600"},0.01]
[]
[null,null,"BSCR After Covariance Adjustment:",{"$f":"Summary!G74","v":0}]
[]
[null,null,"Operational Risk Charge %:",{"$f":"IF('Company Information'!F11=\"Class 3A\", F23, F24)","v":0.1},null,{"$f":"IF(D4<=800,0.1, IF(D4<=1200, 0.09, IF(D4<=1400, 0.08, IF(D4<=1600, 0.07, IF(D4<=1800, 0.06, IF(D4<=2000, 0.05, IF(D4<=2200, 0.04, IF(D4<=2400, 0.03, IF(D4<=2400, 0.03,IF(D4<=2600,0.02,IF(D4>2600,0.01,\"N/A\")))))))))))","v":0.1}]
[null,null,null,null,null,{"$f":"IF(D4<=5200,0.1, IF(D4<=6000, 0.09, IF(D4<=6650, 0.08, IF(D4<=7250, 0.07, IF(D4<=7650, 0.06, IF(D4<=7850, 0.05, IF(D4<=8050, 0.04, IF(D4<=8250, 0.03, IF(D4<=8250, 0.03,IF(D4<=8450,0.02,IF(D4>8450,0.01,\"N/A\")))))))))))","v":0.1}]
[null,null,"Total Operational Risk Capital Charge:",{"$f":"D21*D23","v":0}]
[]
[]
[null,null,"Signatory:"]
[]
[null,null,"Print Name:"]
[null,null,null,"Resident Director"]
[]
[null,null,"Date:",null,null,null,null,null,{"$f":"IF(D33=\"\",\"\",TEXT(D33,\"yyyy-mm-dd\"))","v":""}]
[]
[null,null,"Signatory:"]
[]
[null,null,"Print Name:"]
[null,null,null,"Director"]
[]
[null,null,"Date:",null,null,null,null,null,{"$f":"IF(D40=\"\",\"\",TEXT(D40,\"yyyy-mm-dd\"))","v":""}]
[]
[null,null,"Insurer Name:",{"$f":"'Company Information'!C7","v":"Enter Company Name"}]
[]
[null,null,"Year-end:",{"$f":"'Form 1EBS'!C3","v":"2023-12-31"}]
[]
[null,null,"Insurer Registration No.",{"$f":"CONFIGURATION!B1","v":0}]

{"sheet":"Op Risk","index":111,"n_rows":46,"n_cols":9,"rows_kept":46,"cut":false,"hidden":false,"merged":[[36,3,36,7],[39,3,39,7],[45,3,45,7],[0,1,0,5],[1,1,1,7],[27,3,27,7],[29,3,29,7],[32,3,32,7],[34,3,34,7]]}
[null,"OPERATIONAL RISK CHARGE CALCULATION INSTRUCTIONS",null,null,null,null,null,{"$f":"HYPERLINK(\"#'Index'!A1\",\"Return to Index\")","v":"Return to Index"}]
[null,"Subject to the Authority applying a re-assessment upon onsite inspection, the “Total Operational Risk Capital Charge” below will be applied to the insurer’s BSCR (After Covariance Adjustment) sub-total in the BSCR model for purposes of arriving at its Enhanced Capital Requirement for the year-end filing."]
[]
[null,null,"Overall CIRA Score",{"$f":"'Corp Gov'!D17+'Risk Man'!D18+Identification!M19+Measurement!M19+'Monitoring & Reporting'!M19+Response!M19","v":0}]
[]
[null,null,"CIRA Scoring Grid"]
[]
[null,null,"OVERALL SCORE","APPLICABLE OPERATIONAL RISK CHARGE % OF \"BSCR AFTER COVARIANCE ADJUSTMENT\""]
[]
[null,null,{"$f":"IF('Company Information'!F11=\"Class 3A\",\"<=800\",\"<=4,000\")","v":"<=800"},0.2]
[null,null,{"$f":"IF('Company Information'!F11=\"Class 3A\",\"> 800 <= 1,200\",\"> 4,000 <= 5,200\")","v":"> 800 <= 1,200"},0.18]
[null,null,{"$f":"IF('Company Information'!F11=\"Class 3A\",\"> 1,200 <= 1,400\",\"> 5,200 <= 6,000\")","v":"> 1,200 <= 1,400"},0.15]
[null,null,{"$f":"IF('Company Information'!F11=\"Class 3A\",\"> 1,400 <= 1,600\",\"> 6,000 <= 6,650\")","v":"> 1,400 <= 1,600"},0.12]
[null,null,{"$f":"IF('Company Information'!F11=\"Class 3A\",\"> 1,600 <= 1,800\",\"> 6,650 <= 7,250\")","v":"> 1,600 <= 1,800"},0.09]
[null,null,{"$f":"IF('Company Information'!F11=\"Class 3A\",\"> 1,800 <= 2,000\",\"> 7,250 <= 7,650\")","v":"> 1,800 <= 2,000"},7.0000000000000007E-2]
[null,null,{"$f":"IF('Company Information'!F11=\"Class 3A\",\"> 2,000 <= 2,200\",\"> 7,650 <= 7,850\")","v":"> 2,000 <= 2,200"},0.05]
[null,null,{"$f":"IF('Company Information'!F11=\"Class 3A\",\"> 2,200 <= 2,400\",\"> 7,850 <= 8,050\")","v":"> 2,200 <= 2,400"},0.03]
[null,null,{"$f":"IF('Company Information'!F11=\"Class 3A\",\"> 2,400 <= 2,600\",\"> 8,050 <= 8,250\")","v":"> 2,400 <= 2,600"},0.02]
[null,null,{"$f":"IF('Company Information'!F11=\"Class 3A\",\">2,600\",\"> 8,250\")","v":">2,600"},0.01]
[]
[null,null,"BSCR After Covariance Adjustment:",{"$f":"Summary!N74","v":0}]
[]
[null,null,"Operational Risk Charge %:",{"$f":"IF('Company Information'!F11=\"Class 3A\",F23,F24)","v":0.2},null,{"$f":"IF(D4<=800,0.2, IF(D4<=1200, 0.18, IF(D4<=1400, 0.15, IF(D4<=1600, 0.12, IF(D4<=1800, 0.09, IF(D4<=2000, 0.07, IF(D4<=2200, 0.05, IF(D4<=2400, 0.03, IF(D4<=2600,0.02,IF(D4>2600,0.01,\"N/A\"))))))))))","v":0.2}]
[null,null,null,null,null,{"$f":"IF(D4<=4000,0.2,IF(D4<=5200,0.18,IF(D4<=6000,0.15,IF(D4<=6650,0.12,IF(D4<=7250,0.09,IF(D4<=7650,0.07,IF(D4<=7850,0.05,IF(D4<=8050,0.03,IF(D4<=8250,0.02,IF(D4>8250,0.01,\"N/A\"))))))))))","v":0.2}]
[null,null,"Total Operational Risk Capital Charge:",{"$f":"D21*D23","v":0}]
[]
[]
[null,null,"Signatory:"]
[]
[null,null,"Print Name:"]
[null,null,null,"Resident Director"]
[]
[null,null,"Date:",null,null,null,null,null,{"$f":"IF(D33=\"\",\"\",TEXT(D33,\"yyyy-mm-dd\"))","v":""}]
[]
[null,null,"Signatory:"]
[]
[null,null,"Print Name:"]
[null,null,null,"Director"]
[]
[null,null,"Date:",null,null,null,null,null,{"$f":"IF(D40=\"\",\"\",TEXT(D40,\"yyyy-mm-dd\"))","v":""}]
[]
[null,null,"Insurer Name:",{"$f":"'Company Information'!C7","v":"Enter Company Name"}]
[]
[null,null,"Year-end:",{"$f":"'Form 1EBS'!C3","v":"2023-12-31"}]
[]
[null,null,"Insurer Registration No.",{"$f":"CONFIGURATION!B1","v":0}]

{"sheet":"Summary","index":112,"n_rows":166,"n_cols":43,"rows_kept":166,"cut":false,"hidden":false,"merged":[[71,40,73,41],[1,0,1,4],[79,2,79,4],[71,38,71,39],[71,36,71,37],[71,34,71,35],[55,12,55,13],[55,10,55,11],[53,10,53,13],[6,1,6,17],[117,10,117,13],[51,1,51,18],[91,10,91,13],[101,10,101,13],[107,10,107,13],[53,5,53,6]]}
["SUMMARY",null,null,null,null,null,null,null,null,null,null,null,null,null,null,null,null,{"$f":"HYPERLINK(\"#'Index'!A1\",\"Return to Index\")","v":"Return to Index"}]
[{"$f":"'Company Information'!C7","v":"Enter Company Name"},null,null,null,null,null,null,null,null,null,null,null,null,null,null,null,null,null,null,null,null,null,null,null,null,null,null,null,null,null,null,null,null,null,"Utilize Automatic Label Adjustment:",null,null,null,"No"]
["Bermuda Solvency Capital Requirement (BSCR)"]
[{"$f":"\"For the Year Ending \"","v":"For the Year Ending "},null,null,{"$f":" TEXT('Company Information'!C3,\"d mmmm yyyy\")","v":"31 December 2023"}]
[{"$f":"\"(\"&IF(CONFIGURATION!$B$12>1,MID(CONFIGURATION!$B$12,2,LEN(CONFIGURATION!$B$12)),\"\")&\")\"","v":"(000)"}]
[]
[null,"UNCONSOLIDATED BASIS"]
[]
[null,"General Business Minimum Solvency Margin",null,null,null,null,null,null,null,null,null,null,null,"Liquidity Ratio"]
[]
[null,"Unconsolidated Capital & Surplus (Form 8SFS/8ASFS, Line 4)",null,null,null,null,null,null,null,null,null,{"$f":"IF('Company Information'!$C$2=\"IFRS\",IF('Company Information'!$B$2=\"Unconsolidated BSCR Model\",'Form 1ASFS'!M142,'Form 1ASFS'!E142+'Form 1ASFS'!I142),\nIF('Company Information'!$B$2=\"Unconsolidated BSCR Model\",'Form 1SFS'!$M$198,'Form 1SFS'!$E$198))","v":0},"a)","Cash (Form 1SFS/1ASFS, Line 1)",null,null,{"$f":"IF('Company Information'!$C$2=\"IFRS\",IF('Company Information'!$B$2=\"Unconsolidated BSCR Model\",'Form 1ASFS'!M10,'Form 1ASFS'!E10),\nIF('Company Information'!$B$2=\"Unconsolidated BSCR Model\",'Form 1SFS'!$M$12,'Form 1SFS'!$E$12))","v":0}]
[null,null,null,null,{"$f":"'Information Sheet'!$H$16","v":"United States Dollars"},null,null,null,null,null,"USD/BDA",{"$f":"'Information Sheet'!$H$16","v":"United States Dollars"},"b)","Quoted Investments (Form 1SFS/1ASFS, Line 2(f))",null,null,{"$f":"IF('Company Information'!$C$2=\"IFRS\",IF('Company Information'!$B$2=\"Unconsolidated BSCR Model\",'Form 1ASFS'!M23,'Form 1ASFS'!E23),\nIF('Company Information'!$B$2=\"Unconsolidated BSCR Model\",'Form 1SFS'!$M$25,'Form 1SFS'!$E$25))","v":0}]
[null,"Minimum Margin of Solvency Test - must be greater of:",null,null,null,null,null,null,null,null,null,null,"c)","Unquoted Bonds & Debentures (Form 1SFS/1ASFS, Line 3(b))",null,null,{"$f":"IF('Company Information'!$C$2=\"IFRS\",IF('Company Information'!$B$2=\"Unconsolidated BSCR Model\",'Form 1ASFS'!M29,'Form 1ASFS'!E29),\nIF('Company Information'!$B$2=\"Unconsolidated BSCR Model\",'Form 1SFS'!$M$31,'Form 1SFS'!$E$31))","v":0}]
[null,"a)","Base MSM:",null,null,null,null,null,null,null,{"$f":"IF(CONFIGURATION!$B$12=1000,(IF('Company Information'!$F$11=\"Class 4\",100000,1000)),IF('Company Information'!$F$11=\"Class 4\",100000000,1000000))","v":1000},{"$f":"K14*IFERROR((1/'Information Sheet'!$H$18),1)","v":1000},"d)","Real Estate 1st liens (Form 1, Line 5(a))",null,null,{"$f":"IF('Company Information'!$C$2=\"IFRS\",IF('Company Information'!$B$2=\"Unconsolidated BSCR Model\",'Form 1ASFS'!M49,'Form 1ASFS'!E49),\nIF('Company Information'!$B$2=\"Unconsolidated BSCR Model\",'Form 1SFS'!$M$51,'Form 1SFS'!$E$51))","v":0}]
[null,null,null,null,null,null,null,null,null,null,null,null,"e)","Investment Income Due & Accrued (Form 1SFS/1ASFS, Line 9)",null,null,{"$f":"IF('Company Information'!$C$2=\"IFRS\",IF('Company Information'!$B$2=\"Unconsolidated BSCR Model\",'Form 1ASFS'!M60,'Form 1ASFS'!E60),\nIF('Company Information'!$B$2=\"Unconsolidated BSCR Model\",'Form 1SFS'!$M$64,'Form 1SFS'!$E$64))","v":0}]
[null,"b)","NPW (Form 2SFS Column A, Line 3)",null,{"$f":"IF('Company Information'!$C$2=\"IFRS\",IF('Company Information'!$B$2=\"Unconsolidated BSCR Model\",'Form 2ASFS'!M79,'Form 2ASFS'!E79),\nIF('Company Information'!$B$2=\"Unconsolidated BSCR Model\",'Form 2SFS'!M18,'Form 2SFS'!E18))","v":0},null,null,null,null,null,{"$f":"E16*IFERROR(('Information Sheet'!$H$18),1)","v":0},null,"f)","A/C & Premiums Receivable (Form 1SFS/1ASFS, Line 10(d))",null,null,{"$f":"IF('Company Information'!$C$2=\"IFRS\",IF('Company Information'!$B$2=\"Unconsolidated BSCR Model\",'Form 1ASFS'!M62+'Form 1ASFS'!M158,'Form 1ASFS'!E62+'Form 1ASFS'!M158),\nIF('Company Information'!$B$2=\"Unconsolidated BSCR Model\",'Form 1SFS'!$M$70,'Form 1SFS'!$E$70))","v":0}]
[null,null,"Premiums Ceded",null,{"$f":"IF('Company Information'!$C$2=\"IFRS\",IF('Company Information'!$B$2=\"Unconsolidated BSCR Model\",'Form 2ASFS'!M78,'Form 2ASFS'!E78),\nIF('Company Information'!$B$2=\"Unconsolidated BSCR Model\",'Form 2SFS'!M16,'Form 2SFS'!E16))","v":0},null,null,null,null,null,{"$f":"E17*IFERROR(('Information Sheet'!$H$18),1)","v":0},null,"g)","R/I Balances Receivable (Form 1SFS/1ASFS, Line 11(e))",null,null,{"$f":"IF('Company Information'!$C$2=\"IFRS\",'Form 1ASFS'!M160,\nIF('Company Information'!$B$2=\"Unconsolidated BSCR Model\",'Form 1SFS'!$M$77,'Form 1SFS'!$E$77))","v":0}]
[null,null,{"$f":"IF('Company Information'!F11=\"Class 4\",\"\",\"20% of 1st $6M NPW\")","v":"20% of 1st $6M NPW"},null,null,null,null,null,null,null,{"$f":"IF(CONFIGURATION!$B$12=1000,IF('Company Information'!$F$11=\"Class 4\",\"\",MIN(K16*20%,1200)),IF('Company Information'!$F$11=\"Class 4\",\"\",MIN(K16*20%,1200000)))","v":0},null,"h)","Funds Held (Form 1SFS, Line 12)",null,null,{"$f":"IF('Company Information'!$C$2=\"IFRS\",'Form 1ASFS'!M162,IF('Company Information'!$B$2=\"Unconsolidated BSCR Model\",'Form 1SFS'!$M$79,'Form 1SFS'!$E$79))","v":0}]
[null,{"$f":"IF('Company Information'!$F$11=\"Class 4\",50,15)","v":15},{"$f":"IF('Company Information'!F11=\"Class 4\",\"% of NPW\",\"% of any above NPW above $6M\")","v":"% of any above NPW above $6M"},null,null,null,null,null,null,null,{"$f":"IF(CONFIGURATION!$B$12=1000,(IF('Company Information'!$F$11=\"Class 4\",MAX(((K16+K17)*75%*50%),K16*B19/100),IF(+(K16-6000)*B19/100>0,+(K16-6000)*B19/100,0))),IF(B19=\"\",0,IF('Company Information'!$F$11=\"Class 4\",MAX(((K16+K17)*75%*50%),K16*B19/100),IF(+(K16-6000000)*B19/100>0,+(K16-6000000)*B19/100,0))))","v":0},null,null,"Approved Assets (If applicable)"]
[null,null,"Net Premium Written Requirement",null,null,null,null,null,null,null,{"$f":"SUM(K18:K19)","v":0},{"$f":"K20*IFERROR((1/'Information Sheet'!$H$18),1)","v":0},null,"Total Relevant Assets",null,null,null,{"$f":"SUM(Q11:Q19)","v":0}]
[]
[null,"c)",{"$f":"IF('Company Information'!$C$2=\"IFRS\",\"Net Loss Provision (1ASFS Net LIC)\",\n\"Net Loss Provision (1SFS Line 17(d))\")","v":"Net Loss Provision (1SFS Line 17(d))"},null,{"$f":"IF('Company Information'!$C$2=\"IFRS\",'Form 1ASFS'!I234+'Form 1ASFS'!K234+'Form 1ASFS'!M234-'Form 1ASFS'!I312-'Form 1ASFS'!K312-'Form 1ASFS'!M312,\nIF('Company Information'!$B$2=\"Unconsolidated BSCR Model\",'Form 1SFS'!M124,'Form 1SFS'!E124))","v":0},null,null,null,null,null,null,null,"Total Liabilities (Form 1SFS/1ASFS, Line 39)",null,null,null,{"$f":"IF('Company Information'!$C$2=\"IFRS\",IF('Company Information'!$B$2=\"Unconsolidated BSCR Model\",'Form 1ASFS'!M138,'Form 1ASFS'!E138),\nIF('Company Information'!$B$2=\"Unconsolidated BSCR Model\",'Form 1SFS'!$M$194,'Form 1SFS'!$E$194))","v":0}]
[null,null,{"$f":"IF('Company Information'!$C$2=\"IFRS\",\"\",\"Other Ins. Reserves (1SFS Line 18)\")","v":"Other Ins. Reserves (1SFS Line 18)"},null,{"$f":"IF('Company Information'!$C$2=\"IFRS\",0,IF('Company Information'!$B$2=\"Unconsolidated BSCR Model\",'Form 1SFS'!M126,'Form 1SFS'!E126))","v":0},null,null,null,null,null,null,null,"plus:","Deferred Acquisition Costs"]
[null,null,"Total Provisions",null,{"$f":"SUM(E22:E23)","v":0},null,null,null,null,null,null,null,null,"Premiums Receivable (Form 1ASFS disclosed balances)",null,null,{"$f":"IF('Company Information'!C2=\"IFRS\",'Form 1ASFS'!M158,0)","v":0}]
[null,0.15,"Net Loss Reserve Requirement",null,null,null,null,null,null,null,null,{"$f":"E24*B25","v":0},null,"R/I Balances Receivable (disclosed balance)",null,null,{"$f":"IF('Company Information'!$C$2=\"IFRS\",'Form 1ASFS'!M160,0)","v":0}]
[null,null,null,null,null,null,null,null,null,null,null,null,null,"Funds Held by Ceding Reinsurers (disclosed balance)",null,null,{"$f":"IF('Company Information'!$C$2=\"IFRS\",Q18,0)","v":0}]
[null,"d)","MSM Floor = 25% of ECR ",null,null,null,null,null,null,null,null,{"$f":"N88*25%","v":0},"less:"]
[null,null,null,null,null,null,null,null,null,null,null,null,"a)","Deferred Income Tax (Form 1SFS/1ASFS, Line 31(b))",null,null,{"$f":"IF('Company Information'!$C$2=\"IFRS\",-IF('Company Information'!$B$2=\"Unconsolidated BSCR Model\",'Form 1ASFS'!M112,'Form 1ASFS'!E112),\n-IF('Company Information'!$B$2=\"Unconsolidated BSCR Model\",'Form 1SFS'!$M$166,'Form 1SFS'!$E$166))","v":0}]
[null,"e)","Minimum Margin of Solvency Adjustment (if Applicable)",null,null,null,null,null,null,null,null,null,"b)","LOC, guarantees (Form 1SFS/1ASFS, Line 37(d))",null,null,{"$f":"IF('Company Information'!$C$2=\"IFRS\",-IF('Company Information'!$B$2=\"Unconsolidated BSCR Model\",'Form 1ASFS'!M134,'Form 1ASFS'!E134),\n-IF('Company Information'!$B$2=\"Unconsolidated BSCR Model\",'Form 1SFS'!$M$190,'Form 1SFS'!$E$190))","v":0}]
[null,null,null,null,null,null,null,null,null,null,null,null,{"$f":"IF('Company Information'!$C$2=\"IFRS\",\"c)\",\"\")","v":""},{"$f":"IF('Company Information'!$C$2=\"IFRS\",\"Reinsurance Contract Assets (Form 1ASFS 11(b))\",\n\"\")","v":""},null,null,{"$f":"IF('Company Information'!$C$2=\"IFRS\",-IF('Company Information'!$B$2=\"Unconsolidated BSCR Model\",'Form 1ASFS'!M66,'Form 1ASFS'!E66),0)","v":0}]
[null,"Minimum Margin of Solvency Requirement",null,null,null,null,null,null,null,null,null,{"$f":"IF(L29=\"\",MAX(L14,L20,L25,L27),L29)","v":1000},{"$f":"IF('Company Information'!$C$2=\"IFRS\",\"d)\",\"\")","v":""},{"$f":"IF('Company Information'!$C$2=\"IFRS\",\"CSM for products not on PAA\",\n\"\")","v":""}]
[null,null,null,null,null,null,null,null,null,null,null,null,null,"Relevant Liabilities",null,null,null,{"$f":"SUM(Q22:Q31)","v":0}]
[null,"Minimum Margin of Solvency Met",null,null,null,null,null,null,null,null,null,{"$f":"IF(L11>=L31,\"YES\",\"NO\")","v":"NO"}]
[null,null,null,null,null,null,null,null,null,null,null,null,null,"75% of Relevant liabilities",null,null,null,{"$f":"R32*75%","v":0}]
[]
[null,null,null,null,null,null,null,null,null,null,null,null,null,"Liquidity Test Met",null,null,null,{"$f":"IF(R20>=R34,\"YES\",\"NO\")","v":"YES"}]
[]
[]
[null,"Statutory Capital & Surplus Reduction",null,null,null,null,null,null,null,null,null,null,"Statutory Capital Reduction"]
[]
[null,"31B Statutory Capital & Surplus Reduction (Dividend Payment Maximum 25%)",null,null,null,null,null,null,null,null,null,null,null,"31C Statutory Capital Reduction (Maximum Reduction of 15%)"]
[]
[null,{"$f":"\"Unconsolidated Statutory Capital & Surplus for \"&YEAR('Form 1SFS'!$G$9)","v":"Unconsolidated Statutory Capital & Surplus for 2022"},null,null,null,null,null,null,null,null,null,{"$f":"IF('Company Information'!$C$2=\"IFRS\",IF('Company Information'!$B$2=\"Unconsolidated BSCR Model\",'Form 8ASFS'!Q58,('Form 8ASFS'!I58+'Form 8ASFS'!M58)),\nIF('Company Information'!$B$2=\"Unconsolidated BSCR Model\",'Form 8SFS'!$Q$58,('Form 8SFS'!$I$58+'Form 8SFS'!$M$58)))","v":0},null,{"$f":"\"Unconsolidated Statutory Capital for \"&YEAR('Form 1SFS'!$E9)","v":"Unconsolidated Statutory Capital for 2023"},null,null,null,{"$f":"IF('Company Information'!$C$2=\"IFRS\",IF('Company Information'!$B$2=\"Unconsolidated BSCR Model\",'Form 8ASFS'!O36,('Form 8ASFS'!G36+'Form 8ASFS'!K36)),\nIF('Company Information'!$B$2=\"Unconsolidated BSCR Model\",'Form 8SFS'!$O$36,('Form 8SFS'!$G$36+'Form 8SFS'!$K$36)))","v":0}]
[null,null,null,null,null,null,null,null,null,null,null,null,null,{"$f":"\"Unconsolidated Statutory Capital for \"&YEAR('Form 1SFS'!$G$9)","v":"Unconsolidated Statutory Capital for 2022"},null,null,null,{"$f":"IF('Company Information'!$C$2=\"IFRS\",IF('Company Information'!$B$2=\"Unconsolidated BSCR Model\",'Form 8ASFS'!Q36,('Form 8ASFS'!I36+'Form 8ASFS'!M36)),IF('Company Information'!$B$2=\"Unconsolidated BSCR Model\",'Form 8SFS'!$Q$36,('Form 8SFS'!$I$36+'Form 8SFS'!$M$36)))","v":0}]
[null,"Maximum Dividend",null,null,null,null,null,null,null,null,{"$f":"25%*L43","v":0}]
[null,{"$f":"\"Dividend Payment in \"&YEAR('Form 1SFS'!$E$9)","v":"Dividend Payment in 2023"},null,null,null,null,null,null,null,null,{"$f":"IF('Company Information'!$C$2=\"IFRS\",-IF('Company Information'!$B$2=\"Unconsolidated BSCR Model\",'Form 8ASFS'!O44,('Form 8ASFS'!G44+'Form 8ASFS'!K44)),\n-IF('Company Information'!$B$2=\"Unconsolidated BSCR Model\",'Form 8SFS'!$O$44,('Form 8SFS'!$G$44+'Form 8SFS'!$K$44)))","v":0},null,null,{"$f":"\"Statutory Capital Change from \"&YEAR('Form 1SFS'!$G9)&\" to \"&YEAR('Form 1SFS'!$E9)","v":"Statutory Capital Change from 2022 to 2023"},null,null,{"$f":"R43-R44","v":0}]
[null,null,null,null,null,null,null,null,null,null,null,null,null,"Maximum Reduction",null,null,{"$f":"R44*-15%","v":0}]
[]
[null,"Insurer met Dividend Payment Requirement",null,null,null,null,null,null,null,null,null,{"$f":"IF(K45>=K46,\"YES\",\"NO\")","v":"YES"},null,"Insurer met Capital Reduction Requirement",null,null,null,{"$f":"IF(Q47<Q46,\"YES\",\"NO\")","v":"NO"}]
[]
[]
[null,"CONSOLIDATED ECONOMIC BALANCE SHEET BASIS"]
[]
[null,"REQUIRED CAPITAL AND SURPLUS",null,null,null,"2018 Year-End Methodology",null,null,null,null,null,null,null,null,null,null,null,null,null,null,null,null,"Data for Pie Chart",null,null,null,null,null,"Cum. %","Mid.","Risk","Left","Top",null,"4 Right",null,"3 Right - 1 Down",null,"3 Right",null,"Custom",null,"Risk"]
[]
[null,null,null,null,null,null,null,null,null,null,"Net Capital Charge",null,"Gross Capital Charge"]
[null,"Market Risk",null,null,null,null,null,null,null,null,null,{"$f":"SQRT(MMULT(TRANSPOSE(K58:K62),MMULT('Correlation Matrix'!C7:G11,K58:K62)))","v":0},null,{"$f":"SQRT(MMULT(TRANSPOSE(M58:M62),MMULT('Correlation Matrix'!C7:G11,M58:M62)))","v":0}]
[null,"Cfi","Fixed Income Investment Risk",null,null,null,{"$f":"ROUND('Fixed Income Investments (Prior'!F99,$N$166)","v":0},null,null,null,{"$f":"ROUND('Fixed Income Investments'!I136,$N$166)","v":0},null,{"$f":"ROUND('Fixed Income Investments'!I136,$N$166)","v":0},null,null,null,null,null,null,{"$f":"C58","v":"Fixed Income Investment Risk"},null,null,null,{"$f":"G58","v":0},{"$f":"IF($L$74=0,1/9,X58/$X$68)","v":0.1111111111111111},{"$f":"M58","v":0},{"$f":"IF($N$74=0,1/9,Z58/$Z$68)","v":0.1111111111111111},null,{"$f":"(SUM(AA$58:AA58)/AA$68)","v":0.11111111111111108},null,"FI",{"$f":"IF(AO58=\"\",IF(Test_Statistic<$AJ$74,AI58,IF(Test_Statistic<$AL$74,AK58,AM58)),AO58)","v":280},{"$f":"IF(AP58=\"\",IF(Test_Statistic<$AJ$74,AJ58,IF(Test_Statistic<$AL$74,AL58,AN58)),AP58)","v":60},null,{"$f":"IF(AC63>1,300,IF(AC63>0.6,260,240))","v":260},{"$f":"IF(AC65>1,50,IF(AC63>1,20,IF(AC63>0.6,25,15)))","v":25},{"$f":"IF(Test_Statistic_2<1,300,300)","v":300},60,280,60,null,null,"FI"]
[null,"Ceq","Equity Investment Risk",null,null,null,{"$f":"ROUND('Equity Investments (Prior)'!F51,$N$166)","v":0},null,null,null,{"$f":"ROUND('Equity Investments'!R56,$N$166)","v":0},null,{"$f":"ROUND('Equity Investments'!P56,$N$166)","v":0},null,null,null,null,null,null,{"$f":"C59","v":"Equity Investment Risk"},null,null,null,{"$f":"G59","v":0},{"$f":"IF($L$74=0,1/9,X59/$X$68)","v":0.1111111111111111},{"$f":"M59","v":0},{"$f":"IF($N$74=0,1/9,Z59/$Z$68)","v":0.1111111111111111},null,{"$f":"(SUM(AA$58:AA59)/AA$68)","v":0.22222222222222215},null,"EI",{"$f":"IF(AO59=\"\",IF(Test_Statistic<$AJ$74,AI59,IF(Test_Statistic<$AL$74,AK59,AM59)),AO59)","v":280},{"$f":"IF(AP59=\"\",IF(Test_Statistic<$AJ$74,AJ59,IF(Test_Statistic<$AL$74,AL59,AN59)),AP59)","v":140},null,{"$f":"IF(AC63>0.6,300,300)","v":300},{"$f":"IF(AC65>1,90,IF(AC63>1,60,IF(AC63>0.6,90,60)))","v":90},300,120,280,140,null,null,"EI"]
[null,"Cint","Interest Rate / Liquidity Risk",null,"Duration-Based Approach",null,{"$f":"ROUND('Interest Rate-Liquidity Risk'!G14,$N$166)","v":0},null,null,null,{"$f":"ROUND(IF(E60=\"Duration-Based Approach\",'Interest Rate-Liquidity Risk'!G14,'Interest Rate-Liquidity (Rev.)'!E117),$N$166)","v":0},null,{"$f":"ROUND(IF(E60=\"Duration-Based Approach\",'Interest Rate-Liquidity Risk'!G14,'Interest Rate-Liquidity (Rev.)'!D117),$N$166)","v":0},null,null,null,null,null,null,{"$f":"C60","v":"Interest Rate / Liquidity Risk"},null,null,null,{"$f":"G60","v":0},0.1111111111111111,{"$f":"M60","v":0},0.1111111111111111,null,{"$f":"(SUM(AA$58:AA60)/AA$68)","v":0.33333333333333326},null,"IR",{"$f":"IF(AO60=\"\",IF(Test_Statistic<$AJ$74,AI60,IF(Test_Statistic<$AL$74,AK60,AM60)),AO60)","v":180},250,null,{"$f":"IF(AC63>0.6,300,300)","v":300},{"$f":"IF(AC65>1,140,IF(AC63>1,120,IF(AC63>0.6,150,100)))","v":150},{"$f":"IF(Test_Statistic_2<0.95,280,260)","v":280},{"$f":"IF(Test_Statistic_2<0.95,170,200)","v":170},180,250,null,null,"IR"]
[null,"CCur","Currency Risk",null,null,null,{"$f":"+'Currency Risk (old)'!I28","v":0},null,null,null,{"$f":"'Currency Risk'!Y39","v":0},null,{"$f":"'Currency Risk'!X39","v":0},null,null,null,null,null,null,"Currency Risk",null,null,null,{"$f":"G61","v":0},0.1111111111111111,{"$f":"M61","v":0},0.1111111111111111,null,{"$f":"(SUM(AA$58:AA61)/AA$68)","v":0.44444444444444431}]
[null,"Cconc","Concentration Risk",null,null,null,{"$f":"+'Concentration Risk (Old)'!F111","v":0},null,null,null,{"$f":"'Concentration Risk'!F110","v":0},null,{"$f":"'Concentration Risk'!F110","v":0},null,null,null,null,null,null,"Concentration Risk",null,null,null,{"$f":"G62","v":0},0.1111111111111111,{"$f":"M62","v":0},0.1111111111111111,null,{"$f":"(SUM(AA$58:AA62)/AA$68)","v":0.55555555555555547}]
[null,null,null,null,null,null,null,null,null,null,null,null,null,null,null,null,null,null,null,{"$f":"C65","v":"Credit Risk"},null,null,null,{"$f":"G65","v":0},0.1111111111111111,{"$f":"M65","v":0},0.1111111111111111,null,{"$f":"(SUM(AA$58:AA65)/AA$68)","v":0.88888888888888884},{"$f":"IF(ISERROR(AVERAGE(AC65:AC65)),0,AVERAGE(AC65:AC65))","v":0.88888888888888884},"C",{"$f":"IF(AO65=\"\",IF(Test_Statistic<$AJ$74,AI63,IF(Test_Statistic<$AL$74,AK63,AM63)),AO65)","v":50},{"$f":"IF(AP65=\"\",IF(Test_Statistic<$AJ$74,AJ63,IF(Test_Statistic<$AL$74,AL63,AN63)),AP65)","v":50},null,{"$f":"IF(AC65>1,200,IF(AC63>1,50,IF(AC63>0.6,50,180)))","v":50},{"$f":"IF(AC65>1,5,IF(AC63>0.6,IF(AD65>0.5,60,120),IF(AC63>0.6,100,200)))","v":60},{"$f":"IF(Test_Statistic_2<0.95,50,160)","v":50},{"$f":"IF(Test_Statistic_2<0.95,70,5)","v":70},{"$f":"IF(Test_Statistic_2<1,50,180)","v":50},{"$f":"IF(Test_Statistic_2<1,50,5)","v":50}]
[null,"Credit Risk",null,null,null,null,null,null,null,null,null,{"$f":"K65","v":0},null,{"$f":"M65","v":0},null,null,null,null,null,{"$f":"C68","v":"Premium Risk"},null,null,null,{"$f":"G68","v":0},0.1111111111111111,{"$f":"M68","v":0},0.1111111111111111,null,{"$f":"(SUM(AA$58:AA64)/AA$68)","v":0.77777777777777768},{"$f":"IF(ISERROR(AVERAGE(AC60:AC64)),0,AVERAGE(AC60:AC64))","v":0.59999999999999987},"P",{"$f":"IF(AO68=\"\",IF(Test_Statistic<$AJ$74,AI64,IF(Test_Statistic<$AL$74,AK64,AM64)),AO68)","v":100},250,null,{"$f":"IF(AC65>1,250,IF(AC63>1,300,IF(AC63>0.6,260,300)))","v":260},{"$f":"IF(AC63>0.6,185,140)","v":185},{"$f":"IF(Test_Statistic_2<0.95,180,120)","v":180},200,100,250]
[null,"Ccred","Credit Risk",null,null,null,{"$f":"ROUND('Credit Risk (old)'!F41,$N$166)","v":0},null,null,null,{"$f":"ROUND('Credit Risk'!H84,$N$166)","v":0},null,{"$f":"ROUND('Credit Risk'!H84,$N$166)","v":0},null,null,null,null,null,null,{"$f":"C69","v":"Reserve Risk"},null,null,null,{"$f":"G69","v":0},0.1111111111111111,{"$f":"M69","v":0},0.1111111111111111,null,{"$f":"(SUM(AA$58:AA65)/AA$68)","v":0.88888888888888884},{"$f":"IF(ISERROR(AVERAGE(AC64:AC65)),0,AVERAGE(AC64:AC65))","v":0.83333333333333326},"R",{"$f":"IF(AO69=\"\",IF(Test_Statistic<$AJ$74,AI65,IF(Test_Statistic<$AL$74,AK65,AM65)),AO69)","v":50},160,null,{"$f":"IF(AC65>1,50,IF(AC63>0.6,120,260))","v":120},{"$f":"IF(AC65>1,90,IF(AC63>0.6,200,185))","v":200},50,{"$f":"IF(Test_Statistic_2<0.95,160,80)","v":160},{"$f":"IF(Test_Statistic_2<1,50,50)","v":50},150,null,null,"C"]
[null,null,null,null,null,null,null,null,null,null,null,null,null,null,null,null,null,null,null,{"$f":"C70","v":"Catastrophe Risk"},null,null,null,{"$f":"G70","v":0},0.1111111111111111,{"$f":"M70","v":0},0.1111111111111111,null,{"$f":"(SUM(AA$58:AA67)/AA$68)","v":1},null,"CAT",{"$f":"IF(AO70=\"\",IF(Test_Statistic<$AJ$74,AI66,IF(Test_Statistic<$AL$74,AK66,AM66)),AO70)","v":180},{"$f":"IF(AP70=\"\",IF(Test_Statistic<$AJ$74,AJ66,IF(Test_Statistic<$AL$74,AL66,AN66)),AP70)","v":5},null,{"$f":"IF(AC65>1,260,IF(AC63>1,200,IF(AC63>0.6,180,40)))","v":180},{"$f":"IF(AC65>1,15,IF(AC63>0.6,5,100))","v":5},{"$f":"IF(Test_Statistic_2<0.95,180,240)","v":180},{"$f":"IF(Test_Statistic_2<0.95,5,20)","v":5},{"$f":"IF(Test_Statistic_2<1,180,240)","v":180},{"$f":"IF(Test_Statistic_2<1,5,20)","v":5}]
[null,"P&C Insurance Risk",null,null,null,null,null,null,null,null,null,{"$f":"SQRT(MMULT(TRANSPOSE(K68:K70),MMULT('Correlation Matrix'!J7:L9,K68:K70)))","v":0},null,{"$f":"SQRT(MMULT(TRANSPOSE(M68:M70),MMULT('Correlation Matrix'!J7:L9,M68:M70)))","v":0}]
[null,"Cprem","Premium Risk",null,null,null,{"$f":"ROUND('Premium Risk (old)'!I78,$N$166)","v":0},null,null,null,{"$f":"ROUND('Premium Risk'!N59,$N$166)","v":0},null,{"$f":"ROUND('Premium Risk'!N59,$N$166)","v":0},null,null,null,null,null,null,"Total",null,null,null,{"$f":"SUM(X58:X67)","v":0},{"$f":"SUM(Y58:Y67)","v":1.0000000000000002},{"$f":"SUM(Z58:Z67)","v":0},{"$f":"SUM(AA58:AA67)","v":1.0000000000000002},null,null,null,null,null,null,null,null,null,null,null,null,null,null,null,"P"]
[null,"Crsvs","Reserve Risk",null,null,null,{"$f":"ROUND('Reserve Risk (old)'!H68,$N$166)","v":0},null,null,null,{"$f":"ROUND('Reserve Risk'!H53,$N$166)","v":0},null,{"$f":"ROUND('Reserve Risk'!H53,$N$166)","v":0},null,null,null,null,null,null,null,null,null,null,null,null,null,null,null,null,null,null,null,null,null,null,null,null,null,null,null,null,null,"R"]
[null,"Ccat","Catastrophe Risk",null,null,null,{"$f":"ROUND('Catastrophe Risk (old)'!E25,$N$166)","v":0},null,null,null,{"$f":"ROUND('Catastrophe Risk'!E25,$N$166)","v":0},null,{"$f":"ROUND('Catastrophe Risk'!E25,$N$166)","v":0},null,null,null,null,null,null,null,null,null,null,null,null,null,null,null,null,null,null,null,null,null,null,null,null,null,null,null,null,null,"CAT"]
[]
[null,"BSCR (Prior to Covariance Adjustment/Correlation Adjustment)",null,null,null,null,{"$f":"SUM(G58:G70)","v":0},null,null,null,null,{"$f":"SUM(K58:K70)","v":0},null,{"$f":"SUM(M58:M70)","v":0},null,null,null,null,null,null,null,null,null,null,null,null,null,null,null,null,null,null,null,null,{"$f":"AI74&\" - \"&AJ74","v":"0 - 0.425"},null,{"$f":"AJ74&\" - \"&AL74","v":"0.425 - 0.575"},null,{"$f":"AL74&\" - \"&AN74","v":"0.575 - 1"},null,"Use the above to manually change label positions."]
[]
[null,"BSCR (After Covariance Adjustment/Correlation Adjustment)",null,null,null,null,{"$f":"(G58^2+G59^2+G60^2+G61^2+G62^2+G68^2+G70^2+(1/2*G65+G69)^2+(1/2*G65)^2)^0.5","v":0},null,null,null,null,{"$f":"SQRT(MMULT(TRANSPOSE('Correlation Matrix'!Z6:Z8),MMULT('Correlation Matrix'!O7:Q9,'Correlation Matrix'!Z6:Z8)))","v":0},null,{"$f":"SQRT(MMULT(TRANSPOSE('Correlation Matrix'!W6:W8),MMULT('Correlation Matrix'!O7:Q9,'Correlation Matrix'!W6:W8)))","v":0},null,null,null,null,null,null,null,null,null,null,null,null,null,null,null,null,null,null,null,null,0,{"$f":"0.5-AI92","v":0.42499999999999999},{"$f":"AJ74","v":0.42499999999999999},{"$f":"0.5+AI92","v":0.57499999999999996},{"$f":"AL74","v":0.57499999999999996},1]
[]
[null,"Operational risk charge (%)",null,null,null,null,{"$f":"'Op Risk (Original)'!D23","v":0.1},null,null,null,null,null,null,{"$f":"'Op Risk'!D23","v":0.2}]
[]
[null,"Operational risk capital charge ($)",null,null,null,null,{"$f":"$G$74*$G$76","v":0},null,null,null,null,null,null,{"$f":"($N$74+M147)*$N$76","v":0},null,null,null,null,null,null,null,null,null,"Minimum Solvency Margin",null,{"$f":"MAX(Z86,Z88,Z92)","v":1000},"ECR",null,{"$f":"MAX($Z$78,$N$90)","v":1000}]
[]
[null,"Cadj","Capital Adjustment for (Regulatory) Capital Requirement for Regulated Non-Insurance Financial Operating Entities:",null,null,null,{"$f":"+'Schedule XVI'!M211","v":0},null,null,null,null,null,null,{"$f":"+'Schedule XVI'!M211","v":0}]
[]
[null,"CMgmtAction",null,null,null,null,null,null,null,null,null,null,null,{"$f":"M147","v":0}]
[]
[null,"Other Capital Adjustment",null,null,null,null,0,null,null,null,null,null,null,{"$f":"M152","v":0}]
[]
[null,"Capital add-on / reduction (BMA assessment)",null,null,null,null,{"$f":"'CSP (old)'!I524-'CSP (old)'!F524","v":0},null,null,null,null,null,null,{"$f":"'Company Specific Parameters'!L701-'Company Specific Parameters'!I701","v":0},null,null,null,null,null,null,null,null,null,"LRSO",null,{"$f":"IF('Company Information'!B2=\"Unconsolidated BSCR Model\",'Form 1SFS'!M124*15%,'Form 1SFS'!E124*15%)","v":0}]
[]
[null,"Transition BSCR ",null,null,null,null,0,null,null,null,"Rate",{"$f":"IF('Information Sheet'!$H$13>='Correlation Matrix'!$S$8,'Correlation Matrix'!$T$8,IF('Information Sheet'!$H$13>='Correlation Matrix'!$S$7,'Correlation Matrix'!$T$7,'Correlation Matrix'!$T$6))","v":0.33},null,{"$f":"G90+((N90-G90)*L88)","v":0},null,null,null,null,null,null,null,null,"2020-12-31","Minimum Capital & Surplus",null,{"$f":"IF('Company Information'!F11=\"Class 4\",IF(CONFIGURATION!B12=1000,100000,100000000),IF(CONFIGURATION!B12=1000,1000,1000000))*IFERROR((1/'Information Sheet'!$H$18),1)","v":1000}]
[null,null,null,null,null,null,null,null,null,null,null,null,null,null,null,null,null,null,null,null,null,null,"2021-12-31"]
[null,"Full BSCR ",null,null,null,null,{"$f":"G74+G78+G86+G80","v":0},null,null,null,null,null,null,{"$f":"N74+N78+N86+N80+N84+N82","v":0}]
[]
[null,"AVAILABLE STATUTORY CAPITAL AND SURPLUS",null,null,null,null,null,null,null,null,null,null,null,null,null,null,null,null,null,null,null,null,null,"Premiums",null,{"$f":"L20","v":0},null,null,null,null,null,null,null,null,7.4999999999999997E-2,"Swing"]
[]
[null,"Total statutory economic capital and surplus",null,null,"Form 1EBS, Line (40)",null,null,null,null,null,null,null,null,{"$f":"'Form 1EBS'!F167","v":0},null,null,null,null,null,null,null,null,"Data for Column Chart"]
[null,"Capital Contribution"]
[null,"Pre-adjustment available statutory economic capital and surplus",null,null,null,null,null,null,null,null,null,null,null,{"$f":"N94+N95","v":0}]
[]
[null,null,"Capital add-on / reduction (BMA Assessment)"]
[]
[null,"Available Statutory Economic Capital and Surplus",null,null,null,null,null,null,null,null,null,null,null,{"$f":"N96-SUM(N98:N98)","v":0}]
[]
[null,"MINIMUM MARGIN OF SOLVENCY"]
[]
[null,"Minimum Margin of Solvency (Calculation)",null,null,null,null,null,null,null,null,null,null,null,{"$f":"MAX(Z78,(N88*25%))","v":1000}]
[null,"Approved Minimum Margin of Solvency (if applicable)"]
[null,"Minimum Margin of Solvency",null,null,null,null,null,null,null,null,null,null,null,{"$f":"SUM(N104:N105)","v":1000},null,null,null,null,null,null,null,null,null,null,null,null,"Bottom",null,"Top","Level"]
[]
[null,"ENHANCED CAPITAL REQUIREMENT & TARGET CAPITAL LEVEL",null,null,null,null,null,null,null,null,null,null,null,null,null,null,null,null,null,null,null,null,null,"Adjusted Surplus","Available Statutory Capital and Surplus",null,{"$f":"IF($N$100=0,15000000,$N$100)","v":15000000},null,{"$f":"AC$122-AA108","v":10000000},{"$f":"IF($N$100=0,25000000,$N$100)","v":25000000}]
[]
[null,"Transition Enhanced Capital Requirement",null,null,null,null,null,null,null,null,null,null,null,{"$f":"MAX(N88,N106)","v":1000}]
[]
[null,"Enhanced Capital Requirement",null,null,null,null,null,null,null,null,null,null,null,{"$f":"MAX(N106,N90)","v":1000},null,null,null,null,null,null,null,null,null,"Mandatory Control Level (100% of ACL)","Regulatory Action Level 1",1,{"$f":"IF($AC$78=100000,15000000,$AC$78)","v":1000},null,{"$f":"AC$122-AA112","v":24999000},{"$f":"Z112*AA$113","v":1000}]
[null,null,null,null,null,null,null,null,null,null,null,null,null,null,null,null,null,null,null,null,null,null,null,"Authorized Control Level (120% of ACL)","Regulatory Action Level 2",1.2,{"$f":"IF($AC$78=100000,15000000,$AC$78)","v":1000},null,{"$f":"AC$122-AA113","v":24999000},{"$f":"Z113*AA$113","v":1200}]
[null,"Transition Target Capital Level",null,null,null,null,null,null,null,null,null,null,null,{"$f":"N110*1.2","v":1200}]
[null,null,null,null,null,null,null,null,null,null,null,null,null,null,null,null,null,null,null,null,null,null,null,"Authorized Control Leval (120% of ACL)","Regulatory Action Level 2",1.2,{"$f":"IF($AC$78=100000,15000000,$AC$78)","v":1000},null,{"$f":"AC$122-AA115","v":24999000},{"$f":"Z115*AA$113","v":1200}]
[null,"Target Capital Level",null,null,null,null,null,null,null,null,null,null,null,{"$f":"$N$112*1.2","v":1200},null,null,null,null,null,null,null,null,null,null,"AL3",null,{"$f":"IF(N74=0,15000000,N74)","v":15000000},null,{"$f":"AC$122-AA116","v":10000000},{"$f":"Z116*AA$113","v":0}]
[null,null,null,null,null,null,null,null,null,null,null,null,null,null,null,null,null,null,null,null,null,null,null,null,"AL4",null,{"$f":"IF(N74=0,15000000,N74)","v":15000000},null,{"$f":"AC$122-AA117","v":10000000},{"$f":"Z117*AA$113","v":0}]
[null,"RATIOS"]
[]
[null,"Transition Bermuda Solvency Capital Requirement Ratio",null,null,null,null,null,null,null,null,null,null,null,{"$f":"IF(N88=0,\"n/a\",N100/N88)","v":"n/a"}]
[]
[null,"Bermuda Solvency Capital Requirement Ratio",null,null,null,null,null,null,null,null,null,null,null,{"$f":"IF($N$90=0,\"n/a\",$N$100/$N$90)","v":"n/a"},null,null,null,null,null,null,null,null,null,null,null,null,"Max Column",null,{"$f":"MAX(AD108:AD117)","v":25000000}]
[]
[null,"Transition Enhanced Capital Requirement Ratio",null,null,null,null,null,null,null,null,null,null,null,{"$f":"IF(N110=0,\"n/a\",N100/N110)","v":0}]
[]
[null,"Enhanced Capital Requirement Ratio",null,null,null,null,null,null,null,null,null,null,null,{"$f":"IF($N$90=0,\"n/a\",$N$100/$N$112)","v":"n/a"}]
[]
[null,"Enhancement Capital Requirement Met",null,null,null,null,null,null,null,null,null,null,null,{"$f":"IF(N126=\"n/a\",\"n/a\",IF(AND(N126>100%,K140=\"Yes\",M140=\"Yes\"),\"YES\",\"NO\"))","v":"n/a"}]
[]
[]
[null,"Eligible Capital"]
[]
[null,null,null,null,null,null,null,null,null,null,"Applied to MSM",null,"Applied to ECR"]
[]
[null,"Tier 1 Capital ",null,null,null,null,null,null,null,null,{"$f":"'Schedule XII(a)'!G92","v":0},null,{"$f":"'Schedule XII(a)'!I92","v":0}]
[null,"Tier 2 Capital ",null,null,null,null,null,null,null,null,{"$f":"'Schedule XII(a)'!G93","v":0},null,{"$f":"'Schedule XII(a)'!I93","v":0}]
[null,"Tier 3 Capital ",null,null,null,null,null,null,null,null,null,null,{"$f":"'Schedule XII(a)'!I94","v":0}]
[null,"Total Capital",null,null,null,null,null,null,null,null,{"$f":"+'Schedule XII(a)'!G95","v":0},null,{"$f":"+'Schedule XII(a)'!I95","v":0}]
[]
[null,"Insurer met Eligible Capital Requirement",null,null,null,null,null,null,null,null,{"$f":"IF(K138>=N106,\"YES\",\"NO\")","v":"NO"},null,{"$f":"IF(M138>=N112,\"YES\",\"NO\")","v":"NO"}]
[]
[]
[null,"Capital Adjustment - Management Action "]
[]
[null,"Implied Loss-absorbing capacity of Technical Provisions without cap",null,null,null,null,null,null,null,null,null,null,{"$f":"N74-L74","v":0}]
[null,"Initial FDB / Bonus reserve on EBS basis",null,null,null,null,null,null,null,null,null,null,{"$f":"Import!M45101","v":0}]
[null,"Adj. for the Loss-absorbing capacity of Tech. Provisions",null,null,null,null,null,null,null,null,null,null,{"$f":"-MAX(MIN(M145,M146),0)","v":0}]
[]
[]
[null,"Other Capital Adjustment"]
[]
[null,"Adjustment = min (BSCR x t, Limit, 20% x BSCR)",null,null,null,null,null,null,null,null,null,null,{"$f":"-MIN(D158,K161,M157)","v":0}]
[]
[null,"Test 1",null,null,"Test 2",null,null,null,null,null,null,"Test 3"]
[]
[null,"BSCR",null,{"$f":"N74+N78+N80+N82+N86","v":0},"Limit = Past LAC + Current LAC + Future LAC",null,null,null,null,null,null,"BSCR",{"$f":"N74+N78+N80+N86+N82","v":0}]
[null,"T",null,{"$f":"Import!M45099","v":0},"Loss Carryback Provision",null,null,null,null,null,{"$f":"MAX(0,Import!M45100)","v":0},0.2,{"$f":"M156*L157","v":0}]
[null,"Test Result",null,{"$f":"MAX(0,D156*D157)","v":0},"PAST LAC",null,null,null,null,null,{"$f":"K157*D157","v":0}]
[null,null,null,null,"Current LAC",null,null,null,null,null,{"$f":"'Form 1EBS'!F131-'Form 1EBS'!F79","v":0}]
[null,null,null,null,"Future LAC",null,null,null,null,null,{"$f":"'Form 1EBS'!F117*D157","v":0}]
[null,null,null,null,"Total Limit",null,null,null,null,null,{"$f":"MAX(0,SUM(K158:K160))","v":0}]
[]
[]
[]
[]
[null,"Rounding (decimal places)",null,null,null,null,null,null,null,null,null,null,null,10]

{"sheet":"Fixed Income Investments (Prior","index":113,"n_rows":99,"n_cols":6,"rows_kept":99,"cut":false,"hidden":true,"merged":[[102,0,102,1],[0,5,0,6]]}
["FIXED INCOME INVESTMENTS",null,null,null,null,{"$f":"HYPERLINK(\"#'Index'!A1\",\"Return to Index\")","v":"Return to Index"}]
[{"$f":"'Company Information'!C7","v":"Enter Company Name"}]
["Fixed Income Investment Risk",null,{"$f":"'Company Information'!C3","v":"2023-12-31"},-1,-2,-3]
[]
[]
[null,"TYPE OF ",null,"ASSET","CAPITAL","REQUIRED"]
[null,"FIXED INCOME INVESTMENTS","STATEMENT SOURCE","VALUE","FACTOR","CAPITAL"]
[]
[null,"(a)  Corporate & Sovereign Bonds",null,null,null,"(1) x (2)"]
[]
[null,"BSCR Rating"]
[null,0,"Sch II EBS, Line (1), Column 1 and Sch IIA EBS, Line (1), Column 1",{"$f":"'Schedule II (EBS)'!D12+'Schedule IIA (EBS)'!D12","v":0},0,{"$f":"IF(D12<0,0,D12*E12)","v":0}]
[null,1,"Sch II EBS, Line (2), Column 1 and Sch IIA EBS, Line (2), Column 1",{"$f":"'Schedule II (EBS)'!D13+'Schedule IIA (EBS)'!D13","v":0},4.0000000000000001E-3,0]
[null,2,"Sch II EBS, Line (3), Column 1 and Sch IIA EBS, Line (3), Column 1",{"$f":"'Schedule II (EBS)'!D14+'Schedule IIA (EBS)'!D14","v":0},8.0000000000000002E-3,0]
[null,3,"Sch II EBS, Line (4), Column 1 and Sch IIA EBS, Line (4), Column 1",{"$f":"'Schedule II (EBS)'!D15+'Schedule IIA (EBS)'!D15","v":0},1.4999999999999999E-2,0]
[null,4,"Sch II EBS, Line (5), Column 1 and Sch IIA EBS, Line (5), Column 1",{"$f":"'Schedule II (EBS)'!D16+'Schedule IIA (EBS)'!D16","v":0},0.03,0]
[null,5,"Sch II EBS, Line (6), Column 1 and Sch IIA EBS, Line (6), Column 1",{"$f":"'Schedule II (EBS)'!D17+'Schedule IIA (EBS)'!D17","v":0},0.08,0]
[null,6,"Sch II EBS, Line (7), Column 1 and Sch IIA EBS, Line (7), Column 1",{"$f":"'Schedule II (EBS)'!D18+'Schedule IIA (EBS)'!D18","v":0},0.15,{"$f":"IF(D18<0,0,D18*E18)","v":0}]
[null,7,"Sch II EBS, Line (8), Column 1 and Sch IIA EBS, Line (8), Column 1",{"$f":"'Schedule II (EBS)'!D19+'Schedule IIA (EBS)'!D19","v":0},0.26300000000000001,{"$f":"IF(D19<0,0,D19*E19)","v":0}]
[null,8,"Sch II EBS, Line (9), Column 1 and Sch IIA EBS, Line (9), Column 1",{"$f":"'Schedule II (EBS)'!D20+'Schedule IIA (EBS)'!D20","v":0},0.35,{"$f":"IF(D20<0,0,D20*E20)","v":0}]
[]
[null,"(a)  SUBTOTAL -  CORPORATE BONDS",null,{"$f":"SUM(D11:D20)","v":0},null,{"$f":"IF(SUM(F11:F20)>=0,SUM(F11:F20),0)","v":0}]
[]
[null,"(b) Residential Mortgage-Backed Securities"]
[]
[null,"BSCR Rating"]
[null,1,"Sch II EBS, Line (2), Column 3 and Sch IIA EBS, Line (2), Column 3",{"$f":"'Schedule II (EBS)'!H13+'Schedule IIA (EBS)'!H13","v":0},6.0000000000000001E-3,{"$f":"IF(D27<0,0,D27*E27)","v":0}]
[null,2,"Sch II EBS, Line (3), Column 3 and Sch IIA EBS, Line (3), Column 3",{"$f":"'Schedule II (EBS)'!H14+'Schedule IIA (EBS)'!H14","v":0},1.2E-2,0]
[null,3,"Sch II EBS, Line (4), Column 3 and Sch IIA EBS, Line (4), Column 3",{"$f":"'Schedule II (EBS)'!H15+'Schedule IIA (EBS)'!H15","v":0},0.02,0]
[null,4,"Sch II EBS, Line (5), Column 3 and Sch IIA EBS, Line (5), Column 3",{"$f":"'Schedule II (EBS)'!H16+'Schedule IIA (EBS)'!H16","v":0},0.04,0]
[null,5,"Sch II EBS, Line (6), Column 3 and Sch IIA EBS, Line (6), Column 3",{"$f":"'Schedule II (EBS)'!H17+'Schedule IIA (EBS)'!H17","v":0},0.11,0]
[null,6,"Sch II EBS, Line (7), Column 3 and Sch IIA EBS, Line (7), Column 3",{"$f":"'Schedule II (EBS)'!H18+'Schedule IIA (EBS)'!H18","v":0},0.25,0]
[null,7,"Sch II EBS, Line (8), Column 3 and Sch IIA EBS, Line (8), Column 3",{"$f":"'Schedule II (EBS)'!H19+'Schedule IIA (EBS)'!H19","v":0},0.35,0]
[null,8,"Sch II EBS, Line (9), Column 3 and Sch IIA EBS, Line (9), Column 3",{"$f":"'Schedule II (EBS)'!H20+'Schedule IIA (EBS)'!H20","v":0},0.35,0]
[]
[null,"(b)  SUBTOTAL - RESIDENTIAL MORTGAGE-BACKED SECURITIES",null,{"$f":"SUM(D27:D34)","v":0},null,{"$f":"IF(SUM(F27:F34)>=0,SUM(F27:F34),0)","v":0}]
[]
[null,"(c) Commercial Mortgage-Backed Securities / Asset-Backed Securities"]
[]
[null,"BSCR Rating"]
[null,1,"Sch II EBS, Line (2), Column 5 and Sch IIA EBS, Line (2), Column 5",{"$f":"'Schedule II (EBS)'!L13+'Schedule IIA (EBS)'!L13","v":0},5.0000000000000001E-3,{"$f":"IF(D41<0,0,D41*E41)","v":0}]
[null,2,"Sch II EBS, Line (3), Column 5 and Sch IIA EBS, Line (3), Column 5",{"$f":"'Schedule II (EBS)'!L14+'Schedule IIA (EBS)'!L14","v":0},0.01,0]
[null,3,"Sch II EBS, Line (4), Column 5 and Sch IIA EBS, Line (4), Column 5",{"$f":"'Schedule II (EBS)'!L15+'Schedule IIA (EBS)'!L15","v":0},1.7999999999999999E-2,0]
[null,4,"Sch II EBS, Line (5), Column 5 and Sch IIA EBS, Line (5), Column 5",{"$f":"'Schedule II (EBS)'!L16+'Schedule IIA (EBS)'!L16","v":0},3.5000000000000003E-2,0]
[null,5,"Sch II EBS, Line (6), Column 5 and Sch IIA EBS, Line (6), Column 5",{"$f":"'Schedule II (EBS)'!L17+'Schedule IIA (EBS)'!L17","v":0},0.1,0]
[null,6,"Sch II EBS, Line (7), Column 5 and Sch IIA EBS, Line (7), Column 5",{"$f":"'Schedule II (EBS)'!L18+'Schedule IIA (EBS)'!L18","v":0},0.2,0]
[null,7,"Sch II EBS, Line (8), Column 5 and Sch IIA EBS, Line (8), Column 5",{"$f":"'Schedule II (EBS)'!L19+'Schedule IIA (EBS)'!L19","v":0},0.3,0]
[null,8,"Sch II EBS, Line (9), Column 5 and Sch IIA EBS, Line (9), Column 5",{"$f":"'Schedule II (EBS)'!L20+'Schedule IIA (EBS)'!L20","v":0},0.35,0]
[]
[]
[null,"(c)  SUBTOTAL - COMMERCIAL MORTGAGE-BACKED SECURITIES / ASSET-BACKED SECURITIES",null,{"$f":"SUM(D41:D48)","v":0},null,{"$f":"IF(SUM(F41:F48)>=0,SUM(F41:F48),0)","v":0}]
[]
[null,"(d) Bond Mutual Funds"]
[]
[null,"BSCR Rating"]
[null,0,"Sch II EBS, Line (1), Column 7 and Sch IIA EBS, Line (1), Column 7",{"$f":"'Schedule II (EBS)'!P12+'Schedule IIA (EBS)'!P12","v":0},0,{"$f":"IF(D56<0,0,D56*E56)","v":0}]
[null,1,"Sch II EBS, Line (2), Column 7 and Sch IIA EBS, Line (2), Column 7",{"$f":"'Schedule II (EBS)'!P13+'Schedule IIA (EBS)'!P13","v":0},4.0000000000000001E-3,0]
[null,2,"Sch II EBS, Line (3), Column 7 and Sch IIA EBS, Line (3), Column 7",{"$f":"'Schedule II (EBS)'!P14+'Schedule IIA (EBS)'!P14","v":0},8.0000000000000002E-3,0]
[null,3,"Sch II EBS, Line (4), Column 7 and Sch IIA EBS, Line (4), Column 7",{"$f":"'Schedule II (EBS)'!P15+'Schedule IIA (EBS)'!P15","v":0},1.4999999999999999E-2,0]
[null,4,"Sch II EBS, Line (5), Column 7 and Sch IIA EBS, Line (5), Column 7",{"$f":"'Schedule II (EBS)'!P16+'Schedule IIA (EBS)'!P16","v":0},0.03,0]
[null,5,"Sch II EBS, Line (6), Column 7 and Sch IIA EBS, Line (6), Column 7",{"$f":"'Schedule II (EBS)'!P17+'Schedule IIA (EBS)'!P17","v":0},0.08,0]
[null,6,"Sch II EBS, Line (7), Column 7 and Sch IIA EBS, Line (7), Column 7",{"$f":"'Schedule II (EBS)'!P18+'Schedule IIA (EBS)'!P18","v":0},0.15,0]
[null,7,"Sch II EBS, Line (8), Column 7 and Sch IIA EBS, Line (8), Column 7",{"$f":"'Schedule II (EBS)'!P19+'Schedule IIA (EBS)'!P19","v":0},0.26300000000000001,0]
[null,8,"Sch II EBS, Line (9), Column 7 and Sch IIA EBS, Line (9), Column 7",{"$f":"'Schedule II (EBS)'!P20+'Schedule IIA (EBS)'!P20","v":0},0.35,0]
[]
[null,"(d)  SUBTOTAL - BOND MUTUAL FUNDS",null,{"$f":"SUM(D56:D64)","v":0},null,{"$f":"IF(SUM(F56:F64)>=0,SUM(F56:F64),0)","v":0}]
[]
[null,"(e) Mortgage Loans"]
[]
[null,"Insured/Guaranteed Mortgages","Sch II EBS, Line (22), Column 1 and Sch IIA EBS, Line (22), Column 1",{"$f":"'Schedule II (EBS)'!D57+'Schedule IIA (EBS)'!D57","v":0},3.0000000000000001E-3,{"$f":"IF(D70<0,0,D70*E70)","v":0}]
[null,"Other Commercial and Farm Mortgages","Sch II EBS, Line (23), Column 1 and Sch IIA EBS, Line (23), Column 1 ",{"$f":"'Schedule II (EBS)'!D58+'Schedule IIA (EBS)'!D58","v":0},0.05,{"$f":"IF(D71<0,0,D71*E71)","v":0}]
[null,"Other Residential Mortgages","Sch II EBS, Line (24), Column 1 and Sch IIA EBS, Line (24), Column 1",{"$f":"'Schedule II (EBS)'!D59+'Schedule IIA (EBS)'!D59","v":0},1.4999999999999999E-2,{"$f":"IF(D72<0,0,D72*E72)","v":0}]
[null,"Mortgages Not In Good Standing","Sch II EBS, Line (25), Column 1 and Sch IIA EBS, Line (25), Column 1",{"$f":"'Schedule II (EBS)'!D60+'Schedule IIA (EBS)'!D60","v":0},0.25,{"$f":"IF(D73<0,0,D73*E73)","v":0}]
[]
[null,"(e)  SUBTOTAL - MORTGAGE LOANS",null,{"$f":"SUM(D70:D73)","v":0},null,{"$f":"IF(SUM(F70:F73)>=0,SUM(F70:F73),0)","v":0}]
[]
[null,"(f) Other Fixed Income Investments"]
[]
[null,"Other Loans","Form 1EBS, Line (8)",{"$f":"'Form 1EBS'!F52","v":0},0.05,{"$f":"IF($D$79<0,0,$D$79*$E$79)","v":0}]
[]
[null,"Cash and Cash Equivalent Counterparty Balances By BSCR Rating"]
[]
[null,"BSCR Rating 0 ","Schedule XIX, Column B",{"$f":"+'Schedule XIX'!H81","v":0},0,{"$f":"IF($D$83<0,0,$D$83*$E$83)","v":0}]
[null,"BSCR Rating 1","Schedule XIX, Column B",{"$f":"+'Schedule XIX'!H82","v":0},1E-3,{"$f":"IF($D$84<0,0,$D$84*$E$84)","v":0}]
[null,"BSCR Rating 2","Schedule XIX, Column B",{"$f":"+'Schedule XIX'!H83","v":0},2E-3,{"$f":"IF($D$85<0,0,$D$85*$E$85)","v":0}]
[null,"BSCR Rating 3","Schedule XIX, Column B",{"$f":"+'Schedule XIX'!H84","v":0},3.0000000000000001E-3,{"$f":"IF($D$86<0,0,$D$86*$E$86)","v":0}]
[null,"BSCR Rating 4","Schedule XIX, Column B",{"$f":"+'Schedule XIX'!H85","v":0},5.0000000000000001E-3,{"$f":"IF($D$87<0,0,$D$87*$E$87)","v":0}]
[null,"BSCR Rating 5","Schedule XIX, Column B",{"$f":"+'Schedule XIX'!H86","v":0},1.4999999999999999E-2,{"$f":"IF($D$88<0,0,$D$88*$E$88)","v":0}]
[null,"BSCR Rating 6","Schedule XIX, Column B",{"$f":"+'Schedule XIX'!H87","v":0},0.04,{"$f":"IF($D$89<0,0,$D$89*$E$89)","v":0}]
[null,"BSCR Rating 7","Schedule XIX, Column B",{"$f":"+'Schedule XIX'!H88","v":0},0.06,{"$f":"IF($D$90<0,0,$D$90*$E$90)","v":0}]
[null,"BSCR Rating 8","Schedule XIX, Column B",{"$f":"+'Schedule XIX'!H89","v":0},0.09,{"$f":"IF($D$91<0,0,$D$91*$E$91)","v":0}]
[]
[null,"Total",null,{"$f":"SUM(D83:D92)","v":0},null,{"$f":"SUM(F83:F92)","v":0}]
[]
[null,"Diversification Adjustment up to 40%",null,null,{"$f":"+'Schedule XIX'!H98","v":0},{"$f":"SUM(F83:F91)*-('Schedule XIX'!H98)","v":0}]
[]
[null,"(f)  SUBTOTAL - OTHER FIXED INCOME SECURITIES",null,{"$f":"D79+D93","v":0},null,{"$f":"IF(SUM(F79,F83:F91,F95)>=0,SUM(F79,F83:F91,F95),0)","v":0}]
[]
[null,"(g)  TOTAL FIXED INCOME INVESTMENTS [ (a)+(b)+(c)+(d)+(e)+(f) ]",null,{"$f":"D22+D36+D51+D66+D75+D97","v":0},null,{"$f":"F22+F36+F51+F66+F75+F97","v":0}]

{"sheet":"Fixed Income Investments","index":114,"n_rows":136,"n_cols":9,"rows_kept":136,"cut":false,"hidden":false,"merged":[[0,8,0,9],[139,0,139,1],[31,2,31,5],[32,2,32,5],[33,2,33,5],[40,2,40,5],[41,2,41,5],[42,2,42,5],[43,2,43,5],[44,2,44,5],[45,2,45,5],[46,2,46,5],[47,2,47,5],[55,2,55,5],[56,2,56,5],[57,2,57,5],[100,2,100,5],[101,2,101,3],[101,4,101,5],[115,2,115,5],[116,2,116,3],[116,4,116,5],[2,2,2,3],[11,2,11,5],[12,2,12,5],[13,2,13,5],[14,2,14,5],[15,2,15,5],[16,2,16,5],[17,2,17,5],[18,2,18,5],[19,2,19,5],[69,2,69,5],[70,2,70,5],[71,2,71,5],[72,2,72,5],[26,2,26,5],[27,2,27,5],[28,2,28,5],[29,2,29,5],[30,2,30,5],[58,2,58,5],[59,2,59,5],[60,2,60,5],[61,2,61,5],[62,2,62,5],[63,2,63,5]]}
["FIXED INCOME INVESTMENTS (REVISED)",null,null,null,null,null,null,null,{"$f":"HYPERLINK(\"#'Index'!A1\",\"Return to Index\")","v":"Return to Index"}]
[{"$f":"'Company Information'!C7","v":"Enter Company Name"}]
[{"$f":"\"Fixed Income Investment Risk\"&\"($\"&IF(CONFIGURATION!$B$12>1,MID(CONFIGURATION!$B$12,2,LEN(CONFIGURATION!$B$12)),\"\")&\")\"","v":"Fixed Income Investment Risk($000)"},null,{"$f":" TEXT('Company Information'!C3,\"d mmmm yyyy\")","v":"31 December 2023"},null,null,null,-1,-2,-3]
[]
[]
[null,"TYPE OF ",null,null,null,null,"ASSET","CAPITAL","REQUIRED"]
[null,"FIXED INCOME INVESTMENTS",null,null,null,null,"VALUE","FACTOR","CAPITAL"]
[]
[null,"(a)  Corporate & Sovereign Bonds",null,null,null,null,null,null,"(1) x (2)"]
[]
[null,"BSCR Rating"]
[null,0,"Sch IIB, Column (1), Line 1, Sch IIC, Column (1), Line 1, (Sch IID, Column (1), Line 1 - Column (2), Line 1), Sch IIE, Column (1), Line 1, Sch IIF, Column (1), Line 1",null,null,null,{"$f":"'Schedule IIB (EBS)'!D13+'Schedule IIC (EBS)'!D13+(MAX(0,'Schedule IID (EBS)'!D13-'Schedule IID (EBS)'!F13))+'Schedule IIE (EBS)'!D13+'Schedule IIF (EBS)'!D13","v":0},0,{"$f":"IF(G12<0,0,G12*H12)","v":0}]
[null,1,"Sch IIB, Column (1), Line 2, Sch IIC, Column (1), Line 2, (Sch IID, Column (1), Line 2 - Column (2), Line 2), Sch IIE, Column (1), Line 2, Sch IIF, Column (1), Line 2",null,null,null,{"$f":"'Schedule IIB (EBS)'!D14+'Schedule IIC (EBS)'!D14+(MAX(0,'Schedule IID (EBS)'!D14-'Schedule IID (EBS)'!F14))+'Schedule IIE (EBS)'!D14+'Schedule IIF (EBS)'!D14","v":0},4.0000000000000001E-3,0]
[null,2,"Sch IIB, Column (1), Line 3, Sch IIC, Column (1), Line 3, (Sch IID, Column (1), Line 3 - Column (2), Line 3), Sch IIE, Column (1), Line 3, Sch IIF, Column (1), Line 3",null,null,null,{"$f":"'Schedule IIB (EBS)'!D15+'Schedule IIC (EBS)'!D15+(MAX(0,'Schedule IID (EBS)'!D15-'Schedule IID (EBS)'!F15))+'Schedule IIE (EBS)'!D15+'Schedule IIF (EBS)'!D15","v":0},8.0000000000000002E-3,0]
[null,3,"Sch IIB, Column (1), Line 4, Sch IIC, Column (1), Line 4, (Sch IID, Column (1), Line 4 - Column (2), Line 4), Sch IIE, Column (1), Line 4, Sch IIF, Column (1), Line 4",null,null,null,{"$f":"'Schedule IIB (EBS)'!D16+'Schedule IIC (EBS)'!D16+(MAX(0,'Schedule IID (EBS)'!D16-'Schedule IID (EBS)'!F16))+'Schedule IIE (EBS)'!D16+'Schedule IIF (EBS)'!D16","v":0},1.4999999999999999E-2,0]
[null,4,"Sch IIB, Column (1), Line 5, Sch IIC, Column (1), Line 5, (Sch IID, Column (1), Line 5 - Column (2), Line 5), Sch IIE, Column (1), Line 5, Sch IIF, Column (1), Line 5",null,null,null,{"$f":"'Schedule IIB (EBS)'!D17+'Schedule IIC (EBS)'!D17+(MAX(0,'Schedule IID (EBS)'!D17-'Schedule IID (EBS)'!F17))+'Schedule IIE (EBS)'!D17+'Schedule IIF (EBS)'!D17","v":0},0.03,0]
[null,5,"Sch IIB, Column (1), Line 6, Sch IIC, Column (1), Line 6, (Sch IID, Column (1), Line 6 - Column (2), Line 6), Sch IIE, Column (1), Line 6, Sch IIF, Column (1), Line 6",null,null,null,{"$f":"'Schedule IIB (EBS)'!D18+'Schedule IIC (EBS)'!D18+(MAX(0,'Schedule IID (EBS)'!D18-'Schedule IID (EBS)'!F18))+'Schedule IIE (EBS)'!D18+'Schedule IIF (EBS)'!D18","v":0},0.08,0]
[null,6,"Sch IIB, Column (1), Line 7, Sch IIC, Column (1), Line 7, (Sch IID, Column (1), Line 7 - Column (2), Line 7), Sch IIE, Column (1), Line 7, Sch IIF, Column (1), Line 7",null,null,null,{"$f":"'Schedule IIB (EBS)'!D19+'Schedule IIC (EBS)'!D19+(MAX(0,'Schedule IID (EBS)'!D19-'Schedule IID (EBS)'!F19))+'Schedule IIE (EBS)'!D19+'Schedule IIF (EBS)'!D19","v":0},0.15,{"$f":"IF(G18<0,0,G18*H18)","v":0}]
[null,7,"Sch IIB, Column (1), Line 8, Sch IIC, Column (1), Line 8, (Sch IID, Column (1), Line 8 - Column (2), Line 8), Sch IIE, Column (1), Line 8, Sch IIF, Column (1), Line 8",null,null,null,{"$f":"'Schedule IIB (EBS)'!D20+'Schedule IIC (EBS)'!D20+(MAX(0,'Schedule IID (EBS)'!D20-'Schedule IID (EBS)'!F20))+'Schedule IIE (EBS)'!D20+'Schedule IIF (EBS)'!D20","v":0},0.26300000000000001,{"$f":"IF(G19<0,0,G19*H19)","v":0}]
[null,8,"Sch IIB, Column (1), Line 9, Sch IIC, Column (1), Line 9, (Sch IID, Column (1), Line 9 - Column (2), Line 9), Sch IIE, Column (1), Line 9, Sch IIF, Column (1), Line 9",null,null,null,{"$f":"'Schedule IIB (EBS)'!D21+'Schedule IIC (EBS)'!D21+(MAX(0,'Schedule IID (EBS)'!D21-'Schedule IID (EBS)'!F21))+'Schedule IIE (EBS)'!D21+'Schedule IIF (EBS)'!D21","v":0},0.35,{"$f":"IF(G20<0,0,G20*H20)","v":0}]
[]
[null,"(a)  SUBTOTAL -  CORPORATE BONDS",null,null,null,null,{"$f":"SUM(G11:G20)","v":0},null,{"$f":"IF(SUM(I11:I20)>=0,SUM(I11:I20),0)","v":0}]
[]
[null,"(b) Residential Mortgage-Backed Securities"]
[]
[null,"BSCR Rating"]
[null,1,"Sch IIB, Column (3), Line 2, Sch IIC, Column (3), Line 2, (Sch IID, Column (3), Line 2 - Column (4), Line 2), Sch IIE, Column (3), Line 2, Sch IIF, Column (3), Line 2",null,null,null,{"$f":"'Schedule IIB (EBS)'!H14+'Schedule IIC (EBS)'!H14+(MAX(0,'Schedule IID (EBS)'!H14-'Schedule IID (EBS)'!J14))+'Schedule IIE (EBS)'!H14+'Schedule IIF (EBS)'!H14","v":0},6.0000000000000001E-3,{"$f":"IF(G27<0,0,G27*H27)","v":0}]
[null,2,"Sch IIB, Column (3), Line 3, Sch IIC, Column (3), Line 3, (Sch IID, Column (3), Line 3 - Column (4), Line 3), Sch IIE, Column (3), Line 3, Sch IIF, Column (3), Line 3",null,null,null,{"$f":"'Schedule IIB (EBS)'!H15+'Schedule IIC (EBS)'!H15+(MAX(0,'Schedule IID (EBS)'!H15-'Schedule IID (EBS)'!J15))+'Schedule IIE (EBS)'!H15+'Schedule IIF (EBS)'!H15","v":0},1.2E-2,0]
[null,3,"Sch IIB, Column (3), Line 4, Sch IIC, Column (3), Line 4, (Sch IID, Column (3), Line 4 - Column (4), Line 4), Sch IIE, Column (3), Line 4, Sch IIF, Column (3), Line 4",null,null,null,{"$f":"'Schedule IIB (EBS)'!H16+'Schedule IIC (EBS)'!H16+(MAX(0,'Schedule IID (EBS)'!H16-'Schedule IID (EBS)'!J16))+'Schedule IIE (EBS)'!H16+'Schedule IIF (EBS)'!H16","v":0},0.02,0]
[null,4,"Sch IIB, Column (3), Line 5, Sch IIC, Column (3), Line 5, (Sch IID, Column (3), Line 5 - Column (4), Line 5), Sch IIE, Column (3), Line 5, Sch IIF, Column (3), Line 5",null,null,null,{"$f":"'Schedule IIB (EBS)'!H17+'Schedule IIC (EBS)'!H17+(MAX(0,'Schedule IID (EBS)'!H17-'Schedule IID (EBS)'!J17))+'Schedule IIE (EBS)'!H17+'Schedule IIF (EBS)'!H17","v":0},0.04,0]
[null,5,"Sch IIB, Column (3), Line 6, Sch IIC, Column (3), Line 6, (Sch IID, Column (3), Line 6 - Column (4), Line 6), Sch IIE, Column (3), Line 6, Sch IIF, Column (3), Line 6",null,null,null,{"$f":"'Schedule IIB (EBS)'!H18+'Schedule IIC (EBS)'!H18+(MAX(0,'Schedule IID (EBS)'!H18-'Schedule IID (EBS)'!J18))+'Schedule IIE (EBS)'!H18+'Schedule IIF (EBS)'!H18","v":0},0.11,0]
[null,6,"Sch IIB, Column (3), Line 7, Sch IIC, Column (3), Line 7, (Sch IID, Column (3), Line 7 - Column (4), Line 7), Sch IIE, Column (3), Line 7, Sch IIF, Column (3), Line 7",null,null,null,{"$f":"'Schedule IIB (EBS)'!H19+'Schedule IIC (EBS)'!H19+(MAX(0,'Schedule IID (EBS)'!H19-'Schedule IID (EBS)'!J19))+'Schedule IIE (EBS)'!H19+'Schedule IIF (EBS)'!H19","v":0},0.25,0]
[null,7,"Sch IIB, Column (3), Line 8, Sch IIC, Column (3), Line 8, (Sch IID, Column (3), Line 8 - Column (4), Line 8), Sch IIE, Column (3), Line 8, Sch IIF, Column (3), Line 8",null,null,null,{"$f":"'Schedule IIB (EBS)'!H20+'Schedule IIC (EBS)'!H20+(MAX(0,'Schedule IID (EBS)'!H20-'Schedule IID (EBS)'!J20))+'Schedule IIE (EBS)'!H20+'Schedule IIF (EBS)'!H20","v":0},0.35,0]
[null,8,"Sch IIB, Column (3), Line 9, Sch IIC, Column (3), Line 9, (Sch IID, Column (3), Line 9 - Column (4), Line 9), Sch IIE, Column (3), Line 9, Sch IIF, Column (3), Line 9",null,null,null,{"$f":"'Schedule IIB (EBS)'!H21+'Schedule IIC (EBS)'!H21+(MAX(0,'Schedule IID (EBS)'!H21-'Schedule IID (EBS)'!J21))+'Schedule IIE (EBS)'!H21+'Schedule IIF (EBS)'!H21","v":0},0.35,0]
[]
[null,"(b)  SUBTOTAL - RESIDENTIAL MORTGAGE-BACKED SECURITIES",null,null,null,null,{"$f":"SUM(G27:G34)","v":0},null,{"$f":"IF(SUM(I27:I34)>=0,SUM(I27:I34),0)","v":0}]
[]
[null,"(c) Commercial Mortgage-Backed Securities / Asset-Backed Securities"]
[]
[null,"BSCR Rating"]
[null,1,"Sch IIB, Column (5), Line 2, Sch IIC, Column (5), Line 2, (Sch IID, Column (5), Line 2 - Column (4), Line 2), Sch IIE, Column (5), Line 2, Sch IIF, Column (5), Line 2",null,null,null,{"$f":"'Schedule IIB (EBS)'!L14+'Schedule IIC (EBS)'!L14+(MAX(0,'Schedule IID (EBS)'!L14-'Schedule IID (EBS)'!N14))+'Schedule IIE (EBS)'!L14+'Schedule IIF (EBS)'!L14","v":0},5.0000000000000001E-3,{"$f":"IF(G41<0,0,G41*H41)","v":0}]
[null,2,"Sch IIB, Column (5), Line 3, Sch IIC, Column (5), Line 3, (Sch IID, Column (5), Line 3 - Column (4), Line 3), Sch IIE, Column (5), Line 3, Sch IIF, Column (5), Line 3",null,null,null,{"$f":"'Schedule IIB (EBS)'!L15+'Schedule IIC (EBS)'!L15+(MAX(0,'Schedule IID (EBS)'!L15-'Schedule IID (EBS)'!N15))+'Schedule IIE (EBS)'!L15+'Schedule IIF (EBS)'!L15","v":0},0.01,0]
[null,3,"Sch IIB, Column (5), Line 4, Sch IIC, Column (5), Line 4, (Sch IID, Column (5), Line 4 - Column (4), Line 4), Sch IIE, Column (5), Line 4, Sch IIF, Column (5), Line 4",null,null,null,{"$f":"'Schedule IIB (EBS)'!L16+'Schedule IIC (EBS)'!L16+(MAX(0,'Schedule IID (EBS)'!L16-'Schedule IID (EBS)'!N16))+'Schedule IIE (EBS)'!L16+'Schedule IIF (EBS)'!L16","v":0},1.7999999999999999E-2,0]
[null,4,"Sch IIB, Column (5), Line 5, Sch IIC, Column (5), Line 5, (Sch IID, Column (5), Line 5 - Column (4), Line 5), Sch IIE, Column (5), Line 5, Sch IIF, Column (5), Line 5",null,null,null,{"$f":"'Schedule IIB (EBS)'!L17+'Schedule IIC (EBS)'!L17+(MAX(0,'Schedule IID (EBS)'!L17-'Schedule IID (EBS)'!N17))+'Schedule IIE (EBS)'!L17+'Schedule IIF (EBS)'!L17","v":0},3.5000000000000003E-2,0]
[null,5,"Sch IIB, Column (5), Line 6, Sch IIC, Column (5), Line 6, (Sch IID, Column (5), Line 6 - Column (4), Line 6), Sch IIE, Column (5), Line 6, Sch IIF, Column (5), Line 6",null,null,null,{"$f":"'Schedule IIB (EBS)'!L18+'Schedule IIC (EBS)'!L18+(MAX(0,'Schedule IID (EBS)'!L18-'Schedule IID (EBS)'!N18))+'Schedule IIE (EBS)'!L18+'Schedule IIF (EBS)'!L18","v":0},0.1,0]
[null,6,"Sch IIB, Column (5), Line 7, Sch IIC, Column (5), Line 7, (Sch IID, Column (5), Line 7 - Column (4), Line 7), Sch IIE, Column (5), Line 7, Sch IIF, Column (5), Line 7",null,null,null,{"$f":"'Schedule IIB (EBS)'!L19+'Schedule IIC (EBS)'!L19+(MAX(0,'Schedule IID (EBS)'!L19-'Schedule IID (EBS)'!N19))+'Schedule IIE (EBS)'!L19+'Schedule IIF (EBS)'!L19","v":0},0.2,0]
[null,7,"Sch IIB, Column (5), Line 8, Sch IIC, Column (5), Line 8, (Sch IID, Column (5), Line 8 - Column (4), Line 8), Sch IIE, Column (5), Line 8, Sch IIF, Column (5), Line 8",null,null,null,{"$f":"'Schedule IIB (EBS)'!L20+'Schedule IIC (EBS)'!L20+(MAX(0,'Schedule IID (EBS)'!L20-'Schedule IID (EBS)'!N20))+'Schedule IIE (EBS)'!L20+'Schedule IIF (EBS)'!L20","v":0},0.3,0]
[null,8,"Sch IIB, Column (5), Line 9, Sch IIC, Column (5), Line 9, (Sch IID, Column (5), Line 9 - Column (4), Line 9), Sch IIE, Column (5), Line 9, Sch IIF, Column (5), Line 9",null,null,null,{"$f":"'Schedule IIB (EBS)'!L21+'Schedule IIC (EBS)'!L21+(MAX(0,'Schedule IID (EBS)'!L21-'Schedule IID (EBS)'!N21))+'Schedule IIE (EBS)'!L21+'Schedule IIF (EBS)'!L21","v":0},0.35,0]
[]
[]
[null,"(c)  SUBTOTAL - COMMERCIAL MORTGAGE-BACKED SECURITIES / ASSET-BACKED SECURITIES",null,null,null,null,{"$f":"SUM(G41:G48)","v":0},null,{"$f":"IF(SUM(I41:I48)>=0,SUM(I41:I48),0)","v":0}]
[]
[null,"(d) Bond Mutual Funds"]
[]
[null,"BSCR Rating"]
[null,0,"Sch IIB, Column (7), Line 1, Sch IIC, Column (7), Line 1, (Sch IID, Column (7), Line 1 - Column (8), Line 1), Sch IIE, Column (7), Line 1, Sch IIF, Column (7), Line 1",null,null,null,{"$f":"'Schedule IIB (EBS)'!P13+'Schedule IIC (EBS)'!P13+(MAX(0,'Schedule IID (EBS)'!P13-'Schedule IID (EBS)'!R13))+'Schedule IIE (EBS)'!P13+'Schedule IIF (EBS)'!P13","v":0},0,{"$f":"IF(G56<0,0,G56*H56)","v":0}]
[null,1,"Sch IIB, Column (7), Line 2, Sch IIC, Column (7), Line 2, (Sch IID, Column (7), Line 2 - Column (8), Line 2), Sch IIE, Column (7), Line 2, Sch IIF, Column (7), Line 2",null,null,null,{"$f":"'Schedule IIB (EBS)'!P14+'Schedule IIC (EBS)'!P14+(MAX(0,'Schedule IID (EBS)'!P14-'Schedule IID (EBS)'!R14))+'Schedule IIE (EBS)'!P14+'Schedule IIF (EBS)'!P14","v":0},4.0000000000000001E-3,0]
[null,2,"Sch IIB, Column (7), Line 3, Sch IIC, Column (7), Line 3, (Sch IID, Column (7), Line 3 - Column (8), Line 3), Sch IIE, Column (7), Line 3, Sch IIF, Column (7), Line 3",null,null,null,{"$f":"'Schedule IIB (EBS)'!P15+'Schedule IIC (EBS)'!P15+(MAX(0,'Schedule IID (EBS)'!P15-'Schedule IID (EBS)'!R15))+'Schedule IIE (EBS)'!P15+'Schedule IIF (EBS)'!P15","v":0},8.0000000000000002E-3,0]
[null,3,"Sch IIB, Column (7), Line 4, Sch IIC, Column (7), Line 4, (Sch IID, Column (7), Line 4 - Column (8), Line 4), Sch IIE, Column (7), Line 4, Sch IIF, Column (7), Line 4",null,null,null,{"$f":"'Schedule IIB (EBS)'!P16+'Schedule IIC (EBS)'!P16+(MAX(0,'Schedule IID (EBS)'!P16-'Schedule IID (EBS)'!R16))+'Schedule IIE (EBS)'!P16+'Schedule IIF (EBS)'!P16","v":0},1.4999999999999999E-2,0]
[null,4,"Sch IIB, Column (7), Line 5, Sch IIC, Column (7), Line 5, (Sch IID, Column (7), Line 5 - Column (8), Line 5), Sch IIE, Column (7), Line 5, Sch IIF, Column (7), Line 5",null,null,null,{"$f":"'Schedule IIB (EBS)'!P17+'Schedule IIC (EBS)'!P17+(MAX(0,'Schedule IID (EBS)'!P17-'Schedule IID (EBS)'!R17))+'Schedule IIE (EBS)'!P17+'Schedule IIF (EBS)'!P17","v":0},0.03,0]
[null,5,"Sch IIB, Column (7), Line 6, Sch IIC, Column (7), Line 6, (Sch IID, Column (7), Line 6 - Column (8), Line 6), Sch IIE, Column (7), Line 6, Sch IIF, Column (7), Line 6",null,null,null,{"$f":"'Schedule IIB (EBS)'!P18+'Schedule IIC (EBS)'!P18+(MAX(0,'Schedule IID (EBS)'!P18-'Schedule IID (EBS)'!R18))+'Schedule IIE (EBS)'!P18+'Schedule IIF (EBS)'!P18","v":0},0.08,0]
[null,6,"Sch IIB, Column (7), Line 7, Sch IIC, Column (7), Line 7, (Sch IID, Column (7), Line 7 - Column (8), Line 7), Sch IIE, Column (7), Line 7, Sch IIF, Column (7), Line 7",null,null,null,{"$f":"'Schedule IIB (EBS)'!P19+'Schedule IIC (EBS)'!P19+(MAX(0,'Schedule IID (EBS)'!P19-'Schedule IID (EBS)'!R19))+'Schedule IIE (EBS)'!P19+'Schedule IIF (EBS)'!P19","v":0},0.15,0]
[null,7,"Sch IIB, Column (7), Line 8, Sch IIC, Column (7), Line 8, (Sch IID, Column (7), Line 8 - Column (8), Line 8), Sch IIE, Column (7), Line 8, Sch IIF, Column (7), Line 8",null,null,null,{"$f":"'Schedule IIB (EBS)'!P20+'Schedule IIC (EBS)'!P20+(MAX(0,'Schedule IID (EBS)'!P20-'Schedule IID (EBS)'!R20))+'Schedule IIE (EBS)'!P20+'Schedule IIF (EBS)'!P20","v":0},0.26300000000000001,0]
[null,8,"Sch IIB, Column (7), Line 9, Sch IIC, Column (7), Line 9, (Sch IID, Column (7), Line 9 - Column (8), Line 9), Sch IIE, Column (7), Line 9, Sch IIF, Column (7), Line 9",null,null,null,{"$f":"'Schedule IIB (EBS)'!P21+'Schedule IIC (EBS)'!P21+(MAX(0,'Schedule IID (EBS)'!P21-'Schedule IID (EBS)'!R21))+'Schedule IIE (EBS)'!P21+'Schedule IIF (EBS)'!P21","v":0},0.35,0]
[]
[null,"(d)  SUBTOTAL - BOND MUTUAL FUNDS",null,null,null,null,{"$f":"SUM(G56:G64)","v":0},null,{"$f":"IF(SUM(I56:I64)>=0,SUM(I56:I64),0)","v":0}]
[]
[null,"(e) Mortgage Loans"]
[]
[null,"Insured/Guaranteed Mortgages","Sch IIB, Column (9), Line 10, Sch IIC, Column (9), Line 10, (Sch IID, Column (9), Line 10 - Column (10), Line 10), Sch IIE, Column (9), Line 10, Sch IIF, Column (9), Line 10",null,null,null,{"$f":"'Schedule IIB (EBS)'!T22+'Schedule IIC (EBS)'!T22+(MAX(0,'Schedule IID (EBS)'!T22-'Schedule IID (EBS)'!V22))+'Schedule IIE (EBS)'!T22+'Schedule IIF (EBS)'!T22","v":0},3.0000000000000001E-3,{"$f":"IF(G70<0,0,G70*H70)","v":0}]
[null,"Other Commercial and Farm Mortgages","Sch IIB, Column (9), Line 11, Sch IIC, Column (9), Line 11, (Sch IID, Column (9), Line 11 - Column (10), Line 11), Sch IIE, Column (9), Line 11, Sch IIF, Column (9), Line 11",null,null,null,{"$f":"'Schedule IIB (EBS)'!T23+'Schedule IIC (EBS)'!T23+(MAX(0,'Schedule IID (EBS)'!T23-'Schedule IID (EBS)'!V23))+'Schedule IIE (EBS)'!T23+'Schedule IIF (EBS)'!T23","v":0},0.05,{"$f":"IF(G71<0,0,G71*H71)","v":0}]
[null,"Other Residential Mortgages","Sch IIB, Column (9), Line 12, Sch IIC, Column (9), Line 12, (Sch IID, Column (9), Line 12 - Column (10), Line 12), Sch IIE, Column (9), Line 12, Sch IIF, Column (9), Line 12",null,null,null,{"$f":"'Schedule IIB (EBS)'!T24+'Schedule IIC (EBS)'!T24+(MAX(0,'Schedule IID (EBS)'!T24-'Schedule IID (EBS)'!V24))+'Schedule IIE (EBS)'!T24+'Schedule IIF (EBS)'!T24","v":0},1.4999999999999999E-2,{"$f":"IF(G72<0,0,G72*H72)","v":0}]
[null,"Mortgages Not In Good Standing","Sch IIB, Column (9), Line 13, Sch IIC, Column (9), Line 13, (Sch IID, Column (9), Line 13 - Column (10), Line 13), Sch IIE, Column (9), Line 13, Sch IIF, Column (9), Line 13",null,null,null,{"$f":"'Schedule IIB (EBS)'!T25+'Schedule IIC (EBS)'!T25+(MAX(0,'Schedule IID (EBS)'!T25-'Schedule IID (EBS)'!V25))+'Schedule IIE (EBS)'!T25+'Schedule IIF (EBS)'!T25","v":0},0.25,{"$f":"IF(G73<0,0,G73*H73)","v":0}]
[]
[null,"(e)  SUBTOTAL - MORTGAGE LOANS",null,null,null,null,{"$f":"SUM(G70:G73)","v":0},null,{"$f":"IF(SUM(I70:I73)>=0,SUM(I70:I73),0)","v":0}]
[]
[null,"(f) Other Fixed Income Investments"]
[]
[null,"Other Loans","Form 1EBS, Line (8)",null,null,null,{"$f":"'Form 1EBS'!F52","v":0},0.05,{"$f":"IF($G$79<0,0,$G$79*$H$79)","v":0}]
[]
[null,"Cash and Cash Equivalent Counterparty Balances By BSCR Rating"]
[]
[null,"BSCR Rating 0 ","Schedule XIXA, Column B",null,null,null,{"$f":"'Schedule XIXA'!F81","v":0},0,{"$f":"IF($G$83<0,0,$G$83*$H$83)","v":0}]
[null,"BSCR Rating 1","Schedule XIXA, Column B",null,null,null,{"$f":"'Schedule XIXA'!F82","v":0},1E-3,{"$f":"IF($G$84<0,0,$G$84*$H$84)","v":0}]
[null,"BSCR Rating 2","Schedule XIXA, Column B",null,null,null,{"$f":"'Schedule XIXA'!F83","v":0},2E-3,{"$f":"IF($G$85<0,0,$G$85*$H$85)","v":0}]
[null,"BSCR Rating 3","Schedule XIXA, Column B",null,null,null,{"$f":"'Schedule XIXA'!F84","v":0},3.0000000000000001E-3,{"$f":"IF($G$86<0,0,$G$86*$H$86)","v":0}]
[null,"BSCR Rating 4","Schedule XIXA, Column B",null,null,null,{"$f":"'Schedule XIXA'!F85","v":0},5.0000000000000001E-3,{"$f":"IF($G$87<0,0,$G$87*$H$87)","v":0}]
[null,"BSCR Rating 5","Schedule XIXA, Column B",null,null,null,{"$f":"'Schedule XIXA'!F86","v":0},1.4999999999999999E-2,{"$f":"IF($G$88<0,0,$G$88*$H$88)","v":0}]
[null,"BSCR Rating 6","Schedule XIXA, Column B",null,null,null,{"$f":"'Schedule XIXA'!F87","v":0},0.04,{"$f":"IF($G$89<0,0,$G$89*$H$89)","v":0}]
[null,"BSCR Rating 7","Schedule XIXA, Column B",null,null,null,{"$f":"'Schedule XIXA'!F88","v":0},0.06,{"$f":"IF($G$90<0,0,$G$90*$H$90)","v":0}]
[null,"BSCR Rating 8","Schedule XIXA, Column B",null,null,null,{"$f":"'Schedule XIXA'!F89","v":0},0.09,{"$f":"IF($G$91<0,0,$G$91*$H$91)","v":0}]
[]
[null,"Total",null,null,null,null,{"$f":"SUM(G83:G92)","v":0},null,{"$f":"SUM(I83:I92)","v":0}]
[]
[null,"Diversification Adjustment up to 40%",null,null,null,null,null,{"$f":"'Schedule XIXA'!F98","v":0},{"$f":"SUM(I83:I91)*-('Schedule XIXA'!F98)","v":0}]
[]
[null,"(f)  SUBTOTAL - OTHER FIXED INCOME SECURITIES",null,null,null,null,{"$f":"G79+G93","v":0},null,{"$f":"IF(SUM(I79,I83:I91,I95)>=0,SUM(I79,I83:I91,I95),0)","v":0}]
[]
[null,"(g) Spread Risk for Credit Derivatives"]
[]
[null,null,"SPREAD UP"]
[null,null,"Long Exposures",null,"Short Exposures"]
[null,null,"Before Shock","After Shock","Before Shock","After Shock"]
[null,"Spread Up",null,null,null,null,null,"Shock (bps)"]
[null,"BSCR Rating 0 ",{"$f":"'Schedule IIB (EBS)'!D68+'Schedule IIC (EBS)'!D68+'Schedule IID (EBS)'!D68+'Schedule IIE (EBS)'!D68+'Schedule IIF (EBS)'!D68","v":0},{"$f":"'Schedule IIB (EBS)'!F68+'Schedule IIC (EBS)'!F68+'Schedule IID (EBS)'!F68+'Schedule IIE (EBS)'!F68+'Schedule IIF (EBS)'!F68","v":0},{"$f":"'Schedule IIB (EBS)'!H68+'Schedule IIC (EBS)'!H68+'Schedule IID (EBS)'!H68+'Schedule IIE (EBS)'!H68+'Schedule IIF (EBS)'!H68","v":0},{"$f":"'Schedule IIB (EBS)'!J68+'Schedule IIC (EBS)'!J68+'Schedule IID (EBS)'!J68+'Schedule IIE (EBS)'!J68+'Schedule IIF (EBS)'!J68","v":0},null,0,{"$f":"(C105-D105)+MAX(0,E105-F105)","v":0}]
[null,"BSCR Rating 1",{"$f":"'Schedule IIB (EBS)'!D69+'Schedule IIC (EBS)'!D69+'Schedule IID (EBS)'!D69+'Schedule IIE (EBS)'!D69+'Schedule IIF (EBS)'!D69","v":0},{"$f":"'Schedule IIB (EBS)'!F69+'Schedule IIC (EBS)'!F69+'Schedule IID (EBS)'!F69+'Schedule IIE (EBS)'!F69+'Schedule IIF (EBS)'!F69","v":0},{"$f":"'Schedule IIB (EBS)'!H69+'Schedule IIC (EBS)'!H69+'Schedule IID (EBS)'!H69+'Schedule IIE (EBS)'!H69+'Schedule IIF (EBS)'!H69","v":0},{"$f":"'Schedule IIB (EBS)'!J69+'Schedule IIC (EBS)'!J69+'Schedule IID (EBS)'!J69+'Schedule IIE (EBS)'!J69+'Schedule IIF (EBS)'!J69","v":0},null,130,0]
[null,"BSCR Rating 2",{"$f":"'Schedule IIB (EBS)'!D70+'Schedule IIC (EBS)'!D70+'Schedule IID (EBS)'!D70+'Schedule IIE (EBS)'!D70+'Schedule IIF (EBS)'!D70","v":0},{"$f":"'Schedule IIB (EBS)'!F70+'Schedule IIC (EBS)'!F70+'Schedule IID (EBS)'!F70+'Schedule IIE (EBS)'!F70+'Schedule IIF (EBS)'!F70","v":0},{"$f":"'Schedule IIB (EBS)'!H70+'Schedule IIC (EBS)'!H70+'Schedule IID (EBS)'!H70+'Schedule IIE (EBS)'!H70+'Schedule IIF (EBS)'!H70","v":0},{"$f":"'Schedule IIB (EBS)'!J70+'Schedule IIC (EBS)'!J70+'Schedule IID (EBS)'!J70+'Schedule IIE (EBS)'!J70+'Schedule IIF (EBS)'!J70","v":0},null,150,0]
[null,"BSCR Rating 3",{"$f":"'Schedule IIB (EBS)'!D71+'Schedule IIC (EBS)'!D71+'Schedule IID (EBS)'!D71+'Schedule IIE (EBS)'!D71+'Schedule IIF (EBS)'!D71","v":0},{"$f":"'Schedule IIB (EBS)'!F71+'Schedule IIC (EBS)'!F71+'Schedule IID (EBS)'!F71+'Schedule IIE (EBS)'!F71+'Schedule IIF (EBS)'!F71","v":0},{"$f":"'Schedule IIB (EBS)'!H71+'Schedule IIC (EBS)'!H71+'Schedule IID (EBS)'!H71+'Schedule IIE (EBS)'!H71+'Schedule IIF (EBS)'!H71","v":0},{"$f":"'Schedule IIB (EBS)'!J71+'Schedule IIC (EBS)'!J71+'Schedule IID (EBS)'!J71+'Schedule IIE (EBS)'!J71+'Schedule IIF (EBS)'!J71","v":0},null,260,0]
[null,"BSCR Rating 4",{"$f":"'Schedule IIB (EBS)'!D72+'Schedule IIC (EBS)'!D72+'Schedule IID (EBS)'!D72+'Schedule IIE (EBS)'!D72+'Schedule IIF (EBS)'!D72","v":0},{"$f":"'Schedule IIB (EBS)'!F72+'Schedule IIC (EBS)'!F72+'Schedule IID (EBS)'!F72+'Schedule IIE (EBS)'!F72+'Schedule IIF (EBS)'!F72","v":0},{"$f":"'Schedule IIB (EBS)'!H72+'Schedule IIC (EBS)'!H72+'Schedule IID (EBS)'!H72+'Schedule IIE (EBS)'!H72+'Schedule IIF (EBS)'!H72","v":0},{"$f":"'Schedule IIB (EBS)'!J72+'Schedule IIC (EBS)'!J72+'Schedule IID (EBS)'!J72+'Schedule IIE (EBS)'!J72+'Schedule IIF (EBS)'!J72","v":0},null,450,0]
[null,"BSCR Rating 5",{"$f":"'Schedule IIB (EBS)'!D73+'Schedule IIC (EBS)'!D73+'Schedule IID (EBS)'!D73+'Schedule IIE (EBS)'!D73+'Schedule IIF (EBS)'!D73","v":0},{"$f":"'Schedule IIB (EBS)'!F73+'Schedule IIC (EBS)'!F73+'Schedule IID (EBS)'!F73+'Schedule IIE (EBS)'!F73+'Schedule IIF (EBS)'!F73","v":0},{"$f":"'Schedule IIB (EBS)'!H73+'Schedule IIC (EBS)'!H73+'Schedule IID (EBS)'!H73+'Schedule IIE (EBS)'!H73+'Schedule IIF (EBS)'!H73","v":0},{"$f":"'Schedule IIB (EBS)'!J73+'Schedule IIC (EBS)'!J73+'Schedule IID (EBS)'!J73+'Schedule IIE (EBS)'!J73+'Schedule IIF (EBS)'!J73","v":0},null,840,0]
[null,"BSCR Rating 6",{"$f":"'Schedule IIB (EBS)'!D74+'Schedule IIC (EBS)'!D74+'Schedule IID (EBS)'!D74+'Schedule IIE (EBS)'!D74+'Schedule IIF (EBS)'!D74","v":0},{"$f":"'Schedule IIB (EBS)'!F74+'Schedule IIC (EBS)'!F74+'Schedule IID (EBS)'!F74+'Schedule IIE (EBS)'!F74+'Schedule IIF (EBS)'!F74","v":0},{"$f":"'Schedule IIB (EBS)'!H74+'Schedule IIC (EBS)'!H74+'Schedule IID (EBS)'!H74+'Schedule IIE (EBS)'!H74+'Schedule IIF (EBS)'!H74","v":0},{"$f":"'Schedule IIB (EBS)'!J74+'Schedule IIC (EBS)'!J74+'Schedule IID (EBS)'!J74+'Schedule IIE (EBS)'!J74+'Schedule IIF (EBS)'!J74","v":0},null,1620,0]
[null,"BSCR Rating 7",{"$f":"'Schedule IIB (EBS)'!D75+'Schedule IIC (EBS)'!D75+'Schedule IID (EBS)'!D75+'Schedule IIE (EBS)'!D75+'Schedule IIF (EBS)'!D75","v":0},{"$f":"'Schedule IIB (EBS)'!F75+'Schedule IIC (EBS)'!F75+'Schedule IID (EBS)'!F75+'Schedule IIE (EBS)'!F75+'Schedule IIF (EBS)'!F75","v":0},{"$f":"'Schedule IIB (EBS)'!H75+'Schedule IIC (EBS)'!H75+'Schedule IID (EBS)'!H75+'Schedule IIE (EBS)'!H75+'Schedule IIF (EBS)'!H75","v":0},{"$f":"'Schedule IIB (EBS)'!J75+'Schedule IIC (EBS)'!J75+'Schedule IID (EBS)'!J75+'Schedule IIE (EBS)'!J75+'Schedule IIF (EBS)'!J75","v":0},null,1620,0]
[null,"BSCR Rating 8",{"$f":"'Schedule IIB (EBS)'!D76+'Schedule IIC (EBS)'!D76+'Schedule IID (EBS)'!D76+'Schedule IIE (EBS)'!D76+'Schedule IIF (EBS)'!D76","v":0},{"$f":"'Schedule IIB (EBS)'!F76+'Schedule IIC (EBS)'!F76+'Schedule IID (EBS)'!F76+'Schedule IIE (EBS)'!F76+'Schedule IIF (EBS)'!F76","v":0},{"$f":"'Schedule IIB (EBS)'!H76+'Schedule IIC (EBS)'!H76+'Schedule IID (EBS)'!H76+'Schedule IIE (EBS)'!H76+'Schedule IIF (EBS)'!H76","v":0},{"$f":"'Schedule IIB (EBS)'!J76+'Schedule IIC (EBS)'!J76+'Schedule IID (EBS)'!J76+'Schedule IIE (EBS)'!J76+'Schedule IIF (EBS)'!J76","v":0},null,1620,0]
[null,"Total Spread Up",{"$f":"SUM(C105:C113)","v":0},{"$f":"SUM(D105:D113)","v":0},{"$f":"SUM(E105:E113)","v":0},{"$f":"SUM(F105:F113)","v":0},null,null,{"$f":"MAX(SUM(I105:I113),0)","v":0}]
[]
[null,null,"SPREAD DOWN"]
[null,null,"Long Exposures",null,"Short Exposures"]
[null,null,"Before Shock","After Shock","Before Shock","After Shock"]
[null,"Spread Down",null,null,null,null,null,"Shock (%)"]
[null,"BSCR Rating 0 ",{"$f":"'Schedule IIB (EBS)'!N68+'Schedule IIC (EBS)'!N68+'Schedule IID (EBS)'!N68+'Schedule IIE (EBS)'!N68+'Schedule IIF (EBS)'!N68","v":0},{"$f":"'Schedule IIB (EBS)'!P68+'Schedule IIC (EBS)'!P68+'Schedule IID (EBS)'!P68+'Schedule IIE (EBS)'!P68+'Schedule IIF (EBS)'!P68","v":0},{"$f":"'Schedule IIB (EBS)'!R68+'Schedule IIC (EBS)'!R68+'Schedule IID (EBS)'!R68+'Schedule IIE (EBS)'!R68+'Schedule IIF (EBS)'!R68","v":0},{"$f":"'Schedule IIB (EBS)'!T68+'Schedule IIC (EBS)'!T68+'Schedule IID (EBS)'!T68+'Schedule IIE (EBS)'!T68+'Schedule IIF (EBS)'!T68","v":0},null,0,{"$f":"(C120-D120)+MAX(0,E120-F120)","v":0}]
[null,"BSCR Rating 1",{"$f":"'Schedule IIB (EBS)'!N69+'Schedule IIC (EBS)'!N69+'Schedule IID (EBS)'!N69+'Schedule IIE (EBS)'!N69+'Schedule IIF (EBS)'!N69","v":0},{"$f":"'Schedule IIB (EBS)'!P69+'Schedule IIC (EBS)'!P69+'Schedule IID (EBS)'!P69+'Schedule IIE (EBS)'!P69+'Schedule IIF (EBS)'!P69","v":0},{"$f":"'Schedule IIB (EBS)'!R69+'Schedule IIC (EBS)'!R69+'Schedule IID (EBS)'!R69+'Schedule IIE (EBS)'!R69+'Schedule IIF (EBS)'!R69","v":0},{"$f":"'Schedule IIB (EBS)'!T69+'Schedule IIC (EBS)'!T69+'Schedule IID (EBS)'!T69+'Schedule IIE (EBS)'!T69+'Schedule IIF (EBS)'!T69","v":0},null,-0.75,0]
[null,"BSCR Rating 2",{"$f":"'Schedule IIB (EBS)'!N70+'Schedule IIC (EBS)'!N70+'Schedule IID (EBS)'!N70+'Schedule IIE (EBS)'!N70+'Schedule IIF (EBS)'!N70","v":0},{"$f":"'Schedule IIB (EBS)'!P70+'Schedule IIC (EBS)'!P70+'Schedule IID (EBS)'!P70+'Schedule IIE (EBS)'!P70+'Schedule IIF (EBS)'!P70","v":0},{"$f":"'Schedule IIB (EBS)'!R70+'Schedule IIC (EBS)'!R70+'Schedule IID (EBS)'!R70+'Schedule IIE (EBS)'!R70+'Schedule IIF (EBS)'!R70","v":0},{"$f":"'Schedule IIB (EBS)'!T70+'Schedule IIC (EBS)'!T70+'Schedule IID (EBS)'!T70+'Schedule IIE (EBS)'!T70+'Schedule IIF (EBS)'!T70","v":0},null,-0.75,0]
[null,"BSCR Rating 3",{"$f":"'Schedule IIB (EBS)'!N71+'Schedule IIC (EBS)'!N71+'Schedule IID (EBS)'!N71+'Schedule IIE (EBS)'!N71+'Schedule IIF (EBS)'!N71","v":0},{"$f":"'Schedule IIB (EBS)'!P71+'Schedule IIC (EBS)'!P71+'Schedule IID (EBS)'!P71+'Schedule IIE (EBS)'!P71+'Schedule IIF (EBS)'!P71","v":0},{"$f":"'Schedule IIB (EBS)'!R71+'Schedule IIC (EBS)'!R71+'Schedule IID (EBS)'!R71+'Schedule IIE (EBS)'!R71+'Schedule IIF (EBS)'!R71","v":0},{"$f":"'Schedule IIB (EBS)'!T71+'Schedule IIC (EBS)'!T71+'Schedule IID (EBS)'!T71+'Schedule IIE (EBS)'!T71+'Schedule IIF (EBS)'!T71","v":0},null,-0.75,0]
[null,"BSCR Rating 4",{"$f":"'Schedule IIB (EBS)'!N72+'Schedule IIC (EBS)'!N72+'Schedule IID (EBS)'!N72+'Schedule IIE (EBS)'!N72+'Schedule IIF (EBS)'!N72","v":0},{"$f":"'Schedule IIB (EBS)'!P72+'Schedule IIC (EBS)'!P72+'Schedule IID (EBS)'!P72+'Schedule IIE (EBS)'!P72+'Schedule IIF (EBS)'!P72","v":0},{"$f":"'Schedule IIB (EBS)'!R72+'Schedule IIC (EBS)'!R72+'Schedule IID (EBS)'!R72+'Schedule IIE (EBS)'!R72+'Schedule IIF (EBS)'!R72","v":0},{"$f":"'Schedule IIB (EBS)'!T72+'Schedule IIC (EBS)'!T72+'Schedule IID (EBS)'!T72+'Schedule IIE (EBS)'!T72+'Schedule IIF (EBS)'!T72","v":0},null,-0.75,0]
[null,"BSCR Rating 5",{"$f":"'Schedule IIB (EBS)'!N73+'Schedule IIC (EBS)'!N73+'Schedule IID (EBS)'!N73+'Schedule IIE (EBS)'!N73+'Schedule IIF (EBS)'!N73","v":0},{"$f":"'Schedule IIB (EBS)'!P73+'Schedule IIC (EBS)'!P73+'Schedule IID (EBS)'!P73+'Schedule IIE (EBS)'!P73+'Schedule IIF (EBS)'!P73","v":0},{"$f":"'Schedule IIB (EBS)'!R73+'Schedule IIC (EBS)'!R73+'Schedule IID (EBS)'!R73+'Schedule IIE (EBS)'!R73+'Schedule IIF (EBS)'!R73","v":0},{"$f":"'Schedule IIB (EBS)'!T73+'Schedule IIC (EBS)'!T73+'Schedule IID (EBS)'!T73+'Schedule IIE (EBS)'!T73+'Schedule IIF (EBS)'!T73","v":0},null,-0.75,0]
[null,"BSCR Rating 6",{"$f":"'Schedule IIB (EBS)'!N74+'Schedule IIC (EBS)'!N74+'Schedule IID (EBS)'!N74+'Schedule IIE (EBS)'!N74+'Schedule IIF (EBS)'!N74","v":0},{"$f":"'Schedule IIB (EBS)'!P74+'Schedule IIC (EBS)'!P74+'Schedule IID (EBS)'!P74+'Schedule IIE (EBS)'!P74+'Schedule IIF (EBS)'!P74","v":0},{"$f":"'Schedule IIB (EBS)'!R74+'Schedule IIC (EBS)'!R74+'Schedule IID (EBS)'!R74+'Schedule IIE (EBS)'!R74+'Schedule IIF (EBS)'!R74","v":0},{"$f":"'Schedule IIB (EBS)'!T74+'Schedule IIC (EBS)'!T74+'Schedule IID (EBS)'!T74+'Schedule IIE (EBS)'!T74+'Schedule IIF (EBS)'!T74","v":0},null,-0.75,0]
[null,"BSCR Rating 7",{"$f":"'Schedule IIB (EBS)'!N75+'Schedule IIC (EBS)'!N75+'Schedule IID (EBS)'!N75+'Schedule IIE (EBS)'!N75+'Schedule IIF (EBS)'!N75","v":0},{"$f":"'Schedule IIB (EBS)'!P75+'Schedule IIC (EBS)'!P75+'Schedule IID (EBS)'!P75+'Schedule IIE (EBS)'!P75+'Schedule IIF (EBS)'!P75","v":0},{"$f":"'Schedule IIB (EBS)'!R75+'Schedule IIC (EBS)'!R75+'Schedule IID (EBS)'!R75+'Schedule IIE (EBS)'!R75+'Schedule IIF (EBS)'!R75","v":0},{"$f":"'Schedule IIB (EBS)'!T75+'Schedule IIC (EBS)'!T75+'Schedule IID (EBS)'!T75+'Schedule IIE (EBS)'!T75+'Schedule IIF (EBS)'!T75","v":0},null,-0.75,0]
[null,"BSCR Rating 8",{"$f":"'Schedule IIB (EBS)'!N76+'Schedule IIC (EBS)'!N76+'Schedule IID (EBS)'!N76+'Schedule IIE (EBS)'!N76+'Schedule IIF (EBS)'!N76","v":0},{"$f":"'Schedule IIB (EBS)'!P76+'Schedule IIC (EBS)'!P76+'Schedule IID (EBS)'!P76+'Schedule IIE (EBS)'!P76+'Schedule IIF (EBS)'!P76","v":0},{"$f":"'Schedule IIB (EBS)'!R76+'Schedule IIC (EBS)'!R76+'Schedule IID (EBS)'!R76+'Schedule IIE (EBS)'!R76+'Schedule IIF (EBS)'!R76","v":0},{"$f":"'Schedule IIB (EBS)'!T76+'Schedule IIC (EBS)'!T76+'Schedule IID (EBS)'!T76+'Schedule IIE (EBS)'!T76+'Schedule IIF (EBS)'!T76","v":0},null,-0.75,0]
[null,"Total Spread Down",{"$f":"SUM(C120:C128)","v":0},{"$f":"SUM(D120:D128)","v":0},{"$f":"SUM(E120:E128)","v":0},{"$f":"SUM(F120:F128)","v":0},null,null,{"$f":"MAX(SUM(I120:I128),0)","v":0}]
[]
[null,"Spread Up",null,null,null,null,null,null,{"$f":"I114","v":0}]
[null,"Spread Down",null,null,null,null,null,null,{"$f":"I129","v":0}]
[]
[null,"(g) Total Spread Risk",null,null,null,null,null,null,{"$f":"MAX(I131,I132)","v":0}]
[]
[null,"(h)  TOTAL FIXED INCOME INVESTMENTS [ (a)+(b)+(c)+(d)+(e)+(f)+(g) ]",null,null,null,null,{"$f":"G22+G36+G51+G66+G75+G97","v":0},null,{"$f":"I22+I36+I51+I66+I75+I97+I134","v":0}]

{"sheet":"Equity Investments (Prior)","index":115,"n_rows":51,"n_cols":6,"rows_kept":51,"cut":false,"hidden":true,"merged":[[87,0,87,1],[0,5,0,6]]}
["EQUITY INVESTMENTS",null,null,null,null,{"$f":"HYPERLINK(\"#'Index'!A1\",\"Return to Index\")","v":"Return to Index"}]
[{"$f":"'Company Information'!C7","v":"Enter Company Name"}]
[{"$f":"\"Equity Investment Risk\" & \"($\"&IF(CONFIGURATION!$B$12>1,MID(CONFIGURATION!$B$12,2,LEN(CONFIGURATION!$B$12)),\"\")&\")\"","v":"Equity Investment Risk($000)"},null,{"$f":"'Company Information'!C3","v":"2023-12-31"},-1,-2,-3]
[]
[]
[null,"TYPE OF ",null,"ASSET","CAPITAL","REQUIRED"]
[null,"EQUITY INVESTMENTS","STATEMENT SOURCE","VALUE","FACTOR","CAPITAL"]
[]
[null,"(a)  Common Stocks",null,null,null,"(1) x (2)"]
[]
[null,"Non-Affiliated (Quoted)","Sch II EBS, Line (19), Column (1) and Sch IIA EBS, Line (19), Column (1)",{"$f":"'Schedule II (EBS)'!D41+'Schedule IIA (EBS)'!D41","v":0},0.14399999999999999,{"$f":"IF($D$11<0,0,$D$11*$E$11)","v":0}]
[null,"Non-Affiliated (Unquoted)","Sch II EBS, Line (20), Column (1) and Sch IIA EBS, Line (20), Column (1)",{"$f":"'Schedule II (EBS)'!D42+'Schedule IIA (EBS)'!D42","v":0},0.14399999999999999,{"$f":"IF($D$12<0,0,$D$12*$E$12)","v":0}]
[null,"Equity Mutual Funds","Sch II EBS, Line (21), Column (5) and Sch IIA EBS, Line (21), Column (5)",{"$f":"+'Schedule II (EBS)'!L44+'Schedule IIA (EBS)'!L44","v":0},0.14399999999999999,{"$f":"IF($D$13<0,0,$D$13*$E$13)","v":0}]
[]
[null,"(a)  SUBTOTAL - COMMON STOCKS",null,{"$f":"SUM(D11:D13)","v":0},null,{"$f":"IF(SUM(F11:F13)>=0,SUM(F11:F13),0)","v":0}]
[]
[null,"(b)  Preferred Stocks"]
[]
[null,"BSCR Rating"]
[null,1,"Sch II EBS, Line (11), Column (3) and Sch IIA EBS, Line (11), Column (3)",{"$f":"'Schedule II (EBS)'!H33+'Schedule IIA (EBS)'!H33","v":0},6.0000000000000001E-3,{"$f":"IF(D20<0,0,D20*E20)","v":0}]
[null,2,"Sch II EBS, Line (12), Column (3) and Sch IIA EBS, Line (12), Column (3)",{"$f":"'Schedule II (EBS)'!H34+'Schedule IIA (EBS)'!H34","v":0},1.2E-2,0]
[null,3,"Sch II EBS, Line (13), Column (3) and Sch IIA EBS, Line (13), Column (3)",{"$f":"'Schedule II (EBS)'!H35+'Schedule IIA (EBS)'!H35","v":0},0.02,0]
[null,4,"Sch II EBS, Line (14), Column (3) and Sch IIA EBS, Line (14), Column (3)",{"$f":"'Schedule II (EBS)'!H36+'Schedule IIA (EBS)'!H36","v":0},0.04,0]
[null,5,"Sch II EBS, Line (15), Column (3) and Sch IIA EBS, Line (15), Column (3)",{"$f":"'Schedule II (EBS)'!H37+'Schedule IIA (EBS)'!H37","v":0},0.11,0]
[null,6,"Sch II EBS, Line (16), Column (3) and Sch IIA EBS, Line (16), Column (3)",{"$f":"'Schedule II (EBS)'!H38+'Schedule IIA (EBS)'!H38","v":0},0.25,0]
[null,7,"Sch II EBS, Line (17), Column (3) and Sch IIA EBS, Line (17), Column (3)",{"$f":"'Schedule II (EBS)'!H39+'Schedule IIA (EBS)'!H39","v":0},0.35,0]
[null,8,"Sch II EBS, Line (18), Column (3) and Sch IIA EBS, Line (18), Column (3)",{"$f":"'Schedule II (EBS)'!H40+'Schedule IIA (EBS)'!H40","v":0},0.35,0]
[]
[null,"(b)  SUBTOTAL - PREFERRED STOCKS",null,{"$f":"SUM(D20:D27)","v":0},null,{"$f":"IF(SUM(F20:F27)>=0,SUM(F20:F27),0)","v":0}]
[]
[null,"(c)  Other Equity Investments"]
[]
[null,"Real Estate"]
[null,"Company-Occupied Less Encumbrances","Form 1EBS, Line (7a)",{"$f":"'Form 1EBS'!F48","v":0},0.1,{"$f":"IF($D$34<0,0,$D$34*$E$34)","v":0}]
[null,"Investments Less Encumbrances","Form 1EBS, Line (7b)",{"$f":"'Form 1EBS'!F49","v":0},0.2,{"$f":"IF($D$35<0,0,$D$35*$E$35)","v":0}]
[]
[null,"Other Equity Investments","Form 1EBS, Lines (2e), (3e) & Schedule IIA EBS, Line 21, Column (7)",{"$f":"'Form 1EBS'!F19+'Form 1EBS'!F29+'Schedule IIA (EBS)'!P44","v":0},0.2,{"$f":"IF($D$37<0,0,$D$37*$E$37)","v":0}]
[null,"Other Tangible Assets - Net of Segregated Accounts Companies","Form 1EBS, Lines (13k), (14d), and (36f) Less Form 1EBS, Line (13d) and (13h)",{"$f":"'Form 1EBS'!F82+'Form 1EBS'!F88+'Form 1EBS'!F148-'Form 1EBS'!F75-'Form 1EBS'!F79","v":0},0.2,{"$f":"IF($D$38<0,0,$D$38*$E$38)","v":0}]
[]
[null,"(c)  SUBTOTAL - OTHER EQUITY INVESTMENTS",null,{"$f":"SUM(D34:D38)","v":0},null,{"$f":"IF(SUM(F34:F38)>=0,SUM(F34:F38),0)","v":0}]
[]
[null,"(d)  Investments in Affiliates"]
[]
[null,"Unregulated Entities That Conduct Ancillary Services","Form 1EBS, Line (4a)",{"$f":"'Form 1EBS'!F33","v":0},0.05,{"$f":"IF(D44<0,0,D44*E44)","v":0}]
[null,"Unregulated Non-Financial Operating Entities","Form 1EBS, Line (4b)",{"$f":"'Form 1EBS'!F34","v":0},0.2,{"$f":"IF(D45<0,0,D45*E45)","v":0}]
[null,"Unregulated Financial Operating Entities","Form 1EBS, Line (4c)",{"$f":"'Form 1EBS'!F35","v":0},0.55000000000000004,{"$f":"IF(D46<0,0,D46*E46)","v":0}]
[null,"Regulated Insurance Financial Operating Entities","Form 1EBS, Line (4e)",{"$f":"'Form 1EBS'!F37","v":0},0.2,{"$f":"IF(D47<0,0,D47*E47)","v":0}]
[]
[null,"(d)  SUBTOTAL - INVESTMENTS IN AFFILIATES",null,{"$f":"SUM(D44:D47)","v":0},null,{"$f":"IF(SUM(F44:F47)>=0,SUM(F44:F47),0)","v":0}]
[]
[null,"(e)  TOTAL EQUITY INVESTMENTS [ (a) + (b) + (c) + (d) ]",null,{"$f":"D15+D29+D40+D49","v":0},null,{"$f":"F15+F29+F40+F49","v":0}]

{"sheet":"Equity Investments","index":116,"n_rows":56,"n_cols":18,"rows_kept":56,"cut":false,"hidden":false,"merged":[[5,17,6,17],[4,15,6,15],[58,0,58,1],[4,3,4,8],[6,5,6,6],[6,7,6,8],[5,5,5,8],[5,3,6,4],[4,9,4,11],[5,9,6,9],[5,10,6,10],[5,11,6,11]]}
["EQUITY INVESTMENTS (REVISED)",null,null,null,null,null,null,null,null,null,null,null,null,null,null,null,null,{"$f":"HYPERLINK(\"#'Index'!A1\",\"Return to Index\")","v":"Return to Index"}]
[{"$f":"'Company Information'!C7","v":"Enter Company Name"}]
[{"$f":"\"Equity Investment Risk\" & \"($\"&IF(CONFIGURATION!$B$12>1,MID(CONFIGURATION!$B$12,2,LEN(CONFIGURATION!$B$12)),\"\")&\")\"","v":"Equity Investment Risk($000)"},null,{"$f":" TEXT('Company Information'!C3,\"d mmmm yyyy\")","v":"31 December 2023"},-1,{"$f":"D3-1","v":-2},{"$f":"E3-1","v":-3},-4,-5,-6,-7,-8,-9,null,{"$f":"L3-1","v":-10},null,{"$f":"N3-1","v":-11},null,{"$f":"P3-1","v":-12}]
[]
[null,null,null,"ASSETS",null,null,null,null,null,"LIABILITIES",null,null,null,null,null,"WITHOUT MANAGEMENT ACTIONS"]
[null,null,null,"Long Exposure",null,"Short Exposure",null,null,null,null,"Without Mgmt Actions","With Mgmt Actions",null,null,null,null,null,"WITH MANAGEMENT ACTIONS"]
[null,"TYPE OF ",null,null,null,"Qualifying as Assets held for risk-mitigation purposes",null,"Not Qualifying as Assets held for risk-mitigation purposes",null,null,null,null,null,"CAPITAL"]
[null,"EQUITY INVESTMENTS","STATEMENT SOURCE","Before Shock","After Shock","Before Shock","After Shock","Before Shock","After Shock","Before Shock","After Shock","After Shock",null,"FACTOR",null,"REQUIRED CAPITAL",null,"CAPITAL"]
[]
[null,"Type 1 Equity Holdings"]
[null,"Strategic Holdings - Listed","Sch IIB, IIC, IID, IIE and IIF Line (15)",{"$f":"'Schedule IIB (EBS)'!D39+'Schedule IIC (EBS)'!D39+'Schedule IID (EBS)'!D39+'Schedule IIE (EBS)'!D39+'Schedule IIF (EBS)'!D39","v":0},{"$f":"'Schedule IIB (EBS)'!F39+'Schedule IIC (EBS)'!F39+'Schedule IID (EBS)'!F39+'Schedule IIE (EBS)'!F39+'Schedule IIF (EBS)'!F39","v":0},{"$f":"'Schedule IIB (EBS)'!H39+'Schedule IIC (EBS)'!H39+'Schedule IID (EBS)'!H39+'Schedule IIE (EBS)'!H39+'Schedule IIF (EBS)'!H39","v":0},{"$f":"'Schedule IIB (EBS)'!J39+'Schedule IIC (EBS)'!J39+'Schedule IID (EBS)'!J39+'Schedule IIE (EBS)'!J39+'Schedule IIF (EBS)'!J39","v":0},{"$f":"'Schedule IIB (EBS)'!L39+'Schedule IIC (EBS)'!L39+'Schedule IID (EBS)'!L39+'Schedule IIE (EBS)'!L39+'Schedule IIF (EBS)'!L39","v":0},{"$f":"'Schedule IIB (EBS)'!N39+'Schedule IIC (EBS)'!N39+'Schedule IID (EBS)'!N39+'Schedule IIE (EBS)'!N39+'Schedule IIF (EBS)'!N39","v":0},{"$f":"'Schedule IIB (EBS)'!P39+'Schedule IIC (EBS)'!P39+'Schedule IID (EBS)'!P39+'Schedule IIE (EBS)'!P39+'Schedule IIF (EBS)'!P39","v":0},{"$f":"'Schedule IIB (EBS)'!R39+'Schedule IIC (EBS)'!R39+'Schedule IID (EBS)'!R39+'Schedule IIE (EBS)'!R39+'Schedule IIF (EBS)'!R39","v":0},{"$f":"'Schedule IIB (EBS)'!T39+'Schedule IIC (EBS)'!T39+'Schedule IID (EBS)'!T39+'Schedule IIE (EBS)'!T39+'Schedule IIF (EBS)'!T39","v":0},null,0.2,null,{"$f":"MAX(D11-E11,0)+(F11-G11)+MAX(H11-I11,0)+(K11-J11)","v":0},null,{"$f":"MAX(D11-E11,0)+(F11-G11)+MAX(H11-I11,0)+(L11-J11)","v":0}]
[null,"Duration Based","Sch IIB, IIC, IID, IIE and IIF Line (16)",{"$f":"'Schedule IIB (EBS)'!D40+'Schedule IIC (EBS)'!D40+'Schedule IID (EBS)'!D40+'Schedule IIE (EBS)'!D40+'Schedule IIF (EBS)'!D40","v":0},{"$f":"'Schedule IIB (EBS)'!F40+'Schedule IIC (EBS)'!F40+'Schedule IID (EBS)'!F40+'Schedule IIE (EBS)'!F40+'Schedule IIF (EBS)'!F40","v":0},{"$f":"'Schedule IIB (EBS)'!H40+'Schedule IIC (EBS)'!H40+'Schedule IID (EBS)'!H40+'Schedule IIE (EBS)'!H40+'Schedule IIF (EBS)'!H40","v":0},{"$f":"'Schedule IIB (EBS)'!J40+'Schedule IIC (EBS)'!J40+'Schedule IID (EBS)'!J40+'Schedule IIE (EBS)'!J40+'Schedule IIF (EBS)'!J40","v":0},{"$f":"'Schedule IIB (EBS)'!L40+'Schedule IIC (EBS)'!L40+'Schedule IID (EBS)'!L40+'Schedule IIE (EBS)'!L40+'Schedule IIF (EBS)'!L40","v":0},{"$f":"'Schedule IIB (EBS)'!N40+'Schedule IIC (EBS)'!N40+'Schedule IID (EBS)'!N40+'Schedule IIE (EBS)'!N40+'Schedule IIF (EBS)'!N40","v":0},{"$f":"'Schedule IIB (EBS)'!P40+'Schedule IIC (EBS)'!P40+'Schedule IID (EBS)'!P40+'Schedule IIE (EBS)'!P40+'Schedule IIF (EBS)'!P40","v":0},{"$f":"'Schedule IIB (EBS)'!R40+'Schedule IIC (EBS)'!R40+'Schedule IID (EBS)'!R40+'Schedule IIE (EBS)'!R40+'Schedule IIF (EBS)'!R40","v":0},{"$f":"'Schedule IIB (EBS)'!T40+'Schedule IIC (EBS)'!T40+'Schedule IID (EBS)'!T40+'Schedule IIE (EBS)'!T40+'Schedule IIF (EBS)'!T40","v":0},null,0.2,null,0,null,{"$f":"MAX(D12-E12,0)+(F12-G12)+MAX(H12-I12,0)+(L12-J12)","v":0}]
[null,"Listed Equity Securities in Developed Markets","Sch IIB, IIC, IID, IIE and IIF Line (17)",{"$f":"'Schedule IIB (EBS)'!D41+'Schedule IIC (EBS)'!D41+'Schedule IID (EBS)'!D41+'Schedule IIE (EBS)'!D41+'Schedule IIF (EBS)'!D41","v":0},{"$f":"'Schedule IIB (EBS)'!F41+'Schedule IIC (EBS)'!F41+'Schedule IID (EBS)'!F41+'Schedule IIE (EBS)'!F41+'Schedule IIF (EBS)'!F41","v":0},{"$f":"'Schedule IIB (EBS)'!H41+'Schedule IIC (EBS)'!H41+'Schedule IID (EBS)'!H41+'Schedule IIE (EBS)'!H41+'Schedule IIF (EBS)'!H41","v":0},{"$f":"'Schedule IIB (EBS)'!J41+'Schedule IIC (EBS)'!J41+'Schedule IID (EBS)'!J41+'Schedule IIE (EBS)'!J41+'Schedule IIF (EBS)'!J41","v":0},{"$f":"'Schedule IIB (EBS)'!L41+'Schedule IIC (EBS)'!L41+'Schedule IID (EBS)'!L41+'Schedule IIE (EBS)'!L41+'Schedule IIF (EBS)'!L41","v":0},{"$f":"'Schedule IIB (EBS)'!N41+'Schedule IIC (EBS)'!N41+'Schedule IID (EBS)'!N41+'Schedule IIE (EBS)'!N41+'Schedule IIF (EBS)'!N41","v":0},{"$f":"'Schedule IIB (EBS)'!P41+'Schedule IIC (EBS)'!P41+'Schedule IID (EBS)'!P41+'Schedule IIE (EBS)'!P41+'Schedule IIF (EBS)'!P41","v":0},{"$f":"'Schedule IIB (EBS)'!R41+'Schedule IIC (EBS)'!R41+'Schedule IID (EBS)'!R41+'Schedule IIE (EBS)'!R41+'Schedule IIF (EBS)'!R41","v":0},{"$f":"'Schedule IIB (EBS)'!T41+'Schedule IIC (EBS)'!T41+'Schedule IID (EBS)'!T41+'Schedule IIE (EBS)'!T41+'Schedule IIF (EBS)'!T41","v":0},null,0.35,null,0,null,0]
[null,"Preferred Stocks, BSCR Rating 1","Sch IIB, IIC, IID, IIE and IIF Line (18)",{"$f":"'Schedule IIB (EBS)'!D42+'Schedule IIC (EBS)'!D42+'Schedule IID (EBS)'!D42+'Schedule IIE (EBS)'!D42+'Schedule IIF (EBS)'!D42","v":0},{"$f":"'Schedule IIB (EBS)'!F42+'Schedule IIC (EBS)'!F42+'Schedule IID (EBS)'!F42+'Schedule IIE (EBS)'!F42+'Schedule IIF (EBS)'!F42","v":0},{"$f":"'Schedule IIB (EBS)'!H42+'Schedule IIC (EBS)'!H42+'Schedule IID (EBS)'!H42+'Schedule IIE (EBS)'!H42+'Schedule IIF (EBS)'!H42","v":0},{"$f":"'Schedule IIB (EBS)'!J42+'Schedule IIC (EBS)'!J42+'Schedule IID (EBS)'!J42+'Schedule IIE (EBS)'!J42+'Schedule IIF (EBS)'!J42","v":0},{"$f":"'Schedule IIB (EBS)'!L42+'Schedule IIC (EBS)'!L42+'Schedule IID (EBS)'!L42+'Schedule IIE (EBS)'!L42+'Schedule IIF (EBS)'!L42","v":0},{"$f":"'Schedule IIB (EBS)'!N42+'Schedule IIC (EBS)'!N42+'Schedule IID (EBS)'!N42+'Schedule IIE (EBS)'!N42+'Schedule IIF (EBS)'!N42","v":0},{"$f":"'Schedule IIB (EBS)'!P42+'Schedule IIC (EBS)'!P42+'Schedule IID (EBS)'!P42+'Schedule IIE (EBS)'!P42+'Schedule IIF (EBS)'!P42","v":0},{"$f":"'Schedule IIB (EBS)'!R42+'Schedule IIC (EBS)'!R42+'Schedule IID (EBS)'!R42+'Schedule IIE (EBS)'!R42+'Schedule IIF (EBS)'!R42","v":0},{"$f":"'Schedule IIB (EBS)'!T42+'Schedule IIC (EBS)'!T42+'Schedule IID (EBS)'!T42+'Schedule IIE (EBS)'!T42+'Schedule IIF (EBS)'!T42","v":0},null,6.0000000000000001E-3,null,0,null,0]
[null,"Preferred Stocks, BSCR Rating 2","Sch IIB, IIC, IID, IIE and IIF Line (19)",{"$f":"'Schedule IIB (EBS)'!D43+'Schedule IIC (EBS)'!D43+'Schedule IID (EBS)'!D43+'Schedule IIE (EBS)'!D43+'Schedule IIF (EBS)'!D43","v":0},{"$f":"'Schedule IIB (EBS)'!F43+'Schedule IIC (EBS)'!F43+'Schedule IID (EBS)'!F43+'Schedule IIE (EBS)'!F43+'Schedule IIF (EBS)'!F43","v":0},{"$f":"'Schedule IIB (EBS)'!H43+'Schedule IIC (EBS)'!H43+'Schedule IID (EBS)'!H43+'Schedule IIE (EBS)'!H43+'Schedule IIF (EBS)'!H43","v":0},{"$f":"'Schedule IIB (EBS)'!J43+'Schedule IIC (EBS)'!J43+'Schedule IID (EBS)'!J43+'Schedule IIE (EBS)'!J43+'Schedule IIF (EBS)'!J43","v":0},{"$f":"'Schedule IIB (EBS)'!L43+'Schedule IIC (EBS)'!L43+'Schedule IID (EBS)'!L43+'Schedule IIE (EBS)'!L43+'Schedule IIF (EBS)'!L43","v":0},{"$f":"'Schedule IIB (EBS)'!N43+'Schedule IIC (EBS)'!N43+'Schedule IID (EBS)'!N43+'Schedule IIE (EBS)'!N43+'Schedule IIF (EBS)'!N43","v":0},{"$f":"'Schedule IIB (EBS)'!P43+'Schedule IIC (EBS)'!P43+'Schedule IID (EBS)'!P43+'Schedule IIE (EBS)'!P43+'Schedule IIF (EBS)'!P43","v":0},{"$f":"'Schedule IIB (EBS)'!R43+'Schedule IIC (EBS)'!R43+'Schedule IID (EBS)'!R43+'Schedule IIE (EBS)'!R43+'Schedule IIF (EBS)'!R43","v":0},{"$f":"'Schedule IIB (EBS)'!T43+'Schedule IIC (EBS)'!T43+'Schedule IID (EBS)'!T43+'Schedule IIE (EBS)'!T43+'Schedule IIF (EBS)'!T43","v":0},null,1.2E-2,null,0,null,0]
[null,"Preferred Stocks, BSCR Rating 3","Sch IIB, IIC, IID, IIE and IIF Line (20)",{"$f":"'Schedule IIB (EBS)'!D44+'Schedule IIC (EBS)'!D44+'Schedule IID (EBS)'!D44+'Schedule IIE (EBS)'!D44+'Schedule IIF (EBS)'!D44","v":0},{"$f":"'Schedule IIB (EBS)'!F44+'Schedule IIC (EBS)'!F44+'Schedule IID (EBS)'!F44+'Schedule IIE (EBS)'!F44+'Schedule IIF (EBS)'!F44","v":0},{"$f":"'Schedule IIB (EBS)'!H44+'Schedule IIC (EBS)'!H44+'Schedule IID (EBS)'!H44+'Schedule IIE (EBS)'!H44+'Schedule IIF (EBS)'!H44","v":0},{"$f":"'Schedule IIB (EBS)'!J44+'Schedule IIC (EBS)'!J44+'Schedule IID (EBS)'!J44+'Schedule IIE (EBS)'!J44+'Schedule IIF (EBS)'!J44","v":0},{"$f":"'Schedule IIB (EBS)'!L44+'Schedule IIC (EBS)'!L44+'Schedule IID (EBS)'!L44+'Schedule IIE (EBS)'!L44+'Schedule IIF (EBS)'!L44","v":0},{"$f":"'Schedule IIB (EBS)'!N44+'Schedule IIC (EBS)'!N44+'Schedule IID (EBS)'!N44+'Schedule IIE (EBS)'!N44+'Schedule IIF (EBS)'!N44","v":0},{"$f":"'Schedule IIB (EBS)'!P44+'Schedule IIC (EBS)'!P44+'Schedule IID (EBS)'!P44+'Schedule IIE (EBS)'!P44+'Schedule IIF (EBS)'!P44","v":0},{"$f":"'Schedule IIB (EBS)'!R44+'Schedule IIC (EBS)'!R44+'Schedule IID (EBS)'!R44+'Schedule IIE (EBS)'!R44+'Schedule IIF (EBS)'!R44","v":0},{"$f":"'Schedule IIB (EBS)'!T44+'Schedule IIC (EBS)'!T44+'Schedule IID (EBS)'!T44+'Schedule IIE (EBS)'!T44+'Schedule IIF (EBS)'!T44","v":0},null,0.02,null,0,null,0]
[null,"Preferred Stocks, BSCR Rating 4","Sch IIB, IIC, IID, IIE and IIF Line (21)",{"$f":"'Schedule IIB (EBS)'!D45+'Schedule IIC (EBS)'!D45+'Schedule IID (EBS)'!D45+'Schedule IIE (EBS)'!D45+'Schedule IIF (EBS)'!D45","v":0},{"$f":"'Schedule IIB (EBS)'!F45+'Schedule IIC (EBS)'!F45+'Schedule IID (EBS)'!F45+'Schedule IIE (EBS)'!F45+'Schedule IIF (EBS)'!F45","v":0},{"$f":"'Schedule IIB (EBS)'!H45+'Schedule IIC (EBS)'!H45+'Schedule IID (EBS)'!H45+'Schedule IIE (EBS)'!H45+'Schedule IIF (EBS)'!H45","v":0},{"$f":"'Schedule IIB (EBS)'!J45+'Schedule IIC (EBS)'!J45+'Schedule IID (EBS)'!J45+'Schedule IIE (EBS)'!J45+'Schedule IIF (EBS)'!J45","v":0},{"$f":"'Schedule IIB (EBS)'!L45+'Schedule IIC (EBS)'!L45+'Schedule IID (EBS)'!L45+'Schedule IIE (EBS)'!L45+'Schedule IIF (EBS)'!L45","v":0},{"$f":"'Schedule IIB (EBS)'!N45+'Schedule IIC (EBS)'!N45+'Schedule IID (EBS)'!N45+'Schedule IIE (EBS)'!N45+'Schedule IIF (EBS)'!N45","v":0},{"$f":"'Schedule IIB (EBS)'!P45+'Schedule IIC (EBS)'!P45+'Schedule IID (EBS)'!P45+'Schedule IIE (EBS)'!P45+'Schedule IIF (EBS)'!P45","v":0},{"$f":"'Schedule IIB (EBS)'!R45+'Schedule IIC (EBS)'!R45+'Schedule IID (EBS)'!R45+'Schedule IIE (EBS)'!R45+'Schedule IIF (EBS)'!R45","v":0},{"$f":"'Schedule IIB (EBS)'!T45+'Schedule IIC (EBS)'!T45+'Schedule IID (EBS)'!T45+'Schedule IIE (EBS)'!T45+'Schedule IIF (EBS)'!T45","v":0},null,0.04,null,0,null,0]
[null,"Preferred Stocks, BSCR Rating 5","Sch IIB, IIC, IID, IIE and IIF Line (22)",{"$f":"'Schedule IIB (EBS)'!D46+'Schedule IIC (EBS)'!D46+'Schedule IID (EBS)'!D46+'Schedule IIE (EBS)'!D46+'Schedule IIF (EBS)'!D46","v":0},{"$f":"'Schedule IIB (EBS)'!F46+'Schedule IIC (EBS)'!F46+'Schedule IID (EBS)'!F46+'Schedule IIE (EBS)'!F46+'Schedule IIF (EBS)'!F46","v":0},{"$f":"'Schedule IIB (EBS)'!H46+'Schedule IIC (EBS)'!H46+'Schedule IID (EBS)'!H46+'Schedule IIE (EBS)'!H46+'Schedule IIF (EBS)'!H46","v":0},{"$f":"'Schedule IIB (EBS)'!J46+'Schedule IIC (EBS)'!J46+'Schedule IID (EBS)'!J46+'Schedule IIE (EBS)'!J46+'Schedule IIF (EBS)'!J46","v":0},{"$f":"'Schedule IIB (EBS)'!L46+'Schedule IIC (EBS)'!L46+'Schedule IID (EBS)'!L46+'Schedule IIE (EBS)'!L46+'Schedule IIF (EBS)'!L46","v":0},{"$f":"'Schedule IIB (EBS)'!N46+'Schedule IIC (EBS)'!N46+'Schedule IID (EBS)'!N46+'Schedule IIE (EBS)'!N46+'Schedule IIF (EBS)'!N46","v":0},{"$f":"'Schedule IIB (EBS)'!P46+'Schedule IIC (EBS)'!P46+'Schedule IID (EBS)'!P46+'Schedule IIE (EBS)'!P46+'Schedule IIF (EBS)'!P46","v":0},{"$f":"'Schedule IIB (EBS)'!R46+'Schedule IIC (EBS)'!R46+'Schedule IID (EBS)'!R46+'Schedule IIE (EBS)'!R46+'Schedule IIF (EBS)'!R46","v":0},{"$f":"'Schedule IIB (EBS)'!T46+'Schedule IIC (EBS)'!T46+'Schedule IID (EBS)'!T46+'Schedule IIE (EBS)'!T46+'Schedule IIF (EBS)'!T46","v":0},null,0.11,null,0,null,0]
[null,"Preferred Stocks, BSCR Rating 6","Sch IIB, IIC, IID, IIE and IIF Line (23)",{"$f":"'Schedule IIB (EBS)'!D47+'Schedule IIC (EBS)'!D47+'Schedule IID (EBS)'!D47+'Schedule IIE (EBS)'!D47+'Schedule IIF (EBS)'!D47","v":0},{"$f":"'Schedule IIB (EBS)'!F47+'Schedule IIC (EBS)'!F47+'Schedule IID (EBS)'!F47+'Schedule IIE (EBS)'!F47+'Schedule IIF (EBS)'!F47","v":0},{"$f":"'Schedule IIB (EBS)'!H47+'Schedule IIC (EBS)'!H47+'Schedule IID (EBS)'!H47+'Schedule IIE (EBS)'!H47+'Schedule IIF (EBS)'!H47","v":0},{"$f":"'Schedule IIB (EBS)'!J47+'Schedule IIC (EBS)'!J47+'Schedule IID (EBS)'!J47+'Schedule IIE (EBS)'!J47+'Schedule IIF (EBS)'!J47","v":0},{"$f":"'Schedule IIB (EBS)'!L47+'Schedule IIC (EBS)'!L47+'Schedule IID (EBS)'!L47+'Schedule IIE (EBS)'!L47+'Schedule IIF (EBS)'!L47","v":0},{"$f":"'Schedule IIB (EBS)'!N47+'Schedule IIC (EBS)'!N47+'Schedule IID (EBS)'!N47+'Schedule IIE (EBS)'!N47+'Schedule IIF (EBS)'!N47","v":0},{"$f":"'Schedule IIB (EBS)'!P47+'Schedule IIC (EBS)'!P47+'Schedule IID (EBS)'!P47+'Schedule IIE (EBS)'!P47+'Schedule IIF (EBS)'!P47","v":0},{"$f":"'Schedule IIB (EBS)'!R47+'Schedule IIC (EBS)'!R47+'Schedule IID (EBS)'!R47+'Schedule IIE (EBS)'!R47+'Schedule IIF (EBS)'!R47","v":0},{"$f":"'Schedule IIB (EBS)'!T47+'Schedule IIC (EBS)'!T47+'Schedule IID (EBS)'!T47+'Schedule IIE (EBS)'!T47+'Schedule IIF (EBS)'!T47","v":0},null,0.25,null,0,null,0]
[null,"Preferred Stocks, BSCR Rating 7","Sch IIB, IIC, IID, IIE and IIF Line (24)",{"$f":"'Schedule IIB (EBS)'!D48+'Schedule IIC (EBS)'!D48+'Schedule IID (EBS)'!D48+'Schedule IIE (EBS)'!D48+'Schedule IIF (EBS)'!D48","v":0},{"$f":"'Schedule IIB (EBS)'!F48+'Schedule IIC (EBS)'!F48+'Schedule IID (EBS)'!F48+'Schedule IIE (EBS)'!F48+'Schedule IIF (EBS)'!F48","v":0},{"$f":"'Schedule IIB (EBS)'!H48+'Schedule IIC (EBS)'!H48+'Schedule IID (EBS)'!H48+'Schedule IIE (EBS)'!H48+'Schedule IIF (EBS)'!H48","v":0},{"$f":"'Schedule IIB (EBS)'!J48+'Schedule IIC (EBS)'!J48+'Schedule IID (EBS)'!J48+'Schedule IIE (EBS)'!J48+'Schedule IIF (EBS)'!J48","v":0},{"$f":"'Schedule IIB (EBS)'!L48+'Schedule IIC (EBS)'!L48+'Schedule IID (EBS)'!L48+'Schedule IIE (EBS)'!L48+'Schedule IIF (EBS)'!L48","v":0},{"$f":"'Schedule IIB (EBS)'!N48+'Schedule IIC (EBS)'!N48+'Schedule IID (EBS)'!N48+'Schedule IIE (EBS)'!N48+'Schedule IIF (EBS)'!N48","v":0},{"$f":"'Schedule IIB (EBS)'!P48+'Schedule IIC (EBS)'!P48+'Schedule IID (EBS)'!P48+'Schedule IIE (EBS)'!P48+'Schedule IIF (EBS)'!P48","v":0},{"$f":"'Schedule IIB (EBS)'!R48+'Schedule IIC (EBS)'!R48+'Schedule IID (EBS)'!R48+'Schedule IIE (EBS)'!R48+'Schedule IIF (EBS)'!R48","v":0},{"$f":"'Schedule IIB (EBS)'!T48+'Schedule IIC (EBS)'!T48+'Schedule IID (EBS)'!T48+'Schedule IIE (EBS)'!T48+'Schedule IIF (EBS)'!T48","v":0},null,0.35,null,0,null,0]
[null,"Preferred Stocks, BSCR Rating 8","Sch IIB, IIC, IID, IIE and IIF Line (25)",{"$f":"'Schedule IIB (EBS)'!D49+'Schedule IIC (EBS)'!D49+'Schedule IID (EBS)'!D49+'Schedule IIE (EBS)'!D49+'Schedule IIF (EBS)'!D49","v":0},{"$f":"'Schedule IIB (EBS)'!F49+'Schedule IIC (EBS)'!F49+'Schedule IID (EBS)'!F49+'Schedule IIE (EBS)'!F49+'Schedule IIF (EBS)'!F49","v":0},{"$f":"'Schedule IIB (EBS)'!H49+'Schedule IIC (EBS)'!H49+'Schedule IID (EBS)'!H49+'Schedule IIE (EBS)'!H49+'Schedule IIF (EBS)'!H49","v":0},{"$f":"'Schedule IIB (EBS)'!J49+'Schedule IIC (EBS)'!J49+'Schedule IID (EBS)'!J49+'Schedule IIE (EBS)'!J49+'Schedule IIF (EBS)'!J49","v":0},{"$f":"'Schedule IIB (EBS)'!L49+'Schedule IIC (EBS)'!L49+'Schedule IID (EBS)'!L49+'Schedule IIE (EBS)'!L49+'Schedule IIF (EBS)'!L49","v":0},{"$f":"'Schedule IIB (EBS)'!N49+'Schedule IIC (EBS)'!N49+'Schedule IID (EBS)'!N49+'Schedule IIE (EBS)'!N49+'Schedule IIF (EBS)'!N49","v":0},{"$f":"'Schedule IIB (EBS)'!P49+'Schedule IIC (EBS)'!P49+'Schedule IID (EBS)'!P49+'Schedule IIE (EBS)'!P49+'Schedule IIF (EBS)'!P49","v":0},{"$f":"'Schedule IIB (EBS)'!R49+'Schedule IIC (EBS)'!R49+'Schedule IID (EBS)'!R49+'Schedule IIE (EBS)'!R49+'Schedule IIF (EBS)'!R49","v":0},{"$f":"'Schedule IIB (EBS)'!T49+'Schedule IIC (EBS)'!T49+'Schedule IID (EBS)'!T49+'Schedule IIE (EBS)'!T49+'Schedule IIF (EBS)'!T49","v":0},null,0.35,null,0,null,0]
[null,"Equity Derivatives on Type 1 Equities","Sch IIB, IIC, IID, IIE and IIF Line (26)",{"$f":"'Schedule IIB (EBS)'!D50+'Schedule IIC (EBS)'!D50+'Schedule IID (EBS)'!D50+'Schedule IIE (EBS)'!D50+'Schedule IIF (EBS)'!D50","v":0},{"$f":"'Schedule IIB (EBS)'!F50+'Schedule IIC (EBS)'!F50+'Schedule IID (EBS)'!F50+'Schedule IIE (EBS)'!F50+'Schedule IIF (EBS)'!F50","v":0},{"$f":"'Schedule IIB (EBS)'!H50+'Schedule IIC (EBS)'!H50+'Schedule IID (EBS)'!H50+'Schedule IIE (EBS)'!H50+'Schedule IIF (EBS)'!H50","v":0},{"$f":"'Schedule IIB (EBS)'!J50+'Schedule IIC (EBS)'!J50+'Schedule IID (EBS)'!J50+'Schedule IIE (EBS)'!J50+'Schedule IIF (EBS)'!J50","v":0},{"$f":"'Schedule IIB (EBS)'!L50+'Schedule IIC (EBS)'!L50+'Schedule IID (EBS)'!L50+'Schedule IIE (EBS)'!L50+'Schedule IIF (EBS)'!L50","v":0},{"$f":"'Schedule IIB (EBS)'!N50+'Schedule IIC (EBS)'!N50+'Schedule IID (EBS)'!N50+'Schedule IIE (EBS)'!N50+'Schedule IIF (EBS)'!N50","v":0},{"$f":"'Schedule IIB (EBS)'!P50+'Schedule IIC (EBS)'!P50+'Schedule IID (EBS)'!P50+'Schedule IIE (EBS)'!P50+'Schedule IIF (EBS)'!P50","v":0},{"$f":"'Schedule IIB (EBS)'!R50+'Schedule IIC (EBS)'!R50+'Schedule IID (EBS)'!R50+'Schedule IIE (EBS)'!R50+'Schedule IIF (EBS)'!R50","v":0},{"$f":"'Schedule IIB (EBS)'!T50+'Schedule IIC (EBS)'!T50+'Schedule IID (EBS)'!T50+'Schedule IIE (EBS)'!T50+'Schedule IIF (EBS)'!T50","v":0},null,0.35,null,0,null,0]
[]
[null,"Subtotal - Type 1 Equity Holdings",null,{"$f":"SUM(D11:D23)","v":0},0,0,0,0,0,0,0,0,null,null,null,{"$f":"MAX(SUM(P11:P22),0)","v":0},null,{"$f":"MAX(SUM(R11:R22),0)","v":0}]
[]
[null,"Type 2 Equity Holdings"]
[null,"Strategic Holdings - Unlisted","Sch IIB, IIC, IID, IIE and IIF Line (27)",{"$f":"'Schedule IIB (EBS)'!D51+'Schedule IIC (EBS)'!D51+'Schedule IID (EBS)'!D51+'Schedule IIE (EBS)'!D51+'Schedule IIF (EBS)'!D51","v":0},{"$f":"'Schedule IIB (EBS)'!F51+'Schedule IIC (EBS)'!F51+'Schedule IID (EBS)'!F51+'Schedule IIE (EBS)'!F51+'Schedule IIF (EBS)'!F51","v":0},{"$f":"'Schedule IIB (EBS)'!H51+'Schedule IIC (EBS)'!H51+'Schedule IID (EBS)'!H51+'Schedule IIE (EBS)'!H51+'Schedule IIF (EBS)'!H51","v":0},{"$f":"'Schedule IIB (EBS)'!J51+'Schedule IIC (EBS)'!J51+'Schedule IID (EBS)'!J51+'Schedule IIE (EBS)'!J51+'Schedule IIF (EBS)'!J51","v":0},{"$f":"'Schedule IIB (EBS)'!L51+'Schedule IIC (EBS)'!L51+'Schedule IID (EBS)'!L51+'Schedule IIE (EBS)'!L51+'Schedule IIF (EBS)'!L51","v":0},{"$f":"'Schedule IIB (EBS)'!N51+'Schedule IIC (EBS)'!N51+'Schedule IID (EBS)'!N51+'Schedule IIE (EBS)'!N51+'Schedule IIF (EBS)'!N51","v":0},{"$f":"'Schedule IIB (EBS)'!P51+'Schedule IIC (EBS)'!P51+'Schedule IID (EBS)'!P51+'Schedule IIE (EBS)'!P51+'Schedule IIF (EBS)'!P51","v":0},{"$f":"'Schedule IIB (EBS)'!R51+'Schedule IIC (EBS)'!R51+'Schedule IID (EBS)'!R51+'Schedule IIE (EBS)'!R51+'Schedule IIF (EBS)'!R51","v":0},{"$f":"'Schedule IIB (EBS)'!T51+'Schedule IIC (EBS)'!T51+'Schedule IID (EBS)'!T51+'Schedule IIE (EBS)'!T51+'Schedule IIF (EBS)'!T51","v":0},null,0.2,null,{"$f":"MAX(D27-E27,0)+(F27-G27)+MAX(H27-I27,0)+(K27-J27)","v":0},null,{"$f":"MAX(D27-E27,0)+(F27-G27)+MAX(H27-I27,0)+(L27-J27)","v":0}]
[null,"Other Equities","Sch IIB, IIC, IID, IIE and IIF Line (28)",{"$f":"'Schedule IIB (EBS)'!D52+'Schedule IIC (EBS)'!D52+'Schedule IID (EBS)'!D52+'Schedule IIE (EBS)'!D52+'Schedule IIF (EBS)'!D52","v":0},{"$f":"'Schedule IIB (EBS)'!F52+'Schedule IIC (EBS)'!F52+'Schedule IID (EBS)'!F52+'Schedule IIE (EBS)'!F52+'Schedule IIF (EBS)'!F52","v":0},{"$f":"'Schedule IIB (EBS)'!H52+'Schedule IIC (EBS)'!H52+'Schedule IID (EBS)'!H52+'Schedule IIE (EBS)'!H52+'Schedule IIF (EBS)'!H52","v":0},{"$f":"'Schedule IIB (EBS)'!J52+'Schedule IIC (EBS)'!J52+'Schedule IID (EBS)'!J52+'Schedule IIE (EBS)'!J52+'Schedule IIF (EBS)'!J52","v":0},{"$f":"'Schedule IIB (EBS)'!L52+'Schedule IIC (EBS)'!L52+'Schedule IID (EBS)'!L52+'Schedule IIE (EBS)'!L52+'Schedule IIF (EBS)'!L52","v":0},{"$f":"'Schedule IIB (EBS)'!N52+'Schedule IIC (EBS)'!N52+'Schedule IID (EBS)'!N52+'Schedule IIE (EBS)'!N52+'Schedule IIF (EBS)'!N52","v":0},{"$f":"'Schedule IIB (EBS)'!P52+'Schedule IIC (EBS)'!P52+'Schedule IID (EBS)'!P52+'Schedule IIE (EBS)'!P52+'Schedule IIF (EBS)'!P52","v":0},{"$f":"'Schedule IIB (EBS)'!R52+'Schedule IIC (EBS)'!R52+'Schedule IID (EBS)'!R52+'Schedule IIE (EBS)'!R52+'Schedule IIF (EBS)'!R52","v":0},{"$f":"'Schedule IIB (EBS)'!T52+'Schedule IIC (EBS)'!T52+'Schedule IID (EBS)'!T52+'Schedule IIE (EBS)'!T52+'Schedule IIF (EBS)'!T52","v":0},null,0.45,null,0,null,0]
[null,"Letters of Credit","Sch IIB, IIC, IID, IIE and IIF Line (29)",{"$f":"'Schedule IIB (EBS)'!D53+'Schedule IIC (EBS)'!D53+'Schedule IID (EBS)'!D53+'Schedule IIE (EBS)'!D53+'Schedule IIF (EBS)'!D53","v":0},{"$f":"'Schedule IIB (EBS)'!F53+'Schedule IIC (EBS)'!F53+'Schedule IID (EBS)'!F53+'Schedule IIE (EBS)'!F53+'Schedule IIF (EBS)'!F53","v":0},{"$f":"'Schedule IIB (EBS)'!H53+'Schedule IIC (EBS)'!H53+'Schedule IID (EBS)'!H53+'Schedule IIE (EBS)'!H53+'Schedule IIF (EBS)'!H53","v":0},{"$f":"'Schedule IIB (EBS)'!J53+'Schedule IIC (EBS)'!J53+'Schedule IID (EBS)'!J53+'Schedule IIE (EBS)'!J53+'Schedule IIF (EBS)'!J53","v":0},{"$f":"'Schedule IIB (EBS)'!L53+'Schedule IIC (EBS)'!L53+'Schedule IID (EBS)'!L53+'Schedule IIE (EBS)'!L53+'Schedule IIF (EBS)'!L53","v":0},{"$f":"'Schedule IIB (EBS)'!N53+'Schedule IIC (EBS)'!N53+'Schedule IID (EBS)'!N53+'Schedule IIE (EBS)'!N53+'Schedule IIF (EBS)'!N53","v":0},{"$f":"'Schedule IIB (EBS)'!P53+'Schedule IIC (EBS)'!P53+'Schedule IID (EBS)'!P53+'Schedule IIE (EBS)'!P53+'Schedule IIF (EBS)'!P53","v":0},{"$f":"'Schedule IIB (EBS)'!R53+'Schedule IIC (EBS)'!R53+'Schedule IID (EBS)'!R53+'Schedule IIE (EBS)'!R53+'Schedule IIF (EBS)'!R53","v":0},{"$f":"'Schedule IIB (EBS)'!T53+'Schedule IIC (EBS)'!T53+'Schedule IID (EBS)'!T53+'Schedule IIE (EBS)'!T53+'Schedule IIF (EBS)'!T53","v":0},null,0.2,null,0,null,0]
[null,"Intangible assets","Sch IIB, IIC, IID, IIE and IIF Line (30)",{"$f":"'Schedule IIB (EBS)'!D54+'Schedule IIC (EBS)'!D54+'Schedule IID (EBS)'!D54+'Schedule IIE (EBS)'!D54+'Schedule IIF (EBS)'!D54","v":0},{"$f":"'Schedule IIB (EBS)'!F54+'Schedule IIC (EBS)'!F54+'Schedule IID (EBS)'!F54+'Schedule IIE (EBS)'!F54+'Schedule IIF (EBS)'!F54","v":0},{"$f":"'Schedule IIB (EBS)'!H54+'Schedule IIC (EBS)'!H54+'Schedule IID (EBS)'!H54+'Schedule IIE (EBS)'!H54+'Schedule IIF (EBS)'!H54","v":0},{"$f":"'Schedule IIB (EBS)'!J54+'Schedule IIC (EBS)'!J54+'Schedule IID (EBS)'!J54+'Schedule IIE (EBS)'!J54+'Schedule IIF (EBS)'!J54","v":0},{"$f":"'Schedule IIB (EBS)'!L54+'Schedule IIC (EBS)'!L54+'Schedule IID (EBS)'!L54+'Schedule IIE (EBS)'!L54+'Schedule IIF (EBS)'!L54","v":0},{"$f":"'Schedule IIB (EBS)'!N54+'Schedule IIC (EBS)'!N54+'Schedule IID (EBS)'!N54+'Schedule IIE (EBS)'!N54+'Schedule IIF (EBS)'!N54","v":0},{"$f":"'Schedule IIB (EBS)'!P54+'Schedule IIC (EBS)'!P54+'Schedule IID (EBS)'!P54+'Schedule IIE (EBS)'!P54+'Schedule IIF (EBS)'!P54","v":0},{"$f":"'Schedule IIB (EBS)'!R54+'Schedule IIC (EBS)'!R54+'Schedule IID (EBS)'!R54+'Schedule IIE (EBS)'!R54+'Schedule IIF (EBS)'!R54","v":0},{"$f":"'Schedule IIB (EBS)'!T54+'Schedule IIC (EBS)'!T54+'Schedule IID (EBS)'!T54+'Schedule IIE (EBS)'!T54+'Schedule IIF (EBS)'!T54","v":0},null,0.2,null,0,null,0]
[null,"Pension Benefit Surplus","Sch IIB, IIC, IID, IIE and IIF Line (31)",{"$f":"'Schedule IIB (EBS)'!D55+'Schedule IIC (EBS)'!D55+'Schedule IID (EBS)'!D55+'Schedule IIE (EBS)'!D55+'Schedule IIF (EBS)'!D55","v":0},{"$f":"'Schedule IIB (EBS)'!F55+'Schedule IIC (EBS)'!F55+'Schedule IID (EBS)'!F55+'Schedule IIE (EBS)'!F55+'Schedule IIF (EBS)'!F55","v":0},{"$f":"'Schedule IIB (EBS)'!H55+'Schedule IIC (EBS)'!H55+'Schedule IID (EBS)'!H55+'Schedule IIE (EBS)'!H55+'Schedule IIF (EBS)'!H55","v":0},{"$f":"'Schedule IIB (EBS)'!J55+'Schedule IIC (EBS)'!J55+'Schedule IID (EBS)'!J55+'Schedule IIE (EBS)'!J55+'Schedule IIF (EBS)'!J55","v":0},{"$f":"'Schedule IIB (EBS)'!L55+'Schedule IIC (EBS)'!L55+'Schedule IID (EBS)'!L55+'Schedule IIE (EBS)'!L55+'Schedule IIF (EBS)'!L55","v":0},{"$f":"'Schedule IIB (EBS)'!N55+'Schedule IIC (EBS)'!N55+'Schedule IID (EBS)'!N55+'Schedule IIE (EBS)'!N55+'Schedule IIF (EBS)'!N55","v":0},{"$f":"'Schedule IIB (EBS)'!P55+'Schedule IIC (EBS)'!P55+'Schedule IID (EBS)'!P55+'Schedule IIE (EBS)'!P55+'Schedule IIF (EBS)'!P55","v":0},{"$f":"'Schedule IIB (EBS)'!R55+'Schedule IIC (EBS)'!R55+'Schedule IID (EBS)'!R55+'Schedule IIE (EBS)'!R55+'Schedule IIF (EBS)'!R55","v":0},{"$f":"'Schedule IIB (EBS)'!T55+'Schedule IIC (EBS)'!T55+'Schedule IID (EBS)'!T55+'Schedule IIE (EBS)'!T55+'Schedule IIF (EBS)'!T55","v":0},null,0.2,null,0,null,0]
[null,"Equity Derivatives on Type 2 Equities","Sch IIB, IIC, IID, IIE and IIF Line (32)",{"$f":"'Schedule IIB (EBS)'!D56+'Schedule IIC (EBS)'!D56+'Schedule IID (EBS)'!D56+'Schedule IIE (EBS)'!D56+'Schedule IIF (EBS)'!D56","v":0},{"$f":"'Schedule IIB (EBS)'!F56+'Schedule IIC (EBS)'!F56+'Schedule IID (EBS)'!F56+'Schedule IIE (EBS)'!F56+'Schedule IIF (EBS)'!F56","v":0},{"$f":"'Schedule IIB (EBS)'!H56+'Schedule IIC (EBS)'!H56+'Schedule IID (EBS)'!H56+'Schedule IIE (EBS)'!H56+'Schedule IIF (EBS)'!H56","v":0},{"$f":"'Schedule IIB (EBS)'!J56+'Schedule IIC (EBS)'!J56+'Schedule IID (EBS)'!J56+'Schedule IIE (EBS)'!J56+'Schedule IIF (EBS)'!J56","v":0},{"$f":"'Schedule IIB (EBS)'!L56+'Schedule IIC (EBS)'!L56+'Schedule IID (EBS)'!L56+'Schedule IIE (EBS)'!L56+'Schedule IIF (EBS)'!L56","v":0},{"$f":"'Schedule IIB (EBS)'!N56+'Schedule IIC (EBS)'!N56+'Schedule IID (EBS)'!N56+'Schedule IIE (EBS)'!N56+'Schedule IIF (EBS)'!N56","v":0},{"$f":"'Schedule IIB (EBS)'!P56+'Schedule IIC (EBS)'!P56+'Schedule IID (EBS)'!P56+'Schedule IIE (EBS)'!P56+'Schedule IIF (EBS)'!P56","v":0},{"$f":"'Schedule IIB (EBS)'!R56+'Schedule IIC (EBS)'!R56+'Schedule IID (EBS)'!R56+'Schedule IIE (EBS)'!R56+'Schedule IIF (EBS)'!R56","v":0},{"$f":"'Schedule IIB (EBS)'!T56+'Schedule IIC (EBS)'!T56+'Schedule IID (EBS)'!T56+'Schedule IIE (EBS)'!T56+'Schedule IIF (EBS)'!T56","v":0},null,0.45,null,0,null,0]
[]
[null,"Subtotal - Type 2 Equity Holdings",null,{"$f":"SUM(D27:D33)","v":0},{"$f":"SUM(E27:E33)","v":0},{"$f":"SUM(F27:F33)","v":0},0,0,0,0,0,{"$f":"SUM(L27:L33)","v":0},null,null,null,{"$f":"MAX(SUM(P27:P33),0)","v":0},null,{"$f":"MAX(SUM(R27:R33),0)","v":0}]
[]
[null,"Type 3 Equity Holdings"]
[null,"Infrastructure","Sch IIB, IIC, IID, IIE and IIF Line (33)",{"$f":"'Schedule IIB (EBS)'!D57+'Schedule IIC (EBS)'!D57+'Schedule IID (EBS)'!D57+'Schedule IIE (EBS)'!D57+'Schedule IIF (EBS)'!D57","v":0},{"$f":"'Schedule IIB (EBS)'!F57+'Schedule IIC (EBS)'!F57+'Schedule IID (EBS)'!F57+'Schedule IIE (EBS)'!F57+'Schedule IIF (EBS)'!F57","v":0},{"$f":"'Schedule IIB (EBS)'!H57+'Schedule IIC (EBS)'!H57+'Schedule IID (EBS)'!H57+'Schedule IIE (EBS)'!H57+'Schedule IIF (EBS)'!H57","v":0},{"$f":"'Schedule IIB (EBS)'!J57+'Schedule IIC (EBS)'!J57+'Schedule IID (EBS)'!J57+'Schedule IIE (EBS)'!J57+'Schedule IIF (EBS)'!J57","v":0},{"$f":"'Schedule IIB (EBS)'!L57+'Schedule IIC (EBS)'!L57+'Schedule IID (EBS)'!L57+'Schedule IIE (EBS)'!L57+'Schedule IIF (EBS)'!L57","v":0},{"$f":"'Schedule IIB (EBS)'!N57+'Schedule IIC (EBS)'!N57+'Schedule IID (EBS)'!N57+'Schedule IIE (EBS)'!N57+'Schedule IIF (EBS)'!N57","v":0},{"$f":"'Schedule IIB (EBS)'!P57+'Schedule IIC (EBS)'!P57+'Schedule IID (EBS)'!P57+'Schedule IIE (EBS)'!P57+'Schedule IIF (EBS)'!P57","v":0},{"$f":"'Schedule IIB (EBS)'!R57+'Schedule IIC (EBS)'!R57+'Schedule IID (EBS)'!R57+'Schedule IIE (EBS)'!R57+'Schedule IIF (EBS)'!R57","v":0},{"$f":"'Schedule IIB (EBS)'!T57+'Schedule IIC (EBS)'!T57+'Schedule IID (EBS)'!T57+'Schedule IIE (EBS)'!T57+'Schedule IIF (EBS)'!T57","v":0},null,0.25,null,{"$f":"MAX(D37-E37,0)+(F37-G37)+MAX(H37-I37,0)+(K37-J37)","v":0},null,{"$f":"MAX(D37-E37,0)+(F37-G37)+MAX(H37-I37,0)+(L37-J37)","v":0}]
[null,"Derivatives on Infrastructure","Sch IIB, IIC, IID, IIE and IIF Line (34)",{"$f":"'Schedule IIB (EBS)'!D58+'Schedule IIC (EBS)'!D58+'Schedule IID (EBS)'!D58+'Schedule IIE (EBS)'!D58+'Schedule IIF (EBS)'!D58","v":0},{"$f":"'Schedule IIB (EBS)'!F58+'Schedule IIC (EBS)'!F58+'Schedule IID (EBS)'!F58+'Schedule IIE (EBS)'!F58+'Schedule IIF (EBS)'!F58","v":0},{"$f":"'Schedule IIB (EBS)'!H58+'Schedule IIC (EBS)'!H58+'Schedule IID (EBS)'!H58+'Schedule IIE (EBS)'!H58+'Schedule IIF (EBS)'!H58","v":0},{"$f":"'Schedule IIB (EBS)'!J58+'Schedule IIC (EBS)'!J58+'Schedule IID (EBS)'!J58+'Schedule IIE (EBS)'!J58+'Schedule IIF (EBS)'!J58","v":0},{"$f":"'Schedule IIB (EBS)'!L58+'Schedule IIC (EBS)'!L58+'Schedule IID (EBS)'!L58+'Schedule IIE (EBS)'!L58+'Schedule IIF (EBS)'!L58","v":0},{"$f":"'Schedule IIB (EBS)'!N58+'Schedule IIC (EBS)'!N58+'Schedule IID (EBS)'!N58+'Schedule IIE (EBS)'!N58+'Schedule IIF (EBS)'!N58","v":0},{"$f":"'Schedule IIB (EBS)'!P58+'Schedule IIC (EBS)'!P58+'Schedule IID (EBS)'!P58+'Schedule IIE (EBS)'!P58+'Schedule IIF (EBS)'!P58","v":0},{"$f":"'Schedule IIB (EBS)'!R58+'Schedule IIC (EBS)'!R58+'Schedule IID (EBS)'!R58+'Schedule IIE (EBS)'!R58+'Schedule IIF (EBS)'!R58","v":0},{"$f":"'Schedule IIB (EBS)'!T58+'Schedule IIC (EBS)'!T58+'Schedule IID (EBS)'!T58+'Schedule IIE (EBS)'!T58+'Schedule IIF (EBS)'!T58","v":0},null,0.25,null,{"$f":"MAX(D38-E38,0)+(F38-G38)+MAX(H38-I38,0)+(K38-J38)","v":0},null,0]
[]
[null,"Subtotal - Type 3 Equity Holdings",null,{"$f":"SUM(D37:D39)","v":0},{"$f":"SUM(E37:E39)","v":0},{"$f":"SUM(F37:F39)","v":0},0,0,0,0,0,{"$f":"SUM(L37:L39)","v":0},null,null,null,{"$f":"MAX(SUM(P37:P39),0)","v":0},null,{"$f":"MAX(SUM(R37:R39),0)","v":0}]
[]
[null,"Type 4 Equity Holdings"]
[null,"Equity Real Estate 1","Sch IIB, IIC, IID, IIE and IIF Line (35)",{"$f":"'Schedule IIB (EBS)'!D59+'Schedule IIC (EBS)'!D59+'Schedule IID (EBS)'!D59+'Schedule IIE (EBS)'!D59+'Schedule IIF (EBS)'!D59","v":0},{"$f":"'Schedule IIB (EBS)'!F59+'Schedule IIC (EBS)'!F59+'Schedule IID (EBS)'!F59+'Schedule IIE (EBS)'!F59+'Schedule IIF (EBS)'!F59","v":0},{"$f":"'Schedule IIB (EBS)'!H59+'Schedule IIC (EBS)'!H59+'Schedule IID (EBS)'!H59+'Schedule IIE (EBS)'!H59+'Schedule IIF (EBS)'!H59","v":0},{"$f":"'Schedule IIB (EBS)'!J59+'Schedule IIC (EBS)'!J59+'Schedule IID (EBS)'!J59+'Schedule IIE (EBS)'!J59+'Schedule IIF (EBS)'!J59","v":0},{"$f":"'Schedule IIB (EBS)'!L59+'Schedule IIC (EBS)'!L59+'Schedule IID (EBS)'!L59+'Schedule IIE (EBS)'!L59+'Schedule IIF (EBS)'!L59","v":0},{"$f":"'Schedule IIB (EBS)'!N59+'Schedule IIC (EBS)'!N59+'Schedule IID (EBS)'!N59+'Schedule IIE (EBS)'!N59+'Schedule IIF (EBS)'!N59","v":0},{"$f":"'Schedule IIB (EBS)'!P59+'Schedule IIC (EBS)'!P59+'Schedule IID (EBS)'!P59+'Schedule IIE (EBS)'!P59+'Schedule IIF (EBS)'!P59","v":0},{"$f":"'Schedule IIB (EBS)'!R59+'Schedule IIC (EBS)'!R59+'Schedule IID (EBS)'!R59+'Schedule IIE (EBS)'!R59+'Schedule IIF (EBS)'!R59","v":0},{"$f":"'Schedule IIB (EBS)'!T59+'Schedule IIC (EBS)'!T59+'Schedule IID (EBS)'!T59+'Schedule IIE (EBS)'!T59+'Schedule IIF (EBS)'!T59","v":0},null,0.1,null,{"$f":"MAX(D43-E43,0)+(F43-G43)+MAX(H43-I43,0)+(K43-J43)","v":0},null,{"$f":"MAX(D43-E43,0)+(F43-G43)+MAX(H43-I43,0)+(L43-J43)","v":0}]
[null,"Equity Real Estate 2","Sch IIB, IIC, IID, IIE and IIF Line (36)",{"$f":"'Schedule IIB (EBS)'!D60+'Schedule IIC (EBS)'!D60+'Schedule IID (EBS)'!D60+'Schedule IIE (EBS)'!D60+'Schedule IIF (EBS)'!D60","v":0},{"$f":"'Schedule IIB (EBS)'!F60+'Schedule IIC (EBS)'!F60+'Schedule IID (EBS)'!F60+'Schedule IIE (EBS)'!F60+'Schedule IIF (EBS)'!F60","v":0},{"$f":"'Schedule IIB (EBS)'!H60+'Schedule IIC (EBS)'!H60+'Schedule IID (EBS)'!H60+'Schedule IIE (EBS)'!H60+'Schedule IIF (EBS)'!H60","v":0},{"$f":"'Schedule IIB (EBS)'!J60+'Schedule IIC (EBS)'!J60+'Schedule IID (EBS)'!J60+'Schedule IIE (EBS)'!J60+'Schedule IIF (EBS)'!J60","v":0},{"$f":"'Schedule IIB (EBS)'!L60+'Schedule IIC (EBS)'!L60+'Schedule IID (EBS)'!L60+'Schedule IIE (EBS)'!L60+'Schedule IIF (EBS)'!L60","v":0},{"$f":"'Schedule IIB (EBS)'!N60+'Schedule IIC (EBS)'!N60+'Schedule IID (EBS)'!N60+'Schedule IIE (EBS)'!N60+'Schedule IIF (EBS)'!N60","v":0},{"$f":"'Schedule IIB (EBS)'!P60+'Schedule IIC (EBS)'!P60+'Schedule IID (EBS)'!P60+'Schedule IIE (EBS)'!P60+'Schedule IIF (EBS)'!P60","v":0},{"$f":"'Schedule IIB (EBS)'!R60+'Schedule IIC (EBS)'!R60+'Schedule IID (EBS)'!R60+'Schedule IIE (EBS)'!R60+'Schedule IIF (EBS)'!R60","v":0},{"$f":"'Schedule IIB (EBS)'!T60+'Schedule IIC (EBS)'!T60+'Schedule IID (EBS)'!T60+'Schedule IIE (EBS)'!T60+'Schedule IIF (EBS)'!T60","v":0},null,0.2,null,{"$f":"MAX(D44-E44,0)+(F44-G44)+MAX(H44-I44,0)+(K44-J44)","v":0},null,0]
[]
[null,"Subtotal - Type 4 Equity Holdings",null,{"$f":"SUM(D43:D45)","v":0},{"$f":"SUM(E43:E45)","v":0},0,0,0,0,0,{"$f":"SUM(K43:K45)","v":0},{"$f":"SUM(L43:L45)","v":0},null,null,null,{"$f":"MAX(SUM(P43:P45),0)","v":0},null,{"$f":"MAX(SUM(R43:R45),0)","v":0}]
[]
[null,"Total Equity Risk before Diversification",null,{"$f":"D40+D34+D24+D46","v":0},{"$f":"E40+E34+E24+E46","v":0},0,0,0,0,0,{"$f":"K40+K34+K24+K46","v":0},{"$f":"L40+L34+L24+L46","v":0},null,null,null,{"$f":"P40+P34+P24+P46","v":0},null,{"$f":"R40+R34+R24+R46","v":0}]
[]
[null,"Aggregation of Risks","Correlation Matrix","Type 1","Type 2","Type 3","Type 4"]
[null,null,"Type 1",1,0.75,0.75,0.5,null,null,null,null,null,null,"Total Type 1 Risk ",null,{"$f":"P24","v":0},null,{"$f":"R24","v":0}]
[null,null,"Type 2",0.75,1,0.75,0.5,null,null,null,null,null,null,"Total Type 2 Risk ",null,{"$f":"P34","v":0},null,{"$f":"R34","v":0}]
[null,null,"Type 3",0.75,0.75,1,0.5,null,null,null,null,null,null,"Total Type 3 Risk",null,{"$f":"P40","v":0},null,{"$f":"R40","v":0}]
[null,null,"Type 4",0.5,0.5,0.5,1,null,null,null,null,null,null,"Total Type 4 Risk",null,{"$f":"P46","v":0},null,{"$f":"R46","v":0}]
[]
[null,"Total Equity Risk (Post Diversification) ",null,null,null,null,null,null,null,null,null,null,null,null,null,{"$f":"SQRT(MMULT(TRANSPOSE($P$51:$P$54),MMULT($D$51:$G$54,$P$51:$P$54)))","v":0},null,{"$f":"SQRT(MMULT(TRANSPOSE($R$51:$R$54),MMULT($D$51:$G$54,$R$51:$R$54)))","v":0}]

{"sheet":"Interest Rate-Liquidity Risk","index":117,"n_rows":14,"n_cols":7,"rows_kept":14,"cut":false,"hidden":false,"merged":[[0,6,0,7]]}
["INTEREST RATE - LIQUIDITY RISK",null,null,null,null,null,{"$f":"HYPERLINK(\"#'Index'!A1\",\"Return to Index\")","v":"Return to Index"}]
[{"$f":"'Company Information'!C7","v":"Enter Company Name"}]
[{"$f":"\"Interest Rate / Liquidity Risk\" & \"($\"&IF(CONFIGURATION!$B$12>1,MID(CONFIGURATION!$B$12,2,LEN(CONFIGURATION!$B$12)),\"\")&\")\"","v":"Interest Rate / Liquidity Risk($000)"},null,{"$f":" TEXT('Company Information'!C3,\"d mmmm yyyy\")","v":"31 December 2023"},-1,-2,-3,-4]
[null,null,null,null,"ESTIMATED","200 BASIS POINT"]
[null,"TYPE OF ",null,"MARKET","EFFECTIVE","INTEREST RATE","REQUIRED"]
[null,"SECURITY","STATEMENT SOURCE","VALUES","DURATION","INCREASE","CAPITAL"]
[]
[null,null,null,null,null,null,"(1) x (2) x (3)"]
[]
[null,"Bonds and Debentures - Other","Sch IIB EBS & IIC EBS Column (11), Line 1-9",{"$f":"SUM('Schedule IIB (EBS)'!X13:X21)+SUM('Schedule IIC (EBS)'!X13:X21)","v":0},{"$f":"IF('Company Information'!F11=\"Class 3A\",IF(('Schedule V'!$H$12-'Schedule V'!$H$10)>3.5,3.5,MAX(1,'Schedule V'!$H$10-'Schedule V'!$H$12,'Schedule V'!$H$12-'Schedule V'!$H$10)),IF('Schedule V'!$H$10-'Schedule V'!$H$12>=1,'Schedule V'!$H$10-'Schedule V'!$H$12,IF('Schedule V'!$H$12-'Schedule V'!$H$10>=1,'Schedule V'!$H$12-'Schedule V'!$H$10,1)))","v":1},0.02,{"$f":"IF($E$10<0,0,$D$10*$E$10*$F$10)","v":0}]
[null,"Preferred Stocks ","Sch IIB EBS & IIC EBS Column (11), Line 18-25",{"$f":"SUM('Schedule IIB (EBS)'!X42:X49)+SUM('Schedule IIC (EBS)'!X42:X49)","v":0},{"$f":"IF('Company Information'!F11=\"Class 3A\",IF(('Schedule V'!$H$12-'Schedule V'!$H$10)>3.5,3.5,MAX(1,'Schedule V'!$H$10-'Schedule V'!$H$12,'Schedule V'!$H$12-'Schedule V'!$H$10)),IF('Schedule V'!$H$10-'Schedule V'!$H$12>=1,'Schedule V'!$H$10-'Schedule V'!$H$12,IF('Schedule V'!$H$12-'Schedule V'!$H$10>=1,'Schedule V'!$H$12-'Schedule V'!$H$10,1)))","v":1},0.02,{"$f":"IF($E$11<0,0, $D$11*$E$11*$F$11)","v":0}]
[null,"Mortgage Loans","Sch IIB EBS & IIC EBS Column (11), Line 10-13",{"$f":"SUM('Schedule IIB (EBS)'!X22:X25)+SUM('Schedule IIC (EBS)'!X22:X25)","v":0},{"$f":"IF('Company Information'!F11=\"Class 3A\",IF(('Schedule V'!$H$12-'Schedule V'!$H$10)>3.5,3.5,MAX(1,'Schedule V'!$H$10-'Schedule V'!$H$12,'Schedule V'!$H$12-'Schedule V'!$H$10)),IF('Schedule V'!$H$10-'Schedule V'!$H$12>=1,'Schedule V'!$H$10-'Schedule V'!$H$12,IF('Schedule V'!$H$12-'Schedule V'!$H$10>=1,'Schedule V'!$H$12-'Schedule V'!$H$10,1)))","v":1},0.02,{"$f":"IF($E$12<0,0, $D$12*$E$12*$F$12)","v":0}]
[]
[null,"TOTAL INTEREST RATE / LIQUIDITY RISK",null,{"$f":"SUM(D10:D12)","v":0},null,null,{"$f":"IF(SUM(G10:G12)>=0,SUM(G10:G12),0)","v":0}]

{"sheet":"Interest Rate-Liquidity (Rev.)","index":118,"n_rows":117,"n_cols":20,"rows_kept":117,"cut":false,"hidden":false,"merged":[[2,3,2,4],[5,2,5,8],[5,10,5,12],[6,2,6,3],[6,4,6,5],[6,7,6,8],[6,10,6,11],[97,10,97,11],[97,14,97,15],[98,10,98,11],[98,14,98,15],[2,7,2,10]]}
["CURRENCY RISK","INTEREST RATE - LIQUIDITY RISK (REVISED)",null,null,null,null,null,null,null,null,null,null,null,null,null,null,null,null,null,{"$f":"HYPERLINK(\"#'Index'!A1\",\"Return to Index\")","v":"Return to Index"}]
[{"$f":"'Company Information'!C7","v":"Enter Company Name"}]
["Interest Rate / Liquidity Risk",null,null,{"$f":" TEXT('Company Information'!C3,\"d mmmm yyyy\")","v":"31 December 2023"}]
[]
[null,null,-1,{"$f":"C5-1","v":-2},{"$f":"D5-1","v":-3},{"$f":"E5-1","v":-4},null,{"$f":"F5-1","v":-5},{"$f":"H5-1","v":-6},null,{"$f":"I5-1","v":-7},{"$f":"K5-1","v":-8},{"$f":"L5-1","v":-9},null,{"$f":"M5-1","v":-10},{"$f":"O5-1","v":-11},{"$f":"P5-1","v":-12},null,{"$f":"Q5-1","v":-13},{"$f":"S5-1","v":-14}]
[null,null,"ASSETS",null,null,null,null,null,null,null,"LIABILITIES"]
[null,null,"Assets including derivatives qualifying as held for risk-mitigation purposes",null,"Derivatives not qualifying as held for risk-mitigation purposes",null,null,"Gross Position",null,null,"Without Management Actions",null,"With Management Actions"]
[null,"Currency","Market Value Before Shock","Market Value After Shock","Market Value Before Shock","Market Value After Shock",null,"Market Value Before Shock","Market Value After Shock",null,"Best Estimate Before Shock","Best Estimate After Shock","Best Estimate After Shock",null,"IR - Assets","IR Risk - TP without MA","IR Risk - TP with MA",null,"IR Risk - without MA","IR Risk - with MA"]
[]
[null,"IR Down- Exposures without Derivatives",null,"x"]
[null,{"$f":"'Schedule XXIII'!C10","v":"United States Dollars"},{"$f":"'Schedule XXIII'!E10","v":0},{"$f":"'Schedule XXIII'!F10","v":0},null,null,null,{"$f":"C11+E11","v":0},{"$f":"D11+F11","v":0},null,{"$f":"'Schedule XXIII'!H10","v":0},{"$f":"'Schedule XXIII'!I10","v":0},{"$f":"'Schedule XXIII'!K10","v":0},null,{"$f":"C11-D11","v":0},{"$f":"L11-K11","v":0},{"$f":"M11-K11","v":0},null,{"$f":"$O11+P11","v":0},{"$f":"$O11+Q11","v":0}]
[null,{"$f":"'Schedule XXIII'!C11","v":"Euro"},{"$f":"'Schedule XXIII'!E11","v":0},{"$f":"'Schedule XXIII'!F11","v":0},null,null,null,{"$f":"C12+E12","v":0},{"$f":"D12+F12","v":0},null,{"$f":"'Schedule XXIII'!H11","v":0},{"$f":"'Schedule XXIII'!I11","v":0},{"$f":"'Schedule XXIII'!K11","v":0},null,0,0,{"$f":"M12-K12","v":0},null,{"$f":"$O12+P12","v":0},{"$f":"$O12+Q12","v":0}]
[null,{"$f":"'Schedule XXIII'!C12","v":"United Kingdom Pounds"},{"$f":"'Schedule XXIII'!E12","v":0},{"$f":"'Schedule XXIII'!F12","v":0},null,null,null,0,0,null,{"$f":"'Schedule XXIII'!H12","v":0},{"$f":"'Schedule XXIII'!I12","v":0},{"$f":"'Schedule XXIII'!K12","v":0},null,0,0,0,null,0,0]
[null,{"$f":"'Schedule XXIII'!C13","v":"Japan Yen"},{"$f":"'Schedule XXIII'!E13","v":0},{"$f":"'Schedule XXIII'!F13","v":0},null,null,null,{"$f":"C14+E14","v":0},{"$f":"D14+F14","v":0},null,{"$f":"'Schedule XXIII'!H13","v":0},{"$f":"'Schedule XXIII'!I13","v":0},{"$f":"'Schedule XXIII'!K13","v":0},null,0,0,0,null,0,0]
[null,{"$f":"'Schedule XXIII'!C14","v":"Canada Dollars"},{"$f":"'Schedule XXIII'!E14","v":0},{"$f":"'Schedule XXIII'!F14","v":0},null,null,null,0,0,null,{"$f":"'Schedule XXIII'!H14","v":0},{"$f":"'Schedule XXIII'!I14","v":0},{"$f":"'Schedule XXIII'!K14","v":0},null,0,0,0,null,0,0]
[null,{"$f":"'Schedule XXIII'!C15","v":"Swiss Francs"},{"$f":"'Schedule XXIII'!E15","v":0},{"$f":"'Schedule XXIII'!F15","v":0},null,null,null,0,0,null,{"$f":"'Schedule XXIII'!H15","v":0},{"$f":"'Schedule XXIII'!I15","v":0},{"$f":"'Schedule XXIII'!K15","v":0},null,0,0,0,null,0,0]
[null,{"$f":"'Schedule XXIII'!C16","v":"Australia Dollar"},{"$f":"'Schedule XXIII'!E16","v":0},{"$f":"'Schedule XXIII'!F16","v":0},null,null,null,0,0,null,{"$f":"'Schedule XXIII'!H16","v":0},{"$f":"'Schedule XXIII'!I16","v":0},{"$f":"'Schedule XXIII'!K16","v":0},null,0,0,0,null,0,0]
[null,{"$f":"'Schedule XXIII'!C17","v":"New Zealand Dollar"},{"$f":"'Schedule XXIII'!E17","v":0},{"$f":"'Schedule XXIII'!F17","v":0},null,null,null,0,0,null,{"$f":"'Schedule XXIII'!H17","v":0},{"$f":"'Schedule XXIII'!I17","v":0},{"$f":"'Schedule XXIII'!K17","v":0},null,0,0,0,null,0,0]
[null,{"$f":"'Schedule XXIII'!C18","v":"Other currency 1"},{"$f":"'Schedule XXIII'!E18","v":0},{"$f":"'Schedule XXIII'!F18","v":0},null,null,null,0,0,null,{"$f":"'Schedule XXIII'!H18","v":0},{"$f":"'Schedule XXIII'!I18","v":0},{"$f":"'Schedule XXIII'!K18","v":0},null,0,0,0,null,0,0]
[null,{"$f":"'Schedule XXIII'!C19","v":"Other currency 2"},{"$f":"'Schedule XXIII'!E19","v":0},{"$f":"'Schedule XXIII'!F19","v":0},null,null,null,0,0,null,{"$f":"'Schedule XXIII'!H19","v":0},{"$f":"'Schedule XXIII'!I19","v":0},{"$f":"'Schedule XXIII'!K19","v":0},null,0,0,0,null,0,0]
[null,{"$f":"'Schedule XXIII'!C20","v":"Other currency 3"},{"$f":"'Schedule XXIII'!E20","v":0},{"$f":"'Schedule XXIII'!F20","v":0},null,null,null,0,0,null,{"$f":"'Schedule XXIII'!H20","v":0},{"$f":"'Schedule XXIII'!I20","v":0},{"$f":"'Schedule XXIII'!K20","v":0},null,0,0,0,null,0,0]
[null,{"$f":"'Schedule XXIII'!C21","v":"Other currency 4"},{"$f":"'Schedule XXIII'!E21","v":0},{"$f":"'Schedule XXIII'!F21","v":0},null,null,null,0,0,null,{"$f":"'Schedule XXIII'!H21","v":0},{"$f":"'Schedule XXIII'!I21","v":0},{"$f":"'Schedule XXIII'!K21","v":0},null,0,0,0,null,0,0]
[null,{"$f":"'Schedule XXIII'!C22","v":"Other currency 5"},{"$f":"'Schedule XXIII'!E22","v":0},{"$f":"'Schedule XXIII'!F22","v":0},null,null,null,0,0,null,{"$f":"'Schedule XXIII'!H22","v":0},{"$f":"'Schedule XXIII'!I22","v":0},{"$f":"'Schedule XXIII'!K22","v":0},null,0,0,0,null,0,0]
[null,{"$f":"'Schedule XXIII'!C23","v":"Other currency 6"},{"$f":"'Schedule XXIII'!E23","v":0},{"$f":"'Schedule XXIII'!F23","v":0},null,null,null,0,0,null,{"$f":"'Schedule XXIII'!H23","v":0},{"$f":"'Schedule XXIII'!I23","v":0},{"$f":"'Schedule XXIII'!K23","v":0},null,0,0,0,null,0,0]
[null,{"$f":"'Schedule XXIII'!C24","v":"Other currency 7"},{"$f":"'Schedule XXIII'!E24","v":0},{"$f":"'Schedule XXIII'!F24","v":0},null,null,null,0,0,null,{"$f":"'Schedule XXIII'!H24","v":0},{"$f":"'Schedule XXIII'!I24","v":0},{"$f":"'Schedule XXIII'!K24","v":0},null,0,0,0,null,0,0]
[null,{"$f":"'Schedule XXIII'!C25","v":"Other currency 8"},{"$f":"'Schedule XXIII'!E25","v":0},{"$f":"'Schedule XXIII'!F25","v":0},null,null,null,0,0,null,{"$f":"'Schedule XXIII'!H25","v":0},{"$f":"'Schedule XXIII'!I25","v":0},{"$f":"'Schedule XXIII'!K25","v":0},null,0,0,0,null,0,0]
[null,{"$f":"'Schedule XXIII'!C26","v":"Other currency 9"},{"$f":"'Schedule XXIII'!E26","v":0},{"$f":"'Schedule XXIII'!F26","v":0},null,null,null,0,0,null,{"$f":"'Schedule XXIII'!H26","v":0},{"$f":"'Schedule XXIII'!I26","v":0},{"$f":"'Schedule XXIII'!K26","v":0},null,0,0,0,null,0,0]
[null,{"$f":"'Schedule XXIII'!C27","v":"Other currency 10"},{"$f":"'Schedule XXIII'!E27","v":0},{"$f":"'Schedule XXIII'!F27","v":0},null,null,null,0,0,null,{"$f":"'Schedule XXIII'!H27","v":0},{"$f":"'Schedule XXIII'!I27","v":0},{"$f":"'Schedule XXIII'!K27","v":0},null,0,0,0,null,0,0]
[null,"Total IR - Other",{"$f":"SUM(C11:C28)","v":0},{"$f":"SUM(D11:D28)","v":0},{"$f":"SUM(E11:E28)","v":0},{"$f":"SUM(F11:F28)","v":0},null,{"$f":"SUM(H11:H28)","v":0},{"$f":"SUM(I11:I28)","v":0},null,{"$f":"SUM(K11:K28)","v":0},{"$f":"SUM(L11:L28)","v":0},{"$f":"SUM(M11:M28)","v":0},null,{"$f":"SUM(O11:O28)","v":0},{"$f":"SUM(P11:P28)","v":0},{"$f":"SUM(Q11:Q28)","v":0},null,{"$f":"SUM(S11:S28)","v":0},{"$f":"SUM(T11:T28)","v":0}]
[]
[null,"IR Down- Derivatives"]
[null,{"$f":"'Schedule XXIII'!C10","v":"United States Dollars"},{"$f":"'Schedule XXIII'!M10","v":0},{"$f":"'Schedule XXIII'!N10","v":0},{"$f":"'Schedule XXIII'!P10","v":0},{"$f":"'Schedule XXIII'!Q10","v":0},null,{"$f":"C32+E32","v":0},{"$f":"D32+F32","v":0},null,{"$f":"'Schedule XXIII'!S10","v":0},{"$f":"'Schedule XXIII'!T10","v":0},{"$f":"'Schedule XXIII'!V10","v":0},null,{"$f":"C32-D32 + MAX(0,E32-F32)","v":0},{"$f":"L32-K32","v":0},{"$f":"M32-K32","v":0},null,{"$f":"$O32+P32","v":0},{"$f":"$O32+Q32","v":0}]
[null,{"$f":"'Schedule XXIII'!C11","v":"Euro"},{"$f":"'Schedule XXIII'!M11","v":0},{"$f":"'Schedule XXIII'!N11","v":0},{"$f":"'Schedule XXIII'!P11","v":0},{"$f":"'Schedule XXIII'!Q11","v":0},null,{"$f":"C33+E33","v":0},0,null,{"$f":"'Schedule XXIII'!S11","v":0},{"$f":"'Schedule XXIII'!T11","v":0},{"$f":"'Schedule XXIII'!V11","v":0},null,0,0,0,null,{"$f":"$O33+P33","v":0},{"$f":"$O33+Q33","v":0}]
[null,{"$f":"'Schedule XXIII'!C12","v":"United Kingdom Pounds"},{"$f":"'Schedule XXIII'!M12","v":0},{"$f":"'Schedule XXIII'!N12","v":0},{"$f":"'Schedule XXIII'!P12","v":0},{"$f":"'Schedule XXIII'!Q12","v":0},null,0,0,null,{"$f":"'Schedule XXIII'!S12","v":0},{"$f":"'Schedule XXIII'!T12","v":0},{"$f":"'Schedule XXIII'!V12","v":0},null,0,0,0,null,0,0]
[null,{"$f":"'Schedule XXIII'!C13","v":"Japan Yen"},{"$f":"'Schedule XXIII'!M13","v":0},{"$f":"'Schedule XXIII'!N13","v":0},{"$f":"'Schedule XXIII'!P13","v":0},{"$f":"'Schedule XXIII'!Q13","v":0},null,0,0,null,{"$f":"'Schedule XXIII'!S13","v":0},{"$f":"'Schedule XXIII'!T13","v":0},{"$f":"'Schedule XXIII'!V13","v":0},null,0,0,0,null,0,0]
[null,{"$f":"'Schedule XXIII'!C14","v":"Canada Dollars"},{"$f":"'Schedule XXIII'!M14","v":0},{"$f":"'Schedule XXIII'!N14","v":0},{"$f":"'Schedule XXIII'!P14","v":0},{"$f":"'Schedule XXIII'!Q14","v":0},null,0,0,null,{"$f":"'Schedule XXIII'!S14","v":0},{"$f":"'Schedule XXIII'!T14","v":0},{"$f":"'Schedule XXIII'!V14","v":0},null,0,0,0,null,0,0]
[null,{"$f":"'Schedule XXIII'!C15","v":"Swiss Francs"},{"$f":"'Schedule XXIII'!M15","v":0},{"$f":"'Schedule XXIII'!N15","v":0},{"$f":"'Schedule XXIII'!P15","v":0},{"$f":"'Schedule XXIII'!Q15","v":0},null,0,0,null,{"$f":"'Schedule XXIII'!S15","v":0},{"$f":"'Schedule XXIII'!T15","v":0},{"$f":"'Schedule XXIII'!V15","v":0},null,0,0,0,null,0,0]
[null,{"$f":"'Schedule XXIII'!C16","v":"Australia Dollar"},{"$f":"'Schedule XXIII'!M16","v":0},{"$f":"'Schedule XXIII'!N16","v":0},{"$f":"'Schedule XXIII'!P16","v":0},{"$f":"'Schedule XXIII'!Q16","v":0},null,0,0,null,{"$f":"'Schedule XXIII'!S16","v":0},{"$f":"'Schedule XXIII'!T16","v":0},{"$f":"'Schedule XXIII'!V16","v":0},null,0,0,0,null,0,0]
[null,{"$f":"'Schedule XXIII'!C17","v":"New Zealand Dollar"},{"$f":"'Schedule XXIII'!M17","v":0},{"$f":"'Schedule XXIII'!N17","v":0},{"$f":"'Schedule XXIII'!P17","v":0},{"$f":"'Schedule XXIII'!Q17","v":0},null,0,0,null,{"$f":"'Schedule XXIII'!S17","v":0},{"$f":"'Schedule XXIII'!T17","v":0},{"$f":"'Schedule XXIII'!V17","v":0},null,0,0,0,null,0,0]
[null,{"$f":"'Schedule XXIII'!C18","v":"Other currency 1"},{"$f":"'Schedule XXIII'!M18","v":0},{"$f":"'Schedule XXIII'!N18","v":0},{"$f":"'Schedule XXIII'!P18","v":0},{"$f":"'Schedule XXIII'!Q18","v":0},null,0,0,null,{"$f":"'Schedule XXIII'!S18","v":0},{"$f":"'Schedule XXIII'!T18","v":0},{"$f":"'Schedule XXIII'!V18","v":0},null,0,0,0,null,0,0]
[null,{"$f":"'Schedule XXIII'!C19","v":"Other currency 2"},{"$f":"'Schedule XXIII'!M19","v":0},{"$f":"'Schedule XXIII'!N19","v":0},{"$f":"'Schedule XXIII'!P19","v":0},{"$f":"'Schedule XXIII'!Q19","v":0},null,0,0,null,{"$f":"'Schedule XXIII'!S19","v":0},{"$f":"'Schedule XXIII'!T19","v":0},{"$f":"'Schedule XXIII'!V19","v":0},null,0,0,0,null,0,0]
[null,{"$f":"'Schedule XXIII'!C20","v":"Other currency 3"},{"$f":"'Schedule XXIII'!M20","v":0},{"$f":"'Schedule XXIII'!N20","v":0},{"$f":"'Schedule XXIII'!P20","v":0},{"$f":"'Schedule XXIII'!Q20","v":0},null,0,0,null,{"$f":"'Schedule XXIII'!S20","v":0},{"$f":"'Schedule XXIII'!T20","v":0},{"$f":"'Schedule XXIII'!V20","v":0},null,0,0,0,null,0,0]
[null,{"$f":"'Schedule XXIII'!C21","v":"Other currency 4"},{"$f":"'Schedule XXIII'!M21","v":0},{"$f":"'Schedule XXIII'!N21","v":0},{"$f":"'Schedule XXIII'!P21","v":0},{"$f":"'Schedule XXIII'!Q21","v":0},null,0,0,null,{"$f":"'Schedule XXIII'!S21","v":0},{"$f":"'Schedule XXIII'!T21","v":0},{"$f":"'Schedule XXIII'!V21","v":0},null,0,0,0,null,0,0]
[null,{"$f":"'Schedule XXIII'!C22","v":"Other currency 5"},{"$f":"'Schedule XXIII'!M22","v":0},{"$f":"'Schedule XXIII'!N22","v":0},{"$f":"'Schedule XXIII'!P22","v":0},{"$f":"'Schedule XXIII'!Q22","v":0},null,0,0,null,{"$f":"'Schedule XXIII'!S22","v":0},{"$f":"'Schedule XXIII'!T22","v":0},{"$f":"'Schedule XXIII'!V22","v":0},null,0,0,0,null,0,0]
[null,{"$f":"'Schedule XXIII'!C23","v":"Other currency 6"},{"$f":"'Schedule XXIII'!M23","v":0},{"$f":"'Schedule XXIII'!N23","v":0},{"$f":"'Schedule XXIII'!P23","v":0},{"$f":"'Schedule XXIII'!Q23","v":0},null,0,0,null,{"$f":"'Schedule XXIII'!S23","v":0},{"$f":"'Schedule XXIII'!T23","v":0},{"$f":"'Schedule XXIII'!V23","v":0},null,0,0,0,null,0,0]
[null,{"$f":"'Schedule XXIII'!C24","v":"Other currency 7"},{"$f":"'Schedule XXIII'!M24","v":0},{"$f":"'Schedule XXIII'!N24","v":0},{"$f":"'Schedule XXIII'!P24","v":0},{"$f":"'Schedule XXIII'!Q24","v":0},null,0,0,null,{"$f":"'Schedule XXIII'!S24","v":0},{"$f":"'Schedule XXIII'!T24","v":0},{"$f":"'Schedule XXIII'!V24","v":0},null,0,0,0,null,0,0]
[null,{"$f":"'Schedule XXIII'!C25","v":"Other currency 8"},{"$f":"'Schedule XXIII'!M25","v":0},{"$f":"'Schedule XXIII'!N25","v":0},{"$f":"'Schedule XXIII'!P25","v":0},{"$f":"'Schedule XXIII'!Q25","v":0},null,0,0,null,{"$f":"'Schedule XXIII'!S25","v":0},{"$f":"'Schedule XXIII'!T25","v":0},{"$f":"'Schedule XXIII'!V25","v":0},null,0,0,0,null,0,0]
[null,{"$f":"'Schedule XXIII'!C26","v":"Other currency 9"},{"$f":"'Schedule XXIII'!M26","v":0},{"$f":"'Schedule XXIII'!N26","v":0},{"$f":"'Schedule XXIII'!P26","v":0},{"$f":"'Schedule XXIII'!Q26","v":0},null,0,0,null,{"$f":"'Schedule XXIII'!S26","v":0},{"$f":"'Schedule XXIII'!T26","v":0},{"$f":"'Schedule XXIII'!V26","v":0},null,0,0,0,null,0,0]
[null,{"$f":"'Schedule XXIII'!C27","v":"Other currency 10"},{"$f":"'Schedule XXIII'!M27","v":0},{"$f":"'Schedule XXIII'!N27","v":0},{"$f":"'Schedule XXIII'!P27","v":0},{"$f":"'Schedule XXIII'!Q27","v":0},null,0,0,null,{"$f":"'Schedule XXIII'!S27","v":0},{"$f":"'Schedule XXIII'!T27","v":0},{"$f":"'Schedule XXIII'!V27","v":0},null,0,0,0,null,0,0]
[null,"Total IR - Derivatives",{"$f":"SUM(C32:C49)","v":0},{"$f":"SUM(D32:D49)","v":0},{"$f":"SUM(E32:E49)","v":0},{"$f":"SUM(F32:F49)","v":0},null,{"$f":"SUM(H32:H49)","v":0},{"$f":"SUM(I32:I49)","v":0},null,{"$f":"SUM(K32:K49)","v":0},{"$f":"SUM(L32:L49)","v":0},{"$f":"SUM(M32:M49)","v":0},null,{"$f":"SUM(O32:O49)","v":0},{"$f":"SUM(P32:P49)","v":0},{"$f":"SUM(Q32:Q49)","v":0},null,{"$f":"SUM(S32:S49)","v":0},{"$f":"SUM(T32:T49)","v":0}]
[null,"Total IR - DOWN",{"$f":"C29+C50","v":0},{"$f":"D29+D50","v":0},{"$f":"E29+E50","v":0},{"$f":"F29+F50","v":0},null,{"$f":"H29+H50","v":0},{"$f":"I29+I50","v":0},null,{"$f":"K29+K50","v":0},{"$f":"L29+L50","v":0},{"$f":"M29+M50","v":0},null,{"$f":"O29+O50","v":0},{"$f":"P29+P50","v":0},{"$f":"Q29+Q50","v":0},null,{"$f":"MAX(0,S29+S50)","v":0},{"$f":"MAX(0,T29+T50)","v":0}]
[]
[null,"IR UP - Exposures without Derivatives"]
[null,{"$f":"'Schedule XXIII'!C35","v":"United States Dollars"},{"$f":"'Schedule XXIII'!E35","v":0},{"$f":"'Schedule XXIII'!F35","v":0},null,null,null,{"$f":"C54+E54","v":0},{"$f":"D54+F54","v":0},null,{"$f":"'Schedule XXIII'!H35","v":0},{"$f":"'Schedule XXIII'!I35","v":0},{"$f":"'Schedule XXIII'!K35","v":0},null,{"$f":"C54-D54","v":0},{"$f":"L54-K54","v":0},{"$f":"M54-K54","v":0},null,{"$f":"$O54+P54","v":0},{"$f":"$O54+Q54","v":0}]
[null,{"$f":"'Schedule XXIII'!C36","v":"Euro"},{"$f":"'Schedule XXIII'!E36","v":0},{"$f":"'Schedule XXIII'!F36","v":0},null,null,null,{"$f":"C55+E55","v":0},0,null,{"$f":"'Schedule XXIII'!H36","v":0},{"$f":"'Schedule XXIII'!I36","v":0},{"$f":"'Schedule XXIII'!K36","v":0},null,0,0,0,null,{"$f":"$O55+P55","v":0},{"$f":"$O55+Q55","v":0}]
[null,{"$f":"'Schedule XXIII'!C37","v":"United Kingdom Pounds"},{"$f":"'Schedule XXIII'!E37","v":0},{"$f":"'Schedule XXIII'!F37","v":0},null,null,null,0,0,null,{"$f":"'Schedule XXIII'!H37","v":0},{"$f":"'Schedule XXIII'!I37","v":0},{"$f":"'Schedule XXIII'!K37","v":0},null,0,0,0,null,0,0]
[null,{"$f":"'Schedule XXIII'!C38","v":"Japan Yen"},{"$f":"'Schedule XXIII'!E38","v":0},{"$f":"'Schedule XXIII'!F38","v":0},null,null,null,0,0,null,{"$f":"'Schedule XXIII'!H38","v":0},{"$f":"'Schedule XXIII'!I38","v":0},{"$f":"'Schedule XXIII'!K38","v":0},null,0,0,0,null,0,0]
[null,{"$f":"'Schedule XXIII'!C39","v":"Canada Dollars"},{"$f":"'Schedule XXIII'!E39","v":0},{"$f":"'Schedule XXIII'!F39","v":0},null,null,null,0,0,null,{"$f":"'Schedule XXIII'!H39","v":0},{"$f":"'Schedule XXIII'!I39","v":0},{"$f":"'Schedule XXIII'!K39","v":0},null,0,0,0,null,0,0]
[null,{"$f":"'Schedule XXIII'!C40","v":"Swiss Francs"},{"$f":"'Schedule XXIII'!E40","v":0},{"$f":"'Schedule XXIII'!F40","v":0},null,null,null,0,0,null,{"$f":"'Schedule XXIII'!H40","v":0},{"$f":"'Schedule XXIII'!I40","v":0},{"$f":"'Schedule XXIII'!K40","v":0},null,0,0,0,null,0,0]
[null,{"$f":"'Schedule XXIII'!C41","v":"Australia Dollar"},{"$f":"'Schedule XXIII'!E41","v":0},{"$f":"'Schedule XXIII'!F41","v":0},null,null,null,0,0,null,{"$f":"'Schedule XXIII'!H41","v":0},{"$f":"'Schedule XXIII'!I41","v":0},{"$f":"'Schedule XXIII'!K41","v":0},null,0,0,0,null,0,0]
[null,{"$f":"'Schedule XXIII'!C42","v":"New Zealand Dollar"},{"$f":"'Schedule XXIII'!E42","v":0},{"$f":"'Schedule XXIII'!F42","v":0},null,null,null,0,0,null,{"$f":"'Schedule XXIII'!H42","v":0},{"$f":"'Schedule XXIII'!I42","v":0},{"$f":"'Schedule XXIII'!K42","v":0},null,0,0,0,null,0,0]
[null,{"$f":"'Schedule XXIII'!C43","v":"Other currency 1"},{"$f":"'Schedule XXIII'!E43","v":0},{"$f":"'Schedule XXIII'!F43","v":0},null,null,null,0,0,null,{"$f":"'Schedule XXIII'!H43","v":0},{"$f":"'Schedule XXIII'!I43","v":0},{"$f":"'Schedule XXIII'!K43","v":0},null,0,0,0,null,0,0]
[null,{"$f":"'Schedule XXIII'!C44","v":"Other currency 2"},{"$f":"'Schedule XXIII'!E44","v":0},{"$f":"'Schedule XXIII'!F44","v":0},null,null,null,0,0,null,{"$f":"'Schedule XXIII'!H44","v":0},{"$f":"'Schedule XXIII'!I44","v":0},{"$f":"'Schedule XXIII'!K44","v":0},null,0,0,0,null,0,0]
[null,{"$f":"'Schedule XXIII'!C45","v":"Other currency 3"},{"$f":"'Schedule XXIII'!E45","v":0},{"$f":"'Schedule XXIII'!F45","v":0},null,null,null,0,0,null,{"$f":"'Schedule XXIII'!H45","v":0},{"$f":"'Schedule XXIII'!I45","v":0},{"$f":"'Schedule XXIII'!K45","v":0},null,0,0,0,null,0,0]
[null,{"$f":"'Schedule XXIII'!C46","v":"Other currency 4"},{"$f":"'Schedule XXIII'!E46","v":0},{"$f":"'Schedule XXIII'!F46","v":0},null,null,null,0,0,null,{"$f":"'Schedule XXIII'!H46","v":0},{"$f":"'Schedule XXIII'!I46","v":0},{"$f":"'Schedule XXIII'!K46","v":0},null,0,0,0,null,0,0]
[null,{"$f":"'Schedule XXIII'!C47","v":"Other currency 5"},{"$f":"'Schedule XXIII'!E47","v":0},{"$f":"'Schedule XXIII'!F47","v":0},null,null,null,0,0,null,{"$f":"'Schedule XXIII'!H47","v":0},{"$f":"'Schedule XXIII'!I47","v":0},{"$f":"'Schedule XXIII'!K47","v":0},null,0,0,0,null,0,0]
[null,{"$f":"'Schedule XXIII'!C48","v":"Other currency 6"},{"$f":"'Schedule XXIII'!E48","v":0},{"$f":"'Schedule XXIII'!F48","v":0},null,null,null,0,0,null,{"$f":"'Schedule XXIII'!H48","v":0},{"$f":"'Schedule XXIII'!I48","v":0},{"$f":"'Schedule XXIII'!K48","v":0},null,0,0,0,null,0,0]
[null,{"$f":"'Schedule XXIII'!C49","v":"Other currency 7"},{"$f":"'Schedule XXIII'!E49","v":0},{"$f":"'Schedule XXIII'!F49","v":0},null,null,null,0,0,null,{"$f":"'Schedule XXIII'!H49","v":0},{"$f":"'Schedule XXIII'!I49","v":0},{"$f":"'Schedule XXIII'!K49","v":0},null,0,0,0,null,0,0]
[null,{"$f":"'Schedule XXIII'!C50","v":"Other currency 8"},{"$f":"'Schedule XXIII'!E50","v":0},{"$f":"'Schedule XXIII'!F50","v":0},null,null,null,0,0,null,{"$f":"'Schedule XXIII'!H50","v":0},{"$f":"'Schedule XXIII'!I50","v":0},{"$f":"'Schedule XXIII'!K50","v":0},null,0,0,0,null,0,0]
[null,{"$f":"'Schedule XXIII'!C51","v":"Other currency 9"},{"$f":"'Schedule XXIII'!E51","v":0},{"$f":"'Schedule XXIII'!F51","v":0},null,null,null,0,0,null,{"$f":"'Schedule XXIII'!H51","v":0},{"$f":"'Schedule XXIII'!I51","v":0},{"$f":"'Schedule XXIII'!K51","v":0},null,0,0,0,null,0,0]
[null,{"$f":"'Schedule XXIII'!C52","v":"Other currency 10"},{"$f":"'Schedule XXIII'!E52","v":0},{"$f":"'Schedule XXIII'!F52","v":0},null,null,null,0,0,null,{"$f":"'Schedule XXIII'!H52","v":0},{"$f":"'Schedule XXIII'!I52","v":0},{"$f":"'Schedule XXIII'!K52","v":0},null,0,0,0,null,0,0]
[null,"Total IR - Other",{"$f":"SUM(C54:C71)","v":0},{"$f":"SUM(D54:D71)","v":0},{"$f":"SUM(E54:E71)","v":0},{"$f":"SUM(F54:F71)","v":0},null,{"$f":"SUM(H54:H71)","v":0},{"$f":"SUM(I54:I71)","v":0},null,{"$f":"SUM(K54:K71)","v":0},{"$f":"SUM(L54:L71)","v":0},{"$f":"SUM(M54:M71)","v":0},null,{"$f":"SUM(O54:O71)","v":0},{"$f":"SUM(P54:P71)","v":0},{"$f":"SUM(Q54:Q71)","v":0},null,{"$f":"SUM(S54:S71)","v":0},{"$f":"SUM(T54:T71)","v":0}]
[]
[null,"IR Up - Derivatives"]
[null,{"$f":"'Schedule XXIII'!C35","v":"United States Dollars"},{"$f":"'Schedule XXIII'!M35","v":0},{"$f":"'Schedule XXIII'!N35","v":0},{"$f":"'Schedule XXIII'!P35","v":0},{"$f":"'Schedule XXIII'!Q35","v":0},null,{"$f":"C75+E75","v":0},{"$f":"D75+F75","v":0},null,{"$f":"'Schedule XXIII'!S35","v":0},{"$f":"'Schedule XXIII'!T35","v":0},{"$f":"'Schedule XXIII'!V35","v":0},null,{"$f":"C75-D75 + MAX(0,E75-F75)","v":0},{"$f":"L75-K75","v":0},{"$f":"M75-K75","v":0},null,{"$f":"$O75+P75","v":0},{"$f":"$O75+Q75","v":0}]
[null,{"$f":"'Schedule XXIII'!C36","v":"Euro"},{"$f":"'Schedule XXIII'!M36","v":0},{"$f":"'Schedule XXIII'!N36","v":0},{"$f":"'Schedule XXIII'!P36","v":0},{"$f":"'Schedule XXIII'!Q36","v":0},null,{"$f":"C76+E76","v":0},0,null,{"$f":"'Schedule XXIII'!S36","v":0},{"$f":"'Schedule XXIII'!T36","v":0},{"$f":"'Schedule XXIII'!V36","v":0},null,{"$f":"C76-D76 + MAX(0,E76-F76)","v":0},0,0,null,{"$f":"$O76+P76","v":0},{"$f":"$O76+Q76","v":0}]
[null,{"$f":"'Schedule XXIII'!C37","v":"United Kingdom Pounds"},{"$f":"'Schedule XXIII'!M37","v":0},{"$f":"'Schedule XXIII'!N37","v":0},{"$f":"'Schedule XXIII'!P37","v":0},{"$f":"'Schedule XXIII'!Q37","v":0},null,0,0,null,{"$f":"'Schedule XXIII'!S37","v":0},{"$f":"'Schedule XXIII'!T37","v":0},{"$f":"'Schedule XXIII'!V37","v":0},null,{"$f":"C77-D77 + MAX(0,E77-F77)","v":0},0,0,null,0,0]
[null,{"$f":"'Schedule XXIII'!C38","v":"Japan Yen"},{"$f":"'Schedule XXIII'!M38","v":0},{"$f":"'Schedule XXIII'!N38","v":0},{"$f":"'Schedule XXIII'!P38","v":0},{"$f":"'Schedule XXIII'!Q38","v":0},null,0,0,null,{"$f":"'Schedule XXIII'!S38","v":0},{"$f":"'Schedule XXIII'!T38","v":0},{"$f":"'Schedule XXIII'!V38","v":0},null,{"$f":"C78-D78 + MAX(0,E78-F78)","v":0},0,0,null,0,0]
[null,{"$f":"'Schedule XXIII'!C39","v":"Canada Dollars"},{"$f":"'Schedule XXIII'!M39","v":0},{"$f":"'Schedule XXIII'!N39","v":0},{"$f":"'Schedule XXIII'!P39","v":0},{"$f":"'Schedule XXIII'!Q39","v":0},null,0,0,null,{"$f":"'Schedule XXIII'!S39","v":0},{"$f":"'Schedule XXIII'!T39","v":0},{"$f":"'Schedule XXIII'!V39","v":0},null,{"$f":"C79-D79 + MAX(0,E79-F79)","v":0},0,0,null,0,0]
[null,{"$f":"'Schedule XXIII'!C40","v":"Swiss Francs"},{"$f":"'Schedule XXIII'!M40","v":0},{"$f":"'Schedule XXIII'!N40","v":0},{"$f":"'Schedule XXIII'!P40","v":0},{"$f":"'Schedule XXIII'!Q40","v":0},null,0,0,null,{"$f":"'Schedule XXIII'!S40","v":0},{"$f":"'Schedule XXIII'!T40","v":0},{"$f":"'Schedule XXIII'!V40","v":0},null,{"$f":"C80-D80 + MAX(0,E80-F80)","v":0},0,0,null,0,0]
[null,{"$f":"'Schedule XXIII'!C41","v":"Australia Dollar"},{"$f":"'Schedule XXIII'!M41","v":0},{"$f":"'Schedule XXIII'!N41","v":0},{"$f":"'Schedule XXIII'!P41","v":0},{"$f":"'Schedule XXIII'!Q41","v":0},null,0,0,null,{"$f":"'Schedule XXIII'!S41","v":0},{"$f":"'Schedule XXIII'!T41","v":0},{"$f":"'Schedule XXIII'!V41","v":0},null,0,0,0,null,0,0]
[null,{"$f":"'Schedule XXIII'!C42","v":"New Zealand Dollar"},{"$f":"'Schedule XXIII'!M42","v":0},{"$f":"'Schedule XXIII'!N42","v":0},{"$f":"'Schedule XXIII'!P42","v":0},{"$f":"'Schedule XXIII'!Q42","v":0},null,0,0,null,{"$f":"'Schedule XXIII'!S42","v":0},{"$f":"'Schedule XXIII'!T42","v":0},{"$f":"'Schedule XXIII'!V42","v":0},null,0,0,0,null,0,0]
[null,{"$f":"'Schedule XXIII'!C43","v":"Other currency 1"},{"$f":"'Schedule XXIII'!M43","v":0},{"$f":"'Schedule XXIII'!N43","v":0},{"$f":"'Schedule XXIII'!P43","v":0},{"$f":"'Schedule XXIII'!Q43","v":0},null,0,0,null,{"$f":"'Schedule XXIII'!S43","v":0},{"$f":"'Schedule XXIII'!T43","v":0},{"$f":"'Schedule XXIII'!V43","v":0},null,0,0,0,null,0,0]
[null,{"$f":"'Schedule XXIII'!C44","v":"Other currency 2"},{"$f":"'Schedule XXIII'!M44","v":0},{"$f":"'Schedule XXIII'!N44","v":0},{"$f":"'Schedule XXIII'!P44","v":0},{"$f":"'Schedule XXIII'!Q44","v":0},null,0,0,null,{"$f":"'Schedule XXIII'!S44","v":0},{"$f":"'Schedule XXIII'!T44","v":0},{"$f":"'Schedule XXIII'!V44","v":0},null,0,0,0,null,0,0]
[null,{"$f":"'Schedule XXIII'!C45","v":"Other currency 3"},{"$f":"'Schedule XXIII'!M45","v":0},{"$f":"'Schedule XXIII'!N45","v":0},{"$f":"'Schedule XXIII'!P45","v":0},{"$f":"'Schedule XXIII'!Q45","v":0},null,0,0,null,{"$f":"'Schedule XXIII'!S45","v":0},{"$f":"'Schedule XXIII'!T45","v":0},{"$f":"'Schedule XXIII'!V45","v":0},null,0,0,0,null,0,0]
[null,{"$f":"'Schedule XXIII'!C46","v":"Other currency 4"},{"$f":"'Schedule XXIII'!M46","v":0},{"$f":"'Schedule XXIII'!N46","v":0},{"$f":"'Schedule XXIII'!P46","v":0},{"$f":"'Schedule XXIII'!Q46","v":0},null,0,0,null,{"$f":"'Schedule XXIII'!S46","v":0},{"$f":"'Schedule XXIII'!T46","v":0},{"$f":"'Schedule XXIII'!V46","v":0},null,0,0,0,null,0,0]
[null,{"$f":"'Schedule XXIII'!C47","v":"Other currency 5"},{"$f":"'Schedule XXIII'!M47","v":0},{"$f":"'Schedule XXIII'!N47","v":0},{"$f":"'Schedule XXIII'!P47","v":0},{"$f":"'Schedule XXIII'!Q47","v":0},null,0,0,null,{"$f":"'Schedule XXIII'!S47","v":0},{"$f":"'Schedule XXIII'!T47","v":0},{"$f":"'Schedule XXIII'!V47","v":0},null,0,0,0,null,0,0]
[null,{"$f":"'Schedule XXIII'!C48","v":"Other currency 6"},{"$f":"'Schedule XXIII'!M48","v":0},{"$f":"'Schedule XXIII'!N48","v":0},{"$f":"'Schedule XXIII'!P48","v":0},{"$f":"'Schedule XXIII'!Q48","v":0},null,0,0,null,{"$f":"'Schedule XXIII'!S48","v":0},{"$f":"'Schedule XXIII'!T48","v":0},{"$f":"'Schedule XXIII'!V48","v":0},null,0,0,0,null,0,0]
[null,{"$f":"'Schedule XXIII'!C49","v":"Other currency 7"},{"$f":"'Schedule XXIII'!M49","v":0},{"$f":"'Schedule XXIII'!N49","v":0},{"$f":"'Schedule XXIII'!P49","v":0},{"$f":"'Schedule XXIII'!Q49","v":0},null,0,0,null,{"$f":"'Schedule XXIII'!S49","v":0},{"$f":"'Schedule XXIII'!T49","v":0},{"$f":"'Schedule XXIII'!V49","v":0},null,0,0,0,null,0,0]
[null,{"$f":"'Schedule XXIII'!C50","v":"Other currency 8"},{"$f":"'Schedule XXIII'!M50","v":0},{"$f":"'Schedule XXIII'!N50","v":0},{"$f":"'Schedule XXIII'!P50","v":0},{"$f":"'Schedule XXIII'!Q50","v":0},null,0,0,null,{"$f":"'Schedule XXIII'!S50","v":0},{"$f":"'Schedule XXIII'!T50","v":0},{"$f":"'Schedule XXIII'!V50","v":0},null,0,0,0,null,0,0]
[null,{"$f":"'Schedule XXIII'!C51","v":"Other currency 9"},{"$f":"'Schedule XXIII'!M51","v":0},{"$f":"'Schedule XXIII'!N51","v":0},{"$f":"'Schedule XXIII'!P51","v":0},{"$f":"'Schedule XXIII'!Q51","v":0},null,0,0,null,{"$f":"'Schedule XXIII'!S51","v":0},{"$f":"'Schedule XXIII'!T51","v":0},{"$f":"'Schedule XXIII'!V51","v":0},null,0,0,0,null,0,0]
[null,{"$f":"'Schedule XXIII'!C52","v":"Other currency 10"},{"$f":"'Schedule XXIII'!M52","v":0},{"$f":"'Schedule XXIII'!N52","v":0},{"$f":"'Schedule XXIII'!P52","v":0},{"$f":"'Schedule XXIII'!Q52","v":0},null,0,0,null,{"$f":"'Schedule XXIII'!S52","v":0},{"$f":"'Schedule XXIII'!T52","v":0},{"$f":"'Schedule XXIII'!V52","v":0},null,0,0,0,null,0,0]
[null,"Total IR - Derivatives",{"$f":"SUM(C75:C92)","v":0},{"$f":"SUM(D75:D92)","v":0},{"$f":"SUM(E75:E92)","v":0},{"$f":"SUM(F75:F92)","v":0},null,{"$f":"SUM(H75:H92)","v":0},{"$f":"SUM(I75:I92)","v":0},null,{"$f":"SUM(K75:K92)","v":0},{"$f":"SUM(L75:L92)","v":0},{"$f":"SUM(M75:M92)","v":0},null,{"$f":"SUM(O75:O92)","v":0},{"$f":"SUM(P75:P92)","v":0},{"$f":"SUM(Q75:Q92)","v":0},null,{"$f":"SUM(S75:S92)","v":0},{"$f":"SUM(T75:T92)","v":0}]
[null,"Total IR - UP",{"$f":"C72+C93","v":0},{"$f":"D72+D93","v":0},{"$f":"E72+E93","v":0},{"$f":"F72+F93","v":0},null,{"$f":"H72+H93","v":0},{"$f":"I72+I93","v":0},null,{"$f":"K72+K93","v":0},{"$f":"L72+L93","v":0},{"$f":"M72+M93","v":0},null,{"$f":"O72+O93","v":0},{"$f":"P72+P93","v":0},{"$f":"Q72+Q93","v":0},null,{"$f":"MAX(0,S72+S93)","v":0},{"$f":"MAX(0,T72+T93)","v":0}]
[]
[]
[null,"Overall Interest Rate Risk",null,null,null,null,null,"Scenario-Based Approach"]
[null,null,null,null,null,null,null,null,null,null,"Without Management Actions",null,null,null,"With Management Actions"]
[null,"Interest Rates Down Shock - without Management Actions",null,null,{"$f":"S51","v":0},null,null,null,"EBS Base",null,"EBS Shock",null,null,null,"EBS Shock"]
[null,"Interest Rates Up Shock - without Management Actions",null,null,{"$f":"S94","v":0}]
[null,"Max(IR Down, IR Up) - without MA",null,null,{"$f":"MAX(0,E99,E100)","v":0},null,null,"Shock used",null,null,"Down","Up",null,null,"Down","Up"]
[]
[null,"Interest Rate Risk without Management Actions",null,null,{"$f":"MAX(0,IF(E109=\"UP\",E100,E99))","v":0},null,null,"MV Assets",{"$f":"C51","v":0},null,{"$f":"D51-(O50-(C50-D50))","v":0},{"$f":"D94-(O93-(C93-D93))","v":0},null,null,{"$f":"K103","v":0},{"$f":"L103","v":0}]
[null,null,null,null,null,null,null,"BEL",{"$f":"K51","v":0},null,{"$f":"L51","v":0},{"$f":"L94","v":0},null,null,{"$f":"M51","v":0},{"$f":"M94","v":0}]
[]
[null,"Interest Rates Down Shock - with Management Actions",null,null,{"$f":"T51","v":0},null,null,"BEL-Worst",{"$f":"'Form 1EBS'!F215","v":0},null,{"$f":"$I106","v":0},{"$f":"$I106","v":0},null,null,{"$f":"$I106","v":0},{"$f":"$I106","v":0}]
[null,"Interest Rates Up Shock - with Management Actions",null,null,{"$f":"T94","v":0},null,null,"BEL-Base",{"$f":"'Form 1EBS'!F215","v":0},null,{"$f":"$I107","v":0},{"$f":"$I107","v":0},null,null,{"$f":"$I107","v":0},{"$f":"$I107","v":0}]
[null,"Max(IR Down, IR Up) - with MA",null,null,{"$f":"MAX(E106,E107)","v":0}]
[null,"Biting scenario",null,null,{"$f":"IF(E108=E106,\"DOWN\",\"UP\")","v":"DOWN"},null,null,"\"NAV\"",{"$f":"I$103-I$104","v":0},null,{"$f":"K$103-K$104","v":0},{"$f":"L$103-L$104","v":0},null,null,{"$f":"O$103-O$104","v":0},{"$f":"P$103-P$104","v":0}]
[]
[null,"Interest Rate Risk with Management Actions",null,null,{"$f":"MAX(0,E108)","v":0},null,null,"CR IR",null,null,{"$f":"MAX(0,$I109-K109)","v":0},{"$f":"MAX(0,$I109-L109)","v":0},null,null,{"$f":"MAX(0,$I109-O109)","v":0},{"$f":"MAX(0,$I109-P109)","v":0}]
[null,null,null,null,null,null,null,"Floor (25 % of CR IR)",null,null,{"$f":"25%*K111","v":0},{"$f":"25%*L111","v":0},null,null,{"$f":"25%*O111","v":0},{"$f":"25%*P111","v":0}]
[null,null,null,null,null,null,null,"BEL Deduction",null,null,{"$f":"K$106-K$107","v":0},{"$f":"L$106-L$107","v":0},null,null,{"$f":"O$106-O$107","v":0},{"$f":"P$106-P$107","v":0}]
[null,"Adjustment to IR Risk capital requirement",null,"Without MA","With MA",null,null,"Factor-adjusted BEL Deduct",null,null,{"$f":"50%*K113","v":0},{"$f":"50%*L113","v":0},null,null,{"$f":"50%*O113","v":0},{"$f":"50%*P113","v":0}]
[null,"For companies using Scenario-Based Approach",null,{"$f":"IF(OR(VALUE(I107)=0,VALUE(I106)=0),0,IF($E$109=\"DOWN\",K116-K111,L116-L111))","v":0},{"$f":"IF(OR(VALUE(I107)=0,VALUE(I106)=0),0,IF($E$109=\"DOWN\",O116-O111,P116-P111))","v":0}]
[null,null,null,null,null,null,null,"Capital Charge with 50 % factor",null,null,{"$f":"MAX(K112,K111-K114)","v":0},{"$f":"MAX(L112,L111-L114)","v":0},null,null,{"$f":"MAX(O112,O111-O114)","v":0},{"$f":"MAX(P112,P111-P114)","v":0}]
[null,"Interest Rate Risk capital requirement",null,{"$f":"MAX(E103+D115,0)","v":0},{"$f":"MAX(E111+E115,0)","v":0},null,null,"Max(Down,Up)",null,null,{"$f":"IF(K111>L111,K116,L116)","v":0},null,null,null,{"$f":"IF(O111>P111,O116,P116)","v":0}]

{"sheet":"Currency Risk (old)","index":119,"n_rows":28,"n_cols":9,"rows_kept":28,"cut":false,"hidden":true,"merged":[[0,8,0,9],[4,7,5,7],[2,2,2,4]]}
["CURRENCY RISK",null,null,null,null,null,null,null,{"$f":"HYPERLINK(\"#'Index'!A1\",\"Return to Index\")","v":"Return to Index"}]
[{"$f":"'Company Information'!C7","v":"Enter Company Name"}]
["Currency Risk",null,{"$f":"'Company Information'!C3","v":"2023-12-31"}]
[]
[null,null,"(A)","(B)","(C)","(D)",{"$f":"\"(E) = (\"&ROUND(G6,2)*100&\"% of C)\"","v":"(E) = (0% of C)"},"(F) = (If(A>(C+E), 0%, 25%))","(G) = F x ABS(A-C-E)"]
[null,null,"ASSETS","TOTAL ASSETS WITH","LIABILITIES","TOTAL LIABILITIES WITH",{"$f":"+'Schedule XX'!T36","v":0},null,"REQUIRED"]
[null,"CURRENCY","Form 1EBS, Line 15","HEDGING ARRAGEMENTS","Form 1EBS, Line 39","HEDGING ARRAGEMENTS","PROXY BSCR","CHARGE","CAPITAL"]
[]
[null,{"$f":"'Schedule XX'!B9","v":"United States Dollars"},{"$f":"'Schedule XX'!L9","v":0},{"$f":"'Schedule XX'!N9","v":0},{"$f":"'Schedule XX'!P9","v":0},{"$f":"'Schedule XX'!R9","v":0},{"$f":"IF(F9=0,E9*$G$6,F9*$G$6)","v":0},0,{"$f":"IF(SUM(C10:E23)=0,0,IF(D9=0,H9*ABS(C9-E9-G9),H9*ABS(D9-F9-G9)))","v":0}]
[null,{"$f":"'Schedule XX'!B10","v":"Euro"},{"$f":"'Schedule XX'!L10","v":0},{"$f":"'Schedule XX'!N10","v":0},{"$f":"'Schedule XX'!P10","v":0},{"$f":"'Schedule XX'!R10","v":0},{"$f":"IF(F10=0,E10*$G$6,F10*$G$6)","v":0},{"$f":"IF(D10=0,IF(C10>(E10+G10),0%,25%),IF(D10>(F10+G10),0%,25%))","v":0.25},{"$f":"IF(D10=0,H10*ABS(C10-E10-G10),H10*ABS(D10-F10-G10))","v":0}]
[null,{"$f":"'Schedule XX'!B11","v":"United Kingdom Pounds"},{"$f":"'Schedule XX'!L11","v":0},{"$f":"'Schedule XX'!N11","v":0},{"$f":"'Schedule XX'!P11","v":0},{"$f":"'Schedule XX'!R11","v":0},0,0.25,0]
[null,{"$f":"'Schedule XX'!B12","v":"Canada Dollars"},{"$f":"'Schedule XX'!L12","v":0},{"$f":"'Schedule XX'!N12","v":0},{"$f":"'Schedule XX'!P12","v":0},{"$f":"'Schedule XX'!R12","v":0},0,0.25,0]
[null,{"$f":"'Schedule XX'!B13","v":"Japan Yen"},{"$f":"'Schedule XX'!L13","v":0},{"$f":"'Schedule XX'!N13","v":0},{"$f":"'Schedule XX'!P13","v":0},{"$f":"'Schedule XX'!R13","v":0},0,0.25,0]
[null,{"$f":"'Schedule XX'!B14","v":"Other currency 1"},{"$f":"'Schedule XX'!L14","v":0},{"$f":"'Schedule XX'!N14","v":0},{"$f":"'Schedule XX'!P14","v":0},{"$f":"'Schedule XX'!R14","v":0},0,0.25,0]
[null,{"$f":"'Schedule XX'!B15","v":"Other currency 2"},{"$f":"'Schedule XX'!L15","v":0},{"$f":"'Schedule XX'!N15","v":0},{"$f":"'Schedule XX'!P15","v":0},{"$f":"'Schedule XX'!R15","v":0},0,0.25,0]
[null,{"$f":"'Schedule XX'!B16","v":"Other currency 3"},{"$f":"'Schedule XX'!L16","v":0},{"$f":"'Schedule XX'!N16","v":0},{"$f":"'Schedule XX'!P16","v":0},{"$f":"'Schedule XX'!R16","v":0},0,0.25,0]
[null,{"$f":"'Schedule XX'!B17","v":"Other currency 4"},{"$f":"'Schedule XX'!L17","v":0},{"$f":"'Schedule XX'!N17","v":0},{"$f":"'Schedule XX'!P17","v":0},{"$f":"'Schedule XX'!R17","v":0},0,0.25,0]
[null,{"$f":"'Schedule XX'!B18","v":"Other currency 5"},{"$f":"'Schedule XX'!L18","v":0},{"$f":"'Schedule XX'!N18","v":0},{"$f":"'Schedule XX'!P18","v":0},{"$f":"'Schedule XX'!R18","v":0},0,0.25,{"$f":"IF(D18=0,H18*ABS(C18-E18-G18),H18*ABS(D18-F18-G18))","v":0}]
[null,{"$f":"'Schedule XX'!B19","v":"Other currency 6"},{"$f":"'Schedule XX'!L19","v":0},{"$f":"'Schedule XX'!N19","v":0},{"$f":"'Schedule XX'!P19","v":0},{"$f":"'Schedule XX'!R19","v":0},0,0.25,{"$f":"IF(D19=0,H19*ABS(C19-E19-G19),H19*ABS(D19-F19-G19))","v":0}]
[null,{"$f":"'Schedule XX'!B20","v":"Other currency 7"},{"$f":"'Schedule XX'!L20","v":0},{"$f":"'Schedule XX'!N20","v":0},{"$f":"'Schedule XX'!P20","v":0},{"$f":"'Schedule XX'!R20","v":0},0,0.25,{"$f":"IF(D20=0,H20*ABS(C20-E20-G20),H20*ABS(D20-F20-G20))","v":0}]
[null,{"$f":"'Schedule XX'!B21","v":"Other currency 8"},{"$f":"'Schedule XX'!L21","v":0},{"$f":"'Schedule XX'!N21","v":0},{"$f":"'Schedule XX'!P21","v":0},{"$f":"'Schedule XX'!R21","v":0},0,0.25,{"$f":"IF(D21=0,H21*ABS(C21-E21-G21),H21*ABS(D21-F21-G21))","v":0}]
[null,{"$f":"'Schedule XX'!B22","v":"Other currency 9"},{"$f":"'Schedule XX'!L22","v":0},{"$f":"'Schedule XX'!N22","v":0},{"$f":"'Schedule XX'!P22","v":0},{"$f":"'Schedule XX'!R22","v":0},0,0.25,{"$f":"IF(D22=0,H22*ABS(C22-E22-G22),H22*ABS(D22-F22-G22))","v":0}]
[null,{"$f":"'Schedule XX'!B23","v":"Other currency 10"},{"$f":"'Schedule XX'!L23","v":0},{"$f":"'Schedule XX'!N23","v":0},{"$f":"'Schedule XX'!P23","v":0},{"$f":"'Schedule XX'!R23","v":0},0,0.25,0]
[null,"Total Identified",{"$f":"SUM(C9:C23)","v":0},{"$f":"SUM(D9:D23)","v":0},{"$f":"SUM(E9:E23)","v":0},{"$f":"SUM(F9:F23)","v":0}]
[null,"Total",{"$f":"'Form 1EBS'!F90","v":0},null,{"$f":"+'Form 1EBS'!F163","v":0}]
[null,"% Identified",{"$f":"IF(C24=0,0,C24/C25)","v":0},null,{"$f":"IF(E24=0,0,E24/E25)","v":0}]
[]
[null,"TOTAL CURRENCY RISK",{"$f":"SUM(C9:C23)","v":0},null,{"$f":"SUM(E9:E23)","v":0},null,null,null,{"$f":"IF(SUM(I9:I26)>=0,SUM(I9:I26),0)","v":0}]

{"sheet":"Currency Risk","index":120,"n_rows":39,"n_cols":25,"rows_kept":39,"cut":false,"hidden":false,"merged":[[5,23,5,24],[2,4,2,7],[2,11,2,16],[5,2,5,9],[5,11,5,17],[8,3,8,4],[8,5,8,6],[8,12,8,13],[8,14,8,15],[5,19,5,21]]}
[" ","CURRENCY RISK (REVISED)",null,null,null,null,null,null,null,null,null,null,null,null,null,null,null,null,null,null,null,null,null,null,{"$f":"HYPERLINK(\"#'Index'!A1\",\"Return to Index\")","v":"Return to Index"}]
[{"$f":"'Company Information'!C7","v":"Enter Company Name"}]
[{"$f":"\"Currency Risk\" & \"($\"&IF(CONFIGURATION!$B$12>1,MID(CONFIGURATION!$B$12,2,LEN(CONFIGURATION!$B$12)),\"\")&\")\"","v":"Currency Risk($000)"},null,null,null,{"$f":" TEXT('Company Information'!C3,\"d mmmm yyyy\")","v":"31 December 2023"}]
[]
[null,null,-1,{"$f":"C5-1","v":-2},-3,-4,-5,-6,-7,-8,null,{"$f":"J5-1","v":-9},{"$f":"L5-1","v":-10},-11,-12,-13,-14,-15,null,{"$f":"R5-1","v":-16},{"$f":"T5-1","v":-17},{"$f":"U5-1","v":-18},null,{"$f":"V5-1","v":-19},{"$f":"X5-1","v":-20}]
[null,null,"MARKET VALUE BEFORE SHOCK",null,null,null,null,null,null,null,null,"MARKET VALUE AFTER SHOCK",null,null,null,null,null,null,null,"CURRENCY RISK"]
[null,null,null,null,null,null,null,null,"(6) x BSCR PROXY","if(((1) + (2) + (3) + (4) + (5)) > ((6) + (7)), 0, X1)"]
[null,null,null,null,null,null,null,null,"PROXY BSCR",null,null,"(1) + (8) x (1)",null,null,null,null,"(6) + (8) x (6)",null,null,"((1) - (9)) + ((2) - (10)) + ((3) - (11)) + MAX((4) - (12),0) + MAX((5) - (13),0)","(14) - (6)","(15) - (6)",null,"(16) + (17)","(16) + (18)"]
[null,null,null,"Long Exposures",null,"Short Exposures",null,null,null,null,null,null,"Long Exposures",null,"Short Exposures"]
[null,"CURRENCY","Assets - Excluding currency-sensitive derivatives","Currency Derivatives Qualifying as held for risk-mitigation purposes","Currency Derivatives Not Qualifying as held for risk-mitigation purposes","Currency Derivatives Qualifying as held for risk-mitigation purposes","Currency Derivatives Not Qualifying as held for risk-mitigation purposes","Best Estimate Liabilities",{"$f":"'Schedule XXA'!P45","v":0},"SHOCK",null,"Assets - Excluding currency-sensitive derivatives","Currency Derivatives Qualifying as held for risk-mitigation purposes","Currency Derivatives Not Qualifying as held for risk-mitigation purposes","Currency Derivatives Qualifying as held for risk-mitigation purposes","Currency Derivatives Not Qualifying as held for risk-mitigation purposes","Best Estimate Liabilities without Management Actions","Best Estimate Liabilities with Management Actions",null,"ASSETS","TECHNICAL PROVISIONS WITHOUT MANAGEMENT ACTIONS","TECHNICAL PROVISIONS WITH MANAGEMENT ACTIONS",null,"CAPITAL CHARGE WITHOUT MANAGEMENT ACTIONS","CAPITAL CHARGE WITH MANAGEMENT ACTIONS"]
[]
[null,{"$f":"'Schedule XXA'!B10","v":"United States Dollars"},{"$f":"'Schedule XXA'!D10","v":0},{"$f":"'Schedule XXA'!F10","v":0},{"$f":"'Schedule XXA'!H10","v":0},{"$f":"'Schedule XXA'!J10","v":0},{"$f":"'Schedule XXA'!L10","v":0},{"$f":"'Schedule XXA'!N10","v":0},{"$f":"$I$10*H12","v":0},0,null,{"$f":"'Schedule XXA'!V10","v":0},{"$f":"'Schedule XXA'!X10","v":0},{"$f":"'Schedule XXA'!Z10","v":0},{"$f":"'Schedule XXA'!AB10","v":0},{"$f":"'Schedule XXA'!AD10","v":0},{"$f":"'Schedule XXA'!AF10","v":0},{"$f":"IF('Schedule XXA'!AH10=0,Q12,'Schedule XXA'!AH10)","v":0},null,{"$f":"(C12-L12)+(D12-M12)+(F12-O12)+MAX(E12-N12,0)+MAX(G12-P12,0)","v":0},{"$f":"Q12-$H12","v":0},{"$f":"R12-$H12","v":0},null,{"$f":"MAX(0,$T12+U12+(J12*I12))","v":0},{"$f":"MAX(0,$T12+V12+(J12*I12))","v":0}]
[null,{"$f":"'Schedule XXA'!B11","v":"Bermuda Dollars"},{"$f":"'Schedule XXA'!D11","v":0},{"$f":"'Schedule XXA'!F11","v":0},{"$f":"'Schedule XXA'!H11","v":0},{"$f":"'Schedule XXA'!J11","v":0},{"$f":"'Schedule XXA'!L11","v":0},{"$f":"'Schedule XXA'!N11","v":0},{"$f":"$I$10*H13","v":0},{"$f":"IF($B$12=\"Bermuda Dollars\",0%,IF($B$12=\"United States Dollars\",0%,IF((SUM(C13:G13))>(H13+I13),0%,25%)))","v":0},null,{"$f":"'Schedule XXA'!V11","v":0},{"$f":"'Schedule XXA'!X11","v":0},{"$f":"'Schedule XXA'!Z11","v":0},{"$f":"'Schedule XXA'!AB11","v":0},{"$f":"'Schedule XXA'!AD11","v":0},{"$f":"'Schedule XXA'!AF11","v":0},{"$f":"IF('Schedule XXA'!AH11=0,Q13,'Schedule XXA'!AH11)","v":0},null,{"$f":"(C13-L13)+(D13-M13)+(F13-O13)+MAX(E13-N13,0)+MAX(G13-P13,0)","v":0},{"$f":"Q13-$H13","v":0},{"$f":"R13-$H13","v":0},null,{"$f":"MAX(0,$T13+U13+(J13*I13))","v":0},{"$f":"MAX(0,$T13+V13+(J13*I13))","v":0}]
[null,{"$f":"'Schedule XXA'!B12","v":"Qatar Riyals"},{"$f":"'Schedule XXA'!D12","v":0},{"$f":"'Schedule XXA'!F12","v":0},{"$f":"'Schedule XXA'!H12","v":0},{"$f":"'Schedule XXA'!J12","v":0},{"$f":"'Schedule XXA'!L12","v":0},{"$f":"'Schedule XXA'!N12","v":0},0,{"$f":"IF($B$12=\"Qatar Riyals\",IF((SUM(C14:G14))>(H14+I14),0%,5%),IF($B$12=\"United States Dollars\",IF((C14+E14)>(H14+I14),0%,5%),IF((SUM(C14:G14))>(H14+I14),0%,25%)))","v":0.05},null,{"$f":"'Schedule XXA'!V12","v":0},{"$f":"'Schedule XXA'!X12","v":0},{"$f":"'Schedule XXA'!Z12","v":0},{"$f":"'Schedule XXA'!AB12","v":0},{"$f":"'Schedule XXA'!AD12","v":0},{"$f":"'Schedule XXA'!AF12","v":0},{"$f":"IF('Schedule XXA'!AH12=0,Q14,'Schedule XXA'!AH12)","v":0},null,0,0,0,null,0,0]
[null,{"$f":"'Schedule XXA'!B13","v":"Hong Kong Dollars"},{"$f":"'Schedule XXA'!D13","v":0},{"$f":"'Schedule XXA'!F13","v":0},{"$f":"'Schedule XXA'!H13","v":0},{"$f":"'Schedule XXA'!J13","v":0},{"$f":"'Schedule XXA'!L13","v":0},{"$f":"'Schedule XXA'!N13","v":0},0,{"$f":"IF($B$12=\"Hong Kong Dollars\",IF((SUM(C15:G15))>(H15+I15),0%,1%),IF($B$12=\"United States Dollars\",IF((C15+E15)>(H15+I15),0%,1%),IF((SUM(C15:G15))>(H15+I15),0%,25%)))","v":0.01},null,{"$f":"'Schedule XXA'!V13","v":0},{"$f":"'Schedule XXA'!X13","v":0},{"$f":"'Schedule XXA'!Z13","v":0},{"$f":"'Schedule XXA'!AB13","v":0},{"$f":"'Schedule XXA'!AD13","v":0},{"$f":"'Schedule XXA'!AF13","v":0},{"$f":"IF('Schedule XXA'!AH13=0,Q15,'Schedule XXA'!AH13)","v":0},null,0,0,0,null,0,0]
[null,{"$f":"'Schedule XXA'!B14","v":"Euro"},{"$f":"'Schedule XXA'!D14","v":0},{"$f":"'Schedule XXA'!F14","v":0},{"$f":"'Schedule XXA'!H14","v":0},{"$f":"'Schedule XXA'!J14","v":0},{"$f":"'Schedule XXA'!L14","v":0},{"$f":"'Schedule XXA'!N14","v":0},0,{"$f":"IF($B$12=\"Denmark Kroner\",IF((C16+D16+E16+F16+G16)>(H16+I16),0%,0.39%),IF($B$12=\"Bulgaria Leva\",IF((C16+D16+E16+F16+G16)>(H16+I16),0%,1.81%),IF($B$12=\"West African CFA Francs\",IF((C16+D16+E16+F16+G16)>(H16+I16),0%,2.18%),IF($B$12=\"Central African CFA Francs\",IF((C16+D16+E16+F16+G16)>(H16+I16),0%,1.96%),IF($B$12=\"Comorian Francs\",IF((C16+D16+E16+F16+G16)>(H16+I16),0%,2%),IF((C16+D16+E16+F16+G16)>(H16+I16),0%,25%))))))","v":0.25},null,{"$f":"'Schedule XXA'!V14","v":0},{"$f":"'Schedule XXA'!X14","v":0},{"$f":"'Schedule XXA'!Z14","v":0},{"$f":"'Schedule XXA'!AB14","v":0},{"$f":"'Schedule XXA'!AD14","v":0},{"$f":"'Schedule XXA'!AF14","v":0},{"$f":"IF('Schedule XXA'!AH14=0,Q16,'Schedule XXA'!AH14)","v":0},null,0,0,0,null,0,0]
[null,{"$f":"'Schedule XXA'!B15","v":"Denmark Kroner"},{"$f":"'Schedule XXA'!D15","v":0},{"$f":"'Schedule XXA'!F15","v":0},{"$f":"'Schedule XXA'!H15","v":0},{"$f":"'Schedule XXA'!J15","v":0},{"$f":"'Schedule XXA'!L15","v":0},{"$f":"'Schedule XXA'!N15","v":0},0,{"$f":"IF($B$12=\"Euro\",IF((SUM(C17:G17))>(H17+I17),0%,0.39%),IF((SUM(C17:G17))>(H17+I17),0%,25%))","v":0.25},null,{"$f":"'Schedule XXA'!V15","v":0},{"$f":"'Schedule XXA'!X15","v":0},{"$f":"'Schedule XXA'!Z15","v":0},{"$f":"'Schedule XXA'!AB15","v":0},{"$f":"'Schedule XXA'!AD15","v":0},{"$f":"'Schedule XXA'!AF15","v":0},{"$f":"IF('Schedule XXA'!AH15=0,Q17,'Schedule XXA'!AH15)","v":0},null,0,0,0,null,0,0]
[null,{"$f":"'Schedule XXA'!B16","v":"Bulgaria Leva"},{"$f":"'Schedule XXA'!D16","v":0},{"$f":"'Schedule XXA'!F16","v":0},{"$f":"'Schedule XXA'!H16","v":0},{"$f":"'Schedule XXA'!J16","v":0},{"$f":"'Schedule XXA'!L16","v":0},{"$f":"'Schedule XXA'!N16","v":0},0,{"$f":"IF($B$12=\"Euro\",IF((SUM(C18:G18))>(H18+I18),0%,1.81%),IF((SUM(C18:G18))>(H18+I18),0%,25%))","v":0.25},null,{"$f":"'Schedule XXA'!V16","v":0},{"$f":"'Schedule XXA'!X16","v":0},{"$f":"'Schedule XXA'!Z16","v":0},{"$f":"'Schedule XXA'!AB16","v":0},{"$f":"'Schedule XXA'!AD16","v":0},{"$f":"'Schedule XXA'!AF16","v":0},{"$f":"IF('Schedule XXA'!AH16=0,Q18,'Schedule XXA'!AH16)","v":0},null,0,0,0,null,0,0]
[null,{"$f":"'Schedule XXA'!B17","v":"West African CFA Francs"},{"$f":"'Schedule XXA'!D17","v":0},{"$f":"'Schedule XXA'!F17","v":0},{"$f":"'Schedule XXA'!H17","v":0},{"$f":"'Schedule XXA'!J17","v":0},{"$f":"'Schedule XXA'!L17","v":0},{"$f":"'Schedule XXA'!N17","v":0},0,{"$f":"IF($B$12=\"Euro\",IF((SUM(C19:G19))>(H19+I19),0%,2.18%),IF((SUM(C19:G19))>(H19+I19),0%,25%))","v":0.25},null,{"$f":"'Schedule XXA'!V17","v":0},{"$f":"'Schedule XXA'!X17","v":0},{"$f":"'Schedule XXA'!Z17","v":0},{"$f":"'Schedule XXA'!AB17","v":0},{"$f":"'Schedule XXA'!AD17","v":0},{"$f":"'Schedule XXA'!AF17","v":0},{"$f":"IF('Schedule XXA'!AH17=0,Q19,'Schedule XXA'!AH17)","v":0},null,0,0,0,null,0,0]
[null,{"$f":"'Schedule XXA'!B18","v":"Central African CFA Francs"},{"$f":"'Schedule XXA'!D18","v":0},{"$f":"'Schedule XXA'!F18","v":0},{"$f":"'Schedule XXA'!H18","v":0},{"$f":"'Schedule XXA'!J18","v":0},{"$f":"'Schedule XXA'!L18","v":0},{"$f":"'Schedule XXA'!N18","v":0},0,{"$f":"IF($B$12=\"Euro\",IF((SUM(C20:G20))>(H20+I20),0%,1.96%),IF((SUM(C20:G20))>(H20+I20),0%,25%))","v":0.25},null,{"$f":"'Schedule XXA'!V18","v":0},{"$f":"'Schedule XXA'!X18","v":0},{"$f":"'Schedule XXA'!Z18","v":0},{"$f":"'Schedule XXA'!AB18","v":0},{"$f":"'Schedule XXA'!AD18","v":0},{"$f":"'Schedule XXA'!AF18","v":0},{"$f":"IF('Schedule XXA'!AH18=0,Q20,'Schedule XXA'!AH18)","v":0},null,0,0,0,null,0,0]
[null,{"$f":"'Schedule XXA'!B19","v":"Comorian Francs"},{"$f":"'Schedule XXA'!D19","v":0},{"$f":"'Schedule XXA'!F19","v":0},{"$f":"'Schedule XXA'!H19","v":0},{"$f":"'Schedule XXA'!J19","v":0},{"$f":"'Schedule XXA'!L19","v":0},{"$f":"'Schedule XXA'!N19","v":0},0,{"$f":"IF($B$12=\"Euro\",IF((SUM(C21:G21))>(H21+I21),0%,2%),IF((SUM(C21:G21))>(H21+I21),0%,25%))","v":0.25},null,{"$f":"'Schedule XXA'!V19","v":0},{"$f":"'Schedule XXA'!X19","v":0},{"$f":"'Schedule XXA'!Z19","v":0},{"$f":"'Schedule XXA'!AB19","v":0},{"$f":"'Schedule XXA'!AD19","v":0},{"$f":"'Schedule XXA'!AF19","v":0},{"$f":"IF('Schedule XXA'!AH19=0,Q21,'Schedule XXA'!AH19)","v":0},null,0,0,0,null,0,0]
[null,{"$f":"'Schedule XXA'!B20","v":"United Kingdom Pounds"},{"$f":"'Schedule XXA'!D20","v":0},{"$f":"'Schedule XXA'!F20","v":0},{"$f":"'Schedule XXA'!H20","v":0},{"$f":"'Schedule XXA'!J20","v":0},{"$f":"'Schedule XXA'!L20","v":0},{"$f":"'Schedule XXA'!N20","v":0},0,{"$f":"IF((SUM(C22:G22))>(H22+I22),0%,25%)","v":0.25},null,{"$f":"'Schedule XXA'!V20","v":0},{"$f":"'Schedule XXA'!X20","v":0},{"$f":"'Schedule XXA'!Z20","v":0},{"$f":"'Schedule XXA'!AB20","v":0},{"$f":"'Schedule XXA'!AD20","v":0},{"$f":"'Schedule XXA'!AF20","v":0},{"$f":"IF('Schedule XXA'!AH20=0,Q22,'Schedule XXA'!AH20)","v":0},null,0,0,0,null,0,0]
[null,{"$f":"'Schedule XXA'!B21","v":"Canada Dollars"},{"$f":"'Schedule XXA'!D21","v":0},{"$f":"'Schedule XXA'!F21","v":0},{"$f":"'Schedule XXA'!H21","v":0},{"$f":"'Schedule XXA'!J21","v":0},{"$f":"'Schedule XXA'!L21","v":0},{"$f":"'Schedule XXA'!N21","v":0},0,{"$f":"IF((SUM(C23:G23))>(H23+I23),0%,25%)","v":0.25},null,{"$f":"'Schedule XXA'!V21","v":0},{"$f":"'Schedule XXA'!X21","v":0},{"$f":"'Schedule XXA'!Z21","v":0},{"$f":"'Schedule XXA'!AB21","v":0},{"$f":"'Schedule XXA'!AD21","v":0},{"$f":"'Schedule XXA'!AF21","v":0},{"$f":"IF('Schedule XXA'!AH21=0,Q23,'Schedule XXA'!AH21)","v":0},null,0,0,0,null,0,0]
[null,{"$f":"'Schedule XXA'!B22","v":"Japan Yen"},{"$f":"'Schedule XXA'!D22","v":0},{"$f":"'Schedule XXA'!F22","v":0},{"$f":"'Schedule XXA'!H22","v":0},{"$f":"'Schedule XXA'!J22","v":0},{"$f":"'Schedule XXA'!L22","v":0},{"$f":"'Schedule XXA'!N22","v":0},0,{"$f":"IF((SUM(C24:G24))>(H24+I24),0%,25%)","v":0.25},null,{"$f":"'Schedule XXA'!V22","v":0},{"$f":"'Schedule XXA'!X22","v":0},{"$f":"'Schedule XXA'!Z22","v":0},{"$f":"'Schedule XXA'!AB22","v":0},{"$f":"'Schedule XXA'!AD22","v":0},{"$f":"'Schedule XXA'!AF22","v":0},{"$f":"IF('Schedule XXA'!AH22=0,Q24,'Schedule XXA'!AH22)","v":0},null,0,0,0,null,0,0]
[null,{"$f":"'Schedule XXA'!B23","v":"Other currency 1"},{"$f":"'Schedule XXA'!D23","v":0},{"$f":"'Schedule XXA'!F23","v":0},{"$f":"'Schedule XXA'!H23","v":0},{"$f":"'Schedule XXA'!J23","v":0},{"$f":"'Schedule XXA'!L23","v":0},{"$f":"'Schedule XXA'!N23","v":0},0,{"$f":"IF((SUM(C25:G25))>(H25+I25),0%,25%)","v":0.25},null,{"$f":"'Schedule XXA'!V23","v":0},{"$f":"'Schedule XXA'!X23","v":0},{"$f":"'Schedule XXA'!Z23","v":0},{"$f":"'Schedule XXA'!AB23","v":0},{"$f":"'Schedule XXA'!AD23","v":0},{"$f":"'Schedule XXA'!AF23","v":0},{"$f":"IF('Schedule XXA'!AH23=0,Q25,'Schedule XXA'!AH23)","v":0},null,0,0,0,null,0,0]
[null,{"$f":"'Schedule XXA'!B24","v":"Other currency 2"},{"$f":"'Schedule XXA'!D24","v":0},{"$f":"'Schedule XXA'!F24","v":0},{"$f":"'Schedule XXA'!H24","v":0},{"$f":"'Schedule XXA'!J24","v":0},{"$f":"'Schedule XXA'!L24","v":0},{"$f":"'Schedule XXA'!N24","v":0},0,0.25,null,{"$f":"'Schedule XXA'!V24","v":0},{"$f":"'Schedule XXA'!X24","v":0},{"$f":"'Schedule XXA'!Z24","v":0},{"$f":"'Schedule XXA'!AB24","v":0},{"$f":"'Schedule XXA'!AD24","v":0},{"$f":"'Schedule XXA'!AF24","v":0},{"$f":"IF('Schedule XXA'!AH24=0,Q26,'Schedule XXA'!AH24)","v":0},null,0,0,0,null,0,0]
[null,{"$f":"'Schedule XXA'!B25","v":"Other currency 3"},{"$f":"'Schedule XXA'!D25","v":0},{"$f":"'Schedule XXA'!F25","v":0},{"$f":"'Schedule XXA'!H25","v":0},{"$f":"'Schedule XXA'!J25","v":0},{"$f":"'Schedule XXA'!L25","v":0},{"$f":"'Schedule XXA'!N25","v":0},0,0.25,null,{"$f":"'Schedule XXA'!V25","v":0},{"$f":"'Schedule XXA'!X25","v":0},{"$f":"'Schedule XXA'!Z25","v":0},{"$f":"'Schedule XXA'!AB25","v":0},{"$f":"'Schedule XXA'!AD25","v":0},{"$f":"'Schedule XXA'!AF25","v":0},{"$f":"IF('Schedule XXA'!AH25=0,Q27,'Schedule XXA'!AH25)","v":0},null,0,0,0,null,0,0]
[null,{"$f":"'Schedule XXA'!B26","v":"Other currency 4"},{"$f":"'Schedule XXA'!D26","v":0},{"$f":"'Schedule XXA'!F26","v":0},{"$f":"'Schedule XXA'!H26","v":0},{"$f":"'Schedule XXA'!J26","v":0},{"$f":"'Schedule XXA'!L26","v":0},{"$f":"'Schedule XXA'!N26","v":0},0,0.25,null,{"$f":"'Schedule XXA'!V26","v":0},{"$f":"'Schedule XXA'!X26","v":0},{"$f":"'Schedule XXA'!Z26","v":0},{"$f":"'Schedule XXA'!AB26","v":0},{"$f":"'Schedule XXA'!AD26","v":0},{"$f":"'Schedule XXA'!AF26","v":0},{"$f":"IF('Schedule XXA'!AH26=0,Q28,'Schedule XXA'!AH26)","v":0},null,0,0,0,null,0,0]
[null,{"$f":"'Schedule XXA'!B27","v":"Other currency 5"},{"$f":"'Schedule XXA'!D27","v":0},{"$f":"'Schedule XXA'!F27","v":0},{"$f":"'Schedule XXA'!H27","v":0},{"$f":"'Schedule XXA'!J27","v":0},{"$f":"'Schedule XXA'!L27","v":0},{"$f":"'Schedule XXA'!N27","v":0},0,0.25,null,{"$f":"'Schedule XXA'!V27","v":0},{"$f":"'Schedule XXA'!X27","v":0},{"$f":"'Schedule XXA'!Z27","v":0},{"$f":"'Schedule XXA'!AB27","v":0},{"$f":"'Schedule XXA'!AD27","v":0},{"$f":"'Schedule XXA'!AF27","v":0},{"$f":"IF('Schedule XXA'!AH27=0,Q29,'Schedule XXA'!AH27)","v":0},null,0,0,0,null,0,0]
[null,{"$f":"'Schedule XXA'!B28","v":"Other currency 6"},{"$f":"'Schedule XXA'!D28","v":0},{"$f":"'Schedule XXA'!F28","v":0},{"$f":"'Schedule XXA'!H28","v":0},{"$f":"'Schedule XXA'!J28","v":0},{"$f":"'Schedule XXA'!L28","v":0},{"$f":"'Schedule XXA'!N28","v":0},0,0.25,null,{"$f":"'Schedule XXA'!V28","v":0},{"$f":"'Schedule XXA'!X28","v":0},{"$f":"'Schedule XXA'!Z28","v":0},{"$f":"'Schedule XXA'!AB28","v":0},{"$f":"'Schedule XXA'!AD28","v":0},{"$f":"'Schedule XXA'!AF28","v":0},{"$f":"IF('Schedule XXA'!AH28=0,Q30,'Schedule XXA'!AH28)","v":0},null,0,0,0,null,0,0]
[null,{"$f":"'Schedule XXA'!B29","v":"Other currency 7"},{"$f":"'Schedule XXA'!D29","v":0},{"$f":"'Schedule XXA'!F29","v":0},{"$f":"'Schedule XXA'!H29","v":0},{"$f":"'Schedule XXA'!J29","v":0},{"$f":"'Schedule XXA'!L29","v":0},{"$f":"'Schedule XXA'!N29","v":0},0,0.25,null,{"$f":"'Schedule XXA'!V29","v":0},{"$f":"'Schedule XXA'!X29","v":0},{"$f":"'Schedule XXA'!Z29","v":0},{"$f":"'Schedule XXA'!AB29","v":0},{"$f":"'Schedule XXA'!AD29","v":0},{"$f":"'Schedule XXA'!AF29","v":0},{"$f":"IF('Schedule XXA'!AH29=0,Q31,'Schedule XXA'!AH29)","v":0},null,0,0,0,null,0,0]
[null,{"$f":"'Schedule XXA'!B30","v":"Other currency 8"},{"$f":"'Schedule XXA'!D30","v":0},{"$f":"'Schedule XXA'!F30","v":0},{"$f":"'Schedule XXA'!H30","v":0},{"$f":"'Schedule XXA'!J30","v":0},{"$f":"'Schedule XXA'!L30","v":0},{"$f":"'Schedule XXA'!N30","v":0},0,0.25,null,{"$f":"'Schedule XXA'!V30","v":0},{"$f":"'Schedule XXA'!X30","v":0},{"$f":"'Schedule XXA'!Z30","v":0},{"$f":"'Schedule XXA'!AB30","v":0},{"$f":"'Schedule XXA'!AD30","v":0},{"$f":"'Schedule XXA'!AF30","v":0},{"$f":"IF('Schedule XXA'!AH30=0,Q32,'Schedule XXA'!AH30)","v":0},null,0,0,0,null,0,0]
[null,{"$f":"'Schedule XXA'!B31","v":"Other currency 9"},{"$f":"'Schedule XXA'!D31","v":0},{"$f":"'Schedule XXA'!F31","v":0},{"$f":"'Schedule XXA'!H31","v":0},{"$f":"'Schedule XXA'!J31","v":0},{"$f":"'Schedule XXA'!L31","v":0},{"$f":"'Schedule XXA'!N31","v":0},0,0.25,null,{"$f":"'Schedule XXA'!V31","v":0},{"$f":"'Schedule XXA'!X31","v":0},{"$f":"'Schedule XXA'!Z31","v":0},{"$f":"'Schedule XXA'!AB31","v":0},{"$f":"'Schedule XXA'!AD31","v":0},{"$f":"'Schedule XXA'!AF31","v":0},{"$f":"IF('Schedule XXA'!AH31=0,Q33,'Schedule XXA'!AH31)","v":0},null,0,0,0,null,0,0]
[null,{"$f":"'Schedule XXA'!B32","v":"Other currency 10"},{"$f":"'Schedule XXA'!D32","v":0},{"$f":"'Schedule XXA'!F32","v":0},{"$f":"'Schedule XXA'!H32","v":0},{"$f":"'Schedule XXA'!J32","v":0},{"$f":"'Schedule XXA'!L32","v":0},{"$f":"'Schedule XXA'!N32","v":0},0,0.25,null,{"$f":"'Schedule XXA'!V32","v":0},{"$f":"'Schedule XXA'!X32","v":0},{"$f":"'Schedule XXA'!Z32","v":0},{"$f":"'Schedule XXA'!AB32","v":0},{"$f":"'Schedule XXA'!AD32","v":0},{"$f":"'Schedule XXA'!AF32","v":0},{"$f":"IF('Schedule XXA'!AH32=0,Q34,'Schedule XXA'!AH32)","v":0},null,0,0,0,null,0,0]
[null,"Total Identified",{"$f":"SUM(C12:C34)","v":0},0,0,0,0,0,null,null,null,{"$f":"SUM(L12:L34)","v":0},0,0,0,0,0,0,null,{"$f":"SUM(T12:T34)","v":0},0,0,null,{"$f":"SUM(X12:X34)","v":0},{"$f":"SUM(Y12:Y34)","v":0}]
[null,"Total",{"$f":"'Schedule XXA'!D36","v":0},null,null,null,null,{"$f":"'Schedule XXA'!N36","v":0}]
[null,"% Identified",{"$f":"IF(C35=0,0,(C35+E35)/C36)","v":0},null,null,null,null,{"$f":"IF(H35=0,0,H35/H36)","v":0}]
[]
[null,"TOTAL CURRENCY RISK",null,null,null,null,null,null,null,null,null,null,null,null,null,null,null,null,null,null,null,null,null,{"$f":"IF(SUM(X12:X34)>=0,SUM(X12:X34),0)","v":0},{"$f":"IF(SUM(Y12:Y34)>=0,SUM(Y12:Y34),0)","v":0}]

{"sheet":"Concentration Risk (Old)","index":121,"n_rows":111,"n_cols":6,"rows_kept":111,"cut":false,"hidden":true,"merged":[[0,5,0,6]]}
["CONCENTRATION RISK",null,null,null,null,{"$f":"HYPERLINK(\"#'Index'!A1\",\"Return to Index\")","v":"Return to Index"}]
[{"$f":"'Company Information'!C7","v":"Enter Company Name"}]
[{"$f":"\"Concentration Risk\" & \"($\"&IF(CONFIGURATION!$B$12>1,MID(CONFIGURATION!$B$12,2,LEN(CONFIGURATION!$B$12)),\"\")&\")\"","v":"Concentration Risk($000)"},null,{"$f":"'Company Information'!C3","v":"2023-12-31"}]
[null,null,null,-1,-2,-3]
[]
[null,"ASSET ",null,null,"CAPITAL","REQUIRED"]
[null,"TYPE","STATEMENT SOURCE","EXPOSURE","FACTOR","CAPITAL"]
[]
[null,"(a) Cash and Cash Equivalents",null,"Cash and Cash Equivalent"]
[null,"BSCR Rating 0","Schedule XXI, Column H",{"$f":"SUMIFS('Schedule XXI'!$M$8:$M$57,'Schedule XXI'!$J$8:$J$57,$D$9,'Schedule XXI'!$L$8:$L$57,$B10)","v":0},{"$f":"+'Fixed Income Investments (Prior'!E83","v":0},{"$f":"MAX(0,(D10*E10))","v":0}]
[null,"BSCR Rating 1","Schedule XXI, Column H",{"$f":"SUMIFS('Schedule XXI'!$M$8:$M$57,'Schedule XXI'!$J$8:$J$57,$D$9,'Schedule XXI'!$L$8:$L$57,$B11)","v":0},{"$f":"+'Fixed Income Investments (Prior'!E84","v":1E-3},{"$f":"MAX(0,(D11*E11))","v":0}]
[null,"BSCR Rating 2","Schedule XXI, Column H",{"$f":"SUMIFS('Schedule XXI'!$M$8:$M$57,'Schedule XXI'!$J$8:$J$57,$D$9,'Schedule XXI'!$L$8:$L$57,$B12)","v":0},{"$f":"+'Fixed Income Investments (Prior'!E85","v":2E-3},0]
[null,"BSCR Rating 3","Schedule XXI, Column H",{"$f":"SUMIFS('Schedule XXI'!$M$8:$M$57,'Schedule XXI'!$J$8:$J$57,$D$9,'Schedule XXI'!$L$8:$L$57,$B13)","v":0},{"$f":"+'Fixed Income Investments (Prior'!E86","v":3.0000000000000001E-3},0]
[null,"BSCR Rating 4","Schedule XXI, Column H",{"$f":"SUMIFS('Schedule XXI'!$M$8:$M$57,'Schedule XXI'!$J$8:$J$57,$D$9,'Schedule XXI'!$L$8:$L$57,$B14)","v":0},{"$f":"+'Fixed Income Investments (Prior'!E87","v":5.0000000000000001E-3},0]
[null,"BSCR Rating 5","Schedule XXI, Column H",{"$f":"SUMIFS('Schedule XXI'!$M$8:$M$57,'Schedule XXI'!$J$8:$J$57,$D$9,'Schedule XXI'!$L$8:$L$57,$B15)","v":0},{"$f":"+'Fixed Income Investments (Prior'!E88","v":1.4999999999999999E-2},0]
[null,"BSCR Rating 6","Schedule XXI, Column H",{"$f":"SUMIFS('Schedule XXI'!$M$8:$M$57,'Schedule XXI'!$J$8:$J$57,$D$9,'Schedule XXI'!$L$8:$L$57,$B16)","v":0},{"$f":"+'Fixed Income Investments (Prior'!E89","v":0.04},0]
[null,"BSCR Rating 7","Schedule XXI, Column H",{"$f":"SUMIFS('Schedule XXI'!$M$8:$M$57,'Schedule XXI'!$J$8:$J$57,$D$9,'Schedule XXI'!$L$8:$L$57,$B17)","v":0},{"$f":"+'Fixed Income Investments (Prior'!E90","v":0.06},0]
[null,"BSCR Rating 8","Schedule XXI, Column H",{"$f":"SUMIFS('Schedule XXI'!$M$8:$M$57,'Schedule XXI'!$J$8:$J$57,$D$9,'Schedule XXI'!$L$8:$L$57,$B18)","v":0},{"$f":"+'Fixed Income Investments (Prior'!E91","v":0.09},0]
[]
[null,"(a)  SUBTOTAL - CASH AND CASH EQUIVALENTS",null,{"$f":"SUM(D9:D18)","v":0},null,{"$f":"SUM(F9:F18)","v":0}]
[]
[null,"(b) Corporate & Sovereign Bonds",null,"Corporate & Sovereign Bonds"]
[null,"BSCR Rating 0","Schedule XXI, Column H",{"$f":"SUMIFS('Schedule XXI'!$M$8:$M$57,'Schedule XXI'!$K$8:$K$57,$D$22,'Schedule XXI'!$L$8:$L$57,$B23)","v":0},{"$f":"+'Fixed Income Investments (Prior'!E12","v":0},{"$f":"MAX(0,(D23*E23))","v":0}]
[null,"BSCR Rating 1","Schedule XXI, Column H",{"$f":"SUMIFS('Schedule XXI'!$M$8:$M$57,'Schedule XXI'!$K$8:$K$57,$D$22,'Schedule XXI'!$L$8:$L$57,$B24)","v":0},{"$f":"+'Fixed Income Investments (Prior'!E13","v":4.0000000000000001E-3},{"$f":"MAX(0,(D24*E24))","v":0}]
[null,"BSCR Rating 2","Schedule XXI, Column H",{"$f":"SUMIFS('Schedule XXI'!$M$8:$M$57,'Schedule XXI'!$K$8:$K$57,$D$22,'Schedule XXI'!$L$8:$L$57,$B25)","v":0},{"$f":"+'Fixed Income Investments (Prior'!E14","v":8.0000000000000002E-3},0]
[null,"BSCR Rating 3","Schedule XXI, Column H",{"$f":"SUMIFS('Schedule XXI'!$M$8:$M$57,'Schedule XXI'!$K$8:$K$57,$D$22,'Schedule XXI'!$L$8:$L$57,$B26)","v":0},{"$f":"+'Fixed Income Investments (Prior'!E15","v":1.4999999999999999E-2},0]
[null,"BSCR Rating 4","Schedule XXI, Column H",{"$f":"SUMIFS('Schedule XXI'!$M$8:$M$57,'Schedule XXI'!$K$8:$K$57,$D$22,'Schedule XXI'!$L$8:$L$57,$B27)","v":0},{"$f":"+'Fixed Income Investments (Prior'!E16","v":0.03},0]
[null,"BSCR Rating 5","Schedule XXI, Column H",{"$f":"SUMIFS('Schedule XXI'!$M$8:$M$57,'Schedule XXI'!$K$8:$K$57,$D$22,'Schedule XXI'!$L$8:$L$57,$B28)","v":0},{"$f":"+'Fixed Income Investments (Prior'!E17","v":0.08},0]
[null,"BSCR Rating 6","Schedule XXI, Column H",{"$f":"SUMIFS('Schedule XXI'!$M$8:$M$57,'Schedule XXI'!$K$8:$K$57,$D$22,'Schedule XXI'!$L$8:$L$57,$B29)","v":0},{"$f":"+'Fixed Income Investments (Prior'!E18","v":0.15},0]
[null,"BSCR Rating 7","Schedule XXI, Column H",{"$f":"SUMIFS('Schedule XXI'!$M$8:$M$57,'Schedule XXI'!$K$8:$K$57,$D$22,'Schedule XXI'!$L$8:$L$57,$B30)","v":0},{"$f":"+'Fixed Income Investments (Prior'!E19","v":0.26300000000000001},0]
[null,"BSCR Rating 8","Schedule XXI, Column H",{"$f":"SUMIFS('Schedule XXI'!$M$8:$M$57,'Schedule XXI'!$K$8:$K$57,$D$22,'Schedule XXI'!$L$8:$L$57,$B31)","v":0},{"$f":"+'Fixed Income Investments (Prior'!E20","v":0.35},0]
[]
[null,"(b)  SUBTOTAL - CORPORATE & SOVEREIGN BONDS",null,{"$f":"SUM(D22:D31)","v":0},null,{"$f":"SUM(F22:F31)","v":0}]
[]
[null,"(c) Residential Mortage-Backed Securities",null,"Residential Mortgage-Backed Securities"]
[null,"BSCR Rating 0","Schedule XXI, Column H",{"$f":"SUMIFS('Schedule XXI'!$M$8:$M$57,'Schedule XXI'!$K$8:$K$57,$D$35,'Schedule XXI'!$L$8:$L$57,$B36)","v":0},0,{"$f":"MAX(0,(D36*E36))","v":0}]
[null,"BSCR Rating 1","Schedule XXI, Column H",{"$f":"SUMIFS('Schedule XXI'!$M$8:$M$57,'Schedule XXI'!$K$8:$K$57,$D$35,'Schedule XXI'!$L$8:$L$57,$B37)","v":0},{"$f":"+'Fixed Income Investments (Prior'!E27","v":6.0000000000000001E-3},{"$f":"MAX(0,(D37*E37))","v":0}]
[null,"BSCR Rating 2","Schedule XXI, Column H",{"$f":"SUMIFS('Schedule XXI'!$M$8:$M$57,'Schedule XXI'!$K$8:$K$57,$D$35,'Schedule XXI'!$L$8:$L$57,$B38)","v":0},{"$f":"+'Fixed Income Investments (Prior'!E28","v":1.2E-2},0]
[null,"BSCR Rating 3","Schedule XXI, Column H",{"$f":"SUMIFS('Schedule XXI'!$M$8:$M$57,'Schedule XXI'!$K$8:$K$57,$D$35,'Schedule XXI'!$L$8:$L$57,$B39)","v":0},{"$f":"+'Fixed Income Investments (Prior'!E29","v":0.02},0]
[null,"BSCR Rating 4","Schedule XXI, Column H",{"$f":"SUMIFS('Schedule XXI'!$M$8:$M$57,'Schedule XXI'!$K$8:$K$57,$D$35,'Schedule XXI'!$L$8:$L$57,$B40)","v":0},{"$f":"+'Fixed Income Investments (Prior'!E30","v":0.04},0]
[null,"BSCR Rating 5","Schedule XXI, Column H",{"$f":"SUMIFS('Schedule XXI'!$M$8:$M$57,'Schedule XXI'!$K$8:$K$57,$D$35,'Schedule XXI'!$L$8:$L$57,$B41)","v":0},{"$f":"+'Fixed Income Investments (Prior'!E31","v":0.11},0]
[null,"BSCR Rating 6","Schedule XXI, Column H",{"$f":"SUMIFS('Schedule XXI'!$M$8:$M$57,'Schedule XXI'!$K$8:$K$57,$D$35,'Schedule XXI'!$L$8:$L$57,$B42)","v":0},{"$f":"+'Fixed Income Investments (Prior'!E32","v":0.25},0]
[null,"BSCR Rating 7","Schedule XXI, Column H",{"$f":"SUMIFS('Schedule XXI'!$M$8:$M$57,'Schedule XXI'!$K$8:$K$57,$D$35,'Schedule XXI'!$L$8:$L$57,$B43)","v":0},{"$f":"+'Fixed Income Investments (Prior'!E33","v":0.35},0]
[null,"BSCR Rating 8","Schedule XXI, Column H",{"$f":"SUMIFS('Schedule XXI'!$M$8:$M$57,'Schedule XXI'!$K$8:$K$57,$D$35,'Schedule XXI'!$L$8:$L$57,$B44)","v":0},{"$f":"+'Fixed Income Investments (Prior'!E34","v":0.35},0]
[]
[null,"(c)  SUBTOTAL - RESIDENTIAL MORTGAGE-BACKED SECURITIES",null,{"$f":"SUM(D35:D44)","v":0},null,{"$f":"SUM(F35:F44)","v":0}]
[]
[null,"(d) Commercial Mortgage-Backed Securities / Asset Backed Securities",null,"Commercial Mortgage-Backed Securities"]
[null,"BSCR Rating 0","Schedule XXI, Column H",{"$f":"SUMIFS('Schedule XXI'!$M$8:$M$57,'Schedule XXI'!$K$8:$K$57,$D$48,'Schedule XXI'!$L$8:$L$57,$B49)","v":0},0,{"$f":"MAX(0,(D49*E49))","v":0}]
[null,"BSCR Rating 1","Schedule XXI, Column H",{"$f":"SUMIFS('Schedule XXI'!$M$8:$M$57,'Schedule XXI'!$K$8:$K$57,$D$48,'Schedule XXI'!$L$8:$L$57,$B50)","v":0},{"$f":"+'Fixed Income Investments (Prior'!E41","v":5.0000000000000001E-3},{"$f":"MAX(0,(D50*E50))","v":0}]
[null,"BSCR Rating 2","Schedule XXI, Column H",{"$f":"SUMIFS('Schedule XXI'!$M$8:$M$57,'Schedule XXI'!$K$8:$K$57,$D$48,'Schedule XXI'!$L$8:$L$57,$B51)","v":0},{"$f":"+'Fixed Income Investments (Prior'!E42","v":0.01},0]
[null,"BSCR Rating 3","Schedule XXI, Column H",{"$f":"SUMIFS('Schedule XXI'!$M$8:$M$57,'Schedule XXI'!$K$8:$K$57,$D$48,'Schedule XXI'!$L$8:$L$57,$B52)","v":0},{"$f":"+'Fixed Income Investments (Prior'!E43","v":1.7999999999999999E-2},0]
[null,"BSCR Rating 4","Schedule XXI, Column H",{"$f":"SUMIFS('Schedule XXI'!$M$8:$M$57,'Schedule XXI'!$K$8:$K$57,$D$48,'Schedule XXI'!$L$8:$L$57,$B53)","v":0},{"$f":"+'Fixed Income Investments (Prior'!E44","v":3.5000000000000003E-2},0]
[null,"BSCR Rating 5","Schedule XXI, Column H",{"$f":"SUMIFS('Schedule XXI'!$M$8:$M$57,'Schedule XXI'!$K$8:$K$57,$D$48,'Schedule XXI'!$L$8:$L$57,$B54)","v":0},{"$f":"+'Fixed Income Investments (Prior'!E45","v":0.1},0]
[null,"BSCR Rating 6","Schedule XXI, Column H",{"$f":"SUMIFS('Schedule XXI'!$M$8:$M$57,'Schedule XXI'!$K$8:$K$57,$D$48,'Schedule XXI'!$L$8:$L$57,$B55)","v":0},{"$f":"+'Fixed Income Investments (Prior'!E46","v":0.2},0]
[null,"BSCR Rating 7","Schedule XXI, Column H",{"$f":"SUMIFS('Schedule XXI'!$M$8:$M$57,'Schedule XXI'!$K$8:$K$57,$D$48,'Schedule XXI'!$L$8:$L$57,$B56)","v":0},{"$f":"+'Fixed Income Investments (Prior'!E47","v":0.3},0]
[null,"BSCR Rating 8","Schedule XXI, Column H",{"$f":"SUMIFS('Schedule XXI'!$M$8:$M$57,'Schedule XXI'!$K$8:$K$57,$D$48,'Schedule XXI'!$L$8:$L$57,$B57)","v":0},{"$f":"+'Fixed Income Investments (Prior'!E48","v":0.35},0]
[]
[null,"(d)  SUBTOTAL - COMMERCIAL MORTGAGE-BACKED SECURITIES / ASSET-BACKED SECURITIES",null,{"$f":"SUM(D48:D57)","v":0},null,{"$f":"SUM(F48:F57)","v":0}]
[]
[null,"(e) Bond Mutual Funds",null,"Bond Mutual Funds"]
[null,"BSCR Rating 0","Schedule XXI, Column H",{"$f":"SUMIFS('Schedule XXI'!$M$8:$M$57,'Schedule XXI'!$K$8:$K$57,$D$61,'Schedule XXI'!$L$8:$L$57,$B62)","v":0},{"$f":"+'Fixed Income Investments (Prior'!E56","v":0},{"$f":"MAX(0,(D62*E62))","v":0}]
[null,"BSCR Rating 1","Schedule XXI, Column H",{"$f":"SUMIFS('Schedule XXI'!$M$8:$M$57,'Schedule XXI'!$K$8:$K$57,$D$61,'Schedule XXI'!$L$8:$L$57,$B63)","v":0},{"$f":"+'Fixed Income Investments (Prior'!E57","v":4.0000000000000001E-3},{"$f":"MAX(0,(D63*E63))","v":0}]
[null,"BSCR Rating 2","Schedule XXI, Column H",{"$f":"SUMIFS('Schedule XXI'!$M$8:$M$57,'Schedule XXI'!$K$8:$K$57,$D$61,'Schedule XXI'!$L$8:$L$57,$B64)","v":0},{"$f":"+'Fixed Income Investments (Prior'!E58","v":8.0000000000000002E-3},0]
[null,"BSCR Rating 3","Schedule XXI, Column H",{"$f":"SUMIFS('Schedule XXI'!$M$8:$M$57,'Schedule XXI'!$K$8:$K$57,$D$61,'Schedule XXI'!$L$8:$L$57,$B65)","v":0},{"$f":"+'Fixed Income Investments (Prior'!E59","v":1.4999999999999999E-2},0]
[null,"BSCR Rating 4","Schedule XXI, Column H",{"$f":"SUMIFS('Schedule XXI'!$M$8:$M$57,'Schedule XXI'!$K$8:$K$57,$D$61,'Schedule XXI'!$L$8:$L$57,$B66)","v":0},{"$f":"+'Fixed Income Investments (Prior'!E60","v":0.03},0]
[null,"BSCR Rating 5","Schedule XXI, Column H",{"$f":"SUMIFS('Schedule XXI'!$M$8:$M$57,'Schedule XXI'!$K$8:$K$57,$D$61,'Schedule XXI'!$L$8:$L$57,$B67)","v":0},{"$f":"+'Fixed Income Investments (Prior'!E61","v":0.08},0]
[null,"BSCR Rating 6","Schedule XXI, Column H",{"$f":"SUMIFS('Schedule XXI'!$M$8:$M$57,'Schedule XXI'!$K$8:$K$57,$D$61,'Schedule XXI'!$L$8:$L$57,$B68)","v":0},{"$f":"+'Fixed Income Investments (Prior'!E62","v":0.15},0]
[null,"BSCR Rating 7","Schedule XXI, Column H",{"$f":"SUMIFS('Schedule XXI'!$M$8:$M$57,'Schedule XXI'!$K$8:$K$57,$D$61,'Schedule XXI'!$L$8:$L$57,$B69)","v":0},{"$f":"+'Fixed Income Investments (Prior'!E63","v":0.26300000000000001},0]
[null,"BSCR Rating 8","Schedule XXI, Column H",{"$f":"SUMIFS('Schedule XXI'!$M$8:$M$57,'Schedule XXI'!$K$8:$K$57,$D$61,'Schedule XXI'!$L$8:$L$57,$B70)","v":0},{"$f":"+'Fixed Income Investments (Prior'!E64","v":0.35},0]
[]
[null,"(e)  SUBTOTAL - BOND MUTUAL FUNDS",null,{"$f":"SUM(D61:D70)","v":0},null,{"$f":"SUM(F61:F70)","v":0}]
[]
[null,"(f) Preferred Shares",null,"Preferred Shares"]
[null,"BSCR Rating 0","Schedule XXI, Column H",{"$f":"SUMIFS('Schedule XXI'!$M$8:$M$57,'Schedule XXI'!$J$8:$J$57,$D$74,'Schedule XXI'!$L$8:$L$57,$B75)","v":0},0,{"$f":"MAX(0,(D75*E75))","v":0}]
[null,"BSCR Rating 1","Schedule XXI, Column H",{"$f":"SUMIFS('Schedule XXI'!$M$8:$M$57,'Schedule XXI'!$J$8:$J$57,$D$74,'Schedule XXI'!$L$8:$L$57,$B76)","v":0},6.0000000000000001E-3,{"$f":"MAX(0,(D76*E76))","v":0}]
[null,"BSCR Rating 2","Schedule XXI, Column H",{"$f":"SUMIFS('Schedule XXI'!$M$8:$M$57,'Schedule XXI'!$J$8:$J$57,$D$74,'Schedule XXI'!$L$8:$L$57,$B77)","v":0},1.2E-2,0]
[null,"BSCR Rating 3","Schedule XXI, Column H",{"$f":"SUMIFS('Schedule XXI'!$M$8:$M$57,'Schedule XXI'!$J$8:$J$57,$D$74,'Schedule XXI'!$L$8:$L$57,$B78)","v":0},0.02,0]
[null,"BSCR Rating 4","Schedule XXI, Column H",{"$f":"SUMIFS('Schedule XXI'!$M$8:$M$57,'Schedule XXI'!$J$8:$J$57,$D$74,'Schedule XXI'!$L$8:$L$57,$B79)","v":0},0.04,0]
[null,"BSCR Rating 5","Schedule XXI, Column H",{"$f":"SUMIFS('Schedule XXI'!$M$8:$M$57,'Schedule XXI'!$J$8:$J$57,$D$74,'Schedule XXI'!$L$8:$L$57,$B80)","v":0},0.11,0]
[null,"BSCR Rating 6","Schedule XXI, Column H",{"$f":"SUMIFS('Schedule XXI'!$M$8:$M$57,'Schedule XXI'!$J$8:$J$57,$D$74,'Schedule XXI'!$L$8:$L$57,$B81)","v":0},0.25,0]
[null,"BSCR Rating 7","Schedule XXI, Column H",{"$f":"SUMIFS('Schedule XXI'!$M$8:$M$57,'Schedule XXI'!$J$8:$J$57,$D$74,'Schedule XXI'!$L$8:$L$57,$B82)","v":0},0.35,0]
[null,"BSCR Rating 8","Schedule XXI, Column H",{"$f":"SUMIFS('Schedule XXI'!$M$8:$M$57,'Schedule XXI'!$J$8:$J$57,$D$74,'Schedule XXI'!$L$8:$L$57,$B83)","v":0},0.35,0]
[]
[null,"(f)  SUBTOTAL - PREFERRED SHARES",null,{"$f":"SUM(D74:D83)","v":0},null,{"$f":"SUM(F74:F83)","v":0}]
[]
[null,"(g) Mortgage Loans",null,{"$f":"+'Schedule XXI'!C65","v":"MortgageLoanTypes"}]
[null,"Insured/Guaranteed Mortgages","Schedule XXI, Column H",{"$f":"SUMIFS('Schedule XXI'!$M$8:$M$57,'Schedule XXI'!$J$8:$J$57,$D$87,'Schedule XXI'!$K$8:$K$57,$B88)","v":0},{"$f":"'Fixed Income Investments (Prior'!E70","v":3.0000000000000001E-3},{"$f":"MAX(0,(D88*E88))","v":0}]
[null,"Other Commercial and Farm Mortgages","Schedule XXI, Column H",{"$f":"SUMIFS('Schedule XXI'!$M$8:$M$57,'Schedule XXI'!$J$8:$J$57,$D$87,'Schedule XXI'!$K$8:$K$57,$B89)","v":0},{"$f":"'Fixed Income Investments (Prior'!E71","v":0.05},{"$f":"MAX(0,(D89*E89))","v":0}]
[null,"Other Residential Mortgages","Schedule XXI, Column H",{"$f":"SUMIFS('Schedule XXI'!$M$8:$M$57,'Schedule XXI'!$J$8:$J$57,$D$87,'Schedule XXI'!$K$8:$K$57,$B90)","v":0},{"$f":"'Fixed Income Investments (Prior'!E72","v":1.4999999999999999E-2},{"$f":"MAX(0,(D90*E90))","v":0}]
[null,"Mortgages Not In Good Standing","Schedule XXI, Column H",{"$f":"SUMIFS('Schedule XXI'!$M$8:$M$57,'Schedule XXI'!$J$8:$J$57,$D$87,'Schedule XXI'!$K$8:$K$57,$B91)","v":0},{"$f":"'Fixed Income Investments (Prior'!E73","v":0.25},{"$f":"MAX(0,(D91*E91))","v":0}]
[]
[null,"(g)  SUBTOTAL - Mortgage Loans",null,{"$f":"SUM(D88:D91)","v":0},null,{"$f":"SUM(F88:F91)","v":0}]
[]
[null,"(h) Other Asset Classes"]
[null,"Common Stock and Mutual Funds","Schedule XXI, Column H",{"$f":"SUMIFS('Schedule XXI'!$M$8:$M$57,'Schedule XXI'!$J$8:$J$57,$B96)","v":0},0.14399999999999999,{"$f":"MAX(0,(D96*E96))","v":0}]
[null,"Other Investments","Schedule XXI, Column H",{"$f":"SUMIFS('Schedule XXI'!$M$8:$M$57,'Schedule XXI'!$J$8:$J$57,$B97)","v":0},0.2,{"$f":"MAX(0,(D97*E97))","v":0}]
[null,"Investment in Affiliates – Unregulated entities that conduct ancillary services",null,{"$f":"SUMIFS('Schedule XXI'!$M$8:$M$57,'Schedule XXI'!$J$8:$J$57,$B98)","v":0},0.05,0]
[null,"Investment in Affiliates - Unregulated non-financial operating entities",null,{"$f":"SUMIFS('Schedule XXI'!$M$8:$M$57,'Schedule XXI'!$J$8:$J$57,$B99)","v":0},0.2,0]
[null,"Investment in Affiliates - Unregulated financial operating entities",null,{"$f":"SUMIFS('Schedule XXI'!$M$8:$M$57,'Schedule XXI'!$J$8:$J$57,$B100)","v":0},0.55000000000000004,0]
[null,"Investment in Affiliates - Regulated non-insurance financial operating entities",null,{"$f":"SUMIFS('Schedule XXI'!$M$8:$M$57,'Schedule XXI'!$J$8:$J$57,$B101)","v":0},0.55000000000000004,0]
[null,"Investment in Affiliates - Regulated insurance financial operating entities",null,{"$f":"SUMIFS('Schedule XXI'!$M$8:$M$57,'Schedule XXI'!$J$8:$J$57,$B102)","v":0},0.2,0]
[null,"Advances to Affiliates - ","Schedule XXI, Column H",{"$f":"SUMIFS('Schedule XXI'!$M$8:$M$57,'Schedule XXI'!$J$8:$J$57,$B103)","v":0},0.05,0]
[null,"Policy Loans","Schedule XXI, Column H",{"$f":"SUMIFS('Schedule XXI'!$M$8:$M$57,'Schedule XXI'!$J$8:$J$57,$B104)","v":0},0,0]
[null,"Real Estate: Occupied by company","Schedule XXI, Column H",{"$f":"SUMIFS('Schedule XXI'!$M$8:$M$57,'Schedule XXI'!$J$8:$J$57,$B105)","v":0},0.1,0]
[null,"Real Estate: Other properties","Schedule XXI, Column H",{"$f":"SUMIFS('Schedule XXI'!$M$8:$M$57,'Schedule XXI'!$J$8:$J$57,$B106)","v":0},0.2,0]
[null,"Collateral Loans","Schedule XXI, Column H",{"$f":"SUMIFS('Schedule XXI'!$M$8:$M$57,'Schedule XXI'!$J$8:$J$57,$B107)","v":0},0.05,0]
[]
[null,"(h)  SUBTOTAL - OTHER ASSET CLASSES",null,{"$f":"SUM(D96:D108)","v":0},null,{"$f":"SUM(F96:F108)","v":0}]
[]
[null,"TOTAL CONCENTRATION RISK",null,{"$f":"D109+D93+D85+D72+D59+D46+D33+D20","v":0},null,{"$f":"F109+F93+F85+F72+F59+F46+F33+F20","v":0}]

{"sheet":"Concentration Risk","index":122,"n_rows":110,"n_cols":6,"rows_kept":110,"cut":false,"hidden":false,"merged":[[0,5,0,6]]}
["CONCENTRATION RISK (REVISED)",null,null,null,null,{"$f":"HYPERLINK(\"#'Index'!A1\",\"Return to Index\")","v":"Return to Index"}]
[{"$f":"'Company Information'!C7","v":"Enter Company Name"}]
[{"$f":"\"Concentration Risk\" & \"($\"&IF(CONFIGURATION!$B$12>1,MID(CONFIGURATION!$B$12,2,LEN(CONFIGURATION!$B$12)),\"\")&\")\"","v":"Concentration Risk($000)"},null,{"$f":" TEXT('Company Information'!C3,\"d mmmm yyyy\")","v":"31 December 2023"}]
[null,null,null,-1,-2,-3]
[]
[null,"ASSET ",null,null,"CAPITAL","REQUIRED"]
[null,"TYPE","STATEMENT SOURCE","EXPOSURE","FACTOR","CAPITAL"]
[]
[null,"(a) Cash and Cash Equivalents",null,"Cash and Cash Equivalent"]
[null,"BSCR Rating 0","Schedule XXIA, Column H",{"$f":"SUMIFS('Schedule XXIA'!$M$8:$M$57,'Schedule XXIA'!$J$8:$J$57,$D$9,'Schedule XXIA'!$L$8:$L$57,$B10)","v":0},{"$f":"+'Fixed Income Investments (Prior'!E83","v":0},{"$f":"MAX(0,(D10*E10))","v":0}]
[null,"BSCR Rating 1","Schedule XXIA, Column H",{"$f":"SUMIFS('Schedule XXIA'!$M$8:$M$57,'Schedule XXIA'!$J$8:$J$57,$D$9,'Schedule XXIA'!$L$8:$L$57,$B11)","v":0},{"$f":"+'Fixed Income Investments (Prior'!E84","v":1E-3},{"$f":"MAX(0,(D11*E11))","v":0}]
[null,"BSCR Rating 2","Schedule XXIA, Column H",{"$f":"SUMIFS('Schedule XXIA'!$M$8:$M$57,'Schedule XXIA'!$J$8:$J$57,$D$9,'Schedule XXIA'!$L$8:$L$57,$B12)","v":0},{"$f":"+'Fixed Income Investments (Prior'!E85","v":2E-3},0]
[null,"BSCR Rating 3","Schedule XXIA, Column H",{"$f":"SUMIFS('Schedule XXIA'!$M$8:$M$57,'Schedule XXIA'!$J$8:$J$57,$D$9,'Schedule XXIA'!$L$8:$L$57,$B13)","v":0},{"$f":"+'Fixed Income Investments (Prior'!E86","v":3.0000000000000001E-3},0]
[null,"BSCR Rating 4","Schedule XXIA, Column H",{"$f":"SUMIFS('Schedule XXIA'!$M$8:$M$57,'Schedule XXIA'!$J$8:$J$57,$D$9,'Schedule XXIA'!$L$8:$L$57,$B14)","v":0},{"$f":"+'Fixed Income Investments (Prior'!E87","v":5.0000000000000001E-3},0]
[null,"BSCR Rating 5","Schedule XXIA, Column H",{"$f":"SUMIFS('Schedule XXIA'!$M$8:$M$57,'Schedule XXIA'!$J$8:$J$57,$D$9,'Schedule XXIA'!$L$8:$L$57,$B15)","v":0},{"$f":"+'Fixed Income Investments (Prior'!E88","v":1.4999999999999999E-2},0]
[null,"BSCR Rating 6","Schedule XXIA, Column H",{"$f":"SUMIFS('Schedule XXIA'!$M$8:$M$57,'Schedule XXIA'!$J$8:$J$57,$D$9,'Schedule XXIA'!$L$8:$L$57,$B16)","v":0},{"$f":"+'Fixed Income Investments (Prior'!E89","v":0.04},0]
[null,"BSCR Rating 7","Schedule XXIA, Column H",{"$f":"SUMIFS('Schedule XXIA'!$M$8:$M$57,'Schedule XXIA'!$J$8:$J$57,$D$9,'Schedule XXIA'!$L$8:$L$57,$B17)","v":0},{"$f":"+'Fixed Income Investments (Prior'!E90","v":0.06},0]
[null,"BSCR Rating 8","Schedule XXIA, Column H",{"$f":"SUMIFS('Schedule XXIA'!$M$8:$M$57,'Schedule XXIA'!$J$8:$J$57,$D$9,'Schedule XXIA'!$L$8:$L$57,$B18)","v":0},{"$f":"+'Fixed Income Investments (Prior'!E91","v":0.09},0]
[]
[null,"(a)  SUBTOTAL - CASH AND CASH EQUIVALENTS",null,{"$f":"SUM(D9:D18)","v":0},null,{"$f":"SUM(F9:F18)","v":0}]
[]
[null,"(b) Corporate & Sovereign Bonds",null,"Corporate & Sovereign Bonds"]
[null,"BSCR Rating 0","Schedule XXIA, Column H",{"$f":"SUMIFS('Schedule XXIA'!$M$8:$M$57,'Schedule XXIA'!$K$8:$K$57,$D$22,'Schedule XXIA'!$L$8:$L$57,$B23)","v":0},{"$f":"+'Fixed Income Investments (Prior'!E12","v":0},{"$f":"MAX(0,(D23*E23))","v":0}]
[null,"BSCR Rating 1","Schedule XXIA, Column H",{"$f":"SUMIFS('Schedule XXIA'!$M$8:$M$57,'Schedule XXIA'!$K$8:$K$57,$D$22,'Schedule XXIA'!$L$8:$L$57,$B24)","v":0},{"$f":"+'Fixed Income Investments (Prior'!E13","v":4.0000000000000001E-3},{"$f":"MAX(0,(D24*E24))","v":0}]
[null,"BSCR Rating 2","Schedule XXIA, Column H",{"$f":"SUMIFS('Schedule XXIA'!$M$8:$M$57,'Schedule XXIA'!$K$8:$K$57,$D$22,'Schedule XXIA'!$L$8:$L$57,$B25)","v":0},{"$f":"+'Fixed Income Investments (Prior'!E14","v":8.0000000000000002E-3},0]
[null,"BSCR Rating 3","Schedule XXIA, Column H",{"$f":"SUMIFS('Schedule XXIA'!$M$8:$M$57,'Schedule XXIA'!$K$8:$K$57,$D$22,'Schedule XXIA'!$L$8:$L$57,$B26)","v":0},{"$f":"+'Fixed Income Investments (Prior'!E15","v":1.4999999999999999E-2},0]
[null,"BSCR Rating 4","Schedule XXIA, Column H",{"$f":"SUMIFS('Schedule XXIA'!$M$8:$M$57,'Schedule XXIA'!$K$8:$K$57,$D$22,'Schedule XXIA'!$L$8:$L$57,$B27)","v":0},{"$f":"+'Fixed Income Investments (Prior'!E16","v":0.03},0]
[null,"BSCR Rating 5","Schedule XXIA, Column H",{"$f":"SUMIFS('Schedule XXIA'!$M$8:$M$57,'Schedule XXIA'!$K$8:$K$57,$D$22,'Schedule XXIA'!$L$8:$L$57,$B28)","v":0},{"$f":"+'Fixed Income Investments (Prior'!E17","v":0.08},0]
[null,"BSCR Rating 6","Schedule XXIA, Column H",{"$f":"SUMIFS('Schedule XXIA'!$M$8:$M$57,'Schedule XXIA'!$K$8:$K$57,$D$22,'Schedule XXIA'!$L$8:$L$57,$B29)","v":0},{"$f":"+'Fixed Income Investments (Prior'!E18","v":0.15},0]
[null,"BSCR Rating 7","Schedule XXIA, Column H",{"$f":"SUMIFS('Schedule XXIA'!$M$8:$M$57,'Schedule XXIA'!$K$8:$K$57,$D$22,'Schedule XXIA'!$L$8:$L$57,$B30)","v":0},{"$f":"+'Fixed Income Investments (Prior'!E19","v":0.26300000000000001},0]
[null,"BSCR Rating 8","Schedule XXIA, Column H",{"$f":"SUMIFS('Schedule XXIA'!$M$8:$M$57,'Schedule XXIA'!$K$8:$K$57,$D$22,'Schedule XXIA'!$L$8:$L$57,$B31)","v":0},{"$f":"+'Fixed Income Investments (Prior'!E20","v":0.35},0]
[]
[null,"(b)  SUBTOTAL - CORPORATE & SOVEREIGN BONDS",null,{"$f":"SUM(D22:D31)","v":0},null,{"$f":"SUM(F22:F31)","v":0}]
[]
[null,"(c) Residential Mortage-Backed Securities",null,"Residential Mortgage-Backed Securities"]
[null,"BSCR Rating 0","Schedule XXIA, Column H",{"$f":"SUMIFS('Schedule XXIA'!$M$8:$M$57,'Schedule XXIA'!$K$8:$K$57,$D$35,'Schedule XXIA'!$L$8:$L$57,$B36)","v":0},0,{"$f":"MAX(0,(D36*E36))","v":0}]
[null,"BSCR Rating 1","Schedule XXIA, Column H",{"$f":"SUMIFS('Schedule XXIA'!$M$8:$M$57,'Schedule XXIA'!$K$8:$K$57,$D$35,'Schedule XXIA'!$L$8:$L$57,$B37)","v":0},{"$f":"+'Fixed Income Investments (Prior'!E27","v":6.0000000000000001E-3},{"$f":"MAX(0,(D37*E37))","v":0}]
[null,"BSCR Rating 2","Schedule XXIA, Column H",{"$f":"SUMIFS('Schedule XXIA'!$M$8:$M$57,'Schedule XXIA'!$K$8:$K$57,$D$35,'Schedule XXIA'!$L$8:$L$57,$B38)","v":0},{"$f":"+'Fixed Income Investments (Prior'!E28","v":1.2E-2},0]
[null,"BSCR Rating 3","Schedule XXIA, Column H",{"$f":"SUMIFS('Schedule XXIA'!$M$8:$M$57,'Schedule XXIA'!$K$8:$K$57,$D$35,'Schedule XXIA'!$L$8:$L$57,$B39)","v":0},{"$f":"+'Fixed Income Investments (Prior'!E29","v":0.02},0]
[null,"BSCR Rating 4","Schedule XXIA, Column H",{"$f":"SUMIFS('Schedule XXIA'!$M$8:$M$57,'Schedule XXIA'!$K$8:$K$57,$D$35,'Schedule XXIA'!$L$8:$L$57,$B40)","v":0},{"$f":"+'Fixed Income Investments (Prior'!E30","v":0.04},0]
[null,"BSCR Rating 5","Schedule XXIA, Column H",{"$f":"SUMIFS('Schedule XXIA'!$M$8:$M$57,'Schedule XXIA'!$K$8:$K$57,$D$35,'Schedule XXIA'!$L$8:$L$57,$B41)","v":0},{"$f":"+'Fixed Income Investments (Prior'!E31","v":0.11},0]
[null,"BSCR Rating 6","Schedule XXIA, Column H",{"$f":"SUMIFS('Schedule XXIA'!$M$8:$M$57,'Schedule XXIA'!$K$8:$K$57,$D$35,'Schedule XXIA'!$L$8:$L$57,$B42)","v":0},{"$f":"+'Fixed Income Investments (Prior'!E32","v":0.25},0]
[null,"BSCR Rating 7","Schedule XXIA, Column H",{"$f":"SUMIFS('Schedule XXIA'!$M$8:$M$57,'Schedule XXIA'!$K$8:$K$57,$D$35,'Schedule XXIA'!$L$8:$L$57,$B43)","v":0},{"$f":"+'Fixed Income Investments (Prior'!E33","v":0.35},0]
[null,"BSCR Rating 8","Schedule XXIA, Column H",{"$f":"SUMIFS('Schedule XXIA'!$M$8:$M$57,'Schedule XXIA'!$K$8:$K$57,$D$35,'Schedule XXIA'!$L$8:$L$57,$B44)","v":0},{"$f":"+'Fixed Income Investments (Prior'!E34","v":0.35},0]
[]
[null,"(c)  SUBTOTAL - RESIDENTIAL MORTGAGE-BACKED SECURITIES",null,{"$f":"SUM(D35:D44)","v":0},null,{"$f":"SUM(F35:F44)","v":0}]
[]
[null,"(d) Commercial Mortgage-Backed Securities / Asset Backed Securities",null,"Commercial Mortgage-Backed Securities"]
[null,"BSCR Rating 0","Schedule XXIA, Column H",{"$f":"SUMIFS('Schedule XXIA'!$M$8:$M$57,'Schedule XXIA'!$K$8:$K$57,$D$48,'Schedule XXIA'!$L$8:$L$57,$B49)","v":0},0,{"$f":"MAX(0,(D49*E49))","v":0}]
[null,"BSCR Rating 1","Schedule XXIA, Column H",{"$f":"SUMIFS('Schedule XXIA'!$M$8:$M$57,'Schedule XXIA'!$K$8:$K$57,$D$48,'Schedule XXIA'!$L$8:$L$57,$B50)","v":0},{"$f":"+'Fixed Income Investments (Prior'!E41","v":5.0000000000000001E-3},{"$f":"MAX(0,(D50*E50))","v":0}]
[null,"BSCR Rating 2","Schedule XXIA, Column H",{"$f":"SUMIFS('Schedule XXIA'!$M$8:$M$57,'Schedule XXIA'!$K$8:$K$57,$D$48,'Schedule XXIA'!$L$8:$L$57,$B51)","v":0},{"$f":"+'Fixed Income Investments (Prior'!E42","v":0.01},0]
[null,"BSCR Rating 3","Schedule XXIA, Column H",{"$f":"SUMIFS('Schedule XXIA'!$M$8:$M$57,'Schedule XXIA'!$K$8:$K$57,$D$48,'Schedule XXIA'!$L$8:$L$57,$B52)","v":0},{"$f":"+'Fixed Income Investments (Prior'!E43","v":1.7999999999999999E-2},0]
[null,"BSCR Rating 4","Schedule XXIA, Column H",{"$f":"SUMIFS('Schedule XXIA'!$M$8:$M$57,'Schedule XXIA'!$K$8:$K$57,$D$48,'Schedule XXIA'!$L$8:$L$57,$B53)","v":0},{"$f":"+'Fixed Income Investments (Prior'!E44","v":3.5000000000000003E-2},0]
[null,"BSCR Rating 5","Schedule XXIA, Column H",{"$f":"SUMIFS('Schedule XXIA'!$M$8:$M$57,'Schedule XXIA'!$K$8:$K$57,$D$48,'Schedule XXIA'!$L$8:$L$57,$B54)","v":0},{"$f":"+'Fixed Income Investments (Prior'!E45","v":0.1},0]
[null,"BSCR Rating 6","Schedule XXIA, Column H",{"$f":"SUMIFS('Schedule XXIA'!$M$8:$M$57,'Schedule XXIA'!$K$8:$K$57,$D$48,'Schedule XXIA'!$L$8:$L$57,$B55)","v":0},{"$f":"+'Fixed Income Investments (Prior'!E46","v":0.2},0]
[null,"BSCR Rating 7","Schedule XXIA, Column H",{"$f":"SUMIFS('Schedule XXIA'!$M$8:$M$57,'Schedule XXIA'!$K$8:$K$57,$D$48,'Schedule XXIA'!$L$8:$L$57,$B56)","v":0},{"$f":"+'Fixed Income Investments (Prior'!E47","v":0.3},0]
[null,"BSCR Rating 8","Schedule XXIA, Column H",{"$f":"SUMIFS('Schedule XXIA'!$M$8:$M$57,'Schedule XXIA'!$K$8:$K$57,$D$48,'Schedule XXIA'!$L$8:$L$57,$B57)","v":0},{"$f":"+'Fixed Income Investments (Prior'!E48","v":0.35},0]
[]
[null,"(d)  SUBTOTAL - COMMERCIAL MORTGAGE-BACKED SECURITIES / ASSET-BACKED SECURITIES",null,{"$f":"SUM(D48:D57)","v":0},null,{"$f":"SUM(F48:F57)","v":0}]
[]
[null,"(e) Bond Mutual Funds",null,"Bond Mutual Funds"]
[null,"BSCR Rating 0","Schedule XXIA, Column H",{"$f":"SUMIFS('Schedule XXIA'!$M$8:$M$57,'Schedule XXIA'!$K$8:$K$57,$D$61,'Schedule XXIA'!$L$8:$L$57,$B62)","v":0},{"$f":"+'Fixed Income Investments (Prior'!E56","v":0},{"$f":"MAX(0,(D62*E62))","v":0}]
[null,"BSCR Rating 1","Schedule XXIA, Column H",{"$f":"SUMIFS('Schedule XXIA'!$M$8:$M$57,'Schedule XXIA'!$K$8:$K$57,$D$61,'Schedule XXIA'!$L$8:$L$57,$B63)","v":0},{"$f":"+'Fixed Income Investments (Prior'!E57","v":4.0000000000000001E-3},{"$f":"MAX(0,(D63*E63))","v":0}]
[null,"BSCR Rating 2","Schedule XXIA, Column H",{"$f":"SUMIFS('Schedule XXIA'!$M$8:$M$57,'Schedule XXIA'!$K$8:$K$57,$D$61,'Schedule XXIA'!$L$8:$L$57,$B64)","v":0},{"$f":"+'Fixed Income Investments (Prior'!E58","v":8.0000000000000002E-3},0]
[null,"BSCR Rating 3","Schedule XXIA, Column H",{"$f":"SUMIFS('Schedule XXIA'!$M$8:$M$57,'Schedule XXIA'!$K$8:$K$57,$D$61,'Schedule XXIA'!$L$8:$L$57,$B65)","v":0},{"$f":"+'Fixed Income Investments (Prior'!E59","v":1.4999999999999999E-2},0]
[null,"BSCR Rating 4","Schedule XXIA, Column H",{"$f":"SUMIFS('Schedule XXIA'!$M$8:$M$57,'Schedule XXIA'!$K$8:$K$57,$D$61,'Schedule XXIA'!$L$8:$L$57,$B66)","v":0},{"$f":"+'Fixed Income Investments (Prior'!E60","v":0.03},0]
[null,"BSCR Rating 5","Schedule XXIA, Column H",{"$f":"SUMIFS('Schedule XXIA'!$M$8:$M$57,'Schedule XXIA'!$K$8:$K$57,$D$61,'Schedule XXIA'!$L$8:$L$57,$B67)","v":0},{"$f":"+'Fixed Income Investments (Prior'!E61","v":0.08},0]
[null,"BSCR Rating 6","Schedule XXIA, Column H",{"$f":"SUMIFS('Schedule XXIA'!$M$8:$M$57,'Schedule XXIA'!$K$8:$K$57,$D$61,'Schedule XXIA'!$L$8:$L$57,$B68)","v":0},{"$f":"+'Fixed Income Investments (Prior'!E62","v":0.15},0]
[null,"BSCR Rating 7","Schedule XXIA, Column H",{"$f":"SUMIFS('Schedule XXIA'!$M$8:$M$57,'Schedule XXIA'!$K$8:$K$57,$D$61,'Schedule XXIA'!$L$8:$L$57,$B69)","v":0},{"$f":"+'Fixed Income Investments (Prior'!E63","v":0.26300000000000001},0]
[null,"BSCR Rating 8","Schedule XXIA, Column H",{"$f":"SUMIFS('Schedule XXIA'!$M$8:$M$57,'Schedule XXIA'!$K$8:$K$57,$D$61,'Schedule XXIA'!$L$8:$L$57,$B70)","v":0},{"$f":"+'Fixed Income Investments (Prior'!E64","v":0.35},0]
[]
[null,"(e)  SUBTOTAL - BOND MUTUAL FUNDS",null,{"$f":"SUM(D61:D70)","v":0},null,{"$f":"SUM(F61:F70)","v":0}]
[]
[null,"(f) Preferred Shares",null,"Preferred Shares"]
[null,"BSCR Rating 0","Schedule XXIA, Column H",{"$f":"SUMIFS('Schedule XXIA'!$M$8:$M$57,'Schedule XXIA'!$J$8:$J$57,$D$74,'Schedule XXIA'!$L$8:$L$57,$B75)","v":0},0,{"$f":"MAX(0,(D75*E75))","v":0}]
[null,"BSCR Rating 1","Schedule XXIA, Column H",{"$f":"SUMIFS('Schedule XXIA'!$M$8:$M$57,'Schedule XXIA'!$J$8:$J$57,$D$74,'Schedule XXIA'!$L$8:$L$57,$B76)","v":0},6.0000000000000001E-3,{"$f":"MAX(0,(D76*E76))","v":0}]
[null,"BSCR Rating 2","Schedule XXIA, Column H",{"$f":"SUMIFS('Schedule XXIA'!$M$8:$M$57,'Schedule XXIA'!$J$8:$J$57,$D$74,'Schedule XXIA'!$L$8:$L$57,$B77)","v":0},1.2E-2,0]
[null,"BSCR Rating 3","Schedule XXIA, Column H",{"$f":"SUMIFS('Schedule XXIA'!$M$8:$M$57,'Schedule XXIA'!$J$8:$J$57,$D$74,'Schedule XXIA'!$L$8:$L$57,$B78)","v":0},0.02,0]
[null,"BSCR Rating 4","Schedule XXIA, Column H",{"$f":"SUMIFS('Schedule XXIA'!$M$8:$M$57,'Schedule XXIA'!$J$8:$J$57,$D$74,'Schedule XXIA'!$L$8:$L$57,$B79)","v":0},0.04,0]
[null,"BSCR Rating 5","Schedule XXIA, Column H",{"$f":"SUMIFS('Schedule XXIA'!$M$8:$M$57,'Schedule XXIA'!$J$8:$J$57,$D$74,'Schedule XXIA'!$L$8:$L$57,$B80)","v":0},0.11,0]
[null,"BSCR Rating 6","Schedule XXIA, Column H",{"$f":"SUMIFS('Schedule XXIA'!$M$8:$M$57,'Schedule XXIA'!$J$8:$J$57,$D$74,'Schedule XXIA'!$L$8:$L$57,$B81)","v":0},0.25,0]
[null,"BSCR Rating 7","Schedule XXIA, Column H",{"$f":"SUMIFS('Schedule XXIA'!$M$8:$M$57,'Schedule XXIA'!$J$8:$J$57,$D$74,'Schedule XXIA'!$L$8:$L$57,$B82)","v":0},0.35,0]
[null,"BSCR Rating 8","Schedule XXIA, Column H",{"$f":"SUMIFS('Schedule XXIA'!$M$8:$M$57,'Schedule XXIA'!$J$8:$J$57,$D$74,'Schedule XXIA'!$L$8:$L$57,$B83)","v":0},0.35,0]
[]
[null,"(f)  SUBTOTAL - PREFERRED SHARES",null,{"$f":"SUM(D74:D83)","v":0},null,{"$f":"SUM(F74:F83)","v":0}]
[]
[null,"(g) Mortgage Loans",null,{"$f":"+'Schedule XXIA'!C65","v":"MortgageLoanTypes"}]
[null,"Insured/Guaranteed Mortgages","Schedule XXIA, Column H",{"$f":"SUMIFS('Schedule XXIA'!$M$8:$M$57,'Schedule XXIA'!$J$8:$J$57,$D$87,'Schedule XXIA'!$K$8:$K$57,$B88)","v":0},{"$f":"'Fixed Income Investments'!H70","v":3.0000000000000001E-3},{"$f":"MAX(0,(D88*E88))","v":0}]
[null,"Other Commercial and Farm Mortgages","Schedule XXIA, Column H",{"$f":"SUMIFS('Schedule XXIA'!$M$8:$M$57,'Schedule XXIA'!$J$8:$J$57,$D$87,'Schedule XXIA'!$K$8:$K$57,$B89)","v":0},{"$f":"'Fixed Income Investments'!H71","v":0.05},{"$f":"MAX(0,(D89*E89))","v":0}]
[null,"Other Residential Mortgages","Schedule XXIA, Column H",{"$f":"SUMIFS('Schedule XXIA'!$M$8:$M$57,'Schedule XXIA'!$J$8:$J$57,$D$87,'Schedule XXIA'!$K$8:$K$57,$B90)","v":0},{"$f":"'Fixed Income Investments'!H72","v":1.4999999999999999E-2},{"$f":"MAX(0,(D90*E90))","v":0}]
[null,"Mortgages Not In Good Standing","Schedule XXIA, Column H",{"$f":"SUMIFS('Schedule XXIA'!$M$8:$M$57,'Schedule XXIA'!$J$8:$J$57,$D$87,'Schedule XXIA'!$K$8:$K$57,$B91)","v":0},{"$f":"'Fixed Income Investments'!H73","v":0.25},{"$f":"MAX(0,(D91*E91))","v":0}]
[]
[null,"(g)  SUBTOTAL - Mortgage Loans",null,{"$f":"SUM(D88:D91)","v":0},null,{"$f":"SUM(F88:F91)","v":0}]
[]
[null,"(h) Other Asset Classes"]
[null,"Infrastructure (Non-affiliate holdings, non-duration based)","Schedule XXIA, Column H",{"$f":"SUMIFS('Schedule XXIA'!$M$8:$M$57,'Schedule XXIA'!$J$8:$J$57,$B96)","v":0},0.25,{"$f":"MAX(0,(D96*E96))","v":0}]
[null,"Listed Equity Securities in Developed Markets","Schedule XXIA, Column H",{"$f":"SUMIFS('Schedule XXIA'!$M$8:$M$57,'Schedule XXIA'!$J$8:$J$57,$B97)","v":0},0.35,{"$f":"MAX(0,(D97*E97))","v":0}]
[null,"Other Equities","Schedule XXIA, Column H",{"$f":"SUMIFS('Schedule XXIA'!$M$8:$M$57,'Schedule XXIA'!$J$8:$J$57,$B98)","v":0},0.45,{"$f":"MAX(0,(D98*E98))","v":0}]
[null,"Strategic Holdings","Schedule XXIA, Column H",{"$f":"SUMIFS('Schedule XXIA'!$M$8:$M$57,'Schedule XXIA'!$J$8:$J$57,$B99)","v":0},0.2,{"$f":"MAX(0,(D99*E99))","v":0}]
[null,"Duration Based","Schedule XXIA, Column H",{"$f":"SUMIFS('Schedule XXIA'!$M$8:$M$57,'Schedule XXIA'!$J$8:$J$57,$B100)","v":0},{"$f":"'Equity Investments'!$N$12","v":0.2},{"$f":"MAX(0,(D100*E100))","v":0}]
[null,"Letters of Credit","Schedule XXIA, Column H",{"$f":"SUMIFS('Schedule XXIA'!$M$8:$M$57,'Schedule XXIA'!$J$8:$J$57,$B101)","v":0},{"$f":"'Equity Investments'!N29","v":0.2},{"$f":"MAX(0,(D101*E101))","v":0}]
[null,"Advances to Affiliates - ","Schedule XXIA, Column H",{"$f":"SUMIFS('Schedule XXIA'!$M$8:$M$57,'Schedule XXIA'!$J$8:$J$57,$B102)","v":0},0.05,0]
[null,"Policy Loans","Schedule XXIA, Column H",{"$f":"SUMIFS('Schedule XXIA'!$M$8:$M$57,'Schedule XXIA'!$J$8:$J$57,$B103)","v":0},0,0]
[null,"Equity Real Estate 1","Schedule XXIA, Column H",{"$f":"SUMIFS('Schedule XXIA'!$M$8:$M$57,'Schedule XXIA'!$J$8:$J$57,$B104)","v":0},0.1,0]
[null,"Equity Real Estate 2","Schedule XXIA, Column H",{"$f":"SUMIFS('Schedule XXIA'!$M$8:$M$57,'Schedule XXIA'!$J$8:$J$57,$B105)","v":0},0.2,0]
[null,"Collateral Loans","Schedule XXIA, Column H",{"$f":"SUMIFS('Schedule XXIA'!$M$8:$M$57,'Schedule XXIA'!$J$8:$J$57,$B106)","v":0},0.05,0]
[]
[null,"(h)  SUBTOTAL - OTHER ASSET CLASSES",null,{"$f":"SUM(D96:D107)","v":0},null,{"$f":"SUM(F96:F107)","v":0}]
[]
[null,"TOTAL CONCENTRATION RISK",null,{"$f":"D108+D93+D85+D72+D59+D46+D33+D20","v":0},null,{"$f":"F108+F93+F85+F72+F59+F46+F33+F20","v":0}]

{"sheet":"Geographic (old)","index":123,"n_rows":65,"n_cols":26,"rows_kept":65,"cut":false,"hidden":true,"merged":[[2,2,2,3]]}
["GEOGRAPHIC DIVERSIFICATION",null,null,null,null,null,null,null,null,null,null,null,null,null,null,null,null,null,null,null,null,null,null,null,null,{"$f":"HYPERLINK(\"#'Index'!A1\",\"Return to Index\")","v":"Return to Index"}]
[{"$f":"'Company Information'!C7","v":"Enter Company Name"}]
[{"$f":"\"Geographic Diversification\" & \"($\"&IF(CONFIGURATION!$B$12>1,MID(CONFIGURATION!$B$12,2,LEN(CONFIGURATION!$B$12)),\"\")&\")\"","v":"Geographic Diversification($000)"},null,{"$f":"'Company Information'!C3","v":"2023-12-31"}]
[]
[null,null,null,"TOTAL",null,null,null,"CHARGE"]
[null,"NET PREMIUMS WRITTEN BY ",null,"NET","SUM","DIVERSIFICATION","PREMIUM","DIVERSIFIED"]
[null,"LINE OF BUSINESS","STATEMENT SOURCE","PREMIUM","SQUARED","FACTOR","USED","PREMIUM",{"$f":"HYPERLINK(\"#'Zones'!c4\",\"Zone 1\")","v":"Zone 1"},{"$f":"HYPERLINK(\"#'Zones'!c13\",\"Zone 2\")","v":"Zone 2"},{"$f":"HYPERLINK(\"#'Zones'!c18\",\"Zone 3\")","v":"Zone 3"},{"$f":"HYPERLINK(\"#'Zones'!c26\",\"Zone 4\")","v":"Zone 4"},{"$f":"HYPERLINK(\"#'Zones'!c36\",\"Zone 5\")","v":"Zone 5"},{"$f":"HYPERLINK(\"#'Zones'!c46\",\"Zone 6\")","v":"Zone 6"},{"$f":"HYPERLINK(\"#'Zones'!c57\",\"Zone 7\")","v":"Zone 7"},{"$f":"HYPERLINK(\"#'Zones'!c68\",\"Zone 8\")","v":"Zone 8"},{"$f":"HYPERLINK(\"#'Zones'!c76\",\"Zone 9\")","v":"Zone 9"},{"$f":"HYPERLINK(\"#'Zones'!c84\",\"Zone 10\")","v":"Zone 10"},{"$f":"HYPERLINK(\"#'Zones'!c90\",\"Zone 11\")","v":"Zone 11"},{"$f":"HYPERLINK(\"#'Zones'!c94\",\"Zone 12\")","v":"Zone 12"},{"$f":"HYPERLINK(\"#'Zones'!c107\",\"Zone 13\")","v":"Zone 13"},{"$f":"HYPERLINK(\"#'Zones'!c112\",\"Zone 14\")","v":"Zone 14"},{"$f":"HYPERLINK(\"#'Zones'!c116\",\"Zone 15\")","v":"Zone 15"},{"$f":"HYPERLINK(\"#'Zones'!c121\",\"Zone 16\")","v":"Zone 16"},{"$f":"HYPERLINK(\"#'Zones'!c127\",\"Zone 17\")","v":"Zone 17"},{"$f":"HYPERLINK(\"#'Zones'!c133\",\"Zone 18\")","v":"Zone 18"}]
[]
[null,"Property Catastrophe","Schedule IV(a), Line (1)",{"$f":"SUM(I9:Z9)","v":0},{"$f":"SUMSQ(I9:Z9)","v":0},{"$f":"(IF(D9>0,E9/D9^2,1))","v":1},{"$f":"D9*(0.75+0.25*F9)","v":0},{"$f":"IF('Schedule IVC (EBS)'!AB9=\"True\",G9,'Schedule IVA (EBS)'!Q11)","v":0},{"$f":"+'Schedule IVC (EBS)'!E9","v":0},{"$f":"+'Schedule IVC (EBS)'!F9","v":0},{"$f":"+'Schedule IVC (EBS)'!G9","v":0},{"$f":"+'Schedule IVC (EBS)'!H9","v":0},{"$f":"+'Schedule IVC (EBS)'!I9","v":0},{"$f":"+'Schedule IVC (EBS)'!J9","v":0},{"$f":"+'Schedule IVC (EBS)'!K9","v":0},{"$f":"+'Schedule IVC (EBS)'!L9","v":0},{"$f":"+'Schedule IVC (EBS)'!M9","v":0},{"$f":"+'Schedule IVC (EBS)'!N9","v":0},{"$f":"+'Schedule IVC (EBS)'!O9","v":0},{"$f":"+'Schedule IVC (EBS)'!P9","v":0},{"$f":"+'Schedule IVC (EBS)'!Q9","v":0},{"$f":"+'Schedule IVC (EBS)'!R9","v":0},{"$f":"+'Schedule IVC (EBS)'!S9","v":0},{"$f":"+'Schedule IVC (EBS)'!T9","v":0},{"$f":"+'Schedule IVC (EBS)'!U9","v":0},{"$f":"+'Schedule IVC (EBS)'!V9","v":0}]
[null,"Property","Schedule IV(a), Line (2)",{"$f":"SUM(I10:Z10)","v":0},{"$f":"SUMSQ(I10:Z10)","v":0},{"$f":"(IF(D10>0,E10/D10^2,1))","v":1},{"$f":"D10*(0.75+0.25*F10)","v":0},{"$f":"IF('Schedule IVC (EBS)'!AB10=\"True\",G10,'Schedule IVA (EBS)'!Q12)","v":0},{"$f":"+'Schedule IVC (EBS)'!E10","v":0},{"$f":"+'Schedule IVC (EBS)'!F10","v":0},{"$f":"+'Schedule IVC (EBS)'!G10","v":0},{"$f":"+'Schedule IVC (EBS)'!H10","v":0},{"$f":"+'Schedule IVC (EBS)'!I10","v":0},{"$f":"+'Schedule IVC (EBS)'!J10","v":0},{"$f":"+'Schedule IVC (EBS)'!K10","v":0},{"$f":"+'Schedule IVC (EBS)'!L10","v":0},{"$f":"+'Schedule IVC (EBS)'!M10","v":0},{"$f":"+'Schedule IVC (EBS)'!N10","v":0},{"$f":"+'Schedule IVC (EBS)'!O10","v":0},{"$f":"+'Schedule IVC (EBS)'!P10","v":0},{"$f":"+'Schedule IVC (EBS)'!Q10","v":0},{"$f":"+'Schedule IVC (EBS)'!R10","v":0},{"$f":"+'Schedule IVC (EBS)'!S10","v":0},{"$f":"+'Schedule IVC (EBS)'!T10","v":0},{"$f":"+'Schedule IVC (EBS)'!U10","v":0},{"$f":"+'Schedule IVC (EBS)'!V10","v":0}]
[null,"Property Non-Proportional","Schedule IV(a), Line (3)",0,0,1,0,{"$f":"IF('Schedule IVC (EBS)'!AB11=\"True\",G11,'Schedule IVA (EBS)'!Q13)","v":0},{"$f":"+'Schedule IVC (EBS)'!E11","v":0},{"$f":"+'Schedule IVC (EBS)'!F11","v":0},{"$f":"+'Schedule IVC (EBS)'!G11","v":0},{"$f":"+'Schedule IVC (EBS)'!H11","v":0},{"$f":"+'Schedule IVC (EBS)'!I11","v":0},{"$f":"+'Schedule IVC (EBS)'!J11","v":0},{"$f":"+'Schedule IVC (EBS)'!K11","v":0},{"$f":"+'Schedule IVC (EBS)'!L11","v":0},{"$f":"+'Schedule IVC (EBS)'!M11","v":0},{"$f":"+'Schedule IVC (EBS)'!N11","v":0},{"$f":"+'Schedule IVC (EBS)'!O11","v":0},{"$f":"+'Schedule IVC (EBS)'!P11","v":0},{"$f":"+'Schedule IVC (EBS)'!Q11","v":0},{"$f":"+'Schedule IVC (EBS)'!R11","v":0},{"$f":"+'Schedule IVC (EBS)'!S11","v":0},{"$f":"+'Schedule IVC (EBS)'!T11","v":0},{"$f":"+'Schedule IVC (EBS)'!U11","v":0},{"$f":"+'Schedule IVC (EBS)'!V11","v":0}]
[null,"Personal Accident","Schedule IV(a), Line (4)",0,0,1,0,{"$f":"IF('Schedule IVC (EBS)'!AB12=\"True\",G12,'Schedule IVA (EBS)'!Q14)","v":0},{"$f":"+'Schedule IVC (EBS)'!E12","v":0},{"$f":"+'Schedule IVC (EBS)'!F12","v":0},{"$f":"+'Schedule IVC (EBS)'!G12","v":0},{"$f":"+'Schedule IVC (EBS)'!H12","v":0},{"$f":"+'Schedule IVC (EBS)'!I12","v":0},{"$f":"+'Schedule IVC (EBS)'!J12","v":0},{"$f":"+'Schedule IVC (EBS)'!K12","v":0},{"$f":"+'Schedule IVC (EBS)'!L12","v":0},{"$f":"+'Schedule IVC (EBS)'!M12","v":0},{"$f":"+'Schedule IVC (EBS)'!N12","v":0},{"$f":"+'Schedule IVC (EBS)'!O12","v":0},{"$f":"+'Schedule IVC (EBS)'!P12","v":0},{"$f":"+'Schedule IVC (EBS)'!Q12","v":0},{"$f":"+'Schedule IVC (EBS)'!R12","v":0},{"$f":"+'Schedule IVC (EBS)'!S12","v":0},{"$f":"+'Schedule IVC (EBS)'!T12","v":0},{"$f":"+'Schedule IVC (EBS)'!U12","v":0},{"$f":"+'Schedule IVC (EBS)'!V12","v":0}]
[null,"Personal Accident Non-Proportional","Schedule IV(a), Line (5)",0,0,1,0,{"$f":"IF('Schedule IVC (EBS)'!AB13=\"True\",G13,'Schedule IVA (EBS)'!Q15)","v":0},{"$f":"+'Schedule IVC (EBS)'!E13","v":0},{"$f":"+'Schedule IVC (EBS)'!F13","v":0},{"$f":"+'Schedule IVC (EBS)'!G13","v":0},{"$f":"+'Schedule IVC (EBS)'!H13","v":0},{"$f":"+'Schedule IVC (EBS)'!I13","v":0},{"$f":"+'Schedule IVC (EBS)'!J13","v":0},{"$f":"+'Schedule IVC (EBS)'!K13","v":0},{"$f":"+'Schedule IVC (EBS)'!L13","v":0},{"$f":"+'Schedule IVC (EBS)'!M13","v":0},{"$f":"+'Schedule IVC (EBS)'!N13","v":0},{"$f":"+'Schedule IVC (EBS)'!O13","v":0},{"$f":"+'Schedule IVC (EBS)'!P13","v":0},{"$f":"+'Schedule IVC (EBS)'!Q13","v":0},{"$f":"+'Schedule IVC (EBS)'!R13","v":0},{"$f":"+'Schedule IVC (EBS)'!S13","v":0},{"$f":"+'Schedule IVC (EBS)'!T13","v":0},{"$f":"+'Schedule IVC (EBS)'!U13","v":0},{"$f":"+'Schedule IVC (EBS)'!V13","v":0}]
[null,"Aviation","Schedule IV(a), Line (6)",0,0,1,0,{"$f":"IF('Schedule IVC (EBS)'!AB14=\"True\",G14,'Schedule IVA (EBS)'!Q16)","v":0},{"$f":"+'Schedule IVC (EBS)'!E14","v":0},{"$f":"+'Schedule IVC (EBS)'!F14","v":0},{"$f":"+'Schedule IVC (EBS)'!G14","v":0},{"$f":"+'Schedule IVC (EBS)'!H14","v":0},{"$f":"+'Schedule IVC (EBS)'!I14","v":0},{"$f":"+'Schedule IVC (EBS)'!J14","v":0},{"$f":"+'Schedule IVC (EBS)'!K14","v":0},{"$f":"+'Schedule IVC (EBS)'!L14","v":0},{"$f":"+'Schedule IVC (EBS)'!M14","v":0},{"$f":"+'Schedule IVC (EBS)'!N14","v":0},{"$f":"+'Schedule IVC (EBS)'!O14","v":0},{"$f":"+'Schedule IVC (EBS)'!P14","v":0},{"$f":"+'Schedule IVC (EBS)'!Q14","v":0},{"$f":"+'Schedule IVC (EBS)'!R14","v":0},{"$f":"+'Schedule IVC (EBS)'!S14","v":0},{"$f":"+'Schedule IVC (EBS)'!T14","v":0},{"$f":"+'Schedule IVC (EBS)'!U14","v":0},{"$f":"+'Schedule IVC (EBS)'!V14","v":0}]
[null,"Aviation Non-Proportional","Schedule IV(a), Line (7)",0,0,1,0,{"$f":"IF('Schedule IVC (EBS)'!AB15=\"True\",G15,'Schedule IVA (EBS)'!Q17)","v":0},{"$f":"+'Schedule IVC (EBS)'!E15","v":0},{"$f":"+'Schedule IVC (EBS)'!F15","v":0},{"$f":"+'Schedule IVC (EBS)'!G15","v":0},{"$f":"+'Schedule IVC (EBS)'!H15","v":0},{"$f":"+'Schedule IVC (EBS)'!I15","v":0},{"$f":"+'Schedule IVC (EBS)'!J15","v":0},{"$f":"+'Schedule IVC (EBS)'!K15","v":0},{"$f":"+'Schedule IVC (EBS)'!L15","v":0},{"$f":"+'Schedule IVC (EBS)'!M15","v":0},{"$f":"+'Schedule IVC (EBS)'!N15","v":0},{"$f":"+'Schedule IVC (EBS)'!O15","v":0},{"$f":"+'Schedule IVC (EBS)'!P15","v":0},{"$f":"+'Schedule IVC (EBS)'!Q15","v":0},{"$f":"+'Schedule IVC (EBS)'!R15","v":0},{"$f":"+'Schedule IVC (EBS)'!S15","v":0},{"$f":"+'Schedule IVC (EBS)'!T15","v":0},{"$f":"+'Schedule IVC (EBS)'!U15","v":0},{"$f":"+'Schedule IVC (EBS)'!V15","v":0}]
[null,"Credit / Surety","Schedule IV(a), Line (8)",0,0,1,0,{"$f":"IF('Schedule IVC (EBS)'!AB16=\"True\",G16,'Schedule IVA (EBS)'!Q18)","v":0},{"$f":"+'Schedule IVC (EBS)'!E16","v":0},{"$f":"+'Schedule IVC (EBS)'!F16","v":0},{"$f":"+'Schedule IVC (EBS)'!G16","v":0},{"$f":"+'Schedule IVC (EBS)'!H16","v":0},{"$f":"+'Schedule IVC (EBS)'!I16","v":0},{"$f":"+'Schedule IVC (EBS)'!J16","v":0},{"$f":"+'Schedule IVC (EBS)'!K16","v":0},{"$f":"+'Schedule IVC (EBS)'!L16","v":0},{"$f":"+'Schedule IVC (EBS)'!M16","v":0},{"$f":"+'Schedule IVC (EBS)'!N16","v":0},{"$f":"+'Schedule IVC (EBS)'!O16","v":0},{"$f":"+'Schedule IVC (EBS)'!P16","v":0},{"$f":"+'Schedule IVC (EBS)'!Q16","v":0},{"$f":"+'Schedule IVC (EBS)'!R16","v":0},{"$f":"+'Schedule IVC (EBS)'!S16","v":0},{"$f":"+'Schedule IVC (EBS)'!T16","v":0},{"$f":"+'Schedule IVC (EBS)'!U16","v":0},{"$f":"+'Schedule IVC (EBS)'!V16","v":0}]
[null,"Credit / Surety Non-Proportional","Schedule IV(a), Line (9)",0,0,1,0,{"$f":"IF('Schedule IVC (EBS)'!AB17=\"True\",G17,'Schedule IVA (EBS)'!Q19)","v":0},{"$f":"+'Schedule IVC (EBS)'!E17","v":0},{"$f":"+'Schedule IVC (EBS)'!F17","v":0},{"$f":"+'Schedule IVC (EBS)'!G17","v":0},{"$f":"+'Schedule IVC (EBS)'!H17","v":0},{"$f":"+'Schedule IVC (EBS)'!I17","v":0},{"$f":"+'Schedule IVC (EBS)'!J17","v":0},{"$f":"+'Schedule IVC (EBS)'!K17","v":0},{"$f":"+'Schedule IVC (EBS)'!L17","v":0},{"$f":"+'Schedule IVC (EBS)'!M17","v":0},{"$f":"+'Schedule IVC (EBS)'!N17","v":0},{"$f":"+'Schedule IVC (EBS)'!O17","v":0},{"$f":"+'Schedule IVC (EBS)'!P17","v":0},{"$f":"+'Schedule IVC (EBS)'!Q17","v":0},{"$f":"+'Schedule IVC (EBS)'!R17","v":0},{"$f":"+'Schedule IVC (EBS)'!S17","v":0},{"$f":"+'Schedule IVC (EBS)'!T17","v":0},{"$f":"+'Schedule IVC (EBS)'!U17","v":0},{"$f":"+'Schedule IVC (EBS)'!V17","v":0}]
[null,"Energy Offshore / Marine","Schedule IV(a), Line (10)",0,0,1,0,{"$f":"IF('Schedule IVC (EBS)'!AB18=\"True\",G18,'Schedule IVA (EBS)'!Q20)","v":0},{"$f":"+'Schedule IVC (EBS)'!E18","v":0},{"$f":"+'Schedule IVC (EBS)'!F18","v":0},{"$f":"+'Schedule IVC (EBS)'!G18","v":0},{"$f":"+'Schedule IVC (EBS)'!H18","v":0},{"$f":"+'Schedule IVC (EBS)'!I18","v":0},{"$f":"+'Schedule IVC (EBS)'!J18","v":0},{"$f":"+'Schedule IVC (EBS)'!K18","v":0},{"$f":"+'Schedule IVC (EBS)'!L18","v":0},{"$f":"+'Schedule IVC (EBS)'!M18","v":0},{"$f":"+'Schedule IVC (EBS)'!N18","v":0},{"$f":"+'Schedule IVC (EBS)'!O18","v":0},{"$f":"+'Schedule IVC (EBS)'!P18","v":0},{"$f":"+'Schedule IVC (EBS)'!Q18","v":0},{"$f":"+'Schedule IVC (EBS)'!R18","v":0},{"$f":"+'Schedule IVC (EBS)'!S18","v":0},{"$f":"+'Schedule IVC (EBS)'!T18","v":0},{"$f":"+'Schedule IVC (EBS)'!U18","v":0},{"$f":"+'Schedule IVC (EBS)'!V18","v":0}]
[null,"Energy Offshore / Marine Non-Proportional","Schedule IV(a), Line (11)",0,0,1,0,{"$f":"IF('Schedule IVC (EBS)'!AB19=\"True\",G19,'Schedule IVA (EBS)'!Q21)","v":0},{"$f":"+'Schedule IVC (EBS)'!E19","v":0},{"$f":"+'Schedule IVC (EBS)'!F19","v":0},{"$f":"+'Schedule IVC (EBS)'!G19","v":0},{"$f":"+'Schedule IVC (EBS)'!H19","v":0},{"$f":"+'Schedule IVC (EBS)'!I19","v":0},{"$f":"+'Schedule IVC (EBS)'!J19","v":0},{"$f":"+'Schedule IVC (EBS)'!K19","v":0},{"$f":"+'Schedule IVC (EBS)'!L19","v":0},{"$f":"+'Schedule IVC (EBS)'!M19","v":0},{"$f":"+'Schedule IVC (EBS)'!N19","v":0},{"$f":"+'Schedule IVC (EBS)'!O19","v":0},{"$f":"+'Schedule IVC (EBS)'!P19","v":0},{"$f":"+'Schedule IVC (EBS)'!Q19","v":0},{"$f":"+'Schedule IVC (EBS)'!R19","v":0},{"$f":"+'Schedule IVC (EBS)'!S19","v":0},{"$f":"+'Schedule IVC (EBS)'!T19","v":0},{"$f":"+'Schedule IVC (EBS)'!U19","v":0},{"$f":"+'Schedule IVC (EBS)'!V19","v":0}]
[null,"US Casualty","Schedule IV(a), Line (12)",0,0,1,0,{"$f":"IF('Schedule IVC (EBS)'!AB20=\"True\",G20,'Schedule IVA (EBS)'!Q22)","v":0},{"$f":"+'Schedule IVC (EBS)'!E20","v":0},{"$f":"+'Schedule IVC (EBS)'!F20","v":0},{"$f":"+'Schedule IVC (EBS)'!G20","v":0},{"$f":"+'Schedule IVC (EBS)'!H20","v":0},{"$f":"+'Schedule IVC (EBS)'!I20","v":0},{"$f":"+'Schedule IVC (EBS)'!J20","v":0},{"$f":"+'Schedule IVC (EBS)'!K20","v":0},{"$f":"+'Schedule IVC (EBS)'!L20","v":0},{"$f":"+'Schedule IVC (EBS)'!M20","v":0},{"$f":"+'Schedule IVC (EBS)'!N20","v":0},{"$f":"+'Schedule IVC (EBS)'!O20","v":0},{"$f":"+'Schedule IVC (EBS)'!P20","v":0},{"$f":"+'Schedule IVC (EBS)'!Q20","v":0},{"$f":"+'Schedule IVC (EBS)'!R20","v":0},{"$f":"+'Schedule IVC (EBS)'!S20","v":0},{"$f":"+'Schedule IVC (EBS)'!T20","v":0},{"$f":"+'Schedule IVC (EBS)'!U20","v":0},{"$f":"+'Schedule IVC (EBS)'!V20","v":0}]
[null,"US Casualty Non-Proportional","Schedule IV(a), Line (13)",0,0,1,0,{"$f":"IF('Schedule IVC (EBS)'!AB21=\"True\",G21,'Schedule IVA (EBS)'!Q23)","v":0},{"$f":"+'Schedule IVC (EBS)'!E21","v":0},{"$f":"+'Schedule IVC (EBS)'!F21","v":0},{"$f":"+'Schedule IVC (EBS)'!G21","v":0},{"$f":"+'Schedule IVC (EBS)'!H21","v":0},{"$f":"+'Schedule IVC (EBS)'!I21","v":0},{"$f":"+'Schedule IVC (EBS)'!J21","v":0},{"$f":"+'Schedule IVC (EBS)'!K21","v":0},{"$f":"+'Schedule IVC (EBS)'!L21","v":0},{"$f":"+'Schedule IVC (EBS)'!M21","v":0},{"$f":"+'Schedule IVC (EBS)'!N21","v":0},{"$f":"+'Schedule IVC (EBS)'!O21","v":0},{"$f":"+'Schedule IVC (EBS)'!P21","v":0},{"$f":"+'Schedule IVC (EBS)'!Q21","v":0},{"$f":"+'Schedule IVC (EBS)'!R21","v":0},{"$f":"+'Schedule IVC (EBS)'!S21","v":0},{"$f":"+'Schedule IVC (EBS)'!T21","v":0},{"$f":"+'Schedule IVC (EBS)'!U21","v":0},{"$f":"+'Schedule IVC (EBS)'!V21","v":0}]
[null,"US Professional","Schedule IV(a), Line (14)",0,0,1,0,{"$f":"IF('Schedule IVC (EBS)'!AB22=\"True\",G22,'Schedule IVA (EBS)'!Q24)","v":0},{"$f":"+'Schedule IVC (EBS)'!E22","v":0},{"$f":"+'Schedule IVC (EBS)'!F22","v":0},{"$f":"+'Schedule IVC (EBS)'!G22","v":0},{"$f":"+'Schedule IVC (EBS)'!H22","v":0},{"$f":"+'Schedule IVC (EBS)'!I22","v":0},{"$f":"+'Schedule IVC (EBS)'!J22","v":0},{"$f":"+'Schedule IVC (EBS)'!K22","v":0},{"$f":"+'Schedule IVC (EBS)'!L22","v":0},{"$f":"+'Schedule IVC (EBS)'!M22","v":0},{"$f":"+'Schedule IVC (EBS)'!N22","v":0},{"$f":"+'Schedule IVC (EBS)'!O22","v":0},{"$f":"+'Schedule IVC (EBS)'!P22","v":0},{"$f":"+'Schedule IVC (EBS)'!Q22","v":0},{"$f":"+'Schedule IVC (EBS)'!R22","v":0},{"$f":"+'Schedule IVC (EBS)'!S22","v":0},{"$f":"+'Schedule IVC (EBS)'!T22","v":0},{"$f":"+'Schedule IVC (EBS)'!U22","v":0},{"$f":"+'Schedule IVC (EBS)'!V22","v":0}]
[null,"US Professional Non-Proportional","Schedule IV(a), Line (15)",0,0,1,0,{"$f":"IF('Schedule IVC (EBS)'!AB23=\"True\",G23,'Schedule IVA (EBS)'!Q25)","v":0},{"$f":"+'Schedule IVC (EBS)'!E23","v":0},{"$f":"+'Schedule IVC (EBS)'!F23","v":0},{"$f":"+'Schedule IVC (EBS)'!G23","v":0},{"$f":"+'Schedule IVC (EBS)'!H23","v":0},{"$f":"+'Schedule IVC (EBS)'!I23","v":0},{"$f":"+'Schedule IVC (EBS)'!J23","v":0},{"$f":"+'Schedule IVC (EBS)'!K23","v":0},{"$f":"+'Schedule IVC (EBS)'!L23","v":0},{"$f":"+'Schedule IVC (EBS)'!M23","v":0},{"$f":"+'Schedule IVC (EBS)'!N23","v":0},{"$f":"+'Schedule IVC (EBS)'!O23","v":0},{"$f":"+'Schedule IVC (EBS)'!P23","v":0},{"$f":"+'Schedule IVC (EBS)'!Q23","v":0},{"$f":"+'Schedule IVC (EBS)'!R23","v":0},{"$f":"+'Schedule IVC (EBS)'!S23","v":0},{"$f":"+'Schedule IVC (EBS)'!T23","v":0},{"$f":"+'Schedule IVC (EBS)'!U23","v":0},{"$f":"+'Schedule IVC (EBS)'!V23","v":0}]
[null,"US Specialty","Schedule IV(a), Line (16)",0,0,1,0,{"$f":"IF('Schedule IVC (EBS)'!AB24=\"True\",G24,'Schedule IVA (EBS)'!Q26)","v":0},{"$f":"+'Schedule IVC (EBS)'!E24","v":0},{"$f":"+'Schedule IVC (EBS)'!F24","v":0},{"$f":"+'Schedule IVC (EBS)'!G24","v":0},{"$f":"+'Schedule IVC (EBS)'!H24","v":0},{"$f":"+'Schedule IVC (EBS)'!I24","v":0},{"$f":"+'Schedule IVC (EBS)'!J24","v":0},{"$f":"+'Schedule IVC (EBS)'!K24","v":0},{"$f":"+'Schedule IVC (EBS)'!L24","v":0},{"$f":"+'Schedule IVC (EBS)'!M24","v":0},{"$f":"+'Schedule IVC (EBS)'!N24","v":0},{"$f":"+'Schedule IVC (EBS)'!O24","v":0},{"$f":"+'Schedule IVC (EBS)'!P24","v":0},{"$f":"+'Schedule IVC (EBS)'!Q24","v":0},{"$f":"+'Schedule IVC (EBS)'!R24","v":0},{"$f":"+'Schedule IVC (EBS)'!S24","v":0},{"$f":"+'Schedule IVC (EBS)'!T24","v":0},{"$f":"+'Schedule IVC (EBS)'!U24","v":0},{"$f":"+'Schedule IVC (EBS)'!V24","v":0}]
[null,"US Specialty Non-Proportional","Schedule IV(a), Line (17)",0,0,1,0,{"$f":"IF('Schedule IVC (EBS)'!AB25=\"True\",G25,'Schedule IVA (EBS)'!Q27)","v":0},{"$f":"+'Schedule IVC (EBS)'!E25","v":0},{"$f":"+'Schedule IVC (EBS)'!F25","v":0},{"$f":"+'Schedule IVC (EBS)'!G25","v":0},{"$f":"+'Schedule IVC (EBS)'!H25","v":0},{"$f":"+'Schedule IVC (EBS)'!I25","v":0},{"$f":"+'Schedule IVC (EBS)'!J25","v":0},{"$f":"+'Schedule IVC (EBS)'!K25","v":0},{"$f":"+'Schedule IVC (EBS)'!L25","v":0},{"$f":"+'Schedule IVC (EBS)'!M25","v":0},{"$f":"+'Schedule IVC (EBS)'!N25","v":0},{"$f":"+'Schedule IVC (EBS)'!O25","v":0},{"$f":"+'Schedule IVC (EBS)'!P25","v":0},{"$f":"+'Schedule IVC (EBS)'!Q25","v":0},{"$f":"+'Schedule IVC (EBS)'!R25","v":0},{"$f":"+'Schedule IVC (EBS)'!S25","v":0},{"$f":"+'Schedule IVC (EBS)'!T25","v":0},{"$f":"+'Schedule IVC (EBS)'!U25","v":0},{"$f":"+'Schedule IVC (EBS)'!V25","v":0}]
[null,"International Motor","Schedule IV(a), Line (18)",0,0,1,0,{"$f":"IF('Schedule IVC (EBS)'!AB26=\"True\",G26,'Schedule IVA (EBS)'!Q28)","v":0},{"$f":"+'Schedule IVC (EBS)'!E26","v":0},{"$f":"+'Schedule IVC (EBS)'!F26","v":0},{"$f":"+'Schedule IVC (EBS)'!G26","v":0},{"$f":"+'Schedule IVC (EBS)'!H26","v":0},{"$f":"+'Schedule IVC (EBS)'!I26","v":0},{"$f":"+'Schedule IVC (EBS)'!J26","v":0},{"$f":"+'Schedule IVC (EBS)'!K26","v":0},{"$f":"+'Schedule IVC (EBS)'!L26","v":0},{"$f":"+'Schedule IVC (EBS)'!M26","v":0},{"$f":"+'Schedule IVC (EBS)'!N26","v":0},{"$f":"+'Schedule IVC (EBS)'!O26","v":0},{"$f":"+'Schedule IVC (EBS)'!P26","v":0},{"$f":"+'Schedule IVC (EBS)'!Q26","v":0},{"$f":"+'Schedule IVC (EBS)'!R26","v":0},{"$f":"+'Schedule IVC (EBS)'!S26","v":0},{"$f":"+'Schedule IVC (EBS)'!T26","v":0},{"$f":"+'Schedule IVC (EBS)'!U26","v":0},{"$f":"+'Schedule IVC (EBS)'!V26","v":0}]
[null,"International Motor Non-Proportional","Schedule IV(a), Line (19)",0,0,1,0,{"$f":"IF('Schedule IVC (EBS)'!AB27=\"True\",G27,'Schedule IVA (EBS)'!Q29)","v":0},{"$f":"+'Schedule IVC (EBS)'!E27","v":0},{"$f":"+'Schedule IVC (EBS)'!F27","v":0},{"$f":"+'Schedule IVC (EBS)'!G27","v":0},{"$f":"+'Schedule IVC (EBS)'!H27","v":0},{"$f":"+'Schedule IVC (EBS)'!I27","v":0},{"$f":"+'Schedule IVC (EBS)'!J27","v":0},{"$f":"+'Schedule IVC (EBS)'!K27","v":0},{"$f":"+'Schedule IVC (EBS)'!L27","v":0},{"$f":"+'Schedule IVC (EBS)'!M27","v":0},{"$f":"+'Schedule IVC (EBS)'!N27","v":0},{"$f":"+'Schedule IVC (EBS)'!O27","v":0},{"$f":"+'Schedule IVC (EBS)'!P27","v":0},{"$f":"+'Schedule IVC (EBS)'!Q27","v":0},{"$f":"+'Schedule IVC (EBS)'!R27","v":0},{"$f":"+'Schedule IVC (EBS)'!S27","v":0},{"$f":"+'Schedule IVC (EBS)'!T27","v":0},{"$f":"+'Schedule IVC (EBS)'!U27","v":0},{"$f":"+'Schedule IVC (EBS)'!V27","v":0}]
[null,"International Casualty Non-Motor","Schedule IV(a), Line (20)",0,0,1,0,{"$f":"IF('Schedule IVC (EBS)'!AB28=\"True\",G28,'Schedule IVA (EBS)'!Q30)","v":0},{"$f":"+'Schedule IVC (EBS)'!E28","v":0},{"$f":"+'Schedule IVC (EBS)'!F28","v":0},{"$f":"+'Schedule IVC (EBS)'!G28","v":0},{"$f":"+'Schedule IVC (EBS)'!H28","v":0},{"$f":"+'Schedule IVC (EBS)'!I28","v":0},{"$f":"+'Schedule IVC (EBS)'!J28","v":0},{"$f":"+'Schedule IVC (EBS)'!K28","v":0},{"$f":"+'Schedule IVC (EBS)'!L28","v":0},{"$f":"+'Schedule IVC (EBS)'!M28","v":0},{"$f":"+'Schedule IVC (EBS)'!N28","v":0},{"$f":"+'Schedule IVC (EBS)'!O28","v":0},{"$f":"+'Schedule IVC (EBS)'!P28","v":0},{"$f":"+'Schedule IVC (EBS)'!Q28","v":0},{"$f":"+'Schedule IVC (EBS)'!R28","v":0},{"$f":"+'Schedule IVC (EBS)'!S28","v":0},{"$f":"+'Schedule IVC (EBS)'!T28","v":0},{"$f":"+'Schedule IVC (EBS)'!U28","v":0},{"$f":"+'Schedule IVC (EBS)'!V28","v":0}]
[null,"International Casualty Non-Motor Non-Proportional","Schedule IV(a), Line (21)",0,0,1,0,{"$f":"IF('Schedule IVC (EBS)'!AB29=\"True\",G29,'Schedule IVA (EBS)'!Q31)","v":0},{"$f":"+'Schedule IVC (EBS)'!E29","v":0},{"$f":"+'Schedule IVC (EBS)'!F29","v":0},{"$f":"+'Schedule IVC (EBS)'!G29","v":0},{"$f":"+'Schedule IVC (EBS)'!H29","v":0},{"$f":"+'Schedule IVC (EBS)'!I29","v":0},{"$f":"+'Schedule IVC (EBS)'!J29","v":0},{"$f":"+'Schedule IVC (EBS)'!K29","v":0},{"$f":"+'Schedule IVC (EBS)'!L29","v":0},{"$f":"+'Schedule IVC (EBS)'!M29","v":0},{"$f":"+'Schedule IVC (EBS)'!N29","v":0},{"$f":"+'Schedule IVC (EBS)'!O29","v":0},{"$f":"+'Schedule IVC (EBS)'!P29","v":0},{"$f":"+'Schedule IVC (EBS)'!Q29","v":0},{"$f":"+'Schedule IVC (EBS)'!R29","v":0},{"$f":"+'Schedule IVC (EBS)'!S29","v":0},{"$f":"+'Schedule IVC (EBS)'!T29","v":0},{"$f":"+'Schedule IVC (EBS)'!U29","v":0},{"$f":"+'Schedule IVC (EBS)'!V29","v":0}]
[null,"Retro Property","Schedule IV(a), Line (22)",0,0,1,0,{"$f":"IF('Schedule IVC (EBS)'!AB30=\"True\",G30,'Schedule IVA (EBS)'!Q32)","v":0},{"$f":"+'Schedule IVC (EBS)'!E30","v":0},{"$f":"+'Schedule IVC (EBS)'!F30","v":0},{"$f":"+'Schedule IVC (EBS)'!G30","v":0},{"$f":"+'Schedule IVC (EBS)'!H30","v":0},{"$f":"+'Schedule IVC (EBS)'!I30","v":0},{"$f":"+'Schedule IVC (EBS)'!J30","v":0},{"$f":"+'Schedule IVC (EBS)'!K30","v":0},{"$f":"+'Schedule IVC (EBS)'!L30","v":0},{"$f":"+'Schedule IVC (EBS)'!M30","v":0},{"$f":"+'Schedule IVC (EBS)'!N30","v":0},{"$f":"+'Schedule IVC (EBS)'!O30","v":0},{"$f":"+'Schedule IVC (EBS)'!P30","v":0},{"$f":"+'Schedule IVC (EBS)'!Q30","v":0},{"$f":"+'Schedule IVC (EBS)'!R30","v":0},{"$f":"+'Schedule IVC (EBS)'!S30","v":0},{"$f":"+'Schedule IVC (EBS)'!T30","v":0},{"$f":"+'Schedule IVC (EBS)'!U30","v":0},{"$f":"+'Schedule IVC (EBS)'!V30","v":0}]
[null,"Structured / Finite Reinsurance","Schedule IV(a), Line (23)",0,0,1,0,{"$f":"IF('Schedule IVC (EBS)'!AB31=\"True\",G31,'Schedule IVA (EBS)'!Q33)","v":0},{"$f":"+'Schedule IVC (EBS)'!E31","v":0},{"$f":"+'Schedule IVC (EBS)'!F31","v":0},{"$f":"+'Schedule IVC (EBS)'!G31","v":0},{"$f":"+'Schedule IVC (EBS)'!H31","v":0},{"$f":"+'Schedule IVC (EBS)'!I31","v":0},{"$f":"+'Schedule IVC (EBS)'!J31","v":0},{"$f":"+'Schedule IVC (EBS)'!K31","v":0},{"$f":"+'Schedule IVC (EBS)'!L31","v":0},{"$f":"+'Schedule IVC (EBS)'!M31","v":0},{"$f":"+'Schedule IVC (EBS)'!N31","v":0},{"$f":"+'Schedule IVC (EBS)'!O31","v":0},{"$f":"+'Schedule IVC (EBS)'!P31","v":0},{"$f":"+'Schedule IVC (EBS)'!Q31","v":0},{"$f":"+'Schedule IVC (EBS)'!R31","v":0},{"$f":"+'Schedule IVC (EBS)'!S31","v":0},{"$f":"+'Schedule IVC (EBS)'!T31","v":0},{"$f":"+'Schedule IVC (EBS)'!U31","v":0},{"$f":"+'Schedule IVC (EBS)'!V31","v":0}]
[null,"Health","Schedule IV(a), Line (24)",0,0,1,0,{"$f":"IF('Schedule IVC (EBS)'!AB32=\"True\",G32,'Schedule IVA (EBS)'!Q34)","v":0},{"$f":"+'Schedule IVC (EBS)'!E32","v":0},{"$f":"+'Schedule IVC (EBS)'!F32","v":0},{"$f":"+'Schedule IVC (EBS)'!G32","v":0},{"$f":"+'Schedule IVC (EBS)'!H32","v":0},{"$f":"+'Schedule IVC (EBS)'!I32","v":0},{"$f":"+'Schedule IVC (EBS)'!J32","v":0},{"$f":"+'Schedule IVC (EBS)'!K32","v":0},{"$f":"+'Schedule IVC (EBS)'!L32","v":0},{"$f":"+'Schedule IVC (EBS)'!M32","v":0},{"$f":"+'Schedule IVC (EBS)'!N32","v":0},{"$f":"+'Schedule IVC (EBS)'!O32","v":0},{"$f":"+'Schedule IVC (EBS)'!P32","v":0},{"$f":"+'Schedule IVC (EBS)'!Q32","v":0},{"$f":"+'Schedule IVC (EBS)'!R32","v":0},{"$f":"+'Schedule IVC (EBS)'!S32","v":0},{"$f":"+'Schedule IVC (EBS)'!T32","v":0},{"$f":"+'Schedule IVC (EBS)'!U32","v":0},{"$f":"+'Schedule IVC (EBS)'!V32","v":0}]
[]
[null,"(a) TOTAL",null,{"$f":"SUM(D9:D32)","v":0},{"$f":"SUM(E9:E32)","v":0},null,{"$f":"SUM(G9:G32)","v":0},0,0,0,0,0,0,0,0,0,0,0,0,0,0,0,0,0,0,0]
[]
[null,null,null,"TOTAL",null,null,null,"CHARGE"]
[null,"NET LOSS PROVISION BY ",null,"NET","SUM","DIVERSIFICATION","RESERVE","DIVERSIFIED"]
[null,"LINE OF BUSINESS","STATEMENT SOURCE","RESERVE","SQUARED","FACTOR","USED","RESERVE",{"$f":"HYPERLINK(\"#'Zones'!c4\",\"Zone 1\")","v":"Zone 1"},{"$f":"HYPERLINK(\"#'Zones'!c13\",\"Zone 2\")","v":"Zone 2"},{"$f":"HYPERLINK(\"#'Zones'!c18\",\"Zone 3\")","v":"Zone 3"},{"$f":"HYPERLINK(\"#'Zones'!c26\",\"Zone 4\")","v":"Zone 4"},{"$f":"HYPERLINK(\"#'Zones'!c36\",\"Zone 5\")","v":"Zone 5"},{"$f":"HYPERLINK(\"#'Zones'!c46\",\"Zone 6\")","v":"Zone 6"},{"$f":"HYPERLINK(\"#'Zones'!c57\",\"Zone 7\")","v":"Zone 7"},{"$f":"HYPERLINK(\"#'Zones'!c68\",\"Zone 8\")","v":"Zone 8"},{"$f":"HYPERLINK(\"#'Zones'!c76\",\"Zone 9\")","v":"Zone 9"},{"$f":"HYPERLINK(\"#'Zones'!c84\",\"Zone 10\")","v":"Zone 10"},{"$f":"HYPERLINK(\"#'Zones'!c90\",\"Zone 11\")","v":"Zone 11"},{"$f":"HYPERLINK(\"#'Zones'!c94\",\"Zone 12\")","v":"Zone 12"},{"$f":"HYPERLINK(\"#'Zones'!c107\",\"Zone 13\")","v":"Zone 13"},{"$f":"HYPERLINK(\"#'Zones'!c112\",\"Zone 14\")","v":"Zone 14"},{"$f":"HYPERLINK(\"#'Zones'!c116\",\"Zone 15\")","v":"Zone 15"},{"$f":"HYPERLINK(\"#'Zones'!c121\",\"Zone 16\")","v":"Zone 16"},{"$f":"HYPERLINK(\"#'Zones'!c127\",\"Zone 17\")","v":"Zone 17"},{"$f":"HYPERLINK(\"#'Zones'!c133\",\"Zone 18\")","v":"Zone 18"}]
[]
[null,"Property Catastrophe","Schedule III(a), Line (1)",{"$f":"SUM(I40:Z40)","v":0},{"$f":"SUMSQ(I40:Z40)","v":0},{"$f":"(IF(D40>0,E40/D40^2,1))","v":1},{"$f":"D40*(0.75+0.25*F40)","v":0},{"$f":"IF('Schedule IIIA (EBS)'!AB10=\"TRUE\",G40,'Schedule III (EBS)'!F10)","v":0},{"$f":"'Schedule IIIA (EBS)'!E10","v":0},{"$f":"'Schedule IIIA (EBS)'!F10","v":0},{"$f":"'Schedule IIIA (EBS)'!G10","v":0},{"$f":"'Schedule IIIA (EBS)'!H10","v":0},{"$f":"'Schedule IIIA (EBS)'!I10","v":0},{"$f":"'Schedule IIIA (EBS)'!J10","v":0},{"$f":"'Schedule IIIA (EBS)'!K10","v":0},{"$f":"'Schedule IIIA (EBS)'!L10","v":0},{"$f":"'Schedule IIIA (EBS)'!M10","v":0},{"$f":"'Schedule IIIA (EBS)'!N10","v":0},{"$f":"'Schedule IIIA (EBS)'!O10","v":0},{"$f":"'Schedule IIIA (EBS)'!P10","v":0},{"$f":"'Schedule IIIA (EBS)'!Q10","v":0},{"$f":"'Schedule IIIA (EBS)'!R10","v":0},{"$f":"'Schedule IIIA (EBS)'!S10","v":0},{"$f":"'Schedule IIIA (EBS)'!T10","v":0},{"$f":"'Schedule IIIA (EBS)'!U10","v":0},{"$f":"'Schedule IIIA (EBS)'!V10","v":0}]
[null,"Property","Schedule III(a), Line (2)",{"$f":"SUM(I41:Z41)","v":0},{"$f":"SUMSQ(I41:Z41)","v":0},{"$f":"(IF(D41>0,E41/D41^2,1))","v":1},{"$f":"D41*(0.75+0.25*F41)","v":0},{"$f":"IF('Schedule IIIA (EBS)'!AB11=\"TRUE\",G41,'Schedule III (EBS)'!F11)","v":0},{"$f":"'Schedule IIIA (EBS)'!E11","v":0},{"$f":"'Schedule IIIA (EBS)'!F11","v":0},{"$f":"'Schedule IIIA (EBS)'!G11","v":0},{"$f":"'Schedule IIIA (EBS)'!H11","v":0},{"$f":"'Schedule IIIA (EBS)'!I11","v":0},{"$f":"'Schedule IIIA (EBS)'!J11","v":0},{"$f":"'Schedule IIIA (EBS)'!K11","v":0},{"$f":"'Schedule IIIA (EBS)'!L11","v":0},{"$f":"'Schedule IIIA (EBS)'!M11","v":0},{"$f":"'Schedule IIIA (EBS)'!N11","v":0},{"$f":"'Schedule IIIA (EBS)'!O11","v":0},{"$f":"'Schedule IIIA (EBS)'!P11","v":0},{"$f":"'Schedule IIIA (EBS)'!Q11","v":0},{"$f":"'Schedule IIIA (EBS)'!R11","v":0},{"$f":"'Schedule IIIA (EBS)'!S11","v":0},{"$f":"'Schedule IIIA (EBS)'!T11","v":0},{"$f":"'Schedule IIIA (EBS)'!U11","v":0},{"$f":"'Schedule IIIA (EBS)'!V11","v":0}]
[null,"Property Non-Proportional","Schedule III(a), Line (3)",0,0,1,0,{"$f":"IF('Schedule IIIA (EBS)'!AB12=\"TRUE\",G42,'Schedule III (EBS)'!F12)","v":0},{"$f":"'Schedule IIIA (EBS)'!E12","v":0},{"$f":"'Schedule IIIA (EBS)'!F12","v":0},{"$f":"'Schedule IIIA (EBS)'!G12","v":0},{"$f":"'Schedule IIIA (EBS)'!H12","v":0},{"$f":"'Schedule IIIA (EBS)'!I12","v":0},{"$f":"'Schedule IIIA (EBS)'!J12","v":0},{"$f":"'Schedule IIIA (EBS)'!K12","v":0},{"$f":"'Schedule IIIA (EBS)'!L12","v":0},{"$f":"'Schedule IIIA (EBS)'!M12","v":0},{"$f":"'Schedule IIIA (EBS)'!N12","v":0},{"$f":"'Schedule IIIA (EBS)'!O12","v":0},{"$f":"'Schedule IIIA (EBS)'!P12","v":0},{"$f":"'Schedule IIIA (EBS)'!Q12","v":0},{"$f":"'Schedule IIIA (EBS)'!R12","v":0},{"$f":"'Schedule IIIA (EBS)'!S12","v":0},{"$f":"'Schedule IIIA (EBS)'!T12","v":0},{"$f":"'Schedule IIIA (EBS)'!U12","v":0},{"$f":"'Schedule IIIA (EBS)'!V12","v":0}]
[null,"Personal Accident","Schedule III(a), Line (4)",0,0,1,0,{"$f":"IF('Schedule IIIA (EBS)'!AB13=\"TRUE\",G43,'Schedule III (EBS)'!F13)","v":0},{"$f":"'Schedule IIIA (EBS)'!E13","v":0},{"$f":"'Schedule IIIA (EBS)'!F13","v":0},{"$f":"'Schedule IIIA (EBS)'!G13","v":0},{"$f":"'Schedule IIIA (EBS)'!H13","v":0},{"$f":"'Schedule IIIA (EBS)'!I13","v":0},{"$f":"'Schedule IIIA (EBS)'!J13","v":0},{"$f":"'Schedule IIIA (EBS)'!K13","v":0},{"$f":"'Schedule IIIA (EBS)'!L13","v":0},{"$f":"'Schedule IIIA (EBS)'!M13","v":0},{"$f":"'Schedule IIIA (EBS)'!N13","v":0},{"$f":"'Schedule IIIA (EBS)'!O13","v":0},{"$f":"'Schedule IIIA (EBS)'!P13","v":0},{"$f":"'Schedule IIIA (EBS)'!Q13","v":0},{"$f":"'Schedule IIIA (EBS)'!R13","v":0},{"$f":"'Schedule IIIA (EBS)'!S13","v":0},{"$f":"'Schedule IIIA (EBS)'!T13","v":0},{"$f":"'Schedule IIIA (EBS)'!U13","v":0},{"$f":"'Schedule IIIA (EBS)'!V13","v":0}]
[null,"Personal Accident Non-Proportional","Schedule III(a), Line (5)",0,0,1,0,{"$f":"IF('Schedule IIIA (EBS)'!AB14=\"TRUE\",G44,'Schedule III (EBS)'!F14)","v":0},{"$f":"'Schedule IIIA (EBS)'!E14","v":0},{"$f":"'Schedule IIIA (EBS)'!F14","v":0},{"$f":"'Schedule IIIA (EBS)'!G14","v":0},{"$f":"'Schedule IIIA (EBS)'!H14","v":0},{"$f":"'Schedule IIIA (EBS)'!I14","v":0},{"$f":"'Schedule IIIA (EBS)'!J14","v":0},{"$f":"'Schedule IIIA (EBS)'!K14","v":0},{"$f":"'Schedule IIIA (EBS)'!L14","v":0},{"$f":"'Schedule IIIA (EBS)'!M14","v":0},{"$f":"'Schedule IIIA (EBS)'!N14","v":0},{"$f":"'Schedule IIIA (EBS)'!O14","v":0},{"$f":"'Schedule IIIA (EBS)'!P14","v":0},{"$f":"'Schedule IIIA (EBS)'!Q14","v":0},{"$f":"'Schedule IIIA (EBS)'!R14","v":0},{"$f":"'Schedule IIIA (EBS)'!S14","v":0},{"$f":"'Schedule IIIA (EBS)'!T14","v":0},{"$f":"'Schedule IIIA (EBS)'!U14","v":0},{"$f":"'Schedule IIIA (EBS)'!V14","v":0}]
[null,"Aviation","Schedule III(a), Line (6)",0,0,1,0,{"$f":"IF('Schedule IIIA (EBS)'!AB15=\"TRUE\",G45,'Schedule III (EBS)'!F15)","v":0},{"$f":"'Schedule IIIA (EBS)'!E15","v":0},{"$f":"'Schedule IIIA (EBS)'!F15","v":0},{"$f":"'Schedule IIIA (EBS)'!G15","v":0},{"$f":"'Schedule IIIA (EBS)'!H15","v":0},{"$f":"'Schedule IIIA (EBS)'!I15","v":0},{"$f":"'Schedule IIIA (EBS)'!J15","v":0},{"$f":"'Schedule IIIA (EBS)'!K15","v":0},{"$f":"'Schedule IIIA (EBS)'!L15","v":0},{"$f":"'Schedule IIIA (EBS)'!M15","v":0},{"$f":"'Schedule IIIA (EBS)'!N15","v":0},{"$f":"'Schedule IIIA (EBS)'!O15","v":0},{"$f":"'Schedule IIIA (EBS)'!P15","v":0},{"$f":"'Schedule IIIA (EBS)'!Q15","v":0},{"$f":"'Schedule IIIA (EBS)'!R15","v":0},{"$f":"'Schedule IIIA (EBS)'!S15","v":0},{"$f":"'Schedule IIIA (EBS)'!T15","v":0},{"$f":"'Schedule IIIA (EBS)'!U15","v":0},{"$f":"'Schedule IIIA (EBS)'!V15","v":0}]
[null,"Aviation Non-Proportional","Schedule III(a), Line (7)",0,0,1,0,{"$f":"IF('Schedule IIIA (EBS)'!AB16=\"TRUE\",G46,'Schedule III (EBS)'!F16)","v":0},{"$f":"'Schedule IIIA (EBS)'!E16","v":0},{"$f":"'Schedule IIIA (EBS)'!F16","v":0},{"$f":"'Schedule IIIA (EBS)'!G16","v":0},{"$f":"'Schedule IIIA (EBS)'!H16","v":0},{"$f":"'Schedule IIIA (EBS)'!I16","v":0},{"$f":"'Schedule IIIA (EBS)'!J16","v":0},{"$f":"'Schedule IIIA (EBS)'!K16","v":0},{"$f":"'Schedule IIIA (EBS)'!L16","v":0},{"$f":"'Schedule IIIA (EBS)'!M16","v":0},{"$f":"'Schedule IIIA (EBS)'!N16","v":0},{"$f":"'Schedule IIIA (EBS)'!O16","v":0},{"$f":"'Schedule IIIA (EBS)'!P16","v":0},{"$f":"'Schedule IIIA (EBS)'!Q16","v":0},{"$f":"'Schedule IIIA (EBS)'!R16","v":0},{"$f":"'Schedule IIIA (EBS)'!S16","v":0},{"$f":"'Schedule IIIA (EBS)'!T16","v":0},{"$f":"'Schedule IIIA (EBS)'!U16","v":0},{"$f":"'Schedule IIIA (EBS)'!V16","v":0}]
[null,"Credit / Surety","Schedule III(a), Line (8)",0,0,1,0,{"$f":"IF('Schedule IIIA (EBS)'!AB17=\"TRUE\",G47,'Schedule III (EBS)'!F17)","v":0},{"$f":"'Schedule IIIA (EBS)'!E17","v":0},{"$f":"'Schedule IIIA (EBS)'!F17","v":0},{"$f":"'Schedule IIIA (EBS)'!G17","v":0},{"$f":"'Schedule IIIA (EBS)'!H17","v":0},{"$f":"'Schedule IIIA (EBS)'!I17","v":0},{"$f":"'Schedule IIIA (EBS)'!J17","v":0},{"$f":"'Schedule IIIA (EBS)'!K17","v":0},{"$f":"'Schedule IIIA (EBS)'!L17","v":0},{"$f":"'Schedule IIIA (EBS)'!M17","v":0},{"$f":"'Schedule IIIA (EBS)'!N17","v":0},{"$f":"'Schedule IIIA (EBS)'!O17","v":0},{"$f":"'Schedule IIIA (EBS)'!P17","v":0},{"$f":"'Schedule IIIA (EBS)'!Q17","v":0},{"$f":"'Schedule IIIA (EBS)'!R17","v":0},{"$f":"'Schedule IIIA (EBS)'!S17","v":0},{"$f":"'Schedule IIIA (EBS)'!T17","v":0},{"$f":"'Schedule IIIA (EBS)'!U17","v":0},{"$f":"'Schedule IIIA (EBS)'!V17","v":0}]
[null,"Credit / Surety Non-Proportional","Schedule III(a), Line (9)",0,0,1,0,{"$f":"IF('Schedule IIIA (EBS)'!AB18=\"TRUE\",G48,'Schedule III (EBS)'!F18)","v":0},{"$f":"'Schedule IIIA (EBS)'!E18","v":0},{"$f":"'Schedule IIIA (EBS)'!F18","v":0},{"$f":"'Schedule IIIA (EBS)'!G18","v":0},{"$f":"'Schedule IIIA (EBS)'!H18","v":0},{"$f":"'Schedule IIIA (EBS)'!I18","v":0},{"$f":"'Schedule IIIA (EBS)'!J18","v":0},{"$f":"'Schedule IIIA (EBS)'!K18","v":0},{"$f":"'Schedule IIIA (EBS)'!L18","v":0},{"$f":"'Schedule IIIA (EBS)'!M18","v":0},{"$f":"'Schedule IIIA (EBS)'!N18","v":0},{"$f":"'Schedule IIIA (EBS)'!O18","v":0},{"$f":"'Schedule IIIA (EBS)'!P18","v":0},{"$f":"'Schedule IIIA (EBS)'!Q18","v":0},{"$f":"'Schedule IIIA (EBS)'!R18","v":0},{"$f":"'Schedule IIIA (EBS)'!S18","v":0},{"$f":"'Schedule IIIA (EBS)'!T18","v":0},{"$f":"'Schedule IIIA (EBS)'!U18","v":0},{"$f":"'Schedule IIIA (EBS)'!V18","v":0}]
[null,"Energy Offshore / Marine","Schedule III(a), Line (10)",0,0,1,0,{"$f":"IF('Schedule IIIA (EBS)'!AB19=\"TRUE\",G49,'Schedule III (EBS)'!F19)","v":0},{"$f":"'Schedule IIIA (EBS)'!E19","v":0},{"$f":"'Schedule IIIA (EBS)'!F19","v":0},{"$f":"'Schedule IIIA (EBS)'!G19","v":0},{"$f":"'Schedule IIIA (EBS)'!H19","v":0},{"$f":"'Schedule IIIA (EBS)'!I19","v":0},{"$f":"'Schedule IIIA (EBS)'!J19","v":0},{"$f":"'Schedule IIIA (EBS)'!K19","v":0},{"$f":"'Schedule IIIA (EBS)'!L19","v":0},{"$f":"'Schedule IIIA (EBS)'!M19","v":0},{"$f":"'Schedule IIIA (EBS)'!N19","v":0},{"$f":"'Schedule IIIA (EBS)'!O19","v":0},{"$f":"'Schedule IIIA (EBS)'!P19","v":0},{"$f":"'Schedule IIIA (EBS)'!Q19","v":0},{"$f":"'Schedule IIIA (EBS)'!R19","v":0},{"$f":"'Schedule IIIA (EBS)'!S19","v":0},{"$f":"'Schedule IIIA (EBS)'!T19","v":0},{"$f":"'Schedule IIIA (EBS)'!U19","v":0},{"$f":"'Schedule IIIA (EBS)'!V19","v":0}]
[null,"Energy Offshore / Marine Non-Proportional","Schedule III(a), Line (11)",0,0,1,0,{"$f":"IF('Schedule IIIA (EBS)'!AB20=\"TRUE\",G50,'Schedule III (EBS)'!F20)","v":0},{"$f":"'Schedule IIIA (EBS)'!E20","v":0},{"$f":"'Schedule IIIA (EBS)'!F20","v":0},{"$f":"'Schedule IIIA (EBS)'!G20","v":0},{"$f":"'Schedule IIIA (EBS)'!H20","v":0},{"$f":"'Schedule IIIA (EBS)'!I20","v":0},{"$f":"'Schedule IIIA (EBS)'!J20","v":0},{"$f":"'Schedule IIIA (EBS)'!K20","v":0},{"$f":"'Schedule IIIA (EBS)'!L20","v":0},{"$f":"'Schedule IIIA (EBS)'!M20","v":0},{"$f":"'Schedule IIIA (EBS)'!N20","v":0},{"$f":"'Schedule IIIA (EBS)'!O20","v":0},{"$f":"'Schedule IIIA (EBS)'!P20","v":0},{"$f":"'Schedule IIIA (EBS)'!Q20","v":0},{"$f":"'Schedule IIIA (EBS)'!R20","v":0},{"$f":"'Schedule IIIA (EBS)'!S20","v":0},{"$f":"'Schedule IIIA (EBS)'!T20","v":0},{"$f":"'Schedule IIIA (EBS)'!U20","v":0},{"$f":"'Schedule IIIA (EBS)'!V20","v":0}]
[null,"US Casualty","Schedule III(a), Line (12)",0,0,1,0,{"$f":"IF('Schedule IIIA (EBS)'!AB21=\"TRUE\",G51,'Schedule III (EBS)'!F21)","v":0},{"$f":"'Schedule IIIA (EBS)'!E21","v":0},{"$f":"'Schedule IIIA (EBS)'!F21","v":0},{"$f":"'Schedule IIIA (EBS)'!G21","v":0},{"$f":"'Schedule IIIA (EBS)'!H21","v":0},{"$f":"'Schedule IIIA (EBS)'!I21","v":0},{"$f":"'Schedule IIIA (EBS)'!J21","v":0},{"$f":"'Schedule IIIA (EBS)'!K21","v":0},{"$f":"'Schedule IIIA (EBS)'!L21","v":0},{"$f":"'Schedule IIIA (EBS)'!M21","v":0},{"$f":"'Schedule IIIA (EBS)'!N21","v":0},{"$f":"'Schedule IIIA (EBS)'!O21","v":0},{"$f":"'Schedule IIIA (EBS)'!P21","v":0},{"$f":"'Schedule IIIA (EBS)'!Q21","v":0},{"$f":"'Schedule IIIA (EBS)'!R21","v":0},{"$f":"'Schedule IIIA (EBS)'!S21","v":0},{"$f":"'Schedule IIIA (EBS)'!T21","v":0},{"$f":"'Schedule IIIA (EBS)'!U21","v":0},{"$f":"'Schedule IIIA (EBS)'!V21","v":0}]
[null,"US Casualty Non-Proportional","Schedule III(a), Line (13)",0,0,1,0,{"$f":"IF('Schedule IIIA (EBS)'!AB22=\"TRUE\",G52,'Schedule III (EBS)'!F22)","v":0},{"$f":"'Schedule IIIA (EBS)'!E22","v":0},{"$f":"'Schedule IIIA (EBS)'!F22","v":0},{"$f":"'Schedule IIIA (EBS)'!G22","v":0},{"$f":"'Schedule IIIA (EBS)'!H22","v":0},{"$f":"'Schedule IIIA (EBS)'!I22","v":0},{"$f":"'Schedule IIIA (EBS)'!J22","v":0},{"$f":"'Schedule IIIA (EBS)'!K22","v":0},{"$f":"'Schedule IIIA (EBS)'!L22","v":0},{"$f":"'Schedule IIIA (EBS)'!M22","v":0},{"$f":"'Schedule IIIA (EBS)'!N22","v":0},{"$f":"'Schedule IIIA (EBS)'!O22","v":0},{"$f":"'Schedule IIIA (EBS)'!P22","v":0},{"$f":"'Schedule IIIA (EBS)'!Q22","v":0},{"$f":"'Schedule IIIA (EBS)'!R22","v":0},{"$f":"'Schedule IIIA (EBS)'!S22","v":0},{"$f":"'Schedule IIIA (EBS)'!T22","v":0},{"$f":"'Schedule IIIA (EBS)'!U22","v":0},{"$f":"'Schedule IIIA (EBS)'!V22","v":0}]
[null,"US Professional","Schedule III(a), Line (14)",0,0,1,0,{"$f":"IF('Schedule IIIA (EBS)'!AB23=\"TRUE\",G53,'Schedule III (EBS)'!F23)","v":0},{"$f":"'Schedule IIIA (EBS)'!E23","v":0},{"$f":"'Schedule IIIA (EBS)'!F23","v":0},{"$f":"'Schedule IIIA (EBS)'!G23","v":0},{"$f":"'Schedule IIIA (EBS)'!H23","v":0},{"$f":"'Schedule IIIA (EBS)'!I23","v":0},{"$f":"'Schedule IIIA (EBS)'!J23","v":0},{"$f":"'Schedule IIIA (EBS)'!K23","v":0},{"$f":"'Schedule IIIA (EBS)'!L23","v":0},{"$f":"'Schedule IIIA (EBS)'!M23","v":0},{"$f":"'Schedule IIIA (EBS)'!N23","v":0},{"$f":"'Schedule IIIA (EBS)'!O23","v":0},{"$f":"'Schedule IIIA (EBS)'!P23","v":0},{"$f":"'Schedule IIIA (EBS)'!Q23","v":0},{"$f":"'Schedule IIIA (EBS)'!R23","v":0},{"$f":"'Schedule IIIA (EBS)'!S23","v":0},{"$f":"'Schedule IIIA (EBS)'!T23","v":0},{"$f":"'Schedule IIIA (EBS)'!U23","v":0},{"$f":"'Schedule IIIA (EBS)'!V23","v":0}]
[null,"US Professional Non-Proportional","Schedule III(a), Line (15)",0,0,1,0,{"$f":"IF('Schedule IIIA (EBS)'!AB24=\"TRUE\",G54,'Schedule III (EBS)'!F24)","v":0},{"$f":"'Schedule IIIA (EBS)'!E24","v":0},{"$f":"'Schedule IIIA (EBS)'!F24","v":0},{"$f":"'Schedule IIIA (EBS)'!G24","v":0},{"$f":"'Schedule IIIA (EBS)'!H24","v":0},{"$f":"'Schedule IIIA (EBS)'!I24","v":0},{"$f":"'Schedule IIIA (EBS)'!J24","v":0},{"$f":"'Schedule IIIA (EBS)'!K24","v":0},{"$f":"'Schedule IIIA (EBS)'!L24","v":0},{"$f":"'Schedule IIIA (EBS)'!M24","v":0},{"$f":"'Schedule IIIA (EBS)'!N24","v":0},{"$f":"'Schedule IIIA (EBS)'!O24","v":0},{"$f":"'Schedule IIIA (EBS)'!P24","v":0},{"$f":"'Schedule IIIA (EBS)'!Q24","v":0},{"$f":"'Schedule IIIA (EBS)'!R24","v":0},{"$f":"'Schedule IIIA (EBS)'!S24","v":0},{"$f":"'Schedule IIIA (EBS)'!T24","v":0},{"$f":"'Schedule IIIA (EBS)'!U24","v":0},{"$f":"'Schedule IIIA (EBS)'!V24","v":0}]
[null,"US Specialty","Schedule III(a), Line (16)",0,0,1,0,{"$f":"IF('Schedule IIIA (EBS)'!AB25=\"TRUE\",G55,'Schedule III (EBS)'!F25)","v":0},{"$f":"'Schedule IIIA (EBS)'!E25","v":0},{"$f":"'Schedule IIIA (EBS)'!F25","v":0},{"$f":"'Schedule IIIA (EBS)'!G25","v":0},{"$f":"'Schedule IIIA (EBS)'!H25","v":0},{"$f":"'Schedule IIIA (EBS)'!I25","v":0},{"$f":"'Schedule IIIA (EBS)'!J25","v":0},{"$f":"'Schedule IIIA (EBS)'!K25","v":0},{"$f":"'Schedule IIIA (EBS)'!L25","v":0},{"$f":"'Schedule IIIA (EBS)'!M25","v":0},{"$f":"'Schedule IIIA (EBS)'!N25","v":0},{"$f":"'Schedule IIIA (EBS)'!O25","v":0},{"$f":"'Schedule IIIA (EBS)'!P25","v":0},{"$f":"'Schedule IIIA (EBS)'!Q25","v":0},{"$f":"'Schedule IIIA (EBS)'!R25","v":0},{"$f":"'Schedule IIIA (EBS)'!S25","v":0},{"$f":"'Schedule IIIA (EBS)'!T25","v":0},{"$f":"'Schedule IIIA (EBS)'!U25","v":0},{"$f":"'Schedule IIIA (EBS)'!V25","v":0}]
[null,"US Specialty Non-Proportional","Schedule III(a), Line (17)",0,0,1,0,{"$f":"IF('Schedule IIIA (EBS)'!AB26=\"TRUE\",G56,'Schedule III (EBS)'!F26)","v":0},{"$f":"'Schedule IIIA (EBS)'!E26","v":0},{"$f":"'Schedule IIIA (EBS)'!F26","v":0},{"$f":"'Schedule IIIA (EBS)'!G26","v":0},{"$f":"'Schedule IIIA (EBS)'!H26","v":0},{"$f":"'Schedule IIIA (EBS)'!I26","v":0},{"$f":"'Schedule IIIA (EBS)'!J26","v":0},{"$f":"'Schedule IIIA (EBS)'!K26","v":0},{"$f":"'Schedule IIIA (EBS)'!L26","v":0},{"$f":"'Schedule IIIA (EBS)'!M26","v":0},{"$f":"'Schedule IIIA (EBS)'!N26","v":0},{"$f":"'Schedule IIIA (EBS)'!O26","v":0},{"$f":"'Schedule IIIA (EBS)'!P26","v":0},{"$f":"'Schedule IIIA (EBS)'!Q26","v":0},{"$f":"'Schedule IIIA (EBS)'!R26","v":0},{"$f":"'Schedule IIIA (EBS)'!S26","v":0},{"$f":"'Schedule IIIA (EBS)'!T26","v":0},{"$f":"'Schedule IIIA (EBS)'!U26","v":0},{"$f":"'Schedule IIIA (EBS)'!V26","v":0}]
[null,"International Motor","Schedule III(a), Line (18)",0,0,1,0,{"$f":"IF('Schedule IIIA (EBS)'!AB27=\"TRUE\",G57,'Schedule III (EBS)'!F27)","v":0},{"$f":"'Schedule IIIA (EBS)'!E27","v":0},{"$f":"'Schedule IIIA (EBS)'!F27","v":0},{"$f":"'Schedule IIIA (EBS)'!G27","v":0},{"$f":"'Schedule IIIA (EBS)'!H27","v":0},{"$f":"'Schedule IIIA (EBS)'!I27","v":0},{"$f":"'Schedule IIIA (EBS)'!J27","v":0},{"$f":"'Schedule IIIA (EBS)'!K27","v":0},{"$f":"'Schedule IIIA (EBS)'!L27","v":0},{"$f":"'Schedule IIIA (EBS)'!M27","v":0},{"$f":"'Schedule IIIA (EBS)'!N27","v":0},{"$f":"'Schedule IIIA (EBS)'!O27","v":0},{"$f":"'Schedule IIIA (EBS)'!P27","v":0},{"$f":"'Schedule IIIA (EBS)'!Q27","v":0},{"$f":"'Schedule IIIA (EBS)'!R27","v":0},{"$f":"'Schedule IIIA (EBS)'!S27","v":0},{"$f":"'Schedule IIIA (EBS)'!T27","v":0},{"$f":"'Schedule IIIA (EBS)'!U27","v":0},{"$f":"'Schedule IIIA (EBS)'!V27","v":0}]
[null,"International Motor Non-Proportional","Schedule III(a), Line (19)",0,0,1,0,{"$f":"IF('Schedule IIIA (EBS)'!AB28=\"TRUE\",G58,'Schedule III (EBS)'!F28)","v":0},{"$f":"'Schedule IIIA (EBS)'!E28","v":0},{"$f":"'Schedule IIIA (EBS)'!F28","v":0},{"$f":"'Schedule IIIA (EBS)'!G28","v":0},{"$f":"'Schedule IIIA (EBS)'!H28","v":0},{"$f":"'Schedule IIIA (EBS)'!I28","v":0},{"$f":"'Schedule IIIA (EBS)'!J28","v":0},{"$f":"'Schedule IIIA (EBS)'!K28","v":0},{"$f":"'Schedule IIIA (EBS)'!L28","v":0},{"$f":"'Schedule IIIA (EBS)'!M28","v":0},{"$f":"'Schedule IIIA (EBS)'!N28","v":0},{"$f":"'Schedule IIIA (EBS)'!O28","v":0},{"$f":"'Schedule IIIA (EBS)'!P28","v":0},{"$f":"'Schedule IIIA (EBS)'!Q28","v":0},{"$f":"'Schedule IIIA (EBS)'!R28","v":0},{"$f":"'Schedule IIIA (EBS)'!S28","v":0},{"$f":"'Schedule IIIA (EBS)'!T28","v":0},{"$f":"'Schedule IIIA (EBS)'!U28","v":0},{"$f":"'Schedule IIIA (EBS)'!V28","v":0}]
[null,"International Casualty Non-Motor","Schedule III(a), Line (20)",0,0,1,0,{"$f":"IF('Schedule IIIA (EBS)'!AB29=\"TRUE\",G59,'Schedule III (EBS)'!F29)","v":0},{"$f":"'Schedule IIIA (EBS)'!E29","v":0},{"$f":"'Schedule IIIA (EBS)'!F29","v":0},{"$f":"'Schedule IIIA (EBS)'!G29","v":0},{"$f":"'Schedule IIIA (EBS)'!H29","v":0},{"$f":"'Schedule IIIA (EBS)'!I29","v":0},{"$f":"'Schedule IIIA (EBS)'!J29","v":0},{"$f":"'Schedule IIIA (EBS)'!K29","v":0},{"$f":"'Schedule IIIA (EBS)'!L29","v":0},{"$f":"'Schedule IIIA (EBS)'!M29","v":0},{"$f":"'Schedule IIIA (EBS)'!N29","v":0},{"$f":"'Schedule IIIA (EBS)'!O29","v":0},{"$f":"'Schedule IIIA (EBS)'!P29","v":0},{"$f":"'Schedule IIIA (EBS)'!Q29","v":0},{"$f":"'Schedule IIIA (EBS)'!R29","v":0},{"$f":"'Schedule IIIA (EBS)'!S29","v":0},{"$f":"'Schedule IIIA (EBS)'!T29","v":0},{"$f":"'Schedule IIIA (EBS)'!U29","v":0},{"$f":"'Schedule IIIA (EBS)'!V29","v":0}]
[null,"International Casualty Non-Motor Non-Proportional","Schedule III(a), Line (21)",0,0,1,0,{"$f":"IF('Schedule IIIA (EBS)'!AB30=\"TRUE\",G60,'Schedule III (EBS)'!F30)","v":0},{"$f":"'Schedule IIIA (EBS)'!E30","v":0},{"$f":"'Schedule IIIA (EBS)'!F30","v":0},{"$f":"'Schedule IIIA (EBS)'!G30","v":0},{"$f":"'Schedule IIIA (EBS)'!H30","v":0},{"$f":"'Schedule IIIA (EBS)'!I30","v":0},{"$f":"'Schedule IIIA (EBS)'!J30","v":0},{"$f":"'Schedule IIIA (EBS)'!K30","v":0},{"$f":"'Schedule IIIA (EBS)'!L30","v":0},{"$f":"'Schedule IIIA (EBS)'!M30","v":0},{"$f":"'Schedule IIIA (EBS)'!N30","v":0},{"$f":"'Schedule IIIA (EBS)'!O30","v":0},{"$f":"'Schedule IIIA (EBS)'!P30","v":0},{"$f":"'Schedule IIIA (EBS)'!Q30","v":0},{"$f":"'Schedule IIIA (EBS)'!R30","v":0},{"$f":"'Schedule IIIA (EBS)'!S30","v":0},{"$f":"'Schedule IIIA (EBS)'!T30","v":0},{"$f":"'Schedule IIIA (EBS)'!U30","v":0},{"$f":"'Schedule IIIA (EBS)'!V30","v":0}]
[null,"Retro Property","Schedule III(a), Line (22)",0,0,1,0,{"$f":"IF('Schedule IIIA (EBS)'!AB31=\"TRUE\",G61,'Schedule III (EBS)'!F31)","v":0},{"$f":"'Schedule IIIA (EBS)'!E31","v":0},{"$f":"'Schedule IIIA (EBS)'!F31","v":0},{"$f":"'Schedule IIIA (EBS)'!G31","v":0},{"$f":"'Schedule IIIA (EBS)'!H31","v":0},{"$f":"'Schedule IIIA (EBS)'!I31","v":0},{"$f":"'Schedule IIIA (EBS)'!J31","v":0},{"$f":"'Schedule IIIA (EBS)'!K31","v":0},{"$f":"'Schedule IIIA (EBS)'!L31","v":0},{"$f":"'Schedule IIIA (EBS)'!M31","v":0},{"$f":"'Schedule IIIA (EBS)'!N31","v":0},{"$f":"'Schedule IIIA (EBS)'!O31","v":0},{"$f":"'Schedule IIIA (EBS)'!P31","v":0},{"$f":"'Schedule IIIA (EBS)'!Q31","v":0},{"$f":"'Schedule IIIA (EBS)'!R31","v":0},{"$f":"'Schedule IIIA (EBS)'!S31","v":0},{"$f":"'Schedule IIIA (EBS)'!T31","v":0},{"$f":"'Schedule IIIA (EBS)'!U31","v":0},{"$f":"'Schedule IIIA (EBS)'!V31","v":0}]
[null,"Structured / Finite Reinsurance","Schedule III(a), Line (23)",0,0,1,0,{"$f":"IF('Schedule IIIA (EBS)'!AB32=\"TRUE\",G62,'Schedule III (EBS)'!F32)","v":0},{"$f":"'Schedule IIIA (EBS)'!E32","v":0},{"$f":"'Schedule IIIA (EBS)'!F32","v":0},{"$f":"'Schedule IIIA (EBS)'!G32","v":0},{"$f":"'Schedule IIIA (EBS)'!H32","v":0},{"$f":"'Schedule IIIA (EBS)'!I32","v":0},{"$f":"'Schedule IIIA (EBS)'!J32","v":0},{"$f":"'Schedule IIIA (EBS)'!K32","v":0},{"$f":"'Schedule IIIA (EBS)'!L32","v":0},{"$f":"'Schedule IIIA (EBS)'!M32","v":0},{"$f":"'Schedule IIIA (EBS)'!N32","v":0},{"$f":"'Schedule IIIA (EBS)'!O32","v":0},{"$f":"'Schedule IIIA (EBS)'!P32","v":0},{"$f":"'Schedule IIIA (EBS)'!Q32","v":0},{"$f":"'Schedule IIIA (EBS)'!R32","v":0},{"$f":"'Schedule IIIA (EBS)'!S32","v":0},{"$f":"'Schedule IIIA (EBS)'!T32","v":0},{"$f":"'Schedule IIIA (EBS)'!U32","v":0},{"$f":"'Schedule IIIA (EBS)'!V32","v":0}]
[null,"Health","Schedule III(a), Line (24)",0,0,1,0,{"$f":"IF('Schedule IIIA (EBS)'!AB33=\"TRUE\",G63,'Schedule III (EBS)'!F33)","v":0},{"$f":"'Schedule IIIA (EBS)'!E33","v":0},{"$f":"'Schedule IIIA (EBS)'!F33","v":0},{"$f":"'Schedule IIIA (EBS)'!G33","v":0},{"$f":"'Schedule IIIA (EBS)'!H33","v":0},{"$f":"'Schedule IIIA (EBS)'!I33","v":0},{"$f":"'Schedule IIIA (EBS)'!J33","v":0},{"$f":"'Schedule IIIA (EBS)'!K33","v":0},{"$f":"'Schedule IIIA (EBS)'!L33","v":0},{"$f":"'Schedule IIIA (EBS)'!M33","v":0},{"$f":"'Schedule IIIA (EBS)'!N33","v":0},{"$f":"'Schedule IIIA (EBS)'!O33","v":0},{"$f":"'Schedule IIIA (EBS)'!P33","v":0},{"$f":"'Schedule IIIA (EBS)'!Q33","v":0},{"$f":"'Schedule IIIA (EBS)'!R33","v":0},{"$f":"'Schedule IIIA (EBS)'!S33","v":0},{"$f":"'Schedule IIIA (EBS)'!T33","v":0},{"$f":"'Schedule IIIA (EBS)'!U33","v":0},{"$f":"'Schedule IIIA (EBS)'!V33","v":0}]
[]
[null,"(a) TOTAL",null,{"$f":"SUM(D40:D63)","v":0},{"$f":"SUM(E40:E63)","v":0},null,{"$f":"SUM(G40:G63)","v":0},0,0,0,0,0,0,0,0,0,0,0,0,0,0,0,0,0,0,0]

{"sheet":"Geographic Diversification","index":124,"n_rows":65,"n_cols":26,"rows_kept":65,"cut":false,"hidden":false,"merged":[[2,2,2,3]]}
["GEOGRAPHIC DIVERSIFICATION (REVISED)",null,null,null,null,null,null,null,null,null,null,null,null,null,null,null,null,null,null,null,null,null,null,null,null,{"$f":"HYPERLINK(\"#'Index'!A1\",\"Return to Index\")","v":"Return to Index"}]
[{"$f":"'Company Information'!C7","v":"Enter Company Name"}]
[{"$f":"\"Geographic Diversification\" & \"($\"&IF(CONFIGURATION!$B$12>1,MID(CONFIGURATION!$B$12,2,LEN(CONFIGURATION!$B$12)),\"\")&\")\"","v":"Geographic Diversification($000)"},null,{"$f":" TEXT('Company Information'!C3,\"d mmmm yyyy\")","v":"31 December 2023"}]
[]
[null,null,null,"TOTAL",null,null,null,"CHARGE"]
[null,"NET PREMIUMS EARNED BY ",null,"NET","SUM","DIVERSIFICATION","PREMIUM","DIVERSIFIED"]
[null,"LINE OF BUSINESS","STATEMENT SOURCE","PREMIUM","SQUARED","FACTOR","USED","PREMIUM",{"$f":"HYPERLINK(\"#'Zones'!c4\",\"Zone 1\")","v":"Zone 1"},{"$f":"HYPERLINK(\"#'Zones'!c13\",\"Zone 2\")","v":"Zone 2"},{"$f":"HYPERLINK(\"#'Zones'!c18\",\"Zone 3\")","v":"Zone 3"},{"$f":"HYPERLINK(\"#'Zones'!c26\",\"Zone 4\")","v":"Zone 4"},{"$f":"HYPERLINK(\"#'Zones'!c36\",\"Zone 5\")","v":"Zone 5"},{"$f":"HYPERLINK(\"#'Zones'!c46\",\"Zone 6\")","v":"Zone 6"},{"$f":"HYPERLINK(\"#'Zones'!c57\",\"Zone 7\")","v":"Zone 7"},{"$f":"HYPERLINK(\"#'Zones'!c68\",\"Zone 8\")","v":"Zone 8"},{"$f":"HYPERLINK(\"#'Zones'!c76\",\"Zone 9\")","v":"Zone 9"},{"$f":"HYPERLINK(\"#'Zones'!c84\",\"Zone 10\")","v":"Zone 10"},{"$f":"HYPERLINK(\"#'Zones'!c90\",\"Zone 11\")","v":"Zone 11"},{"$f":"HYPERLINK(\"#'Zones'!c94\",\"Zone 12\")","v":"Zone 12"},{"$f":"HYPERLINK(\"#'Zones'!c107\",\"Zone 13\")","v":"Zone 13"},{"$f":"HYPERLINK(\"#'Zones'!c112\",\"Zone 14\")","v":"Zone 14"},{"$f":"HYPERLINK(\"#'Zones'!c116\",\"Zone 15\")","v":"Zone 15"},{"$f":"HYPERLINK(\"#'Zones'!c121\",\"Zone 16\")","v":"Zone 16"},{"$f":"HYPERLINK(\"#'Zones'!c127\",\"Zone 17\")","v":"Zone 17"},{"$f":"HYPERLINK(\"#'Zones'!c133\",\"Zone 18\")","v":"Zone 18"}]
[]
[null,"Property Catastrophe","Schedule IV(a), Line (1)",{"$f":"SUM(I9:Z9)","v":0},{"$f":"SUMSQ(I9:Z9)","v":0},{"$f":"(IF(D9>0,E9/D9^2,1))","v":1},{"$f":"D9*(0.75+0.25*F9)","v":0},{"$f":"IF('Schedule IVE (EBS)'!AB9=\"True\",G9,'Schedule IVD (EBS)'!O9)","v":0},{"$f":"+'Schedule IVE (EBS)'!E9","v":0},{"$f":"+'Schedule IVE (EBS)'!F9","v":0},{"$f":"+'Schedule IVE (EBS)'!G9","v":0},{"$f":"+'Schedule IVE (EBS)'!H9","v":0},{"$f":"+'Schedule IVE (EBS)'!I9","v":0},{"$f":"+'Schedule IVE (EBS)'!J9","v":0},{"$f":"+'Schedule IVE (EBS)'!K9","v":0},{"$f":"+'Schedule IVE (EBS)'!L9","v":0},{"$f":"+'Schedule IVE (EBS)'!M9","v":0},{"$f":"+'Schedule IVE (EBS)'!N9","v":0},{"$f":"+'Schedule IVE (EBS)'!O9","v":0},{"$f":"+'Schedule IVE (EBS)'!P9","v":0},{"$f":"+'Schedule IVE (EBS)'!Q9","v":0},{"$f":"+'Schedule IVE (EBS)'!R9","v":0},{"$f":"+'Schedule IVE (EBS)'!S9","v":0},{"$f":"+'Schedule IVE (EBS)'!T9","v":0},{"$f":"+'Schedule IVE (EBS)'!U9","v":0},{"$f":"+'Schedule IVE (EBS)'!V9","v":0}]
[null,"Property","Schedule IV(a), Line (2)",{"$f":"SUM(I10:Z10)","v":0},{"$f":"SUMSQ(I10:Z10)","v":0},{"$f":"(IF(D10>0,E10/D10^2,1))","v":1},{"$f":"D10*(0.75+0.25*F10)","v":0},{"$f":"IF('Schedule IVE (EBS)'!AB10=\"True\",G10,'Schedule IVD (EBS)'!O10)","v":0},{"$f":"+'Schedule IVE (EBS)'!E10","v":0},{"$f":"+'Schedule IVE (EBS)'!F10","v":0},{"$f":"+'Schedule IVE (EBS)'!G10","v":0},{"$f":"+'Schedule IVE (EBS)'!H10","v":0},{"$f":"+'Schedule IVE (EBS)'!I10","v":0},{"$f":"+'Schedule IVE (EBS)'!J10","v":0},{"$f":"+'Schedule IVE (EBS)'!K10","v":0},{"$f":"+'Schedule IVE (EBS)'!L10","v":0},{"$f":"+'Schedule IVE (EBS)'!M10","v":0},{"$f":"+'Schedule IVE (EBS)'!N10","v":0},{"$f":"+'Schedule IVE (EBS)'!O10","v":0},{"$f":"+'Schedule IVE (EBS)'!P10","v":0},{"$f":"+'Schedule IVE (EBS)'!Q10","v":0},{"$f":"+'Schedule IVE (EBS)'!R10","v":0},{"$f":"+'Schedule IVE (EBS)'!S10","v":0},{"$f":"+'Schedule IVE (EBS)'!T10","v":0},{"$f":"+'Schedule IVE (EBS)'!U10","v":0},{"$f":"+'Schedule IVE (EBS)'!V10","v":0}]
[null,"Property Non-Proportional","Schedule IV(a), Line (3)",0,0,1,0,{"$f":"IF('Schedule IVE (EBS)'!AB11=\"True\",G11,'Schedule IVD (EBS)'!O11)","v":0},{"$f":"+'Schedule IVE (EBS)'!E11","v":0},{"$f":"+'Schedule IVE (EBS)'!F11","v":0},{"$f":"+'Schedule IVE (EBS)'!G11","v":0},{"$f":"+'Schedule IVE (EBS)'!H11","v":0},{"$f":"+'Schedule IVE (EBS)'!I11","v":0},{"$f":"+'Schedule IVE (EBS)'!J11","v":0},{"$f":"+'Schedule IVE (EBS)'!K11","v":0},{"$f":"+'Schedule IVE (EBS)'!L11","v":0},{"$f":"+'Schedule IVE (EBS)'!M11","v":0},{"$f":"+'Schedule IVE (EBS)'!N11","v":0},{"$f":"+'Schedule IVE (EBS)'!O11","v":0},{"$f":"+'Schedule IVE (EBS)'!P11","v":0},{"$f":"+'Schedule IVE (EBS)'!Q11","v":0},{"$f":"+'Schedule IVE (EBS)'!R11","v":0},{"$f":"+'Schedule IVE (EBS)'!S11","v":0},{"$f":"+'Schedule IVE (EBS)'!T11","v":0},{"$f":"+'Schedule IVE (EBS)'!U11","v":0},{"$f":"+'Schedule IVE (EBS)'!V11","v":0}]
[null,"Personal Accident","Schedule IV(a), Line (4)",0,0,1,0,{"$f":"IF('Schedule IVE (EBS)'!AB12=\"True\",G12,'Schedule IVD (EBS)'!O12)","v":0},{"$f":"+'Schedule IVE (EBS)'!E12","v":0},{"$f":"+'Schedule IVE (EBS)'!F12","v":0},{"$f":"+'Schedule IVE (EBS)'!G12","v":0},{"$f":"+'Schedule IVE (EBS)'!H12","v":0},{"$f":"+'Schedule IVE (EBS)'!I12","v":0},{"$f":"+'Schedule IVE (EBS)'!J12","v":0},{"$f":"+'Schedule IVE (EBS)'!K12","v":0},{"$f":"+'Schedule IVE (EBS)'!L12","v":0},{"$f":"+'Schedule IVE (EBS)'!M12","v":0},{"$f":"+'Schedule IVE (EBS)'!N12","v":0},{"$f":"+'Schedule IVE (EBS)'!O12","v":0},{"$f":"+'Schedule IVE (EBS)'!P12","v":0},{"$f":"+'Schedule IVE (EBS)'!Q12","v":0},{"$f":"+'Schedule IVE (EBS)'!R12","v":0},{"$f":"+'Schedule IVE (EBS)'!S12","v":0},{"$f":"+'Schedule IVE (EBS)'!T12","v":0},{"$f":"+'Schedule IVE (EBS)'!U12","v":0},{"$f":"+'Schedule IVE (EBS)'!V12","v":0}]
[null,"Personal Accident Non-Proportional","Schedule IV(a), Line (5)",0,0,1,0,{"$f":"IF('Schedule IVE (EBS)'!AB13=\"True\",G13,'Schedule IVD (EBS)'!O13)","v":0},{"$f":"+'Schedule IVE (EBS)'!E13","v":0},{"$f":"+'Schedule IVE (EBS)'!F13","v":0},{"$f":"+'Schedule IVE (EBS)'!G13","v":0},{"$f":"+'Schedule IVE (EBS)'!H13","v":0},{"$f":"+'Schedule IVE (EBS)'!I13","v":0},{"$f":"+'Schedule IVE (EBS)'!J13","v":0},{"$f":"+'Schedule IVE (EBS)'!K13","v":0},{"$f":"+'Schedule IVE (EBS)'!L13","v":0},{"$f":"+'Schedule IVE (EBS)'!M13","v":0},{"$f":"+'Schedule IVE (EBS)'!N13","v":0},{"$f":"+'Schedule IVE (EBS)'!O13","v":0},{"$f":"+'Schedule IVE (EBS)'!P13","v":0},{"$f":"+'Schedule IVE (EBS)'!Q13","v":0},{"$f":"+'Schedule IVE (EBS)'!R13","v":0},{"$f":"+'Schedule IVE (EBS)'!S13","v":0},{"$f":"+'Schedule IVE (EBS)'!T13","v":0},{"$f":"+'Schedule IVE (EBS)'!U13","v":0},{"$f":"+'Schedule IVE (EBS)'!V13","v":0}]
[null,"Aviation","Schedule IV(a), Line (6)",0,0,1,0,{"$f":"IF('Schedule IVE (EBS)'!AB14=\"True\",G14,'Schedule IVD (EBS)'!O14)","v":0},{"$f":"+'Schedule IVE (EBS)'!E14","v":0},{"$f":"+'Schedule IVE (EBS)'!F14","v":0},{"$f":"+'Schedule IVE (EBS)'!G14","v":0},{"$f":"+'Schedule IVE (EBS)'!H14","v":0},{"$f":"+'Schedule IVE (EBS)'!I14","v":0},{"$f":"+'Schedule IVE (EBS)'!J14","v":0},{"$f":"+'Schedule IVE (EBS)'!K14","v":0},{"$f":"+'Schedule IVE (EBS)'!L14","v":0},{"$f":"+'Schedule IVE (EBS)'!M14","v":0},{"$f":"+'Schedule IVE (EBS)'!N14","v":0},{"$f":"+'Schedule IVE (EBS)'!O14","v":0},{"$f":"+'Schedule IVE (EBS)'!P14","v":0},{"$f":"+'Schedule IVE (EBS)'!Q14","v":0},{"$f":"+'Schedule IVE (EBS)'!R14","v":0},{"$f":"+'Schedule IVE (EBS)'!S14","v":0},{"$f":"+'Schedule IVE (EBS)'!T14","v":0},{"$f":"+'Schedule IVE (EBS)'!U14","v":0},{"$f":"+'Schedule IVE (EBS)'!V14","v":0}]
[null,"Aviation Non-Proportional","Schedule IV(a), Line (7)",0,0,1,0,{"$f":"IF('Schedule IVE (EBS)'!AB15=\"True\",G15,'Schedule IVD (EBS)'!O15)","v":0},{"$f":"+'Schedule IVE (EBS)'!E15","v":0},{"$f":"+'Schedule IVE (EBS)'!F15","v":0},{"$f":"+'Schedule IVE (EBS)'!G15","v":0},{"$f":"+'Schedule IVE (EBS)'!H15","v":0},{"$f":"+'Schedule IVE (EBS)'!I15","v":0},{"$f":"+'Schedule IVE (EBS)'!J15","v":0},{"$f":"+'Schedule IVE (EBS)'!K15","v":0},{"$f":"+'Schedule IVE (EBS)'!L15","v":0},{"$f":"+'Schedule IVE (EBS)'!M15","v":0},{"$f":"+'Schedule IVE (EBS)'!N15","v":0},{"$f":"+'Schedule IVE (EBS)'!O15","v":0},{"$f":"+'Schedule IVE (EBS)'!P15","v":0},{"$f":"+'Schedule IVE (EBS)'!Q15","v":0},{"$f":"+'Schedule IVE (EBS)'!R15","v":0},{"$f":"+'Schedule IVE (EBS)'!S15","v":0},{"$f":"+'Schedule IVE (EBS)'!T15","v":0},{"$f":"+'Schedule IVE (EBS)'!U15","v":0},{"$f":"+'Schedule IVE (EBS)'!V15","v":0}]
[null,"Credit / Surety","Schedule IV(a), Line (8)",0,0,1,0,{"$f":"IF('Schedule IVE (EBS)'!AB16=\"True\",G16,'Schedule IVD (EBS)'!O16)","v":0},{"$f":"+'Schedule IVE (EBS)'!E16","v":0},{"$f":"+'Schedule IVE (EBS)'!F16","v":0},{"$f":"+'Schedule IVE (EBS)'!G16","v":0},{"$f":"+'Schedule IVE (EBS)'!H16","v":0},{"$f":"+'Schedule IVE (EBS)'!I16","v":0},{"$f":"+'Schedule IVE (EBS)'!J16","v":0},{"$f":"+'Schedule IVE (EBS)'!K16","v":0},{"$f":"+'Schedule IVE (EBS)'!L16","v":0},{"$f":"+'Schedule IVE (EBS)'!M16","v":0},{"$f":"+'Schedule IVE (EBS)'!N16","v":0},{"$f":"+'Schedule IVE (EBS)'!O16","v":0},{"$f":"+'Schedule IVE (EBS)'!P16","v":0},{"$f":"+'Schedule IVE (EBS)'!Q16","v":0},{"$f":"+'Schedule IVE (EBS)'!R16","v":0},{"$f":"+'Schedule IVE (EBS)'!S16","v":0},{"$f":"+'Schedule IVE (EBS)'!T16","v":0},{"$f":"+'Schedule IVE (EBS)'!U16","v":0},{"$f":"+'Schedule IVE (EBS)'!V16","v":0}]
[null,"Credit / Surety Non-Proportional","Schedule IV(a), Line (9)",0,0,1,0,{"$f":"IF('Schedule IVE (EBS)'!AB17=\"True\",G17,'Schedule IVD (EBS)'!O17)","v":0},{"$f":"+'Schedule IVE (EBS)'!E17","v":0},{"$f":"+'Schedule IVE (EBS)'!F17","v":0},{"$f":"+'Schedule IVE (EBS)'!G17","v":0},{"$f":"+'Schedule IVE (EBS)'!H17","v":0},{"$f":"+'Schedule IVE (EBS)'!I17","v":0},{"$f":"+'Schedule IVE (EBS)'!J17","v":0},{"$f":"+'Schedule IVE (EBS)'!K17","v":0},{"$f":"+'Schedule IVE (EBS)'!L17","v":0},{"$f":"+'Schedule IVE (EBS)'!M17","v":0},{"$f":"+'Schedule IVE (EBS)'!N17","v":0},{"$f":"+'Schedule IVE (EBS)'!O17","v":0},{"$f":"+'Schedule IVE (EBS)'!P17","v":0},{"$f":"+'Schedule IVE (EBS)'!Q17","v":0},{"$f":"+'Schedule IVE (EBS)'!R17","v":0},{"$f":"+'Schedule IVE (EBS)'!S17","v":0},{"$f":"+'Schedule IVE (EBS)'!T17","v":0},{"$f":"+'Schedule IVE (EBS)'!U17","v":0},{"$f":"+'Schedule IVE (EBS)'!V17","v":0}]
[null,"Energy Offshore / Marine","Schedule IV(a), Line (10)",0,0,1,0,{"$f":"IF('Schedule IVE (EBS)'!AB18=\"True\",G18,'Schedule IVD (EBS)'!O18)","v":0},{"$f":"+'Schedule IVE (EBS)'!E18","v":0},{"$f":"+'Schedule IVE (EBS)'!F18","v":0},{"$f":"+'Schedule IVE (EBS)'!G18","v":0},{"$f":"+'Schedule IVE (EBS)'!H18","v":0},{"$f":"+'Schedule IVE (EBS)'!I18","v":0},{"$f":"+'Schedule IVE (EBS)'!J18","v":0},{"$f":"+'Schedule IVE (EBS)'!K18","v":0},{"$f":"+'Schedule IVE (EBS)'!L18","v":0},{"$f":"+'Schedule IVE (EBS)'!M18","v":0},{"$f":"+'Schedule IVE (EBS)'!N18","v":0},{"$f":"+'Schedule IVE (EBS)'!O18","v":0},{"$f":"+'Schedule IVE (EBS)'!P18","v":0},{"$f":"+'Schedule IVE (EBS)'!Q18","v":0},{"$f":"+'Schedule IVE (EBS)'!R18","v":0},{"$f":"+'Schedule IVE (EBS)'!S18","v":0},{"$f":"+'Schedule IVE (EBS)'!T18","v":0},{"$f":"+'Schedule IVE (EBS)'!U18","v":0},{"$f":"+'Schedule IVE (EBS)'!V18","v":0}]
[null,"Energy Offshore / Marine Non-Proportional","Schedule IV(a), Line (11)",0,0,1,0,{"$f":"IF('Schedule IVE (EBS)'!AB19=\"True\",G19,'Schedule IVD (EBS)'!O19)","v":0},{"$f":"+'Schedule IVE (EBS)'!E19","v":0},{"$f":"+'Schedule IVE (EBS)'!F19","v":0},{"$f":"+'Schedule IVE (EBS)'!G19","v":0},{"$f":"+'Schedule IVE (EBS)'!H19","v":0},{"$f":"+'Schedule IVE (EBS)'!I19","v":0},{"$f":"+'Schedule IVE (EBS)'!J19","v":0},{"$f":"+'Schedule IVE (EBS)'!K19","v":0},{"$f":"+'Schedule IVE (EBS)'!L19","v":0},{"$f":"+'Schedule IVE (EBS)'!M19","v":0},{"$f":"+'Schedule IVE (EBS)'!N19","v":0},{"$f":"+'Schedule IVE (EBS)'!O19","v":0},{"$f":"+'Schedule IVE (EBS)'!P19","v":0},{"$f":"+'Schedule IVE (EBS)'!Q19","v":0},{"$f":"+'Schedule IVE (EBS)'!R19","v":0},{"$f":"+'Schedule IVE (EBS)'!S19","v":0},{"$f":"+'Schedule IVE (EBS)'!T19","v":0},{"$f":"+'Schedule IVE (EBS)'!U19","v":0},{"$f":"+'Schedule IVE (EBS)'!V19","v":0}]
[null,"US Casualty","Schedule IV(a), Line (12)",0,0,1,0,{"$f":"IF('Schedule IVE (EBS)'!AB20=\"True\",G20,'Schedule IVD (EBS)'!O20)","v":0},{"$f":"+'Schedule IVE (EBS)'!E20","v":0},{"$f":"+'Schedule IVE (EBS)'!F20","v":0},{"$f":"+'Schedule IVE (EBS)'!G20","v":0},{"$f":"+'Schedule IVE (EBS)'!H20","v":0},{"$f":"+'Schedule IVE (EBS)'!I20","v":0},{"$f":"+'Schedule IVE (EBS)'!J20","v":0},{"$f":"+'Schedule IVE (EBS)'!K20","v":0},{"$f":"+'Schedule IVE (EBS)'!L20","v":0},{"$f":"+'Schedule IVE (EBS)'!M20","v":0},{"$f":"+'Schedule IVE (EBS)'!N20","v":0},{"$f":"+'Schedule IVE (EBS)'!O20","v":0},{"$f":"+'Schedule IVE (EBS)'!P20","v":0},{"$f":"+'Schedule IVE (EBS)'!Q20","v":0},{"$f":"+'Schedule IVE (EBS)'!R20","v":0},{"$f":"+'Schedule IVE (EBS)'!S20","v":0},{"$f":"+'Schedule IVE (EBS)'!T20","v":0},{"$f":"+'Schedule IVE (EBS)'!U20","v":0},{"$f":"+'Schedule IVE (EBS)'!V20","v":0}]
[null,"US Casualty Non-Proportional","Schedule IV(a), Line (13)",0,0,1,0,{"$f":"IF('Schedule IVE (EBS)'!AB21=\"True\",G21,'Schedule IVD (EBS)'!O21)","v":0},{"$f":"+'Schedule IVE (EBS)'!E21","v":0},{"$f":"+'Schedule IVE (EBS)'!F21","v":0},{"$f":"+'Schedule IVE (EBS)'!G21","v":0},{"$f":"+'Schedule IVE (EBS)'!H21","v":0},{"$f":"+'Schedule IVE (EBS)'!I21","v":0},{"$f":"+'Schedule IVE (EBS)'!J21","v":0},{"$f":"+'Schedule IVE (EBS)'!K21","v":0},{"$f":"+'Schedule IVE (EBS)'!L21","v":0},{"$f":"+'Schedule IVE (EBS)'!M21","v":0},{"$f":"+'Schedule IVE (EBS)'!N21","v":0},{"$f":"+'Schedule IVE (EBS)'!O21","v":0},{"$f":"+'Schedule IVE (EBS)'!P21","v":0},{"$f":"+'Schedule IVE (EBS)'!Q21","v":0},{"$f":"+'Schedule IVE (EBS)'!R21","v":0},{"$f":"+'Schedule IVE (EBS)'!S21","v":0},{"$f":"+'Schedule IVE (EBS)'!T21","v":0},{"$f":"+'Schedule IVE (EBS)'!U21","v":0},{"$f":"+'Schedule IVE (EBS)'!V21","v":0}]
[null,"US Professional","Schedule IV(a), Line (14)",0,0,1,0,{"$f":"IF('Schedule IVE (EBS)'!AB22=\"True\",G22,'Schedule IVD (EBS)'!O22)","v":0},{"$f":"+'Schedule IVE (EBS)'!E22","v":0},{"$f":"+'Schedule IVE (EBS)'!F22","v":0},{"$f":"+'Schedule IVE (EBS)'!G22","v":0},{"$f":"+'Schedule IVE (EBS)'!H22","v":0},{"$f":"+'Schedule IVE (EBS)'!I22","v":0},{"$f":"+'Schedule IVE (EBS)'!J22","v":0},{"$f":"+'Schedule IVE (EBS)'!K22","v":0},{"$f":"+'Schedule IVE (EBS)'!L22","v":0},{"$f":"+'Schedule IVE (EBS)'!M22","v":0},{"$f":"+'Schedule IVE (EBS)'!N22","v":0},{"$f":"+'Schedule IVE (EBS)'!O22","v":0},{"$f":"+'Schedule IVE (EBS)'!P22","v":0},{"$f":"+'Schedule IVE (EBS)'!Q22","v":0},{"$f":"+'Schedule IVE (EBS)'!R22","v":0},{"$f":"+'Schedule IVE (EBS)'!S22","v":0},{"$f":"+'Schedule IVE (EBS)'!T22","v":0},{"$f":"+'Schedule IVE (EBS)'!U22","v":0},{"$f":"+'Schedule IVE (EBS)'!V22","v":0}]
[null,"US Professional Non-Proportional","Schedule IV(a), Line (15)",0,0,1,0,{"$f":"IF('Schedule IVE (EBS)'!AB23=\"True\",G23,'Schedule IVD (EBS)'!O23)","v":0},{"$f":"+'Schedule IVE (EBS)'!E23","v":0},{"$f":"+'Schedule IVE (EBS)'!F23","v":0},{"$f":"+'Schedule IVE (EBS)'!G23","v":0},{"$f":"+'Schedule IVE (EBS)'!H23","v":0},{"$f":"+'Schedule IVE (EBS)'!I23","v":0},{"$f":"+'Schedule IVE (EBS)'!J23","v":0},{"$f":"+'Schedule IVE (EBS)'!K23","v":0},{"$f":"+'Schedule IVE (EBS)'!L23","v":0},{"$f":"+'Schedule IVE (EBS)'!M23","v":0},{"$f":"+'Schedule IVE (EBS)'!N23","v":0},{"$f":"+'Schedule IVE (EBS)'!O23","v":0},{"$f":"+'Schedule IVE (EBS)'!P23","v":0},{"$f":"+'Schedule IVE (EBS)'!Q23","v":0},{"$f":"+'Schedule IVE (EBS)'!R23","v":0},{"$f":"+'Schedule IVE (EBS)'!S23","v":0},{"$f":"+'Schedule IVE (EBS)'!T23","v":0},{"$f":"+'Schedule IVE (EBS)'!U23","v":0},{"$f":"+'Schedule IVE (EBS)'!V23","v":0}]
[null,"US Specialty","Schedule IV(a), Line (16)",0,0,1,0,{"$f":"IF('Schedule IVE (EBS)'!AB24=\"True\",G24,'Schedule IVD (EBS)'!O24)","v":0},{"$f":"+'Schedule IVE (EBS)'!E24","v":0},{"$f":"+'Schedule IVE (EBS)'!F24","v":0},{"$f":"+'Schedule IVE (EBS)'!G24","v":0},{"$f":"+'Schedule IVE (EBS)'!H24","v":0},{"$f":"+'Schedule IVE (EBS)'!I24","v":0},{"$f":"+'Schedule IVE (EBS)'!J24","v":0},{"$f":"+'Schedule IVE (EBS)'!K24","v":0},{"$f":"+'Schedule IVE (EBS)'!L24","v":0},{"$f":"+'Schedule IVE (EBS)'!M24","v":0},{"$f":"+'Schedule IVE (EBS)'!N24","v":0},{"$f":"+'Schedule IVE (EBS)'!O24","v":0},{"$f":"+'Schedule IVE (EBS)'!P24","v":0},{"$f":"+'Schedule IVE (EBS)'!Q24","v":0},{"$f":"+'Schedule IVE (EBS)'!R24","v":0},{"$f":"+'Schedule IVE (EBS)'!S24","v":0},{"$f":"+'Schedule IVE (EBS)'!T24","v":0},{"$f":"+'Schedule IVE (EBS)'!U24","v":0},{"$f":"+'Schedule IVE (EBS)'!V24","v":0}]
[null,"US Specialty Non-Proportional","Schedule IV(a), Line (17)",0,0,1,0,{"$f":"IF('Schedule IVE (EBS)'!AB25=\"True\",G25,'Schedule IVD (EBS)'!O25)","v":0},{"$f":"+'Schedule IVE (EBS)'!E25","v":0},{"$f":"+'Schedule IVE (EBS)'!F25","v":0},{"$f":"+'Schedule IVE (EBS)'!G25","v":0},{"$f":"+'Schedule IVE (EBS)'!H25","v":0},{"$f":"+'Schedule IVE (EBS)'!I25","v":0},{"$f":"+'Schedule IVE (EBS)'!J25","v":0},{"$f":"+'Schedule IVE (EBS)'!K25","v":0},{"$f":"+'Schedule IVE (EBS)'!L25","v":0},{"$f":"+'Schedule IVE (EBS)'!M25","v":0},{"$f":"+'Schedule IVE (EBS)'!N25","v":0},{"$f":"+'Schedule IVE (EBS)'!O25","v":0},{"$f":"+'Schedule IVE (EBS)'!P25","v":0},{"$f":"+'Schedule IVE (EBS)'!Q25","v":0},{"$f":"+'Schedule IVE (EBS)'!R25","v":0},{"$f":"+'Schedule IVE (EBS)'!S25","v":0},{"$f":"+'Schedule IVE (EBS)'!T25","v":0},{"$f":"+'Schedule IVE (EBS)'!U25","v":0},{"$f":"+'Schedule IVE (EBS)'!V25","v":0}]
[null,"International Motor","Schedule IV(a), Line (18)",0,0,1,0,{"$f":"IF('Schedule IVE (EBS)'!AB26=\"True\",G26,'Schedule IVD (EBS)'!O26)","v":0},{"$f":"+'Schedule IVE (EBS)'!E26","v":0},{"$f":"+'Schedule IVE (EBS)'!F26","v":0},{"$f":"+'Schedule IVE (EBS)'!G26","v":0},{"$f":"+'Schedule IVE (EBS)'!H26","v":0},{"$f":"+'Schedule IVE (EBS)'!I26","v":0},{"$f":"+'Schedule IVE (EBS)'!J26","v":0},{"$f":"+'Schedule IVE (EBS)'!K26","v":0},{"$f":"+'Schedule IVE (EBS)'!L26","v":0},{"$f":"+'Schedule IVE (EBS)'!M26","v":0},{"$f":"+'Schedule IVE (EBS)'!N26","v":0},{"$f":"+'Schedule IVE (EBS)'!O26","v":0},{"$f":"+'Schedule IVE (EBS)'!P26","v":0},{"$f":"+'Schedule IVE (EBS)'!Q26","v":0},{"$f":"+'Schedule IVE (EBS)'!R26","v":0},{"$f":"+'Schedule IVE (EBS)'!S26","v":0},{"$f":"+'Schedule IVE (EBS)'!T26","v":0},{"$f":"+'Schedule IVE (EBS)'!U26","v":0},{"$f":"+'Schedule IVE (EBS)'!V26","v":0}]
[null,"International Motor Non-Proportional","Schedule IV(a), Line (19)",0,0,1,0,{"$f":"IF('Schedule IVE (EBS)'!AB27=\"True\",G27,'Schedule IVD (EBS)'!O27)","v":0},{"$f":"+'Schedule IVE (EBS)'!E27","v":0},{"$f":"+'Schedule IVE (EBS)'!F27","v":0},{"$f":"+'Schedule IVE (EBS)'!G27","v":0},{"$f":"+'Schedule IVE (EBS)'!H27","v":0},{"$f":"+'Schedule IVE (EBS)'!I27","v":0},{"$f":"+'Schedule IVE (EBS)'!J27","v":0},{"$f":"+'Schedule IVE (EBS)'!K27","v":0},{"$f":"+'Schedule IVE (EBS)'!L27","v":0},{"$f":"+'Schedule IVE (EBS)'!M27","v":0},{"$f":"+'Schedule IVE (EBS)'!N27","v":0},{"$f":"+'Schedule IVE (EBS)'!O27","v":0},{"$f":"+'Schedule IVE (EBS)'!P27","v":0},{"$f":"+'Schedule IVE (EBS)'!Q27","v":0},{"$f":"+'Schedule IVE (EBS)'!R27","v":0},{"$f":"+'Schedule IVE (EBS)'!S27","v":0},{"$f":"+'Schedule IVE (EBS)'!T27","v":0},{"$f":"+'Schedule IVE (EBS)'!U27","v":0},{"$f":"+'Schedule IVE (EBS)'!V27","v":0}]
[null,"International Casualty Non-Motor","Schedule IV(a), Line (20)",0,0,1,0,{"$f":"IF('Schedule IVE (EBS)'!AB28=\"True\",G28,'Schedule IVD (EBS)'!O28)","v":0},{"$f":"+'Schedule IVE (EBS)'!E28","v":0},{"$f":"+'Schedule IVE (EBS)'!F28","v":0},{"$f":"+'Schedule IVE (EBS)'!G28","v":0},{"$f":"+'Schedule IVE (EBS)'!H28","v":0},{"$f":"+'Schedule IVE (EBS)'!I28","v":0},{"$f":"+'Schedule IVE (EBS)'!J28","v":0},{"$f":"+'Schedule IVE (EBS)'!K28","v":0},{"$f":"+'Schedule IVE (EBS)'!L28","v":0},{"$f":"+'Schedule IVE (EBS)'!M28","v":0},{"$f":"+'Schedule IVE (EBS)'!N28","v":0},{"$f":"+'Schedule IVE (EBS)'!O28","v":0},{"$f":"+'Schedule IVE (EBS)'!P28","v":0},{"$f":"+'Schedule IVE (EBS)'!Q28","v":0},{"$f":"+'Schedule IVE (EBS)'!R28","v":0},{"$f":"+'Schedule IVE (EBS)'!S28","v":0},{"$f":"+'Schedule IVE (EBS)'!T28","v":0},{"$f":"+'Schedule IVE (EBS)'!U28","v":0},{"$f":"+'Schedule IVE (EBS)'!V28","v":0}]
[null,"International Casualty Non-Motor Non-Proportional","Schedule IV(a), Line (21)",0,0,1,0,{"$f":"IF('Schedule IVE (EBS)'!AB29=\"True\",G29,'Schedule IVD (EBS)'!O29)","v":0},{"$f":"+'Schedule IVE (EBS)'!E29","v":0},{"$f":"+'Schedule IVE (EBS)'!F29","v":0},{"$f":"+'Schedule IVE (EBS)'!G29","v":0},{"$f":"+'Schedule IVE (EBS)'!H29","v":0},{"$f":"+'Schedule IVE (EBS)'!I29","v":0},{"$f":"+'Schedule IVE (EBS)'!J29","v":0},{"$f":"+'Schedule IVE (EBS)'!K29","v":0},{"$f":"+'Schedule IVE (EBS)'!L29","v":0},{"$f":"+'Schedule IVE (EBS)'!M29","v":0},{"$f":"+'Schedule IVE (EBS)'!N29","v":0},{"$f":"+'Schedule IVE (EBS)'!O29","v":0},{"$f":"+'Schedule IVE (EBS)'!P29","v":0},{"$f":"+'Schedule IVE (EBS)'!Q29","v":0},{"$f":"+'Schedule IVE (EBS)'!R29","v":0},{"$f":"+'Schedule IVE (EBS)'!S29","v":0},{"$f":"+'Schedule IVE (EBS)'!T29","v":0},{"$f":"+'Schedule IVE (EBS)'!U29","v":0},{"$f":"+'Schedule IVE (EBS)'!V29","v":0}]
[null,"Retro Property","Schedule IV(a), Line (22)",0,0,1,0,{"$f":"IF('Schedule IVE (EBS)'!AB30=\"True\",G30,'Schedule IVD (EBS)'!O30)","v":0},{"$f":"+'Schedule IVE (EBS)'!E30","v":0},{"$f":"+'Schedule IVE (EBS)'!F30","v":0},{"$f":"+'Schedule IVE (EBS)'!G30","v":0},{"$f":"+'Schedule IVE (EBS)'!H30","v":0},{"$f":"+'Schedule IVE (EBS)'!I30","v":0},{"$f":"+'Schedule IVE (EBS)'!J30","v":0},{"$f":"+'Schedule IVE (EBS)'!K30","v":0},{"$f":"+'Schedule IVE (EBS)'!L30","v":0},{"$f":"+'Schedule IVE (EBS)'!M30","v":0},{"$f":"+'Schedule IVE (EBS)'!N30","v":0},{"$f":"+'Schedule IVE (EBS)'!O30","v":0},{"$f":"+'Schedule IVE (EBS)'!P30","v":0},{"$f":"+'Schedule IVE (EBS)'!Q30","v":0},{"$f":"+'Schedule IVE (EBS)'!R30","v":0},{"$f":"+'Schedule IVE (EBS)'!S30","v":0},{"$f":"+'Schedule IVE (EBS)'!T30","v":0},{"$f":"+'Schedule IVE (EBS)'!U30","v":0},{"$f":"+'Schedule IVE (EBS)'!V30","v":0}]
[null,"Structured / Finite Reinsurance","Schedule IV(a), Line (23)",0,0,1,0,{"$f":"IF('Schedule IVE (EBS)'!AB31=\"True\",G31,'Schedule IVD (EBS)'!O31)","v":0},{"$f":"+'Schedule IVE (EBS)'!E31","v":0},{"$f":"+'Schedule IVE (EBS)'!F31","v":0},{"$f":"+'Schedule IVE (EBS)'!G31","v":0},{"$f":"+'Schedule IVE (EBS)'!H31","v":0},{"$f":"+'Schedule IVE (EBS)'!I31","v":0},{"$f":"+'Schedule IVE (EBS)'!J31","v":0},{"$f":"+'Schedule IVE (EBS)'!K31","v":0},{"$f":"+'Schedule IVE (EBS)'!L31","v":0},{"$f":"+'Schedule IVE (EBS)'!M31","v":0},{"$f":"+'Schedule IVE (EBS)'!N31","v":0},{"$f":"+'Schedule IVE (EBS)'!O31","v":0},{"$f":"+'Schedule IVE (EBS)'!P31","v":0},{"$f":"+'Schedule IVE (EBS)'!Q31","v":0},{"$f":"+'Schedule IVE (EBS)'!R31","v":0},{"$f":"+'Schedule IVE (EBS)'!S31","v":0},{"$f":"+'Schedule IVE (EBS)'!T31","v":0},{"$f":"+'Schedule IVE (EBS)'!U31","v":0},{"$f":"+'Schedule IVE (EBS)'!V31","v":0}]
[null,"Health","Schedule IV(a), Line (24)",0,0,1,0,{"$f":"IF('Schedule IVE (EBS)'!AB32=\"True\",G32,'Schedule IVD (EBS)'!O32)","v":0},{"$f":"+'Schedule IVE (EBS)'!E32","v":0},{"$f":"+'Schedule IVE (EBS)'!F32","v":0},{"$f":"+'Schedule IVE (EBS)'!G32","v":0},{"$f":"+'Schedule IVE (EBS)'!H32","v":0},{"$f":"+'Schedule IVE (EBS)'!I32","v":0},{"$f":"+'Schedule IVE (EBS)'!J32","v":0},{"$f":"+'Schedule IVE (EBS)'!K32","v":0},{"$f":"+'Schedule IVE (EBS)'!L32","v":0},{"$f":"+'Schedule IVE (EBS)'!M32","v":0},{"$f":"+'Schedule IVE (EBS)'!N32","v":0},{"$f":"+'Schedule IVE (EBS)'!O32","v":0},{"$f":"+'Schedule IVE (EBS)'!P32","v":0},{"$f":"+'Schedule IVE (EBS)'!Q32","v":0},{"$f":"+'Schedule IVE (EBS)'!R32","v":0},{"$f":"+'Schedule IVE (EBS)'!S32","v":0},{"$f":"+'Schedule IVE (EBS)'!T32","v":0},{"$f":"+'Schedule IVE (EBS)'!U32","v":0},{"$f":"+'Schedule IVE (EBS)'!V32","v":0}]
[]
[null,"(a) TOTAL",null,{"$f":"SUM(D9:D32)","v":0},{"$f":"SUM(E9:E32)","v":0},null,{"$f":"SUM(G9:G32)","v":0},0,0,0,0,0,0,0,0,0,0,0,0,0,0,0,0,0,0,0]
[]
[null,null,null,"TOTAL",null,null,null,"CHARGE"]
[null,"NET LOSS PROVISION BY ",null,"NET","SUM","DIVERSIFICATION","RESERVE","DIVERSIFIED"]
[null,"LINE OF BUSINESS","STATEMENT SOURCE","RESERVE","SQUARED","FACTOR","USED","RESERVE",{"$f":"HYPERLINK(\"#'Zones'!c4\",\"Zone 1\")","v":"Zone 1"},{"$f":"HYPERLINK(\"#'Zones'!c13\",\"Zone 2\")","v":"Zone 2"},{"$f":"HYPERLINK(\"#'Zones'!c18\",\"Zone 3\")","v":"Zone 3"},{"$f":"HYPERLINK(\"#'Zones'!c26\",\"Zone 4\")","v":"Zone 4"},{"$f":"HYPERLINK(\"#'Zones'!c36\",\"Zone 5\")","v":"Zone 5"},{"$f":"HYPERLINK(\"#'Zones'!c46\",\"Zone 6\")","v":"Zone 6"},{"$f":"HYPERLINK(\"#'Zones'!c57\",\"Zone 7\")","v":"Zone 7"},{"$f":"HYPERLINK(\"#'Zones'!c68\",\"Zone 8\")","v":"Zone 8"},{"$f":"HYPERLINK(\"#'Zones'!c76\",\"Zone 9\")","v":"Zone 9"},{"$f":"HYPERLINK(\"#'Zones'!c84\",\"Zone 10\")","v":"Zone 10"},{"$f":"HYPERLINK(\"#'Zones'!c90\",\"Zone 11\")","v":"Zone 11"},{"$f":"HYPERLINK(\"#'Zones'!c94\",\"Zone 12\")","v":"Zone 12"},{"$f":"HYPERLINK(\"#'Zones'!c107\",\"Zone 13\")","v":"Zone 13"},{"$f":"HYPERLINK(\"#'Zones'!c112\",\"Zone 14\")","v":"Zone 14"},{"$f":"HYPERLINK(\"#'Zones'!c116\",\"Zone 15\")","v":"Zone 15"},{"$f":"HYPERLINK(\"#'Zones'!c121\",\"Zone 16\")","v":"Zone 16"},{"$f":"HYPERLINK(\"#'Zones'!c127\",\"Zone 17\")","v":"Zone 17"},{"$f":"HYPERLINK(\"#'Zones'!c133\",\"Zone 18\")","v":"Zone 18"}]
[]
[null,"Property Catastrophe","Schedule III(a), Line (1)",{"$f":"SUM(I40:Z40)","v":0},{"$f":"SUMSQ(I40:Z40)","v":0},{"$f":"(IF(D40>0,E40/D40^2,1))","v":1},{"$f":"D40*(0.75+0.25*F40)","v":0},{"$f":"IF('Schedule IIIA (EBS)'!AB10=\"TRUE\",G40,'Schedule III (EBS)'!F10)","v":0},{"$f":"'Schedule IIIA (EBS)'!E10","v":0},{"$f":"'Schedule IIIA (EBS)'!F10","v":0},{"$f":"'Schedule IIIA (EBS)'!G10","v":0},{"$f":"'Schedule IIIA (EBS)'!H10","v":0},{"$f":"'Schedule IIIA (EBS)'!I10","v":0},{"$f":"'Schedule IIIA (EBS)'!J10","v":0},{"$f":"'Schedule IIIA (EBS)'!K10","v":0},{"$f":"'Schedule IIIA (EBS)'!L10","v":0},{"$f":"'Schedule IIIA (EBS)'!M10","v":0},{"$f":"'Schedule IIIA (EBS)'!N10","v":0},{"$f":"'Schedule IIIA (EBS)'!O10","v":0},{"$f":"'Schedule IIIA (EBS)'!P10","v":0},{"$f":"'Schedule IIIA (EBS)'!Q10","v":0},{"$f":"'Schedule IIIA (EBS)'!R10","v":0},{"$f":"'Schedule IIIA (EBS)'!S10","v":0},{"$f":"'Schedule IIIA (EBS)'!T10","v":0},{"$f":"'Schedule IIIA (EBS)'!U10","v":0},{"$f":"'Schedule IIIA (EBS)'!V10","v":0}]
[null,"Property","Schedule III(a), Line (2)",{"$f":"SUM(I41:Z41)","v":0},{"$f":"SUMSQ(I41:Z41)","v":0},{"$f":"(IF(D41>0,E41/D41^2,1))","v":1},{"$f":"D41*(0.75+0.25*F41)","v":0},{"$f":"IF('Schedule IIIA (EBS)'!AB11=\"TRUE\",G41,'Schedule III (EBS)'!F11)","v":0},{"$f":"'Schedule IIIA (EBS)'!E11","v":0},{"$f":"'Schedule IIIA (EBS)'!F11","v":0},{"$f":"'Schedule IIIA (EBS)'!G11","v":0},{"$f":"'Schedule IIIA (EBS)'!H11","v":0},{"$f":"'Schedule IIIA (EBS)'!I11","v":0},{"$f":"'Schedule IIIA (EBS)'!J11","v":0},{"$f":"'Schedule IIIA (EBS)'!K11","v":0},{"$f":"'Schedule IIIA (EBS)'!L11","v":0},{"$f":"'Schedule IIIA (EBS)'!M11","v":0},{"$f":"'Schedule IIIA (EBS)'!N11","v":0},{"$f":"'Schedule IIIA (EBS)'!O11","v":0},{"$f":"'Schedule IIIA (EBS)'!P11","v":0},{"$f":"'Schedule IIIA (EBS)'!Q11","v":0},{"$f":"'Schedule IIIA (EBS)'!R11","v":0},{"$f":"'Schedule IIIA (EBS)'!S11","v":0},{"$f":"'Schedule IIIA (EBS)'!T11","v":0},{"$f":"'Schedule IIIA (EBS)'!U11","v":0},{"$f":"'Schedule IIIA (EBS)'!V11","v":0}]
[null,"Property Non-Proportional","Schedule III(a), Line (3)",0,0,1,0,{"$f":"IF('Schedule IIIA (EBS)'!AB12=\"TRUE\",G42,'Schedule III (EBS)'!F12)","v":0},{"$f":"'Schedule IIIA (EBS)'!E12","v":0},{"$f":"'Schedule IIIA (EBS)'!F12","v":0},{"$f":"'Schedule IIIA (EBS)'!G12","v":0},{"$f":"'Schedule IIIA (EBS)'!H12","v":0},{"$f":"'Schedule IIIA (EBS)'!I12","v":0},{"$f":"'Schedule IIIA (EBS)'!J12","v":0},{"$f":"'Schedule IIIA (EBS)'!K12","v":0},{"$f":"'Schedule IIIA (EBS)'!L12","v":0},{"$f":"'Schedule IIIA (EBS)'!M12","v":0},{"$f":"'Schedule IIIA (EBS)'!N12","v":0},{"$f":"'Schedule IIIA (EBS)'!O12","v":0},{"$f":"'Schedule IIIA (EBS)'!P12","v":0},{"$f":"'Schedule IIIA (EBS)'!Q12","v":0},{"$f":"'Schedule IIIA (EBS)'!R12","v":0},{"$f":"'Schedule IIIA (EBS)'!S12","v":0},{"$f":"'Schedule IIIA (EBS)'!T12","v":0},{"$f":"'Schedule IIIA (EBS)'!U12","v":0},{"$f":"'Schedule IIIA (EBS)'!V12","v":0}]
[null,"Personal Accident","Schedule III(a), Line (4)",0,0,1,0,{"$f":"IF('Schedule IIIA (EBS)'!AB13=\"TRUE\",G43,'Schedule III (EBS)'!F13)","v":0},{"$f":"'Schedule IIIA (EBS)'!E13","v":0},{"$f":"'Schedule IIIA (EBS)'!F13","v":0},{"$f":"'Schedule IIIA (EBS)'!G13","v":0},{"$f":"'Schedule IIIA (EBS)'!H13","v":0},{"$f":"'Schedule IIIA (EBS)'!I13","v":0},{"$f":"'Schedule IIIA (EBS)'!J13","v":0},{"$f":"'Schedule IIIA (EBS)'!K13","v":0},{"$f":"'Schedule IIIA (EBS)'!L13","v":0},{"$f":"'Schedule IIIA (EBS)'!M13","v":0},{"$f":"'Schedule IIIA (EBS)'!N13","v":0},{"$f":"'Schedule IIIA (EBS)'!O13","v":0},{"$f":"'Schedule IIIA (EBS)'!P13","v":0},{"$f":"'Schedule IIIA (EBS)'!Q13","v":0},{"$f":"'Schedule IIIA (EBS)'!R13","v":0},{"$f":"'Schedule IIIA (EBS)'!S13","v":0},{"$f":"'Schedule IIIA (EBS)'!T13","v":0},{"$f":"'Schedule IIIA (EBS)'!U13","v":0},{"$f":"'Schedule IIIA (EBS)'!V13","v":0}]
[null,"Personal Accident Non-Proportional","Schedule III(a), Line (5)",0,0,1,0,{"$f":"IF('Schedule IIIA (EBS)'!AB14=\"TRUE\",G44,'Schedule III (EBS)'!F14)","v":0},{"$f":"'Schedule IIIA (EBS)'!E14","v":0},{"$f":"'Schedule IIIA (EBS)'!F14","v":0},{"$f":"'Schedule IIIA (EBS)'!G14","v":0},{"$f":"'Schedule IIIA (EBS)'!H14","v":0},{"$f":"'Schedule IIIA (EBS)'!I14","v":0},{"$f":"'Schedule IIIA (EBS)'!J14","v":0},{"$f":"'Schedule IIIA (EBS)'!K14","v":0},{"$f":"'Schedule IIIA (EBS)'!L14","v":0},{"$f":"'Schedule IIIA (EBS)'!M14","v":0},{"$f":"'Schedule IIIA (EBS)'!N14","v":0},{"$f":"'Schedule IIIA (EBS)'!O14","v":0},{"$f":"'Schedule IIIA (EBS)'!P14","v":0},{"$f":"'Schedule IIIA (EBS)'!Q14","v":0},{"$f":"'Schedule IIIA (EBS)'!R14","v":0},{"$f":"'Schedule IIIA (EBS)'!S14","v":0},{"$f":"'Schedule IIIA (EBS)'!T14","v":0},{"$f":"'Schedule IIIA (EBS)'!U14","v":0},{"$f":"'Schedule IIIA (EBS)'!V14","v":0}]
[null,"Aviation","Schedule III(a), Line (6)",0,0,1,0,{"$f":"IF('Schedule IIIA (EBS)'!AB15=\"TRUE\",G45,'Schedule III (EBS)'!F15)","v":0},{"$f":"'Schedule IIIA (EBS)'!E15","v":0},{"$f":"'Schedule IIIA (EBS)'!F15","v":0},{"$f":"'Schedule IIIA (EBS)'!G15","v":0},{"$f":"'Schedule IIIA (EBS)'!H15","v":0},{"$f":"'Schedule IIIA (EBS)'!I15","v":0},{"$f":"'Schedule IIIA (EBS)'!J15","v":0},{"$f":"'Schedule IIIA (EBS)'!K15","v":0},{"$f":"'Schedule IIIA (EBS)'!L15","v":0},{"$f":"'Schedule IIIA (EBS)'!M15","v":0},{"$f":"'Schedule IIIA (EBS)'!N15","v":0},{"$f":"'Schedule IIIA (EBS)'!O15","v":0},{"$f":"'Schedule IIIA (EBS)'!P15","v":0},{"$f":"'Schedule IIIA (EBS)'!Q15","v":0},{"$f":"'Schedule IIIA (EBS)'!R15","v":0},{"$f":"'Schedule IIIA (EBS)'!S15","v":0},{"$f":"'Schedule IIIA (EBS)'!T15","v":0},{"$f":"'Schedule IIIA (EBS)'!U15","v":0},{"$f":"'Schedule IIIA (EBS)'!V15","v":0}]
[null,"Aviation Non-Proportional","Schedule III(a), Line (7)",0,0,1,0,{"$f":"IF('Schedule IIIA (EBS)'!AB16=\"TRUE\",G46,'Schedule III (EBS)'!F16)","v":0},{"$f":"'Schedule IIIA (EBS)'!E16","v":0},{"$f":"'Schedule IIIA (EBS)'!F16","v":0},{"$f":"'Schedule IIIA (EBS)'!G16","v":0},{"$f":"'Schedule IIIA (EBS)'!H16","v":0},{"$f":"'Schedule IIIA (EBS)'!I16","v":0},{"$f":"'Schedule IIIA (EBS)'!J16","v":0},{"$f":"'Schedule IIIA (EBS)'!K16","v":0},{"$f":"'Schedule IIIA (EBS)'!L16","v":0},{"$f":"'Schedule IIIA (EBS)'!M16","v":0},{"$f":"'Schedule IIIA (EBS)'!N16","v":0},{"$f":"'Schedule IIIA (EBS)'!O16","v":0},{"$f":"'Schedule IIIA (EBS)'!P16","v":0},{"$f":"'Schedule IIIA (EBS)'!Q16","v":0},{"$f":"'Schedule IIIA (EBS)'!R16","v":0},{"$f":"'Schedule IIIA (EBS)'!S16","v":0},{"$f":"'Schedule IIIA (EBS)'!T16","v":0},{"$f":"'Schedule IIIA (EBS)'!U16","v":0},{"$f":"'Schedule IIIA (EBS)'!V16","v":0}]
[null,"Credit / Surety","Schedule III(a), Line (8)",0,0,1,0,{"$f":"IF('Schedule IIIA (EBS)'!AB17=\"TRUE\",G47,'Schedule III (EBS)'!F17)","v":0},{"$f":"'Schedule IIIA (EBS)'!E17","v":0},{"$f":"'Schedule IIIA (EBS)'!F17","v":0},{"$f":"'Schedule IIIA (EBS)'!G17","v":0},{"$f":"'Schedule IIIA (EBS)'!H17","v":0},{"$f":"'Schedule IIIA (EBS)'!I17","v":0},{"$f":"'Schedule IIIA (EBS)'!J17","v":0},{"$f":"'Schedule IIIA (EBS)'!K17","v":0},{"$f":"'Schedule IIIA (EBS)'!L17","v":0},{"$f":"'Schedule IIIA (EBS)'!M17","v":0},{"$f":"'Schedule IIIA (EBS)'!N17","v":0},{"$f":"'Schedule IIIA (EBS)'!O17","v":0},{"$f":"'Schedule IIIA (EBS)'!P17","v":0},{"$f":"'Schedule IIIA (EBS)'!Q17","v":0},{"$f":"'Schedule IIIA (EBS)'!R17","v":0},{"$f":"'Schedule IIIA (EBS)'!S17","v":0},{"$f":"'Schedule IIIA (EBS)'!T17","v":0},{"$f":"'Schedule IIIA (EBS)'!U17","v":0},{"$f":"'Schedule IIIA (EBS)'!V17","v":0}]
[null,"Credit / Surety Non-Proportional","Schedule III(a), Line (9)",0,0,1,0,{"$f":"IF('Schedule IIIA (EBS)'!AB18=\"TRUE\",G48,'Schedule III (EBS)'!F18)","v":0},{"$f":"'Schedule IIIA (EBS)'!E18","v":0},{"$f":"'Schedule IIIA (EBS)'!F18","v":0},{"$f":"'Schedule IIIA (EBS)'!G18","v":0},{"$f":"'Schedule IIIA (EBS)'!H18","v":0},{"$f":"'Schedule IIIA (EBS)'!I18","v":0},{"$f":"'Schedule IIIA (EBS)'!J18","v":0},{"$f":"'Schedule IIIA (EBS)'!K18","v":0},{"$f":"'Schedule IIIA (EBS)'!L18","v":0},{"$f":"'Schedule IIIA (EBS)'!M18","v":0},{"$f":"'Schedule IIIA (EBS)'!N18","v":0},{"$f":"'Schedule IIIA (EBS)'!O18","v":0},{"$f":"'Schedule IIIA (EBS)'!P18","v":0},{"$f":"'Schedule IIIA (EBS)'!Q18","v":0},{"$f":"'Schedule IIIA (EBS)'!R18","v":0},{"$f":"'Schedule IIIA (EBS)'!S18","v":0},{"$f":"'Schedule IIIA (EBS)'!T18","v":0},{"$f":"'Schedule IIIA (EBS)'!U18","v":0},{"$f":"'Schedule IIIA (EBS)'!V18","v":0}]
[null,"Energy Offshore / Marine","Schedule III(a), Line (10)",0,0,1,0,{"$f":"IF('Schedule IIIA (EBS)'!AB19=\"TRUE\",G49,'Schedule III (EBS)'!F19)","v":0},{"$f":"'Schedule IIIA (EBS)'!E19","v":0},{"$f":"'Schedule IIIA (EBS)'!F19","v":0},{"$f":"'Schedule IIIA (EBS)'!G19","v":0},{"$f":"'Schedule IIIA (EBS)'!H19","v":0},{"$f":"'Schedule IIIA (EBS)'!I19","v":0},{"$f":"'Schedule IIIA (EBS)'!J19","v":0},{"$f":"'Schedule IIIA (EBS)'!K19","v":0},{"$f":"'Schedule IIIA (EBS)'!L19","v":0},{"$f":"'Schedule IIIA (EBS)'!M19","v":0},{"$f":"'Schedule IIIA (EBS)'!N19","v":0},{"$f":"'Schedule IIIA (EBS)'!O19","v":0},{"$f":"'Schedule IIIA (EBS)'!P19","v":0},{"$f":"'Schedule IIIA (EBS)'!Q19","v":0},{"$f":"'Schedule IIIA (EBS)'!R19","v":0},{"$f":"'Schedule IIIA (EBS)'!S19","v":0},{"$f":"'Schedule IIIA (EBS)'!T19","v":0},{"$f":"'Schedule IIIA (EBS)'!U19","v":0},{"$f":"'Schedule IIIA (EBS)'!V19","v":0}]
[null,"Energy Offshore / Marine Non-Proportional","Schedule III(a), Line (11)",0,0,1,0,{"$f":"IF('Schedule IIIA (EBS)'!AB20=\"TRUE\",G50,'Schedule III (EBS)'!F20)","v":0},{"$f":"'Schedule IIIA (EBS)'!E20","v":0},{"$f":"'Schedule IIIA (EBS)'!F20","v":0},{"$f":"'Schedule IIIA (EBS)'!G20","v":0},{"$f":"'Schedule IIIA (EBS)'!H20","v":0},{"$f":"'Schedule IIIA (EBS)'!I20","v":0},{"$f":"'Schedule IIIA (EBS)'!J20","v":0},{"$f":"'Schedule IIIA (EBS)'!K20","v":0},{"$f":"'Schedule IIIA (EBS)'!L20","v":0},{"$f":"'Schedule IIIA (EBS)'!M20","v":0},{"$f":"'Schedule IIIA (EBS)'!N20","v":0},{"$f":"'Schedule IIIA (EBS)'!O20","v":0},{"$f":"'Schedule IIIA (EBS)'!P20","v":0},{"$f":"'Schedule IIIA (EBS)'!Q20","v":0},{"$f":"'Schedule IIIA (EBS)'!R20","v":0},{"$f":"'Schedule IIIA (EBS)'!S20","v":0},{"$f":"'Schedule IIIA (EBS)'!T20","v":0},{"$f":"'Schedule IIIA (EBS)'!U20","v":0},{"$f":"'Schedule IIIA (EBS)'!V20","v":0}]
[null,"US Casualty","Schedule III(a), Line (12)",0,0,1,0,{"$f":"IF('Schedule IIIA (EBS)'!AB21=\"TRUE\",G51,'Schedule III (EBS)'!F21)","v":0},{"$f":"'Schedule IIIA (EBS)'!E21","v":0},{"$f":"'Schedule IIIA (EBS)'!F21","v":0},{"$f":"'Schedule IIIA (EBS)'!G21","v":0},{"$f":"'Schedule IIIA (EBS)'!H21","v":0},{"$f":"'Schedule IIIA (EBS)'!I21","v":0},{"$f":"'Schedule IIIA (EBS)'!J21","v":0},{"$f":"'Schedule IIIA (EBS)'!K21","v":0},{"$f":"'Schedule IIIA (EBS)'!L21","v":0},{"$f":"'Schedule IIIA (EBS)'!M21","v":0},{"$f":"'Schedule IIIA (EBS)'!N21","v":0},{"$f":"'Schedule IIIA (EBS)'!O21","v":0},{"$f":"'Schedule IIIA (EBS)'!P21","v":0},{"$f":"'Schedule IIIA (EBS)'!Q21","v":0},{"$f":"'Schedule IIIA (EBS)'!R21","v":0},{"$f":"'Schedule IIIA (EBS)'!S21","v":0},{"$f":"'Schedule IIIA (EBS)'!T21","v":0},{"$f":"'Schedule IIIA (EBS)'!U21","v":0},{"$f":"'Schedule IIIA (EBS)'!V21","v":0}]
[null,"US Casualty Non-Proportional","Schedule III(a), Line (13)",0,0,1,0,{"$f":"IF('Schedule IIIA (EBS)'!AB22=\"TRUE\",G52,'Schedule III (EBS)'!F22)","v":0},{"$f":"'Schedule IIIA (EBS)'!E22","v":0},{"$f":"'Schedule IIIA (EBS)'!F22","v":0},{"$f":"'Schedule IIIA (EBS)'!G22","v":0},{"$f":"'Schedule IIIA (EBS)'!H22","v":0},{"$f":"'Schedule IIIA (EBS)'!I22","v":0},{"$f":"'Schedule IIIA (EBS)'!J22","v":0},{"$f":"'Schedule IIIA (EBS)'!K22","v":0},{"$f":"'Schedule IIIA (EBS)'!L22","v":0},{"$f":"'Schedule IIIA (EBS)'!M22","v":0},{"$f":"'Schedule IIIA (EBS)'!N22","v":0},{"$f":"'Schedule IIIA (EBS)'!O22","v":0},{"$f":"'Schedule IIIA (EBS)'!P22","v":0},{"$f":"'Schedule IIIA (EBS)'!Q22","v":0},{"$f":"'Schedule IIIA (EBS)'!R22","v":0},{"$f":"'Schedule IIIA (EBS)'!S22","v":0},{"$f":"'Schedule IIIA (EBS)'!T22","v":0},{"$f":"'Schedule IIIA (EBS)'!U22","v":0},{"$f":"'Schedule IIIA (EBS)'!V22","v":0}]
[null,"US Professional","Schedule III(a), Line (14)",0,0,1,0,{"$f":"IF('Schedule IIIA (EBS)'!AB23=\"TRUE\",G53,'Schedule III (EBS)'!F23)","v":0},{"$f":"'Schedule IIIA (EBS)'!E23","v":0},{"$f":"'Schedule IIIA (EBS)'!F23","v":0},{"$f":"'Schedule IIIA (EBS)'!G23","v":0},{"$f":"'Schedule IIIA (EBS)'!H23","v":0},{"$f":"'Schedule IIIA (EBS)'!I23","v":0},{"$f":"'Schedule IIIA (EBS)'!J23","v":0},{"$f":"'Schedule IIIA (EBS)'!K23","v":0},{"$f":"'Schedule IIIA (EBS)'!L23","v":0},{"$f":"'Schedule IIIA (EBS)'!M23","v":0},{"$f":"'Schedule IIIA (EBS)'!N23","v":0},{"$f":"'Schedule IIIA (EBS)'!O23","v":0},{"$f":"'Schedule IIIA (EBS)'!P23","v":0},{"$f":"'Schedule IIIA (EBS)'!Q23","v":0},{"$f":"'Schedule IIIA (EBS)'!R23","v":0},{"$f":"'Schedule IIIA (EBS)'!S23","v":0},{"$f":"'Schedule IIIA (EBS)'!T23","v":0},{"$f":"'Schedule IIIA (EBS)'!U23","v":0},{"$f":"'Schedule IIIA (EBS)'!V23","v":0}]
[null,"US Professional Non-Proportional","Schedule III(a), Line (15)",0,0,1,0,{"$f":"IF('Schedule IIIA (EBS)'!AB24=\"TRUE\",G54,'Schedule III (EBS)'!F24)","v":0},{"$f":"'Schedule IIIA (EBS)'!E24","v":0},{"$f":"'Schedule IIIA (EBS)'!F24","v":0},{"$f":"'Schedule IIIA (EBS)'!G24","v":0},{"$f":"'Schedule IIIA (EBS)'!H24","v":0},{"$f":"'Schedule IIIA (EBS)'!I24","v":0},{"$f":"'Schedule IIIA (EBS)'!J24","v":0},{"$f":"'Schedule IIIA (EBS)'!K24","v":0},{"$f":"'Schedule IIIA (EBS)'!L24","v":0},{"$f":"'Schedule IIIA (EBS)'!M24","v":0},{"$f":"'Schedule IIIA (EBS)'!N24","v":0},{"$f":"'Schedule IIIA (EBS)'!O24","v":0},{"$f":"'Schedule IIIA (EBS)'!P24","v":0},{"$f":"'Schedule IIIA (EBS)'!Q24","v":0},{"$f":"'Schedule IIIA (EBS)'!R24","v":0},{"$f":"'Schedule IIIA (EBS)'!S24","v":0},{"$f":"'Schedule IIIA (EBS)'!T24","v":0},{"$f":"'Schedule IIIA (EBS)'!U24","v":0},{"$f":"'Schedule IIIA (EBS)'!V24","v":0}]
[null,"US Specialty","Schedule III(a), Line (16)",0,0,1,0,{"$f":"IF('Schedule IIIA (EBS)'!AB25=\"TRUE\",G55,'Schedule III (EBS)'!F25)","v":0},{"$f":"'Schedule IIIA (EBS)'!E25","v":0},{"$f":"'Schedule IIIA (EBS)'!F25","v":0},{"$f":"'Schedule IIIA (EBS)'!G25","v":0},{"$f":"'Schedule IIIA (EBS)'!H25","v":0},{"$f":"'Schedule IIIA (EBS)'!I25","v":0},{"$f":"'Schedule IIIA (EBS)'!J25","v":0},{"$f":"'Schedule IIIA (EBS)'!K25","v":0},{"$f":"'Schedule IIIA (EBS)'!L25","v":0},{"$f":"'Schedule IIIA (EBS)'!M25","v":0},{"$f":"'Schedule IIIA (EBS)'!N25","v":0},{"$f":"'Schedule IIIA (EBS)'!O25","v":0},{"$f":"'Schedule IIIA (EBS)'!P25","v":0},{"$f":"'Schedule IIIA (EBS)'!Q25","v":0},{"$f":"'Schedule IIIA (EBS)'!R25","v":0},{"$f":"'Schedule IIIA (EBS)'!S25","v":0},{"$f":"'Schedule IIIA (EBS)'!T25","v":0},{"$f":"'Schedule IIIA (EBS)'!U25","v":0},{"$f":"'Schedule IIIA (EBS)'!V25","v":0}]
[null,"US Specialty Non-Proportional","Schedule III(a), Line (17)",0,0,1,0,{"$f":"IF('Schedule IIIA (EBS)'!AB26=\"TRUE\",G56,'Schedule III (EBS)'!F26)","v":0},{"$f":"'Schedule IIIA (EBS)'!E26","v":0},{"$f":"'Schedule IIIA (EBS)'!F26","v":0},{"$f":"'Schedule IIIA (EBS)'!G26","v":0},{"$f":"'Schedule IIIA (EBS)'!H26","v":0},{"$f":"'Schedule IIIA (EBS)'!I26","v":0},{"$f":"'Schedule IIIA (EBS)'!J26","v":0},{"$f":"'Schedule IIIA (EBS)'!K26","v":0},{"$f":"'Schedule IIIA (EBS)'!L26","v":0},{"$f":"'Schedule IIIA (EBS)'!M26","v":0},{"$f":"'Schedule IIIA (EBS)'!N26","v":0},{"$f":"'Schedule IIIA (EBS)'!O26","v":0},{"$f":"'Schedule IIIA (EBS)'!P26","v":0},{"$f":"'Schedule IIIA (EBS)'!Q26","v":0},{"$f":"'Schedule IIIA (EBS)'!R26","v":0},{"$f":"'Schedule IIIA (EBS)'!S26","v":0},{"$f":"'Schedule IIIA (EBS)'!T26","v":0},{"$f":"'Schedule IIIA (EBS)'!U26","v":0},{"$f":"'Schedule IIIA (EBS)'!V26","v":0}]
[null,"International Motor","Schedule III(a), Line (18)",0,0,1,0,{"$f":"IF('Schedule IIIA (EBS)'!AB27=\"TRUE\",G57,'Schedule III (EBS)'!F27)","v":0},{"$f":"'Schedule IIIA (EBS)'!E27","v":0},{"$f":"'Schedule IIIA (EBS)'!F27","v":0},{"$f":"'Schedule IIIA (EBS)'!G27","v":0},{"$f":"'Schedule IIIA (EBS)'!H27","v":0},{"$f":"'Schedule IIIA (EBS)'!I27","v":0},{"$f":"'Schedule IIIA (EBS)'!J27","v":0},{"$f":"'Schedule IIIA (EBS)'!K27","v":0},{"$f":"'Schedule IIIA (EBS)'!L27","v":0},{"$f":"'Schedule IIIA (EBS)'!M27","v":0},{"$f":"'Schedule IIIA (EBS)'!N27","v":0},{"$f":"'Schedule IIIA (EBS)'!O27","v":0},{"$f":"'Schedule IIIA (EBS)'!P27","v":0},{"$f":"'Schedule IIIA (EBS)'!Q27","v":0},{"$f":"'Schedule IIIA (EBS)'!R27","v":0},{"$f":"'Schedule IIIA (EBS)'!S27","v":0},{"$f":"'Schedule IIIA (EBS)'!T27","v":0},{"$f":"'Schedule IIIA (EBS)'!U27","v":0},{"$f":"'Schedule IIIA (EBS)'!V27","v":0}]
[null,"International Motor Non-Proportional","Schedule III(a), Line (19)",0,0,1,0,{"$f":"IF('Schedule IIIA (EBS)'!AB28=\"TRUE\",G58,'Schedule III (EBS)'!F28)","v":0},{"$f":"'Schedule IIIA (EBS)'!E28","v":0},{"$f":"'Schedule IIIA (EBS)'!F28","v":0},{"$f":"'Schedule IIIA (EBS)'!G28","v":0},{"$f":"'Schedule IIIA (EBS)'!H28","v":0},{"$f":"'Schedule IIIA (EBS)'!I28","v":0},{"$f":"'Schedule IIIA (EBS)'!J28","v":0},{"$f":"'Schedule IIIA (EBS)'!K28","v":0},{"$f":"'Schedule IIIA (EBS)'!L28","v":0},{"$f":"'Schedule IIIA (EBS)'!M28","v":0},{"$f":"'Schedule IIIA (EBS)'!N28","v":0},{"$f":"'Schedule IIIA (EBS)'!O28","v":0},{"$f":"'Schedule IIIA (EBS)'!P28","v":0},{"$f":"'Schedule IIIA (EBS)'!Q28","v":0},{"$f":"'Schedule IIIA (EBS)'!R28","v":0},{"$f":"'Schedule IIIA (EBS)'!S28","v":0},{"$f":"'Schedule IIIA (EBS)'!T28","v":0},{"$f":"'Schedule IIIA (EBS)'!U28","v":0},{"$f":"'Schedule IIIA (EBS)'!V28","v":0}]
[null,"International Casualty Non-Motor","Schedule III(a), Line (20)",0,0,1,0,{"$f":"IF('Schedule IIIA (EBS)'!AB29=\"TRUE\",G59,'Schedule III (EBS)'!F29)","v":0},{"$f":"'Schedule IIIA (EBS)'!E29","v":0},{"$f":"'Schedule IIIA (EBS)'!F29","v":0},{"$f":"'Schedule IIIA (EBS)'!G29","v":0},{"$f":"'Schedule IIIA (EBS)'!H29","v":0},{"$f":"'Schedule IIIA (EBS)'!I29","v":0},{"$f":"'Schedule IIIA (EBS)'!J29","v":0},{"$f":"'Schedule IIIA (EBS)'!K29","v":0},{"$f":"'Schedule IIIA (EBS)'!L29","v":0},{"$f":"'Schedule IIIA (EBS)'!M29","v":0},{"$f":"'Schedule IIIA (EBS)'!N29","v":0},{"$f":"'Schedule IIIA (EBS)'!O29","v":0},{"$f":"'Schedule IIIA (EBS)'!P29","v":0},{"$f":"'Schedule IIIA (EBS)'!Q29","v":0},{"$f":"'Schedule IIIA (EBS)'!R29","v":0},{"$f":"'Schedule IIIA (EBS)'!S29","v":0},{"$f":"'Schedule IIIA (EBS)'!T29","v":0},{"$f":"'Schedule IIIA (EBS)'!U29","v":0},{"$f":"'Schedule IIIA (EBS)'!V29","v":0}]
[null,"International Casualty Non-Motor Non-Proportional","Schedule III(a), Line (21)",0,0,1,0,{"$f":"IF('Schedule IIIA (EBS)'!AB30=\"TRUE\",G60,'Schedule III (EBS)'!F30)","v":0},{"$f":"'Schedule IIIA (EBS)'!E30","v":0},{"$f":"'Schedule IIIA (EBS)'!F30","v":0},{"$f":"'Schedule IIIA (EBS)'!G30","v":0},{"$f":"'Schedule IIIA (EBS)'!H30","v":0},{"$f":"'Schedule IIIA (EBS)'!I30","v":0},{"$f":"'Schedule IIIA (EBS)'!J30","v":0},{"$f":"'Schedule IIIA (EBS)'!K30","v":0},{"$f":"'Schedule IIIA (EBS)'!L30","v":0},{"$f":"'Schedule IIIA (EBS)'!M30","v":0},{"$f":"'Schedule IIIA (EBS)'!N30","v":0},{"$f":"'Schedule IIIA (EBS)'!O30","v":0},{"$f":"'Schedule IIIA (EBS)'!P30","v":0},{"$f":"'Schedule IIIA (EBS)'!Q30","v":0},{"$f":"'Schedule IIIA (EBS)'!R30","v":0},{"$f":"'Schedule IIIA (EBS)'!S30","v":0},{"$f":"'Schedule IIIA (EBS)'!T30","v":0},{"$f":"'Schedule IIIA (EBS)'!U30","v":0},{"$f":"'Schedule IIIA (EBS)'!V30","v":0}]
[null,"Retro Property","Schedule III(a), Line (22)",0,0,1,0,{"$f":"IF('Schedule IIIA (EBS)'!AB31=\"TRUE\",G61,'Schedule III (EBS)'!F31)","v":0},{"$f":"'Schedule IIIA (EBS)'!E31","v":0},{"$f":"'Schedule IIIA (EBS)'!F31","v":0},{"$f":"'Schedule IIIA (EBS)'!G31","v":0},{"$f":"'Schedule IIIA (EBS)'!H31","v":0},{"$f":"'Schedule IIIA (EBS)'!I31","v":0},{"$f":"'Schedule IIIA (EBS)'!J31","v":0},{"$f":"'Schedule IIIA (EBS)'!K31","v":0},{"$f":"'Schedule IIIA (EBS)'!L31","v":0},{"$f":"'Schedule IIIA (EBS)'!M31","v":0},{"$f":"'Schedule IIIA (EBS)'!N31","v":0},{"$f":"'Schedule IIIA (EBS)'!O31","v":0},{"$f":"'Schedule IIIA (EBS)'!P31","v":0},{"$f":"'Schedule IIIA (EBS)'!Q31","v":0},{"$f":"'Schedule IIIA (EBS)'!R31","v":0},{"$f":"'Schedule IIIA (EBS)'!S31","v":0},{"$f":"'Schedule IIIA (EBS)'!T31","v":0},{"$f":"'Schedule IIIA (EBS)'!U31","v":0},{"$f":"'Schedule IIIA (EBS)'!V31","v":0}]
[null,"Structured / Finite Reinsurance","Schedule III(a), Line (23)",0,0,1,0,{"$f":"IF('Schedule IIIA (EBS)'!AB32=\"TRUE\",G62,'Schedule III (EBS)'!F32)","v":0},{"$f":"'Schedule IIIA (EBS)'!E32","v":0},{"$f":"'Schedule IIIA (EBS)'!F32","v":0},{"$f":"'Schedule IIIA (EBS)'!G32","v":0},{"$f":"'Schedule IIIA (EBS)'!H32","v":0},{"$f":"'Schedule IIIA (EBS)'!I32","v":0},{"$f":"'Schedule IIIA (EBS)'!J32","v":0},{"$f":"'Schedule IIIA (EBS)'!K32","v":0},{"$f":"'Schedule IIIA (EBS)'!L32","v":0},{"$f":"'Schedule IIIA (EBS)'!M32","v":0},{"$f":"'Schedule IIIA (EBS)'!N32","v":0},{"$f":"'Schedule IIIA (EBS)'!O32","v":0},{"$f":"'Schedule IIIA (EBS)'!P32","v":0},{"$f":"'Schedule IIIA (EBS)'!Q32","v":0},{"$f":"'Schedule IIIA (EBS)'!R32","v":0},{"$f":"'Schedule IIIA (EBS)'!S32","v":0},{"$f":"'Schedule IIIA (EBS)'!T32","v":0},{"$f":"'Schedule IIIA (EBS)'!U32","v":0},{"$f":"'Schedule IIIA (EBS)'!V32","v":0}]
[null,"Health","Schedule III(a), Line (24)",0,0,1,0,{"$f":"IF('Schedule IIIA (EBS)'!AB33=\"TRUE\",G63,'Schedule III (EBS)'!F33)","v":0},{"$f":"'Schedule IIIA (EBS)'!E33","v":0},{"$f":"'Schedule IIIA (EBS)'!F33","v":0},{"$f":"'Schedule IIIA (EBS)'!G33","v":0},{"$f":"'Schedule IIIA (EBS)'!H33","v":0},{"$f":"'Schedule IIIA (EBS)'!I33","v":0},{"$f":"'Schedule IIIA (EBS)'!J33","v":0},{"$f":"'Schedule IIIA (EBS)'!K33","v":0},{"$f":"'Schedule IIIA (EBS)'!L33","v":0},{"$f":"'Schedule IIIA (EBS)'!M33","v":0},{"$f":"'Schedule IIIA (EBS)'!N33","v":0},{"$f":"'Schedule IIIA (EBS)'!O33","v":0},{"$f":"'Schedule IIIA (EBS)'!P33","v":0},{"$f":"'Schedule IIIA (EBS)'!Q33","v":0},{"$f":"'Schedule IIIA (EBS)'!R33","v":0},{"$f":"'Schedule IIIA (EBS)'!S33","v":0},{"$f":"'Schedule IIIA (EBS)'!T33","v":0},{"$f":"'Schedule IIIA (EBS)'!U33","v":0},{"$f":"'Schedule IIIA (EBS)'!V33","v":0}]
[]
[null,"(a) TOTAL",null,{"$f":"SUM(D40:D63)","v":0},{"$f":"SUM(E40:E63)","v":0},null,{"$f":"SUM(G40:G63)","v":0},0,0,0,0,0,0,0,0,0,0,0,0,0,0,0,0,0,0,0]

{"sheet":"Premium Risk (old)","index":125,"n_rows":78,"n_cols":9,"rows_kept":78,"cut":false,"hidden":true,"merged":[[0,8,0,9],[5,3,6,3]]}
["PREMIUM RISK",null,null,null,null,null,null,null,{"$f":"HYPERLINK(\"#'Index'!A1\",\"Return to Index\")","v":"Return to Index"}]
[{"$f":"'Company Information'!C7","v":"Enter Company Name"}]
[{"$f":"\"Premium Risk\" & \"($\"&IF(CONFIGURATION!$B$12>1,MID(CONFIGURATION!$B$12,2,LEN(CONFIGURATION!$B$12)),\"\")&\")\"","v":"Premium Risk($000)"},null,null,{"$f":"'Company Information'!C3","v":"2023-12-31"},-1,-2,-3,-4,-5]
[]
[null,null,null,null,"GROSS","NET","GEO"]
[null,null,null,"STATEMENT SOURCE","PREMIUMS","PREMIUMS","DIVERSIFIED","CAPITAL","REQUIRED"]
[null,"LINE OF BUSINESS",null,null,"WRITTEN","WRITTEN","PREMIUMS","FACTOR","CAPITAL"]
[]
[null,null,null,null,null,null,null,null,"(3) x (4)"]
[]
[null,"Property Catastrophe",null,"Schedule IVA, Line (1)",{"$f":"+'Schedule IVA (EBS)'!M11","v":0},{"$f":"'Schedule IVA (EBS)'!Q11","v":0},{"$f":"+'Geographic (old)'!H9","v":0},0,{"$f":"IF($G$11<0,0,$G$11*$H$11)","v":0}]
[null,"Property",null,"Schedule IVA, Line (2)",{"$f":"+'Schedule IVA (EBS)'!M12","v":0},{"$f":"'Schedule IVA (EBS)'!Q12","v":0},{"$f":"+'Geographic (old)'!H10","v":0},0.497450025355053,{"$f":"IF($G$12<0,0,$G$12*$H$12)","v":0}]
[null,"Property Non-Proportional",null,"Schedule IVA, Line (3)",{"$f":"+'Schedule IVA (EBS)'!M13","v":0},{"$f":"'Schedule IVA (EBS)'!Q13","v":0},{"$f":"+'Geographic (old)'!H11","v":0},0.51625715924082105,{"$f":"IF($G$13<0,0,$G$13*$H$13)","v":0}]
[null,"Personal Accident",null,"Schedule IVA, Line (4)",{"$f":"+'Schedule IVA (EBS)'!M14","v":0},{"$f":"'Schedule IVA (EBS)'!Q14","v":0},{"$f":"+'Geographic (old)'!H12","v":0},0.34115345724240698,{"$f":"IF($G$14<0,0,$G$14*$H$14)","v":0}]
[null,"Personal Accident Non-Proportional",null,"Schedule IVA, Line (5)",{"$f":"+'Schedule IVA (EBS)'!M15","v":0},{"$f":"'Schedule IVA (EBS)'!Q15","v":0},{"$f":"+'Geographic (old)'!H13","v":0},0.41221262895987398,{"$f":"IF($G$15<0,0,$G$15*$H$15)","v":0}]
[null,"Aviation",null,"Schedule IVA, Line (6)",{"$f":"+'Schedule IVA (EBS)'!M16","v":0},{"$f":"'Schedule IVA (EBS)'!Q16","v":0},{"$f":"+'Geographic (old)'!H14","v":0},0.48178449435856302,{"$f":"IF($G$16<0,0,$G$16*$H$16)","v":0}]
[null,"Aviation Non-Proportional",null,"Schedule IVA, Line (7)",{"$f":"+'Schedule IVA (EBS)'!M17","v":0},{"$f":"'Schedule IVA (EBS)'!Q17","v":0},{"$f":"+'Geographic (old)'!H15","v":0},0.48201231799963601,{"$f":"IF($G$17<0,0,$G$17*$H$17)","v":0}]
[null,"Credit / Surety",null,"Schedule IVA, Line (8)",{"$f":"+'Schedule IVA (EBS)'!M18","v":0},{"$f":"'Schedule IVA (EBS)'!Q18","v":0},{"$f":"+'Geographic (old)'!H16","v":0},0.39820522005250802,{"$f":"IF($G$18<0,0,$G$18*$H$18)","v":0}]
[null,"Credit / Surety Non-Proportional",null,"Schedule IVA, Line (9)",{"$f":"+'Schedule IVA (EBS)'!M19","v":0},{"$f":"'Schedule IVA (EBS)'!Q19","v":0},{"$f":"+'Geographic (old)'!H17","v":0},0.45356665999464701,{"$f":"IF($G$19<0,0,$G$19*$H$19)","v":0}]
[null,"Energy Offshore / Marine",null,"Schedule IVA, Line (10)",{"$f":"+'Schedule IVA (EBS)'!M20","v":0},{"$f":"'Schedule IVA (EBS)'!Q20","v":0},{"$f":"+'Geographic (old)'!H18","v":0},0.42102344656076801,{"$f":"IF($G$20<0,0,$G$20*$H$20)","v":0}]
[null,"Energy Offshore / Marine Non-Proportional",null,"Schedule IVA, Line (11)",{"$f":"+'Schedule IVA (EBS)'!M21","v":0},{"$f":"'Schedule IVA (EBS)'!Q21","v":0},{"$f":"+'Geographic (old)'!H19","v":0},0.47016820069929899,{"$f":"IF($G$21<0,0,$G$21*$H$21)","v":0}]
[null,"US Casualty",null,"Schedule IVA, Line (12)",{"$f":"+'Schedule IVA (EBS)'!M22","v":0},{"$f":"'Schedule IVA (EBS)'!Q22","v":0},{"$f":"+'Geographic (old)'!H20","v":0},0.50272577892886305,{"$f":"IF($G$22<0,0,$G$22*$H$22)","v":0}]
[null,"US Casualty Non-Proportional",null,"Schedule IVA, Line (13)",{"$f":"+'Schedule IVA (EBS)'!M23","v":0},{"$f":"'Schedule IVA (EBS)'!Q23","v":0},{"$f":"+'Geographic (old)'!H21","v":0},0.555814073452775,{"$f":"IF($G$23<0,0,$G$23*$H$23)","v":0}]
[null,"US Professional",null,"Schedule IVA, Line (14)",{"$f":"+'Schedule IVA (EBS)'!M24","v":0},{"$f":"'Schedule IVA (EBS)'!Q24","v":0},{"$f":"+'Geographic (old)'!H22","v":0},0.51225206482709496,{"$f":"IF($G$24<0,0,$G$24*$H$24)","v":0}]
[null,"US Professional Non-Proportional",null,"Schedule IVA, Line (15)",{"$f":"+'Schedule IVA (EBS)'!M25","v":0},{"$f":"'Schedule IVA (EBS)'!Q25","v":0},{"$f":"+'Geographic (old)'!H23","v":0},0.53805556666757803,{"$f":"IF($G$25<0,0,$G$25*$H$25)","v":0}]
[null,"US Specialty",null,"Schedule IVA, Line (16)",{"$f":"+'Schedule IVA (EBS)'!M26","v":0},{"$f":"'Schedule IVA (EBS)'!Q26","v":0},{"$f":"+'Geographic (old)'!H24","v":0},0.51436147942106603,{"$f":"IF($G$26<0,0,$G$26*$H$26)","v":0}]
[null,"US Specialty Non-Proportional",null,"Schedule IVA, Line (17)",{"$f":"+'Schedule IVA (EBS)'!M27","v":0},{"$f":"'Schedule IVA (EBS)'!Q27","v":0},{"$f":"+'Geographic (old)'!H25","v":0},0.52697789035313303,{"$f":"IF($G$27<0,0,$G$27*$H$27)","v":0}]
[null,"International Motor",null,"Schedule IVA, Line (18)",{"$f":"+'Schedule IVA (EBS)'!M28","v":0},{"$f":"'Schedule IVA (EBS)'!Q28","v":0},{"$f":"+'Geographic (old)'!H26","v":0},0.42191756117933499,{"$f":"IF($G$28<0,0,$G$28*$H$28)","v":0}]
[null,"International Motor Non-Proportional",null,"Schedule IVA, Line (19)",{"$f":"+'Schedule IVA (EBS)'!M29","v":0},{"$f":"'Schedule IVA (EBS)'!Q29","v":0},{"$f":"+'Geographic (old)'!H27","v":0},0.482210885429324,{"$f":"IF($G$29<0,0,$G$29*$H$29)","v":0}]
[null,"International Casualty Non-Motor",null,"Schedule IVA, Line (20)",{"$f":"+'Schedule IVA (EBS)'!M30","v":0},{"$f":"'Schedule IVA (EBS)'!Q30","v":0},{"$f":"+'Geographic (old)'!H28","v":0},0.50012106835589698,{"$f":"IF($G$30<0,0,$G$30*$H$30)","v":0}]
[null,"International Casualty Non-Motor Non-Proportional",null,"Schedule IVA, Line (21)",{"$f":"+'Schedule IVA (EBS)'!M31","v":0},{"$f":"'Schedule IVA (EBS)'!Q31","v":0},{"$f":"+'Geographic (old)'!H29","v":0},0.53551360019381999,{"$f":"IF($G$31<0,0,$G$31*$H$31)","v":0}]
[null,"Retro Property",null,"Schedule IVA, Line (22)",{"$f":"+'Schedule IVA (EBS)'!M32","v":0},{"$f":"'Schedule IVA (EBS)'!Q32","v":0},{"$f":"+'Geographic (old)'!H30","v":0},0.508030898436173,{"$f":"IF($G$32<0,0,$G$32*$H$32)","v":0}]
[null,"Structured / Finite Reinsurance",null,"Schedule IVA, Line (23)",{"$f":"+'Schedule IVA (EBS)'!M33","v":0},{"$f":"'Schedule IVA (EBS)'!Q33","v":0},{"$f":"+'Geographic (old)'!H31","v":0},0.27200000000000002,{"$f":"IF($G$33<0,0,$G$33*$H$33)","v":0}]
[null,"Health",null,"Schedule IVA, Line (24)",{"$f":"+'Schedule IVA (EBS)'!M34","v":0},{"$f":"'Schedule IVA (EBS)'!Q34","v":0},{"$f":"+'Geographic (old)'!H32","v":0},0.15,{"$f":"IF($G$34<0,0,$G$34*$H$34)","v":0}]
[]
[null,"(a)  TOTAL",null,null,{"$f":"SUM(E11:E34)","v":0},{"$f":"SUM(F11:F34)","v":0},{"$f":"SUM(G11:G34)","v":0},null,{"$f":"SUM(I11:I35)","v":0}]
[]
[null,"(b)  CONCENTRATION ADJUSTMENT CALCULATION"]
[]
[null,"(i)","(i)","Maximum Premium [ Maximum (1a) excl Prop CAT ]",null,null,null,null,{"$f":"MAX(G12:G34)","v":0}]
[null,"(ii)","(ii)","Total Premium [ Total (1a) excl Prop CAT ]",null,null,null,null,{"$f":"G36-G11","v":0}]
[null,"(iii)","(iii)","Maximum Premium / Total Premium [ (i) / (ii) ]",null,null,null,null,{"$f":"IF(I41=0,0,I40/I41)","v":0}]
[null,"(iv)","(iv)","Maximum Adjustment",null,null,null,null,{"$f":"'Reserve Risk (old)'!H43","v":0.4}]
[null,"(v)","(v)","[ (iii) x (iv) ]",null,null,null,null,{"$f":"I42*I43","v":0}]
[null,"(vi)","(vi)","Minimum Adjustment Factor",null,null,null,null,{"$f":"1-I43","v":0.6}]
[]
[null,"(b)  CONCENTRATION ADJUSTMENT FACTOR [ (v) + (vi) ]",null,null,null,null,null,null,{"$f":"I44+I45","v":0.6}]
[]
[null,"(c)  REQUIRED CAPITAL CHARGE  [ TOTAL (a) x (b) ]",null,null,null,null,null,null,{"$f":"IF(I36=0,0,I36*I47)","v":0}]
[]
[null,"(c)  CATASTROPHE PREMIUM ADJUSTMENT CALCULATION"]
[]
[null,"(i)","(i)","Average Annual Loss (AAL) Excluding Property Catastrophe",null,null,null,null,{"$f":"'Catastrophe Risk (old)'!E11","v":0}]
[null,"(ii)","(ii)","Industry Catastrophe Loss Ratio",null,null,null,null,{"$f":"'Catastrophe Risk (old)'!E13","v":0.4}]
[null,"(iii)","(iii)","Avg Capital Factor  [ Total (3c) / (Total (1a) excl Prop CAT) ]",null,null,null,null,{"$f":"IF(I41=0,0,I49/I41)","v":0}]
[]
[null,"(c)  CATASTROPHE PREMIUM ADJUSTMENT  [ (i) / (ii) x (iii) ]",null,null,null,null,null,null,{"$f":"I53/I54*I55","v":0}]
[]
[null,"(b)  CONCENTRATION ADJUSTMENT CALCULATIONS"]
[]
[null,null,"(i)","Total Premium [ Total (1a) excl Prop CAT ]",null,null,null,null,{"$f":"G36-G11","v":0}]
[null,null,"(ii)","Concentration Adjustment (HHI Calculation)",null,null,null,null,{"$f":"IF(I61=0,0,(G12/I61)^2+(G13/I61)^2+(G14/I61)^2+(G15/I61)^2+(G16/I61)^2+(G17/I61)^2+(G18/I61)^2+(G19/I61)^2+(G20/I61)^2+(G21/I61)^2+(G22/I61)^2+(G23/I61)^2+(G24/I61)^2+(G25/I61)^2+(G26/I61)^2+(G27/I61)^2+(G28/I61)^2+(G29/I61)^2+(G30/I61)^2+(G31/I61)^2+(G32/I61)^2+(G33/I61)^2+(G34/I61)^2)","v":0}]
[null,null,"(iii)","Maximum Adjustment",null,null,null,null,0.4]
[null,null,"(iv)"," [ (ii) x (iii) ]",null,null,null,null,{"$f":"I62*I63","v":0}]
[null,null,"(v)","Minimum Adjustment Factor",null,null,null,null,{"$f":"1-I63","v":0.6}]
[]
[null,"(b)(i) CONCENTRATION ADJUSTMENT FACTOR (formula 1) [(iv) + (v)]",null,null,null,null,null,null,{"$f":"I64+I65","v":0.6}]
[]
[null,null,"(i)","Concentration Adjustment (up to 95%)",null,null,null,null,{"$f":"'Schedule IX(b)'!H51/900*95%","v":0}]
[null,null,"(ii)","Related Business % (up to 5%)",null,null,null,null,{"$f":"'Schedule IX(b)'!H55*5%","v":0}]
[null,null,"(iii)"," [ (i) + (ii) ]",null,null,null,null,{"$f":"I69+I70","v":0}]
[null,null,"(iv)","Maximum Adjustment",null,null,null,null,0.4]
[]
[null,"(b)(ii) CONCENTRATION ADJUSTMENT FACTOR (formula 2) [(iii) x (iv)]",null,null,null,null,null,null,{"$f":"I71*I72","v":0}]
[]
[null,"(c) CONCENTRATION ADJUSTMENT FACTOR [(b)(i)-(b)(ii)]",null,null,null,null,null,null,{"$f":"I67-I74","v":0.6}]
[]
[null,{"$f":"IF('Company Information'!F11=\"Class 3A\",\"(d) TOTAL PREMIUM RISK [(a) x (c)]\",\"(e)  TOTAL PREMIUM RISK (AFTER CATASTROPHE PREMIUM ADJUSTMENT)   [ (c) - (d) ]\")","v":"(d) TOTAL PREMIUM RISK [(a) x (c)]"},null,null,null,null,null,null,{"$f":"IF('Company Information'!F11=\"Class 3A\",IF((I76*I36)>=0,I76*I36,0),IF(I49-I57>=0,I49-I57,0))","v":0}]

{"sheet":"Premium Risk","index":126,"n_rows":59,"n_cols":20,"rows_kept":59,"cut":false,"hidden":false,"merged":[[5,2,6,2]]}
["PREMIUM RISK (REVISED)",null,null,null,null,null,null,null,null,null,null,null,null,{"$f":"HYPERLINK(\"#'Index'!A1\",\"Return to Index\")","v":"Return to Index"}]
[{"$f":"'Company Information'!C7","v":"Enter Company Name"}]
[{"$f":"\"Premium Risk\" & \"($\"&IF(CONFIGURATION!$B$12>1,MID(CONFIGURATION!$B$12,2,LEN(CONFIGURATION!$B$12)),\"\")&\")\"","v":"Premium Risk($000)"},null,{"$f":" TEXT('Company Information'!C3,\"d mmmm yyyy\")","v":"31 December 2023"}]
[]
[null,null,null,"GROSS","NET","GEO","GEO","GEO","GEO","GEO","CAPITAL","CAPITAL","CAPITAL",null,null,null,"Capital Charges for Credit Risk"]
[null,null,"STATEMENT SOURCE","EXPOSURE","EXPOSURE","DIVERSIFIED","DIVERSIFIED","DIVERSIFIED","DIVERSIFIED","DIVERSIFIED","FACTOR 1","FACTOR 2","FACTOR 3","REQUIRED",null,null,"Gross Required"]
[null,"LINE OF BUSINESS",null,"MEASURE","MEASURE","PREMIUMS","SCALAR","NET BASE EXPOSURE","NET FP (EXISTING)","NET FP (FUTURE)","NET BASE EXPOSURE","NET FP (EXISTING)","NET FP (FUTURE)","CAPITAL",null,null,"Capital "]
[]
[null,null,null,"(1)","(2)","(3)","(4)","(5)","(6)","(7)","(8)","(9)","(10)","(11)",null,null,null,null,"Scalars 2","Scalars 3"]
[]
[null,"Property Catastrophe","Schedule IVD, Line (1)",{"$f":"'Schedule IVD (EBS)'!Q9","v":0},{"$f":"'Schedule IVD (EBS)'!O9","v":0},{"$f":"'Geographic Diversification'!H9","v":0},{"$f":"IF(IFERROR(F11/E11,1)<0,1,IFERROR(F11/E11,1))","v":1},{"$f":"'Schedule IVD (EBS)'!I9*$G11","v":0},{"$f":"'Schedule IVD (EBS)'!K9*$G11","v":0},{"$f":"'Schedule IVD (EBS)'!M9*$G11","v":0},0,0.115,{"$f":"+L11*T11","v":5.7500000000000002E-2},{"$f":"IF($H11<0,0,$H11*$K11)+IF($I11<0,0,$I11*$L11)+IF($J11<0,0,$J11*$M11)","v":0},null,null,{"$f":"IF(H11=E11,MAX(D11*K11,0),IF(E11=F11,IF(D11<0,0,D11*(H11/F11)*K11),IF(D11<0,0,D11*(H11/E11)*K11)))\n+IF(I11=E11,MAX(D11*L11,0),IF(E11=F11,IF(D11<0,0,D11*(I11/F11)*L11),IF(D11<0,0,D11*(I11/E11)*L11)))\n+IF(J11=E11,MAX(D11*M11,0),IF(E11=F11,IF(D11<0,0,D11*(J11/F11)*M11),IF(D11<0,0,D11*(J11/E11)*M11)))","v":0},null,0,0.5]
[null,"Property","Schedule IVD, Line (2)",{"$f":"'Schedule IVD (EBS)'!Q10","v":0},{"$f":"'Schedule IVD (EBS)'!O10","v":0},{"$f":"'Geographic Diversification'!H10","v":0},{"$f":"IF(IFERROR(F12/E12,1)<0,1,IFERROR(F12/E12,1))","v":1},{"$f":"'Schedule IVD (EBS)'!I10*$G12","v":0},{"$f":"'Schedule IVD (EBS)'!K10*$G12","v":0},{"$f":"'Schedule IVD (EBS)'!M10*$G12","v":0},0.497450025355053,{"$f":"+K12*S12","v":0.12436250633876325},6.2181253169381626E-2,{"$f":"IF($H12<0,0,$H12*$K12)+IF($I12<0,0,$I12*$L12)+IF($J12<0,0,$J12*$M12)","v":0},null,null,{"$f":"IF(H12=E12,MAX(D12*K12,0),IF(E12=F12,IF(D12<0,0,D12*(H12/F12)*K12),IF(D12<0,0,D12*(H12/E12)*K12)))\n+IF(I12=E12,MAX(D12*L12,0),IF(E12=F12,IF(D12<0,0,D12*(I12/F12)*L12),IF(D12<0,0,D12*(I12/E12)*L12)))\n+IF(J12=E12,MAX(D12*M12,0),IF(E12=F12,IF(D12<0,0,D12*(J12/F12)*M12),IF(D12<0,0,D12*(J12/E12)*M12)))","v":0},null,0.25,0.5]
[null,"Property Non-Proportional","Schedule IVD, Line (3)",{"$f":"'Schedule IVD (EBS)'!Q11","v":0},{"$f":"'Schedule IVD (EBS)'!O11","v":0},{"$f":"'Geographic Diversification'!H11","v":0},1,{"$f":"'Schedule IVD (EBS)'!I11*$G13","v":0},{"$f":"'Schedule IVD (EBS)'!K11*$G13","v":0},{"$f":"'Schedule IVD (EBS)'!M11*$G13","v":0},0.51625715924082105,0.12906428981020526,6.4532144905102631E-2,{"$f":"IF($H13<0,0,$H13*$K13)+IF($I13<0,0,$I13*$L13)+IF($J13<0,0,$J13*$M13)","v":0},null,null,0,null,0.25,0.5]
[null,"Personal Accident","Schedule IVD, Line (4)",{"$f":"'Schedule IVD (EBS)'!Q12","v":0},{"$f":"'Schedule IVD (EBS)'!O12","v":0},{"$f":"'Geographic Diversification'!H12","v":0},1,{"$f":"'Schedule IVD (EBS)'!I12*$G14","v":0},{"$f":"'Schedule IVD (EBS)'!K12*$G14","v":0},{"$f":"'Schedule IVD (EBS)'!M12*$G14","v":0},0.34115345724240698,8.5288364310601744E-2,4.2644182155300872E-2,{"$f":"IF($H14<0,0,$H14*$K14)+IF($I14<0,0,$I14*$L14)+IF($J14<0,0,$J14*$M14)","v":0},null,null,0,null,0.25,0.5]
[null,"Personal Accident Non-Proportional","Schedule IVD, Line (5)",{"$f":"'Schedule IVD (EBS)'!Q13","v":0},{"$f":"'Schedule IVD (EBS)'!O13","v":0},{"$f":"'Geographic Diversification'!H13","v":0},1,{"$f":"'Schedule IVD (EBS)'!I13*$G15","v":0},{"$f":"'Schedule IVD (EBS)'!K13*$G15","v":0},{"$f":"'Schedule IVD (EBS)'!M13*$G15","v":0},0.41221262895987398,0.12366378868796218,6.1831894343981092E-2,0,null,null,0,null,0.3,0.5]
[null,"Aviation","Schedule IVD, Line (6)",{"$f":"'Schedule IVD (EBS)'!Q14","v":0},{"$f":"'Schedule IVD (EBS)'!O14","v":0},{"$f":"'Geographic Diversification'!H14","v":0},1,{"$f":"'Schedule IVD (EBS)'!I14*$G16","v":0},{"$f":"'Schedule IVD (EBS)'!K14*$G16","v":0},{"$f":"'Schedule IVD (EBS)'!M14*$G16","v":0},0.48178449435856302,0.14453534830756889,7.2267674153784447E-2,{"$f":"IF($H16<0,0,$H16*$K16)+IF($I16<0,0,$I16*$L16)+IF($J16<0,0,$J16*$M16)","v":0},null,null,0,null,0.3,0.5]
[null,"Aviation Non-Proportional","Schedule IVD, Line (7)",{"$f":"'Schedule IVD (EBS)'!Q15","v":0},{"$f":"'Schedule IVD (EBS)'!O15","v":0},{"$f":"'Geographic Diversification'!H15","v":0},1,{"$f":"'Schedule IVD (EBS)'!I15*$G17","v":0},{"$f":"'Schedule IVD (EBS)'!K15*$G17","v":0},{"$f":"'Schedule IVD (EBS)'!M15*$G17","v":0},0.48201231799963601,0.14460369539989079,7.2301847699945396E-2,0,null,null,0,null,0.3,0.5]
[null,"Credit / Surety","Schedule IVD, Line (8)",{"$f":"'Schedule IVD (EBS)'!Q16","v":0},{"$f":"'Schedule IVD (EBS)'!O16","v":0},{"$f":"'Geographic Diversification'!H16","v":0},1,{"$f":"'Schedule IVD (EBS)'!I16*$G18","v":0},{"$f":"'Schedule IVD (EBS)'!K16*$G18","v":0},{"$f":"'Schedule IVD (EBS)'!M16*$G18","v":0},0.39820522005250802,0.1194615660157524,5.9730783007876202E-2,0,null,null,0,null,0.3,0.5]
[null,"Credit / Surety Non-Proportional","Schedule IVD, Line (9)",{"$f":"'Schedule IVD (EBS)'!Q17","v":0},{"$f":"'Schedule IVD (EBS)'!O17","v":0},{"$f":"'Geographic Diversification'!H17","v":0},1,{"$f":"'Schedule IVD (EBS)'!I17*$G19","v":0},{"$f":"'Schedule IVD (EBS)'!K17*$G19","v":0},{"$f":"'Schedule IVD (EBS)'!M17*$G19","v":0},0.45356665999464701,0.13606999799839409,6.8034998999197044E-2,0,null,null,0,null,0.3,0.5]
[null,"Energy Offshore / Marine","Schedule IVD, Line (10)",{"$f":"'Schedule IVD (EBS)'!Q18","v":0},{"$f":"'Schedule IVD (EBS)'!O18","v":0},{"$f":"'Geographic Diversification'!H18","v":0},1,{"$f":"'Schedule IVD (EBS)'!I18*$G20","v":0},{"$f":"'Schedule IVD (EBS)'!K18*$G20","v":0},{"$f":"'Schedule IVD (EBS)'!M18*$G20","v":0},0.42102344656076801,0.1263070339682304,6.3153516984115199E-2,0,null,null,0,null,0.3,0.5]
[null,"Energy Offshore / Marine Non-Proportional","Schedule IVD, Line (11)",{"$f":"'Schedule IVD (EBS)'!Q19","v":0},{"$f":"'Schedule IVD (EBS)'!O19","v":0},{"$f":"'Geographic Diversification'!H19","v":0},1,{"$f":"'Schedule IVD (EBS)'!I19*$G21","v":0},{"$f":"'Schedule IVD (EBS)'!K19*$G21","v":0},{"$f":"'Schedule IVD (EBS)'!M19*$G21","v":0},0.47016820069929899,0.1410504602097897,7.0525230104894851E-2,0,null,null,0,null,0.3,0.5]
[null,"US Casualty","Schedule IVD, Line (12)",{"$f":"'Schedule IVD (EBS)'!Q20","v":0},{"$f":"'Schedule IVD (EBS)'!O20","v":0},{"$f":"'Geographic Diversification'!H20","v":0},1,{"$f":"'Schedule IVD (EBS)'!I20*$G22","v":0},{"$f":"'Schedule IVD (EBS)'!K20*$G22","v":0},{"$f":"'Schedule IVD (EBS)'!M20*$G22","v":0},0.50272577892886305,0.25136288946443153,0.12568144473221576,0,null,null,0,null,0.5,0.5]
[null,"US Casualty Non-Proportional","Schedule IVD, Line (13)",{"$f":"'Schedule IVD (EBS)'!Q21","v":0},{"$f":"'Schedule IVD (EBS)'!O21","v":0},{"$f":"'Geographic Diversification'!H21","v":0},1,{"$f":"'Schedule IVD (EBS)'!I21*$G23","v":0},{"$f":"'Schedule IVD (EBS)'!K21*$G23","v":0},{"$f":"'Schedule IVD (EBS)'!M21*$G23","v":0},0.555814073452775,0.2779070367263875,0.13895351836319375,0,null,null,0,null,0.5,0.5]
[null,"US Professional","Schedule IVD, Line (14)",{"$f":"'Schedule IVD (EBS)'!Q22","v":0},{"$f":"'Schedule IVD (EBS)'!O22","v":0},{"$f":"'Geographic Diversification'!H22","v":0},1,{"$f":"'Schedule IVD (EBS)'!I22*$G24","v":0},{"$f":"'Schedule IVD (EBS)'!K22*$G24","v":0},{"$f":"'Schedule IVD (EBS)'!M22*$G24","v":0},0.51225206482709496,0.25612603241354748,0.12806301620677374,0,null,null,0,null,0.5,0.5]
[null,"US Professional Non-Proportional","Schedule IVD, Line (15)",{"$f":"'Schedule IVD (EBS)'!Q23","v":0},{"$f":"'Schedule IVD (EBS)'!O23","v":0},{"$f":"'Geographic Diversification'!H23","v":0},1,{"$f":"'Schedule IVD (EBS)'!I23*$G25","v":0},{"$f":"'Schedule IVD (EBS)'!K23*$G25","v":0},{"$f":"'Schedule IVD (EBS)'!M23*$G25","v":0},0.53805556666757803,0.26902778333378902,0.13451389166689451,0,null,null,0,null,0.5,0.5]
[null,"US Specialty","Schedule IVD, Line (16)",{"$f":"'Schedule IVD (EBS)'!Q24","v":0},{"$f":"'Schedule IVD (EBS)'!O24","v":0},{"$f":"'Geographic Diversification'!H24","v":0},1,{"$f":"'Schedule IVD (EBS)'!I24*$G26","v":0},{"$f":"'Schedule IVD (EBS)'!K24*$G26","v":0},{"$f":"'Schedule IVD (EBS)'!M24*$G26","v":0},0.51436147942106603,0.25718073971053301,0.12859036985526651,0,null,null,0,null,0.5,0.5]
[null,"US Specialty Non-Proportional","Schedule IVD, Line (17)",{"$f":"'Schedule IVD (EBS)'!Q25","v":0},{"$f":"'Schedule IVD (EBS)'!O25","v":0},{"$f":"'Geographic Diversification'!H25","v":0},1,{"$f":"'Schedule IVD (EBS)'!I25*$G27","v":0},{"$f":"'Schedule IVD (EBS)'!K25*$G27","v":0},{"$f":"'Schedule IVD (EBS)'!M25*$G27","v":0},0.52697789035313303,0.26348894517656651,0.13174447258828326,0,null,null,0,null,0.5,0.5]
[null,"International Motor","Schedule IVD, Line (18)",{"$f":"'Schedule IVD (EBS)'!Q26","v":0},{"$f":"'Schedule IVD (EBS)'!O26","v":0},{"$f":"'Geographic Diversification'!H26","v":0},1,{"$f":"'Schedule IVD (EBS)'!I26*$G28","v":0},{"$f":"'Schedule IVD (EBS)'!K26*$G28","v":0},{"$f":"'Schedule IVD (EBS)'!M26*$G28","v":0},0.42191756117933499,0.12657526835380048,6.328763417690024E-2,0,null,null,0,null,0.3,0.5]
[null,"International Motor Non-Proportional","Schedule IVD, Line (19)",{"$f":"'Schedule IVD (EBS)'!Q27","v":0},{"$f":"'Schedule IVD (EBS)'!O27","v":0},{"$f":"'Geographic Diversification'!H27","v":0},1,{"$f":"'Schedule IVD (EBS)'!I27*$G29","v":0},{"$f":"'Schedule IVD (EBS)'!K27*$G29","v":0},{"$f":"'Schedule IVD (EBS)'!M27*$G29","v":0},0.482210885429324,0.241105442714662,0.120552721357331,0,null,null,0,null,0.5,0.5]
[null,"International Casualty Non-Motor","Schedule IVD, Line (20)",{"$f":"'Schedule IVD (EBS)'!Q28","v":0},{"$f":"'Schedule IVD (EBS)'!O28","v":0},{"$f":"'Geographic Diversification'!H28","v":0},1,{"$f":"'Schedule IVD (EBS)'!I28*$G30","v":0},{"$f":"'Schedule IVD (EBS)'!K28*$G30","v":0},{"$f":"'Schedule IVD (EBS)'!M28*$G30","v":0},0.50012106835589698,0.25006053417794849,0.12503026708897425,0,null,null,0,null,0.5,0.5]
[null,"International Casualty Non-Motor Non-Proportional","Schedule IVD, Line (21)",{"$f":"'Schedule IVD (EBS)'!Q29","v":0},{"$f":"'Schedule IVD (EBS)'!O29","v":0},{"$f":"'Geographic Diversification'!H29","v":0},1,{"$f":"'Schedule IVD (EBS)'!I29*$G31","v":0},{"$f":"'Schedule IVD (EBS)'!K29*$G31","v":0},{"$f":"'Schedule IVD (EBS)'!M29*$G31","v":0},0.53551360019381999,0.26775680009691,0.133878400048455,0,null,null,0,null,0.5,0.5]
[null,"Retro Property","Schedule IVD, Line (22)",{"$f":"'Schedule IVD (EBS)'!Q30","v":0},{"$f":"'Schedule IVD (EBS)'!O30","v":0},{"$f":"'Geographic Diversification'!H30","v":0},1,{"$f":"'Schedule IVD (EBS)'!I30*$G32","v":0},{"$f":"'Schedule IVD (EBS)'!K30*$G32","v":0},{"$f":"'Schedule IVD (EBS)'!M30*$G32","v":0},0.508030898436173,0.12700772460904325,6.3503862304521624E-2,0,null,null,0,null,0.25,0.5]
[null,"Structured / Finite Reinsurance","Schedule IVD, Line (23)",{"$f":"'Schedule IVD (EBS)'!Q31","v":0},{"$f":"'Schedule IVD (EBS)'!O31","v":0},{"$f":"'Geographic Diversification'!H31","v":0},1,{"$f":"'Schedule IVD (EBS)'!I31*$G33","v":0},{"$f":"'Schedule IVD (EBS)'!K31*$G33","v":0},{"$f":"'Schedule IVD (EBS)'!M31*$G33","v":0},0.27200000000000002,6.8000000000000005E-2,3.4000000000000002E-2,0,null,null,0,null,0.25,0.5]
[null,"Health","Schedule IVD, Line (24)",{"$f":"'Schedule IVD (EBS)'!Q32","v":0},{"$f":"'Schedule IVD (EBS)'!O32","v":0},{"$f":"'Geographic Diversification'!H32","v":0},1,{"$f":"'Schedule IVD (EBS)'!I32*$G34","v":0},{"$f":"'Schedule IVD (EBS)'!K32*$G34","v":0},{"$f":"'Schedule IVD (EBS)'!M32*$G34","v":0},0.15,3.7499999999999999E-2,1.8749999999999999E-2,0,null,null,0,null,0.25,0.5]
[]
[null,"(a)  TOTAL",null,{"$f":"SUM(D11:D34)","v":0},{"$f":"SUM(E11:E34)","v":0},{"$f":"SUM(F11:F34)","v":0},null,{"$f":"SUM(H11:H34)","v":0},{"$f":"SUM(I11:I34)","v":0},{"$f":"SUM(J11:J34)","v":0},null,null,null,{"$f":"SUM(N11:N35)","v":0},null,null,{"$f":"SUM(Q11:Q35)","v":0}]
[]
[null,"(b)  CORRELATION ADJUSTMENT"]
[]
[null,"(i)","Reduction in Capital Charge from Correlation Matrix",null,null,null,null,null,null,null,null,null,null,{"$f":"N36-N42","v":0},null,null,{"$f":"Q36-Q42","v":0}]
[]
[null,"(b)  CAPITAL CHARGE AFTER CORRELATION",null,null,null,null,null,null,null,null,{"$f":"SQRT(MMULT(TRANSPOSE(IF($H11:$H34<0,0,$H11:$H34*$K11:$K34)),MMULT('Correlation Matrix'!C15:Z38,IF($H11:$H34<0,0,$H11:$H34*$K11:$K34))))","v":0},null,null,{"$f":"SQRT(MMULT(TRANSPOSE(N11:N34),MMULT('Correlation Matrix'!C15:Z38,N11:N34)))","v":0},null,null,{"$f":"SQRT(MMULT(TRANSPOSE(Q11:Q34),MMULT('Correlation Matrix'!C15:Z38,Q11:Q34)))","v":0}]
[]
[null,"(c)  CATASTROPHE PREMIUM ADJUSTMENT CALCULATION"]
[]
[null,"(i)","Average Annual Loss (AAL) Excluding Property Catastrophe",null,null,null,null,null,null,null,null,null,null,{"$f":"'Catastrophe Risk'!E11","v":0},null,null,{"$f":"'Catastrophe Risk'!E11","v":0}]
[null,"(ii)","Industry Catastrophe Loss Ratio",null,null,null,null,null,null,null,null,null,null,{"$f":"'Catastrophe Risk'!E13","v":0.4},null,null,{"$f":"'Catastrophe Risk'!E13","v":0.4}]
[null,"(iii)","Avg Capital Factor  [ Total (3c) / (Total (1a) excl Prop CAT) ]",null,null,null,null,null,null,null,null,null,null,{"$f":"IF((H36-H11)=0,0,K42/(H36-H11))","v":0},null,null,{"$f":"IF((D36-D11)=0,0,Q42/(D36-D11))","v":0}]
[]
[null,"(c)  CATASTROPHE PREMIUM ADJUSTMENT  [ (i) / (ii) x (iii) ]",null,null,null,null,null,null,null,null,null,null,null,{"$f":"N46/N47*N48","v":0},null,null,{"$f":"Q46/Q47*Q48","v":0}]
[]
[null,"(i)","Concentration Adjustment (up to 95%)",null,null,null,null,null,null,null,null,null,null,{"$f":"'Schedule IX(b)'!H51/900*95%","v":0},null,null,{"$f":"'Schedule IX(b)'!H51/900*95%","v":0}]
[null,"(ii)","Related Business % (up to 5%)",null,null,null,null,null,null,null,null,null,null,{"$f":"'Schedule IX(b)'!H55*5%","v":0},null,null,{"$f":"'Schedule IX(b)'!H55*5%","v":0}]
[null,"(iii)"," [ (i) + (ii) ]",null,null,null,null,null,null,null,null,null,null,{"$f":"N52+N53","v":0},null,null,{"$f":"Q52+Q53","v":0}]
[null,"(iv)","Maximum Adjustment",null,null,null,null,null,null,null,null,null,null,0.4,null,null,0.4]
[]
[null,"(c) CONCENTRATION ADJUSTMENT FACTOR (formula 2) [(iii) x (iv)]",null,null,null,null,null,null,null,null,null,null,null,{"$f":"N54*N55","v":0},null,null,{"$f":"Q54*Q55","v":0}]
[]
[null,"(d)  TOTAL PREMIUM RISK (AFTER CATASTROPHE PREMIUM ADJUSTMENT)   [ (b) - (c) ]",null,null,null,null,null,null,null,null,null,null,null,{"$f":"IF('Company Information'!$F$11=\"Class 3A\",N42-N36*N57,IF(N42-N50>=0,N42-N50,0))","v":0},null,null,{"$f":"IF('Company Information'!$F$11=\"Class 3A\",Q42-Q36*Q57,IF(Q42-Q50>=0,Q42-Q50,0))","v":0}]

{"sheet":"Reserve Risk (old)","index":127,"n_rows":68,"n_cols":8,"rows_kept":68,"cut":false,"hidden":true,"merged":[[69,0,69,1],[0,7,0,8],[5,2,6,2]]}
["RESERVE RISK",null,null,null,null,null,null,{"$f":"HYPERLINK(\"#'Index'!A1\",\"Return to Index\")","v":"Return to Index"}]
[{"$f":"'Company Information'!C7","v":"Enter Company Name"}]
[{"$f":"\"Reserve Risk\"& \"($\"&IF(CONFIGURATION!$B$12>1,MID(CONFIGURATION!$B$12,2,LEN(CONFIGURATION!$B$12)),\"\")&\")\"","v":"Reserve Risk($000)"},null,{"$f":"'Company Information'!$C$3","v":"2023-12-31"},-1,-2,-3,-4,-5]
[]
[null,null,null,"GROSS LOSS &","NET LOSS &","GEO"]
[null,null,"STATEMENT SOURCE","LOSS EXPENSE","LOSS EXPENSE","DIVERSIFIED","CAPITAL","REQUIRED"]
[null,"LINE OF BUSINESS",null,"PROVISIONS","PROVISIONS","PROVISIONS","FACTOR","CAPITAL"]
[]
[null,null,null,null,null,null,null,"(3) x (4)"]
[]
[null,"Property Catastrophe","Sch III EBS, Line (1)",{"$f":"+'Schedule III (EBS)'!D10","v":0},{"$f":"+'Schedule III (EBS)'!F10","v":0},{"$f":"+'Geographic (old)'!H40","v":0},0.46158858246802098,{"$f":"IF($F$11<0,0,$F$11*$G$11)","v":0}]
[null,"Property","Sch III EBS, Line (2)",{"$f":"+'Schedule III (EBS)'!D11","v":0},{"$f":"+'Schedule III (EBS)'!F11","v":0},{"$f":"+'Geographic (old)'!H41","v":0},0.43844984238218698,{"$f":"IF($F$12<0,0,$F$12*$G$12)","v":0}]
[null,"Property Non-Proportional","Sch III EBS, Line (3)",{"$f":"+'Schedule III (EBS)'!D12","v":0},{"$f":"+'Schedule III (EBS)'!F12","v":0},{"$f":"+'Geographic (old)'!H42","v":0},0.49735573879029998,{"$f":"IF($F$13<0,0,$F$13*$G$13)","v":0}]
[null,"Personal Accident","Sch III EBS, Line (4)",{"$f":"+'Schedule III (EBS)'!D13","v":0},{"$f":"+'Schedule III (EBS)'!F13","v":0},{"$f":"+'Geographic (old)'!H43","v":0},0.29666070682155399,{"$f":"IF($F$14<0,0,$F$14*$G$14)","v":0}]
[null,"Personal Accident Non-Proportional","Sch III EBS, Line (5)",{"$f":"+'Schedule III (EBS)'!D14","v":0},{"$f":"+'Schedule III (EBS)'!F14","v":0},{"$f":"+'Geographic (old)'!H44","v":0},0.34876523067975901,{"$f":"IF($F$15<0,0,$F$15*$G$15)","v":0}]
[null,"Aviation","Sch III EBS, Line (6)",{"$f":"+'Schedule III (EBS)'!D15","v":0},{"$f":"+'Schedule III (EBS)'!F15","v":0},{"$f":"+'Geographic (old)'!H45","v":0},0.45952604952349801,{"$f":"IF($F$16<0,0,$F$16*$G$16)","v":0}]
[null,"Aviation Non-Proportional","Sch III EBS, Line (7)",{"$f":"+'Schedule III (EBS)'!D16","v":0},{"$f":"+'Schedule III (EBS)'!F16","v":0},{"$f":"+'Geographic (old)'!H46","v":0},0.48255646377949901,{"$f":"IF($F$17<0,0,$F$17*$G$17)","v":0}]
[null,"Credit / Surety","Sch III EBS, Line (8)",{"$f":"+'Schedule III (EBS)'!D17","v":0},{"$f":"+'Schedule III (EBS)'!F17","v":0},{"$f":"+'Geographic (old)'!H47","v":0},0.383682680649994,{"$f":"IF($F$18<0,0,$F$18*$G$18)","v":0}]
[null,"Credit / Surety Non-Proportional","Sch III EBS, Line (9)",{"$f":"+'Schedule III (EBS)'!D18","v":0},{"$f":"+'Schedule III (EBS)'!F18","v":0},{"$f":"+'Geographic (old)'!H48","v":0},0.43464696624596899,{"$f":"IF($F$19<0,0,$F$19*$G$19)","v":0}]
[null,"Energy Offshore / Marine","Sch III EBS, Line (10)",{"$f":"+'Schedule III (EBS)'!D19","v":0},{"$f":"+'Schedule III (EBS)'!F19","v":0},{"$f":"+'Geographic (old)'!H49","v":0},0.39543823911176501,{"$f":"IF($F$20<0,0,$F$20*$G$20)","v":0}]
[null,"Energy Offshore / Marine Non-Proportional","Sch III EBS, Line (11)",{"$f":"+'Schedule III (EBS)'!D20","v":0},{"$f":"+'Schedule III (EBS)'!F20","v":0},{"$f":"+'Geographic (old)'!H50","v":0},0.43945783577556502,{"$f":"IF($F$21<0,0,$F$21*$G$21)","v":0}]
[null,"US Casualty","Sch III EBS, Line (12)",{"$f":"+'Schedule III (EBS)'!D21","v":0},{"$f":"+'Schedule III (EBS)'!F21","v":0},{"$f":"+'Geographic (old)'!H51","v":0},0.43018098459069698,{"$f":"IF($F$22<0,0,$F$22*$G$22)","v":0}]
[null,"US Casualty Non-Proportional","Sch III EBS, Line (13)",{"$f":"+'Schedule III (EBS)'!D22","v":0},{"$f":"+'Schedule III (EBS)'!F22","v":0},{"$f":"+'Geographic (old)'!H52","v":0},0.48842309052279498,{"$f":"IF($F$23<0,0,$F$23*$G$23)","v":0}]
[null,"US Professional","Sch III EBS, Line (14)",{"$f":"+'Schedule III (EBS)'!D23","v":0},{"$f":"+'Schedule III (EBS)'!F23","v":0},{"$f":"+'Geographic (old)'!H53","v":0},0.462752832710698,{"$f":"IF($F$24<0,0,$F$24*$G$24)","v":0}]
[null,"US Professional Non-Proportional","Sch III EBS, Line (15)",{"$f":"+'Schedule III (EBS)'!D24","v":0},{"$f":"+'Schedule III (EBS)'!F24","v":0},{"$f":"+'Geographic (old)'!H54","v":0},0.51484129765284703,{"$f":"IF($F$25<0,0,$F$25*$G$25)","v":0}]
[null,"US Specialty","Sch III EBS, Line (16)",{"$f":"+'Schedule III (EBS)'!D25","v":0},{"$f":"+'Schedule III (EBS)'!F25","v":0},{"$f":"+'Geographic (old)'!H55","v":0},0.46506790223690597,{"$f":"IF($F$26<0,0,$F$26*$G$26)","v":0}]
[null,"US Specialty Non-Proportional","Sch III EBS, Line (17)",{"$f":"+'Schedule III (EBS)'!D26","v":0},{"$f":"+'Schedule III (EBS)'!F26","v":0},{"$f":"+'Geographic (old)'!H56","v":0},0.482760284027479,{"$f":"IF($F$27<0,0,$F$27*$G$27)","v":0}]
[null,"International Motor","Sch III EBS, Line (18)",{"$f":"+'Schedule III (EBS)'!D27","v":0},{"$f":"+'Schedule III (EBS)'!F27","v":0},{"$f":"+'Geographic (old)'!H57","v":0},0.37080464615634001,{"$f":"IF($F$28<0,0,$F$28*$G$28)","v":0}]
[null,"International Motor Non-Proportional","Sch III EBS, Line (19)",{"$f":"+'Schedule III (EBS)'!D28","v":0},{"$f":"+'Schedule III (EBS)'!F28","v":0},{"$f":"+'Geographic (old)'!H58","v":0},0.43541657269369,{"$f":"IF($F$29<0,0,$F$29*$G$29)","v":0}]
[null,"International Casualty Non-Motor","Sch III EBS, Line (20)",{"$f":"+'Schedule III (EBS)'!D29","v":0},{"$f":"+'Schedule III (EBS)'!F29","v":0},{"$f":"+'Geographic (old)'!H59","v":0},0.43652386132510701,{"$f":"IF($F$30<0,0,$F$30*$G$30)","v":0}]
[null,"International Casualty Non-Motor Non-Proportional","Sch III EBS, Line (21)",{"$f":"+'Schedule III (EBS)'!D30","v":0},{"$f":"+'Schedule III (EBS)'!F30","v":0},{"$f":"+'Geographic (old)'!H60","v":0},0.49410327959272199,{"$f":"IF($F$31<0,0,$F$31*$G$31)","v":0}]
[null,"Retro Property","Sch III EBS, Line (22)",{"$f":"+'Schedule III (EBS)'!D31","v":0},{"$f":"+'Schedule III (EBS)'!F31","v":0},{"$f":"+'Geographic (old)'!H61","v":0},0.478452065307162,{"$f":"IF($F$32<0,0,$F$32*$G$32)","v":0}]
[null,"Structured / Finite Reinsurance","Sch III EBS, Line (23)",{"$f":"+'Schedule III (EBS)'!D32","v":0},{"$f":"+'Schedule III (EBS)'!F32","v":0},{"$f":"+'Geographic (old)'!H62","v":0},0.24099999999999999,{"$f":"IF($F$33<0,0,$F$33*$G$33)","v":0}]
[null,"Health","Sch III EBS, Line (24)",{"$f":"+'Schedule III (EBS)'!D33","v":0},{"$f":"+'Schedule III (EBS)'!F33","v":0},{"$f":"+'Geographic (old)'!H63","v":0},0.125,{"$f":"IF($F$34<0,0,$F$34*$G$34)","v":0}]
[]
[null,"(a)  TOTAL",null,{"$f":"SUM(D11:D34)","v":0},{"$f":"SUM(E11:E34)","v":0},{"$f":"SUM(F11:F34)","v":0},null,{"$f":"SUM(H11:H35)","v":0}]
[]
[null,"(b)  CONCENTRATION ADJUSTMENT CALCULATION"]
[]
[null,"(i)","Maximum Reserve [ Maximum (1a) ]",null,null,null,null,{"$f":"MAX(F11:F34)","v":0}]
[null,"(ii)","Total Reserve [ Total (1a) ]",null,null,null,null,{"$f":"F36","v":0}]
[null,"(iii)","Maximum Reserve / Total Reserve [ (i) / (ii) ]",null,null,null,null,{"$f":"IF(H41=0,0,H40/H41)","v":0}]
[null,"(iv)","Maximum Adjustment",null,null,null,null,0.4]
[null,"(v)"," [ (iii) x (iv) ]",null,null,null,null,{"$f":"H42*H43","v":0}]
[null,"(vi)","Minimum Adjustment Factor",null,null,null,null,{"$f":"1-H43","v":0.6}]
[]
[null,"(b)  CONCENTRATION ADJUSTMENT FACTOR [ (v) + (vi) ]",null,null,null,null,null,{"$f":"H45+H44","v":0.6}]
[]
[null,"(b) CONCENTRATION ADJUSTMENT CALCULATIONS:"]
[]
[null,"(i)","Total Reserve [ Total (1a) ]",null,null,null,null,{"$f":"F36","v":0}]
[null,"(ii)","Concentration Adjustment (HHI Calculation)",null,null,null,null,{"$f":"IF(H51=0,0,(F11/H51)^2+(F12/H51)^2+(F13/H51)^2+(F14/H51)^2+(F15/H51)^2+(F16/H51)^2+(F17/H51)^2+(F18/H51)^2+(F19/H51)^2+(F20/H51)^2+(F21/H51)^2+(F22/H51)^2+(F23/H51)^2+(F24/H51)^2+(F25/H51)^2+(F26/H51)^2+(F27/H51)^2+(F28/H51)^2+(F29/H51)^2+(F30/H51)^2+(F31/H51)^2+(F32/H51)^2+(F33/H51)^2+(F34/H51)^2)","v":0}]
[null,"(iii)","Maximum Adjustment",null,null,null,null,0.4]
[null,"(iv)"," [ (ii) x (iii) ]",null,null,null,null,{"$f":"H52*H53","v":0}]
[null,"(v)","Minimum Adjustment Factor",null,null,null,null,{"$f":"1-H53","v":0.6}]
[]
[null,"(b)(i) CONCENTRATION ADJUSTMENT FACTOR (formula 1) [(iv) + (v)]",null,null,null,null,null,{"$f":"H55+H54","v":0.6}]
[]
[null,"(i)","Concentration Adjustment (up to 95%)",null,null,null,null,{"$f":"+'Premium Risk (old)'!I69","v":0}]
[null,"(ii)","Related Business % (up to 5%)",null,null,null,null,{"$f":"+'Premium Risk (old)'!I70","v":0}]
[null,"(iii)"," [ (i) + (ii) ]",null,null,null,null,{"$f":"H59+H60","v":0}]
[null,"(iv)","Maximum Adjustment",null,null,null,null,0.4]
[]
[null,"(b)(ii) CONCENTRATION ADJUSTMENT FACTOR (formula 2) [(iii) x (iv)]",null,null,null,null,null,{"$f":"H61*H62","v":0}]
[]
[null,"(c) CONCENTRATION ADJUSTMENT FACTOR [(b)(i)-(b)(ii)]",null,null,null,null,null,{"$f":"H57-H64","v":0.6}]
[]
[null,{"$f":"IF('Company Information'!F11=\"Class 3A\",\"(d) TOTAL RESERVE RISK [(a) x (c)]\",\"(c)  TOTAL RESERVE RISK  [ Total (a) x (b) ]\")","v":"(d) TOTAL RESERVE RISK [(a) x (c)]"},null,null,null,null,null,{"$f":"IF('Company Information'!F11=\"Class 3A\",IF(H36=0,0,H36*H66),IF(H36*H47>=0,H36*H47,0))","v":0}]

{"sheet":"Reserve Risk","index":128,"n_rows":53,"n_cols":8,"rows_kept":53,"cut":false,"hidden":false,"merged":[[0,7,0,8],[5,2,6,2],[54,0,54,1]]}
["RESERVE RISK (REVISED)",null,null,null,null,null,null,{"$f":"HYPERLINK(\"#'Index'!A1\",\"Return to Index\")","v":"Return to Index"}]
[{"$f":"'Company Information'!C7","v":"Enter Company Name"}]
[{"$f":"\"Reserve Risk\"& \"($\"&IF(CONFIGURATION!$B$12>1,MID(CONFIGURATION!$B$12,2,LEN(CONFIGURATION!$B$12)),\"\")&\")\"","v":"Reserve Risk($000)"},null,{"$f":" TEXT('Company Information'!C3,\"d mmmm yyyy\")","v":"31 December 2023"},-1,-2,-3,-4,-5]
[]
[null,null,null,"GROSS LOSS &","NET LOSS &","GEO"]
[null,null,"STATEMENT SOURCE","LOSS EXPENSE","LOSS EXPENSE","DIVERSIFIED","CAPITAL","REQUIRED"]
[null,"LINE OF BUSINESS",null,"PROVISIONS","PROVISIONS","PROVISIONS","FACTOR","CAPITAL"]
[]
[null,null,null,null,null,null,null,"(3) x (4)"]
[]
[null,"Property Catastrophe","Sch III EBS, Line (1)",{"$f":"+'Schedule III (EBS)'!D10","v":0},{"$f":"+'Schedule III (EBS)'!F10","v":0},{"$f":"'Geographic Diversification'!H40","v":0},0.46158858246802098,{"$f":"IF($F$11<0,0,$F$11*$G$11)","v":0}]
[null,"Property","Sch III EBS, Line (2)",{"$f":"+'Schedule III (EBS)'!D11","v":0},{"$f":"+'Schedule III (EBS)'!F11","v":0},{"$f":"'Geographic Diversification'!H41","v":0},0.43844984238218698,{"$f":"IF($F$12<0,0,$F$12*$G$12)","v":0}]
[null,"Property Non-Proportional","Sch III EBS, Line (3)",{"$f":"+'Schedule III (EBS)'!D12","v":0},{"$f":"+'Schedule III (EBS)'!F12","v":0},{"$f":"'Geographic Diversification'!H42","v":0},0.49735573879029998,{"$f":"IF($F$13<0,0,$F$13*$G$13)","v":0}]
[null,"Personal Accident","Sch III EBS, Line (4)",{"$f":"+'Schedule III (EBS)'!D13","v":0},{"$f":"+'Schedule III (EBS)'!F13","v":0},{"$f":"'Geographic Diversification'!H43","v":0},0.29666070682155399,{"$f":"IF($F$14<0,0,$F$14*$G$14)","v":0}]
[null,"Personal Accident Non-Proportional","Sch III EBS, Line (5)",{"$f":"+'Schedule III (EBS)'!D14","v":0},{"$f":"+'Schedule III (EBS)'!F14","v":0},{"$f":"'Geographic Diversification'!H44","v":0},0.34876523067975901,{"$f":"IF($F$15<0,0,$F$15*$G$15)","v":0}]
[null,"Aviation","Sch III EBS, Line (6)",{"$f":"+'Schedule III (EBS)'!D15","v":0},{"$f":"+'Schedule III (EBS)'!F15","v":0},{"$f":"'Geographic Diversification'!H45","v":0},0.45952604952349801,{"$f":"IF($F$16<0,0,$F$16*$G$16)","v":0}]
[null,"Aviation Non-Proportional","Sch III EBS, Line (7)",{"$f":"+'Schedule III (EBS)'!D16","v":0},{"$f":"+'Schedule III (EBS)'!F16","v":0},{"$f":"'Geographic Diversification'!H46","v":0},0.48255646377949901,{"$f":"IF($F$17<0,0,$F$17*$G$17)","v":0}]
[null,"Credit / Surety","Sch III EBS, Line (8)",{"$f":"+'Schedule III (EBS)'!D17","v":0},{"$f":"+'Schedule III (EBS)'!F17","v":0},{"$f":"'Geographic Diversification'!H47","v":0},0.383682680649994,{"$f":"IF($F$18<0,0,$F$18*$G$18)","v":0}]
[null,"Credit / Surety Non-Proportional","Sch III EBS, Line (9)",{"$f":"+'Schedule III (EBS)'!D18","v":0},{"$f":"+'Schedule III (EBS)'!F18","v":0},{"$f":"'Geographic Diversification'!H48","v":0},0.43464696624596899,{"$f":"IF($F$19<0,0,$F$19*$G$19)","v":0}]
[null,"Energy Offshore / Marine","Sch III EBS, Line (10)",{"$f":"+'Schedule III (EBS)'!D19","v":0},{"$f":"+'Schedule III (EBS)'!F19","v":0},{"$f":"'Geographic Diversification'!H49","v":0},0.39543823911176501,{"$f":"IF($F$20<0,0,$F$20*$G$20)","v":0}]
[null,"Energy Offshore / Marine Non-Proportional","Sch III EBS, Line (11)",{"$f":"+'Schedule III (EBS)'!D20","v":0},{"$f":"+'Schedule III (EBS)'!F20","v":0},{"$f":"'Geographic Diversification'!H50","v":0},0.43945783577556502,{"$f":"IF($F$21<0,0,$F$21*$G$21)","v":0}]
[null,"US Casualty","Sch III EBS, Line (12)",{"$f":"+'Schedule III (EBS)'!D21","v":0},{"$f":"+'Schedule III (EBS)'!F21","v":0},{"$f":"'Geographic Diversification'!H51","v":0},0.43018098459069698,{"$f":"IF($F$22<0,0,$F$22*$G$22)","v":0}]
[null,"US Casualty Non-Proportional","Sch III EBS, Line (13)",{"$f":"+'Schedule III (EBS)'!D22","v":0},{"$f":"+'Schedule III (EBS)'!F22","v":0},{"$f":"'Geographic Diversification'!H52","v":0},0.48842309052279498,{"$f":"IF($F$23<0,0,$F$23*$G$23)","v":0}]
[null,"US Professional","Sch III EBS, Line (14)",{"$f":"+'Schedule III (EBS)'!D23","v":0},{"$f":"+'Schedule III (EBS)'!F23","v":0},{"$f":"'Geographic Diversification'!H53","v":0},0.462752832710698,{"$f":"IF($F$24<0,0,$F$24*$G$24)","v":0}]
[null,"US Professional Non-Proportional","Sch III EBS, Line (15)",{"$f":"+'Schedule III (EBS)'!D24","v":0},{"$f":"+'Schedule III (EBS)'!F24","v":0},{"$f":"'Geographic Diversification'!H54","v":0},0.51484129765284703,{"$f":"IF($F$25<0,0,$F$25*$G$25)","v":0}]
[null,"US Specialty","Sch III EBS, Line (16)",{"$f":"+'Schedule III (EBS)'!D25","v":0},{"$f":"+'Schedule III (EBS)'!F25","v":0},{"$f":"'Geographic Diversification'!H55","v":0},0.46506790223690597,{"$f":"IF($F$26<0,0,$F$26*$G$26)","v":0}]
[null,"US Specialty Non-Proportional","Sch III EBS, Line (17)",{"$f":"+'Schedule III (EBS)'!D26","v":0},{"$f":"+'Schedule III (EBS)'!F26","v":0},{"$f":"'Geographic Diversification'!H56","v":0},0.482760284027479,{"$f":"IF($F$27<0,0,$F$27*$G$27)","v":0}]
[null,"International Motor","Sch III EBS, Line (18)",{"$f":"+'Schedule III (EBS)'!D27","v":0},{"$f":"+'Schedule III (EBS)'!F27","v":0},{"$f":"'Geographic Diversification'!H57","v":0},0.37080464615634001,{"$f":"IF($F$28<0,0,$F$28*$G$28)","v":0}]
[null,"International Motor Non-Proportional","Sch III EBS, Line (19)",{"$f":"+'Schedule III (EBS)'!D28","v":0},{"$f":"+'Schedule III (EBS)'!F28","v":0},{"$f":"'Geographic Diversification'!H58","v":0},0.43541657269369,{"$f":"IF($F$29<0,0,$F$29*$G$29)","v":0}]
[null,"International Casualty Non-Motor","Sch III EBS, Line (20)",{"$f":"+'Schedule III (EBS)'!D29","v":0},{"$f":"+'Schedule III (EBS)'!F29","v":0},{"$f":"'Geographic Diversification'!H59","v":0},0.43652386132510701,{"$f":"IF($F$30<0,0,$F$30*$G$30)","v":0}]
[null,"International Casualty Non-Motor Non-Proportional","Sch III EBS, Line (21)",{"$f":"+'Schedule III (EBS)'!D30","v":0},{"$f":"+'Schedule III (EBS)'!F30","v":0},{"$f":"'Geographic Diversification'!H60","v":0},0.49410327959272199,{"$f":"IF($F$31<0,0,$F$31*$G$31)","v":0}]
[null,"Retro Property","Sch III EBS, Line (22)",{"$f":"+'Schedule III (EBS)'!D31","v":0},{"$f":"+'Schedule III (EBS)'!F31","v":0},{"$f":"'Geographic Diversification'!H61","v":0},0.478452065307162,{"$f":"IF($F$32<0,0,$F$32*$G$32)","v":0}]
[null,"Structured / Finite Reinsurance","Sch III EBS, Line (23)",{"$f":"+'Schedule III (EBS)'!D32","v":0},{"$f":"+'Schedule III (EBS)'!F32","v":0},{"$f":"'Geographic Diversification'!H62","v":0},0.24099999999999999,{"$f":"IF($F$33<0,0,$F$33*$G$33)","v":0}]
[null,"Health","Sch III EBS, Line (24)",{"$f":"+'Schedule III (EBS)'!D33","v":0},{"$f":"+'Schedule III (EBS)'!F33","v":0},{"$f":"'Geographic Diversification'!H63","v":0},0.125,{"$f":"IF($F$34<0,0,$F$34*$G$34)","v":0}]
[]
[null,"(a)  TOTAL",null,{"$f":"SUM(D11:D34)","v":0},{"$f":"SUM(E11:E34)","v":0},{"$f":"SUM(F11:F34)","v":0},null,{"$f":"SUM(H11:H35)","v":0}]
[]
[null,"(b)  CORRELATION ADJUSTMENT"]
[]
[null,"(i)","Reduction in Capital Charge from Correlation Matrix",null,null,null,null,{"$f":"H36-H42","v":0}]
[]
[null,"(b)  RESERVE RISK AFTER CORRELATION ADJUSTMENT",null,null,null,null,null,{"$f":"SQRT(MMULT(TRANSPOSE(H11:H34),MMULT('Correlation Matrix'!C43:Z66,H11:H34)))","v":0}]
[]
[null,"(b) CONCENTRATION ADJUSTMENT CALCULATIONS:"]
[]
[null,"(i)","Concentration Adjustment (up to 95%)",null,null,null,null,{"$f":"'Premium Risk'!N52","v":0}]
[null,"(ii)","Related Business % (up to 5%)",null,null,null,null,{"$f":"'Premium Risk'!N53","v":0}]
[null,"(iii)"," [ (i) + (ii) ]",null,null,null,null,{"$f":"H46+H47","v":0}]
[null,"(iv)","Maximum Adjustment",null,null,null,null,0.4]
[]
[null,"(b)(ii) CONCENTRATION ADJUSTMENT FACTOR (formula 2) [(iii) x (iv)]",null,null,null,null,null,{"$f":"H48*H49","v":0}]
[]
[null,{"$f":"IF('Company Information'!F4=\"Class 3A\",\"(d) TOTAL RESERVE RISK [(a) x (c)]\",\"(c)  TOTAL RESERVE RISK  [ Total (a) x (b) ]\")","v":"(c)  TOTAL RESERVE RISK  [ Total (a) x (b) ]"},null,null,null,null,null,{"$f":"IF('Company Information'!$F$11=\"Class 3A\",IF(H42=0,0,H42-H36*H51),IF(H42>=0,H42,0))","v":0}]

{"sheet":"Credit Risk (old)","index":129,"n_rows":41,"n_cols":6,"rows_kept":41,"cut":false,"hidden":true,"merged":[[43,0,43,1],[0,5,0,6]]}
["CREDIT RISK",null,null,null,null,{"$f":"HYPERLINK(\"#'Index'!A1\",\"Return to Index\")","v":"Return to Index"}]
[{"$f":"'Company Information'!C7","v":"Enter Company Name"}]
[{"$f":"\"Credit Risk\" & \"($\"&IF(CONFIGURATION!$B$12>1,MID(CONFIGURATION!$B$12,2,LEN(CONFIGURATION!$B$12)),\"\")&\")\"","v":"Credit Risk($000)"},null,{"$f":"'Company Information'!C3","v":"2023-12-31"},-1,-2,-3]
[]
[]
[null,"TYPE OF ",null,"RECEIVABLES/","CAPITAL","REQUIRED"]
[null,"DEBTOR","STATEMENT SOURCE","RECOVERABLES","FACTOR","CAPITAL"]
[]
[null,"(a)  Accounts and Premiums Receivable",null,null,null,"(1) x (2)"]
[]
[null,"In Course of Collection","Form 1EBS, Line (10a)",{"$f":"'Form 1EBS'!F57","v":0},0.05,{"$f":"IF($D$11<0,0,$D$11*$E$11)","v":0}]
[null,"Receivables from retrocessional contracts Less: Collateralized Balances","Form 1EBS, Line (10c), Notes to Form 1EBS, Line (10)",{"$f":"'Form 1EBS'!F58-'Form 1EBS'!F179","v":0},0.1,{"$f":"$D$12*$E$12","v":0}]
[]
[null,"(a)  SUBTOTAL - ACCOUNTS AND PREMIUMS RECEIVABLE",null,{"$f":"SUM(D11:D12)","v":0},null,{"$f":"IF(SUM(F11:F12)>=0,SUM(F11:F12),0)","v":0}]
[]
[null,"(b)  All Other Receivables"]
[]
[null,"Accrued Investment Income","Form 1EBS, Line (9)",{"$f":"'Form 1EBS'!F54","v":0},2.5000000000000001E-2,{"$f":"IF($D$18<0,0,$D$18*$E$18)","v":0}]
[null,"Advances to Affiliates","Form 1EBS, Line (4g)",{"$f":"'Form 1EBS'!F39","v":0},0.05,{"$f":"IF($D$19<0,0,$D$19*$E$19)","v":0}]
[]
[null,"(b)  SUBTOTAL - ALL OTHER RECEIVABLES",null,{"$f":"SUM(D18:D19)","v":0},null,{"$f":"IF(SUM(F18:F19)>=0,SUM(F18:F19),0)","v":0}]
[]
[null,"(c) Particulars of Reinsurance Balances By BSCR Rating",null,null,null,"Max(0, (Column (1) x Column (2) ))"]
[null,0]
[null,"BSCR Rating 0","Schedule XVIII EBS, Column E",{"$f":"'Schedule XVIII (EBS)'!O87","v":0},0,{"$f":"IF(D25<0,0,D25*E25)","v":0}]
[null,"BSCR Rating 1","Schedule XVIII EBS, Column E",{"$f":"'Schedule XVIII (EBS)'!O88","v":0},7.0000000000000001E-3,0]
[null,"BSCR Rating 2","Schedule XVIII EBS, Column E",{"$f":"'Schedule XVIII (EBS)'!O89","v":0},1.4999999999999999E-2,0]
[null,"BSCR Rating 3","Schedule XVIII EBS, Column E",{"$f":"'Schedule XVIII (EBS)'!O90","v":0},3.5000000000000003E-2,0]
[null,"BSCR Rating 4","Schedule XVIII EBS, Column E",{"$f":"'Schedule XVIII (EBS)'!O91","v":0},7.0000000000000007E-2,0]
[null,"BSCR Rating 5","Schedule XVIII EBS, Column E",{"$f":"'Schedule XVIII (EBS)'!O92","v":0},0.12,0]
[null,"BSCR Rating 6","Schedule XVIII EBS, Column E",{"$f":"'Schedule XVIII (EBS)'!O93","v":0},0.2,0]
[null,"BSCR Rating 7","Schedule XVIII EBS, Column E",{"$f":"'Schedule XVIII (EBS)'!O94","v":0},0.27,0]
[null,"BSCR Rating 8","Schedule XVIII EBS, Column E",{"$f":"'Schedule XVIII (EBS)'!O95","v":0},0.35,0]
[]
[null,"Total",null,{"$f":"SUM(D25:D33)","v":0},null,{"$f":"SUM(F25:F33)","v":0}]
[]
[null,"Diversification Adjustment up to 40%","Schedule XVIII EBS, Column E",null,{"$f":"'Schedule XVIII (EBS)'!O104","v":0},{"$f":"SUM(F25:F33)*-('Schedule XVIII (EBS)'!O104)","v":0}]
[]
[null,"(c)  SUBTOTAL - PARTICULARS OF REINSURANCE BALANCES BY BSCR RATING",null,{"$f":"+D35","v":0},null,{"$f":"SUM(F25:F33)+F37","v":0}]
[]
[null,"(d)  TOTAL CREDIT RISK  [ (a) + (b) + (c) ]",null,{"$f":"D14+D21+D39","v":0},null,{"$f":"F14+F21+F39","v":0}]

{"sheet":"Credit Risk","index":130,"n_rows":84,"n_cols":8,"rows_kept":84,"cut":false,"hidden":false,"merged":[[0,7,0,8],[86,0,86,1]]}
["CREDIT RISK (REVISED)",null,null,null,null,null,null,{"$f":"HYPERLINK(\"#'Index'!A1\",\"Return to Index\")","v":"Return to Index"}]
[{"$f":"'Company Information'!C7","v":"Enter Company Name"}]
[{"$f":"\"Credit Risk\" & \"($\"&IF(CONFIGURATION!$B$12>1,MID(CONFIGURATION!$B$12,2,LEN(CONFIGURATION!$B$12)),\"\")&\")\"","v":"Credit Risk($000)"},null,null,{"$f":" TEXT('Company Information'!C3,\"d mmmm yyyy\")","v":"31 December 2023"},null,-1,-2,-3]
[]
[]
[null,"TYPE OF ",null,null,null,"RECEIVABLES/","CAPITAL","REQUIRED"]
[null,"DEBTOR",null,"STATEMENT SOURCE",null,"RECOVERABLES","FACTOR","CAPITAL"]
[]
[null,"(a)  Accounts and Premiums Receivable",null,null,null,null,null,"(1) x (2)"]
[]
[null,"In Course of Collection",null,"Form 1EBS, Line (10a)",null,{"$f":"'Form 1EBS'!F57","v":0},0.05,{"$f":"IF($F$11<0,0,$F$11*$G$11)","v":0}]
[null,"Deferred - Not Yet Due",null,"Form 1SFS, Line (10b)",null,{"$f":"IF('Form 1SFS'!M68=0,'Form 1SFS'!E68+'Form 1SFS'!I68,'Form 1SFS'!M68)","v":0},0.05,{"$f":"IF($F$12<0,0,$F$12*$G$12)","v":0}]
[null,"Receivables from retrocessional contracts Less: Collateralized Balances",null,"Form 1EBS, Line (10c), Notes to Form 1EBS, Line (10)",null,{"$f":"'Form 1EBS'!F58-'Form 1EBS'!F179","v":0},0.1,{"$f":"$F$13*$G$13","v":0}]
[]
[null,"(a)  SUBTOTAL - ACCOUNTS AND PREMIUMS RECEIVABLE",null,null,null,{"$f":"SUM(F11:F13)","v":0},null,{"$f":"IF(SUM(H11:H13)>=0,SUM(H11:H13),0)","v":0}]
[]
[null,"(b)  All Other Receivables"]
[]
[null,"Accrued Investment Income",null,"Form 1EBS, Line (9)",null,{"$f":"'Form 1EBS'!F54","v":0},2.5000000000000001E-2,{"$f":"IF($F$19<0,0,$F$19*$G$19)","v":0}]
[null,"Advances to Affiliates",null,"Form 1EBS, Line (4g)",null,{"$f":"'Form 1EBS'!F39","v":0},0.05,{"$f":"IF($F$20<0,0,$F$20*$G$20)","v":0}]
[null,"Balances receivable on sale of investments",null,"Form 1EBS, Line (13f)",null,{"$f":"'Form 1EBS'!F77","v":0},2.5000000000000001E-2,{"$f":"IF($F$21<0,0,$F$21*$G$21)","v":0}]
[]
[]
[null,"(b)  SUBTOTAL - ALL OTHER RECEIVABLES",null,null,null,{"$f":"SUM(F19:F21)","v":0},null,{"$f":"IF(SUM(H19:H21)>=0,SUM(H19:H21),0)","v":0}]
[]
[null,"(c)(i) Particulars of Reinsurance Balances For Current Year By BSCR Rating",null,null,null,null,null,"Max(0, (Column (1) x Column (2) ))"]
[null,0]
[null,"BSCR Rating 0",null,"Schedule XVIII EBS, Column E",null,{"$f":"'Schedule XVIII (EBS)'!O87","v":0},0,{"$f":"IF(F28<0,0,F28*G28)","v":0}]
[null,"BSCR Rating 1",null,"Schedule XVIII EBS, Column E",null,{"$f":"'Schedule XVIII (EBS)'!O88","v":0},7.0000000000000001E-3,0]
[null,"BSCR Rating 2",null,"Schedule XVIII EBS, Column E",null,{"$f":"'Schedule XVIII (EBS)'!O89","v":0},1.4999999999999999E-2,0]
[null,"BSCR Rating 3",null,"Schedule XVIII EBS, Column E",null,{"$f":"'Schedule XVIII (EBS)'!O90","v":0},3.5000000000000003E-2,0]
[null,"BSCR Rating 4",null,"Schedule XVIII EBS, Column E",null,{"$f":"'Schedule XVIII (EBS)'!O91","v":0},7.0000000000000007E-2,0]
[null,"BSCR Rating 5",null,"Schedule XVIII EBS, Column E",null,{"$f":"'Schedule XVIII (EBS)'!O92","v":0},0.12,0]
[null,"BSCR Rating 6",null,"Schedule XVIII EBS, Column E",null,{"$f":"'Schedule XVIII (EBS)'!O93","v":0},0.2,0]
[null,"BSCR Rating 7",null,"Schedule XVIII EBS, Column E",null,{"$f":"'Schedule XVIII (EBS)'!O94","v":0},0.27,0]
[null,"BSCR Rating 8",null,"Schedule XVIII EBS, Column E",null,{"$f":"'Schedule XVIII (EBS)'!O95","v":0},0.35,0]
[]
[null,"Total",null,null,null,{"$f":"SUM(F28:F36)","v":0},null,{"$f":"SUM(H28:H36)","v":0}]
[]
[null,"Diversification Adjustment up to 40%",null,"Schedule XVIII EBS, Column E",null,null,{"$f":"'Schedule XVIII (EBS)'!O104","v":0},{"$f":"SUM(H28:H36)*-('Schedule XVIII (EBS)'!O104)","v":0}]
[null,0]
[null,"(c)(i)  SUBTOTAL - PARTICULARS OF REINSURANCE BALANCES BY BSCR RATING",null,null,null,{"$f":"+F38","v":0},null,{"$f":"SUM(H28:H36)+H40","v":0}]
[]
[null,"(c)(ii) Particulars of Reinsurance Balances For Future Premium By BSCR Rating"]
[null,null,null,"(A)",null,"(B)","(C) ","(A) x (B) x (C) "]
[]
[null,"Premium Risk Capital Charge (Gross)",null,{"$f":"'Premium Risk'!Q59","v":0}]
[null,"Premium Risk Capital Charge (Net)",null,{"$f":"'Premium Risk'!N59","v":0}]
[null,"Reinsurance Asset - Premium Risk",null,{"$f":"D47-D48","v":0}]
[]
[null,"BSCR Rating 0",null,{"$f":"IF($F$38<>0, $D$49*F28/$F$38, 0)","v":0},null,{"$f":"IF($D$61=0,0,D51/$D$61)","v":0},0,{"$f":"IF($D$49<0,0,$D$49*F51*G51)","v":0}]
[null,"BSCR Rating 1",null,{"$f":"IF($F$38<>0, $D$49*F29/$F$38, 0)","v":0},null,{"$f":"IF($D$61=0,0,D52/$D$61)","v":0},7.0000000000000001E-3,{"$f":"IF($D$49<0,0,$D$49*F52*G52)","v":0}]
[null,"BSCR Rating 2",null,{"$f":"IF($F$38<>0, $D$49*F30/$F$38, 0)","v":0},null,0,1.4999999999999999E-2,0]
[null,"BSCR Rating 3",null,{"$f":"IF($F$38<>0, $D$49*F31/$F$38, 0)","v":0},null,0,3.5000000000000003E-2,0]
[null,"BSCR Rating 4",null,{"$f":"IF($F$38<>0, $D$49*F32/$F$38, D49)","v":0},null,0,7.0000000000000007E-2,0]
[null,"BSCR Rating 5",null,{"$f":"IF($F$38<>0, $D$49*F33/$F$38, 0)","v":0},null,0,0.12,0]
[null,"BSCR Rating 6",null,{"$f":"IF($F$38<>0, $D$49*F34/$F$38, 0)","v":0},null,0,0.2,0]
[null,"BSCR Rating 7",null,{"$f":"IF($F$38<>0, $D$49*F35/$F$38, 0)","v":0},null,0,0.27,0]
[null,"BSCR Rating 8",null,{"$f":"IF($F$38<>0, $D$49*F36/$F$38, 0)","v":0},null,0,0.35,0]
[]
[null,"Total",null,{"$f":"SUM(D51:D59)","v":0},null,{"$f":"SUM(F51:F59)","v":0},null,{"$f":"SUM(H51:H59)","v":0}]
[]
[null,"Diversification Adjustment up to 40%",null,"Schedule XVIII EBS, Column E",null,null,{"$f":"'Schedule XVIII (EBS)'!O104","v":0},{"$f":"SUM(H51:H59)*-('Schedule XVIII (EBS)'!O104)","v":0}]
[]
[null,"(c)(ii)  SUBTOTAL - PARTICULARS OF REINSURANCE BALANCES BY BSCR RATING ",null,null,null,null,null,{"$f":"SUM(H61:H63)","v":0}]
[]
[null,"(c)  SUBTOTAL - PARTICULARS OF REINSURANCE BALANCES BY BSCR RATING (MAX OF (C)(I) AND (C)(II)",null,null,null,{"$f":"MAX(F42,F65)","v":0},null,{"$f":"MAX(H42,H65)","v":0}]
[]
[null,"(d) Counterparty Default Risk for OTC Derivatives"]
[]
[null,null,"Market Value of Derivatives with Positive Market Value","Market Value of Derivatives with Negative Market Value","Market Value of Collateral, Excluding any overcollateralization","Capital Factor","Haircut on Collateral"]
[null,"BSCR Rating 0 ",{"$f":"'Schedule IIB (EBS)'!D84+'Schedule IIC (EBS)'!D84+'Schedule IID (EBS)'!D84+'Schedule IIE (EBS)'!D84+'Schedule IIF (EBS)'!D84","v":0},{"$f":"'Schedule IIB (EBS)'!F84+'Schedule IIC (EBS)'!F84+'Schedule IID (EBS)'!F84+'Schedule IIE (EBS)'!F84+'Schedule IIF (EBS)'!F84","v":0},{"$f":"'Schedule IIB (EBS)'!H84+'Schedule IIC (EBS)'!H84+'Schedule IID (EBS)'!H84+'Schedule IIE (EBS)'!H84+'Schedule IIF (EBS)'!H84","v":0},0,0.03,{"$f":"MAX(0,C72-(1-G72)*MIN(C72,E72))*F72","v":0}]
[null,"BSCR Rating 1",{"$f":"'Schedule IIB (EBS)'!D85+'Schedule IIC (EBS)'!D85+'Schedule IID (EBS)'!D85+'Schedule IIE (EBS)'!D85+'Schedule IIF (EBS)'!D85","v":0},{"$f":"'Schedule IIB (EBS)'!F85+'Schedule IIC (EBS)'!F85+'Schedule IID (EBS)'!F85+'Schedule IIE (EBS)'!F85+'Schedule IIF (EBS)'!F85","v":0},{"$f":"'Schedule IIB (EBS)'!H85+'Schedule IIC (EBS)'!H85+'Schedule IID (EBS)'!H85+'Schedule IIE (EBS)'!H85+'Schedule IIF (EBS)'!H85","v":0},4.0000000000000001E-3,0.03,{"$f":"MAX(0,C73-(1-G73)*MIN(C73,E73))*F73","v":0}]
[null,"BSCR Rating 2",{"$f":"'Schedule IIB (EBS)'!D86+'Schedule IIC (EBS)'!D86+'Schedule IID (EBS)'!D86+'Schedule IIE (EBS)'!D86+'Schedule IIF (EBS)'!D86","v":0},{"$f":"'Schedule IIB (EBS)'!F86+'Schedule IIC (EBS)'!F86+'Schedule IID (EBS)'!F86+'Schedule IIE (EBS)'!F86+'Schedule IIF (EBS)'!F86","v":0},{"$f":"'Schedule IIB (EBS)'!H86+'Schedule IIC (EBS)'!H86+'Schedule IID (EBS)'!H86+'Schedule IIE (EBS)'!H86+'Schedule IIF (EBS)'!H86","v":0},8.0000000000000002E-3,0.03,0]
[null,"BSCR Rating 3",{"$f":"'Schedule IIB (EBS)'!D87+'Schedule IIC (EBS)'!D87+'Schedule IID (EBS)'!D87+'Schedule IIE (EBS)'!D87+'Schedule IIF (EBS)'!D87","v":0},{"$f":"'Schedule IIB (EBS)'!F87+'Schedule IIC (EBS)'!F87+'Schedule IID (EBS)'!F87+'Schedule IIE (EBS)'!F87+'Schedule IIF (EBS)'!F87","v":0},{"$f":"'Schedule IIB (EBS)'!H87+'Schedule IIC (EBS)'!H87+'Schedule IID (EBS)'!H87+'Schedule IIE (EBS)'!H87+'Schedule IIF (EBS)'!H87","v":0},1.4999999999999999E-2,0.03,0]
[null,"BSCR Rating 4",{"$f":"'Schedule IIB (EBS)'!D88+'Schedule IIC (EBS)'!D88+'Schedule IID (EBS)'!D88+'Schedule IIE (EBS)'!D88+'Schedule IIF (EBS)'!D88","v":0},{"$f":"'Schedule IIB (EBS)'!F88+'Schedule IIC (EBS)'!F88+'Schedule IID (EBS)'!F88+'Schedule IIE (EBS)'!F88+'Schedule IIF (EBS)'!F88","v":0},{"$f":"'Schedule IIB (EBS)'!H88+'Schedule IIC (EBS)'!H88+'Schedule IID (EBS)'!H88+'Schedule IIE (EBS)'!H88+'Schedule IIF (EBS)'!H88","v":0},0.03,0.03,0]
[null,"BSCR Rating 5",{"$f":"'Schedule IIB (EBS)'!D89+'Schedule IIC (EBS)'!D89+'Schedule IID (EBS)'!D89+'Schedule IIE (EBS)'!D89+'Schedule IIF (EBS)'!D89","v":0},{"$f":"'Schedule IIB (EBS)'!F89+'Schedule IIC (EBS)'!F89+'Schedule IID (EBS)'!F89+'Schedule IIE (EBS)'!F89+'Schedule IIF (EBS)'!F89","v":0},{"$f":"'Schedule IIB (EBS)'!H89+'Schedule IIC (EBS)'!H89+'Schedule IID (EBS)'!H89+'Schedule IIE (EBS)'!H89+'Schedule IIF (EBS)'!H89","v":0},0.08,0.03,0]
[null,"BSCR Rating 6",{"$f":"'Schedule IIB (EBS)'!D90+'Schedule IIC (EBS)'!D90+'Schedule IID (EBS)'!D90+'Schedule IIE (EBS)'!D90+'Schedule IIF (EBS)'!D90","v":0},{"$f":"'Schedule IIB (EBS)'!F90+'Schedule IIC (EBS)'!F90+'Schedule IID (EBS)'!F90+'Schedule IIE (EBS)'!F90+'Schedule IIF (EBS)'!F90","v":0},{"$f":"'Schedule IIB (EBS)'!H90+'Schedule IIC (EBS)'!H90+'Schedule IID (EBS)'!H90+'Schedule IIE (EBS)'!H90+'Schedule IIF (EBS)'!H90","v":0},0.15,0.03,0]
[null,"BSCR Rating 7",{"$f":"'Schedule IIB (EBS)'!D91+'Schedule IIC (EBS)'!D91+'Schedule IID (EBS)'!D91+'Schedule IIE (EBS)'!D91+'Schedule IIF (EBS)'!D91","v":0},{"$f":"'Schedule IIB (EBS)'!F91+'Schedule IIC (EBS)'!F91+'Schedule IID (EBS)'!F91+'Schedule IIE (EBS)'!F91+'Schedule IIF (EBS)'!F91","v":0},{"$f":"'Schedule IIB (EBS)'!H91+'Schedule IIC (EBS)'!H91+'Schedule IID (EBS)'!H91+'Schedule IIE (EBS)'!H91+'Schedule IIF (EBS)'!H91","v":0},0.26300000000000001,0.03,0]
[null,"BSCR Rating 8",{"$f":"'Schedule IIB (EBS)'!D92+'Schedule IIC (EBS)'!D92+'Schedule IID (EBS)'!D92+'Schedule IIE (EBS)'!D92+'Schedule IIF (EBS)'!D92","v":0},{"$f":"'Schedule IIB (EBS)'!F92+'Schedule IIC (EBS)'!F92+'Schedule IID (EBS)'!F92+'Schedule IIE (EBS)'!F92+'Schedule IIF (EBS)'!F92","v":0},{"$f":"'Schedule IIB (EBS)'!H92+'Schedule IIC (EBS)'!H92+'Schedule IID (EBS)'!H92+'Schedule IIE (EBS)'!H92+'Schedule IIF (EBS)'!H92","v":0},0.35,0.03,0]
[]
[null,"(d)  SUBTOTAL - COUNTERPARTY DEFAULT RISK FOR OTC DERIVATIVES",null,null,null,null,null,{"$f":"SUM(H72:H80)","v":0}]
[]
[null,"(e)  TOTAL CREDIT RISK  [ (a) + (b) + (c) + (d) ]",null,null,null,{"$f":"F15+F24+F67","v":0},null,{"$f":"H15+H24+H67+H82","v":0}]

{"sheet":"Catastrophe Risk (old)","index":131,"n_rows":25,"n_cols":5,"rows_kept":25,"cut":false,"hidden":true,"merged":[[27,0,27,1],[0,4,0,5]]}
["CATASTROPHE RISK",null,null,null,{"$f":"HYPERLINK(\"#'Index'!A1\",\"Return to Index\")","v":"Return to Index"}]
[{"$f":"'Company Information'!C7","v":"Enter Company Name"}]
[{"$f":"\"Catastrophe Risk\" & \"($\"&IF(CONFIGURATION!$B$12>1,MID(CONFIGURATION!$B$12,2,LEN(CONFIGURATION!$B$12)),\"\")&\")\"","v":"Catastrophe Risk($000)"},null,{"$f":"'Company Information'!C3","v":"2023-12-31"}]
[]
[null,"DESCRIPTION","STATEMENT SOURCE",null,"VALUE"]
[]
[null,{"$f":"IF('Company Information'!F11=\"Class 3A\",\"(a)  Gross Probable Maximum Loss (if property catastrophe writer)\",\"(a)  Gross Probable Maximum Loss\")","v":"(a)  Gross Probable Maximum Loss (if property catastrophe writer)"},{"$f":"IF('Company Information'!F11=\"Class 3A\",\"Schedule V, Line (f)\",\"Schedule V, Line (g)\")","v":"Schedule V, Line (f)"},null,{"$f":"'Schedule V'!H16","v":0}]
[]
[null,{"$f":"IF('Company Information'!F11=\"Class 3A\",\"(b)  Net Probable Maximum Loss (if property catastrophe writer)\",\"(b)  Net Probable Maximum Loss\")","v":"(b)  Net Probable Maximum Loss (if property catastrophe writer)"},{"$f":"IF('Company Information'!F11=\"Class 3A\",\"Schedule V, Line (g)\",\"Schedule V, Line (h)\")","v":"Schedule V, Line (g)"},null,{"$f":"'Schedule V'!H18","v":0}]
[]
[null,"(c)  Average Annual Loss (AAL) Excluding Property Catastrophe",{"$f":"IF('Company Information'!F11=\"Class 3A\",\"Schedule V, Line (h)\",\"Schedule V, Line (i)\")","v":"Schedule V, Line (h)"},null,{"$f":"'Schedule V'!H20","v":0}]
[]
[null,"(d)  Industry Catastrophe Loss Ratio",null,null,0.4]
[]
[null,{"$f":"IF('Company Information'!F11=\"Class 3A\",\"(c)  Property Catastrophe Premium\",\"(e)  Property Catastrophe Premium\")","v":"(c)  Property Catastrophe Premium"},"Schedule IV, Line (1)",null,{"$f":"'Premium Risk (old)'!F11","v":0}]
[]
[null,"(f)  Total Catastrophe Premium  [ (c) / (d) + (e) ]",null,null,{"$f":"$E$11/$E$13+IF($E$15>0,$E$15,0)","v":0}]
[]
[null,{"$f":"IF('Company Information'!F11=\"Class 3A\",\"(d)  Credit Risk Capital Factor\",\"(g)  Credit Risk Capital Factor\")","v":"(d)  Credit Risk Capital Factor"},null,null,0.1]
[]
[null,{"$f":"IF('Company Information'!F11=\"Class 3A\",\"(e) Arrangements with Respect to Property Catastrophe Recoverables\",\"(h) Arrangements with Respect to Property Catastrophe Recoverables\")","v":"(e) Arrangements with Respect to Property Catastrophe Recoverables"},{"$f":"IF('Company Information'!F11=\"Class 3A\",\"Schedule V, Line (j)(v)\",\"Schedule V, Line (k)(v)\")","v":"Schedule V, Line (j)(v)"},null,{"$f":"'Schedule V'!H29","v":0}]
[]
[null,{"$f":"IF('Company Information'!F11=\"Class 3A\",\"(f)  Credit Risk Charge [ ((a - b) - (e * 0.98)) * d ]\",\"(i)  Credit Risk Charge [ ((a - b) - (h * 0.98)) * g ]\")","v":"(f)  Credit Risk Charge [ ((a - b) - (e * 0.98)) * d ]"},null,null,{"$f":"MAX(0,((E7-E9)-(E21*98%))*E19)","v":0}]
[]
[null,{"$f":"IF('Company Information'!F11=\"Class 3A\",\"(g)  REQUIRED CAPITAL FOR CATASTROPHE RISK  [ (b) - (c) + (f) ]\",\"(j)  REQUIRED CAPITAL FOR CATASTROPHE RISK  [ (b) - (f) + (i) ]\")","v":"(g)  REQUIRED CAPITAL FOR CATASTROPHE RISK  [ (b) - (c) + (f) ]"},null,null,{"$f":"IF('Company Information'!F11=\"Class 3A\",(IF((E9-E15)>=0,E9-E15+E23,E23)),(IF((E9-E17)>=0,E9-E17+E23,E23)))","v":0}]

{"sheet":"Catastrophe Risk","index":132,"n_rows":25,"n_cols":5,"rows_kept":25,"cut":false,"hidden":false,"merged":[[0,4,0,5],[27,0,27,1]]}
["CATASTROPHE RISK (REVISED)",null,null,null,{"$f":"HYPERLINK(\"#'Index'!A1\",\"Return to Index\")","v":"Return to Index"}]
[{"$f":"'Company Information'!C7","v":"Enter Company Name"}]
[{"$f":"\"Catastrophe Risk\" & \"($\"&IF(CONFIGURATION!$B$12>1,MID(CONFIGURATION!$B$12,2,LEN(CONFIGURATION!$B$12)),\"\")&\")\"","v":"Catastrophe Risk($000)"},null,{"$f":" TEXT('Company Information'!C3,\"d mmmm yyyy\")","v":"31 December 2023"}]
[]
[null,"DESCRIPTION","STATEMENT SOURCE",null,"VALUE"]
[]
[null,{"$f":"IF('Company Information'!F11=\"Class 3A\",\"(a)  Gross Probable Maximum Loss (if property catastrophe writer)\",\"(a)  Gross Probable Maximum Loss\")","v":"(a)  Gross Probable Maximum Loss (if property catastrophe writer)"},{"$f":"IF('Company Information'!F11=\"Class 3A\",\"Schedule V, Line (f)\",\"Schedule V, Line (g)\")","v":"Schedule V, Line (f)"},null,{"$f":"'Schedule V'!H16","v":0}]
[]
[null,{"$f":"IF('Company Information'!F11=\"Class 3A\",\"(b)  Net Probable Maximum Loss (if property catastrophe writer)\",\"(b)  Net Probable Maximum Loss\")","v":"(b)  Net Probable Maximum Loss (if property catastrophe writer)"},{"$f":"IF('Company Information'!F11=\"Class 3A\",\"Schedule V, Line (g)\",\"Schedule V, Line (h)\")","v":"Schedule V, Line (g)"},null,{"$f":"'Schedule V'!H18","v":0}]
[]
[null,"(c)  Average Annual Loss (AAL) Excluding Property Catastrophe",{"$f":"IF('Company Information'!F11=\"Class 3A\",\"Schedule V, Line (h)\",\"Schedule V, Line (i)\")","v":"Schedule V, Line (h)"},null,{"$f":"'Schedule V'!H20","v":0}]
[]
[null,"(d)  Industry Catastrophe Loss Ratio",null,null,0.4]
[]
[null,{"$f":"IF('Company Information'!F11=\"Class 3A\",\"(c)  Property Catastrophe Premium\",\"(e)  Property Catastrophe Premium\")","v":"(c)  Property Catastrophe Premium"},"Schedule IVD, Column C, Line (1)",null,{"$f":"IF('Schedule IVD (EBS)'!G9=0,'Schedule IVD (EBS)'!E9,'Schedule IVD (EBS)'!G9)","v":0}]
[]
[null,"(f)  Total Catastrophe Premium  [ (c) / (d) + (e) ]",null,null,{"$f":"$E$11/$E$13+IF($E$15>0,$E$15,0)","v":0}]
[]
[null,{"$f":"IF('Company Information'!F11=\"Class 3A\",\"(d)  Credit Risk Capital Factor\",\"(g)  Credit Risk Capital Factor\")","v":"(d)  Credit Risk Capital Factor"},null,null,0.1]
[]
[null,{"$f":"IF('Company Information'!F11=\"Class 3A\",\"(e) Arrangements with Respect to Property Catastrophe Recoverables\",\"(h) Arrangements with Respect to Property Catastrophe Recoverables\")","v":"(e) Arrangements with Respect to Property Catastrophe Recoverables"},{"$f":"IF('Company Information'!F11=\"Class 3A\",\"Schedule V, Line (j)(v)\",\"Schedule V, Line (k)(v)\")","v":"Schedule V, Line (j)(v)"},null,{"$f":"'Schedule V'!H29","v":0}]
[]
[null,{"$f":"IF('Company Information'!F11=\"Class 3A\",\"(f)  Credit Risk Charge [ ((a - b) - (e * 0.98)) * d ]\",\"(i)  Credit Risk Charge [ ((a - b) - (h * 0.98)) * g ]\")","v":"(f)  Credit Risk Charge [ ((a - b) - (e * 0.98)) * d ]"},null,null,{"$f":"MAX(0,((E7-E9)-(E21*98%))*E19)","v":0}]
[]
[null,{"$f":"IF('Company Information'!F11=\"Class 3A\",\"(g)  REQUIRED CAPITAL FOR CATASTROPHE RISK  [ (b) - (c) + (f) ]\",\"(j)  REQUIRED CAPITAL FOR CATASTROPHE RISK  [ (b) - (f) + (i) ]\")","v":"(g)  REQUIRED CAPITAL FOR CATASTROPHE RISK  [ (b) - (c) + (f) ]"},null,null,{"$f":"IF('Company Information'!F11=\"Class 3A\",(IF((E9-E15)>=0,E9-E15+E23,E23)),(IF((E9-E17)>=0,E9-E17+E23,E23)))","v":0}]

{"sheet":"CSP (old)","index":133,"n_rows":524,"n_cols":9,"rows_kept":524,"cut":false,"hidden":true,"merged":[[2,5,3,8],[2,0,2,2],[5,1,5,8],[0,0,0,6]]}
["COMPANY SPECIFIC PARAMETERS",null,null,null,null,null,null,null,{"$f":"HYPERLINK(\"#'Index'!A1\",\"Return to Index\")","v":"Return to Index"}]
[]
[{"$f":"'Company Information'!C7","v":"Enter Company Name"},null,null,null,null,{"$f":"HYPERLINK(\"#'Attachments'!A205\",\"Details of User Capital Factor to be included in the attachments section 11.\")","v":"Details of User Capital Factor to be included in the attachments section 11."}]
["For the Year Ending ",null,{"$f":"'Company Information'!C3","v":"2023-12-31"}]
[]
[null,"To be completed only with prior approval from the Bermuda Monetary Authority"]
[]
[null,null,null,null,"STANDARD","STANDARD",null,"USER","USER"]
[null,"TYPE OF ",null,"ASSET","CAPITAL","REQUIRED",null,"CAPITAL","REQUIRED"]
[null,"FIXED INCOME INVESTMENTS","STATEMENT SOURCE","VALUE","FACTOR","CAPITAL",null,"FACTOR","CAPITAL"]
[]
[null,"(a) Corporate & Sovereign Bonds",null,"(1) ","(2)","(1) x (2)",null,"(3)","(1) x (3)"]
[]
[null,"BSCR Rating"]
[null,0,"Sch II EBS, Line (1), Column 1 and Sch IIA EBS, Line (1), Column 1",{"$f":"'Schedule II (EBS)'!D12+'Schedule IIA (EBS)'!D12","v":0},{"$f":"+'Fixed Income Investments (Prior'!E12","v":0},{"$f":"IF(D15<0,0,D15*E15)","v":0},null,null,{"$f":"MAX(0,IF(H15=\"\",E15*D15,D15*H15))","v":0}]
[null,1,"Sch II EBS, Line (2), Column 1 and Sch IIA EBS, Line (2), Column 1",{"$f":"'Schedule II (EBS)'!D13+'Schedule IIA (EBS)'!D13","v":0},{"$f":"+'Fixed Income Investments (Prior'!E13","v":4.0000000000000001E-3},0,null,null,{"$f":"MAX(0,IF(H16=\"\",E16*D16,D16*H16))","v":0}]
[null,2,"Sch II EBS, Line (3), Column 1 and Sch IIA EBS, Line (3), Column 1",{"$f":"'Schedule II (EBS)'!D14+'Schedule IIA (EBS)'!D14","v":0},{"$f":"+'Fixed Income Investments (Prior'!E14","v":8.0000000000000002E-3},0,null,null,0]
[null,3,"Sch II EBS, Line (4), Column 1 and Sch IIA EBS, Line (4), Column 1",{"$f":"'Schedule II (EBS)'!D15+'Schedule IIA (EBS)'!D15","v":0},{"$f":"+'Fixed Income Investments (Prior'!E15","v":1.4999999999999999E-2},0,null,null,0]
[null,4,"Sch II EBS, Line (5), Column 1 and Sch IIA EBS, Line (5), Column 1",{"$f":"'Schedule II (EBS)'!D16+'Schedule IIA (EBS)'!D16","v":0},{"$f":"+'Fixed Income Investments (Prior'!E16","v":0.03},0,null,null,0]
[null,5,"Sch II EBS, Line (6), Column 1 and Sch IIA EBS, Line (6), Column 1",{"$f":"'Schedule II (EBS)'!D17+'Schedule IIA (EBS)'!D17","v":0},{"$f":"+'Fixed Income Investments (Prior'!E17","v":0.08},0,null,null,0]
[null,6,"Sch II EBS, Line (7), Column 1 and Sch IIA EBS, Line (7), Column 1",{"$f":"'Schedule II (EBS)'!D18+'Schedule IIA (EBS)'!D18","v":0},{"$f":"+'Fixed Income Investments (Prior'!E18","v":0.15},0,null,null,0]
[null,7,"Sch II EBS, Line (8), Column 1 and Sch IIA EBS, Line (8), Column 1",{"$f":"'Schedule II (EBS)'!D19+'Schedule IIA (EBS)'!D19","v":0},{"$f":"+'Fixed Income Investments (Prior'!E19","v":0.26300000000000001},0,null,null,0]
[null,8,"Sch II EBS, Line (9), Column 1 and Sch IIA EBS, Line (9), Column 1",{"$f":"'Schedule II (EBS)'!D20+'Schedule IIA (EBS)'!D20","v":0},{"$f":"+'Fixed Income Investments (Prior'!E20","v":0.35},0,null,null,0]
[]
[null,"(a)  SUBTOTAL -  CORPORATE BONDS",null,{"$f":"SUM(D15:D24)","v":0},null,{"$f":"IF(SUM(F15:F23)>=0,SUM(F15:F23),0)","v":0},null,null,{"$f":"IF(SUM(I15:I23)>=0,SUM(I15:I23),0)","v":0}]
[]
[null,"(b) Residential Mortgage-Backed Securities"]
[]
[null,"BSCR Rating"]
[null,1,"Sch II EBS, Line (2), Column 3 and Sch IIA EBS, Line (2), Column 3",{"$f":"'Schedule II (EBS)'!H13+'Schedule IIA (EBS)'!H13","v":0},{"$f":"+'Fixed Income Investments (Prior'!E27","v":6.0000000000000001E-3},{"$f":"IF(D30<0,0,D30*E30)","v":0},null,null,{"$f":"MAX(0,IF(H30=\"\",E30*D30,D30*H30))","v":0}]
[null,2,"Sch II EBS, Line (3), Column 3 and Sch IIA EBS, Line (3), Column 3",{"$f":"'Schedule II (EBS)'!H14+'Schedule IIA (EBS)'!H14","v":0},{"$f":"+'Fixed Income Investments (Prior'!E28","v":1.2E-2},0,null,null,0]
[null,3,"Sch II EBS, Line (4), Column 3 and Sch IIA EBS, Line (4), Column 3",{"$f":"'Schedule II (EBS)'!H15+'Schedule IIA (EBS)'!H15","v":0},{"$f":"+'Fixed Income Investments (Prior'!E29","v":0.02},0,null,null,0]
[null,4,"Sch II EBS, Line (5), Column 3 and Sch IIA EBS, Line (5), Column 3",{"$f":"'Schedule II (EBS)'!H16+'Schedule IIA (EBS)'!H16","v":0},{"$f":"+'Fixed Income Investments (Prior'!E30","v":0.04},0,null,null,0]
[null,5,"Sch II EBS, Line (6), Column 3 and Sch IIA EBS, Line (6), Column 3",{"$f":"'Schedule II (EBS)'!H17+'Schedule IIA (EBS)'!H17","v":0},{"$f":"+'Fixed Income Investments (Prior'!E31","v":0.11},0,null,null,0]
[null,6,"Sch II EBS, Line (7), Column 3 and Sch IIA EBS, Line (7), Column 3",{"$f":"'Schedule II (EBS)'!H18+'Schedule IIA (EBS)'!H18","v":0},{"$f":"+'Fixed Income Investments (Prior'!E32","v":0.25},0,null,null,0]
[null,7,"Sch II EBS, Line (8), Column 3 and Sch IIA EBS, Line (8), Column 3",{"$f":"'Schedule II (EBS)'!H19+'Schedule IIA (EBS)'!H19","v":0},{"$f":"+'Fixed Income Investments (Prior'!E33","v":0.35},0,null,null,0]
[null,8,"Sch II EBS, Line (9), Column 3 and Sch IIA EBS, Line (9), Column 3",{"$f":"'Schedule II (EBS)'!H20+'Schedule IIA (EBS)'!H20","v":0},{"$f":"+'Fixed Income Investments (Prior'!E34","v":0.35},0,null,null,0]
[]
[null,"(b)  SUBTOTAL - RESIDENTIAL MORTGAGE-BACKED SECURITIES",null,{"$f":"SUM(D29:D38)","v":0},null,{"$f":"IF(SUM(F29:F37)>=0,SUM(F29:F37),0)","v":0},null,null,{"$f":"IF(SUM(I29:I37)>=0,SUM(I29:I37),0)","v":0}]
[]
[null,"(c) Commercial Mortgage-Backed Securities / Asset-Backed Securities"]
[]
[null,"BSCR Rating"]
[null,1,"Sch II EBS, Line (2), Column 5 and Sch IIA EBS, Line (2), Column 5",{"$f":"'Schedule II (EBS)'!L13+'Schedule IIA (EBS)'!L13","v":0},{"$f":"+'Fixed Income Investments (Prior'!E41","v":5.0000000000000001E-3},{"$f":"IF(D44<0,0,D44*E44)","v":0},null,null,{"$f":"MAX(0,IF(H44=\"\",E44*D44,D44*H44))","v":0}]
[null,2,"Sch II EBS, Line (3), Column 5 and Sch IIA EBS, Line (3), Column 5",{"$f":"'Schedule II (EBS)'!L14+'Schedule IIA (EBS)'!L14","v":0},{"$f":"+'Fixed Income Investments (Prior'!E42","v":0.01},0,null,null,0]
[null,3,"Sch II EBS, Line (4), Column 5 and Sch IIA EBS, Line (4), Column 5",{"$f":"'Schedule II (EBS)'!L15+'Schedule IIA (EBS)'!L15","v":0},{"$f":"+'Fixed Income Investments (Prior'!E43","v":1.7999999999999999E-2},0,null,null,0]
[null,4,"Sch II EBS, Line (5), Column 5 and Sch IIA EBS, Line (5), Column 5",{"$f":"'Schedule II (EBS)'!L16+'Schedule IIA (EBS)'!L16","v":0},{"$f":"+'Fixed Income Investments (Prior'!E44","v":3.5000000000000003E-2},0,null,null,0]
[null,5,"Sch II EBS, Line (6), Column 5 and Sch IIA EBS, Line (6), Column 5",{"$f":"'Schedule II (EBS)'!L17+'Schedule IIA (EBS)'!L17","v":0},{"$f":"+'Fixed Income Investments (Prior'!E45","v":0.1},0,null,null,0]
[null,6,"Sch II EBS, Line (7), Column 5 and Sch IIA EBS, Line (7), Column 5",{"$f":"'Schedule II (EBS)'!L18+'Schedule IIA (EBS)'!L18","v":0},{"$f":"+'Fixed Income Investments (Prior'!E46","v":0.2},0,null,null,0]
[null,7,"Sch II EBS, Line (8), Column 5 and Sch IIA EBS, Line (8), Column 5",{"$f":"'Schedule II (EBS)'!L19+'Schedule IIA (EBS)'!L19","v":0},{"$f":"+'Fixed Income Investments (Prior'!E47","v":0.3},0,null,null,0]
[null,8,"Sch II EBS, Line (9), Column 5 and Sch IIA EBS, Line (9), Column 5",{"$f":"'Schedule II (EBS)'!L20+'Schedule IIA (EBS)'!L20","v":0},{"$f":"+'Fixed Income Investments (Prior'!E48","v":0.35},0,null,null,0]
[]
[null,"(c)  SUBTOTAL - COMMERCIAL MORTGAGE-BACKED SECURITIES / ASSET-BACKED SECURITIES",null,{"$f":"SUM(D43:D52)","v":0},null,{"$f":"IF(SUM(F43:F51)>=0,SUM(F43:F51),0)","v":0},null,null,{"$f":"IF(SUM(I43:I51)>=0,SUM(I43:I51),0)","v":0}]
[]
[null,"(d) Bond Mutual Funds"]
[]
[null,"BSCR Rating"]
[null,0,"Sch II EBS, Line (1), Column 7 and Sch IIA EBS, Line (1), Column 7",{"$f":"'Schedule II (EBS)'!P12+'Schedule IIA (EBS)'!P12","v":0},{"$f":"+'Fixed Income Investments (Prior'!E56","v":0},{"$f":"IF(D58<0,0,D58*E58)","v":0},null,null,{"$f":"MAX(0,IF(H58=\"\",E58*D58,D58*H58))","v":0}]
[null,1,"Sch II EBS, Line (2), Column 7 and Sch IIA EBS, Line (2), Column 7",{"$f":"'Schedule II (EBS)'!P13+'Schedule IIA (EBS)'!P13","v":0},{"$f":"+'Fixed Income Investments (Prior'!E57","v":4.0000000000000001E-3},0,null,null,0]
[null,2,"Sch II EBS, Line (3), Column 7 and Sch IIA EBS, Line (3), Column 7",{"$f":"'Schedule II (EBS)'!P14+'Schedule IIA (EBS)'!P14","v":0},{"$f":"+'Fixed Income Investments (Prior'!E58","v":8.0000000000000002E-3},0,null,null,0]
[null,3,"Sch II EBS, Line (4), Column 7 and Sch IIA EBS, Line (4), Column 7",{"$f":"'Schedule II (EBS)'!P15+'Schedule IIA (EBS)'!P15","v":0},{"$f":"+'Fixed Income Investments (Prior'!E59","v":1.4999999999999999E-2},0,null,null,0]
[null,4,"Sch II EBS, Line (5), Column 7 and Sch IIA EBS, Line (5), Column 7",{"$f":"'Schedule II (EBS)'!P16+'Schedule IIA (EBS)'!P16","v":0},{"$f":"+'Fixed Income Investments (Prior'!E60","v":0.03},0,null,null,0]
[null,5,"Sch II EBS, Line (6), Column 7 and Sch IIA EBS, Line (6), Column 7",{"$f":"'Schedule II (EBS)'!P17+'Schedule IIA (EBS)'!P17","v":0},{"$f":"+'Fixed Income Investments (Prior'!E61","v":0.08},0,null,null,0]
[null,6,"Sch II EBS, Line (7), Column 7 and Sch IIA EBS, Line (7), Column 7",{"$f":"'Schedule II (EBS)'!P18+'Schedule IIA (EBS)'!P18","v":0},{"$f":"+'Fixed Income Investments (Prior'!E62","v":0.15},0,null,null,0]
[null,7,"Sch II EBS, Line (8), Column 7 and Sch IIA EBS, Line (8), Column 7",{"$f":"'Schedule II (EBS)'!P19+'Schedule IIA (EBS)'!P19","v":0},{"$f":"+'Fixed Income Investments (Prior'!E63","v":0.26300000000000001},0,null,null,0]
[null,8,"Sch II EBS, Line (9), Column 7 and Sch IIA EBS, Line (9), Column 7",{"$f":"'Schedule II (EBS)'!P20+'Schedule IIA (EBS)'!P20","v":0},{"$f":"+'Fixed Income Investments (Prior'!E64","v":0.35},0,null,null,0]
[]
[null,"(d)  SUBTOTAL - BOND MUTUAL FUNDS",null,{"$f":"SUM(D58:D67)","v":0},null,{"$f":"IF(SUM(F58:F66)>=0,SUM(F58:F66),0)","v":0},null,null,{"$f":"IF(SUM(I58:I66)>=0,SUM(I58:I66),0)","v":0}]
[]
[null,"(e) Mortgage Loans"]
[]
[null,"Insured/Guaranteed Mortgages","Sch II EBS, Line (22), Column 1 and Sch IIA EBS, Line (22), Column 1",{"$f":"'Schedule II (EBS)'!D57+'Schedule IIA (EBS)'!D57","v":0},{"$f":"+'Fixed Income Investments (Prior'!E70","v":3.0000000000000001E-3},{"$f":"IF(D72<0,0,D72*E72)","v":0},null,null,{"$f":"MAX(0,IF(H72=\"\",E72*D72,D72*H72))","v":0}]
[null,"Other Commercial and Farm Mortgages","Sch II EBS, Line (23), Column 1 and Sch IIA EBS, Line (23), Column 1 ",{"$f":"'Schedule II (EBS)'!D58+'Schedule IIA (EBS)'!D58","v":0},{"$f":"+'Fixed Income Investments (Prior'!E71","v":0.05},{"$f":"IF(D73<0,0,D73*E73)","v":0},null,null,{"$f":"MAX(0,IF(H73=\"\",E73*D73,D73*H73))","v":0}]
[null,"Other Residential Mortgages","Sch II EBS, Line (24), Column 1 and Sch IIA EBS, Line (24), Column 1",{"$f":"'Schedule II (EBS)'!D59+'Schedule IIA (EBS)'!D59","v":0},{"$f":"+'Fixed Income Investments (Prior'!E72","v":1.4999999999999999E-2},{"$f":"IF(D74<0,0,D74*E74)","v":0},null,null,{"$f":"MAX(0,IF(H74=\"\",E74*D74,D74*H74))","v":0}]
[null,"Mortgages Not In Good Standing","Sch II EBS, Line (25), Column 1 and Sch IIA EBS, Line (25), Column 1",{"$f":"'Schedule II (EBS)'!D60+'Schedule IIA (EBS)'!D60","v":0},{"$f":"+'Fixed Income Investments (Prior'!E73","v":0.25},{"$f":"IF(D75<0,0,D75*E75)","v":0},null,null,{"$f":"MAX(0,IF(H75=\"\",E75*D75,D75*H75))","v":0}]
[]
[null,"(e)  SUBTOTAL - MORTGAGE LOANS",null,{"$f":"SUM(D72:D76)","v":0},null,{"$f":"IF(SUM(F72:F75)>=0,SUM(F72:F75),0)","v":0},null,null,{"$f":"IF(SUM(I72:I75)>=0,SUM(I72:I75),0)","v":0}]
[]
[null,"(f) Other Fixed Income Investments"]
[]
[null,"Other Loans","Form 1EBS, Line (8)",{"$f":"'Form 1EBS'!F52","v":0},{"$f":"+'Fixed Income Investments (Prior'!E79","v":0.05},{"$f":"IF(D81<0,0,D81*E81)","v":0},null,null,{"$f":"MAX(0,IF(H81=\"\",E81*D81,D81*H81))","v":0}]
[]
[null,"Cash and Cash Equivalent Counterparty Balances By BSCR Rating"]
[]
[null,"BSCR Rating 0 ","Schedule XIX, Column B",{"$f":"+'Schedule XIX'!H81","v":0},{"$f":"+'Fixed Income Investments (Prior'!E83","v":0},{"$f":"IF(D85<0,0,D85*E85)","v":0},null,null,{"$f":"MAX(0,IF(H85=\"\",E85*D85,D85*H85))","v":0}]
[null,"BSCR Rating 1","Schedule XIX, Column B",{"$f":"+'Schedule XIX'!H82","v":0},{"$f":"+'Fixed Income Investments (Prior'!E84","v":1E-3},{"$f":"IF(D86<0,0,D86*E86)","v":0},null,null,{"$f":"MAX(0,IF(H86=\"\",E86*D86,D86*H86))","v":0}]
[null,"BSCR Rating 2","Schedule XIX, Column B",{"$f":"+'Schedule XIX'!H83","v":0},{"$f":"+'Fixed Income Investments (Prior'!E85","v":2E-3},0,null,null,0]
[null,"BSCR Rating 3","Schedule XIX, Column B",{"$f":"+'Schedule XIX'!H84","v":0},{"$f":"+'Fixed Income Investments (Prior'!E86","v":3.0000000000000001E-3},0,null,null,0]
[null,"BSCR Rating 4","Schedule XIX, Column B",{"$f":"+'Schedule XIX'!H85","v":0},{"$f":"+'Fixed Income Investments (Prior'!E87","v":5.0000000000000001E-3},0,null,null,0]
[null,"BSCR Rating 5","Schedule XIX, Column B",{"$f":"+'Schedule XIX'!H86","v":0},{"$f":"+'Fixed Income Investments (Prior'!E88","v":1.4999999999999999E-2},0,null,null,0]
[null,"BSCR Rating 6","Schedule XIX, Column B",{"$f":"+'Schedule XIX'!H87","v":0},{"$f":"+'Fixed Income Investments (Prior'!E89","v":0.04},0,null,null,0]
[null,"BSCR Rating 7","Schedule XIX, Column B",{"$f":"+'Schedule XIX'!H88","v":0},{"$f":"+'Fixed Income Investments (Prior'!E90","v":0.06},0,null,null,0]
[null,"BSCR Rating 8","Schedule XIX, Column B",{"$f":"+'Schedule XIX'!H89","v":0},{"$f":"+'Fixed Income Investments (Prior'!E91","v":0.09},0,null,null,0]
[]
[null,"Total",null,{"$f":"SUM(D85:D94)","v":0},null,{"$f":"SUM(F85:F94)","v":0},null,null,{"$f":"SUM(I85:I94)","v":0}]
[]
[null,"Diversification Adj at 40%","Schedule XIX, Column B",null,null,{"$f":"SUM(F85:F93)*-(+'Schedule XIX'!H98)","v":0},null,null,{"$f":"SUM(I85:I93)*-(+'Schedule XIX'!H98)","v":0}]
[]
[null,"(f)  SUBTOTAL - OTHER FIXED INCOME SECURITIES",null,{"$f":"D81+D95","v":0},null,{"$f":"IF(SUM(F81,F95,F97)>=0,SUM(F81,F95,F97),0)","v":0},null,null,{"$f":"IF(SUM(I81,I95,I97)>=0,SUM(I81,I95,I97),0)","v":0}]
[]
[null,"(g)  TOTAL FIXED INCOME INVESTMENTS [ (a)+(b)+(c)+(d)+(e)+(f) ]",null,{"$f":"D25+D39+D53+D68+D77+D99","v":0},null,{"$f":"IF(SUM(F25+F39+F53+F68+F77+F99)>=0,SUM(F25+F39+F53+F68+F77+F99),0)","v":0},null,null,{"$f":"IF(SUM(I25+I39+I53+I68+I77+I99)>=0,SUM(I25+I39+I53+I68+I77+I99),0)","v":0}]
[]
[null,null,null,null,"STANDARD","STANDARD",null,"USER","USER"]
[null,"TYPE OF ",null,"ASSET","CAPITAL","REQUIRED",null,"CAPITAL","REQUIRED"]
[null,"EQUITY INVESTMENTS","STATEMENT SOURCE","VALUE","FACTOR","CAPITAL",null,"FACTOR","CAPITAL"]
[]
[null,"(a)  Common Stocks",null,"(1) ","(2)","(1) x (2)",null,"(3)","(1) x (3)"]
[]
[null,"Non-Affiliated (Quoted)","Sch II EBS, Line (19), Column (1) and Sch IIA EBS, Line (19), Column (1)",{"$f":"'Schedule II (EBS)'!D41+'Schedule IIA (EBS)'!D41","v":0},{"$f":"+'Equity Investments (Prior)'!E11","v":0.14399999999999999},{"$f":"IF(D109<0,0,D109*E109)","v":0},null,null,{"$f":"MAX(0,IF(H109=\"\",E109*D109,D109*H109))","v":0}]
[null,"Non-Affiliated (Unquoted)","Sch II EBS, Line (20), Column (1) and Sch IIA EBS, Line (20), Column (1)",{"$f":"'Schedule II (EBS)'!D42+'Schedule IIA (EBS)'!D42","v":0},{"$f":"+'Equity Investments (Prior)'!E12","v":0.14399999999999999},{"$f":"IF(D110<0,0,D110*E110)","v":0},null,null,{"$f":"MAX(0,IF(H110=\"\",E110*D110,D110*H110))","v":0}]
[null,"Equity Mutual Funds","Sch II EBS, Line (21), Column (5) and Sch IIA EBS, Line (21), Column (5)",{"$f":"+'Schedule II (EBS)'!L44+'Schedule IIA (EBS)'!L44","v":0},{"$f":"+'Equity Investments (Prior)'!E13","v":0.14399999999999999},{"$f":"IF(D111<0,0,D111*E111)","v":0},null,null,{"$f":"MAX(0,IF(H111=\"\",E111*D111,D111*H111))","v":0}]
[]
[null,"(a)  SUBTOTAL - COMMON STOCKS",null,{"$f":"SUM(D109:D111)","v":0},null,{"$f":"IF(SUM(F109:F111)>=0,SUM(F109:F111),0)","v":0},null,null,{"$f":"IF(SUM(I109:I111)>=0,SUM(I109:I111),0)","v":0}]
[]
[null,"(b)  Preferred Stocks"]
[]
[null,"BSCR Rating"]
[null,1,"Sch II EBS, Line (11), Column (3) and Sch IIA EBS, Line (11), Column (3)",{"$f":"'Schedule II (EBS)'!H33+'Schedule IIA (EBS)'!H33","v":0},{"$f":"+'Equity Investments (Prior)'!E20","v":6.0000000000000001E-3},{"$f":"IF(D118<0,0,D118*E118)","v":0},null,null,{"$f":"MAX(0,IF(H118=\"\",E118*D118,D118*H118))","v":0}]
[null,2,"Sch II EBS, Line (12), Column (3) and Sch IIA EBS, Line (12), Column (3)",{"$f":"'Schedule II (EBS)'!H34+'Schedule IIA (EBS)'!H34","v":0},{"$f":"+'Equity Investments (Prior)'!E21","v":1.2E-2},0,null,null,0]
[null,3,"Sch II EBS, Line (13), Column (3) and Sch IIA EBS, Line (13), Column (3)",{"$f":"'Schedule II (EBS)'!H35+'Schedule IIA (EBS)'!H35","v":0},{"$f":"+'Equity Investments (Prior)'!E22","v":0.02},0,null,null,0]
[null,4,"Sch II EBS, Line (14), Column (3) and Sch IIA EBS, Line (14), Column (3)",{"$f":"'Schedule II (EBS)'!H36+'Schedule IIA (EBS)'!H36","v":0},{"$f":"+'Equity Investments (Prior)'!E23","v":0.04},0,null,null,0]
[null,5,"Sch II EBS, Line (15), Column (3) and Sch IIA EBS, Line (15), Column (3)",{"$f":"'Schedule II (EBS)'!H37+'Schedule IIA (EBS)'!H37","v":0},{"$f":"+'Equity Investments (Prior)'!E24","v":0.11},0,null,null,0]
[null,6,"Sch II EBS, Line (16), Column (3) and Sch IIA EBS, Line (16), Column (3)",{"$f":"'Schedule II (EBS)'!H38+'Schedule IIA (EBS)'!H38","v":0},{"$f":"+'Equity Investments (Prior)'!E25","v":0.25},0,null,null,0]
[null,7,"Sch II EBS, Line (17), Column (3) and Sch IIA EBS, Line (17), Column (3)",{"$f":"'Schedule II (EBS)'!H39+'Schedule IIA (EBS)'!H39","v":0},{"$f":"+'Equity Investments (Prior)'!E26","v":0.35},0,null,null,0]
[null,8,"Sch II EBS, Line (18), Column (3) and Sch IIA EBS, Line (18), Column (3)",{"$f":"'Schedule II (EBS)'!H40+'Schedule IIA (EBS)'!H40","v":0},{"$f":"+'Equity Investments (Prior)'!E27","v":0.35},0,null,null,0]
[]
[null,"(b)  SUBTOTAL - PREFERRED STOCKS",null,{"$f":"SUM(D117:D125)","v":0},null,{"$f":"IF(SUM(F117:F125)>=0,SUM(F117:F125),0)","v":0},null,null,{"$f":"IF(SUM(I117:I125)>=0,SUM(I117:I125),0)","v":0}]
[]
[null,"(c)  Other Equity Investments"]
[]
[null,"Real Estate"]
[null,"Company-Occupied Less Encumbrances","Form 1EBS, Line (7a)",{"$f":"'Form 1EBS'!F48","v":0},{"$f":"+'Equity Investments (Prior)'!E34","v":0.1},{"$f":"IF(D132<0,0,D132*E132)","v":0},null,null,{"$f":"MAX(0,IF(H132=\"\",E132*D132,D132*H132))","v":0}]
[null,"Investments Less Encumbrances","Form 1EBS, Line (7b)",{"$f":"'Form 1EBS'!F49","v":0},{"$f":"+'Equity Investments (Prior)'!E35","v":0.2},{"$f":"IF(D133<0,0,D133*E133)","v":0},null,null,{"$f":"MAX(0,IF(H133=\"\",E133*D133,D133*H133))","v":0}]
[]
[null,"Other Equity Investments","Form 1EBS, Lines (2e), (3e) & Sch IIA EBS, Line 21, Column (7)",{"$f":"'Form 1EBS'!F19+'Form 1EBS'!F29+'Schedule IIA (EBS)'!P44","v":0},{"$f":"+'Equity Investments (Prior)'!E37","v":0.2},{"$f":"IF(D135<0,0,D135*E135)","v":0},null,null,{"$f":"MAX(0,IF(H135=\"\",E135*D135,D135*H135))","v":0}]
[null,"Other Tangible Assets - Net of Segregated Accounts Companies","Form 1EBS, Lines (13k), (14d), and (36f) Less Form 1EBS, and Lines (13d) and 13(h)",{"$f":"'Form 1EBS'!F82+'Form 1EBS'!F88+'Form 1EBS'!F148-'Form 1EBS'!F75-'Form 1EBS'!F79","v":0},{"$f":"+'Equity Investments (Prior)'!E38","v":0.2},{"$f":"IF(D136<0,0,D136*E136)","v":0},null,null,{"$f":"MAX(0,IF(H136=\"\",E136*D136,D136*H136))","v":0}]
[]
[null,"(c)  SUBTOTAL - OTHER EQUITY INVESTMENTS",null,{"$f":"SUM(D132:D136)","v":0},null,{"$f":"IF(SUM(F132:F136)>=0,SUM(F132:F136),0)","v":0},null,null,{"$f":"IF(SUM(I132:I136)>=0,SUM(I132:I136),0)","v":0}]
[]
[null,"(d)  Investments in Affiliates"]
[]
[null,"Unregulated Entities That Conduct Ancillary Services","Form 1EBS, Line (4a)",{"$f":"'Form 1EBS'!F33","v":0},{"$f":"+'Equity Investments (Prior)'!E44","v":0.05},{"$f":"IF(D142<0,0,D142*E142)","v":0},null,null,{"$f":"MAX(0,IF(H142=\"\",E142*D142,D142*H142))","v":0}]
[null,"Unregulated Non-Financial Operating Entities","Form 1EBS, Line (4b)",{"$f":"'Form 1EBS'!F34","v":0},{"$f":"+'Equity Investments (Prior)'!E45","v":0.2},{"$f":"IF(D143<0,0,D143*E143)","v":0},null,null,{"$f":"MAX(0,IF(H143=\"\",E143*D143,D143*H143))","v":0}]
[null,"Unregulated Financial Operating Entities","Form 1EBS, Line (4c)",{"$f":"'Form 1EBS'!F35","v":0},{"$f":"+'Equity Investments (Prior)'!E46","v":0.55000000000000004},{"$f":"IF(D144<0,0,D144*E144)","v":0},null,null,{"$f":"MAX(0,IF(H144=\"\",E144*D144,D144*H144))","v":0}]
[null,"Regulated Insurance Financial Operating Entities","Form 1EBS, Line (4e)",{"$f":"'Form 1EBS'!F37","v":0},{"$f":"+'Equity Investments (Prior)'!E47","v":0.2},{"$f":"IF(D145<0,0,D145*E145)","v":0},null,null,{"$f":"MAX(0,IF(H145=\"\",E145*D145,D145*H145))","v":0}]
[]
[null,"(d)  SUBTOTAL - INVESTMENTS IN AFFILIATES",null,{"$f":"SUM(D142:D145)","v":0},null,{"$f":"IF(SUM(F142:F145)>=0,SUM(F142:F145),0)","v":0},null,null,{"$f":"IF(SUM(I142:I145)>=0,SUM(I142:I145),0)","v":0}]
[]
[null,"(e)  TOTAL EQUITY INVESTMENTS [ (a) + (b) + (c) + (d) ]",null,{"$f":"D113+D127+D138+D147","v":0},null,{"$f":"IF(SUM(F113,F127,F138,F147)>=0,SUM(F113,F127,F138,F147),0)","v":0},null,null,{"$f":"IF(SUM(I113,I127,I138,I147)>=0,SUM(I113,I127,I138,I147),0)","v":0}]
[]
[null,null,null,null,"STANDARD","STANDARD",null,"USER","USER"]
[null,null,null,null,"CAPITAL","REQUIRED",null,"CAPITAL","REQUIRED"]
[null,"CURRENCY RISK","ASSETS","LIABILITIES","FACTOR","CAPITAL",null,"FACTOR","CAPITAL"]
[]
[null,"US Dollar",{"$f":"IF('Currency Risk (old)'!D9=0,'Currency Risk (old)'!C9,'Currency Risk (old)'!D9)","v":0},{"$f":"IF('Currency Risk (old)'!D9=0,'Currency Risk (old)'!E9,'Currency Risk (old)'!F9)","v":0},{"$f":"'Currency Risk (old)'!H9","v":0},{"$f":"'Currency Risk (old)'!I9","v":0},null,null,{"$f":"IF(H155=\"\",F155,H155*ABS(D155-C155))","v":0}]
[null,"Euro",{"$f":"IF('Currency Risk (old)'!D10=0,'Currency Risk (old)'!C10,'Currency Risk (old)'!D10)","v":0},{"$f":"IF('Currency Risk (old)'!D10=0,'Currency Risk (old)'!E10,'Currency Risk (old)'!F10)","v":0},{"$f":"'Currency Risk (old)'!H10","v":0.25},{"$f":"'Currency Risk (old)'!I10","v":0},null,null,{"$f":"IF(H156=\"\",F156,H156*ABS(D156-C156))","v":0}]
[null,"GBP",{"$f":"IF('Currency Risk (old)'!D11=0,'Currency Risk (old)'!C11,'Currency Risk (old)'!D11)","v":0},{"$f":"IF('Currency Risk (old)'!D11=0,'Currency Risk (old)'!E11,'Currency Risk (old)'!F11)","v":0},{"$f":"'Currency Risk (old)'!H11","v":0.25},{"$f":"'Currency Risk (old)'!I11","v":0},null,null,0]
[null,"CAD$",{"$f":"IF('Currency Risk (old)'!D12=0,'Currency Risk (old)'!C12,'Currency Risk (old)'!D12)","v":0},{"$f":"IF('Currency Risk (old)'!D12=0,'Currency Risk (old)'!E12,'Currency Risk (old)'!F12)","v":0},{"$f":"'Currency Risk (old)'!H12","v":0.25},{"$f":"'Currency Risk (old)'!I12","v":0},null,null,0]
[null,"YEN",{"$f":"IF('Currency Risk (old)'!D13=0,'Currency Risk (old)'!C13,'Currency Risk (old)'!D13)","v":0},{"$f":"IF('Currency Risk (old)'!D13=0,'Currency Risk (old)'!E13,'Currency Risk (old)'!F13)","v":0},{"$f":"'Currency Risk (old)'!H13","v":0.25},{"$f":"'Currency Risk (old)'!I13","v":0},null,null,0]
[null,"Other currency 1",{"$f":"IF('Currency Risk (old)'!D14=0,'Currency Risk (old)'!C14,'Currency Risk (old)'!D14)","v":0},{"$f":"IF('Currency Risk (old)'!D14=0,'Currency Risk (old)'!E14,'Currency Risk (old)'!F14)","v":0},{"$f":"'Currency Risk (old)'!H14","v":0.25},{"$f":"'Currency Risk (old)'!I14","v":0},null,null,0]
[null,"Other currency 2",{"$f":"IF('Currency Risk (old)'!D15=0,'Currency Risk (old)'!C15,'Currency Risk (old)'!D15)","v":0},{"$f":"IF('Currency Risk (old)'!D15=0,'Currency Risk (old)'!E15,'Currency Risk (old)'!F15)","v":0},{"$f":"'Currency Risk (old)'!H15","v":0.25},{"$f":"'Currency Risk (old)'!I15","v":0},null,null,0]
[null,"Other currency 3",{"$f":"IF('Currency Risk (old)'!D16=0,'Currency Risk (old)'!C16,'Currency Risk (old)'!D16)","v":0},{"$f":"IF('Currency Risk (old)'!D16=0,'Currency Risk (old)'!E16,'Currency Risk (old)'!F16)","v":0},{"$f":"'Currency Risk (old)'!H16","v":0.25},{"$f":"'Currency Risk (old)'!I16","v":0},null,null,0]
[null,"Other currency 4",{"$f":"IF('Currency Risk (old)'!D17=0,'Currency Risk (old)'!C17,'Currency Risk (old)'!D17)","v":0},{"$f":"IF('Currency Risk (old)'!D17=0,'Currency Risk (old)'!E17,'Currency Risk (old)'!F17)","v":0},{"$f":"'Currency Risk (old)'!H17","v":0.25},{"$f":"'Currency Risk (old)'!I17","v":0},null,null,0]
[null,"Other currency 5",{"$f":"IF('Currency Risk (old)'!D18=0,'Currency Risk (old)'!C18,'Currency Risk (old)'!D18)","v":0},{"$f":"IF('Currency Risk (old)'!D18=0,'Currency Risk (old)'!E18,'Currency Risk (old)'!F18)","v":0},{"$f":"'Currency Risk (old)'!H18","v":0.25},{"$f":"'Currency Risk (old)'!I18","v":0},null,null,0]
[null,"Other currency 6",{"$f":"IF('Currency Risk (old)'!D19=0,'Currency Risk (old)'!C19,'Currency Risk (old)'!D19)","v":0},{"$f":"IF('Currency Risk (old)'!D19=0,'Currency Risk (old)'!E19,'Currency Risk (old)'!F19)","v":0},{"$f":"'Currency Risk (old)'!H19","v":0.25},{"$f":"'Currency Risk (old)'!I19","v":0},null,null,0]
[null,"Other currency 7",{"$f":"IF('Currency Risk (old)'!D20=0,'Currency Risk (old)'!C20,'Currency Risk (old)'!D20)","v":0},{"$f":"IF('Currency Risk (old)'!D20=0,'Currency Risk (old)'!E20,'Currency Risk (old)'!F20)","v":0},{"$f":"'Currency Risk (old)'!H20","v":0.25},{"$f":"'Currency Risk (old)'!I20","v":0},null,null,0]
[null,"Other currency 8",{"$f":"IF('Currency Risk (old)'!D21=0,'Currency Risk (old)'!C21,'Currency Risk (old)'!D21)","v":0},{"$f":"IF('Currency Risk (old)'!D21=0,'Currency Risk (old)'!E21,'Currency Risk (old)'!F21)","v":0},{"$f":"'Currency Risk (old)'!H21","v":0.25},{"$f":"'Currency Risk (old)'!I21","v":0},null,null,0]
[null,"Other currency 9",{"$f":"IF('Currency Risk (old)'!D22=0,'Currency Risk (old)'!C22,'Currency Risk (old)'!D22)","v":0},{"$f":"IF('Currency Risk (old)'!D22=0,'Currency Risk (old)'!E22,'Currency Risk (old)'!F22)","v":0},{"$f":"'Currency Risk (old)'!H22","v":0.25},{"$f":"'Currency Risk (old)'!I22","v":0},null,null,0]
[null,"Other currency 10",{"$f":"IF('Currency Risk (old)'!D23=0,'Currency Risk (old)'!C23,'Currency Risk (old)'!D23)","v":0},{"$f":"IF('Currency Risk (old)'!D23=0,'Currency Risk (old)'!E23,'Currency Risk (old)'!F23)","v":0},{"$f":"'Currency Risk (old)'!H23","v":0.25},{"$f":"'Currency Risk (old)'!I23","v":0},null,null,0]
[null,"Total Identified",{"$f":"SUM(C155:C169)","v":0},{"$f":"SUM(D155:D169)","v":0}]
[null,"Total",{"$f":"'Form 1EBS'!F90","v":0},{"$f":"'Form 1EBS'!F163","v":0}]
[null,"% Identified",{"$f":"IF(C170=0,0,C170/C171)","v":0},{"$f":"IF(D170=0,0,D170/D171)","v":0}]
[]
[null,"TOTAL CURRENCY RISK",{"$f":"SUM(C155:C169)","v":0},{"$f":"SUM(D155:D169)","v":0},null,{"$f":"IF(SUM(F155:F172)>=0,SUM(F155:F172),0)","v":0},null,null,{"$f":"IF(SUM(I155:I172)>=0,SUM(I155:I172),0)","v":0}]
[]
[null,"CONCENTRATION RISK",null,null,"STANDARD","STANDARD",null,"USER","USER"]
[null,null,null,"EXPOSURE","CAPITAL","REQUIRED",null,"CAPITAL","REQUIRED"]
[null,"ASSET TYPE","STATEMENT SOURCE","VALUE","FACTOR","CAPITAL",null,"FACTOR","CAPITAL"]
[]
[null,"(a) Cash and Cash Equivalents"]
[null,"BSCR Rating 0","Schedule XXI, Column H",{"$f":"+'Concentration Risk (Old)'!D10","v":0},{"$f":"+'Fixed Income Investments (Prior'!E83","v":0},{"$f":"IF(D181<0,0,D181*E181)","v":0},null,null,{"$f":"MAX(0,IF(H181=\"\",E181*D181,D181*H181))","v":0}]
[null,"BSCR Rating 1","Schedule XXI, Column H",{"$f":"+'Concentration Risk (Old)'!D11","v":0},{"$f":"+'Fixed Income Investments (Prior'!E84","v":1E-3},{"$f":"IF(D182<0,0,D182*E182)","v":0},null,null,{"$f":"MAX(0,IF(H182=\"\",E182*D182,D182*H182))","v":0}]
[null,"BSCR Rating 2","Schedule XXI, Column H",{"$f":"+'Concentration Risk (Old)'!D12","v":0},{"$f":"+'Fixed Income Investments (Prior'!E85","v":2E-3},{"$f":"IF(D183<0,0,D183*E183)","v":0},null,null,{"$f":"MAX(0,IF(H183=\"\",E183*D183,D183*H183))","v":0}]
[null,"BSCR Rating 3","Schedule XXI, Column H",{"$f":"+'Concentration Risk (Old)'!D13","v":0},{"$f":"+'Fixed Income Investments (Prior'!E86","v":3.0000000000000001E-3},0,null,null,0]
[null,"BSCR Rating 4","Schedule XXI, Column H",{"$f":"+'Concentration Risk (Old)'!D14","v":0},{"$f":"+'Fixed Income Investments (Prior'!E87","v":5.0000000000000001E-3},0,null,null,0]
[null,"BSCR Rating 5","Schedule XXI, Column H",{"$f":"+'Concentration Risk (Old)'!D15","v":0},{"$f":"+'Fixed Income Investments (Prior'!E88","v":1.4999999999999999E-2},0,null,null,0]
[null,"BSCR Rating 6","Schedule XXI, Column H",{"$f":"+'Concentration Risk (Old)'!D16","v":0},{"$f":"+'Fixed Income Investments (Prior'!E89","v":0.04},0,null,null,0]
[null,"BSCR Rating 7","Schedule XXI, Column H",{"$f":"+'Concentration Risk (Old)'!D17","v":0},{"$f":"+'Fixed Income Investments (Prior'!E90","v":0.06},0,null,null,0]
[null,"BSCR Rating 8","Schedule XXI, Column H",{"$f":"+'Concentration Risk (Old)'!D18","v":0},{"$f":"+'Fixed Income Investments (Prior'!E91","v":0.09},0,null,null,0]
[]
[null,"(a)  SUBTOTAL - CASH AND CASH EQUIVALENTS",null,{"$f":"SUM(D181:D189)","v":0},null,{"$f":"SUM(F181:F189)","v":0},null,null,{"$f":"SUM(I181:I189)","v":0}]
[]
[null,"(b) Corporate & Sovereign Bonds"]
[null,"BSCR Rating 0","Schedule XXI, Column H",{"$f":"+'Concentration Risk (Old)'!D23","v":0},{"$f":"+E15","v":0},{"$f":"IF(D194<0,0,D194*E194)","v":0},null,null,{"$f":"MAX(0,IF(H194=\"\",E194*D194,D194*H194))","v":0}]
[null,"BSCR Rating 1","Schedule XXI, Column H",{"$f":"+'Concentration Risk (Old)'!D24","v":0},4.0000000000000001E-3,0,null,null,{"$f":"MAX(0,IF(H195=\"\",E195*D195,D195*H195))","v":0}]
[null,"BSCR Rating 2","Schedule XXI, Column H",{"$f":"+'Concentration Risk (Old)'!D25","v":0},8.0000000000000002E-3,0,null,null,{"$f":"MAX(0,IF(H196=\"\",E196*D196,D196*H196))","v":0}]
[null,"BSCR Rating 3","Schedule XXI, Column H",{"$f":"+'Concentration Risk (Old)'!D26","v":0},1.4999999999999999E-2,0,null,null,0]
[null,"BSCR Rating 4","Schedule XXI, Column H",{"$f":"+'Concentration Risk (Old)'!D27","v":0},0.03,0,null,null,0]
[null,"BSCR Rating 5","Schedule XXI, Column H",{"$f":"+'Concentration Risk (Old)'!D28","v":0},0.08,0,null,null,0]
[null,"BSCR Rating 6","Schedule XXI, Column H",{"$f":"+'Concentration Risk (Old)'!D29","v":0},0.15,0,null,null,0]
[null,"BSCR Rating 7","Schedule XXI, Column H",{"$f":"+'Concentration Risk (Old)'!D30","v":0},0.26300000000000001,0,null,null,0]
[null,"BSCR Rating 8","Schedule XXI, Column H",{"$f":"+'Concentration Risk (Old)'!D31","v":0},0.35,0,null,null,0]
[]
[null,"(b)  SUBTOTAL - CORPORATE & SOVEREIGN BONDS",null,{"$f":"SUM(D194:D202)","v":0},null,{"$f":"SUM(F194:F202)","v":0},null,null,{"$f":"SUM(I194:I202)","v":0}]
[]
[null,"(c) Residential Mortage-Backed Securities"]
[null,"BSCR Rating 0","Schedule XXI, Column H",{"$f":"+'Concentration Risk (Old)'!D36","v":0},0,{"$f":"IF(D207<0,0,D207*E207)","v":0},null,null,{"$f":"MAX(0,IF(H207=\"\",E207*D207,D207*H207))","v":0}]
[null,"BSCR Rating 1","Schedule XXI, Column H",{"$f":"+'Concentration Risk (Old)'!D37","v":0},{"$f":"+E30","v":6.0000000000000001E-3},0,null,null,{"$f":"MAX(0,IF(H208=\"\",E208*D208,D208*H208))","v":0}]
[null,"BSCR Rating 2","Schedule XXI, Column H",{"$f":"+'Concentration Risk (Old)'!D38","v":0},1.2E-2,0,null,null,{"$f":"MAX(0,IF(H209=\"\",E209*D209,D209*H209))","v":0}]
[null,"BSCR Rating 3","Schedule XXI, Column H",{"$f":"+'Concentration Risk (Old)'!D39","v":0},0.02,0,null,null,0]
[null,"BSCR Rating 4","Schedule XXI, Column H",{"$f":"+'Concentration Risk (Old)'!D40","v":0},0.04,0,null,null,0]
[null,"BSCR Rating 5","Schedule XXI, Column H",{"$f":"+'Concentration Risk (Old)'!D41","v":0},0.11,0,null,null,0]
[null,"BSCR Rating 6","Schedule XXI, Column H",{"$f":"+'Concentration Risk (Old)'!D42","v":0},0.25,0,null,null,0]
[null,"BSCR Rating 7","Schedule XXI, Column H",{"$f":"+'Concentration Risk (Old)'!D43","v":0},0.35,0,null,null,0]
[null,"BSCR Rating 8","Schedule XXI, Column H",{"$f":"+'Concentration Risk (Old)'!D44","v":0},0.35,0,null,null,0]
[]
[null,"(c)  SUBTOTAL - RESIDENTIAL MORTGAGE-BACKED SECURITIES",null,{"$f":"SUM(D207:D215)","v":0},null,{"$f":"SUM(F207:F215)","v":0},null,null,{"$f":"SUM(I207:I215)","v":0}]
[]
[null,"(d) Commercial Mortgage-Backed Securities / Asset Backed Securities"]
[null,"BSCR Rating 0","Schedule XXI, Column H",{"$f":"+'Concentration Risk (Old)'!D49","v":0},0,{"$f":"IF(D220<0,0,D220*E220)","v":0},null,null,{"$f":"MAX(0,IF(H220=\"\",E220*D220,D220*H220))","v":0}]
[null,"BSCR Rating 1","Schedule XXI, Column H",{"$f":"+'Concentration Risk (Old)'!D50","v":0},{"$f":"+E44","v":5.0000000000000001E-3},0,null,null,{"$f":"MAX(0,IF(H221=\"\",E221*D221,D221*H221))","v":0}]
[null,"BSCR Rating 2","Schedule XXI, Column H",{"$f":"+'Concentration Risk (Old)'!D51","v":0},0.01,0,null,null,{"$f":"MAX(0,IF(H222=\"\",E222*D222,D222*H222))","v":0}]
[null,"BSCR Rating 3","Schedule XXI, Column H",{"$f":"+'Concentration Risk (Old)'!D52","v":0},1.7999999999999999E-2,0,null,null,0]
[null,"BSCR Rating 4","Schedule XXI, Column H",{"$f":"+'Concentration Risk (Old)'!D53","v":0},3.5000000000000003E-2,0,null,null,0]
[null,"BSCR Rating 5","Schedule XXI, Column H",{"$f":"+'Concentration Risk (Old)'!D54","v":0},0.1,0,null,null,0]
[null,"BSCR Rating 6","Schedule XXI, Column H",{"$f":"+'Concentration Risk (Old)'!D55","v":0},0.2,0,null,null,0]
[null,"BSCR Rating 7","Schedule XXI, Column H",{"$f":"+'Concentration Risk (Old)'!D56","v":0},0.3,0,null,null,0]
[null,"BSCR Rating 8","Schedule XXI, Column H",{"$f":"+'Concentration Risk (Old)'!D57","v":0},0.35,0,null,null,0]
[]
[null,"(d)  SUBTOTAL - COMMERCIAL MORTGAGE-BACKED SECURITIES / ASSET-BACKED SECURITIES",null,{"$f":"SUM(D220:D228)","v":0},null,{"$f":"SUM(F220:F228)","v":0},null,null,{"$f":"SUM(I220:I228)","v":0}]
[]
[null,"(e) Bond Mutual Funds"]
[null,"BSCR Rating 0","Schedule XXI, Column H",{"$f":"+'Concentration Risk (Old)'!D62","v":0},{"$f":"+E58","v":0},{"$f":"IF(D233<0,0,D233*E233)","v":0},null,null,{"$f":"MAX(0,IF(H233=\"\",E233*D233,D233*H233))","v":0}]
[null,"BSCR Rating 1","Schedule XXI, Column H",{"$f":"+'Concentration Risk (Old)'!D63","v":0},4.0000000000000001E-3,0,null,null,{"$f":"MAX(0,IF(H234=\"\",E234*D234,D234*H234))","v":0}]
[null,"BSCR Rating 2","Schedule XXI, Column H",{"$f":"+'Concentration Risk (Old)'!D64","v":0},8.0000000000000002E-3,0,null,null,{"$f":"MAX(0,IF(H235=\"\",E235*D235,D235*H235))","v":0}]
[null,"BSCR Rating 3","Schedule XXI, Column H",{"$f":"+'Concentration Risk (Old)'!D65","v":0},1.4999999999999999E-2,0,null,null,0]
[null,"BSCR Rating 4","Schedule XXI, Column H",{"$f":"+'Concentration Risk (Old)'!D66","v":0},0.03,0,null,null,0]
[null,"BSCR Rating 5","Schedule XXI, Column H",{"$f":"+'Concentration Risk (Old)'!D67","v":0},0.08,0,null,null,0]
[null,"BSCR Rating 6","Schedule XXI, Column H",{"$f":"+'Concentration Risk (Old)'!D68","v":0},0.15,0,null,null,0]
[null,"BSCR Rating 7","Schedule XXI, Column H",{"$f":"+'Concentration Risk (Old)'!D69","v":0},0.26300000000000001,0,null,null,0]
[null,"BSCR Rating 8","Schedule XXI, Column H",{"$f":"+'Concentration Risk (Old)'!D70","v":0},0.35,0,null,null,0]
[]
[null,"(e)  SUBTOTAL - BOND MUTUAL FUNDS",null,{"$f":"SUM(D233:D241)","v":0},null,{"$f":"SUM(F233:F241)","v":0},null,null,{"$f":"SUM(I233:I241)","v":0}]
[]
[null,"(f) Preferred Shares"]
[null,"BSCR Rating 0","Schedule XXI, Column H",{"$f":"+'Concentration Risk (Old)'!D75","v":0},{"$f":"+'Concentration Risk (Old)'!E75","v":0},{"$f":"IF(D246<0,0,D246*E246)","v":0},null,null,{"$f":"MAX(0,IF(H246=\"\",E246*D246,D246*H246))","v":0}]
[null,"BSCR Rating 1","Schedule XXI, Column H",{"$f":"+'Concentration Risk (Old)'!D76","v":0},{"$f":"+'Concentration Risk (Old)'!E76","v":6.0000000000000001E-3},{"$f":"IF(D247<0,0,D247*E247)","v":0},null,null,{"$f":"MAX(0,IF(H247=\"\",E247*D247,D247*H247))","v":0}]
[null,"BSCR Rating 2","Schedule XXI, Column H",{"$f":"+'Concentration Risk (Old)'!D77","v":0},{"$f":"+'Concentration Risk (Old)'!E77","v":1.2E-2},0,null,null,0]
[null,"BSCR Rating 3","Schedule XXI, Column H",{"$f":"+'Concentration Risk (Old)'!D78","v":0},{"$f":"+'Concentration Risk (Old)'!E78","v":0.02},0,null,null,0]
[null,"BSCR Rating 4","Schedule XXI, Column H",{"$f":"+'Concentration Risk (Old)'!D79","v":0},{"$f":"+'Concentration Risk (Old)'!E79","v":0.04},0,null,null,0]
[null,"BSCR Rating 5","Schedule XXI, Column H",{"$f":"+'Concentration Risk (Old)'!D80","v":0},{"$f":"+'Concentration Risk (Old)'!E80","v":0.11},0,null,null,0]
[null,"BSCR Rating 6","Schedule XXI, Column H",{"$f":"+'Concentration Risk (Old)'!D81","v":0},{"$f":"+'Concentration Risk (Old)'!E81","v":0.25},0,null,null,0]
[null,"BSCR Rating 7","Schedule XXI, Column H",{"$f":"+'Concentration Risk (Old)'!D82","v":0},{"$f":"+'Concentration Risk (Old)'!E82","v":0.35},0,null,null,0]
[null,"BSCR Rating 8","Schedule XXI, Column H",{"$f":"+'Concentration Risk (Old)'!D83","v":0},{"$f":"+'Concentration Risk (Old)'!E83","v":0.35},0,null,null,0]
[]
[null,"(f)  SUBTOTAL - PREFERRED SHARES",null,{"$f":"SUM(D246:D254)","v":0},null,{"$f":"SUM(F246:F254)","v":0},null,null,{"$f":"SUM(I246:I254)","v":0}]
[]
[null,"(g) Mortgage Loans"]
[null,"Insured/Guaranteed Mortgages","Schedule XXI, Column H",{"$f":"+'Concentration Risk (Old)'!D88","v":0},{"$f":"+'Concentration Risk (Old)'!E88","v":3.0000000000000001E-3},{"$f":"IF(D259<0,0,D259*E259)","v":0},null,null,{"$f":"MAX(0,IF(H259=\"\",E259*D259,D259*H259))","v":0}]
[null,"Other Commercial and Farm Mortgages","Schedule XXI, Column H",{"$f":"+'Concentration Risk (Old)'!D89","v":0},{"$f":"+'Concentration Risk (Old)'!E89","v":0.05},{"$f":"IF(D260<0,0,D260*E260)","v":0},null,null,{"$f":"MAX(0,IF(H260=\"\",E260*D260,D260*H260))","v":0}]
[null,"Other Residential Mortgages","Schedule XXI, Column H",{"$f":"+'Concentration Risk (Old)'!D90","v":0},{"$f":"+'Concentration Risk (Old)'!E90","v":1.4999999999999999E-2},{"$f":"IF(D261<0,0,D261*E261)","v":0},null,null,{"$f":"MAX(0,IF(H261=\"\",E261*D261,D261*H261))","v":0}]
[null,"Mortgages Not In Good Standing","Schedule XXI, Column H",{"$f":"+'Concentration Risk (Old)'!D91","v":0},{"$f":"+'Concentration Risk (Old)'!E91","v":0.25},{"$f":"IF(D262<0,0,D262*E262)","v":0},null,null,{"$f":"MAX(0,IF(H262=\"\",E262*D262,D262*H262))","v":0}]
[]
[null,"(g)  SUBTOTAL - Mortgage Loans",null,{"$f":"SUM(D258:D262)","v":0},null,{"$f":"SUM(F258:F262)","v":0},null,null,{"$f":"SUM(I258:I262)","v":0}]
[]
[null,"(h) Other Asset Classes"]
[null,"Common Stock and Mutual Funds","Schedule XXI, Column H",{"$f":"+'Concentration Risk (Old)'!D96","v":0},{"$f":"+'Concentration Risk (Old)'!E96","v":0.14399999999999999},{"$f":"IF(D267<0,0,D267*E267)","v":0},null,null,{"$f":"MAX(0,IF(H267=\"\",E267*D267,D267*H267))","v":0}]
[null,"Other Investments","Schedule XXI, Column H",{"$f":"+'Concentration Risk (Old)'!D97","v":0},{"$f":"+'Concentration Risk (Old)'!E97","v":0.2},0,null,null,0]
[null,"Investment in Affiliates – Unregulated entities that conduct ancillary services",null,{"$f":"+'Concentration Risk (Old)'!D98","v":0},{"$f":"+'Concentration Risk (Old)'!E98","v":0.05},0,null,null,0]
[null,"Investment in Affiliates - Unregulated non-financial operating entities",null,{"$f":"+'Concentration Risk (Old)'!D99","v":0},{"$f":"+'Concentration Risk (Old)'!E99","v":0.2},0,null,null,0]
[null,"Investment in Affiliates - Unregulated financial operating entities",null,{"$f":"+'Concentration Risk (Old)'!D100","v":0},{"$f":"+'Concentration Risk (Old)'!E100","v":0.55000000000000004},0,null,null,0]
[null,"Investment in Affiliates - Regulated non-insurance financial operating entities",null,{"$f":"+'Concentration Risk (Old)'!D101","v":0},{"$f":"+'Concentration Risk (Old)'!E101","v":0.55000000000000004},0,null,null,0]
[null,"Investment in Affiliates - Regulated insurance financial operating entities",null,{"$f":"+'Concentration Risk (Old)'!D102","v":0},{"$f":"+'Concentration Risk (Old)'!E102","v":0.2},0,null,null,0]
[null,"Advances to Affiliates - ","Schedule XXI, Column H",{"$f":"+'Concentration Risk (Old)'!D103","v":0},{"$f":"+'Concentration Risk (Old)'!E103","v":0.05},0,null,null,0]
[null,"Policy Loans","Schedule XXI, Column H",{"$f":"+'Concentration Risk (Old)'!D104","v":0},{"$f":"+'Concentration Risk (Old)'!E104","v":0},0,null,null,0]
[null,"Real Estate: Occupied by company","Schedule XXI, Column H",{"$f":"+'Concentration Risk (Old)'!D105","v":0},{"$f":"+'Concentration Risk (Old)'!E105","v":0.1},0,null,null,0]
[null,"Real Estate: Other properties","Schedule XXI, Column H",{"$f":"+'Concentration Risk (Old)'!D106","v":0},{"$f":"+'Concentration Risk (Old)'!E106","v":0.2},0,null,null,0]
[null,"Collateral Loans","Schedule XXI, Column H",{"$f":"+'Concentration Risk (Old)'!D107","v":0},{"$f":"+'Concentration Risk (Old)'!E107","v":0.05},0,null,null,0]
[]
[null,"(h)  SUBTOTAL - OTHER ASSET CLASSES",null,{"$f":"SUM(D267:D279)","v":0},null,{"$f":"SUM(F267:F279)","v":0},null,null,{"$f":"SUM(I267:I279)","v":0}]
[]
[null,"TOTAL CONCENTRATION RISK",null,{"$f":"D191+D204+D217+D230+D243+D256+D264+D280","v":0},null,{"$f":"F191+F204+F217+F230+F243+F256+F264+F280","v":0},null,null,{"$f":"I191+I204+I217+I230+I243+I256+I264+I280","v":0}]
[]
[null,null,null,null,"STANDARD","STANDARD",null,"USER","USER"]
[null,"TYPE OF ",null,"ASSET","CAPITAL","REQUIRED",null,"CAPITAL","REQUIRED"]
[null,"INTEREST RATE/LIQUIDITY RISK","STATEMENT SOURCE","VALUE","FACTOR","CAPITAL",null,"FACTOR","CAPITAL"]
[]
[null,"Bonds and Debentures ","Sch II EBS & IIA EBS Column (9), Line 10",{"$f":"+'Schedule II (EBS)'!T22+'Schedule IIA (EBS)'!T22","v":0},{"$f":"IF('Company Information'!F11=\"Class 3A\",IF(('Schedule V'!H12-'Schedule V'!H10)>3.5,3.5,MAX(1,'Schedule V'!H10-'Schedule V'!H12,'Schedule V'!H12-'Schedule V'!H10)),IF('Schedule V'!$H$10-'Schedule V'!$H$12>=1,'Schedule V'!$H$10-'Schedule V'!$H$12,IF('Schedule V'!$H$12-'Schedule V'!$H$10>=1,'Schedule V'!$H$12-'Schedule V'!$H$10,1)))*2%","v":0.02},{"$f":"IF(D288<0,0,D288*E288)","v":0},null,null,{"$f":"MAX(0,IF(H288=\"\",E288*D288,D288*H288))","v":0}]
[null,"Preferred Stocks ","Sch II EBS & IIA EBS Column (3), Line 21",{"$f":"+'Schedule II (EBS)'!H44+'Schedule IIA (EBS)'!H44","v":0},{"$f":"IF('Company Information'!F11=\"Class 3A\",IF(('Schedule V'!H12-'Schedule V'!H10)>3.5,3.5,MAX(1,'Schedule V'!H10-'Schedule V'!H12,'Schedule V'!H12-'Schedule V'!H10)),IF('Schedule V'!$H$10-'Schedule V'!$H$12>=1,'Schedule V'!$H$10-'Schedule V'!$H$12,IF('Schedule V'!$H$12-'Schedule V'!$H$10>=1,'Schedule V'!$H$12-'Schedule V'!$H$10,1)))*2%","v":0.02},{"$f":"IF(D289<0,0,D289*E289)","v":0},null,null,{"$f":"MAX(0,IF(H289=\"\",E289*D289,D289*H289))","v":0}]
[null,"Mortgage Loans","Sch II EBS & IIA EBS Column (1), Line 26",{"$f":"+'Schedule II (EBS)'!D62+'Schedule IIA (EBS)'!D62","v":0},{"$f":"IF('Company Information'!F11=\"Class 3A\",IF(('Schedule V'!H12-'Schedule V'!H10)>3.5,3.5,MAX(1,'Schedule V'!H10-'Schedule V'!H12,'Schedule V'!H12-'Schedule V'!H10)),IF('Schedule V'!$H$10-'Schedule V'!$H$12>=1,'Schedule V'!$H$10-'Schedule V'!$H$12,IF('Schedule V'!$H$12-'Schedule V'!$H$10>=1,'Schedule V'!$H$12-'Schedule V'!$H$10,1)))*2%","v":0.02},{"$f":"IF(D290<0,0,D290*E290)","v":0},null,null,{"$f":"MAX(0,IF(H290=\"\",E290*D290,D290*H290))","v":0}]
[]
[null,"TOTAL INTEREST RATE / LIQUIDITY RISK",null,{"$f":"SUM(D288:D290)","v":0},null,{"$f":"IF(SUM(F288:F290)>=0,SUM(F288:F290),0)","v":0},null,null,{"$f":"IF(SUM(I288:I290)>=0,SUM(I288:I290),0)","v":0}]
[]
[null,null,null,"GEO","STANDARD","STANDARD",null,"USER","USER"]
[null,"TYPE OF ",null,"DIVERSIFIED","CAPITAL","REQUIRED",null,"CAPITAL","REQUIRED"]
[null,"PREMIUM RISK","STATEMENT SOURCE","PREMIUMS","FACTOR","CAPITAL",null,"FACTOR","CAPITAL"]
[]
[null,"Property Catastrophe","Schedule IVA, Line (1)",{"$f":"+'Geographic (old)'!H9","v":0},{"$f":"+'Premium Risk (old)'!H11","v":0},{"$f":"IF(D298<0,0,D298*E298)","v":0},null,null,{"$f":"MAX(0,IF(H298=\"\",E298*D298,D298*H298))","v":0}]
[null,"Property","Schedule IVA, Line (2)",{"$f":"+'Geographic (old)'!H10","v":0},{"$f":"+'Premium Risk (old)'!H12","v":0.497450025355053},{"$f":"IF(D299<0,0,D299*E299)","v":0},null,null,0]
[null,"Property Non-Proportional","Schedule IVA, Line (3)",{"$f":"+'Geographic (old)'!H11","v":0},{"$f":"+'Premium Risk (old)'!H13","v":0.51625715924082105},0,null,null,0]
[null,"Personal Accident","Schedule IVA, Line (4)",{"$f":"+'Geographic (old)'!H12","v":0},{"$f":"+'Premium Risk (old)'!H14","v":0.34115345724240698},0,null,null,0]
[null,"Personal Accident Non-Proportional","Schedule IVA, Line (5)",{"$f":"+'Geographic (old)'!H13","v":0},{"$f":"+'Premium Risk (old)'!H15","v":0.41221262895987398},0,null,null,0]
[null,"Aviation","Schedule IVA, Line (6)",{"$f":"+'Geographic (old)'!H14","v":0},{"$f":"+'Premium Risk (old)'!H16","v":0.48178449435856302},0,null,null,0]
[null,"Aviation Non-Proportional","Schedule IVA, Line (7)",{"$f":"+'Geographic (old)'!H15","v":0},{"$f":"+'Premium Risk (old)'!H17","v":0.48201231799963601},0,null,null,0]
[null,"Credit / Surety","Schedule IVA, Line (8)",{"$f":"+'Geographic (old)'!H16","v":0},{"$f":"+'Premium Risk (old)'!H18","v":0.39820522005250802},0,null,null,0]
[null,"Credit / Surety Non-Proportional","Schedule IVA, Line (9)",{"$f":"+'Geographic (old)'!H17","v":0},{"$f":"+'Premium Risk (old)'!H19","v":0.45356665999464701},0,null,null,0]
[null,"Energy Offshore / Marine","Schedule IVA, Line (10)",{"$f":"+'Geographic (old)'!H18","v":0},{"$f":"+'Premium Risk (old)'!H20","v":0.42102344656076801},0,null,null,0]
[null,"Energy Offshore / Marine Non-Proportional","Schedule IVA, Line (11)",{"$f":"+'Geographic (old)'!H19","v":0},{"$f":"+'Premium Risk (old)'!H21","v":0.47016820069929899},0,null,null,0]
[null,"US Casualty","Schedule IVA, Line (12)",{"$f":"+'Geographic (old)'!H20","v":0},{"$f":"+'Premium Risk (old)'!H22","v":0.50272577892886305},0,null,null,0]
[null,"US Casualty Non-Proportional","Schedule IVA, Line (13)",{"$f":"+'Geographic (old)'!H21","v":0},{"$f":"+'Premium Risk (old)'!H23","v":0.555814073452775},0,null,null,0]
[null,"US Professional","Schedule IVA, Line (14)",{"$f":"+'Geographic (old)'!H22","v":0},{"$f":"+'Premium Risk (old)'!H24","v":0.51225206482709496},0,null,null,0]
[null,"US Professional Non-Proportional","Schedule IVA, Line (15)",{"$f":"+'Geographic (old)'!H23","v":0},{"$f":"+'Premium Risk (old)'!H25","v":0.53805556666757803},0,null,null,0]
[null,"US Specialty","Schedule IVA, Line (16)",{"$f":"+'Geographic (old)'!H24","v":0},{"$f":"+'Premium Risk (old)'!H26","v":0.51436147942106603},0,null,null,0]
[null,"US Specialty Non-Proportional","Schedule IVA, Line (17)",{"$f":"+'Geographic (old)'!H25","v":0},{"$f":"+'Premium Risk (old)'!H27","v":0.52697789035313303},0,null,null,0]
[null,"International Motor","Schedule IVA, Line (18)",{"$f":"+'Geographic (old)'!H26","v":0},{"$f":"+'Premium Risk (old)'!H28","v":0.42191756117933499},0,null,null,0]
[null,"International Motor Non-Proportional","Schedule IVA, Line (19)",{"$f":"+'Geographic (old)'!H27","v":0},{"$f":"+'Premium Risk (old)'!H29","v":0.482210885429324},0,null,null,0]
[null,"International Casualty Non-Motor","Schedule IVA, Line (20)",{"$f":"+'Geographic (old)'!H28","v":0},{"$f":"+'Premium Risk (old)'!H30","v":0.50012106835589698},0,null,null,0]
[null,"International Casualty Non-Motor Non-Proportional","Schedule IVA, Line (21)",{"$f":"+'Geographic (old)'!H29","v":0},{"$f":"+'Premium Risk (old)'!H31","v":0.53551360019381999},0,null,null,0]
[null,"Retro Property","Schedule IVA, Line (22)",{"$f":"+'Geographic (old)'!H30","v":0},{"$f":"+'Premium Risk (old)'!H32","v":0.508030898436173},0,null,null,0]
[null,"Structured / Finite Reinsurance","Schedule IVA, Line (23)",{"$f":"+'Geographic (old)'!H31","v":0},{"$f":"+'Premium Risk (old)'!H33","v":0.27200000000000002},0,null,null,0]
[null,"Health","Schedule IVA, Line (24)",{"$f":"+'Geographic (old)'!H32","v":0},{"$f":"+'Premium Risk (old)'!H34","v":0.15},0,null,null,0]
[]
[null,"(a)  TOTAL",null,{"$f":"SUM(D298:D321)","v":0},null,{"$f":"SUM(F298:F322)","v":0},null,null,{"$f":"SUM(I298:I321)","v":0}]
[]
[null,"(b)  CONCENTRATION ADJUSTMENT CALCULATION"]
[]
[null,"(i)","Maximum Premium [ Maximum (1a) excl Prop CAT ]",null,null,{"$f":"MAX(D299:D321)","v":0},null,null,{"$f":"MAX(D299:D321)","v":0}]
[null,"(ii)","Total Premium [ Total (1a) excl Prop CAT ]",null,null,{"$f":"D323-D298","v":0},null,null,{"$f":"D323-D298","v":0}]
[null,"(iii)","Maximum Premium / Total Premium [ (i) / (ii) ]",null,null,{"$f":"IF(F328=0,0,F327/F328)","v":0},null,null,{"$f":"IF(I328=0,0,I327/I328)","v":0}]
[null,"(iv)","Maximum Adjustment",null,null,{"$f":"+F409","v":0.4},null,null,{"$f":"+I409","v":0.4}]
[null,"(v)","[ (iii) x (iv) ]",null,null,{"$f":"F329*F330","v":0},null,null,{"$f":"I329*I330","v":0}]
[null,"(vi)","Minimum Adjustment Factor",null,null,{"$f":"1-F330","v":0.6},null,null,{"$f":"1-I330","v":0.6}]
[]
[null,"(b)  CONCENTRATION ADJUSTMENT FACTOR [ (v) + (vi) ]",null,null,null,{"$f":"F331+F332","v":0.6},null,null,{"$f":"I331+I332","v":0.6}]
[]
[null,"(c)  REQUIRED CAPITAL CHARGE  [ TOTAL (a) x (b) ]",null,null,null,{"$f":"IF(F323=0,0,F323*F334)","v":0},null,null,{"$f":"IF(I323=0,0,I323*I334)","v":0}]
[]
[null,"(c)  CATASTROPHE PREMIUM ADJUSTMENT CALCULATION"]
[]
[null,"(i)","Average Annual Loss (AAL) Excluding Property Catastrophe",null,null,{"$f":"+F485","v":0},null,null,{"$f":"+I485","v":0}]
[null,"(ii)","Industry Catastrophe Loss Ratio",null,null,{"$f":"+F487","v":0.4},null,null,{"$f":"+F341","v":0.4}]
[null,"(iii)","Avg Capital Factor  [ Total (3c) / (Total (1a) excl Prop CAT) ]",null,null,{"$f":"IF(F328=0,0,F336/F328)","v":0},null,null,{"$f":"IF(I328=0,0,I336/I328)","v":0}]
[]
[null,"(c)  CATASTROPHE PREMIUM ADJUSTMENT  [ (i) / (ii) x (iii) ]",null,null,null,{"$f":"F340/F341*F342","v":0},null,null,{"$f":"IF(I341=0,0,I340/I341*I342)","v":0}]
[]
[null,"(d)  TOTAL PREMIUM RISK (AFTER CAT PREMIUM ADJUSTMENT)   [ (b) - (c) ]",null,null,null,{"$f":"IF(F336-F344>=0,F336-F344,0)","v":0},null,null,{"$f":"IF(I336-I344>=0,I336-I344,0)","v":0}]
[]
[null,"(b)  CONCENTRATION ADJUSTMENT CALCULATION"]
[]
[null,"(i)","Total Premium [ Total (1a) excl Prop CAT ]",null,null,{"$f":"'CSP (old)'!D323-'CSP (old)'!D298","v":0},null,null,{"$f":"'CSP (old)'!D323-'CSP (old)'!D298","v":0}]
[null,"(ii)","Concentration Adjustment (HHI Calculation)",null,null,{"$f":"IF(F350=0,0,('CSP (old)'!D299/F350)^2+('CSP (old)'!D300/F350)^2+('CSP (old)'!D301/F350)^2+('CSP (old)'!D302/F350)^2+('CSP (old)'!D303/F350)^2+('CSP (old)'!D304/F350)^2+('CSP (old)'!D305/F350)^2+('CSP (old)'!D306/F350)^2+('CSP (old)'!D307/F350)^2+('CSP (old)'!D308/F350)^2+('CSP (old)'!D309/F350)^2+('CSP (old)'!D310/F350)^2+('CSP (old)'!D311/F350)^2+('CSP (old)'!D312/F350)^2+('CSP (old)'!D313/F350)^2+('CSP (old)'!D314/F350)^2+('CSP (old)'!D315/F350)^2+('CSP (old)'!D316/F350)^2+('CSP (old)'!D317/F350)^2+('CSP (old)'!D318/F350)^2+('CSP (old)'!D319/F350)^2+('CSP (old)'!D320/F350)^2+('CSP (old)'!D321/F350)^2)","v":0},null,null,{"$f":"IF(I350=0,0,('CSP (old)'!D299/I350)^2+('CSP (old)'!D300/I350)^2+('CSP (old)'!D301/I350)^2+('CSP (old)'!D302/I350)^2+('CSP (old)'!D303/I350)^2+('CSP (old)'!D304/I350)^2+('CSP (old)'!D305/I350)^2+('CSP (old)'!D306/I350)^2+('CSP (old)'!D307/I350)^2+('CSP (old)'!D308/I350)^2+('CSP (old)'!D309/I350)^2+('CSP (old)'!D310/I350)^2+('CSP (old)'!D311/I350)^2+('CSP (old)'!D312/I350)^2+('CSP (old)'!D313/I350)^2+('CSP (old)'!D314/I350)^2+('CSP (old)'!D315/I350)^2+('CSP (old)'!D316/I350)^2+('CSP (old)'!D317/I350)^2+('CSP (old)'!D318/I350)^2+('CSP (old)'!D319/I350)^2+('CSP (old)'!D320/I350)^2+('CSP (old)'!D321/I350)^2)","v":0}]
[null,"(iii)","Maximum Adjustment",null,null,0.4,null,null,{"$f":"+F352","v":0.4}]
[null,"(iv)"," [ (ii) x (iii) ]",null,null,{"$f":"F351*F352","v":0},null,null,{"$f":"I351*I352","v":0}]
[null,"(v)","Minimum Adjustment Factor",null,null,{"$f":"1-F352","v":0.6},null,null,{"$f":"1-I352","v":0.6}]
[]
[null,"(b)(i) CONCENTRATION ADJUSTMENT FACTOR (formula 1) [(iv) + (v)]",null,null,null,{"$f":"F353+F354","v":0.6},null,null,{"$f":"I353+I354","v":0.6}]
[]
[null,"(i)","Concentration Adjustment (up to 95%)",null,null,{"$f":"'Schedule IX(b)'!H51/900*95%","v":0},null,null,{"$f":"'Schedule IX(b)'!H51/900*95%","v":0}]
[null,"(ii)","Related Business % (up to 5%)",null,null,{"$f":"'Schedule IX(b)'!H55*5%","v":0},null,null,{"$f":"'Schedule IX(b)'!H55*5%","v":0}]
[null,"(iii)"," [ (i) + (ii) ]",null,null,{"$f":"SUM(F358:F359)","v":0},null,null,{"$f":"SUM(I358:I359)","v":0}]
[null,"(iv)","Maximum Adjustment",null,null,0.4,null,null,0.4]
[]
[null,"(b)(ii) CONCENTRATION ADJUSTMENT FACTOR (formula 2) [(iii) x (iv)]",null,null,null,{"$f":"F360*F361","v":0},null,null,{"$f":"I360*I361","v":0}]
[]
[null,"(c) CONCENTRATION ADJUSTMENT FACTOR [(b)(i)-(b)(ii)]",null,null,null,{"$f":"F356-F363","v":0.6},null,null,{"$f":"I356-I363","v":0.6}]
[]
[null,"(d) TOTAL PREMIUM RISK [(a) x (c)]",null,null,null,{"$f":"IF(F365*'CSP (old)'!F323>=0,F365*'CSP (old)'!F323,0)","v":0},null,null,{"$f":"IF(I365*'CSP (old)'!I323>=0,I365*'CSP (old)'!I323,0)","v":0}]
[]
[null,"(d)  TOTAL PREMIUM RISK (AFTER CAT PREMIUM ADJUSTMENT)   [ (b) - (c) ]",null,null,null,{"$f":"IF('Company Information'!$F$11=\"Class 3A\",F367,F346)","v":0},null,null,{"$f":"IF('Company Information'!$F$11=\"Class 3A\",I367,I346)","v":0}]
[]
[null,null,null,null,"STANDARD","STANDARD",null,"USER","USER"]
[null,"TYPE OF ",null,"LIABILITY","CAPITAL","REQUIRED",null,"CAPITAL","REQUIRED"]
[null,"RESERVE RISK","STATEMENT SOURCE","VALUE","FACTOR","CAPITAL",null,"FACTOR","CAPITAL"]
[]
[null,null,null,"(1) ","(2)","(1) x (2)",null,"(3)","(1) x (3)"]
[]
[null,"Property Catastrophe","Sch III EBS, Line (1)",{"$f":"+'Geographic (old)'!H40","v":0},{"$f":"+'Reserve Risk (old)'!G11","v":0.46158858246802098},{"$f":"IF(D377<0,0,D377*E377)","v":0},null,null,{"$f":"MAX(0,IF(H377=\"\",E377*D377,D377*H377))","v":0}]
[null,"Property","Sch III EBS, Line (2)",{"$f":"+'Geographic (old)'!H41","v":0},{"$f":"+'Reserve Risk (old)'!G12","v":0.43844984238218698},{"$f":"IF(D378<0,0,D378*E378)","v":0},null,null,0]
[null,"Property Non-Proportional","Sch III EBS, Line (3)",{"$f":"+'Geographic (old)'!H42","v":0},{"$f":"+'Reserve Risk (old)'!G13","v":0.49735573879029998},0,null,null,0]
[null,"Personal Accident","Sch III EBS, Line (4)",{"$f":"+'Geographic (old)'!H43","v":0},{"$f":"+'Reserve Risk (old)'!G14","v":0.29666070682155399},0,null,null,0]
[null,"Personal Accident Non-Proportional","Sch III EBS, Line (5)",{"$f":"+'Geographic (old)'!H44","v":0},{"$f":"+'Reserve Risk (old)'!G15","v":0.34876523067975901},0,null,null,0]
[null,"Aviation","Sch III EBS, Line (6)",{"$f":"+'Geographic (old)'!H45","v":0},{"$f":"+'Reserve Risk (old)'!G16","v":0.45952604952349801},0,null,null,0]
[null,"Aviation Non-Proportional","Sch III EBS, Line (7)",{"$f":"+'Geographic (old)'!H46","v":0},{"$f":"+'Reserve Risk (old)'!G17","v":0.48255646377949901},0,null,null,0]
[null,"Credit / Surety","Sch III EBS, Line (8)",{"$f":"+'Geographic (old)'!H47","v":0},{"$f":"+'Reserve Risk (old)'!G18","v":0.383682680649994},0,null,null,0]
[null,"Credit / Surety Non-Proportional","Sch III EBS, Line (9)",{"$f":"+'Geographic (old)'!H48","v":0},{"$f":"+'Reserve Risk (old)'!G19","v":0.43464696624596899},0,null,null,0]
[null,"Energy Offshore / Marine","Sch III EBS, Line (10)",{"$f":"+'Geographic (old)'!H49","v":0},{"$f":"+'Reserve Risk (old)'!G20","v":0.39543823911176501},0,null,null,0]
[null,"Energy Offshore / Marine Non-Proportional","Sch III EBS, Line (11)",{"$f":"+'Geographic (old)'!H50","v":0},{"$f":"+'Reserve Risk (old)'!G21","v":0.43945783577556502},0,null,null,0]
[null,"US Casualty","Sch III EBS, Line (12)",{"$f":"+'Geographic (old)'!H51","v":0},{"$f":"+'Reserve Risk (old)'!G22","v":0.43018098459069698},0,null,null,0]
[null,"US Casualty Non-Proportional","Sch III EBS, Line (13)",{"$f":"+'Geographic (old)'!H52","v":0},{"$f":"+'Reserve Risk (old)'!G23","v":0.48842309052279498},0,null,null,0]
[null,"US Professional","Sch III EBS, Line (14)",{"$f":"+'Geographic (old)'!H53","v":0},{"$f":"+'Reserve Risk (old)'!G24","v":0.462752832710698},0,null,null,0]
[null,"US Professional Non-Proportional","Sch III EBS, Line (15)",{"$f":"+'Geographic (old)'!H54","v":0},{"$f":"+'Reserve Risk (old)'!G25","v":0.51484129765284703},0,null,null,0]
[null,"US Specialty","Sch III EBS, Line (16)",{"$f":"+'Geographic (old)'!H55","v":0},{"$f":"+'Reserve Risk (old)'!G26","v":0.46506790223690597},0,null,null,0]
[null,"US Specialty Non-Proportional","Sch III EBS, Line (17)",{"$f":"+'Geographic (old)'!H56","v":0},{"$f":"+'Reserve Risk (old)'!G27","v":0.482760284027479},0,null,null,0]
[null,"International Motor","Sch III EBS, Line (18)",{"$f":"+'Geographic (old)'!H57","v":0},{"$f":"+'Reserve Risk (old)'!G28","v":0.37080464615634001},0,null,null,0]
[null,"International Motor Non-Proportional","Sch III EBS, Line (19)",{"$f":"+'Geographic (old)'!H58","v":0},{"$f":"+'Reserve Risk (old)'!G29","v":0.43541657269369},0,null,null,0]
[null,"International Casualty Non-Motor","Sch III EBS, Line (20)",{"$f":"+'Geographic (old)'!H59","v":0},{"$f":"+'Reserve Risk (old)'!G30","v":0.43652386132510701},0,null,null,0]
[null,"International Casualty Non-Motor Non-Proportional","Sch III EBS, Line (21)",{"$f":"+'Geographic (old)'!H60","v":0},{"$f":"+'Reserve Risk (old)'!G31","v":0.49410327959272199},0,null,null,0]
[null,"Retro Property","Sch III EBS, Line (22)",{"$f":"+'Geographic (old)'!H61","v":0},{"$f":"+'Reserve Risk (old)'!G32","v":0.478452065307162},0,null,null,0]
[null,"Structured / Finite Reinsurance","Sch III EBS, Line (23)",{"$f":"+'Geographic (old)'!H62","v":0},{"$f":"+'Reserve Risk (old)'!G33","v":0.24099999999999999},0,null,null,0]
[null,"Health","Sch III EBS, Line (24)",{"$f":"+'Geographic (old)'!H63","v":0},{"$f":"+'Reserve Risk (old)'!G34","v":0.125},0,null,null,0]
[]
[null,"(a)  TOTAL",null,{"$f":"SUM(D377:D400)","v":0},null,{"$f":"SUM(F377:F401)","v":0},null,null,{"$f":"SUM(I377:I401)","v":0}]
[]
[null,"(b)  CONCENTRATION ADJUSTMENT CALCULATION"]
[]
[null,"(i)","Maximum Reserve [ Maximum (1a) ]",null,null,{"$f":"MAX(D377:D400)","v":0},null,null,{"$f":"MAX(D377:D400)","v":0}]
[null,"(ii)","Total Reserve [ Total (1a) ]",null,null,{"$f":"D402","v":0},null,null,{"$f":"D402","v":0}]
[null,"(iii)","Maximum Reserve / Total Reserve [ (i) / (ii) ]",null,null,{"$f":"IF(F407=0,0,F406/F407)","v":0},null,null,{"$f":"IF(I407=0,0,I406/I407)","v":0}]
[null,"(iv)","Maximum Adjustment",null,null,0.4,null,null,0.4]
[null,"(v)"," [ (iii) x (iv) ]",null,null,{"$f":"F408*F409","v":0},null,null,{"$f":"I408*I409","v":0}]
[null,"(vi)","Minimum Adjustment Factor",null,null,{"$f":"1-F409","v":0.6},null,null,{"$f":"1-I409","v":0.6}]
[]
[null,"(b)  CONCENTRATION ADJUSTMENT FACTOR [ (v) + (vi) ]",null,null,null,{"$f":"F411+F410","v":0.6},null,null,{"$f":"I411+I410","v":0.6}]
[]
[null,"(c)  TOTAL RESERVE RISK  [ Total (a) x (b) ]",null,null,null,{"$f":"IF(F402>=0,F402*F413,0)","v":0},null,null,{"$f":"IF(I402>=0,I402*I413,0)","v":0}]
[]
[null,"(b)  CONCENTRATION ADJUSTMENT CALCULATION"]
[]
[null,"(i)","Total Reserve [ Total (1a) ]",null,null,{"$f":"'CSP (old)'!D402","v":0},null,null,{"$f":"'CSP (old)'!D402","v":0}]
[null,"(ii)","Concentration Adjustment (HHI Calculation)",null,null,{"$f":"IF(F419=0,0,('CSP (old)'!D377/F419)^2+('CSP (old)'!D378/F419)^2+('CSP (old)'!D379/F419)^2+('CSP (old)'!D380/F419)^2+('CSP (old)'!D381/F419)^2+('CSP (old)'!D382/F419)^2+('CSP (old)'!D383/F419)^2+('CSP (old)'!D384/F419)^2+('CSP (old)'!D385/F419)^2+('CSP (old)'!D386/F419)^2+('CSP (old)'!D387/F419)^2+('CSP (old)'!D388/F419)^2+('CSP (old)'!D389/F419)^2+('CSP (old)'!D390/F419)^2+('CSP (old)'!D391/F419)^2+('CSP (old)'!D392/F419)^2+('CSP (old)'!D393/F419)^2+('CSP (old)'!D394/F419)^2+('CSP (old)'!D395/F419)^2+('CSP (old)'!D396/F419)^2+('CSP (old)'!D397/F419)^2+('CSP (old)'!D398/F419)^2+('CSP (old)'!D399/F419)^2+('CSP (old)'!D400/F419)^2)","v":0},null,null,{"$f":"IF(I419=0,0,('CSP (old)'!D377/I419)^2+('CSP (old)'!D378/I419)^2+('CSP (old)'!D379/I419)^2+('CSP (old)'!D380/I419)^2+('CSP (old)'!D381/I419)^2+('CSP (old)'!D382/I419)^2+('CSP (old)'!D383/I419)^2+('CSP (old)'!D384/I419)^2+('CSP (old)'!D385/I419)^2+('CSP (old)'!D386/I419)^2+('CSP (old)'!D387/I419)^2+('CSP (old)'!D388/I419)^2+('CSP (old)'!D389/I419)^2+('CSP (old)'!D390/I419)^2+('CSP (old)'!D391/I419)^2+('CSP (old)'!D392/I419)^2+('CSP (old)'!D393/I419)^2+('CSP (old)'!D394/I419)^2+('CSP (old)'!D395/I419)^2+('CSP (old)'!D396/I419)^2+('CSP (old)'!D397/I419)^2+('CSP (old)'!D398/I419)^2+('CSP (old)'!D399/I419)^2+('CSP (old)'!D400/I419)^2)","v":0}]
[null,"(iii)","Maximum Adjustment",null,null,0.4,null,null,0.4]
[null,"(iv)"," [ (iii) x (iv) ]",null,null,{"$f":"F420*F421","v":0},null,null,{"$f":"I420*I421","v":0}]
[null,"(v)","Minimum Adjustment Factor",null,null,{"$f":"1-F421","v":0.6},null,null,{"$f":"1-I421","v":0.6}]
[]
[null,"(b)(i) CONCENTRATION ADJUSTMENT FACTOR (formula 1) [(iv) + (v)]",null,null,null,{"$f":"F423+F422","v":0.6},null,null,{"$f":"I423+I422","v":0.6}]
[]
[null,"(i)","Concentration Adjustment (up to 95%)",null,null,{"$f":"'Schedule IX(b)'!H51/900*95%","v":0},null,null,{"$f":"'Schedule IX(b)'!H51/900*95%","v":0}]
[null,"(ii)","Related Business % (up to 5%)",null,null,{"$f":"'Schedule IX(b)'!H55*5%","v":0},null,null,{"$f":"'Schedule IX(b)'!H55*5%","v":0}]
[null,"(iii)"," [ (i) + (ii) ]",null,null,{"$f":"SUM(F427:F428)","v":0},null,null,{"$f":"SUM(I427:I428)","v":0}]
[null,"(iv)","Maximum Adjustment",null,null,0.4,null,null,0.4]
[]
[null,"(b)(ii) CONCENTRATION ADJUSTMENT FACTOR (formula 2) [(iii) x (iv)]",null,null,null,{"$f":"F429*F430","v":0},null,null,{"$f":"I429*I430","v":0}]
[]
[null,"(c) CONCENTRATION ADJUSTMENT FACTOR [(b)(i)-(b)(ii)]",null,null,null,{"$f":"F425-F432","v":0.6},null,null,{"$f":"I425-I432","v":0.6}]
[]
[null,"(d) TOTAL RESERVE RISK [(a) x (c)]",null,null,null,{"$f":"IF('CSP (old)'!F402=0,0,'CSP (old)'!F402*F434)","v":0},null,null,{"$f":"IF('CSP (old)'!I402=0,0,'CSP (old)'!I402*I434)","v":0}]
[]
[null,"(d) TOTAL RESERVE RISK [(a) x (c)]",null,null,null,{"$f":"IF('Company Information'!$F$11=\"Class 3A\",F436,F415)","v":0},null,null,{"$f":"IF('Company Information'!$F$11=\"Class 3A\",I436,I415)","v":0}]
[]
[null,null,null,null,"STANDARD","STANDARD",null,"USER","USER"]
[null,"TYPE OF ",null,"ASSET","CAPITAL","REQUIRED",null,"CAPITAL","REQUIRED"]
[null,"CREDIT RISK","STATEMENT SOURCE","VALUE","FACTOR","CAPITAL",null,"FACTOR","CAPITAL"]
[]
[null,"(a)  Accounts and Premiums Receivable",null,"(1) ","(2)","(1) x (2)",null,"(3)","(1) x (3)"]
[]
[null,"In Course of Collection","Form 1EBS, Line (10a)",{"$f":"'Form 1EBS'!F57","v":0},{"$f":"+'Credit Risk (old)'!E11","v":0.05},{"$f":"IF(D446<0,0,D446*E446)","v":0},null,null,{"$f":"MAX(0,IF(H446=\"\",E446*D446,D446*H446))","v":0}]
[null,"Receivables from retrocessional contracts                            Less: Collateralized Balances","Form 1EBS, Line (10c), Notes to Form 1EBS, \nLine (10)",{"$f":"'Form 1EBS'!F58-'Form 1EBS'!F179","v":0},{"$f":"+'Credit Risk (old)'!E12","v":0.1},{"$f":"(D447*E447)","v":0},null,null,{"$f":"IF(H447=\"\",E447*D447,D447*H447)","v":0}]
[]
[null,"(a)  SUBTOTAL - ACCOUNTS AND PREMIUMS RECEIVABLE",null,{"$f":"SUM(D446:D447)","v":0},null,{"$f":"IF(SUM(F446:F447)>=0,SUM(F446:F447),0)","v":0},null,null,{"$f":"IF(SUM(I446:I447)>=0,SUM(I446:I447),0)","v":0}]
[]
[null,"(b)  All Other Receivables"]
[]
[null,"Accrued Investment Income","Form 1EBS, Line (9)",{"$f":"'Form 1EBS'!F54","v":0},{"$f":"+'Credit Risk (old)'!E18","v":2.5000000000000001E-2},{"$f":"IF(D453<0,0,D453*E453)","v":0},null,null,{"$f":"MAX(0,IF(H453=\"\",E453*D453,D453*H453))","v":0}]
[null,"Advances to Affiliates","Form 1EBS, Line (4g)",{"$f":"'Form 1EBS'!F39","v":0},{"$f":"+'Credit Risk (old)'!E19","v":0.05},{"$f":"IF(D454<0,0,D454*E454)","v":0},null,null,{"$f":"MAX(0,IF(H454=\"\",E454*D454,D454*H454))","v":0}]
[]
[null,"(b)  SUBTOTAL - ALL OTHER RECEIVABLES",null,{"$f":"SUM(D453:D454)","v":0},null,{"$f":"IF(SUM(F453:F454)>=0,SUM(F453:F454),0)","v":0},null,null,{"$f":"IF(SUM(I453:I454)>=0,SUM(I453:I454),0)","v":0}]
[]
[null,"(c) Particulars of Reinsurance Balances By BSCR Rating"]
[]
[null,"BSCR Rating 0 (Domestic Affiliates)","Schedule XVIII, Column E",{"$f":"'Schedule XVIII (EBS)'!O87","v":0},{"$f":"+'Credit Risk (old)'!E25","v":0},{"$f":"IF(D460<0,0,D460*E460)","v":0},null,null,{"$f":"MAX(0,IF(H460=\"\",E460*D460,D460*H460))","v":0}]
[null,"BSCR Rating 1","Schedule XVIII, Column E",{"$f":"'Schedule XVIII (EBS)'!O88","v":0},{"$f":"+'Credit Risk (old)'!E26","v":7.0000000000000001E-3},{"$f":"IF(D461<0,0,D461*E461)","v":0},null,null,0]
[null,"BSCR Rating 2","Schedule XVIII, Column E",{"$f":"'Schedule XVIII (EBS)'!O89","v":0},{"$f":"+'Credit Risk (old)'!E27","v":1.4999999999999999E-2},0,null,null,0]
[null,"BSCR Rating 3","Schedule XVIII, Column E",{"$f":"'Schedule XVIII (EBS)'!O90","v":0},{"$f":"+'Credit Risk (old)'!E28","v":3.5000000000000003E-2},0,null,null,0]
[null,"BSCR Rating 4","Schedule XVIII, Column E",{"$f":"'Schedule XVIII (EBS)'!O91","v":0},{"$f":"+'Credit Risk (old)'!E29","v":7.0000000000000007E-2},0,null,null,0]
[null,"BSCR Rating 5","Schedule XVIII, Column E",{"$f":"'Schedule XVIII (EBS)'!O92","v":0},{"$f":"+'Credit Risk (old)'!E30","v":0.12},0,null,null,0]
[null,"BSCR Rating 6","Schedule XVIII, Column E",{"$f":"'Schedule XVIII (EBS)'!O93","v":0},{"$f":"+'Credit Risk (old)'!E31","v":0.2},0,null,null,0]
[null,"BSCR Rating 7","Schedule XVIII, Column E",{"$f":"'Schedule XVIII (EBS)'!O94","v":0},{"$f":"+'Credit Risk (old)'!E32","v":0.27},0,null,null,0]
[null,"BSCR Rating 8","Schedule XVIII, Column E",{"$f":"'Schedule XVIII (EBS)'!O95","v":0},{"$f":"+'Credit Risk (old)'!E33","v":0.35},0,null,null,0]
[]
[null,"Total",null,{"$f":"SUM(D460:D469)","v":0},null,{"$f":"SUM(F460:F469)","v":0},null,null,{"$f":"SUM(I460:I469)","v":0}]
[]
[null,"Diversification Adjustment at 40%",null,null,null,{"$f":"SUM(F460:F468)*-('Schedule XVIII (EBS)'!O104)","v":0},null,null,{"$f":"SUM(I460:I468)*-('Schedule XVIII (EBS)'!O104)","v":0}]
[]
[null,"(c)  SUBTOTAL - PARTICULARS OF REINSURANCE BALANCES",null,{"$f":"+D470","v":0},null,{"$f":"IF(SUM(F460:F468,F472)>=0,SUM(F460:F468,F472),0)","v":0},null,null,{"$f":"IF(SUM(I460:I468,I472)>=0,SUM(I460:I468,I472),0)","v":0}]
[]
[null,"(d)  TOTAL CREDIT RISK  [ (a) + (b) + (c) ]",null,{"$f":"D474+D456+D449","v":0},null,{"$f":"F474+F456+F449","v":0},null,null,{"$f":"I474+I456+I449","v":0}]
[]
[null,"TYPE OF "]
[null,"CATASTROPHE RISK","STATEMENT SOURCE"]
[]
[null,"(a)  Gross Probable Maximum Loss","Schedule V, Line (g)",null,null,{"$f":"'Schedule V'!H16","v":0},null,null,{"$f":"+F481","v":0}]
[]
[null,"(b)  Net Probable Maximum Loss","Schedule V, Line (h)",null,null,{"$f":"'Schedule V'!H18","v":0},null,null,{"$f":"+F483","v":0}]
[]
[null,"(c)  Average Annual Loss (AAL) Excluding Property Catastrophe","Schedule V, Line (i)",null,null,{"$f":"'Schedule V'!H20","v":0},null,null,{"$f":"+F485","v":0}]
[]
[null,"(d)  Industry Catastrophe Loss Ratio",null,null,null,{"$f":"+'Catastrophe Risk (old)'!E13","v":0.4},null,null,0.4]
[]
[null,"(e)  Property Catastrophe Premium","Schedule IV, Line (1)",null,null,{"$f":"'Schedule IVA (EBS)'!Q11","v":0},null,null,{"$f":"+F489","v":0}]
[]
[null,"(f)  Total Catastrophe Premium  [ (c) / (d) + (e) ]",null,null,null,{"$f":"F485/F487+IF(F489>0,F489,0)","v":0},null,null,{"$f":"IF(I487=\"\",IF(F487=0,0,I485/F487+IF(I489>0,I489,0)),IF(I487=0,0,I485/I487+IF(I489>0,I489,0)))","v":0}]
[]
[null,"(g)  Credit Risk Capital Factor",null,null,null,{"$f":"+'Catastrophe Risk (old)'!E19","v":0.1},null,null,0.1]
[]
[null,"(h) Arrangements with Respect to Property Catastrophe Recoverables",null,null,null,{"$f":"'Schedule V'!H29","v":0},null,null,{"$f":"F495","v":0}]
[]
[null,"(i)  Credit Risk Charge  [ ((a) - (b) - (h) x .98 (g) ]",null,null,null,{"$f":"MAX(0,((F481-F483)-(F495*98%))*F493)","v":0},null,null,{"$f":"MAX(0,((I481-I483)-(I495*98%))*I493)","v":0}]
[]
[null,"(j)  REQUIRED CAPITAL FOR CATASTROPHE RISK  [ (b) - (f) + (i) ]",null,null,null,{"$f":"IF('Company Information'!$F$11=\"Class 3A\",(IF((F483-F489)>=0,F483-F489+F497,F497)),(IF((F483-F491)>=0,F483-F491+F497,F497)))","v":0},null,null,{"$f":"IF('Company Information'!$F$11=\"Class 3A\",(IF((I483-I489)>=0,I483-I489+I497,I497)),(IF((I483-I491)>=0,I483-I491+I497,I497)))","v":0}]
[]
[null,"REQUIRED CAPITAL AND SURPLUS"]
[]
[null,"Fixed Income Investment Risk",null,null,null,{"$f":"+F101","v":0},null,null,{"$f":"+I101","v":0}]
[null,"Equity Investment Risk",null,null,null,{"$f":"+F149","v":0},null,null,{"$f":"+I149","v":0}]
[null,"Interest Rate / Liquidity Risk",null,null,null,{"$f":"+F292","v":0},null,null,{"$f":"+I292","v":0}]
[null,"Currency Risk",null,null,null,{"$f":"+F174","v":0},null,null,{"$f":"+I174","v":0}]
[null,"Concentration Risk",null,null,null,{"$f":"+F282","v":0},null,null,{"$f":"+I282","v":0}]
[null,"Premium Risk",null,null,null,{"$f":"F369","v":0},null,null,{"$f":"I369","v":0}]
[null,"Reserve Risk",null,null,null,{"$f":"+F438","v":0},null,null,{"$f":"+I438","v":0}]
[null,"Credit Risk",null,null,null,{"$f":"+F476","v":0},null,null,{"$f":"+I476","v":0}]
[null,"Catastrophe Risk",null,null,null,{"$f":"+F499","v":0},null,null,{"$f":"+I499","v":0}]
[]
[null,"BSCR (Prior to Covariance Adjustment)",null,null,null,{"$f":"F503+F504+F505+F506+F507+F508+F509+F510+F511","v":0},null,null,{"$f":"I503+I504+I505+I506+I507+I508+I509+I510+I511","v":0}]
[]
[null,"BSCR (After Covariance Adjustment)",null,null,null,{"$f":"(F503^2+F504^2+F505^2+F506^2+F507^2+F508^2+F511^2+(1/2*F510+F509)^2+(1/2*F510)^2)^0.5","v":0},null,null,{"$f":"(I503^2+I504^2+I505^2+I506^2+I507^2+I508^2+I511^2+(1/2*I510+I509)^2+(1/2*I510)^2)^0.5","v":0}]
[]
[null,"Operational risk charge (%)",null,null,null,{"$f":"+Summary!G76","v":0.1}]
[]
[null,"Operational risk capital charge ($)",null,null,null,{"$f":"F515*F517","v":0},null,null,{"$f":"IF(I517=\"\",I515*F517,I515*I517)","v":0}]
[]
[null,"Capital add-on / reduction (BMA assessment)"]
[]
[null,{"$f":"+Summary!C80","v":"Capital Adjustment for (Regulatory) Capital Requirement for Regulated Non-Insurance Financial Operating Entities:"},null,null,null,{"$f":"+Summary!N80","v":0},null,null,{"$f":"+Summary!N80","v":0}]
[null,"BSCR ",null,null,null,{"$f":"F515+F519+F521+F523","v":0},null,null,{"$f":"I515+I519+I521+I523","v":0}]

{"sheet":"Correlation Matrix","index":134,"n_rows":66,"n_cols":26,"rows_kept":66,"cut":false,"hidden":false,"merged":[[2,3,2,5],[0,24,0,25]]}
["Correlation Factors",null,null,null,null,null,null,null,null,null,null,null,null,null,null,null,null,null,null,null,null,null,null,null,{"$f":"HYPERLINK(\"#'Index'!A1\",\"Return to Index\")","v":"Return to Index"}]
[{"$f":"'Company Information'!C7","v":"Enter Company Name"}]
[]
[]
[null,"Market Risk",null,null,null,null,null,null,"P&C Insurance Risk",null,null,null,null,"Overall BSCR",null,null,null,null,"Year-End","Transition Rate",null,"Capital Charges - Gross",null,null,"Capital Charges - Net"]
[null,null,"Cfi","Ceq","Cint","CCur","Cconc",null,null,"Cprem","Crsvs","Ccat",null,null,"Market","Credit","P&C",null,"2019-01-01",0.33,null,"Market",{"$f":"Summary!N57","v":0},null,"Market",{"$f":"Summary!L57","v":0}]
[null,"Cfi",1,0.5,{"$f":"IF(Summary!E60=\"Duration-Based Approach\",0.25,IF('Interest Rate-Liquidity (Rev.)'!$E$109=\"Down\",0.25,0))","v":0.25},0.25,0,null,"Cprem",1,0.25,0.125,null,"Market",1,0.25,0.125,null,"2020-01-01",0.66,null,"Credit",{"$f":"Summary!N64","v":0},null,"Credit",{"$f":"Summary!L64","v":0}]
[null,"Ceq",0.5,1,{"$f":"IF(Summary!E60=\"Duration-Based Approach\",0.25,IF('Interest Rate-Liquidity (Rev.)'!$E$109=\"Down\",0.25,0))","v":0.25},0.25,0,null,"Crsvs",0.25,1,0,null,"Credit",0.25,1,0.5,null,"2021-01-01",1,null,"P&C",{"$f":"Summary!N67","v":0},null,"P&C",{"$f":"Summary!L67","v":0}]
[null,"Cint",{"$f":"IF(Summary!E60=\"Duration-Based Approach\",0.25,IF('Interest Rate-Liquidity (Rev.)'!$E$109=\"Down\",0.25,0))","v":0.25},{"$f":"IF(Summary!E60=\"Duration-Based Approach\",0.25,IF('Interest Rate-Liquidity (Rev.)'!$E$109=\"Down\",0.25,0))","v":0.25},1,0.25,0,null,"Ccat",0.125,0,1,null,"P&C",0.125,0.5,1,null,null,null,null,null,{"$f":"SUM(W6:W8)","v":0},null,null,{"$f":"SUM(Z6:Z8)","v":0}]
[null,"CCur",0.25,0.25,0.25,1,0]
[null,"Cconc",0,0,0,0,1]
[]
[null,"Premium Risk"]
[null,null,"Prop Cat","Prop","Prop NP","PA","PA NP","Aviatn","AviatnNP","C/S","C/S NP","Ergy O/M","Ergy O/MNP","US Cas","US CasNP","US Prof","US ProfNP","US Spec","US SpecNP","IntMotor","IntMotorNP","IntCas","IntCasNP","Retro Prop","Str/Fin Re","Health"]
[null,"Prop Cat",1,0.25,0.25,0.25,0.25,0.25,0.25,0.25,0.25,0.25,0.25,0.25,0.25,0.25,0.25,0.25,0.25,0.25,0.25,0.25,0.25,0.25,0.25,0.25]
[null,"Prop",0.25,1,0.5,0.25,0.25,0.25,0.25,0.25,0.25,0.25,0.25,0.25,0.25,0.25,0.25,0.25,0.25,0.25,0.25,0.25,0.25,0.25,0.25,0.25]
[null,"Prop NP",0.25,0.5,1,0.25,0.25,0.25,0.25,0.25,0.25,0.25,0.25,0.25,0.25,0.25,0.25,0.25,0.25,0.25,0.25,0.25,0.25,0.25,0.25,0.25]
[null,"PA",0.25,0.25,0.25,1,0.5,0.25,0.25,0.25,0.25,0.25,0.25,0.25,0.25,0.25,0.25,0.25,0.25,0.25,0.25,0.25,0.25,0.25,0.25,0.25]
[null,"PA NP",0.25,0.25,0.25,0.5,1,0.25,0.25,0.25,0.25,0.25,0.25,0.25,0.25,0.25,0.25,0.25,0.25,0.25,0.25,0.25,0.25,0.25,0.25,0.25]
[null,"Aviatn",0.25,0.25,0.25,0.25,0.25,1,0.5,0.25,0.25,0.25,0.25,0.25,0.25,0.25,0.25,0.25,0.25,0.25,0.25,0.25,0.25,0.25,0.25,0.25]
[null,"AviatnNP",0.25,0.25,0.25,0.25,0.25,0.5,1,0.25,0.25,0.25,0.25,0.25,0.25,0.25,0.25,0.25,0.25,0.25,0.25,0.25,0.25,0.25,0.25,0.25]
[null,"C/S",0.25,0.25,0.25,0.25,0.25,0.25,0.25,1,0.5,0.25,0.25,0.25,0.25,0.25,0.25,0.25,0.25,0.25,0.25,0.25,0.25,0.25,0.25,0.25]
[null,"C/S NP",0.25,0.25,0.25,0.25,0.25,0.25,0.25,0.5,1,0.25,0.25,0.25,0.25,0.25,0.25,0.25,0.25,0.25,0.25,0.25,0.25,0.25,0.25,0.25]
[null,"Ergy O/M",0.25,0.25,0.25,0.25,0.25,0.25,0.25,0.25,0.25,1,0.5,0.25,0.25,0.25,0.25,0.25,0.25,0.25,0.25,0.25,0.25,0.25,0.25,0.25]
[null,"Ergy O/MNP",0.25,0.25,0.25,0.25,0.25,0.25,0.25,0.25,0.25,0.5,1,0.25,0.25,0.25,0.25,0.25,0.25,0.25,0.25,0.25,0.25,0.25,0.25,0.25]
[null,"US Cas",0.25,0.25,0.25,0.25,0.25,0.25,0.25,0.25,0.25,0.25,0.25,1,0.5,0.5,0.5,0.25,0.25,0.25,0.25,0.5,0.5,0.25,0.25,0.25]
[null,"US CasNP",0.25,0.25,0.25,0.25,0.25,0.25,0.25,0.25,0.25,0.25,0.25,0.5,1,0.5,0.5,0.25,0.25,0.25,0.25,0.5,0.5,0.25,0.25,0.25]
[null,"US Prof",0.25,0.25,0.25,0.25,0.25,0.25,0.25,0.25,0.25,0.25,0.25,0.5,0.5,1,0.5,0.25,0.25,0.25,0.25,0.5,0.5,0.25,0.25,0.25]
[null,"US ProfNP",0.25,0.25,0.25,0.25,0.25,0.25,0.25,0.25,0.25,0.25,0.25,0.5,0.5,0.5,1,0.25,0.25,0.25,0.25,0.5,0.5,0.25,0.25,0.25]
[null,"US Spec",0.25,0.25,0.25,0.25,0.25,0.25,0.25,0.25,0.25,0.25,0.25,0.25,0.25,0.25,0.25,1,0.5,0.25,0.25,0.25,0.25,0.25,0.25,0.25]
[null,"US SpecNP",0.25,0.25,0.25,0.25,0.25,0.25,0.25,0.25,0.25,0.25,0.25,0.25,0.25,0.25,0.25,0.5,1,0.25,0.25,0.25,0.25,0.25,0.25,0.25]
[null,"IntMotor",0.25,0.25,0.25,0.25,0.25,0.25,0.25,0.25,0.25,0.25,0.25,0.25,0.25,0.25,0.25,0.25,0.25,1,0.5,0.25,0.25,0.25,0.25,0.25]
[null,"IntMotorNP",0.25,0.25,0.25,0.25,0.25,0.25,0.25,0.25,0.25,0.25,0.25,0.25,0.25,0.25,0.25,0.25,0.25,0.5,1,0.25,0.25,0.25,0.25,0.25]
[null,"IntCas",0.25,0.25,0.25,0.25,0.25,0.25,0.25,0.25,0.25,0.25,0.25,0.5,0.5,0.5,0.5,0.25,0.25,0.25,0.25,1,0.5,0.25,0.25,0.25]
[null,"IntCasNP",0.25,0.25,0.25,0.25,0.25,0.25,0.25,0.25,0.25,0.25,0.25,0.5,0.5,0.5,0.5,0.25,0.25,0.25,0.25,0.5,1,0.25,0.25,0.25]
[null,"Retro Prop",0.25,0.25,0.25,0.25,0.25,0.25,0.25,0.25,0.25,0.25,0.25,0.25,0.25,0.25,0.25,0.25,0.25,0.25,0.25,0.25,0.25,1,0.25,0.25]
[null,"Str/Fin Re",0.25,0.25,0.25,0.25,0.25,0.25,0.25,0.25,0.25,0.25,0.25,0.25,0.25,0.25,0.25,0.25,0.25,0.25,0.25,0.25,0.25,0.25,1,0.25]
[null,"Health",0.25,0.25,0.25,0.25,0.25,0.25,0.25,0.25,0.25,0.25,0.25,0.25,0.25,0.25,0.25,0.25,0.25,0.25,0.25,0.25,0.25,0.25,0.25,1]
[]
[]
[null,"Reserve Risk"]
[null,null,"Prop Cat","Prop","Prop NP","PA","PA NP","Aviatn","AviatnNP","C/S","C/S NP","Ergy O/M","Ergy O/MNP","US Cas","US CasNP","US Prof","US ProfNP","US Spec","US SpecNP","IntMotor","IntMotorNP","IntCas","IntCasNP","Retro Prop","Str/Fin Re","Health"]
[null,"Prop Cat",1,0.25,0.25,0.25,0.25,0.25,0.25,0.25,0.25,0.25,0.25,0.25,0.25,0.25,0.25,0.25,0.25,0.25,0.25,0.25,0.25,0.25,0.25,0.25]
[null,"Prop",0.25,1,0.5,0.25,0.25,0.25,0.25,0.25,0.25,0.25,0.25,0.25,0.25,0.25,0.25,0.25,0.25,0.25,0.25,0.25,0.25,0.25,0.25,0.25]
[null,"Prop NP",0.25,0.5,1,0.25,0.25,0.25,0.25,0.25,0.25,0.25,0.25,0.25,0.25,0.25,0.25,0.25,0.25,0.25,0.25,0.25,0.25,0.25,0.25,0.25]
[null,"PA",0.25,0.25,0.25,1,0.5,0.25,0.25,0.25,0.25,0.25,0.25,0.25,0.25,0.25,0.25,0.25,0.25,0.25,0.25,0.25,0.25,0.25,0.25,0.25]
[null,"PA NP",0.25,0.25,0.25,0.5,1,0.25,0.25,0.25,0.25,0.25,0.25,0.25,0.25,0.25,0.25,0.25,0.25,0.25,0.25,0.25,0.25,0.25,0.25,0.25]
[null,"Aviatn",0.25,0.25,0.25,0.25,0.25,1,0.5,0.25,0.25,0.25,0.25,0.25,0.25,0.25,0.25,0.25,0.25,0.25,0.25,0.25,0.25,0.25,0.25,0.25]
[null,"AviatnNP",0.25,0.25,0.25,0.25,0.25,0.5,1,0.25,0.25,0.25,0.25,0.25,0.25,0.25,0.25,0.25,0.25,0.25,0.25,0.25,0.25,0.25,0.25,0.25]
[null,"C/S",0.25,0.25,0.25,0.25,0.25,0.25,0.25,1,0.5,0.25,0.25,0.25,0.25,0.25,0.25,0.25,0.25,0.25,0.25,0.25,0.25,0.25,0.25,0.25]
[null,"C/S NP",0.25,0.25,0.25,0.25,0.25,0.25,0.25,0.5,1,0.25,0.25,0.25,0.25,0.25,0.25,0.25,0.25,0.25,0.25,0.25,0.25,0.25,0.25,0.25]
[null,"Ergy O/M",0.25,0.25,0.25,0.25,0.25,0.25,0.25,0.25,0.25,1,0.5,0.25,0.25,0.25,0.25,0.25,0.25,0.25,0.25,0.25,0.25,0.25,0.25,0.25]
[null,"Ergy O/MNP",0.25,0.25,0.25,0.25,0.25,0.25,0.25,0.25,0.25,0.5,1,0.25,0.25,0.25,0.25,0.25,0.25,0.25,0.25,0.25,0.25,0.25,0.25,0.25]
[null,"US Cas",0.25,0.25,0.25,0.25,0.25,0.25,0.25,0.25,0.25,0.25,0.25,1,0.5,0.5,0.5,0.25,0.25,0.25,0.25,0.5,0.5,0.25,0.25,0.25]
[null,"US CasNP",0.25,0.25,0.25,0.25,0.25,0.25,0.25,0.25,0.25,0.25,0.25,0.5,1,0.5,0.5,0.25,0.25,0.25,0.25,0.5,0.5,0.25,0.25,0.25]
[null,"US Prof",0.25,0.25,0.25,0.25,0.25,0.25,0.25,0.25,0.25,0.25,0.25,0.5,0.5,1,0.5,0.25,0.25,0.25,0.25,0.5,0.5,0.25,0.25,0.25]
[null,"US ProfNP",0.25,0.25,0.25,0.25,0.25,0.25,0.25,0.25,0.25,0.25,0.25,0.5,0.5,0.5,1,0.25,0.25,0.25,0.25,0.5,0.5,0.25,0.25,0.25]
[null,"US Spec",0.25,0.25,0.25,0.25,0.25,0.25,0.25,0.25,0.25,0.25,0.25,0.25,0.25,0.25,0.25,1,0.5,0.25,0.25,0.25,0.25,0.25,0.25,0.25]
[null,"US SpecNP",0.25,0.25,0.25,0.25,0.25,0.25,0.25,0.25,0.25,0.25,0.25,0.25,0.25,0.25,0.25,0.5,1,0.25,0.25,0.25,0.25,0.25,0.25,0.25]
[null,"IntMotor",0.25,0.25,0.25,0.25,0.25,0.25,0.25,0.25,0.25,0.25,0.25,0.25,0.25,0.25,0.25,0.25,0.25,1,0.5,0.25,0.25,0.25,0.25,0.25]
[null,"IntMotorNP",0.25,0.25,0.25,0.25,0.25,0.25,0.25,0.25,0.25,0.25,0.25,0.25,0.25,0.25,0.25,0.25,0.25,0.5,1,0.25,0.25,0.25,0.25,0.25]
[null,"IntCas",0.25,0.25,0.25,0.25,0.25,0.25,0.25,0.25,0.25,0.25,0.25,0.5,0.5,0.5,0.5,0.25,0.25,0.25,0.25,1,0.5,0.25,0.25,0.25]
[null,"IntCasNP",0.25,0.25,0.25,0.25,0.25,0.25,0.25,0.25,0.25,0.25,0.25,0.5,0.5,0.5,0.5,0.25,0.25,0.25,0.25,0.5,1,0.25,0.25,0.25]
[null,"Retro Prop",0.25,0.25,0.25,0.25,0.25,0.25,0.25,0.25,0.25,0.25,0.25,0.25,0.25,0.25,0.25,0.25,0.25,0.25,0.25,0.25,0.25,1,0.25,0.25]
[null,"Str/Fin Re",0.25,0.25,0.25,0.25,0.25,0.25,0.25,0.25,0.25,0.25,0.25,0.25,0.25,0.25,0.25,0.25,0.25,0.25,0.25,0.25,0.25,0.25,1,0.25]
[null,"Health",0.25,0.25,0.25,0.25,0.25,0.25,0.25,0.25,0.25,0.25,0.25,0.25,0.25,0.25,0.25,0.25,0.25,0.25,0.25,0.25,0.25,0.25,0.25,1]

{"sheet":"Company Specific Parameters","index":135,"n_rows":713,"n_cols":24,"rows_kept":713,"cut":false,"hidden":false,"merged":[[524,2,526,2],[524,3,526,3],[524,4,526,4],[524,5,526,5],[201,3,202,4],[201,5,203,5],[310,3,310,4],[310,5,310,6],[309,2,309,6],[2,8,3,11],[5,1,5,11],[103,3,103,4],[103,5,103,6],[102,3,102,6],[3,2,3,3],[137,3,137,5],[138,4,138,5],[138,6,139,6],[0,0,0,6],[2,0,2,3],[116,3,116,6],[117,3,117,4],[117,5,117,6]]}
["COMPANY SPECIFIC PARAMETERS (REVISED)",null,null,null,null,null,null,null,null,null,null,{"$f":"HYPERLINK(\"#'Index'!A1\",\"Return to Index\")","v":"Return to Index"},null,null,null,null,null,null,null,null,null,null,null,{"$f":"IF(C4=\"\",\"\",TEXT(DATE(YEAR(C4+1)-1,MONTH(C4+1),DAY(C4+1)),\"mm/dd/yyyy\"))","v":"01/01/2023"}]
[null,null,null,null,null,null,null,null,null,null,null,null,null,null,null,null,null,null,null,null,null,null,null,{"$f":"IF(C4=\"\",\"\",TEXT(C4,\"mm/dd/yyyy\"))","v":"12/31/2023"}]
[{"$f":"'Company Information'!C7","v":"Enter Company Name"},null,null,null,null,null,null,null,{"$f":"HYPERLINK(\"#'Attachments'!A205\",\"Details of User Capital Factor to be included in the attachments section 11.\")","v":"Details of User Capital Factor to be included in the attachments section 11."}]
["For the Year Ending ",null,{"$f":" TEXT('Company Information'!C3,\"d mmmm yyyy\")","v":"31 December 2023"}]
[null,null,null,null,null,null,null,null,null,null,null,null,null,null,null,null,null,null,null,null,null,null,null,{"$f":"IF(D7=\"\",\"\",TEXT(D7,\"mm/dd/yyyy\"))","v":""}]
[null,"To be completed only with prior approval from the Bermuda Monetary Authority"]
[null,null,null,null,null,null,null,null,null,null,null,null,null,null,null,null,null,null,null,null,null,null,null,{"$f":"IF(D9=\"\",\"\",TEXT(D9,\"mm/dd/yyyy\"))","v":""}]
[null,null,null,null,null,null,null,"STANDARD","STANDARD",null,"USER","USER"]
[null,"TYPE OF ",null,null,null,null,"ASSET","CAPITAL","REQUIRED",null,"CAPITAL","REQUIRED"]
[null,"FIXED INCOME INVESTMENTS",null,null,null,null,"VALUE","FACTOR","CAPITAL",null,"FACTOR","CAPITAL"]
[]
[null,"(a) Corporate & Sovereign Bonds",null,null,null,null,"(1) ","(2)","(1) x (2)",null,"(3)","(1) x (3)"]
[]
[null,"BSCR Rating"]
[null,0,null,null,null,null,{"$f":"'Schedule IIB (EBS)'!D13+'Schedule IIC (EBS)'!D13+(MAX(0,'Schedule IID (EBS)'!D13-'Schedule IID (EBS)'!F13))+'Schedule IIE (EBS)'!D13+'Schedule IIF (EBS)'!D13","v":0},{"$f":"'Fixed Income Investments'!H12","v":0},{"$f":"IF(G15<0,0,G15*H15)","v":0},null,null,{"$f":"MAX(0,IF(K15=\"\",H15*G15,G15*K15))","v":0}]
[null,1,null,null,null,null,{"$f":"'Schedule IIB (EBS)'!D14+'Schedule IIC (EBS)'!D14+(MAX(0,'Schedule IID (EBS)'!D14-'Schedule IID (EBS)'!F14))+'Schedule IIE (EBS)'!D14+'Schedule IIF (EBS)'!D14","v":0},{"$f":"'Fixed Income Investments'!H13","v":4.0000000000000001E-3},0,null,null,{"$f":"MAX(0,IF(K16=\"\",H16*G16,G16*K16))","v":0}]
[null,2,null,null,null,null,{"$f":"'Schedule IIB (EBS)'!D15+'Schedule IIC (EBS)'!D15+(MAX(0,'Schedule IID (EBS)'!D15-'Schedule IID (EBS)'!F15))+'Schedule IIE (EBS)'!D15+'Schedule IIF (EBS)'!D15","v":0},{"$f":"'Fixed Income Investments'!H14","v":8.0000000000000002E-3},0,null,null,0]
[null,3,null,null,null,null,{"$f":"'Schedule IIB (EBS)'!D16+'Schedule IIC (EBS)'!D16+(MAX(0,'Schedule IID (EBS)'!D16-'Schedule IID (EBS)'!F16))+'Schedule IIE (EBS)'!D16+'Schedule IIF (EBS)'!D16","v":0},{"$f":"'Fixed Income Investments'!H15","v":1.4999999999999999E-2},0,null,null,0]
[null,4,null,null,null,null,{"$f":"'Schedule IIB (EBS)'!D17+'Schedule IIC (EBS)'!D17+(MAX(0,'Schedule IID (EBS)'!D17-'Schedule IID (EBS)'!F17))+'Schedule IIE (EBS)'!D17+'Schedule IIF (EBS)'!D17","v":0},{"$f":"'Fixed Income Investments'!H16","v":0.03},0,null,null,0]
[null,5,null,null,null,null,{"$f":"'Schedule IIB (EBS)'!D18+'Schedule IIC (EBS)'!D18+(MAX(0,'Schedule IID (EBS)'!D18-'Schedule IID (EBS)'!F18))+'Schedule IIE (EBS)'!D18+'Schedule IIF (EBS)'!D18","v":0},{"$f":"'Fixed Income Investments'!H17","v":0.08},0,null,null,0]
[null,6,null,null,null,null,{"$f":"'Schedule IIB (EBS)'!D19+'Schedule IIC (EBS)'!D19+(MAX(0,'Schedule IID (EBS)'!D19-'Schedule IID (EBS)'!F19))+'Schedule IIE (EBS)'!D19+'Schedule IIF (EBS)'!D19","v":0},{"$f":"'Fixed Income Investments'!H18","v":0.15},0,null,null,0]
[null,7,null,null,null,null,{"$f":"'Schedule IIB (EBS)'!D20+'Schedule IIC (EBS)'!D20+(MAX(0,'Schedule IID (EBS)'!D20-'Schedule IID (EBS)'!F20))+'Schedule IIE (EBS)'!D20+'Schedule IIF (EBS)'!D20","v":0},{"$f":"'Fixed Income Investments'!H19","v":0.26300000000000001},0,null,null,0]
[null,8,null,null,null,null,{"$f":"'Schedule IIB (EBS)'!D21+'Schedule IIC (EBS)'!D21+(MAX(0,'Schedule IID (EBS)'!D21-'Schedule IID (EBS)'!F21))+'Schedule IIE (EBS)'!D21+'Schedule IIF (EBS)'!D21","v":0},{"$f":"'Fixed Income Investments'!H20","v":0.35},0,null,null,0]
[]
[null,"(a)  SUBTOTAL -  CORPORATE BONDS",null,null,null,null,{"$f":"SUM(G15:G24)","v":0},null,{"$f":"IF(SUM(I15:I23)>=0,SUM(I15:I23),0)","v":0},null,null,{"$f":"IF(SUM(L15:L23)>=0,SUM(L15:L23),0)","v":0}]
[]
[null,"(b) Residential Mortgage-Backed Securities"]
[]
[null,"BSCR Rating"]
[null,1,null,null,null,null,{"$f":"'Schedule IIB (EBS)'!H14+'Schedule IIC (EBS)'!H14+(MAX(0,'Schedule IID (EBS)'!H14-'Schedule IID (EBS)'!J14))+'Schedule IIE (EBS)'!H14+'Schedule IIF (EBS)'!H14","v":0},{"$f":"'Fixed Income Investments'!H27","v":6.0000000000000001E-3},{"$f":"IF(G30<0,0,G30*H30)","v":0},null,null,{"$f":"MAX(0,IF(K30=\"\",H30*G30,G30*K30))","v":0}]
[null,2,null,null,null,null,{"$f":"'Schedule IIB (EBS)'!H15+'Schedule IIC (EBS)'!H15+(MAX(0,'Schedule IID (EBS)'!H15-'Schedule IID (EBS)'!J15))+'Schedule IIE (EBS)'!H15+'Schedule IIF (EBS)'!H15","v":0},{"$f":"'Fixed Income Investments'!H28","v":1.2E-2},0,null,null,0]
[null,3,null,null,null,null,{"$f":"'Schedule IIB (EBS)'!H16+'Schedule IIC (EBS)'!H16+(MAX(0,'Schedule IID (EBS)'!H16-'Schedule IID (EBS)'!J16))+'Schedule IIE (EBS)'!H16+'Schedule IIF (EBS)'!H16","v":0},{"$f":"'Fixed Income Investments'!H29","v":0.02},0,null,null,0]
[null,4,null,null,null,null,{"$f":"'Schedule IIB (EBS)'!H17+'Schedule IIC (EBS)'!H17+(MAX(0,'Schedule IID (EBS)'!H17-'Schedule IID (EBS)'!J17))+'Schedule IIE (EBS)'!H17+'Schedule IIF (EBS)'!H17","v":0},{"$f":"'Fixed Income Investments'!H30","v":0.04},0,null,null,0]
[null,5,null,null,null,null,{"$f":"'Schedule IIB (EBS)'!H18+'Schedule IIC (EBS)'!H18+(MAX(0,'Schedule IID (EBS)'!H18-'Schedule IID (EBS)'!J18))+'Schedule IIE (EBS)'!H18+'Schedule IIF (EBS)'!H18","v":0},{"$f":"'Fixed Income Investments'!H31","v":0.11},0,null,null,0]
[null,6,null,null,null,null,{"$f":"'Schedule IIB (EBS)'!H19+'Schedule IIC (EBS)'!H19+(MAX(0,'Schedule IID (EBS)'!H19-'Schedule IID (EBS)'!J19))+'Schedule IIE (EBS)'!H19+'Schedule IIF (EBS)'!H19","v":0},{"$f":"'Fixed Income Investments'!H32","v":0.25},0,null,null,0]
[null,7,null,null,null,null,{"$f":"'Schedule IIB (EBS)'!H20+'Schedule IIC (EBS)'!H20+(MAX(0,'Schedule IID (EBS)'!H20-'Schedule IID (EBS)'!J20))+'Schedule IIE (EBS)'!H20+'Schedule IIF (EBS)'!H20","v":0},{"$f":"'Fixed Income Investments'!H33","v":0.35},0,null,null,0]
[null,8,null,null,null,null,{"$f":"'Schedule IIB (EBS)'!H21+'Schedule IIC (EBS)'!H21+(MAX(0,'Schedule IID (EBS)'!H21-'Schedule IID (EBS)'!J21))+'Schedule IIE (EBS)'!H21+'Schedule IIF (EBS)'!H21","v":0},{"$f":"'Fixed Income Investments'!H34","v":0.35},0,null,null,0]
[]
[null,"(b)  SUBTOTAL - RESIDENTIAL MORTGAGE-BACKED SECURITIES",null,null,null,null,{"$f":"SUM(G29:G38)","v":0},null,{"$f":"IF(SUM(I29:I37)>=0,SUM(I29:I37),0)","v":0},null,null,{"$f":"IF(SUM(L29:L37)>=0,SUM(L29:L37),0)","v":0}]
[]
[null,"(c) Commercial Mortgage-Backed Securities / Asset-Backed Securities"]
[]
[null,"BSCR Rating"]
[null,1,null,null,null,null,{"$f":"'Schedule IIB (EBS)'!L14+'Schedule IIC (EBS)'!L14+(MAX(0,'Schedule IID (EBS)'!L14-'Schedule IID (EBS)'!N14))+'Schedule IIE (EBS)'!L14+'Schedule IIF (EBS)'!L14","v":0},{"$f":"'Fixed Income Investments'!H41","v":5.0000000000000001E-3},{"$f":"IF(G44<0,0,G44*H44)","v":0},null,null,{"$f":"MAX(0,IF(K44=\"\",H44*G44,G44*K44))","v":0}]
[null,2,null,null,null,null,{"$f":"'Schedule IIB (EBS)'!L15+'Schedule IIC (EBS)'!L15+(MAX(0,'Schedule IID (EBS)'!L15-'Schedule IID (EBS)'!N15))+'Schedule IIE (EBS)'!L15+'Schedule IIF (EBS)'!L15","v":0},{"$f":"'Fixed Income Investments'!H42","v":0.01},0,null,null,0]
[null,3,null,null,null,null,{"$f":"'Schedule IIB (EBS)'!L16+'Schedule IIC (EBS)'!L16+(MAX(0,'Schedule IID (EBS)'!L16-'Schedule IID (EBS)'!N16))+'Schedule IIE (EBS)'!L16+'Schedule IIF (EBS)'!L16","v":0},{"$f":"'Fixed Income Investments'!H43","v":1.7999999999999999E-2},0,null,null,0]
[null,4,null,null,null,null,{"$f":"'Schedule IIB (EBS)'!L17+'Schedule IIC (EBS)'!L17+(MAX(0,'Schedule IID (EBS)'!L17-'Schedule IID (EBS)'!N17))+'Schedule IIE (EBS)'!L17+'Schedule IIF (EBS)'!L17","v":0},{"$f":"'Fixed Income Investments'!H44","v":3.5000000000000003E-2},0,null,null,0]
[null,5,null,null,null,null,{"$f":"'Schedule IIB (EBS)'!L18+'Schedule IIC (EBS)'!L18+(MAX(0,'Schedule IID (EBS)'!L18-'Schedule IID (EBS)'!N18))+'Schedule IIE (EBS)'!L18+'Schedule IIF (EBS)'!L18","v":0},{"$f":"'Fixed Income Investments'!H45","v":0.1},0,null,null,0]
[null,6,null,null,null,null,{"$f":"'Schedule IIB (EBS)'!L19+'Schedule IIC (EBS)'!L19+(MAX(0,'Schedule IID (EBS)'!L19-'Schedule IID (EBS)'!N19))+'Schedule IIE (EBS)'!L19+'Schedule IIF (EBS)'!L19","v":0},{"$f":"'Fixed Income Investments'!H46","v":0.2},0,null,null,0]
[null,7,null,null,null,null,{"$f":"'Schedule IIB (EBS)'!L20+'Schedule IIC (EBS)'!L20+(MAX(0,'Schedule IID (EBS)'!L20-'Schedule IID (EBS)'!N20))+'Schedule IIE (EBS)'!L20+'Schedule IIF (EBS)'!L20","v":0},{"$f":"'Fixed Income Investments'!H47","v":0.3},0,null,null,0]
[null,8,null,null,null,null,{"$f":"'Schedule IIB (EBS)'!L21+'Schedule IIC (EBS)'!L21+(MAX(0,'Schedule IID (EBS)'!L21-'Schedule IID (EBS)'!N21))+'Schedule IIE (EBS)'!L21+'Schedule IIF (EBS)'!L21","v":0},{"$f":"'Fixed Income Investments'!H48","v":0.35},0,null,null,0]
[]
[null,"(c)  SUBTOTAL - COMMERCIAL MORTGAGE-BACKED SECURITIES / ASSET-BACKED SECURITIES",null,null,null,null,{"$f":"SUM(G43:G52)","v":0},null,{"$f":"IF(SUM(I43:I51)>=0,SUM(I43:I51),0)","v":0},null,null,{"$f":"IF(SUM(L43:L51)>=0,SUM(L43:L51),0)","v":0}]
[]
[null,"(d) Bond Mutual Funds"]
[]
[null,"BSCR Rating"]
[null,0,null,null,null,null,{"$f":"'Schedule IIB (EBS)'!P13+'Schedule IIC (EBS)'!P13+(MAX(0,'Schedule IID (EBS)'!P13-'Schedule IID (EBS)'!R13))+'Schedule IIE (EBS)'!P13+'Schedule IIF (EBS)'!P13","v":0},{"$f":"'Fixed Income Investments'!H56","v":0},{"$f":"IF(G58<0,0,G58*H58)","v":0},null,null,{"$f":"MAX(0,IF(K58=\"\",H58*G58,G58*K58))","v":0}]
[null,1,null,null,null,null,{"$f":"'Schedule IIB (EBS)'!P14+'Schedule IIC (EBS)'!P14+(MAX(0,'Schedule IID (EBS)'!P14-'Schedule IID (EBS)'!R14))+'Schedule IIE (EBS)'!P14+'Schedule IIF (EBS)'!P14","v":0},{"$f":"'Fixed Income Investments'!H57","v":4.0000000000000001E-3},0,null,null,0]
[null,2,null,null,null,null,{"$f":"'Schedule IIB (EBS)'!P15+'Schedule IIC (EBS)'!P15+(MAX(0,'Schedule IID (EBS)'!P15-'Schedule IID (EBS)'!R15))+'Schedule IIE (EBS)'!P15+'Schedule IIF (EBS)'!P15","v":0},{"$f":"'Fixed Income Investments'!H58","v":8.0000000000000002E-3},0,null,null,0]
[null,3,null,null,null,null,{"$f":"'Schedule IIB (EBS)'!P16+'Schedule IIC (EBS)'!P16+(MAX(0,'Schedule IID (EBS)'!P16-'Schedule IID (EBS)'!R16))+'Schedule IIE (EBS)'!P16+'Schedule IIF (EBS)'!P16","v":0},{"$f":"'Fixed Income Investments'!H59","v":1.4999999999999999E-2},0,null,null,0]
[null,4,null,null,null,null,{"$f":"'Schedule IIB (EBS)'!P17+'Schedule IIC (EBS)'!P17+(MAX(0,'Schedule IID (EBS)'!P17-'Schedule IID (EBS)'!R17))+'Schedule IIE (EBS)'!P17+'Schedule IIF (EBS)'!P17","v":0},{"$f":"'Fixed Income Investments'!H60","v":0.03},0,null,null,0]
[null,5,null,null,null,null,{"$f":"'Schedule IIB (EBS)'!P18+'Schedule IIC (EBS)'!P18+(MAX(0,'Schedule IID (EBS)'!P18-'Schedule IID (EBS)'!R18))+'Schedule IIE (EBS)'!P18+'Schedule IIF (EBS)'!P18","v":0},{"$f":"'Fixed Income Investments'!H61","v":0.08},0,null,null,0]
[null,6,null,null,null,null,{"$f":"'Schedule IIB (EBS)'!P19+'Schedule IIC (EBS)'!P19+(MAX(0,'Schedule IID (EBS)'!P19-'Schedule IID (EBS)'!R19))+'Schedule IIE (EBS)'!P19+'Schedule IIF (EBS)'!P19","v":0},{"$f":"'Fixed Income Investments'!H62","v":0.15},0,null,null,0]
[null,7,null,null,null,null,{"$f":"'Schedule IIB (EBS)'!P20+'Schedule IIC (EBS)'!P20+(MAX(0,'Schedule IID (EBS)'!P20-'Schedule IID (EBS)'!R20))+'Schedule IIE (EBS)'!P20+'Schedule IIF (EBS)'!P20","v":0},{"$f":"'Fixed Income Investments'!H63","v":0.26300000000000001},0,null,null,0]
[null,8,null,null,null,null,{"$f":"'Schedule IIB (EBS)'!P21+'Schedule IIC (EBS)'!P21+(MAX(0,'Schedule IID (EBS)'!P21-'Schedule IID (EBS)'!R21))+'Schedule IIE (EBS)'!P21+'Schedule IIF (EBS)'!P21","v":0},{"$f":"'Fixed Income Investments'!H64","v":0.35},0,null,null,0]
[]
[null,"(d)  SUBTOTAL - BOND MUTUAL FUNDS",null,null,null,null,{"$f":"SUM(G58:G67)","v":0},null,{"$f":"IF(SUM(I58:I66)>=0,SUM(I58:I66),0)","v":0},null,null,{"$f":"IF(SUM(L58:L66)>=0,SUM(L58:L66),0)","v":0}]
[]
[null,"(e) Mortgage Loans"]
[]
[null,"Insured/Guaranteed Mortgages",null,null,null,null,{"$f":"'Schedule IIB (EBS)'!T22+'Schedule IIC (EBS)'!T22+(MAX(0,'Schedule IID (EBS)'!T22-'Schedule IID (EBS)'!V22))+'Schedule IIE (EBS)'!T22+'Schedule IIF (EBS)'!T22","v":0},{"$f":"'Fixed Income Investments'!H70","v":3.0000000000000001E-3},{"$f":"IF(G72<0,0,G72*H72)","v":0},null,null,{"$f":"MAX(0,IF(K72=\"\",H72*G72,G72*K72))","v":0}]
[null,"Other Commercial and Farm Mortgages",null,null,null,null,{"$f":"'Schedule IIB (EBS)'!T23+'Schedule IIC (EBS)'!T23+(MAX(0,'Schedule IID (EBS)'!T23-'Schedule IID (EBS)'!V23))+'Schedule IIE (EBS)'!T23+'Schedule IIF (EBS)'!T23","v":0},{"$f":"'Fixed Income Investments'!H71","v":0.05},{"$f":"IF(G73<0,0,G73*H73)","v":0},null,null,{"$f":"MAX(0,IF(K73=\"\",H73*G73,G73*K73))","v":0}]
[null,"Other Residential Mortgages",null,null,null,null,{"$f":"'Schedule IIB (EBS)'!T24+'Schedule IIC (EBS)'!T24+(MAX(0,'Schedule IID (EBS)'!T24-'Schedule IID (EBS)'!V24))+'Schedule IIE (EBS)'!T24+'Schedule IIF (EBS)'!T24","v":0},{"$f":"'Fixed Income Investments'!H72","v":1.4999999999999999E-2},{"$f":"IF(G74<0,0,G74*H74)","v":0},null,null,{"$f":"MAX(0,IF(K74=\"\",H74*G74,G74*K74))","v":0}]
[null,"Mortgages Not In Good Standing",null,null,null,null,{"$f":"'Schedule IIB (EBS)'!T25+'Schedule IIC (EBS)'!T25+(MAX(0,'Schedule IID (EBS)'!T25-'Schedule IID (EBS)'!V25))+'Schedule IIE (EBS)'!T25+'Schedule IIF (EBS)'!T25","v":0},{"$f":"'Fixed Income Investments'!H73","v":0.25},{"$f":"IF(G75<0,0,G75*H75)","v":0},null,null,{"$f":"MAX(0,IF(K75=\"\",H75*G75,G75*K75))","v":0}]
[]
[null,"(e)  SUBTOTAL - MORTGAGE LOANS",null,null,null,null,{"$f":"SUM(G72:G76)","v":0},null,{"$f":"IF(SUM(I72:I75)>=0,SUM(I72:I75),0)","v":0},null,null,{"$f":"IF(SUM(L72:L75)>=0,SUM(L72:L75),0)","v":0}]
[]
[null,"(f) Other Fixed Income Investments"]
[]
[null,"Other Loans",null,null,null,null,{"$f":"'Form 1EBS'!F52","v":0},{"$f":"'Fixed Income Investments'!H79","v":0.05},{"$f":"IF(G81<0,0,G81*H81)","v":0},null,null,{"$f":"MAX(0,IF(K81=\"\",H81*G81,G81*K81))","v":0}]
[]
[null,"Cash and Cash Equivalent Counterparty Balances By BSCR Rating"]
[]
[null,"BSCR Rating 0 ",null,null,null,null,{"$f":"'Schedule XIXA'!F81","v":0},{"$f":"'Fixed Income Investments'!H83","v":0},{"$f":"IF(G85<0,0,G85*H85)","v":0},null,null,{"$f":"MAX(0,IF(K85=\"\",H85*G85,G85*K85))","v":0}]
[null,"BSCR Rating 1",null,null,null,null,{"$f":"'Schedule XIXA'!F82","v":0},{"$f":"'Fixed Income Investments'!H84","v":1E-3},{"$f":"IF(G86<0,0,G86*H86)","v":0},null,null,{"$f":"MAX(0,IF(K86=\"\",H86*G86,G86*K86))","v":0}]
[null,"BSCR Rating 2",null,null,null,null,{"$f":"'Schedule XIXA'!F83","v":0},{"$f":"'Fixed Income Investments'!H85","v":2E-3},0,null,null,0]
[null,"BSCR Rating 3",null,null,null,null,{"$f":"'Schedule XIXA'!F84","v":0},{"$f":"'Fixed Income Investments'!H86","v":3.0000000000000001E-3},0,null,null,0]
[null,"BSCR Rating 4",null,null,null,null,{"$f":"'Schedule XIXA'!F85","v":0},{"$f":"'Fixed Income Investments'!H87","v":5.0000000000000001E-3},0,null,null,0]
[null,"BSCR Rating 5",null,null,null,null,{"$f":"'Schedule XIXA'!F86","v":0},{"$f":"'Fixed Income Investments'!H88","v":1.4999999999999999E-2},0,null,null,0]
[null,"BSCR Rating 6",null,null,null,null,{"$f":"'Schedule XIXA'!F87","v":0},{"$f":"'Fixed Income Investments'!H89","v":0.04},0,null,null,0]
[null,"BSCR Rating 7",null,null,null,null,{"$f":"'Schedule XIXA'!F88","v":0},{"$f":"'Fixed Income Investments'!H90","v":0.06},0,null,null,0]
[null,"BSCR Rating 8",null,null,null,null,{"$f":"'Schedule XIXA'!F89","v":0},{"$f":"'Fixed Income Investments'!H91","v":0.09},0,null,null,0]
[]
[null,"Total",null,null,null,null,{"$f":"SUM(G85:G94)","v":0},null,{"$f":"SUM(I85:I94)","v":0},null,null,{"$f":"SUM(L85:L94)","v":0}]
[]
[null,"Diversification Adj at 40%",null,null,null,null,null,null,{"$f":"SUM(I85:I93)*-('Schedule XIXA'!F98)","v":0},null,null,{"$f":"SUM(L85:L93)*-('Schedule XIXA'!F98)","v":0}]
[]
[null,"(f)  SUBTOTAL - OTHER FIXED INCOME SECURITIES",null,null,null,null,{"$f":"G81+G95","v":0},null,{"$f":"IF(SUM(I81,I95,I97)>=0,SUM(I81,I95,I97),0)","v":0},null,null,{"$f":"IF(SUM(L81,L95,L97)>=0,SUM(L81,L95,L97),0)","v":0}]
[]
[null,"(g) Spread Risk for Credit Derivatives"]
[]
[null,null,null,"Spread Up"]
[null,null,null,"Long Exposures",null,"Short Exposures"]
[null,"Spread Up",null,"Before Shock","After Shock","Before Shock","After Shock"]
[null,"BSCR Rating 0 ",null,{"$f":"'Schedule IIB (EBS)'!D68+'Schedule IIC (EBS)'!D68+'Schedule IID (EBS)'!D68+'Schedule IIE (EBS)'!D68+'Schedule IIF (EBS)'!D68","v":0},{"$f":"'Schedule IIB (EBS)'!F68+'Schedule IIC (EBS)'!F68+'Schedule IID (EBS)'!F68+'Schedule IIE (EBS)'!F68+'Schedule IIF (EBS)'!F68","v":0},{"$f":"'Schedule IIB (EBS)'!H68+'Schedule IIC (EBS)'!H68+'Schedule IID (EBS)'!H68+'Schedule IIE (EBS)'!H68+'Schedule IIF (EBS)'!H68","v":0},{"$f":"'Schedule IIB (EBS)'!J68+'Schedule IIC (EBS)'!J68+'Schedule IID (EBS)'!J68+'Schedule IIE (EBS)'!J68+'Schedule IIF (EBS)'!J68","v":0},0,{"$f":"'Fixed Income Investments'!I105","v":0},null,null,{"$f":"IF(K106=\"\",I106,K106)","v":0}]
[null,"BSCR Rating 1",null,{"$f":"'Schedule IIB (EBS)'!D69+'Schedule IIC (EBS)'!D69+'Schedule IID (EBS)'!D69+'Schedule IIE (EBS)'!D69+'Schedule IIF (EBS)'!D69","v":0},{"$f":"'Schedule IIB (EBS)'!F69+'Schedule IIC (EBS)'!F69+'Schedule IID (EBS)'!F69+'Schedule IIE (EBS)'!F69+'Schedule IIF (EBS)'!F69","v":0},{"$f":"'Schedule IIB (EBS)'!H69+'Schedule IIC (EBS)'!H69+'Schedule IID (EBS)'!H69+'Schedule IIE (EBS)'!H69+'Schedule IIF (EBS)'!H69","v":0},{"$f":"'Schedule IIB (EBS)'!J69+'Schedule IIC (EBS)'!J69+'Schedule IID (EBS)'!J69+'Schedule IIE (EBS)'!J69+'Schedule IIF (EBS)'!J69","v":0},130,{"$f":"'Fixed Income Investments'!I106","v":0},null,null,{"$f":"IF(K107=\"\",I107,K107)","v":0}]
[null,"BSCR Rating 2",null,{"$f":"'Schedule IIB (EBS)'!D70+'Schedule IIC (EBS)'!D70+'Schedule IID (EBS)'!D70+'Schedule IIE (EBS)'!D70+'Schedule IIF (EBS)'!D70","v":0},{"$f":"'Schedule IIB (EBS)'!F70+'Schedule IIC (EBS)'!F70+'Schedule IID (EBS)'!F70+'Schedule IIE (EBS)'!F70+'Schedule IIF (EBS)'!F70","v":0},{"$f":"'Schedule IIB (EBS)'!H70+'Schedule IIC (EBS)'!H70+'Schedule IID (EBS)'!H70+'Schedule IIE (EBS)'!H70+'Schedule IIF (EBS)'!H70","v":0},{"$f":"'Schedule IIB (EBS)'!J70+'Schedule IIC (EBS)'!J70+'Schedule IID (EBS)'!J70+'Schedule IIE (EBS)'!J70+'Schedule IIF (EBS)'!J70","v":0},150,{"$f":"'Fixed Income Investments'!I107","v":0},null,null,0]
[null,"BSCR Rating 3",null,{"$f":"'Schedule IIB (EBS)'!D71+'Schedule IIC (EBS)'!D71+'Schedule IID (EBS)'!D71+'Schedule IIE (EBS)'!D71+'Schedule IIF (EBS)'!D71","v":0},{"$f":"'Schedule IIB (EBS)'!F71+'Schedule IIC (EBS)'!F71+'Schedule IID (EBS)'!F71+'Schedule IIE (EBS)'!F71+'Schedule IIF (EBS)'!F71","v":0},{"$f":"'Schedule IIB (EBS)'!H71+'Schedule IIC (EBS)'!H71+'Schedule IID (EBS)'!H71+'Schedule IIE (EBS)'!H71+'Schedule IIF (EBS)'!H71","v":0},{"$f":"'Schedule IIB (EBS)'!J71+'Schedule IIC (EBS)'!J71+'Schedule IID (EBS)'!J71+'Schedule IIE (EBS)'!J71+'Schedule IIF (EBS)'!J71","v":0},260,{"$f":"'Fixed Income Investments'!I108","v":0},null,null,0]
[null,"BSCR Rating 4",null,{"$f":"'Schedule IIB (EBS)'!D72+'Schedule IIC (EBS)'!D72+'Schedule IID (EBS)'!D72+'Schedule IIE (EBS)'!D72+'Schedule IIF (EBS)'!D72","v":0},{"$f":"'Schedule IIB (EBS)'!F72+'Schedule IIC (EBS)'!F72+'Schedule IID (EBS)'!F72+'Schedule IIE (EBS)'!F72+'Schedule IIF (EBS)'!F72","v":0},{"$f":"'Schedule IIB (EBS)'!H72+'Schedule IIC (EBS)'!H72+'Schedule IID (EBS)'!H72+'Schedule IIE (EBS)'!H72+'Schedule IIF (EBS)'!H72","v":0},{"$f":"'Schedule IIB (EBS)'!J72+'Schedule IIC (EBS)'!J72+'Schedule IID (EBS)'!J72+'Schedule IIE (EBS)'!J72+'Schedule IIF (EBS)'!J72","v":0},450,{"$f":"'Fixed Income Investments'!I109","v":0},null,null,0]
[null,"BSCR Rating 5",null,{"$f":"'Schedule IIB (EBS)'!D73+'Schedule IIC (EBS)'!D73+'Schedule IID (EBS)'!D73+'Schedule IIE (EBS)'!D73+'Schedule IIF (EBS)'!D73","v":0},{"$f":"'Schedule IIB (EBS)'!F73+'Schedule IIC (EBS)'!F73+'Schedule IID (EBS)'!F73+'Schedule IIE (EBS)'!F73+'Schedule IIF (EBS)'!F73","v":0},{"$f":"'Schedule IIB (EBS)'!H73+'Schedule IIC (EBS)'!H73+'Schedule IID (EBS)'!H73+'Schedule IIE (EBS)'!H73+'Schedule IIF (EBS)'!H73","v":0},{"$f":"'Schedule IIB (EBS)'!J73+'Schedule IIC (EBS)'!J73+'Schedule IID (EBS)'!J73+'Schedule IIE (EBS)'!J73+'Schedule IIF (EBS)'!J73","v":0},840,{"$f":"'Fixed Income Investments'!I110","v":0},null,null,0]
[null,"BSCR Rating 6",null,{"$f":"'Schedule IIB (EBS)'!D74+'Schedule IIC (EBS)'!D74+'Schedule IID (EBS)'!D74+'Schedule IIE (EBS)'!D74+'Schedule IIF (EBS)'!D74","v":0},{"$f":"'Schedule IIB (EBS)'!F74+'Schedule IIC (EBS)'!F74+'Schedule IID (EBS)'!F74+'Schedule IIE (EBS)'!F74+'Schedule IIF (EBS)'!F74","v":0},{"$f":"'Schedule IIB (EBS)'!H74+'Schedule IIC (EBS)'!H74+'Schedule IID (EBS)'!H74+'Schedule IIE (EBS)'!H74+'Schedule IIF (EBS)'!H74","v":0},{"$f":"'Schedule IIB (EBS)'!J74+'Schedule IIC (EBS)'!J74+'Schedule IID (EBS)'!J74+'Schedule IIE (EBS)'!J74+'Schedule IIF (EBS)'!J74","v":0},1620,{"$f":"'Fixed Income Investments'!I111","v":0},null,null,0]
[null,"BSCR Rating 7",null,{"$f":"'Schedule IIB (EBS)'!D75+'Schedule IIC (EBS)'!D75+'Schedule IID (EBS)'!D75+'Schedule IIE (EBS)'!D75+'Schedule IIF (EBS)'!D75","v":0},{"$f":"'Schedule IIB (EBS)'!F75+'Schedule IIC (EBS)'!F75+'Schedule IID (EBS)'!F75+'Schedule IIE (EBS)'!F75+'Schedule IIF (EBS)'!F75","v":0},{"$f":"'Schedule IIB (EBS)'!H75+'Schedule IIC (EBS)'!H75+'Schedule IID (EBS)'!H75+'Schedule IIE (EBS)'!H75+'Schedule IIF (EBS)'!H75","v":0},{"$f":"'Schedule IIB (EBS)'!J75+'Schedule IIC (EBS)'!J75+'Schedule IID (EBS)'!J75+'Schedule IIE (EBS)'!J75+'Schedule IIF (EBS)'!J75","v":0},1620,{"$f":"'Fixed Income Investments'!I112","v":0},null,null,0]
[null,"BSCR Rating 8",null,{"$f":"'Schedule IIB (EBS)'!D76+'Schedule IIC (EBS)'!D76+'Schedule IID (EBS)'!D76+'Schedule IIE (EBS)'!D76+'Schedule IIF (EBS)'!D76","v":0},{"$f":"'Schedule IIB (EBS)'!F76+'Schedule IIC (EBS)'!F76+'Schedule IID (EBS)'!F76+'Schedule IIE (EBS)'!F76+'Schedule IIF (EBS)'!F76","v":0},{"$f":"'Schedule IIB (EBS)'!H76+'Schedule IIC (EBS)'!H76+'Schedule IID (EBS)'!H76+'Schedule IIE (EBS)'!H76+'Schedule IIF (EBS)'!H76","v":0},{"$f":"'Schedule IIB (EBS)'!J76+'Schedule IIC (EBS)'!J76+'Schedule IID (EBS)'!J76+'Schedule IIE (EBS)'!J76+'Schedule IIF (EBS)'!J76","v":0},1620,{"$f":"'Fixed Income Investments'!I113","v":0},null,null,0]
[null,"Total Spread Up",null,{"$f":"SUM(D106:D114)","v":0},{"$f":"SUM(E106:E114)","v":0},{"$f":"SUM(F106:F114)","v":0},{"$f":"SUM(G106:G114)","v":0},null,{"$f":"SUM(I106:I114)","v":0},null,{"$f":"SUM(K106:K114)","v":0},{"$f":"SUM(L106:L114)","v":0}]
[]
[null,null,null,"Spread Down"]
[null,null,null,"Long Exposures",null,"Short Exposures"]
[null,"Spread Up",null,"Before Shock","After Shock","Before Shock","After Shock"]
[null,"BSCR Rating 0 ",null,{"$f":"'Schedule IIB (EBS)'!N68+'Schedule IIC (EBS)'!N68+'Schedule IID (EBS)'!N68+'Schedule IIE (EBS)'!N68+'Schedule IIF (EBS)'!N68","v":0},{"$f":"'Schedule IIB (EBS)'!P68+'Schedule IIC (EBS)'!P68+'Schedule IID (EBS)'!P68+'Schedule IIE (EBS)'!P68+'Schedule IIF (EBS)'!P68","v":0},{"$f":"'Schedule IIB (EBS)'!R68+'Schedule IIC (EBS)'!R68+'Schedule IID (EBS)'!R68+'Schedule IIE (EBS)'!R68+'Schedule IIF (EBS)'!R68","v":0},{"$f":"'Schedule IIB (EBS)'!T68+'Schedule IIC (EBS)'!T68+'Schedule IID (EBS)'!T68+'Schedule IIE (EBS)'!T68+'Schedule IIF (EBS)'!T68","v":0},0,{"$f":"'Fixed Income Investments'!I120","v":0},null,null,{"$f":"IF(K120=\"\",I120,K120)","v":0}]
[null,"BSCR Rating 1",null,{"$f":"'Schedule IIB (EBS)'!N69+'Schedule IIC (EBS)'!N69+'Schedule IID (EBS)'!N69+'Schedule IIE (EBS)'!N69+'Schedule IIF (EBS)'!N69","v":0},{"$f":"'Schedule IIB (EBS)'!P69+'Schedule IIC (EBS)'!P69+'Schedule IID (EBS)'!P69+'Schedule IIE (EBS)'!P69+'Schedule IIF (EBS)'!P69","v":0},{"$f":"'Schedule IIB (EBS)'!R69+'Schedule IIC (EBS)'!R69+'Schedule IID (EBS)'!R69+'Schedule IIE (EBS)'!R69+'Schedule IIF (EBS)'!R69","v":0},{"$f":"'Schedule IIB (EBS)'!T69+'Schedule IIC (EBS)'!T69+'Schedule IID (EBS)'!T69+'Schedule IIE (EBS)'!T69+'Schedule IIF (EBS)'!T69","v":0},-0.75,{"$f":"'Fixed Income Investments'!I121","v":0},null,null,{"$f":"IF(K121=\"\",I121,K121)","v":0}]
[null,"BSCR Rating 2",null,{"$f":"'Schedule IIB (EBS)'!N70+'Schedule IIC (EBS)'!N70+'Schedule IID (EBS)'!N70+'Schedule IIE (EBS)'!N70+'Schedule IIF (EBS)'!N70","v":0},{"$f":"'Schedule IIB (EBS)'!P70+'Schedule IIC (EBS)'!P70+'Schedule IID (EBS)'!P70+'Schedule IIE (EBS)'!P70+'Schedule IIF (EBS)'!P70","v":0},{"$f":"'Schedule IIB (EBS)'!R70+'Schedule IIC (EBS)'!R70+'Schedule IID (EBS)'!R70+'Schedule IIE (EBS)'!R70+'Schedule IIF (EBS)'!R70","v":0},{"$f":"'Schedule IIB (EBS)'!T70+'Schedule IIC (EBS)'!T70+'Schedule IID (EBS)'!T70+'Schedule IIE (EBS)'!T70+'Schedule IIF (EBS)'!T70","v":0},-0.75,{"$f":"'Fixed Income Investments'!I122","v":0},null,null,0]
[null,"BSCR Rating 3",null,{"$f":"'Schedule IIB (EBS)'!N71+'Schedule IIC (EBS)'!N71+'Schedule IID (EBS)'!N71+'Schedule IIE (EBS)'!N71+'Schedule IIF (EBS)'!N71","v":0},{"$f":"'Schedule IIB (EBS)'!P71+'Schedule IIC (EBS)'!P71+'Schedule IID (EBS)'!P71+'Schedule IIE (EBS)'!P71+'Schedule IIF (EBS)'!P71","v":0},{"$f":"'Schedule IIB (EBS)'!R71+'Schedule IIC (EBS)'!R71+'Schedule IID (EBS)'!R71+'Schedule IIE (EBS)'!R71+'Schedule IIF (EBS)'!R71","v":0},{"$f":"'Schedule IIB (EBS)'!T71+'Schedule IIC (EBS)'!T71+'Schedule IID (EBS)'!T71+'Schedule IIE (EBS)'!T71+'Schedule IIF (EBS)'!T71","v":0},-0.75,{"$f":"'Fixed Income Investments'!I123","v":0},null,null,0]
[null,"BSCR Rating 4",null,{"$f":"'Schedule IIB (EBS)'!N72+'Schedule IIC (EBS)'!N72+'Schedule IID (EBS)'!N72+'Schedule IIE (EBS)'!N72+'Schedule IIF (EBS)'!N72","v":0},{"$f":"'Schedule IIB (EBS)'!P72+'Schedule IIC (EBS)'!P72+'Schedule IID (EBS)'!P72+'Schedule IIE (EBS)'!P72+'Schedule IIF (EBS)'!P72","v":0},{"$f":"'Schedule IIB (EBS)'!R72+'Schedule IIC (EBS)'!R72+'Schedule IID (EBS)'!R72+'Schedule IIE (EBS)'!R72+'Schedule IIF (EBS)'!R72","v":0},{"$f":"'Schedule IIB (EBS)'!T72+'Schedule IIC (EBS)'!T72+'Schedule IID (EBS)'!T72+'Schedule IIE (EBS)'!T72+'Schedule IIF (EBS)'!T72","v":0},-0.75,{"$f":"'Fixed Income Investments'!I124","v":0},null,null,0]
[null,"BSCR Rating 5",null,{"$f":"'Schedule IIB (EBS)'!N73+'Schedule IIC (EBS)'!N73+'Schedule IID (EBS)'!N73+'Schedule IIE (EBS)'!N73+'Schedule IIF (EBS)'!N73","v":0},{"$f":"'Schedule IIB (EBS)'!P73+'Schedule IIC (EBS)'!P73+'Schedule IID (EBS)'!P73+'Schedule IIE (EBS)'!P73+'Schedule IIF (EBS)'!P73","v":0},{"$f":"'Schedule IIB (EBS)'!R73+'Schedule IIC (EBS)'!R73+'Schedule IID (EBS)'!R73+'Schedule IIE (EBS)'!R73+'Schedule IIF (EBS)'!R73","v":0},{"$f":"'Schedule IIB (EBS)'!T73+'Schedule IIC (EBS)'!T73+'Schedule IID (EBS)'!T73+'Schedule IIE (EBS)'!T73+'Schedule IIF (EBS)'!T73","v":0},-0.75,{"$f":"'Fixed Income Investments'!I125","v":0},null,null,0]
[null,"BSCR Rating 6",null,{"$f":"'Schedule IIB (EBS)'!N74+'Schedule IIC (EBS)'!N74+'Schedule IID (EBS)'!N74+'Schedule IIE (EBS)'!N74+'Schedule IIF (EBS)'!N74","v":0},{"$f":"'Schedule IIB (EBS)'!P74+'Schedule IIC (EBS)'!P74+'Schedule IID (EBS)'!P74+'Schedule IIE (EBS)'!P74+'Schedule IIF (EBS)'!P74","v":0},{"$f":"'Schedule IIB (EBS)'!R74+'Schedule IIC (EBS)'!R74+'Schedule IID (EBS)'!R74+'Schedule IIE (EBS)'!R74+'Schedule IIF (EBS)'!R74","v":0},{"$f":"'Schedule IIB (EBS)'!T74+'Schedule IIC (EBS)'!T74+'Schedule IID (EBS)'!T74+'Schedule IIE (EBS)'!T74+'Schedule IIF (EBS)'!T74","v":0},-0.75,{"$f":"'Fixed Income Investments'!I126","v":0},null,null,0]
[null,"BSCR Rating 7",null,{"$f":"'Schedule IIB (EBS)'!N75+'Schedule IIC (EBS)'!N75+'Schedule IID (EBS)'!N75+'Schedule IIE (EBS)'!N75+'Schedule IIF (EBS)'!N75","v":0},{"$f":"'Schedule IIB (EBS)'!P75+'Schedule IIC (EBS)'!P75+'Schedule IID (EBS)'!P75+'Schedule IIE (EBS)'!P75+'Schedule IIF (EBS)'!P75","v":0},{"$f":"'Schedule IIB (EBS)'!R75+'Schedule IIC (EBS)'!R75+'Schedule IID (EBS)'!R75+'Schedule IIE (EBS)'!R75+'Schedule IIF (EBS)'!R75","v":0},{"$f":"'Schedule IIB (EBS)'!T75+'Schedule IIC (EBS)'!T75+'Schedule IID (EBS)'!T75+'Schedule IIE (EBS)'!T75+'Schedule IIF (EBS)'!T75","v":0},-0.75,{"$f":"'Fixed Income Investments'!I127","v":0},null,null,{"$f":"IF(K127=\"\",I127,K127)","v":0}]
[null,"BSCR Rating 8",null,{"$f":"'Schedule IIB (EBS)'!N76+'Schedule IIC (EBS)'!N76+'Schedule IID (EBS)'!N76+'Schedule IIE (EBS)'!N76+'Schedule IIF (EBS)'!N76","v":0},{"$f":"'Schedule IIB (EBS)'!P76+'Schedule IIC (EBS)'!P76+'Schedule IID (EBS)'!P76+'Schedule IIE (EBS)'!P76+'Schedule IIF (EBS)'!P76","v":0},{"$f":"'Schedule IIB (EBS)'!R76+'Schedule IIC (EBS)'!R76+'Schedule IID (EBS)'!R76+'Schedule IIE (EBS)'!R76+'Schedule IIF (EBS)'!R76","v":0},{"$f":"'Schedule IIB (EBS)'!T76+'Schedule IIC (EBS)'!T76+'Schedule IID (EBS)'!T76+'Schedule IIE (EBS)'!T76+'Schedule IIF (EBS)'!T76","v":0},-0.75,{"$f":"'Fixed Income Investments'!I128","v":0},null,null,0]
[null,"Total Spread Down",null,{"$f":"SUM(D120:D128)","v":0},{"$f":"SUM(E120:E128)","v":0},{"$f":"SUM(F120:F128)","v":0},{"$f":"SUM(G120:G128)","v":0},null,{"$f":"SUM(I120:I128)","v":0},null,{"$f":"SUM(K120:K128)","v":0},{"$f":"SUM(L120:L128)","v":0}]
[]
[null,"Spread Up",null,null,null,null,null,null,{"$f":"I115","v":0},null,null,{"$f":"L115","v":0}]
[null,"Spread Down",null,null,null,null,null,null,{"$f":"I129","v":0},null,null,{"$f":"L129","v":0}]
[]
[null,"(g) Total Spread Risk",null,null,null,null,null,null,{"$f":"MAX(0,I131,I132)","v":0},null,null,{"$f":"MAX(0,L131,L132)","v":0}]
[]
[null,"(h)  TOTAL FIXED INCOME INVESTMENTS [ (a)+(b)+(c)+(d)+(e)+(f)+(g) ]",null,null,null,null,{"$f":"G25+G39+G53+G68+G77+G99","v":0},null,{"$f":"IF(SUM(I25+I39+I53+I68+I77+I99+I134)>=0,SUM(I25+I39+I53+I68+I77+I99+I134),0)","v":0},null,null,{"$f":"IF(SUM(L25+L39+L53+L68+L77+L99+L134)>=0,SUM(L25+L39+L53+L68+L77+L99+L134),0)","v":0}]
[]
[null,null,null,"ASSETS",null,null,"LIABILITIES","STANDARD","STANDARD",null,"USER","USER"]
[null,"TYPE OF ",null,"Long Exposures","Short Exposures",null,null,"CAPITAL","REQUIRED",null,"CAPITAL","REQUIRED"]
[null,"EQUITY INVESTMENTS",null,"Qualified Assets","Qualified Assets","Not Qual. Assets",null,"FACTOR","CAPITAL",null,"FACTOR","CAPITAL"]
[]
[null,"Type 1 Equity Holdings"]
[null,"Strategic Holdings - Listed",null,{"$f":"'Schedule IIB (EBS)'!D39+'Schedule IIC (EBS)'!D39+'Schedule IID (EBS)'!D39+'Schedule IIE (EBS)'!D39+'Schedule IIF (EBS)'!D39","v":0},{"$f":"'Schedule IIB (EBS)'!H39+'Schedule IIC (EBS)'!H39+'Schedule IID (EBS)'!H39+'Schedule IIE (EBS)'!H39+'Schedule IIF (EBS)'!H39","v":0},{"$f":"'Schedule IIB (EBS)'!L39+'Schedule IIC (EBS)'!L39+'Schedule IID (EBS)'!L39+'Schedule IIE (EBS)'!L39+'Schedule IIF (EBS)'!L39","v":0},{"$f":"'Schedule IIB (EBS)'!P39+'Schedule IIC (EBS)'!P39+'Schedule IID (EBS)'!P39+'Schedule IIE (EBS)'!P39+'Schedule IIF (EBS)'!P39","v":0},{"$f":"'Equity Investments'!N11","v":0.2},{"$f":"'Equity Investments'!P11","v":0},null,null,{"$f":"IF(K143=\"\",I143,K143*(SUM(D143:F143)))","v":0}]
[null,"Duration Based",null,{"$f":"'Schedule IIB (EBS)'!D40+'Schedule IIC (EBS)'!D40+'Schedule IID (EBS)'!D40+'Schedule IIE (EBS)'!D40+'Schedule IIF (EBS)'!D40","v":0},{"$f":"'Schedule IIB (EBS)'!H40+'Schedule IIC (EBS)'!H40+'Schedule IID (EBS)'!H40+'Schedule IIE (EBS)'!H40+'Schedule IIF (EBS)'!H40","v":0},{"$f":"'Schedule IIB (EBS)'!L40+'Schedule IIC (EBS)'!L40+'Schedule IID (EBS)'!L40+'Schedule IIE (EBS)'!L40+'Schedule IIF (EBS)'!L40","v":0},{"$f":"'Schedule IIB (EBS)'!P40+'Schedule IIC (EBS)'!P40+'Schedule IID (EBS)'!P40+'Schedule IIE (EBS)'!P40+'Schedule IIF (EBS)'!P40","v":0},{"$f":"'Equity Investments'!N12","v":0.2},{"$f":"'Equity Investments'!P12","v":0},null,null,{"$f":"IF(K144=\"\",I144,K144*(SUM(D144:F144)))","v":0}]
[null,"Listed Equity Securities in Developed Markets",null,{"$f":"'Schedule IIB (EBS)'!D41+'Schedule IIC (EBS)'!D41+'Schedule IID (EBS)'!D41+'Schedule IIE (EBS)'!D41+'Schedule IIF (EBS)'!D41","v":0},{"$f":"'Schedule IIB (EBS)'!H41+'Schedule IIC (EBS)'!H41+'Schedule IID (EBS)'!H41+'Schedule IIE (EBS)'!H41+'Schedule IIF (EBS)'!H41","v":0},{"$f":"'Schedule IIB (EBS)'!L41+'Schedule IIC (EBS)'!L41+'Schedule IID (EBS)'!L41+'Schedule IIE (EBS)'!L41+'Schedule IIF (EBS)'!L41","v":0},{"$f":"'Schedule IIB (EBS)'!P41+'Schedule IIC (EBS)'!P41+'Schedule IID (EBS)'!P41+'Schedule IIE (EBS)'!P41+'Schedule IIF (EBS)'!P41","v":0},{"$f":"'Equity Investments'!N13","v":0.35},{"$f":"'Equity Investments'!P13","v":0},null,null,0]
[null,"Preferred Stocks, BSCR Rating 1",null,{"$f":"'Schedule IIB (EBS)'!D42+'Schedule IIC (EBS)'!D42+'Schedule IID (EBS)'!D42+'Schedule IIE (EBS)'!D42+'Schedule IIF (EBS)'!D42","v":0},{"$f":"'Schedule IIB (EBS)'!H42+'Schedule IIC (EBS)'!H42+'Schedule IID (EBS)'!H42+'Schedule IIE (EBS)'!H42+'Schedule IIF (EBS)'!H42","v":0},{"$f":"'Schedule IIB (EBS)'!L42+'Schedule IIC (EBS)'!L42+'Schedule IID (EBS)'!L42+'Schedule IIE (EBS)'!L42+'Schedule IIF (EBS)'!L42","v":0},{"$f":"'Schedule IIB (EBS)'!P42+'Schedule IIC (EBS)'!P42+'Schedule IID (EBS)'!P42+'Schedule IIE (EBS)'!P42+'Schedule IIF (EBS)'!P42","v":0},{"$f":"'Equity Investments'!N14","v":6.0000000000000001E-3},{"$f":"'Equity Investments'!P14","v":0},null,null,0]
[null,"Preferred Stocks, BSCR Rating 2",null,{"$f":"'Schedule IIB (EBS)'!D43+'Schedule IIC (EBS)'!D43+'Schedule IID (EBS)'!D43+'Schedule IIE (EBS)'!D43+'Schedule IIF (EBS)'!D43","v":0},{"$f":"'Schedule IIB (EBS)'!H43+'Schedule IIC (EBS)'!H43+'Schedule IID (EBS)'!H43+'Schedule IIE (EBS)'!H43+'Schedule IIF (EBS)'!H43","v":0},{"$f":"'Schedule IIB (EBS)'!L43+'Schedule IIC (EBS)'!L43+'Schedule IID (EBS)'!L43+'Schedule IIE (EBS)'!L43+'Schedule IIF (EBS)'!L43","v":0},{"$f":"'Schedule IIB (EBS)'!P43+'Schedule IIC (EBS)'!P43+'Schedule IID (EBS)'!P43+'Schedule IIE (EBS)'!P43+'Schedule IIF (EBS)'!P43","v":0},{"$f":"'Equity Investments'!N15","v":1.2E-2},{"$f":"'Equity Investments'!P15","v":0},null,null,0]
[null,"Preferred Stocks, BSCR Rating 3",null,{"$f":"'Schedule IIB (EBS)'!D44+'Schedule IIC (EBS)'!D44+'Schedule IID (EBS)'!D44+'Schedule IIE (EBS)'!D44+'Schedule IIF (EBS)'!D44","v":0},{"$f":"'Schedule IIB (EBS)'!H44+'Schedule IIC (EBS)'!H44+'Schedule IID (EBS)'!H44+'Schedule IIE (EBS)'!H44+'Schedule IIF (EBS)'!H44","v":0},{"$f":"'Schedule IIB (EBS)'!L44+'Schedule IIC (EBS)'!L44+'Schedule IID (EBS)'!L44+'Schedule IIE (EBS)'!L44+'Schedule IIF (EBS)'!L44","v":0},{"$f":"'Schedule IIB (EBS)'!P44+'Schedule IIC (EBS)'!P44+'Schedule IID (EBS)'!P44+'Schedule IIE (EBS)'!P44+'Schedule IIF (EBS)'!P44","v":0},{"$f":"'Equity Investments'!N16","v":0.02},{"$f":"'Equity Investments'!P16","v":0},null,null,0]
[null,"Preferred Stocks, BSCR Rating 4",null,{"$f":"'Schedule IIB (EBS)'!D45+'Schedule IIC (EBS)'!D45+'Schedule IID (EBS)'!D45+'Schedule IIE (EBS)'!D45+'Schedule IIF (EBS)'!D45","v":0},{"$f":"'Schedule IIB (EBS)'!H45+'Schedule IIC (EBS)'!H45+'Schedule IID (EBS)'!H45+'Schedule IIE (EBS)'!H45+'Schedule IIF (EBS)'!H45","v":0},{"$f":"'Schedule IIB (EBS)'!L45+'Schedule IIC (EBS)'!L45+'Schedule IID (EBS)'!L45+'Schedule IIE (EBS)'!L45+'Schedule IIF (EBS)'!L45","v":0},{"$f":"'Schedule IIB (EBS)'!P45+'Schedule IIC (EBS)'!P45+'Schedule IID (EBS)'!P45+'Schedule IIE (EBS)'!P45+'Schedule IIF (EBS)'!P45","v":0},{"$f":"'Equity Investments'!N17","v":0.04},{"$f":"'Equity Investments'!P17","v":0},null,null,0]
[null,"Preferred Stocks, BSCR Rating 5",null,{"$f":"'Schedule IIB (EBS)'!D46+'Schedule IIC (EBS)'!D46+'Schedule IID (EBS)'!D46+'Schedule IIE (EBS)'!D46+'Schedule IIF (EBS)'!D46","v":0},{"$f":"'Schedule IIB (EBS)'!H46+'Schedule IIC (EBS)'!H46+'Schedule IID (EBS)'!H46+'Schedule IIE (EBS)'!H46+'Schedule IIF (EBS)'!H46","v":0},{"$f":"'Schedule IIB (EBS)'!L46+'Schedule IIC (EBS)'!L46+'Schedule IID (EBS)'!L46+'Schedule IIE (EBS)'!L46+'Schedule IIF (EBS)'!L46","v":0},{"$f":"'Schedule IIB (EBS)'!P46+'Schedule IIC (EBS)'!P46+'Schedule IID (EBS)'!P46+'Schedule IIE (EBS)'!P46+'Schedule IIF (EBS)'!P46","v":0},{"$f":"'Equity Investments'!N18","v":0.11},{"$f":"'Equity Investments'!P18","v":0},null,null,0]
[null,"Preferred Stocks, BSCR Rating 6",null,{"$f":"'Schedule IIB (EBS)'!D47+'Schedule IIC (EBS)'!D47+'Schedule IID (EBS)'!D47+'Schedule IIE (EBS)'!D47+'Schedule IIF (EBS)'!D47","v":0},{"$f":"'Schedule IIB (EBS)'!H47+'Schedule IIC (EBS)'!H47+'Schedule IID (EBS)'!H47+'Schedule IIE (EBS)'!H47+'Schedule IIF (EBS)'!H47","v":0},{"$f":"'Schedule IIB (EBS)'!L47+'Schedule IIC (EBS)'!L47+'Schedule IID (EBS)'!L47+'Schedule IIE (EBS)'!L47+'Schedule IIF (EBS)'!L47","v":0},{"$f":"'Schedule IIB (EBS)'!P47+'Schedule IIC (EBS)'!P47+'Schedule IID (EBS)'!P47+'Schedule IIE (EBS)'!P47+'Schedule IIF (EBS)'!P47","v":0},{"$f":"'Equity Investments'!N19","v":0.25},{"$f":"'Equity Investments'!P19","v":0},null,null,0]
[null,"Preferred Stocks, BSCR Rating 7",null,{"$f":"'Schedule IIB (EBS)'!D48+'Schedule IIC (EBS)'!D48+'Schedule IID (EBS)'!D48+'Schedule IIE (EBS)'!D48+'Schedule IIF (EBS)'!D48","v":0},{"$f":"'Schedule IIB (EBS)'!H48+'Schedule IIC (EBS)'!H48+'Schedule IID (EBS)'!H48+'Schedule IIE (EBS)'!H48+'Schedule IIF (EBS)'!H48","v":0},{"$f":"'Schedule IIB (EBS)'!L48+'Schedule IIC (EBS)'!L48+'Schedule IID (EBS)'!L48+'Schedule IIE (EBS)'!L48+'Schedule IIF (EBS)'!L48","v":0},{"$f":"'Schedule IIB (EBS)'!P48+'Schedule IIC (EBS)'!P48+'Schedule IID (EBS)'!P48+'Schedule IIE (EBS)'!P48+'Schedule IIF (EBS)'!P48","v":0},{"$f":"'Equity Investments'!N20","v":0.35},{"$f":"'Equity Investments'!P20","v":0},null,null,0]
[null,"Preferred Stocks, BSCR Rating 8",null,{"$f":"'Schedule IIB (EBS)'!D49+'Schedule IIC (EBS)'!D49+'Schedule IID (EBS)'!D49+'Schedule IIE (EBS)'!D49+'Schedule IIF (EBS)'!D49","v":0},{"$f":"'Schedule IIB (EBS)'!H49+'Schedule IIC (EBS)'!H49+'Schedule IID (EBS)'!H49+'Schedule IIE (EBS)'!H49+'Schedule IIF (EBS)'!H49","v":0},{"$f":"'Schedule IIB (EBS)'!L49+'Schedule IIC (EBS)'!L49+'Schedule IID (EBS)'!L49+'Schedule IIE (EBS)'!L49+'Schedule IIF (EBS)'!L49","v":0},{"$f":"'Schedule IIB (EBS)'!P49+'Schedule IIC (EBS)'!P49+'Schedule IID (EBS)'!P49+'Schedule IIE (EBS)'!P49+'Schedule IIF (EBS)'!P49","v":0},{"$f":"'Equity Investments'!N21","v":0.35},{"$f":"'Equity Investments'!P21","v":0},null,null,0]
[null,"Equity Derivatives on Type 1 Equities",null,{"$f":"'Schedule IIB (EBS)'!D50+'Schedule IIC (EBS)'!D50+'Schedule IID (EBS)'!D50+'Schedule IIE (EBS)'!D50+'Schedule IIF (EBS)'!D50","v":0},{"$f":"'Schedule IIB (EBS)'!H50+'Schedule IIC (EBS)'!H50+'Schedule IID (EBS)'!H50+'Schedule IIE (EBS)'!H50+'Schedule IIF (EBS)'!H50","v":0},{"$f":"'Schedule IIB (EBS)'!L50+'Schedule IIC (EBS)'!L50+'Schedule IID (EBS)'!L50+'Schedule IIE (EBS)'!L50+'Schedule IIF (EBS)'!L50","v":0},{"$f":"'Schedule IIB (EBS)'!P50+'Schedule IIC (EBS)'!P50+'Schedule IID (EBS)'!P50+'Schedule IIE (EBS)'!P50+'Schedule IIF (EBS)'!P50","v":0},{"$f":"'Equity Investments'!N22","v":0.35},{"$f":"'Equity Investments'!P22","v":0},null,null,0]
[]
[null,"Subtotal - Type 1 Equity Holdings",null,{"$f":"SUM(D143:D155)","v":0},{"$f":"SUM(E143:E155)","v":0},{"$f":"SUM(F143:F155)","v":0},{"$f":"SUM(G143:G155)","v":0},null,{"$f":"MAX(SUM(I143:I154),0)","v":0},null,null,{"$f":"MAX(SUM(L143:L154),0)","v":0}]
[]
[null,"Type 2 Equity Holdings"]
[null,"Strategic Holdings - Unlisted",null,{"$f":"'Schedule IIB (EBS)'!D51+'Schedule IIC (EBS)'!D51+'Schedule IID (EBS)'!D51+'Schedule IIE (EBS)'!D51+'Schedule IIF (EBS)'!D51","v":0},{"$f":"'Schedule IIB (EBS)'!H51+'Schedule IIC (EBS)'!H51+'Schedule IID (EBS)'!H51+'Schedule IIE (EBS)'!H51+'Schedule IIF (EBS)'!H51","v":0},{"$f":"'Schedule IIB (EBS)'!L51+'Schedule IIC (EBS)'!L51+'Schedule IID (EBS)'!L51+'Schedule IIE (EBS)'!L51+'Schedule IIF (EBS)'!L51","v":0},{"$f":"'Schedule IIB (EBS)'!P51+'Schedule IIC (EBS)'!P51+'Schedule IID (EBS)'!P51+'Schedule IIE (EBS)'!P51+'Schedule IIF (EBS)'!P51","v":0},{"$f":"'Equity Investments'!N27","v":0.2},{"$f":"'Equity Investments'!P27","v":0},null,null,{"$f":"IF(K159=\"\",I159,K159*(SUM(D159:F159)))","v":0}]
[null,"Other Equities",null,{"$f":"'Schedule IIB (EBS)'!D52+'Schedule IIC (EBS)'!D52+'Schedule IID (EBS)'!D52+'Schedule IIE (EBS)'!D52+'Schedule IIF (EBS)'!D52","v":0},{"$f":"'Schedule IIB (EBS)'!H52+'Schedule IIC (EBS)'!H52+'Schedule IID (EBS)'!H52+'Schedule IIE (EBS)'!H52+'Schedule IIF (EBS)'!H52","v":0},{"$f":"'Schedule IIB (EBS)'!L52+'Schedule IIC (EBS)'!L52+'Schedule IID (EBS)'!L52+'Schedule IIE (EBS)'!L52+'Schedule IIF (EBS)'!L52","v":0},{"$f":"'Schedule IIB (EBS)'!P52+'Schedule IIC (EBS)'!P52+'Schedule IID (EBS)'!P52+'Schedule IIE (EBS)'!P52+'Schedule IIF (EBS)'!P52","v":0},{"$f":"'Equity Investments'!N28","v":0.45},{"$f":"'Equity Investments'!P28","v":0},null,null,0]
[null,"Letters of Credit",null,{"$f":"'Schedule IIB (EBS)'!D53+'Schedule IIC (EBS)'!D53+'Schedule IID (EBS)'!D53+'Schedule IIE (EBS)'!D53+'Schedule IIF (EBS)'!D53","v":0},{"$f":"'Schedule IIB (EBS)'!H53+'Schedule IIC (EBS)'!H53+'Schedule IID (EBS)'!H53+'Schedule IIE (EBS)'!H53+'Schedule IIF (EBS)'!H53","v":0},{"$f":"'Schedule IIB (EBS)'!L53+'Schedule IIC (EBS)'!L53+'Schedule IID (EBS)'!L53+'Schedule IIE (EBS)'!L53+'Schedule IIF (EBS)'!L53","v":0},{"$f":"'Schedule IIB (EBS)'!P53+'Schedule IIC (EBS)'!P53+'Schedule IID (EBS)'!P53+'Schedule IIE (EBS)'!P53+'Schedule IIF (EBS)'!P53","v":0},{"$f":"'Equity Investments'!N29","v":0.2},{"$f":"'Equity Investments'!P29","v":0},null,null,0]
[null,"Intangible assets",null,{"$f":"'Schedule IIB (EBS)'!D54+'Schedule IIC (EBS)'!D54+'Schedule IID (EBS)'!D54+'Schedule IIE (EBS)'!D54+'Schedule IIF (EBS)'!D54","v":0},{"$f":"'Schedule IIB (EBS)'!H54+'Schedule IIC (EBS)'!H54+'Schedule IID (EBS)'!H54+'Schedule IIE (EBS)'!H54+'Schedule IIF (EBS)'!H54","v":0},{"$f":"'Schedule IIB (EBS)'!L54+'Schedule IIC (EBS)'!L54+'Schedule IID (EBS)'!L54+'Schedule IIE (EBS)'!L54+'Schedule IIF (EBS)'!L54","v":0},{"$f":"'Schedule IIB (EBS)'!P54+'Schedule IIC (EBS)'!P54+'Schedule IID (EBS)'!P54+'Schedule IIE (EBS)'!P54+'Schedule IIF (EBS)'!P54","v":0},{"$f":"'Equity Investments'!N30","v":0.2},{"$f":"'Equity Investments'!P30","v":0},null,null,0]
[null,"Pension Benefit Surplus",null,{"$f":"'Schedule IIB (EBS)'!D55+'Schedule IIC (EBS)'!D55+'Schedule IID (EBS)'!D55+'Schedule IIE (EBS)'!D55+'Schedule IIF (EBS)'!D55","v":0},{"$f":"'Schedule IIB (EBS)'!H55+'Schedule IIC (EBS)'!H55+'Schedule IID (EBS)'!H55+'Schedule IIE (EBS)'!H55+'Schedule IIF (EBS)'!H55","v":0},{"$f":"'Schedule IIB (EBS)'!L55+'Schedule IIC (EBS)'!L55+'Schedule IID (EBS)'!L55+'Schedule IIE (EBS)'!L55+'Schedule IIF (EBS)'!L55","v":0},{"$f":"'Schedule IIB (EBS)'!P55+'Schedule IIC (EBS)'!P55+'Schedule IID (EBS)'!P55+'Schedule IIE (EBS)'!P55+'Schedule IIF (EBS)'!P55","v":0},{"$f":"'Equity Investments'!N31","v":0.2},{"$f":"'Equity Investments'!P31","v":0},null,null,0]
[null,"Equity Derivatives on Type 2 Equities",null,{"$f":"'Schedule IIB (EBS)'!D56+'Schedule IIC (EBS)'!D56+'Schedule IID (EBS)'!D56+'Schedule IIE (EBS)'!D56+'Schedule IIF (EBS)'!D56","v":0},{"$f":"'Schedule IIB (EBS)'!H56+'Schedule IIC (EBS)'!H56+'Schedule IID (EBS)'!H56+'Schedule IIE (EBS)'!H56+'Schedule IIF (EBS)'!H56","v":0},{"$f":"'Schedule IIB (EBS)'!L56+'Schedule IIC (EBS)'!L56+'Schedule IID (EBS)'!L56+'Schedule IIE (EBS)'!L56+'Schedule IIF (EBS)'!L56","v":0},{"$f":"'Schedule IIB (EBS)'!P56+'Schedule IIC (EBS)'!P56+'Schedule IID (EBS)'!P56+'Schedule IIE (EBS)'!P56+'Schedule IIF (EBS)'!P56","v":0},{"$f":"'Equity Investments'!N32","v":0.45},{"$f":"'Equity Investments'!P32","v":0},null,null,0]
[]
[null,"Subtotal - Type 2 Equity Holdings",null,{"$f":"SUM(D159:D165)","v":0},{"$f":"SUM(E159:E165)","v":0},{"$f":"SUM(F159:F165)","v":0},{"$f":"SUM(G159:G165)","v":0},null,{"$f":"MAX(SUM(I159:I164),0)","v":0},null,null,{"$f":"MAX(SUM(L159:L164),0)","v":0}]
[]
[null,"Type 3 Equity Holdings"]
[null,"Infrastructure",null,{"$f":"'Schedule IIB (EBS)'!D57+'Schedule IIC (EBS)'!D57+'Schedule IID (EBS)'!D57+'Schedule IIE (EBS)'!D57+'Schedule IIF (EBS)'!D57","v":0},{"$f":"'Schedule IIB (EBS)'!H57+'Schedule IIC (EBS)'!H57+'Schedule IID (EBS)'!H57+'Schedule IIE (EBS)'!H57+'Schedule IIF (EBS)'!H57","v":0},{"$f":"'Schedule IIB (EBS)'!L57+'Schedule IIC (EBS)'!L57+'Schedule IID (EBS)'!L57+'Schedule IIE (EBS)'!L57+'Schedule IIF (EBS)'!L57","v":0},{"$f":"'Schedule IIB (EBS)'!P57+'Schedule IIC (EBS)'!P57+'Schedule IID (EBS)'!P57+'Schedule IIE (EBS)'!P57+'Schedule IIF (EBS)'!P57","v":0},{"$f":"'Equity Investments'!N37","v":0.25},{"$f":"'Equity Investments'!P37","v":0},null,null,{"$f":"IF(K169=\"\",I169,K169*(SUM(D169:F169)))","v":0}]
[null,"Derivatives on Infrastructure",null,{"$f":"'Schedule IIB (EBS)'!D58+'Schedule IIC (EBS)'!D58+'Schedule IID (EBS)'!D58+'Schedule IIE (EBS)'!D58+'Schedule IIF (EBS)'!D58","v":0},{"$f":"'Schedule IIB (EBS)'!H58+'Schedule IIC (EBS)'!H58+'Schedule IID (EBS)'!H58+'Schedule IIE (EBS)'!H58+'Schedule IIF (EBS)'!H58","v":0},{"$f":"'Schedule IIB (EBS)'!L58+'Schedule IIC (EBS)'!L58+'Schedule IID (EBS)'!L58+'Schedule IIE (EBS)'!L58+'Schedule IIF (EBS)'!L58","v":0},{"$f":"'Schedule IIB (EBS)'!P58+'Schedule IIC (EBS)'!P58+'Schedule IID (EBS)'!P58+'Schedule IIE (EBS)'!P58+'Schedule IIF (EBS)'!P58","v":0},{"$f":"'Equity Investments'!N38","v":0.25},{"$f":"'Equity Investments'!P38","v":0},null,null,0]
[]
[null,"Subtotal - Type 3 Equity Holdings",null,{"$f":"SUM(D169:D171)","v":0},{"$f":"SUM(E169:E171)","v":0},{"$f":"SUM(F169:F171)","v":0},{"$f":"SUM(G169:G171)","v":0},null,{"$f":"MAX(SUM(I169:I171),0)","v":0},null,null,{"$f":"MAX(SUM(L169:L171),0)","v":0}]
[]
[null,"Type 4 Equity Holdings"]
[null,"Equity Real Estate 1",null,{"$f":"'Schedule IIB (EBS)'!D59+'Schedule IIC (EBS)'!D59+'Schedule IID (EBS)'!D59+'Schedule IIE (EBS)'!D59+'Schedule IIF (EBS)'!D59","v":0},{"$f":"'Schedule IIB (EBS)'!H59+'Schedule IIC (EBS)'!H59+'Schedule IID (EBS)'!H59+'Schedule IIE (EBS)'!H59+'Schedule IIF (EBS)'!H59","v":0},{"$f":"'Schedule IIB (EBS)'!L59+'Schedule IIC (EBS)'!L59+'Schedule IID (EBS)'!L59+'Schedule IIE (EBS)'!L59+'Schedule IIF (EBS)'!L59","v":0},{"$f":"'Schedule IIB (EBS)'!P59+'Schedule IIC (EBS)'!P59+'Schedule IID (EBS)'!P59+'Schedule IIE (EBS)'!P59+'Schedule IIF (EBS)'!P59","v":0},{"$f":"'Equity Investments'!N43","v":0.1},{"$f":"'Equity Investments'!P43","v":0},null,null,{"$f":"IF(K175=\"\",I175,K175*(SUM(D175:F175)))","v":0}]
[null,"Equity Real Estate 2",null,{"$f":"'Schedule IIB (EBS)'!D60+'Schedule IIC (EBS)'!D60+'Schedule IID (EBS)'!D60+'Schedule IIE (EBS)'!D60+'Schedule IIF (EBS)'!D60","v":0},{"$f":"'Schedule IIB (EBS)'!H60+'Schedule IIC (EBS)'!H60+'Schedule IID (EBS)'!H60+'Schedule IIE (EBS)'!H60+'Schedule IIF (EBS)'!H60","v":0},{"$f":"'Schedule IIB (EBS)'!L60+'Schedule IIC (EBS)'!L60+'Schedule IID (EBS)'!L60+'Schedule IIE (EBS)'!L60+'Schedule IIF (EBS)'!L60","v":0},{"$f":"'Schedule IIB (EBS)'!P60+'Schedule IIC (EBS)'!P60+'Schedule IID (EBS)'!P60+'Schedule IIE (EBS)'!P60+'Schedule IIF (EBS)'!P60","v":0},{"$f":"'Equity Investments'!N44","v":0.2},{"$f":"'Equity Investments'!P44","v":0},null,null,0]
[]
[null,"Subtotal - Type 4 Equity Holdings",null,{"$f":"SUM(D175:D177)","v":0},{"$f":"SUM(E175:E177)","v":0},{"$f":"SUM(F175:F177)","v":0},{"$f":"SUM(G175:G177)","v":0},null,{"$f":"MAX(SUM(I175:I177),0)","v":0},null,null,{"$f":"MAX(SUM(L175:L177),0)","v":0}]
[]
[null,"Total Equity Risk before Diversification"]
[]
[null,"Correlation Matrix","Type 1","Type 2","Type 3","Type 4","W/O Mgmt. Action","Mgmt. Action",null,null,"W/O Mgmt. Action","Mgmt. Action"]
[null,"Type 1",1,0.75,0.75,0.5,{"$f":"I156","v":0},{"$f":"'Equity Investments'!R51","v":0},null,null,{"$f":"L156","v":0},{"$f":"H183","v":0}]
[null,"Type 2",0.75,1,0.75,0.5,{"$f":"I166","v":0},{"$f":"'Equity Investments'!R52","v":0},null,null,{"$f":"L166","v":0},{"$f":"H184","v":0}]
[null,"Type 3",0.75,0.75,1,0.5,{"$f":"I172","v":0},{"$f":"'Equity Investments'!R53","v":0},null,null,{"$f":"L172","v":0},0]
[null,"Type 4",0.5,0.5,0.5,1,{"$f":"I178","v":0},{"$f":"'Equity Investments'!R54","v":0},null,null,{"$f":"L178","v":0},0]
[]
[]
[]
[null,"(f)  TOTAL EQUITY INVESTMENTS (AFTER CORRELATION ADJUSTMENT)",null,null,null,null,{"$f":"SQRT(MMULT(TRANSPOSE(G183:G186),MMULT($C$183:$F$186,G183:G186)))","v":0},{"$f":"SQRT(MMULT(TRANSPOSE(H183:H186),MMULT($C$183:$F$186,H183:H186)))","v":0},null,null,{"$f":"SQRT(MMULT(TRANSPOSE(K183:K186),MMULT($C$183:$F$186,K183:K186)))","v":0},{"$f":"SQRT(MMULT(TRANSPOSE(L183:L186),MMULT($C$183:$F$186,L183:L186)))","v":0}]
[]
[null,null,null,null,null,null,null,"STANDARD","STANDARD",null,"USER","USER"]
[null,"TYPE OF ",null,null,null,null,"ASSET","CAPITAL","REQUIRED",null,"CAPITAL","REQUIRED"]
[null,"INTEREST RATE/LIQUIDITY RISK",null,"STATEMENT SOURCE",null,null,"VALUE","FACTOR","CAPITAL",null,"FACTOR","CAPITAL"]
[]
[null,"Bonds and Debentures ",null,"Sch IIB EBS & IIC EBS Column (11), Line 1-9",null,null,{"$f":"SUM('Schedule IIB (EBS)'!X13:X21)+SUM('Schedule IIC (EBS)'!X13:X21)","v":0},{"$f":"IF('Company Information'!F11=\"Class 3A\",IF(('Schedule V'!H12-'Schedule V'!H10)>3.5,3.5,MAX(1,'Schedule V'!H10-'Schedule V'!H12,'Schedule V'!H12-'Schedule V'!H10)),IF('Schedule V'!$H$10-'Schedule V'!$H$12>=1,'Schedule V'!$H$10-'Schedule V'!$H$12,IF('Schedule V'!$H$12-'Schedule V'!$H$10>=1,'Schedule V'!$H$12-'Schedule V'!$H$10,1)))*2%","v":0.02},{"$f":"IF(G196<0,0,G196*H196)","v":0},null,null,{"$f":"MAX(0,IF(K196=\"\",H196*G196,G196*K196))","v":0}]
[null,"Preferred Stocks ",null,"Sch IIB EBS & IIC EBS Column (11), Line 18-25",null,null,{"$f":"SUM('Schedule IIB (EBS)'!X42:X49)+SUM('Schedule IIC (EBS)'!X42:X49)","v":0},{"$f":"IF('Company Information'!F11=\"Class 3A\",IF(('Schedule V'!H12-'Schedule V'!H10)>3.5,3.5,MAX(1,'Schedule V'!H10-'Schedule V'!H12,'Schedule V'!H12-'Schedule V'!H10)),IF('Schedule V'!$H$10-'Schedule V'!$H$12>=1,'Schedule V'!$H$10-'Schedule V'!$H$12,IF('Schedule V'!$H$12-'Schedule V'!$H$10>=1,'Schedule V'!$H$12-'Schedule V'!$H$10,1)))*2%","v":0.02},{"$f":"IF(G197<0,0,G197*H197)","v":0},null,null,{"$f":"MAX(0,IF(K197=\"\",H197*G197,G197*K197))","v":0}]
[null,"Mortgage Loans",null,"Sch IIB EBS & IIC EBS Column (11), Line 10-13",null,null,{"$f":"SUM('Schedule IIB (EBS)'!X22:X25)+SUM('Schedule IIC (EBS)'!X22:X25)","v":0},{"$f":"IF('Company Information'!F11=\"Class 3A\",IF(('Schedule V'!H12-'Schedule V'!H10)>3.5,3.5,MAX(1,'Schedule V'!H10-'Schedule V'!H12,'Schedule V'!H12-'Schedule V'!H10)),IF('Schedule V'!$H$10-'Schedule V'!$H$12>=1,'Schedule V'!$H$10-'Schedule V'!$H$12,IF('Schedule V'!$H$12-'Schedule V'!$H$10>=1,'Schedule V'!$H$12-'Schedule V'!$H$10,1)))*2%","v":0.02},{"$f":"IF(G198<0,0,G198*H198)","v":0},null,null,{"$f":"MAX(0,IF(K198=\"\",H198*G198,G198*K198))","v":0}]
[]
[null,"TOTAL INTEREST RATE / LIQUIDITY RISK",null,null,null,null,{"$f":"SUM(G196:G198)","v":0},null,{"$f":"IF(SUM(I196:I198)>=0,SUM(I196:I198),0)","v":0},null,null,{"$f":"IF(SUM(L196:L198)>=0,SUM(L196:L198),0)","v":0}]
[]
[null,null,null,"ASSETS",null,"LIABILITIES",null,null,"CAPITAL",null,"USER","USER"]
[null,"INTEREST RATE -",null,null,null,null,null,null,"CHARGE",null,"CAPITAL","CAPITAL"]
[null,"LIQUIDITY RISK",null,"Qualified Assets","Not Qual. Assets",null,null,null,"W MGMT",null,"W/O MGMT","W MGMT ACTION"]
[]
[null,"IR Down- Exposures without Derivatives"]
[null,{"$f":"'Interest Rate-Liquidity (Rev.)'!B11","v":"United States Dollars"},null,{"$f":"'Schedule XXIII'!E10","v":0},null,{"$f":"'Schedule XXIII'!H10","v":0},null,{"$f":"'Interest Rate-Liquidity (Rev.)'!S11","v":0},{"$f":"'Interest Rate-Liquidity (Rev.)'!T11","v":0},null,null,{"$f":"IF(K207=\"\",\"\",K207)","v":""}]
[null,{"$f":"'Interest Rate-Liquidity (Rev.)'!B12","v":"Euro"},null,{"$f":"'Schedule XXIII'!E11","v":0},null,{"$f":"'Schedule XXIII'!H11","v":0},null,{"$f":"'Interest Rate-Liquidity (Rev.)'!S12","v":0},{"$f":"'Interest Rate-Liquidity (Rev.)'!T12","v":0},null,null,{"$f":"IF(K208=\"\",\"\",K208)","v":""}]
[null,{"$f":"'Interest Rate-Liquidity (Rev.)'!B13","v":"United Kingdom Pounds"},null,{"$f":"'Schedule XXIII'!E12","v":0},null,{"$f":"'Schedule XXIII'!H12","v":0},null,{"$f":"'Interest Rate-Liquidity (Rev.)'!S13","v":0},{"$f":"'Interest Rate-Liquidity (Rev.)'!T13","v":0},null,null,""]
[null,{"$f":"'Interest Rate-Liquidity (Rev.)'!B14","v":"Japan Yen"},null,{"$f":"'Schedule XXIII'!E13","v":0},null,{"$f":"'Schedule XXIII'!H13","v":0},null,{"$f":"'Interest Rate-Liquidity (Rev.)'!S14","v":0},{"$f":"'Interest Rate-Liquidity (Rev.)'!T14","v":0},null,null,""]
[null,{"$f":"'Interest Rate-Liquidity (Rev.)'!B15","v":"Canada Dollars"},null,{"$f":"'Schedule XXIII'!E14","v":0},null,{"$f":"'Schedule XXIII'!H14","v":0},null,{"$f":"'Interest Rate-Liquidity (Rev.)'!S15","v":0},{"$f":"'Interest Rate-Liquidity (Rev.)'!T15","v":0},null,null,""]
[null,{"$f":"'Interest Rate-Liquidity (Rev.)'!B16","v":"Swiss Francs"},null,{"$f":"'Schedule XXIII'!E15","v":0},null,{"$f":"'Schedule XXIII'!H15","v":0},null,{"$f":"'Interest Rate-Liquidity (Rev.)'!S16","v":0},{"$f":"'Interest Rate-Liquidity (Rev.)'!T16","v":0},null,null,""]
[null,{"$f":"'Interest Rate-Liquidity (Rev.)'!B17","v":"Australia Dollar"},null,{"$f":"'Schedule XXIII'!E16","v":0},null,{"$f":"'Schedule XXIII'!H16","v":0},null,{"$f":"'Interest Rate-Liquidity (Rev.)'!S17","v":0},{"$f":"'Interest Rate-Liquidity (Rev.)'!T17","v":0},null,null,""]
[null,{"$f":"'Interest Rate-Liquidity (Rev.)'!B18","v":"New Zealand Dollar"},null,{"$f":"'Schedule XXIII'!E17","v":0},null,{"$f":"'Schedule XXIII'!H17","v":0},null,{"$f":"'Interest Rate-Liquidity (Rev.)'!S18","v":0},{"$f":"'Interest Rate-Liquidity (Rev.)'!T18","v":0},null,null,""]
[null,{"$f":"'Interest Rate-Liquidity (Rev.)'!B19","v":"Other currency 1"},null,{"$f":"'Schedule XXIII'!E18","v":0},null,{"$f":"'Schedule XXIII'!H18","v":0},null,{"$f":"'Interest Rate-Liquidity (Rev.)'!S19","v":0},{"$f":"'Interest Rate-Liquidity (Rev.)'!T19","v":0},null,null,""]
[null,{"$f":"'Interest Rate-Liquidity (Rev.)'!B20","v":"Other currency 2"},null,{"$f":"'Schedule XXIII'!E19","v":0},null,{"$f":"'Schedule XXIII'!H19","v":0},null,{"$f":"'Interest Rate-Liquidity (Rev.)'!S20","v":0},{"$f":"'Interest Rate-Liquidity (Rev.)'!T20","v":0},null,null,""]
[null,{"$f":"'Interest Rate-Liquidity (Rev.)'!B21","v":"Other currency 3"},null,{"$f":"'Schedule XXIII'!E20","v":0},null,{"$f":"'Schedule XXIII'!H20","v":0},null,{"$f":"'Interest Rate-Liquidity (Rev.)'!S21","v":0},{"$f":"'Interest Rate-Liquidity (Rev.)'!T21","v":0},null,null,""]
[null,{"$f":"'Interest Rate-Liquidity (Rev.)'!B22","v":"Other currency 4"},null,{"$f":"'Schedule XXIII'!E21","v":0},null,{"$f":"'Schedule XXIII'!H21","v":0},null,{"$f":"'Interest Rate-Liquidity (Rev.)'!S22","v":0},{"$f":"'Interest Rate-Liquidity (Rev.)'!T22","v":0},null,null,""]
[null,{"$f":"'Interest Rate-Liquidity (Rev.)'!B23","v":"Other currency 5"},null,{"$f":"'Schedule XXIII'!E22","v":0},null,{"$f":"'Schedule XXIII'!H22","v":0},null,{"$f":"'Interest Rate-Liquidity (Rev.)'!S23","v":0},{"$f":"'Interest Rate-Liquidity (Rev.)'!T23","v":0},null,null,""]
[null,{"$f":"'Interest Rate-Liquidity (Rev.)'!B24","v":"Other currency 6"},null,{"$f":"'Schedule XXIII'!E23","v":0},null,{"$f":"'Schedule XXIII'!H23","v":0},null,{"$f":"'Interest Rate-Liquidity (Rev.)'!S24","v":0},{"$f":"'Interest Rate-Liquidity (Rev.)'!T24","v":0},null,null,""]
[null,{"$f":"'Interest Rate-Liquidity (Rev.)'!B25","v":"Other currency 7"},null,{"$f":"'Schedule XXIII'!E24","v":0},null,{"$f":"'Schedule XXIII'!H24","v":0},null,{"$f":"'Interest Rate-Liquidity (Rev.)'!S25","v":0},{"$f":"'Interest Rate-Liquidity (Rev.)'!T25","v":0},null,null,""]
[null,{"$f":"'Interest Rate-Liquidity (Rev.)'!B26","v":"Other currency 8"},null,{"$f":"'Schedule XXIII'!E25","v":0},null,{"$f":"'Schedule XXIII'!H25","v":0},null,{"$f":"'Interest Rate-Liquidity (Rev.)'!S26","v":0},{"$f":"'Interest Rate-Liquidity (Rev.)'!T26","v":0},null,null,""]
[null,{"$f":"'Interest Rate-Liquidity (Rev.)'!B27","v":"Other currency 9"},null,{"$f":"'Schedule XXIII'!E26","v":0},null,{"$f":"'Schedule XXIII'!H26","v":0},null,{"$f":"'Interest Rate-Liquidity (Rev.)'!S27","v":0},{"$f":"'Interest Rate-Liquidity (Rev.)'!T27","v":0},null,null,""]
[null,{"$f":"'Interest Rate-Liquidity (Rev.)'!B28","v":"Other currency 10"},null,{"$f":"'Schedule XXIII'!E27","v":0},null,{"$f":"'Schedule XXIII'!H27","v":0},null,{"$f":"'Interest Rate-Liquidity (Rev.)'!S28","v":0},{"$f":"'Interest Rate-Liquidity (Rev.)'!T28","v":0},null,null,""]
[null,{"$f":"'Interest Rate-Liquidity (Rev.)'!B29","v":"Total IR - Other"},null,{"$f":"SUM(D207:D224)","v":0},null,{"$f":"SUM(F207:F224)","v":0},null,{"$f":"SUM(H207:H224)","v":0},{"$f":"SUM(I207:I224)","v":0},null,{"$f":"SUM(K207:K224)","v":0},{"$f":"SUM(L207:L224)","v":0}]
[]
[null,{"$f":"'Interest Rate-Liquidity (Rev.)'!B31","v":"IR Down- Derivatives"}]
[null,{"$f":"'Interest Rate-Liquidity (Rev.)'!B32","v":"United States Dollars"},null,{"$f":"'Schedule XXIII'!M10","v":0},{"$f":"'Schedule XXIII'!P10","v":0},{"$f":"'Schedule XXIII'!S10","v":0},null,{"$f":"'Interest Rate-Liquidity (Rev.)'!S32","v":0},{"$f":"'Interest Rate-Liquidity (Rev.)'!T32","v":0},null,null,{"$f":"IF(K228=\"\",\"\",K228)","v":""}]
[null,{"$f":"'Interest Rate-Liquidity (Rev.)'!B33","v":"Euro"},null,{"$f":"'Schedule XXIII'!M11","v":0},{"$f":"'Schedule XXIII'!P11","v":0},{"$f":"'Schedule XXIII'!S11","v":0},null,{"$f":"'Interest Rate-Liquidity (Rev.)'!S33","v":0},{"$f":"'Interest Rate-Liquidity (Rev.)'!T33","v":0},null,null,{"$f":"IF(K229=\"\",\"\",K229)","v":""}]
[null,{"$f":"'Interest Rate-Liquidity (Rev.)'!B34","v":"United Kingdom Pounds"},null,{"$f":"'Schedule XXIII'!M12","v":0},{"$f":"'Schedule XXIII'!P12","v":0},{"$f":"'Schedule XXIII'!S12","v":0},null,{"$f":"'Interest Rate-Liquidity (Rev.)'!S34","v":0},{"$f":"'Interest Rate-Liquidity (Rev.)'!T34","v":0},null,null,""]
[null,{"$f":"'Interest Rate-Liquidity (Rev.)'!B35","v":"Japan Yen"},null,{"$f":"'Schedule XXIII'!M13","v":0},{"$f":"'Schedule XXIII'!P13","v":0},{"$f":"'Schedule XXIII'!S13","v":0},null,{"$f":"'Interest Rate-Liquidity (Rev.)'!S35","v":0},{"$f":"'Interest Rate-Liquidity (Rev.)'!T35","v":0},null,null,""]
[null,{"$f":"'Interest Rate-Liquidity (Rev.)'!B36","v":"Canada Dollars"},null,{"$f":"'Schedule XXIII'!M14","v":0},{"$f":"'Schedule XXIII'!P14","v":0},{"$f":"'Schedule XXIII'!S14","v":0},null,{"$f":"'Interest Rate-Liquidity (Rev.)'!S36","v":0},{"$f":"'Interest Rate-Liquidity (Rev.)'!T36","v":0},null,null,""]
[null,{"$f":"'Interest Rate-Liquidity (Rev.)'!B37","v":"Swiss Francs"},null,{"$f":"'Schedule XXIII'!M15","v":0},{"$f":"'Schedule XXIII'!P15","v":0},{"$f":"'Schedule XXIII'!S15","v":0},null,{"$f":"'Interest Rate-Liquidity (Rev.)'!S37","v":0},{"$f":"'Interest Rate-Liquidity (Rev.)'!T37","v":0},null,null,""]
[null,{"$f":"'Interest Rate-Liquidity (Rev.)'!B38","v":"Australia Dollar"},null,{"$f":"'Schedule XXIII'!M16","v":0},{"$f":"'Schedule XXIII'!P16","v":0},{"$f":"'Schedule XXIII'!S16","v":0},null,{"$f":"'Interest Rate-Liquidity (Rev.)'!S38","v":0},{"$f":"'Interest Rate-Liquidity (Rev.)'!T38","v":0},null,null,""]
[null,{"$f":"'Interest Rate-Liquidity (Rev.)'!B39","v":"New Zealand Dollar"},null,{"$f":"'Schedule XXIII'!M17","v":0},{"$f":"'Schedule XXIII'!P17","v":0},{"$f":"'Schedule XXIII'!S17","v":0},null,{"$f":"'Interest Rate-Liquidity (Rev.)'!S39","v":0},{"$f":"'Interest Rate-Liquidity (Rev.)'!T39","v":0},null,null,""]
[null,{"$f":"'Interest Rate-Liquidity (Rev.)'!B40","v":"Other currency 1"},null,{"$f":"'Schedule XXIII'!M18","v":0},{"$f":"'Schedule XXIII'!P18","v":0},{"$f":"'Schedule XXIII'!S18","v":0},null,{"$f":"'Interest Rate-Liquidity (Rev.)'!S40","v":0},{"$f":"'Interest Rate-Liquidity (Rev.)'!T40","v":0},null,null,""]
[null,{"$f":"'Interest Rate-Liquidity (Rev.)'!B41","v":"Other currency 2"},null,{"$f":"'Schedule XXIII'!M19","v":0},{"$f":"'Schedule XXIII'!P19","v":0},{"$f":"'Schedule XXIII'!S19","v":0},null,{"$f":"'Interest Rate-Liquidity (Rev.)'!S41","v":0},{"$f":"'Interest Rate-Liquidity (Rev.)'!T41","v":0},null,null,""]
[null,{"$f":"'Interest Rate-Liquidity (Rev.)'!B42","v":"Other currency 3"},null,{"$f":"'Schedule XXIII'!M20","v":0},{"$f":"'Schedule XXIII'!P20","v":0},{"$f":"'Schedule XXIII'!S20","v":0},null,{"$f":"'Interest Rate-Liquidity (Rev.)'!S42","v":0},{"$f":"'Interest Rate-Liquidity (Rev.)'!T42","v":0},null,null,""]
[null,{"$f":"'Interest Rate-Liquidity (Rev.)'!B43","v":"Other currency 4"},null,{"$f":"'Schedule XXIII'!M21","v":0},{"$f":"'Schedule XXIII'!P21","v":0},{"$f":"'Schedule XXIII'!S21","v":0},null,{"$f":"'Interest Rate-Liquidity (Rev.)'!S43","v":0},{"$f":"'Interest Rate-Liquidity (Rev.)'!T43","v":0},null,null,""]
[null,{"$f":"'Interest Rate-Liquidity (Rev.)'!B44","v":"Other currency 5"},null,{"$f":"'Schedule XXIII'!M22","v":0},{"$f":"'Schedule XXIII'!P22","v":0},{"$f":"'Schedule XXIII'!S22","v":0},null,{"$f":"'Interest Rate-Liquidity (Rev.)'!S44","v":0},{"$f":"'Interest Rate-Liquidity (Rev.)'!T44","v":0},null,null,""]
[null,{"$f":"'Interest Rate-Liquidity (Rev.)'!B45","v":"Other currency 6"},null,{"$f":"'Schedule XXIII'!M23","v":0},{"$f":"'Schedule XXIII'!P23","v":0},{"$f":"'Schedule XXIII'!S23","v":0},null,{"$f":"'Interest Rate-Liquidity (Rev.)'!S45","v":0},{"$f":"'Interest Rate-Liquidity (Rev.)'!T45","v":0},null,null,""]
[null,{"$f":"'Interest Rate-Liquidity (Rev.)'!B46","v":"Other currency 7"},null,{"$f":"'Schedule XXIII'!M24","v":0},{"$f":"'Schedule XXIII'!P24","v":0},{"$f":"'Schedule XXIII'!S24","v":0},null,{"$f":"'Interest Rate-Liquidity (Rev.)'!S46","v":0},{"$f":"'Interest Rate-Liquidity (Rev.)'!T46","v":0},null,null,""]
[null,{"$f":"'Interest Rate-Liquidity (Rev.)'!B47","v":"Other currency 8"},null,{"$f":"'Schedule XXIII'!M25","v":0},{"$f":"'Schedule XXIII'!P25","v":0},{"$f":"'Schedule XXIII'!S25","v":0},null,{"$f":"'Interest Rate-Liquidity (Rev.)'!S47","v":0},{"$f":"'Interest Rate-Liquidity (Rev.)'!T47","v":0},null,null,""]
[null,{"$f":"'Interest Rate-Liquidity (Rev.)'!B48","v":"Other currency 9"},null,{"$f":"'Schedule XXIII'!M26","v":0},{"$f":"'Schedule XXIII'!P26","v":0},{"$f":"'Schedule XXIII'!S26","v":0},null,{"$f":"'Interest Rate-Liquidity (Rev.)'!S48","v":0},{"$f":"'Interest Rate-Liquidity (Rev.)'!T48","v":0},null,null,""]
[null,{"$f":"'Interest Rate-Liquidity (Rev.)'!B49","v":"Other currency 10"},null,{"$f":"'Schedule XXIII'!M27","v":0},{"$f":"'Schedule XXIII'!P27","v":0},{"$f":"'Schedule XXIII'!S27","v":0},null,{"$f":"'Interest Rate-Liquidity (Rev.)'!S49","v":0},{"$f":"'Interest Rate-Liquidity (Rev.)'!T49","v":0},null,null,""]
[null,{"$f":"'Interest Rate-Liquidity (Rev.)'!B50","v":"Total IR - Derivatives"},null,{"$f":"SUM(D228:D245)","v":0},0,0,null,0,0,null,{"$f":"SUM(K228:K245)","v":0},{"$f":"SUM(L228:L245)","v":0}]
[null,{"$f":"'Interest Rate-Liquidity (Rev.)'!B51","v":"Total IR - DOWN"},null,{"$f":"D225+D246","v":0},{"$f":"E225+E246","v":0},0,null,{"$f":"MAX(0,H225+H246)","v":0},{"$f":"MAX(0,I225+I246)","v":0},null,{"$f":"MAX(0,K225+K246)","v":0},{"$f":"MAX(0,L225+L246)","v":0}]
[]
[null,{"$f":"'Interest Rate-Liquidity (Rev.)'!B53","v":"IR UP - Exposures without Derivatives"}]
[null,{"$f":"'Interest Rate-Liquidity (Rev.)'!B54","v":"United States Dollars"},null,{"$f":"'Schedule XXIII'!E35","v":0},null,{"$f":"'Schedule XXIII'!H35","v":0},null,{"$f":"'Interest Rate-Liquidity (Rev.)'!S54","v":0},{"$f":"'Interest Rate-Liquidity (Rev.)'!T54","v":0},null,null,{"$f":"IF(K250=\"\",\"\",K250)","v":""}]
[null,{"$f":"'Interest Rate-Liquidity (Rev.)'!B55","v":"Euro"},null,{"$f":"'Schedule XXIII'!E36","v":0},null,{"$f":"'Schedule XXIII'!H36","v":0},null,{"$f":"'Interest Rate-Liquidity (Rev.)'!S55","v":0},{"$f":"'Interest Rate-Liquidity (Rev.)'!T55","v":0},null,null,{"$f":"IF(K251=\"\",\"\",K251)","v":""}]
[null,{"$f":"'Interest Rate-Liquidity (Rev.)'!B56","v":"United Kingdom Pounds"},null,{"$f":"'Schedule XXIII'!E37","v":0},null,{"$f":"'Schedule XXIII'!H37","v":0},null,{"$f":"'Interest Rate-Liquidity (Rev.)'!S56","v":0},{"$f":"'Interest Rate-Liquidity (Rev.)'!T56","v":0},null,null,""]
[null,{"$f":"'Interest Rate-Liquidity (Rev.)'!B57","v":"Japan Yen"},null,{"$f":"'Schedule XXIII'!E38","v":0},null,{"$f":"'Schedule XXIII'!H38","v":0},null,{"$f":"'Interest Rate-Liquidity (Rev.)'!S57","v":0},{"$f":"'Interest Rate-Liquidity (Rev.)'!T57","v":0},null,null,""]
[null,{"$f":"'Interest Rate-Liquidity (Rev.)'!B58","v":"Canada Dollars"},null,{"$f":"'Schedule XXIII'!E39","v":0},null,{"$f":"'Schedule XXIII'!H39","v":0},null,{"$f":"'Interest Rate-Liquidity (Rev.)'!S58","v":0},{"$f":"'Interest Rate-Liquidity (Rev.)'!T58","v":0},null,null,""]
[null,{"$f":"'Interest Rate-Liquidity (Rev.)'!B59","v":"Swiss Francs"},null,{"$f":"'Schedule XXIII'!E40","v":0},null,{"$f":"'Schedule XXIII'!H40","v":0},null,{"$f":"'Interest Rate-Liquidity (Rev.)'!S59","v":0},{"$f":"'Interest Rate-Liquidity (Rev.)'!T59","v":0},null,null,""]
[null,{"$f":"'Interest Rate-Liquidity (Rev.)'!B60","v":"Australia Dollar"},null,{"$f":"'Schedule XXIII'!E41","v":0},null,{"$f":"'Schedule XXIII'!H41","v":0},null,{"$f":"'Interest Rate-Liquidity (Rev.)'!S60","v":0},{"$f":"'Interest Rate-Liquidity (Rev.)'!T60","v":0},null,null,""]
[null,{"$f":"'Interest Rate-Liquidity (Rev.)'!B61","v":"New Zealand Dollar"},null,{"$f":"'Schedule XXIII'!E42","v":0},null,{"$f":"'Schedule XXIII'!H42","v":0},null,{"$f":"'Interest Rate-Liquidity (Rev.)'!S61","v":0},{"$f":"'Interest Rate-Liquidity (Rev.)'!T61","v":0},null,null,""]
[null,{"$f":"'Interest Rate-Liquidity (Rev.)'!B62","v":"Other currency 1"},null,{"$f":"'Schedule XXIII'!E43","v":0},null,{"$f":"'Schedule XXIII'!H43","v":0},null,{"$f":"'Interest Rate-Liquidity (Rev.)'!S62","v":0},{"$f":"'Interest Rate-Liquidity (Rev.)'!T62","v":0},null,null,""]
[null,{"$f":"'Interest Rate-Liquidity (Rev.)'!B63","v":"Other currency 2"},null,{"$f":"'Schedule XXIII'!E44","v":0},null,{"$f":"'Schedule XXIII'!H44","v":0},null,{"$f":"'Interest Rate-Liquidity (Rev.)'!S63","v":0},{"$f":"'Interest Rate-Liquidity (Rev.)'!T63","v":0},null,null,""]
[null,{"$f":"'Interest Rate-Liquidity (Rev.)'!B64","v":"Other currency 3"},null,{"$f":"'Schedule XXIII'!E45","v":0},null,{"$f":"'Schedule XXIII'!H45","v":0},null,{"$f":"'Interest Rate-Liquidity (Rev.)'!S64","v":0},{"$f":"'Interest Rate-Liquidity (Rev.)'!T64","v":0},null,null,""]
[null,{"$f":"'Interest Rate-Liquidity (Rev.)'!B65","v":"Other currency 4"},null,{"$f":"'Schedule XXIII'!E46","v":0},null,{"$f":"'Schedule XXIII'!H46","v":0},null,{"$f":"'Interest Rate-Liquidity (Rev.)'!S65","v":0},{"$f":"'Interest Rate-Liquidity (Rev.)'!T65","v":0},null,null,""]
[null,{"$f":"'Interest Rate-Liquidity (Rev.)'!B66","v":"Other currency 5"},null,{"$f":"'Schedule XXIII'!E47","v":0},null,{"$f":"'Schedule XXIII'!H47","v":0},null,{"$f":"'Interest Rate-Liquidity (Rev.)'!S66","v":0},{"$f":"'Interest Rate-Liquidity (Rev.)'!T66","v":0},null,null,""]
[null,{"$f":"'Interest Rate-Liquidity (Rev.)'!B67","v":"Other currency 6"},null,{"$f":"'Schedule XXIII'!E48","v":0},null,{"$f":"'Schedule XXIII'!H48","v":0},null,{"$f":"'Interest Rate-Liquidity (Rev.)'!S67","v":0},{"$f":"'Interest Rate-Liquidity (Rev.)'!T67","v":0},null,null,""]
[null,{"$f":"'Interest Rate-Liquidity (Rev.)'!B68","v":"Other currency 7"},null,{"$f":"'Schedule XXIII'!E49","v":0},null,{"$f":"'Schedule XXIII'!H49","v":0},null,{"$f":"'Interest Rate-Liquidity (Rev.)'!S68","v":0},{"$f":"'Interest Rate-Liquidity (Rev.)'!T68","v":0},null,null,""]
[null,{"$f":"'Interest Rate-Liquidity (Rev.)'!B69","v":"Other currency 8"},null,{"$f":"'Schedule XXIII'!E50","v":0},null,{"$f":"'Schedule XXIII'!H50","v":0},null,{"$f":"'Interest Rate-Liquidity (Rev.)'!S69","v":0},{"$f":"'Interest Rate-Liquidity (Rev.)'!T69","v":0},null,null,""]
[null,{"$f":"'Interest Rate-Liquidity (Rev.)'!B70","v":"Other currency 9"},null,{"$f":"'Schedule XXIII'!E51","v":0},null,{"$f":"'Schedule XXIII'!H51","v":0},null,{"$f":"'Interest Rate-Liquidity (Rev.)'!S70","v":0},{"$f":"'Interest Rate-Liquidity (Rev.)'!T70","v":0},null,null,""]
[null,{"$f":"'Interest Rate-Liquidity (Rev.)'!B71","v":"Other currency 10"},null,{"$f":"'Schedule XXIII'!E52","v":0},null,{"$f":"'Schedule XXIII'!H52","v":0},null,{"$f":"'Interest Rate-Liquidity (Rev.)'!S71","v":0},{"$f":"'Interest Rate-Liquidity (Rev.)'!T71","v":0},null,null,""]
[null,{"$f":"'Interest Rate-Liquidity (Rev.)'!B72","v":"Total IR - Other"},null,{"$f":"SUM(D250:D267)","v":0},null,{"$f":"SUM(F250:F267)","v":0},null,{"$f":"SUM(H250:H267)","v":0},{"$f":"SUM(I250:I267)","v":0},null,{"$f":"SUM(K250:K267)","v":0},{"$f":"SUM(L250:L267)","v":0}]
[]
[null,{"$f":"'Interest Rate-Liquidity (Rev.)'!B74","v":"IR Up - Derivatives"}]
[null,{"$f":"'Interest Rate-Liquidity (Rev.)'!B75","v":"United States Dollars"},null,{"$f":"'Schedule XXIII'!M35","v":0},{"$f":"'Schedule XXIII'!P35","v":0},{"$f":"'Schedule XXIII'!S35","v":0},null,{"$f":"'Interest Rate-Liquidity (Rev.)'!S75","v":0},{"$f":"'Interest Rate-Liquidity (Rev.)'!T75","v":0},null,null,{"$f":"IF(K271=\"\",\"\",K271)","v":""}]
[null,{"$f":"'Interest Rate-Liquidity (Rev.)'!B76","v":"Euro"},null,{"$f":"'Schedule XXIII'!M36","v":0},{"$f":"'Schedule XXIII'!P36","v":0},{"$f":"'Schedule XXIII'!S36","v":0},null,{"$f":"'Interest Rate-Liquidity (Rev.)'!S76","v":0},{"$f":"'Interest Rate-Liquidity (Rev.)'!T76","v":0},null,null,{"$f":"IF(K272=\"\",\"\",K272)","v":""}]
[null,{"$f":"'Interest Rate-Liquidity (Rev.)'!B77","v":"United Kingdom Pounds"},null,{"$f":"'Schedule XXIII'!M37","v":0},{"$f":"'Schedule XXIII'!P37","v":0},{"$f":"'Schedule XXIII'!S37","v":0},null,{"$f":"'Interest Rate-Liquidity (Rev.)'!S77","v":0},{"$f":"'Interest Rate-Liquidity (Rev.)'!T77","v":0},null,null,""]
[null,{"$f":"'Interest Rate-Liquidity (Rev.)'!B78","v":"Japan Yen"},null,{"$f":"'Schedule XXIII'!M38","v":0},{"$f":"'Schedule XXIII'!P38","v":0},{"$f":"'Schedule XXIII'!S38","v":0},null,{"$f":"'Interest Rate-Liquidity (Rev.)'!S78","v":0},{"$f":"'Interest Rate-Liquidity (Rev.)'!T78","v":0},null,null,""]
[null,{"$f":"'Interest Rate-Liquidity (Rev.)'!B79","v":"Canada Dollars"},null,{"$f":"'Schedule XXIII'!M39","v":0},{"$f":"'Schedule XXIII'!P39","v":0},{"$f":"'Schedule XXIII'!S39","v":0},null,{"$f":"'Interest Rate-Liquidity (Rev.)'!S79","v":0},{"$f":"'Interest Rate-Liquidity (Rev.)'!T79","v":0},null,null,""]
[null,{"$f":"'Interest Rate-Liquidity (Rev.)'!B80","v":"Swiss Francs"},null,{"$f":"'Schedule XXIII'!M40","v":0},{"$f":"'Schedule XXIII'!P40","v":0},{"$f":"'Schedule XXIII'!S40","v":0},null,{"$f":"'Interest Rate-Liquidity (Rev.)'!S80","v":0},{"$f":"'Interest Rate-Liquidity (Rev.)'!T80","v":0},null,null,""]
[null,{"$f":"'Interest Rate-Liquidity (Rev.)'!B81","v":"Australia Dollar"},null,{"$f":"'Schedule XXIII'!M41","v":0},{"$f":"'Schedule XXIII'!P41","v":0},{"$f":"'Schedule XXIII'!S41","v":0},null,{"$f":"'Interest Rate-Liquidity (Rev.)'!S81","v":0},{"$f":"'Interest Rate-Liquidity (Rev.)'!T81","v":0},null,null,""]
[null,{"$f":"'Interest Rate-Liquidity (Rev.)'!B82","v":"New Zealand Dollar"},null,{"$f":"'Schedule XXIII'!M42","v":0},{"$f":"'Schedule XXIII'!P42","v":0},{"$f":"'Schedule XXIII'!S42","v":0},null,{"$f":"'Interest Rate-Liquidity (Rev.)'!S82","v":0},{"$f":"'Interest Rate-Liquidity (Rev.)'!T82","v":0},null,null,""]
[null,{"$f":"'Interest Rate-Liquidity (Rev.)'!B83","v":"Other currency 1"},null,{"$f":"'Schedule XXIII'!M43","v":0},{"$f":"'Schedule XXIII'!P43","v":0},{"$f":"'Schedule XXIII'!S43","v":0},null,{"$f":"'Interest Rate-Liquidity (Rev.)'!S83","v":0},{"$f":"'Interest Rate-Liquidity (Rev.)'!T83","v":0},null,null,""]
[null,{"$f":"'Interest Rate-Liquidity (Rev.)'!B84","v":"Other currency 2"},null,{"$f":"'Schedule XXIII'!M44","v":0},{"$f":"'Schedule XXIII'!P44","v":0},{"$f":"'Schedule XXIII'!S44","v":0},null,{"$f":"'Interest Rate-Liquidity (Rev.)'!S84","v":0},{"$f":"'Interest Rate-Liquidity (Rev.)'!T84","v":0},null,null,""]
[null,{"$f":"'Interest Rate-Liquidity (Rev.)'!B85","v":"Other currency 3"},null,{"$f":"'Schedule XXIII'!M45","v":0},{"$f":"'Schedule XXIII'!P45","v":0},{"$f":"'Schedule XXIII'!S45","v":0},null,{"$f":"'Interest Rate-Liquidity (Rev.)'!S85","v":0},{"$f":"'Interest Rate-Liquidity (Rev.)'!T85","v":0},null,null,""]
[null,{"$f":"'Interest Rate-Liquidity (Rev.)'!B86","v":"Other currency 4"},null,{"$f":"'Schedule XXIII'!M46","v":0},{"$f":"'Schedule XXIII'!P46","v":0},{"$f":"'Schedule XXIII'!S46","v":0},null,{"$f":"'Interest Rate-Liquidity (Rev.)'!S86","v":0},{"$f":"'Interest Rate-Liquidity (Rev.)'!T86","v":0},null,null,""]
[null,{"$f":"'Interest Rate-Liquidity (Rev.)'!B87","v":"Other currency 5"},null,{"$f":"'Schedule XXIII'!M47","v":0},{"$f":"'Schedule XXIII'!P47","v":0},{"$f":"'Schedule XXIII'!S47","v":0},null,{"$f":"'Interest Rate-Liquidity (Rev.)'!S87","v":0},{"$f":"'Interest Rate-Liquidity (Rev.)'!T87","v":0},null,null,""]
[null,{"$f":"'Interest Rate-Liquidity (Rev.)'!B88","v":"Other currency 6"},null,{"$f":"'Schedule XXIII'!M48","v":0},{"$f":"'Schedule XXIII'!P48","v":0},{"$f":"'Schedule XXIII'!S48","v":0},null,{"$f":"'Interest Rate-Liquidity (Rev.)'!S88","v":0},{"$f":"'Interest Rate-Liquidity (Rev.)'!T88","v":0},null,null,""]
[null,{"$f":"'Interest Rate-Liquidity (Rev.)'!B89","v":"Other currency 7"},null,{"$f":"'Schedule XXIII'!M49","v":0},{"$f":"'Schedule XXIII'!P49","v":0},{"$f":"'Schedule XXIII'!S49","v":0},null,{"$f":"'Interest Rate-Liquidity (Rev.)'!S89","v":0},{"$f":"'Interest Rate-Liquidity (Rev.)'!T89","v":0},null,null,""]
[null,{"$f":"'Interest Rate-Liquidity (Rev.)'!B90","v":"Other currency 8"},null,{"$f":"'Schedule XXIII'!M50","v":0},{"$f":"'Schedule XXIII'!P50","v":0},{"$f":"'Schedule XXIII'!S50","v":0},null,{"$f":"'Interest Rate-Liquidity (Rev.)'!S90","v":0},{"$f":"'Interest Rate-Liquidity (Rev.)'!T90","v":0},null,null,""]
[null,{"$f":"'Interest Rate-Liquidity (Rev.)'!B91","v":"Other currency 9"},null,{"$f":"'Schedule XXIII'!M51","v":0},{"$f":"'Schedule XXIII'!P51","v":0},{"$f":"'Schedule XXIII'!S51","v":0},null,{"$f":"'Interest Rate-Liquidity (Rev.)'!S91","v":0},{"$f":"'Interest Rate-Liquidity (Rev.)'!T91","v":0},null,null,{"$f":"IF(K287=\"\",\"\",K287)","v":""}]
[null,{"$f":"'Interest Rate-Liquidity (Rev.)'!B92","v":"Other currency 10"},null,{"$f":"'Schedule XXIII'!M52","v":0},{"$f":"'Schedule XXIII'!P52","v":0},{"$f":"'Schedule XXIII'!S52","v":0},null,{"$f":"'Interest Rate-Liquidity (Rev.)'!S92","v":0},{"$f":"'Interest Rate-Liquidity (Rev.)'!T92","v":0},null,null,""]
[null,{"$f":"'Interest Rate-Liquidity (Rev.)'!B93","v":"Total IR - Derivatives"},null,{"$f":"SUM(D271:D288)","v":0},0,0,null,0,0,null,{"$f":"SUM(K271:K288)","v":0},{"$f":"SUM(L271:L288)","v":0}]
[null,{"$f":"'Interest Rate-Liquidity (Rev.)'!B94","v":"Total IR - UP"},null,{"$f":"D268+D289","v":0},{"$f":"E268+E289","v":0},{"$f":"F268+F289","v":0},null,{"$f":"MAX(0,H268+H289)","v":0},{"$f":"MAX(0,I268+I289)","v":0},null,{"$f":"MAX(0,K268+K289)","v":0},{"$f":"MAX(0,L268+L289)","v":0}]
[]
[null,{"$f":"'Interest Rate-Liquidity (Rev.)'!B97","v":"Overall Interest Rate Risk"},null,null,null,null,"Scenario-Based Approach"]
[]
[null,{"$f":"'Interest Rate-Liquidity (Rev.)'!B99","v":"Interest Rates Down Shock - without Management Actions"},null,null,null,{"$f":"H247","v":0},null,null,null,null,{"$f":"IF(K247=0,F294,K247)","v":0}]
[null,{"$f":"'Interest Rate-Liquidity (Rev.)'!B100","v":"Interest Rates Up Shock - without Management Actions"},null,null,null,{"$f":"H290","v":0},null,null,null,null,{"$f":"IF(K290=0,F295,K290)","v":0}]
[null,{"$f":"'Interest Rate-Liquidity (Rev.)'!B101","v":"Max(IR Down, IR Up) - without MA"},null,null,null,{"$f":"MAX(0,F294,F295)","v":0},null,null,null,null,{"$f":"MAX(0,K294,K295)","v":0}]
[]
[null,{"$f":"'Interest Rate-Liquidity (Rev.)'!B103","v":"Interest Rate Risk without Management Actions"},null,null,null,{"$f":"IF(F304=\"UP\",F295,F294)","v":0},"Adj. IR Risk Cap. Req.",{"$f":"'Interest Rate-Liquidity (Rev.)'!D115","v":0},{"$f":"'Interest Rate-Liquidity (Rev.)'!E115","v":0},null,{"$f":"IF(K304=\"UP\",K295,K294)","v":0}]
[]
[]
[null,{"$f":"'Interest Rate-Liquidity (Rev.)'!B106","v":"Interest Rates Down Shock - with Management Actions"},null,null,null,{"$f":"I247","v":0},null,null,null,null,{"$f":"IF(L247=0,F301,L247)","v":0}]
[null,{"$f":"'Interest Rate-Liquidity (Rev.)'!B107","v":"Interest Rates Up Shock - with Management Actions"},null,null,null,{"$f":"I290","v":0},null,null,null,null,{"$f":"IF(L290=0,F302,L290)","v":0}]
[null,{"$f":"'Interest Rate-Liquidity (Rev.)'!B108","v":"Max(IR Down, IR Up) - with MA"},null,null,null,{"$f":"MAX(F301,F302)","v":0},null,null,null,null,{"$f":"MAX(0,K301,K302)","v":0}]
[null,{"$f":"'Interest Rate-Liquidity (Rev.)'!B109","v":"Biting scenario"},null,null,null,{"$f":"IF(F303=F301,\"DOWN\",\"UP\")","v":"DOWN"},null,"W/O Mgmt. Action","Mgmt. Action",null,{"$f":"IF(K303=K301,\"DOWN\",\"UP\")","v":"DOWN"}]
[]
[null,{"$f":"'Interest Rate-Liquidity (Rev.)'!B111","v":"Interest Rate Risk with Management Actions"},null,null,null,{"$f":"F303","v":0},null,null,null,null,{"$f":"K303","v":0}]
[]
[null,"Interest Rate Risk capital requirement",null,null,null,null,null,{"$f":"'Interest Rate-Liquidity (Rev.)'!D117","v":0},{"$f":"'Interest Rate-Liquidity (Rev.)'!E117","v":0},null,{"$f":"K298-MIN(0.75*K298,IF(K304=\"DOWN\",'Interest Rate-Liquidity (Rev.)'!$K$114,'Interest Rate-Liquidity (Rev.)'!$L$114))","v":0},{"$f":"K306-MIN(0.75*K306,IF(K304=\"DOWN\",'Interest Rate-Liquidity (Rev.)'!$O$114,'Interest Rate-Liquidity (Rev.)'!$P$114))","v":0}]
[]
[null,null,"ASSETS",null,null,null,null,"CAPITAL","CAPITAL",null,"USER","USER"]
[null,null,null,"Long Exposures",null,"Long Exposures",null,"CHARGE","CHARGE",null,"CAPITAL","REQUIRED"]
[null,"CURRENCY RISK","Assets - Excluding currency-sensitive derivatives","Currency Derivatives Qualifying as held for risk-mitigation purposes","Currency Derivatives Not Qualifying as held for risk-mitigation purposes","Currency Derivatives Qualifying as held for risk-mitigation purposes","Currency Derivatives Not Qualifying as held for risk-mitigation purposes","W/O MGMT","W MGMT",null,"FACTOR","CAPITAL"]
[]
[null,{"$f":"'Currency Risk'!B12","v":"United States Dollars"},{"$f":"'Schedule XXA'!D10","v":0},{"$f":"'Schedule XXA'!F10","v":0},{"$f":"'Schedule XXA'!H10","v":0},{"$f":"'Schedule XXA'!J10","v":0},{"$f":"'Schedule XXA'!L10","v":0},{"$f":"'Currency Risk'!X12","v":0},{"$f":"'Currency Risk'!Y12","v":0},null,null,{"$f":"MAX(0,IF(K314=\"\",H314,K314*SUM(C314:G314)))","v":0}]
[null,{"$f":"'Currency Risk'!B13","v":"Bermuda Dollars"},{"$f":"'Schedule XXA'!D11","v":0},{"$f":"'Schedule XXA'!F11","v":0},{"$f":"'Schedule XXA'!H11","v":0},{"$f":"'Schedule XXA'!J11","v":0},{"$f":"'Schedule XXA'!L11","v":0},{"$f":"'Currency Risk'!X13","v":0},{"$f":"'Currency Risk'!Y13","v":0},null,null,{"$f":"MAX(0,IF(K315=\"\",H315,K315*SUM(C315:G315)))","v":0}]
[null,{"$f":"'Currency Risk'!B14","v":"Qatar Riyals"},{"$f":"'Schedule XXA'!D12","v":0},{"$f":"'Schedule XXA'!F12","v":0},{"$f":"'Schedule XXA'!H12","v":0},{"$f":"'Schedule XXA'!J12","v":0},{"$f":"'Schedule XXA'!L12","v":0},{"$f":"'Currency Risk'!X14","v":0},{"$f":"'Currency Risk'!Y14","v":0},null,null,{"$f":"MAX(0,IF(K316=\"\",H316,K316*SUM(C316:G316)))","v":0}]
[null,{"$f":"'Currency Risk'!B15","v":"Hong Kong Dollars"},{"$f":"'Schedule XXA'!D13","v":0},{"$f":"'Schedule XXA'!F13","v":0},{"$f":"'Schedule XXA'!H13","v":0},{"$f":"'Schedule XXA'!J13","v":0},{"$f":"'Schedule XXA'!L13","v":0},{"$f":"'Currency Risk'!X15","v":0},{"$f":"'Currency Risk'!Y15","v":0},null,null,0]
[null,{"$f":"'Currency Risk'!B16","v":"Euro"},{"$f":"'Schedule XXA'!D14","v":0},{"$f":"'Schedule XXA'!F14","v":0},{"$f":"'Schedule XXA'!H14","v":0},{"$f":"'Schedule XXA'!J14","v":0},{"$f":"'Schedule XXA'!L14","v":0},{"$f":"'Currency Risk'!X16","v":0},{"$f":"'Currency Risk'!Y16","v":0},null,null,0]
[null,{"$f":"'Currency Risk'!B17","v":"Denmark Kroner"},{"$f":"'Schedule XXA'!D15","v":0},{"$f":"'Schedule XXA'!F15","v":0},{"$f":"'Schedule XXA'!H15","v":0},{"$f":"'Schedule XXA'!J15","v":0},{"$f":"'Schedule XXA'!L15","v":0},{"$f":"'Currency Risk'!X17","v":0},{"$f":"'Currency Risk'!Y17","v":0},null,null,0]
[null,{"$f":"'Currency Risk'!B18","v":"Bulgaria Leva"},{"$f":"'Schedule XXA'!D16","v":0},{"$f":"'Schedule XXA'!F16","v":0},{"$f":"'Schedule XXA'!H16","v":0},{"$f":"'Schedule XXA'!J16","v":0},{"$f":"'Schedule XXA'!L16","v":0},{"$f":"'Currency Risk'!X18","v":0},{"$f":"'Currency Risk'!Y18","v":0},null,null,0]
[null,{"$f":"'Currency Risk'!B19","v":"West African CFA Francs"},{"$f":"'Schedule XXA'!D17","v":0},{"$f":"'Schedule XXA'!F17","v":0},{"$f":"'Schedule XXA'!H17","v":0},{"$f":"'Schedule XXA'!J17","v":0},{"$f":"'Schedule XXA'!L17","v":0},{"$f":"'Currency Risk'!X19","v":0},{"$f":"'Currency Risk'!Y19","v":0},null,null,0]
[null,{"$f":"'Currency Risk'!B20","v":"Central African CFA Francs"},{"$f":"'Schedule XXA'!D18","v":0},{"$f":"'Schedule XXA'!F18","v":0},{"$f":"'Schedule XXA'!H18","v":0},{"$f":"'Schedule XXA'!J18","v":0},{"$f":"'Schedule XXA'!L18","v":0},{"$f":"'Currency Risk'!X20","v":0},{"$f":"'Currency Risk'!Y20","v":0},null,null,0]
[null,{"$f":"'Currency Risk'!B21","v":"Comorian Francs"},{"$f":"'Schedule XXA'!D19","v":0},{"$f":"'Schedule XXA'!F19","v":0},{"$f":"'Schedule XXA'!H19","v":0},{"$f":"'Schedule XXA'!J19","v":0},{"$f":"'Schedule XXA'!L19","v":0},{"$f":"'Currency Risk'!X21","v":0},{"$f":"'Currency Risk'!Y21","v":0},null,null,0]
[null,{"$f":"'Currency Risk'!B22","v":"United Kingdom Pounds"},{"$f":"'Schedule XXA'!D20","v":0},{"$f":"'Schedule XXA'!F20","v":0},{"$f":"'Schedule XXA'!H20","v":0},{"$f":"'Schedule XXA'!J20","v":0},{"$f":"'Schedule XXA'!L20","v":0},{"$f":"'Currency Risk'!X22","v":0},{"$f":"'Currency Risk'!Y22","v":0},null,null,0]
[null,{"$f":"'Currency Risk'!B23","v":"Canada Dollars"},{"$f":"'Schedule XXA'!D21","v":0},{"$f":"'Schedule XXA'!F21","v":0},{"$f":"'Schedule XXA'!H21","v":0},{"$f":"'Schedule XXA'!J21","v":0},{"$f":"'Schedule XXA'!L21","v":0},{"$f":"'Currency Risk'!X23","v":0},{"$f":"'Currency Risk'!Y23","v":0},null,null,0]
[null,{"$f":"'Currency Risk'!B24","v":"Japan Yen"},{"$f":"'Schedule XXA'!D22","v":0},{"$f":"'Schedule XXA'!F22","v":0},{"$f":"'Schedule XXA'!H22","v":0},{"$f":"'Schedule XXA'!J22","v":0},{"$f":"'Schedule XXA'!L22","v":0},{"$f":"'Currency Risk'!X24","v":0},{"$f":"'Currency Risk'!Y24","v":0},null,null,0]
[null,{"$f":"'Currency Risk'!B25","v":"Other currency 1"},{"$f":"'Schedule XXA'!D23","v":0},{"$f":"'Schedule XXA'!F23","v":0},{"$f":"'Schedule XXA'!H23","v":0},{"$f":"'Schedule XXA'!J23","v":0},{"$f":"'Schedule XXA'!L23","v":0},{"$f":"'Currency Risk'!X25","v":0},{"$f":"'Currency Risk'!Y25","v":0},null,null,0]
[null,{"$f":"'Currency Risk'!B26","v":"Other currency 2"},{"$f":"'Schedule XXA'!D24","v":0},{"$f":"'Schedule XXA'!F24","v":0},{"$f":"'Schedule XXA'!H24","v":0},{"$f":"'Schedule XXA'!J24","v":0},{"$f":"'Schedule XXA'!L24","v":0},{"$f":"'Currency Risk'!X26","v":0},{"$f":"'Currency Risk'!Y26","v":0},null,null,0]
[null,{"$f":"'Currency Risk'!B27","v":"Other currency 3"},{"$f":"'Schedule XXA'!D25","v":0},{"$f":"'Schedule XXA'!F25","v":0},{"$f":"'Schedule XXA'!H25","v":0},{"$f":"'Schedule XXA'!J25","v":0},{"$f":"'Schedule XXA'!L25","v":0},{"$f":"'Currency Risk'!X27","v":0},{"$f":"'Currency Risk'!Y27","v":0},null,null,0]
[null,{"$f":"'Currency Risk'!B28","v":"Other currency 4"},{"$f":"'Schedule XXA'!D26","v":0},{"$f":"'Schedule XXA'!F26","v":0},{"$f":"'Schedule XXA'!H26","v":0},{"$f":"'Schedule XXA'!J26","v":0},{"$f":"'Schedule XXA'!L26","v":0},{"$f":"'Currency Risk'!X28","v":0},{"$f":"'Currency Risk'!Y28","v":0},null,null,0]
[null,{"$f":"'Currency Risk'!B29","v":"Other currency 5"},{"$f":"'Schedule XXA'!D27","v":0},{"$f":"'Schedule XXA'!F27","v":0},{"$f":"'Schedule XXA'!H27","v":0},{"$f":"'Schedule XXA'!J27","v":0},{"$f":"'Schedule XXA'!L27","v":0},{"$f":"'Currency Risk'!X29","v":0},{"$f":"'Currency Risk'!Y29","v":0},null,null,0]
[null,{"$f":"'Currency Risk'!B30","v":"Other currency 6"},{"$f":"'Schedule XXA'!D28","v":0},{"$f":"'Schedule XXA'!F28","v":0},{"$f":"'Schedule XXA'!H28","v":0},{"$f":"'Schedule XXA'!J28","v":0},{"$f":"'Schedule XXA'!L28","v":0},{"$f":"'Currency Risk'!X30","v":0},{"$f":"'Currency Risk'!Y30","v":0},null,null,0]
[null,{"$f":"'Currency Risk'!B31","v":"Other currency 7"},{"$f":"'Schedule XXA'!D29","v":0},{"$f":"'Schedule XXA'!F29","v":0},{"$f":"'Schedule XXA'!H29","v":0},{"$f":"'Schedule XXA'!J29","v":0},{"$f":"'Schedule XXA'!L29","v":0},{"$f":"'Currency Risk'!X31","v":0},{"$f":"'Currency Risk'!Y31","v":0},null,null,0]
[null,{"$f":"'Currency Risk'!B32","v":"Other currency 8"},{"$f":"'Schedule XXA'!D30","v":0},{"$f":"'Schedule XXA'!F30","v":0},{"$f":"'Schedule XXA'!H30","v":0},{"$f":"'Schedule XXA'!J30","v":0},{"$f":"'Schedule XXA'!L30","v":0},{"$f":"'Currency Risk'!X32","v":0},{"$f":"'Currency Risk'!Y32","v":0},null,null,0]
[null,{"$f":"'Currency Risk'!B33","v":"Other currency 9"},{"$f":"'Schedule XXA'!D31","v":0},{"$f":"'Schedule XXA'!F31","v":0},{"$f":"'Schedule XXA'!H31","v":0},{"$f":"'Schedule XXA'!J31","v":0},{"$f":"'Schedule XXA'!L31","v":0},{"$f":"'Currency Risk'!X33","v":0},{"$f":"'Currency Risk'!Y33","v":0},null,null,0]
[null,{"$f":"'Currency Risk'!B34","v":"Other currency 10"},{"$f":"'Schedule XXA'!D32","v":0},{"$f":"'Schedule XXA'!F32","v":0},{"$f":"'Schedule XXA'!H32","v":0},{"$f":"'Schedule XXA'!J32","v":0},{"$f":"'Schedule XXA'!L32","v":0},{"$f":"'Currency Risk'!X34","v":0},{"$f":"'Currency Risk'!Y34","v":0},null,null,0]
[null,{"$f":"'Currency Risk'!B36","v":"Total"},{"$f":"SUM(C314:C336)","v":0},{"$f":"SUM(D314:D336)","v":0},{"$f":"SUM(E314:E336)","v":0},{"$f":"SUM(F314:F336)","v":0},{"$f":"SUM(G314:G336)","v":0},0,0,null,null,{"$f":"SUM(L314:L336)","v":0}]
[]
[null,null,null,null,null,null,null,"W/O Mgmt. Action","Mgmt. Action",null,"W/O Mgmt. Action","Mgmt. Action"]
[]
[null,"CURRENCY RISK",null,null,null,null,null,{"$f":"IF(SUM(H314:H336)>=0,SUM(H314:H336),0)","v":0},{"$f":"IF(SUM(I314:I336)>=0,SUM(I314:I336),0)","v":0},null,{"$f":"IF(SUM(L314:L336)>=0,SUM(L314:L336),0)","v":0},{"$f":"I341","v":0}]
[]
[null,"CONCENTRATION RISK",null,null,null,null,null,"STANDARD","STANDARD",null,"USER","USER"]
[null,null,null,null,null,null,"EXPOSURE","CAPITAL","REQUIRED",null,"CAPITAL","REQUIRED"]
[null,"ASSET TYPE",null,null,null,null,"VALUE","FACTOR","CAPITAL",null,"FACTOR","CAPITAL"]
[]
[null,"(a) Cash and Cash Equivalents"]
[null,"BSCR Rating 0",null,null,null,null,{"$f":"'Concentration Risk'!D10","v":0},{"$f":"+'Fixed Income Investments (Prior'!E83","v":0},{"$f":"IF(G348<0,0,G348*H348)","v":0},null,null,{"$f":"MAX(0,IF(K348=\"\",H348*G348,G348*K348))","v":0}]
[null,"BSCR Rating 1",null,null,null,null,{"$f":"'Concentration Risk'!D11","v":0},{"$f":"+'Fixed Income Investments (Prior'!E84","v":1E-3},{"$f":"IF(G349<0,0,G349*H349)","v":0},null,null,{"$f":"MAX(0,IF(K349=\"\",H349*G349,G349*K349))","v":0}]
[null,"BSCR Rating 2",null,null,null,null,{"$f":"'Concentration Risk'!D12","v":0},{"$f":"+'Fixed Income Investments (Prior'!E85","v":2E-3},{"$f":"IF(G350<0,0,G350*H350)","v":0},null,null,{"$f":"MAX(0,IF(K350=\"\",H350*G350,G350*K350))","v":0}]
[null,"BSCR Rating 3",null,null,null,null,{"$f":"'Concentration Risk'!D13","v":0},{"$f":"+'Fixed Income Investments (Prior'!E86","v":3.0000000000000001E-3},0,null,null,0]
[null,"BSCR Rating 4",null,null,null,null,{"$f":"'Concentration Risk'!D14","v":0},{"$f":"+'Fixed Income Investments (Prior'!E87","v":5.0000000000000001E-3},0,null,null,0]
[null,"BSCR Rating 5",null,null,null,null,{"$f":"'Concentration Risk'!D15","v":0},{"$f":"+'Fixed Income Investments (Prior'!E88","v":1.4999999999999999E-2},0,null,null,0]
[null,"BSCR Rating 6",null,null,null,null,{"$f":"'Concentration Risk'!D16","v":0},{"$f":"+'Fixed Income Investments (Prior'!E89","v":0.04},0,null,null,0]
[null,"BSCR Rating 7",null,null,null,null,{"$f":"'Concentration Risk'!D17","v":0},{"$f":"+'Fixed Income Investments (Prior'!E90","v":0.06},0,null,null,0]
[null,"BSCR Rating 8",null,null,null,null,{"$f":"'Concentration Risk'!D18","v":0},{"$f":"+'Fixed Income Investments (Prior'!E91","v":0.09},0,null,null,0]
[]
[null,"(a)  SUBTOTAL - CASH AND CASH EQUIVALENTS",null,null,null,null,{"$f":"SUM(G348:G356)","v":0},null,{"$f":"SUM(I348:I356)","v":0},null,null,{"$f":"SUM(L348:L356)","v":0}]
[]
[null,"(b) Corporate & Sovereign Bonds"]
[null,"BSCR Rating 0",null,null,null,null,{"$f":"'Concentration Risk'!D23","v":0},{"$f":"+H15","v":0},{"$f":"IF(G361<0,0,G361*H361)","v":0},null,null,{"$f":"MAX(0,IF(K361=\"\",H361*G361,G361*K361))","v":0}]
[null,"BSCR Rating 1",null,null,null,null,{"$f":"'Concentration Risk'!D24","v":0},4.0000000000000001E-3,0,null,null,{"$f":"MAX(0,IF(K362=\"\",H362*G362,G362*K362))","v":0}]
[null,"BSCR Rating 2",null,null,null,null,{"$f":"'Concentration Risk'!D25","v":0},8.0000000000000002E-3,0,null,null,{"$f":"MAX(0,IF(K363=\"\",H363*G363,G363*K363))","v":0}]
[null,"BSCR Rating 3",null,null,null,null,{"$f":"'Concentration Risk'!D26","v":0},1.4999999999999999E-2,0,null,null,0]
[null,"BSCR Rating 4",null,null,null,null,{"$f":"'Concentration Risk'!D27","v":0},0.03,0,null,null,0]
[null,"BSCR Rating 5",null,null,null,null,{"$f":"'Concentration Risk'!D28","v":0},0.08,0,null,null,0]
[null,"BSCR Rating 6",null,null,null,null,{"$f":"'Concentration Risk'!D29","v":0},0.15,0,null,null,0]
[null,"BSCR Rating 7",null,null,null,null,{"$f":"'Concentration Risk'!D30","v":0},0.26300000000000001,0,null,null,0]
[null,"BSCR Rating 8",null,null,null,null,{"$f":"'Concentration Risk'!D31","v":0},0.35,0,null,null,0]
[]
[null,"(b)  SUBTOTAL - CORPORATE & SOVEREIGN BONDS",null,null,null,null,{"$f":"SUM(G361:G369)","v":0},null,{"$f":"SUM(I361:I369)","v":0},null,null,{"$f":"SUM(L361:L369)","v":0}]
[]
[null,"(c) Residential Mortage-Backed Securities"]
[null,"BSCR Rating 0",null,null,null,null,{"$f":"'Concentration Risk'!D36","v":0},0,{"$f":"IF(G374<0,0,G374*H374)","v":0},null,null,{"$f":"MAX(0,IF(K374=\"\",H374*G374,G374*K374))","v":0}]
[null,"BSCR Rating 1",null,null,null,null,{"$f":"'Concentration Risk'!D37","v":0},{"$f":"+H30","v":6.0000000000000001E-3},0,null,null,{"$f":"MAX(0,IF(K375=\"\",H375*G375,G375*K375))","v":0}]
[null,"BSCR Rating 2",null,null,null,null,{"$f":"'Concentration Risk'!D38","v":0},1.2E-2,0,null,null,{"$f":"MAX(0,IF(K376=\"\",H376*G376,G376*K376))","v":0}]
[null,"BSCR Rating 3",null,null,null,null,{"$f":"'Concentration Risk'!D39","v":0},0.02,0,null,null,0]
[null,"BSCR Rating 4",null,null,null,null,{"$f":"'Concentration Risk'!D40","v":0},0.04,0,null,null,0]
[null,"BSCR Rating 5",null,null,null,null,{"$f":"'Concentration Risk'!D41","v":0},0.11,0,null,null,0]
[null,"BSCR Rating 6",null,null,null,null,{"$f":"'Concentration Risk'!D42","v":0},0.25,0,null,null,0]
[null,"BSCR Rating 7",null,null,null,null,{"$f":"'Concentration Risk'!D43","v":0},0.35,0,null,null,0]
[null,"BSCR Rating 8",null,null,null,null,{"$f":"'Concentration Risk'!D44","v":0},0.35,0,null,null,0]
[]
[null,"(c)  SUBTOTAL - RESIDENTIAL MORTGAGE-BACKED SECURITIES",null,null,null,null,{"$f":"SUM(G374:G382)","v":0},null,{"$f":"SUM(I374:I382)","v":0},null,null,{"$f":"SUM(L374:L382)","v":0}]
[]
[null,"(d) Commercial Mortgage-Backed Securities / Asset Backed Securities"]
[null,"BSCR Rating 0",null,null,null,null,{"$f":"'Concentration Risk'!D49","v":0},0,{"$f":"IF(G387<0,0,G387*H387)","v":0},null,null,{"$f":"MAX(0,IF(K387=\"\",H387*G387,G387*K387))","v":0}]
[null,"BSCR Rating 1",null,null,null,null,{"$f":"'Concentration Risk'!D50","v":0},{"$f":"+H44","v":5.0000000000000001E-3},0,null,null,{"$f":"MAX(0,IF(K388=\"\",H388*G388,G388*K388))","v":0}]
[null,"BSCR Rating 2",null,null,null,null,{"$f":"'Concentration Risk'!D51","v":0},0.01,0,null,null,{"$f":"MAX(0,IF(K389=\"\",H389*G389,G389*K389))","v":0}]
[null,"BSCR Rating 3",null,null,null,null,{"$f":"'Concentration Risk'!D52","v":0},1.7999999999999999E-2,0,null,null,0]
[null,"BSCR Rating 4",null,null,null,null,{"$f":"'Concentration Risk'!D53","v":0},3.5000000000000003E-2,0,null,null,0]
[null,"BSCR Rating 5",null,null,null,null,{"$f":"'Concentration Risk'!D54","v":0},0.1,0,null,null,0]
[null,"BSCR Rating 6",null,null,null,null,{"$f":"'Concentration Risk'!D55","v":0},0.2,0,null,null,0]
[null,"BSCR Rating 7",null,null,null,null,{"$f":"'Concentration Risk'!D56","v":0},0.3,0,null,null,0]
[null,"BSCR Rating 8",null,null,null,null,{"$f":"'Concentration Risk'!D57","v":0},0.35,0,null,null,0]
[]
[null,"(d)  SUBTOTAL - COMMERCIAL MORTGAGE-BACKED SECURITIES / ASSET-BACKED SECURITIES",null,null,null,null,{"$f":"SUM(G387:G395)","v":0},null,{"$f":"SUM(I387:I395)","v":0},null,null,{"$f":"SUM(L387:L395)","v":0}]
[]
[null,"(e) Bond Mutual Funds"]
[null,"BSCR Rating 0",null,null,null,null,{"$f":"'Concentration Risk'!D62","v":0},{"$f":"+H58","v":0},{"$f":"IF(G400<0,0,G400*H400)","v":0},null,null,{"$f":"MAX(0,IF(K400=\"\",H400*G400,G400*K400))","v":0}]
[null,"BSCR Rating 1",null,null,null,null,{"$f":"'Concentration Risk'!D63","v":0},4.0000000000000001E-3,0,null,null,{"$f":"MAX(0,IF(K401=\"\",H401*G401,G401*K401))","v":0}]
[null,"BSCR Rating 2",null,null,null,null,{"$f":"'Concentration Risk'!D64","v":0},8.0000000000000002E-3,0,null,null,{"$f":"MAX(0,IF(K402=\"\",H402*G402,G402*K402))","v":0}]
[null,"BSCR Rating 3",null,null,null,null,{"$f":"'Concentration Risk'!D65","v":0},1.4999999999999999E-2,0,null,null,0]
[null,"BSCR Rating 4",null,null,null,null,{"$f":"'Concentration Risk'!D66","v":0},0.03,0,null,null,0]
[null,"BSCR Rating 5",null,null,null,null,{"$f":"'Concentration Risk'!D67","v":0},0.08,0,null,null,0]
[null,"BSCR Rating 6",null,null,null,null,{"$f":"'Concentration Risk'!D68","v":0},0.15,0,null,null,0]
[null,"BSCR Rating 7",null,null,null,null,{"$f":"'Concentration Risk'!D69","v":0},0.26300000000000001,0,null,null,0]
[null,"BSCR Rating 8",null,null,null,null,{"$f":"'Concentration Risk'!D70","v":0},0.35,0,null,null,0]
[]
[null,"(e)  SUBTOTAL - BOND MUTUAL FUNDS",null,null,null,null,{"$f":"SUM(G400:G408)","v":0},null,{"$f":"SUM(I400:I408)","v":0},null,null,{"$f":"SUM(L400:L408)","v":0}]
[]
[null,"(f) Preferred Shares"]
[null,"BSCR Rating 0",null,null,null,null,{"$f":"'Concentration Risk'!D75","v":0},{"$f":"+'Concentration Risk (Old)'!E75","v":0},{"$f":"IF(G413<0,0,G413*H413)","v":0},null,null,{"$f":"MAX(0,IF(K413=\"\",H413*G413,G413*K413))","v":0}]
[null,"BSCR Rating 1",null,null,null,null,{"$f":"'Concentration Risk'!D76","v":0},{"$f":"+'Concentration Risk (Old)'!E76","v":6.0000000000000001E-3},{"$f":"IF(G414<0,0,G414*H414)","v":0},null,null,{"$f":"MAX(0,IF(K414=\"\",H414*G414,G414*K414))","v":0}]
[null,"BSCR Rating 2",null,null,null,null,{"$f":"'Concentration Risk'!D77","v":0},{"$f":"+'Concentration Risk (Old)'!E77","v":1.2E-2},0,null,null,0]
[null,"BSCR Rating 3",null,null,null,null,{"$f":"'Concentration Risk'!D78","v":0},{"$f":"+'Concentration Risk (Old)'!E78","v":0.02},0,null,null,0]
[null,"BSCR Rating 4",null,null,null,null,{"$f":"'Concentration Risk'!D79","v":0},{"$f":"+'Concentration Risk (Old)'!E79","v":0.04},0,null,null,0]
[null,"BSCR Rating 5",null,null,null,null,{"$f":"'Concentration Risk'!D80","v":0},{"$f":"+'Concentration Risk (Old)'!E80","v":0.11},0,null,null,0]
[null,"BSCR Rating 6",null,null,null,null,{"$f":"'Concentration Risk'!D81","v":0},{"$f":"+'Concentration Risk (Old)'!E81","v":0.25},0,null,null,0]
[null,"BSCR Rating 7",null,null,null,null,{"$f":"'Concentration Risk'!D82","v":0},{"$f":"+'Concentration Risk (Old)'!E82","v":0.35},0,null,null,0]
[null,"BSCR Rating 8",null,null,null,null,{"$f":"'Concentration Risk'!D83","v":0},{"$f":"+'Concentration Risk (Old)'!E83","v":0.35},0,null,null,0]
[]
[null,"(f)  SUBTOTAL - PREFERRED SHARES",null,null,null,null,{"$f":"SUM(G413:G421)","v":0},null,{"$f":"SUM(I413:I421)","v":0},null,null,{"$f":"SUM(L413:L421)","v":0}]
[]
[null,"(g) Mortgage Loans"]
[null,"Insured/Guaranteed Mortgages",null,null,null,null,{"$f":"'Concentration Risk'!D88","v":0},{"$f":"+'Concentration Risk (Old)'!E88","v":3.0000000000000001E-3},{"$f":"IF(G426<0,0,G426*H426)","v":0},null,null,{"$f":"MAX(0,IF(K426=\"\",H426*G426,G426*K426))","v":0}]
[null,"Other Commercial and Farm Mortgages",null,null,null,null,{"$f":"'Concentration Risk'!D89","v":0},{"$f":"+'Concentration Risk (Old)'!E89","v":0.05},{"$f":"IF(G427<0,0,G427*H427)","v":0},null,null,{"$f":"MAX(0,IF(K427=\"\",H427*G427,G427*K427))","v":0}]
[null,"Other Residential Mortgages",null,null,null,null,{"$f":"'Concentration Risk'!D90","v":0},{"$f":"+'Concentration Risk (Old)'!E90","v":1.4999999999999999E-2},{"$f":"IF(G428<0,0,G428*H428)","v":0},null,null,{"$f":"MAX(0,IF(K428=\"\",H428*G428,G428*K428))","v":0}]
[null,"Mortgages Not In Good Standing",null,null,null,null,{"$f":"'Concentration Risk'!D91","v":0},{"$f":"+'Concentration Risk (Old)'!E91","v":0.25},{"$f":"IF(G429<0,0,G429*H429)","v":0},null,null,{"$f":"MAX(0,IF(K429=\"\",H429*G429,G429*K429))","v":0}]
[]
[null,"(g)  SUBTOTAL - Mortgage Loans",null,null,null,null,{"$f":"SUM(G425:G429)","v":0},null,{"$f":"SUM(I425:I429)","v":0},null,null,{"$f":"SUM(L425:L429)","v":0}]
[]
[null,"(h) Other Asset Classes"]
[null,"Infrastructure (Non-affiliate holdings, non-duration based)",null,null,null,null,{"$f":"'Concentration Risk'!D96","v":0},{"$f":"'Concentration Risk'!E96","v":0.25},{"$f":"IF(G434<0,0,G434*H434)","v":0},null,null,{"$f":"MAX(0,IF(K434=\"\",H434*G434,G434*K434))","v":0}]
[null,"Listed Equity Securities in Developed Markets",null,null,null,null,{"$f":"'Concentration Risk'!D97","v":0},{"$f":"'Concentration Risk'!E97","v":0.35},{"$f":"IF(G435<0,0,G435*H435)","v":0},null,null,{"$f":"MAX(0,IF(K435=\"\",H435*G435,G435*K435))","v":0}]
[null,"Other Equities",null,null,null,null,{"$f":"'Concentration Risk'!D98","v":0},{"$f":"'Concentration Risk'!E98","v":0.45},{"$f":"IF(G436<0,0,G436*H436)","v":0},null,null,0]
[null,"Strategic Holdings",null,null,null,null,{"$f":"'Concentration Risk'!D99","v":0},{"$f":"'Concentration Risk'!E99","v":0.2},0,null,null,0]
[null,"Duration Based",null,null,null,null,{"$f":"'Concentration Risk'!D100","v":0},{"$f":"'Concentration Risk'!E100","v":0.2},{"$f":"IF(G438<0,0,G438*H438)","v":0},null,null,{"$f":"MAX(0,IF(K438=\"\",H438*G438,G438*K438))","v":0}]
[null,"Letters of Credit",null,null,null,null,{"$f":"'Concentration Risk'!D101","v":0},{"$f":"'Concentration Risk'!E101","v":0.2},0,null,null,0]
[null,"Advances to Affiliates - ",null,null,null,null,{"$f":"'Concentration Risk'!D102","v":0},{"$f":"'Concentration Risk'!E102","v":0.05},0,null,null,0]
[null,"Policy Loans",null,null,null,null,{"$f":"'Concentration Risk'!D103","v":0},{"$f":"'Concentration Risk'!E103","v":0},0,null,null,0]
[null,"Equity Real Estate 1",null,null,null,null,{"$f":"'Concentration Risk'!D104","v":0},{"$f":"'Concentration Risk'!E104","v":0.1},0,null,null,0]
[null,"Equity Real Estate 2",null,null,null,null,{"$f":"'Concentration Risk'!D105","v":0},{"$f":"'Concentration Risk'!E105","v":0.2},0,null,null,{"$f":"MAX(0,IF(K443=\"\",H443*G443,G443*K443))","v":0}]
[null,"Collateral Loans",null,null,null,null,{"$f":"'Concentration Risk'!D106","v":0},{"$f":"'Concentration Risk'!E106","v":0.05},0,null,null,0]
[]
[null,"(h)  SUBTOTAL - OTHER ASSET CLASSES",null,null,null,null,{"$f":"SUM(G434:G445)","v":0},null,{"$f":"SUM(I434:I445)","v":0},null,null,{"$f":"SUM(L434:L445)","v":0}]
[]
[]
[]
[]
[]
[]
[]
[]
[]
[]
[]
[]
[]
[]
[null,"TOTAL CONCENTRATION RISK",null,null,null,null,{"$f":"G358+G371+G384+G397+G410+G423+G431+G446","v":0},null,{"$f":"I358+I371+I384+I397+I410+I423+I431+I446","v":0},null,null,{"$f":"L358+L371+L384+L397+L410+L423+L431+L446","v":0}]
[]
[null,null,null,null,null,null,null,"STANDARD","STANDARD",null,"USER","USER"]
[null,"TYPE OF ",null,null,null,null,"ASSET","CAPITAL","REQUIRED",null,"CAPITAL","REQUIRED"]
[null,"CREDIT RISK",null,null,null,null,"VALUE","FACTOR","CAPITAL",null,"FACTOR","CAPITAL"]
[]
[null,"(a)  Accounts and Premiums Receivable",null,null,null,null,"(1) ","(2)","(1) x (2)",null,"(3)","(1) x (3)"]
[]
[null,"In Course of Collection",null,null,null,null,{"$f":"'Form 1EBS'!F57","v":0},{"$f":"'Credit Risk'!G11","v":0.05},{"$f":"IF(G469<0,0,G469*H469)","v":0},null,null,{"$f":"MAX(0,IF(K469=\"\",H469*G469,G469*K469))","v":0}]
[null,"Deferred - Not Yet Due",null,null,null,null,{"$f":"IF('Form 1SFS'!M68=0,'Form 1SFS'!E68+'Form 1SFS'!I68,'Form 1SFS'!M68)","v":0},{"$f":"'Credit Risk'!G12","v":0.05},{"$f":"IF(G470<0,0,G470*H470)","v":0},null,null,{"$f":"MAX(0,IF(K470=\"\",H470*G470,G470*K470))","v":0}]
[null,"Receivables from retrocessional contracts Less: Collateralized Balances",null,null,null,null,{"$f":"'Form 1EBS'!F58-'Form 1EBS'!F179","v":0},{"$f":"'Credit Risk'!G13","v":0.1},{"$f":"(G471*H471)","v":0},null,null,{"$f":"IF(K471=\"\",H471*G471,G471*K471)","v":0}]
[]
[null,"(a)  SUBTOTAL - ACCOUNTS AND PREMIUMS RECEIVABLE",null,null,null,null,{"$f":"SUM(G469:G471)","v":0},null,{"$f":"IF(SUM(I469:I471)>=0,SUM(I469:I471),0)","v":0},null,null,{"$f":"IF(SUM(L469:L471)>=0,SUM(L469:L471),0)","v":0}]
[]
[null,"(b)  All Other Receivables"]
[]
[null,"Accrued Investment Income",null,null,null,null,{"$f":"'Form 1EBS'!F54","v":0},{"$f":"'Credit Risk'!G19","v":2.5000000000000001E-2},{"$f":"IF(G477<0,0,G477*H477)","v":0},null,null,{"$f":"MAX(0,IF(K477=\"\",H477*G477,G477*K477))","v":0}]
[null,"Advances to Affiliates",null,null,null,null,{"$f":"'Form 1EBS'!F39","v":0},{"$f":"'Credit Risk'!G20","v":0.05},{"$f":"IF(G478<0,0,G478*H478)","v":0},null,null,{"$f":"MAX(0,IF(K478=\"\",H478*G478,G478*K478))","v":0}]
[null,"Balances receivable on sale of investments",null,null,null,null,{"$f":"'Form 1EBS'!F77","v":0},{"$f":"'Credit Risk'!G21","v":2.5000000000000001E-2},{"$f":"IF(G479<0,0,G479*H479)","v":0},null,null,{"$f":"MAX(0,IF(K479=\"\",H479*G479,G479*K479))","v":0}]
[]
[null,"(b)  SUBTOTAL - ALL OTHER RECEIVABLES",null,null,null,null,{"$f":"SUM(G477:G479)","v":0},null,{"$f":"IF(SUM(I477:I479)>=0,SUM(I477:I479),0)","v":0},null,null,{"$f":"IF(SUM(L477:L479)>=0,SUM(L477:L479),0)","v":0}]
[]
[null,"(c)(i) Particulars of Reinsurance Balances For Current Year By BSCR Rating"]
[]
[null,"BSCR Rating 0 (Domestic Affiliates)",null,null,null,null,{"$f":"'Schedule XVIII (EBS)'!O87","v":0},{"$f":"'Credit Risk'!G28","v":0},{"$f":"IF(G485<0,0,G485*H485)","v":0},null,null,{"$f":"MAX(0,IF(K485=\"\",H485*G485,G485*K485))","v":0}]
[null,"BSCR Rating 1",null,null,null,null,{"$f":"'Schedule XVIII (EBS)'!O88","v":0},{"$f":"'Credit Risk'!G29","v":7.0000000000000001E-3},{"$f":"IF(G486<0,0,G486*H486)","v":0},null,null,0]
[null,"BSCR Rating 2",null,null,null,null,{"$f":"'Schedule XVIII (EBS)'!O89","v":0},{"$f":"'Credit Risk'!G30","v":1.4999999999999999E-2},0,null,null,0]
[null,"BSCR Rating 3",null,null,null,null,{"$f":"'Schedule XVIII (EBS)'!O90","v":0},{"$f":"'Credit Risk'!G31","v":3.5000000000000003E-2},0,null,null,0]
[null,"BSCR Rating 4",null,null,null,null,{"$f":"'Schedule XVIII (EBS)'!O91","v":0},{"$f":"'Credit Risk'!G32","v":7.0000000000000007E-2},0,null,null,0]
[null,"BSCR Rating 5",null,null,null,null,{"$f":"'Schedule XVIII (EBS)'!O92","v":0},{"$f":"'Credit Risk'!G33","v":0.12},0,null,null,0]
[null,"BSCR Rating 6",null,null,null,null,{"$f":"'Schedule XVIII (EBS)'!O93","v":0},{"$f":"'Credit Risk'!G34","v":0.2},0,null,null,0]
[null,"BSCR Rating 7",null,null,null,null,{"$f":"'Schedule XVIII (EBS)'!O94","v":0},{"$f":"'Credit Risk'!G35","v":0.27},0,null,null,0]
[null,"BSCR Rating 8",null,null,null,null,{"$f":"'Schedule XVIII (EBS)'!O95","v":0},{"$f":"'Credit Risk'!G36","v":0.35},0,null,null,0]
[]
[null,"Total",null,null,null,null,{"$f":"SUM(G485:G494)","v":0},null,{"$f":"SUM(I485:I494)","v":0},null,null,{"$f":"SUM(L485:L494)","v":0}]
[]
[null,"Diversification Adjustment at 40%",null,null,null,null,null,null,{"$f":"SUM(I485:I493)*-('Schedule XVIII (EBS)'!O104)","v":0},null,null,{"$f":"SUM(L485:L493)*-('Schedule XVIII (EBS)'!O104)","v":0}]
[]
[null,"(c)(i)  SUBTOTAL - PARTICULARS OF REINSURANCE BALANCES BY BSCR RATING",null,null,null,null,{"$f":"+G495","v":0},null,{"$f":"IF(SUM(I485:I493,I497)>=0,SUM(I485:I493,I497),0)","v":0},null,null,{"$f":"IF(SUM(L485:L493,L497)>=0,SUM(L485:L493,L497),0)","v":0}]
[]
[null,"(c)(ii) Particulars of Reinsurance Balances For Future Premium By BSCR Rating"]
[]
[null,"Gross Premium Risk Charge",null,{"$f":"'Premium Risk'!Q59","v":0}]
[null,"Net Premium Risk Charge",null,{"$f":"'Premium Risk'!N59","v":0}]
[null,"% of Premiums Ceded Risk",null,{"$f":"D503-D504","v":0}]
[]
[null,"BSCR Rating 0 (Domestic Affiliates)",null,{"$f":"IF($G$495<>0, $D$505*G485/$G$495, 0)","v":0},null,null,{"$f":"IF($D$517=0,0,D507/$D$517)","v":0},{"$f":"'Credit Risk'!G51","v":0},{"$f":"IF($D$505<0,0,$D$505*G507*H507)","v":0},null,null,{"$f":"MAX(0,IF(K507=\"\",$D$505*G507*H507,$D$505*G507*K507))","v":0}]
[null,"BSCR Rating 1",null,{"$f":"IF($G$495<>0, $D$505*G486/$G$495, 0)","v":0},null,null,0,{"$f":"'Credit Risk'!G52","v":7.0000000000000001E-3},0,null,null,0]
[null,"BSCR Rating 2",null,{"$f":"IF($G$495<>0, $D$505*G487/$G$495, 0)","v":0},null,null,0,{"$f":"'Credit Risk'!G53","v":1.4999999999999999E-2},0,null,null,0]
[null,"BSCR Rating 3",null,{"$f":"IF($G$495<>0, $D$505*G488/$G$495, 0)","v":0},null,null,0,{"$f":"'Credit Risk'!G54","v":3.5000000000000003E-2},0,null,null,0]
[null,"BSCR Rating 4",null,{"$f":"IF($G$495<>0, $D$505*G489/$G$495, D505)","v":0},null,null,0,{"$f":"'Credit Risk'!G55","v":7.0000000000000007E-2},0,null,null,0]
[null,"BSCR Rating 5",null,{"$f":"IF($G$495<>0, $D$505*G490/$G$495, 0)","v":0},null,null,0,{"$f":"'Credit Risk'!G56","v":0.12},0,null,null,0]
[null,"BSCR Rating 6",null,{"$f":"IF($G$495<>0, $D$505*G491/$G$495, 0)","v":0},null,null,0,{"$f":"'Credit Risk'!G57","v":0.2},0,null,null,0]
[null,"BSCR Rating 7",null,{"$f":"IF($G$495<>0, $D$505*G492/$G$495, 0)","v":0},null,null,0,{"$f":"'Credit Risk'!G58","v":0.27},0,null,null,0]
[null,"BSCR Rating 8",null,{"$f":"IF($G$495<>0, $D$505*G493/$G$495, 0)","v":0},null,null,0,{"$f":"'Credit Risk'!G59","v":0.35},0,null,null,0]
[]
[null,"Total",null,{"$f":"SUM(D507:D516)","v":0},null,null,{"$f":"SUM(G507:G516)","v":0},null,{"$f":"SUM(I507:I516)","v":0},null,null,{"$f":"SUM(L507:L516)","v":0}]
[]
[null,"Diversification Adjustment at 40%",null,null,null,null,null,null,{"$f":"SUM(I507:I515)*-('Schedule XVIII (EBS)'!O104)","v":0},null,null,{"$f":"SUM(L507:L515)*-('Schedule XVIII (EBS)'!O104)","v":0}]
[]
[null,"(c)(ii)  SUBTOTAL - PARTICULARS OF REINSURANCE BALANCES BY BSCR RATING",null,null,null,null,null,null,{"$f":"IF(SUM(I517:I519)>=0,SUM(I517:I519),0)","v":0},null,null,{"$f":"IF(SUM(L517:L519)>=0,SUM(L517:L519),0)","v":0}]
[]
[null,"(c)  SUBTOTAL - PARTICULARS OF REINSURANCE BALANCES BY BSCR RATING (MAX OF (C)(I) AND (C)(II)",null,null,null,null,null,null,{"$f":"MAX(I499,I521)","v":0},null,null,{"$f":"MAX(L499,L521)","v":0}]
[]
[null,null,null,"Market Value of Derivatives with Positive Market Value","Market Value of Derivatives with Negative Market Value","Market Value of Collateral, Excluding any overcollateralization","STANDARD","HAIRCUT","STANDARD",null,"USER","USER"]
[null,null,null,null,null,null,"CAPITAL","ON","REQUIRED",null,"CAPITAL","REQUIRED"]
[null,null,null,null,null,null,"FACTOR","COLLATERAL","CAPITAL",null,"FACTOR","CAPITAL"]
[]
[null,"(d) Counterparty Default Risk for OTC Derivatives"]
[]
[null,"BSCR Rating 0 ",null,{"$f":"'Schedule IIB (EBS)'!D84+'Schedule IIC (EBS)'!D84+'Schedule IID (EBS)'!D84+'Schedule IIE (EBS)'!D84+'Schedule IIF (EBS)'!D84","v":0},{"$f":"'Schedule IIB (EBS)'!F84+'Schedule IIC (EBS)'!F84+'Schedule IID (EBS)'!F84+'Schedule IIE (EBS)'!F84+'Schedule IIF (EBS)'!F84","v":0},{"$f":"'Schedule IIB (EBS)'!H84+'Schedule IIC (EBS)'!H84+'Schedule IID (EBS)'!H84+'Schedule IIE (EBS)'!H84+'Schedule IIF (EBS)'!H84","v":0},{"$f":"'Credit Risk'!F72","v":0},{"$f":"'Credit Risk'!G72","v":0.03},{"$f":"MAX(0,D531-(1-H531)*MIN(D531,F531))*G531","v":0},null,null,{"$f":"IF(K531=\"\",I531,MAX(0,D531-(1-H531)*MIN(D531,F531))*K531)","v":0}]
[null,"BSCR Rating 1",null,{"$f":"'Schedule IIB (EBS)'!D85+'Schedule IIC (EBS)'!D85+'Schedule IID (EBS)'!D85+'Schedule IIE (EBS)'!D85+'Schedule IIF (EBS)'!D85","v":0},{"$f":"'Schedule IIB (EBS)'!F85+'Schedule IIC (EBS)'!F85+'Schedule IID (EBS)'!F85+'Schedule IIE (EBS)'!F85+'Schedule IIF (EBS)'!F85","v":0},{"$f":"'Schedule IIB (EBS)'!H85+'Schedule IIC (EBS)'!H85+'Schedule IID (EBS)'!H85+'Schedule IIE (EBS)'!H85+'Schedule IIF (EBS)'!H85","v":0},{"$f":"'Credit Risk'!F73","v":4.0000000000000001E-3},{"$f":"'Credit Risk'!G73","v":0.03},{"$f":"MAX(0,D532-(1-H532)*MIN(D532,F532))*G532","v":0},null,null,{"$f":"IF(K532=\"\",I532,MAX(0,D532-(1-H532)*MIN(D532,F532))*K532)","v":0}]
[null,"BSCR Rating 2",null,{"$f":"'Schedule IIB (EBS)'!D86+'Schedule IIC (EBS)'!D86+'Schedule IID (EBS)'!D86+'Schedule IIE (EBS)'!D86+'Schedule IIF (EBS)'!D86","v":0},{"$f":"'Schedule IIB (EBS)'!F86+'Schedule IIC (EBS)'!F86+'Schedule IID (EBS)'!F86+'Schedule IIE (EBS)'!F86+'Schedule IIF (EBS)'!F86","v":0},{"$f":"'Schedule IIB (EBS)'!H86+'Schedule IIC (EBS)'!H86+'Schedule IID (EBS)'!H86+'Schedule IIE (EBS)'!H86+'Schedule IIF (EBS)'!H86","v":0},{"$f":"'Credit Risk'!F74","v":8.0000000000000002E-3},{"$f":"'Credit Risk'!G74","v":0.03},0,null,null,0]
[null,"BSCR Rating 3",null,{"$f":"'Schedule IIB (EBS)'!D87+'Schedule IIC (EBS)'!D87+'Schedule IID (EBS)'!D87+'Schedule IIE (EBS)'!D87+'Schedule IIF (EBS)'!D87","v":0},{"$f":"'Schedule IIB (EBS)'!F87+'Schedule IIC (EBS)'!F87+'Schedule IID (EBS)'!F87+'Schedule IIE (EBS)'!F87+'Schedule IIF (EBS)'!F87","v":0},{"$f":"'Schedule IIB (EBS)'!H87+'Schedule IIC (EBS)'!H87+'Schedule IID (EBS)'!H87+'Schedule IIE (EBS)'!H87+'Schedule IIF (EBS)'!H87","v":0},{"$f":"'Credit Risk'!F75","v":1.4999999999999999E-2},{"$f":"'Credit Risk'!G75","v":0.03},0,null,null,0]
[null,"BSCR Rating 4",null,{"$f":"'Schedule IIB (EBS)'!D88+'Schedule IIC (EBS)'!D88+'Schedule IID (EBS)'!D88+'Schedule IIE (EBS)'!D88+'Schedule IIF (EBS)'!D88","v":0},{"$f":"'Schedule IIB (EBS)'!F88+'Schedule IIC (EBS)'!F88+'Schedule IID (EBS)'!F88+'Schedule IIE (EBS)'!F88+'Schedule IIF (EBS)'!F88","v":0},{"$f":"'Schedule IIB (EBS)'!H88+'Schedule IIC (EBS)'!H88+'Schedule IID (EBS)'!H88+'Schedule IIE (EBS)'!H88+'Schedule IIF (EBS)'!H88","v":0},{"$f":"'Credit Risk'!F76","v":0.03},{"$f":"'Credit Risk'!G76","v":0.03},0,null,null,0]
[null,"BSCR Rating 5",null,{"$f":"'Schedule IIB (EBS)'!D89+'Schedule IIC (EBS)'!D89+'Schedule IID (EBS)'!D89+'Schedule IIE (EBS)'!D89+'Schedule IIF (EBS)'!D89","v":0},{"$f":"'Schedule IIB (EBS)'!F89+'Schedule IIC (EBS)'!F89+'Schedule IID (EBS)'!F89+'Schedule IIE (EBS)'!F89+'Schedule IIF (EBS)'!F89","v":0},{"$f":"'Schedule IIB (EBS)'!H89+'Schedule IIC (EBS)'!H89+'Schedule IID (EBS)'!H89+'Schedule IIE (EBS)'!H89+'Schedule IIF (EBS)'!H89","v":0},{"$f":"'Credit Risk'!F77","v":0.08},{"$f":"'Credit Risk'!G77","v":0.03},0,null,null,0]
[null,"BSCR Rating 6",null,{"$f":"'Schedule IIB (EBS)'!D90+'Schedule IIC (EBS)'!D90+'Schedule IID (EBS)'!D90+'Schedule IIE (EBS)'!D90+'Schedule IIF (EBS)'!D90","v":0},{"$f":"'Schedule IIB (EBS)'!F90+'Schedule IIC (EBS)'!F90+'Schedule IID (EBS)'!F90+'Schedule IIE (EBS)'!F90+'Schedule IIF (EBS)'!F90","v":0},{"$f":"'Schedule IIB (EBS)'!H90+'Schedule IIC (EBS)'!H90+'Schedule IID (EBS)'!H90+'Schedule IIE (EBS)'!H90+'Schedule IIF (EBS)'!H90","v":0},{"$f":"'Credit Risk'!F78","v":0.15},{"$f":"'Credit Risk'!G78","v":0.03},0,null,null,0]
[null,"BSCR Rating 7",null,{"$f":"'Schedule IIB (EBS)'!D91+'Schedule IIC (EBS)'!D91+'Schedule IID (EBS)'!D91+'Schedule IIE (EBS)'!D91+'Schedule IIF (EBS)'!D91","v":0},{"$f":"'Schedule IIB (EBS)'!F91+'Schedule IIC (EBS)'!F91+'Schedule IID (EBS)'!F91+'Schedule IIE (EBS)'!F91+'Schedule IIF (EBS)'!F91","v":0},{"$f":"'Schedule IIB (EBS)'!H91+'Schedule IIC (EBS)'!H91+'Schedule IID (EBS)'!H91+'Schedule IIE (EBS)'!H91+'Schedule IIF (EBS)'!H91","v":0},{"$f":"'Credit Risk'!F79","v":0.26300000000000001},{"$f":"'Credit Risk'!G79","v":0.03},0,null,null,0]
[null,"BSCR Rating 8",null,{"$f":"'Schedule IIB (EBS)'!D92+'Schedule IIC (EBS)'!D92+'Schedule IID (EBS)'!D92+'Schedule IIE (EBS)'!D92+'Schedule IIF (EBS)'!D92","v":0},{"$f":"'Schedule IIB (EBS)'!F92+'Schedule IIC (EBS)'!F92+'Schedule IID (EBS)'!F92+'Schedule IIE (EBS)'!F92+'Schedule IIF (EBS)'!F92","v":0},{"$f":"'Schedule IIB (EBS)'!H92+'Schedule IIC (EBS)'!H92+'Schedule IID (EBS)'!H92+'Schedule IIE (EBS)'!H92+'Schedule IIF (EBS)'!H92","v":0},{"$f":"'Credit Risk'!F80","v":0.35},{"$f":"'Credit Risk'!G80","v":0.03},0,null,null,0]
[null,null,null,{"$f":"SUM(D531:D539)","v":0},{"$f":"SUM(E531:E539)","v":0},{"$f":"SUM(F531:F539)","v":0},null,null,{"$f":"SUM(I531:I539)","v":0},null,null,{"$f":"SUM(L531:L539)","v":0}]
[]
[null,"(d)  SUBTOTAL - COUNTERPARTY DEFAULT RISK FOR OTC DERIVATIVES",null,null,null,null,null,null,{"$f":"SUM(I531:I539)","v":0},null,null,{"$f":"SUM(L531:L539)","v":0}]
[]
[null,"(d)  TOTAL CREDIT RISK  [ (a) + (b) + (c) ]",null,null,null,null,{"$f":"G499+G481+G473","v":0},null,{"$f":"I481+I473+I523+I542","v":0},null,null,{"$f":"L481+L473+L523+L542","v":0}]
[]
[null,null,null,"GROSS","GEO DIV","GEO DIV","GEO DIV","STANDARD","STANDARD",null,"USER","USER"]
[null,"TYPE OF ",null,"EXPOSURE","NET BASE","NET FP","NET FP","CAPITAL","REQUIRED",null,"CAPITAL","REQUIRED"]
[null,"PREMIUM RISK",null,"MEASURE","EXPOSURE","(EXISTING)","(FUTURE)","FACTOR","CAPITAL",null,"FACTOR","CAPITAL"]
[]
[null,"Property Catastrophe",null,{"$f":"'Premium Risk'!D11","v":0},{"$f":"'Premium Risk'!H11","v":0},{"$f":"'Premium Risk'!I11","v":0},{"$f":"'Premium Risk'!J11","v":0},{"$f":"'Premium Risk'!K11","v":0},{"$f":"IF($E550<0,0,$E550*'Premium Risk'!$K11)+IF($F550<0,0,$F550*'Premium Risk'!$L11)+IF($G550<0,0,$G550*'Premium Risk'!$M11)","v":0},null,null,{"$f":"MAX(0,IF(K550=\"\",I550,IF($E550<0,0,$E550*K550)+IF($F550<0,0,$F550*K550)+IF($G550<0,0,$G550*K550)))","v":0}]
[null,"Property",null,{"$f":"'Premium Risk'!D12","v":0},{"$f":"'Premium Risk'!H12","v":0},{"$f":"'Premium Risk'!I12","v":0},{"$f":"'Premium Risk'!J12","v":0},{"$f":"'Premium Risk'!K12","v":0.497450025355053},{"$f":"IF($E551<0,0,$E551*'Premium Risk'!$K12)+IF($F551<0,0,$F551*'Premium Risk'!$L12)+IF($G551<0,0,$G551*'Premium Risk'!$M12)","v":0},null,null,{"$f":"MAX(0,IF(K551=\"\",I551,IF($E551<0,0,$E551*K551)+IF($F551<0,0,$F551*K551*'Premium Risk'!S12)+IF($G551<0,0,$G551*K551*'Premium Risk'!S12*'Premium Risk'!T12)))","v":0}]
[null,"Property Non-Proportional",null,{"$f":"'Premium Risk'!D13","v":0},{"$f":"'Premium Risk'!H13","v":0},{"$f":"'Premium Risk'!I13","v":0},{"$f":"'Premium Risk'!J13","v":0},{"$f":"'Premium Risk'!K13","v":0.51625715924082105},{"$f":"IF($E552<0,0,$E552*'Premium Risk'!$K13)+IF($F552<0,0,$F552*'Premium Risk'!$L13)+IF($G552<0,0,$G552*'Premium Risk'!$M13)","v":0},null,null,{"$f":"MAX(0,IF(K552=\"\",I552,IF($E552<0,0,$E552*K552)+IF($F552<0,0,$F552*K552*'Premium Risk'!S13)+IF($G552<0,0,$G552*K552*'Premium Risk'!S13*'Premium Risk'!T13)))","v":0}]
[null,"Personal Accident",null,{"$f":"'Premium Risk'!D14","v":0},{"$f":"'Premium Risk'!H14","v":0},{"$f":"'Premium Risk'!I14","v":0},{"$f":"'Premium Risk'!J14","v":0},{"$f":"'Premium Risk'!K14","v":0.34115345724240698},{"$f":"IF($E553<0,0,$E553*'Premium Risk'!$K14)+IF($F553<0,0,$F553*'Premium Risk'!$L14)+IF($G553<0,0,$G553*'Premium Risk'!$M14)","v":0},null,null,{"$f":"MAX(0,IF(K553=\"\",I553,IF($E553<0,0,$E553*K553)+IF($F553<0,0,$F553*K553*'Premium Risk'!S14)+IF($G553<0,0,$G553*K553*'Premium Risk'!S14*'Premium Risk'!T14)))","v":0}]
[null,"Personal Accident Non-Proportional",null,{"$f":"'Premium Risk'!D15","v":0},{"$f":"'Premium Risk'!H15","v":0},{"$f":"'Premium Risk'!I15","v":0},{"$f":"'Premium Risk'!J15","v":0},{"$f":"'Premium Risk'!K15","v":0.41221262895987398},{"$f":"IF($E554<0,0,$E554*'Premium Risk'!$K15)+IF($F554<0,0,$F554*'Premium Risk'!$L15)+IF($G554<0,0,$G554*'Premium Risk'!$M15)","v":0},null,null,{"$f":"MAX(0,IF(K554=\"\",I554,IF($E554<0,0,$E554*K554)+IF($F554<0,0,$F554*K554*'Premium Risk'!S15)+IF($G554<0,0,$G554*K554*'Premium Risk'!S15*'Premium Risk'!T15)))","v":0}]
[null,"Aviation",null,{"$f":"'Premium Risk'!D16","v":0},{"$f":"'Premium Risk'!H16","v":0},{"$f":"'Premium Risk'!I16","v":0},{"$f":"'Premium Risk'!J16","v":0},{"$f":"'Premium Risk'!K16","v":0.48178449435856302},{"$f":"IF($E555<0,0,$E555*'Premium Risk'!$K16)+IF($F555<0,0,$F555*'Premium Risk'!$L16)+IF($G555<0,0,$G555*'Premium Risk'!$M16)","v":0},null,null,{"$f":"MAX(0,IF(K555=\"\",I555,IF($E555<0,0,$E555*K555)+IF($F555<0,0,$F555*K555*'Premium Risk'!S16)+IF($G555<0,0,$G555*K555*'Premium Risk'!S16*'Premium Risk'!T16)))","v":0}]
[null,"Aviation Non-Proportional",null,{"$f":"'Premium Risk'!D17","v":0},{"$f":"'Premium Risk'!H17","v":0},{"$f":"'Premium Risk'!I17","v":0},{"$f":"'Premium Risk'!J17","v":0},{"$f":"'Premium Risk'!K17","v":0.48201231799963601},{"$f":"IF($E556<0,0,$E556*'Premium Risk'!$K17)+IF($F556<0,0,$F556*'Premium Risk'!$L17)+IF($G556<0,0,$G556*'Premium Risk'!$M17)","v":0},null,null,{"$f":"MAX(0,IF(K556=\"\",I556,IF($E556<0,0,$E556*K556)+IF($F556<0,0,$F556*K556*'Premium Risk'!S17)+IF($G556<0,0,$G556*K556*'Premium Risk'!S17*'Premium Risk'!T17)))","v":0}]
[null,"Credit / Surety",null,{"$f":"'Premium Risk'!D18","v":0},{"$f":"'Premium Risk'!H18","v":0},{"$f":"'Premium Risk'!I18","v":0},{"$f":"'Premium Risk'!J18","v":0},{"$f":"'Premium Risk'!K18","v":0.39820522005250802},{"$f":"IF($E557<0,0,$E557*'Premium Risk'!$K18)+IF($F557<0,0,$F557*'Premium Risk'!$L18)+IF($G557<0,0,$G557*'Premium Risk'!$M18)","v":0},null,null,{"$f":"MAX(0,IF(K557=\"\",I557,IF($E557<0,0,$E557*K557)+IF($F557<0,0,$F557*K557*'Premium Risk'!S18)+IF($G557<0,0,$G557*K557*'Premium Risk'!S18*'Premium Risk'!T18)))","v":0}]
[null,"Credit / Surety Non-Proportional",null,{"$f":"'Premium Risk'!D19","v":0},{"$f":"'Premium Risk'!H19","v":0},{"$f":"'Premium Risk'!I19","v":0},{"$f":"'Premium Risk'!J19","v":0},{"$f":"'Premium Risk'!K19","v":0.45356665999464701},{"$f":"IF($E558<0,0,$E558*'Premium Risk'!$K19)+IF($F558<0,0,$F558*'Premium Risk'!$L19)+IF($G558<0,0,$G558*'Premium Risk'!$M19)","v":0},null,null,{"$f":"MAX(0,IF(K558=\"\",I558,IF($E558<0,0,$E558*K558)+IF($F558<0,0,$F558*K558*'Premium Risk'!S19)+IF($G558<0,0,$G558*K558*'Premium Risk'!S19*'Premium Risk'!T19)))","v":0}]
[null,"Energy Offshore / Marine",null,{"$f":"'Premium Risk'!D20","v":0},{"$f":"'Premium Risk'!H20","v":0},{"$f":"'Premium Risk'!I20","v":0},{"$f":"'Premium Risk'!J20","v":0},{"$f":"'Premium Risk'!K20","v":0.42102344656076801},{"$f":"IF($E559<0,0,$E559*'Premium Risk'!$K20)+IF($F559<0,0,$F559*'Premium Risk'!$L20)+IF($G559<0,0,$G559*'Premium Risk'!$M20)","v":0},null,null,{"$f":"MAX(0,IF(K559=\"\",I559,IF($E559<0,0,$E559*K559)+IF($F559<0,0,$F559*K559*'Premium Risk'!S20)+IF($G559<0,0,$G559*K559*'Premium Risk'!S20*'Premium Risk'!T20)))","v":0}]
[null,"Energy Offshore / Marine Non-Proportional",null,{"$f":"'Premium Risk'!D21","v":0},{"$f":"'Premium Risk'!H21","v":0},{"$f":"'Premium Risk'!I21","v":0},{"$f":"'Premium Risk'!J21","v":0},{"$f":"'Premium Risk'!K21","v":0.47016820069929899},{"$f":"IF($E560<0,0,$E560*'Premium Risk'!$K21)+IF($F560<0,0,$F560*'Premium Risk'!$L21)+IF($G560<0,0,$G560*'Premium Risk'!$M21)","v":0},null,null,{"$f":"MAX(0,IF(K560=\"\",I560,IF($E560<0,0,$E560*K560)+IF($F560<0,0,$F560*K560*'Premium Risk'!S21)+IF($G560<0,0,$G560*K560*'Premium Risk'!S21*'Premium Risk'!T21)))","v":0}]
[null,"US Casualty",null,{"$f":"'Premium Risk'!D22","v":0},{"$f":"'Premium Risk'!H22","v":0},{"$f":"'Premium Risk'!I22","v":0},{"$f":"'Premium Risk'!J22","v":0},{"$f":"'Premium Risk'!K22","v":0.50272577892886305},{"$f":"IF($E561<0,0,$E561*'Premium Risk'!$K22)+IF($F561<0,0,$F561*'Premium Risk'!$L22)+IF($G561<0,0,$G561*'Premium Risk'!$M22)","v":0},null,null,{"$f":"MAX(0,IF(K561=\"\",I561,IF($E561<0,0,$E561*K561)+IF($F561<0,0,$F561*K561*'Premium Risk'!S22)+IF($G561<0,0,$G561*K561*'Premium Risk'!S22*'Premium Risk'!T22)))","v":0}]
[null,"US Casualty Non-Proportional",null,{"$f":"'Premium Risk'!D23","v":0},{"$f":"'Premium Risk'!H23","v":0},{"$f":"'Premium Risk'!I23","v":0},{"$f":"'Premium Risk'!J23","v":0},{"$f":"'Premium Risk'!K23","v":0.555814073452775},{"$f":"IF($E562<0,0,$E562*'Premium Risk'!$K23)+IF($F562<0,0,$F562*'Premium Risk'!$L23)+IF($G562<0,0,$G562*'Premium Risk'!$M23)","v":0},null,null,{"$f":"MAX(0,IF(K562=\"\",I562,IF($E562<0,0,$E562*K562)+IF($F562<0,0,$F562*K562*'Premium Risk'!S23)+IF($G562<0,0,$G562*K562*'Premium Risk'!S23*'Premium Risk'!T23)))","v":0}]
[null,"US Professional",null,{"$f":"'Premium Risk'!D24","v":0},{"$f":"'Premium Risk'!H24","v":0},{"$f":"'Premium Risk'!I24","v":0},{"$f":"'Premium Risk'!J24","v":0},{"$f":"'Premium Risk'!K24","v":0.51225206482709496},{"$f":"IF($E563<0,0,$E563*'Premium Risk'!$K24)+IF($F563<0,0,$F563*'Premium Risk'!$L24)+IF($G563<0,0,$G563*'Premium Risk'!$M24)","v":0},null,null,{"$f":"MAX(0,IF(K563=\"\",I563,IF($E563<0,0,$E563*K563)+IF($F563<0,0,$F563*K563*'Premium Risk'!S24)+IF($G563<0,0,$G563*K563*'Premium Risk'!S24*'Premium Risk'!T24)))","v":0}]
[null,"US Professional Non-Proportional",null,{"$f":"'Premium Risk'!D25","v":0},{"$f":"'Premium Risk'!H25","v":0},{"$f":"'Premium Risk'!I25","v":0},{"$f":"'Premium Risk'!J25","v":0},{"$f":"'Premium Risk'!K25","v":0.53805556666757803},{"$f":"IF($E564<0,0,$E564*'Premium Risk'!$K25)+IF($F564<0,0,$F564*'Premium Risk'!$L25)+IF($G564<0,0,$G564*'Premium Risk'!$M25)","v":0},null,null,{"$f":"MAX(0,IF(K564=\"\",I564,IF($E564<0,0,$E564*K564)+IF($F564<0,0,$F564*K564*'Premium Risk'!S25)+IF($G564<0,0,$G564*K564*'Premium Risk'!S25*'Premium Risk'!T25)))","v":0}]
[null,"US Specialty",null,{"$f":"'Premium Risk'!D26","v":0},{"$f":"'Premium Risk'!H26","v":0},{"$f":"'Premium Risk'!I26","v":0},{"$f":"'Premium Risk'!J26","v":0},{"$f":"'Premium Risk'!K26","v":0.51436147942106603},{"$f":"IF($E565<0,0,$E565*'Premium Risk'!$K26)+IF($F565<0,0,$F565*'Premium Risk'!$L26)+IF($G565<0,0,$G565*'Premium Risk'!$M26)","v":0},null,null,{"$f":"MAX(0,IF(K565=\"\",I565,IF($E565<0,0,$E565*K565)+IF($F565<0,0,$F565*K565*'Premium Risk'!S26)+IF($G565<0,0,$G565*K565*'Premium Risk'!S26*'Premium Risk'!T26)))","v":0}]
[null,"US Specialty Non-Proportional",null,{"$f":"'Premium Risk'!D27","v":0},{"$f":"'Premium Risk'!H27","v":0},{"$f":"'Premium Risk'!I27","v":0},{"$f":"'Premium Risk'!J27","v":0},{"$f":"'Premium Risk'!K27","v":0.52697789035313303},{"$f":"IF($E566<0,0,$E566*'Premium Risk'!$K27)+IF($F566<0,0,$F566*'Premium Risk'!$L27)+IF($G566<0,0,$G566*'Premium Risk'!$M27)","v":0},null,null,{"$f":"MAX(0,IF(K566=\"\",I566,IF($E566<0,0,$E566*K566)+IF($F566<0,0,$F566*K566*'Premium Risk'!S27)+IF($G566<0,0,$G566*K566*'Premium Risk'!S27*'Premium Risk'!T27)))","v":0}]
[null,"International Motor",null,{"$f":"'Premium Risk'!D28","v":0},{"$f":"'Premium Risk'!H28","v":0},{"$f":"'Premium Risk'!I28","v":0},{"$f":"'Premium Risk'!J28","v":0},{"$f":"'Premium Risk'!K28","v":0.42191756117933499},{"$f":"IF($E567<0,0,$E567*'Premium Risk'!$K28)+IF($F567<0,0,$F567*'Premium Risk'!$L28)+IF($G567<0,0,$G567*'Premium Risk'!$M28)","v":0},null,null,{"$f":"MAX(0,IF(K567=\"\",I567,IF($E567<0,0,$E567*K567)+IF($F567<0,0,$F567*K567*'Premium Risk'!S28)+IF($G567<0,0,$G567*K567*'Premium Risk'!S28*'Premium Risk'!T28)))","v":0}]
[null,"International Motor Non-Proportional",null,{"$f":"'Premium Risk'!D29","v":0},{"$f":"'Premium Risk'!H29","v":0},{"$f":"'Premium Risk'!I29","v":0},{"$f":"'Premium Risk'!J29","v":0},{"$f":"'Premium Risk'!K29","v":0.482210885429324},{"$f":"IF($E568<0,0,$E568*'Premium Risk'!$K29)+IF($F568<0,0,$F568*'Premium Risk'!$L29)+IF($G568<0,0,$G568*'Premium Risk'!$M29)","v":0},null,null,{"$f":"MAX(0,IF(K568=\"\",I568,IF($E568<0,0,$E568*K568)+IF($F568<0,0,$F568*K568*'Premium Risk'!S29)+IF($G568<0,0,$G568*K568*'Premium Risk'!S29*'Premium Risk'!T29)))","v":0}]
[null,"International Casualty Non-Motor",null,{"$f":"'Premium Risk'!D30","v":0},{"$f":"'Premium Risk'!H30","v":0},{"$f":"'Premium Risk'!I30","v":0},{"$f":"'Premium Risk'!J30","v":0},{"$f":"'Premium Risk'!K30","v":0.50012106835589698},{"$f":"IF($E569<0,0,$E569*'Premium Risk'!$K30)+IF($F569<0,0,$F569*'Premium Risk'!$L30)+IF($G569<0,0,$G569*'Premium Risk'!$M30)","v":0},null,null,{"$f":"MAX(0,IF(K569=\"\",I569,IF($E569<0,0,$E569*K569)+IF($F569<0,0,$F569*K569*'Premium Risk'!S30)+IF($G569<0,0,$G569*K569*'Premium Risk'!S30*'Premium Risk'!T30)))","v":0}]
[null,"International Casualty Non-Motor Non-Proportional",null,{"$f":"'Premium Risk'!D31","v":0},{"$f":"'Premium Risk'!H31","v":0},{"$f":"'Premium Risk'!I31","v":0},{"$f":"'Premium Risk'!J31","v":0},{"$f":"'Premium Risk'!K31","v":0.53551360019381999},{"$f":"IF($E570<0,0,$E570*'Premium Risk'!$K31)+IF($F570<0,0,$F570*'Premium Risk'!$L31)+IF($G570<0,0,$G570*'Premium Risk'!$M31)","v":0},null,null,{"$f":"MAX(0,IF(K570=\"\",I570,IF($E570<0,0,$E570*K570)+IF($F570<0,0,$F570*K570*'Premium Risk'!S31)+IF($G570<0,0,$G570*K570*'Premium Risk'!S31*'Premium Risk'!T31)))","v":0}]
[null,"Retro Property",null,{"$f":"'Premium Risk'!D32","v":0},{"$f":"'Premium Risk'!H32","v":0},{"$f":"'Premium Risk'!I32","v":0},{"$f":"'Premium Risk'!J32","v":0},{"$f":"'Premium Risk'!K32","v":0.508030898436173},{"$f":"IF($E571<0,0,$E571*'Premium Risk'!$K32)+IF($F571<0,0,$F571*'Premium Risk'!$L32)+IF($G571<0,0,$G571*'Premium Risk'!$M32)","v":0},null,null,{"$f":"MAX(0,IF(K571=\"\",I571,IF($E571<0,0,$E571*K571)+IF($F571<0,0,$F571*K571*'Premium Risk'!S32)+IF($G571<0,0,$G571*K571*'Premium Risk'!S32*'Premium Risk'!T32)))","v":0}]
[null,"Structured / Finite Reinsurance",null,{"$f":"'Premium Risk'!D33","v":0},{"$f":"'Premium Risk'!H33","v":0},{"$f":"'Premium Risk'!I33","v":0},{"$f":"'Premium Risk'!J33","v":0},{"$f":"'Premium Risk'!K33","v":0.27200000000000002},{"$f":"IF($E572<0,0,$E572*'Premium Risk'!$K33)+IF($F572<0,0,$F572*'Premium Risk'!$L33)+IF($G572<0,0,$G572*'Premium Risk'!$M33)","v":0},null,null,{"$f":"MAX(0,IF(K572=\"\",I572,IF($E572<0,0,$E572*K572)+IF($F572<0,0,$F572*K572*'Premium Risk'!S33)+IF($G572<0,0,$G572*K572*'Premium Risk'!S33*'Premium Risk'!T33)))","v":0}]
[null,"Health",null,{"$f":"'Premium Risk'!D34","v":0},{"$f":"'Premium Risk'!H34","v":0},{"$f":"'Premium Risk'!I34","v":0},{"$f":"'Premium Risk'!J34","v":0},{"$f":"'Premium Risk'!K34","v":0.15},{"$f":"IF($E573<0,0,$E573*'Premium Risk'!$K34)+IF($F573<0,0,$F573*'Premium Risk'!$L34)+IF($G573<0,0,$G573*'Premium Risk'!$M34)","v":0},null,null,{"$f":"MAX(0,IF(K573=\"\",I573,IF($E573<0,0,$E573*K573)+IF($F573<0,0,$F573*K573*'Premium Risk'!S34)+IF($G573<0,0,$G573*K573*'Premium Risk'!S34*'Premium Risk'!T34)))","v":0}]
[]
[null,"(a)  TOTAL",null,{"$f":"SUM(D550:D573)","v":0},{"$f":"SUM(E550:E573)","v":0},{"$f":"SUM(F550:F573)","v":0},{"$f":"SUM(G550:G573)","v":0},null,{"$f":"SUM(I550:I574)","v":0},null,null,{"$f":"SUM(L550:L573)","v":0}]
[]
[null,"(b)  CORRELATION ADJUSTMENT"]
[]
[null,null,"(i)","Reduction in Capital Charge from Correlation Matrix",null,null,null,null,{"$f":"I575-I581","v":0},null,null,{"$f":"L575-L581","v":0}]
[]
[null,"(b)  CAPITAL CHARGE AFTER CORRELATION",null,null,null,null,null,{"$f":"'Premium Risk'!K42","v":0},{"$f":"SQRT(MMULT(TRANSPOSE(I550:I573),MMULT('Correlation Matrix'!C15:Z38,I550:I573)))","v":0},null,null,{"$f":"SQRT(MMULT(TRANSPOSE(L550:L573),MMULT('Correlation Matrix'!C15:Z38,L550:L573)))","v":0}]
[]
[null,"(c)  CATASTROPHE PREMIUM ADJUSTMENT CALCULATION"]
[]
[null,null,"(i)","Average Annual Loss (AAL) Excluding Property Catastrophe",null,null,null,null,{"$f":"+I657","v":0},null,null,{"$f":"+L657","v":0}]
[null,null,"(ii)","Industry Catastrophe Loss Ratio",null,null,null,null,{"$f":"+I659","v":0.4},null,null,{"$f":"+I586","v":0.4}]
[null,null,"(iii)","Avg Capital Factor  [ Total (3c) / (Total (1a) excl Prop CAT) ]",null,null,null,null,{"$f":"IF((E575-E550)=0,0,H581/(E575-E550))","v":0},null,null,{"$f":"IF((E575-E550)=0,0,H581/(E575-E550))","v":0}]
[]
[null,"(c)  CATASTROPHE PREMIUM ADJUSTMENT  [ (i) / (ii) x (iii) ]",null,null,null,null,null,null,{"$f":"I585/I586*I587","v":0},null,null,{"$f":"IF(L586=0,0,L585/L586*L587)","v":0}]
[]
[null,null,"(i)","Concentration Adjustment (up to 95%)",null,null,null,null,{"$f":"'Schedule IX(b)'!H51/900*95%","v":0},null,null,{"$f":"'Schedule IX(b)'!H51/900*95%","v":0}]
[null,null,"(ii)","Related Business % (up to 5%)",null,null,null,null,{"$f":"'Schedule IX(b)'!H55*5%","v":0},null,null,{"$f":"'Schedule IX(b)'!H55*5%","v":0}]
[null,null,"(iii)"," [ (i) + (ii) ]",null,null,null,null,{"$f":"I591+I592","v":0},null,null,{"$f":"L591+L592","v":0}]
[null,null,"(iv)","Maximum Adjustment",null,null,null,null,0.4,null,null,0.4]
[]
[null,"(c) CONCENTRATION ADJUSTMENT FACTOR (formula 2) [(iii) x (iv)]",null,null,null,null,null,null,{"$f":"I593*I594","v":0},null,null,{"$f":"L593*L594","v":0}]
[]
[null,"(d)  TOTAL PREMIUM RISK (AFTER CATASTROPHE PREMIUM ADJUSTMENT)   [ (b) - (c) ]",null,null,null,null,null,null,{"$f":"IF('Company Information'!$F$11=\"Class 3A\",I581-I575*I596,IF(I581-I589>=0,I581-I589,0))","v":0},null,null,{"$f":"IF('Company Information'!$F$11=\"Class 3A\",L581-L575*L596,IF(L581-L589>=0,L581-L589,0))","v":0}]
[]
[null,null,null,null,null,null,null,"STANDARD","STANDARD",null,"USER","USER"]
[null,"TYPE OF ",null,null,null,null,"LIABILITY","CAPITAL","REQUIRED",null,"CAPITAL","REQUIRED"]
[null,"RESERVE RISK",null,null,null,null,"VALUE","FACTOR","CAPITAL",null,"FACTOR","CAPITAL"]
[]
[null,null,null,null,null,null,"(1) ","(2)","(1) x (2)",null,"(3)","(1) x (3)"]
[]
[null,"Property Catastrophe",null,null,null,null,{"$f":"'Geographic Diversification'!H40","v":0},{"$f":"'Reserve Risk'!G11","v":0.46158858246802098},{"$f":"IF(G606<0,0,G606*H606)","v":0},null,null,{"$f":"MAX(0,IF(K606=\"\",H606*G606,G606*K606))","v":0}]
[null,"Property",null,null,null,null,{"$f":"'Geographic Diversification'!H41","v":0},{"$f":"'Reserve Risk'!G12","v":0.43844984238218698},{"$f":"IF(G607<0,0,G607*H607)","v":0},null,null,0]
[null,"Property Non-Proportional",null,null,null,null,{"$f":"'Geographic Diversification'!H42","v":0},{"$f":"'Reserve Risk'!G13","v":0.49735573879029998},0,null,null,0]
[null,"Personal Accident",null,null,null,null,{"$f":"'Geographic Diversification'!H43","v":0},{"$f":"'Reserve Risk'!G14","v":0.29666070682155399},0,null,null,0]
[null,"Personal Accident Non-Proportional",null,null,null,null,{"$f":"'Geographic Diversification'!H44","v":0},{"$f":"'Reserve Risk'!G15","v":0.34876523067975901},0,null,null,0]
[null,"Aviation",null,null,null,null,{"$f":"'Geographic Diversification'!H45","v":0},{"$f":"'Reserve Risk'!G16","v":0.45952604952349801},0,null,null,0]
[null,"Aviation Non-Proportional",null,null,null,null,{"$f":"'Geographic Diversification'!H46","v":0},{"$f":"'Reserve Risk'!G17","v":0.48255646377949901},0,null,null,0]
[null,"Credit / Surety",null,null,null,null,{"$f":"'Geographic Diversification'!H47","v":0},{"$f":"'Reserve Risk'!G18","v":0.383682680649994},0,null,null,0]
[null,"Credit / Surety Non-Proportional",null,null,null,null,{"$f":"'Geographic Diversification'!H48","v":0},{"$f":"'Reserve Risk'!G19","v":0.43464696624596899},0,null,null,0]
[null,"Energy Offshore / Marine",null,null,null,null,{"$f":"'Geographic Diversification'!H49","v":0},{"$f":"'Reserve Risk'!G20","v":0.39543823911176501},0,null,null,0]
[null,"Energy Offshore / Marine Non-Proportional",null,null,null,null,{"$f":"'Geographic Diversification'!H50","v":0},{"$f":"'Reserve Risk'!G21","v":0.43945783577556502},0,null,null,0]
[null,"US Casualty",null,null,null,null,{"$f":"'Geographic Diversification'!H51","v":0},{"$f":"'Reserve Risk'!G22","v":0.43018098459069698},0,null,null,0]
[null,"US Casualty Non-Proportional",null,null,null,null,{"$f":"'Geographic Diversification'!H52","v":0},{"$f":"'Reserve Risk'!G23","v":0.48842309052279498},0,null,null,0]
[null,"US Professional",null,null,null,null,{"$f":"'Geographic Diversification'!H53","v":0},{"$f":"'Reserve Risk'!G24","v":0.462752832710698},0,null,null,0]
[null,"US Professional Non-Proportional",null,null,null,null,{"$f":"'Geographic Diversification'!H54","v":0},{"$f":"'Reserve Risk'!G25","v":0.51484129765284703},0,null,null,0]
[null,"US Specialty",null,null,null,null,{"$f":"'Geographic Diversification'!H55","v":0},{"$f":"'Reserve Risk'!G26","v":0.46506790223690597},0,null,null,0]
[null,"US Specialty Non-Proportional",null,null,null,null,{"$f":"'Geographic Diversification'!H56","v":0},{"$f":"'Reserve Risk'!G27","v":0.482760284027479},0,null,null,0]
[null,"International Motor",null,null,null,null,{"$f":"'Geographic Diversification'!H57","v":0},{"$f":"'Reserve Risk'!G28","v":0.37080464615634001},0,null,null,0]
[null,"International Motor Non-Proportional",null,null,null,null,{"$f":"'Geographic Diversification'!H58","v":0},{"$f":"'Reserve Risk'!G29","v":0.43541657269369},0,null,null,0]
[null,"International Casualty Non-Motor",null,null,null,null,{"$f":"'Geographic Diversification'!H59","v":0},{"$f":"'Reserve Risk'!G30","v":0.43652386132510701},0,null,null,0]
[null,"International Casualty Non-Motor Non-Proportional",null,null,null,null,{"$f":"'Geographic Diversification'!H60","v":0},{"$f":"'Reserve Risk'!G31","v":0.49410327959272199},0,null,null,0]
[null,"Retro Property",null,null,null,null,{"$f":"'Geographic Diversification'!H61","v":0},{"$f":"'Reserve Risk'!G32","v":0.478452065307162},0,null,null,0]
[null,"Structured / Finite Reinsurance",null,null,null,null,{"$f":"'Geographic Diversification'!H62","v":0},{"$f":"'Reserve Risk'!G33","v":0.24099999999999999},0,null,null,0]
[null,"Health",null,null,null,null,{"$f":"'Geographic Diversification'!H63","v":0},{"$f":"'Reserve Risk'!G34","v":0.125},0,null,null,0]
[]
[null,"(a)  TOTAL",null,null,null,null,{"$f":"SUM(G606:G629)","v":0},null,{"$f":"SUM(I606:I630)","v":0},null,null,{"$f":"SUM(L606:L630)","v":0}]
[]
[null,"(b)  CORRELATION ADJUSTMENT"]
[]
[null,null,"(i)","Reduction in Capital Charge from Correlation Matrix",null,null,null,null,{"$f":"I631-I637","v":0},null,null,{"$f":"L631-L637","v":0}]
[]
[null,"(b)  RESERVE RISK AFTER CORRELATION ADJUSTMENT",null,null,null,null,null,null,{"$f":"SQRT(MMULT(TRANSPOSE(I606:I629),MMULT('Correlation Matrix'!C43:Z66,I606:I629)))","v":0},null,null,{"$f":"SQRT(MMULT(TRANSPOSE(L606:L629),MMULT('Correlation Matrix'!C43:Z66,L606:L629)))","v":0}]
[]
[null,"(b)(i) CONCENTRATION ADJUSTMENT FACTOR (formula 1) [(iv) + (v)]"]
[]
[null,null,"(i)","Concentration Adjustment (up to 95%)",null,null,null,null,{"$f":"'Schedule IX(b)'!H51/900*95%","v":0},null,null,{"$f":"'Schedule IX(b)'!H51/900*95%","v":0}]
[null,null,"(ii)","Related Business % (up to 5%)",null,null,null,null,{"$f":"'Schedule IX(b)'!H55*5%","v":0},null,null,{"$f":"'Schedule IX(b)'!H55*5%","v":0}]
[null,null,"(iii)"," [ (i) + (ii) ]",null,null,null,null,{"$f":"I641+I642","v":0},null,null,{"$f":"L641+L642","v":0}]
[null,null,"(iv)","Maximum Adjustment",null,null,null,null,0.4,null,null,0.4]
[]
[null,"(b)(ii) CONCENTRATION ADJUSTMENT FACTOR (formula 2) [(iii) x (iv)]",null,null,null,null,null,null,{"$f":"I643*I644","v":0},null,null,{"$f":"L643*L644","v":0}]
[]
[null,"(b)  CAPITAL CHARGE AFTER CORRELATION",null,null,null,null,null,null,{"$f":"IF('Company Information'!$F$11=\"Class 3A\",IF(I637=0,0,I637-I631*I646),IF(I637>=0,I637,0))","v":0},null,null,{"$f":"IF('Company Information'!$F$11=\"Class 3A\",IF(L637=0,0,L637-L631*L646),IF(L637>=0,L637,0))","v":0}]
[]
[null,"TYPE OF "]
[null,"CATASTROPHE RISK",null,"STATEMENT SOURCE"]
[]
[null,"(a)  Gross Probable Maximum Loss",null,"Schedule V, Line (g)",null,null,null,null,{"$f":"'Schedule V'!H16","v":0},null,null,{"$f":"+I653","v":0}]
[]
[null,"(b)  Net Probable Maximum Loss",null,"Schedule V, Line (h)",null,null,null,null,{"$f":"'Schedule V'!H18","v":0},null,null,{"$f":"+I655","v":0}]
[]
[null,"(c)  Average Annual Loss (AAL) Excluding Property Catastrophe",null,"Schedule V, Line (i)",null,null,null,null,{"$f":"'Schedule V'!H20","v":0},null,null,{"$f":"+I657","v":0}]
[]
[null,"(d)  Industry Catastrophe Loss Ratio",null,null,null,null,null,null,{"$f":"+'Catastrophe Risk'!E13","v":0.4},null,null,0.4]
[]
[null,"(e)  Property Catastrophe Premium",null,"Schedule IVD, Column C, Line (1)",null,null,null,null,{"$f":"IF('Schedule IVD (EBS)'!G9=0,'Schedule IVD (EBS)'!E9,'Schedule IVD (EBS)'!G9)","v":0},null,null,{"$f":"+I661","v":0}]
[]
[null,"(f)  Total Catastrophe Premium  [ (c) / (d) + (e) ]",null,null,null,null,null,null,{"$f":"I657/I659+IF(I661>0,I661,0)","v":0},null,null,{"$f":"IF(L659=\"\",IF(I659=0,0,L657/I659+IF(L661>0,L661,0)),IF(L659=0,0,L657/L659+IF(L661>0,L661,0)))","v":0}]
[]
[null,"(g)  Credit Risk Capital Factor",null,null,null,null,null,null,{"$f":"+'Catastrophe Risk'!E19","v":0.1},null,null,0.1]
[]
[null,"(h) Arrangements with Respect to Property Catastrophe Recoverables",null,null,null,null,null,null,{"$f":"'Schedule V'!H29","v":0},null,null,{"$f":"I667","v":0}]
[]
[null,"(i)  Credit Risk Charge  [ ((a) - (b) - (h) x .98 (g) ]",null,null,null,null,null,null,{"$f":"MAX(0,((I653-I655)-(I667*98%))*I665)","v":0},null,null,{"$f":"MAX(0,((L653-L655)-(L667*98%))*L665)","v":0}]
[]
[null,"(j)  REQUIRED CAPITAL FOR CATASTROPHE RISK  [ (b) - (f) + (i) ]",null,null,null,null,null,null,{"$f":"IF('Company Information'!$F$11=\"Class 3A\",(IF((I655-I661)>=0,I655-I661+I669,I669)),(IF((I655-I663)>=0,I655-I663+I669,I669)))","v":0},null,null,{"$f":"IF('Company Information'!$F$11=\"Class 3A\",(IF((L655-L661)>=0,L655-L661+L669,L669)),(IF((L655-L663)>=0,L655-L663+L669,L669)))","v":0}]
[]
[null,"REQUIRED CAPITAL AND SURPLUS"]
[]
[null,null,null,null,null,null,null,"Net","Gross",null,"Net","Gross"]
[]
[null,"Fixed Income Investment Risk",null,null,null,null,null,{"$f":"I136","v":0},{"$f":"I136","v":0},null,{"$f":"+L136","v":0},{"$f":"+L136","v":0}]
[null,"Equity Investment Risk",null,null,null,null,null,{"$f":"H190","v":0},{"$f":"G190","v":0},null,{"$f":"L190","v":0},{"$f":"K190","v":0}]
[null,"Interest Rate / Liquidity Risk",null,null,null,null,null,{"$f":"IF(Summary!$E$60=\"Duration-Based Approach\",I200,I308)","v":0},{"$f":"IF(Summary!$E$60=\"Duration-Based Approach\",I200,H308)","v":0},null,{"$f":"IF(Summary!$E$60=\"Duration-Based Approach\",L200,L308)","v":0},{"$f":"IF(Summary!$E$60=\"Duration-Based Approach\",L200,K308)","v":0}]
[null,"Currency Risk",null,null,null,null,null,{"$f":"I341","v":0},{"$f":"H341","v":0},null,{"$f":"L341","v":0},{"$f":"K341","v":0}]
[null,"Concentration Risk",null,null,null,null,null,{"$f":"I461","v":0},{"$f":"I461","v":0},null,{"$f":"+L461","v":0},{"$f":"+L461","v":0}]
[null,"Credit Risk",null,null,null,null,null,null,{"$f":"I544","v":0},null,null,{"$f":"+L544","v":0}]
[null,"Premium Risk",null,null,null,null,null,null,{"$f":"I598","v":0},null,null,{"$f":"L598","v":0}]
[null,"Reserve Risk",null,null,null,null,null,null,{"$f":"I648","v":0},null,null,{"$f":"+L648","v":0}]
[null,"Catastrophe Risk",null,null,null,null,null,null,{"$f":"I671","v":0},null,null,{"$f":"+L671","v":0}]
[]
[null,"BSCR (Prior to Correlation Adjustment)",null,null,null,null,null,null,{"$f":"I677+I678+I679+I680+I681+I683+I684+I682+I685","v":0},null,null,{"$f":"L677+L678+L679+L680+L681+L683+L684+L682+L685","v":0}]
[]
[null,"BSCR (After Correlation Adjustment)",null,null,null,null,null,{"$f":"SQRT(MMULT(TRANSPOSE(H705:H707),MMULT('Correlation Matrix'!$O$7:$Q$9,H705:H707)))","v":0},{"$f":"SQRT(MMULT(TRANSPOSE(I705:I707),MMULT('Correlation Matrix'!$O$7:$Q$9,I705:I707)))","v":0},null,{"$f":"SQRT(MMULT(TRANSPOSE(K705:K707),MMULT('Correlation Matrix'!$O$7:$Q$9,K705:K707)))","v":0},{"$f":"SQRT(MMULT(TRANSPOSE(L705:L707),MMULT('Correlation Matrix'!O7:Q9,L705:L707)))","v":0}]
[]
[null,"Operational risk charge (%)",null,null,null,null,null,null,{"$f":"Summary!N76","v":0.2}]
[]
[null,"Operational risk capital charge ($)",null,null,null,null,null,null,{"$f":"(I689+I713)*I691","v":0},null,null,{"$f":"IF(L691=\"\",(L689+L713)*I691,(L689+L713)*L691)","v":0}]
[]
[null,{"$f":"+Summary!C80","v":"Capital Adjustment for (Regulatory) Capital Requirement for Regulated Non-Insurance Financial Operating Entities:"},null,null,null,null,null,null,{"$f":"+'Schedule XVI'!M211","v":0},null,null,{"$f":"+Summary!N80","v":0}]
[]
[null,"CMgmtAction",null,null,null,null,null,null,{"$f":"I713","v":0},null,null,{"$f":"L713","v":0}]
[]
[null,"Other Capital Adjustment",null,null,null,null,null,null,{"$f":"-MIN(((I689+I693+I695+I697)*Summary!$D$157),Summary!$K$161,((I689+I693+I695+I697)*Summary!$L$157))","v":0},null,null,{"$f":"-MIN(((L689+L693+L695+L697)*Summary!$D$157),Summary!$K$161,((L689+L693+L695+L697)*Summary!$L$157))","v":0}]
[]
[null,"BSCR ",null,null,null,null,null,null,{"$f":"I689+I693+I695+I697+I699","v":0},null,null,{"$f":"L689+L693+L695+L697+L699","v":0}]
[]
[]
[null,"Capital Charges",null,null,null,null,null,"Net","Gross",null,"Net","Gross"]
[null,"Market Risk",null,null,null,null,null,{"$f":"SQRT(MMULT(TRANSPOSE(H677:H681),MMULT('Correlation Matrix'!$C$7:$G$11,H677:H681)))","v":0},{"$f":"SQRT(MMULT(TRANSPOSE(I677:I681),MMULT('Correlation Matrix'!$C$7:$G$11,I677:I681)))","v":0},null,{"$f":"SQRT(MMULT(TRANSPOSE(K677:K681),MMULT('Correlation Matrix'!$C$7:$G$11,K677:K681)))","v":0},{"$f":"SQRT(MMULT(TRANSPOSE(L677:L681),MMULT('Correlation Matrix'!$C$7:$G$11,L677:L681)))","v":0}]
[null,"Credit Risk",null,null,null,null,null,{"$f":"I682","v":0},{"$f":"I682","v":0},null,{"$f":"L682","v":0},{"$f":"L682","v":0}]
[null,"P&C Insurance Risk",null,null,null,null,null,{"$f":"SQRT(MMULT(TRANSPOSE(I683:I685),MMULT('Correlation Matrix'!J7:L9,I683:I685)))","v":0},{"$f":"SQRT(MMULT(TRANSPOSE(I683:I685),MMULT('Correlation Matrix'!J7:L9,I683:I685)))","v":0},null,{"$f":"SQRT(MMULT(TRANSPOSE(L683:L685),MMULT('Correlation Matrix'!J7:L9,L683:L685)))","v":0},{"$f":"SQRT(MMULT(TRANSPOSE(L683:L685),MMULT('Correlation Matrix'!J7:L9,L683:L685)))","v":0}]
[null,"Total",null,null,null,null,null,{"$f":"SUM(H705:H707)","v":0},{"$f":"SUM(I705:I707)","v":0},null,{"$f":"SUM(K705:K707)","v":0},{"$f":"SUM(L705:L707)","v":0}]
[]
[null,"Management Action"]
[null,"Implied Loss-absorbing capacity of Technical Provisions without cap",null,null,null,null,null,null,{"$f":"I689-H689","v":0},null,null,{"$f":"L689-K689","v":0}]
[null,"Initial FDB / Bonus reserve",null,null,null,null,null,null,{"$f":"Summary!$M$146","v":0},null,null,{"$f":"Summary!$M$146","v":0}]
[null,"Adjustment for the LaC of TP",null,null,null,null,null,null,{"$f":"-MAX(MIN(I711,I712),0)","v":0},null,null,{"$f":"-MAX(MIN(L711,L712),0)","v":0}]

{"sheet":"Crosscheck - SFS","index":136,"n_rows":151,"n_cols":4,"rows_kept":151,"cut":false,"hidden":true,"merged":[[3,0,3,1]]}
[null,"SUMMARY OF SFS INPUTS"]
[{"$f":"'Company Information'!C7","v":"Enter Company Name"}]
["Summary of SFS Inputs - For BMA Use Only"]
[{"$f":"'Company Information'!C3","v":"2023-12-31"}]
[]
[]
[null,"INPUT","STATEMENT SOURCE","VALUE"]
[]
[null,"Cash and time deposits","Form 1A, Line 1",{"$f":"'Form 1EBS'!F10","v":0}]
[null,"Quoted invesments, bonds and debentures - held to maturity","Form 1A, Line 2(a)(i)"]
[null,"Quoted invesments, bonds and debentures - others","Form 1A, Line 2(a)(ii)"]
[null,"Quoted investments, equities - common stocks","Form 1A, Line 2(c)(i)",{"$f":"'Form 1EBS'!F15","v":0}]
[null,"Quoted investments, equities - preferred stocks","Form 1A, Line 2(c)(ii)",{"$f":"'Form 1EBS'!F16","v":0}]
[null,"Quoted investments, equities - mutual funds","Form 1A, Line 2(c)(iii)",{"$f":"'Form 1EBS'!F17","v":0}]
[null,"Other quoted investments","Form 1A, Line 2(e)",{"$f":"'Form 1EBS'!F19","v":0}]
[null,"Unquoted investments, bonds and debentures - held to maturity","Form 1A, Line 3(a)(i)"]
[null,"Unquoted investments, bonds and debentures - others","Form 1A, Line 3(a)(ii)"]
[null,"Unquoted investments, equities - common stocks","Form 1A, Line 3(c)(i)",{"$f":"'Form 1EBS'!F25","v":0}]
[null,"Unquoted investments, equities - preferred stocks","Form 1A, Line 3(c)(ii)",{"$f":"'Form 1EBS'!F26","v":0}]
[null,"Unquoted investments, equities - mutual funds","Form 1A, Line 3(c)(iii)",{"$f":"'Form 1EBS'!F27","v":0}]
[null,"Other unquoted investments","Form 1A, Line 3(e)",{"$f":"'Form 1EBS'!F29","v":0}]
[null,"Investments in affiliates","Form 1A, Line 4(a)",{"$f":"'Form 1EBS'!F38","v":0}]
[null,"Advances to affiliates","Form 1A, Line 4(b)",{"$f":"'Form 1EBS'!F39","v":0}]
[null,"Investment in mortgage loans on real estate - first liens","Form 1A, Line 5(a)",{"$f":"'Form 1EBS'!F43","v":0}]
[null,"Investment in mortgage loans on real estate - other than first liens","Form 1A, Line 5(b)",{"$f":"'Form 1EBS'!F44","v":0}]
[null,"Real estate, occupied by the company (less encumbrances)","Form 1A, Line 7(a)",{"$f":"'Form 1EBS'!F48","v":0}]
[null,"Real estate, other properties (less encumbrances)","Form 1A, Line 7(b)",{"$f":"'Form 1EBS'!F49","v":0}]
[null,"Collateral loans","Form 1A, Line 8",{"$f":"'Form 1EBS'!F52","v":0}]
[null,"Investment income due and accrued","Form 1A, Line 9",{"$f":"'Form 1EBS'!F54","v":0}]
[null,"Accounts and premium receivable - in course of collection","Form 1A, Line 10(a)",{"$f":"'Form 1EBS'!F57","v":0}]
[null,"Accounts and premium receivable - deferred - not yet due","Form 1A, Line 10(b)"]
[null,"Accounts and premium receivable - receivables from retrocessional contracts","Form 1A, Line 10(c)",{"$f":"'Form 1EBS'!F58","v":0}]
[null,"Reinsurance balances receivable - foreign affiliates","Form 1A, Line 11(a)",{"$f":"'Form 1EBS'!F62","v":0}]
[null,"Reinsurance balances receivable - domestic affiliates","Form 1A, Line 11(b)",{"$f":"'Form 1EBS'!F63","v":0}]
[null,"Reinsurance balances receivable - pools & associations","Form 1A, Line 11(c)",{"$f":"'Form 1EBS'!F64","v":0}]
[null,"Reinsurance balances receivable - all other insurers","Form 1A, Line 11(d)",{"$f":"'Form 1EBS'!F65","v":0}]
[null,"Funds held by ceding reinsurers - affiliated","Form 1A, Line 12(a)",{"$f":"'Form 1EBS'!F69","v":0}]
[null,"Funds held by ceding reinsurers - non-affiliated","Form 1A, Line 12(b)",{"$f":"'Form 1EBS'!F70","v":0}]
[null,"Sundry assets - derivative instruments","Form 1A, Line 13(a)",{"$f":"'Form 1EBS'!F74","v":0}]
[null,"Sundry assets - segregated accounts companies","Form 1A, Line 13(b)",{"$f":"'Form 1EBS'!F75","v":0}]
[null,"Sundry assets - deposit assets","Form 1A, Line 13(c)",{"$f":"'Form 1EBS'!F76","v":0}]
[null,"Sundry assets - others","Form 1A, Line 13(d)",{"$f":"'Form 1EBS'!F81","v":0}]
[null,"Letters of credit, guarantees and other instruments - letters of credit","Form 1A, Line 14(a)",{"$f":"'Form 1EBS'!F85","v":0}]
[null,"Letters of credit, guarantees and other instruments - guarantees","Form 1A, Line 14(b)",{"$f":"'Form 1EBS'!F86","v":0}]
[null,"Letters of credit, guarantees and other instruments - other instruments","Form 1A, Line 14(c)",{"$f":"'Form 1EBS'!F87","v":0}]
[null,"Unearned premium","Form 1A, Line 16",{"$f":"'Form 1EBS'!F105","v":0}]
[null,"Loss and loss expense provisions - gross loss and loss expense provisions","Form 1A, Line 17(a)",{"$f":"'Form 1EBS'!F108","v":0}]
[null,"Loss and loss expense provisions - reinsurance recoverable - foreign affiliates","Form 1A, Line 17(b)(i)",{"$f":"'Form 1EBS'!F110","v":0}]
[null,"Loss and loss expense provisions - reinsurance recoverable - domestic affiliates","Form 1A, Line 17(b)(ii)",{"$f":"'Form 1EBS'!F111","v":0}]
[null,"Loss and loss expense provisions - reinsurance recoverable - pools  associations","Form 1A, Line 17(b)(iii)",{"$f":"'Form 1EBS'!F112","v":0}]
[null,"Loss and loss expense provisions - reinsurance recoverable - all other insurers","Form 1A, Line 17(b)(iv)",{"$f":"'Form 1EBS'!F113","v":0}]
[null,"Other insurance reserves - general business","Form 1A, Line 18"]
[null,"Insurance and reinsurance balances payable","Form 1A, Line 28",{"$f":"'Form 1EBS'!F123","v":0}]
[null,"Commissions, expenses, fees and taxes payable","Form 1A, Line 29",{"$f":"'Form 1EBS'!F125","v":0}]
[null,"Loans and notes payable","Form 1A, Line 30",{"$f":"'Form 1EBS'!F127","v":0}]
[null,"Income taxes payable","Form 1A, Line 31(a)",{"$f":"'Form 1EBS'!F130","v":0}]
[null,"Deferred income taxes","Form 1A, Line 31(b)",{"$f":"'Form 1EBS'!F131","v":0}]
[null,"Amounts due to affiliates","Form 1A, Line 32",{"$f":"'Form 1EBS'!F133","v":0}]
[null,"Accounts payable and accrued liabilities","Form 1A, Line 33",{"$f":"'Form 1EBS'!F135","v":0}]
[null,"Funds held under reinsurance contracts - affiliates","Form 1A, Line 34(a)",{"$f":"'Form 1EBS'!F138","v":0}]
[null,"Funds held under reinsurance contracts - non-affiliates","Form 1A, Line 34(b)",{"$f":"'Form 1EBS'!F139","v":0}]
[null,"Dividends payable","Form 1A, Line 35",{"$f":"'Form 1EBS'!F142","v":0}]
[null,"Sundry liabilities - derivative instruments","Form 1A, Line 36(a)",{"$f":"'Form 1EBS'!F145","v":0}]
[null,"Sundry liabilities - segregated accounts companies","Form 1A, Line 36(b)",{"$f":"'Form 1EBS'!F147","v":0}]
[null,"Sundry liabilities - deposit liabilities","Form 1A, Line 36(c)",{"$f":"'Form 1EBS'!F148","v":0}]
[null,"Sundry liabilities - others","Form 1A, Line 36(d)",{"$f":"'Form 1EBS'!F151","v":0}]
[null,"Letters of credit, guarantees and other instruments - letters of credit","Form 1A, Line 37(a)",{"$f":"'Form 1EBS'!F155","v":0}]
[null,"Letters of credit, guarantees and other instruments - guarantees","Form 1A, Line 37(b)",{"$f":"'Form 1EBS'!F156","v":0}]
[null,"Letters of credit, guarantees and other instruments - other instruments","Form 1A, Line 37(c)",{"$f":"'Form 1EBS'!F157","v":0}]
[null,"Gross premium written - direct GPW","Form 2A, Line 1(a)"]
[null,"Gross premium written - assumed GPW","Form 2A, Line 1(b)"]
[null,"Reinsurance premiums ceded","Form 2A, Line 2"]
[null,"Increase (decrease) in unearned premiums","Form 2A, Line 4"]
[null,"Other insurance income","Form 2A, Line 6"]
[null,"Net losses incurred and net loss expenses incurred","Form 2A, Line 8"]
[null,"Commissions and brokerage","Form 2A, Line 9"]
[null,"General and administrative","Form 2A, Line 10"]
[null,"Personel costs","Form 2A, Line 11"]
[null,"Others","Form 2A, Line 12"]
[null,"Transferred from (to) open year business revenue statement","Form 2A, Line 15"]
[null,"General business investment income-net","Form 2A, Line 17"]
[null,"Other income (deductions)","Form 2A, Line 37"]
[null,"Income taxes - current","Form 2A, Line 39(a)"]
[null,"Income taxes - deferred","Form 2A, Line 39(b)"]
[null,"Realized gains (losses)","Form 2A, Line 41"]
[null,"Statutory Capital - authorized shares","Form 8, Line 1(a)"]
[null,"Statutory Capital - par value","Form 8, Line 1(a)"]
[null,"Statutory Capital - fully paid shares","Form 8, Line 1(a)"]
[null,"Statutory Capital - capital stock","Form 8, Line 1(a)"]
[null,"Statutory Capital - contributed surplus","Form 8, Line 1(b)"]
[null,"Statutory Capital - any other fixed capital","Form 8, Line 1(c)"]
[null,"Statutory surplus - beginning of year","Form 8, Line 2(a)"]
[null,"Statutory surplus - dividends paid and payable","Form 8, Line 2(c)"]
[null,"Statutory surplus - change in unrealized appreciation (depreciation) of investments","Form 8, Line 2(d)"]
[null,"Statutory surplus - change in non-admitted assets","Form 8, Line 2(e)"]
[null,"Statutory surplus - change in appraisal of real estate","Form 8, Line 2(f)"]
[null,"Statutory surplus - change in any other statutory capital","Form 8, Line 2(g)"]
[null,"Government","Schedule II, Line (1)"]
[null,"High Investment Grade (AAA & AA)","Schedule II, Line (2)"]
[null,"Medium Investment Grade (A)","Schedule II, Line (3)"]
[null,"Low Investment Grade (BBB)","Schedule II, Line (4)"]
[null,"Non Investment Grade","Schedule II, Line (5)"]
[null,"Mortgage Backed","Schedule II, Line (6)"]
[null,"Mutual Funds","Schedule II, Line (7)"]
[null,"Non Rated","Schedule II, Line (8)"]
[null,{"$f":"\"Reserves - \"&'Reserve Risk (old)'!B11","v":"Reserves - Property Catastrophe"},"Schedule III, Line (1)",{"$f":"'Schedule III (EBS)'!F10","v":0}]
[null,{"$f":"\"Reserves - \"&'Reserve Risk (old)'!B12","v":"Reserves - Property"},"Schedule III, Line (2)",{"$f":"'Schedule III (EBS)'!F11","v":0}]
[null,{"$f":"\"Reserves - \"&'Reserve Risk (old)'!B13","v":"Reserves - Property Non-Proportional"},"Schedule III, Line (3)",{"$f":"'Schedule III (EBS)'!F12","v":0}]
[null,{"$f":"\"Reserves - \"&'Reserve Risk (old)'!B14","v":"Reserves - Personal Accident"},"Schedule III, Line (4)",{"$f":"'Schedule III (EBS)'!F13","v":0}]
[null,{"$f":"\"Reserves - \"&'Reserve Risk (old)'!B15","v":"Reserves - Personal Accident Non-Proportional"},"Schedule III, Line (5)",{"$f":"'Schedule III (EBS)'!F14","v":0}]
[null,{"$f":"\"Reserves - \"&'Reserve Risk (old)'!B16","v":"Reserves - Aviation"},"Schedule III, Line (6)",{"$f":"'Schedule III (EBS)'!F15","v":0}]
[null,{"$f":"\"Reserves - \"&'Reserve Risk (old)'!B17","v":"Reserves - Aviation Non-Proportional"},"Schedule III, Line (7)",{"$f":"'Schedule III (EBS)'!F16","v":0}]
[null,{"$f":"\"Reserves - \"&'Reserve Risk (old)'!B18","v":"Reserves - Credit / Surety"},"Schedule III, Line (8)",{"$f":"'Schedule III (EBS)'!F17","v":0}]
[null,{"$f":"\"Reserves - \"&'Reserve Risk (old)'!B19","v":"Reserves - Credit / Surety Non-Proportional"},"Schedule III, Line (9)",{"$f":"'Schedule III (EBS)'!F18","v":0}]
[null,{"$f":"\"Reserves - \"&'Reserve Risk (old)'!B20","v":"Reserves - Energy Offshore / Marine"},"Schedule III, Line (10)",{"$f":"'Schedule III (EBS)'!F19","v":0}]
[null,{"$f":"\"Reserves - \"&'Reserve Risk (old)'!B21","v":"Reserves - Energy Offshore / Marine Non-Proportional"},"Schedule III, Line (11)",{"$f":"'Schedule III (EBS)'!F20","v":0}]
[null,{"$f":"\"Reserves - \"&'Reserve Risk (old)'!B22","v":"Reserves - US Casualty"},"Schedule III, Line (12)",{"$f":"'Schedule III (EBS)'!F21","v":0}]
[null,{"$f":"\"Reserves - \"&'Reserve Risk (old)'!B23","v":"Reserves - US Casualty Non-Proportional"},"Schedule III, Line (13)",{"$f":"'Schedule III (EBS)'!F22","v":0}]
[null,{"$f":"\"Reserves - \"&'Reserve Risk (old)'!B24","v":"Reserves - US Professional"},"Schedule III, Line (14)",{"$f":"'Schedule III (EBS)'!F23","v":0}]
[null,{"$f":"\"Reserves - \"&'Reserve Risk (old)'!B25","v":"Reserves - US Professional Non-Proportional"},"Schedule III, Line (15)",{"$f":"'Schedule III (EBS)'!F24","v":0}]
[null,{"$f":"\"Reserves - \"&'Reserve Risk (old)'!B26","v":"Reserves - US Specialty"},"Schedule III, Line (16)",{"$f":"'Schedule III (EBS)'!F25","v":0}]
[null,{"$f":"\"Reserves - \"&'Reserve Risk (old)'!B27","v":"Reserves - US Specialty Non-Proportional"},"Schedule III, Line (17)",{"$f":"'Schedule III (EBS)'!F26","v":0}]
[null,{"$f":"\"Reserves - \"&'Reserve Risk (old)'!B28","v":"Reserves - International Motor"},"Schedule III, Line (18)",{"$f":"'Schedule III (EBS)'!F27","v":0}]
[null,{"$f":"\"Reserves - \"&'Reserve Risk (old)'!B29","v":"Reserves - International Motor Non-Proportional"},"Schedule III, Line (19)",{"$f":"'Schedule III (EBS)'!F28","v":0}]
[null,{"$f":"\"Reserves - \"&'Reserve Risk (old)'!B30","v":"Reserves - International Casualty Non-Motor"},"Schedule III, Line (20)",{"$f":"'Schedule III (EBS)'!F29","v":0}]
[null,{"$f":"\"Reserves - \"&'Reserve Risk (old)'!B31","v":"Reserves - International Casualty Non-Motor Non-Proportional"},"Schedule III, Line (21)",{"$f":"'Schedule III (EBS)'!F30","v":0}]
[null,{"$f":"\"Reserves - \"&'Reserve Risk (old)'!B32","v":"Reserves - Retro Property"},"Schedule III, Line (22)",{"$f":"'Schedule III (EBS)'!F31","v":0}]
[null,{"$f":"\"Reserves - \"&'Reserve Risk (old)'!B33","v":"Reserves - Structured / Finite Reinsurance"},"Schedule III, Line (23)",{"$f":"'Schedule III (EBS)'!F32","v":0}]
[null,"Premium - Property Catastrophe","Schedule IV, Line (1)",{"$f":"'Schedule IVA (EBS)'!Q11","v":0}]
[null,"Premium - Property","Schedule IV, Line (2)",{"$f":"'Schedule IVA (EBS)'!Q12","v":0}]
[null,"Premium - Property Non-Proportional","Schedule IV, Line (3)",{"$f":"'Schedule IVA (EBS)'!Q13","v":0}]
[null,"Premium - Personal Accident","Schedule IV, Line (4)",{"$f":"'Schedule IVA (EBS)'!Q14","v":0}]
[null,"Premium - Personal Accident Non-Proportional","Schedule IV, Line (5)",{"$f":"'Schedule IVA (EBS)'!Q15","v":0}]
[null,"Premium - Aviation","Schedule IV, Line (6)",{"$f":"'Schedule IVA (EBS)'!Q16","v":0}]
[null,"Premium - Aviation Non-Proportional","Schedule IV, Line (7)",{"$f":"'Schedule IVA (EBS)'!Q17","v":0}]
[null,"Premium - Credit / Surety","Schedule IV, Line (8)",{"$f":"'Schedule IVA (EBS)'!Q18","v":0}]
[null,"Premium - Credit / Surety Non-Proportional","Schedule IV, Line (9)",{"$f":"'Schedule IVA (EBS)'!Q19","v":0}]
[null,"Premium - Energy Offshore / Marine","Schedule IV, Line (10)",{"$f":"'Schedule IVA (EBS)'!Q20","v":0}]
[null,"Premium - Energy Offshore / Marine Non-Proportional","Schedule IV, Line (11)",{"$f":"'Schedule IVA (EBS)'!Q21","v":0}]
[null,"Premium - US Casualty","Schedule IV, Line (12)",{"$f":"'Schedule IVA (EBS)'!Q22","v":0}]
[null,"Premium - US Casualty Non-Proportional","Schedule IV, Line (13)",{"$f":"'Schedule IVA (EBS)'!Q23","v":0}]
[null,"Premium - US Professional","Schedule IV, Line (14)",{"$f":"'Schedule IVA (EBS)'!Q24","v":0}]
[null,"Premium - US Professional Non-Proportional","Schedule IV, Line (15)",{"$f":"'Schedule IVA (EBS)'!Q25","v":0}]
[null,"Premium - US Specialty","Schedule IV, Line (16)",{"$f":"'Schedule IVA (EBS)'!Q26","v":0}]
[null,"Premium - US Specialty Non-Proportional","Schedule IV, Line (17)",{"$f":"'Schedule IVA (EBS)'!Q27","v":0}]
[null,"Premium - International Motor","Schedule IV, Line (18)",{"$f":"'Schedule IVA (EBS)'!Q28","v":0}]
[null,"Premium - International Motor Non-Proportional","Schedule IV, Line (19)",{"$f":"'Schedule IVA (EBS)'!Q29","v":0}]
[null,"Premium - International Casualty Non-Motor","Schedule IV, Line (20)",{"$f":"'Schedule IVA (EBS)'!Q30","v":0}]
[null,"Premium - International Casualty Non-Motor Non-Proportional","Schedule IV, Line (21)",{"$f":"'Schedule IVA (EBS)'!Q31","v":0}]
[null,"Premium - Retro Property","Schedule IV, Line (22)",{"$f":"'Schedule IVA (EBS)'!Q32","v":0}]
[null,"Premium - Structured / Finite Reinsurance","Schedule IV, Line (23)",{"$f":"'Schedule IVA (EBS)'!Q33","v":0}]

{"sheet":"Crosscheck-Model","index":137,"n_rows":95,"n_cols":4,"rows_kept":95,"cut":false,"hidden":true,"merged":[[3,0,3,1]]}
[null,"SUMMARY OF INPUTS"]
[{"$f":"'Company Information'!C7","v":"Enter Company Name"}]
["Summary of SFS Inputs - For BMA Use Only"]
[{"$f":"'Company Information'!C3","v":"2023-12-31"}]
[]
[]
[null,"INPUT","STATEMENT SOURCE","VALUE"]
[]
[null,"Reported Surplus","Form 1A, Line (40)",{"$f":"Summary!N94","v":0}]
[null,"Government","Schedule II, Line (1)",{"$f":"'Fixed Income Investments (Prior'!D11","v":0}]
[null,"High Investment Grade (AAA & AA)","Schedule II, Line (2)",{"$f":"'Fixed Income Investments (Prior'!D12","v":0}]
[null,"Medium Investment Grade (A)","Schedule II, Line (3)",{"$f":"'Fixed Income Investments (Prior'!D13","v":0}]
[null,"Low Investment Grade (BBB)","Schedule II, Line (4)",{"$f":"'Fixed Income Investments (Prior'!D14","v":0}]
[null,"Non Investment Grade","Schedule II, Line (5)",{"$f":"'Fixed Income Investments (Prior'!D15","v":0}]
[null,"Mortgage Backed","Schedule II, Line (6)",{"$f":"'Fixed Income Investments (Prior'!D16","v":0}]
[null,"Mutual Funds","Schedule II, Line (7)",{"$f":"'Fixed Income Investments (Prior'!D17","v":0}]
[null,"Non Rated","Schedule II, Line (8)",{"$f":"'Fixed Income Investments (Prior'!D20","v":0}]
[null,"Mortgage Loans","Form 1A, Line (5c)"]
[null,"Other Loans","Form 1A, Line (8)",{"$f":"'Fixed Income Investments (Prior'!D79","v":0}]
[null,"Cash","Form 1A, Line (1)"]
[null,"Non-Affiliated (Quoted)","Form 1A, Line (2c)-i",{"$f":"'Equity Investments (Prior)'!D11","v":0}]
[null,"Non-Affiliated (Unquoted)","Form 1A, Line (3c)-i",{"$f":"'Equity Investments (Prior)'!D12","v":0}]
[null,"Mutual Funds","Form 1A, Lines (2c)-iii, (3c)-iii",{"$f":"'Equity Investments (Prior)'!D13","v":0}]
[null,"Non-Affiliated (Quoted)","Form 1A, Line (2c)-ii",{"$f":"'Equity Investments (Prior)'!D19","v":0}]
[null,"Non-Affiliated (Unquoted)","Form 1A, Line (3c)-ii",{"$f":"'Equity Investments (Prior)'!D27","v":0}]
[null,"Company-Occupied Less Encumbrances","Form 1A, Line (7a)",{"$f":"'Equity Investments (Prior)'!D34","v":0}]
[null,"Investments Less Encumbrances","Form 1A, Line (7b)",{"$f":"'Equity Investments (Prior)'!D35","v":0}]
[null,"Other Investments","Form 1A, Lines (2e), (3e)",{"$f":"'Equity Investments (Prior)'!D37","v":0}]
[null,"Other Tangible Assets","Form 1A, Lines (13e), (14d)",{"$f":"'Equity Investments (Prior)'!D38","v":0}]
[null,"Bonds (Quoted Only)","Form 1A, Lines (2a)-ii and (3a)-ii",{"$f":"'Interest Rate-Liquidity Risk'!D10","v":0}]
[null,"In Course of Collection","Form 1A, Line (10a)",{"$f":"'Credit Risk (old)'!D11","v":0}]
[null,"Deferred - Not Yet Due","Form 1A, Line (10b)"]
[null,"Receivables from retrocessional contracts  less: Collateralized Balances","Form 1A, Line (10c)",{"$f":"'Credit Risk (old)'!D12","v":0}]
[null,"Foreign Affiliates","Form 1A, Line (11a)"]
[null,"Domestic Affiliates","Form 1A, Line (11b)"]
[null,"Pools & Associations","Form 1A, Line (11c)"]
[null,"All Other Insurers","Form 1A, Line (11d)"]
[null,"Letter of credits","Notes to Form 1A, Line 11"]
[null,"Funds held by Company","Form 1A, Line 34(c)"]
[null,"Funds Held by Ceding Reinsurers","Form 1A, Line (12c)",{"$f":"'Form 1EBS'!F71","v":0}]
[null,"Accrued Investment Income","Form 1A, Line (9)",{"$f":"'Credit Risk (old)'!D18","v":0}]
[null,"Receivable from Affiliates","Form 1A, Line (4c)",{"$f":"'Credit Risk (old)'!D19","v":0}]
[null,"Foreign Affiliates","Form 1A, Line (17b)-i",{"$f":"'Credit Risk (old)'!D25","v":0}]
[null,"Domestic Affiliates","Form 1A, Line (17b)-ii",{"$f":"'Credit Risk (old)'!D26","v":0}]
[null,"Pools & Associations","Form 1A, Line (17b)-iii"]
[null,"All Other Insurers","Form 1A, Line (17b)-iv"]
[null,"Premium - Property Catastrophe","Schedule IV, Line (1)",{"$f":"'Premium Risk (old)'!F11","v":0}]
[null,"Premium - Property","Schedule IV, Line (2)",{"$f":"'Premium Risk (old)'!F12","v":0}]
[null,"Premium - Property Non-Proportional","Schedule IV, Line (3)",{"$f":"'Premium Risk (old)'!F13","v":0}]
[null,"Premium - Personal Accident","Schedule IV, Line (4)",{"$f":"'Premium Risk (old)'!F14","v":0}]
[null,"Premium - Personal Accident Non-Proportional","Schedule IV, Line (5)",{"$f":"'Premium Risk (old)'!F15","v":0}]
[null,"Premium - Aviation","Schedule IV, Line (6)",{"$f":"'Premium Risk (old)'!F16","v":0}]
[null,"Premium - Aviation Non-Proportional","Schedule IV, Line (7)",{"$f":"'Premium Risk (old)'!F17","v":0}]
[null,"Premium - Credit / Surety","Schedule IV, Line (8)",{"$f":"'Premium Risk (old)'!F18","v":0}]
[null,"Premium - Credit / Surety Non-Proportional","Schedule IV, Line (9)",{"$f":"'Premium Risk (old)'!F19","v":0}]
[null,"Premium - Energy Offshore / Marine","Schedule IV, Line (10)",{"$f":"'Premium Risk (old)'!F20","v":0}]
[null,"Premium - Energy Offshore / Marine Non-Proportional","Schedule IV, Line (11)",{"$f":"'Premium Risk (old)'!F21","v":0}]
[null,"Premium - US Casualty","Schedule IV, Line (12)",{"$f":"'Premium Risk (old)'!F22","v":0}]
[null,"Premium - US Casualty Non-Proportional","Schedule IV, Line (13)",{"$f":"'Premium Risk (old)'!F23","v":0}]
[null,"Premium - US Professional","Schedule IV, Line (14)",{"$f":"'Premium Risk (old)'!F24","v":0}]
[null,"Premium - US Professional Non-Proportional","Schedule IV, Line (15)",{"$f":"'Premium Risk (old)'!F25","v":0}]
[null,"Premium - US Specialty","Schedule IV, Line (16)",{"$f":"'Premium Risk (old)'!F26","v":0}]
[null,"Premium - US Specialty Non-Proportional","Schedule IV, Line (17)",{"$f":"'Premium Risk (old)'!F27","v":0}]
[null,"Premium - International Motor","Schedule IV, Line (18)",{"$f":"'Premium Risk (old)'!F28","v":0}]
[null,"Premium - International Motor Non-Proportional","Schedule IV, Line (19)",{"$f":"'Premium Risk (old)'!F29","v":0}]
[null,"Premium - International Casualty Non-Motor","Schedule IV, Line (20)",{"$f":"'Premium Risk (old)'!F30","v":0}]
[null,"Premium - International Casualty Non-Motor Non-Proportional","Schedule IV, Line (21)",{"$f":"'Premium Risk (old)'!F31","v":0}]
[null,"Premium - Retro Property","Schedule IV, Line (22)",{"$f":"'Premium Risk (old)'!F32","v":0}]
[null,"Premium - Structured / Finite Reinsurance","Schedule IV, Line (23)",{"$f":"'Premium Risk (old)'!F33","v":0}]
[null,{"$f":"\"Reserves - \"&'Reserve Risk (old)'!B11","v":"Reserves - Property Catastrophe"},"Schedule III, Line (1)",{"$f":"'Reserve Risk (old)'!E11","v":0}]
[null,{"$f":"\"Reserves - \"&'Reserve Risk (old)'!B12","v":"Reserves - Property"},"Schedule III, Line (2)",{"$f":"'Reserve Risk (old)'!E12","v":0}]
[null,{"$f":"\"Reserves - \"&'Reserve Risk (old)'!B13","v":"Reserves - Property Non-Proportional"},"Schedule III, Line (3)",{"$f":"'Reserve Risk (old)'!E13","v":0}]
[null,{"$f":"\"Reserves - \"&'Reserve Risk (old)'!B14","v":"Reserves - Personal Accident"},"Schedule III, Line (4)",{"$f":"'Reserve Risk (old)'!E14","v":0}]
[null,{"$f":"\"Reserves - \"&'Reserve Risk (old)'!B15","v":"Reserves - Personal Accident Non-Proportional"},"Schedule III, Line (5)",{"$f":"'Reserve Risk (old)'!E15","v":0}]
[null,{"$f":"\"Reserves - \"&'Reserve Risk (old)'!B16","v":"Reserves - Aviation"},"Schedule III, Line (6)",{"$f":"'Reserve Risk (old)'!E16","v":0}]
[null,{"$f":"\"Reserves - \"&'Reserve Risk (old)'!B17","v":"Reserves - Aviation Non-Proportional"},"Schedule III, Line (7)",{"$f":"'Reserve Risk (old)'!E17","v":0}]
[null,{"$f":"\"Reserves - \"&'Reserve Risk (old)'!B18","v":"Reserves - Credit / Surety"},"Schedule III, Line (8)",{"$f":"'Reserve Risk (old)'!E18","v":0}]
[null,{"$f":"\"Reserves - \"&'Reserve Risk (old)'!B19","v":"Reserves - Credit / Surety Non-Proportional"},"Schedule III, Line (9)",{"$f":"'Reserve Risk (old)'!E19","v":0}]
[null,{"$f":"\"Reserves - \"&'Reserve Risk (old)'!B20","v":"Reserves - Energy Offshore / Marine"},"Schedule III, Line (10)",{"$f":"'Reserve Risk (old)'!E20","v":0}]
[null,{"$f":"\"Reserves - \"&'Reserve Risk (old)'!B21","v":"Reserves - Energy Offshore / Marine Non-Proportional"},"Schedule III, Line (11)",{"$f":"'Reserve Risk (old)'!E21","v":0}]
[null,{"$f":"\"Reserves - \"&'Reserve Risk (old)'!B22","v":"Reserves - US Casualty"},"Schedule III, Line (12)",{"$f":"'Reserve Risk (old)'!E22","v":0}]
[null,{"$f":"\"Reserves - \"&'Reserve Risk (old)'!B23","v":"Reserves - US Casualty Non-Proportional"},"Schedule III, Line (13)",{"$f":"'Reserve Risk (old)'!E23","v":0}]
[null,{"$f":"\"Reserves - \"&'Reserve Risk (old)'!B24","v":"Reserves - US Professional"},"Schedule III, Line (14)",{"$f":"'Reserve Risk (old)'!E24","v":0}]
[null,{"$f":"\"Reserves - \"&'Reserve Risk (old)'!B25","v":"Reserves - US Professional Non-Proportional"},"Schedule III, Line (15)",{"$f":"'Reserve Risk (old)'!E25","v":0}]
[null,{"$f":"\"Reserves - \"&'Reserve Risk (old)'!B26","v":"Reserves - US Specialty"},"Schedule III, Line (16)",{"$f":"'Reserve Risk (old)'!E26","v":0}]
[null,{"$f":"\"Reserves - \"&'Reserve Risk (old)'!B27","v":"Reserves - US Specialty Non-Proportional"},"Schedule III, Line (17)",{"$f":"'Reserve Risk (old)'!E27","v":0}]
[null,{"$f":"\"Reserves - \"&'Reserve Risk (old)'!B28","v":"Reserves - International Motor"},"Schedule III, Line (18)",{"$f":"'Reserve Risk (old)'!E28","v":0}]
[null,{"$f":"\"Reserves - \"&'Reserve Risk (old)'!B29","v":"Reserves - International Motor Non-Proportional"},"Schedule III, Line (19)",{"$f":"'Reserve Risk (old)'!E29","v":0}]
[null,{"$f":"\"Reserves - \"&'Reserve Risk (old)'!B30","v":"Reserves - International Casualty Non-Motor"},"Schedule III, Line (20)",{"$f":"'Reserve Risk (old)'!E30","v":0}]
[null,{"$f":"\"Reserves - \"&'Reserve Risk (old)'!B31","v":"Reserves - International Casualty Non-Motor Non-Proportional"},"Schedule III, Line (21)",{"$f":"'Reserve Risk (old)'!E31","v":0}]
[null,{"$f":"\"Reserves - \"&'Reserve Risk (old)'!B32","v":"Reserves - Retro Property"},"Schedule III, Line (22)",{"$f":"'Reserve Risk (old)'!E32","v":0}]
[null,{"$f":"\"Reserves - \"&'Reserve Risk (old)'!B33","v":"Reserves - Structured / Finite Reinsurance"},"Schedule III, Line (23)",{"$f":"'Reserve Risk (old)'!E33","v":0}]
[null,"Gross Probable Maximum Loss","Schedule V, Line (b)",{"$f":"'Catastrophe Risk (old)'!E7","v":0}]
[null,"Net Probable Maximum Loss","Schedule V, Line (c)",{"$f":"'Catastrophe Risk (old)'!E9","v":0}]
[null,"Average Annual Loss (AAL) Excluding Property Catastrophe","Schedule V, Line (d)",{"$f":"'Catastrophe Risk (old)'!E11","v":0}]

{"sheet":"Crosscheck - Op Risk","index":138,"n_rows":153,"n_cols":4,"rows_kept":153,"cut":false,"hidden":true,"merged":[[3,0,3,1]]}
[null,"SUMMARY OF OPERATIONAL RISK"]
["Sample Company"]
["Summary of SFS Inputs - For BMA Use Only"]
[{"$f":"'Company Information'!C3","v":"2023-12-31"}]
[]
[]
[null,"INPUT","STATEMENT SOURCE","SCORE"]
[]
[null,"Corporate Governance - 1","Corp Gov",{"$f":"'Corp Gov'!C10","v":0}]
[null,"Corporate Governance - 2","Corp Gov",{"$f":"'Corp Gov'!C12","v":0}]
[null,"Corporate Governance - 3","Corp Gov",{"$f":"'Corp Gov'!C13","v":0}]
[null,"Corporate Governance - 4","Corp Gov",{"$f":"'Corp Gov'!C14","v":0}]
[null,"Corporate Governance - 5","Corp Gov",{"$f":"'Corp Gov'!C15","v":0}]
[null,"Corporate Governance - 6","Corp Gov",{"$f":"'Corp Gov'!C16","v":0}]
[null,"Risk Management - 1","Risk Man"]
[null,"Risk Management - 2","Risk Man"]
[null,"Risk Management - 3","Risk Man"]
[null,"Risk Management - 4","Risk Man"]
[null,"Risk Management - 5","Risk Man"]
[null,"Risk Management - 6","Risk Man"]
[null,"Risk Management - 7","Risk Man"]
[null,"Risk Identification"]
[null,"Fraud - Stage 1","Identification",{"$f":"Identification!E15","v":0}]
[null,"Fraud - Stage 2","Identification",{"$f":"Identification!E16","v":0}]
[null,"Fraud - Stage 3","Identification",{"$f":"Identification!E17","v":0}]
[null,"Fraud - Stage 4","Identification",{"$f":"Identification!E18","v":0}]
[null,"Human Resources - Stage 1","Identification",{"$f":"Identification!F15","v":0}]
[null,"Human Resources - Stage 2","Identification",{"$f":"Identification!F16","v":0}]
[null,"Human Resources - Stage 3","Identification",{"$f":"Identification!F17","v":0}]
[null,"Human Resources - Stage 4","Identification",{"$f":"Identification!F18","v":0}]
[null,"Outsourcing - Stage 1","Identification",{"$f":"Identification!G15","v":0}]
[null,"Outsourcing - Stage 2","Identification",{"$f":"Identification!G16","v":0}]
[null,"Outsourcing - Stage 3","Identification",{"$f":"Identification!G17","v":0}]
[null,"Outsourcing - Stage 4","Identification",{"$f":"Identification!G18","v":0}]
[null,"Distribution Channels - Stage 1","Identification",{"$f":"Identification!H15","v":0}]
[null,"Distribution Channels - Stage 2","Identification",{"$f":"Identification!H16","v":0}]
[null,"Distribution Channels - Stage 3","Identification",{"$f":"Identification!H17","v":0}]
[null,"Distribution Channels - Stage 4","Identification",{"$f":"Identification!H18","v":0}]
[null,"Business Processes - Stage 1","Identification",{"$f":"Identification!I15","v":0}]
[null,"Business Processes - Stage 2","Identification",{"$f":"Identification!I16","v":0}]
[null,"Business Processes - Stage 3","Identification",{"$f":"Identification!I17","v":0}]
[null,"Business Processes - Stage 4","Identification",{"$f":"Identification!I18","v":0}]
[null,"Business Continuity - Stage 1","Identification",{"$f":"Identification!J15","v":0}]
[null,"Business Continuity - Stage 2","Identification",{"$f":"Identification!J16","v":0}]
[null,"Business Continuity - Stage 3","Identification",{"$f":"Identification!J17","v":0}]
[null,"Business Continuity - Stage 4","Identification",{"$f":"Identification!J18","v":0}]
[null,"Information Systems - Stage 1","Identification",{"$f":"Identification!K15","v":0}]
[null,"Information Systems - Stage 2","Identification",{"$f":"Identification!K16","v":0}]
[null,"Information Systems - Stage 3","Identification",{"$f":"Identification!K17","v":0}]
[null,"Information Systems - Stage 4","Identification",{"$f":"Identification!K18","v":0}]
[null,"Compliance - Stage 1","Identification",{"$f":"Identification!L15","v":0}]
[null,"Compliance - Stage 2","Identification",{"$f":"Identification!L16","v":0}]
[null,"Compliance - Stage 3","Identification",{"$f":"Identification!L17","v":0}]
[null,"Compliance - Stage 4","Identification",{"$f":"Identification!L18","v":0}]
[null,"Risk Measurement"]
[null,"Fraud - Stage 1","Measurement",{"$f":"Measurement!E15","v":0}]
[null,"Fraud - Stage 2","Measurement",{"$f":"Measurement!E16","v":0}]
[null,"Fraud - Stage 3","Measurement",{"$f":"Measurement!E17","v":0}]
[null,"Fraud - Stage 4","Measurement",{"$f":"Measurement!E18","v":0}]
[null,"Human Resources - Stage 1","Measurement",{"$f":"Measurement!F15","v":0}]
[null,"Human Resources - Stage 2","Measurement",{"$f":"Measurement!F16","v":0}]
[null,"Human Resources - Stage 3","Measurement",{"$f":"Measurement!F17","v":0}]
[null,"Human Resources - Stage 4","Measurement",{"$f":"Measurement!F18","v":0}]
[null,"Outsourcing - Stage 1","Measurement",{"$f":"Measurement!G15","v":0}]
[null,"Outsourcing - Stage 2","Measurement",{"$f":"Measurement!G16","v":0}]
[null,"Outsourcing - Stage 3","Measurement",{"$f":"Measurement!G17","v":0}]
[null,"Outsourcing - Stage 4","Measurement",{"$f":"Measurement!G18","v":0}]
[null,"Distribution Channels - Stage 1","Measurement",{"$f":"Measurement!H15","v":0}]
[null,"Distribution Channels - Stage 2","Measurement",{"$f":"Measurement!H16","v":0}]
[null,"Distribution Channels - Stage 3","Measurement",{"$f":"Measurement!H17","v":0}]
[null,"Distribution Channels - Stage 4","Measurement",{"$f":"Measurement!H18","v":0}]
[null,"Business Processes - Stage 1","Measurement",{"$f":"Measurement!I15","v":0}]
[null,"Business Processes - Stage 2","Measurement",{"$f":"Measurement!I16","v":0}]
[null,"Business Processes - Stage 3","Measurement",{"$f":"Measurement!I17","v":0}]
[null,"Business Processes - Stage 4","Measurement",{"$f":"Measurement!I18","v":0}]
[null,"Business Continuity - Stage 1","Measurement",{"$f":"Measurement!J15","v":0}]
[null,"Business Continuity - Stage 2","Measurement",{"$f":"Measurement!J16","v":0}]
[null,"Business Continuity - Stage 3","Measurement",{"$f":"Measurement!J17","v":0}]
[null,"Business Continuity - Stage 4","Measurement",{"$f":"Measurement!J18","v":0}]
[null,"Information Systems - Stage 1","Measurement",{"$f":"Measurement!K15","v":0}]
[null,"Information Systems - Stage 2","Measurement",{"$f":"Measurement!K16","v":0}]
[null,"Information Systems - Stage 3","Measurement",{"$f":"Measurement!K17","v":0}]
[null,"Information Systems - Stage 4","Measurement",{"$f":"Measurement!K18","v":0}]
[null,"Compliance - Stage 1","Measurement",{"$f":"Measurement!L15","v":0}]
[null,"Compliance - Stage 2","Measurement",{"$f":"Measurement!L16","v":0}]
[null,"Compliance - Stage 3","Measurement",{"$f":"Measurement!L17","v":0}]
[null,"Compliance - Stage 4","Measurement",{"$f":"Measurement!L18","v":0}]
[null,"Risk Response"]
[null,"Fraud - Stage 1","Response",{"$f":"Response!E15","v":0}]
[null,"Fraud - Stage 2","Response",{"$f":"Response!E16","v":0}]
[null,"Fraud - Stage 3","Response",{"$f":"Response!E17","v":0}]
[null,"Fraud - Stage 4","Response",{"$f":"Response!E18","v":0}]
[null,"Human Resources - Stage 1","Response",{"$f":"Response!F15","v":0}]
[null,"Human Resources - Stage 2","Response",{"$f":"Response!F16","v":0}]
[null,"Human Resources - Stage 3","Response",{"$f":"Response!F17","v":0}]
[null,"Human Resources - Stage 4","Response",{"$f":"Response!F18","v":0}]
[null,"Outsourcing - Stage 1","Response",{"$f":"Response!G15","v":0}]
[null,"Outsourcing - Stage 2","Response",{"$f":"Response!G16","v":0}]
[null,"Outsourcing - Stage 3","Response",{"$f":"Response!G17","v":0}]
[null,"Outsourcing - Stage 4","Response",{"$f":"Response!G18","v":0}]
[null,"Distribution Channels - Stage 1","Response",{"$f":"Response!H15","v":0}]
[null,"Distribution Channels - Stage 2","Response",{"$f":"Response!H16","v":0}]
[null,"Distribution Channels - Stage 3","Response",{"$f":"Response!H17","v":0}]
[null,"Distribution Channels - Stage 4","Response",{"$f":"Response!H18","v":0}]
[null,"Business Processes - Stage 1","Response",{"$f":"Response!I15","v":0}]
[null,"Business Processes - Stage 2","Response",{"$f":"Response!I16","v":0}]
[null,"Business Processes - Stage 3","Response",{"$f":"Response!I17","v":0}]
[null,"Business Processes - Stage 4","Response",{"$f":"Response!I18","v":0}]
[null,"Business Continuity - Stage 1","Response",{"$f":"Response!J15","v":0}]
[null,"Business Continuity - Stage 2","Response",{"$f":"Response!J16","v":0}]
[null,"Business Continuity - Stage 3","Response",{"$f":"Response!J17","v":0}]
[null,"Business Continuity - Stage 4","Response",{"$f":"Response!J18","v":0}]
[null,"Information Systems - Stage 1","Response",{"$f":"Response!K15","v":0}]
[null,"Information Systems - Stage 2","Response",{"$f":"Response!K16","v":0}]
[null,"Information Systems - Stage 3","Response",{"$f":"Response!K17","v":0}]
[null,"Information Systems - Stage 4","Response",{"$f":"Response!K18","v":0}]
[null,"Compliance - Stage 1","Response",{"$f":"Response!L15","v":0}]
[null,"Compliance - Stage 2","Response",{"$f":"Response!L16","v":0}]
[null,"Compliance - Stage 3","Response",{"$f":"Response!L17","v":0}]
[null,"Compliance - Stage 4","Response",{"$f":"Response!L18","v":0}]
[null,"Risk Monitoring & Reporting"]
[null,"Fraud - Stage 1","Monitoring & Reporting",{"$f":"'Monitoring & Reporting'!E15","v":0}]
[null,"Fraud - Stage 2","Monitoring & Reporting",{"$f":"'Monitoring & Reporting'!E16","v":0}]
[null,"Fraud - Stage 3","Monitoring & Reporting",{"$f":"'Monitoring & Reporting'!E17","v":0}]
[null,"Fraud - Stage 4","Monitoring & Reporting",{"$f":"'Monitoring & Reporting'!E18","v":0}]
[null,"Human Resources - Stage 1","Monitoring & Reporting",{"$f":"'Monitoring & Reporting'!F15","v":0}]
[null,"Human Resources - Stage 2","Monitoring & Reporting",{"$f":"'Monitoring & Reporting'!F16","v":0}]
[null,"Human Resources - Stage 3","Monitoring & Reporting",{"$f":"'Monitoring & Reporting'!F17","v":0}]
[null,"Human Resources - Stage 4","Monitoring & Reporting",{"$f":"'Monitoring & Reporting'!F18","v":0}]
[null,"Outsourcing - Stage 1","Monitoring & Reporting",{"$f":"'Monitoring & Reporting'!G15","v":0}]
[null,"Outsourcing - Stage 2","Monitoring & Reporting",{"$f":"'Monitoring & Reporting'!G16","v":0}]
[null,"Outsourcing - Stage 3","Monitoring & Reporting",{"$f":"'Monitoring & Reporting'!G17","v":0}]
[null,"Outsourcing - Stage 4","Monitoring & Reporting",{"$f":"'Monitoring & Reporting'!G18","v":0}]
[null,"Distribution Channels - Stage 1","Monitoring & Reporting",{"$f":"'Monitoring & Reporting'!H15","v":0}]
[null,"Distribution Channels - Stage 2","Monitoring & Reporting",{"$f":"'Monitoring & Reporting'!H16","v":0}]
[null,"Distribution Channels - Stage 3","Monitoring & Reporting",{"$f":"'Monitoring & Reporting'!H17","v":0}]
[null,"Distribution Channels - Stage 4","Monitoring & Reporting",{"$f":"'Monitoring & Reporting'!H18","v":0}]
[null,"Business Processes - Stage 1","Monitoring & Reporting",{"$f":"'Monitoring & Reporting'!I15","v":0}]
[null,"Business Processes - Stage 2","Monitoring & Reporting",{"$f":"'Monitoring & Reporting'!I16","v":0}]
[null,"Business Processes - Stage 3","Monitoring & Reporting",{"$f":"'Monitoring & Reporting'!I17","v":0}]
[null,"Business Processes - Stage 4","Monitoring & Reporting",{"$f":"'Monitoring & Reporting'!I18","v":0}]
[null,"Business Continuity - Stage 1","Monitoring & Reporting",{"$f":"'Monitoring & Reporting'!J15","v":0}]
[null,"Business Continuity - Stage 2","Monitoring & Reporting",{"$f":"'Monitoring & Reporting'!J16","v":0}]
[null,"Business Continuity - Stage 3","Monitoring & Reporting",{"$f":"'Monitoring & Reporting'!J17","v":0}]
[null,"Business Continuity - Stage 4","Monitoring & Reporting",{"$f":"'Monitoring & Reporting'!J18","v":0}]
[null,"Information Systems - Stage 1","Monitoring & Reporting",{"$f":"'Monitoring & Reporting'!K15","v":0}]
[null,"Information Systems - Stage 2","Monitoring & Reporting",{"$f":"'Monitoring & Reporting'!K16","v":0}]
[null,"Information Systems - Stage 3","Monitoring & Reporting",{"$f":"'Monitoring & Reporting'!K17","v":0}]
[null,"Information Systems - Stage 4","Monitoring & Reporting",{"$f":"'Monitoring & Reporting'!K18","v":0}]
[null,"Compliance - Stage 1","Monitoring & Reporting",{"$f":"'Monitoring & Reporting'!L15","v":0}]
[null,"Compliance - Stage 2","Monitoring & Reporting",{"$f":"'Monitoring & Reporting'!L16","v":0}]
[null,"Compliance - Stage 3","Monitoring & Reporting",{"$f":"'Monitoring & Reporting'!L17","v":0}]
[null,"Compliance - Stage 4","Monitoring & Reporting",{"$f":"'Monitoring & Reporting'!L18","v":0}]

{"sheet":"prt_res","index":139,"n_rows":54,"n_cols":4,"rows_kept":54,"cut":false,"hidden":true,"merged":[]}
[true,"Company_Information_Print",null,true]
[true,"Summary_Print",null,false]
[true,"Fixed_Income_Print"]
[true,"Equity_Print"]
[true,"Interest_Rate_Print"]
[true,"Credit_Print"]
[true,"Premium_Print"]
[true,"Reserve_Print"]
[true,"Cat_Print"]
[]
[]
[]
[]
[]
[]
[]
[]
[]
[]
[]
[]
[]
[]
[]
[]
[]
[]
[]
[]
[]
[]
[]
[]
[]
[]
[]
[]
[]
[]
[]
[]
[]
[]
[]
[]
[]
[]
[]
[]
[]
[]
[]
[]
[null,"a"]

{"sheet":"HiddenFormulas","index":140,"n_rows":1155,"n_cols":33,"rows_kept":1155,"cut":false,"hidden":true,"merged":[]}
["Summary",null,null,"Fixed Income Investments",null,null,"Equity Investments",null,null,"Interest Rate-Liquidity Risk",null,null,"Currency Risk",null,null,"Concentration Risk",null,null,"Geographic Diversification",null,null,"Credit Risk",null,null,"Premium Risk",null,null,"Reserve Risk",null,null,"Catastrophe Risk"]
[{"$f":"IFERROR(SUM(C2:AG2),999)","v":0},null,{"$f":"IFERROR(SUM(C3:C273),999)","v":0},null,null,{"$f":"IFERROR(SUM(F3:F272),999)","v":0},null,null,{"$f":"IFERROR(SUM(I3:I342),999)","v":0},null,null,{"$f":"IFERROR(SUM(L3:L21),999)","v":0},null,null,{"$f":"IFERROR(SUM(O3:O535),999)","v":0},null,null,{"$f":"IFERROR(SUM(R3:R308),999)","v":0},null,null,{"$f":"IFERROR(SUM(U3:U1155),999)","v":0},null,null,{"$f":"IFERROR(SUM(X3:X166),999)","v":0},null,null,{"$f":"IFERROR(SUM(AA3:AA375),999)","v":0},null,null,{"$f":"IFERROR(SUM(AD3:AD140),999)","v":0},null,null,{"$f":"IFERROR(SUM(AG3:AG28),999)","v":0}]
[{"$f":"IF(_xlfn.FORMULATEXT(INDIRECT(AE27))=AF27,0,1)","v":0},null,273,null,null,272,null,null,342,null,null,21,null,null,535,null,null,308,null,null,1155,null,null,166,null,null,375,null,null,140,null,null,28]
[{"$f":"ADDRESS(2,1,1,1,$A$1)","v":"Summary!$A$2"},"='Company Information'!C7",{"$f":"IF(_xlfn.FORMULATEXT(INDIRECT(A4))=B4,0,1)","v":0},{"$f":"ADDRESS(2,1,1,1,$D$1)","v":"'Fixed Income Investments'!$A$2"},"='Company Information'!C7",{"$f":"IF(_xlfn.FORMULATEXT(INDIRECT(D4))=E4,0,1)","v":0},{"$f":"ADDRESS(2,1,1,1,$G$1)","v":"'Equity Investments'!$A$2"},"='Company Information'!C7",{"$f":"IF(_xlfn.FORMULATEXT(INDIRECT(G4))=H4,0,1)","v":0},{"$f":"ADDRESS(2,1,1,1,$J$1)","v":"'Interest Rate-Liquidity Risk'!$A$2"},"='Company Information'!C7",{"$f":"IF(_xlfn.FORMULATEXT(INDIRECT(J4))=K4,0,1)","v":0},{"$f":"ADDRESS(2,1,1,1,$M$1)","v":"'Currency Risk'!$A$2"},"='Company Information'!C7",{"$f":"IF(_xlfn.FORMULATEXT(INDIRECT(M4))=N4,0,1)","v":0},{"$f":"ADDRESS(2,1,1,1,$P$1)","v":"'Concentration Risk'!$A$2"},"='Company Information'!C7",{"$f":"IF(_xlfn.FORMULATEXT(INDIRECT(P4))=Q4,0,1)","v":0},{"$f":"ADDRESS(2,1,1,1,$S$1)","v":"'Geographic Diversification'!$A$2"},"='Company Information'!C7",{"$f":"IF(_xlfn.FORMULATEXT(INDIRECT(S4))=T4,0,1)","v":0},{"$f":"ADDRESS(2,1,1,1,$V$1)","v":"'Credit Risk'!$A$2"},"='Company Information'!C7",{"$f":"IF(_xlfn.FORMULATEXT(INDIRECT(V4))=W4,0,1)","v":0},{"$f":"ADDRESS(2,1,1,1,$Y$1)","v":"'Premium Risk'!$A$2"},"='Company Information'!C7",{"$f":"IF(_xlfn.FORMULATEXT(INDIRECT(Y4))=Z4,0,1)","v":0},{"$f":"ADDRESS(2,1,1,1,$AB$1)","v":"'Reserve Risk'!$A$2"},"='Company Information'!C7",{"$f":"IF(_xlfn.FORMULATEXT(INDIRECT(AB4))=AC4,0,1)","v":0},{"$f":"ADDRESS(2,1,1,1,$AE$1)","v":"'Catastrophe Risk'!$A$2"},"='Company Information'!C7",{"$f":"IF(_xlfn.FORMULATEXT(INDIRECT(AE4))=AF4,0,1)","v":0}]
[{"$f":"ADDRESS(4,1,1,1,$A$1)","v":"Summary!$A$4"},"=\"For the Year Ending \"",0,{"$f":"ADDRESS(3,1,1,1,$D$1)","v":"'Fixed Income Investments'!$A$3"},"=\"Fixed Income Investment Risk\"&\"($\"&IF(CONFIGURATION!$B$12>1,MID(CONFIGURATION!$B$12,2,LEN(CONFIGURATION!$B$12)),\"\")&\")\"",{"$f":"IF(_xlfn.FORMULATEXT(INDIRECT(D5))=E5,0,1)","v":0},{"$f":"ADDRESS(3,1,1,1,$G$1)","v":"'Equity Investments'!$A$3"},"=\"Equity Investment Risk\" & \"($\"&IF(CONFIGURATION!$B$12>1,MID(CONFIGURATION!$B$12,2,LEN(CONFIGURATION!$B$12)),\"\")&\")\"",{"$f":"IF(_xlfn.FORMULATEXT(INDIRECT(G5))=H5,0,1)","v":0},{"$f":"ADDRESS(3,1,1,1,$J$1)","v":"'Interest Rate-Liquidity Risk'!$A$3"},"=\"Interest Rate / Liquidity Risk\" & \"($\"&IF(CONFIGURATION!$B$12>1,MID(CONFIGURATION!$B$12,2,LEN(CONFIGURATION!$B$12)),\"\")&\")\"",{"$f":"IF(_xlfn.FORMULATEXT(INDIRECT(J5))=K5,0,1)","v":0},{"$f":"ADDRESS(3,1,1,1,$M$1)","v":"'Currency Risk'!$A$3"},"=\"Currency Risk\" & \"($\"&IF(CONFIGURATION!$B$12>1,MID(CONFIGURATION!$B$12,2,LEN(CONFIGURATION!$B$12)),\"\")&\")\"",{"$f":"IF(_xlfn.FORMULATEXT(INDIRECT(M5))=N5,0,1)","v":0},{"$f":"ADDRESS(3,1,1,1,$P$1)","v":"'Concentration Risk'!$A$3"},"=\"Concentration Risk\" & \"($\"&IF(CONFIGURATION!$B$12>1,MID(CONFIGURATION!$B$12,2,LEN(CONFIGURATION!$B$12)),\"\")&\")\"",{"$f":"IF(_xlfn.FORMULATEXT(INDIRECT(P5))=Q5,0,1)","v":0},{"$f":"ADDRESS(3,1,1,1,$S$1)","v":"'Geographic Diversification'!$A$3"},"=\"Geographic Diversification\" & \"($\"&IF(CONFIGURATION!$B$12>1,MID(CONFIGURATION!$B$12,2,LEN(CONFIGURATION!$B$12)),\"\")&\")\"",0,{"$f":"ADDRESS(3,1,1,1,$V$1)","v":"'Credit Risk'!$A$3"},"=\"Credit Risk\" & \"($\"&IF(CONFIGURATION!$B$12>1,MID(CONFIGURATION!$B$12,2,LEN(CONFIGURATION!$B$12)),\"\")&\")\"",{"$f":"IF(_xlfn.FORMULATEXT(INDIRECT(V5))=W5,0,1)","v":0},{"$f":"ADDRESS(3,1,1,1,$Y$1)","v":"'Premium Risk'!$A$3"},"=\"Premium Risk\" & \"($\"&IF(CONFIGURATION!$B$12>1,MID(CONFIGURATION!$B$12,2,LEN(CONFIGURATION!$B$12)),\"\")&\")\"",0,{"$f":"ADDRESS(3,1,1,1,$AB$1)","v":"'Reserve Risk'!$A$3"},"=\"Reserve Risk\"& \"($\"&IF(CONFIGURATION!$B$12>1,MID(CONFIGURATION!$B$12,2,LEN(CONFIGURATION!$B$12)),\"\")&\")\"",0,{"$f":"ADDRESS(3,1,1,1,$AE$1)","v":"'Catastrophe Risk'!$A$3"},"=\"Catastrophe Risk\" & \"($\"&IF(CONFIGURATION!$B$12>1,MID(CONFIGURATION!$B$12,2,LEN(CONFIGURATION!$B$12)),\"\")&\")\"",0]
[{"$f":"ADDRESS(4,4,1,1,$A$1)","v":"Summary!$D$4"},"= TEXT('Company Information'!C3,\"d mmmm yyyy\")",0,{"$f":"ADDRESS(3,3,1,1,$D$1)","v":"'Fixed Income Investments'!$C$3"},"= TEXT('Company Information'!C3,\"d mmmm yyyy\")",{"$f":"IF(_xlfn.FORMULATEXT(INDIRECT(D6))=E6,0,1)","v":0},{"$f":"ADDRESS(3,3,1,1,$G$1)","v":"'Equity Investments'!$C$3"},"= TEXT('Company Information'!C3,\"d mmmm yyyy\")",{"$f":"IF(_xlfn.FORMULATEXT(INDIRECT(G6))=H6,0,1)","v":0},{"$f":"ADDRESS(3,3,1,1,$J$1)","v":"'Interest Rate-Liquidity Risk'!$C$3"},"= TEXT('Company Information'!C3,\"d mmmm yyyy\")",{"$f":"IF(_xlfn.FORMULATEXT(INDIRECT(J6))=K6,0,1)","v":0},{"$f":"ADDRESS(3,5,1,1,$M$1)","v":"'Currency Risk'!$E$3"},"= TEXT('Company Information'!C3,\"d mmmm yyyy\")",{"$f":"IF(_xlfn.FORMULATEXT(INDIRECT(M6))=N6,0,1)","v":0},{"$f":"ADDRESS(3,3,1,1,$P$1)","v":"'Concentration Risk'!$C$3"},"= TEXT('Company Information'!C3,\"d mmmm yyyy\")",{"$f":"IF(_xlfn.FORMULATEXT(INDIRECT(P6))=Q6,0,1)","v":0},{"$f":"ADDRESS(3,3,1,1,$S$1)","v":"'Geographic Diversification'!$C$3"},"= TEXT('Company Information'!C3,\"d mmmm yyyy\")",0,{"$f":"ADDRESS(3,4,1,1,$V$1)","v":"'Credit Risk'!$D$3"},"= TEXT('Company Information'!C3,\"d mmmm yyyy\")",{"$f":"IF(_xlfn.FORMULATEXT(INDIRECT(V6))=W6,0,1)","v":0},{"$f":"ADDRESS(3,3,1,1,$Y$1)","v":"'Premium Risk'!$C$3"},"= TEXT('Company Information'!C3,\"d mmmm yyyy\")",0,{"$f":"ADDRESS(3,3,1,1,$AB$1)","v":"'Reserve Risk'!$C$3"},"= TEXT('Company Information'!C3,\"d mmmm yyyy\")",0,{"$f":"ADDRESS(3,3,1,1,$AE$1)","v":"'Catastrophe Risk'!$C$3"},"= TEXT('Company Information'!C3,\"d mmmm yyyy\")",0]
[{"$f":"ADDRESS(5,1,1,1,$A$1)","v":"Summary!$A$5"},"=\"(\"&IF(CONFIGURATION!$B$12>1,MID(CONFIGURATION!$B$12,2,LEN(CONFIGURATION!$B$12)),\"\")&\")\"",0,{"$f":"ADDRESS(12,7,1,1,$D$1)","v":"'Fixed Income Investments'!$G$12"},"='Schedule IIB (EBS)'!D13+'Schedule IIC (EBS)'!D13+(MAX(0,'Schedule IID (EBS)'!D13-'Schedule IID (EBS)'!F13))+'Schedule IIE (EBS)'!D13+'Schedule IIF (EBS)'!D13",{"$f":"IF(_xlfn.FORMULATEXT(INDIRECT(D7))=E7,0,1)","v":0},{"$f":"ADDRESS(3,4,1,1,$G$1)","v":"'Equity Investments'!$D$3"},-1,{"$f":"IF(INDIRECT(G7)=H7,0,1)","v":0},{"$f":"ADDRESS(10,4,1,1,$J$1)","v":"'Interest Rate-Liquidity Risk'!$D$10"},"=SUM('Schedule IIB (EBS)'!X13:X21)+SUM('Schedule IIC (EBS)'!X13:X21)",{"$f":"IF(_xlfn.FORMULATEXT(INDIRECT(J7))=K7,0,1)","v":0},{"$f":"ADDRESS(5,3,1,1,$M$1)","v":"'Currency Risk'!$C$5"},-1,{"$f":"IF(INDIRECT(M7)=N7,0,1)","v":0},{"$f":"ADDRESS(9,4,1,1,$P$1)","v":"'Concentration Risk'!$D$9"},"Cash and Cash Equivalent",{"$f":"IF(INDIRECT(P7)=Q7,0,1)","v":0},{"$f":"ADDRESS(9,4,1,1,$S$1)","v":"'Geographic Diversification'!$D$9"},"=SUM(I9:Z9)",0,{"$f":"ADDRESS(11,6,1,1,$V$1)","v":"'Credit Risk'!$F$11"},"='Form 1EBS'!F57",{"$f":"IF(_xlfn.FORMULATEXT(INDIRECT(V7))=W7,0,1)","v":0},{"$f":"ADDRESS(11,4,1,1,$Y$1)","v":"'Premium Risk'!$D$11"},"='Schedule IVD (EBS)'!Q9",0,{"$f":"ADDRESS(11,4,1,1,$AB$1)","v":"'Reserve Risk'!$D$11"},"=+'Schedule III (EBS)'!D10",0,{"$f":"ADDRESS(7,2,1,1,$AE$1)","v":"'Catastrophe Risk'!$B$7"},"=IF('Company Information'!F11=\"Class 3A\",\"(a)  Gross Probable Maximum Loss (if property catastrophe writer)\",\"(a)  Gross Probable Maximum Loss\")",0]
[{"$f":"ADDRESS(11,12,1,1,$A$1)","v":"Summary!$L$11"},"=IF('Company Information'!$C$2=\"IFRS\",IF('Company Information'!$B$2=\"Unconsolidated BSCR Model\",'Form 1ASFS'!M142,'Form 1ASFS'!E142+'Form 1ASFS'!I142),\nIF('Company Information'!$B$2=\"Unconsolidated BSCR Model\",'Form 1SFS'!$M$198,'Form 1SFS'!$E$198))",0,{"$f":"ADDRESS(12,8,1,1,$D$1)","v":"'Fixed Income Investments'!$H$12"},0,{"$f":"IF(INDIRECT(D8)=E8,0,1)","v":0},{"$f":"ADDRESS(3,5,1,1,$G$1)","v":"'Equity Investments'!$E$3"},"=D3-1",{"$f":"IF(_xlfn.FORMULATEXT(INDIRECT(G8))=H8,0,1)","v":0},{"$f":"ADDRESS(10,5,1,1,$J$1)","v":"'Interest Rate-Liquidity Risk'!$E$10"},"=IF('Company Information'!F11=\"Class 3A\",IF(('Schedule V'!$H$12-'Schedule V'!$H$10)>3.5,3.5,MAX(1,'Schedule V'!$H$10-'Schedule V'!$H$12,'Schedule V'!$H$12-'Schedule V'!$H$10)),IF('Schedule V'!$H$10-'Schedule V'!$H$12>=1,'Schedule V'!$H$10-'Schedule V'!$H$12,IF('Schedule V'!$H$12-'Schedule V'!$H$10>=1,'Schedule V'!$H$12-'Schedule V'!$H$10,1)))",{"$f":"IF(_xlfn.FORMULATEXT(INDIRECT(J8))=K8,0,1)","v":0},{"$f":"ADDRESS(5,4,1,1,$M$1)","v":"'Currency Risk'!$D$5"},"=C5-1",{"$f":"IF(_xlfn.FORMULATEXT(INDIRECT(M8))=N8,0,1)","v":0},{"$f":"ADDRESS(10,2,1,1,$P$1)","v":"'Concentration Risk'!$B$10"},"BSCR Rating 0",{"$f":"IF(INDIRECT(P8)=Q8,0,1)","v":0},{"$f":"ADDRESS(9,5,1,1,$S$1)","v":"'Geographic Diversification'!$E$9"},"=SUMSQ(I9:Z9)",0,{"$f":"ADDRESS(11,7,1,1,$V$1)","v":"'Credit Risk'!$G$11"},0.05,{"$f":"IF(INDIRECT(V8)=W8,0,1)","v":0},{"$f":"ADDRESS(11,5,1,1,$Y$1)","v":"'Premium Risk'!$E$11"},"='Schedule IVD (EBS)'!O9",0,{"$f":"ADDRESS(11,5,1,1,$AB$1)","v":"'Reserve Risk'!$E$11"},"=+'Schedule III (EBS)'!F10",0,{"$f":"ADDRESS(7,3,1,1,$AE$1)","v":"'Catastrophe Risk'!$C$7"},"=IF('Company Information'!F11=\"Class 3A\",\"Schedule V, Line (f)\",\"Schedule V, Line (g)\")",0]
[{"$f":"ADDRESS(11,17,1,1,$A$1)","v":"Summary!$Q$11"},"=IF('Company Information'!$C$2=\"IFRS\",IF('Company Information'!$B$2=\"Unconsolidated BSCR Model\",'Form 1ASFS'!M10,'Form 1ASFS'!E10),\nIF('Company Information'!$B$2=\"Unconsolidated BSCR Model\",'Form 1SFS'!$M$12,'Form 1SFS'!$E$12))",0,{"$f":"ADDRESS(12,9,1,1,$D$1)","v":"'Fixed Income Investments'!$I$12"},"=IF(G12<0,0,G12*H12)",{"$f":"IF(_xlfn.FORMULATEXT(INDIRECT(D9))=E9,0,1)","v":0},{"$f":"ADDRESS(3,6,1,1,$G$1)","v":"'Equity Investments'!$F$3"},"=E3-1",0,{"$f":"ADDRESS(10,6,1,1,$J$1)","v":"'Interest Rate-Liquidity Risk'!$F$10"},0.02,{"$f":"IF(INDIRECT(J9)=K9,0,1)","v":0},{"$f":"ADDRESS(5,5,1,1,$M$1)","v":"'Currency Risk'!$E$5"},"=D5-1",0,{"$f":"ADDRESS(10,4,1,1,$P$1)","v":"'Concentration Risk'!$D$10"},"=SUMIFS('Schedule XXIA'!$M$8:$M$57,'Schedule XXIA'!$J$8:$J$57,$D$9,'Schedule XXIA'!$L$8:$L$57,$B10)",{"$f":"IF(_xlfn.FORMULATEXT(INDIRECT(P9))=Q9,0,1)","v":0},{"$f":"ADDRESS(9,6,1,1,$S$1)","v":"'Geographic Diversification'!$F$9"},"=(IF(D9>0,E9/D9^2,1))",0,{"$f":"ADDRESS(11,8,1,1,$V$1)","v":"'Credit Risk'!$H$11"},"=IF($F$11<0,0,$F$11*$G$11)",{"$f":"IF(_xlfn.FORMULATEXT(INDIRECT(V9))=W9,0,1)","v":0},{"$f":"ADDRESS(11,6,1,1,$Y$1)","v":"'Premium Risk'!$F$11"},"='Geographic Diversification'!H9",0,{"$f":"ADDRESS(11,6,1,1,$AB$1)","v":"'Reserve Risk'!$F$11"},"='Geographic Diversification'!H40",0,{"$f":"ADDRESS(7,5,1,1,$AE$1)","v":"'Catastrophe Risk'!$E$7"},"='Schedule V'!H16",0]
[{"$f":"ADDRESS(12,5,1,1,$A$1)","v":"Summary!$E$12"},"='Information Sheet'!$H$16",0,{"$f":"ADDRESS(13,7,1,1,$D$1)","v":"'Fixed Income Investments'!$G$13"},"='Schedule IIB (EBS)'!D14+'Schedule IIC (EBS)'!D14+(MAX(0,'Schedule IID (EBS)'!D14-'Schedule IID (EBS)'!F14))+'Schedule IIE (EBS)'!D14+'Schedule IIF (EBS)'!D14",{"$f":"IF(_xlfn.FORMULATEXT(INDIRECT(D10))=E10,0,1)","v":0},{"$f":"ADDRESS(3,7,1,1,$G$1)","v":"'Equity Investments'!$G$3"},"=F3-1",0,{"$f":"ADDRESS(10,7,1,1,$J$1)","v":"'Interest Rate-Liquidity Risk'!$G$10"},"=IF($E$10<0,0,$D$10*$E$10*$F$10)",{"$f":"IF(_xlfn.FORMULATEXT(INDIRECT(J10))=K10,0,1)","v":0},{"$f":"ADDRESS(5,6,1,1,$M$1)","v":"'Currency Risk'!$F$5"},"=E5-1",0,{"$f":"ADDRESS(10,5,1,1,$P$1)","v":"'Concentration Risk'!$E$10"},"=+'Fixed Income Investments (Prior'!E83",{"$f":"IF(_xlfn.FORMULATEXT(INDIRECT(P10))=Q10,0,1)","v":0},{"$f":"ADDRESS(9,7,1,1,$S$1)","v":"'Geographic Diversification'!$G$9"},"=D9*(0.75+0.25*F9)",0,{"$f":"ADDRESS(12,6,1,1,$V$1)","v":"'Credit Risk'!$F$12"},"=IF('Form 1SFS'!M68=0,'Form 1SFS'!E68+'Form 1SFS'!I68,'Form 1SFS'!M68)",{"$f":"IF(_xlfn.FORMULATEXT(INDIRECT(V10))=W10,0,1)","v":0},{"$f":"ADDRESS(11,7,1,1,$Y$1)","v":"'Premium Risk'!$G$11"},"=IF(IFERROR(F11/E11,1)<0,1,IFERROR(F11/E11,1))",0,{"$f":"ADDRESS(11,7,1,1,$AB$1)","v":"'Reserve Risk'!$G$11"},0.46158858246802098,{"$f":"IF(INDIRECT(AB10)=AC10,0,1)","v":0},{"$f":"ADDRESS(9,2,1,1,$AE$1)","v":"'Catastrophe Risk'!$B$9"},"=IF('Company Information'!F11=\"Class 3A\",\"(b)  Net Probable Maximum Loss (if property catastrophe writer)\",\"(b)  Net Probable Maximum Loss\")",0]
[{"$f":"ADDRESS(12,12,1,1,$A$1)","v":"Summary!$L$12"},"='Information Sheet'!$H$16",0,{"$f":"ADDRESS(13,8,1,1,$D$1)","v":"'Fixed Income Investments'!$H$13"},4.0000000000000001E-3,{"$f":"IF(INDIRECT(D11)=E11,0,1)","v":0},{"$f":"ADDRESS(3,8,1,1,$G$1)","v":"'Equity Investments'!$H$3"},"=G3-1",0,{"$f":"ADDRESS(11,4,1,1,$J$1)","v":"'Interest Rate-Liquidity Risk'!$D$11"},"=SUM('Schedule IIB (EBS)'!X42:X49)+SUM('Schedule IIC (EBS)'!X42:X49)",{"$f":"IF(_xlfn.FORMULATEXT(INDIRECT(J11))=K11,0,1)","v":0},{"$f":"ADDRESS(5,7,1,1,$M$1)","v":"'Currency Risk'!$G$5"},"=F5-1",0,{"$f":"ADDRESS(10,6,1,1,$P$1)","v":"'Concentration Risk'!$F$10"},"=MAX(0,(D10*E10))",{"$f":"IF(_xlfn.FORMULATEXT(INDIRECT(P11))=Q11,0,1)","v":0},{"$f":"ADDRESS(9,8,1,1,$S$1)","v":"'Geographic Diversification'!$H$9"},"=IF('Schedule IVE (EBS)'!AB9=\"True\",G9,'Schedule IVD (EBS)'!O9)",0,{"$f":"ADDRESS(12,7,1,1,$V$1)","v":"'Credit Risk'!$G$12"},0.05,{"$f":"IF(INDIRECT(V11)=W11,0,1)","v":0},{"$f":"ADDRESS(11,8,1,1,$Y$1)","v":"'Premium Risk'!$H$11"},"='Schedule IVD (EBS)'!I9*$G11",0,{"$f":"ADDRESS(11,8,1,1,$AB$1)","v":"'Reserve Risk'!$H$11"},"=IF($F$11<0,0,$F$11*$G$11)",{"$f":"IF(_xlfn.FORMULATEXT(INDIRECT(AB11))=AC11,0,1)","v":0},{"$f":"ADDRESS(9,3,1,1,$AE$1)","v":"'Catastrophe Risk'!$C$9"},"=IF('Company Information'!F11=\"Class 3A\",\"Schedule V, Line (g)\",\"Schedule V, Line (h)\")",0]
[{"$f":"ADDRESS(18,3,1,1,$A$1)","v":"Summary!$C$18"},"=IF('Company Information'!F11=\"Class 4\",\"\",\"20% of 1st $6M NPW\")",0,{"$f":"ADDRESS(13,9,1,1,$D$1)","v":"'Fixed Income Investments'!$I$13"},"=IF(G13<0,0,G13*H13)",{"$f":"IF(_xlfn.FORMULATEXT(INDIRECT(D12))=E12,0,1)","v":0},{"$f":"ADDRESS(3,9,1,1,$G$1)","v":"'Equity Investments'!$I$3"},"=H3-1",0,{"$f":"ADDRESS(11,5,1,1,$J$1)","v":"'Interest Rate-Liquidity Risk'!$E$11"},"=IF('Company Information'!F11=\"Class 3A\",IF(('Schedule V'!$H$12-'Schedule V'!$H$10)>3.5,3.5,MAX(1,'Schedule V'!$H$10-'Schedule V'!$H$12,'Schedule V'!$H$12-'Schedule V'!$H$10)),IF('Schedule V'!$H$10-'Schedule V'!$H$12>=1,'Schedule V'!$H$10-'Schedule V'!$H$12,IF('Schedule V'!$H$12-'Schedule V'!$H$10>=1,'Schedule V'!$H$12-'Schedule V'!$H$10,1)))",{"$f":"IF(_xlfn.FORMULATEXT(INDIRECT(J12))=K12,0,1)","v":0},{"$f":"ADDRESS(5,8,1,1,$M$1)","v":"'Currency Risk'!$H$5"},"=G5-1",0,{"$f":"ADDRESS(11,2,1,1,$P$1)","v":"'Concentration Risk'!$B$11"},"BSCR Rating 1",{"$f":"IF(INDIRECT(P12)=Q12,0,1)","v":0},{"$f":"ADDRESS(9,9,1,1,$S$1)","v":"'Geographic Diversification'!$I$9"},"=+'Schedule IVE (EBS)'!E9",0,{"$f":"ADDRESS(12,8,1,1,$V$1)","v":"'Credit Risk'!$H$12"},"=IF($F$12<0,0,$F$12*$G$12)",{"$f":"IF(_xlfn.FORMULATEXT(INDIRECT(V12))=W12,0,1)","v":0},{"$f":"ADDRESS(11,9,1,1,$Y$1)","v":"'Premium Risk'!$I$11"},"='Schedule IVD (EBS)'!K9*$G11",0,{"$f":"ADDRESS(12,4,1,1,$AB$1)","v":"'Reserve Risk'!$D$12"},"=+'Schedule III (EBS)'!D11",{"$f":"IF(_xlfn.FORMULATEXT(INDIRECT(AB12))=AC12,0,1)","v":0},{"$f":"ADDRESS(9,5,1,1,$AE$1)","v":"'Catastrophe Risk'!$E$9"},"='Schedule V'!H18",0]
[{"$f":"ADDRESS(18,11,1,1,$A$1)","v":"Summary!$K$18"},"=IF(CONFIGURATION!$B$12=1000,IF('Company Information'!$F$11=\"Class 4\",\"\",MIN(K16*20%,1200)),IF('Company Information'!$F$11=\"Class 4\",\"\",MIN(K16*20%,1200000)))",0,{"$f":"ADDRESS(14,7,1,1,$D$1)","v":"'Fixed Income Investments'!$G$14"},"='Schedule IIB (EBS)'!D15+'Schedule IIC (EBS)'!D15+(MAX(0,'Schedule IID (EBS)'!D15-'Schedule IID (EBS)'!F15))+'Schedule IIE (EBS)'!D15+'Schedule IIF (EBS)'!D15",{"$f":"IF(_xlfn.FORMULATEXT(INDIRECT(D13))=E13,0,1)","v":0},{"$f":"ADDRESS(3,10,1,1,$G$1)","v":"'Equity Investments'!$J$3"},"=I3-1",0,{"$f":"ADDRESS(11,6,1,1,$J$1)","v":"'Interest Rate-Liquidity Risk'!$F$11"},0.02,{"$f":"IF(INDIRECT(J13)=K13,0,1)","v":0},{"$f":"ADDRESS(5,9,1,1,$M$1)","v":"'Currency Risk'!$I$5"},"=H5-1",0,{"$f":"ADDRESS(11,4,1,1,$P$1)","v":"'Concentration Risk'!$D$11"},"=SUMIFS('Schedule XXIA'!$M$8:$M$57,'Schedule XXIA'!$J$8:$J$57,$D$9,'Schedule XXIA'!$L$8:$L$57,$B11)",{"$f":"IF(_xlfn.FORMULATEXT(INDIRECT(P13))=Q13,0,1)","v":0},{"$f":"ADDRESS(9,10,1,1,$S$1)","v":"'Geographic Diversification'!$J$9"},"=+'Schedule IVE (EBS)'!F9",0,{"$f":"ADDRESS(13,6,1,1,$V$1)","v":"'Credit Risk'!$F$13"},"='Form 1EBS'!F58-'Form 1EBS'!F179",{"$f":"IF(_xlfn.FORMULATEXT(INDIRECT(V13))=W13,0,1)","v":0},{"$f":"ADDRESS(11,10,1,1,$Y$1)","v":"'Premium Risk'!$J$11"},"='Schedule IVD (EBS)'!M9*$G11",0,{"$f":"ADDRESS(12,5,1,1,$AB$1)","v":"'Reserve Risk'!$E$12"},"=+'Schedule III (EBS)'!F11",{"$f":"IF(_xlfn.FORMULATEXT(INDIRECT(AB13))=AC13,0,1)","v":0},{"$f":"ADDRESS(11,3,1,1,$AE$1)","v":"'Catastrophe Risk'!$C$11"},"=IF('Company Information'!F11=\"Class 3A\",\"Schedule V, Line (h)\",\"Schedule V, Line (i)\")",0]
[{"$f":"ADDRESS(19,2,1,1,$A$1)","v":"Summary!$B$19"},"=IF('Company Information'!$F$11=\"Class 4\",50,15)",0,{"$f":"ADDRESS(14,8,1,1,$D$1)","v":"'Fixed Income Investments'!$H$14"},8.0000000000000002E-3,{"$f":"IF(INDIRECT(D14)=E14,0,1)","v":0},{"$f":"ADDRESS(3,11,1,1,$G$1)","v":"'Equity Investments'!$K$3"},"=J3-1",0,{"$f":"ADDRESS(11,7,1,1,$J$1)","v":"'Interest Rate-Liquidity Risk'!$G$11"},"=IF($E$11<0,0, $D$11*$E$11*$F$11)",{"$f":"IF(_xlfn.FORMULATEXT(INDIRECT(J14))=K14,0,1)","v":0},{"$f":"ADDRESS(5,10,1,1,$M$1)","v":"'Currency Risk'!$J$5"},"=I5-1",0,{"$f":"ADDRESS(11,5,1,1,$P$1)","v":"'Concentration Risk'!$E$11"},"=+'Fixed Income Investments (Prior'!E84",{"$f":"IF(_xlfn.FORMULATEXT(INDIRECT(P14))=Q14,0,1)","v":0},{"$f":"ADDRESS(9,11,1,1,$S$1)","v":"'Geographic Diversification'!$K$9"},"=+'Schedule IVE (EBS)'!G9",0,{"$f":"ADDRESS(13,7,1,1,$V$1)","v":"'Credit Risk'!$G$13"},0.1,{"$f":"IF(INDIRECT(V14)=W14,0,1)","v":0},{"$f":"ADDRESS(11,11,1,1,$Y$1)","v":"'Premium Risk'!$K$11"},0,{"$f":"IF(INDIRECT(Y14)=Z14,0,1)","v":0},{"$f":"ADDRESS(12,6,1,1,$AB$1)","v":"'Reserve Risk'!$F$12"},"='Geographic Diversification'!H41",{"$f":"IF(_xlfn.FORMULATEXT(INDIRECT(AB14))=AC14,0,1)","v":0},{"$f":"ADDRESS(11,5,1,1,$AE$1)","v":"'Catastrophe Risk'!$E$11"},"='Schedule V'!H20",0]
[{"$f":"ADDRESS(19,3,1,1,$A$1)","v":"Summary!$C$19"},"=IF('Company Information'!F11=\"Class 4\",\"% of NPW\",\"% of any above NPW above $6M\")",0,{"$f":"ADDRESS(14,9,1,1,$D$1)","v":"'Fixed Income Investments'!$I$14"},"=IF(G14<0,0,G14*H14)",{"$f":"IF(_xlfn.FORMULATEXT(INDIRECT(D15))=E15,0,1)","v":0},{"$f":"ADDRESS(3,12,1,1,$G$1)","v":"'Equity Investments'!$L$3"},"=K3-1",0,{"$f":"ADDRESS(12,4,1,1,$J$1)","v":"'Interest Rate-Liquidity Risk'!$D$12"},"=SUM('Schedule IIB (EBS)'!X22:X25)+SUM('Schedule IIC (EBS)'!X22:X25)",{"$f":"IF(_xlfn.FORMULATEXT(INDIRECT(J15))=K15,0,1)","v":0},{"$f":"ADDRESS(5,12,1,1,$M$1)","v":"'Currency Risk'!$L$5"},"=J5-1",0,{"$f":"ADDRESS(11,6,1,1,$P$1)","v":"'Concentration Risk'!$F$11"},"=MAX(0,(D11*E11))",{"$f":"IF(_xlfn.FORMULATEXT(INDIRECT(P15))=Q15,0,1)","v":0},{"$f":"ADDRESS(9,12,1,1,$S$1)","v":"'Geographic Diversification'!$L$9"},"=+'Schedule IVE (EBS)'!H9",0,{"$f":"ADDRESS(13,8,1,1,$V$1)","v":"'Credit Risk'!$H$13"},"=$F$13*$G$13",{"$f":"IF(_xlfn.FORMULATEXT(INDIRECT(V15))=W15,0,1)","v":0},{"$f":"ADDRESS(11,12,1,1,$Y$1)","v":"'Premium Risk'!$L$11"},0.115,{"$f":"IF(INDIRECT(Y15)=Z15,0,1)","v":0},{"$f":"ADDRESS(12,7,1,1,$AB$1)","v":"'Reserve Risk'!$G$12"},0.43844984238218698,{"$f":"IF(INDIRECT(AB15)=AC15,0,1)","v":0},{"$f":"ADDRESS(13,5,1,1,$AE$1)","v":"'Catastrophe Risk'!$E$13"},0.4,{"$f":"IF(INDIRECT(AE15)=AF15,0,1)","v":0}]
[{"$f":"ADDRESS(20,11,1,1,$A$1)","v":"Summary!$K$20"},"=SUM(K18:K19)",0,{"$f":"ADDRESS(15,7,1,1,$D$1)","v":"'Fixed Income Investments'!$G$15"},"='Schedule IIB (EBS)'!D16+'Schedule IIC (EBS)'!D16+(MAX(0,'Schedule IID (EBS)'!D16-'Schedule IID (EBS)'!F16))+'Schedule IIE (EBS)'!D16+'Schedule IIF (EBS)'!D16",{"$f":"IF(_xlfn.FORMULATEXT(INDIRECT(D16))=E16,0,1)","v":0},{"$f":"ADDRESS(3,14,1,1,$G$1)","v":"'Equity Investments'!$N$3"},"=L3-1",0,{"$f":"ADDRESS(12,5,1,1,$J$1)","v":"'Interest Rate-Liquidity Risk'!$E$12"},"=IF('Company Information'!F11=\"Class 3A\",IF(('Schedule V'!$H$12-'Schedule V'!$H$10)>3.5,3.5,MAX(1,'Schedule V'!$H$10-'Schedule V'!$H$12,'Schedule V'!$H$12-'Schedule V'!$H$10)),IF('Schedule V'!$H$10-'Schedule V'!$H$12>=1,'Schedule V'!$H$10-'Schedule V'!$H$12,IF('Schedule V'!$H$12-'Schedule V'!$H$10>=1,'Schedule V'!$H$12-'Schedule V'!$H$10,1)))",{"$f":"IF(_xlfn.FORMULATEXT(INDIRECT(J16))=K16,0,1)","v":0},{"$f":"ADDRESS(5,13,1,1,$M$1)","v":"'Currency Risk'!$M$5"},"=L5-1",0,{"$f":"ADDRESS(12,2,1,1,$P$1)","v":"'Concentration Risk'!$B$12"},"BSCR Rating 2",{"$f":"IF(INDIRECT(P16)=Q16,0,1)","v":0},{"$f":"ADDRESS(9,13,1,1,$S$1)","v":"'Geographic Diversification'!$M$9"},"=+'Schedule IVE (EBS)'!I9",0,{"$f":"ADDRESS(15,6,1,1,$V$1)","v":"'Credit Risk'!$F$15"},"=SUM(F11:F13)",{"$f":"IF(_xlfn.FORMULATEXT(INDIRECT(V16))=W16,0,1)","v":0},{"$f":"ADDRESS(11,13,1,1,$Y$1)","v":"'Premium Risk'!$M$11"},"=+L11*T11",{"$f":"IF(_xlfn.FORMULATEXT(INDIRECT(Y16))=Z16,0,1)","v":0},{"$f":"ADDRESS(12,8,1,1,$AB$1)","v":"'Reserve Risk'!$H$12"},"=IF($F$12<0,0,$F$12*$G$12)",{"$f":"IF(_xlfn.FORMULATEXT(INDIRECT(AB16))=AC16,0,1)","v":0},{"$f":"ADDRESS(15,2,1,1,$AE$1)","v":"'Catastrophe Risk'!$B$15"},"=IF('Company Information'!F11=\"Class 3A\",\"(c)  Property Catastrophe Premium\",\"(e)  Property Catastrophe Premium\")",{"$f":"IF(_xlfn.FORMULATEXT(INDIRECT(AE16))=AF16,0,1)","v":0}]
[{"$f":"ADDRESS(22,3,1,1,$A$1)","v":"Summary!$C$22"},"=IF('Company Information'!$C$2=\"IFRS\",\"Net Loss Provision (1ASFS Net LIC)\",\n\"Net Loss Provision (1SFS Line 17(d))\")",0,{"$f":"ADDRESS(15,8,1,1,$D$1)","v":"'Fixed Income Investments'!$H$15"},1.4999999999999999E-2,{"$f":"IF(INDIRECT(D17)=E17,0,1)","v":0},{"$f":"ADDRESS(3,16,1,1,$G$1)","v":"'Equity Investments'!$P$3"},"=N3-1",0,{"$f":"ADDRESS(12,6,1,1,$J$1)","v":"'Interest Rate-Liquidity Risk'!$F$12"},0.02,{"$f":"IF(INDIRECT(J17)=K17,0,1)","v":0},{"$f":"ADDRESS(5,14,1,1,$M$1)","v":"'Currency Risk'!$N$5"},"=M5-1",0,{"$f":"ADDRESS(12,4,1,1,$P$1)","v":"'Concentration Risk'!$D$12"},"=SUMIFS('Schedule XXIA'!$M$8:$M$57,'Schedule XXIA'!$J$8:$J$57,$D$9,'Schedule XXIA'!$L$8:$L$57,$B12)",{"$f":"IF(_xlfn.FORMULATEXT(INDIRECT(P17))=Q17,0,1)","v":0},{"$f":"ADDRESS(9,14,1,1,$S$1)","v":"'Geographic Diversification'!$N$9"},"=+'Schedule IVE (EBS)'!J9",0,{"$f":"ADDRESS(15,8,1,1,$V$1)","v":"'Credit Risk'!$H$15"},"=IF(SUM(H11:H13)>=0,SUM(H11:H13),0)",{"$f":"IF(_xlfn.FORMULATEXT(INDIRECT(V17))=W17,0,1)","v":0},{"$f":"ADDRESS(11,14,1,1,$Y$1)","v":"'Premium Risk'!$N$11"},"=IF($H11<0,0,$H11*$K11)+IF($I11<0,0,$I11*$L11)+IF($J11<0,0,$J11*$M11)",{"$f":"IF(_xlfn.FORMULATEXT(INDIRECT(Y17))=Z17,0,1)","v":0},{"$f":"ADDRESS(13,4,1,1,$AB$1)","v":"'Reserve Risk'!$D$13"},"=+'Schedule III (EBS)'!D12",{"$f":"IF(_xlfn.FORMULATEXT(INDIRECT(AB17))=AC17,0,1)","v":0},{"$f":"ADDRESS(15,5,1,1,$AE$1)","v":"'Catastrophe Risk'!$E$15"},"=IF('Schedule IVD (EBS)'!G9=0,'Schedule IVD (EBS)'!E9,'Schedule IVD (EBS)'!G9)",{"$f":"IF(_xlfn.FORMULATEXT(INDIRECT(AE17))=AF17,0,1)","v":0}]
[{"$f":"ADDRESS(23,3,1,1,$A$1)","v":"Summary!$C$23"},"=IF('Company Information'!$C$2=\"IFRS\",\"\",\"Other Ins. Reserves (1SFS Line 18)\")",0,{"$f":"ADDRESS(15,9,1,1,$D$1)","v":"'Fixed Income Investments'!$I$15"},"=IF(G15<0,0,G15*H15)",{"$f":"IF(_xlfn.FORMULATEXT(INDIRECT(D18))=E18,0,1)","v":0},{"$f":"ADDRESS(3,18,1,1,$G$1)","v":"'Equity Investments'!$R$3"},"=P3-1",0,{"$f":"ADDRESS(12,7,1,1,$J$1)","v":"'Interest Rate-Liquidity Risk'!$G$12"},"=IF($E$12<0,0, $D$12*$E$12*$F$12)",{"$f":"IF(_xlfn.FORMULATEXT(INDIRECT(J18))=K18,0,1)","v":0},{"$f":"ADDRESS(5,15,1,1,$M$1)","v":"'Currency Risk'!$O$5"},"=N5-1",0,{"$f":"ADDRESS(12,5,1,1,$P$1)","v":"'Concentration Risk'!$E$12"},"=+'Fixed Income Investments (Prior'!E85",{"$f":"IF(_xlfn.FORMULATEXT(INDIRECT(P18))=Q18,0,1)","v":0},{"$f":"ADDRESS(9,15,1,1,$S$1)","v":"'Geographic Diversification'!$O$9"},"=+'Schedule IVE (EBS)'!K9",0,{"$f":"ADDRESS(19,6,1,1,$V$1)","v":"'Credit Risk'!$F$19"},"='Form 1EBS'!F54",{"$f":"IF(_xlfn.FORMULATEXT(INDIRECT(V18))=W18,0,1)","v":0},{"$f":"ADDRESS(11,17,1,1,$Y$1)","v":"'Premium Risk'!$Q$11"},"=IF(H11=E11,MAX(D11*K11,0),IF(E11=F11,IF(D11<0,0,D11*(H11/F11)*K11),IF(D11<0,0,D11*(H11/E11)*K11)))\n+IF(I11=E11,MAX(D11*L11,0),IF(E11=F11,IF(D11<0,0,D11*(I11/F11)*L11),IF(D11<0,0,D11*(I11/E11)*L11)))\n+IF(J11=E11,MAX(D11*M11,0),IF(E11=F11,IF(D11<0,0,D11*(J11/F11)*M11),IF(D11<0,0,D11*(J11/E11)*M11)))",{"$f":"IF(_xlfn.FORMULATEXT(INDIRECT(Y18))=Z18,0,1)","v":0},{"$f":"ADDRESS(13,5,1,1,$AB$1)","v":"'Reserve Risk'!$E$13"},"=+'Schedule III (EBS)'!F12",{"$f":"IF(_xlfn.FORMULATEXT(INDIRECT(AB18))=AC18,0,1)","v":0},{"$f":"ADDRESS(17,5,1,1,$AE$1)","v":"'Catastrophe Risk'!$E$17"},"=$E$11/$E$13+IF($E$15>0,$E$15,0)",{"$f":"IF(_xlfn.FORMULATEXT(INDIRECT(AE18))=AF18,0,1)","v":0}]
[{"$f":"ADDRESS(25,2,1,1,$A$1)","v":"Summary!$B$25"},0.15,{"$f":"IF(INDIRECT(A19)=B19,0,1)","v":0},{"$f":"ADDRESS(16,7,1,1,$D$1)","v":"'Fixed Income Investments'!$G$16"},"='Schedule IIB (EBS)'!D17+'Schedule IIC (EBS)'!D17+(MAX(0,'Schedule IID (EBS)'!D17-'Schedule IID (EBS)'!F17))+'Schedule IIE (EBS)'!D17+'Schedule IIF (EBS)'!D17",{"$f":"IF(_xlfn.FORMULATEXT(INDIRECT(D19))=E19,0,1)","v":0},{"$f":"ADDRESS(11,4,1,1,$G$1)","v":"'Equity Investments'!$D$11"},"='Schedule IIB (EBS)'!D39+'Schedule IIC (EBS)'!D39+'Schedule IID (EBS)'!D39+'Schedule IIE (EBS)'!D39+'Schedule IIF (EBS)'!D39",0,{"$f":"ADDRESS(14,4,1,1,$J$1)","v":"'Interest Rate-Liquidity Risk'!$D$14"},"=SUM(D10:D12)",{"$f":"IF(_xlfn.FORMULATEXT(INDIRECT(J19))=K19,0,1)","v":0},{"$f":"ADDRESS(5,16,1,1,$M$1)","v":"'Currency Risk'!$P$5"},"=O5-1",0,{"$f":"ADDRESS(12,6,1,1,$P$1)","v":"'Concentration Risk'!$F$12"},"=MAX(0,(D12*E12))",{"$f":"IF(_xlfn.FORMULATEXT(INDIRECT(P19))=Q19,0,1)","v":0},{"$f":"ADDRESS(9,16,1,1,$S$1)","v":"'Geographic Diversification'!$P$9"},"=+'Schedule IVE (EBS)'!L9",0,{"$f":"ADDRESS(19,7,1,1,$V$1)","v":"'Credit Risk'!$G$19"},2.5000000000000001E-2,{"$f":"IF(INDIRECT(V19)=W19,0,1)","v":0},{"$f":"ADDRESS(11,20,1,1,$Y$1)","v":"'Premium Risk'!$T$11"},0.5,{"$f":"IF(INDIRECT(Y19)=Z19,0,1)","v":0},{"$f":"ADDRESS(13,6,1,1,$AB$1)","v":"'Reserve Risk'!$F$13"},"='Geographic Diversification'!H42",{"$f":"IF(_xlfn.FORMULATEXT(INDIRECT(AB19))=AC19,0,1)","v":0},{"$f":"ADDRESS(19,2,1,1,$AE$1)","v":"'Catastrophe Risk'!$B$19"},"=IF('Company Information'!F11=\"Class 3A\",\"(d)  Credit Risk Capital Factor\",\"(g)  Credit Risk Capital Factor\")",{"$f":"IF(_xlfn.FORMULATEXT(INDIRECT(AE19))=AF19,0,1)","v":0}]
[{"$f":"ADDRESS(30,13,1,1,$A$1)","v":"Summary!$M$30"},"=IF('Company Information'!$C$2=\"IFRS\",\"c)\",\"\")",{"$f":"IF(_xlfn.FORMULATEXT(INDIRECT(A20))=B20,0,1)","v":0},{"$f":"ADDRESS(16,8,1,1,$D$1)","v":"'Fixed Income Investments'!$H$16"},0.03,{"$f":"IF(INDIRECT(D20)=E20,0,1)","v":0},{"$f":"ADDRESS(11,5,1,1,$G$1)","v":"'Equity Investments'!$E$11"},"='Schedule IIB (EBS)'!F39+'Schedule IIC (EBS)'!F39+'Schedule IID (EBS)'!F39+'Schedule IIE (EBS)'!F39+'Schedule IIF (EBS)'!F39",0,{"$f":"ADDRESS(14,7,1,1,$J$1)","v":"'Interest Rate-Liquidity Risk'!$G$14"},"=IF(SUM(G10:G12)>=0,SUM(G10:G12),0)",{"$f":"IF(_xlfn.FORMULATEXT(INDIRECT(J20))=K20,0,1)","v":0},{"$f":"ADDRESS(5,17,1,1,$M$1)","v":"'Currency Risk'!$Q$5"},"=P5-1",0,{"$f":"ADDRESS(13,2,1,1,$P$1)","v":"'Concentration Risk'!$B$13"},"BSCR Rating 3",{"$f":"IF(INDIRECT(P20)=Q20,0,1)","v":0},{"$f":"ADDRESS(9,17,1,1,$S$1)","v":"'Geographic Diversification'!$Q$9"},"=+'Schedule IVE (EBS)'!M9",0,{"$f":"ADDRESS(19,8,1,1,$V$1)","v":"'Credit Risk'!$H$19"},"=IF($F$19<0,0,$F$19*$G$19)",{"$f":"IF(_xlfn.FORMULATEXT(INDIRECT(V20))=W20,0,1)","v":0},{"$f":"ADDRESS(12,4,1,1,$Y$1)","v":"'Premium Risk'!$D$12"},"='Schedule IVD (EBS)'!Q10",{"$f":"IF(_xlfn.FORMULATEXT(INDIRECT(Y20))=Z20,0,1)","v":0},{"$f":"ADDRESS(13,7,1,1,$AB$1)","v":"'Reserve Risk'!$G$13"},0.49735573879029998,{"$f":"IF(INDIRECT(AB20)=AC20,0,1)","v":0},{"$f":"ADDRESS(19,5,1,1,$AE$1)","v":"'Catastrophe Risk'!$E$19"},0.1,{"$f":"IF(INDIRECT(AE20)=AF20,0,1)","v":0}]
[{"$f":"ADDRESS(30,14,1,1,$A$1)","v":"Summary!$N$30"},"=IF('Company Information'!$C$2=\"IFRS\",\"Reinsurance Contract Assets (Form 1ASFS 11(b))\",\n\"\")",0,{"$f":"ADDRESS(16,9,1,1,$D$1)","v":"'Fixed Income Investments'!$I$16"},"=IF(G16<0,0,G16*H16)",{"$f":"IF(_xlfn.FORMULATEXT(INDIRECT(D21))=E21,0,1)","v":0},{"$f":"ADDRESS(11,6,1,1,$G$1)","v":"'Equity Investments'!$F$11"},"='Schedule IIB (EBS)'!H39+'Schedule IIC (EBS)'!H39+'Schedule IID (EBS)'!H39+'Schedule IIE (EBS)'!H39+'Schedule IIF (EBS)'!H39",0,null,null,-21,{"$f":"ADDRESS(5,18,1,1,$M$1)","v":"'Currency Risk'!$R$5"},"=Q5-1",0,{"$f":"ADDRESS(13,4,1,1,$P$1)","v":"'Concentration Risk'!$D$13"},"=SUMIFS('Schedule XXIA'!$M$8:$M$57,'Schedule XXIA'!$J$8:$J$57,$D$9,'Schedule XXIA'!$L$8:$L$57,$B13)",{"$f":"IF(_xlfn.FORMULATEXT(INDIRECT(P21))=Q21,0,1)","v":0},{"$f":"ADDRESS(9,18,1,1,$S$1)","v":"'Geographic Diversification'!$R$9"},"=+'Schedule IVE (EBS)'!N9",0,{"$f":"ADDRESS(20,6,1,1,$V$1)","v":"'Credit Risk'!$F$20"},"='Form 1EBS'!F39",{"$f":"IF(_xlfn.FORMULATEXT(INDIRECT(V21))=W21,0,1)","v":0},{"$f":"ADDRESS(12,5,1,1,$Y$1)","v":"'Premium Risk'!$E$12"},"='Schedule IVD (EBS)'!O10",0,{"$f":"ADDRESS(13,8,1,1,$AB$1)","v":"'Reserve Risk'!$H$13"},"=IF($F$13<0,0,$F$13*$G$13)",{"$f":"IF(_xlfn.FORMULATEXT(INDIRECT(AB21))=AC21,0,1)","v":0},{"$f":"ADDRESS(21,2,1,1,$AE$1)","v":"'Catastrophe Risk'!$B$21"},"=IF('Company Information'!F11=\"Class 3A\",\"(e) Arrangements with Respect to Property Catastrophe Recoverables\",\"(h) Arrangements with Respect to Property Catastrophe Recoverables\")",{"$f":"IF(_xlfn.FORMULATEXT(INDIRECT(AE21))=AF21,0,1)","v":0}]
[{"$f":"ADDRESS(31,13,1,1,$A$1)","v":"Summary!$M$31"},"=IF('Company Information'!$C$2=\"IFRS\",\"d)\",\"\")",0,{"$f":"ADDRESS(17,7,1,1,$D$1)","v":"'Fixed Income Investments'!$G$17"},"='Schedule IIB (EBS)'!D18+'Schedule IIC (EBS)'!D18+(MAX(0,'Schedule IID (EBS)'!D18-'Schedule IID (EBS)'!F18))+'Schedule IIE (EBS)'!D18+'Schedule IIF (EBS)'!D18",{"$f":"IF(_xlfn.FORMULATEXT(INDIRECT(D22))=E22,0,1)","v":0},{"$f":"ADDRESS(11,7,1,1,$G$1)","v":"'Equity Investments'!$G$11"},"='Schedule IIB (EBS)'!J39+'Schedule IIC (EBS)'!J39+'Schedule IID (EBS)'!J39+'Schedule IIE (EBS)'!J39+'Schedule IIF (EBS)'!J39",0,null,null,null,{"$f":"ADDRESS(5,20,1,1,$M$1)","v":"'Currency Risk'!$T$5"},"=R5-1",0,{"$f":"ADDRESS(13,5,1,1,$P$1)","v":"'Concentration Risk'!$E$13"},"=+'Fixed Income Investments (Prior'!E86",{"$f":"IF(_xlfn.FORMULATEXT(INDIRECT(P22))=Q22,0,1)","v":0},{"$f":"ADDRESS(9,19,1,1,$S$1)","v":"'Geographic Diversification'!$S$9"},"=+'Schedule IVE (EBS)'!O9",0,{"$f":"ADDRESS(20,7,1,1,$V$1)","v":"'Credit Risk'!$G$20"},0.05,{"$f":"IF(INDIRECT(V22)=W22,0,1)","v":0},{"$f":"ADDRESS(12,6,1,1,$Y$1)","v":"'Premium Risk'!$F$12"},"='Geographic Diversification'!H10",0,{"$f":"ADDRESS(14,4,1,1,$AB$1)","v":"'Reserve Risk'!$D$14"},"=+'Schedule III (EBS)'!D13",{"$f":"IF(_xlfn.FORMULATEXT(INDIRECT(AB22))=AC22,0,1)","v":0},{"$f":"ADDRESS(21,3,1,1,$AE$1)","v":"'Catastrophe Risk'!$C$21"},"=IF('Company Information'!F11=\"Class 3A\",\"Schedule V, Line (j)(v)\",\"Schedule V, Line (k)(v)\")",0]
[{"$f":"ADDRESS(31,14,1,1,$A$1)","v":"Summary!$N$31"},"=IF('Company Information'!$C$2=\"IFRS\",\"CSM for products not on PAA\",\n\"\")",0,{"$f":"ADDRESS(17,8,1,1,$D$1)","v":"'Fixed Income Investments'!$H$17"},0.08,{"$f":"IF(INDIRECT(D23)=E23,0,1)","v":0},{"$f":"ADDRESS(11,8,1,1,$G$1)","v":"'Equity Investments'!$H$11"},"='Schedule IIB (EBS)'!L39+'Schedule IIC (EBS)'!L39+'Schedule IID (EBS)'!L39+'Schedule IIE (EBS)'!L39+'Schedule IIF (EBS)'!L39",0,null,null,null,{"$f":"ADDRESS(5,21,1,1,$M$1)","v":"'Currency Risk'!$U$5"},"=T5-1",0,{"$f":"ADDRESS(13,6,1,1,$P$1)","v":"'Concentration Risk'!$F$13"},"=MAX(0,(D13*E13))",{"$f":"IF(_xlfn.FORMULATEXT(INDIRECT(P23))=Q23,0,1)","v":0},{"$f":"ADDRESS(9,20,1,1,$S$1)","v":"'Geographic Diversification'!$T$9"},"=+'Schedule IVE (EBS)'!P9",0,{"$f":"ADDRESS(20,8,1,1,$V$1)","v":"'Credit Risk'!$H$20"},"=IF($F$20<0,0,$F$20*$G$20)",{"$f":"IF(_xlfn.FORMULATEXT(INDIRECT(V23))=W23,0,1)","v":0},{"$f":"ADDRESS(12,7,1,1,$Y$1)","v":"'Premium Risk'!$G$12"},"=IF(IFERROR(F12/E12,1)<0,1,IFERROR(F12/E12,1))",0,{"$f":"ADDRESS(14,5,1,1,$AB$1)","v":"'Reserve Risk'!$E$14"},"=+'Schedule III (EBS)'!F13",{"$f":"IF(_xlfn.FORMULATEXT(INDIRECT(AB23))=AC23,0,1)","v":0},{"$f":"ADDRESS(21,5,1,1,$AE$1)","v":"'Catastrophe Risk'!$E$21"},"='Schedule V'!H29",0]
[{"$f":"ADDRESS(33,12,1,1,$A$1)","v":"Summary!$L$33"},"=IF(L11>=L31,\"YES\",\"NO\")",0,{"$f":"ADDRESS(17,9,1,1,$D$1)","v":"'Fixed Income Investments'!$I$17"},"=IF(G17<0,0,G17*H17)",{"$f":"IF(_xlfn.FORMULATEXT(INDIRECT(D24))=E24,0,1)","v":0},{"$f":"ADDRESS(11,9,1,1,$G$1)","v":"'Equity Investments'!$I$11"},"='Schedule IIB (EBS)'!N39+'Schedule IIC (EBS)'!N39+'Schedule IID (EBS)'!N39+'Schedule IIE (EBS)'!N39+'Schedule IIF (EBS)'!N39",0,null,null,null,{"$f":"ADDRESS(5,22,1,1,$M$1)","v":"'Currency Risk'!$V$5"},"=U5-1",0,{"$f":"ADDRESS(14,2,1,1,$P$1)","v":"'Concentration Risk'!$B$14"},"BSCR Rating 4",{"$f":"IF(INDIRECT(P24)=Q24,0,1)","v":0},{"$f":"ADDRESS(9,21,1,1,$S$1)","v":"'Geographic Diversification'!$U$9"},"=+'Schedule IVE (EBS)'!Q9",0,{"$f":"ADDRESS(21,6,1,1,$V$1)","v":"'Credit Risk'!$F$21"},"='Form 1EBS'!F77",{"$f":"IF(_xlfn.FORMULATEXT(INDIRECT(V24))=W24,0,1)","v":0},{"$f":"ADDRESS(12,8,1,1,$Y$1)","v":"'Premium Risk'!$H$12"},"='Schedule IVD (EBS)'!I10*$G12",0,{"$f":"ADDRESS(14,6,1,1,$AB$1)","v":"'Reserve Risk'!$F$14"},"='Geographic Diversification'!H43",{"$f":"IF(_xlfn.FORMULATEXT(INDIRECT(AB24))=AC24,0,1)","v":0},{"$f":"ADDRESS(23,2,1,1,$AE$1)","v":"'Catastrophe Risk'!$B$23"},"=IF('Company Information'!F11=\"Class 3A\",\"(f)  Credit Risk Charge [ ((a - b) - (e * 0.98)) * d ]\",\"(i)  Credit Risk Charge [ ((a - b) - (h * 0.98)) * g ]\")",0]
[{"$f":"ADDRESS(36,18,1,1,$A$1)","v":"Summary!$R$36"},"=IF(R20>=R34,\"YES\",\"NO\")",0,{"$f":"ADDRESS(18,7,1,1,$D$1)","v":"'Fixed Income Investments'!$G$18"},"='Schedule IIB (EBS)'!D19+'Schedule IIC (EBS)'!D19+(MAX(0,'Schedule IID (EBS)'!D19-'Schedule IID (EBS)'!F19))+'Schedule IIE (EBS)'!D19+'Schedule IIF (EBS)'!D19",{"$f":"IF(_xlfn.FORMULATEXT(INDIRECT(D25))=E25,0,1)","v":0},{"$f":"ADDRESS(11,10,1,1,$G$1)","v":"'Equity Investments'!$J$11"},"='Schedule IIB (EBS)'!P39+'Schedule IIC (EBS)'!P39+'Schedule IID (EBS)'!P39+'Schedule IIE (EBS)'!P39+'Schedule IIF (EBS)'!P39",0,null,null,null,{"$f":"ADDRESS(5,24,1,1,$M$1)","v":"'Currency Risk'!$X$5"},"=V5-1",0,{"$f":"ADDRESS(14,4,1,1,$P$1)","v":"'Concentration Risk'!$D$14"},"=SUMIFS('Schedule XXIA'!$M$8:$M$57,'Schedule XXIA'!$J$8:$J$57,$D$9,'Schedule XXIA'!$L$8:$L$57,$B14)",{"$f":"IF(_xlfn.FORMULATEXT(INDIRECT(P25))=Q25,0,1)","v":0},{"$f":"ADDRESS(9,22,1,1,$S$1)","v":"'Geographic Diversification'!$V$9"},"=+'Schedule IVE (EBS)'!R9",0,{"$f":"ADDRESS(21,7,1,1,$V$1)","v":"'Credit Risk'!$G$21"},2.5000000000000001E-2,{"$f":"IF(INDIRECT(V25)=W25,0,1)","v":0},{"$f":"ADDRESS(12,9,1,1,$Y$1)","v":"'Premium Risk'!$I$12"},"='Schedule IVD (EBS)'!K10*$G12",0,{"$f":"ADDRESS(14,7,1,1,$AB$1)","v":"'Reserve Risk'!$G$14"},0.29666070682155399,{"$f":"IF(INDIRECT(AB25)=AC25,0,1)","v":0},{"$f":"ADDRESS(23,5,1,1,$AE$1)","v":"'Catastrophe Risk'!$E$23"},"=MAX(0,((E7-E9)-(E21*98%))*E19)",0]
[{"$f":"ADDRESS(43,2,1,1,$A$1)","v":"Summary!$B$43"},"=\"Unconsolidated Statutory Capital & Surplus for \"&YEAR('Form 1SFS'!$G$9)",0,{"$f":"ADDRESS(18,8,1,1,$D$1)","v":"'Fixed Income Investments'!$H$18"},0.15,{"$f":"IF(INDIRECT(D26)=E26,0,1)","v":0},{"$f":"ADDRESS(11,11,1,1,$G$1)","v":"'Equity Investments'!$K$11"},"='Schedule IIB (EBS)'!R39+'Schedule IIC (EBS)'!R39+'Schedule IID (EBS)'!R39+'Schedule IIE (EBS)'!R39+'Schedule IIF (EBS)'!R39",0,null,null,null,{"$f":"ADDRESS(5,25,1,1,$M$1)","v":"'Currency Risk'!$Y$5"},"=X5-1",0,{"$f":"ADDRESS(14,5,1,1,$P$1)","v":"'Concentration Risk'!$E$14"},"=+'Fixed Income Investments (Prior'!E87",{"$f":"IF(_xlfn.FORMULATEXT(INDIRECT(P26))=Q26,0,1)","v":0},{"$f":"ADDRESS(9,23,1,1,$S$1)","v":"'Geographic Diversification'!$W$9"},"=+'Schedule IVE (EBS)'!S9",0,{"$f":"ADDRESS(21,8,1,1,$V$1)","v":"'Credit Risk'!$H$21"},"=IF($F$21<0,0,$F$21*$G$21)",{"$f":"IF(_xlfn.FORMULATEXT(INDIRECT(V26))=W26,0,1)","v":0},{"$f":"ADDRESS(12,10,1,1,$Y$1)","v":"'Premium Risk'!$J$12"},"='Schedule IVD (EBS)'!M10*$G12",0,{"$f":"ADDRESS(14,8,1,1,$AB$1)","v":"'Reserve Risk'!$H$14"},"=IF($F$14<0,0,$F$14*$G$14)",{"$f":"IF(_xlfn.FORMULATEXT(INDIRECT(AB26))=AC26,0,1)","v":0},{"$f":"ADDRESS(25,2,1,1,$AE$1)","v":"'Catastrophe Risk'!$B$25"},"=IF('Company Information'!F11=\"Class 3A\",\"(g)  REQUIRED CAPITAL FOR CATASTROPHE RISK  [ (b) - (c) + (f) ]\",\"(j)  REQUIRED CAPITAL FOR CATASTROPHE RISK  [ (b) - (f) + (i) ]\")",0]
[{"$f":"ADDRESS(43,14,1,1,$A$1)","v":"Summary!$N$43"},"=\"Unconsolidated Statutory Capital for \"&YEAR('Form 1SFS'!$E9)",0,{"$f":"ADDRESS(18,9,1,1,$D$1)","v":"'Fixed Income Investments'!$I$18"},"=IF(G18<0,0,G18*H18)",{"$f":"IF(_xlfn.FORMULATEXT(INDIRECT(D27))=E27,0,1)","v":0},{"$f":"ADDRESS(11,12,1,1,$G$1)","v":"'Equity Investments'!$L$11"},"='Schedule IIB (EBS)'!T39+'Schedule IIC (EBS)'!T39+'Schedule IID (EBS)'!T39+'Schedule IIE (EBS)'!T39+'Schedule IIF (EBS)'!T39",0,null,null,null,{"$f":"ADDRESS(10,9,1,1,$M$1)","v":"'Currency Risk'!$I$10"},"='Schedule XXA'!P45",0,{"$f":"ADDRESS(14,6,1,1,$P$1)","v":"'Concentration Risk'!$F$14"},"=MAX(0,(D14*E14))",{"$f":"IF(_xlfn.FORMULATEXT(INDIRECT(P27))=Q27,0,1)","v":0},{"$f":"ADDRESS(9,24,1,1,$S$1)","v":"'Geographic Diversification'!$X$9"},"=+'Schedule IVE (EBS)'!T9",0,{"$f":"ADDRESS(24,6,1,1,$V$1)","v":"'Credit Risk'!$F$24"},"=SUM(F19:F21)",{"$f":"IF(_xlfn.FORMULATEXT(INDIRECT(V27))=W27,0,1)","v":0},{"$f":"ADDRESS(12,11,1,1,$Y$1)","v":"'Premium Risk'!$K$12"},0.497450025355053,{"$f":"IF(INDIRECT(Y27)=Z27,0,1)","v":0},{"$f":"ADDRESS(15,4,1,1,$AB$1)","v":"'Reserve Risk'!$D$15"},"=+'Schedule III (EBS)'!D14",{"$f":"IF(_xlfn.FORMULATEXT(INDIRECT(AB27))=AC27,0,1)","v":0},{"$f":"ADDRESS(25,5,1,1,$AE$1)","v":"'Catastrophe Risk'!$E$25"},"=IF('Company Information'!F11=\"Class 3A\",(IF((E9-E15)>=0,E9-E15+E23,E23)),(IF((E9-E17)>=0,E9-E17+E23,E23)))",0]
[{"$f":"ADDRESS(44,14,1,1,$A$1)","v":"Summary!$N$44"},"=\"Unconsolidated Statutory Capital for \"&YEAR('Form 1SFS'!$G$9)",0,{"$f":"ADDRESS(19,7,1,1,$D$1)","v":"'Fixed Income Investments'!$G$19"},"='Schedule IIB (EBS)'!D20+'Schedule IIC (EBS)'!D20+(MAX(0,'Schedule IID (EBS)'!D20-'Schedule IID (EBS)'!F20))+'Schedule IIE (EBS)'!D20+'Schedule IIF (EBS)'!D20",{"$f":"IF(_xlfn.FORMULATEXT(INDIRECT(D28))=E28,0,1)","v":0},{"$f":"ADDRESS(11,16,1,1,$G$1)","v":"'Equity Investments'!$P$11"},"=MAX(D11-E11,0)+(F11-G11)+MAX(H11-I11,0)+(K11-J11)",0,null,null,null,{"$f":"ADDRESS(12,2,1,1,$M$1)","v":"'Currency Risk'!$B$12"},"='Schedule XXA'!B10",0,{"$f":"ADDRESS(15,2,1,1,$P$1)","v":"'Concentration Risk'!$B$15"},"BSCR Rating 5",{"$f":"IF(INDIRECT(P28)=Q28,0,1)","v":0},{"$f":"ADDRESS(9,25,1,1,$S$1)","v":"'Geographic Diversification'!$Y$9"},"=+'Schedule IVE (EBS)'!U9",0,{"$f":"ADDRESS(24,8,1,1,$V$1)","v":"'Credit Risk'!$H$24"},"=IF(SUM(H19:H21)>=0,SUM(H19:H21),0)",{"$f":"IF(_xlfn.FORMULATEXT(INDIRECT(V28))=W28,0,1)","v":0},{"$f":"ADDRESS(12,12,1,1,$Y$1)","v":"'Premium Risk'!$L$12"},"=+K12*S12",{"$f":"IF(_xlfn.FORMULATEXT(INDIRECT(Y28))=Z28,0,1)","v":0},{"$f":"ADDRESS(15,5,1,1,$AB$1)","v":"'Reserve Risk'!$E$15"},"=+'Schedule III (EBS)'!F14",{"$f":"IF(_xlfn.FORMULATEXT(INDIRECT(AB28))=AC28,0,1)","v":0},null,null,-28]
[{"$f":"ADDRESS(46,2,1,1,$A$1)","v":"Summary!$B$46"},"=\"Dividend Payment in \"&YEAR('Form 1SFS'!$E$9)",0,{"$f":"ADDRESS(19,8,1,1,$D$1)","v":"'Fixed Income Investments'!$H$19"},0.26300000000000001,{"$f":"IF(INDIRECT(D29)=E29,0,1)","v":0},{"$f":"ADDRESS(11,18,1,1,$G$1)","v":"'Equity Investments'!$R$11"},"=MAX(D11-E11,0)+(F11-G11)+MAX(H11-I11,0)+(L11-J11)",0,null,null,null,{"$f":"ADDRESS(12,3,1,1,$M$1)","v":"'Currency Risk'!$C$12"},"='Schedule XXA'!D10",0,{"$f":"ADDRESS(15,4,1,1,$P$1)","v":"'Concentration Risk'!$D$15"},"=SUMIFS('Schedule XXIA'!$M$8:$M$57,'Schedule XXIA'!$J$8:$J$57,$D$9,'Schedule XXIA'!$L$8:$L$57,$B15)",{"$f":"IF(_xlfn.FORMULATEXT(INDIRECT(P29))=Q29,0,1)","v":0},{"$f":"ADDRESS(9,26,1,1,$S$1)","v":"'Geographic Diversification'!$Z$9"},"=+'Schedule IVE (EBS)'!V9",0,{"$f":"ADDRESS(28,6,1,1,$V$1)","v":"'Credit Risk'!$F$28"},"='Schedule XVIII (EBS)'!O87",{"$f":"IF(_xlfn.FORMULATEXT(INDIRECT(V29))=W29,0,1)","v":0},{"$f":"ADDRESS(12,13,1,1,$Y$1)","v":"'Premium Risk'!$M$12"},"=+L12*T12",{"$f":"IF(_xlfn.FORMULATEXT(INDIRECT(Y29))=Z29,0,1)","v":0},{"$f":"ADDRESS(15,6,1,1,$AB$1)","v":"'Reserve Risk'!$F$15"},"='Geographic Diversification'!H44",{"$f":"IF(_xlfn.FORMULATEXT(INDIRECT(AB29))=AC29,0,1)","v":0}]
[{"$f":"ADDRESS(46,14,1,1,$A$1)","v":"Summary!$N$46"},"=\"Statutory Capital Change from \"&YEAR('Form 1SFS'!$G9)&\" to \"&YEAR('Form 1SFS'!$E9)",0,{"$f":"ADDRESS(19,9,1,1,$D$1)","v":"'Fixed Income Investments'!$I$19"},"=IF(G19<0,0,G19*H19)",{"$f":"IF(_xlfn.FORMULATEXT(INDIRECT(D30))=E30,0,1)","v":0},{"$f":"ADDRESS(12,4,1,1,$G$1)","v":"'Equity Investments'!$D$12"},"='Schedule IIB (EBS)'!D40+'Schedule IIC (EBS)'!D40+'Schedule IID (EBS)'!D40+'Schedule IIE (EBS)'!D40+'Schedule IIF (EBS)'!D40",0,null,null,null,{"$f":"ADDRESS(12,4,1,1,$M$1)","v":"'Currency Risk'!$D$12"},"='Schedule XXA'!F10",0,{"$f":"ADDRESS(15,5,1,1,$P$1)","v":"'Concentration Risk'!$E$15"},"=+'Fixed Income Investments (Prior'!E88",{"$f":"IF(_xlfn.FORMULATEXT(INDIRECT(P30))=Q30,0,1)","v":0},{"$f":"ADDRESS(10,4,1,1,$S$1)","v":"'Geographic Diversification'!$D$10"},"=SUM(I10:Z10)",0,{"$f":"ADDRESS(28,7,1,1,$V$1)","v":"'Credit Risk'!$G$28"},0,{"$f":"IF(INDIRECT(V30)=W30,0,1)","v":0},{"$f":"ADDRESS(12,14,1,1,$Y$1)","v":"'Premium Risk'!$N$12"},"=IF($H12<0,0,$H12*$K12)+IF($I12<0,0,$I12*$L12)+IF($J12<0,0,$J12*$M12)",{"$f":"IF(_xlfn.FORMULATEXT(INDIRECT(Y30))=Z30,0,1)","v":0},{"$f":"ADDRESS(15,7,1,1,$AB$1)","v":"'Reserve Risk'!$G$15"},0.34876523067975901,{"$f":"IF(INDIRECT(AB30)=AC30,0,1)","v":0}]
[{"$f":"ADDRESS(49,12,1,1,$A$1)","v":"Summary!$L$49"},"=IF(K45>=K46,\"YES\",\"NO\")",0,{"$f":"ADDRESS(20,7,1,1,$D$1)","v":"'Fixed Income Investments'!$G$20"},"='Schedule IIB (EBS)'!D21+'Schedule IIC (EBS)'!D21+(MAX(0,'Schedule IID (EBS)'!D21-'Schedule IID (EBS)'!F21))+'Schedule IIE (EBS)'!D21+'Schedule IIF (EBS)'!D21",{"$f":"IF(_xlfn.FORMULATEXT(INDIRECT(D31))=E31,0,1)","v":0},{"$f":"ADDRESS(12,5,1,1,$G$1)","v":"'Equity Investments'!$E$12"},"='Schedule IIB (EBS)'!F40+'Schedule IIC (EBS)'!F40+'Schedule IID (EBS)'!F40+'Schedule IIE (EBS)'!F40+'Schedule IIF (EBS)'!F40",0,null,null,null,{"$f":"ADDRESS(12,5,1,1,$M$1)","v":"'Currency Risk'!$E$12"},"='Schedule XXA'!H10",0,{"$f":"ADDRESS(15,6,1,1,$P$1)","v":"'Concentration Risk'!$F$15"},"=MAX(0,(D15*E15))",{"$f":"IF(_xlfn.FORMULATEXT(INDIRECT(P31))=Q31,0,1)","v":0},{"$f":"ADDRESS(10,5,1,1,$S$1)","v":"'Geographic Diversification'!$E$10"},"=SUMSQ(I10:Z10)",0,{"$f":"ADDRESS(28,8,1,1,$V$1)","v":"'Credit Risk'!$H$28"},"=IF(F28<0,0,F28*G28)",{"$f":"IF(_xlfn.FORMULATEXT(INDIRECT(V31))=W31,0,1)","v":0},{"$f":"ADDRESS(12,17,1,1,$Y$1)","v":"'Premium Risk'!$Q$12"},"=IF(H12=E12,MAX(D12*K12,0),IF(E12=F12,IF(D12<0,0,D12*(H12/F12)*K12),IF(D12<0,0,D12*(H12/E12)*K12)))\n+IF(I12=E12,MAX(D12*L12,0),IF(E12=F12,IF(D12<0,0,D12*(I12/F12)*L12),IF(D12<0,0,D12*(I12/E12)*L12)))\n+IF(J12=E12,MAX(D12*M12,0),IF(E12=F12,IF(D12<0,0,D12*(J12/F12)*M12),IF(D12<0,0,D12*(J12/E12)*M12)))",{"$f":"IF(_xlfn.FORMULATEXT(INDIRECT(Y31))=Z31,0,1)","v":0},{"$f":"ADDRESS(15,8,1,1,$AB$1)","v":"'Reserve Risk'!$H$15"},"=IF($F$15<0,0,$F$15*$G$15)",{"$f":"IF(_xlfn.FORMULATEXT(INDIRECT(AB31))=AC31,0,1)","v":0}]
[{"$f":"ADDRESS(57,12,1,1,$A$1)","v":"Summary!$L$57"},"{=SQRT(MMULT(TRANSPOSE(K58:K62),MMULT('Correlation Matrix'!C7:G11,K58:K62)))}",0,{"$f":"ADDRESS(20,8,1,1,$D$1)","v":"'Fixed Income Investments'!$H$20"},0.35,{"$f":"IF(INDIRECT(D32)=E32,0,1)","v":0},{"$f":"ADDRESS(12,6,1,1,$G$1)","v":"'Equity Investments'!$F$12"},"='Schedule IIB (EBS)'!H40+'Schedule IIC (EBS)'!H40+'Schedule IID (EBS)'!H40+'Schedule IIE (EBS)'!H40+'Schedule IIF (EBS)'!H40",0,null,null,null,{"$f":"ADDRESS(12,6,1,1,$M$1)","v":"'Currency Risk'!$F$12"},"='Schedule XXA'!J10",0,{"$f":"ADDRESS(16,2,1,1,$P$1)","v":"'Concentration Risk'!$B$16"},"BSCR Rating 6",{"$f":"IF(INDIRECT(P32)=Q32,0,1)","v":0},{"$f":"ADDRESS(10,6,1,1,$S$1)","v":"'Geographic Diversification'!$F$10"},"=(IF(D10>0,E10/D10^2,1))",0,{"$f":"ADDRESS(29,6,1,1,$V$1)","v":"'Credit Risk'!$F$29"},"='Schedule XVIII (EBS)'!O88",{"$f":"IF(_xlfn.FORMULATEXT(INDIRECT(V32))=W32,0,1)","v":0},{"$f":"ADDRESS(12,19,1,1,$Y$1)","v":"'Premium Risk'!$S$12"},0.25,{"$f":"IF(INDIRECT(Y32)=Z32,0,1)","v":0},{"$f":"ADDRESS(16,4,1,1,$AB$1)","v":"'Reserve Risk'!$D$16"},"=+'Schedule III (EBS)'!D15",{"$f":"IF(_xlfn.FORMULATEXT(INDIRECT(AB32))=AC32,0,1)","v":0}]
[{"$f":"ADDRESS(57,14,1,1,$A$1)","v":"Summary!$N$57"},"{=SQRT(MMULT(TRANSPOSE(M58:M62),MMULT('Correlation Matrix'!C7:G11,M58:M62)))}",0,{"$f":"ADDRESS(20,9,1,1,$D$1)","v":"'Fixed Income Investments'!$I$20"},"=IF(G20<0,0,G20*H20)",{"$f":"IF(_xlfn.FORMULATEXT(INDIRECT(D33))=E33,0,1)","v":0},{"$f":"ADDRESS(12,7,1,1,$G$1)","v":"'Equity Investments'!$G$12"},"='Schedule IIB (EBS)'!J40+'Schedule IIC (EBS)'!J40+'Schedule IID (EBS)'!J40+'Schedule IIE (EBS)'!J40+'Schedule IIF (EBS)'!J40",0,null,null,null,{"$f":"ADDRESS(12,7,1,1,$M$1)","v":"'Currency Risk'!$G$12"},"='Schedule XXA'!L10",0,{"$f":"ADDRESS(16,4,1,1,$P$1)","v":"'Concentration Risk'!$D$16"},"=SUMIFS('Schedule XXIA'!$M$8:$M$57,'Schedule XXIA'!$J$8:$J$57,$D$9,'Schedule XXIA'!$L$8:$L$57,$B16)",{"$f":"IF(_xlfn.FORMULATEXT(INDIRECT(P33))=Q33,0,1)","v":0},{"$f":"ADDRESS(10,7,1,1,$S$1)","v":"'Geographic Diversification'!$G$10"},"=D10*(0.75+0.25*F10)",0,{"$f":"ADDRESS(29,7,1,1,$V$1)","v":"'Credit Risk'!$G$29"},7.0000000000000001E-3,{"$f":"IF(INDIRECT(V33)=W33,0,1)","v":0},{"$f":"ADDRESS(12,20,1,1,$Y$1)","v":"'Premium Risk'!$T$12"},0.5,{"$f":"IF(INDIRECT(Y33)=Z33,0,1)","v":0},{"$f":"ADDRESS(16,5,1,1,$AB$1)","v":"'Reserve Risk'!$E$16"},"=+'Schedule III (EBS)'!F15",{"$f":"IF(_xlfn.FORMULATEXT(INDIRECT(AB33))=AC33,0,1)","v":0}]
[{"$f":"ADDRESS(58,3,1,1,$A$1)","v":"Summary!$C$58"},"Fixed Income Investment Risk",{"$f":"IF(INDIRECT(A34)=B34,0,1)","v":0},{"$f":"ADDRESS(22,7,1,1,$D$1)","v":"'Fixed Income Investments'!$G$22"},"=SUM(G11:G20)",{"$f":"IF(_xlfn.FORMULATEXT(INDIRECT(D34))=E34,0,1)","v":0},{"$f":"ADDRESS(12,8,1,1,$G$1)","v":"'Equity Investments'!$H$12"},"='Schedule IIB (EBS)'!L40+'Schedule IIC (EBS)'!L40+'Schedule IID (EBS)'!L40+'Schedule IIE (EBS)'!L40+'Schedule IIF (EBS)'!L40",0,null,null,null,{"$f":"ADDRESS(12,8,1,1,$M$1)","v":"'Currency Risk'!$H$12"},"='Schedule XXA'!N10",0,{"$f":"ADDRESS(16,5,1,1,$P$1)","v":"'Concentration Risk'!$E$16"},"=+'Fixed Income Investments (Prior'!E89",{"$f":"IF(_xlfn.FORMULATEXT(INDIRECT(P34))=Q34,0,1)","v":0},{"$f":"ADDRESS(10,8,1,1,$S$1)","v":"'Geographic Diversification'!$H$10"},"=IF('Schedule IVE (EBS)'!AB10=\"True\",G10,'Schedule IVD (EBS)'!O10)",0,{"$f":"ADDRESS(29,8,1,1,$V$1)","v":"'Credit Risk'!$H$29"},"=IF(F29<0,0,F29*G29)",{"$f":"IF(_xlfn.FORMULATEXT(INDIRECT(V34))=W34,0,1)","v":0},{"$f":"ADDRESS(13,4,1,1,$Y$1)","v":"'Premium Risk'!$D$13"},"='Schedule IVD (EBS)'!Q11",{"$f":"IF(_xlfn.FORMULATEXT(INDIRECT(Y34))=Z34,0,1)","v":0},{"$f":"ADDRESS(16,6,1,1,$AB$1)","v":"'Reserve Risk'!$F$16"},"='Geographic Diversification'!H45",{"$f":"IF(_xlfn.FORMULATEXT(INDIRECT(AB34))=AC34,0,1)","v":0}]
[{"$f":"ADDRESS(58,7,1,1,$A$1)","v":"Summary!$G$58"},"=ROUND('Fixed Income Investments (Prior'!F99,$N$166)",{"$f":"IF(_xlfn.FORMULATEXT(INDIRECT(A35))=B35,0,1)","v":0},{"$f":"ADDRESS(22,9,1,1,$D$1)","v":"'Fixed Income Investments'!$I$22"},"=IF(SUM(I11:I20)>=0,SUM(I11:I20),0)",{"$f":"IF(_xlfn.FORMULATEXT(INDIRECT(D35))=E35,0,1)","v":0},{"$f":"ADDRESS(12,9,1,1,$G$1)","v":"'Equity Investments'!$I$12"},"='Schedule IIB (EBS)'!N40+'Schedule IIC (EBS)'!N40+'Schedule IID (EBS)'!N40+'Schedule IIE (EBS)'!N40+'Schedule IIF (EBS)'!N40",0,null,null,null,{"$f":"ADDRESS(12,9,1,1,$M$1)","v":"'Currency Risk'!$I$12"},"=$I$10*H12",0,{"$f":"ADDRESS(16,6,1,1,$P$1)","v":"'Concentration Risk'!$F$16"},"=MAX(0,(D16*E16))",{"$f":"IF(_xlfn.FORMULATEXT(INDIRECT(P35))=Q35,0,1)","v":0},{"$f":"ADDRESS(10,9,1,1,$S$1)","v":"'Geographic Diversification'!$I$10"},"=+'Schedule IVE (EBS)'!E10",0,{"$f":"ADDRESS(30,6,1,1,$V$1)","v":"'Credit Risk'!$F$30"},"='Schedule XVIII (EBS)'!O89",{"$f":"IF(_xlfn.FORMULATEXT(INDIRECT(V35))=W35,0,1)","v":0},{"$f":"ADDRESS(13,5,1,1,$Y$1)","v":"'Premium Risk'!$E$13"},"='Schedule IVD (EBS)'!O11",0,{"$f":"ADDRESS(16,7,1,1,$AB$1)","v":"'Reserve Risk'!$G$16"},0.45952604952349801,{"$f":"IF(INDIRECT(AB35)=AC35,0,1)","v":0}]
[{"$f":"ADDRESS(58,11,1,1,$A$1)","v":"Summary!$K$58"},"=ROUND('Fixed Income Investments'!I136,$N$166)",0,{"$f":"ADDRESS(27,7,1,1,$D$1)","v":"'Fixed Income Investments'!$G$27"},"='Schedule IIB (EBS)'!H14+'Schedule IIC (EBS)'!H14+(MAX(0,'Schedule IID (EBS)'!H14-'Schedule IID (EBS)'!J14))+'Schedule IIE (EBS)'!H14+'Schedule IIF (EBS)'!H14",{"$f":"IF(_xlfn.FORMULATEXT(INDIRECT(D36))=E36,0,1)","v":0},{"$f":"ADDRESS(12,10,1,1,$G$1)","v":"'Equity Investments'!$J$12"},"='Schedule IIB (EBS)'!P40+'Schedule IIC (EBS)'!P40+'Schedule IID (EBS)'!P40+'Schedule IIE (EBS)'!P40+'Schedule IIF (EBS)'!P40",0,null,null,null,{"$f":"ADDRESS(12,10,1,1,$M$1)","v":"'Currency Risk'!$J$12"},0,{"$f":"IF(INDIRECT(M36)=N36,0,1)","v":0},{"$f":"ADDRESS(17,2,1,1,$P$1)","v":"'Concentration Risk'!$B$17"},"BSCR Rating 7",{"$f":"IF(INDIRECT(P36)=Q36,0,1)","v":0},{"$f":"ADDRESS(10,10,1,1,$S$1)","v":"'Geographic Diversification'!$J$10"},"=+'Schedule IVE (EBS)'!F10",0,{"$f":"ADDRESS(30,7,1,1,$V$1)","v":"'Credit Risk'!$G$30"},1.4999999999999999E-2,{"$f":"IF(INDIRECT(V36)=W36,0,1)","v":0},{"$f":"ADDRESS(13,6,1,1,$Y$1)","v":"'Premium Risk'!$F$13"},"='Geographic Diversification'!H11",0,{"$f":"ADDRESS(16,8,1,1,$AB$1)","v":"'Reserve Risk'!$H$16"},"=IF($F$16<0,0,$F$16*$G$16)",{"$f":"IF(_xlfn.FORMULATEXT(INDIRECT(AB36))=AC36,0,1)","v":0}]
[{"$f":"ADDRESS(58,13,1,1,$A$1)","v":"Summary!$M$58"},"=ROUND('Fixed Income Investments'!I136,$N$166)",0,{"$f":"ADDRESS(27,8,1,1,$D$1)","v":"'Fixed Income Investments'!$H$27"},6.0000000000000001E-3,{"$f":"IF(INDIRECT(D37)=E37,0,1)","v":0},{"$f":"ADDRESS(12,11,1,1,$G$1)","v":"'Equity Investments'!$K$12"},"='Schedule IIB (EBS)'!R40+'Schedule IIC (EBS)'!R40+'Schedule IID (EBS)'!R40+'Schedule IIE (EBS)'!R40+'Schedule IIF (EBS)'!R40",0,null,null,null,{"$f":"ADDRESS(12,12,1,1,$M$1)","v":"'Currency Risk'!$L$12"},"='Schedule XXA'!V10",{"$f":"IF(_xlfn.FORMULATEXT(INDIRECT(M37))=N37,0,1)","v":0},{"$f":"ADDRESS(17,4,1,1,$P$1)","v":"'Concentration Risk'!$D$17"},"=SUMIFS('Schedule XXIA'!$M$8:$M$57,'Schedule XXIA'!$J$8:$J$57,$D$9,'Schedule XXIA'!$L$8:$L$57,$B17)",{"$f":"IF(_xlfn.FORMULATEXT(INDIRECT(P37))=Q37,0,1)","v":0},{"$f":"ADDRESS(10,11,1,1,$S$1)","v":"'Geographic Diversification'!$K$10"},"=+'Schedule IVE (EBS)'!G10",0,{"$f":"ADDRESS(30,8,1,1,$V$1)","v":"'Credit Risk'!$H$30"},"=IF(F30<0,0,F30*G30)",{"$f":"IF(_xlfn.FORMULATEXT(INDIRECT(V37))=W37,0,1)","v":0},{"$f":"ADDRESS(13,7,1,1,$Y$1)","v":"'Premium Risk'!$G$13"},"=IF(IFERROR(F13/E13,1)<0,1,IFERROR(F13/E13,1))",0,{"$f":"ADDRESS(17,4,1,1,$AB$1)","v":"'Reserve Risk'!$D$17"},"=+'Schedule III (EBS)'!D16",{"$f":"IF(_xlfn.FORMULATEXT(INDIRECT(AB37))=AC37,0,1)","v":0}]
[{"$f":"ADDRESS(58,20,1,1,$A$1)","v":"Summary!$T$58"},"=C58",0,{"$f":"ADDRESS(27,9,1,1,$D$1)","v":"'Fixed Income Investments'!$I$27"},"=IF(G27<0,0,G27*H27)",{"$f":"IF(_xlfn.FORMULATEXT(INDIRECT(D38))=E38,0,1)","v":0},{"$f":"ADDRESS(12,12,1,1,$G$1)","v":"'Equity Investments'!$L$12"},"='Schedule IIB (EBS)'!T40+'Schedule IIC (EBS)'!T40+'Schedule IID (EBS)'!T40+'Schedule IIE (EBS)'!T40+'Schedule IIF (EBS)'!T40",0,null,null,null,{"$f":"ADDRESS(12,13,1,1,$M$1)","v":"'Currency Risk'!$M$12"},"='Schedule XXA'!X10",0,{"$f":"ADDRESS(17,5,1,1,$P$1)","v":"'Concentration Risk'!$E$17"},"=+'Fixed Income Investments (Prior'!E90",{"$f":"IF(_xlfn.FORMULATEXT(INDIRECT(P38))=Q38,0,1)","v":0},{"$f":"ADDRESS(10,12,1,1,$S$1)","v":"'Geographic Diversification'!$L$10"},"=+'Schedule IVE (EBS)'!H10",0,{"$f":"ADDRESS(31,6,1,1,$V$1)","v":"'Credit Risk'!$F$31"},"='Schedule XVIII (EBS)'!O90",{"$f":"IF(_xlfn.FORMULATEXT(INDIRECT(V38))=W38,0,1)","v":0},{"$f":"ADDRESS(13,8,1,1,$Y$1)","v":"'Premium Risk'!$H$13"},"='Schedule IVD (EBS)'!I11*$G13",0,{"$f":"ADDRESS(17,5,1,1,$AB$1)","v":"'Reserve Risk'!$E$17"},"=+'Schedule III (EBS)'!F16",{"$f":"IF(_xlfn.FORMULATEXT(INDIRECT(AB38))=AC38,0,1)","v":0}]
[{"$f":"ADDRESS(58,24,1,1,$A$1)","v":"Summary!$X$58"},"=G58",0,{"$f":"ADDRESS(28,7,1,1,$D$1)","v":"'Fixed Income Investments'!$G$28"},"='Schedule IIB (EBS)'!H15+'Schedule IIC (EBS)'!H15+(MAX(0,'Schedule IID (EBS)'!H15-'Schedule IID (EBS)'!J15))+'Schedule IIE (EBS)'!H15+'Schedule IIF (EBS)'!H15",{"$f":"IF(_xlfn.FORMULATEXT(INDIRECT(D39))=E39,0,1)","v":0},{"$f":"ADDRESS(12,16,1,1,$G$1)","v":"'Equity Investments'!$P$12"},"=MAX(D12-E12,0)+(F12-G12)+MAX(H12-I12,0)+(K12-J12)",0,null,null,null,{"$f":"ADDRESS(12,14,1,1,$M$1)","v":"'Currency Risk'!$N$12"},"='Schedule XXA'!Z10",0,{"$f":"ADDRESS(17,6,1,1,$P$1)","v":"'Concentration Risk'!$F$17"},"=MAX(0,(D17*E17))",{"$f":"IF(_xlfn.FORMULATEXT(INDIRECT(P39))=Q39,0,1)","v":0},{"$f":"ADDRESS(10,13,1,1,$S$1)","v":"'Geographic Diversification'!$M$10"},"=+'Schedule IVE (EBS)'!I10",0,{"$f":"ADDRESS(31,7,1,1,$V$1)","v":"'Credit Risk'!$G$31"},3.5000000000000003E-2,{"$f":"IF(INDIRECT(V39)=W39,0,1)","v":0},{"$f":"ADDRESS(13,9,1,1,$Y$1)","v":"'Premium Risk'!$I$13"},"='Schedule IVD (EBS)'!K11*$G13",0,{"$f":"ADDRESS(17,6,1,1,$AB$1)","v":"'Reserve Risk'!$F$17"},"='Geographic Diversification'!H46",{"$f":"IF(_xlfn.FORMULATEXT(INDIRECT(AB39))=AC39,0,1)","v":0}]
[{"$f":"ADDRESS(58,25,1,1,$A$1)","v":"Summary!$Y$58"},"=IF($L$74=0,1/9,X58/$X$68)",0,{"$f":"ADDRESS(28,8,1,1,$D$1)","v":"'Fixed Income Investments'!$H$28"},1.2E-2,{"$f":"IF(INDIRECT(D40)=E40,0,1)","v":0},{"$f":"ADDRESS(12,18,1,1,$G$1)","v":"'Equity Investments'!$R$12"},"=MAX(D12-E12,0)+(F12-G12)+MAX(H12-I12,0)+(L12-J12)",0,null,null,null,{"$f":"ADDRESS(12,15,1,1,$M$1)","v":"'Currency Risk'!$O$12"},"='Schedule XXA'!AB10",0,{"$f":"ADDRESS(18,2,1,1,$P$1)","v":"'Concentration Risk'!$B$18"},"BSCR Rating 8",{"$f":"IF(INDIRECT(P40)=Q40,0,1)","v":0},{"$f":"ADDRESS(10,14,1,1,$S$1)","v":"'Geographic Diversification'!$N$10"},"=+'Schedule IVE (EBS)'!J10",0,{"$f":"ADDRESS(31,8,1,1,$V$1)","v":"'Credit Risk'!$H$31"},"=IF(F31<0,0,F31*G31)",{"$f":"IF(_xlfn.FORMULATEXT(INDIRECT(V40))=W40,0,1)","v":0},{"$f":"ADDRESS(13,10,1,1,$Y$1)","v":"'Premium Risk'!$J$13"},"='Schedule IVD (EBS)'!M11*$G13",0,{"$f":"ADDRESS(17,7,1,1,$AB$1)","v":"'Reserve Risk'!$G$17"},0.48255646377949901,{"$f":"IF(INDIRECT(AB40)=AC40,0,1)","v":0}]
[{"$f":"ADDRESS(58,26,1,1,$A$1)","v":"Summary!$Z$58"},"=M58",0,{"$f":"ADDRESS(28,9,1,1,$D$1)","v":"'Fixed Income Investments'!$I$28"},"=IF(G28<0,0,G28*H28)",{"$f":"IF(_xlfn.FORMULATEXT(INDIRECT(D41))=E41,0,1)","v":0},{"$f":"ADDRESS(13,4,1,1,$G$1)","v":"'Equity Investments'!$D$13"},"='Schedule IIB (EBS)'!D41+'Schedule IIC (EBS)'!D41+'Schedule IID (EBS)'!D41+'Schedule IIE (EBS)'!D41+'Schedule IIF (EBS)'!D41",0,null,null,null,{"$f":"ADDRESS(12,16,1,1,$M$1)","v":"'Currency Risk'!$P$12"},"='Schedule XXA'!AD10",0,{"$f":"ADDRESS(18,4,1,1,$P$1)","v":"'Concentration Risk'!$D$18"},"=SUMIFS('Schedule XXIA'!$M$8:$M$57,'Schedule XXIA'!$J$8:$J$57,$D$9,'Schedule XXIA'!$L$8:$L$57,$B18)",{"$f":"IF(_xlfn.FORMULATEXT(INDIRECT(P41))=Q41,0,1)","v":0},{"$f":"ADDRESS(10,15,1,1,$S$1)","v":"'Geographic Diversification'!$O$10"},"=+'Schedule IVE (EBS)'!K10",0,{"$f":"ADDRESS(32,6,1,1,$V$1)","v":"'Credit Risk'!$F$32"},"='Schedule XVIII (EBS)'!O91",{"$f":"IF(_xlfn.FORMULATEXT(INDIRECT(V41))=W41,0,1)","v":0},{"$f":"ADDRESS(13,11,1,1,$Y$1)","v":"'Premium Risk'!$K$13"},0.51625715924082105,{"$f":"IF(INDIRECT(Y41)=Z41,0,1)","v":0},{"$f":"ADDRESS(17,8,1,1,$AB$1)","v":"'Reserve Risk'!$H$17"},"=IF($F$17<0,0,$F$17*$G$17)",{"$f":"IF(_xlfn.FORMULATEXT(INDIRECT(AB41))=AC41,0,1)","v":0}]
[{"$f":"ADDRESS(58,27,1,1,$A$1)","v":"Summary!$AA$58"},"=IF($N$74=0,1/9,Z58/$Z$68)",0,{"$f":"ADDRESS(29,7,1,1,$D$1)","v":"'Fixed Income Investments'!$G$29"},"='Schedule IIB (EBS)'!H16+'Schedule IIC (EBS)'!H16+(MAX(0,'Schedule IID (EBS)'!H16-'Schedule IID (EBS)'!J16))+'Schedule IIE (EBS)'!H16+'Schedule IIF (EBS)'!H16",{"$f":"IF(_xlfn.FORMULATEXT(INDIRECT(D42))=E42,0,1)","v":0},{"$f":"ADDRESS(13,5,1,1,$G$1)","v":"'Equity Investments'!$E$13"},"='Schedule IIB (EBS)'!F41+'Schedule IIC (EBS)'!F41+'Schedule IID (EBS)'!F41+'Schedule IIE (EBS)'!F41+'Schedule IIF (EBS)'!F41",0,null,null,null,{"$f":"ADDRESS(12,17,1,1,$M$1)","v":"'Currency Risk'!$Q$12"},"='Schedule XXA'!AF10",0,{"$f":"ADDRESS(18,5,1,1,$P$1)","v":"'Concentration Risk'!$E$18"},"=+'Fixed Income Investments (Prior'!E91",{"$f":"IF(_xlfn.FORMULATEXT(INDIRECT(P42))=Q42,0,1)","v":0},{"$f":"ADDRESS(10,16,1,1,$S$1)","v":"'Geographic Diversification'!$P$10"},"=+'Schedule IVE (EBS)'!L10",0,{"$f":"ADDRESS(32,7,1,1,$V$1)","v":"'Credit Risk'!$G$32"},7.0000000000000007E-2,{"$f":"IF(INDIRECT(V42)=W42,0,1)","v":0},{"$f":"ADDRESS(13,12,1,1,$Y$1)","v":"'Premium Risk'!$L$13"},"=+K13*S13",{"$f":"IF(_xlfn.FORMULATEXT(INDIRECT(Y42))=Z42,0,1)","v":0},{"$f":"ADDRESS(18,4,1,1,$AB$1)","v":"'Reserve Risk'!$D$18"},"=+'Schedule III (EBS)'!D17",{"$f":"IF(_xlfn.FORMULATEXT(INDIRECT(AB42))=AC42,0,1)","v":0}]
[{"$f":"ADDRESS(58,29,1,1,$A$1)","v":"Summary!$AC$58"},"=(SUM(AA$58:AA58)/AA$68)",0,{"$f":"ADDRESS(29,8,1,1,$D$1)","v":"'Fixed Income Investments'!$H$29"},0.02,{"$f":"IF(INDIRECT(D43)=E43,0,1)","v":0},{"$f":"ADDRESS(13,6,1,1,$G$1)","v":"'Equity Investments'!$F$13"},"='Schedule IIB (EBS)'!H41+'Schedule IIC (EBS)'!H41+'Schedule IID (EBS)'!H41+'Schedule IIE (EBS)'!H41+'Schedule IIF (EBS)'!H41",0,null,null,null,{"$f":"ADDRESS(12,18,1,1,$M$1)","v":"'Currency Risk'!$R$12"},"=IF('Schedule XXA'!AH10=0,Q12,'Schedule XXA'!AH10)",0,{"$f":"ADDRESS(18,6,1,1,$P$1)","v":"'Concentration Risk'!$F$18"},"=MAX(0,(D18*E18))",{"$f":"IF(_xlfn.FORMULATEXT(INDIRECT(P43))=Q43,0,1)","v":0},{"$f":"ADDRESS(10,17,1,1,$S$1)","v":"'Geographic Diversification'!$Q$10"},"=+'Schedule IVE (EBS)'!M10",0,{"$f":"ADDRESS(32,8,1,1,$V$1)","v":"'Credit Risk'!$H$32"},"=IF(F32<0,0,F32*G32)",{"$f":"IF(_xlfn.FORMULATEXT(INDIRECT(V43))=W43,0,1)","v":0},{"$f":"ADDRESS(13,13,1,1,$Y$1)","v":"'Premium Risk'!$M$13"},"=+L13*T13",{"$f":"IF(_xlfn.FORMULATEXT(INDIRECT(Y43))=Z43,0,1)","v":0},{"$f":"ADDRESS(18,5,1,1,$AB$1)","v":"'Reserve Risk'!$E$18"},"=+'Schedule III (EBS)'!F17",{"$f":"IF(_xlfn.FORMULATEXT(INDIRECT(AB43))=AC43,0,1)","v":0}]
[{"$f":"ADDRESS(58,32,1,1,$A$1)","v":"Summary!$AF$58"},"=IF(AO58=\"\",IF(Test_Statistic<$AJ$74,AI58,IF(Test_Statistic<$AL$74,AK58,AM58)),AO58)",0,{"$f":"ADDRESS(29,9,1,1,$D$1)","v":"'Fixed Income Investments'!$I$29"},"=IF(G29<0,0,G29*H29)",{"$f":"IF(_xlfn.FORMULATEXT(INDIRECT(D44))=E44,0,1)","v":0},{"$f":"ADDRESS(13,7,1,1,$G$1)","v":"'Equity Investments'!$G$13"},"='Schedule IIB (EBS)'!J41+'Schedule IIC (EBS)'!J41+'Schedule IID (EBS)'!J41+'Schedule IIE (EBS)'!J41+'Schedule IIF (EBS)'!J41",0,null,null,null,{"$f":"ADDRESS(12,20,1,1,$M$1)","v":"'Currency Risk'!$T$12"},"=(C12-L12)+(D12-M12)+(F12-O12)+MAX(E12-N12,0)+MAX(G12-P12,0)",0,{"$f":"ADDRESS(20,4,1,1,$P$1)","v":"'Concentration Risk'!$D$20"},"=SUM(D9:D18)",{"$f":"IF(_xlfn.FORMULATEXT(INDIRECT(P44))=Q44,0,1)","v":0},{"$f":"ADDRESS(10,18,1,1,$S$1)","v":"'Geographic Diversification'!$R$10"},"=+'Schedule IVE (EBS)'!N10",0,{"$f":"ADDRESS(33,6,1,1,$V$1)","v":"'Credit Risk'!$F$33"},"='Schedule XVIII (EBS)'!O92",{"$f":"IF(_xlfn.FORMULATEXT(INDIRECT(V44))=W44,0,1)","v":0},{"$f":"ADDRESS(13,14,1,1,$Y$1)","v":"'Premium Risk'!$N$13"},"=IF($H13<0,0,$H13*$K13)+IF($I13<0,0,$I13*$L13)+IF($J13<0,0,$J13*$M13)",{"$f":"IF(_xlfn.FORMULATEXT(INDIRECT(Y44))=Z44,0,1)","v":0},{"$f":"ADDRESS(18,6,1,1,$AB$1)","v":"'Reserve Risk'!$F$18"},"='Geographic Diversification'!H47",{"$f":"IF(_xlfn.FORMULATEXT(INDIRECT(AB44))=AC44,0,1)","v":0}]
[{"$f":"ADDRESS(58,33,1,1,$A$1)","v":"Summary!$AG$58"},"=IF(AP58=\"\",IF(Test_Statistic<$AJ$74,AJ58,IF(Test_Statistic<$AL$74,AL58,AN58)),AP58)",0,{"$f":"ADDRESS(30,7,1,1,$D$1)","v":"'Fixed Income Investments'!$G$30"},"='Schedule IIB (EBS)'!H17+'Schedule IIC (EBS)'!H17+(MAX(0,'Schedule IID (EBS)'!H17-'Schedule IID (EBS)'!J17))+'Schedule IIE (EBS)'!H17+'Schedule IIF (EBS)'!H17",{"$f":"IF(_xlfn.FORMULATEXT(INDIRECT(D45))=E45,0,1)","v":0},{"$f":"ADDRESS(13,8,1,1,$G$1)","v":"'Equity Investments'!$H$13"},"='Schedule IIB (EBS)'!L41+'Schedule IIC (EBS)'!L41+'Schedule IID (EBS)'!L41+'Schedule IIE (EBS)'!L41+'Schedule IIF (EBS)'!L41",0,null,null,null,{"$f":"ADDRESS(12,21,1,1,$M$1)","v":"'Currency Risk'!$U$12"},"=Q12-$H12",0,{"$f":"ADDRESS(20,6,1,1,$P$1)","v":"'Concentration Risk'!$F$20"},"=SUM(F9:F18)",{"$f":"IF(_xlfn.FORMULATEXT(INDIRECT(P45))=Q45,0,1)","v":0},{"$f":"ADDRESS(10,19,1,1,$S$1)","v":"'Geographic Diversification'!$S$10"},"=+'Schedule IVE (EBS)'!O10",0,{"$f":"ADDRESS(33,7,1,1,$V$1)","v":"'Credit Risk'!$G$33"},0.12,{"$f":"IF(INDIRECT(V45)=W45,0,1)","v":0},{"$f":"ADDRESS(13,17,1,1,$Y$1)","v":"'Premium Risk'!$Q$13"},"=IF(H13=E13,MAX(D13*K13,0),IF(E13=F13,IF(D13<0,0,D13*(H13/F13)*K13),IF(D13<0,0,D13*(H13/E13)*K13)))\n+IF(I13=E13,MAX(D13*L13,0),IF(E13=F13,IF(D13<0,0,D13*(I13/F13)*L13),IF(D13<0,0,D13*(I13/E13)*L13)))\n+IF(J13=E13,MAX(D13*M13,0),IF(E13=F13,IF(D13<0,0,D13*(J13/F13)*M13),IF(D13<0,0,D13*(J13/E13)*M13)))",{"$f":"IF(_xlfn.FORMULATEXT(INDIRECT(Y45))=Z45,0,1)","v":0},{"$f":"ADDRESS(18,7,1,1,$AB$1)","v":"'Reserve Risk'!$G$18"},0.383682680649994,{"$f":"IF(INDIRECT(AB45)=AC45,0,1)","v":0}]
[{"$f":"ADDRESS(58,35,1,1,$A$1)","v":"Summary!$AI$58"},"=IF(AC63>1,300,IF(AC63>0.6,260,240))",0,{"$f":"ADDRESS(30,8,1,1,$D$1)","v":"'Fixed Income Investments'!$H$30"},0.04,{"$f":"IF(INDIRECT(D46)=E46,0,1)","v":0},{"$f":"ADDRESS(13,9,1,1,$G$1)","v":"'Equity Investments'!$I$13"},"='Schedule IIB (EBS)'!N41+'Schedule IIC (EBS)'!N41+'Schedule IID (EBS)'!N41+'Schedule IIE (EBS)'!N41+'Schedule IIF (EBS)'!N41",0,null,null,null,{"$f":"ADDRESS(12,22,1,1,$M$1)","v":"'Currency Risk'!$V$12"},"=R12-$H12",0,{"$f":"ADDRESS(22,4,1,1,$P$1)","v":"'Concentration Risk'!$D$22"},"Corporate & Sovereign Bonds",{"$f":"IF(INDIRECT(P46)=Q46,0,1)","v":0},{"$f":"ADDRESS(10,20,1,1,$S$1)","v":"'Geographic Diversification'!$T$10"},"=+'Schedule IVE (EBS)'!P10",0,{"$f":"ADDRESS(33,8,1,1,$V$1)","v":"'Credit Risk'!$H$33"},"=IF(F33<0,0,F33*G33)",{"$f":"IF(_xlfn.FORMULATEXT(INDIRECT(V46))=W46,0,1)","v":0},{"$f":"ADDRESS(13,19,1,1,$Y$1)","v":"'Premium Risk'!$S$13"},0.25,{"$f":"IF(INDIRECT(Y46)=Z46,0,1)","v":0},{"$f":"ADDRESS(18,8,1,1,$AB$1)","v":"'Reserve Risk'!$H$18"},"=IF($F$18<0,0,$F$18*$G$18)",{"$f":"IF(_xlfn.FORMULATEXT(INDIRECT(AB46))=AC46,0,1)","v":0}]
[{"$f":"ADDRESS(58,36,1,1,$A$1)","v":"Summary!$AJ$58"},"=IF(AC65>1,50,IF(AC63>1,20,IF(AC63>0.6,25,15)))",0,{"$f":"ADDRESS(30,9,1,1,$D$1)","v":"'Fixed Income Investments'!$I$30"},"=IF(G30<0,0,G30*H30)",{"$f":"IF(_xlfn.FORMULATEXT(INDIRECT(D47))=E47,0,1)","v":0},{"$f":"ADDRESS(13,10,1,1,$G$1)","v":"'Equity Investments'!$J$13"},"='Schedule IIB (EBS)'!P41+'Schedule IIC (EBS)'!P41+'Schedule IID (EBS)'!P41+'Schedule IIE (EBS)'!P41+'Schedule IIF (EBS)'!P41",0,null,null,null,{"$f":"ADDRESS(12,24,1,1,$M$1)","v":"'Currency Risk'!$X$12"},"=MAX(0,$T12+U12+(J12*I12))",0,{"$f":"ADDRESS(23,2,1,1,$P$1)","v":"'Concentration Risk'!$B$23"},"BSCR Rating 0",{"$f":"IF(INDIRECT(P47)=Q47,0,1)","v":0},{"$f":"ADDRESS(10,21,1,1,$S$1)","v":"'Geographic Diversification'!$U$10"},"=+'Schedule IVE (EBS)'!Q10",0,{"$f":"ADDRESS(34,6,1,1,$V$1)","v":"'Credit Risk'!$F$34"},"='Schedule XVIII (EBS)'!O93",{"$f":"IF(_xlfn.FORMULATEXT(INDIRECT(V47))=W47,0,1)","v":0},{"$f":"ADDRESS(13,20,1,1,$Y$1)","v":"'Premium Risk'!$T$13"},0.5,{"$f":"IF(INDIRECT(Y47)=Z47,0,1)","v":0},{"$f":"ADDRESS(19,4,1,1,$AB$1)","v":"'Reserve Risk'!$D$19"},"=+'Schedule III (EBS)'!D18",{"$f":"IF(_xlfn.FORMULATEXT(INDIRECT(AB47))=AC47,0,1)","v":0}]
[{"$f":"ADDRESS(58,37,1,1,$A$1)","v":"Summary!$AK$58"},"=IF(Test_Statistic_2<1,300,300)",0,{"$f":"ADDRESS(31,7,1,1,$D$1)","v":"'Fixed Income Investments'!$G$31"},"='Schedule IIB (EBS)'!H18+'Schedule IIC (EBS)'!H18+(MAX(0,'Schedule IID (EBS)'!H18-'Schedule IID (EBS)'!J18))+'Schedule IIE (EBS)'!H18+'Schedule IIF (EBS)'!H18",{"$f":"IF(_xlfn.FORMULATEXT(INDIRECT(D48))=E48,0,1)","v":0},{"$f":"ADDRESS(13,11,1,1,$G$1)","v":"'Equity Investments'!$K$13"},"='Schedule IIB (EBS)'!R41+'Schedule IIC (EBS)'!R41+'Schedule IID (EBS)'!R41+'Schedule IIE (EBS)'!R41+'Schedule IIF (EBS)'!R41",0,null,null,null,{"$f":"ADDRESS(12,25,1,1,$M$1)","v":"'Currency Risk'!$Y$12"},"=MAX(0,$T12+V12+(J12*I12))",0,{"$f":"ADDRESS(23,4,1,1,$P$1)","v":"'Concentration Risk'!$D$23"},"=SUMIFS('Schedule XXIA'!$M$8:$M$57,'Schedule XXIA'!$K$8:$K$57,$D$22,'Schedule XXIA'!$L$8:$L$57,$B23)",{"$f":"IF(_xlfn.FORMULATEXT(INDIRECT(P48))=Q48,0,1)","v":0},{"$f":"ADDRESS(10,22,1,1,$S$1)","v":"'Geographic Diversification'!$V$10"},"=+'Schedule IVE (EBS)'!R10",0,{"$f":"ADDRESS(34,7,1,1,$V$1)","v":"'Credit Risk'!$G$34"},0.2,{"$f":"IF(INDIRECT(V48)=W48,0,1)","v":0},{"$f":"ADDRESS(14,4,1,1,$Y$1)","v":"'Premium Risk'!$D$14"},"='Schedule IVD (EBS)'!Q12",{"$f":"IF(_xlfn.FORMULATEXT(INDIRECT(Y48))=Z48,0,1)","v":0},{"$f":"ADDRESS(19,5,1,1,$AB$1)","v":"'Reserve Risk'!$E$19"},"=+'Schedule III (EBS)'!F18",{"$f":"IF(_xlfn.FORMULATEXT(INDIRECT(AB48))=AC48,0,1)","v":0}]
[{"$f":"ADDRESS(58,38,1,1,$A$1)","v":"Summary!$AL$58"},60,{"$f":"IF(INDIRECT(A49)=B49,0,1)","v":0},{"$f":"ADDRESS(31,8,1,1,$D$1)","v":"'Fixed Income Investments'!$H$31"},0.11,{"$f":"IF(INDIRECT(D49)=E49,0,1)","v":0},{"$f":"ADDRESS(13,12,1,1,$G$1)","v":"'Equity Investments'!$L$13"},"='Schedule IIB (EBS)'!T41+'Schedule IIC (EBS)'!T41+'Schedule IID (EBS)'!T41+'Schedule IIE (EBS)'!T41+'Schedule IIF (EBS)'!T41",0,null,null,null,{"$f":"ADDRESS(13,2,1,1,$M$1)","v":"'Currency Risk'!$B$13"},"='Schedule XXA'!B11",0,{"$f":"ADDRESS(23,5,1,1,$P$1)","v":"'Concentration Risk'!$E$23"},"=+'Fixed Income Investments (Prior'!E12",{"$f":"IF(_xlfn.FORMULATEXT(INDIRECT(P49))=Q49,0,1)","v":0},{"$f":"ADDRESS(10,23,1,1,$S$1)","v":"'Geographic Diversification'!$W$10"},"=+'Schedule IVE (EBS)'!S10",0,{"$f":"ADDRESS(34,8,1,1,$V$1)","v":"'Credit Risk'!$H$34"},"=IF(F34<0,0,F34*G34)",{"$f":"IF(_xlfn.FORMULATEXT(INDIRECT(V49))=W49,0,1)","v":0},{"$f":"ADDRESS(14,5,1,1,$Y$1)","v":"'Premium Risk'!$E$14"},"='Schedule IVD (EBS)'!O12",0,{"$f":"ADDRESS(19,6,1,1,$AB$1)","v":"'Reserve Risk'!$F$19"},"='Geographic Diversification'!H48",{"$f":"IF(_xlfn.FORMULATEXT(INDIRECT(AB49))=AC49,0,1)","v":0}]
[{"$f":"ADDRESS(58,39,1,1,$A$1)","v":"Summary!$AM$58"},280,{"$f":"IF(INDIRECT(A50)=B50,0,1)","v":0},{"$f":"ADDRESS(31,9,1,1,$D$1)","v":"'Fixed Income Investments'!$I$31"},"=IF(G31<0,0,G31*H31)",{"$f":"IF(_xlfn.FORMULATEXT(INDIRECT(D50))=E50,0,1)","v":0},{"$f":"ADDRESS(13,16,1,1,$G$1)","v":"'Equity Investments'!$P$13"},"=MAX(D13-E13,0)+(F13-G13)+MAX(H13-I13,0)+(K13-J13)",0,null,null,null,{"$f":"ADDRESS(13,3,1,1,$M$1)","v":"'Currency Risk'!$C$13"},"='Schedule XXA'!D11",0,{"$f":"ADDRESS(23,6,1,1,$P$1)","v":"'Concentration Risk'!$F$23"},"=MAX(0,(D23*E23))",{"$f":"IF(_xlfn.FORMULATEXT(INDIRECT(P50))=Q50,0,1)","v":0},{"$f":"ADDRESS(10,24,1,1,$S$1)","v":"'Geographic Diversification'!$X$10"},"=+'Schedule IVE (EBS)'!T10",0,{"$f":"ADDRESS(35,6,1,1,$V$1)","v":"'Credit Risk'!$F$35"},"='Schedule XVIII (EBS)'!O94",{"$f":"IF(_xlfn.FORMULATEXT(INDIRECT(V50))=W50,0,1)","v":0},{"$f":"ADDRESS(14,6,1,1,$Y$1)","v":"'Premium Risk'!$F$14"},"='Geographic Diversification'!H12",0,{"$f":"ADDRESS(19,7,1,1,$AB$1)","v":"'Reserve Risk'!$G$19"},0.43464696624596899,{"$f":"IF(INDIRECT(AB50)=AC50,0,1)","v":0}]
[{"$f":"ADDRESS(58,40,1,1,$A$1)","v":"Summary!$AN$58"},60,{"$f":"IF(INDIRECT(A51)=B51,0,1)","v":0},{"$f":"ADDRESS(32,7,1,1,$D$1)","v":"'Fixed Income Investments'!$G$32"},"='Schedule IIB (EBS)'!H19+'Schedule IIC (EBS)'!H19+(MAX(0,'Schedule IID (EBS)'!H19-'Schedule IID (EBS)'!J19))+'Schedule IIE (EBS)'!H19+'Schedule IIF (EBS)'!H19",{"$f":"IF(_xlfn.FORMULATEXT(INDIRECT(D51))=E51,0,1)","v":0},{"$f":"ADDRESS(13,18,1,1,$G$1)","v":"'Equity Investments'!$R$13"},"=MAX(D13-E13,0)+(F13-G13)+MAX(H13-I13,0)+(L13-J13)",0,null,null,null,{"$f":"ADDRESS(13,4,1,1,$M$1)","v":"'Currency Risk'!$D$13"},"='Schedule XXA'!F11",0,{"$f":"ADDRESS(24,2,1,1,$P$1)","v":"'Concentration Risk'!$B$24"},"BSCR Rating 1",{"$f":"IF(INDIRECT(P51)=Q51,0,1)","v":0},{"$f":"ADDRESS(10,25,1,1,$S$1)","v":"'Geographic Diversification'!$Y$10"},"=+'Schedule IVE (EBS)'!U10",0,{"$f":"ADDRESS(35,7,1,1,$V$1)","v":"'Credit Risk'!$G$35"},0.27,{"$f":"IF(INDIRECT(V51)=W51,0,1)","v":0},{"$f":"ADDRESS(14,7,1,1,$Y$1)","v":"'Premium Risk'!$G$14"},"=IF(IFERROR(F14/E14,1)<0,1,IFERROR(F14/E14,1))",0,{"$f":"ADDRESS(19,8,1,1,$AB$1)","v":"'Reserve Risk'!$H$19"},"=IF($F$19<0,0,$F$19*$G$19)",{"$f":"IF(_xlfn.FORMULATEXT(INDIRECT(AB51))=AC51,0,1)","v":0}]
[{"$f":"ADDRESS(59,3,1,1,$A$1)","v":"Summary!$C$59"},"Equity Investment Risk",{"$f":"IF(INDIRECT(A52)=B52,0,1)","v":0},{"$f":"ADDRESS(32,8,1,1,$D$1)","v":"'Fixed Income Investments'!$H$32"},0.25,{"$f":"IF(INDIRECT(D52)=E52,0,1)","v":0},{"$f":"ADDRESS(14,4,1,1,$G$1)","v":"'Equity Investments'!$D$14"},"='Schedule IIB (EBS)'!D42+'Schedule IIC (EBS)'!D42+'Schedule IID (EBS)'!D42+'Schedule IIE (EBS)'!D42+'Schedule IIF (EBS)'!D42",0,null,null,null,{"$f":"ADDRESS(13,5,1,1,$M$1)","v":"'Currency Risk'!$E$13"},"='Schedule XXA'!H11",0,{"$f":"ADDRESS(24,4,1,1,$P$1)","v":"'Concentration Risk'!$D$24"},"=SUMIFS('Schedule XXIA'!$M$8:$M$57,'Schedule XXIA'!$K$8:$K$57,$D$22,'Schedule XXIA'!$L$8:$L$57,$B24)",{"$f":"IF(_xlfn.FORMULATEXT(INDIRECT(P52))=Q52,0,1)","v":0},{"$f":"ADDRESS(10,26,1,1,$S$1)","v":"'Geographic Diversification'!$Z$10"},"=+'Schedule IVE (EBS)'!V10",0,{"$f":"ADDRESS(35,8,1,1,$V$1)","v":"'Credit Risk'!$H$35"},"=IF(F35<0,0,F35*G35)",{"$f":"IF(_xlfn.FORMULATEXT(INDIRECT(V52))=W52,0,1)","v":0},{"$f":"ADDRESS(14,8,1,1,$Y$1)","v":"'Premium Risk'!$H$14"},"='Schedule IVD (EBS)'!I12*$G14",0,{"$f":"ADDRESS(20,4,1,1,$AB$1)","v":"'Reserve Risk'!$D$20"},"=+'Schedule III (EBS)'!D19",{"$f":"IF(_xlfn.FORMULATEXT(INDIRECT(AB52))=AC52,0,1)","v":0}]
[{"$f":"ADDRESS(59,7,1,1,$A$1)","v":"Summary!$G$59"},"=ROUND('Equity Investments (Prior)'!F51,$N$166)",{"$f":"IF(_xlfn.FORMULATEXT(INDIRECT(A53))=B53,0,1)","v":0},{"$f":"ADDRESS(32,9,1,1,$D$1)","v":"'Fixed Income Investments'!$I$32"},"=IF(G32<0,0,G32*H32)",{"$f":"IF(_xlfn.FORMULATEXT(INDIRECT(D53))=E53,0,1)","v":0},{"$f":"ADDRESS(14,5,1,1,$G$1)","v":"'Equity Investments'!$E$14"},"='Schedule IIB (EBS)'!F42+'Schedule IIC (EBS)'!F42+'Schedule IID (EBS)'!F42+'Schedule IIE (EBS)'!F42+'Schedule IIF (EBS)'!F42",0,null,null,null,{"$f":"ADDRESS(13,6,1,1,$M$1)","v":"'Currency Risk'!$F$13"},"='Schedule XXA'!J11",0,{"$f":"ADDRESS(24,5,1,1,$P$1)","v":"'Concentration Risk'!$E$24"},"=+'Fixed Income Investments (Prior'!E13",{"$f":"IF(_xlfn.FORMULATEXT(INDIRECT(P53))=Q53,0,1)","v":0},{"$f":"ADDRESS(11,4,1,1,$S$1)","v":"'Geographic Diversification'!$D$11"},"=SUM(I11:Z11)",0,{"$f":"ADDRESS(36,6,1,1,$V$1)","v":"'Credit Risk'!$F$36"},"='Schedule XVIII (EBS)'!O95",{"$f":"IF(_xlfn.FORMULATEXT(INDIRECT(V53))=W53,0,1)","v":0},{"$f":"ADDRESS(14,9,1,1,$Y$1)","v":"'Premium Risk'!$I$14"},"='Schedule IVD (EBS)'!K12*$G14",0,{"$f":"ADDRESS(20,5,1,1,$AB$1)","v":"'Reserve Risk'!$E$20"},"=+'Schedule III (EBS)'!F19",{"$f":"IF(_xlfn.FORMULATEXT(INDIRECT(AB53))=AC53,0,1)","v":0}]
[{"$f":"ADDRESS(59,11,1,1,$A$1)","v":"Summary!$K$59"},"=ROUND('Equity Investments'!R56,$N$166)",0,{"$f":"ADDRESS(33,7,1,1,$D$1)","v":"'Fixed Income Investments'!$G$33"},"='Schedule IIB (EBS)'!H20+'Schedule IIC (EBS)'!H20+(MAX(0,'Schedule IID (EBS)'!H20-'Schedule IID (EBS)'!J20))+'Schedule IIE (EBS)'!H20+'Schedule IIF (EBS)'!H20",{"$f":"IF(_xlfn.FORMULATEXT(INDIRECT(D54))=E54,0,1)","v":0},{"$f":"ADDRESS(14,6,1,1,$G$1)","v":"'Equity Investments'!$F$14"},"='Schedule IIB (EBS)'!H42+'Schedule IIC (EBS)'!H42+'Schedule IID (EBS)'!H42+'Schedule IIE (EBS)'!H42+'Schedule IIF (EBS)'!H42",0,null,null,null,{"$f":"ADDRESS(13,7,1,1,$M$1)","v":"'Currency Risk'!$G$13"},"='Schedule XXA'!L11",0,{"$f":"ADDRESS(24,6,1,1,$P$1)","v":"'Concentration Risk'!$F$24"},"=MAX(0,(D24*E24))",{"$f":"IF(_xlfn.FORMULATEXT(INDIRECT(P54))=Q54,0,1)","v":0},{"$f":"ADDRESS(11,5,1,1,$S$1)","v":"'Geographic Diversification'!$E$11"},"=SUMSQ(I11:Z11)",0,{"$f":"ADDRESS(36,7,1,1,$V$1)","v":"'Credit Risk'!$G$36"},0.35,{"$f":"IF(INDIRECT(V54)=W54,0,1)","v":0},{"$f":"ADDRESS(14,10,1,1,$Y$1)","v":"'Premium Risk'!$J$14"},"='Schedule IVD (EBS)'!M12*$G14",0,{"$f":"ADDRESS(20,6,1,1,$AB$1)","v":"'Reserve Risk'!$F$20"},"='Geographic Diversification'!H49",{"$f":"IF(_xlfn.FORMULATEXT(INDIRECT(AB54))=AC54,0,1)","v":0}]
[{"$f":"ADDRESS(59,13,1,1,$A$1)","v":"Summary!$M$59"},"=ROUND('Equity Investments'!P56,$N$166)",0,{"$f":"ADDRESS(33,8,1,1,$D$1)","v":"'Fixed Income Investments'!$H$33"},0.35,{"$f":"IF(INDIRECT(D55)=E55,0,1)","v":0},{"$f":"ADDRESS(14,7,1,1,$G$1)","v":"'Equity Investments'!$G$14"},"='Schedule IIB (EBS)'!J42+'Schedule IIC (EBS)'!J42+'Schedule IID (EBS)'!J42+'Schedule IIE (EBS)'!J42+'Schedule IIF (EBS)'!J42",0,null,null,null,{"$f":"ADDRESS(13,8,1,1,$M$1)","v":"'Currency Risk'!$H$13"},"='Schedule XXA'!N11",0,{"$f":"ADDRESS(25,2,1,1,$P$1)","v":"'Concentration Risk'!$B$25"},"BSCR Rating 2",{"$f":"IF(INDIRECT(P55)=Q55,0,1)","v":0},{"$f":"ADDRESS(11,6,1,1,$S$1)","v":"'Geographic Diversification'!$F$11"},"=(IF(D11>0,E11/D11^2,1))",0,{"$f":"ADDRESS(36,8,1,1,$V$1)","v":"'Credit Risk'!$H$36"},"=IF(F36<0,0,F36*G36)",{"$f":"IF(_xlfn.FORMULATEXT(INDIRECT(V55))=W55,0,1)","v":0},{"$f":"ADDRESS(14,11,1,1,$Y$1)","v":"'Premium Risk'!$K$14"},0.34115345724240698,{"$f":"IF(INDIRECT(Y55)=Z55,0,1)","v":0},{"$f":"ADDRESS(20,7,1,1,$AB$1)","v":"'Reserve Risk'!$G$20"},0.39543823911176501,{"$f":"IF(INDIRECT(AB55)=AC55,0,1)","v":0}]
[{"$f":"ADDRESS(59,20,1,1,$A$1)","v":"Summary!$T$59"},"=C59",0,{"$f":"ADDRESS(33,9,1,1,$D$1)","v":"'Fixed Income Investments'!$I$33"},"=IF(G33<0,0,G33*H33)",{"$f":"IF(_xlfn.FORMULATEXT(INDIRECT(D56))=E56,0,1)","v":0},{"$f":"ADDRESS(14,8,1,1,$G$1)","v":"'Equity Investments'!$H$14"},"='Schedule IIB (EBS)'!L42+'Schedule IIC (EBS)'!L42+'Schedule IID (EBS)'!L42+'Schedule IIE (EBS)'!L42+'Schedule IIF (EBS)'!L42",0,null,null,null,{"$f":"ADDRESS(13,9,1,1,$M$1)","v":"'Currency Risk'!$I$13"},"=$I$10*H13",0,{"$f":"ADDRESS(25,4,1,1,$P$1)","v":"'Concentration Risk'!$D$25"},"=SUMIFS('Schedule XXIA'!$M$8:$M$57,'Schedule XXIA'!$K$8:$K$57,$D$22,'Schedule XXIA'!$L$8:$L$57,$B25)",{"$f":"IF(_xlfn.FORMULATEXT(INDIRECT(P56))=Q56,0,1)","v":0},{"$f":"ADDRESS(11,7,1,1,$S$1)","v":"'Geographic Diversification'!$G$11"},"=D11*(0.75+0.25*F11)",0,{"$f":"ADDRESS(38,6,1,1,$V$1)","v":"'Credit Risk'!$F$38"},"=SUM(F28:F36)",0,{"$f":"ADDRESS(14,12,1,1,$Y$1)","v":"'Premium Risk'!$L$14"},"=+K14*S14",{"$f":"IF(_xlfn.FORMULATEXT(INDIRECT(Y56))=Z56,0,1)","v":0},{"$f":"ADDRESS(20,8,1,1,$AB$1)","v":"'Reserve Risk'!$H$20"},"=IF($F$20<0,0,$F$20*$G$20)",{"$f":"IF(_xlfn.FORMULATEXT(INDIRECT(AB56))=AC56,0,1)","v":0}]
[{"$f":"ADDRESS(59,24,1,1,$A$1)","v":"Summary!$X$59"},"=G59",0,{"$f":"ADDRESS(34,7,1,1,$D$1)","v":"'Fixed Income Investments'!$G$34"},"='Schedule IIB (EBS)'!H21+'Schedule IIC (EBS)'!H21+(MAX(0,'Schedule IID (EBS)'!H21-'Schedule IID (EBS)'!J21))+'Schedule IIE (EBS)'!H21+'Schedule IIF (EBS)'!H21",{"$f":"IF(_xlfn.FORMULATEXT(INDIRECT(D57))=E57,0,1)","v":0},{"$f":"ADDRESS(14,9,1,1,$G$1)","v":"'Equity Investments'!$I$14"},"='Schedule IIB (EBS)'!N42+'Schedule IIC (EBS)'!N42+'Schedule IID (EBS)'!N42+'Schedule IIE (EBS)'!N42+'Schedule IIF (EBS)'!N42",0,null,null,null,{"$f":"ADDRESS(13,10,1,1,$M$1)","v":"'Currency Risk'!$J$13"},"=IF($B$12=\"Bermuda Dollars\",0%,IF($B$12=\"United States Dollars\",0%,IF((SUM(C13:G13))>(H13+I13),0%,25%)))",0,{"$f":"ADDRESS(25,5,1,1,$P$1)","v":"'Concentration Risk'!$E$25"},"=+'Fixed Income Investments (Prior'!E14",{"$f":"IF(_xlfn.FORMULATEXT(INDIRECT(P57))=Q57,0,1)","v":0},{"$f":"ADDRESS(11,8,1,1,$S$1)","v":"'Geographic Diversification'!$H$11"},"=IF('Schedule IVE (EBS)'!AB11=\"True\",G11,'Schedule IVD (EBS)'!O11)",0,{"$f":"ADDRESS(38,8,1,1,$V$1)","v":"'Credit Risk'!$H$38"},"=SUM(H28:H36)",0,{"$f":"ADDRESS(14,13,1,1,$Y$1)","v":"'Premium Risk'!$M$14"},"=+L14*T14",{"$f":"IF(_xlfn.FORMULATEXT(INDIRECT(Y57))=Z57,0,1)","v":0},{"$f":"ADDRESS(21,4,1,1,$AB$1)","v":"'Reserve Risk'!$D$21"},"=+'Schedule III (EBS)'!D20",{"$f":"IF(_xlfn.FORMULATEXT(INDIRECT(AB57))=AC57,0,1)","v":0}]
[{"$f":"ADDRESS(59,25,1,1,$A$1)","v":"Summary!$Y$59"},"=IF($L$74=0,1/9,X59/$X$68)",0,{"$f":"ADDRESS(34,8,1,1,$D$1)","v":"'Fixed Income Investments'!$H$34"},0.35,{"$f":"IF(INDIRECT(D58)=E58,0,1)","v":0},{"$f":"ADDRESS(14,10,1,1,$G$1)","v":"'Equity Investments'!$J$14"},"='Schedule IIB (EBS)'!P42+'Schedule IIC (EBS)'!P42+'Schedule IID (EBS)'!P42+'Schedule IIE (EBS)'!P42+'Schedule IIF (EBS)'!P42",0,null,null,null,{"$f":"ADDRESS(13,12,1,1,$M$1)","v":"'Currency Risk'!$L$13"},"='Schedule XXA'!V11",0,{"$f":"ADDRESS(25,6,1,1,$P$1)","v":"'Concentration Risk'!$F$25"},"=MAX(0,(D25*E25))",{"$f":"IF(_xlfn.FORMULATEXT(INDIRECT(P58))=Q58,0,1)","v":0},{"$f":"ADDRESS(11,9,1,1,$S$1)","v":"'Geographic Diversification'!$I$11"},"=+'Schedule IVE (EBS)'!E11",0,{"$f":"ADDRESS(40,7,1,1,$V$1)","v":"'Credit Risk'!$G$40"},"='Schedule XVIII (EBS)'!O104",0,{"$f":"ADDRESS(14,14,1,1,$Y$1)","v":"'Premium Risk'!$N$14"},"=IF($H14<0,0,$H14*$K14)+IF($I14<0,0,$I14*$L14)+IF($J14<0,0,$J14*$M14)",{"$f":"IF(_xlfn.FORMULATEXT(INDIRECT(Y58))=Z58,0,1)","v":0},{"$f":"ADDRESS(21,5,1,1,$AB$1)","v":"'Reserve Risk'!$E$21"},"=+'Schedule III (EBS)'!F20",{"$f":"IF(_xlfn.FORMULATEXT(INDIRECT(AB58))=AC58,0,1)","v":0}]
[{"$f":"ADDRESS(59,26,1,1,$A$1)","v":"Summary!$Z$59"},"=M59",0,{"$f":"ADDRESS(34,9,1,1,$D$1)","v":"'Fixed Income Investments'!$I$34"},"=IF(G34<0,0,G34*H34)",{"$f":"IF(_xlfn.FORMULATEXT(INDIRECT(D59))=E59,0,1)","v":0},{"$f":"ADDRESS(14,11,1,1,$G$1)","v":"'Equity Investments'!$K$14"},"='Schedule IIB (EBS)'!R42+'Schedule IIC (EBS)'!R42+'Schedule IID (EBS)'!R42+'Schedule IIE (EBS)'!R42+'Schedule IIF (EBS)'!R42",0,null,null,null,{"$f":"ADDRESS(13,13,1,1,$M$1)","v":"'Currency Risk'!$M$13"},"='Schedule XXA'!X11",0,{"$f":"ADDRESS(26,2,1,1,$P$1)","v":"'Concentration Risk'!$B$26"},"BSCR Rating 3",{"$f":"IF(INDIRECT(P59)=Q59,0,1)","v":0},{"$f":"ADDRESS(11,10,1,1,$S$1)","v":"'Geographic Diversification'!$J$11"},"=+'Schedule IVE (EBS)'!F11",0,{"$f":"ADDRESS(40,8,1,1,$V$1)","v":"'Credit Risk'!$H$40"},"=SUM(H28:H36)*-('Schedule XVIII (EBS)'!O104)",0,{"$f":"ADDRESS(14,17,1,1,$Y$1)","v":"'Premium Risk'!$Q$14"},"=IF(H14=E14,MAX(D14*K14,0),IF(E14=F14,IF(D14<0,0,D14*(H14/F14)*K14),IF(D14<0,0,D14*(H14/E14)*K14)))\n+IF(I14=E14,MAX(D14*L14,0),IF(E14=F14,IF(D14<0,0,D14*(I14/F14)*L14),IF(D14<0,0,D14*(I14/E14)*L14)))\n+IF(J14=E14,MAX(D14*M14,0),IF(E14=F14,IF(D14<0,0,D14*(J14/F14)*M14),IF(D14<0,0,D14*(J14/E14)*M14)))",{"$f":"IF(_xlfn.FORMULATEXT(INDIRECT(Y59))=Z59,0,1)","v":0},{"$f":"ADDRESS(21,6,1,1,$AB$1)","v":"'Reserve Risk'!$F$21"},"='Geographic Diversification'!H50",{"$f":"IF(_xlfn.FORMULATEXT(INDIRECT(AB59))=AC59,0,1)","v":0}]
[{"$f":"ADDRESS(59,27,1,1,$A$1)","v":"Summary!$AA$59"},"=IF($N$74=0,1/9,Z59/$Z$68)",0,{"$f":"ADDRESS(36,7,1,1,$D$1)","v":"'Fixed Income Investments'!$G$36"},"=SUM(G27:G34)",{"$f":"IF(_xlfn.FORMULATEXT(INDIRECT(D60))=E60,0,1)","v":0},{"$f":"ADDRESS(14,12,1,1,$G$1)","v":"'Equity Investments'!$L$14"},"='Schedule IIB (EBS)'!T42+'Schedule IIC (EBS)'!T42+'Schedule IID (EBS)'!T42+'Schedule IIE (EBS)'!T42+'Schedule IIF (EBS)'!T42",0,null,null,null,{"$f":"ADDRESS(13,14,1,1,$M$1)","v":"'Currency Risk'!$N$13"},"='Schedule XXA'!Z11",0,{"$f":"ADDRESS(26,4,1,1,$P$1)","v":"'Concentration Risk'!$D$26"},"=SUMIFS('Schedule XXIA'!$M$8:$M$57,'Schedule XXIA'!$K$8:$K$57,$D$22,'Schedule XXIA'!$L$8:$L$57,$B26)",{"$f":"IF(_xlfn.FORMULATEXT(INDIRECT(P60))=Q60,0,1)","v":0},{"$f":"ADDRESS(11,11,1,1,$S$1)","v":"'Geographic Diversification'!$K$11"},"=+'Schedule IVE (EBS)'!G11",0,{"$f":"ADDRESS(42,6,1,1,$V$1)","v":"'Credit Risk'!$F$42"},"=+F38",0,{"$f":"ADDRESS(14,19,1,1,$Y$1)","v":"'Premium Risk'!$S$14"},0.25,{"$f":"IF(INDIRECT(Y60)=Z60,0,1)","v":0},{"$f":"ADDRESS(21,7,1,1,$AB$1)","v":"'Reserve Risk'!$G$21"},0.43945783577556502,{"$f":"IF(INDIRECT(AB60)=AC60,0,1)","v":0}]
[{"$f":"ADDRESS(59,29,1,1,$A$1)","v":"Summary!$AC$59"},"=(SUM(AA$58:AA59)/AA$68)",0,{"$f":"ADDRESS(36,9,1,1,$D$1)","v":"'Fixed Income Investments'!$I$36"},"=IF(SUM(I27:I34)>=0,SUM(I27:I34),0)",{"$f":"IF(_xlfn.FORMULATEXT(INDIRECT(D61))=E61,0,1)","v":0},{"$f":"ADDRESS(14,16,1,1,$G$1)","v":"'Equity Investments'!$P$14"},"=MAX(D14-E14,0)+(F14-G14)+MAX(H14-I14,0)+(K14-J14)",0,null,null,null,{"$f":"ADDRESS(13,15,1,1,$M$1)","v":"'Currency Risk'!$O$13"},"='Schedule XXA'!AB11",0,{"$f":"ADDRESS(26,5,1,1,$P$1)","v":"'Concentration Risk'!$E$26"},"=+'Fixed Income Investments (Prior'!E15",{"$f":"IF(_xlfn.FORMULATEXT(INDIRECT(P61))=Q61,0,1)","v":0},{"$f":"ADDRESS(11,12,1,1,$S$1)","v":"'Geographic Diversification'!$L$11"},"=+'Schedule IVE (EBS)'!H11",0,{"$f":"ADDRESS(42,8,1,1,$V$1)","v":"'Credit Risk'!$H$42"},"=SUM(H28:H36)+H40",0,{"$f":"ADDRESS(14,20,1,1,$Y$1)","v":"'Premium Risk'!$T$14"},0.5,{"$f":"IF(INDIRECT(Y61)=Z61,0,1)","v":0},{"$f":"ADDRESS(21,8,1,1,$AB$1)","v":"'Reserve Risk'!$H$21"},"=IF($F$21<0,0,$F$21*$G$21)",{"$f":"IF(_xlfn.FORMULATEXT(INDIRECT(AB61))=AC61,0,1)","v":0}]
[{"$f":"ADDRESS(59,32,1,1,$A$1)","v":"Summary!$AF$59"},"=IF(AO59=\"\",IF(Test_Statistic<$AJ$74,AI59,IF(Test_Statistic<$AL$74,AK59,AM59)),AO59)",0,{"$f":"ADDRESS(41,7,1,1,$D$1)","v":"'Fixed Income Investments'!$G$41"},"='Schedule IIB (EBS)'!L14+'Schedule IIC (EBS)'!L14+(MAX(0,'Schedule IID (EBS)'!L14-'Schedule IID (EBS)'!N14))+'Schedule IIE (EBS)'!L14+'Schedule IIF (EBS)'!L14",{"$f":"IF(_xlfn.FORMULATEXT(INDIRECT(D62))=E62,0,1)","v":0},{"$f":"ADDRESS(14,18,1,1,$G$1)","v":"'Equity Investments'!$R$14"},"=MAX(D14-E14,0)+(F14-G14)+MAX(H14-I14,0)+(L14-J14)",0,null,null,null,{"$f":"ADDRESS(13,16,1,1,$M$1)","v":"'Currency Risk'!$P$13"},"='Schedule XXA'!AD11",0,{"$f":"ADDRESS(26,6,1,1,$P$1)","v":"'Concentration Risk'!$F$26"},"=MAX(0,(D26*E26))",{"$f":"IF(_xlfn.FORMULATEXT(INDIRECT(P62))=Q62,0,1)","v":0},{"$f":"ADDRESS(11,13,1,1,$S$1)","v":"'Geographic Diversification'!$M$11"},"=+'Schedule IVE (EBS)'!I11",0,{"$f":"ADDRESS(47,4,1,1,$V$1)","v":"'Credit Risk'!$D$47"},"='Premium Risk'!Q59",0,{"$f":"ADDRESS(15,4,1,1,$Y$1)","v":"'Premium Risk'!$D$15"},"='Schedule IVD (EBS)'!Q13",{"$f":"IF(_xlfn.FORMULATEXT(INDIRECT(Y62))=Z62,0,1)","v":0},{"$f":"ADDRESS(22,4,1,1,$AB$1)","v":"'Reserve Risk'!$D$22"},"=+'Schedule III (EBS)'!D21",{"$f":"IF(_xlfn.FORMULATEXT(INDIRECT(AB62))=AC62,0,1)","v":0}]
[{"$f":"ADDRESS(59,33,1,1,$A$1)","v":"Summary!$AG$59"},"=IF(AP59=\"\",IF(Test_Statistic<$AJ$74,AJ59,IF(Test_Statistic<$AL$74,AL59,AN59)),AP59)",0,{"$f":"ADDRESS(41,8,1,1,$D$1)","v":"'Fixed Income Investments'!$H$41"},5.0000000000000001E-3,{"$f":"IF(INDIRECT(D63)=E63,0,1)","v":0},{"$f":"ADDRESS(15,4,1,1,$G$1)","v":"'Equity Investments'!$D$15"},"='Schedule IIB (EBS)'!D43+'Schedule IIC (EBS)'!D43+'Schedule IID (EBS)'!D43+'Schedule IIE (EBS)'!D43+'Schedule IIF (EBS)'!D43",0,null,null,null,{"$f":"ADDRESS(13,17,1,1,$M$1)","v":"'Currency Risk'!$Q$13"},"='Schedule XXA'!AF11",0,{"$f":"ADDRESS(27,2,1,1,$P$1)","v":"'Concentration Risk'!$B$27"},"BSCR Rating 4",{"$f":"IF(INDIRECT(P63)=Q63,0,1)","v":0},{"$f":"ADDRESS(11,14,1,1,$S$1)","v":"'Geographic Diversification'!$N$11"},"=+'Schedule IVE (EBS)'!J11",0,{"$f":"ADDRESS(48,4,1,1,$V$1)","v":"'Credit Risk'!$D$48"},"='Premium Risk'!N59",0,{"$f":"ADDRESS(15,5,1,1,$Y$1)","v":"'Premium Risk'!$E$15"},"='Schedule IVD (EBS)'!O13",0,{"$f":"ADDRESS(22,5,1,1,$AB$1)","v":"'Reserve Risk'!$E$22"},"=+'Schedule III (EBS)'!F21",{"$f":"IF(_xlfn.FORMULATEXT(INDIRECT(AB63))=AC63,0,1)","v":0}]
[{"$f":"ADDRESS(59,35,1,1,$A$1)","v":"Summary!$AI$59"},"=IF(AC63>0.6,300,300)",0,{"$f":"ADDRESS(41,9,1,1,$D$1)","v":"'Fixed Income Investments'!$I$41"},"=IF(G41<0,0,G41*H41)",{"$f":"IF(_xlfn.FORMULATEXT(INDIRECT(D64))=E64,0,1)","v":0},{"$f":"ADDRESS(15,5,1,1,$G$1)","v":"'Equity Investments'!$E$15"},"='Schedule IIB (EBS)'!F43+'Schedule IIC (EBS)'!F43+'Schedule IID (EBS)'!F43+'Schedule IIE (EBS)'!F43+'Schedule IIF (EBS)'!F43",0,null,null,null,{"$f":"ADDRESS(13,18,1,1,$M$1)","v":"'Currency Risk'!$R$13"},"=IF('Schedule XXA'!AH11=0,Q13,'Schedule XXA'!AH11)",0,{"$f":"ADDRESS(27,4,1,1,$P$1)","v":"'Concentration Risk'!$D$27"},"=SUMIFS('Schedule XXIA'!$M$8:$M$57,'Schedule XXIA'!$K$8:$K$57,$D$22,'Schedule XXIA'!$L$8:$L$57,$B27)",{"$f":"IF(_xlfn.FORMULATEXT(INDIRECT(P64))=Q64,0,1)","v":0},{"$f":"ADDRESS(11,15,1,1,$S$1)","v":"'Geographic Diversification'!$O$11"},"=+'Schedule IVE (EBS)'!K11",0,{"$f":"ADDRESS(49,4,1,1,$V$1)","v":"'Credit Risk'!$D$49"},"=D47-D48",0,{"$f":"ADDRESS(15,6,1,1,$Y$1)","v":"'Premium Risk'!$F$15"},"='Geographic Diversification'!H13",0,{"$f":"ADDRESS(22,6,1,1,$AB$1)","v":"'Reserve Risk'!$F$22"},"='Geographic Diversification'!H51",{"$f":"IF(_xlfn.FORMULATEXT(INDIRECT(AB64))=AC64,0,1)","v":0}]
[{"$f":"ADDRESS(59,36,1,1,$A$1)","v":"Summary!$AJ$59"},"=IF(AC65>1,90,IF(AC63>1,60,IF(AC63>0.6,90,60)))",0,{"$f":"ADDRESS(42,7,1,1,$D$1)","v":"'Fixed Income Investments'!$G$42"},"='Schedule IIB (EBS)'!L15+'Schedule IIC (EBS)'!L15+(MAX(0,'Schedule IID (EBS)'!L15-'Schedule IID (EBS)'!N15))+'Schedule IIE (EBS)'!L15+'Schedule IIF (EBS)'!L15",{"$f":"IF(_xlfn.FORMULATEXT(INDIRECT(D65))=E65,0,1)","v":0},{"$f":"ADDRESS(15,6,1,1,$G$1)","v":"'Equity Investments'!$F$15"},"='Schedule IIB (EBS)'!H43+'Schedule IIC (EBS)'!H43+'Schedule IID (EBS)'!H43+'Schedule IIE (EBS)'!H43+'Schedule IIF (EBS)'!H43",0,null,null,null,{"$f":"ADDRESS(13,20,1,1,$M$1)","v":"'Currency Risk'!$T$13"},"=(C13-L13)+(D13-M13)+(F13-O13)+MAX(E13-N13,0)+MAX(G13-P13,0)",0,{"$f":"ADDRESS(27,5,1,1,$P$1)","v":"'Concentration Risk'!$E$27"},"=+'Fixed Income Investments (Prior'!E16",{"$f":"IF(_xlfn.FORMULATEXT(INDIRECT(P65))=Q65,0,1)","v":0},{"$f":"ADDRESS(11,16,1,1,$S$1)","v":"'Geographic Diversification'!$P$11"},"=+'Schedule IVE (EBS)'!L11",0,{"$f":"ADDRESS(51,4,1,1,$V$1)","v":"'Credit Risk'!$D$51"},"=IF($F$38<>0, $D$49*F28/$F$38, 0)",0,{"$f":"ADDRESS(15,7,1,1,$Y$1)","v":"'Premium Risk'!$G$15"},"=IF(IFERROR(F15/E15,1)<0,1,IFERROR(F15/E15,1))",0,{"$f":"ADDRESS(22,7,1,1,$AB$1)","v":"'Reserve Risk'!$G$22"},0.43018098459069698,{"$f":"IF(INDIRECT(AB65)=AC65,0,1)","v":0}]
[{"$f":"ADDRESS(59,37,1,1,$A$1)","v":"Summary!$AK$59"},300,{"$f":"IF(INDIRECT(A66)=B66,0,1)","v":0},{"$f":"ADDRESS(42,8,1,1,$D$1)","v":"'Fixed Income Investments'!$H$42"},0.01,{"$f":"IF(INDIRECT(D66)=E66,0,1)","v":0},{"$f":"ADDRESS(15,7,1,1,$G$1)","v":"'Equity Investments'!$G$15"},"='Schedule IIB (EBS)'!J43+'Schedule IIC (EBS)'!J43+'Schedule IID (EBS)'!J43+'Schedule IIE (EBS)'!J43+'Schedule IIF (EBS)'!J43",0,null,null,null,{"$f":"ADDRESS(13,21,1,1,$M$1)","v":"'Currency Risk'!$U$13"},"=Q13-$H13",0,{"$f":"ADDRESS(27,6,1,1,$P$1)","v":"'Concentration Risk'!$F$27"},"=MAX(0,(D27*E27))",{"$f":"IF(_xlfn.FORMULATEXT(INDIRECT(P66))=Q66,0,1)","v":0},{"$f":"ADDRESS(11,17,1,1,$S$1)","v":"'Geographic Diversification'!$Q$11"},"=+'Schedule IVE (EBS)'!M11",0,{"$f":"ADDRESS(51,6,1,1,$V$1)","v":"'Credit Risk'!$F$51"},"=IF($D$61=0,0,D51/$D$61)",0,{"$f":"ADDRESS(15,8,1,1,$Y$1)","v":"'Premium Risk'!$H$15"},"='Schedule IVD (EBS)'!I13*$G15",0,{"$f":"ADDRESS(22,8,1,1,$AB$1)","v":"'Reserve Risk'!$H$22"},"=IF($F$22<0,0,$F$22*$G$22)",{"$f":"IF(_xlfn.FORMULATEXT(INDIRECT(AB66))=AC66,0,1)","v":0}]
[{"$f":"ADDRESS(59,38,1,1,$A$1)","v":"Summary!$AL$59"},120,{"$f":"IF(INDIRECT(A67)=B67,0,1)","v":0},{"$f":"ADDRESS(42,9,1,1,$D$1)","v":"'Fixed Income Investments'!$I$42"},"=IF(G42<0,0,G42*H42)",{"$f":"IF(_xlfn.FORMULATEXT(INDIRECT(D67))=E67,0,1)","v":0},{"$f":"ADDRESS(15,8,1,1,$G$1)","v":"'Equity Investments'!$H$15"},"='Schedule IIB (EBS)'!L43+'Schedule IIC (EBS)'!L43+'Schedule IID (EBS)'!L43+'Schedule IIE (EBS)'!L43+'Schedule IIF (EBS)'!L43",0,null,null,null,{"$f":"ADDRESS(13,22,1,1,$M$1)","v":"'Currency Risk'!$V$13"},"=R13-$H13",0,{"$f":"ADDRESS(28,2,1,1,$P$1)","v":"'Concentration Risk'!$B$28"},"BSCR Rating 5",{"$f":"IF(INDIRECT(P67)=Q67,0,1)","v":0},{"$f":"ADDRESS(11,18,1,1,$S$1)","v":"'Geographic Diversification'!$R$11"},"=+'Schedule IVE (EBS)'!N11",0,{"$f":"ADDRESS(51,7,1,1,$V$1)","v":"'Credit Risk'!$G$51"},0,{"$f":"IF(INDIRECT(V67)=W67,0,1)","v":0},{"$f":"ADDRESS(15,9,1,1,$Y$1)","v":"'Premium Risk'!$I$15"},"='Schedule IVD (EBS)'!K13*$G15",0,{"$f":"ADDRESS(23,4,1,1,$AB$1)","v":"'Reserve Risk'!$D$23"},"=+'Schedule III (EBS)'!D22",{"$f":"IF(_xlfn.FORMULATEXT(INDIRECT(AB67))=AC67,0,1)","v":0}]
[{"$f":"ADDRESS(59,39,1,1,$A$1)","v":"Summary!$AM$59"},280,{"$f":"IF(INDIRECT(A68)=B68,0,1)","v":0},{"$f":"ADDRESS(43,7,1,1,$D$1)","v":"'Fixed Income Investments'!$G$43"},"='Schedule IIB (EBS)'!L16+'Schedule IIC (EBS)'!L16+(MAX(0,'Schedule IID (EBS)'!L16-'Schedule IID (EBS)'!N16))+'Schedule IIE (EBS)'!L16+'Schedule IIF (EBS)'!L16",{"$f":"IF(_xlfn.FORMULATEXT(INDIRECT(D68))=E68,0,1)","v":0},{"$f":"ADDRESS(15,9,1,1,$G$1)","v":"'Equity Investments'!$I$15"},"='Schedule IIB (EBS)'!N43+'Schedule IIC (EBS)'!N43+'Schedule IID (EBS)'!N43+'Schedule IIE (EBS)'!N43+'Schedule IIF (EBS)'!N43",0,null,null,null,{"$f":"ADDRESS(13,24,1,1,$M$1)","v":"'Currency Risk'!$X$13"},"=MAX(0,$T13+U13+(J13*I13))",0,{"$f":"ADDRESS(28,4,1,1,$P$1)","v":"'Concentration Risk'!$D$28"},"=SUMIFS('Schedule XXIA'!$M$8:$M$57,'Schedule XXIA'!$K$8:$K$57,$D$22,'Schedule XXIA'!$L$8:$L$57,$B28)",{"$f":"IF(_xlfn.FORMULATEXT(INDIRECT(P68))=Q68,0,1)","v":0},{"$f":"ADDRESS(11,19,1,1,$S$1)","v":"'Geographic Diversification'!$S$11"},"=+'Schedule IVE (EBS)'!O11",{"$f":"IF(_xlfn.FORMULATEXT(INDIRECT(S68))=T68,0,1)","v":0},{"$f":"ADDRESS(51,8,1,1,$V$1)","v":"'Credit Risk'!$H$51"},"=IF($D$49<0,0,$D$49*F51*G51)",{"$f":"IF(_xlfn.FORMULATEXT(INDIRECT(V68))=W68,0,1)","v":0},{"$f":"ADDRESS(15,10,1,1,$Y$1)","v":"'Premium Risk'!$J$15"},"='Schedule IVD (EBS)'!M13*$G15",0,{"$f":"ADDRESS(23,5,1,1,$AB$1)","v":"'Reserve Risk'!$E$23"},"=+'Schedule III (EBS)'!F22",{"$f":"IF(_xlfn.FORMULATEXT(INDIRECT(AB68))=AC68,0,1)","v":0}]
[{"$f":"ADDRESS(59,40,1,1,$A$1)","v":"Summary!$AN$59"},140,{"$f":"IF(INDIRECT(A69)=B69,0,1)","v":0},{"$f":"ADDRESS(43,8,1,1,$D$1)","v":"'Fixed Income Investments'!$H$43"},1.7999999999999999E-2,{"$f":"IF(INDIRECT(D69)=E69,0,1)","v":0},{"$f":"ADDRESS(15,10,1,1,$G$1)","v":"'Equity Investments'!$J$15"},"='Schedule IIB (EBS)'!P43+'Schedule IIC (EBS)'!P43+'Schedule IID (EBS)'!P43+'Schedule IIE (EBS)'!P43+'Schedule IIF (EBS)'!P43",0,null,null,null,{"$f":"ADDRESS(13,25,1,1,$M$1)","v":"'Currency Risk'!$Y$13"},"=MAX(0,$T13+V13+(J13*I13))",0,{"$f":"ADDRESS(28,5,1,1,$P$1)","v":"'Concentration Risk'!$E$28"},"=+'Fixed Income Investments (Prior'!E17",{"$f":"IF(_xlfn.FORMULATEXT(INDIRECT(P69))=Q69,0,1)","v":0},{"$f":"ADDRESS(11,20,1,1,$S$1)","v":"'Geographic Diversification'!$T$11"},"=+'Schedule IVE (EBS)'!P11",0,{"$f":"ADDRESS(52,4,1,1,$V$1)","v":"'Credit Risk'!$D$52"},"=IF($F$38<>0, $D$49*F29/$F$38, 0)",{"$f":"IF(_xlfn.FORMULATEXT(INDIRECT(V69))=W69,0,1)","v":0},{"$f":"ADDRESS(15,11,1,1,$Y$1)","v":"'Premium Risk'!$K$15"},0.41221262895987398,{"$f":"IF(INDIRECT(Y69)=Z69,0,1)","v":0},{"$f":"ADDRESS(23,6,1,1,$AB$1)","v":"'Reserve Risk'!$F$23"},"='Geographic Diversification'!H52",{"$f":"IF(_xlfn.FORMULATEXT(INDIRECT(AB69))=AC69,0,1)","v":0}]
[{"$f":"ADDRESS(60,3,1,1,$A$1)","v":"Summary!$C$60"},"Interest Rate / Liquidity Risk",{"$f":"IF(INDIRECT(A70)=B70,0,1)","v":0},{"$f":"ADDRESS(43,9,1,1,$D$1)","v":"'Fixed Income Investments'!$I$43"},"=IF(G43<0,0,G43*H43)",{"$f":"IF(_xlfn.FORMULATEXT(INDIRECT(D70))=E70,0,1)","v":0},{"$f":"ADDRESS(15,11,1,1,$G$1)","v":"'Equity Investments'!$K$15"},"='Schedule IIB (EBS)'!R43+'Schedule IIC (EBS)'!R43+'Schedule IID (EBS)'!R43+'Schedule IIE (EBS)'!R43+'Schedule IIF (EBS)'!R43",0,null,null,null,{"$f":"ADDRESS(14,2,1,1,$M$1)","v":"'Currency Risk'!$B$14"},"='Schedule XXA'!B12",0,{"$f":"ADDRESS(28,6,1,1,$P$1)","v":"'Concentration Risk'!$F$28"},"=MAX(0,(D28*E28))",{"$f":"IF(_xlfn.FORMULATEXT(INDIRECT(P70))=Q70,0,1)","v":0},{"$f":"ADDRESS(11,21,1,1,$S$1)","v":"'Geographic Diversification'!$U$11"},"=+'Schedule IVE (EBS)'!Q11",0,{"$f":"ADDRESS(52,6,1,1,$V$1)","v":"'Credit Risk'!$F$52"},"=IF($D$61=0,0,D52/$D$61)",{"$f":"IF(_xlfn.FORMULATEXT(INDIRECT(V70))=W70,0,1)","v":0},{"$f":"ADDRESS(15,12,1,1,$Y$1)","v":"'Premium Risk'!$L$15"},"=+K15*S15",{"$f":"IF(_xlfn.FORMULATEXT(INDIRECT(Y70))=Z70,0,1)","v":0},{"$f":"ADDRESS(23,7,1,1,$AB$1)","v":"'Reserve Risk'!$G$23"},0.48842309052279498,{"$f":"IF(INDIRECT(AB70)=AC70,0,1)","v":0}]
[{"$f":"ADDRESS(60,7,1,1,$A$1)","v":"Summary!$G$60"},"=ROUND('Interest Rate-Liquidity Risk'!G14,$N$166)",{"$f":"IF(_xlfn.FORMULATEXT(INDIRECT(A71))=B71,0,1)","v":0},{"$f":"ADDRESS(44,7,1,1,$D$1)","v":"'Fixed Income Investments'!$G$44"},"='Schedule IIB (EBS)'!L17+'Schedule IIC (EBS)'!L17+(MAX(0,'Schedule IID (EBS)'!L17-'Schedule IID (EBS)'!N17))+'Schedule IIE (EBS)'!L17+'Schedule IIF (EBS)'!L17",{"$f":"IF(_xlfn.FORMULATEXT(INDIRECT(D71))=E71,0,1)","v":0},{"$f":"ADDRESS(15,12,1,1,$G$1)","v":"'Equity Investments'!$L$15"},"='Schedule IIB (EBS)'!T43+'Schedule IIC (EBS)'!T43+'Schedule IID (EBS)'!T43+'Schedule IIE (EBS)'!T43+'Schedule IIF (EBS)'!T43",0,null,null,null,{"$f":"ADDRESS(14,3,1,1,$M$1)","v":"'Currency Risk'!$C$14"},"='Schedule XXA'!D12",0,{"$f":"ADDRESS(29,2,1,1,$P$1)","v":"'Concentration Risk'!$B$29"},"BSCR Rating 6",{"$f":"IF(INDIRECT(P71)=Q71,0,1)","v":0},{"$f":"ADDRESS(11,22,1,1,$S$1)","v":"'Geographic Diversification'!$V$11"},"=+'Schedule IVE (EBS)'!R11",0,{"$f":"ADDRESS(52,7,1,1,$V$1)","v":"'Credit Risk'!$G$52"},7.0000000000000001E-3,{"$f":"IF(INDIRECT(V71)=W71,0,1)","v":0},{"$f":"ADDRESS(15,13,1,1,$Y$1)","v":"'Premium Risk'!$M$15"},"=+L15*T15",{"$f":"IF(_xlfn.FORMULATEXT(INDIRECT(Y71))=Z71,0,1)","v":0},{"$f":"ADDRESS(23,8,1,1,$AB$1)","v":"'Reserve Risk'!$H$23"},"=IF($F$23<0,0,$F$23*$G$23)",{"$f":"IF(_xlfn.FORMULATEXT(INDIRECT(AB71))=AC71,0,1)","v":0}]
[{"$f":"ADDRESS(60,11,1,1,$A$1)","v":"Summary!$K$60"},"=ROUND(IF(E60=\"Duration-Based Approach\",'Interest Rate-Liquidity Risk'!G14,'Interest Rate-Liquidity (Rev.)'!E117),$N$166)",0,{"$f":"ADDRESS(44,8,1,1,$D$1)","v":"'Fixed Income Investments'!$H$44"},3.5000000000000003E-2,{"$f":"IF(INDIRECT(D72)=E72,0,1)","v":0},{"$f":"ADDRESS(15,16,1,1,$G$1)","v":"'Equity Investments'!$P$15"},"=MAX(D15-E15,0)+(F15-G15)+MAX(H15-I15,0)+(K15-J15)",{"$f":"IF(_xlfn.FORMULATEXT(INDIRECT(G72))=H72,0,1)","v":0},null,null,null,{"$f":"ADDRESS(14,4,1,1,$M$1)","v":"'Currency Risk'!$D$14"},"='Schedule XXA'!F12",0,{"$f":"ADDRESS(29,4,1,1,$P$1)","v":"'Concentration Risk'!$D$29"},"=SUMIFS('Schedule XXIA'!$M$8:$M$57,'Schedule XXIA'!$K$8:$K$57,$D$22,'Schedule XXIA'!$L$8:$L$57,$B29)",{"$f":"IF(_xlfn.FORMULATEXT(INDIRECT(P72))=Q72,0,1)","v":0},{"$f":"ADDRESS(11,23,1,1,$S$1)","v":"'Geographic Diversification'!$W$11"},"=+'Schedule IVE (EBS)'!S11",0,{"$f":"ADDRESS(52,8,1,1,$V$1)","v":"'Credit Risk'!$H$52"},"=IF($D$49<0,0,$D$49*F52*G52)",{"$f":"IF(_xlfn.FORMULATEXT(INDIRECT(V72))=W72,0,1)","v":0},{"$f":"ADDRESS(15,14,1,1,$Y$1)","v":"'Premium Risk'!$N$15"},"=IF($H15<0,0,$H15*$K15)+IF($I15<0,0,$I15*$L15)+IF($J15<0,0,$J15*$M15)",{"$f":"IF(_xlfn.FORMULATEXT(INDIRECT(Y72))=Z72,0,1)","v":0},{"$f":"ADDRESS(24,4,1,1,$AB$1)","v":"'Reserve Risk'!$D$24"},"=+'Schedule III (EBS)'!D23",{"$f":"IF(_xlfn.FORMULATEXT(INDIRECT(AB72))=AC72,0,1)","v":0}]
[{"$f":"ADDRESS(60,13,1,1,$A$1)","v":"Summary!$M$60"},"=ROUND(IF(E60=\"Duration-Based Approach\",'Interest Rate-Liquidity Risk'!G14,'Interest Rate-Liquidity (Rev.)'!D117),$N$166)",0,{"$f":"ADDRESS(44,9,1,1,$D$1)","v":"'Fixed Income Investments'!$I$44"},"=IF(G44<0,0,G44*H44)",{"$f":"IF(_xlfn.FORMULATEXT(INDIRECT(D73))=E73,0,1)","v":0},{"$f":"ADDRESS(15,18,1,1,$G$1)","v":"'Equity Investments'!$R$15"},"=MAX(D15-E15,0)+(F15-G15)+MAX(H15-I15,0)+(L15-J15)",0,null,null,null,{"$f":"ADDRESS(14,5,1,1,$M$1)","v":"'Currency Risk'!$E$14"},"='Schedule XXA'!H12",0,{"$f":"ADDRESS(29,5,1,1,$P$1)","v":"'Concentration Risk'!$E$29"},"=+'Fixed Income Investments (Prior'!E18",{"$f":"IF(_xlfn.FORMULATEXT(INDIRECT(P73))=Q73,0,1)","v":0},{"$f":"ADDRESS(11,24,1,1,$S$1)","v":"'Geographic Diversification'!$X$11"},"=+'Schedule IVE (EBS)'!T11",0,{"$f":"ADDRESS(53,4,1,1,$V$1)","v":"'Credit Risk'!$D$53"},"=IF($F$38<>0, $D$49*F30/$F$38, 0)",{"$f":"IF(_xlfn.FORMULATEXT(INDIRECT(V73))=W73,0,1)","v":0},{"$f":"ADDRESS(15,17,1,1,$Y$1)","v":"'Premium Risk'!$Q$15"},"=IF(H15=E15,MAX(D15*K15,0),IF(E15=F15,IF(D15<0,0,D15*(H15/F15)*K15),IF(D15<0,0,D15*(H15/E15)*K15)))\n+IF(I15=E15,MAX(D15*L15,0),IF(E15=F15,IF(D15<0,0,D15*(I15/F15)*L15),IF(D15<0,0,D15*(I15/E15)*L15)))\n+IF(J15=E15,MAX(D15*M15,0),IF(E15=F15,IF(D15<0,0,D15*(J15/F15)*M15),IF(D15<0,0,D15*(J15/E15)*M15)))",{"$f":"IF(_xlfn.FORMULATEXT(INDIRECT(Y73))=Z73,0,1)","v":0},{"$f":"ADDRESS(24,5,1,1,$AB$1)","v":"'Reserve Risk'!$E$24"},"=+'Schedule III (EBS)'!F23",{"$f":"IF(_xlfn.FORMULATEXT(INDIRECT(AB73))=AC73,0,1)","v":0}]
[{"$f":"ADDRESS(60,20,1,1,$A$1)","v":"Summary!$T$60"},"=C60",0,{"$f":"ADDRESS(45,7,1,1,$D$1)","v":"'Fixed Income Investments'!$G$45"},"='Schedule IIB (EBS)'!L18+'Schedule IIC (EBS)'!L18+(MAX(0,'Schedule IID (EBS)'!L18-'Schedule IID (EBS)'!N18))+'Schedule IIE (EBS)'!L18+'Schedule IIF (EBS)'!L18",{"$f":"IF(_xlfn.FORMULATEXT(INDIRECT(D74))=E74,0,1)","v":0},{"$f":"ADDRESS(16,4,1,1,$G$1)","v":"'Equity Investments'!$D$16"},"='Schedule IIB (EBS)'!D44+'Schedule IIC (EBS)'!D44+'Schedule IID (EBS)'!D44+'Schedule IIE (EBS)'!D44+'Schedule IIF (EBS)'!D44",0,null,null,null,{"$f":"ADDRESS(14,6,1,1,$M$1)","v":"'Currency Risk'!$F$14"},"='Schedule XXA'!J12",0,{"$f":"ADDRESS(29,6,1,1,$P$1)","v":"'Concentration Risk'!$F$29"},"=MAX(0,(D29*E29))",{"$f":"IF(_xlfn.FORMULATEXT(INDIRECT(P74))=Q74,0,1)","v":0},{"$f":"ADDRESS(11,25,1,1,$S$1)","v":"'Geographic Diversification'!$Y$11"},"=+'Schedule IVE (EBS)'!U11",0,{"$f":"ADDRESS(53,6,1,1,$V$1)","v":"'Credit Risk'!$F$53"},"=IF($D$61=0,0,D53/$D$61)",{"$f":"IF(_xlfn.FORMULATEXT(INDIRECT(V74))=W74,0,1)","v":0},{"$f":"ADDRESS(15,19,1,1,$Y$1)","v":"'Premium Risk'!$S$15"},0.3,{"$f":"IF(INDIRECT(Y74)=Z74,0,1)","v":0},{"$f":"ADDRESS(24,6,1,1,$AB$1)","v":"'Reserve Risk'!$F$24"},"='Geographic Diversification'!H53",{"$f":"IF(_xlfn.FORMULATEXT(INDIRECT(AB74))=AC74,0,1)","v":0}]
[{"$f":"ADDRESS(60,24,1,1,$A$1)","v":"Summary!$X$60"},"=G60",0,{"$f":"ADDRESS(45,8,1,1,$D$1)","v":"'Fixed Income Investments'!$H$45"},0.1,{"$f":"IF(INDIRECT(D75)=E75,0,1)","v":0},{"$f":"ADDRESS(16,5,1,1,$G$1)","v":"'Equity Investments'!$E$16"},"='Schedule IIB (EBS)'!F44+'Schedule IIC (EBS)'!F44+'Schedule IID (EBS)'!F44+'Schedule IIE (EBS)'!F44+'Schedule IIF (EBS)'!F44",0,null,null,null,{"$f":"ADDRESS(14,7,1,1,$M$1)","v":"'Currency Risk'!$G$14"},"='Schedule XXA'!L12",0,{"$f":"ADDRESS(30,2,1,1,$P$1)","v":"'Concentration Risk'!$B$30"},"BSCR Rating 7",{"$f":"IF(INDIRECT(P75)=Q75,0,1)","v":0},{"$f":"ADDRESS(11,26,1,1,$S$1)","v":"'Geographic Diversification'!$Z$11"},"=+'Schedule IVE (EBS)'!V11",0,{"$f":"ADDRESS(53,7,1,1,$V$1)","v":"'Credit Risk'!$G$53"},1.4999999999999999E-2,{"$f":"IF(INDIRECT(V75)=W75,0,1)","v":0},{"$f":"ADDRESS(15,20,1,1,$Y$1)","v":"'Premium Risk'!$T$15"},0.5,{"$f":"IF(INDIRECT(Y75)=Z75,0,1)","v":0},{"$f":"ADDRESS(24,7,1,1,$AB$1)","v":"'Reserve Risk'!$G$24"},0.462752832710698,{"$f":"IF(INDIRECT(AB75)=AC75,0,1)","v":0}]
[{"$f":"ADDRESS(60,25,1,1,$A$1)","v":"Summary!$Y$60"},"=IF($L$74=0,1/9,X60/$X$68)",0,{"$f":"ADDRESS(45,9,1,1,$D$1)","v":"'Fixed Income Investments'!$I$45"},"=IF(G45<0,0,G45*H45)",{"$f":"IF(_xlfn.FORMULATEXT(INDIRECT(D76))=E76,0,1)","v":0},{"$f":"ADDRESS(16,6,1,1,$G$1)","v":"'Equity Investments'!$F$16"},"='Schedule IIB (EBS)'!H44+'Schedule IIC (EBS)'!H44+'Schedule IID (EBS)'!H44+'Schedule IIE (EBS)'!H44+'Schedule IIF (EBS)'!H44",0,null,null,null,{"$f":"ADDRESS(14,8,1,1,$M$1)","v":"'Currency Risk'!$H$14"},"='Schedule XXA'!N12",0,{"$f":"ADDRESS(30,4,1,1,$P$1)","v":"'Concentration Risk'!$D$30"},"=SUMIFS('Schedule XXIA'!$M$8:$M$57,'Schedule XXIA'!$K$8:$K$57,$D$22,'Schedule XXIA'!$L$8:$L$57,$B30)",{"$f":"IF(_xlfn.FORMULATEXT(INDIRECT(P76))=Q76,0,1)","v":0},{"$f":"ADDRESS(12,4,1,1,$S$1)","v":"'Geographic Diversification'!$D$12"},"=SUM(I12:Z12)",0,{"$f":"ADDRESS(53,8,1,1,$V$1)","v":"'Credit Risk'!$H$53"},"=IF($D$49<0,0,$D$49*F53*G53)",{"$f":"IF(_xlfn.FORMULATEXT(INDIRECT(V76))=W76,0,1)","v":0},{"$f":"ADDRESS(16,4,1,1,$Y$1)","v":"'Premium Risk'!$D$16"},"='Schedule IVD (EBS)'!Q14",{"$f":"IF(_xlfn.FORMULATEXT(INDIRECT(Y76))=Z76,0,1)","v":0},{"$f":"ADDRESS(24,8,1,1,$AB$1)","v":"'Reserve Risk'!$H$24"},"=IF($F$24<0,0,$F$24*$G$24)",{"$f":"IF(_xlfn.FORMULATEXT(INDIRECT(AB76))=AC76,0,1)","v":0}]
[{"$f":"ADDRESS(60,26,1,1,$A$1)","v":"Summary!$Z$60"},"=M60",0,{"$f":"ADDRESS(46,7,1,1,$D$1)","v":"'Fixed Income Investments'!$G$46"},"='Schedule IIB (EBS)'!L19+'Schedule IIC (EBS)'!L19+(MAX(0,'Schedule IID (EBS)'!L19-'Schedule IID (EBS)'!N19))+'Schedule IIE (EBS)'!L19+'Schedule IIF (EBS)'!L19",{"$f":"IF(_xlfn.FORMULATEXT(INDIRECT(D77))=E77,0,1)","v":0},{"$f":"ADDRESS(16,7,1,1,$G$1)","v":"'Equity Investments'!$G$16"},"='Schedule IIB (EBS)'!J44+'Schedule IIC (EBS)'!J44+'Schedule IID (EBS)'!J44+'Schedule IIE (EBS)'!J44+'Schedule IIF (EBS)'!J44",0,null,null,null,{"$f":"ADDRESS(14,9,1,1,$M$1)","v":"'Currency Risk'!$I$14"},"=$I$10*H14",0,{"$f":"ADDRESS(30,5,1,1,$P$1)","v":"'Concentration Risk'!$E$30"},"=+'Fixed Income Investments (Prior'!E19",{"$f":"IF(_xlfn.FORMULATEXT(INDIRECT(P77))=Q77,0,1)","v":0},{"$f":"ADDRESS(12,5,1,1,$S$1)","v":"'Geographic Diversification'!$E$12"},"=SUMSQ(I12:Z12)",0,{"$f":"ADDRESS(54,4,1,1,$V$1)","v":"'Credit Risk'!$D$54"},"=IF($F$38<>0, $D$49*F31/$F$38, 0)",{"$f":"IF(_xlfn.FORMULATEXT(INDIRECT(V77))=W77,0,1)","v":0},{"$f":"ADDRESS(16,5,1,1,$Y$1)","v":"'Premium Risk'!$E$16"},"='Schedule IVD (EBS)'!O14",0,{"$f":"ADDRESS(25,4,1,1,$AB$1)","v":"'Reserve Risk'!$D$25"},"=+'Schedule III (EBS)'!D24",{"$f":"IF(_xlfn.FORMULATEXT(INDIRECT(AB77))=AC77,0,1)","v":0}]
[{"$f":"ADDRESS(60,27,1,1,$A$1)","v":"Summary!$AA$60"},"=IF($N$74=0,1/9,Z60/$Z$68)",0,{"$f":"ADDRESS(46,8,1,1,$D$1)","v":"'Fixed Income Investments'!$H$46"},0.2,{"$f":"IF(INDIRECT(D78)=E78,0,1)","v":0},{"$f":"ADDRESS(16,8,1,1,$G$1)","v":"'Equity Investments'!$H$16"},"='Schedule IIB (EBS)'!L44+'Schedule IIC (EBS)'!L44+'Schedule IID (EBS)'!L44+'Schedule IIE (EBS)'!L44+'Schedule IIF (EBS)'!L44",0,null,null,null,{"$f":"ADDRESS(14,10,1,1,$M$1)","v":"'Currency Risk'!$J$14"},"=IF($B$12=\"Qatar Riyals\",IF((SUM(C14:G14))>(H14+I14),0%,5%),IF($B$12=\"United States Dollars\",IF((C14+E14)>(H14+I14),0%,5%),IF((SUM(C14:G14))>(H14+I14),0%,25%)))",0,{"$f":"ADDRESS(30,6,1,1,$P$1)","v":"'Concentration Risk'!$F$30"},"=MAX(0,(D30*E30))",{"$f":"IF(_xlfn.FORMULATEXT(INDIRECT(P78))=Q78,0,1)","v":0},{"$f":"ADDRESS(12,6,1,1,$S$1)","v":"'Geographic Diversification'!$F$12"},"=(IF(D12>0,E12/D12^2,1))",0,{"$f":"ADDRESS(54,6,1,1,$V$1)","v":"'Credit Risk'!$F$54"},"=IF($D$61=0,0,D54/$D$61)",{"$f":"IF(_xlfn.FORMULATEXT(INDIRECT(V78))=W78,0,1)","v":0},{"$f":"ADDRESS(16,6,1,1,$Y$1)","v":"'Premium Risk'!$F$16"},"='Geographic Diversification'!H14",0,{"$f":"ADDRESS(25,5,1,1,$AB$1)","v":"'Reserve Risk'!$E$25"},"=+'Schedule III (EBS)'!F24",{"$f":"IF(_xlfn.FORMULATEXT(INDIRECT(AB78))=AC78,0,1)","v":0}]
[{"$f":"ADDRESS(60,29,1,1,$A$1)","v":"Summary!$AC$60"},"=(SUM(AA$58:AA60)/AA$68)",0,{"$f":"ADDRESS(46,9,1,1,$D$1)","v":"'Fixed Income Investments'!$I$46"},"=IF(G46<0,0,G46*H46)",{"$f":"IF(_xlfn.FORMULATEXT(INDIRECT(D79))=E79,0,1)","v":0},{"$f":"ADDRESS(16,9,1,1,$G$1)","v":"'Equity Investments'!$I$16"},"='Schedule IIB (EBS)'!N44+'Schedule IIC (EBS)'!N44+'Schedule IID (EBS)'!N44+'Schedule IIE (EBS)'!N44+'Schedule IIF (EBS)'!N44",0,null,null,null,{"$f":"ADDRESS(14,12,1,1,$M$1)","v":"'Currency Risk'!$L$14"},"='Schedule XXA'!V12",0,{"$f":"ADDRESS(31,2,1,1,$P$1)","v":"'Concentration Risk'!$B$31"},"BSCR Rating 8",{"$f":"IF(INDIRECT(P79)=Q79,0,1)","v":0},{"$f":"ADDRESS(12,7,1,1,$S$1)","v":"'Geographic Diversification'!$G$12"},"=D12*(0.75+0.25*F12)",0,{"$f":"ADDRESS(54,7,1,1,$V$1)","v":"'Credit Risk'!$G$54"},3.5000000000000003E-2,{"$f":"IF(INDIRECT(V79)=W79,0,1)","v":0},{"$f":"ADDRESS(16,7,1,1,$Y$1)","v":"'Premium Risk'!$G$16"},"=IF(IFERROR(F16/E16,1)<0,1,IFERROR(F16/E16,1))",0,{"$f":"ADDRESS(25,6,1,1,$AB$1)","v":"'Reserve Risk'!$F$25"},"='Geographic Diversification'!H54",{"$f":"IF(_xlfn.FORMULATEXT(INDIRECT(AB79))=AC79,0,1)","v":0}]
[{"$f":"ADDRESS(60,32,1,1,$A$1)","v":"Summary!$AF$60"},"=IF(AO60=\"\",IF(Test_Statistic<$AJ$74,AI60,IF(Test_Statistic<$AL$74,AK60,AM60)),AO60)",0,{"$f":"ADDRESS(47,7,1,1,$D$1)","v":"'Fixed Income Investments'!$G$47"},"='Schedule IIB (EBS)'!L20+'Schedule IIC (EBS)'!L20+(MAX(0,'Schedule IID (EBS)'!L20-'Schedule IID (EBS)'!N20))+'Schedule IIE (EBS)'!L20+'Schedule IIF (EBS)'!L20",{"$f":"IF(_xlfn.FORMULATEXT(INDIRECT(D80))=E80,0,1)","v":0},{"$f":"ADDRESS(16,10,1,1,$G$1)","v":"'Equity Investments'!$J$16"},"='Schedule IIB (EBS)'!P44+'Schedule IIC (EBS)'!P44+'Schedule IID (EBS)'!P44+'Schedule IIE (EBS)'!P44+'Schedule IIF (EBS)'!P44",0,null,null,null,{"$f":"ADDRESS(14,13,1,1,$M$1)","v":"'Currency Risk'!$M$14"},"='Schedule XXA'!X12",0,{"$f":"ADDRESS(31,4,1,1,$P$1)","v":"'Concentration Risk'!$D$31"},"=SUMIFS('Schedule XXIA'!$M$8:$M$57,'Schedule XXIA'!$K$8:$K$57,$D$22,'Schedule XXIA'!$L$8:$L$57,$B31)",{"$f":"IF(_xlfn.FORMULATEXT(INDIRECT(P80))=Q80,0,1)","v":0},{"$f":"ADDRESS(12,8,1,1,$S$1)","v":"'Geographic Diversification'!$H$12"},"=IF('Schedule IVE (EBS)'!AB12=\"True\",G12,'Schedule IVD (EBS)'!O12)",0,{"$f":"ADDRESS(54,8,1,1,$V$1)","v":"'Credit Risk'!$H$54"},"=IF($D$49<0,0,$D$49*F54*G54)",{"$f":"IF(_xlfn.FORMULATEXT(INDIRECT(V80))=W80,0,1)","v":0},{"$f":"ADDRESS(16,8,1,1,$Y$1)","v":"'Premium Risk'!$H$16"},"='Schedule IVD (EBS)'!I14*$G16",0,{"$f":"ADDRESS(25,7,1,1,$AB$1)","v":"'Reserve Risk'!$G$25"},0.51484129765284703,{"$f":"IF(INDIRECT(AB80)=AC80,0,1)","v":0}]
[{"$f":"ADDRESS(60,35,1,1,$A$1)","v":"Summary!$AI$60"},"=IF(AC63>0.6,300,300)",0,{"$f":"ADDRESS(47,8,1,1,$D$1)","v":"'Fixed Income Investments'!$H$47"},0.3,{"$f":"IF(INDIRECT(D81)=E81,0,1)","v":0},{"$f":"ADDRESS(16,11,1,1,$G$1)","v":"'Equity Investments'!$K$16"},"='Schedule IIB (EBS)'!R44+'Schedule IIC (EBS)'!R44+'Schedule IID (EBS)'!R44+'Schedule IIE (EBS)'!R44+'Schedule IIF (EBS)'!R44",0,null,null,null,{"$f":"ADDRESS(14,14,1,1,$M$1)","v":"'Currency Risk'!$N$14"},"='Schedule XXA'!Z12",0,{"$f":"ADDRESS(31,5,1,1,$P$1)","v":"'Concentration Risk'!$E$31"},"=+'Fixed Income Investments (Prior'!E20",{"$f":"IF(_xlfn.FORMULATEXT(INDIRECT(P81))=Q81,0,1)","v":0},{"$f":"ADDRESS(12,9,1,1,$S$1)","v":"'Geographic Diversification'!$I$12"},"=+'Schedule IVE (EBS)'!E12",0,{"$f":"ADDRESS(55,4,1,1,$V$1)","v":"'Credit Risk'!$D$55"},"=IF($F$38<>0, $D$49*F32/$F$38, D49)",{"$f":"IF(_xlfn.FORMULATEXT(INDIRECT(V81))=W81,0,1)","v":0},{"$f":"ADDRESS(16,9,1,1,$Y$1)","v":"'Premium Risk'!$I$16"},"='Schedule IVD (EBS)'!K14*$G16",0,{"$f":"ADDRESS(25,8,1,1,$AB$1)","v":"'Reserve Risk'!$H$25"},"=IF($F$25<0,0,$F$25*$G$25)",{"$f":"IF(_xlfn.FORMULATEXT(INDIRECT(AB81))=AC81,0,1)","v":0}]
[{"$f":"ADDRESS(60,36,1,1,$A$1)","v":"Summary!$AJ$60"},"=IF(AC65>1,140,IF(AC63>1,120,IF(AC63>0.6,150,100)))",0,{"$f":"ADDRESS(47,9,1,1,$D$1)","v":"'Fixed Income Investments'!$I$47"},"=IF(G47<0,0,G47*H47)",{"$f":"IF(_xlfn.FORMULATEXT(INDIRECT(D82))=E82,0,1)","v":0},{"$f":"ADDRESS(16,12,1,1,$G$1)","v":"'Equity Investments'!$L$16"},"='Schedule IIB (EBS)'!T44+'Schedule IIC (EBS)'!T44+'Schedule IID (EBS)'!T44+'Schedule IIE (EBS)'!T44+'Schedule IIF (EBS)'!T44",0,null,null,null,{"$f":"ADDRESS(14,15,1,1,$M$1)","v":"'Currency Risk'!$O$14"},"='Schedule XXA'!AB12",0,{"$f":"ADDRESS(31,6,1,1,$P$1)","v":"'Concentration Risk'!$F$31"},"=MAX(0,(D31*E31))",{"$f":"IF(_xlfn.FORMULATEXT(INDIRECT(P82))=Q82,0,1)","v":0},{"$f":"ADDRESS(12,10,1,1,$S$1)","v":"'Geographic Diversification'!$J$12"},"=+'Schedule IVE (EBS)'!F12",0,{"$f":"ADDRESS(55,6,1,1,$V$1)","v":"'Credit Risk'!$F$55"},"=IF($D$61=0,0,D55/$D$61)",{"$f":"IF(_xlfn.FORMULATEXT(INDIRECT(V82))=W82,0,1)","v":0},{"$f":"ADDRESS(16,10,1,1,$Y$1)","v":"'Premium Risk'!$J$16"},"='Schedule IVD (EBS)'!M14*$G16",0,{"$f":"ADDRESS(26,4,1,1,$AB$1)","v":"'Reserve Risk'!$D$26"},"=+'Schedule III (EBS)'!D25",{"$f":"IF(_xlfn.FORMULATEXT(INDIRECT(AB82))=AC82,0,1)","v":0}]
[{"$f":"ADDRESS(60,37,1,1,$A$1)","v":"Summary!$AK$60"},"=IF(Test_Statistic_2<0.95,280,260)",0,{"$f":"ADDRESS(48,7,1,1,$D$1)","v":"'Fixed Income Investments'!$G$48"},"='Schedule IIB (EBS)'!L21+'Schedule IIC (EBS)'!L21+(MAX(0,'Schedule IID (EBS)'!L21-'Schedule IID (EBS)'!N21))+'Schedule IIE (EBS)'!L21+'Schedule IIF (EBS)'!L21",{"$f":"IF(_xlfn.FORMULATEXT(INDIRECT(D83))=E83,0,1)","v":0},{"$f":"ADDRESS(16,16,1,1,$G$1)","v":"'Equity Investments'!$P$16"},"=MAX(D16-E16,0)+(F16-G16)+MAX(H16-I16,0)+(K16-J16)",0,null,null,null,{"$f":"ADDRESS(14,16,1,1,$M$1)","v":"'Currency Risk'!$P$14"},"='Schedule XXA'!AD12",0,{"$f":"ADDRESS(33,4,1,1,$P$1)","v":"'Concentration Risk'!$D$33"},"=SUM(D22:D31)",{"$f":"IF(_xlfn.FORMULATEXT(INDIRECT(P83))=Q83,0,1)","v":0},{"$f":"ADDRESS(12,11,1,1,$S$1)","v":"'Geographic Diversification'!$K$12"},"=+'Schedule IVE (EBS)'!G12",0,{"$f":"ADDRESS(55,7,1,1,$V$1)","v":"'Credit Risk'!$G$55"},7.0000000000000007E-2,{"$f":"IF(INDIRECT(V83)=W83,0,1)","v":0},{"$f":"ADDRESS(16,11,1,1,$Y$1)","v":"'Premium Risk'!$K$16"},0.48178449435856302,{"$f":"IF(INDIRECT(Y83)=Z83,0,1)","v":0},{"$f":"ADDRESS(26,5,1,1,$AB$1)","v":"'Reserve Risk'!$E$26"},"=+'Schedule III (EBS)'!F25",{"$f":"IF(_xlfn.FORMULATEXT(INDIRECT(AB83))=AC83,0,1)","v":0}]
[{"$f":"ADDRESS(60,38,1,1,$A$1)","v":"Summary!$AL$60"},"=IF(Test_Statistic_2<0.95,170,200)",0,{"$f":"ADDRESS(48,8,1,1,$D$1)","v":"'Fixed Income Investments'!$H$48"},0.35,{"$f":"IF(INDIRECT(D84)=E84,0,1)","v":0},{"$f":"ADDRESS(16,18,1,1,$G$1)","v":"'Equity Investments'!$R$16"},"=MAX(D16-E16,0)+(F16-G16)+MAX(H16-I16,0)+(L16-J16)",0,null,null,null,{"$f":"ADDRESS(14,17,1,1,$M$1)","v":"'Currency Risk'!$Q$14"},"='Schedule XXA'!AF12",0,{"$f":"ADDRESS(33,6,1,1,$P$1)","v":"'Concentration Risk'!$F$33"},"=SUM(F22:F31)",{"$f":"IF(_xlfn.FORMULATEXT(INDIRECT(P84))=Q84,0,1)","v":0},{"$f":"ADDRESS(12,12,1,1,$S$1)","v":"'Geographic Diversification'!$L$12"},"=+'Schedule IVE (EBS)'!H12",0,{"$f":"ADDRESS(55,8,1,1,$V$1)","v":"'Credit Risk'!$H$55"},"=IF($D$49<0,0,$D$49*F55*G55)",{"$f":"IF(_xlfn.FORMULATEXT(INDIRECT(V84))=W84,0,1)","v":0},{"$f":"ADDRESS(16,12,1,1,$Y$1)","v":"'Premium Risk'!$L$16"},"=+K16*S16",{"$f":"IF(_xlfn.FORMULATEXT(INDIRECT(Y84))=Z84,0,1)","v":0},{"$f":"ADDRESS(26,6,1,1,$AB$1)","v":"'Reserve Risk'!$F$26"},"='Geographic Diversification'!H55",{"$f":"IF(_xlfn.FORMULATEXT(INDIRECT(AB84))=AC84,0,1)","v":0}]
[{"$f":"ADDRESS(60,39,1,1,$A$1)","v":"Summary!$AM$60"},180,{"$f":"IF(INDIRECT(A85)=B85,0,1)","v":0},{"$f":"ADDRESS(48,9,1,1,$D$1)","v":"'Fixed Income Investments'!$I$48"},"=IF(G48<0,0,G48*H48)",{"$f":"IF(_xlfn.FORMULATEXT(INDIRECT(D85))=E85,0,1)","v":0},{"$f":"ADDRESS(17,4,1,1,$G$1)","v":"'Equity Investments'!$D$17"},"='Schedule IIB (EBS)'!D45+'Schedule IIC (EBS)'!D45+'Schedule IID (EBS)'!D45+'Schedule IIE (EBS)'!D45+'Schedule IIF (EBS)'!D45",0,null,null,null,{"$f":"ADDRESS(14,18,1,1,$M$1)","v":"'Currency Risk'!$R$14"},"=IF('Schedule XXA'!AH12=0,Q14,'Schedule XXA'!AH12)",0,{"$f":"ADDRESS(35,4,1,1,$P$1)","v":"'Concentration Risk'!$D$35"},"Residential Mortgage-Backed Securities",{"$f":"IF(INDIRECT(P85)=Q85,0,1)","v":0},{"$f":"ADDRESS(12,13,1,1,$S$1)","v":"'Geographic Diversification'!$M$12"},"=+'Schedule IVE (EBS)'!I12",0,{"$f":"ADDRESS(56,4,1,1,$V$1)","v":"'Credit Risk'!$D$56"},"=IF($F$38<>0, $D$49*F33/$F$38, 0)",{"$f":"IF(_xlfn.FORMULATEXT(INDIRECT(V85))=W85,0,1)","v":0},{"$f":"ADDRESS(16,13,1,1,$Y$1)","v":"'Premium Risk'!$M$16"},"=+L16*T16",{"$f":"IF(_xlfn.FORMULATEXT(INDIRECT(Y85))=Z85,0,1)","v":0},{"$f":"ADDRESS(26,7,1,1,$AB$1)","v":"'Reserve Risk'!$G$26"},0.46506790223690597,{"$f":"IF(INDIRECT(AB85)=AC85,0,1)","v":0}]
[{"$f":"ADDRESS(61,7,1,1,$A$1)","v":"Summary!$G$61"},"=+'Currency Risk (old)'!I28",{"$f":"IF(_xlfn.FORMULATEXT(INDIRECT(A86))=B86,0,1)","v":0},{"$f":"ADDRESS(51,7,1,1,$D$1)","v":"'Fixed Income Investments'!$G$51"},"=SUM(G41:G48)",{"$f":"IF(_xlfn.FORMULATEXT(INDIRECT(D86))=E86,0,1)","v":0},{"$f":"ADDRESS(17,5,1,1,$G$1)","v":"'Equity Investments'!$E$17"},"='Schedule IIB (EBS)'!F45+'Schedule IIC (EBS)'!F45+'Schedule IID (EBS)'!F45+'Schedule IIE (EBS)'!F45+'Schedule IIF (EBS)'!F45",0,null,null,null,{"$f":"ADDRESS(14,20,1,1,$M$1)","v":"'Currency Risk'!$T$14"},"=(C14-L14)+(D14-M14)+(F14-O14)+MAX(E14-N14,0)+MAX(G14-P14,0)",0,{"$f":"ADDRESS(36,2,1,1,$P$1)","v":"'Concentration Risk'!$B$36"},"BSCR Rating 0",{"$f":"IF(INDIRECT(P86)=Q86,0,1)","v":0},{"$f":"ADDRESS(12,14,1,1,$S$1)","v":"'Geographic Diversification'!$N$12"},"=+'Schedule IVE (EBS)'!J12",0,{"$f":"ADDRESS(56,6,1,1,$V$1)","v":"'Credit Risk'!$F$56"},"=IF($D$61=0,0,D56/$D$61)",{"$f":"IF(_xlfn.FORMULATEXT(INDIRECT(V86))=W86,0,1)","v":0},{"$f":"ADDRESS(16,14,1,1,$Y$1)","v":"'Premium Risk'!$N$16"},"=IF($H16<0,0,$H16*$K16)+IF($I16<0,0,$I16*$L16)+IF($J16<0,0,$J16*$M16)",{"$f":"IF(_xlfn.FORMULATEXT(INDIRECT(Y86))=Z86,0,1)","v":0},{"$f":"ADDRESS(26,8,1,1,$AB$1)","v":"'Reserve Risk'!$H$26"},"=IF($F$26<0,0,$F$26*$G$26)",{"$f":"IF(_xlfn.FORMULATEXT(INDIRECT(AB86))=AC86,0,1)","v":0}]
[{"$f":"ADDRESS(61,11,1,1,$A$1)","v":"Summary!$K$61"},"='Currency Risk'!Y39",0,{"$f":"ADDRESS(51,9,1,1,$D$1)","v":"'Fixed Income Investments'!$I$51"},"=IF(SUM(I41:I48)>=0,SUM(I41:I48),0)",{"$f":"IF(_xlfn.FORMULATEXT(INDIRECT(D87))=E87,0,1)","v":0},{"$f":"ADDRESS(17,6,1,1,$G$1)","v":"'Equity Investments'!$F$17"},"='Schedule IIB (EBS)'!H45+'Schedule IIC (EBS)'!H45+'Schedule IID (EBS)'!H45+'Schedule IIE (EBS)'!H45+'Schedule IIF (EBS)'!H45",0,null,null,null,{"$f":"ADDRESS(14,21,1,1,$M$1)","v":"'Currency Risk'!$U$14"},"=Q14-$H14",0,{"$f":"ADDRESS(36,4,1,1,$P$1)","v":"'Concentration Risk'!$D$36"},"=SUMIFS('Schedule XXIA'!$M$8:$M$57,'Schedule XXIA'!$K$8:$K$57,$D$35,'Schedule XXIA'!$L$8:$L$57,$B36)",{"$f":"IF(_xlfn.FORMULATEXT(INDIRECT(P87))=Q87,0,1)","v":0},{"$f":"ADDRESS(12,15,1,1,$S$1)","v":"'Geographic Diversification'!$O$12"},"=+'Schedule IVE (EBS)'!K12",0,{"$f":"ADDRESS(56,7,1,1,$V$1)","v":"'Credit Risk'!$G$56"},0.12,{"$f":"IF(INDIRECT(V87)=W87,0,1)","v":0},{"$f":"ADDRESS(16,17,1,1,$Y$1)","v":"'Premium Risk'!$Q$16"},"=IF(H16=E16,MAX(D16*K16,0),IF(E16=F16,IF(D16<0,0,D16*(H16/F16)*K16),IF(D16<0,0,D16*(H16/E16)*K16)))\n+IF(I16=E16,MAX(D16*L16,0),IF(E16=F16,IF(D16<0,0,D16*(I16/F16)*L16),IF(D16<0,0,D16*(I16/E16)*L16)))\n+IF(J16=E16,MAX(D16*M16,0),IF(E16=F16,IF(D16<0,0,D16*(J16/F16)*M16),IF(D16<0,0,D16*(J16/E16)*M16)))",{"$f":"IF(_xlfn.FORMULATEXT(INDIRECT(Y87))=Z87,0,1)","v":0},{"$f":"ADDRESS(27,4,1,1,$AB$1)","v":"'Reserve Risk'!$D$27"},"=+'Schedule III (EBS)'!D26",{"$f":"IF(_xlfn.FORMULATEXT(INDIRECT(AB87))=AC87,0,1)","v":0}]
[{"$f":"ADDRESS(61,13,1,1,$A$1)","v":"Summary!$M$61"},"='Currency Risk'!X39",0,{"$f":"ADDRESS(56,7,1,1,$D$1)","v":"'Fixed Income Investments'!$G$56"},"='Schedule IIB (EBS)'!P13+'Schedule IIC (EBS)'!P13+(MAX(0,'Schedule IID (EBS)'!P13-'Schedule IID (EBS)'!R13))+'Schedule IIE (EBS)'!P13+'Schedule IIF (EBS)'!P13",{"$f":"IF(_xlfn.FORMULATEXT(INDIRECT(D88))=E88,0,1)","v":0},{"$f":"ADDRESS(17,7,1,1,$G$1)","v":"'Equity Investments'!$G$17"},"='Schedule IIB (EBS)'!J45+'Schedule IIC (EBS)'!J45+'Schedule IID (EBS)'!J45+'Schedule IIE (EBS)'!J45+'Schedule IIF (EBS)'!J45",0,null,null,null,{"$f":"ADDRESS(14,22,1,1,$M$1)","v":"'Currency Risk'!$V$14"},"=R14-$H14",0,{"$f":"ADDRESS(36,5,1,1,$P$1)","v":"'Concentration Risk'!$E$36"},0,{"$f":"IF(INDIRECT(P88)=Q88,0,1)","v":0},{"$f":"ADDRESS(12,16,1,1,$S$1)","v":"'Geographic Diversification'!$P$12"},"=+'Schedule IVE (EBS)'!L12",0,{"$f":"ADDRESS(56,8,1,1,$V$1)","v":"'Credit Risk'!$H$56"},"=IF($D$49<0,0,$D$49*F56*G56)",{"$f":"IF(_xlfn.FORMULATEXT(INDIRECT(V88))=W88,0,1)","v":0},{"$f":"ADDRESS(16,19,1,1,$Y$1)","v":"'Premium Risk'!$S$16"},0.3,{"$f":"IF(INDIRECT(Y88)=Z88,0,1)","v":0},{"$f":"ADDRESS(27,5,1,1,$AB$1)","v":"'Reserve Risk'!$E$27"},"=+'Schedule III (EBS)'!F26",{"$f":"IF(_xlfn.FORMULATEXT(INDIRECT(AB88))=AC88,0,1)","v":0}]
[{"$f":"ADDRESS(61,24,1,1,$A$1)","v":"Summary!$X$61"},"=G61",0,{"$f":"ADDRESS(56,8,1,1,$D$1)","v":"'Fixed Income Investments'!$H$56"},0,{"$f":"IF(INDIRECT(D89)=E89,0,1)","v":0},{"$f":"ADDRESS(17,8,1,1,$G$1)","v":"'Equity Investments'!$H$17"},"='Schedule IIB (EBS)'!L45+'Schedule IIC (EBS)'!L45+'Schedule IID (EBS)'!L45+'Schedule IIE (EBS)'!L45+'Schedule IIF (EBS)'!L45",0,null,null,null,{"$f":"ADDRESS(14,24,1,1,$M$1)","v":"'Currency Risk'!$X$14"},"=MAX(0,$T14+U14+(J14*I14))",0,{"$f":"ADDRESS(36,6,1,1,$P$1)","v":"'Concentration Risk'!$F$36"},"=MAX(0,(D36*E36))",{"$f":"IF(_xlfn.FORMULATEXT(INDIRECT(P89))=Q89,0,1)","v":0},{"$f":"ADDRESS(12,17,1,1,$S$1)","v":"'Geographic Diversification'!$Q$12"},"=+'Schedule IVE (EBS)'!M12",0,{"$f":"ADDRESS(57,4,1,1,$V$1)","v":"'Credit Risk'!$D$57"},"=IF($F$38<>0, $D$49*F34/$F$38, 0)",{"$f":"IF(_xlfn.FORMULATEXT(INDIRECT(V89))=W89,0,1)","v":0},{"$f":"ADDRESS(16,20,1,1,$Y$1)","v":"'Premium Risk'!$T$16"},0.5,{"$f":"IF(INDIRECT(Y89)=Z89,0,1)","v":0},{"$f":"ADDRESS(27,6,1,1,$AB$1)","v":"'Reserve Risk'!$F$27"},"='Geographic Diversification'!H56",{"$f":"IF(_xlfn.FORMULATEXT(INDIRECT(AB89))=AC89,0,1)","v":0}]
[{"$f":"ADDRESS(61,25,1,1,$A$1)","v":"Summary!$Y$61"},"=IF($L$74=0,1/9,X61/$X$68)",0,{"$f":"ADDRESS(56,9,1,1,$D$1)","v":"'Fixed Income Investments'!$I$56"},"=IF(G56<0,0,G56*H56)",{"$f":"IF(_xlfn.FORMULATEXT(INDIRECT(D90))=E90,0,1)","v":0},{"$f":"ADDRESS(17,9,1,1,$G$1)","v":"'Equity Investments'!$I$17"},"='Schedule IIB (EBS)'!N45+'Schedule IIC (EBS)'!N45+'Schedule IID (EBS)'!N45+'Schedule IIE (EBS)'!N45+'Schedule IIF (EBS)'!N45",0,null,null,null,{"$f":"ADDRESS(14,25,1,1,$M$1)","v":"'Currency Risk'!$Y$14"},"=MAX(0,$T14+V14+(J14*I14))",0,{"$f":"ADDRESS(37,2,1,1,$P$1)","v":"'Concentration Risk'!$B$37"},"BSCR Rating 1",{"$f":"IF(INDIRECT(P90)=Q90,0,1)","v":0},{"$f":"ADDRESS(12,18,1,1,$S$1)","v":"'Geographic Diversification'!$R$12"},"=+'Schedule IVE (EBS)'!N12",0,{"$f":"ADDRESS(57,6,1,1,$V$1)","v":"'Credit Risk'!$F$57"},"=IF($D$61=0,0,D57/$D$61)",{"$f":"IF(_xlfn.FORMULATEXT(INDIRECT(V90))=W90,0,1)","v":0},{"$f":"ADDRESS(17,4,1,1,$Y$1)","v":"'Premium Risk'!$D$17"},"='Schedule IVD (EBS)'!Q15",{"$f":"IF(_xlfn.FORMULATEXT(INDIRECT(Y90))=Z90,0,1)","v":0},{"$f":"ADDRESS(27,7,1,1,$AB$1)","v":"'Reserve Risk'!$G$27"},0.482760284027479,{"$f":"IF(INDIRECT(AB90)=AC90,0,1)","v":0}]
[{"$f":"ADDRESS(61,26,1,1,$A$1)","v":"Summary!$Z$61"},"=M61",0,{"$f":"ADDRESS(57,7,1,1,$D$1)","v":"'Fixed Income Investments'!$G$57"},"='Schedule IIB (EBS)'!P14+'Schedule IIC (EBS)'!P14+(MAX(0,'Schedule IID (EBS)'!P14-'Schedule IID (EBS)'!R14))+'Schedule IIE (EBS)'!P14+'Schedule IIF (EBS)'!P14",{"$f":"IF(_xlfn.FORMULATEXT(INDIRECT(D91))=E91,0,1)","v":0},{"$f":"ADDRESS(17,10,1,1,$G$1)","v":"'Equity Investments'!$J$17"},"='Schedule IIB (EBS)'!P45+'Schedule IIC (EBS)'!P45+'Schedule IID (EBS)'!P45+'Schedule IIE (EBS)'!P45+'Schedule IIF (EBS)'!P45",0,null,null,null,{"$f":"ADDRESS(15,2,1,1,$M$1)","v":"'Currency Risk'!$B$15"},"='Schedule XXA'!B13",0,{"$f":"ADDRESS(37,4,1,1,$P$1)","v":"'Concentration Risk'!$D$37"},"=SUMIFS('Schedule XXIA'!$M$8:$M$57,'Schedule XXIA'!$K$8:$K$57,$D$35,'Schedule XXIA'!$L$8:$L$57,$B37)",{"$f":"IF(_xlfn.FORMULATEXT(INDIRECT(P91))=Q91,0,1)","v":0},{"$f":"ADDRESS(12,19,1,1,$S$1)","v":"'Geographic Diversification'!$S$12"},"=+'Schedule IVE (EBS)'!O12",0,{"$f":"ADDRESS(57,7,1,1,$V$1)","v":"'Credit Risk'!$G$57"},0.2,{"$f":"IF(INDIRECT(V91)=W91,0,1)","v":0},{"$f":"ADDRESS(17,5,1,1,$Y$1)","v":"'Premium Risk'!$E$17"},"='Schedule IVD (EBS)'!O15",0,{"$f":"ADDRESS(27,8,1,1,$AB$1)","v":"'Reserve Risk'!$H$27"},"=IF($F$27<0,0,$F$27*$G$27)",{"$f":"IF(_xlfn.FORMULATEXT(INDIRECT(AB91))=AC91,0,1)","v":0}]
[{"$f":"ADDRESS(61,27,1,1,$A$1)","v":"Summary!$AA$61"},"=IF($N$74=0,1/9,Z61/$Z$68)",0,{"$f":"ADDRESS(57,8,1,1,$D$1)","v":"'Fixed Income Investments'!$H$57"},4.0000000000000001E-3,{"$f":"IF(INDIRECT(D92)=E92,0,1)","v":0},{"$f":"ADDRESS(17,11,1,1,$G$1)","v":"'Equity Investments'!$K$17"},"='Schedule IIB (EBS)'!R45+'Schedule IIC (EBS)'!R45+'Schedule IID (EBS)'!R45+'Schedule IIE (EBS)'!R45+'Schedule IIF (EBS)'!R45",0,null,null,null,{"$f":"ADDRESS(15,3,1,1,$M$1)","v":"'Currency Risk'!$C$15"},"='Schedule XXA'!D13",0,{"$f":"ADDRESS(37,5,1,1,$P$1)","v":"'Concentration Risk'!$E$37"},"=+'Fixed Income Investments (Prior'!E27",{"$f":"IF(_xlfn.FORMULATEXT(INDIRECT(P92))=Q92,0,1)","v":0},{"$f":"ADDRESS(12,20,1,1,$S$1)","v":"'Geographic Diversification'!$T$12"},"=+'Schedule IVE (EBS)'!P12",0,{"$f":"ADDRESS(57,8,1,1,$V$1)","v":"'Credit Risk'!$H$57"},"=IF($D$49<0,0,$D$49*F57*G57)",{"$f":"IF(_xlfn.FORMULATEXT(INDIRECT(V92))=W92,0,1)","v":0},{"$f":"ADDRESS(17,6,1,1,$Y$1)","v":"'Premium Risk'!$F$17"},"='Geographic Diversification'!H15",0,{"$f":"ADDRESS(28,4,1,1,$AB$1)","v":"'Reserve Risk'!$D$28"},"=+'Schedule III (EBS)'!D27",{"$f":"IF(_xlfn.FORMULATEXT(INDIRECT(AB92))=AC92,0,1)","v":0}]
[{"$f":"ADDRESS(61,29,1,1,$A$1)","v":"Summary!$AC$61"},"=(SUM(AA$58:AA61)/AA$68)",0,{"$f":"ADDRESS(57,9,1,1,$D$1)","v":"'Fixed Income Investments'!$I$57"},"=IF(G57<0,0,G57*H57)",{"$f":"IF(_xlfn.FORMULATEXT(INDIRECT(D93))=E93,0,1)","v":0},{"$f":"ADDRESS(17,12,1,1,$G$1)","v":"'Equity Investments'!$L$17"},"='Schedule IIB (EBS)'!T45+'Schedule IIC (EBS)'!T45+'Schedule IID (EBS)'!T45+'Schedule IIE (EBS)'!T45+'Schedule IIF (EBS)'!T45",0,null,null,null,{"$f":"ADDRESS(15,4,1,1,$M$1)","v":"'Currency Risk'!$D$15"},"='Schedule XXA'!F13",0,{"$f":"ADDRESS(37,6,1,1,$P$1)","v":"'Concentration Risk'!$F$37"},"=MAX(0,(D37*E37))",{"$f":"IF(_xlfn.FORMULATEXT(INDIRECT(P93))=Q93,0,1)","v":0},{"$f":"ADDRESS(12,21,1,1,$S$1)","v":"'Geographic Diversification'!$U$12"},"=+'Schedule IVE (EBS)'!Q12",0,{"$f":"ADDRESS(58,4,1,1,$V$1)","v":"'Credit Risk'!$D$58"},"=IF($F$38<>0, $D$49*F35/$F$38, 0)",{"$f":"IF(_xlfn.FORMULATEXT(INDIRECT(V93))=W93,0,1)","v":0},{"$f":"ADDRESS(17,7,1,1,$Y$1)","v":"'Premium Risk'!$G$17"},"=IF(IFERROR(F17/E17,1)<0,1,IFERROR(F17/E17,1))",0,{"$f":"ADDRESS(28,5,1,1,$AB$1)","v":"'Reserve Risk'!$E$28"},"=+'Schedule III (EBS)'!F27",{"$f":"IF(_xlfn.FORMULATEXT(INDIRECT(AB93))=AC93,0,1)","v":0}]
[{"$f":"ADDRESS(62,7,1,1,$A$1)","v":"Summary!$G$62"},"=+'Concentration Risk (Old)'!F111",0,{"$f":"ADDRESS(58,7,1,1,$D$1)","v":"'Fixed Income Investments'!$G$58"},"='Schedule IIB (EBS)'!P15+'Schedule IIC (EBS)'!P15+(MAX(0,'Schedule IID (EBS)'!P15-'Schedule IID (EBS)'!R15))+'Schedule IIE (EBS)'!P15+'Schedule IIF (EBS)'!P15",{"$f":"IF(_xlfn.FORMULATEXT(INDIRECT(D94))=E94,0,1)","v":0},{"$f":"ADDRESS(17,16,1,1,$G$1)","v":"'Equity Investments'!$P$17"},"=MAX(D17-E17,0)+(F17-G17)+MAX(H17-I17,0)+(K17-J17)",0,null,null,null,{"$f":"ADDRESS(15,5,1,1,$M$1)","v":"'Currency Risk'!$E$15"},"='Schedule XXA'!H13",0,{"$f":"ADDRESS(38,2,1,1,$P$1)","v":"'Concentration Risk'!$B$38"},"BSCR Rating 2",{"$f":"IF(INDIRECT(P94)=Q94,0,1)","v":0},{"$f":"ADDRESS(12,22,1,1,$S$1)","v":"'Geographic Diversification'!$V$12"},"=+'Schedule IVE (EBS)'!R12",0,{"$f":"ADDRESS(58,6,1,1,$V$1)","v":"'Credit Risk'!$F$58"},"=IF($D$61=0,0,D58/$D$61)",{"$f":"IF(_xlfn.FORMULATEXT(INDIRECT(V94))=W94,0,1)","v":0},{"$f":"ADDRESS(17,8,1,1,$Y$1)","v":"'Premium Risk'!$H$17"},"='Schedule IVD (EBS)'!I15*$G17",0,{"$f":"ADDRESS(28,6,1,1,$AB$1)","v":"'Reserve Risk'!$F$28"},"='Geographic Diversification'!H57",{"$f":"IF(_xlfn.FORMULATEXT(INDIRECT(AB94))=AC94,0,1)","v":0}]
[{"$f":"ADDRESS(62,11,1,1,$A$1)","v":"Summary!$K$62"},"='Concentration Risk'!F110",0,{"$f":"ADDRESS(58,8,1,1,$D$1)","v":"'Fixed Income Investments'!$H$58"},8.0000000000000002E-3,{"$f":"IF(INDIRECT(D95)=E95,0,1)","v":0},{"$f":"ADDRESS(17,18,1,1,$G$1)","v":"'Equity Investments'!$R$17"},"=MAX(D17-E17,0)+(F17-G17)+MAX(H17-I17,0)+(L17-J17)",0,null,null,null,{"$f":"ADDRESS(15,6,1,1,$M$1)","v":"'Currency Risk'!$F$15"},"='Schedule XXA'!J13",0,{"$f":"ADDRESS(38,4,1,1,$P$1)","v":"'Concentration Risk'!$D$38"},"=SUMIFS('Schedule XXIA'!$M$8:$M$57,'Schedule XXIA'!$K$8:$K$57,$D$35,'Schedule XXIA'!$L$8:$L$57,$B38)",{"$f":"IF(_xlfn.FORMULATEXT(INDIRECT(P95))=Q95,0,1)","v":0},{"$f":"ADDRESS(12,23,1,1,$S$1)","v":"'Geographic Diversification'!$W$12"},"=+'Schedule IVE (EBS)'!S12",0,{"$f":"ADDRESS(58,7,1,1,$V$1)","v":"'Credit Risk'!$G$58"},0.27,{"$f":"IF(INDIRECT(V95)=W95,0,1)","v":0},{"$f":"ADDRESS(17,9,1,1,$Y$1)","v":"'Premium Risk'!$I$17"},"='Schedule IVD (EBS)'!K15*$G17",0,{"$f":"ADDRESS(28,7,1,1,$AB$1)","v":"'Reserve Risk'!$G$28"},0.37080464615634001,{"$f":"IF(INDIRECT(AB95)=AC95,0,1)","v":0}]
[{"$f":"ADDRESS(62,13,1,1,$A$1)","v":"Summary!$M$62"},"='Concentration Risk'!F110",0,{"$f":"ADDRESS(58,9,1,1,$D$1)","v":"'Fixed Income Investments'!$I$58"},"=IF(G58<0,0,G58*H58)",{"$f":"IF(_xlfn.FORMULATEXT(INDIRECT(D96))=E96,0,1)","v":0},{"$f":"ADDRESS(18,4,1,1,$G$1)","v":"'Equity Investments'!$D$18"},"='Schedule IIB (EBS)'!D46+'Schedule IIC (EBS)'!D46+'Schedule IID (EBS)'!D46+'Schedule IIE (EBS)'!D46+'Schedule IIF (EBS)'!D46",0,null,null,null,{"$f":"ADDRESS(15,7,1,1,$M$1)","v":"'Currency Risk'!$G$15"},"='Schedule XXA'!L13",0,{"$f":"ADDRESS(38,5,1,1,$P$1)","v":"'Concentration Risk'!$E$38"},"=+'Fixed Income Investments (Prior'!E28",{"$f":"IF(_xlfn.FORMULATEXT(INDIRECT(P96))=Q96,0,1)","v":0},{"$f":"ADDRESS(12,24,1,1,$S$1)","v":"'Geographic Diversification'!$X$12"},"=+'Schedule IVE (EBS)'!T12",0,{"$f":"ADDRESS(58,8,1,1,$V$1)","v":"'Credit Risk'!$H$58"},"=IF($D$49<0,0,$D$49*F58*G58)",{"$f":"IF(_xlfn.FORMULATEXT(INDIRECT(V96))=W96,0,1)","v":0},{"$f":"ADDRESS(17,10,1,1,$Y$1)","v":"'Premium Risk'!$J$17"},"='Schedule IVD (EBS)'!M15*$G17",0,{"$f":"ADDRESS(28,8,1,1,$AB$1)","v":"'Reserve Risk'!$H$28"},"=IF($F$28<0,0,$F$28*$G$28)",{"$f":"IF(_xlfn.FORMULATEXT(INDIRECT(AB96))=AC96,0,1)","v":0}]
[{"$f":"ADDRESS(62,24,1,1,$A$1)","v":"Summary!$X$62"},"=G62",0,{"$f":"ADDRESS(59,7,1,1,$D$1)","v":"'Fixed Income Investments'!$G$59"},"='Schedule IIB (EBS)'!P16+'Schedule IIC (EBS)'!P16+(MAX(0,'Schedule IID (EBS)'!P16-'Schedule IID (EBS)'!R16))+'Schedule IIE (EBS)'!P16+'Schedule IIF (EBS)'!P16",{"$f":"IF(_xlfn.FORMULATEXT(INDIRECT(D97))=E97,0,1)","v":0},{"$f":"ADDRESS(18,5,1,1,$G$1)","v":"'Equity Investments'!$E$18"},"='Schedule IIB (EBS)'!F46+'Schedule IIC (EBS)'!F46+'Schedule IID (EBS)'!F46+'Schedule IIE (EBS)'!F46+'Schedule IIF (EBS)'!F46",0,null,null,null,{"$f":"ADDRESS(15,8,1,1,$M$1)","v":"'Currency Risk'!$H$15"},"='Schedule XXA'!N13",0,{"$f":"ADDRESS(38,6,1,1,$P$1)","v":"'Concentration Risk'!$F$38"},"=MAX(0,(D38*E38))",{"$f":"IF(_xlfn.FORMULATEXT(INDIRECT(P97))=Q97,0,1)","v":0},{"$f":"ADDRESS(12,25,1,1,$S$1)","v":"'Geographic Diversification'!$Y$12"},"=+'Schedule IVE (EBS)'!U12",0,{"$f":"ADDRESS(59,4,1,1,$V$1)","v":"'Credit Risk'!$D$59"},"=IF($F$38<>0, $D$49*F36/$F$38, 0)",{"$f":"IF(_xlfn.FORMULATEXT(INDIRECT(V97))=W97,0,1)","v":0},{"$f":"ADDRESS(17,11,1,1,$Y$1)","v":"'Premium Risk'!$K$17"},0.48201231799963601,{"$f":"IF(INDIRECT(Y97)=Z97,0,1)","v":0},{"$f":"ADDRESS(29,4,1,1,$AB$1)","v":"'Reserve Risk'!$D$29"},"=+'Schedule III (EBS)'!D28",{"$f":"IF(_xlfn.FORMULATEXT(INDIRECT(AB97))=AC97,0,1)","v":0}]
[{"$f":"ADDRESS(62,25,1,1,$A$1)","v":"Summary!$Y$62"},"=IF($L$74=0,1/9,X62/$X$68)",0,{"$f":"ADDRESS(59,8,1,1,$D$1)","v":"'Fixed Income Investments'!$H$59"},1.4999999999999999E-2,{"$f":"IF(INDIRECT(D98)=E98,0,1)","v":0},{"$f":"ADDRESS(18,6,1,1,$G$1)","v":"'Equity Investments'!$F$18"},"='Schedule IIB (EBS)'!H46+'Schedule IIC (EBS)'!H46+'Schedule IID (EBS)'!H46+'Schedule IIE (EBS)'!H46+'Schedule IIF (EBS)'!H46",0,null,null,null,{"$f":"ADDRESS(15,9,1,1,$M$1)","v":"'Currency Risk'!$I$15"},"=$I$10*H15",0,{"$f":"ADDRESS(39,2,1,1,$P$1)","v":"'Concentration Risk'!$B$39"},"BSCR Rating 3",{"$f":"IF(INDIRECT(P98)=Q98,0,1)","v":0},{"$f":"ADDRESS(12,26,1,1,$S$1)","v":"'Geographic Diversification'!$Z$12"},"=+'Schedule IVE (EBS)'!V12",0,{"$f":"ADDRESS(59,6,1,1,$V$1)","v":"'Credit Risk'!$F$59"},"=IF($D$61=0,0,D59/$D$61)",{"$f":"IF(_xlfn.FORMULATEXT(INDIRECT(V98))=W98,0,1)","v":0},{"$f":"ADDRESS(17,12,1,1,$Y$1)","v":"'Premium Risk'!$L$17"},"=+K17*S17",{"$f":"IF(_xlfn.FORMULATEXT(INDIRECT(Y98))=Z98,0,1)","v":0},{"$f":"ADDRESS(29,5,1,1,$AB$1)","v":"'Reserve Risk'!$E$29"},"=+'Schedule III (EBS)'!F28",{"$f":"IF(_xlfn.FORMULATEXT(INDIRECT(AB98))=AC98,0,1)","v":0}]
[{"$f":"ADDRESS(62,26,1,1,$A$1)","v":"Summary!$Z$62"},"=M62",0,{"$f":"ADDRESS(59,9,1,1,$D$1)","v":"'Fixed Income Investments'!$I$59"},"=IF(G59<0,0,G59*H59)",{"$f":"IF(_xlfn.FORMULATEXT(INDIRECT(D99))=E99,0,1)","v":0},{"$f":"ADDRESS(18,7,1,1,$G$1)","v":"'Equity Investments'!$G$18"},"='Schedule IIB (EBS)'!J46+'Schedule IIC (EBS)'!J46+'Schedule IID (EBS)'!J46+'Schedule IIE (EBS)'!J46+'Schedule IIF (EBS)'!J46",0,null,null,null,{"$f":"ADDRESS(15,10,1,1,$M$1)","v":"'Currency Risk'!$J$15"},"=IF($B$12=\"Hong Kong Dollars\",IF((SUM(C15:G15))>(H15+I15),0%,1%),IF($B$12=\"United States Dollars\",IF((C15+E15)>(H15+I15),0%,1%),IF((SUM(C15:G15))>(H15+I15),0%,25%)))",0,{"$f":"ADDRESS(39,4,1,1,$P$1)","v":"'Concentration Risk'!$D$39"},"=SUMIFS('Schedule XXIA'!$M$8:$M$57,'Schedule XXIA'!$K$8:$K$57,$D$35,'Schedule XXIA'!$L$8:$L$57,$B39)",{"$f":"IF(_xlfn.FORMULATEXT(INDIRECT(P99))=Q99,0,1)","v":0},{"$f":"ADDRESS(13,4,1,1,$S$1)","v":"'Geographic Diversification'!$D$13"},"=SUM(I13:Z13)",0,{"$f":"ADDRESS(59,7,1,1,$V$1)","v":"'Credit Risk'!$G$59"},0.35,{"$f":"IF(INDIRECT(V99)=W99,0,1)","v":0},{"$f":"ADDRESS(17,13,1,1,$Y$1)","v":"'Premium Risk'!$M$17"},"=+L17*T17",{"$f":"IF(_xlfn.FORMULATEXT(INDIRECT(Y99))=Z99,0,1)","v":0},{"$f":"ADDRESS(29,6,1,1,$AB$1)","v":"'Reserve Risk'!$F$29"},"='Geographic Diversification'!H58",{"$f":"IF(_xlfn.FORMULATEXT(INDIRECT(AB99))=AC99,0,1)","v":0}]
[{"$f":"ADDRESS(62,27,1,1,$A$1)","v":"Summary!$AA$62"},"=IF($N$74=0,1/9,Z62/$Z$68)",0,{"$f":"ADDRESS(60,7,1,1,$D$1)","v":"'Fixed Income Investments'!$G$60"},"='Schedule IIB (EBS)'!P17+'Schedule IIC (EBS)'!P17+(MAX(0,'Schedule IID (EBS)'!P17-'Schedule IID (EBS)'!R17))+'Schedule IIE (EBS)'!P17+'Schedule IIF (EBS)'!P17",{"$f":"IF(_xlfn.FORMULATEXT(INDIRECT(D100))=E100,0,1)","v":0},{"$f":"ADDRESS(18,8,1,1,$G$1)","v":"'Equity Investments'!$H$18"},"='Schedule IIB (EBS)'!L46+'Schedule IIC (EBS)'!L46+'Schedule IID (EBS)'!L46+'Schedule IIE (EBS)'!L46+'Schedule IIF (EBS)'!L46",0,null,null,null,{"$f":"ADDRESS(15,12,1,1,$M$1)","v":"'Currency Risk'!$L$15"},"='Schedule XXA'!V13",0,{"$f":"ADDRESS(39,5,1,1,$P$1)","v":"'Concentration Risk'!$E$39"},"=+'Fixed Income Investments (Prior'!E29",{"$f":"IF(_xlfn.FORMULATEXT(INDIRECT(P100))=Q100,0,1)","v":0},{"$f":"ADDRESS(13,5,1,1,$S$1)","v":"'Geographic Diversification'!$E$13"},"=SUMSQ(I13:Z13)",0,{"$f":"ADDRESS(59,8,1,1,$V$1)","v":"'Credit Risk'!$H$59"},"=IF($D$49<0,0,$D$49*F59*G59)",{"$f":"IF(_xlfn.FORMULATEXT(INDIRECT(V100))=W100,0,1)","v":0},{"$f":"ADDRESS(17,14,1,1,$Y$1)","v":"'Premium Risk'!$N$17"},"=IF($H17<0,0,$H17*$K17)+IF($I17<0,0,$I17*$L17)+IF($J17<0,0,$J17*$M17)",{"$f":"IF(_xlfn.FORMULATEXT(INDIRECT(Y100))=Z100,0,1)","v":0},{"$f":"ADDRESS(29,7,1,1,$AB$1)","v":"'Reserve Risk'!$G$29"},0.43541657269369,{"$f":"IF(INDIRECT(AB100)=AC100,0,1)","v":0}]
[{"$f":"ADDRESS(62,29,1,1,$A$1)","v":"Summary!$AC$62"},"=(SUM(AA$58:AA62)/AA$68)",0,{"$f":"ADDRESS(60,8,1,1,$D$1)","v":"'Fixed Income Investments'!$H$60"},0.03,{"$f":"IF(INDIRECT(D101)=E101,0,1)","v":0},{"$f":"ADDRESS(18,9,1,1,$G$1)","v":"'Equity Investments'!$I$18"},"='Schedule IIB (EBS)'!N46+'Schedule IIC (EBS)'!N46+'Schedule IID (EBS)'!N46+'Schedule IIE (EBS)'!N46+'Schedule IIF (EBS)'!N46",0,null,null,null,{"$f":"ADDRESS(15,13,1,1,$M$1)","v":"'Currency Risk'!$M$15"},"='Schedule XXA'!X13",{"$f":"IF(_xlfn.FORMULATEXT(INDIRECT(M101))=N101,0,1)","v":0},{"$f":"ADDRESS(39,6,1,1,$P$1)","v":"'Concentration Risk'!$F$39"},"=MAX(0,(D39*E39))",{"$f":"IF(_xlfn.FORMULATEXT(INDIRECT(P101))=Q101,0,1)","v":0},{"$f":"ADDRESS(13,6,1,1,$S$1)","v":"'Geographic Diversification'!$F$13"},"=(IF(D13>0,E13/D13^2,1))",0,{"$f":"ADDRESS(61,4,1,1,$V$1)","v":"'Credit Risk'!$D$61"},"=SUM(D51:D59)",0,{"$f":"ADDRESS(17,17,1,1,$Y$1)","v":"'Premium Risk'!$Q$17"},"=IF(H17=E17,MAX(D17*K17,0),IF(E17=F17,IF(D17<0,0,D17*(H17/F17)*K17),IF(D17<0,0,D17*(H17/E17)*K17)))\n+IF(I17=E17,MAX(D17*L17,0),IF(E17=F17,IF(D17<0,0,D17*(I17/F17)*L17),IF(D17<0,0,D17*(I17/E17)*L17)))\n+IF(J17=E17,MAX(D17*M17,0),IF(E17=F17,IF(D17<0,0,D17*(J17/F17)*M17),IF(D17<0,0,D17*(J17/E17)*M17)))",{"$f":"IF(_xlfn.FORMULATEXT(INDIRECT(Y101))=Z101,0,1)","v":0},{"$f":"ADDRESS(29,8,1,1,$AB$1)","v":"'Reserve Risk'!$H$29"},"=IF($F$29<0,0,$F$29*$G$29)",{"$f":"IF(_xlfn.FORMULATEXT(INDIRECT(AB101))=AC101,0,1)","v":0}]
[{"$f":"ADDRESS(63,20,1,1,$A$1)","v":"Summary!$T$63"},"=C65",0,{"$f":"ADDRESS(60,9,1,1,$D$1)","v":"'Fixed Income Investments'!$I$60"},"=IF(G60<0,0,G60*H60)",{"$f":"IF(_xlfn.FORMULATEXT(INDIRECT(D102))=E102,0,1)","v":0},{"$f":"ADDRESS(18,10,1,1,$G$1)","v":"'Equity Investments'!$J$18"},"='Schedule IIB (EBS)'!P46+'Schedule IIC (EBS)'!P46+'Schedule IID (EBS)'!P46+'Schedule IIE (EBS)'!P46+'Schedule IIF (EBS)'!P46",0,null,null,null,{"$f":"ADDRESS(15,14,1,1,$M$1)","v":"'Currency Risk'!$N$15"},"='Schedule XXA'!Z13",0,{"$f":"ADDRESS(40,2,1,1,$P$1)","v":"'Concentration Risk'!$B$40"},"BSCR Rating 4",{"$f":"IF(INDIRECT(P102)=Q102,0,1)","v":0},{"$f":"ADDRESS(13,7,1,1,$S$1)","v":"'Geographic Diversification'!$G$13"},"=D13*(0.75+0.25*F13)",0,{"$f":"ADDRESS(61,6,1,1,$V$1)","v":"'Credit Risk'!$F$61"},"=SUM(F51:F59)",0,{"$f":"ADDRESS(17,19,1,1,$Y$1)","v":"'Premium Risk'!$S$17"},0.3,{"$f":"IF(INDIRECT(Y102)=Z102,0,1)","v":0},{"$f":"ADDRESS(30,4,1,1,$AB$1)","v":"'Reserve Risk'!$D$30"},"=+'Schedule III (EBS)'!D29",{"$f":"IF(_xlfn.FORMULATEXT(INDIRECT(AB102))=AC102,0,1)","v":0}]
[{"$f":"ADDRESS(63,24,1,1,$A$1)","v":"Summary!$X$63"},"=G65",0,{"$f":"ADDRESS(61,7,1,1,$D$1)","v":"'Fixed Income Investments'!$G$61"},"='Schedule IIB (EBS)'!P18+'Schedule IIC (EBS)'!P18+(MAX(0,'Schedule IID (EBS)'!P18-'Schedule IID (EBS)'!R18))+'Schedule IIE (EBS)'!P18+'Schedule IIF (EBS)'!P18",{"$f":"IF(_xlfn.FORMULATEXT(INDIRECT(D103))=E103,0,1)","v":0},{"$f":"ADDRESS(18,11,1,1,$G$1)","v":"'Equity Investments'!$K$18"},"='Schedule IIB (EBS)'!R46+'Schedule IIC (EBS)'!R46+'Schedule IID (EBS)'!R46+'Schedule IIE (EBS)'!R46+'Schedule IIF (EBS)'!R46",0,null,null,null,{"$f":"ADDRESS(15,15,1,1,$M$1)","v":"'Currency Risk'!$O$15"},"='Schedule XXA'!AB13",0,{"$f":"ADDRESS(40,4,1,1,$P$1)","v":"'Concentration Risk'!$D$40"},"=SUMIFS('Schedule XXIA'!$M$8:$M$57,'Schedule XXIA'!$K$8:$K$57,$D$35,'Schedule XXIA'!$L$8:$L$57,$B40)",{"$f":"IF(_xlfn.FORMULATEXT(INDIRECT(P103))=Q103,0,1)","v":0},{"$f":"ADDRESS(13,8,1,1,$S$1)","v":"'Geographic Diversification'!$H$13"},"=IF('Schedule IVE (EBS)'!AB13=\"True\",G13,'Schedule IVD (EBS)'!O13)",0,{"$f":"ADDRESS(61,8,1,1,$V$1)","v":"'Credit Risk'!$H$61"},"=SUM(H51:H59)",0,{"$f":"ADDRESS(17,20,1,1,$Y$1)","v":"'Premium Risk'!$T$17"},0.5,{"$f":"IF(INDIRECT(Y103)=Z103,0,1)","v":0},{"$f":"ADDRESS(30,5,1,1,$AB$1)","v":"'Reserve Risk'!$E$30"},"=+'Schedule III (EBS)'!F29",{"$f":"IF(_xlfn.FORMULATEXT(INDIRECT(AB103))=AC103,0,1)","v":0}]
[{"$f":"ADDRESS(63,25,1,1,$A$1)","v":"Summary!$Y$63"},"=IF($L$74=0,1/9,X63/$X$68)",0,{"$f":"ADDRESS(61,8,1,1,$D$1)","v":"'Fixed Income Investments'!$H$61"},0.08,{"$f":"IF(INDIRECT(D104)=E104,0,1)","v":0},{"$f":"ADDRESS(18,12,1,1,$G$1)","v":"'Equity Investments'!$L$18"},"='Schedule IIB (EBS)'!T46+'Schedule IIC (EBS)'!T46+'Schedule IID (EBS)'!T46+'Schedule IIE (EBS)'!T46+'Schedule IIF (EBS)'!T46",0,null,null,null,{"$f":"ADDRESS(15,16,1,1,$M$1)","v":"'Currency Risk'!$P$15"},"='Schedule XXA'!AD13",0,{"$f":"ADDRESS(40,5,1,1,$P$1)","v":"'Concentration Risk'!$E$40"},"=+'Fixed Income Investments (Prior'!E30",{"$f":"IF(_xlfn.FORMULATEXT(INDIRECT(P104))=Q104,0,1)","v":0},{"$f":"ADDRESS(13,9,1,1,$S$1)","v":"'Geographic Diversification'!$I$13"},"=+'Schedule IVE (EBS)'!E13",0,{"$f":"ADDRESS(63,7,1,1,$V$1)","v":"'Credit Risk'!$G$63"},"='Schedule XVIII (EBS)'!O104",0,{"$f":"ADDRESS(18,4,1,1,$Y$1)","v":"'Premium Risk'!$D$18"},"='Schedule IVD (EBS)'!Q16",{"$f":"IF(_xlfn.FORMULATEXT(INDIRECT(Y104))=Z104,0,1)","v":0},{"$f":"ADDRESS(30,6,1,1,$AB$1)","v":"'Reserve Risk'!$F$30"},"='Geographic Diversification'!H59",{"$f":"IF(_xlfn.FORMULATEXT(INDIRECT(AB104))=AC104,0,1)","v":0}]
[{"$f":"ADDRESS(63,26,1,1,$A$1)","v":"Summary!$Z$63"},"=M65",0,{"$f":"ADDRESS(61,9,1,1,$D$1)","v":"'Fixed Income Investments'!$I$61"},"=IF(G61<0,0,G61*H61)",{"$f":"IF(_xlfn.FORMULATEXT(INDIRECT(D105))=E105,0,1)","v":0},{"$f":"ADDRESS(18,16,1,1,$G$1)","v":"'Equity Investments'!$P$18"},"=MAX(D18-E18,0)+(F18-G18)+MAX(H18-I18,0)+(K18-J18)",0,null,null,null,{"$f":"ADDRESS(15,17,1,1,$M$1)","v":"'Currency Risk'!$Q$15"},"='Schedule XXA'!AF13",0,{"$f":"ADDRESS(40,6,1,1,$P$1)","v":"'Concentration Risk'!$F$40"},"=MAX(0,(D40*E40))",{"$f":"IF(_xlfn.FORMULATEXT(INDIRECT(P105))=Q105,0,1)","v":0},{"$f":"ADDRESS(13,10,1,1,$S$1)","v":"'Geographic Diversification'!$J$13"},"=+'Schedule IVE (EBS)'!F13",0,{"$f":"ADDRESS(63,8,1,1,$V$1)","v":"'Credit Risk'!$H$63"},"=SUM(H51:H59)*-('Schedule XVIII (EBS)'!O104)",0,{"$f":"ADDRESS(18,5,1,1,$Y$1)","v":"'Premium Risk'!$E$18"},"='Schedule IVD (EBS)'!O16",0,{"$f":"ADDRESS(30,7,1,1,$AB$1)","v":"'Reserve Risk'!$G$30"},0.43652386132510701,{"$f":"IF(INDIRECT(AB105)=AC105,0,1)","v":0}]
[{"$f":"ADDRESS(63,27,1,1,$A$1)","v":"Summary!$AA$63"},"=IF($N$74=0,1/9,Z63/$Z$68)",0,{"$f":"ADDRESS(62,7,1,1,$D$1)","v":"'Fixed Income Investments'!$G$62"},"='Schedule IIB (EBS)'!P19+'Schedule IIC (EBS)'!P19+(MAX(0,'Schedule IID (EBS)'!P19-'Schedule IID (EBS)'!R19))+'Schedule IIE (EBS)'!P19+'Schedule IIF (EBS)'!P19",{"$f":"IF(_xlfn.FORMULATEXT(INDIRECT(D106))=E106,0,1)","v":0},{"$f":"ADDRESS(18,18,1,1,$G$1)","v":"'Equity Investments'!$R$18"},"=MAX(D18-E18,0)+(F18-G18)+MAX(H18-I18,0)+(L18-J18)",0,null,null,null,{"$f":"ADDRESS(15,18,1,1,$M$1)","v":"'Currency Risk'!$R$15"},"=IF('Schedule XXA'!AH13=0,Q15,'Schedule XXA'!AH13)",0,{"$f":"ADDRESS(41,2,1,1,$P$1)","v":"'Concentration Risk'!$B$41"},"BSCR Rating 5",{"$f":"IF(INDIRECT(P106)=Q106,0,1)","v":0},{"$f":"ADDRESS(13,11,1,1,$S$1)","v":"'Geographic Diversification'!$K$13"},"=+'Schedule IVE (EBS)'!G13",0,{"$f":"ADDRESS(65,8,1,1,$V$1)","v":"'Credit Risk'!$H$65"},"=SUM(H61:H63)",0,{"$f":"ADDRESS(18,6,1,1,$Y$1)","v":"'Premium Risk'!$F$18"},"='Geographic Diversification'!H16",0,{"$f":"ADDRESS(30,8,1,1,$AB$1)","v":"'Reserve Risk'!$H$30"},"=IF($F$30<0,0,$F$30*$G$30)",{"$f":"IF(_xlfn.FORMULATEXT(INDIRECT(AB106))=AC106,0,1)","v":0}]
[{"$f":"ADDRESS(63,29,1,1,$A$1)","v":"Summary!$AC$63"},"=(SUM(AA$58:AA65)/AA$68)",0,{"$f":"ADDRESS(62,8,1,1,$D$1)","v":"'Fixed Income Investments'!$H$62"},0.15,{"$f":"IF(INDIRECT(D107)=E107,0,1)","v":0},{"$f":"ADDRESS(19,4,1,1,$G$1)","v":"'Equity Investments'!$D$19"},"='Schedule IIB (EBS)'!D47+'Schedule IIC (EBS)'!D47+'Schedule IID (EBS)'!D47+'Schedule IIE (EBS)'!D47+'Schedule IIF (EBS)'!D47",0,null,null,null,{"$f":"ADDRESS(15,20,1,1,$M$1)","v":"'Currency Risk'!$T$15"},"=(C15-L15)+(D15-M15)+(F15-O15)+MAX(E15-N15,0)+MAX(G15-P15,0)",0,{"$f":"ADDRESS(41,4,1,1,$P$1)","v":"'Concentration Risk'!$D$41"},"=SUMIFS('Schedule XXIA'!$M$8:$M$57,'Schedule XXIA'!$K$8:$K$57,$D$35,'Schedule XXIA'!$L$8:$L$57,$B41)",{"$f":"IF(_xlfn.FORMULATEXT(INDIRECT(P107))=Q107,0,1)","v":0},{"$f":"ADDRESS(13,12,1,1,$S$1)","v":"'Geographic Diversification'!$L$13"},"=+'Schedule IVE (EBS)'!H13",0,{"$f":"ADDRESS(67,6,1,1,$V$1)","v":"'Credit Risk'!$F$67"},"=MAX(F42,F65)",0,{"$f":"ADDRESS(18,7,1,1,$Y$1)","v":"'Premium Risk'!$G$18"},"=IF(IFERROR(F18/E18,1)<0,1,IFERROR(F18/E18,1))",0,{"$f":"ADDRESS(31,4,1,1,$AB$1)","v":"'Reserve Risk'!$D$31"},"=+'Schedule III (EBS)'!D30",{"$f":"IF(_xlfn.FORMULATEXT(INDIRECT(AB107))=AC107,0,1)","v":0}]
[{"$f":"ADDRESS(63,30,1,1,$A$1)","v":"Summary!$AD$63"},"=IF(ISERROR(AVERAGE(AC65:AC65)),0,AVERAGE(AC65:AC65))",0,{"$f":"ADDRESS(62,9,1,1,$D$1)","v":"'Fixed Income Investments'!$I$62"},"=IF(G62<0,0,G62*H62)",{"$f":"IF(_xlfn.FORMULATEXT(INDIRECT(D108))=E108,0,1)","v":0},{"$f":"ADDRESS(19,5,1,1,$G$1)","v":"'Equity Investments'!$E$19"},"='Schedule IIB (EBS)'!F47+'Schedule IIC (EBS)'!F47+'Schedule IID (EBS)'!F47+'Schedule IIE (EBS)'!F47+'Schedule IIF (EBS)'!F47",0,null,null,null,{"$f":"ADDRESS(15,21,1,1,$M$1)","v":"'Currency Risk'!$U$15"},"=Q15-$H15",0,{"$f":"ADDRESS(41,5,1,1,$P$1)","v":"'Concentration Risk'!$E$41"},"=+'Fixed Income Investments (Prior'!E31",{"$f":"IF(_xlfn.FORMULATEXT(INDIRECT(P108))=Q108,0,1)","v":0},{"$f":"ADDRESS(13,13,1,1,$S$1)","v":"'Geographic Diversification'!$M$13"},"=+'Schedule IVE (EBS)'!I13",0,{"$f":"ADDRESS(67,8,1,1,$V$1)","v":"'Credit Risk'!$H$67"},"=MAX(H42,H65)",0,{"$f":"ADDRESS(18,8,1,1,$Y$1)","v":"'Premium Risk'!$H$18"},"='Schedule IVD (EBS)'!I16*$G18",0,{"$f":"ADDRESS(31,5,1,1,$AB$1)","v":"'Reserve Risk'!$E$31"},"=+'Schedule III (EBS)'!F30",{"$f":"IF(_xlfn.FORMULATEXT(INDIRECT(AB108))=AC108,0,1)","v":0}]
[{"$f":"ADDRESS(63,32,1,1,$A$1)","v":"Summary!$AF$63"},"=IF(AO65=\"\",IF(Test_Statistic<$AJ$74,AI63,IF(Test_Statistic<$AL$74,AK63,AM63)),AO65)",0,{"$f":"ADDRESS(63,7,1,1,$D$1)","v":"'Fixed Income Investments'!$G$63"},"='Schedule IIB (EBS)'!P20+'Schedule IIC (EBS)'!P20+(MAX(0,'Schedule IID (EBS)'!P20-'Schedule IID (EBS)'!R20))+'Schedule IIE (EBS)'!P20+'Schedule IIF (EBS)'!P20",{"$f":"IF(_xlfn.FORMULATEXT(INDIRECT(D109))=E109,0,1)","v":0},{"$f":"ADDRESS(19,6,1,1,$G$1)","v":"'Equity Investments'!$F$19"},"='Schedule IIB (EBS)'!H47+'Schedule IIC (EBS)'!H47+'Schedule IID (EBS)'!H47+'Schedule IIE (EBS)'!H47+'Schedule IIF (EBS)'!H47",0,null,null,null,{"$f":"ADDRESS(15,22,1,1,$M$1)","v":"'Currency Risk'!$V$15"},"=R15-$H15",0,{"$f":"ADDRESS(41,6,1,1,$P$1)","v":"'Concentration Risk'!$F$41"},"=MAX(0,(D41*E41))",{"$f":"IF(_xlfn.FORMULATEXT(INDIRECT(P109))=Q109,0,1)","v":0},{"$f":"ADDRESS(13,14,1,1,$S$1)","v":"'Geographic Diversification'!$N$13"},"=+'Schedule IVE (EBS)'!J13",0,{"$f":"ADDRESS(72,3,1,1,$V$1)","v":"'Credit Risk'!$C$72"},"='Schedule IIB (EBS)'!D84+'Schedule IIC (EBS)'!D84+'Schedule IID (EBS)'!D84+'Schedule IIE (EBS)'!D84+'Schedule IIF (EBS)'!D84",0,{"$f":"ADDRESS(18,9,1,1,$Y$1)","v":"'Premium Risk'!$I$18"},"='Schedule IVD (EBS)'!K16*$G18",0,{"$f":"ADDRESS(31,6,1,1,$AB$1)","v":"'Reserve Risk'!$F$31"},"='Geographic Diversification'!H60",{"$f":"IF(_xlfn.FORMULATEXT(INDIRECT(AB109))=AC109,0,1)","v":0}]
[{"$f":"ADDRESS(63,33,1,1,$A$1)","v":"Summary!$AG$63"},"=IF(AP65=\"\",IF(Test_Statistic<$AJ$74,AJ63,IF(Test_Statistic<$AL$74,AL63,AN63)),AP65)",0,{"$f":"ADDRESS(63,8,1,1,$D$1)","v":"'Fixed Income Investments'!$H$63"},0.26300000000000001,{"$f":"IF(INDIRECT(D110)=E110,0,1)","v":0},{"$f":"ADDRESS(19,7,1,1,$G$1)","v":"'Equity Investments'!$G$19"},"='Schedule IIB (EBS)'!J47+'Schedule IIC (EBS)'!J47+'Schedule IID (EBS)'!J47+'Schedule IIE (EBS)'!J47+'Schedule IIF (EBS)'!J47",0,null,null,null,{"$f":"ADDRESS(15,24,1,1,$M$1)","v":"'Currency Risk'!$X$15"},"=MAX(0,$T15+U15+(J15*I15))",0,{"$f":"ADDRESS(42,2,1,1,$P$1)","v":"'Concentration Risk'!$B$42"},"BSCR Rating 6",{"$f":"IF(INDIRECT(P110)=Q110,0,1)","v":0},{"$f":"ADDRESS(13,15,1,1,$S$1)","v":"'Geographic Diversification'!$O$13"},"=+'Schedule IVE (EBS)'!K13",0,{"$f":"ADDRESS(72,4,1,1,$V$1)","v":"'Credit Risk'!$D$72"},"='Schedule IIB (EBS)'!F84+'Schedule IIC (EBS)'!F84+'Schedule IID (EBS)'!F84+'Schedule IIE (EBS)'!F84+'Schedule IIF (EBS)'!F84",0,{"$f":"ADDRESS(18,10,1,1,$Y$1)","v":"'Premium Risk'!$J$18"},"='Schedule IVD (EBS)'!M16*$G18",0,{"$f":"ADDRESS(31,7,1,1,$AB$1)","v":"'Reserve Risk'!$G$31"},0.49410327959272199,{"$f":"IF(INDIRECT(AB110)=AC110,0,1)","v":0}]
[{"$f":"ADDRESS(63,35,1,1,$A$1)","v":"Summary!$AI$63"},"=IF(AC65>1,200,IF(AC63>1,50,IF(AC63>0.6,50,180)))",0,{"$f":"ADDRESS(63,9,1,1,$D$1)","v":"'Fixed Income Investments'!$I$63"},"=IF(G63<0,0,G63*H63)",{"$f":"IF(_xlfn.FORMULATEXT(INDIRECT(D111))=E111,0,1)","v":0},{"$f":"ADDRESS(19,8,1,1,$G$1)","v":"'Equity Investments'!$H$19"},"='Schedule IIB (EBS)'!L47+'Schedule IIC (EBS)'!L47+'Schedule IID (EBS)'!L47+'Schedule IIE (EBS)'!L47+'Schedule IIF (EBS)'!L47",0,null,null,null,{"$f":"ADDRESS(15,25,1,1,$M$1)","v":"'Currency Risk'!$Y$15"},"=MAX(0,$T15+V15+(J15*I15))",0,{"$f":"ADDRESS(42,4,1,1,$P$1)","v":"'Concentration Risk'!$D$42"},"=SUMIFS('Schedule XXIA'!$M$8:$M$57,'Schedule XXIA'!$K$8:$K$57,$D$35,'Schedule XXIA'!$L$8:$L$57,$B42)",{"$f":"IF(_xlfn.FORMULATEXT(INDIRECT(P111))=Q111,0,1)","v":0},{"$f":"ADDRESS(13,16,1,1,$S$1)","v":"'Geographic Diversification'!$P$13"},"=+'Schedule IVE (EBS)'!L13",0,{"$f":"ADDRESS(72,5,1,1,$V$1)","v":"'Credit Risk'!$E$72"},"='Schedule IIB (EBS)'!H84+'Schedule IIC (EBS)'!H84+'Schedule IID (EBS)'!H84+'Schedule IIE (EBS)'!H84+'Schedule IIF (EBS)'!H84",0,{"$f":"ADDRESS(18,11,1,1,$Y$1)","v":"'Premium Risk'!$K$18"},0.39820522005250802,{"$f":"IF(INDIRECT(Y111)=Z111,0,1)","v":0},{"$f":"ADDRESS(31,8,1,1,$AB$1)","v":"'Reserve Risk'!$H$31"},"=IF($F$31<0,0,$F$31*$G$31)",{"$f":"IF(_xlfn.FORMULATEXT(INDIRECT(AB111))=AC111,0,1)","v":0}]
[{"$f":"ADDRESS(63,36,1,1,$A$1)","v":"Summary!$AJ$63"},"=IF(AC65>1,5,IF(AC63>0.6,IF(AD65>0.5,60,120),IF(AC63>0.6,100,200)))",0,{"$f":"ADDRESS(64,7,1,1,$D$1)","v":"'Fixed Income Investments'!$G$64"},"='Schedule IIB (EBS)'!P21+'Schedule IIC (EBS)'!P21+(MAX(0,'Schedule IID (EBS)'!P21-'Schedule IID (EBS)'!R21))+'Schedule IIE (EBS)'!P21+'Schedule IIF (EBS)'!P21",{"$f":"IF(_xlfn.FORMULATEXT(INDIRECT(D112))=E112,0,1)","v":0},{"$f":"ADDRESS(19,9,1,1,$G$1)","v":"'Equity Investments'!$I$19"},"='Schedule IIB (EBS)'!N47+'Schedule IIC (EBS)'!N47+'Schedule IID (EBS)'!N47+'Schedule IIE (EBS)'!N47+'Schedule IIF (EBS)'!N47",0,null,null,null,{"$f":"ADDRESS(16,2,1,1,$M$1)","v":"'Currency Risk'!$B$16"},"='Schedule XXA'!B14",0,{"$f":"ADDRESS(42,5,1,1,$P$1)","v":"'Concentration Risk'!$E$42"},"=+'Fixed Income Investments (Prior'!E32",{"$f":"IF(_xlfn.FORMULATEXT(INDIRECT(P112))=Q112,0,1)","v":0},{"$f":"ADDRESS(13,17,1,1,$S$1)","v":"'Geographic Diversification'!$Q$13"},"=+'Schedule IVE (EBS)'!M13",0,{"$f":"ADDRESS(72,6,1,1,$V$1)","v":"'Credit Risk'!$F$72"},0,{"$f":"IF(INDIRECT(V112)=W112,0,1)","v":0},{"$f":"ADDRESS(18,12,1,1,$Y$1)","v":"'Premium Risk'!$L$18"},"=+K18*S18",{"$f":"IF(_xlfn.FORMULATEXT(INDIRECT(Y112))=Z112,0,1)","v":0},{"$f":"ADDRESS(32,4,1,1,$AB$1)","v":"'Reserve Risk'!$D$32"},"=+'Schedule III (EBS)'!D31",{"$f":"IF(_xlfn.FORMULATEXT(INDIRECT(AB112))=AC112,0,1)","v":0}]
[{"$f":"ADDRESS(63,37,1,1,$A$1)","v":"Summary!$AK$63"},"=IF(Test_Statistic_2<0.95,50,160)",0,{"$f":"ADDRESS(64,8,1,1,$D$1)","v":"'Fixed Income Investments'!$H$64"},0.35,{"$f":"IF(INDIRECT(D113)=E113,0,1)","v":0},{"$f":"ADDRESS(19,10,1,1,$G$1)","v":"'Equity Investments'!$J$19"},"='Schedule IIB (EBS)'!P47+'Schedule IIC (EBS)'!P47+'Schedule IID (EBS)'!P47+'Schedule IIE (EBS)'!P47+'Schedule IIF (EBS)'!P47",0,null,null,null,{"$f":"ADDRESS(16,3,1,1,$M$1)","v":"'Currency Risk'!$C$16"},"='Schedule XXA'!D14",0,{"$f":"ADDRESS(42,6,1,1,$P$1)","v":"'Concentration Risk'!$F$42"},"=MAX(0,(D42*E42))",{"$f":"IF(_xlfn.FORMULATEXT(INDIRECT(P113))=Q113,0,1)","v":0},{"$f":"ADDRESS(13,18,1,1,$S$1)","v":"'Geographic Diversification'!$R$13"},"=+'Schedule IVE (EBS)'!N13",0,{"$f":"ADDRESS(72,7,1,1,$V$1)","v":"'Credit Risk'!$G$72"},0.03,{"$f":"IF(INDIRECT(V113)=W113,0,1)","v":0},{"$f":"ADDRESS(18,13,1,1,$Y$1)","v":"'Premium Risk'!$M$18"},"=+L18*T18",{"$f":"IF(_xlfn.FORMULATEXT(INDIRECT(Y113))=Z113,0,1)","v":0},{"$f":"ADDRESS(32,5,1,1,$AB$1)","v":"'Reserve Risk'!$E$32"},"=+'Schedule III (EBS)'!F31",{"$f":"IF(_xlfn.FORMULATEXT(INDIRECT(AB113))=AC113,0,1)","v":0}]
[{"$f":"ADDRESS(63,38,1,1,$A$1)","v":"Summary!$AL$63"},"=IF(Test_Statistic_2<0.95,70,5)",0,{"$f":"ADDRESS(64,9,1,1,$D$1)","v":"'Fixed Income Investments'!$I$64"},"=IF(G64<0,0,G64*H64)",{"$f":"IF(_xlfn.FORMULATEXT(INDIRECT(D114))=E114,0,1)","v":0},{"$f":"ADDRESS(19,11,1,1,$G$1)","v":"'Equity Investments'!$K$19"},"='Schedule IIB (EBS)'!R47+'Schedule IIC (EBS)'!R47+'Schedule IID (EBS)'!R47+'Schedule IIE (EBS)'!R47+'Schedule IIF (EBS)'!R47",0,null,null,null,{"$f":"ADDRESS(16,4,1,1,$M$1)","v":"'Currency Risk'!$D$16"},"='Schedule XXA'!F14",0,{"$f":"ADDRESS(43,2,1,1,$P$1)","v":"'Concentration Risk'!$B$43"},"BSCR Rating 7",{"$f":"IF(INDIRECT(P114)=Q114,0,1)","v":0},{"$f":"ADDRESS(13,19,1,1,$S$1)","v":"'Geographic Diversification'!$S$13"},"=+'Schedule IVE (EBS)'!O13",0,{"$f":"ADDRESS(72,8,1,1,$V$1)","v":"'Credit Risk'!$H$72"},"=MAX(0,C72-(1-G72)*MIN(C72,E72))*F72",{"$f":"IF(_xlfn.FORMULATEXT(INDIRECT(V114))=W114,0,1)","v":0},{"$f":"ADDRESS(18,14,1,1,$Y$1)","v":"'Premium Risk'!$N$18"},"=IF($H18<0,0,$H18*$K18)+IF($I18<0,0,$I18*$L18)+IF($J18<0,0,$J18*$M18)",{"$f":"IF(_xlfn.FORMULATEXT(INDIRECT(Y114))=Z114,0,1)","v":0},{"$f":"ADDRESS(32,6,1,1,$AB$1)","v":"'Reserve Risk'!$F$32"},"='Geographic Diversification'!H61",{"$f":"IF(_xlfn.FORMULATEXT(INDIRECT(AB114))=AC114,0,1)","v":0}]
[{"$f":"ADDRESS(63,39,1,1,$A$1)","v":"Summary!$AM$63"},"=IF(Test_Statistic_2<1,50,180)",0,{"$f":"ADDRESS(66,7,1,1,$D$1)","v":"'Fixed Income Investments'!$G$66"},"=SUM(G56:G64)",{"$f":"IF(_xlfn.FORMULATEXT(INDIRECT(D115))=E115,0,1)","v":0},{"$f":"ADDRESS(19,12,1,1,$G$1)","v":"'Equity Investments'!$L$19"},"='Schedule IIB (EBS)'!T47+'Schedule IIC (EBS)'!T47+'Schedule IID (EBS)'!T47+'Schedule IIE (EBS)'!T47+'Schedule IIF (EBS)'!T47",0,null,null,null,{"$f":"ADDRESS(16,5,1,1,$M$1)","v":"'Currency Risk'!$E$16"},"='Schedule XXA'!H14",0,{"$f":"ADDRESS(43,4,1,1,$P$1)","v":"'Concentration Risk'!$D$43"},"=SUMIFS('Schedule XXIA'!$M$8:$M$57,'Schedule XXIA'!$K$8:$K$57,$D$35,'Schedule XXIA'!$L$8:$L$57,$B43)",{"$f":"IF(_xlfn.FORMULATEXT(INDIRECT(P115))=Q115,0,1)","v":0},{"$f":"ADDRESS(13,20,1,1,$S$1)","v":"'Geographic Diversification'!$T$13"},"=+'Schedule IVE (EBS)'!P13",0,{"$f":"ADDRESS(73,3,1,1,$V$1)","v":"'Credit Risk'!$C$73"},"='Schedule IIB (EBS)'!D85+'Schedule IIC (EBS)'!D85+'Schedule IID (EBS)'!D85+'Schedule IIE (EBS)'!D85+'Schedule IIF (EBS)'!D85",{"$f":"IF(_xlfn.FORMULATEXT(INDIRECT(V115))=W115,0,1)","v":0},{"$f":"ADDRESS(18,17,1,1,$Y$1)","v":"'Premium Risk'!$Q$18"},"=IF(H18=E18,MAX(D18*K18,0),IF(E18=F18,IF(D18<0,0,D18*(H18/F18)*K18),IF(D18<0,0,D18*(H18/E18)*K18)))\n+IF(I18=E18,MAX(D18*L18,0),IF(E18=F18,IF(D18<0,0,D18*(I18/F18)*L18),IF(D18<0,0,D18*(I18/E18)*L18)))\n+IF(J18=E18,MAX(D18*M18,0),IF(E18=F18,IF(D18<0,0,D18*(J18/F18)*M18),IF(D18<0,0,D18*(J18/E18)*M18)))",{"$f":"IF(_xlfn.FORMULATEXT(INDIRECT(Y115))=Z115,0,1)","v":0},{"$f":"ADDRESS(32,7,1,1,$AB$1)","v":"'Reserve Risk'!$G$32"},0.478452065307162,{"$f":"IF(INDIRECT(AB115)=AC115,0,1)","v":0}]
[{"$f":"ADDRESS(63,40,1,1,$A$1)","v":"Summary!$AN$63"},"=IF(Test_Statistic_2<1,50,5)",0,{"$f":"ADDRESS(66,9,1,1,$D$1)","v":"'Fixed Income Investments'!$I$66"},"=IF(SUM(I56:I64)>=0,SUM(I56:I64),0)",{"$f":"IF(_xlfn.FORMULATEXT(INDIRECT(D116))=E116,0,1)","v":0},{"$f":"ADDRESS(19,16,1,1,$G$1)","v":"'Equity Investments'!$P$19"},"=MAX(D19-E19,0)+(F19-G19)+MAX(H19-I19,0)+(K19-J19)",0,null,null,null,{"$f":"ADDRESS(16,6,1,1,$M$1)","v":"'Currency Risk'!$F$16"},"='Schedule XXA'!J14",0,{"$f":"ADDRESS(43,5,1,1,$P$1)","v":"'Concentration Risk'!$E$43"},"=+'Fixed Income Investments (Prior'!E33",{"$f":"IF(_xlfn.FORMULATEXT(INDIRECT(P116))=Q116,0,1)","v":0},{"$f":"ADDRESS(13,21,1,1,$S$1)","v":"'Geographic Diversification'!$U$13"},"=+'Schedule IVE (EBS)'!Q13",0,{"$f":"ADDRESS(73,4,1,1,$V$1)","v":"'Credit Risk'!$D$73"},"='Schedule IIB (EBS)'!F85+'Schedule IIC (EBS)'!F85+'Schedule IID (EBS)'!F85+'Schedule IIE (EBS)'!F85+'Schedule IIF (EBS)'!F85",{"$f":"IF(_xlfn.FORMULATEXT(INDIRECT(V116))=W116,0,1)","v":0},{"$f":"ADDRESS(18,19,1,1,$Y$1)","v":"'Premium Risk'!$S$18"},0.3,{"$f":"IF(INDIRECT(Y116)=Z116,0,1)","v":0},{"$f":"ADDRESS(32,8,1,1,$AB$1)","v":"'Reserve Risk'!$H$32"},"=IF($F$32<0,0,$F$32*$G$32)",{"$f":"IF(_xlfn.FORMULATEXT(INDIRECT(AB116))=AC116,0,1)","v":0}]
[{"$f":"ADDRESS(64,12,1,1,$A$1)","v":"Summary!$L$64"},"=K65",0,{"$f":"ADDRESS(70,7,1,1,$D$1)","v":"'Fixed Income Investments'!$G$70"},"='Schedule IIB (EBS)'!T22+'Schedule IIC (EBS)'!T22+(MAX(0,'Schedule IID (EBS)'!T22-'Schedule IID (EBS)'!V22))+'Schedule IIE (EBS)'!T22+'Schedule IIF (EBS)'!T22",{"$f":"IF(_xlfn.FORMULATEXT(INDIRECT(D117))=E117,0,1)","v":0},{"$f":"ADDRESS(19,18,1,1,$G$1)","v":"'Equity Investments'!$R$19"},"=MAX(D19-E19,0)+(F19-G19)+MAX(H19-I19,0)+(L19-J19)",0,null,null,null,{"$f":"ADDRESS(16,7,1,1,$M$1)","v":"'Currency Risk'!$G$16"},"='Schedule XXA'!L14",0,{"$f":"ADDRESS(43,6,1,1,$P$1)","v":"'Concentration Risk'!$F$43"},"=MAX(0,(D43*E43))",{"$f":"IF(_xlfn.FORMULATEXT(INDIRECT(P117))=Q117,0,1)","v":0},{"$f":"ADDRESS(13,22,1,1,$S$1)","v":"'Geographic Diversification'!$V$13"},"=+'Schedule IVE (EBS)'!R13",0,{"$f":"ADDRESS(73,5,1,1,$V$1)","v":"'Credit Risk'!$E$73"},"='Schedule IIB (EBS)'!H85+'Schedule IIC (EBS)'!H85+'Schedule IID (EBS)'!H85+'Schedule IIE (EBS)'!H85+'Schedule IIF (EBS)'!H85",{"$f":"IF(_xlfn.FORMULATEXT(INDIRECT(V117))=W117,0,1)","v":0},{"$f":"ADDRESS(18,20,1,1,$Y$1)","v":"'Premium Risk'!$T$18"},0.5,{"$f":"IF(INDIRECT(Y117)=Z117,0,1)","v":0},{"$f":"ADDRESS(33,4,1,1,$AB$1)","v":"'Reserve Risk'!$D$33"},"=+'Schedule III (EBS)'!D32",{"$f":"IF(_xlfn.FORMULATEXT(INDIRECT(AB117))=AC117,0,1)","v":0}]
[{"$f":"ADDRESS(64,14,1,1,$A$1)","v":"Summary!$N$64"},"=M65",0,{"$f":"ADDRESS(70,8,1,1,$D$1)","v":"'Fixed Income Investments'!$H$70"},3.0000000000000001E-3,{"$f":"IF(INDIRECT(D118)=E118,0,1)","v":0},{"$f":"ADDRESS(20,4,1,1,$G$1)","v":"'Equity Investments'!$D$20"},"='Schedule IIB (EBS)'!D48+'Schedule IIC (EBS)'!D48+'Schedule IID (EBS)'!D48+'Schedule IIE (EBS)'!D48+'Schedule IIF (EBS)'!D48",0,null,null,null,{"$f":"ADDRESS(16,8,1,1,$M$1)","v":"'Currency Risk'!$H$16"},"='Schedule XXA'!N14",0,{"$f":"ADDRESS(44,2,1,1,$P$1)","v":"'Concentration Risk'!$B$44"},"BSCR Rating 8",{"$f":"IF(INDIRECT(P118)=Q118,0,1)","v":0},{"$f":"ADDRESS(13,23,1,1,$S$1)","v":"'Geographic Diversification'!$W$13"},"=+'Schedule IVE (EBS)'!S13",0,{"$f":"ADDRESS(73,6,1,1,$V$1)","v":"'Credit Risk'!$F$73"},4.0000000000000001E-3,{"$f":"IF(INDIRECT(V118)=W118,0,1)","v":0},{"$f":"ADDRESS(19,4,1,1,$Y$1)","v":"'Premium Risk'!$D$19"},"='Schedule IVD (EBS)'!Q17",{"$f":"IF(_xlfn.FORMULATEXT(INDIRECT(Y118))=Z118,0,1)","v":0},{"$f":"ADDRESS(33,5,1,1,$AB$1)","v":"'Reserve Risk'!$E$33"},"=+'Schedule III (EBS)'!F32",{"$f":"IF(_xlfn.FORMULATEXT(INDIRECT(AB118))=AC118,0,1)","v":0}]
[{"$f":"ADDRESS(64,20,1,1,$A$1)","v":"Summary!$T$64"},"=C68",0,{"$f":"ADDRESS(70,9,1,1,$D$1)","v":"'Fixed Income Investments'!$I$70"},"=IF(G70<0,0,G70*H70)",{"$f":"IF(_xlfn.FORMULATEXT(INDIRECT(D119))=E119,0,1)","v":0},{"$f":"ADDRESS(20,5,1,1,$G$1)","v":"'Equity Investments'!$E$20"},"='Schedule IIB (EBS)'!F48+'Schedule IIC (EBS)'!F48+'Schedule IID (EBS)'!F48+'Schedule IIE (EBS)'!F48+'Schedule IIF (EBS)'!F48",0,null,null,null,{"$f":"ADDRESS(16,9,1,1,$M$1)","v":"'Currency Risk'!$I$16"},"=$I$10*H16",0,{"$f":"ADDRESS(44,4,1,1,$P$1)","v":"'Concentration Risk'!$D$44"},"=SUMIFS('Schedule XXIA'!$M$8:$M$57,'Schedule XXIA'!$K$8:$K$57,$D$35,'Schedule XXIA'!$L$8:$L$57,$B44)",{"$f":"IF(_xlfn.FORMULATEXT(INDIRECT(P119))=Q119,0,1)","v":0},{"$f":"ADDRESS(13,24,1,1,$S$1)","v":"'Geographic Diversification'!$X$13"},"=+'Schedule IVE (EBS)'!T13",0,{"$f":"ADDRESS(73,7,1,1,$V$1)","v":"'Credit Risk'!$G$73"},0.03,{"$f":"IF(INDIRECT(V119)=W119,0,1)","v":0},{"$f":"ADDRESS(19,5,1,1,$Y$1)","v":"'Premium Risk'!$E$19"},"='Schedule IVD (EBS)'!O17",0,{"$f":"ADDRESS(33,6,1,1,$AB$1)","v":"'Reserve Risk'!$F$33"},"='Geographic Diversification'!H62",{"$f":"IF(_xlfn.FORMULATEXT(INDIRECT(AB119))=AC119,0,1)","v":0}]
[{"$f":"ADDRESS(64,24,1,1,$A$1)","v":"Summary!$X$64"},"=G68",0,{"$f":"ADDRESS(71,7,1,1,$D$1)","v":"'Fixed Income Investments'!$G$71"},"='Schedule IIB (EBS)'!T23+'Schedule IIC (EBS)'!T23+(MAX(0,'Schedule IID (EBS)'!T23-'Schedule IID (EBS)'!V23))+'Schedule IIE (EBS)'!T23+'Schedule IIF (EBS)'!T23",{"$f":"IF(_xlfn.FORMULATEXT(INDIRECT(D120))=E120,0,1)","v":0},{"$f":"ADDRESS(20,6,1,1,$G$1)","v":"'Equity Investments'!$F$20"},"='Schedule IIB (EBS)'!H48+'Schedule IIC (EBS)'!H48+'Schedule IID (EBS)'!H48+'Schedule IIE (EBS)'!H48+'Schedule IIF (EBS)'!H48",0,null,null,null,{"$f":"ADDRESS(16,10,1,1,$M$1)","v":"'Currency Risk'!$J$16"},"=IF($B$12=\"Denmark Kroner\",IF((C16+D16+E16+F16+G16)>(H16+I16),0%,0.39%),IF($B$12=\"Bulgaria Leva\",IF((C16+D16+E16+F16+G16)>(H16+I16),0%,1.81%),IF($B$12=\"West African CFA Francs\",IF((C16+D16+E16+F16+G16)>(H16+I16),0%,2.18%),IF($B$12=\"Central African CFA Francs\",IF((C16+D16+E16+F16+G16)>(H16+I16),0%,1.96%),IF($B$12=\"Comorian Francs\",IF((C16+D16+E16+F16+G16)>(H16+I16),0%,2%),IF((C16+D16+E16+F16+G16)>(H16+I16),0%,25%))))))",0,{"$f":"ADDRESS(44,5,1,1,$P$1)","v":"'Concentration Risk'!$E$44"},"=+'Fixed Income Investments (Prior'!E34",{"$f":"IF(_xlfn.FORMULATEXT(INDIRECT(P120))=Q120,0,1)","v":0},{"$f":"ADDRESS(13,25,1,1,$S$1)","v":"'Geographic Diversification'!$Y$13"},"=+'Schedule IVE (EBS)'!U13",0,{"$f":"ADDRESS(73,8,1,1,$V$1)","v":"'Credit Risk'!$H$73"},"=MAX(0,C73-(1-G73)*MIN(C73,E73))*F73",{"$f":"IF(_xlfn.FORMULATEXT(INDIRECT(V120))=W120,0,1)","v":0},{"$f":"ADDRESS(19,6,1,1,$Y$1)","v":"'Premium Risk'!$F$19"},"='Geographic Diversification'!H17",0,{"$f":"ADDRESS(33,7,1,1,$AB$1)","v":"'Reserve Risk'!$G$33"},0.24099999999999999,{"$f":"IF(INDIRECT(AB120)=AC120,0,1)","v":0}]
[{"$f":"ADDRESS(64,25,1,1,$A$1)","v":"Summary!$Y$64"},"=IF($L$74=0,1/9,X64/$X$68)",0,{"$f":"ADDRESS(71,8,1,1,$D$1)","v":"'Fixed Income Investments'!$H$71"},0.05,{"$f":"IF(INDIRECT(D121)=E121,0,1)","v":0},{"$f":"ADDRESS(20,7,1,1,$G$1)","v":"'Equity Investments'!$G$20"},"='Schedule IIB (EBS)'!J48+'Schedule IIC (EBS)'!J48+'Schedule IID (EBS)'!J48+'Schedule IIE (EBS)'!J48+'Schedule IIF (EBS)'!J48",0,null,null,null,{"$f":"ADDRESS(16,12,1,1,$M$1)","v":"'Currency Risk'!$L$16"},"='Schedule XXA'!V14",0,{"$f":"ADDRESS(44,6,1,1,$P$1)","v":"'Concentration Risk'!$F$44"},"=MAX(0,(D44*E44))",{"$f":"IF(_xlfn.FORMULATEXT(INDIRECT(P121))=Q121,0,1)","v":0},{"$f":"ADDRESS(13,26,1,1,$S$1)","v":"'Geographic Diversification'!$Z$13"},"=+'Schedule IVE (EBS)'!V13",0,{"$f":"ADDRESS(74,3,1,1,$V$1)","v":"'Credit Risk'!$C$74"},"='Schedule IIB (EBS)'!D86+'Schedule IIC (EBS)'!D86+'Schedule IID (EBS)'!D86+'Schedule IIE (EBS)'!D86+'Schedule IIF (EBS)'!D86",{"$f":"IF(_xlfn.FORMULATEXT(INDIRECT(V121))=W121,0,1)","v":0},{"$f":"ADDRESS(19,7,1,1,$Y$1)","v":"'Premium Risk'!$G$19"},"=IF(IFERROR(F19/E19,1)<0,1,IFERROR(F19/E19,1))",0,{"$f":"ADDRESS(33,8,1,1,$AB$1)","v":"'Reserve Risk'!$H$33"},"=IF($F$33<0,0,$F$33*$G$33)",{"$f":"IF(_xlfn.FORMULATEXT(INDIRECT(AB121))=AC121,0,1)","v":0}]
[{"$f":"ADDRESS(64,26,1,1,$A$1)","v":"Summary!$Z$64"},"=M68",0,{"$f":"ADDRESS(71,9,1,1,$D$1)","v":"'Fixed Income Investments'!$I$71"},"=IF(G71<0,0,G71*H71)",{"$f":"IF(_xlfn.FORMULATEXT(INDIRECT(D122))=E122,0,1)","v":0},{"$f":"ADDRESS(20,8,1,1,$G$1)","v":"'Equity Investments'!$H$20"},"='Schedule IIB (EBS)'!L48+'Schedule IIC (EBS)'!L48+'Schedule IID (EBS)'!L48+'Schedule IIE (EBS)'!L48+'Schedule IIF (EBS)'!L48",0,null,null,null,{"$f":"ADDRESS(16,13,1,1,$M$1)","v":"'Currency Risk'!$M$16"},"='Schedule XXA'!X14",0,{"$f":"ADDRESS(46,4,1,1,$P$1)","v":"'Concentration Risk'!$D$46"},"=SUM(D35:D44)",{"$f":"IF(_xlfn.FORMULATEXT(INDIRECT(P122))=Q122,0,1)","v":0},{"$f":"ADDRESS(14,4,1,1,$S$1)","v":"'Geographic Diversification'!$D$14"},"=SUM(I14:Z14)",0,{"$f":"ADDRESS(74,4,1,1,$V$1)","v":"'Credit Risk'!$D$74"},"='Schedule IIB (EBS)'!F86+'Schedule IIC (EBS)'!F86+'Schedule IID (EBS)'!F86+'Schedule IIE (EBS)'!F86+'Schedule IIF (EBS)'!F86",{"$f":"IF(_xlfn.FORMULATEXT(INDIRECT(V122))=W122,0,1)","v":0},{"$f":"ADDRESS(19,8,1,1,$Y$1)","v":"'Premium Risk'!$H$19"},"='Schedule IVD (EBS)'!I17*$G19",0,{"$f":"ADDRESS(34,4,1,1,$AB$1)","v":"'Reserve Risk'!$D$34"},"=+'Schedule III (EBS)'!D33",{"$f":"IF(_xlfn.FORMULATEXT(INDIRECT(AB122))=AC122,0,1)","v":0}]
[{"$f":"ADDRESS(64,27,1,1,$A$1)","v":"Summary!$AA$64"},"=IF($N$74=0,1/9,Z64/$Z$68)",0,{"$f":"ADDRESS(72,7,1,1,$D$1)","v":"'Fixed Income Investments'!$G$72"},"='Schedule IIB (EBS)'!T24+'Schedule IIC (EBS)'!T24+(MAX(0,'Schedule IID (EBS)'!T24-'Schedule IID (EBS)'!V24))+'Schedule IIE (EBS)'!T24+'Schedule IIF (EBS)'!T24",{"$f":"IF(_xlfn.FORMULATEXT(INDIRECT(D123))=E123,0,1)","v":0},{"$f":"ADDRESS(20,9,1,1,$G$1)","v":"'Equity Investments'!$I$20"},"='Schedule IIB (EBS)'!N48+'Schedule IIC (EBS)'!N48+'Schedule IID (EBS)'!N48+'Schedule IIE (EBS)'!N48+'Schedule IIF (EBS)'!N48",0,null,null,null,{"$f":"ADDRESS(16,14,1,1,$M$1)","v":"'Currency Risk'!$N$16"},"='Schedule XXA'!Z14",0,{"$f":"ADDRESS(46,6,1,1,$P$1)","v":"'Concentration Risk'!$F$46"},"=SUM(F35:F44)",{"$f":"IF(_xlfn.FORMULATEXT(INDIRECT(P123))=Q123,0,1)","v":0},{"$f":"ADDRESS(14,5,1,1,$S$1)","v":"'Geographic Diversification'!$E$14"},"=SUMSQ(I14:Z14)",0,{"$f":"ADDRESS(74,5,1,1,$V$1)","v":"'Credit Risk'!$E$74"},"='Schedule IIB (EBS)'!H86+'Schedule IIC (EBS)'!H86+'Schedule IID (EBS)'!H86+'Schedule IIE (EBS)'!H86+'Schedule IIF (EBS)'!H86",{"$f":"IF(_xlfn.FORMULATEXT(INDIRECT(V123))=W123,0,1)","v":0},{"$f":"ADDRESS(19,9,1,1,$Y$1)","v":"'Premium Risk'!$I$19"},"='Schedule IVD (EBS)'!K17*$G19",0,{"$f":"ADDRESS(34,5,1,1,$AB$1)","v":"'Reserve Risk'!$E$34"},"=+'Schedule III (EBS)'!F33",{"$f":"IF(_xlfn.FORMULATEXT(INDIRECT(AB123))=AC123,0,1)","v":0}]
[{"$f":"ADDRESS(64,29,1,1,$A$1)","v":"Summary!$AC$64"},"=(SUM(AA$58:AA64)/AA$68)",0,{"$f":"ADDRESS(72,8,1,1,$D$1)","v":"'Fixed Income Investments'!$H$72"},1.4999999999999999E-2,{"$f":"IF(INDIRECT(D124)=E124,0,1)","v":0},{"$f":"ADDRESS(20,10,1,1,$G$1)","v":"'Equity Investments'!$J$20"},"='Schedule IIB (EBS)'!P48+'Schedule IIC (EBS)'!P48+'Schedule IID (EBS)'!P48+'Schedule IIE (EBS)'!P48+'Schedule IIF (EBS)'!P48",0,null,null,null,{"$f":"ADDRESS(16,15,1,1,$M$1)","v":"'Currency Risk'!$O$16"},"='Schedule XXA'!AB14",0,{"$f":"ADDRESS(48,4,1,1,$P$1)","v":"'Concentration Risk'!$D$48"},"Commercial Mortgage-Backed Securities",{"$f":"IF(INDIRECT(P124)=Q124,0,1)","v":0},{"$f":"ADDRESS(14,6,1,1,$S$1)","v":"'Geographic Diversification'!$F$14"},"=(IF(D14>0,E14/D14^2,1))",0,{"$f":"ADDRESS(74,6,1,1,$V$1)","v":"'Credit Risk'!$F$74"},8.0000000000000002E-3,{"$f":"IF(INDIRECT(V124)=W124,0,1)","v":0},{"$f":"ADDRESS(19,10,1,1,$Y$1)","v":"'Premium Risk'!$J$19"},"='Schedule IVD (EBS)'!M17*$G19",0,{"$f":"ADDRESS(34,6,1,1,$AB$1)","v":"'Reserve Risk'!$F$34"},"='Geographic Diversification'!H63",{"$f":"IF(_xlfn.FORMULATEXT(INDIRECT(AB124))=AC124,0,1)","v":0}]
[{"$f":"ADDRESS(64,30,1,1,$A$1)","v":"Summary!$AD$64"},"=IF(ISERROR(AVERAGE(AC60:AC64)),0,AVERAGE(AC60:AC64))",0,{"$f":"ADDRESS(72,9,1,1,$D$1)","v":"'Fixed Income Investments'!$I$72"},"=IF(G72<0,0,G72*H72)",{"$f":"IF(_xlfn.FORMULATEXT(INDIRECT(D125))=E125,0,1)","v":0},{"$f":"ADDRESS(20,11,1,1,$G$1)","v":"'Equity Investments'!$K$20"},"='Schedule IIB (EBS)'!R48+'Schedule IIC (EBS)'!R48+'Schedule IID (EBS)'!R48+'Schedule IIE (EBS)'!R48+'Schedule IIF (EBS)'!R48",0,null,null,null,{"$f":"ADDRESS(16,16,1,1,$M$1)","v":"'Currency Risk'!$P$16"},"='Schedule XXA'!AD14",0,{"$f":"ADDRESS(49,2,1,1,$P$1)","v":"'Concentration Risk'!$B$49"},"BSCR Rating 0",{"$f":"IF(INDIRECT(P125)=Q125,0,1)","v":0},{"$f":"ADDRESS(14,7,1,1,$S$1)","v":"'Geographic Diversification'!$G$14"},"=D14*(0.75+0.25*F14)",0,{"$f":"ADDRESS(74,7,1,1,$V$1)","v":"'Credit Risk'!$G$74"},0.03,{"$f":"IF(INDIRECT(V125)=W125,0,1)","v":0},{"$f":"ADDRESS(19,11,1,1,$Y$1)","v":"'Premium Risk'!$K$19"},0.45356665999464701,{"$f":"IF(INDIRECT(Y125)=Z125,0,1)","v":0},{"$f":"ADDRESS(34,7,1,1,$AB$1)","v":"'Reserve Risk'!$G$34"},0.125,{"$f":"IF(INDIRECT(AB125)=AC125,0,1)","v":0}]
[{"$f":"ADDRESS(64,32,1,1,$A$1)","v":"Summary!$AF$64"},"=IF(AO68=\"\",IF(Test_Statistic<$AJ$74,AI64,IF(Test_Statistic<$AL$74,AK64,AM64)),AO68)",0,{"$f":"ADDRESS(73,7,1,1,$D$1)","v":"'Fixed Income Investments'!$G$73"},"='Schedule IIB (EBS)'!T25+'Schedule IIC (EBS)'!T25+(MAX(0,'Schedule IID (EBS)'!T25-'Schedule IID (EBS)'!V25))+'Schedule IIE (EBS)'!T25+'Schedule IIF (EBS)'!T25",{"$f":"IF(_xlfn.FORMULATEXT(INDIRECT(D126))=E126,0,1)","v":0},{"$f":"ADDRESS(20,12,1,1,$G$1)","v":"'Equity Investments'!$L$20"},"='Schedule IIB (EBS)'!T48+'Schedule IIC (EBS)'!T48+'Schedule IID (EBS)'!T48+'Schedule IIE (EBS)'!T48+'Schedule IIF (EBS)'!T48",0,null,null,null,{"$f":"ADDRESS(16,17,1,1,$M$1)","v":"'Currency Risk'!$Q$16"},"='Schedule XXA'!AF14",0,{"$f":"ADDRESS(49,4,1,1,$P$1)","v":"'Concentration Risk'!$D$49"},"=SUMIFS('Schedule XXIA'!$M$8:$M$57,'Schedule XXIA'!$K$8:$K$57,$D$48,'Schedule XXIA'!$L$8:$L$57,$B49)",{"$f":"IF(_xlfn.FORMULATEXT(INDIRECT(P126))=Q126,0,1)","v":0},{"$f":"ADDRESS(14,8,1,1,$S$1)","v":"'Geographic Diversification'!$H$14"},"=IF('Schedule IVE (EBS)'!AB14=\"True\",G14,'Schedule IVD (EBS)'!O14)",0,{"$f":"ADDRESS(74,8,1,1,$V$1)","v":"'Credit Risk'!$H$74"},"=MAX(0,C74-(1-G74)*MIN(C74,E74))*F74",{"$f":"IF(_xlfn.FORMULATEXT(INDIRECT(V126))=W126,0,1)","v":0},{"$f":"ADDRESS(19,12,1,1,$Y$1)","v":"'Premium Risk'!$L$19"},"=+K19*S19",{"$f":"IF(_xlfn.FORMULATEXT(INDIRECT(Y126))=Z126,0,1)","v":0},{"$f":"ADDRESS(34,8,1,1,$AB$1)","v":"'Reserve Risk'!$H$34"},"=IF($F$34<0,0,$F$34*$G$34)",{"$f":"IF(_xlfn.FORMULATEXT(INDIRECT(AB126))=AC126,0,1)","v":0}]
[{"$f":"ADDRESS(64,35,1,1,$A$1)","v":"Summary!$AI$64"},"=IF(AC65>1,250,IF(AC63>1,300,IF(AC63>0.6,260,300)))",0,{"$f":"ADDRESS(73,8,1,1,$D$1)","v":"'Fixed Income Investments'!$H$73"},0.25,{"$f":"IF(INDIRECT(D127)=E127,0,1)","v":0},{"$f":"ADDRESS(20,16,1,1,$G$1)","v":"'Equity Investments'!$P$20"},"=MAX(D20-E20,0)+(F20-G20)+MAX(H20-I20,0)+(K20-J20)",0,null,null,null,{"$f":"ADDRESS(16,18,1,1,$M$1)","v":"'Currency Risk'!$R$16"},"=IF('Schedule XXA'!AH14=0,Q16,'Schedule XXA'!AH14)",0,{"$f":"ADDRESS(49,5,1,1,$P$1)","v":"'Concentration Risk'!$E$49"},0,{"$f":"IF(INDIRECT(P127)=Q127,0,1)","v":0},{"$f":"ADDRESS(14,9,1,1,$S$1)","v":"'Geographic Diversification'!$I$14"},"=+'Schedule IVE (EBS)'!E14",0,{"$f":"ADDRESS(75,3,1,1,$V$1)","v":"'Credit Risk'!$C$75"},"='Schedule IIB (EBS)'!D87+'Schedule IIC (EBS)'!D87+'Schedule IID (EBS)'!D87+'Schedule IIE (EBS)'!D87+'Schedule IIF (EBS)'!D87",{"$f":"IF(_xlfn.FORMULATEXT(INDIRECT(V127))=W127,0,1)","v":0},{"$f":"ADDRESS(19,13,1,1,$Y$1)","v":"'Premium Risk'!$M$19"},"=+L19*T19",{"$f":"IF(_xlfn.FORMULATEXT(INDIRECT(Y127))=Z127,0,1)","v":0},{"$f":"ADDRESS(36,4,1,1,$AB$1)","v":"'Reserve Risk'!$D$36"},"=SUM(D11:D34)",0]
[{"$f":"ADDRESS(64,36,1,1,$A$1)","v":"Summary!$AJ$64"},"=IF(AC63>0.6,185,140)",0,{"$f":"ADDRESS(73,9,1,1,$D$1)","v":"'Fixed Income Investments'!$I$73"},"=IF(G73<0,0,G73*H73)",{"$f":"IF(_xlfn.FORMULATEXT(INDIRECT(D128))=E128,0,1)","v":0},{"$f":"ADDRESS(20,18,1,1,$G$1)","v":"'Equity Investments'!$R$20"},"=MAX(D20-E20,0)+(F20-G20)+MAX(H20-I20,0)+(L20-J20)",0,null,null,null,{"$f":"ADDRESS(16,20,1,1,$M$1)","v":"'Currency Risk'!$T$16"},"=(C16-L16)+(D16-M16)+(F16-O16)+MAX(E16-N16,0)+MAX(G16-P16,0)",0,{"$f":"ADDRESS(49,6,1,1,$P$1)","v":"'Concentration Risk'!$F$49"},"=MAX(0,(D49*E49))",{"$f":"IF(_xlfn.FORMULATEXT(INDIRECT(P128))=Q128,0,1)","v":0},{"$f":"ADDRESS(14,10,1,1,$S$1)","v":"'Geographic Diversification'!$J$14"},"=+'Schedule IVE (EBS)'!F14",0,{"$f":"ADDRESS(75,4,1,1,$V$1)","v":"'Credit Risk'!$D$75"},"='Schedule IIB (EBS)'!F87+'Schedule IIC (EBS)'!F87+'Schedule IID (EBS)'!F87+'Schedule IIE (EBS)'!F87+'Schedule IIF (EBS)'!F87",{"$f":"IF(_xlfn.FORMULATEXT(INDIRECT(V128))=W128,0,1)","v":0},{"$f":"ADDRESS(19,14,1,1,$Y$1)","v":"'Premium Risk'!$N$19"},"=IF($H19<0,0,$H19*$K19)+IF($I19<0,0,$I19*$L19)+IF($J19<0,0,$J19*$M19)",{"$f":"IF(_xlfn.FORMULATEXT(INDIRECT(Y128))=Z128,0,1)","v":0},{"$f":"ADDRESS(36,5,1,1,$AB$1)","v":"'Reserve Risk'!$E$36"},"=SUM(E11:E34)",0]
[{"$f":"ADDRESS(64,37,1,1,$A$1)","v":"Summary!$AK$64"},"=IF(Test_Statistic_2<0.95,180,120)",0,{"$f":"ADDRESS(75,7,1,1,$D$1)","v":"'Fixed Income Investments'!$G$75"},"=SUM(G70:G73)",{"$f":"IF(_xlfn.FORMULATEXT(INDIRECT(D129))=E129,0,1)","v":0},{"$f":"ADDRESS(21,4,1,1,$G$1)","v":"'Equity Investments'!$D$21"},"='Schedule IIB (EBS)'!D49+'Schedule IIC (EBS)'!D49+'Schedule IID (EBS)'!D49+'Schedule IIE (EBS)'!D49+'Schedule IIF (EBS)'!D49",0,null,null,null,{"$f":"ADDRESS(16,21,1,1,$M$1)","v":"'Currency Risk'!$U$16"},"=Q16-$H16",0,{"$f":"ADDRESS(50,2,1,1,$P$1)","v":"'Concentration Risk'!$B$50"},"BSCR Rating 1",{"$f":"IF(INDIRECT(P129)=Q129,0,1)","v":0},{"$f":"ADDRESS(14,11,1,1,$S$1)","v":"'Geographic Diversification'!$K$14"},"=+'Schedule IVE (EBS)'!G14",0,{"$f":"ADDRESS(75,5,1,1,$V$1)","v":"'Credit Risk'!$E$75"},"='Schedule IIB (EBS)'!H87+'Schedule IIC (EBS)'!H87+'Schedule IID (EBS)'!H87+'Schedule IIE (EBS)'!H87+'Schedule IIF (EBS)'!H87",{"$f":"IF(_xlfn.FORMULATEXT(INDIRECT(V129))=W129,0,1)","v":0},{"$f":"ADDRESS(19,17,1,1,$Y$1)","v":"'Premium Risk'!$Q$19"},"=IF(H19=E19,MAX(D19*K19,0),IF(E19=F19,IF(D19<0,0,D19*(H19/F19)*K19),IF(D19<0,0,D19*(H19/E19)*K19)))\n+IF(I19=E19,MAX(D19*L19,0),IF(E19=F19,IF(D19<0,0,D19*(I19/F19)*L19),IF(D19<0,0,D19*(I19/E19)*L19)))\n+IF(J19=E19,MAX(D19*M19,0),IF(E19=F19,IF(D19<0,0,D19*(J19/F19)*M19),IF(D19<0,0,D19*(J19/E19)*M19)))",{"$f":"IF(_xlfn.FORMULATEXT(INDIRECT(Y129))=Z129,0,1)","v":0},{"$f":"ADDRESS(36,6,1,1,$AB$1)","v":"'Reserve Risk'!$F$36"},"=SUM(F11:F34)",0]
[{"$f":"ADDRESS(64,39,1,1,$A$1)","v":"Summary!$AM$64"},100,{"$f":"IF(INDIRECT(A130)=B130,0,1)","v":0},{"$f":"ADDRESS(75,9,1,1,$D$1)","v":"'Fixed Income Investments'!$I$75"},"=IF(SUM(I70:I73)>=0,SUM(I70:I73),0)",{"$f":"IF(_xlfn.FORMULATEXT(INDIRECT(D130))=E130,0,1)","v":0},{"$f":"ADDRESS(21,5,1,1,$G$1)","v":"'Equity Investments'!$E$21"},"='Schedule IIB (EBS)'!F49+'Schedule IIC (EBS)'!F49+'Schedule IID (EBS)'!F49+'Schedule IIE (EBS)'!F49+'Schedule IIF (EBS)'!F49",0,null,null,null,{"$f":"ADDRESS(16,22,1,1,$M$1)","v":"'Currency Risk'!$V$16"},"=R16-$H16",0,{"$f":"ADDRESS(50,4,1,1,$P$1)","v":"'Concentration Risk'!$D$50"},"=SUMIFS('Schedule XXIA'!$M$8:$M$57,'Schedule XXIA'!$K$8:$K$57,$D$48,'Schedule XXIA'!$L$8:$L$57,$B50)",{"$f":"IF(_xlfn.FORMULATEXT(INDIRECT(P130))=Q130,0,1)","v":0},{"$f":"ADDRESS(14,12,1,1,$S$1)","v":"'Geographic Diversification'!$L$14"},"=+'Schedule IVE (EBS)'!H14",0,{"$f":"ADDRESS(75,6,1,1,$V$1)","v":"'Credit Risk'!$F$75"},1.4999999999999999E-2,{"$f":"IF(INDIRECT(V130)=W130,0,1)","v":0},{"$f":"ADDRESS(19,19,1,1,$Y$1)","v":"'Premium Risk'!$S$19"},0.3,{"$f":"IF(INDIRECT(Y130)=Z130,0,1)","v":0},{"$f":"ADDRESS(36,8,1,1,$AB$1)","v":"'Reserve Risk'!$H$36"},"=SUM(H11:H35)",0]
[{"$f":"ADDRESS(65,3,1,1,$A$1)","v":"Summary!$C$65"},"Credit Risk",{"$f":"IF(INDIRECT(A131)=B131,0,1)","v":0},{"$f":"ADDRESS(79,7,1,1,$D$1)","v":"'Fixed Income Investments'!$G$79"},"='Form 1EBS'!F52",{"$f":"IF(_xlfn.FORMULATEXT(INDIRECT(D131))=E131,0,1)","v":0},{"$f":"ADDRESS(21,6,1,1,$G$1)","v":"'Equity Investments'!$F$21"},"='Schedule IIB (EBS)'!H49+'Schedule IIC (EBS)'!H49+'Schedule IID (EBS)'!H49+'Schedule IIE (EBS)'!H49+'Schedule IIF (EBS)'!H49",0,null,null,null,{"$f":"ADDRESS(16,24,1,1,$M$1)","v":"'Currency Risk'!$X$16"},"=MAX(0,$T16+U16+(J16*I16))",0,{"$f":"ADDRESS(50,5,1,1,$P$1)","v":"'Concentration Risk'!$E$50"},"=+'Fixed Income Investments (Prior'!E41",{"$f":"IF(_xlfn.FORMULATEXT(INDIRECT(P131))=Q131,0,1)","v":0},{"$f":"ADDRESS(14,13,1,1,$S$1)","v":"'Geographic Diversification'!$M$14"},"=+'Schedule IVE (EBS)'!I14",0,{"$f":"ADDRESS(75,7,1,1,$V$1)","v":"'Credit Risk'!$G$75"},0.03,{"$f":"IF(INDIRECT(V131)=W131,0,1)","v":0},{"$f":"ADDRESS(19,20,1,1,$Y$1)","v":"'Premium Risk'!$T$19"},0.5,{"$f":"IF(INDIRECT(Y131)=Z131,0,1)","v":0},{"$f":"ADDRESS(40,8,1,1,$AB$1)","v":"'Reserve Risk'!$H$40"},"=H36-H42",0]
[{"$f":"ADDRESS(65,7,1,1,$A$1)","v":"Summary!$G$65"},"=ROUND('Credit Risk (old)'!F41,$N$166)",{"$f":"IF(_xlfn.FORMULATEXT(INDIRECT(A132))=B132,0,1)","v":0},{"$f":"ADDRESS(79,8,1,1,$D$1)","v":"'Fixed Income Investments'!$H$79"},0.05,{"$f":"IF(INDIRECT(D132)=E132,0,1)","v":0},{"$f":"ADDRESS(21,7,1,1,$G$1)","v":"'Equity Investments'!$G$21"},"='Schedule IIB (EBS)'!J49+'Schedule IIC (EBS)'!J49+'Schedule IID (EBS)'!J49+'Schedule IIE (EBS)'!J49+'Schedule IIF (EBS)'!J49",0,null,null,null,{"$f":"ADDRESS(16,25,1,1,$M$1)","v":"'Currency Risk'!$Y$16"},"=MAX(0,$T16+V16+(J16*I16))",0,{"$f":"ADDRESS(50,6,1,1,$P$1)","v":"'Concentration Risk'!$F$50"},"=MAX(0,(D50*E50))",{"$f":"IF(_xlfn.FORMULATEXT(INDIRECT(P132))=Q132,0,1)","v":0},{"$f":"ADDRESS(14,14,1,1,$S$1)","v":"'Geographic Diversification'!$N$14"},"=+'Schedule IVE (EBS)'!J14",{"$f":"IF(_xlfn.FORMULATEXT(INDIRECT(S132))=T132,0,1)","v":0},{"$f":"ADDRESS(75,8,1,1,$V$1)","v":"'Credit Risk'!$H$75"},"=MAX(0,C75-(1-G75)*MIN(C75,E75))*F75",{"$f":"IF(_xlfn.FORMULATEXT(INDIRECT(V132))=W132,0,1)","v":0},{"$f":"ADDRESS(20,4,1,1,$Y$1)","v":"'Premium Risk'!$D$20"},"='Schedule IVD (EBS)'!Q18",{"$f":"IF(_xlfn.FORMULATEXT(INDIRECT(Y132))=Z132,0,1)","v":0},{"$f":"ADDRESS(42,8,1,1,$AB$1)","v":"'Reserve Risk'!$H$42"},"{=SQRT(MMULT(TRANSPOSE(H11:H34),MMULT('Correlation Matrix'!C43:Z66,H11:H34)))}",0]
[{"$f":"ADDRESS(65,11,1,1,$A$1)","v":"Summary!$K$65"},"=ROUND('Credit Risk'!H84,$N$166)",0,{"$f":"ADDRESS(79,9,1,1,$D$1)","v":"'Fixed Income Investments'!$I$79"},"=IF($G$79<0,0,$G$79*$H$79)",{"$f":"IF(_xlfn.FORMULATEXT(INDIRECT(D133))=E133,0,1)","v":0},{"$f":"ADDRESS(21,8,1,1,$G$1)","v":"'Equity Investments'!$H$21"},"='Schedule IIB (EBS)'!L49+'Schedule IIC (EBS)'!L49+'Schedule IID (EBS)'!L49+'Schedule IIE (EBS)'!L49+'Schedule IIF (EBS)'!L49",0,null,null,null,{"$f":"ADDRESS(17,2,1,1,$M$1)","v":"'Currency Risk'!$B$17"},"='Schedule XXA'!B15",0,{"$f":"ADDRESS(51,2,1,1,$P$1)","v":"'Concentration Risk'!$B$51"},"BSCR Rating 2",{"$f":"IF(INDIRECT(P133)=Q133,0,1)","v":0},{"$f":"ADDRESS(14,15,1,1,$S$1)","v":"'Geographic Diversification'!$O$14"},"=+'Schedule IVE (EBS)'!K14",0,{"$f":"ADDRESS(76,3,1,1,$V$1)","v":"'Credit Risk'!$C$76"},"='Schedule IIB (EBS)'!D88+'Schedule IIC (EBS)'!D88+'Schedule IID (EBS)'!D88+'Schedule IIE (EBS)'!D88+'Schedule IIF (EBS)'!D88",{"$f":"IF(_xlfn.FORMULATEXT(INDIRECT(V133))=W133,0,1)","v":0},{"$f":"ADDRESS(20,5,1,1,$Y$1)","v":"'Premium Risk'!$E$20"},"='Schedule IVD (EBS)'!O18",0,{"$f":"ADDRESS(46,8,1,1,$AB$1)","v":"'Reserve Risk'!$H$46"},"='Premium Risk'!N52",0]
[{"$f":"ADDRESS(65,13,1,1,$A$1)","v":"Summary!$M$65"},"=ROUND('Credit Risk'!H84,$N$166)",0,{"$f":"ADDRESS(83,7,1,1,$D$1)","v":"'Fixed Income Investments'!$G$83"},"='Schedule XIXA'!F81",{"$f":"IF(_xlfn.FORMULATEXT(INDIRECT(D134))=E134,0,1)","v":0},{"$f":"ADDRESS(21,9,1,1,$G$1)","v":"'Equity Investments'!$I$21"},"='Schedule IIB (EBS)'!N49+'Schedule IIC (EBS)'!N49+'Schedule IID (EBS)'!N49+'Schedule IIE (EBS)'!N49+'Schedule IIF (EBS)'!N49",0,null,null,null,{"$f":"ADDRESS(17,3,1,1,$M$1)","v":"'Currency Risk'!$C$17"},"='Schedule XXA'!D15",0,{"$f":"ADDRESS(51,4,1,1,$P$1)","v":"'Concentration Risk'!$D$51"},"=SUMIFS('Schedule XXIA'!$M$8:$M$57,'Schedule XXIA'!$K$8:$K$57,$D$48,'Schedule XXIA'!$L$8:$L$57,$B51)",{"$f":"IF(_xlfn.FORMULATEXT(INDIRECT(P134))=Q134,0,1)","v":0},{"$f":"ADDRESS(14,16,1,1,$S$1)","v":"'Geographic Diversification'!$P$14"},"=+'Schedule IVE (EBS)'!L14",0,{"$f":"ADDRESS(76,4,1,1,$V$1)","v":"'Credit Risk'!$D$76"},"='Schedule IIB (EBS)'!F88+'Schedule IIC (EBS)'!F88+'Schedule IID (EBS)'!F88+'Schedule IIE (EBS)'!F88+'Schedule IIF (EBS)'!F88",{"$f":"IF(_xlfn.FORMULATEXT(INDIRECT(V134))=W134,0,1)","v":0},{"$f":"ADDRESS(20,6,1,1,$Y$1)","v":"'Premium Risk'!$F$20"},"='Geographic Diversification'!H18",0,{"$f":"ADDRESS(47,8,1,1,$AB$1)","v":"'Reserve Risk'!$H$47"},"='Premium Risk'!N53",0]
[{"$f":"ADDRESS(65,20,1,1,$A$1)","v":"Summary!$T$65"},"=C69",0,{"$f":"ADDRESS(83,8,1,1,$D$1)","v":"'Fixed Income Investments'!$H$83"},0,{"$f":"IF(INDIRECT(D135)=E135,0,1)","v":0},{"$f":"ADDRESS(21,10,1,1,$G$1)","v":"'Equity Investments'!$J$21"},"='Schedule IIB (EBS)'!P49+'Schedule IIC (EBS)'!P49+'Schedule IID (EBS)'!P49+'Schedule IIE (EBS)'!P49+'Schedule IIF (EBS)'!P49",0,null,null,null,{"$f":"ADDRESS(17,4,1,1,$M$1)","v":"'Currency Risk'!$D$17"},"='Schedule XXA'!F15",0,{"$f":"ADDRESS(51,5,1,1,$P$1)","v":"'Concentration Risk'!$E$51"},"=+'Fixed Income Investments (Prior'!E42",{"$f":"IF(_xlfn.FORMULATEXT(INDIRECT(P135))=Q135,0,1)","v":0},{"$f":"ADDRESS(14,17,1,1,$S$1)","v":"'Geographic Diversification'!$Q$14"},"=+'Schedule IVE (EBS)'!M14",0,{"$f":"ADDRESS(76,5,1,1,$V$1)","v":"'Credit Risk'!$E$76"},"='Schedule IIB (EBS)'!H88+'Schedule IIC (EBS)'!H88+'Schedule IID (EBS)'!H88+'Schedule IIE (EBS)'!H88+'Schedule IIF (EBS)'!H88",{"$f":"IF(_xlfn.FORMULATEXT(INDIRECT(V135))=W135,0,1)","v":0},{"$f":"ADDRESS(20,7,1,1,$Y$1)","v":"'Premium Risk'!$G$20"},"=IF(IFERROR(F20/E20,1)<0,1,IFERROR(F20/E20,1))",0,{"$f":"ADDRESS(48,8,1,1,$AB$1)","v":"'Reserve Risk'!$H$48"},"=H46+H47",0]
[{"$f":"ADDRESS(65,24,1,1,$A$1)","v":"Summary!$X$65"},"=G69",0,{"$f":"ADDRESS(83,9,1,1,$D$1)","v":"'Fixed Income Investments'!$I$83"},"=IF($G$83<0,0,$G$83*$H$83)",{"$f":"IF(_xlfn.FORMULATEXT(INDIRECT(D136))=E136,0,1)","v":0},{"$f":"ADDRESS(21,11,1,1,$G$1)","v":"'Equity Investments'!$K$21"},"='Schedule IIB (EBS)'!R49+'Schedule IIC (EBS)'!R49+'Schedule IID (EBS)'!R49+'Schedule IIE (EBS)'!R49+'Schedule IIF (EBS)'!R49",{"$f":"IF(_xlfn.FORMULATEXT(INDIRECT(G136))=H136,0,1)","v":0},null,null,null,{"$f":"ADDRESS(17,5,1,1,$M$1)","v":"'Currency Risk'!$E$17"},"='Schedule XXA'!H15",0,{"$f":"ADDRESS(51,6,1,1,$P$1)","v":"'Concentration Risk'!$F$51"},"=MAX(0,(D51*E51))",{"$f":"IF(_xlfn.FORMULATEXT(INDIRECT(P136))=Q136,0,1)","v":0},{"$f":"ADDRESS(14,18,1,1,$S$1)","v":"'Geographic Diversification'!$R$14"},"=+'Schedule IVE (EBS)'!N14",0,{"$f":"ADDRESS(76,6,1,1,$V$1)","v":"'Credit Risk'!$F$76"},0.03,{"$f":"IF(INDIRECT(V136)=W136,0,1)","v":0},{"$f":"ADDRESS(20,8,1,1,$Y$1)","v":"'Premium Risk'!$H$20"},"='Schedule IVD (EBS)'!I18*$G20",0,{"$f":"ADDRESS(49,8,1,1,$AB$1)","v":"'Reserve Risk'!$H$49"},0.4,{"$f":"IF(INDIRECT(AB136)=AC136,0,1)","v":0}]
[{"$f":"ADDRESS(65,25,1,1,$A$1)","v":"Summary!$Y$65"},"=IF($L$74=0,1/9,X65/$X$68)",0,{"$f":"ADDRESS(84,7,1,1,$D$1)","v":"'Fixed Income Investments'!$G$84"},"='Schedule XIXA'!F82",{"$f":"IF(_xlfn.FORMULATEXT(INDIRECT(D137))=E137,0,1)","v":0},{"$f":"ADDRESS(21,12,1,1,$G$1)","v":"'Equity Investments'!$L$21"},"='Schedule IIB (EBS)'!T49+'Schedule IIC (EBS)'!T49+'Schedule IID (EBS)'!T49+'Schedule IIE (EBS)'!T49+'Schedule IIF (EBS)'!T49",0,null,null,null,{"$f":"ADDRESS(17,6,1,1,$M$1)","v":"'Currency Risk'!$F$17"},"='Schedule XXA'!J15",0,{"$f":"ADDRESS(52,2,1,1,$P$1)","v":"'Concentration Risk'!$B$52"},"BSCR Rating 3",{"$f":"IF(INDIRECT(P137)=Q137,0,1)","v":0},{"$f":"ADDRESS(14,19,1,1,$S$1)","v":"'Geographic Diversification'!$S$14"},"=+'Schedule IVE (EBS)'!O14",0,{"$f":"ADDRESS(76,7,1,1,$V$1)","v":"'Credit Risk'!$G$76"},0.03,{"$f":"IF(INDIRECT(V137)=W137,0,1)","v":0},{"$f":"ADDRESS(20,9,1,1,$Y$1)","v":"'Premium Risk'!$I$20"},"='Schedule IVD (EBS)'!K18*$G20",0,{"$f":"ADDRESS(51,8,1,1,$AB$1)","v":"'Reserve Risk'!$H$51"},"=H48*H49",{"$f":"IF(_xlfn.FORMULATEXT(INDIRECT(AB137))=AC137,0,1)","v":0}]
[{"$f":"ADDRESS(65,26,1,1,$A$1)","v":"Summary!$Z$65"},"=M69",0,{"$f":"ADDRESS(84,8,1,1,$D$1)","v":"'Fixed Income Investments'!$H$84"},1E-3,{"$f":"IF(INDIRECT(D138)=E138,0,1)","v":0},{"$f":"ADDRESS(21,16,1,1,$G$1)","v":"'Equity Investments'!$P$21"},"=MAX(D21-E21,0)+(F21-G21)+MAX(H21-I21,0)+(K21-J21)",0,null,null,null,{"$f":"ADDRESS(17,7,1,1,$M$1)","v":"'Currency Risk'!$G$17"},"='Schedule XXA'!L15",0,{"$f":"ADDRESS(52,4,1,1,$P$1)","v":"'Concentration Risk'!$D$52"},"=SUMIFS('Schedule XXIA'!$M$8:$M$57,'Schedule XXIA'!$K$8:$K$57,$D$48,'Schedule XXIA'!$L$8:$L$57,$B52)",{"$f":"IF(_xlfn.FORMULATEXT(INDIRECT(P138))=Q138,0,1)","v":0},{"$f":"ADDRESS(14,20,1,1,$S$1)","v":"'Geographic Diversification'!$T$14"},"=+'Schedule IVE (EBS)'!P14",0,{"$f":"ADDRESS(76,8,1,1,$V$1)","v":"'Credit Risk'!$H$76"},"=MAX(0,C76-(1-G76)*MIN(C76,E76))*F76",{"$f":"IF(_xlfn.FORMULATEXT(INDIRECT(V138))=W138,0,1)","v":0},{"$f":"ADDRESS(20,10,1,1,$Y$1)","v":"'Premium Risk'!$J$20"},"='Schedule IVD (EBS)'!M18*$G20",0,{"$f":"ADDRESS(53,2,1,1,$AB$1)","v":"'Reserve Risk'!$B$53"},"=IF('Company Information'!F4=\"Class 3A\",\"(d) TOTAL RESERVE RISK [(a) x (c)]\",\"(c)  TOTAL RESERVE RISK  [ Total (a) x (b) ]\")",{"$f":"IF(_xlfn.FORMULATEXT(INDIRECT(AB138))=AC138,0,1)","v":0}]
[{"$f":"ADDRESS(65,27,1,1,$A$1)","v":"Summary!$AA$65"},"=IF($N$74=0,1/9,Z65/$Z$68)",0,{"$f":"ADDRESS(84,9,1,1,$D$1)","v":"'Fixed Income Investments'!$I$84"},"=IF($G$84<0,0,$G$84*$H$84)",{"$f":"IF(_xlfn.FORMULATEXT(INDIRECT(D139))=E139,0,1)","v":0},{"$f":"ADDRESS(21,18,1,1,$G$1)","v":"'Equity Investments'!$R$21"},"=MAX(D21-E21,0)+(F21-G21)+MAX(H21-I21,0)+(L21-J21)",0,null,null,null,{"$f":"ADDRESS(17,8,1,1,$M$1)","v":"'Currency Risk'!$H$17"},"='Schedule XXA'!N15",0,{"$f":"ADDRESS(52,5,1,1,$P$1)","v":"'Concentration Risk'!$E$52"},"=+'Fixed Income Investments (Prior'!E43",{"$f":"IF(_xlfn.FORMULATEXT(INDIRECT(P139))=Q139,0,1)","v":0},{"$f":"ADDRESS(14,21,1,1,$S$1)","v":"'Geographic Diversification'!$U$14"},"=+'Schedule IVE (EBS)'!Q14",0,{"$f":"ADDRESS(77,3,1,1,$V$1)","v":"'Credit Risk'!$C$77"},"='Schedule IIB (EBS)'!D89+'Schedule IIC (EBS)'!D89+'Schedule IID (EBS)'!D89+'Schedule IIE (EBS)'!D89+'Schedule IIF (EBS)'!D89",{"$f":"IF(_xlfn.FORMULATEXT(INDIRECT(V139))=W139,0,1)","v":0},{"$f":"ADDRESS(20,11,1,1,$Y$1)","v":"'Premium Risk'!$K$20"},0.42102344656076801,{"$f":"IF(INDIRECT(Y139)=Z139,0,1)","v":0},{"$f":"ADDRESS(53,8,1,1,$AB$1)","v":"'Reserve Risk'!$H$53"},"=IF('Company Information'!$F$11=\"Class 3A\",IF(H42=0,0,H42-H36*H51),IF(H42>=0,H42,0))",{"$f":"IF(_xlfn.FORMULATEXT(INDIRECT(AB139))=AC139,0,1)","v":0}]
[{"$f":"ADDRESS(65,29,1,1,$A$1)","v":"Summary!$AC$65"},"=(SUM(AA$58:AA65)/AA$68)",0,{"$f":"ADDRESS(85,7,1,1,$D$1)","v":"'Fixed Income Investments'!$G$85"},"='Schedule XIXA'!F83",{"$f":"IF(_xlfn.FORMULATEXT(INDIRECT(D140))=E140,0,1)","v":0},{"$f":"ADDRESS(22,4,1,1,$G$1)","v":"'Equity Investments'!$D$22"},"='Schedule IIB (EBS)'!D50+'Schedule IIC (EBS)'!D50+'Schedule IID (EBS)'!D50+'Schedule IIE (EBS)'!D50+'Schedule IIF (EBS)'!D50",0,null,null,null,{"$f":"ADDRESS(17,9,1,1,$M$1)","v":"'Currency Risk'!$I$17"},"=$I$10*H17",0,{"$f":"ADDRESS(52,6,1,1,$P$1)","v":"'Concentration Risk'!$F$52"},"=MAX(0,(D52*E52))",{"$f":"IF(_xlfn.FORMULATEXT(INDIRECT(P140))=Q140,0,1)","v":0},{"$f":"ADDRESS(14,22,1,1,$S$1)","v":"'Geographic Diversification'!$V$14"},"=+'Schedule IVE (EBS)'!R14",0,{"$f":"ADDRESS(77,4,1,1,$V$1)","v":"'Credit Risk'!$D$77"},"='Schedule IIB (EBS)'!F89+'Schedule IIC (EBS)'!F89+'Schedule IID (EBS)'!F89+'Schedule IIE (EBS)'!F89+'Schedule IIF (EBS)'!F89",{"$f":"IF(_xlfn.FORMULATEXT(INDIRECT(V140))=W140,0,1)","v":0},{"$f":"ADDRESS(20,12,1,1,$Y$1)","v":"'Premium Risk'!$L$20"},"=+K20*S20",{"$f":"IF(_xlfn.FORMULATEXT(INDIRECT(Y140))=Z140,0,1)","v":0},null,null,-140]
[{"$f":"ADDRESS(65,30,1,1,$A$1)","v":"Summary!$AD$65"},"=IF(ISERROR(AVERAGE(AC64:AC65)),0,AVERAGE(AC64:AC65))",0,{"$f":"ADDRESS(85,8,1,1,$D$1)","v":"'Fixed Income Investments'!$H$85"},2E-3,{"$f":"IF(INDIRECT(D141)=E141,0,1)","v":0},{"$f":"ADDRESS(22,5,1,1,$G$1)","v":"'Equity Investments'!$E$22"},"='Schedule IIB (EBS)'!F50+'Schedule IIC (EBS)'!F50+'Schedule IID (EBS)'!F50+'Schedule IIE (EBS)'!F50+'Schedule IIF (EBS)'!F50",0,null,null,null,{"$f":"ADDRESS(17,10,1,1,$M$1)","v":"'Currency Risk'!$J$17"},"=IF($B$12=\"Euro\",IF((SUM(C17:G17))>(H17+I17),0%,0.39%),IF((SUM(C17:G17))>(H17+I17),0%,25%))",0,{"$f":"ADDRESS(53,2,1,1,$P$1)","v":"'Concentration Risk'!$B$53"},"BSCR Rating 4",{"$f":"IF(INDIRECT(P141)=Q141,0,1)","v":0},{"$f":"ADDRESS(14,23,1,1,$S$1)","v":"'Geographic Diversification'!$W$14"},"=+'Schedule IVE (EBS)'!S14",0,{"$f":"ADDRESS(77,5,1,1,$V$1)","v":"'Credit Risk'!$E$77"},"='Schedule IIB (EBS)'!H89+'Schedule IIC (EBS)'!H89+'Schedule IID (EBS)'!H89+'Schedule IIE (EBS)'!H89+'Schedule IIF (EBS)'!H89",{"$f":"IF(_xlfn.FORMULATEXT(INDIRECT(V141))=W141,0,1)","v":0},{"$f":"ADDRESS(20,13,1,1,$Y$1)","v":"'Premium Risk'!$M$20"},"=+L20*T20",{"$f":"IF(_xlfn.FORMULATEXT(INDIRECT(Y141))=Z141,0,1)","v":0}]
[{"$f":"ADDRESS(65,32,1,1,$A$1)","v":"Summary!$AF$65"},"=IF(AO69=\"\",IF(Test_Statistic<$AJ$74,AI65,IF(Test_Statistic<$AL$74,AK65,AM65)),AO69)",0,{"$f":"ADDRESS(85,9,1,1,$D$1)","v":"'Fixed Income Investments'!$I$85"},"=IF($G$85<0,0,$G$85*$H$85)",{"$f":"IF(_xlfn.FORMULATEXT(INDIRECT(D142))=E142,0,1)","v":0},{"$f":"ADDRESS(22,6,1,1,$G$1)","v":"'Equity Investments'!$F$22"},"='Schedule IIB (EBS)'!H50+'Schedule IIC (EBS)'!H50+'Schedule IID (EBS)'!H50+'Schedule IIE (EBS)'!H50+'Schedule IIF (EBS)'!H50",0,null,null,null,{"$f":"ADDRESS(17,12,1,1,$M$1)","v":"'Currency Risk'!$L$17"},"='Schedule XXA'!V15",0,{"$f":"ADDRESS(53,4,1,1,$P$1)","v":"'Concentration Risk'!$D$53"},"=SUMIFS('Schedule XXIA'!$M$8:$M$57,'Schedule XXIA'!$K$8:$K$57,$D$48,'Schedule XXIA'!$L$8:$L$57,$B53)",{"$f":"IF(_xlfn.FORMULATEXT(INDIRECT(P142))=Q142,0,1)","v":0},{"$f":"ADDRESS(14,24,1,1,$S$1)","v":"'Geographic Diversification'!$X$14"},"=+'Schedule IVE (EBS)'!T14",0,{"$f":"ADDRESS(77,6,1,1,$V$1)","v":"'Credit Risk'!$F$77"},0.08,{"$f":"IF(INDIRECT(V142)=W142,0,1)","v":0},{"$f":"ADDRESS(20,14,1,1,$Y$1)","v":"'Premium Risk'!$N$20"},"=IF($H20<0,0,$H20*$K20)+IF($I20<0,0,$I20*$L20)+IF($J20<0,0,$J20*$M20)",{"$f":"IF(_xlfn.FORMULATEXT(INDIRECT(Y142))=Z142,0,1)","v":0}]
[{"$f":"ADDRESS(65,35,1,1,$A$1)","v":"Summary!$AI$65"},"=IF(AC65>1,50,IF(AC63>0.6,120,260))",0,{"$f":"ADDRESS(86,7,1,1,$D$1)","v":"'Fixed Income Investments'!$G$86"},"='Schedule XIXA'!F84",{"$f":"IF(_xlfn.FORMULATEXT(INDIRECT(D143))=E143,0,1)","v":0},{"$f":"ADDRESS(22,7,1,1,$G$1)","v":"'Equity Investments'!$G$22"},"='Schedule IIB (EBS)'!J50+'Schedule IIC (EBS)'!J50+'Schedule IID (EBS)'!J50+'Schedule IIE (EBS)'!J50+'Schedule IIF (EBS)'!J50",0,null,null,null,{"$f":"ADDRESS(17,13,1,1,$M$1)","v":"'Currency Risk'!$M$17"},"='Schedule XXA'!X15",0,{"$f":"ADDRESS(53,5,1,1,$P$1)","v":"'Concentration Risk'!$E$53"},"=+'Fixed Income Investments (Prior'!E44",{"$f":"IF(_xlfn.FORMULATEXT(INDIRECT(P143))=Q143,0,1)","v":0},{"$f":"ADDRESS(14,25,1,1,$S$1)","v":"'Geographic Diversification'!$Y$14"},"=+'Schedule IVE (EBS)'!U14",0,{"$f":"ADDRESS(77,7,1,1,$V$1)","v":"'Credit Risk'!$G$77"},0.03,{"$f":"IF(INDIRECT(V143)=W143,0,1)","v":0},{"$f":"ADDRESS(20,17,1,1,$Y$1)","v":"'Premium Risk'!$Q$20"},"=IF(H20=E20,MAX(D20*K20,0),IF(E20=F20,IF(D20<0,0,D20*(H20/F20)*K20),IF(D20<0,0,D20*(H20/E20)*K20)))\n+IF(I20=E20,MAX(D20*L20,0),IF(E20=F20,IF(D20<0,0,D20*(I20/F20)*L20),IF(D20<0,0,D20*(I20/E20)*L20)))\n+IF(J20=E20,MAX(D20*M20,0),IF(E20=F20,IF(D20<0,0,D20*(J20/F20)*M20),IF(D20<0,0,D20*(J20/E20)*M20)))",{"$f":"IF(_xlfn.FORMULATEXT(INDIRECT(Y143))=Z143,0,1)","v":0}]
[{"$f":"ADDRESS(65,36,1,1,$A$1)","v":"Summary!$AJ$65"},"=IF(AC65>1,90,IF(AC63>0.6,200,185))",0,{"$f":"ADDRESS(86,8,1,1,$D$1)","v":"'Fixed Income Investments'!$H$86"},3.0000000000000001E-3,{"$f":"IF(INDIRECT(D144)=E144,0,1)","v":0},{"$f":"ADDRESS(22,8,1,1,$G$1)","v":"'Equity Investments'!$H$22"},"='Schedule IIB (EBS)'!L50+'Schedule IIC (EBS)'!L50+'Schedule IID (EBS)'!L50+'Schedule IIE (EBS)'!L50+'Schedule IIF (EBS)'!L50",0,null,null,null,{"$f":"ADDRESS(17,14,1,1,$M$1)","v":"'Currency Risk'!$N$17"},"='Schedule XXA'!Z15",0,{"$f":"ADDRESS(53,6,1,1,$P$1)","v":"'Concentration Risk'!$F$53"},"=MAX(0,(D53*E53))",{"$f":"IF(_xlfn.FORMULATEXT(INDIRECT(P144))=Q144,0,1)","v":0},{"$f":"ADDRESS(14,26,1,1,$S$1)","v":"'Geographic Diversification'!$Z$14"},"=+'Schedule IVE (EBS)'!V14",0,{"$f":"ADDRESS(77,8,1,1,$V$1)","v":"'Credit Risk'!$H$77"},"=MAX(0,C77-(1-G77)*MIN(C77,E77))*F77",{"$f":"IF(_xlfn.FORMULATEXT(INDIRECT(V144))=W144,0,1)","v":0},{"$f":"ADDRESS(20,19,1,1,$Y$1)","v":"'Premium Risk'!$S$20"},0.3,{"$f":"IF(INDIRECT(Y144)=Z144,0,1)","v":0}]
[{"$f":"ADDRESS(65,37,1,1,$A$1)","v":"Summary!$AK$65"},50,{"$f":"IF(INDIRECT(A145)=B145,0,1)","v":0},{"$f":"ADDRESS(86,9,1,1,$D$1)","v":"'Fixed Income Investments'!$I$86"},"=IF($G$86<0,0,$G$86*$H$86)",{"$f":"IF(_xlfn.FORMULATEXT(INDIRECT(D145))=E145,0,1)","v":0},{"$f":"ADDRESS(22,9,1,1,$G$1)","v":"'Equity Investments'!$I$22"},"='Schedule IIB (EBS)'!N50+'Schedule IIC (EBS)'!N50+'Schedule IID (EBS)'!N50+'Schedule IIE (EBS)'!N50+'Schedule IIF (EBS)'!N50",0,null,null,null,{"$f":"ADDRESS(17,15,1,1,$M$1)","v":"'Currency Risk'!$O$17"},"='Schedule XXA'!AB15",0,{"$f":"ADDRESS(54,2,1,1,$P$1)","v":"'Concentration Risk'!$B$54"},"BSCR Rating 5",{"$f":"IF(INDIRECT(P145)=Q145,0,1)","v":0},{"$f":"ADDRESS(15,4,1,1,$S$1)","v":"'Geographic Diversification'!$D$15"},"=SUM(I15:Z15)",0,{"$f":"ADDRESS(78,3,1,1,$V$1)","v":"'Credit Risk'!$C$78"},"='Schedule IIB (EBS)'!D90+'Schedule IIC (EBS)'!D90+'Schedule IID (EBS)'!D90+'Schedule IIE (EBS)'!D90+'Schedule IIF (EBS)'!D90",{"$f":"IF(_xlfn.FORMULATEXT(INDIRECT(V145))=W145,0,1)","v":0},{"$f":"ADDRESS(20,20,1,1,$Y$1)","v":"'Premium Risk'!$T$20"},0.5,{"$f":"IF(INDIRECT(Y145)=Z145,0,1)","v":0}]
[{"$f":"ADDRESS(65,38,1,1,$A$1)","v":"Summary!$AL$65"},"=IF(Test_Statistic_2<0.95,160,80)",{"$f":"IF(_xlfn.FORMULATEXT(INDIRECT(A146))=B146,0,1)","v":0},{"$f":"ADDRESS(87,7,1,1,$D$1)","v":"'Fixed Income Investments'!$G$87"},"='Schedule XIXA'!F85",{"$f":"IF(_xlfn.FORMULATEXT(INDIRECT(D146))=E146,0,1)","v":0},{"$f":"ADDRESS(22,10,1,1,$G$1)","v":"'Equity Investments'!$J$22"},"='Schedule IIB (EBS)'!P50+'Schedule IIC (EBS)'!P50+'Schedule IID (EBS)'!P50+'Schedule IIE (EBS)'!P50+'Schedule IIF (EBS)'!P50",0,null,null,null,{"$f":"ADDRESS(17,16,1,1,$M$1)","v":"'Currency Risk'!$P$17"},"='Schedule XXA'!AD15",0,{"$f":"ADDRESS(54,4,1,1,$P$1)","v":"'Concentration Risk'!$D$54"},"=SUMIFS('Schedule XXIA'!$M$8:$M$57,'Schedule XXIA'!$K$8:$K$57,$D$48,'Schedule XXIA'!$L$8:$L$57,$B54)",{"$f":"IF(_xlfn.FORMULATEXT(INDIRECT(P146))=Q146,0,1)","v":0},{"$f":"ADDRESS(15,5,1,1,$S$1)","v":"'Geographic Diversification'!$E$15"},"=SUMSQ(I15:Z15)",0,{"$f":"ADDRESS(78,4,1,1,$V$1)","v":"'Credit Risk'!$D$78"},"='Schedule IIB (EBS)'!F90+'Schedule IIC (EBS)'!F90+'Schedule IID (EBS)'!F90+'Schedule IIE (EBS)'!F90+'Schedule IIF (EBS)'!F90",{"$f":"IF(_xlfn.FORMULATEXT(INDIRECT(V146))=W146,0,1)","v":0},{"$f":"ADDRESS(21,4,1,1,$Y$1)","v":"'Premium Risk'!$D$21"},"='Schedule IVD (EBS)'!Q19",{"$f":"IF(_xlfn.FORMULATEXT(INDIRECT(Y146))=Z146,0,1)","v":0}]
[{"$f":"ADDRESS(65,39,1,1,$A$1)","v":"Summary!$AM$65"},"=IF(Test_Statistic_2<1,50,50)",0,{"$f":"ADDRESS(87,8,1,1,$D$1)","v":"'Fixed Income Investments'!$H$87"},5.0000000000000001E-3,{"$f":"IF(INDIRECT(D147)=E147,0,1)","v":0},{"$f":"ADDRESS(22,11,1,1,$G$1)","v":"'Equity Investments'!$K$22"},"='Schedule IIB (EBS)'!R50+'Schedule IIC (EBS)'!R50+'Schedule IID (EBS)'!R50+'Schedule IIE (EBS)'!R50+'Schedule IIF (EBS)'!R50",0,null,null,null,{"$f":"ADDRESS(17,17,1,1,$M$1)","v":"'Currency Risk'!$Q$17"},"='Schedule XXA'!AF15",0,{"$f":"ADDRESS(54,5,1,1,$P$1)","v":"'Concentration Risk'!$E$54"},"=+'Fixed Income Investments (Prior'!E45",{"$f":"IF(_xlfn.FORMULATEXT(INDIRECT(P147))=Q147,0,1)","v":0},{"$f":"ADDRESS(15,6,1,1,$S$1)","v":"'Geographic Diversification'!$F$15"},"=(IF(D15>0,E15/D15^2,1))",0,{"$f":"ADDRESS(78,5,1,1,$V$1)","v":"'Credit Risk'!$E$78"},"='Schedule IIB (EBS)'!H90+'Schedule IIC (EBS)'!H90+'Schedule IID (EBS)'!H90+'Schedule IIE (EBS)'!H90+'Schedule IIF (EBS)'!H90",{"$f":"IF(_xlfn.FORMULATEXT(INDIRECT(V147))=W147,0,1)","v":0},{"$f":"ADDRESS(21,5,1,1,$Y$1)","v":"'Premium Risk'!$E$21"},"='Schedule IVD (EBS)'!O19",0]
[{"$f":"ADDRESS(66,20,1,1,$A$1)","v":"Summary!$T$66"},"=C70",0,{"$f":"ADDRESS(87,9,1,1,$D$1)","v":"'Fixed Income Investments'!$I$87"},"=IF($G$87<0,0,$G$87*$H$87)",{"$f":"IF(_xlfn.FORMULATEXT(INDIRECT(D148))=E148,0,1)","v":0},{"$f":"ADDRESS(22,12,1,1,$G$1)","v":"'Equity Investments'!$L$22"},"='Schedule IIB (EBS)'!T50+'Schedule IIC (EBS)'!T50+'Schedule IID (EBS)'!T50+'Schedule IIE (EBS)'!T50+'Schedule IIF (EBS)'!T50",0,null,null,null,{"$f":"ADDRESS(17,18,1,1,$M$1)","v":"'Currency Risk'!$R$17"},"=IF('Schedule XXA'!AH15=0,Q17,'Schedule XXA'!AH15)",0,{"$f":"ADDRESS(54,6,1,1,$P$1)","v":"'Concentration Risk'!$F$54"},"=MAX(0,(D54*E54))",{"$f":"IF(_xlfn.FORMULATEXT(INDIRECT(P148))=Q148,0,1)","v":0},{"$f":"ADDRESS(15,7,1,1,$S$1)","v":"'Geographic Diversification'!$G$15"},"=D15*(0.75+0.25*F15)",0,{"$f":"ADDRESS(78,6,1,1,$V$1)","v":"'Credit Risk'!$F$78"},0.15,{"$f":"IF(INDIRECT(V148)=W148,0,1)","v":0},{"$f":"ADDRESS(21,6,1,1,$Y$1)","v":"'Premium Risk'!$F$21"},"='Geographic Diversification'!H19",0]
[{"$f":"ADDRESS(66,24,1,1,$A$1)","v":"Summary!$X$66"},"=G70",0,{"$f":"ADDRESS(88,7,1,1,$D$1)","v":"'Fixed Income Investments'!$G$88"},"='Schedule XIXA'!F86",{"$f":"IF(_xlfn.FORMULATEXT(INDIRECT(D149))=E149,0,1)","v":0},{"$f":"ADDRESS(22,16,1,1,$G$1)","v":"'Equity Investments'!$P$22"},"=MAX(D22-E22,0)+(F22-G22)+MAX(H22-I22,0)+(K22-J22)",0,null,null,null,{"$f":"ADDRESS(17,20,1,1,$M$1)","v":"'Currency Risk'!$T$17"},"=(C17-L17)+(D17-M17)+(F17-O17)+MAX(E17-N17,0)+MAX(G17-P17,0)",0,{"$f":"ADDRESS(55,2,1,1,$P$1)","v":"'Concentration Risk'!$B$55"},"BSCR Rating 6",{"$f":"IF(INDIRECT(P149)=Q149,0,1)","v":0},{"$f":"ADDRESS(15,8,1,1,$S$1)","v":"'Geographic Diversification'!$H$15"},"=IF('Schedule IVE (EBS)'!AB15=\"True\",G15,'Schedule IVD (EBS)'!O15)",0,{"$f":"ADDRESS(78,7,1,1,$V$1)","v":"'Credit Risk'!$G$78"},0.03,{"$f":"IF(INDIRECT(V149)=W149,0,1)","v":0},{"$f":"ADDRESS(21,7,1,1,$Y$1)","v":"'Premium Risk'!$G$21"},"=IF(IFERROR(F21/E21,1)<0,1,IFERROR(F21/E21,1))",0]
[{"$f":"ADDRESS(66,25,1,1,$A$1)","v":"Summary!$Y$66"},"=IF($L$74=0,1/9,X66/$X$68)",0,{"$f":"ADDRESS(88,8,1,1,$D$1)","v":"'Fixed Income Investments'!$H$88"},1.4999999999999999E-2,{"$f":"IF(INDIRECT(D150)=E150,0,1)","v":0},{"$f":"ADDRESS(22,18,1,1,$G$1)","v":"'Equity Investments'!$R$22"},"=MAX(D22-E22,0)+(F22-G22)+MAX(H22-I22,0)+(L22-J22)",0,null,null,null,{"$f":"ADDRESS(17,21,1,1,$M$1)","v":"'Currency Risk'!$U$17"},"=Q17-$H17",0,{"$f":"ADDRESS(55,4,1,1,$P$1)","v":"'Concentration Risk'!$D$55"},"=SUMIFS('Schedule XXIA'!$M$8:$M$57,'Schedule XXIA'!$K$8:$K$57,$D$48,'Schedule XXIA'!$L$8:$L$57,$B55)",{"$f":"IF(_xlfn.FORMULATEXT(INDIRECT(P150))=Q150,0,1)","v":0},{"$f":"ADDRESS(15,9,1,1,$S$1)","v":"'Geographic Diversification'!$I$15"},"=+'Schedule IVE (EBS)'!E15",0,{"$f":"ADDRESS(78,8,1,1,$V$1)","v":"'Credit Risk'!$H$78"},"=MAX(0,C78-(1-G78)*MIN(C78,E78))*F78",{"$f":"IF(_xlfn.FORMULATEXT(INDIRECT(V150))=W150,0,1)","v":0},{"$f":"ADDRESS(21,8,1,1,$Y$1)","v":"'Premium Risk'!$H$21"},"='Schedule IVD (EBS)'!I19*$G21",0]
[{"$f":"ADDRESS(66,26,1,1,$A$1)","v":"Summary!$Z$66"},"=M70",0,{"$f":"ADDRESS(88,9,1,1,$D$1)","v":"'Fixed Income Investments'!$I$88"},"=IF($G$88<0,0,$G$88*$H$88)",{"$f":"IF(_xlfn.FORMULATEXT(INDIRECT(D151))=E151,0,1)","v":0},{"$f":"ADDRESS(24,4,1,1,$G$1)","v":"'Equity Investments'!$D$24"},"=SUM(D11:D23)",0,null,null,null,{"$f":"ADDRESS(17,22,1,1,$M$1)","v":"'Currency Risk'!$V$17"},"=R17-$H17",0,{"$f":"ADDRESS(55,5,1,1,$P$1)","v":"'Concentration Risk'!$E$55"},"=+'Fixed Income Investments (Prior'!E46",{"$f":"IF(_xlfn.FORMULATEXT(INDIRECT(P151))=Q151,0,1)","v":0},{"$f":"ADDRESS(15,10,1,1,$S$1)","v":"'Geographic Diversification'!$J$15"},"=+'Schedule IVE (EBS)'!F15",0,{"$f":"ADDRESS(79,3,1,1,$V$1)","v":"'Credit Risk'!$C$79"},"='Schedule IIB (EBS)'!D91+'Schedule IIC (EBS)'!D91+'Schedule IID (EBS)'!D91+'Schedule IIE (EBS)'!D91+'Schedule IIF (EBS)'!D91",{"$f":"IF(_xlfn.FORMULATEXT(INDIRECT(V151))=W151,0,1)","v":0},{"$f":"ADDRESS(21,9,1,1,$Y$1)","v":"'Premium Risk'!$I$21"},"='Schedule IVD (EBS)'!K19*$G21",0]
[{"$f":"ADDRESS(66,27,1,1,$A$1)","v":"Summary!$AA$66"},"=IF($N$74=0,1/9,Z66/$Z$68)",0,{"$f":"ADDRESS(89,7,1,1,$D$1)","v":"'Fixed Income Investments'!$G$89"},"='Schedule XIXA'!F87",{"$f":"IF(_xlfn.FORMULATEXT(INDIRECT(D152))=E152,0,1)","v":0},{"$f":"ADDRESS(24,5,1,1,$G$1)","v":"'Equity Investments'!$E$24"},"=SUM(E11:E23)",0,null,null,null,{"$f":"ADDRESS(17,24,1,1,$M$1)","v":"'Currency Risk'!$X$17"},"=MAX(0,$T17+U17+(J17*I17))",0,{"$f":"ADDRESS(55,6,1,1,$P$1)","v":"'Concentration Risk'!$F$55"},"=MAX(0,(D55*E55))",{"$f":"IF(_xlfn.FORMULATEXT(INDIRECT(P152))=Q152,0,1)","v":0},{"$f":"ADDRESS(15,11,1,1,$S$1)","v":"'Geographic Diversification'!$K$15"},"=+'Schedule IVE (EBS)'!G15",0,{"$f":"ADDRESS(79,4,1,1,$V$1)","v":"'Credit Risk'!$D$79"},"='Schedule IIB (EBS)'!F91+'Schedule IIC (EBS)'!F91+'Schedule IID (EBS)'!F91+'Schedule IIE (EBS)'!F91+'Schedule IIF (EBS)'!F91",{"$f":"IF(_xlfn.FORMULATEXT(INDIRECT(V152))=W152,0,1)","v":0},{"$f":"ADDRESS(21,10,1,1,$Y$1)","v":"'Premium Risk'!$J$21"},"='Schedule IVD (EBS)'!M19*$G21",0]
[{"$f":"ADDRESS(66,29,1,1,$A$1)","v":"Summary!$AC$66"},"=(SUM(AA$58:AA67)/AA$68)",0,{"$f":"ADDRESS(89,8,1,1,$D$1)","v":"'Fixed Income Investments'!$H$89"},0.04,{"$f":"IF(INDIRECT(D153)=E153,0,1)","v":0},{"$f":"ADDRESS(24,6,1,1,$G$1)","v":"'Equity Investments'!$F$24"},"=SUM(F11:F23)",0,null,null,null,{"$f":"ADDRESS(17,25,1,1,$M$1)","v":"'Currency Risk'!$Y$17"},"=MAX(0,$T17+V17+(J17*I17))",0,{"$f":"ADDRESS(56,2,1,1,$P$1)","v":"'Concentration Risk'!$B$56"},"BSCR Rating 7",{"$f":"IF(INDIRECT(P153)=Q153,0,1)","v":0},{"$f":"ADDRESS(15,12,1,1,$S$1)","v":"'Geographic Diversification'!$L$15"},"=+'Schedule IVE (EBS)'!H15",0,{"$f":"ADDRESS(79,5,1,1,$V$1)","v":"'Credit Risk'!$E$79"},"='Schedule IIB (EBS)'!H91+'Schedule IIC (EBS)'!H91+'Schedule IID (EBS)'!H91+'Schedule IIE (EBS)'!H91+'Schedule IIF (EBS)'!H91",{"$f":"IF(_xlfn.FORMULATEXT(INDIRECT(V153))=W153,0,1)","v":0},{"$f":"ADDRESS(21,11,1,1,$Y$1)","v":"'Premium Risk'!$K$21"},0.47016820069929899,{"$f":"IF(INDIRECT(Y153)=Z153,0,1)","v":0}]
[{"$f":"ADDRESS(66,32,1,1,$A$1)","v":"Summary!$AF$66"},"=IF(AO70=\"\",IF(Test_Statistic<$AJ$74,AI66,IF(Test_Statistic<$AL$74,AK66,AM66)),AO70)",0,{"$f":"ADDRESS(89,9,1,1,$D$1)","v":"'Fixed Income Investments'!$I$89"},"=IF($G$89<0,0,$G$89*$H$89)",{"$f":"IF(_xlfn.FORMULATEXT(INDIRECT(D154))=E154,0,1)","v":0},{"$f":"ADDRESS(24,7,1,1,$G$1)","v":"'Equity Investments'!$G$24"},"=SUM(G11:G23)",0,null,null,null,{"$f":"ADDRESS(18,2,1,1,$M$1)","v":"'Currency Risk'!$B$18"},"='Schedule XXA'!B16",0,{"$f":"ADDRESS(56,4,1,1,$P$1)","v":"'Concentration Risk'!$D$56"},"=SUMIFS('Schedule XXIA'!$M$8:$M$57,'Schedule XXIA'!$K$8:$K$57,$D$48,'Schedule XXIA'!$L$8:$L$57,$B56)",{"$f":"IF(_xlfn.FORMULATEXT(INDIRECT(P154))=Q154,0,1)","v":0},{"$f":"ADDRESS(15,13,1,1,$S$1)","v":"'Geographic Diversification'!$M$15"},"=+'Schedule IVE (EBS)'!I15",0,{"$f":"ADDRESS(79,6,1,1,$V$1)","v":"'Credit Risk'!$F$79"},0.26300000000000001,{"$f":"IF(INDIRECT(V154)=W154,0,1)","v":0},{"$f":"ADDRESS(21,12,1,1,$Y$1)","v":"'Premium Risk'!$L$21"},"=+K21*S21",{"$f":"IF(_xlfn.FORMULATEXT(INDIRECT(Y154))=Z154,0,1)","v":0}]
[{"$f":"ADDRESS(66,33,1,1,$A$1)","v":"Summary!$AG$66"},"=IF(AP70=\"\",IF(Test_Statistic<$AJ$74,AJ66,IF(Test_Statistic<$AL$74,AL66,AN66)),AP70)",0,{"$f":"ADDRESS(90,7,1,1,$D$1)","v":"'Fixed Income Investments'!$G$90"},"='Schedule XIXA'!F88",{"$f":"IF(_xlfn.FORMULATEXT(INDIRECT(D155))=E155,0,1)","v":0},{"$f":"ADDRESS(24,8,1,1,$G$1)","v":"'Equity Investments'!$H$24"},"=SUM(H11:H23)",0,null,null,null,{"$f":"ADDRESS(18,3,1,1,$M$1)","v":"'Currency Risk'!$C$18"},"='Schedule XXA'!D16",0,{"$f":"ADDRESS(56,5,1,1,$P$1)","v":"'Concentration Risk'!$E$56"},"=+'Fixed Income Investments (Prior'!E47",{"$f":"IF(_xlfn.FORMULATEXT(INDIRECT(P155))=Q155,0,1)","v":0},{"$f":"ADDRESS(15,14,1,1,$S$1)","v":"'Geographic Diversification'!$N$15"},"=+'Schedule IVE (EBS)'!J15",0,{"$f":"ADDRESS(79,7,1,1,$V$1)","v":"'Credit Risk'!$G$79"},0.03,{"$f":"IF(INDIRECT(V155)=W155,0,1)","v":0},{"$f":"ADDRESS(21,13,1,1,$Y$1)","v":"'Premium Risk'!$M$21"},"=+L21*T21",{"$f":"IF(_xlfn.FORMULATEXT(INDIRECT(Y155))=Z155,0,1)","v":0}]
[{"$f":"ADDRESS(66,35,1,1,$A$1)","v":"Summary!$AI$66"},"=IF(AC65>1,260,IF(AC63>1,200,IF(AC63>0.6,180,40)))",0,{"$f":"ADDRESS(90,8,1,1,$D$1)","v":"'Fixed Income Investments'!$H$90"},0.06,{"$f":"IF(INDIRECT(D156)=E156,0,1)","v":0},{"$f":"ADDRESS(24,9,1,1,$G$1)","v":"'Equity Investments'!$I$24"},"=SUM(I11:I23)",0,null,null,null,{"$f":"ADDRESS(18,4,1,1,$M$1)","v":"'Currency Risk'!$D$18"},"='Schedule XXA'!F16",0,{"$f":"ADDRESS(56,6,1,1,$P$1)","v":"'Concentration Risk'!$F$56"},"=MAX(0,(D56*E56))",{"$f":"IF(_xlfn.FORMULATEXT(INDIRECT(P156))=Q156,0,1)","v":0},{"$f":"ADDRESS(15,15,1,1,$S$1)","v":"'Geographic Diversification'!$O$15"},"=+'Schedule IVE (EBS)'!K15",0,{"$f":"ADDRESS(79,8,1,1,$V$1)","v":"'Credit Risk'!$H$79"},"=MAX(0,C79-(1-G79)*MIN(C79,E79))*F79",{"$f":"IF(_xlfn.FORMULATEXT(INDIRECT(V156))=W156,0,1)","v":0},{"$f":"ADDRESS(21,14,1,1,$Y$1)","v":"'Premium Risk'!$N$21"},"=IF($H21<0,0,$H21*$K21)+IF($I21<0,0,$I21*$L21)+IF($J21<0,0,$J21*$M21)",{"$f":"IF(_xlfn.FORMULATEXT(INDIRECT(Y156))=Z156,0,1)","v":0}]
[{"$f":"ADDRESS(66,36,1,1,$A$1)","v":"Summary!$AJ$66"},"=IF(AC65>1,15,IF(AC63>0.6,5,100))",0,{"$f":"ADDRESS(90,9,1,1,$D$1)","v":"'Fixed Income Investments'!$I$90"},"=IF($G$90<0,0,$G$90*$H$90)",{"$f":"IF(_xlfn.FORMULATEXT(INDIRECT(D157))=E157,0,1)","v":0},{"$f":"ADDRESS(24,10,1,1,$G$1)","v":"'Equity Investments'!$J$24"},"=SUM(J11:J23)",0,null,null,null,{"$f":"ADDRESS(18,5,1,1,$M$1)","v":"'Currency Risk'!$E$18"},"='Schedule XXA'!H16",0,{"$f":"ADDRESS(57,2,1,1,$P$1)","v":"'Concentration Risk'!$B$57"},"BSCR Rating 8",{"$f":"IF(INDIRECT(P157)=Q157,0,1)","v":0},{"$f":"ADDRESS(15,16,1,1,$S$1)","v":"'Geographic Diversification'!$P$15"},"=+'Schedule IVE (EBS)'!L15",0,{"$f":"ADDRESS(80,3,1,1,$V$1)","v":"'Credit Risk'!$C$80"},"='Schedule IIB (EBS)'!D92+'Schedule IIC (EBS)'!D92+'Schedule IID (EBS)'!D92+'Schedule IIE (EBS)'!D92+'Schedule IIF (EBS)'!D92",{"$f":"IF(_xlfn.FORMULATEXT(INDIRECT(V157))=W157,0,1)","v":0},{"$f":"ADDRESS(21,17,1,1,$Y$1)","v":"'Premium Risk'!$Q$21"},"=IF(H21=E21,MAX(D21*K21,0),IF(E21=F21,IF(D21<0,0,D21*(H21/F21)*K21),IF(D21<0,0,D21*(H21/E21)*K21)))\n+IF(I21=E21,MAX(D21*L21,0),IF(E21=F21,IF(D21<0,0,D21*(I21/F21)*L21),IF(D21<0,0,D21*(I21/E21)*L21)))\n+IF(J21=E21,MAX(D21*M21,0),IF(E21=F21,IF(D21<0,0,D21*(J21/F21)*M21),IF(D21<0,0,D21*(J21/E21)*M21)))",{"$f":"IF(_xlfn.FORMULATEXT(INDIRECT(Y157))=Z157,0,1)","v":0}]
[{"$f":"ADDRESS(66,37,1,1,$A$1)","v":"Summary!$AK$66"},"=IF(Test_Statistic_2<0.95,180,240)",0,{"$f":"ADDRESS(91,7,1,1,$D$1)","v":"'Fixed Income Investments'!$G$91"},"='Schedule XIXA'!F89",{"$f":"IF(_xlfn.FORMULATEXT(INDIRECT(D158))=E158,0,1)","v":0},{"$f":"ADDRESS(24,11,1,1,$G$1)","v":"'Equity Investments'!$K$24"},"=SUM(K11:K23)",0,null,null,null,{"$f":"ADDRESS(18,6,1,1,$M$1)","v":"'Currency Risk'!$F$18"},"='Schedule XXA'!J16",0,{"$f":"ADDRESS(57,4,1,1,$P$1)","v":"'Concentration Risk'!$D$57"},"=SUMIFS('Schedule XXIA'!$M$8:$M$57,'Schedule XXIA'!$K$8:$K$57,$D$48,'Schedule XXIA'!$L$8:$L$57,$B57)",{"$f":"IF(_xlfn.FORMULATEXT(INDIRECT(P158))=Q158,0,1)","v":0},{"$f":"ADDRESS(15,17,1,1,$S$1)","v":"'Geographic Diversification'!$Q$15"},"=+'Schedule IVE (EBS)'!M15",0,{"$f":"ADDRESS(80,4,1,1,$V$1)","v":"'Credit Risk'!$D$80"},"='Schedule IIB (EBS)'!F92+'Schedule IIC (EBS)'!F92+'Schedule IID (EBS)'!F92+'Schedule IIE (EBS)'!F92+'Schedule IIF (EBS)'!F92",{"$f":"IF(_xlfn.FORMULATEXT(INDIRECT(V158))=W158,0,1)","v":0},{"$f":"ADDRESS(21,19,1,1,$Y$1)","v":"'Premium Risk'!$S$21"},0.3,{"$f":"IF(INDIRECT(Y158)=Z158,0,1)","v":0}]
[{"$f":"ADDRESS(66,38,1,1,$A$1)","v":"Summary!$AL$66"},"=IF(Test_Statistic_2<0.95,5,20)",0,{"$f":"ADDRESS(91,8,1,1,$D$1)","v":"'Fixed Income Investments'!$H$91"},0.09,{"$f":"IF(INDIRECT(D159)=E159,0,1)","v":0},{"$f":"ADDRESS(24,12,1,1,$G$1)","v":"'Equity Investments'!$L$24"},"=SUM(L11:L23)",0,null,null,null,{"$f":"ADDRESS(18,7,1,1,$M$1)","v":"'Currency Risk'!$G$18"},"='Schedule XXA'!L16",0,{"$f":"ADDRESS(57,5,1,1,$P$1)","v":"'Concentration Risk'!$E$57"},"=+'Fixed Income Investments (Prior'!E48",{"$f":"IF(_xlfn.FORMULATEXT(INDIRECT(P159))=Q159,0,1)","v":0},{"$f":"ADDRESS(15,18,1,1,$S$1)","v":"'Geographic Diversification'!$R$15"},"=+'Schedule IVE (EBS)'!N15",0,{"$f":"ADDRESS(80,5,1,1,$V$1)","v":"'Credit Risk'!$E$80"},"='Schedule IIB (EBS)'!H92+'Schedule IIC (EBS)'!H92+'Schedule IID (EBS)'!H92+'Schedule IIE (EBS)'!H92+'Schedule IIF (EBS)'!H92",{"$f":"IF(_xlfn.FORMULATEXT(INDIRECT(V159))=W159,0,1)","v":0},{"$f":"ADDRESS(21,20,1,1,$Y$1)","v":"'Premium Risk'!$T$21"},0.5,{"$f":"IF(INDIRECT(Y159)=Z159,0,1)","v":0}]
[{"$f":"ADDRESS(66,39,1,1,$A$1)","v":"Summary!$AM$66"},"=IF(Test_Statistic_2<1,180,240)",0,{"$f":"ADDRESS(91,9,1,1,$D$1)","v":"'Fixed Income Investments'!$I$91"},"=IF($G$91<0,0,$G$91*$H$91)",{"$f":"IF(_xlfn.FORMULATEXT(INDIRECT(D160))=E160,0,1)","v":0},{"$f":"ADDRESS(24,16,1,1,$G$1)","v":"'Equity Investments'!$P$24"},"=MAX(SUM(P11:P22),0)",0,null,null,null,{"$f":"ADDRESS(18,8,1,1,$M$1)","v":"'Currency Risk'!$H$18"},"='Schedule XXA'!N16",0,{"$f":"ADDRESS(57,6,1,1,$P$1)","v":"'Concentration Risk'!$F$57"},"=MAX(0,(D57*E57))",{"$f":"IF(_xlfn.FORMULATEXT(INDIRECT(P160))=Q160,0,1)","v":0},{"$f":"ADDRESS(15,19,1,1,$S$1)","v":"'Geographic Diversification'!$S$15"},"=+'Schedule IVE (EBS)'!O15",0,{"$f":"ADDRESS(80,6,1,1,$V$1)","v":"'Credit Risk'!$F$80"},0.35,{"$f":"IF(INDIRECT(V160)=W160,0,1)","v":0},{"$f":"ADDRESS(22,4,1,1,$Y$1)","v":"'Premium Risk'!$D$22"},"='Schedule IVD (EBS)'!Q20",{"$f":"IF(_xlfn.FORMULATEXT(INDIRECT(Y160))=Z160,0,1)","v":0}]
[{"$f":"ADDRESS(66,40,1,1,$A$1)","v":"Summary!$AN$66"},"=IF(Test_Statistic_2<1,5,20)",0,{"$f":"ADDRESS(93,7,1,1,$D$1)","v":"'Fixed Income Investments'!$G$93"},"=SUM(G83:G92)",0,{"$f":"ADDRESS(24,18,1,1,$G$1)","v":"'Equity Investments'!$R$24"},"=MAX(SUM(R11:R22),0)",0,null,null,null,{"$f":"ADDRESS(18,9,1,1,$M$1)","v":"'Currency Risk'!$I$18"},"=$I$10*H18",0,{"$f":"ADDRESS(59,4,1,1,$P$1)","v":"'Concentration Risk'!$D$59"},"=SUM(D48:D57)",{"$f":"IF(_xlfn.FORMULATEXT(INDIRECT(P161))=Q161,0,1)","v":0},{"$f":"ADDRESS(15,20,1,1,$S$1)","v":"'Geographic Diversification'!$T$15"},"=+'Schedule IVE (EBS)'!P15",0,{"$f":"ADDRESS(80,7,1,1,$V$1)","v":"'Credit Risk'!$G$80"},0.03,{"$f":"IF(INDIRECT(V161)=W161,0,1)","v":0},{"$f":"ADDRESS(22,5,1,1,$Y$1)","v":"'Premium Risk'!$E$22"},"='Schedule IVD (EBS)'!O20",0]
[{"$f":"ADDRESS(67,12,1,1,$A$1)","v":"Summary!$L$67"},"{=SQRT(MMULT(TRANSPOSE(K68:K70),MMULT('Correlation Matrix'!J7:L9,K68:K70)))}",0,{"$f":"ADDRESS(93,9,1,1,$D$1)","v":"'Fixed Income Investments'!$I$93"},"=SUM(I83:I92)",0,{"$f":"ADDRESS(27,4,1,1,$G$1)","v":"'Equity Investments'!$D$27"},"='Schedule IIB (EBS)'!D51+'Schedule IIC (EBS)'!D51+'Schedule IID (EBS)'!D51+'Schedule IIE (EBS)'!D51+'Schedule IIF (EBS)'!D51",0,null,null,null,{"$f":"ADDRESS(18,10,1,1,$M$1)","v":"'Currency Risk'!$J$18"},"=IF($B$12=\"Euro\",IF((SUM(C18:G18))>(H18+I18),0%,1.81%),IF((SUM(C18:G18))>(H18+I18),0%,25%))",0,{"$f":"ADDRESS(59,6,1,1,$P$1)","v":"'Concentration Risk'!$F$59"},"=SUM(F48:F57)",{"$f":"IF(_xlfn.FORMULATEXT(INDIRECT(P162))=Q162,0,1)","v":0},{"$f":"ADDRESS(15,21,1,1,$S$1)","v":"'Geographic Diversification'!$U$15"},"=+'Schedule IVE (EBS)'!Q15",0,{"$f":"ADDRESS(80,8,1,1,$V$1)","v":"'Credit Risk'!$H$80"},"=MAX(0,C80-(1-G80)*MIN(C80,E80))*F80",{"$f":"IF(_xlfn.FORMULATEXT(INDIRECT(V162))=W162,0,1)","v":0},{"$f":"ADDRESS(22,6,1,1,$Y$1)","v":"'Premium Risk'!$F$22"},"='Geographic Diversification'!H20",0]
[{"$f":"ADDRESS(67,14,1,1,$A$1)","v":"Summary!$N$67"},"{=SQRT(MMULT(TRANSPOSE(M68:M70),MMULT('Correlation Matrix'!J7:L9,M68:M70)))}",0,{"$f":"ADDRESS(95,8,1,1,$D$1)","v":"'Fixed Income Investments'!$H$95"},"='Schedule XIXA'!F98",0,{"$f":"ADDRESS(27,5,1,1,$G$1)","v":"'Equity Investments'!$E$27"},"='Schedule IIB (EBS)'!F51+'Schedule IIC (EBS)'!F51+'Schedule IID (EBS)'!F51+'Schedule IIE (EBS)'!F51+'Schedule IIF (EBS)'!F51",0,null,null,null,{"$f":"ADDRESS(18,12,1,1,$M$1)","v":"'Currency Risk'!$L$18"},"='Schedule XXA'!V16",0,{"$f":"ADDRESS(61,4,1,1,$P$1)","v":"'Concentration Risk'!$D$61"},"Bond Mutual Funds",{"$f":"IF(INDIRECT(P163)=Q163,0,1)","v":0},{"$f":"ADDRESS(15,22,1,1,$S$1)","v":"'Geographic Diversification'!$V$15"},"=+'Schedule IVE (EBS)'!R15",0,{"$f":"ADDRESS(82,8,1,1,$V$1)","v":"'Credit Risk'!$H$82"},"=SUM(H72:H80)",{"$f":"IF(_xlfn.FORMULATEXT(INDIRECT(V163))=W163,0,1)","v":0},{"$f":"ADDRESS(22,7,1,1,$Y$1)","v":"'Premium Risk'!$G$22"},"=IF(IFERROR(F22/E22,1)<0,1,IFERROR(F22/E22,1))",0]
[{"$f":"ADDRESS(68,3,1,1,$A$1)","v":"Summary!$C$68"},"Premium Risk",{"$f":"IF(INDIRECT(A164)=B164,0,1)","v":0},{"$f":"ADDRESS(95,9,1,1,$D$1)","v":"'Fixed Income Investments'!$I$95"},"=SUM(I83:I91)*-('Schedule XIXA'!F98)",0,{"$f":"ADDRESS(27,6,1,1,$G$1)","v":"'Equity Investments'!$F$27"},"='Schedule IIB (EBS)'!H51+'Schedule IIC (EBS)'!H51+'Schedule IID (EBS)'!H51+'Schedule IIE (EBS)'!H51+'Schedule IIF (EBS)'!H51",0,null,null,null,{"$f":"ADDRESS(18,13,1,1,$M$1)","v":"'Currency Risk'!$M$18"},"='Schedule XXA'!X16",0,{"$f":"ADDRESS(62,2,1,1,$P$1)","v":"'Concentration Risk'!$B$62"},"BSCR Rating 0",{"$f":"IF(INDIRECT(P164)=Q164,0,1)","v":0},{"$f":"ADDRESS(15,23,1,1,$S$1)","v":"'Geographic Diversification'!$W$15"},"=+'Schedule IVE (EBS)'!S15",0,{"$f":"ADDRESS(84,6,1,1,$V$1)","v":"'Credit Risk'!$F$84"},"=F15+F24+F67",{"$f":"IF(_xlfn.FORMULATEXT(INDIRECT(V164))=W164,0,1)","v":0},{"$f":"ADDRESS(22,8,1,1,$Y$1)","v":"'Premium Risk'!$H$22"},"='Schedule IVD (EBS)'!I20*$G22",0]
[{"$f":"ADDRESS(68,7,1,1,$A$1)","v":"Summary!$G$68"},"=ROUND('Premium Risk (old)'!I78,$N$166)",{"$f":"IF(_xlfn.FORMULATEXT(INDIRECT(A165))=B165,0,1)","v":0},{"$f":"ADDRESS(97,7,1,1,$D$1)","v":"'Fixed Income Investments'!$G$97"},"=G79+G93",0,{"$f":"ADDRESS(27,7,1,1,$G$1)","v":"'Equity Investments'!$G$27"},"='Schedule IIB (EBS)'!J51+'Schedule IIC (EBS)'!J51+'Schedule IID (EBS)'!J51+'Schedule IIE (EBS)'!J51+'Schedule IIF (EBS)'!J51",0,null,null,null,{"$f":"ADDRESS(18,14,1,1,$M$1)","v":"'Currency Risk'!$N$18"},"='Schedule XXA'!Z16",{"$f":"IF(_xlfn.FORMULATEXT(INDIRECT(M165))=N165,0,1)","v":0},{"$f":"ADDRESS(62,4,1,1,$P$1)","v":"'Concentration Risk'!$D$62"},"=SUMIFS('Schedule XXIA'!$M$8:$M$57,'Schedule XXIA'!$K$8:$K$57,$D$61,'Schedule XXIA'!$L$8:$L$57,$B62)",{"$f":"IF(_xlfn.FORMULATEXT(INDIRECT(P165))=Q165,0,1)","v":0},{"$f":"ADDRESS(15,24,1,1,$S$1)","v":"'Geographic Diversification'!$X$15"},"=+'Schedule IVE (EBS)'!T15",0,{"$f":"ADDRESS(84,8,1,1,$V$1)","v":"'Credit Risk'!$H$84"},"=H15+H24+H67+H82",{"$f":"IF(_xlfn.FORMULATEXT(INDIRECT(V165))=W165,0,1)","v":0},{"$f":"ADDRESS(22,9,1,1,$Y$1)","v":"'Premium Risk'!$I$22"},"='Schedule IVD (EBS)'!K20*$G22",0]
[{"$f":"ADDRESS(68,11,1,1,$A$1)","v":"Summary!$K$68"},"=ROUND('Premium Risk'!N59,$N$166)",0,{"$f":"ADDRESS(97,9,1,1,$D$1)","v":"'Fixed Income Investments'!$I$97"},"=IF(SUM(I79,I83:I91,I95)>=0,SUM(I79,I83:I91,I95),0)",0,{"$f":"ADDRESS(27,8,1,1,$G$1)","v":"'Equity Investments'!$H$27"},"='Schedule IIB (EBS)'!L51+'Schedule IIC (EBS)'!L51+'Schedule IID (EBS)'!L51+'Schedule IIE (EBS)'!L51+'Schedule IIF (EBS)'!L51",0,null,null,null,{"$f":"ADDRESS(18,15,1,1,$M$1)","v":"'Currency Risk'!$O$18"},"='Schedule XXA'!AB16",0,{"$f":"ADDRESS(62,5,1,1,$P$1)","v":"'Concentration Risk'!$E$62"},"=+'Fixed Income Investments (Prior'!E56",{"$f":"IF(_xlfn.FORMULATEXT(INDIRECT(P166))=Q166,0,1)","v":0},{"$f":"ADDRESS(15,25,1,1,$S$1)","v":"'Geographic Diversification'!$Y$15"},"=+'Schedule IVE (EBS)'!U15",0,null,null,-166,{"$f":"ADDRESS(22,10,1,1,$Y$1)","v":"'Premium Risk'!$J$22"},"='Schedule IVD (EBS)'!M20*$G22",0]
[{"$f":"ADDRESS(68,13,1,1,$A$1)","v":"Summary!$M$68"},"=ROUND('Premium Risk'!N59,$N$166)",0,{"$f":"ADDRESS(105,3,1,1,$D$1)","v":"'Fixed Income Investments'!$C$105"},"='Schedule IIB (EBS)'!D68+'Schedule IIC (EBS)'!D68+'Schedule IID (EBS)'!D68+'Schedule IIE (EBS)'!D68+'Schedule IIF (EBS)'!D68",0,{"$f":"ADDRESS(27,9,1,1,$G$1)","v":"'Equity Investments'!$I$27"},"='Schedule IIB (EBS)'!N51+'Schedule IIC (EBS)'!N51+'Schedule IID (EBS)'!N51+'Schedule IIE (EBS)'!N51+'Schedule IIF (EBS)'!N51",0,null,null,null,{"$f":"ADDRESS(18,16,1,1,$M$1)","v":"'Currency Risk'!$P$18"},"='Schedule XXA'!AD16",0,{"$f":"ADDRESS(62,6,1,1,$P$1)","v":"'Concentration Risk'!$F$62"},"=MAX(0,(D62*E62))",{"$f":"IF(_xlfn.FORMULATEXT(INDIRECT(P167))=Q167,0,1)","v":0},{"$f":"ADDRESS(15,26,1,1,$S$1)","v":"'Geographic Diversification'!$Z$15"},"=+'Schedule IVE (EBS)'!V15",0,null,null,null,{"$f":"ADDRESS(22,11,1,1,$Y$1)","v":"'Premium Risk'!$K$22"},0.50272577892886305,{"$f":"IF(INDIRECT(Y167)=Z167,0,1)","v":0}]
[{"$f":"ADDRESS(68,24,1,1,$A$1)","v":"Summary!$X$68"},"=SUM(X58:X67)",0,{"$f":"ADDRESS(105,4,1,1,$D$1)","v":"'Fixed Income Investments'!$D$105"},"='Schedule IIB (EBS)'!F68+'Schedule IIC (EBS)'!F68+'Schedule IID (EBS)'!F68+'Schedule IIE (EBS)'!F68+'Schedule IIF (EBS)'!F68",0,{"$f":"ADDRESS(27,10,1,1,$G$1)","v":"'Equity Investments'!$J$27"},"='Schedule IIB (EBS)'!P51+'Schedule IIC (EBS)'!P51+'Schedule IID (EBS)'!P51+'Schedule IIE (EBS)'!P51+'Schedule IIF (EBS)'!P51",0,null,null,null,{"$f":"ADDRESS(18,17,1,1,$M$1)","v":"'Currency Risk'!$Q$18"},"='Schedule XXA'!AF16",0,{"$f":"ADDRESS(63,2,1,1,$P$1)","v":"'Concentration Risk'!$B$63"},"BSCR Rating 1",{"$f":"IF(INDIRECT(P168)=Q168,0,1)","v":0},{"$f":"ADDRESS(16,4,1,1,$S$1)","v":"'Geographic Diversification'!$D$16"},"=SUM(I16:Z16)",0,null,null,null,{"$f":"ADDRESS(22,12,1,1,$Y$1)","v":"'Premium Risk'!$L$22"},"=+K22*S22",{"$f":"IF(_xlfn.FORMULATEXT(INDIRECT(Y168))=Z168,0,1)","v":0}]
[{"$f":"ADDRESS(68,25,1,1,$A$1)","v":"Summary!$Y$68"},"=SUM(Y58:Y67)",0,{"$f":"ADDRESS(105,5,1,1,$D$1)","v":"'Fixed Income Investments'!$E$105"},"='Schedule IIB (EBS)'!H68+'Schedule IIC (EBS)'!H68+'Schedule IID (EBS)'!H68+'Schedule IIE (EBS)'!H68+'Schedule IIF (EBS)'!H68",0,{"$f":"ADDRESS(27,11,1,1,$G$1)","v":"'Equity Investments'!$K$27"},"='Schedule IIB (EBS)'!R51+'Schedule IIC (EBS)'!R51+'Schedule IID (EBS)'!R51+'Schedule IIE (EBS)'!R51+'Schedule IIF (EBS)'!R51",0,null,null,null,{"$f":"ADDRESS(18,18,1,1,$M$1)","v":"'Currency Risk'!$R$18"},"=IF('Schedule XXA'!AH16=0,Q18,'Schedule XXA'!AH16)",0,{"$f":"ADDRESS(63,4,1,1,$P$1)","v":"'Concentration Risk'!$D$63"},"=SUMIFS('Schedule XXIA'!$M$8:$M$57,'Schedule XXIA'!$K$8:$K$57,$D$61,'Schedule XXIA'!$L$8:$L$57,$B63)",{"$f":"IF(_xlfn.FORMULATEXT(INDIRECT(P169))=Q169,0,1)","v":0},{"$f":"ADDRESS(16,5,1,1,$S$1)","v":"'Geographic Diversification'!$E$16"},"=SUMSQ(I16:Z16)",0,null,null,null,{"$f":"ADDRESS(22,13,1,1,$Y$1)","v":"'Premium Risk'!$M$22"},"=+L22*T22",{"$f":"IF(_xlfn.FORMULATEXT(INDIRECT(Y169))=Z169,0,1)","v":0}]
[{"$f":"ADDRESS(68,26,1,1,$A$1)","v":"Summary!$Z$68"},"=SUM(Z58:Z67)",0,{"$f":"ADDRESS(105,6,1,1,$D$1)","v":"'Fixed Income Investments'!$F$105"},"='Schedule IIB (EBS)'!J68+'Schedule IIC (EBS)'!J68+'Schedule IID (EBS)'!J68+'Schedule IIE (EBS)'!J68+'Schedule IIF (EBS)'!J68",0,{"$f":"ADDRESS(27,12,1,1,$G$1)","v":"'Equity Investments'!$L$27"},"='Schedule IIB (EBS)'!T51+'Schedule IIC (EBS)'!T51+'Schedule IID (EBS)'!T51+'Schedule IIE (EBS)'!T51+'Schedule IIF (EBS)'!T51",0,null,null,null,{"$f":"ADDRESS(18,20,1,1,$M$1)","v":"'Currency Risk'!$T$18"},"=(C18-L18)+(D18-M18)+(F18-O18)+MAX(E18-N18,0)+MAX(G18-P18,0)",0,{"$f":"ADDRESS(63,5,1,1,$P$1)","v":"'Concentration Risk'!$E$63"},"=+'Fixed Income Investments (Prior'!E57",{"$f":"IF(_xlfn.FORMULATEXT(INDIRECT(P170))=Q170,0,1)","v":0},{"$f":"ADDRESS(16,6,1,1,$S$1)","v":"'Geographic Diversification'!$F$16"},"=(IF(D16>0,E16/D16^2,1))",0,null,null,null,{"$f":"ADDRESS(22,14,1,1,$Y$1)","v":"'Premium Risk'!$N$22"},"=IF($H22<0,0,$H22*$K22)+IF($I22<0,0,$I22*$L22)+IF($J22<0,0,$J22*$M22)",{"$f":"IF(_xlfn.FORMULATEXT(INDIRECT(Y170))=Z170,0,1)","v":0}]
[{"$f":"ADDRESS(68,27,1,1,$A$1)","v":"Summary!$AA$68"},"=SUM(AA58:AA67)",0,{"$f":"ADDRESS(105,9,1,1,$D$1)","v":"'Fixed Income Investments'!$I$105"},"=(C105-D105)+MAX(0,E105-F105)",0,{"$f":"ADDRESS(27,16,1,1,$G$1)","v":"'Equity Investments'!$P$27"},"=MAX(D27-E27,0)+(F27-G27)+MAX(H27-I27,0)+(K27-J27)",0,null,null,null,{"$f":"ADDRESS(18,21,1,1,$M$1)","v":"'Currency Risk'!$U$18"},"=Q18-$H18",0,{"$f":"ADDRESS(63,6,1,1,$P$1)","v":"'Concentration Risk'!$F$63"},"=MAX(0,(D63*E63))",{"$f":"IF(_xlfn.FORMULATEXT(INDIRECT(P171))=Q171,0,1)","v":0},{"$f":"ADDRESS(16,7,1,1,$S$1)","v":"'Geographic Diversification'!$G$16"},"=D16*(0.75+0.25*F16)",0,null,null,null,{"$f":"ADDRESS(22,17,1,1,$Y$1)","v":"'Premium Risk'!$Q$22"},"=IF(H22=E22,MAX(D22*K22,0),IF(E22=F22,IF(D22<0,0,D22*(H22/F22)*K22),IF(D22<0,0,D22*(H22/E22)*K22)))\n+IF(I22=E22,MAX(D22*L22,0),IF(E22=F22,IF(D22<0,0,D22*(I22/F22)*L22),IF(D22<0,0,D22*(I22/E22)*L22)))\n+IF(J22=E22,MAX(D22*M22,0),IF(E22=F22,IF(D22<0,0,D22*(J22/F22)*M22),IF(D22<0,0,D22*(J22/E22)*M22)))",{"$f":"IF(_xlfn.FORMULATEXT(INDIRECT(Y171))=Z171,0,1)","v":0}]
[{"$f":"ADDRESS(69,3,1,1,$A$1)","v":"Summary!$C$69"},"Reserve Risk",{"$f":"IF(INDIRECT(A172)=B172,0,1)","v":0},{"$f":"ADDRESS(106,3,1,1,$D$1)","v":"'Fixed Income Investments'!$C$106"},"='Schedule IIB (EBS)'!D69+'Schedule IIC (EBS)'!D69+'Schedule IID (EBS)'!D69+'Schedule IIE (EBS)'!D69+'Schedule IIF (EBS)'!D69",0,{"$f":"ADDRESS(27,18,1,1,$G$1)","v":"'Equity Investments'!$R$27"},"=MAX(D27-E27,0)+(F27-G27)+MAX(H27-I27,0)+(L27-J27)",0,null,null,null,{"$f":"ADDRESS(18,22,1,1,$M$1)","v":"'Currency Risk'!$V$18"},"=R18-$H18",0,{"$f":"ADDRESS(64,2,1,1,$P$1)","v":"'Concentration Risk'!$B$64"},"BSCR Rating 2",{"$f":"IF(INDIRECT(P172)=Q172,0,1)","v":0},{"$f":"ADDRESS(16,8,1,1,$S$1)","v":"'Geographic Diversification'!$H$16"},"=IF('Schedule IVE (EBS)'!AB16=\"True\",G16,'Schedule IVD (EBS)'!O16)",0,null,null,null,{"$f":"ADDRESS(22,19,1,1,$Y$1)","v":"'Premium Risk'!$S$22"},0.5,{"$f":"IF(INDIRECT(Y172)=Z172,0,1)","v":0}]
[{"$f":"ADDRESS(69,7,1,1,$A$1)","v":"Summary!$G$69"},"=ROUND('Reserve Risk (old)'!H68,$N$166)",{"$f":"IF(_xlfn.FORMULATEXT(INDIRECT(A173))=B173,0,1)","v":0},{"$f":"ADDRESS(106,4,1,1,$D$1)","v":"'Fixed Income Investments'!$D$106"},"='Schedule IIB (EBS)'!F69+'Schedule IIC (EBS)'!F69+'Schedule IID (EBS)'!F69+'Schedule IIE (EBS)'!F69+'Schedule IIF (EBS)'!F69",0,{"$f":"ADDRESS(28,4,1,1,$G$1)","v":"'Equity Investments'!$D$28"},"='Schedule IIB (EBS)'!D52+'Schedule IIC (EBS)'!D52+'Schedule IID (EBS)'!D52+'Schedule IIE (EBS)'!D52+'Schedule IIF (EBS)'!D52",0,null,null,null,{"$f":"ADDRESS(18,24,1,1,$M$1)","v":"'Currency Risk'!$X$18"},"=MAX(0,$T18+U18+(J18*I18))",0,{"$f":"ADDRESS(64,4,1,1,$P$1)","v":"'Concentration Risk'!$D$64"},"=SUMIFS('Schedule XXIA'!$M$8:$M$57,'Schedule XXIA'!$K$8:$K$57,$D$61,'Schedule XXIA'!$L$8:$L$57,$B64)",{"$f":"IF(_xlfn.FORMULATEXT(INDIRECT(P173))=Q173,0,1)","v":0},{"$f":"ADDRESS(16,9,1,1,$S$1)","v":"'Geographic Diversification'!$I$16"},"=+'Schedule IVE (EBS)'!E16",0,null,null,null,{"$f":"ADDRESS(22,20,1,1,$Y$1)","v":"'Premium Risk'!$T$22"},0.5,{"$f":"IF(INDIRECT(Y173)=Z173,0,1)","v":0}]
[{"$f":"ADDRESS(69,11,1,1,$A$1)","v":"Summary!$K$69"},"=ROUND('Reserve Risk'!H53,$N$166)",{"$f":"IF(_xlfn.FORMULATEXT(INDIRECT(A174))=B174,0,1)","v":0},{"$f":"ADDRESS(106,5,1,1,$D$1)","v":"'Fixed Income Investments'!$E$106"},"='Schedule IIB (EBS)'!H69+'Schedule IIC (EBS)'!H69+'Schedule IID (EBS)'!H69+'Schedule IIE (EBS)'!H69+'Schedule IIF (EBS)'!H69",0,{"$f":"ADDRESS(28,5,1,1,$G$1)","v":"'Equity Investments'!$E$28"},"='Schedule IIB (EBS)'!F52+'Schedule IIC (EBS)'!F52+'Schedule IID (EBS)'!F52+'Schedule IIE (EBS)'!F52+'Schedule IIF (EBS)'!F52",0,null,null,null,{"$f":"ADDRESS(18,25,1,1,$M$1)","v":"'Currency Risk'!$Y$18"},"=MAX(0,$T18+V18+(J18*I18))",0,{"$f":"ADDRESS(64,5,1,1,$P$1)","v":"'Concentration Risk'!$E$64"},"=+'Fixed Income Investments (Prior'!E58",{"$f":"IF(_xlfn.FORMULATEXT(INDIRECT(P174))=Q174,0,1)","v":0},{"$f":"ADDRESS(16,10,1,1,$S$1)","v":"'Geographic Diversification'!$J$16"},"=+'Schedule IVE (EBS)'!F16",0,null,null,null,{"$f":"ADDRESS(23,4,1,1,$Y$1)","v":"'Premium Risk'!$D$23"},"='Schedule IVD (EBS)'!Q21",{"$f":"IF(_xlfn.FORMULATEXT(INDIRECT(Y174))=Z174,0,1)","v":0}]
[{"$f":"ADDRESS(69,13,1,1,$A$1)","v":"Summary!$M$69"},"=ROUND('Reserve Risk'!H53,$N$166)",{"$f":"IF(_xlfn.FORMULATEXT(INDIRECT(A175))=B175,0,1)","v":0},{"$f":"ADDRESS(106,6,1,1,$D$1)","v":"'Fixed Income Investments'!$F$106"},"='Schedule IIB (EBS)'!J69+'Schedule IIC (EBS)'!J69+'Schedule IID (EBS)'!J69+'Schedule IIE (EBS)'!J69+'Schedule IIF (EBS)'!J69",0,{"$f":"ADDRESS(28,6,1,1,$G$1)","v":"'Equity Investments'!$F$28"},"='Schedule IIB (EBS)'!H52+'Schedule IIC (EBS)'!H52+'Schedule IID (EBS)'!H52+'Schedule IIE (EBS)'!H52+'Schedule IIF (EBS)'!H52",0,null,null,null,{"$f":"ADDRESS(19,2,1,1,$M$1)","v":"'Currency Risk'!$B$19"},"='Schedule XXA'!B17",0,{"$f":"ADDRESS(64,6,1,1,$P$1)","v":"'Concentration Risk'!$F$64"},"=MAX(0,(D64*E64))",{"$f":"IF(_xlfn.FORMULATEXT(INDIRECT(P175))=Q175,0,1)","v":0},{"$f":"ADDRESS(16,11,1,1,$S$1)","v":"'Geographic Diversification'!$K$16"},"=+'Schedule IVE (EBS)'!G16",0,null,null,null,{"$f":"ADDRESS(23,5,1,1,$Y$1)","v":"'Premium Risk'!$E$23"},"='Schedule IVD (EBS)'!O21",0]
[{"$f":"ADDRESS(70,3,1,1,$A$1)","v":"Summary!$C$70"},"Catastrophe Risk",{"$f":"IF(INDIRECT(A176)=B176,0,1)","v":0},{"$f":"ADDRESS(106,9,1,1,$D$1)","v":"'Fixed Income Investments'!$I$106"},"=(C106-D106)+MAX(0,E106-F106)",0,{"$f":"ADDRESS(28,7,1,1,$G$1)","v":"'Equity Investments'!$G$28"},"='Schedule IIB (EBS)'!J52+'Schedule IIC (EBS)'!J52+'Schedule IID (EBS)'!J52+'Schedule IIE (EBS)'!J52+'Schedule IIF (EBS)'!J52",0,null,null,null,{"$f":"ADDRESS(19,3,1,1,$M$1)","v":"'Currency Risk'!$C$19"},"='Schedule XXA'!D17",0,{"$f":"ADDRESS(65,2,1,1,$P$1)","v":"'Concentration Risk'!$B$65"},"BSCR Rating 3",{"$f":"IF(INDIRECT(P176)=Q176,0,1)","v":0},{"$f":"ADDRESS(16,12,1,1,$S$1)","v":"'Geographic Diversification'!$L$16"},"=+'Schedule IVE (EBS)'!H16",0,null,null,null,{"$f":"ADDRESS(23,6,1,1,$Y$1)","v":"'Premium Risk'!$F$23"},"='Geographic Diversification'!H21",0]
[{"$f":"ADDRESS(70,7,1,1,$A$1)","v":"Summary!$G$70"},"=ROUND('Catastrophe Risk (old)'!E25,$N$166)",{"$f":"IF(_xlfn.FORMULATEXT(INDIRECT(A177))=B177,0,1)","v":0},{"$f":"ADDRESS(107,3,1,1,$D$1)","v":"'Fixed Income Investments'!$C$107"},"='Schedule IIB (EBS)'!D70+'Schedule IIC (EBS)'!D70+'Schedule IID (EBS)'!D70+'Schedule IIE (EBS)'!D70+'Schedule IIF (EBS)'!D70",0,{"$f":"ADDRESS(28,8,1,1,$G$1)","v":"'Equity Investments'!$H$28"},"='Schedule IIB (EBS)'!L52+'Schedule IIC (EBS)'!L52+'Schedule IID (EBS)'!L52+'Schedule IIE (EBS)'!L52+'Schedule IIF (EBS)'!L52",0,null,null,null,{"$f":"ADDRESS(19,4,1,1,$M$1)","v":"'Currency Risk'!$D$19"},"='Schedule XXA'!F17",0,{"$f":"ADDRESS(65,4,1,1,$P$1)","v":"'Concentration Risk'!$D$65"},"=SUMIFS('Schedule XXIA'!$M$8:$M$57,'Schedule XXIA'!$K$8:$K$57,$D$61,'Schedule XXIA'!$L$8:$L$57,$B65)",{"$f":"IF(_xlfn.FORMULATEXT(INDIRECT(P177))=Q177,0,1)","v":0},{"$f":"ADDRESS(16,13,1,1,$S$1)","v":"'Geographic Diversification'!$M$16"},"=+'Schedule IVE (EBS)'!I16",0,null,null,null,{"$f":"ADDRESS(23,7,1,1,$Y$1)","v":"'Premium Risk'!$G$23"},"=IF(IFERROR(F23/E23,1)<0,1,IFERROR(F23/E23,1))",0]
[{"$f":"ADDRESS(70,11,1,1,$A$1)","v":"Summary!$K$70"},"=ROUND('Catastrophe Risk'!E25,$N$166)",0,{"$f":"ADDRESS(107,4,1,1,$D$1)","v":"'Fixed Income Investments'!$D$107"},"='Schedule IIB (EBS)'!F70+'Schedule IIC (EBS)'!F70+'Schedule IID (EBS)'!F70+'Schedule IIE (EBS)'!F70+'Schedule IIF (EBS)'!F70",0,{"$f":"ADDRESS(28,9,1,1,$G$1)","v":"'Equity Investments'!$I$28"},"='Schedule IIB (EBS)'!N52+'Schedule IIC (EBS)'!N52+'Schedule IID (EBS)'!N52+'Schedule IIE (EBS)'!N52+'Schedule IIF (EBS)'!N52",0,null,null,null,{"$f":"ADDRESS(19,5,1,1,$M$1)","v":"'Currency Risk'!$E$19"},"='Schedule XXA'!H17",0,{"$f":"ADDRESS(65,5,1,1,$P$1)","v":"'Concentration Risk'!$E$65"},"=+'Fixed Income Investments (Prior'!E59",{"$f":"IF(_xlfn.FORMULATEXT(INDIRECT(P178))=Q178,0,1)","v":0},{"$f":"ADDRESS(16,14,1,1,$S$1)","v":"'Geographic Diversification'!$N$16"},"=+'Schedule IVE (EBS)'!J16",0,null,null,null,{"$f":"ADDRESS(23,8,1,1,$Y$1)","v":"'Premium Risk'!$H$23"},"='Schedule IVD (EBS)'!I21*$G23",0]
[{"$f":"ADDRESS(70,13,1,1,$A$1)","v":"Summary!$M$70"},"=ROUND('Catastrophe Risk'!E25,$N$166)",0,{"$f":"ADDRESS(107,5,1,1,$D$1)","v":"'Fixed Income Investments'!$E$107"},"='Schedule IIB (EBS)'!H70+'Schedule IIC (EBS)'!H70+'Schedule IID (EBS)'!H70+'Schedule IIE (EBS)'!H70+'Schedule IIF (EBS)'!H70",0,{"$f":"ADDRESS(28,10,1,1,$G$1)","v":"'Equity Investments'!$J$28"},"='Schedule IIB (EBS)'!P52+'Schedule IIC (EBS)'!P52+'Schedule IID (EBS)'!P52+'Schedule IIE (EBS)'!P52+'Schedule IIF (EBS)'!P52",0,null,null,null,{"$f":"ADDRESS(19,6,1,1,$M$1)","v":"'Currency Risk'!$F$19"},"='Schedule XXA'!J17",0,{"$f":"ADDRESS(65,6,1,1,$P$1)","v":"'Concentration Risk'!$F$65"},"=MAX(0,(D65*E65))",{"$f":"IF(_xlfn.FORMULATEXT(INDIRECT(P179))=Q179,0,1)","v":0},{"$f":"ADDRESS(16,15,1,1,$S$1)","v":"'Geographic Diversification'!$O$16"},"=+'Schedule IVE (EBS)'!K16",0,null,null,null,{"$f":"ADDRESS(23,9,1,1,$Y$1)","v":"'Premium Risk'!$I$23"},"='Schedule IVD (EBS)'!K21*$G23",0]
[{"$f":"ADDRESS(72,7,1,1,$A$1)","v":"Summary!$G$72"},"=SUM(G58:G70)",0,{"$f":"ADDRESS(107,6,1,1,$D$1)","v":"'Fixed Income Investments'!$F$107"},"='Schedule IIB (EBS)'!J70+'Schedule IIC (EBS)'!J70+'Schedule IID (EBS)'!J70+'Schedule IIE (EBS)'!J70+'Schedule IIF (EBS)'!J70",0,{"$f":"ADDRESS(28,11,1,1,$G$1)","v":"'Equity Investments'!$K$28"},"='Schedule IIB (EBS)'!R52+'Schedule IIC (EBS)'!R52+'Schedule IID (EBS)'!R52+'Schedule IIE (EBS)'!R52+'Schedule IIF (EBS)'!R52",0,null,null,null,{"$f":"ADDRESS(19,7,1,1,$M$1)","v":"'Currency Risk'!$G$19"},"='Schedule XXA'!L17",0,{"$f":"ADDRESS(66,2,1,1,$P$1)","v":"'Concentration Risk'!$B$66"},"BSCR Rating 4",{"$f":"IF(INDIRECT(P180)=Q180,0,1)","v":0},{"$f":"ADDRESS(16,16,1,1,$S$1)","v":"'Geographic Diversification'!$P$16"},"=+'Schedule IVE (EBS)'!L16",0,null,null,null,{"$f":"ADDRESS(23,10,1,1,$Y$1)","v":"'Premium Risk'!$J$23"},"='Schedule IVD (EBS)'!M21*$G23",0]
[{"$f":"ADDRESS(72,12,1,1,$A$1)","v":"Summary!$L$72"},"=SUM(K58:K70)",0,{"$f":"ADDRESS(107,9,1,1,$D$1)","v":"'Fixed Income Investments'!$I$107"},"=(C107-D107)+MAX(0,E107-F107)",0,{"$f":"ADDRESS(28,12,1,1,$G$1)","v":"'Equity Investments'!$L$28"},"='Schedule IIB (EBS)'!T52+'Schedule IIC (EBS)'!T52+'Schedule IID (EBS)'!T52+'Schedule IIE (EBS)'!T52+'Schedule IIF (EBS)'!T52",0,null,null,null,{"$f":"ADDRESS(19,8,1,1,$M$1)","v":"'Currency Risk'!$H$19"},"='Schedule XXA'!N17",0,{"$f":"ADDRESS(66,4,1,1,$P$1)","v":"'Concentration Risk'!$D$66"},"=SUMIFS('Schedule XXIA'!$M$8:$M$57,'Schedule XXIA'!$K$8:$K$57,$D$61,'Schedule XXIA'!$L$8:$L$57,$B66)",{"$f":"IF(_xlfn.FORMULATEXT(INDIRECT(P181))=Q181,0,1)","v":0},{"$f":"ADDRESS(16,17,1,1,$S$1)","v":"'Geographic Diversification'!$Q$16"},"=+'Schedule IVE (EBS)'!M16",0,null,null,null,{"$f":"ADDRESS(23,11,1,1,$Y$1)","v":"'Premium Risk'!$K$23"},0.555814073452775,{"$f":"IF(INDIRECT(Y181)=Z181,0,1)","v":0}]
[{"$f":"ADDRESS(72,14,1,1,$A$1)","v":"Summary!$N$72"},"=SUM(M58:M70)",0,{"$f":"ADDRESS(108,3,1,1,$D$1)","v":"'Fixed Income Investments'!$C$108"},"='Schedule IIB (EBS)'!D71+'Schedule IIC (EBS)'!D71+'Schedule IID (EBS)'!D71+'Schedule IIE (EBS)'!D71+'Schedule IIF (EBS)'!D71",0,{"$f":"ADDRESS(28,16,1,1,$G$1)","v":"'Equity Investments'!$P$28"},"=MAX(D28-E28,0)+(F28-G28)+MAX(H28-I28,0)+(K28-J28)",0,null,null,null,{"$f":"ADDRESS(19,9,1,1,$M$1)","v":"'Currency Risk'!$I$19"},"=$I$10*H19",0,{"$f":"ADDRESS(66,5,1,1,$P$1)","v":"'Concentration Risk'!$E$66"},"=+'Fixed Income Investments (Prior'!E60",{"$f":"IF(_xlfn.FORMULATEXT(INDIRECT(P182))=Q182,0,1)","v":0},{"$f":"ADDRESS(16,18,1,1,$S$1)","v":"'Geographic Diversification'!$R$16"},"=+'Schedule IVE (EBS)'!N16",0,null,null,null,{"$f":"ADDRESS(23,12,1,1,$Y$1)","v":"'Premium Risk'!$L$23"},"=+K23*S23",{"$f":"IF(_xlfn.FORMULATEXT(INDIRECT(Y182))=Z182,0,1)","v":0}]
[{"$f":"ADDRESS(72,35,1,1,$A$1)","v":"Summary!$AI$72"},"=AI74&\" - \"&AJ74",0,{"$f":"ADDRESS(108,4,1,1,$D$1)","v":"'Fixed Income Investments'!$D$108"},"='Schedule IIB (EBS)'!F71+'Schedule IIC (EBS)'!F71+'Schedule IID (EBS)'!F71+'Schedule IIE (EBS)'!F71+'Schedule IIF (EBS)'!F71",0,{"$f":"ADDRESS(28,18,1,1,$G$1)","v":"'Equity Investments'!$R$28"},"=MAX(D28-E28,0)+(F28-G28)+MAX(H28-I28,0)+(L28-J28)",0,null,null,null,{"$f":"ADDRESS(19,10,1,1,$M$1)","v":"'Currency Risk'!$J$19"},"=IF($B$12=\"Euro\",IF((SUM(C19:G19))>(H19+I19),0%,2.18%),IF((SUM(C19:G19))>(H19+I19),0%,25%))",0,{"$f":"ADDRESS(66,6,1,1,$P$1)","v":"'Concentration Risk'!$F$66"},"=MAX(0,(D66*E66))",{"$f":"IF(_xlfn.FORMULATEXT(INDIRECT(P183))=Q183,0,1)","v":0},{"$f":"ADDRESS(16,19,1,1,$S$1)","v":"'Geographic Diversification'!$S$16"},"=+'Schedule IVE (EBS)'!O16",0,null,null,null,{"$f":"ADDRESS(23,13,1,1,$Y$1)","v":"'Premium Risk'!$M$23"},"=+L23*T23",{"$f":"IF(_xlfn.FORMULATEXT(INDIRECT(Y183))=Z183,0,1)","v":0}]
[{"$f":"ADDRESS(72,37,1,1,$A$1)","v":"Summary!$AK$72"},"=AJ74&\" - \"&AL74",0,{"$f":"ADDRESS(108,5,1,1,$D$1)","v":"'Fixed Income Investments'!$E$108"},"='Schedule IIB (EBS)'!H71+'Schedule IIC (EBS)'!H71+'Schedule IID (EBS)'!H71+'Schedule IIE (EBS)'!H71+'Schedule IIF (EBS)'!H71",0,{"$f":"ADDRESS(29,4,1,1,$G$1)","v":"'Equity Investments'!$D$29"},"='Schedule IIB (EBS)'!D53+'Schedule IIC (EBS)'!D53+'Schedule IID (EBS)'!D53+'Schedule IIE (EBS)'!D53+'Schedule IIF (EBS)'!D53",0,null,null,null,{"$f":"ADDRESS(19,12,1,1,$M$1)","v":"'Currency Risk'!$L$19"},"='Schedule XXA'!V17",0,{"$f":"ADDRESS(67,2,1,1,$P$1)","v":"'Concentration Risk'!$B$67"},"BSCR Rating 5",{"$f":"IF(INDIRECT(P184)=Q184,0,1)","v":0},{"$f":"ADDRESS(16,20,1,1,$S$1)","v":"'Geographic Diversification'!$T$16"},"=+'Schedule IVE (EBS)'!P16",0,null,null,null,{"$f":"ADDRESS(23,14,1,1,$Y$1)","v":"'Premium Risk'!$N$23"},"=IF($H23<0,0,$H23*$K23)+IF($I23<0,0,$I23*$L23)+IF($J23<0,0,$J23*$M23)",{"$f":"IF(_xlfn.FORMULATEXT(INDIRECT(Y184))=Z184,0,1)","v":0}]
[{"$f":"ADDRESS(72,39,1,1,$A$1)","v":"Summary!$AM$72"},"=AL74&\" - \"&AN74",0,{"$f":"ADDRESS(108,6,1,1,$D$1)","v":"'Fixed Income Investments'!$F$108"},"='Schedule IIB (EBS)'!J71+'Schedule IIC (EBS)'!J71+'Schedule IID (EBS)'!J71+'Schedule IIE (EBS)'!J71+'Schedule IIF (EBS)'!J71",0,{"$f":"ADDRESS(29,5,1,1,$G$1)","v":"'Equity Investments'!$E$29"},"='Schedule IIB (EBS)'!F53+'Schedule IIC (EBS)'!F53+'Schedule IID (EBS)'!F53+'Schedule IIE (EBS)'!F53+'Schedule IIF (EBS)'!F53",0,null,null,null,{"$f":"ADDRESS(19,13,1,1,$M$1)","v":"'Currency Risk'!$M$19"},"='Schedule XXA'!X17",0,{"$f":"ADDRESS(67,4,1,1,$P$1)","v":"'Concentration Risk'!$D$67"},"=SUMIFS('Schedule XXIA'!$M$8:$M$57,'Schedule XXIA'!$K$8:$K$57,$D$61,'Schedule XXIA'!$L$8:$L$57,$B67)",{"$f":"IF(_xlfn.FORMULATEXT(INDIRECT(P185))=Q185,0,1)","v":0},{"$f":"ADDRESS(16,21,1,1,$S$1)","v":"'Geographic Diversification'!$U$16"},"=+'Schedule IVE (EBS)'!Q16",0,null,null,null,{"$f":"ADDRESS(23,17,1,1,$Y$1)","v":"'Premium Risk'!$Q$23"},"=IF(H23=E23,MAX(D23*K23,0),IF(E23=F23,IF(D23<0,0,D23*(H23/F23)*K23),IF(D23<0,0,D23*(H23/E23)*K23)))\n+IF(I23=E23,MAX(D23*L23,0),IF(E23=F23,IF(D23<0,0,D23*(I23/F23)*L23),IF(D23<0,0,D23*(I23/E23)*L23)))\n+IF(J23=E23,MAX(D23*M23,0),IF(E23=F23,IF(D23<0,0,D23*(J23/F23)*M23),IF(D23<0,0,D23*(J23/E23)*M23)))",{"$f":"IF(_xlfn.FORMULATEXT(INDIRECT(Y185))=Z185,0,1)","v":0}]
[{"$f":"ADDRESS(74,7,1,1,$A$1)","v":"Summary!$G$74"},"=(G58^2+G59^2+G60^2+G61^2+G62^2+G68^2+G70^2+(1/2*G65+G69)^2+(1/2*G65)^2)^0.5",0,{"$f":"ADDRESS(108,9,1,1,$D$1)","v":"'Fixed Income Investments'!$I$108"},"=(C108-D108)+MAX(0,E108-F108)",0,{"$f":"ADDRESS(29,6,1,1,$G$1)","v":"'Equity Investments'!$F$29"},"='Schedule IIB (EBS)'!H53+'Schedule IIC (EBS)'!H53+'Schedule IID (EBS)'!H53+'Schedule IIE (EBS)'!H53+'Schedule IIF (EBS)'!H53",0,null,null,null,{"$f":"ADDRESS(19,14,1,1,$M$1)","v":"'Currency Risk'!$N$19"},"='Schedule XXA'!Z17",0,{"$f":"ADDRESS(67,5,1,1,$P$1)","v":"'Concentration Risk'!$E$67"},"=+'Fixed Income Investments (Prior'!E61",{"$f":"IF(_xlfn.FORMULATEXT(INDIRECT(P186))=Q186,0,1)","v":0},{"$f":"ADDRESS(16,22,1,1,$S$1)","v":"'Geographic Diversification'!$V$16"},"=+'Schedule IVE (EBS)'!R16",0,null,null,null,{"$f":"ADDRESS(23,19,1,1,$Y$1)","v":"'Premium Risk'!$S$23"},0.5,{"$f":"IF(INDIRECT(Y186)=Z186,0,1)","v":0}]
[{"$f":"ADDRESS(74,12,1,1,$A$1)","v":"Summary!$L$74"},"{=SQRT(MMULT(TRANSPOSE('Correlation Matrix'!Z6:Z8),MMULT('Correlation Matrix'!O7:Q9,'Correlation Matrix'!Z6:Z8)))}",0,{"$f":"ADDRESS(109,3,1,1,$D$1)","v":"'Fixed Income Investments'!$C$109"},"='Schedule IIB (EBS)'!D72+'Schedule IIC (EBS)'!D72+'Schedule IID (EBS)'!D72+'Schedule IIE (EBS)'!D72+'Schedule IIF (EBS)'!D72",0,{"$f":"ADDRESS(29,7,1,1,$G$1)","v":"'Equity Investments'!$G$29"},"='Schedule IIB (EBS)'!J53+'Schedule IIC (EBS)'!J53+'Schedule IID (EBS)'!J53+'Schedule IIE (EBS)'!J53+'Schedule IIF (EBS)'!J53",0,null,null,null,{"$f":"ADDRESS(19,15,1,1,$M$1)","v":"'Currency Risk'!$O$19"},"='Schedule XXA'!AB17",0,{"$f":"ADDRESS(67,6,1,1,$P$1)","v":"'Concentration Risk'!$F$67"},"=MAX(0,(D67*E67))",{"$f":"IF(_xlfn.FORMULATEXT(INDIRECT(P187))=Q187,0,1)","v":0},{"$f":"ADDRESS(16,23,1,1,$S$1)","v":"'Geographic Diversification'!$W$16"},"=+'Schedule IVE (EBS)'!S16",0,null,null,null,{"$f":"ADDRESS(23,20,1,1,$Y$1)","v":"'Premium Risk'!$T$23"},0.5,{"$f":"IF(INDIRECT(Y187)=Z187,0,1)","v":0}]
[{"$f":"ADDRESS(74,14,1,1,$A$1)","v":"Summary!$N$74"},"{=SQRT(MMULT(TRANSPOSE('Correlation Matrix'!W6:W8),MMULT('Correlation Matrix'!O7:Q9,'Correlation Matrix'!W6:W8)))}",0,{"$f":"ADDRESS(109,4,1,1,$D$1)","v":"'Fixed Income Investments'!$D$109"},"='Schedule IIB (EBS)'!F72+'Schedule IIC (EBS)'!F72+'Schedule IID (EBS)'!F72+'Schedule IIE (EBS)'!F72+'Schedule IIF (EBS)'!F72",0,{"$f":"ADDRESS(29,8,1,1,$G$1)","v":"'Equity Investments'!$H$29"},"='Schedule IIB (EBS)'!L53+'Schedule IIC (EBS)'!L53+'Schedule IID (EBS)'!L53+'Schedule IIE (EBS)'!L53+'Schedule IIF (EBS)'!L53",0,null,null,null,{"$f":"ADDRESS(19,16,1,1,$M$1)","v":"'Currency Risk'!$P$19"},"='Schedule XXA'!AD17",0,{"$f":"ADDRESS(68,2,1,1,$P$1)","v":"'Concentration Risk'!$B$68"},"BSCR Rating 6",{"$f":"IF(INDIRECT(P188)=Q188,0,1)","v":0},{"$f":"ADDRESS(16,24,1,1,$S$1)","v":"'Geographic Diversification'!$X$16"},"=+'Schedule IVE (EBS)'!T16",0,null,null,null,{"$f":"ADDRESS(24,4,1,1,$Y$1)","v":"'Premium Risk'!$D$24"},"='Schedule IVD (EBS)'!Q22",{"$f":"IF(_xlfn.FORMULATEXT(INDIRECT(Y188))=Z188,0,1)","v":0}]
[{"$f":"ADDRESS(74,35,1,1,$A$1)","v":"Summary!$AI$74"},0,{"$f":"IF(INDIRECT(A189)=B189,0,1)","v":0},{"$f":"ADDRESS(109,5,1,1,$D$1)","v":"'Fixed Income Investments'!$E$109"},"='Schedule IIB (EBS)'!H72+'Schedule IIC (EBS)'!H72+'Schedule IID (EBS)'!H72+'Schedule IIE (EBS)'!H72+'Schedule IIF (EBS)'!H72",0,{"$f":"ADDRESS(29,9,1,1,$G$1)","v":"'Equity Investments'!$I$29"},"='Schedule IIB (EBS)'!N53+'Schedule IIC (EBS)'!N53+'Schedule IID (EBS)'!N53+'Schedule IIE (EBS)'!N53+'Schedule IIF (EBS)'!N53",0,null,null,null,{"$f":"ADDRESS(19,17,1,1,$M$1)","v":"'Currency Risk'!$Q$19"},"='Schedule XXA'!AF17",0,{"$f":"ADDRESS(68,4,1,1,$P$1)","v":"'Concentration Risk'!$D$68"},"=SUMIFS('Schedule XXIA'!$M$8:$M$57,'Schedule XXIA'!$K$8:$K$57,$D$61,'Schedule XXIA'!$L$8:$L$57,$B68)",{"$f":"IF(_xlfn.FORMULATEXT(INDIRECT(P189))=Q189,0,1)","v":0},{"$f":"ADDRESS(16,25,1,1,$S$1)","v":"'Geographic Diversification'!$Y$16"},"=+'Schedule IVE (EBS)'!U16",0,null,null,null,{"$f":"ADDRESS(24,5,1,1,$Y$1)","v":"'Premium Risk'!$E$24"},"='Schedule IVD (EBS)'!O22",0]
[{"$f":"ADDRESS(74,36,1,1,$A$1)","v":"Summary!$AJ$74"},"=0.5-AI92",{"$f":"IF(_xlfn.FORMULATEXT(INDIRECT(A190))=B190,0,1)","v":0},{"$f":"ADDRESS(109,6,1,1,$D$1)","v":"'Fixed Income Investments'!$F$109"},"='Schedule IIB (EBS)'!J72+'Schedule IIC (EBS)'!J72+'Schedule IID (EBS)'!J72+'Schedule IIE (EBS)'!J72+'Schedule IIF (EBS)'!J72",0,{"$f":"ADDRESS(29,10,1,1,$G$1)","v":"'Equity Investments'!$J$29"},"='Schedule IIB (EBS)'!P53+'Schedule IIC (EBS)'!P53+'Schedule IID (EBS)'!P53+'Schedule IIE (EBS)'!P53+'Schedule IIF (EBS)'!P53",0,null,null,null,{"$f":"ADDRESS(19,18,1,1,$M$1)","v":"'Currency Risk'!$R$19"},"=IF('Schedule XXA'!AH17=0,Q19,'Schedule XXA'!AH17)",0,{"$f":"ADDRESS(68,5,1,1,$P$1)","v":"'Concentration Risk'!$E$68"},"=+'Fixed Income Investments (Prior'!E62",{"$f":"IF(_xlfn.FORMULATEXT(INDIRECT(P190))=Q190,0,1)","v":0},{"$f":"ADDRESS(16,26,1,1,$S$1)","v":"'Geographic Diversification'!$Z$16"},"=+'Schedule IVE (EBS)'!V16",0,null,null,null,{"$f":"ADDRESS(24,6,1,1,$Y$1)","v":"'Premium Risk'!$F$24"},"='Geographic Diversification'!H22",0]
[{"$f":"ADDRESS(74,37,1,1,$A$1)","v":"Summary!$AK$74"},"=AJ74",{"$f":"IF(_xlfn.FORMULATEXT(INDIRECT(A191))=B191,0,1)","v":0},{"$f":"ADDRESS(109,9,1,1,$D$1)","v":"'Fixed Income Investments'!$I$109"},"=(C109-D109)+MAX(0,E109-F109)",0,{"$f":"ADDRESS(29,11,1,1,$G$1)","v":"'Equity Investments'!$K$29"},"='Schedule IIB (EBS)'!R53+'Schedule IIC (EBS)'!R53+'Schedule IID (EBS)'!R53+'Schedule IIE (EBS)'!R53+'Schedule IIF (EBS)'!R53",0,null,null,null,{"$f":"ADDRESS(19,20,1,1,$M$1)","v":"'Currency Risk'!$T$19"},"=(C19-L19)+(D19-M19)+(F19-O19)+MAX(E19-N19,0)+MAX(G19-P19,0)",0,{"$f":"ADDRESS(68,6,1,1,$P$1)","v":"'Concentration Risk'!$F$68"},"=MAX(0,(D68*E68))",{"$f":"IF(_xlfn.FORMULATEXT(INDIRECT(P191))=Q191,0,1)","v":0},{"$f":"ADDRESS(17,4,1,1,$S$1)","v":"'Geographic Diversification'!$D$17"},"=SUM(I17:Z17)",0,null,null,null,{"$f":"ADDRESS(24,7,1,1,$Y$1)","v":"'Premium Risk'!$G$24"},"=IF(IFERROR(F24/E24,1)<0,1,IFERROR(F24/E24,1))",0]
[{"$f":"ADDRESS(74,38,1,1,$A$1)","v":"Summary!$AL$74"},"=0.5+AI92",{"$f":"IF(_xlfn.FORMULATEXT(INDIRECT(A192))=B192,0,1)","v":0},{"$f":"ADDRESS(110,3,1,1,$D$1)","v":"'Fixed Income Investments'!$C$110"},"='Schedule IIB (EBS)'!D73+'Schedule IIC (EBS)'!D73+'Schedule IID (EBS)'!D73+'Schedule IIE (EBS)'!D73+'Schedule IIF (EBS)'!D73",{"$f":"IF(_xlfn.FORMULATEXT(INDIRECT(D192))=E192,0,1)","v":0},{"$f":"ADDRESS(29,12,1,1,$G$1)","v":"'Equity Investments'!$L$29"},"='Schedule IIB (EBS)'!T53+'Schedule IIC (EBS)'!T53+'Schedule IID (EBS)'!T53+'Schedule IIE (EBS)'!T53+'Schedule IIF (EBS)'!T53",0,null,null,null,{"$f":"ADDRESS(19,21,1,1,$M$1)","v":"'Currency Risk'!$U$19"},"=Q19-$H19",0,{"$f":"ADDRESS(69,2,1,1,$P$1)","v":"'Concentration Risk'!$B$69"},"BSCR Rating 7",{"$f":"IF(INDIRECT(P192)=Q192,0,1)","v":0},{"$f":"ADDRESS(17,5,1,1,$S$1)","v":"'Geographic Diversification'!$E$17"},"=SUMSQ(I17:Z17)",0,null,null,null,{"$f":"ADDRESS(24,8,1,1,$Y$1)","v":"'Premium Risk'!$H$24"},"='Schedule IVD (EBS)'!I22*$G24",0]
[{"$f":"ADDRESS(74,39,1,1,$A$1)","v":"Summary!$AM$74"},"=AL74",{"$f":"IF(_xlfn.FORMULATEXT(INDIRECT(A193))=B193,0,1)","v":0},{"$f":"ADDRESS(110,4,1,1,$D$1)","v":"'Fixed Income Investments'!$D$110"},"='Schedule IIB (EBS)'!F73+'Schedule IIC (EBS)'!F73+'Schedule IID (EBS)'!F73+'Schedule IIE (EBS)'!F73+'Schedule IIF (EBS)'!F73",0,{"$f":"ADDRESS(29,16,1,1,$G$1)","v":"'Equity Investments'!$P$29"},"=MAX(D29-E29,0)+(F29-G29)+MAX(H29-I29,0)+(K29-J29)",0,null,null,null,{"$f":"ADDRESS(19,22,1,1,$M$1)","v":"'Currency Risk'!$V$19"},"=R19-$H19",0,{"$f":"ADDRESS(69,4,1,1,$P$1)","v":"'Concentration Risk'!$D$69"},"=SUMIFS('Schedule XXIA'!$M$8:$M$57,'Schedule XXIA'!$K$8:$K$57,$D$61,'Schedule XXIA'!$L$8:$L$57,$B69)",{"$f":"IF(_xlfn.FORMULATEXT(INDIRECT(P193))=Q193,0,1)","v":0},{"$f":"ADDRESS(17,6,1,1,$S$1)","v":"'Geographic Diversification'!$F$17"},"=(IF(D17>0,E17/D17^2,1))",0,null,null,null,{"$f":"ADDRESS(24,9,1,1,$Y$1)","v":"'Premium Risk'!$I$24"},"='Schedule IVD (EBS)'!K22*$G24",0]
[{"$f":"ADDRESS(74,40,1,1,$A$1)","v":"Summary!$AN$74"},1,{"$f":"IF(INDIRECT(A194)=B194,0,1)","v":0},{"$f":"ADDRESS(110,5,1,1,$D$1)","v":"'Fixed Income Investments'!$E$110"},"='Schedule IIB (EBS)'!H73+'Schedule IIC (EBS)'!H73+'Schedule IID (EBS)'!H73+'Schedule IIE (EBS)'!H73+'Schedule IIF (EBS)'!H73",0,{"$f":"ADDRESS(29,18,1,1,$G$1)","v":"'Equity Investments'!$R$29"},"=MAX(D29-E29,0)+(F29-G29)+MAX(H29-I29,0)+(L29-J29)",0,null,null,null,{"$f":"ADDRESS(19,24,1,1,$M$1)","v":"'Currency Risk'!$X$19"},"=MAX(0,$T19+U19+(J19*I19))",0,{"$f":"ADDRESS(69,5,1,1,$P$1)","v":"'Concentration Risk'!$E$69"},"=+'Fixed Income Investments (Prior'!E63",{"$f":"IF(_xlfn.FORMULATEXT(INDIRECT(P194))=Q194,0,1)","v":0},{"$f":"ADDRESS(17,7,1,1,$S$1)","v":"'Geographic Diversification'!$G$17"},"=D17*(0.75+0.25*F17)",0,null,null,null,{"$f":"ADDRESS(24,10,1,1,$Y$1)","v":"'Premium Risk'!$J$24"},"='Schedule IVD (EBS)'!M22*$G24",0]
[{"$f":"ADDRESS(76,7,1,1,$A$1)","v":"Summary!$G$76"},"='Op Risk (Original)'!D23",{"$f":"IF(_xlfn.FORMULATEXT(INDIRECT(A195))=B195,0,1)","v":0},{"$f":"ADDRESS(110,6,1,1,$D$1)","v":"'Fixed Income Investments'!$F$110"},"='Schedule IIB (EBS)'!J73+'Schedule IIC (EBS)'!J73+'Schedule IID (EBS)'!J73+'Schedule IIE (EBS)'!J73+'Schedule IIF (EBS)'!J73",0,{"$f":"ADDRESS(30,4,1,1,$G$1)","v":"'Equity Investments'!$D$30"},"='Schedule IIB (EBS)'!D54+'Schedule IIC (EBS)'!D54+'Schedule IID (EBS)'!D54+'Schedule IIE (EBS)'!D54+'Schedule IIF (EBS)'!D54",0,null,null,null,{"$f":"ADDRESS(19,25,1,1,$M$1)","v":"'Currency Risk'!$Y$19"},"=MAX(0,$T19+V19+(J19*I19))",0,{"$f":"ADDRESS(69,6,1,1,$P$1)","v":"'Concentration Risk'!$F$69"},"=MAX(0,(D69*E69))",{"$f":"IF(_xlfn.FORMULATEXT(INDIRECT(P195))=Q195,0,1)","v":0},{"$f":"ADDRESS(17,8,1,1,$S$1)","v":"'Geographic Diversification'!$H$17"},"=IF('Schedule IVE (EBS)'!AB17=\"True\",G17,'Schedule IVD (EBS)'!O17)",0,null,null,null,{"$f":"ADDRESS(24,11,1,1,$Y$1)","v":"'Premium Risk'!$K$24"},0.51225206482709496,{"$f":"IF(INDIRECT(Y195)=Z195,0,1)","v":0}]
[{"$f":"ADDRESS(76,14,1,1,$A$1)","v":"Summary!$N$76"},"='Op Risk'!D23",0,{"$f":"ADDRESS(110,9,1,1,$D$1)","v":"'Fixed Income Investments'!$I$110"},"=(C110-D110)+MAX(0,E110-F110)",0,{"$f":"ADDRESS(30,5,1,1,$G$1)","v":"'Equity Investments'!$E$30"},"='Schedule IIB (EBS)'!F54+'Schedule IIC (EBS)'!F54+'Schedule IID (EBS)'!F54+'Schedule IIE (EBS)'!F54+'Schedule IIF (EBS)'!F54",0,null,null,null,{"$f":"ADDRESS(20,2,1,1,$M$1)","v":"'Currency Risk'!$B$20"},"='Schedule XXA'!B18",0,{"$f":"ADDRESS(70,2,1,1,$P$1)","v":"'Concentration Risk'!$B$70"},"BSCR Rating 8",{"$f":"IF(INDIRECT(P196)=Q196,0,1)","v":0},{"$f":"ADDRESS(17,9,1,1,$S$1)","v":"'Geographic Diversification'!$I$17"},"=+'Schedule IVE (EBS)'!E17",{"$f":"IF(_xlfn.FORMULATEXT(INDIRECT(S196))=T196,0,1)","v":0},null,null,null,{"$f":"ADDRESS(24,12,1,1,$Y$1)","v":"'Premium Risk'!$L$24"},"=+K24*S24",{"$f":"IF(_xlfn.FORMULATEXT(INDIRECT(Y196))=Z196,0,1)","v":0}]
[{"$f":"ADDRESS(78,7,1,1,$A$1)","v":"Summary!$G$78"},"=$G$74*$G$76",0,{"$f":"ADDRESS(111,3,1,1,$D$1)","v":"'Fixed Income Investments'!$C$111"},"='Schedule IIB (EBS)'!D74+'Schedule IIC (EBS)'!D74+'Schedule IID (EBS)'!D74+'Schedule IIE (EBS)'!D74+'Schedule IIF (EBS)'!D74",0,{"$f":"ADDRESS(30,6,1,1,$G$1)","v":"'Equity Investments'!$F$30"},"='Schedule IIB (EBS)'!H54+'Schedule IIC (EBS)'!H54+'Schedule IID (EBS)'!H54+'Schedule IIE (EBS)'!H54+'Schedule IIF (EBS)'!H54",0,null,null,null,{"$f":"ADDRESS(20,3,1,1,$M$1)","v":"'Currency Risk'!$C$20"},"='Schedule XXA'!D18",0,{"$f":"ADDRESS(70,4,1,1,$P$1)","v":"'Concentration Risk'!$D$70"},"=SUMIFS('Schedule XXIA'!$M$8:$M$57,'Schedule XXIA'!$K$8:$K$57,$D$61,'Schedule XXIA'!$L$8:$L$57,$B70)",{"$f":"IF(_xlfn.FORMULATEXT(INDIRECT(P197))=Q197,0,1)","v":0},{"$f":"ADDRESS(17,10,1,1,$S$1)","v":"'Geographic Diversification'!$J$17"},"=+'Schedule IVE (EBS)'!F17",0,null,null,null,{"$f":"ADDRESS(24,13,1,1,$Y$1)","v":"'Premium Risk'!$M$24"},"=+L24*T24",{"$f":"IF(_xlfn.FORMULATEXT(INDIRECT(Y197))=Z197,0,1)","v":0}]
[{"$f":"ADDRESS(78,14,1,1,$A$1)","v":"Summary!$N$78"},"=($N$74+M147)*$N$76",0,{"$f":"ADDRESS(111,4,1,1,$D$1)","v":"'Fixed Income Investments'!$D$111"},"='Schedule IIB (EBS)'!F74+'Schedule IIC (EBS)'!F74+'Schedule IID (EBS)'!F74+'Schedule IIE (EBS)'!F74+'Schedule IIF (EBS)'!F74",0,{"$f":"ADDRESS(30,7,1,1,$G$1)","v":"'Equity Investments'!$G$30"},"='Schedule IIB (EBS)'!J54+'Schedule IIC (EBS)'!J54+'Schedule IID (EBS)'!J54+'Schedule IIE (EBS)'!J54+'Schedule IIF (EBS)'!J54",0,null,null,null,{"$f":"ADDRESS(20,4,1,1,$M$1)","v":"'Currency Risk'!$D$20"},"='Schedule XXA'!F18",0,{"$f":"ADDRESS(70,5,1,1,$P$1)","v":"'Concentration Risk'!$E$70"},"=+'Fixed Income Investments (Prior'!E64",{"$f":"IF(_xlfn.FORMULATEXT(INDIRECT(P198))=Q198,0,1)","v":0},{"$f":"ADDRESS(17,11,1,1,$S$1)","v":"'Geographic Diversification'!$K$17"},"=+'Schedule IVE (EBS)'!G17",0,null,null,null,{"$f":"ADDRESS(24,14,1,1,$Y$1)","v":"'Premium Risk'!$N$24"},"=IF($H24<0,0,$H24*$K24)+IF($I24<0,0,$I24*$L24)+IF($J24<0,0,$J24*$M24)",{"$f":"IF(_xlfn.FORMULATEXT(INDIRECT(Y198))=Z198,0,1)","v":0}]
[{"$f":"ADDRESS(78,26,1,1,$A$1)","v":"Summary!$Z$78"},"=MAX(Z86,Z88,Z92)",0,{"$f":"ADDRESS(111,5,1,1,$D$1)","v":"'Fixed Income Investments'!$E$111"},"='Schedule IIB (EBS)'!H74+'Schedule IIC (EBS)'!H74+'Schedule IID (EBS)'!H74+'Schedule IIE (EBS)'!H74+'Schedule IIF (EBS)'!H74",0,{"$f":"ADDRESS(30,8,1,1,$G$1)","v":"'Equity Investments'!$H$30"},"='Schedule IIB (EBS)'!L54+'Schedule IIC (EBS)'!L54+'Schedule IID (EBS)'!L54+'Schedule IIE (EBS)'!L54+'Schedule IIF (EBS)'!L54",0,null,null,null,{"$f":"ADDRESS(20,5,1,1,$M$1)","v":"'Currency Risk'!$E$20"},"='Schedule XXA'!H18",0,{"$f":"ADDRESS(70,6,1,1,$P$1)","v":"'Concentration Risk'!$F$70"},"=MAX(0,(D70*E70))",{"$f":"IF(_xlfn.FORMULATEXT(INDIRECT(P199))=Q199,0,1)","v":0},{"$f":"ADDRESS(17,12,1,1,$S$1)","v":"'Geographic Diversification'!$L$17"},"=+'Schedule IVE (EBS)'!H17",0,null,null,null,{"$f":"ADDRESS(24,17,1,1,$Y$1)","v":"'Premium Risk'!$Q$24"},"=IF(H24=E24,MAX(D24*K24,0),IF(E24=F24,IF(D24<0,0,D24*(H24/F24)*K24),IF(D24<0,0,D24*(H24/E24)*K24)))\n+IF(I24=E24,MAX(D24*L24,0),IF(E24=F24,IF(D24<0,0,D24*(I24/F24)*L24),IF(D24<0,0,D24*(I24/E24)*L24)))\n+IF(J24=E24,MAX(D24*M24,0),IF(E24=F24,IF(D24<0,0,D24*(J24/F24)*M24),IF(D24<0,0,D24*(J24/E24)*M24)))",{"$f":"IF(_xlfn.FORMULATEXT(INDIRECT(Y199))=Z199,0,1)","v":0}]
[{"$f":"ADDRESS(78,29,1,1,$A$1)","v":"Summary!$AC$78"},"=MAX($Z$78,$N$90)",0,{"$f":"ADDRESS(111,6,1,1,$D$1)","v":"'Fixed Income Investments'!$F$111"},"='Schedule IIB (EBS)'!J74+'Schedule IIC (EBS)'!J74+'Schedule IID (EBS)'!J74+'Schedule IIE (EBS)'!J74+'Schedule IIF (EBS)'!J74",0,{"$f":"ADDRESS(30,9,1,1,$G$1)","v":"'Equity Investments'!$I$30"},"='Schedule IIB (EBS)'!N54+'Schedule IIC (EBS)'!N54+'Schedule IID (EBS)'!N54+'Schedule IIE (EBS)'!N54+'Schedule IIF (EBS)'!N54",{"$f":"IF(_xlfn.FORMULATEXT(INDIRECT(G200))=H200,0,1)","v":0},null,null,null,{"$f":"ADDRESS(20,6,1,1,$M$1)","v":"'Currency Risk'!$F$20"},"='Schedule XXA'!J18",0,{"$f":"ADDRESS(72,4,1,1,$P$1)","v":"'Concentration Risk'!$D$72"},"=SUM(D61:D70)",{"$f":"IF(_xlfn.FORMULATEXT(INDIRECT(P200))=Q200,0,1)","v":0},{"$f":"ADDRESS(17,13,1,1,$S$1)","v":"'Geographic Diversification'!$M$17"},"=+'Schedule IVE (EBS)'!I17",0,null,null,null,{"$f":"ADDRESS(24,19,1,1,$Y$1)","v":"'Premium Risk'!$S$24"},0.5,{"$f":"IF(INDIRECT(Y200)=Z200,0,1)","v":0}]
[{"$f":"ADDRESS(80,7,1,1,$A$1)","v":"Summary!$G$80"},"=+'Schedule XVI'!M211",0,{"$f":"ADDRESS(111,9,1,1,$D$1)","v":"'Fixed Income Investments'!$I$111"},"=(C111-D111)+MAX(0,E111-F111)",0,{"$f":"ADDRESS(30,10,1,1,$G$1)","v":"'Equity Investments'!$J$30"},"='Schedule IIB (EBS)'!P54+'Schedule IIC (EBS)'!P54+'Schedule IID (EBS)'!P54+'Schedule IIE (EBS)'!P54+'Schedule IIF (EBS)'!P54",0,null,null,null,{"$f":"ADDRESS(20,7,1,1,$M$1)","v":"'Currency Risk'!$G$20"},"='Schedule XXA'!L18",0,{"$f":"ADDRESS(72,6,1,1,$P$1)","v":"'Concentration Risk'!$F$72"},"=SUM(F61:F70)",{"$f":"IF(_xlfn.FORMULATEXT(INDIRECT(P201))=Q201,0,1)","v":0},{"$f":"ADDRESS(17,14,1,1,$S$1)","v":"'Geographic Diversification'!$N$17"},"=+'Schedule IVE (EBS)'!J17",0,null,null,null,{"$f":"ADDRESS(24,20,1,1,$Y$1)","v":"'Premium Risk'!$T$24"},0.5,{"$f":"IF(INDIRECT(Y201)=Z201,0,1)","v":0}]
[{"$f":"ADDRESS(80,14,1,1,$A$1)","v":"Summary!$N$80"},"=+'Schedule XVI'!M211",0,{"$f":"ADDRESS(112,3,1,1,$D$1)","v":"'Fixed Income Investments'!$C$112"},"='Schedule IIB (EBS)'!D75+'Schedule IIC (EBS)'!D75+'Schedule IID (EBS)'!D75+'Schedule IIE (EBS)'!D75+'Schedule IIF (EBS)'!D75",0,{"$f":"ADDRESS(30,11,1,1,$G$1)","v":"'Equity Investments'!$K$30"},"='Schedule IIB (EBS)'!R54+'Schedule IIC (EBS)'!R54+'Schedule IID (EBS)'!R54+'Schedule IIE (EBS)'!R54+'Schedule IIF (EBS)'!R54",0,null,null,null,{"$f":"ADDRESS(20,8,1,1,$M$1)","v":"'Currency Risk'!$H$20"},"='Schedule XXA'!N18",0,{"$f":"ADDRESS(74,4,1,1,$P$1)","v":"'Concentration Risk'!$D$74"},"Preferred Shares",{"$f":"IF(INDIRECT(P202)=Q202,0,1)","v":0},{"$f":"ADDRESS(17,15,1,1,$S$1)","v":"'Geographic Diversification'!$O$17"},"=+'Schedule IVE (EBS)'!K17",0,null,null,null,{"$f":"ADDRESS(25,4,1,1,$Y$1)","v":"'Premium Risk'!$D$25"},"='Schedule IVD (EBS)'!Q23",{"$f":"IF(_xlfn.FORMULATEXT(INDIRECT(Y202))=Z202,0,1)","v":0}]
[{"$f":"ADDRESS(82,14,1,1,$A$1)","v":"Summary!$N$82"},"=M147",0,{"$f":"ADDRESS(112,4,1,1,$D$1)","v":"'Fixed Income Investments'!$D$112"},"='Schedule IIB (EBS)'!F75+'Schedule IIC (EBS)'!F75+'Schedule IID (EBS)'!F75+'Schedule IIE (EBS)'!F75+'Schedule IIF (EBS)'!F75",0,{"$f":"ADDRESS(30,12,1,1,$G$1)","v":"'Equity Investments'!$L$30"},"='Schedule IIB (EBS)'!T54+'Schedule IIC (EBS)'!T54+'Schedule IID (EBS)'!T54+'Schedule IIE (EBS)'!T54+'Schedule IIF (EBS)'!T54",0,null,null,null,{"$f":"ADDRESS(20,9,1,1,$M$1)","v":"'Currency Risk'!$I$20"},"=$I$10*H20",0,{"$f":"ADDRESS(75,2,1,1,$P$1)","v":"'Concentration Risk'!$B$75"},"BSCR Rating 0",{"$f":"IF(INDIRECT(P203)=Q203,0,1)","v":0},{"$f":"ADDRESS(17,16,1,1,$S$1)","v":"'Geographic Diversification'!$P$17"},"=+'Schedule IVE (EBS)'!L17",0,null,null,null,{"$f":"ADDRESS(25,5,1,1,$Y$1)","v":"'Premium Risk'!$E$25"},"='Schedule IVD (EBS)'!O23",0]
[{"$f":"ADDRESS(84,14,1,1,$A$1)","v":"Summary!$N$84"},"=M152",0,{"$f":"ADDRESS(112,5,1,1,$D$1)","v":"'Fixed Income Investments'!$E$112"},"='Schedule IIB (EBS)'!H75+'Schedule IIC (EBS)'!H75+'Schedule IID (EBS)'!H75+'Schedule IIE (EBS)'!H75+'Schedule IIF (EBS)'!H75",0,{"$f":"ADDRESS(30,16,1,1,$G$1)","v":"'Equity Investments'!$P$30"},"=MAX(D30-E30,0)+(F30-G30)+MAX(H30-I30,0)+(K30-J30)",0,null,null,null,{"$f":"ADDRESS(20,10,1,1,$M$1)","v":"'Currency Risk'!$J$20"},"=IF($B$12=\"Euro\",IF((SUM(C20:G20))>(H20+I20),0%,1.96%),IF((SUM(C20:G20))>(H20+I20),0%,25%))",0,{"$f":"ADDRESS(75,4,1,1,$P$1)","v":"'Concentration Risk'!$D$75"},"=SUMIFS('Schedule XXIA'!$M$8:$M$57,'Schedule XXIA'!$J$8:$J$57,$D$74,'Schedule XXIA'!$L$8:$L$57,$B75)",{"$f":"IF(_xlfn.FORMULATEXT(INDIRECT(P204))=Q204,0,1)","v":0},{"$f":"ADDRESS(17,17,1,1,$S$1)","v":"'Geographic Diversification'!$Q$17"},"=+'Schedule IVE (EBS)'!M17",0,null,null,null,{"$f":"ADDRESS(25,6,1,1,$Y$1)","v":"'Premium Risk'!$F$25"},"='Geographic Diversification'!H23",0]
[{"$f":"ADDRESS(86,7,1,1,$A$1)","v":"Summary!$G$86"},"='CSP (old)'!I524-'CSP (old)'!F524",0,{"$f":"ADDRESS(112,6,1,1,$D$1)","v":"'Fixed Income Investments'!$F$112"},"='Schedule IIB (EBS)'!J75+'Schedule IIC (EBS)'!J75+'Schedule IID (EBS)'!J75+'Schedule IIE (EBS)'!J75+'Schedule IIF (EBS)'!J75",0,{"$f":"ADDRESS(30,18,1,1,$G$1)","v":"'Equity Investments'!$R$30"},"=MAX(D30-E30,0)+(F30-G30)+MAX(H30-I30,0)+(L30-J30)",0,null,null,null,{"$f":"ADDRESS(20,12,1,1,$M$1)","v":"'Currency Risk'!$L$20"},"='Schedule XXA'!V18",0,{"$f":"ADDRESS(75,5,1,1,$P$1)","v":"'Concentration Risk'!$E$75"},0,{"$f":"IF(INDIRECT(P205)=Q205,0,1)","v":0},{"$f":"ADDRESS(17,18,1,1,$S$1)","v":"'Geographic Diversification'!$R$17"},"=+'Schedule IVE (EBS)'!N17",0,null,null,null,{"$f":"ADDRESS(25,7,1,1,$Y$1)","v":"'Premium Risk'!$G$25"},"=IF(IFERROR(F25/E25,1)<0,1,IFERROR(F25/E25,1))",0]
[{"$f":"ADDRESS(86,14,1,1,$A$1)","v":"Summary!$N$86"},"='Company Specific Parameters'!L701-'Company Specific Parameters'!I701",0,{"$f":"ADDRESS(112,9,1,1,$D$1)","v":"'Fixed Income Investments'!$I$112"},"=(C112-D112)+MAX(0,E112-F112)",0,{"$f":"ADDRESS(31,4,1,1,$G$1)","v":"'Equity Investments'!$D$31"},"='Schedule IIB (EBS)'!D55+'Schedule IIC (EBS)'!D55+'Schedule IID (EBS)'!D55+'Schedule IIE (EBS)'!D55+'Schedule IIF (EBS)'!D55",0,null,null,null,{"$f":"ADDRESS(20,13,1,1,$M$1)","v":"'Currency Risk'!$M$20"},"='Schedule XXA'!X18",0,{"$f":"ADDRESS(75,6,1,1,$P$1)","v":"'Concentration Risk'!$F$75"},"=MAX(0,(D75*E75))",{"$f":"IF(_xlfn.FORMULATEXT(INDIRECT(P206))=Q206,0,1)","v":0},{"$f":"ADDRESS(17,19,1,1,$S$1)","v":"'Geographic Diversification'!$S$17"},"=+'Schedule IVE (EBS)'!O17",0,null,null,null,{"$f":"ADDRESS(25,8,1,1,$Y$1)","v":"'Premium Risk'!$H$25"},"='Schedule IVD (EBS)'!I23*$G25",0]
[{"$f":"ADDRESS(86,26,1,1,$A$1)","v":"Summary!$Z$86"},"=IF('Company Information'!B2=\"Unconsolidated BSCR Model\",'Form 1SFS'!M124*15%,'Form 1SFS'!E124*15%)",0,{"$f":"ADDRESS(113,3,1,1,$D$1)","v":"'Fixed Income Investments'!$C$113"},"='Schedule IIB (EBS)'!D76+'Schedule IIC (EBS)'!D76+'Schedule IID (EBS)'!D76+'Schedule IIE (EBS)'!D76+'Schedule IIF (EBS)'!D76",0,{"$f":"ADDRESS(31,5,1,1,$G$1)","v":"'Equity Investments'!$E$31"},"='Schedule IIB (EBS)'!F55+'Schedule IIC (EBS)'!F55+'Schedule IID (EBS)'!F55+'Schedule IIE (EBS)'!F55+'Schedule IIF (EBS)'!F55",0,null,null,null,{"$f":"ADDRESS(20,14,1,1,$M$1)","v":"'Currency Risk'!$N$20"},"='Schedule XXA'!Z18",0,{"$f":"ADDRESS(76,2,1,1,$P$1)","v":"'Concentration Risk'!$B$76"},"BSCR Rating 1",{"$f":"IF(INDIRECT(P207)=Q207,0,1)","v":0},{"$f":"ADDRESS(17,20,1,1,$S$1)","v":"'Geographic Diversification'!$T$17"},"=+'Schedule IVE (EBS)'!P17",0,null,null,null,{"$f":"ADDRESS(25,9,1,1,$Y$1)","v":"'Premium Risk'!$I$25"},"='Schedule IVD (EBS)'!K23*$G25",0]
[{"$f":"ADDRESS(88,12,1,1,$A$1)","v":"Summary!$L$88"},"=IF('Information Sheet'!$H$13>='Correlation Matrix'!$S$8,'Correlation Matrix'!$T$8,IF('Information Sheet'!$H$13>='Correlation Matrix'!$S$7,'Correlation Matrix'!$T$7,'Correlation Matrix'!$T$6))",0,{"$f":"ADDRESS(113,4,1,1,$D$1)","v":"'Fixed Income Investments'!$D$113"},"='Schedule IIB (EBS)'!F76+'Schedule IIC (EBS)'!F76+'Schedule IID (EBS)'!F76+'Schedule IIE (EBS)'!F76+'Schedule IIF (EBS)'!F76",0,{"$f":"ADDRESS(31,6,1,1,$G$1)","v":"'Equity Investments'!$F$31"},"='Schedule IIB (EBS)'!H55+'Schedule IIC (EBS)'!H55+'Schedule IID (EBS)'!H55+'Schedule IIE (EBS)'!H55+'Schedule IIF (EBS)'!H55",0,null,null,null,{"$f":"ADDRESS(20,15,1,1,$M$1)","v":"'Currency Risk'!$O$20"},"='Schedule XXA'!AB18",0,{"$f":"ADDRESS(76,4,1,1,$P$1)","v":"'Concentration Risk'!$D$76"},"=SUMIFS('Schedule XXIA'!$M$8:$M$57,'Schedule XXIA'!$J$8:$J$57,$D$74,'Schedule XXIA'!$L$8:$L$57,$B76)",{"$f":"IF(_xlfn.FORMULATEXT(INDIRECT(P208))=Q208,0,1)","v":0},{"$f":"ADDRESS(17,21,1,1,$S$1)","v":"'Geographic Diversification'!$U$17"},"=+'Schedule IVE (EBS)'!Q17",0,null,null,null,{"$f":"ADDRESS(25,10,1,1,$Y$1)","v":"'Premium Risk'!$J$25"},"='Schedule IVD (EBS)'!M23*$G25",0]
[{"$f":"ADDRESS(88,14,1,1,$A$1)","v":"Summary!$N$88"},"=G90+((N90-G90)*L88)",0,{"$f":"ADDRESS(113,5,1,1,$D$1)","v":"'Fixed Income Investments'!$E$113"},"='Schedule IIB (EBS)'!H76+'Schedule IIC (EBS)'!H76+'Schedule IID (EBS)'!H76+'Schedule IIE (EBS)'!H76+'Schedule IIF (EBS)'!H76",0,{"$f":"ADDRESS(31,7,1,1,$G$1)","v":"'Equity Investments'!$G$31"},"='Schedule IIB (EBS)'!J55+'Schedule IIC (EBS)'!J55+'Schedule IID (EBS)'!J55+'Schedule IIE (EBS)'!J55+'Schedule IIF (EBS)'!J55",0,null,null,null,{"$f":"ADDRESS(20,16,1,1,$M$1)","v":"'Currency Risk'!$P$20"},"='Schedule XXA'!AD18",0,{"$f":"ADDRESS(76,5,1,1,$P$1)","v":"'Concentration Risk'!$E$76"},6.0000000000000001E-3,{"$f":"IF(INDIRECT(P209)=Q209,0,1)","v":0},{"$f":"ADDRESS(17,22,1,1,$S$1)","v":"'Geographic Diversification'!$V$17"},"=+'Schedule IVE (EBS)'!R17",0,null,null,null,{"$f":"ADDRESS(25,11,1,1,$Y$1)","v":"'Premium Risk'!$K$25"},0.53805556666757803,{"$f":"IF(INDIRECT(Y209)=Z209,0,1)","v":0}]
[{"$f":"ADDRESS(88,26,1,1,$A$1)","v":"Summary!$Z$88"},"=IF('Company Information'!F11=\"Class 4\",IF(CONFIGURATION!B12=1000,100000,100000000),IF(CONFIGURATION!B12=1000,1000,1000000))*IFERROR((1/'Information Sheet'!$H$18),1)",0,{"$f":"ADDRESS(113,6,1,1,$D$1)","v":"'Fixed Income Investments'!$F$113"},"='Schedule IIB (EBS)'!J76+'Schedule IIC (EBS)'!J76+'Schedule IID (EBS)'!J76+'Schedule IIE (EBS)'!J76+'Schedule IIF (EBS)'!J76",0,{"$f":"ADDRESS(31,8,1,1,$G$1)","v":"'Equity Investments'!$H$31"},"='Schedule IIB (EBS)'!L55+'Schedule IIC (EBS)'!L55+'Schedule IID (EBS)'!L55+'Schedule IIE (EBS)'!L55+'Schedule IIF (EBS)'!L55",0,null,null,null,{"$f":"ADDRESS(20,17,1,1,$M$1)","v":"'Currency Risk'!$Q$20"},"='Schedule XXA'!AF18",0,{"$f":"ADDRESS(76,6,1,1,$P$1)","v":"'Concentration Risk'!$F$76"},"=MAX(0,(D76*E76))",{"$f":"IF(_xlfn.FORMULATEXT(INDIRECT(P210))=Q210,0,1)","v":0},{"$f":"ADDRESS(17,23,1,1,$S$1)","v":"'Geographic Diversification'!$W$17"},"=+'Schedule IVE (EBS)'!S17",0,null,null,null,{"$f":"ADDRESS(25,12,1,1,$Y$1)","v":"'Premium Risk'!$L$25"},"=+K25*S25",{"$f":"IF(_xlfn.FORMULATEXT(INDIRECT(Y210))=Z210,0,1)","v":0}]
[{"$f":"ADDRESS(90,7,1,1,$A$1)","v":"Summary!$G$90"},"=G74+G78+G86+G80",0,{"$f":"ADDRESS(113,9,1,1,$D$1)","v":"'Fixed Income Investments'!$I$113"},"=(C113-D113)+MAX(0,E113-F113)",0,{"$f":"ADDRESS(31,9,1,1,$G$1)","v":"'Equity Investments'!$I$31"},"='Schedule IIB (EBS)'!N55+'Schedule IIC (EBS)'!N55+'Schedule IID (EBS)'!N55+'Schedule IIE (EBS)'!N55+'Schedule IIF (EBS)'!N55",0,null,null,null,{"$f":"ADDRESS(20,18,1,1,$M$1)","v":"'Currency Risk'!$R$20"},"=IF('Schedule XXA'!AH18=0,Q20,'Schedule XXA'!AH18)",0,{"$f":"ADDRESS(77,2,1,1,$P$1)","v":"'Concentration Risk'!$B$77"},"BSCR Rating 2",{"$f":"IF(INDIRECT(P211)=Q211,0,1)","v":0},{"$f":"ADDRESS(17,24,1,1,$S$1)","v":"'Geographic Diversification'!$X$17"},"=+'Schedule IVE (EBS)'!T17",0,null,null,null,{"$f":"ADDRESS(25,13,1,1,$Y$1)","v":"'Premium Risk'!$M$25"},"=+L25*T25",{"$f":"IF(_xlfn.FORMULATEXT(INDIRECT(Y211))=Z211,0,1)","v":0}]
[{"$f":"ADDRESS(90,14,1,1,$A$1)","v":"Summary!$N$90"},"=N74+N78+N86+N80+N84+N82",0,{"$f":"ADDRESS(114,3,1,1,$D$1)","v":"'Fixed Income Investments'!$C$114"},"=SUM(C105:C113)",0,{"$f":"ADDRESS(31,10,1,1,$G$1)","v":"'Equity Investments'!$J$31"},"='Schedule IIB (EBS)'!P55+'Schedule IIC (EBS)'!P55+'Schedule IID (EBS)'!P55+'Schedule IIE (EBS)'!P55+'Schedule IIF (EBS)'!P55",0,null,null,null,{"$f":"ADDRESS(20,20,1,1,$M$1)","v":"'Currency Risk'!$T$20"},"=(C20-L20)+(D20-M20)+(F20-O20)+MAX(E20-N20,0)+MAX(G20-P20,0)",0,{"$f":"ADDRESS(77,4,1,1,$P$1)","v":"'Concentration Risk'!$D$77"},"=SUMIFS('Schedule XXIA'!$M$8:$M$57,'Schedule XXIA'!$J$8:$J$57,$D$74,'Schedule XXIA'!$L$8:$L$57,$B77)",{"$f":"IF(_xlfn.FORMULATEXT(INDIRECT(P212))=Q212,0,1)","v":0},{"$f":"ADDRESS(17,25,1,1,$S$1)","v":"'Geographic Diversification'!$Y$17"},"=+'Schedule IVE (EBS)'!U17",0,null,null,null,{"$f":"ADDRESS(25,14,1,1,$Y$1)","v":"'Premium Risk'!$N$25"},"=IF($H25<0,0,$H25*$K25)+IF($I25<0,0,$I25*$L25)+IF($J25<0,0,$J25*$M25)",{"$f":"IF(_xlfn.FORMULATEXT(INDIRECT(Y212))=Z212,0,1)","v":0}]
[{"$f":"ADDRESS(92,26,1,1,$A$1)","v":"Summary!$Z$92"},"=L20",0,{"$f":"ADDRESS(114,4,1,1,$D$1)","v":"'Fixed Income Investments'!$D$114"},"=SUM(D105:D113)",0,{"$f":"ADDRESS(31,11,1,1,$G$1)","v":"'Equity Investments'!$K$31"},"='Schedule IIB (EBS)'!R55+'Schedule IIC (EBS)'!R55+'Schedule IID (EBS)'!R55+'Schedule IIE (EBS)'!R55+'Schedule IIF (EBS)'!R55",0,null,null,null,{"$f":"ADDRESS(20,21,1,1,$M$1)","v":"'Currency Risk'!$U$20"},"=Q20-$H20",0,{"$f":"ADDRESS(77,5,1,1,$P$1)","v":"'Concentration Risk'!$E$77"},1.2E-2,{"$f":"IF(INDIRECT(P213)=Q213,0,1)","v":0},{"$f":"ADDRESS(17,26,1,1,$S$1)","v":"'Geographic Diversification'!$Z$17"},"=+'Schedule IVE (EBS)'!V17",0,null,null,null,{"$f":"ADDRESS(25,17,1,1,$Y$1)","v":"'Premium Risk'!$Q$25"},"=IF(H25=E25,MAX(D25*K25,0),IF(E25=F25,IF(D25<0,0,D25*(H25/F25)*K25),IF(D25<0,0,D25*(H25/E25)*K25)))\n+IF(I25=E25,MAX(D25*L25,0),IF(E25=F25,IF(D25<0,0,D25*(I25/F25)*L25),IF(D25<0,0,D25*(I25/E25)*L25)))\n+IF(J25=E25,MAX(D25*M25,0),IF(E25=F25,IF(D25<0,0,D25*(J25/F25)*M25),IF(D25<0,0,D25*(J25/E25)*M25)))",{"$f":"IF(_xlfn.FORMULATEXT(INDIRECT(Y213))=Z213,0,1)","v":0}]
[{"$f":"ADDRESS(92,35,1,1,$A$1)","v":"Summary!$AI$92"},7.4999999999999997E-2,{"$f":"IF(INDIRECT(A214)=B214,0,1)","v":0},{"$f":"ADDRESS(114,5,1,1,$D$1)","v":"'Fixed Income Investments'!$E$114"},"=SUM(E105:E113)",0,{"$f":"ADDRESS(31,12,1,1,$G$1)","v":"'Equity Investments'!$L$31"},"='Schedule IIB (EBS)'!T55+'Schedule IIC (EBS)'!T55+'Schedule IID (EBS)'!T55+'Schedule IIE (EBS)'!T55+'Schedule IIF (EBS)'!T55",0,null,null,null,{"$f":"ADDRESS(20,22,1,1,$M$1)","v":"'Currency Risk'!$V$20"},"=R20-$H20",0,{"$f":"ADDRESS(77,6,1,1,$P$1)","v":"'Concentration Risk'!$F$77"},"=MAX(0,(D77*E77))",{"$f":"IF(_xlfn.FORMULATEXT(INDIRECT(P214))=Q214,0,1)","v":0},{"$f":"ADDRESS(18,4,1,1,$S$1)","v":"'Geographic Diversification'!$D$18"},"=SUM(I18:Z18)",0,null,null,null,{"$f":"ADDRESS(25,19,1,1,$Y$1)","v":"'Premium Risk'!$S$25"},0.5,{"$f":"IF(INDIRECT(Y214)=Z214,0,1)","v":0}]
[{"$f":"ADDRESS(94,14,1,1,$A$1)","v":"Summary!$N$94"},"='Form 1EBS'!F167",{"$f":"IF(_xlfn.FORMULATEXT(INDIRECT(A215))=B215,0,1)","v":0},{"$f":"ADDRESS(114,6,1,1,$D$1)","v":"'Fixed Income Investments'!$F$114"},"=SUM(F105:F113)",0,{"$f":"ADDRESS(31,16,1,1,$G$1)","v":"'Equity Investments'!$P$31"},"=MAX(D31-E31,0)+(F31-G31)+MAX(H31-I31,0)+(K31-J31)",0,null,null,null,{"$f":"ADDRESS(20,24,1,1,$M$1)","v":"'Currency Risk'!$X$20"},"=MAX(0,$T20+U20+(J20*I20))",0,{"$f":"ADDRESS(78,2,1,1,$P$1)","v":"'Concentration Risk'!$B$78"},"BSCR Rating 3",{"$f":"IF(INDIRECT(P215)=Q215,0,1)","v":0},{"$f":"ADDRESS(18,5,1,1,$S$1)","v":"'Geographic Diversification'!$E$18"},"=SUMSQ(I18:Z18)",0,null,null,null,{"$f":"ADDRESS(25,20,1,1,$Y$1)","v":"'Premium Risk'!$T$25"},0.5,{"$f":"IF(INDIRECT(Y215)=Z215,0,1)","v":0}]
[{"$f":"ADDRESS(96,14,1,1,$A$1)","v":"Summary!$N$96"},"=N94+N95",0,{"$f":"ADDRESS(114,9,1,1,$D$1)","v":"'Fixed Income Investments'!$I$114"},"=MAX(SUM(I105:I113),0)",0,{"$f":"ADDRESS(31,18,1,1,$G$1)","v":"'Equity Investments'!$R$31"},"=MAX(D31-E31,0)+(F31-G31)+MAX(H31-I31,0)+(L31-J31)",0,null,null,null,{"$f":"ADDRESS(20,25,1,1,$M$1)","v":"'Currency Risk'!$Y$20"},"=MAX(0,$T20+V20+(J20*I20))",0,{"$f":"ADDRESS(78,4,1,1,$P$1)","v":"'Concentration Risk'!$D$78"},"=SUMIFS('Schedule XXIA'!$M$8:$M$57,'Schedule XXIA'!$J$8:$J$57,$D$74,'Schedule XXIA'!$L$8:$L$57,$B78)",{"$f":"IF(_xlfn.FORMULATEXT(INDIRECT(P216))=Q216,0,1)","v":0},{"$f":"ADDRESS(18,6,1,1,$S$1)","v":"'Geographic Diversification'!$F$18"},"=(IF(D18>0,E18/D18^2,1))",0,null,null,null,{"$f":"ADDRESS(26,4,1,1,$Y$1)","v":"'Premium Risk'!$D$26"},"='Schedule IVD (EBS)'!Q24",{"$f":"IF(_xlfn.FORMULATEXT(INDIRECT(Y216))=Z216,0,1)","v":0}]
[{"$f":"ADDRESS(100,14,1,1,$A$1)","v":"Summary!$N$100"},"=N96-SUM(N98:N98)",0,{"$f":"ADDRESS(120,3,1,1,$D$1)","v":"'Fixed Income Investments'!$C$120"},"='Schedule IIB (EBS)'!N68+'Schedule IIC (EBS)'!N68+'Schedule IID (EBS)'!N68+'Schedule IIE (EBS)'!N68+'Schedule IIF (EBS)'!N68",0,{"$f":"ADDRESS(32,4,1,1,$G$1)","v":"'Equity Investments'!$D$32"},"='Schedule IIB (EBS)'!D56+'Schedule IIC (EBS)'!D56+'Schedule IID (EBS)'!D56+'Schedule IIE (EBS)'!D56+'Schedule IIF (EBS)'!D56",0,null,null,null,{"$f":"ADDRESS(21,2,1,1,$M$1)","v":"'Currency Risk'!$B$21"},"='Schedule XXA'!B19",0,{"$f":"ADDRESS(78,5,1,1,$P$1)","v":"'Concentration Risk'!$E$78"},0.02,{"$f":"IF(INDIRECT(P217)=Q217,0,1)","v":0},{"$f":"ADDRESS(18,7,1,1,$S$1)","v":"'Geographic Diversification'!$G$18"},"=D18*(0.75+0.25*F18)",0,null,null,null,{"$f":"ADDRESS(26,5,1,1,$Y$1)","v":"'Premium Risk'!$E$26"},"='Schedule IVD (EBS)'!O24",0]
[{"$f":"ADDRESS(104,14,1,1,$A$1)","v":"Summary!$N$104"},"=MAX(Z78,(N88*25%))",0,{"$f":"ADDRESS(120,4,1,1,$D$1)","v":"'Fixed Income Investments'!$D$120"},"='Schedule IIB (EBS)'!P68+'Schedule IIC (EBS)'!P68+'Schedule IID (EBS)'!P68+'Schedule IIE (EBS)'!P68+'Schedule IIF (EBS)'!P68",0,{"$f":"ADDRESS(32,5,1,1,$G$1)","v":"'Equity Investments'!$E$32"},"='Schedule IIB (EBS)'!F56+'Schedule IIC (EBS)'!F56+'Schedule IID (EBS)'!F56+'Schedule IIE (EBS)'!F56+'Schedule IIF (EBS)'!F56",0,null,null,null,{"$f":"ADDRESS(21,3,1,1,$M$1)","v":"'Currency Risk'!$C$21"},"='Schedule XXA'!D19",0,{"$f":"ADDRESS(78,6,1,1,$P$1)","v":"'Concentration Risk'!$F$78"},"=MAX(0,(D78*E78))",{"$f":"IF(_xlfn.FORMULATEXT(INDIRECT(P218))=Q218,0,1)","v":0},{"$f":"ADDRESS(18,8,1,1,$S$1)","v":"'Geographic Diversification'!$H$18"},"=IF('Schedule IVE (EBS)'!AB18=\"True\",G18,'Schedule IVD (EBS)'!O18)",0,null,null,null,{"$f":"ADDRESS(26,6,1,1,$Y$1)","v":"'Premium Risk'!$F$26"},"='Geographic Diversification'!H24",0]
[{"$f":"ADDRESS(106,14,1,1,$A$1)","v":"Summary!$N$106"},"=SUM(N104:N105)",0,{"$f":"ADDRESS(120,5,1,1,$D$1)","v":"'Fixed Income Investments'!$E$120"},"='Schedule IIB (EBS)'!R68+'Schedule IIC (EBS)'!R68+'Schedule IID (EBS)'!R68+'Schedule IIE (EBS)'!R68+'Schedule IIF (EBS)'!R68",0,{"$f":"ADDRESS(32,6,1,1,$G$1)","v":"'Equity Investments'!$F$32"},"='Schedule IIB (EBS)'!H56+'Schedule IIC (EBS)'!H56+'Schedule IID (EBS)'!H56+'Schedule IIE (EBS)'!H56+'Schedule IIF (EBS)'!H56",0,null,null,null,{"$f":"ADDRESS(21,4,1,1,$M$1)","v":"'Currency Risk'!$D$21"},"='Schedule XXA'!F19",0,{"$f":"ADDRESS(79,2,1,1,$P$1)","v":"'Concentration Risk'!$B$79"},"BSCR Rating 4",{"$f":"IF(INDIRECT(P219)=Q219,0,1)","v":0},{"$f":"ADDRESS(18,9,1,1,$S$1)","v":"'Geographic Diversification'!$I$18"},"=+'Schedule IVE (EBS)'!E18",0,null,null,null,{"$f":"ADDRESS(26,7,1,1,$Y$1)","v":"'Premium Risk'!$G$26"},"=IF(IFERROR(F26/E26,1)<0,1,IFERROR(F26/E26,1))",0]
[{"$f":"ADDRESS(108,27,1,1,$A$1)","v":"Summary!$AA$108"},"=IF($N$100=0,15000000,$N$100)",0,{"$f":"ADDRESS(120,6,1,1,$D$1)","v":"'Fixed Income Investments'!$F$120"},"='Schedule IIB (EBS)'!T68+'Schedule IIC (EBS)'!T68+'Schedule IID (EBS)'!T68+'Schedule IIE (EBS)'!T68+'Schedule IIF (EBS)'!T68",0,{"$f":"ADDRESS(32,7,1,1,$G$1)","v":"'Equity Investments'!$G$32"},"='Schedule IIB (EBS)'!J56+'Schedule IIC (EBS)'!J56+'Schedule IID (EBS)'!J56+'Schedule IIE (EBS)'!J56+'Schedule IIF (EBS)'!J56",0,null,null,null,{"$f":"ADDRESS(21,5,1,1,$M$1)","v":"'Currency Risk'!$E$21"},"='Schedule XXA'!H19",0,{"$f":"ADDRESS(79,4,1,1,$P$1)","v":"'Concentration Risk'!$D$79"},"=SUMIFS('Schedule XXIA'!$M$8:$M$57,'Schedule XXIA'!$J$8:$J$57,$D$74,'Schedule XXIA'!$L$8:$L$57,$B79)",{"$f":"IF(_xlfn.FORMULATEXT(INDIRECT(P220))=Q220,0,1)","v":0},{"$f":"ADDRESS(18,10,1,1,$S$1)","v":"'Geographic Diversification'!$J$18"},"=+'Schedule IVE (EBS)'!F18",0,null,null,null,{"$f":"ADDRESS(26,8,1,1,$Y$1)","v":"'Premium Risk'!$H$26"},"='Schedule IVD (EBS)'!I24*$G26",0]
[{"$f":"ADDRESS(108,29,1,1,$A$1)","v":"Summary!$AC$108"},"=AC$122-AA108",0,{"$f":"ADDRESS(120,9,1,1,$D$1)","v":"'Fixed Income Investments'!$I$120"},"=(C120-D120)+MAX(0,E120-F120)",0,{"$f":"ADDRESS(32,8,1,1,$G$1)","v":"'Equity Investments'!$H$32"},"='Schedule IIB (EBS)'!L56+'Schedule IIC (EBS)'!L56+'Schedule IID (EBS)'!L56+'Schedule IIE (EBS)'!L56+'Schedule IIF (EBS)'!L56",0,null,null,null,{"$f":"ADDRESS(21,6,1,1,$M$1)","v":"'Currency Risk'!$F$21"},"='Schedule XXA'!J19",0,{"$f":"ADDRESS(79,5,1,1,$P$1)","v":"'Concentration Risk'!$E$79"},0.04,{"$f":"IF(INDIRECT(P221)=Q221,0,1)","v":0},{"$f":"ADDRESS(18,11,1,1,$S$1)","v":"'Geographic Diversification'!$K$18"},"=+'Schedule IVE (EBS)'!G18",0,null,null,null,{"$f":"ADDRESS(26,9,1,1,$Y$1)","v":"'Premium Risk'!$I$26"},"='Schedule IVD (EBS)'!K24*$G26",0]
[{"$f":"ADDRESS(108,30,1,1,$A$1)","v":"Summary!$AD$108"},"=IF($N$100=0,25000000,$N$100)",0,{"$f":"ADDRESS(121,3,1,1,$D$1)","v":"'Fixed Income Investments'!$C$121"},"='Schedule IIB (EBS)'!N69+'Schedule IIC (EBS)'!N69+'Schedule IID (EBS)'!N69+'Schedule IIE (EBS)'!N69+'Schedule IIF (EBS)'!N69",0,{"$f":"ADDRESS(32,9,1,1,$G$1)","v":"'Equity Investments'!$I$32"},"='Schedule IIB (EBS)'!N56+'Schedule IIC (EBS)'!N56+'Schedule IID (EBS)'!N56+'Schedule IIE (EBS)'!N56+'Schedule IIF (EBS)'!N56",0,null,null,null,{"$f":"ADDRESS(21,7,1,1,$M$1)","v":"'Currency Risk'!$G$21"},"='Schedule XXA'!L19",0,{"$f":"ADDRESS(79,6,1,1,$P$1)","v":"'Concentration Risk'!$F$79"},"=MAX(0,(D79*E79))",{"$f":"IF(_xlfn.FORMULATEXT(INDIRECT(P222))=Q222,0,1)","v":0},{"$f":"ADDRESS(18,12,1,1,$S$1)","v":"'Geographic Diversification'!$L$18"},"=+'Schedule IVE (EBS)'!H18",0,null,null,null,{"$f":"ADDRESS(26,10,1,1,$Y$1)","v":"'Premium Risk'!$J$26"},"='Schedule IVD (EBS)'!M24*$G26",0]
[{"$f":"ADDRESS(110,14,1,1,$A$1)","v":"Summary!$N$110"},"=MAX(N88,N106)",0,{"$f":"ADDRESS(121,4,1,1,$D$1)","v":"'Fixed Income Investments'!$D$121"},"='Schedule IIB (EBS)'!P69+'Schedule IIC (EBS)'!P69+'Schedule IID (EBS)'!P69+'Schedule IIE (EBS)'!P69+'Schedule IIF (EBS)'!P69",0,{"$f":"ADDRESS(32,10,1,1,$G$1)","v":"'Equity Investments'!$J$32"},"='Schedule IIB (EBS)'!P56+'Schedule IIC (EBS)'!P56+'Schedule IID (EBS)'!P56+'Schedule IIE (EBS)'!P56+'Schedule IIF (EBS)'!P56",0,null,null,null,{"$f":"ADDRESS(21,8,1,1,$M$1)","v":"'Currency Risk'!$H$21"},"='Schedule XXA'!N19",0,{"$f":"ADDRESS(80,2,1,1,$P$1)","v":"'Concentration Risk'!$B$80"},"BSCR Rating 5",{"$f":"IF(INDIRECT(P223)=Q223,0,1)","v":0},{"$f":"ADDRESS(18,13,1,1,$S$1)","v":"'Geographic Diversification'!$M$18"},"=+'Schedule IVE (EBS)'!I18",0,null,null,null,{"$f":"ADDRESS(26,11,1,1,$Y$1)","v":"'Premium Risk'!$K$26"},0.51436147942106603,{"$f":"IF(INDIRECT(Y223)=Z223,0,1)","v":0}]
[{"$f":"ADDRESS(112,14,1,1,$A$1)","v":"Summary!$N$112"},"=MAX(N106,N90)",0,{"$f":"ADDRESS(121,5,1,1,$D$1)","v":"'Fixed Income Investments'!$E$121"},"='Schedule IIB (EBS)'!R69+'Schedule IIC (EBS)'!R69+'Schedule IID (EBS)'!R69+'Schedule IIE (EBS)'!R69+'Schedule IIF (EBS)'!R69",{"$f":"IF(_xlfn.FORMULATEXT(INDIRECT(D224))=E224,0,1)","v":0},{"$f":"ADDRESS(32,11,1,1,$G$1)","v":"'Equity Investments'!$K$32"},"='Schedule IIB (EBS)'!R56+'Schedule IIC (EBS)'!R56+'Schedule IID (EBS)'!R56+'Schedule IIE (EBS)'!R56+'Schedule IIF (EBS)'!R56",0,null,null,null,{"$f":"ADDRESS(21,9,1,1,$M$1)","v":"'Currency Risk'!$I$21"},"=$I$10*H21",0,{"$f":"ADDRESS(80,4,1,1,$P$1)","v":"'Concentration Risk'!$D$80"},"=SUMIFS('Schedule XXIA'!$M$8:$M$57,'Schedule XXIA'!$J$8:$J$57,$D$74,'Schedule XXIA'!$L$8:$L$57,$B80)",{"$f":"IF(_xlfn.FORMULATEXT(INDIRECT(P224))=Q224,0,1)","v":0},{"$f":"ADDRESS(18,14,1,1,$S$1)","v":"'Geographic Diversification'!$N$18"},"=+'Schedule IVE (EBS)'!J18",0,null,null,null,{"$f":"ADDRESS(26,12,1,1,$Y$1)","v":"'Premium Risk'!$L$26"},"=+K26*S26",{"$f":"IF(_xlfn.FORMULATEXT(INDIRECT(Y224))=Z224,0,1)","v":0}]
[{"$f":"ADDRESS(112,26,1,1,$A$1)","v":"Summary!$Z$112"},1,{"$f":"IF(INDIRECT(A225)=B225,0,1)","v":0},{"$f":"ADDRESS(121,6,1,1,$D$1)","v":"'Fixed Income Investments'!$F$121"},"='Schedule IIB (EBS)'!T69+'Schedule IIC (EBS)'!T69+'Schedule IID (EBS)'!T69+'Schedule IIE (EBS)'!T69+'Schedule IIF (EBS)'!T69",0,{"$f":"ADDRESS(32,12,1,1,$G$1)","v":"'Equity Investments'!$L$32"},"='Schedule IIB (EBS)'!T56+'Schedule IIC (EBS)'!T56+'Schedule IID (EBS)'!T56+'Schedule IIE (EBS)'!T56+'Schedule IIF (EBS)'!T56",0,null,null,null,{"$f":"ADDRESS(21,10,1,1,$M$1)","v":"'Currency Risk'!$J$21"},"=IF($B$12=\"Euro\",IF((SUM(C21:G21))>(H21+I21),0%,2%),IF((SUM(C21:G21))>(H21+I21),0%,25%))",0,{"$f":"ADDRESS(80,5,1,1,$P$1)","v":"'Concentration Risk'!$E$80"},0.11,{"$f":"IF(INDIRECT(P225)=Q225,0,1)","v":0},{"$f":"ADDRESS(18,15,1,1,$S$1)","v":"'Geographic Diversification'!$O$18"},"=+'Schedule IVE (EBS)'!K18",0,null,null,null,{"$f":"ADDRESS(26,13,1,1,$Y$1)","v":"'Premium Risk'!$M$26"},"=+L26*T26",{"$f":"IF(_xlfn.FORMULATEXT(INDIRECT(Y225))=Z225,0,1)","v":0}]
[{"$f":"ADDRESS(112,27,1,1,$A$1)","v":"Summary!$AA$112"},"=IF($AC$78=100000,15000000,$AC$78)",{"$f":"IF(_xlfn.FORMULATEXT(INDIRECT(A226))=B226,0,1)","v":0},{"$f":"ADDRESS(121,9,1,1,$D$1)","v":"'Fixed Income Investments'!$I$121"},"=(C121-D121)+MAX(0,E121-F121)",0,{"$f":"ADDRESS(32,16,1,1,$G$1)","v":"'Equity Investments'!$P$32"},"=MAX(D32-E32,0)+(F32-G32)+MAX(H32-I32,0)+(K32-J32)",0,null,null,null,{"$f":"ADDRESS(21,12,1,1,$M$1)","v":"'Currency Risk'!$L$21"},"='Schedule XXA'!V19",0,{"$f":"ADDRESS(80,6,1,1,$P$1)","v":"'Concentration Risk'!$F$80"},"=MAX(0,(D80*E80))",{"$f":"IF(_xlfn.FORMULATEXT(INDIRECT(P226))=Q226,0,1)","v":0},{"$f":"ADDRESS(18,16,1,1,$S$1)","v":"'Geographic Diversification'!$P$18"},"=+'Schedule IVE (EBS)'!L18",0,null,null,null,{"$f":"ADDRESS(26,14,1,1,$Y$1)","v":"'Premium Risk'!$N$26"},"=IF($H26<0,0,$H26*$K26)+IF($I26<0,0,$I26*$L26)+IF($J26<0,0,$J26*$M26)",{"$f":"IF(_xlfn.FORMULATEXT(INDIRECT(Y226))=Z226,0,1)","v":0}]
[{"$f":"ADDRESS(112,29,1,1,$A$1)","v":"Summary!$AC$112"},"=AC$122-AA112",{"$f":"IF(_xlfn.FORMULATEXT(INDIRECT(A227))=B227,0,1)","v":0},{"$f":"ADDRESS(122,3,1,1,$D$1)","v":"'Fixed Income Investments'!$C$122"},"='Schedule IIB (EBS)'!N70+'Schedule IIC (EBS)'!N70+'Schedule IID (EBS)'!N70+'Schedule IIE (EBS)'!N70+'Schedule IIF (EBS)'!N70",0,{"$f":"ADDRESS(32,18,1,1,$G$1)","v":"'Equity Investments'!$R$32"},"=MAX(D32-E32,0)+(F32-G32)+MAX(H32-I32,0)+(L32-J32)",0,null,null,null,{"$f":"ADDRESS(21,13,1,1,$M$1)","v":"'Currency Risk'!$M$21"},"='Schedule XXA'!X19",0,{"$f":"ADDRESS(81,2,1,1,$P$1)","v":"'Concentration Risk'!$B$81"},"BSCR Rating 6",{"$f":"IF(INDIRECT(P227)=Q227,0,1)","v":0},{"$f":"ADDRESS(18,17,1,1,$S$1)","v":"'Geographic Diversification'!$Q$18"},"=+'Schedule IVE (EBS)'!M18",0,null,null,null,{"$f":"ADDRESS(26,17,1,1,$Y$1)","v":"'Premium Risk'!$Q$26"},"=IF(H26=E26,MAX(D26*K26,0),IF(E26=F26,IF(D26<0,0,D26*(H26/F26)*K26),IF(D26<0,0,D26*(H26/E26)*K26)))\n+IF(I26=E26,MAX(D26*L26,0),IF(E26=F26,IF(D26<0,0,D26*(I26/F26)*L26),IF(D26<0,0,D26*(I26/E26)*L26)))\n+IF(J26=E26,MAX(D26*M26,0),IF(E26=F26,IF(D26<0,0,D26*(J26/F26)*M26),IF(D26<0,0,D26*(J26/E26)*M26)))",{"$f":"IF(_xlfn.FORMULATEXT(INDIRECT(Y227))=Z227,0,1)","v":0}]
[{"$f":"ADDRESS(112,30,1,1,$A$1)","v":"Summary!$AD$112"},"=Z112*AA$113",{"$f":"IF(_xlfn.FORMULATEXT(INDIRECT(A228))=B228,0,1)","v":0},{"$f":"ADDRESS(122,4,1,1,$D$1)","v":"'Fixed Income Investments'!$D$122"},"='Schedule IIB (EBS)'!P70+'Schedule IIC (EBS)'!P70+'Schedule IID (EBS)'!P70+'Schedule IIE (EBS)'!P70+'Schedule IIF (EBS)'!P70",0,{"$f":"ADDRESS(34,4,1,1,$G$1)","v":"'Equity Investments'!$D$34"},"=SUM(D27:D33)",0,null,null,null,{"$f":"ADDRESS(21,14,1,1,$M$1)","v":"'Currency Risk'!$N$21"},"='Schedule XXA'!Z19",0,{"$f":"ADDRESS(81,4,1,1,$P$1)","v":"'Concentration Risk'!$D$81"},"=SUMIFS('Schedule XXIA'!$M$8:$M$57,'Schedule XXIA'!$J$8:$J$57,$D$74,'Schedule XXIA'!$L$8:$L$57,$B81)",{"$f":"IF(_xlfn.FORMULATEXT(INDIRECT(P228))=Q228,0,1)","v":0},{"$f":"ADDRESS(18,18,1,1,$S$1)","v":"'Geographic Diversification'!$R$18"},"=+'Schedule IVE (EBS)'!N18",0,null,null,null,{"$f":"ADDRESS(26,19,1,1,$Y$1)","v":"'Premium Risk'!$S$26"},0.5,{"$f":"IF(INDIRECT(Y228)=Z228,0,1)","v":0}]
[{"$f":"ADDRESS(113,26,1,1,$A$1)","v":"Summary!$Z$113"},1.2,{"$f":"IF(INDIRECT(A229)=B229,0,1)","v":0},{"$f":"ADDRESS(122,5,1,1,$D$1)","v":"'Fixed Income Investments'!$E$122"},"='Schedule IIB (EBS)'!R70+'Schedule IIC (EBS)'!R70+'Schedule IID (EBS)'!R70+'Schedule IIE (EBS)'!R70+'Schedule IIF (EBS)'!R70",0,{"$f":"ADDRESS(34,5,1,1,$G$1)","v":"'Equity Investments'!$E$34"},"=SUM(E27:E33)",0,null,null,null,{"$f":"ADDRESS(21,15,1,1,$M$1)","v":"'Currency Risk'!$O$21"},"='Schedule XXA'!AB19",{"$f":"IF(_xlfn.FORMULATEXT(INDIRECT(M229))=N229,0,1)","v":0},{"$f":"ADDRESS(81,5,1,1,$P$1)","v":"'Concentration Risk'!$E$81"},0.25,{"$f":"IF(INDIRECT(P229)=Q229,0,1)","v":0},{"$f":"ADDRESS(18,19,1,1,$S$1)","v":"'Geographic Diversification'!$S$18"},"=+'Schedule IVE (EBS)'!O18",0,null,null,null,{"$f":"ADDRESS(26,20,1,1,$Y$1)","v":"'Premium Risk'!$T$26"},0.5,{"$f":"IF(INDIRECT(Y229)=Z229,0,1)","v":0}]
[{"$f":"ADDRESS(113,27,1,1,$A$1)","v":"Summary!$AA$113"},"=IF($AC$78=100000,15000000,$AC$78)",{"$f":"IF(_xlfn.FORMULATEXT(INDIRECT(A230))=B230,0,1)","v":0},{"$f":"ADDRESS(122,6,1,1,$D$1)","v":"'Fixed Income Investments'!$F$122"},"='Schedule IIB (EBS)'!T70+'Schedule IIC (EBS)'!T70+'Schedule IID (EBS)'!T70+'Schedule IIE (EBS)'!T70+'Schedule IIF (EBS)'!T70",0,{"$f":"ADDRESS(34,6,1,1,$G$1)","v":"'Equity Investments'!$F$34"},"=SUM(F27:F33)",0,null,null,null,{"$f":"ADDRESS(21,16,1,1,$M$1)","v":"'Currency Risk'!$P$21"},"='Schedule XXA'!AD19",0,{"$f":"ADDRESS(81,6,1,1,$P$1)","v":"'Concentration Risk'!$F$81"},"=MAX(0,(D81*E81))",{"$f":"IF(_xlfn.FORMULATEXT(INDIRECT(P230))=Q230,0,1)","v":0},{"$f":"ADDRESS(18,20,1,1,$S$1)","v":"'Geographic Diversification'!$T$18"},"=+'Schedule IVE (EBS)'!P18",0,null,null,null,{"$f":"ADDRESS(27,4,1,1,$Y$1)","v":"'Premium Risk'!$D$27"},"='Schedule IVD (EBS)'!Q25",{"$f":"IF(_xlfn.FORMULATEXT(INDIRECT(Y230))=Z230,0,1)","v":0}]
[{"$f":"ADDRESS(113,29,1,1,$A$1)","v":"Summary!$AC$113"},"=AC$122-AA113",{"$f":"IF(_xlfn.FORMULATEXT(INDIRECT(A231))=B231,0,1)","v":0},{"$f":"ADDRESS(122,9,1,1,$D$1)","v":"'Fixed Income Investments'!$I$122"},"=(C122-D122)+MAX(0,E122-F122)",0,{"$f":"ADDRESS(34,7,1,1,$G$1)","v":"'Equity Investments'!$G$34"},"=SUM(G27:G33)",0,null,null,null,{"$f":"ADDRESS(21,17,1,1,$M$1)","v":"'Currency Risk'!$Q$21"},"='Schedule XXA'!AF19",0,{"$f":"ADDRESS(82,2,1,1,$P$1)","v":"'Concentration Risk'!$B$82"},"BSCR Rating 7",{"$f":"IF(INDIRECT(P231)=Q231,0,1)","v":0},{"$f":"ADDRESS(18,21,1,1,$S$1)","v":"'Geographic Diversification'!$U$18"},"=+'Schedule IVE (EBS)'!Q18",0,null,null,null,{"$f":"ADDRESS(27,5,1,1,$Y$1)","v":"'Premium Risk'!$E$27"},"='Schedule IVD (EBS)'!O25",0]
[{"$f":"ADDRESS(113,30,1,1,$A$1)","v":"Summary!$AD$113"},"=Z113*AA$113",{"$f":"IF(_xlfn.FORMULATEXT(INDIRECT(A232))=B232,0,1)","v":0},{"$f":"ADDRESS(123,3,1,1,$D$1)","v":"'Fixed Income Investments'!$C$123"},"='Schedule IIB (EBS)'!N71+'Schedule IIC (EBS)'!N71+'Schedule IID (EBS)'!N71+'Schedule IIE (EBS)'!N71+'Schedule IIF (EBS)'!N71",0,{"$f":"ADDRESS(34,8,1,1,$G$1)","v":"'Equity Investments'!$H$34"},"=SUM(H27:H33)",0,null,null,null,{"$f":"ADDRESS(21,18,1,1,$M$1)","v":"'Currency Risk'!$R$21"},"=IF('Schedule XXA'!AH19=0,Q21,'Schedule XXA'!AH19)",0,{"$f":"ADDRESS(82,4,1,1,$P$1)","v":"'Concentration Risk'!$D$82"},"=SUMIFS('Schedule XXIA'!$M$8:$M$57,'Schedule XXIA'!$J$8:$J$57,$D$74,'Schedule XXIA'!$L$8:$L$57,$B82)",{"$f":"IF(_xlfn.FORMULATEXT(INDIRECT(P232))=Q232,0,1)","v":0},{"$f":"ADDRESS(18,22,1,1,$S$1)","v":"'Geographic Diversification'!$V$18"},"=+'Schedule IVE (EBS)'!R18",0,null,null,null,{"$f":"ADDRESS(27,6,1,1,$Y$1)","v":"'Premium Risk'!$F$27"},"='Geographic Diversification'!H25",0]
[{"$f":"ADDRESS(114,14,1,1,$A$1)","v":"Summary!$N$114"},"=N110*1.2",{"$f":"IF(_xlfn.FORMULATEXT(INDIRECT(A233))=B233,0,1)","v":0},{"$f":"ADDRESS(123,4,1,1,$D$1)","v":"'Fixed Income Investments'!$D$123"},"='Schedule IIB (EBS)'!P71+'Schedule IIC (EBS)'!P71+'Schedule IID (EBS)'!P71+'Schedule IIE (EBS)'!P71+'Schedule IIF (EBS)'!P71",0,{"$f":"ADDRESS(34,9,1,1,$G$1)","v":"'Equity Investments'!$I$34"},"=SUM(I27:I33)",0,null,null,null,{"$f":"ADDRESS(21,20,1,1,$M$1)","v":"'Currency Risk'!$T$21"},"=(C21-L21)+(D21-M21)+(F21-O21)+MAX(E21-N21,0)+MAX(G21-P21,0)",0,{"$f":"ADDRESS(82,5,1,1,$P$1)","v":"'Concentration Risk'!$E$82"},0.35,{"$f":"IF(INDIRECT(P233)=Q233,0,1)","v":0},{"$f":"ADDRESS(18,23,1,1,$S$1)","v":"'Geographic Diversification'!$W$18"},"=+'Schedule IVE (EBS)'!S18",0,null,null,null,{"$f":"ADDRESS(27,7,1,1,$Y$1)","v":"'Premium Risk'!$G$27"},"=IF(IFERROR(F27/E27,1)<0,1,IFERROR(F27/E27,1))",0]
[{"$f":"ADDRESS(115,26,1,1,$A$1)","v":"Summary!$Z$115"},1.2,{"$f":"IF(INDIRECT(A234)=B234,0,1)","v":0},{"$f":"ADDRESS(123,5,1,1,$D$1)","v":"'Fixed Income Investments'!$E$123"},"='Schedule IIB (EBS)'!R71+'Schedule IIC (EBS)'!R71+'Schedule IID (EBS)'!R71+'Schedule IIE (EBS)'!R71+'Schedule IIF (EBS)'!R71",0,{"$f":"ADDRESS(34,10,1,1,$G$1)","v":"'Equity Investments'!$J$34"},"=SUM(J27:J33)",0,null,null,null,{"$f":"ADDRESS(21,21,1,1,$M$1)","v":"'Currency Risk'!$U$21"},"=Q21-$H21",0,{"$f":"ADDRESS(82,6,1,1,$P$1)","v":"'Concentration Risk'!$F$82"},"=MAX(0,(D82*E82))",{"$f":"IF(_xlfn.FORMULATEXT(INDIRECT(P234))=Q234,0,1)","v":0},{"$f":"ADDRESS(18,24,1,1,$S$1)","v":"'Geographic Diversification'!$X$18"},"=+'Schedule IVE (EBS)'!T18",0,null,null,null,{"$f":"ADDRESS(27,8,1,1,$Y$1)","v":"'Premium Risk'!$H$27"},"='Schedule IVD (EBS)'!I25*$G27",0]
[{"$f":"ADDRESS(115,27,1,1,$A$1)","v":"Summary!$AA$115"},"=IF($AC$78=100000,15000000,$AC$78)",{"$f":"IF(_xlfn.FORMULATEXT(INDIRECT(A235))=B235,0,1)","v":0},{"$f":"ADDRESS(123,6,1,1,$D$1)","v":"'Fixed Income Investments'!$F$123"},"='Schedule IIB (EBS)'!T71+'Schedule IIC (EBS)'!T71+'Schedule IID (EBS)'!T71+'Schedule IIE (EBS)'!T71+'Schedule IIF (EBS)'!T71",0,{"$f":"ADDRESS(34,11,1,1,$G$1)","v":"'Equity Investments'!$K$34"},"=SUM(K27:K33)",0,null,null,null,{"$f":"ADDRESS(21,22,1,1,$M$1)","v":"'Currency Risk'!$V$21"},"=R21-$H21",0,{"$f":"ADDRESS(83,2,1,1,$P$1)","v":"'Concentration Risk'!$B$83"},"BSCR Rating 8",{"$f":"IF(INDIRECT(P235)=Q235,0,1)","v":0},{"$f":"ADDRESS(18,25,1,1,$S$1)","v":"'Geographic Diversification'!$Y$18"},"=+'Schedule IVE (EBS)'!U18",0,null,null,null,{"$f":"ADDRESS(27,9,1,1,$Y$1)","v":"'Premium Risk'!$I$27"},"='Schedule IVD (EBS)'!K25*$G27",0]
[{"$f":"ADDRESS(115,29,1,1,$A$1)","v":"Summary!$AC$115"},"=AC$122-AA115",0,{"$f":"ADDRESS(123,9,1,1,$D$1)","v":"'Fixed Income Investments'!$I$123"},"=(C123-D123)+MAX(0,E123-F123)",0,{"$f":"ADDRESS(34,12,1,1,$G$1)","v":"'Equity Investments'!$L$34"},"=SUM(L27:L33)",0,null,null,null,{"$f":"ADDRESS(21,24,1,1,$M$1)","v":"'Currency Risk'!$X$21"},"=MAX(0,$T21+U21+(J21*I21))",0,{"$f":"ADDRESS(83,4,1,1,$P$1)","v":"'Concentration Risk'!$D$83"},"=SUMIFS('Schedule XXIA'!$M$8:$M$57,'Schedule XXIA'!$J$8:$J$57,$D$74,'Schedule XXIA'!$L$8:$L$57,$B83)",{"$f":"IF(_xlfn.FORMULATEXT(INDIRECT(P236))=Q236,0,1)","v":0},{"$f":"ADDRESS(18,26,1,1,$S$1)","v":"'Geographic Diversification'!$Z$18"},"=+'Schedule IVE (EBS)'!V18",0,null,null,null,{"$f":"ADDRESS(27,10,1,1,$Y$1)","v":"'Premium Risk'!$J$27"},"='Schedule IVD (EBS)'!M25*$G27",0]
[{"$f":"ADDRESS(115,30,1,1,$A$1)","v":"Summary!$AD$115"},"=Z115*AA$113",0,{"$f":"ADDRESS(124,3,1,1,$D$1)","v":"'Fixed Income Investments'!$C$124"},"='Schedule IIB (EBS)'!N72+'Schedule IIC (EBS)'!N72+'Schedule IID (EBS)'!N72+'Schedule IIE (EBS)'!N72+'Schedule IIF (EBS)'!N72",0,{"$f":"ADDRESS(34,16,1,1,$G$1)","v":"'Equity Investments'!$P$34"},"=MAX(SUM(P27:P33),0)",0,null,null,null,{"$f":"ADDRESS(21,25,1,1,$M$1)","v":"'Currency Risk'!$Y$21"},"=MAX(0,$T21+V21+(J21*I21))",0,{"$f":"ADDRESS(83,5,1,1,$P$1)","v":"'Concentration Risk'!$E$83"},0.35,{"$f":"IF(INDIRECT(P237)=Q237,0,1)","v":0},{"$f":"ADDRESS(19,4,1,1,$S$1)","v":"'Geographic Diversification'!$D$19"},"=SUM(I19:Z19)",0,null,null,null,{"$f":"ADDRESS(27,11,1,1,$Y$1)","v":"'Premium Risk'!$K$27"},0.52697789035313303,{"$f":"IF(INDIRECT(Y237)=Z237,0,1)","v":0}]
[{"$f":"ADDRESS(116,14,1,1,$A$1)","v":"Summary!$N$116"},"=$N$112*1.2",0,{"$f":"ADDRESS(124,4,1,1,$D$1)","v":"'Fixed Income Investments'!$D$124"},"='Schedule IIB (EBS)'!P72+'Schedule IIC (EBS)'!P72+'Schedule IID (EBS)'!P72+'Schedule IIE (EBS)'!P72+'Schedule IIF (EBS)'!P72",0,{"$f":"ADDRESS(34,18,1,1,$G$1)","v":"'Equity Investments'!$R$34"},"=MAX(SUM(R27:R33),0)",0,null,null,null,{"$f":"ADDRESS(22,2,1,1,$M$1)","v":"'Currency Risk'!$B$22"},"='Schedule XXA'!B20",0,{"$f":"ADDRESS(83,6,1,1,$P$1)","v":"'Concentration Risk'!$F$83"},"=MAX(0,(D83*E83))",{"$f":"IF(_xlfn.FORMULATEXT(INDIRECT(P238))=Q238,0,1)","v":0},{"$f":"ADDRESS(19,5,1,1,$S$1)","v":"'Geographic Diversification'!$E$19"},"=SUMSQ(I19:Z19)",0,null,null,null,{"$f":"ADDRESS(27,12,1,1,$Y$1)","v":"'Premium Risk'!$L$27"},"=+K27*S27",{"$f":"IF(_xlfn.FORMULATEXT(INDIRECT(Y238))=Z238,0,1)","v":0}]
[{"$f":"ADDRESS(116,27,1,1,$A$1)","v":"Summary!$AA$116"},"=IF(N74=0,15000000,N74)",0,{"$f":"ADDRESS(124,5,1,1,$D$1)","v":"'Fixed Income Investments'!$E$124"},"='Schedule IIB (EBS)'!R72+'Schedule IIC (EBS)'!R72+'Schedule IID (EBS)'!R72+'Schedule IIE (EBS)'!R72+'Schedule IIF (EBS)'!R72",0,{"$f":"ADDRESS(37,4,1,1,$G$1)","v":"'Equity Investments'!$D$37"},"='Schedule IIB (EBS)'!D57+'Schedule IIC (EBS)'!D57+'Schedule IID (EBS)'!D57+'Schedule IIE (EBS)'!D57+'Schedule IIF (EBS)'!D57",0,null,null,null,{"$f":"ADDRESS(22,3,1,1,$M$1)","v":"'Currency Risk'!$C$22"},"='Schedule XXA'!D20",0,{"$f":"ADDRESS(85,4,1,1,$P$1)","v":"'Concentration Risk'!$D$85"},"=SUM(D74:D83)",{"$f":"IF(_xlfn.FORMULATEXT(INDIRECT(P239))=Q239,0,1)","v":0},{"$f":"ADDRESS(19,6,1,1,$S$1)","v":"'Geographic Diversification'!$F$19"},"=(IF(D19>0,E19/D19^2,1))",0,null,null,null,{"$f":"ADDRESS(27,13,1,1,$Y$1)","v":"'Premium Risk'!$M$27"},"=+L27*T27",{"$f":"IF(_xlfn.FORMULATEXT(INDIRECT(Y239))=Z239,0,1)","v":0}]
[{"$f":"ADDRESS(116,29,1,1,$A$1)","v":"Summary!$AC$116"},"=AC$122-AA116",0,{"$f":"ADDRESS(124,6,1,1,$D$1)","v":"'Fixed Income Investments'!$F$124"},"='Schedule IIB (EBS)'!T72+'Schedule IIC (EBS)'!T72+'Schedule IID (EBS)'!T72+'Schedule IIE (EBS)'!T72+'Schedule IIF (EBS)'!T72",0,{"$f":"ADDRESS(37,5,1,1,$G$1)","v":"'Equity Investments'!$E$37"},"='Schedule IIB (EBS)'!F57+'Schedule IIC (EBS)'!F57+'Schedule IID (EBS)'!F57+'Schedule IIE (EBS)'!F57+'Schedule IIF (EBS)'!F57",0,null,null,null,{"$f":"ADDRESS(22,4,1,1,$M$1)","v":"'Currency Risk'!$D$22"},"='Schedule XXA'!F20",0,{"$f":"ADDRESS(85,6,1,1,$P$1)","v":"'Concentration Risk'!$F$85"},"=SUM(F74:F83)",{"$f":"IF(_xlfn.FORMULATEXT(INDIRECT(P240))=Q240,0,1)","v":0},{"$f":"ADDRESS(19,7,1,1,$S$1)","v":"'Geographic Diversification'!$G$19"},"=D19*(0.75+0.25*F19)",0,null,null,null,{"$f":"ADDRESS(27,14,1,1,$Y$1)","v":"'Premium Risk'!$N$27"},"=IF($H27<0,0,$H27*$K27)+IF($I27<0,0,$I27*$L27)+IF($J27<0,0,$J27*$M27)",{"$f":"IF(_xlfn.FORMULATEXT(INDIRECT(Y240))=Z240,0,1)","v":0}]
[{"$f":"ADDRESS(116,30,1,1,$A$1)","v":"Summary!$AD$116"},"=Z116*AA$113",0,{"$f":"ADDRESS(124,9,1,1,$D$1)","v":"'Fixed Income Investments'!$I$124"},"=(C124-D124)+MAX(0,E124-F124)",0,{"$f":"ADDRESS(37,6,1,1,$G$1)","v":"'Equity Investments'!$F$37"},"='Schedule IIB (EBS)'!H57+'Schedule IIC (EBS)'!H57+'Schedule IID (EBS)'!H57+'Schedule IIE (EBS)'!H57+'Schedule IIF (EBS)'!H57",0,null,null,null,{"$f":"ADDRESS(22,5,1,1,$M$1)","v":"'Currency Risk'!$E$22"},"='Schedule XXA'!H20",0,{"$f":"ADDRESS(87,4,1,1,$P$1)","v":"'Concentration Risk'!$D$87"},"=+'Schedule XXIA'!C65",{"$f":"IF(_xlfn.FORMULATEXT(INDIRECT(P241))=Q241,0,1)","v":0},{"$f":"ADDRESS(19,8,1,1,$S$1)","v":"'Geographic Diversification'!$H$19"},"=IF('Schedule IVE (EBS)'!AB19=\"True\",G19,'Schedule IVD (EBS)'!O19)",0,null,null,null,{"$f":"ADDRESS(27,17,1,1,$Y$1)","v":"'Premium Risk'!$Q$27"},"=IF(H27=E27,MAX(D27*K27,0),IF(E27=F27,IF(D27<0,0,D27*(H27/F27)*K27),IF(D27<0,0,D27*(H27/E27)*K27)))\n+IF(I27=E27,MAX(D27*L27,0),IF(E27=F27,IF(D27<0,0,D27*(I27/F27)*L27),IF(D27<0,0,D27*(I27/E27)*L27)))\n+IF(J27=E27,MAX(D27*M27,0),IF(E27=F27,IF(D27<0,0,D27*(J27/F27)*M27),IF(D27<0,0,D27*(J27/E27)*M27)))",{"$f":"IF(_xlfn.FORMULATEXT(INDIRECT(Y241))=Z241,0,1)","v":0}]
[{"$f":"ADDRESS(117,27,1,1,$A$1)","v":"Summary!$AA$117"},"=IF(N74=0,15000000,N74)",0,{"$f":"ADDRESS(125,3,1,1,$D$1)","v":"'Fixed Income Investments'!$C$125"},"='Schedule IIB (EBS)'!N73+'Schedule IIC (EBS)'!N73+'Schedule IID (EBS)'!N73+'Schedule IIE (EBS)'!N73+'Schedule IIF (EBS)'!N73",0,{"$f":"ADDRESS(37,7,1,1,$G$1)","v":"'Equity Investments'!$G$37"},"='Schedule IIB (EBS)'!J57+'Schedule IIC (EBS)'!J57+'Schedule IID (EBS)'!J57+'Schedule IIE (EBS)'!J57+'Schedule IIF (EBS)'!J57",0,null,null,null,{"$f":"ADDRESS(22,6,1,1,$M$1)","v":"'Currency Risk'!$F$22"},"='Schedule XXA'!J20",0,{"$f":"ADDRESS(88,2,1,1,$P$1)","v":"'Concentration Risk'!$B$88"},"Insured/Guaranteed Mortgages",{"$f":"IF(INDIRECT(P242)=Q242,0,1)","v":0},{"$f":"ADDRESS(19,9,1,1,$S$1)","v":"'Geographic Diversification'!$I$19"},"=+'Schedule IVE (EBS)'!E19",0,null,null,null,{"$f":"ADDRESS(27,19,1,1,$Y$1)","v":"'Premium Risk'!$S$27"},0.5,{"$f":"IF(INDIRECT(Y242)=Z242,0,1)","v":0}]
[{"$f":"ADDRESS(117,29,1,1,$A$1)","v":"Summary!$AC$117"},"=AC$122-AA117",0,{"$f":"ADDRESS(125,4,1,1,$D$1)","v":"'Fixed Income Investments'!$D$125"},"='Schedule IIB (EBS)'!P73+'Schedule IIC (EBS)'!P73+'Schedule IID (EBS)'!P73+'Schedule IIE (EBS)'!P73+'Schedule IIF (EBS)'!P73",0,{"$f":"ADDRESS(37,8,1,1,$G$1)","v":"'Equity Investments'!$H$37"},"='Schedule IIB (EBS)'!L57+'Schedule IIC (EBS)'!L57+'Schedule IID (EBS)'!L57+'Schedule IIE (EBS)'!L57+'Schedule IIF (EBS)'!L57",0,null,null,null,{"$f":"ADDRESS(22,7,1,1,$M$1)","v":"'Currency Risk'!$G$22"},"='Schedule XXA'!L20",0,{"$f":"ADDRESS(88,4,1,1,$P$1)","v":"'Concentration Risk'!$D$88"},"=SUMIFS('Schedule XXIA'!$M$8:$M$57,'Schedule XXIA'!$J$8:$J$57,$D$87,'Schedule XXIA'!$K$8:$K$57,$B88)",{"$f":"IF(_xlfn.FORMULATEXT(INDIRECT(P243))=Q243,0,1)","v":0},{"$f":"ADDRESS(19,10,1,1,$S$1)","v":"'Geographic Diversification'!$J$19"},"=+'Schedule IVE (EBS)'!F19",0,null,null,null,{"$f":"ADDRESS(27,20,1,1,$Y$1)","v":"'Premium Risk'!$T$27"},0.5,{"$f":"IF(INDIRECT(Y243)=Z243,0,1)","v":0}]
[{"$f":"ADDRESS(117,30,1,1,$A$1)","v":"Summary!$AD$117"},"=Z117*AA$113",0,{"$f":"ADDRESS(125,5,1,1,$D$1)","v":"'Fixed Income Investments'!$E$125"},"='Schedule IIB (EBS)'!R73+'Schedule IIC (EBS)'!R73+'Schedule IID (EBS)'!R73+'Schedule IIE (EBS)'!R73+'Schedule IIF (EBS)'!R73",0,{"$f":"ADDRESS(37,9,1,1,$G$1)","v":"'Equity Investments'!$I$37"},"='Schedule IIB (EBS)'!N57+'Schedule IIC (EBS)'!N57+'Schedule IID (EBS)'!N57+'Schedule IIE (EBS)'!N57+'Schedule IIF (EBS)'!N57",0,null,null,null,{"$f":"ADDRESS(22,8,1,1,$M$1)","v":"'Currency Risk'!$H$22"},"='Schedule XXA'!N20",0,{"$f":"ADDRESS(88,5,1,1,$P$1)","v":"'Concentration Risk'!$E$88"},"='Fixed Income Investments'!H70",{"$f":"IF(_xlfn.FORMULATEXT(INDIRECT(P244))=Q244,0,1)","v":0},{"$f":"ADDRESS(19,11,1,1,$S$1)","v":"'Geographic Diversification'!$K$19"},"=+'Schedule IVE (EBS)'!G19",0,null,null,null,{"$f":"ADDRESS(28,4,1,1,$Y$1)","v":"'Premium Risk'!$D$28"},"='Schedule IVD (EBS)'!Q26",{"$f":"IF(_xlfn.FORMULATEXT(INDIRECT(Y244))=Z244,0,1)","v":0}]
[{"$f":"ADDRESS(120,14,1,1,$A$1)","v":"Summary!$N$120"},"=IF(N88=0,\"n/a\",N100/N88)",0,{"$f":"ADDRESS(125,6,1,1,$D$1)","v":"'Fixed Income Investments'!$F$125"},"='Schedule IIB (EBS)'!T73+'Schedule IIC (EBS)'!T73+'Schedule IID (EBS)'!T73+'Schedule IIE (EBS)'!T73+'Schedule IIF (EBS)'!T73",0,{"$f":"ADDRESS(37,10,1,1,$G$1)","v":"'Equity Investments'!$J$37"},"='Schedule IIB (EBS)'!P57+'Schedule IIC (EBS)'!P57+'Schedule IID (EBS)'!P57+'Schedule IIE (EBS)'!P57+'Schedule IIF (EBS)'!P57",0,null,null,null,{"$f":"ADDRESS(22,9,1,1,$M$1)","v":"'Currency Risk'!$I$22"},"=$I$10*H22",0,{"$f":"ADDRESS(88,6,1,1,$P$1)","v":"'Concentration Risk'!$F$88"},"=MAX(0,(D88*E88))",{"$f":"IF(_xlfn.FORMULATEXT(INDIRECT(P245))=Q245,0,1)","v":0},{"$f":"ADDRESS(19,12,1,1,$S$1)","v":"'Geographic Diversification'!$L$19"},"=+'Schedule IVE (EBS)'!H19",0,null,null,null,{"$f":"ADDRESS(28,5,1,1,$Y$1)","v":"'Premium Risk'!$E$28"},"='Schedule IVD (EBS)'!O26",0]
[{"$f":"ADDRESS(122,14,1,1,$A$1)","v":"Summary!$N$122"},"=IF($N$90=0,\"n/a\",$N$100/$N$90)",0,{"$f":"ADDRESS(125,9,1,1,$D$1)","v":"'Fixed Income Investments'!$I$125"},"=(C125-D125)+MAX(0,E125-F125)",0,{"$f":"ADDRESS(37,11,1,1,$G$1)","v":"'Equity Investments'!$K$37"},"='Schedule IIB (EBS)'!R57+'Schedule IIC (EBS)'!R57+'Schedule IID (EBS)'!R57+'Schedule IIE (EBS)'!R57+'Schedule IIF (EBS)'!R57",0,null,null,null,{"$f":"ADDRESS(22,10,1,1,$M$1)","v":"'Currency Risk'!$J$22"},"=IF((SUM(C22:G22))>(H22+I22),0%,25%)",0,{"$f":"ADDRESS(89,2,1,1,$P$1)","v":"'Concentration Risk'!$B$89"},"Other Commercial and Farm Mortgages",{"$f":"IF(INDIRECT(P246)=Q246,0,1)","v":0},{"$f":"ADDRESS(19,13,1,1,$S$1)","v":"'Geographic Diversification'!$M$19"},"=+'Schedule IVE (EBS)'!I19",0,null,null,null,{"$f":"ADDRESS(28,6,1,1,$Y$1)","v":"'Premium Risk'!$F$28"},"='Geographic Diversification'!H26",0]
[{"$f":"ADDRESS(122,29,1,1,$A$1)","v":"Summary!$AC$122"},"=MAX(AD108:AD117)",0,{"$f":"ADDRESS(126,3,1,1,$D$1)","v":"'Fixed Income Investments'!$C$126"},"='Schedule IIB (EBS)'!N74+'Schedule IIC (EBS)'!N74+'Schedule IID (EBS)'!N74+'Schedule IIE (EBS)'!N74+'Schedule IIF (EBS)'!N74",0,{"$f":"ADDRESS(37,12,1,1,$G$1)","v":"'Equity Investments'!$L$37"},"='Schedule IIB (EBS)'!T57+'Schedule IIC (EBS)'!T57+'Schedule IID (EBS)'!T57+'Schedule IIE (EBS)'!T57+'Schedule IIF (EBS)'!T57",0,null,null,null,{"$f":"ADDRESS(22,12,1,1,$M$1)","v":"'Currency Risk'!$L$22"},"='Schedule XXA'!V20",0,{"$f":"ADDRESS(89,4,1,1,$P$1)","v":"'Concentration Risk'!$D$89"},"=SUMIFS('Schedule XXIA'!$M$8:$M$57,'Schedule XXIA'!$J$8:$J$57,$D$87,'Schedule XXIA'!$K$8:$K$57,$B89)",{"$f":"IF(_xlfn.FORMULATEXT(INDIRECT(P247))=Q247,0,1)","v":0},{"$f":"ADDRESS(19,14,1,1,$S$1)","v":"'Geographic Diversification'!$N$19"},"=+'Schedule IVE (EBS)'!J19",0,null,null,null,{"$f":"ADDRESS(28,7,1,1,$Y$1)","v":"'Premium Risk'!$G$28"},"=IF(IFERROR(F28/E28,1)<0,1,IFERROR(F28/E28,1))",0]
[{"$f":"ADDRESS(124,14,1,1,$A$1)","v":"Summary!$N$124"},"=IF(N110=0,\"n/a\",N100/N110)",0,{"$f":"ADDRESS(126,4,1,1,$D$1)","v":"'Fixed Income Investments'!$D$126"},"='Schedule IIB (EBS)'!P74+'Schedule IIC (EBS)'!P74+'Schedule IID (EBS)'!P74+'Schedule IIE (EBS)'!P74+'Schedule IIF (EBS)'!P74",0,{"$f":"ADDRESS(37,16,1,1,$G$1)","v":"'Equity Investments'!$P$37"},"=MAX(D37-E37,0)+(F37-G37)+MAX(H37-I37,0)+(K37-J37)",0,null,null,null,{"$f":"ADDRESS(22,13,1,1,$M$1)","v":"'Currency Risk'!$M$22"},"='Schedule XXA'!X20",0,{"$f":"ADDRESS(89,5,1,1,$P$1)","v":"'Concentration Risk'!$E$89"},"='Fixed Income Investments'!H71",{"$f":"IF(_xlfn.FORMULATEXT(INDIRECT(P248))=Q248,0,1)","v":0},{"$f":"ADDRESS(19,15,1,1,$S$1)","v":"'Geographic Diversification'!$O$19"},"=+'Schedule IVE (EBS)'!K19",0,null,null,null,{"$f":"ADDRESS(28,8,1,1,$Y$1)","v":"'Premium Risk'!$H$28"},"='Schedule IVD (EBS)'!I26*$G28",0]
[{"$f":"ADDRESS(126,14,1,1,$A$1)","v":"Summary!$N$126"},"=IF($N$90=0,\"n/a\",$N$100/$N$112)",0,{"$f":"ADDRESS(126,5,1,1,$D$1)","v":"'Fixed Income Investments'!$E$126"},"='Schedule IIB (EBS)'!R74+'Schedule IIC (EBS)'!R74+'Schedule IID (EBS)'!R74+'Schedule IIE (EBS)'!R74+'Schedule IIF (EBS)'!R74",0,{"$f":"ADDRESS(37,18,1,1,$G$1)","v":"'Equity Investments'!$R$37"},"=MAX(D37-E37,0)+(F37-G37)+MAX(H37-I37,0)+(L37-J37)",0,null,null,null,{"$f":"ADDRESS(22,14,1,1,$M$1)","v":"'Currency Risk'!$N$22"},"='Schedule XXA'!Z20",0,{"$f":"ADDRESS(89,6,1,1,$P$1)","v":"'Concentration Risk'!$F$89"},"=MAX(0,(D89*E89))",{"$f":"IF(_xlfn.FORMULATEXT(INDIRECT(P249))=Q249,0,1)","v":0},{"$f":"ADDRESS(19,16,1,1,$S$1)","v":"'Geographic Diversification'!$P$19"},"=+'Schedule IVE (EBS)'!L19",0,null,null,null,{"$f":"ADDRESS(28,9,1,1,$Y$1)","v":"'Premium Risk'!$I$28"},"='Schedule IVD (EBS)'!K26*$G28",0]
[{"$f":"ADDRESS(128,14,1,1,$A$1)","v":"Summary!$N$128"},"=IF(N126=\"n/a\",\"n/a\",IF(AND(N126>100%,K140=\"Yes\",M140=\"Yes\"),\"YES\",\"NO\"))",0,{"$f":"ADDRESS(126,6,1,1,$D$1)","v":"'Fixed Income Investments'!$F$126"},"='Schedule IIB (EBS)'!T74+'Schedule IIC (EBS)'!T74+'Schedule IID (EBS)'!T74+'Schedule IIE (EBS)'!T74+'Schedule IIF (EBS)'!T74",0,{"$f":"ADDRESS(38,4,1,1,$G$1)","v":"'Equity Investments'!$D$38"},"='Schedule IIB (EBS)'!D58+'Schedule IIC (EBS)'!D58+'Schedule IID (EBS)'!D58+'Schedule IIE (EBS)'!D58+'Schedule IIF (EBS)'!D58",0,null,null,null,{"$f":"ADDRESS(22,15,1,1,$M$1)","v":"'Currency Risk'!$O$22"},"='Schedule XXA'!AB20",0,{"$f":"ADDRESS(90,2,1,1,$P$1)","v":"'Concentration Risk'!$B$90"},"Other Residential Mortgages",{"$f":"IF(INDIRECT(P250)=Q250,0,1)","v":0},{"$f":"ADDRESS(19,17,1,1,$S$1)","v":"'Geographic Diversification'!$Q$19"},"=+'Schedule IVE (EBS)'!M19",0,null,null,null,{"$f":"ADDRESS(28,10,1,1,$Y$1)","v":"'Premium Risk'!$J$28"},"='Schedule IVD (EBS)'!M26*$G28",0]
[{"$f":"ADDRESS(135,11,1,1,$A$1)","v":"Summary!$K$135"},"='Schedule XII(a)'!G92",0,{"$f":"ADDRESS(126,9,1,1,$D$1)","v":"'Fixed Income Investments'!$I$126"},"=(C126-D126)+MAX(0,E126-F126)",0,{"$f":"ADDRESS(38,5,1,1,$G$1)","v":"'Equity Investments'!$E$38"},"='Schedule IIB (EBS)'!F58+'Schedule IIC (EBS)'!F58+'Schedule IID (EBS)'!F58+'Schedule IIE (EBS)'!F58+'Schedule IIF (EBS)'!F58",0,null,null,null,{"$f":"ADDRESS(22,16,1,1,$M$1)","v":"'Currency Risk'!$P$22"},"='Schedule XXA'!AD20",0,{"$f":"ADDRESS(90,4,1,1,$P$1)","v":"'Concentration Risk'!$D$90"},"=SUMIFS('Schedule XXIA'!$M$8:$M$57,'Schedule XXIA'!$J$8:$J$57,$D$87,'Schedule XXIA'!$K$8:$K$57,$B90)",{"$f":"IF(_xlfn.FORMULATEXT(INDIRECT(P251))=Q251,0,1)","v":0},{"$f":"ADDRESS(19,18,1,1,$S$1)","v":"'Geographic Diversification'!$R$19"},"=+'Schedule IVE (EBS)'!N19",0,null,null,null,{"$f":"ADDRESS(28,11,1,1,$Y$1)","v":"'Premium Risk'!$K$28"},0.42191756117933499,{"$f":"IF(INDIRECT(Y251)=Z251,0,1)","v":0}]
[{"$f":"ADDRESS(135,13,1,1,$A$1)","v":"Summary!$M$135"},"='Schedule XII(a)'!I92",0,{"$f":"ADDRESS(127,3,1,1,$D$1)","v":"'Fixed Income Investments'!$C$127"},"='Schedule IIB (EBS)'!N75+'Schedule IIC (EBS)'!N75+'Schedule IID (EBS)'!N75+'Schedule IIE (EBS)'!N75+'Schedule IIF (EBS)'!N75",0,{"$f":"ADDRESS(38,6,1,1,$G$1)","v":"'Equity Investments'!$F$38"},"='Schedule IIB (EBS)'!H58+'Schedule IIC (EBS)'!H58+'Schedule IID (EBS)'!H58+'Schedule IIE (EBS)'!H58+'Schedule IIF (EBS)'!H58",0,null,null,null,{"$f":"ADDRESS(22,17,1,1,$M$1)","v":"'Currency Risk'!$Q$22"},"='Schedule XXA'!AF20",0,{"$f":"ADDRESS(90,5,1,1,$P$1)","v":"'Concentration Risk'!$E$90"},"='Fixed Income Investments'!H72",{"$f":"IF(_xlfn.FORMULATEXT(INDIRECT(P252))=Q252,0,1)","v":0},{"$f":"ADDRESS(19,19,1,1,$S$1)","v":"'Geographic Diversification'!$S$19"},"=+'Schedule IVE (EBS)'!O19",0,null,null,null,{"$f":"ADDRESS(28,12,1,1,$Y$1)","v":"'Premium Risk'!$L$28"},"=+K28*S28",{"$f":"IF(_xlfn.FORMULATEXT(INDIRECT(Y252))=Z252,0,1)","v":0}]
[{"$f":"ADDRESS(136,11,1,1,$A$1)","v":"Summary!$K$136"},"='Schedule XII(a)'!G93",0,{"$f":"ADDRESS(127,4,1,1,$D$1)","v":"'Fixed Income Investments'!$D$127"},"='Schedule IIB (EBS)'!P75+'Schedule IIC (EBS)'!P75+'Schedule IID (EBS)'!P75+'Schedule IIE (EBS)'!P75+'Schedule IIF (EBS)'!P75",0,{"$f":"ADDRESS(38,7,1,1,$G$1)","v":"'Equity Investments'!$G$38"},"='Schedule IIB (EBS)'!J58+'Schedule IIC (EBS)'!J58+'Schedule IID (EBS)'!J58+'Schedule IIE (EBS)'!J58+'Schedule IIF (EBS)'!J58",0,null,null,null,{"$f":"ADDRESS(22,18,1,1,$M$1)","v":"'Currency Risk'!$R$22"},"=IF('Schedule XXA'!AH20=0,Q22,'Schedule XXA'!AH20)",0,{"$f":"ADDRESS(90,6,1,1,$P$1)","v":"'Concentration Risk'!$F$90"},"=MAX(0,(D90*E90))",{"$f":"IF(_xlfn.FORMULATEXT(INDIRECT(P253))=Q253,0,1)","v":0},{"$f":"ADDRESS(19,20,1,1,$S$1)","v":"'Geographic Diversification'!$T$19"},"=+'Schedule IVE (EBS)'!P19",0,null,null,null,{"$f":"ADDRESS(28,13,1,1,$Y$1)","v":"'Premium Risk'!$M$28"},"=+L28*T28",{"$f":"IF(_xlfn.FORMULATEXT(INDIRECT(Y253))=Z253,0,1)","v":0}]
[{"$f":"ADDRESS(136,13,1,1,$A$1)","v":"Summary!$M$136"},"='Schedule XII(a)'!I93",0,{"$f":"ADDRESS(127,5,1,1,$D$1)","v":"'Fixed Income Investments'!$E$127"},"='Schedule IIB (EBS)'!R75+'Schedule IIC (EBS)'!R75+'Schedule IID (EBS)'!R75+'Schedule IIE (EBS)'!R75+'Schedule IIF (EBS)'!R75",0,{"$f":"ADDRESS(38,8,1,1,$G$1)","v":"'Equity Investments'!$H$38"},"='Schedule IIB (EBS)'!L58+'Schedule IIC (EBS)'!L58+'Schedule IID (EBS)'!L58+'Schedule IIE (EBS)'!L58+'Schedule IIF (EBS)'!L58",0,null,null,null,{"$f":"ADDRESS(22,20,1,1,$M$1)","v":"'Currency Risk'!$T$22"},"=(C22-L22)+(D22-M22)+(F22-O22)+MAX(E22-N22,0)+MAX(G22-P22,0)",0,{"$f":"ADDRESS(91,2,1,1,$P$1)","v":"'Concentration Risk'!$B$91"},"Mortgages Not In Good Standing",{"$f":"IF(INDIRECT(P254)=Q254,0,1)","v":0},{"$f":"ADDRESS(19,21,1,1,$S$1)","v":"'Geographic Diversification'!$U$19"},"=+'Schedule IVE (EBS)'!Q19",0,null,null,null,{"$f":"ADDRESS(28,14,1,1,$Y$1)","v":"'Premium Risk'!$N$28"},"=IF($H28<0,0,$H28*$K28)+IF($I28<0,0,$I28*$L28)+IF($J28<0,0,$J28*$M28)",{"$f":"IF(_xlfn.FORMULATEXT(INDIRECT(Y254))=Z254,0,1)","v":0}]
[{"$f":"ADDRESS(137,13,1,1,$A$1)","v":"Summary!$M$137"},"='Schedule XII(a)'!I94",0,{"$f":"ADDRESS(127,6,1,1,$D$1)","v":"'Fixed Income Investments'!$F$127"},"='Schedule IIB (EBS)'!T75+'Schedule IIC (EBS)'!T75+'Schedule IID (EBS)'!T75+'Schedule IIE (EBS)'!T75+'Schedule IIF (EBS)'!T75",0,{"$f":"ADDRESS(38,9,1,1,$G$1)","v":"'Equity Investments'!$I$38"},"='Schedule IIB (EBS)'!N58+'Schedule IIC (EBS)'!N58+'Schedule IID (EBS)'!N58+'Schedule IIE (EBS)'!N58+'Schedule IIF (EBS)'!N58",0,null,null,null,{"$f":"ADDRESS(22,21,1,1,$M$1)","v":"'Currency Risk'!$U$22"},"=Q22-$H22",0,{"$f":"ADDRESS(91,4,1,1,$P$1)","v":"'Concentration Risk'!$D$91"},"=SUMIFS('Schedule XXIA'!$M$8:$M$57,'Schedule XXIA'!$J$8:$J$57,$D$87,'Schedule XXIA'!$K$8:$K$57,$B91)",{"$f":"IF(_xlfn.FORMULATEXT(INDIRECT(P255))=Q255,0,1)","v":0},{"$f":"ADDRESS(19,22,1,1,$S$1)","v":"'Geographic Diversification'!$V$19"},"=+'Schedule IVE (EBS)'!R19",0,null,null,null,{"$f":"ADDRESS(28,17,1,1,$Y$1)","v":"'Premium Risk'!$Q$28"},"=IF(H28=E28,MAX(D28*K28,0),IF(E28=F28,IF(D28<0,0,D28*(H28/F28)*K28),IF(D28<0,0,D28*(H28/E28)*K28)))\n+IF(I28=E28,MAX(D28*L28,0),IF(E28=F28,IF(D28<0,0,D28*(I28/F28)*L28),IF(D28<0,0,D28*(I28/E28)*L28)))\n+IF(J28=E28,MAX(D28*M28,0),IF(E28=F28,IF(D28<0,0,D28*(J28/F28)*M28),IF(D28<0,0,D28*(J28/E28)*M28)))",{"$f":"IF(_xlfn.FORMULATEXT(INDIRECT(Y255))=Z255,0,1)","v":0}]
[{"$f":"ADDRESS(138,11,1,1,$A$1)","v":"Summary!$K$138"},"=+'Schedule XII(a)'!G95",0,{"$f":"ADDRESS(127,9,1,1,$D$1)","v":"'Fixed Income Investments'!$I$127"},"=(C127-D127)+MAX(0,E127-F127)",{"$f":"IF(_xlfn.FORMULATEXT(INDIRECT(D256))=E256,0,1)","v":0},{"$f":"ADDRESS(38,10,1,1,$G$1)","v":"'Equity Investments'!$J$38"},"='Schedule IIB (EBS)'!P58+'Schedule IIC (EBS)'!P58+'Schedule IID (EBS)'!P58+'Schedule IIE (EBS)'!P58+'Schedule IIF (EBS)'!P58",0,null,null,null,{"$f":"ADDRESS(22,22,1,1,$M$1)","v":"'Currency Risk'!$V$22"},"=R22-$H22",0,{"$f":"ADDRESS(91,5,1,1,$P$1)","v":"'Concentration Risk'!$E$91"},"='Fixed Income Investments'!H73",{"$f":"IF(_xlfn.FORMULATEXT(INDIRECT(P256))=Q256,0,1)","v":0},{"$f":"ADDRESS(19,23,1,1,$S$1)","v":"'Geographic Diversification'!$W$19"},"=+'Schedule IVE (EBS)'!S19",0,null,null,null,{"$f":"ADDRESS(28,19,1,1,$Y$1)","v":"'Premium Risk'!$S$28"},0.3,{"$f":"IF(INDIRECT(Y256)=Z256,0,1)","v":0}]
[{"$f":"ADDRESS(138,13,1,1,$A$1)","v":"Summary!$M$138"},"=+'Schedule XII(a)'!I95",0,{"$f":"ADDRESS(128,3,1,1,$D$1)","v":"'Fixed Income Investments'!$C$128"},"='Schedule IIB (EBS)'!N76+'Schedule IIC (EBS)'!N76+'Schedule IID (EBS)'!N76+'Schedule IIE (EBS)'!N76+'Schedule IIF (EBS)'!N76",0,{"$f":"ADDRESS(38,11,1,1,$G$1)","v":"'Equity Investments'!$K$38"},"='Schedule IIB (EBS)'!R58+'Schedule IIC (EBS)'!R58+'Schedule IID (EBS)'!R58+'Schedule IIE (EBS)'!R58+'Schedule IIF (EBS)'!R58",0,null,null,null,{"$f":"ADDRESS(22,24,1,1,$M$1)","v":"'Currency Risk'!$X$22"},"=MAX(0,$T22+U22+(J22*I22))",0,{"$f":"ADDRESS(91,6,1,1,$P$1)","v":"'Concentration Risk'!$F$91"},"=MAX(0,(D91*E91))",{"$f":"IF(_xlfn.FORMULATEXT(INDIRECT(P257))=Q257,0,1)","v":0},{"$f":"ADDRESS(19,24,1,1,$S$1)","v":"'Geographic Diversification'!$X$19"},"=+'Schedule IVE (EBS)'!T19",0,null,null,null,{"$f":"ADDRESS(28,20,1,1,$Y$1)","v":"'Premium Risk'!$T$28"},0.5,{"$f":"IF(INDIRECT(Y257)=Z257,0,1)","v":0}]
[{"$f":"ADDRESS(140,11,1,1,$A$1)","v":"Summary!$K$140"},"=IF(K138>=N106,\"YES\",\"NO\")",0,{"$f":"ADDRESS(128,4,1,1,$D$1)","v":"'Fixed Income Investments'!$D$128"},"='Schedule IIB (EBS)'!P76+'Schedule IIC (EBS)'!P76+'Schedule IID (EBS)'!P76+'Schedule IIE (EBS)'!P76+'Schedule IIF (EBS)'!P76",0,{"$f":"ADDRESS(38,12,1,1,$G$1)","v":"'Equity Investments'!$L$38"},"='Schedule IIB (EBS)'!T58+'Schedule IIC (EBS)'!T58+'Schedule IID (EBS)'!T58+'Schedule IIE (EBS)'!T58+'Schedule IIF (EBS)'!T58",0,null,null,null,{"$f":"ADDRESS(22,25,1,1,$M$1)","v":"'Currency Risk'!$Y$22"},"=MAX(0,$T22+V22+(J22*I22))",0,{"$f":"ADDRESS(93,4,1,1,$P$1)","v":"'Concentration Risk'!$D$93"},"=SUM(D88:D91)",{"$f":"IF(_xlfn.FORMULATEXT(INDIRECT(P258))=Q258,0,1)","v":0},{"$f":"ADDRESS(19,25,1,1,$S$1)","v":"'Geographic Diversification'!$Y$19"},"=+'Schedule IVE (EBS)'!U19",0,null,null,null,{"$f":"ADDRESS(29,4,1,1,$Y$1)","v":"'Premium Risk'!$D$29"},"='Schedule IVD (EBS)'!Q27",{"$f":"IF(_xlfn.FORMULATEXT(INDIRECT(Y258))=Z258,0,1)","v":0}]
[{"$f":"ADDRESS(140,13,1,1,$A$1)","v":"Summary!$M$140"},"=IF(M138>=N112,\"YES\",\"NO\")",0,{"$f":"ADDRESS(128,5,1,1,$D$1)","v":"'Fixed Income Investments'!$E$128"},"='Schedule IIB (EBS)'!R76+'Schedule IIC (EBS)'!R76+'Schedule IID (EBS)'!R76+'Schedule IIE (EBS)'!R76+'Schedule IIF (EBS)'!R76",0,{"$f":"ADDRESS(38,16,1,1,$G$1)","v":"'Equity Investments'!$P$38"},"=MAX(D38-E38,0)+(F38-G38)+MAX(H38-I38,0)+(K38-J38)",0,null,null,null,{"$f":"ADDRESS(23,2,1,1,$M$1)","v":"'Currency Risk'!$B$23"},"='Schedule XXA'!B21",0,{"$f":"ADDRESS(93,6,1,1,$P$1)","v":"'Concentration Risk'!$F$93"},"=SUM(F88:F91)",{"$f":"IF(_xlfn.FORMULATEXT(INDIRECT(P259))=Q259,0,1)","v":0},{"$f":"ADDRESS(19,26,1,1,$S$1)","v":"'Geographic Diversification'!$Z$19"},"=+'Schedule IVE (EBS)'!V19",0,null,null,null,{"$f":"ADDRESS(29,5,1,1,$Y$1)","v":"'Premium Risk'!$E$29"},"='Schedule IVD (EBS)'!O27",0]
[{"$f":"ADDRESS(145,13,1,1,$A$1)","v":"Summary!$M$145"},"=N74-L74",0,{"$f":"ADDRESS(128,6,1,1,$D$1)","v":"'Fixed Income Investments'!$F$128"},"='Schedule IIB (EBS)'!T76+'Schedule IIC (EBS)'!T76+'Schedule IID (EBS)'!T76+'Schedule IIE (EBS)'!T76+'Schedule IIF (EBS)'!T76",0,{"$f":"ADDRESS(38,18,1,1,$G$1)","v":"'Equity Investments'!$R$38"},"=MAX(D38-E38,0)+(F38-G38)+MAX(H38-I38,0)+(L38-J38)",0,null,null,null,{"$f":"ADDRESS(23,3,1,1,$M$1)","v":"'Currency Risk'!$C$23"},"='Schedule XXA'!D21",0,{"$f":"ADDRESS(96,2,1,1,$P$1)","v":"'Concentration Risk'!$B$96"},"Infrastructure (Non-affiliate holdings, non-duration based)",{"$f":"IF(INDIRECT(P260)=Q260,0,1)","v":0},{"$f":"ADDRESS(20,4,1,1,$S$1)","v":"'Geographic Diversification'!$D$20"},"=SUM(I20:Z20)",{"$f":"IF(_xlfn.FORMULATEXT(INDIRECT(S260))=T260,0,1)","v":0},null,null,null,{"$f":"ADDRESS(29,6,1,1,$Y$1)","v":"'Premium Risk'!$F$29"},"='Geographic Diversification'!H27",0]
[{"$f":"ADDRESS(147,13,1,1,$A$1)","v":"Summary!$M$147"},"=-MAX(MIN(M145,M146),0)",0,{"$f":"ADDRESS(128,9,1,1,$D$1)","v":"'Fixed Income Investments'!$I$128"},"=(C128-D128)+MAX(0,E128-F128)",0,{"$f":"ADDRESS(40,4,1,1,$G$1)","v":"'Equity Investments'!$D$40"},"=SUM(D37:D39)",0,null,null,null,{"$f":"ADDRESS(23,4,1,1,$M$1)","v":"'Currency Risk'!$D$23"},"='Schedule XXA'!F21",0,{"$f":"ADDRESS(96,4,1,1,$P$1)","v":"'Concentration Risk'!$D$96"},"=SUMIFS('Schedule XXIA'!$M$8:$M$57,'Schedule XXIA'!$J$8:$J$57,$B96)",{"$f":"IF(_xlfn.FORMULATEXT(INDIRECT(P261))=Q261,0,1)","v":0},{"$f":"ADDRESS(20,5,1,1,$S$1)","v":"'Geographic Diversification'!$E$20"},"=SUMSQ(I20:Z20)",0,null,null,null,{"$f":"ADDRESS(29,7,1,1,$Y$1)","v":"'Premium Risk'!$G$29"},"=IF(IFERROR(F29/E29,1)<0,1,IFERROR(F29/E29,1))",0]
[{"$f":"ADDRESS(152,13,1,1,$A$1)","v":"Summary!$M$152"},"=-MIN(D158,K161,M157)",0,{"$f":"ADDRESS(129,3,1,1,$D$1)","v":"'Fixed Income Investments'!$C$129"},"=SUM(C120:C128)",0,{"$f":"ADDRESS(40,5,1,1,$G$1)","v":"'Equity Investments'!$E$40"},"=SUM(E37:E39)",0,null,null,null,{"$f":"ADDRESS(23,5,1,1,$M$1)","v":"'Currency Risk'!$E$23"},"='Schedule XXA'!H21",0,{"$f":"ADDRESS(96,5,1,1,$P$1)","v":"'Concentration Risk'!$E$96"},0.25,{"$f":"IF(INDIRECT(P262)=Q262,0,1)","v":0},{"$f":"ADDRESS(20,6,1,1,$S$1)","v":"'Geographic Diversification'!$F$20"},"=(IF(D20>0,E20/D20^2,1))",0,null,null,null,{"$f":"ADDRESS(29,8,1,1,$Y$1)","v":"'Premium Risk'!$H$29"},"='Schedule IVD (EBS)'!I27*$G29",0]
[{"$f":"ADDRESS(156,4,1,1,$A$1)","v":"Summary!$D$156"},"=N74+N78+N80+N82+N86",0,{"$f":"ADDRESS(129,4,1,1,$D$1)","v":"'Fixed Income Investments'!$D$129"},"=SUM(D120:D128)",0,{"$f":"ADDRESS(40,6,1,1,$G$1)","v":"'Equity Investments'!$F$40"},"=SUM(F37:F39)",0,null,null,null,{"$f":"ADDRESS(23,6,1,1,$M$1)","v":"'Currency Risk'!$F$23"},"='Schedule XXA'!J21",0,{"$f":"ADDRESS(96,6,1,1,$P$1)","v":"'Concentration Risk'!$F$96"},"=MAX(0,(D96*E96))",{"$f":"IF(_xlfn.FORMULATEXT(INDIRECT(P263))=Q263,0,1)","v":0},{"$f":"ADDRESS(20,7,1,1,$S$1)","v":"'Geographic Diversification'!$G$20"},"=D20*(0.75+0.25*F20)",0,null,null,null,{"$f":"ADDRESS(29,9,1,1,$Y$1)","v":"'Premium Risk'!$I$29"},"='Schedule IVD (EBS)'!K27*$G29",0]
[{"$f":"ADDRESS(156,13,1,1,$A$1)","v":"Summary!$M$156"},"=N74+N78+N80+N86+N82",0,{"$f":"ADDRESS(129,5,1,1,$D$1)","v":"'Fixed Income Investments'!$E$129"},"=SUM(E120:E128)",0,{"$f":"ADDRESS(40,7,1,1,$G$1)","v":"'Equity Investments'!$G$40"},"=SUM(G37:G39)",{"$f":"IF(_xlfn.FORMULATEXT(INDIRECT(G264))=H264,0,1)","v":0},null,null,null,{"$f":"ADDRESS(23,7,1,1,$M$1)","v":"'Currency Risk'!$G$23"},"='Schedule XXA'!L21",0,{"$f":"ADDRESS(97,2,1,1,$P$1)","v":"'Concentration Risk'!$B$97"},"Listed Equity Securities in Developed Markets",{"$f":"IF(INDIRECT(P264)=Q264,0,1)","v":0},{"$f":"ADDRESS(20,8,1,1,$S$1)","v":"'Geographic Diversification'!$H$20"},"=IF('Schedule IVE (EBS)'!AB20=\"True\",G20,'Schedule IVD (EBS)'!O20)",0,null,null,null,{"$f":"ADDRESS(29,10,1,1,$Y$1)","v":"'Premium Risk'!$J$29"},"='Schedule IVD (EBS)'!M27*$G29",0]
[{"$f":"ADDRESS(157,12,1,1,$A$1)","v":"Summary!$L$157"},0.2,{"$f":"IF(INDIRECT(A265)=B265,0,1)","v":0},{"$f":"ADDRESS(129,6,1,1,$D$1)","v":"'Fixed Income Investments'!$F$129"},"=SUM(F120:F128)",0,{"$f":"ADDRESS(40,8,1,1,$G$1)","v":"'Equity Investments'!$H$40"},"=SUM(H37:H39)",0,null,null,null,{"$f":"ADDRESS(23,8,1,1,$M$1)","v":"'Currency Risk'!$H$23"},"='Schedule XXA'!N21",0,{"$f":"ADDRESS(97,4,1,1,$P$1)","v":"'Concentration Risk'!$D$97"},"=SUMIFS('Schedule XXIA'!$M$8:$M$57,'Schedule XXIA'!$J$8:$J$57,$B97)",{"$f":"IF(_xlfn.FORMULATEXT(INDIRECT(P265))=Q265,0,1)","v":0},{"$f":"ADDRESS(20,9,1,1,$S$1)","v":"'Geographic Diversification'!$I$20"},"=+'Schedule IVE (EBS)'!E20",0,null,null,null,{"$f":"ADDRESS(29,11,1,1,$Y$1)","v":"'Premium Risk'!$K$29"},0.482210885429324,{"$f":"IF(INDIRECT(Y265)=Z265,0,1)","v":0}]
[{"$f":"ADDRESS(157,13,1,1,$A$1)","v":"Summary!$M$157"},"=M156*L157",{"$f":"IF(_xlfn.FORMULATEXT(INDIRECT(A266))=B266,0,1)","v":0},{"$f":"ADDRESS(129,9,1,1,$D$1)","v":"'Fixed Income Investments'!$I$129"},"=MAX(SUM(I120:I128),0)",0,{"$f":"ADDRESS(40,9,1,1,$G$1)","v":"'Equity Investments'!$I$40"},"=SUM(I37:I39)",0,null,null,null,{"$f":"ADDRESS(23,9,1,1,$M$1)","v":"'Currency Risk'!$I$23"},"=$I$10*H23",0,{"$f":"ADDRESS(97,5,1,1,$P$1)","v":"'Concentration Risk'!$E$97"},0.35,{"$f":"IF(INDIRECT(P266)=Q266,0,1)","v":0},{"$f":"ADDRESS(20,10,1,1,$S$1)","v":"'Geographic Diversification'!$J$20"},"=+'Schedule IVE (EBS)'!F20",0,null,null,null,{"$f":"ADDRESS(29,12,1,1,$Y$1)","v":"'Premium Risk'!$L$29"},"=+K29*S29",{"$f":"IF(_xlfn.FORMULATEXT(INDIRECT(Y266))=Z266,0,1)","v":0}]
[{"$f":"ADDRESS(158,4,1,1,$A$1)","v":"Summary!$D$158"},"=MAX(0,D156*D157)",0,{"$f":"ADDRESS(131,9,1,1,$D$1)","v":"'Fixed Income Investments'!$I$131"},"=I114",0,{"$f":"ADDRESS(40,10,1,1,$G$1)","v":"'Equity Investments'!$J$40"},"=SUM(J37:J39)",0,null,null,null,{"$f":"ADDRESS(23,10,1,1,$M$1)","v":"'Currency Risk'!$J$23"},"=IF((SUM(C23:G23))>(H23+I23),0%,25%)",0,{"$f":"ADDRESS(97,6,1,1,$P$1)","v":"'Concentration Risk'!$F$97"},"=MAX(0,(D97*E97))",{"$f":"IF(_xlfn.FORMULATEXT(INDIRECT(P267))=Q267,0,1)","v":0},{"$f":"ADDRESS(20,11,1,1,$S$1)","v":"'Geographic Diversification'!$K$20"},"=+'Schedule IVE (EBS)'!G20",0,null,null,null,{"$f":"ADDRESS(29,13,1,1,$Y$1)","v":"'Premium Risk'!$M$29"},"=+L29*T29",{"$f":"IF(_xlfn.FORMULATEXT(INDIRECT(Y267))=Z267,0,1)","v":0}]
[{"$f":"ADDRESS(158,11,1,1,$A$1)","v":"Summary!$K$158"},"=K157*D157",0,{"$f":"ADDRESS(132,9,1,1,$D$1)","v":"'Fixed Income Investments'!$I$132"},"=I129",0,{"$f":"ADDRESS(40,11,1,1,$G$1)","v":"'Equity Investments'!$K$40"},"=SUM(K37:K39)",0,null,null,null,{"$f":"ADDRESS(23,12,1,1,$M$1)","v":"'Currency Risk'!$L$23"},"='Schedule XXA'!V21",0,{"$f":"ADDRESS(98,2,1,1,$P$1)","v":"'Concentration Risk'!$B$98"},"Other Equities",{"$f":"IF(INDIRECT(P268)=Q268,0,1)","v":0},{"$f":"ADDRESS(20,12,1,1,$S$1)","v":"'Geographic Diversification'!$L$20"},"=+'Schedule IVE (EBS)'!H20",0,null,null,null,{"$f":"ADDRESS(29,14,1,1,$Y$1)","v":"'Premium Risk'!$N$29"},"=IF($H29<0,0,$H29*$K29)+IF($I29<0,0,$I29*$L29)+IF($J29<0,0,$J29*$M29)",{"$f":"IF(_xlfn.FORMULATEXT(INDIRECT(Y268))=Z268,0,1)","v":0}]
[{"$f":"ADDRESS(159,11,1,1,$A$1)","v":"Summary!$K$159"},"='Form 1EBS'!F131-'Form 1EBS'!F79",0,{"$f":"ADDRESS(134,9,1,1,$D$1)","v":"'Fixed Income Investments'!$I$134"},"=MAX(I131,I132)",0,{"$f":"ADDRESS(40,12,1,1,$G$1)","v":"'Equity Investments'!$L$40"},"=SUM(L37:L39)",0,null,null,null,{"$f":"ADDRESS(23,13,1,1,$M$1)","v":"'Currency Risk'!$M$23"},"='Schedule XXA'!X21",0,{"$f":"ADDRESS(98,4,1,1,$P$1)","v":"'Concentration Risk'!$D$98"},"=SUMIFS('Schedule XXIA'!$M$8:$M$57,'Schedule XXIA'!$J$8:$J$57,$B98)",{"$f":"IF(_xlfn.FORMULATEXT(INDIRECT(P269))=Q269,0,1)","v":0},{"$f":"ADDRESS(20,13,1,1,$S$1)","v":"'Geographic Diversification'!$M$20"},"=+'Schedule IVE (EBS)'!I20",0,null,null,null,{"$f":"ADDRESS(29,17,1,1,$Y$1)","v":"'Premium Risk'!$Q$29"},"=IF(H29=E29,MAX(D29*K29,0),IF(E29=F29,IF(D29<0,0,D29*(H29/F29)*K29),IF(D29<0,0,D29*(H29/E29)*K29)))\n+IF(I29=E29,MAX(D29*L29,0),IF(E29=F29,IF(D29<0,0,D29*(I29/F29)*L29),IF(D29<0,0,D29*(I29/E29)*L29)))\n+IF(J29=E29,MAX(D29*M29,0),IF(E29=F29,IF(D29<0,0,D29*(J29/F29)*M29),IF(D29<0,0,D29*(J29/E29)*M29)))",{"$f":"IF(_xlfn.FORMULATEXT(INDIRECT(Y269))=Z269,0,1)","v":0}]
[{"$f":"ADDRESS(160,11,1,1,$A$1)","v":"Summary!$K$160"},"='Form 1EBS'!F117*D157",0,{"$f":"ADDRESS(136,7,1,1,$D$1)","v":"'Fixed Income Investments'!$G$136"},"=G22+G36+G51+G66+G75+G97",0,{"$f":"ADDRESS(40,16,1,1,$G$1)","v":"'Equity Investments'!$P$40"},"=MAX(SUM(P37:P39),0)",0,null,null,null,{"$f":"ADDRESS(23,14,1,1,$M$1)","v":"'Currency Risk'!$N$23"},"='Schedule XXA'!Z21",0,{"$f":"ADDRESS(98,5,1,1,$P$1)","v":"'Concentration Risk'!$E$98"},0.45,{"$f":"IF(INDIRECT(P270)=Q270,0,1)","v":0},{"$f":"ADDRESS(20,14,1,1,$S$1)","v":"'Geographic Diversification'!$N$20"},"=+'Schedule IVE (EBS)'!J20",0,null,null,null,{"$f":"ADDRESS(29,19,1,1,$Y$1)","v":"'Premium Risk'!$S$29"},0.5,{"$f":"IF(INDIRECT(Y270)=Z270,0,1)","v":0}]
[{"$f":"ADDRESS(161,11,1,1,$A$1)","v":"Summary!$K$161"},"=MAX(0,SUM(K158:K160))",0,{"$f":"ADDRESS(136,9,1,1,$D$1)","v":"'Fixed Income Investments'!$I$136"},"=I22+I36+I51+I66+I75+I97+I134",0,{"$f":"ADDRESS(40,18,1,1,$G$1)","v":"'Equity Investments'!$R$40"},"=MAX(SUM(R37:R39),0)",0,null,null,null,{"$f":"ADDRESS(23,15,1,1,$M$1)","v":"'Currency Risk'!$O$23"},"='Schedule XXA'!AB21",0,{"$f":"ADDRESS(98,6,1,1,$P$1)","v":"'Concentration Risk'!$F$98"},"=MAX(0,(D98*E98))",{"$f":"IF(_xlfn.FORMULATEXT(INDIRECT(P271))=Q271,0,1)","v":0},{"$f":"ADDRESS(20,15,1,1,$S$1)","v":"'Geographic Diversification'!$O$20"},"=+'Schedule IVE (EBS)'!K20",0,null,null,null,{"$f":"ADDRESS(29,20,1,1,$Y$1)","v":"'Premium Risk'!$T$29"},0.5,{"$f":"IF(INDIRECT(Y271)=Z271,0,1)","v":0}]
[{"$f":"ADDRESS(166,14,1,1,$A$1)","v":"Summary!$N$166"},10,{"$f":"IF(INDIRECT(A272)=B272,0,1)","v":0},null,null,-272,{"$f":"ADDRESS(43,4,1,1,$G$1)","v":"'Equity Investments'!$D$43"},"='Schedule IIB (EBS)'!D59+'Schedule IIC (EBS)'!D59+'Schedule IID (EBS)'!D59+'Schedule IIE (EBS)'!D59+'Schedule IIF (EBS)'!D59",0,null,null,null,{"$f":"ADDRESS(23,16,1,1,$M$1)","v":"'Currency Risk'!$P$23"},"='Schedule XXA'!AD21",0,{"$f":"ADDRESS(99,2,1,1,$P$1)","v":"'Concentration Risk'!$B$99"},"Strategic Holdings",{"$f":"IF(INDIRECT(P272)=Q272,0,1)","v":0},{"$f":"ADDRESS(20,16,1,1,$S$1)","v":"'Geographic Diversification'!$P$20"},"=+'Schedule IVE (EBS)'!L20",0,null,null,null,{"$f":"ADDRESS(30,4,1,1,$Y$1)","v":"'Premium Risk'!$D$30"},"='Schedule IVD (EBS)'!Q28",{"$f":"IF(_xlfn.FORMULATEXT(INDIRECT(Y272))=Z272,0,1)","v":0}]
[null,null,-273,null,null,null,{"$f":"ADDRESS(43,5,1,1,$G$1)","v":"'Equity Investments'!$E$43"},"='Schedule IIB (EBS)'!F59+'Schedule IIC (EBS)'!F59+'Schedule IID (EBS)'!F59+'Schedule IIE (EBS)'!F59+'Schedule IIF (EBS)'!F59",0,null,null,null,{"$f":"ADDRESS(23,17,1,1,$M$1)","v":"'Currency Risk'!$Q$23"},"='Schedule XXA'!AF21",0,{"$f":"ADDRESS(99,4,1,1,$P$1)","v":"'Concentration Risk'!$D$99"},"=SUMIFS('Schedule XXIA'!$M$8:$M$57,'Schedule XXIA'!$J$8:$J$57,$B99)",{"$f":"IF(_xlfn.FORMULATEXT(INDIRECT(P273))=Q273,0,1)","v":0},{"$f":"ADDRESS(20,17,1,1,$S$1)","v":"'Geographic Diversification'!$Q$20"},"=+'Schedule IVE (EBS)'!M20",0,null,null,null,{"$f":"ADDRESS(30,5,1,1,$Y$1)","v":"'Premium Risk'!$E$30"},"='Schedule IVD (EBS)'!O28",0]
[null,null,null,null,null,null,{"$f":"ADDRESS(43,6,1,1,$G$1)","v":"'Equity Investments'!$F$43"},"='Schedule IIB (EBS)'!H59+'Schedule IIC (EBS)'!H59+'Schedule IID (EBS)'!H59+'Schedule IIE (EBS)'!H59+'Schedule IIF (EBS)'!H59",0,null,null,null,{"$f":"ADDRESS(23,18,1,1,$M$1)","v":"'Currency Risk'!$R$23"},"=IF('Schedule XXA'!AH21=0,Q23,'Schedule XXA'!AH21)",0,{"$f":"ADDRESS(99,5,1,1,$P$1)","v":"'Concentration Risk'!$E$99"},0.2,{"$f":"IF(INDIRECT(P274)=Q274,0,1)","v":0},{"$f":"ADDRESS(20,18,1,1,$S$1)","v":"'Geographic Diversification'!$R$20"},"=+'Schedule IVE (EBS)'!N20",0,null,null,null,{"$f":"ADDRESS(30,6,1,1,$Y$1)","v":"'Premium Risk'!$F$30"},"='Geographic Diversification'!H28",0]
[null,null,null,null,null,null,{"$f":"ADDRESS(43,7,1,1,$G$1)","v":"'Equity Investments'!$G$43"},"='Schedule IIB (EBS)'!J59+'Schedule IIC (EBS)'!J59+'Schedule IID (EBS)'!J59+'Schedule IIE (EBS)'!J59+'Schedule IIF (EBS)'!J59",0,null,null,null,{"$f":"ADDRESS(23,20,1,1,$M$1)","v":"'Currency Risk'!$T$23"},"=(C23-L23)+(D23-M23)+(F23-O23)+MAX(E23-N23,0)+MAX(G23-P23,0)",0,{"$f":"ADDRESS(99,6,1,1,$P$1)","v":"'Concentration Risk'!$F$99"},"=MAX(0,(D99*E99))",{"$f":"IF(_xlfn.FORMULATEXT(INDIRECT(P275))=Q275,0,1)","v":0},{"$f":"ADDRESS(20,19,1,1,$S$1)","v":"'Geographic Diversification'!$S$20"},"=+'Schedule IVE (EBS)'!O20",0,null,null,null,{"$f":"ADDRESS(30,7,1,1,$Y$1)","v":"'Premium Risk'!$G$30"},"=IF(IFERROR(F30/E30,1)<0,1,IFERROR(F30/E30,1))",0]
[null,null,null,null,null,null,{"$f":"ADDRESS(43,8,1,1,$G$1)","v":"'Equity Investments'!$H$43"},"='Schedule IIB (EBS)'!L59+'Schedule IIC (EBS)'!L59+'Schedule IID (EBS)'!L59+'Schedule IIE (EBS)'!L59+'Schedule IIF (EBS)'!L59",0,null,null,null,{"$f":"ADDRESS(23,21,1,1,$M$1)","v":"'Currency Risk'!$U$23"},"=Q23-$H23",0,{"$f":"ADDRESS(100,2,1,1,$P$1)","v":"'Concentration Risk'!$B$100"},"Duration Based",{"$f":"IF(INDIRECT(P276)=Q276,0,1)","v":0},{"$f":"ADDRESS(20,20,1,1,$S$1)","v":"'Geographic Diversification'!$T$20"},"=+'Schedule IVE (EBS)'!P20",0,null,null,null,{"$f":"ADDRESS(30,8,1,1,$Y$1)","v":"'Premium Risk'!$H$30"},"='Schedule IVD (EBS)'!I28*$G30",0]
[null,null,null,null,null,null,{"$f":"ADDRESS(43,9,1,1,$G$1)","v":"'Equity Investments'!$I$43"},"='Schedule IIB (EBS)'!N59+'Schedule IIC (EBS)'!N59+'Schedule IID (EBS)'!N59+'Schedule IIE (EBS)'!N59+'Schedule IIF (EBS)'!N59",0,null,null,null,{"$f":"ADDRESS(23,22,1,1,$M$1)","v":"'Currency Risk'!$V$23"},"=R23-$H23",0,{"$f":"ADDRESS(100,4,1,1,$P$1)","v":"'Concentration Risk'!$D$100"},"=SUMIFS('Schedule XXIA'!$M$8:$M$57,'Schedule XXIA'!$J$8:$J$57,$B100)",{"$f":"IF(_xlfn.FORMULATEXT(INDIRECT(P277))=Q277,0,1)","v":0},{"$f":"ADDRESS(20,21,1,1,$S$1)","v":"'Geographic Diversification'!$U$20"},"=+'Schedule IVE (EBS)'!Q20",0,null,null,null,{"$f":"ADDRESS(30,9,1,1,$Y$1)","v":"'Premium Risk'!$I$30"},"='Schedule IVD (EBS)'!K28*$G30",0]
[null,null,null,null,null,null,{"$f":"ADDRESS(43,10,1,1,$G$1)","v":"'Equity Investments'!$J$43"},"='Schedule IIB (EBS)'!P59+'Schedule IIC (EBS)'!P59+'Schedule IID (EBS)'!P59+'Schedule IIE (EBS)'!P59+'Schedule IIF (EBS)'!P59",0,null,null,null,{"$f":"ADDRESS(23,24,1,1,$M$1)","v":"'Currency Risk'!$X$23"},"=MAX(0,$T23+U23+(J23*I23))",0,{"$f":"ADDRESS(100,5,1,1,$P$1)","v":"'Concentration Risk'!$E$100"},"='Equity Investments'!$N$12",{"$f":"IF(_xlfn.FORMULATEXT(INDIRECT(P278))=Q278,0,1)","v":0},{"$f":"ADDRESS(20,22,1,1,$S$1)","v":"'Geographic Diversification'!$V$20"},"=+'Schedule IVE (EBS)'!R20",0,null,null,null,{"$f":"ADDRESS(30,10,1,1,$Y$1)","v":"'Premium Risk'!$J$30"},"='Schedule IVD (EBS)'!M28*$G30",0]
[null,null,null,null,null,null,{"$f":"ADDRESS(43,11,1,1,$G$1)","v":"'Equity Investments'!$K$43"},"='Schedule IIB (EBS)'!R59+'Schedule IIC (EBS)'!R59+'Schedule IID (EBS)'!R59+'Schedule IIE (EBS)'!R59+'Schedule IIF (EBS)'!R59",0,null,null,null,{"$f":"ADDRESS(23,25,1,1,$M$1)","v":"'Currency Risk'!$Y$23"},"=MAX(0,$T23+V23+(J23*I23))",0,{"$f":"ADDRESS(100,6,1,1,$P$1)","v":"'Concentration Risk'!$F$100"},"=MAX(0,(D100*E100))",{"$f":"IF(_xlfn.FORMULATEXT(INDIRECT(P279))=Q279,0,1)","v":0},{"$f":"ADDRESS(20,23,1,1,$S$1)","v":"'Geographic Diversification'!$W$20"},"=+'Schedule IVE (EBS)'!S20",0,null,null,null,{"$f":"ADDRESS(30,11,1,1,$Y$1)","v":"'Premium Risk'!$K$30"},0.50012106835589698,{"$f":"IF(INDIRECT(Y279)=Z279,0,1)","v":0}]
[null,null,null,null,null,null,{"$f":"ADDRESS(43,12,1,1,$G$1)","v":"'Equity Investments'!$L$43"},"='Schedule IIB (EBS)'!T59+'Schedule IIC (EBS)'!T59+'Schedule IID (EBS)'!T59+'Schedule IIE (EBS)'!T59+'Schedule IIF (EBS)'!T59",0,null,null,null,{"$f":"ADDRESS(24,2,1,1,$M$1)","v":"'Currency Risk'!$B$24"},"='Schedule XXA'!B22",0,{"$f":"ADDRESS(101,2,1,1,$P$1)","v":"'Concentration Risk'!$B$101"},"Letters of Credit",{"$f":"IF(INDIRECT(P280)=Q280,0,1)","v":0},{"$f":"ADDRESS(20,24,1,1,$S$1)","v":"'Geographic Diversification'!$X$20"},"=+'Schedule IVE (EBS)'!T20",0,null,null,null,{"$f":"ADDRESS(30,12,1,1,$Y$1)","v":"'Premium Risk'!$L$30"},"=+K30*S30",{"$f":"IF(_xlfn.FORMULATEXT(INDIRECT(Y280))=Z280,0,1)","v":0}]
[null,null,null,null,null,null,{"$f":"ADDRESS(43,16,1,1,$G$1)","v":"'Equity Investments'!$P$43"},"=MAX(D43-E43,0)+(F43-G43)+MAX(H43-I43,0)+(K43-J43)",0,null,null,null,{"$f":"ADDRESS(24,3,1,1,$M$1)","v":"'Currency Risk'!$C$24"},"='Schedule XXA'!D22",0,{"$f":"ADDRESS(101,4,1,1,$P$1)","v":"'Concentration Risk'!$D$101"},"=SUMIFS('Schedule XXIA'!$M$8:$M$57,'Schedule XXIA'!$J$8:$J$57,$B101)",{"$f":"IF(_xlfn.FORMULATEXT(INDIRECT(P281))=Q281,0,1)","v":0},{"$f":"ADDRESS(20,25,1,1,$S$1)","v":"'Geographic Diversification'!$Y$20"},"=+'Schedule IVE (EBS)'!U20",0,null,null,null,{"$f":"ADDRESS(30,13,1,1,$Y$1)","v":"'Premium Risk'!$M$30"},"=+L30*T30",{"$f":"IF(_xlfn.FORMULATEXT(INDIRECT(Y281))=Z281,0,1)","v":0}]
[null,null,null,null,null,null,{"$f":"ADDRESS(43,18,1,1,$G$1)","v":"'Equity Investments'!$R$43"},"=MAX(D43-E43,0)+(F43-G43)+MAX(H43-I43,0)+(L43-J43)",0,null,null,null,{"$f":"ADDRESS(24,4,1,1,$M$1)","v":"'Currency Risk'!$D$24"},"='Schedule XXA'!F22",0,{"$f":"ADDRESS(101,5,1,1,$P$1)","v":"'Concentration Risk'!$E$101"},"='Equity Investments'!N29",{"$f":"IF(_xlfn.FORMULATEXT(INDIRECT(P282))=Q282,0,1)","v":0},{"$f":"ADDRESS(20,26,1,1,$S$1)","v":"'Geographic Diversification'!$Z$20"},"=+'Schedule IVE (EBS)'!V20",0,null,null,null,{"$f":"ADDRESS(30,14,1,1,$Y$1)","v":"'Premium Risk'!$N$30"},"=IF($H30<0,0,$H30*$K30)+IF($I30<0,0,$I30*$L30)+IF($J30<0,0,$J30*$M30)",{"$f":"IF(_xlfn.FORMULATEXT(INDIRECT(Y282))=Z282,0,1)","v":0}]
[null,null,null,null,null,null,{"$f":"ADDRESS(44,4,1,1,$G$1)","v":"'Equity Investments'!$D$44"},"='Schedule IIB (EBS)'!D60+'Schedule IIC (EBS)'!D60+'Schedule IID (EBS)'!D60+'Schedule IIE (EBS)'!D60+'Schedule IIF (EBS)'!D60",0,null,null,null,{"$f":"ADDRESS(24,5,1,1,$M$1)","v":"'Currency Risk'!$E$24"},"='Schedule XXA'!H22",0,{"$f":"ADDRESS(101,6,1,1,$P$1)","v":"'Concentration Risk'!$F$101"},"=MAX(0,(D101*E101))",{"$f":"IF(_xlfn.FORMULATEXT(INDIRECT(P283))=Q283,0,1)","v":0},{"$f":"ADDRESS(21,4,1,1,$S$1)","v":"'Geographic Diversification'!$D$21"},"=SUM(I21:Z21)",0,null,null,null,{"$f":"ADDRESS(30,17,1,1,$Y$1)","v":"'Premium Risk'!$Q$30"},"=IF(H30=E30,MAX(D30*K30,0),IF(E30=F30,IF(D30<0,0,D30*(H30/F30)*K30),IF(D30<0,0,D30*(H30/E30)*K30)))\n+IF(I30=E30,MAX(D30*L30,0),IF(E30=F30,IF(D30<0,0,D30*(I30/F30)*L30),IF(D30<0,0,D30*(I30/E30)*L30)))\n+IF(J30=E30,MAX(D30*M30,0),IF(E30=F30,IF(D30<0,0,D30*(J30/F30)*M30),IF(D30<0,0,D30*(J30/E30)*M30)))",{"$f":"IF(_xlfn.FORMULATEXT(INDIRECT(Y283))=Z283,0,1)","v":0}]
[null,null,null,null,null,null,{"$f":"ADDRESS(44,5,1,1,$G$1)","v":"'Equity Investments'!$E$44"},"='Schedule IIB (EBS)'!F60+'Schedule IIC (EBS)'!F60+'Schedule IID (EBS)'!F60+'Schedule IIE (EBS)'!F60+'Schedule IIF (EBS)'!F60",0,null,null,null,{"$f":"ADDRESS(24,6,1,1,$M$1)","v":"'Currency Risk'!$F$24"},"='Schedule XXA'!J22",0,{"$f":"ADDRESS(102,2,1,1,$P$1)","v":"'Concentration Risk'!$B$102"},"Advances to Affiliates - ",{"$f":"IF(INDIRECT(P284)=Q284,0,1)","v":0},{"$f":"ADDRESS(21,5,1,1,$S$1)","v":"'Geographic Diversification'!$E$21"},"=SUMSQ(I21:Z21)",0,null,null,null,{"$f":"ADDRESS(30,19,1,1,$Y$1)","v":"'Premium Risk'!$S$30"},0.5,{"$f":"IF(INDIRECT(Y284)=Z284,0,1)","v":0}]
[null,null,null,null,null,null,{"$f":"ADDRESS(44,6,1,1,$G$1)","v":"'Equity Investments'!$F$44"},"='Schedule IIB (EBS)'!H60+'Schedule IIC (EBS)'!H60+'Schedule IID (EBS)'!H60+'Schedule IIE (EBS)'!H60+'Schedule IIF (EBS)'!H60",0,null,null,null,{"$f":"ADDRESS(24,7,1,1,$M$1)","v":"'Currency Risk'!$G$24"},"='Schedule XXA'!L22",0,{"$f":"ADDRESS(102,4,1,1,$P$1)","v":"'Concentration Risk'!$D$102"},"=SUMIFS('Schedule XXIA'!$M$8:$M$57,'Schedule XXIA'!$J$8:$J$57,$B102)",{"$f":"IF(_xlfn.FORMULATEXT(INDIRECT(P285))=Q285,0,1)","v":0},{"$f":"ADDRESS(21,6,1,1,$S$1)","v":"'Geographic Diversification'!$F$21"},"=(IF(D21>0,E21/D21^2,1))",0,null,null,null,{"$f":"ADDRESS(30,20,1,1,$Y$1)","v":"'Premium Risk'!$T$30"},0.5,{"$f":"IF(INDIRECT(Y285)=Z285,0,1)","v":0}]
[null,null,null,null,null,null,{"$f":"ADDRESS(44,7,1,1,$G$1)","v":"'Equity Investments'!$G$44"},"='Schedule IIB (EBS)'!J60+'Schedule IIC (EBS)'!J60+'Schedule IID (EBS)'!J60+'Schedule IIE (EBS)'!J60+'Schedule IIF (EBS)'!J60",0,null,null,null,{"$f":"ADDRESS(24,8,1,1,$M$1)","v":"'Currency Risk'!$H$24"},"='Schedule XXA'!N22",0,{"$f":"ADDRESS(102,5,1,1,$P$1)","v":"'Concentration Risk'!$E$102"},0.05,{"$f":"IF(INDIRECT(P286)=Q286,0,1)","v":0},{"$f":"ADDRESS(21,7,1,1,$S$1)","v":"'Geographic Diversification'!$G$21"},"=D21*(0.75+0.25*F21)",0,null,null,null,{"$f":"ADDRESS(31,4,1,1,$Y$1)","v":"'Premium Risk'!$D$31"},"='Schedule IVD (EBS)'!Q29",{"$f":"IF(_xlfn.FORMULATEXT(INDIRECT(Y286))=Z286,0,1)","v":0}]
[null,null,null,null,null,null,{"$f":"ADDRESS(44,8,1,1,$G$1)","v":"'Equity Investments'!$H$44"},"='Schedule IIB (EBS)'!L60+'Schedule IIC (EBS)'!L60+'Schedule IID (EBS)'!L60+'Schedule IIE (EBS)'!L60+'Schedule IIF (EBS)'!L60",0,null,null,null,{"$f":"ADDRESS(24,9,1,1,$M$1)","v":"'Currency Risk'!$I$24"},"=$I$10*H24",0,{"$f":"ADDRESS(102,6,1,1,$P$1)","v":"'Concentration Risk'!$F$102"},"=MAX(0,(D102*E102))",{"$f":"IF(_xlfn.FORMULATEXT(INDIRECT(P287))=Q287,0,1)","v":0},{"$f":"ADDRESS(21,8,1,1,$S$1)","v":"'Geographic Diversification'!$H$21"},"=IF('Schedule IVE (EBS)'!AB21=\"True\",G21,'Schedule IVD (EBS)'!O21)",0,null,null,null,{"$f":"ADDRESS(31,5,1,1,$Y$1)","v":"'Premium Risk'!$E$31"},"='Schedule IVD (EBS)'!O29",0]
[null,null,null,null,null,null,{"$f":"ADDRESS(44,9,1,1,$G$1)","v":"'Equity Investments'!$I$44"},"='Schedule IIB (EBS)'!N60+'Schedule IIC (EBS)'!N60+'Schedule IID (EBS)'!N60+'Schedule IIE (EBS)'!N60+'Schedule IIF (EBS)'!N60",0,null,null,null,{"$f":"ADDRESS(24,10,1,1,$M$1)","v":"'Currency Risk'!$J$24"},"=IF((SUM(C24:G24))>(H24+I24),0%,25%)",0,{"$f":"ADDRESS(103,2,1,1,$P$1)","v":"'Concentration Risk'!$B$103"},"Policy Loans",{"$f":"IF(INDIRECT(P288)=Q288,0,1)","v":0},{"$f":"ADDRESS(21,9,1,1,$S$1)","v":"'Geographic Diversification'!$I$21"},"=+'Schedule IVE (EBS)'!E21",0,null,null,null,{"$f":"ADDRESS(31,6,1,1,$Y$1)","v":"'Premium Risk'!$F$31"},"='Geographic Diversification'!H29",0]
[null,null,null,null,null,null,{"$f":"ADDRESS(44,10,1,1,$G$1)","v":"'Equity Investments'!$J$44"},"='Schedule IIB (EBS)'!P60+'Schedule IIC (EBS)'!P60+'Schedule IID (EBS)'!P60+'Schedule IIE (EBS)'!P60+'Schedule IIF (EBS)'!P60",0,null,null,null,{"$f":"ADDRESS(24,12,1,1,$M$1)","v":"'Currency Risk'!$L$24"},"='Schedule XXA'!V22",0,{"$f":"ADDRESS(103,4,1,1,$P$1)","v":"'Concentration Risk'!$D$103"},"=SUMIFS('Schedule XXIA'!$M$8:$M$57,'Schedule XXIA'!$J$8:$J$57,$B103)",{"$f":"IF(_xlfn.FORMULATEXT(INDIRECT(P289))=Q289,0,1)","v":0},{"$f":"ADDRESS(21,10,1,1,$S$1)","v":"'Geographic Diversification'!$J$21"},"=+'Schedule IVE (EBS)'!F21",0,null,null,null,{"$f":"ADDRESS(31,7,1,1,$Y$1)","v":"'Premium Risk'!$G$31"},"=IF(IFERROR(F31/E31,1)<0,1,IFERROR(F31/E31,1))",0]
[null,null,null,null,null,null,{"$f":"ADDRESS(44,11,1,1,$G$1)","v":"'Equity Investments'!$K$44"},"='Schedule IIB (EBS)'!R60+'Schedule IIC (EBS)'!R60+'Schedule IID (EBS)'!R60+'Schedule IIE (EBS)'!R60+'Schedule IIF (EBS)'!R60",0,null,null,null,{"$f":"ADDRESS(24,13,1,1,$M$1)","v":"'Currency Risk'!$M$24"},"='Schedule XXA'!X22",0,{"$f":"ADDRESS(103,5,1,1,$P$1)","v":"'Concentration Risk'!$E$103"},0,{"$f":"IF(INDIRECT(P290)=Q290,0,1)","v":0},{"$f":"ADDRESS(21,11,1,1,$S$1)","v":"'Geographic Diversification'!$K$21"},"=+'Schedule IVE (EBS)'!G21",0,null,null,null,{"$f":"ADDRESS(31,8,1,1,$Y$1)","v":"'Premium Risk'!$H$31"},"='Schedule IVD (EBS)'!I29*$G31",0]
[null,null,null,null,null,null,{"$f":"ADDRESS(44,12,1,1,$G$1)","v":"'Equity Investments'!$L$44"},"='Schedule IIB (EBS)'!T60+'Schedule IIC (EBS)'!T60+'Schedule IID (EBS)'!T60+'Schedule IIE (EBS)'!T60+'Schedule IIF (EBS)'!T60",0,null,null,null,{"$f":"ADDRESS(24,14,1,1,$M$1)","v":"'Currency Risk'!$N$24"},"='Schedule XXA'!Z22",0,{"$f":"ADDRESS(103,6,1,1,$P$1)","v":"'Concentration Risk'!$F$103"},"=MAX(0,(D103*E103))",{"$f":"IF(_xlfn.FORMULATEXT(INDIRECT(P291))=Q291,0,1)","v":0},{"$f":"ADDRESS(21,12,1,1,$S$1)","v":"'Geographic Diversification'!$L$21"},"=+'Schedule IVE (EBS)'!H21",0,null,null,null,{"$f":"ADDRESS(31,9,1,1,$Y$1)","v":"'Premium Risk'!$I$31"},"='Schedule IVD (EBS)'!K29*$G31",0]
[null,null,null,null,null,null,{"$f":"ADDRESS(44,16,1,1,$G$1)","v":"'Equity Investments'!$P$44"},"=MAX(D44-E44,0)+(F44-G44)+MAX(H44-I44,0)+(K44-J44)",0,null,null,null,{"$f":"ADDRESS(24,15,1,1,$M$1)","v":"'Currency Risk'!$O$24"},"='Schedule XXA'!AB22",0,{"$f":"ADDRESS(104,2,1,1,$P$1)","v":"'Concentration Risk'!$B$104"},"Equity Real Estate 1",{"$f":"IF(INDIRECT(P292)=Q292,0,1)","v":0},{"$f":"ADDRESS(21,13,1,1,$S$1)","v":"'Geographic Diversification'!$M$21"},"=+'Schedule IVE (EBS)'!I21",0,null,null,null,{"$f":"ADDRESS(31,10,1,1,$Y$1)","v":"'Premium Risk'!$J$31"},"='Schedule IVD (EBS)'!M29*$G31",0]
[null,null,null,null,null,null,{"$f":"ADDRESS(44,18,1,1,$G$1)","v":"'Equity Investments'!$R$44"},"=MAX(D44-E44,0)+(F44-G44)+MAX(H44-I44,0)+(L44-J44)",0,null,null,null,{"$f":"ADDRESS(24,16,1,1,$M$1)","v":"'Currency Risk'!$P$24"},"='Schedule XXA'!AD22",{"$f":"IF(_xlfn.FORMULATEXT(INDIRECT(M293))=N293,0,1)","v":0},{"$f":"ADDRESS(104,4,1,1,$P$1)","v":"'Concentration Risk'!$D$104"},"=SUMIFS('Schedule XXIA'!$M$8:$M$57,'Schedule XXIA'!$J$8:$J$57,$B104)",{"$f":"IF(_xlfn.FORMULATEXT(INDIRECT(P293))=Q293,0,1)","v":0},{"$f":"ADDRESS(21,14,1,1,$S$1)","v":"'Geographic Diversification'!$N$21"},"=+'Schedule IVE (EBS)'!J21",0,null,null,null,{"$f":"ADDRESS(31,11,1,1,$Y$1)","v":"'Premium Risk'!$K$31"},0.53551360019381999,{"$f":"IF(INDIRECT(Y293)=Z293,0,1)","v":0}]
[null,null,null,null,null,null,{"$f":"ADDRESS(46,4,1,1,$G$1)","v":"'Equity Investments'!$D$46"},"=SUM(D43:D45)",0,null,null,null,{"$f":"ADDRESS(24,17,1,1,$M$1)","v":"'Currency Risk'!$Q$24"},"='Schedule XXA'!AF22",0,{"$f":"ADDRESS(104,5,1,1,$P$1)","v":"'Concentration Risk'!$E$104"},0.1,{"$f":"IF(INDIRECT(P294)=Q294,0,1)","v":0},{"$f":"ADDRESS(21,15,1,1,$S$1)","v":"'Geographic Diversification'!$O$21"},"=+'Schedule IVE (EBS)'!K21",0,null,null,null,{"$f":"ADDRESS(31,12,1,1,$Y$1)","v":"'Premium Risk'!$L$31"},"=+K31*S31",{"$f":"IF(_xlfn.FORMULATEXT(INDIRECT(Y294))=Z294,0,1)","v":0}]
[null,null,null,null,null,null,{"$f":"ADDRESS(46,5,1,1,$G$1)","v":"'Equity Investments'!$E$46"},"=SUM(E43:E45)",0,null,null,null,{"$f":"ADDRESS(24,18,1,1,$M$1)","v":"'Currency Risk'!$R$24"},"=IF('Schedule XXA'!AH22=0,Q24,'Schedule XXA'!AH22)",0,{"$f":"ADDRESS(104,6,1,1,$P$1)","v":"'Concentration Risk'!$F$104"},"=MAX(0,(D104*E104))",{"$f":"IF(_xlfn.FORMULATEXT(INDIRECT(P295))=Q295,0,1)","v":0},{"$f":"ADDRESS(21,16,1,1,$S$1)","v":"'Geographic Diversification'!$P$21"},"=+'Schedule IVE (EBS)'!L21",0,null,null,null,{"$f":"ADDRESS(31,13,1,1,$Y$1)","v":"'Premium Risk'!$M$31"},"=+L31*T31",{"$f":"IF(_xlfn.FORMULATEXT(INDIRECT(Y295))=Z295,0,1)","v":0}]
[null,null,null,null,null,null,{"$f":"ADDRESS(46,6,1,1,$G$1)","v":"'Equity Investments'!$F$46"},"=SUM(F43:F45)",0,null,null,null,{"$f":"ADDRESS(24,20,1,1,$M$1)","v":"'Currency Risk'!$T$24"},"=(C24-L24)+(D24-M24)+(F24-O24)+MAX(E24-N24,0)+MAX(G24-P24,0)",0,{"$f":"ADDRESS(105,2,1,1,$P$1)","v":"'Concentration Risk'!$B$105"},"Equity Real Estate 2",{"$f":"IF(INDIRECT(P296)=Q296,0,1)","v":0},{"$f":"ADDRESS(21,17,1,1,$S$1)","v":"'Geographic Diversification'!$Q$21"},"=+'Schedule IVE (EBS)'!M21",0,null,null,null,{"$f":"ADDRESS(31,14,1,1,$Y$1)","v":"'Premium Risk'!$N$31"},"=IF($H31<0,0,$H31*$K31)+IF($I31<0,0,$I31*$L31)+IF($J31<0,0,$J31*$M31)",{"$f":"IF(_xlfn.FORMULATEXT(INDIRECT(Y296))=Z296,0,1)","v":0}]
[null,null,null,null,null,null,{"$f":"ADDRESS(46,7,1,1,$G$1)","v":"'Equity Investments'!$G$46"},"=SUM(G43:G45)",0,null,null,null,{"$f":"ADDRESS(24,21,1,1,$M$1)","v":"'Currency Risk'!$U$24"},"=Q24-$H24",0,{"$f":"ADDRESS(105,4,1,1,$P$1)","v":"'Concentration Risk'!$D$105"},"=SUMIFS('Schedule XXIA'!$M$8:$M$57,'Schedule XXIA'!$J$8:$J$57,$B105)",{"$f":"IF(_xlfn.FORMULATEXT(INDIRECT(P297))=Q297,0,1)","v":0},{"$f":"ADDRESS(21,18,1,1,$S$1)","v":"'Geographic Diversification'!$R$21"},"=+'Schedule IVE (EBS)'!N21",0,null,null,null,{"$f":"ADDRESS(31,17,1,1,$Y$1)","v":"'Premium Risk'!$Q$31"},"=IF(H31=E31,MAX(D31*K31,0),IF(E31=F31,IF(D31<0,0,D31*(H31/F31)*K31),IF(D31<0,0,D31*(H31/E31)*K31)))\n+IF(I31=E31,MAX(D31*L31,0),IF(E31=F31,IF(D31<0,0,D31*(I31/F31)*L31),IF(D31<0,0,D31*(I31/E31)*L31)))\n+IF(J31=E31,MAX(D31*M31,0),IF(E31=F31,IF(D31<0,0,D31*(J31/F31)*M31),IF(D31<0,0,D31*(J31/E31)*M31)))",{"$f":"IF(_xlfn.FORMULATEXT(INDIRECT(Y297))=Z297,0,1)","v":0}]
[null,null,null,null,null,null,{"$f":"ADDRESS(46,8,1,1,$G$1)","v":"'Equity Investments'!$H$46"},"=SUM(H43:H45)",0,null,null,null,{"$f":"ADDRESS(24,22,1,1,$M$1)","v":"'Currency Risk'!$V$24"},"=R24-$H24",0,{"$f":"ADDRESS(105,5,1,1,$P$1)","v":"'Concentration Risk'!$E$105"},0.2,{"$f":"IF(INDIRECT(P298)=Q298,0,1)","v":0},{"$f":"ADDRESS(21,19,1,1,$S$1)","v":"'Geographic Diversification'!$S$21"},"=+'Schedule IVE (EBS)'!O21",0,null,null,null,{"$f":"ADDRESS(31,19,1,1,$Y$1)","v":"'Premium Risk'!$S$31"},0.5,{"$f":"IF(INDIRECT(Y298)=Z298,0,1)","v":0}]
[null,null,null,null,null,null,{"$f":"ADDRESS(46,9,1,1,$G$1)","v":"'Equity Investments'!$I$46"},"=SUM(I43:I45)",0,null,null,null,{"$f":"ADDRESS(24,24,1,1,$M$1)","v":"'Currency Risk'!$X$24"},"=MAX(0,$T24+U24+(J24*I24))",0,{"$f":"ADDRESS(105,6,1,1,$P$1)","v":"'Concentration Risk'!$F$105"},"=MAX(0,(D105*E105))",{"$f":"IF(_xlfn.FORMULATEXT(INDIRECT(P299))=Q299,0,1)","v":0},{"$f":"ADDRESS(21,20,1,1,$S$1)","v":"'Geographic Diversification'!$T$21"},"=+'Schedule IVE (EBS)'!P21",0,null,null,null,{"$f":"ADDRESS(31,20,1,1,$Y$1)","v":"'Premium Risk'!$T$31"},0.5,{"$f":"IF(INDIRECT(Y299)=Z299,0,1)","v":0}]
[null,null,null,null,null,null,{"$f":"ADDRESS(46,10,1,1,$G$1)","v":"'Equity Investments'!$J$46"},"=SUM(J43:J45)",0,null,null,null,{"$f":"ADDRESS(24,25,1,1,$M$1)","v":"'Currency Risk'!$Y$24"},"=MAX(0,$T24+V24+(J24*I24))",0,{"$f":"ADDRESS(106,2,1,1,$P$1)","v":"'Concentration Risk'!$B$106"},"Collateral Loans",{"$f":"IF(INDIRECT(P300)=Q300,0,1)","v":0},{"$f":"ADDRESS(21,21,1,1,$S$1)","v":"'Geographic Diversification'!$U$21"},"=+'Schedule IVE (EBS)'!Q21",0,null,null,null,{"$f":"ADDRESS(32,4,1,1,$Y$1)","v":"'Premium Risk'!$D$32"},"='Schedule IVD (EBS)'!Q30",{"$f":"IF(_xlfn.FORMULATEXT(INDIRECT(Y300))=Z300,0,1)","v":0}]
[null,null,null,null,null,null,{"$f":"ADDRESS(46,11,1,1,$G$1)","v":"'Equity Investments'!$K$46"},"=SUM(K43:K45)",0,null,null,null,{"$f":"ADDRESS(25,2,1,1,$M$1)","v":"'Currency Risk'!$B$25"},"='Schedule XXA'!B23",0,{"$f":"ADDRESS(106,4,1,1,$P$1)","v":"'Concentration Risk'!$D$106"},"=SUMIFS('Schedule XXIA'!$M$8:$M$57,'Schedule XXIA'!$J$8:$J$57,$B106)",{"$f":"IF(_xlfn.FORMULATEXT(INDIRECT(P301))=Q301,0,1)","v":0},{"$f":"ADDRESS(21,22,1,1,$S$1)","v":"'Geographic Diversification'!$V$21"},"=+'Schedule IVE (EBS)'!R21",0,null,null,null,{"$f":"ADDRESS(32,5,1,1,$Y$1)","v":"'Premium Risk'!$E$32"},"='Schedule IVD (EBS)'!O30",0]
[null,null,null,null,null,null,{"$f":"ADDRESS(46,12,1,1,$G$1)","v":"'Equity Investments'!$L$46"},"=SUM(L43:L45)",0,null,null,null,{"$f":"ADDRESS(25,3,1,1,$M$1)","v":"'Currency Risk'!$C$25"},"='Schedule XXA'!D23",0,{"$f":"ADDRESS(106,5,1,1,$P$1)","v":"'Concentration Risk'!$E$106"},0.05,{"$f":"IF(INDIRECT(P302)=Q302,0,1)","v":0},{"$f":"ADDRESS(21,23,1,1,$S$1)","v":"'Geographic Diversification'!$W$21"},"=+'Schedule IVE (EBS)'!S21",0,null,null,null,{"$f":"ADDRESS(32,6,1,1,$Y$1)","v":"'Premium Risk'!$F$32"},"='Geographic Diversification'!H30",0]
[null,null,null,null,null,null,{"$f":"ADDRESS(46,16,1,1,$G$1)","v":"'Equity Investments'!$P$46"},"=MAX(SUM(P43:P45),0)",0,null,null,null,{"$f":"ADDRESS(25,4,1,1,$M$1)","v":"'Currency Risk'!$D$25"},"='Schedule XXA'!F23",0,{"$f":"ADDRESS(106,6,1,1,$P$1)","v":"'Concentration Risk'!$F$106"},"=MAX(0,(D106*E106))",{"$f":"IF(_xlfn.FORMULATEXT(INDIRECT(P303))=Q303,0,1)","v":0},{"$f":"ADDRESS(21,24,1,1,$S$1)","v":"'Geographic Diversification'!$X$21"},"=+'Schedule IVE (EBS)'!T21",0,null,null,null,{"$f":"ADDRESS(32,7,1,1,$Y$1)","v":"'Premium Risk'!$G$32"},"=IF(IFERROR(F32/E32,1)<0,1,IFERROR(F32/E32,1))",0]
[null,null,null,null,null,null,{"$f":"ADDRESS(46,18,1,1,$G$1)","v":"'Equity Investments'!$R$46"},"=MAX(SUM(R43:R45),0)",0,null,null,null,{"$f":"ADDRESS(25,5,1,1,$M$1)","v":"'Currency Risk'!$E$25"},"='Schedule XXA'!H23",0,{"$f":"ADDRESS(108,4,1,1,$P$1)","v":"'Concentration Risk'!$D$108"},"=SUM(D96:D107)",{"$f":"IF(_xlfn.FORMULATEXT(INDIRECT(P304))=Q304,0,1)","v":0},{"$f":"ADDRESS(21,25,1,1,$S$1)","v":"'Geographic Diversification'!$Y$21"},"=+'Schedule IVE (EBS)'!U21",0,null,null,null,{"$f":"ADDRESS(32,8,1,1,$Y$1)","v":"'Premium Risk'!$H$32"},"='Schedule IVD (EBS)'!I30*$G32",0]
[null,null,null,null,null,null,{"$f":"ADDRESS(48,4,1,1,$G$1)","v":"'Equity Investments'!$D$48"},"=D40+D34+D24+D46",0,null,null,null,{"$f":"ADDRESS(25,6,1,1,$M$1)","v":"'Currency Risk'!$F$25"},"='Schedule XXA'!J23",0,{"$f":"ADDRESS(108,6,1,1,$P$1)","v":"'Concentration Risk'!$F$108"},"=SUM(F96:F107)",{"$f":"IF(_xlfn.FORMULATEXT(INDIRECT(P305))=Q305,0,1)","v":0},{"$f":"ADDRESS(21,26,1,1,$S$1)","v":"'Geographic Diversification'!$Z$21"},"=+'Schedule IVE (EBS)'!V21",0,null,null,null,{"$f":"ADDRESS(32,9,1,1,$Y$1)","v":"'Premium Risk'!$I$32"},"='Schedule IVD (EBS)'!K30*$G32",0]
[null,null,null,null,null,null,{"$f":"ADDRESS(48,5,1,1,$G$1)","v":"'Equity Investments'!$E$48"},"=E40+E34+E24+E46",0,null,null,null,{"$f":"ADDRESS(25,7,1,1,$M$1)","v":"'Currency Risk'!$G$25"},"='Schedule XXA'!L23",0,{"$f":"ADDRESS(110,4,1,1,$P$1)","v":"'Concentration Risk'!$D$110"},"=D108+D93+D85+D72+D59+D46+D33+D20",{"$f":"IF(_xlfn.FORMULATEXT(INDIRECT(P306))=Q306,0,1)","v":0},{"$f":"ADDRESS(22,4,1,1,$S$1)","v":"'Geographic Diversification'!$D$22"},"=SUM(I22:Z22)",0,null,null,null,{"$f":"ADDRESS(32,10,1,1,$Y$1)","v":"'Premium Risk'!$J$32"},"='Schedule IVD (EBS)'!M30*$G32",0]
[null,null,null,null,null,null,{"$f":"ADDRESS(48,6,1,1,$G$1)","v":"'Equity Investments'!$F$48"},"=F40+F34+F24+F46",0,null,null,null,{"$f":"ADDRESS(25,8,1,1,$M$1)","v":"'Currency Risk'!$H$25"},"='Schedule XXA'!N23",0,{"$f":"ADDRESS(110,6,1,1,$P$1)","v":"'Concentration Risk'!$F$110"},"=F108+F93+F85+F72+F59+F46+F33+F20",{"$f":"IF(_xlfn.FORMULATEXT(INDIRECT(P307))=Q307,0,1)","v":0},{"$f":"ADDRESS(22,5,1,1,$S$1)","v":"'Geographic Diversification'!$E$22"},"=SUMSQ(I22:Z22)",0,null,null,null,{"$f":"ADDRESS(32,11,1,1,$Y$1)","v":"'Premium Risk'!$K$32"},0.508030898436173,{"$f":"IF(INDIRECT(Y307)=Z307,0,1)","v":0}]
[null,null,null,null,null,null,{"$f":"ADDRESS(48,7,1,1,$G$1)","v":"'Equity Investments'!$G$48"},"=G40+G34+G24+G46",0,null,null,null,{"$f":"ADDRESS(25,9,1,1,$M$1)","v":"'Currency Risk'!$I$25"},"=$I$10*H25",0,null,null,-308,{"$f":"ADDRESS(22,6,1,1,$S$1)","v":"'Geographic Diversification'!$F$22"},"=(IF(D22>0,E22/D22^2,1))",0,null,null,null,{"$f":"ADDRESS(32,12,1,1,$Y$1)","v":"'Premium Risk'!$L$32"},"=+K32*S32",{"$f":"IF(_xlfn.FORMULATEXT(INDIRECT(Y308))=Z308,0,1)","v":0}]
[null,null,null,null,null,null,{"$f":"ADDRESS(48,8,1,1,$G$1)","v":"'Equity Investments'!$H$48"},"=H40+H34+H24+H46",0,null,null,null,{"$f":"ADDRESS(25,10,1,1,$M$1)","v":"'Currency Risk'!$J$25"},"=IF((SUM(C25:G25))>(H25+I25),0%,25%)",0,null,null,null,{"$f":"ADDRESS(22,7,1,1,$S$1)","v":"'Geographic Diversification'!$G$22"},"=D22*(0.75+0.25*F22)",0,null,null,null,{"$f":"ADDRESS(32,13,1,1,$Y$1)","v":"'Premium Risk'!$M$32"},"=+L32*T32",{"$f":"IF(_xlfn.FORMULATEXT(INDIRECT(Y309))=Z309,0,1)","v":0}]
[null,null,null,null,null,null,{"$f":"ADDRESS(48,9,1,1,$G$1)","v":"'Equity Investments'!$I$48"},"=I40+I34+I24+I46",0,null,null,null,{"$f":"ADDRESS(25,12,1,1,$M$1)","v":"'Currency Risk'!$L$25"},"='Schedule XXA'!V23",0,null,null,null,{"$f":"ADDRESS(22,8,1,1,$S$1)","v":"'Geographic Diversification'!$H$22"},"=IF('Schedule IVE (EBS)'!AB22=\"True\",G22,'Schedule IVD (EBS)'!O22)",0,null,null,null,{"$f":"ADDRESS(32,14,1,1,$Y$1)","v":"'Premium Risk'!$N$32"},"=IF($H32<0,0,$H32*$K32)+IF($I32<0,0,$I32*$L32)+IF($J32<0,0,$J32*$M32)",{"$f":"IF(_xlfn.FORMULATEXT(INDIRECT(Y310))=Z310,0,1)","v":0}]
[null,null,null,null,null,null,{"$f":"ADDRESS(48,10,1,1,$G$1)","v":"'Equity Investments'!$J$48"},"=J40+J34+J24+J46",0,null,null,null,{"$f":"ADDRESS(25,13,1,1,$M$1)","v":"'Currency Risk'!$M$25"},"='Schedule XXA'!X23",0,null,null,null,{"$f":"ADDRESS(22,9,1,1,$S$1)","v":"'Geographic Diversification'!$I$22"},"=+'Schedule IVE (EBS)'!E22",0,null,null,null,{"$f":"ADDRESS(32,17,1,1,$Y$1)","v":"'Premium Risk'!$Q$32"},"=IF(H32=E32,MAX(D32*K32,0),IF(E32=F32,IF(D32<0,0,D32*(H32/F32)*K32),IF(D32<0,0,D32*(H32/E32)*K32)))\n+IF(I32=E32,MAX(D32*L32,0),IF(E32=F32,IF(D32<0,0,D32*(I32/F32)*L32),IF(D32<0,0,D32*(I32/E32)*L32)))\n+IF(J32=E32,MAX(D32*M32,0),IF(E32=F32,IF(D32<0,0,D32*(J32/F32)*M32),IF(D32<0,0,D32*(J32/E32)*M32)))",{"$f":"IF(_xlfn.FORMULATEXT(INDIRECT(Y311))=Z311,0,1)","v":0}]
[null,null,null,null,null,null,{"$f":"ADDRESS(48,11,1,1,$G$1)","v":"'Equity Investments'!$K$48"},"=K40+K34+K24+K46",0,null,null,null,{"$f":"ADDRESS(25,14,1,1,$M$1)","v":"'Currency Risk'!$N$25"},"='Schedule XXA'!Z23",0,null,null,null,{"$f":"ADDRESS(22,10,1,1,$S$1)","v":"'Geographic Diversification'!$J$22"},"=+'Schedule IVE (EBS)'!F22",0,null,null,null,{"$f":"ADDRESS(32,19,1,1,$Y$1)","v":"'Premium Risk'!$S$32"},0.25,{"$f":"IF(INDIRECT(Y312)=Z312,0,1)","v":0}]
[null,null,null,null,null,null,{"$f":"ADDRESS(48,12,1,1,$G$1)","v":"'Equity Investments'!$L$48"},"=L40+L34+L24+L46",0,null,null,null,{"$f":"ADDRESS(25,15,1,1,$M$1)","v":"'Currency Risk'!$O$25"},"='Schedule XXA'!AB23",0,null,null,null,{"$f":"ADDRESS(22,11,1,1,$S$1)","v":"'Geographic Diversification'!$K$22"},"=+'Schedule IVE (EBS)'!G22",0,null,null,null,{"$f":"ADDRESS(32,20,1,1,$Y$1)","v":"'Premium Risk'!$T$32"},0.5,{"$f":"IF(INDIRECT(Y313)=Z313,0,1)","v":0}]
[null,null,null,null,null,null,{"$f":"ADDRESS(48,16,1,1,$G$1)","v":"'Equity Investments'!$P$48"},"=P40+P34+P24+P46",0,null,null,null,{"$f":"ADDRESS(25,16,1,1,$M$1)","v":"'Currency Risk'!$P$25"},"='Schedule XXA'!AD23",0,null,null,null,{"$f":"ADDRESS(22,12,1,1,$S$1)","v":"'Geographic Diversification'!$L$22"},"=+'Schedule IVE (EBS)'!H22",0,null,null,null,{"$f":"ADDRESS(33,4,1,1,$Y$1)","v":"'Premium Risk'!$D$33"},"='Schedule IVD (EBS)'!Q31",{"$f":"IF(_xlfn.FORMULATEXT(INDIRECT(Y314))=Z314,0,1)","v":0}]
[null,null,null,null,null,null,{"$f":"ADDRESS(48,18,1,1,$G$1)","v":"'Equity Investments'!$R$48"},"=R40+R34+R24+R46",0,null,null,null,{"$f":"ADDRESS(25,17,1,1,$M$1)","v":"'Currency Risk'!$Q$25"},"='Schedule XXA'!AF23",0,null,null,null,{"$f":"ADDRESS(22,13,1,1,$S$1)","v":"'Geographic Diversification'!$M$22"},"=+'Schedule IVE (EBS)'!I22",0,null,null,null,{"$f":"ADDRESS(33,5,1,1,$Y$1)","v":"'Premium Risk'!$E$33"},"='Schedule IVD (EBS)'!O31",0]
[null,null,null,null,null,null,{"$f":"ADDRESS(51,4,1,1,$G$1)","v":"'Equity Investments'!$D$51"},1,{"$f":"IF(INDIRECT(G316)=H316,0,1)","v":0},null,null,null,{"$f":"ADDRESS(25,18,1,1,$M$1)","v":"'Currency Risk'!$R$25"},"=IF('Schedule XXA'!AH23=0,Q25,'Schedule XXA'!AH23)",0,null,null,null,{"$f":"ADDRESS(22,14,1,1,$S$1)","v":"'Geographic Diversification'!$N$22"},"=+'Schedule IVE (EBS)'!J22",0,null,null,null,{"$f":"ADDRESS(33,6,1,1,$Y$1)","v":"'Premium Risk'!$F$33"},"='Geographic Diversification'!H31",0]
[null,null,null,null,null,null,{"$f":"ADDRESS(51,5,1,1,$G$1)","v":"'Equity Investments'!$E$51"},0.75,{"$f":"IF(INDIRECT(G317)=H317,0,1)","v":0},null,null,null,{"$f":"ADDRESS(25,20,1,1,$M$1)","v":"'Currency Risk'!$T$25"},"=(C25-L25)+(D25-M25)+(F25-O25)+MAX(E25-N25,0)+MAX(G25-P25,0)",0,null,null,null,{"$f":"ADDRESS(22,15,1,1,$S$1)","v":"'Geographic Diversification'!$O$22"},"=+'Schedule IVE (EBS)'!K22",0,null,null,null,{"$f":"ADDRESS(33,7,1,1,$Y$1)","v":"'Premium Risk'!$G$33"},"=IF(IFERROR(F33/E33,1)<0,1,IFERROR(F33/E33,1))",0]
[null,null,null,null,null,null,{"$f":"ADDRESS(51,6,1,1,$G$1)","v":"'Equity Investments'!$F$51"},0.75,{"$f":"IF(INDIRECT(G318)=H318,0,1)","v":0},null,null,null,{"$f":"ADDRESS(25,21,1,1,$M$1)","v":"'Currency Risk'!$U$25"},"=Q25-$H25",0,null,null,null,{"$f":"ADDRESS(22,16,1,1,$S$1)","v":"'Geographic Diversification'!$P$22"},"=+'Schedule IVE (EBS)'!L22",0,null,null,null,{"$f":"ADDRESS(33,8,1,1,$Y$1)","v":"'Premium Risk'!$H$33"},"='Schedule IVD (EBS)'!I31*$G33",0]
[null,null,null,null,null,null,{"$f":"ADDRESS(51,7,1,1,$G$1)","v":"'Equity Investments'!$G$51"},0.5,{"$f":"IF(INDIRECT(G319)=H319,0,1)","v":0},null,null,null,{"$f":"ADDRESS(25,22,1,1,$M$1)","v":"'Currency Risk'!$V$25"},"=R25-$H25",0,null,null,null,{"$f":"ADDRESS(22,17,1,1,$S$1)","v":"'Geographic Diversification'!$Q$22"},"=+'Schedule IVE (EBS)'!M22",0,null,null,null,{"$f":"ADDRESS(33,9,1,1,$Y$1)","v":"'Premium Risk'!$I$33"},"='Schedule IVD (EBS)'!K31*$G33",0]
[null,null,null,null,null,null,{"$f":"ADDRESS(51,16,1,1,$G$1)","v":"'Equity Investments'!$P$51"},"=P24",{"$f":"IF(_xlfn.FORMULATEXT(INDIRECT(G320))=H320,0,1)","v":0},null,null,null,{"$f":"ADDRESS(25,24,1,1,$M$1)","v":"'Currency Risk'!$X$25"},"=MAX(0,$T25+U25+(J25*I25))",0,null,null,null,{"$f":"ADDRESS(22,18,1,1,$S$1)","v":"'Geographic Diversification'!$R$22"},"=+'Schedule IVE (EBS)'!N22",0,null,null,null,{"$f":"ADDRESS(33,10,1,1,$Y$1)","v":"'Premium Risk'!$J$33"},"='Schedule IVD (EBS)'!M31*$G33",0]
[null,null,null,null,null,null,{"$f":"ADDRESS(51,18,1,1,$G$1)","v":"'Equity Investments'!$R$51"},"=R24",{"$f":"IF(_xlfn.FORMULATEXT(INDIRECT(G321))=H321,0,1)","v":0},null,null,null,{"$f":"ADDRESS(25,25,1,1,$M$1)","v":"'Currency Risk'!$Y$25"},"=MAX(0,$T25+V25+(J25*I25))",0,null,null,null,{"$f":"ADDRESS(22,19,1,1,$S$1)","v":"'Geographic Diversification'!$S$22"},"=+'Schedule IVE (EBS)'!O22",0,null,null,null,{"$f":"ADDRESS(33,11,1,1,$Y$1)","v":"'Premium Risk'!$K$33"},0.27200000000000002,{"$f":"IF(INDIRECT(Y321)=Z321,0,1)","v":0}]
[null,null,null,null,null,null,{"$f":"ADDRESS(52,4,1,1,$G$1)","v":"'Equity Investments'!$D$52"},0.75,{"$f":"IF(INDIRECT(G322)=H322,0,1)","v":0},null,null,null,{"$f":"ADDRESS(26,2,1,1,$M$1)","v":"'Currency Risk'!$B$26"},"='Schedule XXA'!B24",0,null,null,null,{"$f":"ADDRESS(22,20,1,1,$S$1)","v":"'Geographic Diversification'!$T$22"},"=+'Schedule IVE (EBS)'!P22",0,null,null,null,{"$f":"ADDRESS(33,12,1,1,$Y$1)","v":"'Premium Risk'!$L$33"},"=+K33*S33",{"$f":"IF(_xlfn.FORMULATEXT(INDIRECT(Y322))=Z322,0,1)","v":0}]
[null,null,null,null,null,null,{"$f":"ADDRESS(52,5,1,1,$G$1)","v":"'Equity Investments'!$E$52"},1,{"$f":"IF(INDIRECT(G323)=H323,0,1)","v":0},null,null,null,{"$f":"ADDRESS(26,3,1,1,$M$1)","v":"'Currency Risk'!$C$26"},"='Schedule XXA'!D24",0,null,null,null,{"$f":"ADDRESS(22,21,1,1,$S$1)","v":"'Geographic Diversification'!$U$22"},"=+'Schedule IVE (EBS)'!Q22",0,null,null,null,{"$f":"ADDRESS(33,13,1,1,$Y$1)","v":"'Premium Risk'!$M$33"},"=+L33*T33",{"$f":"IF(_xlfn.FORMULATEXT(INDIRECT(Y323))=Z323,0,1)","v":0}]
[null,null,null,null,null,null,{"$f":"ADDRESS(52,6,1,1,$G$1)","v":"'Equity Investments'!$F$52"},0.75,{"$f":"IF(INDIRECT(G324)=H324,0,1)","v":0},null,null,null,{"$f":"ADDRESS(26,4,1,1,$M$1)","v":"'Currency Risk'!$D$26"},"='Schedule XXA'!F24",0,null,null,null,{"$f":"ADDRESS(22,22,1,1,$S$1)","v":"'Geographic Diversification'!$V$22"},"=+'Schedule IVE (EBS)'!R22",{"$f":"IF(_xlfn.FORMULATEXT(INDIRECT(S324))=T324,0,1)","v":0},null,null,null,{"$f":"ADDRESS(33,14,1,1,$Y$1)","v":"'Premium Risk'!$N$33"},"=IF($H33<0,0,$H33*$K33)+IF($I33<0,0,$I33*$L33)+IF($J33<0,0,$J33*$M33)",{"$f":"IF(_xlfn.FORMULATEXT(INDIRECT(Y324))=Z324,0,1)","v":0}]
[null,null,null,null,null,null,{"$f":"ADDRESS(52,7,1,1,$G$1)","v":"'Equity Investments'!$G$52"},0.5,{"$f":"IF(INDIRECT(G325)=H325,0,1)","v":0},null,null,null,{"$f":"ADDRESS(26,5,1,1,$M$1)","v":"'Currency Risk'!$E$26"},"='Schedule XXA'!H24",0,null,null,null,{"$f":"ADDRESS(22,23,1,1,$S$1)","v":"'Geographic Diversification'!$W$22"},"=+'Schedule IVE (EBS)'!S22",0,null,null,null,{"$f":"ADDRESS(33,17,1,1,$Y$1)","v":"'Premium Risk'!$Q$33"},"=IF(H33=E33,MAX(D33*K33,0),IF(E33=F33,IF(D33<0,0,D33*(H33/F33)*K33),IF(D33<0,0,D33*(H33/E33)*K33)))\n+IF(I33=E33,MAX(D33*L33,0),IF(E33=F33,IF(D33<0,0,D33*(I33/F33)*L33),IF(D33<0,0,D33*(I33/E33)*L33)))\n+IF(J33=E33,MAX(D33*M33,0),IF(E33=F33,IF(D33<0,0,D33*(J33/F33)*M33),IF(D33<0,0,D33*(J33/E33)*M33)))",{"$f":"IF(_xlfn.FORMULATEXT(INDIRECT(Y325))=Z325,0,1)","v":0}]
[null,null,null,null,null,null,{"$f":"ADDRESS(52,16,1,1,$G$1)","v":"'Equity Investments'!$P$52"},"=P34",{"$f":"IF(_xlfn.FORMULATEXT(INDIRECT(G326))=H326,0,1)","v":0},null,null,null,{"$f":"ADDRESS(26,6,1,1,$M$1)","v":"'Currency Risk'!$F$26"},"='Schedule XXA'!J24",0,null,null,null,{"$f":"ADDRESS(22,24,1,1,$S$1)","v":"'Geographic Diversification'!$X$22"},"=+'Schedule IVE (EBS)'!T22",0,null,null,null,{"$f":"ADDRESS(33,19,1,1,$Y$1)","v":"'Premium Risk'!$S$33"},0.25,{"$f":"IF(INDIRECT(Y326)=Z326,0,1)","v":0}]
[null,null,null,null,null,null,{"$f":"ADDRESS(52,18,1,1,$G$1)","v":"'Equity Investments'!$R$52"},"=R34",{"$f":"IF(_xlfn.FORMULATEXT(INDIRECT(G327))=H327,0,1)","v":0},null,null,null,{"$f":"ADDRESS(26,7,1,1,$M$1)","v":"'Currency Risk'!$G$26"},"='Schedule XXA'!L24",0,null,null,null,{"$f":"ADDRESS(22,25,1,1,$S$1)","v":"'Geographic Diversification'!$Y$22"},"=+'Schedule IVE (EBS)'!U22",0,null,null,null,{"$f":"ADDRESS(33,20,1,1,$Y$1)","v":"'Premium Risk'!$T$33"},0.5,{"$f":"IF(INDIRECT(Y327)=Z327,0,1)","v":0}]
[null,null,null,null,null,null,{"$f":"ADDRESS(53,4,1,1,$G$1)","v":"'Equity Investments'!$D$53"},0.75,{"$f":"IF(INDIRECT(G328)=H328,0,1)","v":0},null,null,null,{"$f":"ADDRESS(26,8,1,1,$M$1)","v":"'Currency Risk'!$H$26"},"='Schedule XXA'!N24",0,null,null,null,{"$f":"ADDRESS(22,26,1,1,$S$1)","v":"'Geographic Diversification'!$Z$22"},"=+'Schedule IVE (EBS)'!V22",0,null,null,null,{"$f":"ADDRESS(34,4,1,1,$Y$1)","v":"'Premium Risk'!$D$34"},"='Schedule IVD (EBS)'!Q32",{"$f":"IF(_xlfn.FORMULATEXT(INDIRECT(Y328))=Z328,0,1)","v":0}]
[null,null,null,null,null,null,{"$f":"ADDRESS(53,5,1,1,$G$1)","v":"'Equity Investments'!$E$53"},0.75,{"$f":"IF(INDIRECT(G329)=H329,0,1)","v":0},null,null,null,{"$f":"ADDRESS(26,9,1,1,$M$1)","v":"'Currency Risk'!$I$26"},"=$I$10*H26",0,null,null,null,{"$f":"ADDRESS(23,4,1,1,$S$1)","v":"'Geographic Diversification'!$D$23"},"=SUM(I23:Z23)",0,null,null,null,{"$f":"ADDRESS(34,5,1,1,$Y$1)","v":"'Premium Risk'!$E$34"},"='Schedule IVD (EBS)'!O32",0]
[null,null,null,null,null,null,{"$f":"ADDRESS(53,6,1,1,$G$1)","v":"'Equity Investments'!$F$53"},1,{"$f":"IF(INDIRECT(G330)=H330,0,1)","v":0},null,null,null,{"$f":"ADDRESS(26,10,1,1,$M$1)","v":"'Currency Risk'!$J$26"},"=IF((SUM(C26:G26))>(H26+I26),0%,25%)",0,null,null,null,{"$f":"ADDRESS(23,5,1,1,$S$1)","v":"'Geographic Diversification'!$E$23"},"=SUMSQ(I23:Z23)",0,null,null,null,{"$f":"ADDRESS(34,6,1,1,$Y$1)","v":"'Premium Risk'!$F$34"},"='Geographic Diversification'!H32",0]
[null,null,null,null,null,null,{"$f":"ADDRESS(53,7,1,1,$G$1)","v":"'Equity Investments'!$G$53"},0.5,{"$f":"IF(INDIRECT(G331)=H331,0,1)","v":0},null,null,null,{"$f":"ADDRESS(26,12,1,1,$M$1)","v":"'Currency Risk'!$L$26"},"='Schedule XXA'!V24",0,null,null,null,{"$f":"ADDRESS(23,6,1,1,$S$1)","v":"'Geographic Diversification'!$F$23"},"=(IF(D23>0,E23/D23^2,1))",0,null,null,null,{"$f":"ADDRESS(34,7,1,1,$Y$1)","v":"'Premium Risk'!$G$34"},"=IF(IFERROR(F34/E34,1)<0,1,IFERROR(F34/E34,1))",0]
[null,null,null,null,null,null,{"$f":"ADDRESS(53,16,1,1,$G$1)","v":"'Equity Investments'!$P$53"},"=P40",{"$f":"IF(_xlfn.FORMULATEXT(INDIRECT(G332))=H332,0,1)","v":0},null,null,null,{"$f":"ADDRESS(26,13,1,1,$M$1)","v":"'Currency Risk'!$M$26"},"='Schedule XXA'!X24",0,null,null,null,{"$f":"ADDRESS(23,7,1,1,$S$1)","v":"'Geographic Diversification'!$G$23"},"=D23*(0.75+0.25*F23)",0,null,null,null,{"$f":"ADDRESS(34,8,1,1,$Y$1)","v":"'Premium Risk'!$H$34"},"='Schedule IVD (EBS)'!I32*$G34",0]
[null,null,null,null,null,null,{"$f":"ADDRESS(53,18,1,1,$G$1)","v":"'Equity Investments'!$R$53"},"=R40",{"$f":"IF(_xlfn.FORMULATEXT(INDIRECT(G333))=H333,0,1)","v":0},null,null,null,{"$f":"ADDRESS(26,14,1,1,$M$1)","v":"'Currency Risk'!$N$26"},"='Schedule XXA'!Z24",0,null,null,null,{"$f":"ADDRESS(23,8,1,1,$S$1)","v":"'Geographic Diversification'!$H$23"},"=IF('Schedule IVE (EBS)'!AB23=\"True\",G23,'Schedule IVD (EBS)'!O23)",0,null,null,null,{"$f":"ADDRESS(34,9,1,1,$Y$1)","v":"'Premium Risk'!$I$34"},"='Schedule IVD (EBS)'!K32*$G34",0]
[null,null,null,null,null,null,{"$f":"ADDRESS(54,4,1,1,$G$1)","v":"'Equity Investments'!$D$54"},0.5,{"$f":"IF(INDIRECT(G334)=H334,0,1)","v":0},null,null,null,{"$f":"ADDRESS(26,15,1,1,$M$1)","v":"'Currency Risk'!$O$26"},"='Schedule XXA'!AB24",0,null,null,null,{"$f":"ADDRESS(23,9,1,1,$S$1)","v":"'Geographic Diversification'!$I$23"},"=+'Schedule IVE (EBS)'!E23",0,null,null,null,{"$f":"ADDRESS(34,10,1,1,$Y$1)","v":"'Premium Risk'!$J$34"},"='Schedule IVD (EBS)'!M32*$G34",0]
[null,null,null,null,null,null,{"$f":"ADDRESS(54,5,1,1,$G$1)","v":"'Equity Investments'!$E$54"},0.5,{"$f":"IF(INDIRECT(G335)=H335,0,1)","v":0},null,null,null,{"$f":"ADDRESS(26,16,1,1,$M$1)","v":"'Currency Risk'!$P$26"},"='Schedule XXA'!AD24",0,null,null,null,{"$f":"ADDRESS(23,10,1,1,$S$1)","v":"'Geographic Diversification'!$J$23"},"=+'Schedule IVE (EBS)'!F23",0,null,null,null,{"$f":"ADDRESS(34,11,1,1,$Y$1)","v":"'Premium Risk'!$K$34"},0.15,{"$f":"IF(INDIRECT(Y335)=Z335,0,1)","v":0}]
[null,null,null,null,null,null,{"$f":"ADDRESS(54,6,1,1,$G$1)","v":"'Equity Investments'!$F$54"},0.5,{"$f":"IF(INDIRECT(G336)=H336,0,1)","v":0},null,null,null,{"$f":"ADDRESS(26,17,1,1,$M$1)","v":"'Currency Risk'!$Q$26"},"='Schedule XXA'!AF24",0,null,null,null,{"$f":"ADDRESS(23,11,1,1,$S$1)","v":"'Geographic Diversification'!$K$23"},"=+'Schedule IVE (EBS)'!G23",0,null,null,null,{"$f":"ADDRESS(34,12,1,1,$Y$1)","v":"'Premium Risk'!$L$34"},"=+K34*S34",{"$f":"IF(_xlfn.FORMULATEXT(INDIRECT(Y336))=Z336,0,1)","v":0}]
[null,null,null,null,null,null,{"$f":"ADDRESS(54,7,1,1,$G$1)","v":"'Equity Investments'!$G$54"},1,{"$f":"IF(INDIRECT(G337)=H337,0,1)","v":0},null,null,null,{"$f":"ADDRESS(26,18,1,1,$M$1)","v":"'Currency Risk'!$R$26"},"=IF('Schedule XXA'!AH24=0,Q26,'Schedule XXA'!AH24)",0,null,null,null,{"$f":"ADDRESS(23,12,1,1,$S$1)","v":"'Geographic Diversification'!$L$23"},"=+'Schedule IVE (EBS)'!H23",0,null,null,null,{"$f":"ADDRESS(34,13,1,1,$Y$1)","v":"'Premium Risk'!$M$34"},"=+L34*T34",{"$f":"IF(_xlfn.FORMULATEXT(INDIRECT(Y337))=Z337,0,1)","v":0}]
[null,null,null,null,null,null,{"$f":"ADDRESS(54,16,1,1,$G$1)","v":"'Equity Investments'!$P$54"},"=P46",{"$f":"IF(_xlfn.FORMULATEXT(INDIRECT(G338))=H338,0,1)","v":0},null,null,null,{"$f":"ADDRESS(26,20,1,1,$M$1)","v":"'Currency Risk'!$T$26"},"=(C26-L26)+(D26-M26)+(F26-O26)+MAX(E26-N26,0)+MAX(G26-P26,0)",0,null,null,null,{"$f":"ADDRESS(23,13,1,1,$S$1)","v":"'Geographic Diversification'!$M$23"},"=+'Schedule IVE (EBS)'!I23",0,null,null,null,{"$f":"ADDRESS(34,14,1,1,$Y$1)","v":"'Premium Risk'!$N$34"},"=IF($H34<0,0,$H34*$K34)+IF($I34<0,0,$I34*$L34)+IF($J34<0,0,$J34*$M34)",{"$f":"IF(_xlfn.FORMULATEXT(INDIRECT(Y338))=Z338,0,1)","v":0}]
[null,null,null,null,null,null,{"$f":"ADDRESS(54,18,1,1,$G$1)","v":"'Equity Investments'!$R$54"},"=R46",{"$f":"IF(_xlfn.FORMULATEXT(INDIRECT(G339))=H339,0,1)","v":0},null,null,null,{"$f":"ADDRESS(26,21,1,1,$M$1)","v":"'Currency Risk'!$U$26"},"=Q26-$H26",0,null,null,null,{"$f":"ADDRESS(23,14,1,1,$S$1)","v":"'Geographic Diversification'!$N$23"},"=+'Schedule IVE (EBS)'!J23",0,null,null,null,{"$f":"ADDRESS(34,17,1,1,$Y$1)","v":"'Premium Risk'!$Q$34"},"=IF(H34=E34,MAX(D34*K34,0),IF(E34=F34,IF(D34<0,0,D34*(H34/F34)*K34),IF(D34<0,0,D34*(H34/E34)*K34)))\n+IF(I34=E34,MAX(D34*L34,0),IF(E34=F34,IF(D34<0,0,D34*(I34/F34)*L34),IF(D34<0,0,D34*(I34/E34)*L34)))\n+IF(J34=E34,MAX(D34*M34,0),IF(E34=F34,IF(D34<0,0,D34*(J34/F34)*M34),IF(D34<0,0,D34*(J34/E34)*M34)))",{"$f":"IF(_xlfn.FORMULATEXT(INDIRECT(Y339))=Z339,0,1)","v":0}]
[null,null,null,null,null,null,{"$f":"ADDRESS(56,16,1,1,$G$1)","v":"'Equity Investments'!$P$56"},"{=SQRT(MMULT(TRANSPOSE($P$51:$P$54),MMULT($D$51:$G$54,$P$51:$P$54)))}",{"$f":"IF(_xlfn.FORMULATEXT(INDIRECT(G340))=H340,0,1)","v":0},null,null,null,{"$f":"ADDRESS(26,22,1,1,$M$1)","v":"'Currency Risk'!$V$26"},"=R26-$H26",0,null,null,null,{"$f":"ADDRESS(23,15,1,1,$S$1)","v":"'Geographic Diversification'!$O$23"},"=+'Schedule IVE (EBS)'!K23",0,null,null,null,{"$f":"ADDRESS(34,19,1,1,$Y$1)","v":"'Premium Risk'!$S$34"},0.25,{"$f":"IF(INDIRECT(Y340)=Z340,0,1)","v":0}]
[null,null,null,null,null,null,{"$f":"ADDRESS(56,18,1,1,$G$1)","v":"'Equity Investments'!$R$56"},"{=SQRT(MMULT(TRANSPOSE($R$51:$R$54),MMULT($D$51:$G$54,$R$51:$R$54)))}",{"$f":"IF(_xlfn.FORMULATEXT(INDIRECT(G341))=H341,0,1)","v":0},null,null,null,{"$f":"ADDRESS(26,24,1,1,$M$1)","v":"'Currency Risk'!$X$26"},"=MAX(0,$T26+U26+(J26*I26))",0,null,null,null,{"$f":"ADDRESS(23,16,1,1,$S$1)","v":"'Geographic Diversification'!$P$23"},"=+'Schedule IVE (EBS)'!L23",0,null,null,null,{"$f":"ADDRESS(34,20,1,1,$Y$1)","v":"'Premium Risk'!$T$34"},0.5,{"$f":"IF(INDIRECT(Y341)=Z341,0,1)","v":0}]
[null,null,null,null,null,null,null,null,-342,null,null,null,{"$f":"ADDRESS(26,25,1,1,$M$1)","v":"'Currency Risk'!$Y$26"},"=MAX(0,$T26+V26+(J26*I26))",0,null,null,null,{"$f":"ADDRESS(23,17,1,1,$S$1)","v":"'Geographic Diversification'!$Q$23"},"=+'Schedule IVE (EBS)'!M23",0,null,null,null,{"$f":"ADDRESS(36,4,1,1,$Y$1)","v":"'Premium Risk'!$D$36"},"=SUM(D11:D34)",{"$f":"IF(_xlfn.FORMULATEXT(INDIRECT(Y342))=Z342,0,1)","v":0}]
[null,null,null,null,null,null,null,null,null,null,null,null,{"$f":"ADDRESS(27,2,1,1,$M$1)","v":"'Currency Risk'!$B$27"},"='Schedule XXA'!B25",0,null,null,null,{"$f":"ADDRESS(23,18,1,1,$S$1)","v":"'Geographic Diversification'!$R$23"},"=+'Schedule IVE (EBS)'!N23",0,null,null,null,{"$f":"ADDRESS(36,5,1,1,$Y$1)","v":"'Premium Risk'!$E$36"},"=SUM(E11:E34)",0]
[null,null,null,null,null,null,null,null,null,null,null,null,{"$f":"ADDRESS(27,3,1,1,$M$1)","v":"'Currency Risk'!$C$27"},"='Schedule XXA'!D25",0,null,null,null,{"$f":"ADDRESS(23,19,1,1,$S$1)","v":"'Geographic Diversification'!$S$23"},"=+'Schedule IVE (EBS)'!O23",0,null,null,null,{"$f":"ADDRESS(36,6,1,1,$Y$1)","v":"'Premium Risk'!$F$36"},"=SUM(F11:F34)",0]
[null,null,null,null,null,null,null,null,null,null,null,null,{"$f":"ADDRESS(27,4,1,1,$M$1)","v":"'Currency Risk'!$D$27"},"='Schedule XXA'!F25",0,null,null,null,{"$f":"ADDRESS(23,20,1,1,$S$1)","v":"'Geographic Diversification'!$T$23"},"=+'Schedule IVE (EBS)'!P23",0,null,null,null,{"$f":"ADDRESS(36,8,1,1,$Y$1)","v":"'Premium Risk'!$H$36"},"=SUM(H11:H34)",0]
[null,null,null,null,null,null,null,null,null,null,null,null,{"$f":"ADDRESS(27,5,1,1,$M$1)","v":"'Currency Risk'!$E$27"},"='Schedule XXA'!H25",0,null,null,null,{"$f":"ADDRESS(23,21,1,1,$S$1)","v":"'Geographic Diversification'!$U$23"},"=+'Schedule IVE (EBS)'!Q23",0,null,null,null,{"$f":"ADDRESS(36,9,1,1,$Y$1)","v":"'Premium Risk'!$I$36"},"=SUM(I11:I34)",0]
[null,null,null,null,null,null,null,null,null,null,null,null,{"$f":"ADDRESS(27,6,1,1,$M$1)","v":"'Currency Risk'!$F$27"},"='Schedule XXA'!J25",0,null,null,null,{"$f":"ADDRESS(23,22,1,1,$S$1)","v":"'Geographic Diversification'!$V$23"},"=+'Schedule IVE (EBS)'!R23",0,null,null,null,{"$f":"ADDRESS(36,10,1,1,$Y$1)","v":"'Premium Risk'!$J$36"},"=SUM(J11:J34)",0]
[null,null,null,null,null,null,null,null,null,null,null,null,{"$f":"ADDRESS(27,7,1,1,$M$1)","v":"'Currency Risk'!$G$27"},"='Schedule XXA'!L25",0,null,null,null,{"$f":"ADDRESS(23,23,1,1,$S$1)","v":"'Geographic Diversification'!$W$23"},"=+'Schedule IVE (EBS)'!S23",0,null,null,null,{"$f":"ADDRESS(36,14,1,1,$Y$1)","v":"'Premium Risk'!$N$36"},"=SUM(N11:N35)",0]
[null,null,null,null,null,null,null,null,null,null,null,null,{"$f":"ADDRESS(27,8,1,1,$M$1)","v":"'Currency Risk'!$H$27"},"='Schedule XXA'!N25",0,null,null,null,{"$f":"ADDRESS(23,24,1,1,$S$1)","v":"'Geographic Diversification'!$X$23"},"=+'Schedule IVE (EBS)'!T23",0,null,null,null,{"$f":"ADDRESS(36,17,1,1,$Y$1)","v":"'Premium Risk'!$Q$36"},"=SUM(Q11:Q35)",0]
[null,null,null,null,null,null,null,null,null,null,null,null,{"$f":"ADDRESS(27,9,1,1,$M$1)","v":"'Currency Risk'!$I$27"},"=$I$10*H27",0,null,null,null,{"$f":"ADDRESS(23,25,1,1,$S$1)","v":"'Geographic Diversification'!$Y$23"},"=+'Schedule IVE (EBS)'!U23",0,null,null,null,{"$f":"ADDRESS(40,14,1,1,$Y$1)","v":"'Premium Risk'!$N$40"},"=N36-N42",0]
[null,null,null,null,null,null,null,null,null,null,null,null,{"$f":"ADDRESS(27,10,1,1,$M$1)","v":"'Currency Risk'!$J$27"},"=IF((SUM(C27:G27))>(H27+I27),0%,25%)",0,null,null,null,{"$f":"ADDRESS(23,26,1,1,$S$1)","v":"'Geographic Diversification'!$Z$23"},"=+'Schedule IVE (EBS)'!V23",0,null,null,null,{"$f":"ADDRESS(40,17,1,1,$Y$1)","v":"'Premium Risk'!$Q$40"},"=Q36-Q42",0]
[null,null,null,null,null,null,null,null,null,null,null,null,{"$f":"ADDRESS(27,12,1,1,$M$1)","v":"'Currency Risk'!$L$27"},"='Schedule XXA'!V25",0,null,null,null,{"$f":"ADDRESS(24,4,1,1,$S$1)","v":"'Geographic Diversification'!$D$24"},"=SUM(I24:Z24)",0,null,null,null,{"$f":"ADDRESS(42,11,1,1,$Y$1)","v":"'Premium Risk'!$K$42"},"{=SQRT(MMULT(TRANSPOSE(IF($H11:$H34<0,0,$H11:$H34*$K11:$K34)),MMULT('Correlation Matrix'!C15:Z38,IF($H11:$H34<0,0,$H11:$H34*$K11:$K34))))}",0]
[null,null,null,null,null,null,null,null,null,null,null,null,{"$f":"ADDRESS(27,13,1,1,$M$1)","v":"'Currency Risk'!$M$27"},"='Schedule XXA'!X25",0,null,null,null,{"$f":"ADDRESS(24,5,1,1,$S$1)","v":"'Geographic Diversification'!$E$24"},"=SUMSQ(I24:Z24)",0,null,null,null,{"$f":"ADDRESS(42,14,1,1,$Y$1)","v":"'Premium Risk'!$N$42"},"{=SQRT(MMULT(TRANSPOSE(N11:N34),MMULT('Correlation Matrix'!C15:Z38,N11:N34)))}",0]
[null,null,null,null,null,null,null,null,null,null,null,null,{"$f":"ADDRESS(27,14,1,1,$M$1)","v":"'Currency Risk'!$N$27"},"='Schedule XXA'!Z25",0,null,null,null,{"$f":"ADDRESS(24,6,1,1,$S$1)","v":"'Geographic Diversification'!$F$24"},"=(IF(D24>0,E24/D24^2,1))",0,null,null,null,{"$f":"ADDRESS(42,17,1,1,$Y$1)","v":"'Premium Risk'!$Q$42"},"{=SQRT(MMULT(TRANSPOSE(Q11:Q34),MMULT('Correlation Matrix'!C15:Z38,Q11:Q34)))}",0]
[null,null,null,null,null,null,null,null,null,null,null,null,{"$f":"ADDRESS(27,15,1,1,$M$1)","v":"'Currency Risk'!$O$27"},"='Schedule XXA'!AB25",0,null,null,null,{"$f":"ADDRESS(24,7,1,1,$S$1)","v":"'Geographic Diversification'!$G$24"},"=D24*(0.75+0.25*F24)",0,null,null,null,{"$f":"ADDRESS(46,14,1,1,$Y$1)","v":"'Premium Risk'!$N$46"},"='Catastrophe Risk'!E11",0]
[null,null,null,null,null,null,null,null,null,null,null,null,{"$f":"ADDRESS(27,16,1,1,$M$1)","v":"'Currency Risk'!$P$27"},"='Schedule XXA'!AD25",0,null,null,null,{"$f":"ADDRESS(24,8,1,1,$S$1)","v":"'Geographic Diversification'!$H$24"},"=IF('Schedule IVE (EBS)'!AB24=\"True\",G24,'Schedule IVD (EBS)'!O24)",0,null,null,null,{"$f":"ADDRESS(46,17,1,1,$Y$1)","v":"'Premium Risk'!$Q$46"},"='Catastrophe Risk'!E11",0]
[null,null,null,null,null,null,null,null,null,null,null,null,{"$f":"ADDRESS(27,17,1,1,$M$1)","v":"'Currency Risk'!$Q$27"},"='Schedule XXA'!AF25",{"$f":"IF(_xlfn.FORMULATEXT(INDIRECT(M357))=N357,0,1)","v":0},null,null,null,{"$f":"ADDRESS(24,9,1,1,$S$1)","v":"'Geographic Diversification'!$I$24"},"=+'Schedule IVE (EBS)'!E24",0,null,null,null,{"$f":"ADDRESS(47,14,1,1,$Y$1)","v":"'Premium Risk'!$N$47"},"='Catastrophe Risk'!E13",0]
[null,null,null,null,null,null,null,null,null,null,null,null,{"$f":"ADDRESS(27,18,1,1,$M$1)","v":"'Currency Risk'!$R$27"},"=IF('Schedule XXA'!AH25=0,Q27,'Schedule XXA'!AH25)",0,null,null,null,{"$f":"ADDRESS(24,10,1,1,$S$1)","v":"'Geographic Diversification'!$J$24"},"=+'Schedule IVE (EBS)'!F24",0,null,null,null,{"$f":"ADDRESS(47,17,1,1,$Y$1)","v":"'Premium Risk'!$Q$47"},"='Catastrophe Risk'!E13",0]
[null,null,null,null,null,null,null,null,null,null,null,null,{"$f":"ADDRESS(27,20,1,1,$M$1)","v":"'Currency Risk'!$T$27"},"=(C27-L27)+(D27-M27)+(F27-O27)+MAX(E27-N27,0)+MAX(G27-P27,0)",0,null,null,null,{"$f":"ADDRESS(24,11,1,1,$S$1)","v":"'Geographic Diversification'!$K$24"},"=+'Schedule IVE (EBS)'!G24",0,null,null,null,{"$f":"ADDRESS(48,14,1,1,$Y$1)","v":"'Premium Risk'!$N$48"},"=IF((H36-H11)=0,0,K42/(H36-H11))",0]
[null,null,null,null,null,null,null,null,null,null,null,null,{"$f":"ADDRESS(27,21,1,1,$M$1)","v":"'Currency Risk'!$U$27"},"=Q27-$H27",0,null,null,null,{"$f":"ADDRESS(24,12,1,1,$S$1)","v":"'Geographic Diversification'!$L$24"},"=+'Schedule IVE (EBS)'!H24",0,null,null,null,{"$f":"ADDRESS(48,17,1,1,$Y$1)","v":"'Premium Risk'!$Q$48"},"=IF((D36-D11)=0,0,Q42/(D36-D11))",0]
[null,null,null,null,null,null,null,null,null,null,null,null,{"$f":"ADDRESS(27,22,1,1,$M$1)","v":"'Currency Risk'!$V$27"},"=R27-$H27",0,null,null,null,{"$f":"ADDRESS(24,13,1,1,$S$1)","v":"'Geographic Diversification'!$M$24"},"=+'Schedule IVE (EBS)'!I24",0,null,null,null,{"$f":"ADDRESS(50,14,1,1,$Y$1)","v":"'Premium Risk'!$N$50"},"=N46/N47*N48",0]
[null,null,null,null,null,null,null,null,null,null,null,null,{"$f":"ADDRESS(27,24,1,1,$M$1)","v":"'Currency Risk'!$X$27"},"=MAX(0,$T27+U27+(J27*I27))",0,null,null,null,{"$f":"ADDRESS(24,14,1,1,$S$1)","v":"'Geographic Diversification'!$N$24"},"=+'Schedule IVE (EBS)'!J24",0,null,null,null,{"$f":"ADDRESS(50,17,1,1,$Y$1)","v":"'Premium Risk'!$Q$50"},"=Q46/Q47*Q48",0]
[null,null,null,null,null,null,null,null,null,null,null,null,{"$f":"ADDRESS(27,25,1,1,$M$1)","v":"'Currency Risk'!$Y$27"},"=MAX(0,$T27+V27+(J27*I27))",0,null,null,null,{"$f":"ADDRESS(24,15,1,1,$S$1)","v":"'Geographic Diversification'!$O$24"},"=+'Schedule IVE (EBS)'!K24",0,null,null,null,{"$f":"ADDRESS(52,14,1,1,$Y$1)","v":"'Premium Risk'!$N$52"},"='Schedule IX(b)'!H51/900*95%",0]
[null,null,null,null,null,null,null,null,null,null,null,null,{"$f":"ADDRESS(28,2,1,1,$M$1)","v":"'Currency Risk'!$B$28"},"='Schedule XXA'!B26",0,null,null,null,{"$f":"ADDRESS(24,16,1,1,$S$1)","v":"'Geographic Diversification'!$P$24"},"=+'Schedule IVE (EBS)'!L24",0,null,null,null,{"$f":"ADDRESS(52,17,1,1,$Y$1)","v":"'Premium Risk'!$Q$52"},"='Schedule IX(b)'!H51/900*95%",0]
[null,null,null,null,null,null,null,null,null,null,null,null,{"$f":"ADDRESS(28,3,1,1,$M$1)","v":"'Currency Risk'!$C$28"},"='Schedule XXA'!D26",0,null,null,null,{"$f":"ADDRESS(24,17,1,1,$S$1)","v":"'Geographic Diversification'!$Q$24"},"=+'Schedule IVE (EBS)'!M24",0,null,null,null,{"$f":"ADDRESS(53,14,1,1,$Y$1)","v":"'Premium Risk'!$N$53"},"='Schedule IX(b)'!H55*5%",0]
[null,null,null,null,null,null,null,null,null,null,null,null,{"$f":"ADDRESS(28,4,1,1,$M$1)","v":"'Currency Risk'!$D$28"},"='Schedule XXA'!F26",0,null,null,null,{"$f":"ADDRESS(24,18,1,1,$S$1)","v":"'Geographic Diversification'!$R$24"},"=+'Schedule IVE (EBS)'!N24",0,null,null,null,{"$f":"ADDRESS(53,17,1,1,$Y$1)","v":"'Premium Risk'!$Q$53"},"='Schedule IX(b)'!H55*5%",0]
[null,null,null,null,null,null,null,null,null,null,null,null,{"$f":"ADDRESS(28,5,1,1,$M$1)","v":"'Currency Risk'!$E$28"},"='Schedule XXA'!H26",0,null,null,null,{"$f":"ADDRESS(24,19,1,1,$S$1)","v":"'Geographic Diversification'!$S$24"},"=+'Schedule IVE (EBS)'!O24",0,null,null,null,{"$f":"ADDRESS(54,14,1,1,$Y$1)","v":"'Premium Risk'!$N$54"},"=N52+N53",0]
[null,null,null,null,null,null,null,null,null,null,null,null,{"$f":"ADDRESS(28,6,1,1,$M$1)","v":"'Currency Risk'!$F$28"},"='Schedule XXA'!J26",0,null,null,null,{"$f":"ADDRESS(24,20,1,1,$S$1)","v":"'Geographic Diversification'!$T$24"},"=+'Schedule IVE (EBS)'!P24",0,null,null,null,{"$f":"ADDRESS(54,17,1,1,$Y$1)","v":"'Premium Risk'!$Q$54"},"=Q52+Q53",0]
[null,null,null,null,null,null,null,null,null,null,null,null,{"$f":"ADDRESS(28,7,1,1,$M$1)","v":"'Currency Risk'!$G$28"},"='Schedule XXA'!L26",0,null,null,null,{"$f":"ADDRESS(24,21,1,1,$S$1)","v":"'Geographic Diversification'!$U$24"},"=+'Schedule IVE (EBS)'!Q24",0,null,null,null,{"$f":"ADDRESS(55,14,1,1,$Y$1)","v":"'Premium Risk'!$N$55"},0.4,{"$f":"IF(INDIRECT(Y369)=Z369,0,1)","v":0}]
[null,null,null,null,null,null,null,null,null,null,null,null,{"$f":"ADDRESS(28,8,1,1,$M$1)","v":"'Currency Risk'!$H$28"},"='Schedule XXA'!N26",0,null,null,null,{"$f":"ADDRESS(24,22,1,1,$S$1)","v":"'Geographic Diversification'!$V$24"},"=+'Schedule IVE (EBS)'!R24",0,null,null,null,{"$f":"ADDRESS(55,17,1,1,$Y$1)","v":"'Premium Risk'!$Q$55"},0.4,{"$f":"IF(INDIRECT(Y370)=Z370,0,1)","v":0}]
[null,null,null,null,null,null,null,null,null,null,null,null,{"$f":"ADDRESS(28,9,1,1,$M$1)","v":"'Currency Risk'!$I$28"},"=$I$10*H28",0,null,null,null,{"$f":"ADDRESS(24,23,1,1,$S$1)","v":"'Geographic Diversification'!$W$24"},"=+'Schedule IVE (EBS)'!S24",0,null,null,null,{"$f":"ADDRESS(57,14,1,1,$Y$1)","v":"'Premium Risk'!$N$57"},"=N54*N55",{"$f":"IF(_xlfn.FORMULATEXT(INDIRECT(Y371))=Z371,0,1)","v":0}]
[null,null,null,null,null,null,null,null,null,null,null,null,{"$f":"ADDRESS(28,10,1,1,$M$1)","v":"'Currency Risk'!$J$28"},"=IF((SUM(C28:G28))>(H28+I28),0%,25%)",0,null,null,null,{"$f":"ADDRESS(24,24,1,1,$S$1)","v":"'Geographic Diversification'!$X$24"},"=+'Schedule IVE (EBS)'!T24",0,null,null,null,{"$f":"ADDRESS(57,17,1,1,$Y$1)","v":"'Premium Risk'!$Q$57"},"=Q54*Q55",{"$f":"IF(_xlfn.FORMULATEXT(INDIRECT(Y372))=Z372,0,1)","v":0}]
[null,null,null,null,null,null,null,null,null,null,null,null,{"$f":"ADDRESS(28,12,1,1,$M$1)","v":"'Currency Risk'!$L$28"},"='Schedule XXA'!V26",0,null,null,null,{"$f":"ADDRESS(24,25,1,1,$S$1)","v":"'Geographic Diversification'!$Y$24"},"=+'Schedule IVE (EBS)'!U24",0,null,null,null,{"$f":"ADDRESS(59,14,1,1,$Y$1)","v":"'Premium Risk'!$N$59"},"=IF('Company Information'!$F$11=\"Class 3A\",N42-N36*N57,IF(N42-N50>=0,N42-N50,0))",{"$f":"IF(_xlfn.FORMULATEXT(INDIRECT(Y373))=Z373,0,1)","v":0}]
[null,null,null,null,null,null,null,null,null,null,null,null,{"$f":"ADDRESS(28,13,1,1,$M$1)","v":"'Currency Risk'!$M$28"},"='Schedule XXA'!X26",0,null,null,null,{"$f":"ADDRESS(24,26,1,1,$S$1)","v":"'Geographic Diversification'!$Z$24"},"=+'Schedule IVE (EBS)'!V24",0,null,null,null,{"$f":"ADDRESS(59,17,1,1,$Y$1)","v":"'Premium Risk'!$Q$59"},"=IF('Company Information'!$F$11=\"Class 3A\",Q42-Q36*Q57,IF(Q42-Q50>=0,Q42-Q50,0))",{"$f":"IF(_xlfn.FORMULATEXT(INDIRECT(Y374))=Z374,0,1)","v":0}]
[null,null,null,null,null,null,null,null,null,null,null,null,{"$f":"ADDRESS(28,14,1,1,$M$1)","v":"'Currency Risk'!$N$28"},"='Schedule XXA'!Z26",0,null,null,null,{"$f":"ADDRESS(25,4,1,1,$S$1)","v":"'Geographic Diversification'!$D$25"},"=SUM(I25:Z25)",0,null,null,null,null,null,-375]
[null,null,null,null,null,null,null,null,null,null,null,null,{"$f":"ADDRESS(28,15,1,1,$M$1)","v":"'Currency Risk'!$O$28"},"='Schedule XXA'!AB26",0,null,null,null,{"$f":"ADDRESS(25,5,1,1,$S$1)","v":"'Geographic Diversification'!$E$25"},"=SUMSQ(I25:Z25)",0]
[null,null,null,null,null,null,null,null,null,null,null,null,{"$f":"ADDRESS(28,16,1,1,$M$1)","v":"'Currency Risk'!$P$28"},"='Schedule XXA'!AD26",0,null,null,null,{"$f":"ADDRESS(25,6,1,1,$S$1)","v":"'Geographic Diversification'!$F$25"},"=(IF(D25>0,E25/D25^2,1))",0]
[null,null,null,null,null,null,null,null,null,null,null,null,{"$f":"ADDRESS(28,17,1,1,$M$1)","v":"'Currency Risk'!$Q$28"},"='Schedule XXA'!AF26",0,null,null,null,{"$f":"ADDRESS(25,7,1,1,$S$1)","v":"'Geographic Diversification'!$G$25"},"=D25*(0.75+0.25*F25)",0]
[null,null,null,null,null,null,null,null,null,null,null,null,{"$f":"ADDRESS(28,18,1,1,$M$1)","v":"'Currency Risk'!$R$28"},"=IF('Schedule XXA'!AH26=0,Q28,'Schedule XXA'!AH26)",0,null,null,null,{"$f":"ADDRESS(25,8,1,1,$S$1)","v":"'Geographic Diversification'!$H$25"},"=IF('Schedule IVE (EBS)'!AB25=\"True\",G25,'Schedule IVD (EBS)'!O25)",0]
[null,null,null,null,null,null,null,null,null,null,null,null,{"$f":"ADDRESS(28,20,1,1,$M$1)","v":"'Currency Risk'!$T$28"},"=(C28-L28)+(D28-M28)+(F28-O28)+MAX(E28-N28,0)+MAX(G28-P28,0)",0,null,null,null,{"$f":"ADDRESS(25,9,1,1,$S$1)","v":"'Geographic Diversification'!$I$25"},"=+'Schedule IVE (EBS)'!E25",0]
[null,null,null,null,null,null,null,null,null,null,null,null,{"$f":"ADDRESS(28,21,1,1,$M$1)","v":"'Currency Risk'!$U$28"},"=Q28-$H28",0,null,null,null,{"$f":"ADDRESS(25,10,1,1,$S$1)","v":"'Geographic Diversification'!$J$25"},"=+'Schedule IVE (EBS)'!F25",0]
[null,null,null,null,null,null,null,null,null,null,null,null,{"$f":"ADDRESS(28,22,1,1,$M$1)","v":"'Currency Risk'!$V$28"},"=R28-$H28",0,null,null,null,{"$f":"ADDRESS(25,11,1,1,$S$1)","v":"'Geographic Diversification'!$K$25"},"=+'Schedule IVE (EBS)'!G25",0]
[null,null,null,null,null,null,null,null,null,null,null,null,{"$f":"ADDRESS(28,24,1,1,$M$1)","v":"'Currency Risk'!$X$28"},"=MAX(0,$T28+U28+(J28*I28))",0,null,null,null,{"$f":"ADDRESS(25,12,1,1,$S$1)","v":"'Geographic Diversification'!$L$25"},"=+'Schedule IVE (EBS)'!H25",0]
[null,null,null,null,null,null,null,null,null,null,null,null,{"$f":"ADDRESS(28,25,1,1,$M$1)","v":"'Currency Risk'!$Y$28"},"=MAX(0,$T28+V28+(J28*I28))",0,null,null,null,{"$f":"ADDRESS(25,13,1,1,$S$1)","v":"'Geographic Diversification'!$M$25"},"=+'Schedule IVE (EBS)'!I25",0]
[null,null,null,null,null,null,null,null,null,null,null,null,{"$f":"ADDRESS(29,2,1,1,$M$1)","v":"'Currency Risk'!$B$29"},"='Schedule XXA'!B27",0,null,null,null,{"$f":"ADDRESS(25,14,1,1,$S$1)","v":"'Geographic Diversification'!$N$25"},"=+'Schedule IVE (EBS)'!J25",0]
[null,null,null,null,null,null,null,null,null,null,null,null,{"$f":"ADDRESS(29,3,1,1,$M$1)","v":"'Currency Risk'!$C$29"},"='Schedule XXA'!D27",0,null,null,null,{"$f":"ADDRESS(25,15,1,1,$S$1)","v":"'Geographic Diversification'!$O$25"},"=+'Schedule IVE (EBS)'!K25",0]
[null,null,null,null,null,null,null,null,null,null,null,null,{"$f":"ADDRESS(29,4,1,1,$M$1)","v":"'Currency Risk'!$D$29"},"='Schedule XXA'!F27",0,null,null,null,{"$f":"ADDRESS(25,16,1,1,$S$1)","v":"'Geographic Diversification'!$P$25"},"=+'Schedule IVE (EBS)'!L25",0]
[null,null,null,null,null,null,null,null,null,null,null,null,{"$f":"ADDRESS(29,5,1,1,$M$1)","v":"'Currency Risk'!$E$29"},"='Schedule XXA'!H27",0,null,null,null,{"$f":"ADDRESS(25,17,1,1,$S$1)","v":"'Geographic Diversification'!$Q$25"},"=+'Schedule IVE (EBS)'!M25",{"$f":"IF(_xlfn.FORMULATEXT(INDIRECT(S388))=T388,0,1)","v":0}]
[null,null,null,null,null,null,null,null,null,null,null,null,{"$f":"ADDRESS(29,6,1,1,$M$1)","v":"'Currency Risk'!$F$29"},"='Schedule XXA'!J27",0,null,null,null,{"$f":"ADDRESS(25,18,1,1,$S$1)","v":"'Geographic Diversification'!$R$25"},"=+'Schedule IVE (EBS)'!N25",0]
[null,null,null,null,null,null,null,null,null,null,null,null,{"$f":"ADDRESS(29,7,1,1,$M$1)","v":"'Currency Risk'!$G$29"},"='Schedule XXA'!L27",0,null,null,null,{"$f":"ADDRESS(25,19,1,1,$S$1)","v":"'Geographic Diversification'!$S$25"},"=+'Schedule IVE (EBS)'!O25",0]
[null,null,null,null,null,null,null,null,null,null,null,null,{"$f":"ADDRESS(29,8,1,1,$M$1)","v":"'Currency Risk'!$H$29"},"='Schedule XXA'!N27",0,null,null,null,{"$f":"ADDRESS(25,20,1,1,$S$1)","v":"'Geographic Diversification'!$T$25"},"=+'Schedule IVE (EBS)'!P25",0]
[null,null,null,null,null,null,null,null,null,null,null,null,{"$f":"ADDRESS(29,9,1,1,$M$1)","v":"'Currency Risk'!$I$29"},"=$I$10*H29",0,null,null,null,{"$f":"ADDRESS(25,21,1,1,$S$1)","v":"'Geographic Diversification'!$U$25"},"=+'Schedule IVE (EBS)'!Q25",0]
[null,null,null,null,null,null,null,null,null,null,null,null,{"$f":"ADDRESS(29,10,1,1,$M$1)","v":"'Currency Risk'!$J$29"},"=IF((SUM(C29:G29))>(H29+I29),0%,25%)",0,null,null,null,{"$f":"ADDRESS(25,22,1,1,$S$1)","v":"'Geographic Diversification'!$V$25"},"=+'Schedule IVE (EBS)'!R25",0]
[null,null,null,null,null,null,null,null,null,null,null,null,{"$f":"ADDRESS(29,12,1,1,$M$1)","v":"'Currency Risk'!$L$29"},"='Schedule XXA'!V27",0,null,null,null,{"$f":"ADDRESS(25,23,1,1,$S$1)","v":"'Geographic Diversification'!$W$25"},"=+'Schedule IVE (EBS)'!S25",0]
[null,null,null,null,null,null,null,null,null,null,null,null,{"$f":"ADDRESS(29,13,1,1,$M$1)","v":"'Currency Risk'!$M$29"},"='Schedule XXA'!X27",0,null,null,null,{"$f":"ADDRESS(25,24,1,1,$S$1)","v":"'Geographic Diversification'!$X$25"},"=+'Schedule IVE (EBS)'!T25",0]
[null,null,null,null,null,null,null,null,null,null,null,null,{"$f":"ADDRESS(29,14,1,1,$M$1)","v":"'Currency Risk'!$N$29"},"='Schedule XXA'!Z27",0,null,null,null,{"$f":"ADDRESS(25,25,1,1,$S$1)","v":"'Geographic Diversification'!$Y$25"},"=+'Schedule IVE (EBS)'!U25",0]
[null,null,null,null,null,null,null,null,null,null,null,null,{"$f":"ADDRESS(29,15,1,1,$M$1)","v":"'Currency Risk'!$O$29"},"='Schedule XXA'!AB27",0,null,null,null,{"$f":"ADDRESS(25,26,1,1,$S$1)","v":"'Geographic Diversification'!$Z$25"},"=+'Schedule IVE (EBS)'!V25",0]
[null,null,null,null,null,null,null,null,null,null,null,null,{"$f":"ADDRESS(29,16,1,1,$M$1)","v":"'Currency Risk'!$P$29"},"='Schedule XXA'!AD27",0,null,null,null,{"$f":"ADDRESS(26,4,1,1,$S$1)","v":"'Geographic Diversification'!$D$26"},"=SUM(I26:Z26)",0]
[null,null,null,null,null,null,null,null,null,null,null,null,{"$f":"ADDRESS(29,17,1,1,$M$1)","v":"'Currency Risk'!$Q$29"},"='Schedule XXA'!AF27",0,null,null,null,{"$f":"ADDRESS(26,5,1,1,$S$1)","v":"'Geographic Diversification'!$E$26"},"=SUMSQ(I26:Z26)",0]
[null,null,null,null,null,null,null,null,null,null,null,null,{"$f":"ADDRESS(29,18,1,1,$M$1)","v":"'Currency Risk'!$R$29"},"=IF('Schedule XXA'!AH27=0,Q29,'Schedule XXA'!AH27)",0,null,null,null,{"$f":"ADDRESS(26,6,1,1,$S$1)","v":"'Geographic Diversification'!$F$26"},"=(IF(D26>0,E26/D26^2,1))",0]
[null,null,null,null,null,null,null,null,null,null,null,null,{"$f":"ADDRESS(29,20,1,1,$M$1)","v":"'Currency Risk'!$T$29"},"=(C29-L29)+(D29-M29)+(F29-O29)+MAX(E29-N29,0)+MAX(G29-P29,0)",0,null,null,null,{"$f":"ADDRESS(26,7,1,1,$S$1)","v":"'Geographic Diversification'!$G$26"},"=D26*(0.75+0.25*F26)",0]
[null,null,null,null,null,null,null,null,null,null,null,null,{"$f":"ADDRESS(29,21,1,1,$M$1)","v":"'Currency Risk'!$U$29"},"=Q29-$H29",0,null,null,null,{"$f":"ADDRESS(26,8,1,1,$S$1)","v":"'Geographic Diversification'!$H$26"},"=IF('Schedule IVE (EBS)'!AB26=\"True\",G26,'Schedule IVD (EBS)'!O26)",0]
[null,null,null,null,null,null,null,null,null,null,null,null,{"$f":"ADDRESS(29,22,1,1,$M$1)","v":"'Currency Risk'!$V$29"},"=R29-$H29",0,null,null,null,{"$f":"ADDRESS(26,9,1,1,$S$1)","v":"'Geographic Diversification'!$I$26"},"=+'Schedule IVE (EBS)'!E26",0]
[null,null,null,null,null,null,null,null,null,null,null,null,{"$f":"ADDRESS(29,24,1,1,$M$1)","v":"'Currency Risk'!$X$29"},"=MAX(0,$T29+U29+(J29*I29))",0,null,null,null,{"$f":"ADDRESS(26,10,1,1,$S$1)","v":"'Geographic Diversification'!$J$26"},"=+'Schedule IVE (EBS)'!F26",0]
[null,null,null,null,null,null,null,null,null,null,null,null,{"$f":"ADDRESS(29,25,1,1,$M$1)","v":"'Currency Risk'!$Y$29"},"=MAX(0,$T29+V29+(J29*I29))",0,null,null,null,{"$f":"ADDRESS(26,11,1,1,$S$1)","v":"'Geographic Diversification'!$K$26"},"=+'Schedule IVE (EBS)'!G26",0]
[null,null,null,null,null,null,null,null,null,null,null,null,{"$f":"ADDRESS(30,2,1,1,$M$1)","v":"'Currency Risk'!$B$30"},"='Schedule XXA'!B28",0,null,null,null,{"$f":"ADDRESS(26,12,1,1,$S$1)","v":"'Geographic Diversification'!$L$26"},"=+'Schedule IVE (EBS)'!H26",0]
[null,null,null,null,null,null,null,null,null,null,null,null,{"$f":"ADDRESS(30,3,1,1,$M$1)","v":"'Currency Risk'!$C$30"},"='Schedule XXA'!D28",0,null,null,null,{"$f":"ADDRESS(26,13,1,1,$S$1)","v":"'Geographic Diversification'!$M$26"},"=+'Schedule IVE (EBS)'!I26",0]
[null,null,null,null,null,null,null,null,null,null,null,null,{"$f":"ADDRESS(30,4,1,1,$M$1)","v":"'Currency Risk'!$D$30"},"='Schedule XXA'!F28",0,null,null,null,{"$f":"ADDRESS(26,14,1,1,$S$1)","v":"'Geographic Diversification'!$N$26"},"=+'Schedule IVE (EBS)'!J26",0]
[null,null,null,null,null,null,null,null,null,null,null,null,{"$f":"ADDRESS(30,5,1,1,$M$1)","v":"'Currency Risk'!$E$30"},"='Schedule XXA'!H28",0,null,null,null,{"$f":"ADDRESS(26,15,1,1,$S$1)","v":"'Geographic Diversification'!$O$26"},"=+'Schedule IVE (EBS)'!K26",0]
[null,null,null,null,null,null,null,null,null,null,null,null,{"$f":"ADDRESS(30,6,1,1,$M$1)","v":"'Currency Risk'!$F$30"},"='Schedule XXA'!J28",0,null,null,null,{"$f":"ADDRESS(26,16,1,1,$S$1)","v":"'Geographic Diversification'!$P$26"},"=+'Schedule IVE (EBS)'!L26",0]
[null,null,null,null,null,null,null,null,null,null,null,null,{"$f":"ADDRESS(30,7,1,1,$M$1)","v":"'Currency Risk'!$G$30"},"='Schedule XXA'!L28",0,null,null,null,{"$f":"ADDRESS(26,17,1,1,$S$1)","v":"'Geographic Diversification'!$Q$26"},"=+'Schedule IVE (EBS)'!M26",0]
[null,null,null,null,null,null,null,null,null,null,null,null,{"$f":"ADDRESS(30,8,1,1,$M$1)","v":"'Currency Risk'!$H$30"},"='Schedule XXA'!N28",0,null,null,null,{"$f":"ADDRESS(26,18,1,1,$S$1)","v":"'Geographic Diversification'!$R$26"},"=+'Schedule IVE (EBS)'!N26",0]
[null,null,null,null,null,null,null,null,null,null,null,null,{"$f":"ADDRESS(30,9,1,1,$M$1)","v":"'Currency Risk'!$I$30"},"=$I$10*H30",0,null,null,null,{"$f":"ADDRESS(26,19,1,1,$S$1)","v":"'Geographic Diversification'!$S$26"},"=+'Schedule IVE (EBS)'!O26",0]
[null,null,null,null,null,null,null,null,null,null,null,null,{"$f":"ADDRESS(30,10,1,1,$M$1)","v":"'Currency Risk'!$J$30"},"=IF((SUM(C30:G30))>(H30+I30),0%,25%)",0,null,null,null,{"$f":"ADDRESS(26,20,1,1,$S$1)","v":"'Geographic Diversification'!$T$26"},"=+'Schedule IVE (EBS)'!P26",0]
[null,null,null,null,null,null,null,null,null,null,null,null,{"$f":"ADDRESS(30,12,1,1,$M$1)","v":"'Currency Risk'!$L$30"},"='Schedule XXA'!V28",0,null,null,null,{"$f":"ADDRESS(26,21,1,1,$S$1)","v":"'Geographic Diversification'!$U$26"},"=+'Schedule IVE (EBS)'!Q26",0]
[null,null,null,null,null,null,null,null,null,null,null,null,{"$f":"ADDRESS(30,13,1,1,$M$1)","v":"'Currency Risk'!$M$30"},"='Schedule XXA'!X28",0,null,null,null,{"$f":"ADDRESS(26,22,1,1,$S$1)","v":"'Geographic Diversification'!$V$26"},"=+'Schedule IVE (EBS)'!R26",0]
[null,null,null,null,null,null,null,null,null,null,null,null,{"$f":"ADDRESS(30,14,1,1,$M$1)","v":"'Currency Risk'!$N$30"},"='Schedule XXA'!Z28",0,null,null,null,{"$f":"ADDRESS(26,23,1,1,$S$1)","v":"'Geographic Diversification'!$W$26"},"=+'Schedule IVE (EBS)'!S26",0]
[null,null,null,null,null,null,null,null,null,null,null,null,{"$f":"ADDRESS(30,15,1,1,$M$1)","v":"'Currency Risk'!$O$30"},"='Schedule XXA'!AB28",0,null,null,null,{"$f":"ADDRESS(26,24,1,1,$S$1)","v":"'Geographic Diversification'!$X$26"},"=+'Schedule IVE (EBS)'!T26",0]
[null,null,null,null,null,null,null,null,null,null,null,null,{"$f":"ADDRESS(30,16,1,1,$M$1)","v":"'Currency Risk'!$P$30"},"='Schedule XXA'!AD28",0,null,null,null,{"$f":"ADDRESS(26,25,1,1,$S$1)","v":"'Geographic Diversification'!$Y$26"},"=+'Schedule IVE (EBS)'!U26",0]
[null,null,null,null,null,null,null,null,null,null,null,null,{"$f":"ADDRESS(30,17,1,1,$M$1)","v":"'Currency Risk'!$Q$30"},"='Schedule XXA'!AF28",0,null,null,null,{"$f":"ADDRESS(26,26,1,1,$S$1)","v":"'Geographic Diversification'!$Z$26"},"=+'Schedule IVE (EBS)'!V26",0]
[null,null,null,null,null,null,null,null,null,null,null,null,{"$f":"ADDRESS(30,18,1,1,$M$1)","v":"'Currency Risk'!$R$30"},"=IF('Schedule XXA'!AH28=0,Q30,'Schedule XXA'!AH28)",{"$f":"IF(_xlfn.FORMULATEXT(INDIRECT(M421))=N421,0,1)","v":0},null,null,null,{"$f":"ADDRESS(27,4,1,1,$S$1)","v":"'Geographic Diversification'!$D$27"},"=SUM(I27:Z27)",0]
[null,null,null,null,null,null,null,null,null,null,null,null,{"$f":"ADDRESS(30,20,1,1,$M$1)","v":"'Currency Risk'!$T$30"},"=(C30-L30)+(D30-M30)+(F30-O30)+MAX(E30-N30,0)+MAX(G30-P30,0)",0,null,null,null,{"$f":"ADDRESS(27,5,1,1,$S$1)","v":"'Geographic Diversification'!$E$27"},"=SUMSQ(I27:Z27)",0]
[null,null,null,null,null,null,null,null,null,null,null,null,{"$f":"ADDRESS(30,21,1,1,$M$1)","v":"'Currency Risk'!$U$30"},"=Q30-$H30",0,null,null,null,{"$f":"ADDRESS(27,6,1,1,$S$1)","v":"'Geographic Diversification'!$F$27"},"=(IF(D27>0,E27/D27^2,1))",0]
[null,null,null,null,null,null,null,null,null,null,null,null,{"$f":"ADDRESS(30,22,1,1,$M$1)","v":"'Currency Risk'!$V$30"},"=R30-$H30",0,null,null,null,{"$f":"ADDRESS(27,7,1,1,$S$1)","v":"'Geographic Diversification'!$G$27"},"=D27*(0.75+0.25*F27)",0]
[null,null,null,null,null,null,null,null,null,null,null,null,{"$f":"ADDRESS(30,24,1,1,$M$1)","v":"'Currency Risk'!$X$30"},"=MAX(0,$T30+U30+(J30*I30))",0,null,null,null,{"$f":"ADDRESS(27,8,1,1,$S$1)","v":"'Geographic Diversification'!$H$27"},"=IF('Schedule IVE (EBS)'!AB27=\"True\",G27,'Schedule IVD (EBS)'!O27)",0]
[null,null,null,null,null,null,null,null,null,null,null,null,{"$f":"ADDRESS(30,25,1,1,$M$1)","v":"'Currency Risk'!$Y$30"},"=MAX(0,$T30+V30+(J30*I30))",0,null,null,null,{"$f":"ADDRESS(27,9,1,1,$S$1)","v":"'Geographic Diversification'!$I$27"},"=+'Schedule IVE (EBS)'!E27",0]
[null,null,null,null,null,null,null,null,null,null,null,null,{"$f":"ADDRESS(31,2,1,1,$M$1)","v":"'Currency Risk'!$B$31"},"='Schedule XXA'!B29",0,null,null,null,{"$f":"ADDRESS(27,10,1,1,$S$1)","v":"'Geographic Diversification'!$J$27"},"=+'Schedule IVE (EBS)'!F27",0]
[null,null,null,null,null,null,null,null,null,null,null,null,{"$f":"ADDRESS(31,3,1,1,$M$1)","v":"'Currency Risk'!$C$31"},"='Schedule XXA'!D29",0,null,null,null,{"$f":"ADDRESS(27,11,1,1,$S$1)","v":"'Geographic Diversification'!$K$27"},"=+'Schedule IVE (EBS)'!G27",0]
[null,null,null,null,null,null,null,null,null,null,null,null,{"$f":"ADDRESS(31,4,1,1,$M$1)","v":"'Currency Risk'!$D$31"},"='Schedule XXA'!F29",0,null,null,null,{"$f":"ADDRESS(27,12,1,1,$S$1)","v":"'Geographic Diversification'!$L$27"},"=+'Schedule IVE (EBS)'!H27",0]
[null,null,null,null,null,null,null,null,null,null,null,null,{"$f":"ADDRESS(31,5,1,1,$M$1)","v":"'Currency Risk'!$E$31"},"='Schedule XXA'!H29",0,null,null,null,{"$f":"ADDRESS(27,13,1,1,$S$1)","v":"'Geographic Diversification'!$M$27"},"=+'Schedule IVE (EBS)'!I27",0]
[null,null,null,null,null,null,null,null,null,null,null,null,{"$f":"ADDRESS(31,6,1,1,$M$1)","v":"'Currency Risk'!$F$31"},"='Schedule XXA'!J29",0,null,null,null,{"$f":"ADDRESS(27,14,1,1,$S$1)","v":"'Geographic Diversification'!$N$27"},"=+'Schedule IVE (EBS)'!J27",0]
[null,null,null,null,null,null,null,null,null,null,null,null,{"$f":"ADDRESS(31,7,1,1,$M$1)","v":"'Currency Risk'!$G$31"},"='Schedule XXA'!L29",0,null,null,null,{"$f":"ADDRESS(27,15,1,1,$S$1)","v":"'Geographic Diversification'!$O$27"},"=+'Schedule IVE (EBS)'!K27",0]
[null,null,null,null,null,null,null,null,null,null,null,null,{"$f":"ADDRESS(31,8,1,1,$M$1)","v":"'Currency Risk'!$H$31"},"='Schedule XXA'!N29",0,null,null,null,{"$f":"ADDRESS(27,16,1,1,$S$1)","v":"'Geographic Diversification'!$P$27"},"=+'Schedule IVE (EBS)'!L27",0]
[null,null,null,null,null,null,null,null,null,null,null,null,{"$f":"ADDRESS(31,9,1,1,$M$1)","v":"'Currency Risk'!$I$31"},"=$I$10*H31",0,null,null,null,{"$f":"ADDRESS(27,17,1,1,$S$1)","v":"'Geographic Diversification'!$Q$27"},"=+'Schedule IVE (EBS)'!M27",0]
[null,null,null,null,null,null,null,null,null,null,null,null,{"$f":"ADDRESS(31,10,1,1,$M$1)","v":"'Currency Risk'!$J$31"},"=IF((SUM(C31:G31))>(H31+I31),0%,25%)",0,null,null,null,{"$f":"ADDRESS(27,18,1,1,$S$1)","v":"'Geographic Diversification'!$R$27"},"=+'Schedule IVE (EBS)'!N27",0]
[null,null,null,null,null,null,null,null,null,null,null,null,{"$f":"ADDRESS(31,12,1,1,$M$1)","v":"'Currency Risk'!$L$31"},"='Schedule XXA'!V29",0,null,null,null,{"$f":"ADDRESS(27,19,1,1,$S$1)","v":"'Geographic Diversification'!$S$27"},"=+'Schedule IVE (EBS)'!O27",0]
[null,null,null,null,null,null,null,null,null,null,null,null,{"$f":"ADDRESS(31,13,1,1,$M$1)","v":"'Currency Risk'!$M$31"},"='Schedule XXA'!X29",0,null,null,null,{"$f":"ADDRESS(27,20,1,1,$S$1)","v":"'Geographic Diversification'!$T$27"},"=+'Schedule IVE (EBS)'!P27",0]
[null,null,null,null,null,null,null,null,null,null,null,null,{"$f":"ADDRESS(31,14,1,1,$M$1)","v":"'Currency Risk'!$N$31"},"='Schedule XXA'!Z29",0,null,null,null,{"$f":"ADDRESS(27,21,1,1,$S$1)","v":"'Geographic Diversification'!$U$27"},"=+'Schedule IVE (EBS)'!Q27",0]
[null,null,null,null,null,null,null,null,null,null,null,null,{"$f":"ADDRESS(31,15,1,1,$M$1)","v":"'Currency Risk'!$O$31"},"='Schedule XXA'!AB29",0,null,null,null,{"$f":"ADDRESS(27,22,1,1,$S$1)","v":"'Geographic Diversification'!$V$27"},"=+'Schedule IVE (EBS)'!R27",0]
[null,null,null,null,null,null,null,null,null,null,null,null,{"$f":"ADDRESS(31,16,1,1,$M$1)","v":"'Currency Risk'!$P$31"},"='Schedule XXA'!AD29",0,null,null,null,{"$f":"ADDRESS(27,23,1,1,$S$1)","v":"'Geographic Diversification'!$W$27"},"=+'Schedule IVE (EBS)'!S27",0]
[null,null,null,null,null,null,null,null,null,null,null,null,{"$f":"ADDRESS(31,17,1,1,$M$1)","v":"'Currency Risk'!$Q$31"},"='Schedule XXA'!AF29",0,null,null,null,{"$f":"ADDRESS(27,24,1,1,$S$1)","v":"'Geographic Diversification'!$X$27"},"=+'Schedule IVE (EBS)'!T27",0]
[null,null,null,null,null,null,null,null,null,null,null,null,{"$f":"ADDRESS(31,18,1,1,$M$1)","v":"'Currency Risk'!$R$31"},"=IF('Schedule XXA'!AH29=0,Q31,'Schedule XXA'!AH29)",0,null,null,null,{"$f":"ADDRESS(27,25,1,1,$S$1)","v":"'Geographic Diversification'!$Y$27"},"=+'Schedule IVE (EBS)'!U27",0]
[null,null,null,null,null,null,null,null,null,null,null,null,{"$f":"ADDRESS(31,20,1,1,$M$1)","v":"'Currency Risk'!$T$31"},"=(C31-L31)+(D31-M31)+(F31-O31)+MAX(E31-N31,0)+MAX(G31-P31,0)",0,null,null,null,{"$f":"ADDRESS(27,26,1,1,$S$1)","v":"'Geographic Diversification'!$Z$27"},"=+'Schedule IVE (EBS)'!V27",0]
[null,null,null,null,null,null,null,null,null,null,null,null,{"$f":"ADDRESS(31,21,1,1,$M$1)","v":"'Currency Risk'!$U$31"},"=Q31-$H31",0,null,null,null,{"$f":"ADDRESS(28,4,1,1,$S$1)","v":"'Geographic Diversification'!$D$28"},"=SUM(I28:Z28)",0]
[null,null,null,null,null,null,null,null,null,null,null,null,{"$f":"ADDRESS(31,22,1,1,$M$1)","v":"'Currency Risk'!$V$31"},"=R31-$H31",0,null,null,null,{"$f":"ADDRESS(28,5,1,1,$S$1)","v":"'Geographic Diversification'!$E$28"},"=SUMSQ(I28:Z28)",0]
[null,null,null,null,null,null,null,null,null,null,null,null,{"$f":"ADDRESS(31,24,1,1,$M$1)","v":"'Currency Risk'!$X$31"},"=MAX(0,$T31+U31+(J31*I31))",0,null,null,null,{"$f":"ADDRESS(28,6,1,1,$S$1)","v":"'Geographic Diversification'!$F$28"},"=(IF(D28>0,E28/D28^2,1))",0]
[null,null,null,null,null,null,null,null,null,null,null,null,{"$f":"ADDRESS(31,25,1,1,$M$1)","v":"'Currency Risk'!$Y$31"},"=MAX(0,$T31+V31+(J31*I31))",0,null,null,null,{"$f":"ADDRESS(28,7,1,1,$S$1)","v":"'Geographic Diversification'!$G$28"},"=D28*(0.75+0.25*F28)",0]
[null,null,null,null,null,null,null,null,null,null,null,null,{"$f":"ADDRESS(32,2,1,1,$M$1)","v":"'Currency Risk'!$B$32"},"='Schedule XXA'!B30",0,null,null,null,{"$f":"ADDRESS(28,8,1,1,$S$1)","v":"'Geographic Diversification'!$H$28"},"=IF('Schedule IVE (EBS)'!AB28=\"True\",G28,'Schedule IVD (EBS)'!O28)",0]
[null,null,null,null,null,null,null,null,null,null,null,null,{"$f":"ADDRESS(32,3,1,1,$M$1)","v":"'Currency Risk'!$C$32"},"='Schedule XXA'!D30",0,null,null,null,{"$f":"ADDRESS(28,9,1,1,$S$1)","v":"'Geographic Diversification'!$I$28"},"=+'Schedule IVE (EBS)'!E28",0]
[null,null,null,null,null,null,null,null,null,null,null,null,{"$f":"ADDRESS(32,4,1,1,$M$1)","v":"'Currency Risk'!$D$32"},"='Schedule XXA'!F30",0,null,null,null,{"$f":"ADDRESS(28,10,1,1,$S$1)","v":"'Geographic Diversification'!$J$28"},"=+'Schedule IVE (EBS)'!F28",0]
[null,null,null,null,null,null,null,null,null,null,null,null,{"$f":"ADDRESS(32,5,1,1,$M$1)","v":"'Currency Risk'!$E$32"},"='Schedule XXA'!H30",0,null,null,null,{"$f":"ADDRESS(28,11,1,1,$S$1)","v":"'Geographic Diversification'!$K$28"},"=+'Schedule IVE (EBS)'!G28",0]
[null,null,null,null,null,null,null,null,null,null,null,null,{"$f":"ADDRESS(32,6,1,1,$M$1)","v":"'Currency Risk'!$F$32"},"='Schedule XXA'!J30",0,null,null,null,{"$f":"ADDRESS(28,12,1,1,$S$1)","v":"'Geographic Diversification'!$L$28"},"=+'Schedule IVE (EBS)'!H28",{"$f":"IF(_xlfn.FORMULATEXT(INDIRECT(S452))=T452,0,1)","v":0}]
[null,null,null,null,null,null,null,null,null,null,null,null,{"$f":"ADDRESS(32,7,1,1,$M$1)","v":"'Currency Risk'!$G$32"},"='Schedule XXA'!L30",0,null,null,null,{"$f":"ADDRESS(28,13,1,1,$S$1)","v":"'Geographic Diversification'!$M$28"},"=+'Schedule IVE (EBS)'!I28",0]
[null,null,null,null,null,null,null,null,null,null,null,null,{"$f":"ADDRESS(32,8,1,1,$M$1)","v":"'Currency Risk'!$H$32"},"='Schedule XXA'!N30",0,null,null,null,{"$f":"ADDRESS(28,14,1,1,$S$1)","v":"'Geographic Diversification'!$N$28"},"=+'Schedule IVE (EBS)'!J28",0]
[null,null,null,null,null,null,null,null,null,null,null,null,{"$f":"ADDRESS(32,9,1,1,$M$1)","v":"'Currency Risk'!$I$32"},"=$I$10*H32",0,null,null,null,{"$f":"ADDRESS(28,15,1,1,$S$1)","v":"'Geographic Diversification'!$O$28"},"=+'Schedule IVE (EBS)'!K28",0]
[null,null,null,null,null,null,null,null,null,null,null,null,{"$f":"ADDRESS(32,10,1,1,$M$1)","v":"'Currency Risk'!$J$32"},"=IF((SUM(C32:G32))>(H32+I32),0%,25%)",0,null,null,null,{"$f":"ADDRESS(28,16,1,1,$S$1)","v":"'Geographic Diversification'!$P$28"},"=+'Schedule IVE (EBS)'!L28",0]
[null,null,null,null,null,null,null,null,null,null,null,null,{"$f":"ADDRESS(32,12,1,1,$M$1)","v":"'Currency Risk'!$L$32"},"='Schedule XXA'!V30",0,null,null,null,{"$f":"ADDRESS(28,17,1,1,$S$1)","v":"'Geographic Diversification'!$Q$28"},"=+'Schedule IVE (EBS)'!M28",0]
[null,null,null,null,null,null,null,null,null,null,null,null,{"$f":"ADDRESS(32,13,1,1,$M$1)","v":"'Currency Risk'!$M$32"},"='Schedule XXA'!X30",0,null,null,null,{"$f":"ADDRESS(28,18,1,1,$S$1)","v":"'Geographic Diversification'!$R$28"},"=+'Schedule IVE (EBS)'!N28",0]
[null,null,null,null,null,null,null,null,null,null,null,null,{"$f":"ADDRESS(32,14,1,1,$M$1)","v":"'Currency Risk'!$N$32"},"='Schedule XXA'!Z30",0,null,null,null,{"$f":"ADDRESS(28,19,1,1,$S$1)","v":"'Geographic Diversification'!$S$28"},"=+'Schedule IVE (EBS)'!O28",0]
[null,null,null,null,null,null,null,null,null,null,null,null,{"$f":"ADDRESS(32,15,1,1,$M$1)","v":"'Currency Risk'!$O$32"},"='Schedule XXA'!AB30",0,null,null,null,{"$f":"ADDRESS(28,20,1,1,$S$1)","v":"'Geographic Diversification'!$T$28"},"=+'Schedule IVE (EBS)'!P28",0]
[null,null,null,null,null,null,null,null,null,null,null,null,{"$f":"ADDRESS(32,16,1,1,$M$1)","v":"'Currency Risk'!$P$32"},"='Schedule XXA'!AD30",0,null,null,null,{"$f":"ADDRESS(28,21,1,1,$S$1)","v":"'Geographic Diversification'!$U$28"},"=+'Schedule IVE (EBS)'!Q28",0]
[null,null,null,null,null,null,null,null,null,null,null,null,{"$f":"ADDRESS(32,17,1,1,$M$1)","v":"'Currency Risk'!$Q$32"},"='Schedule XXA'!AF30",0,null,null,null,{"$f":"ADDRESS(28,22,1,1,$S$1)","v":"'Geographic Diversification'!$V$28"},"=+'Schedule IVE (EBS)'!R28",0]
[null,null,null,null,null,null,null,null,null,null,null,null,{"$f":"ADDRESS(32,18,1,1,$M$1)","v":"'Currency Risk'!$R$32"},"=IF('Schedule XXA'!AH30=0,Q32,'Schedule XXA'!AH30)",0,null,null,null,{"$f":"ADDRESS(28,23,1,1,$S$1)","v":"'Geographic Diversification'!$W$28"},"=+'Schedule IVE (EBS)'!S28",0]
[null,null,null,null,null,null,null,null,null,null,null,null,{"$f":"ADDRESS(32,20,1,1,$M$1)","v":"'Currency Risk'!$T$32"},"=(C32-L32)+(D32-M32)+(F32-O32)+MAX(E32-N32,0)+MAX(G32-P32,0)",0,null,null,null,{"$f":"ADDRESS(28,24,1,1,$S$1)","v":"'Geographic Diversification'!$X$28"},"=+'Schedule IVE (EBS)'!T28",0]
[null,null,null,null,null,null,null,null,null,null,null,null,{"$f":"ADDRESS(32,21,1,1,$M$1)","v":"'Currency Risk'!$U$32"},"=Q32-$H32",0,null,null,null,{"$f":"ADDRESS(28,25,1,1,$S$1)","v":"'Geographic Diversification'!$Y$28"},"=+'Schedule IVE (EBS)'!U28",0]
[null,null,null,null,null,null,null,null,null,null,null,null,{"$f":"ADDRESS(32,22,1,1,$M$1)","v":"'Currency Risk'!$V$32"},"=R32-$H32",0,null,null,null,{"$f":"ADDRESS(28,26,1,1,$S$1)","v":"'Geographic Diversification'!$Z$28"},"=+'Schedule IVE (EBS)'!V28",0]
[null,null,null,null,null,null,null,null,null,null,null,null,{"$f":"ADDRESS(32,24,1,1,$M$1)","v":"'Currency Risk'!$X$32"},"=MAX(0,$T32+U32+(J32*I32))",0,null,null,null,{"$f":"ADDRESS(29,4,1,1,$S$1)","v":"'Geographic Diversification'!$D$29"},"=SUM(I29:Z29)",0]
[null,null,null,null,null,null,null,null,null,null,null,null,{"$f":"ADDRESS(32,25,1,1,$M$1)","v":"'Currency Risk'!$Y$32"},"=MAX(0,$T32+V32+(J32*I32))",0,null,null,null,{"$f":"ADDRESS(29,5,1,1,$S$1)","v":"'Geographic Diversification'!$E$29"},"=SUMSQ(I29:Z29)",0]
[null,null,null,null,null,null,null,null,null,null,null,null,{"$f":"ADDRESS(33,2,1,1,$M$1)","v":"'Currency Risk'!$B$33"},"='Schedule XXA'!B31",0,null,null,null,{"$f":"ADDRESS(29,6,1,1,$S$1)","v":"'Geographic Diversification'!$F$29"},"=(IF(D29>0,E29/D29^2,1))",0]
[null,null,null,null,null,null,null,null,null,null,null,null,{"$f":"ADDRESS(33,3,1,1,$M$1)","v":"'Currency Risk'!$C$33"},"='Schedule XXA'!D31",0,null,null,null,{"$f":"ADDRESS(29,7,1,1,$S$1)","v":"'Geographic Diversification'!$G$29"},"=D29*(0.75+0.25*F29)",0]
[null,null,null,null,null,null,null,null,null,null,null,null,{"$f":"ADDRESS(33,4,1,1,$M$1)","v":"'Currency Risk'!$D$33"},"='Schedule XXA'!F31",0,null,null,null,{"$f":"ADDRESS(29,8,1,1,$S$1)","v":"'Geographic Diversification'!$H$29"},"=IF('Schedule IVE (EBS)'!AB29=\"True\",G29,'Schedule IVD (EBS)'!O29)",0]
[null,null,null,null,null,null,null,null,null,null,null,null,{"$f":"ADDRESS(33,5,1,1,$M$1)","v":"'Currency Risk'!$E$33"},"='Schedule XXA'!H31",0,null,null,null,{"$f":"ADDRESS(29,9,1,1,$S$1)","v":"'Geographic Diversification'!$I$29"},"=+'Schedule IVE (EBS)'!E29",0]
[null,null,null,null,null,null,null,null,null,null,null,null,{"$f":"ADDRESS(33,6,1,1,$M$1)","v":"'Currency Risk'!$F$33"},"='Schedule XXA'!J31",0,null,null,null,{"$f":"ADDRESS(29,10,1,1,$S$1)","v":"'Geographic Diversification'!$J$29"},"=+'Schedule IVE (EBS)'!F29",0]
[null,null,null,null,null,null,null,null,null,null,null,null,{"$f":"ADDRESS(33,7,1,1,$M$1)","v":"'Currency Risk'!$G$33"},"='Schedule XXA'!L31",0,null,null,null,{"$f":"ADDRESS(29,11,1,1,$S$1)","v":"'Geographic Diversification'!$K$29"},"=+'Schedule IVE (EBS)'!G29",0]
[null,null,null,null,null,null,null,null,null,null,null,null,{"$f":"ADDRESS(33,8,1,1,$M$1)","v":"'Currency Risk'!$H$33"},"='Schedule XXA'!N31",0,null,null,null,{"$f":"ADDRESS(29,12,1,1,$S$1)","v":"'Geographic Diversification'!$L$29"},"=+'Schedule IVE (EBS)'!H29",0]
[null,null,null,null,null,null,null,null,null,null,null,null,{"$f":"ADDRESS(33,9,1,1,$M$1)","v":"'Currency Risk'!$I$33"},"=$I$10*H33",0,null,null,null,{"$f":"ADDRESS(29,13,1,1,$S$1)","v":"'Geographic Diversification'!$M$29"},"=+'Schedule IVE (EBS)'!I29",0]
[null,null,null,null,null,null,null,null,null,null,null,null,{"$f":"ADDRESS(33,10,1,1,$M$1)","v":"'Currency Risk'!$J$33"},"=IF((SUM(C33:G33))>(H33+I33),0%,25%)",0,null,null,null,{"$f":"ADDRESS(29,14,1,1,$S$1)","v":"'Geographic Diversification'!$N$29"},"=+'Schedule IVE (EBS)'!J29",0]
[null,null,null,null,null,null,null,null,null,null,null,null,{"$f":"ADDRESS(33,12,1,1,$M$1)","v":"'Currency Risk'!$L$33"},"='Schedule XXA'!V31",0,null,null,null,{"$f":"ADDRESS(29,15,1,1,$S$1)","v":"'Geographic Diversification'!$O$29"},"=+'Schedule IVE (EBS)'!K29",0]
[null,null,null,null,null,null,null,null,null,null,null,null,{"$f":"ADDRESS(33,13,1,1,$M$1)","v":"'Currency Risk'!$M$33"},"='Schedule XXA'!X31",0,null,null,null,{"$f":"ADDRESS(29,16,1,1,$S$1)","v":"'Geographic Diversification'!$P$29"},"=+'Schedule IVE (EBS)'!L29",0]
[null,null,null,null,null,null,null,null,null,null,null,null,{"$f":"ADDRESS(33,14,1,1,$M$1)","v":"'Currency Risk'!$N$33"},"='Schedule XXA'!Z31",0,null,null,null,{"$f":"ADDRESS(29,17,1,1,$S$1)","v":"'Geographic Diversification'!$Q$29"},"=+'Schedule IVE (EBS)'!M29",0]
[null,null,null,null,null,null,null,null,null,null,null,null,{"$f":"ADDRESS(33,15,1,1,$M$1)","v":"'Currency Risk'!$O$33"},"='Schedule XXA'!AB31",0,null,null,null,{"$f":"ADDRESS(29,18,1,1,$S$1)","v":"'Geographic Diversification'!$R$29"},"=+'Schedule IVE (EBS)'!N29",0]
[null,null,null,null,null,null,null,null,null,null,null,null,{"$f":"ADDRESS(33,16,1,1,$M$1)","v":"'Currency Risk'!$P$33"},"='Schedule XXA'!AD31",0,null,null,null,{"$f":"ADDRESS(29,19,1,1,$S$1)","v":"'Geographic Diversification'!$S$29"},"=+'Schedule IVE (EBS)'!O29",0]
[null,null,null,null,null,null,null,null,null,null,null,null,{"$f":"ADDRESS(33,17,1,1,$M$1)","v":"'Currency Risk'!$Q$33"},"='Schedule XXA'!AF31",0,null,null,null,{"$f":"ADDRESS(29,20,1,1,$S$1)","v":"'Geographic Diversification'!$T$29"},"=+'Schedule IVE (EBS)'!P29",0]
[null,null,null,null,null,null,null,null,null,null,null,null,{"$f":"ADDRESS(33,18,1,1,$M$1)","v":"'Currency Risk'!$R$33"},"=IF('Schedule XXA'!AH31=0,Q33,'Schedule XXA'!AH31)",0,null,null,null,{"$f":"ADDRESS(29,21,1,1,$S$1)","v":"'Geographic Diversification'!$U$29"},"=+'Schedule IVE (EBS)'!Q29",0]
[null,null,null,null,null,null,null,null,null,null,null,null,{"$f":"ADDRESS(33,20,1,1,$M$1)","v":"'Currency Risk'!$T$33"},"=(C33-L33)+(D33-M33)+(F33-O33)+MAX(E33-N33,0)+MAX(G33-P33,0)",{"$f":"IF(_xlfn.FORMULATEXT(INDIRECT(M485))=N485,0,1)","v":0},null,null,null,{"$f":"ADDRESS(29,22,1,1,$S$1)","v":"'Geographic Diversification'!$V$29"},"=+'Schedule IVE (EBS)'!R29",0]
[null,null,null,null,null,null,null,null,null,null,null,null,{"$f":"ADDRESS(33,21,1,1,$M$1)","v":"'Currency Risk'!$U$33"},"=Q33-$H33",0,null,null,null,{"$f":"ADDRESS(29,23,1,1,$S$1)","v":"'Geographic Diversification'!$W$29"},"=+'Schedule IVE (EBS)'!S29",0]
[null,null,null,null,null,null,null,null,null,null,null,null,{"$f":"ADDRESS(33,22,1,1,$M$1)","v":"'Currency Risk'!$V$33"},"=R33-$H33",0,null,null,null,{"$f":"ADDRESS(29,24,1,1,$S$1)","v":"'Geographic Diversification'!$X$29"},"=+'Schedule IVE (EBS)'!T29",0]
[null,null,null,null,null,null,null,null,null,null,null,null,{"$f":"ADDRESS(33,24,1,1,$M$1)","v":"'Currency Risk'!$X$33"},"=MAX(0,$T33+U33+(J33*I33))",0,null,null,null,{"$f":"ADDRESS(29,25,1,1,$S$1)","v":"'Geographic Diversification'!$Y$29"},"=+'Schedule IVE (EBS)'!U29",0]
[null,null,null,null,null,null,null,null,null,null,null,null,{"$f":"ADDRESS(33,25,1,1,$M$1)","v":"'Currency Risk'!$Y$33"},"=MAX(0,$T33+V33+(J33*I33))",0,null,null,null,{"$f":"ADDRESS(29,26,1,1,$S$1)","v":"'Geographic Diversification'!$Z$29"},"=+'Schedule IVE (EBS)'!V29",0]
[null,null,null,null,null,null,null,null,null,null,null,null,{"$f":"ADDRESS(34,2,1,1,$M$1)","v":"'Currency Risk'!$B$34"},"='Schedule XXA'!B32",0,null,null,null,{"$f":"ADDRESS(30,4,1,1,$S$1)","v":"'Geographic Diversification'!$D$30"},"=SUM(I30:Z30)",0]
[null,null,null,null,null,null,null,null,null,null,null,null,{"$f":"ADDRESS(34,3,1,1,$M$1)","v":"'Currency Risk'!$C$34"},"='Schedule XXA'!D32",0,null,null,null,{"$f":"ADDRESS(30,5,1,1,$S$1)","v":"'Geographic Diversification'!$E$30"},"=SUMSQ(I30:Z30)",0]
[null,null,null,null,null,null,null,null,null,null,null,null,{"$f":"ADDRESS(34,4,1,1,$M$1)","v":"'Currency Risk'!$D$34"},"='Schedule XXA'!F32",0,null,null,null,{"$f":"ADDRESS(30,6,1,1,$S$1)","v":"'Geographic Diversification'!$F$30"},"=(IF(D30>0,E30/D30^2,1))",0]
[null,null,null,null,null,null,null,null,null,null,null,null,{"$f":"ADDRESS(34,5,1,1,$M$1)","v":"'Currency Risk'!$E$34"},"='Schedule XXA'!H32",0,null,null,null,{"$f":"ADDRESS(30,7,1,1,$S$1)","v":"'Geographic Diversification'!$G$30"},"=D30*(0.75+0.25*F30)",0]
[null,null,null,null,null,null,null,null,null,null,null,null,{"$f":"ADDRESS(34,6,1,1,$M$1)","v":"'Currency Risk'!$F$34"},"='Schedule XXA'!J32",0,null,null,null,{"$f":"ADDRESS(30,8,1,1,$S$1)","v":"'Geographic Diversification'!$H$30"},"=IF('Schedule IVE (EBS)'!AB30=\"True\",G30,'Schedule IVD (EBS)'!O30)",0]
[null,null,null,null,null,null,null,null,null,null,null,null,{"$f":"ADDRESS(34,7,1,1,$M$1)","v":"'Currency Risk'!$G$34"},"='Schedule XXA'!L32",0,null,null,null,{"$f":"ADDRESS(30,9,1,1,$S$1)","v":"'Geographic Diversification'!$I$30"},"=+'Schedule IVE (EBS)'!E30",0]
[null,null,null,null,null,null,null,null,null,null,null,null,{"$f":"ADDRESS(34,8,1,1,$M$1)","v":"'Currency Risk'!$H$34"},"='Schedule XXA'!N32",0,null,null,null,{"$f":"ADDRESS(30,10,1,1,$S$1)","v":"'Geographic Diversification'!$J$30"},"=+'Schedule IVE (EBS)'!F30",0]
[null,null,null,null,null,null,null,null,null,null,null,null,{"$f":"ADDRESS(34,9,1,1,$M$1)","v":"'Currency Risk'!$I$34"},"=$I$10*H34",0,null,null,null,{"$f":"ADDRESS(30,11,1,1,$S$1)","v":"'Geographic Diversification'!$K$30"},"=+'Schedule IVE (EBS)'!G30",0]
[null,null,null,null,null,null,null,null,null,null,null,null,{"$f":"ADDRESS(34,10,1,1,$M$1)","v":"'Currency Risk'!$J$34"},"=IF((SUM(C34:G34))>(H34+I34),0%,25%)",0,null,null,null,{"$f":"ADDRESS(30,12,1,1,$S$1)","v":"'Geographic Diversification'!$L$30"},"=+'Schedule IVE (EBS)'!H30",0]
[null,null,null,null,null,null,null,null,null,null,null,null,{"$f":"ADDRESS(34,12,1,1,$M$1)","v":"'Currency Risk'!$L$34"},"='Schedule XXA'!V32",0,null,null,null,{"$f":"ADDRESS(30,13,1,1,$S$1)","v":"'Geographic Diversification'!$M$30"},"=+'Schedule IVE (EBS)'!I30",0]
[null,null,null,null,null,null,null,null,null,null,null,null,{"$f":"ADDRESS(34,13,1,1,$M$1)","v":"'Currency Risk'!$M$34"},"='Schedule XXA'!X32",0,null,null,null,{"$f":"ADDRESS(30,14,1,1,$S$1)","v":"'Geographic Diversification'!$N$30"},"=+'Schedule IVE (EBS)'!J30",0]
[null,null,null,null,null,null,null,null,null,null,null,null,{"$f":"ADDRESS(34,14,1,1,$M$1)","v":"'Currency Risk'!$N$34"},"='Schedule XXA'!Z32",0,null,null,null,{"$f":"ADDRESS(30,15,1,1,$S$1)","v":"'Geographic Diversification'!$O$30"},"=+'Schedule IVE (EBS)'!K30",0]
[null,null,null,null,null,null,null,null,null,null,null,null,{"$f":"ADDRESS(34,15,1,1,$M$1)","v":"'Currency Risk'!$O$34"},"='Schedule XXA'!AB32",0,null,null,null,{"$f":"ADDRESS(30,16,1,1,$S$1)","v":"'Geographic Diversification'!$P$30"},"=+'Schedule IVE (EBS)'!L30",0]
[null,null,null,null,null,null,null,null,null,null,null,null,{"$f":"ADDRESS(34,16,1,1,$M$1)","v":"'Currency Risk'!$P$34"},"='Schedule XXA'!AD32",0,null,null,null,{"$f":"ADDRESS(30,17,1,1,$S$1)","v":"'Geographic Diversification'!$Q$30"},"=+'Schedule IVE (EBS)'!M30",0]
[null,null,null,null,null,null,null,null,null,null,null,null,{"$f":"ADDRESS(34,17,1,1,$M$1)","v":"'Currency Risk'!$Q$34"},"='Schedule XXA'!AF32",0,null,null,null,{"$f":"ADDRESS(30,18,1,1,$S$1)","v":"'Geographic Diversification'!$R$30"},"=+'Schedule IVE (EBS)'!N30",0]
[null,null,null,null,null,null,null,null,null,null,null,null,{"$f":"ADDRESS(34,18,1,1,$M$1)","v":"'Currency Risk'!$R$34"},"=IF('Schedule XXA'!AH32=0,Q34,'Schedule XXA'!AH32)",0,null,null,null,{"$f":"ADDRESS(30,19,1,1,$S$1)","v":"'Geographic Diversification'!$S$30"},"=+'Schedule IVE (EBS)'!O30",0]
[null,null,null,null,null,null,null,null,null,null,null,null,{"$f":"ADDRESS(34,20,1,1,$M$1)","v":"'Currency Risk'!$T$34"},"=(C34-L34)+(D34-M34)+(F34-O34)+MAX(E34-N34,0)+MAX(G34-P34,0)",0,null,null,null,{"$f":"ADDRESS(30,20,1,1,$S$1)","v":"'Geographic Diversification'!$T$30"},"=+'Schedule IVE (EBS)'!P30",0]
[null,null,null,null,null,null,null,null,null,null,null,null,{"$f":"ADDRESS(34,21,1,1,$M$1)","v":"'Currency Risk'!$U$34"},"=Q34-$H34",0,null,null,null,{"$f":"ADDRESS(30,21,1,1,$S$1)","v":"'Geographic Diversification'!$U$30"},"=+'Schedule IVE (EBS)'!Q30",0]
[null,null,null,null,null,null,null,null,null,null,null,null,{"$f":"ADDRESS(34,22,1,1,$M$1)","v":"'Currency Risk'!$V$34"},"=R34-$H34",0,null,null,null,{"$f":"ADDRESS(30,22,1,1,$S$1)","v":"'Geographic Diversification'!$V$30"},"=+'Schedule IVE (EBS)'!R30",0]
[null,null,null,null,null,null,null,null,null,null,null,null,{"$f":"ADDRESS(34,24,1,1,$M$1)","v":"'Currency Risk'!$X$34"},"=MAX(0,$T34+U34+(J34*I34))",0,null,null,null,{"$f":"ADDRESS(30,23,1,1,$S$1)","v":"'Geographic Diversification'!$W$30"},"=+'Schedule IVE (EBS)'!S30",0]
[null,null,null,null,null,null,null,null,null,null,null,null,{"$f":"ADDRESS(34,25,1,1,$M$1)","v":"'Currency Risk'!$Y$34"},"=MAX(0,$T34+V34+(J34*I34))",0,null,null,null,{"$f":"ADDRESS(30,24,1,1,$S$1)","v":"'Geographic Diversification'!$X$30"},"=+'Schedule IVE (EBS)'!T30",0]
[null,null,null,null,null,null,null,null,null,null,null,null,{"$f":"ADDRESS(35,3,1,1,$M$1)","v":"'Currency Risk'!$C$35"},"=SUM(C12:C34)",0,null,null,null,{"$f":"ADDRESS(30,25,1,1,$S$1)","v":"'Geographic Diversification'!$Y$30"},"=+'Schedule IVE (EBS)'!U30",0]
[null,null,null,null,null,null,null,null,null,null,null,null,{"$f":"ADDRESS(35,4,1,1,$M$1)","v":"'Currency Risk'!$D$35"},"=SUM(D12:D34)",0,null,null,null,{"$f":"ADDRESS(30,26,1,1,$S$1)","v":"'Geographic Diversification'!$Z$30"},"=+'Schedule IVE (EBS)'!V30",0]
[null,null,null,null,null,null,null,null,null,null,null,null,{"$f":"ADDRESS(35,5,1,1,$M$1)","v":"'Currency Risk'!$E$35"},"=SUM(E12:E34)",0,null,null,null,{"$f":"ADDRESS(31,4,1,1,$S$1)","v":"'Geographic Diversification'!$D$31"},"=SUM(I31:Z31)",0]
[null,null,null,null,null,null,null,null,null,null,null,null,{"$f":"ADDRESS(35,6,1,1,$M$1)","v":"'Currency Risk'!$F$35"},"=SUM(F12:F34)",0,null,null,null,{"$f":"ADDRESS(31,5,1,1,$S$1)","v":"'Geographic Diversification'!$E$31"},"=SUMSQ(I31:Z31)",0]
[null,null,null,null,null,null,null,null,null,null,null,null,{"$f":"ADDRESS(35,7,1,1,$M$1)","v":"'Currency Risk'!$G$35"},"=SUM(G12:G34)",0,null,null,null,{"$f":"ADDRESS(31,6,1,1,$S$1)","v":"'Geographic Diversification'!$F$31"},"=(IF(D31>0,E31/D31^2,1))",0]
[null,null,null,null,null,null,null,null,null,null,null,null,{"$f":"ADDRESS(35,8,1,1,$M$1)","v":"'Currency Risk'!$H$35"},"=SUM(H12:H34)",0,null,null,null,{"$f":"ADDRESS(31,7,1,1,$S$1)","v":"'Geographic Diversification'!$G$31"},"=D31*(0.75+0.25*F31)",{"$f":"IF(_xlfn.FORMULATEXT(INDIRECT(S516))=T516,0,1)","v":0}]
[null,null,null,null,null,null,null,null,null,null,null,null,{"$f":"ADDRESS(35,12,1,1,$M$1)","v":"'Currency Risk'!$L$35"},"=SUM(L12:L34)",0,null,null,null,{"$f":"ADDRESS(31,8,1,1,$S$1)","v":"'Geographic Diversification'!$H$31"},"=IF('Schedule IVE (EBS)'!AB31=\"True\",G31,'Schedule IVD (EBS)'!O31)",0]
[null,null,null,null,null,null,null,null,null,null,null,null,{"$f":"ADDRESS(35,13,1,1,$M$1)","v":"'Currency Risk'!$M$35"},"=SUM(M12:M34)",0,null,null,null,{"$f":"ADDRESS(31,9,1,1,$S$1)","v":"'Geographic Diversification'!$I$31"},"=+'Schedule IVE (EBS)'!E31",0]
[null,null,null,null,null,null,null,null,null,null,null,null,{"$f":"ADDRESS(35,14,1,1,$M$1)","v":"'Currency Risk'!$N$35"},"=SUM(N12:N34)",0,null,null,null,{"$f":"ADDRESS(31,10,1,1,$S$1)","v":"'Geographic Diversification'!$J$31"},"=+'Schedule IVE (EBS)'!F31",0]
[null,null,null,null,null,null,null,null,null,null,null,null,{"$f":"ADDRESS(35,15,1,1,$M$1)","v":"'Currency Risk'!$O$35"},"=SUM(O12:O34)",0,null,null,null,{"$f":"ADDRESS(31,11,1,1,$S$1)","v":"'Geographic Diversification'!$K$31"},"=+'Schedule IVE (EBS)'!G31",0]
[null,null,null,null,null,null,null,null,null,null,null,null,{"$f":"ADDRESS(35,16,1,1,$M$1)","v":"'Currency Risk'!$P$35"},"=SUM(P12:P34)",0,null,null,null,{"$f":"ADDRESS(31,12,1,1,$S$1)","v":"'Geographic Diversification'!$L$31"},"=+'Schedule IVE (EBS)'!H31",0]
[null,null,null,null,null,null,null,null,null,null,null,null,{"$f":"ADDRESS(35,17,1,1,$M$1)","v":"'Currency Risk'!$Q$35"},"=SUM(Q12:Q34)",0,null,null,null,{"$f":"ADDRESS(31,13,1,1,$S$1)","v":"'Geographic Diversification'!$M$31"},"=+'Schedule IVE (EBS)'!I31",0]
[null,null,null,null,null,null,null,null,null,null,null,null,{"$f":"ADDRESS(35,18,1,1,$M$1)","v":"'Currency Risk'!$R$35"},"=SUM(R12:R34)",0,null,null,null,{"$f":"ADDRESS(31,14,1,1,$S$1)","v":"'Geographic Diversification'!$N$31"},"=+'Schedule IVE (EBS)'!J31",0]
[null,null,null,null,null,null,null,null,null,null,null,null,{"$f":"ADDRESS(35,20,1,1,$M$1)","v":"'Currency Risk'!$T$35"},"=SUM(T12:T34)",0,null,null,null,{"$f":"ADDRESS(31,15,1,1,$S$1)","v":"'Geographic Diversification'!$O$31"},"=+'Schedule IVE (EBS)'!K31",0]
[null,null,null,null,null,null,null,null,null,null,null,null,{"$f":"ADDRESS(35,21,1,1,$M$1)","v":"'Currency Risk'!$U$35"},"=SUM(U12:U34)",0,null,null,null,{"$f":"ADDRESS(31,16,1,1,$S$1)","v":"'Geographic Diversification'!$P$31"},"=+'Schedule IVE (EBS)'!L31",0]
[null,null,null,null,null,null,null,null,null,null,null,null,{"$f":"ADDRESS(35,22,1,1,$M$1)","v":"'Currency Risk'!$V$35"},"=SUM(V12:V34)",0,null,null,null,{"$f":"ADDRESS(31,17,1,1,$S$1)","v":"'Geographic Diversification'!$Q$31"},"=+'Schedule IVE (EBS)'!M31",0]
[null,null,null,null,null,null,null,null,null,null,null,null,{"$f":"ADDRESS(35,24,1,1,$M$1)","v":"'Currency Risk'!$X$35"},"=SUM(X12:X34)",0,null,null,null,{"$f":"ADDRESS(31,18,1,1,$S$1)","v":"'Geographic Diversification'!$R$31"},"=+'Schedule IVE (EBS)'!N31",0]
[null,null,null,null,null,null,null,null,null,null,null,null,{"$f":"ADDRESS(35,25,1,1,$M$1)","v":"'Currency Risk'!$Y$35"},"=SUM(Y12:Y34)",0,null,null,null,{"$f":"ADDRESS(31,19,1,1,$S$1)","v":"'Geographic Diversification'!$S$31"},"=+'Schedule IVE (EBS)'!O31",0]
[null,null,null,null,null,null,null,null,null,null,null,null,{"$f":"ADDRESS(36,3,1,1,$M$1)","v":"'Currency Risk'!$C$36"},"='Schedule XXA'!D36",0,null,null,null,{"$f":"ADDRESS(31,20,1,1,$S$1)","v":"'Geographic Diversification'!$T$31"},"=+'Schedule IVE (EBS)'!P31",0]
[null,null,null,null,null,null,null,null,null,null,null,null,{"$f":"ADDRESS(36,8,1,1,$M$1)","v":"'Currency Risk'!$H$36"},"='Schedule XXA'!N36",0,null,null,null,{"$f":"ADDRESS(31,21,1,1,$S$1)","v":"'Geographic Diversification'!$U$31"},"=+'Schedule IVE (EBS)'!Q31",0]
[null,null,null,null,null,null,null,null,null,null,null,null,{"$f":"ADDRESS(37,3,1,1,$M$1)","v":"'Currency Risk'!$C$37"},"=IF(C35=0,0,(C35+E35)/C36)",0,null,null,null,{"$f":"ADDRESS(31,22,1,1,$S$1)","v":"'Geographic Diversification'!$V$31"},"=+'Schedule IVE (EBS)'!R31",0]
[null,null,null,null,null,null,null,null,null,null,null,null,{"$f":"ADDRESS(37,8,1,1,$M$1)","v":"'Currency Risk'!$H$37"},"=IF(H35=0,0,H35/H36)",0,null,null,null,{"$f":"ADDRESS(31,23,1,1,$S$1)","v":"'Geographic Diversification'!$W$31"},"=+'Schedule IVE (EBS)'!S31",0]
[null,null,null,null,null,null,null,null,null,null,null,null,{"$f":"ADDRESS(39,24,1,1,$M$1)","v":"'Currency Risk'!$X$39"},"=IF(SUM(X12:X34)>=0,SUM(X12:X34),0)",0,null,null,null,{"$f":"ADDRESS(31,24,1,1,$S$1)","v":"'Geographic Diversification'!$X$31"},"=+'Schedule IVE (EBS)'!T31",0]
[null,null,null,null,null,null,null,null,null,null,null,null,{"$f":"ADDRESS(39,25,1,1,$M$1)","v":"'Currency Risk'!$Y$39"},"=IF(SUM(Y12:Y34)>=0,SUM(Y12:Y34),0)",0,null,null,null,{"$f":"ADDRESS(31,25,1,1,$S$1)","v":"'Geographic Diversification'!$Y$31"},"=+'Schedule IVE (EBS)'!U31",0]
[null,null,null,null,null,null,null,null,null,null,null,null,null,null,-535,null,null,null,{"$f":"ADDRESS(31,26,1,1,$S$1)","v":"'Geographic Diversification'!$Z$31"},"=+'Schedule IVE (EBS)'!V31",0]
[null,null,null,null,null,null,null,null,null,null,null,null,null,null,null,null,null,null,{"$f":"ADDRESS(32,4,1,1,$S$1)","v":"'Geographic Diversification'!$D$32"},"=SUM(I32:Z32)",0]
[null,null,null,null,null,null,null,null,null,null,null,null,null,null,null,null,null,null,{"$f":"ADDRESS(32,5,1,1,$S$1)","v":"'Geographic Diversification'!$E$32"},"=SUMSQ(I32:Z32)",0]
[null,null,null,null,null,null,null,null,null,null,null,null,null,null,null,null,null,null,{"$f":"ADDRESS(32,6,1,1,$S$1)","v":"'Geographic Diversification'!$F$32"},"=(IF(D32>0,E32/D32^2,1))",0]
[null,null,null,null,null,null,null,null,null,null,null,null,null,null,null,null,null,null,{"$f":"ADDRESS(32,7,1,1,$S$1)","v":"'Geographic Diversification'!$G$32"},"=D32*(0.75+0.25*F32)",0]
[null,null,null,null,null,null,null,null,null,null,null,null,null,null,null,null,null,null,{"$f":"ADDRESS(32,8,1,1,$S$1)","v":"'Geographic Diversification'!$H$32"},"=IF('Schedule IVE (EBS)'!AB32=\"True\",G32,'Schedule IVD (EBS)'!O32)",0]
[null,null,null,null,null,null,null,null,null,null,null,null,null,null,null,null,null,null,{"$f":"ADDRESS(32,9,1,1,$S$1)","v":"'Geographic Diversification'!$I$32"},"=+'Schedule IVE (EBS)'!E32",0]
[null,null,null,null,null,null,null,null,null,null,null,null,null,null,null,null,null,null,{"$f":"ADDRESS(32,10,1,1,$S$1)","v":"'Geographic Diversification'!$J$32"},"=+'Schedule IVE (EBS)'!F32",0]
[null,null,null,null,null,null,null,null,null,null,null,null,null,null,null,null,null,null,{"$f":"ADDRESS(32,11,1,1,$S$1)","v":"'Geographic Diversification'!$K$32"},"=+'Schedule IVE (EBS)'!G32",0]
[null,null,null,null,null,null,null,null,null,null,null,null,null,null,null,null,null,null,{"$f":"ADDRESS(32,12,1,1,$S$1)","v":"'Geographic Diversification'!$L$32"},"=+'Schedule IVE (EBS)'!H32",0]
[null,null,null,null,null,null,null,null,null,null,null,null,null,null,null,null,null,null,{"$f":"ADDRESS(32,13,1,1,$S$1)","v":"'Geographic Diversification'!$M$32"},"=+'Schedule IVE (EBS)'!I32",0]
[null,null,null,null,null,null,null,null,null,null,null,null,null,null,null,null,null,null,{"$f":"ADDRESS(32,14,1,1,$S$1)","v":"'Geographic Diversification'!$N$32"},"=+'Schedule IVE (EBS)'!J32",0]
[null,null,null,null,null,null,null,null,null,null,null,null,null,null,null,null,null,null,{"$f":"ADDRESS(32,15,1,1,$S$1)","v":"'Geographic Diversification'!$O$32"},"=+'Schedule IVE (EBS)'!K32",0]
[null,null,null,null,null,null,null,null,null,null,null,null,null,null,null,null,null,null,{"$f":"ADDRESS(32,16,1,1,$S$1)","v":"'Geographic Diversification'!$P$32"},"=+'Schedule IVE (EBS)'!L32",0]
[null,null,null,null,null,null,null,null,null,null,null,null,null,null,null,null,null,null,{"$f":"ADDRESS(32,17,1,1,$S$1)","v":"'Geographic Diversification'!$Q$32"},"=+'Schedule IVE (EBS)'!M32",0]
[null,null,null,null,null,null,null,null,null,null,null,null,null,null,null,null,null,null,{"$f":"ADDRESS(32,18,1,1,$S$1)","v":"'Geographic Diversification'!$R$32"},"=+'Schedule IVE (EBS)'!N32",0]
[null,null,null,null,null,null,null,null,null,null,null,null,null,null,null,null,null,null,{"$f":"ADDRESS(32,19,1,1,$S$1)","v":"'Geographic Diversification'!$S$32"},"=+'Schedule IVE (EBS)'!O32",0]
[null,null,null,null,null,null,null,null,null,null,null,null,null,null,null,null,null,null,{"$f":"ADDRESS(32,20,1,1,$S$1)","v":"'Geographic Diversification'!$T$32"},"=+'Schedule IVE (EBS)'!P32",0]
[null,null,null,null,null,null,null,null,null,null,null,null,null,null,null,null,null,null,{"$f":"ADDRESS(32,21,1,1,$S$1)","v":"'Geographic Diversification'!$U$32"},"=+'Schedule IVE (EBS)'!Q32",0]
[null,null,null,null,null,null,null,null,null,null,null,null,null,null,null,null,null,null,{"$f":"ADDRESS(32,22,1,1,$S$1)","v":"'Geographic Diversification'!$V$32"},"=+'Schedule IVE (EBS)'!R32",0]
[null,null,null,null,null,null,null,null,null,null,null,null,null,null,null,null,null,null,{"$f":"ADDRESS(32,23,1,1,$S$1)","v":"'Geographic Diversification'!$W$32"},"=+'Schedule IVE (EBS)'!S32",0]
[null,null,null,null,null,null,null,null,null,null,null,null,null,null,null,null,null,null,{"$f":"ADDRESS(32,24,1,1,$S$1)","v":"'Geographic Diversification'!$X$32"},"=+'Schedule IVE (EBS)'!T32",0]
[null,null,null,null,null,null,null,null,null,null,null,null,null,null,null,null,null,null,{"$f":"ADDRESS(32,25,1,1,$S$1)","v":"'Geographic Diversification'!$Y$32"},"=+'Schedule IVE (EBS)'!U32",0]
[null,null,null,null,null,null,null,null,null,null,null,null,null,null,null,null,null,null,{"$f":"ADDRESS(32,26,1,1,$S$1)","v":"'Geographic Diversification'!$Z$32"},"=+'Schedule IVE (EBS)'!V32",0]
[null,null,null,null,null,null,null,null,null,null,null,null,null,null,null,null,null,null,{"$f":"ADDRESS(34,4,1,1,$S$1)","v":"'Geographic Diversification'!$D$34"},"=SUM(D9:D32)",0]
[null,null,null,null,null,null,null,null,null,null,null,null,null,null,null,null,null,null,{"$f":"ADDRESS(34,5,1,1,$S$1)","v":"'Geographic Diversification'!$E$34"},"=SUM(E9:E32)",0]
[null,null,null,null,null,null,null,null,null,null,null,null,null,null,null,null,null,null,{"$f":"ADDRESS(34,7,1,1,$S$1)","v":"'Geographic Diversification'!$G$34"},"=SUM(G9:G32)",0]
[null,null,null,null,null,null,null,null,null,null,null,null,null,null,null,null,null,null,{"$f":"ADDRESS(34,8,1,1,$S$1)","v":"'Geographic Diversification'!$H$34"},"=SUM(H9:H32)",0]
[null,null,null,null,null,null,null,null,null,null,null,null,null,null,null,null,null,null,{"$f":"ADDRESS(34,9,1,1,$S$1)","v":"'Geographic Diversification'!$I$34"},"=SUM(I9:I32)",0]
[null,null,null,null,null,null,null,null,null,null,null,null,null,null,null,null,null,null,{"$f":"ADDRESS(34,10,1,1,$S$1)","v":"'Geographic Diversification'!$J$34"},"=SUM(J9:J32)",0]
[null,null,null,null,null,null,null,null,null,null,null,null,null,null,null,null,null,null,{"$f":"ADDRESS(34,11,1,1,$S$1)","v":"'Geographic Diversification'!$K$34"},"=SUM(K9:K32)",0]
[null,null,null,null,null,null,null,null,null,null,null,null,null,null,null,null,null,null,{"$f":"ADDRESS(34,12,1,1,$S$1)","v":"'Geographic Diversification'!$L$34"},"=SUM(L9:L32)",0]
[null,null,null,null,null,null,null,null,null,null,null,null,null,null,null,null,null,null,{"$f":"ADDRESS(34,13,1,1,$S$1)","v":"'Geographic Diversification'!$M$34"},"=SUM(M9:M32)",0]
[null,null,null,null,null,null,null,null,null,null,null,null,null,null,null,null,null,null,{"$f":"ADDRESS(34,14,1,1,$S$1)","v":"'Geographic Diversification'!$N$34"},"=SUM(N9:N32)",0]
[null,null,null,null,null,null,null,null,null,null,null,null,null,null,null,null,null,null,{"$f":"ADDRESS(34,15,1,1,$S$1)","v":"'Geographic Diversification'!$O$34"},"=SUM(O9:O32)",0]
[null,null,null,null,null,null,null,null,null,null,null,null,null,null,null,null,null,null,{"$f":"ADDRESS(34,16,1,1,$S$1)","v":"'Geographic Diversification'!$P$34"},"=SUM(P9:P32)",0]
[null,null,null,null,null,null,null,null,null,null,null,null,null,null,null,null,null,null,{"$f":"ADDRESS(34,17,1,1,$S$1)","v":"'Geographic Diversification'!$Q$34"},"=SUM(Q9:Q32)",0]
[null,null,null,null,null,null,null,null,null,null,null,null,null,null,null,null,null,null,{"$f":"ADDRESS(34,18,1,1,$S$1)","v":"'Geographic Diversification'!$R$34"},"=SUM(R9:R32)",0]
[null,null,null,null,null,null,null,null,null,null,null,null,null,null,null,null,null,null,{"$f":"ADDRESS(34,19,1,1,$S$1)","v":"'Geographic Diversification'!$S$34"},"=SUM(S9:S32)",0]
[null,null,null,null,null,null,null,null,null,null,null,null,null,null,null,null,null,null,{"$f":"ADDRESS(34,20,1,1,$S$1)","v":"'Geographic Diversification'!$T$34"},"=SUM(T9:T32)",0]
[null,null,null,null,null,null,null,null,null,null,null,null,null,null,null,null,null,null,{"$f":"ADDRESS(34,21,1,1,$S$1)","v":"'Geographic Diversification'!$U$34"},"=SUM(U9:U32)",0]
[null,null,null,null,null,null,null,null,null,null,null,null,null,null,null,null,null,null,{"$f":"ADDRESS(34,22,1,1,$S$1)","v":"'Geographic Diversification'!$V$34"},"=SUM(V9:V32)",0]
[null,null,null,null,null,null,null,null,null,null,null,null,null,null,null,null,null,null,{"$f":"ADDRESS(34,23,1,1,$S$1)","v":"'Geographic Diversification'!$W$34"},"=SUM(W9:W32)",0]
[null,null,null,null,null,null,null,null,null,null,null,null,null,null,null,null,null,null,{"$f":"ADDRESS(34,24,1,1,$S$1)","v":"'Geographic Diversification'!$X$34"},"=SUM(X9:X32)",0]
[null,null,null,null,null,null,null,null,null,null,null,null,null,null,null,null,null,null,{"$f":"ADDRESS(34,25,1,1,$S$1)","v":"'Geographic Diversification'!$Y$34"},"=SUM(Y9:Y32)",0]
[null,null,null,null,null,null,null,null,null,null,null,null,null,null,null,null,null,null,{"$f":"ADDRESS(34,26,1,1,$S$1)","v":"'Geographic Diversification'!$Z$34"},"=SUM(Z9:Z32)",{"$f":"IF(_xlfn.FORMULATEXT(INDIRECT(S580))=T580,0,1)","v":0}]
[null,null,null,null,null,null,null,null,null,null,null,null,null,null,null,null,null,null,{"$f":"ADDRESS(40,4,1,1,$S$1)","v":"'Geographic Diversification'!$D$40"},"=SUM(I40:Z40)",0]
[null,null,null,null,null,null,null,null,null,null,null,null,null,null,null,null,null,null,{"$f":"ADDRESS(40,5,1,1,$S$1)","v":"'Geographic Diversification'!$E$40"},"=SUMSQ(I40:Z40)",0]
[null,null,null,null,null,null,null,null,null,null,null,null,null,null,null,null,null,null,{"$f":"ADDRESS(40,6,1,1,$S$1)","v":"'Geographic Diversification'!$F$40"},"=(IF(D40>0,E40/D40^2,1))",0]
[null,null,null,null,null,null,null,null,null,null,null,null,null,null,null,null,null,null,{"$f":"ADDRESS(40,7,1,1,$S$1)","v":"'Geographic Diversification'!$G$40"},"=D40*(0.75+0.25*F40)",0]
[null,null,null,null,null,null,null,null,null,null,null,null,null,null,null,null,null,null,{"$f":"ADDRESS(40,8,1,1,$S$1)","v":"'Geographic Diversification'!$H$40"},"=IF('Schedule IIIA (EBS)'!AB10=\"TRUE\",G40,'Schedule III (EBS)'!F10)",0]
[null,null,null,null,null,null,null,null,null,null,null,null,null,null,null,null,null,null,{"$f":"ADDRESS(40,9,1,1,$S$1)","v":"'Geographic Diversification'!$I$40"},"='Schedule IIIA (EBS)'!E10",0]
[null,null,null,null,null,null,null,null,null,null,null,null,null,null,null,null,null,null,{"$f":"ADDRESS(40,10,1,1,$S$1)","v":"'Geographic Diversification'!$J$40"},"='Schedule IIIA (EBS)'!F10",0]
[null,null,null,null,null,null,null,null,null,null,null,null,null,null,null,null,null,null,{"$f":"ADDRESS(40,11,1,1,$S$1)","v":"'Geographic Diversification'!$K$40"},"='Schedule IIIA (EBS)'!G10",0]
[null,null,null,null,null,null,null,null,null,null,null,null,null,null,null,null,null,null,{"$f":"ADDRESS(40,12,1,1,$S$1)","v":"'Geographic Diversification'!$L$40"},"='Schedule IIIA (EBS)'!H10",0]
[null,null,null,null,null,null,null,null,null,null,null,null,null,null,null,null,null,null,{"$f":"ADDRESS(40,13,1,1,$S$1)","v":"'Geographic Diversification'!$M$40"},"='Schedule IIIA (EBS)'!I10",0]
[null,null,null,null,null,null,null,null,null,null,null,null,null,null,null,null,null,null,{"$f":"ADDRESS(40,14,1,1,$S$1)","v":"'Geographic Diversification'!$N$40"},"='Schedule IIIA (EBS)'!J10",0]
[null,null,null,null,null,null,null,null,null,null,null,null,null,null,null,null,null,null,{"$f":"ADDRESS(40,15,1,1,$S$1)","v":"'Geographic Diversification'!$O$40"},"='Schedule IIIA (EBS)'!K10",0]
[null,null,null,null,null,null,null,null,null,null,null,null,null,null,null,null,null,null,{"$f":"ADDRESS(40,16,1,1,$S$1)","v":"'Geographic Diversification'!$P$40"},"='Schedule IIIA (EBS)'!L10",0]
[null,null,null,null,null,null,null,null,null,null,null,null,null,null,null,null,null,null,{"$f":"ADDRESS(40,17,1,1,$S$1)","v":"'Geographic Diversification'!$Q$40"},"='Schedule IIIA (EBS)'!M10",0]
[null,null,null,null,null,null,null,null,null,null,null,null,null,null,null,null,null,null,{"$f":"ADDRESS(40,18,1,1,$S$1)","v":"'Geographic Diversification'!$R$40"},"='Schedule IIIA (EBS)'!N10",0]
[null,null,null,null,null,null,null,null,null,null,null,null,null,null,null,null,null,null,{"$f":"ADDRESS(40,19,1,1,$S$1)","v":"'Geographic Diversification'!$S$40"},"='Schedule IIIA (EBS)'!O10",0]
[null,null,null,null,null,null,null,null,null,null,null,null,null,null,null,null,null,null,{"$f":"ADDRESS(40,20,1,1,$S$1)","v":"'Geographic Diversification'!$T$40"},"='Schedule IIIA (EBS)'!P10",0]
[null,null,null,null,null,null,null,null,null,null,null,null,null,null,null,null,null,null,{"$f":"ADDRESS(40,21,1,1,$S$1)","v":"'Geographic Diversification'!$U$40"},"='Schedule IIIA (EBS)'!Q10",0]
[null,null,null,null,null,null,null,null,null,null,null,null,null,null,null,null,null,null,{"$f":"ADDRESS(40,22,1,1,$S$1)","v":"'Geographic Diversification'!$V$40"},"='Schedule IIIA (EBS)'!R10",0]
[null,null,null,null,null,null,null,null,null,null,null,null,null,null,null,null,null,null,{"$f":"ADDRESS(40,23,1,1,$S$1)","v":"'Geographic Diversification'!$W$40"},"='Schedule IIIA (EBS)'!S10",0]
[null,null,null,null,null,null,null,null,null,null,null,null,null,null,null,null,null,null,{"$f":"ADDRESS(40,24,1,1,$S$1)","v":"'Geographic Diversification'!$X$40"},"='Schedule IIIA (EBS)'!T10",0]
[null,null,null,null,null,null,null,null,null,null,null,null,null,null,null,null,null,null,{"$f":"ADDRESS(40,25,1,1,$S$1)","v":"'Geographic Diversification'!$Y$40"},"='Schedule IIIA (EBS)'!U10",0]
[null,null,null,null,null,null,null,null,null,null,null,null,null,null,null,null,null,null,{"$f":"ADDRESS(40,26,1,1,$S$1)","v":"'Geographic Diversification'!$Z$40"},"='Schedule IIIA (EBS)'!V10",0]
[null,null,null,null,null,null,null,null,null,null,null,null,null,null,null,null,null,null,{"$f":"ADDRESS(41,4,1,1,$S$1)","v":"'Geographic Diversification'!$D$41"},"=SUM(I41:Z41)",0]
[null,null,null,null,null,null,null,null,null,null,null,null,null,null,null,null,null,null,{"$f":"ADDRESS(41,5,1,1,$S$1)","v":"'Geographic Diversification'!$E$41"},"=SUMSQ(I41:Z41)",0]
[null,null,null,null,null,null,null,null,null,null,null,null,null,null,null,null,null,null,{"$f":"ADDRESS(41,6,1,1,$S$1)","v":"'Geographic Diversification'!$F$41"},"=(IF(D41>0,E41/D41^2,1))",0]
[null,null,null,null,null,null,null,null,null,null,null,null,null,null,null,null,null,null,{"$f":"ADDRESS(41,7,1,1,$S$1)","v":"'Geographic Diversification'!$G$41"},"=D41*(0.75+0.25*F41)",0]
[null,null,null,null,null,null,null,null,null,null,null,null,null,null,null,null,null,null,{"$f":"ADDRESS(41,8,1,1,$S$1)","v":"'Geographic Diversification'!$H$41"},"=IF('Schedule IIIA (EBS)'!AB11=\"TRUE\",G41,'Schedule III (EBS)'!F11)",0]
[null,null,null,null,null,null,null,null,null,null,null,null,null,null,null,null,null,null,{"$f":"ADDRESS(41,9,1,1,$S$1)","v":"'Geographic Diversification'!$I$41"},"='Schedule IIIA (EBS)'!E11",0]
[null,null,null,null,null,null,null,null,null,null,null,null,null,null,null,null,null,null,{"$f":"ADDRESS(41,10,1,1,$S$1)","v":"'Geographic Diversification'!$J$41"},"='Schedule IIIA (EBS)'!F11",0]
[null,null,null,null,null,null,null,null,null,null,null,null,null,null,null,null,null,null,{"$f":"ADDRESS(41,11,1,1,$S$1)","v":"'Geographic Diversification'!$K$41"},"='Schedule IIIA (EBS)'!G11",0]
[null,null,null,null,null,null,null,null,null,null,null,null,null,null,null,null,null,null,{"$f":"ADDRESS(41,12,1,1,$S$1)","v":"'Geographic Diversification'!$L$41"},"='Schedule IIIA (EBS)'!H11",0]
[null,null,null,null,null,null,null,null,null,null,null,null,null,null,null,null,null,null,{"$f":"ADDRESS(41,13,1,1,$S$1)","v":"'Geographic Diversification'!$M$41"},"='Schedule IIIA (EBS)'!I11",0]
[null,null,null,null,null,null,null,null,null,null,null,null,null,null,null,null,null,null,{"$f":"ADDRESS(41,14,1,1,$S$1)","v":"'Geographic Diversification'!$N$41"},"='Schedule IIIA (EBS)'!J11",0]
[null,null,null,null,null,null,null,null,null,null,null,null,null,null,null,null,null,null,{"$f":"ADDRESS(41,15,1,1,$S$1)","v":"'Geographic Diversification'!$O$41"},"='Schedule IIIA (EBS)'!K11",0]
[null,null,null,null,null,null,null,null,null,null,null,null,null,null,null,null,null,null,{"$f":"ADDRESS(41,16,1,1,$S$1)","v":"'Geographic Diversification'!$P$41"},"='Schedule IIIA (EBS)'!L11",0]
[null,null,null,null,null,null,null,null,null,null,null,null,null,null,null,null,null,null,{"$f":"ADDRESS(41,17,1,1,$S$1)","v":"'Geographic Diversification'!$Q$41"},"='Schedule IIIA (EBS)'!M11",0]
[null,null,null,null,null,null,null,null,null,null,null,null,null,null,null,null,null,null,{"$f":"ADDRESS(41,18,1,1,$S$1)","v":"'Geographic Diversification'!$R$41"},"='Schedule IIIA (EBS)'!N11",0]
[null,null,null,null,null,null,null,null,null,null,null,null,null,null,null,null,null,null,{"$f":"ADDRESS(41,19,1,1,$S$1)","v":"'Geographic Diversification'!$S$41"},"='Schedule IIIA (EBS)'!O11",0]
[null,null,null,null,null,null,null,null,null,null,null,null,null,null,null,null,null,null,{"$f":"ADDRESS(41,20,1,1,$S$1)","v":"'Geographic Diversification'!$T$41"},"='Schedule IIIA (EBS)'!P11",0]
[null,null,null,null,null,null,null,null,null,null,null,null,null,null,null,null,null,null,{"$f":"ADDRESS(41,21,1,1,$S$1)","v":"'Geographic Diversification'!$U$41"},"='Schedule IIIA (EBS)'!Q11",0]
[null,null,null,null,null,null,null,null,null,null,null,null,null,null,null,null,null,null,{"$f":"ADDRESS(41,22,1,1,$S$1)","v":"'Geographic Diversification'!$V$41"},"='Schedule IIIA (EBS)'!R11",0]
[null,null,null,null,null,null,null,null,null,null,null,null,null,null,null,null,null,null,{"$f":"ADDRESS(41,23,1,1,$S$1)","v":"'Geographic Diversification'!$W$41"},"='Schedule IIIA (EBS)'!S11",0]
[null,null,null,null,null,null,null,null,null,null,null,null,null,null,null,null,null,null,{"$f":"ADDRESS(41,24,1,1,$S$1)","v":"'Geographic Diversification'!$X$41"},"='Schedule IIIA (EBS)'!T11",0]
[null,null,null,null,null,null,null,null,null,null,null,null,null,null,null,null,null,null,{"$f":"ADDRESS(41,25,1,1,$S$1)","v":"'Geographic Diversification'!$Y$41"},"='Schedule IIIA (EBS)'!U11",0]
[null,null,null,null,null,null,null,null,null,null,null,null,null,null,null,null,null,null,{"$f":"ADDRESS(41,26,1,1,$S$1)","v":"'Geographic Diversification'!$Z$41"},"='Schedule IIIA (EBS)'!V11",0]
[null,null,null,null,null,null,null,null,null,null,null,null,null,null,null,null,null,null,{"$f":"ADDRESS(42,4,1,1,$S$1)","v":"'Geographic Diversification'!$D$42"},"=SUM(I42:Z42)",0]
[null,null,null,null,null,null,null,null,null,null,null,null,null,null,null,null,null,null,{"$f":"ADDRESS(42,5,1,1,$S$1)","v":"'Geographic Diversification'!$E$42"},"=SUMSQ(I42:Z42)",0]
[null,null,null,null,null,null,null,null,null,null,null,null,null,null,null,null,null,null,{"$f":"ADDRESS(42,6,1,1,$S$1)","v":"'Geographic Diversification'!$F$42"},"=(IF(D42>0,E42/D42^2,1))",0]
[null,null,null,null,null,null,null,null,null,null,null,null,null,null,null,null,null,null,{"$f":"ADDRESS(42,7,1,1,$S$1)","v":"'Geographic Diversification'!$G$42"},"=D42*(0.75+0.25*F42)",0]
[null,null,null,null,null,null,null,null,null,null,null,null,null,null,null,null,null,null,{"$f":"ADDRESS(42,8,1,1,$S$1)","v":"'Geographic Diversification'!$H$42"},"=IF('Schedule IIIA (EBS)'!AB12=\"TRUE\",G42,'Schedule III (EBS)'!F12)",0]
[null,null,null,null,null,null,null,null,null,null,null,null,null,null,null,null,null,null,{"$f":"ADDRESS(42,9,1,1,$S$1)","v":"'Geographic Diversification'!$I$42"},"='Schedule IIIA (EBS)'!E12",0]
[null,null,null,null,null,null,null,null,null,null,null,null,null,null,null,null,null,null,{"$f":"ADDRESS(42,10,1,1,$S$1)","v":"'Geographic Diversification'!$J$42"},"='Schedule IIIA (EBS)'!F12",0]
[null,null,null,null,null,null,null,null,null,null,null,null,null,null,null,null,null,null,{"$f":"ADDRESS(42,11,1,1,$S$1)","v":"'Geographic Diversification'!$K$42"},"='Schedule IIIA (EBS)'!G12",0]
[null,null,null,null,null,null,null,null,null,null,null,null,null,null,null,null,null,null,{"$f":"ADDRESS(42,12,1,1,$S$1)","v":"'Geographic Diversification'!$L$42"},"='Schedule IIIA (EBS)'!H12",0]
[null,null,null,null,null,null,null,null,null,null,null,null,null,null,null,null,null,null,{"$f":"ADDRESS(42,13,1,1,$S$1)","v":"'Geographic Diversification'!$M$42"},"='Schedule IIIA (EBS)'!I12",0]
[null,null,null,null,null,null,null,null,null,null,null,null,null,null,null,null,null,null,{"$f":"ADDRESS(42,14,1,1,$S$1)","v":"'Geographic Diversification'!$N$42"},"='Schedule IIIA (EBS)'!J12",0]
[null,null,null,null,null,null,null,null,null,null,null,null,null,null,null,null,null,null,{"$f":"ADDRESS(42,15,1,1,$S$1)","v":"'Geographic Diversification'!$O$42"},"='Schedule IIIA (EBS)'!K12",0]
[null,null,null,null,null,null,null,null,null,null,null,null,null,null,null,null,null,null,{"$f":"ADDRESS(42,16,1,1,$S$1)","v":"'Geographic Diversification'!$P$42"},"='Schedule IIIA (EBS)'!L12",0]
[null,null,null,null,null,null,null,null,null,null,null,null,null,null,null,null,null,null,{"$f":"ADDRESS(42,17,1,1,$S$1)","v":"'Geographic Diversification'!$Q$42"},"='Schedule IIIA (EBS)'!M12",0]
[null,null,null,null,null,null,null,null,null,null,null,null,null,null,null,null,null,null,{"$f":"ADDRESS(42,18,1,1,$S$1)","v":"'Geographic Diversification'!$R$42"},"='Schedule IIIA (EBS)'!N12",0]
[null,null,null,null,null,null,null,null,null,null,null,null,null,null,null,null,null,null,{"$f":"ADDRESS(42,19,1,1,$S$1)","v":"'Geographic Diversification'!$S$42"},"='Schedule IIIA (EBS)'!O12",0]
[null,null,null,null,null,null,null,null,null,null,null,null,null,null,null,null,null,null,{"$f":"ADDRESS(42,20,1,1,$S$1)","v":"'Geographic Diversification'!$T$42"},"='Schedule IIIA (EBS)'!P12",0]
[null,null,null,null,null,null,null,null,null,null,null,null,null,null,null,null,null,null,{"$f":"ADDRESS(42,21,1,1,$S$1)","v":"'Geographic Diversification'!$U$42"},"='Schedule IIIA (EBS)'!Q12",{"$f":"IF(_xlfn.FORMULATEXT(INDIRECT(S644))=T644,0,1)","v":0}]
[null,null,null,null,null,null,null,null,null,null,null,null,null,null,null,null,null,null,{"$f":"ADDRESS(42,22,1,1,$S$1)","v":"'Geographic Diversification'!$V$42"},"='Schedule IIIA (EBS)'!R12",0]
[null,null,null,null,null,null,null,null,null,null,null,null,null,null,null,null,null,null,{"$f":"ADDRESS(42,23,1,1,$S$1)","v":"'Geographic Diversification'!$W$42"},"='Schedule IIIA (EBS)'!S12",0]
[null,null,null,null,null,null,null,null,null,null,null,null,null,null,null,null,null,null,{"$f":"ADDRESS(42,24,1,1,$S$1)","v":"'Geographic Diversification'!$X$42"},"='Schedule IIIA (EBS)'!T12",0]
[null,null,null,null,null,null,null,null,null,null,null,null,null,null,null,null,null,null,{"$f":"ADDRESS(42,25,1,1,$S$1)","v":"'Geographic Diversification'!$Y$42"},"='Schedule IIIA (EBS)'!U12",0]
[null,null,null,null,null,null,null,null,null,null,null,null,null,null,null,null,null,null,{"$f":"ADDRESS(42,26,1,1,$S$1)","v":"'Geographic Diversification'!$Z$42"},"='Schedule IIIA (EBS)'!V12",0]
[null,null,null,null,null,null,null,null,null,null,null,null,null,null,null,null,null,null,{"$f":"ADDRESS(43,4,1,1,$S$1)","v":"'Geographic Diversification'!$D$43"},"=SUM(I43:Z43)",0]
[null,null,null,null,null,null,null,null,null,null,null,null,null,null,null,null,null,null,{"$f":"ADDRESS(43,5,1,1,$S$1)","v":"'Geographic Diversification'!$E$43"},"=SUMSQ(I43:Z43)",0]
[null,null,null,null,null,null,null,null,null,null,null,null,null,null,null,null,null,null,{"$f":"ADDRESS(43,6,1,1,$S$1)","v":"'Geographic Diversification'!$F$43"},"=(IF(D43>0,E43/D43^2,1))",0]
[null,null,null,null,null,null,null,null,null,null,null,null,null,null,null,null,null,null,{"$f":"ADDRESS(43,7,1,1,$S$1)","v":"'Geographic Diversification'!$G$43"},"=D43*(0.75+0.25*F43)",0]
[null,null,null,null,null,null,null,null,null,null,null,null,null,null,null,null,null,null,{"$f":"ADDRESS(43,8,1,1,$S$1)","v":"'Geographic Diversification'!$H$43"},"=IF('Schedule IIIA (EBS)'!AB13=\"TRUE\",G43,'Schedule III (EBS)'!F13)",0]
[null,null,null,null,null,null,null,null,null,null,null,null,null,null,null,null,null,null,{"$f":"ADDRESS(43,9,1,1,$S$1)","v":"'Geographic Diversification'!$I$43"},"='Schedule IIIA (EBS)'!E13",0]
[null,null,null,null,null,null,null,null,null,null,null,null,null,null,null,null,null,null,{"$f":"ADDRESS(43,10,1,1,$S$1)","v":"'Geographic Diversification'!$J$43"},"='Schedule IIIA (EBS)'!F13",0]
[null,null,null,null,null,null,null,null,null,null,null,null,null,null,null,null,null,null,{"$f":"ADDRESS(43,11,1,1,$S$1)","v":"'Geographic Diversification'!$K$43"},"='Schedule IIIA (EBS)'!G13",0]
[null,null,null,null,null,null,null,null,null,null,null,null,null,null,null,null,null,null,{"$f":"ADDRESS(43,12,1,1,$S$1)","v":"'Geographic Diversification'!$L$43"},"='Schedule IIIA (EBS)'!H13",0]
[null,null,null,null,null,null,null,null,null,null,null,null,null,null,null,null,null,null,{"$f":"ADDRESS(43,13,1,1,$S$1)","v":"'Geographic Diversification'!$M$43"},"='Schedule IIIA (EBS)'!I13",0]
[null,null,null,null,null,null,null,null,null,null,null,null,null,null,null,null,null,null,{"$f":"ADDRESS(43,14,1,1,$S$1)","v":"'Geographic Diversification'!$N$43"},"='Schedule IIIA (EBS)'!J13",0]
[null,null,null,null,null,null,null,null,null,null,null,null,null,null,null,null,null,null,{"$f":"ADDRESS(43,15,1,1,$S$1)","v":"'Geographic Diversification'!$O$43"},"='Schedule IIIA (EBS)'!K13",0]
[null,null,null,null,null,null,null,null,null,null,null,null,null,null,null,null,null,null,{"$f":"ADDRESS(43,16,1,1,$S$1)","v":"'Geographic Diversification'!$P$43"},"='Schedule IIIA (EBS)'!L13",0]
[null,null,null,null,null,null,null,null,null,null,null,null,null,null,null,null,null,null,{"$f":"ADDRESS(43,17,1,1,$S$1)","v":"'Geographic Diversification'!$Q$43"},"='Schedule IIIA (EBS)'!M13",0]
[null,null,null,null,null,null,null,null,null,null,null,null,null,null,null,null,null,null,{"$f":"ADDRESS(43,18,1,1,$S$1)","v":"'Geographic Diversification'!$R$43"},"='Schedule IIIA (EBS)'!N13",0]
[null,null,null,null,null,null,null,null,null,null,null,null,null,null,null,null,null,null,{"$f":"ADDRESS(43,19,1,1,$S$1)","v":"'Geographic Diversification'!$S$43"},"='Schedule IIIA (EBS)'!O13",0]
[null,null,null,null,null,null,null,null,null,null,null,null,null,null,null,null,null,null,{"$f":"ADDRESS(43,20,1,1,$S$1)","v":"'Geographic Diversification'!$T$43"},"='Schedule IIIA (EBS)'!P13",0]
[null,null,null,null,null,null,null,null,null,null,null,null,null,null,null,null,null,null,{"$f":"ADDRESS(43,21,1,1,$S$1)","v":"'Geographic Diversification'!$U$43"},"='Schedule IIIA (EBS)'!Q13",0]
[null,null,null,null,null,null,null,null,null,null,null,null,null,null,null,null,null,null,{"$f":"ADDRESS(43,22,1,1,$S$1)","v":"'Geographic Diversification'!$V$43"},"='Schedule IIIA (EBS)'!R13",0]
[null,null,null,null,null,null,null,null,null,null,null,null,null,null,null,null,null,null,{"$f":"ADDRESS(43,23,1,1,$S$1)","v":"'Geographic Diversification'!$W$43"},"='Schedule IIIA (EBS)'!S13",0]
[null,null,null,null,null,null,null,null,null,null,null,null,null,null,null,null,null,null,{"$f":"ADDRESS(43,24,1,1,$S$1)","v":"'Geographic Diversification'!$X$43"},"='Schedule IIIA (EBS)'!T13",0]
[null,null,null,null,null,null,null,null,null,null,null,null,null,null,null,null,null,null,{"$f":"ADDRESS(43,25,1,1,$S$1)","v":"'Geographic Diversification'!$Y$43"},"='Schedule IIIA (EBS)'!U13",0]
[null,null,null,null,null,null,null,null,null,null,null,null,null,null,null,null,null,null,{"$f":"ADDRESS(43,26,1,1,$S$1)","v":"'Geographic Diversification'!$Z$43"},"='Schedule IIIA (EBS)'!V13",0]
[null,null,null,null,null,null,null,null,null,null,null,null,null,null,null,null,null,null,{"$f":"ADDRESS(44,4,1,1,$S$1)","v":"'Geographic Diversification'!$D$44"},"=SUM(I44:Z44)",0]
[null,null,null,null,null,null,null,null,null,null,null,null,null,null,null,null,null,null,{"$f":"ADDRESS(44,5,1,1,$S$1)","v":"'Geographic Diversification'!$E$44"},"=SUMSQ(I44:Z44)",0]
[null,null,null,null,null,null,null,null,null,null,null,null,null,null,null,null,null,null,{"$f":"ADDRESS(44,6,1,1,$S$1)","v":"'Geographic Diversification'!$F$44"},"=(IF(D44>0,E44/D44^2,1))",0]
[null,null,null,null,null,null,null,null,null,null,null,null,null,null,null,null,null,null,{"$f":"ADDRESS(44,7,1,1,$S$1)","v":"'Geographic Diversification'!$G$44"},"=D44*(0.75+0.25*F44)",0]
[null,null,null,null,null,null,null,null,null,null,null,null,null,null,null,null,null,null,{"$f":"ADDRESS(44,8,1,1,$S$1)","v":"'Geographic Diversification'!$H$44"},"=IF('Schedule IIIA (EBS)'!AB14=\"TRUE\",G44,'Schedule III (EBS)'!F14)",0]
[null,null,null,null,null,null,null,null,null,null,null,null,null,null,null,null,null,null,{"$f":"ADDRESS(44,9,1,1,$S$1)","v":"'Geographic Diversification'!$I$44"},"='Schedule IIIA (EBS)'!E14",0]
[null,null,null,null,null,null,null,null,null,null,null,null,null,null,null,null,null,null,{"$f":"ADDRESS(44,10,1,1,$S$1)","v":"'Geographic Diversification'!$J$44"},"='Schedule IIIA (EBS)'!F14",0]
[null,null,null,null,null,null,null,null,null,null,null,null,null,null,null,null,null,null,{"$f":"ADDRESS(44,11,1,1,$S$1)","v":"'Geographic Diversification'!$K$44"},"='Schedule IIIA (EBS)'!G14",0]
[null,null,null,null,null,null,null,null,null,null,null,null,null,null,null,null,null,null,{"$f":"ADDRESS(44,12,1,1,$S$1)","v":"'Geographic Diversification'!$L$44"},"='Schedule IIIA (EBS)'!H14",0]
[null,null,null,null,null,null,null,null,null,null,null,null,null,null,null,null,null,null,{"$f":"ADDRESS(44,13,1,1,$S$1)","v":"'Geographic Diversification'!$M$44"},"='Schedule IIIA (EBS)'!I14",0]
[null,null,null,null,null,null,null,null,null,null,null,null,null,null,null,null,null,null,{"$f":"ADDRESS(44,14,1,1,$S$1)","v":"'Geographic Diversification'!$N$44"},"='Schedule IIIA (EBS)'!J14",0]
[null,null,null,null,null,null,null,null,null,null,null,null,null,null,null,null,null,null,{"$f":"ADDRESS(44,15,1,1,$S$1)","v":"'Geographic Diversification'!$O$44"},"='Schedule IIIA (EBS)'!K14",0]
[null,null,null,null,null,null,null,null,null,null,null,null,null,null,null,null,null,null,{"$f":"ADDRESS(44,16,1,1,$S$1)","v":"'Geographic Diversification'!$P$44"},"='Schedule IIIA (EBS)'!L14",0]
[null,null,null,null,null,null,null,null,null,null,null,null,null,null,null,null,null,null,{"$f":"ADDRESS(44,17,1,1,$S$1)","v":"'Geographic Diversification'!$Q$44"},"='Schedule IIIA (EBS)'!M14",0]
[null,null,null,null,null,null,null,null,null,null,null,null,null,null,null,null,null,null,{"$f":"ADDRESS(44,18,1,1,$S$1)","v":"'Geographic Diversification'!$R$44"},"='Schedule IIIA (EBS)'!N14",0]
[null,null,null,null,null,null,null,null,null,null,null,null,null,null,null,null,null,null,{"$f":"ADDRESS(44,19,1,1,$S$1)","v":"'Geographic Diversification'!$S$44"},"='Schedule IIIA (EBS)'!O14",0]
[null,null,null,null,null,null,null,null,null,null,null,null,null,null,null,null,null,null,{"$f":"ADDRESS(44,20,1,1,$S$1)","v":"'Geographic Diversification'!$T$44"},"='Schedule IIIA (EBS)'!P14",0]
[null,null,null,null,null,null,null,null,null,null,null,null,null,null,null,null,null,null,{"$f":"ADDRESS(44,21,1,1,$S$1)","v":"'Geographic Diversification'!$U$44"},"='Schedule IIIA (EBS)'!Q14",0]
[null,null,null,null,null,null,null,null,null,null,null,null,null,null,null,null,null,null,{"$f":"ADDRESS(44,22,1,1,$S$1)","v":"'Geographic Diversification'!$V$44"},"='Schedule IIIA (EBS)'!R14",0]
[null,null,null,null,null,null,null,null,null,null,null,null,null,null,null,null,null,null,{"$f":"ADDRESS(44,23,1,1,$S$1)","v":"'Geographic Diversification'!$W$44"},"='Schedule IIIA (EBS)'!S14",0]
[null,null,null,null,null,null,null,null,null,null,null,null,null,null,null,null,null,null,{"$f":"ADDRESS(44,24,1,1,$S$1)","v":"'Geographic Diversification'!$X$44"},"='Schedule IIIA (EBS)'!T14",0]
[null,null,null,null,null,null,null,null,null,null,null,null,null,null,null,null,null,null,{"$f":"ADDRESS(44,25,1,1,$S$1)","v":"'Geographic Diversification'!$Y$44"},"='Schedule IIIA (EBS)'!U14",0]
[null,null,null,null,null,null,null,null,null,null,null,null,null,null,null,null,null,null,{"$f":"ADDRESS(44,26,1,1,$S$1)","v":"'Geographic Diversification'!$Z$44"},"='Schedule IIIA (EBS)'!V14",0]
[null,null,null,null,null,null,null,null,null,null,null,null,null,null,null,null,null,null,{"$f":"ADDRESS(45,4,1,1,$S$1)","v":"'Geographic Diversification'!$D$45"},"=SUM(I45:Z45)",0]
[null,null,null,null,null,null,null,null,null,null,null,null,null,null,null,null,null,null,{"$f":"ADDRESS(45,5,1,1,$S$1)","v":"'Geographic Diversification'!$E$45"},"=SUMSQ(I45:Z45)",0]
[null,null,null,null,null,null,null,null,null,null,null,null,null,null,null,null,null,null,{"$f":"ADDRESS(45,6,1,1,$S$1)","v":"'Geographic Diversification'!$F$45"},"=(IF(D45>0,E45/D45^2,1))",0]
[null,null,null,null,null,null,null,null,null,null,null,null,null,null,null,null,null,null,{"$f":"ADDRESS(45,7,1,1,$S$1)","v":"'Geographic Diversification'!$G$45"},"=D45*(0.75+0.25*F45)",0]
[null,null,null,null,null,null,null,null,null,null,null,null,null,null,null,null,null,null,{"$f":"ADDRESS(45,8,1,1,$S$1)","v":"'Geographic Diversification'!$H$45"},"=IF('Schedule IIIA (EBS)'!AB15=\"TRUE\",G45,'Schedule III (EBS)'!F15)",0]
[null,null,null,null,null,null,null,null,null,null,null,null,null,null,null,null,null,null,{"$f":"ADDRESS(45,9,1,1,$S$1)","v":"'Geographic Diversification'!$I$45"},"='Schedule IIIA (EBS)'!E15",0]
[null,null,null,null,null,null,null,null,null,null,null,null,null,null,null,null,null,null,{"$f":"ADDRESS(45,10,1,1,$S$1)","v":"'Geographic Diversification'!$J$45"},"='Schedule IIIA (EBS)'!F15",0]
[null,null,null,null,null,null,null,null,null,null,null,null,null,null,null,null,null,null,{"$f":"ADDRESS(45,11,1,1,$S$1)","v":"'Geographic Diversification'!$K$45"},"='Schedule IIIA (EBS)'!G15",0]
[null,null,null,null,null,null,null,null,null,null,null,null,null,null,null,null,null,null,{"$f":"ADDRESS(45,12,1,1,$S$1)","v":"'Geographic Diversification'!$L$45"},"='Schedule IIIA (EBS)'!H15",0]
[null,null,null,null,null,null,null,null,null,null,null,null,null,null,null,null,null,null,{"$f":"ADDRESS(45,13,1,1,$S$1)","v":"'Geographic Diversification'!$M$45"},"='Schedule IIIA (EBS)'!I15",0]
[null,null,null,null,null,null,null,null,null,null,null,null,null,null,null,null,null,null,{"$f":"ADDRESS(45,14,1,1,$S$1)","v":"'Geographic Diversification'!$N$45"},"='Schedule IIIA (EBS)'!J15",0]
[null,null,null,null,null,null,null,null,null,null,null,null,null,null,null,null,null,null,{"$f":"ADDRESS(45,15,1,1,$S$1)","v":"'Geographic Diversification'!$O$45"},"='Schedule IIIA (EBS)'!K15",0]
[null,null,null,null,null,null,null,null,null,null,null,null,null,null,null,null,null,null,{"$f":"ADDRESS(45,16,1,1,$S$1)","v":"'Geographic Diversification'!$P$45"},"='Schedule IIIA (EBS)'!L15",{"$f":"IF(_xlfn.FORMULATEXT(INDIRECT(S708))=T708,0,1)","v":0}]
[null,null,null,null,null,null,null,null,null,null,null,null,null,null,null,null,null,null,{"$f":"ADDRESS(45,17,1,1,$S$1)","v":"'Geographic Diversification'!$Q$45"},"='Schedule IIIA (EBS)'!M15",0]
[null,null,null,null,null,null,null,null,null,null,null,null,null,null,null,null,null,null,{"$f":"ADDRESS(45,18,1,1,$S$1)","v":"'Geographic Diversification'!$R$45"},"='Schedule IIIA (EBS)'!N15",0]
[null,null,null,null,null,null,null,null,null,null,null,null,null,null,null,null,null,null,{"$f":"ADDRESS(45,19,1,1,$S$1)","v":"'Geographic Diversification'!$S$45"},"='Schedule IIIA (EBS)'!O15",0]
[null,null,null,null,null,null,null,null,null,null,null,null,null,null,null,null,null,null,{"$f":"ADDRESS(45,20,1,1,$S$1)","v":"'Geographic Diversification'!$T$45"},"='Schedule IIIA (EBS)'!P15",0]
[null,null,null,null,null,null,null,null,null,null,null,null,null,null,null,null,null,null,{"$f":"ADDRESS(45,21,1,1,$S$1)","v":"'Geographic Diversification'!$U$45"},"='Schedule IIIA (EBS)'!Q15",0]
[null,null,null,null,null,null,null,null,null,null,null,null,null,null,null,null,null,null,{"$f":"ADDRESS(45,22,1,1,$S$1)","v":"'Geographic Diversification'!$V$45"},"='Schedule IIIA (EBS)'!R15",0]
[null,null,null,null,null,null,null,null,null,null,null,null,null,null,null,null,null,null,{"$f":"ADDRESS(45,23,1,1,$S$1)","v":"'Geographic Diversification'!$W$45"},"='Schedule IIIA (EBS)'!S15",0]
[null,null,null,null,null,null,null,null,null,null,null,null,null,null,null,null,null,null,{"$f":"ADDRESS(45,24,1,1,$S$1)","v":"'Geographic Diversification'!$X$45"},"='Schedule IIIA (EBS)'!T15",0]
[null,null,null,null,null,null,null,null,null,null,null,null,null,null,null,null,null,null,{"$f":"ADDRESS(45,25,1,1,$S$1)","v":"'Geographic Diversification'!$Y$45"},"='Schedule IIIA (EBS)'!U15",0]
[null,null,null,null,null,null,null,null,null,null,null,null,null,null,null,null,null,null,{"$f":"ADDRESS(45,26,1,1,$S$1)","v":"'Geographic Diversification'!$Z$45"},"='Schedule IIIA (EBS)'!V15",0]
[null,null,null,null,null,null,null,null,null,null,null,null,null,null,null,null,null,null,{"$f":"ADDRESS(46,4,1,1,$S$1)","v":"'Geographic Diversification'!$D$46"},"=SUM(I46:Z46)",0]
[null,null,null,null,null,null,null,null,null,null,null,null,null,null,null,null,null,null,{"$f":"ADDRESS(46,5,1,1,$S$1)","v":"'Geographic Diversification'!$E$46"},"=SUMSQ(I46:Z46)",0]
[null,null,null,null,null,null,null,null,null,null,null,null,null,null,null,null,null,null,{"$f":"ADDRESS(46,6,1,1,$S$1)","v":"'Geographic Diversification'!$F$46"},"=(IF(D46>0,E46/D46^2,1))",0]
[null,null,null,null,null,null,null,null,null,null,null,null,null,null,null,null,null,null,{"$f":"ADDRESS(46,7,1,1,$S$1)","v":"'Geographic Diversification'!$G$46"},"=D46*(0.75+0.25*F46)",0]
[null,null,null,null,null,null,null,null,null,null,null,null,null,null,null,null,null,null,{"$f":"ADDRESS(46,8,1,1,$S$1)","v":"'Geographic Diversification'!$H$46"},"=IF('Schedule IIIA (EBS)'!AB16=\"TRUE\",G46,'Schedule III (EBS)'!F16)",0]
[null,null,null,null,null,null,null,null,null,null,null,null,null,null,null,null,null,null,{"$f":"ADDRESS(46,9,1,1,$S$1)","v":"'Geographic Diversification'!$I$46"},"='Schedule IIIA (EBS)'!E16",0]
[null,null,null,null,null,null,null,null,null,null,null,null,null,null,null,null,null,null,{"$f":"ADDRESS(46,10,1,1,$S$1)","v":"'Geographic Diversification'!$J$46"},"='Schedule IIIA (EBS)'!F16",0]
[null,null,null,null,null,null,null,null,null,null,null,null,null,null,null,null,null,null,{"$f":"ADDRESS(46,11,1,1,$S$1)","v":"'Geographic Diversification'!$K$46"},"='Schedule IIIA (EBS)'!G16",0]
[null,null,null,null,null,null,null,null,null,null,null,null,null,null,null,null,null,null,{"$f":"ADDRESS(46,12,1,1,$S$1)","v":"'Geographic Diversification'!$L$46"},"='Schedule IIIA (EBS)'!H16",0]
[null,null,null,null,null,null,null,null,null,null,null,null,null,null,null,null,null,null,{"$f":"ADDRESS(46,13,1,1,$S$1)","v":"'Geographic Diversification'!$M$46"},"='Schedule IIIA (EBS)'!I16",0]
[null,null,null,null,null,null,null,null,null,null,null,null,null,null,null,null,null,null,{"$f":"ADDRESS(46,14,1,1,$S$1)","v":"'Geographic Diversification'!$N$46"},"='Schedule IIIA (EBS)'!J16",0]
[null,null,null,null,null,null,null,null,null,null,null,null,null,null,null,null,null,null,{"$f":"ADDRESS(46,15,1,1,$S$1)","v":"'Geographic Diversification'!$O$46"},"='Schedule IIIA (EBS)'!K16",0]
[null,null,null,null,null,null,null,null,null,null,null,null,null,null,null,null,null,null,{"$f":"ADDRESS(46,16,1,1,$S$1)","v":"'Geographic Diversification'!$P$46"},"='Schedule IIIA (EBS)'!L16",0]
[null,null,null,null,null,null,null,null,null,null,null,null,null,null,null,null,null,null,{"$f":"ADDRESS(46,17,1,1,$S$1)","v":"'Geographic Diversification'!$Q$46"},"='Schedule IIIA (EBS)'!M16",0]
[null,null,null,null,null,null,null,null,null,null,null,null,null,null,null,null,null,null,{"$f":"ADDRESS(46,18,1,1,$S$1)","v":"'Geographic Diversification'!$R$46"},"='Schedule IIIA (EBS)'!N16",0]
[null,null,null,null,null,null,null,null,null,null,null,null,null,null,null,null,null,null,{"$f":"ADDRESS(46,19,1,1,$S$1)","v":"'Geographic Diversification'!$S$46"},"='Schedule IIIA (EBS)'!O16",0]
[null,null,null,null,null,null,null,null,null,null,null,null,null,null,null,null,null,null,{"$f":"ADDRESS(46,20,1,1,$S$1)","v":"'Geographic Diversification'!$T$46"},"='Schedule IIIA (EBS)'!P16",0]
[null,null,null,null,null,null,null,null,null,null,null,null,null,null,null,null,null,null,{"$f":"ADDRESS(46,21,1,1,$S$1)","v":"'Geographic Diversification'!$U$46"},"='Schedule IIIA (EBS)'!Q16",0]
[null,null,null,null,null,null,null,null,null,null,null,null,null,null,null,null,null,null,{"$f":"ADDRESS(46,22,1,1,$S$1)","v":"'Geographic Diversification'!$V$46"},"='Schedule IIIA (EBS)'!R16",0]
[null,null,null,null,null,null,null,null,null,null,null,null,null,null,null,null,null,null,{"$f":"ADDRESS(46,23,1,1,$S$1)","v":"'Geographic Diversification'!$W$46"},"='Schedule IIIA (EBS)'!S16",0]
[null,null,null,null,null,null,null,null,null,null,null,null,null,null,null,null,null,null,{"$f":"ADDRESS(46,24,1,1,$S$1)","v":"'Geographic Diversification'!$X$46"},"='Schedule IIIA (EBS)'!T16",0]
[null,null,null,null,null,null,null,null,null,null,null,null,null,null,null,null,null,null,{"$f":"ADDRESS(46,25,1,1,$S$1)","v":"'Geographic Diversification'!$Y$46"},"='Schedule IIIA (EBS)'!U16",0]
[null,null,null,null,null,null,null,null,null,null,null,null,null,null,null,null,null,null,{"$f":"ADDRESS(46,26,1,1,$S$1)","v":"'Geographic Diversification'!$Z$46"},"='Schedule IIIA (EBS)'!V16",0]
[null,null,null,null,null,null,null,null,null,null,null,null,null,null,null,null,null,null,{"$f":"ADDRESS(47,4,1,1,$S$1)","v":"'Geographic Diversification'!$D$47"},"=SUM(I47:Z47)",0]
[null,null,null,null,null,null,null,null,null,null,null,null,null,null,null,null,null,null,{"$f":"ADDRESS(47,5,1,1,$S$1)","v":"'Geographic Diversification'!$E$47"},"=SUMSQ(I47:Z47)",0]
[null,null,null,null,null,null,null,null,null,null,null,null,null,null,null,null,null,null,{"$f":"ADDRESS(47,6,1,1,$S$1)","v":"'Geographic Diversification'!$F$47"},"=(IF(D47>0,E47/D47^2,1))",0]
[null,null,null,null,null,null,null,null,null,null,null,null,null,null,null,null,null,null,{"$f":"ADDRESS(47,7,1,1,$S$1)","v":"'Geographic Diversification'!$G$47"},"=D47*(0.75+0.25*F47)",0]
[null,null,null,null,null,null,null,null,null,null,null,null,null,null,null,null,null,null,{"$f":"ADDRESS(47,8,1,1,$S$1)","v":"'Geographic Diversification'!$H$47"},"=IF('Schedule IIIA (EBS)'!AB17=\"TRUE\",G47,'Schedule III (EBS)'!F17)",0]
[null,null,null,null,null,null,null,null,null,null,null,null,null,null,null,null,null,null,{"$f":"ADDRESS(47,9,1,1,$S$1)","v":"'Geographic Diversification'!$I$47"},"='Schedule IIIA (EBS)'!E17",0]
[null,null,null,null,null,null,null,null,null,null,null,null,null,null,null,null,null,null,{"$f":"ADDRESS(47,10,1,1,$S$1)","v":"'Geographic Diversification'!$J$47"},"='Schedule IIIA (EBS)'!F17",0]
[null,null,null,null,null,null,null,null,null,null,null,null,null,null,null,null,null,null,{"$f":"ADDRESS(47,11,1,1,$S$1)","v":"'Geographic Diversification'!$K$47"},"='Schedule IIIA (EBS)'!G17",0]
[null,null,null,null,null,null,null,null,null,null,null,null,null,null,null,null,null,null,{"$f":"ADDRESS(47,12,1,1,$S$1)","v":"'Geographic Diversification'!$L$47"},"='Schedule IIIA (EBS)'!H17",0]
[null,null,null,null,null,null,null,null,null,null,null,null,null,null,null,null,null,null,{"$f":"ADDRESS(47,13,1,1,$S$1)","v":"'Geographic Diversification'!$M$47"},"='Schedule IIIA (EBS)'!I17",0]
[null,null,null,null,null,null,null,null,null,null,null,null,null,null,null,null,null,null,{"$f":"ADDRESS(47,14,1,1,$S$1)","v":"'Geographic Diversification'!$N$47"},"='Schedule IIIA (EBS)'!J17",0]
[null,null,null,null,null,null,null,null,null,null,null,null,null,null,null,null,null,null,{"$f":"ADDRESS(47,15,1,1,$S$1)","v":"'Geographic Diversification'!$O$47"},"='Schedule IIIA (EBS)'!K17",0]
[null,null,null,null,null,null,null,null,null,null,null,null,null,null,null,null,null,null,{"$f":"ADDRESS(47,16,1,1,$S$1)","v":"'Geographic Diversification'!$P$47"},"='Schedule IIIA (EBS)'!L17",0]
[null,null,null,null,null,null,null,null,null,null,null,null,null,null,null,null,null,null,{"$f":"ADDRESS(47,17,1,1,$S$1)","v":"'Geographic Diversification'!$Q$47"},"='Schedule IIIA (EBS)'!M17",0]
[null,null,null,null,null,null,null,null,null,null,null,null,null,null,null,null,null,null,{"$f":"ADDRESS(47,18,1,1,$S$1)","v":"'Geographic Diversification'!$R$47"},"='Schedule IIIA (EBS)'!N17",0]
[null,null,null,null,null,null,null,null,null,null,null,null,null,null,null,null,null,null,{"$f":"ADDRESS(47,19,1,1,$S$1)","v":"'Geographic Diversification'!$S$47"},"='Schedule IIIA (EBS)'!O17",0]
[null,null,null,null,null,null,null,null,null,null,null,null,null,null,null,null,null,null,{"$f":"ADDRESS(47,20,1,1,$S$1)","v":"'Geographic Diversification'!$T$47"},"='Schedule IIIA (EBS)'!P17",0]
[null,null,null,null,null,null,null,null,null,null,null,null,null,null,null,null,null,null,{"$f":"ADDRESS(47,21,1,1,$S$1)","v":"'Geographic Diversification'!$U$47"},"='Schedule IIIA (EBS)'!Q17",0]
[null,null,null,null,null,null,null,null,null,null,null,null,null,null,null,null,null,null,{"$f":"ADDRESS(47,22,1,1,$S$1)","v":"'Geographic Diversification'!$V$47"},"='Schedule IIIA (EBS)'!R17",0]
[null,null,null,null,null,null,null,null,null,null,null,null,null,null,null,null,null,null,{"$f":"ADDRESS(47,23,1,1,$S$1)","v":"'Geographic Diversification'!$W$47"},"='Schedule IIIA (EBS)'!S17",0]
[null,null,null,null,null,null,null,null,null,null,null,null,null,null,null,null,null,null,{"$f":"ADDRESS(47,24,1,1,$S$1)","v":"'Geographic Diversification'!$X$47"},"='Schedule IIIA (EBS)'!T17",0]
[null,null,null,null,null,null,null,null,null,null,null,null,null,null,null,null,null,null,{"$f":"ADDRESS(47,25,1,1,$S$1)","v":"'Geographic Diversification'!$Y$47"},"='Schedule IIIA (EBS)'!U17",0]
[null,null,null,null,null,null,null,null,null,null,null,null,null,null,null,null,null,null,{"$f":"ADDRESS(47,26,1,1,$S$1)","v":"'Geographic Diversification'!$Z$47"},"='Schedule IIIA (EBS)'!V17",0]
[null,null,null,null,null,null,null,null,null,null,null,null,null,null,null,null,null,null,{"$f":"ADDRESS(48,4,1,1,$S$1)","v":"'Geographic Diversification'!$D$48"},"=SUM(I48:Z48)",0]
[null,null,null,null,null,null,null,null,null,null,null,null,null,null,null,null,null,null,{"$f":"ADDRESS(48,5,1,1,$S$1)","v":"'Geographic Diversification'!$E$48"},"=SUMSQ(I48:Z48)",0]
[null,null,null,null,null,null,null,null,null,null,null,null,null,null,null,null,null,null,{"$f":"ADDRESS(48,6,1,1,$S$1)","v":"'Geographic Diversification'!$F$48"},"=(IF(D48>0,E48/D48^2,1))",0]
[null,null,null,null,null,null,null,null,null,null,null,null,null,null,null,null,null,null,{"$f":"ADDRESS(48,7,1,1,$S$1)","v":"'Geographic Diversification'!$G$48"},"=D48*(0.75+0.25*F48)",0]
[null,null,null,null,null,null,null,null,null,null,null,null,null,null,null,null,null,null,{"$f":"ADDRESS(48,8,1,1,$S$1)","v":"'Geographic Diversification'!$H$48"},"=IF('Schedule IIIA (EBS)'!AB18=\"TRUE\",G48,'Schedule III (EBS)'!F18)",0]
[null,null,null,null,null,null,null,null,null,null,null,null,null,null,null,null,null,null,{"$f":"ADDRESS(48,9,1,1,$S$1)","v":"'Geographic Diversification'!$I$48"},"='Schedule IIIA (EBS)'!E18",0]
[null,null,null,null,null,null,null,null,null,null,null,null,null,null,null,null,null,null,{"$f":"ADDRESS(48,10,1,1,$S$1)","v":"'Geographic Diversification'!$J$48"},"='Schedule IIIA (EBS)'!F18",0]
[null,null,null,null,null,null,null,null,null,null,null,null,null,null,null,null,null,null,{"$f":"ADDRESS(48,11,1,1,$S$1)","v":"'Geographic Diversification'!$K$48"},"='Schedule IIIA (EBS)'!G18",{"$f":"IF(_xlfn.FORMULATEXT(INDIRECT(S772))=T772,0,1)","v":0}]
[null,null,null,null,null,null,null,null,null,null,null,null,null,null,null,null,null,null,{"$f":"ADDRESS(48,12,1,1,$S$1)","v":"'Geographic Diversification'!$L$48"},"='Schedule IIIA (EBS)'!H18",0]
[null,null,null,null,null,null,null,null,null,null,null,null,null,null,null,null,null,null,{"$f":"ADDRESS(48,13,1,1,$S$1)","v":"'Geographic Diversification'!$M$48"},"='Schedule IIIA (EBS)'!I18",0]
[null,null,null,null,null,null,null,null,null,null,null,null,null,null,null,null,null,null,{"$f":"ADDRESS(48,14,1,1,$S$1)","v":"'Geographic Diversification'!$N$48"},"='Schedule IIIA (EBS)'!J18",0]
[null,null,null,null,null,null,null,null,null,null,null,null,null,null,null,null,null,null,{"$f":"ADDRESS(48,15,1,1,$S$1)","v":"'Geographic Diversification'!$O$48"},"='Schedule IIIA (EBS)'!K18",0]
[null,null,null,null,null,null,null,null,null,null,null,null,null,null,null,null,null,null,{"$f":"ADDRESS(48,16,1,1,$S$1)","v":"'Geographic Diversification'!$P$48"},"='Schedule IIIA (EBS)'!L18",0]
[null,null,null,null,null,null,null,null,null,null,null,null,null,null,null,null,null,null,{"$f":"ADDRESS(48,17,1,1,$S$1)","v":"'Geographic Diversification'!$Q$48"},"='Schedule IIIA (EBS)'!M18",0]
[null,null,null,null,null,null,null,null,null,null,null,null,null,null,null,null,null,null,{"$f":"ADDRESS(48,18,1,1,$S$1)","v":"'Geographic Diversification'!$R$48"},"='Schedule IIIA (EBS)'!N18",0]
[null,null,null,null,null,null,null,null,null,null,null,null,null,null,null,null,null,null,{"$f":"ADDRESS(48,19,1,1,$S$1)","v":"'Geographic Diversification'!$S$48"},"='Schedule IIIA (EBS)'!O18",0]
[null,null,null,null,null,null,null,null,null,null,null,null,null,null,null,null,null,null,{"$f":"ADDRESS(48,20,1,1,$S$1)","v":"'Geographic Diversification'!$T$48"},"='Schedule IIIA (EBS)'!P18",0]
[null,null,null,null,null,null,null,null,null,null,null,null,null,null,null,null,null,null,{"$f":"ADDRESS(48,21,1,1,$S$1)","v":"'Geographic Diversification'!$U$48"},"='Schedule IIIA (EBS)'!Q18",0]
[null,null,null,null,null,null,null,null,null,null,null,null,null,null,null,null,null,null,{"$f":"ADDRESS(48,22,1,1,$S$1)","v":"'Geographic Diversification'!$V$48"},"='Schedule IIIA (EBS)'!R18",0]
[null,null,null,null,null,null,null,null,null,null,null,null,null,null,null,null,null,null,{"$f":"ADDRESS(48,23,1,1,$S$1)","v":"'Geographic Diversification'!$W$48"},"='Schedule IIIA (EBS)'!S18",0]
[null,null,null,null,null,null,null,null,null,null,null,null,null,null,null,null,null,null,{"$f":"ADDRESS(48,24,1,1,$S$1)","v":"'Geographic Diversification'!$X$48"},"='Schedule IIIA (EBS)'!T18",0]
[null,null,null,null,null,null,null,null,null,null,null,null,null,null,null,null,null,null,{"$f":"ADDRESS(48,25,1,1,$S$1)","v":"'Geographic Diversification'!$Y$48"},"='Schedule IIIA (EBS)'!U18",0]
[null,null,null,null,null,null,null,null,null,null,null,null,null,null,null,null,null,null,{"$f":"ADDRESS(48,26,1,1,$S$1)","v":"'Geographic Diversification'!$Z$48"},"='Schedule IIIA (EBS)'!V18",0]
[null,null,null,null,null,null,null,null,null,null,null,null,null,null,null,null,null,null,{"$f":"ADDRESS(49,4,1,1,$S$1)","v":"'Geographic Diversification'!$D$49"},"=SUM(I49:Z49)",0]
[null,null,null,null,null,null,null,null,null,null,null,null,null,null,null,null,null,null,{"$f":"ADDRESS(49,5,1,1,$S$1)","v":"'Geographic Diversification'!$E$49"},"=SUMSQ(I49:Z49)",0]
[null,null,null,null,null,null,null,null,null,null,null,null,null,null,null,null,null,null,{"$f":"ADDRESS(49,6,1,1,$S$1)","v":"'Geographic Diversification'!$F$49"},"=(IF(D49>0,E49/D49^2,1))",0]
[null,null,null,null,null,null,null,null,null,null,null,null,null,null,null,null,null,null,{"$f":"ADDRESS(49,7,1,1,$S$1)","v":"'Geographic Diversification'!$G$49"},"=D49*(0.75+0.25*F49)",0]
[null,null,null,null,null,null,null,null,null,null,null,null,null,null,null,null,null,null,{"$f":"ADDRESS(49,8,1,1,$S$1)","v":"'Geographic Diversification'!$H$49"},"=IF('Schedule IIIA (EBS)'!AB19=\"TRUE\",G49,'Schedule III (EBS)'!F19)",0]
[null,null,null,null,null,null,null,null,null,null,null,null,null,null,null,null,null,null,{"$f":"ADDRESS(49,9,1,1,$S$1)","v":"'Geographic Diversification'!$I$49"},"='Schedule IIIA (EBS)'!E19",0]
[null,null,null,null,null,null,null,null,null,null,null,null,null,null,null,null,null,null,{"$f":"ADDRESS(49,10,1,1,$S$1)","v":"'Geographic Diversification'!$J$49"},"='Schedule IIIA (EBS)'!F19",0]
[null,null,null,null,null,null,null,null,null,null,null,null,null,null,null,null,null,null,{"$f":"ADDRESS(49,11,1,1,$S$1)","v":"'Geographic Diversification'!$K$49"},"='Schedule IIIA (EBS)'!G19",0]
[null,null,null,null,null,null,null,null,null,null,null,null,null,null,null,null,null,null,{"$f":"ADDRESS(49,12,1,1,$S$1)","v":"'Geographic Diversification'!$L$49"},"='Schedule IIIA (EBS)'!H19",0]
[null,null,null,null,null,null,null,null,null,null,null,null,null,null,null,null,null,null,{"$f":"ADDRESS(49,13,1,1,$S$1)","v":"'Geographic Diversification'!$M$49"},"='Schedule IIIA (EBS)'!I19",0]
[null,null,null,null,null,null,null,null,null,null,null,null,null,null,null,null,null,null,{"$f":"ADDRESS(49,14,1,1,$S$1)","v":"'Geographic Diversification'!$N$49"},"='Schedule IIIA (EBS)'!J19",0]
[null,null,null,null,null,null,null,null,null,null,null,null,null,null,null,null,null,null,{"$f":"ADDRESS(49,15,1,1,$S$1)","v":"'Geographic Diversification'!$O$49"},"='Schedule IIIA (EBS)'!K19",0]
[null,null,null,null,null,null,null,null,null,null,null,null,null,null,null,null,null,null,{"$f":"ADDRESS(49,16,1,1,$S$1)","v":"'Geographic Diversification'!$P$49"},"='Schedule IIIA (EBS)'!L19",0]
[null,null,null,null,null,null,null,null,null,null,null,null,null,null,null,null,null,null,{"$f":"ADDRESS(49,17,1,1,$S$1)","v":"'Geographic Diversification'!$Q$49"},"='Schedule IIIA (EBS)'!M19",0]
[null,null,null,null,null,null,null,null,null,null,null,null,null,null,null,null,null,null,{"$f":"ADDRESS(49,18,1,1,$S$1)","v":"'Geographic Diversification'!$R$49"},"='Schedule IIIA (EBS)'!N19",0]
[null,null,null,null,null,null,null,null,null,null,null,null,null,null,null,null,null,null,{"$f":"ADDRESS(49,19,1,1,$S$1)","v":"'Geographic Diversification'!$S$49"},"='Schedule IIIA (EBS)'!O19",0]
[null,null,null,null,null,null,null,null,null,null,null,null,null,null,null,null,null,null,{"$f":"ADDRESS(49,20,1,1,$S$1)","v":"'Geographic Diversification'!$T$49"},"='Schedule IIIA (EBS)'!P19",0]
[null,null,null,null,null,null,null,null,null,null,null,null,null,null,null,null,null,null,{"$f":"ADDRESS(49,21,1,1,$S$1)","v":"'Geographic Diversification'!$U$49"},"='Schedule IIIA (EBS)'!Q19",0]
[null,null,null,null,null,null,null,null,null,null,null,null,null,null,null,null,null,null,{"$f":"ADDRESS(49,22,1,1,$S$1)","v":"'Geographic Diversification'!$V$49"},"='Schedule IIIA (EBS)'!R19",0]
[null,null,null,null,null,null,null,null,null,null,null,null,null,null,null,null,null,null,{"$f":"ADDRESS(49,23,1,1,$S$1)","v":"'Geographic Diversification'!$W$49"},"='Schedule IIIA (EBS)'!S19",0]
[null,null,null,null,null,null,null,null,null,null,null,null,null,null,null,null,null,null,{"$f":"ADDRESS(49,24,1,1,$S$1)","v":"'Geographic Diversification'!$X$49"},"='Schedule IIIA (EBS)'!T19",0]
[null,null,null,null,null,null,null,null,null,null,null,null,null,null,null,null,null,null,{"$f":"ADDRESS(49,25,1,1,$S$1)","v":"'Geographic Diversification'!$Y$49"},"='Schedule IIIA (EBS)'!U19",0]
[null,null,null,null,null,null,null,null,null,null,null,null,null,null,null,null,null,null,{"$f":"ADDRESS(49,26,1,1,$S$1)","v":"'Geographic Diversification'!$Z$49"},"='Schedule IIIA (EBS)'!V19",0]
[null,null,null,null,null,null,null,null,null,null,null,null,null,null,null,null,null,null,{"$f":"ADDRESS(50,4,1,1,$S$1)","v":"'Geographic Diversification'!$D$50"},"=SUM(I50:Z50)",0]
[null,null,null,null,null,null,null,null,null,null,null,null,null,null,null,null,null,null,{"$f":"ADDRESS(50,5,1,1,$S$1)","v":"'Geographic Diversification'!$E$50"},"=SUMSQ(I50:Z50)",0]
[null,null,null,null,null,null,null,null,null,null,null,null,null,null,null,null,null,null,{"$f":"ADDRESS(50,6,1,1,$S$1)","v":"'Geographic Diversification'!$F$50"},"=(IF(D50>0,E50/D50^2,1))",0]
[null,null,null,null,null,null,null,null,null,null,null,null,null,null,null,null,null,null,{"$f":"ADDRESS(50,7,1,1,$S$1)","v":"'Geographic Diversification'!$G$50"},"=D50*(0.75+0.25*F50)",0]
[null,null,null,null,null,null,null,null,null,null,null,null,null,null,null,null,null,null,{"$f":"ADDRESS(50,8,1,1,$S$1)","v":"'Geographic Diversification'!$H$50"},"=IF('Schedule IIIA (EBS)'!AB20=\"TRUE\",G50,'Schedule III (EBS)'!F20)",0]
[null,null,null,null,null,null,null,null,null,null,null,null,null,null,null,null,null,null,{"$f":"ADDRESS(50,9,1,1,$S$1)","v":"'Geographic Diversification'!$I$50"},"='Schedule IIIA (EBS)'!E20",0]
[null,null,null,null,null,null,null,null,null,null,null,null,null,null,null,null,null,null,{"$f":"ADDRESS(50,10,1,1,$S$1)","v":"'Geographic Diversification'!$J$50"},"='Schedule IIIA (EBS)'!F20",0]
[null,null,null,null,null,null,null,null,null,null,null,null,null,null,null,null,null,null,{"$f":"ADDRESS(50,11,1,1,$S$1)","v":"'Geographic Diversification'!$K$50"},"='Schedule IIIA (EBS)'!G20",0]
[null,null,null,null,null,null,null,null,null,null,null,null,null,null,null,null,null,null,{"$f":"ADDRESS(50,12,1,1,$S$1)","v":"'Geographic Diversification'!$L$50"},"='Schedule IIIA (EBS)'!H20",0]
[null,null,null,null,null,null,null,null,null,null,null,null,null,null,null,null,null,null,{"$f":"ADDRESS(50,13,1,1,$S$1)","v":"'Geographic Diversification'!$M$50"},"='Schedule IIIA (EBS)'!I20",0]
[null,null,null,null,null,null,null,null,null,null,null,null,null,null,null,null,null,null,{"$f":"ADDRESS(50,14,1,1,$S$1)","v":"'Geographic Diversification'!$N$50"},"='Schedule IIIA (EBS)'!J20",0]
[null,null,null,null,null,null,null,null,null,null,null,null,null,null,null,null,null,null,{"$f":"ADDRESS(50,15,1,1,$S$1)","v":"'Geographic Diversification'!$O$50"},"='Schedule IIIA (EBS)'!K20",0]
[null,null,null,null,null,null,null,null,null,null,null,null,null,null,null,null,null,null,{"$f":"ADDRESS(50,16,1,1,$S$1)","v":"'Geographic Diversification'!$P$50"},"='Schedule IIIA (EBS)'!L20",0]
[null,null,null,null,null,null,null,null,null,null,null,null,null,null,null,null,null,null,{"$f":"ADDRESS(50,17,1,1,$S$1)","v":"'Geographic Diversification'!$Q$50"},"='Schedule IIIA (EBS)'!M20",0]
[null,null,null,null,null,null,null,null,null,null,null,null,null,null,null,null,null,null,{"$f":"ADDRESS(50,18,1,1,$S$1)","v":"'Geographic Diversification'!$R$50"},"='Schedule IIIA (EBS)'!N20",0]
[null,null,null,null,null,null,null,null,null,null,null,null,null,null,null,null,null,null,{"$f":"ADDRESS(50,19,1,1,$S$1)","v":"'Geographic Diversification'!$S$50"},"='Schedule IIIA (EBS)'!O20",0]
[null,null,null,null,null,null,null,null,null,null,null,null,null,null,null,null,null,null,{"$f":"ADDRESS(50,20,1,1,$S$1)","v":"'Geographic Diversification'!$T$50"},"='Schedule IIIA (EBS)'!P20",0]
[null,null,null,null,null,null,null,null,null,null,null,null,null,null,null,null,null,null,{"$f":"ADDRESS(50,21,1,1,$S$1)","v":"'Geographic Diversification'!$U$50"},"='Schedule IIIA (EBS)'!Q20",0]
[null,null,null,null,null,null,null,null,null,null,null,null,null,null,null,null,null,null,{"$f":"ADDRESS(50,22,1,1,$S$1)","v":"'Geographic Diversification'!$V$50"},"='Schedule IIIA (EBS)'!R20",0]
[null,null,null,null,null,null,null,null,null,null,null,null,null,null,null,null,null,null,{"$f":"ADDRESS(50,23,1,1,$S$1)","v":"'Geographic Diversification'!$W$50"},"='Schedule IIIA (EBS)'!S20",0]
[null,null,null,null,null,null,null,null,null,null,null,null,null,null,null,null,null,null,{"$f":"ADDRESS(50,24,1,1,$S$1)","v":"'Geographic Diversification'!$X$50"},"='Schedule IIIA (EBS)'!T20",0]
[null,null,null,null,null,null,null,null,null,null,null,null,null,null,null,null,null,null,{"$f":"ADDRESS(50,25,1,1,$S$1)","v":"'Geographic Diversification'!$Y$50"},"='Schedule IIIA (EBS)'!U20",0]
[null,null,null,null,null,null,null,null,null,null,null,null,null,null,null,null,null,null,{"$f":"ADDRESS(50,26,1,1,$S$1)","v":"'Geographic Diversification'!$Z$50"},"='Schedule IIIA (EBS)'!V20",0]
[null,null,null,null,null,null,null,null,null,null,null,null,null,null,null,null,null,null,{"$f":"ADDRESS(51,4,1,1,$S$1)","v":"'Geographic Diversification'!$D$51"},"=SUM(I51:Z51)",0]
[null,null,null,null,null,null,null,null,null,null,null,null,null,null,null,null,null,null,{"$f":"ADDRESS(51,5,1,1,$S$1)","v":"'Geographic Diversification'!$E$51"},"=SUMSQ(I51:Z51)",0]
[null,null,null,null,null,null,null,null,null,null,null,null,null,null,null,null,null,null,{"$f":"ADDRESS(51,6,1,1,$S$1)","v":"'Geographic Diversification'!$F$51"},"=(IF(D51>0,E51/D51^2,1))",{"$f":"IF(_xlfn.FORMULATEXT(INDIRECT(S836))=T836,0,1)","v":0}]
[null,null,null,null,null,null,null,null,null,null,null,null,null,null,null,null,null,null,{"$f":"ADDRESS(51,7,1,1,$S$1)","v":"'Geographic Diversification'!$G$51"},"=D51*(0.75+0.25*F51)",0]
[null,null,null,null,null,null,null,null,null,null,null,null,null,null,null,null,null,null,{"$f":"ADDRESS(51,8,1,1,$S$1)","v":"'Geographic Diversification'!$H$51"},"=IF('Schedule IIIA (EBS)'!AB21=\"TRUE\",G51,'Schedule III (EBS)'!F21)",0]
[null,null,null,null,null,null,null,null,null,null,null,null,null,null,null,null,null,null,{"$f":"ADDRESS(51,9,1,1,$S$1)","v":"'Geographic Diversification'!$I$51"},"='Schedule IIIA (EBS)'!E21",0]
[null,null,null,null,null,null,null,null,null,null,null,null,null,null,null,null,null,null,{"$f":"ADDRESS(51,10,1,1,$S$1)","v":"'Geographic Diversification'!$J$51"},"='Schedule IIIA (EBS)'!F21",0]
[null,null,null,null,null,null,null,null,null,null,null,null,null,null,null,null,null,null,{"$f":"ADDRESS(51,11,1,1,$S$1)","v":"'Geographic Diversification'!$K$51"},"='Schedule IIIA (EBS)'!G21",0]
[null,null,null,null,null,null,null,null,null,null,null,null,null,null,null,null,null,null,{"$f":"ADDRESS(51,12,1,1,$S$1)","v":"'Geographic Diversification'!$L$51"},"='Schedule IIIA (EBS)'!H21",0]
[null,null,null,null,null,null,null,null,null,null,null,null,null,null,null,null,null,null,{"$f":"ADDRESS(51,13,1,1,$S$1)","v":"'Geographic Diversification'!$M$51"},"='Schedule IIIA (EBS)'!I21",0]
[null,null,null,null,null,null,null,null,null,null,null,null,null,null,null,null,null,null,{"$f":"ADDRESS(51,14,1,1,$S$1)","v":"'Geographic Diversification'!$N$51"},"='Schedule IIIA (EBS)'!J21",0]
[null,null,null,null,null,null,null,null,null,null,null,null,null,null,null,null,null,null,{"$f":"ADDRESS(51,15,1,1,$S$1)","v":"'Geographic Diversification'!$O$51"},"='Schedule IIIA (EBS)'!K21",0]
[null,null,null,null,null,null,null,null,null,null,null,null,null,null,null,null,null,null,{"$f":"ADDRESS(51,16,1,1,$S$1)","v":"'Geographic Diversification'!$P$51"},"='Schedule IIIA (EBS)'!L21",0]
[null,null,null,null,null,null,null,null,null,null,null,null,null,null,null,null,null,null,{"$f":"ADDRESS(51,17,1,1,$S$1)","v":"'Geographic Diversification'!$Q$51"},"='Schedule IIIA (EBS)'!M21",0]
[null,null,null,null,null,null,null,null,null,null,null,null,null,null,null,null,null,null,{"$f":"ADDRESS(51,18,1,1,$S$1)","v":"'Geographic Diversification'!$R$51"},"='Schedule IIIA (EBS)'!N21",0]
[null,null,null,null,null,null,null,null,null,null,null,null,null,null,null,null,null,null,{"$f":"ADDRESS(51,19,1,1,$S$1)","v":"'Geographic Diversification'!$S$51"},"='Schedule IIIA (EBS)'!O21",0]
[null,null,null,null,null,null,null,null,null,null,null,null,null,null,null,null,null,null,{"$f":"ADDRESS(51,20,1,1,$S$1)","v":"'Geographic Diversification'!$T$51"},"='Schedule IIIA (EBS)'!P21",0]
[null,null,null,null,null,null,null,null,null,null,null,null,null,null,null,null,null,null,{"$f":"ADDRESS(51,21,1,1,$S$1)","v":"'Geographic Diversification'!$U$51"},"='Schedule IIIA (EBS)'!Q21",0]
[null,null,null,null,null,null,null,null,null,null,null,null,null,null,null,null,null,null,{"$f":"ADDRESS(51,22,1,1,$S$1)","v":"'Geographic Diversification'!$V$51"},"='Schedule IIIA (EBS)'!R21",0]
[null,null,null,null,null,null,null,null,null,null,null,null,null,null,null,null,null,null,{"$f":"ADDRESS(51,23,1,1,$S$1)","v":"'Geographic Diversification'!$W$51"},"='Schedule IIIA (EBS)'!S21",0]
[null,null,null,null,null,null,null,null,null,null,null,null,null,null,null,null,null,null,{"$f":"ADDRESS(51,24,1,1,$S$1)","v":"'Geographic Diversification'!$X$51"},"='Schedule IIIA (EBS)'!T21",0]
[null,null,null,null,null,null,null,null,null,null,null,null,null,null,null,null,null,null,{"$f":"ADDRESS(51,25,1,1,$S$1)","v":"'Geographic Diversification'!$Y$51"},"='Schedule IIIA (EBS)'!U21",0]
[null,null,null,null,null,null,null,null,null,null,null,null,null,null,null,null,null,null,{"$f":"ADDRESS(51,26,1,1,$S$1)","v":"'Geographic Diversification'!$Z$51"},"='Schedule IIIA (EBS)'!V21",0]
[null,null,null,null,null,null,null,null,null,null,null,null,null,null,null,null,null,null,{"$f":"ADDRESS(52,4,1,1,$S$1)","v":"'Geographic Diversification'!$D$52"},"=SUM(I52:Z52)",0]
[null,null,null,null,null,null,null,null,null,null,null,null,null,null,null,null,null,null,{"$f":"ADDRESS(52,5,1,1,$S$1)","v":"'Geographic Diversification'!$E$52"},"=SUMSQ(I52:Z52)",0]
[null,null,null,null,null,null,null,null,null,null,null,null,null,null,null,null,null,null,{"$f":"ADDRESS(52,6,1,1,$S$1)","v":"'Geographic Diversification'!$F$52"},"=(IF(D52>0,E52/D52^2,1))",0]
[null,null,null,null,null,null,null,null,null,null,null,null,null,null,null,null,null,null,{"$f":"ADDRESS(52,7,1,1,$S$1)","v":"'Geographic Diversification'!$G$52"},"=D52*(0.75+0.25*F52)",0]
[null,null,null,null,null,null,null,null,null,null,null,null,null,null,null,null,null,null,{"$f":"ADDRESS(52,8,1,1,$S$1)","v":"'Geographic Diversification'!$H$52"},"=IF('Schedule IIIA (EBS)'!AB22=\"TRUE\",G52,'Schedule III (EBS)'!F22)",0]
[null,null,null,null,null,null,null,null,null,null,null,null,null,null,null,null,null,null,{"$f":"ADDRESS(52,9,1,1,$S$1)","v":"'Geographic Diversification'!$I$52"},"='Schedule IIIA (EBS)'!E22",0]
[null,null,null,null,null,null,null,null,null,null,null,null,null,null,null,null,null,null,{"$f":"ADDRESS(52,10,1,1,$S$1)","v":"'Geographic Diversification'!$J$52"},"='Schedule IIIA (EBS)'!F22",0]
[null,null,null,null,null,null,null,null,null,null,null,null,null,null,null,null,null,null,{"$f":"ADDRESS(52,11,1,1,$S$1)","v":"'Geographic Diversification'!$K$52"},"='Schedule IIIA (EBS)'!G22",0]
[null,null,null,null,null,null,null,null,null,null,null,null,null,null,null,null,null,null,{"$f":"ADDRESS(52,12,1,1,$S$1)","v":"'Geographic Diversification'!$L$52"},"='Schedule IIIA (EBS)'!H22",0]
[null,null,null,null,null,null,null,null,null,null,null,null,null,null,null,null,null,null,{"$f":"ADDRESS(52,13,1,1,$S$1)","v":"'Geographic Diversification'!$M$52"},"='Schedule IIIA (EBS)'!I22",0]
[null,null,null,null,null,null,null,null,null,null,null,null,null,null,null,null,null,null,{"$f":"ADDRESS(52,14,1,1,$S$1)","v":"'Geographic Diversification'!$N$52"},"='Schedule IIIA (EBS)'!J22",0]
[null,null,null,null,null,null,null,null,null,null,null,null,null,null,null,null,null,null,{"$f":"ADDRESS(52,15,1,1,$S$1)","v":"'Geographic Diversification'!$O$52"},"='Schedule IIIA (EBS)'!K22",0]
[null,null,null,null,null,null,null,null,null,null,null,null,null,null,null,null,null,null,{"$f":"ADDRESS(52,16,1,1,$S$1)","v":"'Geographic Diversification'!$P$52"},"='Schedule IIIA (EBS)'!L22",0]
[null,null,null,null,null,null,null,null,null,null,null,null,null,null,null,null,null,null,{"$f":"ADDRESS(52,17,1,1,$S$1)","v":"'Geographic Diversification'!$Q$52"},"='Schedule IIIA (EBS)'!M22",0]
[null,null,null,null,null,null,null,null,null,null,null,null,null,null,null,null,null,null,{"$f":"ADDRESS(52,18,1,1,$S$1)","v":"'Geographic Diversification'!$R$52"},"='Schedule IIIA (EBS)'!N22",0]
[null,null,null,null,null,null,null,null,null,null,null,null,null,null,null,null,null,null,{"$f":"ADDRESS(52,19,1,1,$S$1)","v":"'Geographic Diversification'!$S$52"},"='Schedule IIIA (EBS)'!O22",0]
[null,null,null,null,null,null,null,null,null,null,null,null,null,null,null,null,null,null,{"$f":"ADDRESS(52,20,1,1,$S$1)","v":"'Geographic Diversification'!$T$52"},"='Schedule IIIA (EBS)'!P22",0]
[null,null,null,null,null,null,null,null,null,null,null,null,null,null,null,null,null,null,{"$f":"ADDRESS(52,21,1,1,$S$1)","v":"'Geographic Diversification'!$U$52"},"='Schedule IIIA (EBS)'!Q22",0]
[null,null,null,null,null,null,null,null,null,null,null,null,null,null,null,null,null,null,{"$f":"ADDRESS(52,22,1,1,$S$1)","v":"'Geographic Diversification'!$V$52"},"='Schedule IIIA (EBS)'!R22",0]
[null,null,null,null,null,null,null,null,null,null,null,null,null,null,null,null,null,null,{"$f":"ADDRESS(52,23,1,1,$S$1)","v":"'Geographic Diversification'!$W$52"},"='Schedule IIIA (EBS)'!S22",0]
[null,null,null,null,null,null,null,null,null,null,null,null,null,null,null,null,null,null,{"$f":"ADDRESS(52,24,1,1,$S$1)","v":"'Geographic Diversification'!$X$52"},"='Schedule IIIA (EBS)'!T22",0]
[null,null,null,null,null,null,null,null,null,null,null,null,null,null,null,null,null,null,{"$f":"ADDRESS(52,25,1,1,$S$1)","v":"'Geographic Diversification'!$Y$52"},"='Schedule IIIA (EBS)'!U22",0]
[null,null,null,null,null,null,null,null,null,null,null,null,null,null,null,null,null,null,{"$f":"ADDRESS(52,26,1,1,$S$1)","v":"'Geographic Diversification'!$Z$52"},"='Schedule IIIA (EBS)'!V22",0]
[null,null,null,null,null,null,null,null,null,null,null,null,null,null,null,null,null,null,{"$f":"ADDRESS(53,4,1,1,$S$1)","v":"'Geographic Diversification'!$D$53"},"=SUM(I53:Z53)",0]
[null,null,null,null,null,null,null,null,null,null,null,null,null,null,null,null,null,null,{"$f":"ADDRESS(53,5,1,1,$S$1)","v":"'Geographic Diversification'!$E$53"},"=SUMSQ(I53:Z53)",0]
[null,null,null,null,null,null,null,null,null,null,null,null,null,null,null,null,null,null,{"$f":"ADDRESS(53,6,1,1,$S$1)","v":"'Geographic Diversification'!$F$53"},"=(IF(D53>0,E53/D53^2,1))",0]
[null,null,null,null,null,null,null,null,null,null,null,null,null,null,null,null,null,null,{"$f":"ADDRESS(53,7,1,1,$S$1)","v":"'Geographic Diversification'!$G$53"},"=D53*(0.75+0.25*F53)",0]
[null,null,null,null,null,null,null,null,null,null,null,null,null,null,null,null,null,null,{"$f":"ADDRESS(53,8,1,1,$S$1)","v":"'Geographic Diversification'!$H$53"},"=IF('Schedule IIIA (EBS)'!AB23=\"TRUE\",G53,'Schedule III (EBS)'!F23)",0]
[null,null,null,null,null,null,null,null,null,null,null,null,null,null,null,null,null,null,{"$f":"ADDRESS(53,9,1,1,$S$1)","v":"'Geographic Diversification'!$I$53"},"='Schedule IIIA (EBS)'!E23",0]
[null,null,null,null,null,null,null,null,null,null,null,null,null,null,null,null,null,null,{"$f":"ADDRESS(53,10,1,1,$S$1)","v":"'Geographic Diversification'!$J$53"},"='Schedule IIIA (EBS)'!F23",0]
[null,null,null,null,null,null,null,null,null,null,null,null,null,null,null,null,null,null,{"$f":"ADDRESS(53,11,1,1,$S$1)","v":"'Geographic Diversification'!$K$53"},"='Schedule IIIA (EBS)'!G23",0]
[null,null,null,null,null,null,null,null,null,null,null,null,null,null,null,null,null,null,{"$f":"ADDRESS(53,12,1,1,$S$1)","v":"'Geographic Diversification'!$L$53"},"='Schedule IIIA (EBS)'!H23",0]
[null,null,null,null,null,null,null,null,null,null,null,null,null,null,null,null,null,null,{"$f":"ADDRESS(53,13,1,1,$S$1)","v":"'Geographic Diversification'!$M$53"},"='Schedule IIIA (EBS)'!I23",0]
[null,null,null,null,null,null,null,null,null,null,null,null,null,null,null,null,null,null,{"$f":"ADDRESS(53,14,1,1,$S$1)","v":"'Geographic Diversification'!$N$53"},"='Schedule IIIA (EBS)'!J23",0]
[null,null,null,null,null,null,null,null,null,null,null,null,null,null,null,null,null,null,{"$f":"ADDRESS(53,15,1,1,$S$1)","v":"'Geographic Diversification'!$O$53"},"='Schedule IIIA (EBS)'!K23",0]
[null,null,null,null,null,null,null,null,null,null,null,null,null,null,null,null,null,null,{"$f":"ADDRESS(53,16,1,1,$S$1)","v":"'Geographic Diversification'!$P$53"},"='Schedule IIIA (EBS)'!L23",0]
[null,null,null,null,null,null,null,null,null,null,null,null,null,null,null,null,null,null,{"$f":"ADDRESS(53,17,1,1,$S$1)","v":"'Geographic Diversification'!$Q$53"},"='Schedule IIIA (EBS)'!M23",0]
[null,null,null,null,null,null,null,null,null,null,null,null,null,null,null,null,null,null,{"$f":"ADDRESS(53,18,1,1,$S$1)","v":"'Geographic Diversification'!$R$53"},"='Schedule IIIA (EBS)'!N23",0]
[null,null,null,null,null,null,null,null,null,null,null,null,null,null,null,null,null,null,{"$f":"ADDRESS(53,19,1,1,$S$1)","v":"'Geographic Diversification'!$S$53"},"='Schedule IIIA (EBS)'!O23",0]
[null,null,null,null,null,null,null,null,null,null,null,null,null,null,null,null,null,null,{"$f":"ADDRESS(53,20,1,1,$S$1)","v":"'Geographic Diversification'!$T$53"},"='Schedule IIIA (EBS)'!P23",0]
[null,null,null,null,null,null,null,null,null,null,null,null,null,null,null,null,null,null,{"$f":"ADDRESS(53,21,1,1,$S$1)","v":"'Geographic Diversification'!$U$53"},"='Schedule IIIA (EBS)'!Q23",0]
[null,null,null,null,null,null,null,null,null,null,null,null,null,null,null,null,null,null,{"$f":"ADDRESS(53,22,1,1,$S$1)","v":"'Geographic Diversification'!$V$53"},"='Schedule IIIA (EBS)'!R23",0]
[null,null,null,null,null,null,null,null,null,null,null,null,null,null,null,null,null,null,{"$f":"ADDRESS(53,23,1,1,$S$1)","v":"'Geographic Diversification'!$W$53"},"='Schedule IIIA (EBS)'!S23",0]
[null,null,null,null,null,null,null,null,null,null,null,null,null,null,null,null,null,null,{"$f":"ADDRESS(53,24,1,1,$S$1)","v":"'Geographic Diversification'!$X$53"},"='Schedule IIIA (EBS)'!T23",{"$f":"IF(_xlfn.FORMULATEXT(INDIRECT(S900))=T900,0,1)","v":0}]
[null,null,null,null,null,null,null,null,null,null,null,null,null,null,null,null,null,null,{"$f":"ADDRESS(53,25,1,1,$S$1)","v":"'Geographic Diversification'!$Y$53"},"='Schedule IIIA (EBS)'!U23",0]
[null,null,null,null,null,null,null,null,null,null,null,null,null,null,null,null,null,null,{"$f":"ADDRESS(53,26,1,1,$S$1)","v":"'Geographic Diversification'!$Z$53"},"='Schedule IIIA (EBS)'!V23",0]
[null,null,null,null,null,null,null,null,null,null,null,null,null,null,null,null,null,null,{"$f":"ADDRESS(54,4,1,1,$S$1)","v":"'Geographic Diversification'!$D$54"},"=SUM(I54:Z54)",0]
[null,null,null,null,null,null,null,null,null,null,null,null,null,null,null,null,null,null,{"$f":"ADDRESS(54,5,1,1,$S$1)","v":"'Geographic Diversification'!$E$54"},"=SUMSQ(I54:Z54)",0]
[null,null,null,null,null,null,null,null,null,null,null,null,null,null,null,null,null,null,{"$f":"ADDRESS(54,6,1,1,$S$1)","v":"'Geographic Diversification'!$F$54"},"=(IF(D54>0,E54/D54^2,1))",0]
[null,null,null,null,null,null,null,null,null,null,null,null,null,null,null,null,null,null,{"$f":"ADDRESS(54,7,1,1,$S$1)","v":"'Geographic Diversification'!$G$54"},"=D54*(0.75+0.25*F54)",0]
[null,null,null,null,null,null,null,null,null,null,null,null,null,null,null,null,null,null,{"$f":"ADDRESS(54,8,1,1,$S$1)","v":"'Geographic Diversification'!$H$54"},"=IF('Schedule IIIA (EBS)'!AB24=\"TRUE\",G54,'Schedule III (EBS)'!F24)",0]
[null,null,null,null,null,null,null,null,null,null,null,null,null,null,null,null,null,null,{"$f":"ADDRESS(54,9,1,1,$S$1)","v":"'Geographic Diversification'!$I$54"},"='Schedule IIIA (EBS)'!E24",0]
[null,null,null,null,null,null,null,null,null,null,null,null,null,null,null,null,null,null,{"$f":"ADDRESS(54,10,1,1,$S$1)","v":"'Geographic Diversification'!$J$54"},"='Schedule IIIA (EBS)'!F24",0]
[null,null,null,null,null,null,null,null,null,null,null,null,null,null,null,null,null,null,{"$f":"ADDRESS(54,11,1,1,$S$1)","v":"'Geographic Diversification'!$K$54"},"='Schedule IIIA (EBS)'!G24",0]
[null,null,null,null,null,null,null,null,null,null,null,null,null,null,null,null,null,null,{"$f":"ADDRESS(54,12,1,1,$S$1)","v":"'Geographic Diversification'!$L$54"},"='Schedule IIIA (EBS)'!H24",0]
[null,null,null,null,null,null,null,null,null,null,null,null,null,null,null,null,null,null,{"$f":"ADDRESS(54,13,1,1,$S$1)","v":"'Geographic Diversification'!$M$54"},"='Schedule IIIA (EBS)'!I24",0]
[null,null,null,null,null,null,null,null,null,null,null,null,null,null,null,null,null,null,{"$f":"ADDRESS(54,14,1,1,$S$1)","v":"'Geographic Diversification'!$N$54"},"='Schedule IIIA (EBS)'!J24",0]
[null,null,null,null,null,null,null,null,null,null,null,null,null,null,null,null,null,null,{"$f":"ADDRESS(54,15,1,1,$S$1)","v":"'Geographic Diversification'!$O$54"},"='Schedule IIIA (EBS)'!K24",0]
[null,null,null,null,null,null,null,null,null,null,null,null,null,null,null,null,null,null,{"$f":"ADDRESS(54,16,1,1,$S$1)","v":"'Geographic Diversification'!$P$54"},"='Schedule IIIA (EBS)'!L24",0]
[null,null,null,null,null,null,null,null,null,null,null,null,null,null,null,null,null,null,{"$f":"ADDRESS(54,17,1,1,$S$1)","v":"'Geographic Diversification'!$Q$54"},"='Schedule IIIA (EBS)'!M24",0]
[null,null,null,null,null,null,null,null,null,null,null,null,null,null,null,null,null,null,{"$f":"ADDRESS(54,18,1,1,$S$1)","v":"'Geographic Diversification'!$R$54"},"='Schedule IIIA (EBS)'!N24",0]
[null,null,null,null,null,null,null,null,null,null,null,null,null,null,null,null,null,null,{"$f":"ADDRESS(54,19,1,1,$S$1)","v":"'Geographic Diversification'!$S$54"},"='Schedule IIIA (EBS)'!O24",0]
[null,null,null,null,null,null,null,null,null,null,null,null,null,null,null,null,null,null,{"$f":"ADDRESS(54,20,1,1,$S$1)","v":"'Geographic Diversification'!$T$54"},"='Schedule IIIA (EBS)'!P24",0]
[null,null,null,null,null,null,null,null,null,null,null,null,null,null,null,null,null,null,{"$f":"ADDRESS(54,21,1,1,$S$1)","v":"'Geographic Diversification'!$U$54"},"='Schedule IIIA (EBS)'!Q24",0]
[null,null,null,null,null,null,null,null,null,null,null,null,null,null,null,null,null,null,{"$f":"ADDRESS(54,22,1,1,$S$1)","v":"'Geographic Diversification'!$V$54"},"='Schedule IIIA (EBS)'!R24",0]
[null,null,null,null,null,null,null,null,null,null,null,null,null,null,null,null,null,null,{"$f":"ADDRESS(54,23,1,1,$S$1)","v":"'Geographic Diversification'!$W$54"},"='Schedule IIIA (EBS)'!S24",0]
[null,null,null,null,null,null,null,null,null,null,null,null,null,null,null,null,null,null,{"$f":"ADDRESS(54,24,1,1,$S$1)","v":"'Geographic Diversification'!$X$54"},"='Schedule IIIA (EBS)'!T24",0]
[null,null,null,null,null,null,null,null,null,null,null,null,null,null,null,null,null,null,{"$f":"ADDRESS(54,25,1,1,$S$1)","v":"'Geographic Diversification'!$Y$54"},"='Schedule IIIA (EBS)'!U24",0]
[null,null,null,null,null,null,null,null,null,null,null,null,null,null,null,null,null,null,{"$f":"ADDRESS(54,26,1,1,$S$1)","v":"'Geographic Diversification'!$Z$54"},"='Schedule IIIA (EBS)'!V24",0]
[null,null,null,null,null,null,null,null,null,null,null,null,null,null,null,null,null,null,{"$f":"ADDRESS(55,4,1,1,$S$1)","v":"'Geographic Diversification'!$D$55"},"=SUM(I55:Z55)",0]
[null,null,null,null,null,null,null,null,null,null,null,null,null,null,null,null,null,null,{"$f":"ADDRESS(55,5,1,1,$S$1)","v":"'Geographic Diversification'!$E$55"},"=SUMSQ(I55:Z55)",0]
[null,null,null,null,null,null,null,null,null,null,null,null,null,null,null,null,null,null,{"$f":"ADDRESS(55,6,1,1,$S$1)","v":"'Geographic Diversification'!$F$55"},"=(IF(D55>0,E55/D55^2,1))",0]
[null,null,null,null,null,null,null,null,null,null,null,null,null,null,null,null,null,null,{"$f":"ADDRESS(55,7,1,1,$S$1)","v":"'Geographic Diversification'!$G$55"},"=D55*(0.75+0.25*F55)",0]
[null,null,null,null,null,null,null,null,null,null,null,null,null,null,null,null,null,null,{"$f":"ADDRESS(55,8,1,1,$S$1)","v":"'Geographic Diversification'!$H$55"},"=IF('Schedule IIIA (EBS)'!AB25=\"TRUE\",G55,'Schedule III (EBS)'!F25)",0]
[null,null,null,null,null,null,null,null,null,null,null,null,null,null,null,null,null,null,{"$f":"ADDRESS(55,9,1,1,$S$1)","v":"'Geographic Diversification'!$I$55"},"='Schedule IIIA (EBS)'!E25",0]
[null,null,null,null,null,null,null,null,null,null,null,null,null,null,null,null,null,null,{"$f":"ADDRESS(55,10,1,1,$S$1)","v":"'Geographic Diversification'!$J$55"},"='Schedule IIIA (EBS)'!F25",0]
[null,null,null,null,null,null,null,null,null,null,null,null,null,null,null,null,null,null,{"$f":"ADDRESS(55,11,1,1,$S$1)","v":"'Geographic Diversification'!$K$55"},"='Schedule IIIA (EBS)'!G25",0]
[null,null,null,null,null,null,null,null,null,null,null,null,null,null,null,null,null,null,{"$f":"ADDRESS(55,12,1,1,$S$1)","v":"'Geographic Diversification'!$L$55"},"='Schedule IIIA (EBS)'!H25",0]
[null,null,null,null,null,null,null,null,null,null,null,null,null,null,null,null,null,null,{"$f":"ADDRESS(55,13,1,1,$S$1)","v":"'Geographic Diversification'!$M$55"},"='Schedule IIIA (EBS)'!I25",0]
[null,null,null,null,null,null,null,null,null,null,null,null,null,null,null,null,null,null,{"$f":"ADDRESS(55,14,1,1,$S$1)","v":"'Geographic Diversification'!$N$55"},"='Schedule IIIA (EBS)'!J25",0]
[null,null,null,null,null,null,null,null,null,null,null,null,null,null,null,null,null,null,{"$f":"ADDRESS(55,15,1,1,$S$1)","v":"'Geographic Diversification'!$O$55"},"='Schedule IIIA (EBS)'!K25",0]
[null,null,null,null,null,null,null,null,null,null,null,null,null,null,null,null,null,null,{"$f":"ADDRESS(55,16,1,1,$S$1)","v":"'Geographic Diversification'!$P$55"},"='Schedule IIIA (EBS)'!L25",0]
[null,null,null,null,null,null,null,null,null,null,null,null,null,null,null,null,null,null,{"$f":"ADDRESS(55,17,1,1,$S$1)","v":"'Geographic Diversification'!$Q$55"},"='Schedule IIIA (EBS)'!M25",0]
[null,null,null,null,null,null,null,null,null,null,null,null,null,null,null,null,null,null,{"$f":"ADDRESS(55,18,1,1,$S$1)","v":"'Geographic Diversification'!$R$55"},"='Schedule IIIA (EBS)'!N25",0]
[null,null,null,null,null,null,null,null,null,null,null,null,null,null,null,null,null,null,{"$f":"ADDRESS(55,19,1,1,$S$1)","v":"'Geographic Diversification'!$S$55"},"='Schedule IIIA (EBS)'!O25",0]
[null,null,null,null,null,null,null,null,null,null,null,null,null,null,null,null,null,null,{"$f":"ADDRESS(55,20,1,1,$S$1)","v":"'Geographic Diversification'!$T$55"},"='Schedule IIIA (EBS)'!P25",0]
[null,null,null,null,null,null,null,null,null,null,null,null,null,null,null,null,null,null,{"$f":"ADDRESS(55,21,1,1,$S$1)","v":"'Geographic Diversification'!$U$55"},"='Schedule IIIA (EBS)'!Q25",0]
[null,null,null,null,null,null,null,null,null,null,null,null,null,null,null,null,null,null,{"$f":"ADDRESS(55,22,1,1,$S$1)","v":"'Geographic Diversification'!$V$55"},"='Schedule IIIA (EBS)'!R25",0]
[null,null,null,null,null,null,null,null,null,null,null,null,null,null,null,null,null,null,{"$f":"ADDRESS(55,23,1,1,$S$1)","v":"'Geographic Diversification'!$W$55"},"='Schedule IIIA (EBS)'!S25",0]
[null,null,null,null,null,null,null,null,null,null,null,null,null,null,null,null,null,null,{"$f":"ADDRESS(55,24,1,1,$S$1)","v":"'Geographic Diversification'!$X$55"},"='Schedule IIIA (EBS)'!T25",0]
[null,null,null,null,null,null,null,null,null,null,null,null,null,null,null,null,null,null,{"$f":"ADDRESS(55,25,1,1,$S$1)","v":"'Geographic Diversification'!$Y$55"},"='Schedule IIIA (EBS)'!U25",0]
[null,null,null,null,null,null,null,null,null,null,null,null,null,null,null,null,null,null,{"$f":"ADDRESS(55,26,1,1,$S$1)","v":"'Geographic Diversification'!$Z$55"},"='Schedule IIIA (EBS)'!V25",0]
[null,null,null,null,null,null,null,null,null,null,null,null,null,null,null,null,null,null,{"$f":"ADDRESS(56,4,1,1,$S$1)","v":"'Geographic Diversification'!$D$56"},"=SUM(I56:Z56)",0]
[null,null,null,null,null,null,null,null,null,null,null,null,null,null,null,null,null,null,{"$f":"ADDRESS(56,5,1,1,$S$1)","v":"'Geographic Diversification'!$E$56"},"=SUMSQ(I56:Z56)",0]
[null,null,null,null,null,null,null,null,null,null,null,null,null,null,null,null,null,null,{"$f":"ADDRESS(56,6,1,1,$S$1)","v":"'Geographic Diversification'!$F$56"},"=(IF(D56>0,E56/D56^2,1))",0]
[null,null,null,null,null,null,null,null,null,null,null,null,null,null,null,null,null,null,{"$f":"ADDRESS(56,7,1,1,$S$1)","v":"'Geographic Diversification'!$G$56"},"=D56*(0.75+0.25*F56)",0]
[null,null,null,null,null,null,null,null,null,null,null,null,null,null,null,null,null,null,{"$f":"ADDRESS(56,8,1,1,$S$1)","v":"'Geographic Diversification'!$H$56"},"=IF('Schedule IIIA (EBS)'!AB26=\"TRUE\",G56,'Schedule III (EBS)'!F26)",0]
[null,null,null,null,null,null,null,null,null,null,null,null,null,null,null,null,null,null,{"$f":"ADDRESS(56,9,1,1,$S$1)","v":"'Geographic Diversification'!$I$56"},"='Schedule IIIA (EBS)'!E26",0]
[null,null,null,null,null,null,null,null,null,null,null,null,null,null,null,null,null,null,{"$f":"ADDRESS(56,10,1,1,$S$1)","v":"'Geographic Diversification'!$J$56"},"='Schedule IIIA (EBS)'!F26",0]
[null,null,null,null,null,null,null,null,null,null,null,null,null,null,null,null,null,null,{"$f":"ADDRESS(56,11,1,1,$S$1)","v":"'Geographic Diversification'!$K$56"},"='Schedule IIIA (EBS)'!G26",0]
[null,null,null,null,null,null,null,null,null,null,null,null,null,null,null,null,null,null,{"$f":"ADDRESS(56,12,1,1,$S$1)","v":"'Geographic Diversification'!$L$56"},"='Schedule IIIA (EBS)'!H26",0]
[null,null,null,null,null,null,null,null,null,null,null,null,null,null,null,null,null,null,{"$f":"ADDRESS(56,13,1,1,$S$1)","v":"'Geographic Diversification'!$M$56"},"='Schedule IIIA (EBS)'!I26",0]
[null,null,null,null,null,null,null,null,null,null,null,null,null,null,null,null,null,null,{"$f":"ADDRESS(56,14,1,1,$S$1)","v":"'Geographic Diversification'!$N$56"},"='Schedule IIIA (EBS)'!J26",0]
[null,null,null,null,null,null,null,null,null,null,null,null,null,null,null,null,null,null,{"$f":"ADDRESS(56,15,1,1,$S$1)","v":"'Geographic Diversification'!$O$56"},"='Schedule IIIA (EBS)'!K26",0]
[null,null,null,null,null,null,null,null,null,null,null,null,null,null,null,null,null,null,{"$f":"ADDRESS(56,16,1,1,$S$1)","v":"'Geographic Diversification'!$P$56"},"='Schedule IIIA (EBS)'!L26",0]
[null,null,null,null,null,null,null,null,null,null,null,null,null,null,null,null,null,null,{"$f":"ADDRESS(56,17,1,1,$S$1)","v":"'Geographic Diversification'!$Q$56"},"='Schedule IIIA (EBS)'!M26",0]
[null,null,null,null,null,null,null,null,null,null,null,null,null,null,null,null,null,null,{"$f":"ADDRESS(56,18,1,1,$S$1)","v":"'Geographic Diversification'!$R$56"},"='Schedule IIIA (EBS)'!N26",0]
[null,null,null,null,null,null,null,null,null,null,null,null,null,null,null,null,null,null,{"$f":"ADDRESS(56,19,1,1,$S$1)","v":"'Geographic Diversification'!$S$56"},"='Schedule IIIA (EBS)'!O26",{"$f":"IF(_xlfn.FORMULATEXT(INDIRECT(S964))=T964,0,1)","v":0}]
[null,null,null,null,null,null,null,null,null,null,null,null,null,null,null,null,null,null,{"$f":"ADDRESS(56,20,1,1,$S$1)","v":"'Geographic Diversification'!$T$56"},"='Schedule IIIA (EBS)'!P26",0]
[null,null,null,null,null,null,null,null,null,null,null,null,null,null,null,null,null,null,{"$f":"ADDRESS(56,21,1,1,$S$1)","v":"'Geographic Diversification'!$U$56"},"='Schedule IIIA (EBS)'!Q26",0]
[null,null,null,null,null,null,null,null,null,null,null,null,null,null,null,null,null,null,{"$f":"ADDRESS(56,22,1,1,$S$1)","v":"'Geographic Diversification'!$V$56"},"='Schedule IIIA (EBS)'!R26",0]
[null,null,null,null,null,null,null,null,null,null,null,null,null,null,null,null,null,null,{"$f":"ADDRESS(56,23,1,1,$S$1)","v":"'Geographic Diversification'!$W$56"},"='Schedule IIIA (EBS)'!S26",0]
[null,null,null,null,null,null,null,null,null,null,null,null,null,null,null,null,null,null,{"$f":"ADDRESS(56,24,1,1,$S$1)","v":"'Geographic Diversification'!$X$56"},"='Schedule IIIA (EBS)'!T26",0]
[null,null,null,null,null,null,null,null,null,null,null,null,null,null,null,null,null,null,{"$f":"ADDRESS(56,25,1,1,$S$1)","v":"'Geographic Diversification'!$Y$56"},"='Schedule IIIA (EBS)'!U26",0]
[null,null,null,null,null,null,null,null,null,null,null,null,null,null,null,null,null,null,{"$f":"ADDRESS(56,26,1,1,$S$1)","v":"'Geographic Diversification'!$Z$56"},"='Schedule IIIA (EBS)'!V26",0]
[null,null,null,null,null,null,null,null,null,null,null,null,null,null,null,null,null,null,{"$f":"ADDRESS(57,4,1,1,$S$1)","v":"'Geographic Diversification'!$D$57"},"=SUM(I57:Z57)",0]
[null,null,null,null,null,null,null,null,null,null,null,null,null,null,null,null,null,null,{"$f":"ADDRESS(57,5,1,1,$S$1)","v":"'Geographic Diversification'!$E$57"},"=SUMSQ(I57:Z57)",0]
[null,null,null,null,null,null,null,null,null,null,null,null,null,null,null,null,null,null,{"$f":"ADDRESS(57,6,1,1,$S$1)","v":"'Geographic Diversification'!$F$57"},"=(IF(D57>0,E57/D57^2,1))",0]
[null,null,null,null,null,null,null,null,null,null,null,null,null,null,null,null,null,null,{"$f":"ADDRESS(57,7,1,1,$S$1)","v":"'Geographic Diversification'!$G$57"},"=D57*(0.75+0.25*F57)",0]
[null,null,null,null,null,null,null,null,null,null,null,null,null,null,null,null,null,null,{"$f":"ADDRESS(57,8,1,1,$S$1)","v":"'Geographic Diversification'!$H$57"},"=IF('Schedule IIIA (EBS)'!AB27=\"TRUE\",G57,'Schedule III (EBS)'!F27)",0]
[null,null,null,null,null,null,null,null,null,null,null,null,null,null,null,null,null,null,{"$f":"ADDRESS(57,9,1,1,$S$1)","v":"'Geographic Diversification'!$I$57"},"='Schedule IIIA (EBS)'!E27",0]
[null,null,null,null,null,null,null,null,null,null,null,null,null,null,null,null,null,null,{"$f":"ADDRESS(57,10,1,1,$S$1)","v":"'Geographic Diversification'!$J$57"},"='Schedule IIIA (EBS)'!F27",0]
[null,null,null,null,null,null,null,null,null,null,null,null,null,null,null,null,null,null,{"$f":"ADDRESS(57,11,1,1,$S$1)","v":"'Geographic Diversification'!$K$57"},"='Schedule IIIA (EBS)'!G27",0]
[null,null,null,null,null,null,null,null,null,null,null,null,null,null,null,null,null,null,{"$f":"ADDRESS(57,12,1,1,$S$1)","v":"'Geographic Diversification'!$L$57"},"='Schedule IIIA (EBS)'!H27",0]
[null,null,null,null,null,null,null,null,null,null,null,null,null,null,null,null,null,null,{"$f":"ADDRESS(57,13,1,1,$S$1)","v":"'Geographic Diversification'!$M$57"},"='Schedule IIIA (EBS)'!I27",0]
[null,null,null,null,null,null,null,null,null,null,null,null,null,null,null,null,null,null,{"$f":"ADDRESS(57,14,1,1,$S$1)","v":"'Geographic Diversification'!$N$57"},"='Schedule IIIA (EBS)'!J27",0]
[null,null,null,null,null,null,null,null,null,null,null,null,null,null,null,null,null,null,{"$f":"ADDRESS(57,15,1,1,$S$1)","v":"'Geographic Diversification'!$O$57"},"='Schedule IIIA (EBS)'!K27",0]
[null,null,null,null,null,null,null,null,null,null,null,null,null,null,null,null,null,null,{"$f":"ADDRESS(57,16,1,1,$S$1)","v":"'Geographic Diversification'!$P$57"},"='Schedule IIIA (EBS)'!L27",0]
[null,null,null,null,null,null,null,null,null,null,null,null,null,null,null,null,null,null,{"$f":"ADDRESS(57,17,1,1,$S$1)","v":"'Geographic Diversification'!$Q$57"},"='Schedule IIIA (EBS)'!M27",0]
[null,null,null,null,null,null,null,null,null,null,null,null,null,null,null,null,null,null,{"$f":"ADDRESS(57,18,1,1,$S$1)","v":"'Geographic Diversification'!$R$57"},"='Schedule IIIA (EBS)'!N27",0]
[null,null,null,null,null,null,null,null,null,null,null,null,null,null,null,null,null,null,{"$f":"ADDRESS(57,19,1,1,$S$1)","v":"'Geographic Diversification'!$S$57"},"='Schedule IIIA (EBS)'!O27",0]
[null,null,null,null,null,null,null,null,null,null,null,null,null,null,null,null,null,null,{"$f":"ADDRESS(57,20,1,1,$S$1)","v":"'Geographic Diversification'!$T$57"},"='Schedule IIIA (EBS)'!P27",0]
[null,null,null,null,null,null,null,null,null,null,null,null,null,null,null,null,null,null,{"$f":"ADDRESS(57,21,1,1,$S$1)","v":"'Geographic Diversification'!$U$57"},"='Schedule IIIA (EBS)'!Q27",0]
[null,null,null,null,null,null,null,null,null,null,null,null,null,null,null,null,null,null,{"$f":"ADDRESS(57,22,1,1,$S$1)","v":"'Geographic Diversification'!$V$57"},"='Schedule IIIA (EBS)'!R27",0]
[null,null,null,null,null,null,null,null,null,null,null,null,null,null,null,null,null,null,{"$f":"ADDRESS(57,23,1,1,$S$1)","v":"'Geographic Diversification'!$W$57"},"='Schedule IIIA (EBS)'!S27",0]
[null,null,null,null,null,null,null,null,null,null,null,null,null,null,null,null,null,null,{"$f":"ADDRESS(57,24,1,1,$S$1)","v":"'Geographic Diversification'!$X$57"},"='Schedule IIIA (EBS)'!T27",0]
[null,null,null,null,null,null,null,null,null,null,null,null,null,null,null,null,null,null,{"$f":"ADDRESS(57,25,1,1,$S$1)","v":"'Geographic Diversification'!$Y$57"},"='Schedule IIIA (EBS)'!U27",0]
[null,null,null,null,null,null,null,null,null,null,null,null,null,null,null,null,null,null,{"$f":"ADDRESS(57,26,1,1,$S$1)","v":"'Geographic Diversification'!$Z$57"},"='Schedule IIIA (EBS)'!V27",0]
[null,null,null,null,null,null,null,null,null,null,null,null,null,null,null,null,null,null,{"$f":"ADDRESS(58,4,1,1,$S$1)","v":"'Geographic Diversification'!$D$58"},"=SUM(I58:Z58)",0]
[null,null,null,null,null,null,null,null,null,null,null,null,null,null,null,null,null,null,{"$f":"ADDRESS(58,5,1,1,$S$1)","v":"'Geographic Diversification'!$E$58"},"=SUMSQ(I58:Z58)",0]
[null,null,null,null,null,null,null,null,null,null,null,null,null,null,null,null,null,null,{"$f":"ADDRESS(58,6,1,1,$S$1)","v":"'Geographic Diversification'!$F$58"},"=(IF(D58>0,E58/D58^2,1))",0]
[null,null,null,null,null,null,null,null,null,null,null,null,null,null,null,null,null,null,{"$f":"ADDRESS(58,7,1,1,$S$1)","v":"'Geographic Diversification'!$G$58"},"=D58*(0.75+0.25*F58)",0]
[null,null,null,null,null,null,null,null,null,null,null,null,null,null,null,null,null,null,{"$f":"ADDRESS(58,8,1,1,$S$1)","v":"'Geographic Diversification'!$H$58"},"=IF('Schedule IIIA (EBS)'!AB28=\"TRUE\",G58,'Schedule III (EBS)'!F28)",0]
[null,null,null,null,null,null,null,null,null,null,null,null,null,null,null,null,null,null,{"$f":"ADDRESS(58,9,1,1,$S$1)","v":"'Geographic Diversification'!$I$58"},"='Schedule IIIA (EBS)'!E28",0]
[null,null,null,null,null,null,null,null,null,null,null,null,null,null,null,null,null,null,{"$f":"ADDRESS(58,10,1,1,$S$1)","v":"'Geographic Diversification'!$J$58"},"='Schedule IIIA (EBS)'!F28",0]
[null,null,null,null,null,null,null,null,null,null,null,null,null,null,null,null,null,null,{"$f":"ADDRESS(58,11,1,1,$S$1)","v":"'Geographic Diversification'!$K$58"},"='Schedule IIIA (EBS)'!G28",0]
[null,null,null,null,null,null,null,null,null,null,null,null,null,null,null,null,null,null,{"$f":"ADDRESS(58,12,1,1,$S$1)","v":"'Geographic Diversification'!$L$58"},"='Schedule IIIA (EBS)'!H28",0]
[null,null,null,null,null,null,null,null,null,null,null,null,null,null,null,null,null,null,{"$f":"ADDRESS(58,13,1,1,$S$1)","v":"'Geographic Diversification'!$M$58"},"='Schedule IIIA (EBS)'!I28",0]
[null,null,null,null,null,null,null,null,null,null,null,null,null,null,null,null,null,null,{"$f":"ADDRESS(58,14,1,1,$S$1)","v":"'Geographic Diversification'!$N$58"},"='Schedule IIIA (EBS)'!J28",0]
[null,null,null,null,null,null,null,null,null,null,null,null,null,null,null,null,null,null,{"$f":"ADDRESS(58,15,1,1,$S$1)","v":"'Geographic Diversification'!$O$58"},"='Schedule IIIA (EBS)'!K28",0]
[null,null,null,null,null,null,null,null,null,null,null,null,null,null,null,null,null,null,{"$f":"ADDRESS(58,16,1,1,$S$1)","v":"'Geographic Diversification'!$P$58"},"='Schedule IIIA (EBS)'!L28",0]
[null,null,null,null,null,null,null,null,null,null,null,null,null,null,null,null,null,null,{"$f":"ADDRESS(58,17,1,1,$S$1)","v":"'Geographic Diversification'!$Q$58"},"='Schedule IIIA (EBS)'!M28",0]
[null,null,null,null,null,null,null,null,null,null,null,null,null,null,null,null,null,null,{"$f":"ADDRESS(58,18,1,1,$S$1)","v":"'Geographic Diversification'!$R$58"},"='Schedule IIIA (EBS)'!N28",0]
[null,null,null,null,null,null,null,null,null,null,null,null,null,null,null,null,null,null,{"$f":"ADDRESS(58,19,1,1,$S$1)","v":"'Geographic Diversification'!$S$58"},"='Schedule IIIA (EBS)'!O28",0]
[null,null,null,null,null,null,null,null,null,null,null,null,null,null,null,null,null,null,{"$f":"ADDRESS(58,20,1,1,$S$1)","v":"'Geographic Diversification'!$T$58"},"='Schedule IIIA (EBS)'!P28",0]
[null,null,null,null,null,null,null,null,null,null,null,null,null,null,null,null,null,null,{"$f":"ADDRESS(58,21,1,1,$S$1)","v":"'Geographic Diversification'!$U$58"},"='Schedule IIIA (EBS)'!Q28",0]
[null,null,null,null,null,null,null,null,null,null,null,null,null,null,null,null,null,null,{"$f":"ADDRESS(58,22,1,1,$S$1)","v":"'Geographic Diversification'!$V$58"},"='Schedule IIIA (EBS)'!R28",0]
[null,null,null,null,null,null,null,null,null,null,null,null,null,null,null,null,null,null,{"$f":"ADDRESS(58,23,1,1,$S$1)","v":"'Geographic Diversification'!$W$58"},"='Schedule IIIA (EBS)'!S28",0]
[null,null,null,null,null,null,null,null,null,null,null,null,null,null,null,null,null,null,{"$f":"ADDRESS(58,24,1,1,$S$1)","v":"'Geographic Diversification'!$X$58"},"='Schedule IIIA (EBS)'!T28",0]
[null,null,null,null,null,null,null,null,null,null,null,null,null,null,null,null,null,null,{"$f":"ADDRESS(58,25,1,1,$S$1)","v":"'Geographic Diversification'!$Y$58"},"='Schedule IIIA (EBS)'!U28",0]
[null,null,null,null,null,null,null,null,null,null,null,null,null,null,null,null,null,null,{"$f":"ADDRESS(58,26,1,1,$S$1)","v":"'Geographic Diversification'!$Z$58"},"='Schedule IIIA (EBS)'!V28",0]
[null,null,null,null,null,null,null,null,null,null,null,null,null,null,null,null,null,null,{"$f":"ADDRESS(59,4,1,1,$S$1)","v":"'Geographic Diversification'!$D$59"},"=SUM(I59:Z59)",0]
[null,null,null,null,null,null,null,null,null,null,null,null,null,null,null,null,null,null,{"$f":"ADDRESS(59,5,1,1,$S$1)","v":"'Geographic Diversification'!$E$59"},"=SUMSQ(I59:Z59)",0]
[null,null,null,null,null,null,null,null,null,null,null,null,null,null,null,null,null,null,{"$f":"ADDRESS(59,6,1,1,$S$1)","v":"'Geographic Diversification'!$F$59"},"=(IF(D59>0,E59/D59^2,1))",0]
[null,null,null,null,null,null,null,null,null,null,null,null,null,null,null,null,null,null,{"$f":"ADDRESS(59,7,1,1,$S$1)","v":"'Geographic Diversification'!$G$59"},"=D59*(0.75+0.25*F59)",0]
[null,null,null,null,null,null,null,null,null,null,null,null,null,null,null,null,null,null,{"$f":"ADDRESS(59,8,1,1,$S$1)","v":"'Geographic Diversification'!$H$59"},"=IF('Schedule IIIA (EBS)'!AB29=\"TRUE\",G59,'Schedule III (EBS)'!F29)",0]
[null,null,null,null,null,null,null,null,null,null,null,null,null,null,null,null,null,null,{"$f":"ADDRESS(59,9,1,1,$S$1)","v":"'Geographic Diversification'!$I$59"},"='Schedule IIIA (EBS)'!E29",0]
[null,null,null,null,null,null,null,null,null,null,null,null,null,null,null,null,null,null,{"$f":"ADDRESS(59,10,1,1,$S$1)","v":"'Geographic Diversification'!$J$59"},"='Schedule IIIA (EBS)'!F29",0]
[null,null,null,null,null,null,null,null,null,null,null,null,null,null,null,null,null,null,{"$f":"ADDRESS(59,11,1,1,$S$1)","v":"'Geographic Diversification'!$K$59"},"='Schedule IIIA (EBS)'!G29",0]
[null,null,null,null,null,null,null,null,null,null,null,null,null,null,null,null,null,null,{"$f":"ADDRESS(59,12,1,1,$S$1)","v":"'Geographic Diversification'!$L$59"},"='Schedule IIIA (EBS)'!H29",0]
[null,null,null,null,null,null,null,null,null,null,null,null,null,null,null,null,null,null,{"$f":"ADDRESS(59,13,1,1,$S$1)","v":"'Geographic Diversification'!$M$59"},"='Schedule IIIA (EBS)'!I29",0]
[null,null,null,null,null,null,null,null,null,null,null,null,null,null,null,null,null,null,{"$f":"ADDRESS(59,14,1,1,$S$1)","v":"'Geographic Diversification'!$N$59"},"='Schedule IIIA (EBS)'!J29",{"$f":"IF(_xlfn.FORMULATEXT(INDIRECT(S1028))=T1028,0,1)","v":0}]
[null,null,null,null,null,null,null,null,null,null,null,null,null,null,null,null,null,null,{"$f":"ADDRESS(59,15,1,1,$S$1)","v":"'Geographic Diversification'!$O$59"},"='Schedule IIIA (EBS)'!K29",0]
[null,null,null,null,null,null,null,null,null,null,null,null,null,null,null,null,null,null,{"$f":"ADDRESS(59,16,1,1,$S$1)","v":"'Geographic Diversification'!$P$59"},"='Schedule IIIA (EBS)'!L29",0]
[null,null,null,null,null,null,null,null,null,null,null,null,null,null,null,null,null,null,{"$f":"ADDRESS(59,17,1,1,$S$1)","v":"'Geographic Diversification'!$Q$59"},"='Schedule IIIA (EBS)'!M29",0]
[null,null,null,null,null,null,null,null,null,null,null,null,null,null,null,null,null,null,{"$f":"ADDRESS(59,18,1,1,$S$1)","v":"'Geographic Diversification'!$R$59"},"='Schedule IIIA (EBS)'!N29",0]
[null,null,null,null,null,null,null,null,null,null,null,null,null,null,null,null,null,null,{"$f":"ADDRESS(59,19,1,1,$S$1)","v":"'Geographic Diversification'!$S$59"},"='Schedule IIIA (EBS)'!O29",0]
[null,null,null,null,null,null,null,null,null,null,null,null,null,null,null,null,null,null,{"$f":"ADDRESS(59,20,1,1,$S$1)","v":"'Geographic Diversification'!$T$59"},"='Schedule IIIA (EBS)'!P29",0]
[null,null,null,null,null,null,null,null,null,null,null,null,null,null,null,null,null,null,{"$f":"ADDRESS(59,21,1,1,$S$1)","v":"'Geographic Diversification'!$U$59"},"='Schedule IIIA (EBS)'!Q29",0]
[null,null,null,null,null,null,null,null,null,null,null,null,null,null,null,null,null,null,{"$f":"ADDRESS(59,22,1,1,$S$1)","v":"'Geographic Diversification'!$V$59"},"='Schedule IIIA (EBS)'!R29",0]
[null,null,null,null,null,null,null,null,null,null,null,null,null,null,null,null,null,null,{"$f":"ADDRESS(59,23,1,1,$S$1)","v":"'Geographic Diversification'!$W$59"},"='Schedule IIIA (EBS)'!S29",0]
[null,null,null,null,null,null,null,null,null,null,null,null,null,null,null,null,null,null,{"$f":"ADDRESS(59,24,1,1,$S$1)","v":"'Geographic Diversification'!$X$59"},"='Schedule IIIA (EBS)'!T29",0]
[null,null,null,null,null,null,null,null,null,null,null,null,null,null,null,null,null,null,{"$f":"ADDRESS(59,25,1,1,$S$1)","v":"'Geographic Diversification'!$Y$59"},"='Schedule IIIA (EBS)'!U29",0]
[null,null,null,null,null,null,null,null,null,null,null,null,null,null,null,null,null,null,{"$f":"ADDRESS(59,26,1,1,$S$1)","v":"'Geographic Diversification'!$Z$59"},"='Schedule IIIA (EBS)'!V29",0]
[null,null,null,null,null,null,null,null,null,null,null,null,null,null,null,null,null,null,{"$f":"ADDRESS(60,4,1,1,$S$1)","v":"'Geographic Diversification'!$D$60"},"=SUM(I60:Z60)",0]
[null,null,null,null,null,null,null,null,null,null,null,null,null,null,null,null,null,null,{"$f":"ADDRESS(60,5,1,1,$S$1)","v":"'Geographic Diversification'!$E$60"},"=SUMSQ(I60:Z60)",0]
[null,null,null,null,null,null,null,null,null,null,null,null,null,null,null,null,null,null,{"$f":"ADDRESS(60,6,1,1,$S$1)","v":"'Geographic Diversification'!$F$60"},"=(IF(D60>0,E60/D60^2,1))",0]
[null,null,null,null,null,null,null,null,null,null,null,null,null,null,null,null,null,null,{"$f":"ADDRESS(60,7,1,1,$S$1)","v":"'Geographic Diversification'!$G$60"},"=D60*(0.75+0.25*F60)",0]
[null,null,null,null,null,null,null,null,null,null,null,null,null,null,null,null,null,null,{"$f":"ADDRESS(60,8,1,1,$S$1)","v":"'Geographic Diversification'!$H$60"},"=IF('Schedule IIIA (EBS)'!AB30=\"TRUE\",G60,'Schedule III (EBS)'!F30)",0]
[null,null,null,null,null,null,null,null,null,null,null,null,null,null,null,null,null,null,{"$f":"ADDRESS(60,9,1,1,$S$1)","v":"'Geographic Diversification'!$I$60"},"='Schedule IIIA (EBS)'!E30",0]
[null,null,null,null,null,null,null,null,null,null,null,null,null,null,null,null,null,null,{"$f":"ADDRESS(60,10,1,1,$S$1)","v":"'Geographic Diversification'!$J$60"},"='Schedule IIIA (EBS)'!F30",0]
[null,null,null,null,null,null,null,null,null,null,null,null,null,null,null,null,null,null,{"$f":"ADDRESS(60,11,1,1,$S$1)","v":"'Geographic Diversification'!$K$60"},"='Schedule IIIA (EBS)'!G30",0]
[null,null,null,null,null,null,null,null,null,null,null,null,null,null,null,null,null,null,{"$f":"ADDRESS(60,12,1,1,$S$1)","v":"'Geographic Diversification'!$L$60"},"='Schedule IIIA (EBS)'!H30",0]
[null,null,null,null,null,null,null,null,null,null,null,null,null,null,null,null,null,null,{"$f":"ADDRESS(60,13,1,1,$S$1)","v":"'Geographic Diversification'!$M$60"},"='Schedule IIIA (EBS)'!I30",0]
[null,null,null,null,null,null,null,null,null,null,null,null,null,null,null,null,null,null,{"$f":"ADDRESS(60,14,1,1,$S$1)","v":"'Geographic Diversification'!$N$60"},"='Schedule IIIA (EBS)'!J30",0]
[null,null,null,null,null,null,null,null,null,null,null,null,null,null,null,null,null,null,{"$f":"ADDRESS(60,15,1,1,$S$1)","v":"'Geographic Diversification'!$O$60"},"='Schedule IIIA (EBS)'!K30",0]
[null,null,null,null,null,null,null,null,null,null,null,null,null,null,null,null,null,null,{"$f":"ADDRESS(60,16,1,1,$S$1)","v":"'Geographic Diversification'!$P$60"},"='Schedule IIIA (EBS)'!L30",0]
[null,null,null,null,null,null,null,null,null,null,null,null,null,null,null,null,null,null,{"$f":"ADDRESS(60,17,1,1,$S$1)","v":"'Geographic Diversification'!$Q$60"},"='Schedule IIIA (EBS)'!M30",0]
[null,null,null,null,null,null,null,null,null,null,null,null,null,null,null,null,null,null,{"$f":"ADDRESS(60,18,1,1,$S$1)","v":"'Geographic Diversification'!$R$60"},"='Schedule IIIA (EBS)'!N30",0]
[null,null,null,null,null,null,null,null,null,null,null,null,null,null,null,null,null,null,{"$f":"ADDRESS(60,19,1,1,$S$1)","v":"'Geographic Diversification'!$S$60"},"='Schedule IIIA (EBS)'!O30",0]
[null,null,null,null,null,null,null,null,null,null,null,null,null,null,null,null,null,null,{"$f":"ADDRESS(60,20,1,1,$S$1)","v":"'Geographic Diversification'!$T$60"},"='Schedule IIIA (EBS)'!P30",0]
[null,null,null,null,null,null,null,null,null,null,null,null,null,null,null,null,null,null,{"$f":"ADDRESS(60,21,1,1,$S$1)","v":"'Geographic Diversification'!$U$60"},"='Schedule IIIA (EBS)'!Q30",0]
[null,null,null,null,null,null,null,null,null,null,null,null,null,null,null,null,null,null,{"$f":"ADDRESS(60,22,1,1,$S$1)","v":"'Geographic Diversification'!$V$60"},"='Schedule IIIA (EBS)'!R30",0]
[null,null,null,null,null,null,null,null,null,null,null,null,null,null,null,null,null,null,{"$f":"ADDRESS(60,23,1,1,$S$1)","v":"'Geographic Diversification'!$W$60"},"='Schedule IIIA (EBS)'!S30",0]
[null,null,null,null,null,null,null,null,null,null,null,null,null,null,null,null,null,null,{"$f":"ADDRESS(60,24,1,1,$S$1)","v":"'Geographic Diversification'!$X$60"},"='Schedule IIIA (EBS)'!T30",0]
[null,null,null,null,null,null,null,null,null,null,null,null,null,null,null,null,null,null,{"$f":"ADDRESS(60,25,1,1,$S$1)","v":"'Geographic Diversification'!$Y$60"},"='Schedule IIIA (EBS)'!U30",0]
[null,null,null,null,null,null,null,null,null,null,null,null,null,null,null,null,null,null,{"$f":"ADDRESS(60,26,1,1,$S$1)","v":"'Geographic Diversification'!$Z$60"},"='Schedule IIIA (EBS)'!V30",0]
[null,null,null,null,null,null,null,null,null,null,null,null,null,null,null,null,null,null,{"$f":"ADDRESS(61,4,1,1,$S$1)","v":"'Geographic Diversification'!$D$61"},"=SUM(I61:Z61)",0]
[null,null,null,null,null,null,null,null,null,null,null,null,null,null,null,null,null,null,{"$f":"ADDRESS(61,5,1,1,$S$1)","v":"'Geographic Diversification'!$E$61"},"=SUMSQ(I61:Z61)",0]
[null,null,null,null,null,null,null,null,null,null,null,null,null,null,null,null,null,null,{"$f":"ADDRESS(61,6,1,1,$S$1)","v":"'Geographic Diversification'!$F$61"},"=(IF(D61>0,E61/D61^2,1))",0]
[null,null,null,null,null,null,null,null,null,null,null,null,null,null,null,null,null,null,{"$f":"ADDRESS(61,7,1,1,$S$1)","v":"'Geographic Diversification'!$G$61"},"=D61*(0.75+0.25*F61)",0]
[null,null,null,null,null,null,null,null,null,null,null,null,null,null,null,null,null,null,{"$f":"ADDRESS(61,8,1,1,$S$1)","v":"'Geographic Diversification'!$H$61"},"=IF('Schedule IIIA (EBS)'!AB31=\"TRUE\",G61,'Schedule III (EBS)'!F31)",0]
[null,null,null,null,null,null,null,null,null,null,null,null,null,null,null,null,null,null,{"$f":"ADDRESS(61,9,1,1,$S$1)","v":"'Geographic Diversification'!$I$61"},"='Schedule IIIA (EBS)'!E31",0]
[null,null,null,null,null,null,null,null,null,null,null,null,null,null,null,null,null,null,{"$f":"ADDRESS(61,10,1,1,$S$1)","v":"'Geographic Diversification'!$J$61"},"='Schedule IIIA (EBS)'!F31",0]
[null,null,null,null,null,null,null,null,null,null,null,null,null,null,null,null,null,null,{"$f":"ADDRESS(61,11,1,1,$S$1)","v":"'Geographic Diversification'!$K$61"},"='Schedule IIIA (EBS)'!G31",0]
[null,null,null,null,null,null,null,null,null,null,null,null,null,null,null,null,null,null,{"$f":"ADDRESS(61,12,1,1,$S$1)","v":"'Geographic Diversification'!$L$61"},"='Schedule IIIA (EBS)'!H31",0]
[null,null,null,null,null,null,null,null,null,null,null,null,null,null,null,null,null,null,{"$f":"ADDRESS(61,13,1,1,$S$1)","v":"'Geographic Diversification'!$M$61"},"='Schedule IIIA (EBS)'!I31",0]
[null,null,null,null,null,null,null,null,null,null,null,null,null,null,null,null,null,null,{"$f":"ADDRESS(61,14,1,1,$S$1)","v":"'Geographic Diversification'!$N$61"},"='Schedule IIIA (EBS)'!J31",0]
[null,null,null,null,null,null,null,null,null,null,null,null,null,null,null,null,null,null,{"$f":"ADDRESS(61,15,1,1,$S$1)","v":"'Geographic Diversification'!$O$61"},"='Schedule IIIA (EBS)'!K31",0]
[null,null,null,null,null,null,null,null,null,null,null,null,null,null,null,null,null,null,{"$f":"ADDRESS(61,16,1,1,$S$1)","v":"'Geographic Diversification'!$P$61"},"='Schedule IIIA (EBS)'!L31",0]
[null,null,null,null,null,null,null,null,null,null,null,null,null,null,null,null,null,null,{"$f":"ADDRESS(61,17,1,1,$S$1)","v":"'Geographic Diversification'!$Q$61"},"='Schedule IIIA (EBS)'!M31",0]
[null,null,null,null,null,null,null,null,null,null,null,null,null,null,null,null,null,null,{"$f":"ADDRESS(61,18,1,1,$S$1)","v":"'Geographic Diversification'!$R$61"},"='Schedule IIIA (EBS)'!N31",0]
[null,null,null,null,null,null,null,null,null,null,null,null,null,null,null,null,null,null,{"$f":"ADDRESS(61,19,1,1,$S$1)","v":"'Geographic Diversification'!$S$61"},"='Schedule IIIA (EBS)'!O31",0]
[null,null,null,null,null,null,null,null,null,null,null,null,null,null,null,null,null,null,{"$f":"ADDRESS(61,20,1,1,$S$1)","v":"'Geographic Diversification'!$T$61"},"='Schedule IIIA (EBS)'!P31",0]
[null,null,null,null,null,null,null,null,null,null,null,null,null,null,null,null,null,null,{"$f":"ADDRESS(61,21,1,1,$S$1)","v":"'Geographic Diversification'!$U$61"},"='Schedule IIIA (EBS)'!Q31",0]
[null,null,null,null,null,null,null,null,null,null,null,null,null,null,null,null,null,null,{"$f":"ADDRESS(61,22,1,1,$S$1)","v":"'Geographic Diversification'!$V$61"},"='Schedule IIIA (EBS)'!R31",0]
[null,null,null,null,null,null,null,null,null,null,null,null,null,null,null,null,null,null,{"$f":"ADDRESS(61,23,1,1,$S$1)","v":"'Geographic Diversification'!$W$61"},"='Schedule IIIA (EBS)'!S31",0]
[null,null,null,null,null,null,null,null,null,null,null,null,null,null,null,null,null,null,{"$f":"ADDRESS(61,24,1,1,$S$1)","v":"'Geographic Diversification'!$X$61"},"='Schedule IIIA (EBS)'!T31",0]
[null,null,null,null,null,null,null,null,null,null,null,null,null,null,null,null,null,null,{"$f":"ADDRESS(61,25,1,1,$S$1)","v":"'Geographic Diversification'!$Y$61"},"='Schedule IIIA (EBS)'!U31",0]
[null,null,null,null,null,null,null,null,null,null,null,null,null,null,null,null,null,null,{"$f":"ADDRESS(61,26,1,1,$S$1)","v":"'Geographic Diversification'!$Z$61"},"='Schedule IIIA (EBS)'!V31",0]
[null,null,null,null,null,null,null,null,null,null,null,null,null,null,null,null,null,null,{"$f":"ADDRESS(62,4,1,1,$S$1)","v":"'Geographic Diversification'!$D$62"},"=SUM(I62:Z62)",0]
[null,null,null,null,null,null,null,null,null,null,null,null,null,null,null,null,null,null,{"$f":"ADDRESS(62,5,1,1,$S$1)","v":"'Geographic Diversification'!$E$62"},"=SUMSQ(I62:Z62)",0]
[null,null,null,null,null,null,null,null,null,null,null,null,null,null,null,null,null,null,{"$f":"ADDRESS(62,6,1,1,$S$1)","v":"'Geographic Diversification'!$F$62"},"=(IF(D62>0,E62/D62^2,1))",0]
[null,null,null,null,null,null,null,null,null,null,null,null,null,null,null,null,null,null,{"$f":"ADDRESS(62,7,1,1,$S$1)","v":"'Geographic Diversification'!$G$62"},"=D62*(0.75+0.25*F62)",0]
[null,null,null,null,null,null,null,null,null,null,null,null,null,null,null,null,null,null,{"$f":"ADDRESS(62,8,1,1,$S$1)","v":"'Geographic Diversification'!$H$62"},"=IF('Schedule IIIA (EBS)'!AB32=\"TRUE\",G62,'Schedule III (EBS)'!F32)",0]
[null,null,null,null,null,null,null,null,null,null,null,null,null,null,null,null,null,null,{"$f":"ADDRESS(62,9,1,1,$S$1)","v":"'Geographic Diversification'!$I$62"},"='Schedule IIIA (EBS)'!E32",{"$f":"IF(_xlfn.FORMULATEXT(INDIRECT(S1092))=T1092,0,1)","v":0}]
[null,null,null,null,null,null,null,null,null,null,null,null,null,null,null,null,null,null,{"$f":"ADDRESS(62,10,1,1,$S$1)","v":"'Geographic Diversification'!$J$62"},"='Schedule IIIA (EBS)'!F32",0]
[null,null,null,null,null,null,null,null,null,null,null,null,null,null,null,null,null,null,{"$f":"ADDRESS(62,11,1,1,$S$1)","v":"'Geographic Diversification'!$K$62"},"='Schedule IIIA (EBS)'!G32",0]
[null,null,null,null,null,null,null,null,null,null,null,null,null,null,null,null,null,null,{"$f":"ADDRESS(62,12,1,1,$S$1)","v":"'Geographic Diversification'!$L$62"},"='Schedule IIIA (EBS)'!H32",0]
[null,null,null,null,null,null,null,null,null,null,null,null,null,null,null,null,null,null,{"$f":"ADDRESS(62,13,1,1,$S$1)","v":"'Geographic Diversification'!$M$62"},"='Schedule IIIA (EBS)'!I32",0]
[null,null,null,null,null,null,null,null,null,null,null,null,null,null,null,null,null,null,{"$f":"ADDRESS(62,14,1,1,$S$1)","v":"'Geographic Diversification'!$N$62"},"='Schedule IIIA (EBS)'!J32",0]
[null,null,null,null,null,null,null,null,null,null,null,null,null,null,null,null,null,null,{"$f":"ADDRESS(62,15,1,1,$S$1)","v":"'Geographic Diversification'!$O$62"},"='Schedule IIIA (EBS)'!K32",0]
[null,null,null,null,null,null,null,null,null,null,null,null,null,null,null,null,null,null,{"$f":"ADDRESS(62,16,1,1,$S$1)","v":"'Geographic Diversification'!$P$62"},"='Schedule IIIA (EBS)'!L32",0]
[null,null,null,null,null,null,null,null,null,null,null,null,null,null,null,null,null,null,{"$f":"ADDRESS(62,17,1,1,$S$1)","v":"'Geographic Diversification'!$Q$62"},"='Schedule IIIA (EBS)'!M32",0]
[null,null,null,null,null,null,null,null,null,null,null,null,null,null,null,null,null,null,{"$f":"ADDRESS(62,18,1,1,$S$1)","v":"'Geographic Diversification'!$R$62"},"='Schedule IIIA (EBS)'!N32",0]
[null,null,null,null,null,null,null,null,null,null,null,null,null,null,null,null,null,null,{"$f":"ADDRESS(62,19,1,1,$S$1)","v":"'Geographic Diversification'!$S$62"},"='Schedule IIIA (EBS)'!O32",0]
[null,null,null,null,null,null,null,null,null,null,null,null,null,null,null,null,null,null,{"$f":"ADDRESS(62,20,1,1,$S$1)","v":"'Geographic Diversification'!$T$62"},"='Schedule IIIA (EBS)'!P32",0]
[null,null,null,null,null,null,null,null,null,null,null,null,null,null,null,null,null,null,{"$f":"ADDRESS(62,21,1,1,$S$1)","v":"'Geographic Diversification'!$U$62"},"='Schedule IIIA (EBS)'!Q32",0]
[null,null,null,null,null,null,null,null,null,null,null,null,null,null,null,null,null,null,{"$f":"ADDRESS(62,22,1,1,$S$1)","v":"'Geographic Diversification'!$V$62"},"='Schedule IIIA (EBS)'!R32",0]
[null,null,null,null,null,null,null,null,null,null,null,null,null,null,null,null,null,null,{"$f":"ADDRESS(62,23,1,1,$S$1)","v":"'Geographic Diversification'!$W$62"},"='Schedule IIIA (EBS)'!S32",0]
[null,null,null,null,null,null,null,null,null,null,null,null,null,null,null,null,null,null,{"$f":"ADDRESS(62,24,1,1,$S$1)","v":"'Geographic Diversification'!$X$62"},"='Schedule IIIA (EBS)'!T32",0]
[null,null,null,null,null,null,null,null,null,null,null,null,null,null,null,null,null,null,{"$f":"ADDRESS(62,25,1,1,$S$1)","v":"'Geographic Diversification'!$Y$62"},"='Schedule IIIA (EBS)'!U32",0]
[null,null,null,null,null,null,null,null,null,null,null,null,null,null,null,null,null,null,{"$f":"ADDRESS(62,26,1,1,$S$1)","v":"'Geographic Diversification'!$Z$62"},"='Schedule IIIA (EBS)'!V32",0]
[null,null,null,null,null,null,null,null,null,null,null,null,null,null,null,null,null,null,{"$f":"ADDRESS(63,4,1,1,$S$1)","v":"'Geographic Diversification'!$D$63"},"=SUM(I63:Z63)",0]
[null,null,null,null,null,null,null,null,null,null,null,null,null,null,null,null,null,null,{"$f":"ADDRESS(63,5,1,1,$S$1)","v":"'Geographic Diversification'!$E$63"},"=SUMSQ(I63:Z63)",0]
[null,null,null,null,null,null,null,null,null,null,null,null,null,null,null,null,null,null,{"$f":"ADDRESS(63,6,1,1,$S$1)","v":"'Geographic Diversification'!$F$63"},"=(IF(D63>0,E63/D63^2,1))",0]
[null,null,null,null,null,null,null,null,null,null,null,null,null,null,null,null,null,null,{"$f":"ADDRESS(63,7,1,1,$S$1)","v":"'Geographic Diversification'!$G$63"},"=D63*(0.75+0.25*F63)",0]
[null,null,null,null,null,null,null,null,null,null,null,null,null,null,null,null,null,null,{"$f":"ADDRESS(63,8,1,1,$S$1)","v":"'Geographic Diversification'!$H$63"},"=IF('Schedule IIIA (EBS)'!AB33=\"TRUE\",G63,'Schedule III (EBS)'!F33)",0]
[null,null,null,null,null,null,null,null,null,null,null,null,null,null,null,null,null,null,{"$f":"ADDRESS(63,9,1,1,$S$1)","v":"'Geographic Diversification'!$I$63"},"='Schedule IIIA (EBS)'!E33",0]
[null,null,null,null,null,null,null,null,null,null,null,null,null,null,null,null,null,null,{"$f":"ADDRESS(63,10,1,1,$S$1)","v":"'Geographic Diversification'!$J$63"},"='Schedule IIIA (EBS)'!F33",0]
[null,null,null,null,null,null,null,null,null,null,null,null,null,null,null,null,null,null,{"$f":"ADDRESS(63,11,1,1,$S$1)","v":"'Geographic Diversification'!$K$63"},"='Schedule IIIA (EBS)'!G33",0]
[null,null,null,null,null,null,null,null,null,null,null,null,null,null,null,null,null,null,{"$f":"ADDRESS(63,12,1,1,$S$1)","v":"'Geographic Diversification'!$L$63"},"='Schedule IIIA (EBS)'!H33",0]
[null,null,null,null,null,null,null,null,null,null,null,null,null,null,null,null,null,null,{"$f":"ADDRESS(63,13,1,1,$S$1)","v":"'Geographic Diversification'!$M$63"},"='Schedule IIIA (EBS)'!I33",0]
[null,null,null,null,null,null,null,null,null,null,null,null,null,null,null,null,null,null,{"$f":"ADDRESS(63,14,1,1,$S$1)","v":"'Geographic Diversification'!$N$63"},"='Schedule IIIA (EBS)'!J33",0]
[null,null,null,null,null,null,null,null,null,null,null,null,null,null,null,null,null,null,{"$f":"ADDRESS(63,15,1,1,$S$1)","v":"'Geographic Diversification'!$O$63"},"='Schedule IIIA (EBS)'!K33",0]
[null,null,null,null,null,null,null,null,null,null,null,null,null,null,null,null,null,null,{"$f":"ADDRESS(63,16,1,1,$S$1)","v":"'Geographic Diversification'!$P$63"},"='Schedule IIIA (EBS)'!L33",0]
[null,null,null,null,null,null,null,null,null,null,null,null,null,null,null,null,null,null,{"$f":"ADDRESS(63,17,1,1,$S$1)","v":"'Geographic Diversification'!$Q$63"},"='Schedule IIIA (EBS)'!M33",0]
[null,null,null,null,null,null,null,null,null,null,null,null,null,null,null,null,null,null,{"$f":"ADDRESS(63,18,1,1,$S$1)","v":"'Geographic Diversification'!$R$63"},"='Schedule IIIA (EBS)'!N33",0]
[null,null,null,null,null,null,null,null,null,null,null,null,null,null,null,null,null,null,{"$f":"ADDRESS(63,19,1,1,$S$1)","v":"'Geographic Diversification'!$S$63"},"='Schedule IIIA (EBS)'!O33",0]
[null,null,null,null,null,null,null,null,null,null,null,null,null,null,null,null,null,null,{"$f":"ADDRESS(63,20,1,1,$S$1)","v":"'Geographic Diversification'!$T$63"},"='Schedule IIIA (EBS)'!P33",0]
[null,null,null,null,null,null,null,null,null,null,null,null,null,null,null,null,null,null,{"$f":"ADDRESS(63,21,1,1,$S$1)","v":"'Geographic Diversification'!$U$63"},"='Schedule IIIA (EBS)'!Q33",0]
[null,null,null,null,null,null,null,null,null,null,null,null,null,null,null,null,null,null,{"$f":"ADDRESS(63,22,1,1,$S$1)","v":"'Geographic Diversification'!$V$63"},"='Schedule IIIA (EBS)'!R33",0]
[null,null,null,null,null,null,null,null,null,null,null,null,null,null,null,null,null,null,{"$f":"ADDRESS(63,23,1,1,$S$1)","v":"'Geographic Diversification'!$W$63"},"='Schedule IIIA (EBS)'!S33",0]
[null,null,null,null,null,null,null,null,null,null,null,null,null,null,null,null,null,null,{"$f":"ADDRESS(63,24,1,1,$S$1)","v":"'Geographic Diversification'!$X$63"},"='Schedule IIIA (EBS)'!T33",0]
[null,null,null,null,null,null,null,null,null,null,null,null,null,null,null,null,null,null,{"$f":"ADDRESS(63,25,1,1,$S$1)","v":"'Geographic Diversification'!$Y$63"},"='Schedule IIIA (EBS)'!U33",0]
[null,null,null,null,null,null,null,null,null,null,null,null,null,null,null,null,null,null,{"$f":"ADDRESS(63,26,1,1,$S$1)","v":"'Geographic Diversification'!$Z$63"},"='Schedule IIIA (EBS)'!V33",0]
[null,null,null,null,null,null,null,null,null,null,null,null,null,null,null,null,null,null,{"$f":"ADDRESS(65,4,1,1,$S$1)","v":"'Geographic Diversification'!$D$65"},"=SUM(D40:D63)",0]
[null,null,null,null,null,null,null,null,null,null,null,null,null,null,null,null,null,null,{"$f":"ADDRESS(65,5,1,1,$S$1)","v":"'Geographic Diversification'!$E$65"},"=SUM(E40:E63)",0]
[null,null,null,null,null,null,null,null,null,null,null,null,null,null,null,null,null,null,{"$f":"ADDRESS(65,7,1,1,$S$1)","v":"'Geographic Diversification'!$G$65"},"=SUM(G40:G63)",0]
[null,null,null,null,null,null,null,null,null,null,null,null,null,null,null,null,null,null,{"$f":"ADDRESS(65,8,1,1,$S$1)","v":"'Geographic Diversification'!$H$65"},"=SUM(H40:H63)",0]
[null,null,null,null,null,null,null,null,null,null,null,null,null,null,null,null,null,null,{"$f":"ADDRESS(65,9,1,1,$S$1)","v":"'Geographic Diversification'!$I$65"},"=SUM(I40:I63)",0]
[null,null,null,null,null,null,null,null,null,null,null,null,null,null,null,null,null,null,{"$f":"ADDRESS(65,10,1,1,$S$1)","v":"'Geographic Diversification'!$J$65"},"=SUM(J40:J63)",0]
[null,null,null,null,null,null,null,null,null,null,null,null,null,null,null,null,null,null,{"$f":"ADDRESS(65,11,1,1,$S$1)","v":"'Geographic Diversification'!$K$65"},"=SUM(K40:K63)",0]
[null,null,null,null,null,null,null,null,null,null,null,null,null,null,null,null,null,null,{"$f":"ADDRESS(65,12,1,1,$S$1)","v":"'Geographic Diversification'!$L$65"},"=SUM(L40:L63)",0]
[null,null,null,null,null,null,null,null,null,null,null,null,null,null,null,null,null,null,{"$f":"ADDRESS(65,13,1,1,$S$1)","v":"'Geographic Diversification'!$M$65"},"=SUM(M40:M63)",0]
[null,null,null,null,null,null,null,null,null,null,null,null,null,null,null,null,null,null,{"$f":"ADDRESS(65,14,1,1,$S$1)","v":"'Geographic Diversification'!$N$65"},"=SUM(N40:N63)",0]
[null,null,null,null,null,null,null,null,null,null,null,null,null,null,null,null,null,null,{"$f":"ADDRESS(65,15,1,1,$S$1)","v":"'Geographic Diversification'!$O$65"},"=SUM(O40:O63)",0]
[null,null,null,null,null,null,null,null,null,null,null,null,null,null,null,null,null,null,{"$f":"ADDRESS(65,16,1,1,$S$1)","v":"'Geographic Diversification'!$P$65"},"=SUM(P40:P63)",0]
[null,null,null,null,null,null,null,null,null,null,null,null,null,null,null,null,null,null,{"$f":"ADDRESS(65,17,1,1,$S$1)","v":"'Geographic Diversification'!$Q$65"},"=SUM(Q40:Q63)",0]
[null,null,null,null,null,null,null,null,null,null,null,null,null,null,null,null,null,null,{"$f":"ADDRESS(65,18,1,1,$S$1)","v":"'Geographic Diversification'!$R$65"},"=SUM(R40:R63)",0]
[null,null,null,null,null,null,null,null,null,null,null,null,null,null,null,null,null,null,{"$f":"ADDRESS(65,19,1,1,$S$1)","v":"'Geographic Diversification'!$S$65"},"=SUM(S40:S63)",0]
[null,null,null,null,null,null,null,null,null,null,null,null,null,null,null,null,null,null,{"$f":"ADDRESS(65,20,1,1,$S$1)","v":"'Geographic Diversification'!$T$65"},"=SUM(T40:T63)",0]
[null,null,null,null,null,null,null,null,null,null,null,null,null,null,null,null,null,null,{"$f":"ADDRESS(65,21,1,1,$S$1)","v":"'Geographic Diversification'!$U$65"},"=SUM(U40:U63)",0]
[null,null,null,null,null,null,null,null,null,null,null,null,null,null,null,null,null,null,{"$f":"ADDRESS(65,22,1,1,$S$1)","v":"'Geographic Diversification'!$V$65"},"=SUM(V40:V63)",0]
[null,null,null,null,null,null,null,null,null,null,null,null,null,null,null,null,null,null,{"$f":"ADDRESS(65,23,1,1,$S$1)","v":"'Geographic Diversification'!$W$65"},"=SUM(W40:W63)",0]
[null,null,null,null,null,null,null,null,null,null,null,null,null,null,null,null,null,null,{"$f":"ADDRESS(65,24,1,1,$S$1)","v":"'Geographic Diversification'!$X$65"},"=SUM(X40:X63)",0]
[null,null,null,null,null,null,null,null,null,null,null,null,null,null,null,null,null,null,{"$f":"ADDRESS(65,25,1,1,$S$1)","v":"'Geographic Diversification'!$Y$65"},"=SUM(Y40:Y63)",0]
[null,null,null,null,null,null,null,null,null,null,null,null,null,null,null,null,null,null,{"$f":"ADDRESS(65,26,1,1,$S$1)","v":"'Geographic Diversification'!$Z$65"},"=SUM(Z40:Z63)",0]
[null,null,null,null,null,null,null,null,null,null,null,null,null,null,null,null,null,null,null,null,-1155]